{"text_format":"1","workbook":"xlsx","n_sheets":22,"sheets":["S&P Only","Disclaimer","Input","Adjustment","Output","TAC","Asset Risk","Nat Cat Risk","Non-Life Risk","Life Risk","Interest Rate Risk","Diversification","Risk Charges","Lists","Countries","Currencies","Data storage","Step 4 bond aggregation","Raw Data","Processed Data","Data storage - Outputs","Default Values"],"not_rendered":{"charts":3,"images":2,"macros":1,"external_links":0,"defined_names":361,"comments":7,"pivot_tables":0},"unopened":[],"bounds":{"document_bytes":16777216,"sheet_cells":100000,"rows_first":2000,"rows_last":500,"rows_between":2000,"halvings":0,"cell_chars":16384,"cell_head_chars":4096},"cells_cut":0,"cells_raw":0,"read":"whole","date_system":"1900"}

{"sheet":"S&P Only","index":0,"n_rows":56,"n_cols":13,"rows_kept":56,"cut":false,"hidden":false,"merged":[[48,2,48,4],[32,5,32,8],[42,2,42,4],[36,5,36,8],[26,5,26,8],[28,7,28,8],[27,10,27,11],[1,5,1,6],[20,5,20,8],[20,10,20,14],[26,10,26,11],[11,5,11,8],[14,5,14,6],[12,13,12,14],[11,13,11,14],[17,5,17,8],[12,10,12,11],[11,10,11,11]]}
[]
[null,null,null,null,null,"For use by S&P analysts only",null,null,null,"Help"]
[]
["h","Download model inputs"]
[null,"Issuer Provided Data"]
[]
[null,null,null,null,"Company/Group Code",null,"Reporting Year"]
[]
[null,"S&P Analyst Data"]
[]
[null,null,null,null,null,null,null,null,null,"Filter By",null,null,"Filter By"]
[null,null,null,null,"Company/Group",null,null,null,null,"Company/Group",null,null,"Sector"]
[null,null,null,null,null,null,null,null,null,"My uploads only",null,null,"Domicile"]
[]
[null,null,null,null,"Reporting year"]
[]
[]
[null,null,null,null,"File name"]
[]
[]
[null,null,null,null,"Version",null,null,null,null,"Key",{"$f":"IFERROR(VLOOKUP(selected_file_version,table_versions,2,FALSE),\"\")","v":""}]
[]
["h","Upload model inputs and outputs"]
[null,"Reference entity names"]
[]
[null,null,null,null,null,null,null,null,null,"Filter By"]
[null,null,null,null,"Company/Group",null,null,null,null,"Company/Group"]
[null,null,null,null,null,null,null,null,null,"Primary analyst"]
[null,null,null,null,"Core Id",{"$f":"IFERROR(VLOOKUP(selected_reference_entity,'Data storage'!$P$1:$R$5000,2,FALSE),\"\")","v":""},"Primary analyst",{"$f":"IFERROR(VLOOKUP(selected_reference_entity,'Data storage'!$P$1:$R$5000,3,FALSE),\"\")","v":""}]
[]
[null,"Identifying information from Input sheet"]
[]
[null,null,null,null,"Company/Group",{"$f":"IF(inp_entity_name = \"\", \"\",inp_entity_name)","v":""},null,null,null,"Reference Id",{"$f":"IFERROR(VLOOKUP(inp_entity_name,'Data storage'!$P$1:$Q$5000,2,FALSE),\"\")","v":""}]
[]
[null,null,null,null,"Reporting year",{"$f":"IF(inp_reporting_year = \"\", \"\", inp_reporting_year)","v":""},null,"Year-End Date",{"$f":"IF(inp_year_end = \"\", \"\", inp_year_end)","v":""}]
[]
[null,null,null,null,"File name",{"$f":"IF(inp_scenario = \"\", \"\", inp_scenario)","v":""}]
[]
[null,"Upload file"]
[]
[]
[]
[null,null,"The upload will replace the latest version of file with the same name, uploaded for the selected company and reporting year."]
[]
[null,"Upload final submission"]
[]
[]
[]
[null,null,"The File name will be updated to \"Final\". The upload will replace the latest version of the final submission for the selected company and reporting year."]
[]
[null,"Exchange Rates"]
[]
[null,null,null,null,null,"From input sheet","Year / Date","Rate","# Data points","Start date","End Date"]
[null,null,null,null,"As of input year-end date",{"$f":"IF(ISBLANK(inp_summary_currency), \"\", inp_summary_currency)","v":"USD"},{"$f":"IF( ISBLANK('Data storage'!W1),\"\",'Data storage'!W1)","v":""},{"$f":"IF( ISBLANK('Data storage'!X1),\"\",'Data storage'!X1)","v":""}]
[null,null,null,null,"As of input reporting year-end",null,{"$f":"IF( ISBLANK('Data storage'!Z1),\"\",'Data storage'!Z1)","v":""},{"$f":"IF( ISBLANK('Data storage'!AA1),\"\",'Data storage'!AA1)","v":""}]
[null,null,null,null,"Reporting year average",null,{"$f":"IF( ISBLANK('Data storage'!AC1),\"\",'Data storage'!AC1)","v":""},{"$f":"IF( ISBLANK('Data storage'!AD1),\"\",'Data storage'!AD1)","v":""},{"$f":"IF( ISBLANK('Data storage'!AE1),\"\",'Data storage'!AE1)","v":""},{"$f":"IF( ISBLANK('Data storage'!AF1),\"\",'Data storage'!AF1)","v":""},{"$f":"IF( ISBLANK('Data storage'!AG1),\"\",'Data storage'!AG1)","v":""}]

{"sheet":"Disclaimer","index":1,"n_rows":4,"n_cols":7,"rows_kept":4,"cut":false,"hidden":false,"merged":[]}
[]
[null,null,null,null,null,"Version",{"$f":"model_version","v":3}]
[]
[null,"Disclaimer and Limited Warranty"]

{"sheet":"Input","index":2,"n_rows":905,"n_cols":25,"rows_kept":905,"cut":false,"hidden":false,"merged":[[837,8,837,11],[96,5,96,12],[659,5,659,6],[332,12,334,12],[637,5,637,6],[614,5,614,6],[136,5,136,11],[128,5,128,11],[144,5,144,11],[407,4,407,8],[189,2,189,12],[320,12,322,12],[324,12,326,12],[566,10,566,12],[370,3,372,3],[376,3,378,3],[152,2,152,4],[367,5,367,7],[259,2,259,12],[269,2,269,12],[279,2,279,12],[299,2,299,12],[316,12,318,12],[328,12,330,12],[153,5,153,11],[312,12,314,12],[229,2,229,12],[239,2,239,12],[119,2,119,4],[120,5,120,11],[249,2,249,12],[310,2,310,11],[9,5,9,12],[10,11,10,12],[11,11,11,12],[177,5,177,11],[169,5,169,11],[199,2,199,12],[161,5,161,11],[80,5,80,12],[289,2,289,12],[88,5,88,12],[209,2,209,12],[219,2,219,12],[771,5,771,6],[437,5,437,6],[376,6,378,6],[367,10,369,10],[367,9,369,9],[368,5,368,7],[367,8,369,8],[680,5,680,6],[71,2,71,4],[859,11,859,12],[859,9,859,10],[859,7,859,8],[454,5,454,6],[439,5,439,6],[567,5,567,6],[537,5,537,6],[515,5,515,6],[492,5,492,6],[558,5,558,6],[573,5,573,6],[588,5,588,6],[689,5,689,6],[703,5,703,8],[104,5,104,12],[854,8,854,9],[855,8,855,9],[849,5,849,9],[850,8,850,9],[851,8,851,9],[852,8,852,9],[853,8,853,9]]}
[" "]
[]
[]
["h","Referenced Criteria: Insurer Risk-Based Capital Adequacy--Methodology And Assumptions"]
[]
[]
[]
["h","Company/Group Information",null,null,{"$f":"IF(ISBLANK(inp_entity_name), \"\", inp_entity_name & IF(ISBLANK(inp_reporting_year), \"\", \"  (\" & inp_reporting_year & \")\"))","v":""},null,null,{"$f":"IF(S11=1,Error_Message & \" Please input a valid USD Fx rate\", IF(S12=1, Error_Message & \" Please input a valid value for Units\", \"\"))","v":""}]
[null,null," ",null,null,null,null,null,null,null,null,null,null,null,"Comments"]
[null,null,null,null,"Company/Group"]
[null,null,null,null,"Year-End Date",null,"Review Type","Actual","Region",null,"Domicile",null,null,null,null,null,null,null,{"$f":"IF(OR(inp_summary_usd_fx=\"\",inp_summary_usd_fx<0),1,0)","v":0}]
[null,null,null,null,"Currency","USD","USD Exchange Rate",1,"Units","Millions","Sector",null,null,null,null,null,null,null,{"$f":"IF(ISERROR(MATCH(inp_summary_units, lov_units, FALSE)),1,0)","v":0}]
[null,null,null,null,"Reporting Year",null,"File name"]
[]
["h","Total Adjusted Capital (TAC)",null,null,null,null,null,null,null,null,null,null,null,null,null,"Calculated TAC",{"$f":"Output!H31","v":0}]
[null,null,null,null,null,null,null,null,null,null,null,null,null,null,"Comments"]
[null,null,null,null,"Common shareholders' equity/policyholders’ surplus"]
[]
[null,null,null,null,"Equity adjustments"]
[null,null,null,null,"Equity noncontrolling interests"]
[null,null,null,null,"Shareholder distributions not accrued"]
[null,null,null,null,"Off-balance sheet pension deficits (post-tax)"]
[null,null,null,null,"Off-balance sheet pension surplus if fungible and sustainable (post-tax)"]
[null,null,null,null,"On-balance sheet pension surpluses if not fungible or not sustainable (post-tax)"]
[null,null,null,null,"Investments in own shares or treasury shares"]
[]
[null,null,null,null,"Intangible adjustments"]
[null,null,null,null,"Goodwill (post-tax)"]
[null,null,null,null,"Other intangible assets (post-tax)"]
[]
[null,null,null,null,"Invested asset adjustments"]
[null,null,null,null,"Unrealized gains/(losses) not in reported equity (post-tax)"]
[null,null,null,null,"Market Value of listed Investment in associates and joint ventures"]
[null,null,null,null,"Book Value of listed Investment in associates and joint ventures"]
[]
[null,null,null,null,"Non-life reserve adjustments"]
[null,null,null,null,"Non-life technical reserve not discounted On-balance sheet"]
[null,null,null,null,"Non-life technical reserve discounted On-balance sheet"]
[null,null,null,null,"Applicable Tax Rate(%)"]
[null,null,null,null,"On-balance sheet loss reserve discount"]
[null,null,null,null,"Applicable government bond yield (%)"]
[null,null,null,null,"Mean term of non-life undiscounted technical reserves (years)"]
[null,null,null,null,"Non-life reserve surpluses/(deficits) (undiscounted) (post-tax)"]
[null,null,null,null,"Other equity-like non-life reserves (post-tax)"]
[null,null,null,null,"On-balance sheet loss reserve discounted adjusted"]
[]
[null,null,null,null,"Life reserve adjustments"]
[null,null,null,null,"Off-balance sheet Life Value in Force (post-tax) "]
[null,null,null,null,"On-balance sheet Life Value in Force  (post-tax) "]
[null,null,null,null,"Other equity like life reserves (post-tax)"]
[null,null,null,null,"Life reserves valuation adjustment (post-tax)"]
[]
[null,null,null,null,"Policyholder capital available to absorb losses"]
[]
[null,null,null,null,"Unrealised gains (URG) on investments backing life participating business"]
[]
[null,null,null,null,"Hybrid equity adjustments"]
[null,null,null,null,"Hybrid equity - high equity content"]
[null,null,null,null,"Hybrid equity - intermediate equity content"]
[null,null,null,null,"Hybrid equity - no equity content"]
[null,null,null,null,"Amount included in no equity content that is eligible as debt-funded capital"]
[null,null,null,null,"Debt-funded capital adjustments"]
[null,null,null,null,"Is debt-funded capital eligible in TAC?","No"]
[null,null,null,null,"Eligible debt-funded capital (high structural subordination of NOHC)"]
[null,null,null,null,"Eligible debt-funded capital (low structural subordination of NOHC)"]
[null,null,null,null,"Debt not eligible as debt-funded capital"]
[null,null,null,null,"Cash and invested assets at NOHC (subject to haircut)"]
[null,null,null,null,"Haircut on NOHC cash and invested assets (%)"]
[]
[null,null,null,null,"Total Debt/Hybrid",{"$f":"SUM(F58:F60,F64:F66)-F61","v":0}]
[]
[null,null,"Investments in unconsolidated insurance and non-insurance subsidiaries"]
[null,null,null,null,"Investment in noninsurance subsidiaries and insulated subsidiaries deconsolidated by S&P"]
[null,null,null,null,"Investment in unconsolidated  insurance subsidiaries and joint ventures not consolidated by S&P"]
[]
["h","Risk Based Capital Requirements (RBC)"]
["h"," Assets",null,null,null,null,null,{"$f":"IF(S432=1,Error_Message & \" Difference = \" & TEXT(T430, \"#,##0.00\"),\"\")","v":""},null,null,null,null,null,null,null,"Total balance sheet assets",{"$f":"total_bonds+total_equity+total_property+total_other_invested_assets+total_non_invested_assets-calc_urgl","v":0}]
["h","  Bonds & Loans",null,null,null,null,null,{"$f":"IF(S340=1,Error_Message & \" Difference = \" & TEXT(T338, \"#,##0.00\"),\"\")","v":""},null,null,null,null,null,null,null,"Section Total",{"$f":"'Asset Risk'!M35","v":0}]
["h","  Rated by S&P",null,null,null,null,null,{"$f":"IF(S115=1,Error_Message & \" Difference = \" & TEXT(T113, \"#,##0.00\"),\"\")","v":""},null,null,null,null,null,null,null,"Section Total",{"$f":"SUM(F83:M87,F91:M95,F99:M103,F107:M111)","v":0}]
[null,null,null,null,null,null,null,null,null,null,null,null,null,null,"Comments"]
[null,null,null,null,null,"Credit Risk Recovery Category 1"]
[null,null,null,null,"Tenor (years)","AAA","AA","A","BBB","BB","B","CCC-C","D"]
[null,null,null,null,"Upto 1"]
[null,null,null,null,"1.01 to 5"]
[null,null,null,null,"5.01 to 10"]
[null,null,null,null,"10.01 to 20"]
[null,null,null,null,"More than 20"]
[null,null,null,null,null,null,null,null,null,null,null,"Total",{"$f":"SUM(F83:M87)","v":0}]
[null,null,null,null,null,"Credit Risk Recovery Category 2"]
[null,null,null,null,"Tenor (years)","AAA","AA","A","BBB","BB","B","CCC-C","D"]
[null,null,null,null,"Upto 1"]
[null,null,null,null,"1.01 to 5"]
[null,null,null,null,"5.01 to 10"]
[null,null,null,null,"10.01 to 20"]
[null,null,null,null,"More than 20"]
[null,null,null,null,null,null,null,null,null,null,null,"Total",{"$f":"SUM(F91:M95)","v":0}]
[null,null,null,null,null,"Credit Risk Recovery Category 3"]
[null,null,null,null,"Tenor (years)","AAA","AA","A","BBB","BB","B","CCC-C","D"]
[null,null,null,null,"Upto 1"]
[null,null,null,null,"1.01 to 5"]
[null,null,null,null,"5.01 to 10"]
[null,null,null,null,"10.01 to 20"]
[null,null,null,null,"More than 20"]
[null,null,null,null,null,null,null,null,null,null,null,"Total",{"$f":"SUM(F99:M103)","v":0}]
[null,null,null,null,null,"Credit Risk Recovery Category 4"]
[null,null,null,null,"Tenor (years)","AAA","AA","A","BBB","BB","B","CCC-C","D"]
[null,null,null,null,"Upto 1"]
[null,null,null,null,"1.01 to 5"]
[null,null,null,null,"5.01 to 10"]
[null,null,null,null,"10.01 to 20"]
[null,null,null,null,"More than 20"]
[null,null,null,null,null,null,null,null,null,null,null,"Total",{"$f":"SUM(F107:M111)","v":0}]
[null,null,null,null,null,null,null,null,null,null,null,null,null,null,null,null,null,null,null,{"$f":"Q79-F115","v":0}]
[null,null,null,null,null,null,null,null,null,null,null,null,null,null,null,null,null,null,null,{"$f":"IF(F115=0,0,ABS(T113/F115))","v":0}]
[null,null,null,null,"Total Bonds & Loans (rated by S&P)",null,null,null,null,null,null,null,null,null,null,null,null,null,{"$f":"IF(T115>Error_Check_Precision,1,0)","v":0},{"$f":"IF(OR(F115=0,ISERROR(T114)),0,T114)","v":0}]
[]
["h"]
["h","  Unrated by S&P with credit quality assessment by third party",null,null,null,null,null,null,null,null,null,null,null,null,null,"Section Total",{"$f":"total_bonds_steps_2_3","v":0}]
[]
[null,null,"Third party - Other CRAs",null,null,null,null,null,null,null,null,null,null,null,"Comments"]
[null,null,null,null,null,"Credit Risk Recovery Category 1"]
[null,null,null,null,"Tenor (years)","AAA","AA","A","BBB","BB","B","CCC-C"]
[null,null,null,null,"Upto 1"]
[null,null,null,null,"1.01 to 5"]
[null,null,null,null,"5.01 to 10"]
[null,null,null,null,"10.01 to 20"]
[null,null,null,null,"More than 20"]
[null,null,null,null,null,null,null,null,null,null,"Total",{"$f":"SUM(F123:L127)","v":0}]
[null,null,null,null,null,"Credit Risk Recovery Category 2"]
[null,null,null,null,"Tenor (years)","AAA","AA","A","BBB","BB","B","CCC-C"]
[null,null,null,null,"Upto 1"]
[null,null,null,null,"1.01 to 5"]
[null,null,null,null,"5.01 to 10"]
[null,null,null,null,"10.01 to 20"]
[null,null,null,null,"More than 20"]
[null,null,null,null,null,null,null,null,null,null,"Total",{"$f":"SUM(F131:L135)","v":0}]
[null,null,null,null,null,"Credit Risk Recovery Category 3"]
[null,null,null,null,"Tenor (years)","AAA","AA","A","BBB","BB","B","CCC-C"]
[null,null,null,null,"Upto 1"]
[null,null,null,null,"1.01 to 5"]
[null,null,null,null,"5.01 to 10"]
[null,null,null,null,"10.01 to 20"]
[null,null,null,null,"More than 20"]
[null,null,null,null,null,null,null,null,null,null,"Total",{"$f":"SUM(F139:L143)","v":0}]
[null,null,null,null,null,"Credit Risk Recovery Category 4"]
[null,null,null,null,"Tenor (years)","AAA","AA","A","BBB","BB","B","CCC-C"]
[null,null,null,null,"Upto 1"]
[null,null,null,null,"1.01 to 5"]
[null,null,null,null,"5.01 to 10"]
[null,null,null,null,"10.01 to 20"]
[null,null,null,null,"More than 20"]
[null,null,null,null,null,null,null,null,null,null,"Total",{"$f":"SUM(F147:L151)","v":0}]
[null,null,"Regulatory Credit Measures"]
[null,null,null,null,null,"Credit Risk Recovery Category 1"]
[null,null,null,null,"Tenor (years)","AAA","AA","A","BBB","BB","B","CCC-C"]
[null,null,null,null,"Upto 1"]
[null,null,null,null,"1.01 to 5"]
[null,null,null,null,"5.01 to 10"]
[null,null,null,null,"10.01 to 20"]
[null,null,null,null,"More than 20"]
[null,null,null,null,null,null,null,null,null,null,"Total",{"$f":"SUM(F156:L160)","v":0}]
[null,null,null,null,null,"Credit Risk Recovery Category 2"]
[null,null,null,null,"Tenor (years)","AAA","AA","A","BBB","BB","B","CCC-C"]
[null,null,null,null,"Upto 1"]
[null,null,null,null,"1.01 to 5"]
[null,null,null,null,"5.01 to 10"]
[null,null,null,null,"10.01 to 20"]
[null,null,null,null,"More than 20"]
[null,null,null,null,null,null,null,null,null,null,"Total",{"$f":"SUM(F164:L168)","v":0}]
[null,null,null,null,null,"Credit Risk Recovery Category 3"]
[null,null,null,null,"Tenor (years)","AAA","AA","A","BBB","BB","B","CCC-C"]
[null,null,null,null,"Upto 1"]
[null,null,null,null,"1.01 to 5"]
[null,null,null,null,"5.01 to 10"]
[null,null,null,null,"10.01 to 20"]
[null,null,null,null,"More than 20"]
[null,null,null,null,null,null,null,null,null,null,"Total",{"$f":"SUM(F172:L176)","v":0}]
[null,null,null,null,null,"Credit Risk Recovery Category 4"]
[null,null,null,null,"Tenor (years)","AAA","AA","A","BBB","BB","B","CCC-C"]
[null,null,null,null,"Upto 1"]
[null,null,null,null,"1.01 to 5"]
[null,null,null,null,"5.01 to 10"]
[null,null,null,null,"10.01 to 20"]
[null,null,null,null,"More than 20"]
[null,null,null,null,null,null,null,null,null,null,"Total",{"$f":"SUM(F180:L184)","v":0}]
["h"]
["h","  Unrated by S&P without credit quality assessment by third party, with BICRA available",null,null,null,null,null,null,null,null,null,null,null,null,null,"Section Total",{"$f":"SUM(L189,L199,L209,L219,L229,L239,L249,L259,L269,L279,L289,L299)","v":0}]
[null,null,null,null,null,null,null,null,null,null,null,null,null,null,"Comments"]
[null,null,null,"Credit Risk Recovery Category",{"$f":"Lists!$C$3","v":1},null,"Sector",{"$f":"Lists!$B$3","v":"Non-financial Corporates"},null,null,"Total",{"$f":"SUM(C192:M196)","v":0}]
[null,null,"Economic risk group"]
[null,"Tenor (years)",1,2,3,4,5,6,7,8,9,10,"NA"]
[null,"Upto 1"]
[null,"1.01 to 5"]
[null,"5.01 to 10"]
[null,"10.01 to 20"]
[null,"More than 20"]
[]
[]
[null,null,null,"Credit Risk Recovery Category",{"$f":"Lists!$C$4","v":2},null,"Sector",{"$f":"Lists!$B$3","v":"Non-financial Corporates"},null,null,"Total",{"$f":"SUM(C202:M206)","v":0}]
[null,null,"Economic risk group"]
[null,"Tenor (years)",1,2,3,4,5,6,7,8,9,10,"NA"]
[null,"Upto 1"]
[null,"1.01 to 5"]
[null,"5.01 to 10"]
[null,"10.01 to 20"]
[null,"More than 20"]
[]
[]
[null,null,null,"Credit Risk Recovery Category",{"$f":"Lists!$C$5","v":3},null,"Sector",{"$f":"Lists!$B$3","v":"Non-financial Corporates"},null,null,"Total",{"$f":"SUM(C212:M216)","v":0}]
[null,null,"Economic risk group"]
[null,"Tenor (years)",1,2,3,4,5,6,7,8,9,10,"NA"]
[null,"Upto 1"]
[null,"1.01 to 5"]
[null,"5.01 to 10"]
[null,"10.01 to 20"]
[null,"More than 20"]
[]
[]
[null,null,null,"Credit Risk Recovery Category",{"$f":"Lists!$C$3","v":1},null,"Sector",{"$f":"Lists!$B$4","v":"Financials"},null,null,"Total",{"$f":"SUM(C222:M226)","v":0}]
[null,null,"Economic risk group"]
[null,"Tenor (years)",1,2,3,4,5,6,7,8,9,10,"NA"]
[null,"Upto 1"]
[null,"1.01 to 5"]
[null,"5.01 to 10"]
[null,"10.01 to 20"]
[null,"More than 20"]
[]
[]
[null,null,null,"Credit Risk Recovery Category",{"$f":"Lists!$C$4","v":2},null,"Sector",{"$f":"Lists!$B$4","v":"Financials"},null,null,"Total",{"$f":"SUM(C232:M236)","v":0}]
[null,null,"Economic risk group"]
[null,"Tenor (years)",1,2,3,4,5,6,7,8,9,10,"NA"]
[null,"Upto 1"]
[null,"1.01 to 5"]
[null,"5.01 to 10"]
[null,"10.01 to 20"]
[null,"More than 20"]
[]
[]
[null,null,null,"Credit Risk Recovery Category",{"$f":"Lists!$C$5","v":3},null,"Sector",{"$f":"Lists!$B$4","v":"Financials"},null,null,"Total",{"$f":"SUM(C242:M246)","v":0}]
[null,null,"Economic risk group"]
[null,"Tenor (years)",1,2,3,4,5,6,7,8,9,10,"NA"]
[null,"Upto 1"]
[null,"1.01 to 5"]
[null,"5.01 to 10"]
[null,"10.01 to 20"]
[null,"More than 20"]
[]
[]
[null,null,null,"Credit Risk Recovery Category",{"$f":"Lists!$C$3","v":1},null,"Sector",{"$f":"Lists!$B$5","v":"Sovereign / Public Finance"},null,null,"Total",{"$f":"SUM(C252:M256)","v":0}]
[null,null,"Economic risk group"]
[null,"Tenor (years)",1,2,3,4,5,6,7,8,9,10,"NA"]
[null,"Upto 1"]
[null,"1.01 to 5"]
[null,"5.01 to 10"]
[null,"10.01 to 20"]
[null,"More than 20"]
[]
[]
[null,null,null,"Credit Risk Recovery Category",{"$f":"Lists!$C$4","v":2},null,"Sector",{"$f":"Lists!$B$5","v":"Sovereign / Public Finance"},null,null,"Total",{"$f":"SUM(C262:M266)","v":0}]
[null,null,"Economic risk group"]
[null,"Tenor (years)",1,2,3,4,5,6,7,8,9,10,"NA"]
[null,"Upto 1"]
[null,"1.01 to 5"]
[null,"5.01 to 10"]
[null,"10.01 to 20"]
[null,"More than 20"]
[]
[]
[null,null,null,"Credit Risk Recovery Category",{"$f":"Lists!$C$5","v":3},null,"Sector",{"$f":"Lists!$B$5","v":"Sovereign / Public Finance"},null,null,"Total",{"$f":"SUM(C272:M276)","v":0}]
[null,null,"Economic risk group"]
[null,"Tenor (years)",1,2,3,4,5,6,7,8,9,10,"NA"]
[null,"Upto 1"]
[null,"1.01 to 5"]
[null,"5.01 to 10"]
[null,"10.01 to 20"]
[null,"More than 20"]
[]
[]
[null,null,null,"Credit Risk Recovery Category",{"$f":"Lists!$C$6","v":4},null,"Sector",{"$f":"Lists!$B$6","v":"Structured Finance - Senior"},null,null,"Total",{"$f":"SUM(C282:M286)","v":0}]
[null,null,"Economic risk group"]
[null,"Tenor (years)",1,2,3,4,5,6,7,8,9,10,"NA"]
[null,"Upto 1"]
[null,"1.01 to 5"]
[null,"5.01 to 10"]
[null,"10.01 to 20"]
[null,"More than 20"]
[]
[]
[null,null,null,"Credit Risk Recovery Category",{"$f":"Lists!$C$6","v":4},null,"Sector",{"$f":"Lists!$B$7","v":"Structured Finance - Mezz."},null,null,"Total",{"$f":"SUM(C292:M296)","v":0}]
[null,null,"Economic risk group"]
[null,"Tenor (years)",1,2,3,4,5,6,7,8,9,10,"NA"]
[null,"Upto 1"]
[null,"1.01 to 5"]
[null,"5.01 to 10"]
[null,"10.01 to 20"]
[null,"More than 20"]
[]
[]
[null,null,null,"Credit Risk Recovery Category",{"$f":"Lists!$C$6","v":4},null,"Sector",{"$f":"Lists!$B$8","v":"Structured Finance - Junior"},null,null,"Total",{"$f":"SUM(C302:M306)","v":0}]
[null,null,"Economic risk group"]
[null,"Tenor (years)",1,2,3,4,5,6,7,8,9,10,"NA"]
[null,"Upto 1"]
[null,"1.01 to 5"]
[null,"5.01 to 10"]
[null,"10.01 to 20"]
[null,"More than 20"]
[]
[]
["h"," Adjustment to Economic Risk Group mapping"]
[null,null,null,null,null,null,null,null,null,null,null,null,null,null,"Comments"]
[null,null,"Economic risk group"]
[null,null,1,2,3,4,5,6,7,8,9,10,"Sector"]
[null,"Mapped rating category","BB","BB","BB","BB","BB","BB","BB","B","B","CCC",{"$f":"Lists!$B$3","v":"Non-financial Corporates"}]
[null,"Adjustment",0,0,0,0,0,0,0,0,0,0]
[null,"Adjusted rating bucket",{"$f":"IF(C313=\"\",\"\",INDEX(lov_rtg_categories,MIN(COUNTA(lov_rtg_categories),MAX(1,MATCH(C313,lov_erg_mapped_rtg,0)-C314))))","v":"BB"},{"$f":"IF(D313=\"\",\"\",INDEX(lov_rtg_categories,MIN(COUNTA(lov_rtg_categories),MAX(1,MATCH(D313,lov_erg_mapped_rtg,0)-D314))))","v":"BB"},{"$f":"IF(E313=\"\",\"\",INDEX(lov_rtg_categories,MIN(COUNTA(lov_rtg_categories),MAX(1,MATCH(E313,lov_erg_mapped_rtg,0)-E314))))","v":"BB"},{"$f":"IF(F313=\"\",\"\",INDEX(lov_rtg_categories,MIN(COUNTA(lov_rtg_categories),MAX(1,MATCH(F313,lov_erg_mapped_rtg,0)-F314))))","v":"BB"},{"$f":"IF(G313=\"\",\"\",INDEX(lov_rtg_categories,MIN(COUNTA(lov_rtg_categories),MAX(1,MATCH(G313,lov_erg_mapped_rtg,0)-G314))))","v":"BB"},{"$f":"IF(H313=\"\",\"\",INDEX(lov_rtg_categories,MIN(COUNTA(lov_rtg_categories),MAX(1,MATCH(H313,lov_erg_mapped_rtg,0)-H314))))","v":"BB"},{"$f":"IF(I313=\"\",\"\",INDEX(lov_rtg_categories,MIN(COUNTA(lov_rtg_categories),MAX(1,MATCH(I313,lov_erg_mapped_rtg,0)-I314))))","v":"BB"},{"$f":"IF(J313=\"\",\"\",INDEX(lov_rtg_categories,MIN(COUNTA(lov_rtg_categories),MAX(1,MATCH(J313,lov_erg_mapped_rtg,0)-J314))))","v":"B"},{"$f":"IF(K313=\"\",\"\",INDEX(lov_rtg_categories,MIN(COUNTA(lov_rtg_categories),MAX(1,MATCH(K313,lov_erg_mapped_rtg,0)-K314))))","v":"B"},{"$f":"IF(L313=\"\",\"\",INDEX(lov_rtg_categories,MIN(COUNTA(lov_rtg_categories),MAX(1,MATCH(L313,lov_erg_mapped_rtg,0)-L314))))","v":"CCC-C"}]
[]
[null,"Mapped rating category","BBB","BBB","BBB","BBB","BBB","BB","BB","B","B","CCC",{"$f":"Lists!$B$4","v":"Financials"}]
[null,"Adjustment",0,0,0,0,0,0,0,0,0,0]
[null,"Adjusted rating bucket",{"$f":"IF(C317=\"\",\"\",INDEX(lov_rtg_categories,MIN(COUNTA(lov_rtg_categories),MAX(1,MATCH(C317,lov_erg_mapped_rtg,0)-C318))))","v":"BBB"},{"$f":"IF(D317=\"\",\"\",INDEX(lov_rtg_categories,MIN(COUNTA(lov_rtg_categories),MAX(1,MATCH(D317,lov_erg_mapped_rtg,0)-D318))))","v":"BBB"},{"$f":"IF(E317=\"\",\"\",INDEX(lov_rtg_categories,MIN(COUNTA(lov_rtg_categories),MAX(1,MATCH(E317,lov_erg_mapped_rtg,0)-E318))))","v":"BBB"},{"$f":"IF(F317=\"\",\"\",INDEX(lov_rtg_categories,MIN(COUNTA(lov_rtg_categories),MAX(1,MATCH(F317,lov_erg_mapped_rtg,0)-F318))))","v":"BBB"},{"$f":"IF(G317=\"\",\"\",INDEX(lov_rtg_categories,MIN(COUNTA(lov_rtg_categories),MAX(1,MATCH(G317,lov_erg_mapped_rtg,0)-G318))))","v":"BBB"},{"$f":"IF(H317=\"\",\"\",INDEX(lov_rtg_categories,MIN(COUNTA(lov_rtg_categories),MAX(1,MATCH(H317,lov_erg_mapped_rtg,0)-H318))))","v":"BB"},{"$f":"IF(I317=\"\",\"\",INDEX(lov_rtg_categories,MIN(COUNTA(lov_rtg_categories),MAX(1,MATCH(I317,lov_erg_mapped_rtg,0)-I318))))","v":"BB"},{"$f":"IF(J317=\"\",\"\",INDEX(lov_rtg_categories,MIN(COUNTA(lov_rtg_categories),MAX(1,MATCH(J317,lov_erg_mapped_rtg,0)-J318))))","v":"B"},{"$f":"IF(K317=\"\",\"\",INDEX(lov_rtg_categories,MIN(COUNTA(lov_rtg_categories),MAX(1,MATCH(K317,lov_erg_mapped_rtg,0)-K318))))","v":"B"},{"$f":"IF(L317=\"\",\"\",INDEX(lov_rtg_categories,MIN(COUNTA(lov_rtg_categories),MAX(1,MATCH(L317,lov_erg_mapped_rtg,0)-L318))))","v":"CCC-C"}]
[]
[null,"Mapped rating category","A","A","A","A","BBB","BBB","BB","B","B","CCC",{"$f":"Lists!$B$5","v":"Sovereign / Public Finance"}]
[null,"Adjustment",0,0,0,0,0,0,0,0,0,0]
[null,"Adjusted rating bucket",{"$f":"IF(C321=\"\",\"\",INDEX(lov_rtg_categories,MIN(COUNTA(lov_rtg_categories),MAX(1,MATCH(C321,lov_erg_mapped_rtg,0)-C322))))","v":"A"},{"$f":"IF(D321=\"\",\"\",INDEX(lov_rtg_categories,MIN(COUNTA(lov_rtg_categories),MAX(1,MATCH(D321,lov_erg_mapped_rtg,0)-D322))))","v":"A"},{"$f":"IF(E321=\"\",\"\",INDEX(lov_rtg_categories,MIN(COUNTA(lov_rtg_categories),MAX(1,MATCH(E321,lov_erg_mapped_rtg,0)-E322))))","v":"A"},{"$f":"IF(F321=\"\",\"\",INDEX(lov_rtg_categories,MIN(COUNTA(lov_rtg_categories),MAX(1,MATCH(F321,lov_erg_mapped_rtg,0)-F322))))","v":"A"},{"$f":"IF(G321=\"\",\"\",INDEX(lov_rtg_categories,MIN(COUNTA(lov_rtg_categories),MAX(1,MATCH(G321,lov_erg_mapped_rtg,0)-G322))))","v":"BBB"},{"$f":"IF(H321=\"\",\"\",INDEX(lov_rtg_categories,MIN(COUNTA(lov_rtg_categories),MAX(1,MATCH(H321,lov_erg_mapped_rtg,0)-H322))))","v":"BBB"},{"$f":"IF(I321=\"\",\"\",INDEX(lov_rtg_categories,MIN(COUNTA(lov_rtg_categories),MAX(1,MATCH(I321,lov_erg_mapped_rtg,0)-I322))))","v":"BB"},{"$f":"IF(J321=\"\",\"\",INDEX(lov_rtg_categories,MIN(COUNTA(lov_rtg_categories),MAX(1,MATCH(J321,lov_erg_mapped_rtg,0)-J322))))","v":"B"},{"$f":"IF(K321=\"\",\"\",INDEX(lov_rtg_categories,MIN(COUNTA(lov_rtg_categories),MAX(1,MATCH(K321,lov_erg_mapped_rtg,0)-K322))))","v":"B"},{"$f":"IF(L321=\"\",\"\",INDEX(lov_rtg_categories,MIN(COUNTA(lov_rtg_categories),MAX(1,MATCH(L321,lov_erg_mapped_rtg,0)-L322))))","v":"CCC-C"}]
[]
[null,"Mapped rating category","BBB","BBB","BBB","BBB","BBB","BBB","BB","B","B","CCC",{"$f":"Lists!$B$6","v":"Structured Finance - Senior"}]
[null,"Adjustment",0,0,0,0,0,0,0,0,0,0]
[null,"Adjusted rating bucket",{"$f":"IF(C325=\"\",\"\",INDEX(lov_rtg_categories,MIN(COUNTA(lov_rtg_categories),MAX(1,MATCH(C325,lov_erg_mapped_rtg,0)-C326))))","v":"BBB"},{"$f":"IF(D325=\"\",\"\",INDEX(lov_rtg_categories,MIN(COUNTA(lov_rtg_categories),MAX(1,MATCH(D325,lov_erg_mapped_rtg,0)-D326))))","v":"BBB"},{"$f":"IF(E325=\"\",\"\",INDEX(lov_rtg_categories,MIN(COUNTA(lov_rtg_categories),MAX(1,MATCH(E325,lov_erg_mapped_rtg,0)-E326))))","v":"BBB"},{"$f":"IF(F325=\"\",\"\",INDEX(lov_rtg_categories,MIN(COUNTA(lov_rtg_categories),MAX(1,MATCH(F325,lov_erg_mapped_rtg,0)-F326))))","v":"BBB"},{"$f":"IF(G325=\"\",\"\",INDEX(lov_rtg_categories,MIN(COUNTA(lov_rtg_categories),MAX(1,MATCH(G325,lov_erg_mapped_rtg,0)-G326))))","v":"BBB"},{"$f":"IF(H325=\"\",\"\",INDEX(lov_rtg_categories,MIN(COUNTA(lov_rtg_categories),MAX(1,MATCH(H325,lov_erg_mapped_rtg,0)-H326))))","v":"BBB"},{"$f":"IF(I325=\"\",\"\",INDEX(lov_rtg_categories,MIN(COUNTA(lov_rtg_categories),MAX(1,MATCH(I325,lov_erg_mapped_rtg,0)-I326))))","v":"BB"},{"$f":"IF(J325=\"\",\"\",INDEX(lov_rtg_categories,MIN(COUNTA(lov_rtg_categories),MAX(1,MATCH(J325,lov_erg_mapped_rtg,0)-J326))))","v":"B"},{"$f":"IF(K325=\"\",\"\",INDEX(lov_rtg_categories,MIN(COUNTA(lov_rtg_categories),MAX(1,MATCH(K325,lov_erg_mapped_rtg,0)-K326))))","v":"B"},{"$f":"IF(L325=\"\",\"\",INDEX(lov_rtg_categories,MIN(COUNTA(lov_rtg_categories),MAX(1,MATCH(L325,lov_erg_mapped_rtg,0)-L326))))","v":"CCC-C"}]
[]
[null,"Mapped rating category","BB","BB","BB","BB","BB","BB","B","CCC","CCC","CCC",{"$f":"Lists!$B$7","v":"Structured Finance - Mezz."}]
[null,"Adjustment",0,0,0,0,0,0,0,0,0,0]
[null,"Adjusted rating bucket",{"$f":"IF(C329=\"\",\"\",INDEX(lov_rtg_categories,MIN(COUNTA(lov_rtg_categories),MAX(1,MATCH(C329,lov_erg_mapped_rtg,0)-C330))))","v":"BB"},{"$f":"IF(D329=\"\",\"\",INDEX(lov_rtg_categories,MIN(COUNTA(lov_rtg_categories),MAX(1,MATCH(D329,lov_erg_mapped_rtg,0)-D330))))","v":"BB"},{"$f":"IF(E329=\"\",\"\",INDEX(lov_rtg_categories,MIN(COUNTA(lov_rtg_categories),MAX(1,MATCH(E329,lov_erg_mapped_rtg,0)-E330))))","v":"BB"},{"$f":"IF(F329=\"\",\"\",INDEX(lov_rtg_categories,MIN(COUNTA(lov_rtg_categories),MAX(1,MATCH(F329,lov_erg_mapped_rtg,0)-F330))))","v":"BB"},{"$f":"IF(G329=\"\",\"\",INDEX(lov_rtg_categories,MIN(COUNTA(lov_rtg_categories),MAX(1,MATCH(G329,lov_erg_mapped_rtg,0)-G330))))","v":"BB"},{"$f":"IF(H329=\"\",\"\",INDEX(lov_rtg_categories,MIN(COUNTA(lov_rtg_categories),MAX(1,MATCH(H329,lov_erg_mapped_rtg,0)-H330))))","v":"BB"},{"$f":"IF(I329=\"\",\"\",INDEX(lov_rtg_categories,MIN(COUNTA(lov_rtg_categories),MAX(1,MATCH(I329,lov_erg_mapped_rtg,0)-I330))))","v":"B"},{"$f":"IF(J329=\"\",\"\",INDEX(lov_rtg_categories,MIN(COUNTA(lov_rtg_categories),MAX(1,MATCH(J329,lov_erg_mapped_rtg,0)-J330))))","v":"CCC-C"},{"$f":"IF(K329=\"\",\"\",INDEX(lov_rtg_categories,MIN(COUNTA(lov_rtg_categories),MAX(1,MATCH(K329,lov_erg_mapped_rtg,0)-K330))))","v":"CCC-C"},{"$f":"IF(L329=\"\",\"\",INDEX(lov_rtg_categories,MIN(COUNTA(lov_rtg_categories),MAX(1,MATCH(L329,lov_erg_mapped_rtg,0)-L330))))","v":"CCC-C"}]
[]
[null,"Mapped rating category","CCC","CCC","CCC","CCC","CCC","CCC","CCC","CCC","CCC","CCC",{"$f":"Lists!$B$8","v":"Structured Finance - Junior"}]
[null,"Adjustment",0,0,0,0,0,0,0,0,0,0]
[null,"Adjusted rating bucket",{"$f":"IF(C333=\"\",\"\",INDEX(lov_rtg_categories,MIN(COUNTA(lov_rtg_categories),MAX(1,MATCH(C333,lov_erg_mapped_rtg,0)-C334))))","v":"CCC-C"},{"$f":"IF(D333=\"\",\"\",INDEX(lov_rtg_categories,MIN(COUNTA(lov_rtg_categories),MAX(1,MATCH(D333,lov_erg_mapped_rtg,0)-D334))))","v":"CCC-C"},{"$f":"IF(E333=\"\",\"\",INDEX(lov_rtg_categories,MIN(COUNTA(lov_rtg_categories),MAX(1,MATCH(E333,lov_erg_mapped_rtg,0)-E334))))","v":"CCC-C"},{"$f":"IF(F333=\"\",\"\",INDEX(lov_rtg_categories,MIN(COUNTA(lov_rtg_categories),MAX(1,MATCH(F333,lov_erg_mapped_rtg,0)-F334))))","v":"CCC-C"},{"$f":"IF(G333=\"\",\"\",INDEX(lov_rtg_categories,MIN(COUNTA(lov_rtg_categories),MAX(1,MATCH(G333,lov_erg_mapped_rtg,0)-G334))))","v":"CCC-C"},{"$f":"IF(H333=\"\",\"\",INDEX(lov_rtg_categories,MIN(COUNTA(lov_rtg_categories),MAX(1,MATCH(H333,lov_erg_mapped_rtg,0)-H334))))","v":"CCC-C"},{"$f":"IF(I333=\"\",\"\",INDEX(lov_rtg_categories,MIN(COUNTA(lov_rtg_categories),MAX(1,MATCH(I333,lov_erg_mapped_rtg,0)-I334))))","v":"CCC-C"},{"$f":"IF(J333=\"\",\"\",INDEX(lov_rtg_categories,MIN(COUNTA(lov_rtg_categories),MAX(1,MATCH(J333,lov_erg_mapped_rtg,0)-J334))))","v":"CCC-C"},{"$f":"IF(K333=\"\",\"\",INDEX(lov_rtg_categories,MIN(COUNTA(lov_rtg_categories),MAX(1,MATCH(K333,lov_erg_mapped_rtg,0)-K334))))","v":"CCC-C"},{"$f":"IF(L333=\"\",\"\",INDEX(lov_rtg_categories,MIN(COUNTA(lov_rtg_categories),MAX(1,MATCH(L333,lov_erg_mapped_rtg,0)-L334))))","v":"CCC-C"}]
[]
["h"]
["h",null,null,null,null,null,null,null,null,null,null,null,null,null,null,null,null,null,null,{"$f":"Q78-F340","v":0}]
[null,null,null,null,null,null,null,null,null,null,null,null,null,null,null,null,null,null,null,{"$f":"IF(F340=0,0,ABS(T338/F340))","v":0}]
[null,null,null,null,"Total Bonds & Loans",null,null,null,null,null,null,null,null,null,null,null,null,null,{"$f":"IF(T340>Error_Check_Precision,1,0)","v":0},{"$f":"IF(OR(F340=0,ISERROR(T339)),0,T339)","v":0}]
[]
["h"]
["h","  Equity holdings",null,null,null,null,null,{"$f":"IF(S351=1,Error_Message & \" Total invested equity difference = \" & TEXT(T349, \"#,##0.00\"),IF(S348=1,Error_Message & \" Listed associates & joint ventures difference = \" & TEXT(T346, \"#,##0.00\"),\"\"))","v":""},null,null,null,null,null,null,null,"Section Total",{"$f":"SUM(F346:I349,L346:L347)","v":0}]
[null,null,null,null,null,null,null,null,null,null,null,null,null,null,"Comments"]
[null,null,null,null,"Equity Market Group","Listed","Unlisted","Investment in associates and joint ventures (Listed)","Investment in associates and joint ventures (Unlisted)",null,null,"Infrastructure"]
[null,null,null,null,"Group 1",null,null,null,null,null,"Category 1",null,null,null,null,null,null,null,null,{"$f":"SUM(H346:H349)-F33","v":0}]
[null,null,null,null,"Group 2",null,null,null,null,null,"Category 2",null,null,null,null,null,null,null,null,{"$f":"IF(F33=0,0,ABS(T346/F33))","v":0}]
[null,null,null,null,"Group 3",null,null,null,null,null,null,null,null,null,null,null,null,null,{"$f":"IF(T348>Error_Check_Precision,1,0)","v":0},{"$f":"IF(OR(F33=0,ISERROR(T347)),0,T347)","v":0}]
[null,null,null,null,"Group 4",null,null,null,null,null,null,null,null,null,null,null,null,null,null,{"$f":"SUM(F346:G349,L346:L347)-F351","v":0}]
[null,null,null,null,null,null,null,null,null,null,null,null,null,null,null,null,null,null,null,{"$f":"IF(F351=0,0,ABS(T349/F351))","v":0}]
[null,null,null,null,"Total Equity",null,null,null,null,null,"Unrealized gains/losses on listed Investment in associates and joint ventures",{"$f":"IF(OR(ISBLANK(Input!F33), ISBLANK(Input!F34)), 0, (Input!F33-Input!F34))","v":0},null,null,null,null,null,null,{"$f":"IF(T351>Error_Check_Precision,1,0)","v":0},{"$f":"IF(OR(F351=0,ISERROR(T350)),0,T350)","v":0}]
[]
["h"]
["h","  Real Estate holdings",null,null,null,null,null,{"$f":"IF(S362=1,Error_Message & \" Difference = \" & TEXT(T360, \"#,##0.00\"),\"\")","v":""},null,null,null,null,null,null,null,"Section Total",{"$f":"SUM(F357:G360)","v":0}]
[null,null,null,null,null,null,null,null,null,null,null,null,null,null,"Comments"]
[null,null,null,null,"Real estate group","Real Estate Investment ","Owner \nOccupied"]
[null,null,null,null,"Group 1"]
[null,null,null,null,"Group 2"]
[null,null,null,null,"Group 3"]
[null,null,null,null,"Group 4",null,null,null,null,null,null,null,null,null,null,null,null,null,null,{"$f":"Q354-F362","v":0}]
[null,null,null,null,null,null,null,null,null,null,null,null,null,null,null,null,null,null,null,{"$f":"IF(F362=0,0,ABS(T360/F362))","v":0}]
[null,null,null,null,"Total Real Estate",null,null,null,null,null,null,null,null,null,null,null,null,null,{"$f":"IF(T362>Error_Check_Precision,1,0)","v":0},{"$f":"IF(OR(F362=0,ISERROR(T361)),0,T361)","v":0}]
[]
["h"]
["h","  Other Invested Assets",null,null,null,null,null,{"$f":"IF(S392=1, \"ERROR - Check inputs for all invested assets. Difference = \" & TEXT(T390, \"#,##0.00\"),\"\")","v":""},null,null,null,null,null,null,null,"Section Total",{"$f":"total_other_invested_assets","v":0}]
[null,null,null,null,null,null,null,null,null,null,null,null,null,null,"Comments"]
[null,null,null,"Commercial Mortgage Loans"]
[null,null,null,null,null,"In good standing",null,null,"Delinquent","In process of foreclosure","Construction Loans"]
[null,null,null,null,null,"Debt Service Coverage Ratio"]
[null,null,null,null,null,"> 1.4x","1.1x to 1.4x","< 1.1x"]
[null,null,null,"LTV (%)","< 60"]
[null,null,null,null,"60-80"]
[null,null,null,null,">80"]
[]
[null,null,null,"Residential Mortgage Loans"]
[null,null,null,null,null,"Performing","Non-performing"]
[null,null,null,"LTV (%)","< 60"]
[null,null,null,null,"60-80"]
[null,null,null,null,">80"]
[]
[null,null,null,"Non-mortgage"]
[null,null,null,null,"OTC Derivatives"]
[]
[null,null,null,null,"Deposits with credit institutions"]
[null,null,null,null,"  A- or higher"]
[null,null,null,null,"  BBB"]
[null,null,null,null,"  BB  or B"]
[null,null,null,null,"CCC+  or lower"]
[]
[null,null,null,null,"Deposits with cedents",null,null,null,null,null,null,null,null,null,null,null,null,null,null,{"$f":"total_invested_assets-F392","v":0}]
[null,null,null,null,null,null,null,null,null,null,null,null,null,null,null,null,null,null,null,{"$f":"IF(F392=0,0,ABS(T390/F392))","v":0}]
[null,null,null,null,"Total invested assets",null,null,null,"Input Total Invested assets",{"$f":"total_bonds+total_equity+total_property+total_other_invested_assets-SUM(H346:I349)","v":0},null,null,null,null,null,null,null,null,{"$f":"IF(T392>Error_Check_Precision,1,0)","v":0},{"$f":"IF(OR(F392=0,ISERROR(T391)),0,T391)","v":0}]
[]
["h"]
["h","  Non-invested Assets",null,null,null,null,null,null,null,null,null,null,null,null,null,"Section Total",{"$f":"total_net_reinsurance_recoverables+SUM(F420:F424,F427:F428)","v":0}]
[null,null,null,null,null,null,null,null,null,null,null,null,null,null,"Comments"]
[null,null,null,"Reinsurance recoverable and receivables"]
[null,null,null,null,"Reinsurer Rating (based on S&P)","Reinsurance receivables","Reinsurance recoverables on outstanding loss reserves","Letters of credit and reinsurance deposits held as security against reinsurance recoverables  ","Net exposure"]
[null,null,null,null,"AAA",null,null,null,{"$f":"F399+G399-H399","v":0}]
[null,null,null,null,"AA",null,null,null,{"$f":"F400+G400-H400","v":0}]
[null,null,null,null,"A",null,null,null,0]
[null,null,null,null,"BBB",null,null,null,0]
[null,null,null,null,"BB",null,null,null,0]
[null,null,null,null,"B",null,null,null,0]
[null,null,null,null,"CCC",null,null,null,0]
[null,null,null,null,"D",null,null,null,0]
[]
[null,null,null,null,"For Reinsurer Unrated by S&P"]
[null,null,null,null,"Reinsurer Rating (Not rated by S&P)","Reinsurance receivables","Reinsurance recoverables on outstanding loss reserves","Letters of credit and reinsurance deposits held as security against reinsurance recoverables  ","Net exposure"]
[null,null,null,null,"AAA",null,null,null,{"$f":"F410+G410-H410","v":0}]
[null,null,null,null,"AA",null,null,null,{"$f":"F411+G411-H411","v":0}]
[null,null,null,null,"A",null,null,null,0]
[null,null,null,null,"BBB",null,null,null,0]
[null,null,null,null,"BB",null,null,null,0]
[null,null,null,null,"B",null,null,null,0]
[null,null,null,null,"CCC",null,null,null,0]
[null,null,null,null,"D",null,null,null,0]
[]
[null,null,null,"Other Chargeable Assets"]
[null,null,null,null,"Insurance Receivables"]
[null,null,null,null,"Leases"]
[null,null,null,null,"ASO/ASC Receivables"]
[null,null,null,null,"Other"]
[null,null,null,"Other Assets"]
[]
[null,null,null,"Non-chargeable Assets"]
[null,null,null,null,"Deferred Tax Assets"]
[null,null,null,null,"Exempt Assets"]
[]
["h",null,null,null,null,null,null,null,null,null,null,null,null,null,null,null,null,null,null,{"$f":"Q77-F432","v":0}]
[null,null,null,null,null,null,null,null,null,null,null,null,null,null,"Comments",null,null,null,null,{"$f":"IF(F432=0,0,ABS(T430/F432))","v":0}]
[null,null,null,null,"Total balance sheet assets",null,null,null,null,null,null,null,null,null,null,null,null,null,{"$f":"IF(T432>Error_Check_Precision,1,0)","v":0},{"$f":"IF(OR(F432=0,ISERROR(T431)),0,T431)","v":0}]
[]
["h"]
["h"," Liabilities"]
["h","  Non-Life Technical Risks"]
["h","    Premium Risk (net of reinsurance)",null,null,null,null,null,{"$f":"IF(S568=1,Error_Message & \" Difference = \" & TEXT(T566, \"#,##0.00\"),IF(S569=1, Error_Message  & \" If Nat Cat premium estimate in \" & CELL(\"address\",I568) & \" is positive, it should be removed from premium risk exposure\",\"\"))","v":""},null,null,null,null,null,null,null,"Section Total",{"$f":"SUM(F441:F557,G441:G557)","v":0}]
[null,null,null,null,null,null,null,null,null,null,null,null,null,null,"Comments"]
[null,null,null,null,null,"Primary and proportional reinsurance business","Non-proportional reinsurance (treaty and facultative)"]
[null,null,null,null,null,"EMEA Risks"]
["h",null,null,null,{"$f":"'Non-Life Risk'!T47","v":"General liability"},null,null,{"$f":"'Non-Life Risk'!$U47","v":"Liability"}]
["h",null,null,null,{"$f":"'Non-Life Risk'!T48","v":"Workers compensation"},null,null,{"$f":"'Non-Life Risk'!$U48","v":"Liability"}]
["h",null,null,null,{"$f":"'Non-Life Risk'!T49","v":"Fire & other damage to property"},null,null,{"$f":"'Non-Life Risk'!$U49","v":"Property"}]
["h",null,null,null,{"$f":"'Non-Life Risk'!T50","v":"Motor vehicle liability"},null,null,{"$f":"'Non-Life Risk'!$U50","v":"Motor"}]
["h",null,null,null,{"$f":"'Non-Life Risk'!T51","v":"Other motor"},null,null,{"$f":"'Non-Life Risk'!$U51","v":"Motor"}]
["h",null,null,null,{"$f":"'Non-Life Risk'!T52","v":"Credit & suretyship "},null,null,{"$f":"'Non-Life Risk'!$U52","v":"Financial"}]
["h",null,null,null,{"$f":"'Non-Life Risk'!T53","v":"Miscellaneous financial loss"},null,null,{"$f":"'Non-Life Risk'!$U53","v":"Financial"}]
["h",null,null,null,{"$f":"'Non-Life Risk'!T54","v":"Health & medical expense insurance"},null,null,{"$f":"'Non-Life Risk'!$U54","v":"Health"}]
["h",null,null,null,{"$f":"'Non-Life Risk'!T55","v":"Marine, aviation and transport"},null,null,{"$f":"'Non-Life Risk'!$U55","v":"MAT"}]
["h",null,null,null,{"$f":"'Non-Life Risk'!T56","v":"Marine protection & indemnity"},null,null,{"$f":"'Non-Life Risk'!$U56","v":"MAT"}]
["h",null,null,null,{"$f":"'Non-Life Risk'!T57","v":"Assistance"},null,null,{"$f":"'Non-Life Risk'!$U57","v":"Other"}]
["h",null,null,null,{"$f":"'Non-Life Risk'!T58","v":"Income protection"},null,null,{"$f":"'Non-Life Risk'!$U58","v":"Other"}]
["h",null,null,null,{"$f":"'Non-Life Risk'!T59","v":"Legal expense"},null,null,{"$f":"'Non-Life Risk'!$U59","v":"Other"}]
["h",null,null,null,{"$f":"'Non-Life Risk'!T60","v":"Other"},null,null,{"$f":"'Non-Life Risk'!$U60","v":"Other"}]
["h",null,null,null,null,"US Risks"]
["h",null,null,null,{"$f":"'Non-Life Risk'!T62","v":"Excess workers compensation"},null,null,{"$f":"'Non-Life Risk'!$U62","v":"Liability"}]
["h",null,null,null,{"$f":"'Non-Life Risk'!T63","v":"Medical malpractice - claims made"},null,null,{"$f":"'Non-Life Risk'!$U63","v":"Liability"}]
["h",null,null,null,{"$f":"'Non-Life Risk'!T64","v":"Medical malpractice - occurrence"},null,null,{"$f":"'Non-Life Risk'!$U64","v":"Liability"}]
["h",null,null,null,{"$f":"'Non-Life Risk'!T65","v":"Other liability - claims made"},null,null,{"$f":"'Non-Life Risk'!$U65","v":"Liability"}]
["h",null,null,null,{"$f":"'Non-Life Risk'!T66","v":"Other liability - occurrence"},null,null,{"$f":"'Non-Life Risk'!$U66","v":"Liability"}]
["h",null,null,null,{"$f":"'Non-Life Risk'!T67","v":"Product liability - claims made"},null,null,{"$f":"'Non-Life Risk'!$U67","v":"Liability"}]
["h",null,null,null,{"$f":"'Non-Life Risk'!T68","v":"Product liability - occurrence"},null,null,{"$f":"'Non-Life Risk'!$U68","v":"Liability"}]
["h",null,null,null,{"$f":"'Non-Life Risk'!T69","v":"Workers compensation"},null,null,{"$f":"'Non-Life Risk'!$U69","v":"Liability"}]
["h",null,null,null,{"$f":"'Non-Life Risk'!T70","v":"Boiler & machinery"},null,null,{"$f":"'Non-Life Risk'!$U70","v":"Property"}]
["h",null,null,null,{"$f":"'Non-Life Risk'!T71","v":"Commercial multi-peril"},null,null,{"$f":"'Non-Life Risk'!$U71","v":"Property"}]
["h",null,null,null,{"$f":"'Non-Life Risk'!T72","v":"Homeowner/Farmowner multi-peril"},null,null,{"$f":"'Non-Life Risk'!$U72","v":"Property"}]
["h",null,null,null,{"$f":"'Non-Life Risk'!T73","v":"Special property (fire, allied lines, inland marine, earthquake, burglary and theft)"},null,null,{"$f":"'Non-Life Risk'!$U73","v":"Property"}]
["h",null,null,null,{"$f":"'Non-Life Risk'!T74","v":"Auto physical damage"},null,null,{"$f":"'Non-Life Risk'!$U74","v":"Motor"}]
["h",null,null,null,{"$f":"'Non-Life Risk'!T75","v":"Commercial auto liability"},null,null,{"$f":"'Non-Life Risk'!$U75","v":"Motor"}]
["h",null,null,null,{"$f":"'Non-Life Risk'!T76","v":"Private passenger auto liability"},null,null,{"$f":"'Non-Life Risk'!$U76","v":"Motor"}]
["h",null,null,null,{"$f":"'Non-Life Risk'!T77","v":"Credit"},null,null,{"$f":"'Non-Life Risk'!$U77","v":"Financial"}]
["h",null,null,null,{"$f":"'Non-Life Risk'!T78","v":"Fidelity/Surety"},null,null,{"$f":"'Non-Life Risk'!$U78","v":"Financial"}]
["h",null,null,null,{"$f":"'Non-Life Risk'!T79","v":"Financial guaranty "},null,null,{"$f":"'Non-Life Risk'!$U79","v":"Financial"}]
["h",null,null,null,{"$f":"'Non-Life Risk'!T80","v":"A&H stop loss reinsurance"},null,null,{"$f":"'Non-Life Risk'!$U80","v":"Health"}]
["h",null,null,null,{"$f":"'Non-Life Risk'!T81","v":"Accident & health"},null,null,{"$f":"'Non-Life Risk'!$U81","v":"Health"}]
["h",null,null,null,{"$f":"'Non-Life Risk'!T82","v":"Administrative services only/administrative services contract"},null,null,{"$f":"'Non-Life Risk'!$U82","v":"Health"}]
["h",null,null,null,{"$f":"'Non-Life Risk'!T83","v":"Full risk and experience rated group and individual health"},null,null,{"$f":"'Non-Life Risk'!$U83","v":"Health"}]
["h",null,null,null,{"$f":"'Non-Life Risk'!T84","v":"Dental and vision"},null,null,{"$f":"'Non-Life Risk'!$U84","v":"Health"}]
["h",null,null,null,{"$f":"'Non-Life Risk'!T85","v":"Federal employee health benefit program"},null,null,{"$f":"'Non-Life Risk'!$U85","v":"Health"}]
["h",null,null,null,{"$f":"'Non-Life Risk'!T86","v":"Hospital indemnity, accidental death & dismemberment, specified disease, and other limited benefits"},null,null,{"$f":"'Non-Life Risk'!$U86","v":"Health"}]
["h",null,null,null,{"$f":"'Non-Life Risk'!T87","v":"Medicare and Medicaid"},null,null,{"$f":"'Non-Life Risk'!$U87","v":"Health"}]
["h",null,null,null,{"$f":"'Non-Life Risk'!T88","v":"Medicare Part D (all other)"},null,null,{"$f":"'Non-Life Risk'!$U88","v":"Health"}]
["h",null,null,null,{"$f":"'Non-Life Risk'!T89","v":"Medicare Part D (risk corridor only)"},null,null,{"$f":"'Non-Life Risk'!$U89","v":"Health"}]
["h",null,null,null,{"$f":"'Non-Life Risk'!T90","v":"Medicare Part D (risk corridor and reinsurance)"},null,null,{"$f":"'Non-Life Risk'!$U90","v":"Health"}]
["h",null,null,null,{"$f":"'Non-Life Risk'!T91","v":"Medicare supplemental"},null,null,{"$f":"'Non-Life Risk'!$U91","v":"Health"}]
["h",null,null,null,{"$f":"'Non-Life Risk'!T92","v":"Other health"},null,null,{"$f":"'Non-Life Risk'!$U92","v":"Health"}]
["h",null,null,null,{"$f":"'Non-Life Risk'!T93","v":"Aircraft"},null,null,{"$f":"'Non-Life Risk'!$U93","v":"MAT"}]
["h",null,null,null,{"$f":"'Non-Life Risk'!T94","v":"Marine protection & indemnity"},null,null,{"$f":"'Non-Life Risk'!$U94","v":"MAT"}]
["h",null,null,null,{"$f":"'Non-Life Risk'!T95","v":"Ocean marine"},null,null,{"$f":"'Non-Life Risk'!$U95","v":"MAT"}]
["h",null,null,null,{"$f":"'Non-Life Risk'!T96","v":"Title"},null,null,{"$f":"'Non-Life Risk'!$U96","v":"Other"}]
["h",null,null,null,{"$f":"'Non-Life Risk'!T97","v":"Warranty"},null,null,{"$f":"'Non-Life Risk'!$U97","v":"Other"}]
["h",null,null,null,{"$f":"'Non-Life Risk'!T98","v":"Other"},null,null,{"$f":"'Non-Life Risk'!$U98","v":"Other"}]
["h",null,null,null,null,"Canadian Risks"]
["h",null,null,null,{"$f":"'Non-Life Risk'!T100","v":"Liability"},null,null,{"$f":"'Non-Life Risk'!$U100","v":"Liability"}]
["h",null,null,null,{"$f":"'Non-Life Risk'!T101","v":"Boiler & machinery"},null,null,{"$f":"'Non-Life Risk'!$U101","v":"Property"}]
["h",null,null,null,{"$f":"'Non-Life Risk'!T102","v":"Commercial property"},null,null,{"$f":"'Non-Life Risk'!$U102","v":"Property"}]
["h",null,null,null,{"$f":"'Non-Life Risk'!T103","v":"Hail"},null,null,{"$f":"'Non-Life Risk'!$U103","v":"Property"}]
["h",null,null,null,{"$f":"'Non-Life Risk'!T104","v":"Personal property"},null,null,{"$f":"'Non-Life Risk'!$U104","v":"Property"}]
["h",null,null,null,{"$f":"'Non-Life Risk'!T105","v":"Auto - liability"},null,null,{"$f":"'Non-Life Risk'!$U105","v":"Motor"}]
["h",null,null,null,{"$f":"'Non-Life Risk'!T106","v":"Auto - other"},null,null,{"$f":"'Non-Life Risk'!$U106","v":"Motor"}]
["h",null,null,null,{"$f":"'Non-Life Risk'!T107","v":"Auto - personal accident"},null,null,{"$f":"'Non-Life Risk'!$U107","v":"Motor"}]
["h",null,null,null,{"$f":"'Non-Life Risk'!T108","v":"Credit"},null,null,{"$f":"'Non-Life Risk'!$U108","v":"Financial"}]
["h",null,null,null,{"$f":"'Non-Life Risk'!T109","v":"Credit protection"},null,null,{"$f":"'Non-Life Risk'!$U109","v":"Financial"}]
["h",null,null,null,{"$f":"'Non-Life Risk'!T110","v":"Fidelity"},null,null,{"$f":"'Non-Life Risk'!$U110","v":"Financial"}]
["h",null,null,null,{"$f":"'Non-Life Risk'!T111","v":"Surety"},null,null,{"$f":"'Non-Life Risk'!$U111","v":"Financial"}]
["h",null,null,null,{"$f":"'Non-Life Risk'!T112","v":"Accident & sickness (excluding supplementary health, disability income)"},null,null,{"$f":"'Non-Life Risk'!$U112","v":"Health"}]
["h",null,null,null,{"$f":"'Non-Life Risk'!T113","v":"Supplementary health"},null,null,{"$f":"'Non-Life Risk'!$U113","v":"Health"}]
["h",null,null,null,{"$f":"'Non-Life Risk'!T114","v":"Aircraft"},null,null,{"$f":"'Non-Life Risk'!$U114","v":"MAT"}]
["h",null,null,null,{"$f":"'Non-Life Risk'!T115","v":"Marine"},null,null,{"$f":"'Non-Life Risk'!$U115","v":"MAT"}]
["h",null,null,null,{"$f":"'Non-Life Risk'!T116","v":"Marine protection & indemnity"},null,null,{"$f":"'Non-Life Risk'!$U116","v":"MAT"}]
["h",null,null,null,{"$f":"'Non-Life Risk'!T117","v":"Legal expense"},null,null,{"$f":"'Non-Life Risk'!$U117","v":"Other"}]
["h",null,null,null,{"$f":"'Non-Life Risk'!T118","v":"Other approved products"},null,null,{"$f":"'Non-Life Risk'!$U118","v":"Other"}]
["h",null,null,null,{"$f":"'Non-Life Risk'!T119","v":"Title"},null,null,{"$f":"'Non-Life Risk'!$U119","v":"Other"}]
["h",null,null,null,{"$f":"'Non-Life Risk'!T120","v":"Warranty"},null,null,{"$f":"'Non-Life Risk'!$U120","v":"Other"}]
["h",null,null,null,{"$f":"'Non-Life Risk'!T121","v":"Other"},null,null,{"$f":"'Non-Life Risk'!$U121","v":"Other"}]
["h",null,null,null,null,"Asia-Pacific Risks"]
["h",null,null,null,{"$f":"'Non-Life Risk'!T123","v":"Employers liability"},null,null,{"$f":"'Non-Life Risk'!$U123","v":"Liability"}]
["h",null,null,null,{"$f":"'Non-Life Risk'!T124","v":"General liability"},null,null,{"$f":"'Non-Life Risk'!$U124","v":"Liability"}]
["h",null,null,null,{"$f":"'Non-Life Risk'!T125","v":"Professional indemnity"},null,null,{"$f":"'Non-Life Risk'!$U125","v":"Liability"}]
["h",null,null,null,{"$f":"'Non-Life Risk'!T126","v":"Public and product liability"},null,null,{"$f":"'Non-Life Risk'!$U126","v":"Liability"}]
["h",null,null,null,{"$f":"'Non-Life Risk'!T127","v":"Commercial property"},null,null,{"$f":"'Non-Life Risk'!$U127","v":"Property"}]
["h",null,null,null,{"$f":"'Non-Life Risk'!T128","v":"Domestic property"},null,null,{"$f":"'Non-Life Risk'!$U128","v":"Property"}]
["h",null,null,null,{"$f":"'Non-Life Risk'!T129","v":"Engineering"},null,null,{"$f":"'Non-Life Risk'!$U129","v":"Property"}]
["h",null,null,null,{"$f":"'Non-Life Risk'!T130","v":"Commercial motor - Australia and New Zealand"},null,null,{"$f":"'Non-Life Risk'!$U130","v":"Motor"}]
["h",null,null,null,{"$f":"'Non-Life Risk'!T131","v":"Domestic motor - Australia and New Zealand"},null,null,{"$f":"'Non-Life Risk'!$U131","v":"Motor"}]
["h",null,null,null,{"$f":"'Non-Life Risk'!T132","v":"Motor - all inclusive"},null,null,{"$f":"'Non-Life Risk'!$U132","v":"Motor"}]
["h",null,null,null,{"$f":"'Non-Life Risk'!T133","v":"Motor - Japan and Taiwan"},null,null,{"$f":"'Non-Life Risk'!$U133","v":"Motor"}]
["h",null,null,null,{"$f":"'Non-Life Risk'!T134","v":"Third party liability motor"},null,null,{"$f":"'Non-Life Risk'!$U134","v":"Motor"}]
["h",null,null,null,{"$f":"'Non-Life Risk'!T135","v":"Consumer credit"},null,null,{"$f":"'Non-Life Risk'!$U135","v":"Financial"}]
["h",null,null,null,{"$f":"'Non-Life Risk'!T136","v":"Credit"},null,null,{"$f":"'Non-Life Risk'!$U136","v":"Financial"}]
["h",null,null,null,{"$f":"'Non-Life Risk'!T137","v":"Accident & health"},null,null,{"$f":"'Non-Life Risk'!$U137","v":"Health"}]
["h",null,null,null,{"$f":"'Non-Life Risk'!T138","v":"Health"},null,null,{"$f":"'Non-Life Risk'!$U138","v":"Health"}]
["h",null,null,null,{"$f":"'Non-Life Risk'!T139","v":"Marine, aviation - cargo"},null,null,{"$f":"'Non-Life Risk'!$U139","v":"MAT"}]
["h",null,null,null,{"$f":"'Non-Life Risk'!T140","v":"Marine, aviation - hull"},null,null,{"$f":"'Non-Life Risk'!$U140","v":"MAT"}]
["h",null,null,null,{"$f":"'Non-Life Risk'!T141","v":"Marine protection & indemnity"},null,null,{"$f":"'Non-Life Risk'!$U141","v":"MAT"}]
["h",null,null,null,{"$f":"'Non-Life Risk'!T142","v":"Travel"},null,null,{"$f":"'Non-Life Risk'!$U142","v":"Other"}]
["h",null,null,null,{"$f":"'Non-Life Risk'!T143","v":"Other"},null,null,{"$f":"'Non-Life Risk'!$U143","v":"Other"}]
["h",null,null,null,null,"Latin American Risks"]
["h",null,null,null,{"$f":"'Non-Life Risk'!T145","v":"Employers liability"},null,null,{"$f":"'Non-Life Risk'!$U145","v":"Liability"}]
["h",null,null,null,{"$f":"'Non-Life Risk'!T146","v":"General liability"},null,null,{"$f":"'Non-Life Risk'!$U146","v":"Liability"}]
["h",null,null,null,{"$f":"'Non-Life Risk'!T147","v":"Professional indemnity"},null,null,{"$f":"'Non-Life Risk'!$U147","v":"Liability"}]
["h",null,null,null,{"$f":"'Non-Life Risk'!T148","v":"Commercial property"},null,null,{"$f":"'Non-Life Risk'!$U148","v":"Property"}]
["h",null,null,null,{"$f":"'Non-Life Risk'!T149","v":"Domestic property"},null,null,{"$f":"'Non-Life Risk'!$U149","v":"Property"}]
["h",null,null,null,{"$f":"'Non-Life Risk'!T150","v":"Mexico farm & ranch"},null,null,{"$f":"'Non-Life Risk'!$U150","v":"Property"}]
["h",null,null,null,{"$f":"'Non-Life Risk'!T151","v":"Property all inclusive"},null,null,{"$f":"'Non-Life Risk'!$U151","v":"Property"}]
["h",null,null,null,{"$f":"'Non-Life Risk'!T152","v":"Motor all inclusive"},null,null,{"$f":"'Non-Life Risk'!$U152","v":"Motor"}]
["h",null,null,null,{"$f":"'Non-Life Risk'!T153","v":"Credit"},null,null,{"$f":"'Non-Life Risk'!$U153","v":"Financial"}]
["h",null,null,null,{"$f":"'Non-Life Risk'!T154","v":"Fidelity"},null,null,{"$f":"'Non-Life Risk'!$U154","v":"Financial"}]
["h",null,null,null,{"$f":"'Non-Life Risk'!T155","v":"Surety"},null,null,{"$f":"'Non-Life Risk'!$U155","v":"Financial"}]
["h",null,null,null,{"$f":"'Non-Life Risk'!T156","v":"Accident & health"},null,null,{"$f":"'Non-Life Risk'!$U156","v":"Health"}]
["h",null,null,null,{"$f":"'Non-Life Risk'!T157","v":"Health & medical exp"},null,null,{"$f":"'Non-Life Risk'!$U157","v":"Health"}]
["h",null,null,null,{"$f":"'Non-Life Risk'!T158","v":"Marine, Aviation - all inclusive"},null,null,{"$f":"'Non-Life Risk'!$U158","v":"MAT"}]
["h",null,null,null,{"$f":"'Non-Life Risk'!T159","v":"Marine, Aviation - cargo"},null,null,{"$f":"'Non-Life Risk'!$U159","v":"MAT"}]
["h",null,null,null,{"$f":"'Non-Life Risk'!T160","v":"Marine protection & indemnity"},null,null,{"$f":"'Non-Life Risk'!$U160","v":"MAT"}]
["h",null,null,null,{"$f":"'Non-Life Risk'!T161","v":"Travel"},null,null,{"$f":"'Non-Life Risk'!$U161","v":"Other"}]
["h",null,null,null,{"$f":"'Non-Life Risk'!T162","v":"Warranty"},null,null,{"$f":"'Non-Life Risk'!$U162","v":"Other"}]
["h",null,null,null,{"$f":"'Non-Life Risk'!T163","v":"Other"},null,null,{"$f":"'Non-Life Risk'!$U163","v":"Other"}]
[]
[null,null,null,null,null,"Input summary"]
[null,null,null,null,"Liability",{"$f":"SUMIFS($F$441:$F$557,$H$441:$H$557,$E560)","v":0},{"$f":"SUMIFS($G$441:$G$557,$H$441:$H$557,$E560)","v":0}]
[null,null,null,null,"Property",0,0]
[null,null,null,null,"Motor",0,0]
[null,null,null,null,"Financial",0,0]
[null,null,null,null,"Health",0,0]
[null,null,null,null,"MAT",0,0]
[null,null,null,null,"Other",0,0,null,null,null,null,null,null,null,null,null,null,null,null,{"$f":"Q437+I568-F568","v":0}]
[null,null,null,null,null,null,null,null,"Nat Cat Premium -S&P estimate",null,"Has Nat Cat premium been removed from premium risk exposure?",null,null,null,null,null,null,null,null,{"$f":"IF(F568=0,0,ABS(T566/F568))","v":0}]
[null,null,null,null,"Total non-life net written premiums",null,null,null,{"$f":"'Nat Cat Risk'!D8/(1-'Nat Cat Risk'!D6)","v":0},null,"No",null,null,null,null,null,null,null,{"$f":"IF(T568>Error_Check_Precision,1,0)","v":0},{"$f":"IF(OR(F568=0,ISERROR(T567)),0,T567)","v":0}]
[null,null,null,null,null,null,null,null,null,null,null,null,null,null,null,null,null,null,{"$f":"IF(AND(I568>0,K568<>\"Yes\"),1,0)","v":0}]
["h"]
["h","    Reserve Risk (net of reinsurance)",null,null,null,null,null,{"$f":"IF(S690=1,Error_Message & \" Difference = \" & TEXT(T688, \"#,##0.00\"),\"\")","v":""},null,null,null,null,null,null,null,"Section Total",{"$f":"SUM(F575:F679,G575:G679)","v":0}]
[null,null,null,null,null,null,null,null,null,null,null,null,null,null,"Comments"]
[null,null,null,null,null,"Primary and proportional reinsurance business","Non-proportional reinsurance (treaty and facultative)"]
[null,null,null,null,null,"EMEA Risks"]
["h",null,null,null,{"$f":"'Non-Life Risk'!$T195","v":"General liability"},null,null,{"$f":"'Non-Life Risk'!$U195","v":"Liability"}]
["h",null,null,null,{"$f":"'Non-Life Risk'!$T196","v":"Workers compensation"},null,null,{"$f":"'Non-Life Risk'!$U196","v":"Liability"}]
["h",null,null,null,{"$f":"'Non-Life Risk'!$T197","v":"Fire & other damage to property"},null,null,{"$f":"'Non-Life Risk'!$U197","v":"Property"}]
["h",null,null,null,{"$f":"'Non-Life Risk'!$T198","v":"Motor vehicle liability"},null,null,{"$f":"'Non-Life Risk'!$U198","v":"Motor"}]
["h",null,null,null,{"$f":"'Non-Life Risk'!$T199","v":"Other motor"},null,null,{"$f":"'Non-Life Risk'!$U199","v":"Motor"}]
["h",null,null,null,{"$f":"'Non-Life Risk'!$T200","v":"Credit & suretyship"},null,null,{"$f":"'Non-Life Risk'!$U200","v":"Financial"}]
["h",null,null,null,{"$f":"'Non-Life Risk'!$T201","v":"Miscellaneous financial loss"},null,null,{"$f":"'Non-Life Risk'!$U201","v":"Financial"}]
["h",null,null,null,{"$f":"'Non-Life Risk'!$T202","v":"Health & medical expense insurance"},null,null,{"$f":"'Non-Life Risk'!$U202","v":"Health"}]
["h",null,null,null,{"$f":"'Non-Life Risk'!$T203","v":"Marine, aviation, and transport"},null,null,{"$f":"'Non-Life Risk'!$U203","v":"MAT"}]
["h",null,null,null,{"$f":"'Non-Life Risk'!$T204","v":"Marine protection & indemnity"},null,null,{"$f":"'Non-Life Risk'!$U204","v":"MAT"}]
["h",null,null,null,{"$f":"'Non-Life Risk'!$T205","v":"Assistance"},null,null,{"$f":"'Non-Life Risk'!$U205","v":"Other"}]
["h",null,null,null,{"$f":"'Non-Life Risk'!$T206","v":"Income protection"},null,null,{"$f":"'Non-Life Risk'!$U206","v":"Other"}]
["h",null,null,null,{"$f":"'Non-Life Risk'!$T207","v":"Legal expense"},null,null,{"$f":"'Non-Life Risk'!$U207","v":"Other"}]
["h",null,null,null,{"$f":"'Non-Life Risk'!$T208","v":"Other"},null,null,{"$f":"'Non-Life Risk'!$U208","v":"Other"}]
["h",null,null,null,null,"US Risks"]
["h",null,null,null,{"$f":"'Non-Life Risk'!$T210","v":"Medical malpractice - claims made"},null,null,{"$f":"'Non-Life Risk'!$U210","v":"Liability"}]
["h",null,null,null,{"$f":"'Non-Life Risk'!$T211","v":"Medical malpractice - occurrence"},null,null,{"$f":"'Non-Life Risk'!$U211","v":"Liability"}]
["h",null,null,null,{"$f":"'Non-Life Risk'!$T212","v":"Other liability - claims made"},null,null,{"$f":"'Non-Life Risk'!$U212","v":"Liability"}]
["h",null,null,null,{"$f":"'Non-Life Risk'!$T213","v":"Other liability - occurrence"},null,null,{"$f":"'Non-Life Risk'!$U213","v":"Liability"}]
["h",null,null,null,{"$f":"'Non-Life Risk'!$T214","v":"Product liability - claims made"},null,null,{"$f":"'Non-Life Risk'!$U214","v":"Liability"}]
["h",null,null,null,{"$f":"'Non-Life Risk'!$T215","v":"Product liability - occurrence"},null,null,{"$f":"'Non-Life Risk'!$U215","v":"Liability"}]
["h",null,null,null,{"$f":"'Non-Life Risk'!$T216","v":"Workers compensation"},null,null,{"$f":"'Non-Life Risk'!$U216","v":"Liability"}]
["h",null,null,null,{"$f":"'Non-Life Risk'!$T217","v":"Boiler & machinery"},null,null,{"$f":"'Non-Life Risk'!$U217","v":"Property"}]
["h",null,null,null,{"$f":"'Non-Life Risk'!$T218","v":"Commercial multi-peril"},null,null,{"$f":"'Non-Life Risk'!$U218","v":"Property"}]
["h",null,null,null,{"$f":"'Non-Life Risk'!$T219","v":"Homeowner/Farmowner multi-peril"},null,null,{"$f":"'Non-Life Risk'!$U219","v":"Property"}]
["h",null,null,null,{"$f":"'Non-Life Risk'!$T220","v":"Special property (fire, allied lines, inland marine, earthquake, burglary and theft)"},null,null,{"$f":"'Non-Life Risk'!$U220","v":"Property"}]
["h",null,null,null,{"$f":"'Non-Life Risk'!$T221","v":"Auto physical damage"},null,null,{"$f":"'Non-Life Risk'!$U221","v":"Motor"}]
["h",null,null,null,{"$f":"'Non-Life Risk'!$T222","v":"Commercial auto liability"},null,null,{"$f":"'Non-Life Risk'!$U222","v":"Motor"}]
["h",null,null,null,{"$f":"'Non-Life Risk'!$T223","v":"Private passenger auto liability"},null,null,{"$f":"'Non-Life Risk'!$U223","v":"Motor"}]
["h",null,null,null,{"$f":"'Non-Life Risk'!$T224","v":"Credit"},null,null,{"$f":"'Non-Life Risk'!$U224","v":"Financial"}]
["h",null,null,null,{"$f":"'Non-Life Risk'!$T225","v":"Fidelity/Surety"},null,null,{"$f":"'Non-Life Risk'!$U225","v":"Financial"}]
["h",null,null,null,{"$f":"'Non-Life Risk'!$T226","v":"Financial guaranty"},null,null,{"$f":"'Non-Life Risk'!$U226","v":"Financial"}]
["h",null,null,null,{"$f":"'Non-Life Risk'!$T227","v":"Accident & health"},null,null,{"$f":"'Non-Life Risk'!$U227","v":"Health"}]
["h",null,null,null,{"$f":"'Non-Life Risk'!$T228","v":"US health reserves"},null,null,{"$f":"'Non-Life Risk'!$U228","v":"Health"}]
["h",null,null,null,{"$f":"'Non-Life Risk'!$T229","v":"Aircraft"},null,null,{"$f":"'Non-Life Risk'!$U229","v":"MAT"}]
["h",null,null,null,{"$f":"'Non-Life Risk'!$T230","v":"Marine protection & indemnity"},null,null,{"$f":"'Non-Life Risk'!$U230","v":"MAT"}]
["h",null,null,null,{"$f":"'Non-Life Risk'!$T231","v":"Ocean marine"},null,null,{"$f":"'Non-Life Risk'!$U231","v":"MAT"}]
["h",null,null,null,{"$f":"'Non-Life Risk'!$T232","v":"Title"},null,null,{"$f":"'Non-Life Risk'!$U232","v":"Other"}]
["h",null,null,null,{"$f":"'Non-Life Risk'!$T233","v":"Warranty"},null,null,{"$f":"'Non-Life Risk'!$U233","v":"Other"}]
["h",null,null,null,{"$f":"'Non-Life Risk'!$T234","v":"Other"},null,null,{"$f":"'Non-Life Risk'!$U234","v":"Other"}]
["h",null,null,null,null,"Canadian Risks"]
["h",null,null,null,{"$f":"'Non-Life Risk'!$T236","v":"Liability"},null,null,{"$f":"'Non-Life Risk'!$U236","v":"Liability"}]
["h",null,null,null,{"$f":"'Non-Life Risk'!$T237","v":"Boiler & machinery"},null,null,{"$f":"'Non-Life Risk'!$U237","v":"Property"}]
["h",null,null,null,{"$f":"'Non-Life Risk'!$T238","v":"Commercial property"},null,null,{"$f":"'Non-Life Risk'!$U238","v":"Property"}]
["h",null,null,null,{"$f":"'Non-Life Risk'!$T239","v":"Hail"},null,null,{"$f":"'Non-Life Risk'!$U239","v":"Property"}]
["h",null,null,null,{"$f":"'Non-Life Risk'!$T240","v":"Personal property"},null,null,{"$f":"'Non-Life Risk'!$U240","v":"Property"}]
["h",null,null,null,{"$f":"'Non-Life Risk'!$T241","v":"Auto - liability"},null,null,{"$f":"'Non-Life Risk'!$U241","v":"Motor"}]
["h",null,null,null,{"$f":"'Non-Life Risk'!$T242","v":"Auto - other"},null,null,{"$f":"'Non-Life Risk'!$U242","v":"Motor"}]
["h",null,null,null,{"$f":"'Non-Life Risk'!$T243","v":"Auto - personal accident"},null,null,{"$f":"'Non-Life Risk'!$U243","v":"Motor"}]
["h",null,null,null,{"$f":"'Non-Life Risk'!$T244","v":"Credit"},null,null,{"$f":"'Non-Life Risk'!$U244","v":"Financial"}]
["h",null,null,null,{"$f":"'Non-Life Risk'!$T245","v":"Credit protection"},null,null,{"$f":"'Non-Life Risk'!$U245","v":"Financial"}]
["h",null,null,null,{"$f":"'Non-Life Risk'!$T246","v":"Fidelity"},null,null,{"$f":"'Non-Life Risk'!$U246","v":"Financial"}]
["h",null,null,null,{"$f":"'Non-Life Risk'!$T247","v":"Surety"},null,null,{"$f":"'Non-Life Risk'!$U247","v":"Financial"}]
["h",null,null,null,{"$f":"'Non-Life Risk'!$T248","v":"Accident & sickness (excluding supplementary health, disability income)"},null,null,{"$f":"'Non-Life Risk'!$U248","v":"Health"}]
["h",null,null,null,{"$f":"'Non-Life Risk'!$T249","v":"Supplementary health"},null,null,{"$f":"'Non-Life Risk'!$U249","v":"Health"}]
["h",null,null,null,{"$f":"'Non-Life Risk'!$T250","v":"Aircraft"},null,null,{"$f":"'Non-Life Risk'!$U250","v":"MAT"}]
["h",null,null,null,{"$f":"'Non-Life Risk'!$T251","v":"Marine"},null,null,{"$f":"'Non-Life Risk'!$U251","v":"MAT"}]
["h",null,null,null,{"$f":"'Non-Life Risk'!$T252","v":"Marine protection & indemnity"},null,null,{"$f":"'Non-Life Risk'!$U252","v":"MAT"}]
["h",null,null,null,{"$f":"'Non-Life Risk'!$T253","v":"Legal expense"},null,null,{"$f":"'Non-Life Risk'!$U253","v":"Other"}]
["h",null,null,null,{"$f":"'Non-Life Risk'!$T254","v":"Other approved products"},null,null,{"$f":"'Non-Life Risk'!$U254","v":"Other"}]
["h",null,null,null,{"$f":"'Non-Life Risk'!$T255","v":"Title"},null,null,{"$f":"'Non-Life Risk'!$U255","v":"Other"}]
["h",null,null,null,{"$f":"'Non-Life Risk'!$T256","v":"Warranty"},null,null,{"$f":"'Non-Life Risk'!$U256","v":"Other"}]
["h",null,null,null,{"$f":"'Non-Life Risk'!$T257","v":"Other"},null,null,{"$f":"'Non-Life Risk'!$U257","v":"Other"}]
["h",null,null,null,null,"Asia-Pacific Risks"]
["h",null,null,null,{"$f":"'Non-Life Risk'!$T259","v":"Employers liability"},null,null,{"$f":"'Non-Life Risk'!$U259","v":"Liability"}]
["h",null,null,null,{"$f":"'Non-Life Risk'!$T260","v":"General liability"},null,null,{"$f":"'Non-Life Risk'!$U260","v":"Liability"}]
["h",null,null,null,{"$f":"'Non-Life Risk'!$T261","v":"Professional indemnity"},null,null,{"$f":"'Non-Life Risk'!$U261","v":"Liability"}]
["h",null,null,null,{"$f":"'Non-Life Risk'!$T262","v":"Public and product liability"},null,null,{"$f":"'Non-Life Risk'!$U262","v":"Liability"}]
["h",null,null,null,{"$f":"'Non-Life Risk'!$T263","v":"Commercial property"},null,null,{"$f":"'Non-Life Risk'!$U263","v":"Property"}]
["h",null,null,null,{"$f":"'Non-Life Risk'!$T264","v":"Domestic property"},null,null,{"$f":"'Non-Life Risk'!$U264","v":"Property"}]
["h",null,null,null,{"$f":"'Non-Life Risk'!$T265","v":"Engineering"},null,null,{"$f":"'Non-Life Risk'!$U265","v":"Property"}]
["h",null,null,null,{"$f":"'Non-Life Risk'!$T266","v":"Commercial motor - Australia and New Zealand"},null,null,{"$f":"'Non-Life Risk'!$U266","v":"Motor"}]
["h",null,null,null,{"$f":"'Non-Life Risk'!$T267","v":"Domestic motor - Australia and New Zealand"},null,null,{"$f":"'Non-Life Risk'!$U267","v":"Motor"}]
["h",null,null,null,{"$f":"'Non-Life Risk'!$T268","v":"Motor - all inclusive"},null,null,{"$f":"'Non-Life Risk'!$U268","v":"Motor"}]
["h",null,null,null,{"$f":"'Non-Life Risk'!$T269","v":"Motor - Japan and Taiwan"},null,null,{"$f":"'Non-Life Risk'!$U269","v":"Motor"}]
["h",null,null,null,{"$f":"'Non-Life Risk'!$T270","v":"Third party liability motor"},null,null,{"$f":"'Non-Life Risk'!$U270","v":"Motor"}]
["h",null,null,null,{"$f":"'Non-Life Risk'!$T271","v":"Consumer credit"},null,null,{"$f":"'Non-Life Risk'!$U271","v":"Financial"}]
["h",null,null,null,{"$f":"'Non-Life Risk'!$T272","v":"Credit"},null,null,{"$f":"'Non-Life Risk'!$U272","v":"Financial"}]
["h",null,null,null,{"$f":"'Non-Life Risk'!$T273","v":"Accident and health"},null,null,{"$f":"'Non-Life Risk'!$U273","v":"Health"}]
["h",null,null,null,{"$f":"'Non-Life Risk'!$T274","v":"Health"},null,null,{"$f":"'Non-Life Risk'!$U274","v":"Health"}]
["h",null,null,null,{"$f":"'Non-Life Risk'!$T275","v":"Marine, aviation - cargo"},null,null,{"$f":"'Non-Life Risk'!$U275","v":"MAT"}]
["h",null,null,null,{"$f":"'Non-Life Risk'!$T276","v":"Marine, aviation - hull"},null,null,{"$f":"'Non-Life Risk'!$U276","v":"MAT"}]
["h",null,null,null,{"$f":"'Non-Life Risk'!$T277","v":"Marine protection & indemnity"},null,null,{"$f":"'Non-Life Risk'!$U277","v":"MAT"}]
["h",null,null,null,{"$f":"'Non-Life Risk'!$T278","v":"Travel"},null,null,{"$f":"'Non-Life Risk'!$U278","v":"Other"}]
["h",null,null,null,{"$f":"'Non-Life Risk'!$T279","v":"Other"},null,null,{"$f":"'Non-Life Risk'!$U279","v":"Other"}]
["h",null,null,null,null,"Latin American Risks"]
["h",null,null,null,{"$f":"'Non-Life Risk'!$T281","v":"Employers liability"},null,null,{"$f":"'Non-Life Risk'!$U281","v":"Liability"}]
["h",null,null,null,{"$f":"'Non-Life Risk'!$T282","v":"General liability"},null,null,{"$f":"'Non-Life Risk'!$U282","v":"Liability"}]
["h",null,null,null,{"$f":"'Non-Life Risk'!$T283","v":"Professional indemnity"},null,null,{"$f":"'Non-Life Risk'!$U283","v":"Liability"}]
["h",null,null,null,{"$f":"'Non-Life Risk'!$T284","v":"Commercial property"},null,null,{"$f":"'Non-Life Risk'!$U284","v":"Property"}]
["h",null,null,null,{"$f":"'Non-Life Risk'!$T285","v":"Domestic property"},null,null,{"$f":"'Non-Life Risk'!$U285","v":"Property"}]
["h",null,null,null,{"$f":"'Non-Life Risk'!$T286","v":"Mexico farm & ranch"},null,null,{"$f":"'Non-Life Risk'!$U286","v":"Property"}]
["h",null,null,null,{"$f":"'Non-Life Risk'!$T287","v":"Property all inclusive"},null,null,{"$f":"'Non-Life Risk'!$U287","v":"Property"}]
["h",null,null,null,{"$f":"'Non-Life Risk'!$T288","v":"Motor all inclusive"},null,null,{"$f":"'Non-Life Risk'!$U288","v":"Motor"}]
["h",null,null,null,{"$f":"'Non-Life Risk'!$T289","v":"Credit"},null,null,{"$f":"'Non-Life Risk'!$U289","v":"Financial"}]
["h",null,null,null,{"$f":"'Non-Life Risk'!$T290","v":"Fidelity"},null,null,{"$f":"'Non-Life Risk'!$U290","v":"Financial"}]
["h",null,null,null,{"$f":"'Non-Life Risk'!$T291","v":"Surety"},null,null,{"$f":"'Non-Life Risk'!$U291","v":"Financial"}]
["h",null,null,null,{"$f":"'Non-Life Risk'!$T292","v":"Accident & health"},null,null,{"$f":"'Non-Life Risk'!$U292","v":"Health"}]
["h",null,null,null,{"$f":"'Non-Life Risk'!$T293","v":"Health & medical exp"},null,null,{"$f":"'Non-Life Risk'!$U293","v":"Health"}]
["h",null,null,null,{"$f":"'Non-Life Risk'!$T294","v":"Marine aviation - all inclusive"},null,null,{"$f":"'Non-Life Risk'!$U294","v":"MAT"}]
["h",null,null,null,{"$f":"'Non-Life Risk'!$T295","v":"Marine aviation - cargo"},null,null,{"$f":"'Non-Life Risk'!$U295","v":"MAT"}]
["h",null,null,null,{"$f":"'Non-Life Risk'!$T296","v":"Marine protection & indemnity"},null,null,{"$f":"'Non-Life Risk'!$U296","v":"MAT"}]
["h",null,null,null,{"$f":"'Non-Life Risk'!$T297","v":"Travel"},null,null,{"$f":"'Non-Life Risk'!$U297","v":"Other"}]
["h",null,null,null,{"$f":"'Non-Life Risk'!$T298","v":"Warranty"},null,null,{"$f":"'Non-Life Risk'!$U298","v":"Other"}]
["h",null,null,null,{"$f":"'Non-Life Risk'!$T299","v":"Other"},null,null,{"$f":"'Non-Life Risk'!$U299","v":"Other"}]
[]
[null,null,null,null,null,"Input summary"]
[null,null,null,null,"Liability",{"$f":"SUMIFS($F$575:$F$679,$H$575:$H$679,$E682)","v":0},{"$f":"SUMIFS($G$575:$G$679,$H$575:$H$679,$E682)","v":0}]
[null,null,null,null,"Property",0,0]
[null,null,null,null,"Motor",0,0]
[null,null,null,null,"Financial",0,0]
[null,null,null,null,"Health",0,0]
[null,null,null,null,"MAT",0,0]
[null,null,null,null,"Other",0,0,null,null,null,null,null,null,null,null,null,null,null,null,{"$f":"Q571-F690","v":0}]
[null,null,null,null,null,null,null,null,null,null,null,null,null,null,null,null,null,null,null,{"$f":"IF(F690=0,0,ABS(T688/F690))","v":0}]
[null,null,null,null,"Total non-life net loss reserves",null,null,null,null,null,null,null,null,null,null,null,null,null,{"$f":"IF(T690>Error_Check_Precision,1,0)","v":0},{"$f":"IF(OR(F690=0,ISERROR(T689)),0,T689)","v":0}]
[]
["h"]
["h","    Mortgage Insurance",null,null,null,null,null,null,null,null,null,null,null,null,null,"Section Total",{"$f":"SUM(F696:F698,G696:G698)","v":0}]
[]
[null,null,null,null,null,"Primary and proportional reinsurance business","Non-proportional reinsurance (treaty and facultative)"]
[null,null,null,null,"Net Premiums Written - Recurring Business"]
[null,null,null,null,"Net UPR or Equivalent - Single/Upfront Premiums",null,null,"UPR/LRC Earnings Pattern (%)",0.2]
[null,null,null,null,"Net Loss Reserves"]
[]
["h"]
["h","    Natural Catastrophe Risk",null,null,null,null,"",{"$f":"IF(SUM(S706:S711)>0,Error_Message&\" Input values for both 200 & 500 year return periods and if available, 250 or 333 year return periods\",IF(S712>0,Error_Message&\" All rows should have the same columns filled in.\",  IF(S713>0,Error_Message & \" \" & E707 & \" should be input, when \" & E706 & \" has any information.\",\"\")))","v":""},null,null,null,null,null,null,null,{"$f":"IF(LEFT(inp_nat_cat_is_aep_curve_available,3)=\"Yes\",\"Net Loss (200 yr)\",IF(inp_nat_cat_is_aep_curve_available=\"No\",E716,\"\"))","v":"Net Loss (200 yr)"},{"$f":"IF(LEFT(inp_nat_cat_is_aep_curve_available,3)=\"Yes\",F712,IF(inp_nat_cat_is_aep_curve_available=\"No\",inp_nat_cat_cl_99_5_charge,\"\"))","v":0}]
[null,null,null,null,null,null,null,null,null,null,null,null,null,null,"Comments"]
[null,null,null,null,"Is AEP/OEP Curve Available?","Yes, AEP",null,null,null,null,null,null,null,null,null,null,null,null,null,{"$f":"inp_nat_cat_is_aep_curve_available<>\"No\"","v":true}]
[null,null,null,null,null,"At a return period of"]
[null,null,null,null,null,"200 years","250 years","333 years","500 years","Input error check"]
[null,null,null,null,"Gross aggregate exposure",null,null,null,null,{"$f":"IF(AND($T$703,S706=1),Error_Message,\"\")","v":""},null,null,null,null,null,null,null,null,{"$f":"IF(NOT($T$703),0, IF(_xlfn.XOR(T706,W706),1, IF(AND(NOT(X706),OR(NOT(U706),NOT(V706))),1,0)))","v":0},{"$f":"OR(ISBLANK(F706),F706=0)","v":true},{"$f":"OR(ISBLANK(G706),G706=0)","v":true},true,true,{"$f":"AND(F706>0,I706>0)","v":false},{"$f":"COUNTA(F706:I706)","v":0}]
[null,null,null,null,"Net aggregate exposure",null,null,null,null,"",null,null,null,null,null,null,null,null,{"$f":"IF(NOT($T$703),0, IF(_xlfn.XOR(T707,W707),1, IF(AND(NOT(X707),OR(NOT(U707),NOT(V707))),1,0)))","v":0},{"$f":"OR(ISBLANK(F707),F707=0)","v":true},{"$f":"OR(ISBLANK(G707),G707=0)","v":true},{"$f":"OR(ISBLANK(H707),H707=0)","v":true},{"$f":"OR(ISBLANK(I707),I707=0)","v":true},{"$f":"AND(F707>0,I707>0)","v":false},{"$f":"COUNTA(F707:I707)","v":0}]
[null,null,null,null,"Reinsurance / retrocession recoveries (uncollateralized)",null,null,null,null,"",null,null,null,null,null,null,null,null,0,true,true,true,true,false,0]
[null,null,null,null,"Reinsurance / retrocession recoveries (collateralized)",null,null,null,null,"",null,null,null,null,null,null,null,null,0,true,true,true,true,false,0]
[null,null,null,null,"Inward reinstatement premiums",null,null,null,null,"",null,null,null,null,null,null,null,null,0,true,true,true,true,false,0]
[null,null,null,null,"Outward reinstatement premiums",null,null,null,null,"",null,null,null,null,null,null,null,null,0,true,true,true,true,false,0]
[null,null,null,null,"Net Loss",{"$f":"F707-F710+F711","v":0},{"$f":"G707-G710+G711","v":0},{"$f":"H707-H710+H711","v":0},{"$f":"I707-I710+I711","v":0},null,null,null,null,null,null,null,null,null,{"$f":"IF(OR(X712>1,Y712>1),1,0)","v":0},{"$f":"COUNTA(F706:F711)","v":0},{"$f":"COUNTA(G706:G711)","v":0},0,0,{"$f":"COUNTA(_xlfn.UNIQUE(_xlfn._xlws.FILTER(T712:W712, T712:W712<>0),TRUE))","v":1},{"$f":"COUNTA(_xlfn.UNIQUE(_xlfn._xlws.FILTER(Y706:Y711,Y706:Y711<>0)))","v":1}]
[null,null,null,null,null,null,null,null,null,null,null,null,null,null,null,null,null,null,{"$f":"IF(AND(Y706>0,Y707=0),1,0)","v":0}]
[null,null,null,null,"Net Annual Average Loss (AAL)"]
[]
[null,null,null,null,"99.5% Natural catastrophe charge",null,null,null,"Reinsurance recoveries (uncollateralized) Estimate at 99.5%"]
[]
["h"]
["h"]
["h","  Life Technical Risks"]
["h","    Mortality and Pandemic Risk",null,null,null,null,null,null,null,null,null,null,null,null,null,"Total net amount at risk",{"$f":"F727","v":0}]
[null,null,null,null,null,null,null,null,null,null,null,null,null,null,"Comments"]
[null,null,null,null,null,"Net amount at risk"]
[null,null,null,null,"Highly developed life markets  "]
[null,null,null,null,"Less developed life  markets  "]
[]
[null,null,null,null,"Total net amount at risk",{"$f":"F724+F725","v":0}]
[null,null,null,null,"  "]
[null,null,null,null,"Total gross amount at risk  "]
[]
["h"]
["h","    Morbidity Risk - Critical Illness",null,null,null,null,null,null,null,null,null,null,null,null,null,"Total net amount at risk",{"$f":"SUM(F735:F736)","v":0}]
[null,null,null,null,null,null,null,null,null,null,null,null,null,null,"Comments"]
[null,null,null,null,null,"Net amount at risk"]
[null,null,null,null,"Highly developed life markets  "]
[null,null,null,null,"Less developed life  markets  "]
[]
["h"]
["h","    Morbidity Risk - Disability",null,null,null,null,null,null,null,null,null,null,null,null,null,"Section Total",{"$f":"SUM(F742:F749)+F752","v":0}]
[null,null,null,null,null,null,null,null,null,null,null,null,null,null,"Comments"]
[null,null,null,"Premium Risk",null,"Net earned premium"]
[null,null,null,null,"Non-Cancelable Disability Income"]
[null,null,null,null,"Other Individual Income"]
[null,null,null,null,"Group Long Term"]
[null,null,null,null,"Group Short Term"]
[null,null,null,null,"Credit Monthly O/S balance"]
[null,null,null,null,"Credit Single Premium with UPR"]
[null,null,null,null,"Credit Single Premium without UPR"]
[null,null,null,null,"Other Disability Income"]
[null,null,null,"Reserve Risk"]
[null,null,null,null,null,"Net Reserves"]
[null,null,null,null,"Disability Products"]
[]
["h"]
["h","    Morbidity Risk - Long-Term Care",null,null,null,null,null,null,null,null,null,null,null,null,null,"Section Total",{"$f":"SUM(F758:F762)","v":0}]
[null,null,null,null,null,null,null,null,null,null,null,null,null,null,"Comments"]
[null,null,null,null,"Non-US"]
[null,null,null,null,"Liabilities"]
[null,null,null,null,"US"]
[null,null,null,null,"Claims"]
[null,null,null,null,"Earned Premiums"]
[null,null,null,null,"Claims Reserves"]
[null,null,null,null,"Active Life Reserves"]
[]
["h"]
["h","    Longevity Risk",null,null,null,null,null,null,null,null,null,null,null,null,null,"Section Total",{"$f":"F774","v":0}]
[null,null,null,null,"Longevity risk category",null,"Risk Category",null,null,null,null,null,null,null,"Comments"]
[null,null,null,null,"Category 1- immediate payout annuities",null,{"$f":"1","v":1}]
[null,null,null,null,"Category 1- other",null,{"$f":"1","v":1}]
[null,null,null,null,"Category 2",null,{"$f":"2","v":2}]
[null,null,null,null,"Category 3",null,{"$f":"3","v":3}]
[null,null,null,null,"Reserve confidence level","Default"]
[]
[null,null,null,null,"Total longevity exposure",{"$f":"SUM(F768:F771)","v":0}]
[]
["h"]
["h","    Other Life Technical Risks",null,null,null,null,null,{"$f":"IF(S802=1,Error_Message & \" Difference = \" & TEXT(T800, \"#,##0.00\"),IF(AND(F752>0,F783<F752),\"Warning: PHI/Disability/Critical Illness should include disability reserves entered above.\", \"\"))","v":""},null,null,null,null,null,null,null,"Section Total",{"$f":"SUM(F782:F800)","v":0}]
[null,null,null,null,null,null,null,null,null,null,null,null,null,null,"Comments"]
[null,null,null,null,"Product","Reported life net reserves","Lapse Risk\nMitigants (%)","Not exposed to lapse risk (%)","Risk Category"]
[null,null,null,null,"Non-participating business"]
[null,null,null,null,"General account"]
[null,null,null,null,"Protection / Term",null,0,0,{"$f":"'Life Risk'!D131","v":3}]
[null,null,null,null,"Permanent Health Insurance / Disability / Critical Illness",null,0,0,{"$f":"'Life Risk'!D132","v":3}]
[null,null,null,null,""]
[null,null,null,null,"Non-linked savings* (eg Permanent Life insurance/ Fixed indexed annuity / RILA )",null,null,null,{"$f":"'Life Risk'!D134","v":1}]
[]
[null,null,null,null,"Immediate payout annuities",null,0,0,{"$f":"'Life Risk'!D136","v":3}]
[null,null,null,null,"Deferred payout annuities (without crediting guarantees)",null,0,null,{"$f":"'Life Risk'!D137","v":2}]
[null,null,null,null,"Deferred payout annuities (with crediting guarantees)",null,null,null,{"$f":"'Life Risk'!D138","v":1}]
[]
[null,null,null,null,"Guaranteed Investment Contract (GIC)",null,0,null,{"$f":"'Life Risk'!D140","v":1}]
[null,null,null,null,"Other life products ˗ Structured settlements ˗ Funding agreements",null,0,0,{"$f":"'Life Risk'!D141","v":3}]
[null,null,null,null,"Separate account"]
[null,null,null,null,"Linked business with investment guarantees  ",null,null,null,{"$f":"'Life Risk'!D143","v":1}]
[null,null,null,null,"Linked business without guarantees (e.g. Variable universal life)",null,0,0,{"$f":"'Life Risk'!D144","v":3}]
[]
[null,null,null,null,"Participating business"]
[null,null,null,null,"Participating business (excluding payout annuities)",null,null,null,{"$f":"'Life Risk'!D147","v":1}]
[null,null,null,null,"Participating immediate payout annuities",null,0,0,{"$f":"'Life Risk'!D148","v":3}]
[null,null,null,null,"Participating deferred annuities",null,null,null,{"$f":"'Life Risk'!D149","v":1},null,null,null,null,null,null,null,null,null,null,{"$f":"Q777-F802","v":0}]
[null,null,null,null,null,null,null,null,null,null,null,null,null,null,null,null,null,null,null,{"$f":"IF(F802=0,0,ABS(T800/F802))","v":0}]
[null,null,null,null,"Total life reserves",null,null,"Input total life reserves",{"$f":"SUM(F782:F800)","v":0},null,null,null,null,null,null,null,null,null,{"$f":"IF(T802>Error_Check_Precision,1,0)","v":0},{"$f":"IF(OR(F802=0,ISERROR(T801)),0,T801)","v":0}]
[]
["h"]
["h"]
["h"," Product-Specific Risks"]
["h","    Variable Annuities",null,null,null,null,null,null,null,null,null,null,null,null,null,"Best Efforts Pretax CTE 90",{"$f":"F813","v":0}]
[null,null,null,null,null,null,null,null,null,null,null,null,null,null,"Comments"]
[null,null,null,null,null,"Best Efforts","Adjusted"]
[null,null,null,null,"Pretax CTE 99.75%"]
[null,null,null,null,"Pretax CTE 98.75%"]
[null,null,null,null,"Pretax CTE 96.5%"]
[null,null,null,null,"Pretax CTE 92%"]
[]
[null,null,null,null,"Error Factor (e-factor)"]
[]
[null,null,null,null,"Reserve (net of third party reinsurance)"]
[]
["h"]
["h","    Participating business in ring-fenced funds (only relevant in some countries)",null,null,null,null,null,null,null,null,null,null,null,null,null,"Deficit at 99.5%",{"$f":"F826","v":0}]
[null,null,null,null,null,null,null,null,null,null,null,null,null,null,"Comments"]
[null,null,null,null,"Residual risk at","Deficiency"]
[null,null,null,null,0.99990000000000001]
[null,null,null,null,0.99950000000000006]
[null,null,null,null,0.998]
[null,null,null,null,0.995]
[]
["h",null,null,null,null,null,"","","","","","","","","",""]
["h","    Long-term health business with aging reserves",null,null,null,null,null,null,null,null,null,null,null,null,null,"Section Total",{"$f":"F831","v":0}]
[null,null,null,null,null,null,null,null,null,null,null,null,null,null,"Comments"]
[null,null,null,null,"Net aging reserves  "]
[]
[null,null,null,null,null,null,"","","","","","","","","",""]
[]
[null," Interest Rate Risk and Additional Information"]
["h","    Interest Rate Risk",null,null,null,null,null,{"$f":"IF(SUM(S838:S896)>0,Error_Message,\"\")","v":""},null,null,null,null,null,null,null,"Adjusted Exposure Total",{"$f":"SUM(G862:G896)","v":0}]
[null,null,null,null,null,null,null,null,null,null,null,null,null,null,"Comments"]
[null,null,"Step 1",null,"Can we determine a company-specific duration mismatch or NCMV?",null,"No",null,"Company-specific Net Change in Market Value (NCMV)"]
[null,null,null,null,"Company-specific duration mismatch value (years)",null,null,null,null,null,null,null,null,null,null,null,null,null,{"$f":"IF(AND(duration_mismatch_bespoke=\"Yes, Duration Mismatch\",ISBLANK(G839)),1,0)","v":0}]
[null,null,null,null,"Company-specific most onerous stress",null,null,null,0.99990000000000001,0.99950000000000006,0.998,0.995,null,null,null,null,null,null,{"$f":"IF(OR(AND(duration_mismatch_bespoke<>\"No\",ISBLANK(G840)),AND(duration_mismatch_bespoke=\"Yes, NCMV\",OR(ISBLANK(I839),ISBLANK(J839),ISBLANK(K839),ISBLANK(L839)))),1,T840)","v":0}]
[]
[null,null,"Steps 2 & 3",null,"Mean term of non-life liabilities (years)"]
[null,null,null,null,"Duration of the excess assets (years)",null,null,"Bond & Loans Duration (yrs)",{"$f":"bond_wam","v":0}]
[]
[null,null,null,null,"Do you know the most onerous stress for life and non-life business?",null,"No"]
[null,null,null,null,null,null,"Life","Non-life"]
[null,null,null,null,"Most onerous stress",null,"Unknown","Unknown",null,null,null,null,null,null,null,null,null,null,{"$f":"IF(AND(duration_mismatch_bespoke=\"No\",G845=\"Yes\",G847=\"Unknown\",H847=\"Unknown\"),1,0)","v":0}]
[]
[null,null,"Interest rate risk - relevant exposure validation"]
[null,null,null,null,null,"Relevant exposure validation"]
[null,null,null,null,null,"Total Exposure","Check","Difference","Total Exposure Check"]
[null,null,null,null,{"$f":"Lists!R7","v":"Capital"},{"$f":"SUMIF($E$862:$E$896,E852,$G$862:$G$896)","v":0},{"$f":"MAX(\n    0,\n    total_bonds+total_mortgages - total_ir_exposure_life - total_ir_exposure_non_life - inp_ltc_us_active_life_reserves - inp_net_aging_reserves\n)","v":0},{"$f":"G852-F852","v":0},{"$f":"IF(ABS(H852) > 0, \"Please verify the difference in column F and G\", \"\")","v":""}]
[null,null,null,null,{"$f":"Lists!R3","v":"Life"},{"$f":"SUMIF($E$862:$E$896,E853,$G$862:$G$896)","v":0},{"$f":"total_life_reserves -\n  inp_oth_life_linked_bus_wo_guarantee -\n  inp_oth_life_linked_bus_with_guarantee +\n  inp_ltc_non_us_liabilities -\n  inp_tac_adj_life_resv_vif_off_bal -\n  inp_tac_adj_life_resv_oth_eqty_like -\n  inp_tac_adj_life_resv_valuation -\n  inp_tac_policyholder_cptl -\n  inp_tac_urg_on_invest","v":0},{"$f":"G853-F853","v":0},{"$f":"IF(ABS(H853) > 0, \"Please verify the difference in column F and G\", \"\")","v":""}]
[null,null,null,null,{"$f":"Lists!R4","v":"Non-life"},{"$f":"SUMIF($E$862:$E$896,E854,$G$862:$G$896)","v":0},{"$f":"inp_tac_adj_non_life_resv_not_disc_on_bal +\n  inp_tac_adj_non_life_resv_disc_on_bal -\n  inp_tac_adj_non_life_resv_surplus_not_disc -\n  calc_tac_non_life_resv_disc_adj","v":0},{"$f":"G854-F854","v":0},""]
[null,null,null,null,{"$f":"Lists!R5","v":"Unit Linked with Investment Guarantee"},{"$f":"SUMIF($E$862:$E$896,E855,$G$862:$G$896)","v":0},{"$f":"inp_oth_life_linked_bus_with_guarantee","v":0},{"$f":"G855-F855","v":0},""]
[null,null,null,null,{"$f":"Lists!R6","v":"Health with aging reserves"},{"$f":"SUMIF($E$862:$E$896,E856,$G$862:$G$896)","v":0},{"$f":"inp_net_aging_reserves","v":0},{"$f":"G856-F856","v":0},""]
[null,null,"Steps 1, 2 and 3"]
[null,null,null,null,"Is there exposure to foreign currency products?",null,"No"]
[]
[null,null,null,null,null,null,null,"User Selected (when default not available)",null,"Default Category and Group",null,"Final Selected"]
[null,null,"Country of exposure","Country of currency of the liabilities (if different)","Segment/product","Reported Exposure amount","Adjusted Exposure amount","Interest Rate Risk Category","Duration Mismatch Group","Interest Rate Risk Category","Duration Mismatch Group","Interest Rate Risk Category","Duration Mismatch Group","Input error check",null,null,null,null,null,"Is Life?"]
[null,null,null,{"$f":"IF(C862=\"\",\"\",C862)","v":""},{"$f":"Lists!$R$7","v":"Capital"},null,null,null,null,{"$f":"IFERROR(IF(VLOOKUP(IF(AND($G$858=\"Yes\",$D862<>\"\"),$D862,$C862),lov_ir_risk_by_country,2,FALSE)=\"\",\"\",VLOOKUP(IF(AND($G$858=\"Yes\",$D862<>\"\"),$D862,$C862),lov_ir_risk_by_country,2,FALSE)),\"\")","v":""},{"$f":"IF(T862,IF(OR(E862=Lists!$R$5,E862=Lists!$R$6),Lists!$V$3,IFERROR(IF(VLOOKUP($C862,lov_ir_risk_by_country,3,FALSE)=\"\",\"\",VLOOKUP($C862,lov_ir_risk_by_country,3,FALSE)),\"\")),\"\")","v":""},{"$f":"IF(J862=\"\",IF(H862=\"\",\"\",H862),J862)","v":""},{"$f":"IF(T862,IF(K862=\"\",IF(I862=\"\",\"\",I862),K862),\"\")","v":""},{"$f":"IF(S862=1,Error_Message,\"\")","v":""},null,null,null,null,{"$f":"IF(AND(C862<>\"\",E862<>\"\",G862<>\"\",OR(L862=\"\",AND(T862,duration_mismatch_bespoke=\"No\",M862=\"\"))),1,0)","v":0},{"$f":"NOT(ISERROR(VLOOKUP(E862, lov_ir_exposure_ctg_life,1,FALSE)))","v":false}]
[null,null,null,null,null,null,null,null,null,"",{"$f":"IF(T863,IF(OR(E863=Lists!$R$5,E863=Lists!$R$6),Lists!$V$3,IFERROR(IF(VLOOKUP($C863,lov_ir_risk_by_country,3,FALSE)=\"\",\"\",VLOOKUP($C863,lov_ir_risk_by_country,3,FALSE)),\"\")),\"\")","v":""},{"$f":"IF(J863=\"\",IF(H863=\"\",\"\",H863),J863)","v":""},{"$f":"IF(T863,IF(K863=\"\",IF(I863=\"\",\"\",I863),K863),\"\")","v":""},"",null,null,null,null,0,false]
[null,null,null,null,null,null,null,null,null,"",{"$f":"IF(T864,IF(OR(E864=Lists!$R$5,E864=Lists!$R$6),Lists!$V$3,IFERROR(IF(VLOOKUP($C864,lov_ir_risk_by_country,3,FALSE)=\"\",\"\",VLOOKUP($C864,lov_ir_risk_by_country,3,FALSE)),\"\")),\"\")","v":""},"","","",null,null,null,null,0,false]
[null,null,null,null,null,null,null,null,null,"",{"$f":"IF(T865,IF(OR(E865=Lists!$R$5,E865=Lists!$R$6),Lists!$V$3,IFERROR(IF(VLOOKUP($C865,lov_ir_risk_by_country,3,FALSE)=\"\",\"\",VLOOKUP($C865,lov_ir_risk_by_country,3,FALSE)),\"\")),\"\")","v":""},"","","",null,null,null,null,0,false]
[null,null,null,null,null,null,null,null,null,"",{"$f":"IF(T866,IF(OR(E866=Lists!$R$5,E866=Lists!$R$6),Lists!$V$3,IFERROR(IF(VLOOKUP($C866,lov_ir_risk_by_country,3,FALSE)=\"\",\"\",VLOOKUP($C866,lov_ir_risk_by_country,3,FALSE)),\"\")),\"\")","v":""},"","","",null,null,null,null,0,false]
[null,null,null,null,null,null,null,null,null,"",{"$f":"IF(T867,IF(OR(E867=Lists!$R$5,E867=Lists!$R$6),Lists!$V$3,IFERROR(IF(VLOOKUP($C867,lov_ir_risk_by_country,3,FALSE)=\"\",\"\",VLOOKUP($C867,lov_ir_risk_by_country,3,FALSE)),\"\")),\"\")","v":""},"","","",null,null,null,null,0,false]
[null,null,null,null,null,null,null,null,null,"",{"$f":"IF(T868,IF(OR(E868=Lists!$R$5,E868=Lists!$R$6),Lists!$V$3,IFERROR(IF(VLOOKUP($C868,lov_ir_risk_by_country,3,FALSE)=\"\",\"\",VLOOKUP($C868,lov_ir_risk_by_country,3,FALSE)),\"\")),\"\")","v":""},"","","",null,null,null,null,0,false]
[null,null,null,null,null,null,null,null,null,"",{"$f":"IF(T869,IF(OR(E869=Lists!$R$5,E869=Lists!$R$6),Lists!$V$3,IFERROR(IF(VLOOKUP($C869,lov_ir_risk_by_country,3,FALSE)=\"\",\"\",VLOOKUP($C869,lov_ir_risk_by_country,3,FALSE)),\"\")),\"\")","v":""},"","","",null,null,null,null,0,false]
[null,null,null,null,null,null,null,null,null,"",{"$f":"IF(T870,IF(OR(E870=Lists!$R$5,E870=Lists!$R$6),Lists!$V$3,IFERROR(IF(VLOOKUP($C870,lov_ir_risk_by_country,3,FALSE)=\"\",\"\",VLOOKUP($C870,lov_ir_risk_by_country,3,FALSE)),\"\")),\"\")","v":""},"","","",null,null,null,null,0,false]
[null,null,null,null,null,null,null,null,null,"",{"$f":"IF(T871,IF(OR(E871=Lists!$R$5,E871=Lists!$R$6),Lists!$V$3,IFERROR(IF(VLOOKUP($C871,lov_ir_risk_by_country,3,FALSE)=\"\",\"\",VLOOKUP($C871,lov_ir_risk_by_country,3,FALSE)),\"\")),\"\")","v":""},"","","",null,null,null,null,0,false]
[null,null,null,null,null,null,null,null,null,"",{"$f":"IF(T872,IF(OR(E872=Lists!$R$5,E872=Lists!$R$6),Lists!$V$3,IFERROR(IF(VLOOKUP($C872,lov_ir_risk_by_country,3,FALSE)=\"\",\"\",VLOOKUP($C872,lov_ir_risk_by_country,3,FALSE)),\"\")),\"\")","v":""},"","","",null,null,null,null,0,false]
[null,null,null,null,null,null,null,null,null,"",{"$f":"IF(T873,IF(OR(E873=Lists!$R$5,E873=Lists!$R$6),Lists!$V$3,IFERROR(IF(VLOOKUP($C873,lov_ir_risk_by_country,3,FALSE)=\"\",\"\",VLOOKUP($C873,lov_ir_risk_by_country,3,FALSE)),\"\")),\"\")","v":""},"","","",null,null,null,null,0,false]
[null,null,null,null,null,null,null,null,null,"",{"$f":"IF(T874,IF(OR(E874=Lists!$R$5,E874=Lists!$R$6),Lists!$V$3,IFERROR(IF(VLOOKUP($C874,lov_ir_risk_by_country,3,FALSE)=\"\",\"\",VLOOKUP($C874,lov_ir_risk_by_country,3,FALSE)),\"\")),\"\")","v":""},"","","",null,null,null,null,0,false]
[null,null,null,null,null,null,null,null,null,"",{"$f":"IF(T875,IF(OR(E875=Lists!$R$5,E875=Lists!$R$6),Lists!$V$3,IFERROR(IF(VLOOKUP($C875,lov_ir_risk_by_country,3,FALSE)=\"\",\"\",VLOOKUP($C875,lov_ir_risk_by_country,3,FALSE)),\"\")),\"\")","v":""},"","","",null,null,null,null,0,false]
[null,null,null,null,null,null,null,null,null,"",{"$f":"IF(T876,IF(OR(E876=Lists!$R$5,E876=Lists!$R$6),Lists!$V$3,IFERROR(IF(VLOOKUP($C876,lov_ir_risk_by_country,3,FALSE)=\"\",\"\",VLOOKUP($C876,lov_ir_risk_by_country,3,FALSE)),\"\")),\"\")","v":""},"","","",null,null,null,null,0,false]
[null,null,null,null,null,null,null,null,null,"",{"$f":"IF(T877,IF(OR(E877=Lists!$R$5,E877=Lists!$R$6),Lists!$V$3,IFERROR(IF(VLOOKUP($C877,lov_ir_risk_by_country,3,FALSE)=\"\",\"\",VLOOKUP($C877,lov_ir_risk_by_country,3,FALSE)),\"\")),\"\")","v":""},"","","",null,null,null,null,0,false]
[null,null,null,null,null,null,null,null,null,"",{"$f":"IF(T878,IF(OR(E878=Lists!$R$5,E878=Lists!$R$6),Lists!$V$3,IFERROR(IF(VLOOKUP($C878,lov_ir_risk_by_country,3,FALSE)=\"\",\"\",VLOOKUP($C878,lov_ir_risk_by_country,3,FALSE)),\"\")),\"\")","v":""},"","","",null,null,null,null,0,false]
[null,null,null,null,null,null,null,null,null,"",{"$f":"IF(T879,IF(OR(E879=Lists!$R$5,E879=Lists!$R$6),Lists!$V$3,IFERROR(IF(VLOOKUP($C879,lov_ir_risk_by_country,3,FALSE)=\"\",\"\",VLOOKUP($C879,lov_ir_risk_by_country,3,FALSE)),\"\")),\"\")","v":""},"","","",null,null,null,null,0,false]
[null,null,null,null,null,null,null,null,null,"",{"$f":"IF(T880,IF(OR(E880=Lists!$R$5,E880=Lists!$R$6),Lists!$V$3,IFERROR(IF(VLOOKUP($C880,lov_ir_risk_by_country,3,FALSE)=\"\",\"\",VLOOKUP($C880,lov_ir_risk_by_country,3,FALSE)),\"\")),\"\")","v":""},"","","",null,null,null,null,0,false]
[null,null,null,null,null,null,null,null,null,"",{"$f":"IF(T881,IF(OR(E881=Lists!$R$5,E881=Lists!$R$6),Lists!$V$3,IFERROR(IF(VLOOKUP($C881,lov_ir_risk_by_country,3,FALSE)=\"\",\"\",VLOOKUP($C881,lov_ir_risk_by_country,3,FALSE)),\"\")),\"\")","v":""},"","","",null,null,null,null,0,false]
[null,null,null,null,null,null,null,null,null,"",{"$f":"IF(T882,IF(OR(E882=Lists!$R$5,E882=Lists!$R$6),Lists!$V$3,IFERROR(IF(VLOOKUP($C882,lov_ir_risk_by_country,3,FALSE)=\"\",\"\",VLOOKUP($C882,lov_ir_risk_by_country,3,FALSE)),\"\")),\"\")","v":""},"","","",null,null,null,null,0,false]
[null,null,null,null,null,null,null,null,null,"",{"$f":"IF(T883,IF(OR(E883=Lists!$R$5,E883=Lists!$R$6),Lists!$V$3,IFERROR(IF(VLOOKUP($C883,lov_ir_risk_by_country,3,FALSE)=\"\",\"\",VLOOKUP($C883,lov_ir_risk_by_country,3,FALSE)),\"\")),\"\")","v":""},"","","",null,null,null,null,0,false]
[null,null,null,null,null,null,null,null,null,"",{"$f":"IF(T884,IF(OR(E884=Lists!$R$5,E884=Lists!$R$6),Lists!$V$3,IFERROR(IF(VLOOKUP($C884,lov_ir_risk_by_country,3,FALSE)=\"\",\"\",VLOOKUP($C884,lov_ir_risk_by_country,3,FALSE)),\"\")),\"\")","v":""},"","","",null,null,null,null,0,false]
[null,null,null,null,null,null,null,null,null,"",{"$f":"IF(T885,IF(OR(E885=Lists!$R$5,E885=Lists!$R$6),Lists!$V$3,IFERROR(IF(VLOOKUP($C885,lov_ir_risk_by_country,3,FALSE)=\"\",\"\",VLOOKUP($C885,lov_ir_risk_by_country,3,FALSE)),\"\")),\"\")","v":""},"","","",null,null,null,null,0,false]
[null,null,null,null,null,null,null,null,null,"",{"$f":"IF(T886,IF(OR(E886=Lists!$R$5,E886=Lists!$R$6),Lists!$V$3,IFERROR(IF(VLOOKUP($C886,lov_ir_risk_by_country,3,FALSE)=\"\",\"\",VLOOKUP($C886,lov_ir_risk_by_country,3,FALSE)),\"\")),\"\")","v":""},"","","",null,null,null,null,0,false]
[null,null,null,null,null,null,null,null,null,"",{"$f":"IF(T887,IF(OR(E887=Lists!$R$5,E887=Lists!$R$6),Lists!$V$3,IFERROR(IF(VLOOKUP($C887,lov_ir_risk_by_country,3,FALSE)=\"\",\"\",VLOOKUP($C887,lov_ir_risk_by_country,3,FALSE)),\"\")),\"\")","v":""},{"$f":"IF(J887=\"\",IF(H887=\"\",\"\",H887),J887)","v":""},"","",null,null,null,null,0,false]
[null,null,null,null,null,null,null,null,null,"",{"$f":"IF(T888,IF(OR(E888=Lists!$R$5,E888=Lists!$R$6),Lists!$V$3,IFERROR(IF(VLOOKUP($C888,lov_ir_risk_by_country,3,FALSE)=\"\",\"\",VLOOKUP($C888,lov_ir_risk_by_country,3,FALSE)),\"\")),\"\")","v":""},"","","",null,null,null,null,0,false]
[null,null,null,null,null,null,null,null,null,"",{"$f":"IF(T889,IF(OR(E889=Lists!$R$5,E889=Lists!$R$6),Lists!$V$3,IFERROR(IF(VLOOKUP($C889,lov_ir_risk_by_country,3,FALSE)=\"\",\"\",VLOOKUP($C889,lov_ir_risk_by_country,3,FALSE)),\"\")),\"\")","v":""},"","","",null,null,null,null,0,false]
[null,null,null,null,null,null,null,null,null,"",{"$f":"IF(T890,IF(OR(E890=Lists!$R$5,E890=Lists!$R$6),Lists!$V$3,IFERROR(IF(VLOOKUP($C890,lov_ir_risk_by_country,3,FALSE)=\"\",\"\",VLOOKUP($C890,lov_ir_risk_by_country,3,FALSE)),\"\")),\"\")","v":""},"","","",null,null,null,null,0,false]
[null,null,null,null,null,null,null,null,null,"",{"$f":"IF(T891,IF(OR(E891=Lists!$R$5,E891=Lists!$R$6),Lists!$V$3,IFERROR(IF(VLOOKUP($C891,lov_ir_risk_by_country,3,FALSE)=\"\",\"\",VLOOKUP($C891,lov_ir_risk_by_country,3,FALSE)),\"\")),\"\")","v":""},"","","",null,null,null,null,0,false]
[null,null,null,null,null,null,null,null,null,"",{"$f":"IF(T892,IF(OR(E892=Lists!$R$5,E892=Lists!$R$6),Lists!$V$3,IFERROR(IF(VLOOKUP($C892,lov_ir_risk_by_country,3,FALSE)=\"\",\"\",VLOOKUP($C892,lov_ir_risk_by_country,3,FALSE)),\"\")),\"\")","v":""},"","","",null,null,null,null,0,false]
[null,null,null,null,null,null,null,null,null,"",{"$f":"IF(T893,IF(OR(E893=Lists!$R$5,E893=Lists!$R$6),Lists!$V$3,IFERROR(IF(VLOOKUP($C893,lov_ir_risk_by_country,3,FALSE)=\"\",\"\",VLOOKUP($C893,lov_ir_risk_by_country,3,FALSE)),\"\")),\"\")","v":""},"","","",null,null,null,null,0,false]
[null,null,null,null,null,null,null,null,null,"",{"$f":"IF(T894,IF(OR(E894=Lists!$R$5,E894=Lists!$R$6),Lists!$V$3,IFERROR(IF(VLOOKUP($C894,lov_ir_risk_by_country,3,FALSE)=\"\",\"\",VLOOKUP($C894,lov_ir_risk_by_country,3,FALSE)),\"\")),\"\")","v":""},"","","",null,null,null,null,0,false]
[null,null,null,null,null,null,null,null,null,"",{"$f":"IF(T895,IF(OR(E895=Lists!$R$5,E895=Lists!$R$6),Lists!$V$3,IFERROR(IF(VLOOKUP($C895,lov_ir_risk_by_country,3,FALSE)=\"\",\"\",VLOOKUP($C895,lov_ir_risk_by_country,3,FALSE)),\"\")),\"\")","v":""},"","","",null,null,null,null,0,false]
[null,null,null,null,null,null,null,null,null,"",{"$f":"IF(T896,IF(OR(E896=Lists!$R$5,E896=Lists!$R$6),Lists!$V$3,IFERROR(IF(VLOOKUP($C896,lov_ir_risk_by_country,3,FALSE)=\"\",\"\",VLOOKUP($C896,lov_ir_risk_by_country,3,FALSE)),\"\")),\"\")","v":""},"","","",null,null,null,null,0,false]
[]
["h"]
["h","    Additional Information",null,null,null,null,null,null,null,null,null,null,null,null,null,{"$f":"IF(ISBLANK(F901),\"\",E901)","v":""},{"$f":"IF(ISBLANK(F901),\"\",F901)","v":""}]
[null,null,null,null,null,null,null,null,null,null,null,null,null,null,"Comments"]
[null,null,null,null,"Regulatory Solvency Ratio",null,"As of"]
[null,null,null,null,"Non-Life DAC"]
[null,null,null,null,"Net UPR"]
[]
["h"]

{"sheet":"Adjustment","index":3,"n_rows":50,"n_cols":16,"rows_kept":50,"cut":false,"hidden":false,"merged":[[28,5,28,9],[2,12,2,15],[2,11,3,11],[29,5,29,9],[47,5,47,9],[46,5,46,9],[45,5,45,9],[44,5,44,9],[43,5,43,9],[48,5,48,9],[30,5,30,9],[31,5,31,9],[32,5,32,9],[33,5,33,9],[34,5,34,9],[35,5,35,9],[36,5,36,9],[37,5,37,9],[38,5,38,9],[39,5,39,9],[42,5,42,9],[41,5,41,9],[40,5,40,9]]}
[]
["h","Required Capital Company Specific Adjustments",null,null,null,null,null,null,"Total Adjustment Amount at 99.5% level",{"$f":"P25","v":0}]
[null,null,null,null,null,null,null,null,null,null,null,"Category","Adjustment Amount"]
[null,null,null,"Category","Exposure Amt.",0.99990000000000001,0.99950000000000006,0.998,0.995,"Description",null,null,0.99990000000000001,0.99950000000000006,0.998,0.995]
[null,null,null,null,null,null,null,null,null,null,null,{"$f":"IF(ISBLANK(D5), \"\",D5)","v":""},{"$f":"IF(ISBLANK($D5), \"\",$E5*F5)","v":""},{"$f":"IF(ISBLANK($D5), \"\",$E5*G5)","v":""},{"$f":"IF(ISBLANK($D5), \"\",$E5*H5)","v":""},{"$f":"IF(ISBLANK($D5), \"\",$E5*I5)","v":""}]
[null,null,null,null,null,null,null,null,null,null,null,{"$f":"IF(ISBLANK(D6), \"\",D6)","v":""},{"$f":"IF(ISBLANK($D6), \"\",$E6*F6)","v":""},"","",""]
[null,null,null,null,null,null,null,null,null,null,null,{"$f":"IF(ISBLANK(D7), \"\",D7)","v":""},"","","",""]
[null,null,null,null,null,null,null,null,null,null,null,"","","","",""]
[null,null,null,null,null,null,null,null,null,null,null,{"$f":"IF(ISBLANK(D9), \"\",D9)","v":""},"","","",""]
[null,null,null,null,null,null,null,null,null,null,null,"","","","",""]
[null,null,null,null,null,null,null,null,null,null,null,{"$f":"IF(ISBLANK(D11), \"\",D11)","v":""},{"$f":"IF(ISBLANK($D11), \"\",$E11*F11)","v":""},{"$f":"IF(ISBLANK($D11), \"\",$E11*G11)","v":""},{"$f":"IF(ISBLANK($D11), \"\",$E11*H11)","v":""},{"$f":"IF(ISBLANK($D11), \"\",$E11*I11)","v":""}]
[null,null,null,null,null,null,null,null,null,null,null,"","","","",""]
[null,null,null,null,null,null,null,null,null,null,null,"","","","",""]
[null,null,null,null,null,null,null,null,null,null,null,"","","","",""]
[null,null,null,null,null,null,null,null,null,null,null,"","","","",""]
[null,null,null,null,null,null,null,null,null,null,null,"","","","",""]
[null,null,null,null,null,null,null,null,null,null,null,"","","","",""]
[null,null,null,null,null,null,null,null,null,null,null,"","","","",""]
[null,null,null,null,null,null,null,null,null,null,null,"","","","",""]
[null,null,null,null,null,null,null,null,null,null,null,"","","","",""]
[null,null,null,null,null,null,null,null,null,null,null,"","","","",""]
[null,null,null,null,null,null,null,null,null,null,null,"","","","",""]
[null,null,null,null,null,null,null,null,null,null,null,"","","","",""]
[null,null,null,null,null,null,null,null,null,null,null,"","","","",""]
[null,null,null,null,null,null,null,null,null,null,null,"Total",{"$f":"SUM(M5:M24)","v":0},{"$f":"SUM(N5:N24)","v":0},0,0]
[]
["h","TAC/ACE Company Specific Adjustments",null,null,null,null,null,null,"Total Adjustment Amount",{"$f":"E50","v":0}]
[]
[null,null,null,"Category","Adjustment Amt.","Description"]
[]
[]
[]
[]
[]
[]
[]
[]
[]
[]
[]
[]
[]
[]
[]
[]
[]
[]
[]
[]
[null,null,null,"Total",{"$f":"SUM(E30:E49)","v":0}]

{"sheet":"Output","index":4,"n_rows":174,"n_cols":15,"rows_kept":174,"cut":false,"hidden":false,"merged":[[146,1,146,6],[146,7,146,8],[146,9,146,10],[146,11,146,12],[146,13,146,14],[132,1,132,6],[132,7,132,8],[132,9,132,10],[132,11,132,12],[132,13,132,14],[61,1,61,6],[61,7,61,8],[61,9,61,10],[61,11,61,12],[61,13,61,14],[32,1,32,6],[32,7,32,8],[32,9,32,10],[32,11,32,12],[32,13,32,14],[5,1,5,6],[5,7,5,8],[5,9,5,10],[5,11,5,12],[5,13,5,14],[13,1,13,6],[11,9,11,10],[11,7,11,8],[11,11,11,12],[30,9,30,10],[30,13,30,14],[30,7,30,8],[30,11,30,12],[9,7,9,8],[9,9,9,10],[9,11,9,12],[9,13,9,14],[13,13,13,14],[13,7,13,8],[13,9,13,10],[13,11,13,12],[10,13,10,14],[11,13,11,14],[10,7,10,8],[10,9,10,10],[10,11,10,12],[7,7,7,8],[7,13,7,14],[7,11,7,12],[7,9,7,10],[8,7,8,8],[8,9,8,10],[8,11,8,12],[8,13,8,14]]}
[]
[]
[null,null,"Company/Group: ",null,null,{"$f":"IF(Input!F10=\"\",\"Enter Company/Group in 'Input' Sheet\",Input!F10)","v":"Enter Company/Group in 'Input' Sheet"},null,null,"Review Type",{"$f":"IF(Input!H11=\"\",\"\",Input!H11)","v":"Actual"},{"$f":"Input!E12","v":"Currency"},{"$f":"IF(Input!F12=\"\",\"\",Input!F12)","v":"USD"},null,{"$f":"IF(SUM(Input!S:S) > 0, Error_Message, \"\")","v":""}]
[null,null,null,null,"Regulatory Solvency Ratio as of",{"$f":"IF(Input!H901=\"\",\"\",Input!H901)","v":""},{"$f":"IF(Input!F901=\"\",\"\",Input!F901)","v":""},null,{"$f":"Input!E11","v":"Year-End Date"},{"$f":"IF(Input!F11=\"\",\"\",Input!F11)","v":""},{"$f":"Input!I12","v":"Units"},{"$f":"IF(Input!J12=\"\",\"\",Input!J12)","v":"Millions"},null,"Model Version",{"$f":"model_version","v":3}]
[]
[null,"Stress Scenario",null,null,null,null,null,0.99990000000000001,null,0.99950000000000006,null,0.998,null,0.995]
[]
[null,null,"Model Results"]
[null,null,{"$f":"C31","v":"TAC - Total Adjusted Capital"},null,null,null,null,{"$f":"H31","v":0},null,{"$f":"J31","v":0},null,{"$f":"L31","v":0},null,{"$f":"N31","v":0}]
[null,null,{"$f":"C156","v":"Diversified total RBC requirement"},null,null,null,null,{"$f":"H156","v":0},null,{"$f":"J156","v":0},null,{"$f":"L156","v":0},null,{"$f":"N156","v":0}]
[null,null,"Diversified Redundancy/(Deficiency)",null,null,null,null,{"$f":"H9-H10","v":0},null,{"$f":"J9-J10","v":0},null,{"$f":"L9-L10","v":0},null,{"$f":"N9-N10","v":0}]
[null,null,"Diversified Redundancy/(Deficiency) %",null,null,null,null,{"$f":"IF(OR(H9=0,H10=0),\"-\",H11/H10)","v":"-"},null,{"$f":"IF(OR(J9=0,J10=0),\"-\",J11/J10)","v":"-"},null,{"$f":"IF(OR(L9=0,L10=0),\"-\",L11/L10)","v":"-"},null,{"$f":"IF(OR(N9=0,N10=0),\"-\",N11/N10)","v":"-"}]
[]
[]
[]
[null,null,"Available capital"]
[null,null,{"$f":"TAC!D30","v":"1. Common shareholders' equity/policyholders’ surplus"},null,null,null,null,{"$f":"TAC!F30","v":0},{"$f":"IF(H$31=0,\"-\",H17/H$31)","v":"-"},{"$f":"H17","v":0},{"$f":"I17","v":"-"},0,{"$f":"K17","v":"-"},0,{"$f":"M17","v":"-"}]
[null,null,{"$f":"TAC!D32","v":"2. Equity noncontrolling interests"},null,null,null,null,{"$f":"TAC!F32","v":0},"-",0,{"$f":"I18","v":"-"},0,"-",0,"-"]
[null,null,{"$f":"TAC!D33","v":"3. Investments in own shares/treasury shares "},null,null,null,null,{"$f":"TAC!F33","v":0},"-",0,"-",0,"-",0,"-"]
[null,null,{"$f":"TAC!D34","v":"4. Shareholder distributions not accrued"},null,null,null,null,{"$f":"TAC!F34","v":0},"-",0,"-",0,"-",0,"-"]
[null,null,{"$f":"TAC!D35","v":"5. Intangible Assets"},null,null,null,null,{"$f":"TAC!F35","v":0},"-",0,"-",0,"-",0,"-"]
[null,null,{"$f":"TAC!D38","v":"6. Postretirement employee benefits"},null,null,null,null,{"$f":"TAC!F38","v":0},"-",0,"-",0,"-",0,"-"]
[null,null,{"$f":"TAC!D42","v":"7. Unrealized gains and losses on investments "},null,null,null,null,{"$f":"TAC!F42","v":0},"-",0,"-",0,"-",0,"-"]
[null,null,{"$f":"TAC!D43","v":"8. Non-life reserve adjustments"},null,null,null,null,{"$f":"TAC!F43","v":0},"-",0,"-",0,"-",0,"-"]
[null,null,{"$f":"TAC!D47","v":"9. Life reserve adjustments"},null,null,null,null,{"$f":"TAC!F47","v":0},"-",{"$f":"H25","v":0},"-",0,"-",0,"-"]
[null,null,{"$f":"TAC!D56","v":"10. Hybrid capital/debt-funded capital (subject to tolerance limits)"},null,null,null,null,{"$f":"TAC!F56","v":0},"-",0,"-",0,"-",0,"-"]
[null,null,{"$f":"TAC!D60","v":"11.Investments in noninsurance subsidiaries and joint ventures"},null,null,null,null,{"$f":"TAC!F60","v":0},"-",0,"-",0,"-",0,"-"]
[null,null,{"$f":"TAC!D61","v":"12. Policyholder capital available to absorb losses"},null,null,null,null,{"$f":"TAC!F61","v":0},"-",0,"-",0,"-",0,"-"]
[null,null,{"$f":"TAC!D62","v":"13. Unrealized gains on investments backing participating life business"},null,null,null,null,{"$f":"TAC!F62","v":0},"-",0,{"$f":"I29","v":"-"},{"$f":"J29","v":0},{"$f":"K29","v":"-"},{"$f":"L29","v":0},{"$f":"M29","v":"-"}]
[null,null,"14. Company-specific analytical adjustments",null,null,null,null,{"$f":"TAC!F53+TAC!F63","v":0},"-",0,"-",0,"-",0,"-"]
[null,null,"TAC - Total Adjusted Capital",null,null,null,null,{"$f":"SUM(H17:H30)","v":0},null,{"$f":"SUM(J17:J30)","v":0},null,{"$f":"SUM(L17:L30)","v":0},null,{"$f":"SUM(N17:N30)","v":0}]
[]
[]
[]
[null,null,"Asset risks"]
[null,null,"Credit risk",null,null,null,null,{"$f":"SUM(H37:H43)","v":0},{"$f":"IF(H$149=0,\"-\",H36/H$149)","v":"-"},{"$f":"SUM(J37:J43)","v":0},{"$f":"IF(J$149=0,\"-\",J36/J$149)","v":"-"},{"$f":"SUM(L37:L43)","v":0},{"$f":"IF(L$149=0,\"-\",L36/L$149)","v":"-"},{"$f":"SUM(N37:N43)","v":0},{"$f":"IF(N$149=0,\"-\",N36/N$149)","v":"-"}]
[null,null,"   -  Bonds",null,null,null,null,{"$f":"'Asset Risk'!D22","v":0},"-",{"$f":"'Asset Risk'!E22","v":0},"-",{"$f":"'Asset Risk'!F22","v":0},"-",{"$f":"'Asset Risk'!G22","v":0},"-"]
[null,null,"   -  Reinsurance Recoverables",null,null,null,null,{"$f":"'Asset Risk'!D183","v":0},"-",{"$f":"'Asset Risk'!E183","v":0},"-",{"$f":"'Asset Risk'!F183","v":0},"-",{"$f":"'Asset Risk'!G183","v":0},"-"]
[null,null,"   -  Mortgage risk",null,null,null,null,{"$f":"'Asset Risk'!D24","v":0},"-",{"$f":"'Asset Risk'!E24","v":0},"-",{"$f":"'Asset Risk'!F24","v":0},"-",{"$f":"'Asset Risk'!G24","v":0},"-"]
[null,null,"   -  Bank Deposits",null,null,null,null,{"$f":"'Asset Risk'!D217","v":0},"-",{"$f":"'Asset Risk'!E217","v":0},"-",{"$f":"'Asset Risk'!F217","v":0},"-",{"$f":"'Asset Risk'!G217","v":0},"-"]
[null,null,"   -  OTC Derivatives",null,null,null,null,{"$f":"'Asset Risk'!D221","v":0},"-",{"$f":"'Asset Risk'!E221","v":0},"-",{"$f":"'Asset Risk'!F221","v":0},"-",{"$f":"'Asset Risk'!G221","v":0},"-"]
[null,null,"   -  Other Chargeable Assets",null,null,null,null,{"$f":"'Asset Risk'!D222","v":0},"-",{"$f":"'Asset Risk'!E222","v":0},"-",{"$f":"'Asset Risk'!F222","v":0},"-",{"$f":"'Asset Risk'!G222","v":0},"-"]
[null,null,"   -  Deposits with cedents",null,null,null,null,{"$f":"'Asset Risk'!D223","v":0},"-",{"$f":"'Asset Risk'!E223","v":0},"-",{"$f":"'Asset Risk'!F223","v":0},"-",{"$f":"'Asset Risk'!G223","v":0},"-"]
[null,null,"Market risk",null,null,null,null,{"$f":"SUM(H45:H47)","v":0},"-",{"$f":"SUM(J45:J47)","v":0},"-",{"$f":"SUM(L45:L47)","v":0},"-",{"$f":"SUM(N45:N47)","v":0},"-"]
[null,null,"   -  Equity risk",null,null,null,null,{"$f":"'Asset Risk'!D156","v":0},"-",{"$f":"'Asset Risk'!E156","v":0},"-",{"$f":"'Asset Risk'!F156","v":0},"-",{"$f":"'Asset Risk'!G156","v":0},"-"]
[null,null,"   -  Real Estate risk",null,null,null,null,{"$f":"'Asset Risk'!D170","v":0},"-",{"$f":"'Asset Risk'!E170","v":0},"-",{"$f":"'Asset Risk'!F170","v":0},"-",{"$f":"'Asset Risk'!G170","v":0},"-"]
[null,null,"   -  Interest rate risk",null,null,null,null,{"$f":"'Interest Rate Risk'!W46","v":0},"-",{"$f":"'Interest Rate Risk'!Y46","v":0},"-",{"$f":"'Interest Rate Risk'!AA46","v":0},"-",{"$f":"'Interest Rate Risk'!AC46","v":0},"-"]
[]
[null,null,"Other asset risks",null,null,null,null,{"$f":"'Asset Risk'!D219","v":0},{"$f":"IF(H$149=0,\"-\",H49/H$149)","v":"-"},{"$f":"'Asset Risk'!E219","v":0},{"$f":"IF(J$149=0,\"-\",J49/J$149)","v":"-"},{"$f":"'Asset Risk'!F219","v":0},{"$f":"IF(L$149=0,\"-\",L49/L$149)","v":"-"},{"$f":"'Asset Risk'!G219","v":0},{"$f":"IF(N$149=0,\"-\",N49/N$149)","v":"-"}]
[]
[null,null,"Company-Specific Analytical adjustments (Assets)",null,null,null,null,{"$f":"SUM(H52:H58)","v":0},{"$f":"IF(H$149=0,\"-\",H51/H$149)","v":"-"},{"$f":"SUM(J52:J58)","v":0},{"$f":"IF(J$149=0,\"-\",J51/J$149)","v":"-"},{"$f":"SUM(L52:L58)","v":0},{"$f":"IF(L$149=0,\"-\",L51/L$149)","v":"-"},{"$f":"SUM(N52:N58)","v":0},{"$f":"IF(N$149=0,\"-\",N51/N$149)","v":"-"}]
[null,null,"-  Asset risk",null,null,null,null,{"$f":"SUMIF(Adjustment!$L$5:$L$24,Lists!$L$8,Adjustment!M$5:M$24)","v":0},"-",{"$f":"SUMIF(Adjustment!$L$5:$L$24,Lists!$L$8,Adjustment!N$5:N$24)","v":0},"-",{"$f":"SUMIF(Adjustment!$L$5:$L$24,Lists!$L$8,Adjustment!O$5:O$24)","v":0},"-",{"$f":"SUMIF(Adjustment!$L$5:$L$24,Lists!$L$8,Adjustment!P$5:P$24)","v":0},"-"]
[null,null,"   -  Credit risk",null,null,null,null,{"$f":"'Asset Risk'!D29","v":0},"-",{"$f":"'Asset Risk'!E29","v":0},"-",{"$f":"'Asset Risk'!F29","v":0},"-",{"$f":"'Asset Risk'!G29","v":0},"-"]
[null,null,"   -  Market risk",null,null,null,null,{"$f":"'Asset Risk'!D6","v":0},"-",{"$f":"'Asset Risk'!E6","v":0},"-",{"$f":"'Asset Risk'!F6","v":0},"-",{"$f":"'Asset Risk'!G6","v":0},"-"]
[null,null,"   -  Equity risk",null,null,null,null,{"$f":"'Asset Risk'!D10","v":0},"-",{"$f":"'Asset Risk'!E10","v":0},"-",{"$f":"'Asset Risk'!F10","v":0},"-",{"$f":"'Asset Risk'!G10","v":0},"-"]
[null,null,"   -  Real Estate risk",null,null,null,null,{"$f":"'Asset Risk'!D18","v":0},"-",{"$f":"'Asset Risk'!E18","v":0},"-",{"$f":"'Asset Risk'!F18","v":0},"-",{"$f":"'Asset Risk'!G18","v":0},"-"]
[null,null,"   -  Interest rate risk",null,null,null,null,{"$f":"'Asset Risk'!D14","v":0},"-",{"$f":"'Asset Risk'!E14","v":0},"-",{"$f":"'Asset Risk'!F14","v":0},"-",{"$f":"'Asset Risk'!G14","v":0},"-"]
[null,null,"   -  Other asset risk",null,null,null,null,{"$f":"SUMIF(Adjustment!$L$5:$L$24,Lists!$L$36,Adjustment!M$5:M$24)","v":0},"-",{"$f":"SUMIF(Adjustment!$L$5:$L$24,Lists!$L$36,Adjustment!N$5:N$24)","v":0},"-",{"$f":"SUMIF(Adjustment!$L$5:$L$24,Lists!$L$36,Adjustment!O$5:O$24)","v":0},"-",{"$f":"SUMIF(Adjustment!$L$5:$L$24,Lists!$L$36,Adjustment!P$5:P$24)","v":0},"-"]
[]
[null,null,"Total RBC requirement for asset risks",null,null,null,null,{"$f":"SUM(H36,H44,H49,H51)","v":0},{"$f":"IF(H$149=0,\"-\",H60/H$149)","v":"-"},{"$f":"SUM(J36,J44,J49,J51)","v":0},{"$f":"IF(J$149=0,\"-\",J60/J$149)","v":"-"},{"$f":"SUM(L36,L44,L49,L51)","v":0},{"$f":"IF(L$149=0,\"-\",L60/L$149)","v":"-"},{"$f":"SUM(N36,N44,N49,N51)","v":0},{"$f":"IF(N$149=0,\"-\",N60/N$149)","v":"-"}]
[]
[]
[]
[null,null,"Liability risks"]
[null,null,"Non-life premium (net of reinsurance) risk",null,null,null,null,{"$f":"SUM(H66:H73)","v":0},{"$f":"IF(H$149=0,\"-\",H65/H$149)","v":"-"},{"$f":"SUM(J66:J73)","v":0},{"$f":"IF(J$149=0,\"-\",J65/J$149)","v":"-"},{"$f":"SUM(L66:L73)","v":0},{"$f":"IF(L$149=0,\"-\",L65/L$149)","v":"-"},{"$f":"SUM(N66:N73)","v":0},{"$f":"IF(N$149=0,\"-\",N65/N$149)","v":"-"}]
[null,null,"   -  Liability",null,null,null,null,{"$f":"'Non-Life Risk'!E23","v":0},"-",{"$f":"'Non-Life Risk'!F23","v":0},"-",{"$f":"'Non-Life Risk'!G23","v":0},"-",{"$f":"'Non-Life Risk'!H23","v":0},"-"]
[null,null,"   -  Property",null,null,null,null,{"$f":"'Non-Life Risk'!E24","v":0},"-",{"$f":"'Non-Life Risk'!F24","v":0},"-",{"$f":"'Non-Life Risk'!G24","v":0},"-",{"$f":"'Non-Life Risk'!H24","v":0},"-"]
[null,null,"   -  Motor",null,null,null,null,{"$f":"'Non-Life Risk'!E25","v":0},"-",{"$f":"'Non-Life Risk'!F25","v":0},"-",{"$f":"'Non-Life Risk'!G25","v":0},"-",{"$f":"'Non-Life Risk'!H25","v":0},"-"]
[null,null,"   -  Financial",null,null,null,null,{"$f":"'Non-Life Risk'!E26-H73","v":0},"-",{"$f":"'Non-Life Risk'!F26-J73","v":0},"-",{"$f":"'Non-Life Risk'!G26-L73","v":0},"-",{"$f":"'Non-Life Risk'!H26-N73","v":0},"-"]
[null,null,"   -  Health",null,null,null,null,{"$f":"'Non-Life Risk'!E27","v":0},"-",{"$f":"'Non-Life Risk'!F27","v":0},"-",{"$f":"'Non-Life Risk'!G27","v":0},"-",{"$f":"'Non-Life Risk'!H27","v":0},"-"]
[null,null,"   -  MAT",null,null,null,null,{"$f":"'Non-Life Risk'!E28","v":0},"-",{"$f":"'Non-Life Risk'!F28","v":0},"-",{"$f":"'Non-Life Risk'!G28","v":0},"-",{"$f":"'Non-Life Risk'!H28","v":0},"-"]
[null,null,"   -  Other",null,null,null,null,{"$f":"'Non-Life Risk'!E29","v":0},"-",{"$f":"'Non-Life Risk'!F29","v":0},"-",{"$f":"'Non-Life Risk'!G29","v":0},"-",{"$f":"'Non-Life Risk'!H29","v":0},"-"]
[null,null,"   -  Mortgage Insurance",null,null,null,null,{"$f":"'Non-Life Risk'!W8","v":0},"-",{"$f":"'Non-Life Risk'!X8","v":0},"-",{"$f":"'Non-Life Risk'!Y8","v":0},"-",{"$f":"'Non-Life Risk'!Z8","v":0},"-"]
[null,null,"Non-life reserve (net of reinsurance) risk",null,null,null,null,{"$f":"SUM(H75:H82)","v":0},"-",{"$f":"SUM(J75:J82)","v":0},"-",{"$f":"SUM(L75:L82)","v":0},"-",{"$f":"SUM(N75:N82)","v":0},"-"]
[null,null,"   -  Liability",null,null,null,null,{"$f":"'Non-Life Risk'!E171","v":0},"-",{"$f":"'Non-Life Risk'!F171","v":0},"-",{"$f":"'Non-Life Risk'!G171","v":0},"-",{"$f":"'Non-Life Risk'!H171","v":0},"-"]
[null,null,"   -  Property",null,null,null,null,{"$f":"'Non-Life Risk'!E172","v":0},"-",{"$f":"'Non-Life Risk'!F172","v":0},"-",{"$f":"'Non-Life Risk'!G172","v":0},"-",{"$f":"'Non-Life Risk'!H172","v":0},"-"]
[null,null,"   -  Motor",null,null,null,null,{"$f":"'Non-Life Risk'!E173","v":0},"-",{"$f":"'Non-Life Risk'!F173","v":0},"-",{"$f":"'Non-Life Risk'!G173","v":0},"-",{"$f":"'Non-Life Risk'!H173","v":0},"-"]
[null,null,"   -  Financial",null,null,null,null,{"$f":"'Non-Life Risk'!E174-H82","v":0},"-",{"$f":"'Non-Life Risk'!F174-J82","v":0},"-",{"$f":"'Non-Life Risk'!G174-L82","v":0},"-",{"$f":"'Non-Life Risk'!H174-N82","v":0},"-"]
[null,null,"   -  Health",null,null,null,null,{"$f":"'Non-Life Risk'!E175","v":0},"-",{"$f":"'Non-Life Risk'!F175","v":0},"-",{"$f":"'Non-Life Risk'!G175","v":0},"-",{"$f":"'Non-Life Risk'!H175","v":0},"-"]
[null,null,"   -  MAT",null,null,null,null,{"$f":"'Non-Life Risk'!E176","v":0},"-",{"$f":"'Non-Life Risk'!F176","v":0},"-",{"$f":"'Non-Life Risk'!G176","v":0},"-",{"$f":"'Non-Life Risk'!H176","v":0},"-"]
[null,null,"   -  Other",null,null,null,null,{"$f":"'Non-Life Risk'!E177","v":0},"-",{"$f":"'Non-Life Risk'!F177","v":0},"-",{"$f":"'Non-Life Risk'!G177","v":0},"-",{"$f":"'Non-Life Risk'!H177","v":0},"-"]
[null,null,"   -  Mortgage Insurance",null,null,null,null,{"$f":"'Non-Life Risk'!W14","v":0},"-",{"$f":"'Non-Life Risk'!X14","v":0},"-",{"$f":"'Non-Life Risk'!Y14","v":0},"-",{"$f":"'Non-Life Risk'!Z14","v":0},"-"]
[null,null,"Natural catastrophe risk",null,null,null,null,{"$f":"H84+H85","v":0},"-",{"$f":"J84+J85","v":0},"-",{"$f":"L84+L85","v":0},"-",{"$f":"N84+N85","v":0},"-"]
[null,null,"    - Natural catastrophe risk",null,null,null,null,{"$f":"'Nat Cat Risk'!D21","v":0},"-",{"$f":"'Nat Cat Risk'!E21","v":0},"-",{"$f":"'Nat Cat Risk'!F21","v":0},"-",{"$f":"'Nat Cat Risk'!G21","v":0},"-"]
[null,null,"    - Natural catastrophe risk reinsurance recoveries",null,null,null,null,{"$f":"'Nat Cat Risk'!D34","v":0},"-",{"$f":"'Nat Cat Risk'!E34","v":0},"-",{"$f":"'Nat Cat Risk'!F34","v":0},"-",{"$f":"'Nat Cat Risk'!G34","v":0},"-"]
[null,null,"Life risks",null,null,null,null,{"$f":"SUM(H87:H88,H91,H95:H98)","v":0},"-",{"$f":"SUM(J87:J88,J91,J95:J98)","v":0},"-",{"$f":"SUM(L87:L88,L91,L95:L98)","v":0},"-",{"$f":"SUM(N87:N88,N91,N95:N98)","v":0},"-"]
[null,null,"   -  Mortality",null,null,null,null,{"$f":"'Life Risk'!D40","v":0},"-",{"$f":"'Life Risk'!E40","v":0},"-",{"$f":"'Life Risk'!F40","v":0},"-",{"$f":"'Life Risk'!G40","v":0},"-"]
[null,null,"   -  Pandemic",null,null,null,null,{"$f":"H89+H90","v":0},"-",{"$f":"J89+J90","v":0},"-",{"$f":"L89+L90","v":0},"-",{"$f":"N89+N90","v":0},"-"]
[null,null,"       -  Pandemic",null,null,null,null,{"$f":"'Life Risk'!D45","v":0},"-",{"$f":"'Life Risk'!E45","v":0},"-",{"$f":"'Life Risk'!F45","v":0},"-",{"$f":"'Life Risk'!G45","v":0},"-"]
[null,null,"       -  Pandemic reinsurance recoveries",null,null,null,null,{"$f":"'Life Risk'!D49","v":0},"-",{"$f":"'Life Risk'!E49","v":0},"-",{"$f":"'Life Risk'!F49","v":0},"-",{"$f":"'Life Risk'!G49","v":0},"-"]
[null,null,"   -  Morbidity",null,null,null,null,{"$f":"'Life Risk'!D106","v":0},"-",{"$f":"'Life Risk'!E106","v":0},"-",{"$f":"'Life Risk'!F106","v":0},"-",{"$f":"'Life Risk'!G106","v":0},"-"]
[null,null,"       -  Critical Illness",null,null,null,null,{"$f":"'Life Risk'!D103","v":0},"-",{"$f":"'Life Risk'!E103","v":0},"-",{"$f":"'Life Risk'!F103","v":0},"-",{"$f":"'Life Risk'!G103","v":0},"-"]
[null,null,"       -  Disability",null,null,null,null,{"$f":"'Life Risk'!D104","v":0},"-",{"$f":"'Life Risk'!E104","v":0},"-",{"$f":"'Life Risk'!F104","v":0},"-",{"$f":"'Life Risk'!G104","v":0},"-"]
[null,null,"       -  Long term care",null,null,null,null,{"$f":"'Life Risk'!D105","v":0},"-",{"$f":"'Life Risk'!E105","v":0},"-",{"$f":"'Life Risk'!F105","v":0},"-",{"$f":"'Life Risk'!G105","v":0},"-"]
[null,null,"   -  Longevity",null,null,null,null,{"$f":"'Life Risk'!D119","v":0},"-",{"$f":"'Life Risk'!E119","v":0},"-",{"$f":"'Life Risk'!F119","v":0},"-",{"$f":"'Life Risk'!G119","v":0},"-"]
[null,null,"   -  Other life",null,null,null,null,{"$f":"'Life Risk'!D160-'Life Risk'!D161","v":0},"-",{"$f":"'Life Risk'!E160-'Life Risk'!E161","v":0},"-",{"$f":"'Life Risk'!F160-'Life Risk'!F161","v":0},"-",{"$f":"'Life Risk'!G160-'Life Risk'!G161","v":0},"-"]
[null,null,"   -  Health with aging reserves",null,null,null,null,{"$f":"'Life Risk'!D184","v":0},"-",{"$f":"'Life Risk'!E184","v":0},"-",{"$f":"'Life Risk'!F184","v":0},"-",{"$f":"'Life Risk'!G184","v":0},"-"]
[null,null,"   -  Variable Annuities",null,null,null,null,{"$f":"'Life Risk'!D174","v":0},"-",{"$f":"'Life Risk'!E174","v":0},"-",{"$f":"'Life Risk'!F174","v":0},"-",{"$f":"'Life Risk'!G174","v":0},"-"]
[]
[null,null,"Company-Specific Analytical adjustments (Liabilities)",null,null,null,null,{"$f":"SUM(H101,H102,H103,H111,H119,H122:H127)","v":0},{"$f":"IF(H$149=0,\"-\",H100/H$149)","v":"-"},{"$f":"SUM(J101,J102,J103,J111,J119,J122:J127)","v":0},{"$f":"IF(J$149=0,\"-\",J100/J$149)","v":"-"},{"$f":"SUM(L101,L102,L103,L111,L119,L122:L127)","v":0},{"$f":"IF(L$149=0,\"-\",L100/L$149)","v":"-"},{"$f":"SUM(N101,N102,N103,N111,N119,N122:N127)","v":0},{"$f":"IF(N$149=0,\"-\",N100/N$149)","v":"-"}]
[null,null,"-  Liability risk",null,null,null,null,{"$f":"SUMIF(Adjustment!$L$5:$L$24,Lists!$L$13,Adjustment!M$5:M$24)","v":0},"-",{"$f":"SUMIF(Adjustment!$L$5:$L$24,Lists!$L$13,Adjustment!N$5:N$24)","v":0},"-",{"$f":"SUMIF(Adjustment!$L$5:$L$24,Lists!$L$13,Adjustment!O$5:O$24)","v":0},"-",{"$f":"SUMIF(Adjustment!$L$5:$L$24,Lists!$L$13,Adjustment!P$5:P$24)","v":0},"-"]
[null,null,"   -  Non-life technical risk",null,null,null,null,{"$f":"'Non-Life Risk'!E6","v":0},"-",{"$f":"'Non-Life Risk'!F6","v":0},"-",{"$f":"'Non-Life Risk'!G6","v":0},"-",{"$f":"'Non-Life Risk'!H6","v":0},"-"]
[null,null,"   -  Non-life premium risk",null,null,null,null,{"$f":"SUM(H104:H110)+Diversification!D96","v":0},"-",{"$f":"SUM(J104:J110)+Diversification!E96","v":0},"-",{"$f":"SUM(L104:L110)+Diversification!F96","v":0},"-",{"$f":"SUM(N104:N110)+Diversification!G96","v":0},"-"]
[null,null,"        -  Liability",null,null,null,null,{"$f":"'Non-Life Risk'!E8","v":0},"-",{"$f":"'Non-Life Risk'!F8","v":0},"-",{"$f":"'Non-Life Risk'!G8","v":0},"-",{"$f":"'Non-Life Risk'!H8","v":0},"-"]
[null,null,"        -  Property",null,null,null,null,{"$f":"'Non-Life Risk'!E9","v":0},"-",{"$f":"'Non-Life Risk'!F9","v":0},"-",{"$f":"'Non-Life Risk'!G9","v":0},"-",{"$f":"'Non-Life Risk'!H9","v":0},"-"]
[null,null,"        -  Motor",null,null,null,null,{"$f":"'Non-Life Risk'!E10","v":0},"-",{"$f":"'Non-Life Risk'!F10","v":0},"-",{"$f":"'Non-Life Risk'!G10","v":0},"-",{"$f":"'Non-Life Risk'!H10","v":0},"-"]
[null,null,"        -  Financial",null,null,null,null,{"$f":"'Non-Life Risk'!E11","v":0},"-",{"$f":"'Non-Life Risk'!F11","v":0},"-",{"$f":"'Non-Life Risk'!G11","v":0},"-",{"$f":"'Non-Life Risk'!H11","v":0},"-"]
[null,null,"        -  Health",null,null,null,null,{"$f":"'Non-Life Risk'!E12","v":0},"-",{"$f":"'Non-Life Risk'!F12","v":0},"-",{"$f":"'Non-Life Risk'!G12","v":0},"-",{"$f":"'Non-Life Risk'!H12","v":0},"-"]
[null,null,"        -  MAT",null,null,null,null,{"$f":"'Non-Life Risk'!E13","v":0},"-",{"$f":"'Non-Life Risk'!F13","v":0},"-",{"$f":"'Non-Life Risk'!G13","v":0},"-",{"$f":"'Non-Life Risk'!H13","v":0},"-"]
[null,null,"        -  Other",null,null,null,null,{"$f":"'Non-Life Risk'!E14","v":0},"-",{"$f":"'Non-Life Risk'!F14","v":0},"-",{"$f":"'Non-Life Risk'!G14","v":0},"-",{"$f":"'Non-Life Risk'!H14","v":0},"-"]
[null,null,"   -  Non-life reserve risk",null,null,null,null,{"$f":"SUM(H112:H118)+Diversification!D97","v":0},"-",{"$f":"SUM(J112:J118)+Diversification!E97","v":0},"-",{"$f":"SUM(L112:L118)+Diversification!F97","v":0},"-",{"$f":"SUM(N112:N118)+Diversification!G97","v":0},"-"]
[null,null,"        -  Liability",null,null,null,null,{"$f":"'Non-Life Risk'!N8","v":0},"-",{"$f":"'Non-Life Risk'!O8","v":0},"-",{"$f":"'Non-Life Risk'!P8","v":0},"-",{"$f":"'Non-Life Risk'!Q8","v":0},"-"]
[null,null,"        -  Property",null,null,null,null,{"$f":"'Non-Life Risk'!N9","v":0},"-",{"$f":"'Non-Life Risk'!O9","v":0},"-",{"$f":"'Non-Life Risk'!P9","v":0},"-",{"$f":"'Non-Life Risk'!Q9","v":0},"-"]
[null,null,"        -  Motor",null,null,null,null,{"$f":"'Non-Life Risk'!N10","v":0},"-",{"$f":"'Non-Life Risk'!O10","v":0},"-",{"$f":"'Non-Life Risk'!P10","v":0},"-",{"$f":"'Non-Life Risk'!Q10","v":0},"-"]
[null,null,"        -  Financial",null,null,null,null,{"$f":"'Non-Life Risk'!N11","v":0},"-",{"$f":"'Non-Life Risk'!O11","v":0},"-",{"$f":"'Non-Life Risk'!P11","v":0},"-",{"$f":"'Non-Life Risk'!Q11","v":0},"-"]
[null,null,"        -  Health",null,null,null,null,{"$f":"'Non-Life Risk'!N12","v":0},"-",{"$f":"'Non-Life Risk'!O12","v":0},"-",{"$f":"'Non-Life Risk'!P12","v":0},"-",{"$f":"'Non-Life Risk'!Q12","v":0},"-"]
[null,null,"        -  MAT",null,null,null,null,{"$f":"'Non-Life Risk'!N13","v":0},"-",{"$f":"'Non-Life Risk'!O13","v":0},"-",{"$f":"'Non-Life Risk'!P13","v":0},"-",{"$f":"'Non-Life Risk'!Q13","v":0},"-"]
[null,null,"        -  Other",null,null,null,null,{"$f":"'Non-Life Risk'!N14","v":0},"-",{"$f":"'Non-Life Risk'!O14","v":0},"-",{"$f":"'Non-Life Risk'!P14","v":0},"-",{"$f":"'Non-Life Risk'!Q14","v":0},"-"]
[null,null,"   -  Nat Cat risk",null,null,null,null,{"$f":"H120+H121","v":0},"-",{"$f":"J120+J121","v":0},"-",{"$f":"L120+L121","v":0},"-",{"$f":"N120+N121","v":0},"-"]
[null,null,"        - Natural catastrophe risk",null,null,null,null,{"$f":"'Nat Cat Risk'!D22","v":0},"-",{"$f":"'Nat Cat Risk'!E22","v":0},"-",{"$f":"'Nat Cat Risk'!F22","v":0},"-",{"$f":"'Nat Cat Risk'!G22","v":0},"-"]
[null,null,"        - Natural catastrophe risk reinsurance recoveries",null,null,null,null,{"$f":"'Nat Cat Risk'!D35","v":0},"-",{"$f":"'Nat Cat Risk'!E35","v":0},"-",{"$f":"'Nat Cat Risk'!F35","v":0},"-",{"$f":"'Nat Cat Risk'!G35","v":0},"-"]
[null,null,"   -  Life technical risk",null,null,null,null,{"$f":"'Life Risk'!D13","v":0},"-",{"$f":"'Life Risk'!E13","v":0},"-",{"$f":"'Life Risk'!F13","v":0},"-",{"$f":"'Life Risk'!G13","v":0},"-"]
[null,null,"   -  Mortality",null,null,null,null,{"$f":"'Life Risk'!D41","v":0},"-",{"$f":"'Life Risk'!E41","v":0},"-",{"$f":"'Life Risk'!F41","v":0},"-",{"$f":"'Life Risk'!G41","v":0},"-"]
[null,null,"   -  Morbidity",null,null,null,null,{"$f":"'Life Risk'!D107","v":0},"-",{"$f":"'Life Risk'!E107","v":0},"-",{"$f":"'Life Risk'!F107","v":0},"-",{"$f":"'Life Risk'!G107","v":0},"-"]
[null,null,"   -  Longevity",null,null,null,null,{"$f":"'Life Risk'!D120","v":0},"-",{"$f":"'Life Risk'!E120","v":0},"-",{"$f":"'Life Risk'!F120","v":0},"-",{"$f":"'Life Risk'!G120","v":0},"-"]
[null,null,"   -  Other life",null,null,null,null,{"$f":"'Life Risk'!D162","v":0},"-",{"$f":"'Life Risk'!E162","v":0},"-",{"$f":"'Life Risk'!F162","v":0},"-",{"$f":"'Life Risk'!G162","v":0},"-"]
[null,null,"   -  Pandemic",null,null,null,null,{"$f":"H128+H129","v":0},"-",{"$f":"J128+J129","v":0},"-",{"$f":"L128+L129","v":0},"-",{"$f":"N128+N129","v":0},"-"]
[null,null,"       -  Pandemic",null,null,null,null,{"$f":"'Life Risk'!D46","v":0},"-",{"$f":"'Life Risk'!E46","v":0},"-",{"$f":"'Life Risk'!F46","v":0},"-",{"$f":"'Life Risk'!G46","v":0},"-"]
[null,null,"       -  Pandemic reinsurance recoveries",null,null,null,null,{"$f":"'Life Risk'!D50","v":0},"-",{"$f":"'Life Risk'!E50","v":0},"-",{"$f":"'Life Risk'!F50","v":0},"-",{"$f":"'Life Risk'!G50","v":0},"-"]
[]
[null,null,"Total RBC requirement for liability risks",null,null,null,null,{"$f":"SUM(H65,H74,H83,H86,H100)","v":0},{"$f":"IF(H$149=0,\"-\",H131/H$149)","v":"-"},{"$f":"SUM(J65,J74,J83,J86,J100)","v":0},{"$f":"IF(J$149=0,\"-\",J131/J$149)","v":"-"},{"$f":"SUM(L65,L74,L83,L86,L100)","v":0},{"$f":"IF(L$149=0,\"-\",L131/L$149)","v":"-"},{"$f":"SUM(N65,N74,N83,N86,N100)","v":0},{"$f":"IF(N$149=0,\"-\",N131/N$149)","v":"-"}]
[]
[]
[]
[null,null,"Diversification"]
[null,null,"Market Risk",null,null,null,null,{"$f":"Diversification!D54","v":0},{"$f":"IF(H$149=0,\"-\",H136/H$149)","v":"-"},{"$f":"Diversification!E54","v":0},{"$f":"IF(J$149=0,\"-\",J136/J$149)","v":"-"},{"$f":"Diversification!F54","v":0},{"$f":"IF(L$149=0,\"-\",L136/L$149)","v":"-"},{"$f":"Diversification!G54","v":0},{"$f":"IF(N$149=0,\"-\",N136/N$149)","v":"-"}]
[null,null,"Non-life risk diversification",null,null,null,null,{"$f":"H138+H139","v":0},"-",{"$f":"J138+J139","v":0},"-",{"$f":"L138+L139","v":0},"-",{"$f":"N138+N139","v":0},"-"]
[null,null,"  -  Level 1: Premium-Reserve",null,null,null,null,{"$f":"Diversification!D101","v":0},"-",{"$f":"Diversification!E101","v":0},"-",{"$f":"Diversification!F101","v":0},"-",{"$f":"Diversification!G101","v":0},"-"]
[null,null,"  -  Level 2: Lines of Business",null,null,null,null,{"$f":"Diversification!D90","v":0},"-",{"$f":"Diversification!E90","v":0},"-",{"$f":"Diversification!F90","v":0},"-",{"$f":"Diversification!G90","v":0},"-"]
[null,null,"Life risk diversification",null,null,null,null,{"$f":"Diversification!Q57","v":0},"-",{"$f":"Diversification!R57","v":0},"-",{"$f":"Diversification!S57","v":0},"-",{"$f":"Diversification!T57","v":0},"-"]
[null,null,"Diversification across risks (Level 3)",null,null,null,null,{"$f":"Diversification!D35","v":0},"-",{"$f":"Diversification!E35","v":0},"-",{"$f":"Diversification!F35","v":0},"-",{"$f":"Diversification!G35","v":0},"-"]
[]
[null,null,"Total diversification (pre haircut)",null,null,null,null,{"$f":"H136+H137+H140+H141","v":0},{"$f":"IF(H$149=0,\"-\",H143/H$149)","v":"-"},{"$f":"J136+J137+J140+J141","v":0},{"$f":"IF(J$149=0,\"-\",J143/J$149)","v":"-"},{"$f":"L136+L137+L140+L141","v":0},{"$f":"IF(L$149=0,\"-\",L143/L$149)","v":"-"},{"$f":"N136+N137+N140+N141","v":0},{"$f":"IF(N$149=0,\"-\",N143/N$149)","v":"-"}]
[null,null,"Diversification haircut",null,null,null,null,{"$f":"H143*Diversification!D6","v":0},{"$f":"IF(H$149=0,\"-\",H144/H$149)","v":"-"},{"$f":"J143*Diversification!E6","v":0},{"$f":"IF(J$149=0,\"-\",J144/J$149)","v":"-"},{"$f":"L143*Diversification!F6","v":0},{"$f":"IF(L$149=0,\"-\",L144/L$149)","v":"-"},{"$f":"N143*Diversification!G6","v":0},{"$f":"IF(N$149=0,\"-\",N144/N$149)","v":"-"}]
[null,null,"Total diversification (post haircut)",null,null,null,null,{"$f":"H143-H144","v":0},{"$f":"IF(H$149=0,\"-\",H145/H$149)","v":"-"},{"$f":"J143-J144","v":0},{"$f":"IF(J$149=0,\"-\",J145/J$149)","v":"-"},{"$f":"L143-L144","v":0},{"$f":"IF(L$149=0,\"-\",L145/L$149)","v":"-"},{"$f":"N143-N144","v":0},{"$f":"IF(N$149=0,\"-\",N145/N$149)","v":"-"}]
[]
[]
[]
[null,null,"Undiversified RBC requirement",null,null,null,null,{"$f":"H150+H151","v":0},{"$f":"IF(H$149=0,\"-\",H149/H$149)","v":"-"},{"$f":"J150+J151","v":0},{"$f":"IF(J$149=0,\"-\",J149/J$149)","v":"-"},{"$f":"L150+L151","v":0},{"$f":"IF(L$149=0,\"-\",L149/L$149)","v":"-"},{"$f":"N150+N151","v":0},{"$f":"IF(N$149=0,\"-\",N149/N$149)","v":"-"}]
[null,null," - Total RBC requirement for asset risks",null,null,null,null,{"$f":"H60","v":0},"-",{"$f":"J60","v":0},"-",{"$f":"L60","v":0},"-",{"$f":"N60","v":0},"-"]
[null,null," - Total RBC requirement for liability risks",null,null,null,null,{"$f":"H131","v":0},"-",{"$f":"J131","v":0},"-",{"$f":"L131","v":0},"-",{"$f":"N131","v":0},"-"]
[null,null,"Minus Diversification",null,null,null,null,{"$f":"H145","v":0},"-",{"$f":"J145","v":0},"-",{"$f":"L145","v":0},"-",{"$f":"N145","v":0},"-"]
[null,null,"Plus Risk on Value in force",null,null,null,null,{"$f":"'Life Risk'!D179","v":0},"-",{"$f":"'Life Risk'!E179","v":0},"-",{"$f":"'Life Risk'!F179","v":0},"-",{"$f":"'Life Risk'!G179","v":0},"-"]
[null,null,"Plus deficiency in ring-fenced funds",null,null,null,null,{"$f":"Input!F823","v":0},"-",{"$f":"Input!F824","v":0},"-",{"$f":"Input!F825","v":0},"-",{"$f":"Input!F826","v":0},"-"]
[null,null,"Plus company-specific analytical adjustments (Other)",null,null,null,null,{"$f":"SUMIF(Adjustment!$L$5:$L$24,Lists!$L$37,Adjustment!M$5:M$24)","v":0},"-",{"$f":"SUMIF(Adjustment!$L$5:$L$24,Lists!$L$37,Adjustment!N$5:N$24)","v":0},"-",{"$f":"SUMIF(Adjustment!$L$5:$L$24,Lists!$L$37,Adjustment!O$5:O$24)","v":0},"-",{"$f":"SUMIF(Adjustment!$L$5:$L$24,Lists!$L$37,Adjustment!P$5:P$24)","v":0},"-"]
[null,null,"Diversified total RBC requirement",null,null,null,null,{"$f":"H149-H152+H153+H154+H155","v":0},"-",{"$f":"J149-J152+J153+J154+J155","v":0},"-",{"$f":"L149-L152+L153+L154+L155","v":0},"-",{"$f":"N149-N152+N153+N154+N155","v":0},"-"]
[]
[]
[]
[null,null,{"$f":"C17","v":"1. Common shareholders' equity/policyholders’ surplus"},{"$f":"I17","v":"-"}]
[null,null,"2. Equity noncontrolling interests","-"]
[null,null,"3. Investments in own shares/treasury shares ","-"]
[null,null,"4. Shareholder distributions not accrued","-"]
[null,null,"5. Intangible Assets","-"]
[null,null,"6. Postretirement employee benefits","-"]
[null,null,"7. Unrealized gains and losses on investments ","-"]
[null,null,"8. Non-life reserve adjustments","-"]
[null,null,"9. Life reserve adjustments","-"]
[null,null,"10. Hybrid capital/debt-funded capital (subject to tolerance limits)","-"]
[null,null,"11.Investments in noninsurance subsidiaries and joint ventures","-"]
[null,null,"12. Policyholder capital available to absorb losses","-"]
[null,null,"13. Unrealized gains on investments backing participating life business","-"]
[null,null,"14. Company-specific analytical adjustments","-"]
[null,null,"TAC - Total Adjusted Capital",{"$f":"IF(H31<>0,1,0)","v":0}]

{"sheet":"TAC","index":5,"n_rows":64,"n_cols":14,"rows_kept":64,"cut":false,"hidden":false,"merged":[]}
[]
[]
[null,"Company/Group:",null,{"$f":"IF(Input!F10=\"\",\"Enter Company/Group in 'Input' Sheet\",Input!F10)","v":"Enter Company/Group in 'Input' Sheet"}]
[]
[null,null,"SUMMARY"]
[null,null,"Total Adjusted Capital (TAC)"]
[]
[]
[null,null,"Non-life loss reserve related adjustments"]
[null,null,"Computed technical reserve discount",null,null,{"$f":"IF(Input!F42>=1,(Input!F37)*(1-(1/(1+Input!F41)^Input!F42)),0)","v":0}]
[null,null,"Total discount credit",null,null,{"$f":"F10+IF(Input!F45>0,Input!F45,Input!F40)","v":0}]
[null,null,"Deduct: Discount on Non-life loss reserve surpluses/(deficits) ",null,null,{"$f":"IFERROR(Input!F43/(1-inp_appl_tax_rate)*F11/(Input!F37+Input!F38+Input!F40),0)","v":0}]
[null,null,"Non-life reserve discounting adjustment",null,null,{"$f":"(F11-Input!F40-F12)*(1-inp_appl_tax_rate)","v":0}]
[]
[null,null,"Hybrid/debt-funded capital adjustments"]
[]
[null,null,null,"Amount","Tolerance (%)","Tolerance","Within tolerance","In excess","Ratio","Eligible Ratio",null,null,"Hybrid Capital/Debt-Funded Capital Tolerance Limits"]
[null,null,"High equity content",{"$f":"Input!F58","v":0},{"$f":"N18","v":0.4},{"$f":"E18*$D$24","v":0},{"$f":"MIN(D18,F18)","v":0},{"$f":"MAX(D18-F18,0)","v":0},{"$f":"IFERROR(D18/$D$24,0)","v":0},{"$f":"IFERROR(G18/$D$24,0)","v":0},null,null,"High equity content",0.4]
[null,null,"Intermediate equity content",{"$f":"Input!F59","v":0},{"$f":"N19-MAX(0,J18-(N18-N19))","v":0.3},{"$f":"E19*$D$24","v":0},{"$f":"MIN(D19,F19)","v":0},{"$f":"MAX(D19-F19,0)","v":0},{"$f":"IFERROR(D19/$D$24,0)","v":0},{"$f":"IFERROR(G19/$D$24,0)","v":0},null,null,"Intermediate equity content",0.3]
[null,null,null,null,null,null,null,null,null,null,null,null,"No equity content",0]
[null,null,"Debt funded Capital",{"$f":"IF(Input!F63=\"Yes\",Input!F64+Input!F65,0)","v":0},{"$f":"N21-MAX(J19-(N19-N21),J18+J19-(N18-N21),0)","v":0.2},{"$f":"E21*$D$24","v":0},{"$f":"MIN(D21,F21)","v":0},{"$f":"MAX(D21-F21,0)","v":0},{"$f":"IFERROR(D21/$D$24,0)","v":0},{"$f":"IFERROR(G21/$D$24,0)","v":0},null,null,"Debt-funded capital",0.2]
[null,null,null,null,null,null,null,null,null,null,null,null,"Minimum Haircut on NOHC assets",0.2]
[null,null,"Total Hybrid/debt",{"$f":"SUM(D18:D19,D21)","v":0},null,null,{"$f":"SUM(G18:G19,G21)","v":0},0,{"$f":"SUM(I18:I19,I21)","v":0},{"$f":"SUM(J18:J19,J21)","v":0}]
[null,null,"Capital",{"$f":"MAX(0,($F$54+D23))","v":0}]
[]
[]
[]
[]
[null,null,"TAC"]
[null,null,null,"1. Common shareholders' equity/policyholders’ surplus",null,{"$f":"Input!F17","v":0}]
[]
[null,null,"Plus ","2. Equity noncontrolling interests",null,{"$f":"Input!F20","v":0}]
[null,null,"Minus","3. Investments in own shares/treasury shares ",null,{"$f":"-Input!F25","v":0}]
[null,null,"Minus","4. Shareholder distributions not accrued",null,{"$f":"-Input!F21","v":0}]
[null,null,"Minus","5. Intangible Assets",null,{"$f":"-(F36+F37)","v":0}]
[null,null,"    Minus","  -  Goodwill",null,{"$f":"MAX(0,Input!F28)","v":0}]
[null,null,"    Minus","  -  Other intangible assets",null,{"$f":"Input!F29","v":0}]
[null,null,"Plus/Minus ","6. Postretirement employee benefits",null,{"$f":"F40-(F39+F41)","v":0}]
[null,null,"    Minus","  -  Off-balance sheet pension deficits",null,{"$f":"Input!F22","v":0}]
[null,null,"    Plus","  -  Off-balance sheet pension surplus",null,{"$f":"Input!F23","v":0}]
[null,null,"    Minus","  -  On-balance sheet pension surpluses",null,{"$f":"Input!F24","v":0}]
[null,null,"Plus/Minus ","7. Unrealized gains and losses on investments ",null,{"$f":"Input!F32+IF(OR(ISBLANK(Input!F33), ISBLANK(Input!F34)), 0, (Input!F33-Input!F34))*(1-inp_appl_tax_rate)","v":0}]
[null,null,"Plus/Minus ","8. Non-life reserve adjustments",null,{"$f":"F44+F45+F46","v":0}]
[null,null,"    Plus","  -  Non-life loss reserve surpluses/(deficits) ",null,{"$f":"Input!F43","v":0}]
[null,null,"    Plus","  -  Non-life reserve discounting",null,{"$f":"F13","v":0}]
[null,null,"    Plus","  -  Other equity-like non-life reserves",null,{"$f":"Input!F44","v":0}]
[null,null,"Plus/Minus ","9. Life reserve adjustments",null,{"$f":"F48+F49+F50","v":0}]
[null,null,"    Plus","  -  Off balance sheet value of in-force life business",null,{"$f":"Input!F48","v":0}]
[null,null,"    Plus","  -  Life reserves valuation adjustment",null,{"$f":"Input!F51","v":0}]
[null,null,"    Plus","  -  Other equity-like life reserves",null,{"$f":"Input!F50","v":0}]
[]
[null,null,null,"ACE - Adjusted Common Equity (before analyst adjustments)",null,{"$f":"SUM(F30:F35,F38,F42:F43,F47)","v":0}]
[null,null,"Plus/Minus ","Company-specific analytical adjustments to determine ACE",null,{"$f":"SUMIF(Adjustment!$D$30:$D$49,Lists!$M$4,Adjustment!E$30:E$49)","v":0}]
[null,null,null,"ACE - Adjusted Common Equity",null,{"$f":"F52+F53","v":0}]
[]
[null,null,"Plus","10. Hybrid capital/debt-funded capital (subject to tolerance limits)",null,{"$f":"F57+F58-F59","v":0}]
[null,null,"    Plus","  -  Hybrid capital",null,{"$f":"G18+G19","v":0}]
[null,null,"    Plus","  -  Debt-funded capital",null,{"$f":"G21","v":0}]
[null,null,"    Minus","  -  Haircut on NOHC cash and invested asset",null,{"$f":"IF(inp_tac_is_debt_eligible=\"Yes\",MIN(MAX(G21-Input!F65,0), Input!F67*MAX(N22,Input!F68)), 0)","v":0}]
[null,null,"Minus ","11.Investments in noninsurance subsidiaries and joint ventures",null,{"$f":"-Input!F73-Input!F74","v":0}]
[null,null,"Plus","12. Policyholder capital available to absorb losses",null,{"$f":"Input!F53","v":0}]
[null,null,"Plus","13. Unrealized gains on investments backing participating life business",null,{"$f":"Input!F55","v":0}]
[null,null,"Plus/Minus ","Company-specific analytical adjustments to determine TAC",null,{"$f":"SUMIF(Adjustment!$D$30:$D$49,Lists!$M$3,Adjustment!E$30:E$49)","v":0}]
[null,null,null,"TAC- Total Adjusted capital",null,{"$f":"F54+SUM(F56,F60:F63)","v":0}]

{"sheet":"Asset Risk","index":6,"n_rows":223,"n_cols":81,"rows_kept":223,"cut":false,"hidden":false,"merged":[[153,1,154,1],[149,1,152,1],[109,35,109,43],[109,13,109,21],[109,2,109,10],[109,24,109,32],[188,3,188,8],[164,3,164,6],[159,3,159,6],[189,10,191,10],[188,9,188,10],[189,9,191,9],[189,3,189,5],[190,3,190,5],[189,6,191,6],[189,7,191,7],[189,8,191,8],[192,1,203,1],[192,11,194,11],[195,11,197,11],[198,11,200,11],[201,11,203,11],[192,10,194,10],[195,10,197,10],[198,10,200,10],[201,10,203,10]]}
[]
[null,"Summary"]
[]
[null,null,null,0.99990000000000001,0.99950000000000006,0.998,0.995]
[null,null,"Market risk",{"$f":"SUM(D9,D13,D17)","v":0},{"$f":"SUM(E9,E13,E17)","v":0},{"$f":"SUM(F9,F13,F17)","v":0},{"$f":"SUM(G9,G13,G17)","v":0}]
[null,null,"Adjustment",{"$f":"SUMIF(Adjustment!$L$5:$L$24,Lists!$L$3,Adjustment!M$5:M$24)","v":0},{"$f":"SUMIF(Adjustment!$L$5:$L$24,Lists!$L$3,Adjustment!N$5:N$24)","v":0},{"$f":"SUMIF(Adjustment!$L$5:$L$24,Lists!$L$3,Adjustment!O$5:O$24)","v":0},{"$f":"SUMIF(Adjustment!$L$5:$L$24,Lists!$L$3,Adjustment!P$5:P$24)","v":0}]
[null,null,"Adjusted total",{"$f":"D5+D6+D10+D18+D14","v":0},{"$f":"E5+E6+E10+E18+E14","v":0},0,0]
[]
[null,null,"Equity risk",{"$f":"D156","v":0},{"$f":"E156","v":0},{"$f":"F156","v":0},{"$f":"G156","v":0}]
[null,null,"Adjustment",{"$f":"SUMIF(Adjustment!$L$5:$L$24,Lists!$L$9,Adjustment!M$5:M$24)","v":0},{"$f":"SUMIF(Adjustment!$L$5:$L$24,Lists!$L$9,Adjustment!N$5:N$24)","v":0},{"$f":"SUMIF(Adjustment!$L$5:$L$24,Lists!$L$9,Adjustment!O$5:O$24)","v":0},{"$f":"SUMIF(Adjustment!$L$5:$L$24,Lists!$L$9,Adjustment!P$5:P$24)","v":0}]
[null,null,"Adjusted total",{"$f":"D9+D10","v":0},{"$f":"E9+E10","v":0},{"$f":"F9+F10","v":0},{"$f":"G9+G10","v":0}]
[]
[null,null,"Interest rate risk",{"$f":"'Interest Rate Risk'!W46","v":0},{"$f":"'Interest Rate Risk'!Y46","v":0},{"$f":"'Interest Rate Risk'!AA46","v":0},{"$f":"'Interest Rate Risk'!AC46","v":0}]
[null,null,"Adjustment",{"$f":"SUMIF(Adjustment!$L$5:$L$24,Lists!$L$11,Adjustment!M$5:M$24)","v":0},{"$f":"SUMIF(Adjustment!$L$5:$L$24,Lists!$L$11,Adjustment!N$5:N$24)","v":0},{"$f":"SUMIF(Adjustment!$L$5:$L$24,Lists!$L$11,Adjustment!O$5:O$24)","v":0},{"$f":"SUMIF(Adjustment!$L$5:$L$24,Lists!$L$11,Adjustment!P$5:P$24)","v":0}]
[null,null,"Adjusted total",{"$f":"D13+D14","v":0},{"$f":"E13+E14","v":0},{"$f":"F13+F14","v":0},{"$f":"G13+G14","v":0}]
[]
[null,null,"Real estate",{"$f":"D170","v":0},{"$f":"E170","v":0},0,0]
[null,null,"Adjustment",{"$f":"SUMIF(Adjustment!$L$5:$L$24,Lists!$L$10,Adjustment!M$5:M$24)","v":0},{"$f":"SUMIF(Adjustment!$L$5:$L$24,Lists!$L$10,Adjustment!N$5:N$24)","v":0},{"$f":"SUMIF(Adjustment!$L$5:$L$24,Lists!$L$10,Adjustment!O$5:O$24)","v":0},{"$f":"SUMIF(Adjustment!$L$5:$L$24,Lists!$L$10,Adjustment!P$5:P$24)","v":0}]
[null,null,"Adjusted total",{"$f":"D17+D18","v":0},{"$f":"E17+E18","v":0},{"$f":"F17+F18","v":0},{"$f":"G17+G18","v":0}]
[]
[null,null,"Credit risk",{"$f":"SUM(D22:D28)","v":0},{"$f":"SUM(E22:E28)","v":0},0,0]
[null,null,"   Bond risk",{"$f":"SUM(D118,D127,D136,D145)","v":0},{"$f":"SUM(O118,O127,O136,O145)","v":0},{"$f":"SUM(Z118,Z127,Z136,Z145)","v":0},{"$f":"SUM(AK118,AK127,AK136,AK145)","v":0}]
[null,null,"   Reinsurance Recoverables",{"$f":"D183","v":0},{"$f":"E183","v":0},0,0]
[null,null,"   Mortgage risk",{"$f":"D207","v":0},{"$f":"E207","v":0},{"$f":"F207","v":0},{"$f":"G207","v":0}]
[null,null,"   Bank Deposits",{"$f":"D217","v":0},{"$f":"E217","v":0},{"$f":"F217","v":0},{"$f":"G217","v":0}]
[null,null,"OTC Derivatives",{"$f":"D221","v":0},{"$f":"E221","v":0},{"$f":"F221","v":0},{"$f":"G221","v":0}]
[null,null,"Other Chargeable Assets",{"$f":"D222","v":0},{"$f":"E222","v":0},0,0]
[null,null,"   Deposits with cedents",{"$f":"D223","v":0},{"$f":"E223","v":0},{"$f":"F223","v":0},{"$f":"G223","v":0}]
[null,null,"Adjustment",{"$f":"SUMIF(Adjustment!$L$5:$L$24,Lists!$L$12,Adjustment!M$5:M$24)","v":0},{"$f":"SUMIF(Adjustment!$L$5:$L$24,Lists!$L$12,Adjustment!N$5:N$24)","v":0},{"$f":"SUMIF(Adjustment!$L$5:$L$24,Lists!$L$12,Adjustment!O$5:O$24)","v":0},{"$f":"SUMIF(Adjustment!$L$5:$L$24,Lists!$L$12,Adjustment!P$5:P$24)","v":0}]
[null,null,"Adjusted total",{"$f":"D21+D29","v":0},{"$f":"E21+E29","v":0},{"$f":"F21+F29","v":0},{"$f":"G21+G29","v":0}]
[]
[null,"Total Bond & Loans Exposure"]
[null,null,"Credit Risk Recovery Category",{"$f":"Lists!$C$3","v":1}]
[null,null,"Tenor (years)","AAA","AA","A","BBB","BB","B","CCC-C","D",null,"Total bond exposure"]
[null,null,"Upto 1",{"$f":"SUM(D73,O73,Y73,AI73,AS73,BC73,BM73,BW73)","v":0},{"$f":"SUM(E73,P73,Z73,AJ73,AT73,BD73,BN73,BX73)","v":0},0,0,0,0,0,0,null,{"$f":"SUM(D40,D49,D58,D67)","v":0}]
[null,null,"1.01 to 5",{"$f":"SUM(D74,O74,Y74,AI74,AS74,BC74,BM74,BW74)","v":0},0,0,0,0,0,0,0]
[null,null,"5.01 to 10",{"$f":"SUM(D75,O75,Y75,AI75,AS75,BC75,BM75,BW75)","v":0},0,0,0,0,0,0,0]
[null,null,"10.01 to 20",{"$f":"SUM(D76,O76,Y76,AI76,AS76,BC76,BM76,BW76)","v":0},0,0,0,0,0,0,0]
[null,null,"More than 20",{"$f":"SUM(D77,O77,Y77,AI77,AS77,BC77,BM77,BW77)","v":0},0,0,0,0,0,0,0]
[null,null,"Total",{"$f":"SUM(D35:K39)","v":0}]
[]
[null,null,"Credit Risk Recovery Category",{"$f":"Lists!$C$4","v":2}]
[null,null,"Term (years)","AAA","AA","A","BBB","BB","B","CCC-C","D"]
[null,null,"Upto 1",{"$f":"SUM(D82,O82,Y82,AI82,AS82,BC82,BM82,BW82)","v":0},{"$f":"SUM(E82,P82,Z82,AJ82,AT82,BD82,BN82,BX82)","v":0},{"$f":"SUM(F82,Q82,AA82,AK82,AU82,BE82,BO82,BY82)","v":0},{"$f":"SUM(G82,R82,AB82,AL82,AV82,BF82,BP82,BZ82)","v":0},{"$f":"SUM(H82,S82,AC82,AM82,AW82,BG82,BQ82,CA82)","v":0},{"$f":"SUM(I82,T82,AD82,AN82,AX82,BH82,BR82,CB82)","v":0},{"$f":"SUM(J82,U82,AE82,AO82,AY82,BI82,BS82,CC82)","v":0},{"$f":"SUM(K82,V82,AF82,AP82,AZ82,BJ82,BT82,CD82)","v":0}]
[null,null,"1.01 to 5",{"$f":"SUM(D83,O83,Y83,AI83,AS83,BC83,BM83,BW83)","v":0},0,0,0,0,0,0,0]
[null,null,"5.01 to 10",0,0,0,0,0,0,0,0]
[null,null,"10.01 to 20",0,0,0,0,0,0,0,0]
[null,null,"More than 20",0,0,0,0,0,0,0,0]
[null,null,"Total",{"$f":"SUM(D44:K48)","v":0}]
[]
[null,null,"Credit Risk Recovery Category",{"$f":"Lists!$C$5","v":3}]
[null,null,"Term (years)","AAA","AA","A","BBB","BB","B","CCC-C","D"]
[null,null,"Upto 1",{"$f":"SUM(D91,O91,Y91,AI91,AS91,BC91,BM91,BW91)","v":0},{"$f":"SUM(E91,P91,Z91,AJ91,AT91,BD91,BN91,BX91)","v":0},{"$f":"SUM(F91,Q91,AA91,AK91,AU91,BE91,BO91,BY91)","v":0},{"$f":"SUM(G91,R91,AB91,AL91,AV91,BF91,BP91,BZ91)","v":0},{"$f":"SUM(H91,S91,AC91,AM91,AW91,BG91,BQ91,CA91)","v":0},{"$f":"SUM(I91,T91,AD91,AN91,AX91,BH91,BR91,CB91)","v":0},{"$f":"SUM(J91,U91,AE91,AO91,AY91,BI91,BS91,CC91)","v":0},{"$f":"SUM(K91,V91,AF91,AP91,AZ91,BJ91,BT91,CD91)","v":0}]
[null,null,"1.01 to 5",{"$f":"SUM(D92,O92,Y92,AI92,AS92,BC92,BM92,BW92)","v":0},0,0,0,0,0,0,0]
[null,null,"5.01 to 10",0,0,0,0,0,0,0,0]
[null,null,"10.01 to 20",0,0,0,0,0,0,0,0]
[null,null,"More than 20",0,0,0,0,0,0,0,0]
[null,null,"Total",{"$f":"SUM(D53:K57)","v":0}]
[]
[null,null,"Credit Risk Recovery Category",{"$f":"Lists!$C$6","v":4}]
[null,null,"Term (years)","AAA","AA","A","BBB","BB","B","CCC-C","D"]
[null,null,"Upto 1",{"$f":"SUM(D100,O100,Y100,AI100,AS100,BC100,BM100,BW100)","v":0},{"$f":"SUM(E100,P100,Z100,AJ100,AT100,BD100,BN100,BX100)","v":0},{"$f":"SUM(F100,Q100,AA100,AK100,AU100,BE100,BO100,BY100)","v":0},{"$f":"SUM(G100,R100,AB100,AL100,AV100,BF100,BP100,BZ100)","v":0},{"$f":"SUM(H100,S100,AC100,AM100,AW100,BG100,BQ100,CA100)","v":0},{"$f":"SUM(I100,T100,AD100,AN100,AX100,BH100,BR100,CB100)","v":0},{"$f":"SUM(J100,U100,AE100,AO100,AY100,BI100,BS100,CC100)","v":0},{"$f":"SUM(K100,V100,AF100,AP100,AZ100,BJ100,BT100,CD100)","v":0}]
[null,null,"1.01 to 5",{"$f":"SUM(D101,O101,Y101,AI101,AS101,BC101,BM101,BW101)","v":0},0,0,0,0,0,0,0]
[null,null,"5.01 to 10",0,0,0,0,0,0,0,0]
[null,null,"10.01 to 20",0,0,0,0,0,0,0,0]
[null,null,"More than 20",0,0,0,0,0,0,0,0]
[null,null,"Total",{"$f":"SUM(D62:K66)","v":0}]
[]
[null,null,null,null,null,null,null,null,null,null,null,null,null,null,null,null,null,null,null,null,null,null,{"$f":"Lists!B3","v":"Non-financial Corporates"},null,null,null,null,null,null,null,null,null,{"$f":"Lists!B4","v":"Financials"},null,null,null,null,null,null,null,null,null,{"$f":"Lists!B5","v":"Sovereign / Public Finance"},null,null,null,null,null,null,null,null,null,{"$f":"Lists!B6","v":"Structured Finance - Senior"},null,null,null,null,null,null,null,null,null,{"$f":"Lists!B7","v":"Structured Finance - Mezz."},null,null,null,null,null,null,null,null,null,{"$f":"Lists!B8","v":"Structured Finance - Junior"}]
[null,"Bond & Loans Exposure  (Step 1)",null,null,null,null,null,null,null,null,null,null,"Bond & Loans Exposure (Steps 2 & 3)",null,null,null,null,null,null,null,null,null,"Bond & Loans Exposure (Step 4: By Economic Risk from BICRA and Tenor)",null,null,null,null,null,null,null,null,null,"Bond & Loans Exposure (Step 4: By Economic Risk from BICRA and Tenor)",null,null,null,null,null,null,null,null,null,"Bond & Loans Exposure (Step 4: By Economic Risk from BICRA and Tenor)",null,null,null,null,null,null,null,null,null,"Bond & Loans Exposure (Step 4: By Economic Risk from BICRA and Tenor)",null,null,null,null,null,null,null,null,null,"Bond & Loans Exposure (Step 4: By Economic Risk from BICRA and Tenor)",null,null,null,null,null,null,null,null,null,"Bond & Loans Exposure (Step 4: By Economic Risk from BICRA and Tenor)"]
[null,null,"Credit Risk Recovery Category",{"$f":"Lists!$C$3","v":1},null,null,null,null,null,null,null,null,null,"Credit Risk Recovery Category",{"$f":"Lists!$C$3","v":1},null,null,null,null,null,null,null,null,"Credit Risk Recovery Category",{"$f":"Lists!$C$3","v":1},null,null,null,null,null,null,null,null,"Credit Risk Recovery Category",{"$f":"Lists!$C$3","v":1},null,null,null,null,null,null,null,null,"Credit Risk Recovery Category",{"$f":"Lists!$C$3","v":1},null,null,null,null,null,null,null,null,"Credit Risk Recovery Category",{"$f":"Lists!$C$3","v":1},null,null,null,null,null,null,null,null,"Credit Risk Recovery Category",{"$f":"Lists!$C$3","v":1},null,null,null,null,null,null,null,null,"Credit Risk Recovery Category",{"$f":"Lists!$C$3","v":1}]
[null,null,"Term (years)","AAA","AA","A","BBB","BB","B","CCC-C","D",null,null,"Term (years)","AAA","AA","A","BBB","BB","B","CCC-C",null,null,"Term (years)","AAA","AA","A","BBB","BB","B","CCC-C",null,null,"Term (years)","AAA","AA","A","BBB","BB","B","CCC-C",null,null,"Term (years)","AAA","AA","A","BBB","BB","B","CCC-C",null,null,"Term (years)","AAA","AA","A","BBB","BB","B","CCC-C",null,null,"Term (years)","AAA","AA","A","BBB","BB","B","CCC-C",null,null,"Term (years)","AAA","AA","A","BBB","BB","B","CCC-C"]
[null,null,"Upto 1",{"$f":"Input!F83","v":0},{"$f":"Input!G83","v":0},{"$f":"Input!H83","v":0},{"$f":"Input!I83","v":0},{"$f":"Input!J83","v":0},{"$f":"Input!K83","v":0},{"$f":"Input!L83","v":0},{"$f":"Input!M83","v":0},null,null,"Upto 1",{"$f":"Input!F123+Input!F156","v":0},{"$f":"Input!G123+Input!G156","v":0},{"$f":"Input!H123+Input!H156","v":0},{"$f":"Input!I123+Input!I156","v":0},{"$f":"Input!J123+Input!J156","v":0},{"$f":"Input!K123+Input!K156","v":0},{"$f":"Input!L123+Input!L156","v":0},null,null,"Upto 1",{"$f":"SUMIFS('Step 4 bond aggregation'!$B$2:$B$661,'Step 4 bond aggregation'!$A$2:$A$661,$W$69,'Step 4 bond aggregation'!$F$2:$F$661,Y$72,'Step 4 bond aggregation'!$G$2:$G$661,MATCH($X73,lov_term_buckets,0),'Step 4 bond aggregation'!$E$2:$E$661,$Y$71)","v":0},{"$f":"SUMIFS('Step 4 bond aggregation'!$B$2:$B$661,'Step 4 bond aggregation'!$A$2:$A$661,$W$69,'Step 4 bond aggregation'!$F$2:$F$661,Z$72,'Step 4 bond aggregation'!$G$2:$G$661,MATCH($X73,lov_term_buckets,0),'Step 4 bond aggregation'!$E$2:$E$661,$Y$71)","v":0},{"$f":"SUMIFS('Step 4 bond aggregation'!$B$2:$B$661,'Step 4 bond aggregation'!$A$2:$A$661,$W$69,'Step 4 bond aggregation'!$F$2:$F$661,AA$72,'Step 4 bond aggregation'!$G$2:$G$661,MATCH($X73,lov_term_buckets,0),'Step 4 bond aggregation'!$E$2:$E$661,$Y$71)","v":0},{"$f":"SUMIFS('Step 4 bond aggregation'!$B$2:$B$661,'Step 4 bond aggregation'!$A$2:$A$661,$W$69,'Step 4 bond aggregation'!$F$2:$F$661,AB$72,'Step 4 bond aggregation'!$G$2:$G$661,MATCH($X73,lov_term_buckets,0),'Step 4 bond aggregation'!$E$2:$E$661,$Y$71)","v":0},{"$f":"SUMIFS('Step 4 bond aggregation'!$B$2:$B$661,'Step 4 bond aggregation'!$A$2:$A$661,$W$69,'Step 4 bond aggregation'!$F$2:$F$661,AC$72,'Step 4 bond aggregation'!$G$2:$G$661,MATCH($X73,lov_term_buckets,0),'Step 4 bond aggregation'!$E$2:$E$661,$Y$71)","v":0},{"$f":"SUMIFS('Step 4 bond aggregation'!$B$2:$B$661,'Step 4 bond aggregation'!$A$2:$A$661,$W$69,'Step 4 bond aggregation'!$F$2:$F$661,AD$72,'Step 4 bond aggregation'!$G$2:$G$661,MATCH($X73,lov_term_buckets,0),'Step 4 bond aggregation'!$E$2:$E$661,$Y$71)","v":0},{"$f":"SUMIFS('Step 4 bond aggregation'!$B$2:$B$661,'Step 4 bond aggregation'!$A$2:$A$661,$W$69,'Step 4 bond aggregation'!$F$2:$F$661,AE$72,'Step 4 bond aggregation'!$G$2:$G$661,MATCH($X73,lov_term_buckets,0),'Step 4 bond aggregation'!$E$2:$E$661,$Y$71)","v":0},null,null,"Upto 1",{"$f":"SUMIFS('Step 4 bond aggregation'!$B$2:$B$661,'Step 4 bond aggregation'!$A$2:$A$661,$AG$69,'Step 4 bond aggregation'!$F$2:$F$661,AI$72,'Step 4 bond aggregation'!$G$2:$G$661,MATCH($AH73,lov_term_buckets,0),'Step 4 bond aggregation'!$E$2:$E$661,$AI$71)","v":0},{"$f":"SUMIFS('Step 4 bond aggregation'!$B$2:$B$661,'Step 4 bond aggregation'!$A$2:$A$661,$AG$69,'Step 4 bond aggregation'!$F$2:$F$661,AJ$72,'Step 4 bond aggregation'!$G$2:$G$661,MATCH($AH73,lov_term_buckets,0),'Step 4 bond aggregation'!$E$2:$E$661,$AI$71)","v":0},{"$f":"SUMIFS('Step 4 bond aggregation'!$B$2:$B$661,'Step 4 bond aggregation'!$A$2:$A$661,$AG$69,'Step 4 bond aggregation'!$F$2:$F$661,AK$72,'Step 4 bond aggregation'!$G$2:$G$661,MATCH($AH73,lov_term_buckets,0),'Step 4 bond aggregation'!$E$2:$E$661,$AI$71)","v":0},{"$f":"SUMIFS('Step 4 bond aggregation'!$B$2:$B$661,'Step 4 bond aggregation'!$A$2:$A$661,$AG$69,'Step 4 bond aggregation'!$F$2:$F$661,AL$72,'Step 4 bond aggregation'!$G$2:$G$661,MATCH($AH73,lov_term_buckets,0),'Step 4 bond aggregation'!$E$2:$E$661,$AI$71)","v":0},{"$f":"SUMIFS('Step 4 bond aggregation'!$B$2:$B$661,'Step 4 bond aggregation'!$A$2:$A$661,$AG$69,'Step 4 bond aggregation'!$F$2:$F$661,AM$72,'Step 4 bond aggregation'!$G$2:$G$661,MATCH($AH73,lov_term_buckets,0),'Step 4 bond aggregation'!$E$2:$E$661,$AI$71)","v":0},{"$f":"SUMIFS('Step 4 bond aggregation'!$B$2:$B$661,'Step 4 bond aggregation'!$A$2:$A$661,$AG$69,'Step 4 bond aggregation'!$F$2:$F$661,AN$72,'Step 4 bond aggregation'!$G$2:$G$661,MATCH($AH73,lov_term_buckets,0),'Step 4 bond aggregation'!$E$2:$E$661,$AI$71)","v":0},{"$f":"SUMIFS('Step 4 bond aggregation'!$B$2:$B$661,'Step 4 bond aggregation'!$A$2:$A$661,$AG$69,'Step 4 bond aggregation'!$F$2:$F$661,AO$72,'Step 4 bond aggregation'!$G$2:$G$661,MATCH($AH73,lov_term_buckets,0),'Step 4 bond aggregation'!$E$2:$E$661,$AI$71)","v":0},null,null,"Upto 1",{"$f":"SUMIFS('Step 4 bond aggregation'!$B$2:$B$661,'Step 4 bond aggregation'!$A$2:$A$661,$AQ$69,'Step 4 bond aggregation'!$F$2:$F$661,AS$72,'Step 4 bond aggregation'!$G$2:$G$661,MATCH($AR73,lov_term_buckets,0),'Step 4 bond aggregation'!$E$2:$E$661,$AS$71)","v":0},{"$f":"SUMIFS('Step 4 bond aggregation'!$B$2:$B$661,'Step 4 bond aggregation'!$A$2:$A$661,$AQ$69,'Step 4 bond aggregation'!$F$2:$F$661,AT$72,'Step 4 bond aggregation'!$G$2:$G$661,MATCH($AR73,lov_term_buckets,0),'Step 4 bond aggregation'!$E$2:$E$661,$AS$71)","v":0},{"$f":"SUMIFS('Step 4 bond aggregation'!$B$2:$B$661,'Step 4 bond aggregation'!$A$2:$A$661,$AQ$69,'Step 4 bond aggregation'!$F$2:$F$661,AU$72,'Step 4 bond aggregation'!$G$2:$G$661,MATCH($AR73,lov_term_buckets,0),'Step 4 bond aggregation'!$E$2:$E$661,$AS$71)","v":0},{"$f":"SUMIFS('Step 4 bond aggregation'!$B$2:$B$661,'Step 4 bond aggregation'!$A$2:$A$661,$AQ$69,'Step 4 bond aggregation'!$F$2:$F$661,AV$72,'Step 4 bond aggregation'!$G$2:$G$661,MATCH($AR73,lov_term_buckets,0),'Step 4 bond aggregation'!$E$2:$E$661,$AS$71)","v":0},{"$f":"SUMIFS('Step 4 bond aggregation'!$B$2:$B$661,'Step 4 bond aggregation'!$A$2:$A$661,$AQ$69,'Step 4 bond aggregation'!$F$2:$F$661,AW$72,'Step 4 bond aggregation'!$G$2:$G$661,MATCH($AR73,lov_term_buckets,0),'Step 4 bond aggregation'!$E$2:$E$661,$AS$71)","v":0},{"$f":"SUMIFS('Step 4 bond aggregation'!$B$2:$B$661,'Step 4 bond aggregation'!$A$2:$A$661,$AQ$69,'Step 4 bond aggregation'!$F$2:$F$661,AX$72,'Step 4 bond aggregation'!$G$2:$G$661,MATCH($AR73,lov_term_buckets,0),'Step 4 bond aggregation'!$E$2:$E$661,$AS$71)","v":0},{"$f":"SUMIFS('Step 4 bond aggregation'!$B$2:$B$661,'Step 4 bond aggregation'!$A$2:$A$661,$AQ$69,'Step 4 bond aggregation'!$F$2:$F$661,AY$72,'Step 4 bond aggregation'!$G$2:$G$661,MATCH($AR73,lov_term_buckets,0),'Step 4 bond aggregation'!$E$2:$E$661,$AS$71)","v":0},null,null,"Upto 1",{"$f":"SUMIFS('Step 4 bond aggregation'!$B$2:$B$661,'Step 4 bond aggregation'!$A$2:$A$661,$BA$69,'Step 4 bond aggregation'!$F$2:$F$661,BC$72,'Step 4 bond aggregation'!$G$2:$G$661,MATCH($BB73,lov_term_buckets,0),'Step 4 bond aggregation'!$E$2:$E$661,$BC$71)","v":0},{"$f":"SUMIFS('Step 4 bond aggregation'!$B$2:$B$661,'Step 4 bond aggregation'!$A$2:$A$661,$BA$69,'Step 4 bond aggregation'!$F$2:$F$661,BD$72,'Step 4 bond aggregation'!$G$2:$G$661,MATCH($BB73,lov_term_buckets,0),'Step 4 bond aggregation'!$E$2:$E$661,$BC$71)","v":0},{"$f":"SUMIFS('Step 4 bond aggregation'!$B$2:$B$661,'Step 4 bond aggregation'!$A$2:$A$661,$BA$69,'Step 4 bond aggregation'!$F$2:$F$661,BE$72,'Step 4 bond aggregation'!$G$2:$G$661,MATCH($BB73,lov_term_buckets,0),'Step 4 bond aggregation'!$E$2:$E$661,$BC$71)","v":0},{"$f":"SUMIFS('Step 4 bond aggregation'!$B$2:$B$661,'Step 4 bond aggregation'!$A$2:$A$661,$BA$69,'Step 4 bond aggregation'!$F$2:$F$661,BF$72,'Step 4 bond aggregation'!$G$2:$G$661,MATCH($BB73,lov_term_buckets,0),'Step 4 bond aggregation'!$E$2:$E$661,$BC$71)","v":0},{"$f":"SUMIFS('Step 4 bond aggregation'!$B$2:$B$661,'Step 4 bond aggregation'!$A$2:$A$661,$BA$69,'Step 4 bond aggregation'!$F$2:$F$661,BG$72,'Step 4 bond aggregation'!$G$2:$G$661,MATCH($BB73,lov_term_buckets,0),'Step 4 bond aggregation'!$E$2:$E$661,$BC$71)","v":0},{"$f":"SUMIFS('Step 4 bond aggregation'!$B$2:$B$661,'Step 4 bond aggregation'!$A$2:$A$661,$BA$69,'Step 4 bond aggregation'!$F$2:$F$661,BH$72,'Step 4 bond aggregation'!$G$2:$G$661,MATCH($BB73,lov_term_buckets,0),'Step 4 bond aggregation'!$E$2:$E$661,$BC$71)","v":0},{"$f":"SUMIFS('Step 4 bond aggregation'!$B$2:$B$661,'Step 4 bond aggregation'!$A$2:$A$661,$BA$69,'Step 4 bond aggregation'!$F$2:$F$661,BI$72,'Step 4 bond aggregation'!$G$2:$G$661,MATCH($BB73,lov_term_buckets,0),'Step 4 bond aggregation'!$E$2:$E$661,$BC$71)","v":0},null,null,"Upto 1",{"$f":"SUMIFS('Step 4 bond aggregation'!$B$2:$B$661,'Step 4 bond aggregation'!$A$2:$A$661,$BK$69,'Step 4 bond aggregation'!$F$2:$F$661,BM$72,'Step 4 bond aggregation'!$G$2:$G$661,MATCH($BB73,lov_term_buckets,0),'Step 4 bond aggregation'!$E$2:$E$661,$BC$71)","v":0},{"$f":"SUMIFS('Step 4 bond aggregation'!$B$2:$B$661,'Step 4 bond aggregation'!$A$2:$A$661,$BK$69,'Step 4 bond aggregation'!$F$2:$F$661,BN$72,'Step 4 bond aggregation'!$G$2:$G$661,MATCH($BB73,lov_term_buckets,0),'Step 4 bond aggregation'!$E$2:$E$661,$BC$71)","v":0},{"$f":"SUMIFS('Step 4 bond aggregation'!$B$2:$B$661,'Step 4 bond aggregation'!$A$2:$A$661,$BK$69,'Step 4 bond aggregation'!$F$2:$F$661,BO$72,'Step 4 bond aggregation'!$G$2:$G$661,MATCH($BB73,lov_term_buckets,0),'Step 4 bond aggregation'!$E$2:$E$661,$BC$71)","v":0},{"$f":"SUMIFS('Step 4 bond aggregation'!$B$2:$B$661,'Step 4 bond aggregation'!$A$2:$A$661,$BK$69,'Step 4 bond aggregation'!$F$2:$F$661,BP$72,'Step 4 bond aggregation'!$G$2:$G$661,MATCH($BB73,lov_term_buckets,0),'Step 4 bond aggregation'!$E$2:$E$661,$BC$71)","v":0},{"$f":"SUMIFS('Step 4 bond aggregation'!$B$2:$B$661,'Step 4 bond aggregation'!$A$2:$A$661,$BK$69,'Step 4 bond aggregation'!$F$2:$F$661,BQ$72,'Step 4 bond aggregation'!$G$2:$G$661,MATCH($BB73,lov_term_buckets,0),'Step 4 bond aggregation'!$E$2:$E$661,$BC$71)","v":0},{"$f":"SUMIFS('Step 4 bond aggregation'!$B$2:$B$661,'Step 4 bond aggregation'!$A$2:$A$661,$BK$69,'Step 4 bond aggregation'!$F$2:$F$661,BR$72,'Step 4 bond aggregation'!$G$2:$G$661,MATCH($BB73,lov_term_buckets,0),'Step 4 bond aggregation'!$E$2:$E$661,$BC$71)","v":0},{"$f":"SUMIFS('Step 4 bond aggregation'!$B$2:$B$661,'Step 4 bond aggregation'!$A$2:$A$661,$BK$69,'Step 4 bond aggregation'!$F$2:$F$661,BS$72,'Step 4 bond aggregation'!$G$2:$G$661,MATCH($BB73,lov_term_buckets,0),'Step 4 bond aggregation'!$E$2:$E$661,$BC$71)","v":0},null,null,"Upto 1",{"$f":"SUMIFS('Step 4 bond aggregation'!$B$2:$B$661,'Step 4 bond aggregation'!$A$2:$A$661,$BU$69,'Step 4 bond aggregation'!$F$2:$F$661,BW$72,'Step 4 bond aggregation'!$G$2:$G$661,MATCH($BB73,lov_term_buckets,0),'Step 4 bond aggregation'!$E$2:$E$661,$BC$71)","v":0},{"$f":"SUMIFS('Step 4 bond aggregation'!$B$2:$B$661,'Step 4 bond aggregation'!$A$2:$A$661,$BU$69,'Step 4 bond aggregation'!$F$2:$F$661,BX$72,'Step 4 bond aggregation'!$G$2:$G$661,MATCH($BB73,lov_term_buckets,0),'Step 4 bond aggregation'!$E$2:$E$661,$BC$71)","v":0},{"$f":"SUMIFS('Step 4 bond aggregation'!$B$2:$B$661,'Step 4 bond aggregation'!$A$2:$A$661,$BU$69,'Step 4 bond aggregation'!$F$2:$F$661,BY$72,'Step 4 bond aggregation'!$G$2:$G$661,MATCH($BB73,lov_term_buckets,0),'Step 4 bond aggregation'!$E$2:$E$661,$BC$71)","v":0},{"$f":"SUMIFS('Step 4 bond aggregation'!$B$2:$B$661,'Step 4 bond aggregation'!$A$2:$A$661,$BU$69,'Step 4 bond aggregation'!$F$2:$F$661,BZ$72,'Step 4 bond aggregation'!$G$2:$G$661,MATCH($BB73,lov_term_buckets,0),'Step 4 bond aggregation'!$E$2:$E$661,$BC$71)","v":0},{"$f":"SUMIFS('Step 4 bond aggregation'!$B$2:$B$661,'Step 4 bond aggregation'!$A$2:$A$661,$BU$69,'Step 4 bond aggregation'!$F$2:$F$661,CA$72,'Step 4 bond aggregation'!$G$2:$G$661,MATCH($BB73,lov_term_buckets,0),'Step 4 bond aggregation'!$E$2:$E$661,$BC$71)","v":0},{"$f":"SUMIFS('Step 4 bond aggregation'!$B$2:$B$661,'Step 4 bond aggregation'!$A$2:$A$661,$BU$69,'Step 4 bond aggregation'!$F$2:$F$661,CB$72,'Step 4 bond aggregation'!$G$2:$G$661,MATCH($BB73,lov_term_buckets,0),'Step 4 bond aggregation'!$E$2:$E$661,$BC$71)","v":0},{"$f":"SUMIFS('Step 4 bond aggregation'!$B$2:$B$661,'Step 4 bond aggregation'!$A$2:$A$661,$BU$69,'Step 4 bond aggregation'!$F$2:$F$661,CC$72,'Step 4 bond aggregation'!$G$2:$G$661,MATCH($BB73,lov_term_buckets,0),'Step 4 bond aggregation'!$E$2:$E$661,$BC$71)","v":0}]
[null,null,"1.01 to 5",{"$f":"Input!F84","v":0},{"$f":"Input!G84","v":0},{"$f":"Input!H84","v":0},{"$f":"Input!I84","v":0},{"$f":"Input!J84","v":0},{"$f":"Input!K84","v":0},{"$f":"Input!L84","v":0},{"$f":"Input!M84","v":0},null,null,"1.01 to 5",{"$f":"Input!F124+Input!F157","v":0},{"$f":"Input!G124+Input!G157","v":0},{"$f":"Input!H124+Input!H157","v":0},{"$f":"Input!I124+Input!I157","v":0},{"$f":"Input!J124+Input!J157","v":0},{"$f":"Input!K124+Input!K157","v":0},{"$f":"Input!L124+Input!L157","v":0},null,null,"1.01 to 5",{"$f":"SUMIFS('Step 4 bond aggregation'!$B$2:$B$661,'Step 4 bond aggregation'!$A$2:$A$661,$W$69,'Step 4 bond aggregation'!$F$2:$F$661,Y$72,'Step 4 bond aggregation'!$G$2:$G$661,MATCH($X74,lov_term_buckets,0),'Step 4 bond aggregation'!$E$2:$E$661,$Y$71)","v":0},{"$f":"SUMIFS('Step 4 bond aggregation'!$B$2:$B$661,'Step 4 bond aggregation'!$A$2:$A$661,$W$69,'Step 4 bond aggregation'!$F$2:$F$661,Z$72,'Step 4 bond aggregation'!$G$2:$G$661,MATCH($X74,lov_term_buckets,0),'Step 4 bond aggregation'!$E$2:$E$661,$Y$71)","v":0},{"$f":"SUMIFS('Step 4 bond aggregation'!$B$2:$B$661,'Step 4 bond aggregation'!$A$2:$A$661,$W$69,'Step 4 bond aggregation'!$F$2:$F$661,AA$72,'Step 4 bond aggregation'!$G$2:$G$661,MATCH($X74,lov_term_buckets,0),'Step 4 bond aggregation'!$E$2:$E$661,$Y$71)","v":0},{"$f":"SUMIFS('Step 4 bond aggregation'!$B$2:$B$661,'Step 4 bond aggregation'!$A$2:$A$661,$W$69,'Step 4 bond aggregation'!$F$2:$F$661,AB$72,'Step 4 bond aggregation'!$G$2:$G$661,MATCH($X74,lov_term_buckets,0),'Step 4 bond aggregation'!$E$2:$E$661,$Y$71)","v":0},{"$f":"SUMIFS('Step 4 bond aggregation'!$B$2:$B$661,'Step 4 bond aggregation'!$A$2:$A$661,$W$69,'Step 4 bond aggregation'!$F$2:$F$661,AC$72,'Step 4 bond aggregation'!$G$2:$G$661,MATCH($X74,lov_term_buckets,0),'Step 4 bond aggregation'!$E$2:$E$661,$Y$71)","v":0},{"$f":"SUMIFS('Step 4 bond aggregation'!$B$2:$B$661,'Step 4 bond aggregation'!$A$2:$A$661,$W$69,'Step 4 bond aggregation'!$F$2:$F$661,AD$72,'Step 4 bond aggregation'!$G$2:$G$661,MATCH($X74,lov_term_buckets,0),'Step 4 bond aggregation'!$E$2:$E$661,$Y$71)","v":0},{"$f":"SUMIFS('Step 4 bond aggregation'!$B$2:$B$661,'Step 4 bond aggregation'!$A$2:$A$661,$W$69,'Step 4 bond aggregation'!$F$2:$F$661,AE$72,'Step 4 bond aggregation'!$G$2:$G$661,MATCH($X74,lov_term_buckets,0),'Step 4 bond aggregation'!$E$2:$E$661,$Y$71)","v":0},null,null,"1.01 to 5",{"$f":"SUMIFS('Step 4 bond aggregation'!$B$2:$B$661,'Step 4 bond aggregation'!$A$2:$A$661,$AG$69,'Step 4 bond aggregation'!$F$2:$F$661,AI$72,'Step 4 bond aggregation'!$G$2:$G$661,MATCH($AH74,lov_term_buckets,0),'Step 4 bond aggregation'!$E$2:$E$661,$AI$71)","v":0},{"$f":"SUMIFS('Step 4 bond aggregation'!$B$2:$B$661,'Step 4 bond aggregation'!$A$2:$A$661,$AG$69,'Step 4 bond aggregation'!$F$2:$F$661,AJ$72,'Step 4 bond aggregation'!$G$2:$G$661,MATCH($AH74,lov_term_buckets,0),'Step 4 bond aggregation'!$E$2:$E$661,$AI$71)","v":0},{"$f":"SUMIFS('Step 4 bond aggregation'!$B$2:$B$661,'Step 4 bond aggregation'!$A$2:$A$661,$AG$69,'Step 4 bond aggregation'!$F$2:$F$661,AK$72,'Step 4 bond aggregation'!$G$2:$G$661,MATCH($AH74,lov_term_buckets,0),'Step 4 bond aggregation'!$E$2:$E$661,$AI$71)","v":0},{"$f":"SUMIFS('Step 4 bond aggregation'!$B$2:$B$661,'Step 4 bond aggregation'!$A$2:$A$661,$AG$69,'Step 4 bond aggregation'!$F$2:$F$661,AL$72,'Step 4 bond aggregation'!$G$2:$G$661,MATCH($AH74,lov_term_buckets,0),'Step 4 bond aggregation'!$E$2:$E$661,$AI$71)","v":0},{"$f":"SUMIFS('Step 4 bond aggregation'!$B$2:$B$661,'Step 4 bond aggregation'!$A$2:$A$661,$AG$69,'Step 4 bond aggregation'!$F$2:$F$661,AM$72,'Step 4 bond aggregation'!$G$2:$G$661,MATCH($AH74,lov_term_buckets,0),'Step 4 bond aggregation'!$E$2:$E$661,$AI$71)","v":0},{"$f":"SUMIFS('Step 4 bond aggregation'!$B$2:$B$661,'Step 4 bond aggregation'!$A$2:$A$661,$AG$69,'Step 4 bond aggregation'!$F$2:$F$661,AN$72,'Step 4 bond aggregation'!$G$2:$G$661,MATCH($AH74,lov_term_buckets,0),'Step 4 bond aggregation'!$E$2:$E$661,$AI$71)","v":0},{"$f":"SUMIFS('Step 4 bond aggregation'!$B$2:$B$661,'Step 4 bond aggregation'!$A$2:$A$661,$AG$69,'Step 4 bond aggregation'!$F$2:$F$661,AO$72,'Step 4 bond aggregation'!$G$2:$G$661,MATCH($AH74,lov_term_buckets,0),'Step 4 bond aggregation'!$E$2:$E$661,$AI$71)","v":0},null,null,"1.01 to 5",{"$f":"SUMIFS('Step 4 bond aggregation'!$B$2:$B$661,'Step 4 bond aggregation'!$A$2:$A$661,$AQ$69,'Step 4 bond aggregation'!$F$2:$F$661,AS$72,'Step 4 bond aggregation'!$G$2:$G$661,MATCH($AR74,lov_term_buckets,0),'Step 4 bond aggregation'!$E$2:$E$661,$AS$71)","v":0},{"$f":"SUMIFS('Step 4 bond aggregation'!$B$2:$B$661,'Step 4 bond aggregation'!$A$2:$A$661,$AQ$69,'Step 4 bond aggregation'!$F$2:$F$661,AT$72,'Step 4 bond aggregation'!$G$2:$G$661,MATCH($AR74,lov_term_buckets,0),'Step 4 bond aggregation'!$E$2:$E$661,$AS$71)","v":0},{"$f":"SUMIFS('Step 4 bond aggregation'!$B$2:$B$661,'Step 4 bond aggregation'!$A$2:$A$661,$AQ$69,'Step 4 bond aggregation'!$F$2:$F$661,AU$72,'Step 4 bond aggregation'!$G$2:$G$661,MATCH($AR74,lov_term_buckets,0),'Step 4 bond aggregation'!$E$2:$E$661,$AS$71)","v":0},{"$f":"SUMIFS('Step 4 bond aggregation'!$B$2:$B$661,'Step 4 bond aggregation'!$A$2:$A$661,$AQ$69,'Step 4 bond aggregation'!$F$2:$F$661,AV$72,'Step 4 bond aggregation'!$G$2:$G$661,MATCH($AR74,lov_term_buckets,0),'Step 4 bond aggregation'!$E$2:$E$661,$AS$71)","v":0},{"$f":"SUMIFS('Step 4 bond aggregation'!$B$2:$B$661,'Step 4 bond aggregation'!$A$2:$A$661,$AQ$69,'Step 4 bond aggregation'!$F$2:$F$661,AW$72,'Step 4 bond aggregation'!$G$2:$G$661,MATCH($AR74,lov_term_buckets,0),'Step 4 bond aggregation'!$E$2:$E$661,$AS$71)","v":0},{"$f":"SUMIFS('Step 4 bond aggregation'!$B$2:$B$661,'Step 4 bond aggregation'!$A$2:$A$661,$AQ$69,'Step 4 bond aggregation'!$F$2:$F$661,AX$72,'Step 4 bond aggregation'!$G$2:$G$661,MATCH($AR74,lov_term_buckets,0),'Step 4 bond aggregation'!$E$2:$E$661,$AS$71)","v":0},{"$f":"SUMIFS('Step 4 bond aggregation'!$B$2:$B$661,'Step 4 bond aggregation'!$A$2:$A$661,$AQ$69,'Step 4 bond aggregation'!$F$2:$F$661,AY$72,'Step 4 bond aggregation'!$G$2:$G$661,MATCH($AR74,lov_term_buckets,0),'Step 4 bond aggregation'!$E$2:$E$661,$AS$71)","v":0},null,null,"1.01 to 5",{"$f":"SUMIFS('Step 4 bond aggregation'!$B$2:$B$661,'Step 4 bond aggregation'!$A$2:$A$661,$BA$69,'Step 4 bond aggregation'!$F$2:$F$661,BC$72,'Step 4 bond aggregation'!$G$2:$G$661,MATCH($BB74,lov_term_buckets,0),'Step 4 bond aggregation'!$E$2:$E$661,$BC$71)","v":0},{"$f":"SUMIFS('Step 4 bond aggregation'!$B$2:$B$661,'Step 4 bond aggregation'!$A$2:$A$661,$BA$69,'Step 4 bond aggregation'!$F$2:$F$661,BD$72,'Step 4 bond aggregation'!$G$2:$G$661,MATCH($BB74,lov_term_buckets,0),'Step 4 bond aggregation'!$E$2:$E$661,$BC$71)","v":0},{"$f":"SUMIFS('Step 4 bond aggregation'!$B$2:$B$661,'Step 4 bond aggregation'!$A$2:$A$661,$BA$69,'Step 4 bond aggregation'!$F$2:$F$661,BE$72,'Step 4 bond aggregation'!$G$2:$G$661,MATCH($BB74,lov_term_buckets,0),'Step 4 bond aggregation'!$E$2:$E$661,$BC$71)","v":0},{"$f":"SUMIFS('Step 4 bond aggregation'!$B$2:$B$661,'Step 4 bond aggregation'!$A$2:$A$661,$BA$69,'Step 4 bond aggregation'!$F$2:$F$661,BF$72,'Step 4 bond aggregation'!$G$2:$G$661,MATCH($BB74,lov_term_buckets,0),'Step 4 bond aggregation'!$E$2:$E$661,$BC$71)","v":0},{"$f":"SUMIFS('Step 4 bond aggregation'!$B$2:$B$661,'Step 4 bond aggregation'!$A$2:$A$661,$BA$69,'Step 4 bond aggregation'!$F$2:$F$661,BG$72,'Step 4 bond aggregation'!$G$2:$G$661,MATCH($BB74,lov_term_buckets,0),'Step 4 bond aggregation'!$E$2:$E$661,$BC$71)","v":0},{"$f":"SUMIFS('Step 4 bond aggregation'!$B$2:$B$661,'Step 4 bond aggregation'!$A$2:$A$661,$BA$69,'Step 4 bond aggregation'!$F$2:$F$661,BH$72,'Step 4 bond aggregation'!$G$2:$G$661,MATCH($BB74,lov_term_buckets,0),'Step 4 bond aggregation'!$E$2:$E$661,$BC$71)","v":0},{"$f":"SUMIFS('Step 4 bond aggregation'!$B$2:$B$661,'Step 4 bond aggregation'!$A$2:$A$661,$BA$69,'Step 4 bond aggregation'!$F$2:$F$661,BI$72,'Step 4 bond aggregation'!$G$2:$G$661,MATCH($BB74,lov_term_buckets,0),'Step 4 bond aggregation'!$E$2:$E$661,$BC$71)","v":0},null,null,"1.01 to 5",{"$f":"SUMIFS('Step 4 bond aggregation'!$B$2:$B$661,'Step 4 bond aggregation'!$A$2:$A$661,$BK$69,'Step 4 bond aggregation'!$F$2:$F$661,BM$72,'Step 4 bond aggregation'!$G$2:$G$661,MATCH($BB74,lov_term_buckets,0),'Step 4 bond aggregation'!$E$2:$E$661,$BC$71)","v":0},{"$f":"SUMIFS('Step 4 bond aggregation'!$B$2:$B$661,'Step 4 bond aggregation'!$A$2:$A$661,$BK$69,'Step 4 bond aggregation'!$F$2:$F$661,BN$72,'Step 4 bond aggregation'!$G$2:$G$661,MATCH($BB74,lov_term_buckets,0),'Step 4 bond aggregation'!$E$2:$E$661,$BC$71)","v":0},{"$f":"SUMIFS('Step 4 bond aggregation'!$B$2:$B$661,'Step 4 bond aggregation'!$A$2:$A$661,$BK$69,'Step 4 bond aggregation'!$F$2:$F$661,BO$72,'Step 4 bond aggregation'!$G$2:$G$661,MATCH($BB74,lov_term_buckets,0),'Step 4 bond aggregation'!$E$2:$E$661,$BC$71)","v":0},{"$f":"SUMIFS('Step 4 bond aggregation'!$B$2:$B$661,'Step 4 bond aggregation'!$A$2:$A$661,$BK$69,'Step 4 bond aggregation'!$F$2:$F$661,BP$72,'Step 4 bond aggregation'!$G$2:$G$661,MATCH($BB74,lov_term_buckets,0),'Step 4 bond aggregation'!$E$2:$E$661,$BC$71)","v":0},{"$f":"SUMIFS('Step 4 bond aggregation'!$B$2:$B$661,'Step 4 bond aggregation'!$A$2:$A$661,$BK$69,'Step 4 bond aggregation'!$F$2:$F$661,BQ$72,'Step 4 bond aggregation'!$G$2:$G$661,MATCH($BB74,lov_term_buckets,0),'Step 4 bond aggregation'!$E$2:$E$661,$BC$71)","v":0},{"$f":"SUMIFS('Step 4 bond aggregation'!$B$2:$B$661,'Step 4 bond aggregation'!$A$2:$A$661,$BK$69,'Step 4 bond aggregation'!$F$2:$F$661,BR$72,'Step 4 bond aggregation'!$G$2:$G$661,MATCH($BB74,lov_term_buckets,0),'Step 4 bond aggregation'!$E$2:$E$661,$BC$71)","v":0},{"$f":"SUMIFS('Step 4 bond aggregation'!$B$2:$B$661,'Step 4 bond aggregation'!$A$2:$A$661,$BK$69,'Step 4 bond aggregation'!$F$2:$F$661,BS$72,'Step 4 bond aggregation'!$G$2:$G$661,MATCH($BB74,lov_term_buckets,0),'Step 4 bond aggregation'!$E$2:$E$661,$BC$71)","v":0},null,null,"1.01 to 5",{"$f":"SUMIFS('Step 4 bond aggregation'!$B$2:$B$661,'Step 4 bond aggregation'!$A$2:$A$661,$BU$69,'Step 4 bond aggregation'!$F$2:$F$661,BW$72,'Step 4 bond aggregation'!$G$2:$G$661,MATCH($BB74,lov_term_buckets,0),'Step 4 bond aggregation'!$E$2:$E$661,$BC$71)","v":0},{"$f":"SUMIFS('Step 4 bond aggregation'!$B$2:$B$661,'Step 4 bond aggregation'!$A$2:$A$661,$BU$69,'Step 4 bond aggregation'!$F$2:$F$661,BX$72,'Step 4 bond aggregation'!$G$2:$G$661,MATCH($BB74,lov_term_buckets,0),'Step 4 bond aggregation'!$E$2:$E$661,$BC$71)","v":0},{"$f":"SUMIFS('Step 4 bond aggregation'!$B$2:$B$661,'Step 4 bond aggregation'!$A$2:$A$661,$BU$69,'Step 4 bond aggregation'!$F$2:$F$661,BY$72,'Step 4 bond aggregation'!$G$2:$G$661,MATCH($BB74,lov_term_buckets,0),'Step 4 bond aggregation'!$E$2:$E$661,$BC$71)","v":0},{"$f":"SUMIFS('Step 4 bond aggregation'!$B$2:$B$661,'Step 4 bond aggregation'!$A$2:$A$661,$BU$69,'Step 4 bond aggregation'!$F$2:$F$661,BZ$72,'Step 4 bond aggregation'!$G$2:$G$661,MATCH($BB74,lov_term_buckets,0),'Step 4 bond aggregation'!$E$2:$E$661,$BC$71)","v":0},{"$f":"SUMIFS('Step 4 bond aggregation'!$B$2:$B$661,'Step 4 bond aggregation'!$A$2:$A$661,$BU$69,'Step 4 bond aggregation'!$F$2:$F$661,CA$72,'Step 4 bond aggregation'!$G$2:$G$661,MATCH($BB74,lov_term_buckets,0),'Step 4 bond aggregation'!$E$2:$E$661,$BC$71)","v":0},{"$f":"SUMIFS('Step 4 bond aggregation'!$B$2:$B$661,'Step 4 bond aggregation'!$A$2:$A$661,$BU$69,'Step 4 bond aggregation'!$F$2:$F$661,CB$72,'Step 4 bond aggregation'!$G$2:$G$661,MATCH($BB74,lov_term_buckets,0),'Step 4 bond aggregation'!$E$2:$E$661,$BC$71)","v":0},{"$f":"SUMIFS('Step 4 bond aggregation'!$B$2:$B$661,'Step 4 bond aggregation'!$A$2:$A$661,$BU$69,'Step 4 bond aggregation'!$F$2:$F$661,CC$72,'Step 4 bond aggregation'!$G$2:$G$661,MATCH($BB74,lov_term_buckets,0),'Step 4 bond aggregation'!$E$2:$E$661,$BC$71)","v":0}]
[null,null,"5.01 to 10",{"$f":"Input!F85","v":0},{"$f":"Input!G85","v":0},{"$f":"Input!H85","v":0},{"$f":"Input!I85","v":0},{"$f":"Input!J85","v":0},{"$f":"Input!K85","v":0},{"$f":"Input!L85","v":0},{"$f":"Input!M85","v":0},null,null,"5.01 to 10",{"$f":"Input!F125+Input!F158","v":0},{"$f":"Input!G125+Input!G158","v":0},{"$f":"Input!H125+Input!H158","v":0},{"$f":"Input!I125+Input!I158","v":0},{"$f":"Input!J125+Input!J158","v":0},{"$f":"Input!K125+Input!K158","v":0},{"$f":"Input!L125+Input!L158","v":0},null,null,"5.01 to 10",{"$f":"SUMIFS('Step 4 bond aggregation'!$B$2:$B$661,'Step 4 bond aggregation'!$A$2:$A$661,$W$69,'Step 4 bond aggregation'!$F$2:$F$661,Y$72,'Step 4 bond aggregation'!$G$2:$G$661,MATCH($X75,lov_term_buckets,0),'Step 4 bond aggregation'!$E$2:$E$661,$Y$71)","v":0},{"$f":"SUMIFS('Step 4 bond aggregation'!$B$2:$B$661,'Step 4 bond aggregation'!$A$2:$A$661,$W$69,'Step 4 bond aggregation'!$F$2:$F$661,Z$72,'Step 4 bond aggregation'!$G$2:$G$661,MATCH($X75,lov_term_buckets,0),'Step 4 bond aggregation'!$E$2:$E$661,$Y$71)","v":0},{"$f":"SUMIFS('Step 4 bond aggregation'!$B$2:$B$661,'Step 4 bond aggregation'!$A$2:$A$661,$W$69,'Step 4 bond aggregation'!$F$2:$F$661,AA$72,'Step 4 bond aggregation'!$G$2:$G$661,MATCH($X75,lov_term_buckets,0),'Step 4 bond aggregation'!$E$2:$E$661,$Y$71)","v":0},{"$f":"SUMIFS('Step 4 bond aggregation'!$B$2:$B$661,'Step 4 bond aggregation'!$A$2:$A$661,$W$69,'Step 4 bond aggregation'!$F$2:$F$661,AB$72,'Step 4 bond aggregation'!$G$2:$G$661,MATCH($X75,lov_term_buckets,0),'Step 4 bond aggregation'!$E$2:$E$661,$Y$71)","v":0},{"$f":"SUMIFS('Step 4 bond aggregation'!$B$2:$B$661,'Step 4 bond aggregation'!$A$2:$A$661,$W$69,'Step 4 bond aggregation'!$F$2:$F$661,AC$72,'Step 4 bond aggregation'!$G$2:$G$661,MATCH($X75,lov_term_buckets,0),'Step 4 bond aggregation'!$E$2:$E$661,$Y$71)","v":0},{"$f":"SUMIFS('Step 4 bond aggregation'!$B$2:$B$661,'Step 4 bond aggregation'!$A$2:$A$661,$W$69,'Step 4 bond aggregation'!$F$2:$F$661,AD$72,'Step 4 bond aggregation'!$G$2:$G$661,MATCH($X75,lov_term_buckets,0),'Step 4 bond aggregation'!$E$2:$E$661,$Y$71)","v":0},{"$f":"SUMIFS('Step 4 bond aggregation'!$B$2:$B$661,'Step 4 bond aggregation'!$A$2:$A$661,$W$69,'Step 4 bond aggregation'!$F$2:$F$661,AE$72,'Step 4 bond aggregation'!$G$2:$G$661,MATCH($X75,lov_term_buckets,0),'Step 4 bond aggregation'!$E$2:$E$661,$Y$71)","v":0},null,null,"5.01 to 10",{"$f":"SUMIFS('Step 4 bond aggregation'!$B$2:$B$661,'Step 4 bond aggregation'!$A$2:$A$661,$AG$69,'Step 4 bond aggregation'!$F$2:$F$661,AI$72,'Step 4 bond aggregation'!$G$2:$G$661,MATCH($AH75,lov_term_buckets,0),'Step 4 bond aggregation'!$E$2:$E$661,$AI$71)","v":0},{"$f":"SUMIFS('Step 4 bond aggregation'!$B$2:$B$661,'Step 4 bond aggregation'!$A$2:$A$661,$AG$69,'Step 4 bond aggregation'!$F$2:$F$661,AJ$72,'Step 4 bond aggregation'!$G$2:$G$661,MATCH($AH75,lov_term_buckets,0),'Step 4 bond aggregation'!$E$2:$E$661,$AI$71)","v":0},{"$f":"SUMIFS('Step 4 bond aggregation'!$B$2:$B$661,'Step 4 bond aggregation'!$A$2:$A$661,$AG$69,'Step 4 bond aggregation'!$F$2:$F$661,AK$72,'Step 4 bond aggregation'!$G$2:$G$661,MATCH($AH75,lov_term_buckets,0),'Step 4 bond aggregation'!$E$2:$E$661,$AI$71)","v":0},{"$f":"SUMIFS('Step 4 bond aggregation'!$B$2:$B$661,'Step 4 bond aggregation'!$A$2:$A$661,$AG$69,'Step 4 bond aggregation'!$F$2:$F$661,AL$72,'Step 4 bond aggregation'!$G$2:$G$661,MATCH($AH75,lov_term_buckets,0),'Step 4 bond aggregation'!$E$2:$E$661,$AI$71)","v":0},{"$f":"SUMIFS('Step 4 bond aggregation'!$B$2:$B$661,'Step 4 bond aggregation'!$A$2:$A$661,$AG$69,'Step 4 bond aggregation'!$F$2:$F$661,AM$72,'Step 4 bond aggregation'!$G$2:$G$661,MATCH($AH75,lov_term_buckets,0),'Step 4 bond aggregation'!$E$2:$E$661,$AI$71)","v":0},{"$f":"SUMIFS('Step 4 bond aggregation'!$B$2:$B$661,'Step 4 bond aggregation'!$A$2:$A$661,$AG$69,'Step 4 bond aggregation'!$F$2:$F$661,AN$72,'Step 4 bond aggregation'!$G$2:$G$661,MATCH($AH75,lov_term_buckets,0),'Step 4 bond aggregation'!$E$2:$E$661,$AI$71)","v":0},{"$f":"SUMIFS('Step 4 bond aggregation'!$B$2:$B$661,'Step 4 bond aggregation'!$A$2:$A$661,$AG$69,'Step 4 bond aggregation'!$F$2:$F$661,AO$72,'Step 4 bond aggregation'!$G$2:$G$661,MATCH($AH75,lov_term_buckets,0),'Step 4 bond aggregation'!$E$2:$E$661,$AI$71)","v":0},null,null,"5.01 to 10",{"$f":"SUMIFS('Step 4 bond aggregation'!$B$2:$B$661,'Step 4 bond aggregation'!$A$2:$A$661,$AQ$69,'Step 4 bond aggregation'!$F$2:$F$661,AS$72,'Step 4 bond aggregation'!$G$2:$G$661,MATCH($AR75,lov_term_buckets,0),'Step 4 bond aggregation'!$E$2:$E$661,$AS$71)","v":0},{"$f":"SUMIFS('Step 4 bond aggregation'!$B$2:$B$661,'Step 4 bond aggregation'!$A$2:$A$661,$AQ$69,'Step 4 bond aggregation'!$F$2:$F$661,AT$72,'Step 4 bond aggregation'!$G$2:$G$661,MATCH($AR75,lov_term_buckets,0),'Step 4 bond aggregation'!$E$2:$E$661,$AS$71)","v":0},{"$f":"SUMIFS('Step 4 bond aggregation'!$B$2:$B$661,'Step 4 bond aggregation'!$A$2:$A$661,$AQ$69,'Step 4 bond aggregation'!$F$2:$F$661,AU$72,'Step 4 bond aggregation'!$G$2:$G$661,MATCH($AR75,lov_term_buckets,0),'Step 4 bond aggregation'!$E$2:$E$661,$AS$71)","v":0},{"$f":"SUMIFS('Step 4 bond aggregation'!$B$2:$B$661,'Step 4 bond aggregation'!$A$2:$A$661,$AQ$69,'Step 4 bond aggregation'!$F$2:$F$661,AV$72,'Step 4 bond aggregation'!$G$2:$G$661,MATCH($AR75,lov_term_buckets,0),'Step 4 bond aggregation'!$E$2:$E$661,$AS$71)","v":0},{"$f":"SUMIFS('Step 4 bond aggregation'!$B$2:$B$661,'Step 4 bond aggregation'!$A$2:$A$661,$AQ$69,'Step 4 bond aggregation'!$F$2:$F$661,AW$72,'Step 4 bond aggregation'!$G$2:$G$661,MATCH($AR75,lov_term_buckets,0),'Step 4 bond aggregation'!$E$2:$E$661,$AS$71)","v":0},{"$f":"SUMIFS('Step 4 bond aggregation'!$B$2:$B$661,'Step 4 bond aggregation'!$A$2:$A$661,$AQ$69,'Step 4 bond aggregation'!$F$2:$F$661,AX$72,'Step 4 bond aggregation'!$G$2:$G$661,MATCH($AR75,lov_term_buckets,0),'Step 4 bond aggregation'!$E$2:$E$661,$AS$71)","v":0},{"$f":"SUMIFS('Step 4 bond aggregation'!$B$2:$B$661,'Step 4 bond aggregation'!$A$2:$A$661,$AQ$69,'Step 4 bond aggregation'!$F$2:$F$661,AY$72,'Step 4 bond aggregation'!$G$2:$G$661,MATCH($AR75,lov_term_buckets,0),'Step 4 bond aggregation'!$E$2:$E$661,$AS$71)","v":0},null,null,"5.01 to 10",{"$f":"SUMIFS('Step 4 bond aggregation'!$B$2:$B$661,'Step 4 bond aggregation'!$A$2:$A$661,$BA$69,'Step 4 bond aggregation'!$F$2:$F$661,BC$72,'Step 4 bond aggregation'!$G$2:$G$661,MATCH($BB75,lov_term_buckets,0),'Step 4 bond aggregation'!$E$2:$E$661,$BC$71)","v":0},{"$f":"SUMIFS('Step 4 bond aggregation'!$B$2:$B$661,'Step 4 bond aggregation'!$A$2:$A$661,$BA$69,'Step 4 bond aggregation'!$F$2:$F$661,BD$72,'Step 4 bond aggregation'!$G$2:$G$661,MATCH($BB75,lov_term_buckets,0),'Step 4 bond aggregation'!$E$2:$E$661,$BC$71)","v":0},{"$f":"SUMIFS('Step 4 bond aggregation'!$B$2:$B$661,'Step 4 bond aggregation'!$A$2:$A$661,$BA$69,'Step 4 bond aggregation'!$F$2:$F$661,BE$72,'Step 4 bond aggregation'!$G$2:$G$661,MATCH($BB75,lov_term_buckets,0),'Step 4 bond aggregation'!$E$2:$E$661,$BC$71)","v":0},{"$f":"SUMIFS('Step 4 bond aggregation'!$B$2:$B$661,'Step 4 bond aggregation'!$A$2:$A$661,$BA$69,'Step 4 bond aggregation'!$F$2:$F$661,BF$72,'Step 4 bond aggregation'!$G$2:$G$661,MATCH($BB75,lov_term_buckets,0),'Step 4 bond aggregation'!$E$2:$E$661,$BC$71)","v":0},{"$f":"SUMIFS('Step 4 bond aggregation'!$B$2:$B$661,'Step 4 bond aggregation'!$A$2:$A$661,$BA$69,'Step 4 bond aggregation'!$F$2:$F$661,BG$72,'Step 4 bond aggregation'!$G$2:$G$661,MATCH($BB75,lov_term_buckets,0),'Step 4 bond aggregation'!$E$2:$E$661,$BC$71)","v":0},{"$f":"SUMIFS('Step 4 bond aggregation'!$B$2:$B$661,'Step 4 bond aggregation'!$A$2:$A$661,$BA$69,'Step 4 bond aggregation'!$F$2:$F$661,BH$72,'Step 4 bond aggregation'!$G$2:$G$661,MATCH($BB75,lov_term_buckets,0),'Step 4 bond aggregation'!$E$2:$E$661,$BC$71)","v":0},{"$f":"SUMIFS('Step 4 bond aggregation'!$B$2:$B$661,'Step 4 bond aggregation'!$A$2:$A$661,$BA$69,'Step 4 bond aggregation'!$F$2:$F$661,BI$72,'Step 4 bond aggregation'!$G$2:$G$661,MATCH($BB75,lov_term_buckets,0),'Step 4 bond aggregation'!$E$2:$E$661,$BC$71)","v":0},null,null,"5.01 to 10",{"$f":"SUMIFS('Step 4 bond aggregation'!$B$2:$B$661,'Step 4 bond aggregation'!$A$2:$A$661,$BK$69,'Step 4 bond aggregation'!$F$2:$F$661,BM$72,'Step 4 bond aggregation'!$G$2:$G$661,MATCH($BB75,lov_term_buckets,0),'Step 4 bond aggregation'!$E$2:$E$661,$BC$71)","v":0},{"$f":"SUMIFS('Step 4 bond aggregation'!$B$2:$B$661,'Step 4 bond aggregation'!$A$2:$A$661,$BK$69,'Step 4 bond aggregation'!$F$2:$F$661,BN$72,'Step 4 bond aggregation'!$G$2:$G$661,MATCH($BB75,lov_term_buckets,0),'Step 4 bond aggregation'!$E$2:$E$661,$BC$71)","v":0},{"$f":"SUMIFS('Step 4 bond aggregation'!$B$2:$B$661,'Step 4 bond aggregation'!$A$2:$A$661,$BK$69,'Step 4 bond aggregation'!$F$2:$F$661,BO$72,'Step 4 bond aggregation'!$G$2:$G$661,MATCH($BB75,lov_term_buckets,0),'Step 4 bond aggregation'!$E$2:$E$661,$BC$71)","v":0},{"$f":"SUMIFS('Step 4 bond aggregation'!$B$2:$B$661,'Step 4 bond aggregation'!$A$2:$A$661,$BK$69,'Step 4 bond aggregation'!$F$2:$F$661,BP$72,'Step 4 bond aggregation'!$G$2:$G$661,MATCH($BB75,lov_term_buckets,0),'Step 4 bond aggregation'!$E$2:$E$661,$BC$71)","v":0},{"$f":"SUMIFS('Step 4 bond aggregation'!$B$2:$B$661,'Step 4 bond aggregation'!$A$2:$A$661,$BK$69,'Step 4 bond aggregation'!$F$2:$F$661,BQ$72,'Step 4 bond aggregation'!$G$2:$G$661,MATCH($BB75,lov_term_buckets,0),'Step 4 bond aggregation'!$E$2:$E$661,$BC$71)","v":0},{"$f":"SUMIFS('Step 4 bond aggregation'!$B$2:$B$661,'Step 4 bond aggregation'!$A$2:$A$661,$BK$69,'Step 4 bond aggregation'!$F$2:$F$661,BR$72,'Step 4 bond aggregation'!$G$2:$G$661,MATCH($BB75,lov_term_buckets,0),'Step 4 bond aggregation'!$E$2:$E$661,$BC$71)","v":0},{"$f":"SUMIFS('Step 4 bond aggregation'!$B$2:$B$661,'Step 4 bond aggregation'!$A$2:$A$661,$BK$69,'Step 4 bond aggregation'!$F$2:$F$661,BS$72,'Step 4 bond aggregation'!$G$2:$G$661,MATCH($BB75,lov_term_buckets,0),'Step 4 bond aggregation'!$E$2:$E$661,$BC$71)","v":0},null,null,"5.01 to 10",{"$f":"SUMIFS('Step 4 bond aggregation'!$B$2:$B$661,'Step 4 bond aggregation'!$A$2:$A$661,$BU$69,'Step 4 bond aggregation'!$F$2:$F$661,BW$72,'Step 4 bond aggregation'!$G$2:$G$661,MATCH($BB75,lov_term_buckets,0),'Step 4 bond aggregation'!$E$2:$E$661,$BC$71)","v":0},{"$f":"SUMIFS('Step 4 bond aggregation'!$B$2:$B$661,'Step 4 bond aggregation'!$A$2:$A$661,$BU$69,'Step 4 bond aggregation'!$F$2:$F$661,BX$72,'Step 4 bond aggregation'!$G$2:$G$661,MATCH($BB75,lov_term_buckets,0),'Step 4 bond aggregation'!$E$2:$E$661,$BC$71)","v":0},{"$f":"SUMIFS('Step 4 bond aggregation'!$B$2:$B$661,'Step 4 bond aggregation'!$A$2:$A$661,$BU$69,'Step 4 bond aggregation'!$F$2:$F$661,BY$72,'Step 4 bond aggregation'!$G$2:$G$661,MATCH($BB75,lov_term_buckets,0),'Step 4 bond aggregation'!$E$2:$E$661,$BC$71)","v":0},{"$f":"SUMIFS('Step 4 bond aggregation'!$B$2:$B$661,'Step 4 bond aggregation'!$A$2:$A$661,$BU$69,'Step 4 bond aggregation'!$F$2:$F$661,BZ$72,'Step 4 bond aggregation'!$G$2:$G$661,MATCH($BB75,lov_term_buckets,0),'Step 4 bond aggregation'!$E$2:$E$661,$BC$71)","v":0},{"$f":"SUMIFS('Step 4 bond aggregation'!$B$2:$B$661,'Step 4 bond aggregation'!$A$2:$A$661,$BU$69,'Step 4 bond aggregation'!$F$2:$F$661,CA$72,'Step 4 bond aggregation'!$G$2:$G$661,MATCH($BB75,lov_term_buckets,0),'Step 4 bond aggregation'!$E$2:$E$661,$BC$71)","v":0},{"$f":"SUMIFS('Step 4 bond aggregation'!$B$2:$B$661,'Step 4 bond aggregation'!$A$2:$A$661,$BU$69,'Step 4 bond aggregation'!$F$2:$F$661,CB$72,'Step 4 bond aggregation'!$G$2:$G$661,MATCH($BB75,lov_term_buckets,0),'Step 4 bond aggregation'!$E$2:$E$661,$BC$71)","v":0},{"$f":"SUMIFS('Step 4 bond aggregation'!$B$2:$B$661,'Step 4 bond aggregation'!$A$2:$A$661,$BU$69,'Step 4 bond aggregation'!$F$2:$F$661,CC$72,'Step 4 bond aggregation'!$G$2:$G$661,MATCH($BB75,lov_term_buckets,0),'Step 4 bond aggregation'!$E$2:$E$661,$BC$71)","v":0}]
[null,null,"10.01 to 20",{"$f":"Input!F86","v":0},{"$f":"Input!G86","v":0},{"$f":"Input!H86","v":0},{"$f":"Input!I86","v":0},{"$f":"Input!J86","v":0},{"$f":"Input!K86","v":0},{"$f":"Input!L86","v":0},{"$f":"Input!M86","v":0},null,null,"10.01 to 20",{"$f":"Input!F126+Input!F159","v":0},{"$f":"Input!G126+Input!G159","v":0},{"$f":"Input!H126+Input!H159","v":0},{"$f":"Input!I126+Input!I159","v":0},{"$f":"Input!J126+Input!J159","v":0},{"$f":"Input!K126+Input!K159","v":0},{"$f":"Input!L126+Input!L159","v":0},null,null,"10.01 to 20",{"$f":"SUMIFS('Step 4 bond aggregation'!$B$2:$B$661,'Step 4 bond aggregation'!$A$2:$A$661,$W$69,'Step 4 bond aggregation'!$F$2:$F$661,Y$72,'Step 4 bond aggregation'!$G$2:$G$661,MATCH($X76,lov_term_buckets,0),'Step 4 bond aggregation'!$E$2:$E$661,$Y$71)","v":0},{"$f":"SUMIFS('Step 4 bond aggregation'!$B$2:$B$661,'Step 4 bond aggregation'!$A$2:$A$661,$W$69,'Step 4 bond aggregation'!$F$2:$F$661,Z$72,'Step 4 bond aggregation'!$G$2:$G$661,MATCH($X76,lov_term_buckets,0),'Step 4 bond aggregation'!$E$2:$E$661,$Y$71)","v":0},{"$f":"SUMIFS('Step 4 bond aggregation'!$B$2:$B$661,'Step 4 bond aggregation'!$A$2:$A$661,$W$69,'Step 4 bond aggregation'!$F$2:$F$661,AA$72,'Step 4 bond aggregation'!$G$2:$G$661,MATCH($X76,lov_term_buckets,0),'Step 4 bond aggregation'!$E$2:$E$661,$Y$71)","v":0},{"$f":"SUMIFS('Step 4 bond aggregation'!$B$2:$B$661,'Step 4 bond aggregation'!$A$2:$A$661,$W$69,'Step 4 bond aggregation'!$F$2:$F$661,AB$72,'Step 4 bond aggregation'!$G$2:$G$661,MATCH($X76,lov_term_buckets,0),'Step 4 bond aggregation'!$E$2:$E$661,$Y$71)","v":0},{"$f":"SUMIFS('Step 4 bond aggregation'!$B$2:$B$661,'Step 4 bond aggregation'!$A$2:$A$661,$W$69,'Step 4 bond aggregation'!$F$2:$F$661,AC$72,'Step 4 bond aggregation'!$G$2:$G$661,MATCH($X76,lov_term_buckets,0),'Step 4 bond aggregation'!$E$2:$E$661,$Y$71)","v":0},{"$f":"SUMIFS('Step 4 bond aggregation'!$B$2:$B$661,'Step 4 bond aggregation'!$A$2:$A$661,$W$69,'Step 4 bond aggregation'!$F$2:$F$661,AD$72,'Step 4 bond aggregation'!$G$2:$G$661,MATCH($X76,lov_term_buckets,0),'Step 4 bond aggregation'!$E$2:$E$661,$Y$71)","v":0},{"$f":"SUMIFS('Step 4 bond aggregation'!$B$2:$B$661,'Step 4 bond aggregation'!$A$2:$A$661,$W$69,'Step 4 bond aggregation'!$F$2:$F$661,AE$72,'Step 4 bond aggregation'!$G$2:$G$661,MATCH($X76,lov_term_buckets,0),'Step 4 bond aggregation'!$E$2:$E$661,$Y$71)","v":0},null,null,"10.01 to 20",{"$f":"SUMIFS('Step 4 bond aggregation'!$B$2:$B$661,'Step 4 bond aggregation'!$A$2:$A$661,$AG$69,'Step 4 bond aggregation'!$F$2:$F$661,AI$72,'Step 4 bond aggregation'!$G$2:$G$661,MATCH($AH76,lov_term_buckets,0),'Step 4 bond aggregation'!$E$2:$E$661,$AI$71)","v":0},{"$f":"SUMIFS('Step 4 bond aggregation'!$B$2:$B$661,'Step 4 bond aggregation'!$A$2:$A$661,$AG$69,'Step 4 bond aggregation'!$F$2:$F$661,AJ$72,'Step 4 bond aggregation'!$G$2:$G$661,MATCH($AH76,lov_term_buckets,0),'Step 4 bond aggregation'!$E$2:$E$661,$AI$71)","v":0},{"$f":"SUMIFS('Step 4 bond aggregation'!$B$2:$B$661,'Step 4 bond aggregation'!$A$2:$A$661,$AG$69,'Step 4 bond aggregation'!$F$2:$F$661,AK$72,'Step 4 bond aggregation'!$G$2:$G$661,MATCH($AH76,lov_term_buckets,0),'Step 4 bond aggregation'!$E$2:$E$661,$AI$71)","v":0},{"$f":"SUMIFS('Step 4 bond aggregation'!$B$2:$B$661,'Step 4 bond aggregation'!$A$2:$A$661,$AG$69,'Step 4 bond aggregation'!$F$2:$F$661,AL$72,'Step 4 bond aggregation'!$G$2:$G$661,MATCH($AH76,lov_term_buckets,0),'Step 4 bond aggregation'!$E$2:$E$661,$AI$71)","v":0},{"$f":"SUMIFS('Step 4 bond aggregation'!$B$2:$B$661,'Step 4 bond aggregation'!$A$2:$A$661,$AG$69,'Step 4 bond aggregation'!$F$2:$F$661,AM$72,'Step 4 bond aggregation'!$G$2:$G$661,MATCH($AH76,lov_term_buckets,0),'Step 4 bond aggregation'!$E$2:$E$661,$AI$71)","v":0},{"$f":"SUMIFS('Step 4 bond aggregation'!$B$2:$B$661,'Step 4 bond aggregation'!$A$2:$A$661,$AG$69,'Step 4 bond aggregation'!$F$2:$F$661,AN$72,'Step 4 bond aggregation'!$G$2:$G$661,MATCH($AH76,lov_term_buckets,0),'Step 4 bond aggregation'!$E$2:$E$661,$AI$71)","v":0},{"$f":"SUMIFS('Step 4 bond aggregation'!$B$2:$B$661,'Step 4 bond aggregation'!$A$2:$A$661,$AG$69,'Step 4 bond aggregation'!$F$2:$F$661,AO$72,'Step 4 bond aggregation'!$G$2:$G$661,MATCH($AH76,lov_term_buckets,0),'Step 4 bond aggregation'!$E$2:$E$661,$AI$71)","v":0},null,null,"10.01 to 20",{"$f":"SUMIFS('Step 4 bond aggregation'!$B$2:$B$661,'Step 4 bond aggregation'!$A$2:$A$661,$AQ$69,'Step 4 bond aggregation'!$F$2:$F$661,AS$72,'Step 4 bond aggregation'!$G$2:$G$661,MATCH($AR76,lov_term_buckets,0),'Step 4 bond aggregation'!$E$2:$E$661,$AS$71)","v":0},{"$f":"SUMIFS('Step 4 bond aggregation'!$B$2:$B$661,'Step 4 bond aggregation'!$A$2:$A$661,$AQ$69,'Step 4 bond aggregation'!$F$2:$F$661,AT$72,'Step 4 bond aggregation'!$G$2:$G$661,MATCH($AR76,lov_term_buckets,0),'Step 4 bond aggregation'!$E$2:$E$661,$AS$71)","v":0},{"$f":"SUMIFS('Step 4 bond aggregation'!$B$2:$B$661,'Step 4 bond aggregation'!$A$2:$A$661,$AQ$69,'Step 4 bond aggregation'!$F$2:$F$661,AU$72,'Step 4 bond aggregation'!$G$2:$G$661,MATCH($AR76,lov_term_buckets,0),'Step 4 bond aggregation'!$E$2:$E$661,$AS$71)","v":0},{"$f":"SUMIFS('Step 4 bond aggregation'!$B$2:$B$661,'Step 4 bond aggregation'!$A$2:$A$661,$AQ$69,'Step 4 bond aggregation'!$F$2:$F$661,AV$72,'Step 4 bond aggregation'!$G$2:$G$661,MATCH($AR76,lov_term_buckets,0),'Step 4 bond aggregation'!$E$2:$E$661,$AS$71)","v":0},{"$f":"SUMIFS('Step 4 bond aggregation'!$B$2:$B$661,'Step 4 bond aggregation'!$A$2:$A$661,$AQ$69,'Step 4 bond aggregation'!$F$2:$F$661,AW$72,'Step 4 bond aggregation'!$G$2:$G$661,MATCH($AR76,lov_term_buckets,0),'Step 4 bond aggregation'!$E$2:$E$661,$AS$71)","v":0},{"$f":"SUMIFS('Step 4 bond aggregation'!$B$2:$B$661,'Step 4 bond aggregation'!$A$2:$A$661,$AQ$69,'Step 4 bond aggregation'!$F$2:$F$661,AX$72,'Step 4 bond aggregation'!$G$2:$G$661,MATCH($AR76,lov_term_buckets,0),'Step 4 bond aggregation'!$E$2:$E$661,$AS$71)","v":0},{"$f":"SUMIFS('Step 4 bond aggregation'!$B$2:$B$661,'Step 4 bond aggregation'!$A$2:$A$661,$AQ$69,'Step 4 bond aggregation'!$F$2:$F$661,AY$72,'Step 4 bond aggregation'!$G$2:$G$661,MATCH($AR76,lov_term_buckets,0),'Step 4 bond aggregation'!$E$2:$E$661,$AS$71)","v":0},null,null,"10.01 to 20",{"$f":"SUMIFS('Step 4 bond aggregation'!$B$2:$B$661,'Step 4 bond aggregation'!$A$2:$A$661,$BA$69,'Step 4 bond aggregation'!$F$2:$F$661,BC$72,'Step 4 bond aggregation'!$G$2:$G$661,MATCH($BB76,lov_term_buckets,0),'Step 4 bond aggregation'!$E$2:$E$661,$BC$71)","v":0},{"$f":"SUMIFS('Step 4 bond aggregation'!$B$2:$B$661,'Step 4 bond aggregation'!$A$2:$A$661,$BA$69,'Step 4 bond aggregation'!$F$2:$F$661,BD$72,'Step 4 bond aggregation'!$G$2:$G$661,MATCH($BB76,lov_term_buckets,0),'Step 4 bond aggregation'!$E$2:$E$661,$BC$71)","v":0},{"$f":"SUMIFS('Step 4 bond aggregation'!$B$2:$B$661,'Step 4 bond aggregation'!$A$2:$A$661,$BA$69,'Step 4 bond aggregation'!$F$2:$F$661,BE$72,'Step 4 bond aggregation'!$G$2:$G$661,MATCH($BB76,lov_term_buckets,0),'Step 4 bond aggregation'!$E$2:$E$661,$BC$71)","v":0},{"$f":"SUMIFS('Step 4 bond aggregation'!$B$2:$B$661,'Step 4 bond aggregation'!$A$2:$A$661,$BA$69,'Step 4 bond aggregation'!$F$2:$F$661,BF$72,'Step 4 bond aggregation'!$G$2:$G$661,MATCH($BB76,lov_term_buckets,0),'Step 4 bond aggregation'!$E$2:$E$661,$BC$71)","v":0},{"$f":"SUMIFS('Step 4 bond aggregation'!$B$2:$B$661,'Step 4 bond aggregation'!$A$2:$A$661,$BA$69,'Step 4 bond aggregation'!$F$2:$F$661,BG$72,'Step 4 bond aggregation'!$G$2:$G$661,MATCH($BB76,lov_term_buckets,0),'Step 4 bond aggregation'!$E$2:$E$661,$BC$71)","v":0},{"$f":"SUMIFS('Step 4 bond aggregation'!$B$2:$B$661,'Step 4 bond aggregation'!$A$2:$A$661,$BA$69,'Step 4 bond aggregation'!$F$2:$F$661,BH$72,'Step 4 bond aggregation'!$G$2:$G$661,MATCH($BB76,lov_term_buckets,0),'Step 4 bond aggregation'!$E$2:$E$661,$BC$71)","v":0},{"$f":"SUMIFS('Step 4 bond aggregation'!$B$2:$B$661,'Step 4 bond aggregation'!$A$2:$A$661,$BA$69,'Step 4 bond aggregation'!$F$2:$F$661,BI$72,'Step 4 bond aggregation'!$G$2:$G$661,MATCH($BB76,lov_term_buckets,0),'Step 4 bond aggregation'!$E$2:$E$661,$BC$71)","v":0},null,null,"10.01 to 20",{"$f":"SUMIFS('Step 4 bond aggregation'!$B$2:$B$661,'Step 4 bond aggregation'!$A$2:$A$661,$BK$69,'Step 4 bond aggregation'!$F$2:$F$661,BM$72,'Step 4 bond aggregation'!$G$2:$G$661,MATCH($BB76,lov_term_buckets,0),'Step 4 bond aggregation'!$E$2:$E$661,$BC$71)","v":0},{"$f":"SUMIFS('Step 4 bond aggregation'!$B$2:$B$661,'Step 4 bond aggregation'!$A$2:$A$661,$BK$69,'Step 4 bond aggregation'!$F$2:$F$661,BN$72,'Step 4 bond aggregation'!$G$2:$G$661,MATCH($BB76,lov_term_buckets,0),'Step 4 bond aggregation'!$E$2:$E$661,$BC$71)","v":0},{"$f":"SUMIFS('Step 4 bond aggregation'!$B$2:$B$661,'Step 4 bond aggregation'!$A$2:$A$661,$BK$69,'Step 4 bond aggregation'!$F$2:$F$661,BO$72,'Step 4 bond aggregation'!$G$2:$G$661,MATCH($BB76,lov_term_buckets,0),'Step 4 bond aggregation'!$E$2:$E$661,$BC$71)","v":0},{"$f":"SUMIFS('Step 4 bond aggregation'!$B$2:$B$661,'Step 4 bond aggregation'!$A$2:$A$661,$BK$69,'Step 4 bond aggregation'!$F$2:$F$661,BP$72,'Step 4 bond aggregation'!$G$2:$G$661,MATCH($BB76,lov_term_buckets,0),'Step 4 bond aggregation'!$E$2:$E$661,$BC$71)","v":0},{"$f":"SUMIFS('Step 4 bond aggregation'!$B$2:$B$661,'Step 4 bond aggregation'!$A$2:$A$661,$BK$69,'Step 4 bond aggregation'!$F$2:$F$661,BQ$72,'Step 4 bond aggregation'!$G$2:$G$661,MATCH($BB76,lov_term_buckets,0),'Step 4 bond aggregation'!$E$2:$E$661,$BC$71)","v":0},{"$f":"SUMIFS('Step 4 bond aggregation'!$B$2:$B$661,'Step 4 bond aggregation'!$A$2:$A$661,$BK$69,'Step 4 bond aggregation'!$F$2:$F$661,BR$72,'Step 4 bond aggregation'!$G$2:$G$661,MATCH($BB76,lov_term_buckets,0),'Step 4 bond aggregation'!$E$2:$E$661,$BC$71)","v":0},{"$f":"SUMIFS('Step 4 bond aggregation'!$B$2:$B$661,'Step 4 bond aggregation'!$A$2:$A$661,$BK$69,'Step 4 bond aggregation'!$F$2:$F$661,BS$72,'Step 4 bond aggregation'!$G$2:$G$661,MATCH($BB76,lov_term_buckets,0),'Step 4 bond aggregation'!$E$2:$E$661,$BC$71)","v":0},null,null,"10.01 to 20",{"$f":"SUMIFS('Step 4 bond aggregation'!$B$2:$B$661,'Step 4 bond aggregation'!$A$2:$A$661,$BU$69,'Step 4 bond aggregation'!$F$2:$F$661,BW$72,'Step 4 bond aggregation'!$G$2:$G$661,MATCH($BB76,lov_term_buckets,0),'Step 4 bond aggregation'!$E$2:$E$661,$BC$71)","v":0},{"$f":"SUMIFS('Step 4 bond aggregation'!$B$2:$B$661,'Step 4 bond aggregation'!$A$2:$A$661,$BU$69,'Step 4 bond aggregation'!$F$2:$F$661,BX$72,'Step 4 bond aggregation'!$G$2:$G$661,MATCH($BB76,lov_term_buckets,0),'Step 4 bond aggregation'!$E$2:$E$661,$BC$71)","v":0},{"$f":"SUMIFS('Step 4 bond aggregation'!$B$2:$B$661,'Step 4 bond aggregation'!$A$2:$A$661,$BU$69,'Step 4 bond aggregation'!$F$2:$F$661,BY$72,'Step 4 bond aggregation'!$G$2:$G$661,MATCH($BB76,lov_term_buckets,0),'Step 4 bond aggregation'!$E$2:$E$661,$BC$71)","v":0},{"$f":"SUMIFS('Step 4 bond aggregation'!$B$2:$B$661,'Step 4 bond aggregation'!$A$2:$A$661,$BU$69,'Step 4 bond aggregation'!$F$2:$F$661,BZ$72,'Step 4 bond aggregation'!$G$2:$G$661,MATCH($BB76,lov_term_buckets,0),'Step 4 bond aggregation'!$E$2:$E$661,$BC$71)","v":0},{"$f":"SUMIFS('Step 4 bond aggregation'!$B$2:$B$661,'Step 4 bond aggregation'!$A$2:$A$661,$BU$69,'Step 4 bond aggregation'!$F$2:$F$661,CA$72,'Step 4 bond aggregation'!$G$2:$G$661,MATCH($BB76,lov_term_buckets,0),'Step 4 bond aggregation'!$E$2:$E$661,$BC$71)","v":0},{"$f":"SUMIFS('Step 4 bond aggregation'!$B$2:$B$661,'Step 4 bond aggregation'!$A$2:$A$661,$BU$69,'Step 4 bond aggregation'!$F$2:$F$661,CB$72,'Step 4 bond aggregation'!$G$2:$G$661,MATCH($BB76,lov_term_buckets,0),'Step 4 bond aggregation'!$E$2:$E$661,$BC$71)","v":0},{"$f":"SUMIFS('Step 4 bond aggregation'!$B$2:$B$661,'Step 4 bond aggregation'!$A$2:$A$661,$BU$69,'Step 4 bond aggregation'!$F$2:$F$661,CC$72,'Step 4 bond aggregation'!$G$2:$G$661,MATCH($BB76,lov_term_buckets,0),'Step 4 bond aggregation'!$E$2:$E$661,$BC$71)","v":0}]
[null,null,"More than 20",{"$f":"Input!F87","v":0},{"$f":"Input!G87","v":0},{"$f":"Input!H87","v":0},{"$f":"Input!I87","v":0},{"$f":"Input!J87","v":0},{"$f":"Input!K87","v":0},{"$f":"Input!L87","v":0},{"$f":"Input!M87","v":0},null,null,"More than 20",{"$f":"Input!F127+Input!F160","v":0},{"$f":"Input!G127+Input!G160","v":0},{"$f":"Input!H127+Input!H160","v":0},{"$f":"Input!I127+Input!I160","v":0},{"$f":"Input!J127+Input!J160","v":0},{"$f":"Input!K127+Input!K160","v":0},{"$f":"Input!L127+Input!L160","v":0},null,null,"More than 20",{"$f":"SUMIFS('Step 4 bond aggregation'!$B$2:$B$661,'Step 4 bond aggregation'!$A$2:$A$661,$W$69,'Step 4 bond aggregation'!$F$2:$F$661,Y$72,'Step 4 bond aggregation'!$G$2:$G$661,MATCH($X77,lov_term_buckets,0),'Step 4 bond aggregation'!$E$2:$E$661,$Y$71)","v":0},{"$f":"SUMIFS('Step 4 bond aggregation'!$B$2:$B$661,'Step 4 bond aggregation'!$A$2:$A$661,$W$69,'Step 4 bond aggregation'!$F$2:$F$661,Z$72,'Step 4 bond aggregation'!$G$2:$G$661,MATCH($X77,lov_term_buckets,0),'Step 4 bond aggregation'!$E$2:$E$661,$Y$71)","v":0},{"$f":"SUMIFS('Step 4 bond aggregation'!$B$2:$B$661,'Step 4 bond aggregation'!$A$2:$A$661,$W$69,'Step 4 bond aggregation'!$F$2:$F$661,AA$72,'Step 4 bond aggregation'!$G$2:$G$661,MATCH($X77,lov_term_buckets,0),'Step 4 bond aggregation'!$E$2:$E$661,$Y$71)","v":0},{"$f":"SUMIFS('Step 4 bond aggregation'!$B$2:$B$661,'Step 4 bond aggregation'!$A$2:$A$661,$W$69,'Step 4 bond aggregation'!$F$2:$F$661,AB$72,'Step 4 bond aggregation'!$G$2:$G$661,MATCH($X77,lov_term_buckets,0),'Step 4 bond aggregation'!$E$2:$E$661,$Y$71)","v":0},{"$f":"SUMIFS('Step 4 bond aggregation'!$B$2:$B$661,'Step 4 bond aggregation'!$A$2:$A$661,$W$69,'Step 4 bond aggregation'!$F$2:$F$661,AC$72,'Step 4 bond aggregation'!$G$2:$G$661,MATCH($X77,lov_term_buckets,0),'Step 4 bond aggregation'!$E$2:$E$661,$Y$71)","v":0},{"$f":"SUMIFS('Step 4 bond aggregation'!$B$2:$B$661,'Step 4 bond aggregation'!$A$2:$A$661,$W$69,'Step 4 bond aggregation'!$F$2:$F$661,AD$72,'Step 4 bond aggregation'!$G$2:$G$661,MATCH($X77,lov_term_buckets,0),'Step 4 bond aggregation'!$E$2:$E$661,$Y$71)","v":0},{"$f":"SUMIFS('Step 4 bond aggregation'!$B$2:$B$661,'Step 4 bond aggregation'!$A$2:$A$661,$W$69,'Step 4 bond aggregation'!$F$2:$F$661,AE$72,'Step 4 bond aggregation'!$G$2:$G$661,MATCH($X77,lov_term_buckets,0),'Step 4 bond aggregation'!$E$2:$E$661,$Y$71)","v":0},null,null,"More than 20",{"$f":"SUMIFS('Step 4 bond aggregation'!$B$2:$B$661,'Step 4 bond aggregation'!$A$2:$A$661,$AG$69,'Step 4 bond aggregation'!$F$2:$F$661,AI$72,'Step 4 bond aggregation'!$G$2:$G$661,MATCH($AH77,lov_term_buckets,0),'Step 4 bond aggregation'!$E$2:$E$661,$AI$71)","v":0},{"$f":"SUMIFS('Step 4 bond aggregation'!$B$2:$B$661,'Step 4 bond aggregation'!$A$2:$A$661,$AG$69,'Step 4 bond aggregation'!$F$2:$F$661,AJ$72,'Step 4 bond aggregation'!$G$2:$G$661,MATCH($AH77,lov_term_buckets,0),'Step 4 bond aggregation'!$E$2:$E$661,$AI$71)","v":0},{"$f":"SUMIFS('Step 4 bond aggregation'!$B$2:$B$661,'Step 4 bond aggregation'!$A$2:$A$661,$AG$69,'Step 4 bond aggregation'!$F$2:$F$661,AK$72,'Step 4 bond aggregation'!$G$2:$G$661,MATCH($AH77,lov_term_buckets,0),'Step 4 bond aggregation'!$E$2:$E$661,$AI$71)","v":0},{"$f":"SUMIFS('Step 4 bond aggregation'!$B$2:$B$661,'Step 4 bond aggregation'!$A$2:$A$661,$AG$69,'Step 4 bond aggregation'!$F$2:$F$661,AL$72,'Step 4 bond aggregation'!$G$2:$G$661,MATCH($AH77,lov_term_buckets,0),'Step 4 bond aggregation'!$E$2:$E$661,$AI$71)","v":0},{"$f":"SUMIFS('Step 4 bond aggregation'!$B$2:$B$661,'Step 4 bond aggregation'!$A$2:$A$661,$AG$69,'Step 4 bond aggregation'!$F$2:$F$661,AM$72,'Step 4 bond aggregation'!$G$2:$G$661,MATCH($AH77,lov_term_buckets,0),'Step 4 bond aggregation'!$E$2:$E$661,$AI$71)","v":0},{"$f":"SUMIFS('Step 4 bond aggregation'!$B$2:$B$661,'Step 4 bond aggregation'!$A$2:$A$661,$AG$69,'Step 4 bond aggregation'!$F$2:$F$661,AN$72,'Step 4 bond aggregation'!$G$2:$G$661,MATCH($AH77,lov_term_buckets,0),'Step 4 bond aggregation'!$E$2:$E$661,$AI$71)","v":0},{"$f":"SUMIFS('Step 4 bond aggregation'!$B$2:$B$661,'Step 4 bond aggregation'!$A$2:$A$661,$AG$69,'Step 4 bond aggregation'!$F$2:$F$661,AO$72,'Step 4 bond aggregation'!$G$2:$G$661,MATCH($AH77,lov_term_buckets,0),'Step 4 bond aggregation'!$E$2:$E$661,$AI$71)","v":0},null,null,"More than 20",{"$f":"SUMIFS('Step 4 bond aggregation'!$B$2:$B$661,'Step 4 bond aggregation'!$A$2:$A$661,$AQ$69,'Step 4 bond aggregation'!$F$2:$F$661,AS$72,'Step 4 bond aggregation'!$G$2:$G$661,MATCH($AR77,lov_term_buckets,0),'Step 4 bond aggregation'!$E$2:$E$661,$AS$71)","v":0},{"$f":"SUMIFS('Step 4 bond aggregation'!$B$2:$B$661,'Step 4 bond aggregation'!$A$2:$A$661,$AQ$69,'Step 4 bond aggregation'!$F$2:$F$661,AT$72,'Step 4 bond aggregation'!$G$2:$G$661,MATCH($AR77,lov_term_buckets,0),'Step 4 bond aggregation'!$E$2:$E$661,$AS$71)","v":0},{"$f":"SUMIFS('Step 4 bond aggregation'!$B$2:$B$661,'Step 4 bond aggregation'!$A$2:$A$661,$AQ$69,'Step 4 bond aggregation'!$F$2:$F$661,AU$72,'Step 4 bond aggregation'!$G$2:$G$661,MATCH($AR77,lov_term_buckets,0),'Step 4 bond aggregation'!$E$2:$E$661,$AS$71)","v":0},{"$f":"SUMIFS('Step 4 bond aggregation'!$B$2:$B$661,'Step 4 bond aggregation'!$A$2:$A$661,$AQ$69,'Step 4 bond aggregation'!$F$2:$F$661,AV$72,'Step 4 bond aggregation'!$G$2:$G$661,MATCH($AR77,lov_term_buckets,0),'Step 4 bond aggregation'!$E$2:$E$661,$AS$71)","v":0},{"$f":"SUMIFS('Step 4 bond aggregation'!$B$2:$B$661,'Step 4 bond aggregation'!$A$2:$A$661,$AQ$69,'Step 4 bond aggregation'!$F$2:$F$661,AW$72,'Step 4 bond aggregation'!$G$2:$G$661,MATCH($AR77,lov_term_buckets,0),'Step 4 bond aggregation'!$E$2:$E$661,$AS$71)","v":0},{"$f":"SUMIFS('Step 4 bond aggregation'!$B$2:$B$661,'Step 4 bond aggregation'!$A$2:$A$661,$AQ$69,'Step 4 bond aggregation'!$F$2:$F$661,AX$72,'Step 4 bond aggregation'!$G$2:$G$661,MATCH($AR77,lov_term_buckets,0),'Step 4 bond aggregation'!$E$2:$E$661,$AS$71)","v":0},{"$f":"SUMIFS('Step 4 bond aggregation'!$B$2:$B$661,'Step 4 bond aggregation'!$A$2:$A$661,$AQ$69,'Step 4 bond aggregation'!$F$2:$F$661,AY$72,'Step 4 bond aggregation'!$G$2:$G$661,MATCH($AR77,lov_term_buckets,0),'Step 4 bond aggregation'!$E$2:$E$661,$AS$71)","v":0},null,null,"More than 20",{"$f":"SUMIFS('Step 4 bond aggregation'!$B$2:$B$661,'Step 4 bond aggregation'!$A$2:$A$661,$BA$69,'Step 4 bond aggregation'!$F$2:$F$661,BC$72,'Step 4 bond aggregation'!$G$2:$G$661,MATCH($BB77,lov_term_buckets,0),'Step 4 bond aggregation'!$E$2:$E$661,$BC$71)","v":0},{"$f":"SUMIFS('Step 4 bond aggregation'!$B$2:$B$661,'Step 4 bond aggregation'!$A$2:$A$661,$BA$69,'Step 4 bond aggregation'!$F$2:$F$661,BD$72,'Step 4 bond aggregation'!$G$2:$G$661,MATCH($BB77,lov_term_buckets,0),'Step 4 bond aggregation'!$E$2:$E$661,$BC$71)","v":0},{"$f":"SUMIFS('Step 4 bond aggregation'!$B$2:$B$661,'Step 4 bond aggregation'!$A$2:$A$661,$BA$69,'Step 4 bond aggregation'!$F$2:$F$661,BE$72,'Step 4 bond aggregation'!$G$2:$G$661,MATCH($BB77,lov_term_buckets,0),'Step 4 bond aggregation'!$E$2:$E$661,$BC$71)","v":0},{"$f":"SUMIFS('Step 4 bond aggregation'!$B$2:$B$661,'Step 4 bond aggregation'!$A$2:$A$661,$BA$69,'Step 4 bond aggregation'!$F$2:$F$661,BF$72,'Step 4 bond aggregation'!$G$2:$G$661,MATCH($BB77,lov_term_buckets,0),'Step 4 bond aggregation'!$E$2:$E$661,$BC$71)","v":0},{"$f":"SUMIFS('Step 4 bond aggregation'!$B$2:$B$661,'Step 4 bond aggregation'!$A$2:$A$661,$BA$69,'Step 4 bond aggregation'!$F$2:$F$661,BG$72,'Step 4 bond aggregation'!$G$2:$G$661,MATCH($BB77,lov_term_buckets,0),'Step 4 bond aggregation'!$E$2:$E$661,$BC$71)","v":0},{"$f":"SUMIFS('Step 4 bond aggregation'!$B$2:$B$661,'Step 4 bond aggregation'!$A$2:$A$661,$BA$69,'Step 4 bond aggregation'!$F$2:$F$661,BH$72,'Step 4 bond aggregation'!$G$2:$G$661,MATCH($BB77,lov_term_buckets,0),'Step 4 bond aggregation'!$E$2:$E$661,$BC$71)","v":0},{"$f":"SUMIFS('Step 4 bond aggregation'!$B$2:$B$661,'Step 4 bond aggregation'!$A$2:$A$661,$BA$69,'Step 4 bond aggregation'!$F$2:$F$661,BI$72,'Step 4 bond aggregation'!$G$2:$G$661,MATCH($BB77,lov_term_buckets,0),'Step 4 bond aggregation'!$E$2:$E$661,$BC$71)","v":0},null,null,"More than 20",{"$f":"SUMIFS('Step 4 bond aggregation'!$B$2:$B$661,'Step 4 bond aggregation'!$A$2:$A$661,$BK$69,'Step 4 bond aggregation'!$F$2:$F$661,BM$72,'Step 4 bond aggregation'!$G$2:$G$661,MATCH($BB77,lov_term_buckets,0),'Step 4 bond aggregation'!$E$2:$E$661,$BC$71)","v":0},{"$f":"SUMIFS('Step 4 bond aggregation'!$B$2:$B$661,'Step 4 bond aggregation'!$A$2:$A$661,$BK$69,'Step 4 bond aggregation'!$F$2:$F$661,BN$72,'Step 4 bond aggregation'!$G$2:$G$661,MATCH($BB77,lov_term_buckets,0),'Step 4 bond aggregation'!$E$2:$E$661,$BC$71)","v":0},{"$f":"SUMIFS('Step 4 bond aggregation'!$B$2:$B$661,'Step 4 bond aggregation'!$A$2:$A$661,$BK$69,'Step 4 bond aggregation'!$F$2:$F$661,BO$72,'Step 4 bond aggregation'!$G$2:$G$661,MATCH($BB77,lov_term_buckets,0),'Step 4 bond aggregation'!$E$2:$E$661,$BC$71)","v":0},{"$f":"SUMIFS('Step 4 bond aggregation'!$B$2:$B$661,'Step 4 bond aggregation'!$A$2:$A$661,$BK$69,'Step 4 bond aggregation'!$F$2:$F$661,BP$72,'Step 4 bond aggregation'!$G$2:$G$661,MATCH($BB77,lov_term_buckets,0),'Step 4 bond aggregation'!$E$2:$E$661,$BC$71)","v":0},{"$f":"SUMIFS('Step 4 bond aggregation'!$B$2:$B$661,'Step 4 bond aggregation'!$A$2:$A$661,$BK$69,'Step 4 bond aggregation'!$F$2:$F$661,BQ$72,'Step 4 bond aggregation'!$G$2:$G$661,MATCH($BB77,lov_term_buckets,0),'Step 4 bond aggregation'!$E$2:$E$661,$BC$71)","v":0},{"$f":"SUMIFS('Step 4 bond aggregation'!$B$2:$B$661,'Step 4 bond aggregation'!$A$2:$A$661,$BK$69,'Step 4 bond aggregation'!$F$2:$F$661,BR$72,'Step 4 bond aggregation'!$G$2:$G$661,MATCH($BB77,lov_term_buckets,0),'Step 4 bond aggregation'!$E$2:$E$661,$BC$71)","v":0},{"$f":"SUMIFS('Step 4 bond aggregation'!$B$2:$B$661,'Step 4 bond aggregation'!$A$2:$A$661,$BK$69,'Step 4 bond aggregation'!$F$2:$F$661,BS$72,'Step 4 bond aggregation'!$G$2:$G$661,MATCH($BB77,lov_term_buckets,0),'Step 4 bond aggregation'!$E$2:$E$661,$BC$71)","v":0},null,null,"More than 20",{"$f":"SUMIFS('Step 4 bond aggregation'!$B$2:$B$661,'Step 4 bond aggregation'!$A$2:$A$661,$BU$69,'Step 4 bond aggregation'!$F$2:$F$661,BW$72,'Step 4 bond aggregation'!$G$2:$G$661,MATCH($BB77,lov_term_buckets,0),'Step 4 bond aggregation'!$E$2:$E$661,$BC$71)","v":0},{"$f":"SUMIFS('Step 4 bond aggregation'!$B$2:$B$661,'Step 4 bond aggregation'!$A$2:$A$661,$BU$69,'Step 4 bond aggregation'!$F$2:$F$661,BX$72,'Step 4 bond aggregation'!$G$2:$G$661,MATCH($BB77,lov_term_buckets,0),'Step 4 bond aggregation'!$E$2:$E$661,$BC$71)","v":0},{"$f":"SUMIFS('Step 4 bond aggregation'!$B$2:$B$661,'Step 4 bond aggregation'!$A$2:$A$661,$BU$69,'Step 4 bond aggregation'!$F$2:$F$661,BY$72,'Step 4 bond aggregation'!$G$2:$G$661,MATCH($BB77,lov_term_buckets,0),'Step 4 bond aggregation'!$E$2:$E$661,$BC$71)","v":0},{"$f":"SUMIFS('Step 4 bond aggregation'!$B$2:$B$661,'Step 4 bond aggregation'!$A$2:$A$661,$BU$69,'Step 4 bond aggregation'!$F$2:$F$661,BZ$72,'Step 4 bond aggregation'!$G$2:$G$661,MATCH($BB77,lov_term_buckets,0),'Step 4 bond aggregation'!$E$2:$E$661,$BC$71)","v":0},{"$f":"SUMIFS('Step 4 bond aggregation'!$B$2:$B$661,'Step 4 bond aggregation'!$A$2:$A$661,$BU$69,'Step 4 bond aggregation'!$F$2:$F$661,CA$72,'Step 4 bond aggregation'!$G$2:$G$661,MATCH($BB77,lov_term_buckets,0),'Step 4 bond aggregation'!$E$2:$E$661,$BC$71)","v":0},{"$f":"SUMIFS('Step 4 bond aggregation'!$B$2:$B$661,'Step 4 bond aggregation'!$A$2:$A$661,$BU$69,'Step 4 bond aggregation'!$F$2:$F$661,CB$72,'Step 4 bond aggregation'!$G$2:$G$661,MATCH($BB77,lov_term_buckets,0),'Step 4 bond aggregation'!$E$2:$E$661,$BC$71)","v":0},{"$f":"SUMIFS('Step 4 bond aggregation'!$B$2:$B$661,'Step 4 bond aggregation'!$A$2:$A$661,$BU$69,'Step 4 bond aggregation'!$F$2:$F$661,CC$72,'Step 4 bond aggregation'!$G$2:$G$661,MATCH($BB77,lov_term_buckets,0),'Step 4 bond aggregation'!$E$2:$E$661,$BC$71)","v":0}]
[null,null,"Total",{"$f":"SUM(D73:K77)","v":0},null,null,null,null,null,null,null,null,null,"Total",{"$f":"SUM(O73:U77)","v":0},null,null,null,null,null,null,null,null,"Total",{"$f":"SUM(Y73:AE77)","v":0},null,null,null,null,null,null,null,null,"Total",{"$f":"SUM(AI73:AO77)","v":0},null,null,null,null,null,null,null,null,"Total",{"$f":"SUM(AS73:AY77)","v":0},null,null,null,null,null,null,null,null,"Total",{"$f":"SUM(BC73:BI77)","v":0},null,null,null,null,null,null,null,null,"Total",{"$f":"SUM(BM73:BS77)","v":0},null,null,null,null,null,null,null,null,"Total",{"$f":"SUM(BW73:CC77)","v":0}]
[]
[null,null,"Credit Risk Recovery Category",{"$f":"Lists!$C$4","v":2},null,null,null,null,null,null,null,null,null,"Credit Risk Recovery Category",{"$f":"Lists!$C$4","v":2},null,null,null,null,null,null,null,null,"Credit Risk Recovery Category",{"$f":"Lists!$C$4","v":2},null,null,null,null,null,null,null,null,"Credit Risk Recovery Category",{"$f":"Lists!$C$4","v":2},null,null,null,null,null,null,null,null,"Credit Risk Recovery Category",{"$f":"Lists!$C$4","v":2},null,null,null,null,null,null,null,null,"Credit Risk Recovery Category",{"$f":"Lists!$C$4","v":2},null,null,null,null,null,null,null,null,"Credit Risk Recovery Category",{"$f":"Lists!$C$4","v":2},null,null,null,null,null,null,null,null,"Credit Risk Recovery Category",{"$f":"Lists!$C$4","v":2}]
[null,null,"Term (years)","AAA","AA","A","BBB","BB","B","CCC-C","D",null,null,"Term (years)","AAA","AA","A","BBB","BB","B","CCC-C",null,null,"Term (years)","AAA","AA","A","BBB","BB","B","CCC-C",null,null,"Term (years)","AAA","AA","A","BBB","BB","B","CCC-C",null,null,"Term (years)","AAA","AA","A","BBB","BB","B","CCC-C",null,null,"Term (years)","AAA","AA","A","BBB","BB","B","CCC-C",null,null,"Term (years)","AAA","AA","A","BBB","BB","B","CCC-C",null,null,"Term (years)","AAA","AA","A","BBB","BB","B","CCC-C"]
[null,null,"Upto 1",{"$f":"Input!F91","v":0},{"$f":"Input!G91","v":0},{"$f":"Input!H91","v":0},{"$f":"Input!I91","v":0},{"$f":"Input!J91","v":0},{"$f":"Input!K91","v":0},{"$f":"Input!L91","v":0},{"$f":"Input!M91","v":0},null,null,"Upto 1",{"$f":"Input!F131+Input!F164","v":0},{"$f":"Input!G131+Input!G164","v":0},{"$f":"Input!H131+Input!H164","v":0},{"$f":"Input!I131+Input!I164","v":0},{"$f":"Input!J131+Input!J164","v":0},{"$f":"Input!K131+Input!K164","v":0},{"$f":"Input!L131+Input!L164","v":0},null,null,"Upto 1",{"$f":"SUMIFS('Step 4 bond aggregation'!$B$2:$B$661,'Step 4 bond aggregation'!$A$2:$A$661,$W$69,'Step 4 bond aggregation'!$F$2:$F$661,Y$72,'Step 4 bond aggregation'!$G$2:$G$661,MATCH($X82,lov_term_buckets,0),'Step 4 bond aggregation'!$E$2:$E$661,$Y$80)","v":0},{"$f":"SUMIFS('Step 4 bond aggregation'!$B$2:$B$661,'Step 4 bond aggregation'!$A$2:$A$661,$W$69,'Step 4 bond aggregation'!$F$2:$F$661,Z$72,'Step 4 bond aggregation'!$G$2:$G$661,MATCH($X82,lov_term_buckets,0),'Step 4 bond aggregation'!$E$2:$E$661,$Y$80)","v":0},{"$f":"SUMIFS('Step 4 bond aggregation'!$B$2:$B$661,'Step 4 bond aggregation'!$A$2:$A$661,$W$69,'Step 4 bond aggregation'!$F$2:$F$661,AA$72,'Step 4 bond aggregation'!$G$2:$G$661,MATCH($X82,lov_term_buckets,0),'Step 4 bond aggregation'!$E$2:$E$661,$Y$80)","v":0},{"$f":"SUMIFS('Step 4 bond aggregation'!$B$2:$B$661,'Step 4 bond aggregation'!$A$2:$A$661,$W$69,'Step 4 bond aggregation'!$F$2:$F$661,AB$72,'Step 4 bond aggregation'!$G$2:$G$661,MATCH($X82,lov_term_buckets,0),'Step 4 bond aggregation'!$E$2:$E$661,$Y$80)","v":0},{"$f":"SUMIFS('Step 4 bond aggregation'!$B$2:$B$661,'Step 4 bond aggregation'!$A$2:$A$661,$W$69,'Step 4 bond aggregation'!$F$2:$F$661,AC$72,'Step 4 bond aggregation'!$G$2:$G$661,MATCH($X82,lov_term_buckets,0),'Step 4 bond aggregation'!$E$2:$E$661,$Y$80)","v":0},{"$f":"SUMIFS('Step 4 bond aggregation'!$B$2:$B$661,'Step 4 bond aggregation'!$A$2:$A$661,$W$69,'Step 4 bond aggregation'!$F$2:$F$661,AD$72,'Step 4 bond aggregation'!$G$2:$G$661,MATCH($X82,lov_term_buckets,0),'Step 4 bond aggregation'!$E$2:$E$661,$Y$80)","v":0},{"$f":"SUMIFS('Step 4 bond aggregation'!$B$2:$B$661,'Step 4 bond aggregation'!$A$2:$A$661,$W$69,'Step 4 bond aggregation'!$F$2:$F$661,AE$72,'Step 4 bond aggregation'!$G$2:$G$661,MATCH($X82,lov_term_buckets,0),'Step 4 bond aggregation'!$E$2:$E$661,$Y$80)","v":0},null,null,"Upto 1",{"$f":"SUMIFS('Step 4 bond aggregation'!$B$2:$B$661,'Step 4 bond aggregation'!$A$2:$A$661,$AG$69,'Step 4 bond aggregation'!$F$2:$F$661,AI$72,'Step 4 bond aggregation'!$G$2:$G$661,MATCH($AH82,lov_term_buckets,0),'Step 4 bond aggregation'!$E$2:$E$661,$AI$80)","v":0},{"$f":"SUMIFS('Step 4 bond aggregation'!$B$2:$B$661,'Step 4 bond aggregation'!$A$2:$A$661,$AG$69,'Step 4 bond aggregation'!$F$2:$F$661,AJ$72,'Step 4 bond aggregation'!$G$2:$G$661,MATCH($AH82,lov_term_buckets,0),'Step 4 bond aggregation'!$E$2:$E$661,$AI$80)","v":0},{"$f":"SUMIFS('Step 4 bond aggregation'!$B$2:$B$661,'Step 4 bond aggregation'!$A$2:$A$661,$AG$69,'Step 4 bond aggregation'!$F$2:$F$661,AK$72,'Step 4 bond aggregation'!$G$2:$G$661,MATCH($AH82,lov_term_buckets,0),'Step 4 bond aggregation'!$E$2:$E$661,$AI$80)","v":0},{"$f":"SUMIFS('Step 4 bond aggregation'!$B$2:$B$661,'Step 4 bond aggregation'!$A$2:$A$661,$AG$69,'Step 4 bond aggregation'!$F$2:$F$661,AL$72,'Step 4 bond aggregation'!$G$2:$G$661,MATCH($AH82,lov_term_buckets,0),'Step 4 bond aggregation'!$E$2:$E$661,$AI$80)","v":0},{"$f":"SUMIFS('Step 4 bond aggregation'!$B$2:$B$661,'Step 4 bond aggregation'!$A$2:$A$661,$AG$69,'Step 4 bond aggregation'!$F$2:$F$661,AM$72,'Step 4 bond aggregation'!$G$2:$G$661,MATCH($AH82,lov_term_buckets,0),'Step 4 bond aggregation'!$E$2:$E$661,$AI$80)","v":0},{"$f":"SUMIFS('Step 4 bond aggregation'!$B$2:$B$661,'Step 4 bond aggregation'!$A$2:$A$661,$AG$69,'Step 4 bond aggregation'!$F$2:$F$661,AN$72,'Step 4 bond aggregation'!$G$2:$G$661,MATCH($AH82,lov_term_buckets,0),'Step 4 bond aggregation'!$E$2:$E$661,$AI$80)","v":0},{"$f":"SUMIFS('Step 4 bond aggregation'!$B$2:$B$661,'Step 4 bond aggregation'!$A$2:$A$661,$AG$69,'Step 4 bond aggregation'!$F$2:$F$661,AO$72,'Step 4 bond aggregation'!$G$2:$G$661,MATCH($AH82,lov_term_buckets,0),'Step 4 bond aggregation'!$E$2:$E$661,$AI$80)","v":0},null,null,"Upto 1",{"$f":"SUMIFS('Step 4 bond aggregation'!$B$2:$B$661,'Step 4 bond aggregation'!$A$2:$A$661,$AQ$69,'Step 4 bond aggregation'!$F$2:$F$661,AS$72,'Step 4 bond aggregation'!$G$2:$G$661,MATCH($AR82,lov_term_buckets,0),'Step 4 bond aggregation'!$E$2:$E$661,$AS$80)","v":0},{"$f":"SUMIFS('Step 4 bond aggregation'!$B$2:$B$661,'Step 4 bond aggregation'!$A$2:$A$661,$AQ$69,'Step 4 bond aggregation'!$F$2:$F$661,AT$72,'Step 4 bond aggregation'!$G$2:$G$661,MATCH($AR82,lov_term_buckets,0),'Step 4 bond aggregation'!$E$2:$E$661,$AS$80)","v":0},{"$f":"SUMIFS('Step 4 bond aggregation'!$B$2:$B$661,'Step 4 bond aggregation'!$A$2:$A$661,$AQ$69,'Step 4 bond aggregation'!$F$2:$F$661,AU$72,'Step 4 bond aggregation'!$G$2:$G$661,MATCH($AR82,lov_term_buckets,0),'Step 4 bond aggregation'!$E$2:$E$661,$AS$80)","v":0},{"$f":"SUMIFS('Step 4 bond aggregation'!$B$2:$B$661,'Step 4 bond aggregation'!$A$2:$A$661,$AQ$69,'Step 4 bond aggregation'!$F$2:$F$661,AV$72,'Step 4 bond aggregation'!$G$2:$G$661,MATCH($AR82,lov_term_buckets,0),'Step 4 bond aggregation'!$E$2:$E$661,$AS$80)","v":0},{"$f":"SUMIFS('Step 4 bond aggregation'!$B$2:$B$661,'Step 4 bond aggregation'!$A$2:$A$661,$AQ$69,'Step 4 bond aggregation'!$F$2:$F$661,AW$72,'Step 4 bond aggregation'!$G$2:$G$661,MATCH($AR82,lov_term_buckets,0),'Step 4 bond aggregation'!$E$2:$E$661,$AS$80)","v":0},{"$f":"SUMIFS('Step 4 bond aggregation'!$B$2:$B$661,'Step 4 bond aggregation'!$A$2:$A$661,$AQ$69,'Step 4 bond aggregation'!$F$2:$F$661,AX$72,'Step 4 bond aggregation'!$G$2:$G$661,MATCH($AR82,lov_term_buckets,0),'Step 4 bond aggregation'!$E$2:$E$661,$AS$80)","v":0},{"$f":"SUMIFS('Step 4 bond aggregation'!$B$2:$B$661,'Step 4 bond aggregation'!$A$2:$A$661,$AQ$69,'Step 4 bond aggregation'!$F$2:$F$661,AY$72,'Step 4 bond aggregation'!$G$2:$G$661,MATCH($AR82,lov_term_buckets,0),'Step 4 bond aggregation'!$E$2:$E$661,$AS$80)","v":0},null,null,"Upto 1",{"$f":"SUMIFS('Step 4 bond aggregation'!$B$2:$B$661,'Step 4 bond aggregation'!$A$2:$A$661,$BA$69,'Step 4 bond aggregation'!$F$2:$F$661,BC$72,'Step 4 bond aggregation'!$G$2:$G$661,MATCH($BB82,lov_term_buckets,0),'Step 4 bond aggregation'!$E$2:$E$661,$BC$80)","v":0},{"$f":"SUMIFS('Step 4 bond aggregation'!$B$2:$B$661,'Step 4 bond aggregation'!$A$2:$A$661,$BA$69,'Step 4 bond aggregation'!$F$2:$F$661,BD$72,'Step 4 bond aggregation'!$G$2:$G$661,MATCH($BB82,lov_term_buckets,0),'Step 4 bond aggregation'!$E$2:$E$661,$BC$80)","v":0},{"$f":"SUMIFS('Step 4 bond aggregation'!$B$2:$B$661,'Step 4 bond aggregation'!$A$2:$A$661,$BA$69,'Step 4 bond aggregation'!$F$2:$F$661,BE$72,'Step 4 bond aggregation'!$G$2:$G$661,MATCH($BB82,lov_term_buckets,0),'Step 4 bond aggregation'!$E$2:$E$661,$BC$80)","v":0},{"$f":"SUMIFS('Step 4 bond aggregation'!$B$2:$B$661,'Step 4 bond aggregation'!$A$2:$A$661,$BA$69,'Step 4 bond aggregation'!$F$2:$F$661,BF$72,'Step 4 bond aggregation'!$G$2:$G$661,MATCH($BB82,lov_term_buckets,0),'Step 4 bond aggregation'!$E$2:$E$661,$BC$80)","v":0},{"$f":"SUMIFS('Step 4 bond aggregation'!$B$2:$B$661,'Step 4 bond aggregation'!$A$2:$A$661,$BA$69,'Step 4 bond aggregation'!$F$2:$F$661,BG$72,'Step 4 bond aggregation'!$G$2:$G$661,MATCH($BB82,lov_term_buckets,0),'Step 4 bond aggregation'!$E$2:$E$661,$BC$80)","v":0},{"$f":"SUMIFS('Step 4 bond aggregation'!$B$2:$B$661,'Step 4 bond aggregation'!$A$2:$A$661,$BA$69,'Step 4 bond aggregation'!$F$2:$F$661,BH$72,'Step 4 bond aggregation'!$G$2:$G$661,MATCH($BB82,lov_term_buckets,0),'Step 4 bond aggregation'!$E$2:$E$661,$BC$80)","v":0},{"$f":"SUMIFS('Step 4 bond aggregation'!$B$2:$B$661,'Step 4 bond aggregation'!$A$2:$A$661,$BA$69,'Step 4 bond aggregation'!$F$2:$F$661,BI$72,'Step 4 bond aggregation'!$G$2:$G$661,MATCH($BB82,lov_term_buckets,0),'Step 4 bond aggregation'!$E$2:$E$661,$BC$80)","v":0},null,null,"Upto 1",{"$f":"SUMIFS('Step 4 bond aggregation'!$B$2:$B$661,'Step 4 bond aggregation'!$A$2:$A$661,$BK$69,'Step 4 bond aggregation'!$F$2:$F$661,BM$72,'Step 4 bond aggregation'!$G$2:$G$661,MATCH($BB82,lov_term_buckets,0),'Step 4 bond aggregation'!$E$2:$E$661,$BC$80)","v":0},{"$f":"SUMIFS('Step 4 bond aggregation'!$B$2:$B$661,'Step 4 bond aggregation'!$A$2:$A$661,$BK$69,'Step 4 bond aggregation'!$F$2:$F$661,BN$72,'Step 4 bond aggregation'!$G$2:$G$661,MATCH($BB82,lov_term_buckets,0),'Step 4 bond aggregation'!$E$2:$E$661,$BC$80)","v":0},{"$f":"SUMIFS('Step 4 bond aggregation'!$B$2:$B$661,'Step 4 bond aggregation'!$A$2:$A$661,$BK$69,'Step 4 bond aggregation'!$F$2:$F$661,BO$72,'Step 4 bond aggregation'!$G$2:$G$661,MATCH($BB82,lov_term_buckets,0),'Step 4 bond aggregation'!$E$2:$E$661,$BC$80)","v":0},{"$f":"SUMIFS('Step 4 bond aggregation'!$B$2:$B$661,'Step 4 bond aggregation'!$A$2:$A$661,$BK$69,'Step 4 bond aggregation'!$F$2:$F$661,BP$72,'Step 4 bond aggregation'!$G$2:$G$661,MATCH($BB82,lov_term_buckets,0),'Step 4 bond aggregation'!$E$2:$E$661,$BC$80)","v":0},{"$f":"SUMIFS('Step 4 bond aggregation'!$B$2:$B$661,'Step 4 bond aggregation'!$A$2:$A$661,$BK$69,'Step 4 bond aggregation'!$F$2:$F$661,BQ$72,'Step 4 bond aggregation'!$G$2:$G$661,MATCH($BB82,lov_term_buckets,0),'Step 4 bond aggregation'!$E$2:$E$661,$BC$80)","v":0},{"$f":"SUMIFS('Step 4 bond aggregation'!$B$2:$B$661,'Step 4 bond aggregation'!$A$2:$A$661,$BK$69,'Step 4 bond aggregation'!$F$2:$F$661,BR$72,'Step 4 bond aggregation'!$G$2:$G$661,MATCH($BB82,lov_term_buckets,0),'Step 4 bond aggregation'!$E$2:$E$661,$BC$80)","v":0},{"$f":"SUMIFS('Step 4 bond aggregation'!$B$2:$B$661,'Step 4 bond aggregation'!$A$2:$A$661,$BK$69,'Step 4 bond aggregation'!$F$2:$F$661,BS$72,'Step 4 bond aggregation'!$G$2:$G$661,MATCH($BB82,lov_term_buckets,0),'Step 4 bond aggregation'!$E$2:$E$661,$BC$80)","v":0},null,null,"Upto 1",{"$f":"SUMIFS('Step 4 bond aggregation'!$B$2:$B$661,'Step 4 bond aggregation'!$A$2:$A$661,$BU$69,'Step 4 bond aggregation'!$F$2:$F$661,BW$72,'Step 4 bond aggregation'!$G$2:$G$661,MATCH($BB82,lov_term_buckets,0),'Step 4 bond aggregation'!$E$2:$E$661,$BC$80)","v":0},{"$f":"SUMIFS('Step 4 bond aggregation'!$B$2:$B$661,'Step 4 bond aggregation'!$A$2:$A$661,$BU$69,'Step 4 bond aggregation'!$F$2:$F$661,BX$72,'Step 4 bond aggregation'!$G$2:$G$661,MATCH($BB82,lov_term_buckets,0),'Step 4 bond aggregation'!$E$2:$E$661,$BC$80)","v":0},{"$f":"SUMIFS('Step 4 bond aggregation'!$B$2:$B$661,'Step 4 bond aggregation'!$A$2:$A$661,$BU$69,'Step 4 bond aggregation'!$F$2:$F$661,BY$72,'Step 4 bond aggregation'!$G$2:$G$661,MATCH($BB82,lov_term_buckets,0),'Step 4 bond aggregation'!$E$2:$E$661,$BC$80)","v":0},{"$f":"SUMIFS('Step 4 bond aggregation'!$B$2:$B$661,'Step 4 bond aggregation'!$A$2:$A$661,$BU$69,'Step 4 bond aggregation'!$F$2:$F$661,BZ$72,'Step 4 bond aggregation'!$G$2:$G$661,MATCH($BB82,lov_term_buckets,0),'Step 4 bond aggregation'!$E$2:$E$661,$BC$80)","v":0},{"$f":"SUMIFS('Step 4 bond aggregation'!$B$2:$B$661,'Step 4 bond aggregation'!$A$2:$A$661,$BU$69,'Step 4 bond aggregation'!$F$2:$F$661,CA$72,'Step 4 bond aggregation'!$G$2:$G$661,MATCH($BB82,lov_term_buckets,0),'Step 4 bond aggregation'!$E$2:$E$661,$BC$80)","v":0},{"$f":"SUMIFS('Step 4 bond aggregation'!$B$2:$B$661,'Step 4 bond aggregation'!$A$2:$A$661,$BU$69,'Step 4 bond aggregation'!$F$2:$F$661,CB$72,'Step 4 bond aggregation'!$G$2:$G$661,MATCH($BB82,lov_term_buckets,0),'Step 4 bond aggregation'!$E$2:$E$661,$BC$80)","v":0},{"$f":"SUMIFS('Step 4 bond aggregation'!$B$2:$B$661,'Step 4 bond aggregation'!$A$2:$A$661,$BU$69,'Step 4 bond aggregation'!$F$2:$F$661,CC$72,'Step 4 bond aggregation'!$G$2:$G$661,MATCH($BB82,lov_term_buckets,0),'Step 4 bond aggregation'!$E$2:$E$661,$BC$80)","v":0}]
[null,null,"1.01 to 5",{"$f":"Input!F92","v":0},{"$f":"Input!G92","v":0},{"$f":"Input!H92","v":0},{"$f":"Input!I92","v":0},{"$f":"Input!J92","v":0},{"$f":"Input!K92","v":0},{"$f":"Input!L92","v":0},{"$f":"Input!M92","v":0},null,null,"1.01 to 5",{"$f":"Input!F132+Input!F165","v":0},{"$f":"Input!G132+Input!G165","v":0},{"$f":"Input!H132+Input!H165","v":0},{"$f":"Input!I132+Input!I165","v":0},{"$f":"Input!J132+Input!J165","v":0},{"$f":"Input!K132+Input!K165","v":0},{"$f":"Input!L132+Input!L165","v":0},null,null,"1.01 to 5",{"$f":"SUMIFS('Step 4 bond aggregation'!$B$2:$B$661,'Step 4 bond aggregation'!$A$2:$A$661,$W$69,'Step 4 bond aggregation'!$F$2:$F$661,Y$72,'Step 4 bond aggregation'!$G$2:$G$661,MATCH($X83,lov_term_buckets,0),'Step 4 bond aggregation'!$E$2:$E$661,$Y$80)","v":0},{"$f":"SUMIFS('Step 4 bond aggregation'!$B$2:$B$661,'Step 4 bond aggregation'!$A$2:$A$661,$W$69,'Step 4 bond aggregation'!$F$2:$F$661,Z$72,'Step 4 bond aggregation'!$G$2:$G$661,MATCH($X83,lov_term_buckets,0),'Step 4 bond aggregation'!$E$2:$E$661,$Y$80)","v":0},{"$f":"SUMIFS('Step 4 bond aggregation'!$B$2:$B$661,'Step 4 bond aggregation'!$A$2:$A$661,$W$69,'Step 4 bond aggregation'!$F$2:$F$661,AA$72,'Step 4 bond aggregation'!$G$2:$G$661,MATCH($X83,lov_term_buckets,0),'Step 4 bond aggregation'!$E$2:$E$661,$Y$80)","v":0},{"$f":"SUMIFS('Step 4 bond aggregation'!$B$2:$B$661,'Step 4 bond aggregation'!$A$2:$A$661,$W$69,'Step 4 bond aggregation'!$F$2:$F$661,AB$72,'Step 4 bond aggregation'!$G$2:$G$661,MATCH($X83,lov_term_buckets,0),'Step 4 bond aggregation'!$E$2:$E$661,$Y$80)","v":0},{"$f":"SUMIFS('Step 4 bond aggregation'!$B$2:$B$661,'Step 4 bond aggregation'!$A$2:$A$661,$W$69,'Step 4 bond aggregation'!$F$2:$F$661,AC$72,'Step 4 bond aggregation'!$G$2:$G$661,MATCH($X83,lov_term_buckets,0),'Step 4 bond aggregation'!$E$2:$E$661,$Y$80)","v":0},{"$f":"SUMIFS('Step 4 bond aggregation'!$B$2:$B$661,'Step 4 bond aggregation'!$A$2:$A$661,$W$69,'Step 4 bond aggregation'!$F$2:$F$661,AD$72,'Step 4 bond aggregation'!$G$2:$G$661,MATCH($X83,lov_term_buckets,0),'Step 4 bond aggregation'!$E$2:$E$661,$Y$80)","v":0},{"$f":"SUMIFS('Step 4 bond aggregation'!$B$2:$B$661,'Step 4 bond aggregation'!$A$2:$A$661,$W$69,'Step 4 bond aggregation'!$F$2:$F$661,AE$72,'Step 4 bond aggregation'!$G$2:$G$661,MATCH($X83,lov_term_buckets,0),'Step 4 bond aggregation'!$E$2:$E$661,$Y$80)","v":0},null,null,"1.01 to 5",{"$f":"SUMIFS('Step 4 bond aggregation'!$B$2:$B$661,'Step 4 bond aggregation'!$A$2:$A$661,$AG$69,'Step 4 bond aggregation'!$F$2:$F$661,AI$72,'Step 4 bond aggregation'!$G$2:$G$661,MATCH($AH83,lov_term_buckets,0),'Step 4 bond aggregation'!$E$2:$E$661,$AI$80)","v":0},{"$f":"SUMIFS('Step 4 bond aggregation'!$B$2:$B$661,'Step 4 bond aggregation'!$A$2:$A$661,$AG$69,'Step 4 bond aggregation'!$F$2:$F$661,AJ$72,'Step 4 bond aggregation'!$G$2:$G$661,MATCH($AH83,lov_term_buckets,0),'Step 4 bond aggregation'!$E$2:$E$661,$AI$80)","v":0},{"$f":"SUMIFS('Step 4 bond aggregation'!$B$2:$B$661,'Step 4 bond aggregation'!$A$2:$A$661,$AG$69,'Step 4 bond aggregation'!$F$2:$F$661,AK$72,'Step 4 bond aggregation'!$G$2:$G$661,MATCH($AH83,lov_term_buckets,0),'Step 4 bond aggregation'!$E$2:$E$661,$AI$80)","v":0},{"$f":"SUMIFS('Step 4 bond aggregation'!$B$2:$B$661,'Step 4 bond aggregation'!$A$2:$A$661,$AG$69,'Step 4 bond aggregation'!$F$2:$F$661,AL$72,'Step 4 bond aggregation'!$G$2:$G$661,MATCH($AH83,lov_term_buckets,0),'Step 4 bond aggregation'!$E$2:$E$661,$AI$80)","v":0},{"$f":"SUMIFS('Step 4 bond aggregation'!$B$2:$B$661,'Step 4 bond aggregation'!$A$2:$A$661,$AG$69,'Step 4 bond aggregation'!$F$2:$F$661,AM$72,'Step 4 bond aggregation'!$G$2:$G$661,MATCH($AH83,lov_term_buckets,0),'Step 4 bond aggregation'!$E$2:$E$661,$AI$80)","v":0},{"$f":"SUMIFS('Step 4 bond aggregation'!$B$2:$B$661,'Step 4 bond aggregation'!$A$2:$A$661,$AG$69,'Step 4 bond aggregation'!$F$2:$F$661,AN$72,'Step 4 bond aggregation'!$G$2:$G$661,MATCH($AH83,lov_term_buckets,0),'Step 4 bond aggregation'!$E$2:$E$661,$AI$80)","v":0},{"$f":"SUMIFS('Step 4 bond aggregation'!$B$2:$B$661,'Step 4 bond aggregation'!$A$2:$A$661,$AG$69,'Step 4 bond aggregation'!$F$2:$F$661,AO$72,'Step 4 bond aggregation'!$G$2:$G$661,MATCH($AH83,lov_term_buckets,0),'Step 4 bond aggregation'!$E$2:$E$661,$AI$80)","v":0},null,null,"1.01 to 5",{"$f":"SUMIFS('Step 4 bond aggregation'!$B$2:$B$661,'Step 4 bond aggregation'!$A$2:$A$661,$AQ$69,'Step 4 bond aggregation'!$F$2:$F$661,AS$72,'Step 4 bond aggregation'!$G$2:$G$661,MATCH($AR83,lov_term_buckets,0),'Step 4 bond aggregation'!$E$2:$E$661,$AS$80)","v":0},{"$f":"SUMIFS('Step 4 bond aggregation'!$B$2:$B$661,'Step 4 bond aggregation'!$A$2:$A$661,$AQ$69,'Step 4 bond aggregation'!$F$2:$F$661,AT$72,'Step 4 bond aggregation'!$G$2:$G$661,MATCH($AR83,lov_term_buckets,0),'Step 4 bond aggregation'!$E$2:$E$661,$AS$80)","v":0},{"$f":"SUMIFS('Step 4 bond aggregation'!$B$2:$B$661,'Step 4 bond aggregation'!$A$2:$A$661,$AQ$69,'Step 4 bond aggregation'!$F$2:$F$661,AU$72,'Step 4 bond aggregation'!$G$2:$G$661,MATCH($AR83,lov_term_buckets,0),'Step 4 bond aggregation'!$E$2:$E$661,$AS$80)","v":0},{"$f":"SUMIFS('Step 4 bond aggregation'!$B$2:$B$661,'Step 4 bond aggregation'!$A$2:$A$661,$AQ$69,'Step 4 bond aggregation'!$F$2:$F$661,AV$72,'Step 4 bond aggregation'!$G$2:$G$661,MATCH($AR83,lov_term_buckets,0),'Step 4 bond aggregation'!$E$2:$E$661,$AS$80)","v":0},{"$f":"SUMIFS('Step 4 bond aggregation'!$B$2:$B$661,'Step 4 bond aggregation'!$A$2:$A$661,$AQ$69,'Step 4 bond aggregation'!$F$2:$F$661,AW$72,'Step 4 bond aggregation'!$G$2:$G$661,MATCH($AR83,lov_term_buckets,0),'Step 4 bond aggregation'!$E$2:$E$661,$AS$80)","v":0},{"$f":"SUMIFS('Step 4 bond aggregation'!$B$2:$B$661,'Step 4 bond aggregation'!$A$2:$A$661,$AQ$69,'Step 4 bond aggregation'!$F$2:$F$661,AX$72,'Step 4 bond aggregation'!$G$2:$G$661,MATCH($AR83,lov_term_buckets,0),'Step 4 bond aggregation'!$E$2:$E$661,$AS$80)","v":0},{"$f":"SUMIFS('Step 4 bond aggregation'!$B$2:$B$661,'Step 4 bond aggregation'!$A$2:$A$661,$AQ$69,'Step 4 bond aggregation'!$F$2:$F$661,AY$72,'Step 4 bond aggregation'!$G$2:$G$661,MATCH($AR83,lov_term_buckets,0),'Step 4 bond aggregation'!$E$2:$E$661,$AS$80)","v":0},null,null,"1.01 to 5",{"$f":"SUMIFS('Step 4 bond aggregation'!$B$2:$B$661,'Step 4 bond aggregation'!$A$2:$A$661,$BA$69,'Step 4 bond aggregation'!$F$2:$F$661,BC$72,'Step 4 bond aggregation'!$G$2:$G$661,MATCH($BB83,lov_term_buckets,0),'Step 4 bond aggregation'!$E$2:$E$661,$BC$80)","v":0},{"$f":"SUMIFS('Step 4 bond aggregation'!$B$2:$B$661,'Step 4 bond aggregation'!$A$2:$A$661,$BA$69,'Step 4 bond aggregation'!$F$2:$F$661,BD$72,'Step 4 bond aggregation'!$G$2:$G$661,MATCH($BB83,lov_term_buckets,0),'Step 4 bond aggregation'!$E$2:$E$661,$BC$80)","v":0},{"$f":"SUMIFS('Step 4 bond aggregation'!$B$2:$B$661,'Step 4 bond aggregation'!$A$2:$A$661,$BA$69,'Step 4 bond aggregation'!$F$2:$F$661,BE$72,'Step 4 bond aggregation'!$G$2:$G$661,MATCH($BB83,lov_term_buckets,0),'Step 4 bond aggregation'!$E$2:$E$661,$BC$80)","v":0},{"$f":"SUMIFS('Step 4 bond aggregation'!$B$2:$B$661,'Step 4 bond aggregation'!$A$2:$A$661,$BA$69,'Step 4 bond aggregation'!$F$2:$F$661,BF$72,'Step 4 bond aggregation'!$G$2:$G$661,MATCH($BB83,lov_term_buckets,0),'Step 4 bond aggregation'!$E$2:$E$661,$BC$80)","v":0},{"$f":"SUMIFS('Step 4 bond aggregation'!$B$2:$B$661,'Step 4 bond aggregation'!$A$2:$A$661,$BA$69,'Step 4 bond aggregation'!$F$2:$F$661,BG$72,'Step 4 bond aggregation'!$G$2:$G$661,MATCH($BB83,lov_term_buckets,0),'Step 4 bond aggregation'!$E$2:$E$661,$BC$80)","v":0},{"$f":"SUMIFS('Step 4 bond aggregation'!$B$2:$B$661,'Step 4 bond aggregation'!$A$2:$A$661,$BA$69,'Step 4 bond aggregation'!$F$2:$F$661,BH$72,'Step 4 bond aggregation'!$G$2:$G$661,MATCH($BB83,lov_term_buckets,0),'Step 4 bond aggregation'!$E$2:$E$661,$BC$80)","v":0},{"$f":"SUMIFS('Step 4 bond aggregation'!$B$2:$B$661,'Step 4 bond aggregation'!$A$2:$A$661,$BA$69,'Step 4 bond aggregation'!$F$2:$F$661,BI$72,'Step 4 bond aggregation'!$G$2:$G$661,MATCH($BB83,lov_term_buckets,0),'Step 4 bond aggregation'!$E$2:$E$661,$BC$80)","v":0},null,null,"1.01 to 5",{"$f":"SUMIFS('Step 4 bond aggregation'!$B$2:$B$661,'Step 4 bond aggregation'!$A$2:$A$661,$BK$69,'Step 4 bond aggregation'!$F$2:$F$661,BM$72,'Step 4 bond aggregation'!$G$2:$G$661,MATCH($BB83,lov_term_buckets,0),'Step 4 bond aggregation'!$E$2:$E$661,$BC$80)","v":0},{"$f":"SUMIFS('Step 4 bond aggregation'!$B$2:$B$661,'Step 4 bond aggregation'!$A$2:$A$661,$BK$69,'Step 4 bond aggregation'!$F$2:$F$661,BN$72,'Step 4 bond aggregation'!$G$2:$G$661,MATCH($BB83,lov_term_buckets,0),'Step 4 bond aggregation'!$E$2:$E$661,$BC$80)","v":0},{"$f":"SUMIFS('Step 4 bond aggregation'!$B$2:$B$661,'Step 4 bond aggregation'!$A$2:$A$661,$BK$69,'Step 4 bond aggregation'!$F$2:$F$661,BO$72,'Step 4 bond aggregation'!$G$2:$G$661,MATCH($BB83,lov_term_buckets,0),'Step 4 bond aggregation'!$E$2:$E$661,$BC$80)","v":0},{"$f":"SUMIFS('Step 4 bond aggregation'!$B$2:$B$661,'Step 4 bond aggregation'!$A$2:$A$661,$BK$69,'Step 4 bond aggregation'!$F$2:$F$661,BP$72,'Step 4 bond aggregation'!$G$2:$G$661,MATCH($BB83,lov_term_buckets,0),'Step 4 bond aggregation'!$E$2:$E$661,$BC$80)","v":0},{"$f":"SUMIFS('Step 4 bond aggregation'!$B$2:$B$661,'Step 4 bond aggregation'!$A$2:$A$661,$BK$69,'Step 4 bond aggregation'!$F$2:$F$661,BQ$72,'Step 4 bond aggregation'!$G$2:$G$661,MATCH($BB83,lov_term_buckets,0),'Step 4 bond aggregation'!$E$2:$E$661,$BC$80)","v":0},{"$f":"SUMIFS('Step 4 bond aggregation'!$B$2:$B$661,'Step 4 bond aggregation'!$A$2:$A$661,$BK$69,'Step 4 bond aggregation'!$F$2:$F$661,BR$72,'Step 4 bond aggregation'!$G$2:$G$661,MATCH($BB83,lov_term_buckets,0),'Step 4 bond aggregation'!$E$2:$E$661,$BC$80)","v":0},{"$f":"SUMIFS('Step 4 bond aggregation'!$B$2:$B$661,'Step 4 bond aggregation'!$A$2:$A$661,$BK$69,'Step 4 bond aggregation'!$F$2:$F$661,BS$72,'Step 4 bond aggregation'!$G$2:$G$661,MATCH($BB83,lov_term_buckets,0),'Step 4 bond aggregation'!$E$2:$E$661,$BC$80)","v":0},null,null,"1.01 to 5",{"$f":"SUMIFS('Step 4 bond aggregation'!$B$2:$B$661,'Step 4 bond aggregation'!$A$2:$A$661,$BU$69,'Step 4 bond aggregation'!$F$2:$F$661,BW$72,'Step 4 bond aggregation'!$G$2:$G$661,MATCH($BB83,lov_term_buckets,0),'Step 4 bond aggregation'!$E$2:$E$661,$BC$80)","v":0},{"$f":"SUMIFS('Step 4 bond aggregation'!$B$2:$B$661,'Step 4 bond aggregation'!$A$2:$A$661,$BU$69,'Step 4 bond aggregation'!$F$2:$F$661,BX$72,'Step 4 bond aggregation'!$G$2:$G$661,MATCH($BB83,lov_term_buckets,0),'Step 4 bond aggregation'!$E$2:$E$661,$BC$80)","v":0},{"$f":"SUMIFS('Step 4 bond aggregation'!$B$2:$B$661,'Step 4 bond aggregation'!$A$2:$A$661,$BU$69,'Step 4 bond aggregation'!$F$2:$F$661,BY$72,'Step 4 bond aggregation'!$G$2:$G$661,MATCH($BB83,lov_term_buckets,0),'Step 4 bond aggregation'!$E$2:$E$661,$BC$80)","v":0},{"$f":"SUMIFS('Step 4 bond aggregation'!$B$2:$B$661,'Step 4 bond aggregation'!$A$2:$A$661,$BU$69,'Step 4 bond aggregation'!$F$2:$F$661,BZ$72,'Step 4 bond aggregation'!$G$2:$G$661,MATCH($BB83,lov_term_buckets,0),'Step 4 bond aggregation'!$E$2:$E$661,$BC$80)","v":0},{"$f":"SUMIFS('Step 4 bond aggregation'!$B$2:$B$661,'Step 4 bond aggregation'!$A$2:$A$661,$BU$69,'Step 4 bond aggregation'!$F$2:$F$661,CA$72,'Step 4 bond aggregation'!$G$2:$G$661,MATCH($BB83,lov_term_buckets,0),'Step 4 bond aggregation'!$E$2:$E$661,$BC$80)","v":0},{"$f":"SUMIFS('Step 4 bond aggregation'!$B$2:$B$661,'Step 4 bond aggregation'!$A$2:$A$661,$BU$69,'Step 4 bond aggregation'!$F$2:$F$661,CB$72,'Step 4 bond aggregation'!$G$2:$G$661,MATCH($BB83,lov_term_buckets,0),'Step 4 bond aggregation'!$E$2:$E$661,$BC$80)","v":0},{"$f":"SUMIFS('Step 4 bond aggregation'!$B$2:$B$661,'Step 4 bond aggregation'!$A$2:$A$661,$BU$69,'Step 4 bond aggregation'!$F$2:$F$661,CC$72,'Step 4 bond aggregation'!$G$2:$G$661,MATCH($BB83,lov_term_buckets,0),'Step 4 bond aggregation'!$E$2:$E$661,$BC$80)","v":0}]
[null,null,"5.01 to 10",{"$f":"Input!F93","v":0},{"$f":"Input!G93","v":0},{"$f":"Input!H93","v":0},{"$f":"Input!I93","v":0},{"$f":"Input!J93","v":0},{"$f":"Input!K93","v":0},{"$f":"Input!L93","v":0},{"$f":"Input!M93","v":0},null,null,"5.01 to 10",{"$f":"Input!F133+Input!F166","v":0},{"$f":"Input!G133+Input!G166","v":0},{"$f":"Input!H133+Input!H166","v":0},{"$f":"Input!I133+Input!I166","v":0},{"$f":"Input!J133+Input!J166","v":0},{"$f":"Input!K133+Input!K166","v":0},{"$f":"Input!L133+Input!L166","v":0},null,null,"5.01 to 10",{"$f":"SUMIFS('Step 4 bond aggregation'!$B$2:$B$661,'Step 4 bond aggregation'!$A$2:$A$661,$W$69,'Step 4 bond aggregation'!$F$2:$F$661,Y$72,'Step 4 bond aggregation'!$G$2:$G$661,MATCH($X84,lov_term_buckets,0),'Step 4 bond aggregation'!$E$2:$E$661,$Y$80)","v":0},{"$f":"SUMIFS('Step 4 bond aggregation'!$B$2:$B$661,'Step 4 bond aggregation'!$A$2:$A$661,$W$69,'Step 4 bond aggregation'!$F$2:$F$661,Z$72,'Step 4 bond aggregation'!$G$2:$G$661,MATCH($X84,lov_term_buckets,0),'Step 4 bond aggregation'!$E$2:$E$661,$Y$80)","v":0},{"$f":"SUMIFS('Step 4 bond aggregation'!$B$2:$B$661,'Step 4 bond aggregation'!$A$2:$A$661,$W$69,'Step 4 bond aggregation'!$F$2:$F$661,AA$72,'Step 4 bond aggregation'!$G$2:$G$661,MATCH($X84,lov_term_buckets,0),'Step 4 bond aggregation'!$E$2:$E$661,$Y$80)","v":0},{"$f":"SUMIFS('Step 4 bond aggregation'!$B$2:$B$661,'Step 4 bond aggregation'!$A$2:$A$661,$W$69,'Step 4 bond aggregation'!$F$2:$F$661,AB$72,'Step 4 bond aggregation'!$G$2:$G$661,MATCH($X84,lov_term_buckets,0),'Step 4 bond aggregation'!$E$2:$E$661,$Y$80)","v":0},{"$f":"SUMIFS('Step 4 bond aggregation'!$B$2:$B$661,'Step 4 bond aggregation'!$A$2:$A$661,$W$69,'Step 4 bond aggregation'!$F$2:$F$661,AC$72,'Step 4 bond aggregation'!$G$2:$G$661,MATCH($X84,lov_term_buckets,0),'Step 4 bond aggregation'!$E$2:$E$661,$Y$80)","v":0},{"$f":"SUMIFS('Step 4 bond aggregation'!$B$2:$B$661,'Step 4 bond aggregation'!$A$2:$A$661,$W$69,'Step 4 bond aggregation'!$F$2:$F$661,AD$72,'Step 4 bond aggregation'!$G$2:$G$661,MATCH($X84,lov_term_buckets,0),'Step 4 bond aggregation'!$E$2:$E$661,$Y$80)","v":0},{"$f":"SUMIFS('Step 4 bond aggregation'!$B$2:$B$661,'Step 4 bond aggregation'!$A$2:$A$661,$W$69,'Step 4 bond aggregation'!$F$2:$F$661,AE$72,'Step 4 bond aggregation'!$G$2:$G$661,MATCH($X84,lov_term_buckets,0),'Step 4 bond aggregation'!$E$2:$E$661,$Y$80)","v":0},null,null,"5.01 to 10",{"$f":"SUMIFS('Step 4 bond aggregation'!$B$2:$B$661,'Step 4 bond aggregation'!$A$2:$A$661,$AG$69,'Step 4 bond aggregation'!$F$2:$F$661,AI$72,'Step 4 bond aggregation'!$G$2:$G$661,MATCH($AH84,lov_term_buckets,0),'Step 4 bond aggregation'!$E$2:$E$661,$AI$80)","v":0},{"$f":"SUMIFS('Step 4 bond aggregation'!$B$2:$B$661,'Step 4 bond aggregation'!$A$2:$A$661,$AG$69,'Step 4 bond aggregation'!$F$2:$F$661,AJ$72,'Step 4 bond aggregation'!$G$2:$G$661,MATCH($AH84,lov_term_buckets,0),'Step 4 bond aggregation'!$E$2:$E$661,$AI$80)","v":0},{"$f":"SUMIFS('Step 4 bond aggregation'!$B$2:$B$661,'Step 4 bond aggregation'!$A$2:$A$661,$AG$69,'Step 4 bond aggregation'!$F$2:$F$661,AK$72,'Step 4 bond aggregation'!$G$2:$G$661,MATCH($AH84,lov_term_buckets,0),'Step 4 bond aggregation'!$E$2:$E$661,$AI$80)","v":0},{"$f":"SUMIFS('Step 4 bond aggregation'!$B$2:$B$661,'Step 4 bond aggregation'!$A$2:$A$661,$AG$69,'Step 4 bond aggregation'!$F$2:$F$661,AL$72,'Step 4 bond aggregation'!$G$2:$G$661,MATCH($AH84,lov_term_buckets,0),'Step 4 bond aggregation'!$E$2:$E$661,$AI$80)","v":0},{"$f":"SUMIFS('Step 4 bond aggregation'!$B$2:$B$661,'Step 4 bond aggregation'!$A$2:$A$661,$AG$69,'Step 4 bond aggregation'!$F$2:$F$661,AM$72,'Step 4 bond aggregation'!$G$2:$G$661,MATCH($AH84,lov_term_buckets,0),'Step 4 bond aggregation'!$E$2:$E$661,$AI$80)","v":0},{"$f":"SUMIFS('Step 4 bond aggregation'!$B$2:$B$661,'Step 4 bond aggregation'!$A$2:$A$661,$AG$69,'Step 4 bond aggregation'!$F$2:$F$661,AN$72,'Step 4 bond aggregation'!$G$2:$G$661,MATCH($AH84,lov_term_buckets,0),'Step 4 bond aggregation'!$E$2:$E$661,$AI$80)","v":0},{"$f":"SUMIFS('Step 4 bond aggregation'!$B$2:$B$661,'Step 4 bond aggregation'!$A$2:$A$661,$AG$69,'Step 4 bond aggregation'!$F$2:$F$661,AO$72,'Step 4 bond aggregation'!$G$2:$G$661,MATCH($AH84,lov_term_buckets,0),'Step 4 bond aggregation'!$E$2:$E$661,$AI$80)","v":0},null,null,"5.01 to 10",{"$f":"SUMIFS('Step 4 bond aggregation'!$B$2:$B$661,'Step 4 bond aggregation'!$A$2:$A$661,$AQ$69,'Step 4 bond aggregation'!$F$2:$F$661,AS$72,'Step 4 bond aggregation'!$G$2:$G$661,MATCH($AR84,lov_term_buckets,0),'Step 4 bond aggregation'!$E$2:$E$661,$AS$80)","v":0},{"$f":"SUMIFS('Step 4 bond aggregation'!$B$2:$B$661,'Step 4 bond aggregation'!$A$2:$A$661,$AQ$69,'Step 4 bond aggregation'!$F$2:$F$661,AT$72,'Step 4 bond aggregation'!$G$2:$G$661,MATCH($AR84,lov_term_buckets,0),'Step 4 bond aggregation'!$E$2:$E$661,$AS$80)","v":0},{"$f":"SUMIFS('Step 4 bond aggregation'!$B$2:$B$661,'Step 4 bond aggregation'!$A$2:$A$661,$AQ$69,'Step 4 bond aggregation'!$F$2:$F$661,AU$72,'Step 4 bond aggregation'!$G$2:$G$661,MATCH($AR84,lov_term_buckets,0),'Step 4 bond aggregation'!$E$2:$E$661,$AS$80)","v":0},{"$f":"SUMIFS('Step 4 bond aggregation'!$B$2:$B$661,'Step 4 bond aggregation'!$A$2:$A$661,$AQ$69,'Step 4 bond aggregation'!$F$2:$F$661,AV$72,'Step 4 bond aggregation'!$G$2:$G$661,MATCH($AR84,lov_term_buckets,0),'Step 4 bond aggregation'!$E$2:$E$661,$AS$80)","v":0},{"$f":"SUMIFS('Step 4 bond aggregation'!$B$2:$B$661,'Step 4 bond aggregation'!$A$2:$A$661,$AQ$69,'Step 4 bond aggregation'!$F$2:$F$661,AW$72,'Step 4 bond aggregation'!$G$2:$G$661,MATCH($AR84,lov_term_buckets,0),'Step 4 bond aggregation'!$E$2:$E$661,$AS$80)","v":0},{"$f":"SUMIFS('Step 4 bond aggregation'!$B$2:$B$661,'Step 4 bond aggregation'!$A$2:$A$661,$AQ$69,'Step 4 bond aggregation'!$F$2:$F$661,AX$72,'Step 4 bond aggregation'!$G$2:$G$661,MATCH($AR84,lov_term_buckets,0),'Step 4 bond aggregation'!$E$2:$E$661,$AS$80)","v":0},{"$f":"SUMIFS('Step 4 bond aggregation'!$B$2:$B$661,'Step 4 bond aggregation'!$A$2:$A$661,$AQ$69,'Step 4 bond aggregation'!$F$2:$F$661,AY$72,'Step 4 bond aggregation'!$G$2:$G$661,MATCH($AR84,lov_term_buckets,0),'Step 4 bond aggregation'!$E$2:$E$661,$AS$80)","v":0},null,null,"5.01 to 10",{"$f":"SUMIFS('Step 4 bond aggregation'!$B$2:$B$661,'Step 4 bond aggregation'!$A$2:$A$661,$BA$69,'Step 4 bond aggregation'!$F$2:$F$661,BC$72,'Step 4 bond aggregation'!$G$2:$G$661,MATCH($BB84,lov_term_buckets,0),'Step 4 bond aggregation'!$E$2:$E$661,$BC$80)","v":0},{"$f":"SUMIFS('Step 4 bond aggregation'!$B$2:$B$661,'Step 4 bond aggregation'!$A$2:$A$661,$BA$69,'Step 4 bond aggregation'!$F$2:$F$661,BD$72,'Step 4 bond aggregation'!$G$2:$G$661,MATCH($BB84,lov_term_buckets,0),'Step 4 bond aggregation'!$E$2:$E$661,$BC$80)","v":0},{"$f":"SUMIFS('Step 4 bond aggregation'!$B$2:$B$661,'Step 4 bond aggregation'!$A$2:$A$661,$BA$69,'Step 4 bond aggregation'!$F$2:$F$661,BE$72,'Step 4 bond aggregation'!$G$2:$G$661,MATCH($BB84,lov_term_buckets,0),'Step 4 bond aggregation'!$E$2:$E$661,$BC$80)","v":0},{"$f":"SUMIFS('Step 4 bond aggregation'!$B$2:$B$661,'Step 4 bond aggregation'!$A$2:$A$661,$BA$69,'Step 4 bond aggregation'!$F$2:$F$661,BF$72,'Step 4 bond aggregation'!$G$2:$G$661,MATCH($BB84,lov_term_buckets,0),'Step 4 bond aggregation'!$E$2:$E$661,$BC$80)","v":0},{"$f":"SUMIFS('Step 4 bond aggregation'!$B$2:$B$661,'Step 4 bond aggregation'!$A$2:$A$661,$BA$69,'Step 4 bond aggregation'!$F$2:$F$661,BG$72,'Step 4 bond aggregation'!$G$2:$G$661,MATCH($BB84,lov_term_buckets,0),'Step 4 bond aggregation'!$E$2:$E$661,$BC$80)","v":0},{"$f":"SUMIFS('Step 4 bond aggregation'!$B$2:$B$661,'Step 4 bond aggregation'!$A$2:$A$661,$BA$69,'Step 4 bond aggregation'!$F$2:$F$661,BH$72,'Step 4 bond aggregation'!$G$2:$G$661,MATCH($BB84,lov_term_buckets,0),'Step 4 bond aggregation'!$E$2:$E$661,$BC$80)","v":0},{"$f":"SUMIFS('Step 4 bond aggregation'!$B$2:$B$661,'Step 4 bond aggregation'!$A$2:$A$661,$BA$69,'Step 4 bond aggregation'!$F$2:$F$661,BI$72,'Step 4 bond aggregation'!$G$2:$G$661,MATCH($BB84,lov_term_buckets,0),'Step 4 bond aggregation'!$E$2:$E$661,$BC$80)","v":0},null,null,"5.01 to 10",{"$f":"SUMIFS('Step 4 bond aggregation'!$B$2:$B$661,'Step 4 bond aggregation'!$A$2:$A$661,$BK$69,'Step 4 bond aggregation'!$F$2:$F$661,BM$72,'Step 4 bond aggregation'!$G$2:$G$661,MATCH($BB84,lov_term_buckets,0),'Step 4 bond aggregation'!$E$2:$E$661,$BC$80)","v":0},{"$f":"SUMIFS('Step 4 bond aggregation'!$B$2:$B$661,'Step 4 bond aggregation'!$A$2:$A$661,$BK$69,'Step 4 bond aggregation'!$F$2:$F$661,BN$72,'Step 4 bond aggregation'!$G$2:$G$661,MATCH($BB84,lov_term_buckets,0),'Step 4 bond aggregation'!$E$2:$E$661,$BC$80)","v":0},{"$f":"SUMIFS('Step 4 bond aggregation'!$B$2:$B$661,'Step 4 bond aggregation'!$A$2:$A$661,$BK$69,'Step 4 bond aggregation'!$F$2:$F$661,BO$72,'Step 4 bond aggregation'!$G$2:$G$661,MATCH($BB84,lov_term_buckets,0),'Step 4 bond aggregation'!$E$2:$E$661,$BC$80)","v":0},{"$f":"SUMIFS('Step 4 bond aggregation'!$B$2:$B$661,'Step 4 bond aggregation'!$A$2:$A$661,$BK$69,'Step 4 bond aggregation'!$F$2:$F$661,BP$72,'Step 4 bond aggregation'!$G$2:$G$661,MATCH($BB84,lov_term_buckets,0),'Step 4 bond aggregation'!$E$2:$E$661,$BC$80)","v":0},{"$f":"SUMIFS('Step 4 bond aggregation'!$B$2:$B$661,'Step 4 bond aggregation'!$A$2:$A$661,$BK$69,'Step 4 bond aggregation'!$F$2:$F$661,BQ$72,'Step 4 bond aggregation'!$G$2:$G$661,MATCH($BB84,lov_term_buckets,0),'Step 4 bond aggregation'!$E$2:$E$661,$BC$80)","v":0},{"$f":"SUMIFS('Step 4 bond aggregation'!$B$2:$B$661,'Step 4 bond aggregation'!$A$2:$A$661,$BK$69,'Step 4 bond aggregation'!$F$2:$F$661,BR$72,'Step 4 bond aggregation'!$G$2:$G$661,MATCH($BB84,lov_term_buckets,0),'Step 4 bond aggregation'!$E$2:$E$661,$BC$80)","v":0},{"$f":"SUMIFS('Step 4 bond aggregation'!$B$2:$B$661,'Step 4 bond aggregation'!$A$2:$A$661,$BK$69,'Step 4 bond aggregation'!$F$2:$F$661,BS$72,'Step 4 bond aggregation'!$G$2:$G$661,MATCH($BB84,lov_term_buckets,0),'Step 4 bond aggregation'!$E$2:$E$661,$BC$80)","v":0},null,null,"5.01 to 10",{"$f":"SUMIFS('Step 4 bond aggregation'!$B$2:$B$661,'Step 4 bond aggregation'!$A$2:$A$661,$BU$69,'Step 4 bond aggregation'!$F$2:$F$661,BW$72,'Step 4 bond aggregation'!$G$2:$G$661,MATCH($BB84,lov_term_buckets,0),'Step 4 bond aggregation'!$E$2:$E$661,$BC$80)","v":0},{"$f":"SUMIFS('Step 4 bond aggregation'!$B$2:$B$661,'Step 4 bond aggregation'!$A$2:$A$661,$BU$69,'Step 4 bond aggregation'!$F$2:$F$661,BX$72,'Step 4 bond aggregation'!$G$2:$G$661,MATCH($BB84,lov_term_buckets,0),'Step 4 bond aggregation'!$E$2:$E$661,$BC$80)","v":0},{"$f":"SUMIFS('Step 4 bond aggregation'!$B$2:$B$661,'Step 4 bond aggregation'!$A$2:$A$661,$BU$69,'Step 4 bond aggregation'!$F$2:$F$661,BY$72,'Step 4 bond aggregation'!$G$2:$G$661,MATCH($BB84,lov_term_buckets,0),'Step 4 bond aggregation'!$E$2:$E$661,$BC$80)","v":0},{"$f":"SUMIFS('Step 4 bond aggregation'!$B$2:$B$661,'Step 4 bond aggregation'!$A$2:$A$661,$BU$69,'Step 4 bond aggregation'!$F$2:$F$661,BZ$72,'Step 4 bond aggregation'!$G$2:$G$661,MATCH($BB84,lov_term_buckets,0),'Step 4 bond aggregation'!$E$2:$E$661,$BC$80)","v":0},{"$f":"SUMIFS('Step 4 bond aggregation'!$B$2:$B$661,'Step 4 bond aggregation'!$A$2:$A$661,$BU$69,'Step 4 bond aggregation'!$F$2:$F$661,CA$72,'Step 4 bond aggregation'!$G$2:$G$661,MATCH($BB84,lov_term_buckets,0),'Step 4 bond aggregation'!$E$2:$E$661,$BC$80)","v":0},{"$f":"SUMIFS('Step 4 bond aggregation'!$B$2:$B$661,'Step 4 bond aggregation'!$A$2:$A$661,$BU$69,'Step 4 bond aggregation'!$F$2:$F$661,CB$72,'Step 4 bond aggregation'!$G$2:$G$661,MATCH($BB84,lov_term_buckets,0),'Step 4 bond aggregation'!$E$2:$E$661,$BC$80)","v":0},{"$f":"SUMIFS('Step 4 bond aggregation'!$B$2:$B$661,'Step 4 bond aggregation'!$A$2:$A$661,$BU$69,'Step 4 bond aggregation'!$F$2:$F$661,CC$72,'Step 4 bond aggregation'!$G$2:$G$661,MATCH($BB84,lov_term_buckets,0),'Step 4 bond aggregation'!$E$2:$E$661,$BC$80)","v":0}]
[null,null,"10.01 to 20",{"$f":"Input!F94","v":0},{"$f":"Input!G94","v":0},{"$f":"Input!H94","v":0},{"$f":"Input!I94","v":0},{"$f":"Input!J94","v":0},{"$f":"Input!K94","v":0},{"$f":"Input!L94","v":0},{"$f":"Input!M94","v":0},null,null,"10.01 to 20",{"$f":"Input!F134+Input!F167","v":0},{"$f":"Input!G134+Input!G167","v":0},{"$f":"Input!H134+Input!H167","v":0},{"$f":"Input!I134+Input!I167","v":0},{"$f":"Input!J134+Input!J167","v":0},{"$f":"Input!K134+Input!K167","v":0},{"$f":"Input!L134+Input!L167","v":0},null,null,"10.01 to 20",{"$f":"SUMIFS('Step 4 bond aggregation'!$B$2:$B$661,'Step 4 bond aggregation'!$A$2:$A$661,$W$69,'Step 4 bond aggregation'!$F$2:$F$661,Y$72,'Step 4 bond aggregation'!$G$2:$G$661,MATCH($X85,lov_term_buckets,0),'Step 4 bond aggregation'!$E$2:$E$661,$Y$80)","v":0},{"$f":"SUMIFS('Step 4 bond aggregation'!$B$2:$B$661,'Step 4 bond aggregation'!$A$2:$A$661,$W$69,'Step 4 bond aggregation'!$F$2:$F$661,Z$72,'Step 4 bond aggregation'!$G$2:$G$661,MATCH($X85,lov_term_buckets,0),'Step 4 bond aggregation'!$E$2:$E$661,$Y$80)","v":0},{"$f":"SUMIFS('Step 4 bond aggregation'!$B$2:$B$661,'Step 4 bond aggregation'!$A$2:$A$661,$W$69,'Step 4 bond aggregation'!$F$2:$F$661,AA$72,'Step 4 bond aggregation'!$G$2:$G$661,MATCH($X85,lov_term_buckets,0),'Step 4 bond aggregation'!$E$2:$E$661,$Y$80)","v":0},{"$f":"SUMIFS('Step 4 bond aggregation'!$B$2:$B$661,'Step 4 bond aggregation'!$A$2:$A$661,$W$69,'Step 4 bond aggregation'!$F$2:$F$661,AB$72,'Step 4 bond aggregation'!$G$2:$G$661,MATCH($X85,lov_term_buckets,0),'Step 4 bond aggregation'!$E$2:$E$661,$Y$80)","v":0},{"$f":"SUMIFS('Step 4 bond aggregation'!$B$2:$B$661,'Step 4 bond aggregation'!$A$2:$A$661,$W$69,'Step 4 bond aggregation'!$F$2:$F$661,AC$72,'Step 4 bond aggregation'!$G$2:$G$661,MATCH($X85,lov_term_buckets,0),'Step 4 bond aggregation'!$E$2:$E$661,$Y$80)","v":0},{"$f":"SUMIFS('Step 4 bond aggregation'!$B$2:$B$661,'Step 4 bond aggregation'!$A$2:$A$661,$W$69,'Step 4 bond aggregation'!$F$2:$F$661,AD$72,'Step 4 bond aggregation'!$G$2:$G$661,MATCH($X85,lov_term_buckets,0),'Step 4 bond aggregation'!$E$2:$E$661,$Y$80)","v":0},{"$f":"SUMIFS('Step 4 bond aggregation'!$B$2:$B$661,'Step 4 bond aggregation'!$A$2:$A$661,$W$69,'Step 4 bond aggregation'!$F$2:$F$661,AE$72,'Step 4 bond aggregation'!$G$2:$G$661,MATCH($X85,lov_term_buckets,0),'Step 4 bond aggregation'!$E$2:$E$661,$Y$80)","v":0},null,null,"10.01 to 20",{"$f":"SUMIFS('Step 4 bond aggregation'!$B$2:$B$661,'Step 4 bond aggregation'!$A$2:$A$661,$AG$69,'Step 4 bond aggregation'!$F$2:$F$661,AI$72,'Step 4 bond aggregation'!$G$2:$G$661,MATCH($AH85,lov_term_buckets,0),'Step 4 bond aggregation'!$E$2:$E$661,$AI$80)","v":0},{"$f":"SUMIFS('Step 4 bond aggregation'!$B$2:$B$661,'Step 4 bond aggregation'!$A$2:$A$661,$AG$69,'Step 4 bond aggregation'!$F$2:$F$661,AJ$72,'Step 4 bond aggregation'!$G$2:$G$661,MATCH($AH85,lov_term_buckets,0),'Step 4 bond aggregation'!$E$2:$E$661,$AI$80)","v":0},{"$f":"SUMIFS('Step 4 bond aggregation'!$B$2:$B$661,'Step 4 bond aggregation'!$A$2:$A$661,$AG$69,'Step 4 bond aggregation'!$F$2:$F$661,AK$72,'Step 4 bond aggregation'!$G$2:$G$661,MATCH($AH85,lov_term_buckets,0),'Step 4 bond aggregation'!$E$2:$E$661,$AI$80)","v":0},{"$f":"SUMIFS('Step 4 bond aggregation'!$B$2:$B$661,'Step 4 bond aggregation'!$A$2:$A$661,$AG$69,'Step 4 bond aggregation'!$F$2:$F$661,AL$72,'Step 4 bond aggregation'!$G$2:$G$661,MATCH($AH85,lov_term_buckets,0),'Step 4 bond aggregation'!$E$2:$E$661,$AI$80)","v":0},{"$f":"SUMIFS('Step 4 bond aggregation'!$B$2:$B$661,'Step 4 bond aggregation'!$A$2:$A$661,$AG$69,'Step 4 bond aggregation'!$F$2:$F$661,AM$72,'Step 4 bond aggregation'!$G$2:$G$661,MATCH($AH85,lov_term_buckets,0),'Step 4 bond aggregation'!$E$2:$E$661,$AI$80)","v":0},{"$f":"SUMIFS('Step 4 bond aggregation'!$B$2:$B$661,'Step 4 bond aggregation'!$A$2:$A$661,$AG$69,'Step 4 bond aggregation'!$F$2:$F$661,AN$72,'Step 4 bond aggregation'!$G$2:$G$661,MATCH($AH85,lov_term_buckets,0),'Step 4 bond aggregation'!$E$2:$E$661,$AI$80)","v":0},{"$f":"SUMIFS('Step 4 bond aggregation'!$B$2:$B$661,'Step 4 bond aggregation'!$A$2:$A$661,$AG$69,'Step 4 bond aggregation'!$F$2:$F$661,AO$72,'Step 4 bond aggregation'!$G$2:$G$661,MATCH($AH85,lov_term_buckets,0),'Step 4 bond aggregation'!$E$2:$E$661,$AI$80)","v":0},null,null,"10.01 to 20",{"$f":"SUMIFS('Step 4 bond aggregation'!$B$2:$B$661,'Step 4 bond aggregation'!$A$2:$A$661,$AQ$69,'Step 4 bond aggregation'!$F$2:$F$661,AS$72,'Step 4 bond aggregation'!$G$2:$G$661,MATCH($AR85,lov_term_buckets,0),'Step 4 bond aggregation'!$E$2:$E$661,$AS$80)","v":0},{"$f":"SUMIFS('Step 4 bond aggregation'!$B$2:$B$661,'Step 4 bond aggregation'!$A$2:$A$661,$AQ$69,'Step 4 bond aggregation'!$F$2:$F$661,AT$72,'Step 4 bond aggregation'!$G$2:$G$661,MATCH($AR85,lov_term_buckets,0),'Step 4 bond aggregation'!$E$2:$E$661,$AS$80)","v":0},{"$f":"SUMIFS('Step 4 bond aggregation'!$B$2:$B$661,'Step 4 bond aggregation'!$A$2:$A$661,$AQ$69,'Step 4 bond aggregation'!$F$2:$F$661,AU$72,'Step 4 bond aggregation'!$G$2:$G$661,MATCH($AR85,lov_term_buckets,0),'Step 4 bond aggregation'!$E$2:$E$661,$AS$80)","v":0},{"$f":"SUMIFS('Step 4 bond aggregation'!$B$2:$B$661,'Step 4 bond aggregation'!$A$2:$A$661,$AQ$69,'Step 4 bond aggregation'!$F$2:$F$661,AV$72,'Step 4 bond aggregation'!$G$2:$G$661,MATCH($AR85,lov_term_buckets,0),'Step 4 bond aggregation'!$E$2:$E$661,$AS$80)","v":0},{"$f":"SUMIFS('Step 4 bond aggregation'!$B$2:$B$661,'Step 4 bond aggregation'!$A$2:$A$661,$AQ$69,'Step 4 bond aggregation'!$F$2:$F$661,AW$72,'Step 4 bond aggregation'!$G$2:$G$661,MATCH($AR85,lov_term_buckets,0),'Step 4 bond aggregation'!$E$2:$E$661,$AS$80)","v":0},{"$f":"SUMIFS('Step 4 bond aggregation'!$B$2:$B$661,'Step 4 bond aggregation'!$A$2:$A$661,$AQ$69,'Step 4 bond aggregation'!$F$2:$F$661,AX$72,'Step 4 bond aggregation'!$G$2:$G$661,MATCH($AR85,lov_term_buckets,0),'Step 4 bond aggregation'!$E$2:$E$661,$AS$80)","v":0},{"$f":"SUMIFS('Step 4 bond aggregation'!$B$2:$B$661,'Step 4 bond aggregation'!$A$2:$A$661,$AQ$69,'Step 4 bond aggregation'!$F$2:$F$661,AY$72,'Step 4 bond aggregation'!$G$2:$G$661,MATCH($AR85,lov_term_buckets,0),'Step 4 bond aggregation'!$E$2:$E$661,$AS$80)","v":0},null,null,"10.01 to 20",{"$f":"SUMIFS('Step 4 bond aggregation'!$B$2:$B$661,'Step 4 bond aggregation'!$A$2:$A$661,$BA$69,'Step 4 bond aggregation'!$F$2:$F$661,BC$72,'Step 4 bond aggregation'!$G$2:$G$661,MATCH($BB85,lov_term_buckets,0),'Step 4 bond aggregation'!$E$2:$E$661,$BC$80)","v":0},{"$f":"SUMIFS('Step 4 bond aggregation'!$B$2:$B$661,'Step 4 bond aggregation'!$A$2:$A$661,$BA$69,'Step 4 bond aggregation'!$F$2:$F$661,BD$72,'Step 4 bond aggregation'!$G$2:$G$661,MATCH($BB85,lov_term_buckets,0),'Step 4 bond aggregation'!$E$2:$E$661,$BC$80)","v":0},{"$f":"SUMIFS('Step 4 bond aggregation'!$B$2:$B$661,'Step 4 bond aggregation'!$A$2:$A$661,$BA$69,'Step 4 bond aggregation'!$F$2:$F$661,BE$72,'Step 4 bond aggregation'!$G$2:$G$661,MATCH($BB85,lov_term_buckets,0),'Step 4 bond aggregation'!$E$2:$E$661,$BC$80)","v":0},{"$f":"SUMIFS('Step 4 bond aggregation'!$B$2:$B$661,'Step 4 bond aggregation'!$A$2:$A$661,$BA$69,'Step 4 bond aggregation'!$F$2:$F$661,BF$72,'Step 4 bond aggregation'!$G$2:$G$661,MATCH($BB85,lov_term_buckets,0),'Step 4 bond aggregation'!$E$2:$E$661,$BC$80)","v":0},{"$f":"SUMIFS('Step 4 bond aggregation'!$B$2:$B$661,'Step 4 bond aggregation'!$A$2:$A$661,$BA$69,'Step 4 bond aggregation'!$F$2:$F$661,BG$72,'Step 4 bond aggregation'!$G$2:$G$661,MATCH($BB85,lov_term_buckets,0),'Step 4 bond aggregation'!$E$2:$E$661,$BC$80)","v":0},{"$f":"SUMIFS('Step 4 bond aggregation'!$B$2:$B$661,'Step 4 bond aggregation'!$A$2:$A$661,$BA$69,'Step 4 bond aggregation'!$F$2:$F$661,BH$72,'Step 4 bond aggregation'!$G$2:$G$661,MATCH($BB85,lov_term_buckets,0),'Step 4 bond aggregation'!$E$2:$E$661,$BC$80)","v":0},{"$f":"SUMIFS('Step 4 bond aggregation'!$B$2:$B$661,'Step 4 bond aggregation'!$A$2:$A$661,$BA$69,'Step 4 bond aggregation'!$F$2:$F$661,BI$72,'Step 4 bond aggregation'!$G$2:$G$661,MATCH($BB85,lov_term_buckets,0),'Step 4 bond aggregation'!$E$2:$E$661,$BC$80)","v":0},null,null,"10.01 to 20",{"$f":"SUMIFS('Step 4 bond aggregation'!$B$2:$B$661,'Step 4 bond aggregation'!$A$2:$A$661,$BK$69,'Step 4 bond aggregation'!$F$2:$F$661,BM$72,'Step 4 bond aggregation'!$G$2:$G$661,MATCH($BB85,lov_term_buckets,0),'Step 4 bond aggregation'!$E$2:$E$661,$BC$80)","v":0},{"$f":"SUMIFS('Step 4 bond aggregation'!$B$2:$B$661,'Step 4 bond aggregation'!$A$2:$A$661,$BK$69,'Step 4 bond aggregation'!$F$2:$F$661,BN$72,'Step 4 bond aggregation'!$G$2:$G$661,MATCH($BB85,lov_term_buckets,0),'Step 4 bond aggregation'!$E$2:$E$661,$BC$80)","v":0},{"$f":"SUMIFS('Step 4 bond aggregation'!$B$2:$B$661,'Step 4 bond aggregation'!$A$2:$A$661,$BK$69,'Step 4 bond aggregation'!$F$2:$F$661,BO$72,'Step 4 bond aggregation'!$G$2:$G$661,MATCH($BB85,lov_term_buckets,0),'Step 4 bond aggregation'!$E$2:$E$661,$BC$80)","v":0},{"$f":"SUMIFS('Step 4 bond aggregation'!$B$2:$B$661,'Step 4 bond aggregation'!$A$2:$A$661,$BK$69,'Step 4 bond aggregation'!$F$2:$F$661,BP$72,'Step 4 bond aggregation'!$G$2:$G$661,MATCH($BB85,lov_term_buckets,0),'Step 4 bond aggregation'!$E$2:$E$661,$BC$80)","v":0},{"$f":"SUMIFS('Step 4 bond aggregation'!$B$2:$B$661,'Step 4 bond aggregation'!$A$2:$A$661,$BK$69,'Step 4 bond aggregation'!$F$2:$F$661,BQ$72,'Step 4 bond aggregation'!$G$2:$G$661,MATCH($BB85,lov_term_buckets,0),'Step 4 bond aggregation'!$E$2:$E$661,$BC$80)","v":0},{"$f":"SUMIFS('Step 4 bond aggregation'!$B$2:$B$661,'Step 4 bond aggregation'!$A$2:$A$661,$BK$69,'Step 4 bond aggregation'!$F$2:$F$661,BR$72,'Step 4 bond aggregation'!$G$2:$G$661,MATCH($BB85,lov_term_buckets,0),'Step 4 bond aggregation'!$E$2:$E$661,$BC$80)","v":0},{"$f":"SUMIFS('Step 4 bond aggregation'!$B$2:$B$661,'Step 4 bond aggregation'!$A$2:$A$661,$BK$69,'Step 4 bond aggregation'!$F$2:$F$661,BS$72,'Step 4 bond aggregation'!$G$2:$G$661,MATCH($BB85,lov_term_buckets,0),'Step 4 bond aggregation'!$E$2:$E$661,$BC$80)","v":0},null,null,"10.01 to 20",{"$f":"SUMIFS('Step 4 bond aggregation'!$B$2:$B$661,'Step 4 bond aggregation'!$A$2:$A$661,$BU$69,'Step 4 bond aggregation'!$F$2:$F$661,BW$72,'Step 4 bond aggregation'!$G$2:$G$661,MATCH($BB85,lov_term_buckets,0),'Step 4 bond aggregation'!$E$2:$E$661,$BC$80)","v":0},{"$f":"SUMIFS('Step 4 bond aggregation'!$B$2:$B$661,'Step 4 bond aggregation'!$A$2:$A$661,$BU$69,'Step 4 bond aggregation'!$F$2:$F$661,BX$72,'Step 4 bond aggregation'!$G$2:$G$661,MATCH($BB85,lov_term_buckets,0),'Step 4 bond aggregation'!$E$2:$E$661,$BC$80)","v":0},{"$f":"SUMIFS('Step 4 bond aggregation'!$B$2:$B$661,'Step 4 bond aggregation'!$A$2:$A$661,$BU$69,'Step 4 bond aggregation'!$F$2:$F$661,BY$72,'Step 4 bond aggregation'!$G$2:$G$661,MATCH($BB85,lov_term_buckets,0),'Step 4 bond aggregation'!$E$2:$E$661,$BC$80)","v":0},{"$f":"SUMIFS('Step 4 bond aggregation'!$B$2:$B$661,'Step 4 bond aggregation'!$A$2:$A$661,$BU$69,'Step 4 bond aggregation'!$F$2:$F$661,BZ$72,'Step 4 bond aggregation'!$G$2:$G$661,MATCH($BB85,lov_term_buckets,0),'Step 4 bond aggregation'!$E$2:$E$661,$BC$80)","v":0},{"$f":"SUMIFS('Step 4 bond aggregation'!$B$2:$B$661,'Step 4 bond aggregation'!$A$2:$A$661,$BU$69,'Step 4 bond aggregation'!$F$2:$F$661,CA$72,'Step 4 bond aggregation'!$G$2:$G$661,MATCH($BB85,lov_term_buckets,0),'Step 4 bond aggregation'!$E$2:$E$661,$BC$80)","v":0},{"$f":"SUMIFS('Step 4 bond aggregation'!$B$2:$B$661,'Step 4 bond aggregation'!$A$2:$A$661,$BU$69,'Step 4 bond aggregation'!$F$2:$F$661,CB$72,'Step 4 bond aggregation'!$G$2:$G$661,MATCH($BB85,lov_term_buckets,0),'Step 4 bond aggregation'!$E$2:$E$661,$BC$80)","v":0},{"$f":"SUMIFS('Step 4 bond aggregation'!$B$2:$B$661,'Step 4 bond aggregation'!$A$2:$A$661,$BU$69,'Step 4 bond aggregation'!$F$2:$F$661,CC$72,'Step 4 bond aggregation'!$G$2:$G$661,MATCH($BB85,lov_term_buckets,0),'Step 4 bond aggregation'!$E$2:$E$661,$BC$80)","v":0}]
[null,null,"More than 20",{"$f":"Input!F95","v":0},{"$f":"Input!G95","v":0},{"$f":"Input!H95","v":0},{"$f":"Input!I95","v":0},{"$f":"Input!J95","v":0},{"$f":"Input!K95","v":0},{"$f":"Input!L95","v":0},{"$f":"Input!M95","v":0},null,null,"More than 20",{"$f":"Input!F135+Input!F168","v":0},{"$f":"Input!G135+Input!G168","v":0},{"$f":"Input!H135+Input!H168","v":0},{"$f":"Input!I135+Input!I168","v":0},{"$f":"Input!J135+Input!J168","v":0},{"$f":"Input!K135+Input!K168","v":0},{"$f":"Input!L135+Input!L168","v":0},null,null,"More than 20",{"$f":"SUMIFS('Step 4 bond aggregation'!$B$2:$B$661,'Step 4 bond aggregation'!$A$2:$A$661,$W$69,'Step 4 bond aggregation'!$F$2:$F$661,Y$72,'Step 4 bond aggregation'!$G$2:$G$661,MATCH($X86,lov_term_buckets,0),'Step 4 bond aggregation'!$E$2:$E$661,$Y$80)","v":0},{"$f":"SUMIFS('Step 4 bond aggregation'!$B$2:$B$661,'Step 4 bond aggregation'!$A$2:$A$661,$W$69,'Step 4 bond aggregation'!$F$2:$F$661,Z$72,'Step 4 bond aggregation'!$G$2:$G$661,MATCH($X86,lov_term_buckets,0),'Step 4 bond aggregation'!$E$2:$E$661,$Y$80)","v":0},{"$f":"SUMIFS('Step 4 bond aggregation'!$B$2:$B$661,'Step 4 bond aggregation'!$A$2:$A$661,$W$69,'Step 4 bond aggregation'!$F$2:$F$661,AA$72,'Step 4 bond aggregation'!$G$2:$G$661,MATCH($X86,lov_term_buckets,0),'Step 4 bond aggregation'!$E$2:$E$661,$Y$80)","v":0},{"$f":"SUMIFS('Step 4 bond aggregation'!$B$2:$B$661,'Step 4 bond aggregation'!$A$2:$A$661,$W$69,'Step 4 bond aggregation'!$F$2:$F$661,AB$72,'Step 4 bond aggregation'!$G$2:$G$661,MATCH($X86,lov_term_buckets,0),'Step 4 bond aggregation'!$E$2:$E$661,$Y$80)","v":0},{"$f":"SUMIFS('Step 4 bond aggregation'!$B$2:$B$661,'Step 4 bond aggregation'!$A$2:$A$661,$W$69,'Step 4 bond aggregation'!$F$2:$F$661,AC$72,'Step 4 bond aggregation'!$G$2:$G$661,MATCH($X86,lov_term_buckets,0),'Step 4 bond aggregation'!$E$2:$E$661,$Y$80)","v":0},{"$f":"SUMIFS('Step 4 bond aggregation'!$B$2:$B$661,'Step 4 bond aggregation'!$A$2:$A$661,$W$69,'Step 4 bond aggregation'!$F$2:$F$661,AD$72,'Step 4 bond aggregation'!$G$2:$G$661,MATCH($X86,lov_term_buckets,0),'Step 4 bond aggregation'!$E$2:$E$661,$Y$80)","v":0},{"$f":"SUMIFS('Step 4 bond aggregation'!$B$2:$B$661,'Step 4 bond aggregation'!$A$2:$A$661,$W$69,'Step 4 bond aggregation'!$F$2:$F$661,AE$72,'Step 4 bond aggregation'!$G$2:$G$661,MATCH($X86,lov_term_buckets,0),'Step 4 bond aggregation'!$E$2:$E$661,$Y$80)","v":0},null,null,"More than 20",{"$f":"SUMIFS('Step 4 bond aggregation'!$B$2:$B$661,'Step 4 bond aggregation'!$A$2:$A$661,$AG$69,'Step 4 bond aggregation'!$F$2:$F$661,AI$72,'Step 4 bond aggregation'!$G$2:$G$661,MATCH($AH86,lov_term_buckets,0),'Step 4 bond aggregation'!$E$2:$E$661,$AI$80)","v":0},{"$f":"SUMIFS('Step 4 bond aggregation'!$B$2:$B$661,'Step 4 bond aggregation'!$A$2:$A$661,$AG$69,'Step 4 bond aggregation'!$F$2:$F$661,AJ$72,'Step 4 bond aggregation'!$G$2:$G$661,MATCH($AH86,lov_term_buckets,0),'Step 4 bond aggregation'!$E$2:$E$661,$AI$80)","v":0},{"$f":"SUMIFS('Step 4 bond aggregation'!$B$2:$B$661,'Step 4 bond aggregation'!$A$2:$A$661,$AG$69,'Step 4 bond aggregation'!$F$2:$F$661,AK$72,'Step 4 bond aggregation'!$G$2:$G$661,MATCH($AH86,lov_term_buckets,0),'Step 4 bond aggregation'!$E$2:$E$661,$AI$80)","v":0},{"$f":"SUMIFS('Step 4 bond aggregation'!$B$2:$B$661,'Step 4 bond aggregation'!$A$2:$A$661,$AG$69,'Step 4 bond aggregation'!$F$2:$F$661,AL$72,'Step 4 bond aggregation'!$G$2:$G$661,MATCH($AH86,lov_term_buckets,0),'Step 4 bond aggregation'!$E$2:$E$661,$AI$80)","v":0},{"$f":"SUMIFS('Step 4 bond aggregation'!$B$2:$B$661,'Step 4 bond aggregation'!$A$2:$A$661,$AG$69,'Step 4 bond aggregation'!$F$2:$F$661,AM$72,'Step 4 bond aggregation'!$G$2:$G$661,MATCH($AH86,lov_term_buckets,0),'Step 4 bond aggregation'!$E$2:$E$661,$AI$80)","v":0},{"$f":"SUMIFS('Step 4 bond aggregation'!$B$2:$B$661,'Step 4 bond aggregation'!$A$2:$A$661,$AG$69,'Step 4 bond aggregation'!$F$2:$F$661,AN$72,'Step 4 bond aggregation'!$G$2:$G$661,MATCH($AH86,lov_term_buckets,0),'Step 4 bond aggregation'!$E$2:$E$661,$AI$80)","v":0},{"$f":"SUMIFS('Step 4 bond aggregation'!$B$2:$B$661,'Step 4 bond aggregation'!$A$2:$A$661,$AG$69,'Step 4 bond aggregation'!$F$2:$F$661,AO$72,'Step 4 bond aggregation'!$G$2:$G$661,MATCH($AH86,lov_term_buckets,0),'Step 4 bond aggregation'!$E$2:$E$661,$AI$80)","v":0},null,null,"More than 20",{"$f":"SUMIFS('Step 4 bond aggregation'!$B$2:$B$661,'Step 4 bond aggregation'!$A$2:$A$661,$AQ$69,'Step 4 bond aggregation'!$F$2:$F$661,AS$72,'Step 4 bond aggregation'!$G$2:$G$661,MATCH($AR86,lov_term_buckets,0),'Step 4 bond aggregation'!$E$2:$E$661,$AS$80)","v":0},{"$f":"SUMIFS('Step 4 bond aggregation'!$B$2:$B$661,'Step 4 bond aggregation'!$A$2:$A$661,$AQ$69,'Step 4 bond aggregation'!$F$2:$F$661,AT$72,'Step 4 bond aggregation'!$G$2:$G$661,MATCH($AR86,lov_term_buckets,0),'Step 4 bond aggregation'!$E$2:$E$661,$AS$80)","v":0},{"$f":"SUMIFS('Step 4 bond aggregation'!$B$2:$B$661,'Step 4 bond aggregation'!$A$2:$A$661,$AQ$69,'Step 4 bond aggregation'!$F$2:$F$661,AU$72,'Step 4 bond aggregation'!$G$2:$G$661,MATCH($AR86,lov_term_buckets,0),'Step 4 bond aggregation'!$E$2:$E$661,$AS$80)","v":0},{"$f":"SUMIFS('Step 4 bond aggregation'!$B$2:$B$661,'Step 4 bond aggregation'!$A$2:$A$661,$AQ$69,'Step 4 bond aggregation'!$F$2:$F$661,AV$72,'Step 4 bond aggregation'!$G$2:$G$661,MATCH($AR86,lov_term_buckets,0),'Step 4 bond aggregation'!$E$2:$E$661,$AS$80)","v":0},{"$f":"SUMIFS('Step 4 bond aggregation'!$B$2:$B$661,'Step 4 bond aggregation'!$A$2:$A$661,$AQ$69,'Step 4 bond aggregation'!$F$2:$F$661,AW$72,'Step 4 bond aggregation'!$G$2:$G$661,MATCH($AR86,lov_term_buckets,0),'Step 4 bond aggregation'!$E$2:$E$661,$AS$80)","v":0},{"$f":"SUMIFS('Step 4 bond aggregation'!$B$2:$B$661,'Step 4 bond aggregation'!$A$2:$A$661,$AQ$69,'Step 4 bond aggregation'!$F$2:$F$661,AX$72,'Step 4 bond aggregation'!$G$2:$G$661,MATCH($AR86,lov_term_buckets,0),'Step 4 bond aggregation'!$E$2:$E$661,$AS$80)","v":0},{"$f":"SUMIFS('Step 4 bond aggregation'!$B$2:$B$661,'Step 4 bond aggregation'!$A$2:$A$661,$AQ$69,'Step 4 bond aggregation'!$F$2:$F$661,AY$72,'Step 4 bond aggregation'!$G$2:$G$661,MATCH($AR86,lov_term_buckets,0),'Step 4 bond aggregation'!$E$2:$E$661,$AS$80)","v":0},null,null,"More than 20",{"$f":"SUMIFS('Step 4 bond aggregation'!$B$2:$B$661,'Step 4 bond aggregation'!$A$2:$A$661,$BA$69,'Step 4 bond aggregation'!$F$2:$F$661,BC$72,'Step 4 bond aggregation'!$G$2:$G$661,MATCH($BB86,lov_term_buckets,0),'Step 4 bond aggregation'!$E$2:$E$661,$BC$80)","v":0},{"$f":"SUMIFS('Step 4 bond aggregation'!$B$2:$B$661,'Step 4 bond aggregation'!$A$2:$A$661,$BA$69,'Step 4 bond aggregation'!$F$2:$F$661,BD$72,'Step 4 bond aggregation'!$G$2:$G$661,MATCH($BB86,lov_term_buckets,0),'Step 4 bond aggregation'!$E$2:$E$661,$BC$80)","v":0},{"$f":"SUMIFS('Step 4 bond aggregation'!$B$2:$B$661,'Step 4 bond aggregation'!$A$2:$A$661,$BA$69,'Step 4 bond aggregation'!$F$2:$F$661,BE$72,'Step 4 bond aggregation'!$G$2:$G$661,MATCH($BB86,lov_term_buckets,0),'Step 4 bond aggregation'!$E$2:$E$661,$BC$80)","v":0},{"$f":"SUMIFS('Step 4 bond aggregation'!$B$2:$B$661,'Step 4 bond aggregation'!$A$2:$A$661,$BA$69,'Step 4 bond aggregation'!$F$2:$F$661,BF$72,'Step 4 bond aggregation'!$G$2:$G$661,MATCH($BB86,lov_term_buckets,0),'Step 4 bond aggregation'!$E$2:$E$661,$BC$80)","v":0},{"$f":"SUMIFS('Step 4 bond aggregation'!$B$2:$B$661,'Step 4 bond aggregation'!$A$2:$A$661,$BA$69,'Step 4 bond aggregation'!$F$2:$F$661,BG$72,'Step 4 bond aggregation'!$G$2:$G$661,MATCH($BB86,lov_term_buckets,0),'Step 4 bond aggregation'!$E$2:$E$661,$BC$80)","v":0},{"$f":"SUMIFS('Step 4 bond aggregation'!$B$2:$B$661,'Step 4 bond aggregation'!$A$2:$A$661,$BA$69,'Step 4 bond aggregation'!$F$2:$F$661,BH$72,'Step 4 bond aggregation'!$G$2:$G$661,MATCH($BB86,lov_term_buckets,0),'Step 4 bond aggregation'!$E$2:$E$661,$BC$80)","v":0},{"$f":"SUMIFS('Step 4 bond aggregation'!$B$2:$B$661,'Step 4 bond aggregation'!$A$2:$A$661,$BA$69,'Step 4 bond aggregation'!$F$2:$F$661,BI$72,'Step 4 bond aggregation'!$G$2:$G$661,MATCH($BB86,lov_term_buckets,0),'Step 4 bond aggregation'!$E$2:$E$661,$BC$80)","v":0},null,null,"More than 20",{"$f":"SUMIFS('Step 4 bond aggregation'!$B$2:$B$661,'Step 4 bond aggregation'!$A$2:$A$661,$BK$69,'Step 4 bond aggregation'!$F$2:$F$661,BM$72,'Step 4 bond aggregation'!$G$2:$G$661,MATCH($BB86,lov_term_buckets,0),'Step 4 bond aggregation'!$E$2:$E$661,$BC$80)","v":0},{"$f":"SUMIFS('Step 4 bond aggregation'!$B$2:$B$661,'Step 4 bond aggregation'!$A$2:$A$661,$BK$69,'Step 4 bond aggregation'!$F$2:$F$661,BN$72,'Step 4 bond aggregation'!$G$2:$G$661,MATCH($BB86,lov_term_buckets,0),'Step 4 bond aggregation'!$E$2:$E$661,$BC$80)","v":0},{"$f":"SUMIFS('Step 4 bond aggregation'!$B$2:$B$661,'Step 4 bond aggregation'!$A$2:$A$661,$BK$69,'Step 4 bond aggregation'!$F$2:$F$661,BO$72,'Step 4 bond aggregation'!$G$2:$G$661,MATCH($BB86,lov_term_buckets,0),'Step 4 bond aggregation'!$E$2:$E$661,$BC$80)","v":0},{"$f":"SUMIFS('Step 4 bond aggregation'!$B$2:$B$661,'Step 4 bond aggregation'!$A$2:$A$661,$BK$69,'Step 4 bond aggregation'!$F$2:$F$661,BP$72,'Step 4 bond aggregation'!$G$2:$G$661,MATCH($BB86,lov_term_buckets,0),'Step 4 bond aggregation'!$E$2:$E$661,$BC$80)","v":0},{"$f":"SUMIFS('Step 4 bond aggregation'!$B$2:$B$661,'Step 4 bond aggregation'!$A$2:$A$661,$BK$69,'Step 4 bond aggregation'!$F$2:$F$661,BQ$72,'Step 4 bond aggregation'!$G$2:$G$661,MATCH($BB86,lov_term_buckets,0),'Step 4 bond aggregation'!$E$2:$E$661,$BC$80)","v":0},{"$f":"SUMIFS('Step 4 bond aggregation'!$B$2:$B$661,'Step 4 bond aggregation'!$A$2:$A$661,$BK$69,'Step 4 bond aggregation'!$F$2:$F$661,BR$72,'Step 4 bond aggregation'!$G$2:$G$661,MATCH($BB86,lov_term_buckets,0),'Step 4 bond aggregation'!$E$2:$E$661,$BC$80)","v":0},{"$f":"SUMIFS('Step 4 bond aggregation'!$B$2:$B$661,'Step 4 bond aggregation'!$A$2:$A$661,$BK$69,'Step 4 bond aggregation'!$F$2:$F$661,BS$72,'Step 4 bond aggregation'!$G$2:$G$661,MATCH($BB86,lov_term_buckets,0),'Step 4 bond aggregation'!$E$2:$E$661,$BC$80)","v":0},null,null,"More than 20",{"$f":"SUMIFS('Step 4 bond aggregation'!$B$2:$B$661,'Step 4 bond aggregation'!$A$2:$A$661,$BU$69,'Step 4 bond aggregation'!$F$2:$F$661,BW$72,'Step 4 bond aggregation'!$G$2:$G$661,MATCH($BB86,lov_term_buckets,0),'Step 4 bond aggregation'!$E$2:$E$661,$BC$80)","v":0},{"$f":"SUMIFS('Step 4 bond aggregation'!$B$2:$B$661,'Step 4 bond aggregation'!$A$2:$A$661,$BU$69,'Step 4 bond aggregation'!$F$2:$F$661,BX$72,'Step 4 bond aggregation'!$G$2:$G$661,MATCH($BB86,lov_term_buckets,0),'Step 4 bond aggregation'!$E$2:$E$661,$BC$80)","v":0},{"$f":"SUMIFS('Step 4 bond aggregation'!$B$2:$B$661,'Step 4 bond aggregation'!$A$2:$A$661,$BU$69,'Step 4 bond aggregation'!$F$2:$F$661,BY$72,'Step 4 bond aggregation'!$G$2:$G$661,MATCH($BB86,lov_term_buckets,0),'Step 4 bond aggregation'!$E$2:$E$661,$BC$80)","v":0},{"$f":"SUMIFS('Step 4 bond aggregation'!$B$2:$B$661,'Step 4 bond aggregation'!$A$2:$A$661,$BU$69,'Step 4 bond aggregation'!$F$2:$F$661,BZ$72,'Step 4 bond aggregation'!$G$2:$G$661,MATCH($BB86,lov_term_buckets,0),'Step 4 bond aggregation'!$E$2:$E$661,$BC$80)","v":0},{"$f":"SUMIFS('Step 4 bond aggregation'!$B$2:$B$661,'Step 4 bond aggregation'!$A$2:$A$661,$BU$69,'Step 4 bond aggregation'!$F$2:$F$661,CA$72,'Step 4 bond aggregation'!$G$2:$G$661,MATCH($BB86,lov_term_buckets,0),'Step 4 bond aggregation'!$E$2:$E$661,$BC$80)","v":0},{"$f":"SUMIFS('Step 4 bond aggregation'!$B$2:$B$661,'Step 4 bond aggregation'!$A$2:$A$661,$BU$69,'Step 4 bond aggregation'!$F$2:$F$661,CB$72,'Step 4 bond aggregation'!$G$2:$G$661,MATCH($BB86,lov_term_buckets,0),'Step 4 bond aggregation'!$E$2:$E$661,$BC$80)","v":0},{"$f":"SUMIFS('Step 4 bond aggregation'!$B$2:$B$661,'Step 4 bond aggregation'!$A$2:$A$661,$BU$69,'Step 4 bond aggregation'!$F$2:$F$661,CC$72,'Step 4 bond aggregation'!$G$2:$G$661,MATCH($BB86,lov_term_buckets,0),'Step 4 bond aggregation'!$E$2:$E$661,$BC$80)","v":0}]
[null,null,"Total",{"$f":"SUM(D82:K86)","v":0},null,null,null,null,null,null,null,null,null,"Total",{"$f":"SUM(O82:U86)","v":0},null,null,null,null,null,null,null,null,"Total",{"$f":"SUM(Y82:AE86)","v":0},null,null,null,null,null,null,null,null,"Total",{"$f":"SUM(AI82:AO86)","v":0},null,null,null,null,null,null,null,null,"Total",{"$f":"SUM(AS82:AY86)","v":0},null,null,null,null,null,null,null,null,"Total",{"$f":"SUM(BC82:BI86)","v":0},null,null,null,null,null,null,null,null,"Total",{"$f":"SUM(BM82:BS86)","v":0},null,null,null,null,null,null,null,null,"Total",{"$f":"SUM(BW82:CC86)","v":0}]
[]
[null,null,"Credit Risk Recovery Category",{"$f":"Lists!$C$5","v":3},null,null,null,null,null,null,null,null,null,"Credit Risk Recovery Category",{"$f":"Lists!$C$5","v":3},null,null,null,null,null,null,null,null,"Credit Risk Recovery Category",{"$f":"Lists!$C$5","v":3},null,null,null,null,null,null,null,null,"Credit Risk Recovery Category",{"$f":"Lists!$C$5","v":3},null,null,null,null,null,null,null,null,"Credit Risk Recovery Category",{"$f":"Lists!$C$5","v":3},null,null,null,null,null,null,null,null,"Credit Risk Recovery Category",{"$f":"Lists!$C$5","v":3},null,null,null,null,null,null,null,null,"Credit Risk Recovery Category",{"$f":"Lists!$C$5","v":3},null,null,null,null,null,null,null,null,"Credit Risk Recovery Category",{"$f":"Lists!$C$5","v":3}]
[null,null,"Term (years)","AAA","AA","A","BBB","BB","B","CCC-C","D",null,null,"Term (years)","AAA","AA","A","BBB","BB","B","CCC-C",null,null,"Term (years)","AAA","AA","A","BBB","BB","B","CCC-C",null,null,"Term (years)","AAA","AA","A","BBB","BB","B","CCC-C",null,null,"Term (years)","AAA","AA","A","BBB","BB","B","CCC-C",null,null,"Term (years)","AAA","AA","A","BBB","BB","B","CCC-C",null,null,"Term (years)","AAA","AA","A","BBB","BB","B","CCC-C",null,null,"Term (years)","AAA","AA","A","BBB","BB","B","CCC-C"]
[null,null,"Upto 1",{"$f":"Input!F99","v":0},{"$f":"Input!G99","v":0},{"$f":"Input!H99","v":0},{"$f":"Input!I99","v":0},{"$f":"Input!J99","v":0},{"$f":"Input!K99","v":0},{"$f":"Input!L99","v":0},{"$f":"Input!M99","v":0},null,null,"Upto 1",{"$f":"Input!F139+Input!F172","v":0},{"$f":"Input!G139+Input!G172","v":0},{"$f":"Input!H139+Input!H172","v":0},{"$f":"Input!I139+Input!I172","v":0},{"$f":"Input!J139+Input!J172","v":0},{"$f":"Input!K139+Input!K172","v":0},{"$f":"Input!L139+Input!L172","v":0},null,null,"Upto 1",{"$f":"SUMIFS('Step 4 bond aggregation'!$B$2:$B$661,'Step 4 bond aggregation'!$A$2:$A$661,$W$69,'Step 4 bond aggregation'!$F$2:$F$661,Y$72,'Step 4 bond aggregation'!$G$2:$G$661,MATCH($X91,lov_term_buckets,0),'Step 4 bond aggregation'!$E$2:$E$661,$Y$89)","v":0},{"$f":"SUMIFS('Step 4 bond aggregation'!$B$2:$B$661,'Step 4 bond aggregation'!$A$2:$A$661,$W$69,'Step 4 bond aggregation'!$F$2:$F$661,Z$72,'Step 4 bond aggregation'!$G$2:$G$661,MATCH($X91,lov_term_buckets,0),'Step 4 bond aggregation'!$E$2:$E$661,$Y$89)","v":0},{"$f":"SUMIFS('Step 4 bond aggregation'!$B$2:$B$661,'Step 4 bond aggregation'!$A$2:$A$661,$W$69,'Step 4 bond aggregation'!$F$2:$F$661,AA$72,'Step 4 bond aggregation'!$G$2:$G$661,MATCH($X91,lov_term_buckets,0),'Step 4 bond aggregation'!$E$2:$E$661,$Y$89)","v":0},{"$f":"SUMIFS('Step 4 bond aggregation'!$B$2:$B$661,'Step 4 bond aggregation'!$A$2:$A$661,$W$69,'Step 4 bond aggregation'!$F$2:$F$661,AB$72,'Step 4 bond aggregation'!$G$2:$G$661,MATCH($X91,lov_term_buckets,0),'Step 4 bond aggregation'!$E$2:$E$661,$Y$89)","v":0},{"$f":"SUMIFS('Step 4 bond aggregation'!$B$2:$B$661,'Step 4 bond aggregation'!$A$2:$A$661,$W$69,'Step 4 bond aggregation'!$F$2:$F$661,AC$72,'Step 4 bond aggregation'!$G$2:$G$661,MATCH($X91,lov_term_buckets,0),'Step 4 bond aggregation'!$E$2:$E$661,$Y$89)","v":0},{"$f":"SUMIFS('Step 4 bond aggregation'!$B$2:$B$661,'Step 4 bond aggregation'!$A$2:$A$661,$W$69,'Step 4 bond aggregation'!$F$2:$F$661,AD$72,'Step 4 bond aggregation'!$G$2:$G$661,MATCH($X91,lov_term_buckets,0),'Step 4 bond aggregation'!$E$2:$E$661,$Y$89)","v":0},{"$f":"SUMIFS('Step 4 bond aggregation'!$B$2:$B$661,'Step 4 bond aggregation'!$A$2:$A$661,$W$69,'Step 4 bond aggregation'!$F$2:$F$661,AE$72,'Step 4 bond aggregation'!$G$2:$G$661,MATCH($X91,lov_term_buckets,0),'Step 4 bond aggregation'!$E$2:$E$661,$Y$89)","v":0},null,null,"Upto 1",{"$f":"SUMIFS('Step 4 bond aggregation'!$B$2:$B$661,'Step 4 bond aggregation'!$A$2:$A$661,$AG$69,'Step 4 bond aggregation'!$F$2:$F$661,AI$72,'Step 4 bond aggregation'!$G$2:$G$661,MATCH($AH91,lov_term_buckets,0),'Step 4 bond aggregation'!$E$2:$E$661,$AI$89)","v":0},{"$f":"SUMIFS('Step 4 bond aggregation'!$B$2:$B$661,'Step 4 bond aggregation'!$A$2:$A$661,$AG$69,'Step 4 bond aggregation'!$F$2:$F$661,AJ$72,'Step 4 bond aggregation'!$G$2:$G$661,MATCH($AH91,lov_term_buckets,0),'Step 4 bond aggregation'!$E$2:$E$661,$AI$89)","v":0},{"$f":"SUMIFS('Step 4 bond aggregation'!$B$2:$B$661,'Step 4 bond aggregation'!$A$2:$A$661,$AG$69,'Step 4 bond aggregation'!$F$2:$F$661,AK$72,'Step 4 bond aggregation'!$G$2:$G$661,MATCH($AH91,lov_term_buckets,0),'Step 4 bond aggregation'!$E$2:$E$661,$AI$89)","v":0},{"$f":"SUMIFS('Step 4 bond aggregation'!$B$2:$B$661,'Step 4 bond aggregation'!$A$2:$A$661,$AG$69,'Step 4 bond aggregation'!$F$2:$F$661,AL$72,'Step 4 bond aggregation'!$G$2:$G$661,MATCH($AH91,lov_term_buckets,0),'Step 4 bond aggregation'!$E$2:$E$661,$AI$89)","v":0},{"$f":"SUMIFS('Step 4 bond aggregation'!$B$2:$B$661,'Step 4 bond aggregation'!$A$2:$A$661,$AG$69,'Step 4 bond aggregation'!$F$2:$F$661,AM$72,'Step 4 bond aggregation'!$G$2:$G$661,MATCH($AH91,lov_term_buckets,0),'Step 4 bond aggregation'!$E$2:$E$661,$AI$89)","v":0},{"$f":"SUMIFS('Step 4 bond aggregation'!$B$2:$B$661,'Step 4 bond aggregation'!$A$2:$A$661,$AG$69,'Step 4 bond aggregation'!$F$2:$F$661,AN$72,'Step 4 bond aggregation'!$G$2:$G$661,MATCH($AH91,lov_term_buckets,0),'Step 4 bond aggregation'!$E$2:$E$661,$AI$89)","v":0},{"$f":"SUMIFS('Step 4 bond aggregation'!$B$2:$B$661,'Step 4 bond aggregation'!$A$2:$A$661,$AG$69,'Step 4 bond aggregation'!$F$2:$F$661,AO$72,'Step 4 bond aggregation'!$G$2:$G$661,MATCH($AH91,lov_term_buckets,0),'Step 4 bond aggregation'!$E$2:$E$661,$AI$89)","v":0},null,null,"Upto 1",{"$f":"SUMIFS('Step 4 bond aggregation'!$B$2:$B$661,'Step 4 bond aggregation'!$A$2:$A$661,$AQ$69,'Step 4 bond aggregation'!$F$2:$F$661,AS$72,'Step 4 bond aggregation'!$G$2:$G$661,MATCH($AR91,lov_term_buckets,0),'Step 4 bond aggregation'!$E$2:$E$661,$AS$89)","v":0},{"$f":"SUMIFS('Step 4 bond aggregation'!$B$2:$B$661,'Step 4 bond aggregation'!$A$2:$A$661,$AQ$69,'Step 4 bond aggregation'!$F$2:$F$661,AT$72,'Step 4 bond aggregation'!$G$2:$G$661,MATCH($AR91,lov_term_buckets,0),'Step 4 bond aggregation'!$E$2:$E$661,$AS$89)","v":0},{"$f":"SUMIFS('Step 4 bond aggregation'!$B$2:$B$661,'Step 4 bond aggregation'!$A$2:$A$661,$AQ$69,'Step 4 bond aggregation'!$F$2:$F$661,AU$72,'Step 4 bond aggregation'!$G$2:$G$661,MATCH($AR91,lov_term_buckets,0),'Step 4 bond aggregation'!$E$2:$E$661,$AS$89)","v":0},{"$f":"SUMIFS('Step 4 bond aggregation'!$B$2:$B$661,'Step 4 bond aggregation'!$A$2:$A$661,$AQ$69,'Step 4 bond aggregation'!$F$2:$F$661,AV$72,'Step 4 bond aggregation'!$G$2:$G$661,MATCH($AR91,lov_term_buckets,0),'Step 4 bond aggregation'!$E$2:$E$661,$AS$89)","v":0},{"$f":"SUMIFS('Step 4 bond aggregation'!$B$2:$B$661,'Step 4 bond aggregation'!$A$2:$A$661,$AQ$69,'Step 4 bond aggregation'!$F$2:$F$661,AW$72,'Step 4 bond aggregation'!$G$2:$G$661,MATCH($AR91,lov_term_buckets,0),'Step 4 bond aggregation'!$E$2:$E$661,$AS$89)","v":0},{"$f":"SUMIFS('Step 4 bond aggregation'!$B$2:$B$661,'Step 4 bond aggregation'!$A$2:$A$661,$AQ$69,'Step 4 bond aggregation'!$F$2:$F$661,AX$72,'Step 4 bond aggregation'!$G$2:$G$661,MATCH($AR91,lov_term_buckets,0),'Step 4 bond aggregation'!$E$2:$E$661,$AS$89)","v":0},{"$f":"SUMIFS('Step 4 bond aggregation'!$B$2:$B$661,'Step 4 bond aggregation'!$A$2:$A$661,$AQ$69,'Step 4 bond aggregation'!$F$2:$F$661,AY$72,'Step 4 bond aggregation'!$G$2:$G$661,MATCH($AR91,lov_term_buckets,0),'Step 4 bond aggregation'!$E$2:$E$661,$AS$89)","v":0},null,null,"Upto 1",{"$f":"SUMIFS('Step 4 bond aggregation'!$B$2:$B$661,'Step 4 bond aggregation'!$A$2:$A$661,$BA$69,'Step 4 bond aggregation'!$F$2:$F$661,BC$72,'Step 4 bond aggregation'!$G$2:$G$661,MATCH($BB91,lov_term_buckets,0),'Step 4 bond aggregation'!$E$2:$E$661,$BC$89)","v":0},{"$f":"SUMIFS('Step 4 bond aggregation'!$B$2:$B$661,'Step 4 bond aggregation'!$A$2:$A$661,$BA$69,'Step 4 bond aggregation'!$F$2:$F$661,BD$72,'Step 4 bond aggregation'!$G$2:$G$661,MATCH($BB91,lov_term_buckets,0),'Step 4 bond aggregation'!$E$2:$E$661,$BC$89)","v":0},{"$f":"SUMIFS('Step 4 bond aggregation'!$B$2:$B$661,'Step 4 bond aggregation'!$A$2:$A$661,$BA$69,'Step 4 bond aggregation'!$F$2:$F$661,BE$72,'Step 4 bond aggregation'!$G$2:$G$661,MATCH($BB91,lov_term_buckets,0),'Step 4 bond aggregation'!$E$2:$E$661,$BC$89)","v":0},{"$f":"SUMIFS('Step 4 bond aggregation'!$B$2:$B$661,'Step 4 bond aggregation'!$A$2:$A$661,$BA$69,'Step 4 bond aggregation'!$F$2:$F$661,BF$72,'Step 4 bond aggregation'!$G$2:$G$661,MATCH($BB91,lov_term_buckets,0),'Step 4 bond aggregation'!$E$2:$E$661,$BC$89)","v":0},{"$f":"SUMIFS('Step 4 bond aggregation'!$B$2:$B$661,'Step 4 bond aggregation'!$A$2:$A$661,$BA$69,'Step 4 bond aggregation'!$F$2:$F$661,BG$72,'Step 4 bond aggregation'!$G$2:$G$661,MATCH($BB91,lov_term_buckets,0),'Step 4 bond aggregation'!$E$2:$E$661,$BC$89)","v":0},{"$f":"SUMIFS('Step 4 bond aggregation'!$B$2:$B$661,'Step 4 bond aggregation'!$A$2:$A$661,$BA$69,'Step 4 bond aggregation'!$F$2:$F$661,BH$72,'Step 4 bond aggregation'!$G$2:$G$661,MATCH($BB91,lov_term_buckets,0),'Step 4 bond aggregation'!$E$2:$E$661,$BC$89)","v":0},{"$f":"SUMIFS('Step 4 bond aggregation'!$B$2:$B$661,'Step 4 bond aggregation'!$A$2:$A$661,$BA$69,'Step 4 bond aggregation'!$F$2:$F$661,BI$72,'Step 4 bond aggregation'!$G$2:$G$661,MATCH($BB91,lov_term_buckets,0),'Step 4 bond aggregation'!$E$2:$E$661,$BC$89)","v":0},null,null,"Upto 1",{"$f":"SUMIFS('Step 4 bond aggregation'!$B$2:$B$661,'Step 4 bond aggregation'!$A$2:$A$661,$BK$69,'Step 4 bond aggregation'!$F$2:$F$661,BM$72,'Step 4 bond aggregation'!$G$2:$G$661,MATCH($BB91,lov_term_buckets,0),'Step 4 bond aggregation'!$E$2:$E$661,$BC$89)","v":0},{"$f":"SUMIFS('Step 4 bond aggregation'!$B$2:$B$661,'Step 4 bond aggregation'!$A$2:$A$661,$BK$69,'Step 4 bond aggregation'!$F$2:$F$661,BN$72,'Step 4 bond aggregation'!$G$2:$G$661,MATCH($BB91,lov_term_buckets,0),'Step 4 bond aggregation'!$E$2:$E$661,$BC$89)","v":0},{"$f":"SUMIFS('Step 4 bond aggregation'!$B$2:$B$661,'Step 4 bond aggregation'!$A$2:$A$661,$BK$69,'Step 4 bond aggregation'!$F$2:$F$661,BO$72,'Step 4 bond aggregation'!$G$2:$G$661,MATCH($BB91,lov_term_buckets,0),'Step 4 bond aggregation'!$E$2:$E$661,$BC$89)","v":0},{"$f":"SUMIFS('Step 4 bond aggregation'!$B$2:$B$661,'Step 4 bond aggregation'!$A$2:$A$661,$BK$69,'Step 4 bond aggregation'!$F$2:$F$661,BP$72,'Step 4 bond aggregation'!$G$2:$G$661,MATCH($BB91,lov_term_buckets,0),'Step 4 bond aggregation'!$E$2:$E$661,$BC$89)","v":0},{"$f":"SUMIFS('Step 4 bond aggregation'!$B$2:$B$661,'Step 4 bond aggregation'!$A$2:$A$661,$BK$69,'Step 4 bond aggregation'!$F$2:$F$661,BQ$72,'Step 4 bond aggregation'!$G$2:$G$661,MATCH($BB91,lov_term_buckets,0),'Step 4 bond aggregation'!$E$2:$E$661,$BC$89)","v":0},{"$f":"SUMIFS('Step 4 bond aggregation'!$B$2:$B$661,'Step 4 bond aggregation'!$A$2:$A$661,$BK$69,'Step 4 bond aggregation'!$F$2:$F$661,BR$72,'Step 4 bond aggregation'!$G$2:$G$661,MATCH($BB91,lov_term_buckets,0),'Step 4 bond aggregation'!$E$2:$E$661,$BC$89)","v":0},{"$f":"SUMIFS('Step 4 bond aggregation'!$B$2:$B$661,'Step 4 bond aggregation'!$A$2:$A$661,$BK$69,'Step 4 bond aggregation'!$F$2:$F$661,BS$72,'Step 4 bond aggregation'!$G$2:$G$661,MATCH($BB91,lov_term_buckets,0),'Step 4 bond aggregation'!$E$2:$E$661,$BC$89)","v":0},null,null,"Upto 1",{"$f":"SUMIFS('Step 4 bond aggregation'!$B$2:$B$661,'Step 4 bond aggregation'!$A$2:$A$661,$BU$69,'Step 4 bond aggregation'!$F$2:$F$661,BW$72,'Step 4 bond aggregation'!$G$2:$G$661,MATCH($BB91,lov_term_buckets,0),'Step 4 bond aggregation'!$E$2:$E$661,$BC$89)","v":0},{"$f":"SUMIFS('Step 4 bond aggregation'!$B$2:$B$661,'Step 4 bond aggregation'!$A$2:$A$661,$BU$69,'Step 4 bond aggregation'!$F$2:$F$661,BX$72,'Step 4 bond aggregation'!$G$2:$G$661,MATCH($BB91,lov_term_buckets,0),'Step 4 bond aggregation'!$E$2:$E$661,$BC$89)","v":0},{"$f":"SUMIFS('Step 4 bond aggregation'!$B$2:$B$661,'Step 4 bond aggregation'!$A$2:$A$661,$BU$69,'Step 4 bond aggregation'!$F$2:$F$661,BY$72,'Step 4 bond aggregation'!$G$2:$G$661,MATCH($BB91,lov_term_buckets,0),'Step 4 bond aggregation'!$E$2:$E$661,$BC$89)","v":0},{"$f":"SUMIFS('Step 4 bond aggregation'!$B$2:$B$661,'Step 4 bond aggregation'!$A$2:$A$661,$BU$69,'Step 4 bond aggregation'!$F$2:$F$661,BZ$72,'Step 4 bond aggregation'!$G$2:$G$661,MATCH($BB91,lov_term_buckets,0),'Step 4 bond aggregation'!$E$2:$E$661,$BC$89)","v":0},{"$f":"SUMIFS('Step 4 bond aggregation'!$B$2:$B$661,'Step 4 bond aggregation'!$A$2:$A$661,$BU$69,'Step 4 bond aggregation'!$F$2:$F$661,CA$72,'Step 4 bond aggregation'!$G$2:$G$661,MATCH($BB91,lov_term_buckets,0),'Step 4 bond aggregation'!$E$2:$E$661,$BC$89)","v":0},{"$f":"SUMIFS('Step 4 bond aggregation'!$B$2:$B$661,'Step 4 bond aggregation'!$A$2:$A$661,$BU$69,'Step 4 bond aggregation'!$F$2:$F$661,CB$72,'Step 4 bond aggregation'!$G$2:$G$661,MATCH($BB91,lov_term_buckets,0),'Step 4 bond aggregation'!$E$2:$E$661,$BC$89)","v":0},{"$f":"SUMIFS('Step 4 bond aggregation'!$B$2:$B$661,'Step 4 bond aggregation'!$A$2:$A$661,$BU$69,'Step 4 bond aggregation'!$F$2:$F$661,CC$72,'Step 4 bond aggregation'!$G$2:$G$661,MATCH($BB91,lov_term_buckets,0),'Step 4 bond aggregation'!$E$2:$E$661,$BC$89)","v":0}]
[null,null,"1.01 to 5",{"$f":"Input!F100","v":0},{"$f":"Input!G100","v":0},{"$f":"Input!H100","v":0},{"$f":"Input!I100","v":0},{"$f":"Input!J100","v":0},{"$f":"Input!K100","v":0},{"$f":"Input!L100","v":0},{"$f":"Input!M100","v":0},null,null,"1.01 to 5",{"$f":"Input!F140+Input!F173","v":0},{"$f":"Input!G140+Input!G173","v":0},{"$f":"Input!H140+Input!H173","v":0},{"$f":"Input!I140+Input!I173","v":0},{"$f":"Input!J140+Input!J173","v":0},{"$f":"Input!K140+Input!K173","v":0},{"$f":"Input!L140+Input!L173","v":0},null,null,"1.01 to 5",{"$f":"SUMIFS('Step 4 bond aggregation'!$B$2:$B$661,'Step 4 bond aggregation'!$A$2:$A$661,$W$69,'Step 4 bond aggregation'!$F$2:$F$661,Y$72,'Step 4 bond aggregation'!$G$2:$G$661,MATCH($X92,lov_term_buckets,0),'Step 4 bond aggregation'!$E$2:$E$661,$Y$89)","v":0},{"$f":"SUMIFS('Step 4 bond aggregation'!$B$2:$B$661,'Step 4 bond aggregation'!$A$2:$A$661,$W$69,'Step 4 bond aggregation'!$F$2:$F$661,Z$72,'Step 4 bond aggregation'!$G$2:$G$661,MATCH($X92,lov_term_buckets,0),'Step 4 bond aggregation'!$E$2:$E$661,$Y$89)","v":0},{"$f":"SUMIFS('Step 4 bond aggregation'!$B$2:$B$661,'Step 4 bond aggregation'!$A$2:$A$661,$W$69,'Step 4 bond aggregation'!$F$2:$F$661,AA$72,'Step 4 bond aggregation'!$G$2:$G$661,MATCH($X92,lov_term_buckets,0),'Step 4 bond aggregation'!$E$2:$E$661,$Y$89)","v":0},{"$f":"SUMIFS('Step 4 bond aggregation'!$B$2:$B$661,'Step 4 bond aggregation'!$A$2:$A$661,$W$69,'Step 4 bond aggregation'!$F$2:$F$661,AB$72,'Step 4 bond aggregation'!$G$2:$G$661,MATCH($X92,lov_term_buckets,0),'Step 4 bond aggregation'!$E$2:$E$661,$Y$89)","v":0},{"$f":"SUMIFS('Step 4 bond aggregation'!$B$2:$B$661,'Step 4 bond aggregation'!$A$2:$A$661,$W$69,'Step 4 bond aggregation'!$F$2:$F$661,AC$72,'Step 4 bond aggregation'!$G$2:$G$661,MATCH($X92,lov_term_buckets,0),'Step 4 bond aggregation'!$E$2:$E$661,$Y$89)","v":0},{"$f":"SUMIFS('Step 4 bond aggregation'!$B$2:$B$661,'Step 4 bond aggregation'!$A$2:$A$661,$W$69,'Step 4 bond aggregation'!$F$2:$F$661,AD$72,'Step 4 bond aggregation'!$G$2:$G$661,MATCH($X92,lov_term_buckets,0),'Step 4 bond aggregation'!$E$2:$E$661,$Y$89)","v":0},{"$f":"SUMIFS('Step 4 bond aggregation'!$B$2:$B$661,'Step 4 bond aggregation'!$A$2:$A$661,$W$69,'Step 4 bond aggregation'!$F$2:$F$661,AE$72,'Step 4 bond aggregation'!$G$2:$G$661,MATCH($X92,lov_term_buckets,0),'Step 4 bond aggregation'!$E$2:$E$661,$Y$89)","v":0},null,null,"1.01 to 5",{"$f":"SUMIFS('Step 4 bond aggregation'!$B$2:$B$661,'Step 4 bond aggregation'!$A$2:$A$661,$AG$69,'Step 4 bond aggregation'!$F$2:$F$661,AI$72,'Step 4 bond aggregation'!$G$2:$G$661,MATCH($AH92,lov_term_buckets,0),'Step 4 bond aggregation'!$E$2:$E$661,$AI$89)","v":0},{"$f":"SUMIFS('Step 4 bond aggregation'!$B$2:$B$661,'Step 4 bond aggregation'!$A$2:$A$661,$AG$69,'Step 4 bond aggregation'!$F$2:$F$661,AJ$72,'Step 4 bond aggregation'!$G$2:$G$661,MATCH($AH92,lov_term_buckets,0),'Step 4 bond aggregation'!$E$2:$E$661,$AI$89)","v":0},{"$f":"SUMIFS('Step 4 bond aggregation'!$B$2:$B$661,'Step 4 bond aggregation'!$A$2:$A$661,$AG$69,'Step 4 bond aggregation'!$F$2:$F$661,AK$72,'Step 4 bond aggregation'!$G$2:$G$661,MATCH($AH92,lov_term_buckets,0),'Step 4 bond aggregation'!$E$2:$E$661,$AI$89)","v":0},{"$f":"SUMIFS('Step 4 bond aggregation'!$B$2:$B$661,'Step 4 bond aggregation'!$A$2:$A$661,$AG$69,'Step 4 bond aggregation'!$F$2:$F$661,AL$72,'Step 4 bond aggregation'!$G$2:$G$661,MATCH($AH92,lov_term_buckets,0),'Step 4 bond aggregation'!$E$2:$E$661,$AI$89)","v":0},{"$f":"SUMIFS('Step 4 bond aggregation'!$B$2:$B$661,'Step 4 bond aggregation'!$A$2:$A$661,$AG$69,'Step 4 bond aggregation'!$F$2:$F$661,AM$72,'Step 4 bond aggregation'!$G$2:$G$661,MATCH($AH92,lov_term_buckets,0),'Step 4 bond aggregation'!$E$2:$E$661,$AI$89)","v":0},{"$f":"SUMIFS('Step 4 bond aggregation'!$B$2:$B$661,'Step 4 bond aggregation'!$A$2:$A$661,$AG$69,'Step 4 bond aggregation'!$F$2:$F$661,AN$72,'Step 4 bond aggregation'!$G$2:$G$661,MATCH($AH92,lov_term_buckets,0),'Step 4 bond aggregation'!$E$2:$E$661,$AI$89)","v":0},{"$f":"SUMIFS('Step 4 bond aggregation'!$B$2:$B$661,'Step 4 bond aggregation'!$A$2:$A$661,$AG$69,'Step 4 bond aggregation'!$F$2:$F$661,AO$72,'Step 4 bond aggregation'!$G$2:$G$661,MATCH($AH92,lov_term_buckets,0),'Step 4 bond aggregation'!$E$2:$E$661,$AI$89)","v":0},null,null,"1.01 to 5",{"$f":"SUMIFS('Step 4 bond aggregation'!$B$2:$B$661,'Step 4 bond aggregation'!$A$2:$A$661,$AQ$69,'Step 4 bond aggregation'!$F$2:$F$661,AS$72,'Step 4 bond aggregation'!$G$2:$G$661,MATCH($AR92,lov_term_buckets,0),'Step 4 bond aggregation'!$E$2:$E$661,$AS$89)","v":0},{"$f":"SUMIFS('Step 4 bond aggregation'!$B$2:$B$661,'Step 4 bond aggregation'!$A$2:$A$661,$AQ$69,'Step 4 bond aggregation'!$F$2:$F$661,AT$72,'Step 4 bond aggregation'!$G$2:$G$661,MATCH($AR92,lov_term_buckets,0),'Step 4 bond aggregation'!$E$2:$E$661,$AS$89)","v":0},{"$f":"SUMIFS('Step 4 bond aggregation'!$B$2:$B$661,'Step 4 bond aggregation'!$A$2:$A$661,$AQ$69,'Step 4 bond aggregation'!$F$2:$F$661,AU$72,'Step 4 bond aggregation'!$G$2:$G$661,MATCH($AR92,lov_term_buckets,0),'Step 4 bond aggregation'!$E$2:$E$661,$AS$89)","v":0},{"$f":"SUMIFS('Step 4 bond aggregation'!$B$2:$B$661,'Step 4 bond aggregation'!$A$2:$A$661,$AQ$69,'Step 4 bond aggregation'!$F$2:$F$661,AV$72,'Step 4 bond aggregation'!$G$2:$G$661,MATCH($AR92,lov_term_buckets,0),'Step 4 bond aggregation'!$E$2:$E$661,$AS$89)","v":0},{"$f":"SUMIFS('Step 4 bond aggregation'!$B$2:$B$661,'Step 4 bond aggregation'!$A$2:$A$661,$AQ$69,'Step 4 bond aggregation'!$F$2:$F$661,AW$72,'Step 4 bond aggregation'!$G$2:$G$661,MATCH($AR92,lov_term_buckets,0),'Step 4 bond aggregation'!$E$2:$E$661,$AS$89)","v":0},{"$f":"SUMIFS('Step 4 bond aggregation'!$B$2:$B$661,'Step 4 bond aggregation'!$A$2:$A$661,$AQ$69,'Step 4 bond aggregation'!$F$2:$F$661,AX$72,'Step 4 bond aggregation'!$G$2:$G$661,MATCH($AR92,lov_term_buckets,0),'Step 4 bond aggregation'!$E$2:$E$661,$AS$89)","v":0},{"$f":"SUMIFS('Step 4 bond aggregation'!$B$2:$B$661,'Step 4 bond aggregation'!$A$2:$A$661,$AQ$69,'Step 4 bond aggregation'!$F$2:$F$661,AY$72,'Step 4 bond aggregation'!$G$2:$G$661,MATCH($AR92,lov_term_buckets,0),'Step 4 bond aggregation'!$E$2:$E$661,$AS$89)","v":0},null,null,"1.01 to 5",{"$f":"SUMIFS('Step 4 bond aggregation'!$B$2:$B$661,'Step 4 bond aggregation'!$A$2:$A$661,$BA$69,'Step 4 bond aggregation'!$F$2:$F$661,BC$72,'Step 4 bond aggregation'!$G$2:$G$661,MATCH($BB92,lov_term_buckets,0),'Step 4 bond aggregation'!$E$2:$E$661,$BC$89)","v":0},{"$f":"SUMIFS('Step 4 bond aggregation'!$B$2:$B$661,'Step 4 bond aggregation'!$A$2:$A$661,$BA$69,'Step 4 bond aggregation'!$F$2:$F$661,BD$72,'Step 4 bond aggregation'!$G$2:$G$661,MATCH($BB92,lov_term_buckets,0),'Step 4 bond aggregation'!$E$2:$E$661,$BC$89)","v":0},{"$f":"SUMIFS('Step 4 bond aggregation'!$B$2:$B$661,'Step 4 bond aggregation'!$A$2:$A$661,$BA$69,'Step 4 bond aggregation'!$F$2:$F$661,BE$72,'Step 4 bond aggregation'!$G$2:$G$661,MATCH($BB92,lov_term_buckets,0),'Step 4 bond aggregation'!$E$2:$E$661,$BC$89)","v":0},{"$f":"SUMIFS('Step 4 bond aggregation'!$B$2:$B$661,'Step 4 bond aggregation'!$A$2:$A$661,$BA$69,'Step 4 bond aggregation'!$F$2:$F$661,BF$72,'Step 4 bond aggregation'!$G$2:$G$661,MATCH($BB92,lov_term_buckets,0),'Step 4 bond aggregation'!$E$2:$E$661,$BC$89)","v":0},{"$f":"SUMIFS('Step 4 bond aggregation'!$B$2:$B$661,'Step 4 bond aggregation'!$A$2:$A$661,$BA$69,'Step 4 bond aggregation'!$F$2:$F$661,BG$72,'Step 4 bond aggregation'!$G$2:$G$661,MATCH($BB92,lov_term_buckets,0),'Step 4 bond aggregation'!$E$2:$E$661,$BC$89)","v":0},{"$f":"SUMIFS('Step 4 bond aggregation'!$B$2:$B$661,'Step 4 bond aggregation'!$A$2:$A$661,$BA$69,'Step 4 bond aggregation'!$F$2:$F$661,BH$72,'Step 4 bond aggregation'!$G$2:$G$661,MATCH($BB92,lov_term_buckets,0),'Step 4 bond aggregation'!$E$2:$E$661,$BC$89)","v":0},{"$f":"SUMIFS('Step 4 bond aggregation'!$B$2:$B$661,'Step 4 bond aggregation'!$A$2:$A$661,$BA$69,'Step 4 bond aggregation'!$F$2:$F$661,BI$72,'Step 4 bond aggregation'!$G$2:$G$661,MATCH($BB92,lov_term_buckets,0),'Step 4 bond aggregation'!$E$2:$E$661,$BC$89)","v":0},null,null,"1.01 to 5",{"$f":"SUMIFS('Step 4 bond aggregation'!$B$2:$B$661,'Step 4 bond aggregation'!$A$2:$A$661,$BK$69,'Step 4 bond aggregation'!$F$2:$F$661,BM$72,'Step 4 bond aggregation'!$G$2:$G$661,MATCH($BB92,lov_term_buckets,0),'Step 4 bond aggregation'!$E$2:$E$661,$BC$89)","v":0},{"$f":"SUMIFS('Step 4 bond aggregation'!$B$2:$B$661,'Step 4 bond aggregation'!$A$2:$A$661,$BK$69,'Step 4 bond aggregation'!$F$2:$F$661,BN$72,'Step 4 bond aggregation'!$G$2:$G$661,MATCH($BB92,lov_term_buckets,0),'Step 4 bond aggregation'!$E$2:$E$661,$BC$89)","v":0},{"$f":"SUMIFS('Step 4 bond aggregation'!$B$2:$B$661,'Step 4 bond aggregation'!$A$2:$A$661,$BK$69,'Step 4 bond aggregation'!$F$2:$F$661,BO$72,'Step 4 bond aggregation'!$G$2:$G$661,MATCH($BB92,lov_term_buckets,0),'Step 4 bond aggregation'!$E$2:$E$661,$BC$89)","v":0},{"$f":"SUMIFS('Step 4 bond aggregation'!$B$2:$B$661,'Step 4 bond aggregation'!$A$2:$A$661,$BK$69,'Step 4 bond aggregation'!$F$2:$F$661,BP$72,'Step 4 bond aggregation'!$G$2:$G$661,MATCH($BB92,lov_term_buckets,0),'Step 4 bond aggregation'!$E$2:$E$661,$BC$89)","v":0},{"$f":"SUMIFS('Step 4 bond aggregation'!$B$2:$B$661,'Step 4 bond aggregation'!$A$2:$A$661,$BK$69,'Step 4 bond aggregation'!$F$2:$F$661,BQ$72,'Step 4 bond aggregation'!$G$2:$G$661,MATCH($BB92,lov_term_buckets,0),'Step 4 bond aggregation'!$E$2:$E$661,$BC$89)","v":0},{"$f":"SUMIFS('Step 4 bond aggregation'!$B$2:$B$661,'Step 4 bond aggregation'!$A$2:$A$661,$BK$69,'Step 4 bond aggregation'!$F$2:$F$661,BR$72,'Step 4 bond aggregation'!$G$2:$G$661,MATCH($BB92,lov_term_buckets,0),'Step 4 bond aggregation'!$E$2:$E$661,$BC$89)","v":0},{"$f":"SUMIFS('Step 4 bond aggregation'!$B$2:$B$661,'Step 4 bond aggregation'!$A$2:$A$661,$BK$69,'Step 4 bond aggregation'!$F$2:$F$661,BS$72,'Step 4 bond aggregation'!$G$2:$G$661,MATCH($BB92,lov_term_buckets,0),'Step 4 bond aggregation'!$E$2:$E$661,$BC$89)","v":0},null,null,"1.01 to 5",{"$f":"SUMIFS('Step 4 bond aggregation'!$B$2:$B$661,'Step 4 bond aggregation'!$A$2:$A$661,$BU$69,'Step 4 bond aggregation'!$F$2:$F$661,BW$72,'Step 4 bond aggregation'!$G$2:$G$661,MATCH($BB92,lov_term_buckets,0),'Step 4 bond aggregation'!$E$2:$E$661,$BC$89)","v":0},{"$f":"SUMIFS('Step 4 bond aggregation'!$B$2:$B$661,'Step 4 bond aggregation'!$A$2:$A$661,$BU$69,'Step 4 bond aggregation'!$F$2:$F$661,BX$72,'Step 4 bond aggregation'!$G$2:$G$661,MATCH($BB92,lov_term_buckets,0),'Step 4 bond aggregation'!$E$2:$E$661,$BC$89)","v":0},{"$f":"SUMIFS('Step 4 bond aggregation'!$B$2:$B$661,'Step 4 bond aggregation'!$A$2:$A$661,$BU$69,'Step 4 bond aggregation'!$F$2:$F$661,BY$72,'Step 4 bond aggregation'!$G$2:$G$661,MATCH($BB92,lov_term_buckets,0),'Step 4 bond aggregation'!$E$2:$E$661,$BC$89)","v":0},{"$f":"SUMIFS('Step 4 bond aggregation'!$B$2:$B$661,'Step 4 bond aggregation'!$A$2:$A$661,$BU$69,'Step 4 bond aggregation'!$F$2:$F$661,BZ$72,'Step 4 bond aggregation'!$G$2:$G$661,MATCH($BB92,lov_term_buckets,0),'Step 4 bond aggregation'!$E$2:$E$661,$BC$89)","v":0},{"$f":"SUMIFS('Step 4 bond aggregation'!$B$2:$B$661,'Step 4 bond aggregation'!$A$2:$A$661,$BU$69,'Step 4 bond aggregation'!$F$2:$F$661,CA$72,'Step 4 bond aggregation'!$G$2:$G$661,MATCH($BB92,lov_term_buckets,0),'Step 4 bond aggregation'!$E$2:$E$661,$BC$89)","v":0},{"$f":"SUMIFS('Step 4 bond aggregation'!$B$2:$B$661,'Step 4 bond aggregation'!$A$2:$A$661,$BU$69,'Step 4 bond aggregation'!$F$2:$F$661,CB$72,'Step 4 bond aggregation'!$G$2:$G$661,MATCH($BB92,lov_term_buckets,0),'Step 4 bond aggregation'!$E$2:$E$661,$BC$89)","v":0},{"$f":"SUMIFS('Step 4 bond aggregation'!$B$2:$B$661,'Step 4 bond aggregation'!$A$2:$A$661,$BU$69,'Step 4 bond aggregation'!$F$2:$F$661,CC$72,'Step 4 bond aggregation'!$G$2:$G$661,MATCH($BB92,lov_term_buckets,0),'Step 4 bond aggregation'!$E$2:$E$661,$BC$89)","v":0}]
[null,null,"5.01 to 10",{"$f":"Input!F101","v":0},{"$f":"Input!G101","v":0},{"$f":"Input!H101","v":0},{"$f":"Input!I101","v":0},{"$f":"Input!J101","v":0},{"$f":"Input!K101","v":0},{"$f":"Input!L101","v":0},{"$f":"Input!M101","v":0},null,null,"5.01 to 10",{"$f":"Input!F141+Input!F174","v":0},{"$f":"Input!G141+Input!G174","v":0},{"$f":"Input!H141+Input!H174","v":0},{"$f":"Input!I141+Input!I174","v":0},{"$f":"Input!J141+Input!J174","v":0},{"$f":"Input!K141+Input!K174","v":0},{"$f":"Input!L141+Input!L174","v":0},null,null,"5.01 to 10",{"$f":"SUMIFS('Step 4 bond aggregation'!$B$2:$B$661,'Step 4 bond aggregation'!$A$2:$A$661,$W$69,'Step 4 bond aggregation'!$F$2:$F$661,Y$72,'Step 4 bond aggregation'!$G$2:$G$661,MATCH($X93,lov_term_buckets,0),'Step 4 bond aggregation'!$E$2:$E$661,$Y$89)","v":0},{"$f":"SUMIFS('Step 4 bond aggregation'!$B$2:$B$661,'Step 4 bond aggregation'!$A$2:$A$661,$W$69,'Step 4 bond aggregation'!$F$2:$F$661,Z$72,'Step 4 bond aggregation'!$G$2:$G$661,MATCH($X93,lov_term_buckets,0),'Step 4 bond aggregation'!$E$2:$E$661,$Y$89)","v":0},{"$f":"SUMIFS('Step 4 bond aggregation'!$B$2:$B$661,'Step 4 bond aggregation'!$A$2:$A$661,$W$69,'Step 4 bond aggregation'!$F$2:$F$661,AA$72,'Step 4 bond aggregation'!$G$2:$G$661,MATCH($X93,lov_term_buckets,0),'Step 4 bond aggregation'!$E$2:$E$661,$Y$89)","v":0},{"$f":"SUMIFS('Step 4 bond aggregation'!$B$2:$B$661,'Step 4 bond aggregation'!$A$2:$A$661,$W$69,'Step 4 bond aggregation'!$F$2:$F$661,AB$72,'Step 4 bond aggregation'!$G$2:$G$661,MATCH($X93,lov_term_buckets,0),'Step 4 bond aggregation'!$E$2:$E$661,$Y$89)","v":0},{"$f":"SUMIFS('Step 4 bond aggregation'!$B$2:$B$661,'Step 4 bond aggregation'!$A$2:$A$661,$W$69,'Step 4 bond aggregation'!$F$2:$F$661,AC$72,'Step 4 bond aggregation'!$G$2:$G$661,MATCH($X93,lov_term_buckets,0),'Step 4 bond aggregation'!$E$2:$E$661,$Y$89)","v":0},{"$f":"SUMIFS('Step 4 bond aggregation'!$B$2:$B$661,'Step 4 bond aggregation'!$A$2:$A$661,$W$69,'Step 4 bond aggregation'!$F$2:$F$661,AD$72,'Step 4 bond aggregation'!$G$2:$G$661,MATCH($X93,lov_term_buckets,0),'Step 4 bond aggregation'!$E$2:$E$661,$Y$89)","v":0},{"$f":"SUMIFS('Step 4 bond aggregation'!$B$2:$B$661,'Step 4 bond aggregation'!$A$2:$A$661,$W$69,'Step 4 bond aggregation'!$F$2:$F$661,AE$72,'Step 4 bond aggregation'!$G$2:$G$661,MATCH($X93,lov_term_buckets,0),'Step 4 bond aggregation'!$E$2:$E$661,$Y$89)","v":0},null,null,"5.01 to 10",{"$f":"SUMIFS('Step 4 bond aggregation'!$B$2:$B$661,'Step 4 bond aggregation'!$A$2:$A$661,$AG$69,'Step 4 bond aggregation'!$F$2:$F$661,AI$72,'Step 4 bond aggregation'!$G$2:$G$661,MATCH($AH93,lov_term_buckets,0),'Step 4 bond aggregation'!$E$2:$E$661,$AI$89)","v":0},{"$f":"SUMIFS('Step 4 bond aggregation'!$B$2:$B$661,'Step 4 bond aggregation'!$A$2:$A$661,$AG$69,'Step 4 bond aggregation'!$F$2:$F$661,AJ$72,'Step 4 bond aggregation'!$G$2:$G$661,MATCH($AH93,lov_term_buckets,0),'Step 4 bond aggregation'!$E$2:$E$661,$AI$89)","v":0},{"$f":"SUMIFS('Step 4 bond aggregation'!$B$2:$B$661,'Step 4 bond aggregation'!$A$2:$A$661,$AG$69,'Step 4 bond aggregation'!$F$2:$F$661,AK$72,'Step 4 bond aggregation'!$G$2:$G$661,MATCH($AH93,lov_term_buckets,0),'Step 4 bond aggregation'!$E$2:$E$661,$AI$89)","v":0},{"$f":"SUMIFS('Step 4 bond aggregation'!$B$2:$B$661,'Step 4 bond aggregation'!$A$2:$A$661,$AG$69,'Step 4 bond aggregation'!$F$2:$F$661,AL$72,'Step 4 bond aggregation'!$G$2:$G$661,MATCH($AH93,lov_term_buckets,0),'Step 4 bond aggregation'!$E$2:$E$661,$AI$89)","v":0},{"$f":"SUMIFS('Step 4 bond aggregation'!$B$2:$B$661,'Step 4 bond aggregation'!$A$2:$A$661,$AG$69,'Step 4 bond aggregation'!$F$2:$F$661,AM$72,'Step 4 bond aggregation'!$G$2:$G$661,MATCH($AH93,lov_term_buckets,0),'Step 4 bond aggregation'!$E$2:$E$661,$AI$89)","v":0},{"$f":"SUMIFS('Step 4 bond aggregation'!$B$2:$B$661,'Step 4 bond aggregation'!$A$2:$A$661,$AG$69,'Step 4 bond aggregation'!$F$2:$F$661,AN$72,'Step 4 bond aggregation'!$G$2:$G$661,MATCH($AH93,lov_term_buckets,0),'Step 4 bond aggregation'!$E$2:$E$661,$AI$89)","v":0},{"$f":"SUMIFS('Step 4 bond aggregation'!$B$2:$B$661,'Step 4 bond aggregation'!$A$2:$A$661,$AG$69,'Step 4 bond aggregation'!$F$2:$F$661,AO$72,'Step 4 bond aggregation'!$G$2:$G$661,MATCH($AH93,lov_term_buckets,0),'Step 4 bond aggregation'!$E$2:$E$661,$AI$89)","v":0},null,null,"5.01 to 10",{"$f":"SUMIFS('Step 4 bond aggregation'!$B$2:$B$661,'Step 4 bond aggregation'!$A$2:$A$661,$AQ$69,'Step 4 bond aggregation'!$F$2:$F$661,AS$72,'Step 4 bond aggregation'!$G$2:$G$661,MATCH($AR93,lov_term_buckets,0),'Step 4 bond aggregation'!$E$2:$E$661,$AS$89)","v":0},{"$f":"SUMIFS('Step 4 bond aggregation'!$B$2:$B$661,'Step 4 bond aggregation'!$A$2:$A$661,$AQ$69,'Step 4 bond aggregation'!$F$2:$F$661,AT$72,'Step 4 bond aggregation'!$G$2:$G$661,MATCH($AR93,lov_term_buckets,0),'Step 4 bond aggregation'!$E$2:$E$661,$AS$89)","v":0},{"$f":"SUMIFS('Step 4 bond aggregation'!$B$2:$B$661,'Step 4 bond aggregation'!$A$2:$A$661,$AQ$69,'Step 4 bond aggregation'!$F$2:$F$661,AU$72,'Step 4 bond aggregation'!$G$2:$G$661,MATCH($AR93,lov_term_buckets,0),'Step 4 bond aggregation'!$E$2:$E$661,$AS$89)","v":0},{"$f":"SUMIFS('Step 4 bond aggregation'!$B$2:$B$661,'Step 4 bond aggregation'!$A$2:$A$661,$AQ$69,'Step 4 bond aggregation'!$F$2:$F$661,AV$72,'Step 4 bond aggregation'!$G$2:$G$661,MATCH($AR93,lov_term_buckets,0),'Step 4 bond aggregation'!$E$2:$E$661,$AS$89)","v":0},{"$f":"SUMIFS('Step 4 bond aggregation'!$B$2:$B$661,'Step 4 bond aggregation'!$A$2:$A$661,$AQ$69,'Step 4 bond aggregation'!$F$2:$F$661,AW$72,'Step 4 bond aggregation'!$G$2:$G$661,MATCH($AR93,lov_term_buckets,0),'Step 4 bond aggregation'!$E$2:$E$661,$AS$89)","v":0},{"$f":"SUMIFS('Step 4 bond aggregation'!$B$2:$B$661,'Step 4 bond aggregation'!$A$2:$A$661,$AQ$69,'Step 4 bond aggregation'!$F$2:$F$661,AX$72,'Step 4 bond aggregation'!$G$2:$G$661,MATCH($AR93,lov_term_buckets,0),'Step 4 bond aggregation'!$E$2:$E$661,$AS$89)","v":0},{"$f":"SUMIFS('Step 4 bond aggregation'!$B$2:$B$661,'Step 4 bond aggregation'!$A$2:$A$661,$AQ$69,'Step 4 bond aggregation'!$F$2:$F$661,AY$72,'Step 4 bond aggregation'!$G$2:$G$661,MATCH($AR93,lov_term_buckets,0),'Step 4 bond aggregation'!$E$2:$E$661,$AS$89)","v":0},null,null,"5.01 to 10",{"$f":"SUMIFS('Step 4 bond aggregation'!$B$2:$B$661,'Step 4 bond aggregation'!$A$2:$A$661,$BA$69,'Step 4 bond aggregation'!$F$2:$F$661,BC$72,'Step 4 bond aggregation'!$G$2:$G$661,MATCH($BB93,lov_term_buckets,0),'Step 4 bond aggregation'!$E$2:$E$661,$BC$89)","v":0},{"$f":"SUMIFS('Step 4 bond aggregation'!$B$2:$B$661,'Step 4 bond aggregation'!$A$2:$A$661,$BA$69,'Step 4 bond aggregation'!$F$2:$F$661,BD$72,'Step 4 bond aggregation'!$G$2:$G$661,MATCH($BB93,lov_term_buckets,0),'Step 4 bond aggregation'!$E$2:$E$661,$BC$89)","v":0},{"$f":"SUMIFS('Step 4 bond aggregation'!$B$2:$B$661,'Step 4 bond aggregation'!$A$2:$A$661,$BA$69,'Step 4 bond aggregation'!$F$2:$F$661,BE$72,'Step 4 bond aggregation'!$G$2:$G$661,MATCH($BB93,lov_term_buckets,0),'Step 4 bond aggregation'!$E$2:$E$661,$BC$89)","v":0},{"$f":"SUMIFS('Step 4 bond aggregation'!$B$2:$B$661,'Step 4 bond aggregation'!$A$2:$A$661,$BA$69,'Step 4 bond aggregation'!$F$2:$F$661,BF$72,'Step 4 bond aggregation'!$G$2:$G$661,MATCH($BB93,lov_term_buckets,0),'Step 4 bond aggregation'!$E$2:$E$661,$BC$89)","v":0},{"$f":"SUMIFS('Step 4 bond aggregation'!$B$2:$B$661,'Step 4 bond aggregation'!$A$2:$A$661,$BA$69,'Step 4 bond aggregation'!$F$2:$F$661,BG$72,'Step 4 bond aggregation'!$G$2:$G$661,MATCH($BB93,lov_term_buckets,0),'Step 4 bond aggregation'!$E$2:$E$661,$BC$89)","v":0},{"$f":"SUMIFS('Step 4 bond aggregation'!$B$2:$B$661,'Step 4 bond aggregation'!$A$2:$A$661,$BA$69,'Step 4 bond aggregation'!$F$2:$F$661,BH$72,'Step 4 bond aggregation'!$G$2:$G$661,MATCH($BB93,lov_term_buckets,0),'Step 4 bond aggregation'!$E$2:$E$661,$BC$89)","v":0},{"$f":"SUMIFS('Step 4 bond aggregation'!$B$2:$B$661,'Step 4 bond aggregation'!$A$2:$A$661,$BA$69,'Step 4 bond aggregation'!$F$2:$F$661,BI$72,'Step 4 bond aggregation'!$G$2:$G$661,MATCH($BB93,lov_term_buckets,0),'Step 4 bond aggregation'!$E$2:$E$661,$BC$89)","v":0},null,null,"5.01 to 10",{"$f":"SUMIFS('Step 4 bond aggregation'!$B$2:$B$661,'Step 4 bond aggregation'!$A$2:$A$661,$BK$69,'Step 4 bond aggregation'!$F$2:$F$661,BM$72,'Step 4 bond aggregation'!$G$2:$G$661,MATCH($BB93,lov_term_buckets,0),'Step 4 bond aggregation'!$E$2:$E$661,$BC$89)","v":0},{"$f":"SUMIFS('Step 4 bond aggregation'!$B$2:$B$661,'Step 4 bond aggregation'!$A$2:$A$661,$BK$69,'Step 4 bond aggregation'!$F$2:$F$661,BN$72,'Step 4 bond aggregation'!$G$2:$G$661,MATCH($BB93,lov_term_buckets,0),'Step 4 bond aggregation'!$E$2:$E$661,$BC$89)","v":0},{"$f":"SUMIFS('Step 4 bond aggregation'!$B$2:$B$661,'Step 4 bond aggregation'!$A$2:$A$661,$BK$69,'Step 4 bond aggregation'!$F$2:$F$661,BO$72,'Step 4 bond aggregation'!$G$2:$G$661,MATCH($BB93,lov_term_buckets,0),'Step 4 bond aggregation'!$E$2:$E$661,$BC$89)","v":0},{"$f":"SUMIFS('Step 4 bond aggregation'!$B$2:$B$661,'Step 4 bond aggregation'!$A$2:$A$661,$BK$69,'Step 4 bond aggregation'!$F$2:$F$661,BP$72,'Step 4 bond aggregation'!$G$2:$G$661,MATCH($BB93,lov_term_buckets,0),'Step 4 bond aggregation'!$E$2:$E$661,$BC$89)","v":0},{"$f":"SUMIFS('Step 4 bond aggregation'!$B$2:$B$661,'Step 4 bond aggregation'!$A$2:$A$661,$BK$69,'Step 4 bond aggregation'!$F$2:$F$661,BQ$72,'Step 4 bond aggregation'!$G$2:$G$661,MATCH($BB93,lov_term_buckets,0),'Step 4 bond aggregation'!$E$2:$E$661,$BC$89)","v":0},{"$f":"SUMIFS('Step 4 bond aggregation'!$B$2:$B$661,'Step 4 bond aggregation'!$A$2:$A$661,$BK$69,'Step 4 bond aggregation'!$F$2:$F$661,BR$72,'Step 4 bond aggregation'!$G$2:$G$661,MATCH($BB93,lov_term_buckets,0),'Step 4 bond aggregation'!$E$2:$E$661,$BC$89)","v":0},{"$f":"SUMIFS('Step 4 bond aggregation'!$B$2:$B$661,'Step 4 bond aggregation'!$A$2:$A$661,$BK$69,'Step 4 bond aggregation'!$F$2:$F$661,BS$72,'Step 4 bond aggregation'!$G$2:$G$661,MATCH($BB93,lov_term_buckets,0),'Step 4 bond aggregation'!$E$2:$E$661,$BC$89)","v":0},null,null,"5.01 to 10",{"$f":"SUMIFS('Step 4 bond aggregation'!$B$2:$B$661,'Step 4 bond aggregation'!$A$2:$A$661,$BU$69,'Step 4 bond aggregation'!$F$2:$F$661,BW$72,'Step 4 bond aggregation'!$G$2:$G$661,MATCH($BB93,lov_term_buckets,0),'Step 4 bond aggregation'!$E$2:$E$661,$BC$89)","v":0},{"$f":"SUMIFS('Step 4 bond aggregation'!$B$2:$B$661,'Step 4 bond aggregation'!$A$2:$A$661,$BU$69,'Step 4 bond aggregation'!$F$2:$F$661,BX$72,'Step 4 bond aggregation'!$G$2:$G$661,MATCH($BB93,lov_term_buckets,0),'Step 4 bond aggregation'!$E$2:$E$661,$BC$89)","v":0},{"$f":"SUMIFS('Step 4 bond aggregation'!$B$2:$B$661,'Step 4 bond aggregation'!$A$2:$A$661,$BU$69,'Step 4 bond aggregation'!$F$2:$F$661,BY$72,'Step 4 bond aggregation'!$G$2:$G$661,MATCH($BB93,lov_term_buckets,0),'Step 4 bond aggregation'!$E$2:$E$661,$BC$89)","v":0},{"$f":"SUMIFS('Step 4 bond aggregation'!$B$2:$B$661,'Step 4 bond aggregation'!$A$2:$A$661,$BU$69,'Step 4 bond aggregation'!$F$2:$F$661,BZ$72,'Step 4 bond aggregation'!$G$2:$G$661,MATCH($BB93,lov_term_buckets,0),'Step 4 bond aggregation'!$E$2:$E$661,$BC$89)","v":0},{"$f":"SUMIFS('Step 4 bond aggregation'!$B$2:$B$661,'Step 4 bond aggregation'!$A$2:$A$661,$BU$69,'Step 4 bond aggregation'!$F$2:$F$661,CA$72,'Step 4 bond aggregation'!$G$2:$G$661,MATCH($BB93,lov_term_buckets,0),'Step 4 bond aggregation'!$E$2:$E$661,$BC$89)","v":0},{"$f":"SUMIFS('Step 4 bond aggregation'!$B$2:$B$661,'Step 4 bond aggregation'!$A$2:$A$661,$BU$69,'Step 4 bond aggregation'!$F$2:$F$661,CB$72,'Step 4 bond aggregation'!$G$2:$G$661,MATCH($BB93,lov_term_buckets,0),'Step 4 bond aggregation'!$E$2:$E$661,$BC$89)","v":0},{"$f":"SUMIFS('Step 4 bond aggregation'!$B$2:$B$661,'Step 4 bond aggregation'!$A$2:$A$661,$BU$69,'Step 4 bond aggregation'!$F$2:$F$661,CC$72,'Step 4 bond aggregation'!$G$2:$G$661,MATCH($BB93,lov_term_buckets,0),'Step 4 bond aggregation'!$E$2:$E$661,$BC$89)","v":0}]
[null,null,"10.01 to 20",{"$f":"Input!F102","v":0},{"$f":"Input!G102","v":0},{"$f":"Input!H102","v":0},{"$f":"Input!I102","v":0},{"$f":"Input!J102","v":0},{"$f":"Input!K102","v":0},{"$f":"Input!L102","v":0},{"$f":"Input!M102","v":0},null,null,"10.01 to 20",{"$f":"Input!F142+Input!F175","v":0},{"$f":"Input!G142+Input!G175","v":0},{"$f":"Input!H142+Input!H175","v":0},{"$f":"Input!I142+Input!I175","v":0},{"$f":"Input!J142+Input!J175","v":0},{"$f":"Input!K142+Input!K175","v":0},{"$f":"Input!L142+Input!L175","v":0},null,null,"10.01 to 20",{"$f":"SUMIFS('Step 4 bond aggregation'!$B$2:$B$661,'Step 4 bond aggregation'!$A$2:$A$661,$W$69,'Step 4 bond aggregation'!$F$2:$F$661,Y$72,'Step 4 bond aggregation'!$G$2:$G$661,MATCH($X94,lov_term_buckets,0),'Step 4 bond aggregation'!$E$2:$E$661,$Y$89)","v":0},{"$f":"SUMIFS('Step 4 bond aggregation'!$B$2:$B$661,'Step 4 bond aggregation'!$A$2:$A$661,$W$69,'Step 4 bond aggregation'!$F$2:$F$661,Z$72,'Step 4 bond aggregation'!$G$2:$G$661,MATCH($X94,lov_term_buckets,0),'Step 4 bond aggregation'!$E$2:$E$661,$Y$89)","v":0},{"$f":"SUMIFS('Step 4 bond aggregation'!$B$2:$B$661,'Step 4 bond aggregation'!$A$2:$A$661,$W$69,'Step 4 bond aggregation'!$F$2:$F$661,AA$72,'Step 4 bond aggregation'!$G$2:$G$661,MATCH($X94,lov_term_buckets,0),'Step 4 bond aggregation'!$E$2:$E$661,$Y$89)","v":0},{"$f":"SUMIFS('Step 4 bond aggregation'!$B$2:$B$661,'Step 4 bond aggregation'!$A$2:$A$661,$W$69,'Step 4 bond aggregation'!$F$2:$F$661,AB$72,'Step 4 bond aggregation'!$G$2:$G$661,MATCH($X94,lov_term_buckets,0),'Step 4 bond aggregation'!$E$2:$E$661,$Y$89)","v":0},{"$f":"SUMIFS('Step 4 bond aggregation'!$B$2:$B$661,'Step 4 bond aggregation'!$A$2:$A$661,$W$69,'Step 4 bond aggregation'!$F$2:$F$661,AC$72,'Step 4 bond aggregation'!$G$2:$G$661,MATCH($X94,lov_term_buckets,0),'Step 4 bond aggregation'!$E$2:$E$661,$Y$89)","v":0},{"$f":"SUMIFS('Step 4 bond aggregation'!$B$2:$B$661,'Step 4 bond aggregation'!$A$2:$A$661,$W$69,'Step 4 bond aggregation'!$F$2:$F$661,AD$72,'Step 4 bond aggregation'!$G$2:$G$661,MATCH($X94,lov_term_buckets,0),'Step 4 bond aggregation'!$E$2:$E$661,$Y$89)","v":0},{"$f":"SUMIFS('Step 4 bond aggregation'!$B$2:$B$661,'Step 4 bond aggregation'!$A$2:$A$661,$W$69,'Step 4 bond aggregation'!$F$2:$F$661,AE$72,'Step 4 bond aggregation'!$G$2:$G$661,MATCH($X94,lov_term_buckets,0),'Step 4 bond aggregation'!$E$2:$E$661,$Y$89)","v":0},null,null,"10.01 to 20",{"$f":"SUMIFS('Step 4 bond aggregation'!$B$2:$B$661,'Step 4 bond aggregation'!$A$2:$A$661,$AG$69,'Step 4 bond aggregation'!$F$2:$F$661,AI$72,'Step 4 bond aggregation'!$G$2:$G$661,MATCH($AH94,lov_term_buckets,0),'Step 4 bond aggregation'!$E$2:$E$661,$AI$89)","v":0},{"$f":"SUMIFS('Step 4 bond aggregation'!$B$2:$B$661,'Step 4 bond aggregation'!$A$2:$A$661,$AG$69,'Step 4 bond aggregation'!$F$2:$F$661,AJ$72,'Step 4 bond aggregation'!$G$2:$G$661,MATCH($AH94,lov_term_buckets,0),'Step 4 bond aggregation'!$E$2:$E$661,$AI$89)","v":0},{"$f":"SUMIFS('Step 4 bond aggregation'!$B$2:$B$661,'Step 4 bond aggregation'!$A$2:$A$661,$AG$69,'Step 4 bond aggregation'!$F$2:$F$661,AK$72,'Step 4 bond aggregation'!$G$2:$G$661,MATCH($AH94,lov_term_buckets,0),'Step 4 bond aggregation'!$E$2:$E$661,$AI$89)","v":0},{"$f":"SUMIFS('Step 4 bond aggregation'!$B$2:$B$661,'Step 4 bond aggregation'!$A$2:$A$661,$AG$69,'Step 4 bond aggregation'!$F$2:$F$661,AL$72,'Step 4 bond aggregation'!$G$2:$G$661,MATCH($AH94,lov_term_buckets,0),'Step 4 bond aggregation'!$E$2:$E$661,$AI$89)","v":0},{"$f":"SUMIFS('Step 4 bond aggregation'!$B$2:$B$661,'Step 4 bond aggregation'!$A$2:$A$661,$AG$69,'Step 4 bond aggregation'!$F$2:$F$661,AM$72,'Step 4 bond aggregation'!$G$2:$G$661,MATCH($AH94,lov_term_buckets,0),'Step 4 bond aggregation'!$E$2:$E$661,$AI$89)","v":0},{"$f":"SUMIFS('Step 4 bond aggregation'!$B$2:$B$661,'Step 4 bond aggregation'!$A$2:$A$661,$AG$69,'Step 4 bond aggregation'!$F$2:$F$661,AN$72,'Step 4 bond aggregation'!$G$2:$G$661,MATCH($AH94,lov_term_buckets,0),'Step 4 bond aggregation'!$E$2:$E$661,$AI$89)","v":0},{"$f":"SUMIFS('Step 4 bond aggregation'!$B$2:$B$661,'Step 4 bond aggregation'!$A$2:$A$661,$AG$69,'Step 4 bond aggregation'!$F$2:$F$661,AO$72,'Step 4 bond aggregation'!$G$2:$G$661,MATCH($AH94,lov_term_buckets,0),'Step 4 bond aggregation'!$E$2:$E$661,$AI$89)","v":0},null,null,"10.01 to 20",{"$f":"SUMIFS('Step 4 bond aggregation'!$B$2:$B$661,'Step 4 bond aggregation'!$A$2:$A$661,$AQ$69,'Step 4 bond aggregation'!$F$2:$F$661,AS$72,'Step 4 bond aggregation'!$G$2:$G$661,MATCH($AR94,lov_term_buckets,0),'Step 4 bond aggregation'!$E$2:$E$661,$AS$89)","v":0},{"$f":"SUMIFS('Step 4 bond aggregation'!$B$2:$B$661,'Step 4 bond aggregation'!$A$2:$A$661,$AQ$69,'Step 4 bond aggregation'!$F$2:$F$661,AT$72,'Step 4 bond aggregation'!$G$2:$G$661,MATCH($AR94,lov_term_buckets,0),'Step 4 bond aggregation'!$E$2:$E$661,$AS$89)","v":0},{"$f":"SUMIFS('Step 4 bond aggregation'!$B$2:$B$661,'Step 4 bond aggregation'!$A$2:$A$661,$AQ$69,'Step 4 bond aggregation'!$F$2:$F$661,AU$72,'Step 4 bond aggregation'!$G$2:$G$661,MATCH($AR94,lov_term_buckets,0),'Step 4 bond aggregation'!$E$2:$E$661,$AS$89)","v":0},{"$f":"SUMIFS('Step 4 bond aggregation'!$B$2:$B$661,'Step 4 bond aggregation'!$A$2:$A$661,$AQ$69,'Step 4 bond aggregation'!$F$2:$F$661,AV$72,'Step 4 bond aggregation'!$G$2:$G$661,MATCH($AR94,lov_term_buckets,0),'Step 4 bond aggregation'!$E$2:$E$661,$AS$89)","v":0},{"$f":"SUMIFS('Step 4 bond aggregation'!$B$2:$B$661,'Step 4 bond aggregation'!$A$2:$A$661,$AQ$69,'Step 4 bond aggregation'!$F$2:$F$661,AW$72,'Step 4 bond aggregation'!$G$2:$G$661,MATCH($AR94,lov_term_buckets,0),'Step 4 bond aggregation'!$E$2:$E$661,$AS$89)","v":0},{"$f":"SUMIFS('Step 4 bond aggregation'!$B$2:$B$661,'Step 4 bond aggregation'!$A$2:$A$661,$AQ$69,'Step 4 bond aggregation'!$F$2:$F$661,AX$72,'Step 4 bond aggregation'!$G$2:$G$661,MATCH($AR94,lov_term_buckets,0),'Step 4 bond aggregation'!$E$2:$E$661,$AS$89)","v":0},{"$f":"SUMIFS('Step 4 bond aggregation'!$B$2:$B$661,'Step 4 bond aggregation'!$A$2:$A$661,$AQ$69,'Step 4 bond aggregation'!$F$2:$F$661,AY$72,'Step 4 bond aggregation'!$G$2:$G$661,MATCH($AR94,lov_term_buckets,0),'Step 4 bond aggregation'!$E$2:$E$661,$AS$89)","v":0},null,null,"10.01 to 20",{"$f":"SUMIFS('Step 4 bond aggregation'!$B$2:$B$661,'Step 4 bond aggregation'!$A$2:$A$661,$BA$69,'Step 4 bond aggregation'!$F$2:$F$661,BC$72,'Step 4 bond aggregation'!$G$2:$G$661,MATCH($BB94,lov_term_buckets,0),'Step 4 bond aggregation'!$E$2:$E$661,$BC$89)","v":0},{"$f":"SUMIFS('Step 4 bond aggregation'!$B$2:$B$661,'Step 4 bond aggregation'!$A$2:$A$661,$BA$69,'Step 4 bond aggregation'!$F$2:$F$661,BD$72,'Step 4 bond aggregation'!$G$2:$G$661,MATCH($BB94,lov_term_buckets,0),'Step 4 bond aggregation'!$E$2:$E$661,$BC$89)","v":0},{"$f":"SUMIFS('Step 4 bond aggregation'!$B$2:$B$661,'Step 4 bond aggregation'!$A$2:$A$661,$BA$69,'Step 4 bond aggregation'!$F$2:$F$661,BE$72,'Step 4 bond aggregation'!$G$2:$G$661,MATCH($BB94,lov_term_buckets,0),'Step 4 bond aggregation'!$E$2:$E$661,$BC$89)","v":0},{"$f":"SUMIFS('Step 4 bond aggregation'!$B$2:$B$661,'Step 4 bond aggregation'!$A$2:$A$661,$BA$69,'Step 4 bond aggregation'!$F$2:$F$661,BF$72,'Step 4 bond aggregation'!$G$2:$G$661,MATCH($BB94,lov_term_buckets,0),'Step 4 bond aggregation'!$E$2:$E$661,$BC$89)","v":0},{"$f":"SUMIFS('Step 4 bond aggregation'!$B$2:$B$661,'Step 4 bond aggregation'!$A$2:$A$661,$BA$69,'Step 4 bond aggregation'!$F$2:$F$661,BG$72,'Step 4 bond aggregation'!$G$2:$G$661,MATCH($BB94,lov_term_buckets,0),'Step 4 bond aggregation'!$E$2:$E$661,$BC$89)","v":0},{"$f":"SUMIFS('Step 4 bond aggregation'!$B$2:$B$661,'Step 4 bond aggregation'!$A$2:$A$661,$BA$69,'Step 4 bond aggregation'!$F$2:$F$661,BH$72,'Step 4 bond aggregation'!$G$2:$G$661,MATCH($BB94,lov_term_buckets,0),'Step 4 bond aggregation'!$E$2:$E$661,$BC$89)","v":0},{"$f":"SUMIFS('Step 4 bond aggregation'!$B$2:$B$661,'Step 4 bond aggregation'!$A$2:$A$661,$BA$69,'Step 4 bond aggregation'!$F$2:$F$661,BI$72,'Step 4 bond aggregation'!$G$2:$G$661,MATCH($BB94,lov_term_buckets,0),'Step 4 bond aggregation'!$E$2:$E$661,$BC$89)","v":0},null,null,"10.01 to 20",{"$f":"SUMIFS('Step 4 bond aggregation'!$B$2:$B$661,'Step 4 bond aggregation'!$A$2:$A$661,$BK$69,'Step 4 bond aggregation'!$F$2:$F$661,BM$72,'Step 4 bond aggregation'!$G$2:$G$661,MATCH($BB94,lov_term_buckets,0),'Step 4 bond aggregation'!$E$2:$E$661,$BC$89)","v":0},{"$f":"SUMIFS('Step 4 bond aggregation'!$B$2:$B$661,'Step 4 bond aggregation'!$A$2:$A$661,$BK$69,'Step 4 bond aggregation'!$F$2:$F$661,BN$72,'Step 4 bond aggregation'!$G$2:$G$661,MATCH($BB94,lov_term_buckets,0),'Step 4 bond aggregation'!$E$2:$E$661,$BC$89)","v":0},{"$f":"SUMIFS('Step 4 bond aggregation'!$B$2:$B$661,'Step 4 bond aggregation'!$A$2:$A$661,$BK$69,'Step 4 bond aggregation'!$F$2:$F$661,BO$72,'Step 4 bond aggregation'!$G$2:$G$661,MATCH($BB94,lov_term_buckets,0),'Step 4 bond aggregation'!$E$2:$E$661,$BC$89)","v":0},{"$f":"SUMIFS('Step 4 bond aggregation'!$B$2:$B$661,'Step 4 bond aggregation'!$A$2:$A$661,$BK$69,'Step 4 bond aggregation'!$F$2:$F$661,BP$72,'Step 4 bond aggregation'!$G$2:$G$661,MATCH($BB94,lov_term_buckets,0),'Step 4 bond aggregation'!$E$2:$E$661,$BC$89)","v":0},{"$f":"SUMIFS('Step 4 bond aggregation'!$B$2:$B$661,'Step 4 bond aggregation'!$A$2:$A$661,$BK$69,'Step 4 bond aggregation'!$F$2:$F$661,BQ$72,'Step 4 bond aggregation'!$G$2:$G$661,MATCH($BB94,lov_term_buckets,0),'Step 4 bond aggregation'!$E$2:$E$661,$BC$89)","v":0},{"$f":"SUMIFS('Step 4 bond aggregation'!$B$2:$B$661,'Step 4 bond aggregation'!$A$2:$A$661,$BK$69,'Step 4 bond aggregation'!$F$2:$F$661,BR$72,'Step 4 bond aggregation'!$G$2:$G$661,MATCH($BB94,lov_term_buckets,0),'Step 4 bond aggregation'!$E$2:$E$661,$BC$89)","v":0},{"$f":"SUMIFS('Step 4 bond aggregation'!$B$2:$B$661,'Step 4 bond aggregation'!$A$2:$A$661,$BK$69,'Step 4 bond aggregation'!$F$2:$F$661,BS$72,'Step 4 bond aggregation'!$G$2:$G$661,MATCH($BB94,lov_term_buckets,0),'Step 4 bond aggregation'!$E$2:$E$661,$BC$89)","v":0},null,null,"10.01 to 20",{"$f":"SUMIFS('Step 4 bond aggregation'!$B$2:$B$661,'Step 4 bond aggregation'!$A$2:$A$661,$BU$69,'Step 4 bond aggregation'!$F$2:$F$661,BW$72,'Step 4 bond aggregation'!$G$2:$G$661,MATCH($BB94,lov_term_buckets,0),'Step 4 bond aggregation'!$E$2:$E$661,$BC$89)","v":0},{"$f":"SUMIFS('Step 4 bond aggregation'!$B$2:$B$661,'Step 4 bond aggregation'!$A$2:$A$661,$BU$69,'Step 4 bond aggregation'!$F$2:$F$661,BX$72,'Step 4 bond aggregation'!$G$2:$G$661,MATCH($BB94,lov_term_buckets,0),'Step 4 bond aggregation'!$E$2:$E$661,$BC$89)","v":0},{"$f":"SUMIFS('Step 4 bond aggregation'!$B$2:$B$661,'Step 4 bond aggregation'!$A$2:$A$661,$BU$69,'Step 4 bond aggregation'!$F$2:$F$661,BY$72,'Step 4 bond aggregation'!$G$2:$G$661,MATCH($BB94,lov_term_buckets,0),'Step 4 bond aggregation'!$E$2:$E$661,$BC$89)","v":0},{"$f":"SUMIFS('Step 4 bond aggregation'!$B$2:$B$661,'Step 4 bond aggregation'!$A$2:$A$661,$BU$69,'Step 4 bond aggregation'!$F$2:$F$661,BZ$72,'Step 4 bond aggregation'!$G$2:$G$661,MATCH($BB94,lov_term_buckets,0),'Step 4 bond aggregation'!$E$2:$E$661,$BC$89)","v":0},{"$f":"SUMIFS('Step 4 bond aggregation'!$B$2:$B$661,'Step 4 bond aggregation'!$A$2:$A$661,$BU$69,'Step 4 bond aggregation'!$F$2:$F$661,CA$72,'Step 4 bond aggregation'!$G$2:$G$661,MATCH($BB94,lov_term_buckets,0),'Step 4 bond aggregation'!$E$2:$E$661,$BC$89)","v":0},{"$f":"SUMIFS('Step 4 bond aggregation'!$B$2:$B$661,'Step 4 bond aggregation'!$A$2:$A$661,$BU$69,'Step 4 bond aggregation'!$F$2:$F$661,CB$72,'Step 4 bond aggregation'!$G$2:$G$661,MATCH($BB94,lov_term_buckets,0),'Step 4 bond aggregation'!$E$2:$E$661,$BC$89)","v":0},{"$f":"SUMIFS('Step 4 bond aggregation'!$B$2:$B$661,'Step 4 bond aggregation'!$A$2:$A$661,$BU$69,'Step 4 bond aggregation'!$F$2:$F$661,CC$72,'Step 4 bond aggregation'!$G$2:$G$661,MATCH($BB94,lov_term_buckets,0),'Step 4 bond aggregation'!$E$2:$E$661,$BC$89)","v":0}]
[null,null,"More than 20",{"$f":"Input!F103","v":0},{"$f":"Input!G103","v":0},{"$f":"Input!H103","v":0},{"$f":"Input!I103","v":0},{"$f":"Input!J103","v":0},{"$f":"Input!K103","v":0},{"$f":"Input!L103","v":0},{"$f":"Input!M103","v":0},null,null,"More than 20",{"$f":"Input!F143+Input!F176","v":0},{"$f":"Input!G143+Input!G176","v":0},{"$f":"Input!H143+Input!H176","v":0},{"$f":"Input!I143+Input!I176","v":0},{"$f":"Input!J143+Input!J176","v":0},{"$f":"Input!K143+Input!K176","v":0},{"$f":"Input!L143+Input!L176","v":0},null,null,"More than 20",{"$f":"SUMIFS('Step 4 bond aggregation'!$B$2:$B$661,'Step 4 bond aggregation'!$A$2:$A$661,$W$69,'Step 4 bond aggregation'!$F$2:$F$661,Y$72,'Step 4 bond aggregation'!$G$2:$G$661,MATCH($X95,lov_term_buckets,0),'Step 4 bond aggregation'!$E$2:$E$661,$Y$89)","v":0},{"$f":"SUMIFS('Step 4 bond aggregation'!$B$2:$B$661,'Step 4 bond aggregation'!$A$2:$A$661,$W$69,'Step 4 bond aggregation'!$F$2:$F$661,Z$72,'Step 4 bond aggregation'!$G$2:$G$661,MATCH($X95,lov_term_buckets,0),'Step 4 bond aggregation'!$E$2:$E$661,$Y$89)","v":0},{"$f":"SUMIFS('Step 4 bond aggregation'!$B$2:$B$661,'Step 4 bond aggregation'!$A$2:$A$661,$W$69,'Step 4 bond aggregation'!$F$2:$F$661,AA$72,'Step 4 bond aggregation'!$G$2:$G$661,MATCH($X95,lov_term_buckets,0),'Step 4 bond aggregation'!$E$2:$E$661,$Y$89)","v":0},{"$f":"SUMIFS('Step 4 bond aggregation'!$B$2:$B$661,'Step 4 bond aggregation'!$A$2:$A$661,$W$69,'Step 4 bond aggregation'!$F$2:$F$661,AB$72,'Step 4 bond aggregation'!$G$2:$G$661,MATCH($X95,lov_term_buckets,0),'Step 4 bond aggregation'!$E$2:$E$661,$Y$89)","v":0},{"$f":"SUMIFS('Step 4 bond aggregation'!$B$2:$B$661,'Step 4 bond aggregation'!$A$2:$A$661,$W$69,'Step 4 bond aggregation'!$F$2:$F$661,AC$72,'Step 4 bond aggregation'!$G$2:$G$661,MATCH($X95,lov_term_buckets,0),'Step 4 bond aggregation'!$E$2:$E$661,$Y$89)","v":0},{"$f":"SUMIFS('Step 4 bond aggregation'!$B$2:$B$661,'Step 4 bond aggregation'!$A$2:$A$661,$W$69,'Step 4 bond aggregation'!$F$2:$F$661,AD$72,'Step 4 bond aggregation'!$G$2:$G$661,MATCH($X95,lov_term_buckets,0),'Step 4 bond aggregation'!$E$2:$E$661,$Y$89)","v":0},{"$f":"SUMIFS('Step 4 bond aggregation'!$B$2:$B$661,'Step 4 bond aggregation'!$A$2:$A$661,$W$69,'Step 4 bond aggregation'!$F$2:$F$661,AE$72,'Step 4 bond aggregation'!$G$2:$G$661,MATCH($X95,lov_term_buckets,0),'Step 4 bond aggregation'!$E$2:$E$661,$Y$89)","v":0},null,null,"More than 20",{"$f":"SUMIFS('Step 4 bond aggregation'!$B$2:$B$661,'Step 4 bond aggregation'!$A$2:$A$661,$AG$69,'Step 4 bond aggregation'!$F$2:$F$661,AI$72,'Step 4 bond aggregation'!$G$2:$G$661,MATCH($AH95,lov_term_buckets,0),'Step 4 bond aggregation'!$E$2:$E$661,$AI$89)","v":0},{"$f":"SUMIFS('Step 4 bond aggregation'!$B$2:$B$661,'Step 4 bond aggregation'!$A$2:$A$661,$AG$69,'Step 4 bond aggregation'!$F$2:$F$661,AJ$72,'Step 4 bond aggregation'!$G$2:$G$661,MATCH($AH95,lov_term_buckets,0),'Step 4 bond aggregation'!$E$2:$E$661,$AI$89)","v":0},{"$f":"SUMIFS('Step 4 bond aggregation'!$B$2:$B$661,'Step 4 bond aggregation'!$A$2:$A$661,$AG$69,'Step 4 bond aggregation'!$F$2:$F$661,AK$72,'Step 4 bond aggregation'!$G$2:$G$661,MATCH($AH95,lov_term_buckets,0),'Step 4 bond aggregation'!$E$2:$E$661,$AI$89)","v":0},{"$f":"SUMIFS('Step 4 bond aggregation'!$B$2:$B$661,'Step 4 bond aggregation'!$A$2:$A$661,$AG$69,'Step 4 bond aggregation'!$F$2:$F$661,AL$72,'Step 4 bond aggregation'!$G$2:$G$661,MATCH($AH95,lov_term_buckets,0),'Step 4 bond aggregation'!$E$2:$E$661,$AI$89)","v":0},{"$f":"SUMIFS('Step 4 bond aggregation'!$B$2:$B$661,'Step 4 bond aggregation'!$A$2:$A$661,$AG$69,'Step 4 bond aggregation'!$F$2:$F$661,AM$72,'Step 4 bond aggregation'!$G$2:$G$661,MATCH($AH95,lov_term_buckets,0),'Step 4 bond aggregation'!$E$2:$E$661,$AI$89)","v":0},{"$f":"SUMIFS('Step 4 bond aggregation'!$B$2:$B$661,'Step 4 bond aggregation'!$A$2:$A$661,$AG$69,'Step 4 bond aggregation'!$F$2:$F$661,AN$72,'Step 4 bond aggregation'!$G$2:$G$661,MATCH($AH95,lov_term_buckets,0),'Step 4 bond aggregation'!$E$2:$E$661,$AI$89)","v":0},{"$f":"SUMIFS('Step 4 bond aggregation'!$B$2:$B$661,'Step 4 bond aggregation'!$A$2:$A$661,$AG$69,'Step 4 bond aggregation'!$F$2:$F$661,AO$72,'Step 4 bond aggregation'!$G$2:$G$661,MATCH($AH95,lov_term_buckets,0),'Step 4 bond aggregation'!$E$2:$E$661,$AI$89)","v":0},null,null,"More than 20",{"$f":"SUMIFS('Step 4 bond aggregation'!$B$2:$B$661,'Step 4 bond aggregation'!$A$2:$A$661,$AQ$69,'Step 4 bond aggregation'!$F$2:$F$661,AS$72,'Step 4 bond aggregation'!$G$2:$G$661,MATCH($AR95,lov_term_buckets,0),'Step 4 bond aggregation'!$E$2:$E$661,$AS$89)","v":0},{"$f":"SUMIFS('Step 4 bond aggregation'!$B$2:$B$661,'Step 4 bond aggregation'!$A$2:$A$661,$AQ$69,'Step 4 bond aggregation'!$F$2:$F$661,AT$72,'Step 4 bond aggregation'!$G$2:$G$661,MATCH($AR95,lov_term_buckets,0),'Step 4 bond aggregation'!$E$2:$E$661,$AS$89)","v":0},{"$f":"SUMIFS('Step 4 bond aggregation'!$B$2:$B$661,'Step 4 bond aggregation'!$A$2:$A$661,$AQ$69,'Step 4 bond aggregation'!$F$2:$F$661,AU$72,'Step 4 bond aggregation'!$G$2:$G$661,MATCH($AR95,lov_term_buckets,0),'Step 4 bond aggregation'!$E$2:$E$661,$AS$89)","v":0},{"$f":"SUMIFS('Step 4 bond aggregation'!$B$2:$B$661,'Step 4 bond aggregation'!$A$2:$A$661,$AQ$69,'Step 4 bond aggregation'!$F$2:$F$661,AV$72,'Step 4 bond aggregation'!$G$2:$G$661,MATCH($AR95,lov_term_buckets,0),'Step 4 bond aggregation'!$E$2:$E$661,$AS$89)","v":0},{"$f":"SUMIFS('Step 4 bond aggregation'!$B$2:$B$661,'Step 4 bond aggregation'!$A$2:$A$661,$AQ$69,'Step 4 bond aggregation'!$F$2:$F$661,AW$72,'Step 4 bond aggregation'!$G$2:$G$661,MATCH($AR95,lov_term_buckets,0),'Step 4 bond aggregation'!$E$2:$E$661,$AS$89)","v":0},{"$f":"SUMIFS('Step 4 bond aggregation'!$B$2:$B$661,'Step 4 bond aggregation'!$A$2:$A$661,$AQ$69,'Step 4 bond aggregation'!$F$2:$F$661,AX$72,'Step 4 bond aggregation'!$G$2:$G$661,MATCH($AR95,lov_term_buckets,0),'Step 4 bond aggregation'!$E$2:$E$661,$AS$89)","v":0},{"$f":"SUMIFS('Step 4 bond aggregation'!$B$2:$B$661,'Step 4 bond aggregation'!$A$2:$A$661,$AQ$69,'Step 4 bond aggregation'!$F$2:$F$661,AY$72,'Step 4 bond aggregation'!$G$2:$G$661,MATCH($AR95,lov_term_buckets,0),'Step 4 bond aggregation'!$E$2:$E$661,$AS$89)","v":0},null,null,"More than 20",{"$f":"SUMIFS('Step 4 bond aggregation'!$B$2:$B$661,'Step 4 bond aggregation'!$A$2:$A$661,$BA$69,'Step 4 bond aggregation'!$F$2:$F$661,BC$72,'Step 4 bond aggregation'!$G$2:$G$661,MATCH($BB95,lov_term_buckets,0),'Step 4 bond aggregation'!$E$2:$E$661,$BC$89)","v":0},{"$f":"SUMIFS('Step 4 bond aggregation'!$B$2:$B$661,'Step 4 bond aggregation'!$A$2:$A$661,$BA$69,'Step 4 bond aggregation'!$F$2:$F$661,BD$72,'Step 4 bond aggregation'!$G$2:$G$661,MATCH($BB95,lov_term_buckets,0),'Step 4 bond aggregation'!$E$2:$E$661,$BC$89)","v":0},{"$f":"SUMIFS('Step 4 bond aggregation'!$B$2:$B$661,'Step 4 bond aggregation'!$A$2:$A$661,$BA$69,'Step 4 bond aggregation'!$F$2:$F$661,BE$72,'Step 4 bond aggregation'!$G$2:$G$661,MATCH($BB95,lov_term_buckets,0),'Step 4 bond aggregation'!$E$2:$E$661,$BC$89)","v":0},{"$f":"SUMIFS('Step 4 bond aggregation'!$B$2:$B$661,'Step 4 bond aggregation'!$A$2:$A$661,$BA$69,'Step 4 bond aggregation'!$F$2:$F$661,BF$72,'Step 4 bond aggregation'!$G$2:$G$661,MATCH($BB95,lov_term_buckets,0),'Step 4 bond aggregation'!$E$2:$E$661,$BC$89)","v":0},{"$f":"SUMIFS('Step 4 bond aggregation'!$B$2:$B$661,'Step 4 bond aggregation'!$A$2:$A$661,$BA$69,'Step 4 bond aggregation'!$F$2:$F$661,BG$72,'Step 4 bond aggregation'!$G$2:$G$661,MATCH($BB95,lov_term_buckets,0),'Step 4 bond aggregation'!$E$2:$E$661,$BC$89)","v":0},{"$f":"SUMIFS('Step 4 bond aggregation'!$B$2:$B$661,'Step 4 bond aggregation'!$A$2:$A$661,$BA$69,'Step 4 bond aggregation'!$F$2:$F$661,BH$72,'Step 4 bond aggregation'!$G$2:$G$661,MATCH($BB95,lov_term_buckets,0),'Step 4 bond aggregation'!$E$2:$E$661,$BC$89)","v":0},{"$f":"SUMIFS('Step 4 bond aggregation'!$B$2:$B$661,'Step 4 bond aggregation'!$A$2:$A$661,$BA$69,'Step 4 bond aggregation'!$F$2:$F$661,BI$72,'Step 4 bond aggregation'!$G$2:$G$661,MATCH($BB95,lov_term_buckets,0),'Step 4 bond aggregation'!$E$2:$E$661,$BC$89)","v":0},null,null,"More than 20",{"$f":"SUMIFS('Step 4 bond aggregation'!$B$2:$B$661,'Step 4 bond aggregation'!$A$2:$A$661,$BK$69,'Step 4 bond aggregation'!$F$2:$F$661,BM$72,'Step 4 bond aggregation'!$G$2:$G$661,MATCH($BB95,lov_term_buckets,0),'Step 4 bond aggregation'!$E$2:$E$661,$BC$89)","v":0},{"$f":"SUMIFS('Step 4 bond aggregation'!$B$2:$B$661,'Step 4 bond aggregation'!$A$2:$A$661,$BK$69,'Step 4 bond aggregation'!$F$2:$F$661,BN$72,'Step 4 bond aggregation'!$G$2:$G$661,MATCH($BB95,lov_term_buckets,0),'Step 4 bond aggregation'!$E$2:$E$661,$BC$89)","v":0},{"$f":"SUMIFS('Step 4 bond aggregation'!$B$2:$B$661,'Step 4 bond aggregation'!$A$2:$A$661,$BK$69,'Step 4 bond aggregation'!$F$2:$F$661,BO$72,'Step 4 bond aggregation'!$G$2:$G$661,MATCH($BB95,lov_term_buckets,0),'Step 4 bond aggregation'!$E$2:$E$661,$BC$89)","v":0},{"$f":"SUMIFS('Step 4 bond aggregation'!$B$2:$B$661,'Step 4 bond aggregation'!$A$2:$A$661,$BK$69,'Step 4 bond aggregation'!$F$2:$F$661,BP$72,'Step 4 bond aggregation'!$G$2:$G$661,MATCH($BB95,lov_term_buckets,0),'Step 4 bond aggregation'!$E$2:$E$661,$BC$89)","v":0},{"$f":"SUMIFS('Step 4 bond aggregation'!$B$2:$B$661,'Step 4 bond aggregation'!$A$2:$A$661,$BK$69,'Step 4 bond aggregation'!$F$2:$F$661,BQ$72,'Step 4 bond aggregation'!$G$2:$G$661,MATCH($BB95,lov_term_buckets,0),'Step 4 bond aggregation'!$E$2:$E$661,$BC$89)","v":0},{"$f":"SUMIFS('Step 4 bond aggregation'!$B$2:$B$661,'Step 4 bond aggregation'!$A$2:$A$661,$BK$69,'Step 4 bond aggregation'!$F$2:$F$661,BR$72,'Step 4 bond aggregation'!$G$2:$G$661,MATCH($BB95,lov_term_buckets,0),'Step 4 bond aggregation'!$E$2:$E$661,$BC$89)","v":0},{"$f":"SUMIFS('Step 4 bond aggregation'!$B$2:$B$661,'Step 4 bond aggregation'!$A$2:$A$661,$BK$69,'Step 4 bond aggregation'!$F$2:$F$661,BS$72,'Step 4 bond aggregation'!$G$2:$G$661,MATCH($BB95,lov_term_buckets,0),'Step 4 bond aggregation'!$E$2:$E$661,$BC$89)","v":0},null,null,"More than 20",{"$f":"SUMIFS('Step 4 bond aggregation'!$B$2:$B$661,'Step 4 bond aggregation'!$A$2:$A$661,$BU$69,'Step 4 bond aggregation'!$F$2:$F$661,BW$72,'Step 4 bond aggregation'!$G$2:$G$661,MATCH($BB95,lov_term_buckets,0),'Step 4 bond aggregation'!$E$2:$E$661,$BC$89)","v":0},{"$f":"SUMIFS('Step 4 bond aggregation'!$B$2:$B$661,'Step 4 bond aggregation'!$A$2:$A$661,$BU$69,'Step 4 bond aggregation'!$F$2:$F$661,BX$72,'Step 4 bond aggregation'!$G$2:$G$661,MATCH($BB95,lov_term_buckets,0),'Step 4 bond aggregation'!$E$2:$E$661,$BC$89)","v":0},{"$f":"SUMIFS('Step 4 bond aggregation'!$B$2:$B$661,'Step 4 bond aggregation'!$A$2:$A$661,$BU$69,'Step 4 bond aggregation'!$F$2:$F$661,BY$72,'Step 4 bond aggregation'!$G$2:$G$661,MATCH($BB95,lov_term_buckets,0),'Step 4 bond aggregation'!$E$2:$E$661,$BC$89)","v":0},{"$f":"SUMIFS('Step 4 bond aggregation'!$B$2:$B$661,'Step 4 bond aggregation'!$A$2:$A$661,$BU$69,'Step 4 bond aggregation'!$F$2:$F$661,BZ$72,'Step 4 bond aggregation'!$G$2:$G$661,MATCH($BB95,lov_term_buckets,0),'Step 4 bond aggregation'!$E$2:$E$661,$BC$89)","v":0},{"$f":"SUMIFS('Step 4 bond aggregation'!$B$2:$B$661,'Step 4 bond aggregation'!$A$2:$A$661,$BU$69,'Step 4 bond aggregation'!$F$2:$F$661,CA$72,'Step 4 bond aggregation'!$G$2:$G$661,MATCH($BB95,lov_term_buckets,0),'Step 4 bond aggregation'!$E$2:$E$661,$BC$89)","v":0},{"$f":"SUMIFS('Step 4 bond aggregation'!$B$2:$B$661,'Step 4 bond aggregation'!$A$2:$A$661,$BU$69,'Step 4 bond aggregation'!$F$2:$F$661,CB$72,'Step 4 bond aggregation'!$G$2:$G$661,MATCH($BB95,lov_term_buckets,0),'Step 4 bond aggregation'!$E$2:$E$661,$BC$89)","v":0},{"$f":"SUMIFS('Step 4 bond aggregation'!$B$2:$B$661,'Step 4 bond aggregation'!$A$2:$A$661,$BU$69,'Step 4 bond aggregation'!$F$2:$F$661,CC$72,'Step 4 bond aggregation'!$G$2:$G$661,MATCH($BB95,lov_term_buckets,0),'Step 4 bond aggregation'!$E$2:$E$661,$BC$89)","v":0}]
[null,null,"Total",{"$f":"SUM(D91:K95)","v":0},null,null,null,null,null,null,null,null,null,"Total",{"$f":"SUM(O91:U95)","v":0},null,null,null,null,null,null,null,null,"Total",{"$f":"SUM(Y91:AE95)","v":0},null,null,null,null,null,null,null,null,"Total",{"$f":"SUM(AI91:AO95)","v":0},null,null,null,null,null,null,null,null,"Total",{"$f":"SUM(AS91:AY95)","v":0},null,null,null,null,null,null,null,null,"Total",{"$f":"SUM(BC91:BI95)","v":0},null,null,null,null,null,null,null,null,"Total",{"$f":"SUM(BM91:BS95)","v":0},null,null,null,null,null,null,null,null,"Total",{"$f":"SUM(BW91:CC95)","v":0}]
[]
[null,null,"Credit Risk Recovery Category",{"$f":"Lists!$C$6","v":4},null,null,null,null,null,null,null,null,null,"Credit Risk Recovery Category",{"$f":"Lists!$C$6","v":4},null,null,null,null,null,null,null,null,"Credit Risk Recovery Category",{"$f":"Lists!$C$6","v":4},null,null,null,null,null,null,null,null,"Credit Risk Recovery Category",{"$f":"Lists!$C$6","v":4},null,null,null,null,null,null,null,null,"Credit Risk Recovery Category",{"$f":"Lists!$C$6","v":4},null,null,null,null,null,null,null,null,"Credit Risk Recovery Category",{"$f":"Lists!$C$6","v":4},null,null,null,null,null,null,null,null,"Credit Risk Recovery Category",{"$f":"Lists!$C$6","v":4},null,null,null,null,null,null,null,null,"Credit Risk Recovery Category",{"$f":"Lists!$C$6","v":4}]
[null,null,"Term (years)","AAA","AA","A","BBB","BB","B","CCC-C","D",null,null,"Term (years)","AAA","AA","A","BBB","BB","B","CCC-C",null,null,"Term (years)","AAA","AA","A","BBB","BB","B","CCC-C",null,null,"Term (years)","AAA","AA","A","BBB","BB","B","CCC-C",null,null,"Term (years)","AAA","AA","A","BBB","BB","B","CCC-C",null,null,"Term (years)","AAA","AA","A","BBB","BB","B","CCC-C",null,null,"Term (years)","AAA","AA","A","BBB","BB","B","CCC-C",null,null,"Term (years)","AAA","AA","A","BBB","BB","B","CCC-C"]
[null,null,"Upto 1",{"$f":"Input!F107","v":0},{"$f":"Input!G107","v":0},{"$f":"Input!H107","v":0},{"$f":"Input!I107","v":0},{"$f":"Input!J107","v":0},{"$f":"Input!K107","v":0},{"$f":"Input!L107","v":0},{"$f":"Input!M107","v":0},null,null,"Upto 1",{"$f":"Input!F147+Input!F180","v":0},{"$f":"Input!G147+Input!G180","v":0},{"$f":"Input!H147+Input!H180","v":0},{"$f":"Input!I147+Input!I180","v":0},{"$f":"Input!J147+Input!J180","v":0},{"$f":"Input!K147+Input!K180","v":0},{"$f":"Input!L147+Input!L180","v":0},null,null,"Upto 1",{"$f":"SUMIFS('Step 4 bond aggregation'!$B$2:$B$661,'Step 4 bond aggregation'!$A$2:$A$661,$W$69,'Step 4 bond aggregation'!$F$2:$F$661,Y$72,'Step 4 bond aggregation'!$G$2:$G$661,MATCH($X100,lov_term_buckets,0),'Step 4 bond aggregation'!$E$2:$E$661,$Y$98)","v":0},{"$f":"SUMIFS('Step 4 bond aggregation'!$B$2:$B$661,'Step 4 bond aggregation'!$A$2:$A$661,$W$69,'Step 4 bond aggregation'!$F$2:$F$661,Z$72,'Step 4 bond aggregation'!$G$2:$G$661,MATCH($X100,lov_term_buckets,0),'Step 4 bond aggregation'!$E$2:$E$661,$Y$98)","v":0},{"$f":"SUMIFS('Step 4 bond aggregation'!$B$2:$B$661,'Step 4 bond aggregation'!$A$2:$A$661,$W$69,'Step 4 bond aggregation'!$F$2:$F$661,AA$72,'Step 4 bond aggregation'!$G$2:$G$661,MATCH($X100,lov_term_buckets,0),'Step 4 bond aggregation'!$E$2:$E$661,$Y$98)","v":0},{"$f":"SUMIFS('Step 4 bond aggregation'!$B$2:$B$661,'Step 4 bond aggregation'!$A$2:$A$661,$W$69,'Step 4 bond aggregation'!$F$2:$F$661,AB$72,'Step 4 bond aggregation'!$G$2:$G$661,MATCH($X100,lov_term_buckets,0),'Step 4 bond aggregation'!$E$2:$E$661,$Y$98)","v":0},{"$f":"SUMIFS('Step 4 bond aggregation'!$B$2:$B$661,'Step 4 bond aggregation'!$A$2:$A$661,$W$69,'Step 4 bond aggregation'!$F$2:$F$661,AC$72,'Step 4 bond aggregation'!$G$2:$G$661,MATCH($X100,lov_term_buckets,0),'Step 4 bond aggregation'!$E$2:$E$661,$Y$98)","v":0},{"$f":"SUMIFS('Step 4 bond aggregation'!$B$2:$B$661,'Step 4 bond aggregation'!$A$2:$A$661,$W$69,'Step 4 bond aggregation'!$F$2:$F$661,AD$72,'Step 4 bond aggregation'!$G$2:$G$661,MATCH($X100,lov_term_buckets,0),'Step 4 bond aggregation'!$E$2:$E$661,$Y$98)","v":0},{"$f":"SUMIFS('Step 4 bond aggregation'!$B$2:$B$661,'Step 4 bond aggregation'!$A$2:$A$661,$W$69,'Step 4 bond aggregation'!$F$2:$F$661,AE$72,'Step 4 bond aggregation'!$G$2:$G$661,MATCH($X100,lov_term_buckets,0),'Step 4 bond aggregation'!$E$2:$E$661,$Y$98)","v":0},null,null,"Upto 1",{"$f":"SUMIFS('Step 4 bond aggregation'!$B$2:$B$661,'Step 4 bond aggregation'!$A$2:$A$661,$AG$69,'Step 4 bond aggregation'!$F$2:$F$661,AI$72,'Step 4 bond aggregation'!$G$2:$G$661,MATCH($AH100,lov_term_buckets,0),'Step 4 bond aggregation'!$E$2:$E$661,$AI$98)","v":0},{"$f":"SUMIFS('Step 4 bond aggregation'!$B$2:$B$661,'Step 4 bond aggregation'!$A$2:$A$661,$AG$69,'Step 4 bond aggregation'!$F$2:$F$661,AJ$72,'Step 4 bond aggregation'!$G$2:$G$661,MATCH($AH100,lov_term_buckets,0),'Step 4 bond aggregation'!$E$2:$E$661,$AI$98)","v":0},{"$f":"SUMIFS('Step 4 bond aggregation'!$B$2:$B$661,'Step 4 bond aggregation'!$A$2:$A$661,$AG$69,'Step 4 bond aggregation'!$F$2:$F$661,AK$72,'Step 4 bond aggregation'!$G$2:$G$661,MATCH($AH100,lov_term_buckets,0),'Step 4 bond aggregation'!$E$2:$E$661,$AI$98)","v":0},{"$f":"SUMIFS('Step 4 bond aggregation'!$B$2:$B$661,'Step 4 bond aggregation'!$A$2:$A$661,$AG$69,'Step 4 bond aggregation'!$F$2:$F$661,AL$72,'Step 4 bond aggregation'!$G$2:$G$661,MATCH($AH100,lov_term_buckets,0),'Step 4 bond aggregation'!$E$2:$E$661,$AI$98)","v":0},{"$f":"SUMIFS('Step 4 bond aggregation'!$B$2:$B$661,'Step 4 bond aggregation'!$A$2:$A$661,$AG$69,'Step 4 bond aggregation'!$F$2:$F$661,AM$72,'Step 4 bond aggregation'!$G$2:$G$661,MATCH($AH100,lov_term_buckets,0),'Step 4 bond aggregation'!$E$2:$E$661,$AI$98)","v":0},{"$f":"SUMIFS('Step 4 bond aggregation'!$B$2:$B$661,'Step 4 bond aggregation'!$A$2:$A$661,$AG$69,'Step 4 bond aggregation'!$F$2:$F$661,AN$72,'Step 4 bond aggregation'!$G$2:$G$661,MATCH($AH100,lov_term_buckets,0),'Step 4 bond aggregation'!$E$2:$E$661,$AI$98)","v":0},{"$f":"SUMIFS('Step 4 bond aggregation'!$B$2:$B$661,'Step 4 bond aggregation'!$A$2:$A$661,$AG$69,'Step 4 bond aggregation'!$F$2:$F$661,AO$72,'Step 4 bond aggregation'!$G$2:$G$661,MATCH($AH100,lov_term_buckets,0),'Step 4 bond aggregation'!$E$2:$E$661,$AI$98)","v":0},null,null,"Upto 1",{"$f":"SUMIFS('Step 4 bond aggregation'!$B$2:$B$661,'Step 4 bond aggregation'!$A$2:$A$661,$AQ$69,'Step 4 bond aggregation'!$F$2:$F$661,AS$72,'Step 4 bond aggregation'!$G$2:$G$661,MATCH($AR100,lov_term_buckets,0),'Step 4 bond aggregation'!$E$2:$E$661,$AS$98)","v":0},{"$f":"SUMIFS('Step 4 bond aggregation'!$B$2:$B$661,'Step 4 bond aggregation'!$A$2:$A$661,$AQ$69,'Step 4 bond aggregation'!$F$2:$F$661,AT$72,'Step 4 bond aggregation'!$G$2:$G$661,MATCH($AR100,lov_term_buckets,0),'Step 4 bond aggregation'!$E$2:$E$661,$AS$98)","v":0},{"$f":"SUMIFS('Step 4 bond aggregation'!$B$2:$B$661,'Step 4 bond aggregation'!$A$2:$A$661,$AQ$69,'Step 4 bond aggregation'!$F$2:$F$661,AU$72,'Step 4 bond aggregation'!$G$2:$G$661,MATCH($AR100,lov_term_buckets,0),'Step 4 bond aggregation'!$E$2:$E$661,$AS$98)","v":0},{"$f":"SUMIFS('Step 4 bond aggregation'!$B$2:$B$661,'Step 4 bond aggregation'!$A$2:$A$661,$AQ$69,'Step 4 bond aggregation'!$F$2:$F$661,AV$72,'Step 4 bond aggregation'!$G$2:$G$661,MATCH($AR100,lov_term_buckets,0),'Step 4 bond aggregation'!$E$2:$E$661,$AS$98)","v":0},{"$f":"SUMIFS('Step 4 bond aggregation'!$B$2:$B$661,'Step 4 bond aggregation'!$A$2:$A$661,$AQ$69,'Step 4 bond aggregation'!$F$2:$F$661,AW$72,'Step 4 bond aggregation'!$G$2:$G$661,MATCH($AR100,lov_term_buckets,0),'Step 4 bond aggregation'!$E$2:$E$661,$AS$98)","v":0},{"$f":"SUMIFS('Step 4 bond aggregation'!$B$2:$B$661,'Step 4 bond aggregation'!$A$2:$A$661,$AQ$69,'Step 4 bond aggregation'!$F$2:$F$661,AX$72,'Step 4 bond aggregation'!$G$2:$G$661,MATCH($AR100,lov_term_buckets,0),'Step 4 bond aggregation'!$E$2:$E$661,$AS$98)","v":0},{"$f":"SUMIFS('Step 4 bond aggregation'!$B$2:$B$661,'Step 4 bond aggregation'!$A$2:$A$661,$AQ$69,'Step 4 bond aggregation'!$F$2:$F$661,AY$72,'Step 4 bond aggregation'!$G$2:$G$661,MATCH($AR100,lov_term_buckets,0),'Step 4 bond aggregation'!$E$2:$E$661,$AS$98)","v":0},null,null,"Upto 1",{"$f":"SUMIFS('Step 4 bond aggregation'!$B$2:$B$661,'Step 4 bond aggregation'!$A$2:$A$661,$BA$69,'Step 4 bond aggregation'!$F$2:$F$661,BC$72,'Step 4 bond aggregation'!$G$2:$G$661,MATCH($BB100,lov_term_buckets,0),'Step 4 bond aggregation'!$E$2:$E$661,$BC$98)","v":0},{"$f":"SUMIFS('Step 4 bond aggregation'!$B$2:$B$661,'Step 4 bond aggregation'!$A$2:$A$661,$BA$69,'Step 4 bond aggregation'!$F$2:$F$661,BD$72,'Step 4 bond aggregation'!$G$2:$G$661,MATCH($BB100,lov_term_buckets,0),'Step 4 bond aggregation'!$E$2:$E$661,$BC$98)","v":0},{"$f":"SUMIFS('Step 4 bond aggregation'!$B$2:$B$661,'Step 4 bond aggregation'!$A$2:$A$661,$BA$69,'Step 4 bond aggregation'!$F$2:$F$661,BE$72,'Step 4 bond aggregation'!$G$2:$G$661,MATCH($BB100,lov_term_buckets,0),'Step 4 bond aggregation'!$E$2:$E$661,$BC$98)","v":0},{"$f":"SUMIFS('Step 4 bond aggregation'!$B$2:$B$661,'Step 4 bond aggregation'!$A$2:$A$661,$BA$69,'Step 4 bond aggregation'!$F$2:$F$661,BF$72,'Step 4 bond aggregation'!$G$2:$G$661,MATCH($BB100,lov_term_buckets,0),'Step 4 bond aggregation'!$E$2:$E$661,$BC$98)","v":0},{"$f":"SUMIFS('Step 4 bond aggregation'!$B$2:$B$661,'Step 4 bond aggregation'!$A$2:$A$661,$BA$69,'Step 4 bond aggregation'!$F$2:$F$661,BG$72,'Step 4 bond aggregation'!$G$2:$G$661,MATCH($BB100,lov_term_buckets,0),'Step 4 bond aggregation'!$E$2:$E$661,$BC$98)","v":0},{"$f":"SUMIFS('Step 4 bond aggregation'!$B$2:$B$661,'Step 4 bond aggregation'!$A$2:$A$661,$BA$69,'Step 4 bond aggregation'!$F$2:$F$661,BH$72,'Step 4 bond aggregation'!$G$2:$G$661,MATCH($BB100,lov_term_buckets,0),'Step 4 bond aggregation'!$E$2:$E$661,$BC$98)","v":0},{"$f":"SUMIFS('Step 4 bond aggregation'!$B$2:$B$661,'Step 4 bond aggregation'!$A$2:$A$661,$BA$69,'Step 4 bond aggregation'!$F$2:$F$661,BI$72,'Step 4 bond aggregation'!$G$2:$G$661,MATCH($BB100,lov_term_buckets,0),'Step 4 bond aggregation'!$E$2:$E$661,$BC$98)","v":0},null,null,"Upto 1",{"$f":"SUMIFS('Step 4 bond aggregation'!$B$2:$B$661,'Step 4 bond aggregation'!$A$2:$A$661,$BK$69,'Step 4 bond aggregation'!$F$2:$F$661,BM$72,'Step 4 bond aggregation'!$G$2:$G$661,MATCH($BB100,lov_term_buckets,0),'Step 4 bond aggregation'!$E$2:$E$661,$BC$98)","v":0},{"$f":"SUMIFS('Step 4 bond aggregation'!$B$2:$B$661,'Step 4 bond aggregation'!$A$2:$A$661,$BK$69,'Step 4 bond aggregation'!$F$2:$F$661,BN$72,'Step 4 bond aggregation'!$G$2:$G$661,MATCH($BB100,lov_term_buckets,0),'Step 4 bond aggregation'!$E$2:$E$661,$BC$98)","v":0},{"$f":"SUMIFS('Step 4 bond aggregation'!$B$2:$B$661,'Step 4 bond aggregation'!$A$2:$A$661,$BK$69,'Step 4 bond aggregation'!$F$2:$F$661,BO$72,'Step 4 bond aggregation'!$G$2:$G$661,MATCH($BB100,lov_term_buckets,0),'Step 4 bond aggregation'!$E$2:$E$661,$BC$98)","v":0},{"$f":"SUMIFS('Step 4 bond aggregation'!$B$2:$B$661,'Step 4 bond aggregation'!$A$2:$A$661,$BK$69,'Step 4 bond aggregation'!$F$2:$F$661,BP$72,'Step 4 bond aggregation'!$G$2:$G$661,MATCH($BB100,lov_term_buckets,0),'Step 4 bond aggregation'!$E$2:$E$661,$BC$98)","v":0},{"$f":"SUMIFS('Step 4 bond aggregation'!$B$2:$B$661,'Step 4 bond aggregation'!$A$2:$A$661,$BK$69,'Step 4 bond aggregation'!$F$2:$F$661,BQ$72,'Step 4 bond aggregation'!$G$2:$G$661,MATCH($BB100,lov_term_buckets,0),'Step 4 bond aggregation'!$E$2:$E$661,$BC$98)","v":0},{"$f":"SUMIFS('Step 4 bond aggregation'!$B$2:$B$661,'Step 4 bond aggregation'!$A$2:$A$661,$BK$69,'Step 4 bond aggregation'!$F$2:$F$661,BR$72,'Step 4 bond aggregation'!$G$2:$G$661,MATCH($BB100,lov_term_buckets,0),'Step 4 bond aggregation'!$E$2:$E$661,$BC$98)","v":0},{"$f":"SUMIFS('Step 4 bond aggregation'!$B$2:$B$661,'Step 4 bond aggregation'!$A$2:$A$661,$BK$69,'Step 4 bond aggregation'!$F$2:$F$661,BS$72,'Step 4 bond aggregation'!$G$2:$G$661,MATCH($BB100,lov_term_buckets,0),'Step 4 bond aggregation'!$E$2:$E$661,$BC$98)","v":0},null,null,"Upto 1",{"$f":"SUMIFS('Step 4 bond aggregation'!$B$2:$B$661,'Step 4 bond aggregation'!$A$2:$A$661,$BU$69,'Step 4 bond aggregation'!$F$2:$F$661,BW$72,'Step 4 bond aggregation'!$G$2:$G$661,MATCH($BB100,lov_term_buckets,0),'Step 4 bond aggregation'!$E$2:$E$661,$BC$98)","v":0},{"$f":"SUMIFS('Step 4 bond aggregation'!$B$2:$B$661,'Step 4 bond aggregation'!$A$2:$A$661,$BU$69,'Step 4 bond aggregation'!$F$2:$F$661,BX$72,'Step 4 bond aggregation'!$G$2:$G$661,MATCH($BB100,lov_term_buckets,0),'Step 4 bond aggregation'!$E$2:$E$661,$BC$98)","v":0},{"$f":"SUMIFS('Step 4 bond aggregation'!$B$2:$B$661,'Step 4 bond aggregation'!$A$2:$A$661,$BU$69,'Step 4 bond aggregation'!$F$2:$F$661,BY$72,'Step 4 bond aggregation'!$G$2:$G$661,MATCH($BB100,lov_term_buckets,0),'Step 4 bond aggregation'!$E$2:$E$661,$BC$98)","v":0},{"$f":"SUMIFS('Step 4 bond aggregation'!$B$2:$B$661,'Step 4 bond aggregation'!$A$2:$A$661,$BU$69,'Step 4 bond aggregation'!$F$2:$F$661,BZ$72,'Step 4 bond aggregation'!$G$2:$G$661,MATCH($BB100,lov_term_buckets,0),'Step 4 bond aggregation'!$E$2:$E$661,$BC$98)","v":0},{"$f":"SUMIFS('Step 4 bond aggregation'!$B$2:$B$661,'Step 4 bond aggregation'!$A$2:$A$661,$BU$69,'Step 4 bond aggregation'!$F$2:$F$661,CA$72,'Step 4 bond aggregation'!$G$2:$G$661,MATCH($BB100,lov_term_buckets,0),'Step 4 bond aggregation'!$E$2:$E$661,$BC$98)","v":0},{"$f":"SUMIFS('Step 4 bond aggregation'!$B$2:$B$661,'Step 4 bond aggregation'!$A$2:$A$661,$BU$69,'Step 4 bond aggregation'!$F$2:$F$661,CB$72,'Step 4 bond aggregation'!$G$2:$G$661,MATCH($BB100,lov_term_buckets,0),'Step 4 bond aggregation'!$E$2:$E$661,$BC$98)","v":0},{"$f":"SUMIFS('Step 4 bond aggregation'!$B$2:$B$661,'Step 4 bond aggregation'!$A$2:$A$661,$BU$69,'Step 4 bond aggregation'!$F$2:$F$661,CC$72,'Step 4 bond aggregation'!$G$2:$G$661,MATCH($BB100,lov_term_buckets,0),'Step 4 bond aggregation'!$E$2:$E$661,$BC$98)","v":0}]
[null,null,"1.01 to 5",{"$f":"Input!F108","v":0},{"$f":"Input!G108","v":0},{"$f":"Input!H108","v":0},{"$f":"Input!I108","v":0},{"$f":"Input!J108","v":0},{"$f":"Input!K108","v":0},{"$f":"Input!L108","v":0},{"$f":"Input!M108","v":0},null,null,"1.01 to 5",{"$f":"Input!F148+Input!F181","v":0},{"$f":"Input!G148+Input!G181","v":0},{"$f":"Input!H148+Input!H181","v":0},{"$f":"Input!I148+Input!I181","v":0},{"$f":"Input!J148+Input!J181","v":0},{"$f":"Input!K148+Input!K181","v":0},{"$f":"Input!L148+Input!L181","v":0},null,null,"1.01 to 5",{"$f":"SUMIFS('Step 4 bond aggregation'!$B$2:$B$661,'Step 4 bond aggregation'!$A$2:$A$661,$W$69,'Step 4 bond aggregation'!$F$2:$F$661,Y$72,'Step 4 bond aggregation'!$G$2:$G$661,MATCH($X101,lov_term_buckets,0),'Step 4 bond aggregation'!$E$2:$E$661,$Y$98)","v":0},{"$f":"SUMIFS('Step 4 bond aggregation'!$B$2:$B$661,'Step 4 bond aggregation'!$A$2:$A$661,$W$69,'Step 4 bond aggregation'!$F$2:$F$661,Z$72,'Step 4 bond aggregation'!$G$2:$G$661,MATCH($X101,lov_term_buckets,0),'Step 4 bond aggregation'!$E$2:$E$661,$Y$98)","v":0},{"$f":"SUMIFS('Step 4 bond aggregation'!$B$2:$B$661,'Step 4 bond aggregation'!$A$2:$A$661,$W$69,'Step 4 bond aggregation'!$F$2:$F$661,AA$72,'Step 4 bond aggregation'!$G$2:$G$661,MATCH($X101,lov_term_buckets,0),'Step 4 bond aggregation'!$E$2:$E$661,$Y$98)","v":0},{"$f":"SUMIFS('Step 4 bond aggregation'!$B$2:$B$661,'Step 4 bond aggregation'!$A$2:$A$661,$W$69,'Step 4 bond aggregation'!$F$2:$F$661,AB$72,'Step 4 bond aggregation'!$G$2:$G$661,MATCH($X101,lov_term_buckets,0),'Step 4 bond aggregation'!$E$2:$E$661,$Y$98)","v":0},{"$f":"SUMIFS('Step 4 bond aggregation'!$B$2:$B$661,'Step 4 bond aggregation'!$A$2:$A$661,$W$69,'Step 4 bond aggregation'!$F$2:$F$661,AC$72,'Step 4 bond aggregation'!$G$2:$G$661,MATCH($X101,lov_term_buckets,0),'Step 4 bond aggregation'!$E$2:$E$661,$Y$98)","v":0},{"$f":"SUMIFS('Step 4 bond aggregation'!$B$2:$B$661,'Step 4 bond aggregation'!$A$2:$A$661,$W$69,'Step 4 bond aggregation'!$F$2:$F$661,AD$72,'Step 4 bond aggregation'!$G$2:$G$661,MATCH($X101,lov_term_buckets,0),'Step 4 bond aggregation'!$E$2:$E$661,$Y$98)","v":0},{"$f":"SUMIFS('Step 4 bond aggregation'!$B$2:$B$661,'Step 4 bond aggregation'!$A$2:$A$661,$W$69,'Step 4 bond aggregation'!$F$2:$F$661,AE$72,'Step 4 bond aggregation'!$G$2:$G$661,MATCH($X101,lov_term_buckets,0),'Step 4 bond aggregation'!$E$2:$E$661,$Y$98)","v":0},null,null,"1.01 to 5",{"$f":"SUMIFS('Step 4 bond aggregation'!$B$2:$B$661,'Step 4 bond aggregation'!$A$2:$A$661,$AG$69,'Step 4 bond aggregation'!$F$2:$F$661,AI$72,'Step 4 bond aggregation'!$G$2:$G$661,MATCH($AH101,lov_term_buckets,0),'Step 4 bond aggregation'!$E$2:$E$661,$AI$98)","v":0},{"$f":"SUMIFS('Step 4 bond aggregation'!$B$2:$B$661,'Step 4 bond aggregation'!$A$2:$A$661,$AG$69,'Step 4 bond aggregation'!$F$2:$F$661,AJ$72,'Step 4 bond aggregation'!$G$2:$G$661,MATCH($AH101,lov_term_buckets,0),'Step 4 bond aggregation'!$E$2:$E$661,$AI$98)","v":0},{"$f":"SUMIFS('Step 4 bond aggregation'!$B$2:$B$661,'Step 4 bond aggregation'!$A$2:$A$661,$AG$69,'Step 4 bond aggregation'!$F$2:$F$661,AK$72,'Step 4 bond aggregation'!$G$2:$G$661,MATCH($AH101,lov_term_buckets,0),'Step 4 bond aggregation'!$E$2:$E$661,$AI$98)","v":0},{"$f":"SUMIFS('Step 4 bond aggregation'!$B$2:$B$661,'Step 4 bond aggregation'!$A$2:$A$661,$AG$69,'Step 4 bond aggregation'!$F$2:$F$661,AL$72,'Step 4 bond aggregation'!$G$2:$G$661,MATCH($AH101,lov_term_buckets,0),'Step 4 bond aggregation'!$E$2:$E$661,$AI$98)","v":0},{"$f":"SUMIFS('Step 4 bond aggregation'!$B$2:$B$661,'Step 4 bond aggregation'!$A$2:$A$661,$AG$69,'Step 4 bond aggregation'!$F$2:$F$661,AM$72,'Step 4 bond aggregation'!$G$2:$G$661,MATCH($AH101,lov_term_buckets,0),'Step 4 bond aggregation'!$E$2:$E$661,$AI$98)","v":0},{"$f":"SUMIFS('Step 4 bond aggregation'!$B$2:$B$661,'Step 4 bond aggregation'!$A$2:$A$661,$AG$69,'Step 4 bond aggregation'!$F$2:$F$661,AN$72,'Step 4 bond aggregation'!$G$2:$G$661,MATCH($AH101,lov_term_buckets,0),'Step 4 bond aggregation'!$E$2:$E$661,$AI$98)","v":0},{"$f":"SUMIFS('Step 4 bond aggregation'!$B$2:$B$661,'Step 4 bond aggregation'!$A$2:$A$661,$AG$69,'Step 4 bond aggregation'!$F$2:$F$661,AO$72,'Step 4 bond aggregation'!$G$2:$G$661,MATCH($AH101,lov_term_buckets,0),'Step 4 bond aggregation'!$E$2:$E$661,$AI$98)","v":0},null,null,"1.01 to 5",{"$f":"SUMIFS('Step 4 bond aggregation'!$B$2:$B$661,'Step 4 bond aggregation'!$A$2:$A$661,$AQ$69,'Step 4 bond aggregation'!$F$2:$F$661,AS$72,'Step 4 bond aggregation'!$G$2:$G$661,MATCH($AR101,lov_term_buckets,0),'Step 4 bond aggregation'!$E$2:$E$661,$AS$98)","v":0},{"$f":"SUMIFS('Step 4 bond aggregation'!$B$2:$B$661,'Step 4 bond aggregation'!$A$2:$A$661,$AQ$69,'Step 4 bond aggregation'!$F$2:$F$661,AT$72,'Step 4 bond aggregation'!$G$2:$G$661,MATCH($AR101,lov_term_buckets,0),'Step 4 bond aggregation'!$E$2:$E$661,$AS$98)","v":0},{"$f":"SUMIFS('Step 4 bond aggregation'!$B$2:$B$661,'Step 4 bond aggregation'!$A$2:$A$661,$AQ$69,'Step 4 bond aggregation'!$F$2:$F$661,AU$72,'Step 4 bond aggregation'!$G$2:$G$661,MATCH($AR101,lov_term_buckets,0),'Step 4 bond aggregation'!$E$2:$E$661,$AS$98)","v":0},{"$f":"SUMIFS('Step 4 bond aggregation'!$B$2:$B$661,'Step 4 bond aggregation'!$A$2:$A$661,$AQ$69,'Step 4 bond aggregation'!$F$2:$F$661,AV$72,'Step 4 bond aggregation'!$G$2:$G$661,MATCH($AR101,lov_term_buckets,0),'Step 4 bond aggregation'!$E$2:$E$661,$AS$98)","v":0},{"$f":"SUMIFS('Step 4 bond aggregation'!$B$2:$B$661,'Step 4 bond aggregation'!$A$2:$A$661,$AQ$69,'Step 4 bond aggregation'!$F$2:$F$661,AW$72,'Step 4 bond aggregation'!$G$2:$G$661,MATCH($AR101,lov_term_buckets,0),'Step 4 bond aggregation'!$E$2:$E$661,$AS$98)","v":0},{"$f":"SUMIFS('Step 4 bond aggregation'!$B$2:$B$661,'Step 4 bond aggregation'!$A$2:$A$661,$AQ$69,'Step 4 bond aggregation'!$F$2:$F$661,AX$72,'Step 4 bond aggregation'!$G$2:$G$661,MATCH($AR101,lov_term_buckets,0),'Step 4 bond aggregation'!$E$2:$E$661,$AS$98)","v":0},{"$f":"SUMIFS('Step 4 bond aggregation'!$B$2:$B$661,'Step 4 bond aggregation'!$A$2:$A$661,$AQ$69,'Step 4 bond aggregation'!$F$2:$F$661,AY$72,'Step 4 bond aggregation'!$G$2:$G$661,MATCH($AR101,lov_term_buckets,0),'Step 4 bond aggregation'!$E$2:$E$661,$AS$98)","v":0},null,null,"1.01 to 5",{"$f":"SUMIFS('Step 4 bond aggregation'!$B$2:$B$661,'Step 4 bond aggregation'!$A$2:$A$661,$BA$69,'Step 4 bond aggregation'!$F$2:$F$661,BC$72,'Step 4 bond aggregation'!$G$2:$G$661,MATCH($BB101,lov_term_buckets,0),'Step 4 bond aggregation'!$E$2:$E$661,$BC$98)","v":0},{"$f":"SUMIFS('Step 4 bond aggregation'!$B$2:$B$661,'Step 4 bond aggregation'!$A$2:$A$661,$BA$69,'Step 4 bond aggregation'!$F$2:$F$661,BD$72,'Step 4 bond aggregation'!$G$2:$G$661,MATCH($BB101,lov_term_buckets,0),'Step 4 bond aggregation'!$E$2:$E$661,$BC$98)","v":0},{"$f":"SUMIFS('Step 4 bond aggregation'!$B$2:$B$661,'Step 4 bond aggregation'!$A$2:$A$661,$BA$69,'Step 4 bond aggregation'!$F$2:$F$661,BE$72,'Step 4 bond aggregation'!$G$2:$G$661,MATCH($BB101,lov_term_buckets,0),'Step 4 bond aggregation'!$E$2:$E$661,$BC$98)","v":0},{"$f":"SUMIFS('Step 4 bond aggregation'!$B$2:$B$661,'Step 4 bond aggregation'!$A$2:$A$661,$BA$69,'Step 4 bond aggregation'!$F$2:$F$661,BF$72,'Step 4 bond aggregation'!$G$2:$G$661,MATCH($BB101,lov_term_buckets,0),'Step 4 bond aggregation'!$E$2:$E$661,$BC$98)","v":0},{"$f":"SUMIFS('Step 4 bond aggregation'!$B$2:$B$661,'Step 4 bond aggregation'!$A$2:$A$661,$BA$69,'Step 4 bond aggregation'!$F$2:$F$661,BG$72,'Step 4 bond aggregation'!$G$2:$G$661,MATCH($BB101,lov_term_buckets,0),'Step 4 bond aggregation'!$E$2:$E$661,$BC$98)","v":0},{"$f":"SUMIFS('Step 4 bond aggregation'!$B$2:$B$661,'Step 4 bond aggregation'!$A$2:$A$661,$BA$69,'Step 4 bond aggregation'!$F$2:$F$661,BH$72,'Step 4 bond aggregation'!$G$2:$G$661,MATCH($BB101,lov_term_buckets,0),'Step 4 bond aggregation'!$E$2:$E$661,$BC$98)","v":0},{"$f":"SUMIFS('Step 4 bond aggregation'!$B$2:$B$661,'Step 4 bond aggregation'!$A$2:$A$661,$BA$69,'Step 4 bond aggregation'!$F$2:$F$661,BI$72,'Step 4 bond aggregation'!$G$2:$G$661,MATCH($BB101,lov_term_buckets,0),'Step 4 bond aggregation'!$E$2:$E$661,$BC$98)","v":0},null,null,"1.01 to 5",{"$f":"SUMIFS('Step 4 bond aggregation'!$B$2:$B$661,'Step 4 bond aggregation'!$A$2:$A$661,$BK$69,'Step 4 bond aggregation'!$F$2:$F$661,BM$72,'Step 4 bond aggregation'!$G$2:$G$661,MATCH($BB101,lov_term_buckets,0),'Step 4 bond aggregation'!$E$2:$E$661,$BC$98)","v":0},{"$f":"SUMIFS('Step 4 bond aggregation'!$B$2:$B$661,'Step 4 bond aggregation'!$A$2:$A$661,$BK$69,'Step 4 bond aggregation'!$F$2:$F$661,BN$72,'Step 4 bond aggregation'!$G$2:$G$661,MATCH($BB101,lov_term_buckets,0),'Step 4 bond aggregation'!$E$2:$E$661,$BC$98)","v":0},{"$f":"SUMIFS('Step 4 bond aggregation'!$B$2:$B$661,'Step 4 bond aggregation'!$A$2:$A$661,$BK$69,'Step 4 bond aggregation'!$F$2:$F$661,BO$72,'Step 4 bond aggregation'!$G$2:$G$661,MATCH($BB101,lov_term_buckets,0),'Step 4 bond aggregation'!$E$2:$E$661,$BC$98)","v":0},{"$f":"SUMIFS('Step 4 bond aggregation'!$B$2:$B$661,'Step 4 bond aggregation'!$A$2:$A$661,$BK$69,'Step 4 bond aggregation'!$F$2:$F$661,BP$72,'Step 4 bond aggregation'!$G$2:$G$661,MATCH($BB101,lov_term_buckets,0),'Step 4 bond aggregation'!$E$2:$E$661,$BC$98)","v":0},{"$f":"SUMIFS('Step 4 bond aggregation'!$B$2:$B$661,'Step 4 bond aggregation'!$A$2:$A$661,$BK$69,'Step 4 bond aggregation'!$F$2:$F$661,BQ$72,'Step 4 bond aggregation'!$G$2:$G$661,MATCH($BB101,lov_term_buckets,0),'Step 4 bond aggregation'!$E$2:$E$661,$BC$98)","v":0},{"$f":"SUMIFS('Step 4 bond aggregation'!$B$2:$B$661,'Step 4 bond aggregation'!$A$2:$A$661,$BK$69,'Step 4 bond aggregation'!$F$2:$F$661,BR$72,'Step 4 bond aggregation'!$G$2:$G$661,MATCH($BB101,lov_term_buckets,0),'Step 4 bond aggregation'!$E$2:$E$661,$BC$98)","v":0},{"$f":"SUMIFS('Step 4 bond aggregation'!$B$2:$B$661,'Step 4 bond aggregation'!$A$2:$A$661,$BK$69,'Step 4 bond aggregation'!$F$2:$F$661,BS$72,'Step 4 bond aggregation'!$G$2:$G$661,MATCH($BB101,lov_term_buckets,0),'Step 4 bond aggregation'!$E$2:$E$661,$BC$98)","v":0},null,null,"1.01 to 5",{"$f":"SUMIFS('Step 4 bond aggregation'!$B$2:$B$661,'Step 4 bond aggregation'!$A$2:$A$661,$BU$69,'Step 4 bond aggregation'!$F$2:$F$661,BW$72,'Step 4 bond aggregation'!$G$2:$G$661,MATCH($BB101,lov_term_buckets,0),'Step 4 bond aggregation'!$E$2:$E$661,$BC$98)","v":0},{"$f":"SUMIFS('Step 4 bond aggregation'!$B$2:$B$661,'Step 4 bond aggregation'!$A$2:$A$661,$BU$69,'Step 4 bond aggregation'!$F$2:$F$661,BX$72,'Step 4 bond aggregation'!$G$2:$G$661,MATCH($BB101,lov_term_buckets,0),'Step 4 bond aggregation'!$E$2:$E$661,$BC$98)","v":0},{"$f":"SUMIFS('Step 4 bond aggregation'!$B$2:$B$661,'Step 4 bond aggregation'!$A$2:$A$661,$BU$69,'Step 4 bond aggregation'!$F$2:$F$661,BY$72,'Step 4 bond aggregation'!$G$2:$G$661,MATCH($BB101,lov_term_buckets,0),'Step 4 bond aggregation'!$E$2:$E$661,$BC$98)","v":0},{"$f":"SUMIFS('Step 4 bond aggregation'!$B$2:$B$661,'Step 4 bond aggregation'!$A$2:$A$661,$BU$69,'Step 4 bond aggregation'!$F$2:$F$661,BZ$72,'Step 4 bond aggregation'!$G$2:$G$661,MATCH($BB101,lov_term_buckets,0),'Step 4 bond aggregation'!$E$2:$E$661,$BC$98)","v":0},{"$f":"SUMIFS('Step 4 bond aggregation'!$B$2:$B$661,'Step 4 bond aggregation'!$A$2:$A$661,$BU$69,'Step 4 bond aggregation'!$F$2:$F$661,CA$72,'Step 4 bond aggregation'!$G$2:$G$661,MATCH($BB101,lov_term_buckets,0),'Step 4 bond aggregation'!$E$2:$E$661,$BC$98)","v":0},{"$f":"SUMIFS('Step 4 bond aggregation'!$B$2:$B$661,'Step 4 bond aggregation'!$A$2:$A$661,$BU$69,'Step 4 bond aggregation'!$F$2:$F$661,CB$72,'Step 4 bond aggregation'!$G$2:$G$661,MATCH($BB101,lov_term_buckets,0),'Step 4 bond aggregation'!$E$2:$E$661,$BC$98)","v":0},{"$f":"SUMIFS('Step 4 bond aggregation'!$B$2:$B$661,'Step 4 bond aggregation'!$A$2:$A$661,$BU$69,'Step 4 bond aggregation'!$F$2:$F$661,CC$72,'Step 4 bond aggregation'!$G$2:$G$661,MATCH($BB101,lov_term_buckets,0),'Step 4 bond aggregation'!$E$2:$E$661,$BC$98)","v":0}]
[null,null,"5.01 to 10",{"$f":"Input!F109","v":0},{"$f":"Input!G109","v":0},{"$f":"Input!H109","v":0},{"$f":"Input!I109","v":0},{"$f":"Input!J109","v":0},{"$f":"Input!K109","v":0},{"$f":"Input!L109","v":0},{"$f":"Input!M109","v":0},null,null,"5.01 to 10",{"$f":"Input!F149+Input!F182","v":0},{"$f":"Input!G149+Input!G182","v":0},{"$f":"Input!H149+Input!H182","v":0},{"$f":"Input!I149+Input!I182","v":0},{"$f":"Input!J149+Input!J182","v":0},{"$f":"Input!K149+Input!K182","v":0},{"$f":"Input!L149+Input!L182","v":0},null,null,"5.01 to 10",{"$f":"SUMIFS('Step 4 bond aggregation'!$B$2:$B$661,'Step 4 bond aggregation'!$A$2:$A$661,$W$69,'Step 4 bond aggregation'!$F$2:$F$661,Y$72,'Step 4 bond aggregation'!$G$2:$G$661,MATCH($X102,lov_term_buckets,0),'Step 4 bond aggregation'!$E$2:$E$661,$Y$98)","v":0},{"$f":"SUMIFS('Step 4 bond aggregation'!$B$2:$B$661,'Step 4 bond aggregation'!$A$2:$A$661,$W$69,'Step 4 bond aggregation'!$F$2:$F$661,Z$72,'Step 4 bond aggregation'!$G$2:$G$661,MATCH($X102,lov_term_buckets,0),'Step 4 bond aggregation'!$E$2:$E$661,$Y$98)","v":0},{"$f":"SUMIFS('Step 4 bond aggregation'!$B$2:$B$661,'Step 4 bond aggregation'!$A$2:$A$661,$W$69,'Step 4 bond aggregation'!$F$2:$F$661,AA$72,'Step 4 bond aggregation'!$G$2:$G$661,MATCH($X102,lov_term_buckets,0),'Step 4 bond aggregation'!$E$2:$E$661,$Y$98)","v":0},{"$f":"SUMIFS('Step 4 bond aggregation'!$B$2:$B$661,'Step 4 bond aggregation'!$A$2:$A$661,$W$69,'Step 4 bond aggregation'!$F$2:$F$661,AB$72,'Step 4 bond aggregation'!$G$2:$G$661,MATCH($X102,lov_term_buckets,0),'Step 4 bond aggregation'!$E$2:$E$661,$Y$98)","v":0},{"$f":"SUMIFS('Step 4 bond aggregation'!$B$2:$B$661,'Step 4 bond aggregation'!$A$2:$A$661,$W$69,'Step 4 bond aggregation'!$F$2:$F$661,AC$72,'Step 4 bond aggregation'!$G$2:$G$661,MATCH($X102,lov_term_buckets,0),'Step 4 bond aggregation'!$E$2:$E$661,$Y$98)","v":0},{"$f":"SUMIFS('Step 4 bond aggregation'!$B$2:$B$661,'Step 4 bond aggregation'!$A$2:$A$661,$W$69,'Step 4 bond aggregation'!$F$2:$F$661,AD$72,'Step 4 bond aggregation'!$G$2:$G$661,MATCH($X102,lov_term_buckets,0),'Step 4 bond aggregation'!$E$2:$E$661,$Y$98)","v":0},{"$f":"SUMIFS('Step 4 bond aggregation'!$B$2:$B$661,'Step 4 bond aggregation'!$A$2:$A$661,$W$69,'Step 4 bond aggregation'!$F$2:$F$661,AE$72,'Step 4 bond aggregation'!$G$2:$G$661,MATCH($X102,lov_term_buckets,0),'Step 4 bond aggregation'!$E$2:$E$661,$Y$98)","v":0},null,null,"5.01 to 10",{"$f":"SUMIFS('Step 4 bond aggregation'!$B$2:$B$661,'Step 4 bond aggregation'!$A$2:$A$661,$AG$69,'Step 4 bond aggregation'!$F$2:$F$661,AI$72,'Step 4 bond aggregation'!$G$2:$G$661,MATCH($AH102,lov_term_buckets,0),'Step 4 bond aggregation'!$E$2:$E$661,$AI$98)","v":0},{"$f":"SUMIFS('Step 4 bond aggregation'!$B$2:$B$661,'Step 4 bond aggregation'!$A$2:$A$661,$AG$69,'Step 4 bond aggregation'!$F$2:$F$661,AJ$72,'Step 4 bond aggregation'!$G$2:$G$661,MATCH($AH102,lov_term_buckets,0),'Step 4 bond aggregation'!$E$2:$E$661,$AI$98)","v":0},{"$f":"SUMIFS('Step 4 bond aggregation'!$B$2:$B$661,'Step 4 bond aggregation'!$A$2:$A$661,$AG$69,'Step 4 bond aggregation'!$F$2:$F$661,AK$72,'Step 4 bond aggregation'!$G$2:$G$661,MATCH($AH102,lov_term_buckets,0),'Step 4 bond aggregation'!$E$2:$E$661,$AI$98)","v":0},{"$f":"SUMIFS('Step 4 bond aggregation'!$B$2:$B$661,'Step 4 bond aggregation'!$A$2:$A$661,$AG$69,'Step 4 bond aggregation'!$F$2:$F$661,AL$72,'Step 4 bond aggregation'!$G$2:$G$661,MATCH($AH102,lov_term_buckets,0),'Step 4 bond aggregation'!$E$2:$E$661,$AI$98)","v":0},{"$f":"SUMIFS('Step 4 bond aggregation'!$B$2:$B$661,'Step 4 bond aggregation'!$A$2:$A$661,$AG$69,'Step 4 bond aggregation'!$F$2:$F$661,AM$72,'Step 4 bond aggregation'!$G$2:$G$661,MATCH($AH102,lov_term_buckets,0),'Step 4 bond aggregation'!$E$2:$E$661,$AI$98)","v":0},{"$f":"SUMIFS('Step 4 bond aggregation'!$B$2:$B$661,'Step 4 bond aggregation'!$A$2:$A$661,$AG$69,'Step 4 bond aggregation'!$F$2:$F$661,AN$72,'Step 4 bond aggregation'!$G$2:$G$661,MATCH($AH102,lov_term_buckets,0),'Step 4 bond aggregation'!$E$2:$E$661,$AI$98)","v":0},{"$f":"SUMIFS('Step 4 bond aggregation'!$B$2:$B$661,'Step 4 bond aggregation'!$A$2:$A$661,$AG$69,'Step 4 bond aggregation'!$F$2:$F$661,AO$72,'Step 4 bond aggregation'!$G$2:$G$661,MATCH($AH102,lov_term_buckets,0),'Step 4 bond aggregation'!$E$2:$E$661,$AI$98)","v":0},null,null,"5.01 to 10",{"$f":"SUMIFS('Step 4 bond aggregation'!$B$2:$B$661,'Step 4 bond aggregation'!$A$2:$A$661,$AQ$69,'Step 4 bond aggregation'!$F$2:$F$661,AS$72,'Step 4 bond aggregation'!$G$2:$G$661,MATCH($AR102,lov_term_buckets,0),'Step 4 bond aggregation'!$E$2:$E$661,$AS$98)","v":0},{"$f":"SUMIFS('Step 4 bond aggregation'!$B$2:$B$661,'Step 4 bond aggregation'!$A$2:$A$661,$AQ$69,'Step 4 bond aggregation'!$F$2:$F$661,AT$72,'Step 4 bond aggregation'!$G$2:$G$661,MATCH($AR102,lov_term_buckets,0),'Step 4 bond aggregation'!$E$2:$E$661,$AS$98)","v":0},{"$f":"SUMIFS('Step 4 bond aggregation'!$B$2:$B$661,'Step 4 bond aggregation'!$A$2:$A$661,$AQ$69,'Step 4 bond aggregation'!$F$2:$F$661,AU$72,'Step 4 bond aggregation'!$G$2:$G$661,MATCH($AR102,lov_term_buckets,0),'Step 4 bond aggregation'!$E$2:$E$661,$AS$98)","v":0},{"$f":"SUMIFS('Step 4 bond aggregation'!$B$2:$B$661,'Step 4 bond aggregation'!$A$2:$A$661,$AQ$69,'Step 4 bond aggregation'!$F$2:$F$661,AV$72,'Step 4 bond aggregation'!$G$2:$G$661,MATCH($AR102,lov_term_buckets,0),'Step 4 bond aggregation'!$E$2:$E$661,$AS$98)","v":0},{"$f":"SUMIFS('Step 4 bond aggregation'!$B$2:$B$661,'Step 4 bond aggregation'!$A$2:$A$661,$AQ$69,'Step 4 bond aggregation'!$F$2:$F$661,AW$72,'Step 4 bond aggregation'!$G$2:$G$661,MATCH($AR102,lov_term_buckets,0),'Step 4 bond aggregation'!$E$2:$E$661,$AS$98)","v":0},{"$f":"SUMIFS('Step 4 bond aggregation'!$B$2:$B$661,'Step 4 bond aggregation'!$A$2:$A$661,$AQ$69,'Step 4 bond aggregation'!$F$2:$F$661,AX$72,'Step 4 bond aggregation'!$G$2:$G$661,MATCH($AR102,lov_term_buckets,0),'Step 4 bond aggregation'!$E$2:$E$661,$AS$98)","v":0},{"$f":"SUMIFS('Step 4 bond aggregation'!$B$2:$B$661,'Step 4 bond aggregation'!$A$2:$A$661,$AQ$69,'Step 4 bond aggregation'!$F$2:$F$661,AY$72,'Step 4 bond aggregation'!$G$2:$G$661,MATCH($AR102,lov_term_buckets,0),'Step 4 bond aggregation'!$E$2:$E$661,$AS$98)","v":0},null,null,"5.01 to 10",{"$f":"SUMIFS('Step 4 bond aggregation'!$B$2:$B$661,'Step 4 bond aggregation'!$A$2:$A$661,$BA$69,'Step 4 bond aggregation'!$F$2:$F$661,BC$72,'Step 4 bond aggregation'!$G$2:$G$661,MATCH($BB102,lov_term_buckets,0),'Step 4 bond aggregation'!$E$2:$E$661,$BC$98)","v":0},{"$f":"SUMIFS('Step 4 bond aggregation'!$B$2:$B$661,'Step 4 bond aggregation'!$A$2:$A$661,$BA$69,'Step 4 bond aggregation'!$F$2:$F$661,BD$72,'Step 4 bond aggregation'!$G$2:$G$661,MATCH($BB102,lov_term_buckets,0),'Step 4 bond aggregation'!$E$2:$E$661,$BC$98)","v":0},{"$f":"SUMIFS('Step 4 bond aggregation'!$B$2:$B$661,'Step 4 bond aggregation'!$A$2:$A$661,$BA$69,'Step 4 bond aggregation'!$F$2:$F$661,BE$72,'Step 4 bond aggregation'!$G$2:$G$661,MATCH($BB102,lov_term_buckets,0),'Step 4 bond aggregation'!$E$2:$E$661,$BC$98)","v":0},{"$f":"SUMIFS('Step 4 bond aggregation'!$B$2:$B$661,'Step 4 bond aggregation'!$A$2:$A$661,$BA$69,'Step 4 bond aggregation'!$F$2:$F$661,BF$72,'Step 4 bond aggregation'!$G$2:$G$661,MATCH($BB102,lov_term_buckets,0),'Step 4 bond aggregation'!$E$2:$E$661,$BC$98)","v":0},{"$f":"SUMIFS('Step 4 bond aggregation'!$B$2:$B$661,'Step 4 bond aggregation'!$A$2:$A$661,$BA$69,'Step 4 bond aggregation'!$F$2:$F$661,BG$72,'Step 4 bond aggregation'!$G$2:$G$661,MATCH($BB102,lov_term_buckets,0),'Step 4 bond aggregation'!$E$2:$E$661,$BC$98)","v":0},{"$f":"SUMIFS('Step 4 bond aggregation'!$B$2:$B$661,'Step 4 bond aggregation'!$A$2:$A$661,$BA$69,'Step 4 bond aggregation'!$F$2:$F$661,BH$72,'Step 4 bond aggregation'!$G$2:$G$661,MATCH($BB102,lov_term_buckets,0),'Step 4 bond aggregation'!$E$2:$E$661,$BC$98)","v":0},{"$f":"SUMIFS('Step 4 bond aggregation'!$B$2:$B$661,'Step 4 bond aggregation'!$A$2:$A$661,$BA$69,'Step 4 bond aggregation'!$F$2:$F$661,BI$72,'Step 4 bond aggregation'!$G$2:$G$661,MATCH($BB102,lov_term_buckets,0),'Step 4 bond aggregation'!$E$2:$E$661,$BC$98)","v":0},null,null,"5.01 to 10",{"$f":"SUMIFS('Step 4 bond aggregation'!$B$2:$B$661,'Step 4 bond aggregation'!$A$2:$A$661,$BK$69,'Step 4 bond aggregation'!$F$2:$F$661,BM$72,'Step 4 bond aggregation'!$G$2:$G$661,MATCH($BB102,lov_term_buckets,0),'Step 4 bond aggregation'!$E$2:$E$661,$BC$98)","v":0},{"$f":"SUMIFS('Step 4 bond aggregation'!$B$2:$B$661,'Step 4 bond aggregation'!$A$2:$A$661,$BK$69,'Step 4 bond aggregation'!$F$2:$F$661,BN$72,'Step 4 bond aggregation'!$G$2:$G$661,MATCH($BB102,lov_term_buckets,0),'Step 4 bond aggregation'!$E$2:$E$661,$BC$98)","v":0},{"$f":"SUMIFS('Step 4 bond aggregation'!$B$2:$B$661,'Step 4 bond aggregation'!$A$2:$A$661,$BK$69,'Step 4 bond aggregation'!$F$2:$F$661,BO$72,'Step 4 bond aggregation'!$G$2:$G$661,MATCH($BB102,lov_term_buckets,0),'Step 4 bond aggregation'!$E$2:$E$661,$BC$98)","v":0},{"$f":"SUMIFS('Step 4 bond aggregation'!$B$2:$B$661,'Step 4 bond aggregation'!$A$2:$A$661,$BK$69,'Step 4 bond aggregation'!$F$2:$F$661,BP$72,'Step 4 bond aggregation'!$G$2:$G$661,MATCH($BB102,lov_term_buckets,0),'Step 4 bond aggregation'!$E$2:$E$661,$BC$98)","v":0},{"$f":"SUMIFS('Step 4 bond aggregation'!$B$2:$B$661,'Step 4 bond aggregation'!$A$2:$A$661,$BK$69,'Step 4 bond aggregation'!$F$2:$F$661,BQ$72,'Step 4 bond aggregation'!$G$2:$G$661,MATCH($BB102,lov_term_buckets,0),'Step 4 bond aggregation'!$E$2:$E$661,$BC$98)","v":0},{"$f":"SUMIFS('Step 4 bond aggregation'!$B$2:$B$661,'Step 4 bond aggregation'!$A$2:$A$661,$BK$69,'Step 4 bond aggregation'!$F$2:$F$661,BR$72,'Step 4 bond aggregation'!$G$2:$G$661,MATCH($BB102,lov_term_buckets,0),'Step 4 bond aggregation'!$E$2:$E$661,$BC$98)","v":0},{"$f":"SUMIFS('Step 4 bond aggregation'!$B$2:$B$661,'Step 4 bond aggregation'!$A$2:$A$661,$BK$69,'Step 4 bond aggregation'!$F$2:$F$661,BS$72,'Step 4 bond aggregation'!$G$2:$G$661,MATCH($BB102,lov_term_buckets,0),'Step 4 bond aggregation'!$E$2:$E$661,$BC$98)","v":0},null,null,"5.01 to 10",{"$f":"SUMIFS('Step 4 bond aggregation'!$B$2:$B$661,'Step 4 bond aggregation'!$A$2:$A$661,$BU$69,'Step 4 bond aggregation'!$F$2:$F$661,BW$72,'Step 4 bond aggregation'!$G$2:$G$661,MATCH($BB102,lov_term_buckets,0),'Step 4 bond aggregation'!$E$2:$E$661,$BC$98)","v":0},{"$f":"SUMIFS('Step 4 bond aggregation'!$B$2:$B$661,'Step 4 bond aggregation'!$A$2:$A$661,$BU$69,'Step 4 bond aggregation'!$F$2:$F$661,BX$72,'Step 4 bond aggregation'!$G$2:$G$661,MATCH($BB102,lov_term_buckets,0),'Step 4 bond aggregation'!$E$2:$E$661,$BC$98)","v":0},{"$f":"SUMIFS('Step 4 bond aggregation'!$B$2:$B$661,'Step 4 bond aggregation'!$A$2:$A$661,$BU$69,'Step 4 bond aggregation'!$F$2:$F$661,BY$72,'Step 4 bond aggregation'!$G$2:$G$661,MATCH($BB102,lov_term_buckets,0),'Step 4 bond aggregation'!$E$2:$E$661,$BC$98)","v":0},{"$f":"SUMIFS('Step 4 bond aggregation'!$B$2:$B$661,'Step 4 bond aggregation'!$A$2:$A$661,$BU$69,'Step 4 bond aggregation'!$F$2:$F$661,BZ$72,'Step 4 bond aggregation'!$G$2:$G$661,MATCH($BB102,lov_term_buckets,0),'Step 4 bond aggregation'!$E$2:$E$661,$BC$98)","v":0},{"$f":"SUMIFS('Step 4 bond aggregation'!$B$2:$B$661,'Step 4 bond aggregation'!$A$2:$A$661,$BU$69,'Step 4 bond aggregation'!$F$2:$F$661,CA$72,'Step 4 bond aggregation'!$G$2:$G$661,MATCH($BB102,lov_term_buckets,0),'Step 4 bond aggregation'!$E$2:$E$661,$BC$98)","v":0},{"$f":"SUMIFS('Step 4 bond aggregation'!$B$2:$B$661,'Step 4 bond aggregation'!$A$2:$A$661,$BU$69,'Step 4 bond aggregation'!$F$2:$F$661,CB$72,'Step 4 bond aggregation'!$G$2:$G$661,MATCH($BB102,lov_term_buckets,0),'Step 4 bond aggregation'!$E$2:$E$661,$BC$98)","v":0},{"$f":"SUMIFS('Step 4 bond aggregation'!$B$2:$B$661,'Step 4 bond aggregation'!$A$2:$A$661,$BU$69,'Step 4 bond aggregation'!$F$2:$F$661,CC$72,'Step 4 bond aggregation'!$G$2:$G$661,MATCH($BB102,lov_term_buckets,0),'Step 4 bond aggregation'!$E$2:$E$661,$BC$98)","v":0}]
[null,null,"10.01 to 20",{"$f":"Input!F110","v":0},{"$f":"Input!G110","v":0},{"$f":"Input!H110","v":0},{"$f":"Input!I110","v":0},{"$f":"Input!J110","v":0},{"$f":"Input!K110","v":0},{"$f":"Input!L110","v":0},{"$f":"Input!M110","v":0},null,null,"10.01 to 20",{"$f":"Input!F150+Input!F183","v":0},{"$f":"Input!G150+Input!G183","v":0},{"$f":"Input!H150+Input!H183","v":0},{"$f":"Input!I150+Input!I183","v":0},{"$f":"Input!J150+Input!J183","v":0},{"$f":"Input!K150+Input!K183","v":0},{"$f":"Input!L150+Input!L183","v":0},null,null,"10.01 to 20",{"$f":"SUMIFS('Step 4 bond aggregation'!$B$2:$B$661,'Step 4 bond aggregation'!$A$2:$A$661,$W$69,'Step 4 bond aggregation'!$F$2:$F$661,Y$72,'Step 4 bond aggregation'!$G$2:$G$661,MATCH($X103,lov_term_buckets,0),'Step 4 bond aggregation'!$E$2:$E$661,$Y$98)","v":0},{"$f":"SUMIFS('Step 4 bond aggregation'!$B$2:$B$661,'Step 4 bond aggregation'!$A$2:$A$661,$W$69,'Step 4 bond aggregation'!$F$2:$F$661,Z$72,'Step 4 bond aggregation'!$G$2:$G$661,MATCH($X103,lov_term_buckets,0),'Step 4 bond aggregation'!$E$2:$E$661,$Y$98)","v":0},{"$f":"SUMIFS('Step 4 bond aggregation'!$B$2:$B$661,'Step 4 bond aggregation'!$A$2:$A$661,$W$69,'Step 4 bond aggregation'!$F$2:$F$661,AA$72,'Step 4 bond aggregation'!$G$2:$G$661,MATCH($X103,lov_term_buckets,0),'Step 4 bond aggregation'!$E$2:$E$661,$Y$98)","v":0},{"$f":"SUMIFS('Step 4 bond aggregation'!$B$2:$B$661,'Step 4 bond aggregation'!$A$2:$A$661,$W$69,'Step 4 bond aggregation'!$F$2:$F$661,AB$72,'Step 4 bond aggregation'!$G$2:$G$661,MATCH($X103,lov_term_buckets,0),'Step 4 bond aggregation'!$E$2:$E$661,$Y$98)","v":0},{"$f":"SUMIFS('Step 4 bond aggregation'!$B$2:$B$661,'Step 4 bond aggregation'!$A$2:$A$661,$W$69,'Step 4 bond aggregation'!$F$2:$F$661,AC$72,'Step 4 bond aggregation'!$G$2:$G$661,MATCH($X103,lov_term_buckets,0),'Step 4 bond aggregation'!$E$2:$E$661,$Y$98)","v":0},{"$f":"SUMIFS('Step 4 bond aggregation'!$B$2:$B$661,'Step 4 bond aggregation'!$A$2:$A$661,$W$69,'Step 4 bond aggregation'!$F$2:$F$661,AD$72,'Step 4 bond aggregation'!$G$2:$G$661,MATCH($X103,lov_term_buckets,0),'Step 4 bond aggregation'!$E$2:$E$661,$Y$98)","v":0},{"$f":"SUMIFS('Step 4 bond aggregation'!$B$2:$B$661,'Step 4 bond aggregation'!$A$2:$A$661,$W$69,'Step 4 bond aggregation'!$F$2:$F$661,AE$72,'Step 4 bond aggregation'!$G$2:$G$661,MATCH($X103,lov_term_buckets,0),'Step 4 bond aggregation'!$E$2:$E$661,$Y$98)","v":0},null,null,"10.01 to 20",{"$f":"SUMIFS('Step 4 bond aggregation'!$B$2:$B$661,'Step 4 bond aggregation'!$A$2:$A$661,$AG$69,'Step 4 bond aggregation'!$F$2:$F$661,AI$72,'Step 4 bond aggregation'!$G$2:$G$661,MATCH($AH103,lov_term_buckets,0),'Step 4 bond aggregation'!$E$2:$E$661,$AI$98)","v":0},{"$f":"SUMIFS('Step 4 bond aggregation'!$B$2:$B$661,'Step 4 bond aggregation'!$A$2:$A$661,$AG$69,'Step 4 bond aggregation'!$F$2:$F$661,AJ$72,'Step 4 bond aggregation'!$G$2:$G$661,MATCH($AH103,lov_term_buckets,0),'Step 4 bond aggregation'!$E$2:$E$661,$AI$98)","v":0},{"$f":"SUMIFS('Step 4 bond aggregation'!$B$2:$B$661,'Step 4 bond aggregation'!$A$2:$A$661,$AG$69,'Step 4 bond aggregation'!$F$2:$F$661,AK$72,'Step 4 bond aggregation'!$G$2:$G$661,MATCH($AH103,lov_term_buckets,0),'Step 4 bond aggregation'!$E$2:$E$661,$AI$98)","v":0},{"$f":"SUMIFS('Step 4 bond aggregation'!$B$2:$B$661,'Step 4 bond aggregation'!$A$2:$A$661,$AG$69,'Step 4 bond aggregation'!$F$2:$F$661,AL$72,'Step 4 bond aggregation'!$G$2:$G$661,MATCH($AH103,lov_term_buckets,0),'Step 4 bond aggregation'!$E$2:$E$661,$AI$98)","v":0},{"$f":"SUMIFS('Step 4 bond aggregation'!$B$2:$B$661,'Step 4 bond aggregation'!$A$2:$A$661,$AG$69,'Step 4 bond aggregation'!$F$2:$F$661,AM$72,'Step 4 bond aggregation'!$G$2:$G$661,MATCH($AH103,lov_term_buckets,0),'Step 4 bond aggregation'!$E$2:$E$661,$AI$98)","v":0},{"$f":"SUMIFS('Step 4 bond aggregation'!$B$2:$B$661,'Step 4 bond aggregation'!$A$2:$A$661,$AG$69,'Step 4 bond aggregation'!$F$2:$F$661,AN$72,'Step 4 bond aggregation'!$G$2:$G$661,MATCH($AH103,lov_term_buckets,0),'Step 4 bond aggregation'!$E$2:$E$661,$AI$98)","v":0},{"$f":"SUMIFS('Step 4 bond aggregation'!$B$2:$B$661,'Step 4 bond aggregation'!$A$2:$A$661,$AG$69,'Step 4 bond aggregation'!$F$2:$F$661,AO$72,'Step 4 bond aggregation'!$G$2:$G$661,MATCH($AH103,lov_term_buckets,0),'Step 4 bond aggregation'!$E$2:$E$661,$AI$98)","v":0},null,null,"10.01 to 20",{"$f":"SUMIFS('Step 4 bond aggregation'!$B$2:$B$661,'Step 4 bond aggregation'!$A$2:$A$661,$AQ$69,'Step 4 bond aggregation'!$F$2:$F$661,AS$72,'Step 4 bond aggregation'!$G$2:$G$661,MATCH($AR103,lov_term_buckets,0),'Step 4 bond aggregation'!$E$2:$E$661,$AS$98)","v":0},{"$f":"SUMIFS('Step 4 bond aggregation'!$B$2:$B$661,'Step 4 bond aggregation'!$A$2:$A$661,$AQ$69,'Step 4 bond aggregation'!$F$2:$F$661,AT$72,'Step 4 bond aggregation'!$G$2:$G$661,MATCH($AR103,lov_term_buckets,0),'Step 4 bond aggregation'!$E$2:$E$661,$AS$98)","v":0},{"$f":"SUMIFS('Step 4 bond aggregation'!$B$2:$B$661,'Step 4 bond aggregation'!$A$2:$A$661,$AQ$69,'Step 4 bond aggregation'!$F$2:$F$661,AU$72,'Step 4 bond aggregation'!$G$2:$G$661,MATCH($AR103,lov_term_buckets,0),'Step 4 bond aggregation'!$E$2:$E$661,$AS$98)","v":0},{"$f":"SUMIFS('Step 4 bond aggregation'!$B$2:$B$661,'Step 4 bond aggregation'!$A$2:$A$661,$AQ$69,'Step 4 bond aggregation'!$F$2:$F$661,AV$72,'Step 4 bond aggregation'!$G$2:$G$661,MATCH($AR103,lov_term_buckets,0),'Step 4 bond aggregation'!$E$2:$E$661,$AS$98)","v":0},{"$f":"SUMIFS('Step 4 bond aggregation'!$B$2:$B$661,'Step 4 bond aggregation'!$A$2:$A$661,$AQ$69,'Step 4 bond aggregation'!$F$2:$F$661,AW$72,'Step 4 bond aggregation'!$G$2:$G$661,MATCH($AR103,lov_term_buckets,0),'Step 4 bond aggregation'!$E$2:$E$661,$AS$98)","v":0},{"$f":"SUMIFS('Step 4 bond aggregation'!$B$2:$B$661,'Step 4 bond aggregation'!$A$2:$A$661,$AQ$69,'Step 4 bond aggregation'!$F$2:$F$661,AX$72,'Step 4 bond aggregation'!$G$2:$G$661,MATCH($AR103,lov_term_buckets,0),'Step 4 bond aggregation'!$E$2:$E$661,$AS$98)","v":0},{"$f":"SUMIFS('Step 4 bond aggregation'!$B$2:$B$661,'Step 4 bond aggregation'!$A$2:$A$661,$AQ$69,'Step 4 bond aggregation'!$F$2:$F$661,AY$72,'Step 4 bond aggregation'!$G$2:$G$661,MATCH($AR103,lov_term_buckets,0),'Step 4 bond aggregation'!$E$2:$E$661,$AS$98)","v":0},null,null,"10.01 to 20",{"$f":"SUMIFS('Step 4 bond aggregation'!$B$2:$B$661,'Step 4 bond aggregation'!$A$2:$A$661,$BA$69,'Step 4 bond aggregation'!$F$2:$F$661,BC$72,'Step 4 bond aggregation'!$G$2:$G$661,MATCH($BB103,lov_term_buckets,0),'Step 4 bond aggregation'!$E$2:$E$661,$BC$98)","v":0},{"$f":"SUMIFS('Step 4 bond aggregation'!$B$2:$B$661,'Step 4 bond aggregation'!$A$2:$A$661,$BA$69,'Step 4 bond aggregation'!$F$2:$F$661,BD$72,'Step 4 bond aggregation'!$G$2:$G$661,MATCH($BB103,lov_term_buckets,0),'Step 4 bond aggregation'!$E$2:$E$661,$BC$98)","v":0},{"$f":"SUMIFS('Step 4 bond aggregation'!$B$2:$B$661,'Step 4 bond aggregation'!$A$2:$A$661,$BA$69,'Step 4 bond aggregation'!$F$2:$F$661,BE$72,'Step 4 bond aggregation'!$G$2:$G$661,MATCH($BB103,lov_term_buckets,0),'Step 4 bond aggregation'!$E$2:$E$661,$BC$98)","v":0},{"$f":"SUMIFS('Step 4 bond aggregation'!$B$2:$B$661,'Step 4 bond aggregation'!$A$2:$A$661,$BA$69,'Step 4 bond aggregation'!$F$2:$F$661,BF$72,'Step 4 bond aggregation'!$G$2:$G$661,MATCH($BB103,lov_term_buckets,0),'Step 4 bond aggregation'!$E$2:$E$661,$BC$98)","v":0},{"$f":"SUMIFS('Step 4 bond aggregation'!$B$2:$B$661,'Step 4 bond aggregation'!$A$2:$A$661,$BA$69,'Step 4 bond aggregation'!$F$2:$F$661,BG$72,'Step 4 bond aggregation'!$G$2:$G$661,MATCH($BB103,lov_term_buckets,0),'Step 4 bond aggregation'!$E$2:$E$661,$BC$98)","v":0},{"$f":"SUMIFS('Step 4 bond aggregation'!$B$2:$B$661,'Step 4 bond aggregation'!$A$2:$A$661,$BA$69,'Step 4 bond aggregation'!$F$2:$F$661,BH$72,'Step 4 bond aggregation'!$G$2:$G$661,MATCH($BB103,lov_term_buckets,0),'Step 4 bond aggregation'!$E$2:$E$661,$BC$98)","v":0},{"$f":"SUMIFS('Step 4 bond aggregation'!$B$2:$B$661,'Step 4 bond aggregation'!$A$2:$A$661,$BA$69,'Step 4 bond aggregation'!$F$2:$F$661,BI$72,'Step 4 bond aggregation'!$G$2:$G$661,MATCH($BB103,lov_term_buckets,0),'Step 4 bond aggregation'!$E$2:$E$661,$BC$98)","v":0},null,null,"10.01 to 20",{"$f":"SUMIFS('Step 4 bond aggregation'!$B$2:$B$661,'Step 4 bond aggregation'!$A$2:$A$661,$BK$69,'Step 4 bond aggregation'!$F$2:$F$661,BM$72,'Step 4 bond aggregation'!$G$2:$G$661,MATCH($BB103,lov_term_buckets,0),'Step 4 bond aggregation'!$E$2:$E$661,$BC$98)","v":0},{"$f":"SUMIFS('Step 4 bond aggregation'!$B$2:$B$661,'Step 4 bond aggregation'!$A$2:$A$661,$BK$69,'Step 4 bond aggregation'!$F$2:$F$661,BN$72,'Step 4 bond aggregation'!$G$2:$G$661,MATCH($BB103,lov_term_buckets,0),'Step 4 bond aggregation'!$E$2:$E$661,$BC$98)","v":0},{"$f":"SUMIFS('Step 4 bond aggregation'!$B$2:$B$661,'Step 4 bond aggregation'!$A$2:$A$661,$BK$69,'Step 4 bond aggregation'!$F$2:$F$661,BO$72,'Step 4 bond aggregation'!$G$2:$G$661,MATCH($BB103,lov_term_buckets,0),'Step 4 bond aggregation'!$E$2:$E$661,$BC$98)","v":0},{"$f":"SUMIFS('Step 4 bond aggregation'!$B$2:$B$661,'Step 4 bond aggregation'!$A$2:$A$661,$BK$69,'Step 4 bond aggregation'!$F$2:$F$661,BP$72,'Step 4 bond aggregation'!$G$2:$G$661,MATCH($BB103,lov_term_buckets,0),'Step 4 bond aggregation'!$E$2:$E$661,$BC$98)","v":0},{"$f":"SUMIFS('Step 4 bond aggregation'!$B$2:$B$661,'Step 4 bond aggregation'!$A$2:$A$661,$BK$69,'Step 4 bond aggregation'!$F$2:$F$661,BQ$72,'Step 4 bond aggregation'!$G$2:$G$661,MATCH($BB103,lov_term_buckets,0),'Step 4 bond aggregation'!$E$2:$E$661,$BC$98)","v":0},{"$f":"SUMIFS('Step 4 bond aggregation'!$B$2:$B$661,'Step 4 bond aggregation'!$A$2:$A$661,$BK$69,'Step 4 bond aggregation'!$F$2:$F$661,BR$72,'Step 4 bond aggregation'!$G$2:$G$661,MATCH($BB103,lov_term_buckets,0),'Step 4 bond aggregation'!$E$2:$E$661,$BC$98)","v":0},{"$f":"SUMIFS('Step 4 bond aggregation'!$B$2:$B$661,'Step 4 bond aggregation'!$A$2:$A$661,$BK$69,'Step 4 bond aggregation'!$F$2:$F$661,BS$72,'Step 4 bond aggregation'!$G$2:$G$661,MATCH($BB103,lov_term_buckets,0),'Step 4 bond aggregation'!$E$2:$E$661,$BC$98)","v":0},null,null,"10.01 to 20",{"$f":"SUMIFS('Step 4 bond aggregation'!$B$2:$B$661,'Step 4 bond aggregation'!$A$2:$A$661,$BU$69,'Step 4 bond aggregation'!$F$2:$F$661,BW$72,'Step 4 bond aggregation'!$G$2:$G$661,MATCH($BB103,lov_term_buckets,0),'Step 4 bond aggregation'!$E$2:$E$661,$BC$98)","v":0},{"$f":"SUMIFS('Step 4 bond aggregation'!$B$2:$B$661,'Step 4 bond aggregation'!$A$2:$A$661,$BU$69,'Step 4 bond aggregation'!$F$2:$F$661,BX$72,'Step 4 bond aggregation'!$G$2:$G$661,MATCH($BB103,lov_term_buckets,0),'Step 4 bond aggregation'!$E$2:$E$661,$BC$98)","v":0},{"$f":"SUMIFS('Step 4 bond aggregation'!$B$2:$B$661,'Step 4 bond aggregation'!$A$2:$A$661,$BU$69,'Step 4 bond aggregation'!$F$2:$F$661,BY$72,'Step 4 bond aggregation'!$G$2:$G$661,MATCH($BB103,lov_term_buckets,0),'Step 4 bond aggregation'!$E$2:$E$661,$BC$98)","v":0},{"$f":"SUMIFS('Step 4 bond aggregation'!$B$2:$B$661,'Step 4 bond aggregation'!$A$2:$A$661,$BU$69,'Step 4 bond aggregation'!$F$2:$F$661,BZ$72,'Step 4 bond aggregation'!$G$2:$G$661,MATCH($BB103,lov_term_buckets,0),'Step 4 bond aggregation'!$E$2:$E$661,$BC$98)","v":0},{"$f":"SUMIFS('Step 4 bond aggregation'!$B$2:$B$661,'Step 4 bond aggregation'!$A$2:$A$661,$BU$69,'Step 4 bond aggregation'!$F$2:$F$661,CA$72,'Step 4 bond aggregation'!$G$2:$G$661,MATCH($BB103,lov_term_buckets,0),'Step 4 bond aggregation'!$E$2:$E$661,$BC$98)","v":0},{"$f":"SUMIFS('Step 4 bond aggregation'!$B$2:$B$661,'Step 4 bond aggregation'!$A$2:$A$661,$BU$69,'Step 4 bond aggregation'!$F$2:$F$661,CB$72,'Step 4 bond aggregation'!$G$2:$G$661,MATCH($BB103,lov_term_buckets,0),'Step 4 bond aggregation'!$E$2:$E$661,$BC$98)","v":0},{"$f":"SUMIFS('Step 4 bond aggregation'!$B$2:$B$661,'Step 4 bond aggregation'!$A$2:$A$661,$BU$69,'Step 4 bond aggregation'!$F$2:$F$661,CC$72,'Step 4 bond aggregation'!$G$2:$G$661,MATCH($BB103,lov_term_buckets,0),'Step 4 bond aggregation'!$E$2:$E$661,$BC$98)","v":0}]
[null,null,"More than 20",{"$f":"Input!F111","v":0},{"$f":"Input!G111","v":0},{"$f":"Input!H111","v":0},{"$f":"Input!I111","v":0},{"$f":"Input!J111","v":0},{"$f":"Input!K111","v":0},{"$f":"Input!L111","v":0},{"$f":"Input!M111","v":0},null,null,"More than 20",{"$f":"Input!F151+Input!F184","v":0},{"$f":"Input!G151+Input!G184","v":0},{"$f":"Input!H151+Input!H184","v":0},{"$f":"Input!I151+Input!I184","v":0},{"$f":"Input!J151+Input!J184","v":0},{"$f":"Input!K151+Input!K184","v":0},{"$f":"Input!L151+Input!L184","v":0},null,null,"More than 20",{"$f":"SUMIFS('Step 4 bond aggregation'!$B$2:$B$661,'Step 4 bond aggregation'!$A$2:$A$661,$W$69,'Step 4 bond aggregation'!$F$2:$F$661,Y$72,'Step 4 bond aggregation'!$G$2:$G$661,MATCH($X104,lov_term_buckets,0),'Step 4 bond aggregation'!$E$2:$E$661,$Y$98)","v":0},{"$f":"SUMIFS('Step 4 bond aggregation'!$B$2:$B$661,'Step 4 bond aggregation'!$A$2:$A$661,$W$69,'Step 4 bond aggregation'!$F$2:$F$661,Z$72,'Step 4 bond aggregation'!$G$2:$G$661,MATCH($X104,lov_term_buckets,0),'Step 4 bond aggregation'!$E$2:$E$661,$Y$98)","v":0},{"$f":"SUMIFS('Step 4 bond aggregation'!$B$2:$B$661,'Step 4 bond aggregation'!$A$2:$A$661,$W$69,'Step 4 bond aggregation'!$F$2:$F$661,AA$72,'Step 4 bond aggregation'!$G$2:$G$661,MATCH($X104,lov_term_buckets,0),'Step 4 bond aggregation'!$E$2:$E$661,$Y$98)","v":0},{"$f":"SUMIFS('Step 4 bond aggregation'!$B$2:$B$661,'Step 4 bond aggregation'!$A$2:$A$661,$W$69,'Step 4 bond aggregation'!$F$2:$F$661,AB$72,'Step 4 bond aggregation'!$G$2:$G$661,MATCH($X104,lov_term_buckets,0),'Step 4 bond aggregation'!$E$2:$E$661,$Y$98)","v":0},{"$f":"SUMIFS('Step 4 bond aggregation'!$B$2:$B$661,'Step 4 bond aggregation'!$A$2:$A$661,$W$69,'Step 4 bond aggregation'!$F$2:$F$661,AC$72,'Step 4 bond aggregation'!$G$2:$G$661,MATCH($X104,lov_term_buckets,0),'Step 4 bond aggregation'!$E$2:$E$661,$Y$98)","v":0},{"$f":"SUMIFS('Step 4 bond aggregation'!$B$2:$B$661,'Step 4 bond aggregation'!$A$2:$A$661,$W$69,'Step 4 bond aggregation'!$F$2:$F$661,AD$72,'Step 4 bond aggregation'!$G$2:$G$661,MATCH($X104,lov_term_buckets,0),'Step 4 bond aggregation'!$E$2:$E$661,$Y$98)","v":0},{"$f":"SUMIFS('Step 4 bond aggregation'!$B$2:$B$661,'Step 4 bond aggregation'!$A$2:$A$661,$W$69,'Step 4 bond aggregation'!$F$2:$F$661,AE$72,'Step 4 bond aggregation'!$G$2:$G$661,MATCH($X104,lov_term_buckets,0),'Step 4 bond aggregation'!$E$2:$E$661,$Y$98)","v":0},null,null,"More than 20",{"$f":"SUMIFS('Step 4 bond aggregation'!$B$2:$B$661,'Step 4 bond aggregation'!$A$2:$A$661,$AG$69,'Step 4 bond aggregation'!$F$2:$F$661,AI$72,'Step 4 bond aggregation'!$G$2:$G$661,MATCH($AH104,lov_term_buckets,0),'Step 4 bond aggregation'!$E$2:$E$661,$AI$98)","v":0},{"$f":"SUMIFS('Step 4 bond aggregation'!$B$2:$B$661,'Step 4 bond aggregation'!$A$2:$A$661,$AG$69,'Step 4 bond aggregation'!$F$2:$F$661,AJ$72,'Step 4 bond aggregation'!$G$2:$G$661,MATCH($AH104,lov_term_buckets,0),'Step 4 bond aggregation'!$E$2:$E$661,$AI$98)","v":0},{"$f":"SUMIFS('Step 4 bond aggregation'!$B$2:$B$661,'Step 4 bond aggregation'!$A$2:$A$661,$AG$69,'Step 4 bond aggregation'!$F$2:$F$661,AK$72,'Step 4 bond aggregation'!$G$2:$G$661,MATCH($AH104,lov_term_buckets,0),'Step 4 bond aggregation'!$E$2:$E$661,$AI$98)","v":0},{"$f":"SUMIFS('Step 4 bond aggregation'!$B$2:$B$661,'Step 4 bond aggregation'!$A$2:$A$661,$AG$69,'Step 4 bond aggregation'!$F$2:$F$661,AL$72,'Step 4 bond aggregation'!$G$2:$G$661,MATCH($AH104,lov_term_buckets,0),'Step 4 bond aggregation'!$E$2:$E$661,$AI$98)","v":0},{"$f":"SUMIFS('Step 4 bond aggregation'!$B$2:$B$661,'Step 4 bond aggregation'!$A$2:$A$661,$AG$69,'Step 4 bond aggregation'!$F$2:$F$661,AM$72,'Step 4 bond aggregation'!$G$2:$G$661,MATCH($AH104,lov_term_buckets,0),'Step 4 bond aggregation'!$E$2:$E$661,$AI$98)","v":0},{"$f":"SUMIFS('Step 4 bond aggregation'!$B$2:$B$661,'Step 4 bond aggregation'!$A$2:$A$661,$AG$69,'Step 4 bond aggregation'!$F$2:$F$661,AN$72,'Step 4 bond aggregation'!$G$2:$G$661,MATCH($AH104,lov_term_buckets,0),'Step 4 bond aggregation'!$E$2:$E$661,$AI$98)","v":0},{"$f":"SUMIFS('Step 4 bond aggregation'!$B$2:$B$661,'Step 4 bond aggregation'!$A$2:$A$661,$AG$69,'Step 4 bond aggregation'!$F$2:$F$661,AO$72,'Step 4 bond aggregation'!$G$2:$G$661,MATCH($AH104,lov_term_buckets,0),'Step 4 bond aggregation'!$E$2:$E$661,$AI$98)","v":0},null,null,"More than 20",{"$f":"SUMIFS('Step 4 bond aggregation'!$B$2:$B$661,'Step 4 bond aggregation'!$A$2:$A$661,$AQ$69,'Step 4 bond aggregation'!$F$2:$F$661,AS$72,'Step 4 bond aggregation'!$G$2:$G$661,MATCH($AR104,lov_term_buckets,0),'Step 4 bond aggregation'!$E$2:$E$661,$AS$98)","v":0},{"$f":"SUMIFS('Step 4 bond aggregation'!$B$2:$B$661,'Step 4 bond aggregation'!$A$2:$A$661,$AQ$69,'Step 4 bond aggregation'!$F$2:$F$661,AT$72,'Step 4 bond aggregation'!$G$2:$G$661,MATCH($AR104,lov_term_buckets,0),'Step 4 bond aggregation'!$E$2:$E$661,$AS$98)","v":0},{"$f":"SUMIFS('Step 4 bond aggregation'!$B$2:$B$661,'Step 4 bond aggregation'!$A$2:$A$661,$AQ$69,'Step 4 bond aggregation'!$F$2:$F$661,AU$72,'Step 4 bond aggregation'!$G$2:$G$661,MATCH($AR104,lov_term_buckets,0),'Step 4 bond aggregation'!$E$2:$E$661,$AS$98)","v":0},{"$f":"SUMIFS('Step 4 bond aggregation'!$B$2:$B$661,'Step 4 bond aggregation'!$A$2:$A$661,$AQ$69,'Step 4 bond aggregation'!$F$2:$F$661,AV$72,'Step 4 bond aggregation'!$G$2:$G$661,MATCH($AR104,lov_term_buckets,0),'Step 4 bond aggregation'!$E$2:$E$661,$AS$98)","v":0},{"$f":"SUMIFS('Step 4 bond aggregation'!$B$2:$B$661,'Step 4 bond aggregation'!$A$2:$A$661,$AQ$69,'Step 4 bond aggregation'!$F$2:$F$661,AW$72,'Step 4 bond aggregation'!$G$2:$G$661,MATCH($AR104,lov_term_buckets,0),'Step 4 bond aggregation'!$E$2:$E$661,$AS$98)","v":0},{"$f":"SUMIFS('Step 4 bond aggregation'!$B$2:$B$661,'Step 4 bond aggregation'!$A$2:$A$661,$AQ$69,'Step 4 bond aggregation'!$F$2:$F$661,AX$72,'Step 4 bond aggregation'!$G$2:$G$661,MATCH($AR104,lov_term_buckets,0),'Step 4 bond aggregation'!$E$2:$E$661,$AS$98)","v":0},{"$f":"SUMIFS('Step 4 bond aggregation'!$B$2:$B$661,'Step 4 bond aggregation'!$A$2:$A$661,$AQ$69,'Step 4 bond aggregation'!$F$2:$F$661,AY$72,'Step 4 bond aggregation'!$G$2:$G$661,MATCH($AR104,lov_term_buckets,0),'Step 4 bond aggregation'!$E$2:$E$661,$AS$98)","v":0},null,null,"More than 20",{"$f":"SUMIFS('Step 4 bond aggregation'!$B$2:$B$661,'Step 4 bond aggregation'!$A$2:$A$661,$BA$69,'Step 4 bond aggregation'!$F$2:$F$661,BC$72,'Step 4 bond aggregation'!$G$2:$G$661,MATCH($BB104,lov_term_buckets,0),'Step 4 bond aggregation'!$E$2:$E$661,$BC$98)","v":0},{"$f":"SUMIFS('Step 4 bond aggregation'!$B$2:$B$661,'Step 4 bond aggregation'!$A$2:$A$661,$BA$69,'Step 4 bond aggregation'!$F$2:$F$661,BD$72,'Step 4 bond aggregation'!$G$2:$G$661,MATCH($BB104,lov_term_buckets,0),'Step 4 bond aggregation'!$E$2:$E$661,$BC$98)","v":0},{"$f":"SUMIFS('Step 4 bond aggregation'!$B$2:$B$661,'Step 4 bond aggregation'!$A$2:$A$661,$BA$69,'Step 4 bond aggregation'!$F$2:$F$661,BE$72,'Step 4 bond aggregation'!$G$2:$G$661,MATCH($BB104,lov_term_buckets,0),'Step 4 bond aggregation'!$E$2:$E$661,$BC$98)","v":0},{"$f":"SUMIFS('Step 4 bond aggregation'!$B$2:$B$661,'Step 4 bond aggregation'!$A$2:$A$661,$BA$69,'Step 4 bond aggregation'!$F$2:$F$661,BF$72,'Step 4 bond aggregation'!$G$2:$G$661,MATCH($BB104,lov_term_buckets,0),'Step 4 bond aggregation'!$E$2:$E$661,$BC$98)","v":0},{"$f":"SUMIFS('Step 4 bond aggregation'!$B$2:$B$661,'Step 4 bond aggregation'!$A$2:$A$661,$BA$69,'Step 4 bond aggregation'!$F$2:$F$661,BG$72,'Step 4 bond aggregation'!$G$2:$G$661,MATCH($BB104,lov_term_buckets,0),'Step 4 bond aggregation'!$E$2:$E$661,$BC$98)","v":0},{"$f":"SUMIFS('Step 4 bond aggregation'!$B$2:$B$661,'Step 4 bond aggregation'!$A$2:$A$661,$BA$69,'Step 4 bond aggregation'!$F$2:$F$661,BH$72,'Step 4 bond aggregation'!$G$2:$G$661,MATCH($BB104,lov_term_buckets,0),'Step 4 bond aggregation'!$E$2:$E$661,$BC$98)","v":0},{"$f":"SUMIFS('Step 4 bond aggregation'!$B$2:$B$661,'Step 4 bond aggregation'!$A$2:$A$661,$BA$69,'Step 4 bond aggregation'!$F$2:$F$661,BI$72,'Step 4 bond aggregation'!$G$2:$G$661,MATCH($BB104,lov_term_buckets,0),'Step 4 bond aggregation'!$E$2:$E$661,$BC$98)","v":0},null,null,"More than 20",{"$f":"SUMIFS('Step 4 bond aggregation'!$B$2:$B$661,'Step 4 bond aggregation'!$A$2:$A$661,$BK$69,'Step 4 bond aggregation'!$F$2:$F$661,BM$72,'Step 4 bond aggregation'!$G$2:$G$661,MATCH($BB104,lov_term_buckets,0),'Step 4 bond aggregation'!$E$2:$E$661,$BC$98)","v":0},{"$f":"SUMIFS('Step 4 bond aggregation'!$B$2:$B$661,'Step 4 bond aggregation'!$A$2:$A$661,$BK$69,'Step 4 bond aggregation'!$F$2:$F$661,BN$72,'Step 4 bond aggregation'!$G$2:$G$661,MATCH($BB104,lov_term_buckets,0),'Step 4 bond aggregation'!$E$2:$E$661,$BC$98)","v":0},{"$f":"SUMIFS('Step 4 bond aggregation'!$B$2:$B$661,'Step 4 bond aggregation'!$A$2:$A$661,$BK$69,'Step 4 bond aggregation'!$F$2:$F$661,BO$72,'Step 4 bond aggregation'!$G$2:$G$661,MATCH($BB104,lov_term_buckets,0),'Step 4 bond aggregation'!$E$2:$E$661,$BC$98)","v":0},{"$f":"SUMIFS('Step 4 bond aggregation'!$B$2:$B$661,'Step 4 bond aggregation'!$A$2:$A$661,$BK$69,'Step 4 bond aggregation'!$F$2:$F$661,BP$72,'Step 4 bond aggregation'!$G$2:$G$661,MATCH($BB104,lov_term_buckets,0),'Step 4 bond aggregation'!$E$2:$E$661,$BC$98)","v":0},{"$f":"SUMIFS('Step 4 bond aggregation'!$B$2:$B$661,'Step 4 bond aggregation'!$A$2:$A$661,$BK$69,'Step 4 bond aggregation'!$F$2:$F$661,BQ$72,'Step 4 bond aggregation'!$G$2:$G$661,MATCH($BB104,lov_term_buckets,0),'Step 4 bond aggregation'!$E$2:$E$661,$BC$98)","v":0},{"$f":"SUMIFS('Step 4 bond aggregation'!$B$2:$B$661,'Step 4 bond aggregation'!$A$2:$A$661,$BK$69,'Step 4 bond aggregation'!$F$2:$F$661,BR$72,'Step 4 bond aggregation'!$G$2:$G$661,MATCH($BB104,lov_term_buckets,0),'Step 4 bond aggregation'!$E$2:$E$661,$BC$98)","v":0},{"$f":"SUMIFS('Step 4 bond aggregation'!$B$2:$B$661,'Step 4 bond aggregation'!$A$2:$A$661,$BK$69,'Step 4 bond aggregation'!$F$2:$F$661,BS$72,'Step 4 bond aggregation'!$G$2:$G$661,MATCH($BB104,lov_term_buckets,0),'Step 4 bond aggregation'!$E$2:$E$661,$BC$98)","v":0},null,null,"More than 20",{"$f":"SUMIFS('Step 4 bond aggregation'!$B$2:$B$661,'Step 4 bond aggregation'!$A$2:$A$661,$BU$69,'Step 4 bond aggregation'!$F$2:$F$661,BW$72,'Step 4 bond aggregation'!$G$2:$G$661,MATCH($BB104,lov_term_buckets,0),'Step 4 bond aggregation'!$E$2:$E$661,$BC$98)","v":0},{"$f":"SUMIFS('Step 4 bond aggregation'!$B$2:$B$661,'Step 4 bond aggregation'!$A$2:$A$661,$BU$69,'Step 4 bond aggregation'!$F$2:$F$661,BX$72,'Step 4 bond aggregation'!$G$2:$G$661,MATCH($BB104,lov_term_buckets,0),'Step 4 bond aggregation'!$E$2:$E$661,$BC$98)","v":0},{"$f":"SUMIFS('Step 4 bond aggregation'!$B$2:$B$661,'Step 4 bond aggregation'!$A$2:$A$661,$BU$69,'Step 4 bond aggregation'!$F$2:$F$661,BY$72,'Step 4 bond aggregation'!$G$2:$G$661,MATCH($BB104,lov_term_buckets,0),'Step 4 bond aggregation'!$E$2:$E$661,$BC$98)","v":0},{"$f":"SUMIFS('Step 4 bond aggregation'!$B$2:$B$661,'Step 4 bond aggregation'!$A$2:$A$661,$BU$69,'Step 4 bond aggregation'!$F$2:$F$661,BZ$72,'Step 4 bond aggregation'!$G$2:$G$661,MATCH($BB104,lov_term_buckets,0),'Step 4 bond aggregation'!$E$2:$E$661,$BC$98)","v":0},{"$f":"SUMIFS('Step 4 bond aggregation'!$B$2:$B$661,'Step 4 bond aggregation'!$A$2:$A$661,$BU$69,'Step 4 bond aggregation'!$F$2:$F$661,CA$72,'Step 4 bond aggregation'!$G$2:$G$661,MATCH($BB104,lov_term_buckets,0),'Step 4 bond aggregation'!$E$2:$E$661,$BC$98)","v":0},{"$f":"SUMIFS('Step 4 bond aggregation'!$B$2:$B$661,'Step 4 bond aggregation'!$A$2:$A$661,$BU$69,'Step 4 bond aggregation'!$F$2:$F$661,CB$72,'Step 4 bond aggregation'!$G$2:$G$661,MATCH($BB104,lov_term_buckets,0),'Step 4 bond aggregation'!$E$2:$E$661,$BC$98)","v":0},{"$f":"SUMIFS('Step 4 bond aggregation'!$B$2:$B$661,'Step 4 bond aggregation'!$A$2:$A$661,$BU$69,'Step 4 bond aggregation'!$F$2:$F$661,CC$72,'Step 4 bond aggregation'!$G$2:$G$661,MATCH($BB104,lov_term_buckets,0),'Step 4 bond aggregation'!$E$2:$E$661,$BC$98)","v":0}]
[null,null,"Total",{"$f":"SUM(D100:K104)","v":0},null,null,null,null,null,null,null,null,null,"Total",{"$f":"SUM(O100:U104)","v":0},null,null,null,null,null,null,null,null,"Total",{"$f":"SUM(Y100:AE104)","v":0},null,null,null,null,null,null,null,null,"Total",{"$f":"SUM(AI100:AO104)","v":0},null,null,null,null,null,null,null,null,"Total",{"$f":"SUM(AS100:AY104)","v":0},null,null,null,null,null,null,null,null,"Total",{"$f":"SUM(BC100:BI104)","v":0},null,null,null,null,null,null,null,null,"Total",{"$f":"SUM(BM100:BS104)","v":0},null,null,null,null,null,null,null,null,"Total",{"$f":"SUM(BW100:CC104)","v":0}]
[]
[null,null,"Total",{"$f":"D78+D87+D96+D105","v":0},null,null,null,null,null,null,null,null,null,"Total",{"$f":"O78+O87+O96+O105","v":0},null,null,null,null,null,null,null,null,"Total",{"$f":"Y78+Y87+Y96+Y105","v":0},null,null,null,null,null,null,null,null,"Total",{"$f":"AI78+AI87+AI96+AI105","v":0},null,null,null,null,null,null,null,null,"Total",{"$f":"AS78+AS87+AS96+AS105","v":0},null,null,null,null,null,null,null,null,"Total",{"$f":"BC78+BC87+BC96+BC105","v":0},null,null,null,null,null,null,null,null,"Total",{"$f":"BM78+BM87+BM96+BM105","v":0},null,null,null,null,null,null,null,null,"Total",{"$f":"BW78+BW87+BW96+BW105","v":0}]
[]
[null,"Required Capital - Credit risk Bond"]
[null,null,"99.99% Scenario",null,null,null,null,null,null,null,null,null,null,"99.95% Scenario",null,null,null,null,null,null,null,null,null,null,"99.8% Scenario",null,null,null,null,null,null,null,null,null,null,"99.5% Scenario"]
[null,null,"Credit Risk Recovery Category",{"$f":"Lists!$C$3","v":1},null,null,null,null,null,null,null,null,null,"Credit Risk Recovery Category",{"$f":"Lists!$C$3","v":1},null,null,null,null,null,null,null,null,null,"Credit Risk Recovery Category",{"$f":"Lists!$C$3","v":1},null,null,null,null,null,null,null,null,null,"Credit Risk Recovery Category",{"$f":"Lists!$C$3","v":1}]
[null,null,"Term (years)","AAA","AA","A","BBB","BB","B","CCC-C","D",null,null,"Term (years)","AAA","AA","A","BBB","BB","B","CCC-C","D",null,null,"Term (years)","AAA","AA","A","BBB","BB","B","CCC-C","D",null,null,"Term (years)","AAA","AA","A","BBB","BB","B","CCC-C","D"]
[null,null,"Upto 1",{"$f":"D35*'Risk Charges'!D8","v":0},{"$f":"E35*'Risk Charges'!E8","v":0},{"$f":"F35*'Risk Charges'!F8","v":0},{"$f":"G35*'Risk Charges'!G8","v":0},{"$f":"H35*'Risk Charges'!H8","v":0},{"$f":"I35*'Risk Charges'!I8","v":0},{"$f":"J35*'Risk Charges'!J8","v":0},{"$f":"K35*'Risk Charges'!K8","v":0},null,null,"Upto 1",{"$f":"D35*'Risk Charges'!O8","v":0},{"$f":"E35*'Risk Charges'!P8","v":0},{"$f":"F35*'Risk Charges'!Q8","v":0},{"$f":"G35*'Risk Charges'!R8","v":0},{"$f":"H35*'Risk Charges'!S8","v":0},{"$f":"I35*'Risk Charges'!T8","v":0},{"$f":"J35*'Risk Charges'!U8","v":0},{"$f":"K35*'Risk Charges'!V8","v":0},null,null,"Upto 1",{"$f":"D35*'Risk Charges'!Z8","v":0},{"$f":"E35*'Risk Charges'!AA8","v":0},{"$f":"F35*'Risk Charges'!AB8","v":0},{"$f":"G35*'Risk Charges'!AC8","v":0},{"$f":"H35*'Risk Charges'!AD8","v":0},{"$f":"I35*'Risk Charges'!AE8","v":0},{"$f":"J35*'Risk Charges'!AF8","v":0},{"$f":"K35*'Risk Charges'!AG8","v":0},null,null,"Upto 1",{"$f":"D35*'Risk Charges'!AK8","v":0},{"$f":"E35*'Risk Charges'!AL8","v":0},{"$f":"F35*'Risk Charges'!AM8","v":0},{"$f":"G35*'Risk Charges'!AN8","v":0},{"$f":"H35*'Risk Charges'!AO8","v":0},{"$f":"I35*'Risk Charges'!AP8","v":0},{"$f":"J35*'Risk Charges'!AQ8","v":0},{"$f":"K35*'Risk Charges'!AR8","v":0}]
[null,null,"1.01 to 5",{"$f":"D36*'Risk Charges'!D9","v":0},{"$f":"E36*'Risk Charges'!E9","v":0},{"$f":"F36*'Risk Charges'!F9","v":0},{"$f":"G36*'Risk Charges'!G9","v":0},{"$f":"H36*'Risk Charges'!H9","v":0},{"$f":"I36*'Risk Charges'!I9","v":0},{"$f":"J36*'Risk Charges'!J9","v":0},{"$f":"K36*'Risk Charges'!K9","v":0},null,null,"1.01 to 5",{"$f":"D36*'Risk Charges'!O9","v":0},{"$f":"E36*'Risk Charges'!P9","v":0},{"$f":"F36*'Risk Charges'!Q9","v":0},{"$f":"G36*'Risk Charges'!R9","v":0},{"$f":"H36*'Risk Charges'!S9","v":0},{"$f":"I36*'Risk Charges'!T9","v":0},{"$f":"J36*'Risk Charges'!U9","v":0},{"$f":"K36*'Risk Charges'!V9","v":0},null,null,"1.01 to 5",{"$f":"D36*'Risk Charges'!Z9","v":0},{"$f":"E36*'Risk Charges'!AA9","v":0},{"$f":"F36*'Risk Charges'!AB9","v":0},{"$f":"G36*'Risk Charges'!AC9","v":0},{"$f":"H36*'Risk Charges'!AD9","v":0},{"$f":"I36*'Risk Charges'!AE9","v":0},{"$f":"J36*'Risk Charges'!AF9","v":0},{"$f":"K36*'Risk Charges'!AG9","v":0},null,null,"1.01 to 5",{"$f":"D36*'Risk Charges'!AK9","v":0},{"$f":"E36*'Risk Charges'!AL9","v":0},{"$f":"F36*'Risk Charges'!AM9","v":0},{"$f":"G36*'Risk Charges'!AN9","v":0},{"$f":"H36*'Risk Charges'!AO9","v":0},{"$f":"I36*'Risk Charges'!AP9","v":0},{"$f":"J36*'Risk Charges'!AQ9","v":0},{"$f":"K36*'Risk Charges'!AR9","v":0}]
[null,null,"5.01 to 10",{"$f":"D37*'Risk Charges'!D10","v":0},{"$f":"E37*'Risk Charges'!E10","v":0},{"$f":"F37*'Risk Charges'!F10","v":0},{"$f":"G37*'Risk Charges'!G10","v":0},{"$f":"H37*'Risk Charges'!H10","v":0},{"$f":"I37*'Risk Charges'!I10","v":0},{"$f":"J37*'Risk Charges'!J10","v":0},{"$f":"K37*'Risk Charges'!K10","v":0},null,null,"5.01 to 10",{"$f":"D37*'Risk Charges'!O10","v":0},{"$f":"E37*'Risk Charges'!P10","v":0},{"$f":"F37*'Risk Charges'!Q10","v":0},{"$f":"G37*'Risk Charges'!R10","v":0},{"$f":"H37*'Risk Charges'!S10","v":0},{"$f":"I37*'Risk Charges'!T10","v":0},{"$f":"J37*'Risk Charges'!U10","v":0},{"$f":"K37*'Risk Charges'!V10","v":0},null,null,"5.01 to 10",{"$f":"D37*'Risk Charges'!Z10","v":0},{"$f":"E37*'Risk Charges'!AA10","v":0},{"$f":"F37*'Risk Charges'!AB10","v":0},{"$f":"G37*'Risk Charges'!AC10","v":0},{"$f":"H37*'Risk Charges'!AD10","v":0},{"$f":"I37*'Risk Charges'!AE10","v":0},{"$f":"J37*'Risk Charges'!AF10","v":0},{"$f":"K37*'Risk Charges'!AG10","v":0},null,null,"5.01 to 10",{"$f":"D37*'Risk Charges'!AK10","v":0},{"$f":"E37*'Risk Charges'!AL10","v":0},{"$f":"F37*'Risk Charges'!AM10","v":0},{"$f":"G37*'Risk Charges'!AN10","v":0},{"$f":"H37*'Risk Charges'!AO10","v":0},{"$f":"I37*'Risk Charges'!AP10","v":0},{"$f":"J37*'Risk Charges'!AQ10","v":0},{"$f":"K37*'Risk Charges'!AR10","v":0}]
[null,null,"10.01 to 20",{"$f":"D38*'Risk Charges'!D11","v":0},{"$f":"E38*'Risk Charges'!E11","v":0},{"$f":"F38*'Risk Charges'!F11","v":0},{"$f":"G38*'Risk Charges'!G11","v":0},{"$f":"H38*'Risk Charges'!H11","v":0},{"$f":"I38*'Risk Charges'!I11","v":0},{"$f":"J38*'Risk Charges'!J11","v":0},{"$f":"K38*'Risk Charges'!K11","v":0},null,null,"10.01 to 20",{"$f":"D38*'Risk Charges'!O11","v":0},{"$f":"E38*'Risk Charges'!P11","v":0},{"$f":"F38*'Risk Charges'!Q11","v":0},{"$f":"G38*'Risk Charges'!R11","v":0},{"$f":"H38*'Risk Charges'!S11","v":0},{"$f":"I38*'Risk Charges'!T11","v":0},{"$f":"J38*'Risk Charges'!U11","v":0},{"$f":"K38*'Risk Charges'!V11","v":0},null,null,"10.01 to 20",{"$f":"D38*'Risk Charges'!Z11","v":0},{"$f":"E38*'Risk Charges'!AA11","v":0},{"$f":"F38*'Risk Charges'!AB11","v":0},{"$f":"G38*'Risk Charges'!AC11","v":0},{"$f":"H38*'Risk Charges'!AD11","v":0},{"$f":"I38*'Risk Charges'!AE11","v":0},{"$f":"J38*'Risk Charges'!AF11","v":0},{"$f":"K38*'Risk Charges'!AG11","v":0},null,null,"10.01 to 20",{"$f":"D38*'Risk Charges'!AK11","v":0},{"$f":"E38*'Risk Charges'!AL11","v":0},{"$f":"F38*'Risk Charges'!AM11","v":0},{"$f":"G38*'Risk Charges'!AN11","v":0},{"$f":"H38*'Risk Charges'!AO11","v":0},{"$f":"I38*'Risk Charges'!AP11","v":0},{"$f":"J38*'Risk Charges'!AQ11","v":0},{"$f":"K38*'Risk Charges'!AR11","v":0}]
[null,null,"More than 20",{"$f":"D39*'Risk Charges'!D12","v":0},{"$f":"E39*'Risk Charges'!E12","v":0},{"$f":"F39*'Risk Charges'!F12","v":0},{"$f":"G39*'Risk Charges'!G12","v":0},{"$f":"H39*'Risk Charges'!H12","v":0},{"$f":"I39*'Risk Charges'!I12","v":0},{"$f":"J39*'Risk Charges'!J12","v":0},{"$f":"K39*'Risk Charges'!K12","v":0},null,null,"More than 20",{"$f":"D39*'Risk Charges'!O12","v":0},{"$f":"E39*'Risk Charges'!P12","v":0},{"$f":"F39*'Risk Charges'!Q12","v":0},{"$f":"G39*'Risk Charges'!R12","v":0},{"$f":"H39*'Risk Charges'!S12","v":0},{"$f":"I39*'Risk Charges'!T12","v":0},{"$f":"J39*'Risk Charges'!U12","v":0},{"$f":"K39*'Risk Charges'!V12","v":0},null,null,"More than 20",{"$f":"D39*'Risk Charges'!Z12","v":0},{"$f":"E39*'Risk Charges'!AA12","v":0},{"$f":"F39*'Risk Charges'!AB12","v":0},{"$f":"G39*'Risk Charges'!AC12","v":0},{"$f":"H39*'Risk Charges'!AD12","v":0},{"$f":"I39*'Risk Charges'!AE12","v":0},{"$f":"J39*'Risk Charges'!AF12","v":0},{"$f":"K39*'Risk Charges'!AG12","v":0},null,null,"More than 20",{"$f":"D39*'Risk Charges'!AK12","v":0},{"$f":"E39*'Risk Charges'!AL12","v":0},{"$f":"F39*'Risk Charges'!AM12","v":0},{"$f":"G39*'Risk Charges'!AN12","v":0},{"$f":"H39*'Risk Charges'!AO12","v":0},{"$f":"I39*'Risk Charges'!AP12","v":0},{"$f":"J39*'Risk Charges'!AQ12","v":0},{"$f":"K39*'Risk Charges'!AR12","v":0}]
[null,null,"Total",{"$f":"SUM(D113:K117)","v":0},null,null,null,null,null,null,null,null,null,"Total",{"$f":"SUM(O113:V117)","v":0},null,null,null,null,null,null,null,null,null,"Total",{"$f":"SUM(Z113:AG117)","v":0},null,null,null,null,null,null,null,null,null,"Total",{"$f":"SUM(AK113:AR117)","v":0}]
[]
[null,null,"Credit Risk Recovery Category",{"$f":"Lists!$C$4","v":2},null,null,null,null,null,null,null,null,null,"Credit Risk Recovery Category",{"$f":"Lists!$C$4","v":2},null,null,null,null,null,null,null,null,null,null,"Credit Risk Recovery Category",{"$f":"Lists!$C$4","v":2},null,null,null,null,null,null,null,null,"Credit Risk Recovery Category",{"$f":"Lists!$C$4","v":2}]
[null,null,"Term (years)","AAA","AA","A","BBB","BB","B","CCC-C","D",null,null,"Term (years)","AAA","AA","A","BBB","BB","B","CCC-C","D",null,null,"Term (years)","AAA","AA","A","BBB","BB","B","CCC-C","D",null,null,"Term (years)","AAA","AA","A","BBB","BB","B","CCC-C","D"]
[null,null,"Upto 1",{"$f":"D44*'Risk Charges'!D16","v":0},{"$f":"E44*'Risk Charges'!E16","v":0},{"$f":"F44*'Risk Charges'!F16","v":0},{"$f":"G44*'Risk Charges'!G16","v":0},{"$f":"H44*'Risk Charges'!H16","v":0},{"$f":"I44*'Risk Charges'!I16","v":0},{"$f":"J44*'Risk Charges'!J16","v":0},{"$f":"K44*'Risk Charges'!K16","v":0},null,null,"Upto 1",{"$f":"D44*'Risk Charges'!O16","v":0},{"$f":"E44*'Risk Charges'!P16","v":0},{"$f":"F44*'Risk Charges'!Q16","v":0},{"$f":"G44*'Risk Charges'!R16","v":0},{"$f":"H44*'Risk Charges'!S16","v":0},{"$f":"I44*'Risk Charges'!T16","v":0},{"$f":"J44*'Risk Charges'!U16","v":0},{"$f":"K44*'Risk Charges'!V16","v":0},null,null,"Upto 1",{"$f":"D44*'Risk Charges'!Z16","v":0},{"$f":"E44*'Risk Charges'!AA16","v":0},{"$f":"F44*'Risk Charges'!AB16","v":0},{"$f":"G44*'Risk Charges'!AC16","v":0},{"$f":"H44*'Risk Charges'!AD16","v":0},{"$f":"I44*'Risk Charges'!AE16","v":0},{"$f":"J44*'Risk Charges'!AF16","v":0},{"$f":"K44*'Risk Charges'!AG16","v":0},null,null,"Upto 1",{"$f":"D44*'Risk Charges'!AK16","v":0},{"$f":"E44*'Risk Charges'!AL16","v":0},{"$f":"F44*'Risk Charges'!AM16","v":0},{"$f":"G44*'Risk Charges'!AN16","v":0},{"$f":"H44*'Risk Charges'!AO16","v":0},{"$f":"I44*'Risk Charges'!AP16","v":0},{"$f":"J44*'Risk Charges'!AQ16","v":0},{"$f":"K44*'Risk Charges'!AR16","v":0}]
[null,null,"1.01 to 5",{"$f":"D45*'Risk Charges'!D17","v":0},{"$f":"E45*'Risk Charges'!E17","v":0},{"$f":"F45*'Risk Charges'!F17","v":0},{"$f":"G45*'Risk Charges'!G17","v":0},{"$f":"H45*'Risk Charges'!H17","v":0},{"$f":"I45*'Risk Charges'!I17","v":0},{"$f":"J45*'Risk Charges'!J17","v":0},{"$f":"K45*'Risk Charges'!K17","v":0},null,null,"1.01 to 5",{"$f":"D45*'Risk Charges'!O17","v":0},{"$f":"E45*'Risk Charges'!P17","v":0},{"$f":"F45*'Risk Charges'!Q17","v":0},{"$f":"G45*'Risk Charges'!R17","v":0},{"$f":"H45*'Risk Charges'!S17","v":0},{"$f":"I45*'Risk Charges'!T17","v":0},{"$f":"J45*'Risk Charges'!U17","v":0},{"$f":"K45*'Risk Charges'!V17","v":0},null,null,"1.01 to 5",{"$f":"D45*'Risk Charges'!Z17","v":0},{"$f":"E45*'Risk Charges'!AA17","v":0},{"$f":"F45*'Risk Charges'!AB17","v":0},{"$f":"G45*'Risk Charges'!AC17","v":0},{"$f":"H45*'Risk Charges'!AD17","v":0},{"$f":"I45*'Risk Charges'!AE17","v":0},{"$f":"J45*'Risk Charges'!AF17","v":0},{"$f":"K45*'Risk Charges'!AG17","v":0},null,null,"1.01 to 5",{"$f":"D45*'Risk Charges'!AK17","v":0},{"$f":"E45*'Risk Charges'!AL17","v":0},{"$f":"F45*'Risk Charges'!AM17","v":0},{"$f":"G45*'Risk Charges'!AN17","v":0},{"$f":"H45*'Risk Charges'!AO17","v":0},{"$f":"I45*'Risk Charges'!AP17","v":0},{"$f":"J45*'Risk Charges'!AQ17","v":0},{"$f":"K45*'Risk Charges'!AR17","v":0}]
[null,null,"5.01 to 10",{"$f":"D46*'Risk Charges'!D18","v":0},{"$f":"E46*'Risk Charges'!E18","v":0},{"$f":"F46*'Risk Charges'!F18","v":0},{"$f":"G46*'Risk Charges'!G18","v":0},{"$f":"H46*'Risk Charges'!H18","v":0},{"$f":"I46*'Risk Charges'!I18","v":0},{"$f":"J46*'Risk Charges'!J18","v":0},{"$f":"K46*'Risk Charges'!K18","v":0},null,null,"5.01 to 10",{"$f":"D46*'Risk Charges'!O18","v":0},{"$f":"E46*'Risk Charges'!P18","v":0},{"$f":"F46*'Risk Charges'!Q18","v":0},{"$f":"G46*'Risk Charges'!R18","v":0},{"$f":"H46*'Risk Charges'!S18","v":0},{"$f":"I46*'Risk Charges'!T18","v":0},{"$f":"J46*'Risk Charges'!U18","v":0},{"$f":"K46*'Risk Charges'!V18","v":0},null,null,"5.01 to 10",{"$f":"D46*'Risk Charges'!Z18","v":0},{"$f":"E46*'Risk Charges'!AA18","v":0},{"$f":"F46*'Risk Charges'!AB18","v":0},{"$f":"G46*'Risk Charges'!AC18","v":0},{"$f":"H46*'Risk Charges'!AD18","v":0},{"$f":"I46*'Risk Charges'!AE18","v":0},{"$f":"J46*'Risk Charges'!AF18","v":0},{"$f":"K46*'Risk Charges'!AG18","v":0},null,null,"5.01 to 10",{"$f":"D46*'Risk Charges'!AK18","v":0},{"$f":"E46*'Risk Charges'!AL18","v":0},{"$f":"F46*'Risk Charges'!AM18","v":0},{"$f":"G46*'Risk Charges'!AN18","v":0},{"$f":"H46*'Risk Charges'!AO18","v":0},{"$f":"I46*'Risk Charges'!AP18","v":0},{"$f":"J46*'Risk Charges'!AQ18","v":0},{"$f":"K46*'Risk Charges'!AR18","v":0}]
[null,null,"10.01 to 20",{"$f":"D47*'Risk Charges'!D19","v":0},{"$f":"E47*'Risk Charges'!E19","v":0},{"$f":"F47*'Risk Charges'!F19","v":0},{"$f":"G47*'Risk Charges'!G19","v":0},{"$f":"H47*'Risk Charges'!H19","v":0},{"$f":"I47*'Risk Charges'!I19","v":0},{"$f":"J47*'Risk Charges'!J19","v":0},{"$f":"K47*'Risk Charges'!K19","v":0},null,null,"10.01 to 20",{"$f":"D47*'Risk Charges'!O19","v":0},{"$f":"E47*'Risk Charges'!P19","v":0},{"$f":"F47*'Risk Charges'!Q19","v":0},{"$f":"G47*'Risk Charges'!R19","v":0},{"$f":"H47*'Risk Charges'!S19","v":0},{"$f":"I47*'Risk Charges'!T19","v":0},{"$f":"J47*'Risk Charges'!U19","v":0},{"$f":"K47*'Risk Charges'!V19","v":0},null,null,"10.01 to 20",{"$f":"D47*'Risk Charges'!Z19","v":0},{"$f":"E47*'Risk Charges'!AA19","v":0},{"$f":"F47*'Risk Charges'!AB19","v":0},{"$f":"G47*'Risk Charges'!AC19","v":0},{"$f":"H47*'Risk Charges'!AD19","v":0},{"$f":"I47*'Risk Charges'!AE19","v":0},{"$f":"J47*'Risk Charges'!AF19","v":0},{"$f":"K47*'Risk Charges'!AG19","v":0},null,null,"10.01 to 20",{"$f":"D47*'Risk Charges'!AK19","v":0},{"$f":"E47*'Risk Charges'!AL19","v":0},{"$f":"F47*'Risk Charges'!AM19","v":0},{"$f":"G47*'Risk Charges'!AN19","v":0},{"$f":"H47*'Risk Charges'!AO19","v":0},{"$f":"I47*'Risk Charges'!AP19","v":0},{"$f":"J47*'Risk Charges'!AQ19","v":0},{"$f":"K47*'Risk Charges'!AR19","v":0}]
[null,null,"More than 20",{"$f":"D48*'Risk Charges'!D20","v":0},{"$f":"E48*'Risk Charges'!E20","v":0},{"$f":"F48*'Risk Charges'!F20","v":0},{"$f":"G48*'Risk Charges'!G20","v":0},{"$f":"H48*'Risk Charges'!H20","v":0},{"$f":"I48*'Risk Charges'!I20","v":0},{"$f":"J48*'Risk Charges'!J20","v":0},{"$f":"K48*'Risk Charges'!K20","v":0},null,null,"More than 20",{"$f":"D48*'Risk Charges'!O20","v":0},{"$f":"E48*'Risk Charges'!P20","v":0},{"$f":"F48*'Risk Charges'!Q20","v":0},{"$f":"G48*'Risk Charges'!R20","v":0},{"$f":"H48*'Risk Charges'!S20","v":0},{"$f":"I48*'Risk Charges'!T20","v":0},{"$f":"J48*'Risk Charges'!U20","v":0},{"$f":"K48*'Risk Charges'!V20","v":0},null,null,"More than 20",{"$f":"D48*'Risk Charges'!Z20","v":0},{"$f":"E48*'Risk Charges'!AA20","v":0},{"$f":"F48*'Risk Charges'!AB20","v":0},{"$f":"G48*'Risk Charges'!AC20","v":0},{"$f":"H48*'Risk Charges'!AD20","v":0},{"$f":"I48*'Risk Charges'!AE20","v":0},{"$f":"J48*'Risk Charges'!AF20","v":0},{"$f":"K48*'Risk Charges'!AG20","v":0},null,null,"More than 20",{"$f":"D48*'Risk Charges'!AK20","v":0},{"$f":"E48*'Risk Charges'!AL20","v":0},{"$f":"F48*'Risk Charges'!AM20","v":0},{"$f":"G48*'Risk Charges'!AN20","v":0},{"$f":"H48*'Risk Charges'!AO20","v":0},{"$f":"I48*'Risk Charges'!AP20","v":0},{"$f":"J48*'Risk Charges'!AQ20","v":0},{"$f":"K48*'Risk Charges'!AR20","v":0}]
[null,null,"Total",{"$f":"SUM(D122:K126)","v":0},null,null,null,null,null,null,null,null,null,"Total",{"$f":"SUM(O122:V126)","v":0},null,null,null,null,null,null,null,null,null,"Total",{"$f":"SUM(Z122:AG126)","v":0},null,null,null,null,null,null,null,null,null,"Total",{"$f":"SUM(AK122:AR126)","v":0}]
[]
[null,null,"Credit Risk Recovery Category",{"$f":"Lists!$C$5","v":3},null,null,null,null,null,null,null,null,null,"Credit Risk Recovery Category",{"$f":"Lists!$C$5","v":3},null,null,null,null,null,null,null,null,null,"Credit Risk Recovery Category",{"$f":"Lists!$C$5","v":3},null,null,null,null,null,null,null,null,null,"Credit Risk Recovery Category",{"$f":"Lists!$C$5","v":3}]
[null,null,"Term (years)","AAA","AA","A","BBB","BB","B","CCC-C","D",null,null,"Term (years)","AAA","AA","A","BBB","BB","B","CCC-C","D",null,null,"Term (years)","AAA","AA","A","BBB","BB","B","CCC-C","D",null,null,"Term (years)","AAA","AA","A","BBB","BB","B","CCC-C","D"]
[null,null,"Upto 1",{"$f":"D53*'Risk Charges'!D24","v":0},{"$f":"E53*'Risk Charges'!E24","v":0},{"$f":"F53*'Risk Charges'!F24","v":0},{"$f":"G53*'Risk Charges'!G24","v":0},{"$f":"H53*'Risk Charges'!H24","v":0},{"$f":"I53*'Risk Charges'!I24","v":0},{"$f":"J53*'Risk Charges'!J24","v":0},{"$f":"K53*'Risk Charges'!K24","v":0},null,null,"Upto 1",{"$f":"D53*'Risk Charges'!O24","v":0},{"$f":"E53*'Risk Charges'!P24","v":0},{"$f":"F53*'Risk Charges'!Q24","v":0},{"$f":"G53*'Risk Charges'!R24","v":0},{"$f":"H53*'Risk Charges'!S24","v":0},{"$f":"I53*'Risk Charges'!T24","v":0},{"$f":"J53*'Risk Charges'!U24","v":0},{"$f":"K53*'Risk Charges'!V24","v":0},null,null,"Upto 1",{"$f":"D53*'Risk Charges'!Z24","v":0},{"$f":"E53*'Risk Charges'!AA24","v":0},{"$f":"F53*'Risk Charges'!AB24","v":0},{"$f":"G53*'Risk Charges'!AC24","v":0},{"$f":"H53*'Risk Charges'!AD24","v":0},{"$f":"I53*'Risk Charges'!AE24","v":0},{"$f":"J53*'Risk Charges'!AF24","v":0},{"$f":"K53*'Risk Charges'!AG24","v":0},null,null,"Upto 1",{"$f":"D53*'Risk Charges'!AK24","v":0},{"$f":"E53*'Risk Charges'!AL24","v":0},{"$f":"F53*'Risk Charges'!AM24","v":0},{"$f":"G53*'Risk Charges'!AN24","v":0},{"$f":"H53*'Risk Charges'!AO24","v":0},{"$f":"I53*'Risk Charges'!AP24","v":0},{"$f":"J53*'Risk Charges'!AQ24","v":0},{"$f":"K53*'Risk Charges'!AR24","v":0}]
[null,null,"1.01 to 5",{"$f":"D54*'Risk Charges'!D25","v":0},{"$f":"E54*'Risk Charges'!E25","v":0},{"$f":"F54*'Risk Charges'!F25","v":0},{"$f":"G54*'Risk Charges'!G25","v":0},{"$f":"H54*'Risk Charges'!H25","v":0},{"$f":"I54*'Risk Charges'!I25","v":0},{"$f":"J54*'Risk Charges'!J25","v":0},{"$f":"K54*'Risk Charges'!K25","v":0},null,null,"1.01 to 5",{"$f":"D54*'Risk Charges'!O25","v":0},{"$f":"E54*'Risk Charges'!P25","v":0},{"$f":"F54*'Risk Charges'!Q25","v":0},{"$f":"G54*'Risk Charges'!R25","v":0},{"$f":"H54*'Risk Charges'!S25","v":0},{"$f":"I54*'Risk Charges'!T25","v":0},{"$f":"J54*'Risk Charges'!U25","v":0},{"$f":"K54*'Risk Charges'!V25","v":0},null,null,"1.01 to 5",{"$f":"D54*'Risk Charges'!Z25","v":0},{"$f":"E54*'Risk Charges'!AA25","v":0},{"$f":"F54*'Risk Charges'!AB25","v":0},{"$f":"G54*'Risk Charges'!AC25","v":0},{"$f":"H54*'Risk Charges'!AD25","v":0},{"$f":"I54*'Risk Charges'!AE25","v":0},{"$f":"J54*'Risk Charges'!AF25","v":0},{"$f":"K54*'Risk Charges'!AG25","v":0},null,null,"1.01 to 5",{"$f":"D54*'Risk Charges'!AK25","v":0},{"$f":"E54*'Risk Charges'!AL25","v":0},{"$f":"F54*'Risk Charges'!AM25","v":0},{"$f":"G54*'Risk Charges'!AN25","v":0},{"$f":"H54*'Risk Charges'!AO25","v":0},{"$f":"I54*'Risk Charges'!AP25","v":0},{"$f":"J54*'Risk Charges'!AQ25","v":0},{"$f":"K54*'Risk Charges'!AR25","v":0}]
[null,null,"5.01 to 10",{"$f":"D55*'Risk Charges'!D26","v":0},{"$f":"E55*'Risk Charges'!E26","v":0},{"$f":"F55*'Risk Charges'!F26","v":0},{"$f":"G55*'Risk Charges'!G26","v":0},{"$f":"H55*'Risk Charges'!H26","v":0},{"$f":"I55*'Risk Charges'!I26","v":0},{"$f":"J55*'Risk Charges'!J26","v":0},{"$f":"K55*'Risk Charges'!K26","v":0},null,null,"5.01 to 10",{"$f":"D55*'Risk Charges'!O26","v":0},{"$f":"E55*'Risk Charges'!P26","v":0},{"$f":"F55*'Risk Charges'!Q26","v":0},{"$f":"G55*'Risk Charges'!R26","v":0},{"$f":"H55*'Risk Charges'!S26","v":0},{"$f":"I55*'Risk Charges'!T26","v":0},{"$f":"J55*'Risk Charges'!U26","v":0},{"$f":"K55*'Risk Charges'!V26","v":0},null,null,"5.01 to 10",{"$f":"D55*'Risk Charges'!Z26","v":0},{"$f":"E55*'Risk Charges'!AA26","v":0},{"$f":"F55*'Risk Charges'!AB26","v":0},{"$f":"G55*'Risk Charges'!AC26","v":0},{"$f":"H55*'Risk Charges'!AD26","v":0},{"$f":"I55*'Risk Charges'!AE26","v":0},{"$f":"J55*'Risk Charges'!AF26","v":0},{"$f":"K55*'Risk Charges'!AG26","v":0},null,null,"5.01 to 10",{"$f":"D55*'Risk Charges'!AK26","v":0},{"$f":"E55*'Risk Charges'!AL26","v":0},{"$f":"F55*'Risk Charges'!AM26","v":0},{"$f":"G55*'Risk Charges'!AN26","v":0},{"$f":"H55*'Risk Charges'!AO26","v":0},{"$f":"I55*'Risk Charges'!AP26","v":0},{"$f":"J55*'Risk Charges'!AQ26","v":0},{"$f":"K55*'Risk Charges'!AR26","v":0}]
[null,null,"10.01 to 20",{"$f":"D56*'Risk Charges'!D27","v":0},{"$f":"E56*'Risk Charges'!E27","v":0},{"$f":"F56*'Risk Charges'!F27","v":0},{"$f":"G56*'Risk Charges'!G27","v":0},{"$f":"H56*'Risk Charges'!H27","v":0},{"$f":"I56*'Risk Charges'!I27","v":0},{"$f":"J56*'Risk Charges'!J27","v":0},{"$f":"K56*'Risk Charges'!K27","v":0},null,null,"10.01 to 20",{"$f":"D56*'Risk Charges'!O27","v":0},{"$f":"E56*'Risk Charges'!P27","v":0},{"$f":"F56*'Risk Charges'!Q27","v":0},{"$f":"G56*'Risk Charges'!R27","v":0},{"$f":"H56*'Risk Charges'!S27","v":0},{"$f":"I56*'Risk Charges'!T27","v":0},{"$f":"J56*'Risk Charges'!U27","v":0},{"$f":"K56*'Risk Charges'!V27","v":0},null,null,"10.01 to 20",{"$f":"D56*'Risk Charges'!Z27","v":0},{"$f":"E56*'Risk Charges'!AA27","v":0},{"$f":"F56*'Risk Charges'!AB27","v":0},{"$f":"G56*'Risk Charges'!AC27","v":0},{"$f":"H56*'Risk Charges'!AD27","v":0},{"$f":"I56*'Risk Charges'!AE27","v":0},{"$f":"J56*'Risk Charges'!AF27","v":0},{"$f":"K56*'Risk Charges'!AG27","v":0},null,null,"10.01 to 20",{"$f":"D56*'Risk Charges'!AK27","v":0},{"$f":"E56*'Risk Charges'!AL27","v":0},{"$f":"F56*'Risk Charges'!AM27","v":0},{"$f":"G56*'Risk Charges'!AN27","v":0},{"$f":"H56*'Risk Charges'!AO27","v":0},{"$f":"I56*'Risk Charges'!AP27","v":0},{"$f":"J56*'Risk Charges'!AQ27","v":0},{"$f":"K56*'Risk Charges'!AR27","v":0}]
[null,null,"More than 20",{"$f":"D57*'Risk Charges'!D28","v":0},{"$f":"E57*'Risk Charges'!E28","v":0},{"$f":"F57*'Risk Charges'!F28","v":0},{"$f":"G57*'Risk Charges'!G28","v":0},{"$f":"H57*'Risk Charges'!H28","v":0},{"$f":"I57*'Risk Charges'!I28","v":0},{"$f":"J57*'Risk Charges'!J28","v":0},{"$f":"K57*'Risk Charges'!K28","v":0},null,null,"More than 20",{"$f":"D57*'Risk Charges'!O28","v":0},{"$f":"E57*'Risk Charges'!P28","v":0},{"$f":"F57*'Risk Charges'!Q28","v":0},{"$f":"G57*'Risk Charges'!R28","v":0},{"$f":"H57*'Risk Charges'!S28","v":0},{"$f":"I57*'Risk Charges'!T28","v":0},{"$f":"J57*'Risk Charges'!U28","v":0},{"$f":"K57*'Risk Charges'!V28","v":0},null,null,"More than 20",{"$f":"D57*'Risk Charges'!Z28","v":0},{"$f":"E57*'Risk Charges'!AA28","v":0},{"$f":"F57*'Risk Charges'!AB28","v":0},{"$f":"G57*'Risk Charges'!AC28","v":0},{"$f":"H57*'Risk Charges'!AD28","v":0},{"$f":"I57*'Risk Charges'!AE28","v":0},{"$f":"J57*'Risk Charges'!AF28","v":0},{"$f":"K57*'Risk Charges'!AG28","v":0},null,null,"More than 20",{"$f":"D57*'Risk Charges'!AK28","v":0},{"$f":"E57*'Risk Charges'!AL28","v":0},{"$f":"F57*'Risk Charges'!AM28","v":0},{"$f":"G57*'Risk Charges'!AN28","v":0},{"$f":"H57*'Risk Charges'!AO28","v":0},{"$f":"I57*'Risk Charges'!AP28","v":0},{"$f":"J57*'Risk Charges'!AQ28","v":0},{"$f":"K57*'Risk Charges'!AR28","v":0}]
[null,null,"Total",{"$f":"SUM(D131:K135)","v":0},null,null,null,null,null,null,null,null,null,"Total",{"$f":"SUM(O131:V135)","v":0},null,null,null,null,null,null,null,null,null,"Total",{"$f":"SUM(Z131:AG135)","v":0},null,null,null,null,null,null,null,null,null,"Total",{"$f":"SUM(AK131:AR135)","v":0}]
[]
[null,null,"Credit Risk Recovery Category",{"$f":"Lists!$C$6","v":4},null,null,null,null,null,null,null,null,null,"Credit Risk Recovery Category",{"$f":"Lists!$C$6","v":4},null,null,null,null,null,null,null,null,null,"Credit Risk Recovery Category",{"$f":"Lists!$C$6","v":4},null,null,null,null,null,null,null,null,null,"Credit Risk Recovery Category",{"$f":"Lists!$C$6","v":4}]
[null,null,"Term (years)","AAA","AA","A","BBB","BB","B","CCC-C","D",null,null,"Term (years)","AAA","AA","A","BBB","BB","B","CCC-C","D",null,null,"Term (years)","AAA","AA","A","BBB","BB","B","CCC-C","D",null,null,"Term (years)","AAA","AA","A","BBB","BB","B","CCC-C","D"]
[null,null,"Upto 1",{"$f":"D62*'Risk Charges'!D32","v":0},{"$f":"E62*'Risk Charges'!E32","v":0},{"$f":"F62*'Risk Charges'!F32","v":0},{"$f":"G62*'Risk Charges'!G32","v":0},{"$f":"H62*'Risk Charges'!H32","v":0},{"$f":"I62*'Risk Charges'!I32","v":0},{"$f":"J62*'Risk Charges'!J32","v":0},{"$f":"K62*'Risk Charges'!K32","v":0},null,null,"Upto 1",{"$f":"D62*'Risk Charges'!O32","v":0},{"$f":"E62*'Risk Charges'!P32","v":0},{"$f":"F62*'Risk Charges'!Q32","v":0},{"$f":"G62*'Risk Charges'!R32","v":0},{"$f":"H62*'Risk Charges'!S32","v":0},{"$f":"I62*'Risk Charges'!T32","v":0},{"$f":"J62*'Risk Charges'!U32","v":0},{"$f":"K62*'Risk Charges'!V32","v":0},null,null,"Upto 1",{"$f":"D62*'Risk Charges'!Z32","v":0},{"$f":"E62*'Risk Charges'!AA32","v":0},{"$f":"F62*'Risk Charges'!AB32","v":0},{"$f":"G62*'Risk Charges'!AC32","v":0},{"$f":"H62*'Risk Charges'!AD32","v":0},{"$f":"I62*'Risk Charges'!AE32","v":0},{"$f":"J62*'Risk Charges'!AF32","v":0},{"$f":"K62*'Risk Charges'!AG32","v":0},null,null,"Upto 1",{"$f":"D62*'Risk Charges'!AK32","v":0},{"$f":"E62*'Risk Charges'!AL32","v":0},{"$f":"F62*'Risk Charges'!AM32","v":0},{"$f":"G62*'Risk Charges'!AN32","v":0},{"$f":"H62*'Risk Charges'!AO32","v":0},{"$f":"I62*'Risk Charges'!AP32","v":0},{"$f":"J62*'Risk Charges'!AQ32","v":0},{"$f":"K62*'Risk Charges'!AR32","v":0}]
[null,null,"1.01 to 5",{"$f":"D63*'Risk Charges'!D33","v":0},{"$f":"E63*'Risk Charges'!E33","v":0},{"$f":"F63*'Risk Charges'!F33","v":0},{"$f":"G63*'Risk Charges'!G33","v":0},{"$f":"H63*'Risk Charges'!H33","v":0},{"$f":"I63*'Risk Charges'!I33","v":0},{"$f":"J63*'Risk Charges'!J33","v":0},{"$f":"K63*'Risk Charges'!K33","v":0},null,null,"1.01 to 5",{"$f":"D63*'Risk Charges'!O33","v":0},{"$f":"E63*'Risk Charges'!P33","v":0},{"$f":"F63*'Risk Charges'!Q33","v":0},{"$f":"G63*'Risk Charges'!R33","v":0},{"$f":"H63*'Risk Charges'!S33","v":0},{"$f":"I63*'Risk Charges'!T33","v":0},{"$f":"J63*'Risk Charges'!U33","v":0},{"$f":"K63*'Risk Charges'!V33","v":0},null,null,"1.01 to 5",{"$f":"D63*'Risk Charges'!Z33","v":0},{"$f":"E63*'Risk Charges'!AA33","v":0},{"$f":"F63*'Risk Charges'!AB33","v":0},{"$f":"G63*'Risk Charges'!AC33","v":0},{"$f":"H63*'Risk Charges'!AD33","v":0},{"$f":"I63*'Risk Charges'!AE33","v":0},{"$f":"J63*'Risk Charges'!AF33","v":0},{"$f":"K63*'Risk Charges'!AG33","v":0},null,null,"1.01 to 5",{"$f":"D63*'Risk Charges'!AK33","v":0},{"$f":"E63*'Risk Charges'!AL33","v":0},{"$f":"F63*'Risk Charges'!AM33","v":0},{"$f":"G63*'Risk Charges'!AN33","v":0},{"$f":"H63*'Risk Charges'!AO33","v":0},{"$f":"I63*'Risk Charges'!AP33","v":0},{"$f":"J63*'Risk Charges'!AQ33","v":0},{"$f":"K63*'Risk Charges'!AR33","v":0}]
[null,null,"5.01 to 10",{"$f":"D64*'Risk Charges'!D34","v":0},{"$f":"E64*'Risk Charges'!E34","v":0},{"$f":"F64*'Risk Charges'!F34","v":0},{"$f":"G64*'Risk Charges'!G34","v":0},{"$f":"H64*'Risk Charges'!H34","v":0},{"$f":"I64*'Risk Charges'!I34","v":0},{"$f":"J64*'Risk Charges'!J34","v":0},{"$f":"K64*'Risk Charges'!K34","v":0},null,null,"5.01 to 10",{"$f":"D64*'Risk Charges'!O34","v":0},{"$f":"E64*'Risk Charges'!P34","v":0},{"$f":"F64*'Risk Charges'!Q34","v":0},{"$f":"G64*'Risk Charges'!R34","v":0},{"$f":"H64*'Risk Charges'!S34","v":0},{"$f":"I64*'Risk Charges'!T34","v":0},{"$f":"J64*'Risk Charges'!U34","v":0},{"$f":"K64*'Risk Charges'!V34","v":0},null,null,"5.01 to 10",{"$f":"D64*'Risk Charges'!Z34","v":0},{"$f":"E64*'Risk Charges'!AA34","v":0},{"$f":"F64*'Risk Charges'!AB34","v":0},{"$f":"G64*'Risk Charges'!AC34","v":0},{"$f":"H64*'Risk Charges'!AD34","v":0},{"$f":"I64*'Risk Charges'!AE34","v":0},{"$f":"J64*'Risk Charges'!AF34","v":0},{"$f":"K64*'Risk Charges'!AG34","v":0},null,null,"5.01 to 10",{"$f":"D64*'Risk Charges'!AK34","v":0},{"$f":"E64*'Risk Charges'!AL34","v":0},{"$f":"F64*'Risk Charges'!AM34","v":0},{"$f":"G64*'Risk Charges'!AN34","v":0},{"$f":"H64*'Risk Charges'!AO34","v":0},{"$f":"I64*'Risk Charges'!AP34","v":0},{"$f":"J64*'Risk Charges'!AQ34","v":0},{"$f":"K64*'Risk Charges'!AR34","v":0}]
[null,null,"10.01 to 20",{"$f":"D65*'Risk Charges'!D35","v":0},{"$f":"E65*'Risk Charges'!E35","v":0},{"$f":"F65*'Risk Charges'!F35","v":0},{"$f":"G65*'Risk Charges'!G35","v":0},{"$f":"H65*'Risk Charges'!H35","v":0},{"$f":"I65*'Risk Charges'!I35","v":0},{"$f":"J65*'Risk Charges'!J35","v":0},{"$f":"K65*'Risk Charges'!K35","v":0},null,null,"10.01 to 20",{"$f":"D65*'Risk Charges'!O35","v":0},{"$f":"E65*'Risk Charges'!P35","v":0},{"$f":"F65*'Risk Charges'!Q35","v":0},{"$f":"G65*'Risk Charges'!R35","v":0},{"$f":"H65*'Risk Charges'!S35","v":0},{"$f":"I65*'Risk Charges'!T35","v":0},{"$f":"J65*'Risk Charges'!U35","v":0},{"$f":"K65*'Risk Charges'!V35","v":0},null,null,"10.01 to 20",{"$f":"D65*'Risk Charges'!Z35","v":0},{"$f":"E65*'Risk Charges'!AA35","v":0},{"$f":"F65*'Risk Charges'!AB35","v":0},{"$f":"G65*'Risk Charges'!AC35","v":0},{"$f":"H65*'Risk Charges'!AD35","v":0},{"$f":"I65*'Risk Charges'!AE35","v":0},{"$f":"J65*'Risk Charges'!AF35","v":0},{"$f":"K65*'Risk Charges'!AG35","v":0},null,null,"10.01 to 20",{"$f":"D65*'Risk Charges'!AK35","v":0},{"$f":"E65*'Risk Charges'!AL35","v":0},{"$f":"F65*'Risk Charges'!AM35","v":0},{"$f":"G65*'Risk Charges'!AN35","v":0},{"$f":"H65*'Risk Charges'!AO35","v":0},{"$f":"I65*'Risk Charges'!AP35","v":0},{"$f":"J65*'Risk Charges'!AQ35","v":0},{"$f":"K65*'Risk Charges'!AR35","v":0}]
[null,null,"More than 20",{"$f":"D66*'Risk Charges'!D36","v":0},{"$f":"E66*'Risk Charges'!E36","v":0},{"$f":"F66*'Risk Charges'!F36","v":0},{"$f":"G66*'Risk Charges'!G36","v":0},{"$f":"H66*'Risk Charges'!H36","v":0},{"$f":"I66*'Risk Charges'!I36","v":0},{"$f":"J66*'Risk Charges'!J36","v":0},{"$f":"K66*'Risk Charges'!K36","v":0},null,null,"More than 20",{"$f":"D66*'Risk Charges'!O36","v":0},{"$f":"E66*'Risk Charges'!P36","v":0},{"$f":"F66*'Risk Charges'!Q36","v":0},{"$f":"G66*'Risk Charges'!R36","v":0},{"$f":"H66*'Risk Charges'!S36","v":0},{"$f":"I66*'Risk Charges'!T36","v":0},{"$f":"J66*'Risk Charges'!U36","v":0},{"$f":"K66*'Risk Charges'!V36","v":0},null,null,"More than 20",{"$f":"D66*'Risk Charges'!Z36","v":0},{"$f":"E66*'Risk Charges'!AA36","v":0},{"$f":"F66*'Risk Charges'!AB36","v":0},{"$f":"G66*'Risk Charges'!AC36","v":0},{"$f":"H66*'Risk Charges'!AD36","v":0},{"$f":"I66*'Risk Charges'!AE36","v":0},{"$f":"J66*'Risk Charges'!AF36","v":0},{"$f":"K66*'Risk Charges'!AG36","v":0},null,null,"More than 20",{"$f":"D66*'Risk Charges'!AK36","v":0},{"$f":"E66*'Risk Charges'!AL36","v":0},{"$f":"F66*'Risk Charges'!AM36","v":0},{"$f":"G66*'Risk Charges'!AN36","v":0},{"$f":"H66*'Risk Charges'!AO36","v":0},{"$f":"I66*'Risk Charges'!AP36","v":0},{"$f":"J66*'Risk Charges'!AQ36","v":0},{"$f":"K66*'Risk Charges'!AR36","v":0}]
[null,null,"Total",{"$f":"SUM(D140:K144)","v":0},null,null,null,null,null,null,null,null,null,"Total",{"$f":"SUM(O140:V144)","v":0},null,null,null,null,null,null,null,null,null,"Total",{"$f":"SUM(Z140:AG144)","v":0},null,null,null,null,null,null,null,null,null,"Total",{"$f":"SUM(AK140:AR144)","v":0}]
[]
[null,"Required Capital -  Equity Risk"]
[]
[null,null,null,0.99990000000000001,0.99950000000000006,0.998,0.995,null,"Total equity exposure (including Infrastructure)"]
[null,"Equity","Group 1",{"$f":"(Input!$F346+Input!$H346)*'Risk Charges'!D42+(Input!$G346+Input!$I346)*'Risk Charges'!D48","v":0},{"$f":"(Input!$F346+Input!$H346)*'Risk Charges'!E42+(Input!$G346+Input!$I346)*'Risk Charges'!E48","v":0},{"$f":"(Input!$F346+Input!$H346)*'Risk Charges'!F42+(Input!$G346+Input!$I346)*'Risk Charges'!F48","v":0},{"$f":"(Input!$F346+Input!$H346)*'Risk Charges'!G42+(Input!$G346+Input!$I346)*'Risk Charges'!G48","v":0},null,{"$f":"SUM(Input!F346:I349,Input!L346:L347)","v":0}]
[null,null,"Group 2",{"$f":"(Input!$F347+Input!$H347)*'Risk Charges'!D43+(Input!$G347+Input!$I347)*'Risk Charges'!D49","v":0},{"$f":"(Input!$F347+Input!$H347)*'Risk Charges'!E43+(Input!$G347+Input!$I347)*'Risk Charges'!E49","v":0},{"$f":"(Input!$F347+Input!$H347)*'Risk Charges'!F43+(Input!$G347+Input!$I347)*'Risk Charges'!F49","v":0},{"$f":"(Input!$F347+Input!$H347)*'Risk Charges'!G43+(Input!$G347+Input!$I347)*'Risk Charges'!G49","v":0}]
[null,null,"Group 3",{"$f":"(Input!$F348+Input!$H348)*'Risk Charges'!D44+(Input!$G348+Input!$I348)*'Risk Charges'!D50","v":0},{"$f":"(Input!$F348+Input!$H348)*'Risk Charges'!E44+(Input!$G348+Input!$I348)*'Risk Charges'!E50","v":0},{"$f":"(Input!$F348+Input!$H348)*'Risk Charges'!F44+(Input!$G348+Input!$I348)*'Risk Charges'!F50","v":0},{"$f":"(Input!$F348+Input!$H348)*'Risk Charges'!G44+(Input!$G348+Input!$I348)*'Risk Charges'!G50","v":0}]
[null,null,"Group 4",{"$f":"(Input!$F349+Input!$H349)*'Risk Charges'!D45+(Input!$G349+Input!$I349)*'Risk Charges'!D51","v":0},{"$f":"(Input!$F349+Input!$H349)*'Risk Charges'!E45+(Input!$G349+Input!$I349)*'Risk Charges'!E51","v":0},{"$f":"(Input!$F349+Input!$H349)*'Risk Charges'!F45+(Input!$G349+Input!$I349)*'Risk Charges'!F51","v":0},{"$f":"(Input!$F349+Input!$H349)*'Risk Charges'!G45+(Input!$G349+Input!$I349)*'Risk Charges'!G51","v":0}]
[null,"Infrastructure","Category 1",{"$f":"Input!$L346*'Risk Charges'!I42","v":0},{"$f":"Input!$L346*'Risk Charges'!J42","v":0},{"$f":"Input!$L346*'Risk Charges'!K42","v":0},{"$f":"Input!$L346*'Risk Charges'!L42","v":0}]
[null,null,"Category 2",{"$f":"Input!$L347*'Risk Charges'!I43","v":0},{"$f":"Input!$L347*'Risk Charges'!J43","v":0},{"$f":"Input!$L347*'Risk Charges'!K43","v":0},{"$f":"Input!$L347*'Risk Charges'!L43","v":0}]
[null,null,"Total",{"$f":"SUM(D150:D155)","v":0},{"$f":"SUM(E150:E155)","v":0},0,0]
[]
[null,"Required Capital -  Real Estate Risk"]
[]
[null,null,null,"Investment Property",null,null,null,null,"Total property exposure"]
[null,null,"Group 1",{"$f":"Input!$F357*'Risk Charges'!D59","v":0},{"$f":"Input!$F357*'Risk Charges'!E59","v":0},{"$f":"Input!$F357*'Risk Charges'!F59","v":0},{"$f":"Input!$F357*'Risk Charges'!G59","v":0},null,{"$f":"SUM(Input!F357:G360)","v":0}]
[null,null,"Group 2",{"$f":"Input!$F358*'Risk Charges'!D60","v":0},{"$f":"Input!$F358*'Risk Charges'!E60","v":0},{"$f":"Input!$F358*'Risk Charges'!F60","v":0},{"$f":"Input!$F358*'Risk Charges'!G60","v":0}]
[null,null,"Group 3",{"$f":"Input!$F359*'Risk Charges'!D61","v":0},{"$f":"Input!$F359*'Risk Charges'!E61","v":0},{"$f":"Input!$F359*'Risk Charges'!F61","v":0},{"$f":"Input!$F359*'Risk Charges'!G61","v":0}]
[null,null,"Group 4",{"$f":"Input!$F360*'Risk Charges'!D62","v":0},{"$f":"Input!$F360*'Risk Charges'!E62","v":0},{"$f":"Input!$F360*'Risk Charges'!F62","v":0},{"$f":"Input!$F360*'Risk Charges'!G62","v":0}]
[null,null,null,"Owner Occupied"]
[null,null,"Group 1",{"$f":"Input!$G357*'Risk Charges'!D64","v":0},{"$f":"Input!$G357*'Risk Charges'!E64","v":0},{"$f":"Input!$G357*'Risk Charges'!F64","v":0},{"$f":"Input!$G357*'Risk Charges'!G64","v":0}]
[null,null,"Group 2",{"$f":"Input!$G358*'Risk Charges'!D65","v":0},{"$f":"Input!$G358*'Risk Charges'!E65","v":0},{"$f":"Input!$G358*'Risk Charges'!F65","v":0},{"$f":"Input!$G358*'Risk Charges'!G65","v":0}]
[null,null,"Group 3",{"$f":"Input!$G359*'Risk Charges'!D66","v":0},{"$f":"Input!$G359*'Risk Charges'!E66","v":0},{"$f":"Input!$G359*'Risk Charges'!F66","v":0},{"$f":"Input!$G359*'Risk Charges'!G66","v":0}]
[null,null,"Group 4",{"$f":"Input!$G360*'Risk Charges'!D67","v":0},{"$f":"Input!$G360*'Risk Charges'!E67","v":0},{"$f":"Input!$G360*'Risk Charges'!F67","v":0},{"$f":"Input!$G360*'Risk Charges'!G67","v":0}]
[null,null,"Total",{"$f":"SUM(D161:D164,D166:D169)","v":0},{"$f":"SUM(E161:E164,E166:E169)","v":0},{"$f":"SUM(F161:F164,F166:F169)","v":0},{"$f":"SUM(G161:G164,G166:G169)","v":0}]
[]
[null,"Required Capital -  Reinsurance Recoverables"]
[]
[null,"Net Amount","Reinsurer Rating",0.99990000000000001,0.99950000000000006,0.998,0.995]
[null,{"$f":"Input!I399+Input!I410","v":0},"AAA",{"$f":"$B175*'Risk Charges'!D83","v":0},{"$f":"$B175*'Risk Charges'!E83","v":0},{"$f":"$B175*'Risk Charges'!F83","v":0},{"$f":"$B175*'Risk Charges'!G83","v":0}]
[null,{"$f":"Input!I400+Input!I411","v":0},"AA",{"$f":"$B176*'Risk Charges'!D84","v":0},{"$f":"$B176*'Risk Charges'!E84","v":0},{"$f":"$B176*'Risk Charges'!F84","v":0},{"$f":"$B176*'Risk Charges'!G84","v":0}]
[null,{"$f":"Input!I401+Input!I412","v":0},"A",{"$f":"$B177*'Risk Charges'!D85","v":0},{"$f":"$B177*'Risk Charges'!E85","v":0},{"$f":"$B177*'Risk Charges'!F85","v":0},{"$f":"$B177*'Risk Charges'!G85","v":0}]
[null,{"$f":"Input!I402+Input!I413","v":0},"BBB",{"$f":"$B178*'Risk Charges'!D86","v":0},{"$f":"$B178*'Risk Charges'!E86","v":0},{"$f":"$B178*'Risk Charges'!F86","v":0},{"$f":"$B178*'Risk Charges'!G86","v":0}]
[null,{"$f":"Input!I403+Input!I414","v":0},"BB",{"$f":"$B179*'Risk Charges'!D87","v":0},{"$f":"$B179*'Risk Charges'!E87","v":0},{"$f":"$B179*'Risk Charges'!F87","v":0},{"$f":"$B179*'Risk Charges'!G87","v":0}]
[null,{"$f":"Input!I404+Input!I415","v":0},"B",{"$f":"$B180*'Risk Charges'!D88","v":0},{"$f":"$B180*'Risk Charges'!E88","v":0},{"$f":"$B180*'Risk Charges'!F88","v":0},{"$f":"$B180*'Risk Charges'!G88","v":0}]
[null,{"$f":"Input!I405+Input!I416","v":0},"CCC",{"$f":"$B181*'Risk Charges'!D89","v":0},{"$f":"$B181*'Risk Charges'!E89","v":0},{"$f":"$B181*'Risk Charges'!F89","v":0},{"$f":"$B181*'Risk Charges'!G89","v":0}]
[null,{"$f":"Input!I406+Input!I417","v":0},"D",{"$f":"$B182*'Risk Charges'!D90","v":0},{"$f":"$B182*'Risk Charges'!E90","v":0},{"$f":"$B182*'Risk Charges'!F90","v":0},{"$f":"$B182*'Risk Charges'!G90","v":0}]
[null,{"$f":"SUM(B175:B182)","v":0},"Total",{"$f":"SUM(D175:D182)","v":0},{"$f":"SUM(E175:E182)","v":0},0,0]
[]
[null,"Required Capital - Mortgages"]
[]
[null,null,"Total Mortgages",{"$f":"SUM(Input!F371:K373,Input!F377:G379)","v":0}]
[]
[null,null,null,"Commercial Mortgages",null,null,null,null,null,"Residential Mortgages"]
[null,null,null,"In good standing",null,null,"Delinquent","In process of foreclosure","Construction Loans","Performing","Non Performing"]
[null,null,null,"Debt Service Coverage Ratio"]
[null,null,null,"> 1.4x","1.1x to 1.4x","< 1.1x"]
[null,"LTV (%)","< 60",{"$f":"Input!F371*'Risk Charges'!D98","v":0},{"$f":"Input!G371*'Risk Charges'!E98","v":0},{"$f":"Input!H371*'Risk Charges'!F98","v":0},{"$f":"Input!I371*'Risk Charges'!G98","v":0},{"$f":"Input!J371*'Risk Charges'!H98","v":0},{"$f":"Input!K371*'Risk Charges'!I98","v":0},{"$f":"Input!F377*'Risk Charges'!J98","v":0},{"$f":"Input!G377*'Risk Charges'!K98","v":0},0.99990000000000001]
[null,null,"60-80",{"$f":"Input!F372*'Risk Charges'!D99","v":0},{"$f":"Input!G372*'Risk Charges'!E99","v":0},{"$f":"Input!H372*'Risk Charges'!F99","v":0},{"$f":"Input!I372*'Risk Charges'!G99","v":0},{"$f":"Input!J372*'Risk Charges'!H99","v":0},{"$f":"Input!K372*'Risk Charges'!I99","v":0},{"$f":"Input!F378*'Risk Charges'!J99","v":0}]
[null,null,">80",{"$f":"Input!F373*'Risk Charges'!D100","v":0},{"$f":"Input!G373*'Risk Charges'!E100","v":0},{"$f":"Input!H373*'Risk Charges'!F100","v":0},{"$f":"Input!I373*'Risk Charges'!G100","v":0},{"$f":"Input!J373*'Risk Charges'!H100","v":0},{"$f":"Input!K373*'Risk Charges'!I100","v":0},{"$f":"Input!F379*'Risk Charges'!J100","v":0}]
[null,null,"< 60",{"$f":"Input!F371*'Risk Charges'!D101","v":0},{"$f":"Input!G371*'Risk Charges'!E101","v":0},{"$f":"Input!H371*'Risk Charges'!F101","v":0},{"$f":"Input!I371*'Risk Charges'!G101","v":0},{"$f":"Input!J371*'Risk Charges'!H101","v":0},{"$f":"Input!K371*'Risk Charges'!I101","v":0},{"$f":"Input!F377*'Risk Charges'!J101","v":0},{"$f":"Input!G377*'Risk Charges'!K101","v":0},0.99950000000000006]
[null,null,"60-80",{"$f":"Input!F372*'Risk Charges'!D102","v":0},{"$f":"Input!G372*'Risk Charges'!E102","v":0},{"$f":"Input!H372*'Risk Charges'!F102","v":0},{"$f":"Input!I372*'Risk Charges'!G102","v":0},{"$f":"Input!J372*'Risk Charges'!H102","v":0},{"$f":"Input!K372*'Risk Charges'!I102","v":0},{"$f":"Input!F378*'Risk Charges'!J102","v":0}]
[null,null,">80",{"$f":"Input!F373*'Risk Charges'!D103","v":0},{"$f":"Input!G373*'Risk Charges'!E103","v":0},{"$f":"Input!H373*'Risk Charges'!F103","v":0},{"$f":"Input!I373*'Risk Charges'!G103","v":0},{"$f":"Input!J373*'Risk Charges'!H103","v":0},{"$f":"Input!K373*'Risk Charges'!I103","v":0},{"$f":"Input!F379*'Risk Charges'!J103","v":0}]
[null,null,"< 60",{"$f":"Input!F371*'Risk Charges'!D104","v":0},{"$f":"Input!G371*'Risk Charges'!E104","v":0},{"$f":"Input!H371*'Risk Charges'!F104","v":0},{"$f":"Input!I371*'Risk Charges'!G104","v":0},{"$f":"Input!J371*'Risk Charges'!H104","v":0},{"$f":"Input!K371*'Risk Charges'!I104","v":0},{"$f":"Input!F377*'Risk Charges'!J104","v":0},{"$f":"Input!G377*'Risk Charges'!K104","v":0},0.998]
[null,null,"60-80",{"$f":"Input!F372*'Risk Charges'!D105","v":0},{"$f":"Input!G372*'Risk Charges'!E105","v":0},{"$f":"Input!H372*'Risk Charges'!F105","v":0},{"$f":"Input!I372*'Risk Charges'!G105","v":0},{"$f":"Input!J372*'Risk Charges'!H105","v":0},{"$f":"Input!K372*'Risk Charges'!I105","v":0},{"$f":"Input!F378*'Risk Charges'!J105","v":0}]
[null,null,">80",{"$f":"Input!F373*'Risk Charges'!D106","v":0},{"$f":"Input!G373*'Risk Charges'!E106","v":0},{"$f":"Input!H373*'Risk Charges'!F106","v":0},{"$f":"Input!I373*'Risk Charges'!G106","v":0},{"$f":"Input!J373*'Risk Charges'!H106","v":0},{"$f":"Input!K373*'Risk Charges'!I106","v":0},{"$f":"Input!F379*'Risk Charges'!J106","v":0}]
[null,null,"< 60",{"$f":"Input!F371*'Risk Charges'!D107","v":0},{"$f":"Input!G371*'Risk Charges'!E107","v":0},{"$f":"Input!H371*'Risk Charges'!F107","v":0},{"$f":"Input!I371*'Risk Charges'!G107","v":0},{"$f":"Input!J371*'Risk Charges'!H107","v":0},{"$f":"Input!K371*'Risk Charges'!I107","v":0},{"$f":"Input!F377*'Risk Charges'!J107","v":0},{"$f":"Input!G377*'Risk Charges'!K107","v":0},0.995]
[null,null,"60-80",{"$f":"Input!F372*'Risk Charges'!D108","v":0},{"$f":"Input!G372*'Risk Charges'!E108","v":0},{"$f":"Input!H372*'Risk Charges'!F108","v":0},{"$f":"Input!I372*'Risk Charges'!G108","v":0},{"$f":"Input!J372*'Risk Charges'!H108","v":0},{"$f":"Input!K372*'Risk Charges'!I108","v":0},{"$f":"Input!F378*'Risk Charges'!J108","v":0}]
[null,null,">80",{"$f":"Input!F373*'Risk Charges'!D109","v":0},{"$f":"Input!G373*'Risk Charges'!E109","v":0},{"$f":"Input!H373*'Risk Charges'!F109","v":0},{"$f":"Input!I373*'Risk Charges'!G109","v":0},{"$f":"Input!J373*'Risk Charges'!H109","v":0},{"$f":"Input!K373*'Risk Charges'!I109","v":0},{"$f":"Input!F379*'Risk Charges'!J109","v":0}]
[]
[null,null,null,0.99990000000000001,0.99950000000000006,0.998,0.995]
[null,null,"Total",{"$f":"SUM(D193:K195)","v":0},{"$f":"SUM(D196:K198)","v":0},{"$f":"SUM(D199:K201)","v":0},{"$f":"SUM(D202:K204)","v":0}]
[]
[null,"Required Capital - Other Assets"]
[]
[null,null,"Bank Deposit"]
[null,null,"Sovereign local currency rating",0.99990000000000001,0.99950000000000006,0.998,0.995,null,"Total other invested assets"]
[null,null,"  A- or higher",{"$f":"Input!$F385*'Risk Charges'!P42","v":0},{"$f":"Input!$F385*'Risk Charges'!Q42","v":0},{"$f":"Input!$F385*'Risk Charges'!R42","v":0},{"$f":"Input!$F385*'Risk Charges'!S42","v":0},null,{"$f":"total_mortgages+Input!F382+SUM(Input!F385:F388)+Input!F390","v":0}]
[null,null,"  BBB",{"$f":"Input!$F386*'Risk Charges'!P43","v":0},{"$f":"Input!$F386*'Risk Charges'!Q43","v":0},{"$f":"Input!$F386*'Risk Charges'!R43","v":0},{"$f":"Input!$F386*'Risk Charges'!S43","v":0}]
[null,null,"  BB  or B",{"$f":"Input!$F387*'Risk Charges'!P44","v":0},{"$f":"Input!$F387*'Risk Charges'!Q44","v":0},{"$f":"Input!$F387*'Risk Charges'!R44","v":0},{"$f":"Input!$F387*'Risk Charges'!S44","v":0}]
[null,null,"CCC+  or lower",{"$f":"Input!$F388*'Risk Charges'!P45","v":0},{"$f":"Input!$F388*'Risk Charges'!Q45","v":0},{"$f":"Input!$F388*'Risk Charges'!R45","v":0},{"$f":"Input!$F388*'Risk Charges'!S45","v":0}]
[null,null,"Total",{"$f":"SUM(D213:D216)","v":0},{"$f":"SUM(E213:E216)","v":0},0,0]
[]
[null,null,"Other Assets",{"$f":"Input!$F424*'Risk Charges'!P47","v":0},{"$f":"Input!$F424*'Risk Charges'!Q47","v":0},{"$f":"Input!$F424*'Risk Charges'!R47","v":0},{"$f":"Input!$F424*'Risk Charges'!S47","v":0}]
[null,null,"Non-chargeable assets",{"$f":"(Input!$F427+Input!$F428)*'Risk Charges'!P48","v":0},{"$f":"(Input!$F427+Input!$F428)*'Risk Charges'!Q48","v":0},{"$f":"(Input!$F427+Input!$F428)*'Risk Charges'!R48","v":0},{"$f":"(Input!$F427+Input!$F428)*'Risk Charges'!S48","v":0}]
[null,null,"OTC Derivatives",{"$f":"Input!$F382*'Risk Charges'!P49","v":0},{"$f":"Input!$F382*'Risk Charges'!Q49","v":0},{"$f":"Input!$F382*'Risk Charges'!R49","v":0},{"$f":"Input!$F382*'Risk Charges'!S49","v":0}]
[null,null,"Other Chargeable Assets",{"$f":"SUM(Input!$F$420:$F$423)*'Risk Charges'!P50","v":0},{"$f":"SUM(Input!$F$420:$F$423)*'Risk Charges'!Q50","v":0},{"$f":"SUM(Input!$F$420:$F$423)*'Risk Charges'!R50","v":0},{"$f":"SUM(Input!$F$420:$F$423)*'Risk Charges'!S50","v":0}]
[null,null,"Deposits with cedents",{"$f":"Input!$F$390*'Risk Charges'!P51","v":0},{"$f":"Input!$F$390*'Risk Charges'!Q51","v":0},{"$f":"Input!$F$390*'Risk Charges'!R51","v":0},{"$f":"Input!$F$390*'Risk Charges'!S51","v":0}]

{"sheet":"Nat Cat Risk","index":7,"n_rows":36,"n_cols":7,"rows_kept":36,"cut":false,"hidden":false,"merged":[[9,3,9,6],[26,3,26,6]]}
[]
[]
[null,"Natural Catastrophe Risk Required Capital"]
[]
[null,null,"Catastrophe loss ratio (Industry average)",0.5]
[null,null,"Expense ratio (Industry average)",0.3]
[]
[null,null,"Cat premium income",{"$f":"(1-D6)*inp_nat_cat_aal/D5","v":0}]
[]
[null,null,null,"Underwriting Loss "]
[null,null,null,"1-in-500 yr","1-in-333 yr","1-in-250 yr","1-in-200 yr"]
[null,null,null,{"$f":"MAX(0,Input!I712-$D$8)","v":0},{"$f":"MAX(0,Input!H712-$D$8)","v":0},{"$f":"MAX(0,Input!G712-$D$8)","v":0},{"$f":"MAX(0,Input!F712-$D$8)","v":0}]
[]
[null,null,null,0.99990000000000001,0.99950000000000006,0.998,0.995]
[null,null,"Scaling",{"$f":"'Risk Charges'!D3","v":1.65},{"$f":"'Risk Charges'!E3","v":1.4},{"$f":"'Risk Charges'!F3","v":1.2},{"$f":"'Risk Charges'!G3","v":1}]
[null,null,"Adjusted scaling for interpolating 1-in-250 AND 1-in-333 year",null,{"$f":"(E15-$G15)/($D15-$G15)","v":0.61538461538461531},{"$f":"(F15-$G15)/($D15-$G15)","v":0.30769230769230765}]
[null,null,"Adjusted scaling for interpolating 1-in-250 OR 1-in-333 year",null,{"$f":"(E15-F15)/(D15-F15)","v":0.44444444444444436},{"$f":"(F15-G15)/(E15-G15)","v":0.5}]
[null,null,"Nat cat charge (step 1 or 2)",{"$f":"D12","v":0},{"$f":"IF(OR(Input!T707,Input!W707), E12, IF(Input!V707, IF(Input!U707,E16*($D$12-$G$12)+$G$12,E17*(D12-F12)+F12), E12))","v":0},{"$f":"IF(OR(Input!T707,Input!W707), F12, IF(Input!U707,IF(Input!V707,F16*( $D$12-$G$12)+$G$12,F17*(E12-G12)+G12), F12))","v":0},{"$f":"G12","v":0}]
[null,null,"Nat cat charge (step 3 or 4)",{"$f":"$G19*D15","v":0},{"$f":"$G19*E15","v":0},{"$f":"$G19*F15","v":0},{"$f":"inp_nat_cat_cl_99_5_charge","v":0}]
[]
[null,null,"Nat cat charge",{"$f":"IF(inp_nat_cat_is_aep_curve_available=\"No\",D19,D18)","v":0},{"$f":"IF(inp_nat_cat_is_aep_curve_available=\"No\",E19,E18)","v":0},{"$f":"IF(inp_nat_cat_is_aep_curve_available=\"No\",F19,F18)","v":0},{"$f":"IF(inp_nat_cat_is_aep_curve_available=\"No\",G19,G18)","v":0}]
[null,null,"Adjustment",{"$f":"SUMIF(Adjustment!$L$5:$L$24,Lists!$L$4,Adjustment!M$5:M$24)","v":0},{"$f":"SUMIF(Adjustment!$L$5:$L$24,Lists!$L$4,Adjustment!N$5:N$24)","v":0},{"$f":"SUMIF(Adjustment!$L$5:$L$24,Lists!$L$4,Adjustment!O$5:O$24)","v":0},{"$f":"SUMIF(Adjustment!$L$5:$L$24,Lists!$L$4,Adjustment!P$5:P$24)","v":0}]
[null,null,"Adjusted total",{"$f":"D21+D22","v":0},{"$f":"E21+E22","v":0},0,0]
[]
[null,"Contingent Reinsurance Counterparty Risk Required Capital"]
[]
[null,null,null,"Recoveries"]
[null,null,null,"1-in-500 yr","1-in-333 yr","1-in-250 yr","1-in-200 yr"]
[null,null,null,{"$f":"IF(inp_nat_cat_is_aep_curve_available=\"No\",$G29*D15, Input!I708)","v":0},{"$f":"IF(inp_nat_cat_is_aep_curve_available=\"No\",$G29*E15, Input!H708)","v":0},{"$f":"IF(inp_nat_cat_is_aep_curve_available=\"No\",$G29*F15, Input!G708)","v":0},{"$f":"IF(inp_nat_cat_is_aep_curve_available=\"No\",Input!J716, Input!F708)","v":0}]
[]
[null,null,null,0.99990000000000001,0.99950000000000006,0.998,0.995]
[null,null,"Reinsurance / retrocession recoveries (uncollateralised)",{"$f":"D29","v":0},{"$f":"IF(inp_nat_cat_is_aep_curve_available=\"No\", E29,IF(OR(Input!T708,Input!W708), E29, IF(Input!V708, IF(Input!U708,E16*($D$29-$G$29)+$G$29,E17*(D29-F29)+F29), E29)))","v":0},{"$f":"IF(inp_nat_cat_is_aep_curve_available=\"No\", F29,IF(OR(Input!T708,Input!W708), F29, IF(Input!U708,IF(Input!V708,F16*( $D$29-$G$29)+$G$29,F17*(E29-G29)+G29), F29)))","v":0},{"$f":"G29","v":0}]
[]
[null,null,"Credit risk on Nat Cat recoveries",{"$f":"D32*'Risk Charges'!P59","v":0},{"$f":"E32*'Risk Charges'!Q59","v":0},{"$f":"F32*'Risk Charges'!R59","v":0},{"$f":"G32*'Risk Charges'!S59","v":0}]
[null,null,"Adjustment",{"$f":"SUMIF(Adjustment!$L$5:$L$24,Lists!$L$5,Adjustment!M$5:M$24)","v":0},{"$f":"SUMIF(Adjustment!$L$5:$L$24,Lists!$L$5,Adjustment!N$5:N$24)","v":0},{"$f":"SUMIF(Adjustment!$L$5:$L$24,Lists!$L$5,Adjustment!O$5:O$24)","v":0},{"$f":"SUMIF(Adjustment!$L$5:$L$24,Lists!$L$5,Adjustment!P$5:P$24)","v":0}]
[null,null,"Adjusted total",{"$f":"D34+D35","v":0},{"$f":"E34+E35","v":0},0,0]

{"sheet":"Non-Life Risk","index":8,"n_rows":299,"n_cols":30,"rows_kept":299,"cut":false,"hidden":false,"merged":[[3,22,3,25],[44,26,44,29],[44,22,44,25],[192,22,192,25],[192,26,192,29],[9,22,9,25]]}
[]
[null,"  Summary",null,null,null,null,null,null,null,null,null,null,null,null,null,null,null,null,null,"  Mortgage Insurance Risk Required Capital"]
[]
[null,null,null,null,0.99990000000000001,0.99950000000000006,0.998,0.995,null,null,null,null,null,null,null,null,null,null,null,null,null,null,"Premium"]
[null,null,null,"Non-life technical risk",{"$f":"E31+E179","v":0},{"$f":"F31+F179","v":0},{"$f":"G31+G179","v":0},{"$f":"H31+H179","v":0},null,null,null,null,null,null,null,null,null,null,null,null,null,"Base exposure",0.99990000000000001,0.99950000000000006,0.998,0.995]
[null,null,null,"Adjustment",{"$f":"SUMIF(Adjustment!$L$5:$L$24,Lists!$L$6,Adjustment!M$5:M$24)","v":0},{"$f":"SUMIF(Adjustment!$L$5:$L$24,Lists!$L$6,Adjustment!N$5:N$24)","v":0},{"$f":"SUMIF(Adjustment!$L$5:$L$24,Lists!$L$6,Adjustment!O$5:O$24)","v":0},{"$f":"SUMIF(Adjustment!$L$5:$L$24,Lists!$L$6,Adjustment!P$5:P$24)","v":0},null,null,null,null,null,null,null,null,null,null,null,null,"Premium Risk (proportional)",{"$f":"Input!F696+Input!F697*inp_mi_upr_earn_pattern","v":0},{"$f":"$V6*'Risk Charges'!D150","v":0},{"$f":"$V6*'Risk Charges'!E150","v":0},{"$f":"$V6*'Risk Charges'!F150","v":0},{"$f":"$V6*'Risk Charges'!G150","v":0}]
[null,null,null,null,null,null,null,null,null,null,null,null,null,0.99990000000000001,0.99950000000000006,0.998,0.995,null,null,null,"Premium Risk (non-proportional)",{"$f":"Input!G696+Input!G697*inp_mi_upr_earn_pattern","v":0},{"$f":"$V7*'Risk Charges'!D151","v":0},{"$f":"$V7*'Risk Charges'!E151","v":0},{"$f":"$V7*'Risk Charges'!F151","v":0},{"$f":"$V7*'Risk Charges'!G151","v":0}]
[null,null,null,"Adjustment: Liability(premium)",{"$f":"SUMIF(Adjustment!$L$5:$L$24,Lists!$L21,Adjustment!M$5:M$24)","v":0},{"$f":"SUMIF(Adjustment!$L$5:$L$24,Lists!$L21,Adjustment!N$5:N$24)","v":0},{"$f":"SUMIF(Adjustment!$L$5:$L$24,Lists!$L21,Adjustment!O$5:O$24)","v":0},{"$f":"SUMIF(Adjustment!$L$5:$L$24,Lists!$L21,Adjustment!P$5:P$24)","v":0},null,null,null,null,"Adjustment: Liability(reserve)",{"$f":"SUMIF(Adjustment!$L$5:$L$24,Lists!$L29,Adjustment!M$5:M$24)","v":0},{"$f":"SUMIF(Adjustment!$L$5:$L$24,Lists!$L29,Adjustment!N$5:N$24)","v":0},{"$f":"SUMIF(Adjustment!$L$5:$L$24,Lists!$L29,Adjustment!O$5:O$24)","v":0},{"$f":"SUMIF(Adjustment!$L$5:$L$24,Lists!$L29,Adjustment!P$5:P$24)","v":0},null,null,null,"Premium Risk - Total",null,{"$f":"W6+W7","v":0},{"$f":"X6+X7","v":0},0,0]
[null,null,null,"Adjustment: Property(premium)",{"$f":"SUMIF(Adjustment!$L$5:$L$24,Lists!$L22,Adjustment!M$5:M$24)","v":0},{"$f":"SUMIF(Adjustment!$L$5:$L$24,Lists!$L22,Adjustment!N$5:N$24)","v":0},{"$f":"SUMIF(Adjustment!$L$5:$L$24,Lists!$L22,Adjustment!O$5:O$24)","v":0},{"$f":"SUMIF(Adjustment!$L$5:$L$24,Lists!$L22,Adjustment!P$5:P$24)","v":0},null,null,null,null,"Adjustment: Property(reserve)",{"$f":"SUMIF(Adjustment!$L$5:$L$24,Lists!$L30,Adjustment!M$5:M$24)","v":0},{"$f":"SUMIF(Adjustment!$L$5:$L$24,Lists!$L30,Adjustment!N$5:N$24)","v":0},{"$f":"SUMIF(Adjustment!$L$5:$L$24,Lists!$L30,Adjustment!O$5:O$24)","v":0},{"$f":"SUMIF(Adjustment!$L$5:$L$24,Lists!$L30,Adjustment!P$5:P$24)","v":0}]
[null,null,null,"Adjustment: Motor(premium)",{"$f":"SUMIF(Adjustment!$L$5:$L$24,Lists!$L23,Adjustment!M$5:M$24)","v":0},{"$f":"SUMIF(Adjustment!$L$5:$L$24,Lists!$L23,Adjustment!N$5:N$24)","v":0},{"$f":"SUMIF(Adjustment!$L$5:$L$24,Lists!$L23,Adjustment!O$5:O$24)","v":0},{"$f":"SUMIF(Adjustment!$L$5:$L$24,Lists!$L23,Adjustment!P$5:P$24)","v":0},null,null,null,null,"Adjustment: Motor(reserve)",{"$f":"SUMIF(Adjustment!$L$5:$L$24,Lists!$L31,Adjustment!M$5:M$24)","v":0},{"$f":"SUMIF(Adjustment!$L$5:$L$24,Lists!$L31,Adjustment!N$5:N$24)","v":0},{"$f":"SUMIF(Adjustment!$L$5:$L$24,Lists!$L31,Adjustment!O$5:O$24)","v":0},{"$f":"SUMIF(Adjustment!$L$5:$L$24,Lists!$L31,Adjustment!P$5:P$24)","v":0},null,null,null,null,null,"Reserve"]
[null,null,null,"Adjustment: Financial(premium)",{"$f":"SUMIF(Adjustment!$L$5:$L$24,Lists!$L24,Adjustment!M$5:M$24)","v":0},{"$f":"SUMIF(Adjustment!$L$5:$L$24,Lists!$L24,Adjustment!N$5:N$24)","v":0},{"$f":"SUMIF(Adjustment!$L$5:$L$24,Lists!$L24,Adjustment!O$5:O$24)","v":0},{"$f":"SUMIF(Adjustment!$L$5:$L$24,Lists!$L24,Adjustment!P$5:P$24)","v":0},null,null,null,null,"Adjustment: Financial(reserve)",{"$f":"SUMIF(Adjustment!$L$5:$L$24,Lists!$L32,Adjustment!M$5:M$24)","v":0},{"$f":"SUMIF(Adjustment!$L$5:$L$24,Lists!$L32,Adjustment!N$5:N$24)","v":0},{"$f":"SUMIF(Adjustment!$L$5:$L$24,Lists!$L32,Adjustment!O$5:O$24)","v":0},{"$f":"SUMIF(Adjustment!$L$5:$L$24,Lists!$L32,Adjustment!P$5:P$24)","v":0},null,null,null,"Reserve Risk (proportional)",null,{"$f":"Input!$F698*'Risk Charges'!D154","v":0},{"$f":"Input!$F698*'Risk Charges'!E154","v":0},{"$f":"Input!$F698*'Risk Charges'!F154","v":0},{"$f":"Input!$F698*'Risk Charges'!G154","v":0}]
[null,null,null,"Adjustment: Health(premium)",{"$f":"SUMIF(Adjustment!$L$5:$L$24,Lists!$L25,Adjustment!M$5:M$24)","v":0},{"$f":"SUMIF(Adjustment!$L$5:$L$24,Lists!$L25,Adjustment!N$5:N$24)","v":0},{"$f":"SUMIF(Adjustment!$L$5:$L$24,Lists!$L25,Adjustment!O$5:O$24)","v":0},{"$f":"SUMIF(Adjustment!$L$5:$L$24,Lists!$L25,Adjustment!P$5:P$24)","v":0},null,null,null,null,"Adjustment: Health(reserve)",{"$f":"SUMIF(Adjustment!$L$5:$L$24,Lists!$L33,Adjustment!M$5:M$24)","v":0},{"$f":"SUMIF(Adjustment!$L$5:$L$24,Lists!$L33,Adjustment!N$5:N$24)","v":0},{"$f":"SUMIF(Adjustment!$L$5:$L$24,Lists!$L33,Adjustment!O$5:O$24)","v":0},{"$f":"SUMIF(Adjustment!$L$5:$L$24,Lists!$L33,Adjustment!P$5:P$24)","v":0},null,null,null,"Reserve Risk (non-proportional)",null,{"$f":"Input!$G698*'Risk Charges'!D155","v":0},{"$f":"Input!$G698*'Risk Charges'!E155","v":0},{"$f":"Input!$G698*'Risk Charges'!F155","v":0},{"$f":"Input!$G698*'Risk Charges'!G155","v":0}]
[null,null,null,"Adjustment: MAT(premium)",{"$f":"SUMIF(Adjustment!$L$5:$L$24,Lists!$L26,Adjustment!M$5:M$24)","v":0},{"$f":"SUMIF(Adjustment!$L$5:$L$24,Lists!$L26,Adjustment!N$5:N$24)","v":0},{"$f":"SUMIF(Adjustment!$L$5:$L$24,Lists!$L26,Adjustment!O$5:O$24)","v":0},{"$f":"SUMIF(Adjustment!$L$5:$L$24,Lists!$L26,Adjustment!P$5:P$24)","v":0},null,null,null,null,"Adjustment: MAT(reserve)",{"$f":"SUMIF(Adjustment!$L$5:$L$24,Lists!$L34,Adjustment!M$5:M$24)","v":0},{"$f":"SUMIF(Adjustment!$L$5:$L$24,Lists!$L34,Adjustment!N$5:N$24)","v":0},{"$f":"SUMIF(Adjustment!$L$5:$L$24,Lists!$L34,Adjustment!O$5:O$24)","v":0},{"$f":"SUMIF(Adjustment!$L$5:$L$24,Lists!$L34,Adjustment!P$5:P$24)","v":0},null,null,null,"Reserve Risk - Total",null,{"$f":"W11+W12","v":0},{"$f":"X11+X12","v":0},{"$f":"Y11+Y12","v":0},{"$f":"Z11+Z12","v":0}]
[null,null,null,"Adjustment: Other(premium)",{"$f":"SUMIF(Adjustment!$L$5:$L$24,Lists!$L27,Adjustment!M$5:M$24)","v":0},{"$f":"SUMIF(Adjustment!$L$5:$L$24,Lists!$L27,Adjustment!N$5:N$24)","v":0},{"$f":"SUMIF(Adjustment!$L$5:$L$24,Lists!$L27,Adjustment!O$5:O$24)","v":0},{"$f":"SUMIF(Adjustment!$L$5:$L$24,Lists!$L27,Adjustment!P$5:P$24)","v":0},null,null,null,null,"Adjustment: Other(reserve)",{"$f":"SUMIF(Adjustment!$L$5:$L$24,Lists!$L35,Adjustment!M$5:M$24)","v":0},{"$f":"SUMIF(Adjustment!$L$5:$L$24,Lists!$L35,Adjustment!N$5:N$24)","v":0},{"$f":"SUMIF(Adjustment!$L$5:$L$24,Lists!$L35,Adjustment!O$5:O$24)","v":0},{"$f":"SUMIF(Adjustment!$L$5:$L$24,Lists!$L35,Adjustment!P$5:P$24)","v":0},null,null,null,"Adjusted Reserve Risk - Total",null,{"$f":"W13*$Z25*$Z30","v":0},{"$f":"X13*$Z25*$Z30","v":0},{"$f":"Y13*$Z25*$Z30","v":0},{"$f":"Z13*$Z25*$Z30","v":0}]
[]
[null,null,null,"Total Adjustment to Non-life technical risk",{"$f":"SUM(E6,E8:E14,N8:N14,Diversification!D96:D97)","v":0},{"$f":"SUM(F6,F8:F14,O8:O14,Diversification!E96:E97)","v":0},{"$f":"SUM(G6,G8:G14,P8:P14,Diversification!F96:F97)","v":0},{"$f":"SUM(H6,H8:H14,Q8:Q14,Diversification!G96:G97)","v":0}]
[null,null,null,"Adjusted total Non-life technical risk",{"$f":"E5+E16","v":0},{"$f":"F5+F16","v":0},{"$f":"G5+G16","v":0},{"$f":"H5+H16","v":0}]
[]
[]
[null,"  Required Capital - Non-Life Premium Risk",null,null,null,null,null,null,null,null,null,null,null,null,null,null,null,null,null,null,null,null,null,null,"Reserves surplus adjustment"]
[]
[null,null,null,null,0.99990000000000001,0.99950000000000006,0.998,0.995,null,null,null,null,null,0.99990000000000001,0.99950000000000006,0.998,0.995,null,null,null,null,null,null,null,"Net loss reserve surpluses/(deficits) (discounted)",{"$f":"Input!F43/(1-inp_appl_tax_rate)-TAC!F12","v":0}]
[null,null,null,"Liability",{"$f":"E35+N35","v":0},{"$f":"F35+O35","v":0},0,0,null,null,null,null,"Adjusted Liability",{"$f":"E23+E8","v":0},{"$f":"F23+F8","v":0},0,0,null,null,null,null,null,null,null,"Reported net claim reserves",{"$f":"Input!F690","v":0}]
[null,null,null,"Property",0,0,0,0,null,null,null,null,"Adjusted Property",0,0,0,0,null,null,null,null,null,null,null,"Discounted reported net claim reserves",{"$f":"Z23*Z30","v":0}]
[null,null,null,"Motor",0,0,0,0,null,null,null,null,"Adjusted Motor",0,0,0,0,null,null,null,null,null,null,null,"Reserves surplus adjustment",{"$f":"IFERROR(1-Z22/Z24,1)","v":1}]
[null,null,null,"Financial",{"$f":"E38+N38+W8","v":0},{"$f":"F38+O38+X8","v":0},{"$f":"G38+P38+Y8","v":0},{"$f":"H38+Q38+Z8","v":0},null,null,null,null,"Adjusted Financial",0,0,0,0]
[null,null,null,"Health",{"$f":"E39+N39","v":0},{"$f":"F39+O39","v":0},0,0,null,null,null,null,"Adjusted Health",{"$f":"E27+E12","v":0},0,0,0,null,null,null,null,null,null,null,"Reserves discount adjustment"]
[null,null,null,"MAT",0,0,0,0,null,null,null,null,"Adjusted MAT",{"$f":"E28+E13","v":0},0,0,0,null,null,null,null,null,null,null,"Discounted total net reserves",{"$f":"Z29-(TAC!F11-Input!F40)","v":0}]
[null,null,null,"Other",0,0,0,0,null,null,null,null,"Adjusted Other",0,0,0,0,null,null,null,null,null,null,null,"Reported total net reserves",{"$f":"Input!F37+Input!F38","v":0}]
[null,null,null,null,null,null,null,null,null,null,null,null,null,null,null,null,null,null,null,null,null,null,null,null,"Discounting Adjustment",{"$f":"IFERROR(Z28/Z29,1)","v":1}]
[null,null,null,"Total Capital Charge - Premium",{"$f":"SUM(E23:E29)","v":0},{"$f":"SUM(F23:F29)","v":0},{"$f":"SUM(G23:G29)","v":0},{"$f":"SUM(H23:H29)","v":0},null,null,null,null,"Adjusted total - Premium",{"$f":"SUM(N23:N29)","v":0},{"$f":"SUM(O23:O29)","v":0},{"$f":"SUM(P23:P29)","v":0},{"$f":"SUM(Q23:Q29)","v":0}]
[]
[null,"  Required Capital - Non-Life Premium Risk (proportional)",null,null,null,null,null,null,null,null,"  Required Capital - Non-Life Premium Risk (non-proportional)"]
[null,null,null,null,0.99990000000000001,0.99950000000000006,0.998,0.995,null,null,null,null,null,0.99990000000000001,0.99950000000000006,0.998,0.995]
[null,null,null,"Liability",{"$f":"SUMIFS(E$47:E$163,$U$47:$U$163,$D35)","v":0},0,0,0,null,null,null,null,"Liability",{"$f":"SUMIFS(N$47:N$163,$U$47:$U$163,$D35)","v":0},0,0,0]
[null,null,null,"Property",0,0,0,0,null,null,null,null,"Property",0,0,0,0]
[null,null,null,"Motor",0,0,0,0,null,null,null,null,"Motor",0,0,0,0]
[null,null,null,"Financial",0,0,0,0,null,null,null,null,"Financial",0,0,0,0]
[null,null,null,"Health",0,0,0,0,null,null,null,null,"Health",0,0,0,0]
[null,null,null,"MAT",0,0,0,0,null,null,null,null,"MAT",0,0,0,0]
[null,null,null,"Other",0,0,0,0,null,null,null,null,"Other",0,0,0,0]
[null,null,null,null,null,null,null,null,null,null,null,null,null,null,null,null,null,null,"Business Line to Class Map - Premium Risks"]
[null,null,null,"Total Capital Charge - Premium (proportional)",{"$f":"SUM(E47:E163)","v":0},{"$f":"SUM(F47:F163)","v":0},{"$f":"SUM(G47:G163)","v":0},{"$f":"SUM(H47:H163)","v":0},null,null,null,null,"Total Capital Charge - Premium (non-proportional)",{"$f":"SUM(N47:N163)","v":0},{"$f":"SUM(O47:O163)","v":0},{"$f":"SUM(P47:P163)","v":0},{"$f":"SUM(Q47:Q163)","v":0}]
[null,null,null,null,null,null,null,null,null,null,null,null,null,null,null,null,null,null,null,"Business Line","Category","Risk category",0.99990000000000001,0.99950000000000006,0.998,0.995,0.99990000000000001,0.99950000000000006,0.998,0.995]
[null,"EMEA Risks",null,null,null,null,null,null,null,null,"EMEA Risks",null,null,null,null,null,null,null,"EMEA Risks",null,null,null,"Proportional",null,null,null,"Non-proportional"]
[]
[null,null,null,{"$f":"T47","v":"General liability"},{"$f":"W47*Input!$F441","v":0},{"$f":"X47*Input!$F441","v":0},{"$f":"Y47*Input!$F441","v":0},{"$f":"Z47*Input!$F441","v":0},null,null,null,null,{"$f":"T47","v":"General liability"},{"$f":"AA47*Input!$G441","v":0},{"$f":"AB47*Input!$G441","v":0},{"$f":"AC47*Input!$G441","v":0},{"$f":"AD47*Input!$G441","v":0},null,null,"General liability","Liability",9,{"$f":"_xlfn.XLOOKUP($V47,'Risk Charges'!$C$117:$C$128,'Risk Charges'!D$117:D$128,,0)","v":0.57799999999999996},{"$f":"_xlfn.XLOOKUP($V47,'Risk Charges'!$C$117:$C$128,'Risk Charges'!E$117:E$128,,0)","v":0.49},{"$f":"_xlfn.XLOOKUP($V47,'Risk Charges'!$C$117:$C$128,'Risk Charges'!F$117:F$128,,0)","v":0.42},{"$f":"_xlfn.XLOOKUP($V47,'Risk Charges'!$C$117:$C$128,'Risk Charges'!G$117:G$128,,0)","v":0.35},{"$f":"_xlfn.XLOOKUP($V47,'Risk Charges'!$C$132:$C$143,'Risk Charges'!D$132:D$143,,0)","v":0.72299999999999998},{"$f":"_xlfn.XLOOKUP($V47,'Risk Charges'!$C$132:$C$143,'Risk Charges'!E$132:E$143,,0)","v":0.61299999999999999},{"$f":"_xlfn.XLOOKUP($V47,'Risk Charges'!$C$132:$C$143,'Risk Charges'!F$132:F$143,,0)","v":0.52500000000000002},{"$f":"_xlfn.XLOOKUP($V47,'Risk Charges'!$C$132:$C$143,'Risk Charges'!G$132:G$143,,0)","v":0.438}]
[null,null,null,"Workers compensation",{"$f":"W48*Input!$F442","v":0},{"$f":"X48*Input!$F442","v":0},{"$f":"Y48*Input!$F442","v":0},{"$f":"Z48*Input!$F442","v":0},null,null,null,null,"Workers compensation",{"$f":"AA48*Input!$G442","v":0},{"$f":"AB48*Input!$G442","v":0},{"$f":"AC48*Input!$G442","v":0},{"$f":"AD48*Input!$G442","v":0},null,null,"Workers compensation","Liability",6,{"$f":"_xlfn.XLOOKUP($V48,'Risk Charges'!$C$117:$C$128,'Risk Charges'!D$117:D$128,,0)","v":0.33},{"$f":"_xlfn.XLOOKUP($V48,'Risk Charges'!$C$117:$C$128,'Risk Charges'!E$117:E$128,,0)","v":0.28000000000000003},{"$f":"_xlfn.XLOOKUP($V48,'Risk Charges'!$C$117:$C$128,'Risk Charges'!F$117:F$128,,0)","v":0.24},{"$f":"_xlfn.XLOOKUP($V48,'Risk Charges'!$C$117:$C$128,'Risk Charges'!G$117:G$128,,0)","v":0.2},{"$f":"_xlfn.XLOOKUP($V48,'Risk Charges'!$C$132:$C$143,'Risk Charges'!D$132:D$143,,0)","v":0.41299999999999998},{"$f":"_xlfn.XLOOKUP($V48,'Risk Charges'!$C$132:$C$143,'Risk Charges'!E$132:E$143,,0)","v":0.35},{"$f":"_xlfn.XLOOKUP($V48,'Risk Charges'!$C$132:$C$143,'Risk Charges'!F$132:F$143,,0)","v":0.3},{"$f":"_xlfn.XLOOKUP($V48,'Risk Charges'!$C$132:$C$143,'Risk Charges'!G$132:G$143,,0)","v":0.25}]
[null,null,null,"Fire & other damage to property",{"$f":"W49*Input!$F443","v":0},{"$f":"X49*Input!$F443","v":0},{"$f":"Y49*Input!$F443","v":0},{"$f":"Z49*Input!$F443","v":0},null,null,null,null,"Fire & other damage to property",{"$f":"AA49*Input!$G443","v":0},{"$f":"AB49*Input!$G443","v":0},{"$f":"AC49*Input!$G443","v":0},{"$f":"AD49*Input!$G443","v":0},null,null,"Fire & other damage to property","Property",6,{"$f":"_xlfn.XLOOKUP($V49,'Risk Charges'!$C$117:$C$128,'Risk Charges'!D$117:D$128,,0)","v":0.33},{"$f":"_xlfn.XLOOKUP($V49,'Risk Charges'!$C$117:$C$128,'Risk Charges'!E$117:E$128,,0)","v":0.28000000000000003},{"$f":"_xlfn.XLOOKUP($V49,'Risk Charges'!$C$117:$C$128,'Risk Charges'!F$117:F$128,,0)","v":0.24},{"$f":"_xlfn.XLOOKUP($V49,'Risk Charges'!$C$117:$C$128,'Risk Charges'!G$117:G$128,,0)","v":0.2},{"$f":"_xlfn.XLOOKUP($V49,'Risk Charges'!$C$132:$C$143,'Risk Charges'!D$132:D$143,,0)","v":0.41299999999999998},{"$f":"_xlfn.XLOOKUP($V49,'Risk Charges'!$C$132:$C$143,'Risk Charges'!E$132:E$143,,0)","v":0.35},{"$f":"_xlfn.XLOOKUP($V49,'Risk Charges'!$C$132:$C$143,'Risk Charges'!F$132:F$143,,0)","v":0.3},{"$f":"_xlfn.XLOOKUP($V49,'Risk Charges'!$C$132:$C$143,'Risk Charges'!G$132:G$143,,0)","v":0.25}]
[null,null,null,"Motor vehicle liability",{"$f":"W50*Input!$F444","v":0},{"$f":"X50*Input!$F444","v":0},{"$f":"Y50*Input!$F444","v":0},{"$f":"Z50*Input!$F444","v":0},null,null,null,null,"Motor vehicle liability",{"$f":"AA50*Input!$G444","v":0},{"$f":"AB50*Input!$G444","v":0},{"$f":"AC50*Input!$G444","v":0},{"$f":"AD50*Input!$G444","v":0},null,null,"Motor vehicle liability","Motor",6,{"$f":"_xlfn.XLOOKUP($V50,'Risk Charges'!$C$117:$C$128,'Risk Charges'!D$117:D$128,,0)","v":0.33},{"$f":"_xlfn.XLOOKUP($V50,'Risk Charges'!$C$117:$C$128,'Risk Charges'!E$117:E$128,,0)","v":0.28000000000000003},{"$f":"_xlfn.XLOOKUP($V50,'Risk Charges'!$C$117:$C$128,'Risk Charges'!F$117:F$128,,0)","v":0.24},{"$f":"_xlfn.XLOOKUP($V50,'Risk Charges'!$C$117:$C$128,'Risk Charges'!G$117:G$128,,0)","v":0.2},{"$f":"_xlfn.XLOOKUP($V50,'Risk Charges'!$C$132:$C$143,'Risk Charges'!D$132:D$143,,0)","v":0.41299999999999998},{"$f":"_xlfn.XLOOKUP($V50,'Risk Charges'!$C$132:$C$143,'Risk Charges'!E$132:E$143,,0)","v":0.35},{"$f":"_xlfn.XLOOKUP($V50,'Risk Charges'!$C$132:$C$143,'Risk Charges'!F$132:F$143,,0)","v":0.3},{"$f":"_xlfn.XLOOKUP($V50,'Risk Charges'!$C$132:$C$143,'Risk Charges'!G$132:G$143,,0)","v":0.25}]
[null,null,null,"Other motor",{"$f":"W51*Input!$F445","v":0},{"$f":"X51*Input!$F445","v":0},{"$f":"Y51*Input!$F445","v":0},{"$f":"Z51*Input!$F445","v":0},null,null,null,null,"Other motor",{"$f":"AA51*Input!$G445","v":0},{"$f":"AB51*Input!$G445","v":0},{"$f":"AC51*Input!$G445","v":0},{"$f":"AD51*Input!$G445","v":0},null,null,"Other motor","Motor",5,{"$f":"_xlfn.XLOOKUP($V51,'Risk Charges'!$C$117:$C$128,'Risk Charges'!D$117:D$128,,0)","v":0.248},{"$f":"_xlfn.XLOOKUP($V51,'Risk Charges'!$C$117:$C$128,'Risk Charges'!E$117:E$128,,0)","v":0.21},{"$f":"_xlfn.XLOOKUP($V51,'Risk Charges'!$C$117:$C$128,'Risk Charges'!F$117:F$128,,0)","v":0.18},{"$f":"_xlfn.XLOOKUP($V51,'Risk Charges'!$C$117:$C$128,'Risk Charges'!G$117:G$128,,0)","v":0.15},{"$f":"_xlfn.XLOOKUP($V51,'Risk Charges'!$C$132:$C$143,'Risk Charges'!D$132:D$143,,0)","v":0.31},{"$f":"_xlfn.XLOOKUP($V51,'Risk Charges'!$C$132:$C$143,'Risk Charges'!E$132:E$143,,0)","v":0.26300000000000001},{"$f":"_xlfn.XLOOKUP($V51,'Risk Charges'!$C$132:$C$143,'Risk Charges'!F$132:F$143,,0)","v":0.22500000000000001},{"$f":"_xlfn.XLOOKUP($V51,'Risk Charges'!$C$132:$C$143,'Risk Charges'!G$132:G$143,,0)","v":0.188}]
[null,null,null,"Credit & suretyship ",{"$f":"W52*Input!$F446","v":0},{"$f":"X52*Input!$F446","v":0},{"$f":"Y52*Input!$F446","v":0},{"$f":"Z52*Input!$F446","v":0},null,null,null,null,"Credit & suretyship ",{"$f":"AA52*Input!$G446","v":0},{"$f":"AB52*Input!$G446","v":0},{"$f":"AC52*Input!$G446","v":0},{"$f":"AD52*Input!$G446","v":0},null,null,"Credit & suretyship ","Financial",8,{"$f":"_xlfn.XLOOKUP($V52,'Risk Charges'!$C$117:$C$128,'Risk Charges'!D$117:D$128,,0)","v":0.495},{"$f":"_xlfn.XLOOKUP($V52,'Risk Charges'!$C$117:$C$128,'Risk Charges'!E$117:E$128,,0)","v":0.42},{"$f":"_xlfn.XLOOKUP($V52,'Risk Charges'!$C$117:$C$128,'Risk Charges'!F$117:F$128,,0)","v":0.36},{"$f":"_xlfn.XLOOKUP($V52,'Risk Charges'!$C$117:$C$128,'Risk Charges'!G$117:G$128,,0)","v":0.3},{"$f":"_xlfn.XLOOKUP($V52,'Risk Charges'!$C$132:$C$143,'Risk Charges'!D$132:D$143,,0)","v":0.61899999999999999},{"$f":"_xlfn.XLOOKUP($V52,'Risk Charges'!$C$132:$C$143,'Risk Charges'!E$132:E$143,,0)","v":0.52500000000000002},{"$f":"_xlfn.XLOOKUP($V52,'Risk Charges'!$C$132:$C$143,'Risk Charges'!F$132:F$143,,0)","v":0.45},{"$f":"_xlfn.XLOOKUP($V52,'Risk Charges'!$C$132:$C$143,'Risk Charges'!G$132:G$143,,0)","v":0.375}]
[null,null,null,"Miscellaneous financial loss",{"$f":"W53*Input!$F447","v":0},{"$f":"X53*Input!$F447","v":0},{"$f":"Y53*Input!$F447","v":0},{"$f":"Z53*Input!$F447","v":0},null,null,null,null,"Miscellaneous financial loss",{"$f":"AA53*Input!$G447","v":0},{"$f":"AB53*Input!$G447","v":0},{"$f":"AC53*Input!$G447","v":0},{"$f":"AD53*Input!$G447","v":0},null,null,"Miscellaneous financial loss","Financial",9,{"$f":"_xlfn.XLOOKUP($V53,'Risk Charges'!$C$117:$C$128,'Risk Charges'!D$117:D$128,,0)","v":0.57799999999999996},{"$f":"_xlfn.XLOOKUP($V53,'Risk Charges'!$C$117:$C$128,'Risk Charges'!E$117:E$128,,0)","v":0.49},{"$f":"_xlfn.XLOOKUP($V53,'Risk Charges'!$C$117:$C$128,'Risk Charges'!F$117:F$128,,0)","v":0.42},{"$f":"_xlfn.XLOOKUP($V53,'Risk Charges'!$C$117:$C$128,'Risk Charges'!G$117:G$128,,0)","v":0.35},{"$f":"_xlfn.XLOOKUP($V53,'Risk Charges'!$C$132:$C$143,'Risk Charges'!D$132:D$143,,0)","v":0.72299999999999998},{"$f":"_xlfn.XLOOKUP($V53,'Risk Charges'!$C$132:$C$143,'Risk Charges'!E$132:E$143,,0)","v":0.61299999999999999},{"$f":"_xlfn.XLOOKUP($V53,'Risk Charges'!$C$132:$C$143,'Risk Charges'!F$132:F$143,,0)","v":0.52500000000000002},{"$f":"_xlfn.XLOOKUP($V53,'Risk Charges'!$C$132:$C$143,'Risk Charges'!G$132:G$143,,0)","v":0.438}]
[null,null,null,"Health & medical expense insurance",{"$f":"W54*Input!$F448","v":0},{"$f":"X54*Input!$F448","v":0},{"$f":"Y54*Input!$F448","v":0},{"$f":"Z54*Input!$F448","v":0},null,null,null,null,"Health & medical expense insurance",{"$f":"AA54*Input!$G448","v":0},{"$f":"AB54*Input!$G448","v":0},{"$f":"AC54*Input!$G448","v":0},{"$f":"AD54*Input!$G448","v":0},null,null,"Health & medical expense insurance","Health",4,{"$f":"_xlfn.XLOOKUP($V54,'Risk Charges'!$C$117:$C$128,'Risk Charges'!D$117:D$128,,0)","v":0.16500000000000001},{"$f":"_xlfn.XLOOKUP($V54,'Risk Charges'!$C$117:$C$128,'Risk Charges'!E$117:E$128,,0)","v":0.14000000000000001},{"$f":"_xlfn.XLOOKUP($V54,'Risk Charges'!$C$117:$C$128,'Risk Charges'!F$117:F$128,,0)","v":0.12},{"$f":"_xlfn.XLOOKUP($V54,'Risk Charges'!$C$117:$C$128,'Risk Charges'!G$117:G$128,,0)","v":0.1},{"$f":"_xlfn.XLOOKUP($V54,'Risk Charges'!$C$132:$C$143,'Risk Charges'!D$132:D$143,,0)","v":0.20599999999999999},{"$f":"_xlfn.XLOOKUP($V54,'Risk Charges'!$C$132:$C$143,'Risk Charges'!E$132:E$143,,0)","v":0.17499999999999999},{"$f":"_xlfn.XLOOKUP($V54,'Risk Charges'!$C$132:$C$143,'Risk Charges'!F$132:F$143,,0)","v":0.15},{"$f":"_xlfn.XLOOKUP($V54,'Risk Charges'!$C$132:$C$143,'Risk Charges'!G$132:G$143,,0)","v":0.125}]
[null,null,null,"Marine, aviation and transport",{"$f":"W55*Input!$F449","v":0},{"$f":"X55*Input!$F449","v":0},{"$f":"Y55*Input!$F449","v":0},{"$f":"Z55*Input!$F449","v":0},null,null,null,null,"Marine, aviation and transport",{"$f":"AA55*Input!$G449","v":0},{"$f":"AB55*Input!$G449","v":0},{"$f":"AC55*Input!$G449","v":0},{"$f":"AD55*Input!$G449","v":0},null,null,"Marine, aviation and transport","MAT",10,{"$f":"_xlfn.XLOOKUP($V55,'Risk Charges'!$C$117:$C$128,'Risk Charges'!D$117:D$128,,0)","v":0.66},{"$f":"_xlfn.XLOOKUP($V55,'Risk Charges'!$C$117:$C$128,'Risk Charges'!E$117:E$128,,0)","v":0.56000000000000005},{"$f":"_xlfn.XLOOKUP($V55,'Risk Charges'!$C$117:$C$128,'Risk Charges'!F$117:F$128,,0)","v":0.48},{"$f":"_xlfn.XLOOKUP($V55,'Risk Charges'!$C$117:$C$128,'Risk Charges'!G$117:G$128,,0)","v":0.4},{"$f":"_xlfn.XLOOKUP($V55,'Risk Charges'!$C$132:$C$143,'Risk Charges'!D$132:D$143,,0)","v":0.82499999999999996},{"$f":"_xlfn.XLOOKUP($V55,'Risk Charges'!$C$132:$C$143,'Risk Charges'!E$132:E$143,,0)","v":0.7},{"$f":"_xlfn.XLOOKUP($V55,'Risk Charges'!$C$132:$C$143,'Risk Charges'!F$132:F$143,,0)","v":0.6},{"$f":"_xlfn.XLOOKUP($V55,'Risk Charges'!$C$132:$C$143,'Risk Charges'!G$132:G$143,,0)","v":0.5}]
[null,null,null,{"$f":"T56","v":"Marine protection & indemnity"},{"$f":"W56*Input!$F450","v":0},{"$f":"X56*Input!$F450","v":0},{"$f":"Y56*Input!$F450","v":0},{"$f":"Z56*Input!$F450","v":0},null,null,null,null,{"$f":"T56","v":"Marine protection & indemnity"},{"$f":"AA56*Input!$G450","v":0},{"$f":"AB56*Input!$G450","v":0},{"$f":"AC56*Input!$G450","v":0},{"$f":"AD56*Input!$G450","v":0},null,null,"Marine protection & indemnity","MAT",8,{"$f":"_xlfn.XLOOKUP($V56,'Risk Charges'!$C$117:$C$128,'Risk Charges'!D$117:D$128,,0)","v":0.495},{"$f":"_xlfn.XLOOKUP($V56,'Risk Charges'!$C$117:$C$128,'Risk Charges'!E$117:E$128,,0)","v":0.42},{"$f":"_xlfn.XLOOKUP($V56,'Risk Charges'!$C$117:$C$128,'Risk Charges'!F$117:F$128,,0)","v":0.36},{"$f":"_xlfn.XLOOKUP($V56,'Risk Charges'!$C$117:$C$128,'Risk Charges'!G$117:G$128,,0)","v":0.3},{"$f":"_xlfn.XLOOKUP($V56,'Risk Charges'!$C$132:$C$143,'Risk Charges'!D$132:D$143,,0)","v":0.61899999999999999},{"$f":"_xlfn.XLOOKUP($V56,'Risk Charges'!$C$132:$C$143,'Risk Charges'!E$132:E$143,,0)","v":0.52500000000000002},{"$f":"_xlfn.XLOOKUP($V56,'Risk Charges'!$C$132:$C$143,'Risk Charges'!F$132:F$143,,0)","v":0.45},{"$f":"_xlfn.XLOOKUP($V56,'Risk Charges'!$C$132:$C$143,'Risk Charges'!G$132:G$143,,0)","v":0.375}]
[null,null,null,"Assistance",{"$f":"W57*Input!$F451","v":0},{"$f":"X57*Input!$F451","v":0},{"$f":"Y57*Input!$F451","v":0},{"$f":"Z57*Input!$F451","v":0},null,null,null,null,"Assistance",{"$f":"AA57*Input!$G451","v":0},{"$f":"AB57*Input!$G451","v":0},{"$f":"AC57*Input!$G451","v":0},{"$f":"AD57*Input!$G451","v":0},null,null,"Assistance","Other",7,{"$f":"_xlfn.XLOOKUP($V57,'Risk Charges'!$C$117:$C$128,'Risk Charges'!D$117:D$128,,0)","v":0.41299999999999998},{"$f":"_xlfn.XLOOKUP($V57,'Risk Charges'!$C$117:$C$128,'Risk Charges'!E$117:E$128,,0)","v":0.35},{"$f":"_xlfn.XLOOKUP($V57,'Risk Charges'!$C$117:$C$128,'Risk Charges'!F$117:F$128,,0)","v":0.3},{"$f":"_xlfn.XLOOKUP($V57,'Risk Charges'!$C$117:$C$128,'Risk Charges'!G$117:G$128,,0)","v":0.25},{"$f":"_xlfn.XLOOKUP($V57,'Risk Charges'!$C$132:$C$143,'Risk Charges'!D$132:D$143,,0)","v":0.51600000000000001},{"$f":"_xlfn.XLOOKUP($V57,'Risk Charges'!$C$132:$C$143,'Risk Charges'!E$132:E$143,,0)","v":0.438},{"$f":"_xlfn.XLOOKUP($V57,'Risk Charges'!$C$132:$C$143,'Risk Charges'!F$132:F$143,,0)","v":0.375},{"$f":"_xlfn.XLOOKUP($V57,'Risk Charges'!$C$132:$C$143,'Risk Charges'!G$132:G$143,,0)","v":0.313}]
[null,null,null,"Income protection",{"$f":"W58*Input!$F452","v":0},{"$f":"X58*Input!$F452","v":0},{"$f":"Y58*Input!$F452","v":0},{"$f":"Z58*Input!$F452","v":0},null,null,null,null,"Income protection",{"$f":"AA58*Input!$G452","v":0},{"$f":"AB58*Input!$G452","v":0},{"$f":"AC58*Input!$G452","v":0},{"$f":"AD58*Input!$G452","v":0},null,null,"Income protection","Other",6,{"$f":"_xlfn.XLOOKUP($V58,'Risk Charges'!$C$117:$C$128,'Risk Charges'!D$117:D$128,,0)","v":0.33},{"$f":"_xlfn.XLOOKUP($V58,'Risk Charges'!$C$117:$C$128,'Risk Charges'!E$117:E$128,,0)","v":0.28000000000000003},{"$f":"_xlfn.XLOOKUP($V58,'Risk Charges'!$C$117:$C$128,'Risk Charges'!F$117:F$128,,0)","v":0.24},{"$f":"_xlfn.XLOOKUP($V58,'Risk Charges'!$C$117:$C$128,'Risk Charges'!G$117:G$128,,0)","v":0.2},{"$f":"_xlfn.XLOOKUP($V58,'Risk Charges'!$C$132:$C$143,'Risk Charges'!D$132:D$143,,0)","v":0.41299999999999998},{"$f":"_xlfn.XLOOKUP($V58,'Risk Charges'!$C$132:$C$143,'Risk Charges'!E$132:E$143,,0)","v":0.35},{"$f":"_xlfn.XLOOKUP($V58,'Risk Charges'!$C$132:$C$143,'Risk Charges'!F$132:F$143,,0)","v":0.3},{"$f":"_xlfn.XLOOKUP($V58,'Risk Charges'!$C$132:$C$143,'Risk Charges'!G$132:G$143,,0)","v":0.25}]
[null,null,null,"Legal expense",{"$f":"W59*Input!$F453","v":0},{"$f":"X59*Input!$F453","v":0},{"$f":"Y59*Input!$F453","v":0},{"$f":"Z59*Input!$F453","v":0},null,null,null,null,"Legal expense",{"$f":"AA59*Input!$G453","v":0},{"$f":"AB59*Input!$G453","v":0},{"$f":"AC59*Input!$G453","v":0},{"$f":"AD59*Input!$G453","v":0},null,null,"Legal expense","Other",6,{"$f":"_xlfn.XLOOKUP($V59,'Risk Charges'!$C$117:$C$128,'Risk Charges'!D$117:D$128,,0)","v":0.33},{"$f":"_xlfn.XLOOKUP($V59,'Risk Charges'!$C$117:$C$128,'Risk Charges'!E$117:E$128,,0)","v":0.28000000000000003},{"$f":"_xlfn.XLOOKUP($V59,'Risk Charges'!$C$117:$C$128,'Risk Charges'!F$117:F$128,,0)","v":0.24},{"$f":"_xlfn.XLOOKUP($V59,'Risk Charges'!$C$117:$C$128,'Risk Charges'!G$117:G$128,,0)","v":0.2},{"$f":"_xlfn.XLOOKUP($V59,'Risk Charges'!$C$132:$C$143,'Risk Charges'!D$132:D$143,,0)","v":0.41299999999999998},{"$f":"_xlfn.XLOOKUP($V59,'Risk Charges'!$C$132:$C$143,'Risk Charges'!E$132:E$143,,0)","v":0.35},{"$f":"_xlfn.XLOOKUP($V59,'Risk Charges'!$C$132:$C$143,'Risk Charges'!F$132:F$143,,0)","v":0.3},{"$f":"_xlfn.XLOOKUP($V59,'Risk Charges'!$C$132:$C$143,'Risk Charges'!G$132:G$143,,0)","v":0.25}]
[null,null,null,"Other",{"$f":"W60*Input!$F454","v":0},{"$f":"X60*Input!$F454","v":0},{"$f":"Y60*Input!$F454","v":0},{"$f":"Z60*Input!$F454","v":0},null,null,null,null,"Other",{"$f":"AA60*Input!$G454","v":0},{"$f":"AB60*Input!$G454","v":0},{"$f":"AC60*Input!$G454","v":0},{"$f":"AD60*Input!$G454","v":0},null,null,"Other","Other",12,{"$f":"_xlfn.XLOOKUP($V60,'Risk Charges'!$C$117:$C$128,'Risk Charges'!D$117:D$128,,0)","v":0.99},{"$f":"_xlfn.XLOOKUP($V60,'Risk Charges'!$C$117:$C$128,'Risk Charges'!E$117:E$128,,0)","v":0.84},{"$f":"_xlfn.XLOOKUP($V60,'Risk Charges'!$C$117:$C$128,'Risk Charges'!F$117:F$128,,0)","v":0.72},{"$f":"_xlfn.XLOOKUP($V60,'Risk Charges'!$C$117:$C$128,'Risk Charges'!G$117:G$128,,0)","v":0.6},{"$f":"_xlfn.XLOOKUP($V60,'Risk Charges'!$C$132:$C$143,'Risk Charges'!D$132:D$143,,0)","v":1.238},{"$f":"_xlfn.XLOOKUP($V60,'Risk Charges'!$C$132:$C$143,'Risk Charges'!E$132:E$143,,0)","v":1.05},{"$f":"_xlfn.XLOOKUP($V60,'Risk Charges'!$C$132:$C$143,'Risk Charges'!F$132:F$143,,0)","v":0.9},{"$f":"_xlfn.XLOOKUP($V60,'Risk Charges'!$C$132:$C$143,'Risk Charges'!G$132:G$143,,0)","v":0.75}]
[null,"US Risks",null,null,null,null,null,null,null,null,"US Risks",null,null,null,null,null,null,null,"US Risks"]
[null,null,null,{"$f":"T62","v":"Excess workers compensation"},{"$f":"W62*Input!$F456","v":0},{"$f":"X62*Input!$F456","v":0},{"$f":"Y62*Input!$F456","v":0},{"$f":"Z62*Input!$F456","v":0},null,null,null,null,{"$f":"T62","v":"Excess workers compensation"},{"$f":"AA62*Input!$G456","v":0},{"$f":"AB62*Input!$G456","v":0},{"$f":"AC62*Input!$G456","v":0},{"$f":"AD62*Input!$G456","v":0},null,null,"Excess workers compensation","Liability",11,{"$f":"_xlfn.XLOOKUP($V62,'Risk Charges'!$C$117:$C$128,'Risk Charges'!D$117:D$128,,0)","v":0.82499999999999996},{"$f":"_xlfn.XLOOKUP($V62,'Risk Charges'!$C$117:$C$128,'Risk Charges'!E$117:E$128,,0)","v":0.7},{"$f":"_xlfn.XLOOKUP($V62,'Risk Charges'!$C$117:$C$128,'Risk Charges'!F$117:F$128,,0)","v":0.6},{"$f":"_xlfn.XLOOKUP($V62,'Risk Charges'!$C$117:$C$128,'Risk Charges'!G$117:G$128,,0)","v":0.5},{"$f":"_xlfn.XLOOKUP($V62,'Risk Charges'!$C$132:$C$143,'Risk Charges'!D$132:D$143,,0)","v":1.0309999999999999},{"$f":"_xlfn.XLOOKUP($V62,'Risk Charges'!$C$132:$C$143,'Risk Charges'!E$132:E$143,,0)","v":0.875},{"$f":"_xlfn.XLOOKUP($V62,'Risk Charges'!$C$132:$C$143,'Risk Charges'!F$132:F$143,,0)","v":0.75},{"$f":"_xlfn.XLOOKUP($V62,'Risk Charges'!$C$132:$C$143,'Risk Charges'!G$132:G$143,,0)","v":0.625}]
[null,null,null,"Medical malpractice - claims made",{"$f":"W63*Input!$F457","v":0},{"$f":"X63*Input!$F457","v":0},{"$f":"Y63*Input!$F457","v":0},{"$f":"Z63*Input!$F457","v":0},null,null,null,null,"Medical malpractice - claims made",{"$f":"AA63*Input!$G457","v":0},{"$f":"AB63*Input!$G457","v":0},{"$f":"AC63*Input!$G457","v":0},{"$f":"AD63*Input!$G457","v":0},null,null,"Medical malpractice - claims made","Liability",9,{"$f":"_xlfn.XLOOKUP($V63,'Risk Charges'!$C$117:$C$128,'Risk Charges'!D$117:D$128,,0)","v":0.57799999999999996},{"$f":"_xlfn.XLOOKUP($V63,'Risk Charges'!$C$117:$C$128,'Risk Charges'!E$117:E$128,,0)","v":0.49},{"$f":"_xlfn.XLOOKUP($V63,'Risk Charges'!$C$117:$C$128,'Risk Charges'!F$117:F$128,,0)","v":0.42},{"$f":"_xlfn.XLOOKUP($V63,'Risk Charges'!$C$117:$C$128,'Risk Charges'!G$117:G$128,,0)","v":0.35},{"$f":"_xlfn.XLOOKUP($V63,'Risk Charges'!$C$132:$C$143,'Risk Charges'!D$132:D$143,,0)","v":0.72299999999999998},{"$f":"_xlfn.XLOOKUP($V63,'Risk Charges'!$C$132:$C$143,'Risk Charges'!E$132:E$143,,0)","v":0.61299999999999999},{"$f":"_xlfn.XLOOKUP($V63,'Risk Charges'!$C$132:$C$143,'Risk Charges'!F$132:F$143,,0)","v":0.52500000000000002},{"$f":"_xlfn.XLOOKUP($V63,'Risk Charges'!$C$132:$C$143,'Risk Charges'!G$132:G$143,,0)","v":0.438}]
[null,null,null,"Medical malpractice - occurrence",{"$f":"W64*Input!$F458","v":0},{"$f":"X64*Input!$F458","v":0},{"$f":"Y64*Input!$F458","v":0},{"$f":"Z64*Input!$F458","v":0},null,null,null,null,"Medical malpractice - occurrence",{"$f":"AA64*Input!$G458","v":0},{"$f":"AB64*Input!$G458","v":0},{"$f":"AC64*Input!$G458","v":0},{"$f":"AD64*Input!$G458","v":0},null,null,"Medical malpractice - occurrence","Liability",11,{"$f":"_xlfn.XLOOKUP($V64,'Risk Charges'!$C$117:$C$128,'Risk Charges'!D$117:D$128,,0)","v":0.82499999999999996},{"$f":"_xlfn.XLOOKUP($V64,'Risk Charges'!$C$117:$C$128,'Risk Charges'!E$117:E$128,,0)","v":0.7},{"$f":"_xlfn.XLOOKUP($V64,'Risk Charges'!$C$117:$C$128,'Risk Charges'!F$117:F$128,,0)","v":0.6},{"$f":"_xlfn.XLOOKUP($V64,'Risk Charges'!$C$117:$C$128,'Risk Charges'!G$117:G$128,,0)","v":0.5},{"$f":"_xlfn.XLOOKUP($V64,'Risk Charges'!$C$132:$C$143,'Risk Charges'!D$132:D$143,,0)","v":1.0309999999999999},{"$f":"_xlfn.XLOOKUP($V64,'Risk Charges'!$C$132:$C$143,'Risk Charges'!E$132:E$143,,0)","v":0.875},{"$f":"_xlfn.XLOOKUP($V64,'Risk Charges'!$C$132:$C$143,'Risk Charges'!F$132:F$143,,0)","v":0.75},{"$f":"_xlfn.XLOOKUP($V64,'Risk Charges'!$C$132:$C$143,'Risk Charges'!G$132:G$143,,0)","v":0.625}]
[null,null,null,"Other liability - claims made",{"$f":"W65*Input!$F459","v":0},{"$f":"X65*Input!$F459","v":0},{"$f":"Y65*Input!$F459","v":0},{"$f":"Z65*Input!$F459","v":0},null,null,null,null,"Other liability - claims made",{"$f":"AA65*Input!$G459","v":0},{"$f":"AB65*Input!$G459","v":0},{"$f":"AC65*Input!$G459","v":0},{"$f":"AD65*Input!$G459","v":0},null,null,"Other liability - claims made","Liability",4,{"$f":"_xlfn.XLOOKUP($V65,'Risk Charges'!$C$117:$C$128,'Risk Charges'!D$117:D$128,,0)","v":0.16500000000000001},{"$f":"_xlfn.XLOOKUP($V65,'Risk Charges'!$C$117:$C$128,'Risk Charges'!E$117:E$128,,0)","v":0.14000000000000001},{"$f":"_xlfn.XLOOKUP($V65,'Risk Charges'!$C$117:$C$128,'Risk Charges'!F$117:F$128,,0)","v":0.12},{"$f":"_xlfn.XLOOKUP($V65,'Risk Charges'!$C$117:$C$128,'Risk Charges'!G$117:G$128,,0)","v":0.1},{"$f":"_xlfn.XLOOKUP($V65,'Risk Charges'!$C$132:$C$143,'Risk Charges'!D$132:D$143,,0)","v":0.20599999999999999},{"$f":"_xlfn.XLOOKUP($V65,'Risk Charges'!$C$132:$C$143,'Risk Charges'!E$132:E$143,,0)","v":0.17499999999999999},{"$f":"_xlfn.XLOOKUP($V65,'Risk Charges'!$C$132:$C$143,'Risk Charges'!F$132:F$143,,0)","v":0.15},{"$f":"_xlfn.XLOOKUP($V65,'Risk Charges'!$C$132:$C$143,'Risk Charges'!G$132:G$143,,0)","v":0.125}]
[null,null,null,"Other liability - occurrence",{"$f":"W66*Input!$F460","v":0},{"$f":"X66*Input!$F460","v":0},{"$f":"Y66*Input!$F460","v":0},{"$f":"Z66*Input!$F460","v":0},null,null,null,null,"Other liability - occurrence",{"$f":"AA66*Input!$G460","v":0},{"$f":"AB66*Input!$G460","v":0},{"$f":"AC66*Input!$G460","v":0},{"$f":"AD66*Input!$G460","v":0},null,null,"Other liability - occurrence","Liability",5,{"$f":"_xlfn.XLOOKUP($V66,'Risk Charges'!$C$117:$C$128,'Risk Charges'!D$117:D$128,,0)","v":0.248},{"$f":"_xlfn.XLOOKUP($V66,'Risk Charges'!$C$117:$C$128,'Risk Charges'!E$117:E$128,,0)","v":0.21},{"$f":"_xlfn.XLOOKUP($V66,'Risk Charges'!$C$117:$C$128,'Risk Charges'!F$117:F$128,,0)","v":0.18},{"$f":"_xlfn.XLOOKUP($V66,'Risk Charges'!$C$117:$C$128,'Risk Charges'!G$117:G$128,,0)","v":0.15},{"$f":"_xlfn.XLOOKUP($V66,'Risk Charges'!$C$132:$C$143,'Risk Charges'!D$132:D$143,,0)","v":0.31},{"$f":"_xlfn.XLOOKUP($V66,'Risk Charges'!$C$132:$C$143,'Risk Charges'!E$132:E$143,,0)","v":0.26300000000000001},{"$f":"_xlfn.XLOOKUP($V66,'Risk Charges'!$C$132:$C$143,'Risk Charges'!F$132:F$143,,0)","v":0.22500000000000001},{"$f":"_xlfn.XLOOKUP($V66,'Risk Charges'!$C$132:$C$143,'Risk Charges'!G$132:G$143,,0)","v":0.188}]
[null,null,null,"Product liability - claims made",{"$f":"W67*Input!$F461","v":0},{"$f":"X67*Input!$F461","v":0},{"$f":"Y67*Input!$F461","v":0},{"$f":"Z67*Input!$F461","v":0},null,null,null,null,"Product liability - claims made",{"$f":"AA67*Input!$G461","v":0},{"$f":"AB67*Input!$G461","v":0},{"$f":"AC67*Input!$G461","v":0},{"$f":"AD67*Input!$G461","v":0},null,null,"Product liability - claims made","Liability",9,{"$f":"_xlfn.XLOOKUP($V67,'Risk Charges'!$C$117:$C$128,'Risk Charges'!D$117:D$128,,0)","v":0.57799999999999996},{"$f":"_xlfn.XLOOKUP($V67,'Risk Charges'!$C$117:$C$128,'Risk Charges'!E$117:E$128,,0)","v":0.49},{"$f":"_xlfn.XLOOKUP($V67,'Risk Charges'!$C$117:$C$128,'Risk Charges'!F$117:F$128,,0)","v":0.42},{"$f":"_xlfn.XLOOKUP($V67,'Risk Charges'!$C$117:$C$128,'Risk Charges'!G$117:G$128,,0)","v":0.35},{"$f":"_xlfn.XLOOKUP($V67,'Risk Charges'!$C$132:$C$143,'Risk Charges'!D$132:D$143,,0)","v":0.72299999999999998},{"$f":"_xlfn.XLOOKUP($V67,'Risk Charges'!$C$132:$C$143,'Risk Charges'!E$132:E$143,,0)","v":0.61299999999999999},{"$f":"_xlfn.XLOOKUP($V67,'Risk Charges'!$C$132:$C$143,'Risk Charges'!F$132:F$143,,0)","v":0.52500000000000002},{"$f":"_xlfn.XLOOKUP($V67,'Risk Charges'!$C$132:$C$143,'Risk Charges'!G$132:G$143,,0)","v":0.438}]
[null,null,null,"Product liability - occurrence",{"$f":"W68*Input!$F462","v":0},{"$f":"X68*Input!$F462","v":0},{"$f":"Y68*Input!$F462","v":0},{"$f":"Z68*Input!$F462","v":0},null,null,null,null,"Product liability - occurrence",{"$f":"AA68*Input!$G462","v":0},{"$f":"AB68*Input!$G462","v":0},{"$f":"AC68*Input!$G462","v":0},{"$f":"AD68*Input!$G462","v":0},null,null,"Product liability - occurrence","Liability",6,{"$f":"_xlfn.XLOOKUP($V68,'Risk Charges'!$C$117:$C$128,'Risk Charges'!D$117:D$128,,0)","v":0.33},{"$f":"_xlfn.XLOOKUP($V68,'Risk Charges'!$C$117:$C$128,'Risk Charges'!E$117:E$128,,0)","v":0.28000000000000003},{"$f":"_xlfn.XLOOKUP($V68,'Risk Charges'!$C$117:$C$128,'Risk Charges'!F$117:F$128,,0)","v":0.24},{"$f":"_xlfn.XLOOKUP($V68,'Risk Charges'!$C$117:$C$128,'Risk Charges'!G$117:G$128,,0)","v":0.2},{"$f":"_xlfn.XLOOKUP($V68,'Risk Charges'!$C$132:$C$143,'Risk Charges'!D$132:D$143,,0)","v":0.41299999999999998},{"$f":"_xlfn.XLOOKUP($V68,'Risk Charges'!$C$132:$C$143,'Risk Charges'!E$132:E$143,,0)","v":0.35},{"$f":"_xlfn.XLOOKUP($V68,'Risk Charges'!$C$132:$C$143,'Risk Charges'!F$132:F$143,,0)","v":0.3},{"$f":"_xlfn.XLOOKUP($V68,'Risk Charges'!$C$132:$C$143,'Risk Charges'!G$132:G$143,,0)","v":0.25}]
[null,null,null,"Workers compensation",{"$f":"W69*Input!$F463","v":0},{"$f":"X69*Input!$F463","v":0},{"$f":"Y69*Input!$F463","v":0},{"$f":"Z69*Input!$F463","v":0},null,null,null,null,"Workers compensation",{"$f":"AA69*Input!$G463","v":0},{"$f":"AB69*Input!$G463","v":0},{"$f":"AC69*Input!$G463","v":0},{"$f":"AD69*Input!$G463","v":0},null,null,"Workers compensation","Liability",5,{"$f":"_xlfn.XLOOKUP($V69,'Risk Charges'!$C$117:$C$128,'Risk Charges'!D$117:D$128,,0)","v":0.248},{"$f":"_xlfn.XLOOKUP($V69,'Risk Charges'!$C$117:$C$128,'Risk Charges'!E$117:E$128,,0)","v":0.21},{"$f":"_xlfn.XLOOKUP($V69,'Risk Charges'!$C$117:$C$128,'Risk Charges'!F$117:F$128,,0)","v":0.18},{"$f":"_xlfn.XLOOKUP($V69,'Risk Charges'!$C$117:$C$128,'Risk Charges'!G$117:G$128,,0)","v":0.15},{"$f":"_xlfn.XLOOKUP($V69,'Risk Charges'!$C$132:$C$143,'Risk Charges'!D$132:D$143,,0)","v":0.31},{"$f":"_xlfn.XLOOKUP($V69,'Risk Charges'!$C$132:$C$143,'Risk Charges'!E$132:E$143,,0)","v":0.26300000000000001},{"$f":"_xlfn.XLOOKUP($V69,'Risk Charges'!$C$132:$C$143,'Risk Charges'!F$132:F$143,,0)","v":0.22500000000000001},{"$f":"_xlfn.XLOOKUP($V69,'Risk Charges'!$C$132:$C$143,'Risk Charges'!G$132:G$143,,0)","v":0.188}]
[null,null,null,"Boiler & machinery",{"$f":"W70*Input!$F464","v":0},{"$f":"X70*Input!$F464","v":0},{"$f":"Y70*Input!$F464","v":0},{"$f":"Z70*Input!$F464","v":0},null,null,null,null,"Boiler & machinery",{"$f":"AA70*Input!$G464","v":0},{"$f":"AB70*Input!$G464","v":0},{"$f":"AC70*Input!$G464","v":0},{"$f":"AD70*Input!$G464","v":0},null,null,"Boiler & machinery","Property",7,{"$f":"_xlfn.XLOOKUP($V70,'Risk Charges'!$C$117:$C$128,'Risk Charges'!D$117:D$128,,0)","v":0.41299999999999998},{"$f":"_xlfn.XLOOKUP($V70,'Risk Charges'!$C$117:$C$128,'Risk Charges'!E$117:E$128,,0)","v":0.35},{"$f":"_xlfn.XLOOKUP($V70,'Risk Charges'!$C$117:$C$128,'Risk Charges'!F$117:F$128,,0)","v":0.3},{"$f":"_xlfn.XLOOKUP($V70,'Risk Charges'!$C$117:$C$128,'Risk Charges'!G$117:G$128,,0)","v":0.25},{"$f":"_xlfn.XLOOKUP($V70,'Risk Charges'!$C$132:$C$143,'Risk Charges'!D$132:D$143,,0)","v":0.51600000000000001},{"$f":"_xlfn.XLOOKUP($V70,'Risk Charges'!$C$132:$C$143,'Risk Charges'!E$132:E$143,,0)","v":0.438},{"$f":"_xlfn.XLOOKUP($V70,'Risk Charges'!$C$132:$C$143,'Risk Charges'!F$132:F$143,,0)","v":0.375},{"$f":"_xlfn.XLOOKUP($V70,'Risk Charges'!$C$132:$C$143,'Risk Charges'!G$132:G$143,,0)","v":0.313}]
[null,null,null,"Commercial multi-peril",{"$f":"W71*Input!$F465","v":0},{"$f":"X71*Input!$F465","v":0},{"$f":"Y71*Input!$F465","v":0},{"$f":"Z71*Input!$F465","v":0},null,null,null,null,"Commercial multi-peril",{"$f":"AA71*Input!$G465","v":0},{"$f":"AB71*Input!$G465","v":0},{"$f":"AC71*Input!$G465","v":0},{"$f":"AD71*Input!$G465","v":0},null,null,"Commercial multi-peril","Property",5,{"$f":"_xlfn.XLOOKUP($V71,'Risk Charges'!$C$117:$C$128,'Risk Charges'!D$117:D$128,,0)","v":0.248},{"$f":"_xlfn.XLOOKUP($V71,'Risk Charges'!$C$117:$C$128,'Risk Charges'!E$117:E$128,,0)","v":0.21},{"$f":"_xlfn.XLOOKUP($V71,'Risk Charges'!$C$117:$C$128,'Risk Charges'!F$117:F$128,,0)","v":0.18},{"$f":"_xlfn.XLOOKUP($V71,'Risk Charges'!$C$117:$C$128,'Risk Charges'!G$117:G$128,,0)","v":0.15},{"$f":"_xlfn.XLOOKUP($V71,'Risk Charges'!$C$132:$C$143,'Risk Charges'!D$132:D$143,,0)","v":0.31},{"$f":"_xlfn.XLOOKUP($V71,'Risk Charges'!$C$132:$C$143,'Risk Charges'!E$132:E$143,,0)","v":0.26300000000000001},{"$f":"_xlfn.XLOOKUP($V71,'Risk Charges'!$C$132:$C$143,'Risk Charges'!F$132:F$143,,0)","v":0.22500000000000001},{"$f":"_xlfn.XLOOKUP($V71,'Risk Charges'!$C$132:$C$143,'Risk Charges'!G$132:G$143,,0)","v":0.188}]
[null,null,null,"Homeowner/Farmowner multi-peril",{"$f":"W72*Input!$F466","v":0},{"$f":"X72*Input!$F466","v":0},{"$f":"Y72*Input!$F466","v":0},{"$f":"Z72*Input!$F466","v":0},null,null,null,null,"Homeowner/Farmowner multi-peril",{"$f":"AA72*Input!$G466","v":0},{"$f":"AB72*Input!$G466","v":0},{"$f":"AC72*Input!$G466","v":0},{"$f":"AD72*Input!$G466","v":0},null,null,"Homeowner/Farmowner multi-peril","Property",7,{"$f":"_xlfn.XLOOKUP($V72,'Risk Charges'!$C$117:$C$128,'Risk Charges'!D$117:D$128,,0)","v":0.41299999999999998},{"$f":"_xlfn.XLOOKUP($V72,'Risk Charges'!$C$117:$C$128,'Risk Charges'!E$117:E$128,,0)","v":0.35},{"$f":"_xlfn.XLOOKUP($V72,'Risk Charges'!$C$117:$C$128,'Risk Charges'!F$117:F$128,,0)","v":0.3},{"$f":"_xlfn.XLOOKUP($V72,'Risk Charges'!$C$117:$C$128,'Risk Charges'!G$117:G$128,,0)","v":0.25},{"$f":"_xlfn.XLOOKUP($V72,'Risk Charges'!$C$132:$C$143,'Risk Charges'!D$132:D$143,,0)","v":0.51600000000000001},{"$f":"_xlfn.XLOOKUP($V72,'Risk Charges'!$C$132:$C$143,'Risk Charges'!E$132:E$143,,0)","v":0.438},{"$f":"_xlfn.XLOOKUP($V72,'Risk Charges'!$C$132:$C$143,'Risk Charges'!F$132:F$143,,0)","v":0.375},{"$f":"_xlfn.XLOOKUP($V72,'Risk Charges'!$C$132:$C$143,'Risk Charges'!G$132:G$143,,0)","v":0.313}]
[null,null,null,"Special property (fire, allied lines, inland marine, earthquake, burglary and theft)",{"$f":"W73*Input!$F467","v":0},{"$f":"X73*Input!$F467","v":0},{"$f":"Y73*Input!$F467","v":0},{"$f":"Z73*Input!$F467","v":0},null,null,null,null,"Special property (fire, allied lines, inland marine, earthquake, burglary and theft)",{"$f":"AA73*Input!$G467","v":0},{"$f":"AB73*Input!$G467","v":0},{"$f":"AC73*Input!$G467","v":0},{"$f":"AD73*Input!$G467","v":0},null,null,"Special property (fire, allied lines, inland marine, earthquake, burglary and theft)","Property",7,{"$f":"_xlfn.XLOOKUP($V73,'Risk Charges'!$C$117:$C$128,'Risk Charges'!D$117:D$128,,0)","v":0.41299999999999998},{"$f":"_xlfn.XLOOKUP($V73,'Risk Charges'!$C$117:$C$128,'Risk Charges'!E$117:E$128,,0)","v":0.35},{"$f":"_xlfn.XLOOKUP($V73,'Risk Charges'!$C$117:$C$128,'Risk Charges'!F$117:F$128,,0)","v":0.3},{"$f":"_xlfn.XLOOKUP($V73,'Risk Charges'!$C$117:$C$128,'Risk Charges'!G$117:G$128,,0)","v":0.25},{"$f":"_xlfn.XLOOKUP($V73,'Risk Charges'!$C$132:$C$143,'Risk Charges'!D$132:D$143,,0)","v":0.51600000000000001},{"$f":"_xlfn.XLOOKUP($V73,'Risk Charges'!$C$132:$C$143,'Risk Charges'!E$132:E$143,,0)","v":0.438},{"$f":"_xlfn.XLOOKUP($V73,'Risk Charges'!$C$132:$C$143,'Risk Charges'!F$132:F$143,,0)","v":0.375},{"$f":"_xlfn.XLOOKUP($V73,'Risk Charges'!$C$132:$C$143,'Risk Charges'!G$132:G$143,,0)","v":0.313}]
[null,null,null,"Auto physical damage",{"$f":"W74*Input!$F468","v":0},{"$f":"X74*Input!$F468","v":0},{"$f":"Y74*Input!$F468","v":0},{"$f":"Z74*Input!$F468","v":0},null,null,null,null,"Auto physical damage",{"$f":"AA74*Input!$G468","v":0},{"$f":"AB74*Input!$G468","v":0},{"$f":"AC74*Input!$G468","v":0},{"$f":"AD74*Input!$G468","v":0},null,null,"Auto physical damage","Motor",5,{"$f":"_xlfn.XLOOKUP($V74,'Risk Charges'!$C$117:$C$128,'Risk Charges'!D$117:D$128,,0)","v":0.248},{"$f":"_xlfn.XLOOKUP($V74,'Risk Charges'!$C$117:$C$128,'Risk Charges'!E$117:E$128,,0)","v":0.21},{"$f":"_xlfn.XLOOKUP($V74,'Risk Charges'!$C$117:$C$128,'Risk Charges'!F$117:F$128,,0)","v":0.18},{"$f":"_xlfn.XLOOKUP($V74,'Risk Charges'!$C$117:$C$128,'Risk Charges'!G$117:G$128,,0)","v":0.15},{"$f":"_xlfn.XLOOKUP($V74,'Risk Charges'!$C$132:$C$143,'Risk Charges'!D$132:D$143,,0)","v":0.31},{"$f":"_xlfn.XLOOKUP($V74,'Risk Charges'!$C$132:$C$143,'Risk Charges'!E$132:E$143,,0)","v":0.26300000000000001},{"$f":"_xlfn.XLOOKUP($V74,'Risk Charges'!$C$132:$C$143,'Risk Charges'!F$132:F$143,,0)","v":0.22500000000000001},{"$f":"_xlfn.XLOOKUP($V74,'Risk Charges'!$C$132:$C$143,'Risk Charges'!G$132:G$143,,0)","v":0.188}]
[null,null,null,"Commercial auto liability",{"$f":"W75*Input!$F469","v":0},{"$f":"X75*Input!$F469","v":0},{"$f":"Y75*Input!$F469","v":0},{"$f":"Z75*Input!$F469","v":0},null,null,null,null,"Commercial auto liability",{"$f":"AA75*Input!$G469","v":0},{"$f":"AB75*Input!$G469","v":0},{"$f":"AC75*Input!$G469","v":0},{"$f":"AD75*Input!$G469","v":0},null,null,"Commercial auto liability","Motor",5,{"$f":"_xlfn.XLOOKUP($V75,'Risk Charges'!$C$117:$C$128,'Risk Charges'!D$117:D$128,,0)","v":0.248},{"$f":"_xlfn.XLOOKUP($V75,'Risk Charges'!$C$117:$C$128,'Risk Charges'!E$117:E$128,,0)","v":0.21},{"$f":"_xlfn.XLOOKUP($V75,'Risk Charges'!$C$117:$C$128,'Risk Charges'!F$117:F$128,,0)","v":0.18},{"$f":"_xlfn.XLOOKUP($V75,'Risk Charges'!$C$117:$C$128,'Risk Charges'!G$117:G$128,,0)","v":0.15},{"$f":"_xlfn.XLOOKUP($V75,'Risk Charges'!$C$132:$C$143,'Risk Charges'!D$132:D$143,,0)","v":0.31},{"$f":"_xlfn.XLOOKUP($V75,'Risk Charges'!$C$132:$C$143,'Risk Charges'!E$132:E$143,,0)","v":0.26300000000000001},{"$f":"_xlfn.XLOOKUP($V75,'Risk Charges'!$C$132:$C$143,'Risk Charges'!F$132:F$143,,0)","v":0.22500000000000001},{"$f":"_xlfn.XLOOKUP($V75,'Risk Charges'!$C$132:$C$143,'Risk Charges'!G$132:G$143,,0)","v":0.188}]
[null,null,null,"Private passenger auto liability",{"$f":"W76*Input!$F470","v":0},{"$f":"X76*Input!$F470","v":0},{"$f":"Y76*Input!$F470","v":0},{"$f":"Z76*Input!$F470","v":0},null,null,null,null,"Private passenger auto liability",{"$f":"AA76*Input!$G470","v":0},{"$f":"AB76*Input!$G470","v":0},{"$f":"AC76*Input!$G470","v":0},{"$f":"AD76*Input!$G470","v":0},null,null,"Private passenger auto liability","Motor",5,{"$f":"_xlfn.XLOOKUP($V76,'Risk Charges'!$C$117:$C$128,'Risk Charges'!D$117:D$128,,0)","v":0.248},{"$f":"_xlfn.XLOOKUP($V76,'Risk Charges'!$C$117:$C$128,'Risk Charges'!E$117:E$128,,0)","v":0.21},{"$f":"_xlfn.XLOOKUP($V76,'Risk Charges'!$C$117:$C$128,'Risk Charges'!F$117:F$128,,0)","v":0.18},{"$f":"_xlfn.XLOOKUP($V76,'Risk Charges'!$C$117:$C$128,'Risk Charges'!G$117:G$128,,0)","v":0.15},{"$f":"_xlfn.XLOOKUP($V76,'Risk Charges'!$C$132:$C$143,'Risk Charges'!D$132:D$143,,0)","v":0.31},{"$f":"_xlfn.XLOOKUP($V76,'Risk Charges'!$C$132:$C$143,'Risk Charges'!E$132:E$143,,0)","v":0.26300000000000001},{"$f":"_xlfn.XLOOKUP($V76,'Risk Charges'!$C$132:$C$143,'Risk Charges'!F$132:F$143,,0)","v":0.22500000000000001},{"$f":"_xlfn.XLOOKUP($V76,'Risk Charges'!$C$132:$C$143,'Risk Charges'!G$132:G$143,,0)","v":0.188}]
[null,null,null,"Credit",{"$f":"W77*Input!$F471","v":0},{"$f":"X77*Input!$F471","v":0},{"$f":"Y77*Input!$F471","v":0},{"$f":"Z77*Input!$F471","v":0},null,null,null,null,"Credit",{"$f":"AA77*Input!$G471","v":0},{"$f":"AB77*Input!$G471","v":0},{"$f":"AC77*Input!$G471","v":0},{"$f":"AD77*Input!$G471","v":0},null,null,"Credit","Financial",8,{"$f":"_xlfn.XLOOKUP($V77,'Risk Charges'!$C$117:$C$128,'Risk Charges'!D$117:D$128,,0)","v":0.495},{"$f":"_xlfn.XLOOKUP($V77,'Risk Charges'!$C$117:$C$128,'Risk Charges'!E$117:E$128,,0)","v":0.42},{"$f":"_xlfn.XLOOKUP($V77,'Risk Charges'!$C$117:$C$128,'Risk Charges'!F$117:F$128,,0)","v":0.36},{"$f":"_xlfn.XLOOKUP($V77,'Risk Charges'!$C$117:$C$128,'Risk Charges'!G$117:G$128,,0)","v":0.3},{"$f":"_xlfn.XLOOKUP($V77,'Risk Charges'!$C$132:$C$143,'Risk Charges'!D$132:D$143,,0)","v":0.61899999999999999},{"$f":"_xlfn.XLOOKUP($V77,'Risk Charges'!$C$132:$C$143,'Risk Charges'!E$132:E$143,,0)","v":0.52500000000000002},{"$f":"_xlfn.XLOOKUP($V77,'Risk Charges'!$C$132:$C$143,'Risk Charges'!F$132:F$143,,0)","v":0.45},{"$f":"_xlfn.XLOOKUP($V77,'Risk Charges'!$C$132:$C$143,'Risk Charges'!G$132:G$143,,0)","v":0.375}]
[null,null,null,"Fidelity/Surety",{"$f":"W78*Input!$F472","v":0},{"$f":"X78*Input!$F472","v":0},{"$f":"Y78*Input!$F472","v":0},{"$f":"Z78*Input!$F472","v":0},null,null,null,null,"Fidelity/Surety",{"$f":"AA78*Input!$G472","v":0},{"$f":"AB78*Input!$G472","v":0},{"$f":"AC78*Input!$G472","v":0},{"$f":"AD78*Input!$G472","v":0},null,null,"Fidelity/Surety","Financial",5,{"$f":"_xlfn.XLOOKUP($V78,'Risk Charges'!$C$117:$C$128,'Risk Charges'!D$117:D$128,,0)","v":0.248},{"$f":"_xlfn.XLOOKUP($V78,'Risk Charges'!$C$117:$C$128,'Risk Charges'!E$117:E$128,,0)","v":0.21},{"$f":"_xlfn.XLOOKUP($V78,'Risk Charges'!$C$117:$C$128,'Risk Charges'!F$117:F$128,,0)","v":0.18},{"$f":"_xlfn.XLOOKUP($V78,'Risk Charges'!$C$117:$C$128,'Risk Charges'!G$117:G$128,,0)","v":0.15},{"$f":"_xlfn.XLOOKUP($V78,'Risk Charges'!$C$132:$C$143,'Risk Charges'!D$132:D$143,,0)","v":0.31},{"$f":"_xlfn.XLOOKUP($V78,'Risk Charges'!$C$132:$C$143,'Risk Charges'!E$132:E$143,,0)","v":0.26300000000000001},{"$f":"_xlfn.XLOOKUP($V78,'Risk Charges'!$C$132:$C$143,'Risk Charges'!F$132:F$143,,0)","v":0.22500000000000001},{"$f":"_xlfn.XLOOKUP($V78,'Risk Charges'!$C$132:$C$143,'Risk Charges'!G$132:G$143,,0)","v":0.188}]
[null,null,null,"Financial guaranty ",{"$f":"W79*Input!$F473","v":0},{"$f":"X79*Input!$F473","v":0},{"$f":"Y79*Input!$F473","v":0},{"$f":"Z79*Input!$F473","v":0},null,null,null,null,"Financial guaranty ",{"$f":"AA79*Input!$G473","v":0},{"$f":"AB79*Input!$G473","v":0},{"$f":"AC79*Input!$G473","v":0},{"$f":"AD79*Input!$G473","v":0},null,null,"Financial guaranty ","Financial",12,{"$f":"_xlfn.XLOOKUP($V79,'Risk Charges'!$C$117:$C$128,'Risk Charges'!D$117:D$128,,0)","v":0.99},{"$f":"_xlfn.XLOOKUP($V79,'Risk Charges'!$C$117:$C$128,'Risk Charges'!E$117:E$128,,0)","v":0.84},{"$f":"_xlfn.XLOOKUP($V79,'Risk Charges'!$C$117:$C$128,'Risk Charges'!F$117:F$128,,0)","v":0.72},{"$f":"_xlfn.XLOOKUP($V79,'Risk Charges'!$C$117:$C$128,'Risk Charges'!G$117:G$128,,0)","v":0.6},{"$f":"_xlfn.XLOOKUP($V79,'Risk Charges'!$C$132:$C$143,'Risk Charges'!D$132:D$143,,0)","v":1.238},{"$f":"_xlfn.XLOOKUP($V79,'Risk Charges'!$C$132:$C$143,'Risk Charges'!E$132:E$143,,0)","v":1.05},{"$f":"_xlfn.XLOOKUP($V79,'Risk Charges'!$C$132:$C$143,'Risk Charges'!F$132:F$143,,0)","v":0.9},{"$f":"_xlfn.XLOOKUP($V79,'Risk Charges'!$C$132:$C$143,'Risk Charges'!G$132:G$143,,0)","v":0.75}]
[null,null,null,{"$f":"T80","v":"A&H stop loss reinsurance"},{"$f":"W80*Input!$F474","v":0},{"$f":"X80*Input!$F474","v":0},{"$f":"Y80*Input!$F474","v":0},{"$f":"Z80*Input!$F474","v":0},null,null,null,null,{"$f":"T80","v":"A&H stop loss reinsurance"},{"$f":"AA80*Input!$G474","v":0},{"$f":"AB80*Input!$G474","v":0},{"$f":"AC80*Input!$G474","v":0},{"$f":"AD80*Input!$G474","v":0},null,null,"A&H stop loss reinsurance","Health",7,{"$f":"_xlfn.XLOOKUP($V80,'Risk Charges'!$C$117:$C$128,'Risk Charges'!D$117:D$128,,0)","v":0.41299999999999998},{"$f":"_xlfn.XLOOKUP($V80,'Risk Charges'!$C$117:$C$128,'Risk Charges'!E$117:E$128,,0)","v":0.35},{"$f":"_xlfn.XLOOKUP($V80,'Risk Charges'!$C$117:$C$128,'Risk Charges'!F$117:F$128,,0)","v":0.3},{"$f":"_xlfn.XLOOKUP($V80,'Risk Charges'!$C$117:$C$128,'Risk Charges'!G$117:G$128,,0)","v":0.25},{"$f":"_xlfn.XLOOKUP($V80,'Risk Charges'!$C$132:$C$143,'Risk Charges'!D$132:D$143,,0)","v":0.51600000000000001},{"$f":"_xlfn.XLOOKUP($V80,'Risk Charges'!$C$132:$C$143,'Risk Charges'!E$132:E$143,,0)","v":0.438},{"$f":"_xlfn.XLOOKUP($V80,'Risk Charges'!$C$132:$C$143,'Risk Charges'!F$132:F$143,,0)","v":0.375},{"$f":"_xlfn.XLOOKUP($V80,'Risk Charges'!$C$132:$C$143,'Risk Charges'!G$132:G$143,,0)","v":0.313}]
[null,null,null,"Accident & health",{"$f":"W81*Input!$F475","v":0},{"$f":"X81*Input!$F475","v":0},{"$f":"Y81*Input!$F475","v":0},{"$f":"Z81*Input!$F475","v":0},null,null,null,null,"Accident & health",{"$f":"AA81*Input!$G475","v":0},{"$f":"AB81*Input!$G475","v":0},{"$f":"AC81*Input!$G475","v":0},{"$f":"AD81*Input!$G475","v":0},null,null,"Accident & health","Health",6,{"$f":"_xlfn.XLOOKUP($V81,'Risk Charges'!$C$117:$C$128,'Risk Charges'!D$117:D$128,,0)","v":0.33},{"$f":"_xlfn.XLOOKUP($V81,'Risk Charges'!$C$117:$C$128,'Risk Charges'!E$117:E$128,,0)","v":0.28000000000000003},{"$f":"_xlfn.XLOOKUP($V81,'Risk Charges'!$C$117:$C$128,'Risk Charges'!F$117:F$128,,0)","v":0.24},{"$f":"_xlfn.XLOOKUP($V81,'Risk Charges'!$C$117:$C$128,'Risk Charges'!G$117:G$128,,0)","v":0.2},{"$f":"_xlfn.XLOOKUP($V81,'Risk Charges'!$C$132:$C$143,'Risk Charges'!D$132:D$143,,0)","v":0.41299999999999998},{"$f":"_xlfn.XLOOKUP($V81,'Risk Charges'!$C$132:$C$143,'Risk Charges'!E$132:E$143,,0)","v":0.35},{"$f":"_xlfn.XLOOKUP($V81,'Risk Charges'!$C$132:$C$143,'Risk Charges'!F$132:F$143,,0)","v":0.3},{"$f":"_xlfn.XLOOKUP($V81,'Risk Charges'!$C$132:$C$143,'Risk Charges'!G$132:G$143,,0)","v":0.25}]
[null,null,null,"Administrative services only/administrative services contract",{"$f":"W82*Input!$F476","v":0},{"$f":"X82*Input!$F476","v":0},{"$f":"Y82*Input!$F476","v":0},{"$f":"Z82*Input!$F476","v":0},null,null,null,null,"Administrative services only/administrative services contract",{"$f":"AA82*Input!$G476","v":0},{"$f":"AB82*Input!$G476","v":0},{"$f":"AC82*Input!$G476","v":0},{"$f":"AD82*Input!$G476","v":0},null,null,"Administrative services only/administrative services contract","Health",2,{"$f":"_xlfn.XLOOKUP($V82,'Risk Charges'!$C$117:$C$128,'Risk Charges'!D$117:D$128,,0)","v":8.3000000000000004E-2},{"$f":"_xlfn.XLOOKUP($V82,'Risk Charges'!$C$117:$C$128,'Risk Charges'!E$117:E$128,,0)","v":7.0000000000000007E-2},{"$f":"_xlfn.XLOOKUP($V82,'Risk Charges'!$C$117:$C$128,'Risk Charges'!F$117:F$128,,0)","v":0.06},{"$f":"_xlfn.XLOOKUP($V82,'Risk Charges'!$C$117:$C$128,'Risk Charges'!G$117:G$128,,0)","v":0.05},{"$f":"_xlfn.XLOOKUP($V82,'Risk Charges'!$C$132:$C$143,'Risk Charges'!D$132:D$143,,0)","v":0.104},{"$f":"_xlfn.XLOOKUP($V82,'Risk Charges'!$C$132:$C$143,'Risk Charges'!E$132:E$143,,0)","v":8.7999999999999995E-2},{"$f":"_xlfn.XLOOKUP($V82,'Risk Charges'!$C$132:$C$143,'Risk Charges'!F$132:F$143,,0)","v":7.4999999999999997E-2},{"$f":"_xlfn.XLOOKUP($V82,'Risk Charges'!$C$132:$C$143,'Risk Charges'!G$132:G$143,,0)","v":6.3E-2}]
[null,null,null,"Full risk and experience rated group and individual health",{"$f":"W83*Input!$F477","v":0},{"$f":"X83*Input!$F477","v":0},{"$f":"Y83*Input!$F477","v":0},{"$f":"Z83*Input!$F477","v":0},null,null,null,null,"Full risk and experience rated group and individual health",{"$f":"AA83*Input!$G477","v":0},{"$f":"AB83*Input!$G477","v":0},{"$f":"AC83*Input!$G477","v":0},{"$f":"AD83*Input!$G477","v":0},null,null,"Full risk and experience rated group and individual health","Health",3,{"$f":"_xlfn.XLOOKUP($V83,'Risk Charges'!$C$117:$C$128,'Risk Charges'!D$117:D$128,,0)","v":0.124},{"$f":"_xlfn.XLOOKUP($V83,'Risk Charges'!$C$117:$C$128,'Risk Charges'!E$117:E$128,,0)","v":0.105},{"$f":"_xlfn.XLOOKUP($V83,'Risk Charges'!$C$117:$C$128,'Risk Charges'!F$117:F$128,,0)","v":0.09},{"$f":"_xlfn.XLOOKUP($V83,'Risk Charges'!$C$117:$C$128,'Risk Charges'!G$117:G$128,,0)","v":7.4999999999999997E-2},{"$f":"_xlfn.XLOOKUP($V83,'Risk Charges'!$C$132:$C$143,'Risk Charges'!D$132:D$143,,0)","v":0.155},{"$f":"_xlfn.XLOOKUP($V83,'Risk Charges'!$C$132:$C$143,'Risk Charges'!E$132:E$143,,0)","v":0.13100000000000001},{"$f":"_xlfn.XLOOKUP($V83,'Risk Charges'!$C$132:$C$143,'Risk Charges'!F$132:F$143,,0)","v":0.113},{"$f":"_xlfn.XLOOKUP($V83,'Risk Charges'!$C$132:$C$143,'Risk Charges'!G$132:G$143,,0)","v":9.4E-2}]
[null,null,null,"Dental and vision",{"$f":"W84*Input!$F478","v":0},{"$f":"X84*Input!$F478","v":0},{"$f":"Y84*Input!$F478","v":0},{"$f":"Z84*Input!$F478","v":0},null,null,null,null,"Dental and vision",{"$f":"AA84*Input!$G478","v":0},{"$f":"AB84*Input!$G478","v":0},{"$f":"AC84*Input!$G478","v":0},{"$f":"AD84*Input!$G478","v":0},null,null,"Dental and vision","Health",2,{"$f":"_xlfn.XLOOKUP($V84,'Risk Charges'!$C$117:$C$128,'Risk Charges'!D$117:D$128,,0)","v":8.3000000000000004E-2},{"$f":"_xlfn.XLOOKUP($V84,'Risk Charges'!$C$117:$C$128,'Risk Charges'!E$117:E$128,,0)","v":7.0000000000000007E-2},{"$f":"_xlfn.XLOOKUP($V84,'Risk Charges'!$C$117:$C$128,'Risk Charges'!F$117:F$128,,0)","v":0.06},{"$f":"_xlfn.XLOOKUP($V84,'Risk Charges'!$C$117:$C$128,'Risk Charges'!G$117:G$128,,0)","v":0.05},{"$f":"_xlfn.XLOOKUP($V84,'Risk Charges'!$C$132:$C$143,'Risk Charges'!D$132:D$143,,0)","v":0.104},{"$f":"_xlfn.XLOOKUP($V84,'Risk Charges'!$C$132:$C$143,'Risk Charges'!E$132:E$143,,0)","v":8.7999999999999995E-2},{"$f":"_xlfn.XLOOKUP($V84,'Risk Charges'!$C$132:$C$143,'Risk Charges'!F$132:F$143,,0)","v":7.4999999999999997E-2},{"$f":"_xlfn.XLOOKUP($V84,'Risk Charges'!$C$132:$C$143,'Risk Charges'!G$132:G$143,,0)","v":6.3E-2}]
[null,null,null,"Federal employee health benefit program",{"$f":"W85*Input!$F479","v":0},{"$f":"X85*Input!$F479","v":0},{"$f":"Y85*Input!$F479","v":0},{"$f":"Z85*Input!$F479","v":0},null,null,null,null,"Federal employee health benefit program",{"$f":"AA85*Input!$G479","v":0},{"$f":"AB85*Input!$G479","v":0},{"$f":"AC85*Input!$G479","v":0},{"$f":"AD85*Input!$G479","v":0},null,null,"Federal employee health benefit program","Health",1,{"$f":"_xlfn.XLOOKUP($V85,'Risk Charges'!$C$117:$C$128,'Risk Charges'!D$117:D$128,,0)","v":4.1000000000000002E-2},{"$f":"_xlfn.XLOOKUP($V85,'Risk Charges'!$C$117:$C$128,'Risk Charges'!E$117:E$128,,0)","v":3.5000000000000003E-2},{"$f":"_xlfn.XLOOKUP($V85,'Risk Charges'!$C$117:$C$128,'Risk Charges'!F$117:F$128,,0)","v":0.03},{"$f":"_xlfn.XLOOKUP($V85,'Risk Charges'!$C$117:$C$128,'Risk Charges'!G$117:G$128,,0)","v":2.5000000000000001E-2},{"$f":"_xlfn.XLOOKUP($V85,'Risk Charges'!$C$132:$C$143,'Risk Charges'!D$132:D$143,,0)","v":5.0999999999999997E-2},{"$f":"_xlfn.XLOOKUP($V85,'Risk Charges'!$C$132:$C$143,'Risk Charges'!E$132:E$143,,0)","v":4.3999999999999997E-2},{"$f":"_xlfn.XLOOKUP($V85,'Risk Charges'!$C$132:$C$143,'Risk Charges'!F$132:F$143,,0)","v":3.7999999999999999E-2},{"$f":"_xlfn.XLOOKUP($V85,'Risk Charges'!$C$132:$C$143,'Risk Charges'!G$132:G$143,,0)","v":3.1E-2}]
[null,null,null,"Hospital indemnity, accidental death & dismemberment, specified disease, and other limited benefits",{"$f":"W86*Input!$F480","v":0},{"$f":"X86*Input!$F480","v":0},{"$f":"Y86*Input!$F480","v":0},{"$f":"Z86*Input!$F480","v":0},null,null,null,null,"Hospital indemnity, accidental death & dismemberment, specified disease, and other limited benefits",{"$f":"AA86*Input!$G480","v":0},{"$f":"AB86*Input!$G480","v":0},{"$f":"AC86*Input!$G480","v":0},{"$f":"AD86*Input!$G480","v":0},null,null,"Hospital indemnity, accidental death & dismemberment, specified disease, and other limited benefits","Health",3,{"$f":"_xlfn.XLOOKUP($V86,'Risk Charges'!$C$117:$C$128,'Risk Charges'!D$117:D$128,,0)","v":0.124},{"$f":"_xlfn.XLOOKUP($V86,'Risk Charges'!$C$117:$C$128,'Risk Charges'!E$117:E$128,,0)","v":0.105},{"$f":"_xlfn.XLOOKUP($V86,'Risk Charges'!$C$117:$C$128,'Risk Charges'!F$117:F$128,,0)","v":0.09},{"$f":"_xlfn.XLOOKUP($V86,'Risk Charges'!$C$117:$C$128,'Risk Charges'!G$117:G$128,,0)","v":7.4999999999999997E-2},{"$f":"_xlfn.XLOOKUP($V86,'Risk Charges'!$C$132:$C$143,'Risk Charges'!D$132:D$143,,0)","v":0.155},{"$f":"_xlfn.XLOOKUP($V86,'Risk Charges'!$C$132:$C$143,'Risk Charges'!E$132:E$143,,0)","v":0.13100000000000001},{"$f":"_xlfn.XLOOKUP($V86,'Risk Charges'!$C$132:$C$143,'Risk Charges'!F$132:F$143,,0)","v":0.113},{"$f":"_xlfn.XLOOKUP($V86,'Risk Charges'!$C$132:$C$143,'Risk Charges'!G$132:G$143,,0)","v":9.4E-2}]
[null,null,null,"Medicare and Medicaid",{"$f":"W87*Input!$F481","v":0},{"$f":"X87*Input!$F481","v":0},{"$f":"Y87*Input!$F481","v":0},{"$f":"Z87*Input!$F481","v":0},null,null,null,null,"Medicare and Medicaid",{"$f":"AA87*Input!$G481","v":0},{"$f":"AB87*Input!$G481","v":0},{"$f":"AC87*Input!$G481","v":0},{"$f":"AD87*Input!$G481","v":0},null,null,"Medicare and Medicaid","Health",3,{"$f":"_xlfn.XLOOKUP($V87,'Risk Charges'!$C$117:$C$128,'Risk Charges'!D$117:D$128,,0)","v":0.124},{"$f":"_xlfn.XLOOKUP($V87,'Risk Charges'!$C$117:$C$128,'Risk Charges'!E$117:E$128,,0)","v":0.105},{"$f":"_xlfn.XLOOKUP($V87,'Risk Charges'!$C$117:$C$128,'Risk Charges'!F$117:F$128,,0)","v":0.09},{"$f":"_xlfn.XLOOKUP($V87,'Risk Charges'!$C$117:$C$128,'Risk Charges'!G$117:G$128,,0)","v":7.4999999999999997E-2},{"$f":"_xlfn.XLOOKUP($V87,'Risk Charges'!$C$132:$C$143,'Risk Charges'!D$132:D$143,,0)","v":0.155},{"$f":"_xlfn.XLOOKUP($V87,'Risk Charges'!$C$132:$C$143,'Risk Charges'!E$132:E$143,,0)","v":0.13100000000000001},{"$f":"_xlfn.XLOOKUP($V87,'Risk Charges'!$C$132:$C$143,'Risk Charges'!F$132:F$143,,0)","v":0.113},{"$f":"_xlfn.XLOOKUP($V87,'Risk Charges'!$C$132:$C$143,'Risk Charges'!G$132:G$143,,0)","v":9.4E-2}]
[null,null,null,"Medicare Part D (all other)",{"$f":"W88*Input!$F482","v":0},{"$f":"X88*Input!$F482","v":0},{"$f":"Y88*Input!$F482","v":0},{"$f":"Z88*Input!$F482","v":0},null,null,null,null,"Medicare Part D (all other)",{"$f":"AA88*Input!$G482","v":0},{"$f":"AB88*Input!$G482","v":0},{"$f":"AC88*Input!$G482","v":0},{"$f":"AD88*Input!$G482","v":0},null,null,"Medicare Part D (all other)","Health",4,{"$f":"_xlfn.XLOOKUP($V88,'Risk Charges'!$C$117:$C$128,'Risk Charges'!D$117:D$128,,0)","v":0.16500000000000001},{"$f":"_xlfn.XLOOKUP($V88,'Risk Charges'!$C$117:$C$128,'Risk Charges'!E$117:E$128,,0)","v":0.14000000000000001},{"$f":"_xlfn.XLOOKUP($V88,'Risk Charges'!$C$117:$C$128,'Risk Charges'!F$117:F$128,,0)","v":0.12},{"$f":"_xlfn.XLOOKUP($V88,'Risk Charges'!$C$117:$C$128,'Risk Charges'!G$117:G$128,,0)","v":0.1},{"$f":"_xlfn.XLOOKUP($V88,'Risk Charges'!$C$132:$C$143,'Risk Charges'!D$132:D$143,,0)","v":0.20599999999999999},{"$f":"_xlfn.XLOOKUP($V88,'Risk Charges'!$C$132:$C$143,'Risk Charges'!E$132:E$143,,0)","v":0.17499999999999999},{"$f":"_xlfn.XLOOKUP($V88,'Risk Charges'!$C$132:$C$143,'Risk Charges'!F$132:F$143,,0)","v":0.15},{"$f":"_xlfn.XLOOKUP($V88,'Risk Charges'!$C$132:$C$143,'Risk Charges'!G$132:G$143,,0)","v":0.125}]
[null,null,null,"Medicare Part D (risk corridor only)",{"$f":"W89*Input!$F483","v":0},{"$f":"X89*Input!$F483","v":0},{"$f":"Y89*Input!$F483","v":0},{"$f":"Z89*Input!$F483","v":0},null,null,null,null,"Medicare Part D (risk corridor only)",{"$f":"AA89*Input!$G483","v":0},{"$f":"AB89*Input!$G483","v":0},{"$f":"AC89*Input!$G483","v":0},{"$f":"AD89*Input!$G483","v":0},null,null,"Medicare Part D (risk corridor only)","Health",3,{"$f":"_xlfn.XLOOKUP($V89,'Risk Charges'!$C$117:$C$128,'Risk Charges'!D$117:D$128,,0)","v":0.124},{"$f":"_xlfn.XLOOKUP($V89,'Risk Charges'!$C$117:$C$128,'Risk Charges'!E$117:E$128,,0)","v":0.105},{"$f":"_xlfn.XLOOKUP($V89,'Risk Charges'!$C$117:$C$128,'Risk Charges'!F$117:F$128,,0)","v":0.09},{"$f":"_xlfn.XLOOKUP($V89,'Risk Charges'!$C$117:$C$128,'Risk Charges'!G$117:G$128,,0)","v":7.4999999999999997E-2},{"$f":"_xlfn.XLOOKUP($V89,'Risk Charges'!$C$132:$C$143,'Risk Charges'!D$132:D$143,,0)","v":0.155},{"$f":"_xlfn.XLOOKUP($V89,'Risk Charges'!$C$132:$C$143,'Risk Charges'!E$132:E$143,,0)","v":0.13100000000000001},{"$f":"_xlfn.XLOOKUP($V89,'Risk Charges'!$C$132:$C$143,'Risk Charges'!F$132:F$143,,0)","v":0.113},{"$f":"_xlfn.XLOOKUP($V89,'Risk Charges'!$C$132:$C$143,'Risk Charges'!G$132:G$143,,0)","v":9.4E-2}]
[null,null,null,"Medicare Part D (risk corridor and reinsurance)",{"$f":"W90*Input!$F484","v":0},{"$f":"X90*Input!$F484","v":0},{"$f":"Y90*Input!$F484","v":0},{"$f":"Z90*Input!$F484","v":0},null,null,null,null,"Medicare Part D (risk corridor and reinsurance)",{"$f":"AA90*Input!$G484","v":0},{"$f":"AB90*Input!$G484","v":0},{"$f":"AC90*Input!$G484","v":0},{"$f":"AD90*Input!$G484","v":0},null,null,"Medicare Part D (risk corridor and reinsurance)","Health",2,{"$f":"_xlfn.XLOOKUP($V90,'Risk Charges'!$C$117:$C$128,'Risk Charges'!D$117:D$128,,0)","v":8.3000000000000004E-2},{"$f":"_xlfn.XLOOKUP($V90,'Risk Charges'!$C$117:$C$128,'Risk Charges'!E$117:E$128,,0)","v":7.0000000000000007E-2},{"$f":"_xlfn.XLOOKUP($V90,'Risk Charges'!$C$117:$C$128,'Risk Charges'!F$117:F$128,,0)","v":0.06},{"$f":"_xlfn.XLOOKUP($V90,'Risk Charges'!$C$117:$C$128,'Risk Charges'!G$117:G$128,,0)","v":0.05},{"$f":"_xlfn.XLOOKUP($V90,'Risk Charges'!$C$132:$C$143,'Risk Charges'!D$132:D$143,,0)","v":0.104},{"$f":"_xlfn.XLOOKUP($V90,'Risk Charges'!$C$132:$C$143,'Risk Charges'!E$132:E$143,,0)","v":8.7999999999999995E-2},{"$f":"_xlfn.XLOOKUP($V90,'Risk Charges'!$C$132:$C$143,'Risk Charges'!F$132:F$143,,0)","v":7.4999999999999997E-2},{"$f":"_xlfn.XLOOKUP($V90,'Risk Charges'!$C$132:$C$143,'Risk Charges'!G$132:G$143,,0)","v":6.3E-2}]
[null,null,null,"Medicare supplemental",{"$f":"W91*Input!$F485","v":0},{"$f":"X91*Input!$F485","v":0},{"$f":"Y91*Input!$F485","v":0},{"$f":"Z91*Input!$F485","v":0},null,null,null,null,"Medicare supplemental",{"$f":"AA91*Input!$G485","v":0},{"$f":"AB91*Input!$G485","v":0},{"$f":"AC91*Input!$G485","v":0},{"$f":"AD91*Input!$G485","v":0},null,null,"Medicare supplemental","Health",3,{"$f":"_xlfn.XLOOKUP($V91,'Risk Charges'!$C$117:$C$128,'Risk Charges'!D$117:D$128,,0)","v":0.124},{"$f":"_xlfn.XLOOKUP($V91,'Risk Charges'!$C$117:$C$128,'Risk Charges'!E$117:E$128,,0)","v":0.105},{"$f":"_xlfn.XLOOKUP($V91,'Risk Charges'!$C$117:$C$128,'Risk Charges'!F$117:F$128,,0)","v":0.09},{"$f":"_xlfn.XLOOKUP($V91,'Risk Charges'!$C$117:$C$128,'Risk Charges'!G$117:G$128,,0)","v":7.4999999999999997E-2},{"$f":"_xlfn.XLOOKUP($V91,'Risk Charges'!$C$132:$C$143,'Risk Charges'!D$132:D$143,,0)","v":0.155},{"$f":"_xlfn.XLOOKUP($V91,'Risk Charges'!$C$132:$C$143,'Risk Charges'!E$132:E$143,,0)","v":0.13100000000000001},{"$f":"_xlfn.XLOOKUP($V91,'Risk Charges'!$C$132:$C$143,'Risk Charges'!F$132:F$143,,0)","v":0.113},{"$f":"_xlfn.XLOOKUP($V91,'Risk Charges'!$C$132:$C$143,'Risk Charges'!G$132:G$143,,0)","v":9.4E-2}]
[null,null,null,"Other health",{"$f":"W92*Input!$F486","v":0},{"$f":"X92*Input!$F486","v":0},{"$f":"Y92*Input!$F486","v":0},{"$f":"Z92*Input!$F486","v":0},null,null,null,null,"Other health",{"$f":"AA92*Input!$G486","v":0},{"$f":"AB92*Input!$G486","v":0},{"$f":"AC92*Input!$G486","v":0},{"$f":"AD92*Input!$G486","v":0},null,null,"Other health","Health",4,{"$f":"_xlfn.XLOOKUP($V92,'Risk Charges'!$C$117:$C$128,'Risk Charges'!D$117:D$128,,0)","v":0.16500000000000001},{"$f":"_xlfn.XLOOKUP($V92,'Risk Charges'!$C$117:$C$128,'Risk Charges'!E$117:E$128,,0)","v":0.14000000000000001},{"$f":"_xlfn.XLOOKUP($V92,'Risk Charges'!$C$117:$C$128,'Risk Charges'!F$117:F$128,,0)","v":0.12},{"$f":"_xlfn.XLOOKUP($V92,'Risk Charges'!$C$117:$C$128,'Risk Charges'!G$117:G$128,,0)","v":0.1},{"$f":"_xlfn.XLOOKUP($V92,'Risk Charges'!$C$132:$C$143,'Risk Charges'!D$132:D$143,,0)","v":0.20599999999999999},{"$f":"_xlfn.XLOOKUP($V92,'Risk Charges'!$C$132:$C$143,'Risk Charges'!E$132:E$143,,0)","v":0.17499999999999999},{"$f":"_xlfn.XLOOKUP($V92,'Risk Charges'!$C$132:$C$143,'Risk Charges'!F$132:F$143,,0)","v":0.15},{"$f":"_xlfn.XLOOKUP($V92,'Risk Charges'!$C$132:$C$143,'Risk Charges'!G$132:G$143,,0)","v":0.125}]
[null,null,null,"Aircraft",{"$f":"W93*Input!$F487","v":0},{"$f":"X93*Input!$F487","v":0},{"$f":"Y93*Input!$F487","v":0},{"$f":"Z93*Input!$F487","v":0},null,null,null,null,"Aircraft",{"$f":"AA93*Input!$G487","v":0},{"$f":"AB93*Input!$G487","v":0},{"$f":"AC93*Input!$G487","v":0},{"$f":"AD93*Input!$G487","v":0},null,null,"Aircraft","MAT",10,{"$f":"_xlfn.XLOOKUP($V93,'Risk Charges'!$C$117:$C$128,'Risk Charges'!D$117:D$128,,0)","v":0.66},{"$f":"_xlfn.XLOOKUP($V93,'Risk Charges'!$C$117:$C$128,'Risk Charges'!E$117:E$128,,0)","v":0.56000000000000005},{"$f":"_xlfn.XLOOKUP($V93,'Risk Charges'!$C$117:$C$128,'Risk Charges'!F$117:F$128,,0)","v":0.48},{"$f":"_xlfn.XLOOKUP($V93,'Risk Charges'!$C$117:$C$128,'Risk Charges'!G$117:G$128,,0)","v":0.4},{"$f":"_xlfn.XLOOKUP($V93,'Risk Charges'!$C$132:$C$143,'Risk Charges'!D$132:D$143,,0)","v":0.82499999999999996},{"$f":"_xlfn.XLOOKUP($V93,'Risk Charges'!$C$132:$C$143,'Risk Charges'!E$132:E$143,,0)","v":0.7},{"$f":"_xlfn.XLOOKUP($V93,'Risk Charges'!$C$132:$C$143,'Risk Charges'!F$132:F$143,,0)","v":0.6},{"$f":"_xlfn.XLOOKUP($V93,'Risk Charges'!$C$132:$C$143,'Risk Charges'!G$132:G$143,,0)","v":0.5}]
[null,null,null,"Marine protection & indemnity",{"$f":"W94*Input!$F488","v":0},{"$f":"X94*Input!$F488","v":0},{"$f":"Y94*Input!$F488","v":0},{"$f":"Z94*Input!$F488","v":0},null,null,null,null,"Marine protection & indemnity",{"$f":"AA94*Input!$G488","v":0},{"$f":"AB94*Input!$G488","v":0},{"$f":"AC94*Input!$G488","v":0},{"$f":"AD94*Input!$G488","v":0},null,null,"Marine protection & indemnity","MAT",8,{"$f":"_xlfn.XLOOKUP($V94,'Risk Charges'!$C$117:$C$128,'Risk Charges'!D$117:D$128,,0)","v":0.495},{"$f":"_xlfn.XLOOKUP($V94,'Risk Charges'!$C$117:$C$128,'Risk Charges'!E$117:E$128,,0)","v":0.42},{"$f":"_xlfn.XLOOKUP($V94,'Risk Charges'!$C$117:$C$128,'Risk Charges'!F$117:F$128,,0)","v":0.36},{"$f":"_xlfn.XLOOKUP($V94,'Risk Charges'!$C$117:$C$128,'Risk Charges'!G$117:G$128,,0)","v":0.3},{"$f":"_xlfn.XLOOKUP($V94,'Risk Charges'!$C$132:$C$143,'Risk Charges'!D$132:D$143,,0)","v":0.61899999999999999},{"$f":"_xlfn.XLOOKUP($V94,'Risk Charges'!$C$132:$C$143,'Risk Charges'!E$132:E$143,,0)","v":0.52500000000000002},{"$f":"_xlfn.XLOOKUP($V94,'Risk Charges'!$C$132:$C$143,'Risk Charges'!F$132:F$143,,0)","v":0.45},{"$f":"_xlfn.XLOOKUP($V94,'Risk Charges'!$C$132:$C$143,'Risk Charges'!G$132:G$143,,0)","v":0.375}]
[null,null,null,"Ocean marine",{"$f":"W95*Input!$F489","v":0},{"$f":"X95*Input!$F489","v":0},{"$f":"Y95*Input!$F489","v":0},{"$f":"Z95*Input!$F489","v":0},null,null,null,null,"Ocean marine",{"$f":"AA95*Input!$G489","v":0},{"$f":"AB95*Input!$G489","v":0},{"$f":"AC95*Input!$G489","v":0},{"$f":"AD95*Input!$G489","v":0},null,null,"Ocean marine","MAT",6,{"$f":"_xlfn.XLOOKUP($V95,'Risk Charges'!$C$117:$C$128,'Risk Charges'!D$117:D$128,,0)","v":0.33},{"$f":"_xlfn.XLOOKUP($V95,'Risk Charges'!$C$117:$C$128,'Risk Charges'!E$117:E$128,,0)","v":0.28000000000000003},{"$f":"_xlfn.XLOOKUP($V95,'Risk Charges'!$C$117:$C$128,'Risk Charges'!F$117:F$128,,0)","v":0.24},{"$f":"_xlfn.XLOOKUP($V95,'Risk Charges'!$C$117:$C$128,'Risk Charges'!G$117:G$128,,0)","v":0.2},{"$f":"_xlfn.XLOOKUP($V95,'Risk Charges'!$C$132:$C$143,'Risk Charges'!D$132:D$143,,0)","v":0.41299999999999998},{"$f":"_xlfn.XLOOKUP($V95,'Risk Charges'!$C$132:$C$143,'Risk Charges'!E$132:E$143,,0)","v":0.35},{"$f":"_xlfn.XLOOKUP($V95,'Risk Charges'!$C$132:$C$143,'Risk Charges'!F$132:F$143,,0)","v":0.3},{"$f":"_xlfn.XLOOKUP($V95,'Risk Charges'!$C$132:$C$143,'Risk Charges'!G$132:G$143,,0)","v":0.25}]
[null,null,null,"Title",{"$f":"W96*Input!$F490","v":0},{"$f":"X96*Input!$F490","v":0},{"$f":"Y96*Input!$F490","v":0},{"$f":"Z96*Input!$F490","v":0},null,null,null,null,"Title",{"$f":"AA96*Input!$G490","v":0},{"$f":"AB96*Input!$G490","v":0},{"$f":"AC96*Input!$G490","v":0},{"$f":"AD96*Input!$G490","v":0},null,null,"Title","Other",5,{"$f":"_xlfn.XLOOKUP($V96,'Risk Charges'!$C$117:$C$128,'Risk Charges'!D$117:D$128,,0)","v":0.248},{"$f":"_xlfn.XLOOKUP($V96,'Risk Charges'!$C$117:$C$128,'Risk Charges'!E$117:E$128,,0)","v":0.21},{"$f":"_xlfn.XLOOKUP($V96,'Risk Charges'!$C$117:$C$128,'Risk Charges'!F$117:F$128,,0)","v":0.18},{"$f":"_xlfn.XLOOKUP($V96,'Risk Charges'!$C$117:$C$128,'Risk Charges'!G$117:G$128,,0)","v":0.15},{"$f":"_xlfn.XLOOKUP($V96,'Risk Charges'!$C$132:$C$143,'Risk Charges'!D$132:D$143,,0)","v":0.31},{"$f":"_xlfn.XLOOKUP($V96,'Risk Charges'!$C$132:$C$143,'Risk Charges'!E$132:E$143,,0)","v":0.26300000000000001},{"$f":"_xlfn.XLOOKUP($V96,'Risk Charges'!$C$132:$C$143,'Risk Charges'!F$132:F$143,,0)","v":0.22500000000000001},{"$f":"_xlfn.XLOOKUP($V96,'Risk Charges'!$C$132:$C$143,'Risk Charges'!G$132:G$143,,0)","v":0.188}]
[null,null,null,"Warranty",{"$f":"W97*Input!$F491","v":0},{"$f":"X97*Input!$F491","v":0},{"$f":"Y97*Input!$F491","v":0},{"$f":"Z97*Input!$F491","v":0},null,null,null,null,"Warranty",{"$f":"AA97*Input!$G491","v":0},{"$f":"AB97*Input!$G491","v":0},{"$f":"AC97*Input!$G491","v":0},{"$f":"AD97*Input!$G491","v":0},null,null,"Warranty","Other",6,{"$f":"_xlfn.XLOOKUP($V97,'Risk Charges'!$C$117:$C$128,'Risk Charges'!D$117:D$128,,0)","v":0.33},{"$f":"_xlfn.XLOOKUP($V97,'Risk Charges'!$C$117:$C$128,'Risk Charges'!E$117:E$128,,0)","v":0.28000000000000003},{"$f":"_xlfn.XLOOKUP($V97,'Risk Charges'!$C$117:$C$128,'Risk Charges'!F$117:F$128,,0)","v":0.24},{"$f":"_xlfn.XLOOKUP($V97,'Risk Charges'!$C$117:$C$128,'Risk Charges'!G$117:G$128,,0)","v":0.2},{"$f":"_xlfn.XLOOKUP($V97,'Risk Charges'!$C$132:$C$143,'Risk Charges'!D$132:D$143,,0)","v":0.41299999999999998},{"$f":"_xlfn.XLOOKUP($V97,'Risk Charges'!$C$132:$C$143,'Risk Charges'!E$132:E$143,,0)","v":0.35},{"$f":"_xlfn.XLOOKUP($V97,'Risk Charges'!$C$132:$C$143,'Risk Charges'!F$132:F$143,,0)","v":0.3},{"$f":"_xlfn.XLOOKUP($V97,'Risk Charges'!$C$132:$C$143,'Risk Charges'!G$132:G$143,,0)","v":0.25}]
[null,null,null,"Other",{"$f":"W98*Input!$F492","v":0},{"$f":"X98*Input!$F492","v":0},{"$f":"Y98*Input!$F492","v":0},{"$f":"Z98*Input!$F492","v":0},null,null,null,null,"Other",{"$f":"AA98*Input!$G492","v":0},{"$f":"AB98*Input!$G492","v":0},{"$f":"AC98*Input!$G492","v":0},{"$f":"AD98*Input!$G492","v":0},null,null,"Other","Other",12,{"$f":"_xlfn.XLOOKUP($V98,'Risk Charges'!$C$117:$C$128,'Risk Charges'!D$117:D$128,,0)","v":0.99},{"$f":"_xlfn.XLOOKUP($V98,'Risk Charges'!$C$117:$C$128,'Risk Charges'!E$117:E$128,,0)","v":0.84},{"$f":"_xlfn.XLOOKUP($V98,'Risk Charges'!$C$117:$C$128,'Risk Charges'!F$117:F$128,,0)","v":0.72},{"$f":"_xlfn.XLOOKUP($V98,'Risk Charges'!$C$117:$C$128,'Risk Charges'!G$117:G$128,,0)","v":0.6},{"$f":"_xlfn.XLOOKUP($V98,'Risk Charges'!$C$132:$C$143,'Risk Charges'!D$132:D$143,,0)","v":1.238},{"$f":"_xlfn.XLOOKUP($V98,'Risk Charges'!$C$132:$C$143,'Risk Charges'!E$132:E$143,,0)","v":1.05},{"$f":"_xlfn.XLOOKUP($V98,'Risk Charges'!$C$132:$C$143,'Risk Charges'!F$132:F$143,,0)","v":0.9},{"$f":"_xlfn.XLOOKUP($V98,'Risk Charges'!$C$132:$C$143,'Risk Charges'!G$132:G$143,,0)","v":0.75}]
[null,"Canadian Risks",null,null,null,null,null,null,null,null,"Canadian Risks",null,null,null,null,null,null,null,"Canadian Risks"]
[null,null,null,{"$f":"T100","v":"Liability"},{"$f":"W100*Input!$F494","v":0},{"$f":"X100*Input!$F494","v":0},{"$f":"Y100*Input!$F494","v":0},{"$f":"Z100*Input!$F494","v":0},null,null,null,null,{"$f":"T100","v":"Liability"},{"$f":"AA100*Input!$G494","v":0},{"$f":"AB100*Input!$G494","v":0},{"$f":"AC100*Input!$G494","v":0},{"$f":"AD100*Input!$G494","v":0},null,null,"Liability","Liability",8,{"$f":"_xlfn.XLOOKUP($V100,'Risk Charges'!$C$117:$C$128,'Risk Charges'!D$117:D$128,,0)","v":0.495},{"$f":"_xlfn.XLOOKUP($V100,'Risk Charges'!$C$117:$C$128,'Risk Charges'!E$117:E$128,,0)","v":0.42},{"$f":"_xlfn.XLOOKUP($V100,'Risk Charges'!$C$117:$C$128,'Risk Charges'!F$117:F$128,,0)","v":0.36},{"$f":"_xlfn.XLOOKUP($V100,'Risk Charges'!$C$117:$C$128,'Risk Charges'!G$117:G$128,,0)","v":0.3},{"$f":"_xlfn.XLOOKUP($V100,'Risk Charges'!$C$132:$C$143,'Risk Charges'!D$132:D$143,,0)","v":0.61899999999999999},{"$f":"_xlfn.XLOOKUP($V100,'Risk Charges'!$C$132:$C$143,'Risk Charges'!E$132:E$143,,0)","v":0.52500000000000002},{"$f":"_xlfn.XLOOKUP($V100,'Risk Charges'!$C$132:$C$143,'Risk Charges'!F$132:F$143,,0)","v":0.45},{"$f":"_xlfn.XLOOKUP($V100,'Risk Charges'!$C$132:$C$143,'Risk Charges'!G$132:G$143,,0)","v":0.375}]
[null,null,null,"Boiler & machinery",{"$f":"W101*Input!$F495","v":0},{"$f":"X101*Input!$F495","v":0},{"$f":"Y101*Input!$F495","v":0},{"$f":"Z101*Input!$F495","v":0},null,null,null,null,"Boiler & machinery",{"$f":"AA101*Input!$G495","v":0},{"$f":"AB101*Input!$G495","v":0},{"$f":"AC101*Input!$G495","v":0},{"$f":"AD101*Input!$G495","v":0},null,null,"Boiler & machinery","Property",6,{"$f":"_xlfn.XLOOKUP($V101,'Risk Charges'!$C$117:$C$128,'Risk Charges'!D$117:D$128,,0)","v":0.33},{"$f":"_xlfn.XLOOKUP($V101,'Risk Charges'!$C$117:$C$128,'Risk Charges'!E$117:E$128,,0)","v":0.28000000000000003},{"$f":"_xlfn.XLOOKUP($V101,'Risk Charges'!$C$117:$C$128,'Risk Charges'!F$117:F$128,,0)","v":0.24},{"$f":"_xlfn.XLOOKUP($V101,'Risk Charges'!$C$117:$C$128,'Risk Charges'!G$117:G$128,,0)","v":0.2},{"$f":"_xlfn.XLOOKUP($V101,'Risk Charges'!$C$132:$C$143,'Risk Charges'!D$132:D$143,,0)","v":0.41299999999999998},{"$f":"_xlfn.XLOOKUP($V101,'Risk Charges'!$C$132:$C$143,'Risk Charges'!E$132:E$143,,0)","v":0.35},{"$f":"_xlfn.XLOOKUP($V101,'Risk Charges'!$C$132:$C$143,'Risk Charges'!F$132:F$143,,0)","v":0.3},{"$f":"_xlfn.XLOOKUP($V101,'Risk Charges'!$C$132:$C$143,'Risk Charges'!G$132:G$143,,0)","v":0.25}]
[null,null,null,"Commercial property",{"$f":"W102*Input!$F496","v":0},{"$f":"X102*Input!$F496","v":0},{"$f":"Y102*Input!$F496","v":0},{"$f":"Z102*Input!$F496","v":0},null,null,null,null,"Commercial property",{"$f":"AA102*Input!$G496","v":0},{"$f":"AB102*Input!$G496","v":0},{"$f":"AC102*Input!$G496","v":0},{"$f":"AD102*Input!$G496","v":0},null,null,"Commercial property","Property",6,{"$f":"_xlfn.XLOOKUP($V102,'Risk Charges'!$C$117:$C$128,'Risk Charges'!D$117:D$128,,0)","v":0.33},{"$f":"_xlfn.XLOOKUP($V102,'Risk Charges'!$C$117:$C$128,'Risk Charges'!E$117:E$128,,0)","v":0.28000000000000003},{"$f":"_xlfn.XLOOKUP($V102,'Risk Charges'!$C$117:$C$128,'Risk Charges'!F$117:F$128,,0)","v":0.24},{"$f":"_xlfn.XLOOKUP($V102,'Risk Charges'!$C$117:$C$128,'Risk Charges'!G$117:G$128,,0)","v":0.2},{"$f":"_xlfn.XLOOKUP($V102,'Risk Charges'!$C$132:$C$143,'Risk Charges'!D$132:D$143,,0)","v":0.41299999999999998},{"$f":"_xlfn.XLOOKUP($V102,'Risk Charges'!$C$132:$C$143,'Risk Charges'!E$132:E$143,,0)","v":0.35},{"$f":"_xlfn.XLOOKUP($V102,'Risk Charges'!$C$132:$C$143,'Risk Charges'!F$132:F$143,,0)","v":0.3},{"$f":"_xlfn.XLOOKUP($V102,'Risk Charges'!$C$132:$C$143,'Risk Charges'!G$132:G$143,,0)","v":0.25}]
[null,null,null,"Hail",{"$f":"W103*Input!$F497","v":0},{"$f":"X103*Input!$F497","v":0},{"$f":"Y103*Input!$F497","v":0},{"$f":"Z103*Input!$F497","v":0},null,null,null,null,"Hail",{"$f":"AA103*Input!$G497","v":0},{"$f":"AB103*Input!$G497","v":0},{"$f":"AC103*Input!$G497","v":0},{"$f":"AD103*Input!$G497","v":0},null,null,"Hail","Property",7,{"$f":"_xlfn.XLOOKUP($V103,'Risk Charges'!$C$117:$C$128,'Risk Charges'!D$117:D$128,,0)","v":0.41299999999999998},{"$f":"_xlfn.XLOOKUP($V103,'Risk Charges'!$C$117:$C$128,'Risk Charges'!E$117:E$128,,0)","v":0.35},{"$f":"_xlfn.XLOOKUP($V103,'Risk Charges'!$C$117:$C$128,'Risk Charges'!F$117:F$128,,0)","v":0.3},{"$f":"_xlfn.XLOOKUP($V103,'Risk Charges'!$C$117:$C$128,'Risk Charges'!G$117:G$128,,0)","v":0.25},{"$f":"_xlfn.XLOOKUP($V103,'Risk Charges'!$C$132:$C$143,'Risk Charges'!D$132:D$143,,0)","v":0.51600000000000001},{"$f":"_xlfn.XLOOKUP($V103,'Risk Charges'!$C$132:$C$143,'Risk Charges'!E$132:E$143,,0)","v":0.438},{"$f":"_xlfn.XLOOKUP($V103,'Risk Charges'!$C$132:$C$143,'Risk Charges'!F$132:F$143,,0)","v":0.375},{"$f":"_xlfn.XLOOKUP($V103,'Risk Charges'!$C$132:$C$143,'Risk Charges'!G$132:G$143,,0)","v":0.313}]
[null,null,null,"Personal property",{"$f":"W104*Input!$F498","v":0},{"$f":"X104*Input!$F498","v":0},{"$f":"Y104*Input!$F498","v":0},{"$f":"Z104*Input!$F498","v":0},null,null,null,null,"Personal property",{"$f":"AA104*Input!$G498","v":0},{"$f":"AB104*Input!$G498","v":0},{"$f":"AC104*Input!$G498","v":0},{"$f":"AD104*Input!$G498","v":0},null,null,"Personal property","Property",6,{"$f":"_xlfn.XLOOKUP($V104,'Risk Charges'!$C$117:$C$128,'Risk Charges'!D$117:D$128,,0)","v":0.33},{"$f":"_xlfn.XLOOKUP($V104,'Risk Charges'!$C$117:$C$128,'Risk Charges'!E$117:E$128,,0)","v":0.28000000000000003},{"$f":"_xlfn.XLOOKUP($V104,'Risk Charges'!$C$117:$C$128,'Risk Charges'!F$117:F$128,,0)","v":0.24},{"$f":"_xlfn.XLOOKUP($V104,'Risk Charges'!$C$117:$C$128,'Risk Charges'!G$117:G$128,,0)","v":0.2},{"$f":"_xlfn.XLOOKUP($V104,'Risk Charges'!$C$132:$C$143,'Risk Charges'!D$132:D$143,,0)","v":0.41299999999999998},{"$f":"_xlfn.XLOOKUP($V104,'Risk Charges'!$C$132:$C$143,'Risk Charges'!E$132:E$143,,0)","v":0.35},{"$f":"_xlfn.XLOOKUP($V104,'Risk Charges'!$C$132:$C$143,'Risk Charges'!F$132:F$143,,0)","v":0.3},{"$f":"_xlfn.XLOOKUP($V104,'Risk Charges'!$C$132:$C$143,'Risk Charges'!G$132:G$143,,0)","v":0.25}]
[null,null,null,"Auto - liability",{"$f":"W105*Input!$F499","v":0},{"$f":"X105*Input!$F499","v":0},{"$f":"Y105*Input!$F499","v":0},{"$f":"Z105*Input!$F499","v":0},null,null,null,null,"Auto - liability",{"$f":"AA105*Input!$G499","v":0},{"$f":"AB105*Input!$G499","v":0},{"$f":"AC105*Input!$G499","v":0},{"$f":"AD105*Input!$G499","v":0},null,null,"Auto - liability","Motor",6,{"$f":"_xlfn.XLOOKUP($V105,'Risk Charges'!$C$117:$C$128,'Risk Charges'!D$117:D$128,,0)","v":0.33},{"$f":"_xlfn.XLOOKUP($V105,'Risk Charges'!$C$117:$C$128,'Risk Charges'!E$117:E$128,,0)","v":0.28000000000000003},{"$f":"_xlfn.XLOOKUP($V105,'Risk Charges'!$C$117:$C$128,'Risk Charges'!F$117:F$128,,0)","v":0.24},{"$f":"_xlfn.XLOOKUP($V105,'Risk Charges'!$C$117:$C$128,'Risk Charges'!G$117:G$128,,0)","v":0.2},{"$f":"_xlfn.XLOOKUP($V105,'Risk Charges'!$C$132:$C$143,'Risk Charges'!D$132:D$143,,0)","v":0.41299999999999998},{"$f":"_xlfn.XLOOKUP($V105,'Risk Charges'!$C$132:$C$143,'Risk Charges'!E$132:E$143,,0)","v":0.35},{"$f":"_xlfn.XLOOKUP($V105,'Risk Charges'!$C$132:$C$143,'Risk Charges'!F$132:F$143,,0)","v":0.3},{"$f":"_xlfn.XLOOKUP($V105,'Risk Charges'!$C$132:$C$143,'Risk Charges'!G$132:G$143,,0)","v":0.25}]
[null,null,null,"Auto - other",{"$f":"W106*Input!$F500","v":0},{"$f":"X106*Input!$F500","v":0},{"$f":"Y106*Input!$F500","v":0},{"$f":"Z106*Input!$F500","v":0},null,null,null,null,"Auto - other",{"$f":"AA106*Input!$G500","v":0},{"$f":"AB106*Input!$G500","v":0},{"$f":"AC106*Input!$G500","v":0},{"$f":"AD106*Input!$G500","v":0},null,null,"Auto - other","Motor",6,{"$f":"_xlfn.XLOOKUP($V106,'Risk Charges'!$C$117:$C$128,'Risk Charges'!D$117:D$128,,0)","v":0.33},{"$f":"_xlfn.XLOOKUP($V106,'Risk Charges'!$C$117:$C$128,'Risk Charges'!E$117:E$128,,0)","v":0.28000000000000003},{"$f":"_xlfn.XLOOKUP($V106,'Risk Charges'!$C$117:$C$128,'Risk Charges'!F$117:F$128,,0)","v":0.24},{"$f":"_xlfn.XLOOKUP($V106,'Risk Charges'!$C$117:$C$128,'Risk Charges'!G$117:G$128,,0)","v":0.2},{"$f":"_xlfn.XLOOKUP($V106,'Risk Charges'!$C$132:$C$143,'Risk Charges'!D$132:D$143,,0)","v":0.41299999999999998},{"$f":"_xlfn.XLOOKUP($V106,'Risk Charges'!$C$132:$C$143,'Risk Charges'!E$132:E$143,,0)","v":0.35},{"$f":"_xlfn.XLOOKUP($V106,'Risk Charges'!$C$132:$C$143,'Risk Charges'!F$132:F$143,,0)","v":0.3},{"$f":"_xlfn.XLOOKUP($V106,'Risk Charges'!$C$132:$C$143,'Risk Charges'!G$132:G$143,,0)","v":0.25}]
[null,null,null,"Auto - personal accident",{"$f":"W107*Input!$F501","v":0},{"$f":"X107*Input!$F501","v":0},{"$f":"Y107*Input!$F501","v":0},{"$f":"Z107*Input!$F501","v":0},null,null,null,null,"Auto - personal accident",{"$f":"AA107*Input!$G501","v":0},{"$f":"AB107*Input!$G501","v":0},{"$f":"AC107*Input!$G501","v":0},{"$f":"AD107*Input!$G501","v":0},null,null,"Auto - personal accident","Motor",6,{"$f":"_xlfn.XLOOKUP($V107,'Risk Charges'!$C$117:$C$128,'Risk Charges'!D$117:D$128,,0)","v":0.33},{"$f":"_xlfn.XLOOKUP($V107,'Risk Charges'!$C$117:$C$128,'Risk Charges'!E$117:E$128,,0)","v":0.28000000000000003},{"$f":"_xlfn.XLOOKUP($V107,'Risk Charges'!$C$117:$C$128,'Risk Charges'!F$117:F$128,,0)","v":0.24},{"$f":"_xlfn.XLOOKUP($V107,'Risk Charges'!$C$117:$C$128,'Risk Charges'!G$117:G$128,,0)","v":0.2},{"$f":"_xlfn.XLOOKUP($V107,'Risk Charges'!$C$132:$C$143,'Risk Charges'!D$132:D$143,,0)","v":0.41299999999999998},{"$f":"_xlfn.XLOOKUP($V107,'Risk Charges'!$C$132:$C$143,'Risk Charges'!E$132:E$143,,0)","v":0.35},{"$f":"_xlfn.XLOOKUP($V107,'Risk Charges'!$C$132:$C$143,'Risk Charges'!F$132:F$143,,0)","v":0.3},{"$f":"_xlfn.XLOOKUP($V107,'Risk Charges'!$C$132:$C$143,'Risk Charges'!G$132:G$143,,0)","v":0.25}]
[null,null,null,"Credit",{"$f":"W108*Input!$F502","v":0},{"$f":"X108*Input!$F502","v":0},{"$f":"Y108*Input!$F502","v":0},{"$f":"Z108*Input!$F502","v":0},null,null,null,null,"Credit",{"$f":"AA108*Input!$G502","v":0},{"$f":"AB108*Input!$G502","v":0},{"$f":"AC108*Input!$G502","v":0},{"$f":"AD108*Input!$G502","v":0},null,null,"Credit","Financial",8,{"$f":"_xlfn.XLOOKUP($V108,'Risk Charges'!$C$117:$C$128,'Risk Charges'!D$117:D$128,,0)","v":0.495},{"$f":"_xlfn.XLOOKUP($V108,'Risk Charges'!$C$117:$C$128,'Risk Charges'!E$117:E$128,,0)","v":0.42},{"$f":"_xlfn.XLOOKUP($V108,'Risk Charges'!$C$117:$C$128,'Risk Charges'!F$117:F$128,,0)","v":0.36},{"$f":"_xlfn.XLOOKUP($V108,'Risk Charges'!$C$117:$C$128,'Risk Charges'!G$117:G$128,,0)","v":0.3},{"$f":"_xlfn.XLOOKUP($V108,'Risk Charges'!$C$132:$C$143,'Risk Charges'!D$132:D$143,,0)","v":0.61899999999999999},{"$f":"_xlfn.XLOOKUP($V108,'Risk Charges'!$C$132:$C$143,'Risk Charges'!E$132:E$143,,0)","v":0.52500000000000002},{"$f":"_xlfn.XLOOKUP($V108,'Risk Charges'!$C$132:$C$143,'Risk Charges'!F$132:F$143,,0)","v":0.45},{"$f":"_xlfn.XLOOKUP($V108,'Risk Charges'!$C$132:$C$143,'Risk Charges'!G$132:G$143,,0)","v":0.375}]
[null,null,null,"Credit protection",{"$f":"W109*Input!$F503","v":0},{"$f":"X109*Input!$F503","v":0},{"$f":"Y109*Input!$F503","v":0},{"$f":"Z109*Input!$F503","v":0},null,null,null,null,"Credit protection",{"$f":"AA109*Input!$G503","v":0},{"$f":"AB109*Input!$G503","v":0},{"$f":"AC109*Input!$G503","v":0},{"$f":"AD109*Input!$G503","v":0},null,null,"Credit protection","Financial",8,{"$f":"_xlfn.XLOOKUP($V109,'Risk Charges'!$C$117:$C$128,'Risk Charges'!D$117:D$128,,0)","v":0.495},{"$f":"_xlfn.XLOOKUP($V109,'Risk Charges'!$C$117:$C$128,'Risk Charges'!E$117:E$128,,0)","v":0.42},{"$f":"_xlfn.XLOOKUP($V109,'Risk Charges'!$C$117:$C$128,'Risk Charges'!F$117:F$128,,0)","v":0.36},{"$f":"_xlfn.XLOOKUP($V109,'Risk Charges'!$C$117:$C$128,'Risk Charges'!G$117:G$128,,0)","v":0.3},{"$f":"_xlfn.XLOOKUP($V109,'Risk Charges'!$C$132:$C$143,'Risk Charges'!D$132:D$143,,0)","v":0.61899999999999999},{"$f":"_xlfn.XLOOKUP($V109,'Risk Charges'!$C$132:$C$143,'Risk Charges'!E$132:E$143,,0)","v":0.52500000000000002},{"$f":"_xlfn.XLOOKUP($V109,'Risk Charges'!$C$132:$C$143,'Risk Charges'!F$132:F$143,,0)","v":0.45},{"$f":"_xlfn.XLOOKUP($V109,'Risk Charges'!$C$132:$C$143,'Risk Charges'!G$132:G$143,,0)","v":0.375}]
[null,null,null,"Fidelity",{"$f":"W110*Input!$F504","v":0},{"$f":"X110*Input!$F504","v":0},{"$f":"Y110*Input!$F504","v":0},{"$f":"Z110*Input!$F504","v":0},null,null,null,null,"Fidelity",{"$f":"AA110*Input!$G504","v":0},{"$f":"AB110*Input!$G504","v":0},{"$f":"AC110*Input!$G504","v":0},{"$f":"AD110*Input!$G504","v":0},null,null,"Fidelity","Financial",7,{"$f":"_xlfn.XLOOKUP($V110,'Risk Charges'!$C$117:$C$128,'Risk Charges'!D$117:D$128,,0)","v":0.41299999999999998},{"$f":"_xlfn.XLOOKUP($V110,'Risk Charges'!$C$117:$C$128,'Risk Charges'!E$117:E$128,,0)","v":0.35},{"$f":"_xlfn.XLOOKUP($V110,'Risk Charges'!$C$117:$C$128,'Risk Charges'!F$117:F$128,,0)","v":0.3},{"$f":"_xlfn.XLOOKUP($V110,'Risk Charges'!$C$117:$C$128,'Risk Charges'!G$117:G$128,,0)","v":0.25},{"$f":"_xlfn.XLOOKUP($V110,'Risk Charges'!$C$132:$C$143,'Risk Charges'!D$132:D$143,,0)","v":0.51600000000000001},{"$f":"_xlfn.XLOOKUP($V110,'Risk Charges'!$C$132:$C$143,'Risk Charges'!E$132:E$143,,0)","v":0.438},{"$f":"_xlfn.XLOOKUP($V110,'Risk Charges'!$C$132:$C$143,'Risk Charges'!F$132:F$143,,0)","v":0.375},{"$f":"_xlfn.XLOOKUP($V110,'Risk Charges'!$C$132:$C$143,'Risk Charges'!G$132:G$143,,0)","v":0.313}]
[null,null,null,"Surety",{"$f":"W111*Input!$F505","v":0},{"$f":"X111*Input!$F505","v":0},{"$f":"Y111*Input!$F505","v":0},{"$f":"Z111*Input!$F505","v":0},null,null,null,null,"Surety",{"$f":"AA111*Input!$G505","v":0},{"$f":"AB111*Input!$G505","v":0},{"$f":"AC111*Input!$G505","v":0},{"$f":"AD111*Input!$G505","v":0},null,null,"Surety","Financial",7,{"$f":"_xlfn.XLOOKUP($V111,'Risk Charges'!$C$117:$C$128,'Risk Charges'!D$117:D$128,,0)","v":0.41299999999999998},{"$f":"_xlfn.XLOOKUP($V111,'Risk Charges'!$C$117:$C$128,'Risk Charges'!E$117:E$128,,0)","v":0.35},{"$f":"_xlfn.XLOOKUP($V111,'Risk Charges'!$C$117:$C$128,'Risk Charges'!F$117:F$128,,0)","v":0.3},{"$f":"_xlfn.XLOOKUP($V111,'Risk Charges'!$C$117:$C$128,'Risk Charges'!G$117:G$128,,0)","v":0.25},{"$f":"_xlfn.XLOOKUP($V111,'Risk Charges'!$C$132:$C$143,'Risk Charges'!D$132:D$143,,0)","v":0.51600000000000001},{"$f":"_xlfn.XLOOKUP($V111,'Risk Charges'!$C$132:$C$143,'Risk Charges'!E$132:E$143,,0)","v":0.438},{"$f":"_xlfn.XLOOKUP($V111,'Risk Charges'!$C$132:$C$143,'Risk Charges'!F$132:F$143,,0)","v":0.375},{"$f":"_xlfn.XLOOKUP($V111,'Risk Charges'!$C$132:$C$143,'Risk Charges'!G$132:G$143,,0)","v":0.313}]
[null,null,null,"Accident & sickness (excluding supplementary health, disability income)",{"$f":"W112*Input!$F506","v":0},{"$f":"X112*Input!$F506","v":0},{"$f":"Y112*Input!$F506","v":0},{"$f":"Z112*Input!$F506","v":0},null,null,null,null,"Accident & sickness (excluding supplementary health, disability income)",{"$f":"AA112*Input!$G506","v":0},{"$f":"AB112*Input!$G506","v":0},{"$f":"AC112*Input!$G506","v":0},{"$f":"AD112*Input!$G506","v":0},null,null,"Accident & sickness (excluding supplementary health, disability income)","Health",6,{"$f":"_xlfn.XLOOKUP($V112,'Risk Charges'!$C$117:$C$128,'Risk Charges'!D$117:D$128,,0)","v":0.33},{"$f":"_xlfn.XLOOKUP($V112,'Risk Charges'!$C$117:$C$128,'Risk Charges'!E$117:E$128,,0)","v":0.28000000000000003},{"$f":"_xlfn.XLOOKUP($V112,'Risk Charges'!$C$117:$C$128,'Risk Charges'!F$117:F$128,,0)","v":0.24},{"$f":"_xlfn.XLOOKUP($V112,'Risk Charges'!$C$117:$C$128,'Risk Charges'!G$117:G$128,,0)","v":0.2},{"$f":"_xlfn.XLOOKUP($V112,'Risk Charges'!$C$132:$C$143,'Risk Charges'!D$132:D$143,,0)","v":0.41299999999999998},{"$f":"_xlfn.XLOOKUP($V112,'Risk Charges'!$C$132:$C$143,'Risk Charges'!E$132:E$143,,0)","v":0.35},{"$f":"_xlfn.XLOOKUP($V112,'Risk Charges'!$C$132:$C$143,'Risk Charges'!F$132:F$143,,0)","v":0.3},{"$f":"_xlfn.XLOOKUP($V112,'Risk Charges'!$C$132:$C$143,'Risk Charges'!G$132:G$143,,0)","v":0.25}]
[null,null,null,"Supplementary health",{"$f":"W113*Input!$F507","v":0},{"$f":"X113*Input!$F507","v":0},{"$f":"Y113*Input!$F507","v":0},{"$f":"Z113*Input!$F507","v":0},null,null,null,null,"Supplementary health",{"$f":"AA113*Input!$G507","v":0},{"$f":"AB113*Input!$G507","v":0},{"$f":"AC113*Input!$G507","v":0},{"$f":"AD113*Input!$G507","v":0},null,null,"Supplementary health","Health",5,{"$f":"_xlfn.XLOOKUP($V113,'Risk Charges'!$C$117:$C$128,'Risk Charges'!D$117:D$128,,0)","v":0.248},{"$f":"_xlfn.XLOOKUP($V113,'Risk Charges'!$C$117:$C$128,'Risk Charges'!E$117:E$128,,0)","v":0.21},{"$f":"_xlfn.XLOOKUP($V113,'Risk Charges'!$C$117:$C$128,'Risk Charges'!F$117:F$128,,0)","v":0.18},{"$f":"_xlfn.XLOOKUP($V113,'Risk Charges'!$C$117:$C$128,'Risk Charges'!G$117:G$128,,0)","v":0.15},{"$f":"_xlfn.XLOOKUP($V113,'Risk Charges'!$C$132:$C$143,'Risk Charges'!D$132:D$143,,0)","v":0.31},{"$f":"_xlfn.XLOOKUP($V113,'Risk Charges'!$C$132:$C$143,'Risk Charges'!E$132:E$143,,0)","v":0.26300000000000001},{"$f":"_xlfn.XLOOKUP($V113,'Risk Charges'!$C$132:$C$143,'Risk Charges'!F$132:F$143,,0)","v":0.22500000000000001},{"$f":"_xlfn.XLOOKUP($V113,'Risk Charges'!$C$132:$C$143,'Risk Charges'!G$132:G$143,,0)","v":0.188}]
[null,null,null,"Aircraft",{"$f":"W114*Input!$F508","v":0},{"$f":"X114*Input!$F508","v":0},{"$f":"Y114*Input!$F508","v":0},{"$f":"Z114*Input!$F508","v":0},null,null,null,null,"Aircraft",{"$f":"AA114*Input!$G508","v":0},{"$f":"AB114*Input!$G508","v":0},{"$f":"AC114*Input!$G508","v":0},{"$f":"AD114*Input!$G508","v":0},null,null,"Aircraft","MAT",8,{"$f":"_xlfn.XLOOKUP($V114,'Risk Charges'!$C$117:$C$128,'Risk Charges'!D$117:D$128,,0)","v":0.495},{"$f":"_xlfn.XLOOKUP($V114,'Risk Charges'!$C$117:$C$128,'Risk Charges'!E$117:E$128,,0)","v":0.42},{"$f":"_xlfn.XLOOKUP($V114,'Risk Charges'!$C$117:$C$128,'Risk Charges'!F$117:F$128,,0)","v":0.36},{"$f":"_xlfn.XLOOKUP($V114,'Risk Charges'!$C$117:$C$128,'Risk Charges'!G$117:G$128,,0)","v":0.3},{"$f":"_xlfn.XLOOKUP($V114,'Risk Charges'!$C$132:$C$143,'Risk Charges'!D$132:D$143,,0)","v":0.61899999999999999},{"$f":"_xlfn.XLOOKUP($V114,'Risk Charges'!$C$132:$C$143,'Risk Charges'!E$132:E$143,,0)","v":0.52500000000000002},{"$f":"_xlfn.XLOOKUP($V114,'Risk Charges'!$C$132:$C$143,'Risk Charges'!F$132:F$143,,0)","v":0.45},{"$f":"_xlfn.XLOOKUP($V114,'Risk Charges'!$C$132:$C$143,'Risk Charges'!G$132:G$143,,0)","v":0.375}]
[null,null,null,"Marine",{"$f":"W115*Input!$F509","v":0},{"$f":"X115*Input!$F509","v":0},{"$f":"Y115*Input!$F509","v":0},{"$f":"Z115*Input!$F509","v":0},null,null,null,null,"Marine",{"$f":"AA115*Input!$G509","v":0},{"$f":"AB115*Input!$G509","v":0},{"$f":"AC115*Input!$G509","v":0},{"$f":"AD115*Input!$G509","v":0},null,null,"Marine","MAT",6,{"$f":"_xlfn.XLOOKUP($V115,'Risk Charges'!$C$117:$C$128,'Risk Charges'!D$117:D$128,,0)","v":0.33},{"$f":"_xlfn.XLOOKUP($V115,'Risk Charges'!$C$117:$C$128,'Risk Charges'!E$117:E$128,,0)","v":0.28000000000000003},{"$f":"_xlfn.XLOOKUP($V115,'Risk Charges'!$C$117:$C$128,'Risk Charges'!F$117:F$128,,0)","v":0.24},{"$f":"_xlfn.XLOOKUP($V115,'Risk Charges'!$C$117:$C$128,'Risk Charges'!G$117:G$128,,0)","v":0.2},{"$f":"_xlfn.XLOOKUP($V115,'Risk Charges'!$C$132:$C$143,'Risk Charges'!D$132:D$143,,0)","v":0.41299999999999998},{"$f":"_xlfn.XLOOKUP($V115,'Risk Charges'!$C$132:$C$143,'Risk Charges'!E$132:E$143,,0)","v":0.35},{"$f":"_xlfn.XLOOKUP($V115,'Risk Charges'!$C$132:$C$143,'Risk Charges'!F$132:F$143,,0)","v":0.3},{"$f":"_xlfn.XLOOKUP($V115,'Risk Charges'!$C$132:$C$143,'Risk Charges'!G$132:G$143,,0)","v":0.25}]
[null,null,null,"Marine protection & indemnity",{"$f":"W116*Input!$F510","v":0},{"$f":"X116*Input!$F510","v":0},{"$f":"Y116*Input!$F510","v":0},{"$f":"Z116*Input!$F510","v":0},null,null,null,null,"Marine protection & indemnity",{"$f":"AA116*Input!$G510","v":0},{"$f":"AB116*Input!$G510","v":0},{"$f":"AC116*Input!$G510","v":0},{"$f":"AD116*Input!$G510","v":0},null,null,"Marine protection & indemnity","MAT",8,{"$f":"_xlfn.XLOOKUP($V116,'Risk Charges'!$C$117:$C$128,'Risk Charges'!D$117:D$128,,0)","v":0.495},{"$f":"_xlfn.XLOOKUP($V116,'Risk Charges'!$C$117:$C$128,'Risk Charges'!E$117:E$128,,0)","v":0.42},{"$f":"_xlfn.XLOOKUP($V116,'Risk Charges'!$C$117:$C$128,'Risk Charges'!F$117:F$128,,0)","v":0.36},{"$f":"_xlfn.XLOOKUP($V116,'Risk Charges'!$C$117:$C$128,'Risk Charges'!G$117:G$128,,0)","v":0.3},{"$f":"_xlfn.XLOOKUP($V116,'Risk Charges'!$C$132:$C$143,'Risk Charges'!D$132:D$143,,0)","v":0.61899999999999999},{"$f":"_xlfn.XLOOKUP($V116,'Risk Charges'!$C$132:$C$143,'Risk Charges'!E$132:E$143,,0)","v":0.52500000000000002},{"$f":"_xlfn.XLOOKUP($V116,'Risk Charges'!$C$132:$C$143,'Risk Charges'!F$132:F$143,,0)","v":0.45},{"$f":"_xlfn.XLOOKUP($V116,'Risk Charges'!$C$132:$C$143,'Risk Charges'!G$132:G$143,,0)","v":0.375}]
[null,null,null,"Legal expense",{"$f":"W117*Input!$F511","v":0},{"$f":"X117*Input!$F511","v":0},{"$f":"Y117*Input!$F511","v":0},{"$f":"Z117*Input!$F511","v":0},null,null,null,null,"Legal expense",{"$f":"AA117*Input!$G511","v":0},{"$f":"AB117*Input!$G511","v":0},{"$f":"AC117*Input!$G511","v":0},{"$f":"AD117*Input!$G511","v":0},null,null,"Legal expense","Other",8,{"$f":"_xlfn.XLOOKUP($V117,'Risk Charges'!$C$117:$C$128,'Risk Charges'!D$117:D$128,,0)","v":0.495},{"$f":"_xlfn.XLOOKUP($V117,'Risk Charges'!$C$117:$C$128,'Risk Charges'!E$117:E$128,,0)","v":0.42},{"$f":"_xlfn.XLOOKUP($V117,'Risk Charges'!$C$117:$C$128,'Risk Charges'!F$117:F$128,,0)","v":0.36},{"$f":"_xlfn.XLOOKUP($V117,'Risk Charges'!$C$117:$C$128,'Risk Charges'!G$117:G$128,,0)","v":0.3},{"$f":"_xlfn.XLOOKUP($V117,'Risk Charges'!$C$132:$C$143,'Risk Charges'!D$132:D$143,,0)","v":0.61899999999999999},{"$f":"_xlfn.XLOOKUP($V117,'Risk Charges'!$C$132:$C$143,'Risk Charges'!E$132:E$143,,0)","v":0.52500000000000002},{"$f":"_xlfn.XLOOKUP($V117,'Risk Charges'!$C$132:$C$143,'Risk Charges'!F$132:F$143,,0)","v":0.45},{"$f":"_xlfn.XLOOKUP($V117,'Risk Charges'!$C$132:$C$143,'Risk Charges'!G$132:G$143,,0)","v":0.375}]
[null,null,null,"Other approved products",{"$f":"W118*Input!$F512","v":0},{"$f":"X118*Input!$F512","v":0},{"$f":"Y118*Input!$F512","v":0},{"$f":"Z118*Input!$F512","v":0},null,null,null,null,"Other approved products",{"$f":"AA118*Input!$G512","v":0},{"$f":"AB118*Input!$G512","v":0},{"$f":"AC118*Input!$G512","v":0},{"$f":"AD118*Input!$G512","v":0},null,null,"Other approved products","Other",7,{"$f":"_xlfn.XLOOKUP($V118,'Risk Charges'!$C$117:$C$128,'Risk Charges'!D$117:D$128,,0)","v":0.41299999999999998},{"$f":"_xlfn.XLOOKUP($V118,'Risk Charges'!$C$117:$C$128,'Risk Charges'!E$117:E$128,,0)","v":0.35},{"$f":"_xlfn.XLOOKUP($V118,'Risk Charges'!$C$117:$C$128,'Risk Charges'!F$117:F$128,,0)","v":0.3},{"$f":"_xlfn.XLOOKUP($V118,'Risk Charges'!$C$117:$C$128,'Risk Charges'!G$117:G$128,,0)","v":0.25},{"$f":"_xlfn.XLOOKUP($V118,'Risk Charges'!$C$132:$C$143,'Risk Charges'!D$132:D$143,,0)","v":0.51600000000000001},{"$f":"_xlfn.XLOOKUP($V118,'Risk Charges'!$C$132:$C$143,'Risk Charges'!E$132:E$143,,0)","v":0.438},{"$f":"_xlfn.XLOOKUP($V118,'Risk Charges'!$C$132:$C$143,'Risk Charges'!F$132:F$143,,0)","v":0.375},{"$f":"_xlfn.XLOOKUP($V118,'Risk Charges'!$C$132:$C$143,'Risk Charges'!G$132:G$143,,0)","v":0.313}]
[null,null,null,"Title",{"$f":"W119*Input!$F513","v":0},{"$f":"X119*Input!$F513","v":0},{"$f":"Y119*Input!$F513","v":0},{"$f":"Z119*Input!$F513","v":0},null,null,null,null,"Title",{"$f":"AA119*Input!$G513","v":0},{"$f":"AB119*Input!$G513","v":0},{"$f":"AC119*Input!$G513","v":0},{"$f":"AD119*Input!$G513","v":0},null,null,"Title","Other",5,{"$f":"_xlfn.XLOOKUP($V119,'Risk Charges'!$C$117:$C$128,'Risk Charges'!D$117:D$128,,0)","v":0.248},{"$f":"_xlfn.XLOOKUP($V119,'Risk Charges'!$C$117:$C$128,'Risk Charges'!E$117:E$128,,0)","v":0.21},{"$f":"_xlfn.XLOOKUP($V119,'Risk Charges'!$C$117:$C$128,'Risk Charges'!F$117:F$128,,0)","v":0.18},{"$f":"_xlfn.XLOOKUP($V119,'Risk Charges'!$C$117:$C$128,'Risk Charges'!G$117:G$128,,0)","v":0.15},{"$f":"_xlfn.XLOOKUP($V119,'Risk Charges'!$C$132:$C$143,'Risk Charges'!D$132:D$143,,0)","v":0.31},{"$f":"_xlfn.XLOOKUP($V119,'Risk Charges'!$C$132:$C$143,'Risk Charges'!E$132:E$143,,0)","v":0.26300000000000001},{"$f":"_xlfn.XLOOKUP($V119,'Risk Charges'!$C$132:$C$143,'Risk Charges'!F$132:F$143,,0)","v":0.22500000000000001},{"$f":"_xlfn.XLOOKUP($V119,'Risk Charges'!$C$132:$C$143,'Risk Charges'!G$132:G$143,,0)","v":0.188}]
[null,null,null,"Warranty",{"$f":"W120*Input!$F514","v":0},{"$f":"X120*Input!$F514","v":0},{"$f":"Y120*Input!$F514","v":0},{"$f":"Z120*Input!$F514","v":0},null,null,null,null,"Warranty",{"$f":"AA120*Input!$G514","v":0},{"$f":"AB120*Input!$G514","v":0},{"$f":"AC120*Input!$G514","v":0},{"$f":"AD120*Input!$G514","v":0},null,null,"Warranty","Other",6,{"$f":"_xlfn.XLOOKUP($V120,'Risk Charges'!$C$117:$C$128,'Risk Charges'!D$117:D$128,,0)","v":0.33},{"$f":"_xlfn.XLOOKUP($V120,'Risk Charges'!$C$117:$C$128,'Risk Charges'!E$117:E$128,,0)","v":0.28000000000000003},{"$f":"_xlfn.XLOOKUP($V120,'Risk Charges'!$C$117:$C$128,'Risk Charges'!F$117:F$128,,0)","v":0.24},{"$f":"_xlfn.XLOOKUP($V120,'Risk Charges'!$C$117:$C$128,'Risk Charges'!G$117:G$128,,0)","v":0.2},{"$f":"_xlfn.XLOOKUP($V120,'Risk Charges'!$C$132:$C$143,'Risk Charges'!D$132:D$143,,0)","v":0.41299999999999998},{"$f":"_xlfn.XLOOKUP($V120,'Risk Charges'!$C$132:$C$143,'Risk Charges'!E$132:E$143,,0)","v":0.35},{"$f":"_xlfn.XLOOKUP($V120,'Risk Charges'!$C$132:$C$143,'Risk Charges'!F$132:F$143,,0)","v":0.3},{"$f":"_xlfn.XLOOKUP($V120,'Risk Charges'!$C$132:$C$143,'Risk Charges'!G$132:G$143,,0)","v":0.25}]
[null,null,null,"Other",{"$f":"W121*Input!$F515","v":0},{"$f":"X121*Input!$F515","v":0},{"$f":"Y121*Input!$F515","v":0},{"$f":"Z121*Input!$F515","v":0},null,null,null,null,"Other",{"$f":"AA121*Input!$G515","v":0},{"$f":"AB121*Input!$G515","v":0},{"$f":"AC121*Input!$G515","v":0},{"$f":"AD121*Input!$G515","v":0},null,null,"Other","Other",12,{"$f":"_xlfn.XLOOKUP($V121,'Risk Charges'!$C$117:$C$128,'Risk Charges'!D$117:D$128,,0)","v":0.99},{"$f":"_xlfn.XLOOKUP($V121,'Risk Charges'!$C$117:$C$128,'Risk Charges'!E$117:E$128,,0)","v":0.84},{"$f":"_xlfn.XLOOKUP($V121,'Risk Charges'!$C$117:$C$128,'Risk Charges'!F$117:F$128,,0)","v":0.72},{"$f":"_xlfn.XLOOKUP($V121,'Risk Charges'!$C$117:$C$128,'Risk Charges'!G$117:G$128,,0)","v":0.6},{"$f":"_xlfn.XLOOKUP($V121,'Risk Charges'!$C$132:$C$143,'Risk Charges'!D$132:D$143,,0)","v":1.238},{"$f":"_xlfn.XLOOKUP($V121,'Risk Charges'!$C$132:$C$143,'Risk Charges'!E$132:E$143,,0)","v":1.05},{"$f":"_xlfn.XLOOKUP($V121,'Risk Charges'!$C$132:$C$143,'Risk Charges'!F$132:F$143,,0)","v":0.9},{"$f":"_xlfn.XLOOKUP($V121,'Risk Charges'!$C$132:$C$143,'Risk Charges'!G$132:G$143,,0)","v":0.75}]
[null,"Asia-Pacific",null,null,null,null,null,null,null,null,"Asia-Pacific",null,null,null,null,null,null,null,"Asia-Pacific Risks"]
[null,null,null,{"$f":"T123","v":"Employers liability"},{"$f":"W123*Input!$F517","v":0},{"$f":"X123*Input!$F517","v":0},{"$f":"Y123*Input!$F517","v":0},{"$f":"Z123*Input!$F517","v":0},null,null,null,null,{"$f":"T123","v":"Employers liability"},{"$f":"AA123*Input!$G517","v":0},{"$f":"AB123*Input!$G517","v":0},{"$f":"AC123*Input!$G517","v":0},{"$f":"AD123*Input!$G517","v":0},null,null,"Employers liability","Liability",5,{"$f":"_xlfn.XLOOKUP($V123,'Risk Charges'!$C$117:$C$128,'Risk Charges'!D$117:D$128,,0)","v":0.248},{"$f":"_xlfn.XLOOKUP($V123,'Risk Charges'!$C$117:$C$128,'Risk Charges'!E$117:E$128,,0)","v":0.21},{"$f":"_xlfn.XLOOKUP($V123,'Risk Charges'!$C$117:$C$128,'Risk Charges'!F$117:F$128,,0)","v":0.18},{"$f":"_xlfn.XLOOKUP($V123,'Risk Charges'!$C$117:$C$128,'Risk Charges'!G$117:G$128,,0)","v":0.15},{"$f":"_xlfn.XLOOKUP($V123,'Risk Charges'!$C$132:$C$143,'Risk Charges'!D$132:D$143,,0)","v":0.31},{"$f":"_xlfn.XLOOKUP($V123,'Risk Charges'!$C$132:$C$143,'Risk Charges'!E$132:E$143,,0)","v":0.26300000000000001},{"$f":"_xlfn.XLOOKUP($V123,'Risk Charges'!$C$132:$C$143,'Risk Charges'!F$132:F$143,,0)","v":0.22500000000000001},{"$f":"_xlfn.XLOOKUP($V123,'Risk Charges'!$C$132:$C$143,'Risk Charges'!G$132:G$143,,0)","v":0.188}]
[null,null,null,"General liability",{"$f":"W124*Input!$F518","v":0},{"$f":"X124*Input!$F518","v":0},{"$f":"Y124*Input!$F518","v":0},{"$f":"Z124*Input!$F518","v":0},null,null,null,null,"General liability",{"$f":"AA124*Input!$G518","v":0},{"$f":"AB124*Input!$G518","v":0},{"$f":"AC124*Input!$G518","v":0},{"$f":"AD124*Input!$G518","v":0},null,null,"General liability","Liability",6,{"$f":"_xlfn.XLOOKUP($V124,'Risk Charges'!$C$117:$C$128,'Risk Charges'!D$117:D$128,,0)","v":0.33},{"$f":"_xlfn.XLOOKUP($V124,'Risk Charges'!$C$117:$C$128,'Risk Charges'!E$117:E$128,,0)","v":0.28000000000000003},{"$f":"_xlfn.XLOOKUP($V124,'Risk Charges'!$C$117:$C$128,'Risk Charges'!F$117:F$128,,0)","v":0.24},{"$f":"_xlfn.XLOOKUP($V124,'Risk Charges'!$C$117:$C$128,'Risk Charges'!G$117:G$128,,0)","v":0.2},{"$f":"_xlfn.XLOOKUP($V124,'Risk Charges'!$C$132:$C$143,'Risk Charges'!D$132:D$143,,0)","v":0.41299999999999998},{"$f":"_xlfn.XLOOKUP($V124,'Risk Charges'!$C$132:$C$143,'Risk Charges'!E$132:E$143,,0)","v":0.35},{"$f":"_xlfn.XLOOKUP($V124,'Risk Charges'!$C$132:$C$143,'Risk Charges'!F$132:F$143,,0)","v":0.3},{"$f":"_xlfn.XLOOKUP($V124,'Risk Charges'!$C$132:$C$143,'Risk Charges'!G$132:G$143,,0)","v":0.25}]
[null,null,null,"Professional indemnity",{"$f":"W125*Input!$F519","v":0},{"$f":"X125*Input!$F519","v":0},{"$f":"Y125*Input!$F519","v":0},{"$f":"Z125*Input!$F519","v":0},null,null,null,null,"Professional indemnity",{"$f":"AA125*Input!$G519","v":0},{"$f":"AB125*Input!$G519","v":0},{"$f":"AC125*Input!$G519","v":0},{"$f":"AD125*Input!$G519","v":0},null,null,"Professional indemnity","Liability",6,{"$f":"_xlfn.XLOOKUP($V125,'Risk Charges'!$C$117:$C$128,'Risk Charges'!D$117:D$128,,0)","v":0.33},{"$f":"_xlfn.XLOOKUP($V125,'Risk Charges'!$C$117:$C$128,'Risk Charges'!E$117:E$128,,0)","v":0.28000000000000003},{"$f":"_xlfn.XLOOKUP($V125,'Risk Charges'!$C$117:$C$128,'Risk Charges'!F$117:F$128,,0)","v":0.24},{"$f":"_xlfn.XLOOKUP($V125,'Risk Charges'!$C$117:$C$128,'Risk Charges'!G$117:G$128,,0)","v":0.2},{"$f":"_xlfn.XLOOKUP($V125,'Risk Charges'!$C$132:$C$143,'Risk Charges'!D$132:D$143,,0)","v":0.41299999999999998},{"$f":"_xlfn.XLOOKUP($V125,'Risk Charges'!$C$132:$C$143,'Risk Charges'!E$132:E$143,,0)","v":0.35},{"$f":"_xlfn.XLOOKUP($V125,'Risk Charges'!$C$132:$C$143,'Risk Charges'!F$132:F$143,,0)","v":0.3},{"$f":"_xlfn.XLOOKUP($V125,'Risk Charges'!$C$132:$C$143,'Risk Charges'!G$132:G$143,,0)","v":0.25}]
[null,null,null,"Public and product liability",{"$f":"W126*Input!$F520","v":0},{"$f":"X126*Input!$F520","v":0},{"$f":"Y126*Input!$F520","v":0},{"$f":"Z126*Input!$F520","v":0},null,null,null,null,"Public and product liability",{"$f":"AA126*Input!$G520","v":0},{"$f":"AB126*Input!$G520","v":0},{"$f":"AC126*Input!$G520","v":0},{"$f":"AD126*Input!$G520","v":0},null,null,"Public and product liability","Liability",7,{"$f":"_xlfn.XLOOKUP($V126,'Risk Charges'!$C$117:$C$128,'Risk Charges'!D$117:D$128,,0)","v":0.41299999999999998},{"$f":"_xlfn.XLOOKUP($V126,'Risk Charges'!$C$117:$C$128,'Risk Charges'!E$117:E$128,,0)","v":0.35},{"$f":"_xlfn.XLOOKUP($V126,'Risk Charges'!$C$117:$C$128,'Risk Charges'!F$117:F$128,,0)","v":0.3},{"$f":"_xlfn.XLOOKUP($V126,'Risk Charges'!$C$117:$C$128,'Risk Charges'!G$117:G$128,,0)","v":0.25},{"$f":"_xlfn.XLOOKUP($V126,'Risk Charges'!$C$132:$C$143,'Risk Charges'!D$132:D$143,,0)","v":0.51600000000000001},{"$f":"_xlfn.XLOOKUP($V126,'Risk Charges'!$C$132:$C$143,'Risk Charges'!E$132:E$143,,0)","v":0.438},{"$f":"_xlfn.XLOOKUP($V126,'Risk Charges'!$C$132:$C$143,'Risk Charges'!F$132:F$143,,0)","v":0.375},{"$f":"_xlfn.XLOOKUP($V126,'Risk Charges'!$C$132:$C$143,'Risk Charges'!G$132:G$143,,0)","v":0.313}]
[null,null,null,"Commercial property",{"$f":"W127*Input!$F521","v":0},{"$f":"X127*Input!$F521","v":0},{"$f":"Y127*Input!$F521","v":0},{"$f":"Z127*Input!$F521","v":0},null,null,null,null,"Commercial property",{"$f":"AA127*Input!$G521","v":0},{"$f":"AB127*Input!$G521","v":0},{"$f":"AC127*Input!$G521","v":0},{"$f":"AD127*Input!$G521","v":0},null,null,"Commercial property","Property",6,{"$f":"_xlfn.XLOOKUP($V127,'Risk Charges'!$C$117:$C$128,'Risk Charges'!D$117:D$128,,0)","v":0.33},{"$f":"_xlfn.XLOOKUP($V127,'Risk Charges'!$C$117:$C$128,'Risk Charges'!E$117:E$128,,0)","v":0.28000000000000003},{"$f":"_xlfn.XLOOKUP($V127,'Risk Charges'!$C$117:$C$128,'Risk Charges'!F$117:F$128,,0)","v":0.24},{"$f":"_xlfn.XLOOKUP($V127,'Risk Charges'!$C$117:$C$128,'Risk Charges'!G$117:G$128,,0)","v":0.2},{"$f":"_xlfn.XLOOKUP($V127,'Risk Charges'!$C$132:$C$143,'Risk Charges'!D$132:D$143,,0)","v":0.41299999999999998},{"$f":"_xlfn.XLOOKUP($V127,'Risk Charges'!$C$132:$C$143,'Risk Charges'!E$132:E$143,,0)","v":0.35},{"$f":"_xlfn.XLOOKUP($V127,'Risk Charges'!$C$132:$C$143,'Risk Charges'!F$132:F$143,,0)","v":0.3},{"$f":"_xlfn.XLOOKUP($V127,'Risk Charges'!$C$132:$C$143,'Risk Charges'!G$132:G$143,,0)","v":0.25}]
[null,null,null,"Domestic property",{"$f":"W128*Input!$F522","v":0},{"$f":"X128*Input!$F522","v":0},{"$f":"Y128*Input!$F522","v":0},{"$f":"Z128*Input!$F522","v":0},null,null,null,null,"Domestic property",{"$f":"AA128*Input!$G522","v":0},{"$f":"AB128*Input!$G522","v":0},{"$f":"AC128*Input!$G522","v":0},{"$f":"AD128*Input!$G522","v":0},null,null,"Domestic property","Property",6,{"$f":"_xlfn.XLOOKUP($V128,'Risk Charges'!$C$117:$C$128,'Risk Charges'!D$117:D$128,,0)","v":0.33},{"$f":"_xlfn.XLOOKUP($V128,'Risk Charges'!$C$117:$C$128,'Risk Charges'!E$117:E$128,,0)","v":0.28000000000000003},{"$f":"_xlfn.XLOOKUP($V128,'Risk Charges'!$C$117:$C$128,'Risk Charges'!F$117:F$128,,0)","v":0.24},{"$f":"_xlfn.XLOOKUP($V128,'Risk Charges'!$C$117:$C$128,'Risk Charges'!G$117:G$128,,0)","v":0.2},{"$f":"_xlfn.XLOOKUP($V128,'Risk Charges'!$C$132:$C$143,'Risk Charges'!D$132:D$143,,0)","v":0.41299999999999998},{"$f":"_xlfn.XLOOKUP($V128,'Risk Charges'!$C$132:$C$143,'Risk Charges'!E$132:E$143,,0)","v":0.35},{"$f":"_xlfn.XLOOKUP($V128,'Risk Charges'!$C$132:$C$143,'Risk Charges'!F$132:F$143,,0)","v":0.3},{"$f":"_xlfn.XLOOKUP($V128,'Risk Charges'!$C$132:$C$143,'Risk Charges'!G$132:G$143,,0)","v":0.25}]
[null,null,null,{"$f":"T129","v":"Engineering"},{"$f":"W129*Input!$F523","v":0},{"$f":"X129*Input!$F523","v":0},{"$f":"Y129*Input!$F523","v":0},{"$f":"Z129*Input!$F523","v":0},null,null,null,null,{"$f":"T129","v":"Engineering"},{"$f":"AA129*Input!$G523","v":0},{"$f":"AB129*Input!$G523","v":0},{"$f":"AC129*Input!$G523","v":0},{"$f":"AD129*Input!$G523","v":0},null,null,"Engineering","Property",8,{"$f":"_xlfn.XLOOKUP($V129,'Risk Charges'!$C$117:$C$128,'Risk Charges'!D$117:D$128,,0)","v":0.495},{"$f":"_xlfn.XLOOKUP($V129,'Risk Charges'!$C$117:$C$128,'Risk Charges'!E$117:E$128,,0)","v":0.42},{"$f":"_xlfn.XLOOKUP($V129,'Risk Charges'!$C$117:$C$128,'Risk Charges'!F$117:F$128,,0)","v":0.36},{"$f":"_xlfn.XLOOKUP($V129,'Risk Charges'!$C$117:$C$128,'Risk Charges'!G$117:G$128,,0)","v":0.3},{"$f":"_xlfn.XLOOKUP($V129,'Risk Charges'!$C$132:$C$143,'Risk Charges'!D$132:D$143,,0)","v":0.61899999999999999},{"$f":"_xlfn.XLOOKUP($V129,'Risk Charges'!$C$132:$C$143,'Risk Charges'!E$132:E$143,,0)","v":0.52500000000000002},{"$f":"_xlfn.XLOOKUP($V129,'Risk Charges'!$C$132:$C$143,'Risk Charges'!F$132:F$143,,0)","v":0.45},{"$f":"_xlfn.XLOOKUP($V129,'Risk Charges'!$C$132:$C$143,'Risk Charges'!G$132:G$143,,0)","v":0.375}]
[null,null,null,"Commercial motor - Australia and New Zealand",{"$f":"W130*Input!$F524","v":0},{"$f":"X130*Input!$F524","v":0},{"$f":"Y130*Input!$F524","v":0},{"$f":"Z130*Input!$F524","v":0},null,null,null,null,"Commercial motor - Australia and New Zealand",{"$f":"AA130*Input!$G524","v":0},{"$f":"AB130*Input!$G524","v":0},{"$f":"AC130*Input!$G524","v":0},{"$f":"AD130*Input!$G524","v":0},null,null,"Commercial motor - Australia and New Zealand","Motor",4,{"$f":"_xlfn.XLOOKUP($V130,'Risk Charges'!$C$117:$C$128,'Risk Charges'!D$117:D$128,,0)","v":0.16500000000000001},{"$f":"_xlfn.XLOOKUP($V130,'Risk Charges'!$C$117:$C$128,'Risk Charges'!E$117:E$128,,0)","v":0.14000000000000001},{"$f":"_xlfn.XLOOKUP($V130,'Risk Charges'!$C$117:$C$128,'Risk Charges'!F$117:F$128,,0)","v":0.12},{"$f":"_xlfn.XLOOKUP($V130,'Risk Charges'!$C$117:$C$128,'Risk Charges'!G$117:G$128,,0)","v":0.1},{"$f":"_xlfn.XLOOKUP($V130,'Risk Charges'!$C$132:$C$143,'Risk Charges'!D$132:D$143,,0)","v":0.20599999999999999},{"$f":"_xlfn.XLOOKUP($V130,'Risk Charges'!$C$132:$C$143,'Risk Charges'!E$132:E$143,,0)","v":0.17499999999999999},{"$f":"_xlfn.XLOOKUP($V130,'Risk Charges'!$C$132:$C$143,'Risk Charges'!F$132:F$143,,0)","v":0.15},{"$f":"_xlfn.XLOOKUP($V130,'Risk Charges'!$C$132:$C$143,'Risk Charges'!G$132:G$143,,0)","v":0.125}]
[null,null,null,"Domestic motor - Australia and New Zealand",{"$f":"W131*Input!$F525","v":0},{"$f":"X131*Input!$F525","v":0},{"$f":"Y131*Input!$F525","v":0},{"$f":"Z131*Input!$F525","v":0},null,null,null,null,"Domestic motor - Australia and New Zealand",{"$f":"AA131*Input!$G525","v":0},{"$f":"AB131*Input!$G525","v":0},{"$f":"AC131*Input!$G525","v":0},{"$f":"AD131*Input!$G525","v":0},null,null,"Domestic motor - Australia and New Zealand","Motor",3,{"$f":"_xlfn.XLOOKUP($V131,'Risk Charges'!$C$117:$C$128,'Risk Charges'!D$117:D$128,,0)","v":0.124},{"$f":"_xlfn.XLOOKUP($V131,'Risk Charges'!$C$117:$C$128,'Risk Charges'!E$117:E$128,,0)","v":0.105},{"$f":"_xlfn.XLOOKUP($V131,'Risk Charges'!$C$117:$C$128,'Risk Charges'!F$117:F$128,,0)","v":0.09},{"$f":"_xlfn.XLOOKUP($V131,'Risk Charges'!$C$117:$C$128,'Risk Charges'!G$117:G$128,,0)","v":7.4999999999999997E-2},{"$f":"_xlfn.XLOOKUP($V131,'Risk Charges'!$C$132:$C$143,'Risk Charges'!D$132:D$143,,0)","v":0.155},{"$f":"_xlfn.XLOOKUP($V131,'Risk Charges'!$C$132:$C$143,'Risk Charges'!E$132:E$143,,0)","v":0.13100000000000001},{"$f":"_xlfn.XLOOKUP($V131,'Risk Charges'!$C$132:$C$143,'Risk Charges'!F$132:F$143,,0)","v":0.113},{"$f":"_xlfn.XLOOKUP($V131,'Risk Charges'!$C$132:$C$143,'Risk Charges'!G$132:G$143,,0)","v":9.4E-2}]
[null,null,null,"Motor - all inclusive",{"$f":"W132*Input!$F526","v":0},{"$f":"X132*Input!$F526","v":0},{"$f":"Y132*Input!$F526","v":0},{"$f":"Z132*Input!$F526","v":0},null,null,null,null,"Motor - all inclusive",{"$f":"AA132*Input!$G526","v":0},{"$f":"AB132*Input!$G526","v":0},{"$f":"AC132*Input!$G526","v":0},{"$f":"AD132*Input!$G526","v":0},null,null,"Motor - all inclusive","Motor",6,{"$f":"_xlfn.XLOOKUP($V132,'Risk Charges'!$C$117:$C$128,'Risk Charges'!D$117:D$128,,0)","v":0.33},{"$f":"_xlfn.XLOOKUP($V132,'Risk Charges'!$C$117:$C$128,'Risk Charges'!E$117:E$128,,0)","v":0.28000000000000003},{"$f":"_xlfn.XLOOKUP($V132,'Risk Charges'!$C$117:$C$128,'Risk Charges'!F$117:F$128,,0)","v":0.24},{"$f":"_xlfn.XLOOKUP($V132,'Risk Charges'!$C$117:$C$128,'Risk Charges'!G$117:G$128,,0)","v":0.2},{"$f":"_xlfn.XLOOKUP($V132,'Risk Charges'!$C$132:$C$143,'Risk Charges'!D$132:D$143,,0)","v":0.41299999999999998},{"$f":"_xlfn.XLOOKUP($V132,'Risk Charges'!$C$132:$C$143,'Risk Charges'!E$132:E$143,,0)","v":0.35},{"$f":"_xlfn.XLOOKUP($V132,'Risk Charges'!$C$132:$C$143,'Risk Charges'!F$132:F$143,,0)","v":0.3},{"$f":"_xlfn.XLOOKUP($V132,'Risk Charges'!$C$132:$C$143,'Risk Charges'!G$132:G$143,,0)","v":0.25}]
[null,null,null,"Motor - Japan and Taiwan",{"$f":"W133*Input!$F527","v":0},{"$f":"X133*Input!$F527","v":0},{"$f":"Y133*Input!$F527","v":0},{"$f":"Z133*Input!$F527","v":0},null,null,null,null,"Motor - Japan and Taiwan",{"$f":"AA133*Input!$G527","v":0},{"$f":"AB133*Input!$G527","v":0},{"$f":"AC133*Input!$G527","v":0},{"$f":"AD133*Input!$G527","v":0},null,null,"Motor - Japan and Taiwan","Motor",4,{"$f":"_xlfn.XLOOKUP($V133,'Risk Charges'!$C$117:$C$128,'Risk Charges'!D$117:D$128,,0)","v":0.16500000000000001},{"$f":"_xlfn.XLOOKUP($V133,'Risk Charges'!$C$117:$C$128,'Risk Charges'!E$117:E$128,,0)","v":0.14000000000000001},{"$f":"_xlfn.XLOOKUP($V133,'Risk Charges'!$C$117:$C$128,'Risk Charges'!F$117:F$128,,0)","v":0.12},{"$f":"_xlfn.XLOOKUP($V133,'Risk Charges'!$C$117:$C$128,'Risk Charges'!G$117:G$128,,0)","v":0.1},{"$f":"_xlfn.XLOOKUP($V133,'Risk Charges'!$C$132:$C$143,'Risk Charges'!D$132:D$143,,0)","v":0.20599999999999999},{"$f":"_xlfn.XLOOKUP($V133,'Risk Charges'!$C$132:$C$143,'Risk Charges'!E$132:E$143,,0)","v":0.17499999999999999},{"$f":"_xlfn.XLOOKUP($V133,'Risk Charges'!$C$132:$C$143,'Risk Charges'!F$132:F$143,,0)","v":0.15},{"$f":"_xlfn.XLOOKUP($V133,'Risk Charges'!$C$132:$C$143,'Risk Charges'!G$132:G$143,,0)","v":0.125}]
[null,null,null,"Third party liability motor",{"$f":"W134*Input!$F528","v":0},{"$f":"X134*Input!$F528","v":0},{"$f":"Y134*Input!$F528","v":0},{"$f":"Z134*Input!$F528","v":0},null,null,null,null,"Third party liability motor",{"$f":"AA134*Input!$G528","v":0},{"$f":"AB134*Input!$G528","v":0},{"$f":"AC134*Input!$G528","v":0},{"$f":"AD134*Input!$G528","v":0},null,null,"Third party liability motor","Motor",6,{"$f":"_xlfn.XLOOKUP($V134,'Risk Charges'!$C$117:$C$128,'Risk Charges'!D$117:D$128,,0)","v":0.33},{"$f":"_xlfn.XLOOKUP($V134,'Risk Charges'!$C$117:$C$128,'Risk Charges'!E$117:E$128,,0)","v":0.28000000000000003},{"$f":"_xlfn.XLOOKUP($V134,'Risk Charges'!$C$117:$C$128,'Risk Charges'!F$117:F$128,,0)","v":0.24},{"$f":"_xlfn.XLOOKUP($V134,'Risk Charges'!$C$117:$C$128,'Risk Charges'!G$117:G$128,,0)","v":0.2},{"$f":"_xlfn.XLOOKUP($V134,'Risk Charges'!$C$132:$C$143,'Risk Charges'!D$132:D$143,,0)","v":0.41299999999999998},{"$f":"_xlfn.XLOOKUP($V134,'Risk Charges'!$C$132:$C$143,'Risk Charges'!E$132:E$143,,0)","v":0.35},{"$f":"_xlfn.XLOOKUP($V134,'Risk Charges'!$C$132:$C$143,'Risk Charges'!F$132:F$143,,0)","v":0.3},{"$f":"_xlfn.XLOOKUP($V134,'Risk Charges'!$C$132:$C$143,'Risk Charges'!G$132:G$143,,0)","v":0.25}]
[null,null,null,"Consumer credit",{"$f":"W135*Input!$F529","v":0},{"$f":"X135*Input!$F529","v":0},{"$f":"Y135*Input!$F529","v":0},{"$f":"Z135*Input!$F529","v":0},null,null,null,null,"Consumer credit",{"$f":"AA135*Input!$G529","v":0},{"$f":"AB135*Input!$G529","v":0},{"$f":"AC135*Input!$G529","v":0},{"$f":"AD135*Input!$G529","v":0},null,null,"Consumer credit","Financial",5,{"$f":"_xlfn.XLOOKUP($V135,'Risk Charges'!$C$117:$C$128,'Risk Charges'!D$117:D$128,,0)","v":0.248},{"$f":"_xlfn.XLOOKUP($V135,'Risk Charges'!$C$117:$C$128,'Risk Charges'!E$117:E$128,,0)","v":0.21},{"$f":"_xlfn.XLOOKUP($V135,'Risk Charges'!$C$117:$C$128,'Risk Charges'!F$117:F$128,,0)","v":0.18},{"$f":"_xlfn.XLOOKUP($V135,'Risk Charges'!$C$117:$C$128,'Risk Charges'!G$117:G$128,,0)","v":0.15},{"$f":"_xlfn.XLOOKUP($V135,'Risk Charges'!$C$132:$C$143,'Risk Charges'!D$132:D$143,,0)","v":0.31},{"$f":"_xlfn.XLOOKUP($V135,'Risk Charges'!$C$132:$C$143,'Risk Charges'!E$132:E$143,,0)","v":0.26300000000000001},{"$f":"_xlfn.XLOOKUP($V135,'Risk Charges'!$C$132:$C$143,'Risk Charges'!F$132:F$143,,0)","v":0.22500000000000001},{"$f":"_xlfn.XLOOKUP($V135,'Risk Charges'!$C$132:$C$143,'Risk Charges'!G$132:G$143,,0)","v":0.188}]
[null,null,null,"Credit",{"$f":"W136*Input!$F530","v":0},{"$f":"X136*Input!$F530","v":0},{"$f":"Y136*Input!$F530","v":0},{"$f":"Z136*Input!$F530","v":0},null,null,null,null,"Credit",{"$f":"AA136*Input!$G530","v":0},{"$f":"AB136*Input!$G530","v":0},{"$f":"AC136*Input!$G530","v":0},{"$f":"AD136*Input!$G530","v":0},null,null,"Credit","Financial",11,{"$f":"_xlfn.XLOOKUP($V136,'Risk Charges'!$C$117:$C$128,'Risk Charges'!D$117:D$128,,0)","v":0.82499999999999996},{"$f":"_xlfn.XLOOKUP($V136,'Risk Charges'!$C$117:$C$128,'Risk Charges'!E$117:E$128,,0)","v":0.7},{"$f":"_xlfn.XLOOKUP($V136,'Risk Charges'!$C$117:$C$128,'Risk Charges'!F$117:F$128,,0)","v":0.6},{"$f":"_xlfn.XLOOKUP($V136,'Risk Charges'!$C$117:$C$128,'Risk Charges'!G$117:G$128,,0)","v":0.5},{"$f":"_xlfn.XLOOKUP($V136,'Risk Charges'!$C$132:$C$143,'Risk Charges'!D$132:D$143,,0)","v":1.0309999999999999},{"$f":"_xlfn.XLOOKUP($V136,'Risk Charges'!$C$132:$C$143,'Risk Charges'!E$132:E$143,,0)","v":0.875},{"$f":"_xlfn.XLOOKUP($V136,'Risk Charges'!$C$132:$C$143,'Risk Charges'!F$132:F$143,,0)","v":0.75},{"$f":"_xlfn.XLOOKUP($V136,'Risk Charges'!$C$132:$C$143,'Risk Charges'!G$132:G$143,,0)","v":0.625}]
[null,null,null,"Accident & health",{"$f":"W137*Input!$F531","v":0},{"$f":"X137*Input!$F531","v":0},{"$f":"Y137*Input!$F531","v":0},{"$f":"Z137*Input!$F531","v":0},null,null,null,null,"Accident & health",{"$f":"AA137*Input!$G531","v":0},{"$f":"AB137*Input!$G531","v":0},{"$f":"AC137*Input!$G531","v":0},{"$f":"AD137*Input!$G531","v":0},null,null,"Accident & health","Health",4,{"$f":"_xlfn.XLOOKUP($V137,'Risk Charges'!$C$117:$C$128,'Risk Charges'!D$117:D$128,,0)","v":0.16500000000000001},{"$f":"_xlfn.XLOOKUP($V137,'Risk Charges'!$C$117:$C$128,'Risk Charges'!E$117:E$128,,0)","v":0.14000000000000001},{"$f":"_xlfn.XLOOKUP($V137,'Risk Charges'!$C$117:$C$128,'Risk Charges'!F$117:F$128,,0)","v":0.12},{"$f":"_xlfn.XLOOKUP($V137,'Risk Charges'!$C$117:$C$128,'Risk Charges'!G$117:G$128,,0)","v":0.1},{"$f":"_xlfn.XLOOKUP($V137,'Risk Charges'!$C$132:$C$143,'Risk Charges'!D$132:D$143,,0)","v":0.20599999999999999},{"$f":"_xlfn.XLOOKUP($V137,'Risk Charges'!$C$132:$C$143,'Risk Charges'!E$132:E$143,,0)","v":0.17499999999999999},{"$f":"_xlfn.XLOOKUP($V137,'Risk Charges'!$C$132:$C$143,'Risk Charges'!F$132:F$143,,0)","v":0.15},{"$f":"_xlfn.XLOOKUP($V137,'Risk Charges'!$C$132:$C$143,'Risk Charges'!G$132:G$143,,0)","v":0.125}]
[null,null,null,"Health",{"$f":"W138*Input!$F532","v":0},{"$f":"X138*Input!$F532","v":0},{"$f":"Y138*Input!$F532","v":0},{"$f":"Z138*Input!$F532","v":0},null,null,null,null,"Health",{"$f":"AA138*Input!$G532","v":0},{"$f":"AB138*Input!$G532","v":0},{"$f":"AC138*Input!$G532","v":0},{"$f":"AD138*Input!$G532","v":0},null,null,"Health","Health",3,{"$f":"_xlfn.XLOOKUP($V138,'Risk Charges'!$C$117:$C$128,'Risk Charges'!D$117:D$128,,0)","v":0.124},{"$f":"_xlfn.XLOOKUP($V138,'Risk Charges'!$C$117:$C$128,'Risk Charges'!E$117:E$128,,0)","v":0.105},{"$f":"_xlfn.XLOOKUP($V138,'Risk Charges'!$C$117:$C$128,'Risk Charges'!F$117:F$128,,0)","v":0.09},{"$f":"_xlfn.XLOOKUP($V138,'Risk Charges'!$C$117:$C$128,'Risk Charges'!G$117:G$128,,0)","v":7.4999999999999997E-2},{"$f":"_xlfn.XLOOKUP($V138,'Risk Charges'!$C$132:$C$143,'Risk Charges'!D$132:D$143,,0)","v":0.155},{"$f":"_xlfn.XLOOKUP($V138,'Risk Charges'!$C$132:$C$143,'Risk Charges'!E$132:E$143,,0)","v":0.13100000000000001},{"$f":"_xlfn.XLOOKUP($V138,'Risk Charges'!$C$132:$C$143,'Risk Charges'!F$132:F$143,,0)","v":0.113},{"$f":"_xlfn.XLOOKUP($V138,'Risk Charges'!$C$132:$C$143,'Risk Charges'!G$132:G$143,,0)","v":9.4E-2}]
[null,null,null,"Marine, aviation - cargo",{"$f":"W139*Input!$F533","v":0},{"$f":"X139*Input!$F533","v":0},{"$f":"Y139*Input!$F533","v":0},{"$f":"Z139*Input!$F533","v":0},null,null,null,null,"Marine, aviation - cargo",{"$f":"AA139*Input!$G533","v":0},{"$f":"AB139*Input!$G533","v":0},{"$f":"AC139*Input!$G533","v":0},{"$f":"AD139*Input!$G533","v":0},null,null,"Marine, aviation - cargo","MAT",6,{"$f":"_xlfn.XLOOKUP($V139,'Risk Charges'!$C$117:$C$128,'Risk Charges'!D$117:D$128,,0)","v":0.33},{"$f":"_xlfn.XLOOKUP($V139,'Risk Charges'!$C$117:$C$128,'Risk Charges'!E$117:E$128,,0)","v":0.28000000000000003},{"$f":"_xlfn.XLOOKUP($V139,'Risk Charges'!$C$117:$C$128,'Risk Charges'!F$117:F$128,,0)","v":0.24},{"$f":"_xlfn.XLOOKUP($V139,'Risk Charges'!$C$117:$C$128,'Risk Charges'!G$117:G$128,,0)","v":0.2},{"$f":"_xlfn.XLOOKUP($V139,'Risk Charges'!$C$132:$C$143,'Risk Charges'!D$132:D$143,,0)","v":0.41299999999999998},{"$f":"_xlfn.XLOOKUP($V139,'Risk Charges'!$C$132:$C$143,'Risk Charges'!E$132:E$143,,0)","v":0.35},{"$f":"_xlfn.XLOOKUP($V139,'Risk Charges'!$C$132:$C$143,'Risk Charges'!F$132:F$143,,0)","v":0.3},{"$f":"_xlfn.XLOOKUP($V139,'Risk Charges'!$C$132:$C$143,'Risk Charges'!G$132:G$143,,0)","v":0.25}]
[null,null,null,"Marine, aviation - hull",{"$f":"W140*Input!$F534","v":0},{"$f":"X140*Input!$F534","v":0},{"$f":"Y140*Input!$F534","v":0},{"$f":"Z140*Input!$F534","v":0},null,null,null,null,"Marine, aviation - hull",{"$f":"AA140*Input!$G534","v":0},{"$f":"AB140*Input!$G534","v":0},{"$f":"AC140*Input!$G534","v":0},{"$f":"AD140*Input!$G534","v":0},null,null,"Marine, aviation - hull","MAT",10,{"$f":"_xlfn.XLOOKUP($V140,'Risk Charges'!$C$117:$C$128,'Risk Charges'!D$117:D$128,,0)","v":0.66},{"$f":"_xlfn.XLOOKUP($V140,'Risk Charges'!$C$117:$C$128,'Risk Charges'!E$117:E$128,,0)","v":0.56000000000000005},{"$f":"_xlfn.XLOOKUP($V140,'Risk Charges'!$C$117:$C$128,'Risk Charges'!F$117:F$128,,0)","v":0.48},{"$f":"_xlfn.XLOOKUP($V140,'Risk Charges'!$C$117:$C$128,'Risk Charges'!G$117:G$128,,0)","v":0.4},{"$f":"_xlfn.XLOOKUP($V140,'Risk Charges'!$C$132:$C$143,'Risk Charges'!D$132:D$143,,0)","v":0.82499999999999996},{"$f":"_xlfn.XLOOKUP($V140,'Risk Charges'!$C$132:$C$143,'Risk Charges'!E$132:E$143,,0)","v":0.7},{"$f":"_xlfn.XLOOKUP($V140,'Risk Charges'!$C$132:$C$143,'Risk Charges'!F$132:F$143,,0)","v":0.6},{"$f":"_xlfn.XLOOKUP($V140,'Risk Charges'!$C$132:$C$143,'Risk Charges'!G$132:G$143,,0)","v":0.5}]
[null,null,null,"Marine protection & indemnity",{"$f":"W141*Input!$F535","v":0},{"$f":"X141*Input!$F535","v":0},{"$f":"Y141*Input!$F535","v":0},{"$f":"Z141*Input!$F535","v":0},null,null,null,null,"Marine protection & indemnity",{"$f":"AA141*Input!$G535","v":0},{"$f":"AB141*Input!$G535","v":0},{"$f":"AC141*Input!$G535","v":0},{"$f":"AD141*Input!$G535","v":0},null,null,"Marine protection & indemnity","MAT",8,{"$f":"_xlfn.XLOOKUP($V141,'Risk Charges'!$C$117:$C$128,'Risk Charges'!D$117:D$128,,0)","v":0.495},{"$f":"_xlfn.XLOOKUP($V141,'Risk Charges'!$C$117:$C$128,'Risk Charges'!E$117:E$128,,0)","v":0.42},{"$f":"_xlfn.XLOOKUP($V141,'Risk Charges'!$C$117:$C$128,'Risk Charges'!F$117:F$128,,0)","v":0.36},{"$f":"_xlfn.XLOOKUP($V141,'Risk Charges'!$C$117:$C$128,'Risk Charges'!G$117:G$128,,0)","v":0.3},{"$f":"_xlfn.XLOOKUP($V141,'Risk Charges'!$C$132:$C$143,'Risk Charges'!D$132:D$143,,0)","v":0.61899999999999999},{"$f":"_xlfn.XLOOKUP($V141,'Risk Charges'!$C$132:$C$143,'Risk Charges'!E$132:E$143,,0)","v":0.52500000000000002},{"$f":"_xlfn.XLOOKUP($V141,'Risk Charges'!$C$132:$C$143,'Risk Charges'!F$132:F$143,,0)","v":0.45},{"$f":"_xlfn.XLOOKUP($V141,'Risk Charges'!$C$132:$C$143,'Risk Charges'!G$132:G$143,,0)","v":0.375}]
[null,null,null,"Travel",{"$f":"W142*Input!$F536","v":0},{"$f":"X142*Input!$F536","v":0},{"$f":"Y142*Input!$F536","v":0},{"$f":"Z142*Input!$F536","v":0},null,null,null,null,"Travel",{"$f":"AA142*Input!$G536","v":0},{"$f":"AB142*Input!$G536","v":0},{"$f":"AC142*Input!$G536","v":0},{"$f":"AD142*Input!$G536","v":0},null,null,"Travel","Other",5,{"$f":"_xlfn.XLOOKUP($V142,'Risk Charges'!$C$117:$C$128,'Risk Charges'!D$117:D$128,,0)","v":0.248},{"$f":"_xlfn.XLOOKUP($V142,'Risk Charges'!$C$117:$C$128,'Risk Charges'!E$117:E$128,,0)","v":0.21},{"$f":"_xlfn.XLOOKUP($V142,'Risk Charges'!$C$117:$C$128,'Risk Charges'!F$117:F$128,,0)","v":0.18},{"$f":"_xlfn.XLOOKUP($V142,'Risk Charges'!$C$117:$C$128,'Risk Charges'!G$117:G$128,,0)","v":0.15},{"$f":"_xlfn.XLOOKUP($V142,'Risk Charges'!$C$132:$C$143,'Risk Charges'!D$132:D$143,,0)","v":0.31},{"$f":"_xlfn.XLOOKUP($V142,'Risk Charges'!$C$132:$C$143,'Risk Charges'!E$132:E$143,,0)","v":0.26300000000000001},{"$f":"_xlfn.XLOOKUP($V142,'Risk Charges'!$C$132:$C$143,'Risk Charges'!F$132:F$143,,0)","v":0.22500000000000001},{"$f":"_xlfn.XLOOKUP($V142,'Risk Charges'!$C$132:$C$143,'Risk Charges'!G$132:G$143,,0)","v":0.188}]
[null,null,null,"Other",{"$f":"W143*Input!$F537","v":0},{"$f":"X143*Input!$F537","v":0},{"$f":"Y143*Input!$F537","v":0},{"$f":"Z143*Input!$F537","v":0},null,null,null,null,"Other",{"$f":"AA143*Input!$G537","v":0},{"$f":"AB143*Input!$G537","v":0},{"$f":"AC143*Input!$G537","v":0},{"$f":"AD143*Input!$G537","v":0},null,null,"Other","Other",12,{"$f":"_xlfn.XLOOKUP($V143,'Risk Charges'!$C$117:$C$128,'Risk Charges'!D$117:D$128,,0)","v":0.99},{"$f":"_xlfn.XLOOKUP($V143,'Risk Charges'!$C$117:$C$128,'Risk Charges'!E$117:E$128,,0)","v":0.84},{"$f":"_xlfn.XLOOKUP($V143,'Risk Charges'!$C$117:$C$128,'Risk Charges'!F$117:F$128,,0)","v":0.72},{"$f":"_xlfn.XLOOKUP($V143,'Risk Charges'!$C$117:$C$128,'Risk Charges'!G$117:G$128,,0)","v":0.6},{"$f":"_xlfn.XLOOKUP($V143,'Risk Charges'!$C$132:$C$143,'Risk Charges'!D$132:D$143,,0)","v":1.238},{"$f":"_xlfn.XLOOKUP($V143,'Risk Charges'!$C$132:$C$143,'Risk Charges'!E$132:E$143,,0)","v":1.05},{"$f":"_xlfn.XLOOKUP($V143,'Risk Charges'!$C$132:$C$143,'Risk Charges'!F$132:F$143,,0)","v":0.9},{"$f":"_xlfn.XLOOKUP($V143,'Risk Charges'!$C$132:$C$143,'Risk Charges'!G$132:G$143,,0)","v":0.75}]
[null,"Latin American Risks",null,null,null,null,null,null,null,null,"Latin American Risks",null,null,null,null,null,null,null,"Latin American Risks"]
[null,null,null,{"$f":"T145","v":"Employers liability"},{"$f":"W145*Input!$F539","v":0},{"$f":"X145*Input!$F539","v":0},{"$f":"Y145*Input!$F539","v":0},{"$f":"Z145*Input!$F539","v":0},null,null,null,null,{"$f":"T145","v":"Employers liability"},{"$f":"AA145*Input!$G539","v":0},{"$f":"AB145*Input!$G539","v":0},{"$f":"AC145*Input!$G539","v":0},{"$f":"AD145*Input!$G539","v":0},null,null,"Employers liability","Liability",6,{"$f":"_xlfn.XLOOKUP($V145,'Risk Charges'!$C$117:$C$128,'Risk Charges'!D$117:D$128,,0)","v":0.33},{"$f":"_xlfn.XLOOKUP($V145,'Risk Charges'!$C$117:$C$128,'Risk Charges'!E$117:E$128,,0)","v":0.28000000000000003},{"$f":"_xlfn.XLOOKUP($V145,'Risk Charges'!$C$117:$C$128,'Risk Charges'!F$117:F$128,,0)","v":0.24},{"$f":"_xlfn.XLOOKUP($V145,'Risk Charges'!$C$117:$C$128,'Risk Charges'!G$117:G$128,,0)","v":0.2},{"$f":"_xlfn.XLOOKUP($V145,'Risk Charges'!$C$132:$C$143,'Risk Charges'!D$132:D$143,,0)","v":0.41299999999999998},{"$f":"_xlfn.XLOOKUP($V145,'Risk Charges'!$C$132:$C$143,'Risk Charges'!E$132:E$143,,0)","v":0.35},{"$f":"_xlfn.XLOOKUP($V145,'Risk Charges'!$C$132:$C$143,'Risk Charges'!F$132:F$143,,0)","v":0.3},{"$f":"_xlfn.XLOOKUP($V145,'Risk Charges'!$C$132:$C$143,'Risk Charges'!G$132:G$143,,0)","v":0.25}]
[null,null,null,"General liability",{"$f":"W146*Input!$F540","v":0},{"$f":"X146*Input!$F540","v":0},{"$f":"Y146*Input!$F540","v":0},{"$f":"Z146*Input!$F540","v":0},null,null,null,null,"General liability",{"$f":"AA146*Input!$G540","v":0},{"$f":"AB146*Input!$G540","v":0},{"$f":"AC146*Input!$G540","v":0},{"$f":"AD146*Input!$G540","v":0},null,null,"General liability","Liability",6,{"$f":"_xlfn.XLOOKUP($V146,'Risk Charges'!$C$117:$C$128,'Risk Charges'!D$117:D$128,,0)","v":0.33},{"$f":"_xlfn.XLOOKUP($V146,'Risk Charges'!$C$117:$C$128,'Risk Charges'!E$117:E$128,,0)","v":0.28000000000000003},{"$f":"_xlfn.XLOOKUP($V146,'Risk Charges'!$C$117:$C$128,'Risk Charges'!F$117:F$128,,0)","v":0.24},{"$f":"_xlfn.XLOOKUP($V146,'Risk Charges'!$C$117:$C$128,'Risk Charges'!G$117:G$128,,0)","v":0.2},{"$f":"_xlfn.XLOOKUP($V146,'Risk Charges'!$C$132:$C$143,'Risk Charges'!D$132:D$143,,0)","v":0.41299999999999998},{"$f":"_xlfn.XLOOKUP($V146,'Risk Charges'!$C$132:$C$143,'Risk Charges'!E$132:E$143,,0)","v":0.35},{"$f":"_xlfn.XLOOKUP($V146,'Risk Charges'!$C$132:$C$143,'Risk Charges'!F$132:F$143,,0)","v":0.3},{"$f":"_xlfn.XLOOKUP($V146,'Risk Charges'!$C$132:$C$143,'Risk Charges'!G$132:G$143,,0)","v":0.25}]
[null,null,null,"Professional indemnity",{"$f":"W147*Input!$F541","v":0},{"$f":"X147*Input!$F541","v":0},{"$f":"Y147*Input!$F541","v":0},{"$f":"Z147*Input!$F541","v":0},null,null,null,null,"Professional indemnity",{"$f":"AA147*Input!$G541","v":0},{"$f":"AB147*Input!$G541","v":0},{"$f":"AC147*Input!$G541","v":0},{"$f":"AD147*Input!$G541","v":0},null,null,"Professional indemnity","Liability",8,{"$f":"_xlfn.XLOOKUP($V147,'Risk Charges'!$C$117:$C$128,'Risk Charges'!D$117:D$128,,0)","v":0.495},{"$f":"_xlfn.XLOOKUP($V147,'Risk Charges'!$C$117:$C$128,'Risk Charges'!E$117:E$128,,0)","v":0.42},{"$f":"_xlfn.XLOOKUP($V147,'Risk Charges'!$C$117:$C$128,'Risk Charges'!F$117:F$128,,0)","v":0.36},{"$f":"_xlfn.XLOOKUP($V147,'Risk Charges'!$C$117:$C$128,'Risk Charges'!G$117:G$128,,0)","v":0.3},{"$f":"_xlfn.XLOOKUP($V147,'Risk Charges'!$C$132:$C$143,'Risk Charges'!D$132:D$143,,0)","v":0.61899999999999999},{"$f":"_xlfn.XLOOKUP($V147,'Risk Charges'!$C$132:$C$143,'Risk Charges'!E$132:E$143,,0)","v":0.52500000000000002},{"$f":"_xlfn.XLOOKUP($V147,'Risk Charges'!$C$132:$C$143,'Risk Charges'!F$132:F$143,,0)","v":0.45},{"$f":"_xlfn.XLOOKUP($V147,'Risk Charges'!$C$132:$C$143,'Risk Charges'!G$132:G$143,,0)","v":0.375}]
[null,null,null,"Commercial property",{"$f":"W148*Input!$F542","v":0},{"$f":"X148*Input!$F542","v":0},{"$f":"Y148*Input!$F542","v":0},{"$f":"Z148*Input!$F542","v":0},null,null,null,null,"Commercial property",{"$f":"AA148*Input!$G542","v":0},{"$f":"AB148*Input!$G542","v":0},{"$f":"AC148*Input!$G542","v":0},{"$f":"AD148*Input!$G542","v":0},null,null,"Commercial property","Property",12,{"$f":"_xlfn.XLOOKUP($V148,'Risk Charges'!$C$117:$C$128,'Risk Charges'!D$117:D$128,,0)","v":0.99},{"$f":"_xlfn.XLOOKUP($V148,'Risk Charges'!$C$117:$C$128,'Risk Charges'!E$117:E$128,,0)","v":0.84},{"$f":"_xlfn.XLOOKUP($V148,'Risk Charges'!$C$117:$C$128,'Risk Charges'!F$117:F$128,,0)","v":0.72},{"$f":"_xlfn.XLOOKUP($V148,'Risk Charges'!$C$117:$C$128,'Risk Charges'!G$117:G$128,,0)","v":0.6},{"$f":"_xlfn.XLOOKUP($V148,'Risk Charges'!$C$132:$C$143,'Risk Charges'!D$132:D$143,,0)","v":1.238},{"$f":"_xlfn.XLOOKUP($V148,'Risk Charges'!$C$132:$C$143,'Risk Charges'!E$132:E$143,,0)","v":1.05},{"$f":"_xlfn.XLOOKUP($V148,'Risk Charges'!$C$132:$C$143,'Risk Charges'!F$132:F$143,,0)","v":0.9},{"$f":"_xlfn.XLOOKUP($V148,'Risk Charges'!$C$132:$C$143,'Risk Charges'!G$132:G$143,,0)","v":0.75}]
[null,null,null,"Domestic property",{"$f":"W149*Input!$F543","v":0},{"$f":"X149*Input!$F543","v":0},{"$f":"Y149*Input!$F543","v":0},{"$f":"Z149*Input!$F543","v":0},null,null,null,null,"Domestic property",{"$f":"AA149*Input!$G543","v":0},{"$f":"AB149*Input!$G543","v":0},{"$f":"AC149*Input!$G543","v":0},{"$f":"AD149*Input!$G543","v":0},null,null,"Domestic property","Property",7,{"$f":"_xlfn.XLOOKUP($V149,'Risk Charges'!$C$117:$C$128,'Risk Charges'!D$117:D$128,,0)","v":0.41299999999999998},{"$f":"_xlfn.XLOOKUP($V149,'Risk Charges'!$C$117:$C$128,'Risk Charges'!E$117:E$128,,0)","v":0.35},{"$f":"_xlfn.XLOOKUP($V149,'Risk Charges'!$C$117:$C$128,'Risk Charges'!F$117:F$128,,0)","v":0.3},{"$f":"_xlfn.XLOOKUP($V149,'Risk Charges'!$C$117:$C$128,'Risk Charges'!G$117:G$128,,0)","v":0.25},{"$f":"_xlfn.XLOOKUP($V149,'Risk Charges'!$C$132:$C$143,'Risk Charges'!D$132:D$143,,0)","v":0.51600000000000001},{"$f":"_xlfn.XLOOKUP($V149,'Risk Charges'!$C$132:$C$143,'Risk Charges'!E$132:E$143,,0)","v":0.438},{"$f":"_xlfn.XLOOKUP($V149,'Risk Charges'!$C$132:$C$143,'Risk Charges'!F$132:F$143,,0)","v":0.375},{"$f":"_xlfn.XLOOKUP($V149,'Risk Charges'!$C$132:$C$143,'Risk Charges'!G$132:G$143,,0)","v":0.313}]
[null,null,null,"Mexico farm & ranch",{"$f":"W150*Input!$F544","v":0},{"$f":"X150*Input!$F544","v":0},{"$f":"Y150*Input!$F544","v":0},{"$f":"Z150*Input!$F544","v":0},null,null,null,null,"Mexico farm & ranch",{"$f":"AA150*Input!$G544","v":0},{"$f":"AB150*Input!$G544","v":0},{"$f":"AC150*Input!$G544","v":0},{"$f":"AD150*Input!$G544","v":0},null,null,"Mexico farm & ranch","Property",12,{"$f":"_xlfn.XLOOKUP($V150,'Risk Charges'!$C$117:$C$128,'Risk Charges'!D$117:D$128,,0)","v":0.99},{"$f":"_xlfn.XLOOKUP($V150,'Risk Charges'!$C$117:$C$128,'Risk Charges'!E$117:E$128,,0)","v":0.84},{"$f":"_xlfn.XLOOKUP($V150,'Risk Charges'!$C$117:$C$128,'Risk Charges'!F$117:F$128,,0)","v":0.72},{"$f":"_xlfn.XLOOKUP($V150,'Risk Charges'!$C$117:$C$128,'Risk Charges'!G$117:G$128,,0)","v":0.6},{"$f":"_xlfn.XLOOKUP($V150,'Risk Charges'!$C$132:$C$143,'Risk Charges'!D$132:D$143,,0)","v":1.238},{"$f":"_xlfn.XLOOKUP($V150,'Risk Charges'!$C$132:$C$143,'Risk Charges'!E$132:E$143,,0)","v":1.05},{"$f":"_xlfn.XLOOKUP($V150,'Risk Charges'!$C$132:$C$143,'Risk Charges'!F$132:F$143,,0)","v":0.9},{"$f":"_xlfn.XLOOKUP($V150,'Risk Charges'!$C$132:$C$143,'Risk Charges'!G$132:G$143,,0)","v":0.75}]
[null,null,null,"Property all inclusive",{"$f":"W151*Input!$F545","v":0},{"$f":"X151*Input!$F545","v":0},{"$f":"Y151*Input!$F545","v":0},{"$f":"Z151*Input!$F545","v":0},null,null,null,null,"Property all inclusive",{"$f":"AA151*Input!$G545","v":0},{"$f":"AB151*Input!$G545","v":0},{"$f":"AC151*Input!$G545","v":0},{"$f":"AD151*Input!$G545","v":0},null,null,"Property all inclusive","Property",7,{"$f":"_xlfn.XLOOKUP($V151,'Risk Charges'!$C$117:$C$128,'Risk Charges'!D$117:D$128,,0)","v":0.41299999999999998},{"$f":"_xlfn.XLOOKUP($V151,'Risk Charges'!$C$117:$C$128,'Risk Charges'!E$117:E$128,,0)","v":0.35},{"$f":"_xlfn.XLOOKUP($V151,'Risk Charges'!$C$117:$C$128,'Risk Charges'!F$117:F$128,,0)","v":0.3},{"$f":"_xlfn.XLOOKUP($V151,'Risk Charges'!$C$117:$C$128,'Risk Charges'!G$117:G$128,,0)","v":0.25},{"$f":"_xlfn.XLOOKUP($V151,'Risk Charges'!$C$132:$C$143,'Risk Charges'!D$132:D$143,,0)","v":0.51600000000000001},{"$f":"_xlfn.XLOOKUP($V151,'Risk Charges'!$C$132:$C$143,'Risk Charges'!E$132:E$143,,0)","v":0.438},{"$f":"_xlfn.XLOOKUP($V151,'Risk Charges'!$C$132:$C$143,'Risk Charges'!F$132:F$143,,0)","v":0.375},{"$f":"_xlfn.XLOOKUP($V151,'Risk Charges'!$C$132:$C$143,'Risk Charges'!G$132:G$143,,0)","v":0.313}]
[null,null,null,"Motor all inclusive",{"$f":"W152*Input!$F546","v":0},{"$f":"X152*Input!$F546","v":0},{"$f":"Y152*Input!$F546","v":0},{"$f":"Z152*Input!$F546","v":0},null,null,null,null,"Motor all inclusive",{"$f":"AA152*Input!$G546","v":0},{"$f":"AB152*Input!$G546","v":0},{"$f":"AC152*Input!$G546","v":0},{"$f":"AD152*Input!$G546","v":0},null,null,"Motor all inclusive","Motor",4,{"$f":"_xlfn.XLOOKUP($V152,'Risk Charges'!$C$117:$C$128,'Risk Charges'!D$117:D$128,,0)","v":0.16500000000000001},{"$f":"_xlfn.XLOOKUP($V152,'Risk Charges'!$C$117:$C$128,'Risk Charges'!E$117:E$128,,0)","v":0.14000000000000001},{"$f":"_xlfn.XLOOKUP($V152,'Risk Charges'!$C$117:$C$128,'Risk Charges'!F$117:F$128,,0)","v":0.12},{"$f":"_xlfn.XLOOKUP($V152,'Risk Charges'!$C$117:$C$128,'Risk Charges'!G$117:G$128,,0)","v":0.1},{"$f":"_xlfn.XLOOKUP($V152,'Risk Charges'!$C$132:$C$143,'Risk Charges'!D$132:D$143,,0)","v":0.20599999999999999},{"$f":"_xlfn.XLOOKUP($V152,'Risk Charges'!$C$132:$C$143,'Risk Charges'!E$132:E$143,,0)","v":0.17499999999999999},{"$f":"_xlfn.XLOOKUP($V152,'Risk Charges'!$C$132:$C$143,'Risk Charges'!F$132:F$143,,0)","v":0.15},{"$f":"_xlfn.XLOOKUP($V152,'Risk Charges'!$C$132:$C$143,'Risk Charges'!G$132:G$143,,0)","v":0.125}]
[null,null,null,"Credit",{"$f":"W153*Input!$F547","v":0},{"$f":"X153*Input!$F547","v":0},{"$f":"Y153*Input!$F547","v":0},{"$f":"Z153*Input!$F547","v":0},null,null,null,null,"Credit",{"$f":"AA153*Input!$G547","v":0},{"$f":"AB153*Input!$G547","v":0},{"$f":"AC153*Input!$G547","v":0},{"$f":"AD153*Input!$G547","v":0},null,null,"Credit","Financial",11,{"$f":"_xlfn.XLOOKUP($V153,'Risk Charges'!$C$117:$C$128,'Risk Charges'!D$117:D$128,,0)","v":0.82499999999999996},{"$f":"_xlfn.XLOOKUP($V153,'Risk Charges'!$C$117:$C$128,'Risk Charges'!E$117:E$128,,0)","v":0.7},{"$f":"_xlfn.XLOOKUP($V153,'Risk Charges'!$C$117:$C$128,'Risk Charges'!F$117:F$128,,0)","v":0.6},{"$f":"_xlfn.XLOOKUP($V153,'Risk Charges'!$C$117:$C$128,'Risk Charges'!G$117:G$128,,0)","v":0.5},{"$f":"_xlfn.XLOOKUP($V153,'Risk Charges'!$C$132:$C$143,'Risk Charges'!D$132:D$143,,0)","v":1.0309999999999999},{"$f":"_xlfn.XLOOKUP($V153,'Risk Charges'!$C$132:$C$143,'Risk Charges'!E$132:E$143,,0)","v":0.875},{"$f":"_xlfn.XLOOKUP($V153,'Risk Charges'!$C$132:$C$143,'Risk Charges'!F$132:F$143,,0)","v":0.75},{"$f":"_xlfn.XLOOKUP($V153,'Risk Charges'!$C$132:$C$143,'Risk Charges'!G$132:G$143,,0)","v":0.625}]
[null,null,null,"Fidelity",{"$f":"W154*Input!$F548","v":0},{"$f":"X154*Input!$F548","v":0},{"$f":"Y154*Input!$F548","v":0},{"$f":"Z154*Input!$F548","v":0},null,null,null,null,"Fidelity",{"$f":"AA154*Input!$G548","v":0},{"$f":"AB154*Input!$G548","v":0},{"$f":"AC154*Input!$G548","v":0},{"$f":"AD154*Input!$G548","v":0},null,null,"Fidelity","Financial",10,{"$f":"_xlfn.XLOOKUP($V154,'Risk Charges'!$C$117:$C$128,'Risk Charges'!D$117:D$128,,0)","v":0.66},{"$f":"_xlfn.XLOOKUP($V154,'Risk Charges'!$C$117:$C$128,'Risk Charges'!E$117:E$128,,0)","v":0.56000000000000005},{"$f":"_xlfn.XLOOKUP($V154,'Risk Charges'!$C$117:$C$128,'Risk Charges'!F$117:F$128,,0)","v":0.48},{"$f":"_xlfn.XLOOKUP($V154,'Risk Charges'!$C$117:$C$128,'Risk Charges'!G$117:G$128,,0)","v":0.4},{"$f":"_xlfn.XLOOKUP($V154,'Risk Charges'!$C$132:$C$143,'Risk Charges'!D$132:D$143,,0)","v":0.82499999999999996},{"$f":"_xlfn.XLOOKUP($V154,'Risk Charges'!$C$132:$C$143,'Risk Charges'!E$132:E$143,,0)","v":0.7},{"$f":"_xlfn.XLOOKUP($V154,'Risk Charges'!$C$132:$C$143,'Risk Charges'!F$132:F$143,,0)","v":0.6},{"$f":"_xlfn.XLOOKUP($V154,'Risk Charges'!$C$132:$C$143,'Risk Charges'!G$132:G$143,,0)","v":0.5}]
[null,null,null,"Surety",{"$f":"W155*Input!$F549","v":0},{"$f":"X155*Input!$F549","v":0},{"$f":"Y155*Input!$F549","v":0},{"$f":"Z155*Input!$F549","v":0},null,null,null,null,"Surety",{"$f":"AA155*Input!$G549","v":0},{"$f":"AB155*Input!$G549","v":0},{"$f":"AC155*Input!$G549","v":0},{"$f":"AD155*Input!$G549","v":0},null,null,"Surety","Financial",11,{"$f":"_xlfn.XLOOKUP($V155,'Risk Charges'!$C$117:$C$128,'Risk Charges'!D$117:D$128,,0)","v":0.82499999999999996},{"$f":"_xlfn.XLOOKUP($V155,'Risk Charges'!$C$117:$C$128,'Risk Charges'!E$117:E$128,,0)","v":0.7},{"$f":"_xlfn.XLOOKUP($V155,'Risk Charges'!$C$117:$C$128,'Risk Charges'!F$117:F$128,,0)","v":0.6},{"$f":"_xlfn.XLOOKUP($V155,'Risk Charges'!$C$117:$C$128,'Risk Charges'!G$117:G$128,,0)","v":0.5},{"$f":"_xlfn.XLOOKUP($V155,'Risk Charges'!$C$132:$C$143,'Risk Charges'!D$132:D$143,,0)","v":1.0309999999999999},{"$f":"_xlfn.XLOOKUP($V155,'Risk Charges'!$C$132:$C$143,'Risk Charges'!E$132:E$143,,0)","v":0.875},{"$f":"_xlfn.XLOOKUP($V155,'Risk Charges'!$C$132:$C$143,'Risk Charges'!F$132:F$143,,0)","v":0.75},{"$f":"_xlfn.XLOOKUP($V155,'Risk Charges'!$C$132:$C$143,'Risk Charges'!G$132:G$143,,0)","v":0.625}]
[null,null,null,"Accident & health",{"$f":"W156*Input!$F550","v":0},{"$f":"X156*Input!$F550","v":0},{"$f":"Y156*Input!$F550","v":0},{"$f":"Z156*Input!$F550","v":0},null,null,null,null,"Accident & health",{"$f":"AA156*Input!$G550","v":0},{"$f":"AB156*Input!$G550","v":0},{"$f":"AC156*Input!$G550","v":0},{"$f":"AD156*Input!$G550","v":0},null,null,"Accident & health","Health",6,{"$f":"_xlfn.XLOOKUP($V156,'Risk Charges'!$C$117:$C$128,'Risk Charges'!D$117:D$128,,0)","v":0.33},{"$f":"_xlfn.XLOOKUP($V156,'Risk Charges'!$C$117:$C$128,'Risk Charges'!E$117:E$128,,0)","v":0.28000000000000003},{"$f":"_xlfn.XLOOKUP($V156,'Risk Charges'!$C$117:$C$128,'Risk Charges'!F$117:F$128,,0)","v":0.24},{"$f":"_xlfn.XLOOKUP($V156,'Risk Charges'!$C$117:$C$128,'Risk Charges'!G$117:G$128,,0)","v":0.2},{"$f":"_xlfn.XLOOKUP($V156,'Risk Charges'!$C$132:$C$143,'Risk Charges'!D$132:D$143,,0)","v":0.41299999999999998},{"$f":"_xlfn.XLOOKUP($V156,'Risk Charges'!$C$132:$C$143,'Risk Charges'!E$132:E$143,,0)","v":0.35},{"$f":"_xlfn.XLOOKUP($V156,'Risk Charges'!$C$132:$C$143,'Risk Charges'!F$132:F$143,,0)","v":0.3},{"$f":"_xlfn.XLOOKUP($V156,'Risk Charges'!$C$132:$C$143,'Risk Charges'!G$132:G$143,,0)","v":0.25}]
[null,null,null,"Health & medical exp",{"$f":"W157*Input!$F551","v":0},{"$f":"X157*Input!$F551","v":0},{"$f":"Y157*Input!$F551","v":0},{"$f":"Z157*Input!$F551","v":0},null,null,null,null,"Health & medical exp",{"$f":"AA157*Input!$G551","v":0},{"$f":"AB157*Input!$G551","v":0},{"$f":"AC157*Input!$G551","v":0},{"$f":"AD157*Input!$G551","v":0},null,null,"Health & medical exp","Health",3,{"$f":"_xlfn.XLOOKUP($V157,'Risk Charges'!$C$117:$C$128,'Risk Charges'!D$117:D$128,,0)","v":0.124},{"$f":"_xlfn.XLOOKUP($V157,'Risk Charges'!$C$117:$C$128,'Risk Charges'!E$117:E$128,,0)","v":0.105},{"$f":"_xlfn.XLOOKUP($V157,'Risk Charges'!$C$117:$C$128,'Risk Charges'!F$117:F$128,,0)","v":0.09},{"$f":"_xlfn.XLOOKUP($V157,'Risk Charges'!$C$117:$C$128,'Risk Charges'!G$117:G$128,,0)","v":7.4999999999999997E-2},{"$f":"_xlfn.XLOOKUP($V157,'Risk Charges'!$C$132:$C$143,'Risk Charges'!D$132:D$143,,0)","v":0.155},{"$f":"_xlfn.XLOOKUP($V157,'Risk Charges'!$C$132:$C$143,'Risk Charges'!E$132:E$143,,0)","v":0.13100000000000001},{"$f":"_xlfn.XLOOKUP($V157,'Risk Charges'!$C$132:$C$143,'Risk Charges'!F$132:F$143,,0)","v":0.113},{"$f":"_xlfn.XLOOKUP($V157,'Risk Charges'!$C$132:$C$143,'Risk Charges'!G$132:G$143,,0)","v":9.4E-2}]
[null,null,null,"Marine, Aviation - all inclusive",{"$f":"W158*Input!$F552","v":0},{"$f":"X158*Input!$F552","v":0},{"$f":"Y158*Input!$F552","v":0},{"$f":"Z158*Input!$F552","v":0},null,null,null,null,"Marine, Aviation - all inclusive",{"$f":"AA158*Input!$G552","v":0},{"$f":"AB158*Input!$G552","v":0},{"$f":"AC158*Input!$G552","v":0},{"$f":"AD158*Input!$G552","v":0},null,null,"Marine, Aviation - all inclusive","MAT",12,{"$f":"_xlfn.XLOOKUP($V158,'Risk Charges'!$C$117:$C$128,'Risk Charges'!D$117:D$128,,0)","v":0.99},{"$f":"_xlfn.XLOOKUP($V158,'Risk Charges'!$C$117:$C$128,'Risk Charges'!E$117:E$128,,0)","v":0.84},{"$f":"_xlfn.XLOOKUP($V158,'Risk Charges'!$C$117:$C$128,'Risk Charges'!F$117:F$128,,0)","v":0.72},{"$f":"_xlfn.XLOOKUP($V158,'Risk Charges'!$C$117:$C$128,'Risk Charges'!G$117:G$128,,0)","v":0.6},{"$f":"_xlfn.XLOOKUP($V158,'Risk Charges'!$C$132:$C$143,'Risk Charges'!D$132:D$143,,0)","v":1.238},{"$f":"_xlfn.XLOOKUP($V158,'Risk Charges'!$C$132:$C$143,'Risk Charges'!E$132:E$143,,0)","v":1.05},{"$f":"_xlfn.XLOOKUP($V158,'Risk Charges'!$C$132:$C$143,'Risk Charges'!F$132:F$143,,0)","v":0.9},{"$f":"_xlfn.XLOOKUP($V158,'Risk Charges'!$C$132:$C$143,'Risk Charges'!G$132:G$143,,0)","v":0.75}]
[null,null,null,"Marine, Aviation - cargo",{"$f":"W159*Input!$F553","v":0},{"$f":"X159*Input!$F553","v":0},{"$f":"Y159*Input!$F553","v":0},{"$f":"Z159*Input!$F553","v":0},null,null,null,null,"Marine, Aviation - cargo",{"$f":"AA159*Input!$G553","v":0},{"$f":"AB159*Input!$G553","v":0},{"$f":"AC159*Input!$G553","v":0},{"$f":"AD159*Input!$G553","v":0},null,null,"Marine, Aviation - cargo","MAT",6,{"$f":"_xlfn.XLOOKUP($V159,'Risk Charges'!$C$117:$C$128,'Risk Charges'!D$117:D$128,,0)","v":0.33},{"$f":"_xlfn.XLOOKUP($V159,'Risk Charges'!$C$117:$C$128,'Risk Charges'!E$117:E$128,,0)","v":0.28000000000000003},{"$f":"_xlfn.XLOOKUP($V159,'Risk Charges'!$C$117:$C$128,'Risk Charges'!F$117:F$128,,0)","v":0.24},{"$f":"_xlfn.XLOOKUP($V159,'Risk Charges'!$C$117:$C$128,'Risk Charges'!G$117:G$128,,0)","v":0.2},{"$f":"_xlfn.XLOOKUP($V159,'Risk Charges'!$C$132:$C$143,'Risk Charges'!D$132:D$143,,0)","v":0.41299999999999998},{"$f":"_xlfn.XLOOKUP($V159,'Risk Charges'!$C$132:$C$143,'Risk Charges'!E$132:E$143,,0)","v":0.35},{"$f":"_xlfn.XLOOKUP($V159,'Risk Charges'!$C$132:$C$143,'Risk Charges'!F$132:F$143,,0)","v":0.3},{"$f":"_xlfn.XLOOKUP($V159,'Risk Charges'!$C$132:$C$143,'Risk Charges'!G$132:G$143,,0)","v":0.25}]
[null,null,null,"Marine protection & indemnity",{"$f":"W160*Input!$F554","v":0},{"$f":"X160*Input!$F554","v":0},{"$f":"Y160*Input!$F554","v":0},{"$f":"Z160*Input!$F554","v":0},null,null,null,null,"Marine protection & indemnity",{"$f":"AA160*Input!$G554","v":0},{"$f":"AB160*Input!$G554","v":0},{"$f":"AC160*Input!$G554","v":0},{"$f":"AD160*Input!$G554","v":0},null,null,"Marine protection & indemnity","MAT",8,{"$f":"_xlfn.XLOOKUP($V160,'Risk Charges'!$C$117:$C$128,'Risk Charges'!D$117:D$128,,0)","v":0.495},{"$f":"_xlfn.XLOOKUP($V160,'Risk Charges'!$C$117:$C$128,'Risk Charges'!E$117:E$128,,0)","v":0.42},{"$f":"_xlfn.XLOOKUP($V160,'Risk Charges'!$C$117:$C$128,'Risk Charges'!F$117:F$128,,0)","v":0.36},{"$f":"_xlfn.XLOOKUP($V160,'Risk Charges'!$C$117:$C$128,'Risk Charges'!G$117:G$128,,0)","v":0.3},{"$f":"_xlfn.XLOOKUP($V160,'Risk Charges'!$C$132:$C$143,'Risk Charges'!D$132:D$143,,0)","v":0.61899999999999999},{"$f":"_xlfn.XLOOKUP($V160,'Risk Charges'!$C$132:$C$143,'Risk Charges'!E$132:E$143,,0)","v":0.52500000000000002},{"$f":"_xlfn.XLOOKUP($V160,'Risk Charges'!$C$132:$C$143,'Risk Charges'!F$132:F$143,,0)","v":0.45},{"$f":"_xlfn.XLOOKUP($V160,'Risk Charges'!$C$132:$C$143,'Risk Charges'!G$132:G$143,,0)","v":0.375}]
[null,null,null,"Travel",{"$f":"W161*Input!$F555","v":0},{"$f":"X161*Input!$F555","v":0},{"$f":"Y161*Input!$F555","v":0},{"$f":"Z161*Input!$F555","v":0},null,null,null,null,"Travel",{"$f":"AA161*Input!$G555","v":0},{"$f":"AB161*Input!$G555","v":0},{"$f":"AC161*Input!$G555","v":0},{"$f":"AD161*Input!$G555","v":0},null,null,"Travel","Other",7,{"$f":"_xlfn.XLOOKUP($V161,'Risk Charges'!$C$117:$C$128,'Risk Charges'!D$117:D$128,,0)","v":0.41299999999999998},{"$f":"_xlfn.XLOOKUP($V161,'Risk Charges'!$C$117:$C$128,'Risk Charges'!E$117:E$128,,0)","v":0.35},{"$f":"_xlfn.XLOOKUP($V161,'Risk Charges'!$C$117:$C$128,'Risk Charges'!F$117:F$128,,0)","v":0.3},{"$f":"_xlfn.XLOOKUP($V161,'Risk Charges'!$C$117:$C$128,'Risk Charges'!G$117:G$128,,0)","v":0.25},{"$f":"_xlfn.XLOOKUP($V161,'Risk Charges'!$C$132:$C$143,'Risk Charges'!D$132:D$143,,0)","v":0.51600000000000001},{"$f":"_xlfn.XLOOKUP($V161,'Risk Charges'!$C$132:$C$143,'Risk Charges'!E$132:E$143,,0)","v":0.438},{"$f":"_xlfn.XLOOKUP($V161,'Risk Charges'!$C$132:$C$143,'Risk Charges'!F$132:F$143,,0)","v":0.375},{"$f":"_xlfn.XLOOKUP($V161,'Risk Charges'!$C$132:$C$143,'Risk Charges'!G$132:G$143,,0)","v":0.313}]
[null,null,null,"Warranty",{"$f":"W162*Input!$F556","v":0},{"$f":"X162*Input!$F556","v":0},{"$f":"Y162*Input!$F556","v":0},{"$f":"Z162*Input!$F556","v":0},null,null,null,null,"Warranty",{"$f":"AA162*Input!$G556","v":0},{"$f":"AB162*Input!$G556","v":0},{"$f":"AC162*Input!$G556","v":0},{"$f":"AD162*Input!$G556","v":0},null,null,"Warranty","Other",2,{"$f":"_xlfn.XLOOKUP($V162,'Risk Charges'!$C$117:$C$128,'Risk Charges'!D$117:D$128,,0)","v":8.3000000000000004E-2},{"$f":"_xlfn.XLOOKUP($V162,'Risk Charges'!$C$117:$C$128,'Risk Charges'!E$117:E$128,,0)","v":7.0000000000000007E-2},{"$f":"_xlfn.XLOOKUP($V162,'Risk Charges'!$C$117:$C$128,'Risk Charges'!F$117:F$128,,0)","v":0.06},{"$f":"_xlfn.XLOOKUP($V162,'Risk Charges'!$C$117:$C$128,'Risk Charges'!G$117:G$128,,0)","v":0.05},{"$f":"_xlfn.XLOOKUP($V162,'Risk Charges'!$C$132:$C$143,'Risk Charges'!D$132:D$143,,0)","v":0.104},{"$f":"_xlfn.XLOOKUP($V162,'Risk Charges'!$C$132:$C$143,'Risk Charges'!E$132:E$143,,0)","v":8.7999999999999995E-2},{"$f":"_xlfn.XLOOKUP($V162,'Risk Charges'!$C$132:$C$143,'Risk Charges'!F$132:F$143,,0)","v":7.4999999999999997E-2},{"$f":"_xlfn.XLOOKUP($V162,'Risk Charges'!$C$132:$C$143,'Risk Charges'!G$132:G$143,,0)","v":6.3E-2}]
[null,null,null,"Other",{"$f":"W163*Input!$F557","v":0},{"$f":"X163*Input!$F557","v":0},{"$f":"Y163*Input!$F557","v":0},{"$f":"Z163*Input!$F557","v":0},null,null,null,null,"Other",{"$f":"AA163*Input!$G557","v":0},{"$f":"AB163*Input!$G557","v":0},{"$f":"AC163*Input!$G557","v":0},{"$f":"AD163*Input!$G557","v":0},null,null,"Other","Other",12,{"$f":"_xlfn.XLOOKUP($V163,'Risk Charges'!$C$117:$C$128,'Risk Charges'!D$117:D$128,,0)","v":0.99},{"$f":"_xlfn.XLOOKUP($V163,'Risk Charges'!$C$117:$C$128,'Risk Charges'!E$117:E$128,,0)","v":0.84},{"$f":"_xlfn.XLOOKUP($V163,'Risk Charges'!$C$117:$C$128,'Risk Charges'!F$117:F$128,,0)","v":0.72},{"$f":"_xlfn.XLOOKUP($V163,'Risk Charges'!$C$117:$C$128,'Risk Charges'!G$117:G$128,,0)","v":0.6},{"$f":"_xlfn.XLOOKUP($V163,'Risk Charges'!$C$132:$C$143,'Risk Charges'!D$132:D$143,,0)","v":1.238},{"$f":"_xlfn.XLOOKUP($V163,'Risk Charges'!$C$132:$C$143,'Risk Charges'!E$132:E$143,,0)","v":1.05},{"$f":"_xlfn.XLOOKUP($V163,'Risk Charges'!$C$132:$C$143,'Risk Charges'!F$132:F$143,,0)","v":0.9},{"$f":"_xlfn.XLOOKUP($V163,'Risk Charges'!$C$132:$C$143,'Risk Charges'!G$132:G$143,,0)","v":0.75}]
[]
[]
[]
[]
[null,"  Required Capital - Non-Life Reserve Risk"]
[]
[null,null,null,null,0.99990000000000001,0.99950000000000006,0.998,0.995,null,null,null,null,null,0.99990000000000001,0.99950000000000006,0.998,0.995]
[null,null,null,"Liability",{"$f":"(E183+N183)*$Z$25*$Z$30","v":0},0,0,0,null,null,null,null,"Adjusted Liability",{"$f":"E171+N8","v":0},0,0,0]
[null,null,null,"Property",0,0,0,0,null,null,null,null,"Adjusted Property",0,0,0,0]
[null,null,null,"Motor",0,0,0,0,null,null,null,null,"Adjusted Motor",0,0,0,0]
[null,null,null,"Financial",{"$f":"(E186+N186)*$Z$25*$Z$30+W14","v":0},{"$f":"(F186+O186)*$Z$25*$Z$30+X14","v":0},{"$f":"(G186+P186)*$Z$25*$Z$30+Y14","v":0},{"$f":"(H186+Q186)*$Z$25*$Z$30+Z14","v":0},null,null,null,null,"Adjusted Financial",0,0,0,0]
[null,null,null,"Health",{"$f":"(E187+N187)*$Z$25*$Z$30","v":0},0,0,0,null,null,null,null,"Adjusted Health",0,0,0,0]
[null,null,null,"MAT",0,0,0,0,null,null,null,null,"Adjusted MAT",0,0,0,0]
[null,null,null,"Other",0,0,0,0,null,null,null,null,"Adjusted Other",0,0,0,0]
[]
[null,null,null,"Total Capital Charge - Reserve",{"$f":"SUM(E171:E177)","v":0},{"$f":"SUM(F171:F177)","v":0},{"$f":"SUM(G171:G177)","v":0},0,null,null,null,null,"Adjusted total - Reserve",{"$f":"SUM(N171:N177)","v":0},{"$f":"SUM(O171:O177)","v":0},{"$f":"SUM(P171:P177)","v":0},{"$f":"SUM(Q171:Q177)","v":0}]
[]
[null,"  Required Capital - Non-Life Reserve Risk (proportional)",null,null,null,null,null,null,null,null,"  Required Capital - Non-Life Reserve Risk (non-proportional)"]
[null,null,null,null,0.99990000000000001,0.99950000000000006,0.998,0.995,null,null,null,null,null,0.99990000000000001,0.99950000000000006,0.998,0.995]
[null,null,null,"Liability",{"$f":"SUMIFS(E$195:E$299,$U$195:$U$299,$D183)","v":0},0,0,0,null,null,null,null,"Liability",{"$f":"SUMIFS(N$195:N$299,$U$195:$U$299,$M183)","v":0},0,0,0]
[null,null,null,"Property",0,0,0,0,null,null,null,null,"Property",0,0,0,0]
[null,null,null,"Motor",0,0,0,0,null,null,null,null,"Motor",0,0,0,0]
[null,null,null,"Financial",0,0,0,0,null,null,null,null,"Financial",0,0,0,0]
[null,null,null,"Health",0,0,0,0,null,null,null,null,"Health",0,0,0,0]
[null,null,null,"MAT",0,0,0,0,null,null,null,null,"MAT",0,0,0,0]
[null,null,null,"Other",0,0,0,0,null,null,null,null,"Other",0,0,0,0]
[null,null,null,null,null,null,null,null,null,null,null,null,null,null,null,null,null,null,"Business Line to Class Map - Reserve Risks"]
[null,null,null,"Total Capital Charge - Reserve (proportional)",{"$f":"SUM(E194:E299)","v":0},{"$f":"SUM(F194:F299)","v":0},{"$f":"SUM(G194:G299)","v":0},{"$f":"SUM(H194:H299)","v":0},null,null,null,null,"Total Capital Charge - Reserve (non-proportional)",{"$f":"SUM(N194:N299)","v":0},{"$f":"SUM(O194:O299)","v":0},{"$f":"SUM(P194:P299)","v":0},{"$f":"SUM(Q194:Q299)","v":0}]
[null,null,null,null,null,null,null,null,null,null,null,null,null,null,null,null,null,null,null,"Business Line","Category","Risk category",0.99990000000000001,0.99950000000000006,0.998,0.995,0.99990000000000001,0.99950000000000006,0.998,0.995]
[null,"EMEA Risks",null,null,null,null,null,null,null,null,"EMEA Risks",null,null,null,null,null,null,null,"EMEA Risks",null,null,null,"Proportional",null,null,null,"Non-proportional"]
[null,null,null,"Primary business",null,null,null,null,null,null,null,null,"Non-proportional reinsurance (treaty and facultative)"]
[null,null,null,{"$f":"T195","v":"General liability"},{"$f":"W195*Input!$F575","v":0},{"$f":"X195*Input!$F575","v":0},{"$f":"Y195*Input!$F575","v":0},{"$f":"Z195*Input!$F575","v":0},null,null,null,null,{"$f":"T195","v":"General liability"},{"$f":"AA195*Input!$G575","v":0},{"$f":"AB195*Input!$G575","v":0},{"$f":"AC195*Input!$G575","v":0},{"$f":"AD195*Input!$G575","v":0},null,null,"General liability","Liability",6,{"$f":"_xlfn.XLOOKUP($V195,'Risk Charges'!$C$117:$C$128,'Risk Charges'!D$117:D$128,,0)","v":0.33},{"$f":"_xlfn.XLOOKUP($V195,'Risk Charges'!$C$117:$C$128,'Risk Charges'!E$117:E$128,,0)","v":0.28000000000000003},{"$f":"_xlfn.XLOOKUP($V195,'Risk Charges'!$C$117:$C$128,'Risk Charges'!F$117:F$128,,0)","v":0.24},{"$f":"_xlfn.XLOOKUP($V195,'Risk Charges'!$C$117:$C$128,'Risk Charges'!G$117:G$128,,0)","v":0.2},{"$f":"_xlfn.XLOOKUP($V195,'Risk Charges'!$C$132:$C$143,'Risk Charges'!D$132:D$143,,0)","v":0.41299999999999998},{"$f":"_xlfn.XLOOKUP($V195,'Risk Charges'!$C$132:$C$143,'Risk Charges'!E$132:E$143,,0)","v":0.35},{"$f":"_xlfn.XLOOKUP($V195,'Risk Charges'!$C$132:$C$143,'Risk Charges'!F$132:F$143,,0)","v":0.3},{"$f":"_xlfn.XLOOKUP($V195,'Risk Charges'!$C$132:$C$143,'Risk Charges'!G$132:G$143,,0)","v":0.25}]
[null,null,null,"Workers compensation",{"$f":"W196*Input!$F576","v":0},{"$f":"X196*Input!$F576","v":0},{"$f":"Y196*Input!$F576","v":0},{"$f":"Z196*Input!$F576","v":0},null,null,null,null,"Workers compensation",{"$f":"AA196*Input!$G576","v":0},{"$f":"AB196*Input!$G576","v":0},{"$f":"AC196*Input!$G576","v":0},{"$f":"AD196*Input!$G576","v":0},null,null,"Workers compensation","Liability",6,{"$f":"_xlfn.XLOOKUP($V196,'Risk Charges'!$C$117:$C$128,'Risk Charges'!D$117:D$128,,0)","v":0.33},{"$f":"_xlfn.XLOOKUP($V196,'Risk Charges'!$C$117:$C$128,'Risk Charges'!E$117:E$128,,0)","v":0.28000000000000003},{"$f":"_xlfn.XLOOKUP($V196,'Risk Charges'!$C$117:$C$128,'Risk Charges'!F$117:F$128,,0)","v":0.24},{"$f":"_xlfn.XLOOKUP($V196,'Risk Charges'!$C$117:$C$128,'Risk Charges'!G$117:G$128,,0)","v":0.2},{"$f":"_xlfn.XLOOKUP($V196,'Risk Charges'!$C$132:$C$143,'Risk Charges'!D$132:D$143,,0)","v":0.41299999999999998},{"$f":"_xlfn.XLOOKUP($V196,'Risk Charges'!$C$132:$C$143,'Risk Charges'!E$132:E$143,,0)","v":0.35},{"$f":"_xlfn.XLOOKUP($V196,'Risk Charges'!$C$132:$C$143,'Risk Charges'!F$132:F$143,,0)","v":0.3},{"$f":"_xlfn.XLOOKUP($V196,'Risk Charges'!$C$132:$C$143,'Risk Charges'!G$132:G$143,,0)","v":0.25}]
[null,null,null,"Fire & other damage to property",{"$f":"W197*Input!$F577","v":0},{"$f":"X197*Input!$F577","v":0},{"$f":"Y197*Input!$F577","v":0},{"$f":"Z197*Input!$F577","v":0},null,null,null,null,"Fire & other damage to property",{"$f":"AA197*Input!$G577","v":0},{"$f":"AB197*Input!$G577","v":0},{"$f":"AC197*Input!$G577","v":0},{"$f":"AD197*Input!$G577","v":0},null,null,"Fire & other damage to property","Property",6,{"$f":"_xlfn.XLOOKUP($V197,'Risk Charges'!$C$117:$C$128,'Risk Charges'!D$117:D$128,,0)","v":0.33},{"$f":"_xlfn.XLOOKUP($V197,'Risk Charges'!$C$117:$C$128,'Risk Charges'!E$117:E$128,,0)","v":0.28000000000000003},{"$f":"_xlfn.XLOOKUP($V197,'Risk Charges'!$C$117:$C$128,'Risk Charges'!F$117:F$128,,0)","v":0.24},{"$f":"_xlfn.XLOOKUP($V197,'Risk Charges'!$C$117:$C$128,'Risk Charges'!G$117:G$128,,0)","v":0.2},{"$f":"_xlfn.XLOOKUP($V197,'Risk Charges'!$C$132:$C$143,'Risk Charges'!D$132:D$143,,0)","v":0.41299999999999998},{"$f":"_xlfn.XLOOKUP($V197,'Risk Charges'!$C$132:$C$143,'Risk Charges'!E$132:E$143,,0)","v":0.35},{"$f":"_xlfn.XLOOKUP($V197,'Risk Charges'!$C$132:$C$143,'Risk Charges'!F$132:F$143,,0)","v":0.3},{"$f":"_xlfn.XLOOKUP($V197,'Risk Charges'!$C$132:$C$143,'Risk Charges'!G$132:G$143,,0)","v":0.25}]
[null,null,null,"Motor vehicle liability",{"$f":"W198*Input!$F578","v":0},{"$f":"X198*Input!$F578","v":0},{"$f":"Y198*Input!$F578","v":0},{"$f":"Z198*Input!$F578","v":0},null,null,null,null,"Motor vehicle liability",{"$f":"AA198*Input!$G578","v":0},{"$f":"AB198*Input!$G578","v":0},{"$f":"AC198*Input!$G578","v":0},{"$f":"AD198*Input!$G578","v":0},null,null,"Motor vehicle liability","Motor",6,{"$f":"_xlfn.XLOOKUP($V198,'Risk Charges'!$C$117:$C$128,'Risk Charges'!D$117:D$128,,0)","v":0.33},{"$f":"_xlfn.XLOOKUP($V198,'Risk Charges'!$C$117:$C$128,'Risk Charges'!E$117:E$128,,0)","v":0.28000000000000003},{"$f":"_xlfn.XLOOKUP($V198,'Risk Charges'!$C$117:$C$128,'Risk Charges'!F$117:F$128,,0)","v":0.24},{"$f":"_xlfn.XLOOKUP($V198,'Risk Charges'!$C$117:$C$128,'Risk Charges'!G$117:G$128,,0)","v":0.2},{"$f":"_xlfn.XLOOKUP($V198,'Risk Charges'!$C$132:$C$143,'Risk Charges'!D$132:D$143,,0)","v":0.41299999999999998},{"$f":"_xlfn.XLOOKUP($V198,'Risk Charges'!$C$132:$C$143,'Risk Charges'!E$132:E$143,,0)","v":0.35},{"$f":"_xlfn.XLOOKUP($V198,'Risk Charges'!$C$132:$C$143,'Risk Charges'!F$132:F$143,,0)","v":0.3},{"$f":"_xlfn.XLOOKUP($V198,'Risk Charges'!$C$132:$C$143,'Risk Charges'!G$132:G$143,,0)","v":0.25}]
[null,null,null,"Other motor",{"$f":"W199*Input!$F579","v":0},{"$f":"X199*Input!$F579","v":0},{"$f":"Y199*Input!$F579","v":0},{"$f":"Z199*Input!$F579","v":0},null,null,null,null,"Other motor",{"$f":"AA199*Input!$G579","v":0},{"$f":"AB199*Input!$G579","v":0},{"$f":"AC199*Input!$G579","v":0},{"$f":"AD199*Input!$G579","v":0},null,null,"Other motor","Motor",5,{"$f":"_xlfn.XLOOKUP($V199,'Risk Charges'!$C$117:$C$128,'Risk Charges'!D$117:D$128,,0)","v":0.248},{"$f":"_xlfn.XLOOKUP($V199,'Risk Charges'!$C$117:$C$128,'Risk Charges'!E$117:E$128,,0)","v":0.21},{"$f":"_xlfn.XLOOKUP($V199,'Risk Charges'!$C$117:$C$128,'Risk Charges'!F$117:F$128,,0)","v":0.18},{"$f":"_xlfn.XLOOKUP($V199,'Risk Charges'!$C$117:$C$128,'Risk Charges'!G$117:G$128,,0)","v":0.15},{"$f":"_xlfn.XLOOKUP($V199,'Risk Charges'!$C$132:$C$143,'Risk Charges'!D$132:D$143,,0)","v":0.31},{"$f":"_xlfn.XLOOKUP($V199,'Risk Charges'!$C$132:$C$143,'Risk Charges'!E$132:E$143,,0)","v":0.26300000000000001},{"$f":"_xlfn.XLOOKUP($V199,'Risk Charges'!$C$132:$C$143,'Risk Charges'!F$132:F$143,,0)","v":0.22500000000000001},{"$f":"_xlfn.XLOOKUP($V199,'Risk Charges'!$C$132:$C$143,'Risk Charges'!G$132:G$143,,0)","v":0.188}]
[null,null,null,"Credit & suretyship",{"$f":"W200*Input!$F580","v":0},{"$f":"X200*Input!$F580","v":0},{"$f":"Y200*Input!$F580","v":0},{"$f":"Z200*Input!$F580","v":0},null,null,null,null,"Credit & suretyship",{"$f":"AA200*Input!$G580","v":0},{"$f":"AB200*Input!$G580","v":0},{"$f":"AC200*Input!$G580","v":0},{"$f":"AD200*Input!$G580","v":0},null,null,"Credit & suretyship","Financial",10,{"$f":"_xlfn.XLOOKUP($V200,'Risk Charges'!$C$117:$C$128,'Risk Charges'!D$117:D$128,,0)","v":0.66},{"$f":"_xlfn.XLOOKUP($V200,'Risk Charges'!$C$117:$C$128,'Risk Charges'!E$117:E$128,,0)","v":0.56000000000000005},{"$f":"_xlfn.XLOOKUP($V200,'Risk Charges'!$C$117:$C$128,'Risk Charges'!F$117:F$128,,0)","v":0.48},{"$f":"_xlfn.XLOOKUP($V200,'Risk Charges'!$C$117:$C$128,'Risk Charges'!G$117:G$128,,0)","v":0.4},{"$f":"_xlfn.XLOOKUP($V200,'Risk Charges'!$C$132:$C$143,'Risk Charges'!D$132:D$143,,0)","v":0.82499999999999996},{"$f":"_xlfn.XLOOKUP($V200,'Risk Charges'!$C$132:$C$143,'Risk Charges'!E$132:E$143,,0)","v":0.7},{"$f":"_xlfn.XLOOKUP($V200,'Risk Charges'!$C$132:$C$143,'Risk Charges'!F$132:F$143,,0)","v":0.6},{"$f":"_xlfn.XLOOKUP($V200,'Risk Charges'!$C$132:$C$143,'Risk Charges'!G$132:G$143,,0)","v":0.5}]
[null,null,null,"Miscellaneous financial loss",{"$f":"W201*Input!$F581","v":0},{"$f":"X201*Input!$F581","v":0},{"$f":"Y201*Input!$F581","v":0},{"$f":"Z201*Input!$F581","v":0},null,null,null,null,"Miscellaneous financial loss",{"$f":"AA201*Input!$G581","v":0},{"$f":"AB201*Input!$G581","v":0},{"$f":"AC201*Input!$G581","v":0},{"$f":"AD201*Input!$G581","v":0},null,null,"Miscellaneous financial loss","Financial",10,{"$f":"_xlfn.XLOOKUP($V201,'Risk Charges'!$C$117:$C$128,'Risk Charges'!D$117:D$128,,0)","v":0.66},{"$f":"_xlfn.XLOOKUP($V201,'Risk Charges'!$C$117:$C$128,'Risk Charges'!E$117:E$128,,0)","v":0.56000000000000005},{"$f":"_xlfn.XLOOKUP($V201,'Risk Charges'!$C$117:$C$128,'Risk Charges'!F$117:F$128,,0)","v":0.48},{"$f":"_xlfn.XLOOKUP($V201,'Risk Charges'!$C$117:$C$128,'Risk Charges'!G$117:G$128,,0)","v":0.4},{"$f":"_xlfn.XLOOKUP($V201,'Risk Charges'!$C$132:$C$143,'Risk Charges'!D$132:D$143,,0)","v":0.82499999999999996},{"$f":"_xlfn.XLOOKUP($V201,'Risk Charges'!$C$132:$C$143,'Risk Charges'!E$132:E$143,,0)","v":0.7},{"$f":"_xlfn.XLOOKUP($V201,'Risk Charges'!$C$132:$C$143,'Risk Charges'!F$132:F$143,,0)","v":0.6},{"$f":"_xlfn.XLOOKUP($V201,'Risk Charges'!$C$132:$C$143,'Risk Charges'!G$132:G$143,,0)","v":0.5}]
[null,null,null,"Health & medical expense insurance",{"$f":"W202*Input!$F582","v":0},{"$f":"X202*Input!$F582","v":0},{"$f":"Y202*Input!$F582","v":0},{"$f":"Z202*Input!$F582","v":0},null,null,null,null,"Health & medical expense insurance",{"$f":"AA202*Input!$G582","v":0},{"$f":"AB202*Input!$G582","v":0},{"$f":"AC202*Input!$G582","v":0},{"$f":"AD202*Input!$G582","v":0},null,null,"Health & medical expense insurance","Health",4,{"$f":"_xlfn.XLOOKUP($V202,'Risk Charges'!$C$117:$C$128,'Risk Charges'!D$117:D$128,,0)","v":0.16500000000000001},{"$f":"_xlfn.XLOOKUP($V202,'Risk Charges'!$C$117:$C$128,'Risk Charges'!E$117:E$128,,0)","v":0.14000000000000001},{"$f":"_xlfn.XLOOKUP($V202,'Risk Charges'!$C$117:$C$128,'Risk Charges'!F$117:F$128,,0)","v":0.12},{"$f":"_xlfn.XLOOKUP($V202,'Risk Charges'!$C$117:$C$128,'Risk Charges'!G$117:G$128,,0)","v":0.1},{"$f":"_xlfn.XLOOKUP($V202,'Risk Charges'!$C$132:$C$143,'Risk Charges'!D$132:D$143,,0)","v":0.20599999999999999},{"$f":"_xlfn.XLOOKUP($V202,'Risk Charges'!$C$132:$C$143,'Risk Charges'!E$132:E$143,,0)","v":0.17499999999999999},{"$f":"_xlfn.XLOOKUP($V202,'Risk Charges'!$C$132:$C$143,'Risk Charges'!F$132:F$143,,0)","v":0.15},{"$f":"_xlfn.XLOOKUP($V202,'Risk Charges'!$C$132:$C$143,'Risk Charges'!G$132:G$143,,0)","v":0.125}]
[null,null,null,"Marine, aviation, and transport",{"$f":"W203*Input!$F583","v":0},{"$f":"X203*Input!$F583","v":0},{"$f":"Y203*Input!$F583","v":0},{"$f":"Z203*Input!$F583","v":0},null,null,null,null,"Marine, aviation, and transport",{"$f":"AA203*Input!$G583","v":0},{"$f":"AB203*Input!$G583","v":0},{"$f":"AC203*Input!$G583","v":0},{"$f":"AD203*Input!$G583","v":0},null,null,"Marine, aviation, and transport","MAT",7,{"$f":"_xlfn.XLOOKUP($V203,'Risk Charges'!$C$117:$C$128,'Risk Charges'!D$117:D$128,,0)","v":0.41299999999999998},{"$f":"_xlfn.XLOOKUP($V203,'Risk Charges'!$C$117:$C$128,'Risk Charges'!E$117:E$128,,0)","v":0.35},{"$f":"_xlfn.XLOOKUP($V203,'Risk Charges'!$C$117:$C$128,'Risk Charges'!F$117:F$128,,0)","v":0.3},{"$f":"_xlfn.XLOOKUP($V203,'Risk Charges'!$C$117:$C$128,'Risk Charges'!G$117:G$128,,0)","v":0.25},{"$f":"_xlfn.XLOOKUP($V203,'Risk Charges'!$C$132:$C$143,'Risk Charges'!D$132:D$143,,0)","v":0.51600000000000001},{"$f":"_xlfn.XLOOKUP($V203,'Risk Charges'!$C$132:$C$143,'Risk Charges'!E$132:E$143,,0)","v":0.438},{"$f":"_xlfn.XLOOKUP($V203,'Risk Charges'!$C$132:$C$143,'Risk Charges'!F$132:F$143,,0)","v":0.375},{"$f":"_xlfn.XLOOKUP($V203,'Risk Charges'!$C$132:$C$143,'Risk Charges'!G$132:G$143,,0)","v":0.313}]
[null,null,null,"Marine protection & indemnity",{"$f":"W204*Input!$F584","v":0},{"$f":"X204*Input!$F584","v":0},{"$f":"Y204*Input!$F584","v":0},{"$f":"Z204*Input!$F584","v":0},null,null,null,null,"Marine protection & indemnity",{"$f":"AA204*Input!$G584","v":0},{"$f":"AB204*Input!$G584","v":0},{"$f":"AC204*Input!$G584","v":0},{"$f":"AD204*Input!$G584","v":0},null,null,"Marine protection & indemnity","MAT",7,{"$f":"_xlfn.XLOOKUP($V204,'Risk Charges'!$C$117:$C$128,'Risk Charges'!D$117:D$128,,0)","v":0.41299999999999998},{"$f":"_xlfn.XLOOKUP($V204,'Risk Charges'!$C$117:$C$128,'Risk Charges'!E$117:E$128,,0)","v":0.35},{"$f":"_xlfn.XLOOKUP($V204,'Risk Charges'!$C$117:$C$128,'Risk Charges'!F$117:F$128,,0)","v":0.3},{"$f":"_xlfn.XLOOKUP($V204,'Risk Charges'!$C$117:$C$128,'Risk Charges'!G$117:G$128,,0)","v":0.25},{"$f":"_xlfn.XLOOKUP($V204,'Risk Charges'!$C$132:$C$143,'Risk Charges'!D$132:D$143,,0)","v":0.51600000000000001},{"$f":"_xlfn.XLOOKUP($V204,'Risk Charges'!$C$132:$C$143,'Risk Charges'!E$132:E$143,,0)","v":0.438},{"$f":"_xlfn.XLOOKUP($V204,'Risk Charges'!$C$132:$C$143,'Risk Charges'!F$132:F$143,,0)","v":0.375},{"$f":"_xlfn.XLOOKUP($V204,'Risk Charges'!$C$132:$C$143,'Risk Charges'!G$132:G$143,,0)","v":0.313}]
[null,null,null,"Assistance",{"$f":"W205*Input!$F585","v":0},{"$f":"X205*Input!$F585","v":0},{"$f":"Y205*Input!$F585","v":0},{"$f":"Z205*Input!$F585","v":0},null,null,null,null,"Assistance",{"$f":"AA205*Input!$G585","v":0},{"$f":"AB205*Input!$G585","v":0},{"$f":"AC205*Input!$G585","v":0},{"$f":"AD205*Input!$G585","v":0},null,null,"Assistance","Other",10,{"$f":"_xlfn.XLOOKUP($V205,'Risk Charges'!$C$117:$C$128,'Risk Charges'!D$117:D$128,,0)","v":0.66},{"$f":"_xlfn.XLOOKUP($V205,'Risk Charges'!$C$117:$C$128,'Risk Charges'!E$117:E$128,,0)","v":0.56000000000000005},{"$f":"_xlfn.XLOOKUP($V205,'Risk Charges'!$C$117:$C$128,'Risk Charges'!F$117:F$128,,0)","v":0.48},{"$f":"_xlfn.XLOOKUP($V205,'Risk Charges'!$C$117:$C$128,'Risk Charges'!G$117:G$128,,0)","v":0.4},{"$f":"_xlfn.XLOOKUP($V205,'Risk Charges'!$C$132:$C$143,'Risk Charges'!D$132:D$143,,0)","v":0.82499999999999996},{"$f":"_xlfn.XLOOKUP($V205,'Risk Charges'!$C$132:$C$143,'Risk Charges'!E$132:E$143,,0)","v":0.7},{"$f":"_xlfn.XLOOKUP($V205,'Risk Charges'!$C$132:$C$143,'Risk Charges'!F$132:F$143,,0)","v":0.6},{"$f":"_xlfn.XLOOKUP($V205,'Risk Charges'!$C$132:$C$143,'Risk Charges'!G$132:G$143,,0)","v":0.5}]
[null,null,null,"Income protection",{"$f":"W206*Input!$F586","v":0},{"$f":"X206*Input!$F586","v":0},{"$f":"Y206*Input!$F586","v":0},{"$f":"Z206*Input!$F586","v":0},null,null,null,null,"Income protection",{"$f":"AA206*Input!$G586","v":0},{"$f":"AB206*Input!$G586","v":0},{"$f":"AC206*Input!$G586","v":0},{"$f":"AD206*Input!$G586","v":0},null,null,"Income protection","Other",7,{"$f":"_xlfn.XLOOKUP($V206,'Risk Charges'!$C$117:$C$128,'Risk Charges'!D$117:D$128,,0)","v":0.41299999999999998},{"$f":"_xlfn.XLOOKUP($V206,'Risk Charges'!$C$117:$C$128,'Risk Charges'!E$117:E$128,,0)","v":0.35},{"$f":"_xlfn.XLOOKUP($V206,'Risk Charges'!$C$117:$C$128,'Risk Charges'!F$117:F$128,,0)","v":0.3},{"$f":"_xlfn.XLOOKUP($V206,'Risk Charges'!$C$117:$C$128,'Risk Charges'!G$117:G$128,,0)","v":0.25},{"$f":"_xlfn.XLOOKUP($V206,'Risk Charges'!$C$132:$C$143,'Risk Charges'!D$132:D$143,,0)","v":0.51600000000000001},{"$f":"_xlfn.XLOOKUP($V206,'Risk Charges'!$C$132:$C$143,'Risk Charges'!E$132:E$143,,0)","v":0.438},{"$f":"_xlfn.XLOOKUP($V206,'Risk Charges'!$C$132:$C$143,'Risk Charges'!F$132:F$143,,0)","v":0.375},{"$f":"_xlfn.XLOOKUP($V206,'Risk Charges'!$C$132:$C$143,'Risk Charges'!G$132:G$143,,0)","v":0.313}]
[null,null,null,"Legal expense",{"$f":"W207*Input!$F587","v":0},{"$f":"X207*Input!$F587","v":0},{"$f":"Y207*Input!$F587","v":0},{"$f":"Z207*Input!$F587","v":0},null,null,null,null,"Legal expense",{"$f":"AA207*Input!$G587","v":0},{"$f":"AB207*Input!$G587","v":0},{"$f":"AC207*Input!$G587","v":0},{"$f":"AD207*Input!$G587","v":0},null,null,"Legal expense","Other",7,{"$f":"_xlfn.XLOOKUP($V207,'Risk Charges'!$C$117:$C$128,'Risk Charges'!D$117:D$128,,0)","v":0.41299999999999998},{"$f":"_xlfn.XLOOKUP($V207,'Risk Charges'!$C$117:$C$128,'Risk Charges'!E$117:E$128,,0)","v":0.35},{"$f":"_xlfn.XLOOKUP($V207,'Risk Charges'!$C$117:$C$128,'Risk Charges'!F$117:F$128,,0)","v":0.3},{"$f":"_xlfn.XLOOKUP($V207,'Risk Charges'!$C$117:$C$128,'Risk Charges'!G$117:G$128,,0)","v":0.25},{"$f":"_xlfn.XLOOKUP($V207,'Risk Charges'!$C$132:$C$143,'Risk Charges'!D$132:D$143,,0)","v":0.51600000000000001},{"$f":"_xlfn.XLOOKUP($V207,'Risk Charges'!$C$132:$C$143,'Risk Charges'!E$132:E$143,,0)","v":0.438},{"$f":"_xlfn.XLOOKUP($V207,'Risk Charges'!$C$132:$C$143,'Risk Charges'!F$132:F$143,,0)","v":0.375},{"$f":"_xlfn.XLOOKUP($V207,'Risk Charges'!$C$132:$C$143,'Risk Charges'!G$132:G$143,,0)","v":0.313}]
[null,null,null,"Other",{"$f":"W208*Input!$F588","v":0},{"$f":"X208*Input!$F588","v":0},{"$f":"Y208*Input!$F588","v":0},{"$f":"Z208*Input!$F588","v":0},null,null,null,null,"Other",{"$f":"AA208*Input!$G588","v":0},{"$f":"AB208*Input!$G588","v":0},{"$f":"AC208*Input!$G588","v":0},{"$f":"AD208*Input!$G588","v":0},null,null,"Other","Other",10,{"$f":"_xlfn.XLOOKUP($V208,'Risk Charges'!$C$117:$C$128,'Risk Charges'!D$117:D$128,,0)","v":0.66},{"$f":"_xlfn.XLOOKUP($V208,'Risk Charges'!$C$117:$C$128,'Risk Charges'!E$117:E$128,,0)","v":0.56000000000000005},{"$f":"_xlfn.XLOOKUP($V208,'Risk Charges'!$C$117:$C$128,'Risk Charges'!F$117:F$128,,0)","v":0.48},{"$f":"_xlfn.XLOOKUP($V208,'Risk Charges'!$C$117:$C$128,'Risk Charges'!G$117:G$128,,0)","v":0.4},{"$f":"_xlfn.XLOOKUP($V208,'Risk Charges'!$C$132:$C$143,'Risk Charges'!D$132:D$143,,0)","v":0.82499999999999996},{"$f":"_xlfn.XLOOKUP($V208,'Risk Charges'!$C$132:$C$143,'Risk Charges'!E$132:E$143,,0)","v":0.7},{"$f":"_xlfn.XLOOKUP($V208,'Risk Charges'!$C$132:$C$143,'Risk Charges'!F$132:F$143,,0)","v":0.6},{"$f":"_xlfn.XLOOKUP($V208,'Risk Charges'!$C$132:$C$143,'Risk Charges'!G$132:G$143,,0)","v":0.5}]
[null,"US Risks",null,null,null,null,null,null,null,null,"US Risks",null,null,null,null,null,null,null,"US Risks"]
[null,null,null,{"$f":"T210","v":"Medical malpractice - claims made"},{"$f":"W210*Input!$F590","v":0},{"$f":"X210*Input!$F590","v":0},{"$f":"Y210*Input!$F590","v":0},{"$f":"Z210*Input!$F590","v":0},null,null,null,null,{"$f":"T210","v":"Medical malpractice - claims made"},{"$f":"AA210*Input!$G590","v":0},{"$f":"AB210*Input!$G590","v":0},{"$f":"AC210*Input!$G590","v":0},{"$f":"AD210*Input!$G590","v":0},null,null,"Medical malpractice - claims made","Liability",8,{"$f":"_xlfn.XLOOKUP($V210,'Risk Charges'!$C$117:$C$128,'Risk Charges'!D$117:D$128,,0)","v":0.495},{"$f":"_xlfn.XLOOKUP($V210,'Risk Charges'!$C$117:$C$128,'Risk Charges'!E$117:E$128,,0)","v":0.42},{"$f":"_xlfn.XLOOKUP($V210,'Risk Charges'!$C$117:$C$128,'Risk Charges'!F$117:F$128,,0)","v":0.36},{"$f":"_xlfn.XLOOKUP($V210,'Risk Charges'!$C$117:$C$128,'Risk Charges'!G$117:G$128,,0)","v":0.3},{"$f":"_xlfn.XLOOKUP($V210,'Risk Charges'!$C$132:$C$143,'Risk Charges'!D$132:D$143,,0)","v":0.61899999999999999},{"$f":"_xlfn.XLOOKUP($V210,'Risk Charges'!$C$132:$C$143,'Risk Charges'!E$132:E$143,,0)","v":0.52500000000000002},{"$f":"_xlfn.XLOOKUP($V210,'Risk Charges'!$C$132:$C$143,'Risk Charges'!F$132:F$143,,0)","v":0.45},{"$f":"_xlfn.XLOOKUP($V210,'Risk Charges'!$C$132:$C$143,'Risk Charges'!G$132:G$143,,0)","v":0.375}]
[null,null,null,"Medical malpractice - occurrence",{"$f":"W211*Input!$F591","v":0},{"$f":"X211*Input!$F591","v":0},{"$f":"Y211*Input!$F591","v":0},{"$f":"Z211*Input!$F591","v":0},null,null,null,null,"Medical malpractice - occurrence",{"$f":"AA211*Input!$G591","v":0},{"$f":"AB211*Input!$G591","v":0},{"$f":"AC211*Input!$G591","v":0},{"$f":"AD211*Input!$G591","v":0},null,null,"Medical malpractice - occurrence","Liability",9,{"$f":"_xlfn.XLOOKUP($V211,'Risk Charges'!$C$117:$C$128,'Risk Charges'!D$117:D$128,,0)","v":0.57799999999999996},{"$f":"_xlfn.XLOOKUP($V211,'Risk Charges'!$C$117:$C$128,'Risk Charges'!E$117:E$128,,0)","v":0.49},{"$f":"_xlfn.XLOOKUP($V211,'Risk Charges'!$C$117:$C$128,'Risk Charges'!F$117:F$128,,0)","v":0.42},{"$f":"_xlfn.XLOOKUP($V211,'Risk Charges'!$C$117:$C$128,'Risk Charges'!G$117:G$128,,0)","v":0.35},{"$f":"_xlfn.XLOOKUP($V211,'Risk Charges'!$C$132:$C$143,'Risk Charges'!D$132:D$143,,0)","v":0.72299999999999998},{"$f":"_xlfn.XLOOKUP($V211,'Risk Charges'!$C$132:$C$143,'Risk Charges'!E$132:E$143,,0)","v":0.61299999999999999},{"$f":"_xlfn.XLOOKUP($V211,'Risk Charges'!$C$132:$C$143,'Risk Charges'!F$132:F$143,,0)","v":0.52500000000000002},{"$f":"_xlfn.XLOOKUP($V211,'Risk Charges'!$C$132:$C$143,'Risk Charges'!G$132:G$143,,0)","v":0.438}]
[null,null,null,"Other liability - claims made",{"$f":"W212*Input!$F592","v":0},{"$f":"X212*Input!$F592","v":0},{"$f":"Y212*Input!$F592","v":0},{"$f":"Z212*Input!$F592","v":0},null,null,null,null,"Other liability - claims made",{"$f":"AA212*Input!$G592","v":0},{"$f":"AB212*Input!$G592","v":0},{"$f":"AC212*Input!$G592","v":0},{"$f":"AD212*Input!$G592","v":0},null,null,"Other liability - claims made","Liability",7,{"$f":"_xlfn.XLOOKUP($V212,'Risk Charges'!$C$117:$C$128,'Risk Charges'!D$117:D$128,,0)","v":0.41299999999999998},{"$f":"_xlfn.XLOOKUP($V212,'Risk Charges'!$C$117:$C$128,'Risk Charges'!E$117:E$128,,0)","v":0.35},{"$f":"_xlfn.XLOOKUP($V212,'Risk Charges'!$C$117:$C$128,'Risk Charges'!F$117:F$128,,0)","v":0.3},{"$f":"_xlfn.XLOOKUP($V212,'Risk Charges'!$C$117:$C$128,'Risk Charges'!G$117:G$128,,0)","v":0.25},{"$f":"_xlfn.XLOOKUP($V212,'Risk Charges'!$C$132:$C$143,'Risk Charges'!D$132:D$143,,0)","v":0.51600000000000001},{"$f":"_xlfn.XLOOKUP($V212,'Risk Charges'!$C$132:$C$143,'Risk Charges'!E$132:E$143,,0)","v":0.438},{"$f":"_xlfn.XLOOKUP($V212,'Risk Charges'!$C$132:$C$143,'Risk Charges'!F$132:F$143,,0)","v":0.375},{"$f":"_xlfn.XLOOKUP($V212,'Risk Charges'!$C$132:$C$143,'Risk Charges'!G$132:G$143,,0)","v":0.313}]
[null,null,null,"Other liability - occurrence",{"$f":"W213*Input!$F593","v":0},{"$f":"X213*Input!$F593","v":0},{"$f":"Y213*Input!$F593","v":0},{"$f":"Z213*Input!$F593","v":0},null,null,null,null,"Other liability - occurrence",{"$f":"AA213*Input!$G593","v":0},{"$f":"AB213*Input!$G593","v":0},{"$f":"AC213*Input!$G593","v":0},{"$f":"AD213*Input!$G593","v":0},null,null,"Other liability - occurrence","Liability",8,{"$f":"_xlfn.XLOOKUP($V213,'Risk Charges'!$C$117:$C$128,'Risk Charges'!D$117:D$128,,0)","v":0.495},{"$f":"_xlfn.XLOOKUP($V213,'Risk Charges'!$C$117:$C$128,'Risk Charges'!E$117:E$128,,0)","v":0.42},{"$f":"_xlfn.XLOOKUP($V213,'Risk Charges'!$C$117:$C$128,'Risk Charges'!F$117:F$128,,0)","v":0.36},{"$f":"_xlfn.XLOOKUP($V213,'Risk Charges'!$C$117:$C$128,'Risk Charges'!G$117:G$128,,0)","v":0.3},{"$f":"_xlfn.XLOOKUP($V213,'Risk Charges'!$C$132:$C$143,'Risk Charges'!D$132:D$143,,0)","v":0.61899999999999999},{"$f":"_xlfn.XLOOKUP($V213,'Risk Charges'!$C$132:$C$143,'Risk Charges'!E$132:E$143,,0)","v":0.52500000000000002},{"$f":"_xlfn.XLOOKUP($V213,'Risk Charges'!$C$132:$C$143,'Risk Charges'!F$132:F$143,,0)","v":0.45},{"$f":"_xlfn.XLOOKUP($V213,'Risk Charges'!$C$132:$C$143,'Risk Charges'!G$132:G$143,,0)","v":0.375}]
[null,null,null,"Product liability - claims made",{"$f":"W214*Input!$F594","v":0},{"$f":"X214*Input!$F594","v":0},{"$f":"Y214*Input!$F594","v":0},{"$f":"Z214*Input!$F594","v":0},null,null,null,null,"Product liability - claims made",{"$f":"AA214*Input!$G594","v":0},{"$f":"AB214*Input!$G594","v":0},{"$f":"AC214*Input!$G594","v":0},{"$f":"AD214*Input!$G594","v":0},null,null,"Product liability - claims made","Liability",7,{"$f":"_xlfn.XLOOKUP($V214,'Risk Charges'!$C$117:$C$128,'Risk Charges'!D$117:D$128,,0)","v":0.41299999999999998},{"$f":"_xlfn.XLOOKUP($V214,'Risk Charges'!$C$117:$C$128,'Risk Charges'!E$117:E$128,,0)","v":0.35},{"$f":"_xlfn.XLOOKUP($V214,'Risk Charges'!$C$117:$C$128,'Risk Charges'!F$117:F$128,,0)","v":0.3},{"$f":"_xlfn.XLOOKUP($V214,'Risk Charges'!$C$117:$C$128,'Risk Charges'!G$117:G$128,,0)","v":0.25},{"$f":"_xlfn.XLOOKUP($V214,'Risk Charges'!$C$132:$C$143,'Risk Charges'!D$132:D$143,,0)","v":0.51600000000000001},{"$f":"_xlfn.XLOOKUP($V214,'Risk Charges'!$C$132:$C$143,'Risk Charges'!E$132:E$143,,0)","v":0.438},{"$f":"_xlfn.XLOOKUP($V214,'Risk Charges'!$C$132:$C$143,'Risk Charges'!F$132:F$143,,0)","v":0.375},{"$f":"_xlfn.XLOOKUP($V214,'Risk Charges'!$C$132:$C$143,'Risk Charges'!G$132:G$143,,0)","v":0.313}]
[null,null,null,"Product liability - occurrence",{"$f":"W215*Input!$F595","v":0},{"$f":"X215*Input!$F595","v":0},{"$f":"Y215*Input!$F595","v":0},{"$f":"Z215*Input!$F595","v":0},null,null,null,null,"Product liability - occurrence",{"$f":"AA215*Input!$G595","v":0},{"$f":"AB215*Input!$G595","v":0},{"$f":"AC215*Input!$G595","v":0},{"$f":"AD215*Input!$G595","v":0},null,null,"Product liability - occurrence","Liability",8,{"$f":"_xlfn.XLOOKUP($V215,'Risk Charges'!$C$117:$C$128,'Risk Charges'!D$117:D$128,,0)","v":0.495},{"$f":"_xlfn.XLOOKUP($V215,'Risk Charges'!$C$117:$C$128,'Risk Charges'!E$117:E$128,,0)","v":0.42},{"$f":"_xlfn.XLOOKUP($V215,'Risk Charges'!$C$117:$C$128,'Risk Charges'!F$117:F$128,,0)","v":0.36},{"$f":"_xlfn.XLOOKUP($V215,'Risk Charges'!$C$117:$C$128,'Risk Charges'!G$117:G$128,,0)","v":0.3},{"$f":"_xlfn.XLOOKUP($V215,'Risk Charges'!$C$132:$C$143,'Risk Charges'!D$132:D$143,,0)","v":0.61899999999999999},{"$f":"_xlfn.XLOOKUP($V215,'Risk Charges'!$C$132:$C$143,'Risk Charges'!E$132:E$143,,0)","v":0.52500000000000002},{"$f":"_xlfn.XLOOKUP($V215,'Risk Charges'!$C$132:$C$143,'Risk Charges'!F$132:F$143,,0)","v":0.45},{"$f":"_xlfn.XLOOKUP($V215,'Risk Charges'!$C$132:$C$143,'Risk Charges'!G$132:G$143,,0)","v":0.375}]
[null,null,null,"Workers compensation",{"$f":"W216*Input!$F596","v":0},{"$f":"X216*Input!$F596","v":0},{"$f":"Y216*Input!$F596","v":0},{"$f":"Z216*Input!$F596","v":0},null,null,null,null,"Workers compensation",{"$f":"AA216*Input!$G596","v":0},{"$f":"AB216*Input!$G596","v":0},{"$f":"AC216*Input!$G596","v":0},{"$f":"AD216*Input!$G596","v":0},null,null,"Workers compensation","Liability",5,{"$f":"_xlfn.XLOOKUP($V216,'Risk Charges'!$C$117:$C$128,'Risk Charges'!D$117:D$128,,0)","v":0.248},{"$f":"_xlfn.XLOOKUP($V216,'Risk Charges'!$C$117:$C$128,'Risk Charges'!E$117:E$128,,0)","v":0.21},{"$f":"_xlfn.XLOOKUP($V216,'Risk Charges'!$C$117:$C$128,'Risk Charges'!F$117:F$128,,0)","v":0.18},{"$f":"_xlfn.XLOOKUP($V216,'Risk Charges'!$C$117:$C$128,'Risk Charges'!G$117:G$128,,0)","v":0.15},{"$f":"_xlfn.XLOOKUP($V216,'Risk Charges'!$C$132:$C$143,'Risk Charges'!D$132:D$143,,0)","v":0.31},{"$f":"_xlfn.XLOOKUP($V216,'Risk Charges'!$C$132:$C$143,'Risk Charges'!E$132:E$143,,0)","v":0.26300000000000001},{"$f":"_xlfn.XLOOKUP($V216,'Risk Charges'!$C$132:$C$143,'Risk Charges'!F$132:F$143,,0)","v":0.22500000000000001},{"$f":"_xlfn.XLOOKUP($V216,'Risk Charges'!$C$132:$C$143,'Risk Charges'!G$132:G$143,,0)","v":0.188}]
[null,null,null,"Boiler & machinery",{"$f":"W217*Input!$F597","v":0},{"$f":"X217*Input!$F597","v":0},{"$f":"Y217*Input!$F597","v":0},{"$f":"Z217*Input!$F597","v":0},null,null,null,null,"Boiler & machinery",{"$f":"AA217*Input!$G597","v":0},{"$f":"AB217*Input!$G597","v":0},{"$f":"AC217*Input!$G597","v":0},{"$f":"AD217*Input!$G597","v":0},null,null,"Boiler & machinery","Property",8,{"$f":"_xlfn.XLOOKUP($V217,'Risk Charges'!$C$117:$C$128,'Risk Charges'!D$117:D$128,,0)","v":0.495},{"$f":"_xlfn.XLOOKUP($V217,'Risk Charges'!$C$117:$C$128,'Risk Charges'!E$117:E$128,,0)","v":0.42},{"$f":"_xlfn.XLOOKUP($V217,'Risk Charges'!$C$117:$C$128,'Risk Charges'!F$117:F$128,,0)","v":0.36},{"$f":"_xlfn.XLOOKUP($V217,'Risk Charges'!$C$117:$C$128,'Risk Charges'!G$117:G$128,,0)","v":0.3},{"$f":"_xlfn.XLOOKUP($V217,'Risk Charges'!$C$132:$C$143,'Risk Charges'!D$132:D$143,,0)","v":0.61899999999999999},{"$f":"_xlfn.XLOOKUP($V217,'Risk Charges'!$C$132:$C$143,'Risk Charges'!E$132:E$143,,0)","v":0.52500000000000002},{"$f":"_xlfn.XLOOKUP($V217,'Risk Charges'!$C$132:$C$143,'Risk Charges'!F$132:F$143,,0)","v":0.45},{"$f":"_xlfn.XLOOKUP($V217,'Risk Charges'!$C$132:$C$143,'Risk Charges'!G$132:G$143,,0)","v":0.375}]
[null,null,null,"Commercial multi-peril",{"$f":"W218*Input!$F598","v":0},{"$f":"X218*Input!$F598","v":0},{"$f":"Y218*Input!$F598","v":0},{"$f":"Z218*Input!$F598","v":0},null,null,null,null,"Commercial multi-peril",{"$f":"AA218*Input!$G598","v":0},{"$f":"AB218*Input!$G598","v":0},{"$f":"AC218*Input!$G598","v":0},{"$f":"AD218*Input!$G598","v":0},null,null,"Commercial multi-peril","Property",7,{"$f":"_xlfn.XLOOKUP($V218,'Risk Charges'!$C$117:$C$128,'Risk Charges'!D$117:D$128,,0)","v":0.41299999999999998},{"$f":"_xlfn.XLOOKUP($V218,'Risk Charges'!$C$117:$C$128,'Risk Charges'!E$117:E$128,,0)","v":0.35},{"$f":"_xlfn.XLOOKUP($V218,'Risk Charges'!$C$117:$C$128,'Risk Charges'!F$117:F$128,,0)","v":0.3},{"$f":"_xlfn.XLOOKUP($V218,'Risk Charges'!$C$117:$C$128,'Risk Charges'!G$117:G$128,,0)","v":0.25},{"$f":"_xlfn.XLOOKUP($V218,'Risk Charges'!$C$132:$C$143,'Risk Charges'!D$132:D$143,,0)","v":0.51600000000000001},{"$f":"_xlfn.XLOOKUP($V218,'Risk Charges'!$C$132:$C$143,'Risk Charges'!E$132:E$143,,0)","v":0.438},{"$f":"_xlfn.XLOOKUP($V218,'Risk Charges'!$C$132:$C$143,'Risk Charges'!F$132:F$143,,0)","v":0.375},{"$f":"_xlfn.XLOOKUP($V218,'Risk Charges'!$C$132:$C$143,'Risk Charges'!G$132:G$143,,0)","v":0.313}]
[null,null,null,"Homeowner/Farmowner multi-peril",{"$f":"W219*Input!$F599","v":0},{"$f":"X219*Input!$F599","v":0},{"$f":"Y219*Input!$F599","v":0},{"$f":"Z219*Input!$F599","v":0},null,null,null,null,"Homeowner/Farmowner multi-peril",{"$f":"AA219*Input!$G599","v":0},{"$f":"AB219*Input!$G599","v":0},{"$f":"AC219*Input!$G599","v":0},{"$f":"AD219*Input!$G599","v":0},null,null,"Homeowner/Farmowner multi-peril","Property",6,{"$f":"_xlfn.XLOOKUP($V219,'Risk Charges'!$C$117:$C$128,'Risk Charges'!D$117:D$128,,0)","v":0.33},{"$f":"_xlfn.XLOOKUP($V219,'Risk Charges'!$C$117:$C$128,'Risk Charges'!E$117:E$128,,0)","v":0.28000000000000003},{"$f":"_xlfn.XLOOKUP($V219,'Risk Charges'!$C$117:$C$128,'Risk Charges'!F$117:F$128,,0)","v":0.24},{"$f":"_xlfn.XLOOKUP($V219,'Risk Charges'!$C$117:$C$128,'Risk Charges'!G$117:G$128,,0)","v":0.2},{"$f":"_xlfn.XLOOKUP($V219,'Risk Charges'!$C$132:$C$143,'Risk Charges'!D$132:D$143,,0)","v":0.41299999999999998},{"$f":"_xlfn.XLOOKUP($V219,'Risk Charges'!$C$132:$C$143,'Risk Charges'!E$132:E$143,,0)","v":0.35},{"$f":"_xlfn.XLOOKUP($V219,'Risk Charges'!$C$132:$C$143,'Risk Charges'!F$132:F$143,,0)","v":0.3},{"$f":"_xlfn.XLOOKUP($V219,'Risk Charges'!$C$132:$C$143,'Risk Charges'!G$132:G$143,,0)","v":0.25}]
[null,null,null,"Special property (fire, allied lines, inland marine, earthquake, burglary and theft)",{"$f":"W220*Input!$F600","v":0},{"$f":"X220*Input!$F600","v":0},{"$f":"Y220*Input!$F600","v":0},{"$f":"Z220*Input!$F600","v":0},null,null,null,null,"Special property (fire, allied lines, inland marine, earthquake, burglary and theft)",{"$f":"AA220*Input!$G600","v":0},{"$f":"AB220*Input!$G600","v":0},{"$f":"AC220*Input!$G600","v":0},{"$f":"AD220*Input!$G600","v":0},null,null,"Special property (fire, allied lines, inland marine, earthquake, burglary and theft)","Property",7,{"$f":"_xlfn.XLOOKUP($V220,'Risk Charges'!$C$117:$C$128,'Risk Charges'!D$117:D$128,,0)","v":0.41299999999999998},{"$f":"_xlfn.XLOOKUP($V220,'Risk Charges'!$C$117:$C$128,'Risk Charges'!E$117:E$128,,0)","v":0.35},{"$f":"_xlfn.XLOOKUP($V220,'Risk Charges'!$C$117:$C$128,'Risk Charges'!F$117:F$128,,0)","v":0.3},{"$f":"_xlfn.XLOOKUP($V220,'Risk Charges'!$C$117:$C$128,'Risk Charges'!G$117:G$128,,0)","v":0.25},{"$f":"_xlfn.XLOOKUP($V220,'Risk Charges'!$C$132:$C$143,'Risk Charges'!D$132:D$143,,0)","v":0.51600000000000001},{"$f":"_xlfn.XLOOKUP($V220,'Risk Charges'!$C$132:$C$143,'Risk Charges'!E$132:E$143,,0)","v":0.438},{"$f":"_xlfn.XLOOKUP($V220,'Risk Charges'!$C$132:$C$143,'Risk Charges'!F$132:F$143,,0)","v":0.375},{"$f":"_xlfn.XLOOKUP($V220,'Risk Charges'!$C$132:$C$143,'Risk Charges'!G$132:G$143,,0)","v":0.313}]
[null,null,null,"Auto physical damage",{"$f":"W221*Input!$F601","v":0},{"$f":"X221*Input!$F601","v":0},{"$f":"Y221*Input!$F601","v":0},{"$f":"Z221*Input!$F601","v":0},null,null,null,null,"Auto physical damage",{"$f":"AA221*Input!$G601","v":0},{"$f":"AB221*Input!$G601","v":0},{"$f":"AC221*Input!$G601","v":0},{"$f":"AD221*Input!$G601","v":0},null,null,"Auto physical damage","Motor",5,{"$f":"_xlfn.XLOOKUP($V221,'Risk Charges'!$C$117:$C$128,'Risk Charges'!D$117:D$128,,0)","v":0.248},{"$f":"_xlfn.XLOOKUP($V221,'Risk Charges'!$C$117:$C$128,'Risk Charges'!E$117:E$128,,0)","v":0.21},{"$f":"_xlfn.XLOOKUP($V221,'Risk Charges'!$C$117:$C$128,'Risk Charges'!F$117:F$128,,0)","v":0.18},{"$f":"_xlfn.XLOOKUP($V221,'Risk Charges'!$C$117:$C$128,'Risk Charges'!G$117:G$128,,0)","v":0.15},{"$f":"_xlfn.XLOOKUP($V221,'Risk Charges'!$C$132:$C$143,'Risk Charges'!D$132:D$143,,0)","v":0.31},{"$f":"_xlfn.XLOOKUP($V221,'Risk Charges'!$C$132:$C$143,'Risk Charges'!E$132:E$143,,0)","v":0.26300000000000001},{"$f":"_xlfn.XLOOKUP($V221,'Risk Charges'!$C$132:$C$143,'Risk Charges'!F$132:F$143,,0)","v":0.22500000000000001},{"$f":"_xlfn.XLOOKUP($V221,'Risk Charges'!$C$132:$C$143,'Risk Charges'!G$132:G$143,,0)","v":0.188}]
[null,null,null,"Commercial auto liability",{"$f":"W222*Input!$F602","v":0},{"$f":"X222*Input!$F602","v":0},{"$f":"Y222*Input!$F602","v":0},{"$f":"Z222*Input!$F602","v":0},null,null,null,null,"Commercial auto liability",{"$f":"AA222*Input!$G602","v":0},{"$f":"AB222*Input!$G602","v":0},{"$f":"AC222*Input!$G602","v":0},{"$f":"AD222*Input!$G602","v":0},null,null,"Commercial auto liability","Motor",6,{"$f":"_xlfn.XLOOKUP($V222,'Risk Charges'!$C$117:$C$128,'Risk Charges'!D$117:D$128,,0)","v":0.33},{"$f":"_xlfn.XLOOKUP($V222,'Risk Charges'!$C$117:$C$128,'Risk Charges'!E$117:E$128,,0)","v":0.28000000000000003},{"$f":"_xlfn.XLOOKUP($V222,'Risk Charges'!$C$117:$C$128,'Risk Charges'!F$117:F$128,,0)","v":0.24},{"$f":"_xlfn.XLOOKUP($V222,'Risk Charges'!$C$117:$C$128,'Risk Charges'!G$117:G$128,,0)","v":0.2},{"$f":"_xlfn.XLOOKUP($V222,'Risk Charges'!$C$132:$C$143,'Risk Charges'!D$132:D$143,,0)","v":0.41299999999999998},{"$f":"_xlfn.XLOOKUP($V222,'Risk Charges'!$C$132:$C$143,'Risk Charges'!E$132:E$143,,0)","v":0.35},{"$f":"_xlfn.XLOOKUP($V222,'Risk Charges'!$C$132:$C$143,'Risk Charges'!F$132:F$143,,0)","v":0.3},{"$f":"_xlfn.XLOOKUP($V222,'Risk Charges'!$C$132:$C$143,'Risk Charges'!G$132:G$143,,0)","v":0.25}]
[null,null,null,"Private passenger auto liability",{"$f":"W223*Input!$F603","v":0},{"$f":"X223*Input!$F603","v":0},{"$f":"Y223*Input!$F603","v":0},{"$f":"Z223*Input!$F603","v":0},null,null,null,null,"Private passenger auto liability",{"$f":"AA223*Input!$G603","v":0},{"$f":"AB223*Input!$G603","v":0},{"$f":"AC223*Input!$G603","v":0},{"$f":"AD223*Input!$G603","v":0},null,null,"Private passenger auto liability","Motor",5,{"$f":"_xlfn.XLOOKUP($V223,'Risk Charges'!$C$117:$C$128,'Risk Charges'!D$117:D$128,,0)","v":0.248},{"$f":"_xlfn.XLOOKUP($V223,'Risk Charges'!$C$117:$C$128,'Risk Charges'!E$117:E$128,,0)","v":0.21},{"$f":"_xlfn.XLOOKUP($V223,'Risk Charges'!$C$117:$C$128,'Risk Charges'!F$117:F$128,,0)","v":0.18},{"$f":"_xlfn.XLOOKUP($V223,'Risk Charges'!$C$117:$C$128,'Risk Charges'!G$117:G$128,,0)","v":0.15},{"$f":"_xlfn.XLOOKUP($V223,'Risk Charges'!$C$132:$C$143,'Risk Charges'!D$132:D$143,,0)","v":0.31},{"$f":"_xlfn.XLOOKUP($V223,'Risk Charges'!$C$132:$C$143,'Risk Charges'!E$132:E$143,,0)","v":0.26300000000000001},{"$f":"_xlfn.XLOOKUP($V223,'Risk Charges'!$C$132:$C$143,'Risk Charges'!F$132:F$143,,0)","v":0.22500000000000001},{"$f":"_xlfn.XLOOKUP($V223,'Risk Charges'!$C$132:$C$143,'Risk Charges'!G$132:G$143,,0)","v":0.188}]
[null,null,null,"Credit",{"$f":"W224*Input!$F604","v":0},{"$f":"X224*Input!$F604","v":0},{"$f":"Y224*Input!$F604","v":0},{"$f":"Z224*Input!$F604","v":0},null,null,null,null,"Credit",{"$f":"AA224*Input!$G604","v":0},{"$f":"AB224*Input!$G604","v":0},{"$f":"AC224*Input!$G604","v":0},{"$f":"AD224*Input!$G604","v":0},null,null,"Credit","Financial",7,{"$f":"_xlfn.XLOOKUP($V224,'Risk Charges'!$C$117:$C$128,'Risk Charges'!D$117:D$128,,0)","v":0.41299999999999998},{"$f":"_xlfn.XLOOKUP($V224,'Risk Charges'!$C$117:$C$128,'Risk Charges'!E$117:E$128,,0)","v":0.35},{"$f":"_xlfn.XLOOKUP($V224,'Risk Charges'!$C$117:$C$128,'Risk Charges'!F$117:F$128,,0)","v":0.3},{"$f":"_xlfn.XLOOKUP($V224,'Risk Charges'!$C$117:$C$128,'Risk Charges'!G$117:G$128,,0)","v":0.25},{"$f":"_xlfn.XLOOKUP($V224,'Risk Charges'!$C$132:$C$143,'Risk Charges'!D$132:D$143,,0)","v":0.51600000000000001},{"$f":"_xlfn.XLOOKUP($V224,'Risk Charges'!$C$132:$C$143,'Risk Charges'!E$132:E$143,,0)","v":0.438},{"$f":"_xlfn.XLOOKUP($V224,'Risk Charges'!$C$132:$C$143,'Risk Charges'!F$132:F$143,,0)","v":0.375},{"$f":"_xlfn.XLOOKUP($V224,'Risk Charges'!$C$132:$C$143,'Risk Charges'!G$132:G$143,,0)","v":0.313}]
[null,null,null,"Fidelity/Surety",{"$f":"W225*Input!$F605","v":0},{"$f":"X225*Input!$F605","v":0},{"$f":"Y225*Input!$F605","v":0},{"$f":"Z225*Input!$F605","v":0},null,null,null,null,"Fidelity/Surety",{"$f":"AA225*Input!$G605","v":0},{"$f":"AB225*Input!$G605","v":0},{"$f":"AC225*Input!$G605","v":0},{"$f":"AD225*Input!$G605","v":0},null,null,"Fidelity/Surety","Financial",7,{"$f":"_xlfn.XLOOKUP($V225,'Risk Charges'!$C$117:$C$128,'Risk Charges'!D$117:D$128,,0)","v":0.41299999999999998},{"$f":"_xlfn.XLOOKUP($V225,'Risk Charges'!$C$117:$C$128,'Risk Charges'!E$117:E$128,,0)","v":0.35},{"$f":"_xlfn.XLOOKUP($V225,'Risk Charges'!$C$117:$C$128,'Risk Charges'!F$117:F$128,,0)","v":0.3},{"$f":"_xlfn.XLOOKUP($V225,'Risk Charges'!$C$117:$C$128,'Risk Charges'!G$117:G$128,,0)","v":0.25},{"$f":"_xlfn.XLOOKUP($V225,'Risk Charges'!$C$132:$C$143,'Risk Charges'!D$132:D$143,,0)","v":0.51600000000000001},{"$f":"_xlfn.XLOOKUP($V225,'Risk Charges'!$C$132:$C$143,'Risk Charges'!E$132:E$143,,0)","v":0.438},{"$f":"_xlfn.XLOOKUP($V225,'Risk Charges'!$C$132:$C$143,'Risk Charges'!F$132:F$143,,0)","v":0.375},{"$f":"_xlfn.XLOOKUP($V225,'Risk Charges'!$C$132:$C$143,'Risk Charges'!G$132:G$143,,0)","v":0.313}]
[null,null,null,"Financial guaranty",{"$f":"W226*Input!$F606","v":0},{"$f":"X226*Input!$F606","v":0},{"$f":"Y226*Input!$F606","v":0},{"$f":"Z226*Input!$F606","v":0},null,null,null,null,"Financial guaranty",{"$f":"AA226*Input!$G606","v":0},{"$f":"AB226*Input!$G606","v":0},{"$f":"AC226*Input!$G606","v":0},{"$f":"AD226*Input!$G606","v":0},null,null,"Financial guaranty","Financial",7,{"$f":"_xlfn.XLOOKUP($V226,'Risk Charges'!$C$117:$C$128,'Risk Charges'!D$117:D$128,,0)","v":0.41299999999999998},{"$f":"_xlfn.XLOOKUP($V226,'Risk Charges'!$C$117:$C$128,'Risk Charges'!E$117:E$128,,0)","v":0.35},{"$f":"_xlfn.XLOOKUP($V226,'Risk Charges'!$C$117:$C$128,'Risk Charges'!F$117:F$128,,0)","v":0.3},{"$f":"_xlfn.XLOOKUP($V226,'Risk Charges'!$C$117:$C$128,'Risk Charges'!G$117:G$128,,0)","v":0.25},{"$f":"_xlfn.XLOOKUP($V226,'Risk Charges'!$C$132:$C$143,'Risk Charges'!D$132:D$143,,0)","v":0.51600000000000001},{"$f":"_xlfn.XLOOKUP($V226,'Risk Charges'!$C$132:$C$143,'Risk Charges'!E$132:E$143,,0)","v":0.438},{"$f":"_xlfn.XLOOKUP($V226,'Risk Charges'!$C$132:$C$143,'Risk Charges'!F$132:F$143,,0)","v":0.375},{"$f":"_xlfn.XLOOKUP($V226,'Risk Charges'!$C$132:$C$143,'Risk Charges'!G$132:G$143,,0)","v":0.313}]
[null,null,null,"Accident & health",{"$f":"W227*Input!$F607","v":0},{"$f":"X227*Input!$F607","v":0},{"$f":"Y227*Input!$F607","v":0},{"$f":"Z227*Input!$F607","v":0},null,null,null,null,"Accident & health",{"$f":"AA227*Input!$G607","v":0},{"$f":"AB227*Input!$G607","v":0},{"$f":"AC227*Input!$G607","v":0},{"$f":"AD227*Input!$G607","v":0},null,null,"Accident & health","Health",7,{"$f":"_xlfn.XLOOKUP($V227,'Risk Charges'!$C$117:$C$128,'Risk Charges'!D$117:D$128,,0)","v":0.41299999999999998},{"$f":"_xlfn.XLOOKUP($V227,'Risk Charges'!$C$117:$C$128,'Risk Charges'!E$117:E$128,,0)","v":0.35},{"$f":"_xlfn.XLOOKUP($V227,'Risk Charges'!$C$117:$C$128,'Risk Charges'!F$117:F$128,,0)","v":0.3},{"$f":"_xlfn.XLOOKUP($V227,'Risk Charges'!$C$117:$C$128,'Risk Charges'!G$117:G$128,,0)","v":0.25},{"$f":"_xlfn.XLOOKUP($V227,'Risk Charges'!$C$132:$C$143,'Risk Charges'!D$132:D$143,,0)","v":0.51600000000000001},{"$f":"_xlfn.XLOOKUP($V227,'Risk Charges'!$C$132:$C$143,'Risk Charges'!E$132:E$143,,0)","v":0.438},{"$f":"_xlfn.XLOOKUP($V227,'Risk Charges'!$C$132:$C$143,'Risk Charges'!F$132:F$143,,0)","v":0.375},{"$f":"_xlfn.XLOOKUP($V227,'Risk Charges'!$C$132:$C$143,'Risk Charges'!G$132:G$143,,0)","v":0.313}]
[null,null,null,"US health reserves",{"$f":"W228*Input!$F608","v":0},{"$f":"X228*Input!$F608","v":0},{"$f":"Y228*Input!$F608","v":0},{"$f":"Z228*Input!$F608","v":0},null,null,null,null,"US health reserves",{"$f":"AA228*Input!$G608","v":0},{"$f":"AB228*Input!$G608","v":0},{"$f":"AC228*Input!$G608","v":0},{"$f":"AD228*Input!$G608","v":0},null,null,"US health reserves","Health",2,{"$f":"_xlfn.XLOOKUP($V228,'Risk Charges'!$C$117:$C$128,'Risk Charges'!D$117:D$128,,0)","v":8.3000000000000004E-2},{"$f":"_xlfn.XLOOKUP($V228,'Risk Charges'!$C$117:$C$128,'Risk Charges'!E$117:E$128,,0)","v":7.0000000000000007E-2},{"$f":"_xlfn.XLOOKUP($V228,'Risk Charges'!$C$117:$C$128,'Risk Charges'!F$117:F$128,,0)","v":0.06},{"$f":"_xlfn.XLOOKUP($V228,'Risk Charges'!$C$117:$C$128,'Risk Charges'!G$117:G$128,,0)","v":0.05},{"$f":"_xlfn.XLOOKUP($V228,'Risk Charges'!$C$132:$C$143,'Risk Charges'!D$132:D$143,,0)","v":0.104},{"$f":"_xlfn.XLOOKUP($V228,'Risk Charges'!$C$132:$C$143,'Risk Charges'!E$132:E$143,,0)","v":8.7999999999999995E-2},{"$f":"_xlfn.XLOOKUP($V228,'Risk Charges'!$C$132:$C$143,'Risk Charges'!F$132:F$143,,0)","v":7.4999999999999997E-2},{"$f":"_xlfn.XLOOKUP($V228,'Risk Charges'!$C$132:$C$143,'Risk Charges'!G$132:G$143,,0)","v":6.3E-2}]
[null,null,null,"Aircraft",{"$f":"W229*Input!$F609","v":0},{"$f":"X229*Input!$F609","v":0},{"$f":"Y229*Input!$F609","v":0},{"$f":"Z229*Input!$F609","v":0},null,null,null,null,"Aircraft",{"$f":"AA229*Input!$G609","v":0},{"$f":"AB229*Input!$G609","v":0},{"$f":"AC229*Input!$G609","v":0},{"$f":"AD229*Input!$G609","v":0},null,null,"Aircraft","MAT",8,{"$f":"_xlfn.XLOOKUP($V229,'Risk Charges'!$C$117:$C$128,'Risk Charges'!D$117:D$128,,0)","v":0.495},{"$f":"_xlfn.XLOOKUP($V229,'Risk Charges'!$C$117:$C$128,'Risk Charges'!E$117:E$128,,0)","v":0.42},{"$f":"_xlfn.XLOOKUP($V229,'Risk Charges'!$C$117:$C$128,'Risk Charges'!F$117:F$128,,0)","v":0.36},{"$f":"_xlfn.XLOOKUP($V229,'Risk Charges'!$C$117:$C$128,'Risk Charges'!G$117:G$128,,0)","v":0.3},{"$f":"_xlfn.XLOOKUP($V229,'Risk Charges'!$C$132:$C$143,'Risk Charges'!D$132:D$143,,0)","v":0.61899999999999999},{"$f":"_xlfn.XLOOKUP($V229,'Risk Charges'!$C$132:$C$143,'Risk Charges'!E$132:E$143,,0)","v":0.52500000000000002},{"$f":"_xlfn.XLOOKUP($V229,'Risk Charges'!$C$132:$C$143,'Risk Charges'!F$132:F$143,,0)","v":0.45},{"$f":"_xlfn.XLOOKUP($V229,'Risk Charges'!$C$132:$C$143,'Risk Charges'!G$132:G$143,,0)","v":0.375}]
[null,null,null,"Marine protection & indemnity",{"$f":"W230*Input!$F610","v":0},{"$f":"X230*Input!$F610","v":0},{"$f":"Y230*Input!$F610","v":0},{"$f":"Z230*Input!$F610","v":0},null,null,null,null,"Marine protection & indemnity",{"$f":"AA230*Input!$G610","v":0},{"$f":"AB230*Input!$G610","v":0},{"$f":"AC230*Input!$G610","v":0},{"$f":"AD230*Input!$G610","v":0},null,null,"Marine protection & indemnity","MAT",7,{"$f":"_xlfn.XLOOKUP($V230,'Risk Charges'!$C$117:$C$128,'Risk Charges'!D$117:D$128,,0)","v":0.41299999999999998},{"$f":"_xlfn.XLOOKUP($V230,'Risk Charges'!$C$117:$C$128,'Risk Charges'!E$117:E$128,,0)","v":0.35},{"$f":"_xlfn.XLOOKUP($V230,'Risk Charges'!$C$117:$C$128,'Risk Charges'!F$117:F$128,,0)","v":0.3},{"$f":"_xlfn.XLOOKUP($V230,'Risk Charges'!$C$117:$C$128,'Risk Charges'!G$117:G$128,,0)","v":0.25},{"$f":"_xlfn.XLOOKUP($V230,'Risk Charges'!$C$132:$C$143,'Risk Charges'!D$132:D$143,,0)","v":0.51600000000000001},{"$f":"_xlfn.XLOOKUP($V230,'Risk Charges'!$C$132:$C$143,'Risk Charges'!E$132:E$143,,0)","v":0.438},{"$f":"_xlfn.XLOOKUP($V230,'Risk Charges'!$C$132:$C$143,'Risk Charges'!F$132:F$143,,0)","v":0.375},{"$f":"_xlfn.XLOOKUP($V230,'Risk Charges'!$C$132:$C$143,'Risk Charges'!G$132:G$143,,0)","v":0.313}]
[null,null,null,"Ocean marine",{"$f":"W231*Input!$F611","v":0},{"$f":"X231*Input!$F611","v":0},{"$f":"Y231*Input!$F611","v":0},{"$f":"Z231*Input!$F611","v":0},null,null,null,null,"Ocean marine",{"$f":"AA231*Input!$G611","v":0},{"$f":"AB231*Input!$G611","v":0},{"$f":"AC231*Input!$G611","v":0},{"$f":"AD231*Input!$G611","v":0},null,null,"Ocean marine","MAT",8,{"$f":"_xlfn.XLOOKUP($V231,'Risk Charges'!$C$117:$C$128,'Risk Charges'!D$117:D$128,,0)","v":0.495},{"$f":"_xlfn.XLOOKUP($V231,'Risk Charges'!$C$117:$C$128,'Risk Charges'!E$117:E$128,,0)","v":0.42},{"$f":"_xlfn.XLOOKUP($V231,'Risk Charges'!$C$117:$C$128,'Risk Charges'!F$117:F$128,,0)","v":0.36},{"$f":"_xlfn.XLOOKUP($V231,'Risk Charges'!$C$117:$C$128,'Risk Charges'!G$117:G$128,,0)","v":0.3},{"$f":"_xlfn.XLOOKUP($V231,'Risk Charges'!$C$132:$C$143,'Risk Charges'!D$132:D$143,,0)","v":0.61899999999999999},{"$f":"_xlfn.XLOOKUP($V231,'Risk Charges'!$C$132:$C$143,'Risk Charges'!E$132:E$143,,0)","v":0.52500000000000002},{"$f":"_xlfn.XLOOKUP($V231,'Risk Charges'!$C$132:$C$143,'Risk Charges'!F$132:F$143,,0)","v":0.45},{"$f":"_xlfn.XLOOKUP($V231,'Risk Charges'!$C$132:$C$143,'Risk Charges'!G$132:G$143,,0)","v":0.375}]
[null,null,null,"Title",{"$f":"W232*Input!$F612","v":0},{"$f":"X232*Input!$F612","v":0},{"$f":"Y232*Input!$F612","v":0},{"$f":"Z232*Input!$F612","v":0},null,null,null,null,"Title",{"$f":"AA232*Input!$G612","v":0},{"$f":"AB232*Input!$G612","v":0},{"$f":"AC232*Input!$G612","v":0},{"$f":"AD232*Input!$G612","v":0},null,null,"Title","Other",6,{"$f":"_xlfn.XLOOKUP($V232,'Risk Charges'!$C$117:$C$128,'Risk Charges'!D$117:D$128,,0)","v":0.33},{"$f":"_xlfn.XLOOKUP($V232,'Risk Charges'!$C$117:$C$128,'Risk Charges'!E$117:E$128,,0)","v":0.28000000000000003},{"$f":"_xlfn.XLOOKUP($V232,'Risk Charges'!$C$117:$C$128,'Risk Charges'!F$117:F$128,,0)","v":0.24},{"$f":"_xlfn.XLOOKUP($V232,'Risk Charges'!$C$117:$C$128,'Risk Charges'!G$117:G$128,,0)","v":0.2},{"$f":"_xlfn.XLOOKUP($V232,'Risk Charges'!$C$132:$C$143,'Risk Charges'!D$132:D$143,,0)","v":0.41299999999999998},{"$f":"_xlfn.XLOOKUP($V232,'Risk Charges'!$C$132:$C$143,'Risk Charges'!E$132:E$143,,0)","v":0.35},{"$f":"_xlfn.XLOOKUP($V232,'Risk Charges'!$C$132:$C$143,'Risk Charges'!F$132:F$143,,0)","v":0.3},{"$f":"_xlfn.XLOOKUP($V232,'Risk Charges'!$C$132:$C$143,'Risk Charges'!G$132:G$143,,0)","v":0.25}]
[null,null,null,"Warranty",{"$f":"W233*Input!$F613","v":0},{"$f":"X233*Input!$F613","v":0},{"$f":"Y233*Input!$F613","v":0},{"$f":"Z233*Input!$F613","v":0},null,null,null,null,"Warranty",{"$f":"AA233*Input!$G613","v":0},{"$f":"AB233*Input!$G613","v":0},{"$f":"AC233*Input!$G613","v":0},{"$f":"AD233*Input!$G613","v":0},null,null,"Warranty","Other",7,{"$f":"_xlfn.XLOOKUP($V233,'Risk Charges'!$C$117:$C$128,'Risk Charges'!D$117:D$128,,0)","v":0.41299999999999998},{"$f":"_xlfn.XLOOKUP($V233,'Risk Charges'!$C$117:$C$128,'Risk Charges'!E$117:E$128,,0)","v":0.35},{"$f":"_xlfn.XLOOKUP($V233,'Risk Charges'!$C$117:$C$128,'Risk Charges'!F$117:F$128,,0)","v":0.3},{"$f":"_xlfn.XLOOKUP($V233,'Risk Charges'!$C$117:$C$128,'Risk Charges'!G$117:G$128,,0)","v":0.25},{"$f":"_xlfn.XLOOKUP($V233,'Risk Charges'!$C$132:$C$143,'Risk Charges'!D$132:D$143,,0)","v":0.51600000000000001},{"$f":"_xlfn.XLOOKUP($V233,'Risk Charges'!$C$132:$C$143,'Risk Charges'!E$132:E$143,,0)","v":0.438},{"$f":"_xlfn.XLOOKUP($V233,'Risk Charges'!$C$132:$C$143,'Risk Charges'!F$132:F$143,,0)","v":0.375},{"$f":"_xlfn.XLOOKUP($V233,'Risk Charges'!$C$132:$C$143,'Risk Charges'!G$132:G$143,,0)","v":0.313}]
[null,null,null,"Other",{"$f":"W234*Input!$F614","v":0},{"$f":"X234*Input!$F614","v":0},{"$f":"Y234*Input!$F614","v":0},{"$f":"Z234*Input!$F614","v":0},null,null,null,null,"Other",{"$f":"AA234*Input!$G614","v":0},{"$f":"AB234*Input!$G614","v":0},{"$f":"AC234*Input!$G614","v":0},{"$f":"AD234*Input!$G614","v":0},null,null,"Other","Other",10,{"$f":"_xlfn.XLOOKUP($V234,'Risk Charges'!$C$117:$C$128,'Risk Charges'!D$117:D$128,,0)","v":0.66},{"$f":"_xlfn.XLOOKUP($V234,'Risk Charges'!$C$117:$C$128,'Risk Charges'!E$117:E$128,,0)","v":0.56000000000000005},{"$f":"_xlfn.XLOOKUP($V234,'Risk Charges'!$C$117:$C$128,'Risk Charges'!F$117:F$128,,0)","v":0.48},{"$f":"_xlfn.XLOOKUP($V234,'Risk Charges'!$C$117:$C$128,'Risk Charges'!G$117:G$128,,0)","v":0.4},{"$f":"_xlfn.XLOOKUP($V234,'Risk Charges'!$C$132:$C$143,'Risk Charges'!D$132:D$143,,0)","v":0.82499999999999996},{"$f":"_xlfn.XLOOKUP($V234,'Risk Charges'!$C$132:$C$143,'Risk Charges'!E$132:E$143,,0)","v":0.7},{"$f":"_xlfn.XLOOKUP($V234,'Risk Charges'!$C$132:$C$143,'Risk Charges'!F$132:F$143,,0)","v":0.6},{"$f":"_xlfn.XLOOKUP($V234,'Risk Charges'!$C$132:$C$143,'Risk Charges'!G$132:G$143,,0)","v":0.5}]
[null,"Canadian Risks",null,null,null,null,null,null,null,null,"Canadian Risks",null,null,null,null,null,null,null,"Canadian Risks"]
[null,null,null,{"$f":"T236","v":"Liability"},{"$f":"W236*Input!$F616","v":0},{"$f":"X236*Input!$F616","v":0},{"$f":"Y236*Input!$F616","v":0},{"$f":"Z236*Input!$F616","v":0},null,null,null,null,{"$f":"T236","v":"Liability"},{"$f":"AA236*Input!$G616","v":0},{"$f":"AB236*Input!$G616","v":0},{"$f":"AC236*Input!$G616","v":0},{"$f":"AD236*Input!$G616","v":0},null,null,"Liability","Liability",9,{"$f":"_xlfn.XLOOKUP($V236,'Risk Charges'!$C$117:$C$128,'Risk Charges'!D$117:D$128,,0)","v":0.57799999999999996},{"$f":"_xlfn.XLOOKUP($V236,'Risk Charges'!$C$117:$C$128,'Risk Charges'!E$117:E$128,,0)","v":0.49},{"$f":"_xlfn.XLOOKUP($V236,'Risk Charges'!$C$117:$C$128,'Risk Charges'!F$117:F$128,,0)","v":0.42},{"$f":"_xlfn.XLOOKUP($V236,'Risk Charges'!$C$117:$C$128,'Risk Charges'!G$117:G$128,,0)","v":0.35},{"$f":"_xlfn.XLOOKUP($V236,'Risk Charges'!$C$132:$C$143,'Risk Charges'!D$132:D$143,,0)","v":0.72299999999999998},{"$f":"_xlfn.XLOOKUP($V236,'Risk Charges'!$C$132:$C$143,'Risk Charges'!E$132:E$143,,0)","v":0.61299999999999999},{"$f":"_xlfn.XLOOKUP($V236,'Risk Charges'!$C$132:$C$143,'Risk Charges'!F$132:F$143,,0)","v":0.52500000000000002},{"$f":"_xlfn.XLOOKUP($V236,'Risk Charges'!$C$132:$C$143,'Risk Charges'!G$132:G$143,,0)","v":0.438}]
[null,null,null,"Boiler & machinery",{"$f":"W237*Input!$F617","v":0},{"$f":"X237*Input!$F617","v":0},{"$f":"Y237*Input!$F617","v":0},{"$f":"Z237*Input!$F617","v":0},null,null,null,null,"Boiler & machinery",{"$f":"AA237*Input!$G617","v":0},{"$f":"AB237*Input!$G617","v":0},{"$f":"AC237*Input!$G617","v":0},{"$f":"AD237*Input!$G617","v":0},null,null,"Boiler & machinery","Property",6,{"$f":"_xlfn.XLOOKUP($V237,'Risk Charges'!$C$117:$C$128,'Risk Charges'!D$117:D$128,,0)","v":0.33},{"$f":"_xlfn.XLOOKUP($V237,'Risk Charges'!$C$117:$C$128,'Risk Charges'!E$117:E$128,,0)","v":0.28000000000000003},{"$f":"_xlfn.XLOOKUP($V237,'Risk Charges'!$C$117:$C$128,'Risk Charges'!F$117:F$128,,0)","v":0.24},{"$f":"_xlfn.XLOOKUP($V237,'Risk Charges'!$C$117:$C$128,'Risk Charges'!G$117:G$128,,0)","v":0.2},{"$f":"_xlfn.XLOOKUP($V237,'Risk Charges'!$C$132:$C$143,'Risk Charges'!D$132:D$143,,0)","v":0.41299999999999998},{"$f":"_xlfn.XLOOKUP($V237,'Risk Charges'!$C$132:$C$143,'Risk Charges'!E$132:E$143,,0)","v":0.35},{"$f":"_xlfn.XLOOKUP($V237,'Risk Charges'!$C$132:$C$143,'Risk Charges'!F$132:F$143,,0)","v":0.3},{"$f":"_xlfn.XLOOKUP($V237,'Risk Charges'!$C$132:$C$143,'Risk Charges'!G$132:G$143,,0)","v":0.25}]
[null,null,null,"Commercial property",{"$f":"W238*Input!$F618","v":0},{"$f":"X238*Input!$F618","v":0},{"$f":"Y238*Input!$F618","v":0},{"$f":"Z238*Input!$F618","v":0},null,null,null,null,"Commercial property",{"$f":"AA238*Input!$G618","v":0},{"$f":"AB238*Input!$G618","v":0},{"$f":"AC238*Input!$G618","v":0},{"$f":"AD238*Input!$G618","v":0},null,null,"Commercial property","Property",7,{"$f":"_xlfn.XLOOKUP($V238,'Risk Charges'!$C$117:$C$128,'Risk Charges'!D$117:D$128,,0)","v":0.41299999999999998},{"$f":"_xlfn.XLOOKUP($V238,'Risk Charges'!$C$117:$C$128,'Risk Charges'!E$117:E$128,,0)","v":0.35},{"$f":"_xlfn.XLOOKUP($V238,'Risk Charges'!$C$117:$C$128,'Risk Charges'!F$117:F$128,,0)","v":0.3},{"$f":"_xlfn.XLOOKUP($V238,'Risk Charges'!$C$117:$C$128,'Risk Charges'!G$117:G$128,,0)","v":0.25},{"$f":"_xlfn.XLOOKUP($V238,'Risk Charges'!$C$132:$C$143,'Risk Charges'!D$132:D$143,,0)","v":0.51600000000000001},{"$f":"_xlfn.XLOOKUP($V238,'Risk Charges'!$C$132:$C$143,'Risk Charges'!E$132:E$143,,0)","v":0.438},{"$f":"_xlfn.XLOOKUP($V238,'Risk Charges'!$C$132:$C$143,'Risk Charges'!F$132:F$143,,0)","v":0.375},{"$f":"_xlfn.XLOOKUP($V238,'Risk Charges'!$C$132:$C$143,'Risk Charges'!G$132:G$143,,0)","v":0.313}]
[null,null,null,"Hail",{"$f":"W239*Input!$F619","v":0},{"$f":"X239*Input!$F619","v":0},{"$f":"Y239*Input!$F619","v":0},{"$f":"Z239*Input!$F619","v":0},null,null,null,null,"Hail",{"$f":"AA239*Input!$G619","v":0},{"$f":"AB239*Input!$G619","v":0},{"$f":"AC239*Input!$G619","v":0},{"$f":"AD239*Input!$G619","v":0},null,null,"Hail","Property",7,{"$f":"_xlfn.XLOOKUP($V239,'Risk Charges'!$C$117:$C$128,'Risk Charges'!D$117:D$128,,0)","v":0.41299999999999998},{"$f":"_xlfn.XLOOKUP($V239,'Risk Charges'!$C$117:$C$128,'Risk Charges'!E$117:E$128,,0)","v":0.35},{"$f":"_xlfn.XLOOKUP($V239,'Risk Charges'!$C$117:$C$128,'Risk Charges'!F$117:F$128,,0)","v":0.3},{"$f":"_xlfn.XLOOKUP($V239,'Risk Charges'!$C$117:$C$128,'Risk Charges'!G$117:G$128,,0)","v":0.25},{"$f":"_xlfn.XLOOKUP($V239,'Risk Charges'!$C$132:$C$143,'Risk Charges'!D$132:D$143,,0)","v":0.51600000000000001},{"$f":"_xlfn.XLOOKUP($V239,'Risk Charges'!$C$132:$C$143,'Risk Charges'!E$132:E$143,,0)","v":0.438},{"$f":"_xlfn.XLOOKUP($V239,'Risk Charges'!$C$132:$C$143,'Risk Charges'!F$132:F$143,,0)","v":0.375},{"$f":"_xlfn.XLOOKUP($V239,'Risk Charges'!$C$132:$C$143,'Risk Charges'!G$132:G$143,,0)","v":0.313}]
[null,null,null,"Personal property",{"$f":"W240*Input!$F620","v":0},{"$f":"X240*Input!$F620","v":0},{"$f":"Y240*Input!$F620","v":0},{"$f":"Z240*Input!$F620","v":0},null,null,null,null,"Personal property",{"$f":"AA240*Input!$G620","v":0},{"$f":"AB240*Input!$G620","v":0},{"$f":"AC240*Input!$G620","v":0},{"$f":"AD240*Input!$G620","v":0},null,null,"Personal property","Property",6,{"$f":"_xlfn.XLOOKUP($V240,'Risk Charges'!$C$117:$C$128,'Risk Charges'!D$117:D$128,,0)","v":0.33},{"$f":"_xlfn.XLOOKUP($V240,'Risk Charges'!$C$117:$C$128,'Risk Charges'!E$117:E$128,,0)","v":0.28000000000000003},{"$f":"_xlfn.XLOOKUP($V240,'Risk Charges'!$C$117:$C$128,'Risk Charges'!F$117:F$128,,0)","v":0.24},{"$f":"_xlfn.XLOOKUP($V240,'Risk Charges'!$C$117:$C$128,'Risk Charges'!G$117:G$128,,0)","v":0.2},{"$f":"_xlfn.XLOOKUP($V240,'Risk Charges'!$C$132:$C$143,'Risk Charges'!D$132:D$143,,0)","v":0.41299999999999998},{"$f":"_xlfn.XLOOKUP($V240,'Risk Charges'!$C$132:$C$143,'Risk Charges'!E$132:E$143,,0)","v":0.35},{"$f":"_xlfn.XLOOKUP($V240,'Risk Charges'!$C$132:$C$143,'Risk Charges'!F$132:F$143,,0)","v":0.3},{"$f":"_xlfn.XLOOKUP($V240,'Risk Charges'!$C$132:$C$143,'Risk Charges'!G$132:G$143,,0)","v":0.25}]
[null,null,null,"Auto - liability",{"$f":"W241*Input!$F621","v":0},{"$f":"X241*Input!$F621","v":0},{"$f":"Y241*Input!$F621","v":0},{"$f":"Z241*Input!$F621","v":0},null,null,null,null,"Auto - liability",{"$f":"AA241*Input!$G621","v":0},{"$f":"AB241*Input!$G621","v":0},{"$f":"AC241*Input!$G621","v":0},{"$f":"AD241*Input!$G621","v":0},null,null,"Auto - liability","Motor",5,{"$f":"_xlfn.XLOOKUP($V241,'Risk Charges'!$C$117:$C$128,'Risk Charges'!D$117:D$128,,0)","v":0.248},{"$f":"_xlfn.XLOOKUP($V241,'Risk Charges'!$C$117:$C$128,'Risk Charges'!E$117:E$128,,0)","v":0.21},{"$f":"_xlfn.XLOOKUP($V241,'Risk Charges'!$C$117:$C$128,'Risk Charges'!F$117:F$128,,0)","v":0.18},{"$f":"_xlfn.XLOOKUP($V241,'Risk Charges'!$C$117:$C$128,'Risk Charges'!G$117:G$128,,0)","v":0.15},{"$f":"_xlfn.XLOOKUP($V241,'Risk Charges'!$C$132:$C$143,'Risk Charges'!D$132:D$143,,0)","v":0.31},{"$f":"_xlfn.XLOOKUP($V241,'Risk Charges'!$C$132:$C$143,'Risk Charges'!E$132:E$143,,0)","v":0.26300000000000001},{"$f":"_xlfn.XLOOKUP($V241,'Risk Charges'!$C$132:$C$143,'Risk Charges'!F$132:F$143,,0)","v":0.22500000000000001},{"$f":"_xlfn.XLOOKUP($V241,'Risk Charges'!$C$132:$C$143,'Risk Charges'!G$132:G$143,,0)","v":0.188}]
[null,null,null,"Auto - other",{"$f":"W242*Input!$F622","v":0},{"$f":"X242*Input!$F622","v":0},{"$f":"Y242*Input!$F622","v":0},{"$f":"Z242*Input!$F622","v":0},null,null,null,null,"Auto - other",{"$f":"AA242*Input!$G622","v":0},{"$f":"AB242*Input!$G622","v":0},{"$f":"AC242*Input!$G622","v":0},{"$f":"AD242*Input!$G622","v":0},null,null,"Auto - other","Motor",5,{"$f":"_xlfn.XLOOKUP($V242,'Risk Charges'!$C$117:$C$128,'Risk Charges'!D$117:D$128,,0)","v":0.248},{"$f":"_xlfn.XLOOKUP($V242,'Risk Charges'!$C$117:$C$128,'Risk Charges'!E$117:E$128,,0)","v":0.21},{"$f":"_xlfn.XLOOKUP($V242,'Risk Charges'!$C$117:$C$128,'Risk Charges'!F$117:F$128,,0)","v":0.18},{"$f":"_xlfn.XLOOKUP($V242,'Risk Charges'!$C$117:$C$128,'Risk Charges'!G$117:G$128,,0)","v":0.15},{"$f":"_xlfn.XLOOKUP($V242,'Risk Charges'!$C$132:$C$143,'Risk Charges'!D$132:D$143,,0)","v":0.31},{"$f":"_xlfn.XLOOKUP($V242,'Risk Charges'!$C$132:$C$143,'Risk Charges'!E$132:E$143,,0)","v":0.26300000000000001},{"$f":"_xlfn.XLOOKUP($V242,'Risk Charges'!$C$132:$C$143,'Risk Charges'!F$132:F$143,,0)","v":0.22500000000000001},{"$f":"_xlfn.XLOOKUP($V242,'Risk Charges'!$C$132:$C$143,'Risk Charges'!G$132:G$143,,0)","v":0.188}]
[null,null,null,"Auto - personal accident",{"$f":"W243*Input!$F623","v":0},{"$f":"X243*Input!$F623","v":0},{"$f":"Y243*Input!$F623","v":0},{"$f":"Z243*Input!$F623","v":0},null,null,null,null,"Auto - personal accident",{"$f":"AA243*Input!$G623","v":0},{"$f":"AB243*Input!$G623","v":0},{"$f":"AC243*Input!$G623","v":0},{"$f":"AD243*Input!$G623","v":0},null,null,"Auto - personal accident","Motor",5,{"$f":"_xlfn.XLOOKUP($V243,'Risk Charges'!$C$117:$C$128,'Risk Charges'!D$117:D$128,,0)","v":0.248},{"$f":"_xlfn.XLOOKUP($V243,'Risk Charges'!$C$117:$C$128,'Risk Charges'!E$117:E$128,,0)","v":0.21},{"$f":"_xlfn.XLOOKUP($V243,'Risk Charges'!$C$117:$C$128,'Risk Charges'!F$117:F$128,,0)","v":0.18},{"$f":"_xlfn.XLOOKUP($V243,'Risk Charges'!$C$117:$C$128,'Risk Charges'!G$117:G$128,,0)","v":0.15},{"$f":"_xlfn.XLOOKUP($V243,'Risk Charges'!$C$132:$C$143,'Risk Charges'!D$132:D$143,,0)","v":0.31},{"$f":"_xlfn.XLOOKUP($V243,'Risk Charges'!$C$132:$C$143,'Risk Charges'!E$132:E$143,,0)","v":0.26300000000000001},{"$f":"_xlfn.XLOOKUP($V243,'Risk Charges'!$C$132:$C$143,'Risk Charges'!F$132:F$143,,0)","v":0.22500000000000001},{"$f":"_xlfn.XLOOKUP($V243,'Risk Charges'!$C$132:$C$143,'Risk Charges'!G$132:G$143,,0)","v":0.188}]
[null,null,null,"Credit",{"$f":"W244*Input!$F624","v":0},{"$f":"X244*Input!$F624","v":0},{"$f":"Y244*Input!$F624","v":0},{"$f":"Z244*Input!$F624","v":0},null,null,null,null,"Credit",{"$f":"AA244*Input!$G624","v":0},{"$f":"AB244*Input!$G624","v":0},{"$f":"AC244*Input!$G624","v":0},{"$f":"AD244*Input!$G624","v":0},null,null,"Credit","Financial",6,{"$f":"_xlfn.XLOOKUP($V244,'Risk Charges'!$C$117:$C$128,'Risk Charges'!D$117:D$128,,0)","v":0.33},{"$f":"_xlfn.XLOOKUP($V244,'Risk Charges'!$C$117:$C$128,'Risk Charges'!E$117:E$128,,0)","v":0.28000000000000003},{"$f":"_xlfn.XLOOKUP($V244,'Risk Charges'!$C$117:$C$128,'Risk Charges'!F$117:F$128,,0)","v":0.24},{"$f":"_xlfn.XLOOKUP($V244,'Risk Charges'!$C$117:$C$128,'Risk Charges'!G$117:G$128,,0)","v":0.2},{"$f":"_xlfn.XLOOKUP($V244,'Risk Charges'!$C$132:$C$143,'Risk Charges'!D$132:D$143,,0)","v":0.41299999999999998},{"$f":"_xlfn.XLOOKUP($V244,'Risk Charges'!$C$132:$C$143,'Risk Charges'!E$132:E$143,,0)","v":0.35},{"$f":"_xlfn.XLOOKUP($V244,'Risk Charges'!$C$132:$C$143,'Risk Charges'!F$132:F$143,,0)","v":0.3},{"$f":"_xlfn.XLOOKUP($V244,'Risk Charges'!$C$132:$C$143,'Risk Charges'!G$132:G$143,,0)","v":0.25}]
[null,null,null,"Credit protection",{"$f":"W245*Input!$F625","v":0},{"$f":"X245*Input!$F625","v":0},{"$f":"Y245*Input!$F625","v":0},{"$f":"Z245*Input!$F625","v":0},null,null,null,null,"Credit protection",{"$f":"AA245*Input!$G625","v":0},{"$f":"AB245*Input!$G625","v":0},{"$f":"AC245*Input!$G625","v":0},{"$f":"AD245*Input!$G625","v":0},null,null,"Credit protection","Financial",6,{"$f":"_xlfn.XLOOKUP($V245,'Risk Charges'!$C$117:$C$128,'Risk Charges'!D$117:D$128,,0)","v":0.33},{"$f":"_xlfn.XLOOKUP($V245,'Risk Charges'!$C$117:$C$128,'Risk Charges'!E$117:E$128,,0)","v":0.28000000000000003},{"$f":"_xlfn.XLOOKUP($V245,'Risk Charges'!$C$117:$C$128,'Risk Charges'!F$117:F$128,,0)","v":0.24},{"$f":"_xlfn.XLOOKUP($V245,'Risk Charges'!$C$117:$C$128,'Risk Charges'!G$117:G$128,,0)","v":0.2},{"$f":"_xlfn.XLOOKUP($V245,'Risk Charges'!$C$132:$C$143,'Risk Charges'!D$132:D$143,,0)","v":0.41299999999999998},{"$f":"_xlfn.XLOOKUP($V245,'Risk Charges'!$C$132:$C$143,'Risk Charges'!E$132:E$143,,0)","v":0.35},{"$f":"_xlfn.XLOOKUP($V245,'Risk Charges'!$C$132:$C$143,'Risk Charges'!F$132:F$143,,0)","v":0.3},{"$f":"_xlfn.XLOOKUP($V245,'Risk Charges'!$C$132:$C$143,'Risk Charges'!G$132:G$143,,0)","v":0.25}]
[null,null,null,"Fidelity",{"$f":"W246*Input!$F626","v":0},{"$f":"X246*Input!$F626","v":0},{"$f":"Y246*Input!$F626","v":0},{"$f":"Z246*Input!$F626","v":0},null,null,null,null,"Fidelity",{"$f":"AA246*Input!$G626","v":0},{"$f":"AB246*Input!$G626","v":0},{"$f":"AC246*Input!$G626","v":0},{"$f":"AD246*Input!$G626","v":0},null,null,"Fidelity","Financial",7,{"$f":"_xlfn.XLOOKUP($V246,'Risk Charges'!$C$117:$C$128,'Risk Charges'!D$117:D$128,,0)","v":0.41299999999999998},{"$f":"_xlfn.XLOOKUP($V246,'Risk Charges'!$C$117:$C$128,'Risk Charges'!E$117:E$128,,0)","v":0.35},{"$f":"_xlfn.XLOOKUP($V246,'Risk Charges'!$C$117:$C$128,'Risk Charges'!F$117:F$128,,0)","v":0.3},{"$f":"_xlfn.XLOOKUP($V246,'Risk Charges'!$C$117:$C$128,'Risk Charges'!G$117:G$128,,0)","v":0.25},{"$f":"_xlfn.XLOOKUP($V246,'Risk Charges'!$C$132:$C$143,'Risk Charges'!D$132:D$143,,0)","v":0.51600000000000001},{"$f":"_xlfn.XLOOKUP($V246,'Risk Charges'!$C$132:$C$143,'Risk Charges'!E$132:E$143,,0)","v":0.438},{"$f":"_xlfn.XLOOKUP($V246,'Risk Charges'!$C$132:$C$143,'Risk Charges'!F$132:F$143,,0)","v":0.375},{"$f":"_xlfn.XLOOKUP($V246,'Risk Charges'!$C$132:$C$143,'Risk Charges'!G$132:G$143,,0)","v":0.313}]
[null,null,null,"Surety",{"$f":"W247*Input!$F627","v":0},{"$f":"X247*Input!$F627","v":0},{"$f":"Y247*Input!$F627","v":0},{"$f":"Z247*Input!$F627","v":0},null,null,null,null,"Surety",{"$f":"AA247*Input!$G627","v":0},{"$f":"AB247*Input!$G627","v":0},{"$f":"AC247*Input!$G627","v":0},{"$f":"AD247*Input!$G627","v":0},null,null,"Surety","Financial",7,{"$f":"_xlfn.XLOOKUP($V247,'Risk Charges'!$C$117:$C$128,'Risk Charges'!D$117:D$128,,0)","v":0.41299999999999998},{"$f":"_xlfn.XLOOKUP($V247,'Risk Charges'!$C$117:$C$128,'Risk Charges'!E$117:E$128,,0)","v":0.35},{"$f":"_xlfn.XLOOKUP($V247,'Risk Charges'!$C$117:$C$128,'Risk Charges'!F$117:F$128,,0)","v":0.3},{"$f":"_xlfn.XLOOKUP($V247,'Risk Charges'!$C$117:$C$128,'Risk Charges'!G$117:G$128,,0)","v":0.25},{"$f":"_xlfn.XLOOKUP($V247,'Risk Charges'!$C$132:$C$143,'Risk Charges'!D$132:D$143,,0)","v":0.51600000000000001},{"$f":"_xlfn.XLOOKUP($V247,'Risk Charges'!$C$132:$C$143,'Risk Charges'!E$132:E$143,,0)","v":0.438},{"$f":"_xlfn.XLOOKUP($V247,'Risk Charges'!$C$132:$C$143,'Risk Charges'!F$132:F$143,,0)","v":0.375},{"$f":"_xlfn.XLOOKUP($V247,'Risk Charges'!$C$132:$C$143,'Risk Charges'!G$132:G$143,,0)","v":0.313}]
[null,null,null,"Accident & sickness (excluding supplementary health, disability income)",{"$f":"W248*Input!$F628","v":0},{"$f":"X248*Input!$F628","v":0},{"$f":"Y248*Input!$F628","v":0},{"$f":"Z248*Input!$F628","v":0},null,null,null,null,"Accident & sickness (excluding supplementary health, disability income)",{"$f":"AA248*Input!$G628","v":0},{"$f":"AB248*Input!$G628","v":0},{"$f":"AC248*Input!$G628","v":0},{"$f":"AD248*Input!$G628","v":0},null,null,"Accident & sickness (excluding supplementary health, disability income)","Health",7,{"$f":"_xlfn.XLOOKUP($V248,'Risk Charges'!$C$117:$C$128,'Risk Charges'!D$117:D$128,,0)","v":0.41299999999999998},{"$f":"_xlfn.XLOOKUP($V248,'Risk Charges'!$C$117:$C$128,'Risk Charges'!E$117:E$128,,0)","v":0.35},{"$f":"_xlfn.XLOOKUP($V248,'Risk Charges'!$C$117:$C$128,'Risk Charges'!F$117:F$128,,0)","v":0.3},{"$f":"_xlfn.XLOOKUP($V248,'Risk Charges'!$C$117:$C$128,'Risk Charges'!G$117:G$128,,0)","v":0.25},{"$f":"_xlfn.XLOOKUP($V248,'Risk Charges'!$C$132:$C$143,'Risk Charges'!D$132:D$143,,0)","v":0.51600000000000001},{"$f":"_xlfn.XLOOKUP($V248,'Risk Charges'!$C$132:$C$143,'Risk Charges'!E$132:E$143,,0)","v":0.438},{"$f":"_xlfn.XLOOKUP($V248,'Risk Charges'!$C$132:$C$143,'Risk Charges'!F$132:F$143,,0)","v":0.375},{"$f":"_xlfn.XLOOKUP($V248,'Risk Charges'!$C$132:$C$143,'Risk Charges'!G$132:G$143,,0)","v":0.313}]
[null,null,null,"Supplementary health",{"$f":"W249*Input!$F629","v":0},{"$f":"X249*Input!$F629","v":0},{"$f":"Y249*Input!$F629","v":0},{"$f":"Z249*Input!$F629","v":0},null,null,null,null,"Supplementary health",{"$f":"AA249*Input!$G629","v":0},{"$f":"AB249*Input!$G629","v":0},{"$f":"AC249*Input!$G629","v":0},{"$f":"AD249*Input!$G629","v":0},null,null,"Supplementary health","Health",2,{"$f":"_xlfn.XLOOKUP($V249,'Risk Charges'!$C$117:$C$128,'Risk Charges'!D$117:D$128,,0)","v":8.3000000000000004E-2},{"$f":"_xlfn.XLOOKUP($V249,'Risk Charges'!$C$117:$C$128,'Risk Charges'!E$117:E$128,,0)","v":7.0000000000000007E-2},{"$f":"_xlfn.XLOOKUP($V249,'Risk Charges'!$C$117:$C$128,'Risk Charges'!F$117:F$128,,0)","v":0.06},{"$f":"_xlfn.XLOOKUP($V249,'Risk Charges'!$C$117:$C$128,'Risk Charges'!G$117:G$128,,0)","v":0.05},{"$f":"_xlfn.XLOOKUP($V249,'Risk Charges'!$C$132:$C$143,'Risk Charges'!D$132:D$143,,0)","v":0.104},{"$f":"_xlfn.XLOOKUP($V249,'Risk Charges'!$C$132:$C$143,'Risk Charges'!E$132:E$143,,0)","v":8.7999999999999995E-2},{"$f":"_xlfn.XLOOKUP($V249,'Risk Charges'!$C$132:$C$143,'Risk Charges'!F$132:F$143,,0)","v":7.4999999999999997E-2},{"$f":"_xlfn.XLOOKUP($V249,'Risk Charges'!$C$132:$C$143,'Risk Charges'!G$132:G$143,,0)","v":6.3E-2}]
[null,null,null,"Aircraft",{"$f":"W250*Input!$F630","v":0},{"$f":"X250*Input!$F630","v":0},{"$f":"Y250*Input!$F630","v":0},{"$f":"Z250*Input!$F630","v":0},null,null,null,null,"Aircraft",{"$f":"AA250*Input!$G630","v":0},{"$f":"AB250*Input!$G630","v":0},{"$f":"AC250*Input!$G630","v":0},{"$f":"AD250*Input!$G630","v":0},null,null,"Aircraft","MAT",8,{"$f":"_xlfn.XLOOKUP($V250,'Risk Charges'!$C$117:$C$128,'Risk Charges'!D$117:D$128,,0)","v":0.495},{"$f":"_xlfn.XLOOKUP($V250,'Risk Charges'!$C$117:$C$128,'Risk Charges'!E$117:E$128,,0)","v":0.42},{"$f":"_xlfn.XLOOKUP($V250,'Risk Charges'!$C$117:$C$128,'Risk Charges'!F$117:F$128,,0)","v":0.36},{"$f":"_xlfn.XLOOKUP($V250,'Risk Charges'!$C$117:$C$128,'Risk Charges'!G$117:G$128,,0)","v":0.3},{"$f":"_xlfn.XLOOKUP($V250,'Risk Charges'!$C$132:$C$143,'Risk Charges'!D$132:D$143,,0)","v":0.61899999999999999},{"$f":"_xlfn.XLOOKUP($V250,'Risk Charges'!$C$132:$C$143,'Risk Charges'!E$132:E$143,,0)","v":0.52500000000000002},{"$f":"_xlfn.XLOOKUP($V250,'Risk Charges'!$C$132:$C$143,'Risk Charges'!F$132:F$143,,0)","v":0.45},{"$f":"_xlfn.XLOOKUP($V250,'Risk Charges'!$C$132:$C$143,'Risk Charges'!G$132:G$143,,0)","v":0.375}]
[null,null,null,"Marine",{"$f":"W251*Input!$F631","v":0},{"$f":"X251*Input!$F631","v":0},{"$f":"Y251*Input!$F631","v":0},{"$f":"Z251*Input!$F631","v":0},null,null,null,null,"Marine",{"$f":"AA251*Input!$G631","v":0},{"$f":"AB251*Input!$G631","v":0},{"$f":"AC251*Input!$G631","v":0},{"$f":"AD251*Input!$G631","v":0},null,null,"Marine","MAT",8,{"$f":"_xlfn.XLOOKUP($V251,'Risk Charges'!$C$117:$C$128,'Risk Charges'!D$117:D$128,,0)","v":0.495},{"$f":"_xlfn.XLOOKUP($V251,'Risk Charges'!$C$117:$C$128,'Risk Charges'!E$117:E$128,,0)","v":0.42},{"$f":"_xlfn.XLOOKUP($V251,'Risk Charges'!$C$117:$C$128,'Risk Charges'!F$117:F$128,,0)","v":0.36},{"$f":"_xlfn.XLOOKUP($V251,'Risk Charges'!$C$117:$C$128,'Risk Charges'!G$117:G$128,,0)","v":0.3},{"$f":"_xlfn.XLOOKUP($V251,'Risk Charges'!$C$132:$C$143,'Risk Charges'!D$132:D$143,,0)","v":0.61899999999999999},{"$f":"_xlfn.XLOOKUP($V251,'Risk Charges'!$C$132:$C$143,'Risk Charges'!E$132:E$143,,0)","v":0.52500000000000002},{"$f":"_xlfn.XLOOKUP($V251,'Risk Charges'!$C$132:$C$143,'Risk Charges'!F$132:F$143,,0)","v":0.45},{"$f":"_xlfn.XLOOKUP($V251,'Risk Charges'!$C$132:$C$143,'Risk Charges'!G$132:G$143,,0)","v":0.375}]
[null,null,null,"Marine protection & indemnity",{"$f":"W252*Input!$F632","v":0},{"$f":"X252*Input!$F632","v":0},{"$f":"Y252*Input!$F632","v":0},{"$f":"Z252*Input!$F632","v":0},null,null,null,null,"Marine protection & indemnity",{"$f":"AA252*Input!$G632","v":0},{"$f":"AB252*Input!$G632","v":0},{"$f":"AC252*Input!$G632","v":0},{"$f":"AD252*Input!$G632","v":0},null,null,"Marine protection & indemnity","MAT",7,{"$f":"_xlfn.XLOOKUP($V252,'Risk Charges'!$C$117:$C$128,'Risk Charges'!D$117:D$128,,0)","v":0.41299999999999998},{"$f":"_xlfn.XLOOKUP($V252,'Risk Charges'!$C$117:$C$128,'Risk Charges'!E$117:E$128,,0)","v":0.35},{"$f":"_xlfn.XLOOKUP($V252,'Risk Charges'!$C$117:$C$128,'Risk Charges'!F$117:F$128,,0)","v":0.3},{"$f":"_xlfn.XLOOKUP($V252,'Risk Charges'!$C$117:$C$128,'Risk Charges'!G$117:G$128,,0)","v":0.25},{"$f":"_xlfn.XLOOKUP($V252,'Risk Charges'!$C$132:$C$143,'Risk Charges'!D$132:D$143,,0)","v":0.51600000000000001},{"$f":"_xlfn.XLOOKUP($V252,'Risk Charges'!$C$132:$C$143,'Risk Charges'!E$132:E$143,,0)","v":0.438},{"$f":"_xlfn.XLOOKUP($V252,'Risk Charges'!$C$132:$C$143,'Risk Charges'!F$132:F$143,,0)","v":0.375},{"$f":"_xlfn.XLOOKUP($V252,'Risk Charges'!$C$132:$C$143,'Risk Charges'!G$132:G$143,,0)","v":0.313}]
[null,null,null,"Legal expense",{"$f":"W253*Input!$F633","v":0},{"$f":"X253*Input!$F633","v":0},{"$f":"Y253*Input!$F633","v":0},{"$f":"Z253*Input!$F633","v":0},null,null,null,null,"Legal expense",{"$f":"AA253*Input!$G633","v":0},{"$f":"AB253*Input!$G633","v":0},{"$f":"AC253*Input!$G633","v":0},{"$f":"AD253*Input!$G633","v":0},null,null,"Legal expense","Other",9,{"$f":"_xlfn.XLOOKUP($V253,'Risk Charges'!$C$117:$C$128,'Risk Charges'!D$117:D$128,,0)","v":0.57799999999999996},{"$f":"_xlfn.XLOOKUP($V253,'Risk Charges'!$C$117:$C$128,'Risk Charges'!E$117:E$128,,0)","v":0.49},{"$f":"_xlfn.XLOOKUP($V253,'Risk Charges'!$C$117:$C$128,'Risk Charges'!F$117:F$128,,0)","v":0.42},{"$f":"_xlfn.XLOOKUP($V253,'Risk Charges'!$C$117:$C$128,'Risk Charges'!G$117:G$128,,0)","v":0.35},{"$f":"_xlfn.XLOOKUP($V253,'Risk Charges'!$C$132:$C$143,'Risk Charges'!D$132:D$143,,0)","v":0.72299999999999998},{"$f":"_xlfn.XLOOKUP($V253,'Risk Charges'!$C$132:$C$143,'Risk Charges'!E$132:E$143,,0)","v":0.61299999999999999},{"$f":"_xlfn.XLOOKUP($V253,'Risk Charges'!$C$132:$C$143,'Risk Charges'!F$132:F$143,,0)","v":0.52500000000000002},{"$f":"_xlfn.XLOOKUP($V253,'Risk Charges'!$C$132:$C$143,'Risk Charges'!G$132:G$143,,0)","v":0.438}]
[null,null,null,"Other approved products",{"$f":"W254*Input!$F634","v":0},{"$f":"X254*Input!$F634","v":0},{"$f":"Y254*Input!$F634","v":0},{"$f":"Z254*Input!$F634","v":0},null,null,null,null,"Other approved products",{"$f":"AA254*Input!$G634","v":0},{"$f":"AB254*Input!$G634","v":0},{"$f":"AC254*Input!$G634","v":0},{"$f":"AD254*Input!$G634","v":0},null,null,"Other approved products","Other",7,{"$f":"_xlfn.XLOOKUP($V254,'Risk Charges'!$C$117:$C$128,'Risk Charges'!D$117:D$128,,0)","v":0.41299999999999998},{"$f":"_xlfn.XLOOKUP($V254,'Risk Charges'!$C$117:$C$128,'Risk Charges'!E$117:E$128,,0)","v":0.35},{"$f":"_xlfn.XLOOKUP($V254,'Risk Charges'!$C$117:$C$128,'Risk Charges'!F$117:F$128,,0)","v":0.3},{"$f":"_xlfn.XLOOKUP($V254,'Risk Charges'!$C$117:$C$128,'Risk Charges'!G$117:G$128,,0)","v":0.25},{"$f":"_xlfn.XLOOKUP($V254,'Risk Charges'!$C$132:$C$143,'Risk Charges'!D$132:D$143,,0)","v":0.51600000000000001},{"$f":"_xlfn.XLOOKUP($V254,'Risk Charges'!$C$132:$C$143,'Risk Charges'!E$132:E$143,,0)","v":0.438},{"$f":"_xlfn.XLOOKUP($V254,'Risk Charges'!$C$132:$C$143,'Risk Charges'!F$132:F$143,,0)","v":0.375},{"$f":"_xlfn.XLOOKUP($V254,'Risk Charges'!$C$132:$C$143,'Risk Charges'!G$132:G$143,,0)","v":0.313}]
[null,null,null,"Title",{"$f":"W255*Input!$F635","v":0},{"$f":"X255*Input!$F635","v":0},{"$f":"Y255*Input!$F635","v":0},{"$f":"Z255*Input!$F635","v":0},null,null,null,null,"Title",{"$f":"AA255*Input!$G635","v":0},{"$f":"AB255*Input!$G635","v":0},{"$f":"AC255*Input!$G635","v":0},{"$f":"AD255*Input!$G635","v":0},null,null,"Title","Other",6,{"$f":"_xlfn.XLOOKUP($V255,'Risk Charges'!$C$117:$C$128,'Risk Charges'!D$117:D$128,,0)","v":0.33},{"$f":"_xlfn.XLOOKUP($V255,'Risk Charges'!$C$117:$C$128,'Risk Charges'!E$117:E$128,,0)","v":0.28000000000000003},{"$f":"_xlfn.XLOOKUP($V255,'Risk Charges'!$C$117:$C$128,'Risk Charges'!F$117:F$128,,0)","v":0.24},{"$f":"_xlfn.XLOOKUP($V255,'Risk Charges'!$C$117:$C$128,'Risk Charges'!G$117:G$128,,0)","v":0.2},{"$f":"_xlfn.XLOOKUP($V255,'Risk Charges'!$C$132:$C$143,'Risk Charges'!D$132:D$143,,0)","v":0.41299999999999998},{"$f":"_xlfn.XLOOKUP($V255,'Risk Charges'!$C$132:$C$143,'Risk Charges'!E$132:E$143,,0)","v":0.35},{"$f":"_xlfn.XLOOKUP($V255,'Risk Charges'!$C$132:$C$143,'Risk Charges'!F$132:F$143,,0)","v":0.3},{"$f":"_xlfn.XLOOKUP($V255,'Risk Charges'!$C$132:$C$143,'Risk Charges'!G$132:G$143,,0)","v":0.25}]
[null,null,null,"Warranty",{"$f":"W256*Input!$F636","v":0},{"$f":"X256*Input!$F636","v":0},{"$f":"Y256*Input!$F636","v":0},{"$f":"Z256*Input!$F636","v":0},null,null,null,null,"Warranty",{"$f":"AA256*Input!$G636","v":0},{"$f":"AB256*Input!$G636","v":0},{"$f":"AC256*Input!$G636","v":0},{"$f":"AD256*Input!$G636","v":0},null,null,"Warranty","Other",7,{"$f":"_xlfn.XLOOKUP($V256,'Risk Charges'!$C$117:$C$128,'Risk Charges'!D$117:D$128,,0)","v":0.41299999999999998},{"$f":"_xlfn.XLOOKUP($V256,'Risk Charges'!$C$117:$C$128,'Risk Charges'!E$117:E$128,,0)","v":0.35},{"$f":"_xlfn.XLOOKUP($V256,'Risk Charges'!$C$117:$C$128,'Risk Charges'!F$117:F$128,,0)","v":0.3},{"$f":"_xlfn.XLOOKUP($V256,'Risk Charges'!$C$117:$C$128,'Risk Charges'!G$117:G$128,,0)","v":0.25},{"$f":"_xlfn.XLOOKUP($V256,'Risk Charges'!$C$132:$C$143,'Risk Charges'!D$132:D$143,,0)","v":0.51600000000000001},{"$f":"_xlfn.XLOOKUP($V256,'Risk Charges'!$C$132:$C$143,'Risk Charges'!E$132:E$143,,0)","v":0.438},{"$f":"_xlfn.XLOOKUP($V256,'Risk Charges'!$C$132:$C$143,'Risk Charges'!F$132:F$143,,0)","v":0.375},{"$f":"_xlfn.XLOOKUP($V256,'Risk Charges'!$C$132:$C$143,'Risk Charges'!G$132:G$143,,0)","v":0.313}]
[null,null,null,"Other",{"$f":"W257*Input!$F637","v":0},{"$f":"X257*Input!$F637","v":0},{"$f":"Y257*Input!$F637","v":0},{"$f":"Z257*Input!$F637","v":0},null,null,null,null,"Other",{"$f":"AA257*Input!$G637","v":0},{"$f":"AB257*Input!$G637","v":0},{"$f":"AC257*Input!$G637","v":0},{"$f":"AD257*Input!$G637","v":0},null,null,"Other","Other",10,{"$f":"_xlfn.XLOOKUP($V257,'Risk Charges'!$C$117:$C$128,'Risk Charges'!D$117:D$128,,0)","v":0.66},{"$f":"_xlfn.XLOOKUP($V257,'Risk Charges'!$C$117:$C$128,'Risk Charges'!E$117:E$128,,0)","v":0.56000000000000005},{"$f":"_xlfn.XLOOKUP($V257,'Risk Charges'!$C$117:$C$128,'Risk Charges'!F$117:F$128,,0)","v":0.48},{"$f":"_xlfn.XLOOKUP($V257,'Risk Charges'!$C$117:$C$128,'Risk Charges'!G$117:G$128,,0)","v":0.4},{"$f":"_xlfn.XLOOKUP($V257,'Risk Charges'!$C$132:$C$143,'Risk Charges'!D$132:D$143,,0)","v":0.82499999999999996},{"$f":"_xlfn.XLOOKUP($V257,'Risk Charges'!$C$132:$C$143,'Risk Charges'!E$132:E$143,,0)","v":0.7},{"$f":"_xlfn.XLOOKUP($V257,'Risk Charges'!$C$132:$C$143,'Risk Charges'!F$132:F$143,,0)","v":0.6},{"$f":"_xlfn.XLOOKUP($V257,'Risk Charges'!$C$132:$C$143,'Risk Charges'!G$132:G$143,,0)","v":0.5}]
[null,"Asia-Pacific Risks",null,null,null,null,null,null,null,null,"Asia-Pacific Risks",null,null,null,null,null,null,null,"Asia-Pacific Risks"]
[null,null,null,{"$f":"T259","v":"Employers liability"},{"$f":"W259*Input!$F639","v":0},{"$f":"X259*Input!$F639","v":0},{"$f":"Y259*Input!$F639","v":0},{"$f":"Z259*Input!$F639","v":0},null,null,null,null,{"$f":"T259","v":"Employers liability"},{"$f":"AA259*Input!$G639","v":0},{"$f":"AB259*Input!$G639","v":0},{"$f":"AC259*Input!$G639","v":0},{"$f":"AD259*Input!$G639","v":0},null,null,"Employers liability","Liability",6,{"$f":"_xlfn.XLOOKUP($V259,'Risk Charges'!$C$117:$C$128,'Risk Charges'!D$117:D$128,,0)","v":0.33},{"$f":"_xlfn.XLOOKUP($V259,'Risk Charges'!$C$117:$C$128,'Risk Charges'!E$117:E$128,,0)","v":0.28000000000000003},{"$f":"_xlfn.XLOOKUP($V259,'Risk Charges'!$C$117:$C$128,'Risk Charges'!F$117:F$128,,0)","v":0.24},{"$f":"_xlfn.XLOOKUP($V259,'Risk Charges'!$C$117:$C$128,'Risk Charges'!G$117:G$128,,0)","v":0.2},{"$f":"_xlfn.XLOOKUP($V259,'Risk Charges'!$C$132:$C$143,'Risk Charges'!D$132:D$143,,0)","v":0.41299999999999998},{"$f":"_xlfn.XLOOKUP($V259,'Risk Charges'!$C$132:$C$143,'Risk Charges'!E$132:E$143,,0)","v":0.35},{"$f":"_xlfn.XLOOKUP($V259,'Risk Charges'!$C$132:$C$143,'Risk Charges'!F$132:F$143,,0)","v":0.3},{"$f":"_xlfn.XLOOKUP($V259,'Risk Charges'!$C$132:$C$143,'Risk Charges'!G$132:G$143,,0)","v":0.25}]
[null,null,null,"General liability",{"$f":"W260*Input!$F640","v":0},{"$f":"X260*Input!$F640","v":0},{"$f":"Y260*Input!$F640","v":0},{"$f":"Z260*Input!$F640","v":0},null,null,null,null,"General liability",{"$f":"AA260*Input!$G640","v":0},{"$f":"AB260*Input!$G640","v":0},{"$f":"AC260*Input!$G640","v":0},{"$f":"AD260*Input!$G640","v":0},null,null,"General liability","Liability",6,{"$f":"_xlfn.XLOOKUP($V260,'Risk Charges'!$C$117:$C$128,'Risk Charges'!D$117:D$128,,0)","v":0.33},{"$f":"_xlfn.XLOOKUP($V260,'Risk Charges'!$C$117:$C$128,'Risk Charges'!E$117:E$128,,0)","v":0.28000000000000003},{"$f":"_xlfn.XLOOKUP($V260,'Risk Charges'!$C$117:$C$128,'Risk Charges'!F$117:F$128,,0)","v":0.24},{"$f":"_xlfn.XLOOKUP($V260,'Risk Charges'!$C$117:$C$128,'Risk Charges'!G$117:G$128,,0)","v":0.2},{"$f":"_xlfn.XLOOKUP($V260,'Risk Charges'!$C$132:$C$143,'Risk Charges'!D$132:D$143,,0)","v":0.41299999999999998},{"$f":"_xlfn.XLOOKUP($V260,'Risk Charges'!$C$132:$C$143,'Risk Charges'!E$132:E$143,,0)","v":0.35},{"$f":"_xlfn.XLOOKUP($V260,'Risk Charges'!$C$132:$C$143,'Risk Charges'!F$132:F$143,,0)","v":0.3},{"$f":"_xlfn.XLOOKUP($V260,'Risk Charges'!$C$132:$C$143,'Risk Charges'!G$132:G$143,,0)","v":0.25}]
[null,null,null,"Professional indemnity",{"$f":"W261*Input!$F641","v":0},{"$f":"X261*Input!$F641","v":0},{"$f":"Y261*Input!$F641","v":0},{"$f":"Z261*Input!$F641","v":0},null,null,null,null,"Professional indemnity",{"$f":"AA261*Input!$G641","v":0},{"$f":"AB261*Input!$G641","v":0},{"$f":"AC261*Input!$G641","v":0},{"$f":"AD261*Input!$G641","v":0},null,null,"Professional indemnity","Liability",6,{"$f":"_xlfn.XLOOKUP($V261,'Risk Charges'!$C$117:$C$128,'Risk Charges'!D$117:D$128,,0)","v":0.33},{"$f":"_xlfn.XLOOKUP($V261,'Risk Charges'!$C$117:$C$128,'Risk Charges'!E$117:E$128,,0)","v":0.28000000000000003},{"$f":"_xlfn.XLOOKUP($V261,'Risk Charges'!$C$117:$C$128,'Risk Charges'!F$117:F$128,,0)","v":0.24},{"$f":"_xlfn.XLOOKUP($V261,'Risk Charges'!$C$117:$C$128,'Risk Charges'!G$117:G$128,,0)","v":0.2},{"$f":"_xlfn.XLOOKUP($V261,'Risk Charges'!$C$132:$C$143,'Risk Charges'!D$132:D$143,,0)","v":0.41299999999999998},{"$f":"_xlfn.XLOOKUP($V261,'Risk Charges'!$C$132:$C$143,'Risk Charges'!E$132:E$143,,0)","v":0.35},{"$f":"_xlfn.XLOOKUP($V261,'Risk Charges'!$C$132:$C$143,'Risk Charges'!F$132:F$143,,0)","v":0.3},{"$f":"_xlfn.XLOOKUP($V261,'Risk Charges'!$C$132:$C$143,'Risk Charges'!G$132:G$143,,0)","v":0.25}]
[null,null,null,"Public and product liability",{"$f":"W262*Input!$F642","v":0},{"$f":"X262*Input!$F642","v":0},{"$f":"Y262*Input!$F642","v":0},{"$f":"Z262*Input!$F642","v":0},null,null,null,null,"Public and product liability",{"$f":"AA262*Input!$G642","v":0},{"$f":"AB262*Input!$G642","v":0},{"$f":"AC262*Input!$G642","v":0},{"$f":"AD262*Input!$G642","v":0},null,null,"Public and product liability","Liability",7,{"$f":"_xlfn.XLOOKUP($V262,'Risk Charges'!$C$117:$C$128,'Risk Charges'!D$117:D$128,,0)","v":0.41299999999999998},{"$f":"_xlfn.XLOOKUP($V262,'Risk Charges'!$C$117:$C$128,'Risk Charges'!E$117:E$128,,0)","v":0.35},{"$f":"_xlfn.XLOOKUP($V262,'Risk Charges'!$C$117:$C$128,'Risk Charges'!F$117:F$128,,0)","v":0.3},{"$f":"_xlfn.XLOOKUP($V262,'Risk Charges'!$C$117:$C$128,'Risk Charges'!G$117:G$128,,0)","v":0.25},{"$f":"_xlfn.XLOOKUP($V262,'Risk Charges'!$C$132:$C$143,'Risk Charges'!D$132:D$143,,0)","v":0.51600000000000001},{"$f":"_xlfn.XLOOKUP($V262,'Risk Charges'!$C$132:$C$143,'Risk Charges'!E$132:E$143,,0)","v":0.438},{"$f":"_xlfn.XLOOKUP($V262,'Risk Charges'!$C$132:$C$143,'Risk Charges'!F$132:F$143,,0)","v":0.375},{"$f":"_xlfn.XLOOKUP($V262,'Risk Charges'!$C$132:$C$143,'Risk Charges'!G$132:G$143,,0)","v":0.313}]
[null,null,null,"Commercial property",{"$f":"W263*Input!$F643","v":0},{"$f":"X263*Input!$F643","v":0},{"$f":"Y263*Input!$F643","v":0},{"$f":"Z263*Input!$F643","v":0},null,null,null,null,"Commercial property",{"$f":"AA263*Input!$G643","v":0},{"$f":"AB263*Input!$G643","v":0},{"$f":"AC263*Input!$G643","v":0},{"$f":"AD263*Input!$G643","v":0},null,null,"Commercial property","Property",6,{"$f":"_xlfn.XLOOKUP($V263,'Risk Charges'!$C$117:$C$128,'Risk Charges'!D$117:D$128,,0)","v":0.33},{"$f":"_xlfn.XLOOKUP($V263,'Risk Charges'!$C$117:$C$128,'Risk Charges'!E$117:E$128,,0)","v":0.28000000000000003},{"$f":"_xlfn.XLOOKUP($V263,'Risk Charges'!$C$117:$C$128,'Risk Charges'!F$117:F$128,,0)","v":0.24},{"$f":"_xlfn.XLOOKUP($V263,'Risk Charges'!$C$117:$C$128,'Risk Charges'!G$117:G$128,,0)","v":0.2},{"$f":"_xlfn.XLOOKUP($V263,'Risk Charges'!$C$132:$C$143,'Risk Charges'!D$132:D$143,,0)","v":0.41299999999999998},{"$f":"_xlfn.XLOOKUP($V263,'Risk Charges'!$C$132:$C$143,'Risk Charges'!E$132:E$143,,0)","v":0.35},{"$f":"_xlfn.XLOOKUP($V263,'Risk Charges'!$C$132:$C$143,'Risk Charges'!F$132:F$143,,0)","v":0.3},{"$f":"_xlfn.XLOOKUP($V263,'Risk Charges'!$C$132:$C$143,'Risk Charges'!G$132:G$143,,0)","v":0.25}]
[null,null,null,"Domestic property",{"$f":"W264*Input!$F644","v":0},{"$f":"X264*Input!$F644","v":0},{"$f":"Y264*Input!$F644","v":0},{"$f":"Z264*Input!$F644","v":0},null,null,null,null,"Domestic property",{"$f":"AA264*Input!$G644","v":0},{"$f":"AB264*Input!$G644","v":0},{"$f":"AC264*Input!$G644","v":0},{"$f":"AD264*Input!$G644","v":0},null,null,"Domestic property","Property",6,{"$f":"_xlfn.XLOOKUP($V264,'Risk Charges'!$C$117:$C$128,'Risk Charges'!D$117:D$128,,0)","v":0.33},{"$f":"_xlfn.XLOOKUP($V264,'Risk Charges'!$C$117:$C$128,'Risk Charges'!E$117:E$128,,0)","v":0.28000000000000003},{"$f":"_xlfn.XLOOKUP($V264,'Risk Charges'!$C$117:$C$128,'Risk Charges'!F$117:F$128,,0)","v":0.24},{"$f":"_xlfn.XLOOKUP($V264,'Risk Charges'!$C$117:$C$128,'Risk Charges'!G$117:G$128,,0)","v":0.2},{"$f":"_xlfn.XLOOKUP($V264,'Risk Charges'!$C$132:$C$143,'Risk Charges'!D$132:D$143,,0)","v":0.41299999999999998},{"$f":"_xlfn.XLOOKUP($V264,'Risk Charges'!$C$132:$C$143,'Risk Charges'!E$132:E$143,,0)","v":0.35},{"$f":"_xlfn.XLOOKUP($V264,'Risk Charges'!$C$132:$C$143,'Risk Charges'!F$132:F$143,,0)","v":0.3},{"$f":"_xlfn.XLOOKUP($V264,'Risk Charges'!$C$132:$C$143,'Risk Charges'!G$132:G$143,,0)","v":0.25}]
[null,null,null,"Engineering",{"$f":"W265*Input!$F645","v":0},{"$f":"X265*Input!$F645","v":0},{"$f":"Y265*Input!$F645","v":0},{"$f":"Z265*Input!$F645","v":0},null,null,null,null,"Engineering",{"$f":"AA265*Input!$G645","v":0},{"$f":"AB265*Input!$G645","v":0},{"$f":"AC265*Input!$G645","v":0},{"$f":"AD265*Input!$G645","v":0},null,null,"Engineering","Property",8,{"$f":"_xlfn.XLOOKUP($V265,'Risk Charges'!$C$117:$C$128,'Risk Charges'!D$117:D$128,,0)","v":0.495},{"$f":"_xlfn.XLOOKUP($V265,'Risk Charges'!$C$117:$C$128,'Risk Charges'!E$117:E$128,,0)","v":0.42},{"$f":"_xlfn.XLOOKUP($V265,'Risk Charges'!$C$117:$C$128,'Risk Charges'!F$117:F$128,,0)","v":0.36},{"$f":"_xlfn.XLOOKUP($V265,'Risk Charges'!$C$117:$C$128,'Risk Charges'!G$117:G$128,,0)","v":0.3},{"$f":"_xlfn.XLOOKUP($V265,'Risk Charges'!$C$132:$C$143,'Risk Charges'!D$132:D$143,,0)","v":0.61899999999999999},{"$f":"_xlfn.XLOOKUP($V265,'Risk Charges'!$C$132:$C$143,'Risk Charges'!E$132:E$143,,0)","v":0.52500000000000002},{"$f":"_xlfn.XLOOKUP($V265,'Risk Charges'!$C$132:$C$143,'Risk Charges'!F$132:F$143,,0)","v":0.45},{"$f":"_xlfn.XLOOKUP($V265,'Risk Charges'!$C$132:$C$143,'Risk Charges'!G$132:G$143,,0)","v":0.375}]
[null,null,null,"Commercial motor - Australia and New Zealand",{"$f":"W266*Input!$F646","v":0},{"$f":"X266*Input!$F646","v":0},{"$f":"Y266*Input!$F646","v":0},{"$f":"Z266*Input!$F646","v":0},null,null,null,null,"Commercial motor - Australia and New Zealand",{"$f":"AA266*Input!$G646","v":0},{"$f":"AB266*Input!$G646","v":0},{"$f":"AC266*Input!$G646","v":0},{"$f":"AD266*Input!$G646","v":0},null,null,"Commercial motor - Australia and New Zealand","Motor",4,{"$f":"_xlfn.XLOOKUP($V266,'Risk Charges'!$C$117:$C$128,'Risk Charges'!D$117:D$128,,0)","v":0.16500000000000001},{"$f":"_xlfn.XLOOKUP($V266,'Risk Charges'!$C$117:$C$128,'Risk Charges'!E$117:E$128,,0)","v":0.14000000000000001},{"$f":"_xlfn.XLOOKUP($V266,'Risk Charges'!$C$117:$C$128,'Risk Charges'!F$117:F$128,,0)","v":0.12},{"$f":"_xlfn.XLOOKUP($V266,'Risk Charges'!$C$117:$C$128,'Risk Charges'!G$117:G$128,,0)","v":0.1},{"$f":"_xlfn.XLOOKUP($V266,'Risk Charges'!$C$132:$C$143,'Risk Charges'!D$132:D$143,,0)","v":0.20599999999999999},{"$f":"_xlfn.XLOOKUP($V266,'Risk Charges'!$C$132:$C$143,'Risk Charges'!E$132:E$143,,0)","v":0.17499999999999999},{"$f":"_xlfn.XLOOKUP($V266,'Risk Charges'!$C$132:$C$143,'Risk Charges'!F$132:F$143,,0)","v":0.15},{"$f":"_xlfn.XLOOKUP($V266,'Risk Charges'!$C$132:$C$143,'Risk Charges'!G$132:G$143,,0)","v":0.125}]
[null,null,null,"Domestic motor - Australia and New Zealand",{"$f":"W267*Input!$F647","v":0},{"$f":"X267*Input!$F647","v":0},{"$f":"Y267*Input!$F647","v":0},{"$f":"Z267*Input!$F647","v":0},null,null,null,null,"Domestic motor - Australia and New Zealand",{"$f":"AA267*Input!$G647","v":0},{"$f":"AB267*Input!$G647","v":0},{"$f":"AC267*Input!$G647","v":0},{"$f":"AD267*Input!$G647","v":0},null,null,"Domestic motor - Australia and New Zealand","Motor",4,{"$f":"_xlfn.XLOOKUP($V267,'Risk Charges'!$C$117:$C$128,'Risk Charges'!D$117:D$128,,0)","v":0.16500000000000001},{"$f":"_xlfn.XLOOKUP($V267,'Risk Charges'!$C$117:$C$128,'Risk Charges'!E$117:E$128,,0)","v":0.14000000000000001},{"$f":"_xlfn.XLOOKUP($V267,'Risk Charges'!$C$117:$C$128,'Risk Charges'!F$117:F$128,,0)","v":0.12},{"$f":"_xlfn.XLOOKUP($V267,'Risk Charges'!$C$117:$C$128,'Risk Charges'!G$117:G$128,,0)","v":0.1},{"$f":"_xlfn.XLOOKUP($V267,'Risk Charges'!$C$132:$C$143,'Risk Charges'!D$132:D$143,,0)","v":0.20599999999999999},{"$f":"_xlfn.XLOOKUP($V267,'Risk Charges'!$C$132:$C$143,'Risk Charges'!E$132:E$143,,0)","v":0.17499999999999999},{"$f":"_xlfn.XLOOKUP($V267,'Risk Charges'!$C$132:$C$143,'Risk Charges'!F$132:F$143,,0)","v":0.15},{"$f":"_xlfn.XLOOKUP($V267,'Risk Charges'!$C$132:$C$143,'Risk Charges'!G$132:G$143,,0)","v":0.125}]
[null,null,null,"Motor - all inclusive",{"$f":"W268*Input!$F648","v":0},{"$f":"X268*Input!$F648","v":0},{"$f":"Y268*Input!$F648","v":0},{"$f":"Z268*Input!$F648","v":0},null,null,null,null,"Motor - all inclusive",{"$f":"AA268*Input!$G648","v":0},{"$f":"AB268*Input!$G648","v":0},{"$f":"AC268*Input!$G648","v":0},{"$f":"AD268*Input!$G648","v":0},null,null,"Motor - all inclusive","Motor",5,{"$f":"_xlfn.XLOOKUP($V268,'Risk Charges'!$C$117:$C$128,'Risk Charges'!D$117:D$128,,0)","v":0.248},{"$f":"_xlfn.XLOOKUP($V268,'Risk Charges'!$C$117:$C$128,'Risk Charges'!E$117:E$128,,0)","v":0.21},{"$f":"_xlfn.XLOOKUP($V268,'Risk Charges'!$C$117:$C$128,'Risk Charges'!F$117:F$128,,0)","v":0.18},{"$f":"_xlfn.XLOOKUP($V268,'Risk Charges'!$C$117:$C$128,'Risk Charges'!G$117:G$128,,0)","v":0.15},{"$f":"_xlfn.XLOOKUP($V268,'Risk Charges'!$C$132:$C$143,'Risk Charges'!D$132:D$143,,0)","v":0.31},{"$f":"_xlfn.XLOOKUP($V268,'Risk Charges'!$C$132:$C$143,'Risk Charges'!E$132:E$143,,0)","v":0.26300000000000001},{"$f":"_xlfn.XLOOKUP($V268,'Risk Charges'!$C$132:$C$143,'Risk Charges'!F$132:F$143,,0)","v":0.22500000000000001},{"$f":"_xlfn.XLOOKUP($V268,'Risk Charges'!$C$132:$C$143,'Risk Charges'!G$132:G$143,,0)","v":0.188}]
[null,null,null,"Motor - Japan and Taiwan",{"$f":"W269*Input!$F649","v":0},{"$f":"X269*Input!$F649","v":0},{"$f":"Y269*Input!$F649","v":0},{"$f":"Z269*Input!$F649","v":0},null,null,null,null,"Motor - Japan and Taiwan",{"$f":"AA269*Input!$G649","v":0},{"$f":"AB269*Input!$G649","v":0},{"$f":"AC269*Input!$G649","v":0},{"$f":"AD269*Input!$G649","v":0},null,null,"Motor - Japan and Taiwan","Motor",4,{"$f":"_xlfn.XLOOKUP($V269,'Risk Charges'!$C$117:$C$128,'Risk Charges'!D$117:D$128,,0)","v":0.16500000000000001},{"$f":"_xlfn.XLOOKUP($V269,'Risk Charges'!$C$117:$C$128,'Risk Charges'!E$117:E$128,,0)","v":0.14000000000000001},{"$f":"_xlfn.XLOOKUP($V269,'Risk Charges'!$C$117:$C$128,'Risk Charges'!F$117:F$128,,0)","v":0.12},{"$f":"_xlfn.XLOOKUP($V269,'Risk Charges'!$C$117:$C$128,'Risk Charges'!G$117:G$128,,0)","v":0.1},{"$f":"_xlfn.XLOOKUP($V269,'Risk Charges'!$C$132:$C$143,'Risk Charges'!D$132:D$143,,0)","v":0.20599999999999999},{"$f":"_xlfn.XLOOKUP($V269,'Risk Charges'!$C$132:$C$143,'Risk Charges'!E$132:E$143,,0)","v":0.17499999999999999},{"$f":"_xlfn.XLOOKUP($V269,'Risk Charges'!$C$132:$C$143,'Risk Charges'!F$132:F$143,,0)","v":0.15},{"$f":"_xlfn.XLOOKUP($V269,'Risk Charges'!$C$132:$C$143,'Risk Charges'!G$132:G$143,,0)","v":0.125}]
[null,null,null,"Third party liability motor",{"$f":"W270*Input!$F650","v":0},{"$f":"X270*Input!$F650","v":0},{"$f":"Y270*Input!$F650","v":0},{"$f":"Z270*Input!$F650","v":0},null,null,null,null,"Third party liability motor",{"$f":"AA270*Input!$G650","v":0},{"$f":"AB270*Input!$G650","v":0},{"$f":"AC270*Input!$G650","v":0},{"$f":"AD270*Input!$G650","v":0},null,null,"Third party liability motor","Motor",6,{"$f":"_xlfn.XLOOKUP($V270,'Risk Charges'!$C$117:$C$128,'Risk Charges'!D$117:D$128,,0)","v":0.33},{"$f":"_xlfn.XLOOKUP($V270,'Risk Charges'!$C$117:$C$128,'Risk Charges'!E$117:E$128,,0)","v":0.28000000000000003},{"$f":"_xlfn.XLOOKUP($V270,'Risk Charges'!$C$117:$C$128,'Risk Charges'!F$117:F$128,,0)","v":0.24},{"$f":"_xlfn.XLOOKUP($V270,'Risk Charges'!$C$117:$C$128,'Risk Charges'!G$117:G$128,,0)","v":0.2},{"$f":"_xlfn.XLOOKUP($V270,'Risk Charges'!$C$132:$C$143,'Risk Charges'!D$132:D$143,,0)","v":0.41299999999999998},{"$f":"_xlfn.XLOOKUP($V270,'Risk Charges'!$C$132:$C$143,'Risk Charges'!E$132:E$143,,0)","v":0.35},{"$f":"_xlfn.XLOOKUP($V270,'Risk Charges'!$C$132:$C$143,'Risk Charges'!F$132:F$143,,0)","v":0.3},{"$f":"_xlfn.XLOOKUP($V270,'Risk Charges'!$C$132:$C$143,'Risk Charges'!G$132:G$143,,0)","v":0.25}]
[null,null,null,"Consumer credit",{"$f":"W271*Input!$F651","v":0},{"$f":"X271*Input!$F651","v":0},{"$f":"Y271*Input!$F651","v":0},{"$f":"Z271*Input!$F651","v":0},null,null,null,null,"Consumer credit",{"$f":"AA271*Input!$G651","v":0},{"$f":"AB271*Input!$G651","v":0},{"$f":"AC271*Input!$G651","v":0},{"$f":"AD271*Input!$G651","v":0},null,null,"Consumer credit","Financial",5,{"$f":"_xlfn.XLOOKUP($V271,'Risk Charges'!$C$117:$C$128,'Risk Charges'!D$117:D$128,,0)","v":0.248},{"$f":"_xlfn.XLOOKUP($V271,'Risk Charges'!$C$117:$C$128,'Risk Charges'!E$117:E$128,,0)","v":0.21},{"$f":"_xlfn.XLOOKUP($V271,'Risk Charges'!$C$117:$C$128,'Risk Charges'!F$117:F$128,,0)","v":0.18},{"$f":"_xlfn.XLOOKUP($V271,'Risk Charges'!$C$117:$C$128,'Risk Charges'!G$117:G$128,,0)","v":0.15},{"$f":"_xlfn.XLOOKUP($V271,'Risk Charges'!$C$132:$C$143,'Risk Charges'!D$132:D$143,,0)","v":0.31},{"$f":"_xlfn.XLOOKUP($V271,'Risk Charges'!$C$132:$C$143,'Risk Charges'!E$132:E$143,,0)","v":0.26300000000000001},{"$f":"_xlfn.XLOOKUP($V271,'Risk Charges'!$C$132:$C$143,'Risk Charges'!F$132:F$143,,0)","v":0.22500000000000001},{"$f":"_xlfn.XLOOKUP($V271,'Risk Charges'!$C$132:$C$143,'Risk Charges'!G$132:G$143,,0)","v":0.188}]
[null,null,null,"Credit",{"$f":"W272*Input!$F652","v":0},{"$f":"X272*Input!$F652","v":0},{"$f":"Y272*Input!$F652","v":0},{"$f":"Z272*Input!$F652","v":0},null,null,null,null,"Credit",{"$f":"AA272*Input!$G652","v":0},{"$f":"AB272*Input!$G652","v":0},{"$f":"AC272*Input!$G652","v":0},{"$f":"AD272*Input!$G652","v":0},null,null,"Credit","Financial",8,{"$f":"_xlfn.XLOOKUP($V272,'Risk Charges'!$C$117:$C$128,'Risk Charges'!D$117:D$128,,0)","v":0.495},{"$f":"_xlfn.XLOOKUP($V272,'Risk Charges'!$C$117:$C$128,'Risk Charges'!E$117:E$128,,0)","v":0.42},{"$f":"_xlfn.XLOOKUP($V272,'Risk Charges'!$C$117:$C$128,'Risk Charges'!F$117:F$128,,0)","v":0.36},{"$f":"_xlfn.XLOOKUP($V272,'Risk Charges'!$C$117:$C$128,'Risk Charges'!G$117:G$128,,0)","v":0.3},{"$f":"_xlfn.XLOOKUP($V272,'Risk Charges'!$C$132:$C$143,'Risk Charges'!D$132:D$143,,0)","v":0.61899999999999999},{"$f":"_xlfn.XLOOKUP($V272,'Risk Charges'!$C$132:$C$143,'Risk Charges'!E$132:E$143,,0)","v":0.52500000000000002},{"$f":"_xlfn.XLOOKUP($V272,'Risk Charges'!$C$132:$C$143,'Risk Charges'!F$132:F$143,,0)","v":0.45},{"$f":"_xlfn.XLOOKUP($V272,'Risk Charges'!$C$132:$C$143,'Risk Charges'!G$132:G$143,,0)","v":0.375}]
[null,null,null,"Accident and health",{"$f":"W273*Input!$F653","v":0},{"$f":"X273*Input!$F653","v":0},{"$f":"Y273*Input!$F653","v":0},{"$f":"Z273*Input!$F653","v":0},null,null,null,null,"Accident and health",{"$f":"AA273*Input!$G653","v":0},{"$f":"AB273*Input!$G653","v":0},{"$f":"AC273*Input!$G653","v":0},{"$f":"AD273*Input!$G653","v":0},null,null,"Accident and health","Health",4,{"$f":"_xlfn.XLOOKUP($V273,'Risk Charges'!$C$117:$C$128,'Risk Charges'!D$117:D$128,,0)","v":0.16500000000000001},{"$f":"_xlfn.XLOOKUP($V273,'Risk Charges'!$C$117:$C$128,'Risk Charges'!E$117:E$128,,0)","v":0.14000000000000001},{"$f":"_xlfn.XLOOKUP($V273,'Risk Charges'!$C$117:$C$128,'Risk Charges'!F$117:F$128,,0)","v":0.12},{"$f":"_xlfn.XLOOKUP($V273,'Risk Charges'!$C$117:$C$128,'Risk Charges'!G$117:G$128,,0)","v":0.1},{"$f":"_xlfn.XLOOKUP($V273,'Risk Charges'!$C$132:$C$143,'Risk Charges'!D$132:D$143,,0)","v":0.20599999999999999},{"$f":"_xlfn.XLOOKUP($V273,'Risk Charges'!$C$132:$C$143,'Risk Charges'!E$132:E$143,,0)","v":0.17499999999999999},{"$f":"_xlfn.XLOOKUP($V273,'Risk Charges'!$C$132:$C$143,'Risk Charges'!F$132:F$143,,0)","v":0.15},{"$f":"_xlfn.XLOOKUP($V273,'Risk Charges'!$C$132:$C$143,'Risk Charges'!G$132:G$143,,0)","v":0.125}]
[null,null,null,"Health",{"$f":"W274*Input!$F654","v":0},{"$f":"X274*Input!$F654","v":0},{"$f":"Y274*Input!$F654","v":0},{"$f":"Z274*Input!$F654","v":0},null,null,null,null,"Health",{"$f":"AA274*Input!$G654","v":0},{"$f":"AB274*Input!$G654","v":0},{"$f":"AC274*Input!$G654","v":0},{"$f":"AD274*Input!$G654","v":0},null,null,"Health","Health",3,{"$f":"_xlfn.XLOOKUP($V274,'Risk Charges'!$C$117:$C$128,'Risk Charges'!D$117:D$128,,0)","v":0.124},{"$f":"_xlfn.XLOOKUP($V274,'Risk Charges'!$C$117:$C$128,'Risk Charges'!E$117:E$128,,0)","v":0.105},{"$f":"_xlfn.XLOOKUP($V274,'Risk Charges'!$C$117:$C$128,'Risk Charges'!F$117:F$128,,0)","v":0.09},{"$f":"_xlfn.XLOOKUP($V274,'Risk Charges'!$C$117:$C$128,'Risk Charges'!G$117:G$128,,0)","v":7.4999999999999997E-2},{"$f":"_xlfn.XLOOKUP($V274,'Risk Charges'!$C$132:$C$143,'Risk Charges'!D$132:D$143,,0)","v":0.155},{"$f":"_xlfn.XLOOKUP($V274,'Risk Charges'!$C$132:$C$143,'Risk Charges'!E$132:E$143,,0)","v":0.13100000000000001},{"$f":"_xlfn.XLOOKUP($V274,'Risk Charges'!$C$132:$C$143,'Risk Charges'!F$132:F$143,,0)","v":0.113},{"$f":"_xlfn.XLOOKUP($V274,'Risk Charges'!$C$132:$C$143,'Risk Charges'!G$132:G$143,,0)","v":9.4E-2}]
[null,null,null,"Marine, aviation - cargo",{"$f":"W275*Input!$F655","v":0},{"$f":"X275*Input!$F655","v":0},{"$f":"Y275*Input!$F655","v":0},{"$f":"Z275*Input!$F655","v":0},null,null,null,null,"Marine, aviation - cargo",{"$f":"AA275*Input!$G655","v":0},{"$f":"AB275*Input!$G655","v":0},{"$f":"AC275*Input!$G655","v":0},{"$f":"AD275*Input!$G655","v":0},null,null,"Marine, aviation - cargo","MAT",6,{"$f":"_xlfn.XLOOKUP($V275,'Risk Charges'!$C$117:$C$128,'Risk Charges'!D$117:D$128,,0)","v":0.33},{"$f":"_xlfn.XLOOKUP($V275,'Risk Charges'!$C$117:$C$128,'Risk Charges'!E$117:E$128,,0)","v":0.28000000000000003},{"$f":"_xlfn.XLOOKUP($V275,'Risk Charges'!$C$117:$C$128,'Risk Charges'!F$117:F$128,,0)","v":0.24},{"$f":"_xlfn.XLOOKUP($V275,'Risk Charges'!$C$117:$C$128,'Risk Charges'!G$117:G$128,,0)","v":0.2},{"$f":"_xlfn.XLOOKUP($V275,'Risk Charges'!$C$132:$C$143,'Risk Charges'!D$132:D$143,,0)","v":0.41299999999999998},{"$f":"_xlfn.XLOOKUP($V275,'Risk Charges'!$C$132:$C$143,'Risk Charges'!E$132:E$143,,0)","v":0.35},{"$f":"_xlfn.XLOOKUP($V275,'Risk Charges'!$C$132:$C$143,'Risk Charges'!F$132:F$143,,0)","v":0.3},{"$f":"_xlfn.XLOOKUP($V275,'Risk Charges'!$C$132:$C$143,'Risk Charges'!G$132:G$143,,0)","v":0.25}]
[null,null,null,"Marine, aviation - hull",{"$f":"W276*Input!$F656","v":0},{"$f":"X276*Input!$F656","v":0},{"$f":"Y276*Input!$F656","v":0},{"$f":"Z276*Input!$F656","v":0},null,null,null,null,"Marine, aviation - hull",{"$f":"AA276*Input!$G656","v":0},{"$f":"AB276*Input!$G656","v":0},{"$f":"AC276*Input!$G656","v":0},{"$f":"AD276*Input!$G656","v":0},null,null,"Marine, aviation - hull","MAT",8,{"$f":"_xlfn.XLOOKUP($V276,'Risk Charges'!$C$117:$C$128,'Risk Charges'!D$117:D$128,,0)","v":0.495},{"$f":"_xlfn.XLOOKUP($V276,'Risk Charges'!$C$117:$C$128,'Risk Charges'!E$117:E$128,,0)","v":0.42},{"$f":"_xlfn.XLOOKUP($V276,'Risk Charges'!$C$117:$C$128,'Risk Charges'!F$117:F$128,,0)","v":0.36},{"$f":"_xlfn.XLOOKUP($V276,'Risk Charges'!$C$117:$C$128,'Risk Charges'!G$117:G$128,,0)","v":0.3},{"$f":"_xlfn.XLOOKUP($V276,'Risk Charges'!$C$132:$C$143,'Risk Charges'!D$132:D$143,,0)","v":0.61899999999999999},{"$f":"_xlfn.XLOOKUP($V276,'Risk Charges'!$C$132:$C$143,'Risk Charges'!E$132:E$143,,0)","v":0.52500000000000002},{"$f":"_xlfn.XLOOKUP($V276,'Risk Charges'!$C$132:$C$143,'Risk Charges'!F$132:F$143,,0)","v":0.45},{"$f":"_xlfn.XLOOKUP($V276,'Risk Charges'!$C$132:$C$143,'Risk Charges'!G$132:G$143,,0)","v":0.375}]
[null,null,null,"Marine protection & indemnity",{"$f":"W277*Input!$F657","v":0},{"$f":"X277*Input!$F657","v":0},{"$f":"Y277*Input!$F657","v":0},{"$f":"Z277*Input!$F657","v":0},null,null,null,null,"Marine protection & indemnity",{"$f":"AA277*Input!$G657","v":0},{"$f":"AB277*Input!$G657","v":0},{"$f":"AC277*Input!$G657","v":0},{"$f":"AD277*Input!$G657","v":0},null,null,"Marine protection & indemnity","MAT",7,{"$f":"_xlfn.XLOOKUP($V277,'Risk Charges'!$C$117:$C$128,'Risk Charges'!D$117:D$128,,0)","v":0.41299999999999998},{"$f":"_xlfn.XLOOKUP($V277,'Risk Charges'!$C$117:$C$128,'Risk Charges'!E$117:E$128,,0)","v":0.35},{"$f":"_xlfn.XLOOKUP($V277,'Risk Charges'!$C$117:$C$128,'Risk Charges'!F$117:F$128,,0)","v":0.3},{"$f":"_xlfn.XLOOKUP($V277,'Risk Charges'!$C$117:$C$128,'Risk Charges'!G$117:G$128,,0)","v":0.25},{"$f":"_xlfn.XLOOKUP($V277,'Risk Charges'!$C$132:$C$143,'Risk Charges'!D$132:D$143,,0)","v":0.51600000000000001},{"$f":"_xlfn.XLOOKUP($V277,'Risk Charges'!$C$132:$C$143,'Risk Charges'!E$132:E$143,,0)","v":0.438},{"$f":"_xlfn.XLOOKUP($V277,'Risk Charges'!$C$132:$C$143,'Risk Charges'!F$132:F$143,,0)","v":0.375},{"$f":"_xlfn.XLOOKUP($V277,'Risk Charges'!$C$132:$C$143,'Risk Charges'!G$132:G$143,,0)","v":0.313}]
[null,null,null,"Travel",{"$f":"W278*Input!$F658","v":0},{"$f":"X278*Input!$F658","v":0},{"$f":"Y278*Input!$F658","v":0},{"$f":"Z278*Input!$F658","v":0},null,null,null,null,"Travel",{"$f":"AA278*Input!$G658","v":0},{"$f":"AB278*Input!$G658","v":0},{"$f":"AC278*Input!$G658","v":0},{"$f":"AD278*Input!$G658","v":0},null,null,"Travel","Other",5,{"$f":"_xlfn.XLOOKUP($V278,'Risk Charges'!$C$117:$C$128,'Risk Charges'!D$117:D$128,,0)","v":0.248},{"$f":"_xlfn.XLOOKUP($V278,'Risk Charges'!$C$117:$C$128,'Risk Charges'!E$117:E$128,,0)","v":0.21},{"$f":"_xlfn.XLOOKUP($V278,'Risk Charges'!$C$117:$C$128,'Risk Charges'!F$117:F$128,,0)","v":0.18},{"$f":"_xlfn.XLOOKUP($V278,'Risk Charges'!$C$117:$C$128,'Risk Charges'!G$117:G$128,,0)","v":0.15},{"$f":"_xlfn.XLOOKUP($V278,'Risk Charges'!$C$132:$C$143,'Risk Charges'!D$132:D$143,,0)","v":0.31},{"$f":"_xlfn.XLOOKUP($V278,'Risk Charges'!$C$132:$C$143,'Risk Charges'!E$132:E$143,,0)","v":0.26300000000000001},{"$f":"_xlfn.XLOOKUP($V278,'Risk Charges'!$C$132:$C$143,'Risk Charges'!F$132:F$143,,0)","v":0.22500000000000001},{"$f":"_xlfn.XLOOKUP($V278,'Risk Charges'!$C$132:$C$143,'Risk Charges'!G$132:G$143,,0)","v":0.188}]
[null,null,null,"Other",{"$f":"W279*Input!$F659","v":0},{"$f":"X279*Input!$F659","v":0},{"$f":"Y279*Input!$F659","v":0},{"$f":"Z279*Input!$F659","v":0},null,null,null,null,"Other",{"$f":"AA279*Input!$G659","v":0},{"$f":"AB279*Input!$G659","v":0},{"$f":"AC279*Input!$G659","v":0},{"$f":"AD279*Input!$G659","v":0},null,null,"Other","Other",10,{"$f":"_xlfn.XLOOKUP($V279,'Risk Charges'!$C$117:$C$128,'Risk Charges'!D$117:D$128,,0)","v":0.66},{"$f":"_xlfn.XLOOKUP($V279,'Risk Charges'!$C$117:$C$128,'Risk Charges'!E$117:E$128,,0)","v":0.56000000000000005},{"$f":"_xlfn.XLOOKUP($V279,'Risk Charges'!$C$117:$C$128,'Risk Charges'!F$117:F$128,,0)","v":0.48},{"$f":"_xlfn.XLOOKUP($V279,'Risk Charges'!$C$117:$C$128,'Risk Charges'!G$117:G$128,,0)","v":0.4},{"$f":"_xlfn.XLOOKUP($V279,'Risk Charges'!$C$132:$C$143,'Risk Charges'!D$132:D$143,,0)","v":0.82499999999999996},{"$f":"_xlfn.XLOOKUP($V279,'Risk Charges'!$C$132:$C$143,'Risk Charges'!E$132:E$143,,0)","v":0.7},{"$f":"_xlfn.XLOOKUP($V279,'Risk Charges'!$C$132:$C$143,'Risk Charges'!F$132:F$143,,0)","v":0.6},{"$f":"_xlfn.XLOOKUP($V279,'Risk Charges'!$C$132:$C$143,'Risk Charges'!G$132:G$143,,0)","v":0.5}]
[null,"Latin American Risks",null,null,null,null,null,null,null,null,"Latin American Risks",null,null,null,null,null,null,null,"Latin American Risks"]
[null,null,null,{"$f":"T281","v":"Employers liability"},{"$f":"W281*Input!$F661","v":0},{"$f":"X281*Input!$F661","v":0},{"$f":"Y281*Input!$F661","v":0},{"$f":"Z281*Input!$F661","v":0},null,null,null,null,{"$f":"T281","v":"Employers liability"},{"$f":"AA281*Input!$G661","v":0},{"$f":"AB281*Input!$G661","v":0},{"$f":"AC281*Input!$G661","v":0},{"$f":"AD281*Input!$G661","v":0},null,null,"Employers liability","Liability",6,{"$f":"_xlfn.XLOOKUP($V281,'Risk Charges'!$C$117:$C$128,'Risk Charges'!D$117:D$128,,0)","v":0.33},{"$f":"_xlfn.XLOOKUP($V281,'Risk Charges'!$C$117:$C$128,'Risk Charges'!E$117:E$128,,0)","v":0.28000000000000003},{"$f":"_xlfn.XLOOKUP($V281,'Risk Charges'!$C$117:$C$128,'Risk Charges'!F$117:F$128,,0)","v":0.24},{"$f":"_xlfn.XLOOKUP($V281,'Risk Charges'!$C$117:$C$128,'Risk Charges'!G$117:G$128,,0)","v":0.2},{"$f":"_xlfn.XLOOKUP($V281,'Risk Charges'!$C$132:$C$143,'Risk Charges'!D$132:D$143,,0)","v":0.41299999999999998},{"$f":"_xlfn.XLOOKUP($V281,'Risk Charges'!$C$132:$C$143,'Risk Charges'!E$132:E$143,,0)","v":0.35},{"$f":"_xlfn.XLOOKUP($V281,'Risk Charges'!$C$132:$C$143,'Risk Charges'!F$132:F$143,,0)","v":0.3},{"$f":"_xlfn.XLOOKUP($V281,'Risk Charges'!$C$132:$C$143,'Risk Charges'!G$132:G$143,,0)","v":0.25}]
[null,null,null,"General liability",{"$f":"W282*Input!$F662","v":0},{"$f":"X282*Input!$F662","v":0},{"$f":"Y282*Input!$F662","v":0},{"$f":"Z282*Input!$F662","v":0},null,null,null,null,"General liability",{"$f":"AA282*Input!$G662","v":0},{"$f":"AB282*Input!$G662","v":0},{"$f":"AC282*Input!$G662","v":0},{"$f":"AD282*Input!$G662","v":0},null,null,"General liability","Liability",6,{"$f":"_xlfn.XLOOKUP($V282,'Risk Charges'!$C$117:$C$128,'Risk Charges'!D$117:D$128,,0)","v":0.33},{"$f":"_xlfn.XLOOKUP($V282,'Risk Charges'!$C$117:$C$128,'Risk Charges'!E$117:E$128,,0)","v":0.28000000000000003},{"$f":"_xlfn.XLOOKUP($V282,'Risk Charges'!$C$117:$C$128,'Risk Charges'!F$117:F$128,,0)","v":0.24},{"$f":"_xlfn.XLOOKUP($V282,'Risk Charges'!$C$117:$C$128,'Risk Charges'!G$117:G$128,,0)","v":0.2},{"$f":"_xlfn.XLOOKUP($V282,'Risk Charges'!$C$132:$C$143,'Risk Charges'!D$132:D$143,,0)","v":0.41299999999999998},{"$f":"_xlfn.XLOOKUP($V282,'Risk Charges'!$C$132:$C$143,'Risk Charges'!E$132:E$143,,0)","v":0.35},{"$f":"_xlfn.XLOOKUP($V282,'Risk Charges'!$C$132:$C$143,'Risk Charges'!F$132:F$143,,0)","v":0.3},{"$f":"_xlfn.XLOOKUP($V282,'Risk Charges'!$C$132:$C$143,'Risk Charges'!G$132:G$143,,0)","v":0.25}]
[null,null,null,"Professional indemnity",{"$f":"W283*Input!$F663","v":0},{"$f":"X283*Input!$F663","v":0},{"$f":"Y283*Input!$F663","v":0},{"$f":"Z283*Input!$F663","v":0},null,null,null,null,"Professional indemnity",{"$f":"AA283*Input!$G663","v":0},{"$f":"AB283*Input!$G663","v":0},{"$f":"AC283*Input!$G663","v":0},{"$f":"AD283*Input!$G663","v":0},null,null,"Professional indemnity","Liability",8,{"$f":"_xlfn.XLOOKUP($V283,'Risk Charges'!$C$117:$C$128,'Risk Charges'!D$117:D$128,,0)","v":0.495},{"$f":"_xlfn.XLOOKUP($V283,'Risk Charges'!$C$117:$C$128,'Risk Charges'!E$117:E$128,,0)","v":0.42},{"$f":"_xlfn.XLOOKUP($V283,'Risk Charges'!$C$117:$C$128,'Risk Charges'!F$117:F$128,,0)","v":0.36},{"$f":"_xlfn.XLOOKUP($V283,'Risk Charges'!$C$117:$C$128,'Risk Charges'!G$117:G$128,,0)","v":0.3},{"$f":"_xlfn.XLOOKUP($V283,'Risk Charges'!$C$132:$C$143,'Risk Charges'!D$132:D$143,,0)","v":0.61899999999999999},{"$f":"_xlfn.XLOOKUP($V283,'Risk Charges'!$C$132:$C$143,'Risk Charges'!E$132:E$143,,0)","v":0.52500000000000002},{"$f":"_xlfn.XLOOKUP($V283,'Risk Charges'!$C$132:$C$143,'Risk Charges'!F$132:F$143,,0)","v":0.45},{"$f":"_xlfn.XLOOKUP($V283,'Risk Charges'!$C$132:$C$143,'Risk Charges'!G$132:G$143,,0)","v":0.375}]
[null,null,null,"Commercial property",{"$f":"W284*Input!$F664","v":0},{"$f":"X284*Input!$F664","v":0},{"$f":"Y284*Input!$F664","v":0},{"$f":"Z284*Input!$F664","v":0},null,null,null,null,"Commercial property",{"$f":"AA284*Input!$G664","v":0},{"$f":"AB284*Input!$G664","v":0},{"$f":"AC284*Input!$G664","v":0},{"$f":"AD284*Input!$G664","v":0},null,null,"Commercial property","Property",7,{"$f":"_xlfn.XLOOKUP($V284,'Risk Charges'!$C$117:$C$128,'Risk Charges'!D$117:D$128,,0)","v":0.41299999999999998},{"$f":"_xlfn.XLOOKUP($V284,'Risk Charges'!$C$117:$C$128,'Risk Charges'!E$117:E$128,,0)","v":0.35},{"$f":"_xlfn.XLOOKUP($V284,'Risk Charges'!$C$117:$C$128,'Risk Charges'!F$117:F$128,,0)","v":0.3},{"$f":"_xlfn.XLOOKUP($V284,'Risk Charges'!$C$117:$C$128,'Risk Charges'!G$117:G$128,,0)","v":0.25},{"$f":"_xlfn.XLOOKUP($V284,'Risk Charges'!$C$132:$C$143,'Risk Charges'!D$132:D$143,,0)","v":0.51600000000000001},{"$f":"_xlfn.XLOOKUP($V284,'Risk Charges'!$C$132:$C$143,'Risk Charges'!E$132:E$143,,0)","v":0.438},{"$f":"_xlfn.XLOOKUP($V284,'Risk Charges'!$C$132:$C$143,'Risk Charges'!F$132:F$143,,0)","v":0.375},{"$f":"_xlfn.XLOOKUP($V284,'Risk Charges'!$C$132:$C$143,'Risk Charges'!G$132:G$143,,0)","v":0.313}]
[null,null,null,"Domestic property",{"$f":"W285*Input!$F665","v":0},{"$f":"X285*Input!$F665","v":0},{"$f":"Y285*Input!$F665","v":0},{"$f":"Z285*Input!$F665","v":0},null,null,null,null,"Domestic property",{"$f":"AA285*Input!$G665","v":0},{"$f":"AB285*Input!$G665","v":0},{"$f":"AC285*Input!$G665","v":0},{"$f":"AD285*Input!$G665","v":0},null,null,"Domestic property","Property",6,{"$f":"_xlfn.XLOOKUP($V285,'Risk Charges'!$C$117:$C$128,'Risk Charges'!D$117:D$128,,0)","v":0.33},{"$f":"_xlfn.XLOOKUP($V285,'Risk Charges'!$C$117:$C$128,'Risk Charges'!E$117:E$128,,0)","v":0.28000000000000003},{"$f":"_xlfn.XLOOKUP($V285,'Risk Charges'!$C$117:$C$128,'Risk Charges'!F$117:F$128,,0)","v":0.24},{"$f":"_xlfn.XLOOKUP($V285,'Risk Charges'!$C$117:$C$128,'Risk Charges'!G$117:G$128,,0)","v":0.2},{"$f":"_xlfn.XLOOKUP($V285,'Risk Charges'!$C$132:$C$143,'Risk Charges'!D$132:D$143,,0)","v":0.41299999999999998},{"$f":"_xlfn.XLOOKUP($V285,'Risk Charges'!$C$132:$C$143,'Risk Charges'!E$132:E$143,,0)","v":0.35},{"$f":"_xlfn.XLOOKUP($V285,'Risk Charges'!$C$132:$C$143,'Risk Charges'!F$132:F$143,,0)","v":0.3},{"$f":"_xlfn.XLOOKUP($V285,'Risk Charges'!$C$132:$C$143,'Risk Charges'!G$132:G$143,,0)","v":0.25}]
[null,null,null,"Mexico farm & ranch",{"$f":"W286*Input!$F666","v":0},{"$f":"X286*Input!$F666","v":0},{"$f":"Y286*Input!$F666","v":0},{"$f":"Z286*Input!$F666","v":0},null,null,null,null,"Mexico farm & ranch",{"$f":"AA286*Input!$G666","v":0},{"$f":"AB286*Input!$G666","v":0},{"$f":"AC286*Input!$G666","v":0},{"$f":"AD286*Input!$G666","v":0},null,null,"Mexico farm & ranch","Property",10,{"$f":"_xlfn.XLOOKUP($V286,'Risk Charges'!$C$117:$C$128,'Risk Charges'!D$117:D$128,,0)","v":0.66},{"$f":"_xlfn.XLOOKUP($V286,'Risk Charges'!$C$117:$C$128,'Risk Charges'!E$117:E$128,,0)","v":0.56000000000000005},{"$f":"_xlfn.XLOOKUP($V286,'Risk Charges'!$C$117:$C$128,'Risk Charges'!F$117:F$128,,0)","v":0.48},{"$f":"_xlfn.XLOOKUP($V286,'Risk Charges'!$C$117:$C$128,'Risk Charges'!G$117:G$128,,0)","v":0.4},{"$f":"_xlfn.XLOOKUP($V286,'Risk Charges'!$C$132:$C$143,'Risk Charges'!D$132:D$143,,0)","v":0.82499999999999996},{"$f":"_xlfn.XLOOKUP($V286,'Risk Charges'!$C$132:$C$143,'Risk Charges'!E$132:E$143,,0)","v":0.7},{"$f":"_xlfn.XLOOKUP($V286,'Risk Charges'!$C$132:$C$143,'Risk Charges'!F$132:F$143,,0)","v":0.6},{"$f":"_xlfn.XLOOKUP($V286,'Risk Charges'!$C$132:$C$143,'Risk Charges'!G$132:G$143,,0)","v":0.5}]
[null,null,null,"Property all inclusive",{"$f":"W287*Input!$F667","v":0},{"$f":"X287*Input!$F667","v":0},{"$f":"Y287*Input!$F667","v":0},{"$f":"Z287*Input!$F667","v":0},null,null,null,null,"Property all inclusive",{"$f":"AA287*Input!$G667","v":0},{"$f":"AB287*Input!$G667","v":0},{"$f":"AC287*Input!$G667","v":0},{"$f":"AD287*Input!$G667","v":0},null,null,"Property all inclusive","Property",7,{"$f":"_xlfn.XLOOKUP($V287,'Risk Charges'!$C$117:$C$128,'Risk Charges'!D$117:D$128,,0)","v":0.41299999999999998},{"$f":"_xlfn.XLOOKUP($V287,'Risk Charges'!$C$117:$C$128,'Risk Charges'!E$117:E$128,,0)","v":0.35},{"$f":"_xlfn.XLOOKUP($V287,'Risk Charges'!$C$117:$C$128,'Risk Charges'!F$117:F$128,,0)","v":0.3},{"$f":"_xlfn.XLOOKUP($V287,'Risk Charges'!$C$117:$C$128,'Risk Charges'!G$117:G$128,,0)","v":0.25},{"$f":"_xlfn.XLOOKUP($V287,'Risk Charges'!$C$132:$C$143,'Risk Charges'!D$132:D$143,,0)","v":0.51600000000000001},{"$f":"_xlfn.XLOOKUP($V287,'Risk Charges'!$C$132:$C$143,'Risk Charges'!E$132:E$143,,0)","v":0.438},{"$f":"_xlfn.XLOOKUP($V287,'Risk Charges'!$C$132:$C$143,'Risk Charges'!F$132:F$143,,0)","v":0.375},{"$f":"_xlfn.XLOOKUP($V287,'Risk Charges'!$C$132:$C$143,'Risk Charges'!G$132:G$143,,0)","v":0.313}]
[null,null,null,"Motor all inclusive",{"$f":"W288*Input!$F668","v":0},{"$f":"X288*Input!$F668","v":0},{"$f":"Y288*Input!$F668","v":0},{"$f":"Z288*Input!$F668","v":0},null,null,null,null,"Motor all inclusive",{"$f":"AA288*Input!$G668","v":0},{"$f":"AB288*Input!$G668","v":0},{"$f":"AC288*Input!$G668","v":0},{"$f":"AD288*Input!$G668","v":0},null,null,"Motor all inclusive","Motor",5,{"$f":"_xlfn.XLOOKUP($V288,'Risk Charges'!$C$117:$C$128,'Risk Charges'!D$117:D$128,,0)","v":0.248},{"$f":"_xlfn.XLOOKUP($V288,'Risk Charges'!$C$117:$C$128,'Risk Charges'!E$117:E$128,,0)","v":0.21},{"$f":"_xlfn.XLOOKUP($V288,'Risk Charges'!$C$117:$C$128,'Risk Charges'!F$117:F$128,,0)","v":0.18},{"$f":"_xlfn.XLOOKUP($V288,'Risk Charges'!$C$117:$C$128,'Risk Charges'!G$117:G$128,,0)","v":0.15},{"$f":"_xlfn.XLOOKUP($V288,'Risk Charges'!$C$132:$C$143,'Risk Charges'!D$132:D$143,,0)","v":0.31},{"$f":"_xlfn.XLOOKUP($V288,'Risk Charges'!$C$132:$C$143,'Risk Charges'!E$132:E$143,,0)","v":0.26300000000000001},{"$f":"_xlfn.XLOOKUP($V288,'Risk Charges'!$C$132:$C$143,'Risk Charges'!F$132:F$143,,0)","v":0.22500000000000001},{"$f":"_xlfn.XLOOKUP($V288,'Risk Charges'!$C$132:$C$143,'Risk Charges'!G$132:G$143,,0)","v":0.188}]
[null,null,null,"Credit",{"$f":"W289*Input!$F669","v":0},{"$f":"X289*Input!$F669","v":0},{"$f":"Y289*Input!$F669","v":0},{"$f":"Z289*Input!$F669","v":0},null,null,null,null,"Credit",{"$f":"AA289*Input!$G669","v":0},{"$f":"AB289*Input!$G669","v":0},{"$f":"AC289*Input!$G669","v":0},{"$f":"AD289*Input!$G669","v":0},null,null,"Credit","Financial",8,{"$f":"_xlfn.XLOOKUP($V289,'Risk Charges'!$C$117:$C$128,'Risk Charges'!D$117:D$128,,0)","v":0.495},{"$f":"_xlfn.XLOOKUP($V289,'Risk Charges'!$C$117:$C$128,'Risk Charges'!E$117:E$128,,0)","v":0.42},{"$f":"_xlfn.XLOOKUP($V289,'Risk Charges'!$C$117:$C$128,'Risk Charges'!F$117:F$128,,0)","v":0.36},{"$f":"_xlfn.XLOOKUP($V289,'Risk Charges'!$C$117:$C$128,'Risk Charges'!G$117:G$128,,0)","v":0.3},{"$f":"_xlfn.XLOOKUP($V289,'Risk Charges'!$C$132:$C$143,'Risk Charges'!D$132:D$143,,0)","v":0.61899999999999999},{"$f":"_xlfn.XLOOKUP($V289,'Risk Charges'!$C$132:$C$143,'Risk Charges'!E$132:E$143,,0)","v":0.52500000000000002},{"$f":"_xlfn.XLOOKUP($V289,'Risk Charges'!$C$132:$C$143,'Risk Charges'!F$132:F$143,,0)","v":0.45},{"$f":"_xlfn.XLOOKUP($V289,'Risk Charges'!$C$132:$C$143,'Risk Charges'!G$132:G$143,,0)","v":0.375}]
[null,null,null,"Fidelity",{"$f":"W290*Input!$F670","v":0},{"$f":"X290*Input!$F670","v":0},{"$f":"Y290*Input!$F670","v":0},{"$f":"Z290*Input!$F670","v":0},null,null,null,null,"Fidelity",{"$f":"AA290*Input!$G670","v":0},{"$f":"AB290*Input!$G670","v":0},{"$f":"AC290*Input!$G670","v":0},{"$f":"AD290*Input!$G670","v":0},null,null,"Fidelity","Financial",8,{"$f":"_xlfn.XLOOKUP($V290,'Risk Charges'!$C$117:$C$128,'Risk Charges'!D$117:D$128,,0)","v":0.495},{"$f":"_xlfn.XLOOKUP($V290,'Risk Charges'!$C$117:$C$128,'Risk Charges'!E$117:E$128,,0)","v":0.42},{"$f":"_xlfn.XLOOKUP($V290,'Risk Charges'!$C$117:$C$128,'Risk Charges'!F$117:F$128,,0)","v":0.36},{"$f":"_xlfn.XLOOKUP($V290,'Risk Charges'!$C$117:$C$128,'Risk Charges'!G$117:G$128,,0)","v":0.3},{"$f":"_xlfn.XLOOKUP($V290,'Risk Charges'!$C$132:$C$143,'Risk Charges'!D$132:D$143,,0)","v":0.61899999999999999},{"$f":"_xlfn.XLOOKUP($V290,'Risk Charges'!$C$132:$C$143,'Risk Charges'!E$132:E$143,,0)","v":0.52500000000000002},{"$f":"_xlfn.XLOOKUP($V290,'Risk Charges'!$C$132:$C$143,'Risk Charges'!F$132:F$143,,0)","v":0.45},{"$f":"_xlfn.XLOOKUP($V290,'Risk Charges'!$C$132:$C$143,'Risk Charges'!G$132:G$143,,0)","v":0.375}]
[null,null,null,"Surety",{"$f":"W291*Input!$F671","v":0},{"$f":"X291*Input!$F671","v":0},{"$f":"Y291*Input!$F671","v":0},{"$f":"Z291*Input!$F671","v":0},null,null,null,null,"Surety",{"$f":"AA291*Input!$G671","v":0},{"$f":"AB291*Input!$G671","v":0},{"$f":"AC291*Input!$G671","v":0},{"$f":"AD291*Input!$G671","v":0},null,null,"Surety","Financial",8,{"$f":"_xlfn.XLOOKUP($V291,'Risk Charges'!$C$117:$C$128,'Risk Charges'!D$117:D$128,,0)","v":0.495},{"$f":"_xlfn.XLOOKUP($V291,'Risk Charges'!$C$117:$C$128,'Risk Charges'!E$117:E$128,,0)","v":0.42},{"$f":"_xlfn.XLOOKUP($V291,'Risk Charges'!$C$117:$C$128,'Risk Charges'!F$117:F$128,,0)","v":0.36},{"$f":"_xlfn.XLOOKUP($V291,'Risk Charges'!$C$117:$C$128,'Risk Charges'!G$117:G$128,,0)","v":0.3},{"$f":"_xlfn.XLOOKUP($V291,'Risk Charges'!$C$132:$C$143,'Risk Charges'!D$132:D$143,,0)","v":0.61899999999999999},{"$f":"_xlfn.XLOOKUP($V291,'Risk Charges'!$C$132:$C$143,'Risk Charges'!E$132:E$143,,0)","v":0.52500000000000002},{"$f":"_xlfn.XLOOKUP($V291,'Risk Charges'!$C$132:$C$143,'Risk Charges'!F$132:F$143,,0)","v":0.45},{"$f":"_xlfn.XLOOKUP($V291,'Risk Charges'!$C$132:$C$143,'Risk Charges'!G$132:G$143,,0)","v":0.375}]
[null,null,null,"Accident & health",{"$f":"W292*Input!$F672","v":0},{"$f":"X292*Input!$F672","v":0},{"$f":"Y292*Input!$F672","v":0},{"$f":"Z292*Input!$F672","v":0},null,null,null,null,"Accident & health",{"$f":"AA292*Input!$G672","v":0},{"$f":"AB292*Input!$G672","v":0},{"$f":"AC292*Input!$G672","v":0},{"$f":"AD292*Input!$G672","v":0},null,null,"Accident & health","Health",6,{"$f":"_xlfn.XLOOKUP($V292,'Risk Charges'!$C$117:$C$128,'Risk Charges'!D$117:D$128,,0)","v":0.33},{"$f":"_xlfn.XLOOKUP($V292,'Risk Charges'!$C$117:$C$128,'Risk Charges'!E$117:E$128,,0)","v":0.28000000000000003},{"$f":"_xlfn.XLOOKUP($V292,'Risk Charges'!$C$117:$C$128,'Risk Charges'!F$117:F$128,,0)","v":0.24},{"$f":"_xlfn.XLOOKUP($V292,'Risk Charges'!$C$117:$C$128,'Risk Charges'!G$117:G$128,,0)","v":0.2},{"$f":"_xlfn.XLOOKUP($V292,'Risk Charges'!$C$132:$C$143,'Risk Charges'!D$132:D$143,,0)","v":0.41299999999999998},{"$f":"_xlfn.XLOOKUP($V292,'Risk Charges'!$C$132:$C$143,'Risk Charges'!E$132:E$143,,0)","v":0.35},{"$f":"_xlfn.XLOOKUP($V292,'Risk Charges'!$C$132:$C$143,'Risk Charges'!F$132:F$143,,0)","v":0.3},{"$f":"_xlfn.XLOOKUP($V292,'Risk Charges'!$C$132:$C$143,'Risk Charges'!G$132:G$143,,0)","v":0.25}]
[null,null,null,"Health & medical exp",{"$f":"W293*Input!$F673","v":0},{"$f":"X293*Input!$F673","v":0},{"$f":"Y293*Input!$F673","v":0},{"$f":"Z293*Input!$F673","v":0},null,null,null,null,"Health & medical exp",{"$f":"AA293*Input!$G673","v":0},{"$f":"AB293*Input!$G673","v":0},{"$f":"AC293*Input!$G673","v":0},{"$f":"AD293*Input!$G673","v":0},null,null,"Health & medical exp","Health",3,{"$f":"_xlfn.XLOOKUP($V293,'Risk Charges'!$C$117:$C$128,'Risk Charges'!D$117:D$128,,0)","v":0.124},{"$f":"_xlfn.XLOOKUP($V293,'Risk Charges'!$C$117:$C$128,'Risk Charges'!E$117:E$128,,0)","v":0.105},{"$f":"_xlfn.XLOOKUP($V293,'Risk Charges'!$C$117:$C$128,'Risk Charges'!F$117:F$128,,0)","v":0.09},{"$f":"_xlfn.XLOOKUP($V293,'Risk Charges'!$C$117:$C$128,'Risk Charges'!G$117:G$128,,0)","v":7.4999999999999997E-2},{"$f":"_xlfn.XLOOKUP($V293,'Risk Charges'!$C$132:$C$143,'Risk Charges'!D$132:D$143,,0)","v":0.155},{"$f":"_xlfn.XLOOKUP($V293,'Risk Charges'!$C$132:$C$143,'Risk Charges'!E$132:E$143,,0)","v":0.13100000000000001},{"$f":"_xlfn.XLOOKUP($V293,'Risk Charges'!$C$132:$C$143,'Risk Charges'!F$132:F$143,,0)","v":0.113},{"$f":"_xlfn.XLOOKUP($V293,'Risk Charges'!$C$132:$C$143,'Risk Charges'!G$132:G$143,,0)","v":9.4E-2}]
[null,null,null,"Marine aviation - all inclusive",{"$f":"W294*Input!$F674","v":0},{"$f":"X294*Input!$F674","v":0},{"$f":"Y294*Input!$F674","v":0},{"$f":"Z294*Input!$F674","v":0},null,null,null,null,"Marine aviation - all inclusive",{"$f":"AA294*Input!$G674","v":0},{"$f":"AB294*Input!$G674","v":0},{"$f":"AC294*Input!$G674","v":0},{"$f":"AD294*Input!$G674","v":0},null,null,"Marine aviation - all inclusive","MAT",7,{"$f":"_xlfn.XLOOKUP($V294,'Risk Charges'!$C$117:$C$128,'Risk Charges'!D$117:D$128,,0)","v":0.41299999999999998},{"$f":"_xlfn.XLOOKUP($V294,'Risk Charges'!$C$117:$C$128,'Risk Charges'!E$117:E$128,,0)","v":0.35},{"$f":"_xlfn.XLOOKUP($V294,'Risk Charges'!$C$117:$C$128,'Risk Charges'!F$117:F$128,,0)","v":0.3},{"$f":"_xlfn.XLOOKUP($V294,'Risk Charges'!$C$117:$C$128,'Risk Charges'!G$117:G$128,,0)","v":0.25},{"$f":"_xlfn.XLOOKUP($V294,'Risk Charges'!$C$132:$C$143,'Risk Charges'!D$132:D$143,,0)","v":0.51600000000000001},{"$f":"_xlfn.XLOOKUP($V294,'Risk Charges'!$C$132:$C$143,'Risk Charges'!E$132:E$143,,0)","v":0.438},{"$f":"_xlfn.XLOOKUP($V294,'Risk Charges'!$C$132:$C$143,'Risk Charges'!F$132:F$143,,0)","v":0.375},{"$f":"_xlfn.XLOOKUP($V294,'Risk Charges'!$C$132:$C$143,'Risk Charges'!G$132:G$143,,0)","v":0.313}]
[null,null,null,"Marine aviation - cargo",{"$f":"W295*Input!$F675","v":0},{"$f":"X295*Input!$F675","v":0},{"$f":"Y295*Input!$F675","v":0},{"$f":"Z295*Input!$F675","v":0},null,null,null,null,"Marine aviation - cargo",{"$f":"AA295*Input!$G675","v":0},{"$f":"AB295*Input!$G675","v":0},{"$f":"AC295*Input!$G675","v":0},{"$f":"AD295*Input!$G675","v":0},null,null,"Marine aviation - cargo","MAT",7,{"$f":"_xlfn.XLOOKUP($V295,'Risk Charges'!$C$117:$C$128,'Risk Charges'!D$117:D$128,,0)","v":0.41299999999999998},{"$f":"_xlfn.XLOOKUP($V295,'Risk Charges'!$C$117:$C$128,'Risk Charges'!E$117:E$128,,0)","v":0.35},{"$f":"_xlfn.XLOOKUP($V295,'Risk Charges'!$C$117:$C$128,'Risk Charges'!F$117:F$128,,0)","v":0.3},{"$f":"_xlfn.XLOOKUP($V295,'Risk Charges'!$C$117:$C$128,'Risk Charges'!G$117:G$128,,0)","v":0.25},{"$f":"_xlfn.XLOOKUP($V295,'Risk Charges'!$C$132:$C$143,'Risk Charges'!D$132:D$143,,0)","v":0.51600000000000001},{"$f":"_xlfn.XLOOKUP($V295,'Risk Charges'!$C$132:$C$143,'Risk Charges'!E$132:E$143,,0)","v":0.438},{"$f":"_xlfn.XLOOKUP($V295,'Risk Charges'!$C$132:$C$143,'Risk Charges'!F$132:F$143,,0)","v":0.375},{"$f":"_xlfn.XLOOKUP($V295,'Risk Charges'!$C$132:$C$143,'Risk Charges'!G$132:G$143,,0)","v":0.313}]
[null,null,null,"Marine protection & indemnity",{"$f":"W296*Input!$F676","v":0},{"$f":"X296*Input!$F676","v":0},{"$f":"Y296*Input!$F676","v":0},{"$f":"Z296*Input!$F676","v":0},null,null,null,null,"Marine protection & indemnity",{"$f":"AA296*Input!$G676","v":0},{"$f":"AB296*Input!$G676","v":0},{"$f":"AC296*Input!$G676","v":0},{"$f":"AD296*Input!$G676","v":0},null,null,"Marine protection & indemnity","MAT",7,{"$f":"_xlfn.XLOOKUP($V296,'Risk Charges'!$C$117:$C$128,'Risk Charges'!D$117:D$128,,0)","v":0.41299999999999998},{"$f":"_xlfn.XLOOKUP($V296,'Risk Charges'!$C$117:$C$128,'Risk Charges'!E$117:E$128,,0)","v":0.35},{"$f":"_xlfn.XLOOKUP($V296,'Risk Charges'!$C$117:$C$128,'Risk Charges'!F$117:F$128,,0)","v":0.3},{"$f":"_xlfn.XLOOKUP($V296,'Risk Charges'!$C$117:$C$128,'Risk Charges'!G$117:G$128,,0)","v":0.25},{"$f":"_xlfn.XLOOKUP($V296,'Risk Charges'!$C$132:$C$143,'Risk Charges'!D$132:D$143,,0)","v":0.51600000000000001},{"$f":"_xlfn.XLOOKUP($V296,'Risk Charges'!$C$132:$C$143,'Risk Charges'!E$132:E$143,,0)","v":0.438},{"$f":"_xlfn.XLOOKUP($V296,'Risk Charges'!$C$132:$C$143,'Risk Charges'!F$132:F$143,,0)","v":0.375},{"$f":"_xlfn.XLOOKUP($V296,'Risk Charges'!$C$132:$C$143,'Risk Charges'!G$132:G$143,,0)","v":0.313}]
[null,null,null,"Travel",{"$f":"W297*Input!$F677","v":0},{"$f":"X297*Input!$F677","v":0},{"$f":"Y297*Input!$F677","v":0},{"$f":"Z297*Input!$F677","v":0},null,null,null,null,"Travel",{"$f":"AA297*Input!$G677","v":0},{"$f":"AB297*Input!$G677","v":0},{"$f":"AC297*Input!$G677","v":0},{"$f":"AD297*Input!$G677","v":0},null,null,"Travel","Other",6,{"$f":"_xlfn.XLOOKUP($V297,'Risk Charges'!$C$117:$C$128,'Risk Charges'!D$117:D$128,,0)","v":0.33},{"$f":"_xlfn.XLOOKUP($V297,'Risk Charges'!$C$117:$C$128,'Risk Charges'!E$117:E$128,,0)","v":0.28000000000000003},{"$f":"_xlfn.XLOOKUP($V297,'Risk Charges'!$C$117:$C$128,'Risk Charges'!F$117:F$128,,0)","v":0.24},{"$f":"_xlfn.XLOOKUP($V297,'Risk Charges'!$C$117:$C$128,'Risk Charges'!G$117:G$128,,0)","v":0.2},{"$f":"_xlfn.XLOOKUP($V297,'Risk Charges'!$C$132:$C$143,'Risk Charges'!D$132:D$143,,0)","v":0.41299999999999998},{"$f":"_xlfn.XLOOKUP($V297,'Risk Charges'!$C$132:$C$143,'Risk Charges'!E$132:E$143,,0)","v":0.35},{"$f":"_xlfn.XLOOKUP($V297,'Risk Charges'!$C$132:$C$143,'Risk Charges'!F$132:F$143,,0)","v":0.3},{"$f":"_xlfn.XLOOKUP($V297,'Risk Charges'!$C$132:$C$143,'Risk Charges'!G$132:G$143,,0)","v":0.25}]
[null,null,null,"Warranty",{"$f":"W298*Input!$F678","v":0},{"$f":"X298*Input!$F678","v":0},{"$f":"Y298*Input!$F678","v":0},{"$f":"Z298*Input!$F678","v":0},null,null,null,null,"Warranty",{"$f":"AA298*Input!$G678","v":0},{"$f":"AB298*Input!$G678","v":0},{"$f":"AC298*Input!$G678","v":0},{"$f":"AD298*Input!$G678","v":0},null,null,"Warranty","Other",7,{"$f":"_xlfn.XLOOKUP($V298,'Risk Charges'!$C$117:$C$128,'Risk Charges'!D$117:D$128,,0)","v":0.41299999999999998},{"$f":"_xlfn.XLOOKUP($V298,'Risk Charges'!$C$117:$C$128,'Risk Charges'!E$117:E$128,,0)","v":0.35},{"$f":"_xlfn.XLOOKUP($V298,'Risk Charges'!$C$117:$C$128,'Risk Charges'!F$117:F$128,,0)","v":0.3},{"$f":"_xlfn.XLOOKUP($V298,'Risk Charges'!$C$117:$C$128,'Risk Charges'!G$117:G$128,,0)","v":0.25},{"$f":"_xlfn.XLOOKUP($V298,'Risk Charges'!$C$132:$C$143,'Risk Charges'!D$132:D$143,,0)","v":0.51600000000000001},{"$f":"_xlfn.XLOOKUP($V298,'Risk Charges'!$C$132:$C$143,'Risk Charges'!E$132:E$143,,0)","v":0.438},{"$f":"_xlfn.XLOOKUP($V298,'Risk Charges'!$C$132:$C$143,'Risk Charges'!F$132:F$143,,0)","v":0.375},{"$f":"_xlfn.XLOOKUP($V298,'Risk Charges'!$C$132:$C$143,'Risk Charges'!G$132:G$143,,0)","v":0.313}]
[null,null,null,"Other",{"$f":"W299*Input!$F679","v":0},{"$f":"X299*Input!$F679","v":0},{"$f":"Y299*Input!$F679","v":0},{"$f":"Z299*Input!$F679","v":0},null,null,null,null,"Other",{"$f":"AA299*Input!$G679","v":0},{"$f":"AB299*Input!$G679","v":0},{"$f":"AC299*Input!$G679","v":0},{"$f":"AD299*Input!$G679","v":0},null,null,"Other","Other",10,{"$f":"_xlfn.XLOOKUP($V299,'Risk Charges'!$C$117:$C$128,'Risk Charges'!D$117:D$128,,0)","v":0.66},{"$f":"_xlfn.XLOOKUP($V299,'Risk Charges'!$C$117:$C$128,'Risk Charges'!E$117:E$128,,0)","v":0.56000000000000005},{"$f":"_xlfn.XLOOKUP($V299,'Risk Charges'!$C$117:$C$128,'Risk Charges'!F$117:F$128,,0)","v":0.48},{"$f":"_xlfn.XLOOKUP($V299,'Risk Charges'!$C$117:$C$128,'Risk Charges'!G$117:G$128,,0)","v":0.4},{"$f":"_xlfn.XLOOKUP($V299,'Risk Charges'!$C$132:$C$143,'Risk Charges'!D$132:D$143,,0)","v":0.82499999999999996},{"$f":"_xlfn.XLOOKUP($V299,'Risk Charges'!$C$132:$C$143,'Risk Charges'!E$132:E$143,,0)","v":0.7},{"$f":"_xlfn.XLOOKUP($V299,'Risk Charges'!$C$132:$C$143,'Risk Charges'!F$132:F$143,,0)","v":0.6},{"$f":"_xlfn.XLOOKUP($V299,'Risk Charges'!$C$132:$C$143,'Risk Charges'!G$132:G$143,,0)","v":0.5}]

{"sheet":"Life Risk","index":9,"n_rows":184,"n_cols":10,"rows_kept":184,"cut":false,"hidden":false,"merged":[[94,1,96,1]]}
[]
[null,"Life technical risk"]
[]
[null,null,null,0.99990000000000001,0.99950000000000006,0.998,0.995]
[null,null,"Adjusted: Mortality",{"$f":"D42","v":0},{"$f":"E42","v":0},{"$f":"F42","v":0},{"$f":"G42","v":0}]
[null,null,"Adjusted: Morbidity",{"$f":"D108","v":0},{"$f":"E108","v":0},{"$f":"F108","v":0},{"$f":"G108","v":0}]
[null,null,"Adjusted: Longevity",{"$f":"D121","v":0},{"$f":"E121","v":0},{"$f":"F121","v":0},{"$f":"G121","v":0}]
[null,null,"Adjusted: Other life risk",{"$f":"D163","v":0},{"$f":"E163","v":0},{"$f":"F163","v":0},{"$f":"G163","v":0}]
[null,null,"Adjusted: Pandemic",{"$f":"D47","v":0},{"$f":"E47","v":0},{"$f":"F47","v":0},{"$f":"G47","v":0}]
[null,null," Health with aging reserves",{"$f":"D184","v":0},{"$f":"E184","v":0},{"$f":"F184","v":0},{"$f":"G184","v":0}]
[null,null,"Variable annuities",{"$f":"D174","v":0},{"$f":"E174","v":0},{"$f":"F174","v":0},{"$f":"G174","v":0}]
[null,null,"Total",{"$f":"SUM(D5:D11)","v":0},{"$f":"SUM(E5:E11)","v":0},{"$f":"SUM(F5:F11)","v":0},{"$f":"SUM(G5:G11)","v":0}]
[null,null,"Adjustment: life technical risk",{"$f":"SUMIF(Adjustment!$L$5:$L$24,Lists!$L$7,Adjustment!M$5:M$24)","v":0},{"$f":"SUMIF(Adjustment!$L$5:$L$24,Lists!$L$7,Adjustment!N$5:N$24)","v":0},{"$f":"SUMIF(Adjustment!$L$5:$L$24,Lists!$L$7,Adjustment!O$5:O$24)","v":0},{"$f":"SUMIF(Adjustment!$L$5:$L$24,Lists!$L$7,Adjustment!P$5:P$24)","v":0}]
[null,null,"Adjusted total ",{"$f":"D12+D13","v":0},{"$f":"E12+E13","v":0},0,0]
[]
[null,"USD Millions Conversion Factor (Multiplier)"]
[]
[null,null,"USD Exchange Rate (blank input defaults to 1.0)",{"$f":"IF(Input!H12=\"\",1,Input!H12)","v":1}]
[null,null,"Units",{"$f":"Input!J12","v":"Millions"}]
[null,null,"Conversion Factor",{"$f":"IF(D19=\"Millions\",1,IF(D19=\"Billions\",1000,IF(D19=\"Thousands\",10^-3,IF(D19=\"Ones\",10^-6,0))))/D18","v":1}]
[]
[null,"Mortality and Pandemic Required Capital"]
[]
[null,"Mortality"]
[null,null,"Mortality NAR in USD (Billions)",null,null,null,"HDM","LDM"]
[null,null,"Highly developed markets  ",{"$f":"Input!F724*D20/1000","v":0},null,"First $50 billion",{"$f":"MIN(50,D26)","v":0},{"$f":"MIN(50,D27)","v":0}]
[null,null,"Less developed markets  ",{"$f":"Input!F725*D20/1000","v":0},null,"Next  $200 billion",{"$f":"MIN(200,D26-G26)","v":0},{"$f":"MIN(200,D27-H26)","v":0}]
[null,null,null,null,null,"In excess of $250 billion",{"$f":"D26-G26-G27","v":0},{"$f":"D27-H26-H27","v":0}]
[null,null,null,"Highly developed markets"]
[null,null,null,0.99990000000000001,0.99950000000000006,0.998,0.995]
[null,null,"First $50 billion",{"$f":"$G26*'Risk Charges'!D179*1000/$D$20","v":0},{"$f":"$G26*'Risk Charges'!E179*1000/$D$20","v":0},{"$f":"$G26*'Risk Charges'!F179*1000/$D$20","v":0},{"$f":"$G26*'Risk Charges'!G179*1000/$D$20","v":0}]
[null,null,"Next  $200 billion",{"$f":"$G27*'Risk Charges'!D180*1000/$D$20","v":0},{"$f":"$G27*'Risk Charges'!E180*1000/$D$20","v":0},{"$f":"$G27*'Risk Charges'!F180*1000/$D$20","v":0},{"$f":"$G27*'Risk Charges'!G180*1000/$D$20","v":0}]
[null,null,"In excess of $250 billion",{"$f":"$G28*'Risk Charges'!D181*1000/$D$20","v":0},{"$f":"$G28*'Risk Charges'!E181*1000/$D$20","v":0},{"$f":"$G28*'Risk Charges'!F181*1000/$D$20","v":0},{"$f":"$G28*'Risk Charges'!G181*1000/$D$20","v":0}]
[]
[null,null,null,"Less developed markets"]
[null,null,null,0.99990000000000001,0.99950000000000006,0.998,0.995]
[null,null,"First $50 billion",{"$f":"$H26*'Risk Charges'!D185*1000/$D$20","v":0},{"$f":"$H26*'Risk Charges'!E185*1000/$D$20","v":0},{"$f":"$H26*'Risk Charges'!F185*1000/$D$20","v":0},{"$f":"$H26*'Risk Charges'!G185*1000/$D$20","v":0}]
[null,null,"Next  $200 billion",{"$f":"$H27*'Risk Charges'!D186*1000/$D$20","v":0},{"$f":"$H27*'Risk Charges'!E186*1000/$D$20","v":0},{"$f":"$H27*'Risk Charges'!F186*1000/$D$20","v":0},{"$f":"$H27*'Risk Charges'!G186*1000/$D$20","v":0}]
[null,null,"In excess of $250 billion",{"$f":"$H28*'Risk Charges'!D187*1000/$D$20","v":0},{"$f":"$H28*'Risk Charges'!E187*1000/$D$20","v":0},{"$f":"$H28*'Risk Charges'!F187*1000/$D$20","v":0},{"$f":"$H28*'Risk Charges'!G187*1000/$D$20","v":0}]
[null,null,"Total",{"$f":"SUM(D31:D33,D37:D39)","v":0},{"$f":"SUM(E31:E33,E37:E39)","v":0},{"$f":"SUM(F31:F33,F37:F39)","v":0},{"$f":"SUM(G31:G33,G37:G39)","v":0}]
[null,null,"Adjustment",{"$f":"SUMIF(Adjustment!$L$5:$L$24,Lists!$L$14,Adjustment!M$5:M$24)","v":0},{"$f":"SUMIF(Adjustment!$L$5:$L$24,Lists!$L$14,Adjustment!N$5:N$24)","v":0},{"$f":"SUMIF(Adjustment!$L$5:$L$24,Lists!$L$14,Adjustment!O$5:O$24)","v":0},{"$f":"SUMIF(Adjustment!$L$5:$L$24,Lists!$L$14,Adjustment!P$5:P$24)","v":0}]
[null,null,"Adjusted total",{"$f":"D40+D41","v":0},{"$f":"E40+E41","v":0},{"$f":"F40+F41","v":0},{"$f":"G40+G41","v":0}]
[]
[null,"Pandemic",null,0.99990000000000001,0.99950000000000006,0.998,0.995]
[null,null,"Pandemic risk",{"$f":"Input!$F727*'Risk Charges'!D190","v":0},{"$f":"Input!$F727*'Risk Charges'!E190","v":0},{"$f":"Input!$F727*'Risk Charges'!F190","v":0},{"$f":"Input!$F727*'Risk Charges'!G190","v":0}]
[null,null,"Adjustment",{"$f":"SUMIF(Adjustment!$L$5:$L$24,Lists!$L$15,Adjustment!M$5:M$24)","v":0},{"$f":"SUMIF(Adjustment!$L$5:$L$24,Lists!$L$15,Adjustment!N$5:N$24)","v":0},{"$f":"SUMIF(Adjustment!$L$5:$L$24,Lists!$L$15,Adjustment!O$5:O$24)","v":0},{"$f":"SUMIF(Adjustment!$L$5:$L$24,Lists!$L$15,Adjustment!P$5:P$24)","v":0}]
[null,null,"Adjusted total",{"$f":"D45+D46","v":0},{"$f":"E45+E46","v":0},{"$f":"F45+F46","v":0},{"$f":"G45+G46","v":0}]
[]
[null,null,"Credit Risk on Pandemic Recoveries",{"$f":"MAX(0,Input!$F729-Input!$F727)*'Risk Charges'!P59*'Risk Charges'!D190","v":0},{"$f":"MAX(0,Input!$F729-Input!$F727)*'Risk Charges'!Q59*'Risk Charges'!E190","v":0},{"$f":"MAX(0,Input!$F729-Input!$F727)*'Risk Charges'!R59*'Risk Charges'!F190","v":0},{"$f":"MAX(0,Input!$F729-Input!$F727)*'Risk Charges'!S59*'Risk Charges'!G190","v":0}]
[null,null,"Adjustment",{"$f":"SUMIF(Adjustment!$L$5:$L$24,Lists!$L$18,Adjustment!M$5:M$24)","v":0},{"$f":"SUMIF(Adjustment!$L$5:$L$24,Lists!$L$18,Adjustment!N$5:N$24)","v":0},{"$f":"SUMIF(Adjustment!$L$5:$L$24,Lists!$L$18,Adjustment!O$5:O$24)","v":0},{"$f":"SUMIF(Adjustment!$L$5:$L$24,Lists!$L$18,Adjustment!P$5:P$24)","v":0}]
[null,null,"Adjusted total",{"$f":"D49+D50","v":0},{"$f":"E49+E50","v":0},{"$f":"F49+F50","v":0},{"$f":"G49+G50","v":0}]
[]
[null,"Critical Illness Risk Required Capital"]
[]
[]
[null,null,"NAR in USD Billions",null,null,null,"HDM","LDM"]
[null,null,"Highly developed markets  ",{"$f":"Input!$F735*$D20/1000","v":0},null,"First $50 billion",{"$f":"MIN(50,D57)","v":0},{"$f":"MIN(50,D58)","v":0}]
[null,null,"Less developed markets  ",{"$f":"Input!$F736*$D20/1000","v":0},null,"Next  $200 billion",{"$f":"MIN(200,D57-G57)","v":0},{"$f":"MIN(200,D58-H57)","v":0}]
[null,null,null,null,null,"In excess of $250 billion",{"$f":"D57-G57-G58","v":0},{"$f":"D58-H57-H58","v":0}]
[]
[null,null,null,"Highly developed markets"]
[null,null,null,0.99990000000000001,0.99950000000000006,0.998,0.995]
[null,null,"First $50 billion",{"$f":"$G57*'Risk Charges'!P179*1000/$D$20","v":0},{"$f":"$G57*'Risk Charges'!Q179*1000/$D$20","v":0},{"$f":"$G57*'Risk Charges'!R179*1000/$D$20","v":0},{"$f":"$G57*'Risk Charges'!S179*1000/$D$20","v":0}]
[null,null,"Next  $200 billion",{"$f":"$G58*'Risk Charges'!P180*1000/$D$20","v":0},{"$f":"$G58*'Risk Charges'!Q180*1000/$D$20","v":0},{"$f":"$G58*'Risk Charges'!R180*1000/$D$20","v":0},{"$f":"$G58*'Risk Charges'!S180*1000/$D$20","v":0}]
[null,null,"In excess of $250 billion",{"$f":"$G59*'Risk Charges'!P181*1000/$D$20","v":0},{"$f":"$G59*'Risk Charges'!Q181*1000/$D$20","v":0},{"$f":"$G59*'Risk Charges'!R181*1000/$D$20","v":0},{"$f":"$G59*'Risk Charges'!S181*1000/$D$20","v":0}]
[]
[null,null,null,"Less developed markets"]
[null,null,null,0.99990000000000001,0.99950000000000006,0.998,0.995]
[null,null,"First $50 billion",{"$f":"$H57*'Risk Charges'!P185*1000/$D$20","v":0},{"$f":"$H57*'Risk Charges'!Q185*1000/$D$20","v":0},{"$f":"$H57*'Risk Charges'!R185*1000/$D$20","v":0},{"$f":"$H57*'Risk Charges'!S185*1000/$D$20","v":0}]
[null,null,"Next  $200 billion",{"$f":"$H58*'Risk Charges'!P186*1000/$D$20","v":0},{"$f":"$H58*'Risk Charges'!Q186*1000/$D$20","v":0},{"$f":"$H58*'Risk Charges'!R186*1000/$D$20","v":0},{"$f":"$H58*'Risk Charges'!S186*1000/$D$20","v":0}]
[null,null,"In excess of $250 billion",{"$f":"$H59*'Risk Charges'!P187*1000/$D$20","v":0},{"$f":"$H59*'Risk Charges'!Q187*1000/$D$20","v":0},{"$f":"$H59*'Risk Charges'!R187*1000/$D$20","v":0},{"$f":"$H59*'Risk Charges'!S187*1000/$D$20","v":0}]
[null,null,"Total",{"$f":"SUM(D63:D65,D69:D71)","v":0},{"$f":"SUM(E63:E65,E69:E71)","v":0},0,0]
[]
[null,"Disability Risk Required Capital"]
[]
[]
[null,null,null,"NAR in USD Millions","< $50 Million","> $50 Million",0.99990000000000001,0.99950000000000006,0.998,0.995]
[null,null,"Non-Cancelable Disability Income",{"$f":"Input!F742*$D$20","v":0},{"$f":"MIN(D78, 50)","v":0},{"$f":"D78-E78","v":0},{"$f":"($E78*'Risk Charges'!D202+$F78*'Risk Charges'!D213)/$D$20","v":0},{"$f":"($E78*'Risk Charges'!E202+$F78*'Risk Charges'!E213)/$D$20","v":0},{"$f":"($E78*'Risk Charges'!F202+$F78*'Risk Charges'!F213)/$D$20","v":0},{"$f":"($E78*'Risk Charges'!G202+$F78*'Risk Charges'!G213)/$D$20","v":0}]
[null,null,"Other Individual Income",{"$f":"Input!F743*$D$20","v":0},{"$f":"MIN(D79, 50)","v":0},{"$f":"D79-E79","v":0},{"$f":"($E79*'Risk Charges'!D203+$F79*'Risk Charges'!D214)/$D$20","v":0},{"$f":"($E79*'Risk Charges'!E203+$F79*'Risk Charges'!E214)/$D$20","v":0},{"$f":"($E79*'Risk Charges'!F203+$F79*'Risk Charges'!F214)/$D$20","v":0},{"$f":"($E79*'Risk Charges'!G203+$F79*'Risk Charges'!G214)/$D$20","v":0}]
[null,null,"Group Long Term",{"$f":"Input!F744*$D$20","v":0},0,0,{"$f":"($E80*'Risk Charges'!D204+$F80*'Risk Charges'!D215)/$D$20","v":0},{"$f":"($E80*'Risk Charges'!E204+$F80*'Risk Charges'!E215)/$D$20","v":0},{"$f":"($E80*'Risk Charges'!F204+$F80*'Risk Charges'!F215)/$D$20","v":0},{"$f":"($E80*'Risk Charges'!G204+$F80*'Risk Charges'!G215)/$D$20","v":0}]
[null,null,"Group Short Term",{"$f":"Input!F745*$D$20","v":0},0,0,{"$f":"($E81*'Risk Charges'!D205+$F81*'Risk Charges'!D216)/$D$20","v":0},{"$f":"($E81*'Risk Charges'!E205+$F81*'Risk Charges'!E216)/$D$20","v":0},{"$f":"($E81*'Risk Charges'!F205+$F81*'Risk Charges'!F216)/$D$20","v":0},{"$f":"($E81*'Risk Charges'!G205+$F81*'Risk Charges'!G216)/$D$20","v":0}]
[null,null,"Credit Monthly O/S balance",{"$f":"Input!F746*$D$20","v":0},0,0,{"$f":"($E82*'Risk Charges'!D206+$F82*'Risk Charges'!D217)/$D$20","v":0},{"$f":"($E82*'Risk Charges'!E206+$F82*'Risk Charges'!E217)/$D$20","v":0},{"$f":"($E82*'Risk Charges'!F206+$F82*'Risk Charges'!F217)/$D$20","v":0},{"$f":"($E82*'Risk Charges'!G206+$F82*'Risk Charges'!G217)/$D$20","v":0}]
[null,null,"Credit Single Premium with UPR",{"$f":"Input!F747*$D$20","v":0},0,0,{"$f":"($E83*'Risk Charges'!D207+$F83*'Risk Charges'!D218)/$D$20","v":0},{"$f":"($E83*'Risk Charges'!E207+$F83*'Risk Charges'!E218)/$D$20","v":0},{"$f":"($E83*'Risk Charges'!F207+$F83*'Risk Charges'!F218)/$D$20","v":0},{"$f":"($E83*'Risk Charges'!G207+$F83*'Risk Charges'!G218)/$D$20","v":0}]
[null,null,"Credit Single Premium without UPR",{"$f":"Input!F748*$D$20","v":0},0,0,{"$f":"($E84*'Risk Charges'!D208+$F84*'Risk Charges'!D219)/$D$20","v":0},{"$f":"($E84*'Risk Charges'!E208+$F84*'Risk Charges'!E219)/$D$20","v":0},{"$f":"($E84*'Risk Charges'!F208+$F84*'Risk Charges'!F219)/$D$20","v":0},{"$f":"($E84*'Risk Charges'!G208+$F84*'Risk Charges'!G219)/$D$20","v":0}]
[null,null,"Other Disability Income",{"$f":"Input!F749*$D$20","v":0},0,0,{"$f":"($E85*'Risk Charges'!D209+$F85*'Risk Charges'!D220)/$D$20","v":0},{"$f":"($E85*'Risk Charges'!E209+$F85*'Risk Charges'!E220)/$D$20","v":0},{"$f":"($E85*'Risk Charges'!F209+$F85*'Risk Charges'!F220)/$D$20","v":0},{"$f":"($E85*'Risk Charges'!G209+$F85*'Risk Charges'!G220)/$D$20","v":0}]
[]
[null,null,null,null,null,"Total Pricing Risk",{"$f":"SUM(G78:G85)","v":0},{"$f":"SUM(H78:H85)","v":0},{"$f":"SUM(I78:I85)","v":0},{"$f":"SUM(J78:J85)","v":0}]
[null,null,null,null,null,"Total Reserve Risk",{"$f":"Input!$F$752*'Risk Charges'!D224","v":0},{"$f":"Input!$F$752*'Risk Charges'!E224","v":0},{"$f":"Input!$F$752*'Risk Charges'!F224","v":0},{"$f":"Input!$F$752*'Risk Charges'!G224","v":0}]
[null,null,null,null,null,"Total Disability",{"$f":"G87+G88","v":0},{"$f":"H87+H88","v":0},0,0]
[]
[null,"Long term care risk charges"]
[]
[null,null,null,0.99990000000000001,0.99950000000000006,0.998,0.995]
[null,"Non-US","Liabilities",{"$f":"Input!$F758*'Risk Charges'!D229","v":0},{"$f":"Input!$F758*'Risk Charges'!E229","v":0},{"$f":"Input!$F758*'Risk Charges'!F229","v":0},{"$f":"Input!$F758*'Risk Charges'!G229","v":0}]
[null,"US","Claims",{"$f":"Input!$F760*'Risk Charges'!D230","v":0},{"$f":"Input!$F760*'Risk Charges'!E230","v":0},{"$f":"Input!$F760*'Risk Charges'!F230","v":0},{"$f":"Input!$F760*'Risk Charges'!G230","v":0}]
[null,null,"Earned Premiums",{"$f":"Input!$F761*'Risk Charges'!D231","v":0},{"$f":"Input!$F761*'Risk Charges'!E231","v":0},{"$f":"Input!$F761*'Risk Charges'!F231","v":0},{"$f":"Input!$F761*'Risk Charges'!G231","v":0}]
[null,null,"Claim Reserves",{"$f":"Input!$F762*'Risk Charges'!D232","v":0},{"$f":"Input!$F762*'Risk Charges'!E232","v":0},{"$f":"Input!$F762*'Risk Charges'!F232","v":0},{"$f":"Input!$F762*'Risk Charges'!G232","v":0}]
[null,null,"Total",{"$f":"SUM(D94:D97)","v":0},{"$f":"SUM(E94:E97)","v":0},{"$f":"SUM(F94:F97)","v":0},{"$f":"SUM(G94:G97)","v":0}]
[]
[null,"Morbidity - Critical Illness, Disability & Long term care Risk Required Capital"]
[]
[null,null,null,0.99990000000000001,0.99950000000000006,0.998,0.995]
[null,null,"Critcal Illness",{"$f":"D72","v":0},{"$f":"E72","v":0},{"$f":"F72","v":0},{"$f":"G72","v":0}]
[null,null,"Disability",{"$f":"G89","v":0},{"$f":"H89","v":0},{"$f":"I89","v":0},{"$f":"J89","v":0}]
[null,null,"Long term care",{"$f":"D98","v":0},{"$f":"E98","v":0},{"$f":"F98","v":0},{"$f":"G98","v":0}]
[null,null,"Total",{"$f":"SUM(D103:D105)","v":0},{"$f":"SUM(E103:E105)","v":0},0,0]
[null,null,"Adjustment",{"$f":"SUMIF(Adjustment!$L$5:$L$24,Lists!$L$16,Adjustment!M$5:M$24)","v":0},{"$f":"SUMIF(Adjustment!$L$5:$L$24,Lists!$L$16,Adjustment!N$5:N$24)","v":0},{"$f":"SUMIF(Adjustment!$L$5:$L$24,Lists!$L$16,Adjustment!O$5:O$24)","v":0},{"$f":"SUMIF(Adjustment!$L$5:$L$24,Lists!$L$16,Adjustment!P$5:P$24)","v":0}]
[null,null,"Adjusted total",{"$f":"D106+D107","v":0},{"$f":"E106+E107","v":0},0,0]
[]
[null,"Longevity Risk Required Capital"]
[]
[null,null,"Category 1",{"$f":"Input!F768+Input!F769","v":0},null,"Reduction in charge",{"$f":"IFERROR(VLOOKUP(inp_long_reserve_cl,'Risk Charges'!I168:J171,2,FALSE),0)","v":0}]
[null,null,"Category 2",{"$f":"Input!F770","v":0},null,"Charge Multiplier",{"$f":"1-G112","v":1}]
[null,null,"Category 3",{"$f":"Input!F771","v":0}]
[null,null,null,0.99990000000000001,0.99950000000000006,0.998,0.995]
[null,null,"Category 1",{"$f":"$D112*'Risk Charges'!D169*$G$113","v":0},{"$f":"$D112*'Risk Charges'!E169*$G$113","v":0},{"$f":"$D112*'Risk Charges'!F169*$G$113","v":0},{"$f":"$D112*'Risk Charges'!G169*$G$113","v":0}]
[null,null,"Category 2",{"$f":"$D113*'Risk Charges'!D170*$G$113","v":0},{"$f":"$D113*'Risk Charges'!E170*$G$113","v":0},{"$f":"$D113*'Risk Charges'!F170*$G$113","v":0},{"$f":"$D113*'Risk Charges'!G170*$G$113","v":0}]
[null,null,"Category 3",{"$f":"$D114*'Risk Charges'!D171*$G$113","v":0},{"$f":"$D114*'Risk Charges'!E171*$G$113","v":0},{"$f":"$D114*'Risk Charges'!F171*$G$113","v":0},{"$f":"$D114*'Risk Charges'!G171*$G$113","v":0}]
[null,null,"Total",{"$f":"SUM(D116:D118)","v":0},{"$f":"SUM(E116:E118)","v":0},0,0]
[null,null,"Adjustment",{"$f":"SUMIF(Adjustment!$L$5:$L$24,Lists!$L$17,Adjustment!M$5:M$24)","v":0},{"$f":"SUMIF(Adjustment!$L$5:$L$24,Lists!$L$17,Adjustment!N$5:N$24)","v":0},{"$f":"SUMIF(Adjustment!$L$5:$L$24,Lists!$L$17,Adjustment!O$5:O$24)","v":0},{"$f":"SUMIF(Adjustment!$L$5:$L$24,Lists!$L$17,Adjustment!P$5:P$24)","v":0}]
[null,null,"Adjusted total",{"$f":"D119+D120","v":0},{"$f":"E119+E120","v":0},{"$f":"F119+F120","v":0},{"$f":"G119+G120","v":0}]
[]
[null,"Other life Risk Required Capital"]
[]
[null,"Life Adjustment"]
[null,null,"Reported reserves",{"$f":"Input!I802","v":0}]
[null,null,"Adjusted reserves",{"$f":"D126-Input!F48-Input!F50-Input!F51-Input!F53-Input!F55","v":0}]
[null,null,"Adjustment Factor",{"$f":"IFERROR(D127/D126,1)","v":1}]
[]
[null,null,"Product","Product Category","Exposure with no mitigant","Exposure with mitigant"]
[null,null,"Protection / Term",3,{"$f":"Input!F782*(1-Input!G782-Input!H782)","v":0},{"$f":"Input!F782*Input!G782","v":0}]
[null,null,"Permanent Health Insurance / Disability / Critical Illness",3,{"$f":"Input!F783*(1-Input!G783-Input!H783)","v":0},{"$f":"Input!F783*Input!G783","v":0}]
[null,null,""]
[null,null,"Non-linked savings* (eg Permanent Life insurance/ Fixed indexed annuity / RILA )",1,{"$f":"Input!F785*(1-Input!G785-Input!H785)","v":0},{"$f":"Input!F785*Input!G785","v":0}]
[]
[null,null,"Immediate payout annuities  ",3,{"$f":"Input!F787*(1-Input!G787-Input!H787)","v":0},{"$f":"Input!F787*Input!G787","v":0}]
[null,null,"Deferred payout annuities (without crediting guarantees)  ",2,{"$f":"Input!F788*(1-Input!G788-Input!H788)","v":0},{"$f":"Input!F788*Input!G788","v":0}]
[null,null,"Deferred payout annuities (with crediting guarantees)  ",1,{"$f":"Input!F789*(1-Input!G789-Input!H789)","v":0},{"$f":"Input!F789*Input!G789","v":0}]
[]
[null,null,"GIC",1,{"$f":"Input!F791*(1-Input!G791-Input!H791)","v":0},{"$f":"Input!F791*Input!G791","v":0}]
[null,null,"Other life products       \n˗ Structured settlements\n˗ Repurchase Agreements \n˗ Securities Lending Transactions\n˗ Funding agreements",3,{"$f":"Input!F792*(1-Input!G792-Input!H792)","v":0},{"$f":"Input!F792*Input!G792","v":0}]
[]
[null,null,"Linked business with investment guarantees  ",1,{"$f":"Input!F794*(1-Input!G794-Input!H794)","v":0},{"$f":"Input!F794*Input!G794","v":0}]
[null,null,"Linked business without guarantees (eg Variable unniversal life)  ",3,{"$f":"Input!F795*(1-Input!G795-Input!H795)","v":0},{"$f":"Input!F795*Input!G795","v":0}]
[]
[]
[null,null,"Participating business (excluding payout annuities)  ",1,{"$f":"Input!F798*(1-Input!G798-Input!H798)","v":0},{"$f":"Input!F798*Input!G798","v":0}]
[null,null,"Participating immediate payout annuities  ",3,{"$f":"Input!F799*(1-Input!G799-Input!H799)","v":0},{"$f":"Input!F799*Input!G799","v":0}]
[null,null,"Participating deferred annuities  ",1,{"$f":"Input!F800*(1-Input!G800-Input!H800)","v":0},{"$f":"Input!F800*Input!G800","v":0}]
[]
[null,null,"Category","Exposure"]
[null,null,1,{"$f":"SUMIF($D$131:$D$149,C152,$E$131:$E$149)","v":0}]
[null,null,2,{"$f":"SUMIF($D$131:$D$149,C153,$E$131:$E$149)+SUMIF($D$131:$D$149,C152,$F$131:$F$149)","v":0}]
[null,null,3,{"$f":"SUMIF($D$131:$D$149,C154,$E$131:$E$149)+SUMPRODUCT(Input!F781:F800,Input!H781:H800)","v":0}]
[]
[null,null,null,0.99990000000000001,0.99950000000000006,0.998,0.995]
[null,null,"Category 1",{"$f":"$D152*'Risk Charges'!D161","v":0},{"$f":"$D152*'Risk Charges'!E161","v":0},{"$f":"$D152*'Risk Charges'!F161","v":0},{"$f":"$D152*'Risk Charges'!G161","v":0}]
[null,null,"Category 2",{"$f":"$D153*'Risk Charges'!D162","v":0},{"$f":"$D153*'Risk Charges'!E162","v":0},{"$f":"$D153*'Risk Charges'!F162","v":0},{"$f":"$D153*'Risk Charges'!G162","v":0}]
[null,null,"Category 3",{"$f":"$D154*'Risk Charges'!D163","v":0},{"$f":"$D154*'Risk Charges'!E163","v":0},{"$f":"$D154*'Risk Charges'!F163","v":0},{"$f":"$D154*'Risk Charges'!G163","v":0}]
[null,null,"Total",{"$f":"SUM(D157:D159)","v":0},{"$f":"SUM(E157:E159)","v":0},{"$f":"SUM(F157:F159)","v":0},{"$f":"SUM(G157:G159)","v":0}]
[null,null,"(Minus) Life reserves Adjustment",{"$f":"D160*(1-$D128)","v":0},{"$f":"E160*(1-$D128)","v":0},0,0]
[null,null,"(Plus) Analyst Adjustment",{"$f":"SUMIF(Adjustment!$L$5:$L$24,Lists!$L$19,Adjustment!M$5:M$24)","v":0},{"$f":"SUMIF(Adjustment!$L$5:$L$24,Lists!$L$19,Adjustment!N$5:N$24)","v":0},{"$f":"SUMIF(Adjustment!$L$5:$L$24,Lists!$L$19,Adjustment!O$5:O$24)","v":0},{"$f":"SUMIF(Adjustment!$L$5:$L$24,Lists!$L$19,Adjustment!P$5:P$24)","v":0}]
[null,null,"Adjusted total",{"$f":"D160-D161+D162","v":0},{"$f":"E160-E161+E162","v":0},0,0]
[]
[null,"Variable Annuities Required Capital"]
[]
[null,null,"Adjusted minimum Error Factor (e-factor)",{"$f":"MAX(Input!F815,'Risk Charges'!D195)","v":0.2}]
[]
[null,null,"Best effort weight",{"$f":"1-D167","v":0.8}]
[null,null,"Ajdusted weight",{"$f":"D167","v":0.2}]
[]
[null,null,null,0.99990000000000001,0.99950000000000006,0.998,0.995]
[null,null,"Variable Annuities Initial",{"$f":"TRANSPOSE(Input!F810:F813*D169+Input!G810:G813*D170-Input!F817)","v":0},0,0,0]
[null,null,"Variable Annuities Final",{"$f":"MAX(0,D173)","v":0},{"$f":"MAX(0,E173)","v":0},0,0]
[]
[null,"Value In Force risk charges"]
[]
[null,null,null,0.99990000000000001,0.99950000000000006,0.998,0.995]
[null,null,"Value In Force (VIF)",{"$f":"(Input!$F$48+Input!$F$49)*'Risk Charges'!D238","v":0},{"$f":"(Input!$F$48+Input!$F$49)*'Risk Charges'!E238","v":0},{"$f":"(Input!$F$48+Input!$F$49)*'Risk Charges'!F238","v":0},{"$f":"(Input!$F$48+Input!$F$49)*'Risk Charges'!G238","v":0}]
[]
[null,"Long-term health business with aging reserves"]
[]
[null,null,null,0.99990000000000001,0.99950000000000006,0.998,0.995]
[null,null,"Net aging reserves",{"$f":"Input!$F$831*'Risk Charges'!D244","v":0},{"$f":"Input!$F$831*'Risk Charges'!E244","v":0},{"$f":"Input!$F$831*'Risk Charges'!F244","v":0},{"$f":"Input!$F$831*'Risk Charges'!G244","v":0}]

{"sheet":"Interest Rate Risk","index":10,"n_rows":89,"n_cols":31,"rows_kept":89,"cut":false,"hidden":false,"merged":[[43,22,43,29],[44,22,44,23],[44,24,44,25],[44,26,44,27],[44,28,44,29],[45,26,45,27],[45,28,45,29],[45,22,45,23],[51,17,52,17],[51,28,51,29],[45,24,45,25],[51,22,51,23],[51,24,51,25],[51,26,51,27],[51,18,51,19],[51,20,51,21],[3,1,3,7],[17,1,17,2],[51,7,52,7],[51,16,52,16],[51,1,52,1],[51,3,52,3],[51,4,52,4],[51,5,52,5],[51,6,52,6],[51,2,52,2],[51,8,51,9],[51,10,51,11],[51,12,51,13],[51,14,51,15],[50,8,50,15]]}
[]
[null,"Interest Rate Risk Assumptions"]
[]
[null,"Yield Stress Assumptions (Basis Points)"]
[null,"Category","Direction","Lookup Key",0.99990000000000001,0.99950000000000006,0.998,0.995]
[null,{"$f":"Lists!U3","v":1},{"$f":"Lists!$T$3","v":"Up"},{"$f":"CONCATENATE(B6,C6)","v":"1Up"},130,115,105,95]
[null,{"$f":"Lists!U3","v":1},{"$f":"Lists!$T$4","v":"Down"},"1Down",120,105,95,85]
[null,{"$f":"Lists!U4","v":2},{"$f":"Lists!$T$3","v":"Up"},"2Up",180,160,145,135]
[null,{"$f":"Lists!U4","v":2},{"$f":"Lists!$T$4","v":"Down"},"2Down",170,150,135,120]
[null,{"$f":"Lists!U5","v":3},{"$f":"Lists!$T$3","v":"Up"},"3Up",275,250,220,205]
[null,{"$f":"Lists!U5","v":3},{"$f":"Lists!$T$4","v":"Down"},"3Down",255,225,195,175]
[null,{"$f":"Lists!U6","v":4},{"$f":"Lists!$T$3","v":"Up"},"4Up",365,330,295,270]
[null,{"$f":"Lists!U6","v":4},{"$f":"Lists!$T$4","v":"Down"},"4Down",330,290,250,225]
[null,{"$f":"Lists!U7","v":5},{"$f":"Lists!$T$3","v":"Up"},"5Up",490,450,400,370]
[null,{"$f":"Lists!U7","v":5},{"$f":"Lists!$T$4","v":"Down"},"5Down",470,410,350,320]
[]
[]
[null,"Duration Mismatch Assumptions (Life)",null,null,"Non-life duration mismatch scaling"]
[null,"Group","Mismatch Assumption (Years)",null,{"$f":"1/3","v":0.33333333333333331}]
[null,{"$f":"Lists!V3","v":"A"},1]
[null,{"$f":"Lists!V4","v":"B"},2]
[null,{"$f":"Lists!V5","v":"C"},3]
[null,{"$f":"Lists!V6","v":"D"},4]
[null,{"$f":"Lists!V7","v":"E"},5]
[null,{"$f":"Lists!V8","v":"F"},7]
[]
[null,"Duration of bonds and loans"]
[]
[null,"Tenor (years)","Bond & Loans Exposure  (Step 1)","Bond & Loans Exposure  (Steps 2 & 3)","Bond & Loans Exposure  (Step 4)","Total Bonds & Loans","Representative maturity for the tenor bucket","Weighted Maturity / Duration"]
[null,"Upto 1",{"$f":"SUM(Input!F83:M83)+SUM(Input!F91:M91)+SUM(Input!F99:M99)+SUM(Input!F107:M107)","v":0},{"$f":"SUM(Input!F123:L123,Input!F131:L131,Input!F139:L139,Input!F147:L147,Input!F156:L156,Input!F164:L164,Input!F172:L172,Input!F180:L180)","v":0},{"$f":"SUMIF('Step 4 bond aggregation'!$D$2:$D$661,B30,'Step 4 bond aggregation'!$B$2:$B$661)","v":0},{"$f":"SUM(C30:E30)","v":0},0.5,{"$f":"G30*F30","v":0}]
[null,"1.01 to 5",{"$f":"SUM(Input!F84:M84)+SUM(Input!F92:M92)+SUM(Input!F100:M100)+SUM(Input!F108:M108)","v":0},{"$f":"SUM(Input!F124:L124,Input!F132:L132,Input!F140:L140,Input!F148:L148,Input!F157:L157,Input!F165:L165,Input!F173:L173,Input!F181:L181)","v":0},{"$f":"SUMIF('Step 4 bond aggregation'!$D$2:$D$661,B31,'Step 4 bond aggregation'!$B$2:$B$661)","v":0},{"$f":"SUM(C31:E31)","v":0},3,{"$f":"G31*F31","v":0}]
[null,"5.01 to 10",{"$f":"SUM(Input!F85:M85)+SUM(Input!F93:M93)+SUM(Input!F101:M101)+SUM(Input!F109:M109)","v":0},{"$f":"SUM(Input!F125:L125,Input!F133:L133,Input!F141:L141,Input!F149:L149,Input!F158:L158,Input!F166:L166,Input!F174:L174,Input!F182:L182)","v":0},{"$f":"SUMIF('Step 4 bond aggregation'!$D$2:$D$661,B32,'Step 4 bond aggregation'!$B$2:$B$661)","v":0},0,7.5,0]
[null,"10.01 to 20",{"$f":"SUM(Input!F86:M86)+SUM(Input!F94:M94)+SUM(Input!F102:M102)+SUM(Input!F110:M110)","v":0},{"$f":"SUM(Input!F126:L126,Input!F134:L134,Input!F142:L142,Input!F150:L150,Input!F159:L159,Input!F167:L167,Input!F175:L175,Input!F183:L183)","v":0},{"$f":"SUMIF('Step 4 bond aggregation'!$D$2:$D$661,B33,'Step 4 bond aggregation'!$B$2:$B$661)","v":0},0,15,0]
[null,"More than 20",{"$f":"SUM(Input!F87:M87)+SUM(Input!F95:M95)+SUM(Input!F103:M103)+SUM(Input!F111:M111)","v":0},{"$f":"SUM(Input!F127:L127,Input!F135:L135,Input!F143:L143,Input!F151:L151,Input!F160:L160,Input!F168:L168,Input!F176:L176,Input!F184:L184)","v":0},{"$f":"SUMIF('Step 4 bond aggregation'!$D$2:$D$661,B34,'Step 4 bond aggregation'!$B$2:$B$661)","v":0},0,25,0]
[null,null,null,null,null,{"$f":"SUM(F30:F34)","v":0},null,{"$f":"IFERROR(SUM(H30:H34)/F35,0)","v":0}]
[]
[null,"Step 2 Choices"]
[]
[null,"Life","Non-life",null,"In Step 1","In Step 1a","In Step 1b","In Step 2"]
[null,{"$f":"IF(inp_ir_mismatch_directiion_bespoke=\"Yes\",Input!G847,\"Unknown\")","v":"Unknown"},{"$f":"IF(inp_ir_mismatch_directiion_bespoke=\"Yes\",Input!H847,\"Unknown\")","v":"Unknown"},null,{"$f":"OR(calc_ir_in_step_1a,calc_ir_in_step_1b)","v":false},{"$f":"AND(duration_mismatch_bespoke=\"Yes, NCMV\")","v":false},{"$f":"AND(duration_mismatch_bespoke=\"Yes, Duration Mismatch\")","v":false},{"$f":"AND(duration_mismatch_bespoke=\"No\",OR(B40<>\"Unknown\",C40<>\"Unknown\"))","v":false}]
[]
[null,"Interest Rate Risk - Required Capital"]
[]
[null,null,null,null,null,null,null,null,null,null,null,null,null,null,null,null,null,null,null,null,null,null,"Calculated Charge"]
[null,null,null,null,null,null,null,null,null,null,null,null,null,null,null,null,null,null,null,null,null,null,0.99990000000000001,null,0.99950000000000006,null,0.998,null,0.995]
[null,null,null,null,null,null,null,null,null,null,null,null,null,null,null,null,null,null,null,null,null,"Risk Charge",{"$f":"IF(W51>=X51,MAX(W47,W51),MAX(X47,X51))","v":0},null,{"$f":"IF(Y51>=Z51,MAX(Y47,Y51),MAX(Z47,Z51))","v":0},null,{"$f":"IF(AA51>=AB51,MAX(AA47,AA51),MAX(AB47,AB51))","v":0},null,{"$f":"IF(AC51>=AD51,MAX(AC47,AC51),MAX(AD47,AD51))","v":0}]
[null,null,null,null,null,null,null,null,null,null,null,null,null,null,null,null,null,null,null,null,null,"Applied floor",{"$f":"IF(calc_ir_in_step_2,W48,IF(calc_ir_in_step_1,W49,0))","v":0},0,0,0,0,0,0,0]
[null,null,null,null,null,null,null,null,null,null,null,null,null,null,null,null,null,null,null,null,null,"Step 2 floor",{"$f":"W50","v":0},{"$f":"X50","v":0},0,0,0,0,0,0]
[null,null,null,null,null,null,null,null,null,null,null,null,null,null,null,null,null,null,null,null,null,"Step 1 floor",{"$f":"0.5*W50","v":0},{"$f":"0.5*X50","v":0},0,0,0,0,0,0]
[null,null,null,null,null,null,null,null,null,null,null,null,null,null,null,null,null,null,null,null,null,"Floor using 1 year duration mismatch",{"$f":"SUMPRODUCT($E$54:$E$89,I54:I89)/10000","v":0},0,0,0,0,0,0,0]
[null,null,null,null,null,null,null,null,"Interest Rate Stress",null,null,null,null,null,null,null,null,null,null,null,null,{"$f":"IF(calc_ir_in_step_1a, \"NCMV from Step 1\", \"Total (Before floor)\")","v":"Total (Before floor)"},{"$f":"IF(calc_ir_in_step_1a, IF(Input!$G$840 = W53,Input!I839,0),SUM(W54:W89))","v":0},{"$f":"IF(calc_ir_in_step_1a, IF(Input!$G$840 = X53,Input!I839,0),SUM(X54:X89))","v":0},{"$f":"IF(calc_ir_in_step_1a, IF(Input!$G$840 = Y53,Input!J839,0),SUM(Y54:Y89))","v":0},{"$f":"IF(calc_ir_in_step_1a, IF(Input!$G$840 = Z53,Input!J839,0),SUM(Z54:Z89))","v":0},{"$f":"IF(calc_ir_in_step_1a, IF(Input!$G$840 = AA53,Input!K839,0),SUM(AA54:AA89))","v":0},{"$f":"IF(calc_ir_in_step_1a, IF(Input!$G$840 = AB53,Input!K839,0),SUM(AB54:AB89))","v":0},{"$f":"IF(calc_ir_in_step_1a, IF(Input!$G$840 = AC53,Input!L839,0),SUM(AC54:AC89))","v":0},{"$f":"IF(calc_ir_in_step_1a, IF(Input!$G$840 = AD53,Input!L839,0),SUM(AD54:AD89))","v":0}]
[null,"Country of exposure","Country of IR risk exposure (if different)","Exposure category","Exposure amount","Is complete input?","IR Volatility Category","Duration Mismatch Group",0.99990000000000001,null,0.99950000000000006,null,0.998,null,0.995,null,"Duration Mismatch Assumption","Applied Duration Mismatch","Conditional Multiplier",null,"Capital Charge for 100 bps change",null,0.99990000000000001,null,0.99950000000000006,null,0.998,null,0.995]
[null,null,null,null,null,null,null,null,"Up","Down","Up","Down","Up","Down","Up","Down",null,null,"Up","Down","Up","Down","Up","Down","Up","Down","Up","Down","Up","Down","Is Life?"]
[null,{"$f":"IF(Input!C862=\"\",\"\",Input!C862)","v":""},{"$f":"IF(Input!D862=\"\",\"\",Input!D862)","v":""},{"$f":"IF(Input!E862=\"\",\"\",Input!E862)","v":"Capital"},{"$f":"Input!G862","v":0},{"$f":"AND(B54<>\"\",D54<>\"\",E54<>0)","v":false},{"$f":"IF(Input!L862=\"\",\"\",Input!L862)","v":""},{"$f":"IF(Input!M862=\"\",\"\",Input!M862)","v":""},{"$f":"IFERROR(VLOOKUP(CONCATENATE($G54,I$53),$D$6:$H$15,MATCH(I$52,$D$5:$H$5,0),FALSE),0)","v":0},{"$f":"IFERROR(VLOOKUP(CONCATENATE($G54,J$53),$D$6:$H$15,MATCH(I$52,$D$5:$H$5,0),FALSE),0)","v":0},{"$f":"IFERROR(VLOOKUP(CONCATENATE($G54,K$53),$D$6:$H$15,MATCH(K$52,$D$5:$H$5,0),FALSE),0)","v":0},{"$f":"IFERROR(VLOOKUP(CONCATENATE($G54,L$53),$D$6:$H$15,MATCH(K$52,$D$5:$H$5,0),FALSE),0)","v":0},{"$f":"IFERROR(VLOOKUP(CONCATENATE($G54,M$53),$D$6:$H$15,MATCH(M$52,$D$5:$H$5,0),FALSE),0)","v":0},{"$f":"IFERROR(VLOOKUP(CONCATENATE($G54,N$53),$D$6:$H$15,MATCH(M$52,$D$5:$H$5,0),FALSE),0)","v":0},{"$f":"IFERROR(VLOOKUP(CONCATENATE($G54,O$53),$D$6:$H$15,MATCH(O$52,$D$5:$H$5,0),FALSE),0)","v":0},{"$f":"IFERROR(VLOOKUP(CONCATENATE($G54,P$53),$D$6:$H$15,MATCH(O$52,$D$5:$H$5,0),FALSE),0)","v":0},{"$f":"IFERROR(IF(AE54,VLOOKUP(H54,$B$20:$C$25,2, FALSE), IF(D54=\"Non-life\",MAX(1, Input!$G$842*$E$19),IF(D54=\"Capital\", MAX(1, Input!$G$843), 0))),0)","v":1},{"$f":"IF(F54, IF(NOT(calc_ir_in_step_1),Q54,Input!$G$839),0)","v":0},{"$f":"IF(OR(AND(calc_ir_in_step_1b,Input!$G$840=\"Down\"),AND(NOT(calc_ir_in_step_1),OR(AND(AE54,$B$40=\"Down\"),AND($D54=\"Non-life\",$C$40=\"Down\")))),0,1)","v":1},{"$f":"IF(OR(AND(calc_ir_in_step_1b,Input!$G$840<>\"Down\"),AND(NOT(calc_ir_in_step_1),OR($D54=\"Capital\",AND(AE54,$B$40=\"Up\"),AND($D54=\"Non-life\",$C$40=\"Up\")))),0,1)","v":0},{"$f":"$E54*$R54*S54/100","v":0},{"$f":"$E54*$R54*T54/100","v":0},{"$f":"$U54/100*I54","v":0},{"$f":"$V54/100*J54","v":0},{"$f":"$U54/100*K54","v":0},{"$f":"$V54/100*L54","v":0},{"$f":"$U54/100*M54","v":0},{"$f":"$V54/100*N54","v":0},{"$f":"$U54/100*O54","v":0},{"$f":"$V54/100*P54","v":0},{"$f":"Input!T862","v":false}]
[null,{"$f":"IF(Input!C863=\"\",\"\",Input!C863)","v":""},{"$f":"IF(Input!D863=\"\",\"\",Input!D863)","v":""},{"$f":"IF(Input!E863=\"\",\"\",Input!E863)","v":""},{"$f":"Input!G863","v":0},false,{"$f":"IF(Input!L863=\"\",\"\",Input!L863)","v":""},{"$f":"IF(Input!M863=\"\",\"\",Input!M863)","v":""},0,0,0,0,0,0,0,0,{"$f":"IFERROR(IF(AE55,VLOOKUP(H55,$B$20:$C$25,2, FALSE), IF(D55=\"Non-life\",MAX(1, Input!$G$842*$E$19),IF(D55=\"Capital\", MAX(1, Input!$G$843), 0))),0)","v":0},{"$f":"IF(F55, IF(NOT(calc_ir_in_step_1),Q55,Input!$G$839),0)","v":0},{"$f":"IF(OR(AND(calc_ir_in_step_1b,Input!$G$840=\"Down\"),AND(NOT(calc_ir_in_step_1),OR(AND(AE55,$B$40=\"Down\"),AND($D55=\"Non-life\",$C$40=\"Down\")))),0,1)","v":1},{"$f":"IF(OR(AND(calc_ir_in_step_1b,Input!$G$840<>\"Down\"),AND(NOT(calc_ir_in_step_1),OR($D55=\"Capital\",AND(AE55,$B$40=\"Up\"),AND($D55=\"Non-life\",$C$40=\"Up\")))),0,1)","v":1},0,0,{"$f":"$U55/100*I55","v":0},{"$f":"$V55/100*J55","v":0},{"$f":"$U55/100*K55","v":0},{"$f":"$V55/100*L55","v":0},{"$f":"$U55/100*M55","v":0},{"$f":"$V55/100*N55","v":0},{"$f":"$U55/100*O55","v":0},{"$f":"$V55/100*P55","v":0},{"$f":"Input!T863","v":false}]
[null,{"$f":"IF(Input!C864=\"\",\"\",Input!C864)","v":""},{"$f":"IF(Input!D864=\"\",\"\",Input!D864)","v":""},{"$f":"IF(Input!E864=\"\",\"\",Input!E864)","v":""},{"$f":"Input!G864","v":0},false,{"$f":"IF(Input!L864=\"\",\"\",Input!L864)","v":""},{"$f":"IF(Input!M864=\"\",\"\",Input!M864)","v":""},0,0,0,0,0,0,0,0,{"$f":"IFERROR(IF(AE56,VLOOKUP(H56,$B$20:$C$25,2, FALSE), IF(D56=\"Non-life\",MAX(1, Input!$G$842*$E$19),IF(D56=\"Capital\", MAX(1, Input!$G$843), 0))),0)","v":0},{"$f":"IF(F56, IF(NOT(calc_ir_in_step_1),Q56,Input!$G$839),0)","v":0},{"$f":"IF(OR(AND(calc_ir_in_step_1b,Input!$G$840=\"Down\"),AND(NOT(calc_ir_in_step_1),OR(AND(AE56,$B$40=\"Down\"),AND($D56=\"Non-life\",$C$40=\"Down\")))),0,1)","v":1},{"$f":"IF(OR(AND(calc_ir_in_step_1b,Input!$G$840<>\"Down\"),AND(NOT(calc_ir_in_step_1),OR($D56=\"Capital\",AND(AE56,$B$40=\"Up\"),AND($D56=\"Non-life\",$C$40=\"Up\")))),0,1)","v":1},0,0,0,0,0,0,0,0,0,0,{"$f":"Input!T864","v":false}]
[null,{"$f":"IF(Input!C865=\"\",\"\",Input!C865)","v":""},{"$f":"IF(Input!D865=\"\",\"\",Input!D865)","v":""},{"$f":"IF(Input!E865=\"\",\"\",Input!E865)","v":""},{"$f":"Input!G865","v":0},false,{"$f":"IF(Input!L865=\"\",\"\",Input!L865)","v":""},{"$f":"IF(Input!M865=\"\",\"\",Input!M865)","v":""},0,0,0,0,0,0,0,0,{"$f":"IFERROR(IF(AE57,VLOOKUP(H57,$B$20:$C$25,2, FALSE), IF(D57=\"Non-life\",MAX(1, Input!$G$842*$E$19),IF(D57=\"Capital\", MAX(1, Input!$G$843), 0))),0)","v":0},{"$f":"IF(F57, IF(NOT(calc_ir_in_step_1),Q57,Input!$G$839),0)","v":0},{"$f":"IF(OR(AND(calc_ir_in_step_1b,Input!$G$840=\"Down\"),AND(NOT(calc_ir_in_step_1),OR(AND(AE57,$B$40=\"Down\"),AND($D57=\"Non-life\",$C$40=\"Down\")))),0,1)","v":1},{"$f":"IF(OR(AND(calc_ir_in_step_1b,Input!$G$840<>\"Down\"),AND(NOT(calc_ir_in_step_1),OR($D57=\"Capital\",AND(AE57,$B$40=\"Up\"),AND($D57=\"Non-life\",$C$40=\"Up\")))),0,1)","v":1},0,0,0,0,0,0,0,0,0,0,{"$f":"Input!T865","v":false}]
[null,{"$f":"IF(Input!C866=\"\",\"\",Input!C866)","v":""},{"$f":"IF(Input!D866=\"\",\"\",Input!D866)","v":""},{"$f":"IF(Input!E866=\"\",\"\",Input!E866)","v":""},{"$f":"Input!G866","v":0},false,{"$f":"IF(Input!L866=\"\",\"\",Input!L866)","v":""},{"$f":"IF(Input!M866=\"\",\"\",Input!M866)","v":""},0,0,0,0,0,0,0,0,{"$f":"IFERROR(IF(AE58,VLOOKUP(H58,$B$20:$C$25,2, FALSE), IF(D58=\"Non-life\",MAX(1, Input!$G$842*$E$19),IF(D58=\"Capital\", MAX(1, Input!$G$843), 0))),0)","v":0},{"$f":"IF(F58, IF(NOT(calc_ir_in_step_1),Q58,Input!$G$839),0)","v":0},{"$f":"IF(OR(AND(calc_ir_in_step_1b,Input!$G$840=\"Down\"),AND(NOT(calc_ir_in_step_1),OR(AND(AE58,$B$40=\"Down\"),AND($D58=\"Non-life\",$C$40=\"Down\")))),0,1)","v":1},{"$f":"IF(OR(AND(calc_ir_in_step_1b,Input!$G$840<>\"Down\"),AND(NOT(calc_ir_in_step_1),OR($D58=\"Capital\",AND(AE58,$B$40=\"Up\"),AND($D58=\"Non-life\",$C$40=\"Up\")))),0,1)","v":1},0,0,0,0,0,0,0,0,0,0,{"$f":"Input!T866","v":false}]
[null,{"$f":"IF(Input!C867=\"\",\"\",Input!C867)","v":""},{"$f":"IF(Input!D867=\"\",\"\",Input!D867)","v":""},{"$f":"IF(Input!E867=\"\",\"\",Input!E867)","v":""},{"$f":"Input!G867","v":0},false,{"$f":"IF(Input!L867=\"\",\"\",Input!L867)","v":""},{"$f":"IF(Input!M867=\"\",\"\",Input!M867)","v":""},0,0,0,0,0,0,0,0,{"$f":"IFERROR(IF(AE59,VLOOKUP(H59,$B$20:$C$25,2, FALSE), IF(D59=\"Non-life\",MAX(1, Input!$G$842*$E$19),IF(D59=\"Capital\", MAX(1, Input!$G$843), 0))),0)","v":0},{"$f":"IF(F59, IF(NOT(calc_ir_in_step_1),Q59,Input!$G$839),0)","v":0},{"$f":"IF(OR(AND(calc_ir_in_step_1b,Input!$G$840=\"Down\"),AND(NOT(calc_ir_in_step_1),OR(AND(AE59,$B$40=\"Down\"),AND($D59=\"Non-life\",$C$40=\"Down\")))),0,1)","v":1},{"$f":"IF(OR(AND(calc_ir_in_step_1b,Input!$G$840<>\"Down\"),AND(NOT(calc_ir_in_step_1),OR($D59=\"Capital\",AND(AE59,$B$40=\"Up\"),AND($D59=\"Non-life\",$C$40=\"Up\")))),0,1)","v":1},0,0,0,0,0,0,0,0,0,0,{"$f":"Input!T867","v":false}]
[null,{"$f":"IF(Input!C868=\"\",\"\",Input!C868)","v":""},{"$f":"IF(Input!D868=\"\",\"\",Input!D868)","v":""},{"$f":"IF(Input!E868=\"\",\"\",Input!E868)","v":""},{"$f":"Input!G868","v":0},false,{"$f":"IF(Input!L868=\"\",\"\",Input!L868)","v":""},{"$f":"IF(Input!M868=\"\",\"\",Input!M868)","v":""},0,0,0,0,0,0,0,0,{"$f":"IFERROR(IF(AE60,VLOOKUP(H60,$B$20:$C$25,2, FALSE), IF(D60=\"Non-life\",MAX(1, Input!$G$842*$E$19),IF(D60=\"Capital\", MAX(1, Input!$G$843), 0))),0)","v":0},{"$f":"IF(F60, IF(NOT(calc_ir_in_step_1),Q60,Input!$G$839),0)","v":0},{"$f":"IF(OR(AND(calc_ir_in_step_1b,Input!$G$840=\"Down\"),AND(NOT(calc_ir_in_step_1),OR(AND(AE60,$B$40=\"Down\"),AND($D60=\"Non-life\",$C$40=\"Down\")))),0,1)","v":1},{"$f":"IF(OR(AND(calc_ir_in_step_1b,Input!$G$840<>\"Down\"),AND(NOT(calc_ir_in_step_1),OR($D60=\"Capital\",AND(AE60,$B$40=\"Up\"),AND($D60=\"Non-life\",$C$40=\"Up\")))),0,1)","v":1},0,0,0,0,0,0,0,0,0,0,{"$f":"Input!T868","v":false}]
[null,{"$f":"IF(Input!C869=\"\",\"\",Input!C869)","v":""},{"$f":"IF(Input!D869=\"\",\"\",Input!D869)","v":""},{"$f":"IF(Input!E869=\"\",\"\",Input!E869)","v":""},{"$f":"Input!G869","v":0},false,{"$f":"IF(Input!L869=\"\",\"\",Input!L869)","v":""},{"$f":"IF(Input!M869=\"\",\"\",Input!M869)","v":""},0,0,0,0,0,0,0,0,{"$f":"IFERROR(IF(AE61,VLOOKUP(H61,$B$20:$C$25,2, FALSE), IF(D61=\"Non-life\",MAX(1, Input!$G$842*$E$19),IF(D61=\"Capital\", MAX(1, Input!$G$843), 0))),0)","v":0},{"$f":"IF(F61, IF(NOT(calc_ir_in_step_1),Q61,Input!$G$839),0)","v":0},{"$f":"IF(OR(AND(calc_ir_in_step_1b,Input!$G$840=\"Down\"),AND(NOT(calc_ir_in_step_1),OR(AND(AE61,$B$40=\"Down\"),AND($D61=\"Non-life\",$C$40=\"Down\")))),0,1)","v":1},{"$f":"IF(OR(AND(calc_ir_in_step_1b,Input!$G$840<>\"Down\"),AND(NOT(calc_ir_in_step_1),OR($D61=\"Capital\",AND(AE61,$B$40=\"Up\"),AND($D61=\"Non-life\",$C$40=\"Up\")))),0,1)","v":1},0,0,0,0,0,0,0,0,0,0,{"$f":"Input!T869","v":false}]
[null,{"$f":"IF(Input!C870=\"\",\"\",Input!C870)","v":""},{"$f":"IF(Input!D870=\"\",\"\",Input!D870)","v":""},{"$f":"IF(Input!E870=\"\",\"\",Input!E870)","v":""},{"$f":"Input!G870","v":0},false,{"$f":"IF(Input!L870=\"\",\"\",Input!L870)","v":""},{"$f":"IF(Input!M870=\"\",\"\",Input!M870)","v":""},0,0,0,0,0,0,0,0,{"$f":"IFERROR(IF(AE62,VLOOKUP(H62,$B$20:$C$25,2, FALSE), IF(D62=\"Non-life\",MAX(1, Input!$G$842*$E$19),IF(D62=\"Capital\", MAX(1, Input!$G$843), 0))),0)","v":0},{"$f":"IF(F62, IF(NOT(calc_ir_in_step_1),Q62,Input!$G$839),0)","v":0},{"$f":"IF(OR(AND(calc_ir_in_step_1b,Input!$G$840=\"Down\"),AND(NOT(calc_ir_in_step_1),OR(AND(AE62,$B$40=\"Down\"),AND($D62=\"Non-life\",$C$40=\"Down\")))),0,1)","v":1},{"$f":"IF(OR(AND(calc_ir_in_step_1b,Input!$G$840<>\"Down\"),AND(NOT(calc_ir_in_step_1),OR($D62=\"Capital\",AND(AE62,$B$40=\"Up\"),AND($D62=\"Non-life\",$C$40=\"Up\")))),0,1)","v":1},0,0,0,0,0,0,0,0,0,0,{"$f":"Input!T870","v":false}]
[null,{"$f":"IF(Input!C871=\"\",\"\",Input!C871)","v":""},{"$f":"IF(Input!D871=\"\",\"\",Input!D871)","v":""},{"$f":"IF(Input!E871=\"\",\"\",Input!E871)","v":""},{"$f":"Input!G871","v":0},false,{"$f":"IF(Input!L871=\"\",\"\",Input!L871)","v":""},{"$f":"IF(Input!M871=\"\",\"\",Input!M871)","v":""},0,0,0,0,0,0,0,0,{"$f":"IFERROR(IF(AE63,VLOOKUP(H63,$B$20:$C$25,2, FALSE), IF(D63=\"Non-life\",MAX(1, Input!$G$842*$E$19),IF(D63=\"Capital\", MAX(1, Input!$G$843), 0))),0)","v":0},{"$f":"IF(F63, IF(NOT(calc_ir_in_step_1),Q63,Input!$G$839),0)","v":0},{"$f":"IF(OR(AND(calc_ir_in_step_1b,Input!$G$840=\"Down\"),AND(NOT(calc_ir_in_step_1),OR(AND(AE63,$B$40=\"Down\"),AND($D63=\"Non-life\",$C$40=\"Down\")))),0,1)","v":1},{"$f":"IF(OR(AND(calc_ir_in_step_1b,Input!$G$840<>\"Down\"),AND(NOT(calc_ir_in_step_1),OR($D63=\"Capital\",AND(AE63,$B$40=\"Up\"),AND($D63=\"Non-life\",$C$40=\"Up\")))),0,1)","v":1},0,0,0,0,0,0,0,0,0,0,{"$f":"Input!T871","v":false}]
[null,{"$f":"IF(Input!C872=\"\",\"\",Input!C872)","v":""},{"$f":"IF(Input!D872=\"\",\"\",Input!D872)","v":""},{"$f":"IF(Input!E872=\"\",\"\",Input!E872)","v":""},{"$f":"Input!G872","v":0},false,{"$f":"IF(Input!L872=\"\",\"\",Input!L872)","v":""},{"$f":"IF(Input!M872=\"\",\"\",Input!M872)","v":""},0,0,0,0,0,0,0,0,{"$f":"IFERROR(IF(AE64,VLOOKUP(H64,$B$20:$C$25,2, FALSE), IF(D64=\"Non-life\",MAX(1, Input!$G$842*$E$19),IF(D64=\"Capital\", MAX(1, Input!$G$843), 0))),0)","v":0},{"$f":"IF(F64, IF(NOT(calc_ir_in_step_1),Q64,Input!$G$839),0)","v":0},{"$f":"IF(OR(AND(calc_ir_in_step_1b,Input!$G$840=\"Down\"),AND(NOT(calc_ir_in_step_1),OR(AND(AE64,$B$40=\"Down\"),AND($D64=\"Non-life\",$C$40=\"Down\")))),0,1)","v":1},{"$f":"IF(OR(AND(calc_ir_in_step_1b,Input!$G$840<>\"Down\"),AND(NOT(calc_ir_in_step_1),OR($D64=\"Capital\",AND(AE64,$B$40=\"Up\"),AND($D64=\"Non-life\",$C$40=\"Up\")))),0,1)","v":1},0,0,0,0,0,0,0,0,0,0,{"$f":"Input!T872","v":false}]
[null,{"$f":"IF(Input!C873=\"\",\"\",Input!C873)","v":""},{"$f":"IF(Input!D873=\"\",\"\",Input!D873)","v":""},{"$f":"IF(Input!E873=\"\",\"\",Input!E873)","v":""},{"$f":"Input!G873","v":0},false,{"$f":"IF(Input!L873=\"\",\"\",Input!L873)","v":""},{"$f":"IF(Input!M873=\"\",\"\",Input!M873)","v":""},0,0,0,0,0,0,0,0,{"$f":"IFERROR(IF(AE65,VLOOKUP(H65,$B$20:$C$25,2, FALSE), IF(D65=\"Non-life\",MAX(1, Input!$G$842*$E$19),IF(D65=\"Capital\", MAX(1, Input!$G$843), 0))),0)","v":0},{"$f":"IF(F65, IF(NOT(calc_ir_in_step_1),Q65,Input!$G$839),0)","v":0},{"$f":"IF(OR(AND(calc_ir_in_step_1b,Input!$G$840=\"Down\"),AND(NOT(calc_ir_in_step_1),OR(AND(AE65,$B$40=\"Down\"),AND($D65=\"Non-life\",$C$40=\"Down\")))),0,1)","v":1},{"$f":"IF(OR(AND(calc_ir_in_step_1b,Input!$G$840<>\"Down\"),AND(NOT(calc_ir_in_step_1),OR($D65=\"Capital\",AND(AE65,$B$40=\"Up\"),AND($D65=\"Non-life\",$C$40=\"Up\")))),0,1)","v":1},0,0,0,0,0,0,0,0,0,0,{"$f":"Input!T873","v":false}]
[null,{"$f":"IF(Input!C874=\"\",\"\",Input!C874)","v":""},{"$f":"IF(Input!D874=\"\",\"\",Input!D874)","v":""},{"$f":"IF(Input!E874=\"\",\"\",Input!E874)","v":""},{"$f":"Input!G874","v":0},false,{"$f":"IF(Input!L874=\"\",\"\",Input!L874)","v":""},{"$f":"IF(Input!M874=\"\",\"\",Input!M874)","v":""},0,0,0,0,0,0,0,0,{"$f":"IFERROR(IF(AE66,VLOOKUP(H66,$B$20:$C$25,2, FALSE), IF(D66=\"Non-life\",MAX(1, Input!$G$842*$E$19),IF(D66=\"Capital\", MAX(1, Input!$G$843), 0))),0)","v":0},{"$f":"IF(F66, IF(NOT(calc_ir_in_step_1),Q66,Input!$G$839),0)","v":0},{"$f":"IF(OR(AND(calc_ir_in_step_1b,Input!$G$840=\"Down\"),AND(NOT(calc_ir_in_step_1),OR(AND(AE66,$B$40=\"Down\"),AND($D66=\"Non-life\",$C$40=\"Down\")))),0,1)","v":1},{"$f":"IF(OR(AND(calc_ir_in_step_1b,Input!$G$840<>\"Down\"),AND(NOT(calc_ir_in_step_1),OR($D66=\"Capital\",AND(AE66,$B$40=\"Up\"),AND($D66=\"Non-life\",$C$40=\"Up\")))),0,1)","v":1},0,0,0,0,0,0,0,0,0,0,{"$f":"Input!T874","v":false}]
[null,{"$f":"IF(Input!C875=\"\",\"\",Input!C875)","v":""},{"$f":"IF(Input!D875=\"\",\"\",Input!D875)","v":""},{"$f":"IF(Input!E875=\"\",\"\",Input!E875)","v":""},{"$f":"Input!G875","v":0},false,{"$f":"IF(Input!L875=\"\",\"\",Input!L875)","v":""},{"$f":"IF(Input!M875=\"\",\"\",Input!M875)","v":""},0,0,0,0,0,0,0,0,{"$f":"IFERROR(IF(AE67,VLOOKUP(H67,$B$20:$C$25,2, FALSE), IF(D67=\"Non-life\",MAX(1, Input!$G$842*$E$19),IF(D67=\"Capital\", MAX(1, Input!$G$843), 0))),0)","v":0},{"$f":"IF(F67, IF(NOT(calc_ir_in_step_1),Q67,Input!$G$839),0)","v":0},{"$f":"IF(OR(AND(calc_ir_in_step_1b,Input!$G$840=\"Down\"),AND(NOT(calc_ir_in_step_1),OR(AND(AE67,$B$40=\"Down\"),AND($D67=\"Non-life\",$C$40=\"Down\")))),0,1)","v":1},{"$f":"IF(OR(AND(calc_ir_in_step_1b,Input!$G$840<>\"Down\"),AND(NOT(calc_ir_in_step_1),OR($D67=\"Capital\",AND(AE67,$B$40=\"Up\"),AND($D67=\"Non-life\",$C$40=\"Up\")))),0,1)","v":1},0,0,0,0,0,0,0,0,0,0,{"$f":"Input!T875","v":false}]
[null,{"$f":"IF(Input!C876=\"\",\"\",Input!C876)","v":""},{"$f":"IF(Input!D876=\"\",\"\",Input!D876)","v":""},{"$f":"IF(Input!E876=\"\",\"\",Input!E876)","v":""},{"$f":"Input!G876","v":0},false,{"$f":"IF(Input!L876=\"\",\"\",Input!L876)","v":""},{"$f":"IF(Input!M876=\"\",\"\",Input!M876)","v":""},0,0,0,0,0,0,0,0,{"$f":"IFERROR(IF(AE68,VLOOKUP(H68,$B$20:$C$25,2, FALSE), IF(D68=\"Non-life\",MAX(1, Input!$G$842*$E$19),IF(D68=\"Capital\", MAX(1, Input!$G$843), 0))),0)","v":0},{"$f":"IF(F68, IF(NOT(calc_ir_in_step_1),Q68,Input!$G$839),0)","v":0},{"$f":"IF(OR(AND(calc_ir_in_step_1b,Input!$G$840=\"Down\"),AND(NOT(calc_ir_in_step_1),OR(AND(AE68,$B$40=\"Down\"),AND($D68=\"Non-life\",$C$40=\"Down\")))),0,1)","v":1},{"$f":"IF(OR(AND(calc_ir_in_step_1b,Input!$G$840<>\"Down\"),AND(NOT(calc_ir_in_step_1),OR($D68=\"Capital\",AND(AE68,$B$40=\"Up\"),AND($D68=\"Non-life\",$C$40=\"Up\")))),0,1)","v":1},0,0,0,0,0,0,0,0,0,0,{"$f":"Input!T876","v":false}]
[null,{"$f":"IF(Input!C877=\"\",\"\",Input!C877)","v":""},{"$f":"IF(Input!D877=\"\",\"\",Input!D877)","v":""},{"$f":"IF(Input!E877=\"\",\"\",Input!E877)","v":""},{"$f":"Input!G877","v":0},false,{"$f":"IF(Input!L877=\"\",\"\",Input!L877)","v":""},{"$f":"IF(Input!M877=\"\",\"\",Input!M877)","v":""},0,0,0,0,0,0,0,0,{"$f":"IFERROR(IF(AE69,VLOOKUP(H69,$B$20:$C$25,2, FALSE), IF(D69=\"Non-life\",MAX(1, Input!$G$842*$E$19),IF(D69=\"Capital\", MAX(1, Input!$G$843), 0))),0)","v":0},{"$f":"IF(F69, IF(NOT(calc_ir_in_step_1),Q69,Input!$G$839),0)","v":0},{"$f":"IF(OR(AND(calc_ir_in_step_1b,Input!$G$840=\"Down\"),AND(NOT(calc_ir_in_step_1),OR(AND(AE69,$B$40=\"Down\"),AND($D69=\"Non-life\",$C$40=\"Down\")))),0,1)","v":1},{"$f":"IF(OR(AND(calc_ir_in_step_1b,Input!$G$840<>\"Down\"),AND(NOT(calc_ir_in_step_1),OR($D69=\"Capital\",AND(AE69,$B$40=\"Up\"),AND($D69=\"Non-life\",$C$40=\"Up\")))),0,1)","v":1},0,0,0,0,0,0,0,0,0,0,{"$f":"Input!T877","v":false}]
[null,{"$f":"IF(Input!C878=\"\",\"\",Input!C878)","v":""},{"$f":"IF(Input!D878=\"\",\"\",Input!D878)","v":""},{"$f":"IF(Input!E878=\"\",\"\",Input!E878)","v":""},{"$f":"Input!G878","v":0},false,{"$f":"IF(Input!L878=\"\",\"\",Input!L878)","v":""},{"$f":"IF(Input!M878=\"\",\"\",Input!M878)","v":""},0,0,0,0,0,0,0,0,{"$f":"IFERROR(IF(AE70,VLOOKUP(H70,$B$20:$C$25,2, FALSE), IF(D70=\"Non-life\",MAX(1, Input!$G$842*$E$19),IF(D70=\"Capital\", MAX(1, Input!$G$843), 0))),0)","v":0},{"$f":"IF(F70, IF(NOT(calc_ir_in_step_1),Q70,Input!$G$839),0)","v":0},{"$f":"IF(OR(AND(calc_ir_in_step_1b,Input!$G$840=\"Down\"),AND(NOT(calc_ir_in_step_1),OR(AND(AE70,$B$40=\"Down\"),AND($D70=\"Non-life\",$C$40=\"Down\")))),0,1)","v":1},{"$f":"IF(OR(AND(calc_ir_in_step_1b,Input!$G$840<>\"Down\"),AND(NOT(calc_ir_in_step_1),OR($D70=\"Capital\",AND(AE70,$B$40=\"Up\"),AND($D70=\"Non-life\",$C$40=\"Up\")))),0,1)","v":1},0,0,0,0,0,0,0,0,0,0,{"$f":"Input!T878","v":false}]
[null,{"$f":"IF(Input!C879=\"\",\"\",Input!C879)","v":""},{"$f":"IF(Input!D879=\"\",\"\",Input!D879)","v":""},{"$f":"IF(Input!E879=\"\",\"\",Input!E879)","v":""},{"$f":"Input!G879","v":0},false,{"$f":"IF(Input!L879=\"\",\"\",Input!L879)","v":""},{"$f":"IF(Input!M879=\"\",\"\",Input!M879)","v":""},0,0,0,0,0,0,0,0,{"$f":"IFERROR(IF(AE71,VLOOKUP(H71,$B$20:$C$25,2, FALSE), IF(D71=\"Non-life\",MAX(1, Input!$G$842*$E$19),IF(D71=\"Capital\", MAX(1, Input!$G$843), 0))),0)","v":0},{"$f":"IF(F71, IF(NOT(calc_ir_in_step_1),Q71,Input!$G$839),0)","v":0},{"$f":"IF(OR(AND(calc_ir_in_step_1b,Input!$G$840=\"Down\"),AND(NOT(calc_ir_in_step_1),OR(AND(AE71,$B$40=\"Down\"),AND($D71=\"Non-life\",$C$40=\"Down\")))),0,1)","v":1},{"$f":"IF(OR(AND(calc_ir_in_step_1b,Input!$G$840<>\"Down\"),AND(NOT(calc_ir_in_step_1),OR($D71=\"Capital\",AND(AE71,$B$40=\"Up\"),AND($D71=\"Non-life\",$C$40=\"Up\")))),0,1)","v":1},0,0,0,0,0,0,0,0,0,0,{"$f":"Input!T879","v":false}]
[null,{"$f":"IF(Input!C880=\"\",\"\",Input!C880)","v":""},{"$f":"IF(Input!D880=\"\",\"\",Input!D880)","v":""},{"$f":"IF(Input!E880=\"\",\"\",Input!E880)","v":""},{"$f":"Input!G880","v":0},false,{"$f":"IF(Input!L880=\"\",\"\",Input!L880)","v":""},{"$f":"IF(Input!M880=\"\",\"\",Input!M880)","v":""},0,0,0,0,0,0,0,0,{"$f":"IFERROR(IF(AE72,VLOOKUP(H72,$B$20:$C$25,2, FALSE), IF(D72=\"Non-life\",MAX(1, Input!$G$842*$E$19),IF(D72=\"Capital\", MAX(1, Input!$G$843), 0))),0)","v":0},{"$f":"IF(F72, IF(NOT(calc_ir_in_step_1),Q72,Input!$G$839),0)","v":0},{"$f":"IF(OR(AND(calc_ir_in_step_1b,Input!$G$840=\"Down\"),AND(NOT(calc_ir_in_step_1),OR(AND(AE72,$B$40=\"Down\"),AND($D72=\"Non-life\",$C$40=\"Down\")))),0,1)","v":1},{"$f":"IF(OR(AND(calc_ir_in_step_1b,Input!$G$840<>\"Down\"),AND(NOT(calc_ir_in_step_1),OR($D72=\"Capital\",AND(AE72,$B$40=\"Up\"),AND($D72=\"Non-life\",$C$40=\"Up\")))),0,1)","v":1},0,0,0,0,0,0,0,0,0,0,{"$f":"Input!T880","v":false}]
[null,{"$f":"IF(Input!C881=\"\",\"\",Input!C881)","v":""},{"$f":"IF(Input!D881=\"\",\"\",Input!D881)","v":""},{"$f":"IF(Input!E881=\"\",\"\",Input!E881)","v":""},{"$f":"Input!G881","v":0},false,{"$f":"IF(Input!L881=\"\",\"\",Input!L881)","v":""},{"$f":"IF(Input!M881=\"\",\"\",Input!M881)","v":""},0,0,0,0,0,0,0,0,{"$f":"IFERROR(IF(AE73,VLOOKUP(H73,$B$20:$C$25,2, FALSE), IF(D73=\"Non-life\",MAX(1, Input!$G$842*$E$19),IF(D73=\"Capital\", MAX(1, Input!$G$843), 0))),0)","v":0},{"$f":"IF(F73, IF(NOT(calc_ir_in_step_1),Q73,Input!$G$839),0)","v":0},{"$f":"IF(OR(AND(calc_ir_in_step_1b,Input!$G$840=\"Down\"),AND(NOT(calc_ir_in_step_1),OR(AND(AE73,$B$40=\"Down\"),AND($D73=\"Non-life\",$C$40=\"Down\")))),0,1)","v":1},{"$f":"IF(OR(AND(calc_ir_in_step_1b,Input!$G$840<>\"Down\"),AND(NOT(calc_ir_in_step_1),OR($D73=\"Capital\",AND(AE73,$B$40=\"Up\"),AND($D73=\"Non-life\",$C$40=\"Up\")))),0,1)","v":1},0,0,0,0,0,0,0,0,0,0,{"$f":"Input!T881","v":false}]
[null,{"$f":"IF(Input!C882=\"\",\"\",Input!C882)","v":""},{"$f":"IF(Input!D882=\"\",\"\",Input!D882)","v":""},{"$f":"IF(Input!E882=\"\",\"\",Input!E882)","v":""},{"$f":"Input!G882","v":0},false,{"$f":"IF(Input!L882=\"\",\"\",Input!L882)","v":""},{"$f":"IF(Input!M882=\"\",\"\",Input!M882)","v":""},0,0,0,0,0,0,0,0,{"$f":"IFERROR(IF(AE74,VLOOKUP(H74,$B$20:$C$25,2, FALSE), IF(D74=\"Non-life\",MAX(1, Input!$G$842*$E$19),IF(D74=\"Capital\", MAX(1, Input!$G$843), 0))),0)","v":0},{"$f":"IF(F74, IF(NOT(calc_ir_in_step_1),Q74,Input!$G$839),0)","v":0},{"$f":"IF(OR(AND(calc_ir_in_step_1b,Input!$G$840=\"Down\"),AND(NOT(calc_ir_in_step_1),OR(AND(AE74,$B$40=\"Down\"),AND($D74=\"Non-life\",$C$40=\"Down\")))),0,1)","v":1},{"$f":"IF(OR(AND(calc_ir_in_step_1b,Input!$G$840<>\"Down\"),AND(NOT(calc_ir_in_step_1),OR($D74=\"Capital\",AND(AE74,$B$40=\"Up\"),AND($D74=\"Non-life\",$C$40=\"Up\")))),0,1)","v":1},0,0,0,0,0,0,0,0,0,0,{"$f":"Input!T882","v":false}]
[null,{"$f":"IF(Input!C883=\"\",\"\",Input!C883)","v":""},{"$f":"IF(Input!D883=\"\",\"\",Input!D883)","v":""},{"$f":"IF(Input!E883=\"\",\"\",Input!E883)","v":""},{"$f":"Input!G883","v":0},false,{"$f":"IF(Input!L883=\"\",\"\",Input!L883)","v":""},{"$f":"IF(Input!M883=\"\",\"\",Input!M883)","v":""},0,0,0,0,0,0,0,0,{"$f":"IFERROR(IF(AE75,VLOOKUP(H75,$B$20:$C$25,2, FALSE), IF(D75=\"Non-life\",MAX(1, Input!$G$842*$E$19),IF(D75=\"Capital\", MAX(1, Input!$G$843), 0))),0)","v":0},{"$f":"IF(F75, IF(NOT(calc_ir_in_step_1),Q75,Input!$G$839),0)","v":0},{"$f":"IF(OR(AND(calc_ir_in_step_1b,Input!$G$840=\"Down\"),AND(NOT(calc_ir_in_step_1),OR(AND(AE75,$B$40=\"Down\"),AND($D75=\"Non-life\",$C$40=\"Down\")))),0,1)","v":1},{"$f":"IF(OR(AND(calc_ir_in_step_1b,Input!$G$840<>\"Down\"),AND(NOT(calc_ir_in_step_1),OR($D75=\"Capital\",AND(AE75,$B$40=\"Up\"),AND($D75=\"Non-life\",$C$40=\"Up\")))),0,1)","v":1},0,0,0,0,0,0,0,0,0,0,{"$f":"Input!T883","v":false}]
[null,{"$f":"IF(Input!C884=\"\",\"\",Input!C884)","v":""},{"$f":"IF(Input!D884=\"\",\"\",Input!D884)","v":""},{"$f":"IF(Input!E884=\"\",\"\",Input!E884)","v":""},{"$f":"Input!G884","v":0},false,{"$f":"IF(Input!L884=\"\",\"\",Input!L884)","v":""},{"$f":"IF(Input!M884=\"\",\"\",Input!M884)","v":""},0,0,0,0,0,0,0,0,{"$f":"IFERROR(IF(AE76,VLOOKUP(H76,$B$20:$C$25,2, FALSE), IF(D76=\"Non-life\",MAX(1, Input!$G$842*$E$19),IF(D76=\"Capital\", MAX(1, Input!$G$843), 0))),0)","v":0},{"$f":"IF(F76, IF(NOT(calc_ir_in_step_1),Q76,Input!$G$839),0)","v":0},{"$f":"IF(OR(AND(calc_ir_in_step_1b,Input!$G$840=\"Down\"),AND(NOT(calc_ir_in_step_1),OR(AND(AE76,$B$40=\"Down\"),AND($D76=\"Non-life\",$C$40=\"Down\")))),0,1)","v":1},{"$f":"IF(OR(AND(calc_ir_in_step_1b,Input!$G$840<>\"Down\"),AND(NOT(calc_ir_in_step_1),OR($D76=\"Capital\",AND(AE76,$B$40=\"Up\"),AND($D76=\"Non-life\",$C$40=\"Up\")))),0,1)","v":1},0,0,0,0,0,0,0,0,0,0,{"$f":"Input!T884","v":false}]
[null,{"$f":"IF(Input!C885=\"\",\"\",Input!C885)","v":""},{"$f":"IF(Input!D885=\"\",\"\",Input!D885)","v":""},{"$f":"IF(Input!E885=\"\",\"\",Input!E885)","v":""},{"$f":"Input!G885","v":0},false,{"$f":"IF(Input!L885=\"\",\"\",Input!L885)","v":""},{"$f":"IF(Input!M885=\"\",\"\",Input!M885)","v":""},0,0,0,0,0,0,0,0,{"$f":"IFERROR(IF(AE77,VLOOKUP(H77,$B$20:$C$25,2, FALSE), IF(D77=\"Non-life\",MAX(1, Input!$G$842*$E$19),IF(D77=\"Capital\", MAX(1, Input!$G$843), 0))),0)","v":0},{"$f":"IF(F77, IF(NOT(calc_ir_in_step_1),Q77,Input!$G$839),0)","v":0},{"$f":"IF(OR(AND(calc_ir_in_step_1b,Input!$G$840=\"Down\"),AND(NOT(calc_ir_in_step_1),OR(AND(AE77,$B$40=\"Down\"),AND($D77=\"Non-life\",$C$40=\"Down\")))),0,1)","v":1},{"$f":"IF(OR(AND(calc_ir_in_step_1b,Input!$G$840<>\"Down\"),AND(NOT(calc_ir_in_step_1),OR($D77=\"Capital\",AND(AE77,$B$40=\"Up\"),AND($D77=\"Non-life\",$C$40=\"Up\")))),0,1)","v":1},0,0,0,0,0,0,0,0,0,0,{"$f":"Input!T885","v":false}]
[null,{"$f":"IF(Input!C886=\"\",\"\",Input!C886)","v":""},{"$f":"IF(Input!D886=\"\",\"\",Input!D886)","v":""},{"$f":"IF(Input!E886=\"\",\"\",Input!E886)","v":""},{"$f":"Input!G886","v":0},false,{"$f":"IF(Input!L886=\"\",\"\",Input!L886)","v":""},{"$f":"IF(Input!M886=\"\",\"\",Input!M886)","v":""},0,0,0,0,0,0,0,0,{"$f":"IFERROR(IF(AE78,VLOOKUP(H78,$B$20:$C$25,2, FALSE), IF(D78=\"Non-life\",MAX(1, Input!$G$842*$E$19),IF(D78=\"Capital\", MAX(1, Input!$G$843), 0))),0)","v":0},{"$f":"IF(F78, IF(NOT(calc_ir_in_step_1),Q78,Input!$G$839),0)","v":0},{"$f":"IF(OR(AND(calc_ir_in_step_1b,Input!$G$840=\"Down\"),AND(NOT(calc_ir_in_step_1),OR(AND(AE78,$B$40=\"Down\"),AND($D78=\"Non-life\",$C$40=\"Down\")))),0,1)","v":1},{"$f":"IF(OR(AND(calc_ir_in_step_1b,Input!$G$840<>\"Down\"),AND(NOT(calc_ir_in_step_1),OR($D78=\"Capital\",AND(AE78,$B$40=\"Up\"),AND($D78=\"Non-life\",$C$40=\"Up\")))),0,1)","v":1},0,0,0,0,0,0,0,0,0,0,{"$f":"Input!T886","v":false}]
[null,{"$f":"IF(Input!C887=\"\",\"\",Input!C887)","v":""},{"$f":"IF(Input!D887=\"\",\"\",Input!D887)","v":""},{"$f":"IF(Input!E887=\"\",\"\",Input!E887)","v":""},{"$f":"Input!G887","v":0},false,{"$f":"IF(Input!L887=\"\",\"\",Input!L887)","v":""},{"$f":"IF(Input!M887=\"\",\"\",Input!M887)","v":""},0,0,0,0,0,0,0,0,{"$f":"IFERROR(IF(AE79,VLOOKUP(H79,$B$20:$C$25,2, FALSE), IF(D79=\"Non-life\",MAX(1, Input!$G$842*$E$19),IF(D79=\"Capital\", MAX(1, Input!$G$843), 0))),0)","v":0},{"$f":"IF(F79, IF(NOT(calc_ir_in_step_1),Q79,Input!$G$839),0)","v":0},{"$f":"IF(OR(AND(calc_ir_in_step_1b,Input!$G$840=\"Down\"),AND(NOT(calc_ir_in_step_1),OR(AND(AE79,$B$40=\"Down\"),AND($D79=\"Non-life\",$C$40=\"Down\")))),0,1)","v":1},{"$f":"IF(OR(AND(calc_ir_in_step_1b,Input!$G$840<>\"Down\"),AND(NOT(calc_ir_in_step_1),OR($D79=\"Capital\",AND(AE79,$B$40=\"Up\"),AND($D79=\"Non-life\",$C$40=\"Up\")))),0,1)","v":1},0,0,0,0,0,0,0,0,0,0,{"$f":"Input!T887","v":false}]
[null,{"$f":"IF(Input!C888=\"\",\"\",Input!C888)","v":""},{"$f":"IF(Input!D888=\"\",\"\",Input!D888)","v":""},{"$f":"IF(Input!E888=\"\",\"\",Input!E888)","v":""},{"$f":"Input!G888","v":0},false,{"$f":"IF(Input!L888=\"\",\"\",Input!L888)","v":""},{"$f":"IF(Input!M888=\"\",\"\",Input!M888)","v":""},0,0,0,0,0,0,0,0,{"$f":"IFERROR(IF(AE80,VLOOKUP(H80,$B$20:$C$25,2, FALSE), IF(D80=\"Non-life\",MAX(1, Input!$G$842*$E$19),IF(D80=\"Capital\", MAX(1, Input!$G$843), 0))),0)","v":0},{"$f":"IF(F80, IF(NOT(calc_ir_in_step_1),Q80,Input!$G$839),0)","v":0},{"$f":"IF(OR(AND(calc_ir_in_step_1b,Input!$G$840=\"Down\"),AND(NOT(calc_ir_in_step_1),OR(AND(AE80,$B$40=\"Down\"),AND($D80=\"Non-life\",$C$40=\"Down\")))),0,1)","v":1},{"$f":"IF(OR(AND(calc_ir_in_step_1b,Input!$G$840<>\"Down\"),AND(NOT(calc_ir_in_step_1),OR($D80=\"Capital\",AND(AE80,$B$40=\"Up\"),AND($D80=\"Non-life\",$C$40=\"Up\")))),0,1)","v":1},0,0,0,0,0,0,0,0,0,0,{"$f":"Input!T888","v":false}]
[null,{"$f":"IF(Input!C889=\"\",\"\",Input!C889)","v":""},{"$f":"IF(Input!D889=\"\",\"\",Input!D889)","v":""},{"$f":"IF(Input!E889=\"\",\"\",Input!E889)","v":""},{"$f":"Input!G889","v":0},false,{"$f":"IF(Input!L889=\"\",\"\",Input!L889)","v":""},{"$f":"IF(Input!M889=\"\",\"\",Input!M889)","v":""},0,0,0,0,0,0,0,0,{"$f":"IFERROR(IF(AE81,VLOOKUP(H81,$B$20:$C$25,2, FALSE), IF(D81=\"Non-life\",MAX(1, Input!$G$842*$E$19),IF(D81=\"Capital\", MAX(1, Input!$G$843), 0))),0)","v":0},{"$f":"IF(F81, IF(NOT(calc_ir_in_step_1),Q81,Input!$G$839),0)","v":0},{"$f":"IF(OR(AND(calc_ir_in_step_1b,Input!$G$840=\"Down\"),AND(NOT(calc_ir_in_step_1),OR(AND(AE81,$B$40=\"Down\"),AND($D81=\"Non-life\",$C$40=\"Down\")))),0,1)","v":1},{"$f":"IF(OR(AND(calc_ir_in_step_1b,Input!$G$840<>\"Down\"),AND(NOT(calc_ir_in_step_1),OR($D81=\"Capital\",AND(AE81,$B$40=\"Up\"),AND($D81=\"Non-life\",$C$40=\"Up\")))),0,1)","v":1},0,0,0,0,0,0,0,0,0,0,{"$f":"Input!T889","v":false}]
[null,{"$f":"IF(Input!C890=\"\",\"\",Input!C890)","v":""},{"$f":"IF(Input!D890=\"\",\"\",Input!D890)","v":""},{"$f":"IF(Input!E890=\"\",\"\",Input!E890)","v":""},{"$f":"Input!G890","v":0},false,{"$f":"IF(Input!L890=\"\",\"\",Input!L890)","v":""},{"$f":"IF(Input!M890=\"\",\"\",Input!M890)","v":""},0,0,0,0,0,0,0,0,{"$f":"IFERROR(IF(AE82,VLOOKUP(H82,$B$20:$C$25,2, FALSE), IF(D82=\"Non-life\",MAX(1, Input!$G$842*$E$19),IF(D82=\"Capital\", MAX(1, Input!$G$843), 0))),0)","v":0},{"$f":"IF(F82, IF(NOT(calc_ir_in_step_1),Q82,Input!$G$839),0)","v":0},{"$f":"IF(OR(AND(calc_ir_in_step_1b,Input!$G$840=\"Down\"),AND(NOT(calc_ir_in_step_1),OR(AND(AE82,$B$40=\"Down\"),AND($D82=\"Non-life\",$C$40=\"Down\")))),0,1)","v":1},{"$f":"IF(OR(AND(calc_ir_in_step_1b,Input!$G$840<>\"Down\"),AND(NOT(calc_ir_in_step_1),OR($D82=\"Capital\",AND(AE82,$B$40=\"Up\"),AND($D82=\"Non-life\",$C$40=\"Up\")))),0,1)","v":1},0,0,0,0,0,0,0,0,0,0,{"$f":"Input!T890","v":false}]
[null,{"$f":"IF(Input!C891=\"\",\"\",Input!C891)","v":""},{"$f":"IF(Input!D891=\"\",\"\",Input!D891)","v":""},{"$f":"IF(Input!E891=\"\",\"\",Input!E891)","v":""},{"$f":"Input!G891","v":0},false,{"$f":"IF(Input!L891=\"\",\"\",Input!L891)","v":""},{"$f":"IF(Input!M891=\"\",\"\",Input!M891)","v":""},0,0,0,0,0,0,0,0,{"$f":"IFERROR(IF(AE83,VLOOKUP(H83,$B$20:$C$25,2, FALSE), IF(D83=\"Non-life\",MAX(1, Input!$G$842*$E$19),IF(D83=\"Capital\", MAX(1, Input!$G$843), 0))),0)","v":0},{"$f":"IF(F83, IF(NOT(calc_ir_in_step_1),Q83,Input!$G$839),0)","v":0},{"$f":"IF(OR(AND(calc_ir_in_step_1b,Input!$G$840=\"Down\"),AND(NOT(calc_ir_in_step_1),OR(AND(AE83,$B$40=\"Down\"),AND($D83=\"Non-life\",$C$40=\"Down\")))),0,1)","v":1},{"$f":"IF(OR(AND(calc_ir_in_step_1b,Input!$G$840<>\"Down\"),AND(NOT(calc_ir_in_step_1),OR($D83=\"Capital\",AND(AE83,$B$40=\"Up\"),AND($D83=\"Non-life\",$C$40=\"Up\")))),0,1)","v":1},0,0,0,0,0,0,0,0,0,0,{"$f":"Input!T891","v":false}]
[null,{"$f":"IF(Input!C892=\"\",\"\",Input!C892)","v":""},{"$f":"IF(Input!D892=\"\",\"\",Input!D892)","v":""},{"$f":"IF(Input!E892=\"\",\"\",Input!E892)","v":""},{"$f":"Input!G892","v":0},false,{"$f":"IF(Input!L892=\"\",\"\",Input!L892)","v":""},{"$f":"IF(Input!M892=\"\",\"\",Input!M892)","v":""},0,0,0,0,0,0,0,0,{"$f":"IFERROR(IF(AE84,VLOOKUP(H84,$B$20:$C$25,2, FALSE), IF(D84=\"Non-life\",MAX(1, Input!$G$842*$E$19),IF(D84=\"Capital\", MAX(1, Input!$G$843), 0))),0)","v":0},{"$f":"IF(F84, IF(NOT(calc_ir_in_step_1),Q84,Input!$G$839),0)","v":0},{"$f":"IF(OR(AND(calc_ir_in_step_1b,Input!$G$840=\"Down\"),AND(NOT(calc_ir_in_step_1),OR(AND(AE84,$B$40=\"Down\"),AND($D84=\"Non-life\",$C$40=\"Down\")))),0,1)","v":1},{"$f":"IF(OR(AND(calc_ir_in_step_1b,Input!$G$840<>\"Down\"),AND(NOT(calc_ir_in_step_1),OR($D84=\"Capital\",AND(AE84,$B$40=\"Up\"),AND($D84=\"Non-life\",$C$40=\"Up\")))),0,1)","v":1},0,0,0,0,0,0,0,0,0,0,{"$f":"Input!T892","v":false}]
[null,{"$f":"IF(Input!C893=\"\",\"\",Input!C893)","v":""},{"$f":"IF(Input!D893=\"\",\"\",Input!D893)","v":""},{"$f":"IF(Input!E893=\"\",\"\",Input!E893)","v":""},{"$f":"Input!G893","v":0},false,{"$f":"IF(Input!L893=\"\",\"\",Input!L893)","v":""},{"$f":"IF(Input!M893=\"\",\"\",Input!M893)","v":""},0,0,0,0,0,0,0,0,{"$f":"IFERROR(IF(AE85,VLOOKUP(H85,$B$20:$C$25,2, FALSE), IF(D85=\"Non-life\",MAX(1, Input!$G$842*$E$19),IF(D85=\"Capital\", MAX(1, Input!$G$843), 0))),0)","v":0},{"$f":"IF(F85, IF(NOT(calc_ir_in_step_1),Q85,Input!$G$839),0)","v":0},{"$f":"IF(OR(AND(calc_ir_in_step_1b,Input!$G$840=\"Down\"),AND(NOT(calc_ir_in_step_1),OR(AND(AE85,$B$40=\"Down\"),AND($D85=\"Non-life\",$C$40=\"Down\")))),0,1)","v":1},{"$f":"IF(OR(AND(calc_ir_in_step_1b,Input!$G$840<>\"Down\"),AND(NOT(calc_ir_in_step_1),OR($D85=\"Capital\",AND(AE85,$B$40=\"Up\"),AND($D85=\"Non-life\",$C$40=\"Up\")))),0,1)","v":1},0,0,0,0,0,0,0,0,0,0,{"$f":"Input!T893","v":false}]
[null,{"$f":"IF(Input!C894=\"\",\"\",Input!C894)","v":""},{"$f":"IF(Input!D894=\"\",\"\",Input!D894)","v":""},{"$f":"IF(Input!E894=\"\",\"\",Input!E894)","v":""},{"$f":"Input!G894","v":0},false,{"$f":"IF(Input!L894=\"\",\"\",Input!L894)","v":""},{"$f":"IF(Input!M894=\"\",\"\",Input!M894)","v":""},0,0,0,0,0,0,0,0,{"$f":"IFERROR(IF(AE86,VLOOKUP(H86,$B$20:$C$25,2, FALSE), IF(D86=\"Non-life\",MAX(1, Input!$G$842*$E$19),IF(D86=\"Capital\", MAX(1, Input!$G$843), 0))),0)","v":0},{"$f":"IF(F86, IF(NOT(calc_ir_in_step_1),Q86,Input!$G$839),0)","v":0},{"$f":"IF(OR(AND(calc_ir_in_step_1b,Input!$G$840=\"Down\"),AND(NOT(calc_ir_in_step_1),OR(AND(AE86,$B$40=\"Down\"),AND($D86=\"Non-life\",$C$40=\"Down\")))),0,1)","v":1},{"$f":"IF(OR(AND(calc_ir_in_step_1b,Input!$G$840<>\"Down\"),AND(NOT(calc_ir_in_step_1),OR($D86=\"Capital\",AND(AE86,$B$40=\"Up\"),AND($D86=\"Non-life\",$C$40=\"Up\")))),0,1)","v":1},0,0,0,0,0,0,0,0,0,0,{"$f":"Input!T894","v":false}]
[null,{"$f":"IF(Input!C895=\"\",\"\",Input!C895)","v":""},{"$f":"IF(Input!D895=\"\",\"\",Input!D895)","v":""},{"$f":"IF(Input!E895=\"\",\"\",Input!E895)","v":""},{"$f":"Input!G895","v":0},false,{"$f":"IF(Input!L895=\"\",\"\",Input!L895)","v":""},{"$f":"IF(Input!M895=\"\",\"\",Input!M895)","v":""},0,0,0,0,0,0,0,0,{"$f":"IFERROR(IF(AE87,VLOOKUP(H87,$B$20:$C$25,2, FALSE), IF(D87=\"Non-life\",MAX(1, Input!$G$842*$E$19),IF(D87=\"Capital\", MAX(1, Input!$G$843), 0))),0)","v":0},{"$f":"IF(F87, IF(NOT(calc_ir_in_step_1),Q87,Input!$G$839),0)","v":0},{"$f":"IF(OR(AND(calc_ir_in_step_1b,Input!$G$840=\"Down\"),AND(NOT(calc_ir_in_step_1),OR(AND(AE87,$B$40=\"Down\"),AND($D87=\"Non-life\",$C$40=\"Down\")))),0,1)","v":1},{"$f":"IF(OR(AND(calc_ir_in_step_1b,Input!$G$840<>\"Down\"),AND(NOT(calc_ir_in_step_1),OR($D87=\"Capital\",AND(AE87,$B$40=\"Up\"),AND($D87=\"Non-life\",$C$40=\"Up\")))),0,1)","v":1},0,0,0,0,0,0,0,0,0,0,{"$f":"Input!T895","v":false}]
[null,{"$f":"IF(Input!C896=\"\",\"\",Input!C896)","v":""},{"$f":"IF(Input!D896=\"\",\"\",Input!D896)","v":""},{"$f":"IF(Input!E896=\"\",\"\",Input!E896)","v":""},{"$f":"Input!G896","v":0},false,{"$f":"IF(Input!L896=\"\",\"\",Input!L896)","v":""},{"$f":"IF(Input!M896=\"\",\"\",Input!M896)","v":""},0,0,0,0,0,0,0,0,{"$f":"IFERROR(IF(AE88,VLOOKUP(H88,$B$20:$C$25,2, FALSE), IF(D88=\"Non-life\",MAX(1, Input!$G$842*$E$19),IF(D88=\"Capital\", MAX(1, Input!$G$843), 0))),0)","v":0},{"$f":"IF(F88, IF(NOT(calc_ir_in_step_1),Q88,Input!$G$839),0)","v":0},{"$f":"IF(OR(AND(calc_ir_in_step_1b,Input!$G$840=\"Down\"),AND(NOT(calc_ir_in_step_1),OR(AND(AE88,$B$40=\"Down\"),AND($D88=\"Non-life\",$C$40=\"Down\")))),0,1)","v":1},{"$f":"IF(OR(AND(calc_ir_in_step_1b,Input!$G$840<>\"Down\"),AND(NOT(calc_ir_in_step_1),OR($D88=\"Capital\",AND(AE88,$B$40=\"Up\"),AND($D88=\"Non-life\",$C$40=\"Up\")))),0,1)","v":1},0,0,0,0,0,0,0,0,0,0,{"$f":"Input!T896","v":false}]
[null,"United States of America",null,"LTC",{"$f":"Input!F763","v":0},false,{"$f":"IF(F89,VLOOKUP(B89,lov_ir_risk_by_country,2,FALSE),\"\")","v":""},"F",0,0,0,0,0,0,0,0,{"$f":"IFERROR(IF(AE89,VLOOKUP(H89,$B$20:$C$25,2, FALSE), IF(D89=\"Non-life\",MAX(1, Input!$G$842*$E$19),IF(D89=\"Capital\", MAX(1, Input!$G$843), 0))),0)","v":7},{"$f":"IF(F89, IF(NOT(calc_ir_in_step_1),Q89,Input!$G$839),0)","v":0},{"$f":"IF(OR(AND(calc_ir_in_step_1b,Input!$G$840=\"Down\"),AND(NOT(calc_ir_in_step_1),OR(AND(AE89,$B$40=\"Down\"),AND($D89=\"Non-life\",$C$40=\"Down\")))),0,1)","v":1},{"$f":"IF(OR(AND(calc_ir_in_step_1b,Input!$G$840<>\"Down\"),AND(NOT(calc_ir_in_step_1),OR($D89=\"Capital\",AND(AE89,$B$40=\"Up\"),AND($D89=\"Non-life\",$C$40=\"Up\")))),0,1)","v":1},0,0,0,0,0,0,0,0,0,0,{"$f":"NOT(ISERROR(VLOOKUP(D89,lov_ir_exposure_ctg_life, 1, FALSE)))","v":true}]

{"sheet":"Diversification","index":11,"n_rows":153,"n_cols":26,"rows_kept":153,"cut":false,"hidden":false,"merged":[[118,22,118,25],[118,16,118,19],[62,16,62,19],[54,16,54,19],[59,16,59,19],[51,3,51,6],[90,16,90,19],[86,16,86,19],[78,16,78,19],[74,16,74,19],[82,16,82,19],[77,3,77,6],[77,9,77,12],[149,3,149,6],[146,3,146,6],[116,3,116,6],[98,16,98,19],[94,16,94,19],[135,16,135,19],[138,16,138,19],[116,9,116,12]]}
[]
[]
[null,"Diversification Haircut"]
[]
[null,null,null,0.99990000000000001,0.99950000000000006,0.998,0.995]
[null,null,"Haircut",0.3,0.2,0.1,0]
[]
[null,"Level 3: Between risk categories: Diversification across risks"]
[]
[null,"  Correlation Matrix"]
[null,null,null,"Market \nrisk","Credit/\ndefault \nrisk","Nat Cat \nrisk","Non-life \ntechnical risk","Life \ntechnical risk","Pandemic risk"]
[null,null,"Market risk",1,0.75,0.25,0.25,0.25,0.75]
[null,null,"Credit/default  risk",{"$f":"E12","v":0.75},1,0.25,0.25,0.25,0.75]
[null,null,"Nat Cat risk",{"$f":"F12","v":0.25},{"$f":"F13","v":0.25},1,0,0,0]
[null,null,"Non-life technical risk",{"$f":"G12","v":0.25},{"$f":"G13","v":0.25},{"$f":"G14","v":0},1,0,0.25]
[null,null,"Life technical risk",{"$f":"H12","v":0.25},{"$f":"H13","v":0.25},{"$f":"H14","v":0},{"$f":"H15","v":0},1,{"$f":"T64","v":0.25}]
[null,null,"Pandemic Risk",{"$f":"I12","v":0.75},{"$f":"I13","v":0.75},{"$f":"I14","v":0},{"$f":"I15","v":0.25},{"$f":"I16","v":0.25},1]
[]
[null,"Undiversified capital"]
[null,null,null,0.99990000000000001,0.99950000000000006,0.998,0.995]
[null,null,"Market risk",{"$f":"D55+'Asset Risk'!D6","v":0},{"$f":"E55+'Asset Risk'!E6","v":0},{"$f":"F55+'Asset Risk'!F6","v":0},{"$f":"G55+'Asset Risk'!G6","v":0}]
[null,null,"Credit/default  risk",{"$f":"'Asset Risk'!D30","v":0},{"$f":"'Asset Risk'!E30","v":0},{"$f":"'Asset Risk'!F30","v":0},{"$f":"'Asset Risk'!G30","v":0}]
[null,null,"Nat Cat risk",{"$f":"'Nat Cat Risk'!D23+'Nat Cat Risk'!D36","v":0},{"$f":"'Nat Cat Risk'!E23+'Nat Cat Risk'!E36","v":0},{"$f":"'Nat Cat Risk'!F23+'Nat Cat Risk'!F36","v":0},{"$f":"'Nat Cat Risk'!G23+'Nat Cat Risk'!G36","v":0}]
[null,null,"Non-life technical risk",{"$f":"D91+D100+'Non-Life Risk'!E6","v":0},{"$f":"E91+E100+'Non-Life Risk'!F6","v":0},{"$f":"F91+F100+'Non-Life Risk'!G6","v":0},{"$f":"G91+G100+'Non-Life Risk'!H6","v":0}]
[null,null,"Life technical risk",{"$f":"Q58","v":0},{"$f":"R58","v":0},{"$f":"S58","v":0},{"$f":"T58","v":0}]
[null,null,"Pandemic risk",{"$f":"'Life Risk'!D9+'Life Risk'!D51","v":0},{"$f":"'Life Risk'!E9+'Life Risk'!E51","v":0},{"$f":"'Life Risk'!F9+'Life Risk'!F51","v":0},{"$f":"'Life Risk'!G9+'Life Risk'!G51","v":0}]
[]
[null,null,"Undiversified charges",{"$f":"SUM(D21:D26)","v":0},{"$f":"SUM(E21:E26)","v":0},0,0]
[null,null,"Diversification benefits",{"$f":"D28-D31","v":0},{"$f":"E28-E31","v":0},{"$f":"F28-F31","v":0},{"$f":"G28-G31","v":0}]
[null,null,"Diversified charges",{"$f":"SQRT(MMULT(MMULT(TRANSPOSE(D21:D26),$D$12:$I$17),D21:D26))","v":0},{"$f":"SQRT(MMULT(MMULT(TRANSPOSE(E21:E26),$D$12:$I$17),E21:E26))","v":0},{"$f":"SQRT(MMULT(MMULT(TRANSPOSE(F21:F26),$D$12:$I$17),F21:F26))","v":0},{"$f":"SQRT(MMULT(MMULT(TRANSPOSE(G21:G26),$D$12:$I$17),G21:G26))","v":0}]
[null,null,"Adjusted Diversified charges",{"$f":"D30-D153-Q142","v":0},{"$f":"E30-E153-R142","v":0},{"$f":"F30-F153-S142","v":0},{"$f":"G30-G153-T142","v":0}]
[null,null,"Diversification benefits (%)",{"$f":"IFERROR(D29/D28,0)","v":0},{"$f":"IFERROR(E29/E28,0)","v":0},{"$f":"IFERROR(F29/F28,0)","v":0},{"$f":"IFERROR(G29/G28,0)","v":0}]
[null,null,"Div. benefit  on Asset Risk Analytical Adj.",{"$f":"Output!H52*D32","v":0},{"$f":"Output!J52*E32","v":0},{"$f":"Output!L52*F32","v":0},{"$f":"Output!N52*G32","v":0}]
[null,null,"Div. benefit  on Liability Risk Analytical Adj.",{"$f":"Output!H101*D32","v":0},{"$f":"Output!J101*E32","v":0},{"$f":"Output!L101*F32","v":0},{"$f":"Output!N101*G32","v":0}]
[null,null,"Total Diversification benefits",{"$f":"D29+D33+D34","v":0},{"$f":"E29+E33+E34","v":0},0,0]
[]
[null,"Level 2: Within risk categories: Market risk diversification",null,null,null,null,null,null,null,null,null,null,null,null,"Level 2: Within risk categories: Life technical risk diversification"]
[]
[null,"  Correlation Matrix",null,null,null,null,null,null,null,null,null,null,null,null,"  Correlation Matrix"]
[null,null,null,"Equity","Real \nEstate","Interest \nRate",null,null,null,null,null,null,null,null,null,null,"Mortality","Morbidity","Longevity","Other life","Pandemic"]
[null,null,"Equity",1,0.75,0.5,null,null,null,null,null,null,null,null,null,"Mortality",1,0.5,-0.25,0.25,0.25]
[null,null,"Real Estate",{"$f":"E41","v":0.75},1,0.5,null,null,null,null,null,null,null,null,null,"Morbidity",{"$f":"R41","v":0.5},1,0.25,0.25,0.5]
[null,null,"Interest Rate",{"$f":"F41","v":0.5},{"$f":"F42","v":0.5},1,null,null,null,null,null,null,null,null,null,"Longevity",{"$f":"S41","v":-0.25},{"$f":"S42","v":0.25},1,0.25,0]
[null,null,null,null,null,null,null,null,null,null,null,null,null,null,null,"Other life",{"$f":"T41","v":0.25},{"$f":"T42","v":0.25},{"$f":"T43","v":0.25},1,0.25]
[null,"Undiversified capital",null,null,null,null,null,null,null,null,null,null,null,null,null,"Pandemic",{"$f":"U41","v":0.25},{"$f":"U42","v":0.5},{"$f":"U43","v":0},{"$f":"U44","v":0.25},1]
[null,null,null,0.99990000000000001,0.99950000000000006,0.998,0.995]
[null,null,"Equity",{"$f":"'Asset Risk'!D11","v":0},{"$f":"'Asset Risk'!E11","v":0},{"$f":"'Asset Risk'!F11","v":0},{"$f":"'Asset Risk'!G11","v":0},null,null,null,null,null,null,null,"Undiversified capital"]
[null,null,"Real Estate",{"$f":"'Asset Risk'!D19","v":0},{"$f":"'Asset Risk'!E19","v":0},{"$f":"'Asset Risk'!F19","v":0},{"$f":"'Asset Risk'!G19","v":0},null,null,null,null,null,null,null,null,null,0.99990000000000001,0.99950000000000006,0.998,0.995]
[null,null,"Interest Rate",{"$f":"'Asset Risk'!D15","v":0},{"$f":"'Asset Risk'!E15","v":0},{"$f":"'Asset Risk'!F15","v":0},{"$f":"'Asset Risk'!G15","v":0},null,null,null,null,null,null,null,null,"Mortality",{"$f":"'Life Risk'!D5","v":0},{"$f":"'Life Risk'!E5","v":0},{"$f":"'Life Risk'!F5","v":0},{"$f":"'Life Risk'!G5","v":0}]
[null,null,null,null,null,null,null,null,null,null,null,null,null,null,null,"Morbidity",{"$f":"'Life Risk'!D6","v":0},{"$f":"'Life Risk'!E6","v":0},{"$f":"'Life Risk'!F6","v":0},{"$f":"'Life Risk'!G6","v":0}]
[null,null,null,null,null,null,null,null,null,null,null,null,null,null,null,"Longevity",{"$f":"'Life Risk'!D7","v":0},{"$f":"'Life Risk'!E7","v":0},{"$f":"'Life Risk'!F7","v":0},{"$f":"'Life Risk'!G7","v":0}]
[null,null,null,"Market Risk",null,null,null,null,null,null,null,null,null,null,null,"Other life",{"$f":"'Life Risk'!D8","v":0},{"$f":"'Life Risk'!E8","v":0},{"$f":"'Life Risk'!F8","v":0},{"$f":"'Life Risk'!G8","v":0}]
[null,null,"Undiversified charges",{"$f":"SUM(D47:D49)","v":0},{"$f":"SUM(E47:E49)","v":0},{"$f":"SUM(F47:F49)","v":0},{"$f":"SUM(G47:G49)","v":0},null,null,null,null,null,null,null,null,"Pandemic",{"$f":"'Life Risk'!D9","v":0},{"$f":"'Life Risk'!E9","v":0},{"$f":"'Life Risk'!F9","v":0},{"$f":"'Life Risk'!G9","v":0}]
[null,null,"Diversification benefits",{"$f":"D53-D55","v":0},{"$f":"E53-E55","v":0},0,0]
[null,null,"Diversified charges",{"$f":"SQRT(MMULT(MMULT(TRANSPOSE(D47:D49),$D$41:$F$43),D47:D49))","v":0},{"$f":"SQRT(MMULT(MMULT(TRANSPOSE(E47:E49),$D$41:$F$43),E47:E49))","v":0},{"$f":"SQRT(MMULT(MMULT(TRANSPOSE(F47:F49),$D$41:$F$43),F47:F49))","v":0},{"$f":"SQRT(MMULT(MMULT(TRANSPOSE(G47:G49),$D$41:$F$43),G47:G49))","v":0},null,null,null,null,null,null,null,null,null,"Life excluding pandemic"]
[null,null,null,null,null,null,null,null,null,null,null,null,null,null,null,"Undiversified charges",{"$f":"SUM(Q49:Q52)+'Life Risk'!D13+'Life Risk'!D10+'Life Risk'!D11","v":0},{"$f":"SUM(R49:R52)+'Life Risk'!E13+'Life Risk'!E10+'Life Risk'!E11","v":0},{"$f":"SUM(S49:S52)+'Life Risk'!F13+'Life Risk'!F10+'Life Risk'!F11","v":0},{"$f":"SUM(T49:T52)+'Life Risk'!G13+'Life Risk'!G10+'Life Risk'!G11","v":0}]
[null,null,null,null,null,null,null,null,null,null,null,null,null,null,null,"Diversification benefits",{"$f":"Q56-Q58","v":0},{"$f":"R56-R58","v":0},0,0]
[null,null,null,null,null,null,null,null,null,null,null,null,null,null,null,"Diversified charges",{"$f":"SQRT(MMULT(MMULT(TRANSPOSE(Q49:Q52),$Q$41:$T$44),Q49:Q52))+'Life Risk'!D13+'Life Risk'!D10+'Life Risk'!D11","v":0},{"$f":"SQRT(MMULT(MMULT(TRANSPOSE(R49:R52),$Q$41:$T$44),R49:R52))+'Life Risk'!E13+'Life Risk'!E10+'Life Risk'!E11","v":0},{"$f":"SQRT(MMULT(MMULT(TRANSPOSE(S49:S52),$Q$41:$T$44),S49:S52))+'Life Risk'!F13+'Life Risk'!F10+'Life Risk'!F11","v":0},{"$f":"SQRT(MMULT(MMULT(TRANSPOSE(T49:T52),$Q$41:$T$44),T49:T52))+'Life Risk'!G13+'Life Risk'!G10+'Life Risk'!G11","v":0}]
[]
[null,null,null,null,null,null,null,null,null,null,null,null,null,null,null,null,"Life including pandemic"]
[null,null,null,null,null,null,null,null,null,null,null,null,null,null,null,"Diversified charges",{"$f":"SQRT(MMULT(MMULT(TRANSPOSE(Q49:Q53),$Q$41:$U$45),Q49:Q53))+'Life Risk'!D13+'Life Risk'!D10+'Life Risk'!D11","v":0},{"$f":"SQRT(MMULT(MMULT(TRANSPOSE(R49:R53),$Q$41:$U$45),R49:R53))+'Life Risk'!E13+'Life Risk'!E10+'Life Risk'!E11","v":0},{"$f":"SQRT(MMULT(MMULT(TRANSPOSE(S49:S53),$Q$41:$U$45),S49:S53))+'Life Risk'!F13+'Life Risk'!F10+'Life Risk'!F11","v":0},{"$f":"SQRT(MMULT(MMULT(TRANSPOSE(T49:T53),$Q$41:$U$45),T49:T53))+'Life Risk'!G13+'Life Risk'!G10+'Life Risk'!G11","v":0}]
[]
[null,null,null,null,null,null,null,null,null,null,null,null,null,null,null,null,"Life & pandemic diversifcation"]
[null,null,null,null,null,null,null,null,null,null,null,null,null,null,null,"Implied correlation - Life & Pandemic",null,null,null,{"$f":"IFERROR((T61^2-T58^2-T53^2)/(2*T58*T53),0.25)","v":0.25}]
[]
[null,"Level 2: Non-life risk, within risk categories: Lines of Business",null,null,null,null,null,null,null,null,null,null,null,null,"Level 1:  Non life risk, within business lines: Premium-Reserve"]
[]
[null,"Correlation matrix",null,null,null,null,null,null,null,null,null,null,null,null,"Correlation matrix"]
[null,null,null,"Liability","Property","Motor","Financial","Health","MAT","Other",null,null,null,null,null,null,"Premium","Reserve"]
[null,null,"Liability",1,0.5,0.5,0.25,0.5,0.5,0.5,null,null,null,null,null,"Premium",1,0.75]
[null,null,"Property",{"$f":"E70","v":0.5},1,0.75,0.25,0.5,0.5,0.5,null,null,null,null,null,"Reserve",{"$f":"R70","v":0.75},1]
[null,null,"Motor",{"$f":"F70","v":0.5},{"$f":"F71","v":0.75},1,0.25,0.5,0.5,0.5]
[null,null,"Financial",{"$f":"G70","v":0.25},{"$f":"G71","v":0.25},{"$f":"G72","v":0.25},1,0.25,0.25,0.5,null,null,null,null,"Undiversified capital"]
[null,null,"Health",{"$f":"H70","v":0.5},{"$f":"H71","v":0.5},{"$f":"H72","v":0.5},{"$f":"H73","v":0.25},1,0.5,0.5,null,null,null,null,null,null,0.99990000000000001,0.99950000000000006,0.998,0.995]
[null,null,"MAT",{"$f":"I70","v":0.5},{"$f":"I71","v":0.5},{"$f":"I72","v":0.5},{"$f":"I73","v":0.25},{"$f":"I74","v":0.5},1,0.5,null,null,null,null,null,null,"Liability"]
[null,null,"Other",{"$f":"J70","v":0.5},{"$f":"J71","v":0.5},{"$f":"J72","v":0.5},{"$f":"J73","v":0.5},{"$f":"J74","v":0.5},{"$f":"J75","v":0.5},1,null,null,null,null,null,"Premium",{"$f":"'Non-Life Risk'!N23","v":0},{"$f":"'Non-Life Risk'!O23","v":0},{"$f":"'Non-Life Risk'!P23","v":0},{"$f":"'Non-Life Risk'!Q23","v":0}]
[null,null,null,null,null,null,null,null,null,null,null,null,null,null,null,"Reserve",{"$f":"'Non-Life Risk'!N171","v":0},{"$f":"'Non-Life Risk'!O171","v":0},{"$f":"'Non-Life Risk'!P171","v":0},{"$f":"'Non-Life Risk'!Q171","v":0}]
[null,null,null,"Diversified charges",null,null,null,null,null,"Diversification benefit"]
[null,null,null,0.99990000000000001,0.99950000000000006,0.998,0.995,null,null,0.99990000000000001,0.99950000000000006,0.998,0.995,null,null,null,"Property"]
[null,null,"Liability",{"$f":"SQRT(MMULT(MMULT(TRANSPOSE(Q76:Q77),$Q$70:$R$71),Q76:Q77))","v":0},{"$f":"SQRT(MMULT(MMULT(TRANSPOSE(R76:R77),$Q$70:$R$71),R76:R77))","v":0},{"$f":"SQRT(MMULT(MMULT(TRANSPOSE(S76:S77),$Q$70:$R$71),S76:S77))","v":0},{"$f":"SQRT(MMULT(MMULT(TRANSPOSE(T76:T77),$Q$70:$R$71),T76:T77))","v":0},null,"Liability",{"$f":"Q76+Q77-D80","v":0},{"$f":"R76+R77-E80","v":0},{"$f":"S76+S77-F80","v":0},{"$f":"T76+T77-G80","v":0},null,null,"Premium",{"$f":"'Non-Life Risk'!N24","v":0},{"$f":"'Non-Life Risk'!O24","v":0},{"$f":"'Non-Life Risk'!P24","v":0},{"$f":"'Non-Life Risk'!Q24","v":0}]
[null,null,"Property",{"$f":"SQRT(MMULT(MMULT(TRANSPOSE(Q$80:Q$81),$Q$70:$R$71),Q$80:Q$81))","v":0},{"$f":"SQRT(MMULT(MMULT(TRANSPOSE(R$80:R$81),$Q$70:$R$71),R$80:R$81))","v":0},{"$f":"SQRT(MMULT(MMULT(TRANSPOSE(S$80:S$81),$Q$70:$R$71),S$80:S$81))","v":0},{"$f":"SQRT(MMULT(MMULT(TRANSPOSE(T$80:T$81),$Q$70:$R$71),T$80:T$81))","v":0},null,"Property",{"$f":"Q80+Q81-D81","v":0},{"$f":"R80+R81-E81","v":0},{"$f":"S80+S81-F81","v":0},{"$f":"T80+T81-G81","v":0},null,null,"Reserve",{"$f":"'Non-Life Risk'!N172","v":0},{"$f":"'Non-Life Risk'!O172","v":0},{"$f":"'Non-Life Risk'!P172","v":0},{"$f":"'Non-Life Risk'!Q172","v":0}]
[null,null,"Motor",{"$f":"SQRT(MMULT(MMULT(TRANSPOSE(Q84:Q85),$Q$70:$R$71),Q84:Q85))","v":0},{"$f":"SQRT(MMULT(MMULT(TRANSPOSE(R84:R85),$Q$70:$R$71),R84:R85))","v":0},{"$f":"SQRT(MMULT(MMULT(TRANSPOSE(S84:S85),$Q$70:$R$71),S84:S85))","v":0},{"$f":"SQRT(MMULT(MMULT(TRANSPOSE(T84:T85),$Q$70:$R$71),T84:T85))","v":0},null,"Motor",{"$f":"Q84+Q85-D82","v":0},{"$f":"R84+R85-E82","v":0},{"$f":"S84+S85-F82","v":0},{"$f":"T84+T85-G82","v":0}]
[null,null,"Financial",{"$f":"SQRT(MMULT(MMULT(TRANSPOSE(Q88:Q89),$Q$70:$R$71),Q88:Q89))","v":0},{"$f":"SQRT(MMULT(MMULT(TRANSPOSE(R88:R89),$Q$70:$R$71),R88:R89))","v":0},{"$f":"SQRT(MMULT(MMULT(TRANSPOSE(S88:S89),$Q$70:$R$71),S88:S89))","v":0},{"$f":"SQRT(MMULT(MMULT(TRANSPOSE(T88:T89),$Q$70:$R$71),T88:T89))","v":0},null,"Financial",{"$f":"Q88+Q89-D83","v":0},{"$f":"R88+R89-E83","v":0},{"$f":"S88+S89-F83","v":0},{"$f":"T88+T89-G83","v":0},null,null,null,"Motor"]
[null,null,"Health",{"$f":"SQRT(MMULT(MMULT(TRANSPOSE(Q92:Q93),$Q$70:$R$71),Q92:Q93))","v":0},{"$f":"SQRT(MMULT(MMULT(TRANSPOSE(R92:R93),$Q$70:$R$71),R92:R93))","v":0},{"$f":"SQRT(MMULT(MMULT(TRANSPOSE(S92:S93),$Q$70:$R$71),S92:S93))","v":0},{"$f":"SQRT(MMULT(MMULT(TRANSPOSE(T92:T93),$Q$70:$R$71),T92:T93))","v":0},null,"Health",{"$f":"Q92+Q93-D84","v":0},{"$f":"R92+R93-E84","v":0},{"$f":"S92+S93-F84","v":0},{"$f":"T92+T93-G84","v":0},null,null,"Premium",{"$f":"'Non-Life Risk'!N25","v":0},{"$f":"'Non-Life Risk'!O25","v":0},{"$f":"'Non-Life Risk'!P25","v":0},{"$f":"'Non-Life Risk'!Q25","v":0}]
[null,null,"MAT",{"$f":"SQRT(MMULT(MMULT(TRANSPOSE(Q96:Q97),$Q$70:$R$71),Q96:Q97))","v":0},{"$f":"SQRT(MMULT(MMULT(TRANSPOSE(R96:R97),$Q$70:$R$71),R96:R97))","v":0},{"$f":"SQRT(MMULT(MMULT(TRANSPOSE(S96:S97),$Q$70:$R$71),S96:S97))","v":0},{"$f":"SQRT(MMULT(MMULT(TRANSPOSE(T96:T97),$Q$70:$R$71),T96:T97))","v":0},null,"MAT",{"$f":"Q96+Q97-D85","v":0},{"$f":"R96+R97-E85","v":0},{"$f":"S96+S97-F85","v":0},{"$f":"T96+T97-G85","v":0},null,null,"Reserve",{"$f":"'Non-Life Risk'!N173","v":0},{"$f":"'Non-Life Risk'!O173","v":0},{"$f":"'Non-Life Risk'!P173","v":0},{"$f":"'Non-Life Risk'!Q173","v":0}]
[null,null,"Other",{"$f":"SQRT(MMULT(MMULT(TRANSPOSE(Q100:Q101),$Q$70:$R$71),Q100:Q101))","v":0},{"$f":"SQRT(MMULT(MMULT(TRANSPOSE(R100:R101),$Q$70:$R$71),R100:R101))","v":0},{"$f":"SQRT(MMULT(MMULT(TRANSPOSE(S100:S101),$Q$70:$R$71),S100:S101))","v":0},{"$f":"SQRT(MMULT(MMULT(TRANSPOSE(T100:T101),$Q$70:$R$71),T100:T101))","v":0},null,"Other",{"$f":"Q100+Q101-D86","v":0},{"$f":"R100+R101-E86","v":0},{"$f":"S100+S101-F86","v":0},{"$f":"T100+T101-G86","v":0}]
[null,null,null,null,null,null,null,null,"Total",{"$f":"SUM(J80:J86)","v":0},{"$f":"SUM(K80:K86)","v":0},{"$f":"SUM(L80:L86)","v":0},{"$f":"SUM(M80:M86)","v":0},null,null,null,"Financial"]
[null,null,null,0.99990000000000001,0.99950000000000006,0.998,0.995,null,null,null,null,null,null,null,null,"Premium",{"$f":"'Non-Life Risk'!N26","v":0},{"$f":"'Non-Life Risk'!O26","v":0},{"$f":"'Non-Life Risk'!P26","v":0},{"$f":"'Non-Life Risk'!Q26","v":0}]
[null,null,"Total undiversified charges",{"$f":"SUM(D80:D86)","v":0},{"$f":"SUM(E80:E86)","v":0},0,0,null,null,null,null,null,null,null,null,"Reserve",{"$f":"'Non-Life Risk'!N174","v":0},{"$f":"'Non-Life Risk'!O174","v":0},{"$f":"'Non-Life Risk'!P174","v":0},{"$f":"'Non-Life Risk'!Q174","v":0}]
[null,null,"Diversification benefits",{"$f":"D89-D91","v":0},{"$f":"E89-E91","v":0},{"$f":"F89-F91","v":0},{"$f":"G89-G91","v":0}]
[null,null,"Diversified charges",{"$f":"SQRT(MMULT(MMULT(TRANSPOSE(D80:D86),$D$70:$J$76),D80:D86))","v":0},{"$f":"SQRT(MMULT(MMULT(TRANSPOSE(E80:E86),$D$70:$J$76),E80:E86))","v":0},{"$f":"SQRT(MMULT(MMULT(TRANSPOSE(F80:F86),$D$70:$J$76),F80:F86))","v":0},{"$f":"SQRT(MMULT(MMULT(TRANSPOSE(G80:G86),$D$70:$J$76),G80:G86))","v":0},null,null,null,null,null,null,null,null,"Health","Health"]
[null,null,null,null,null,null,null,null,null,null,null,null,null,null,null,"Premium",{"$f":"'Non-Life Risk'!N27","v":0},{"$f":"'Non-Life Risk'!O27","v":0},{"$f":"'Non-Life Risk'!P27","v":0},{"$f":"'Non-Life Risk'!Q27","v":0}]
[null,"Non-life premium and reserve analyst adjustments",null,null,null,null,null,null,null,null,null,null,null,null,null,"Reserve",{"$f":"'Non-Life Risk'!N175","v":0},{"$f":"'Non-Life Risk'!O175","v":0},{"$f":"'Non-Life Risk'!P175","v":0},{"$f":"'Non-Life Risk'!Q175","v":0}]
[null,null,null,0.99990000000000001,0.99950000000000006,0.998,0.995]
[null,null,"Level 1 diversification benefit %",{"$f":"IFERROR(J87/('Non-Life Risk'!N31+'Non-Life Risk'!N179),0)","v":0},{"$f":"IFERROR(K87/('Non-Life Risk'!O31+'Non-Life Risk'!O179),0)","v":0},{"$f":"IFERROR(L87/('Non-Life Risk'!P31+'Non-Life Risk'!P179),0)","v":0},{"$f":"IFERROR(M87/('Non-Life Risk'!Q31+'Non-Life Risk'!Q179),0)","v":0},null,null,null,null,null,null,null,null,null,"MAT"]
[null,null,"Adjustment: Non-life (premium)",{"$f":"SUMIF(Adjustment!$L$5:$L$24,Lists!$L$20,Adjustment!M$5:M$24)","v":0},{"$f":"SUMIF(Adjustment!$L$5:$L$24,Lists!$L$20,Adjustment!N$5:N$24)","v":0},{"$f":"SUMIF(Adjustment!$L$5:$L$24,Lists!$L$20,Adjustment!O$5:O$24)","v":0},{"$f":"SUMIF(Adjustment!$L$5:$L$24,Lists!$L$20,Adjustment!P$5:P$24)","v":0},null,null,null,null,null,null,null,null,"Premium",{"$f":"'Non-Life Risk'!N28","v":0},{"$f":"'Non-Life Risk'!O28","v":0},{"$f":"'Non-Life Risk'!P28","v":0},{"$f":"'Non-Life Risk'!Q28","v":0}]
[null,null,"Adjustment: Non-life (reserve)",{"$f":"SUMIF(Adjustment!$L$5:$L$24,Lists!$L$28,Adjustment!M$5:M$24)","v":0},{"$f":"SUMIF(Adjustment!$L$5:$L$24,Lists!$L$28,Adjustment!N$5:N$24)","v":0},{"$f":"SUMIF(Adjustment!$L$5:$L$24,Lists!$L$28,Adjustment!O$5:O$24)","v":0},{"$f":"SUMIF(Adjustment!$L$5:$L$24,Lists!$L$28,Adjustment!P$5:P$24)","v":0},null,null,null,null,null,null,null,null,"Reserve",{"$f":"'Non-Life Risk'!N176","v":0},{"$f":"'Non-Life Risk'!O176","v":0},{"$f":"'Non-Life Risk'!P176","v":0},{"$f":"'Non-Life Risk'!Q176","v":0}]
[null,null,"Total adjustments",{"$f":"D96+D97","v":0},{"$f":"E96+E97","v":0},{"$f":"F96+F97","v":0},{"$f":"G96+G97","v":0}]
[null,null,"Diversification benefit",{"$f":"D95*D98","v":0},{"$f":"E95*E98","v":0},{"$f":"F95*F98","v":0},{"$f":"G95*G98","v":0},null,null,null,null,null,null,null,null,null,"Other"]
[null,null,"Post-diversification Adjustment: Non-life premium and reserve",{"$f":"D98-D99","v":0},{"$f":"E98-E99","v":0},{"$f":"F98-F99","v":0},{"$f":"G98-G99","v":0},null,null,null,null,null,null,null,null,"Premium",{"$f":"'Non-Life Risk'!N29","v":0},{"$f":"'Non-Life Risk'!O29","v":0},{"$f":"'Non-Life Risk'!P29","v":0},{"$f":"'Non-Life Risk'!Q29","v":0}]
[null,null,"Total level 1 diversification benefit",{"$f":"J87+D99","v":0},{"$f":"K87+E99","v":0},{"$f":"L87+F99","v":0},{"$f":"M87+G99","v":0},null,null,null,null,null,null,null,null,"Reserve",{"$f":"'Non-Life Risk'!N177","v":0},{"$f":"'Non-Life Risk'!O177","v":0},{"$f":"'Non-Life Risk'!P177","v":0},{"$f":"'Non-Life Risk'!Q177","v":0}]
[]
[null,"Diversification Adjustments"]
[]
[null,"Financial lines vs market and credit risk diversification adjustment",null,null,null,null,null,null,null,null,null,null,null,null,"Variable annuities vs market and credit risk diversification adjustment"]
[null,"We do not give diversification credit for financial lines against credit and market risks. ",null,null,null,null,null,null,null,null,null,null,null,null,"We do not give diversification credit for variable annuities against credit and market risks."]
[null,null,null,0.99990000000000001,0.99950000000000006,0.998,0.995,null,null,0.99990000000000001,0.99950000000000006,0.998,0.995,null,null,null,0.99990000000000001,0.99950000000000006,0.998,0.995,null,null,0.99990000000000001,0.99950000000000006,0.998,0.995]
[null,null,"Market risk",{"$f":"D21","v":0},0,0,0,null,"Nat Cat risk",{"$f":"D23","v":0},{"$f":"E23","v":0},{"$f":"F23","v":0},{"$f":"G23","v":0},null,null,"Market risk",{"$f":"D21","v":0},0,0,0,null,"Nat Cat risk",{"$f":"D23","v":0},0,0,0]
[null,null,"Credit/default  risk",0,0,0,0,null,"Life technical risk",{"$f":"D25","v":0},0,0,0,null,null,"Credit/default  risk",0,0,0,0,null,"Non-life technical risk",0,0,0,0]
[null,null,"Non-life technical risk",{"$f":"D24","v":0},{"$f":"E24","v":0},{"$f":"F24","v":0},{"$f":"G24","v":0},null,"Pandemic Risk",0,0,0,0,null,null,"Life technical risk",{"$f":"D25","v":0},{"$f":"E25","v":0},{"$f":"F25","v":0},{"$f":"G25","v":0},null,"Pandemic Risk",{"$f":"D26","v":0},{"$f":"E26","v":0},{"$f":"F26","v":0},{"$f":"G26","v":0}]
[]
[null,null,null,"Market \nrisk","Credit /\ndefault \nrisk","Non-life technical risk",null,null,null,"Nat Cat \nrisk","Life \ntechnical risk","Pandemic risk",null,null,null,null,"Market \nrisk","Credit /\ndefault \nrisk","Life technical risk",null,null,null,"Nat Cat \nrisk","Non-life technical risk","Pandemic risk"]
[null,null,"Market risk",1,{"$f":"E12","v":0.75},{"$f":"G12","v":0.25},null,null,"Nat Cat risk",1,{"$f":"H14","v":0},{"$f":"I14","v":0},null,null,null,"Market risk",1,{"$f":"E12","v":0.75},{"$f":"H12","v":0.25},null,null,"Nat Cat risk",1,{"$f":"G14","v":0},{"$f":"I14","v":0}]
[null,null,"Credit/default  risk",{"$f":"E113","v":0.75},1,{"$f":"G13","v":0.25},null,null,"Life technical risk",{"$f":"K113","v":0},1,{"$f":"I16","v":0.25},null,null,null,"Credit/default  risk",{"$f":"R113","v":0.75},1,{"$f":"H13","v":0.25},null,null,"Non-life technical risk",{"$f":"X113","v":0},1,{"$f":"I15","v":0.25}]
[null,null,"Non-life technical risk",{"$f":"F113","v":0.25},{"$f":"F114","v":0.25},1,null,null,"Pandemic Risk",{"$f":"L113","v":0},{"$f":"L114","v":0.25},1,null,null,null,"Life technical risk",{"$f":"S113","v":0.25},{"$f":"S114","v":0.25},1,null,null,"Pandemic Risk",{"$f":"Y113","v":0},{"$f":"Y114","v":0.25},1]
[]
[null,null,null,"Market Risk - Non-LIfe - Credit risk",null,null,null,null,null,"Nat Cat - Life - Pandemic"]
[null,null,"Diversified charges",{"$f":"SQRT(MMULT(MMULT(TRANSPOSE(D108:D110),$D$113:$F$115),D108:D110))","v":0},{"$f":"SQRT(MMULT(MMULT(TRANSPOSE(E108:E110),$D$113:$F$115),E108:E110))","v":0},{"$f":"SQRT(MMULT(MMULT(TRANSPOSE(F108:F110),$D$113:$F$115),F108:F110))","v":0},{"$f":"SQRT(MMULT(MMULT(TRANSPOSE(G108:G110),$D$113:$F$115),G108:G110))","v":0},null,"Diversified charges",{"$f":"SQRT(MMULT(MMULT(TRANSPOSE(J108:J110),$J$113:$L$115),J108:J110))","v":0},{"$f":"SQRT(MMULT(MMULT(TRANSPOSE(K108:K110),$J$113:$L$115),K108:K110))","v":0},{"$f":"SQRT(MMULT(MMULT(TRANSPOSE(L108:L110),$J$113:$L$115),L108:L110))","v":0},{"$f":"SQRT(MMULT(MMULT(TRANSPOSE(M108:M110),$J$113:$L$115),M108:M110))","v":0}]
[null,null,null,null,null,null,null,null,null,null,null,null,null,null,null,null,"Market Risk - Credit risk - Life",null,null,null,null,null,"Nat Cat - Non-life - Pandemic"]
[null,null,null,0.99990000000000001,0.99950000000000006,0.998,0.995,null,null,null,null,null,null,null,null,"Diversified charges",{"$f":"SQRT(MMULT(MMULT(TRANSPOSE(Q108:Q110),$Q$113:$S$115),Q108:Q110))","v":0},{"$f":"SQRT(MMULT(MMULT(TRANSPOSE(R108:R110),$Q$113:$S$115),R108:R110))","v":0},{"$f":"SQRT(MMULT(MMULT(TRANSPOSE(S108:S110),$Q$113:$S$115),S108:S110))","v":0},{"$f":"SQRT(MMULT(MMULT(TRANSPOSE(T108:T110),$Q$113:$S$115),T108:T110))","v":0},null,"Diversified charges",{"$f":"SQRT(MMULT(MMULT(TRANSPOSE(W108:W110),$W$113:$Y$115),W108:W110))","v":0},{"$f":"SQRT(MMULT(MMULT(TRANSPOSE(X108:X110),$W$113:$Y$115),X108:X110))","v":0},{"$f":"SQRT(MMULT(MMULT(TRANSPOSE(Y108:Y110),$W$113:$Y$115),Y108:Y110))","v":0},{"$f":"SQRT(MMULT(MMULT(TRANSPOSE(Z108:Z110),$W$113:$Y$115),Z108:Z110))","v":0}]
[null,null,"Liability",{"$f":"D80","v":0},0,0,0]
[null,null,"Property",0,0,0,0]
[null,null,"Motor",0,0,0,0,null,null,null,null,null,null,null,null,null,0.99990000000000001,0.99950000000000006,0.998,0.995]
[null,null,"Financial",0,0,0,0,null,null,null,null,null,null,null,null,"Market risk",{"$f":"Q108","v":0},0,0,0]
[null,null,"Health",{"$f":"D84","v":0},0,0,0,null,null,null,null,null,null,null,null,"Credit/default  risk",0,0,0,0]
[null,null,"MAT",0,0,0,0,null,null,null,null,null,null,null,null,"Life technical risk excl Variable annuities",{"$f":"Q110-'Life Risk'!D11","v":0},{"$f":"R110-'Life Risk'!E11","v":0},{"$f":"S110-'Life Risk'!F11","v":0},{"$f":"T110-'Life Risk'!G11","v":0}]
[null,null,"Other",0,0,0,0,null,null,null,null,null,null,null,null,"VA",{"$f":"'Life Risk'!D11","v":0},{"$f":"'Life Risk'!E11","v":0},{"$f":"'Life Risk'!F11","v":0},{"$f":"'Life Risk'!G11","v":0}]
[]
[null,null,null,0.99990000000000001,0.99950000000000006,0.998,0.995,null,null,null,null,null,null,null,null,null,"Market risk","Credit / default  risk","Life technical risk excl Variable annuities"]
[null,null,"Total undiversified charges",{"$f":"SUM(D121:D127)","v":0},{"$f":"SUM(E121:E127)","v":0},0,0,null,null,null,null,null,null,null,null,"Market risk",1,{"$f":"E12","v":0.75},{"$f":"H12","v":0.25}]
[null,null,"Diversification benefits",{"$f":"D130-D132","v":0},{"$f":"E130-E132","v":0},{"$f":"F130-F132","v":0},{"$f":"G130-G132","v":0},null,null,null,null,null,null,null,null,"Credit/default  risk",{"$f":"R130","v":0.75},1,{"$f":"H13","v":0.25}]
[null,null,"Diversified charges (excl financials)",{"$f":"SQRT(MMULT(MMULT(TRANSPOSE(D121:D127),$D$70:$J$76),D121:D127))","v":0},{"$f":"SQRT(MMULT(MMULT(TRANSPOSE(E121:E127),$D$70:$J$76),E121:E127))","v":0},{"$f":"SQRT(MMULT(MMULT(TRANSPOSE(F121:F127),$D$70:$J$76),F121:F127))","v":0},{"$f":"SQRT(MMULT(MMULT(TRANSPOSE(G121:G127),$D$70:$J$76),G121:G127))","v":0},null,null,null,null,null,null,null,null,"Life technical risk excl Variable annuities",{"$f":"S130","v":0.25},{"$f":"S131","v":0.25},1]
[]
[]
[null,null,null,"Market risk","Credit / default  risk","Non-life technical risk excl Financial"]
[null,null,"Market risk",1,{"$f":"E12","v":0.75},{"$f":"G12","v":0.25},null,null,null,null,null,null,null,null,null,null,"Market Risk - LIfe - Credit risk"]
[null,null,"Credit/default  risk",{"$f":"E136","v":0.75},1,{"$f":"G13","v":0.25},null,null,null,null,null,null,null,null,null,"Diversified charges (incl VA)",{"$f":"SQRT(MMULT(MMULT(TRANSPOSE(Q124:Q126),$Q$130:$S$132),Q124:Q126))+Q127","v":0},{"$f":"SQRT(MMULT(MMULT(TRANSPOSE(R124:R126),$Q$130:$S$132),R124:R126))+R127","v":0},{"$f":"SQRT(MMULT(MMULT(TRANSPOSE(S124:S126),$Q$130:$S$132),S124:S126))+S127","v":0},{"$f":"SQRT(MMULT(MMULT(TRANSPOSE(T124:T126),$Q$130:$S$132),T124:T126))+T127","v":0}]
[null,null,"Non-life technical risk excl Financial",{"$f":"F136","v":0.25},{"$f":"F137","v":0.25},1]
[null,null,null,null,null,null,null,null,null,null,null,null,null,null,null,null,"All risks"]
[null,null,null,null,null,null,null,null,null,null,null,null,null,null,null,"Implied Correlation",{"$f":"IFERROR((D30^2-Q120^2-W120^2)/(2*Q120*W120),0)","v":0},{"$f":"IFERROR((E30^2-R120^2-X120^2)/(2*R120*X120),0)","v":0},{"$f":"IFERROR((F30^2-S120^2-Y120^2)/(2*S120*Y120),0)","v":0},{"$f":"IFERROR((G30^2-T120^2-Z120^2)/(2*T120*Z120),0)","v":0}]
[null,null,null,0.99990000000000001,0.99950000000000006,0.998,0.995,null,null,null,null,null,null,null,null,"Diversified charges using implied correlation",{"$f":"SQRT(Q137^2+W120^2+2*Q137*W120*Q140)","v":0},{"$f":"SQRT(R137^2+X120^2+2*R137*X120*R140)","v":0},{"$f":"SQRT(S137^2+Y120^2+2*S137*Y120*S140)","v":0},{"$f":"SQRT(T137^2+Z120^2+2*T137*Z120*T140)","v":0}]
[null,null,"Market risk",{"$f":"D108","v":0},0,0,0,null,null,null,null,null,null,null,null,"Adjustment",{"$f":"D30-Q141","v":0},{"$f":"E30-R141","v":0},{"$f":"F30-S141","v":0},{"$f":"G30-T141","v":0}]
[null,null,"Credit/default  risk",0,0,0,0]
[null,null,"Non-life technical risk excl Financial",{"$f":"D132+'Non-Life Risk'!E6+D100","v":0},{"$f":"E132+'Non-Life Risk'!F6+E100","v":0},{"$f":"F132+'Non-Life Risk'!G6+F100","v":0},{"$f":"G132+'Non-Life Risk'!H6+G100","v":0}]
[null,null,"Financial",{"$f":"D91-D132","v":0},{"$f":"E91-E132","v":0},{"$f":"F91-F132","v":0},{"$f":"G91-G132","v":0}]
[]
[null,null,null,"Market Risk - Non-LIfe - Credit risk"]
[null,null,"Diversified charges (incl financials)",{"$f":"SQRT(MMULT(MMULT(TRANSPOSE(D142:D144), $D$136:$F$138),D142:D144))+D145","v":0},{"$f":"SQRT(MMULT(MMULT(TRANSPOSE(E142:E144), $D$136:$F$138),E142:E144))+E145","v":0},{"$f":"SQRT(MMULT(MMULT(TRANSPOSE(F142:F144), $D$136:$F$138),F142:F144))+F145","v":0},{"$f":"SQRT(MMULT(MMULT(TRANSPOSE(G142:G144), $D$136:$F$138),G142:G144))+G145","v":0}]
[]
[null,null,null,"All risks"]
[null,null,"Implied Correlation",{"$f":"IFERROR((D30^2-D118^2-J118^2)/(2*D118*J118),0)","v":0},{"$f":"IFERROR((E30^2-E118^2-K118^2)/(2*E118*K118),0)","v":0},{"$f":"IFERROR((F30^2-F118^2-L118^2)/(2*F118*L118),0)","v":0},{"$f":"IFERROR((G30^2-G118^2-M118^2)/(2*G118*M118),0)","v":0}]
[null,null,"Diversified charges using implied correlation",{"$f":"SQRT(D148^2+J118^2+2*D148*J118*D151)","v":0},{"$f":"SQRT(E148^2+K118^2+2*E148*K118*E151)","v":0},{"$f":"SQRT(F148^2+L118^2+2*F148*L118*F151)","v":0},{"$f":"SQRT(G148^2+M118^2+2*G148*M118*G151)","v":0}]
[null,null,"Adjustment",{"$f":"D30-D152","v":0},{"$f":"E30-E152","v":0},{"$f":"F30-F152","v":0},{"$f":"G30-G152","v":0}]

{"sheet":"Risk Charges","index":12,"n_rows":244,"n_cols":44,"rows_kept":244,"cut":false,"hidden":false,"merged":[[73,1,76,1],[97,11,99,11],[100,11,102,11],[93,3,93,8],[93,9,93,10],[94,3,94,5],[95,3,95,5],[94,6,96,6],[94,7,96,7],[94,8,96,8],[94,9,96,9],[94,10,96,10],[71,3,71,9],[14,1,19,1],[30,1,35,1],[22,1,27,1],[57,3,57,6],[6,1,11,1],[14,12,19,12],[6,12,11,12],[62,3,62,6],[56,14,56,18],[5,2,5,10],[5,35,5,43],[5,24,5,32],[5,13,5,21],[39,14,39,18],[30,34,35,34],[22,34,27,34],[30,23,35,23],[22,23,27,23],[30,12,35,12],[22,12,27,12],[14,34,19,34],[6,34,11,34],[14,23,19,23],[6,23,11,23],[210,3,210,6],[221,3,221,6],[229,1,231,1],[129,2,129,6],[79,1,79,6],[97,1,108,1],[114,2,114,6],[199,3,199,6],[166,3,166,6],[176,15,176,18],[182,15,182,18],[97,10,99,10],[100,10,102,10],[103,10,105,10],[106,10,108,10],[103,11,105,11],[106,11,108,11]]}
[]
[null,null,null,0.99990000000000001,0.99950000000000006,0.998,0.995]
[null,null,"Lognormal scaling",1.65,1.4,1.2,1]
[null,"Credit risk charges - Bond & Loans"]
[]
[null,null,"99.99% Scenario",null,null,null,null,null,null,null,null,null,null,"99.95% Scenario",null,null,null,null,null,null,null,null,null,null,"99.8% Scenario",null,null,null,null,null,null,null,null,null,null,"99.5% Scenario"]
[null,"Recovery Category 1","Tenor (years)","AAA","AA","A","BBB","BB","B","CCC-C","D",null,"Recovery Category 1",{"$f":"C7","v":"Tenor (years)"},{"$f":"D7","v":"AAA"},{"$f":"E7","v":"AA"},"A","BBB","BB","B","CCC-C","D",null,"Recovery Category 1",{"$f":"C7","v":"Tenor (years)"},{"$f":"D7","v":"AAA"},{"$f":"E7","v":"AA"},"A","BBB","BB","B","CCC-C","D",null,"Recovery Category 1",{"$f":"C7","v":"Tenor (years)"},{"$f":"D7","v":"AAA"},{"$f":"E7","v":"AA"},"A","BBB","BB","B","CCC-C","D"]
[null,null,"Upto 1",6.9999999999999999E-4,2E-3,3.5000000000000001E-3,4.7999999999999996E-3,1.26E-2,3.5000000000000003E-2,0.2777,0.44,null,null,{"$f":"C8","v":"Upto 1"},5.9999999999999995E-4,1.5E-3,2.7000000000000001E-3,3.8E-3,0.01,2.76E-2,0.21920000000000001,0.41,null,null,{"$f":"C8","v":"Upto 1"},5.0000000000000001E-4,1.1999999999999999E-3,2.2000000000000001E-3,3.0999999999999999E-3,8.0000000000000002E-3,2.2100000000000002E-2,0.1754,0.38,null,null,{"$f":"C8","v":"Upto 1"},4.0000000000000002E-4,1E-3,1.8E-3,2.5000000000000001E-3,6.6E-3,1.84E-2,0.14610000000000001,0.35]
[null,null,"1.01 to 5",1.8E-3,4.5999999999999999E-3,8.3000000000000001E-3,1.7000000000000001E-2,4.7100000000000003E-2,9.2499999999999999E-2,0.44,0.44,null,null,"1.01 to 5",1.5E-3,3.5999999999999999E-3,6.6E-3,1.35E-2,3.7199999999999997E-2,7.2999999999999995E-2,0.36030000000000001,0.41,null,null,"1.01 to 5",1.1999999999999999E-3,2.8999999999999998E-3,5.3E-3,1.0800000000000001E-2,2.9700000000000001E-2,5.8400000000000001E-2,0.28820000000000001,0.38,null,null,"1.01 to 5",1E-3,2.3999999999999998E-3,4.4000000000000003E-3,8.9999999999999993E-3,2.4799999999999999E-2,4.87E-2,0.2402,0.35]
[null,null,"5.01 to 10",3.7000000000000002E-3,9.7000000000000003E-3,1.32E-2,2.7E-2,6.4299999999999996E-2,9.9500000000000005E-2,0.44,0.44,null,null,"5.01 to 10",2.8999999999999998E-3,7.6E-3,1.04E-2,2.1299999999999999E-2,5.0799999999999998E-2,7.8600000000000003E-2,0.36940000000000001,0.41,null,null,"5.01 to 10",2.3E-3,6.1000000000000004E-3,8.3000000000000001E-3,1.7100000000000001E-2,4.0599999999999997E-2,6.2799999999999995E-2,0.29549999999999998,0.38,null,null,"5.01 to 10",1.9E-3,5.1000000000000004E-3,7.0000000000000001E-3,1.4200000000000001E-2,3.39E-2,5.2400000000000002E-2,0.24629999999999999,0.35]
[null,null,"10.01 to 20",5.3E-3,1.1900000000000001E-2,1.7600000000000001E-2,3.1600000000000003E-2,6.6900000000000001E-2,9.9500000000000005E-2,0.44,0.44,null,null,"10.01 to 20",4.1999999999999997E-3,9.4000000000000004E-3,1.3899999999999999E-2,2.4899999999999999E-2,5.28E-2,7.8600000000000003E-2,0.37419999999999998,0.41,null,null,"10.01 to 20",3.3E-3,7.4999999999999997E-3,1.11E-2,1.9900000000000001E-2,4.2299999999999997E-2,6.2799999999999995E-2,0.2994,0.38,null,null,"10.01 to 20",2.8E-3,6.1999999999999998E-3,9.2999999999999992E-3,1.66E-2,3.5200000000000002E-2,5.2400000000000002E-2,0.2495,0.35]
[null,null,"More than 20",8.5000000000000006E-3,1.37E-2,1.9199999999999998E-2,3.1600000000000003E-2,6.6900000000000001E-2,9.9500000000000005E-2,0.44,0.44,null,null,"More than 20",6.7000000000000002E-3,1.09E-2,1.52E-2,2.4899999999999999E-2,5.28E-2,7.8600000000000003E-2,0.37419999999999998,0.41,null,null,"More than 20",5.4000000000000003E-3,8.6999999999999994E-3,1.21E-2,1.9900000000000001E-2,4.2299999999999997E-2,6.2799999999999995E-2,0.2994,0.38,null,null,"More than 20",4.4999999999999997E-3,7.1999999999999998E-3,1.01E-2,1.66E-2,3.5200000000000002E-2,5.2400000000000002E-2,0.2495,0.35]
[]
[]
[null,"Recovery Category 2",{"$f":"$C7","v":"Tenor (years)"},{"$f":"D$7","v":"AAA"},{"$f":"E$7","v":"AA"},"A","BBB","BB","B","CCC-C","D",null,"Recovery Category 2",{"$f":"$C7","v":"Tenor (years)"},{"$f":"O$7","v":"AAA"},{"$f":"P$7","v":"AA"},"A","BBB","BB","B","CCC-C","D",null,"Recovery Category 2",{"$f":"$C7","v":"Tenor (years)"},{"$f":"Z$7","v":"AAA"},{"$f":"AA$7","v":"AA"},"A","BBB","BB","B","CCC-C","D",null,"Recovery Category 2",{"$f":"$C7","v":"Tenor (years)"},{"$f":"AK$7","v":"AAA"},{"$f":"AL$7","v":"AA"},"A","BBB","BB","B","CCC-C","D"]
[null,null,{"$f":"$C8","v":"Upto 1"},1.4E-3,3.5999999999999999E-3,6.4000000000000003E-3,8.9999999999999993E-3,2.3400000000000001E-2,6.4899999999999999E-2,0.51570000000000005,0.72,null,null,{"$f":"$C8","v":"Upto 1"},1.1000000000000001E-3,2.8999999999999998E-3,5.1000000000000004E-3,7.1000000000000004E-3,1.8499999999999999E-2,5.1200000000000002E-2,0.40710000000000002,0.7,null,null,"Upto 1",8.9999999999999998E-4,2.3E-3,4.1000000000000003E-3,5.7000000000000002E-3,1.4800000000000001E-2,4.1000000000000002E-2,0.32569999999999999,0.67,null,null,"Upto 1",6.9999999999999999E-4,1.9E-3,3.3999999999999998E-3,4.7000000000000002E-3,1.23E-2,3.4200000000000001E-2,0.27139999999999997,0.65]
[null,null,"1.01 to 5",3.3999999999999998E-3,8.5000000000000006E-3,1.55E-2,3.1600000000000003E-2,8.7400000000000005E-2,0.17180000000000001,0.72,0.72,null,null,"1.01 to 5",2.7000000000000001E-3,6.7000000000000002E-3,1.2200000000000001E-2,2.5000000000000001E-2,6.9000000000000006E-2,0.1356,0.66910000000000003,0.7,null,null,"1.01 to 5",2.2000000000000001E-3,5.4000000000000003E-3,9.7999999999999997E-3,0.02,5.5199999999999999E-2,0.1085,0.5353,0.67,null,null,"1.01 to 5",1.8E-3,4.4999999999999997E-3,8.0999999999999996E-3,1.67E-2,4.5999999999999999E-2,9.0399999999999994E-2,0.4461,0.65]
[null,null,"5.01 to 10",6.7999999999999996E-3,1.7899999999999999E-2,2.4500000000000001E-2,5.0200000000000002E-2,0.1195,0.18479999999999999,0.72,0.72,null,null,"5.01 to 10",5.4000000000000003E-3,1.4200000000000001E-2,1.9400000000000001E-2,3.9600000000000003E-2,9.4299999999999995E-2,0.1459,0.68610000000000004,0.7,null,null,"5.01 to 10",4.3E-3,1.1299999999999999E-2,1.55E-2,3.1699999999999999E-2,7.5499999999999998E-2,0.1167,0.54890000000000005,0.67,null,null,"5.01 to 10",3.5999999999999999E-3,9.4000000000000004E-3,1.29E-2,2.64E-2,6.2899999999999998E-2,9.7299999999999998E-2,0.45739999999999997,0.65]
[null,null,"10.01 to 20",9.7999999999999997E-3,2.1999999999999999E-2,3.27E-2,5.8599999999999999E-2,0.12429999999999999,0.18479999999999999,0.72,0.72,null,null,"10.01 to 20",7.7999999999999996E-3,1.7399999999999999E-2,2.58E-2,4.6300000000000001E-2,9.8100000000000007E-2,0.1459,0.69499999999999995,0.7,null,null,"10.01 to 20",6.1999999999999998E-3,1.3899999999999999E-2,2.06E-2,3.6999999999999998E-2,7.85E-2,0.1167,0.55600000000000005,0.67,null,null,"10.01 to 20",5.1999999999999998E-3,1.1599999999999999E-2,1.72E-2,3.0800000000000001E-2,6.54E-2,9.7299999999999998E-2,0.46329999999999999,0.65]
[null,null,"More than 20",1.5800000000000002E-2,2.5499999999999998E-2,3.5700000000000003E-2,5.8599999999999999E-2,0.12429999999999999,0.18479999999999999,0.72,0.72,null,null,"More than 20",1.2500000000000001E-2,2.0199999999999999E-2,2.8199999999999999E-2,4.6300000000000001E-2,9.8100000000000007E-2,0.1459,0.69499999999999995,0.7,null,null,"More than 20",0.01,1.61E-2,2.2499999999999999E-2,3.6999999999999998E-2,7.85E-2,0.1167,0.55600000000000005,0.67,null,null,"More than 20",8.3000000000000001E-3,1.34E-2,1.8800000000000001E-2,3.0800000000000001E-2,6.54E-2,9.7299999999999998E-2,0.46329999999999999,0.65]
[]
[]
[null,"Recovery Category 3",{"$f":"$C15","v":"Tenor (years)"},{"$f":"D$7","v":"AAA"},{"$f":"E$7","v":"AA"},"A","BBB","BB","B","CCC-C","D",null,"Recovery Category 3",{"$f":"$C15","v":"Tenor (years)"},{"$f":"O$7","v":"AAA"},{"$f":"P$7","v":"AA"},"A","BBB","BB","B","CCC-C","D",null,"Recovery Category 3",{"$f":"$C15","v":"Tenor (years)"},{"$f":"Z$7","v":"AAA"},{"$f":"AA$7","v":"AA"},"A","BBB","BB","B","CCC-C","D",null,"Recovery Category 3",{"$f":"$C15","v":"Tenor (years)"},{"$f":"AK$7","v":"AAA"},{"$f":"AL$7","v":"AA"},"A","BBB","BB","B","CCC-C","D"]
[null,null,{"$f":"$C16","v":"Upto 1"},1.8E-3,4.7999999999999996E-3,8.3999999999999995E-3,1.17E-2,3.0700000000000002E-2,8.4900000000000003E-2,0.6744,0.88,null,null,{"$f":"$C16","v":"Upto 1"},1.4E-3,3.8E-3,6.6E-3,9.2999999999999992E-3,2.4199999999999999E-2,6.7000000000000004E-2,0.53239999999999998,0.87,null,null,"Upto 1",1.1000000000000001E-3,3.0000000000000001E-3,5.3E-3,7.4000000000000003E-3,1.9400000000000001E-2,5.3600000000000002E-2,0.4259,0.86,null,null,"Upto 1",8.9999999999999998E-4,2.5000000000000001E-3,4.4000000000000003E-3,6.1999999999999998E-3,1.61E-2,4.4699999999999997E-2,0.35489999999999999,0.85]
[null,null,"1.01 to 5",4.4999999999999997E-3,1.12E-2,2.0199999999999999E-2,4.1399999999999999E-2,0.1143,0.22459999999999999,0.88,0.88,null,null,"1.01 to 5",3.5000000000000001E-3,8.8000000000000005E-3,1.6E-2,3.27E-2,9.0300000000000005E-2,0.17730000000000001,0.87,0.87,null,null,"1.01 to 5",2.8E-3,7.1000000000000004E-3,1.2800000000000001E-2,2.6100000000000002E-2,7.22E-2,0.1419,0.7,0.86,null,null,"1.01 to 5",2.3999999999999998E-3,5.8999999999999999E-3,1.0699999999999999E-2,2.18E-2,6.0199999999999997E-2,0.1182,0.58330000000000004,0.85]
[null,null,"5.01 to 10",8.8999999999999999E-3,2.35E-2,3.2099999999999997E-2,6.5600000000000006E-2,0.15620000000000001,0.2417,0.88,0.88,null,null,"5.01 to 10",7.0000000000000001E-3,1.8499999999999999E-2,2.53E-2,5.1799999999999999E-2,0.1234,0.1908,0.87,0.87,null,null,"5.01 to 10",5.5999999999999999E-3,1.4800000000000001E-2,2.0299999999999999E-2,4.1399999999999999E-2,9.8699999999999996E-2,0.15260000000000001,0.7177,0.86,null,null,"5.01 to 10",4.7000000000000002E-3,1.24E-2,1.6899999999999998E-2,3.4500000000000003E-2,8.2199999999999995E-2,0.12720000000000001,0.59809999999999997,0.85]
[null,null,"10.01 to 20",1.29E-2,2.8799999999999999E-2,4.2700000000000002E-2,7.6600000000000001E-2,0.16250000000000001,0.2417,0.88,0.88,null,null,"10.01 to 20",1.0200000000000001E-2,2.2700000000000001E-2,3.3700000000000001E-2,6.0499999999999998E-2,0.1283,0.1908,0.87,0.87,null,null,"10.01 to 20",8.0999999999999996E-3,1.8200000000000001E-2,2.7E-2,4.8399999999999999E-2,0.1027,0.15260000000000001,0.72709999999999997,0.86,null,null,"10.01 to 20",6.7999999999999996E-3,1.52E-2,2.2499999999999999E-2,4.0300000000000002E-2,8.5500000000000007E-2,0.12720000000000001,0.60589999999999999,0.85]
[null,null,"More than 20",2.06E-2,3.3399999999999999E-2,4.6600000000000003E-2,7.6600000000000001E-2,0.16250000000000001,0.2417,0.88,0.88,null,null,"More than 20",1.6299999999999999E-2,2.64E-2,3.6799999999999999E-2,6.0499999999999998E-2,0.1283,0.1908,0.87,0.87,null,null,"More than 20",1.2999999999999999E-2,2.1100000000000001E-2,2.9499999999999998E-2,4.8399999999999999E-2,0.1027,0.15260000000000001,0.72709999999999997,0.86,null,null,"More than 20",1.09E-2,1.7600000000000001E-2,2.46E-2,4.0300000000000002E-2,8.5500000000000007E-2,0.12720000000000001,0.60589999999999999,0.85]
[]
[]
[null,"Recovery Category 4",{"$f":"$C23","v":"Tenor (years)"},{"$f":"D$7","v":"AAA"},{"$f":"E$7","v":"AA"},"A","BBB","BB","B","CCC-C","D",null,"Recovery Category 4",{"$f":"$C23","v":"Tenor (years)"},{"$f":"O$7","v":"AAA"},{"$f":"P$7","v":"AA"},"A","BBB","BB","B","CCC-C","D",null,"Recovery Category 4",{"$f":"$C23","v":"Tenor (years)"},{"$f":"Z$7","v":"AAA"},{"$f":"AA$7","v":"AA"},"A","BBB","BB","B","CCC-C","D",null,"Recovery Category 4",{"$f":"$C23","v":"Tenor (years)"},{"$f":"AK$7","v":"AAA"},{"$f":"AL$7","v":"AA"},"A","BBB","BB","B","CCC-C","D"]
[null,null,{"$f":"$C24","v":"Upto 1"},8.0000000000000004E-4,2.5000000000000001E-3,9.2999999999999992E-3,1.2E-2,4.1500000000000002E-2,0.1225,0.83299999999999996,1,null,null,{"$f":"$C24","v":"Upto 1"},5.9999999999999995E-4,2E-3,7.4000000000000003E-3,9.4999999999999998E-3,3.2800000000000003E-2,9.6699999999999994E-2,0.65769999999999995,1,null,null,"Upto 1",5.0000000000000001E-4,1.6000000000000001E-3,5.8999999999999999E-3,7.6E-3,2.6200000000000001E-2,7.7399999999999997E-2,0.52610000000000001,1,null,null,"Upto 1",4.0000000000000002E-4,1.2999999999999999E-3,4.8999999999999998E-3,6.3E-3,2.1899999999999999E-2,6.4500000000000002E-2,0.43840000000000001,1]
[null,null,"1.01 to 5",1.9E-3,5.7999999999999996E-3,2.18E-2,4.1300000000000003E-2,0.15579999999999999,0.32850000000000001,1,1,null,null,"1.01 to 5",1.5E-3,4.5999999999999999E-3,1.72E-2,3.2599999999999997E-2,0.123,0.25940000000000002,1,1,null,null,"1.01 to 5",1.1999999999999999E-3,3.7000000000000002E-3,1.38E-2,2.6100000000000002E-2,9.8400000000000001E-2,0.20749999999999999,0.86470000000000002,1,null,null,"1.01 to 5",1E-3,3.0999999999999999E-3,1.15E-2,2.1700000000000001E-2,8.2000000000000003E-2,0.1729,0.72060000000000002,1]
[null,null,"5.01 to 10",3.8999999999999998E-3,1.2500000000000001E-2,3.5700000000000003E-2,6.7100000000000007E-2,0.22289999999999999,0.36609999999999998,1,1,null,null,"5.01 to 10",3.0999999999999999E-3,9.9000000000000008E-3,2.81E-2,5.2999999999999999E-2,0.17599999999999999,0.28899999999999998,1,1,null,null,"5.01 to 10",2.5000000000000001E-3,7.9000000000000008E-3,2.2499999999999999E-2,4.24E-2,0.14080000000000001,0.23119999999999999,0.88660000000000005,1,null,null,"5.01 to 10",2.0999999999999999E-3,6.6E-3,1.8800000000000001E-2,3.5299999999999998E-2,0.1173,0.19270000000000001,0.73880000000000001,1]
[null,null,"10.01 to 20",5.7000000000000002E-3,1.5599999999999999E-2,4.9099999999999998E-2,8.0299999999999996E-2,0.24030000000000001,0.36609999999999998,1,1,null,null,"10.01 to 20",4.4999999999999997E-3,1.23E-2,3.8699999999999998E-2,6.3399999999999998E-2,0.18970000000000001,0.28899999999999998,1,1,null,null,"10.01 to 20",3.5999999999999999E-3,9.9000000000000008E-3,3.1E-2,5.0700000000000002E-2,0.1517,0.23119999999999999,0.89810000000000001,1,null,null,"10.01 to 20",3.0000000000000001E-3,8.2000000000000007E-3,2.58E-2,4.2299999999999997E-2,0.1265,0.19270000000000001,0.74850000000000005,1]
[null,null,"More than 20",9.1999999999999998E-3,1.8599999999999998E-2,5.5599999999999997E-2,8.1799999999999998E-2,0.24030000000000001,0.36609999999999998,1,1,null,null,"More than 20",7.3000000000000001E-3,1.47E-2,4.3900000000000002E-2,6.4600000000000005E-2,0.18970000000000001,0.28899999999999998,1,1,null,null,"More than 20",5.7999999999999996E-3,1.18E-2,3.5099999999999999E-2,5.16E-2,0.1517,0.23119999999999999,0.89810000000000001,1,null,null,"More than 20",4.8999999999999998E-3,9.7999999999999997E-3,2.92E-2,4.2999999999999997E-2,0.1265,0.19270000000000001,0.74850000000000005,1]
[]
[]
[null,"Equity Risk Charges",null,null,null,null,null,"Infrastructure",null,null,null,null,null,"  Other Invested and Non-invested Asset Charges"]
[null,null,null,null,null,null,null,null,null,null,null,null,null,null,"Bank Deposits"]
[null,null,"Listed",0.99990000000000001,0.99950000000000006,0.998,0.995,null,0.99990000000000001,0.99950000000000006,0.998,0.995,null,null,"Sovereign local currency rating",0.99990000000000001,0.99950000000000006,0.998,0.995]
[null,null,"Group 1",0.55000000000000004,0.5,0.45,0.4,"Category 1",0.48,0.44,0.39,0.35,null,null,"  A- or higher",3.0000000000000001E-3,2.3999999999999998E-3,1.9E-3,1.6000000000000001E-3]
[null,null,"Group 2",0.66,0.6,0.54,0.48,"Category 2",0.69,0.63,0.56000000000000005,0.5,null,null,"  BBB",7.7999999999999996E-3,6.1999999999999998E-3,4.8999999999999998E-3,4.1000000000000003E-3]
[null,null,"Group 3",0.77,0.7,0.63,0.56000000000000005,null,null,null,null,null,null,null,"  BB  or B",2.1600000000000001E-2,1.7100000000000001E-2,1.37E-2,1.14E-2]
[null,null,"Group 4",0.88,0.8,0.72,0.64,null,null,null,null,null,null,null,"CCC+  or lower",0.1719,0.13569999999999999,0.1086,9.0499999999999997E-2]
[]
[null,null,"Unlisted",0.99990000000000001,0.99950000000000006,0.998,0.995,null,null,null,null,null,null,null,"Other Assets",1,1,1,1]
[null,null,"Group 1",0.66,0.6,0.54,0.48,null,null,null,null,null,null,null,"Non-chargeable assets",0,0,0,0]
[null,null,"Group 2",0.77,0.7,0.63,0.56000000000000005,null,null,null,null,null,null,null,"OTC Derivatives",{"$f":"F18","v":2.4500000000000001E-2},{"$f":"Q18","v":1.9400000000000001E-2},{"$f":"AB18","v":1.55E-2},{"$f":"AM18","v":1.29E-2}]
[null,null,"Group 3",0.88,0.8,0.72,0.64,null,null,null,null,null,null,null,"Other Chargeable Assets",9.5000000000000001E-2,7.4999999999999997E-2,0.06,0.05]
[null,null,"Group 4",0.99,0.9,0.81,0.72,null,null,null,null,null,null,null,"Deposits with Cedents",6.8999999999999999E-3,5.4000000000000003E-3,4.4000000000000003E-3,3.5999999999999999E-3]
[]
[]
[]
[null,"Real Estate Risk Chages"]
[]
[null,null,null,0.99990000000000001,0.99950000000000006,0.998,0.995,null,null,null,null,null,null,null,"Credit Risk Charges For Contingent Reinsurance Counterparty Risks"]
[null,null,null,"Investment",null,null,null,null,null,null,null,null,null,null,null,0.99990000000000001,0.99950000000000006,0.998,0.995]
[null,null,"Group 1",0.15,0.13,0.11,0.09,null,null,null,null,null,null,null,null,1.1900000000000001E-2,9.4000000000000004E-3,7.4999999999999997E-3,6.3E-3]
[null,null,"Group 2",0.2,0.18,0.15,0.12]
[null,null,"Group 3",0.3,0.27,0.24,0.2]
[null,null,"Group 4",0.35,0.31,0.27,0.24]
[null,null,null,"Owner Occupied"]
[null,null,"Group 1",0.23,0.2,0.17,0.14000000000000001]
[null,null,"Group 2",0.28000000000000003,0.25,0.21,0.17]
[null,null,"Group 3",0.38,0.34,0.3,0.25]
[null,null,"Group 4",0.43,0.38,0.33,0.28999999999999998]
[]
[]
[null,"Reinsurance Recoverables (Same as bonds of 5-10 year maturity and medium recovery)"]
[]
[null,null,null,"Reinsurer Rating"]
[null,null,null,"AAA","AA","A","BBB","BB","B","CCC","D"]
[null,"Stress Level",0.99990000000000001,5.1999999999999998E-3,1.38E-2,1.89E-2,3.8600000000000002E-2,9.1899999999999996E-2,0.1421,0.57999999999999996,0.57999999999999996]
[null,null,0.99950000000000006,4.1000000000000003E-3,1.09E-2,1.49E-2,3.0499999999999999E-2,7.2599999999999998E-2,0.11219999999999999,0.52769999999999995,0.55000000000000004]
[null,null,0.998,3.3E-3,8.6999999999999994E-3,1.1900000000000001E-2,2.4400000000000002E-2,5.8000000000000003E-2,8.9800000000000005E-2,0.42220000000000002,0.53]
[null,null,0.995,2.8E-3,7.3000000000000001E-3,9.9000000000000008E-3,2.0299999999999999E-2,4.8399999999999999E-2,7.4800000000000005E-2,0.3518,0.5]
[]
[]
[null,"Transposed table"]
[null,{"$f":"TRANSPOSE(B72:K77)","v":0},0,"Stress Level",0,0,0]
[null,0,0,0.99990000000000001,0.99950000000000006,0.998,0.995]
[null,"Reinsurer Rating","AAA",5.1999999999999998E-3,4.1000000000000003E-3,3.3E-3,2.8E-3]
[null,0,"AA",1.38E-2,1.09E-2,8.6999999999999994E-3,7.3000000000000001E-3]
[null,0,"A",1.89E-2,1.49E-2,1.1900000000000001E-2,9.9000000000000008E-3]
[null,0,"BBB",3.8600000000000002E-2,3.0499999999999999E-2,2.4400000000000002E-2,2.0299999999999999E-2]
[null,0,"BB",9.1899999999999996E-2,7.2599999999999998E-2,5.8000000000000003E-2,4.8399999999999999E-2]
[null,0,"B",0.1421,0.11219999999999999,8.9800000000000005E-2,7.4800000000000005E-2]
[null,0,"CCC",0.57999999999999996,0.52769999999999995,0.42220000000000002,0.3518]
[null,0,"D",0.57999999999999996,0.55000000000000004,0.53,0.5]
[]
[null,"Mortgages Risk Charges"]
[]
[null,null,null,"Commercial Mortgages",null,null,null,null,null,"Residential Mortgages"]
[null,null,null,"In good standing",null,null,"Delinquent","In process of foreclosure","Construction Loans","Performing","Non Performing"]
[null,null,null,"Debt Service Coverage Ratio"]
[null,null,null,"> 1.4x","1.1x to 1.4x","< 1.1x"]
[null,"LTV (%)","< 60",4.8000000000000001E-2,6.7000000000000004E-2,9.5000000000000001E-2,0.34899999999999998,0.69899999999999995,0.28599999999999998,3.3000000000000002E-2,0.35,0.99990000000000001]
[null,null,"60-80",5.5E-2,7.6999999999999999E-2,0.11,0.40300000000000002,0.80600000000000005,0.33,3.7999999999999999E-2]
[null,null,">80",0.06,8.4000000000000005E-2,0.11899999999999999,0.438,0.876,0.35799999999999998,4.2000000000000003E-2]
[null,null,"< 60",3.6999999999999998E-2,5.0999999999999997E-2,7.2999999999999995E-2,0.30099999999999999,0.60199999999999998,0.22,2.5999999999999999E-2,0.3,0.99950000000000006]
[null,null,"60-80",4.3999999999999997E-2,6.2E-2,8.8999999999999996E-2,0.36499999999999999,0.73,0.26700000000000002,3.1E-2]
[null,null,">80",0.05,6.9000000000000006E-2,9.9000000000000005E-2,0.40600000000000003,0.81299999999999994,0.29699999999999999,3.4000000000000002E-2]
[null,null,"< 60",2.7E-2,3.7999999999999999E-2,5.5E-2,0.254,0.50800000000000001,0.16400000000000001,1.9E-2,0.25,0.998]
[null,null,"60-80",3.5000000000000003E-2,0.05,7.0999999999999994E-2,0.32800000000000001,0.65600000000000003,0.21199999999999999,2.5000000000000001E-2]
[null,null,">80",4.1000000000000002E-2,5.7000000000000002E-2,8.1000000000000003E-2,0.376,0.752,0.24299999999999999,2.8000000000000001E-2]
[null,null,"< 60",2.1000000000000001E-2,0.03,4.2999999999999997E-2,0.22,0.439,0.129,1.4999999999999999E-2,0.2,0.995]
[null,null,"60-80",2.9000000000000001E-2,4.1000000000000002E-2,5.8999999999999997E-2,0.30099999999999999,0.60199999999999998,0.17599999999999999,0.02]
[null,null,">80",3.5000000000000003E-2,4.8000000000000001E-2,6.9000000000000006E-2,0.35399999999999998,0.70799999999999996,0.20699999999999999,2.4E-2]
[]
[]
[]
[null,"Non-Life Premium and Reserve Risk Charges"]
[]
[null,null,"Primary and proportional reinsurance business"]
[null,null,"Risk category",0.99990000000000001,0.99950000000000006,0.998,0.995]
[null,null,1,{"$f":"ROUND($G117*D$3,3)","v":4.1000000000000002E-2},3.5000000000000003E-2,0.03,2.5000000000000001E-2]
[null,null,2,8.3000000000000004E-2,7.0000000000000007E-2,0.06,0.05]
[null,null,3,0.124,0.105,0.09,7.4999999999999997E-2]
[null,null,4,0.16500000000000001,0.14000000000000001,0.12,0.1]
[null,null,5,0.248,0.21,0.18,0.15]
[null,null,6,0.33,0.28000000000000003,0.24,0.2]
[null,null,7,0.41299999999999998,0.35,0.3,0.25]
[null,null,8,0.495,0.42,0.36,0.3]
[null,null,9,0.57799999999999996,0.49,0.42,0.35]
[null,null,10,0.66,0.56000000000000005,0.48,0.4]
[null,null,11,0.82499999999999996,0.7,0.6,0.5]
[null,null,12,0.99,0.84,0.72,0.6]
[]
[null,null,"Non-proportional reinsurance (treaty and facultative)"]
[null,null,"Risk category",0.99990000000000001,0.99950000000000006,0.998,0.995]
[null,null,1,{"$f":"ROUND(D117*1.25,3)","v":5.0999999999999997E-2},{"$f":"ROUND(E117*1.25,3)","v":4.3999999999999997E-2},3.7999999999999999E-2,3.1E-2]
[null,null,2,{"$f":"ROUND(D118*1.25,3)","v":0.104},8.7999999999999995E-2,7.4999999999999997E-2,6.3E-2]
[null,null,3,{"$f":"ROUND(D119*1.25,3)","v":0.155},0.13100000000000001,0.113,9.4E-2]
[null,null,4,{"$f":"ROUND(D120*1.25,3)","v":0.20599999999999999},0.17499999999999999,0.15,0.125]
[null,null,5,{"$f":"ROUND(D121*1.25,3)","v":0.31},0.26300000000000001,0.22500000000000001,0.188]
[null,null,6,{"$f":"ROUND(D122*1.25,3)","v":0.41299999999999998},0.35,0.3,0.25]
[null,null,7,{"$f":"ROUND(D123*1.25,3)","v":0.51600000000000001},0.438,0.375,0.313]
[null,null,8,{"$f":"ROUND(D124*1.25,3)","v":0.61899999999999999},0.52500000000000002,0.45,0.375]
[null,null,9,{"$f":"ROUND(D125*1.25,3)","v":0.72299999999999998},0.61299999999999999,0.52500000000000002,0.438]
[null,null,10,{"$f":"ROUND(D126*1.25,3)","v":0.82499999999999996},0.7,0.6,0.5]
[null,null,11,{"$f":"ROUND(D127*1.25,3)","v":1.0309999999999999},0.875,0.75,0.625]
[null,null,12,{"$f":"ROUND(D128*1.25,3)","v":1.238},1.05,0.9,0.75]
[]
[null,"Mortgage Insurance Risk Charge Assumptions"]
[]
[]
[]
[null,null,null,0.99990000000000001,0.99950000000000006,0.998,0.995]
[null,null,"Premium risk factor (proportional)",4.25,3.1,2.17,1.25]
[null,null,"Premium risk factor (non-proportional)",{"$f":"ROUND(D150*1.25,3)","v":5.3129999999999997},{"$f":"ROUND(E150*1.25,3)","v":3.875},2.7130000000000001,1.5629999999999999]
[]
[null,null,null,0.99990000000000001,0.99950000000000006,0.998,0.995]
[null,null,"Reserve risk (primary and proportional)",0.41299999999999998,0.35,0.3,0.25]
[null,null,"Reserve risk (non-proportional)",{"$f":"ROUND(D154*1.25,3)","v":0.51600000000000001},{"$f":"ROUND(E154*1.25,3)","v":0.438},{"$f":"ROUND(F154*1.25,3)","v":0.375},{"$f":"ROUND(G154*1.25,3)","v":0.313}]
[]
[]
[null,"Life - Other life risk charges"]
[]
[null,null,"Category",0.99990000000000001,0.99950000000000006,0.998,0.995]
[null,null,1,2.3E-2,0.02,1.7000000000000001E-2,1.4E-2]
[null,null,2,1.2E-2,0.01,8.9999999999999993E-3,7.0000000000000001E-3]
[null,null,3,7.0000000000000001E-3,6.0000000000000001E-3,5.0000000000000001E-3,4.0000000000000001E-3]
[]
[]
[null,"Life - Longevity risk charges",null,null,null,null,null,null,"Life - Longevity reserve confidence level"]
[null,null,null,"Default",null,null,null,null,"Reserve Confidence Level","Reduction in Charge"]
[null,null,null,0.99990000000000001,0.99950000000000006,0.998,0.995,null,{"$f":"Lists!Z3","v":"Default"},0]
[null,null,"Category 1",7.9000000000000001E-2,7.0000000000000007E-2,6.0999999999999999E-2,5.5E-2,null,{"$f":"Lists!Z4","v":"70% to less than 80%"},0.25]
[null,null,"Category 2",2.4E-2,2.1000000000000001E-2,1.7999999999999999E-2,1.7000000000000001E-2,null,{"$f":"Lists!Z5","v":"80% to less than 90%"},0.35]
[null,null,"Category 3",0,0,0,0,null,{"$f":"Lists!Z6","v":"90% or above"},0.45]
[]
[]
[null,"Life - Mortality and pandemic risk charges",null,null,null,null,null,null,null,null,null,null,null,"Life -Critical Illness risk charges"]
[]
[]
[null,null,null,"Highly developed markets",null,null,null,null,null,null,null,null,null,null,null,"Highly developed markets"]
[null,null,null,0.99990000000000001,0.99950000000000006,0.998,0.995,null,null,null,null,null,null,null,null,0.99990000000000001,0.99950000000000006,0.998,0.995]
[null,null,"First $50 billion",2.5100000000000001E-3,2.2200000000000002E-3,1.9400000000000001E-3,1.74E-3,null,null,null,null,null,null,null,"First $50 billion",5.4000000000000003E-3,4.7000000000000002E-3,4.1999999999999997E-3,3.7000000000000002E-3]
[null,null,"Next  $200 billion",1.5399999999999999E-3,1.3600000000000001E-3,1.1900000000000001E-3,1.07E-3,null,null,null,null,null,null,null,"Next  $200 billion",3.3E-3,2.8999999999999998E-3,2.5999999999999999E-3,2.3E-3]
[null,null,"In excess of $250 billion",5.6999999999999998E-4,5.0000000000000001E-4,4.4000000000000002E-4,3.8999999999999999E-4,null,null,null,null,null,null,null,"In excess of $250 billion",1.1999999999999999E-3,1.1000000000000001E-3,8.9999999999999998E-4,8.0000000000000004E-4]
[]
[null,null,null,"Less developed markets",null,null,null,null,null,null,null,null,null,null,null,"Less developed markets"]
[null,null,null,0.99990000000000001,0.99950000000000006,0.998,0.995,null,null,null,null,null,null,null,null,0.99990000000000001,0.99950000000000006,0.998,0.995]
[null,null,"First $50 billion",3.13E-3,2.7699999999999999E-3,2.4199999999999998E-3,2.1700000000000001E-3,null,null,null,null,null,null,null,"First $50 billion",6.7000000000000002E-3,5.8999999999999999E-3,5.1999999999999998E-3,4.5999999999999999E-3]
[null,null,"Next  $200 billion",1.9300000000000001E-3,1.7099999999999999E-3,1.49E-3,1.33E-3,null,null,null,null,null,null,null,"Next  $200 billion",4.1000000000000003E-3,3.7000000000000002E-3,3.2000000000000002E-3,2.8999999999999998E-3]
[null,null,"In excess of $250 billion",7.1000000000000002E-4,6.3000000000000003E-4,5.5000000000000003E-4,4.8999999999999998E-4,null,null,null,null,null,null,null,"In excess of $250 billion",1.5E-3,1.2999999999999999E-3,1.1999999999999999E-3,1.1000000000000001E-3]
[]
[null,null,null,0.99990000000000001,0.99950000000000006,0.998,0.995]
[null,null,"Pandemic",8.4000000000000003E-4,7.3999999999999999E-4,6.4999999999999997E-4,5.8E-4]
[]
[]
[null,"Life - Variable Annuities Assumptions"]
[]
[null,null,"Minimum Error Factor (e-factor)",0.2]
[]
[]
[]
[null,"Life -Disability risk charges"]
[null,null,null,"Less than $50 million"]
[null,null,null,0.99990000000000001,0.99950000000000006,0.998,0.995]
[null,null,"Non-Cancelable Disability Income",0.72,0.64,0.56000000000000005,0.5]
[null,null,"Other Individual Income",0.504,0.44800000000000001,0.39200000000000002,0.35]
[null,null,"Group Long Term",0.30199999999999999,0.26900000000000002,0.23499999999999999,0.21]
[null,null,"Group Short Term",0.10100000000000001,0.09,7.8E-2,7.0000000000000007E-2]
[null,null,"Credit Monthly O/S balance",0.40300000000000002,0.35799999999999998,0.314,0.28000000000000003]
[null,null,"Credit Single Premium with UPR",0.25900000000000001,0.23,0.20200000000000001,0.18]
[null,null,"Credit Single Premium without UPR",0.25900000000000001,0.23,0.20200000000000001,0.18]
[null,null,"Other Disability Income",0.504,0.44800000000000001,0.39200000000000002,0.35]
[]
[null,null,null,"Greater than $50 million"]
[null,null,null,0.99990000000000001,0.99950000000000006,0.998,0.995]
[null,null,"Non-Cancelable Disability Income",0.30199999999999999,0.26900000000000002,0.23499999999999999,0.21]
[null,null,"Other Individual Income",0.14399999999999999,0.128,0.112,0.1]
[null,null,"Group Long Term",7.1999999999999995E-2,6.4000000000000001E-2,5.6000000000000001E-2,0.05]
[null,null,"Group Short Term",7.1999999999999995E-2,6.4000000000000001E-2,5.6000000000000001E-2,0.05]
[null,null,"Credit Monthly O/S balance",7.1999999999999995E-2,6.4000000000000001E-2,5.6000000000000001E-2,0.05]
[null,null,"Credit Single Premium with UPR",7.1999999999999995E-2,6.4000000000000001E-2,5.6000000000000001E-2,0.05]
[null,null,"Credit Single Premium without UPR",7.1999999999999995E-2,6.4000000000000001E-2,5.6000000000000001E-2,0.05]
[null,null,"Other Disability Income",0.14399999999999999,0.128,0.112,0.1]
[]
[null,null,null,"Reserving Risks"]
[null,null,null,0.99990000000000001,0.99950000000000006,0.998,0.995]
[null,null,"Adjusted",0.13700000000000001,0.122,0.107,9.6000000000000002E-2]
[]
[null,"Life - Long term care risk charges"]
[]
[null,null,null,0.99990000000000001,0.99950000000000006,0.998,0.995]
[null,"Non-US","Liabilities",0.25,0.22,0.19,0.17]
[null,"US","Claims",1.18,1.05,0.91,0.82]
[null,null,"Earned Premiums",0.46,0.41,0.36,0.32]
[null,null,"Claim Reserves",0.14000000000000001,0.13,0.11,0.1]
[]
[]
[null,"Life -Value In Force risk charges"]
[]
[null,null,null,0.99990000000000001,0.99950000000000006,0.998,0.995]
[null,null,"Value In Force (VIF)",0.65,0.55000000000000004,0.45,0.35]
[]
[]
[null,"Long-Term Health Business With Aging Reserves"]
[]
[null,null,null,0.99990000000000001,0.99950000000000006,0.998,0.995]
[null,null,"Net aging reserves",4.1000000000000002E-2,3.5000000000000003E-2,0.03,2.5000000000000001E-2]

{"sheet":"Lists","index":13,"n_rows":37,"n_cols":27,"rows_kept":37,"cut":false,"hidden":true,"merged":[]}
[]
[null,"Sector","Recovery Category","Bond Rating Buckets","ERG Mapped Rating","Reinsurer Rating","Adjustment","Debt Type","Term (years)","Review Type","Units","Adjustment To","TAC Adj Type","Regions","Insurance Sectors","Error Message","Yes/No","IR Exposure Category","Life IR Exposure Risk Category","Mismatch Direction","IR Risk Categories","Duration Mismatch Groups","Reporting Years","Error Check Precision","Nat Cat AEP/OEP","Longevity reserve confidence level","IR Bespoke Duration Mismatch"]
[null,"Non-financial Corporates",1,"AAA",{"$f":"D3","v":"AAA"},"AAA",1,"Secured","Upto 1","Actual","Billions","Market risk","TAC","APAC","Health","ERROR - Check inputs.","Yes","Life","Life","Up",1,"A",2018,5.0000000000000001E-3,"Yes, AEP","Default","Yes, Duration Mismatch"]
[null,"Financials",2,"AA",{"$f":"D4","v":"AA"},"AA",0,"Senior unsecured","1.01 to 5","Forecast","Millions","Nat Cat risk","ACE","EMEA","Life",null,"No","Non-life","Unit Linked with Investment Guarantee","Down",2,"B",{"$f":"W3+1","v":2019},null,"Yes, OEP","70% to less than 80%","Yes, NCMV"]
[null,"Sovereign / Public Finance",3,"A","A","A",-1,"Subordinated","5.01 to 10","Estimate","Thousands","Nat Cat Reinsurance Recoveries",null,"LATAM","Mortgage",null,null,"Unit Linked with Investment Guarantee","Health with aging reserves","Unknown",3,"C",{"$f":"W4+1","v":2020},null,"No","80% to less than 90%","No"]
[null,"Structured Finance - Senior",4,"BBB","BBB","BBB",null,null,"10.01 to 20",null,"Ones","Non-life technical risk",null,"NA","Multi-Line",null,null,"Health with aging reserves","LTC",null,4,"D",2021,null,null,"90% or above"]
[null,"Structured Finance - Mezz.",null,"BB","BB","BB",null,null,"More than 20",null,null,"Life technical risk",null,null,"P&C",null,null,"Capital",null,null,5,"E",2022]
[null,"Structured Finance - Junior",null,"B","B","B",null,null,null,null,null,"Asset risk",null,null,"P&I",null,null,null,null,null,null,"F",2023]
[null,null,null,"CCC-C","CCC","CCC",null,null,null,null,null,"Equity",null,null,"Reinsurance",null,null,null,null,null,null,null,2024]
[null,null,null,null,null,null,null,null,null,null,null,"Real Estate",null,null,"Title",null,null,null,null,null,null,null,2025]
[null,null,null,null,null,null,null,null,null,null,null,"Interest Rate",null,null,null,null,null,null,null,null,null,null,2026]
[null,null,null,null,null,null,null,null,null,null,null,"Credit risk",null,null,null,null,null,null,null,null,null,null,2027]
[null,null,null,null,null,null,null,null,null,null,null,"Liability risk",null,null,null,null,null,null,null,null,null,null,2028]
[null,null,null,null,null,null,null,null,null,null,null,"Mortality",null,null,null,null,null,null,null,null,null,null,2029]
[null,null,null,null,null,null,null,null,null,null,null,"Pandemic",null,null,null,null,null,null,null,null,null,null,2030]
[null,null,null,null,null,null,null,null,null,null,null,"Morbidity",null,null,null,null,null,null,null,null,null,null,2031]
[null,null,null,null,null,null,null,null,null,null,null,"Longevity",null,null,null,null,null,null,null,null,null,null,2032]
[null,null,null,null,null,null,null,null,null,null,null,"Pandemic Reinsurance Recoveries",null,null,null,null,null,null,null,null,null,null,2033]
[null,null,null,null,null,null,null,null,null,null,null,"Other life",null,null,null,null,null,null,null,null,null,null,2034]
[null,null,null,null,null,null,null,null,null,null,null,"Non-life (premium)",null,null,null,null,null,null,null,null,null,null,2035]
[null,null,null,null,null,null,null,null,null,null,null,"Liability(premium)",null,null,null,null,null,null,null,null,null,null,2036]
[null,null,null,null,null,null,null,null,null,null,null,"Property(premium)",null,null,null,null,null,null,null,null,null,null,2037]
[null,null,null,null,null,null,null,null,null,null,null,"Motor(premium)",null,null,null,null,null,null,null,null,null,null,2038]
[null,null,null,null,null,null,null,null,null,null,null,"Financial(premium)",null,null,null,null,null,null,null,null,null,null,2039]
[null,null,null,null,null,null,null,null,null,null,null,"Health(premium)",null,null,null,null,null,null,null,null,null,null,2040]
[null,null,null,null,null,null,null,null,null,null,null,"MAT(premium)"]
[null,null,null,null,null,null,null,null,null,null,null,"Other(premium)"]
[null,null,null,null,null,null,null,null,null,null,null,"Non-life (reserve)"]
[null,null,null,null,null,null,null,null,null,null,null,"Liability(reserve)"]
[null,null,null,null,null,null,null,null,null,null,null,"Property(reserve)"]
[null,null,null,null,null,null,null,null,null,null,null,"Motor(reserve)"]
[null,null,null,null,null,null,null,null,null,null,null,"Financial(reserve)"]
[null,null,null,null,null,null,null,null,null,null,null,"Health(reserve)"]
[null,null,null,null,null,null,null,null,null,null,null,"MAT(reserve)"]
[null,null,null,null,null,null,null,null,null,null,null,"Other(reserve)"]
[null,null,null,null,null,null,null,null,null,null,null,"Other asset risk"]
[null,null,null,null,null,null,null,null,null,null,null,"Other"]

{"sheet":"Countries","index":14,"n_rows":200,"n_cols":10,"rows_kept":200,"cut":false,"hidden":true,"merged":[]}
[]
[null,"GCC State","Eurozone","Nordics","IR Risk related Countries","IR Risk Category","Duration Mismatch Group",null,null,"Domicile Countries"]
[null,"No","No","No","Australia",4,"A",null,null,"Australia"]
[null,"No","Yes","No","Austria",4,"D",null,null,"Austria"]
[null,"Yes","No","No","Bahrain",4,"C",null,null,"Bahrain"]
[null,"No","Yes","No","Belgium",4,"B",null,null,"Belgium"]
[null,"No","No","No","Brazil",5,"D",null,null,"Bermuda"]
[null,"No","No","No","Canada",3,"A",null,null,"Brazil"]
[null,"No","No","No","Chile",4,"D",null,null,"Canada"]
[null,"No","No","No","China",3,"F",null,null,"Chile"]
[null,"No","No","No","Colombia",5,"D",null,null,"China"]
[null,"No","Yes","No","Cyprus",4,"",null,null,"Colombia"]
[null,"No","No","No","Czech Republic",4,"C",null,null,"Cyprus"]
[null,"No","No","Yes","Denmark",4,"D",null,null,"Czech Republic"]
[null,"No","Yes","No","Estonia",4,"",null,null,"Denmark"]
[null,"No","Yes","Yes","Finland",4,"D",null,null,"Estonia"]
[null,"No","Yes","No","France",4,"B",null,null,"Finland"]
[null,"No","Yes","No","Germany",4,"D",null,null,"France"]
[null,"No","Yes","No","Greece",4,"",null,null,"Germany"]
[null,"No","No","No","Hong Kong",3,"C",null,null,"Greece"]
[null,"No","No","Yes","Iceland","","D",null,null,"Hong Kong"]
[null,"No","No","No","India",4,"F",null,null,"Iceland"]
[null,"No","Yes","No","Ireland",4,"",null,null,"India"]
[null,"No","No","No","Israel",4,"D",null,null,"Ireland"]
[null,"No","Yes","No","Italy",4,"B",null,null,"Israel"]
[null,"No","No","No","Japan",1,"E",null,null,"Italy"]
[null,"No","No","No","Kazakhstan",5,"B",null,null,"Japan"]
[null,"No","No","No","Korea, South",4,"E",null,null,"Kazakhstan"]
[null,"Yes","No","No","Kuwait",4,"C",null,null,"Korea, South"]
[null,"No","Yes","No","Latvia",4,"",null,null,"Kuwait"]
[null,"No","Yes","No","Lithuania",4,"",null,null,"Latvia"]
[null,"No","Yes","No","Luxembourg",4,"",null,null,"Lithuania"]
[null,"No","No","No","Malaysia",4,"D",null,null,"Luxembourg"]
[null,"No","Yes","No","Malta",4,"",null,null,"Malaysia"]
[null,"No","No","No","Mexico",4,"C",null,null,"Malta"]
[null,"No","Yes","No","Netherlands",4,"C",null,null,"Mexico"]
[null,"No","No","No","New Zealand",4,"A",null,null,"Netherlands"]
[null,"No","No","Yes","Norway",3,"D",null,null,"New Zealand"]
[null,"Yes","No","No","Oman",4,"C",null,null,"Norway"]
[null,"No","No","No","Poland",5,"D",null,null,"Oman"]
[null,"No","Yes","No","Portugal",4,"A",null,null,"Poland"]
[null,"Yes","No","No","Qatar",4,"C",null,null,"Portugal"]
[null,"No","No","No","Russia",5,"",null,null,"Qatar"]
[null,"Yes","No","No","Saudi Arabia",4,"C",null,null,"Russia"]
[null,"No","No","No","Singapore",3,"C",null,null,"Saudi Arabia"]
[null,"No","Yes","No","Slovakia",4,"",null,null,"Singapore"]
[null,"No","Yes","No","Slovenia",4,"D",null,null,"Slovakia"]
[null,"No","No","No","South Africa",4,"B",null,null,"Slovenia"]
[null,"No","Yes","No","Spain",4,"A",null,null,"South Africa"]
[null,"No","No","Yes","Sweden",3,"D",null,null,"Spain"]
[null,"No","No","No","Switzerland",3,"B",null,null,"Sweden"]
[null,"No","No","No","Taiwan",3,"E",null,null,"Switzerland"]
[null,"No","No","No","Thailand",4,"F",null,null,"Taiwan"]
[null,"Yes","No","No","United Arab Emirates",4,"C",null,null,"Thailand"]
[null,"No","No","No","United Kingdom",4,"A",null,null,"United Arab Emirates"]
[null,"No","No","No","United States of America",4,"A",null,null,"United Kingdom"]
[null,"No","No","No","Afghanistan","","",null,null,"United States of America"]
[null,"No","No","No","Albania","","",null,null,"Afghanistan"]
[null,"No","No","No","Algeria","","",null,null,"Albania"]
[null,"No","No","No","Andorra","","",null,null,"Algeria"]
[null,"No","No","No","Angola","","",null,null,"Andorra"]
[null,"No","No","No","Antigua and Barbuda","","",null,null,"Angola"]
[null,"No","No","No","Argentina","","",null,null,"Antigua and Barbuda"]
[null,"No","No","No","Armenia","","",null,null,"Argentina"]
[null,"No","No","No","Azerbaijan","","",null,null,"Armenia"]
[null,"No","No","No","The Bahamas","","",null,null,"Azerbaijan"]
[null,"No","No","No","Bangladesh","","",null,null,"The Bahamas"]
[null,"No","No","No","Barbados","","",null,null,"Bangladesh"]
[null,"No","No","No","Belarus","","",null,null,"Barbados"]
[null,"No","No","No","Belize","","",null,null,"Belarus"]
[null,"No","No","No","Benin","","",null,null,"Belize"]
[null,"No","No","No","Bhutan","","",null,null,"Benin"]
[null,"No","No","No","Bolivia","","",null,null,"Bhutan"]
[null,"No","No","No","Bosnia and Herzegovina","","",null,null,"Bolivia"]
[null,"No","No","No","Botswana","","",null,null,"Bosnia and Herzegovina"]
[null,"No","No","No","Brunei","","",null,null,"Botswana"]
[null,"No","No","No","Bulgaria","","",null,null,"Brunei"]
[null,"No","No","No","Burkina Faso","","",null,null,"Bulgaria"]
[null,"No","No","No","Burundi","","",null,null,"Burkina Faso"]
[null,"No","No","No","Cambodia","","",null,null,"Burundi"]
[null,"No","No","No","Cameroon","","",null,null,"Cambodia"]
[null,"No","No","No","Cape Verde","","",null,null,"Cameroon"]
[null,"No","No","No","Central African Republic","","",null,null,"Cape Verde"]
[null,"No","No","No","Chad","","",null,null,"Central African Republic"]
[null,"No","No","No","Comoros","","",null,null,"Chad"]
[null,"No","No","No","Congo, Republic of the","","",null,null,"Comoros"]
[null,"No","No","No","Congo, Democratic Republic of the","","",null,null,"Congo, Republic of the"]
[null,"No","No","No","Costa Rica","","",null,null,"Congo, Democratic Republic of the"]
[null,"No","No","No","Cote d'Ivoire","","",null,null,"Costa Rica"]
[null,"No","No","No","Croatia","","",null,null,"Cote d'Ivoire"]
[null,"No","No","No","Cuba","","",null,null,"Croatia"]
[null,"No","No","No","Djibouti","","",null,null,"Cuba"]
[null,"No","No","No","Dominica","","",null,null,"Djibouti"]
[null,"No","No","No","Dominican Republic","","",null,null,"Dominica"]
[null,"No","No","No","East Timor (Timor-Leste)","","",null,null,"Dominican Republic"]
[null,"No","No","No","Ecuador","","",null,null,"East Timor (Timor-Leste)"]
[null,"No","No","No","Egypt","","",null,null,"Ecuador"]
[null,"No","No","No","El Salvador","","",null,null,"Egypt"]
[null,"No","No","No","Equatorial Guinea","","",null,null,"El Salvador"]
[null,"No","No","No","Eritrea","","",null,null,"Equatorial Guinea"]
[null,"No","No","No","Ethiopia","","",null,null,"Eritrea"]
[null,"No","No","No","Fiji","","",null,null,"Ethiopia"]
[null,"No","No","No","Gabon","","",null,null,"Fiji"]
[null,"No","No","No","The Gambia","","",null,null,"Gabon"]
[null,"No","No","No","Georgia","","",null,null,"The Gambia"]
[null,"No","No","No","Ghana","","",null,null,"Georgia"]
[null,"No","No","No","Grenada","","",null,null,"Ghana"]
[null,"No","No","No","Guatemala","","",null,null,"Grenada"]
[null,"No","No","No","Guinea","","",null,null,"Guatemala"]
[null,"No","No","No","Guinea-Bissau","","",null,null,"Guinea"]
[null,"No","No","No","Guyana","","",null,null,"Guinea-Bissau"]
[null,"No","No","No","Haiti","","",null,null,"Guyana"]
[null,"No","No","No","Honduras","","",null,null,"Haiti"]
[null,"No","No","No","Hungary","","",null,null,"Honduras"]
[null,"No","No","No","Indonesia","","",null,null,"Hungary"]
[null,"No","No","No","Iran","","",null,null,"Indonesia"]
[null,"No","No","No","Iraq","","",null,null,"Iran"]
[null,"No","No","No","Jamaica","","",null,null,"Iraq"]
[null,"No","No","No","Jordan","","",null,null,"Jamaica"]
[null,"No","No","No","Kenya","","",null,null,"Jordan"]
[null,"No","No","No","Kiribati","","",null,null,"Kenya"]
[null,"No","No","No","Korea, North","","",null,null,"Kiribati"]
[null,"No","No","No","Kosovo","","",null,null,"Korea, North"]
[null,"No","No","No","Kyrgyzstan","","",null,null,"Kosovo"]
[null,"No","No","No","Laos","","",null,null,"Kyrgyzstan"]
[null,"No","No","No","Lebanon","","",null,null,"Laos"]
[null,"No","No","No","Lesotho","","",null,null,"Lebanon"]
[null,"No","No","No","Liberia","","",null,null,"Lesotho"]
[null,"No","No","No","Libya","","",null,null,"Liberia"]
[null,"No","No","No","Liechtenstein","","",null,null,"Libya"]
[null,"No","No","No","Macedonia","","",null,null,"Liechtenstein"]
[null,"No","No","No","Madagascar","","",null,null,"Macedonia"]
[null,"No","No","No","Malawi","","",null,null,"Madagascar"]
[null,"No","No","No","Maldives","","",null,null,"Malawi"]
[null,"No","No","No","Mali","","",null,null,"Maldives"]
[null,"No","No","No","Marshall Islands","","",null,null,"Mali"]
[null,"No","No","No","Mauritania","","",null,null,"Marshall Islands"]
[null,"No","No","No","Mauritius","","",null,null,"Mauritania"]
[null,"No","No","No","Micronesia, Federated States of","","",null,null,"Mauritius"]
[null,"No","No","No","Moldova","","",null,null,"Micronesia, Federated States of"]
[null,"No","No","No","Monaco","","",null,null,"Moldova"]
[null,"No","No","No","Mongolia","","",null,null,"Monaco"]
[null,"No","No","No","Montenegro","","",null,null,"Mongolia"]
[null,"No","No","No","Morocco","","",null,null,"Montenegro"]
[null,"No","No","No","Mozambique","","",null,null,"Morocco"]
[null,"No","No","No","Myanmar (Burma)","","",null,null,"Mozambique"]
[null,"No","No","No","Namibia","","",null,null,"Myanmar (Burma)"]
[null,"No","No","No","Nauru","","",null,null,"Namibia"]
[null,"No","No","No","Nepal","","",null,null,"Nauru"]
[null,"No","No","No","Nicaragua","","",null,null,"Nepal"]
[null,"No","No","No","Niger","","",null,null,"Nicaragua"]
[null,"No","No","No","Nigeria","","",null,null,"Niger"]
[null,"No","No","No","Pakistan","","",null,null,"Nigeria"]
[null,"No","No","No","Palau","","",null,null,"Pakistan"]
[null,"No","No","No","Panama","","",null,null,"Palau"]
[null,"No","No","No","Papua New Guinea","","",null,null,"Panama"]
[null,"No","No","No","Paraguay","","",null,null,"Papua New Guinea"]
[null,"No","No","No","Peru","","",null,null,"Paraguay"]
[null,"No","No","No","Philippines","","",null,null,"Peru"]
[null,"No","No","No","Romania","","",null,null,"Philippines"]
[null,"No","No","No","Rwanda","","",null,null,"Romania"]
[null,"No","No","No","Saint Kitts and Nevis","","",null,null,"Rwanda"]
[null,"No","No","No","Saint Lucia","","",null,null,"Saint Kitts and Nevis"]
[null,"No","No","No","Saint Vincent and the Grenadines","","",null,null,"Saint Lucia"]
[null,"No","No","No","Samoa","","",null,null,"Saint Vincent and the Grenadines"]
[null,"No","No","No","San Marino","","",null,null,"Samoa"]
[null,"No","No","No","Sao Tome and Principe","","",null,null,"San Marino"]
[null,"No","No","No","Senegal","","",null,null,"Sao Tome and Principe"]
[null,"No","No","No","Serbia","","",null,null,"Senegal"]
[null,"No","No","No","Seychelles","","",null,null,"Serbia"]
[null,"No","No","No","Sierra Leone","","",null,null,"Seychelles"]
[null,"No","No","No","Solomon Islands","","",null,null,"Sierra Leone"]
[null,"No","No","No","Somalia","","",null,null,"Solomon Islands"]
[null,"No","No","No","South Sudan","","",null,null,"Somalia"]
[null,"No","No","No","Sri Lanka","","",null,null,"South Sudan"]
[null,"No","No","No","Sudan","","",null,null,"Sri Lanka"]
[null,"No","No","No","Suriname","","",null,null,"Sudan"]
[null,"No","No","No","Swaziland","","",null,null,"Suriname"]
[null,"No","No","No","Syria","","",null,null,"Swaziland"]
[null,"No","No","No","Tajikistan","","",null,null,"Syria"]
[null,"No","No","No","Tanzania","","",null,null,"Tajikistan"]
[null,"No","No","No","Togo","","",null,null,"Tanzania"]
[null,"No","No","No","Tonga","","",null,null,"Togo"]
[null,"No","No","No","Trinidad and Tobago","","",null,null,"Tonga"]
[null,"No","No","No","Tunisia","","",null,null,"Trinidad and Tobago"]
[null,"No","No","No","Turkey","","",null,null,"Tunisia"]
[null,"No","No","No","Turkmenistan","","",null,null,"Turkey"]
[null,"No","No","No","Tuvalu","","",null,null,"Turkmenistan"]
[null,"No","No","No","Uganda","","",null,null,"Tuvalu"]
[null,"No","No","No","Ukraine","","",null,null,"Uganda"]
[null,"No","No","No","Uruguay","","",null,null,"Ukraine"]
[null,"No","No","No","Uzbekistan","","",null,null,"Uruguay"]
[null,"No","No","No","Vanuatu","","",null,null,"Uzbekistan"]
[null,"No","No","No","Vatican City (Holy See)","","",null,null,"Vanuatu"]
[null,"No","No","No","Venezuela","","",null,null,"Vatican City (Holy See)"]
[null,"No","No","No","Vietnam","","",null,null,"Venezuela"]
[null,"No","No","No","Yemen","","",null,null,"Vietnam"]
[null,"No","No","No","Zambia","","",null,null,"Yemen"]
[null,"No","No","No","Zimbabwe","","",null,null,"Zambia"]
[null,null,null,null,null,null,null,null,null,"Zimbabwe"]

{"sheet":"Currencies","index":15,"n_rows":164,"n_cols":3,"rows_kept":164,"cut":false,"hidden":true,"merged":[]}
[]
[null,"Currency Code","Currency Description"]
[null,"AED","UAE Dirham"]
[null,"AFN","Afghani"]
[null,"ALL","Lek"]
[null,"AMD","Armenian Dram"]
[null,"ANG","Netherlands Antillean Guilder"]
[null,"AOA","Kwanza"]
[null,"ARS","Argentine Peso"]
[null,"AUD","Australian Dollar"]
[null,"AWG","Aruban Florin"]
[null,"AZN","Azerbaijan Manat"]
[null,"BAM","Convertible Mark"]
[null,"BBD","Barbados Dollar"]
[null,"BDT","Taka"]
[null,"BGN","Bulgarian Lev"]
[null,"BHD","Bahraini Dinar"]
[null,"BIF","Burundi Franc"]
[null,"BMD","Bermudian Dollar"]
[null,"BND","Brunei Dollar"]
[null,"BOB","Boliviano"]
[null,"BOV","Mvdol"]
[null,"BRL","Brazilian Real"]
[null,"BSD","Bahamian Dollar"]
[null,"BTN","Ngultrum"]
[null,"BWP","Pula"]
[null,"BYN","Belarusian Ruble"]
[null,"BZD","Belize Dollar"]
[null,"CAD","Canadian Dollar"]
[null,"CDF","Congolese Franc"]
[null,"CHE","WIR Euro"]
[null,"CHF","Swiss Franc"]
[null,"CHW","WIR Franc"]
[null,"CLF","Unidad de Fomento"]
[null,"CLP","Chilean Peso"]
[null,"CNY","Yuan Renminbi"]
[null,"COP","Colombian Peso"]
[null,"COU","Unidad de Valor Real"]
[null,"CRC","Costa Rican Colon"]
[null,"CUC","Peso Convertible"]
[null,"CUP","Cuban Peso"]
[null,"CVE","Cabo Verde Escudo"]
[null,"CZK","Czech Koruna"]
[null,"DJF","Djibouti Franc"]
[null,"DKK","Danish Krone"]
[null,"DOP","Dominican Peso"]
[null,"DZD","Algerian Dinar"]
[null,"EGP","Egyptian Pound"]
[null,"ERN","Nakfa"]
[null,"ETB","Ethiopian Birr"]
[null,"EUR","Euro"]
[null,"FJD","Fiji Dollar"]
[null,"FKP","Falkland Islands Pound"]
[null,"GBP","Pound Sterling"]
[null,"GEL","Lari"]
[null,"GHS","Ghana Cedi"]
[null,"GIP","Gibraltar Pound"]
[null,"GMD","Dalasi"]
[null,"GNF","Guinean Franc"]
[null,"GTQ","Quetzal"]
[null,"GYD","Guyana Dollar"]
[null,"HKD","Hong Kong Dollar"]
[null,"HNL","Lempira"]
[null,"HRK","Kuna"]
[null,"HTG","Gourde"]
[null,"HUF","Forint"]
[null,"IDR","Rupiah"]
[null,"ILS","New Israeli Sheqel"]
[null,"INR","Indian Rupee"]
[null,"IQD","Iraqi Dinar"]
[null,"IRR","Iranian Rial"]
[null,"ISK","Iceland Krona"]
[null,"JMD","Jamaican Dollar"]
[null,"JOD","Jordanian Dinar"]
[null,"JPY","Yen"]
[null,"KES","Kenyan Shilling"]
[null,"KGS","Som"]
[null,"KHR","Riel"]
[null,"KMF","Comorian Franc"]
[null,"KPW","North Korean Won"]
[null,"KRW","Won"]
[null,"KWD","Kuwaiti Dinar"]
[null,"KYD","Cayman Islands Dollar"]
[null,"KZT","Tenge"]
[null,"LAK","Lao Kip"]
[null,"LBP","Lebanese Pound"]
[null,"LKR","Sri Lanka Rupee"]
[null,"LRD","Liberian Dollar"]
[null,"LSL","Loti"]
[null,"LYD","Libyan Dinar"]
[null,"MAD","Moroccan Dirham"]
[null,"MDL","Moldovan Leu"]
[null,"MGA","Malagasy Ariary"]
[null,"MKD","Denar"]
[null,"MMK","Kyat"]
[null,"MNT","Tugrik"]
[null,"MOP","Pataca"]
[null,"MRU","Ouguiya"]
[null,"MUR","Mauritius Rupee"]
[null,"MVR","Rufiyaa"]
[null,"MWK","Malawi Kwacha"]
[null,"MXN","Mexican Peso"]
[null,"MXV","Mexican Unidad de Inversion (UDI)"]
[null,"MYR","Malaysian Ringgit"]
[null,"MZN","Mozambique Metical"]
[null,"NAD","Namibia Dollar"]
[null,"NGN","Naira"]
[null,"NIO","Cordoba Oro"]
[null,"NOK","Norwegian Krone"]
[null,"NPR","Nepalese Rupee"]
[null,"NZD","New Zealand Dollar"]
[null,"OMR","Rial Omani"]
[null,"PAB","Balboa"]
[null,"PEN","Sol"]
[null,"PGK","Kina"]
[null,"PHP","Philippine Peso"]
[null,"PKR","Pakistan Rupee"]
[null,"PLN","Zloty"]
[null,"PYG","Guarani"]
[null,"QAR","Qatari Rial"]
[null,"RON","Romanian Leu"]
[null,"RSD","Serbian Dinar"]
[null,"RUB","Russian Ruble"]
[null,"RWF","Rwanda Franc"]
[null,"SAR","Saudi Riyal"]
[null,"SBD","Solomon Islands Dollar"]
[null,"SCR","Seychelles Rupee"]
[null,"SDG","Sudanese Pound"]
[null,"SEK","Swedish Krona"]
[null,"SGD","Singapore Dollar"]
[null,"SHP","Saint Helena Pound"]
[null,"SLL","Leone"]
[null,"SOS","Somali Shilling"]
[null,"SRD","Surinam Dollar"]
[null,"SSP","South Sudanese Pound"]
[null,"STN","Dobra"]
[null,"SVC","El Salvador Colon"]
[null,"SYP","Syrian Pound"]
[null,"SZL","Lilangeni"]
[null,"THB","Baht"]
[null,"TJS","Somoni"]
[null,"TMT","Turkmenistan New Manat"]
[null,"TND","Tunisian Dinar"]
[null,"TOP","Pa'anga"]
[null,"TRY","Turkish Lira"]
[null,"TTD","Trinidad and Tobago Dollar"]
[null,"TWD","New Taiwan Dollar"]
[null,"TZS","Tanzanian Shilling"]
[null,"UAH","Hryvnia"]
[null,"UGX","Uganda Shilling"]
[null,"USD","US Dollar"]
[null,"UYI","Uruguay Peso en Unidades Indexadas (UI)"]
[null,"UYU","Peso Uruguayo"]
[null,"UYW","Unidad Previsional"]
[null,"UZS","Uzbekistan Sum"]
[null,"VES","BolÃ­var Soberano"]
[null,"VND","Dong"]
[null,"VUV","Vatu"]
[null,"WST","Tala"]
[null,"XSU","Sucre"]
[null,"YER","Yemeni Rial"]
[null,"ZAR","Rand"]
[null,"ZMW","Zambian Kwacha"]
[null,"ZWL","Zimbabwe Dollar"]

{"sheet":"Data storage","index":16,"n_rows":20001,"n_cols":43,"rows_kept":20001,"cut":false,"hidden":true,"merged":[]}
["server address","entities service",null,"years service",null,"scenarios service",null,"versions service",null,null,"model data service","model data service2","init service","save service","reference entities service",null,null,null,null,null,null,"exchange rates service",null,null,"exchange rates service2",null,null,"exchange rates service3",null,null,null,null,null,null,"request headers service",null,null,null,"Non-blank entities","Non-blank years","Non-blank files","Non-blank versions","Non-blank reference entities"]
[{"$f":"base_url_prod","v":"https://lrsc.pde.spratingsvpc.com/icm-du-api-prod/"},"get_entities",null,"get_analysis_years",null,"get_scenarios",null,"get_versions",null,null,"get_model_data_by_scenario","get_model_data_by_key","init_package","save_model_data","get_entity_list_cmp",null,null,null,null,null,null,"get_fx_rates",null,null,"get_fx_rates_latest",null,null,"get_fx_rates_year_avg",null,null,null,null,null,null,"get_request_headers",null,null,null,{"$f":"IFERROR(_xlfn._xlws.FILTER(lov_entities, lov_entities <> \"\"),\"\")","v":""},{"$f":"IFERROR(_xlfn._xlws.FILTER(lov_years, lov_years <> \"\"),\"\")","v":""},{"$f":"IFERROR(_xlfn._xlws.FILTER(lov_scenarios, lov_scenarios <> \"\"),\"\")","v":""},{"$f":"IFERROR(_xlfn._xlws.FILTER(lov_file_versions,lov_file_versions<>\"\"),\"\")","v":""},{"$f":"IFERROR(_xlfn._xlws.FILTER(lov_reference_entities, lov_reference_entities <> \"\"),\"\")","v":""}]
[null,"entities url",null,"years url",null,"scenarios url",null,"versions url",null,null,"model data url","model data url2","init url","save url","reference entities url",null,null,null,null,null,null,"fx rates url",null,null,"fx rates url2",null,null,"fx rates url3",null,null,null,null,null,null,"request headers url"]
[null,{"$f":"CONCATENATE(server_address,entities_service,\"?country=\",selected_domicile,\"&sector=\",selected_sector,\"&user=\",IF(selected_my_records_only=\"Yes\",get_useR(),\"\"),\"&partial_name=\",URLEncode(selected_partial_name))","v":"https://lrsc.pde.spratingsvpc.com/icm-du-api-prod/get_entities?country=&sector=&user=&partial_name="},null,{"$f":"CONCATENATE(server_address,years_service,\"?entity_name=\",URLEncode(selected_entity))","v":"https://lrsc.pde.spratingsvpc.com/icm-du-api-prod/get_analysis_years?entity_name="},null,{"$f":"CONCATENATE(server_address,scenarios_service,\"?entity_name=\",URLEncode(selected_entity),\"&analysis_year=\",selected_reporting_year2)","v":"https://lrsc.pde.spratingsvpc.com/icm-du-api-prod/get_scenarios?entity_name=&analysis_year="},null,{"$f":"CONCATENATE(server_address,versions_service,\"?entity_name=\",URLEncode(selected_entity),\"&analysis_year=\",selected_reporting_year2,\"&scenario=\",URLEncode((selected_scenario)))","v":"https://lrsc.pde.spratingsvpc.com/icm-du-api-prod/get_versions?entity_name=&analysis_year=&scenario="},null,null,{"$f":"CONCATENATE(server_address,model_data_service,\"?entity_name=\",URLEncode(selected_entity),\"&analysis_year=\",selected_reporting_year2,\"&scenario=\",URLEncode((selected_scenario)))","v":"https://lrsc.pde.spratingsvpc.com/icm-du-api-prod/get_model_data_by_scenario?entity_name=&analysis_year=&scenario="},{"$f":"CONCATENATE(server_address,model_data_service2,\"?key=\",selected_key)","v":"https://lrsc.pde.spratingsvpc.com/icm-du-api-prod/get_model_data_by_key?key="},{"$f":"CONCATENATE(server_address,init_service,\"?model_id=\",model_id, \"&model_version=\",model_version)","v":"https://lrsc.pde.spratingsvpc.com/icm-du-api-prod/init_package?model_id=1125&model_version=3"},{"$f":"CONCATENATE(server_address,save_service)","v":"https://lrsc.pde.spratingsvpc.com/icm-du-api-prod/save_model_data"},{"$f":"CONCATENATE(server_address,reference_entities_service,\"?dept_no=210&partial_entity_name=\",URLEncode(selected_reference_partial_entity_name),\"&partial_analyst_name=\",selected_reference_partial_analyst_name)","v":"https://lrsc.pde.spratingsvpc.com/icm-du-api-prod/get_entity_list_cmp?dept_no=210&partial_entity_name=&partial_analyst_name="},null,null,null,null,null,null,{"$f":"CONCATENATE(server_address,exchange_rates_service,\"?target=\",inp_summary_currency,\"&from=\",TEXT(inp_year_end, \"YYYY-MM-DD\"))","v":"https://lrsc.pde.spratingsvpc.com/icm-du-api-prod/get_fx_rates?target=USD&from=1900-01-00"},null,null,{"$f":"CONCATENATE(server_address,exchange_rates_service2,\"?target=\",inp_summary_currency,\"&yr=\", inp_reporting_year)","v":"https://lrsc.pde.spratingsvpc.com/icm-du-api-prod/get_fx_rates_latest?target=USD&yr="},null,null,{"$f":"CONCATENATE(server_address,exchange_rates_service3,\"?target=\",inp_summary_currency,\"&yr=\", inp_reporting_year)","v":"https://lrsc.pde.spratingsvpc.com/icm-du-api-prod/get_fx_rates_year_avg?target=USD&yr="},null,null,null,null,null,null,{"$f":"CONCATENATE(server_address,request_headers_service)","v":"https://lrsc.pde.spratingsvpc.com/icm-du-api-prod/get_request_headers"}]
[]
[]
["model_id"]
[1125]
["model_version"]
[3]
["record status"]
["Scenario"]
["Development base URL"]
["https://rscm.dev.spratingsvpc.com/icm-du-api-dev-v3/"]
["Produciton base URL"]
["https://lrsc.pde.spratingsvpc.com/icm-du-api-prod/"]
[]
[]
[]
[]
[]
[]
[]
[]
[]
[]
[]
[]
[]
[]
[]
[]
[]
[]
[]
[]
[]
[]
[]
[]
[]
[]
[]
[]
[]
[]
[]
[]
[]
[]
[]
[]
[]
[]
[]
[]
[]
[]
[]
[]
[]
[]
[]
[]
[]
[]
[]
[]
[]
[]
[]
[]
[]
[]
[]
[]
[]
[]
[]
[]
[]
[]
[]
[]
[]
[]
[]
[]
[]
[]
[]
[]
[]
[]
[]
[]
[]
[]
[]
[]
[]
[]
[]
[]
[]
[]
[]
[]
[]
[]
[]
[]
[]
[]
[]
[]
[]
[]
[]
[]
[]
[]
[]
[]
[]
[]
[]
[]
[]
[]
[]
[]
[]
[]
[]
[]
[]
[]
[]
[]
[]
[]
[]
[]
[]
[]
[]
[]
[]
[]
[]
[]
[]
[]
[]
[]
[]
[]
[]
[]
[]
[]
[]
[]
[]
[]
[]
[]
[]
[]
[]
[]
[]
[]
[]
[]
[]
[]
[]
[]
[]
[]
[]
[]
[]
[]
[]
[]
[]
[]
[]
[]
[]
[]
[]
[]
[]
[]
[]
[]
[]
[]
[]
[]
[]
[]
[]
[]
[]
[]
[]
[]
[]
[]
[]
[]
[]
[]
[]
[]
[]
[]
[]
[]
[]
[]
[]
[]
[]
[]
[]
[]
[]
[]
[]
[]
[]
[]
[]
[]
[]
[]
[]
[]
[]
[]
[]
[]
[]
[]
[]
[]
[]
[]
[]
[]
[]
[]
[]
[]
[]
[]
[]
[]
[]
[]
[]
[]
[]
[]
[]
[]
[]
[]
[]
[]
[]
[]
[]
[]
[]
[]
[]
[]
[]
[]
[]
[]
[]
[]
[]
[]
[]
[]
[]
[]
[]
[]
[]
[]
[]
[]
[]
[]
[]
[]
[]
[]
[]
[]
[]
[]
[]
[]
[]
[]
[]
[]
[]
[]
[]
[]
[]
[]
[]
[]
[]
[]
[]
[]
[]
[]
[]
[]
[]
[]
[]
[]
[]
[]
[]
[]
[]
[]
[]
[]
[]
[]
[]
[]
[]
[]
[]
[]
[]
[]
[]
[]
[]
[]
[]
[]
[]
[]
[]
[]
[]
[]
[]
[]
[]
[]
[]
[]
[]
[]
[]
[]
[]
[]
[]
[]
[]
[]
[]
[]
[]
[]
[]
[]
[]
[]
[]
[]
[]
[]
[]
[]
[]
[]
[]
[]
[]
[]
[]
[]
[]
[]
[]
[]
[]
[]
[]
[]
[]
[]
[]
[]
[]
[]
[]
[]
[]
[]
[]
[]
[]
[]
[]
[]
[]
[]
[]
[]
[]
[]
[]
[]
[]
[]
[]
[]
[]
[]
[]
[]
[]
[]
[]
[]
[]
[]
[]
[]
[]
[]
[]
[]
[]
[]
[]
[]
[]
[]
[]
[]
[]
[]
[]
[]
[]
[]
[]
[]
[]
[]
[]
[]
[]
[]
[]
[]
[]
[]
[]
[]
[]
[]
[]
[]
[]
[]
[]
[]
[]
[]
[]
[]
[]
[]
[]
[]
[]
[]
[]
[]
[]
[]
[]
[]
[]
[]
[]
[]
[]
[]
[]
[]
[]
[]
[]
[]
[]
[]
[]
[]
[]
[]
[]
[]
[]
[]
[]
[]
[]
[]
[]
[]
[]
[]
[]
[]
[]
[]
[]
[]
[]
[]
[]
[]
[]
[]
[]
[]
[]
[]
[]
[]
[]
[]
[]
[]
[]
[]
[]
[]
[]
[]
[]
[]
[]
[]
[]
[]
[]
[]
[]
[]
[]
[]
[]
[]
[]
[]
[]
[]
[]
[]
[]
[]
[]
[]
[]
[]
[]
[]
[]
[]
[]
[]
[]
[]
[]
[]
[]
[]
[]
[]
[]
[]
[]
[]
[]
[]
[]
[]
[]
[]
[]
[]
[]
[]
[]
[]
[]
[]
[]
[]
[]
[]
[]
[]
[]
[]
[]
[]
[]
[]
[]
[]
[]
[]
[]
[]
[]
[]
[]
[]
[]
[]
[]
[]
[]
[]
[]
[]
[]
[]
[]
[]
[]
[]
[]
[]
[]
[]
[]
[]
[]
[]
[]
[]
[]
[]
[]
[]
[]
[]
[]
[]
[]
[]
[]
[]
[]
[]
[]
[]
[]
[]
[]
[]
[]
[]
[]
[]
[]
[]
[]
[]
[]
[]
[]
[]
[]
[]
[]
[]
[]
[]
[]
[]
[]
[]
[]
[]
[]
[]
[]
[]
[]
[]
[]
[]
[]
[]
[]
[]
[]
[]
[]
[]
[]
[]
[]
[]
[]
[]
[]
[]
[]
[]
[]
[]
[]
[]
[]
[]
[]
[]
[]
[]
[]
[]
[]
[]
[]
[]
[]
[]
[]
[]
[]
[]
[]
[]
[]
[]
[]
[]
[]
[]
[]
[]
[]
[]
[]
[]
[]
[]
[]
[]
[]
[]
[]
[]
[]
[]
[]
[]
[]
[]
[]
[]
[]
[]
[]
[]
[]
[]
[]
[]
[]
[]
[]
[]
[]
[]
[]
[]
[]
[]
[]
[]
[]
[]
[]
[]
[]
[]
[]
[]
[]
[]
[]
[]
[]
[]
[]
[]
[]
[]
[]
[]
[]
[]
[]
[]
[]
[]
[]
[]
[]
[]
[]
[]
[]
[]
[]
[]
[]
[]
[]
[]
[]
[]
[]
[]
[]
[]
[]
[]
[]
[]
[]
[]
[]
[]
[]
[]
[]
[]
[]
[]
[]
[]
[]
[]
[]
[]
[]
[]
[]
[]
[]
[]
[]
[]
[]
[]
[]
[]
[]
[]
[]
[]
[]
[]
[]
[]
[]
[]
[]
[]
[]
[]
[]
[]
[]
[]
[]
[]
[]
[]
[]
[]
[]
[]
[]
[]
[]
[]
[]
[]
[]
[]
[]
[]
[]
[]
[]
[]
[]
[]
[]
[]
[]
[]
[]
[]
[]
[]
[]
[]
[]
[]
[]
[]
[]
[]
[]
[]
[]
[]
[]
[]
[]
[]
[]
[]
[]
[]
[]
[]
[]
[]
[]
[]
[]
[]
[]
[]
[]
[]
[]
[]
[]
[]
[]
[]
[]
[]
[]
[]
[]
[]
[]
[]
[]
[]
[]
[]
[]
[]
[]
[]
[]
[]
[]
[]
[]
[]
[]
[]
[]
[]
[]
[]
[]
[]
[]
[]
[]
[]
[]
[]
[]
[]
[]
[]
[]
[]
[]
[]
[]
[]
[]
[]
[]
[]
[]
[]
[]
[]
[]
[]
[]
[]
[]
[]
[]
[]
[]
[]
[]
[]
[]
[]
[]
[]
[]
[]
[]
[]
[]
[]
[]
[]
[]
[]
[]
[]
[]
[]
[]
[]
[]
[]
[]
[]
[]
[]
[]
[]
[]
[]
[]
[]
[]
[]
[]
[]
[]
[]
[]
[]
[]
[]
[]
[]
[]
[]
[]
[]
[]
[]
[]
[]
[]
[]
[]
[]
[]
[]
[]
[]
[]
[]
[]
[]
[]
[]
[]
[]
[]
[]
[]
[]
[]
[]
[]
[]
[]
[]
[]
[]
[]
[]
[]
[]
[]
[]
[]
[]
[]
[]
[]
[]
[]
[]
[]
[]
[]
[]
[]
[]
[]
[]
[]
[]
[]
[]
[]
[]
[]
[]
[]
[]
[]
[]
[]
[]
[]
[]
[]
[]
[]
[]
[]
[]
[]
[]
[]
[]
[]
[]
[]
[]
[]
[]
[]
[]
[]
[]
[]
[]
[]
[]
[]
[]
[]
[]
[]
[]
[]
[]
[]
[]
[]
[]
[]
[]
[]
[]
[]
[]
[]
[]
[]
[]
[]
[]
[]
[]
[]
[]
[]
[]
[]
[]
[]
[]
[]
[]
[]
[]
[]
[]
[]
[]
[]
[]
[]
[]
[]
[]
[]
[]
[]
[]
[]
[]
[]
[]
[]
[]
[]
[]
[]
[]
[]
[]
[]
[]
[]
[]
[]
[]
[]
[]
[]
[]
[]
[]
[]
[]
[]
[]
[]
[]
[]
[]
[]
[]
[]
[]
[]
[]
[]
[]
[]
[]
[]
[]
[]
[]
[]
[]
[]
[]
[]
[]
[]
[]
[]
[]
[]
[]
[]
[]
[]
[]
[]
[]
[]
[]
[]
[]
[]
[]
[]
[]
[]
[]
[]
[]
[]
[]
[]
[]
[]
[]
[]
[]
[]
[]
[]
[]
[]
[]
[]
[]
[]
[]
[]
[]
[]
[]
[]
[]
[]
[]
[]
[]
[]
[]
[]
[]
[]
[]
[]
[]
[]
[]
[]
[]
[]
[]
[]
[]
[]
[]
[]
[]
[]
[]
[]
[]
[]
[]
[]
[]
[]
[]
[]
[]
[]
[]
[]
[]
[]
[]
[]
[]
[]
[]
[]
[]
[]
[]
[]
[]
[]
[]
[]
[]
[]
[]
[]
[]
[]
[]
[]
[]
[]
[]
[]
[]
[]
[]
[]
[]
[]
[]
[]
[]
[]
[]
[]
[]
[]
[]
[]
[]
[]
[]
[]
[]
[]
[]
[]
[]
[]
[]
[]
[]
[]
[]
[]
[]
[]
[]
[]
[]
[]
[]
[]
[]
[]
[]
[]
[]
[]
[]
[]
[]
[]
[]
[]
[]
[]
[]
[]
[]
[]
[]
[]
[]
[]
[]
[]
[]
[]
[]
[]
[]
[]
[]
[]
[]
[]
[]
[]
[]
[]
[]
[]
[]
[]
[]
[]
[]
[]
[]
[]
[]
[]
[]
[]
[]
[]
[]
[]
[]
[]
[]
[]
[]
[]
[]
[]
[]
[]
[]
[]
[]
[]
[]
[]
[]
[]
[]
[]
[]
[]
[]
[]
[]
[]
[]
[]
[]
[]
[]
[]
[]
[]
[]
[]
[]
[]
[]
[]
[]
[]
[]
[]
[]
[]
[]
[]
[]
[]
[]
[]
[]
[]
[]
[]
[]
[]
[]
[]
[]
[]
[]
[]
[]
[]
[]
[]
[]
[]
[]
[]
[]
[]
[]
[]
[]
[]
[]
[]
[]
[]
[]
[]
[]
[]
[]
[]
[]
[]
[]
[]
[]
[]
[]
[]
[]
[]
[]
[]
[]
[]
[]
[]
[]
[]
[]
[]
[]
[]
[]
[]
[]
[]
[]
[]
[]
[]
[]
[]
[]
[]
[]
[]
[]
[]
[]
[]
[]
[]
[]
[]
[]
[]
[]
[]
[]
[]
[]
[]
[]
[]
[]
[]
[]
[]
[]
[]
[]
[]
[]
[]
[]
[]
[]
[]
[]
[]
[]
[]
[]
[]
[]
[]
[]
[]
[]
[]
[]
[]
[]
[]
[]
[]
[]
[]
[]
[]
[]
[]
[]
[]
[]
[]
[]
[]
[]
[]
[]
[]
[]
[]
[]
[]
[]
[]
[]
[]
[]
[]
[]
[]
[]
[]
[]
[]
[]
[]
[]
[]
[]
[]
[]
[]
[]
[]
[]
[]
[]
[]
[]
[]
[]
[]
[]
[]
[]
[]
[]
[]
[]
[]
[]
[]
[]
[]
[]
[]
[]
[]
[]
[]
[]
[]
[]
[]
[]
[]
[]
[]
[]
[]
[]
[]
[]
[]
[]
[]
[]
[]
[]
[]
[]
[]
[]
[]
[]
[]
[]
[]
[]
[]
[]
[]
[]
[]
[]
[]
[]
[]
[]
[]
[]
[]
[]
[]
[]
[]
[]
[]
[]
[]
[]
[]
[]
[]
[]
[]
[]
[]
[]
[]
[]
[]
[]
[]
[]
[]
[]
[]
[]
[]
[]
[]
[]
[]
[]
[]
[]
[]
[]
[]
[]
[]
[]
[]
[]
[]
[]
[]
[]
[]
[]
[]
[]
[]
[]
[]
[]
[]
[]
[]
[]
[]
[]
[]
[]
[]
[]
[]
[]
[]
[]
[]
[]
[]
[]
[]
[]
[]
[]
[]
[]
[]
[]
[]
[]
[]
[]
[]
[]
[]
[]
[]
[]
[]
[]
[]
[]
[]
[]
[]
[]
[]
[]
[]
[]
[]
[]
[]
[]
[]
[]
[]
[]
[]
[]
[]
[]
[]
[]
[]
[]
[]
[]
[]
[]
[]
[]
[]
[]
[]
[]
[]
[]
[]
[]
[]
[]
[]
[]
[]
[]
[]
[]
[]
[]
[]
[]
[]
[]
[]
[]
[]
[]
[]
[]
[]
[]
[]
[]
[]
[]
[]
[]
[]
[]
[]
[]
[]
[]
[]
[]
[]
[]
[]
[]
[]
[]
[]
[]
[]
[]
[]
[]
[]
[]
[]
[]
[]
[]
[]
[]
[]
[]
[]
[]
[]
[]
[]
[]
[]
[]
[]
[]
[]
[]
[]
[]
[]
[]
[]
[]
[]
[]
[]
[]
[]
[]
[]
[]
[]
[]
[]
[]
[]
[]
[]
[]
[]
[]
[]
[]
[]
[]
[]
[]
[]
[]
[]
[]
[]
[]
[]
[]
[]
[]
[]
[]
[]
[]
[]
[]
[]
[]
[]
[]
[]
[]
[]
[]
[]
[]
[]
[]
[]
[]
[]
[]
[]
[]
[]
[]
[]
[]
[]
[]
[]
[]
[]
[]
[]
[]
[]
[]
[]
[]
[]
[]
[]
[]
[]
[]
[]
[]
[]
[]
[]
[]
[]
[]
[]
[]
[]
[]
[]
[]
[]
[]
[]
[]
[]
[]
[]
[]
[]
[]
[]
[]
[]
[]
[]
[]
[]
[]
[]
[]
[]
[]
[]
[]
[]
[]
[]
[]
[]
[]
[]
[]
[]
[]
[]
[]
[]
[]
[]
[]
[]
[]
[]
[]
[]
[]
[]
[]
[]
[]
[]
[]
[]
[]
[]
[]
[]
[]
[]
[]
[]
[]
[]
[]
[]
[]
[]
[]
[]
[]
[]
[]
[]
[]
[]
[]
[]
[]
[]
[]
[]
[]
[]
[]
[]
[]
[]
[]
[]
[]
[]
[]
[]
[]
[]
[]
[]
[]
[]
[]
[]
[]
[]
[]
[]
[]
[]
[]
[]
[]
[]
[]
[]
[]
[]
[]
[]
[]
[]
[]
[]
[]
[]
[]
[]
[]
[]
[]
[]
[]
[]
[]
[]
[]
[]
[]
[]
[]
[]
[]
[]
[]
[]
[]
[]
[]
[]
[]
[]
[]
[]
[]
[]
[]
[]
[]
[]
[]
[]
[]
[]
[]
[]
[]
[]
[]
[]
[]
[]
[]
[]
[]
[]
[]
[]
[]
[]
[]
[]
[]
[]
[]
[]
[]
[]
[]
[]
[]
[]
[]
[]
[]
[]
[]
[]
[]
[]
[]
[]
[]
[]
[]
[]
[]
[]
[]
[]
[]
[]
[]
[]
[]
[]
[]
[]
[]
[]
[]
[]
[]
[]
[]
[]
[]
[]
[]
[]
[]
[]
[]
[]
[]
[]
[]
[]
[]
[]
[]
[]
[]
[]
[]
[]
[]
[]
[]
[]
[]
[]
[]
[]
[]
[]
[]
[]
[]
[]
[]
[]
[]
[]
[]
[]
[]
[]
[]
[]
[]
[]
[]
[]
[]
[]
[]
[]
[]
[]
[]
[]
[]
[]
[]
[]
[]
[]
[]
[]
[]
[]
[]
[]
[]
[]
[]
[]
[]
[]
[]
[]
[]
[]
[]
[]
[]
[]
[]
[]
[]
[]
[]
[]
[]
[]
[]
[]
[]
[]
[]
[]
[]
[]
[]
[]
[]
[]
[]
[]
[]
[]
[]
[]
[]
[]
[]
[]
[]
[]
[]
[]
[]
[]
[]
[]
[]
[]
[]
[]
[]
[]
[]
[]
[]
[]
[]
[]
[]
[]
[]
[]
[]
[]
[]
[]
[]
[]
[]
[]
[]
[]
[]
[]
[]
[]
[]
[]
[]
[]
[]
[]
[]
[]
[]
[]
[]
[]
[]
[]
[]
[]
[]
[]
[]
[]
[]
[]
[]
[]
[]
[]
[]
[]
[]
[]
[]
[]
[]
[]
[]
[]
[]
[]
[]
[]
[]
[]
[]
[]
[]
[]
[]
[]
[]
[]
[]
[]
[]
[]
[]
[]
[]
[]
[]
[]
[]
[]
[]
[]
[]
[]
[]
[]
[]
[]
[]
[]
[]
[]
[]
[]
[]
[]
[]
[]
[]
[]
[]
[]
[]
[]
[]
[]
[]
[]
[]
[]
[]
[]
[]
[]
[]
[]
[]
[]
[]
[]
[]
[]
[]
[]
[]
[]
[]
[]
[]
[]
[]
[]
[]
[]
[]
[]
[]
[]
[]
[]
[]
[]
[]
[]
[]
[]
[]
[]
[]
[]
[]
[]
[]
[]
[]
[]
[]
[]
[]
[]
[]
[]
[]
[]
[]
[]
[]
[]
[]
[]
[]
[]
[]
[]
[]
[]
[]
[]
[]
[]
[]
[]
[]
[]
[]
[]
[]
[]
[]
[]
[]
[]
[]
[]
[]
[]
[]
[]
[]
[]
[]
[]
[]
[]
[]
[]
[]
[]
[]
[]
[]
[]
[]
[]
[]
[]
[]
[]
[]
[]
[]
[]
[]
[]
[]
[]
[]
[]
[]
[]
[]
[]
[]
[]
[]
[]
[]
[]
[]
[]
[]
[]
[]
[]
[]
[]
[]
[]
[]
[]
[]
[]
[]
[]
[]
[]
[]
[]
[]
[]
[]
[]
[]
[]
[]
[]
[]
[]
[]
[]
[]
[]
[]
[]
[]
[]
[]
[]
[]
[]
[]
[]
[]
[]
[]
[]
[]
[]
[]
[]
[]
[]
[]
[]
[]
[]
[]
[]
[]
[]
[]
[]
[]
[]
[]
[]
[]
[]
[]
[]
[]
[]
[]
[]
[]
[]
[]
[]
[]
[]
[]
[]
[]
[]
[]
[]
[]
[]
[]
[]
[]
[]
[]
[]
[]
[]
[]
[]
[]
[]
[]
[]
[]
[]
[]
[]
[]
[]
[]
[]
[]
[]
[]
[]
[]
[]
[]
[]
[]
[]
[]
[]
[]
[]
[]
[]
[]
[]
[]
[]
[]
[]
[]
[]
[]
[]
[]
[]
[]
[]
[]
[]
[]
[]
[]
[]
[]
[]
[]
[]
[]
[]
[]
[]
[]
[]
[]
[]
[]
[]
[]
[]
[]
[]
[]
[]
[]
[]
[]
[]
[]
[]
[]
[]
[]
[]
[]
[]
[]
[]
[]
[]
[]
[]
[]
[]
[]
[]
[]
[]
[]
[]
[]
[]
[]
[]
[]
[]
[]
[]
[]
[]
[]
[]
[]
[]
[]
[]
[]
[]
[]
[]
[]
[]
[]
[]
[]
[]
[]
[]
[]
[]
[]
[]
[]
[]
[]
[]
[]
[]
[]
[]
[]
[]
[]
[]
[]
[]
[]
[]
[]
[]
[]
[]
[]
[]
[]
[]
[]
[]
[]
[]
[]
[]
[]
[]
[]
[]
[]
[]
[]
[]
[]
[]
[]
[]
[]
[]
[]
[]
[]
[]
[]
[]
[]
[]
[]
[]
[]
[]
[]
[]
[]
[]
[]
[]
[]
[]
[]
[]
[]
[]
[]
[]
[]
[]
[]
[]
[]
[]
[]
[]
[]
[]
[]
[]
[]
[]
[]
[]
[]
[]
[]
[]
[]
[]
[]
[]
[]
[]
[]
[]
[]
[]
[]
[]
[]
[]
[]
[]
[]
[]
[]
[]
[]
[]
[]
[]
[]
[]
[]
[]
[]
[]
[]
[]
[]
[]
[]
[]
[]
[]
[]
[]
[]
[]
[]
[]
[]
[]
[]
[]
[]
[]
[]
[]
[]
[]
[]
[]
[]
[]
[]
[]
[]
[]
[]
[]
[]
[]
[]
[]
[]
[]
[]
[]
[]
[]
[]
[]
[]
[]
[]
[]
[]
[]
[]
[]
[]
[]
[]
[]
[]
[]
[]
[]
[]
[]
[]
[]
[]
[]
[]
[]
[]
[]
[]
[]
[]
[]
[]
[]
[]
[]
[]
[]
[]
[]
[]
[]
[]
[]
[]
[]
[]
[]
[]
[]
[]
[]
[]
[]
[]
[]
[]
[]
[]
[]
[]
[]
[]
[]
[]
[]
[]
[]
[]
[]
[]
[]
[]
[]
[]
[]
[]
[]
[]
[]
[]
[]
[]
[]
[]
[]
[]
[]
[]
[]
[]
[]
[]
[]
[]
[]
[]
[]
[]
[]
[]
[]
[]
[]
[]
[]
[]
[]
[]
[]
[]
[]
[]
[]
[]
[]
[]
[]
[]
[]
[]
[]
[]
[]
[]
[]
[]
[]
[]
[]
[]
[]
[]
[]
[]
[]
[]
[]
[]
[]
[]
[]
[]
[]
[]
[]
[]
[]
[]
[]
[]
[]
[]
[]
[]
[]
[]
[]
[]
[]
[]
[]
[]
[]
[]
[]
[]
[]
[]
[]
[]
[]
[]
[]
[]
[]
[]
[]
[]
[]
[]
[]
[]
[]
[]
[]
[]
[]
[]
[]
[]
[]
[]
[]
[]
[]
[]
[]
[]
[]
[]
[]
[]
[]
[]
[]
[]
[]
[]
[]
[]
[]
[]
[]
[]
[]
[]
[]
[]
[]
[]
[]
[]
[]
[]
[]
[]
[]
[]
[]
[]
[]
[]
[]
[]
[]
[]
[]
[]
[]
[]
[]
[]
[]
[]
[]
[]
[]
[]
[]
[]
[]
[]
[]
[]
[]
[]
[]
[]
[]
[]
[]
[]
[]
[]
[]
[]
[]
[]
[]
[]
[]
[]
[]
[]
[]
[]
[]
[]
[]
[]
[]
[]
[]
[]
[]
[]
[]
[]
[]
[]
[]
[]
[]
[]
[]
[]
[]
[]
[]
[]
[]
[]
[]
[]
[]
[]
[]
[]
[]
[]
[]
[]
[]
[]
[]
[]
[]
[]
[]
[]
[]
[]
[]
[]
[]
[]
[]
[]
[]
[]
[]
[]
[]
[]
[]
[]
[]
[]
[]
[]
[]
[]
[]
[]
[]
[]
[]
[]
[]
[]
[]
[]
[]
[]
[]
[]
[]
[]
[]
[]
[]
[]
[]
[]
[]
[]
[]
[]
[]
[]
[]
[]
[]
[]
[]
[]
[]
[]
[]
[]
[]
[]
[]
[]
[]
[]
[]
[]
[]
[]
[]
[]
[]
[]
[]
[]
[]
[]
[]
[]
[]
[]
[]
[]
[]
[]
[]
[]
[]
[]
[]
[]
[]
[]
[]
[]
[]
[]
[]
[]
[]
[]
[]
[]
[]
[]
[]
[]
[]
[]
[]
[]
[]
[]
[]
[]
[]
[]
[]
[]
[]
[]
[]
[]
[]
[]
[]
[]
[]
[]
[]
[]
[]
[]
[]
[]
[]
[]
[]
[]
[]
[]
[]
[]
[]
[]
[]
[]
[]
[]
[]
[]
[]
[]
[]
[]
[]
[]
[]
[]
[]
[]
[]
[]
[]
[]
[]
[]
[]
[]
[]
[]
[]
[]
[]
[]
[]
[]
[]
[]
[]
[]
[]
[]
[]
[]
[]
[]
[]
[]
[]
[]
[]
[]
[]
[]
[]
[]
[]
[]
[]
[]
[]
[]
[]
[]
[]
[]
[]
[]
[]
[]
[]
[]
[]
[]
[]
[]
[]
[]
[]
[]
[]
[]
[]
[]
[]
[]
[]
[]
[]
[]
[]
[]
[]
[]
[]
[]
[]
[]
[]
[]
[]
[]
[]
[]
[]
[]
[]
[]
[]
[]
[]
[]
[]
[]
[]
[]
[]
[]
[]
[]
[]
[]
[]
[]
[]
[]
[]
[]
[]
[]
[]
[]
[]
[]
[]
[]
[]
[]
[]
[]
[]
[]
[]
[]
[]
[]
[]
[]
[]
[]
[]
[]
[]
[]
[]
[]
[]
[]
[]
[]
[]
[]
[]
[]
[]
[]
[]
[]
[]
[]
[]
[]
[]
[]
[]
[]
[]
[]
[]
[]
[]
[]
[]
[]
[]
[]
[]
[]
[]
[]
[]
[]
[]
[]
[]
[]
[]
[]
[]
[]
[]
[]
[]
[]
[]
[]
[]
[]
[]
[]
[]
[]
[]
[]
[]
[]
[]
[]
[]
[]
[]
[]
[]
[]
[]
[]
[]
[]
[]
[]
[]
[]
[]
[]
[]
[]
[]
[]
[]
[]
[]
[]
[]
[]
[]
[]
[]
[]
[]
[]
[]
[]
[]
[]
[]
[]
[]
[]
[]
[]
[]
[]
[]
[]
[]
[]
[]
[]
[]
[]
[]
[]
[]
[]
[]
[]
[]
[]
[]
[]
[]
[]
[]
[]
[]
[]
[]
[]
[]
[]
[]
[]
[]
[]
[]
[]
[]
[]
[]
[]
[]
[]
[]
[]
[]
[]
[]
[]
[]
[]
[]
[]
[]
[]
[]
[]
[]
[]
[]
[]
[]
[]
[]
[]
[]
[]
[]
[]
[]
[]
[]
[]
[]
[]
[]
[]
[]
[]
[]
[]
[]
[]
[]
[]
[]
[]
[]
[]
[]
[]
[]
[]
[]
[]
[]
[]
[]
[]
[]
[]
[]
[]
[]
[]
[]
[]
[]
[]
[]
[]
[]
[]
[]
[]
[]
[]
[]
[]
[]
[]
[]
[]
[]
[]
[]
[]
[]
[]
[]
[]
[]
[]
[]
[]
[]
[]
[]
[]
[]
[]
[]
[]
[]
[]
[]
[]
[]
[]
[]
[]
[]
[]
[]
[]
[]
[]
[]
[]
[]
[]
[]
[]
[]
[]
[]
[]
[]
[]
[]
[]
[]
[]
[]
[]
[]
[]
[]
[]
[]
[]
[]
[]
[]
[]
[]
[]
[]
[]
[]
[]
[]
[]
[]
[]
[]
[]
[]
[]
[]
[]
[]
[]
[]
[]
[]
[]
[]
[]
[]
[]
[]
[]
[]
[]
[]
[]
[]
[]
[]
[]
[]
[]
[]
[]
[]
[]
[]
[]
[]
[]
[]
[]
[]
[]
[]
[]
[]
[]
[]
[]
[]
[]
[]
[]
[]
[]
[]
[]
[]
[]
[]
[]
[]
[]
[]
[]
[]
[]
[]
[]
[]
[]
[]
[]
[]
[]
[]
[]
[]
[]
[]
[]
[]
[]
[]
[]
[]
[]
[]
[]
[]
[]
[]
[]
[]
[]
[]
[]
[]
[]
[]
[]
[]
[]
[]
[]
[]
[]
[]
[]
[]
[]
[]
[]
[]
[]
[]
[]
[]
[]
[]
[]
[]
[]
[]
[]
[]
[]
[]
[]
[]
[]
[]
[]
[]
[]
[]
[]
[]
[]
[]
[]
[]
[]
[]
[]
[]
[]
[]
[]
[]
[]
[]
[]
[]
[]
[]
[]
[]
[]
[]
[]
[]
[]
[]
[]
[]
[]
[]
[]
[]
[]
[]
[]
[]
[]
[]
[]
[]
[]
[]
[]
[]
[]
[]
[]
[]
[]
[]
[]
[]
[]
[]
[]
[]
[]
[]
[]
[]
[]
[]
[]
[]
[]
[]
[]
[]
[]
[]
[]
[]
[]
[]
[]
[]
[]
[]
[]
[]
[]
[]
[]
[]
[]
[]
[]
[]
[]
[]
[]
[]
[]
[]
[]
[]
[]
[]
[]
[]
[]
[]
[]
[]
[]
[]
[]
[]
[]
[]
[]
[]
[]
[]
[]
[]
[]
[]
[]
[]
[]
[]
[]
[]
[]
[]
[]
[]
[]
[]
[]
[]
[]
[]
[]
[]
[]
[]
[]
[]
[]
[]
[]
[]
[]
[]
[]
[]
[]
[]
[]
[]
[]
[]
[]
[]
[]
[]
[]
[]
[]
[]
[]
[]
[]
[]
[]
[]
[]
[]
[]
[]
[]
[]
[]
[]
[]
[]
[]
[]
[]
[]
[]
[]
[]
[]
[]
[]
[]
[]
[]
[]
[]
[]
[]
[]
[]
[]
[]
[]
[]
[]
[]
[]
[]
[]
[]
[]
[]
[]
[]
[]
[]
[]
[]
[]
[]
[]
[]
[]
[]
[]
[]
[]
[]
[]
[]
[]
[]
[]
[]
[]
[]
[]
[]
[]
[]
[]
[]
[]
[]
[]
[]
[]
[]
[]
[]
[]
[]
[]
[]
[]
[]
[]
[]
[]
[]
[]
[]
[]
[]
[]
[]
[]
[]
[]
[]
[]
[]
[]
[]
[]
[]
[]
[]
[]
[]
[]
[]
[]
[]
[]
[]
[]
[]
[]
[]
[]
[]
[]
[]
[]
[]
[]
[]
[]
[]
[]
[]
[]
[]
[]
[]
[]
[]
[]
[]
[]
[]
[]
[]
[]
[]
[]
[]
[]
[]
[]
[]
[]
[]
[]
[]
[]
[]
[]
[]
[]
[]
[]
[]
[]
[]
[]
[]
[]
[]
[]
[]
[]
[]
[]
[]
[]
[]
[]
[]
[]
[]
[]
[]
[]
[]
[]
[]
[]
[]
[]
[]
[]
[]
[]
[]
[]
[]
[]
[]
[]
[]
[]
[]
[]
[]
[]
[]
[]
[]
[]
[]
[]
[]
[]
[]
[]
[]
[]
[]
[]
[]
[]
[]
[]
[]
[]
[]
[]
[]
[]
[]
[]
[]
[]
[]
[]
[]
[]
[]
[]
[]
[]
[]
[]
[]
[]
[]
[]
[]
[]
[]
[]
[]
[]
[]
[]
[]
[]
[]
[]
[]
[]
[]
[]
[]
[]
[]
[]
[]
[]
[]
[]
[]
[]
[]
[]
[]
[]
[]
[]
[]
[]
[]
[]
[]
[]
[]
[]
[]
[]
[]
[]
[]
[]
[]
[]
[]
[]
[]
[]
[]
[]
[]
[]
[]
[]
[]
[]
[]
[]
[]
[]
[]
[]
[]
[]
[]
[]
[]
[]
[]
[]
[]
[]
[]
[]
[]
[]
[]
[]
[]
[]
[]
[]
[]
[]
[]
[]
[]
[]
[]
[]
[]
[]
[]
[]
[]
[]
[]
[]
[]
[]
[]
[]
[]
[]
[]
[]
[]
[]
[]
[]
[]
[]
[]
[]
[]
[]
[]
[]
[]
[]
[]
[]
[]
[]
[]
[]
[]
[]
[]
[]
[]
[]
[]
[]
[]
[]
[]
[]
[]
[]
[]
[]
[]
[]
[]
[]
[]
[]
[]
[]
[]
[]
[]
[]
[]
[]
[]
[]
[]
[]
[]
[]
[]
[]
[]
[]
[]
[]
[]
[]
[]
[]
[]
[]
[]
[]
[]
[]
[]
[]
[]
[]
[]
[]
[]
[]
[]
[]
[]
[]
[]
[]
[]
[]
[]
[]
[]
[]
[]
[]
[]
[]
[]
[]
[]
[]
[]
[]
[]
[]
[]
[]
[]
[]
[]
[]
[]
[]
[]
[]
[]
[]
[]
[]
[]
[]
[]
[]
[]
[]
[]
[]
[]
[]
[]
[]
[]
[]
[]
[]
[]
[]
[]
[]
[]
[]
[]
[]
[]
[]
[]
[]
[]
[]
[]
[]
[]
[]
[]
[]
[]
[]
[]
[]
[]
[]
[]
[]
[]
[]
[]
[]
[]
[]
[]
[]
[]
[]
[]
[]
[]
[]
[]
[]
[]
[]
[]
[]
[]
[]
[]
[]
[]
[]
[]
[]
[]
[]
[]
[]
[]
[]
[]
[]
[]
[]
[]
[]
[]
[]
[]
[]
[]
[]
[]
[]
[]
[]
[]
[]
[]
[]
[]
[]
[]
[]
[]
[]
[]
[]
[]
[]
[]
[]
[]
[]
[]
[]
[]
[]
[]
[]
[]
[]
[]
[]
[]
[]
[]
[]
[]
[]
[]
[]
[]
[]
[]
[]
[]
[]
[]
[]
[]
[]
[]
[]
[]
[]
[]
[]
[]
[]
[]
[]
[]
[]
[]
[]
[]
[]
[]
[]
[]
[]
[]
[]
[]
[]
[]
[]
[]
[]
[]
[]
[]
[]
[]
[]
[]
[]
[]
[]
[]
[]
[]
[]
[]
[]
[]
[]
[]
[]
[]
[]
[]
[]
[]
[]
[]
[]
[]
[]
[]
[]
[]
[]
[]
[]
[]
[]
[]
[]
[]
[]
[]
[]
[]
[]
[]
[]
[]
[]
[]
[]
[]
[]
[]
[]
[]
[]
[]
[]
[]
[]
[]
[]
[]
[]
[]
[]
[]
[]
[]
[]
[]
[]
[]
[]
[]
[]
[]
[]
[]
[]
[]
[]
[]
[]
[]
[]
[]
[]
[]
[]
[]
[]
[]
[]
[]
[]
[]
[]
[]
[]
[]
[]
[]
[]
[]
[]
[]
[]
[]
[]
[]
[]
[]
[]
[]
[]
[]
[]
[]
[]
[]
[]
[]
[]
[]
[]
[]
[]
[]
[]
[]
[]
[]
[]
[]
[]
[]
[]
[]
[]
[]
[]
[]
[]
[]
[]
[]
[]
[]
[]
[]
[]
[]
[]
[]
[]
[]
[]
[]
[]
[]
[]
[]
[]
[]
[]
[]
[]
[]
[]
[]
[]
[]
[]
[]
[]
[]
[]
[]
[]
[]
[]
[]
[]
[]
[]
[]
[]
[]
[]
[]
[]
[]
[]
[]
[]
[]
[]
[]
[]
[]
[]
[]
[]
[]
[]
[]
[]
[]
[]
[]
[]
[]
[]
[]
[]
[]
[]
[]
[]
[]
[]
[]
[]
[]
[]
[]
[]
[]
[]
[]
[]
[]
[]
[]
[]
[]
[]
[]
[]
[]
[]
[]
[]
[]
[]
[]
[]
[]
[]
[]
[]
[]
[]
[]
[]
[]
[]
[]
[]
[]
[]
[]
[]
[]
[]
[]
[]
[]
[]
[]
[]
[]
[]
[]
[]
[]
[]
[]
[]
[]
[]
[]
[]
[]
[]
[]
[]
[]
[]
[]
[]
[]
[]
[]
[]
[]
[]
[]
[]
[]
[]
[]
[]
[]
[]
[]
[]
[]
[]
[]
[]
[]
[]
[]
[]
[]
[]
[]
[]
[]
[]
[]
[]
[]
[]
[]
[]
[]
[]
[]
[]
[]
[]
[]
[]
[]
[]
[]
[]
[]
[]
[]
[]
[]
[]
[]
[]
[]
[]
[]
[]
[]
[]
[]
[]
[]
[]
[]
[]
[]
[]
[]
[]
[]
[]
[]
[]
[]
[]
[]
[]
[]
[]
[]
[]
[]
[]
[]
[]
[]
[]
[]
[]
[]
[]
[]
[]
[]
[]
[]
[]
[]
[]
[]
[]
[]
[]
[]
[]
[]
[]
[]
[]
[]
[]
[]
[]
[]
[]
[]
[]
[]
[]
[]
[]
[]
[]
[]
[]
[]
[]
[]
[]
[]
[]
[]
[]
[]
[]
[]
[]
[]
[]
[]
[]
[]
[]
[]
[]
[]
[]
[]
[]
[]
[]
[]
[]
[]
[]
[]
[]
[]
[]
[]
[]
[]
[]
[]
[]
[]
[]
[]
[]
[]
[]
[]
[]
[]
[]
[]
[]
[]
[]
[]
[]
[]
[]
[]
[]
[]
[]
[]
[]
[]
[]
[]
[]
[]
[]
[]
[]
[]
[]
[]
[]
[]
[]
[]
[]
[]
[]
[]
[]
[]
[]
[]
[]
[]
[]
[]
[]
[]
[]
[]
[]
[]
[]
[]
[]
[]
[]
[]
[]
[]
[]
[]
[]
[]
[]
[]
[]
[]
[]
[]
[]
[]
[]
[]
[]
[]
[]
[]
[]
[]
[]
[]
[]
[]
[]
[]
[]
[]
[]
[]
[]
[]
[]
[]
[]
[]
[]
[]
[]
[]
[]
[]
[]
[]
[]
[]
[]
[]
[]
[]
[]
[]
[]
[]
[]
[]
[]
[]
[]
[]
[]
[]
[]
[]
[]
[]
[]
[]
[]
[]
[]
[]
[]
[]
[]
[]
[]
[]
[]
[]
[]
[]
[]
[]
[]
[]
[]
[]
[]
[]
[]
[]
[]
[]
[]
[]
[]
[]
[]
[]
[]
[]
[]
[]
[]
[]
[]
[]
[]
[]
[]
[]
[]
[]
[]
[]
[]
[]
[]
[]
[]
[]
[]
[]
[]
[]
[]
[]
[]
[]
[]
[]
[]
[]
[]
[]
[]
[]
[]
[]
[]
[]
[]
[]
[]
[]
[]
[]
[]
[]
[]
[]
[]
[]
[]
[]
[]
[]
[]
[]
[]
[]
[]
[]
[]
[]
[]
[]
[]
[]
[]
[]
[]
[]
[]
[]
[]
[]
[]
[]
[]
[]
[]
[]
[]
[]
[]
[]
[]
[]
[]
[]
[]
[]
[]
[]
[]
[]
[]
[]
[]
[]
[]
[]
[]
[]
[]
[]
[]
[]
[]
[]
[]
[]
[]
[]
[]
[]
[]
[]
[]
[]
[]
[]
[]
[]
[]
[]
[]
[]
[]
[]
[]
[]
[]
[]
[]
[]
[]
[]
[]
[]
[]
[]
[]
[]
[]
[]
[]
[]
[]
[]
[]
[]
[]
[]
[]
[]
[]
[]
[]
[]
[]
[]
[]
[]
[]
[]
[]
[]
[]
[]
[]
[]
[]
[]
[]
[]
[]
[]
[]
[]
[]
[]
[]
[]
[]
[]
[]
[]
[]
[]
[]
[]
[]
[]
[]
[]
[]
[]
[]
[]
[]
[]
[]
[]
[]
[]
[]
[]
[]
[]
[]
[]
[]
[]
[]
[]
[]
[]
[]
[]
[]
[]
[]
[]
[]
[]
[]
[]
[]
[]
[]
[]
[]
[]
[]
[]
[]
[]
[]
[]
[]
[]
[]
[]
[]
[]
[]
[]
[]
[]
[]
[]
[]
[]
[]
[]
[]
[]
[]
[]
[]
[]
[]
[]
[]
[]
[]
[]
[]
[]
[]
[]
[]
[]
[]
[]
[]
[]
[]
[]
[]
[]
[]
[]
[]
[]
[]
[]
[]
[]
[]
[]
[]
[]
[]
[]
[]
[]
[]
[]
[]
[]
[]
[]
[]
[]
[]
[]
[]
[]
[]
[]
[]
[]
[]
[]
[]
[]
[]
[]
[]
[]
[]
[]
[]
[]
[]
[]
[]
[]
[]
[]
[]
[]
[]
[]
[]
[]
[]
[]
[]
[]
[]
[]
[]
[]
[]
[]
[]
[]
[]
[]
[]
[]
[]
[]
[]
[]
[]
[]
[]
[]
[]
[]
[]
[]
[]
[]
[]
[]
[]
[]
[]
[]
[]
[]
[]
[]
[]
[]
[]
[]
[]
[]
[]
[]
[]
[]
[]
[]
[]
[]
[]
[]
[]
[]
[]
[]
[]
[]
[]
[]
[]
[]
[]
[]
[]
[]
[]
[]
[]
[]
[]
[]
[]
[]
[]
[]
[]
[]
[]
[]
[]
[]
[]
[]
[]
[]
[]
[]
[]
[]
[]
[]
[]
[]
[]
[]
[]
[]
[]
[]
[]
[]
[]
[]
[]
[]
[]
[]
[]
[]
[]
[]
[]
[]
[]
[]
[]
[]
[]
[]
[]
[]
[]
[]
[]
[]
[]
[]
[]
[]
[]
[]
[]
[]
[]
[]
[]
[]
[]
[]
[]
[]
[]
[]
[]
[]
[]
[]
[]
[]
[]
[]
[]
[]
[]
[]
[]
[]
[]
[]
[]
[]
[]
[]
[]
[]
[]
[]
[]
[]
[]
[]
[]
[]
[]
[]
[]
[]
[]
[]
[]
[]
[]
[]
[]
[]
[]
[]
[]
[]
[]
[]
[]
[]
[]
[]
[]
[]
[]
[]
[]
[]
[]
[]
[]
[]
[]
[]
[]
[]
[]
[]
[]
[]
[]
[]
[]
[]
[]
[]
[]
[]
[]
[]
[]
[]
[]
[]
[]
[]
[]
[]
[]
[]
[]
[]
[]
[]
[]
[]
[]
[]
[]
[]
[]
[]
[]
[]
[]
[]
[]
[]
[]
[]
[]
[]
[]
[]
[]
[]
[]
[]
[]
[]
[]
[]
[]
[]
[]
[]
[]
[]
[]
[]
[]
[]
[]
[]
[]
[]
[]
[]
[]
[]
[]
[]
[]
[]
[]
[]
[]
[]
[]
[]
[]
[]
[]
[]
[]
[]
[]
[]
[]
[]
[]
[]
[]
[]
[]
[]
[]
[]
[]
[]
[]
[]
[]
[]
[]
[]
[]
[]
[]
[]
[]
[]
[]
[]
[]
[]
[]
[]
[]
[]
[]
[]
[]
[]
[]
[]
[]
[]
[]
[]
[]
[]
[]
[]
[]
[]
[]
[]
[]
[]
[]
[]
[]
[]
[]
[]
[]
[]
[]
[]
[]
[]
[]
[]
[]
[]
[]
[]
[]
[]
[]
[]
[]
[]
[]
[]
[]
[]
[]
[]
[]
[]
[]
[]
[]
[]
[]
[]
[]
[]
[]
[]
[]
[]
[]
[]
[]
[]
[]
[]
[]
[]
[]
[]
[]
[]
[]
[]
[]
[]
[]
[]
[]
[]
[]
[]
[]
[]
[]
[]
[]
[]
[]
[]
[]
[]
[]
[]
[]
[]
[]
[]
[]
[]
[]
[]
[]
[]
[]
[]
[]
[]
[]
[]
[]
[]
[]
[]
[]
[]
[]
[]
[]
[]
[]
[]
[]
[]
[]
[]
[]
[]
[]
[]
[]
[]
[]
[]
[]
[]
[]
[]
[]
[]
[]
[]
[]
[]
[]
[]
[]
[]
[]
[]
[]
[]
[]
[]
[]
[]
[]
[]
[]
[]
[]
[]
[]
[]
[]
[]
[]
[]
[]
[]
[]
[]
[]
[]
[]
[]
[]
[]
[]
[]
[]
[]
[]
[]
[]
[]
[]
[]
[]
[]
[]
[]
[]
[]
[]
[]
[]
[]
[]
[]
[]
[]
[]
[]
[]
[]
[]
[]
[]
[]
[]
[]
[]
[]
[]
[]
[]
[]
[]
[]
[]
[]
[]
[]
[]
[]
[]
[]
[]
[]
[]
[]
[]
[]
[]
[]
[]
[]
[]
[]
[]
[]
[]
[]
[]
[]
[]
[]
[]
[]
[]
[]
[]
[]
[]
[]
[]
[]
[]
[]
[]
[]
[]
[]
[]
[]
[]
[]
[]
[]
[]
[]
[]
[]
[]
[]
[]
[]
[]
[]
[]
[]
[]
[]
[]
[]
[]
[]
[]
[]
[]
[]
[]
[]
[]
[]
[]
[]
[]
[]
[]
[]
[]
[]
[]
[]
[]
[]
[]
[]
[]
[]
[]
[]
[]
[]
[]
[]
[]
[]
[]
[]
[]
[]
[]
[]
[]
[]
[]
[]
[]
[]
[]
[]
[]
[]
[]
[]
[]
[]
[]
[]
[]
[]
[]
[]
[]
[]
[]
[]
[]
[]
[]
[]
[]
[]
[]
[]
[]
[]
[]
[]
[]
[]
[]
[]
[]
[]
[]
[]
[]
[]
[]
[]
[]
[]
[]
[]
[]
[]
[]
[]
[]
[]
[]
[]
[]
[]
[]
[]
[]
[]
[]
[]
[]
[]
[]
[]
[]
[]
[]
[]
[]
[]
[]
[]
[]
[]
[]
[]
[]
[]
[]
[]
[]
[]
[]
[]
[]
[]
[]
[]
[]
[]
[]
[]
[]
[]
[]
[]
[]
[]
[]
[]
[]
[]
[]
[]
[]
[]
[]
[]
[]
[]
[]
[]
[]
[]
[]
[]
[]
[]
[]
[]
[]
[]
[]
[]
[]
[]
[]
[]
[]
[]
[]
[]
[]
[]
[]
[]
[]
[]
[]
[]
[]
[]
[]
[]
[]
[]
[]
[]
[]
[]
[]
[]
[]
[]
[]
[]
[]
[]
[]
[]
[]
[]
[]
[]
[]
[]
[]
[]
[]
[]
[]
[]
[]
[]
[]
[]
[]
[]
[]
[]
[]
[]
[]
[]
[]
[]
[]
[]
[]
[]
[]
[]
[]
[]
[]
[]
[]
[]
[]
[]
[]
[]
[]
[]
[]
[]
[]
[]
[]
[]
[]
[]
[]
[]
[]
[]
[]
[]
[]
[]
[]
[]
[]
[]
[]
[]
[]
[]
[]
[]
[]
[]
[]
[]
[]
[]
[]
[]
[]
[]
[]
[]
[]
[]
[]
[]
[]
[]
[]
[]
[]
[]
[]
[]
[]
[]
[]
[]
[]
[]
[]
[]
[]
[]
[]
[]
[]
[]
[]
[]
[]
[]
[]
[]
[]
[]
[]
[]
[]
[]
[]
[]
[]
[]
[]
[]
[]
[]
[]
[]
[]
[]
[]
[]
[]
[]
[]
[]
[]
[]
[]
[]
[]
[]
[]
[]
[]
[]
[]
[]
[]
[]
[]
[]
[]
[]
[]
[]
[]
[]
[]
[]
[]
[]
[]
[]
[]
[]
[]
[]
[]
[]
[]
[]
[]
[]
[]
[]
[]
[]
[]
[]
[]
[]
[]
[]
[]
[]
[]
[]
[]
[]
[]
[]
[]
[]
[]
[]
[]
[]
[]
[]
[]
[]
[]
[]
[]
[]
[]
[]
[]
[]
[]
[]
[]
[]
[]
[]
[]
[]
[]
[]
[]
[]
[]
[]
[]
[]
[]
[]
[]
[]
[]
[]
[]
[]
[]
[]
[]
[]
[]
[]
[]
[]
[]
[]
[]
[]
[]
[]
[]
[]
[]
[]
[]
[]
[]
[]
[]
[]
[]
[]
[]
[]
[]
[]
[]
[]
[]
[]
[]
[]
[]
[]
[]
[]
[]
[]
[]
[]
[]
[]
[]
[]
[]
[]
[]
[]
[]
[]
[]
[]
[]
[]
[]
[]
[]
[]
[]
[]
[]
[]
[]
[]
[]
[]
[]
[]
[]
[]
[]
[]
[]
[]
[]
[]
[]
[]
[]
[]
[]
[]
[]
[]
[]
[]
[]
[]
[]
[]
[]
[]
[]
[]
[]
[]
[]
[]
[]
[]
[]
[]
[]
[]
[]
[]
[]
[]
[]
[]
[]
[]
[]
[]
[]
[]
[]
[]
[]
[]
[]
[]
[]
[]
[]
[]
[]
[]
[]
[]
[]
[]
[]
[]
[]
[]
[]
[]
[]
[]
[]
[]
[]
[]
[]
[]
[]
[]
[]
[]
[]
[]
[]
[]
[]
[]
[]
[]
[]
[]
[]
[]
[]
[]
[]
[]
[]
[]
[]
[]
[]
[]
[]
[]
[]
[]
[]
[]
[]
[]
[]
[]
[]
[]
[]
[]
[]
[]
[]
[]
[]
[]
[]
[]
[]
[]
[]
[]
[]
[]
[]
[]
[]
[]
[]
[]
[]
[]
[]
[]
[]
[]
[]
[]
[]
[]
[]
[]
[]
[]
[]
[]
[]
[]
[]
[]
[]
[]
[]
[]
[]
[]
[]
[]
[]
[]
[]
[]
[]
[]
[]
[]
[]
[]
[]
[]
[]
[]
[]
[]
[]
[]
[]
[]
[]
[]
[]
[]
[]
[]
[]
[]
[]
[]
[]
[]
[]
[]
[]
[]
[]
[]
[]
[]
[]
[]
[]
[]
[]
[]
[]
[]
[]
[]
[]
[]
[]
[]
[]
[]
[]
[]
[]
[]
[]
[]
[]
[]
[]
[]
[]
[]
[]
[]
[]
[]
[]
[]
[]
[]
[]
[]
[]
[]
[]
[]
[]
[]
[]
[]
[]
[]
[]
[]
[]
[]
[]
[]
[]
[]
[]
[]
[]
[]
[]
[]
[]
[]
[]
[]
[]
[]
[]
[]
[]
[]
[]
[]
[]
[]
[]
[]
[]
[]
[]
[]
[]
[]
[]
[]
[]
[]
[]
[]
[]
[]
[]
[]
[]
[]
[]
[]
[]
[]
[]
[]
[]
[]
[]
[]
[]
[]
[]
[]
[]
[]
[]
[]
[]
[]
[]
[]
[]
[]
[]
[]
[]
[]
[]
[]
[]
[]
[]
[]
[]
[]
[]
[]
[]
[]
[]
[]
[]
[]
[]
[]
[]
[]
[]
[]
[]
[]
[]
[]
[]
[]
[]
[]
[]
[]
[]
[]
[]
[]
[]
[]
[]
[]
[]
[]
[]
[]
[]
[]
[]
[]
[]
[]
[]
[]
[]
[]
[]
[]
[]
[]
[]
[]
[]
[]
[]
[]
[]
[]
[]
[]
[]
[]
[]
[]
[]
[]
[]
[]
[]
[]
[]
[]
[]
[]
[]
[]
[]
[]
[]
[]
[]
[]
[]
[]
[]
[]
[]
[]
[]
[]
[]
[]
[]
[]
[]
[]
[]
[]
[]
[]
[]
[]
[]
[]
[]
[]
[]
[]
[]
[]
[]
[]
[]
[]
[]
[]
[]
[]
[]
[]
[]
[]
[]
[]
[]
[]
[]
[]
[]
[]
[]
[]
[]
[]
[]
[]
[]
[]
[]
[]
[]
[]
[]
[]
[]
[]
[]
[]
[]
[]
[]
[]
[]
[]
[]
[]
[]
[]
[]
[]
[]
[]
[]
[]
[]
[]
[]
[]
[]
[]
[]
[]
[]
[]
[]
[]
[]
[]
[]
[]
[]
[]
[]
[]
[]
[]
[]
[]
[]
[]
[]
[]
[]
[]
[]
[]
[]
[]
[]
[]
[]
[]
[]
[]
[]
[]
[]
[]
[]
[]
[]
[]
[]
[]
[]
[]
[]
[]
[]
[]
[]
[]
[]
[]
[]
[]
[]
[]
[]
[]
[]
[]
[]
[]
[]
[]
[]
[]
[]
[]
[]
[]
[]
[]
[]
[]
[]
[]
[]
[]
[]
[]
[]
[]
[]
[]
[]
[]
[]
[]
[]
[]
[]
[]
[]
[]
[]
[]
[]
[]
[]
[]
[]
[]
[]
[]
[]
[]
[]
[]
[]
[]
[]
[]
[]
[]
[]
[]
[]
[]
[]
[]
[]
[]
[]
[]
[]
[]
[]
[]
[]
[]
[]
[]
[]
[]
[]
[]
[]
[]
[]
[]
[]
[]
[]
[]
[]
[]
[]
[]
[]
[]
[]
[]
[]
[]
[]
[]
[]
[]
[]
[]
[]
[]
[]
[]
[]
[]
[]
[]
[]
[]
[]
[]
[]
[]
[]
[]
[]
[]
[]
[]
[]
[]
[]
[]
[]
[]
[]
[]
[]
[]
[]
[]
[]
[]
[]
[]
[]
[]
[]
[]
[]
[]
[]
[]
[]
[]
[]
[]
[]
[]
[]
[]
[]
[]
[]
[]
[]
[]
[]
[]
[]
[]
[]
[]
[]
[]
[]
[]
[]
[]
[]
[]
[]
[]
[]
[]
[]
[]
[]
[]
[]
[]
[]
[]
[]
[]
[]
[]
[]
[]
[]
[]
[]
[]
[]
[]
[]
[]
[]
[]
[]
[]
[]
[]
[]
[]
[]
[]
[]
[]
[]
[]
[]
[]
[]
[]
[]
[]
[]
[]
[]
[]
[]
[]
[]
[]
[]
[]
[]
[]
[]
[]
[]
[]
[]
[]
[]
[]
[]
[]
[]
[]
[]
[]
[]
[]
[]
[]
[]
[]
[]
[]
[]
[]
[]
[]
[]
[]
[]
[]
[]
[]
[]
[]
[]
[]
[]
[]
[]
[]
[]
[]
[]
[]
[]
[]
[]
[]
[]
[]
[]
[]
[]
[]
[]
[]
[]
[]
[]
[]
[]
[]
[]
[]
[]
[]
[]
[]
[]
[]
[]
[]
[]
[]
[]
[]
[]
[]
[]
[]
[]
[]
[]
[]
[]
[]
[]
[]
[]
[]
[]
[]
[]
[]
[]
[]
[]
[]
[]
[]
[]
[]
[]
[]
[]
[]
[]
[]
[]
[]
[]
[]
[]
[]
[]
[]
[]
[]
[]
[]
[]
[]
[]
[]
[]
[]
[]
[]
[]
[]
[]
[]
[]
[]
[]
[]
[]
[]
[]
[]
[]
[]
[]
[]
[]
[]
[]
[]
[]
[]
[]
[]
[]
[]
[]
[]
[]
[]
[]
[]
[]
[]
[]
[]
[]
[]
[]
[]
[]
[]
[]
[]
[]
[]
[]
[]
[]
[]
[]
[]
[]
[]
[]
[]
[]
[]
[]
[]
[]
[]
[]
[]
[]
[]
[]
[]
[]
[]
[]
[]
[]
[]
[]
[]
[]
[]
[]
[]
[]
[]
[]
[]
[]
[]
[]
[]
[]
[]
[]
[]
[]
[]
[]
[]
[]
[]
[]
[]
[]
[]
[]
[]
[]
[]
[]
[]
[]
[]
[]
[]
[]
[]
[]
[]
[]
[]
[]
[]
[]
[]
[]
[]
[]
[]
[]
[]
[]
[]
[]
[]
[]
[]
[]
[]
[]
[]
[]
[]
[]
[]
[]
[]
[]
[]
[]
[]
[]
[]
[]
[]
[]
[]
[]
[]
[]
[]
[]
[]
[]
[]
[]
[]
[]
[]
[]
[]
[]
[]
[]
[]
[]
[]
[]
[]
[]
[]
[]
[]
[]
[]
[]
[]
[]
[]
[]
[]
[]
[]
[]
[]
[]
[]
[]
[]
[]
[]
[]
[]
[]
[]
[]
[]
[]
[]
[]
[]
[]
[]
[]
[]
[]
[]
[]
[]
[]
[]
[]
[]
[]
[]
[]
[]
[]
[]
[]
[]
[]
[]
[]
[]
[]
[]
[]
[]
[]
[]
[]
[]
[]
[]
[]
[]
[]
[]
[]
[]
[]
[]
[]
[]
[]
[]
[]
[]
[]
[]
[]
[]
[]
[]
[]
[]
[]
[]
[]
[]
[]
[]
[]
[]
[]
[]
[]
[]
[]
[]
[]
[]
[]
[]
[]
[]
[]
[]
[]
[]
[]
[]
[]
[]
[]
[]
[]
[]
[]
[]
[]
[]
[]
[]
[]
[]
[]
[]
[]
[]
[]
[]
[]
[]
[]
[]
[]
[]
[]
[]
[]
[]
[]
[]
[]
[]
[]
[]
[]
[]
[]
[]
[]
[]
[]
[]
[]
[]
[]
[]
[]
[]
[]
[]
[]
[]
[]
[]
[]
[]
[]
[]
[]
[]
[]
[]
[]
[]
[]
[]
[]
[]
[]
[]
[]
[]
[]
[]
[]
[]
[]
[]
[]
[]
[]
[]
[]
[]
[]
[]
[]
[]
[]
[]
[]
[]
[]
[]
[]
[]
[]
[]
[]
[]
[]
[]
[]
[]
[]
[]
[]
[]
[]
[]
[]
[]
[]
[]
[]
[]
[]
[]
[]
[]
[]
[]
[]
[]
[]
[]
[]
[]
[]
[]
[]
[]
[]
[]
[]
[]
[]
[]
[]
[]
[]
[]
[]
[]
[]
[]
[]
[]
[]
[]
[]
[]
[]
[]
[]
[]
[]
[]
[]
[]
[]
[]
[]
[]
[]
[]
[]
[]
[]
[]
[]
[]
[]
[]
[]
[]
[]
[]
[]
[]
[]
[]
[]
[]
[]
[]
[]
[]
[]
[]
[]
[]
[]
[]
[]
[]
[]
[]
[]
[]
[]
[]
[]
[]
[]
[]
[]
[]
[]
[]
[]
[]
[]
[]
[]
[]
[]
[]
[]
[]
[]
[]
[]
[]
[]
[]
[]
[]
[]
[]
[]
[]
[]
[]
[]
[]
[]
[]
[]
[]
[]
[]
[]
[]
[]
[]
[]
[]
[]
[]
[]
[]
[]
[]
[]
[]
[]
[]
[]
[]
[]
[]
[]
[]
[]
[]
[]
[]
[]
[]
[]
[]
[]
[]
[]
[]
[]
[]
[]
[]
[]
[]
[]
[]
[]
[]
[]
[]
[]
[]
[]
[]
[]
[]
[]
[]
[]
[]
[]
[]
[]
[]
[]
[]
[]
[]
[]
[]
[]
[]
[]
[]
[]
[]
[]
[]
[]
[]
[]
[]
[]
[]
[]
[]
[]
[]
[]
[]
[]
[]
[]
[]
[]
[]
[]
[]
[]
[]
[]
[]
[]
[]
[]
[]
[]
[]
[]
[]
[]
[]
[]
[]
[]
[]
[]
[]
[]
[]
[]
[]
[]
[]
[]
[]
[]
[]
[]
[]
[]
[]
[]
[]
[]
[]
[]
[]
[]
[]
[]
[]
[]
[]
[]
[]
[]
[]
[]
[]
[]
[]
[]
[]
[]
[]
[]
[]
[]
[]
[]
[]
[]
[]
[]
[]
[]
[]
[]
[]
[]
[]
[]
[]
[]
[]
[]
[]
[]
[]
[]
[]
[]
[]
[]
[]
[]
[]
[]
[]
[]
[]
[]
[]
[]
[]
[]
[]
[]
[]
[]
[]
[]
[]
[]
[]
[]
[]
[]
[]
[]
[]
[]
[]
[]
[]
[]
[]
[]
[]
[]
[]
[]
[]
[]
[]
[]
[]
[]
[]
[]
[]
[]
[]
[]
[]
[]
[]
[]
[]
[]
[]
[]
[]
[]
[]
[]
[]
[]
[]
[]
[]
[]
[]
[]
[]
[]
[]
[]
[]
[]
[]
[]
[]
[]
[]
[]
[]
[]
[]
[]
[]
[]
[]
[]
[]
[]
[]
[]
[]
[]
[]
[]
[]
[]
[]
[]
[]
[]
[]
[]
[]
[]
[]
[]
[]
[]
[]
[]
[]
[]
[]
[]
[]
[]
[]
[]
[]
[]
[]
[]
[]
[]
[]
[]
[]
[]
[]
[]
[]
[]
[]
[]
[]
[]
[]
[]
[]
[]
[]
[]
[]
[]
[]
[]
[]
[]
[]
[]
[]
[]
[]
[]
[]
[]
[]
[]
[]
[]
[]
[]
[]
[]
[]
[]
[]
[]
[]
[]
[]
[]
[]
[]
[]
[]
[]
[]
[]
[]
[]
[]
[]
[]
[]
[]
[]
[]
[]
[]
[]
[]
[]
[]
[]
[]
[]
[]
[]
[]
[]
[]
[]
[]
[]
[]
[]
[]
[]
[]
[]
[]
[]
[]
[]
[]
[]
[]
[]
[]
[]
[]
[]
[]
[]
[]
[]
[]
[]
[]
[]
[]
[]
[]
[]
[]
[]
[]
[]
[]
[]
[]
[]
[]
[]
[]
[]
[]
[]
[]
[]
[]
[]
[]
[]
[]
[]
[]
[]
[]
[]
[]
[]
[]
[]
[]
[]
[]
[]
[]
[]
[]
[]
[]
[]
[]
[]
[]
[]
[]
[]
[]
[]
[]
[]
[]
[]
[]
[]
[]
[]
[]
[]
[]
[]
[]
[]
[]
[]
[]
[]
[]
[]
[]
[]
[]
[]
[]
[]
[]
[]
[]
[]
[]
[]
[]
[]
[]
[]
[]
[]
[]
[]
[]
[]
[]
[]
[]
[]
[]
[]
[]
[]
[]
[]
[]
[]
[]
[]
[]
[]
[]
[]
[]
[]
[]
[]
[]
[]
[]
[]
[]
[]
[]
[]
[]
[]
[]
[]
[]
[]
[]
[]
[]
[]
[]
[]
[]
[]
[]
[]
[]
[]
[]
[]
[]
[]
[]
[]
[]
[]
[]
[]
[]
[]
[]
[]
[]
[]
[]
[]
[]
[]
[]
[]
[]
[]
[]
[]
[]
[]
[]
[]
[]
[]
[]
[]
[]
[]
[]
[]
[]
[]
[]
[]
[]
[]
[]
[]
[]
[]
[]
[]
[]
[]
[]
[]
[]
[]
[]
[]
[]
[]
[]
[]
[]
[]
[]
[]
[]
[]
[]
[]
[]
[]
[]
[]
[]
[]
[]
[]
[]
[]
[]
[]
[]
[]
[]
[]
[]
[]
[]
[]
[]
[]
[]
[]
[]
[]
[]
[]
[]
[]
[]
[]
[]
[]
[]
[]
[]
[]
[]
[]
[]
[]
[]
[]
[]
[]
[]
[]
[]
[]
[]
[]
[]
[]
[]
[]
[]
[]
[]
[]
[]
[]
[]
[]
[]
[]
[]
[]
[]
[]
[]
[]
[]
[]
[]
[]
[]
[]
[]
[]
[]
[]
[]
[]
[]
[]
[]
[]
[]
[]
[]
[]
[]
[]
[]
[]
[]
[]
[]
[]
[]
[]
[]
[]
[]
[]
[]
[]
[]
[]
[]
[]
[]
[]
[]
[]
[]
[]
[]
[]
[]
[]
[]
[]
[]
[]
[]
[]
[]
[]
[]
[]
[]
[]
[]
[]
[]
[]
[]
[]
[]
[]
[]
[]
[]
[]
[]
[]
[]
[]
[]
[]
[]
[]
[]
[]
[]
[]
[]
[]
[]
[]
[]
[]
[]
[]
[]
[]
[]
[]
[]
[]
[]
[]
[]
[]
[]
[]
[]
[]
[]
[]
[]
[]
[]
[]
[]
[]
[]
[]
[]
[]
[]
[]
[]
[]
[]
[]
[]
[]
[]
[]
[]
[]
[]
[]
[]
[]
[]
[]
[]
[]
[]
[]
[]
[]
[]
[]
[]
[]
[]
[]
[]
[]
[]
[]
[]
[]
[]
[]
[]
[]
[]
[]
[]
[]
[]
[]
[]
[]
[]
[]
[]
[]
[]
[]
[]
[]
[]
[]
[]
[]
[]
[]
[]
[]
[]
[]
[]
[]
[]
[]
[]
[]
[]
[]
[]
[]
[]
[]
[]
[]
[]
[]
[]
[]
[]
[]
[]
[]
[]
[]
[]
[]
[]
[]
[]
[]
[]
[]
[]
[]
[]
[]
[]
[]
[]
[]
[]
[]
[]
[]
[]
[]
[]
[]
[]
[]
[]
[]
[]
[]
[]
[]
[]
[]
[]
[]
[]
[]
[]
[]
[]
[]
[]
[]
[]
[]
[]
[]
[]
[]
[]
[]
[]
[]
[]
[]
[]
[]
[]
[]
[]
[]
[]
[]
[]
[]
[]
[]
[]
[]
[]
[]
[]
[]
[]
[]
[]
[]
[]
[]
[]
[]
[]
[]
[]
[]
[]
[]
[]
[]
[]
[]
[]
[]
[]
[]
[]
[]
[]
[]
[]
[]
[]
[]
[]
[]
[]
[]
[]
[]
[]
[]
[]
[]
[]
[]
[]
[]
[]
[]
[]
[]
[]
[]
[]
[]
[]
[]
[]
[]
[]
[]
[]
[]
[]
[]
[]
[]
[]
[]
[]
[]
[]
[]
[]
[]
[]
[]
[]
[]
[]
[]
[]
[]
[]
[]
[]
[]
[]
[]
[]
[]
[]
[]
[]
[]
[]
[]
[]
[]
[]
[]
[]
[]
[]
[]
[]
[]
[]
[]
[]
[]
[]
[]
[]
[]
[]
[]
[]
[]
[]
[]
[]
[]
[]
[]
[]
[]
[]
[]
[]
[]
[]
[]
[]
[]
[]
[]
[]
[]
[]
[]
[]
[]
[]
[]
[]
[]
[]
[]
[]
[]
[]
[]
[]
[]
[]
[]
[]
[]
[]
[]
[]
[]
[]
[]
[]
[]
[]
[]
[]
[]
[]
[]
[]
[]
[]
[]
[]
[]
[]
[]
[]
[]
[]
[]
[]
[]
[]
[]
[]
[]
[]
[]
[]
[]
[]
[]
[]
[]
[]
[]
[]
[]
[]
[]
[]
[]
[]
[]
[]
[]
[]
[]
[]
[]
[]
[]
[]
[]
[]
[]
[]
[]
[]
[]
[]
[]
[]
[]
[]
[]
[]
[]
[]
[]
[]
[]
[]
[]
[]
[]
[]
[]
[]
[]
[]
[]
[]
[]
[]
[]
[]
[]
[]
[]
[]
[]
[]
[]
[]
[]
[]
[]
[]
[]
[]
[]
[]
[]
[]
[]
[]
[]
[]
[]
[]
[]
[]
[]
[]
[]
[]
[]
[]
[]
[]
[]
[]
[]
[]
[]
[]
[]
[]
[]
[]
[]
[]
[]
[]
[]
[]
[]
[]
[]
[]
[]
[]
[]
[]
[]
[]
[]
[]
[]
[]
[]
[]
[]
[]
[]
[]
[]
[]
[]
[]
[]
[]
[]
[]
[]
[]
[]
[]
[]
[]
[]
[]
[]
[]
[]
[]
[]
[]
[]
[]
[]
[]
[]
[]
[]
[]
[]
[]
[]
[]
[]
[]
[]
[]
[]
[]
[]
[]
[]
[]
[]
[]
[]
[]
[]
[]
[]
[]
[]
[]
[]
[]
[]
[]
[]
[]
[]
[]
[]
[]
[]
[]
[]
[]
[]
[]
[]
[]
[]
[]
[]
[]
[]
[]
[]
[]
[]
[]
[]
[]
[]
[]
[]
[]
[]
[]
[]
[]
[]
[]
[]
[]
[]
[]
[]
[]
[]
[]
[]
[]
[]
[]
[]
[]
[]
[]
[]
[]
[]
[]
[]
[]
[]
[]
[]
[]
[]
[]
[]
[]
[]
[]
[]
[]
[]
[]
[]
[]
[]
[]
[]
[]
[]
[]
[]
[]
[]
[]
[]
[]
[]
[]
[]
[]
[]
[]
[]
[]
[]
[]
[]
[]
[]
[]
[]
[]
[]
[]
[]
[]
[]
[]
[]
[]
[]
[]
[]
[]
[]
[]
[]
[]
[]
[]
[]
[]
[]
[]
[]
[]
[]
[]
[]
[]
[]
[]
[]
[]
[]
[]
[]
[]
[]
[]
[]
[]
[]
[]
[]
[]
[]
[]
[]
[]
[]
[]
[]
[]
[]
[]
[]
[]
[]
[]
[]
[]
[]
[]
[]
[]
[]
[]
[]
[]
[]
[]
[]
[]
[]
[]
[]
[]
[]
[]
[]
[]
[]
[]
[]
[]
[]
[]
[]
[]
[]
[]
[]
[]
[]
[]
[]
[]
[]
[]
[]
[]
[]
[]
[]
[]
[]
[]
[]
[]
[]
[]
[]
[]
[]
[]
[]
[]
[]
[]
[]
[]
[]
[]
[]
[]
[]
[]
[]
[]
[]
[]
[]
[]
[]
[]
[]
[]
[]
[]
[]
[]
[]
[]
[]
[]
[]
[]
[]
[]
[]
[]
[]
[]
[]
[]
[]
[]
[]
[]
[]
[]
[]
[]
[]
[]
[]
[]
[]
[]
[]
[]
[]
[]
[]
[]
[]
[]
[]
[]
[]
[]
[]
[]
[]
[]
[]
[]
[]
[]
[]
[]
[]
[]
[]
[]
[]
[]
[]
[]
[]
[]
[]
[]
[]
[]
[]
[]
[]
[]
[]
[]
[]
[]
[]
[]
[]
[]
[]
[]
[]
[]
[]
[]
[]
[]
[]
[]
[]
[]
[]
[]
[]
[]
[]
[]
[]
[]
[]
[]
[]
[]
[]
[]
[]
[]
[]
[]
[]
[]
[]
[]
[]
[]
[]
[]
[]
[]
[]
[]
[]
[]
[]
[]
[]
[]
[]
[]
[]
[]
[]
[]
[]
[]
[]
[]
[]
[]
[]
[]
[]
[]
[]
[]
[]
[]
[]
[]
[]
[]
[]
[]
[]
[]
[]
[]
[]
[]
[]
[]
[]
[]
[]
[]
[]
[]
[]
[]
[]
[]
[]
[]
[]
[]
[]
[]
[]
[]
[]
[]
[]
[]
[]
[]
[]
[]
[]
[]
[]
[]
[]
[]
[]
[]
[]
[]
[]
[]
[]
[]
[]
[]
[]
[]
[]
[]
[]
[]
[]
[]
[]
[]
[]
[]
[]
[]
[]
[]
[]
[]
[]
[]
[]
[]
[]
[]
[]
[]
[]
[]
[]
[]
[]
[]
[]
[]
[]
[]
[]
[]
[]
[]
[]
[]
[]
[]
[]
[]
[]
[]
[]
[]
[]
[]
[]
[]
[]
[]
[]
[]
[]
[]
[]
[]
[]
[]
[]
[]
[]
[]
[]
[]
[]
[]
[]
[]
[]
[]
[]
[]
[]
[]
[]
[]
[]
[]
[]
[]
[]
[]
[]
[]
[]
[]
[]
[]
[]
[]
[]
[]
[]
[]
[]
[]
[]
[]
[]
[]
[]
[]
[]
[]
[]
[]
[]
[]
[]
[]
[]
[]
[]
[]
[]
[]
[]
[]
[]
[]
[]
[]
[]
[]
[]
[]
[]
[]
[]
[]
[]
[]
[]
[]
[]
[]
[]
[]
[]
[]
[]
[]
[]
[]
[]
[]
[]
[]
[]
[]
[]
[]
[]
[]
[]
[]
[]
[]
[]
[]
[]
[]
[]
[]
[]
[]
[]
[]
[]
[]
[]
[]
[]
[]
[]
[]
[]
[]
[]
[]
[]
[]
[]
[]
[]
[]
[]
[]
[]
[]
[]
[]
[]
[]
[]
[]
[]
[]
[]
[]
[]
[]
[]
[]
[]
[]
[]
[]
[]
[]
[]
[]
[]
[]
[]
[]
[]
[]
[]
[]
[]
[]
[]
[]
[]
[]
[]
[]
[]
[]
[]
[]
[]
[]
[]
[]
[]
[]
[]
[]
[]
[]
[]
[]
[]
[]
[]
[]
[]
[]
[]
[]
[]
[]
[]
[]
[]
[]
[]
[]
[]
[]
[]
[]
[]
[]
[]
[]
[]
[]
[]
[]
[]
[]
[]
[]
[]
[]
[]
[]
[]
[]
[]
[]
[]
[]
[]
[]
[]
[]
[]
[]
[]
[]
[]
[]
[]
[]
[]
[]
[]
[]
[]
[]
[]
[]
[]
[]
[]
[]
[]
[]
[]
[]
[]
[]
[]
[]
[]
[]
[]
[]
[]
[]
[]
[]
[]
[]
[]
[]
[]
[]
[]
[]
[]
[]
[]
[]
[]
[]
[]
[]
[]
[]
[]
[]
[]
[]
[]
[]
[]
[]
[]
[]
[]
[]
[]
[]
[]
[]
[]
[]
[]
[]
[]
[]
[]
[]
[]
[]
[]
[]
[]
[]
[]
[]
[]
[]
[]
[]
[]
[]
[]
[]
[]
[]
[]
[]
[]
[]
[]
[]
[]
[]
[]
[]
[]
[]
[]
[]
[]
[]
[]
[]
[]
[]
[]
[]
[]
[]
[]
[]
[]
[]
[]
[]
[]
[]
[]
[]
[]
[]
[]
[]
[]
[]
[]
[]
[]
[]
[]
[]
[]
[]
[]
[]
[]
[]
[]
[]
[]
[]
[]
[]
[]
[]
[]
[]
[]
[]
[]
[]
[]
[]
[]
[]
[]
[]
[]
[]
[]
[]
[]
[]
[]
[]
[]
[]
[]
[]
[]
[]
[]
[]
[]
[]
[]
[]
[]
[]
[]
[]
[]
[]
[]
[]
[]
[]
[]
[]
[]
[]
[]
[]
[]
[]
[]
[]
[]
[]
[]
[]
[]
[]
[]
[]
[]
[]
[]
[]
[]
[]
[]
[]
[]
[]
[]
[]
[]
[]
[]
[]
[]
[]
[]
[]
[]
[]
[]
[]
[]
[]
[]
[]
[]
[]
[]
[]
[]
[]
[]
[]
[]
[]
[]
[]
[]
[]
[]
[]
[]
[]
[]
[]
[]
[]
[]
[]
[]
[]
[]
[]
[]
[]
[]
[]
[]
[]
[]
[]
[]
[]
[]
[]
[]
[]
[]
[]
[]
[]
[]
[]
[]
[]
[]
[]
[]
[]
[]
[]
[]
[]
[]
[]
[]
[]
[]
[]
[]
[]
[]
[]
[]
[]
[]
[]
[]
[]
[]
[]
[]
[]
[]
[]
[]
[]
[]
[]
[]
[]
[]
[]
[]
[]
[]
[]
[]
[]
[]
[]
[]
[]
[]
[]
[]
[]
[]
[]
[]
[]
[]
[]
[]
[]
[]
[]
[]
[]
[]
[]
[]
[]
[]
[]
[]
[]
[]
[]
[]
[]
[]
[]
[]
[]
[]
[]
[]
[]
[]
[]
[]
[]
[]
[]
[]
[]
[]
[]
[]
[]
[]
[]
[]
[]
[]
[]
[]
[]
[]
[]
[]
[]
[]
[]
[]
[]
[]
[]
[]
[]
[]
[]
[]
[]
[]
[]
[]
[]
[]
[]
[]
[]
[]
[]
[]
[]
[]
[]
[]
[]
[]
[]
[]
[]
[]
[]
[]
[]
[]
[]
[]
[]
[]
[]
[]
[]
[]
[]
[]
[]
[]
[]
[]
[]
[]
[]
[]
[]
[]
[]
[]
[]
[]
[]
[]
[]
[]
[]
[]
[]
[]
[]
[]
[]
[]
[]
[]
[]
[]
[]
[]
[]
[]
[]
[]
[]
[]
[]
[]
[]
[]
[]
[]
[]
[]
[]
[]
[]
[]
[]
[]
[]
[]
[]
[]
[]
[]
[]
[]
[]
[]
[]
[]
[]
[]
[]
[]
[]
[]
[]
[]
[]
[]
[]
[]
[]
[]
[]
[]
[]
[]
[]
[]
[]
[]
[]
[]
[]
[]
[]
[]
[]
[]
[]
[]
[]
[]
[]
[]
[]
[]
[]
[]
[]
[]
[]
[]
[]
[]
[]
[]
[]
[]
[]
[]
[]
[]
[]
[]
[]
[]
[]
[]
[]
[]
[]
[]
[]
[]
[]
[]
[]
[]
[]
[]
[]
[]
[]
[]
[]
[]
[]
[]
[]
[]
[]
[]
[]
[]
[]
[]
[]
[]
[]
[]
[]
[]
[]
[]
[]
[]
[]
[]
[]
[]
[]
[]
[]
[]
[]
[]
[]
[]
[]
[]
[]
[]
[]
[]
[]
[]
[]
[]
[]
[]
[]
[]
[]
[]
[]
[]
[]
[]
[]
[]
[]
[]
[]
[]
[]
[]
[]
[]
[]
[]
[]
[]
[]
[]
[]
[]
[]
[]
[]
[]
[]
[]
[]
[]
[]
[]
[]
[]
[]
[]
[]
[]
[]
[]
[]
[]
[]
[]
[]
[]
[]
[]
[]
[]
[]
[]
[]
[]
[]
[]
[]
[]
[]
[]
[]
[]
[]
[]
[]
[]
[]
[]
[]
[]
[]
[]
[]
[]
[]
[]
[]
[]
[]
[]
[]
[]
[]
[]
[]
[]
[]
[]
[]
[]
[]
[]
[]
[]
[]
[]
[]
[]
[]
[]
[]
[]
[]
[]
[]
[]
[]
[]
[]
[]
[]
[]
[]
[]
[]
[]
[]
[]
[]
[]
[]
[]
[]
[]
[]
[]
[]
[]
[]
[]
[]
[]
[]
[]
[]
[]
[]
[]
[]
[]
[]
[]
[]
[]
[]
[]
[]
[]
[]
[]
[]
[]
[]
[]
[]
[]
[]
[]
[]
[]
[]
[]
[]
[]
[]
[]
[]
[]
[]
[]
[]
[]
[]
[]
[]
[]
[]
[]
[]
[]
[]
[]
[]
[]
[]
[]
[]
[]
[]
[]
[]
[]
[]
[]
[]
[]
[]
[]
[]
[]
[]
[]
[]
[]
[]
[]
[]
[]
[]
[]
[]
[]
[]
[]
[]
[]
[]
[]
[]
[]
[]
[]
[]
[]
[]
[]
[]
[]
[]
[]
[]
[]
[]
[]
[]
[]
[]
[]
[]
[]
[]
[]
[]
[]
[]
[]
[]
[]
[]
[]
[]
[]
[]
[]
[]
[]
[]
[]
[]
[]
[]
[]
[]
[]
[]
[]
[]
[]
[]
[]
[]
[]
[]
[]
[]
[]
[]
[]
[]
[]
[]
[]
[]
[]
[]
[]
[]
[]
[]
[]
[]
[]
[]
[]
[]
[]
[]
[]
[]
[]
[]
[]
[]
[]
[]
[]
[]
[]
[]
[]
[]
[]
[]
[]
[]
[]
[]
[]
[]
[]
[]
[]
[]
[]
[]
[]
[]
[]
[]
[]
[]
[]
[]
[]
[]
[]
[]
[]
[]
[]
[]
[]
[]
[]
[]
[]
[]
[]
[]
[]
[]
[]
[]
[]
[]
[]
[]
[]
[]
[]
[]
[]
[]
[]
[]
[]
[]
[]
[]
[]
[]
[]
[]
[]
[]
[]
[]
[]
[]
[]
[]
[]
[]
[]
[]
[]
[]
[]
[]
[]
[]
[]
[]
[]
[]
[]
[]
[]
[]
[]
[]
[]
[]
[]
[]
[]
[]
[]
[]
[]
[]
[]
[]
[]
[]
[]
[]
[]
[]
[]
[]
[]
[]
[]
[]
[]
[]
[]
[]
[]
[]
[]
[]
[]
[]
[]
[]
[]
[]
[]
[]
[]
[]
[]
[]
[]
[]
[]
[]
[]
[]
[]
[]
[]
[]
[]
[]
[]
[]
[]
[]
[]
[]
[]
[]
[]
[]
[]
[]
[]
[]
[]
[]
[]
[]
[]
[]
[]
[]
[]
[]
[]
[]
[]
[]
[]
[]
[]
[]
[]
[]
[]
[]
[]
[]
[]
[]
[]
[]
[]
[]
[]
[]
[]
[]
[]
[]
[]
[]
[]
[]
[]
[]
[]
[]
[]
[]
[]
[]
[]
[]
[]
[]
[]
[]
[]
[]
[]
[]
[]
[]
[]
[]
[]
[]
[]
[]
[]
[]
[]
[]
[]
[]
[]
[]
[]
[]
[]
[]
[]
[]
[]
[]
[]
[]
[]
[]
[]
[]
[]
[]
[]
[]
[]
[]
[]
[]
[]
[]
[]
[]
[]
[]
[]
[]
[]
[]
[]
[]
[]
[]
[]
[]
[]
[]
[]
[]
[]
[]
[]
[]
[]
[]
[]
[]
[]
[]
[]
[]
[]
[]
[]
[]
[]
[]
[]
[]
[]
[]
[]
[]
[]
[]
[]
[]
[]
[]
[]
[]
[]
[]
[]
[]
[]
[]
[]
[]
[]
[]
[]
[]
[]
[]
[]
[]
[]
[]
[]
[]
[]
[]
[]
[]
[]
[]
[]
[]
[]
[]
[]
[]
[]
[]
[]
[]
[]
[]
[]
[]
[]
[]
[]
[]
[]
[]
[]
[]
[]
[]
[]
[]
[]
[]
[]
[]
[]
[]
[]
[]
[]
[]
[]
[]
[]
[]
[]
[]
[]
[]
[]
[]
[]
[]
[]
[]
[]
[]
[]
[]
[]
[]
[]
[]
[]
[]
[]
[]
[]
[]
[]
[]
[]
[]
[]
[]
[]
[]
[]
[]
[]
[]
[]
[]
[]
[]
[]
[]
[]
[]
[]
[]
[]
[]
[]
[]
[]
[]
[]
[]
[]
[]
[]
[]
[]
[]
[]
[]
[]
[]
[]
[]
[]
[]
[]
[]
[]
[]
[]
[]
[]
[]
[]
[]
[]
[]
[]
[]
[]
[]
[]
[]
[]
[]
[]
[]
[]
[]
[]
[]
[]
[]
[]
[]
[]
[]
[]
[]
[]
[]
[]
[]
[]
[]
[]
[]
[]
[]
[]
[]
[]
[]
[]
[]
[]
[]
[]
[]
[]
[]
[]
[]
[]
[]
[]
[]
[]
[]
[]
[]
[]
[]
[]
[]
[]
[]
[]
[]
[]
[]
[]
[]
[]
[]
[]
[]
[]
[]
[]
[]
[]
[]
[]
[]
[]
[]
[]
[]
[]
[]
[]
[]
[]
[]
[]
[]
[]
[]
[]
[]
[]
[]
[]
[]
[]
[]
[]
[]
[]
[]
[]
[]
[]
[]
[]
[]
[]
[]
[]
[]
[]
[]
[]
[]
[]
[]
[]
[]
[]
[]
[]
[]
[]
[]
[]
[]
[]
[]
[]
[]
[]
[]
[]
[]
[]
[]
[]
[]
[]
[]
[]
[]
[]
[]
[]
[]
[]
[]
[]
[]
[]
[]
[]
[]
[]
[]
[]
[]
[]
[]
[]
[]
[]
[]
[]
[]
[]
[]
[]
[]
[]
[]
[]
[]
[]
[]
[]
[]
[]
[]
[]
[]
[]
[]
[]
[]
[]
[]
[]
[]
[]
[]
[]
[]
[]
[]
[]
[]
[]
[]
[]
[]
[]
[]
[]
[]
[]
[]
[]
[]
[]
[]
[]
[]
[]
[]
[]
[]
[]
[]
[]
[]
[]
[]
[]
[]
[]
[]
[]
[]
[]
[]
[]
[]
[]
[]
[]
[]
[]
[]
[]
[]
[]
[]
[]
[]
[]
[]
[]
[]
[]
[]
[]
[]
[]
[]
[]
[]
[]
[]
[]
[]
[]
[]
[]
[]
[]
[]
[]
[]
[]
[]
[]
[]
[]
[]
[]
[]
[]
[]
[]
[]
[]
[]
[]
[]
[]
[]
[]
[]
[]
[]
[]
[]
[]
[]
[]
[]
[]
[]
[]
[]
[]
[]
[]
[]
[]
[]
[]
[]
[]
[]
[]
[]
[]
[]
[]
[]
[]
[]
[]
[]
[]
[]
[]
[]
[]
[]
[]
[]
[]
[]
[]
[]
[]
[]
[]
[]
[]
[]
[]
[]
[]
[]
[]
[]
[]
[]
[]
[]
[]
[]
[]
[]
[]
[]
[]
[]
[]
[]
[]
[]
[]
[]
[]
[]
[]
[]
[]
[]
[]
[]
[]
[]
[]
[]
[]
[]
[]
[]
[]
[]
[]
[]
[]
[]
[]
[]
[]
[]
[]
[]
[]
[]
[]
[]
[]
[]
[]
[]
[]
[]
[]
[]
[]
[]
[]
[]
[]
[]
[]
[]
[]
[]
[]
[]
[]
[]
[]
[]
[]
[]
[]
[]
[]
[]
[]
[]
[]
[]
[]
[]
[]
[]
[]
[]
[]
[]
[]
[]
[]
[]
[]
[]
[]
[]
[]
[]
[]
[]
[]
[]
[]
[]
[]
[]
[]
[]
[]
[]
[]
[]
[]
[]
[]
[]
[]
[]
[]
[]
[]
[]
[]
[]
[]
[]
[]
[]
[]
[]
[]
[]
[]
[]
[]
[]
[]
[]
[]
[]
[]
[]
[]
[]
[]
[]
[]
[]
[]
[]
[]
[]
[]
[]
[]
[]
[]
[]
[]
[]
[]
[]
[]
[]
[]
[]
[]
[]
[]
[]
[]
[]
[]
[]
[]
[]
[]
[]
[]
[]
[]
[]
[]
[]
[]
[]
[]
[]
[]
[]
[]
[]
[]
[]
[]
[]
[]
[]
[]
[]
[]
[]
[]
[]
[]
[]
[]
[]
[]
[]
[]
[]
[]
[]
[]
[]
[]
[]
[]
[]
[]
[]
[]
[]
[]
[]
[]
[]
[]
[]
[]
[]
[]
[]
[]
[]
[]
[]
[]
[]
[]
[]
[]
[]
[]
[]
[]
[]
[]
[]
[]
[]
[]
[]
[]
[]
[]
[]
[]
[]
[]
[]
[]
[]
[]
[]
[]
[]
[]
[]
[]
[]
[]
[]
[]
[]
[]
[]
[]
[]
[]
[]
[]
[]
[]
[]
[]
[]
[]
[]
[]
[]
[]
[]
[]
[]
[]
[]
[]
[]
[]
[]
[]
[]
[]
[]
[]
[]
[]
[]
[]
[]
[]
[]
[]
[]
[]
[]
[]
[]
[]
[]
[]
[]
[]
[]
[]
[]
[]
[]
[]
[]
[]
[]
[]
[]
[]
[]
[]
[]
[]
[]
[]
[]
[]
[]
[]
[]
[]
[]
[]
[]
[]
[]
[]
[]
[]
[]
[]
[]
[]
[]
[]
[]
[]
[]
[]
[]
[]
[]
[]
[]
[]
[]
[]
[]
[]
[]
[]
[]
[]
[]
[]
[]
[]
[]
[]
[]
[]
[]
[]
[]
[]
[]
[]
[]
[]
[]
[]
[]
[]
[]
[]
[]
[]
[]
[]
[]
[]
[]
[]
[]
[]
[]
[]
[]
[]
[]
[]
[]
[]
[]
[]
[]
[]
[]
[]
[]
[]
[]
[]
[]
[]
[]
[]
[]
[]
[]
[]
[]
[]
[]
[]
[]
[]
[]
[]
[]
[]
[]
[]
[]
[]
[]
[]
[]
[]
[]
[]
[]
[]
[]
[]
[]
[]
[]
[]
[]
[]
[]
[]
[]
[]
[]
[]
[]
[]
[]
[]
[]
[]
[]
[]
[]
[]
[]
[]
[]
[]
[]
[]
[]
[]
[]
[]
[]
[]
[]
[]
[]
[]
[]
[]
[]
[]
[]
[]
[]
[]
[]
[]
[]
[]
[]
[]
[]
[]
[]
[]
[]
[]
[]
[]
[]
[]
[]
[]
[]
[]
[]
[]
[]
[]
[]
[]
[]
[]
[]
[]
[]
[]
[]
[]
[]
[]
[]
[]
[]
[]
[]
[]
[]
[]
[]
[]
[]
[]
[]
[]
[]
[]
[]
[]
[]
[]
[]
[]
[]
[]
[]
[]
[]
[]
[]
[]
[]
[]
[]
[]
[]
[]
[]
[]
[]
[]
[]
[]
[]
[]
[]
[]
[]
[]
[]
[]
[]
[]
[]
[]
[]
[]
[]
[]
[]
[]
[]
[]
[]
[]
[]
[]
[]
[]
[]
[]
[]
[]
[]
[]
[]
[]
[]
[]
[]
[]
[]
[]
[]
[]
[]
[]
[]
[]
[]
[]
[]
[]
[]
[]
[]
[]
[]
[]
[]
[]
[]
[]
[]
[]
[]
[]
[]
[]
[]
[]
[]
[]
[]
[]
[]
[]
[]
[]
[]
[]
[]
[]
[]
[]
[]
[]
[]
[]
[]
[]
[]
[]
[]
[]
[]
[]
[]
[]
[]
[]
[]
[]
[]
[]
[]
[]
[]
[]
[]
[]
[]
[]
[]
[]
[]
[]
[]
[]
[]
[]
[]
[]
[]
[]
[]
[]
[]
[]
[]
[]
[]
[]
[]
[]
[]
[]
[]
[]
[]
[]
[]
[]
[]
[]
[]
[]
[]
[]
[]
[]
[]
[]
[]
[]
[]
[]
[]
[]
[]
[]
[]
[]
[]
[]
[]
[]
[]
[]
[]
[]
[]
[]
[]
[]
[]
[]
[]
[]
[]
[]
[]
[]
[]
[]
[]
[]
[]
[]
[]
[]
[]
[]
[]
[]
[]
[]
[]
[]
[]
[]
[]
[]
[]
[]
[]
[]
[]
[]
[]
[]
[]
[]
[]
[]
[]
[]
[]
[]
[]
[]
[]
[]
[]
[]
[]
[]
[]
[]
[]
[]
[]
[]
[]
[]
[]
[]
[]
[]
[]
[]
[]
[]
[]
[]
[]
[]
[]
[]
[]
[]
[]
[]
[]
[]
[]
[]
[]
[]
[]
[]
[]
[]
[]
[]
[]
[]
[]
[]
[]
[]
[]
[]
[]
[]
[]
[]
[]
[]
[]
[]
[]
[]
[]
[]
[]
[]
[]
[]
[]
[]
[]
[]
[]
[]
[]
[]
[]
[]
[]
[]
[]
[]
[]
[]
[]
[]
[]
[]
[]
[]
[]
[]
[]
[]
[]
[]
[]
[]
[]
[]
[]
[]
[]
[]
[]
[]
[]
[]
[]
[]
[]
[]
[]
[]
[]
[]
[]
[]
[]
[]
[]
[]
[]
[]
[]
[]
[]
[]
[]
[]
[]
[]
[]
[]
[]
[]
[]
[]
[]
[]
[]
[]
[]
[]
[]
[]
[]
[]
[]
[]
[]
[]
[]
[]
[]
[]
[]
[]
[]
[]
[]
[]
[]
[]
[]
[]
[]
[]
[]
[]
[]
[]
[]
[]
[]
[]
[]
[]
[]
[]
[]
[]
[]
[]
[]
[]
[]
[]
[]
[]
[]
[]
[]
[]
[]
[]
[]
[]
[]
[]
[]
[]
[]
[]
[]
[]
[]
[]
[]
[]
[]
[]
[]
[]
[]
[]
[]
[]
[]
[]
[]
[]
[]
[]
[]
[]
[]
[]
[]
[]
[]
[]
[]
[]
[]
[]
[]
[]
[]
[]
[]
[]
[]
[]
[]
[]
[]
[]
[]
[]
[]
[]
[]
[]
[]
[]
[]
[]
[]
[]
[]
[]
[]
[]
[]
[]
[]
[]
[]
[]
[]
[]
[]
[]
[]
[]
[]
[]
[]
[]
[]
[]
[]
[]
[]
[]
[]
[]
[]
[]
[]
[]
[]
[]
[]
[]
[]
[]
[]
[]
[]
[]
[]
[]
[]
[]
[]
[]
[]
[]
[]
[]
[]
[]
[]
[]
[]
[]
[]
[]
[]
[]
[]
[]
[]
[]
[]
[]
[]
[]
[]
[]
[]
[]
[]
[]
[]
[]
[]
[]
[]
[]
[]
[]
[]
[]
[]
[]
[]
[]
[]
[]
[]
[]
[]
[]
[]
[]
[]
[]
[]
[]
[]
[]
[]
[]
[]
[]
[]
[]
[]
[]
[]
[]
[]
[]
[]
[]
[]
[]
[]
[]
[]
[]
[]
[]
[]
[]
[]
[]
[]
[]
[]
[]
[]
[]
[]
[]
[]
[]
[]
[]
[]
[]
[]
[]
[]
[]
[]
[]
[]
[]
[]
[]
[]
[]
[]
[]
[]
[]
[]
[]
[]
[]
[]
[]
[]
[]
[]
[]
[]
[]
[]
[]
[]
[]
[]
[]
[]
[]
[]
[]
[]
[]
[]
[]
[]
[]
[]
[]
[]
[]
[]
[]
[]
[]
[]
[]
[]
[]
[]
[]
[]
[]
[]
[]
[]
[]
[]
[]
[]
[]
[]
[]
[]
[]
[]
[]
[]
[]
[]
[]
[]
[]
[]
[]
[]
[]
[]
[]
[]
[]
[]
[]
[]
[]
[]
[]
[]
[]
[]
[]
[]
[]
[]
[]
[]
[]
[]
[]
[]
[]
[]
[]
[]
[]
[]
[]
[]
[]
[]
[]
[]
[]
[]
[]
[]
[]
[]
[]
[]
[]
[]
[]
[]
[]
[]
[]
[]
[]
[]
[]
[]
[]
[]
[]
[]
[]
[]
[]
[]
[]
[]
[]
[]
[]
[]
[]
[]
[]
[]
[]
[]
[]
[]
[]
[]
[]
[]
[]
[]
[]
[]
[]
[]
[]
[]
[]
[]
[]
[]
[]
[]
[]
[]
[]
[]
[]
[]
[]
[]
[]
[]
[]
[]
[]
[]
[]
[]
[]
[]
[]
[]
[]
[]
[]
[]
[]
[]
[]
[]
[]
[]
[]
[]
[]
[]
[]
[]
[]
[]
[]
[]
[]
[]
[]
[]
[]
[]
[]
[]
[]
[]
[]
[]
[]
[]
[]
[]
[]
[]
[]
[]
[]
[]
[]
[]
[]
[]
[]
[]
[]
[]
[]
[]
[]
[]
[]
[]
[]
[]
[]
[]
[]
[]
[]
[]
[]
[]
[]
[]
[]
[]
[]
[]
[]
[]
[]
[]
[]
[]
[]
[]
[]
[]
[]
[]
[]
[]
[]
[]
[]
[]
[]
[]
[]
[]
[]
[]
[]
[]
[]
[]
[]
[]
[]
[]
[]
[]
[]
[]
[]
[]
[]
[]
[]
[]
[]
[]
[]
[]
[]
[]
[]
[]
[]
[]
[]
[]
[]
[]
[]
[]
[]
[]
[]
[]
[]
[]
[]
[]
[]
[]
[]
[]
[]
[]
[]
[]
[]
[]
[]
[]
[]
[]
[]
[]
[]
[]
[]
[]
[]
[]
[]
[]
[]
[]
[]
[]
[]
[]
[]
[]
[]
[]
[]
[]
[]
[]
[]
[]
[]
[]
[]
[]
[]
[]
[]
[]
[]
[]
[]
[]
[]
[]
[]
[]
[]
[]
[]
[]
[]
[]
[]
[]
[]
[]
[]
[]
[]
[]
[]
[]
[]
[]
[]
[]
[]
[]
[]
[]
[]
[]
[]
[]
[]
[]
[]
[]
[]
[]
[]
[]
[]
[]
[]
[]
[]
[]
[]
[]
[]
[]
[]
[]
[]
[]
[]
[]
[]
[]
[]
[]
[]
[]
[]
[]
[]
[]
[]
[]
[]
[]
[]
[]
[]
[]
[]
[]
[]
[]
[]
[]
[]
[]
[]
[]
[]
[]
[]
[]
[]
[]
[]
[]
[]
[]
[]
[]
[]
[]
[]
[]
[]
[]
[]
[]
[]
[]
[]
[]
[]
[]
[]
[]
[]
[]
[]
[]
[]
[]
[]
[]
[]
[]
[]
[]
[]
[]
[]
[]
[]
[]
[]
[]
[]
[]
[]
[]
[]
[]
[]
[]
[]
[]
[]
[]
[]
[]
[]
[]
[]
[]
[]
[]
[]
[]
[]
[]
[]
[]
[]
[]
[]
[]
[]
[]
[]
[]
[]
[]
[]
[]
[]
[]
[]
[]
[]
[]
[]
[]
[]
[]
[]
[]
[]
[]
[]
[]
[]
[]
[]
[]
[]
[]
[]
[]
[]
[]
[]
[]
[]
[]
[]
[]
[]
[]
[]
[]
[]
[]
[]
[]
[]
[]
[]
[]
[]
[]
[]
[]
[]
[]
[]
[]
[]
[]
[]
[]
[]
[]
[]
[]
[]
[]
[]
[]
[]
[]
[]
[]
[]
[]
[]
[]
[]
[]
[]
[]
[]
[]
[]
[]
[]
[]
[]
[]
[]
[]
[]
[]
[]
[]
[]
[]
[]
[]
[]
[]
[]
[]
[]
[]
[]
[]
[]
[]
[]
[]
[]
[]
[]
[]
[]
[]
[]
[]
[]
[]
[]
[]
[]
[]
[]
[]
[]
[]
[]
[]
[]
[]
[]
[]
[]
[]
[]
[]
[]
[]
[]
[]
[]
[]
[]
[]
[]
[]
[]
[]
[]
[]
[]
[]
[]
[]
[]
[]
[]
[]
[]
[]
[]
[]
[]
[]
[]
[]
[]
[]
[]
[]
[]
[]
[]
[]
[]
[]
[]
[]
[]
[]
[]
[]
[]
[]
[]
[]
[]
[]
[]
[]
[]
[]
[]
[]
[]
[]
[]
[]
[]
[]
[]
[]
[]
[]
[]
[]
[]
[]
[]
[]
[]
[]
[]
[]
[]
[]
[]
[]
[]
[]
[]
[]
[]
[]
[]
[]
[]
[]
[]
[]
[]
[]
[]
[]
[]
[]
[]
[]
[]
[]
[]
[]
[]
[]
[]
[]
[]
[]
[]
[]
[]
[]
[]
[]
[]
[]
[]
[]
[]
[]
[]
[]
[]
[]
[]
[]
[]
[]
[]
[]
[]
[]
[]
[]
[]
[]
[]
[]
[]
[]
[]
[]
[]
[]
[]
[]
[]
[]
[]
[]
[]
[]
[]
[]
[]
[]
[]
[]
[]
[]
[]
[]
[]
[]
[]
[]
[]
[]
[]
[]
[]
[]
[]
[]
[]
[]
[]
[]
[]
[]
[]
[]
[]
[]
[]
[]
[]
[]
[]
[]
[]
[]
[]
[]
[]
[]
[]
[]
[]
[]
[]
[]
[]
[]
[]
[]
[]
[]
[]
[]
[]
[]
[]
[]
[]
[]
[]
[]
[]
[]
[]
[]
[]
[]
[]
[]
[]
[]
[]
[]
[]
[]
[]
[]
[]
[]
[]
[]
[]
[]
[]
[]
[]
[]
[]
[]
[]
[]
[]
[]
[]
[]
[]
[]
[]
[]
[]
[]
[]
[]
[]
[]
[]
[]
[]
[]
[]
[]
[]
[]
[]
[]
[]
[]
[]
[]
[]
[]
[]
[]
[]
[]
[]
[]
[]
[]
[]
[]
[]
[]
[]
[]
[]
[]
[]
[]
[]
[]
[]
[]
[]
[]
[]
[]
[]
[]
[]
[]
[]
[]
[]
[]
[]
[]
[]
[]
[]
[]
[]
[]
[]
[]
[]
[]
[]
[]
[]
[]
[]
[]
[]
[]
[]
[]
[]
[]
[]
[]
[]
[]
[]
[]
[]
[]
[]
[]
[]
[]
[]
[]
[]
[]
[]
[]
[]
[]
[]
[]
[]
[]
[]
[]
[]
[]
[]
[]
[]
[]
[]
[]
[]
[]
[]
[]
[]
[]
[]
[]
[]
[]
[]
[]
[]
[]
[]
[]
[]
[]
[]
[]
[]
[]
[]
[]
[]
[]
[]
[]
[]
[]
[]
[]
[]
[]
[]
[]
[]
[]
[]
[]
[]
[]
[]
[]
[]
[]
[]
[]
[]
[]
[]
[]
[]
[]
[]
[]
[]
[]
[]
[]
[]
[]
[]
[]
[]
[]
[]
[]
[]
[]
[]
[]
[]
[]
[]
[]
[]
[]
[]
[]
[]
[]
[]
[]
[]
[]
[]
[]
[]
[]
[]
[]
[]
[]
[]
[]
[]
[]
[]
[]
[]
[]
[]
[]
[]
[]
[]
[]
[]
[]
[]
[]
[]
[]
[]
[]
[]
[]
[]
[]
[]
[]
[]
[]
[]
[]
[]
[]
[]
[]
[]
[]
[]
[]
[]
[]
[]
[]
[]
[]
[]
[]
[]
[]
[]
[]
[]
[]
[]
[]
[]
[]
[]
[]
[]
[]
[]
[]
[]
[]
[]
[]
[]
[]
[]
[]
[]
[]
[]
[]
[]
[]
[]
[]
[]
[]
[]
[]
[]
[]
[]
[]
[]
[]
[]
[]
[]
[]
[]
[]
[]
[]
[]
[]
[]
[]
[]
[]
[]
[]
[]
[]
[]
[]
[]
[]
[]
[]
[]
[]
[]
[]
[]
[]
[]
[]
[]
[]
[]
[]
[]
[]
[]
[]
[]
[]
[]
[]
[]
[]
[]
[]
[]
[]
[]
[]
[]
[]
[]
[]
[]
[]
[]
[]
[]
[]
[]
[]
[]
[]
[]
[]
[]
[]
[]
[]
[]
[]
[]
[]
[]
[]
[]
[]
[]
[]
[]
[]
[]
[]
[]
[]
[]
[]
[]
[]
[]
[]
[]
[]
[]
[]
[]
[]
[]
[]
[]
[]
[]
[]
[]
[]
[]
[]
[]
[]
[]
[]
[]
[]
[]
[]
[]
[]
[]
[]
[]
[]
[]
[]
[]
[]
[]
[]
[]
[]
[]
[]
[]
[]
[]
[]
[]
[]
[]
[]
[]
[]
[]
[]
[]
[]
[]
[]
[]
[]
[]
[]
[]
[]
[]
[]
[]
[]
[]
[]
[]
[]
[]
[]
[]
[]
[]
[]
[]
[]
[]
[]
[]
[]
[]
[]
[]
[]
[]
[]
[]
[]
[]
[]
[]
[]
[]
[]
[]
[]
[]
[]
[]
[]
[]
[]
[]
[]
[]
[]
[]
[]
[]
[]
[]
[]
[]
[]
[]
[]
[]
[]
[]
[]
[]
[]
[]
[]
[]
[]
[]
[]
[]
[]
[]
[]
[]
[]
[]
[]
[]
[]
[]
[]
[]
[]
[]
[]
[]
[]
[]
[]
[]
[]
[]
[]
[]
[]
[]
[]
[]
[]
[]
[]
[]
[]
[]
[]
[]
[]
[]
[]
[]
[]
[]
[]
[]
[]
[]
[]
[]
[]
[]
[]
[]
[]
[]
[]
[]
[]
[]
[]
[]
[]
[]
[]
[]
[]
[]
[]
[]
[]
[]
[]
[]
[]
[]
[]
[]
[]
[]
[]
[]
[]
[]
[]
[]
[]
[]
[]
[]
[]
[]
[]
[]
[]
[]
[]
[]
[]
[]
[]
[]
[]
[]
[]
[]
[]
[]
[]
[]
[]
[]
[]
[]
[]
[]
[]
[]
[]
[]
[]
[]
[]
[]
[]
[]
[]
[]
[]
[]
[]
[]
[]
[]
[]
[]
[]
[]
[]
[]
[]
[]
[]
[]
[]
[]
[]
[]
[]
[]
[]
[]
[]
[]
[]
[]
[]
[]
[]
[]
[]
[]
[]
[]
[]
[]
[]
[]
[]
[]
[]
[]
[]
[]
[]
[]
[]
[]
[]
[]
[]
[]
[]
[]
[]
[]
[]
[]
[]
[]
[]
[]
[]
[]
[]
[]
[]
[]
[]
[]
[]
[]
[]
[]
[]
[]
[]
[]
[]
[]
[]
[]
[]
[]
[]
[]
[]
[]
[]
[]
[]
[]
[]
[]
[]
[]
[]
[]
[]
[]
[]
[]
[]
[]
[]
[]
[]
[]
[]
[]
[]
[]
[]
[]
[]
[]
[]
[]
[]
[]
[]
[]
[]
[]
[]
[]
[]
[]
[]
[]
[]
[]
[]
[]
[]
[]
[]
[]
[]
[]
[]
[]
[]
[]
[]
[]
[]
[]
[]
[]
[]
[]
[]
[]
[]
[]
[]
[]
[]
[]
[]
[]
[]
[]
[]
[]
[]
[]
[]
[]
[]
[]
[]
[]
[]
[]
[]
[]
[]
[]
[]
[]
[]
[]
[]
[]
[]
[]
[]
[]
[]
[]
[]
[]
[]
[]
[]
[]
[]
[]
[]
[]
[]
[]
[]
[]
[]
[]
[]
[]
[]
[]
[]
[]
[]
[]
[]
[]
[]
[]
[]
[]
[]
[]
[]
[]
[]
[]
[]
[]
[]
[]
[]
[]
[]
[]
[]
[]
[]
[]
[]
[]
[]
[]
[]
[]
[]
[]
[]
[]
[]
[]
[]
[]
[]
[]
[]
[]
[]
[]
[]
[]
[]
[]
[]
[]
[]
[]
[]
[]
[]
[]
[]
[]
[]
[]
[]
[]
[]
[]
[]
[]
[]
[]
[]
[]
[]
[]
[]
[]
[]
[]
[]
[]
[]
[]
[]
[]
[]
[]
[]
[]
[]
[]
[]
[]
[]
[]
[]
[]
[]
[]
[]
[]
[]
[]
[]
[]
[]
[]
[]
[]
[]
[]
[]
[]
[]
[]
[]
[]
[]
[]
[]
[]
[]
[]
[]
[]
[]
[]
[]
[]
[]
[]
[]
[]
[]
[]
[]
[]
[]
[]
[]
[]
[]
[]
[]
[]
[]
[]
[]
[]
[]
[]
[]
[]
[]
[]
[]
[]
[]
[]
[]
[]
[]
[]
[]
[]
[]
[]
[]
[]
[]
[]
[]
[]
[]
[]
[]
[]
[]
[]
[]
[]
[]
[]
[]
[]
[]
[]
[]
[]
[]
[]
[]
[]
[]
[]
[]
[]
[]
[]
[]
[]
[]
[]
[]
[]
[]
[]
[]
[]
[]
[]
[]
[]
[]
[]
[]
[]
[]
[]
[]
[]
[]
[]
[]
[]
[]
[]
[]
[]
[]
[]
[]
[]
[]
[]
[]
[]
[]
[]
[]
[]
[]
[]
[]
[]
[]
[]
[]
[]
[]
[]
[]
[]
[]
[]
[]
[]
[]
[]
[]
[]
[]
[]
[]
[]
[]
[]
[]
[]
[]
[]
[]
[]
[]
[]
[]
[]
[]
[]
[]
[]
[]
[]
[]
[]
[]
[]
[]
[]
[]
[]
[]
[]
[]
[]
[]
[]
[]
[]
[]
[]
[]
[]
[]
[]
[]
[]
[]
[]
[]
[]
[]
[]
[]
[]
[]
[]
[]
[]
[]
[]
[]
[]
[]
[]
[]
[]
[]
[]
[]
[]
[]
[]
[]
[]
[]
[]
[]
[]
[]
[]
[]
[]
[]
[]
[]
[]
[]
[]
[]
[]
[]
[]
[]
[]
[]
[]
[]
[]
[]
[]
[]
[]
[]
[]
[]
[]
[]
[]
[]
[]
[]
[]
[]
[]
[]
[]
[]
[]
[]
[]
[]
[]
[]
[]
[]
[]
[]
[]
[]
[]
[]
[]
[]
[]
[]
[]
[]
[]
[]
[]
[]
[]
[]
[]
[]
[]
[]
[]
[]
[]
[]
[]
[]
[]
[]
[]
[]
[]
[]
[]
[]
[]
[]
[]
[]
[]
[]
[]
[]
[]
[]
[]
[]
[]
[]
[]
[]
[]
[]
[]
[]
[]
[]
[]
[]
[]
[]
[]
[]
[]
[]
[]
[]
[]
[]
[]
[]
[]
[]
[]
[]
[]
[]
[]
[]
[]
[]
[]
[]
[]
[]
[]
[]
[]
[]
[]
[]
[]
[]
[]
[]
[]
[]
[]
[]
[]
[]
[]
[]
[]
[]
[]
[]
[]
[]
[]
[]
[]
[]
[]
[]
[]
[]
[]
[]
[]
[]
[]
[]
[]
[]
[]
[]
[]
[]
[]
[]
[]
[]
[]
[]
[]
[]
[]
[]
[]
[]
[]
[]
[]
[]
[]
[]
[]
[]
[]
[]
[]
[]
[]
[]
[]
[]
[]
[]
[]
[]
[]
[]
[]
[]
[]
[]
[]
[]
[]
[]
[]
[]
[]
[]
[]
[]
[]
[]
[]
[]
[]
[]
[]
[]
[]
[]
[]
[]
[]
[]
[]
[]
[]
[]
[]
[]
[]
[]
[]
[]
[]
[]
[]
[]
[]
[]
[]
[]
[]
[]
[]
[]
[]
[]
[]
[]
[]
[]
[]
[]
[]
[]
[]
[]
[]
[]
[]
[]
[]
[]
[]
[]
[]
[]
[]
[]
[]
[]
[]
[]
[]
[]
[]
[]
[]
[]
[]
[]
[]
[]
[]
[]
[]
[]
[]
[]
[]
[]
[]
[]
[]
[]
[]
[]
[]
[]
[]
[]
[]
[]
[]
[]
[]
[]
[]
[]
[]
[]
[]
[]
[]
[]
[]
[]
[]
[]
[]
[]
[]
[]
[]
[]
[]
[]
[]
[]
[]
[]
[]
[]
[]
[]
[]
[]
[]
[]
[]
[]
[]
[]
[]
[]
[]
[]
[]
[]
[]
[]
[]
[]
[]
[]
[]
[]
[]
[]
[]
[]
[]
[]
[]
[]
[]
[]
[]
[]
[]
[]
[]
[]
[]
[]
[]
[]
[]
[]
[]
[]
[]
[]
[]
[]
[]
[]
[]
[]
[]
[]
[]
[]
[]
[]
[]
[]
[]
[]
[]
[]
[]
[]
[]
[]
[]
[]
[]
[]
[]
[]
[]
[]
[]
[]
[]
[]
[]
[]
[]
[]
[]
[]
[]
[]
[]
[]
[]
[]
[]
[]
[]
[]
[]
[]
[]
[]
[]
[]
[]
[]
[]
[]
[]
[]
[]
[]
[]
[]
[]
[]
[]
[]
[]
[]
[]
[]
[]
[]
[]
[]
[]
[]
[]
[]
[]
[]
[]
[]
[]
[]
[]
[]
[]
[]
[]
[]
[]
[]
[]
[]
[]
[]
[]
[]
[]
[]
[]
[]
[]
[]
[]
[]
[]
[]
[]
[]
[]
[]
[]
[]
[]
[]
[]
[]
[]
[]
[]
[]
[]
[]
[]
[]
[]
[]
[]
[]
[]
[]
[]
[]
[]
[]
[]
[]
[]
[]
[]
[]
[]
[]
[]
[]
[]
[]
[]
[]
[]
[]
[]
[]
[]
[]
[]
[]
[]
[]
[]
[]
[]
[]
[]
[]
[]
[]
[]
[]
[]
[]
[]
[]
[]
[]
[]
[]
[]
[]
[]
[]
[]
[]
[]
[]
[]
[]
[]
[]
[]
[]
[]
[]
[]
[]
[]
[]
[]
[]
[]
[]
[]
[]
[]
[]
[]
[]
[]
[]
[]
[]
[]
[]
[]
[]
[]
[]
[]
[]
[]
[]
[]
[]
[]
[]
[]
[]
[]
[]
[]
[]
[]
[]
[]
[]
[]
[]
[]
[]
[]
[]
[]
[]
[]
[]
[]
[]
[]
[]
[]
[]
[]
[]
[]
[]
[]
[]
[]
[]
[]
[]
[]
[]
[]
[]
[]
[]
[]
[]
[]
[]
[]
[]
[]
[]
[]
[]
[]
[]
[]
[]
[]
[]
[]
[]
[]
[]
[]
[]
[]
[]
[]
[]
[]
[]
[]
[]
[]
[]
[]
[]
[]
[]
[]
[]
[]
[]
[]
[]
[]
[]
[]
[]
[]
[]
[]
[]
[]
[]
[]
[]
[]
[]
[]
[]
[]
[]
[]
[]
[]
[]
[]
[]
[]
[]
[]
[]
[]
[]
[]
[]
[]
[]
[]
[]
[]
[]
[]
[]
[]
[]
[]
[]
[]
[]
[]
[]
[]
[]
[]
[]
[]
[]
[]
[]
[]
[]
[]
[]
[]
[]
[]
[]
[]
[]
[]
[]
[]
[]
[]
[]
[]
[]
[]
[]
[]
[]
[]
[]
[]
[]
[]
[]
[]
[]
[]
[]
[]
[]
[]
[]
[]
[]
[]
[]
[]
[]
[]
[]
[]
[]
[]
[]
[]
[]
[]
[]
[]
[]
[]
[]
[]
[]
[]
[]
[]
[]
[]
[]
[]
[]
[]
[]
[]
[]
[]
[]
[]
[]
[]
[]
[]
[]
[]
[]
[]
[]
[]
[]
[]
[]
[]
[]
[]
[]
[]
[]
[]
[]
[]
[]
[]
[]
[]
[]
[]
[]
[]
[]
[]
[]
[]
[]
[]
[]
[]
[]
[]
[]
[]
[]
[]
[]
[]
[]
[]
[]
[]
[]
[]
[]
[]
[]
[]
[]
[]
[]
[]
[]
[]
[]
[]
[]
[]
[]
[]
[]
[]
[]
[]
[]
[]
[]
[]
[]
[]
[]
[]
[]
[]
[]
[]
[]
[]
[]
[]
[]
[]
[]
[]
[]
[]
[]
[]
[]
[]
[]
[]
[]
[]
[]
[]
[]
[]
[]
[]
[]
[]
[]
[]
[]
[]
[]
[]
[]
[]
[]
[]
[]
[]
[]
[]
[]
[]
[]
[]
[]
[]
[]
[]
[]
[]
[]
[]
[]
[]
[]
[]
[]
[]
[]
[]
[]
[]
[]
[]
[]
[]
[]
[]
[]
[]
[]
[]
[]
[]
[]
[]
[]
[]
[]
[]
[]
[]
[]
[]
[]
[]
[]
[]
[]
[]
[]
[]
[]
[]
[]
[]
[]
[]
[]
[]
[]
[]
[]
[]
[]
[]
[]
[]
[]
[]
[]
[]
[]
[]
[]
[]
[]
[]
[]
[]
[]
[]
[]
[]
[]
[]
[]
[]
[]
[]
[]
[]
[]
[]
[]
[]
[]
[]
[]
[]
[]
[]
[]
[]
[]
[]
[]
[]
[]
[]
[]
[]
[]
[]
[]
[]
[]
[]
[]
[]
[]
[]
[]
[]
[]
[]
[]
[]
[]
[]
[]
[]
[]
[]
[]
[]
[]
[]
[]
[]
[]
[]
[]
[]
[]
[]
[]
[]
[]
[]
[]
[]
[]
[]
[]
[]
[]
[]
[]
[]
[]
[]
[]
[]
[]
[]
[]
[]
[]
[]
[]
[]
[]
[]
[]
[]
[]
[]
[]
[]
[]
[]
[]
[]
[]
[]
[]
[]
[]
[]
[]
[]
[]
[]
[]
[]
[]
[]
[]
[]
[]
[]
[]
[]
[]
[]
[]
[]
[]
[]
[]
[]
[]
[]
[]
[]
[]
[]
[]
[]
[]
[]
[]
[]
[]
[]
[]
[]
[]
[]
[]
[]
[]
[]
[]
[]
[]
[]
[]
[]
[]
[]
[]
[]
[]
[]
[]
[]
[]
[]
[]
[]
[]
[]
[]
[]
[]
[]
[]
[]
[]
[]
[]
[]
[]
[]
[]
[]
[]
[]
[]
[]
[]
[]
[]
[]
[]
[]
[]
[]
[]
[]
[]
[]
[]
[]
[]
[]
[]
[]
[]
[]
[]
[]
[]
[]
[]
[]
[]
[]
[]
[]
[]
[]
[]
[]
[]
[]
[]
[]
[]
[]
[]
[]
[]
[]
[]
[]
[]
[]
[]
[]
[]
[]
[]
[]
[]
[]
[]
[]
[]
[]
[]
[]
[]
[]
[]
[]
[]
[]
[]
[]
[]
[]
[]
[]
[]
[]
[]
[]
[]
[]
[]
[]
[]
[]
[]
[]
[]
[]
[]
[]
[]
[]
[]
[]
[]
[]
[]
[]
[]
[]
[]
[]
[]
[]
[]
[]
[]
[]
[]
[]
[]
[]
[]
[]
[]
[]
[]
[]
[]
[]
[]
[]
[]
[]
[]
[]
[]
[]
[]
[]
[]
[]
[]
[]
[]
[]
[]
[]
[]
[]
[]
[]
[]
[]
[]
[]
[]
[]
[]
[]
[]
[]
[]
[]
[]
[]
[]
[]
[]
[]
[]
[]
[]
[]
[]
[]
[]
[]
[]
[]
[]
[]
[]
[]
[]
[]
[]
[]
[]
[]
[]
[]
[]
[]
[]
[]
[]
[]
[]
[]
[]
[]
[]
[]
[]
[]
[]
[]
[]
[]
[]
[]
[]
[]
[]
[]
[]
[]
[]
[]
[]
[]
[]
[]
[]
[]
[]
[]
[]
[]
[]
[]
[]
[]
[]
[]
[]
[]
[]
[]
[]
[]
[]
[]
[]
[]
[]
[]
[]
[]
[]
[]
[]
[]
[]
[]
[]
[]
[]
[]
[]
[]
[]
[]
[]
[]
[]
[]
[]
[]
[]
[]
[]
[]
[]
[]
[]
[]
[]
[]
[]
[]
[]
[]
[]
[]
[]
[]
[]
[]
[]
[]
[]
[]
[]
[]
[]
[]
[]
[]
[]
[]
[]
[]
[]
[]
[]
[]
[]
[]
[]
[]
[]
[]
[]
[]
[]
[]
[]
[]
[]
[]
[]
[]
[]
[]
[]
[]
[]
[]
[]
[]
[]
[]
[]
[]
[]
[]
[]
[]
[]
[]
[]
[]
[]
[]
[]
[]
[]
[]
[]
[]
[]
[]
[]
[]
[]
[]
[]
[]
[]
[]
[]
[]
[]
[]
[]
[]
[]
[]
[]
[]
[]
[]
[]
[]
[]
[]
[]
[]
[]
[]
[]
[]
[]
[]
[]
[]
[]
[]
[]
[]
[]
[]
[]
[]
[]
[]
[]
[]
[]
[]
[]
[]
[]
[]
[]
[]
[]
[]
[]
[]
[]
[]
[]
[]
[]
[]
[]
[]
[]
[]
[]
[]
[]
[]
[]
[]
[]
[]
[]
[]
[]
[]
[]
[]
[]
[]
[]
[]
[]
[]
[]
[]
[]
[]
[]
[]
[]
[]
[]
[]
[]
[]
[]
[]
[]
[]
[]
[]
[]
[]
[]
[]
[]
[]
[]
[]
[]
[]
[]
[]
[]
[]
[]
[]
[]
[]
[]
[]
[]
[]
[]
[]
[]
[]
[]
[]
[]
[]
[]
[]
[]
[]
[]
[]
[]
[]
[]
[]
[]
[]
[]
[]
[]
[]
[]
[]
[]
[]
[]
[]
[]
[]
[]
[]
[]
[]
[]
[]
[]
[]
[]
[]
[]
[]
[]
[]
[]
[]
[]
[]
[]
[]
[]
[]
[]
[]
[]
[]
[]
[]
[]
[]
[]
[]
[]
[]
[]
[]
[]
[]
[]
[]
[]
[]
[]
[]
[]
[]
[]
[]
[]
[]
[]
[]
[]
[]
[]
[]
[]
[]
[]
[]
[]
[]
[]
[]
[]
[]
[]
[]
[]
[]
[]
[]
[]
[]
[]
[]
[]
[]
[]
[]
[]
[]
[]
[]
[]
[]
[]
[]
[]
[]
[]
[]
[]
[]
[]
[]
[]
[]
[]
[]
[]
[]
[]
[]
[]
[]
[]
[]
[]
[]
[]
[]
[]
[]
[]
[]
[]
[]
[]
[]
[]
[]
[]
[]
[]
[]
[]
[]
[]
[]
[]
[]
[]
[]
[]
[]
[]
[]
[]
[]
[]
[]
[]
[]
[]
[]
[]
[]
[]
[]
[]
[]
[]
[]
[]
[]
[]
[]
[]
[]
[]
[]
[]
[]
[]
[]
[]
[]
[]
[]
[]
[]
[]
[]
[]
[]
[]
[]
[]
[]
[]
[]
[]
[]
[]
[]
[]
[]
[]
[]
[]
[]
[]
[]
[]
[]
[]
[]
[]
[]
[]
[]
[]
[]
[]
[]
[]
[]
[]
[]
[]
[]
[]
[]
[]
[]
[]
[]
[]
[]
[]
[]
[]
[]
[]
[]
[]
[]
[]
[]
[]
[]
[]
[]
[]
[]
[]
[]
[]
[]
[]
[]
[]
[]
[]
[]
[]
[]
[]
[]
[]
[]
[]
[]
[]
[]
[]
[]
[]
[]
[]
[]
[]
[]
[]
[]
[]
[]
[]
[]
[]
[]
[]
[]
[]
[]
[]
[]
[]
[]
[]
[]
[]
[]
[]
[]
[]
[]
[]
[]
[]
[]
[]
[]
[]
[]
[]
[]
[]
[]
[]
[]
[]
[]
[]
[]
[]
[]
[]
[]
[]
[]
[]
[]
[]
[]
[]
[]
[]
[]
[]
[]
[]
[]
[]
[]
[]
[]
[]
[]
[]
[]
[]
[]
[]
[]
[]
[]
[]
[]
[]
[]
[]
[]
[]
[]
[]
[]
[]
[]
[]
[]
[]
[]
[]
[]
[]
[]
[]
[]
[]
[]
[]
[]
[]
[]
[]
[]
[]
[]
[]
[]
[]
[]
[]
[]
[]
[]
[]
[]
[]
[]
[]
[]
[]
[]
[]
[]
[]
[]
[]
[]
[]
[]
[]
[]
[]
[]
[]
[]
[]
[]
[]
[]
[]
[]
[]
[]
[]
[]
[]
[]
[]
[]
[]
[]
[]
[]
[]
[]
[]
[]
[]
[]
[]
[]
[]
[]
[]
[]
[]
[]
[]
[]
[]
[]
[]
[]
[]
[]
[]
[]
[]
[]
[]
[]
[]
[]
[]
[]
[]
[]
[]
[]
[]
[]
[]
[]
[]
[]
[]
[]
[]
[]
[]
[]
[]
[]
[]
[]
[]
[]
[]
[]
[]
[]
[]
[]
[]
[]
[]
[]
[]
[]
[]
[]
[]
[]
[]
[]
[]
[]
[]
[]
[]
[]
[]
[]
[]
[]
[]
[]
[]
[]
[]
[]
[]
[]
[]
[]
[]
[]
[]
[]
[]
[]
[]
[]
[]
[]
[]
[]
[]
[]
[]
[]
[]
[]
[]
[]
[]
[]
[]
[]
[]
[]
[]
[]
[]
[]
[]
[]
[]
[]
[]
[]
[]
[]
[]
[]
[]
[]
[]
[]
[]
[]
[]
[]
[]
[]
[]
[]
[]
[]
[]
[]
[]
[]
[]
[]
[]
[]
[]
[]
[]
[]
[]
[]
[]
[]
[]
[]
[]
[]
[]
[]
[]
[]
[]
[]
[]
[]
[]
[]
[]
[]
[]
[]
[]
[]
[]
[]
[]
[]
[]
[]
[]
[]
[]
[]
[]
[]
[]
[]
[]
[]
[]
[]
[]
[]
[]
[]
[]
[]
[]
[]
[]
[]
[]
[]
[]
[]
[]
[]
[]
[]
[]
[]
[]
[]
[]
[]
[]
[]
[]
[]
[]
[]
[]
[]
[]
[]
[]
[]
[]
[]
[]
[]
[]
[]
[]
[]
[]
[]
[]
[]
[]
[]
[]
[]
[]
[]
[]
[]
[]
[]
[]
[]
[]
[]
[]
[]
[]
[]
[]
[]
[]
[]
[]
[]
[]
[]
[]
[]
[]
[]
[]
[]
[]
[]
[]
[]
[]
[]
[]
[]
[]
[]
[]
[]
[]
[]
[]
[]
[]
[]
[]
[]
[]
[]
[]
[]
[]
[]
[]
[]
[]
[]
[]
[]
[]
[]
[]
[]
[]
[]
[]
[]
[]
[]
[]
[]
[]
[]
[]
[]
[]
[]
[]
[]
[]
[]
[]
[]
[]
[]
[]
[]
[]
[]
[]
[]
[]
[]
[]
[]
[]
[]
[]
[]
[]
[]
[]
[]
[]
[]
[]
[]
[]
[]
[]
[]
[]
[]
[]
[]
[]
[]
[]
[]
[]
[]
[]
[]
[]
[]
[]
[]
[]
[]
[]
[]
[]
[]
[]
[]
[]
[]
[]
[]
[]
[]
[]
[]
[]
[]
[]
[]
[]
[]
[]
[]
[]
[]
[]
[]
[]
[]
[]
[]
[]
[]
[]
[]
[]
[]
[]
[]
[]
[]
[]
[]
[]
[]
[]
[]
[]
[]
[]
[]
[]
[]
[]
[]
[]
[]
[]
[]
[]
[]
[]
[]
[]
[]
[]
[]
[]
[]
[]
[]
[]
[]
[]
[]
[]
[]
[]
[]
[]
[]
[]
[]
[]
[]
[]
[]
[]
[]
[]
[]
[]
[]
[]
[]
[]
[]
[]
[]
[]
[]
[]
[]
[]
[]
[]
[]
[]
[]
[]
[]
[]
[]
[]
[]
[]
[]
[]
[]
[]
[]
[]
[]
[]
[]
[]
[]
[]
[]
[]
[]
[]
[]
[]
[]
[]
[]
[]
[]
[]
[]
[]
[]
[]
[]
[]
[]
[]
[]
[]
[]
[]
[]
[]
[]
[]
[]
[]
[]
[]
[]
[]
[]
[]
[]
[]
[]
[]
[]
[]
[]
[]
[]
[]
[]
[]
[]
[]
[]
[]
[]
[]
[]
[]
[]
[]
[]
[]
[]
[]
[]
[]
[]
[]
[]
[]
[]
[]
[]
[]
[]
[]
[]
[]
[]
[]
[]
[]
[]
[]
[]
[]
[]
[]
[]
[]
[]
[]
[]
[]
[]
[]
[]
[]
[]
[]
[]
[]
[]
[]
[]
[]
[]
[]
[]
[]
[]
[]
[]
[]
[]
[]
[]
[]
[]
[]
[]
[]
[]
[]
[]
[]
[]
[]
[]
[]
[]
[]
[]
[]
[]
[]
[]
[]
[]
[]
[]
[]
[]
[]
[]
[]
[]
[]
[]
[]
[]
[]
[]
[]
[]
[]
[]
[]
[]
[]
[]
[]
[]
[]
[]
[]
[]
[]
[]
[]
[]
[]
[]
[]
[]
[]
[]
[]
[]
[]
[]
[]
[]
[]
[]
[]
[]
[]
[]
[]
[]
[]
[]
[]
[]
[]
[]
[]
[]
[]
[]
[]
[]
[]
[]
[]
[]
[]
[]
[]
[]
[]
[]
[]
[]
[]
[]
[]
[]
[]
[]
[]
[]
[]
[]
[]
[]
[]
[]
[]
[]
[]
[]
[]
[]
[]
[]
[]
[]
[]
[]
[]
[]
[]
[]
[]
[]
[]
[]
[]
[]
[]
[]
[]
[]
[]
[]
[]
[]
[]
[]
[]
[]
[]
[]
[]
[]
[]
[]
[]
[]
[]
[]
[]
[]
[]
[]
[]
[]
[]
[]
[]
[]
[]
[]
[]
[]
[]
[]
[]
[]
[]
[]
[]
[]
[]
[]
[]
[]
[]
[]
[]
[]
[]
[]
[]
[]
[]
[]
[]
[]
[]
[]
[]
[]
[]
[]
[]
[]
[]
[]
[]
[]
[]
[]
[]
[]
[]
[]
[]
[]
[]
[]
[]
[]
[]
[]
[]
[]
[]
[]
[]
[]
[]
[]
[]
[]
[]
[]
[]
[]
[]
[]
[]
[]
[]
[]
[]
[]
[]
[]
[]
[]
[]
[]
[]
[]
[]
[]
[]
[]
[]
[]
[]
[]
[]
[]
[]
[]
[]
[]
[]
[]
[]
[]
[]
[]
[]
[]
[]
[]
[]
[]
[]
[]
[]
[]
[]
[]
[]
[]
[]
[]
[]
[]
[]
[]
[]
[]
[]
[]
[]
[]
[]
[]
[]
[]
[]
[]
[]
[]
[]
[]
[]
[]
[]
[]
[]
[]
[]
[]
[]
[]
[]
[]
[]
[]
[]
[]
[]
[]
[]
[]
[]
[]
[]
[]
[]
[]
[]
[]
[]
[]
[]
[]
[]
[]
[]
[]
[]
[]
[]
[]
[]
[]
[]
[]
[]
[]
[]
[]
[]
[]
[]
[]
[]
[]
[]
[]
[]
[]
[]
[]
[]
[]
[]
[]
[]
[]
[]
[]
[]
[]
[]
[]
[]
[]
[]
[]
[]
[]
[]
[]
[]
[]
[]
[]
[]
[]
[]
[]
[]
[]
[]
[]
[]
[]
[]
[]
[]
[]
[]
[]
[]
[]
[]
[]
[]
[]
[]
[]
[]
[]
[]
[]
[]
[]
[]
[]
[]
[]
[]
[]
[]
[]
[]
[]
[]
[]
[]
[]
[]
[]
[]
[]
[]
[]
[]
[]
[]
[]
[]
[]
[]
[]
[]
[]
[]
[]
[]
[]
[]
[]
[]
[]
[]
[]
[]
[]
[]
[]
[]
[]
[]
[]
[]
[]
[]
[]
[]
[]
[]
[]
[]
[]
[]
[]
[]
[]
[]
[]
[]
[]
[]
[]
[]
[]
[]
[]
[]
[]
[]
[]
[]
[]
[]
[]
[]
[]
[]
[]
[]
[]
[]
[]
[]
[]
[]
[]
[]
[]
[]
[]
[]
[]
[]
[]
[]
[]
[]
[]
[]
[]
[]
[]
[]
[]
[]
[]
[]
[]
[]
[]
[]
[]
[]
[]
[]
[]
[]
[]
[]
[]
[]
[]
[]
[]
[]
[]
[]
[]
[]
[]
[]
[]
[]
[]
[]
[]
[]
[]
[]
[]
[]
[]
[]
[]
[]
[]
[]
[]
[]
[]
[]
[]
[]
[]
[]
[]
[]
[]
[]
[]
[]
[]
[]
[]
[]
[]
[]
[]
[]
[]
[]
[]
[]
[]
[]
[]
[]
[]
[]
[]
[]
[]
[]
[]
[]
[]
[]
[]
[]
[]
[]
[]
[]
[]
[]
[]
[]
[]
[]
[]
[]
[]
[]
[]
[]
[]
[]
[]
[]
[]
[]
[]
[]
[]
[]
[]
[]
[]
[]
[]
[]
[]
[]
[]
[]
[]
[]
[]
[]
[]
[]
[]
[]
[]
[]
[]
[]
[]
[]
[]
[]
[]
[]
[]
[]
[]
[]
[]
[]
[]
[]
[]
[]
[]
[]
[]
[]
[]
[]
[]
[]
[]
[]
[]
[]
[]
[]
[]
[]
[]
[]
[]
[]
[]
[]
[]
[]
[]
[]
[]
[]
[]
[]
[]
[]
[]
[]
[]
[]
[]
[]
[]
[]
[]
[]
[]
[]
[]
[]
[]
[]
[]
[]
[]
[]
[]
[]
[]
[]
[]
[]
[]
[]
[]
[]
[]
[]
[]
[]
[]
[]
[]
[]
[]
[]
[]
[]
[]
[]
[]
[]
[]
[]
[]
[]
[]
[]
[]
[]
[]
[]
[]
[]
[]
[]
[]
[]
[]
[]
[]
[]
[]
[]
[]
[]
[]
[]
[]
[]
[]
[]
[]
[]
[]
[]
[]
[]
[]
[]
[]
[]
[]
[]
[]
[]
[]
[]
[]
[]
[]
[]
[]
[]
[]
[]
[]
[]
[]
[]
[]
[]
[]
[]
[]
[]
[]
[]
[]
[]
[]
[]
[]
[]
[]
[]
[]
[]
[]
[]
[]
[]
[]
[]
[]
[]
[]
[]
[]
[]
[]
[]
[]
[]
[]
[]
[]
[]
[]
[]
[]
[]
[]
[]
[]
[]
[]
[]
[]
[]
[]
[]
[]
[]
[]
[]
[]
[]
[]
[]
[]
[]
[]
[]
[]
[]
[]
[]
[]
[]
[]
[]
[]
[]
[]
[]
[]
[]
[]
[]
[]
[]
[]
[]
[]
[]
[]
[]
[]
[]
[]
[]
[]
[]
[]
[]
[]
[]
[]
[]
[]
[]
[]
[]
[]
[]
[]
[]
[]
[]
[]
[]
[]
[]
[]
[]
[]
[]
[]
[]
[]
[]
[]
[]
[]
[]
[]
[]
[]
[]
[]
[]
[]
[]
[]
[]
[]
[]
[]
[]
[]
[]
[]
[]
[]
[]
[]
[]
[]
[]
[]
[]
[]
[]
[]
[]
[]
[]
[]
[]
[]
[]
[]
[]
[]
[]
[]
[]
[]
[]
[]
[]
[]
[]
[]
[]
[]
[]
[]
[]
[]
[]
[]
[]
[]
[]
[]
[]
[]
[]
[]
[]
[]
[]
[]
[]
[]
[]
[]
[]
[]
[]
[]
[]
[]
[]
[]
[]
[]
[]
[]
[]
[]
[]
[]
[]
[]
[]
[]
[]
[]
[]
[]
[]
[]
[]
[]
[]
[]
[]
[]
[]
[]
[]
[]
[]
[]
[]
[]
[]
[]
[]
[]
[]
[]
[]
[]
[]
[]
[]
[]
[]
[]
[]
[]
[]
[]
[]
[]
[]
[]
[]
[]
[]
[]
[]
[]
[]
[]
[]
[]
[]
[]
[]
[]
[]
[]
[]
[]
[]
[]
[]
[]
[]
[]
[]
[]
[]
[]
[]
[]
[]
[]
[]
[]
[]
[]
[]
[]
[]
[]
[]
[]
[]
[]
[]
[]
[]
[]
[]
[]
[]
[]
[]
[]
[]
[]
[]
[]
[]
[]
[]
[]
[]
[]
[]
[]
[]
[]
[]
[]
[]
[]
[]
[]
[]
[]
[]
[]
[]
[]
[]
[]
[]
[]
[]
[]
[]
[]
[]
[]
[]
[]
[]
[]
[]
[]
[]
[]
[]
[]
[]
[]
[]
[]
[]
[]
[]
[]
[]
[]
[]
[]
[]
[]
[]
[]
[]
[]
[]
[]
[]
[]
[]
[]
[]
[]
[]
[]
[]
[]
[]
[]
[]
[]
[]
[]
[]
[]
[]
[]
[]
[]
[]
[]
[]
[]
[]
[]
[]
[]
[]
[]
[]
[]
[]
[]
[]
[]
[]
[]
[]
[]
[]
[]
[]
[]
[]
[]
[]
[]
[]
[]
[]
[]
[]
[]
[]
[]
[]
[]
[]
[]
[]
[]
[]
[]
[]
[]
[]
[]
[]
[]
[]
[]
[]
[]
[]
[]
[]
[]
[]
[]
[]
[]
[]
[]
[]
[]
[]
[]
[]
[]
[]
[]
[]
[]
[]
[]
[]
[]
[]
[]
[]
[]
[]
[]
[]
[]
[]
[]
[]
[]
[]
[]
[]
[]
[]
[]
[]
[]
[]
[]
[]
[]
[]
[]
[]
[]
[]
[]
[]
[]
[]
[]
[]
[]
[]
[]
[]
[]
[]
[]
[]
[]
[]
[]
[]
[]
[]
[]
[]
[]
[]
[]
[]
[]
[]
[]
[]
[]
[]
[]
[]
[]
[]
[]
[]
[]
[]
[]
[]
[]
[]
[]
[]
[]
[]
[]
[]
[]
[]
[]
[]
[]
[]
[]
[]
[]
[]
[]
[]
[]
[]
[]
[]
[]
[]
[]
[]
[]
[]
[]
[]
[]
[]
[]
[]
[]
[]
[]
[]
[]
[]
[]
[]
[]
[]
[]
[]
[]
[]
[]
[]
[]
[]
[]
[]
[]
[]
[]
[]
[]
[]
[]
[]
[]
[]
[]
[]
[]
[]
[]
[]
[]
[]
[]
[]
[]
[]
[]
[]
[]
[]
[]
[]
[]
[]
[]
[]
[]
[]
[]
[]
[]
[]
[]
[]
[]
[]
[]
[]
[]
[]
[]
[]
[]
[]
[]
[]
[]
[]
[]
[]
[]
[]
[]
[]
[]
[null,null,null,null,null,null,null,null,null,null,null,null,null,null,null,1]

{"sheet":"Step 4 bond aggregation","index":17,"n_rows":661,"n_cols":12,"rows_kept":661,"cut":false,"hidden":true,"merged":[]}
["Sector","Exposure","Economic Risk Group","Term","Recovery Category","Assigned Rating","Term Index","Mapping Row#"]
[{"$f":"Input!H$189","v":"Non-financial Corporates"},{"$f":"Input!C192","v":0},{"$f":"Input!C$191","v":1},{"$f":"Input!B$192","v":"Upto 1"},{"$f":"Input!E$189","v":1},{"$f":"IF(B2<>\"\",IF(C2=\"NA\",Lists!$D$9,IFERROR(HLOOKUP(C2,Input!$C$312:$L$335,H2,FALSE),\"NA\")), \"\")","v":"BB"},{"$f":"IFERROR(MATCH(D2,lov_term_buckets,0),\"\")","v":1},{"$f":"INDEX($L$2:$L$8,MATCH(A2,$K$2:$K$8,0))","v":4},null,null,{"$f":"Lists!B3","v":"Non-financial Corporates"},4]
[{"$f":"Input!H$189","v":"Non-financial Corporates"},{"$f":"Input!C193","v":0},{"$f":"Input!C$191","v":1},{"$f":"Input!B$193","v":"1.01 to 5"},{"$f":"Input!E$189","v":1},{"$f":"IF(B3<>\"\",IF(C3=\"NA\",Lists!$D$9,IFERROR(HLOOKUP(C3,Input!$C$312:$L$335,H3,FALSE),\"NA\")), \"\")","v":"BB"},{"$f":"IFERROR(MATCH(D3,lov_term_buckets,0),\"\")","v":2},{"$f":"INDEX($L$2:$L$8,MATCH(A3,$K$2:$K$8,0))","v":4},null,null,{"$f":"Lists!B4","v":"Financials"},8]
[{"$f":"Input!H$189","v":"Non-financial Corporates"},{"$f":"Input!C194","v":0},{"$f":"Input!C$191","v":1},{"$f":"Input!B$194","v":"5.01 to 10"},{"$f":"Input!E$189","v":1},{"$f":"IF(B4<>\"\",IF(C4=\"NA\",Lists!$D$9,IFERROR(HLOOKUP(C4,Input!$C$312:$L$335,H4,FALSE),\"NA\")), \"\")","v":"BB"},3,4,null,null,{"$f":"Lists!B5","v":"Sovereign / Public Finance"},12]
[{"$f":"Input!H$189","v":"Non-financial Corporates"},{"$f":"Input!C195","v":0},{"$f":"Input!C$191","v":1},{"$f":"Input!B$195","v":"10.01 to 20"},{"$f":"Input!E$189","v":1},{"$f":"IF(B5<>\"\",IF(C5=\"NA\",Lists!$D$9,IFERROR(HLOOKUP(C5,Input!$C$312:$L$335,H5,FALSE),\"NA\")), \"\")","v":"BB"},4,4,null,null,{"$f":"Lists!B6","v":"Structured Finance - Senior"},16]
[{"$f":"Input!H$189","v":"Non-financial Corporates"},{"$f":"Input!C196","v":0},{"$f":"Input!C$191","v":1},{"$f":"Input!B$196","v":"More than 20"},{"$f":"Input!E$189","v":1},{"$f":"IF(B6<>\"\",IF(C6=\"NA\",Lists!$D$9,IFERROR(HLOOKUP(C6,Input!$C$312:$L$335,H6,FALSE),\"NA\")), \"\")","v":"BB"},5,4,null,null,{"$f":"Lists!B7","v":"Structured Finance - Mezz."},20]
[{"$f":"Input!H$189","v":"Non-financial Corporates"},{"$f":"Input!D192","v":0},{"$f":"Input!D$191","v":2},{"$f":"Input!B$192","v":"Upto 1"},{"$f":"Input!E$189","v":1},{"$f":"IF(B7<>\"\",IF(C7=\"NA\",Lists!$D$9,IFERROR(HLOOKUP(C7,Input!$C$312:$L$335,H7,FALSE),\"NA\")), \"\")","v":"BB"},1,4,null,null,{"$f":"Lists!B8","v":"Structured Finance - Junior"},24]
[{"$f":"Input!H$189","v":"Non-financial Corporates"},{"$f":"Input!D193","v":0},{"$f":"Input!D$191","v":2},{"$f":"Input!B$193","v":"1.01 to 5"},{"$f":"Input!E$189","v":1},{"$f":"IF(B8<>\"\",IF(C8=\"NA\",Lists!$D$9,IFERROR(HLOOKUP(C8,Input!$C$312:$L$335,H8,FALSE),\"NA\")), \"\")","v":"BB"},2,4]
[{"$f":"Input!H$189","v":"Non-financial Corporates"},{"$f":"Input!D194","v":0},{"$f":"Input!D$191","v":2},{"$f":"Input!B$194","v":"5.01 to 10"},{"$f":"Input!E$189","v":1},{"$f":"IF(B9<>\"\",IF(C9=\"NA\",Lists!$D$9,IFERROR(HLOOKUP(C9,Input!$C$312:$L$335,H9,FALSE),\"NA\")), \"\")","v":"BB"},3,4]
[{"$f":"Input!H$189","v":"Non-financial Corporates"},{"$f":"Input!D195","v":0},{"$f":"Input!D$191","v":2},{"$f":"Input!B$195","v":"10.01 to 20"},{"$f":"Input!E$189","v":1},{"$f":"IF(B10<>\"\",IF(C10=\"NA\",Lists!$D$9,IFERROR(HLOOKUP(C10,Input!$C$312:$L$335,H10,FALSE),\"NA\")), \"\")","v":"BB"},4,4]
[{"$f":"Input!H$189","v":"Non-financial Corporates"},{"$f":"Input!D196","v":0},{"$f":"Input!D$191","v":2},{"$f":"Input!B$196","v":"More than 20"},{"$f":"Input!E$189","v":1},{"$f":"IF(B11<>\"\",IF(C11=\"NA\",Lists!$D$9,IFERROR(HLOOKUP(C11,Input!$C$312:$L$335,H11,FALSE),\"NA\")), \"\")","v":"BB"},5,4]
[{"$f":"Input!H$189","v":"Non-financial Corporates"},{"$f":"Input!E192","v":0},{"$f":"Input!E$191","v":3},{"$f":"Input!B$192","v":"Upto 1"},{"$f":"Input!E$189","v":1},{"$f":"IF(B12<>\"\",IF(C12=\"NA\",Lists!$D$9,IFERROR(HLOOKUP(C12,Input!$C$312:$L$335,H12,FALSE),\"NA\")), \"\")","v":"BB"},1,4]
[{"$f":"Input!H$189","v":"Non-financial Corporates"},{"$f":"Input!E193","v":0},{"$f":"Input!E$191","v":3},{"$f":"Input!B$193","v":"1.01 to 5"},{"$f":"Input!E$189","v":1},{"$f":"IF(B13<>\"\",IF(C13=\"NA\",Lists!$D$9,IFERROR(HLOOKUP(C13,Input!$C$312:$L$335,H13,FALSE),\"NA\")), \"\")","v":"BB"},2,4]
[{"$f":"Input!H$189","v":"Non-financial Corporates"},{"$f":"Input!E194","v":0},{"$f":"Input!E$191","v":3},{"$f":"Input!B$194","v":"5.01 to 10"},{"$f":"Input!E$189","v":1},{"$f":"IF(B14<>\"\",IF(C14=\"NA\",Lists!$D$9,IFERROR(HLOOKUP(C14,Input!$C$312:$L$335,H14,FALSE),\"NA\")), \"\")","v":"BB"},3,4]
[{"$f":"Input!H$189","v":"Non-financial Corporates"},{"$f":"Input!E195","v":0},{"$f":"Input!E$191","v":3},{"$f":"Input!B$195","v":"10.01 to 20"},{"$f":"Input!E$189","v":1},{"$f":"IF(B15<>\"\",IF(C15=\"NA\",Lists!$D$9,IFERROR(HLOOKUP(C15,Input!$C$312:$L$335,H15,FALSE),\"NA\")), \"\")","v":"BB"},4,4]
[{"$f":"Input!H$189","v":"Non-financial Corporates"},{"$f":"Input!E196","v":0},{"$f":"Input!E$191","v":3},{"$f":"Input!B$196","v":"More than 20"},{"$f":"Input!E$189","v":1},{"$f":"IF(B16<>\"\",IF(C16=\"NA\",Lists!$D$9,IFERROR(HLOOKUP(C16,Input!$C$312:$L$335,H16,FALSE),\"NA\")), \"\")","v":"BB"},5,4]
[{"$f":"Input!H$189","v":"Non-financial Corporates"},{"$f":"Input!F192","v":0},{"$f":"Input!F$191","v":4},{"$f":"Input!B$192","v":"Upto 1"},{"$f":"Input!E$189","v":1},{"$f":"IF(B17<>\"\",IF(C17=\"NA\",Lists!$D$9,IFERROR(HLOOKUP(C17,Input!$C$312:$L$335,H17,FALSE),\"NA\")), \"\")","v":"BB"},1,4]
[{"$f":"Input!H$189","v":"Non-financial Corporates"},{"$f":"Input!F193","v":0},{"$f":"Input!F$191","v":4},{"$f":"Input!B$193","v":"1.01 to 5"},{"$f":"Input!E$189","v":1},{"$f":"IF(B18<>\"\",IF(C18=\"NA\",Lists!$D$9,IFERROR(HLOOKUP(C18,Input!$C$312:$L$335,H18,FALSE),\"NA\")), \"\")","v":"BB"},2,4]
[{"$f":"Input!H$189","v":"Non-financial Corporates"},{"$f":"Input!F194","v":0},{"$f":"Input!F$191","v":4},{"$f":"Input!B$194","v":"5.01 to 10"},{"$f":"Input!E$189","v":1},{"$f":"IF(B19<>\"\",IF(C19=\"NA\",Lists!$D$9,IFERROR(HLOOKUP(C19,Input!$C$312:$L$335,H19,FALSE),\"NA\")), \"\")","v":"BB"},3,4]
[{"$f":"Input!H$189","v":"Non-financial Corporates"},{"$f":"Input!F195","v":0},{"$f":"Input!F$191","v":4},{"$f":"Input!B$195","v":"10.01 to 20"},{"$f":"Input!E$189","v":1},{"$f":"IF(B20<>\"\",IF(C20=\"NA\",Lists!$D$9,IFERROR(HLOOKUP(C20,Input!$C$312:$L$335,H20,FALSE),\"NA\")), \"\")","v":"BB"},4,4]
[{"$f":"Input!H$189","v":"Non-financial Corporates"},{"$f":"Input!F196","v":0},{"$f":"Input!F$191","v":4},{"$f":"Input!B$196","v":"More than 20"},{"$f":"Input!E$189","v":1},{"$f":"IF(B21<>\"\",IF(C21=\"NA\",Lists!$D$9,IFERROR(HLOOKUP(C21,Input!$C$312:$L$335,H21,FALSE),\"NA\")), \"\")","v":"BB"},5,4]
[{"$f":"Input!H$189","v":"Non-financial Corporates"},{"$f":"Input!G192","v":0},{"$f":"Input!G$191","v":5},{"$f":"Input!B$192","v":"Upto 1"},{"$f":"Input!E$189","v":1},{"$f":"IF(B22<>\"\",IF(C22=\"NA\",Lists!$D$9,IFERROR(HLOOKUP(C22,Input!$C$312:$L$335,H22,FALSE),\"NA\")), \"\")","v":"BB"},1,4]
[{"$f":"Input!H$189","v":"Non-financial Corporates"},{"$f":"Input!G193","v":0},{"$f":"Input!G$191","v":5},{"$f":"Input!B$193","v":"1.01 to 5"},{"$f":"Input!E$189","v":1},{"$f":"IF(B23<>\"\",IF(C23=\"NA\",Lists!$D$9,IFERROR(HLOOKUP(C23,Input!$C$312:$L$335,H23,FALSE),\"NA\")), \"\")","v":"BB"},2,4]
[{"$f":"Input!H$189","v":"Non-financial Corporates"},{"$f":"Input!G194","v":0},{"$f":"Input!G$191","v":5},{"$f":"Input!B$194","v":"5.01 to 10"},{"$f":"Input!E$189","v":1},{"$f":"IF(B24<>\"\",IF(C24=\"NA\",Lists!$D$9,IFERROR(HLOOKUP(C24,Input!$C$312:$L$335,H24,FALSE),\"NA\")), \"\")","v":"BB"},3,4]
[{"$f":"Input!H$189","v":"Non-financial Corporates"},{"$f":"Input!G195","v":0},{"$f":"Input!G$191","v":5},{"$f":"Input!B$195","v":"10.01 to 20"},{"$f":"Input!E$189","v":1},{"$f":"IF(B25<>\"\",IF(C25=\"NA\",Lists!$D$9,IFERROR(HLOOKUP(C25,Input!$C$312:$L$335,H25,FALSE),\"NA\")), \"\")","v":"BB"},4,4]
[{"$f":"Input!H$189","v":"Non-financial Corporates"},{"$f":"Input!G196","v":0},{"$f":"Input!G$191","v":5},{"$f":"Input!B$196","v":"More than 20"},{"$f":"Input!E$189","v":1},{"$f":"IF(B26<>\"\",IF(C26=\"NA\",Lists!$D$9,IFERROR(HLOOKUP(C26,Input!$C$312:$L$335,H26,FALSE),\"NA\")), \"\")","v":"BB"},5,4]
[{"$f":"Input!H$189","v":"Non-financial Corporates"},{"$f":"Input!H192","v":0},{"$f":"Input!H$191","v":6},{"$f":"Input!B$192","v":"Upto 1"},{"$f":"Input!E$189","v":1},{"$f":"IF(B27<>\"\",IF(C27=\"NA\",Lists!$D$9,IFERROR(HLOOKUP(C27,Input!$C$312:$L$335,H27,FALSE),\"NA\")), \"\")","v":"BB"},1,4]
[{"$f":"Input!H$189","v":"Non-financial Corporates"},{"$f":"Input!H193","v":0},{"$f":"Input!H$191","v":6},{"$f":"Input!B$193","v":"1.01 to 5"},{"$f":"Input!E$189","v":1},{"$f":"IF(B28<>\"\",IF(C28=\"NA\",Lists!$D$9,IFERROR(HLOOKUP(C28,Input!$C$312:$L$335,H28,FALSE),\"NA\")), \"\")","v":"BB"},2,4]
[{"$f":"Input!H$189","v":"Non-financial Corporates"},{"$f":"Input!H194","v":0},{"$f":"Input!H$191","v":6},{"$f":"Input!B$194","v":"5.01 to 10"},{"$f":"Input!E$189","v":1},{"$f":"IF(B29<>\"\",IF(C29=\"NA\",Lists!$D$9,IFERROR(HLOOKUP(C29,Input!$C$312:$L$335,H29,FALSE),\"NA\")), \"\")","v":"BB"},3,4]
[{"$f":"Input!H$189","v":"Non-financial Corporates"},{"$f":"Input!H195","v":0},{"$f":"Input!H$191","v":6},{"$f":"Input!B$195","v":"10.01 to 20"},{"$f":"Input!E$189","v":1},{"$f":"IF(B30<>\"\",IF(C30=\"NA\",Lists!$D$9,IFERROR(HLOOKUP(C30,Input!$C$312:$L$335,H30,FALSE),\"NA\")), \"\")","v":"BB"},4,4]
[{"$f":"Input!H$189","v":"Non-financial Corporates"},{"$f":"Input!H196","v":0},{"$f":"Input!H$191","v":6},{"$f":"Input!B$196","v":"More than 20"},{"$f":"Input!E$189","v":1},{"$f":"IF(B31<>\"\",IF(C31=\"NA\",Lists!$D$9,IFERROR(HLOOKUP(C31,Input!$C$312:$L$335,H31,FALSE),\"NA\")), \"\")","v":"BB"},5,4]
[{"$f":"Input!H$189","v":"Non-financial Corporates"},{"$f":"Input!I192","v":0},{"$f":"Input!I$191","v":7},{"$f":"Input!B$192","v":"Upto 1"},{"$f":"Input!E$189","v":1},{"$f":"IF(B32<>\"\",IF(C32=\"NA\",Lists!$D$9,IFERROR(HLOOKUP(C32,Input!$C$312:$L$335,H32,FALSE),\"NA\")), \"\")","v":"BB"},1,4]
[{"$f":"Input!H$189","v":"Non-financial Corporates"},{"$f":"Input!I193","v":0},{"$f":"Input!I$191","v":7},{"$f":"Input!B$193","v":"1.01 to 5"},{"$f":"Input!E$189","v":1},{"$f":"IF(B33<>\"\",IF(C33=\"NA\",Lists!$D$9,IFERROR(HLOOKUP(C33,Input!$C$312:$L$335,H33,FALSE),\"NA\")), \"\")","v":"BB"},2,4]
[{"$f":"Input!H$189","v":"Non-financial Corporates"},{"$f":"Input!I194","v":0},{"$f":"Input!I$191","v":7},{"$f":"Input!B$194","v":"5.01 to 10"},{"$f":"Input!E$189","v":1},{"$f":"IF(B34<>\"\",IF(C34=\"NA\",Lists!$D$9,IFERROR(HLOOKUP(C34,Input!$C$312:$L$335,H34,FALSE),\"NA\")), \"\")","v":"BB"},3,4]
[{"$f":"Input!H$189","v":"Non-financial Corporates"},{"$f":"Input!I195","v":0},{"$f":"Input!I$191","v":7},{"$f":"Input!B$195","v":"10.01 to 20"},{"$f":"Input!E$189","v":1},{"$f":"IF(B35<>\"\",IF(C35=\"NA\",Lists!$D$9,IFERROR(HLOOKUP(C35,Input!$C$312:$L$335,H35,FALSE),\"NA\")), \"\")","v":"BB"},4,4]
[{"$f":"Input!H$189","v":"Non-financial Corporates"},{"$f":"Input!I196","v":0},{"$f":"Input!I$191","v":7},{"$f":"Input!B$196","v":"More than 20"},{"$f":"Input!E$189","v":1},{"$f":"IF(B36<>\"\",IF(C36=\"NA\",Lists!$D$9,IFERROR(HLOOKUP(C36,Input!$C$312:$L$335,H36,FALSE),\"NA\")), \"\")","v":"BB"},5,4]
[{"$f":"Input!H$189","v":"Non-financial Corporates"},{"$f":"Input!J192","v":0},{"$f":"Input!J$191","v":8},{"$f":"Input!B$192","v":"Upto 1"},{"$f":"Input!E$189","v":1},{"$f":"IF(B37<>\"\",IF(C37=\"NA\",Lists!$D$9,IFERROR(HLOOKUP(C37,Input!$C$312:$L$335,H37,FALSE),\"NA\")), \"\")","v":"B"},1,4]
[{"$f":"Input!H$189","v":"Non-financial Corporates"},{"$f":"Input!J193","v":0},{"$f":"Input!J$191","v":8},{"$f":"Input!B$193","v":"1.01 to 5"},{"$f":"Input!E$189","v":1},{"$f":"IF(B38<>\"\",IF(C38=\"NA\",Lists!$D$9,IFERROR(HLOOKUP(C38,Input!$C$312:$L$335,H38,FALSE),\"NA\")), \"\")","v":"B"},2,4]
[{"$f":"Input!H$189","v":"Non-financial Corporates"},{"$f":"Input!J194","v":0},{"$f":"Input!J$191","v":8},{"$f":"Input!B$194","v":"5.01 to 10"},{"$f":"Input!E$189","v":1},{"$f":"IF(B39<>\"\",IF(C39=\"NA\",Lists!$D$9,IFERROR(HLOOKUP(C39,Input!$C$312:$L$335,H39,FALSE),\"NA\")), \"\")","v":"B"},3,4]
[{"$f":"Input!H$189","v":"Non-financial Corporates"},{"$f":"Input!J195","v":0},{"$f":"Input!J$191","v":8},{"$f":"Input!B$195","v":"10.01 to 20"},{"$f":"Input!E$189","v":1},{"$f":"IF(B40<>\"\",IF(C40=\"NA\",Lists!$D$9,IFERROR(HLOOKUP(C40,Input!$C$312:$L$335,H40,FALSE),\"NA\")), \"\")","v":"B"},4,4]
[{"$f":"Input!H$189","v":"Non-financial Corporates"},{"$f":"Input!J196","v":0},{"$f":"Input!J$191","v":8},{"$f":"Input!B$196","v":"More than 20"},{"$f":"Input!E$189","v":1},{"$f":"IF(B41<>\"\",IF(C41=\"NA\",Lists!$D$9,IFERROR(HLOOKUP(C41,Input!$C$312:$L$335,H41,FALSE),\"NA\")), \"\")","v":"B"},5,4]
[{"$f":"Input!H$189","v":"Non-financial Corporates"},{"$f":"Input!K192","v":0},{"$f":"Input!K$191","v":9},{"$f":"Input!B$192","v":"Upto 1"},{"$f":"Input!E$189","v":1},{"$f":"IF(B42<>\"\",IF(C42=\"NA\",Lists!$D$9,IFERROR(HLOOKUP(C42,Input!$C$312:$L$335,H42,FALSE),\"NA\")), \"\")","v":"B"},1,4]
[{"$f":"Input!H$189","v":"Non-financial Corporates"},{"$f":"Input!K193","v":0},{"$f":"Input!K$191","v":9},{"$f":"Input!B$193","v":"1.01 to 5"},{"$f":"Input!E$189","v":1},{"$f":"IF(B43<>\"\",IF(C43=\"NA\",Lists!$D$9,IFERROR(HLOOKUP(C43,Input!$C$312:$L$335,H43,FALSE),\"NA\")), \"\")","v":"B"},2,4]
[{"$f":"Input!H$189","v":"Non-financial Corporates"},{"$f":"Input!K194","v":0},{"$f":"Input!K$191","v":9},{"$f":"Input!B$194","v":"5.01 to 10"},{"$f":"Input!E$189","v":1},{"$f":"IF(B44<>\"\",IF(C44=\"NA\",Lists!$D$9,IFERROR(HLOOKUP(C44,Input!$C$312:$L$335,H44,FALSE),\"NA\")), \"\")","v":"B"},3,4]
[{"$f":"Input!H$189","v":"Non-financial Corporates"},{"$f":"Input!K195","v":0},{"$f":"Input!K$191","v":9},{"$f":"Input!B$195","v":"10.01 to 20"},{"$f":"Input!E$189","v":1},{"$f":"IF(B45<>\"\",IF(C45=\"NA\",Lists!$D$9,IFERROR(HLOOKUP(C45,Input!$C$312:$L$335,H45,FALSE),\"NA\")), \"\")","v":"B"},4,4]
[{"$f":"Input!H$189","v":"Non-financial Corporates"},{"$f":"Input!K196","v":0},{"$f":"Input!K$191","v":9},{"$f":"Input!B$196","v":"More than 20"},{"$f":"Input!E$189","v":1},{"$f":"IF(B46<>\"\",IF(C46=\"NA\",Lists!$D$9,IFERROR(HLOOKUP(C46,Input!$C$312:$L$335,H46,FALSE),\"NA\")), \"\")","v":"B"},5,4]
[{"$f":"Input!H$189","v":"Non-financial Corporates"},{"$f":"Input!L192","v":0},{"$f":"Input!L$191","v":10},{"$f":"Input!B$192","v":"Upto 1"},{"$f":"Input!E$189","v":1},{"$f":"IF(B47<>\"\",IF(C47=\"NA\",Lists!$D$9,IFERROR(HLOOKUP(C47,Input!$C$312:$L$335,H47,FALSE),\"NA\")), \"\")","v":"CCC-C"},1,4]
[{"$f":"Input!H$189","v":"Non-financial Corporates"},{"$f":"Input!L193","v":0},{"$f":"Input!L$191","v":10},{"$f":"Input!B$193","v":"1.01 to 5"},{"$f":"Input!E$189","v":1},{"$f":"IF(B48<>\"\",IF(C48=\"NA\",Lists!$D$9,IFERROR(HLOOKUP(C48,Input!$C$312:$L$335,H48,FALSE),\"NA\")), \"\")","v":"CCC-C"},2,4]
[{"$f":"Input!H$189","v":"Non-financial Corporates"},{"$f":"Input!L194","v":0},{"$f":"Input!L$191","v":10},{"$f":"Input!B$194","v":"5.01 to 10"},{"$f":"Input!E$189","v":1},{"$f":"IF(B49<>\"\",IF(C49=\"NA\",Lists!$D$9,IFERROR(HLOOKUP(C49,Input!$C$312:$L$335,H49,FALSE),\"NA\")), \"\")","v":"CCC-C"},3,4]
[{"$f":"Input!H$189","v":"Non-financial Corporates"},{"$f":"Input!L195","v":0},{"$f":"Input!L$191","v":10},{"$f":"Input!B$195","v":"10.01 to 20"},{"$f":"Input!E$189","v":1},{"$f":"IF(B50<>\"\",IF(C50=\"NA\",Lists!$D$9,IFERROR(HLOOKUP(C50,Input!$C$312:$L$335,H50,FALSE),\"NA\")), \"\")","v":"CCC-C"},4,4]
[{"$f":"Input!H$189","v":"Non-financial Corporates"},{"$f":"Input!L196","v":0},{"$f":"Input!L$191","v":10},{"$f":"Input!B$196","v":"More than 20"},{"$f":"Input!E$189","v":1},{"$f":"IF(B51<>\"\",IF(C51=\"NA\",Lists!$D$9,IFERROR(HLOOKUP(C51,Input!$C$312:$L$335,H51,FALSE),\"NA\")), \"\")","v":"CCC-C"},5,4]
[{"$f":"Input!H$189","v":"Non-financial Corporates"},{"$f":"Input!M192","v":0},{"$f":"Input!M$191","v":"NA"},{"$f":"Input!B$192","v":"Upto 1"},{"$f":"Input!E$189","v":1},{"$f":"IF(B52<>\"\",IF(C52=\"NA\",Lists!$D$9,IFERROR(HLOOKUP(C52,Input!$C$312:$L$335,H52,FALSE),\"NA\")), \"\")","v":"CCC-C"},1,4]
[{"$f":"Input!H$189","v":"Non-financial Corporates"},{"$f":"Input!M193","v":0},{"$f":"Input!M$191","v":"NA"},{"$f":"Input!B$193","v":"1.01 to 5"},{"$f":"Input!E$189","v":1},{"$f":"IF(B53<>\"\",IF(C53=\"NA\",Lists!$D$9,IFERROR(HLOOKUP(C53,Input!$C$312:$L$335,H53,FALSE),\"NA\")), \"\")","v":"CCC-C"},2,4]
[{"$f":"Input!H$189","v":"Non-financial Corporates"},{"$f":"Input!M194","v":0},{"$f":"Input!M$191","v":"NA"},{"$f":"Input!B$194","v":"5.01 to 10"},{"$f":"Input!E$189","v":1},{"$f":"IF(B54<>\"\",IF(C54=\"NA\",Lists!$D$9,IFERROR(HLOOKUP(C54,Input!$C$312:$L$335,H54,FALSE),\"NA\")), \"\")","v":"CCC-C"},3,4]
[{"$f":"Input!H$189","v":"Non-financial Corporates"},{"$f":"Input!M195","v":0},{"$f":"Input!M$191","v":"NA"},{"$f":"Input!B$195","v":"10.01 to 20"},{"$f":"Input!E$189","v":1},{"$f":"IF(B55<>\"\",IF(C55=\"NA\",Lists!$D$9,IFERROR(HLOOKUP(C55,Input!$C$312:$L$335,H55,FALSE),\"NA\")), \"\")","v":"CCC-C"},4,4]
[{"$f":"Input!H$189","v":"Non-financial Corporates"},{"$f":"Input!M196","v":0},{"$f":"Input!M$191","v":"NA"},{"$f":"Input!B$196","v":"More than 20"},{"$f":"Input!E$189","v":1},{"$f":"IF(B56<>\"\",IF(C56=\"NA\",Lists!$D$9,IFERROR(HLOOKUP(C56,Input!$C$312:$L$335,H56,FALSE),\"NA\")), \"\")","v":"CCC-C"},5,4]
[{"$f":"Input!H$199","v":"Non-financial Corporates"},{"$f":"Input!C202","v":0},{"$f":"Input!C$191","v":1},{"$f":"Input!B$202","v":"Upto 1"},{"$f":"Input!E$199","v":2},{"$f":"IF(B57<>\"\",IF(C57=\"NA\",Lists!$D$9,IFERROR(HLOOKUP(C57,Input!$C$312:$L$335,H57,FALSE),\"NA\")), \"\")","v":"BB"},1,4]
[{"$f":"Input!H$199","v":"Non-financial Corporates"},{"$f":"Input!C203","v":0},{"$f":"Input!C$191","v":1},{"$f":"Input!B$203","v":"1.01 to 5"},{"$f":"Input!E$199","v":2},{"$f":"IF(B58<>\"\",IF(C58=\"NA\",Lists!$D$9,IFERROR(HLOOKUP(C58,Input!$C$312:$L$335,H58,FALSE),\"NA\")), \"\")","v":"BB"},2,4]
[{"$f":"Input!H$199","v":"Non-financial Corporates"},{"$f":"Input!C204","v":0},{"$f":"Input!C$191","v":1},{"$f":"Input!B$204","v":"5.01 to 10"},{"$f":"Input!E$199","v":2},{"$f":"IF(B59<>\"\",IF(C59=\"NA\",Lists!$D$9,IFERROR(HLOOKUP(C59,Input!$C$312:$L$335,H59,FALSE),\"NA\")), \"\")","v":"BB"},3,4]
[{"$f":"Input!H$199","v":"Non-financial Corporates"},{"$f":"Input!C205","v":0},{"$f":"Input!C$191","v":1},{"$f":"Input!B$205","v":"10.01 to 20"},{"$f":"Input!E$199","v":2},{"$f":"IF(B60<>\"\",IF(C60=\"NA\",Lists!$D$9,IFERROR(HLOOKUP(C60,Input!$C$312:$L$335,H60,FALSE),\"NA\")), \"\")","v":"BB"},4,4]
[{"$f":"Input!H$199","v":"Non-financial Corporates"},{"$f":"Input!C206","v":0},{"$f":"Input!C$191","v":1},{"$f":"Input!B$206","v":"More than 20"},{"$f":"Input!E$199","v":2},{"$f":"IF(B61<>\"\",IF(C61=\"NA\",Lists!$D$9,IFERROR(HLOOKUP(C61,Input!$C$312:$L$335,H61,FALSE),\"NA\")), \"\")","v":"BB"},5,4]
[{"$f":"Input!H$199","v":"Non-financial Corporates"},{"$f":"Input!D202","v":0},{"$f":"Input!D$191","v":2},{"$f":"Input!B$202","v":"Upto 1"},{"$f":"Input!E$199","v":2},{"$f":"IF(B62<>\"\",IF(C62=\"NA\",Lists!$D$9,IFERROR(HLOOKUP(C62,Input!$C$312:$L$335,H62,FALSE),\"NA\")), \"\")","v":"BB"},1,4]
[{"$f":"Input!H$199","v":"Non-financial Corporates"},{"$f":"Input!D203","v":0},{"$f":"Input!D$191","v":2},{"$f":"Input!B$203","v":"1.01 to 5"},{"$f":"Input!E$199","v":2},{"$f":"IF(B63<>\"\",IF(C63=\"NA\",Lists!$D$9,IFERROR(HLOOKUP(C63,Input!$C$312:$L$335,H63,FALSE),\"NA\")), \"\")","v":"BB"},2,4]
[{"$f":"Input!H$199","v":"Non-financial Corporates"},{"$f":"Input!D204","v":0},{"$f":"Input!D$191","v":2},{"$f":"Input!B$204","v":"5.01 to 10"},{"$f":"Input!E$199","v":2},{"$f":"IF(B64<>\"\",IF(C64=\"NA\",Lists!$D$9,IFERROR(HLOOKUP(C64,Input!$C$312:$L$335,H64,FALSE),\"NA\")), \"\")","v":"BB"},3,4]
[{"$f":"Input!H$199","v":"Non-financial Corporates"},{"$f":"Input!D205","v":0},{"$f":"Input!D$191","v":2},{"$f":"Input!B$205","v":"10.01 to 20"},{"$f":"Input!E$199","v":2},{"$f":"IF(B65<>\"\",IF(C65=\"NA\",Lists!$D$9,IFERROR(HLOOKUP(C65,Input!$C$312:$L$335,H65,FALSE),\"NA\")), \"\")","v":"BB"},4,4]
[{"$f":"Input!H$199","v":"Non-financial Corporates"},{"$f":"Input!D206","v":0},{"$f":"Input!D$191","v":2},{"$f":"Input!B$206","v":"More than 20"},{"$f":"Input!E$199","v":2},{"$f":"IF(B66<>\"\",IF(C66=\"NA\",Lists!$D$9,IFERROR(HLOOKUP(C66,Input!$C$312:$L$335,H66,FALSE),\"NA\")), \"\")","v":"BB"},{"$f":"IFERROR(MATCH(D66,lov_term_buckets,0),\"\")","v":5},4]
[{"$f":"Input!H$199","v":"Non-financial Corporates"},{"$f":"Input!E202","v":0},{"$f":"Input!E$191","v":3},{"$f":"Input!B$202","v":"Upto 1"},{"$f":"Input!E$199","v":2},{"$f":"IF(B67<>\"\",IF(C67=\"NA\",Lists!$D$9,IFERROR(HLOOKUP(C67,Input!$C$312:$L$335,H67,FALSE),\"NA\")), \"\")","v":"BB"},1,{"$f":"INDEX($L$2:$L$8,MATCH(A67,$K$2:$K$8,0))","v":4}]
[{"$f":"Input!H$199","v":"Non-financial Corporates"},{"$f":"Input!E203","v":0},{"$f":"Input!E$191","v":3},{"$f":"Input!B$203","v":"1.01 to 5"},{"$f":"Input!E$199","v":2},{"$f":"IF(B68<>\"\",IF(C68=\"NA\",Lists!$D$9,IFERROR(HLOOKUP(C68,Input!$C$312:$L$335,H68,FALSE),\"NA\")), \"\")","v":"BB"},2,4]
[{"$f":"Input!H$199","v":"Non-financial Corporates"},{"$f":"Input!E204","v":0},{"$f":"Input!E$191","v":3},{"$f":"Input!B$204","v":"5.01 to 10"},{"$f":"Input!E$199","v":2},{"$f":"IF(B69<>\"\",IF(C69=\"NA\",Lists!$D$9,IFERROR(HLOOKUP(C69,Input!$C$312:$L$335,H69,FALSE),\"NA\")), \"\")","v":"BB"},3,4]
[{"$f":"Input!H$199","v":"Non-financial Corporates"},{"$f":"Input!E205","v":0},{"$f":"Input!E$191","v":3},{"$f":"Input!B$205","v":"10.01 to 20"},{"$f":"Input!E$199","v":2},{"$f":"IF(B70<>\"\",IF(C70=\"NA\",Lists!$D$9,IFERROR(HLOOKUP(C70,Input!$C$312:$L$335,H70,FALSE),\"NA\")), \"\")","v":"BB"},4,4]
[{"$f":"Input!H$199","v":"Non-financial Corporates"},{"$f":"Input!E206","v":0},{"$f":"Input!E$191","v":3},{"$f":"Input!B$206","v":"More than 20"},{"$f":"Input!E$199","v":2},{"$f":"IF(B71<>\"\",IF(C71=\"NA\",Lists!$D$9,IFERROR(HLOOKUP(C71,Input!$C$312:$L$335,H71,FALSE),\"NA\")), \"\")","v":"BB"},5,4]
[{"$f":"Input!H$199","v":"Non-financial Corporates"},{"$f":"Input!F202","v":0},{"$f":"Input!F$191","v":4},{"$f":"Input!B$202","v":"Upto 1"},{"$f":"Input!E$199","v":2},{"$f":"IF(B72<>\"\",IF(C72=\"NA\",Lists!$D$9,IFERROR(HLOOKUP(C72,Input!$C$312:$L$335,H72,FALSE),\"NA\")), \"\")","v":"BB"},1,4]
[{"$f":"Input!H$199","v":"Non-financial Corporates"},{"$f":"Input!F203","v":0},{"$f":"Input!F$191","v":4},{"$f":"Input!B$203","v":"1.01 to 5"},{"$f":"Input!E$199","v":2},{"$f":"IF(B73<>\"\",IF(C73=\"NA\",Lists!$D$9,IFERROR(HLOOKUP(C73,Input!$C$312:$L$335,H73,FALSE),\"NA\")), \"\")","v":"BB"},2,4]
[{"$f":"Input!H$199","v":"Non-financial Corporates"},{"$f":"Input!F204","v":0},{"$f":"Input!F$191","v":4},{"$f":"Input!B$204","v":"5.01 to 10"},{"$f":"Input!E$199","v":2},{"$f":"IF(B74<>\"\",IF(C74=\"NA\",Lists!$D$9,IFERROR(HLOOKUP(C74,Input!$C$312:$L$335,H74,FALSE),\"NA\")), \"\")","v":"BB"},3,4]
[{"$f":"Input!H$199","v":"Non-financial Corporates"},{"$f":"Input!F205","v":0},{"$f":"Input!F$191","v":4},{"$f":"Input!B$205","v":"10.01 to 20"},{"$f":"Input!E$199","v":2},{"$f":"IF(B75<>\"\",IF(C75=\"NA\",Lists!$D$9,IFERROR(HLOOKUP(C75,Input!$C$312:$L$335,H75,FALSE),\"NA\")), \"\")","v":"BB"},4,4]
[{"$f":"Input!H$199","v":"Non-financial Corporates"},{"$f":"Input!F206","v":0},{"$f":"Input!F$191","v":4},{"$f":"Input!B$206","v":"More than 20"},{"$f":"Input!E$199","v":2},{"$f":"IF(B76<>\"\",IF(C76=\"NA\",Lists!$D$9,IFERROR(HLOOKUP(C76,Input!$C$312:$L$335,H76,FALSE),\"NA\")), \"\")","v":"BB"},5,4]
[{"$f":"Input!H$199","v":"Non-financial Corporates"},{"$f":"Input!G202","v":0},{"$f":"Input!G$191","v":5},{"$f":"Input!B$202","v":"Upto 1"},{"$f":"Input!E$199","v":2},{"$f":"IF(B77<>\"\",IF(C77=\"NA\",Lists!$D$9,IFERROR(HLOOKUP(C77,Input!$C$312:$L$335,H77,FALSE),\"NA\")), \"\")","v":"BB"},1,4]
[{"$f":"Input!H$199","v":"Non-financial Corporates"},{"$f":"Input!G203","v":0},{"$f":"Input!G$191","v":5},{"$f":"Input!B$203","v":"1.01 to 5"},{"$f":"Input!E$199","v":2},{"$f":"IF(B78<>\"\",IF(C78=\"NA\",Lists!$D$9,IFERROR(HLOOKUP(C78,Input!$C$312:$L$335,H78,FALSE),\"NA\")), \"\")","v":"BB"},2,4]
[{"$f":"Input!H$199","v":"Non-financial Corporates"},{"$f":"Input!G204","v":0},{"$f":"Input!G$191","v":5},{"$f":"Input!B$204","v":"5.01 to 10"},{"$f":"Input!E$199","v":2},{"$f":"IF(B79<>\"\",IF(C79=\"NA\",Lists!$D$9,IFERROR(HLOOKUP(C79,Input!$C$312:$L$335,H79,FALSE),\"NA\")), \"\")","v":"BB"},3,4]
[{"$f":"Input!H$199","v":"Non-financial Corporates"},{"$f":"Input!G205","v":0},{"$f":"Input!G$191","v":5},{"$f":"Input!B$205","v":"10.01 to 20"},{"$f":"Input!E$199","v":2},{"$f":"IF(B80<>\"\",IF(C80=\"NA\",Lists!$D$9,IFERROR(HLOOKUP(C80,Input!$C$312:$L$335,H80,FALSE),\"NA\")), \"\")","v":"BB"},4,4]
[{"$f":"Input!H$199","v":"Non-financial Corporates"},{"$f":"Input!G206","v":0},{"$f":"Input!G$191","v":5},{"$f":"Input!B$206","v":"More than 20"},{"$f":"Input!E$199","v":2},{"$f":"IF(B81<>\"\",IF(C81=\"NA\",Lists!$D$9,IFERROR(HLOOKUP(C81,Input!$C$312:$L$335,H81,FALSE),\"NA\")), \"\")","v":"BB"},5,4]
[{"$f":"Input!H$199","v":"Non-financial Corporates"},{"$f":"Input!H202","v":0},{"$f":"Input!H$191","v":6},{"$f":"Input!B$202","v":"Upto 1"},{"$f":"Input!E$199","v":2},{"$f":"IF(B82<>\"\",IF(C82=\"NA\",Lists!$D$9,IFERROR(HLOOKUP(C82,Input!$C$312:$L$335,H82,FALSE),\"NA\")), \"\")","v":"BB"},1,4]
[{"$f":"Input!H$199","v":"Non-financial Corporates"},{"$f":"Input!H203","v":0},{"$f":"Input!H$191","v":6},{"$f":"Input!B$203","v":"1.01 to 5"},{"$f":"Input!E$199","v":2},{"$f":"IF(B83<>\"\",IF(C83=\"NA\",Lists!$D$9,IFERROR(HLOOKUP(C83,Input!$C$312:$L$335,H83,FALSE),\"NA\")), \"\")","v":"BB"},2,4]
[{"$f":"Input!H$199","v":"Non-financial Corporates"},{"$f":"Input!H204","v":0},{"$f":"Input!H$191","v":6},{"$f":"Input!B$204","v":"5.01 to 10"},{"$f":"Input!E$199","v":2},{"$f":"IF(B84<>\"\",IF(C84=\"NA\",Lists!$D$9,IFERROR(HLOOKUP(C84,Input!$C$312:$L$335,H84,FALSE),\"NA\")), \"\")","v":"BB"},3,4]
[{"$f":"Input!H$199","v":"Non-financial Corporates"},{"$f":"Input!H205","v":0},{"$f":"Input!H$191","v":6},{"$f":"Input!B$205","v":"10.01 to 20"},{"$f":"Input!E$199","v":2},{"$f":"IF(B85<>\"\",IF(C85=\"NA\",Lists!$D$9,IFERROR(HLOOKUP(C85,Input!$C$312:$L$335,H85,FALSE),\"NA\")), \"\")","v":"BB"},4,4]
[{"$f":"Input!H$199","v":"Non-financial Corporates"},{"$f":"Input!H206","v":0},{"$f":"Input!H$191","v":6},{"$f":"Input!B$206","v":"More than 20"},{"$f":"Input!E$199","v":2},{"$f":"IF(B86<>\"\",IF(C86=\"NA\",Lists!$D$9,IFERROR(HLOOKUP(C86,Input!$C$312:$L$335,H86,FALSE),\"NA\")), \"\")","v":"BB"},5,4]
[{"$f":"Input!H$199","v":"Non-financial Corporates"},{"$f":"Input!I202","v":0},{"$f":"Input!I$191","v":7},{"$f":"Input!B$202","v":"Upto 1"},{"$f":"Input!E$199","v":2},{"$f":"IF(B87<>\"\",IF(C87=\"NA\",Lists!$D$9,IFERROR(HLOOKUP(C87,Input!$C$312:$L$335,H87,FALSE),\"NA\")), \"\")","v":"BB"},1,4]
[{"$f":"Input!H$199","v":"Non-financial Corporates"},{"$f":"Input!I203","v":0},{"$f":"Input!I$191","v":7},{"$f":"Input!B$203","v":"1.01 to 5"},{"$f":"Input!E$199","v":2},{"$f":"IF(B88<>\"\",IF(C88=\"NA\",Lists!$D$9,IFERROR(HLOOKUP(C88,Input!$C$312:$L$335,H88,FALSE),\"NA\")), \"\")","v":"BB"},2,4]
[{"$f":"Input!H$199","v":"Non-financial Corporates"},{"$f":"Input!I204","v":0},{"$f":"Input!I$191","v":7},{"$f":"Input!B$204","v":"5.01 to 10"},{"$f":"Input!E$199","v":2},{"$f":"IF(B89<>\"\",IF(C89=\"NA\",Lists!$D$9,IFERROR(HLOOKUP(C89,Input!$C$312:$L$335,H89,FALSE),\"NA\")), \"\")","v":"BB"},3,4]
[{"$f":"Input!H$199","v":"Non-financial Corporates"},{"$f":"Input!I205","v":0},{"$f":"Input!I$191","v":7},{"$f":"Input!B$205","v":"10.01 to 20"},{"$f":"Input!E$199","v":2},{"$f":"IF(B90<>\"\",IF(C90=\"NA\",Lists!$D$9,IFERROR(HLOOKUP(C90,Input!$C$312:$L$335,H90,FALSE),\"NA\")), \"\")","v":"BB"},4,4]
[{"$f":"Input!H$199","v":"Non-financial Corporates"},{"$f":"Input!I206","v":0},{"$f":"Input!I$191","v":7},{"$f":"Input!B$206","v":"More than 20"},{"$f":"Input!E$199","v":2},{"$f":"IF(B91<>\"\",IF(C91=\"NA\",Lists!$D$9,IFERROR(HLOOKUP(C91,Input!$C$312:$L$335,H91,FALSE),\"NA\")), \"\")","v":"BB"},5,4]
[{"$f":"Input!H$199","v":"Non-financial Corporates"},{"$f":"Input!J202","v":0},{"$f":"Input!J$191","v":8},{"$f":"Input!B$202","v":"Upto 1"},{"$f":"Input!E$199","v":2},{"$f":"IF(B92<>\"\",IF(C92=\"NA\",Lists!$D$9,IFERROR(HLOOKUP(C92,Input!$C$312:$L$335,H92,FALSE),\"NA\")), \"\")","v":"B"},1,4]
[{"$f":"Input!H$199","v":"Non-financial Corporates"},{"$f":"Input!J203","v":0},{"$f":"Input!J$191","v":8},{"$f":"Input!B$203","v":"1.01 to 5"},{"$f":"Input!E$199","v":2},{"$f":"IF(B93<>\"\",IF(C93=\"NA\",Lists!$D$9,IFERROR(HLOOKUP(C93,Input!$C$312:$L$335,H93,FALSE),\"NA\")), \"\")","v":"B"},2,4]
[{"$f":"Input!H$199","v":"Non-financial Corporates"},{"$f":"Input!J204","v":0},{"$f":"Input!J$191","v":8},{"$f":"Input!B$204","v":"5.01 to 10"},{"$f":"Input!E$199","v":2},{"$f":"IF(B94<>\"\",IF(C94=\"NA\",Lists!$D$9,IFERROR(HLOOKUP(C94,Input!$C$312:$L$335,H94,FALSE),\"NA\")), \"\")","v":"B"},3,4]
[{"$f":"Input!H$199","v":"Non-financial Corporates"},{"$f":"Input!J205","v":0},{"$f":"Input!J$191","v":8},{"$f":"Input!B$205","v":"10.01 to 20"},{"$f":"Input!E$199","v":2},{"$f":"IF(B95<>\"\",IF(C95=\"NA\",Lists!$D$9,IFERROR(HLOOKUP(C95,Input!$C$312:$L$335,H95,FALSE),\"NA\")), \"\")","v":"B"},4,4]
[{"$f":"Input!H$199","v":"Non-financial Corporates"},{"$f":"Input!J206","v":0},{"$f":"Input!J$191","v":8},{"$f":"Input!B$206","v":"More than 20"},{"$f":"Input!E$199","v":2},{"$f":"IF(B96<>\"\",IF(C96=\"NA\",Lists!$D$9,IFERROR(HLOOKUP(C96,Input!$C$312:$L$335,H96,FALSE),\"NA\")), \"\")","v":"B"},5,4]
[{"$f":"Input!H$199","v":"Non-financial Corporates"},{"$f":"Input!K202","v":0},{"$f":"Input!K$191","v":9},{"$f":"Input!B$202","v":"Upto 1"},{"$f":"Input!E$199","v":2},{"$f":"IF(B97<>\"\",IF(C97=\"NA\",Lists!$D$9,IFERROR(HLOOKUP(C97,Input!$C$312:$L$335,H97,FALSE),\"NA\")), \"\")","v":"B"},1,4]
[{"$f":"Input!H$199","v":"Non-financial Corporates"},{"$f":"Input!K203","v":0},{"$f":"Input!K$191","v":9},{"$f":"Input!B$203","v":"1.01 to 5"},{"$f":"Input!E$199","v":2},{"$f":"IF(B98<>\"\",IF(C98=\"NA\",Lists!$D$9,IFERROR(HLOOKUP(C98,Input!$C$312:$L$335,H98,FALSE),\"NA\")), \"\")","v":"B"},2,4]
[{"$f":"Input!H$199","v":"Non-financial Corporates"},{"$f":"Input!K204","v":0},{"$f":"Input!K$191","v":9},{"$f":"Input!B$204","v":"5.01 to 10"},{"$f":"Input!E$199","v":2},{"$f":"IF(B99<>\"\",IF(C99=\"NA\",Lists!$D$9,IFERROR(HLOOKUP(C99,Input!$C$312:$L$335,H99,FALSE),\"NA\")), \"\")","v":"B"},3,4]
[{"$f":"Input!H$199","v":"Non-financial Corporates"},{"$f":"Input!K205","v":0},{"$f":"Input!K$191","v":9},{"$f":"Input!B$205","v":"10.01 to 20"},{"$f":"Input!E$199","v":2},{"$f":"IF(B100<>\"\",IF(C100=\"NA\",Lists!$D$9,IFERROR(HLOOKUP(C100,Input!$C$312:$L$335,H100,FALSE),\"NA\")), \"\")","v":"B"},4,4]
[{"$f":"Input!H$199","v":"Non-financial Corporates"},{"$f":"Input!K206","v":0},{"$f":"Input!K$191","v":9},{"$f":"Input!B$206","v":"More than 20"},{"$f":"Input!E$199","v":2},{"$f":"IF(B101<>\"\",IF(C101=\"NA\",Lists!$D$9,IFERROR(HLOOKUP(C101,Input!$C$312:$L$335,H101,FALSE),\"NA\")), \"\")","v":"B"},5,4]
[{"$f":"Input!H$199","v":"Non-financial Corporates"},{"$f":"Input!L202","v":0},{"$f":"Input!L$191","v":10},{"$f":"Input!B$202","v":"Upto 1"},{"$f":"Input!E$199","v":2},{"$f":"IF(B102<>\"\",IF(C102=\"NA\",Lists!$D$9,IFERROR(HLOOKUP(C102,Input!$C$312:$L$335,H102,FALSE),\"NA\")), \"\")","v":"CCC-C"},1,4]
[{"$f":"Input!H$199","v":"Non-financial Corporates"},{"$f":"Input!L203","v":0},{"$f":"Input!L$191","v":10},{"$f":"Input!B$203","v":"1.01 to 5"},{"$f":"Input!E$199","v":2},{"$f":"IF(B103<>\"\",IF(C103=\"NA\",Lists!$D$9,IFERROR(HLOOKUP(C103,Input!$C$312:$L$335,H103,FALSE),\"NA\")), \"\")","v":"CCC-C"},2,4]
[{"$f":"Input!H$199","v":"Non-financial Corporates"},{"$f":"Input!L204","v":0},{"$f":"Input!L$191","v":10},{"$f":"Input!B$204","v":"5.01 to 10"},{"$f":"Input!E$199","v":2},{"$f":"IF(B104<>\"\",IF(C104=\"NA\",Lists!$D$9,IFERROR(HLOOKUP(C104,Input!$C$312:$L$335,H104,FALSE),\"NA\")), \"\")","v":"CCC-C"},3,4]
[{"$f":"Input!H$199","v":"Non-financial Corporates"},{"$f":"Input!L205","v":0},{"$f":"Input!L$191","v":10},{"$f":"Input!B$205","v":"10.01 to 20"},{"$f":"Input!E$199","v":2},{"$f":"IF(B105<>\"\",IF(C105=\"NA\",Lists!$D$9,IFERROR(HLOOKUP(C105,Input!$C$312:$L$335,H105,FALSE),\"NA\")), \"\")","v":"CCC-C"},4,4]
[{"$f":"Input!H$199","v":"Non-financial Corporates"},{"$f":"Input!L206","v":0},{"$f":"Input!L$191","v":10},{"$f":"Input!B$206","v":"More than 20"},{"$f":"Input!E$199","v":2},{"$f":"IF(B106<>\"\",IF(C106=\"NA\",Lists!$D$9,IFERROR(HLOOKUP(C106,Input!$C$312:$L$335,H106,FALSE),\"NA\")), \"\")","v":"CCC-C"},5,4]
[{"$f":"Input!H$199","v":"Non-financial Corporates"},{"$f":"Input!M202","v":0},{"$f":"Input!M$191","v":"NA"},{"$f":"Input!B$202","v":"Upto 1"},{"$f":"Input!E$199","v":2},{"$f":"IF(B107<>\"\",IF(C107=\"NA\",Lists!$D$9,IFERROR(HLOOKUP(C107,Input!$C$312:$L$335,H107,FALSE),\"NA\")), \"\")","v":"CCC-C"},1,4]
[{"$f":"Input!H$199","v":"Non-financial Corporates"},{"$f":"Input!M203","v":0},{"$f":"Input!M$191","v":"NA"},{"$f":"Input!B$203","v":"1.01 to 5"},{"$f":"Input!E$199","v":2},{"$f":"IF(B108<>\"\",IF(C108=\"NA\",Lists!$D$9,IFERROR(HLOOKUP(C108,Input!$C$312:$L$335,H108,FALSE),\"NA\")), \"\")","v":"CCC-C"},2,4]
[{"$f":"Input!H$199","v":"Non-financial Corporates"},{"$f":"Input!M204","v":0},{"$f":"Input!M$191","v":"NA"},{"$f":"Input!B$204","v":"5.01 to 10"},{"$f":"Input!E$199","v":2},{"$f":"IF(B109<>\"\",IF(C109=\"NA\",Lists!$D$9,IFERROR(HLOOKUP(C109,Input!$C$312:$L$335,H109,FALSE),\"NA\")), \"\")","v":"CCC-C"},3,4]
[{"$f":"Input!H$199","v":"Non-financial Corporates"},{"$f":"Input!M205","v":0},{"$f":"Input!M$191","v":"NA"},{"$f":"Input!B$205","v":"10.01 to 20"},{"$f":"Input!E$199","v":2},{"$f":"IF(B110<>\"\",IF(C110=\"NA\",Lists!$D$9,IFERROR(HLOOKUP(C110,Input!$C$312:$L$335,H110,FALSE),\"NA\")), \"\")","v":"CCC-C"},4,4]
[{"$f":"Input!H$199","v":"Non-financial Corporates"},{"$f":"Input!M206","v":0},{"$f":"Input!M$191","v":"NA"},{"$f":"Input!B$206","v":"More than 20"},{"$f":"Input!E$199","v":2},{"$f":"IF(B111<>\"\",IF(C111=\"NA\",Lists!$D$9,IFERROR(HLOOKUP(C111,Input!$C$312:$L$335,H111,FALSE),\"NA\")), \"\")","v":"CCC-C"},5,4]
[{"$f":"Input!H$209","v":"Non-financial Corporates"},{"$f":"Input!C212","v":0},{"$f":"Input!C$191","v":1},{"$f":"Input!B$192","v":"Upto 1"},{"$f":"Input!E$209","v":3},{"$f":"IF(B112<>\"\",IF(C112=\"NA\",Lists!$D$9,IFERROR(HLOOKUP(C112,Input!$C$312:$L$335,H112,FALSE),\"NA\")), \"\")","v":"BB"},1,4]
[{"$f":"Input!H$209","v":"Non-financial Corporates"},{"$f":"Input!C213","v":0},{"$f":"Input!C$191","v":1},{"$f":"Input!B$193","v":"1.01 to 5"},{"$f":"Input!E$209","v":3},{"$f":"IF(B113<>\"\",IF(C113=\"NA\",Lists!$D$9,IFERROR(HLOOKUP(C113,Input!$C$312:$L$335,H113,FALSE),\"NA\")), \"\")","v":"BB"},2,4]
[{"$f":"Input!H$209","v":"Non-financial Corporates"},{"$f":"Input!C214","v":0},{"$f":"Input!C$191","v":1},{"$f":"Input!B$194","v":"5.01 to 10"},{"$f":"Input!E$209","v":3},{"$f":"IF(B114<>\"\",IF(C114=\"NA\",Lists!$D$9,IFERROR(HLOOKUP(C114,Input!$C$312:$L$335,H114,FALSE),\"NA\")), \"\")","v":"BB"},3,4]
[{"$f":"Input!H$209","v":"Non-financial Corporates"},{"$f":"Input!C215","v":0},{"$f":"Input!C$191","v":1},{"$f":"Input!B$195","v":"10.01 to 20"},{"$f":"Input!E$209","v":3},{"$f":"IF(B115<>\"\",IF(C115=\"NA\",Lists!$D$9,IFERROR(HLOOKUP(C115,Input!$C$312:$L$335,H115,FALSE),\"NA\")), \"\")","v":"BB"},4,4]
[{"$f":"Input!H$209","v":"Non-financial Corporates"},{"$f":"Input!C216","v":0},{"$f":"Input!C$191","v":1},{"$f":"Input!B$196","v":"More than 20"},{"$f":"Input!E$209","v":3},{"$f":"IF(B116<>\"\",IF(C116=\"NA\",Lists!$D$9,IFERROR(HLOOKUP(C116,Input!$C$312:$L$335,H116,FALSE),\"NA\")), \"\")","v":"BB"},5,4]
[{"$f":"Input!H$209","v":"Non-financial Corporates"},{"$f":"Input!D212","v":0},{"$f":"Input!D$191","v":2},{"$f":"Input!B$192","v":"Upto 1"},{"$f":"Input!E$209","v":3},{"$f":"IF(B117<>\"\",IF(C117=\"NA\",Lists!$D$9,IFERROR(HLOOKUP(C117,Input!$C$312:$L$335,H117,FALSE),\"NA\")), \"\")","v":"BB"},1,4]
[{"$f":"Input!H$209","v":"Non-financial Corporates"},{"$f":"Input!D213","v":0},{"$f":"Input!D$191","v":2},{"$f":"Input!B$193","v":"1.01 to 5"},{"$f":"Input!E$209","v":3},{"$f":"IF(B118<>\"\",IF(C118=\"NA\",Lists!$D$9,IFERROR(HLOOKUP(C118,Input!$C$312:$L$335,H118,FALSE),\"NA\")), \"\")","v":"BB"},2,4]
[{"$f":"Input!H$209","v":"Non-financial Corporates"},{"$f":"Input!D214","v":0},{"$f":"Input!D$191","v":2},{"$f":"Input!B$194","v":"5.01 to 10"},{"$f":"Input!E$209","v":3},{"$f":"IF(B119<>\"\",IF(C119=\"NA\",Lists!$D$9,IFERROR(HLOOKUP(C119,Input!$C$312:$L$335,H119,FALSE),\"NA\")), \"\")","v":"BB"},3,4]
[{"$f":"Input!H$209","v":"Non-financial Corporates"},{"$f":"Input!D215","v":0},{"$f":"Input!D$191","v":2},{"$f":"Input!B$195","v":"10.01 to 20"},{"$f":"Input!E$209","v":3},{"$f":"IF(B120<>\"\",IF(C120=\"NA\",Lists!$D$9,IFERROR(HLOOKUP(C120,Input!$C$312:$L$335,H120,FALSE),\"NA\")), \"\")","v":"BB"},4,4]
[{"$f":"Input!H$209","v":"Non-financial Corporates"},{"$f":"Input!D216","v":0},{"$f":"Input!D$191","v":2},{"$f":"Input!B$196","v":"More than 20"},{"$f":"Input!E$209","v":3},{"$f":"IF(B121<>\"\",IF(C121=\"NA\",Lists!$D$9,IFERROR(HLOOKUP(C121,Input!$C$312:$L$335,H121,FALSE),\"NA\")), \"\")","v":"BB"},5,4]
[{"$f":"Input!H$209","v":"Non-financial Corporates"},{"$f":"Input!E212","v":0},{"$f":"Input!E$191","v":3},{"$f":"Input!B$192","v":"Upto 1"},{"$f":"Input!E$209","v":3},{"$f":"IF(B122<>\"\",IF(C122=\"NA\",Lists!$D$9,IFERROR(HLOOKUP(C122,Input!$C$312:$L$335,H122,FALSE),\"NA\")), \"\")","v":"BB"},1,4]
[{"$f":"Input!H$209","v":"Non-financial Corporates"},{"$f":"Input!E213","v":0},{"$f":"Input!E$191","v":3},{"$f":"Input!B$193","v":"1.01 to 5"},{"$f":"Input!E$209","v":3},{"$f":"IF(B123<>\"\",IF(C123=\"NA\",Lists!$D$9,IFERROR(HLOOKUP(C123,Input!$C$312:$L$335,H123,FALSE),\"NA\")), \"\")","v":"BB"},2,4]
[{"$f":"Input!H$209","v":"Non-financial Corporates"},{"$f":"Input!E214","v":0},{"$f":"Input!E$191","v":3},{"$f":"Input!B$194","v":"5.01 to 10"},{"$f":"Input!E$209","v":3},{"$f":"IF(B124<>\"\",IF(C124=\"NA\",Lists!$D$9,IFERROR(HLOOKUP(C124,Input!$C$312:$L$335,H124,FALSE),\"NA\")), \"\")","v":"BB"},3,4]
[{"$f":"Input!H$209","v":"Non-financial Corporates"},{"$f":"Input!E215","v":0},{"$f":"Input!E$191","v":3},{"$f":"Input!B$195","v":"10.01 to 20"},{"$f":"Input!E$209","v":3},{"$f":"IF(B125<>\"\",IF(C125=\"NA\",Lists!$D$9,IFERROR(HLOOKUP(C125,Input!$C$312:$L$335,H125,FALSE),\"NA\")), \"\")","v":"BB"},4,4]
[{"$f":"Input!H$209","v":"Non-financial Corporates"},{"$f":"Input!E216","v":0},{"$f":"Input!E$191","v":3},{"$f":"Input!B$196","v":"More than 20"},{"$f":"Input!E$209","v":3},{"$f":"IF(B126<>\"\",IF(C126=\"NA\",Lists!$D$9,IFERROR(HLOOKUP(C126,Input!$C$312:$L$335,H126,FALSE),\"NA\")), \"\")","v":"BB"},5,4]
[{"$f":"Input!H$209","v":"Non-financial Corporates"},{"$f":"Input!F212","v":0},{"$f":"Input!F$191","v":4},{"$f":"Input!B$192","v":"Upto 1"},{"$f":"Input!E$209","v":3},{"$f":"IF(B127<>\"\",IF(C127=\"NA\",Lists!$D$9,IFERROR(HLOOKUP(C127,Input!$C$312:$L$335,H127,FALSE),\"NA\")), \"\")","v":"BB"},1,4]
[{"$f":"Input!H$209","v":"Non-financial Corporates"},{"$f":"Input!F213","v":0},{"$f":"Input!F$191","v":4},{"$f":"Input!B$193","v":"1.01 to 5"},{"$f":"Input!E$209","v":3},{"$f":"IF(B128<>\"\",IF(C128=\"NA\",Lists!$D$9,IFERROR(HLOOKUP(C128,Input!$C$312:$L$335,H128,FALSE),\"NA\")), \"\")","v":"BB"},2,4]
[{"$f":"Input!H$209","v":"Non-financial Corporates"},{"$f":"Input!F214","v":0},{"$f":"Input!F$191","v":4},{"$f":"Input!B$194","v":"5.01 to 10"},{"$f":"Input!E$209","v":3},{"$f":"IF(B129<>\"\",IF(C129=\"NA\",Lists!$D$9,IFERROR(HLOOKUP(C129,Input!$C$312:$L$335,H129,FALSE),\"NA\")), \"\")","v":"BB"},3,4]
[{"$f":"Input!H$209","v":"Non-financial Corporates"},{"$f":"Input!F215","v":0},{"$f":"Input!F$191","v":4},{"$f":"Input!B$195","v":"10.01 to 20"},{"$f":"Input!E$209","v":3},{"$f":"IF(B130<>\"\",IF(C130=\"NA\",Lists!$D$9,IFERROR(HLOOKUP(C130,Input!$C$312:$L$335,H130,FALSE),\"NA\")), \"\")","v":"BB"},{"$f":"IFERROR(MATCH(D130,lov_term_buckets,0),\"\")","v":4},4]
[{"$f":"Input!H$209","v":"Non-financial Corporates"},{"$f":"Input!F216","v":0},{"$f":"Input!F$191","v":4},{"$f":"Input!B$196","v":"More than 20"},{"$f":"Input!E$209","v":3},{"$f":"IF(B131<>\"\",IF(C131=\"NA\",Lists!$D$9,IFERROR(HLOOKUP(C131,Input!$C$312:$L$335,H131,FALSE),\"NA\")), \"\")","v":"BB"},5,{"$f":"INDEX($L$2:$L$8,MATCH(A131,$K$2:$K$8,0))","v":4}]
[{"$f":"Input!H$209","v":"Non-financial Corporates"},{"$f":"Input!G212","v":0},{"$f":"Input!G$191","v":5},{"$f":"Input!B$192","v":"Upto 1"},{"$f":"Input!E$209","v":3},{"$f":"IF(B132<>\"\",IF(C132=\"NA\",Lists!$D$9,IFERROR(HLOOKUP(C132,Input!$C$312:$L$335,H132,FALSE),\"NA\")), \"\")","v":"BB"},1,4]
[{"$f":"Input!H$209","v":"Non-financial Corporates"},{"$f":"Input!G213","v":0},{"$f":"Input!G$191","v":5},{"$f":"Input!B$193","v":"1.01 to 5"},{"$f":"Input!E$209","v":3},{"$f":"IF(B133<>\"\",IF(C133=\"NA\",Lists!$D$9,IFERROR(HLOOKUP(C133,Input!$C$312:$L$335,H133,FALSE),\"NA\")), \"\")","v":"BB"},2,4]
[{"$f":"Input!H$209","v":"Non-financial Corporates"},{"$f":"Input!G214","v":0},{"$f":"Input!G$191","v":5},{"$f":"Input!B$194","v":"5.01 to 10"},{"$f":"Input!E$209","v":3},{"$f":"IF(B134<>\"\",IF(C134=\"NA\",Lists!$D$9,IFERROR(HLOOKUP(C134,Input!$C$312:$L$335,H134,FALSE),\"NA\")), \"\")","v":"BB"},3,4]
[{"$f":"Input!H$209","v":"Non-financial Corporates"},{"$f":"Input!G215","v":0},{"$f":"Input!G$191","v":5},{"$f":"Input!B$195","v":"10.01 to 20"},{"$f":"Input!E$209","v":3},{"$f":"IF(B135<>\"\",IF(C135=\"NA\",Lists!$D$9,IFERROR(HLOOKUP(C135,Input!$C$312:$L$335,H135,FALSE),\"NA\")), \"\")","v":"BB"},4,4]
[{"$f":"Input!H$209","v":"Non-financial Corporates"},{"$f":"Input!G216","v":0},{"$f":"Input!G$191","v":5},{"$f":"Input!B$196","v":"More than 20"},{"$f":"Input!E$209","v":3},{"$f":"IF(B136<>\"\",IF(C136=\"NA\",Lists!$D$9,IFERROR(HLOOKUP(C136,Input!$C$312:$L$335,H136,FALSE),\"NA\")), \"\")","v":"BB"},5,4]
[{"$f":"Input!H$209","v":"Non-financial Corporates"},{"$f":"Input!H212","v":0},{"$f":"Input!H$191","v":6},{"$f":"Input!B$192","v":"Upto 1"},{"$f":"Input!E$209","v":3},{"$f":"IF(B137<>\"\",IF(C137=\"NA\",Lists!$D$9,IFERROR(HLOOKUP(C137,Input!$C$312:$L$335,H137,FALSE),\"NA\")), \"\")","v":"BB"},1,4]
[{"$f":"Input!H$209","v":"Non-financial Corporates"},{"$f":"Input!H213","v":0},{"$f":"Input!H$191","v":6},{"$f":"Input!B$193","v":"1.01 to 5"},{"$f":"Input!E$209","v":3},{"$f":"IF(B138<>\"\",IF(C138=\"NA\",Lists!$D$9,IFERROR(HLOOKUP(C138,Input!$C$312:$L$335,H138,FALSE),\"NA\")), \"\")","v":"BB"},2,4]
[{"$f":"Input!H$209","v":"Non-financial Corporates"},{"$f":"Input!H214","v":0},{"$f":"Input!H$191","v":6},{"$f":"Input!B$194","v":"5.01 to 10"},{"$f":"Input!E$209","v":3},{"$f":"IF(B139<>\"\",IF(C139=\"NA\",Lists!$D$9,IFERROR(HLOOKUP(C139,Input!$C$312:$L$335,H139,FALSE),\"NA\")), \"\")","v":"BB"},3,4]
[{"$f":"Input!H$209","v":"Non-financial Corporates"},{"$f":"Input!H215","v":0},{"$f":"Input!H$191","v":6},{"$f":"Input!B$195","v":"10.01 to 20"},{"$f":"Input!E$209","v":3},{"$f":"IF(B140<>\"\",IF(C140=\"NA\",Lists!$D$9,IFERROR(HLOOKUP(C140,Input!$C$312:$L$335,H140,FALSE),\"NA\")), \"\")","v":"BB"},4,4]
[{"$f":"Input!H$209","v":"Non-financial Corporates"},{"$f":"Input!H216","v":0},{"$f":"Input!H$191","v":6},{"$f":"Input!B$196","v":"More than 20"},{"$f":"Input!E$209","v":3},{"$f":"IF(B141<>\"\",IF(C141=\"NA\",Lists!$D$9,IFERROR(HLOOKUP(C141,Input!$C$312:$L$335,H141,FALSE),\"NA\")), \"\")","v":"BB"},5,4]
[{"$f":"Input!H$209","v":"Non-financial Corporates"},{"$f":"Input!I212","v":0},{"$f":"Input!I$191","v":7},{"$f":"Input!B$192","v":"Upto 1"},{"$f":"Input!E$209","v":3},{"$f":"IF(B142<>\"\",IF(C142=\"NA\",Lists!$D$9,IFERROR(HLOOKUP(C142,Input!$C$312:$L$335,H142,FALSE),\"NA\")), \"\")","v":"BB"},1,4]
[{"$f":"Input!H$209","v":"Non-financial Corporates"},{"$f":"Input!I213","v":0},{"$f":"Input!I$191","v":7},{"$f":"Input!B$193","v":"1.01 to 5"},{"$f":"Input!E$209","v":3},{"$f":"IF(B143<>\"\",IF(C143=\"NA\",Lists!$D$9,IFERROR(HLOOKUP(C143,Input!$C$312:$L$335,H143,FALSE),\"NA\")), \"\")","v":"BB"},2,4]
[{"$f":"Input!H$209","v":"Non-financial Corporates"},{"$f":"Input!I214","v":0},{"$f":"Input!I$191","v":7},{"$f":"Input!B$194","v":"5.01 to 10"},{"$f":"Input!E$209","v":3},{"$f":"IF(B144<>\"\",IF(C144=\"NA\",Lists!$D$9,IFERROR(HLOOKUP(C144,Input!$C$312:$L$335,H144,FALSE),\"NA\")), \"\")","v":"BB"},3,4]
[{"$f":"Input!H$209","v":"Non-financial Corporates"},{"$f":"Input!I215","v":0},{"$f":"Input!I$191","v":7},{"$f":"Input!B$195","v":"10.01 to 20"},{"$f":"Input!E$209","v":3},{"$f":"IF(B145<>\"\",IF(C145=\"NA\",Lists!$D$9,IFERROR(HLOOKUP(C145,Input!$C$312:$L$335,H145,FALSE),\"NA\")), \"\")","v":"BB"},4,4]
[{"$f":"Input!H$209","v":"Non-financial Corporates"},{"$f":"Input!I216","v":0},{"$f":"Input!I$191","v":7},{"$f":"Input!B$196","v":"More than 20"},{"$f":"Input!E$209","v":3},{"$f":"IF(B146<>\"\",IF(C146=\"NA\",Lists!$D$9,IFERROR(HLOOKUP(C146,Input!$C$312:$L$335,H146,FALSE),\"NA\")), \"\")","v":"BB"},5,4]
[{"$f":"Input!H$209","v":"Non-financial Corporates"},{"$f":"Input!J212","v":0},{"$f":"Input!J$191","v":8},{"$f":"Input!B$192","v":"Upto 1"},{"$f":"Input!E$209","v":3},{"$f":"IF(B147<>\"\",IF(C147=\"NA\",Lists!$D$9,IFERROR(HLOOKUP(C147,Input!$C$312:$L$335,H147,FALSE),\"NA\")), \"\")","v":"B"},1,4]
[{"$f":"Input!H$209","v":"Non-financial Corporates"},{"$f":"Input!J213","v":0},{"$f":"Input!J$191","v":8},{"$f":"Input!B$193","v":"1.01 to 5"},{"$f":"Input!E$209","v":3},{"$f":"IF(B148<>\"\",IF(C148=\"NA\",Lists!$D$9,IFERROR(HLOOKUP(C148,Input!$C$312:$L$335,H148,FALSE),\"NA\")), \"\")","v":"B"},2,4]
[{"$f":"Input!H$209","v":"Non-financial Corporates"},{"$f":"Input!J214","v":0},{"$f":"Input!J$191","v":8},{"$f":"Input!B$194","v":"5.01 to 10"},{"$f":"Input!E$209","v":3},{"$f":"IF(B149<>\"\",IF(C149=\"NA\",Lists!$D$9,IFERROR(HLOOKUP(C149,Input!$C$312:$L$335,H149,FALSE),\"NA\")), \"\")","v":"B"},3,4]
[{"$f":"Input!H$209","v":"Non-financial Corporates"},{"$f":"Input!J215","v":0},{"$f":"Input!J$191","v":8},{"$f":"Input!B$195","v":"10.01 to 20"},{"$f":"Input!E$209","v":3},{"$f":"IF(B150<>\"\",IF(C150=\"NA\",Lists!$D$9,IFERROR(HLOOKUP(C150,Input!$C$312:$L$335,H150,FALSE),\"NA\")), \"\")","v":"B"},4,4]
[{"$f":"Input!H$209","v":"Non-financial Corporates"},{"$f":"Input!J216","v":0},{"$f":"Input!J$191","v":8},{"$f":"Input!B$196","v":"More than 20"},{"$f":"Input!E$209","v":3},{"$f":"IF(B151<>\"\",IF(C151=\"NA\",Lists!$D$9,IFERROR(HLOOKUP(C151,Input!$C$312:$L$335,H151,FALSE),\"NA\")), \"\")","v":"B"},5,4]
[{"$f":"Input!H$209","v":"Non-financial Corporates"},{"$f":"Input!K212","v":0},{"$f":"Input!K$191","v":9},{"$f":"Input!B$192","v":"Upto 1"},{"$f":"Input!E$209","v":3},{"$f":"IF(B152<>\"\",IF(C152=\"NA\",Lists!$D$9,IFERROR(HLOOKUP(C152,Input!$C$312:$L$335,H152,FALSE),\"NA\")), \"\")","v":"B"},1,4]
[{"$f":"Input!H$209","v":"Non-financial Corporates"},{"$f":"Input!K213","v":0},{"$f":"Input!K$191","v":9},{"$f":"Input!B$193","v":"1.01 to 5"},{"$f":"Input!E$209","v":3},{"$f":"IF(B153<>\"\",IF(C153=\"NA\",Lists!$D$9,IFERROR(HLOOKUP(C153,Input!$C$312:$L$335,H153,FALSE),\"NA\")), \"\")","v":"B"},2,4]
[{"$f":"Input!H$209","v":"Non-financial Corporates"},{"$f":"Input!K214","v":0},{"$f":"Input!K$191","v":9},{"$f":"Input!B$194","v":"5.01 to 10"},{"$f":"Input!E$209","v":3},{"$f":"IF(B154<>\"\",IF(C154=\"NA\",Lists!$D$9,IFERROR(HLOOKUP(C154,Input!$C$312:$L$335,H154,FALSE),\"NA\")), \"\")","v":"B"},3,4]
[{"$f":"Input!H$209","v":"Non-financial Corporates"},{"$f":"Input!K215","v":0},{"$f":"Input!K$191","v":9},{"$f":"Input!B$195","v":"10.01 to 20"},{"$f":"Input!E$209","v":3},{"$f":"IF(B155<>\"\",IF(C155=\"NA\",Lists!$D$9,IFERROR(HLOOKUP(C155,Input!$C$312:$L$335,H155,FALSE),\"NA\")), \"\")","v":"B"},4,4]
[{"$f":"Input!H$209","v":"Non-financial Corporates"},{"$f":"Input!K216","v":0},{"$f":"Input!K$191","v":9},{"$f":"Input!B$196","v":"More than 20"},{"$f":"Input!E$209","v":3},{"$f":"IF(B156<>\"\",IF(C156=\"NA\",Lists!$D$9,IFERROR(HLOOKUP(C156,Input!$C$312:$L$335,H156,FALSE),\"NA\")), \"\")","v":"B"},5,4]
[{"$f":"Input!H$209","v":"Non-financial Corporates"},{"$f":"Input!L212","v":0},{"$f":"Input!L$191","v":10},{"$f":"Input!B$192","v":"Upto 1"},{"$f":"Input!E$209","v":3},{"$f":"IF(B157<>\"\",IF(C157=\"NA\",Lists!$D$9,IFERROR(HLOOKUP(C157,Input!$C$312:$L$335,H157,FALSE),\"NA\")), \"\")","v":"CCC-C"},1,4]
[{"$f":"Input!H$209","v":"Non-financial Corporates"},{"$f":"Input!L213","v":0},{"$f":"Input!L$191","v":10},{"$f":"Input!B$193","v":"1.01 to 5"},{"$f":"Input!E$209","v":3},{"$f":"IF(B158<>\"\",IF(C158=\"NA\",Lists!$D$9,IFERROR(HLOOKUP(C158,Input!$C$312:$L$335,H158,FALSE),\"NA\")), \"\")","v":"CCC-C"},2,4]
[{"$f":"Input!H$209","v":"Non-financial Corporates"},{"$f":"Input!L214","v":0},{"$f":"Input!L$191","v":10},{"$f":"Input!B$194","v":"5.01 to 10"},{"$f":"Input!E$209","v":3},{"$f":"IF(B159<>\"\",IF(C159=\"NA\",Lists!$D$9,IFERROR(HLOOKUP(C159,Input!$C$312:$L$335,H159,FALSE),\"NA\")), \"\")","v":"CCC-C"},3,4]
[{"$f":"Input!H$209","v":"Non-financial Corporates"},{"$f":"Input!L215","v":0},{"$f":"Input!L$191","v":10},{"$f":"Input!B$195","v":"10.01 to 20"},{"$f":"Input!E$209","v":3},{"$f":"IF(B160<>\"\",IF(C160=\"NA\",Lists!$D$9,IFERROR(HLOOKUP(C160,Input!$C$312:$L$335,H160,FALSE),\"NA\")), \"\")","v":"CCC-C"},4,4]
[{"$f":"Input!H$209","v":"Non-financial Corporates"},{"$f":"Input!L216","v":0},{"$f":"Input!L$191","v":10},{"$f":"Input!B$196","v":"More than 20"},{"$f":"Input!E$209","v":3},{"$f":"IF(B161<>\"\",IF(C161=\"NA\",Lists!$D$9,IFERROR(HLOOKUP(C161,Input!$C$312:$L$335,H161,FALSE),\"NA\")), \"\")","v":"CCC-C"},5,4]
[{"$f":"Input!H$209","v":"Non-financial Corporates"},{"$f":"Input!M212","v":0},{"$f":"Input!M$191","v":"NA"},{"$f":"Input!B$192","v":"Upto 1"},{"$f":"Input!E$209","v":3},{"$f":"IF(B162<>\"\",IF(C162=\"NA\",Lists!$D$9,IFERROR(HLOOKUP(C162,Input!$C$312:$L$335,H162,FALSE),\"NA\")), \"\")","v":"CCC-C"},1,4]
[{"$f":"Input!H$209","v":"Non-financial Corporates"},{"$f":"Input!M213","v":0},{"$f":"Input!M$191","v":"NA"},{"$f":"Input!B$193","v":"1.01 to 5"},{"$f":"Input!E$209","v":3},{"$f":"IF(B163<>\"\",IF(C163=\"NA\",Lists!$D$9,IFERROR(HLOOKUP(C163,Input!$C$312:$L$335,H163,FALSE),\"NA\")), \"\")","v":"CCC-C"},2,4]
[{"$f":"Input!H$209","v":"Non-financial Corporates"},{"$f":"Input!M214","v":0},{"$f":"Input!M$191","v":"NA"},{"$f":"Input!B$194","v":"5.01 to 10"},{"$f":"Input!E$209","v":3},{"$f":"IF(B164<>\"\",IF(C164=\"NA\",Lists!$D$9,IFERROR(HLOOKUP(C164,Input!$C$312:$L$335,H164,FALSE),\"NA\")), \"\")","v":"CCC-C"},3,4]
[{"$f":"Input!H$209","v":"Non-financial Corporates"},{"$f":"Input!M215","v":0},{"$f":"Input!M$191","v":"NA"},{"$f":"Input!B$195","v":"10.01 to 20"},{"$f":"Input!E$209","v":3},{"$f":"IF(B165<>\"\",IF(C165=\"NA\",Lists!$D$9,IFERROR(HLOOKUP(C165,Input!$C$312:$L$335,H165,FALSE),\"NA\")), \"\")","v":"CCC-C"},4,4]
[{"$f":"Input!H$209","v":"Non-financial Corporates"},{"$f":"Input!M216","v":0},{"$f":"Input!M$191","v":"NA"},{"$f":"Input!B$196","v":"More than 20"},{"$f":"Input!E$209","v":3},{"$f":"IF(B166<>\"\",IF(C166=\"NA\",Lists!$D$9,IFERROR(HLOOKUP(C166,Input!$C$312:$L$335,H166,FALSE),\"NA\")), \"\")","v":"CCC-C"},5,4]
[{"$f":"Input!H$219","v":"Financials"},{"$f":"Input!C222","v":0},{"$f":"Input!C$191","v":1},{"$f":"Input!B$192","v":"Upto 1"},{"$f":"Input!E$219","v":1},{"$f":"IF(B167<>\"\",IF(C167=\"NA\",Lists!$D$9,IFERROR(HLOOKUP(C167,Input!$C$312:$L$335,H167,FALSE),\"NA\")), \"\")","v":"BBB"},1,8]
[{"$f":"Input!H$219","v":"Financials"},{"$f":"Input!C223","v":0},{"$f":"Input!C$191","v":1},{"$f":"Input!B$193","v":"1.01 to 5"},{"$f":"Input!E$219","v":1},{"$f":"IF(B168<>\"\",IF(C168=\"NA\",Lists!$D$9,IFERROR(HLOOKUP(C168,Input!$C$312:$L$335,H168,FALSE),\"NA\")), \"\")","v":"BBB"},2,8]
[{"$f":"Input!H$219","v":"Financials"},{"$f":"Input!C224","v":0},{"$f":"Input!C$191","v":1},{"$f":"Input!B$194","v":"5.01 to 10"},{"$f":"Input!E$219","v":1},{"$f":"IF(B169<>\"\",IF(C169=\"NA\",Lists!$D$9,IFERROR(HLOOKUP(C169,Input!$C$312:$L$335,H169,FALSE),\"NA\")), \"\")","v":"BBB"},3,8]
[{"$f":"Input!H$219","v":"Financials"},{"$f":"Input!C225","v":0},{"$f":"Input!C$191","v":1},{"$f":"Input!B$195","v":"10.01 to 20"},{"$f":"Input!E$219","v":1},{"$f":"IF(B170<>\"\",IF(C170=\"NA\",Lists!$D$9,IFERROR(HLOOKUP(C170,Input!$C$312:$L$335,H170,FALSE),\"NA\")), \"\")","v":"BBB"},4,8]
[{"$f":"Input!H$219","v":"Financials"},{"$f":"Input!C226","v":0},{"$f":"Input!C$191","v":1},{"$f":"Input!B$196","v":"More than 20"},{"$f":"Input!E$219","v":1},{"$f":"IF(B171<>\"\",IF(C171=\"NA\",Lists!$D$9,IFERROR(HLOOKUP(C171,Input!$C$312:$L$335,H171,FALSE),\"NA\")), \"\")","v":"BBB"},5,8]
[{"$f":"Input!H$219","v":"Financials"},{"$f":"Input!D222","v":0},{"$f":"Input!D$191","v":2},{"$f":"Input!B$192","v":"Upto 1"},{"$f":"Input!E$219","v":1},{"$f":"IF(B172<>\"\",IF(C172=\"NA\",Lists!$D$9,IFERROR(HLOOKUP(C172,Input!$C$312:$L$335,H172,FALSE),\"NA\")), \"\")","v":"BBB"},1,8]
[{"$f":"Input!H$219","v":"Financials"},{"$f":"Input!D223","v":0},{"$f":"Input!D$191","v":2},{"$f":"Input!B$193","v":"1.01 to 5"},{"$f":"Input!E$219","v":1},{"$f":"IF(B173<>\"\",IF(C173=\"NA\",Lists!$D$9,IFERROR(HLOOKUP(C173,Input!$C$312:$L$335,H173,FALSE),\"NA\")), \"\")","v":"BBB"},2,8]
[{"$f":"Input!H$219","v":"Financials"},{"$f":"Input!D224","v":0},{"$f":"Input!D$191","v":2},{"$f":"Input!B$194","v":"5.01 to 10"},{"$f":"Input!E$219","v":1},{"$f":"IF(B174<>\"\",IF(C174=\"NA\",Lists!$D$9,IFERROR(HLOOKUP(C174,Input!$C$312:$L$335,H174,FALSE),\"NA\")), \"\")","v":"BBB"},3,8]
[{"$f":"Input!H$219","v":"Financials"},{"$f":"Input!D225","v":0},{"$f":"Input!D$191","v":2},{"$f":"Input!B$195","v":"10.01 to 20"},{"$f":"Input!E$219","v":1},{"$f":"IF(B175<>\"\",IF(C175=\"NA\",Lists!$D$9,IFERROR(HLOOKUP(C175,Input!$C$312:$L$335,H175,FALSE),\"NA\")), \"\")","v":"BBB"},4,8]
[{"$f":"Input!H$219","v":"Financials"},{"$f":"Input!D226","v":0},{"$f":"Input!D$191","v":2},{"$f":"Input!B$196","v":"More than 20"},{"$f":"Input!E$219","v":1},{"$f":"IF(B176<>\"\",IF(C176=\"NA\",Lists!$D$9,IFERROR(HLOOKUP(C176,Input!$C$312:$L$335,H176,FALSE),\"NA\")), \"\")","v":"BBB"},5,8]
[{"$f":"Input!H$219","v":"Financials"},{"$f":"Input!E222","v":0},{"$f":"Input!E$191","v":3},{"$f":"Input!B$192","v":"Upto 1"},{"$f":"Input!E$219","v":1},{"$f":"IF(B177<>\"\",IF(C177=\"NA\",Lists!$D$9,IFERROR(HLOOKUP(C177,Input!$C$312:$L$335,H177,FALSE),\"NA\")), \"\")","v":"BBB"},1,8]
[{"$f":"Input!H$219","v":"Financials"},{"$f":"Input!E223","v":0},{"$f":"Input!E$191","v":3},{"$f":"Input!B$193","v":"1.01 to 5"},{"$f":"Input!E$219","v":1},{"$f":"IF(B178<>\"\",IF(C178=\"NA\",Lists!$D$9,IFERROR(HLOOKUP(C178,Input!$C$312:$L$335,H178,FALSE),\"NA\")), \"\")","v":"BBB"},2,8]
[{"$f":"Input!H$219","v":"Financials"},{"$f":"Input!E224","v":0},{"$f":"Input!E$191","v":3},{"$f":"Input!B$194","v":"5.01 to 10"},{"$f":"Input!E$219","v":1},{"$f":"IF(B179<>\"\",IF(C179=\"NA\",Lists!$D$9,IFERROR(HLOOKUP(C179,Input!$C$312:$L$335,H179,FALSE),\"NA\")), \"\")","v":"BBB"},3,8]
[{"$f":"Input!H$219","v":"Financials"},{"$f":"Input!E225","v":0},{"$f":"Input!E$191","v":3},{"$f":"Input!B$195","v":"10.01 to 20"},{"$f":"Input!E$219","v":1},{"$f":"IF(B180<>\"\",IF(C180=\"NA\",Lists!$D$9,IFERROR(HLOOKUP(C180,Input!$C$312:$L$335,H180,FALSE),\"NA\")), \"\")","v":"BBB"},4,8]
[{"$f":"Input!H$219","v":"Financials"},{"$f":"Input!E226","v":0},{"$f":"Input!E$191","v":3},{"$f":"Input!B$196","v":"More than 20"},{"$f":"Input!E$219","v":1},{"$f":"IF(B181<>\"\",IF(C181=\"NA\",Lists!$D$9,IFERROR(HLOOKUP(C181,Input!$C$312:$L$335,H181,FALSE),\"NA\")), \"\")","v":"BBB"},5,8]
[{"$f":"Input!H$219","v":"Financials"},{"$f":"Input!F222","v":0},{"$f":"Input!F$191","v":4},{"$f":"Input!B$192","v":"Upto 1"},{"$f":"Input!E$219","v":1},{"$f":"IF(B182<>\"\",IF(C182=\"NA\",Lists!$D$9,IFERROR(HLOOKUP(C182,Input!$C$312:$L$335,H182,FALSE),\"NA\")), \"\")","v":"BBB"},1,8]
[{"$f":"Input!H$219","v":"Financials"},{"$f":"Input!F223","v":0},{"$f":"Input!F$191","v":4},{"$f":"Input!B$193","v":"1.01 to 5"},{"$f":"Input!E$219","v":1},{"$f":"IF(B183<>\"\",IF(C183=\"NA\",Lists!$D$9,IFERROR(HLOOKUP(C183,Input!$C$312:$L$335,H183,FALSE),\"NA\")), \"\")","v":"BBB"},2,8]
[{"$f":"Input!H$219","v":"Financials"},{"$f":"Input!F224","v":0},{"$f":"Input!F$191","v":4},{"$f":"Input!B$194","v":"5.01 to 10"},{"$f":"Input!E$219","v":1},{"$f":"IF(B184<>\"\",IF(C184=\"NA\",Lists!$D$9,IFERROR(HLOOKUP(C184,Input!$C$312:$L$335,H184,FALSE),\"NA\")), \"\")","v":"BBB"},3,8]
[{"$f":"Input!H$219","v":"Financials"},{"$f":"Input!F225","v":0},{"$f":"Input!F$191","v":4},{"$f":"Input!B$195","v":"10.01 to 20"},{"$f":"Input!E$219","v":1},{"$f":"IF(B185<>\"\",IF(C185=\"NA\",Lists!$D$9,IFERROR(HLOOKUP(C185,Input!$C$312:$L$335,H185,FALSE),\"NA\")), \"\")","v":"BBB"},4,8]
[{"$f":"Input!H$219","v":"Financials"},{"$f":"Input!F226","v":0},{"$f":"Input!F$191","v":4},{"$f":"Input!B$196","v":"More than 20"},{"$f":"Input!E$219","v":1},{"$f":"IF(B186<>\"\",IF(C186=\"NA\",Lists!$D$9,IFERROR(HLOOKUP(C186,Input!$C$312:$L$335,H186,FALSE),\"NA\")), \"\")","v":"BBB"},5,8]
[{"$f":"Input!H$219","v":"Financials"},{"$f":"Input!G222","v":0},{"$f":"Input!G$191","v":5},{"$f":"Input!B$192","v":"Upto 1"},{"$f":"Input!E$219","v":1},{"$f":"IF(B187<>\"\",IF(C187=\"NA\",Lists!$D$9,IFERROR(HLOOKUP(C187,Input!$C$312:$L$335,H187,FALSE),\"NA\")), \"\")","v":"BBB"},1,8]
[{"$f":"Input!H$219","v":"Financials"},{"$f":"Input!G223","v":0},{"$f":"Input!G$191","v":5},{"$f":"Input!B$193","v":"1.01 to 5"},{"$f":"Input!E$219","v":1},{"$f":"IF(B188<>\"\",IF(C188=\"NA\",Lists!$D$9,IFERROR(HLOOKUP(C188,Input!$C$312:$L$335,H188,FALSE),\"NA\")), \"\")","v":"BBB"},2,8]
[{"$f":"Input!H$219","v":"Financials"},{"$f":"Input!G224","v":0},{"$f":"Input!G$191","v":5},{"$f":"Input!B$194","v":"5.01 to 10"},{"$f":"Input!E$219","v":1},{"$f":"IF(B189<>\"\",IF(C189=\"NA\",Lists!$D$9,IFERROR(HLOOKUP(C189,Input!$C$312:$L$335,H189,FALSE),\"NA\")), \"\")","v":"BBB"},3,8]
[{"$f":"Input!H$219","v":"Financials"},{"$f":"Input!G225","v":0},{"$f":"Input!G$191","v":5},{"$f":"Input!B$195","v":"10.01 to 20"},{"$f":"Input!E$219","v":1},{"$f":"IF(B190<>\"\",IF(C190=\"NA\",Lists!$D$9,IFERROR(HLOOKUP(C190,Input!$C$312:$L$335,H190,FALSE),\"NA\")), \"\")","v":"BBB"},4,8]
[{"$f":"Input!H$219","v":"Financials"},{"$f":"Input!G226","v":0},{"$f":"Input!G$191","v":5},{"$f":"Input!B$196","v":"More than 20"},{"$f":"Input!E$219","v":1},{"$f":"IF(B191<>\"\",IF(C191=\"NA\",Lists!$D$9,IFERROR(HLOOKUP(C191,Input!$C$312:$L$335,H191,FALSE),\"NA\")), \"\")","v":"BBB"},5,8]
[{"$f":"Input!H$219","v":"Financials"},{"$f":"Input!H222","v":0},{"$f":"Input!H$191","v":6},{"$f":"Input!B$192","v":"Upto 1"},{"$f":"Input!E$219","v":1},{"$f":"IF(B192<>\"\",IF(C192=\"NA\",Lists!$D$9,IFERROR(HLOOKUP(C192,Input!$C$312:$L$335,H192,FALSE),\"NA\")), \"\")","v":"BB"},1,8]
[{"$f":"Input!H$219","v":"Financials"},{"$f":"Input!H223","v":0},{"$f":"Input!H$191","v":6},{"$f":"Input!B$193","v":"1.01 to 5"},{"$f":"Input!E$219","v":1},{"$f":"IF(B193<>\"\",IF(C193=\"NA\",Lists!$D$9,IFERROR(HLOOKUP(C193,Input!$C$312:$L$335,H193,FALSE),\"NA\")), \"\")","v":"BB"},2,8]
[{"$f":"Input!H$219","v":"Financials"},{"$f":"Input!H224","v":0},{"$f":"Input!H$191","v":6},{"$f":"Input!B$194","v":"5.01 to 10"},{"$f":"Input!E$219","v":1},{"$f":"IF(B194<>\"\",IF(C194=\"NA\",Lists!$D$9,IFERROR(HLOOKUP(C194,Input!$C$312:$L$335,H194,FALSE),\"NA\")), \"\")","v":"BB"},{"$f":"IFERROR(MATCH(D194,lov_term_buckets,0),\"\")","v":3},8]
[{"$f":"Input!H$219","v":"Financials"},{"$f":"Input!H225","v":0},{"$f":"Input!H$191","v":6},{"$f":"Input!B$195","v":"10.01 to 20"},{"$f":"Input!E$219","v":1},{"$f":"IF(B195<>\"\",IF(C195=\"NA\",Lists!$D$9,IFERROR(HLOOKUP(C195,Input!$C$312:$L$335,H195,FALSE),\"NA\")), \"\")","v":"BB"},4,{"$f":"INDEX($L$2:$L$8,MATCH(A195,$K$2:$K$8,0))","v":8}]
[{"$f":"Input!H$219","v":"Financials"},{"$f":"Input!H226","v":0},{"$f":"Input!H$191","v":6},{"$f":"Input!B$196","v":"More than 20"},{"$f":"Input!E$219","v":1},{"$f":"IF(B196<>\"\",IF(C196=\"NA\",Lists!$D$9,IFERROR(HLOOKUP(C196,Input!$C$312:$L$335,H196,FALSE),\"NA\")), \"\")","v":"BB"},5,8]
[{"$f":"Input!H$219","v":"Financials"},{"$f":"Input!I222","v":0},{"$f":"Input!I$191","v":7},{"$f":"Input!B$192","v":"Upto 1"},{"$f":"Input!E$219","v":1},{"$f":"IF(B197<>\"\",IF(C197=\"NA\",Lists!$D$9,IFERROR(HLOOKUP(C197,Input!$C$312:$L$335,H197,FALSE),\"NA\")), \"\")","v":"BB"},1,8]
[{"$f":"Input!H$219","v":"Financials"},{"$f":"Input!I223","v":0},{"$f":"Input!I$191","v":7},{"$f":"Input!B$193","v":"1.01 to 5"},{"$f":"Input!E$219","v":1},{"$f":"IF(B198<>\"\",IF(C198=\"NA\",Lists!$D$9,IFERROR(HLOOKUP(C198,Input!$C$312:$L$335,H198,FALSE),\"NA\")), \"\")","v":"BB"},2,8]
[{"$f":"Input!H$219","v":"Financials"},{"$f":"Input!I224","v":0},{"$f":"Input!I$191","v":7},{"$f":"Input!B$194","v":"5.01 to 10"},{"$f":"Input!E$219","v":1},{"$f":"IF(B199<>\"\",IF(C199=\"NA\",Lists!$D$9,IFERROR(HLOOKUP(C199,Input!$C$312:$L$335,H199,FALSE),\"NA\")), \"\")","v":"BB"},3,8]
[{"$f":"Input!H$219","v":"Financials"},{"$f":"Input!I225","v":0},{"$f":"Input!I$191","v":7},{"$f":"Input!B$195","v":"10.01 to 20"},{"$f":"Input!E$219","v":1},{"$f":"IF(B200<>\"\",IF(C200=\"NA\",Lists!$D$9,IFERROR(HLOOKUP(C200,Input!$C$312:$L$335,H200,FALSE),\"NA\")), \"\")","v":"BB"},4,8]
[{"$f":"Input!H$219","v":"Financials"},{"$f":"Input!I226","v":0},{"$f":"Input!I$191","v":7},{"$f":"Input!B$196","v":"More than 20"},{"$f":"Input!E$219","v":1},{"$f":"IF(B201<>\"\",IF(C201=\"NA\",Lists!$D$9,IFERROR(HLOOKUP(C201,Input!$C$312:$L$335,H201,FALSE),\"NA\")), \"\")","v":"BB"},5,8]
[{"$f":"Input!H$219","v":"Financials"},{"$f":"Input!J222","v":0},{"$f":"Input!J$191","v":8},{"$f":"Input!B$192","v":"Upto 1"},{"$f":"Input!E$219","v":1},{"$f":"IF(B202<>\"\",IF(C202=\"NA\",Lists!$D$9,IFERROR(HLOOKUP(C202,Input!$C$312:$L$335,H202,FALSE),\"NA\")), \"\")","v":"B"},1,8]
[{"$f":"Input!H$219","v":"Financials"},{"$f":"Input!J223","v":0},{"$f":"Input!J$191","v":8},{"$f":"Input!B$193","v":"1.01 to 5"},{"$f":"Input!E$219","v":1},{"$f":"IF(B203<>\"\",IF(C203=\"NA\",Lists!$D$9,IFERROR(HLOOKUP(C203,Input!$C$312:$L$335,H203,FALSE),\"NA\")), \"\")","v":"B"},2,8]
[{"$f":"Input!H$219","v":"Financials"},{"$f":"Input!J224","v":0},{"$f":"Input!J$191","v":8},{"$f":"Input!B$194","v":"5.01 to 10"},{"$f":"Input!E$219","v":1},{"$f":"IF(B204<>\"\",IF(C204=\"NA\",Lists!$D$9,IFERROR(HLOOKUP(C204,Input!$C$312:$L$335,H204,FALSE),\"NA\")), \"\")","v":"B"},3,8]
[{"$f":"Input!H$219","v":"Financials"},{"$f":"Input!J225","v":0},{"$f":"Input!J$191","v":8},{"$f":"Input!B$195","v":"10.01 to 20"},{"$f":"Input!E$219","v":1},{"$f":"IF(B205<>\"\",IF(C205=\"NA\",Lists!$D$9,IFERROR(HLOOKUP(C205,Input!$C$312:$L$335,H205,FALSE),\"NA\")), \"\")","v":"B"},4,8]
[{"$f":"Input!H$219","v":"Financials"},{"$f":"Input!J226","v":0},{"$f":"Input!J$191","v":8},{"$f":"Input!B$196","v":"More than 20"},{"$f":"Input!E$219","v":1},{"$f":"IF(B206<>\"\",IF(C206=\"NA\",Lists!$D$9,IFERROR(HLOOKUP(C206,Input!$C$312:$L$335,H206,FALSE),\"NA\")), \"\")","v":"B"},5,8]
[{"$f":"Input!H$219","v":"Financials"},{"$f":"Input!K222","v":0},{"$f":"Input!K$191","v":9},{"$f":"Input!B$192","v":"Upto 1"},{"$f":"Input!E$219","v":1},{"$f":"IF(B207<>\"\",IF(C207=\"NA\",Lists!$D$9,IFERROR(HLOOKUP(C207,Input!$C$312:$L$335,H207,FALSE),\"NA\")), \"\")","v":"B"},1,8]
[{"$f":"Input!H$219","v":"Financials"},{"$f":"Input!K223","v":0},{"$f":"Input!K$191","v":9},{"$f":"Input!B$193","v":"1.01 to 5"},{"$f":"Input!E$219","v":1},{"$f":"IF(B208<>\"\",IF(C208=\"NA\",Lists!$D$9,IFERROR(HLOOKUP(C208,Input!$C$312:$L$335,H208,FALSE),\"NA\")), \"\")","v":"B"},2,8]
[{"$f":"Input!H$219","v":"Financials"},{"$f":"Input!K224","v":0},{"$f":"Input!K$191","v":9},{"$f":"Input!B$194","v":"5.01 to 10"},{"$f":"Input!E$219","v":1},{"$f":"IF(B209<>\"\",IF(C209=\"NA\",Lists!$D$9,IFERROR(HLOOKUP(C209,Input!$C$312:$L$335,H209,FALSE),\"NA\")), \"\")","v":"B"},3,8]
[{"$f":"Input!H$219","v":"Financials"},{"$f":"Input!K225","v":0},{"$f":"Input!K$191","v":9},{"$f":"Input!B$195","v":"10.01 to 20"},{"$f":"Input!E$219","v":1},{"$f":"IF(B210<>\"\",IF(C210=\"NA\",Lists!$D$9,IFERROR(HLOOKUP(C210,Input!$C$312:$L$335,H210,FALSE),\"NA\")), \"\")","v":"B"},4,8]
[{"$f":"Input!H$219","v":"Financials"},{"$f":"Input!K226","v":0},{"$f":"Input!K$191","v":9},{"$f":"Input!B$196","v":"More than 20"},{"$f":"Input!E$219","v":1},{"$f":"IF(B211<>\"\",IF(C211=\"NA\",Lists!$D$9,IFERROR(HLOOKUP(C211,Input!$C$312:$L$335,H211,FALSE),\"NA\")), \"\")","v":"B"},5,8]
[{"$f":"Input!H$219","v":"Financials"},{"$f":"Input!L222","v":0},{"$f":"Input!L$191","v":10},{"$f":"Input!B$192","v":"Upto 1"},{"$f":"Input!E$219","v":1},{"$f":"IF(B212<>\"\",IF(C212=\"NA\",Lists!$D$9,IFERROR(HLOOKUP(C212,Input!$C$312:$L$335,H212,FALSE),\"NA\")), \"\")","v":"CCC-C"},1,8]
[{"$f":"Input!H$219","v":"Financials"},{"$f":"Input!L223","v":0},{"$f":"Input!L$191","v":10},{"$f":"Input!B$193","v":"1.01 to 5"},{"$f":"Input!E$219","v":1},{"$f":"IF(B213<>\"\",IF(C213=\"NA\",Lists!$D$9,IFERROR(HLOOKUP(C213,Input!$C$312:$L$335,H213,FALSE),\"NA\")), \"\")","v":"CCC-C"},2,8]
[{"$f":"Input!H$219","v":"Financials"},{"$f":"Input!L224","v":0},{"$f":"Input!L$191","v":10},{"$f":"Input!B$194","v":"5.01 to 10"},{"$f":"Input!E$219","v":1},{"$f":"IF(B214<>\"\",IF(C214=\"NA\",Lists!$D$9,IFERROR(HLOOKUP(C214,Input!$C$312:$L$335,H214,FALSE),\"NA\")), \"\")","v":"CCC-C"},3,8]
[{"$f":"Input!H$219","v":"Financials"},{"$f":"Input!L225","v":0},{"$f":"Input!L$191","v":10},{"$f":"Input!B$195","v":"10.01 to 20"},{"$f":"Input!E$219","v":1},{"$f":"IF(B215<>\"\",IF(C215=\"NA\",Lists!$D$9,IFERROR(HLOOKUP(C215,Input!$C$312:$L$335,H215,FALSE),\"NA\")), \"\")","v":"CCC-C"},4,8]
[{"$f":"Input!H$219","v":"Financials"},{"$f":"Input!L226","v":0},{"$f":"Input!L$191","v":10},{"$f":"Input!B$196","v":"More than 20"},{"$f":"Input!E$219","v":1},{"$f":"IF(B216<>\"\",IF(C216=\"NA\",Lists!$D$9,IFERROR(HLOOKUP(C216,Input!$C$312:$L$335,H216,FALSE),\"NA\")), \"\")","v":"CCC-C"},5,8]
[{"$f":"Input!H$219","v":"Financials"},{"$f":"Input!M222","v":0},{"$f":"Input!M$191","v":"NA"},{"$f":"Input!B$192","v":"Upto 1"},{"$f":"Input!E$219","v":1},{"$f":"IF(B217<>\"\",IF(C217=\"NA\",Lists!$D$9,IFERROR(HLOOKUP(C217,Input!$C$312:$L$335,H217,FALSE),\"NA\")), \"\")","v":"CCC-C"},1,8]
[{"$f":"Input!H$219","v":"Financials"},{"$f":"Input!M223","v":0},{"$f":"Input!M$191","v":"NA"},{"$f":"Input!B$193","v":"1.01 to 5"},{"$f":"Input!E$219","v":1},{"$f":"IF(B218<>\"\",IF(C218=\"NA\",Lists!$D$9,IFERROR(HLOOKUP(C218,Input!$C$312:$L$335,H218,FALSE),\"NA\")), \"\")","v":"CCC-C"},2,8]
[{"$f":"Input!H$219","v":"Financials"},{"$f":"Input!M224","v":0},{"$f":"Input!M$191","v":"NA"},{"$f":"Input!B$194","v":"5.01 to 10"},{"$f":"Input!E$219","v":1},{"$f":"IF(B219<>\"\",IF(C219=\"NA\",Lists!$D$9,IFERROR(HLOOKUP(C219,Input!$C$312:$L$335,H219,FALSE),\"NA\")), \"\")","v":"CCC-C"},3,8]
[{"$f":"Input!H$219","v":"Financials"},{"$f":"Input!M225","v":0},{"$f":"Input!M$191","v":"NA"},{"$f":"Input!B$195","v":"10.01 to 20"},{"$f":"Input!E$219","v":1},{"$f":"IF(B220<>\"\",IF(C220=\"NA\",Lists!$D$9,IFERROR(HLOOKUP(C220,Input!$C$312:$L$335,H220,FALSE),\"NA\")), \"\")","v":"CCC-C"},4,8]
[{"$f":"Input!H$219","v":"Financials"},{"$f":"Input!M226","v":0},{"$f":"Input!M$191","v":"NA"},{"$f":"Input!B$196","v":"More than 20"},{"$f":"Input!E$219","v":1},{"$f":"IF(B221<>\"\",IF(C221=\"NA\",Lists!$D$9,IFERROR(HLOOKUP(C221,Input!$C$312:$L$335,H221,FALSE),\"NA\")), \"\")","v":"CCC-C"},5,8]
[{"$f":"Input!H$229","v":"Financials"},{"$f":"Input!C232","v":0},{"$f":"Input!C$191","v":1},{"$f":"Input!B$192","v":"Upto 1"},{"$f":"Input!E$229","v":2},{"$f":"IF(B222<>\"\",IF(C222=\"NA\",Lists!$D$9,IFERROR(HLOOKUP(C222,Input!$C$312:$L$335,H222,FALSE),\"NA\")), \"\")","v":"BBB"},1,8]
[{"$f":"Input!H$229","v":"Financials"},{"$f":"Input!C233","v":0},{"$f":"Input!C$191","v":1},{"$f":"Input!B$193","v":"1.01 to 5"},{"$f":"Input!E$229","v":2},{"$f":"IF(B223<>\"\",IF(C223=\"NA\",Lists!$D$9,IFERROR(HLOOKUP(C223,Input!$C$312:$L$335,H223,FALSE),\"NA\")), \"\")","v":"BBB"},2,8]
[{"$f":"Input!H$229","v":"Financials"},{"$f":"Input!C234","v":0},{"$f":"Input!C$191","v":1},{"$f":"Input!B$194","v":"5.01 to 10"},{"$f":"Input!E$229","v":2},{"$f":"IF(B224<>\"\",IF(C224=\"NA\",Lists!$D$9,IFERROR(HLOOKUP(C224,Input!$C$312:$L$335,H224,FALSE),\"NA\")), \"\")","v":"BBB"},3,8]
[{"$f":"Input!H$229","v":"Financials"},{"$f":"Input!C235","v":0},{"$f":"Input!C$191","v":1},{"$f":"Input!B$195","v":"10.01 to 20"},{"$f":"Input!E$229","v":2},{"$f":"IF(B225<>\"\",IF(C225=\"NA\",Lists!$D$9,IFERROR(HLOOKUP(C225,Input!$C$312:$L$335,H225,FALSE),\"NA\")), \"\")","v":"BBB"},4,8]
[{"$f":"Input!H$229","v":"Financials"},{"$f":"Input!C236","v":0},{"$f":"Input!C$191","v":1},{"$f":"Input!B$196","v":"More than 20"},{"$f":"Input!E$229","v":2},{"$f":"IF(B226<>\"\",IF(C226=\"NA\",Lists!$D$9,IFERROR(HLOOKUP(C226,Input!$C$312:$L$335,H226,FALSE),\"NA\")), \"\")","v":"BBB"},5,8]
[{"$f":"Input!H$229","v":"Financials"},{"$f":"Input!D232","v":0},{"$f":"Input!D$191","v":2},{"$f":"Input!B$192","v":"Upto 1"},{"$f":"Input!E$229","v":2},{"$f":"IF(B227<>\"\",IF(C227=\"NA\",Lists!$D$9,IFERROR(HLOOKUP(C227,Input!$C$312:$L$335,H227,FALSE),\"NA\")), \"\")","v":"BBB"},1,8]
[{"$f":"Input!H$229","v":"Financials"},{"$f":"Input!D233","v":0},{"$f":"Input!D$191","v":2},{"$f":"Input!B$193","v":"1.01 to 5"},{"$f":"Input!E$229","v":2},{"$f":"IF(B228<>\"\",IF(C228=\"NA\",Lists!$D$9,IFERROR(HLOOKUP(C228,Input!$C$312:$L$335,H228,FALSE),\"NA\")), \"\")","v":"BBB"},2,8]
[{"$f":"Input!H$229","v":"Financials"},{"$f":"Input!D234","v":0},{"$f":"Input!D$191","v":2},{"$f":"Input!B$194","v":"5.01 to 10"},{"$f":"Input!E$229","v":2},{"$f":"IF(B229<>\"\",IF(C229=\"NA\",Lists!$D$9,IFERROR(HLOOKUP(C229,Input!$C$312:$L$335,H229,FALSE),\"NA\")), \"\")","v":"BBB"},3,8]
[{"$f":"Input!H$229","v":"Financials"},{"$f":"Input!D235","v":0},{"$f":"Input!D$191","v":2},{"$f":"Input!B$195","v":"10.01 to 20"},{"$f":"Input!E$229","v":2},{"$f":"IF(B230<>\"\",IF(C230=\"NA\",Lists!$D$9,IFERROR(HLOOKUP(C230,Input!$C$312:$L$335,H230,FALSE),\"NA\")), \"\")","v":"BBB"},4,8]
[{"$f":"Input!H$229","v":"Financials"},{"$f":"Input!D236","v":0},{"$f":"Input!D$191","v":2},{"$f":"Input!B$196","v":"More than 20"},{"$f":"Input!E$229","v":2},{"$f":"IF(B231<>\"\",IF(C231=\"NA\",Lists!$D$9,IFERROR(HLOOKUP(C231,Input!$C$312:$L$335,H231,FALSE),\"NA\")), \"\")","v":"BBB"},5,8]
[{"$f":"Input!H$229","v":"Financials"},{"$f":"Input!E232","v":0},{"$f":"Input!E$191","v":3},{"$f":"Input!B$192","v":"Upto 1"},{"$f":"Input!E$229","v":2},{"$f":"IF(B232<>\"\",IF(C232=\"NA\",Lists!$D$9,IFERROR(HLOOKUP(C232,Input!$C$312:$L$335,H232,FALSE),\"NA\")), \"\")","v":"BBB"},1,8]
[{"$f":"Input!H$229","v":"Financials"},{"$f":"Input!E233","v":0},{"$f":"Input!E$191","v":3},{"$f":"Input!B$193","v":"1.01 to 5"},{"$f":"Input!E$229","v":2},{"$f":"IF(B233<>\"\",IF(C233=\"NA\",Lists!$D$9,IFERROR(HLOOKUP(C233,Input!$C$312:$L$335,H233,FALSE),\"NA\")), \"\")","v":"BBB"},2,8]
[{"$f":"Input!H$229","v":"Financials"},{"$f":"Input!E234","v":0},{"$f":"Input!E$191","v":3},{"$f":"Input!B$194","v":"5.01 to 10"},{"$f":"Input!E$229","v":2},{"$f":"IF(B234<>\"\",IF(C234=\"NA\",Lists!$D$9,IFERROR(HLOOKUP(C234,Input!$C$312:$L$335,H234,FALSE),\"NA\")), \"\")","v":"BBB"},3,8]
[{"$f":"Input!H$229","v":"Financials"},{"$f":"Input!E235","v":0},{"$f":"Input!E$191","v":3},{"$f":"Input!B$195","v":"10.01 to 20"},{"$f":"Input!E$229","v":2},{"$f":"IF(B235<>\"\",IF(C235=\"NA\",Lists!$D$9,IFERROR(HLOOKUP(C235,Input!$C$312:$L$335,H235,FALSE),\"NA\")), \"\")","v":"BBB"},4,8]
[{"$f":"Input!H$229","v":"Financials"},{"$f":"Input!E236","v":0},{"$f":"Input!E$191","v":3},{"$f":"Input!B$196","v":"More than 20"},{"$f":"Input!E$229","v":2},{"$f":"IF(B236<>\"\",IF(C236=\"NA\",Lists!$D$9,IFERROR(HLOOKUP(C236,Input!$C$312:$L$335,H236,FALSE),\"NA\")), \"\")","v":"BBB"},5,8]
[{"$f":"Input!H$229","v":"Financials"},{"$f":"Input!F232","v":0},{"$f":"Input!F$191","v":4},{"$f":"Input!B$192","v":"Upto 1"},{"$f":"Input!E$229","v":2},{"$f":"IF(B237<>\"\",IF(C237=\"NA\",Lists!$D$9,IFERROR(HLOOKUP(C237,Input!$C$312:$L$335,H237,FALSE),\"NA\")), \"\")","v":"BBB"},1,8]
[{"$f":"Input!H$229","v":"Financials"},{"$f":"Input!F233","v":0},{"$f":"Input!F$191","v":4},{"$f":"Input!B$193","v":"1.01 to 5"},{"$f":"Input!E$229","v":2},{"$f":"IF(B238<>\"\",IF(C238=\"NA\",Lists!$D$9,IFERROR(HLOOKUP(C238,Input!$C$312:$L$335,H238,FALSE),\"NA\")), \"\")","v":"BBB"},2,8]
[{"$f":"Input!H$229","v":"Financials"},{"$f":"Input!F234","v":0},{"$f":"Input!F$191","v":4},{"$f":"Input!B$194","v":"5.01 to 10"},{"$f":"Input!E$229","v":2},{"$f":"IF(B239<>\"\",IF(C239=\"NA\",Lists!$D$9,IFERROR(HLOOKUP(C239,Input!$C$312:$L$335,H239,FALSE),\"NA\")), \"\")","v":"BBB"},3,8]
[{"$f":"Input!H$229","v":"Financials"},{"$f":"Input!F235","v":0},{"$f":"Input!F$191","v":4},{"$f":"Input!B$195","v":"10.01 to 20"},{"$f":"Input!E$229","v":2},{"$f":"IF(B240<>\"\",IF(C240=\"NA\",Lists!$D$9,IFERROR(HLOOKUP(C240,Input!$C$312:$L$335,H240,FALSE),\"NA\")), \"\")","v":"BBB"},4,8]
[{"$f":"Input!H$229","v":"Financials"},{"$f":"Input!F236","v":0},{"$f":"Input!F$191","v":4},{"$f":"Input!B$196","v":"More than 20"},{"$f":"Input!E$229","v":2},{"$f":"IF(B241<>\"\",IF(C241=\"NA\",Lists!$D$9,IFERROR(HLOOKUP(C241,Input!$C$312:$L$335,H241,FALSE),\"NA\")), \"\")","v":"BBB"},5,8]
[{"$f":"Input!H$229","v":"Financials"},{"$f":"Input!G232","v":0},{"$f":"Input!G$191","v":5},{"$f":"Input!B$192","v":"Upto 1"},{"$f":"Input!E$229","v":2},{"$f":"IF(B242<>\"\",IF(C242=\"NA\",Lists!$D$9,IFERROR(HLOOKUP(C242,Input!$C$312:$L$335,H242,FALSE),\"NA\")), \"\")","v":"BBB"},1,8]
[{"$f":"Input!H$229","v":"Financials"},{"$f":"Input!G233","v":0},{"$f":"Input!G$191","v":5},{"$f":"Input!B$193","v":"1.01 to 5"},{"$f":"Input!E$229","v":2},{"$f":"IF(B243<>\"\",IF(C243=\"NA\",Lists!$D$9,IFERROR(HLOOKUP(C243,Input!$C$312:$L$335,H243,FALSE),\"NA\")), \"\")","v":"BBB"},2,8]
[{"$f":"Input!H$229","v":"Financials"},{"$f":"Input!G234","v":0},{"$f":"Input!G$191","v":5},{"$f":"Input!B$194","v":"5.01 to 10"},{"$f":"Input!E$229","v":2},{"$f":"IF(B244<>\"\",IF(C244=\"NA\",Lists!$D$9,IFERROR(HLOOKUP(C244,Input!$C$312:$L$335,H244,FALSE),\"NA\")), \"\")","v":"BBB"},3,8]
[{"$f":"Input!H$229","v":"Financials"},{"$f":"Input!G235","v":0},{"$f":"Input!G$191","v":5},{"$f":"Input!B$195","v":"10.01 to 20"},{"$f":"Input!E$229","v":2},{"$f":"IF(B245<>\"\",IF(C245=\"NA\",Lists!$D$9,IFERROR(HLOOKUP(C245,Input!$C$312:$L$335,H245,FALSE),\"NA\")), \"\")","v":"BBB"},4,8]
[{"$f":"Input!H$229","v":"Financials"},{"$f":"Input!G236","v":0},{"$f":"Input!G$191","v":5},{"$f":"Input!B$196","v":"More than 20"},{"$f":"Input!E$229","v":2},{"$f":"IF(B246<>\"\",IF(C246=\"NA\",Lists!$D$9,IFERROR(HLOOKUP(C246,Input!$C$312:$L$335,H246,FALSE),\"NA\")), \"\")","v":"BBB"},5,8]
[{"$f":"Input!H$229","v":"Financials"},{"$f":"Input!H232","v":0},{"$f":"Input!H$191","v":6},{"$f":"Input!B$192","v":"Upto 1"},{"$f":"Input!E$229","v":2},{"$f":"IF(B247<>\"\",IF(C247=\"NA\",Lists!$D$9,IFERROR(HLOOKUP(C247,Input!$C$312:$L$335,H247,FALSE),\"NA\")), \"\")","v":"BB"},1,8]
[{"$f":"Input!H$229","v":"Financials"},{"$f":"Input!H233","v":0},{"$f":"Input!H$191","v":6},{"$f":"Input!B$193","v":"1.01 to 5"},{"$f":"Input!E$229","v":2},{"$f":"IF(B248<>\"\",IF(C248=\"NA\",Lists!$D$9,IFERROR(HLOOKUP(C248,Input!$C$312:$L$335,H248,FALSE),\"NA\")), \"\")","v":"BB"},2,8]
[{"$f":"Input!H$229","v":"Financials"},{"$f":"Input!H234","v":0},{"$f":"Input!H$191","v":6},{"$f":"Input!B$194","v":"5.01 to 10"},{"$f":"Input!E$229","v":2},{"$f":"IF(B249<>\"\",IF(C249=\"NA\",Lists!$D$9,IFERROR(HLOOKUP(C249,Input!$C$312:$L$335,H249,FALSE),\"NA\")), \"\")","v":"BB"},3,8]
[{"$f":"Input!H$229","v":"Financials"},{"$f":"Input!H235","v":0},{"$f":"Input!H$191","v":6},{"$f":"Input!B$195","v":"10.01 to 20"},{"$f":"Input!E$229","v":2},{"$f":"IF(B250<>\"\",IF(C250=\"NA\",Lists!$D$9,IFERROR(HLOOKUP(C250,Input!$C$312:$L$335,H250,FALSE),\"NA\")), \"\")","v":"BB"},4,8]
[{"$f":"Input!H$229","v":"Financials"},{"$f":"Input!H236","v":0},{"$f":"Input!H$191","v":6},{"$f":"Input!B$196","v":"More than 20"},{"$f":"Input!E$229","v":2},{"$f":"IF(B251<>\"\",IF(C251=\"NA\",Lists!$D$9,IFERROR(HLOOKUP(C251,Input!$C$312:$L$335,H251,FALSE),\"NA\")), \"\")","v":"BB"},5,8]
[{"$f":"Input!H$229","v":"Financials"},{"$f":"Input!I232","v":0},{"$f":"Input!I$191","v":7},{"$f":"Input!B$192","v":"Upto 1"},{"$f":"Input!E$229","v":2},{"$f":"IF(B252<>\"\",IF(C252=\"NA\",Lists!$D$9,IFERROR(HLOOKUP(C252,Input!$C$312:$L$335,H252,FALSE),\"NA\")), \"\")","v":"BB"},1,8]
[{"$f":"Input!H$229","v":"Financials"},{"$f":"Input!I233","v":0},{"$f":"Input!I$191","v":7},{"$f":"Input!B$193","v":"1.01 to 5"},{"$f":"Input!E$229","v":2},{"$f":"IF(B253<>\"\",IF(C253=\"NA\",Lists!$D$9,IFERROR(HLOOKUP(C253,Input!$C$312:$L$335,H253,FALSE),\"NA\")), \"\")","v":"BB"},2,8]
[{"$f":"Input!H$229","v":"Financials"},{"$f":"Input!I234","v":0},{"$f":"Input!I$191","v":7},{"$f":"Input!B$194","v":"5.01 to 10"},{"$f":"Input!E$229","v":2},{"$f":"IF(B254<>\"\",IF(C254=\"NA\",Lists!$D$9,IFERROR(HLOOKUP(C254,Input!$C$312:$L$335,H254,FALSE),\"NA\")), \"\")","v":"BB"},3,8]
[{"$f":"Input!H$229","v":"Financials"},{"$f":"Input!I235","v":0},{"$f":"Input!I$191","v":7},{"$f":"Input!B$195","v":"10.01 to 20"},{"$f":"Input!E$229","v":2},{"$f":"IF(B255<>\"\",IF(C255=\"NA\",Lists!$D$9,IFERROR(HLOOKUP(C255,Input!$C$312:$L$335,H255,FALSE),\"NA\")), \"\")","v":"BB"},4,8]
[{"$f":"Input!H$229","v":"Financials"},{"$f":"Input!I236","v":0},{"$f":"Input!I$191","v":7},{"$f":"Input!B$196","v":"More than 20"},{"$f":"Input!E$229","v":2},{"$f":"IF(B256<>\"\",IF(C256=\"NA\",Lists!$D$9,IFERROR(HLOOKUP(C256,Input!$C$312:$L$335,H256,FALSE),\"NA\")), \"\")","v":"BB"},5,8]
[{"$f":"Input!H$229","v":"Financials"},{"$f":"Input!J232","v":0},{"$f":"Input!J$191","v":8},{"$f":"Input!B$192","v":"Upto 1"},{"$f":"Input!E$229","v":2},{"$f":"IF(B257<>\"\",IF(C257=\"NA\",Lists!$D$9,IFERROR(HLOOKUP(C257,Input!$C$312:$L$335,H257,FALSE),\"NA\")), \"\")","v":"B"},1,8]
[{"$f":"Input!H$229","v":"Financials"},{"$f":"Input!J233","v":0},{"$f":"Input!J$191","v":8},{"$f":"Input!B$193","v":"1.01 to 5"},{"$f":"Input!E$229","v":2},{"$f":"IF(B258<>\"\",IF(C258=\"NA\",Lists!$D$9,IFERROR(HLOOKUP(C258,Input!$C$312:$L$335,H258,FALSE),\"NA\")), \"\")","v":"B"},{"$f":"IFERROR(MATCH(D258,lov_term_buckets,0),\"\")","v":2},8]
[{"$f":"Input!H$229","v":"Financials"},{"$f":"Input!J234","v":0},{"$f":"Input!J$191","v":8},{"$f":"Input!B$194","v":"5.01 to 10"},{"$f":"Input!E$229","v":2},{"$f":"IF(B259<>\"\",IF(C259=\"NA\",Lists!$D$9,IFERROR(HLOOKUP(C259,Input!$C$312:$L$335,H259,FALSE),\"NA\")), \"\")","v":"B"},3,{"$f":"INDEX($L$2:$L$8,MATCH(A259,$K$2:$K$8,0))","v":8}]
[{"$f":"Input!H$229","v":"Financials"},{"$f":"Input!J235","v":0},{"$f":"Input!J$191","v":8},{"$f":"Input!B$195","v":"10.01 to 20"},{"$f":"Input!E$229","v":2},{"$f":"IF(B260<>\"\",IF(C260=\"NA\",Lists!$D$9,IFERROR(HLOOKUP(C260,Input!$C$312:$L$335,H260,FALSE),\"NA\")), \"\")","v":"B"},4,8]
[{"$f":"Input!H$229","v":"Financials"},{"$f":"Input!J236","v":0},{"$f":"Input!J$191","v":8},{"$f":"Input!B$196","v":"More than 20"},{"$f":"Input!E$229","v":2},{"$f":"IF(B261<>\"\",IF(C261=\"NA\",Lists!$D$9,IFERROR(HLOOKUP(C261,Input!$C$312:$L$335,H261,FALSE),\"NA\")), \"\")","v":"B"},5,8]
[{"$f":"Input!H$229","v":"Financials"},{"$f":"Input!K232","v":0},{"$f":"Input!K$191","v":9},{"$f":"Input!B$192","v":"Upto 1"},{"$f":"Input!E$229","v":2},{"$f":"IF(B262<>\"\",IF(C262=\"NA\",Lists!$D$9,IFERROR(HLOOKUP(C262,Input!$C$312:$L$335,H262,FALSE),\"NA\")), \"\")","v":"B"},1,8]
[{"$f":"Input!H$229","v":"Financials"},{"$f":"Input!K233","v":0},{"$f":"Input!K$191","v":9},{"$f":"Input!B$193","v":"1.01 to 5"},{"$f":"Input!E$229","v":2},{"$f":"IF(B263<>\"\",IF(C263=\"NA\",Lists!$D$9,IFERROR(HLOOKUP(C263,Input!$C$312:$L$335,H263,FALSE),\"NA\")), \"\")","v":"B"},2,8]
[{"$f":"Input!H$229","v":"Financials"},{"$f":"Input!K234","v":0},{"$f":"Input!K$191","v":9},{"$f":"Input!B$194","v":"5.01 to 10"},{"$f":"Input!E$229","v":2},{"$f":"IF(B264<>\"\",IF(C264=\"NA\",Lists!$D$9,IFERROR(HLOOKUP(C264,Input!$C$312:$L$335,H264,FALSE),\"NA\")), \"\")","v":"B"},3,8]
[{"$f":"Input!H$229","v":"Financials"},{"$f":"Input!K235","v":0},{"$f":"Input!K$191","v":9},{"$f":"Input!B$195","v":"10.01 to 20"},{"$f":"Input!E$229","v":2},{"$f":"IF(B265<>\"\",IF(C265=\"NA\",Lists!$D$9,IFERROR(HLOOKUP(C265,Input!$C$312:$L$335,H265,FALSE),\"NA\")), \"\")","v":"B"},4,8]
[{"$f":"Input!H$229","v":"Financials"},{"$f":"Input!K236","v":0},{"$f":"Input!K$191","v":9},{"$f":"Input!B$196","v":"More than 20"},{"$f":"Input!E$229","v":2},{"$f":"IF(B266<>\"\",IF(C266=\"NA\",Lists!$D$9,IFERROR(HLOOKUP(C266,Input!$C$312:$L$335,H266,FALSE),\"NA\")), \"\")","v":"B"},5,8]
[{"$f":"Input!H$229","v":"Financials"},{"$f":"Input!L232","v":0},{"$f":"Input!L$191","v":10},{"$f":"Input!B$192","v":"Upto 1"},{"$f":"Input!E$229","v":2},{"$f":"IF(B267<>\"\",IF(C267=\"NA\",Lists!$D$9,IFERROR(HLOOKUP(C267,Input!$C$312:$L$335,H267,FALSE),\"NA\")), \"\")","v":"CCC-C"},1,8]
[{"$f":"Input!H$229","v":"Financials"},{"$f":"Input!L233","v":0},{"$f":"Input!L$191","v":10},{"$f":"Input!B$193","v":"1.01 to 5"},{"$f":"Input!E$229","v":2},{"$f":"IF(B268<>\"\",IF(C268=\"NA\",Lists!$D$9,IFERROR(HLOOKUP(C268,Input!$C$312:$L$335,H268,FALSE),\"NA\")), \"\")","v":"CCC-C"},2,8]
[{"$f":"Input!H$229","v":"Financials"},{"$f":"Input!L234","v":0},{"$f":"Input!L$191","v":10},{"$f":"Input!B$194","v":"5.01 to 10"},{"$f":"Input!E$229","v":2},{"$f":"IF(B269<>\"\",IF(C269=\"NA\",Lists!$D$9,IFERROR(HLOOKUP(C269,Input!$C$312:$L$335,H269,FALSE),\"NA\")), \"\")","v":"CCC-C"},3,8]
[{"$f":"Input!H$229","v":"Financials"},{"$f":"Input!L235","v":0},{"$f":"Input!L$191","v":10},{"$f":"Input!B$195","v":"10.01 to 20"},{"$f":"Input!E$229","v":2},{"$f":"IF(B270<>\"\",IF(C270=\"NA\",Lists!$D$9,IFERROR(HLOOKUP(C270,Input!$C$312:$L$335,H270,FALSE),\"NA\")), \"\")","v":"CCC-C"},4,8]
[{"$f":"Input!H$229","v":"Financials"},{"$f":"Input!L236","v":0},{"$f":"Input!L$191","v":10},{"$f":"Input!B$196","v":"More than 20"},{"$f":"Input!E$229","v":2},{"$f":"IF(B271<>\"\",IF(C271=\"NA\",Lists!$D$9,IFERROR(HLOOKUP(C271,Input!$C$312:$L$335,H271,FALSE),\"NA\")), \"\")","v":"CCC-C"},5,8]
[{"$f":"Input!H$229","v":"Financials"},{"$f":"Input!M232","v":0},{"$f":"Input!M$191","v":"NA"},{"$f":"Input!B$192","v":"Upto 1"},{"$f":"Input!E$229","v":2},{"$f":"IF(B272<>\"\",IF(C272=\"NA\",Lists!$D$9,IFERROR(HLOOKUP(C272,Input!$C$312:$L$335,H272,FALSE),\"NA\")), \"\")","v":"CCC-C"},1,8]
[{"$f":"Input!H$229","v":"Financials"},{"$f":"Input!M233","v":0},{"$f":"Input!M$191","v":"NA"},{"$f":"Input!B$193","v":"1.01 to 5"},{"$f":"Input!E$229","v":2},{"$f":"IF(B273<>\"\",IF(C273=\"NA\",Lists!$D$9,IFERROR(HLOOKUP(C273,Input!$C$312:$L$335,H273,FALSE),\"NA\")), \"\")","v":"CCC-C"},2,8]
[{"$f":"Input!H$229","v":"Financials"},{"$f":"Input!M234","v":0},{"$f":"Input!M$191","v":"NA"},{"$f":"Input!B$194","v":"5.01 to 10"},{"$f":"Input!E$229","v":2},{"$f":"IF(B274<>\"\",IF(C274=\"NA\",Lists!$D$9,IFERROR(HLOOKUP(C274,Input!$C$312:$L$335,H274,FALSE),\"NA\")), \"\")","v":"CCC-C"},3,8]
[{"$f":"Input!H$229","v":"Financials"},{"$f":"Input!M235","v":0},{"$f":"Input!M$191","v":"NA"},{"$f":"Input!B$195","v":"10.01 to 20"},{"$f":"Input!E$229","v":2},{"$f":"IF(B275<>\"\",IF(C275=\"NA\",Lists!$D$9,IFERROR(HLOOKUP(C275,Input!$C$312:$L$335,H275,FALSE),\"NA\")), \"\")","v":"CCC-C"},4,8]
[{"$f":"Input!H$229","v":"Financials"},{"$f":"Input!M236","v":0},{"$f":"Input!M$191","v":"NA"},{"$f":"Input!B$196","v":"More than 20"},{"$f":"Input!E$229","v":2},{"$f":"IF(B276<>\"\",IF(C276=\"NA\",Lists!$D$9,IFERROR(HLOOKUP(C276,Input!$C$312:$L$335,H276,FALSE),\"NA\")), \"\")","v":"CCC-C"},5,8]
[{"$f":"Input!H$239","v":"Financials"},{"$f":"Input!C242","v":0},{"$f":"Input!C$191","v":1},{"$f":"Input!B$192","v":"Upto 1"},{"$f":"Input!E$239","v":3},{"$f":"IF(B277<>\"\",IF(C277=\"NA\",Lists!$D$9,IFERROR(HLOOKUP(C277,Input!$C$312:$L$335,H277,FALSE),\"NA\")), \"\")","v":"BBB"},1,8]
[{"$f":"Input!H$239","v":"Financials"},{"$f":"Input!C243","v":0},{"$f":"Input!C$191","v":1},{"$f":"Input!B$193","v":"1.01 to 5"},{"$f":"Input!E$239","v":3},{"$f":"IF(B278<>\"\",IF(C278=\"NA\",Lists!$D$9,IFERROR(HLOOKUP(C278,Input!$C$312:$L$335,H278,FALSE),\"NA\")), \"\")","v":"BBB"},2,8]
[{"$f":"Input!H$239","v":"Financials"},{"$f":"Input!C244","v":0},{"$f":"Input!C$191","v":1},{"$f":"Input!B$194","v":"5.01 to 10"},{"$f":"Input!E$239","v":3},{"$f":"IF(B279<>\"\",IF(C279=\"NA\",Lists!$D$9,IFERROR(HLOOKUP(C279,Input!$C$312:$L$335,H279,FALSE),\"NA\")), \"\")","v":"BBB"},3,8]
[{"$f":"Input!H$239","v":"Financials"},{"$f":"Input!C245","v":0},{"$f":"Input!C$191","v":1},{"$f":"Input!B$195","v":"10.01 to 20"},{"$f":"Input!E$239","v":3},{"$f":"IF(B280<>\"\",IF(C280=\"NA\",Lists!$D$9,IFERROR(HLOOKUP(C280,Input!$C$312:$L$335,H280,FALSE),\"NA\")), \"\")","v":"BBB"},4,8]
[{"$f":"Input!H$239","v":"Financials"},{"$f":"Input!C246","v":0},{"$f":"Input!C$191","v":1},{"$f":"Input!B$196","v":"More than 20"},{"$f":"Input!E$239","v":3},{"$f":"IF(B281<>\"\",IF(C281=\"NA\",Lists!$D$9,IFERROR(HLOOKUP(C281,Input!$C$312:$L$335,H281,FALSE),\"NA\")), \"\")","v":"BBB"},5,8]
[{"$f":"Input!H$239","v":"Financials"},{"$f":"Input!D242","v":0},{"$f":"Input!D$191","v":2},{"$f":"Input!B$192","v":"Upto 1"},{"$f":"Input!E$239","v":3},{"$f":"IF(B282<>\"\",IF(C282=\"NA\",Lists!$D$9,IFERROR(HLOOKUP(C282,Input!$C$312:$L$335,H282,FALSE),\"NA\")), \"\")","v":"BBB"},1,8]
[{"$f":"Input!H$239","v":"Financials"},{"$f":"Input!D243","v":0},{"$f":"Input!D$191","v":2},{"$f":"Input!B$193","v":"1.01 to 5"},{"$f":"Input!E$239","v":3},{"$f":"IF(B283<>\"\",IF(C283=\"NA\",Lists!$D$9,IFERROR(HLOOKUP(C283,Input!$C$312:$L$335,H283,FALSE),\"NA\")), \"\")","v":"BBB"},2,8]
[{"$f":"Input!H$239","v":"Financials"},{"$f":"Input!D244","v":0},{"$f":"Input!D$191","v":2},{"$f":"Input!B$194","v":"5.01 to 10"},{"$f":"Input!E$239","v":3},{"$f":"IF(B284<>\"\",IF(C284=\"NA\",Lists!$D$9,IFERROR(HLOOKUP(C284,Input!$C$312:$L$335,H284,FALSE),\"NA\")), \"\")","v":"BBB"},3,8]
[{"$f":"Input!H$239","v":"Financials"},{"$f":"Input!D245","v":0},{"$f":"Input!D$191","v":2},{"$f":"Input!B$195","v":"10.01 to 20"},{"$f":"Input!E$239","v":3},{"$f":"IF(B285<>\"\",IF(C285=\"NA\",Lists!$D$9,IFERROR(HLOOKUP(C285,Input!$C$312:$L$335,H285,FALSE),\"NA\")), \"\")","v":"BBB"},4,8]
[{"$f":"Input!H$239","v":"Financials"},{"$f":"Input!D246","v":0},{"$f":"Input!D$191","v":2},{"$f":"Input!B$196","v":"More than 20"},{"$f":"Input!E$239","v":3},{"$f":"IF(B286<>\"\",IF(C286=\"NA\",Lists!$D$9,IFERROR(HLOOKUP(C286,Input!$C$312:$L$335,H286,FALSE),\"NA\")), \"\")","v":"BBB"},5,8]
[{"$f":"Input!H$239","v":"Financials"},{"$f":"Input!E242","v":0},{"$f":"Input!E$191","v":3},{"$f":"Input!B$192","v":"Upto 1"},{"$f":"Input!E$239","v":3},{"$f":"IF(B287<>\"\",IF(C287=\"NA\",Lists!$D$9,IFERROR(HLOOKUP(C287,Input!$C$312:$L$335,H287,FALSE),\"NA\")), \"\")","v":"BBB"},1,8]
[{"$f":"Input!H$239","v":"Financials"},{"$f":"Input!E243","v":0},{"$f":"Input!E$191","v":3},{"$f":"Input!B$193","v":"1.01 to 5"},{"$f":"Input!E$239","v":3},{"$f":"IF(B288<>\"\",IF(C288=\"NA\",Lists!$D$9,IFERROR(HLOOKUP(C288,Input!$C$312:$L$335,H288,FALSE),\"NA\")), \"\")","v":"BBB"},2,8]
[{"$f":"Input!H$239","v":"Financials"},{"$f":"Input!E244","v":0},{"$f":"Input!E$191","v":3},{"$f":"Input!B$194","v":"5.01 to 10"},{"$f":"Input!E$239","v":3},{"$f":"IF(B289<>\"\",IF(C289=\"NA\",Lists!$D$9,IFERROR(HLOOKUP(C289,Input!$C$312:$L$335,H289,FALSE),\"NA\")), \"\")","v":"BBB"},3,8]
[{"$f":"Input!H$239","v":"Financials"},{"$f":"Input!E245","v":0},{"$f":"Input!E$191","v":3},{"$f":"Input!B$195","v":"10.01 to 20"},{"$f":"Input!E$239","v":3},{"$f":"IF(B290<>\"\",IF(C290=\"NA\",Lists!$D$9,IFERROR(HLOOKUP(C290,Input!$C$312:$L$335,H290,FALSE),\"NA\")), \"\")","v":"BBB"},4,8]
[{"$f":"Input!H$239","v":"Financials"},{"$f":"Input!E246","v":0},{"$f":"Input!E$191","v":3},{"$f":"Input!B$196","v":"More than 20"},{"$f":"Input!E$239","v":3},{"$f":"IF(B291<>\"\",IF(C291=\"NA\",Lists!$D$9,IFERROR(HLOOKUP(C291,Input!$C$312:$L$335,H291,FALSE),\"NA\")), \"\")","v":"BBB"},5,8]
[{"$f":"Input!H$239","v":"Financials"},{"$f":"Input!F242","v":0},{"$f":"Input!F$191","v":4},{"$f":"Input!B$192","v":"Upto 1"},{"$f":"Input!E$239","v":3},{"$f":"IF(B292<>\"\",IF(C292=\"NA\",Lists!$D$9,IFERROR(HLOOKUP(C292,Input!$C$312:$L$335,H292,FALSE),\"NA\")), \"\")","v":"BBB"},1,8]
[{"$f":"Input!H$239","v":"Financials"},{"$f":"Input!F243","v":0},{"$f":"Input!F$191","v":4},{"$f":"Input!B$193","v":"1.01 to 5"},{"$f":"Input!E$239","v":3},{"$f":"IF(B293<>\"\",IF(C293=\"NA\",Lists!$D$9,IFERROR(HLOOKUP(C293,Input!$C$312:$L$335,H293,FALSE),\"NA\")), \"\")","v":"BBB"},2,8]
[{"$f":"Input!H$239","v":"Financials"},{"$f":"Input!F244","v":0},{"$f":"Input!F$191","v":4},{"$f":"Input!B$194","v":"5.01 to 10"},{"$f":"Input!E$239","v":3},{"$f":"IF(B294<>\"\",IF(C294=\"NA\",Lists!$D$9,IFERROR(HLOOKUP(C294,Input!$C$312:$L$335,H294,FALSE),\"NA\")), \"\")","v":"BBB"},3,8]
[{"$f":"Input!H$239","v":"Financials"},{"$f":"Input!F245","v":0},{"$f":"Input!F$191","v":4},{"$f":"Input!B$195","v":"10.01 to 20"},{"$f":"Input!E$239","v":3},{"$f":"IF(B295<>\"\",IF(C295=\"NA\",Lists!$D$9,IFERROR(HLOOKUP(C295,Input!$C$312:$L$335,H295,FALSE),\"NA\")), \"\")","v":"BBB"},4,8]
[{"$f":"Input!H$239","v":"Financials"},{"$f":"Input!F246","v":0},{"$f":"Input!F$191","v":4},{"$f":"Input!B$196","v":"More than 20"},{"$f":"Input!E$239","v":3},{"$f":"IF(B296<>\"\",IF(C296=\"NA\",Lists!$D$9,IFERROR(HLOOKUP(C296,Input!$C$312:$L$335,H296,FALSE),\"NA\")), \"\")","v":"BBB"},5,8]
[{"$f":"Input!H$239","v":"Financials"},{"$f":"Input!G242","v":0},{"$f":"Input!G$191","v":5},{"$f":"Input!B$192","v":"Upto 1"},{"$f":"Input!E$239","v":3},{"$f":"IF(B297<>\"\",IF(C297=\"NA\",Lists!$D$9,IFERROR(HLOOKUP(C297,Input!$C$312:$L$335,H297,FALSE),\"NA\")), \"\")","v":"BBB"},1,8]
[{"$f":"Input!H$239","v":"Financials"},{"$f":"Input!G243","v":0},{"$f":"Input!G$191","v":5},{"$f":"Input!B$193","v":"1.01 to 5"},{"$f":"Input!E$239","v":3},{"$f":"IF(B298<>\"\",IF(C298=\"NA\",Lists!$D$9,IFERROR(HLOOKUP(C298,Input!$C$312:$L$335,H298,FALSE),\"NA\")), \"\")","v":"BBB"},2,8]
[{"$f":"Input!H$239","v":"Financials"},{"$f":"Input!G244","v":0},{"$f":"Input!G$191","v":5},{"$f":"Input!B$194","v":"5.01 to 10"},{"$f":"Input!E$239","v":3},{"$f":"IF(B299<>\"\",IF(C299=\"NA\",Lists!$D$9,IFERROR(HLOOKUP(C299,Input!$C$312:$L$335,H299,FALSE),\"NA\")), \"\")","v":"BBB"},3,8]
[{"$f":"Input!H$239","v":"Financials"},{"$f":"Input!G245","v":0},{"$f":"Input!G$191","v":5},{"$f":"Input!B$195","v":"10.01 to 20"},{"$f":"Input!E$239","v":3},{"$f":"IF(B300<>\"\",IF(C300=\"NA\",Lists!$D$9,IFERROR(HLOOKUP(C300,Input!$C$312:$L$335,H300,FALSE),\"NA\")), \"\")","v":"BBB"},4,8]
[{"$f":"Input!H$239","v":"Financials"},{"$f":"Input!G246","v":0},{"$f":"Input!G$191","v":5},{"$f":"Input!B$196","v":"More than 20"},{"$f":"Input!E$239","v":3},{"$f":"IF(B301<>\"\",IF(C301=\"NA\",Lists!$D$9,IFERROR(HLOOKUP(C301,Input!$C$312:$L$335,H301,FALSE),\"NA\")), \"\")","v":"BBB"},5,8]
[{"$f":"Input!H$239","v":"Financials"},{"$f":"Input!H242","v":0},{"$f":"Input!H$191","v":6},{"$f":"Input!B$192","v":"Upto 1"},{"$f":"Input!E$239","v":3},{"$f":"IF(B302<>\"\",IF(C302=\"NA\",Lists!$D$9,IFERROR(HLOOKUP(C302,Input!$C$312:$L$335,H302,FALSE),\"NA\")), \"\")","v":"BB"},1,8]
[{"$f":"Input!H$239","v":"Financials"},{"$f":"Input!H243","v":0},{"$f":"Input!H$191","v":6},{"$f":"Input!B$193","v":"1.01 to 5"},{"$f":"Input!E$239","v":3},{"$f":"IF(B303<>\"\",IF(C303=\"NA\",Lists!$D$9,IFERROR(HLOOKUP(C303,Input!$C$312:$L$335,H303,FALSE),\"NA\")), \"\")","v":"BB"},2,8]
[{"$f":"Input!H$239","v":"Financials"},{"$f":"Input!H244","v":0},{"$f":"Input!H$191","v":6},{"$f":"Input!B$194","v":"5.01 to 10"},{"$f":"Input!E$239","v":3},{"$f":"IF(B304<>\"\",IF(C304=\"NA\",Lists!$D$9,IFERROR(HLOOKUP(C304,Input!$C$312:$L$335,H304,FALSE),\"NA\")), \"\")","v":"BB"},3,8]
[{"$f":"Input!H$239","v":"Financials"},{"$f":"Input!H245","v":0},{"$f":"Input!H$191","v":6},{"$f":"Input!B$195","v":"10.01 to 20"},{"$f":"Input!E$239","v":3},{"$f":"IF(B305<>\"\",IF(C305=\"NA\",Lists!$D$9,IFERROR(HLOOKUP(C305,Input!$C$312:$L$335,H305,FALSE),\"NA\")), \"\")","v":"BB"},4,8]
[{"$f":"Input!H$239","v":"Financials"},{"$f":"Input!H246","v":0},{"$f":"Input!H$191","v":6},{"$f":"Input!B$196","v":"More than 20"},{"$f":"Input!E$239","v":3},{"$f":"IF(B306<>\"\",IF(C306=\"NA\",Lists!$D$9,IFERROR(HLOOKUP(C306,Input!$C$312:$L$335,H306,FALSE),\"NA\")), \"\")","v":"BB"},5,8]
[{"$f":"Input!H$239","v":"Financials"},{"$f":"Input!I242","v":0},{"$f":"Input!I$191","v":7},{"$f":"Input!B$192","v":"Upto 1"},{"$f":"Input!E$239","v":3},{"$f":"IF(B307<>\"\",IF(C307=\"NA\",Lists!$D$9,IFERROR(HLOOKUP(C307,Input!$C$312:$L$335,H307,FALSE),\"NA\")), \"\")","v":"BB"},1,8]
[{"$f":"Input!H$239","v":"Financials"},{"$f":"Input!I243","v":0},{"$f":"Input!I$191","v":7},{"$f":"Input!B$193","v":"1.01 to 5"},{"$f":"Input!E$239","v":3},{"$f":"IF(B308<>\"\",IF(C308=\"NA\",Lists!$D$9,IFERROR(HLOOKUP(C308,Input!$C$312:$L$335,H308,FALSE),\"NA\")), \"\")","v":"BB"},2,8]
[{"$f":"Input!H$239","v":"Financials"},{"$f":"Input!I244","v":0},{"$f":"Input!I$191","v":7},{"$f":"Input!B$194","v":"5.01 to 10"},{"$f":"Input!E$239","v":3},{"$f":"IF(B309<>\"\",IF(C309=\"NA\",Lists!$D$9,IFERROR(HLOOKUP(C309,Input!$C$312:$L$335,H309,FALSE),\"NA\")), \"\")","v":"BB"},3,8]
[{"$f":"Input!H$239","v":"Financials"},{"$f":"Input!I245","v":0},{"$f":"Input!I$191","v":7},{"$f":"Input!B$195","v":"10.01 to 20"},{"$f":"Input!E$239","v":3},{"$f":"IF(B310<>\"\",IF(C310=\"NA\",Lists!$D$9,IFERROR(HLOOKUP(C310,Input!$C$312:$L$335,H310,FALSE),\"NA\")), \"\")","v":"BB"},4,8]
[{"$f":"Input!H$239","v":"Financials"},{"$f":"Input!I246","v":0},{"$f":"Input!I$191","v":7},{"$f":"Input!B$196","v":"More than 20"},{"$f":"Input!E$239","v":3},{"$f":"IF(B311<>\"\",IF(C311=\"NA\",Lists!$D$9,IFERROR(HLOOKUP(C311,Input!$C$312:$L$335,H311,FALSE),\"NA\")), \"\")","v":"BB"},5,8]
[{"$f":"Input!H$239","v":"Financials"},{"$f":"Input!J242","v":0},{"$f":"Input!J$191","v":8},{"$f":"Input!B$192","v":"Upto 1"},{"$f":"Input!E$239","v":3},{"$f":"IF(B312<>\"\",IF(C312=\"NA\",Lists!$D$9,IFERROR(HLOOKUP(C312,Input!$C$312:$L$335,H312,FALSE),\"NA\")), \"\")","v":"B"},1,8]
[{"$f":"Input!H$239","v":"Financials"},{"$f":"Input!J243","v":0},{"$f":"Input!J$191","v":8},{"$f":"Input!B$193","v":"1.01 to 5"},{"$f":"Input!E$239","v":3},{"$f":"IF(B313<>\"\",IF(C313=\"NA\",Lists!$D$9,IFERROR(HLOOKUP(C313,Input!$C$312:$L$335,H313,FALSE),\"NA\")), \"\")","v":"B"},2,8]
[{"$f":"Input!H$239","v":"Financials"},{"$f":"Input!J244","v":0},{"$f":"Input!J$191","v":8},{"$f":"Input!B$194","v":"5.01 to 10"},{"$f":"Input!E$239","v":3},{"$f":"IF(B314<>\"\",IF(C314=\"NA\",Lists!$D$9,IFERROR(HLOOKUP(C314,Input!$C$312:$L$335,H314,FALSE),\"NA\")), \"\")","v":"B"},3,8]
[{"$f":"Input!H$239","v":"Financials"},{"$f":"Input!J245","v":0},{"$f":"Input!J$191","v":8},{"$f":"Input!B$195","v":"10.01 to 20"},{"$f":"Input!E$239","v":3},{"$f":"IF(B315<>\"\",IF(C315=\"NA\",Lists!$D$9,IFERROR(HLOOKUP(C315,Input!$C$312:$L$335,H315,FALSE),\"NA\")), \"\")","v":"B"},4,8]
[{"$f":"Input!H$239","v":"Financials"},{"$f":"Input!J246","v":0},{"$f":"Input!J$191","v":8},{"$f":"Input!B$196","v":"More than 20"},{"$f":"Input!E$239","v":3},{"$f":"IF(B316<>\"\",IF(C316=\"NA\",Lists!$D$9,IFERROR(HLOOKUP(C316,Input!$C$312:$L$335,H316,FALSE),\"NA\")), \"\")","v":"B"},5,8]
[{"$f":"Input!H$239","v":"Financials"},{"$f":"Input!K242","v":0},{"$f":"Input!K$191","v":9},{"$f":"Input!B$192","v":"Upto 1"},{"$f":"Input!E$239","v":3},{"$f":"IF(B317<>\"\",IF(C317=\"NA\",Lists!$D$9,IFERROR(HLOOKUP(C317,Input!$C$312:$L$335,H317,FALSE),\"NA\")), \"\")","v":"B"},1,8]
[{"$f":"Input!H$239","v":"Financials"},{"$f":"Input!K243","v":0},{"$f":"Input!K$191","v":9},{"$f":"Input!B$193","v":"1.01 to 5"},{"$f":"Input!E$239","v":3},{"$f":"IF(B318<>\"\",IF(C318=\"NA\",Lists!$D$9,IFERROR(HLOOKUP(C318,Input!$C$312:$L$335,H318,FALSE),\"NA\")), \"\")","v":"B"},2,8]
[{"$f":"Input!H$239","v":"Financials"},{"$f":"Input!K244","v":0},{"$f":"Input!K$191","v":9},{"$f":"Input!B$194","v":"5.01 to 10"},{"$f":"Input!E$239","v":3},{"$f":"IF(B319<>\"\",IF(C319=\"NA\",Lists!$D$9,IFERROR(HLOOKUP(C319,Input!$C$312:$L$335,H319,FALSE),\"NA\")), \"\")","v":"B"},3,8]
[{"$f":"Input!H$239","v":"Financials"},{"$f":"Input!K245","v":0},{"$f":"Input!K$191","v":9},{"$f":"Input!B$195","v":"10.01 to 20"},{"$f":"Input!E$239","v":3},{"$f":"IF(B320<>\"\",IF(C320=\"NA\",Lists!$D$9,IFERROR(HLOOKUP(C320,Input!$C$312:$L$335,H320,FALSE),\"NA\")), \"\")","v":"B"},4,8]
[{"$f":"Input!H$239","v":"Financials"},{"$f":"Input!K246","v":0},{"$f":"Input!K$191","v":9},{"$f":"Input!B$196","v":"More than 20"},{"$f":"Input!E$239","v":3},{"$f":"IF(B321<>\"\",IF(C321=\"NA\",Lists!$D$9,IFERROR(HLOOKUP(C321,Input!$C$312:$L$335,H321,FALSE),\"NA\")), \"\")","v":"B"},5,8]
[{"$f":"Input!H$239","v":"Financials"},{"$f":"Input!L242","v":0},{"$f":"Input!L$191","v":10},{"$f":"Input!B$192","v":"Upto 1"},{"$f":"Input!E$239","v":3},{"$f":"IF(B322<>\"\",IF(C322=\"NA\",Lists!$D$9,IFERROR(HLOOKUP(C322,Input!$C$312:$L$335,H322,FALSE),\"NA\")), \"\")","v":"CCC-C"},{"$f":"IFERROR(MATCH(D322,lov_term_buckets,0),\"\")","v":1},8]
[{"$f":"Input!H$239","v":"Financials"},{"$f":"Input!L243","v":0},{"$f":"Input!L$191","v":10},{"$f":"Input!B$193","v":"1.01 to 5"},{"$f":"Input!E$239","v":3},{"$f":"IF(B323<>\"\",IF(C323=\"NA\",Lists!$D$9,IFERROR(HLOOKUP(C323,Input!$C$312:$L$335,H323,FALSE),\"NA\")), \"\")","v":"CCC-C"},2,{"$f":"INDEX($L$2:$L$8,MATCH(A323,$K$2:$K$8,0))","v":8}]
[{"$f":"Input!H$239","v":"Financials"},{"$f":"Input!L244","v":0},{"$f":"Input!L$191","v":10},{"$f":"Input!B$194","v":"5.01 to 10"},{"$f":"Input!E$239","v":3},{"$f":"IF(B324<>\"\",IF(C324=\"NA\",Lists!$D$9,IFERROR(HLOOKUP(C324,Input!$C$312:$L$335,H324,FALSE),\"NA\")), \"\")","v":"CCC-C"},3,8]
[{"$f":"Input!H$239","v":"Financials"},{"$f":"Input!L245","v":0},{"$f":"Input!L$191","v":10},{"$f":"Input!B$195","v":"10.01 to 20"},{"$f":"Input!E$239","v":3},{"$f":"IF(B325<>\"\",IF(C325=\"NA\",Lists!$D$9,IFERROR(HLOOKUP(C325,Input!$C$312:$L$335,H325,FALSE),\"NA\")), \"\")","v":"CCC-C"},4,8]
[{"$f":"Input!H$239","v":"Financials"},{"$f":"Input!L246","v":0},{"$f":"Input!L$191","v":10},{"$f":"Input!B$196","v":"More than 20"},{"$f":"Input!E$239","v":3},{"$f":"IF(B326<>\"\",IF(C326=\"NA\",Lists!$D$9,IFERROR(HLOOKUP(C326,Input!$C$312:$L$335,H326,FALSE),\"NA\")), \"\")","v":"CCC-C"},5,8]
[{"$f":"Input!H$239","v":"Financials"},{"$f":"Input!M242","v":0},{"$f":"Input!M$191","v":"NA"},{"$f":"Input!B$192","v":"Upto 1"},{"$f":"Input!E$239","v":3},{"$f":"IF(B327<>\"\",IF(C327=\"NA\",Lists!$D$9,IFERROR(HLOOKUP(C327,Input!$C$312:$L$335,H327,FALSE),\"NA\")), \"\")","v":"CCC-C"},1,8]
[{"$f":"Input!H$239","v":"Financials"},{"$f":"Input!M243","v":0},{"$f":"Input!M$191","v":"NA"},{"$f":"Input!B$193","v":"1.01 to 5"},{"$f":"Input!E$239","v":3},{"$f":"IF(B328<>\"\",IF(C328=\"NA\",Lists!$D$9,IFERROR(HLOOKUP(C328,Input!$C$312:$L$335,H328,FALSE),\"NA\")), \"\")","v":"CCC-C"},2,8]
[{"$f":"Input!H$239","v":"Financials"},{"$f":"Input!M244","v":0},{"$f":"Input!M$191","v":"NA"},{"$f":"Input!B$194","v":"5.01 to 10"},{"$f":"Input!E$239","v":3},{"$f":"IF(B329<>\"\",IF(C329=\"NA\",Lists!$D$9,IFERROR(HLOOKUP(C329,Input!$C$312:$L$335,H329,FALSE),\"NA\")), \"\")","v":"CCC-C"},3,8]
[{"$f":"Input!H$239","v":"Financials"},{"$f":"Input!M245","v":0},{"$f":"Input!M$191","v":"NA"},{"$f":"Input!B$195","v":"10.01 to 20"},{"$f":"Input!E$239","v":3},{"$f":"IF(B330<>\"\",IF(C330=\"NA\",Lists!$D$9,IFERROR(HLOOKUP(C330,Input!$C$312:$L$335,H330,FALSE),\"NA\")), \"\")","v":"CCC-C"},4,8]
[{"$f":"Input!H$239","v":"Financials"},{"$f":"Input!M246","v":0},{"$f":"Input!M$191","v":"NA"},{"$f":"Input!B$196","v":"More than 20"},{"$f":"Input!E$239","v":3},{"$f":"IF(B331<>\"\",IF(C331=\"NA\",Lists!$D$9,IFERROR(HLOOKUP(C331,Input!$C$312:$L$335,H331,FALSE),\"NA\")), \"\")","v":"CCC-C"},5,8]
[{"$f":"Input!H$249","v":"Sovereign / Public Finance"},{"$f":"Input!C252","v":0},{"$f":"Input!C$191","v":1},{"$f":"Input!B$192","v":"Upto 1"},{"$f":"Input!E$249","v":1},{"$f":"IF(B332<>\"\",IF(C332=\"NA\",Lists!$D$9,IFERROR(HLOOKUP(C332,Input!$C$312:$L$335,H332,FALSE),\"NA\")), \"\")","v":"A"},1,12]
[{"$f":"Input!H$249","v":"Sovereign / Public Finance"},{"$f":"Input!C253","v":0},{"$f":"Input!C$191","v":1},{"$f":"Input!B$193","v":"1.01 to 5"},{"$f":"Input!E$249","v":1},{"$f":"IF(B333<>\"\",IF(C333=\"NA\",Lists!$D$9,IFERROR(HLOOKUP(C333,Input!$C$312:$L$335,H333,FALSE),\"NA\")), \"\")","v":"A"},2,12]
[{"$f":"Input!H$249","v":"Sovereign / Public Finance"},{"$f":"Input!C254","v":0},{"$f":"Input!C$191","v":1},{"$f":"Input!B$194","v":"5.01 to 10"},{"$f":"Input!E$249","v":1},{"$f":"IF(B334<>\"\",IF(C334=\"NA\",Lists!$D$9,IFERROR(HLOOKUP(C334,Input!$C$312:$L$335,H334,FALSE),\"NA\")), \"\")","v":"A"},3,12]
[{"$f":"Input!H$249","v":"Sovereign / Public Finance"},{"$f":"Input!C255","v":0},{"$f":"Input!C$191","v":1},{"$f":"Input!B$195","v":"10.01 to 20"},{"$f":"Input!E$249","v":1},{"$f":"IF(B335<>\"\",IF(C335=\"NA\",Lists!$D$9,IFERROR(HLOOKUP(C335,Input!$C$312:$L$335,H335,FALSE),\"NA\")), \"\")","v":"A"},4,12]
[{"$f":"Input!H$249","v":"Sovereign / Public Finance"},{"$f":"Input!C256","v":0},{"$f":"Input!C$191","v":1},{"$f":"Input!B$196","v":"More than 20"},{"$f":"Input!E$249","v":1},{"$f":"IF(B336<>\"\",IF(C336=\"NA\",Lists!$D$9,IFERROR(HLOOKUP(C336,Input!$C$312:$L$335,H336,FALSE),\"NA\")), \"\")","v":"A"},5,12]
[{"$f":"Input!H$249","v":"Sovereign / Public Finance"},{"$f":"Input!D252","v":0},{"$f":"Input!D$191","v":2},{"$f":"Input!B$192","v":"Upto 1"},{"$f":"Input!E$249","v":1},{"$f":"IF(B337<>\"\",IF(C337=\"NA\",Lists!$D$9,IFERROR(HLOOKUP(C337,Input!$C$312:$L$335,H337,FALSE),\"NA\")), \"\")","v":"A"},1,12]
[{"$f":"Input!H$249","v":"Sovereign / Public Finance"},{"$f":"Input!D253","v":0},{"$f":"Input!D$191","v":2},{"$f":"Input!B$193","v":"1.01 to 5"},{"$f":"Input!E$249","v":1},{"$f":"IF(B338<>\"\",IF(C338=\"NA\",Lists!$D$9,IFERROR(HLOOKUP(C338,Input!$C$312:$L$335,H338,FALSE),\"NA\")), \"\")","v":"A"},2,12]
[{"$f":"Input!H$249","v":"Sovereign / Public Finance"},{"$f":"Input!D254","v":0},{"$f":"Input!D$191","v":2},{"$f":"Input!B$194","v":"5.01 to 10"},{"$f":"Input!E$249","v":1},{"$f":"IF(B339<>\"\",IF(C339=\"NA\",Lists!$D$9,IFERROR(HLOOKUP(C339,Input!$C$312:$L$335,H339,FALSE),\"NA\")), \"\")","v":"A"},3,12]
[{"$f":"Input!H$249","v":"Sovereign / Public Finance"},{"$f":"Input!D255","v":0},{"$f":"Input!D$191","v":2},{"$f":"Input!B$195","v":"10.01 to 20"},{"$f":"Input!E$249","v":1},{"$f":"IF(B340<>\"\",IF(C340=\"NA\",Lists!$D$9,IFERROR(HLOOKUP(C340,Input!$C$312:$L$335,H340,FALSE),\"NA\")), \"\")","v":"A"},4,12]
[{"$f":"Input!H$249","v":"Sovereign / Public Finance"},{"$f":"Input!D256","v":0},{"$f":"Input!D$191","v":2},{"$f":"Input!B$196","v":"More than 20"},{"$f":"Input!E$249","v":1},{"$f":"IF(B341<>\"\",IF(C341=\"NA\",Lists!$D$9,IFERROR(HLOOKUP(C341,Input!$C$312:$L$335,H341,FALSE),\"NA\")), \"\")","v":"A"},5,12]
[{"$f":"Input!H$249","v":"Sovereign / Public Finance"},{"$f":"Input!E252","v":0},{"$f":"Input!E$191","v":3},{"$f":"Input!B$192","v":"Upto 1"},{"$f":"Input!E$249","v":1},{"$f":"IF(B342<>\"\",IF(C342=\"NA\",Lists!$D$9,IFERROR(HLOOKUP(C342,Input!$C$312:$L$335,H342,FALSE),\"NA\")), \"\")","v":"A"},1,12]
[{"$f":"Input!H$249","v":"Sovereign / Public Finance"},{"$f":"Input!E253","v":0},{"$f":"Input!E$191","v":3},{"$f":"Input!B$193","v":"1.01 to 5"},{"$f":"Input!E$249","v":1},{"$f":"IF(B343<>\"\",IF(C343=\"NA\",Lists!$D$9,IFERROR(HLOOKUP(C343,Input!$C$312:$L$335,H343,FALSE),\"NA\")), \"\")","v":"A"},2,12]
[{"$f":"Input!H$249","v":"Sovereign / Public Finance"},{"$f":"Input!E254","v":0},{"$f":"Input!E$191","v":3},{"$f":"Input!B$194","v":"5.01 to 10"},{"$f":"Input!E$249","v":1},{"$f":"IF(B344<>\"\",IF(C344=\"NA\",Lists!$D$9,IFERROR(HLOOKUP(C344,Input!$C$312:$L$335,H344,FALSE),\"NA\")), \"\")","v":"A"},3,12]
[{"$f":"Input!H$249","v":"Sovereign / Public Finance"},{"$f":"Input!E255","v":0},{"$f":"Input!E$191","v":3},{"$f":"Input!B$195","v":"10.01 to 20"},{"$f":"Input!E$249","v":1},{"$f":"IF(B345<>\"\",IF(C345=\"NA\",Lists!$D$9,IFERROR(HLOOKUP(C345,Input!$C$312:$L$335,H345,FALSE),\"NA\")), \"\")","v":"A"},4,12]
[{"$f":"Input!H$249","v":"Sovereign / Public Finance"},{"$f":"Input!E256","v":0},{"$f":"Input!E$191","v":3},{"$f":"Input!B$196","v":"More than 20"},{"$f":"Input!E$249","v":1},{"$f":"IF(B346<>\"\",IF(C346=\"NA\",Lists!$D$9,IFERROR(HLOOKUP(C346,Input!$C$312:$L$335,H346,FALSE),\"NA\")), \"\")","v":"A"},5,12]
[{"$f":"Input!H$249","v":"Sovereign / Public Finance"},{"$f":"Input!F252","v":0},{"$f":"Input!F$191","v":4},{"$f":"Input!B$192","v":"Upto 1"},{"$f":"Input!E$249","v":1},{"$f":"IF(B347<>\"\",IF(C347=\"NA\",Lists!$D$9,IFERROR(HLOOKUP(C347,Input!$C$312:$L$335,H347,FALSE),\"NA\")), \"\")","v":"A"},1,12]
[{"$f":"Input!H$249","v":"Sovereign / Public Finance"},{"$f":"Input!F253","v":0},{"$f":"Input!F$191","v":4},{"$f":"Input!B$193","v":"1.01 to 5"},{"$f":"Input!E$249","v":1},{"$f":"IF(B348<>\"\",IF(C348=\"NA\",Lists!$D$9,IFERROR(HLOOKUP(C348,Input!$C$312:$L$335,H348,FALSE),\"NA\")), \"\")","v":"A"},2,12]
[{"$f":"Input!H$249","v":"Sovereign / Public Finance"},{"$f":"Input!F254","v":0},{"$f":"Input!F$191","v":4},{"$f":"Input!B$194","v":"5.01 to 10"},{"$f":"Input!E$249","v":1},{"$f":"IF(B349<>\"\",IF(C349=\"NA\",Lists!$D$9,IFERROR(HLOOKUP(C349,Input!$C$312:$L$335,H349,FALSE),\"NA\")), \"\")","v":"A"},3,12]
[{"$f":"Input!H$249","v":"Sovereign / Public Finance"},{"$f":"Input!F255","v":0},{"$f":"Input!F$191","v":4},{"$f":"Input!B$195","v":"10.01 to 20"},{"$f":"Input!E$249","v":1},{"$f":"IF(B350<>\"\",IF(C350=\"NA\",Lists!$D$9,IFERROR(HLOOKUP(C350,Input!$C$312:$L$335,H350,FALSE),\"NA\")), \"\")","v":"A"},4,12]
[{"$f":"Input!H$249","v":"Sovereign / Public Finance"},{"$f":"Input!F256","v":0},{"$f":"Input!F$191","v":4},{"$f":"Input!B$196","v":"More than 20"},{"$f":"Input!E$249","v":1},{"$f":"IF(B351<>\"\",IF(C351=\"NA\",Lists!$D$9,IFERROR(HLOOKUP(C351,Input!$C$312:$L$335,H351,FALSE),\"NA\")), \"\")","v":"A"},5,12]
[{"$f":"Input!H$249","v":"Sovereign / Public Finance"},{"$f":"Input!G252","v":0},{"$f":"Input!G$191","v":5},{"$f":"Input!B$192","v":"Upto 1"},{"$f":"Input!E$249","v":1},{"$f":"IF(B352<>\"\",IF(C352=\"NA\",Lists!$D$9,IFERROR(HLOOKUP(C352,Input!$C$312:$L$335,H352,FALSE),\"NA\")), \"\")","v":"BBB"},1,12]
[{"$f":"Input!H$249","v":"Sovereign / Public Finance"},{"$f":"Input!G253","v":0},{"$f":"Input!G$191","v":5},{"$f":"Input!B$193","v":"1.01 to 5"},{"$f":"Input!E$249","v":1},{"$f":"IF(B353<>\"\",IF(C353=\"NA\",Lists!$D$9,IFERROR(HLOOKUP(C353,Input!$C$312:$L$335,H353,FALSE),\"NA\")), \"\")","v":"BBB"},2,12]
[{"$f":"Input!H$249","v":"Sovereign / Public Finance"},{"$f":"Input!G254","v":0},{"$f":"Input!G$191","v":5},{"$f":"Input!B$194","v":"5.01 to 10"},{"$f":"Input!E$249","v":1},{"$f":"IF(B354<>\"\",IF(C354=\"NA\",Lists!$D$9,IFERROR(HLOOKUP(C354,Input!$C$312:$L$335,H354,FALSE),\"NA\")), \"\")","v":"BBB"},3,12]
[{"$f":"Input!H$249","v":"Sovereign / Public Finance"},{"$f":"Input!G255","v":0},{"$f":"Input!G$191","v":5},{"$f":"Input!B$195","v":"10.01 to 20"},{"$f":"Input!E$249","v":1},{"$f":"IF(B355<>\"\",IF(C355=\"NA\",Lists!$D$9,IFERROR(HLOOKUP(C355,Input!$C$312:$L$335,H355,FALSE),\"NA\")), \"\")","v":"BBB"},4,12]
[{"$f":"Input!H$249","v":"Sovereign / Public Finance"},{"$f":"Input!G256","v":0},{"$f":"Input!G$191","v":5},{"$f":"Input!B$196","v":"More than 20"},{"$f":"Input!E$249","v":1},{"$f":"IF(B356<>\"\",IF(C356=\"NA\",Lists!$D$9,IFERROR(HLOOKUP(C356,Input!$C$312:$L$335,H356,FALSE),\"NA\")), \"\")","v":"BBB"},5,12]
[{"$f":"Input!H$249","v":"Sovereign / Public Finance"},{"$f":"Input!H252","v":0},{"$f":"Input!H$191","v":6},{"$f":"Input!B$192","v":"Upto 1"},{"$f":"Input!E$249","v":1},{"$f":"IF(B357<>\"\",IF(C357=\"NA\",Lists!$D$9,IFERROR(HLOOKUP(C357,Input!$C$312:$L$335,H357,FALSE),\"NA\")), \"\")","v":"BBB"},1,12]
[{"$f":"Input!H$249","v":"Sovereign / Public Finance"},{"$f":"Input!H253","v":0},{"$f":"Input!H$191","v":6},{"$f":"Input!B$193","v":"1.01 to 5"},{"$f":"Input!E$249","v":1},{"$f":"IF(B358<>\"\",IF(C358=\"NA\",Lists!$D$9,IFERROR(HLOOKUP(C358,Input!$C$312:$L$335,H358,FALSE),\"NA\")), \"\")","v":"BBB"},2,12]
[{"$f":"Input!H$249","v":"Sovereign / Public Finance"},{"$f":"Input!H254","v":0},{"$f":"Input!H$191","v":6},{"$f":"Input!B$194","v":"5.01 to 10"},{"$f":"Input!E$249","v":1},{"$f":"IF(B359<>\"\",IF(C359=\"NA\",Lists!$D$9,IFERROR(HLOOKUP(C359,Input!$C$312:$L$335,H359,FALSE),\"NA\")), \"\")","v":"BBB"},3,12]
[{"$f":"Input!H$249","v":"Sovereign / Public Finance"},{"$f":"Input!H255","v":0},{"$f":"Input!H$191","v":6},{"$f":"Input!B$195","v":"10.01 to 20"},{"$f":"Input!E$249","v":1},{"$f":"IF(B360<>\"\",IF(C360=\"NA\",Lists!$D$9,IFERROR(HLOOKUP(C360,Input!$C$312:$L$335,H360,FALSE),\"NA\")), \"\")","v":"BBB"},4,12]
[{"$f":"Input!H$249","v":"Sovereign / Public Finance"},{"$f":"Input!H256","v":0},{"$f":"Input!H$191","v":6},{"$f":"Input!B$196","v":"More than 20"},{"$f":"Input!E$249","v":1},{"$f":"IF(B361<>\"\",IF(C361=\"NA\",Lists!$D$9,IFERROR(HLOOKUP(C361,Input!$C$312:$L$335,H361,FALSE),\"NA\")), \"\")","v":"BBB"},5,12]
[{"$f":"Input!H$249","v":"Sovereign / Public Finance"},{"$f":"Input!I252","v":0},{"$f":"Input!I$191","v":7},{"$f":"Input!B$192","v":"Upto 1"},{"$f":"Input!E$249","v":1},{"$f":"IF(B362<>\"\",IF(C362=\"NA\",Lists!$D$9,IFERROR(HLOOKUP(C362,Input!$C$312:$L$335,H362,FALSE),\"NA\")), \"\")","v":"BB"},1,12]
[{"$f":"Input!H$249","v":"Sovereign / Public Finance"},{"$f":"Input!I253","v":0},{"$f":"Input!I$191","v":7},{"$f":"Input!B$193","v":"1.01 to 5"},{"$f":"Input!E$249","v":1},{"$f":"IF(B363<>\"\",IF(C363=\"NA\",Lists!$D$9,IFERROR(HLOOKUP(C363,Input!$C$312:$L$335,H363,FALSE),\"NA\")), \"\")","v":"BB"},2,12]
[{"$f":"Input!H$249","v":"Sovereign / Public Finance"},{"$f":"Input!I254","v":0},{"$f":"Input!I$191","v":7},{"$f":"Input!B$194","v":"5.01 to 10"},{"$f":"Input!E$249","v":1},{"$f":"IF(B364<>\"\",IF(C364=\"NA\",Lists!$D$9,IFERROR(HLOOKUP(C364,Input!$C$312:$L$335,H364,FALSE),\"NA\")), \"\")","v":"BB"},3,12]
[{"$f":"Input!H$249","v":"Sovereign / Public Finance"},{"$f":"Input!I255","v":0},{"$f":"Input!I$191","v":7},{"$f":"Input!B$195","v":"10.01 to 20"},{"$f":"Input!E$249","v":1},{"$f":"IF(B365<>\"\",IF(C365=\"NA\",Lists!$D$9,IFERROR(HLOOKUP(C365,Input!$C$312:$L$335,H365,FALSE),\"NA\")), \"\")","v":"BB"},4,12]
[{"$f":"Input!H$249","v":"Sovereign / Public Finance"},{"$f":"Input!I256","v":0},{"$f":"Input!I$191","v":7},{"$f":"Input!B$196","v":"More than 20"},{"$f":"Input!E$249","v":1},{"$f":"IF(B366<>\"\",IF(C366=\"NA\",Lists!$D$9,IFERROR(HLOOKUP(C366,Input!$C$312:$L$335,H366,FALSE),\"NA\")), \"\")","v":"BB"},5,12]
[{"$f":"Input!H$249","v":"Sovereign / Public Finance"},{"$f":"Input!J252","v":0},{"$f":"Input!J$191","v":8},{"$f":"Input!B$192","v":"Upto 1"},{"$f":"Input!E$249","v":1},{"$f":"IF(B367<>\"\",IF(C367=\"NA\",Lists!$D$9,IFERROR(HLOOKUP(C367,Input!$C$312:$L$335,H367,FALSE),\"NA\")), \"\")","v":"B"},1,12]
[{"$f":"Input!H$249","v":"Sovereign / Public Finance"},{"$f":"Input!J253","v":0},{"$f":"Input!J$191","v":8},{"$f":"Input!B$193","v":"1.01 to 5"},{"$f":"Input!E$249","v":1},{"$f":"IF(B368<>\"\",IF(C368=\"NA\",Lists!$D$9,IFERROR(HLOOKUP(C368,Input!$C$312:$L$335,H368,FALSE),\"NA\")), \"\")","v":"B"},2,12]
[{"$f":"Input!H$249","v":"Sovereign / Public Finance"},{"$f":"Input!J254","v":0},{"$f":"Input!J$191","v":8},{"$f":"Input!B$194","v":"5.01 to 10"},{"$f":"Input!E$249","v":1},{"$f":"IF(B369<>\"\",IF(C369=\"NA\",Lists!$D$9,IFERROR(HLOOKUP(C369,Input!$C$312:$L$335,H369,FALSE),\"NA\")), \"\")","v":"B"},3,12]
[{"$f":"Input!H$249","v":"Sovereign / Public Finance"},{"$f":"Input!J255","v":0},{"$f":"Input!J$191","v":8},{"$f":"Input!B$195","v":"10.01 to 20"},{"$f":"Input!E$249","v":1},{"$f":"IF(B370<>\"\",IF(C370=\"NA\",Lists!$D$9,IFERROR(HLOOKUP(C370,Input!$C$312:$L$335,H370,FALSE),\"NA\")), \"\")","v":"B"},4,12]
[{"$f":"Input!H$249","v":"Sovereign / Public Finance"},{"$f":"Input!J256","v":0},{"$f":"Input!J$191","v":8},{"$f":"Input!B$196","v":"More than 20"},{"$f":"Input!E$249","v":1},{"$f":"IF(B371<>\"\",IF(C371=\"NA\",Lists!$D$9,IFERROR(HLOOKUP(C371,Input!$C$312:$L$335,H371,FALSE),\"NA\")), \"\")","v":"B"},5,12]
[{"$f":"Input!H$249","v":"Sovereign / Public Finance"},{"$f":"Input!K252","v":0},{"$f":"Input!K$191","v":9},{"$f":"Input!B$192","v":"Upto 1"},{"$f":"Input!E$249","v":1},{"$f":"IF(B372<>\"\",IF(C372=\"NA\",Lists!$D$9,IFERROR(HLOOKUP(C372,Input!$C$312:$L$335,H372,FALSE),\"NA\")), \"\")","v":"B"},1,12]
[{"$f":"Input!H$249","v":"Sovereign / Public Finance"},{"$f":"Input!K253","v":0},{"$f":"Input!K$191","v":9},{"$f":"Input!B$193","v":"1.01 to 5"},{"$f":"Input!E$249","v":1},{"$f":"IF(B373<>\"\",IF(C373=\"NA\",Lists!$D$9,IFERROR(HLOOKUP(C373,Input!$C$312:$L$335,H373,FALSE),\"NA\")), \"\")","v":"B"},2,12]
[{"$f":"Input!H$249","v":"Sovereign / Public Finance"},{"$f":"Input!K254","v":0},{"$f":"Input!K$191","v":9},{"$f":"Input!B$194","v":"5.01 to 10"},{"$f":"Input!E$249","v":1},{"$f":"IF(B374<>\"\",IF(C374=\"NA\",Lists!$D$9,IFERROR(HLOOKUP(C374,Input!$C$312:$L$335,H374,FALSE),\"NA\")), \"\")","v":"B"},3,12]
[{"$f":"Input!H$249","v":"Sovereign / Public Finance"},{"$f":"Input!K255","v":0},{"$f":"Input!K$191","v":9},{"$f":"Input!B$195","v":"10.01 to 20"},{"$f":"Input!E$249","v":1},{"$f":"IF(B375<>\"\",IF(C375=\"NA\",Lists!$D$9,IFERROR(HLOOKUP(C375,Input!$C$312:$L$335,H375,FALSE),\"NA\")), \"\")","v":"B"},4,12]
[{"$f":"Input!H$249","v":"Sovereign / Public Finance"},{"$f":"Input!K256","v":0},{"$f":"Input!K$191","v":9},{"$f":"Input!B$196","v":"More than 20"},{"$f":"Input!E$249","v":1},{"$f":"IF(B376<>\"\",IF(C376=\"NA\",Lists!$D$9,IFERROR(HLOOKUP(C376,Input!$C$312:$L$335,H376,FALSE),\"NA\")), \"\")","v":"B"},5,12]
[{"$f":"Input!H$249","v":"Sovereign / Public Finance"},{"$f":"Input!L252","v":0},{"$f":"Input!L$191","v":10},{"$f":"Input!B$192","v":"Upto 1"},{"$f":"Input!E$249","v":1},{"$f":"IF(B377<>\"\",IF(C377=\"NA\",Lists!$D$9,IFERROR(HLOOKUP(C377,Input!$C$312:$L$335,H377,FALSE),\"NA\")), \"\")","v":"CCC-C"},1,12]
[{"$f":"Input!H$249","v":"Sovereign / Public Finance"},{"$f":"Input!L253","v":0},{"$f":"Input!L$191","v":10},{"$f":"Input!B$193","v":"1.01 to 5"},{"$f":"Input!E$249","v":1},{"$f":"IF(B378<>\"\",IF(C378=\"NA\",Lists!$D$9,IFERROR(HLOOKUP(C378,Input!$C$312:$L$335,H378,FALSE),\"NA\")), \"\")","v":"CCC-C"},2,12]
[{"$f":"Input!H$249","v":"Sovereign / Public Finance"},{"$f":"Input!L254","v":0},{"$f":"Input!L$191","v":10},{"$f":"Input!B$194","v":"5.01 to 10"},{"$f":"Input!E$249","v":1},{"$f":"IF(B379<>\"\",IF(C379=\"NA\",Lists!$D$9,IFERROR(HLOOKUP(C379,Input!$C$312:$L$335,H379,FALSE),\"NA\")), \"\")","v":"CCC-C"},3,12]
[{"$f":"Input!H$249","v":"Sovereign / Public Finance"},{"$f":"Input!L255","v":0},{"$f":"Input!L$191","v":10},{"$f":"Input!B$195","v":"10.01 to 20"},{"$f":"Input!E$249","v":1},{"$f":"IF(B380<>\"\",IF(C380=\"NA\",Lists!$D$9,IFERROR(HLOOKUP(C380,Input!$C$312:$L$335,H380,FALSE),\"NA\")), \"\")","v":"CCC-C"},4,12]
[{"$f":"Input!H$249","v":"Sovereign / Public Finance"},{"$f":"Input!L256","v":0},{"$f":"Input!L$191","v":10},{"$f":"Input!B$196","v":"More than 20"},{"$f":"Input!E$249","v":1},{"$f":"IF(B381<>\"\",IF(C381=\"NA\",Lists!$D$9,IFERROR(HLOOKUP(C381,Input!$C$312:$L$335,H381,FALSE),\"NA\")), \"\")","v":"CCC-C"},5,12]
[{"$f":"Input!H$249","v":"Sovereign / Public Finance"},{"$f":"Input!M252","v":0},{"$f":"Input!M$191","v":"NA"},{"$f":"Input!B$192","v":"Upto 1"},{"$f":"Input!E$249","v":1},{"$f":"IF(B382<>\"\",IF(C382=\"NA\",Lists!$D$9,IFERROR(HLOOKUP(C382,Input!$C$312:$L$335,H382,FALSE),\"NA\")), \"\")","v":"CCC-C"},1,12]
[{"$f":"Input!H$249","v":"Sovereign / Public Finance"},{"$f":"Input!M253","v":0},{"$f":"Input!M$191","v":"NA"},{"$f":"Input!B$193","v":"1.01 to 5"},{"$f":"Input!E$249","v":1},{"$f":"IF(B383<>\"\",IF(C383=\"NA\",Lists!$D$9,IFERROR(HLOOKUP(C383,Input!$C$312:$L$335,H383,FALSE),\"NA\")), \"\")","v":"CCC-C"},2,12]
[{"$f":"Input!H$249","v":"Sovereign / Public Finance"},{"$f":"Input!M254","v":0},{"$f":"Input!M$191","v":"NA"},{"$f":"Input!B$194","v":"5.01 to 10"},{"$f":"Input!E$249","v":1},{"$f":"IF(B384<>\"\",IF(C384=\"NA\",Lists!$D$9,IFERROR(HLOOKUP(C384,Input!$C$312:$L$335,H384,FALSE),\"NA\")), \"\")","v":"CCC-C"},3,12]
[{"$f":"Input!H$249","v":"Sovereign / Public Finance"},{"$f":"Input!M255","v":0},{"$f":"Input!M$191","v":"NA"},{"$f":"Input!B$195","v":"10.01 to 20"},{"$f":"Input!E$249","v":1},{"$f":"IF(B385<>\"\",IF(C385=\"NA\",Lists!$D$9,IFERROR(HLOOKUP(C385,Input!$C$312:$L$335,H385,FALSE),\"NA\")), \"\")","v":"CCC-C"},4,12]
[{"$f":"Input!H$249","v":"Sovereign / Public Finance"},{"$f":"Input!M256","v":0},{"$f":"Input!M$191","v":"NA"},{"$f":"Input!B$196","v":"More than 20"},{"$f":"Input!E$249","v":1},{"$f":"IF(B386<>\"\",IF(C386=\"NA\",Lists!$D$9,IFERROR(HLOOKUP(C386,Input!$C$312:$L$335,H386,FALSE),\"NA\")), \"\")","v":"CCC-C"},{"$f":"IFERROR(MATCH(D386,lov_term_buckets,0),\"\")","v":5},12]
[{"$f":"Input!H$259","v":"Sovereign / Public Finance"},{"$f":"Input!C262","v":0},{"$f":"Input!C$191","v":1},{"$f":"Input!B$192","v":"Upto 1"},{"$f":"Input!E$259","v":2},{"$f":"IF(B387<>\"\",IF(C387=\"NA\",Lists!$D$9,IFERROR(HLOOKUP(C387,Input!$C$312:$L$335,H387,FALSE),\"NA\")), \"\")","v":"A"},1,{"$f":"INDEX($L$2:$L$8,MATCH(A387,$K$2:$K$8,0))","v":12}]
[{"$f":"Input!H$259","v":"Sovereign / Public Finance"},{"$f":"Input!C263","v":0},{"$f":"Input!C$191","v":1},{"$f":"Input!B$193","v":"1.01 to 5"},{"$f":"Input!E$259","v":2},{"$f":"IF(B388<>\"\",IF(C388=\"NA\",Lists!$D$9,IFERROR(HLOOKUP(C388,Input!$C$312:$L$335,H388,FALSE),\"NA\")), \"\")","v":"A"},2,12]
[{"$f":"Input!H$259","v":"Sovereign / Public Finance"},{"$f":"Input!C264","v":0},{"$f":"Input!C$191","v":1},{"$f":"Input!B$194","v":"5.01 to 10"},{"$f":"Input!E$259","v":2},{"$f":"IF(B389<>\"\",IF(C389=\"NA\",Lists!$D$9,IFERROR(HLOOKUP(C389,Input!$C$312:$L$335,H389,FALSE),\"NA\")), \"\")","v":"A"},3,12]
[{"$f":"Input!H$259","v":"Sovereign / Public Finance"},{"$f":"Input!C265","v":0},{"$f":"Input!C$191","v":1},{"$f":"Input!B$195","v":"10.01 to 20"},{"$f":"Input!E$259","v":2},{"$f":"IF(B390<>\"\",IF(C390=\"NA\",Lists!$D$9,IFERROR(HLOOKUP(C390,Input!$C$312:$L$335,H390,FALSE),\"NA\")), \"\")","v":"A"},4,12]
[{"$f":"Input!H$259","v":"Sovereign / Public Finance"},{"$f":"Input!C266","v":0},{"$f":"Input!C$191","v":1},{"$f":"Input!B$196","v":"More than 20"},{"$f":"Input!E$259","v":2},{"$f":"IF(B391<>\"\",IF(C391=\"NA\",Lists!$D$9,IFERROR(HLOOKUP(C391,Input!$C$312:$L$335,H391,FALSE),\"NA\")), \"\")","v":"A"},5,12]
[{"$f":"Input!H$259","v":"Sovereign / Public Finance"},{"$f":"Input!D262","v":0},{"$f":"Input!D$191","v":2},{"$f":"Input!B$192","v":"Upto 1"},{"$f":"Input!E$259","v":2},{"$f":"IF(B392<>\"\",IF(C392=\"NA\",Lists!$D$9,IFERROR(HLOOKUP(C392,Input!$C$312:$L$335,H392,FALSE),\"NA\")), \"\")","v":"A"},1,12]
[{"$f":"Input!H$259","v":"Sovereign / Public Finance"},{"$f":"Input!D263","v":0},{"$f":"Input!D$191","v":2},{"$f":"Input!B$193","v":"1.01 to 5"},{"$f":"Input!E$259","v":2},{"$f":"IF(B393<>\"\",IF(C393=\"NA\",Lists!$D$9,IFERROR(HLOOKUP(C393,Input!$C$312:$L$335,H393,FALSE),\"NA\")), \"\")","v":"A"},2,12]
[{"$f":"Input!H$259","v":"Sovereign / Public Finance"},{"$f":"Input!D264","v":0},{"$f":"Input!D$191","v":2},{"$f":"Input!B$194","v":"5.01 to 10"},{"$f":"Input!E$259","v":2},{"$f":"IF(B394<>\"\",IF(C394=\"NA\",Lists!$D$9,IFERROR(HLOOKUP(C394,Input!$C$312:$L$335,H394,FALSE),\"NA\")), \"\")","v":"A"},3,12]
[{"$f":"Input!H$259","v":"Sovereign / Public Finance"},{"$f":"Input!D265","v":0},{"$f":"Input!D$191","v":2},{"$f":"Input!B$195","v":"10.01 to 20"},{"$f":"Input!E$259","v":2},{"$f":"IF(B395<>\"\",IF(C395=\"NA\",Lists!$D$9,IFERROR(HLOOKUP(C395,Input!$C$312:$L$335,H395,FALSE),\"NA\")), \"\")","v":"A"},4,12]
[{"$f":"Input!H$259","v":"Sovereign / Public Finance"},{"$f":"Input!D266","v":0},{"$f":"Input!D$191","v":2},{"$f":"Input!B$196","v":"More than 20"},{"$f":"Input!E$259","v":2},{"$f":"IF(B396<>\"\",IF(C396=\"NA\",Lists!$D$9,IFERROR(HLOOKUP(C396,Input!$C$312:$L$335,H396,FALSE),\"NA\")), \"\")","v":"A"},5,12]
[{"$f":"Input!H$259","v":"Sovereign / Public Finance"},{"$f":"Input!E262","v":0},{"$f":"Input!E$191","v":3},{"$f":"Input!B$192","v":"Upto 1"},{"$f":"Input!E$259","v":2},{"$f":"IF(B397<>\"\",IF(C397=\"NA\",Lists!$D$9,IFERROR(HLOOKUP(C397,Input!$C$312:$L$335,H397,FALSE),\"NA\")), \"\")","v":"A"},1,12]
[{"$f":"Input!H$259","v":"Sovereign / Public Finance"},{"$f":"Input!E263","v":0},{"$f":"Input!E$191","v":3},{"$f":"Input!B$193","v":"1.01 to 5"},{"$f":"Input!E$259","v":2},{"$f":"IF(B398<>\"\",IF(C398=\"NA\",Lists!$D$9,IFERROR(HLOOKUP(C398,Input!$C$312:$L$335,H398,FALSE),\"NA\")), \"\")","v":"A"},2,12]
[{"$f":"Input!H$259","v":"Sovereign / Public Finance"},{"$f":"Input!E264","v":0},{"$f":"Input!E$191","v":3},{"$f":"Input!B$194","v":"5.01 to 10"},{"$f":"Input!E$259","v":2},{"$f":"IF(B399<>\"\",IF(C399=\"NA\",Lists!$D$9,IFERROR(HLOOKUP(C399,Input!$C$312:$L$335,H399,FALSE),\"NA\")), \"\")","v":"A"},3,12]
[{"$f":"Input!H$259","v":"Sovereign / Public Finance"},{"$f":"Input!E265","v":0},{"$f":"Input!E$191","v":3},{"$f":"Input!B$195","v":"10.01 to 20"},{"$f":"Input!E$259","v":2},{"$f":"IF(B400<>\"\",IF(C400=\"NA\",Lists!$D$9,IFERROR(HLOOKUP(C400,Input!$C$312:$L$335,H400,FALSE),\"NA\")), \"\")","v":"A"},4,12]
[{"$f":"Input!H$259","v":"Sovereign / Public Finance"},{"$f":"Input!E266","v":0},{"$f":"Input!E$191","v":3},{"$f":"Input!B$196","v":"More than 20"},{"$f":"Input!E$259","v":2},{"$f":"IF(B401<>\"\",IF(C401=\"NA\",Lists!$D$9,IFERROR(HLOOKUP(C401,Input!$C$312:$L$335,H401,FALSE),\"NA\")), \"\")","v":"A"},5,12]
[{"$f":"Input!H$259","v":"Sovereign / Public Finance"},{"$f":"Input!F262","v":0},{"$f":"Input!F$191","v":4},{"$f":"Input!B$192","v":"Upto 1"},{"$f":"Input!E$259","v":2},{"$f":"IF(B402<>\"\",IF(C402=\"NA\",Lists!$D$9,IFERROR(HLOOKUP(C402,Input!$C$312:$L$335,H402,FALSE),\"NA\")), \"\")","v":"A"},1,12]
[{"$f":"Input!H$259","v":"Sovereign / Public Finance"},{"$f":"Input!F263","v":0},{"$f":"Input!F$191","v":4},{"$f":"Input!B$193","v":"1.01 to 5"},{"$f":"Input!E$259","v":2},{"$f":"IF(B403<>\"\",IF(C403=\"NA\",Lists!$D$9,IFERROR(HLOOKUP(C403,Input!$C$312:$L$335,H403,FALSE),\"NA\")), \"\")","v":"A"},2,12]
[{"$f":"Input!H$259","v":"Sovereign / Public Finance"},{"$f":"Input!F264","v":0},{"$f":"Input!F$191","v":4},{"$f":"Input!B$194","v":"5.01 to 10"},{"$f":"Input!E$259","v":2},{"$f":"IF(B404<>\"\",IF(C404=\"NA\",Lists!$D$9,IFERROR(HLOOKUP(C404,Input!$C$312:$L$335,H404,FALSE),\"NA\")), \"\")","v":"A"},3,12]
[{"$f":"Input!H$259","v":"Sovereign / Public Finance"},{"$f":"Input!F265","v":0},{"$f":"Input!F$191","v":4},{"$f":"Input!B$195","v":"10.01 to 20"},{"$f":"Input!E$259","v":2},{"$f":"IF(B405<>\"\",IF(C405=\"NA\",Lists!$D$9,IFERROR(HLOOKUP(C405,Input!$C$312:$L$335,H405,FALSE),\"NA\")), \"\")","v":"A"},4,12]
[{"$f":"Input!H$259","v":"Sovereign / Public Finance"},{"$f":"Input!F266","v":0},{"$f":"Input!F$191","v":4},{"$f":"Input!B$196","v":"More than 20"},{"$f":"Input!E$259","v":2},{"$f":"IF(B406<>\"\",IF(C406=\"NA\",Lists!$D$9,IFERROR(HLOOKUP(C406,Input!$C$312:$L$335,H406,FALSE),\"NA\")), \"\")","v":"A"},5,12]
[{"$f":"Input!H$259","v":"Sovereign / Public Finance"},{"$f":"Input!G262","v":0},{"$f":"Input!G$191","v":5},{"$f":"Input!B$192","v":"Upto 1"},{"$f":"Input!E$259","v":2},{"$f":"IF(B407<>\"\",IF(C407=\"NA\",Lists!$D$9,IFERROR(HLOOKUP(C407,Input!$C$312:$L$335,H407,FALSE),\"NA\")), \"\")","v":"BBB"},1,12]
[{"$f":"Input!H$259","v":"Sovereign / Public Finance"},{"$f":"Input!G263","v":0},{"$f":"Input!G$191","v":5},{"$f":"Input!B$193","v":"1.01 to 5"},{"$f":"Input!E$259","v":2},{"$f":"IF(B408<>\"\",IF(C408=\"NA\",Lists!$D$9,IFERROR(HLOOKUP(C408,Input!$C$312:$L$335,H408,FALSE),\"NA\")), \"\")","v":"BBB"},2,12]
[{"$f":"Input!H$259","v":"Sovereign / Public Finance"},{"$f":"Input!G264","v":0},{"$f":"Input!G$191","v":5},{"$f":"Input!B$194","v":"5.01 to 10"},{"$f":"Input!E$259","v":2},{"$f":"IF(B409<>\"\",IF(C409=\"NA\",Lists!$D$9,IFERROR(HLOOKUP(C409,Input!$C$312:$L$335,H409,FALSE),\"NA\")), \"\")","v":"BBB"},3,12]
[{"$f":"Input!H$259","v":"Sovereign / Public Finance"},{"$f":"Input!G265","v":0},{"$f":"Input!G$191","v":5},{"$f":"Input!B$195","v":"10.01 to 20"},{"$f":"Input!E$259","v":2},{"$f":"IF(B410<>\"\",IF(C410=\"NA\",Lists!$D$9,IFERROR(HLOOKUP(C410,Input!$C$312:$L$335,H410,FALSE),\"NA\")), \"\")","v":"BBB"},4,12]
[{"$f":"Input!H$259","v":"Sovereign / Public Finance"},{"$f":"Input!G266","v":0},{"$f":"Input!G$191","v":5},{"$f":"Input!B$196","v":"More than 20"},{"$f":"Input!E$259","v":2},{"$f":"IF(B411<>\"\",IF(C411=\"NA\",Lists!$D$9,IFERROR(HLOOKUP(C411,Input!$C$312:$L$335,H411,FALSE),\"NA\")), \"\")","v":"BBB"},5,12]
[{"$f":"Input!H$259","v":"Sovereign / Public Finance"},{"$f":"Input!H262","v":0},{"$f":"Input!H$191","v":6},{"$f":"Input!B$192","v":"Upto 1"},{"$f":"Input!E$259","v":2},{"$f":"IF(B412<>\"\",IF(C412=\"NA\",Lists!$D$9,IFERROR(HLOOKUP(C412,Input!$C$312:$L$335,H412,FALSE),\"NA\")), \"\")","v":"BBB"},1,12]
[{"$f":"Input!H$259","v":"Sovereign / Public Finance"},{"$f":"Input!H263","v":0},{"$f":"Input!H$191","v":6},{"$f":"Input!B$193","v":"1.01 to 5"},{"$f":"Input!E$259","v":2},{"$f":"IF(B413<>\"\",IF(C413=\"NA\",Lists!$D$9,IFERROR(HLOOKUP(C413,Input!$C$312:$L$335,H413,FALSE),\"NA\")), \"\")","v":"BBB"},2,12]
[{"$f":"Input!H$259","v":"Sovereign / Public Finance"},{"$f":"Input!H264","v":0},{"$f":"Input!H$191","v":6},{"$f":"Input!B$194","v":"5.01 to 10"},{"$f":"Input!E$259","v":2},{"$f":"IF(B414<>\"\",IF(C414=\"NA\",Lists!$D$9,IFERROR(HLOOKUP(C414,Input!$C$312:$L$335,H414,FALSE),\"NA\")), \"\")","v":"BBB"},3,12]
[{"$f":"Input!H$259","v":"Sovereign / Public Finance"},{"$f":"Input!H265","v":0},{"$f":"Input!H$191","v":6},{"$f":"Input!B$195","v":"10.01 to 20"},{"$f":"Input!E$259","v":2},{"$f":"IF(B415<>\"\",IF(C415=\"NA\",Lists!$D$9,IFERROR(HLOOKUP(C415,Input!$C$312:$L$335,H415,FALSE),\"NA\")), \"\")","v":"BBB"},4,12]
[{"$f":"Input!H$259","v":"Sovereign / Public Finance"},{"$f":"Input!H266","v":0},{"$f":"Input!H$191","v":6},{"$f":"Input!B$196","v":"More than 20"},{"$f":"Input!E$259","v":2},{"$f":"IF(B416<>\"\",IF(C416=\"NA\",Lists!$D$9,IFERROR(HLOOKUP(C416,Input!$C$312:$L$335,H416,FALSE),\"NA\")), \"\")","v":"BBB"},5,12]
[{"$f":"Input!H$259","v":"Sovereign / Public Finance"},{"$f":"Input!I262","v":0},{"$f":"Input!I$191","v":7},{"$f":"Input!B$192","v":"Upto 1"},{"$f":"Input!E$259","v":2},{"$f":"IF(B417<>\"\",IF(C417=\"NA\",Lists!$D$9,IFERROR(HLOOKUP(C417,Input!$C$312:$L$335,H417,FALSE),\"NA\")), \"\")","v":"BB"},1,12]
[{"$f":"Input!H$259","v":"Sovereign / Public Finance"},{"$f":"Input!I263","v":0},{"$f":"Input!I$191","v":7},{"$f":"Input!B$193","v":"1.01 to 5"},{"$f":"Input!E$259","v":2},{"$f":"IF(B418<>\"\",IF(C418=\"NA\",Lists!$D$9,IFERROR(HLOOKUP(C418,Input!$C$312:$L$335,H418,FALSE),\"NA\")), \"\")","v":"BB"},2,12]
[{"$f":"Input!H$259","v":"Sovereign / Public Finance"},{"$f":"Input!I264","v":0},{"$f":"Input!I$191","v":7},{"$f":"Input!B$194","v":"5.01 to 10"},{"$f":"Input!E$259","v":2},{"$f":"IF(B419<>\"\",IF(C419=\"NA\",Lists!$D$9,IFERROR(HLOOKUP(C419,Input!$C$312:$L$335,H419,FALSE),\"NA\")), \"\")","v":"BB"},3,12]
[{"$f":"Input!H$259","v":"Sovereign / Public Finance"},{"$f":"Input!I265","v":0},{"$f":"Input!I$191","v":7},{"$f":"Input!B$195","v":"10.01 to 20"},{"$f":"Input!E$259","v":2},{"$f":"IF(B420<>\"\",IF(C420=\"NA\",Lists!$D$9,IFERROR(HLOOKUP(C420,Input!$C$312:$L$335,H420,FALSE),\"NA\")), \"\")","v":"BB"},4,12]
[{"$f":"Input!H$259","v":"Sovereign / Public Finance"},{"$f":"Input!I266","v":0},{"$f":"Input!I$191","v":7},{"$f":"Input!B$196","v":"More than 20"},{"$f":"Input!E$259","v":2},{"$f":"IF(B421<>\"\",IF(C421=\"NA\",Lists!$D$9,IFERROR(HLOOKUP(C421,Input!$C$312:$L$335,H421,FALSE),\"NA\")), \"\")","v":"BB"},5,12]
[{"$f":"Input!H$259","v":"Sovereign / Public Finance"},{"$f":"Input!J262","v":0},{"$f":"Input!J$191","v":8},{"$f":"Input!B$192","v":"Upto 1"},{"$f":"Input!E$259","v":2},{"$f":"IF(B422<>\"\",IF(C422=\"NA\",Lists!$D$9,IFERROR(HLOOKUP(C422,Input!$C$312:$L$335,H422,FALSE),\"NA\")), \"\")","v":"B"},1,12]
[{"$f":"Input!H$259","v":"Sovereign / Public Finance"},{"$f":"Input!J263","v":0},{"$f":"Input!J$191","v":8},{"$f":"Input!B$193","v":"1.01 to 5"},{"$f":"Input!E$259","v":2},{"$f":"IF(B423<>\"\",IF(C423=\"NA\",Lists!$D$9,IFERROR(HLOOKUP(C423,Input!$C$312:$L$335,H423,FALSE),\"NA\")), \"\")","v":"B"},2,12]
[{"$f":"Input!H$259","v":"Sovereign / Public Finance"},{"$f":"Input!J264","v":0},{"$f":"Input!J$191","v":8},{"$f":"Input!B$194","v":"5.01 to 10"},{"$f":"Input!E$259","v":2},{"$f":"IF(B424<>\"\",IF(C424=\"NA\",Lists!$D$9,IFERROR(HLOOKUP(C424,Input!$C$312:$L$335,H424,FALSE),\"NA\")), \"\")","v":"B"},3,12]
[{"$f":"Input!H$259","v":"Sovereign / Public Finance"},{"$f":"Input!J265","v":0},{"$f":"Input!J$191","v":8},{"$f":"Input!B$195","v":"10.01 to 20"},{"$f":"Input!E$259","v":2},{"$f":"IF(B425<>\"\",IF(C425=\"NA\",Lists!$D$9,IFERROR(HLOOKUP(C425,Input!$C$312:$L$335,H425,FALSE),\"NA\")), \"\")","v":"B"},4,12]
[{"$f":"Input!H$259","v":"Sovereign / Public Finance"},{"$f":"Input!J266","v":0},{"$f":"Input!J$191","v":8},{"$f":"Input!B$196","v":"More than 20"},{"$f":"Input!E$259","v":2},{"$f":"IF(B426<>\"\",IF(C426=\"NA\",Lists!$D$9,IFERROR(HLOOKUP(C426,Input!$C$312:$L$335,H426,FALSE),\"NA\")), \"\")","v":"B"},5,12]
[{"$f":"Input!H$259","v":"Sovereign / Public Finance"},{"$f":"Input!K262","v":0},{"$f":"Input!K$191","v":9},{"$f":"Input!B$192","v":"Upto 1"},{"$f":"Input!E$259","v":2},{"$f":"IF(B427<>\"\",IF(C427=\"NA\",Lists!$D$9,IFERROR(HLOOKUP(C427,Input!$C$312:$L$335,H427,FALSE),\"NA\")), \"\")","v":"B"},1,12]
[{"$f":"Input!H$259","v":"Sovereign / Public Finance"},{"$f":"Input!K263","v":0},{"$f":"Input!K$191","v":9},{"$f":"Input!B$193","v":"1.01 to 5"},{"$f":"Input!E$259","v":2},{"$f":"IF(B428<>\"\",IF(C428=\"NA\",Lists!$D$9,IFERROR(HLOOKUP(C428,Input!$C$312:$L$335,H428,FALSE),\"NA\")), \"\")","v":"B"},2,12]
[{"$f":"Input!H$259","v":"Sovereign / Public Finance"},{"$f":"Input!K264","v":0},{"$f":"Input!K$191","v":9},{"$f":"Input!B$194","v":"5.01 to 10"},{"$f":"Input!E$259","v":2},{"$f":"IF(B429<>\"\",IF(C429=\"NA\",Lists!$D$9,IFERROR(HLOOKUP(C429,Input!$C$312:$L$335,H429,FALSE),\"NA\")), \"\")","v":"B"},3,12]
[{"$f":"Input!H$259","v":"Sovereign / Public Finance"},{"$f":"Input!K265","v":0},{"$f":"Input!K$191","v":9},{"$f":"Input!B$195","v":"10.01 to 20"},{"$f":"Input!E$259","v":2},{"$f":"IF(B430<>\"\",IF(C430=\"NA\",Lists!$D$9,IFERROR(HLOOKUP(C430,Input!$C$312:$L$335,H430,FALSE),\"NA\")), \"\")","v":"B"},4,12]
[{"$f":"Input!H$259","v":"Sovereign / Public Finance"},{"$f":"Input!K266","v":0},{"$f":"Input!K$191","v":9},{"$f":"Input!B$196","v":"More than 20"},{"$f":"Input!E$259","v":2},{"$f":"IF(B431<>\"\",IF(C431=\"NA\",Lists!$D$9,IFERROR(HLOOKUP(C431,Input!$C$312:$L$335,H431,FALSE),\"NA\")), \"\")","v":"B"},5,12]
[{"$f":"Input!H$259","v":"Sovereign / Public Finance"},{"$f":"Input!L262","v":0},{"$f":"Input!L$191","v":10},{"$f":"Input!B$192","v":"Upto 1"},{"$f":"Input!E$259","v":2},{"$f":"IF(B432<>\"\",IF(C432=\"NA\",Lists!$D$9,IFERROR(HLOOKUP(C432,Input!$C$312:$L$335,H432,FALSE),\"NA\")), \"\")","v":"CCC-C"},1,12]
[{"$f":"Input!H$259","v":"Sovereign / Public Finance"},{"$f":"Input!L263","v":0},{"$f":"Input!L$191","v":10},{"$f":"Input!B$193","v":"1.01 to 5"},{"$f":"Input!E$259","v":2},{"$f":"IF(B433<>\"\",IF(C433=\"NA\",Lists!$D$9,IFERROR(HLOOKUP(C433,Input!$C$312:$L$335,H433,FALSE),\"NA\")), \"\")","v":"CCC-C"},2,12]
[{"$f":"Input!H$259","v":"Sovereign / Public Finance"},{"$f":"Input!L264","v":0},{"$f":"Input!L$191","v":10},{"$f":"Input!B$194","v":"5.01 to 10"},{"$f":"Input!E$259","v":2},{"$f":"IF(B434<>\"\",IF(C434=\"NA\",Lists!$D$9,IFERROR(HLOOKUP(C434,Input!$C$312:$L$335,H434,FALSE),\"NA\")), \"\")","v":"CCC-C"},3,12]
[{"$f":"Input!H$259","v":"Sovereign / Public Finance"},{"$f":"Input!L265","v":0},{"$f":"Input!L$191","v":10},{"$f":"Input!B$195","v":"10.01 to 20"},{"$f":"Input!E$259","v":2},{"$f":"IF(B435<>\"\",IF(C435=\"NA\",Lists!$D$9,IFERROR(HLOOKUP(C435,Input!$C$312:$L$335,H435,FALSE),\"NA\")), \"\")","v":"CCC-C"},4,12]
[{"$f":"Input!H$259","v":"Sovereign / Public Finance"},{"$f":"Input!L266","v":0},{"$f":"Input!L$191","v":10},{"$f":"Input!B$196","v":"More than 20"},{"$f":"Input!E$259","v":2},{"$f":"IF(B436<>\"\",IF(C436=\"NA\",Lists!$D$9,IFERROR(HLOOKUP(C436,Input!$C$312:$L$335,H436,FALSE),\"NA\")), \"\")","v":"CCC-C"},5,12]
[{"$f":"Input!H$259","v":"Sovereign / Public Finance"},{"$f":"Input!M262","v":0},{"$f":"Input!M$191","v":"NA"},{"$f":"Input!B$192","v":"Upto 1"},{"$f":"Input!E$259","v":2},{"$f":"IF(B437<>\"\",IF(C437=\"NA\",Lists!$D$9,IFERROR(HLOOKUP(C437,Input!$C$312:$L$335,H437,FALSE),\"NA\")), \"\")","v":"CCC-C"},1,12]
[{"$f":"Input!H$259","v":"Sovereign / Public Finance"},{"$f":"Input!M263","v":0},{"$f":"Input!M$191","v":"NA"},{"$f":"Input!B$193","v":"1.01 to 5"},{"$f":"Input!E$259","v":2},{"$f":"IF(B438<>\"\",IF(C438=\"NA\",Lists!$D$9,IFERROR(HLOOKUP(C438,Input!$C$312:$L$335,H438,FALSE),\"NA\")), \"\")","v":"CCC-C"},2,12]
[{"$f":"Input!H$259","v":"Sovereign / Public Finance"},{"$f":"Input!M264","v":0},{"$f":"Input!M$191","v":"NA"},{"$f":"Input!B$194","v":"5.01 to 10"},{"$f":"Input!E$259","v":2},{"$f":"IF(B439<>\"\",IF(C439=\"NA\",Lists!$D$9,IFERROR(HLOOKUP(C439,Input!$C$312:$L$335,H439,FALSE),\"NA\")), \"\")","v":"CCC-C"},3,12]
[{"$f":"Input!H$259","v":"Sovereign / Public Finance"},{"$f":"Input!M265","v":0},{"$f":"Input!M$191","v":"NA"},{"$f":"Input!B$195","v":"10.01 to 20"},{"$f":"Input!E$259","v":2},{"$f":"IF(B440<>\"\",IF(C440=\"NA\",Lists!$D$9,IFERROR(HLOOKUP(C440,Input!$C$312:$L$335,H440,FALSE),\"NA\")), \"\")","v":"CCC-C"},4,12]
[{"$f":"Input!H$259","v":"Sovereign / Public Finance"},{"$f":"Input!M266","v":0},{"$f":"Input!M$191","v":"NA"},{"$f":"Input!B$196","v":"More than 20"},{"$f":"Input!E$259","v":2},{"$f":"IF(B441<>\"\",IF(C441=\"NA\",Lists!$D$9,IFERROR(HLOOKUP(C441,Input!$C$312:$L$335,H441,FALSE),\"NA\")), \"\")","v":"CCC-C"},5,12]
[{"$f":"Input!H$269","v":"Sovereign / Public Finance"},{"$f":"Input!C272","v":0},{"$f":"Input!C$191","v":1},{"$f":"Input!B$192","v":"Upto 1"},{"$f":"Input!E$269","v":3},{"$f":"IF(B442<>\"\",IF(C442=\"NA\",Lists!$D$9,IFERROR(HLOOKUP(C442,Input!$C$312:$L$335,H442,FALSE),\"NA\")), \"\")","v":"A"},1,12]
[{"$f":"Input!H$269","v":"Sovereign / Public Finance"},{"$f":"Input!C273","v":0},{"$f":"Input!C$191","v":1},{"$f":"Input!B$193","v":"1.01 to 5"},{"$f":"Input!E$269","v":3},{"$f":"IF(B443<>\"\",IF(C443=\"NA\",Lists!$D$9,IFERROR(HLOOKUP(C443,Input!$C$312:$L$335,H443,FALSE),\"NA\")), \"\")","v":"A"},2,12]
[{"$f":"Input!H$269","v":"Sovereign / Public Finance"},{"$f":"Input!C274","v":0},{"$f":"Input!C$191","v":1},{"$f":"Input!B$194","v":"5.01 to 10"},{"$f":"Input!E$269","v":3},{"$f":"IF(B444<>\"\",IF(C444=\"NA\",Lists!$D$9,IFERROR(HLOOKUP(C444,Input!$C$312:$L$335,H444,FALSE),\"NA\")), \"\")","v":"A"},3,12]
[{"$f":"Input!H$269","v":"Sovereign / Public Finance"},{"$f":"Input!C275","v":0},{"$f":"Input!C$191","v":1},{"$f":"Input!B$195","v":"10.01 to 20"},{"$f":"Input!E$269","v":3},{"$f":"IF(B445<>\"\",IF(C445=\"NA\",Lists!$D$9,IFERROR(HLOOKUP(C445,Input!$C$312:$L$335,H445,FALSE),\"NA\")), \"\")","v":"A"},4,12]
[{"$f":"Input!H$269","v":"Sovereign / Public Finance"},{"$f":"Input!C276","v":0},{"$f":"Input!C$191","v":1},{"$f":"Input!B$196","v":"More than 20"},{"$f":"Input!E$269","v":3},{"$f":"IF(B446<>\"\",IF(C446=\"NA\",Lists!$D$9,IFERROR(HLOOKUP(C446,Input!$C$312:$L$335,H446,FALSE),\"NA\")), \"\")","v":"A"},5,12]
[{"$f":"Input!H$269","v":"Sovereign / Public Finance"},{"$f":"Input!D272","v":0},{"$f":"Input!D$191","v":2},{"$f":"Input!B$192","v":"Upto 1"},{"$f":"Input!E$269","v":3},{"$f":"IF(B447<>\"\",IF(C447=\"NA\",Lists!$D$9,IFERROR(HLOOKUP(C447,Input!$C$312:$L$335,H447,FALSE),\"NA\")), \"\")","v":"A"},1,12]
[{"$f":"Input!H$269","v":"Sovereign / Public Finance"},{"$f":"Input!D273","v":0},{"$f":"Input!D$191","v":2},{"$f":"Input!B$193","v":"1.01 to 5"},{"$f":"Input!E$269","v":3},{"$f":"IF(B448<>\"\",IF(C448=\"NA\",Lists!$D$9,IFERROR(HLOOKUP(C448,Input!$C$312:$L$335,H448,FALSE),\"NA\")), \"\")","v":"A"},2,12]
[{"$f":"Input!H$269","v":"Sovereign / Public Finance"},{"$f":"Input!D274","v":0},{"$f":"Input!D$191","v":2},{"$f":"Input!B$194","v":"5.01 to 10"},{"$f":"Input!E$269","v":3},{"$f":"IF(B449<>\"\",IF(C449=\"NA\",Lists!$D$9,IFERROR(HLOOKUP(C449,Input!$C$312:$L$335,H449,FALSE),\"NA\")), \"\")","v":"A"},3,12]
[{"$f":"Input!H$269","v":"Sovereign / Public Finance"},{"$f":"Input!D275","v":0},{"$f":"Input!D$191","v":2},{"$f":"Input!B$195","v":"10.01 to 20"},{"$f":"Input!E$269","v":3},{"$f":"IF(B450<>\"\",IF(C450=\"NA\",Lists!$D$9,IFERROR(HLOOKUP(C450,Input!$C$312:$L$335,H450,FALSE),\"NA\")), \"\")","v":"A"},{"$f":"IFERROR(MATCH(D450,lov_term_buckets,0),\"\")","v":4},12]
[{"$f":"Input!H$269","v":"Sovereign / Public Finance"},{"$f":"Input!D276","v":0},{"$f":"Input!D$191","v":2},{"$f":"Input!B$196","v":"More than 20"},{"$f":"Input!E$269","v":3},{"$f":"IF(B451<>\"\",IF(C451=\"NA\",Lists!$D$9,IFERROR(HLOOKUP(C451,Input!$C$312:$L$335,H451,FALSE),\"NA\")), \"\")","v":"A"},5,{"$f":"INDEX($L$2:$L$8,MATCH(A451,$K$2:$K$8,0))","v":12}]
[{"$f":"Input!H$269","v":"Sovereign / Public Finance"},{"$f":"Input!E272","v":0},{"$f":"Input!E$191","v":3},{"$f":"Input!B$192","v":"Upto 1"},{"$f":"Input!E$269","v":3},{"$f":"IF(B452<>\"\",IF(C452=\"NA\",Lists!$D$9,IFERROR(HLOOKUP(C452,Input!$C$312:$L$335,H452,FALSE),\"NA\")), \"\")","v":"A"},1,12]
[{"$f":"Input!H$269","v":"Sovereign / Public Finance"},{"$f":"Input!E273","v":0},{"$f":"Input!E$191","v":3},{"$f":"Input!B$193","v":"1.01 to 5"},{"$f":"Input!E$269","v":3},{"$f":"IF(B453<>\"\",IF(C453=\"NA\",Lists!$D$9,IFERROR(HLOOKUP(C453,Input!$C$312:$L$335,H453,FALSE),\"NA\")), \"\")","v":"A"},2,12]
[{"$f":"Input!H$269","v":"Sovereign / Public Finance"},{"$f":"Input!E274","v":0},{"$f":"Input!E$191","v":3},{"$f":"Input!B$194","v":"5.01 to 10"},{"$f":"Input!E$269","v":3},{"$f":"IF(B454<>\"\",IF(C454=\"NA\",Lists!$D$9,IFERROR(HLOOKUP(C454,Input!$C$312:$L$335,H454,FALSE),\"NA\")), \"\")","v":"A"},3,12]
[{"$f":"Input!H$269","v":"Sovereign / Public Finance"},{"$f":"Input!E275","v":0},{"$f":"Input!E$191","v":3},{"$f":"Input!B$195","v":"10.01 to 20"},{"$f":"Input!E$269","v":3},{"$f":"IF(B455<>\"\",IF(C455=\"NA\",Lists!$D$9,IFERROR(HLOOKUP(C455,Input!$C$312:$L$335,H455,FALSE),\"NA\")), \"\")","v":"A"},4,12]
[{"$f":"Input!H$269","v":"Sovereign / Public Finance"},{"$f":"Input!E276","v":0},{"$f":"Input!E$191","v":3},{"$f":"Input!B$196","v":"More than 20"},{"$f":"Input!E$269","v":3},{"$f":"IF(B456<>\"\",IF(C456=\"NA\",Lists!$D$9,IFERROR(HLOOKUP(C456,Input!$C$312:$L$335,H456,FALSE),\"NA\")), \"\")","v":"A"},5,12]
[{"$f":"Input!H$269","v":"Sovereign / Public Finance"},{"$f":"Input!F272","v":0},{"$f":"Input!F$191","v":4},{"$f":"Input!B$192","v":"Upto 1"},{"$f":"Input!E$269","v":3},{"$f":"IF(B457<>\"\",IF(C457=\"NA\",Lists!$D$9,IFERROR(HLOOKUP(C457,Input!$C$312:$L$335,H457,FALSE),\"NA\")), \"\")","v":"A"},1,12]
[{"$f":"Input!H$269","v":"Sovereign / Public Finance"},{"$f":"Input!F273","v":0},{"$f":"Input!F$191","v":4},{"$f":"Input!B$193","v":"1.01 to 5"},{"$f":"Input!E$269","v":3},{"$f":"IF(B458<>\"\",IF(C458=\"NA\",Lists!$D$9,IFERROR(HLOOKUP(C458,Input!$C$312:$L$335,H458,FALSE),\"NA\")), \"\")","v":"A"},2,12]
[{"$f":"Input!H$269","v":"Sovereign / Public Finance"},{"$f":"Input!F274","v":0},{"$f":"Input!F$191","v":4},{"$f":"Input!B$194","v":"5.01 to 10"},{"$f":"Input!E$269","v":3},{"$f":"IF(B459<>\"\",IF(C459=\"NA\",Lists!$D$9,IFERROR(HLOOKUP(C459,Input!$C$312:$L$335,H459,FALSE),\"NA\")), \"\")","v":"A"},3,12]
[{"$f":"Input!H$269","v":"Sovereign / Public Finance"},{"$f":"Input!F275","v":0},{"$f":"Input!F$191","v":4},{"$f":"Input!B$195","v":"10.01 to 20"},{"$f":"Input!E$269","v":3},{"$f":"IF(B460<>\"\",IF(C460=\"NA\",Lists!$D$9,IFERROR(HLOOKUP(C460,Input!$C$312:$L$335,H460,FALSE),\"NA\")), \"\")","v":"A"},4,12]
[{"$f":"Input!H$269","v":"Sovereign / Public Finance"},{"$f":"Input!F276","v":0},{"$f":"Input!F$191","v":4},{"$f":"Input!B$196","v":"More than 20"},{"$f":"Input!E$269","v":3},{"$f":"IF(B461<>\"\",IF(C461=\"NA\",Lists!$D$9,IFERROR(HLOOKUP(C461,Input!$C$312:$L$335,H461,FALSE),\"NA\")), \"\")","v":"A"},5,12]
[{"$f":"Input!H$269","v":"Sovereign / Public Finance"},{"$f":"Input!G272","v":0},{"$f":"Input!G$191","v":5},{"$f":"Input!B$192","v":"Upto 1"},{"$f":"Input!E$269","v":3},{"$f":"IF(B462<>\"\",IF(C462=\"NA\",Lists!$D$9,IFERROR(HLOOKUP(C462,Input!$C$312:$L$335,H462,FALSE),\"NA\")), \"\")","v":"BBB"},1,12]
[{"$f":"Input!H$269","v":"Sovereign / Public Finance"},{"$f":"Input!G273","v":0},{"$f":"Input!G$191","v":5},{"$f":"Input!B$193","v":"1.01 to 5"},{"$f":"Input!E$269","v":3},{"$f":"IF(B463<>\"\",IF(C463=\"NA\",Lists!$D$9,IFERROR(HLOOKUP(C463,Input!$C$312:$L$335,H463,FALSE),\"NA\")), \"\")","v":"BBB"},2,12]
[{"$f":"Input!H$269","v":"Sovereign / Public Finance"},{"$f":"Input!G274","v":0},{"$f":"Input!G$191","v":5},{"$f":"Input!B$194","v":"5.01 to 10"},{"$f":"Input!E$269","v":3},{"$f":"IF(B464<>\"\",IF(C464=\"NA\",Lists!$D$9,IFERROR(HLOOKUP(C464,Input!$C$312:$L$335,H464,FALSE),\"NA\")), \"\")","v":"BBB"},3,12]
[{"$f":"Input!H$269","v":"Sovereign / Public Finance"},{"$f":"Input!G275","v":0},{"$f":"Input!G$191","v":5},{"$f":"Input!B$195","v":"10.01 to 20"},{"$f":"Input!E$269","v":3},{"$f":"IF(B465<>\"\",IF(C465=\"NA\",Lists!$D$9,IFERROR(HLOOKUP(C465,Input!$C$312:$L$335,H465,FALSE),\"NA\")), \"\")","v":"BBB"},4,12]
[{"$f":"Input!H$269","v":"Sovereign / Public Finance"},{"$f":"Input!G276","v":0},{"$f":"Input!G$191","v":5},{"$f":"Input!B$196","v":"More than 20"},{"$f":"Input!E$269","v":3},{"$f":"IF(B466<>\"\",IF(C466=\"NA\",Lists!$D$9,IFERROR(HLOOKUP(C466,Input!$C$312:$L$335,H466,FALSE),\"NA\")), \"\")","v":"BBB"},5,12]
[{"$f":"Input!H$269","v":"Sovereign / Public Finance"},{"$f":"Input!H272","v":0},{"$f":"Input!H$191","v":6},{"$f":"Input!B$192","v":"Upto 1"},{"$f":"Input!E$269","v":3},{"$f":"IF(B467<>\"\",IF(C467=\"NA\",Lists!$D$9,IFERROR(HLOOKUP(C467,Input!$C$312:$L$335,H467,FALSE),\"NA\")), \"\")","v":"BBB"},1,12]
[{"$f":"Input!H$269","v":"Sovereign / Public Finance"},{"$f":"Input!H273","v":0},{"$f":"Input!H$191","v":6},{"$f":"Input!B$193","v":"1.01 to 5"},{"$f":"Input!E$269","v":3},{"$f":"IF(B468<>\"\",IF(C468=\"NA\",Lists!$D$9,IFERROR(HLOOKUP(C468,Input!$C$312:$L$335,H468,FALSE),\"NA\")), \"\")","v":"BBB"},2,12]
[{"$f":"Input!H$269","v":"Sovereign / Public Finance"},{"$f":"Input!H274","v":0},{"$f":"Input!H$191","v":6},{"$f":"Input!B$194","v":"5.01 to 10"},{"$f":"Input!E$269","v":3},{"$f":"IF(B469<>\"\",IF(C469=\"NA\",Lists!$D$9,IFERROR(HLOOKUP(C469,Input!$C$312:$L$335,H469,FALSE),\"NA\")), \"\")","v":"BBB"},3,12]
[{"$f":"Input!H$269","v":"Sovereign / Public Finance"},{"$f":"Input!H275","v":0},{"$f":"Input!H$191","v":6},{"$f":"Input!B$195","v":"10.01 to 20"},{"$f":"Input!E$269","v":3},{"$f":"IF(B470<>\"\",IF(C470=\"NA\",Lists!$D$9,IFERROR(HLOOKUP(C470,Input!$C$312:$L$335,H470,FALSE),\"NA\")), \"\")","v":"BBB"},4,12]
[{"$f":"Input!H$269","v":"Sovereign / Public Finance"},{"$f":"Input!H276","v":0},{"$f":"Input!H$191","v":6},{"$f":"Input!B$196","v":"More than 20"},{"$f":"Input!E$269","v":3},{"$f":"IF(B471<>\"\",IF(C471=\"NA\",Lists!$D$9,IFERROR(HLOOKUP(C471,Input!$C$312:$L$335,H471,FALSE),\"NA\")), \"\")","v":"BBB"},5,12]
[{"$f":"Input!H$269","v":"Sovereign / Public Finance"},{"$f":"Input!I272","v":0},{"$f":"Input!I$191","v":7},{"$f":"Input!B$192","v":"Upto 1"},{"$f":"Input!E$269","v":3},{"$f":"IF(B472<>\"\",IF(C472=\"NA\",Lists!$D$9,IFERROR(HLOOKUP(C472,Input!$C$312:$L$335,H472,FALSE),\"NA\")), \"\")","v":"BB"},1,12]
[{"$f":"Input!H$269","v":"Sovereign / Public Finance"},{"$f":"Input!I273","v":0},{"$f":"Input!I$191","v":7},{"$f":"Input!B$193","v":"1.01 to 5"},{"$f":"Input!E$269","v":3},{"$f":"IF(B473<>\"\",IF(C473=\"NA\",Lists!$D$9,IFERROR(HLOOKUP(C473,Input!$C$312:$L$335,H473,FALSE),\"NA\")), \"\")","v":"BB"},2,12]
[{"$f":"Input!H$269","v":"Sovereign / Public Finance"},{"$f":"Input!I274","v":0},{"$f":"Input!I$191","v":7},{"$f":"Input!B$194","v":"5.01 to 10"},{"$f":"Input!E$269","v":3},{"$f":"IF(B474<>\"\",IF(C474=\"NA\",Lists!$D$9,IFERROR(HLOOKUP(C474,Input!$C$312:$L$335,H474,FALSE),\"NA\")), \"\")","v":"BB"},3,12]
[{"$f":"Input!H$269","v":"Sovereign / Public Finance"},{"$f":"Input!I275","v":0},{"$f":"Input!I$191","v":7},{"$f":"Input!B$195","v":"10.01 to 20"},{"$f":"Input!E$269","v":3},{"$f":"IF(B475<>\"\",IF(C475=\"NA\",Lists!$D$9,IFERROR(HLOOKUP(C475,Input!$C$312:$L$335,H475,FALSE),\"NA\")), \"\")","v":"BB"},4,12]
[{"$f":"Input!H$269","v":"Sovereign / Public Finance"},{"$f":"Input!I276","v":0},{"$f":"Input!I$191","v":7},{"$f":"Input!B$196","v":"More than 20"},{"$f":"Input!E$269","v":3},{"$f":"IF(B476<>\"\",IF(C476=\"NA\",Lists!$D$9,IFERROR(HLOOKUP(C476,Input!$C$312:$L$335,H476,FALSE),\"NA\")), \"\")","v":"BB"},5,12]
[{"$f":"Input!H$269","v":"Sovereign / Public Finance"},{"$f":"Input!J272","v":0},{"$f":"Input!J$191","v":8},{"$f":"Input!B$192","v":"Upto 1"},{"$f":"Input!E$269","v":3},{"$f":"IF(B477<>\"\",IF(C477=\"NA\",Lists!$D$9,IFERROR(HLOOKUP(C477,Input!$C$312:$L$335,H477,FALSE),\"NA\")), \"\")","v":"B"},1,12]
[{"$f":"Input!H$269","v":"Sovereign / Public Finance"},{"$f":"Input!J273","v":0},{"$f":"Input!J$191","v":8},{"$f":"Input!B$193","v":"1.01 to 5"},{"$f":"Input!E$269","v":3},{"$f":"IF(B478<>\"\",IF(C478=\"NA\",Lists!$D$9,IFERROR(HLOOKUP(C478,Input!$C$312:$L$335,H478,FALSE),\"NA\")), \"\")","v":"B"},2,12]
[{"$f":"Input!H$269","v":"Sovereign / Public Finance"},{"$f":"Input!J274","v":0},{"$f":"Input!J$191","v":8},{"$f":"Input!B$194","v":"5.01 to 10"},{"$f":"Input!E$269","v":3},{"$f":"IF(B479<>\"\",IF(C479=\"NA\",Lists!$D$9,IFERROR(HLOOKUP(C479,Input!$C$312:$L$335,H479,FALSE),\"NA\")), \"\")","v":"B"},3,12]
[{"$f":"Input!H$269","v":"Sovereign / Public Finance"},{"$f":"Input!J275","v":0},{"$f":"Input!J$191","v":8},{"$f":"Input!B$195","v":"10.01 to 20"},{"$f":"Input!E$269","v":3},{"$f":"IF(B480<>\"\",IF(C480=\"NA\",Lists!$D$9,IFERROR(HLOOKUP(C480,Input!$C$312:$L$335,H480,FALSE),\"NA\")), \"\")","v":"B"},4,12]
[{"$f":"Input!H$269","v":"Sovereign / Public Finance"},{"$f":"Input!J276","v":0},{"$f":"Input!J$191","v":8},{"$f":"Input!B$196","v":"More than 20"},{"$f":"Input!E$269","v":3},{"$f":"IF(B481<>\"\",IF(C481=\"NA\",Lists!$D$9,IFERROR(HLOOKUP(C481,Input!$C$312:$L$335,H481,FALSE),\"NA\")), \"\")","v":"B"},5,12]
[{"$f":"Input!H$269","v":"Sovereign / Public Finance"},{"$f":"Input!K272","v":0},{"$f":"Input!K$191","v":9},{"$f":"Input!B$192","v":"Upto 1"},{"$f":"Input!E$269","v":3},{"$f":"IF(B482<>\"\",IF(C482=\"NA\",Lists!$D$9,IFERROR(HLOOKUP(C482,Input!$C$312:$L$335,H482,FALSE),\"NA\")), \"\")","v":"B"},1,12]
[{"$f":"Input!H$269","v":"Sovereign / Public Finance"},{"$f":"Input!K273","v":0},{"$f":"Input!K$191","v":9},{"$f":"Input!B$193","v":"1.01 to 5"},{"$f":"Input!E$269","v":3},{"$f":"IF(B483<>\"\",IF(C483=\"NA\",Lists!$D$9,IFERROR(HLOOKUP(C483,Input!$C$312:$L$335,H483,FALSE),\"NA\")), \"\")","v":"B"},2,12]
[{"$f":"Input!H$269","v":"Sovereign / Public Finance"},{"$f":"Input!K274","v":0},{"$f":"Input!K$191","v":9},{"$f":"Input!B$194","v":"5.01 to 10"},{"$f":"Input!E$269","v":3},{"$f":"IF(B484<>\"\",IF(C484=\"NA\",Lists!$D$9,IFERROR(HLOOKUP(C484,Input!$C$312:$L$335,H484,FALSE),\"NA\")), \"\")","v":"B"},3,12]
[{"$f":"Input!H$269","v":"Sovereign / Public Finance"},{"$f":"Input!K275","v":0},{"$f":"Input!K$191","v":9},{"$f":"Input!B$195","v":"10.01 to 20"},{"$f":"Input!E$269","v":3},{"$f":"IF(B485<>\"\",IF(C485=\"NA\",Lists!$D$9,IFERROR(HLOOKUP(C485,Input!$C$312:$L$335,H485,FALSE),\"NA\")), \"\")","v":"B"},4,12]
[{"$f":"Input!H$269","v":"Sovereign / Public Finance"},{"$f":"Input!K276","v":0},{"$f":"Input!K$191","v":9},{"$f":"Input!B$196","v":"More than 20"},{"$f":"Input!E$269","v":3},{"$f":"IF(B486<>\"\",IF(C486=\"NA\",Lists!$D$9,IFERROR(HLOOKUP(C486,Input!$C$312:$L$335,H486,FALSE),\"NA\")), \"\")","v":"B"},5,12]
[{"$f":"Input!H$269","v":"Sovereign / Public Finance"},{"$f":"Input!L272","v":0},{"$f":"Input!L$191","v":10},{"$f":"Input!B$192","v":"Upto 1"},{"$f":"Input!E$269","v":3},{"$f":"IF(B487<>\"\",IF(C487=\"NA\",Lists!$D$9,IFERROR(HLOOKUP(C487,Input!$C$312:$L$335,H487,FALSE),\"NA\")), \"\")","v":"CCC-C"},1,12]
[{"$f":"Input!H$269","v":"Sovereign / Public Finance"},{"$f":"Input!L273","v":0},{"$f":"Input!L$191","v":10},{"$f":"Input!B$193","v":"1.01 to 5"},{"$f":"Input!E$269","v":3},{"$f":"IF(B488<>\"\",IF(C488=\"NA\",Lists!$D$9,IFERROR(HLOOKUP(C488,Input!$C$312:$L$335,H488,FALSE),\"NA\")), \"\")","v":"CCC-C"},2,12]
[{"$f":"Input!H$269","v":"Sovereign / Public Finance"},{"$f":"Input!L274","v":0},{"$f":"Input!L$191","v":10},{"$f":"Input!B$194","v":"5.01 to 10"},{"$f":"Input!E$269","v":3},{"$f":"IF(B489<>\"\",IF(C489=\"NA\",Lists!$D$9,IFERROR(HLOOKUP(C489,Input!$C$312:$L$335,H489,FALSE),\"NA\")), \"\")","v":"CCC-C"},3,12]
[{"$f":"Input!H$269","v":"Sovereign / Public Finance"},{"$f":"Input!L275","v":0},{"$f":"Input!L$191","v":10},{"$f":"Input!B$195","v":"10.01 to 20"},{"$f":"Input!E$269","v":3},{"$f":"IF(B490<>\"\",IF(C490=\"NA\",Lists!$D$9,IFERROR(HLOOKUP(C490,Input!$C$312:$L$335,H490,FALSE),\"NA\")), \"\")","v":"CCC-C"},4,12]
[{"$f":"Input!H$269","v":"Sovereign / Public Finance"},{"$f":"Input!L276","v":0},{"$f":"Input!L$191","v":10},{"$f":"Input!B$196","v":"More than 20"},{"$f":"Input!E$269","v":3},{"$f":"IF(B491<>\"\",IF(C491=\"NA\",Lists!$D$9,IFERROR(HLOOKUP(C491,Input!$C$312:$L$335,H491,FALSE),\"NA\")), \"\")","v":"CCC-C"},5,12]
[{"$f":"Input!H$269","v":"Sovereign / Public Finance"},{"$f":"Input!M272","v":0},{"$f":"Input!M$191","v":"NA"},{"$f":"Input!B$192","v":"Upto 1"},{"$f":"Input!E$269","v":3},{"$f":"IF(B492<>\"\",IF(C492=\"NA\",Lists!$D$9,IFERROR(HLOOKUP(C492,Input!$C$312:$L$335,H492,FALSE),\"NA\")), \"\")","v":"CCC-C"},1,12]
[{"$f":"Input!H$269","v":"Sovereign / Public Finance"},{"$f":"Input!M273","v":0},{"$f":"Input!M$191","v":"NA"},{"$f":"Input!B$193","v":"1.01 to 5"},{"$f":"Input!E$269","v":3},{"$f":"IF(B493<>\"\",IF(C493=\"NA\",Lists!$D$9,IFERROR(HLOOKUP(C493,Input!$C$312:$L$335,H493,FALSE),\"NA\")), \"\")","v":"CCC-C"},2,12]
[{"$f":"Input!H$269","v":"Sovereign / Public Finance"},{"$f":"Input!M274","v":0},{"$f":"Input!M$191","v":"NA"},{"$f":"Input!B$194","v":"5.01 to 10"},{"$f":"Input!E$269","v":3},{"$f":"IF(B494<>\"\",IF(C494=\"NA\",Lists!$D$9,IFERROR(HLOOKUP(C494,Input!$C$312:$L$335,H494,FALSE),\"NA\")), \"\")","v":"CCC-C"},3,12]
[{"$f":"Input!H$269","v":"Sovereign / Public Finance"},{"$f":"Input!M275","v":0},{"$f":"Input!M$191","v":"NA"},{"$f":"Input!B$195","v":"10.01 to 20"},{"$f":"Input!E$269","v":3},{"$f":"IF(B495<>\"\",IF(C495=\"NA\",Lists!$D$9,IFERROR(HLOOKUP(C495,Input!$C$312:$L$335,H495,FALSE),\"NA\")), \"\")","v":"CCC-C"},4,12]
[{"$f":"Input!H$269","v":"Sovereign / Public Finance"},{"$f":"Input!M276","v":0},{"$f":"Input!M$191","v":"NA"},{"$f":"Input!B$196","v":"More than 20"},{"$f":"Input!E$269","v":3},{"$f":"IF(B496<>\"\",IF(C496=\"NA\",Lists!$D$9,IFERROR(HLOOKUP(C496,Input!$C$312:$L$335,H496,FALSE),\"NA\")), \"\")","v":"CCC-C"},5,12]
[{"$f":"Input!H$279","v":"Structured Finance - Senior"},{"$f":"Input!C282","v":0},{"$f":"Input!C$191","v":1},{"$f":"Input!B$192","v":"Upto 1"},{"$f":"Input!E$279","v":4},{"$f":"IF(B497<>\"\",IF(C497=\"NA\",Lists!$D$9,IFERROR(HLOOKUP(C497,Input!$C$312:$L$335,H497,FALSE),\"NA\")), \"\")","v":"BBB"},1,16]
[{"$f":"Input!H$279","v":"Structured Finance - Senior"},{"$f":"Input!C283","v":0},{"$f":"Input!C$191","v":1},{"$f":"Input!B$193","v":"1.01 to 5"},{"$f":"Input!E$279","v":4},{"$f":"IF(B498<>\"\",IF(C498=\"NA\",Lists!$D$9,IFERROR(HLOOKUP(C498,Input!$C$312:$L$335,H498,FALSE),\"NA\")), \"\")","v":"BBB"},2,16]
[{"$f":"Input!H$279","v":"Structured Finance - Senior"},{"$f":"Input!C284","v":0},{"$f":"Input!C$191","v":1},{"$f":"Input!B$194","v":"5.01 to 10"},{"$f":"Input!E$279","v":4},{"$f":"IF(B499<>\"\",IF(C499=\"NA\",Lists!$D$9,IFERROR(HLOOKUP(C499,Input!$C$312:$L$335,H499,FALSE),\"NA\")), \"\")","v":"BBB"},3,16]
[{"$f":"Input!H$279","v":"Structured Finance - Senior"},{"$f":"Input!C285","v":0},{"$f":"Input!C$191","v":1},{"$f":"Input!B$195","v":"10.01 to 20"},{"$f":"Input!E$279","v":4},{"$f":"IF(B500<>\"\",IF(C500=\"NA\",Lists!$D$9,IFERROR(HLOOKUP(C500,Input!$C$312:$L$335,H500,FALSE),\"NA\")), \"\")","v":"BBB"},4,16]
[{"$f":"Input!H$279","v":"Structured Finance - Senior"},{"$f":"Input!C286","v":0},{"$f":"Input!C$191","v":1},{"$f":"Input!B$196","v":"More than 20"},{"$f":"Input!E$279","v":4},{"$f":"IF(B501<>\"\",IF(C501=\"NA\",Lists!$D$9,IFERROR(HLOOKUP(C501,Input!$C$312:$L$335,H501,FALSE),\"NA\")), \"\")","v":"BBB"},5,16]
[{"$f":"Input!H$279","v":"Structured Finance - Senior"},{"$f":"Input!D282","v":0},{"$f":"Input!D$191","v":2},{"$f":"Input!B$192","v":"Upto 1"},{"$f":"Input!E$279","v":4},{"$f":"IF(B502<>\"\",IF(C502=\"NA\",Lists!$D$9,IFERROR(HLOOKUP(C502,Input!$C$312:$L$335,H502,FALSE),\"NA\")), \"\")","v":"BBB"},1,16]
[{"$f":"Input!H$279","v":"Structured Finance - Senior"},{"$f":"Input!D283","v":0},{"$f":"Input!D$191","v":2},{"$f":"Input!B$193","v":"1.01 to 5"},{"$f":"Input!E$279","v":4},{"$f":"IF(B503<>\"\",IF(C503=\"NA\",Lists!$D$9,IFERROR(HLOOKUP(C503,Input!$C$312:$L$335,H503,FALSE),\"NA\")), \"\")","v":"BBB"},2,16]
[{"$f":"Input!H$279","v":"Structured Finance - Senior"},{"$f":"Input!D284","v":0},{"$f":"Input!D$191","v":2},{"$f":"Input!B$194","v":"5.01 to 10"},{"$f":"Input!E$279","v":4},{"$f":"IF(B504<>\"\",IF(C504=\"NA\",Lists!$D$9,IFERROR(HLOOKUP(C504,Input!$C$312:$L$335,H504,FALSE),\"NA\")), \"\")","v":"BBB"},3,16]
[{"$f":"Input!H$279","v":"Structured Finance - Senior"},{"$f":"Input!D285","v":0},{"$f":"Input!D$191","v":2},{"$f":"Input!B$195","v":"10.01 to 20"},{"$f":"Input!E$279","v":4},{"$f":"IF(B505<>\"\",IF(C505=\"NA\",Lists!$D$9,IFERROR(HLOOKUP(C505,Input!$C$312:$L$335,H505,FALSE),\"NA\")), \"\")","v":"BBB"},4,16]
[{"$f":"Input!H$279","v":"Structured Finance - Senior"},{"$f":"Input!D286","v":0},{"$f":"Input!D$191","v":2},{"$f":"Input!B$196","v":"More than 20"},{"$f":"Input!E$279","v":4},{"$f":"IF(B506<>\"\",IF(C506=\"NA\",Lists!$D$9,IFERROR(HLOOKUP(C506,Input!$C$312:$L$335,H506,FALSE),\"NA\")), \"\")","v":"BBB"},5,16]
[{"$f":"Input!H$279","v":"Structured Finance - Senior"},{"$f":"Input!E282","v":0},{"$f":"Input!E$191","v":3},{"$f":"Input!B$192","v":"Upto 1"},{"$f":"Input!E$279","v":4},{"$f":"IF(B507<>\"\",IF(C507=\"NA\",Lists!$D$9,IFERROR(HLOOKUP(C507,Input!$C$312:$L$335,H507,FALSE),\"NA\")), \"\")","v":"BBB"},1,16]
[{"$f":"Input!H$279","v":"Structured Finance - Senior"},{"$f":"Input!E283","v":0},{"$f":"Input!E$191","v":3},{"$f":"Input!B$193","v":"1.01 to 5"},{"$f":"Input!E$279","v":4},{"$f":"IF(B508<>\"\",IF(C508=\"NA\",Lists!$D$9,IFERROR(HLOOKUP(C508,Input!$C$312:$L$335,H508,FALSE),\"NA\")), \"\")","v":"BBB"},2,16]
[{"$f":"Input!H$279","v":"Structured Finance - Senior"},{"$f":"Input!E284","v":0},{"$f":"Input!E$191","v":3},{"$f":"Input!B$194","v":"5.01 to 10"},{"$f":"Input!E$279","v":4},{"$f":"IF(B509<>\"\",IF(C509=\"NA\",Lists!$D$9,IFERROR(HLOOKUP(C509,Input!$C$312:$L$335,H509,FALSE),\"NA\")), \"\")","v":"BBB"},3,16]
[{"$f":"Input!H$279","v":"Structured Finance - Senior"},{"$f":"Input!E285","v":0},{"$f":"Input!E$191","v":3},{"$f":"Input!B$195","v":"10.01 to 20"},{"$f":"Input!E$279","v":4},{"$f":"IF(B510<>\"\",IF(C510=\"NA\",Lists!$D$9,IFERROR(HLOOKUP(C510,Input!$C$312:$L$335,H510,FALSE),\"NA\")), \"\")","v":"BBB"},4,16]
[{"$f":"Input!H$279","v":"Structured Finance - Senior"},{"$f":"Input!E286","v":0},{"$f":"Input!E$191","v":3},{"$f":"Input!B$196","v":"More than 20"},{"$f":"Input!E$279","v":4},{"$f":"IF(B511<>\"\",IF(C511=\"NA\",Lists!$D$9,IFERROR(HLOOKUP(C511,Input!$C$312:$L$335,H511,FALSE),\"NA\")), \"\")","v":"BBB"},5,16]
[{"$f":"Input!H$279","v":"Structured Finance - Senior"},{"$f":"Input!F282","v":0},{"$f":"Input!F$191","v":4},{"$f":"Input!B$192","v":"Upto 1"},{"$f":"Input!E$279","v":4},{"$f":"IF(B512<>\"\",IF(C512=\"NA\",Lists!$D$9,IFERROR(HLOOKUP(C512,Input!$C$312:$L$335,H512,FALSE),\"NA\")), \"\")","v":"BBB"},1,16]
[{"$f":"Input!H$279","v":"Structured Finance - Senior"},{"$f":"Input!F283","v":0},{"$f":"Input!F$191","v":4},{"$f":"Input!B$193","v":"1.01 to 5"},{"$f":"Input!E$279","v":4},{"$f":"IF(B513<>\"\",IF(C513=\"NA\",Lists!$D$9,IFERROR(HLOOKUP(C513,Input!$C$312:$L$335,H513,FALSE),\"NA\")), \"\")","v":"BBB"},2,16]
[{"$f":"Input!H$279","v":"Structured Finance - Senior"},{"$f":"Input!F284","v":0},{"$f":"Input!F$191","v":4},{"$f":"Input!B$194","v":"5.01 to 10"},{"$f":"Input!E$279","v":4},{"$f":"IF(B514<>\"\",IF(C514=\"NA\",Lists!$D$9,IFERROR(HLOOKUP(C514,Input!$C$312:$L$335,H514,FALSE),\"NA\")), \"\")","v":"BBB"},{"$f":"IFERROR(MATCH(D514,lov_term_buckets,0),\"\")","v":3},16]
[{"$f":"Input!H$279","v":"Structured Finance - Senior"},{"$f":"Input!F285","v":0},{"$f":"Input!F$191","v":4},{"$f":"Input!B$195","v":"10.01 to 20"},{"$f":"Input!E$279","v":4},{"$f":"IF(B515<>\"\",IF(C515=\"NA\",Lists!$D$9,IFERROR(HLOOKUP(C515,Input!$C$312:$L$335,H515,FALSE),\"NA\")), \"\")","v":"BBB"},4,{"$f":"INDEX($L$2:$L$8,MATCH(A515,$K$2:$K$8,0))","v":16}]
[{"$f":"Input!H$279","v":"Structured Finance - Senior"},{"$f":"Input!F286","v":0},{"$f":"Input!F$191","v":4},{"$f":"Input!B$196","v":"More than 20"},{"$f":"Input!E$279","v":4},{"$f":"IF(B516<>\"\",IF(C516=\"NA\",Lists!$D$9,IFERROR(HLOOKUP(C516,Input!$C$312:$L$335,H516,FALSE),\"NA\")), \"\")","v":"BBB"},5,16]
[{"$f":"Input!H$279","v":"Structured Finance - Senior"},{"$f":"Input!G282","v":0},{"$f":"Input!G$191","v":5},{"$f":"Input!B$192","v":"Upto 1"},{"$f":"Input!E$279","v":4},{"$f":"IF(B517<>\"\",IF(C517=\"NA\",Lists!$D$9,IFERROR(HLOOKUP(C517,Input!$C$312:$L$335,H517,FALSE),\"NA\")), \"\")","v":"BBB"},1,16]
[{"$f":"Input!H$279","v":"Structured Finance - Senior"},{"$f":"Input!G283","v":0},{"$f":"Input!G$191","v":5},{"$f":"Input!B$193","v":"1.01 to 5"},{"$f":"Input!E$279","v":4},{"$f":"IF(B518<>\"\",IF(C518=\"NA\",Lists!$D$9,IFERROR(HLOOKUP(C518,Input!$C$312:$L$335,H518,FALSE),\"NA\")), \"\")","v":"BBB"},2,16]
[{"$f":"Input!H$279","v":"Structured Finance - Senior"},{"$f":"Input!G284","v":0},{"$f":"Input!G$191","v":5},{"$f":"Input!B$194","v":"5.01 to 10"},{"$f":"Input!E$279","v":4},{"$f":"IF(B519<>\"\",IF(C519=\"NA\",Lists!$D$9,IFERROR(HLOOKUP(C519,Input!$C$312:$L$335,H519,FALSE),\"NA\")), \"\")","v":"BBB"},3,16]
[{"$f":"Input!H$279","v":"Structured Finance - Senior"},{"$f":"Input!G285","v":0},{"$f":"Input!G$191","v":5},{"$f":"Input!B$195","v":"10.01 to 20"},{"$f":"Input!E$279","v":4},{"$f":"IF(B520<>\"\",IF(C520=\"NA\",Lists!$D$9,IFERROR(HLOOKUP(C520,Input!$C$312:$L$335,H520,FALSE),\"NA\")), \"\")","v":"BBB"},4,16]
[{"$f":"Input!H$279","v":"Structured Finance - Senior"},{"$f":"Input!G286","v":0},{"$f":"Input!G$191","v":5},{"$f":"Input!B$196","v":"More than 20"},{"$f":"Input!E$279","v":4},{"$f":"IF(B521<>\"\",IF(C521=\"NA\",Lists!$D$9,IFERROR(HLOOKUP(C521,Input!$C$312:$L$335,H521,FALSE),\"NA\")), \"\")","v":"BBB"},5,16]
[{"$f":"Input!H$279","v":"Structured Finance - Senior"},{"$f":"Input!H282","v":0},{"$f":"Input!H$191","v":6},{"$f":"Input!B$192","v":"Upto 1"},{"$f":"Input!E$279","v":4},{"$f":"IF(B522<>\"\",IF(C522=\"NA\",Lists!$D$9,IFERROR(HLOOKUP(C522,Input!$C$312:$L$335,H522,FALSE),\"NA\")), \"\")","v":"BBB"},1,16]
[{"$f":"Input!H$279","v":"Structured Finance - Senior"},{"$f":"Input!H283","v":0},{"$f":"Input!H$191","v":6},{"$f":"Input!B$193","v":"1.01 to 5"},{"$f":"Input!E$279","v":4},{"$f":"IF(B523<>\"\",IF(C523=\"NA\",Lists!$D$9,IFERROR(HLOOKUP(C523,Input!$C$312:$L$335,H523,FALSE),\"NA\")), \"\")","v":"BBB"},2,16]
[{"$f":"Input!H$279","v":"Structured Finance - Senior"},{"$f":"Input!H284","v":0},{"$f":"Input!H$191","v":6},{"$f":"Input!B$194","v":"5.01 to 10"},{"$f":"Input!E$279","v":4},{"$f":"IF(B524<>\"\",IF(C524=\"NA\",Lists!$D$9,IFERROR(HLOOKUP(C524,Input!$C$312:$L$335,H524,FALSE),\"NA\")), \"\")","v":"BBB"},3,16]
[{"$f":"Input!H$279","v":"Structured Finance - Senior"},{"$f":"Input!H285","v":0},{"$f":"Input!H$191","v":6},{"$f":"Input!B$195","v":"10.01 to 20"},{"$f":"Input!E$279","v":4},{"$f":"IF(B525<>\"\",IF(C525=\"NA\",Lists!$D$9,IFERROR(HLOOKUP(C525,Input!$C$312:$L$335,H525,FALSE),\"NA\")), \"\")","v":"BBB"},4,16]
[{"$f":"Input!H$279","v":"Structured Finance - Senior"},{"$f":"Input!H286","v":0},{"$f":"Input!H$191","v":6},{"$f":"Input!B$196","v":"More than 20"},{"$f":"Input!E$279","v":4},{"$f":"IF(B526<>\"\",IF(C526=\"NA\",Lists!$D$9,IFERROR(HLOOKUP(C526,Input!$C$312:$L$335,H526,FALSE),\"NA\")), \"\")","v":"BBB"},5,16]
[{"$f":"Input!H$279","v":"Structured Finance - Senior"},{"$f":"Input!I282","v":0},{"$f":"Input!I$191","v":7},{"$f":"Input!B$192","v":"Upto 1"},{"$f":"Input!E$279","v":4},{"$f":"IF(B527<>\"\",IF(C527=\"NA\",Lists!$D$9,IFERROR(HLOOKUP(C527,Input!$C$312:$L$335,H527,FALSE),\"NA\")), \"\")","v":"BB"},1,16]
[{"$f":"Input!H$279","v":"Structured Finance - Senior"},{"$f":"Input!I283","v":0},{"$f":"Input!I$191","v":7},{"$f":"Input!B$193","v":"1.01 to 5"},{"$f":"Input!E$279","v":4},{"$f":"IF(B528<>\"\",IF(C528=\"NA\",Lists!$D$9,IFERROR(HLOOKUP(C528,Input!$C$312:$L$335,H528,FALSE),\"NA\")), \"\")","v":"BB"},2,16]
[{"$f":"Input!H$279","v":"Structured Finance - Senior"},{"$f":"Input!I284","v":0},{"$f":"Input!I$191","v":7},{"$f":"Input!B$194","v":"5.01 to 10"},{"$f":"Input!E$279","v":4},{"$f":"IF(B529<>\"\",IF(C529=\"NA\",Lists!$D$9,IFERROR(HLOOKUP(C529,Input!$C$312:$L$335,H529,FALSE),\"NA\")), \"\")","v":"BB"},3,16]
[{"$f":"Input!H$279","v":"Structured Finance - Senior"},{"$f":"Input!I285","v":0},{"$f":"Input!I$191","v":7},{"$f":"Input!B$195","v":"10.01 to 20"},{"$f":"Input!E$279","v":4},{"$f":"IF(B530<>\"\",IF(C530=\"NA\",Lists!$D$9,IFERROR(HLOOKUP(C530,Input!$C$312:$L$335,H530,FALSE),\"NA\")), \"\")","v":"BB"},4,16]
[{"$f":"Input!H$279","v":"Structured Finance - Senior"},{"$f":"Input!I286","v":0},{"$f":"Input!I$191","v":7},{"$f":"Input!B$196","v":"More than 20"},{"$f":"Input!E$279","v":4},{"$f":"IF(B531<>\"\",IF(C531=\"NA\",Lists!$D$9,IFERROR(HLOOKUP(C531,Input!$C$312:$L$335,H531,FALSE),\"NA\")), \"\")","v":"BB"},5,16]
[{"$f":"Input!H$279","v":"Structured Finance - Senior"},{"$f":"Input!J282","v":0},{"$f":"Input!J$191","v":8},{"$f":"Input!B$192","v":"Upto 1"},{"$f":"Input!E$279","v":4},{"$f":"IF(B532<>\"\",IF(C532=\"NA\",Lists!$D$9,IFERROR(HLOOKUP(C532,Input!$C$312:$L$335,H532,FALSE),\"NA\")), \"\")","v":"B"},1,16]
[{"$f":"Input!H$279","v":"Structured Finance - Senior"},{"$f":"Input!J283","v":0},{"$f":"Input!J$191","v":8},{"$f":"Input!B$193","v":"1.01 to 5"},{"$f":"Input!E$279","v":4},{"$f":"IF(B533<>\"\",IF(C533=\"NA\",Lists!$D$9,IFERROR(HLOOKUP(C533,Input!$C$312:$L$335,H533,FALSE),\"NA\")), \"\")","v":"B"},2,16]
[{"$f":"Input!H$279","v":"Structured Finance - Senior"},{"$f":"Input!J284","v":0},{"$f":"Input!J$191","v":8},{"$f":"Input!B$194","v":"5.01 to 10"},{"$f":"Input!E$279","v":4},{"$f":"IF(B534<>\"\",IF(C534=\"NA\",Lists!$D$9,IFERROR(HLOOKUP(C534,Input!$C$312:$L$335,H534,FALSE),\"NA\")), \"\")","v":"B"},3,16]
[{"$f":"Input!H$279","v":"Structured Finance - Senior"},{"$f":"Input!J285","v":0},{"$f":"Input!J$191","v":8},{"$f":"Input!B$195","v":"10.01 to 20"},{"$f":"Input!E$279","v":4},{"$f":"IF(B535<>\"\",IF(C535=\"NA\",Lists!$D$9,IFERROR(HLOOKUP(C535,Input!$C$312:$L$335,H535,FALSE),\"NA\")), \"\")","v":"B"},4,16]
[{"$f":"Input!H$279","v":"Structured Finance - Senior"},{"$f":"Input!J286","v":0},{"$f":"Input!J$191","v":8},{"$f":"Input!B$196","v":"More than 20"},{"$f":"Input!E$279","v":4},{"$f":"IF(B536<>\"\",IF(C536=\"NA\",Lists!$D$9,IFERROR(HLOOKUP(C536,Input!$C$312:$L$335,H536,FALSE),\"NA\")), \"\")","v":"B"},5,16]
[{"$f":"Input!H$279","v":"Structured Finance - Senior"},{"$f":"Input!K282","v":0},{"$f":"Input!K$191","v":9},{"$f":"Input!B$192","v":"Upto 1"},{"$f":"Input!E$279","v":4},{"$f":"IF(B537<>\"\",IF(C537=\"NA\",Lists!$D$9,IFERROR(HLOOKUP(C537,Input!$C$312:$L$335,H537,FALSE),\"NA\")), \"\")","v":"B"},1,16]
[{"$f":"Input!H$279","v":"Structured Finance - Senior"},{"$f":"Input!K283","v":0},{"$f":"Input!K$191","v":9},{"$f":"Input!B$193","v":"1.01 to 5"},{"$f":"Input!E$279","v":4},{"$f":"IF(B538<>\"\",IF(C538=\"NA\",Lists!$D$9,IFERROR(HLOOKUP(C538,Input!$C$312:$L$335,H538,FALSE),\"NA\")), \"\")","v":"B"},2,16]
[{"$f":"Input!H$279","v":"Structured Finance - Senior"},{"$f":"Input!K284","v":0},{"$f":"Input!K$191","v":9},{"$f":"Input!B$194","v":"5.01 to 10"},{"$f":"Input!E$279","v":4},{"$f":"IF(B539<>\"\",IF(C539=\"NA\",Lists!$D$9,IFERROR(HLOOKUP(C539,Input!$C$312:$L$335,H539,FALSE),\"NA\")), \"\")","v":"B"},3,16]
[{"$f":"Input!H$279","v":"Structured Finance - Senior"},{"$f":"Input!K285","v":0},{"$f":"Input!K$191","v":9},{"$f":"Input!B$195","v":"10.01 to 20"},{"$f":"Input!E$279","v":4},{"$f":"IF(B540<>\"\",IF(C540=\"NA\",Lists!$D$9,IFERROR(HLOOKUP(C540,Input!$C$312:$L$335,H540,FALSE),\"NA\")), \"\")","v":"B"},4,16]
[{"$f":"Input!H$279","v":"Structured Finance - Senior"},{"$f":"Input!K286","v":0},{"$f":"Input!K$191","v":9},{"$f":"Input!B$196","v":"More than 20"},{"$f":"Input!E$279","v":4},{"$f":"IF(B541<>\"\",IF(C541=\"NA\",Lists!$D$9,IFERROR(HLOOKUP(C541,Input!$C$312:$L$335,H541,FALSE),\"NA\")), \"\")","v":"B"},5,16]
[{"$f":"Input!H$279","v":"Structured Finance - Senior"},{"$f":"Input!L282","v":0},{"$f":"Input!L$191","v":10},{"$f":"Input!B$192","v":"Upto 1"},{"$f":"Input!E$279","v":4},{"$f":"IF(B542<>\"\",IF(C542=\"NA\",Lists!$D$9,IFERROR(HLOOKUP(C542,Input!$C$312:$L$335,H542,FALSE),\"NA\")), \"\")","v":"CCC-C"},1,16]
[{"$f":"Input!H$279","v":"Structured Finance - Senior"},{"$f":"Input!L283","v":0},{"$f":"Input!L$191","v":10},{"$f":"Input!B$193","v":"1.01 to 5"},{"$f":"Input!E$279","v":4},{"$f":"IF(B543<>\"\",IF(C543=\"NA\",Lists!$D$9,IFERROR(HLOOKUP(C543,Input!$C$312:$L$335,H543,FALSE),\"NA\")), \"\")","v":"CCC-C"},2,16]
[{"$f":"Input!H$279","v":"Structured Finance - Senior"},{"$f":"Input!L284","v":0},{"$f":"Input!L$191","v":10},{"$f":"Input!B$194","v":"5.01 to 10"},{"$f":"Input!E$279","v":4},{"$f":"IF(B544<>\"\",IF(C544=\"NA\",Lists!$D$9,IFERROR(HLOOKUP(C544,Input!$C$312:$L$335,H544,FALSE),\"NA\")), \"\")","v":"CCC-C"},3,16]
[{"$f":"Input!H$279","v":"Structured Finance - Senior"},{"$f":"Input!L285","v":0},{"$f":"Input!L$191","v":10},{"$f":"Input!B$195","v":"10.01 to 20"},{"$f":"Input!E$279","v":4},{"$f":"IF(B545<>\"\",IF(C545=\"NA\",Lists!$D$9,IFERROR(HLOOKUP(C545,Input!$C$312:$L$335,H545,FALSE),\"NA\")), \"\")","v":"CCC-C"},4,16]
[{"$f":"Input!H$279","v":"Structured Finance - Senior"},{"$f":"Input!L286","v":0},{"$f":"Input!L$191","v":10},{"$f":"Input!B$196","v":"More than 20"},{"$f":"Input!E$279","v":4},{"$f":"IF(B546<>\"\",IF(C546=\"NA\",Lists!$D$9,IFERROR(HLOOKUP(C546,Input!$C$312:$L$335,H546,FALSE),\"NA\")), \"\")","v":"CCC-C"},5,16]
[{"$f":"Input!H$279","v":"Structured Finance - Senior"},{"$f":"Input!M282","v":0},{"$f":"Input!M$191","v":"NA"},{"$f":"Input!B$192","v":"Upto 1"},{"$f":"Input!E$279","v":4},{"$f":"IF(B547<>\"\",IF(C547=\"NA\",Lists!$D$9,IFERROR(HLOOKUP(C547,Input!$C$312:$L$335,H547,FALSE),\"NA\")), \"\")","v":"CCC-C"},1,16]
[{"$f":"Input!H$279","v":"Structured Finance - Senior"},{"$f":"Input!M283","v":0},{"$f":"Input!M$191","v":"NA"},{"$f":"Input!B$193","v":"1.01 to 5"},{"$f":"Input!E$279","v":4},{"$f":"IF(B548<>\"\",IF(C548=\"NA\",Lists!$D$9,IFERROR(HLOOKUP(C548,Input!$C$312:$L$335,H548,FALSE),\"NA\")), \"\")","v":"CCC-C"},2,16]
[{"$f":"Input!H$279","v":"Structured Finance - Senior"},{"$f":"Input!M284","v":0},{"$f":"Input!M$191","v":"NA"},{"$f":"Input!B$194","v":"5.01 to 10"},{"$f":"Input!E$279","v":4},{"$f":"IF(B549<>\"\",IF(C549=\"NA\",Lists!$D$9,IFERROR(HLOOKUP(C549,Input!$C$312:$L$335,H549,FALSE),\"NA\")), \"\")","v":"CCC-C"},3,16]
[{"$f":"Input!H$279","v":"Structured Finance - Senior"},{"$f":"Input!M285","v":0},{"$f":"Input!M$191","v":"NA"},{"$f":"Input!B$195","v":"10.01 to 20"},{"$f":"Input!E$279","v":4},{"$f":"IF(B550<>\"\",IF(C550=\"NA\",Lists!$D$9,IFERROR(HLOOKUP(C550,Input!$C$312:$L$335,H550,FALSE),\"NA\")), \"\")","v":"CCC-C"},4,16]
[{"$f":"Input!H$279","v":"Structured Finance - Senior"},{"$f":"Input!M286","v":0},{"$f":"Input!M$191","v":"NA"},{"$f":"Input!B$196","v":"More than 20"},{"$f":"Input!E$279","v":4},{"$f":"IF(B551<>\"\",IF(C551=\"NA\",Lists!$D$9,IFERROR(HLOOKUP(C551,Input!$C$312:$L$335,H551,FALSE),\"NA\")), \"\")","v":"CCC-C"},5,16]
[{"$f":"Input!H$289","v":"Structured Finance - Mezz."},{"$f":"Input!C292","v":0},{"$f":"Input!C$191","v":1},{"$f":"Input!B$192","v":"Upto 1"},{"$f":"Input!E$289","v":4},{"$f":"IF(B552<>\"\",IF(C552=\"NA\",Lists!$D$9,IFERROR(HLOOKUP(C552,Input!$C$312:$L$335,H552,FALSE),\"NA\")), \"\")","v":"BB"},1,20]
[{"$f":"Input!H$289","v":"Structured Finance - Mezz."},{"$f":"Input!C293","v":0},{"$f":"Input!C$191","v":1},{"$f":"Input!B$193","v":"1.01 to 5"},{"$f":"Input!E$289","v":4},{"$f":"IF(B553<>\"\",IF(C553=\"NA\",Lists!$D$9,IFERROR(HLOOKUP(C553,Input!$C$312:$L$335,H553,FALSE),\"NA\")), \"\")","v":"BB"},2,20]
[{"$f":"Input!H$289","v":"Structured Finance - Mezz."},{"$f":"Input!C294","v":0},{"$f":"Input!C$191","v":1},{"$f":"Input!B$194","v":"5.01 to 10"},{"$f":"Input!E$289","v":4},{"$f":"IF(B554<>\"\",IF(C554=\"NA\",Lists!$D$9,IFERROR(HLOOKUP(C554,Input!$C$312:$L$335,H554,FALSE),\"NA\")), \"\")","v":"BB"},3,20]
[{"$f":"Input!H$289","v":"Structured Finance - Mezz."},{"$f":"Input!C295","v":0},{"$f":"Input!C$191","v":1},{"$f":"Input!B$195","v":"10.01 to 20"},{"$f":"Input!E$289","v":4},{"$f":"IF(B555<>\"\",IF(C555=\"NA\",Lists!$D$9,IFERROR(HLOOKUP(C555,Input!$C$312:$L$335,H555,FALSE),\"NA\")), \"\")","v":"BB"},4,20]
[{"$f":"Input!H$289","v":"Structured Finance - Mezz."},{"$f":"Input!C296","v":0},{"$f":"Input!C$191","v":1},{"$f":"Input!B$196","v":"More than 20"},{"$f":"Input!E$289","v":4},{"$f":"IF(B556<>\"\",IF(C556=\"NA\",Lists!$D$9,IFERROR(HLOOKUP(C556,Input!$C$312:$L$335,H556,FALSE),\"NA\")), \"\")","v":"BB"},5,20]
[{"$f":"Input!H$289","v":"Structured Finance - Mezz."},{"$f":"Input!D292","v":0},{"$f":"Input!D$191","v":2},{"$f":"Input!B$192","v":"Upto 1"},{"$f":"Input!E$289","v":4},{"$f":"IF(B557<>\"\",IF(C557=\"NA\",Lists!$D$9,IFERROR(HLOOKUP(C557,Input!$C$312:$L$335,H557,FALSE),\"NA\")), \"\")","v":"BB"},1,20]
[{"$f":"Input!H$289","v":"Structured Finance - Mezz."},{"$f":"Input!D293","v":0},{"$f":"Input!D$191","v":2},{"$f":"Input!B$193","v":"1.01 to 5"},{"$f":"Input!E$289","v":4},{"$f":"IF(B558<>\"\",IF(C558=\"NA\",Lists!$D$9,IFERROR(HLOOKUP(C558,Input!$C$312:$L$335,H558,FALSE),\"NA\")), \"\")","v":"BB"},2,20]
[{"$f":"Input!H$289","v":"Structured Finance - Mezz."},{"$f":"Input!D294","v":0},{"$f":"Input!D$191","v":2},{"$f":"Input!B$194","v":"5.01 to 10"},{"$f":"Input!E$289","v":4},{"$f":"IF(B559<>\"\",IF(C559=\"NA\",Lists!$D$9,IFERROR(HLOOKUP(C559,Input!$C$312:$L$335,H559,FALSE),\"NA\")), \"\")","v":"BB"},3,20]
[{"$f":"Input!H$289","v":"Structured Finance - Mezz."},{"$f":"Input!D295","v":0},{"$f":"Input!D$191","v":2},{"$f":"Input!B$195","v":"10.01 to 20"},{"$f":"Input!E$289","v":4},{"$f":"IF(B560<>\"\",IF(C560=\"NA\",Lists!$D$9,IFERROR(HLOOKUP(C560,Input!$C$312:$L$335,H560,FALSE),\"NA\")), \"\")","v":"BB"},4,20]
[{"$f":"Input!H$289","v":"Structured Finance - Mezz."},{"$f":"Input!D296","v":0},{"$f":"Input!D$191","v":2},{"$f":"Input!B$196","v":"More than 20"},{"$f":"Input!E$289","v":4},{"$f":"IF(B561<>\"\",IF(C561=\"NA\",Lists!$D$9,IFERROR(HLOOKUP(C561,Input!$C$312:$L$335,H561,FALSE),\"NA\")), \"\")","v":"BB"},5,20]
[{"$f":"Input!H$289","v":"Structured Finance - Mezz."},{"$f":"Input!E292","v":0},{"$f":"Input!E$191","v":3},{"$f":"Input!B$192","v":"Upto 1"},{"$f":"Input!E$289","v":4},{"$f":"IF(B562<>\"\",IF(C562=\"NA\",Lists!$D$9,IFERROR(HLOOKUP(C562,Input!$C$312:$L$335,H562,FALSE),\"NA\")), \"\")","v":"BB"},1,20]
[{"$f":"Input!H$289","v":"Structured Finance - Mezz."},{"$f":"Input!E293","v":0},{"$f":"Input!E$191","v":3},{"$f":"Input!B$193","v":"1.01 to 5"},{"$f":"Input!E$289","v":4},{"$f":"IF(B563<>\"\",IF(C563=\"NA\",Lists!$D$9,IFERROR(HLOOKUP(C563,Input!$C$312:$L$335,H563,FALSE),\"NA\")), \"\")","v":"BB"},2,20]
[{"$f":"Input!H$289","v":"Structured Finance - Mezz."},{"$f":"Input!E294","v":0},{"$f":"Input!E$191","v":3},{"$f":"Input!B$194","v":"5.01 to 10"},{"$f":"Input!E$289","v":4},{"$f":"IF(B564<>\"\",IF(C564=\"NA\",Lists!$D$9,IFERROR(HLOOKUP(C564,Input!$C$312:$L$335,H564,FALSE),\"NA\")), \"\")","v":"BB"},3,20]
[{"$f":"Input!H$289","v":"Structured Finance - Mezz."},{"$f":"Input!E295","v":0},{"$f":"Input!E$191","v":3},{"$f":"Input!B$195","v":"10.01 to 20"},{"$f":"Input!E$289","v":4},{"$f":"IF(B565<>\"\",IF(C565=\"NA\",Lists!$D$9,IFERROR(HLOOKUP(C565,Input!$C$312:$L$335,H565,FALSE),\"NA\")), \"\")","v":"BB"},4,20]
[{"$f":"Input!H$289","v":"Structured Finance - Mezz."},{"$f":"Input!E296","v":0},{"$f":"Input!E$191","v":3},{"$f":"Input!B$196","v":"More than 20"},{"$f":"Input!E$289","v":4},{"$f":"IF(B566<>\"\",IF(C566=\"NA\",Lists!$D$9,IFERROR(HLOOKUP(C566,Input!$C$312:$L$335,H566,FALSE),\"NA\")), \"\")","v":"BB"},5,20]
[{"$f":"Input!H$289","v":"Structured Finance - Mezz."},{"$f":"Input!F292","v":0},{"$f":"Input!F$191","v":4},{"$f":"Input!B$192","v":"Upto 1"},{"$f":"Input!E$289","v":4},{"$f":"IF(B567<>\"\",IF(C567=\"NA\",Lists!$D$9,IFERROR(HLOOKUP(C567,Input!$C$312:$L$335,H567,FALSE),\"NA\")), \"\")","v":"BB"},1,20]
[{"$f":"Input!H$289","v":"Structured Finance - Mezz."},{"$f":"Input!F293","v":0},{"$f":"Input!F$191","v":4},{"$f":"Input!B$193","v":"1.01 to 5"},{"$f":"Input!E$289","v":4},{"$f":"IF(B568<>\"\",IF(C568=\"NA\",Lists!$D$9,IFERROR(HLOOKUP(C568,Input!$C$312:$L$335,H568,FALSE),\"NA\")), \"\")","v":"BB"},2,20]
[{"$f":"Input!H$289","v":"Structured Finance - Mezz."},{"$f":"Input!F294","v":0},{"$f":"Input!F$191","v":4},{"$f":"Input!B$194","v":"5.01 to 10"},{"$f":"Input!E$289","v":4},{"$f":"IF(B569<>\"\",IF(C569=\"NA\",Lists!$D$9,IFERROR(HLOOKUP(C569,Input!$C$312:$L$335,H569,FALSE),\"NA\")), \"\")","v":"BB"},{"$f":"IFERROR(MATCH(D569,lov_term_buckets,0),\"\")","v":3},20]
[{"$f":"Input!H$289","v":"Structured Finance - Mezz."},{"$f":"Input!F295","v":0},{"$f":"Input!F$191","v":4},{"$f":"Input!B$195","v":"10.01 to 20"},{"$f":"Input!E$289","v":4},{"$f":"IF(B570<>\"\",IF(C570=\"NA\",Lists!$D$9,IFERROR(HLOOKUP(C570,Input!$C$312:$L$335,H570,FALSE),\"NA\")), \"\")","v":"BB"},4,20]
[{"$f":"Input!H$289","v":"Structured Finance - Mezz."},{"$f":"Input!F296","v":0},{"$f":"Input!F$191","v":4},{"$f":"Input!B$196","v":"More than 20"},{"$f":"Input!E$289","v":4},{"$f":"IF(B571<>\"\",IF(C571=\"NA\",Lists!$D$9,IFERROR(HLOOKUP(C571,Input!$C$312:$L$335,H571,FALSE),\"NA\")), \"\")","v":"BB"},5,20]
[{"$f":"Input!H$289","v":"Structured Finance - Mezz."},{"$f":"Input!G292","v":0},{"$f":"Input!G$191","v":5},{"$f":"Input!B$192","v":"Upto 1"},{"$f":"Input!E$289","v":4},{"$f":"IF(B572<>\"\",IF(C572=\"NA\",Lists!$D$9,IFERROR(HLOOKUP(C572,Input!$C$312:$L$335,H572,FALSE),\"NA\")), \"\")","v":"BB"},1,20]
[{"$f":"Input!H$289","v":"Structured Finance - Mezz."},{"$f":"Input!G293","v":0},{"$f":"Input!G$191","v":5},{"$f":"Input!B$193","v":"1.01 to 5"},{"$f":"Input!E$289","v":4},{"$f":"IF(B573<>\"\",IF(C573=\"NA\",Lists!$D$9,IFERROR(HLOOKUP(C573,Input!$C$312:$L$335,H573,FALSE),\"NA\")), \"\")","v":"BB"},2,20]
[{"$f":"Input!H$289","v":"Structured Finance - Mezz."},{"$f":"Input!G294","v":0},{"$f":"Input!G$191","v":5},{"$f":"Input!B$194","v":"5.01 to 10"},{"$f":"Input!E$289","v":4},{"$f":"IF(B574<>\"\",IF(C574=\"NA\",Lists!$D$9,IFERROR(HLOOKUP(C574,Input!$C$312:$L$335,H574,FALSE),\"NA\")), \"\")","v":"BB"},3,20]
[{"$f":"Input!H$289","v":"Structured Finance - Mezz."},{"$f":"Input!G295","v":0},{"$f":"Input!G$191","v":5},{"$f":"Input!B$195","v":"10.01 to 20"},{"$f":"Input!E$289","v":4},{"$f":"IF(B575<>\"\",IF(C575=\"NA\",Lists!$D$9,IFERROR(HLOOKUP(C575,Input!$C$312:$L$335,H575,FALSE),\"NA\")), \"\")","v":"BB"},4,20]
[{"$f":"Input!H$289","v":"Structured Finance - Mezz."},{"$f":"Input!G296","v":0},{"$f":"Input!G$191","v":5},{"$f":"Input!B$196","v":"More than 20"},{"$f":"Input!E$289","v":4},{"$f":"IF(B576<>\"\",IF(C576=\"NA\",Lists!$D$9,IFERROR(HLOOKUP(C576,Input!$C$312:$L$335,H576,FALSE),\"NA\")), \"\")","v":"BB"},5,20]
[{"$f":"Input!H$289","v":"Structured Finance - Mezz."},{"$f":"Input!H292","v":0},{"$f":"Input!H$191","v":6},{"$f":"Input!B$192","v":"Upto 1"},{"$f":"Input!E$289","v":4},{"$f":"IF(B577<>\"\",IF(C577=\"NA\",Lists!$D$9,IFERROR(HLOOKUP(C577,Input!$C$312:$L$335,H577,FALSE),\"NA\")), \"\")","v":"BB"},1,20]
[{"$f":"Input!H$289","v":"Structured Finance - Mezz."},{"$f":"Input!H293","v":0},{"$f":"Input!H$191","v":6},{"$f":"Input!B$193","v":"1.01 to 5"},{"$f":"Input!E$289","v":4},{"$f":"IF(B578<>\"\",IF(C578=\"NA\",Lists!$D$9,IFERROR(HLOOKUP(C578,Input!$C$312:$L$335,H578,FALSE),\"NA\")), \"\")","v":"BB"},2,20]
[{"$f":"Input!H$289","v":"Structured Finance - Mezz."},{"$f":"Input!H294","v":0},{"$f":"Input!H$191","v":6},{"$f":"Input!B$194","v":"5.01 to 10"},{"$f":"Input!E$289","v":4},{"$f":"IF(B579<>\"\",IF(C579=\"NA\",Lists!$D$9,IFERROR(HLOOKUP(C579,Input!$C$312:$L$335,H579,FALSE),\"NA\")), \"\")","v":"BB"},3,{"$f":"INDEX($L$2:$L$8,MATCH(A579,$K$2:$K$8,0))","v":20}]
[{"$f":"Input!H$289","v":"Structured Finance - Mezz."},{"$f":"Input!H295","v":0},{"$f":"Input!H$191","v":6},{"$f":"Input!B$195","v":"10.01 to 20"},{"$f":"Input!E$289","v":4},{"$f":"IF(B580<>\"\",IF(C580=\"NA\",Lists!$D$9,IFERROR(HLOOKUP(C580,Input!$C$312:$L$335,H580,FALSE),\"NA\")), \"\")","v":"BB"},4,20]
[{"$f":"Input!H$289","v":"Structured Finance - Mezz."},{"$f":"Input!H296","v":0},{"$f":"Input!H$191","v":6},{"$f":"Input!B$196","v":"More than 20"},{"$f":"Input!E$289","v":4},{"$f":"IF(B581<>\"\",IF(C581=\"NA\",Lists!$D$9,IFERROR(HLOOKUP(C581,Input!$C$312:$L$335,H581,FALSE),\"NA\")), \"\")","v":"BB"},5,20]
[{"$f":"Input!H$289","v":"Structured Finance - Mezz."},{"$f":"Input!I292","v":0},{"$f":"Input!I$191","v":7},{"$f":"Input!B$192","v":"Upto 1"},{"$f":"Input!E$289","v":4},{"$f":"IF(B582<>\"\",IF(C582=\"NA\",Lists!$D$9,IFERROR(HLOOKUP(C582,Input!$C$312:$L$335,H582,FALSE),\"NA\")), \"\")","v":"B"},1,20]
[{"$f":"Input!H$289","v":"Structured Finance - Mezz."},{"$f":"Input!I293","v":0},{"$f":"Input!I$191","v":7},{"$f":"Input!B$193","v":"1.01 to 5"},{"$f":"Input!E$289","v":4},{"$f":"IF(B583<>\"\",IF(C583=\"NA\",Lists!$D$9,IFERROR(HLOOKUP(C583,Input!$C$312:$L$335,H583,FALSE),\"NA\")), \"\")","v":"B"},2,20]
[{"$f":"Input!H$289","v":"Structured Finance - Mezz."},{"$f":"Input!I294","v":0},{"$f":"Input!I$191","v":7},{"$f":"Input!B$194","v":"5.01 to 10"},{"$f":"Input!E$289","v":4},{"$f":"IF(B584<>\"\",IF(C584=\"NA\",Lists!$D$9,IFERROR(HLOOKUP(C584,Input!$C$312:$L$335,H584,FALSE),\"NA\")), \"\")","v":"B"},3,20]
[{"$f":"Input!H$289","v":"Structured Finance - Mezz."},{"$f":"Input!I295","v":0},{"$f":"Input!I$191","v":7},{"$f":"Input!B$195","v":"10.01 to 20"},{"$f":"Input!E$289","v":4},{"$f":"IF(B585<>\"\",IF(C585=\"NA\",Lists!$D$9,IFERROR(HLOOKUP(C585,Input!$C$312:$L$335,H585,FALSE),\"NA\")), \"\")","v":"B"},4,20]
[{"$f":"Input!H$289","v":"Structured Finance - Mezz."},{"$f":"Input!I296","v":0},{"$f":"Input!I$191","v":7},{"$f":"Input!B$196","v":"More than 20"},{"$f":"Input!E$289","v":4},{"$f":"IF(B586<>\"\",IF(C586=\"NA\",Lists!$D$9,IFERROR(HLOOKUP(C586,Input!$C$312:$L$335,H586,FALSE),\"NA\")), \"\")","v":"B"},5,20]
[{"$f":"Input!H$289","v":"Structured Finance - Mezz."},{"$f":"Input!J292","v":0},{"$f":"Input!J$191","v":8},{"$f":"Input!B$192","v":"Upto 1"},{"$f":"Input!E$289","v":4},{"$f":"IF(B587<>\"\",IF(C587=\"NA\",Lists!$D$9,IFERROR(HLOOKUP(C587,Input!$C$312:$L$335,H587,FALSE),\"NA\")), \"\")","v":"CCC-C"},1,20]
[{"$f":"Input!H$289","v":"Structured Finance - Mezz."},{"$f":"Input!J293","v":0},{"$f":"Input!J$191","v":8},{"$f":"Input!B$193","v":"1.01 to 5"},{"$f":"Input!E$289","v":4},{"$f":"IF(B588<>\"\",IF(C588=\"NA\",Lists!$D$9,IFERROR(HLOOKUP(C588,Input!$C$312:$L$335,H588,FALSE),\"NA\")), \"\")","v":"CCC-C"},2,20]
[{"$f":"Input!H$289","v":"Structured Finance - Mezz."},{"$f":"Input!J294","v":0},{"$f":"Input!J$191","v":8},{"$f":"Input!B$194","v":"5.01 to 10"},{"$f":"Input!E$289","v":4},{"$f":"IF(B589<>\"\",IF(C589=\"NA\",Lists!$D$9,IFERROR(HLOOKUP(C589,Input!$C$312:$L$335,H589,FALSE),\"NA\")), \"\")","v":"CCC-C"},3,20]
[{"$f":"Input!H$289","v":"Structured Finance - Mezz."},{"$f":"Input!J295","v":0},{"$f":"Input!J$191","v":8},{"$f":"Input!B$195","v":"10.01 to 20"},{"$f":"Input!E$289","v":4},{"$f":"IF(B590<>\"\",IF(C590=\"NA\",Lists!$D$9,IFERROR(HLOOKUP(C590,Input!$C$312:$L$335,H590,FALSE),\"NA\")), \"\")","v":"CCC-C"},4,20]
[{"$f":"Input!H$289","v":"Structured Finance - Mezz."},{"$f":"Input!J296","v":0},{"$f":"Input!J$191","v":8},{"$f":"Input!B$196","v":"More than 20"},{"$f":"Input!E$289","v":4},{"$f":"IF(B591<>\"\",IF(C591=\"NA\",Lists!$D$9,IFERROR(HLOOKUP(C591,Input!$C$312:$L$335,H591,FALSE),\"NA\")), \"\")","v":"CCC-C"},5,20]
[{"$f":"Input!H$289","v":"Structured Finance - Mezz."},{"$f":"Input!K292","v":0},{"$f":"Input!K$191","v":9},{"$f":"Input!B$192","v":"Upto 1"},{"$f":"Input!E$289","v":4},{"$f":"IF(B592<>\"\",IF(C592=\"NA\",Lists!$D$9,IFERROR(HLOOKUP(C592,Input!$C$312:$L$335,H592,FALSE),\"NA\")), \"\")","v":"CCC-C"},1,20]
[{"$f":"Input!H$289","v":"Structured Finance - Mezz."},{"$f":"Input!K293","v":0},{"$f":"Input!K$191","v":9},{"$f":"Input!B$193","v":"1.01 to 5"},{"$f":"Input!E$289","v":4},{"$f":"IF(B593<>\"\",IF(C593=\"NA\",Lists!$D$9,IFERROR(HLOOKUP(C593,Input!$C$312:$L$335,H593,FALSE),\"NA\")), \"\")","v":"CCC-C"},2,20]
[{"$f":"Input!H$289","v":"Structured Finance - Mezz."},{"$f":"Input!K294","v":0},{"$f":"Input!K$191","v":9},{"$f":"Input!B$194","v":"5.01 to 10"},{"$f":"Input!E$289","v":4},{"$f":"IF(B594<>\"\",IF(C594=\"NA\",Lists!$D$9,IFERROR(HLOOKUP(C594,Input!$C$312:$L$335,H594,FALSE),\"NA\")), \"\")","v":"CCC-C"},3,20]
[{"$f":"Input!H$289","v":"Structured Finance - Mezz."},{"$f":"Input!K295","v":0},{"$f":"Input!K$191","v":9},{"$f":"Input!B$195","v":"10.01 to 20"},{"$f":"Input!E$289","v":4},{"$f":"IF(B595<>\"\",IF(C595=\"NA\",Lists!$D$9,IFERROR(HLOOKUP(C595,Input!$C$312:$L$335,H595,FALSE),\"NA\")), \"\")","v":"CCC-C"},4,20]
[{"$f":"Input!H$289","v":"Structured Finance - Mezz."},{"$f":"Input!K296","v":0},{"$f":"Input!K$191","v":9},{"$f":"Input!B$196","v":"More than 20"},{"$f":"Input!E$289","v":4},{"$f":"IF(B596<>\"\",IF(C596=\"NA\",Lists!$D$9,IFERROR(HLOOKUP(C596,Input!$C$312:$L$335,H596,FALSE),\"NA\")), \"\")","v":"CCC-C"},5,20]
[{"$f":"Input!H$289","v":"Structured Finance - Mezz."},{"$f":"Input!L292","v":0},{"$f":"Input!L$191","v":10},{"$f":"Input!B$192","v":"Upto 1"},{"$f":"Input!E$289","v":4},{"$f":"IF(B597<>\"\",IF(C597=\"NA\",Lists!$D$9,IFERROR(HLOOKUP(C597,Input!$C$312:$L$335,H597,FALSE),\"NA\")), \"\")","v":"CCC-C"},1,20]
[{"$f":"Input!H$289","v":"Structured Finance - Mezz."},{"$f":"Input!L293","v":0},{"$f":"Input!L$191","v":10},{"$f":"Input!B$193","v":"1.01 to 5"},{"$f":"Input!E$289","v":4},{"$f":"IF(B598<>\"\",IF(C598=\"NA\",Lists!$D$9,IFERROR(HLOOKUP(C598,Input!$C$312:$L$335,H598,FALSE),\"NA\")), \"\")","v":"CCC-C"},2,20]
[{"$f":"Input!H$289","v":"Structured Finance - Mezz."},{"$f":"Input!L294","v":0},{"$f":"Input!L$191","v":10},{"$f":"Input!B$194","v":"5.01 to 10"},{"$f":"Input!E$289","v":4},{"$f":"IF(B599<>\"\",IF(C599=\"NA\",Lists!$D$9,IFERROR(HLOOKUP(C599,Input!$C$312:$L$335,H599,FALSE),\"NA\")), \"\")","v":"CCC-C"},3,20]
[{"$f":"Input!H$289","v":"Structured Finance - Mezz."},{"$f":"Input!L295","v":0},{"$f":"Input!L$191","v":10},{"$f":"Input!B$195","v":"10.01 to 20"},{"$f":"Input!E$289","v":4},{"$f":"IF(B600<>\"\",IF(C600=\"NA\",Lists!$D$9,IFERROR(HLOOKUP(C600,Input!$C$312:$L$335,H600,FALSE),\"NA\")), \"\")","v":"CCC-C"},4,20]
[{"$f":"Input!H$289","v":"Structured Finance - Mezz."},{"$f":"Input!L296","v":0},{"$f":"Input!L$191","v":10},{"$f":"Input!B$196","v":"More than 20"},{"$f":"Input!E$289","v":4},{"$f":"IF(B601<>\"\",IF(C601=\"NA\",Lists!$D$9,IFERROR(HLOOKUP(C601,Input!$C$312:$L$335,H601,FALSE),\"NA\")), \"\")","v":"CCC-C"},5,20]
[{"$f":"Input!H$289","v":"Structured Finance - Mezz."},{"$f":"Input!M292","v":0},{"$f":"Input!M$191","v":"NA"},{"$f":"Input!B$192","v":"Upto 1"},{"$f":"Input!E$289","v":4},{"$f":"IF(B602<>\"\",IF(C602=\"NA\",Lists!$D$9,IFERROR(HLOOKUP(C602,Input!$C$312:$L$335,H602,FALSE),\"NA\")), \"\")","v":"CCC-C"},1,20]
[{"$f":"Input!H$289","v":"Structured Finance - Mezz."},{"$f":"Input!M293","v":0},{"$f":"Input!M$191","v":"NA"},{"$f":"Input!B$193","v":"1.01 to 5"},{"$f":"Input!E$289","v":4},{"$f":"IF(B603<>\"\",IF(C603=\"NA\",Lists!$D$9,IFERROR(HLOOKUP(C603,Input!$C$312:$L$335,H603,FALSE),\"NA\")), \"\")","v":"CCC-C"},2,20]
[{"$f":"Input!H$289","v":"Structured Finance - Mezz."},{"$f":"Input!M294","v":0},{"$f":"Input!M$191","v":"NA"},{"$f":"Input!B$194","v":"5.01 to 10"},{"$f":"Input!E$289","v":4},{"$f":"IF(B604<>\"\",IF(C604=\"NA\",Lists!$D$9,IFERROR(HLOOKUP(C604,Input!$C$312:$L$335,H604,FALSE),\"NA\")), \"\")","v":"CCC-C"},3,20]
[{"$f":"Input!H$289","v":"Structured Finance - Mezz."},{"$f":"Input!M295","v":0},{"$f":"Input!M$191","v":"NA"},{"$f":"Input!B$195","v":"10.01 to 20"},{"$f":"Input!E$289","v":4},{"$f":"IF(B605<>\"\",IF(C605=\"NA\",Lists!$D$9,IFERROR(HLOOKUP(C605,Input!$C$312:$L$335,H605,FALSE),\"NA\")), \"\")","v":"CCC-C"},4,20]
[{"$f":"Input!H$289","v":"Structured Finance - Mezz."},{"$f":"Input!M296","v":0},{"$f":"Input!M$191","v":"NA"},{"$f":"Input!B$196","v":"More than 20"},{"$f":"Input!E$289","v":4},{"$f":"IF(B606<>\"\",IF(C606=\"NA\",Lists!$D$9,IFERROR(HLOOKUP(C606,Input!$C$312:$L$335,H606,FALSE),\"NA\")), \"\")","v":"CCC-C"},5,20]
[{"$f":"Input!H$299","v":"Structured Finance - Junior"},{"$f":"Input!C302","v":0},{"$f":"Input!C$191","v":1},{"$f":"Input!B$192","v":"Upto 1"},{"$f":"Input!E$299","v":4},{"$f":"IF(B607<>\"\",IF(C607=\"NA\",Lists!$D$9,IFERROR(HLOOKUP(C607,Input!$C$312:$L$335,H607,FALSE),\"NA\")), \"\")","v":"CCC-C"},1,24]
[{"$f":"Input!H$299","v":"Structured Finance - Junior"},{"$f":"Input!C303","v":0},{"$f":"Input!C$191","v":1},{"$f":"Input!B$193","v":"1.01 to 5"},{"$f":"Input!E$299","v":4},{"$f":"IF(B608<>\"\",IF(C608=\"NA\",Lists!$D$9,IFERROR(HLOOKUP(C608,Input!$C$312:$L$335,H608,FALSE),\"NA\")), \"\")","v":"CCC-C"},2,24]
[{"$f":"Input!H$299","v":"Structured Finance - Junior"},{"$f":"Input!C304","v":0},{"$f":"Input!C$191","v":1},{"$f":"Input!B$194","v":"5.01 to 10"},{"$f":"Input!E$299","v":4},{"$f":"IF(B609<>\"\",IF(C609=\"NA\",Lists!$D$9,IFERROR(HLOOKUP(C609,Input!$C$312:$L$335,H609,FALSE),\"NA\")), \"\")","v":"CCC-C"},3,24]
[{"$f":"Input!H$299","v":"Structured Finance - Junior"},{"$f":"Input!C305","v":0},{"$f":"Input!C$191","v":1},{"$f":"Input!B$195","v":"10.01 to 20"},{"$f":"Input!E$299","v":4},{"$f":"IF(B610<>\"\",IF(C610=\"NA\",Lists!$D$9,IFERROR(HLOOKUP(C610,Input!$C$312:$L$335,H610,FALSE),\"NA\")), \"\")","v":"CCC-C"},4,24]
[{"$f":"Input!H$299","v":"Structured Finance - Junior"},{"$f":"Input!C306","v":0},{"$f":"Input!C$191","v":1},{"$f":"Input!B$196","v":"More than 20"},{"$f":"Input!E$299","v":4},{"$f":"IF(B611<>\"\",IF(C611=\"NA\",Lists!$D$9,IFERROR(HLOOKUP(C611,Input!$C$312:$L$335,H611,FALSE),\"NA\")), \"\")","v":"CCC-C"},5,24]
[{"$f":"Input!H$299","v":"Structured Finance - Junior"},{"$f":"Input!D302","v":0},{"$f":"Input!D$191","v":2},{"$f":"Input!B$192","v":"Upto 1"},{"$f":"Input!E$299","v":4},{"$f":"IF(B612<>\"\",IF(C612=\"NA\",Lists!$D$9,IFERROR(HLOOKUP(C612,Input!$C$312:$L$335,H612,FALSE),\"NA\")), \"\")","v":"CCC-C"},1,24]
[{"$f":"Input!H$299","v":"Structured Finance - Junior"},{"$f":"Input!D303","v":0},{"$f":"Input!D$191","v":2},{"$f":"Input!B$193","v":"1.01 to 5"},{"$f":"Input!E$299","v":4},{"$f":"IF(B613<>\"\",IF(C613=\"NA\",Lists!$D$9,IFERROR(HLOOKUP(C613,Input!$C$312:$L$335,H613,FALSE),\"NA\")), \"\")","v":"CCC-C"},2,24]
[{"$f":"Input!H$299","v":"Structured Finance - Junior"},{"$f":"Input!D304","v":0},{"$f":"Input!D$191","v":2},{"$f":"Input!B$194","v":"5.01 to 10"},{"$f":"Input!E$299","v":4},{"$f":"IF(B614<>\"\",IF(C614=\"NA\",Lists!$D$9,IFERROR(HLOOKUP(C614,Input!$C$312:$L$335,H614,FALSE),\"NA\")), \"\")","v":"CCC-C"},3,24]
[{"$f":"Input!H$299","v":"Structured Finance - Junior"},{"$f":"Input!D305","v":0},{"$f":"Input!D$191","v":2},{"$f":"Input!B$195","v":"10.01 to 20"},{"$f":"Input!E$299","v":4},{"$f":"IF(B615<>\"\",IF(C615=\"NA\",Lists!$D$9,IFERROR(HLOOKUP(C615,Input!$C$312:$L$335,H615,FALSE),\"NA\")), \"\")","v":"CCC-C"},4,24]
[{"$f":"Input!H$299","v":"Structured Finance - Junior"},{"$f":"Input!D306","v":0},{"$f":"Input!D$191","v":2},{"$f":"Input!B$196","v":"More than 20"},{"$f":"Input!E$299","v":4},{"$f":"IF(B616<>\"\",IF(C616=\"NA\",Lists!$D$9,IFERROR(HLOOKUP(C616,Input!$C$312:$L$335,H616,FALSE),\"NA\")), \"\")","v":"CCC-C"},5,24]
[{"$f":"Input!H$299","v":"Structured Finance - Junior"},{"$f":"Input!E302","v":0},{"$f":"Input!E$191","v":3},{"$f":"Input!B$192","v":"Upto 1"},{"$f":"Input!E$299","v":4},{"$f":"IF(B617<>\"\",IF(C617=\"NA\",Lists!$D$9,IFERROR(HLOOKUP(C617,Input!$C$312:$L$335,H617,FALSE),\"NA\")), \"\")","v":"CCC-C"},1,24]
[{"$f":"Input!H$299","v":"Structured Finance - Junior"},{"$f":"Input!E303","v":0},{"$f":"Input!E$191","v":3},{"$f":"Input!B$193","v":"1.01 to 5"},{"$f":"Input!E$299","v":4},{"$f":"IF(B618<>\"\",IF(C618=\"NA\",Lists!$D$9,IFERROR(HLOOKUP(C618,Input!$C$312:$L$335,H618,FALSE),\"NA\")), \"\")","v":"CCC-C"},2,24]
[{"$f":"Input!H$299","v":"Structured Finance - Junior"},{"$f":"Input!E304","v":0},{"$f":"Input!E$191","v":3},{"$f":"Input!B$194","v":"5.01 to 10"},{"$f":"Input!E$299","v":4},{"$f":"IF(B619<>\"\",IF(C619=\"NA\",Lists!$D$9,IFERROR(HLOOKUP(C619,Input!$C$312:$L$335,H619,FALSE),\"NA\")), \"\")","v":"CCC-C"},3,24]
[{"$f":"Input!H$299","v":"Structured Finance - Junior"},{"$f":"Input!E305","v":0},{"$f":"Input!E$191","v":3},{"$f":"Input!B$195","v":"10.01 to 20"},{"$f":"Input!E$299","v":4},{"$f":"IF(B620<>\"\",IF(C620=\"NA\",Lists!$D$9,IFERROR(HLOOKUP(C620,Input!$C$312:$L$335,H620,FALSE),\"NA\")), \"\")","v":"CCC-C"},4,24]
[{"$f":"Input!H$299","v":"Structured Finance - Junior"},{"$f":"Input!E306","v":0},{"$f":"Input!E$191","v":3},{"$f":"Input!B$196","v":"More than 20"},{"$f":"Input!E$299","v":4},{"$f":"IF(B621<>\"\",IF(C621=\"NA\",Lists!$D$9,IFERROR(HLOOKUP(C621,Input!$C$312:$L$335,H621,FALSE),\"NA\")), \"\")","v":"CCC-C"},5,24]
[{"$f":"Input!H$299","v":"Structured Finance - Junior"},{"$f":"Input!F302","v":0},{"$f":"Input!F$191","v":4},{"$f":"Input!B$192","v":"Upto 1"},{"$f":"Input!E$299","v":4},{"$f":"IF(B622<>\"\",IF(C622=\"NA\",Lists!$D$9,IFERROR(HLOOKUP(C622,Input!$C$312:$L$335,H622,FALSE),\"NA\")), \"\")","v":"CCC-C"},1,24]
[{"$f":"Input!H$299","v":"Structured Finance - Junior"},{"$f":"Input!F303","v":0},{"$f":"Input!F$191","v":4},{"$f":"Input!B$193","v":"1.01 to 5"},{"$f":"Input!E$299","v":4},{"$f":"IF(B623<>\"\",IF(C623=\"NA\",Lists!$D$9,IFERROR(HLOOKUP(C623,Input!$C$312:$L$335,H623,FALSE),\"NA\")), \"\")","v":"CCC-C"},2,24]
[{"$f":"Input!H$299","v":"Structured Finance - Junior"},{"$f":"Input!F304","v":0},{"$f":"Input!F$191","v":4},{"$f":"Input!B$194","v":"5.01 to 10"},{"$f":"Input!E$299","v":4},{"$f":"IF(B624<>\"\",IF(C624=\"NA\",Lists!$D$9,IFERROR(HLOOKUP(C624,Input!$C$312:$L$335,H624,FALSE),\"NA\")), \"\")","v":"CCC-C"},{"$f":"IFERROR(MATCH(D624,lov_term_buckets,0),\"\")","v":3},24]
[{"$f":"Input!H$299","v":"Structured Finance - Junior"},{"$f":"Input!F305","v":0},{"$f":"Input!F$191","v":4},{"$f":"Input!B$195","v":"10.01 to 20"},{"$f":"Input!E$299","v":4},{"$f":"IF(B625<>\"\",IF(C625=\"NA\",Lists!$D$9,IFERROR(HLOOKUP(C625,Input!$C$312:$L$335,H625,FALSE),\"NA\")), \"\")","v":"CCC-C"},4,24]
[{"$f":"Input!H$299","v":"Structured Finance - Junior"},{"$f":"Input!F306","v":0},{"$f":"Input!F$191","v":4},{"$f":"Input!B$196","v":"More than 20"},{"$f":"Input!E$299","v":4},{"$f":"IF(B626<>\"\",IF(C626=\"NA\",Lists!$D$9,IFERROR(HLOOKUP(C626,Input!$C$312:$L$335,H626,FALSE),\"NA\")), \"\")","v":"CCC-C"},5,24]
[{"$f":"Input!H$299","v":"Structured Finance - Junior"},{"$f":"Input!G302","v":0},{"$f":"Input!G$191","v":5},{"$f":"Input!B$192","v":"Upto 1"},{"$f":"Input!E$299","v":4},{"$f":"IF(B627<>\"\",IF(C627=\"NA\",Lists!$D$9,IFERROR(HLOOKUP(C627,Input!$C$312:$L$335,H627,FALSE),\"NA\")), \"\")","v":"CCC-C"},1,24]
[{"$f":"Input!H$299","v":"Structured Finance - Junior"},{"$f":"Input!G303","v":0},{"$f":"Input!G$191","v":5},{"$f":"Input!B$193","v":"1.01 to 5"},{"$f":"Input!E$299","v":4},{"$f":"IF(B628<>\"\",IF(C628=\"NA\",Lists!$D$9,IFERROR(HLOOKUP(C628,Input!$C$312:$L$335,H628,FALSE),\"NA\")), \"\")","v":"CCC-C"},2,24]
[{"$f":"Input!H$299","v":"Structured Finance - Junior"},{"$f":"Input!G304","v":0},{"$f":"Input!G$191","v":5},{"$f":"Input!B$194","v":"5.01 to 10"},{"$f":"Input!E$299","v":4},{"$f":"IF(B629<>\"\",IF(C629=\"NA\",Lists!$D$9,IFERROR(HLOOKUP(C629,Input!$C$312:$L$335,H629,FALSE),\"NA\")), \"\")","v":"CCC-C"},3,24]
[{"$f":"Input!H$299","v":"Structured Finance - Junior"},{"$f":"Input!G305","v":0},{"$f":"Input!G$191","v":5},{"$f":"Input!B$195","v":"10.01 to 20"},{"$f":"Input!E$299","v":4},{"$f":"IF(B630<>\"\",IF(C630=\"NA\",Lists!$D$9,IFERROR(HLOOKUP(C630,Input!$C$312:$L$335,H630,FALSE),\"NA\")), \"\")","v":"CCC-C"},4,24]
[{"$f":"Input!H$299","v":"Structured Finance - Junior"},{"$f":"Input!G306","v":0},{"$f":"Input!G$191","v":5},{"$f":"Input!B$196","v":"More than 20"},{"$f":"Input!E$299","v":4},{"$f":"IF(B631<>\"\",IF(C631=\"NA\",Lists!$D$9,IFERROR(HLOOKUP(C631,Input!$C$312:$L$335,H631,FALSE),\"NA\")), \"\")","v":"CCC-C"},5,24]
[{"$f":"Input!H$299","v":"Structured Finance - Junior"},{"$f":"Input!H302","v":0},{"$f":"Input!H$191","v":6},{"$f":"Input!B$192","v":"Upto 1"},{"$f":"Input!E$299","v":4},{"$f":"IF(B632<>\"\",IF(C632=\"NA\",Lists!$D$9,IFERROR(HLOOKUP(C632,Input!$C$312:$L$335,H632,FALSE),\"NA\")), \"\")","v":"CCC-C"},1,24]
[{"$f":"Input!H$299","v":"Structured Finance - Junior"},{"$f":"Input!H303","v":0},{"$f":"Input!H$191","v":6},{"$f":"Input!B$193","v":"1.01 to 5"},{"$f":"Input!E$299","v":4},{"$f":"IF(B633<>\"\",IF(C633=\"NA\",Lists!$D$9,IFERROR(HLOOKUP(C633,Input!$C$312:$L$335,H633,FALSE),\"NA\")), \"\")","v":"CCC-C"},2,24]
[{"$f":"Input!H$299","v":"Structured Finance - Junior"},{"$f":"Input!H304","v":0},{"$f":"Input!H$191","v":6},{"$f":"Input!B$194","v":"5.01 to 10"},{"$f":"Input!E$299","v":4},{"$f":"IF(B634<>\"\",IF(C634=\"NA\",Lists!$D$9,IFERROR(HLOOKUP(C634,Input!$C$312:$L$335,H634,FALSE),\"NA\")), \"\")","v":"CCC-C"},3,{"$f":"INDEX($L$2:$L$8,MATCH(A634,$K$2:$K$8,0))","v":24}]
[{"$f":"Input!H$299","v":"Structured Finance - Junior"},{"$f":"Input!H305","v":0},{"$f":"Input!H$191","v":6},{"$f":"Input!B$195","v":"10.01 to 20"},{"$f":"Input!E$299","v":4},{"$f":"IF(B635<>\"\",IF(C635=\"NA\",Lists!$D$9,IFERROR(HLOOKUP(C635,Input!$C$312:$L$335,H635,FALSE),\"NA\")), \"\")","v":"CCC-C"},4,24]
[{"$f":"Input!H$299","v":"Structured Finance - Junior"},{"$f":"Input!H306","v":0},{"$f":"Input!H$191","v":6},{"$f":"Input!B$196","v":"More than 20"},{"$f":"Input!E$299","v":4},{"$f":"IF(B636<>\"\",IF(C636=\"NA\",Lists!$D$9,IFERROR(HLOOKUP(C636,Input!$C$312:$L$335,H636,FALSE),\"NA\")), \"\")","v":"CCC-C"},5,24]
[{"$f":"Input!H$299","v":"Structured Finance - Junior"},{"$f":"Input!I302","v":0},{"$f":"Input!I$191","v":7},{"$f":"Input!B$192","v":"Upto 1"},{"$f":"Input!E$299","v":4},{"$f":"IF(B637<>\"\",IF(C637=\"NA\",Lists!$D$9,IFERROR(HLOOKUP(C637,Input!$C$312:$L$335,H637,FALSE),\"NA\")), \"\")","v":"CCC-C"},1,24]
[{"$f":"Input!H$299","v":"Structured Finance - Junior"},{"$f":"Input!I303","v":0},{"$f":"Input!I$191","v":7},{"$f":"Input!B$193","v":"1.01 to 5"},{"$f":"Input!E$299","v":4},{"$f":"IF(B638<>\"\",IF(C638=\"NA\",Lists!$D$9,IFERROR(HLOOKUP(C638,Input!$C$312:$L$335,H638,FALSE),\"NA\")), \"\")","v":"CCC-C"},2,24]
[{"$f":"Input!H$299","v":"Structured Finance - Junior"},{"$f":"Input!I304","v":0},{"$f":"Input!I$191","v":7},{"$f":"Input!B$194","v":"5.01 to 10"},{"$f":"Input!E$299","v":4},{"$f":"IF(B639<>\"\",IF(C639=\"NA\",Lists!$D$9,IFERROR(HLOOKUP(C639,Input!$C$312:$L$335,H639,FALSE),\"NA\")), \"\")","v":"CCC-C"},3,24]
[{"$f":"Input!H$299","v":"Structured Finance - Junior"},{"$f":"Input!I305","v":0},{"$f":"Input!I$191","v":7},{"$f":"Input!B$195","v":"10.01 to 20"},{"$f":"Input!E$299","v":4},{"$f":"IF(B640<>\"\",IF(C640=\"NA\",Lists!$D$9,IFERROR(HLOOKUP(C640,Input!$C$312:$L$335,H640,FALSE),\"NA\")), \"\")","v":"CCC-C"},4,24]
[{"$f":"Input!H$299","v":"Structured Finance - Junior"},{"$f":"Input!I306","v":0},{"$f":"Input!I$191","v":7},{"$f":"Input!B$196","v":"More than 20"},{"$f":"Input!E$299","v":4},{"$f":"IF(B641<>\"\",IF(C641=\"NA\",Lists!$D$9,IFERROR(HLOOKUP(C641,Input!$C$312:$L$335,H641,FALSE),\"NA\")), \"\")","v":"CCC-C"},5,24]
[{"$f":"Input!H$299","v":"Structured Finance - Junior"},{"$f":"Input!J302","v":0},{"$f":"Input!J$191","v":8},{"$f":"Input!B$192","v":"Upto 1"},{"$f":"Input!E$299","v":4},{"$f":"IF(B642<>\"\",IF(C642=\"NA\",Lists!$D$9,IFERROR(HLOOKUP(C642,Input!$C$312:$L$335,H642,FALSE),\"NA\")), \"\")","v":"CCC-C"},1,24]
[{"$f":"Input!H$299","v":"Structured Finance - Junior"},{"$f":"Input!J303","v":0},{"$f":"Input!J$191","v":8},{"$f":"Input!B$193","v":"1.01 to 5"},{"$f":"Input!E$299","v":4},{"$f":"IF(B643<>\"\",IF(C643=\"NA\",Lists!$D$9,IFERROR(HLOOKUP(C643,Input!$C$312:$L$335,H643,FALSE),\"NA\")), \"\")","v":"CCC-C"},2,24]
[{"$f":"Input!H$299","v":"Structured Finance - Junior"},{"$f":"Input!J304","v":0},{"$f":"Input!J$191","v":8},{"$f":"Input!B$194","v":"5.01 to 10"},{"$f":"Input!E$299","v":4},{"$f":"IF(B644<>\"\",IF(C644=\"NA\",Lists!$D$9,IFERROR(HLOOKUP(C644,Input!$C$312:$L$335,H644,FALSE),\"NA\")), \"\")","v":"CCC-C"},3,24]
[{"$f":"Input!H$299","v":"Structured Finance - Junior"},{"$f":"Input!J305","v":0},{"$f":"Input!J$191","v":8},{"$f":"Input!B$195","v":"10.01 to 20"},{"$f":"Input!E$299","v":4},{"$f":"IF(B645<>\"\",IF(C645=\"NA\",Lists!$D$9,IFERROR(HLOOKUP(C645,Input!$C$312:$L$335,H645,FALSE),\"NA\")), \"\")","v":"CCC-C"},4,24]
[{"$f":"Input!H$299","v":"Structured Finance - Junior"},{"$f":"Input!J306","v":0},{"$f":"Input!J$191","v":8},{"$f":"Input!B$196","v":"More than 20"},{"$f":"Input!E$299","v":4},{"$f":"IF(B646<>\"\",IF(C646=\"NA\",Lists!$D$9,IFERROR(HLOOKUP(C646,Input!$C$312:$L$335,H646,FALSE),\"NA\")), \"\")","v":"CCC-C"},5,24]
[{"$f":"Input!H$299","v":"Structured Finance - Junior"},{"$f":"Input!K302","v":0},{"$f":"Input!K$191","v":9},{"$f":"Input!B$192","v":"Upto 1"},{"$f":"Input!E$299","v":4},{"$f":"IF(B647<>\"\",IF(C647=\"NA\",Lists!$D$9,IFERROR(HLOOKUP(C647,Input!$C$312:$L$335,H647,FALSE),\"NA\")), \"\")","v":"CCC-C"},1,24]
[{"$f":"Input!H$299","v":"Structured Finance - Junior"},{"$f":"Input!K303","v":0},{"$f":"Input!K$191","v":9},{"$f":"Input!B$193","v":"1.01 to 5"},{"$f":"Input!E$299","v":4},{"$f":"IF(B648<>\"\",IF(C648=\"NA\",Lists!$D$9,IFERROR(HLOOKUP(C648,Input!$C$312:$L$335,H648,FALSE),\"NA\")), \"\")","v":"CCC-C"},2,24]
[{"$f":"Input!H$299","v":"Structured Finance - Junior"},{"$f":"Input!K304","v":0},{"$f":"Input!K$191","v":9},{"$f":"Input!B$194","v":"5.01 to 10"},{"$f":"Input!E$299","v":4},{"$f":"IF(B649<>\"\",IF(C649=\"NA\",Lists!$D$9,IFERROR(HLOOKUP(C649,Input!$C$312:$L$335,H649,FALSE),\"NA\")), \"\")","v":"CCC-C"},3,24]
[{"$f":"Input!H$299","v":"Structured Finance - Junior"},{"$f":"Input!K305","v":0},{"$f":"Input!K$191","v":9},{"$f":"Input!B$195","v":"10.01 to 20"},{"$f":"Input!E$299","v":4},{"$f":"IF(B650<>\"\",IF(C650=\"NA\",Lists!$D$9,IFERROR(HLOOKUP(C650,Input!$C$312:$L$335,H650,FALSE),\"NA\")), \"\")","v":"CCC-C"},4,24]
[{"$f":"Input!H$299","v":"Structured Finance - Junior"},{"$f":"Input!K306","v":0},{"$f":"Input!K$191","v":9},{"$f":"Input!B$196","v":"More than 20"},{"$f":"Input!E$299","v":4},{"$f":"IF(B651<>\"\",IF(C651=\"NA\",Lists!$D$9,IFERROR(HLOOKUP(C651,Input!$C$312:$L$335,H651,FALSE),\"NA\")), \"\")","v":"CCC-C"},5,24]
[{"$f":"Input!H$299","v":"Structured Finance - Junior"},{"$f":"Input!L302","v":0},{"$f":"Input!L$191","v":10},{"$f":"Input!B$192","v":"Upto 1"},{"$f":"Input!E$299","v":4},{"$f":"IF(B652<>\"\",IF(C652=\"NA\",Lists!$D$9,IFERROR(HLOOKUP(C652,Input!$C$312:$L$335,H652,FALSE),\"NA\")), \"\")","v":"CCC-C"},1,24]
[{"$f":"Input!H$299","v":"Structured Finance - Junior"},{"$f":"Input!L303","v":0},{"$f":"Input!L$191","v":10},{"$f":"Input!B$193","v":"1.01 to 5"},{"$f":"Input!E$299","v":4},{"$f":"IF(B653<>\"\",IF(C653=\"NA\",Lists!$D$9,IFERROR(HLOOKUP(C653,Input!$C$312:$L$335,H653,FALSE),\"NA\")), \"\")","v":"CCC-C"},2,24]
[{"$f":"Input!H$299","v":"Structured Finance - Junior"},{"$f":"Input!L304","v":0},{"$f":"Input!L$191","v":10},{"$f":"Input!B$194","v":"5.01 to 10"},{"$f":"Input!E$299","v":4},{"$f":"IF(B654<>\"\",IF(C654=\"NA\",Lists!$D$9,IFERROR(HLOOKUP(C654,Input!$C$312:$L$335,H654,FALSE),\"NA\")), \"\")","v":"CCC-C"},3,24]
[{"$f":"Input!H$299","v":"Structured Finance - Junior"},{"$f":"Input!L305","v":0},{"$f":"Input!L$191","v":10},{"$f":"Input!B$195","v":"10.01 to 20"},{"$f":"Input!E$299","v":4},{"$f":"IF(B655<>\"\",IF(C655=\"NA\",Lists!$D$9,IFERROR(HLOOKUP(C655,Input!$C$312:$L$335,H655,FALSE),\"NA\")), \"\")","v":"CCC-C"},4,24]
[{"$f":"Input!H$299","v":"Structured Finance - Junior"},{"$f":"Input!L306","v":0},{"$f":"Input!L$191","v":10},{"$f":"Input!B$196","v":"More than 20"},{"$f":"Input!E$299","v":4},{"$f":"IF(B656<>\"\",IF(C656=\"NA\",Lists!$D$9,IFERROR(HLOOKUP(C656,Input!$C$312:$L$335,H656,FALSE),\"NA\")), \"\")","v":"CCC-C"},5,24]
[{"$f":"Input!H$299","v":"Structured Finance - Junior"},{"$f":"Input!M302","v":0},{"$f":"Input!M$191","v":"NA"},{"$f":"Input!B$192","v":"Upto 1"},{"$f":"Input!E$299","v":4},{"$f":"IF(B657<>\"\",IF(C657=\"NA\",Lists!$D$9,IFERROR(HLOOKUP(C657,Input!$C$312:$L$335,H657,FALSE),\"NA\")), \"\")","v":"CCC-C"},1,24]
[{"$f":"Input!H$299","v":"Structured Finance - Junior"},{"$f":"Input!M303","v":0},{"$f":"Input!M$191","v":"NA"},{"$f":"Input!B$193","v":"1.01 to 5"},{"$f":"Input!E$299","v":4},{"$f":"IF(B658<>\"\",IF(C658=\"NA\",Lists!$D$9,IFERROR(HLOOKUP(C658,Input!$C$312:$L$335,H658,FALSE),\"NA\")), \"\")","v":"CCC-C"},2,24]
[{"$f":"Input!H$299","v":"Structured Finance - Junior"},{"$f":"Input!M304","v":0},{"$f":"Input!M$191","v":"NA"},{"$f":"Input!B$194","v":"5.01 to 10"},{"$f":"Input!E$299","v":4},{"$f":"IF(B659<>\"\",IF(C659=\"NA\",Lists!$D$9,IFERROR(HLOOKUP(C659,Input!$C$312:$L$335,H659,FALSE),\"NA\")), \"\")","v":"CCC-C"},3,24]
[{"$f":"Input!H$299","v":"Structured Finance - Junior"},{"$f":"Input!M305","v":0},{"$f":"Input!M$191","v":"NA"},{"$f":"Input!B$195","v":"10.01 to 20"},{"$f":"Input!E$299","v":4},{"$f":"IF(B660<>\"\",IF(C660=\"NA\",Lists!$D$9,IFERROR(HLOOKUP(C660,Input!$C$312:$L$335,H660,FALSE),\"NA\")), \"\")","v":"CCC-C"},4,24]
[{"$f":"Input!H$299","v":"Structured Finance - Junior"},{"$f":"Input!M306","v":0},{"$f":"Input!M$191","v":"NA"},{"$f":"Input!B$196","v":"More than 20"},{"$f":"Input!E$299","v":4},{"$f":"IF(B661<>\"\",IF(C661=\"NA\",Lists!$D$9,IFERROR(HLOOKUP(C661,Input!$C$312:$L$335,H661,FALSE),\"NA\")), \"\")","v":"CCC-C"},5,24]

{"sheet":"Raw Data","index":18,"n_rows":5000,"n_cols":13,"rows_kept":5000,"cut":false,"hidden":true,"merged":[]}
["Num Returned"]
["Num Success",{"$f":"COUNTIF(A4:A4999,\"*\")","v":0},null,null,null,null,null,null,null,null,null,"Service Host",{"$f":"server_address","v":"https://lrsc.pde.spratingsvpc.com/icm-du-api-prod/"}]
["mnemonic","lob","geo","IRSDB description","error_code","source_type","data_type","values","key"]
[null,null,null,null,null,null,null,null,{"$f":"CONCATENATE(A4,\"_\",B4,\"_\",C4)","v":"__"}]
[null,null,null,null,null,null,null,null,{"$f":"CONCATENATE(A5,\"_\",B5,\"_\",C5)","v":"__"},null,null,"Service 1"]
[null,null,null,null,null,null,null,null,"__",null,null,"Service name","get_irsdb_data_cm"]
[null,null,null,null,null,null,null,null,"__",null,null,"Param 1","code"]
[null,null,null,null,null,null,null,null,"__",null,null,"Value 1 prefix"]
[null,null,null,null,null,null,null,null,"__",null,null,"Value 1",{"$f":"selected_naic_code","v":0}]
[null,null,null,null,null,null,null,null,"__",null,null,"Param 2","year"]
[null,null,null,null,null,null,null,null,"__",null,null,"Value 2",{"$f":"selected_reporting_year","v":0}]
[null,null,null,null,null,null,null,null,"__",null,null,"Param 3"]
[null,null,null,null,null,null,null,null,"__",null,null,"Value 3"]
[null,null,null,null,null,null,null,null,"__",null,null,"Param 4"]
[null,null,null,null,null,null,null,null,"__",null,null,"Value 4"]
[null,null,null,null,null,null,null,null,"__",null,null,"Full URL",{"$f":"CONCATENATE(service_host,service1_path,\"?\",M7,\"=\",M9,\"&\",M10,\"=\",M11)","v":"https://lrsc.pde.spratingsvpc.com/icm-du-api-prod/get_irsdb_data_cm?code=0&year=0"}]
[null,null,null,null,null,null,null,null,"__"]
[null,null,null,null,null,null,null,null,"__",null,null,"Service 2"]
[null,null,null,null,null,null,null,null,"__",null,null,"Path","get_irsdb_entity"]
[null,null,null,null,null,null,null,null,"__",null,null,"Param 1","code"]
[null,null,null,null,null,null,null,null,"__",null,null,"Value 1",{"$f":"selected_naic_code","v":0}]
[null,null,null,null,null,null,null,null,"__",null,null,"Full URL",{"$f":"CONCATENATE(service_host,service2_path,\"?\",M20,\"=\",M21)","v":"https://lrsc.pde.spratingsvpc.com/icm-du-api-prod/get_irsdb_entity?code=0"}]
[null,null,null,null,null,null,null,null,"__"]
[null,null,null,null,null,null,null,null,"__"]
[null,null,null,null,null,null,null,null,"__"]
[null,null,null,null,null,null,null,null,"__"]
[null,null,null,null,null,null,null,null,"__"]
[null,null,null,null,null,null,null,null,"__"]
[null,null,null,null,null,null,null,null,"__"]
[null,null,null,null,null,null,null,null,"__"]
[null,null,null,null,null,null,null,null,"__"]
[null,null,null,null,null,null,null,null,"__"]
[null,null,null,null,null,null,null,null,"__"]
[null,null,null,null,null,null,null,null,"__"]
[null,null,null,null,null,null,null,null,"__"]
[null,null,null,null,null,null,null,null,"__"]
[null,null,null,null,null,null,null,null,"__"]
[null,null,null,null,null,null,null,null,"__"]
[null,null,null,null,null,null,null,null,"__"]
[null,null,null,null,null,null,null,null,"__"]
[null,null,null,null,null,null,null,null,"__"]
[null,null,null,null,null,null,null,null,"__"]
[null,null,null,null,null,null,null,null,"__"]
[null,null,null,null,null,null,null,null,"__"]
[null,null,null,null,null,null,null,null,"__"]
[null,null,null,null,null,null,null,null,"__"]
[null,null,null,null,null,null,null,null,"__"]
[null,null,null,null,null,null,null,null,"__"]
[null,null,null,null,null,null,null,null,"__"]
[null,null,null,null,null,null,null,null,"__"]
[null,null,null,null,null,null,null,null,"__"]
[null,null,null,null,null,null,null,null,"__"]
[null,null,null,null,null,null,null,null,"__"]
[null,null,null,null,null,null,null,null,"__"]
[null,null,null,null,null,null,null,null,"__"]
[null,null,null,null,null,null,null,null,"__"]
[null,null,null,null,null,null,null,null,"__"]
[null,null,null,null,null,null,null,null,"__"]
[null,null,null,null,null,null,null,null,"__"]
[null,null,null,null,null,null,null,null,"__"]
[null,null,null,null,null,null,null,null,"__"]
[null,null,null,null,null,null,null,null,"__"]
[null,null,null,null,null,null,null,null,"__"]
[null,null,null,null,null,null,null,null,"__"]
[null,null,null,null,null,null,null,null,"__"]
[null,null,null,null,null,null,null,null,"__"]
[null,null,null,null,null,null,null,null,"__"]
[null,null,null,null,null,null,null,null,"__"]
[null,null,null,null,null,null,null,null,{"$f":"CONCATENATE(A69,\"_\",B69,\"_\",C69)","v":"__"}]
[null,null,null,null,null,null,null,null,"__"]
[null,null,null,null,null,null,null,null,"__"]
[null,null,null,null,null,null,null,null,"__"]
[null,null,null,null,null,null,null,null,"__"]
[null,null,null,null,null,null,null,null,"__"]
[null,null,null,null,null,null,null,null,"__"]
[null,null,null,null,null,null,null,null,"__"]
[null,null,null,null,null,null,null,null,"__"]
[null,null,null,null,null,null,null,null,"__"]
[null,null,null,null,null,null,null,null,"__"]
[null,null,null,null,null,null,null,null,"__"]
[null,null,null,null,null,null,null,null,"__"]
[null,null,null,null,null,null,null,null,"__"]
[null,null,null,null,null,null,null,null,"__"]
[null,null,null,null,null,null,null,null,"__"]
[null,null,null,null,null,null,null,null,"__"]
[null,null,null,null,null,null,null,null,"__"]
[null,null,null,null,null,null,null,null,"__"]
[null,null,null,null,null,null,null,null,"__"]
[null,null,null,null,null,null,null,null,"__"]
[null,null,null,null,null,null,null,null,"__"]
[null,null,null,null,null,null,null,null,"__"]
[null,null,null,null,null,null,null,null,"__"]
[null,null,null,null,null,null,null,null,"__"]
[null,null,null,null,null,null,null,null,"__"]
[null,null,null,null,null,null,null,null,"__"]
[null,null,null,null,null,null,null,null,"__"]
[null,null,null,null,null,null,null,null,"__"]
[null,null,null,null,null,null,null,null,"__"]
[null,null,null,null,null,null,null,null,"__"]
[null,null,null,null,null,null,null,null,"__"]
[null,null,null,null,null,null,null,null,"__"]
[null,null,null,null,null,null,null,null,"__"]
[null,null,null,null,null,null,null,null,"__"]
[null,null,null,null,null,null,null,null,"__"]
[null,null,null,null,null,null,null,null,"__"]
[null,null,null,null,null,null,null,null,"__"]
[null,null,null,null,null,null,null,null,"__"]
[null,null,null,null,null,null,null,null,"__"]
[null,null,null,null,null,null,null,null,"__"]
[null,null,null,null,null,null,null,null,"__"]
[null,null,null,null,null,null,null,null,"__"]
[null,null,null,null,null,null,null,null,"__"]
[null,null,null,null,null,null,null,null,"__"]
[null,null,null,null,null,null,null,null,"__"]
[null,null,null,null,null,null,null,null,"__"]
[null,null,null,null,null,null,null,null,"__"]
[null,null,null,null,null,null,null,null,"__"]
[null,null,null,null,null,null,null,null,"__"]
[null,null,null,null,null,null,null,null,"__"]
[null,null,null,null,null,null,null,null,"__"]
[null,null,null,null,null,null,null,null,"__"]
[null,null,null,null,null,null,null,null,"__"]
[null,null,null,null,null,null,null,null,"__"]
[null,null,null,null,null,null,null,null,"__"]
[null,null,null,null,null,null,null,null,"__"]
[null,null,null,null,null,null,null,null,"__"]
[null,null,null,null,null,null,null,null,"__"]
[null,null,null,null,null,null,null,null,"__"]
[null,null,null,null,null,null,null,null,"__"]
[null,null,null,null,null,null,null,null,"__"]
[null,null,null,null,null,null,null,null,"__"]
[null,null,null,null,null,null,null,null,"__"]
[null,null,null,null,null,null,null,null,{"$f":"CONCATENATE(A133,\"_\",B133,\"_\",C133)","v":"__"}]
[null,null,null,null,null,null,null,null,"__"]
[null,null,null,null,null,null,null,null,"__"]
[null,null,null,null,null,null,null,null,"__"]
[null,null,null,null,null,null,null,null,"__"]
[null,null,null,null,null,null,null,null,"__"]
[null,null,null,null,null,null,null,null,"__"]
[null,null,null,null,null,null,null,null,"__"]
[null,null,null,null,null,null,null,null,"__"]
[null,null,null,null,null,null,null,null,"__"]
[null,null,null,null,null,null,null,null,"__"]
[null,null,null,null,null,null,null,null,"__"]
[null,null,null,null,null,null,null,null,"__"]
[null,null,null,null,null,null,null,null,"__"]
[null,null,null,null,null,null,null,null,"__"]
[null,null,null,null,null,null,null,null,"__"]
[null,null,null,null,null,null,null,null,"__"]
[null,null,null,null,null,null,null,null,"__"]
[null,null,null,null,null,null,null,null,"__"]
[null,null,null,null,null,null,null,null,"__"]
[null,null,null,null,null,null,null,null,"__"]
[null,null,null,null,null,null,null,null,"__"]
[null,null,null,null,null,null,null,null,"__"]
[null,null,null,null,null,null,null,null,"__"]
[null,null,null,null,null,null,null,null,"__"]
[null,null,null,null,null,null,null,null,"__"]
[null,null,null,null,null,null,null,null,"__"]
[null,null,null,null,null,null,null,null,"__"]
[null,null,null,null,null,null,null,null,"__"]
[null,null,null,null,null,null,null,null,"__"]
[null,null,null,null,null,null,null,null,"__"]
[null,null,null,null,null,null,null,null,"__"]
[null,null,null,null,null,null,null,null,"__"]
[null,null,null,null,null,null,null,null,"__"]
[null,null,null,null,null,null,null,null,"__"]
[null,null,null,null,null,null,null,null,"__"]
[null,null,null,null,null,null,null,null,"__"]
[null,null,null,null,null,null,null,null,"__"]
[null,null,null,null,null,null,null,null,"__"]
[null,null,null,null,null,null,null,null,"__"]
[null,null,null,null,null,null,null,null,"__"]
[null,null,null,null,null,null,null,null,"__"]
[null,null,null,null,null,null,null,null,"__"]
[null,null,null,null,null,null,null,null,"__"]
[null,null,null,null,null,null,null,null,"__"]
[null,null,null,null,null,null,null,null,"__"]
[null,null,null,null,null,null,null,null,"__"]
[null,null,null,null,null,null,null,null,"__"]
[null,null,null,null,null,null,null,null,"__"]
[null,null,null,null,null,null,null,null,"__"]
[null,null,null,null,null,null,null,null,"__"]
[null,null,null,null,null,null,null,null,"__"]
[null,null,null,null,null,null,null,null,"__"]
[null,null,null,null,null,null,null,null,"__"]
[null,null,null,null,null,null,null,null,"__"]
[null,null,null,null,null,null,null,null,"__"]
[null,null,null,null,null,null,null,null,"__"]
[null,null,null,null,null,null,null,null,"__"]
[null,null,null,null,null,null,null,null,"__"]
[null,null,null,null,null,null,null,null,"__"]
[null,null,null,null,null,null,null,null,"__"]
[null,null,null,null,null,null,null,null,"__"]
[null,null,null,null,null,null,null,null,"__"]
[null,null,null,null,null,null,null,null,"__"]
[null,null,null,null,null,null,null,null,{"$f":"CONCATENATE(A197,\"_\",B197,\"_\",C197)","v":"__"}]
[null,null,null,null,null,null,null,null,"__"]
[null,null,null,null,null,null,null,null,"__"]
[null,null,null,null,null,null,null,null,"__"]
[null,null,null,null,null,null,null,null,"__"]
[null,null,null,null,null,null,null,null,"__"]
[null,null,null,null,null,null,null,null,"__"]
[null,null,null,null,null,null,null,null,"__"]
[null,null,null,null,null,null,null,null,"__"]
[null,null,null,null,null,null,null,null,"__"]
[null,null,null,null,null,null,null,null,"__"]
[null,null,null,null,null,null,null,null,"__"]
[null,null,null,null,null,null,null,null,"__"]
[null,null,null,null,null,null,null,null,"__"]
[null,null,null,null,null,null,null,null,"__"]
[null,null,null,null,null,null,null,null,"__"]
[null,null,null,null,null,null,null,null,"__"]
[null,null,null,null,null,null,null,null,"__"]
[null,null,null,null,null,null,null,null,"__"]
[null,null,null,null,null,null,null,null,"__"]
[null,null,null,null,null,null,null,null,"__"]
[null,null,null,null,null,null,null,null,"__"]
[null,null,null,null,null,null,null,null,"__"]
[null,null,null,null,null,null,null,null,"__"]
[null,null,null,null,null,null,null,null,"__"]
[null,null,null,null,null,null,null,null,"__"]
[null,null,null,null,null,null,null,null,"__"]
[null,null,null,null,null,null,null,null,"__"]
[null,null,null,null,null,null,null,null,"__"]
[null,null,null,null,null,null,null,null,"__"]
[null,null,null,null,null,null,null,null,"__"]
[null,null,null,null,null,null,null,null,"__"]
[null,null,null,null,null,null,null,null,"__"]
[null,null,null,null,null,null,null,null,"__"]
[null,null,null,null,null,null,null,null,"__"]
[null,null,null,null,null,null,null,null,"__"]
[null,null,null,null,null,null,null,null,"__"]
[null,null,null,null,null,null,null,null,"__"]
[null,null,null,null,null,null,null,null,"__"]
[null,null,null,null,null,null,null,null,"__"]
[null,null,null,null,null,null,null,null,"__"]
[null,null,null,null,null,null,null,null,"__"]
[null,null,null,null,null,null,null,null,"__"]
[null,null,null,null,null,null,null,null,"__"]
[null,null,null,null,null,null,null,null,"__"]
[null,null,null,null,null,null,null,null,"__"]
[null,null,null,null,null,null,null,null,"__"]
[null,null,null,null,null,null,null,null,"__"]
[null,null,null,null,null,null,null,null,"__"]
[null,null,null,null,null,null,null,null,"__"]
[null,null,null,null,null,null,null,null,"__"]
[null,null,null,null,null,null,null,null,"__"]
[null,null,null,null,null,null,null,null,"__"]
[null,null,null,null,null,null,null,null,"__"]
[null,null,null,null,null,null,null,null,"__"]
[null,null,null,null,null,null,null,null,"__"]
[null,null,null,null,null,null,null,null,"__"]
[null,null,null,null,null,null,null,null,"__"]
[null,null,null,null,null,null,null,null,"__"]
[null,null,null,null,null,null,null,null,"__"]
[null,null,null,null,null,null,null,null,"__"]
[null,null,null,null,null,null,null,null,"__"]
[null,null,null,null,null,null,null,null,"__"]
[null,null,null,null,null,null,null,null,"__"]
[null,null,null,null,null,null,null,null,{"$f":"CONCATENATE(A261,\"_\",B261,\"_\",C261)","v":"__"}]
[null,null,null,null,null,null,null,null,"__"]
[null,null,null,null,null,null,null,null,"__"]
[null,null,null,null,null,null,null,null,"__"]
[null,null,null,null,null,null,null,null,"__"]
[null,null,null,null,null,null,null,null,"__"]
[null,null,null,null,null,null,null,null,"__"]
[null,null,null,null,null,null,null,null,"__"]
[null,null,null,null,null,null,null,null,"__"]
[null,null,null,null,null,null,null,null,"__"]
[null,null,null,null,null,null,null,null,"__"]
[null,null,null,null,null,null,null,null,"__"]
[null,null,null,null,null,null,null,null,"__"]
[null,null,null,null,null,null,null,null,"__"]
[null,null,null,null,null,null,null,null,"__"]
[null,null,null,null,null,null,null,null,"__"]
[null,null,null,null,null,null,null,null,"__"]
[null,null,null,null,null,null,null,null,"__"]
[null,null,null,null,null,null,null,null,"__"]
[null,null,null,null,null,null,null,null,"__"]
[null,null,null,null,null,null,null,null,"__"]
[null,null,null,null,null,null,null,null,"__"]
[null,null,null,null,null,null,null,null,"__"]
[null,null,null,null,null,null,null,null,"__"]
[null,null,null,null,null,null,null,null,"__"]
[null,null,null,null,null,null,null,null,"__"]
[null,null,null,null,null,null,null,null,"__"]
[null,null,null,null,null,null,null,null,"__"]
[null,null,null,null,null,null,null,null,"__"]
[null,null,null,null,null,null,null,null,"__"]
[null,null,null,null,null,null,null,null,"__"]
[null,null,null,null,null,null,null,null,"__"]
[null,null,null,null,null,null,null,null,"__"]
[null,null,null,null,null,null,null,null,"__"]
[null,null,null,null,null,null,null,null,"__"]
[null,null,null,null,null,null,null,null,"__"]
[null,null,null,null,null,null,null,null,"__"]
[null,null,null,null,null,null,null,null,"__"]
[null,null,null,null,null,null,null,null,"__"]
[null,null,null,null,null,null,null,null,"__"]
[null,null,null,null,null,null,null,null,"__"]
[null,null,null,null,null,null,null,null,"__"]
[null,null,null,null,null,null,null,null,"__"]
[null,null,null,null,null,null,null,null,"__"]
[null,null,null,null,null,null,null,null,"__"]
[null,null,null,null,null,null,null,null,"__"]
[null,null,null,null,null,null,null,null,"__"]
[null,null,null,null,null,null,null,null,"__"]
[null,null,null,null,null,null,null,null,"__"]
[null,null,null,null,null,null,null,null,"__"]
[null,null,null,null,null,null,null,null,"__"]
[null,null,null,null,null,null,null,null,"__"]
[null,null,null,null,null,null,null,null,"__"]
[null,null,null,null,null,null,null,null,"__"]
[null,null,null,null,null,null,null,null,"__"]
[null,null,null,null,null,null,null,null,"__"]
[null,null,null,null,null,null,null,null,"__"]
[null,null,null,null,null,null,null,null,"__"]
[null,null,null,null,null,null,null,null,"__"]
[null,null,null,null,null,null,null,null,"__"]
[null,null,null,null,null,null,null,null,"__"]
[null,null,null,null,null,null,null,null,"__"]
[null,null,null,null,null,null,null,null,"__"]
[null,null,null,null,null,null,null,null,"__"]
[null,null,null,null,null,null,null,null,{"$f":"CONCATENATE(A325,\"_\",B325,\"_\",C325)","v":"__"}]
[null,null,null,null,null,null,null,null,"__"]
[null,null,null,null,null,null,null,null,"__"]
[null,null,null,null,null,null,null,null,"__"]
[null,null,null,null,null,null,null,null,"__"]
[null,null,null,null,null,null,null,null,"__"]
[null,null,null,null,null,null,null,null,"__"]
[null,null,null,null,null,null,null,null,"__"]
[null,null,null,null,null,null,null,null,"__"]
[null,null,null,null,null,null,null,null,"__"]
[null,null,null,null,null,null,null,null,"__"]
[null,null,null,null,null,null,null,null,"__"]
[null,null,null,null,null,null,null,null,"__"]
[null,null,null,null,null,null,null,null,"__"]
[null,null,null,null,null,null,null,null,"__"]
[null,null,null,null,null,null,null,null,"__"]
[null,null,null,null,null,null,null,null,"__"]
[null,null,null,null,null,null,null,null,"__"]
[null,null,null,null,null,null,null,null,"__"]
[null,null,null,null,null,null,null,null,"__"]
[null,null,null,null,null,null,null,null,"__"]
[null,null,null,null,null,null,null,null,"__"]
[null,null,null,null,null,null,null,null,"__"]
[null,null,null,null,null,null,null,null,"__"]
[null,null,null,null,null,null,null,null,"__"]
[null,null,null,null,null,null,null,null,"__"]
[null,null,null,null,null,null,null,null,"__"]
[null,null,null,null,null,null,null,null,"__"]
[null,null,null,null,null,null,null,null,"__"]
[null,null,null,null,null,null,null,null,"__"]
[null,null,null,null,null,null,null,null,"__"]
[null,null,null,null,null,null,null,null,"__"]
[null,null,null,null,null,null,null,null,"__"]
[null,null,null,null,null,null,null,null,"__"]
[null,null,null,null,null,null,null,null,"__"]
[null,null,null,null,null,null,null,null,"__"]
[null,null,null,null,null,null,null,null,"__"]
[null,null,null,null,null,null,null,null,"__"]
[null,null,null,null,null,null,null,null,"__"]
[null,null,null,null,null,null,null,null,"__"]
[null,null,null,null,null,null,null,null,"__"]
[null,null,null,null,null,null,null,null,"__"]
[null,null,null,null,null,null,null,null,"__"]
[null,null,null,null,null,null,null,null,"__"]
[null,null,null,null,null,null,null,null,"__"]
[null,null,null,null,null,null,null,null,"__"]
[null,null,null,null,null,null,null,null,"__"]
[null,null,null,null,null,null,null,null,"__"]
[null,null,null,null,null,null,null,null,"__"]
[null,null,null,null,null,null,null,null,"__"]
[null,null,null,null,null,null,null,null,"__"]
[null,null,null,null,null,null,null,null,"__"]
[null,null,null,null,null,null,null,null,"__"]
[null,null,null,null,null,null,null,null,"__"]
[null,null,null,null,null,null,null,null,"__"]
[null,null,null,null,null,null,null,null,"__"]
[null,null,null,null,null,null,null,null,"__"]
[null,null,null,null,null,null,null,null,"__"]
[null,null,null,null,null,null,null,null,"__"]
[null,null,null,null,null,null,null,null,"__"]
[null,null,null,null,null,null,null,null,"__"]
[null,null,null,null,null,null,null,null,"__"]
[null,null,null,null,null,null,null,null,"__"]
[null,null,null,null,null,null,null,null,"__"]
[null,null,null,null,null,null,null,null,{"$f":"CONCATENATE(A389,\"_\",B389,\"_\",C389)","v":"__"}]
[null,null,null,null,null,null,null,null,"__"]
[null,null,null,null,null,null,null,null,"__"]
[null,null,null,null,null,null,null,null,"__"]
[null,null,null,null,null,null,null,null,"__"]
[null,null,null,null,null,null,null,null,"__"]
[null,null,null,null,null,null,null,null,"__"]
[null,null,null,null,null,null,null,null,"__"]
[null,null,null,null,null,null,null,null,"__"]
[null,null,null,null,null,null,null,null,"__"]
[null,null,null,null,null,null,null,null,"__"]
[null,null,null,null,null,null,null,null,"__"]
[null,null,null,null,null,null,null,null,"__"]
[null,null,null,null,null,null,null,null,"__"]
[null,null,null,null,null,null,null,null,"__"]
[null,null,null,null,null,null,null,null,"__"]
[null,null,null,null,null,null,null,null,"__"]
[null,null,null,null,null,null,null,null,"__"]
[null,null,null,null,null,null,null,null,"__"]
[null,null,null,null,null,null,null,null,"__"]
[null,null,null,null,null,null,null,null,"__"]
[null,null,null,null,null,null,null,null,"__"]
[null,null,null,null,null,null,null,null,"__"]
[null,null,null,null,null,null,null,null,"__"]
[null,null,null,null,null,null,null,null,"__"]
[null,null,null,null,null,null,null,null,"__"]
[null,null,null,null,null,null,null,null,"__"]
[null,null,null,null,null,null,null,null,"__"]
[null,null,null,null,null,null,null,null,"__"]
[null,null,null,null,null,null,null,null,"__"]
[null,null,null,null,null,null,null,null,"__"]
[null,null,null,null,null,null,null,null,"__"]
[null,null,null,null,null,null,null,null,"__"]
[null,null,null,null,null,null,null,null,"__"]
[null,null,null,null,null,null,null,null,"__"]
[null,null,null,null,null,null,null,null,"__"]
[null,null,null,null,null,null,null,null,"__"]
[null,null,null,null,null,null,null,null,"__"]
[null,null,null,null,null,null,null,null,"__"]
[null,null,null,null,null,null,null,null,"__"]
[null,null,null,null,null,null,null,null,"__"]
[null,null,null,null,null,null,null,null,"__"]
[null,null,null,null,null,null,null,null,"__"]
[null,null,null,null,null,null,null,null,"__"]
[null,null,null,null,null,null,null,null,"__"]
[null,null,null,null,null,null,null,null,"__"]
[null,null,null,null,null,null,null,null,"__"]
[null,null,null,null,null,null,null,null,"__"]
[null,null,null,null,null,null,null,null,"__"]
[null,null,null,null,null,null,null,null,"__"]
[null,null,null,null,null,null,null,null,"__"]
[null,null,null,null,null,null,null,null,"__"]
[null,null,null,null,null,null,null,null,"__"]
[null,null,null,null,null,null,null,null,"__"]
[null,null,null,null,null,null,null,null,"__"]
[null,null,null,null,null,null,null,null,"__"]
[null,null,null,null,null,null,null,null,"__"]
[null,null,null,null,null,null,null,null,"__"]
[null,null,null,null,null,null,null,null,"__"]
[null,null,null,null,null,null,null,null,"__"]
[null,null,null,null,null,null,null,null,"__"]
[null,null,null,null,null,null,null,null,"__"]
[null,null,null,null,null,null,null,null,"__"]
[null,null,null,null,null,null,null,null,"__"]
[null,null,null,null,null,null,null,null,{"$f":"CONCATENATE(A453,\"_\",B453,\"_\",C453)","v":"__"}]
[null,null,null,null,null,null,null,null,"__"]
[null,null,null,null,null,null,null,null,"__"]
[null,null,null,null,null,null,null,null,"__"]
[null,null,null,null,null,null,null,null,"__"]
[null,null,null,null,null,null,null,null,"__"]
[null,null,null,null,null,null,null,null,"__"]
[null,null,null,null,null,null,null,null,"__"]
[null,null,null,null,null,null,null,null,"__"]
[null,null,null,null,null,null,null,null,"__"]
[null,null,null,null,null,null,null,null,"__"]
[null,null,null,null,null,null,null,null,"__"]
[null,null,null,null,null,null,null,null,"__"]
[null,null,null,null,null,null,null,null,"__"]
[null,null,null,null,null,null,null,null,"__"]
[null,null,null,null,null,null,null,null,"__"]
[null,null,null,null,null,null,null,null,"__"]
[null,null,null,null,null,null,null,null,"__"]
[null,null,null,null,null,null,null,null,"__"]
[null,null,null,null,null,null,null,null,"__"]
[null,null,null,null,null,null,null,null,"__"]
[null,null,null,null,null,null,null,null,"__"]
[null,null,null,null,null,null,null,null,"__"]
[null,null,null,null,null,null,null,null,"__"]
[null,null,null,null,null,null,null,null,"__"]
[null,null,null,null,null,null,null,null,"__"]
[null,null,null,null,null,null,null,null,"__"]
[null,null,null,null,null,null,null,null,"__"]
[null,null,null,null,null,null,null,null,"__"]
[null,null,null,null,null,null,null,null,"__"]
[null,null,null,null,null,null,null,null,"__"]
[null,null,null,null,null,null,null,null,"__"]
[null,null,null,null,null,null,null,null,"__"]
[null,null,null,null,null,null,null,null,"__"]
[null,null,null,null,null,null,null,null,"__"]
[null,null,null,null,null,null,null,null,"__"]
[null,null,null,null,null,null,null,null,"__"]
[null,null,null,null,null,null,null,null,"__"]
[null,null,null,null,null,null,null,null,"__"]
[null,null,null,null,null,null,null,null,"__"]
[null,null,null,null,null,null,null,null,"__"]
[null,null,null,null,null,null,null,null,"__"]
[null,null,null,null,null,null,null,null,"__"]
[null,null,null,null,null,null,null,null,"__"]
[null,null,null,null,null,null,null,null,"__"]
[null,null,null,null,null,null,null,null,"__"]
[null,null,null,null,null,null,null,null,"__"]
[null,null,null,null,null,null,null,null,"__"]
[null,null,null,null,null,null,null,null,"__"]
[null,null,null,null,null,null,null,null,"__"]
[null,null,null,null,null,null,null,null,"__"]
[null,null,null,null,null,null,null,null,"__"]
[null,null,null,null,null,null,null,null,"__"]
[null,null,null,null,null,null,null,null,"__"]
[null,null,null,null,null,null,null,null,"__"]
[null,null,null,null,null,null,null,null,"__"]
[null,null,null,null,null,null,null,null,"__"]
[null,null,null,null,null,null,null,null,"__"]
[null,null,null,null,null,null,null,null,"__"]
[null,null,null,null,null,null,null,null,"__"]
[null,null,null,null,null,null,null,null,"__"]
[null,null,null,null,null,null,null,null,"__"]
[null,null,null,null,null,null,null,null,"__"]
[null,null,null,null,null,null,null,null,"__"]
[null,null,null,null,null,null,null,null,{"$f":"CONCATENATE(A517,\"_\",B517,\"_\",C517)","v":"__"}]
[null,null,null,null,null,null,null,null,"__"]
[null,null,null,null,null,null,null,null,"__"]
[null,null,null,null,null,null,null,null,"__"]
[null,null,null,null,null,null,null,null,"__"]
[null,null,null,null,null,null,null,null,"__"]
[null,null,null,null,null,null,null,null,"__"]
[null,null,null,null,null,null,null,null,"__"]
[null,null,null,null,null,null,null,null,"__"]
[null,null,null,null,null,null,null,null,"__"]
[null,null,null,null,null,null,null,null,"__"]
[null,null,null,null,null,null,null,null,"__"]
[null,null,null,null,null,null,null,null,"__"]
[null,null,null,null,null,null,null,null,"__"]
[null,null,null,null,null,null,null,null,"__"]
[null,null,null,null,null,null,null,null,"__"]
[null,null,null,null,null,null,null,null,"__"]
[null,null,null,null,null,null,null,null,"__"]
[null,null,null,null,null,null,null,null,"__"]
[null,null,null,null,null,null,null,null,"__"]
[null,null,null,null,null,null,null,null,"__"]
[null,null,null,null,null,null,null,null,"__"]
[null,null,null,null,null,null,null,null,"__"]
[null,null,null,null,null,null,null,null,"__"]
[null,null,null,null,null,null,null,null,"__"]
[null,null,null,null,null,null,null,null,"__"]
[null,null,null,null,null,null,null,null,"__"]
[null,null,null,null,null,null,null,null,"__"]
[null,null,null,null,null,null,null,null,"__"]
[null,null,null,null,null,null,null,null,"__"]
[null,null,null,null,null,null,null,null,"__"]
[null,null,null,null,null,null,null,null,"__"]
[null,null,null,null,null,null,null,null,"__"]
[null,null,null,null,null,null,null,null,"__"]
[null,null,null,null,null,null,null,null,"__"]
[null,null,null,null,null,null,null,null,"__"]
[null,null,null,null,null,null,null,null,"__"]
[null,null,null,null,null,null,null,null,"__"]
[null,null,null,null,null,null,null,null,"__"]
[null,null,null,null,null,null,null,null,"__"]
[null,null,null,null,null,null,null,null,"__"]
[null,null,null,null,null,null,null,null,"__"]
[null,null,null,null,null,null,null,null,"__"]
[null,null,null,null,null,null,null,null,"__"]
[null,null,null,null,null,null,null,null,"__"]
[null,null,null,null,null,null,null,null,"__"]
[null,null,null,null,null,null,null,null,"__"]
[null,null,null,null,null,null,null,null,"__"]
[null,null,null,null,null,null,null,null,"__"]
[null,null,null,null,null,null,null,null,"__"]
[null,null,null,null,null,null,null,null,"__"]
[null,null,null,null,null,null,null,null,"__"]
[null,null,null,null,null,null,null,null,"__"]
[null,null,null,null,null,null,null,null,"__"]
[null,null,null,null,null,null,null,null,"__"]
[null,null,null,null,null,null,null,null,"__"]
[null,null,null,null,null,null,null,null,"__"]
[null,null,null,null,null,null,null,null,"__"]
[null,null,null,null,null,null,null,null,"__"]
[null,null,null,null,null,null,null,null,"__"]
[null,null,null,null,null,null,null,null,"__"]
[null,null,null,null,null,null,null,null,"__"]
[null,null,null,null,null,null,null,null,"__"]
[null,null,null,null,null,null,null,null,"__"]
[null,null,null,null,null,null,null,null,{"$f":"CONCATENATE(A581,\"_\",B581,\"_\",C581)","v":"__"}]
[null,null,null,null,null,null,null,null,"__"]
[null,null,null,null,null,null,null,null,"__"]
[null,null,null,null,null,null,null,null,"__"]
[null,null,null,null,null,null,null,null,"__"]
[null,null,null,null,null,null,null,null,"__"]
[null,null,null,null,null,null,null,null,"__"]
[null,null,null,null,null,null,null,null,"__"]
[null,null,null,null,null,null,null,null,"__"]
[null,null,null,null,null,null,null,null,"__"]
[null,null,null,null,null,null,null,null,"__"]
[null,null,null,null,null,null,null,null,"__"]
[null,null,null,null,null,null,null,null,"__"]
[null,null,null,null,null,null,null,null,"__"]
[null,null,null,null,null,null,null,null,"__"]
[null,null,null,null,null,null,null,null,"__"]
[null,null,null,null,null,null,null,null,"__"]
[null,null,null,null,null,null,null,null,"__"]
[null,null,null,null,null,null,null,null,"__"]
[null,null,null,null,null,null,null,null,"__"]
[null,null,null,null,null,null,null,null,"__"]
[null,null,null,null,null,null,null,null,"__"]
[null,null,null,null,null,null,null,null,"__"]
[null,null,null,null,null,null,null,null,"__"]
[null,null,null,null,null,null,null,null,"__"]
[null,null,null,null,null,null,null,null,"__"]
[null,null,null,null,null,null,null,null,"__"]
[null,null,null,null,null,null,null,null,"__"]
[null,null,null,null,null,null,null,null,"__"]
[null,null,null,null,null,null,null,null,"__"]
[null,null,null,null,null,null,null,null,"__"]
[null,null,null,null,null,null,null,null,"__"]
[null,null,null,null,null,null,null,null,"__"]
[null,null,null,null,null,null,null,null,"__"]
[null,null,null,null,null,null,null,null,"__"]
[null,null,null,null,null,null,null,null,"__"]
[null,null,null,null,null,null,null,null,"__"]
[null,null,null,null,null,null,null,null,"__"]
[null,null,null,null,null,null,null,null,"__"]
[null,null,null,null,null,null,null,null,"__"]
[null,null,null,null,null,null,null,null,"__"]
[null,null,null,null,null,null,null,null,"__"]
[null,null,null,null,null,null,null,null,"__"]
[null,null,null,null,null,null,null,null,"__"]
[null,null,null,null,null,null,null,null,"__"]
[null,null,null,null,null,null,null,null,"__"]
[null,null,null,null,null,null,null,null,"__"]
[null,null,null,null,null,null,null,null,"__"]
[null,null,null,null,null,null,null,null,"__"]
[null,null,null,null,null,null,null,null,"__"]
[null,null,null,null,null,null,null,null,"__"]
[null,null,null,null,null,null,null,null,"__"]
[null,null,null,null,null,null,null,null,"__"]
[null,null,null,null,null,null,null,null,"__"]
[null,null,null,null,null,null,null,null,"__"]
[null,null,null,null,null,null,null,null,"__"]
[null,null,null,null,null,null,null,null,"__"]
[null,null,null,null,null,null,null,null,"__"]
[null,null,null,null,null,null,null,null,"__"]
[null,null,null,null,null,null,null,null,"__"]
[null,null,null,null,null,null,null,null,"__"]
[null,null,null,null,null,null,null,null,"__"]
[null,null,null,null,null,null,null,null,"__"]
[null,null,null,null,null,null,null,null,"__"]
[null,null,null,null,null,null,null,null,{"$f":"CONCATENATE(A645,\"_\",B645,\"_\",C645)","v":"__"}]
[null,null,null,null,null,null,null,null,"__"]
[null,null,null,null,null,null,null,null,"__"]
[null,null,null,null,null,null,null,null,"__"]
[null,null,null,null,null,null,null,null,"__"]
[null,null,null,null,null,null,null,null,"__"]
[null,null,null,null,null,null,null,null,"__"]
[null,null,null,null,null,null,null,null,"__"]
[null,null,null,null,null,null,null,null,"__"]
[null,null,null,null,null,null,null,null,"__"]
[null,null,null,null,null,null,null,null,"__"]
[null,null,null,null,null,null,null,null,"__"]
[null,null,null,null,null,null,null,null,"__"]
[null,null,null,null,null,null,null,null,"__"]
[null,null,null,null,null,null,null,null,"__"]
[null,null,null,null,null,null,null,null,"__"]
[null,null,null,null,null,null,null,null,"__"]
[null,null,null,null,null,null,null,null,"__"]
[null,null,null,null,null,null,null,null,"__"]
[null,null,null,null,null,null,null,null,"__"]
[null,null,null,null,null,null,null,null,"__"]
[null,null,null,null,null,null,null,null,"__"]
[null,null,null,null,null,null,null,null,"__"]
[null,null,null,null,null,null,null,null,"__"]
[null,null,null,null,null,null,null,null,"__"]
[null,null,null,null,null,null,null,null,"__"]
[null,null,null,null,null,null,null,null,"__"]
[null,null,null,null,null,null,null,null,"__"]
[null,null,null,null,null,null,null,null,"__"]
[null,null,null,null,null,null,null,null,"__"]
[null,null,null,null,null,null,null,null,"__"]
[null,null,null,null,null,null,null,null,"__"]
[null,null,null,null,null,null,null,null,"__"]
[null,null,null,null,null,null,null,null,"__"]
[null,null,null,null,null,null,null,null,"__"]
[null,null,null,null,null,null,null,null,"__"]
[null,null,null,null,null,null,null,null,"__"]
[null,null,null,null,null,null,null,null,"__"]
[null,null,null,null,null,null,null,null,"__"]
[null,null,null,null,null,null,null,null,"__"]
[null,null,null,null,null,null,null,null,"__"]
[null,null,null,null,null,null,null,null,"__"]
[null,null,null,null,null,null,null,null,"__"]
[null,null,null,null,null,null,null,null,"__"]
[null,null,null,null,null,null,null,null,"__"]
[null,null,null,null,null,null,null,null,"__"]
[null,null,null,null,null,null,null,null,"__"]
[null,null,null,null,null,null,null,null,"__"]
[null,null,null,null,null,null,null,null,"__"]
[null,null,null,null,null,null,null,null,"__"]
[null,null,null,null,null,null,null,null,"__"]
[null,null,null,null,null,null,null,null,"__"]
[null,null,null,null,null,null,null,null,"__"]
[null,null,null,null,null,null,null,null,"__"]
[null,null,null,null,null,null,null,null,"__"]
[null,null,null,null,null,null,null,null,"__"]
[null,null,null,null,null,null,null,null,"__"]
[null,null,null,null,null,null,null,null,"__"]
[null,null,null,null,null,null,null,null,"__"]
[null,null,null,null,null,null,null,null,"__"]
[null,null,null,null,null,null,null,null,"__"]
[null,null,null,null,null,null,null,null,"__"]
[null,null,null,null,null,null,null,null,"__"]
[null,null,null,null,null,null,null,null,"__"]
[null,null,null,null,null,null,null,null,{"$f":"CONCATENATE(A709,\"_\",B709,\"_\",C709)","v":"__"}]
[null,null,null,null,null,null,null,null,"__"]
[null,null,null,null,null,null,null,null,"__"]
[null,null,null,null,null,null,null,null,"__"]
[null,null,null,null,null,null,null,null,"__"]
[null,null,null,null,null,null,null,null,"__"]
[null,null,null,null,null,null,null,null,"__"]
[null,null,null,null,null,null,null,null,"__"]
[null,null,null,null,null,null,null,null,"__"]
[null,null,null,null,null,null,null,null,"__"]
[null,null,null,null,null,null,null,null,"__"]
[null,null,null,null,null,null,null,null,"__"]
[null,null,null,null,null,null,null,null,"__"]
[null,null,null,null,null,null,null,null,"__"]
[null,null,null,null,null,null,null,null,"__"]
[null,null,null,null,null,null,null,null,"__"]
[null,null,null,null,null,null,null,null,"__"]
[null,null,null,null,null,null,null,null,"__"]
[null,null,null,null,null,null,null,null,"__"]
[null,null,null,null,null,null,null,null,"__"]
[null,null,null,null,null,null,null,null,"__"]
[null,null,null,null,null,null,null,null,"__"]
[null,null,null,null,null,null,null,null,"__"]
[null,null,null,null,null,null,null,null,"__"]
[null,null,null,null,null,null,null,null,"__"]
[null,null,null,null,null,null,null,null,"__"]
[null,null,null,null,null,null,null,null,"__"]
[null,null,null,null,null,null,null,null,"__"]
[null,null,null,null,null,null,null,null,"__"]
[null,null,null,null,null,null,null,null,"__"]
[null,null,null,null,null,null,null,null,"__"]
[null,null,null,null,null,null,null,null,"__"]
[null,null,null,null,null,null,null,null,"__"]
[null,null,null,null,null,null,null,null,"__"]
[null,null,null,null,null,null,null,null,"__"]
[null,null,null,null,null,null,null,null,"__"]
[null,null,null,null,null,null,null,null,"__"]
[null,null,null,null,null,null,null,null,"__"]
[null,null,null,null,null,null,null,null,"__"]
[null,null,null,null,null,null,null,null,"__"]
[null,null,null,null,null,null,null,null,"__"]
[null,null,null,null,null,null,null,null,"__"]
[null,null,null,null,null,null,null,null,"__"]
[null,null,null,null,null,null,null,null,"__"]
[null,null,null,null,null,null,null,null,"__"]
[null,null,null,null,null,null,null,null,"__"]
[null,null,null,null,null,null,null,null,"__"]
[null,null,null,null,null,null,null,null,"__"]
[null,null,null,null,null,null,null,null,"__"]
[null,null,null,null,null,null,null,null,"__"]
[null,null,null,null,null,null,null,null,"__"]
[null,null,null,null,null,null,null,null,"__"]
[null,null,null,null,null,null,null,null,"__"]
[null,null,null,null,null,null,null,null,"__"]
[null,null,null,null,null,null,null,null,"__"]
[null,null,null,null,null,null,null,null,"__"]
[null,null,null,null,null,null,null,null,"__"]
[null,null,null,null,null,null,null,null,"__"]
[null,null,null,null,null,null,null,null,"__"]
[null,null,null,null,null,null,null,null,"__"]
[null,null,null,null,null,null,null,null,"__"]
[null,null,null,null,null,null,null,null,"__"]
[null,null,null,null,null,null,null,null,"__"]
[null,null,null,null,null,null,null,null,"__"]
[null,null,null,null,null,null,null,null,{"$f":"CONCATENATE(A773,\"_\",B773,\"_\",C773)","v":"__"}]
[null,null,null,null,null,null,null,null,"__"]
[null,null,null,null,null,null,null,null,"__"]
[null,null,null,null,null,null,null,null,"__"]
[null,null,null,null,null,null,null,null,"__"]
[null,null,null,null,null,null,null,null,"__"]
[null,null,null,null,null,null,null,null,"__"]
[null,null,null,null,null,null,null,null,"__"]
[null,null,null,null,null,null,null,null,"__"]
[null,null,null,null,null,null,null,null,"__"]
[null,null,null,null,null,null,null,null,"__"]
[null,null,null,null,null,null,null,null,"__"]
[null,null,null,null,null,null,null,null,"__"]
[null,null,null,null,null,null,null,null,"__"]
[null,null,null,null,null,null,null,null,"__"]
[null,null,null,null,null,null,null,null,"__"]
[null,null,null,null,null,null,null,null,"__"]
[null,null,null,null,null,null,null,null,"__"]
[null,null,null,null,null,null,null,null,"__"]
[null,null,null,null,null,null,null,null,"__"]
[null,null,null,null,null,null,null,null,"__"]
[null,null,null,null,null,null,null,null,"__"]
[null,null,null,null,null,null,null,null,"__"]
[null,null,null,null,null,null,null,null,"__"]
[null,null,null,null,null,null,null,null,"__"]
[null,null,null,null,null,null,null,null,"__"]
[null,null,null,null,null,null,null,null,"__"]
[null,null,null,null,null,null,null,null,"__"]
[null,null,null,null,null,null,null,null,"__"]
[null,null,null,null,null,null,null,null,"__"]
[null,null,null,null,null,null,null,null,"__"]
[null,null,null,null,null,null,null,null,"__"]
[null,null,null,null,null,null,null,null,"__"]
[null,null,null,null,null,null,null,null,"__"]
[null,null,null,null,null,null,null,null,"__"]
[null,null,null,null,null,null,null,null,"__"]
[null,null,null,null,null,null,null,null,"__"]
[null,null,null,null,null,null,null,null,"__"]
[null,null,null,null,null,null,null,null,"__"]
[null,null,null,null,null,null,null,null,"__"]
[null,null,null,null,null,null,null,null,"__"]
[null,null,null,null,null,null,null,null,"__"]
[null,null,null,null,null,null,null,null,"__"]
[null,null,null,null,null,null,null,null,"__"]
[null,null,null,null,null,null,null,null,"__"]
[null,null,null,null,null,null,null,null,"__"]
[null,null,null,null,null,null,null,null,"__"]
[null,null,null,null,null,null,null,null,"__"]
[null,null,null,null,null,null,null,null,"__"]
[null,null,null,null,null,null,null,null,"__"]
[null,null,null,null,null,null,null,null,"__"]
[null,null,null,null,null,null,null,null,"__"]
[null,null,null,null,null,null,null,null,"__"]
[null,null,null,null,null,null,null,null,"__"]
[null,null,null,null,null,null,null,null,"__"]
[null,null,null,null,null,null,null,null,"__"]
[null,null,null,null,null,null,null,null,"__"]
[null,null,null,null,null,null,null,null,"__"]
[null,null,null,null,null,null,null,null,"__"]
[null,null,null,null,null,null,null,null,"__"]
[null,null,null,null,null,null,null,null,"__"]
[null,null,null,null,null,null,null,null,"__"]
[null,null,null,null,null,null,null,null,"__"]
[null,null,null,null,null,null,null,null,"__"]
[null,null,null,null,null,null,null,null,{"$f":"CONCATENATE(A837,\"_\",B837,\"_\",C837)","v":"__"}]
[null,null,null,null,null,null,null,null,"__"]
[null,null,null,null,null,null,null,null,"__"]
[null,null,null,null,null,null,null,null,"__"]
[null,null,null,null,null,null,null,null,"__"]
[null,null,null,null,null,null,null,null,"__"]
[null,null,null,null,null,null,null,null,"__"]
[null,null,null,null,null,null,null,null,"__"]
[null,null,null,null,null,null,null,null,"__"]
[null,null,null,null,null,null,null,null,"__"]
[null,null,null,null,null,null,null,null,"__"]
[null,null,null,null,null,null,null,null,"__"]
[null,null,null,null,null,null,null,null,"__"]
[null,null,null,null,null,null,null,null,"__"]
[null,null,null,null,null,null,null,null,"__"]
[null,null,null,null,null,null,null,null,"__"]
[null,null,null,null,null,null,null,null,"__"]
[null,null,null,null,null,null,null,null,"__"]
[null,null,null,null,null,null,null,null,"__"]
[null,null,null,null,null,null,null,null,"__"]
[null,null,null,null,null,null,null,null,"__"]
[null,null,null,null,null,null,null,null,"__"]
[null,null,null,null,null,null,null,null,"__"]
[null,null,null,null,null,null,null,null,"__"]
[null,null,null,null,null,null,null,null,"__"]
[null,null,null,null,null,null,null,null,"__"]
[null,null,null,null,null,null,null,null,"__"]
[null,null,null,null,null,null,null,null,"__"]
[null,null,null,null,null,null,null,null,"__"]
[null,null,null,null,null,null,null,null,"__"]
[null,null,null,null,null,null,null,null,"__"]
[null,null,null,null,null,null,null,null,"__"]
[null,null,null,null,null,null,null,null,"__"]
[null,null,null,null,null,null,null,null,"__"]
[null,null,null,null,null,null,null,null,"__"]
[null,null,null,null,null,null,null,null,"__"]
[null,null,null,null,null,null,null,null,"__"]
[null,null,null,null,null,null,null,null,"__"]
[null,null,null,null,null,null,null,null,"__"]
[null,null,null,null,null,null,null,null,"__"]
[null,null,null,null,null,null,null,null,"__"]
[null,null,null,null,null,null,null,null,"__"]
[null,null,null,null,null,null,null,null,"__"]
[null,null,null,null,null,null,null,null,"__"]
[null,null,null,null,null,null,null,null,"__"]
[null,null,null,null,null,null,null,null,"__"]
[null,null,null,null,null,null,null,null,"__"]
[null,null,null,null,null,null,null,null,"__"]
[null,null,null,null,null,null,null,null,"__"]
[null,null,null,null,null,null,null,null,"__"]
[null,null,null,null,null,null,null,null,"__"]
[null,null,null,null,null,null,null,null,"__"]
[null,null,null,null,null,null,null,null,"__"]
[null,null,null,null,null,null,null,null,"__"]
[null,null,null,null,null,null,null,null,"__"]
[null,null,null,null,null,null,null,null,"__"]
[null,null,null,null,null,null,null,null,"__"]
[null,null,null,null,null,null,null,null,"__"]
[null,null,null,null,null,null,null,null,"__"]
[null,null,null,null,null,null,null,null,"__"]
[null,null,null,null,null,null,null,null,"__"]
[null,null,null,null,null,null,null,null,"__"]
[null,null,null,null,null,null,null,null,"__"]
[null,null,null,null,null,null,null,null,"__"]
[null,null,null,null,null,null,null,null,{"$f":"CONCATENATE(A901,\"_\",B901,\"_\",C901)","v":"__"}]
[null,null,null,null,null,null,null,null,"__"]
[null,null,null,null,null,null,null,null,"__"]
[null,null,null,null,null,null,null,null,"__"]
[null,null,null,null,null,null,null,null,"__"]
[null,null,null,null,null,null,null,null,"__"]
[null,null,null,null,null,null,null,null,"__"]
[null,null,null,null,null,null,null,null,"__"]
[null,null,null,null,null,null,null,null,"__"]
[null,null,null,null,null,null,null,null,"__"]
[null,null,null,null,null,null,null,null,"__"]
[null,null,null,null,null,null,null,null,"__"]
[null,null,null,null,null,null,null,null,"__"]
[null,null,null,null,null,null,null,null,"__"]
[null,null,null,null,null,null,null,null,"__"]
[null,null,null,null,null,null,null,null,"__"]
[null,null,null,null,null,null,null,null,"__"]
[null,null,null,null,null,null,null,null,"__"]
[null,null,null,null,null,null,null,null,"__"]
[null,null,null,null,null,null,null,null,"__"]
[null,null,null,null,null,null,null,null,"__"]
[null,null,null,null,null,null,null,null,"__"]
[null,null,null,null,null,null,null,null,"__"]
[null,null,null,null,null,null,null,null,"__"]
[null,null,null,null,null,null,null,null,"__"]
[null,null,null,null,null,null,null,null,"__"]
[null,null,null,null,null,null,null,null,"__"]
[null,null,null,null,null,null,null,null,"__"]
[null,null,null,null,null,null,null,null,"__"]
[null,null,null,null,null,null,null,null,"__"]
[null,null,null,null,null,null,null,null,"__"]
[null,null,null,null,null,null,null,null,"__"]
[null,null,null,null,null,null,null,null,"__"]
[null,null,null,null,null,null,null,null,"__"]
[null,null,null,null,null,null,null,null,"__"]
[null,null,null,null,null,null,null,null,"__"]
[null,null,null,null,null,null,null,null,"__"]
[null,null,null,null,null,null,null,null,"__"]
[null,null,null,null,null,null,null,null,"__"]
[null,null,null,null,null,null,null,null,"__"]
[null,null,null,null,null,null,null,null,"__"]
[null,null,null,null,null,null,null,null,"__"]
[null,null,null,null,null,null,null,null,"__"]
[null,null,null,null,null,null,null,null,"__"]
[null,null,null,null,null,null,null,null,"__"]
[null,null,null,null,null,null,null,null,"__"]
[null,null,null,null,null,null,null,null,"__"]
[null,null,null,null,null,null,null,null,"__"]
[null,null,null,null,null,null,null,null,"__"]
[null,null,null,null,null,null,null,null,"__"]
[null,null,null,null,null,null,null,null,"__"]
[null,null,null,null,null,null,null,null,"__"]
[null,null,null,null,null,null,null,null,"__"]
[null,null,null,null,null,null,null,null,"__"]
[null,null,null,null,null,null,null,null,"__"]
[null,null,null,null,null,null,null,null,"__"]
[null,null,null,null,null,null,null,null,"__"]
[null,null,null,null,null,null,null,null,"__"]
[null,null,null,null,null,null,null,null,"__"]
[null,null,null,null,null,null,null,null,"__"]
[null,null,null,null,null,null,null,null,"__"]
[null,null,null,null,null,null,null,null,"__"]
[null,null,null,null,null,null,null,null,"__"]
[null,null,null,null,null,null,null,null,"__"]
[null,null,null,null,null,null,null,null,{"$f":"CONCATENATE(A965,\"_\",B965,\"_\",C965)","v":"__"}]
[null,null,null,null,null,null,null,null,"__"]
[null,null,null,null,null,null,null,null,"__"]
[null,null,null,null,null,null,null,null,"__"]
[null,null,null,null,null,null,null,null,"__"]
[null,null,null,null,null,null,null,null,"__"]
[null,null,null,null,null,null,null,null,"__"]
[null,null,null,null,null,null,null,null,"__"]
[null,null,null,null,null,null,null,null,"__"]
[null,null,null,null,null,null,null,null,"__"]
[null,null,null,null,null,null,null,null,"__"]
[null,null,null,null,null,null,null,null,"__"]
[null,null,null,null,null,null,null,null,"__"]
[null,null,null,null,null,null,null,null,"__"]
[null,null,null,null,null,null,null,null,"__"]
[null,null,null,null,null,null,null,null,"__"]
[null,null,null,null,null,null,null,null,"__"]
[null,null,null,null,null,null,null,null,"__"]
[null,null,null,null,null,null,null,null,"__"]
[null,null,null,null,null,null,null,null,"__"]
[null,null,null,null,null,null,null,null,"__"]
[null,null,null,null,null,null,null,null,"__"]
[null,null,null,null,null,null,null,null,"__"]
[null,null,null,null,null,null,null,null,"__"]
[null,null,null,null,null,null,null,null,"__"]
[null,null,null,null,null,null,null,null,"__"]
[null,null,null,null,null,null,null,null,"__"]
[null,null,null,null,null,null,null,null,"__"]
[null,null,null,null,null,null,null,null,"__"]
[null,null,null,null,null,null,null,null,"__"]
[null,null,null,null,null,null,null,null,"__"]
[null,null,null,null,null,null,null,null,"__"]
[null,null,null,null,null,null,null,null,"__"]
[null,null,null,null,null,null,null,null,"__"]
[null,null,null,null,null,null,null,null,"__"]
[null,null,null,null,null,null,null,null,"__"]
[null,null,null,null,null,null,null,null,"__"]
[null,null,null,null,null,null,null,null,"__"]
[null,null,null,null,null,null,null,null,"__"]
[null,null,null,null,null,null,null,null,"__"]
[null,null,null,null,null,null,null,null,"__"]
[null,null,null,null,null,null,null,null,"__"]
[null,null,null,null,null,null,null,null,"__"]
[null,null,null,null,null,null,null,null,"__"]
[null,null,null,null,null,null,null,null,"__"]
[null,null,null,null,null,null,null,null,"__"]
[null,null,null,null,null,null,null,null,"__"]
[null,null,null,null,null,null,null,null,"__"]
[null,null,null,null,null,null,null,null,"__"]
[null,null,null,null,null,null,null,null,"__"]
[null,null,null,null,null,null,null,null,"__"]
[null,null,null,null,null,null,null,null,"__"]
[null,null,null,null,null,null,null,null,"__"]
[null,null,null,null,null,null,null,null,"__"]
[null,null,null,null,null,null,null,null,"__"]
[null,null,null,null,null,null,null,null,"__"]
[null,null,null,null,null,null,null,null,"__"]
[null,null,null,null,null,null,null,null,"__"]
[null,null,null,null,null,null,null,null,"__"]
[null,null,null,null,null,null,null,null,"__"]
[null,null,null,null,null,null,null,null,"__"]
[null,null,null,null,null,null,null,null,"__"]
[null,null,null,null,null,null,null,null,"__"]
[null,null,null,null,null,null,null,null,"__"]
[null,null,null,null,null,null,null,null,{"$f":"CONCATENATE(A1029,\"_\",B1029,\"_\",C1029)","v":"__"}]
[null,null,null,null,null,null,null,null,"__"]
[null,null,null,null,null,null,null,null,"__"]
[null,null,null,null,null,null,null,null,"__"]
[null,null,null,null,null,null,null,null,"__"]
[null,null,null,null,null,null,null,null,"__"]
[null,null,null,null,null,null,null,null,"__"]
[null,null,null,null,null,null,null,null,"__"]
[null,null,null,null,null,null,null,null,"__"]
[null,null,null,null,null,null,null,null,"__"]
[null,null,null,null,null,null,null,null,"__"]
[null,null,null,null,null,null,null,null,"__"]
[null,null,null,null,null,null,null,null,"__"]
[null,null,null,null,null,null,null,null,"__"]
[null,null,null,null,null,null,null,null,"__"]
[null,null,null,null,null,null,null,null,"__"]
[null,null,null,null,null,null,null,null,"__"]
[null,null,null,null,null,null,null,null,"__"]
[null,null,null,null,null,null,null,null,"__"]
[null,null,null,null,null,null,null,null,"__"]
[null,null,null,null,null,null,null,null,"__"]
[null,null,null,null,null,null,null,null,"__"]
[null,null,null,null,null,null,null,null,"__"]
[null,null,null,null,null,null,null,null,"__"]
[null,null,null,null,null,null,null,null,"__"]
[null,null,null,null,null,null,null,null,"__"]
[null,null,null,null,null,null,null,null,"__"]
[null,null,null,null,null,null,null,null,"__"]
[null,null,null,null,null,null,null,null,"__"]
[null,null,null,null,null,null,null,null,"__"]
[null,null,null,null,null,null,null,null,"__"]
[null,null,null,null,null,null,null,null,"__"]
[null,null,null,null,null,null,null,null,"__"]
[null,null,null,null,null,null,null,null,"__"]
[null,null,null,null,null,null,null,null,"__"]
[null,null,null,null,null,null,null,null,"__"]
[null,null,null,null,null,null,null,null,"__"]
[null,null,null,null,null,null,null,null,"__"]
[null,null,null,null,null,null,null,null,"__"]
[null,null,null,null,null,null,null,null,"__"]
[null,null,null,null,null,null,null,null,"__"]
[null,null,null,null,null,null,null,null,"__"]
[null,null,null,null,null,null,null,null,"__"]
[null,null,null,null,null,null,null,null,"__"]
[null,null,null,null,null,null,null,null,"__"]
[null,null,null,null,null,null,null,null,"__"]
[null,null,null,null,null,null,null,null,"__"]
[null,null,null,null,null,null,null,null,"__"]
[null,null,null,null,null,null,null,null,"__"]
[null,null,null,null,null,null,null,null,"__"]
[null,null,null,null,null,null,null,null,"__"]
[null,null,null,null,null,null,null,null,"__"]
[null,null,null,null,null,null,null,null,"__"]
[null,null,null,null,null,null,null,null,"__"]
[null,null,null,null,null,null,null,null,"__"]
[null,null,null,null,null,null,null,null,"__"]
[null,null,null,null,null,null,null,null,"__"]
[null,null,null,null,null,null,null,null,"__"]
[null,null,null,null,null,null,null,null,"__"]
[null,null,null,null,null,null,null,null,"__"]
[null,null,null,null,null,null,null,null,"__"]
[null,null,null,null,null,null,null,null,"__"]
[null,null,null,null,null,null,null,null,"__"]
[null,null,null,null,null,null,null,null,"__"]
[null,null,null,null,null,null,null,null,{"$f":"CONCATENATE(A1093,\"_\",B1093,\"_\",C1093)","v":"__"}]
[null,null,null,null,null,null,null,null,"__"]
[null,null,null,null,null,null,null,null,"__"]
[null,null,null,null,null,null,null,null,"__"]
[null,null,null,null,null,null,null,null,"__"]
[null,null,null,null,null,null,null,null,"__"]
[null,null,null,null,null,null,null,null,"__"]
[null,null,null,null,null,null,null,null,"__"]
[null,null,null,null,null,null,null,null,"__"]
[null,null,null,null,null,null,null,null,"__"]
[null,null,null,null,null,null,null,null,"__"]
[null,null,null,null,null,null,null,null,"__"]
[null,null,null,null,null,null,null,null,"__"]
[null,null,null,null,null,null,null,null,"__"]
[null,null,null,null,null,null,null,null,"__"]
[null,null,null,null,null,null,null,null,"__"]
[null,null,null,null,null,null,null,null,"__"]
[null,null,null,null,null,null,null,null,"__"]
[null,null,null,null,null,null,null,null,"__"]
[null,null,null,null,null,null,null,null,"__"]
[null,null,null,null,null,null,null,null,"__"]
[null,null,null,null,null,null,null,null,"__"]
[null,null,null,null,null,null,null,null,"__"]
[null,null,null,null,null,null,null,null,"__"]
[null,null,null,null,null,null,null,null,"__"]
[null,null,null,null,null,null,null,null,"__"]
[null,null,null,null,null,null,null,null,"__"]
[null,null,null,null,null,null,null,null,"__"]
[null,null,null,null,null,null,null,null,"__"]
[null,null,null,null,null,null,null,null,"__"]
[null,null,null,null,null,null,null,null,"__"]
[null,null,null,null,null,null,null,null,"__"]
[null,null,null,null,null,null,null,null,"__"]
[null,null,null,null,null,null,null,null,"__"]
[null,null,null,null,null,null,null,null,"__"]
[null,null,null,null,null,null,null,null,"__"]
[null,null,null,null,null,null,null,null,"__"]
[null,null,null,null,null,null,null,null,"__"]
[null,null,null,null,null,null,null,null,"__"]
[null,null,null,null,null,null,null,null,"__"]
[null,null,null,null,null,null,null,null,"__"]
[null,null,null,null,null,null,null,null,"__"]
[null,null,null,null,null,null,null,null,"__"]
[null,null,null,null,null,null,null,null,"__"]
[null,null,null,null,null,null,null,null,"__"]
[null,null,null,null,null,null,null,null,"__"]
[null,null,null,null,null,null,null,null,"__"]
[null,null,null,null,null,null,null,null,"__"]
[null,null,null,null,null,null,null,null,"__"]
[null,null,null,null,null,null,null,null,"__"]
[null,null,null,null,null,null,null,null,"__"]
[null,null,null,null,null,null,null,null,"__"]
[null,null,null,null,null,null,null,null,"__"]
[null,null,null,null,null,null,null,null,"__"]
[null,null,null,null,null,null,null,null,"__"]
[null,null,null,null,null,null,null,null,"__"]
[null,null,null,null,null,null,null,null,"__"]
[null,null,null,null,null,null,null,null,"__"]
[null,null,null,null,null,null,null,null,"__"]
[null,null,null,null,null,null,null,null,"__"]
[null,null,null,null,null,null,null,null,"__"]
[null,null,null,null,null,null,null,null,"__"]
[null,null,null,null,null,null,null,null,"__"]
[null,null,null,null,null,null,null,null,"__"]
[null,null,null,null,null,null,null,null,{"$f":"CONCATENATE(A1157,\"_\",B1157,\"_\",C1157)","v":"__"}]
[null,null,null,null,null,null,null,null,"__"]
[null,null,null,null,null,null,null,null,"__"]
[null,null,null,null,null,null,null,null,"__"]
[null,null,null,null,null,null,null,null,"__"]
[null,null,null,null,null,null,null,null,"__"]
[null,null,null,null,null,null,null,null,"__"]
[null,null,null,null,null,null,null,null,"__"]
[null,null,null,null,null,null,null,null,"__"]
[null,null,null,null,null,null,null,null,"__"]
[null,null,null,null,null,null,null,null,"__"]
[null,null,null,null,null,null,null,null,"__"]
[null,null,null,null,null,null,null,null,"__"]
[null,null,null,null,null,null,null,null,"__"]
[null,null,null,null,null,null,null,null,"__"]
[null,null,null,null,null,null,null,null,"__"]
[null,null,null,null,null,null,null,null,"__"]
[null,null,null,null,null,null,null,null,"__"]
[null,null,null,null,null,null,null,null,"__"]
[null,null,null,null,null,null,null,null,"__"]
[null,null,null,null,null,null,null,null,"__"]
[null,null,null,null,null,null,null,null,"__"]
[null,null,null,null,null,null,null,null,"__"]
[null,null,null,null,null,null,null,null,"__"]
[null,null,null,null,null,null,null,null,"__"]
[null,null,null,null,null,null,null,null,"__"]
[null,null,null,null,null,null,null,null,"__"]
[null,null,null,null,null,null,null,null,"__"]
[null,null,null,null,null,null,null,null,"__"]
[null,null,null,null,null,null,null,null,"__"]
[null,null,null,null,null,null,null,null,"__"]
[null,null,null,null,null,null,null,null,"__"]
[null,null,null,null,null,null,null,null,"__"]
[null,null,null,null,null,null,null,null,"__"]
[null,null,null,null,null,null,null,null,"__"]
[null,null,null,null,null,null,null,null,"__"]
[null,null,null,null,null,null,null,null,"__"]
[null,null,null,null,null,null,null,null,"__"]
[null,null,null,null,null,null,null,null,"__"]
[null,null,null,null,null,null,null,null,"__"]
[null,null,null,null,null,null,null,null,"__"]
[null,null,null,null,null,null,null,null,"__"]
[null,null,null,null,null,null,null,null,"__"]
[null,null,null,null,null,null,null,null,"__"]
[null,null,null,null,null,null,null,null,"__"]
[null,null,null,null,null,null,null,null,"__"]
[null,null,null,null,null,null,null,null,"__"]
[null,null,null,null,null,null,null,null,"__"]
[null,null,null,null,null,null,null,null,"__"]
[null,null,null,null,null,null,null,null,"__"]
[null,null,null,null,null,null,null,null,"__"]
[null,null,null,null,null,null,null,null,"__"]
[null,null,null,null,null,null,null,null,"__"]
[null,null,null,null,null,null,null,null,"__"]
[null,null,null,null,null,null,null,null,"__"]
[null,null,null,null,null,null,null,null,"__"]
[null,null,null,null,null,null,null,null,"__"]
[null,null,null,null,null,null,null,null,"__"]
[null,null,null,null,null,null,null,null,"__"]
[null,null,null,null,null,null,null,null,"__"]
[null,null,null,null,null,null,null,null,"__"]
[null,null,null,null,null,null,null,null,"__"]
[null,null,null,null,null,null,null,null,"__"]
[null,null,null,null,null,null,null,null,"__"]
[null,null,null,null,null,null,null,null,{"$f":"CONCATENATE(A1221,\"_\",B1221,\"_\",C1221)","v":"__"}]
[null,null,null,null,null,null,null,null,"__"]
[null,null,null,null,null,null,null,null,"__"]
[null,null,null,null,null,null,null,null,"__"]
[null,null,null,null,null,null,null,null,"__"]
[null,null,null,null,null,null,null,null,"__"]
[null,null,null,null,null,null,null,null,"__"]
[null,null,null,null,null,null,null,null,"__"]
[null,null,null,null,null,null,null,null,"__"]
[null,null,null,null,null,null,null,null,"__"]
[null,null,null,null,null,null,null,null,"__"]
[null,null,null,null,null,null,null,null,"__"]
[null,null,null,null,null,null,null,null,"__"]
[null,null,null,null,null,null,null,null,"__"]
[null,null,null,null,null,null,null,null,"__"]
[null,null,null,null,null,null,null,null,"__"]
[null,null,null,null,null,null,null,null,"__"]
[null,null,null,null,null,null,null,null,"__"]
[null,null,null,null,null,null,null,null,"__"]
[null,null,null,null,null,null,null,null,"__"]
[null,null,null,null,null,null,null,null,"__"]
[null,null,null,null,null,null,null,null,"__"]
[null,null,null,null,null,null,null,null,"__"]
[null,null,null,null,null,null,null,null,"__"]
[null,null,null,null,null,null,null,null,"__"]
[null,null,null,null,null,null,null,null,"__"]
[null,null,null,null,null,null,null,null,"__"]
[null,null,null,null,null,null,null,null,"__"]
[null,null,null,null,null,null,null,null,"__"]
[null,null,null,null,null,null,null,null,"__"]
[null,null,null,null,null,null,null,null,"__"]
[null,null,null,null,null,null,null,null,"__"]
[null,null,null,null,null,null,null,null,"__"]
[null,null,null,null,null,null,null,null,"__"]
[null,null,null,null,null,null,null,null,"__"]
[null,null,null,null,null,null,null,null,"__"]
[null,null,null,null,null,null,null,null,"__"]
[null,null,null,null,null,null,null,null,"__"]
[null,null,null,null,null,null,null,null,"__"]
[null,null,null,null,null,null,null,null,"__"]
[null,null,null,null,null,null,null,null,"__"]
[null,null,null,null,null,null,null,null,"__"]
[null,null,null,null,null,null,null,null,"__"]
[null,null,null,null,null,null,null,null,"__"]
[null,null,null,null,null,null,null,null,"__"]
[null,null,null,null,null,null,null,null,"__"]
[null,null,null,null,null,null,null,null,"__"]
[null,null,null,null,null,null,null,null,"__"]
[null,null,null,null,null,null,null,null,"__"]
[null,null,null,null,null,null,null,null,"__"]
[null,null,null,null,null,null,null,null,"__"]
[null,null,null,null,null,null,null,null,"__"]
[null,null,null,null,null,null,null,null,"__"]
[null,null,null,null,null,null,null,null,"__"]
[null,null,null,null,null,null,null,null,"__"]
[null,null,null,null,null,null,null,null,"__"]
[null,null,null,null,null,null,null,null,"__"]
[null,null,null,null,null,null,null,null,"__"]
[null,null,null,null,null,null,null,null,"__"]
[null,null,null,null,null,null,null,null,"__"]
[null,null,null,null,null,null,null,null,"__"]
[null,null,null,null,null,null,null,null,"__"]
[null,null,null,null,null,null,null,null,"__"]
[null,null,null,null,null,null,null,null,"__"]
[null,null,null,null,null,null,null,null,{"$f":"CONCATENATE(A1285,\"_\",B1285,\"_\",C1285)","v":"__"}]
[null,null,null,null,null,null,null,null,"__"]
[null,null,null,null,null,null,null,null,"__"]
[null,null,null,null,null,null,null,null,"__"]
[null,null,null,null,null,null,null,null,"__"]
[null,null,null,null,null,null,null,null,"__"]
[null,null,null,null,null,null,null,null,"__"]
[null,null,null,null,null,null,null,null,"__"]
[null,null,null,null,null,null,null,null,"__"]
[null,null,null,null,null,null,null,null,"__"]
[null,null,null,null,null,null,null,null,"__"]
[null,null,null,null,null,null,null,null,"__"]
[null,null,null,null,null,null,null,null,"__"]
[null,null,null,null,null,null,null,null,"__"]
[null,null,null,null,null,null,null,null,"__"]
[null,null,null,null,null,null,null,null,"__"]
[null,null,null,null,null,null,null,null,"__"]
[null,null,null,null,null,null,null,null,"__"]
[null,null,null,null,null,null,null,null,"__"]
[null,null,null,null,null,null,null,null,"__"]
[null,null,null,null,null,null,null,null,"__"]
[null,null,null,null,null,null,null,null,"__"]
[null,null,null,null,null,null,null,null,"__"]
[null,null,null,null,null,null,null,null,"__"]
[null,null,null,null,null,null,null,null,"__"]
[null,null,null,null,null,null,null,null,"__"]
[null,null,null,null,null,null,null,null,"__"]
[null,null,null,null,null,null,null,null,"__"]
[null,null,null,null,null,null,null,null,"__"]
[null,null,null,null,null,null,null,null,"__"]
[null,null,null,null,null,null,null,null,"__"]
[null,null,null,null,null,null,null,null,"__"]
[null,null,null,null,null,null,null,null,"__"]
[null,null,null,null,null,null,null,null,"__"]
[null,null,null,null,null,null,null,null,"__"]
[null,null,null,null,null,null,null,null,"__"]
[null,null,null,null,null,null,null,null,"__"]
[null,null,null,null,null,null,null,null,"__"]
[null,null,null,null,null,null,null,null,"__"]
[null,null,null,null,null,null,null,null,"__"]
[null,null,null,null,null,null,null,null,"__"]
[null,null,null,null,null,null,null,null,"__"]
[null,null,null,null,null,null,null,null,"__"]
[null,null,null,null,null,null,null,null,"__"]
[null,null,null,null,null,null,null,null,"__"]
[null,null,null,null,null,null,null,null,"__"]
[null,null,null,null,null,null,null,null,"__"]
[null,null,null,null,null,null,null,null,"__"]
[null,null,null,null,null,null,null,null,"__"]
[null,null,null,null,null,null,null,null,"__"]
[null,null,null,null,null,null,null,null,"__"]
[null,null,null,null,null,null,null,null,"__"]
[null,null,null,null,null,null,null,null,"__"]
[null,null,null,null,null,null,null,null,"__"]
[null,null,null,null,null,null,null,null,"__"]
[null,null,null,null,null,null,null,null,"__"]
[null,null,null,null,null,null,null,null,"__"]
[null,null,null,null,null,null,null,null,"__"]
[null,null,null,null,null,null,null,null,"__"]
[null,null,null,null,null,null,null,null,"__"]
[null,null,null,null,null,null,null,null,"__"]
[null,null,null,null,null,null,null,null,"__"]
[null,null,null,null,null,null,null,null,"__"]
[null,null,null,null,null,null,null,null,"__"]
[null,null,null,null,null,null,null,null,{"$f":"CONCATENATE(A1349,\"_\",B1349,\"_\",C1349)","v":"__"}]
[null,null,null,null,null,null,null,null,"__"]
[null,null,null,null,null,null,null,null,"__"]
[null,null,null,null,null,null,null,null,"__"]
[null,null,null,null,null,null,null,null,"__"]
[null,null,null,null,null,null,null,null,"__"]
[null,null,null,null,null,null,null,null,"__"]
[null,null,null,null,null,null,null,null,"__"]
[null,null,null,null,null,null,null,null,"__"]
[null,null,null,null,null,null,null,null,"__"]
[null,null,null,null,null,null,null,null,"__"]
[null,null,null,null,null,null,null,null,"__"]
[null,null,null,null,null,null,null,null,"__"]
[null,null,null,null,null,null,null,null,"__"]
[null,null,null,null,null,null,null,null,"__"]
[null,null,null,null,null,null,null,null,"__"]
[null,null,null,null,null,null,null,null,"__"]
[null,null,null,null,null,null,null,null,"__"]
[null,null,null,null,null,null,null,null,"__"]
[null,null,null,null,null,null,null,null,"__"]
[null,null,null,null,null,null,null,null,"__"]
[null,null,null,null,null,null,null,null,"__"]
[null,null,null,null,null,null,null,null,"__"]
[null,null,null,null,null,null,null,null,"__"]
[null,null,null,null,null,null,null,null,"__"]
[null,null,null,null,null,null,null,null,"__"]
[null,null,null,null,null,null,null,null,"__"]
[null,null,null,null,null,null,null,null,"__"]
[null,null,null,null,null,null,null,null,"__"]
[null,null,null,null,null,null,null,null,"__"]
[null,null,null,null,null,null,null,null,"__"]
[null,null,null,null,null,null,null,null,"__"]
[null,null,null,null,null,null,null,null,"__"]
[null,null,null,null,null,null,null,null,"__"]
[null,null,null,null,null,null,null,null,"__"]
[null,null,null,null,null,null,null,null,"__"]
[null,null,null,null,null,null,null,null,"__"]
[null,null,null,null,null,null,null,null,"__"]
[null,null,null,null,null,null,null,null,"__"]
[null,null,null,null,null,null,null,null,"__"]
[null,null,null,null,null,null,null,null,"__"]
[null,null,null,null,null,null,null,null,"__"]
[null,null,null,null,null,null,null,null,"__"]
[null,null,null,null,null,null,null,null,"__"]
[null,null,null,null,null,null,null,null,"__"]
[null,null,null,null,null,null,null,null,"__"]
[null,null,null,null,null,null,null,null,"__"]
[null,null,null,null,null,null,null,null,"__"]
[null,null,null,null,null,null,null,null,"__"]
[null,null,null,null,null,null,null,null,"__"]
[null,null,null,null,null,null,null,null,"__"]
[null,null,null,null,null,null,null,null,"__"]
[null,null,null,null,null,null,null,null,"__"]
[null,null,null,null,null,null,null,null,"__"]
[null,null,null,null,null,null,null,null,"__"]
[null,null,null,null,null,null,null,null,"__"]
[null,null,null,null,null,null,null,null,"__"]
[null,null,null,null,null,null,null,null,"__"]
[null,null,null,null,null,null,null,null,"__"]
[null,null,null,null,null,null,null,null,"__"]
[null,null,null,null,null,null,null,null,"__"]
[null,null,null,null,null,null,null,null,"__"]
[null,null,null,null,null,null,null,null,"__"]
[null,null,null,null,null,null,null,null,"__"]
[null,null,null,null,null,null,null,null,{"$f":"CONCATENATE(A1413,\"_\",B1413,\"_\",C1413)","v":"__"}]
[null,null,null,null,null,null,null,null,"__"]
[null,null,null,null,null,null,null,null,"__"]
[null,null,null,null,null,null,null,null,"__"]
[null,null,null,null,null,null,null,null,"__"]
[null,null,null,null,null,null,null,null,"__"]
[null,null,null,null,null,null,null,null,"__"]
[null,null,null,null,null,null,null,null,"__"]
[null,null,null,null,null,null,null,null,"__"]
[null,null,null,null,null,null,null,null,"__"]
[null,null,null,null,null,null,null,null,"__"]
[null,null,null,null,null,null,null,null,"__"]
[null,null,null,null,null,null,null,null,"__"]
[null,null,null,null,null,null,null,null,"__"]
[null,null,null,null,null,null,null,null,"__"]
[null,null,null,null,null,null,null,null,"__"]
[null,null,null,null,null,null,null,null,"__"]
[null,null,null,null,null,null,null,null,"__"]
[null,null,null,null,null,null,null,null,"__"]
[null,null,null,null,null,null,null,null,"__"]
[null,null,null,null,null,null,null,null,"__"]
[null,null,null,null,null,null,null,null,"__"]
[null,null,null,null,null,null,null,null,"__"]
[null,null,null,null,null,null,null,null,"__"]
[null,null,null,null,null,null,null,null,"__"]
[null,null,null,null,null,null,null,null,"__"]
[null,null,null,null,null,null,null,null,"__"]
[null,null,null,null,null,null,null,null,"__"]
[null,null,null,null,null,null,null,null,"__"]
[null,null,null,null,null,null,null,null,"__"]
[null,null,null,null,null,null,null,null,"__"]
[null,null,null,null,null,null,null,null,"__"]
[null,null,null,null,null,null,null,null,"__"]
[null,null,null,null,null,null,null,null,"__"]
[null,null,null,null,null,null,null,null,"__"]
[null,null,null,null,null,null,null,null,"__"]
[null,null,null,null,null,null,null,null,"__"]
[null,null,null,null,null,null,null,null,"__"]
[null,null,null,null,null,null,null,null,"__"]
[null,null,null,null,null,null,null,null,"__"]
[null,null,null,null,null,null,null,null,"__"]
[null,null,null,null,null,null,null,null,"__"]
[null,null,null,null,null,null,null,null,"__"]
[null,null,null,null,null,null,null,null,"__"]
[null,null,null,null,null,null,null,null,"__"]
[null,null,null,null,null,null,null,null,"__"]
[null,null,null,null,null,null,null,null,"__"]
[null,null,null,null,null,null,null,null,"__"]
[null,null,null,null,null,null,null,null,"__"]
[null,null,null,null,null,null,null,null,"__"]
[null,null,null,null,null,null,null,null,"__"]
[null,null,null,null,null,null,null,null,"__"]
[null,null,null,null,null,null,null,null,"__"]
[null,null,null,null,null,null,null,null,"__"]
[null,null,null,null,null,null,null,null,"__"]
[null,null,null,null,null,null,null,null,"__"]
[null,null,null,null,null,null,null,null,"__"]
[null,null,null,null,null,null,null,null,"__"]
[null,null,null,null,null,null,null,null,"__"]
[null,null,null,null,null,null,null,null,"__"]
[null,null,null,null,null,null,null,null,"__"]
[null,null,null,null,null,null,null,null,"__"]
[null,null,null,null,null,null,null,null,"__"]
[null,null,null,null,null,null,null,null,"__"]
[null,null,null,null,null,null,null,null,{"$f":"CONCATENATE(A1477,\"_\",B1477,\"_\",C1477)","v":"__"}]
[null,null,null,null,null,null,null,null,"__"]
[null,null,null,null,null,null,null,null,"__"]
[null,null,null,null,null,null,null,null,"__"]
[null,null,null,null,null,null,null,null,"__"]
[null,null,null,null,null,null,null,null,"__"]
[null,null,null,null,null,null,null,null,"__"]
[null,null,null,null,null,null,null,null,"__"]
[null,null,null,null,null,null,null,null,"__"]
[null,null,null,null,null,null,null,null,"__"]
[null,null,null,null,null,null,null,null,"__"]
[null,null,null,null,null,null,null,null,"__"]
[null,null,null,null,null,null,null,null,"__"]
[null,null,null,null,null,null,null,null,"__"]
[null,null,null,null,null,null,null,null,"__"]
[null,null,null,null,null,null,null,null,"__"]
[null,null,null,null,null,null,null,null,"__"]
[null,null,null,null,null,null,null,null,"__"]
[null,null,null,null,null,null,null,null,"__"]
[null,null,null,null,null,null,null,null,"__"]
[null,null,null,null,null,null,null,null,"__"]
[null,null,null,null,null,null,null,null,"__"]
[null,null,null,null,null,null,null,null,"__"]
[null,null,null,null,null,null,null,null,"__"]
[null,null,null,null,null,null,null,null,"__"]
[null,null,null,null,null,null,null,null,"__"]
[null,null,null,null,null,null,null,null,"__"]
[null,null,null,null,null,null,null,null,"__"]
[null,null,null,null,null,null,null,null,"__"]
[null,null,null,null,null,null,null,null,"__"]
[null,null,null,null,null,null,null,null,"__"]
[null,null,null,null,null,null,null,null,"__"]
[null,null,null,null,null,null,null,null,"__"]
[null,null,null,null,null,null,null,null,"__"]
[null,null,null,null,null,null,null,null,"__"]
[null,null,null,null,null,null,null,null,"__"]
[null,null,null,null,null,null,null,null,"__"]
[null,null,null,null,null,null,null,null,"__"]
[null,null,null,null,null,null,null,null,"__"]
[null,null,null,null,null,null,null,null,"__"]
[null,null,null,null,null,null,null,null,"__"]
[null,null,null,null,null,null,null,null,"__"]
[null,null,null,null,null,null,null,null,"__"]
[null,null,null,null,null,null,null,null,"__"]
[null,null,null,null,null,null,null,null,"__"]
[null,null,null,null,null,null,null,null,"__"]
[null,null,null,null,null,null,null,null,"__"]
[null,null,null,null,null,null,null,null,"__"]
[null,null,null,null,null,null,null,null,"__"]
[null,null,null,null,null,null,null,null,"__"]
[null,null,null,null,null,null,null,null,"__"]
[null,null,null,null,null,null,null,null,"__"]
[null,null,null,null,null,null,null,null,"__"]
[null,null,null,null,null,null,null,null,"__"]
[null,null,null,null,null,null,null,null,"__"]
[null,null,null,null,null,null,null,null,"__"]
[null,null,null,null,null,null,null,null,"__"]
[null,null,null,null,null,null,null,null,"__"]
[null,null,null,null,null,null,null,null,"__"]
[null,null,null,null,null,null,null,null,"__"]
[null,null,null,null,null,null,null,null,"__"]
[null,null,null,null,null,null,null,null,"__"]
[null,null,null,null,null,null,null,null,"__"]
[null,null,null,null,null,null,null,null,"__"]
[null,null,null,null,null,null,null,null,{"$f":"CONCATENATE(A1541,\"_\",B1541,\"_\",C1541)","v":"__"}]
[null,null,null,null,null,null,null,null,"__"]
[null,null,null,null,null,null,null,null,"__"]
[null,null,null,null,null,null,null,null,"__"]
[null,null,null,null,null,null,null,null,"__"]
[null,null,null,null,null,null,null,null,"__"]
[null,null,null,null,null,null,null,null,"__"]
[null,null,null,null,null,null,null,null,"__"]
[null,null,null,null,null,null,null,null,"__"]
[null,null,null,null,null,null,null,null,"__"]
[null,null,null,null,null,null,null,null,"__"]
[null,null,null,null,null,null,null,null,"__"]
[null,null,null,null,null,null,null,null,"__"]
[null,null,null,null,null,null,null,null,"__"]
[null,null,null,null,null,null,null,null,"__"]
[null,null,null,null,null,null,null,null,"__"]
[null,null,null,null,null,null,null,null,"__"]
[null,null,null,null,null,null,null,null,"__"]
[null,null,null,null,null,null,null,null,"__"]
[null,null,null,null,null,null,null,null,"__"]
[null,null,null,null,null,null,null,null,"__"]
[null,null,null,null,null,null,null,null,"__"]
[null,null,null,null,null,null,null,null,"__"]
[null,null,null,null,null,null,null,null,"__"]
[null,null,null,null,null,null,null,null,"__"]
[null,null,null,null,null,null,null,null,"__"]
[null,null,null,null,null,null,null,null,"__"]
[null,null,null,null,null,null,null,null,"__"]
[null,null,null,null,null,null,null,null,"__"]
[null,null,null,null,null,null,null,null,"__"]
[null,null,null,null,null,null,null,null,"__"]
[null,null,null,null,null,null,null,null,"__"]
[null,null,null,null,null,null,null,null,"__"]
[null,null,null,null,null,null,null,null,"__"]
[null,null,null,null,null,null,null,null,"__"]
[null,null,null,null,null,null,null,null,"__"]
[null,null,null,null,null,null,null,null,"__"]
[null,null,null,null,null,null,null,null,"__"]
[null,null,null,null,null,null,null,null,"__"]
[null,null,null,null,null,null,null,null,"__"]
[null,null,null,null,null,null,null,null,"__"]
[null,null,null,null,null,null,null,null,"__"]
[null,null,null,null,null,null,null,null,"__"]
[null,null,null,null,null,null,null,null,"__"]
[null,null,null,null,null,null,null,null,"__"]
[null,null,null,null,null,null,null,null,"__"]
[null,null,null,null,null,null,null,null,"__"]
[null,null,null,null,null,null,null,null,"__"]
[null,null,null,null,null,null,null,null,"__"]
[null,null,null,null,null,null,null,null,"__"]
[null,null,null,null,null,null,null,null,"__"]
[null,null,null,null,null,null,null,null,"__"]
[null,null,null,null,null,null,null,null,"__"]
[null,null,null,null,null,null,null,null,"__"]
[null,null,null,null,null,null,null,null,"__"]
[null,null,null,null,null,null,null,null,"__"]
[null,null,null,null,null,null,null,null,"__"]
[null,null,null,null,null,null,null,null,"__"]
[null,null,null,null,null,null,null,null,"__"]
[null,null,null,null,null,null,null,null,"__"]
[null,null,null,null,null,null,null,null,"__"]
[null,null,null,null,null,null,null,null,"__"]
[null,null,null,null,null,null,null,null,"__"]
[null,null,null,null,null,null,null,null,"__"]
[null,null,null,null,null,null,null,null,{"$f":"CONCATENATE(A1605,\"_\",B1605,\"_\",C1605)","v":"__"}]
[null,null,null,null,null,null,null,null,"__"]
[null,null,null,null,null,null,null,null,"__"]
[null,null,null,null,null,null,null,null,"__"]
[null,null,null,null,null,null,null,null,"__"]
[null,null,null,null,null,null,null,null,"__"]
[null,null,null,null,null,null,null,null,"__"]
[null,null,null,null,null,null,null,null,"__"]
[null,null,null,null,null,null,null,null,"__"]
[null,null,null,null,null,null,null,null,"__"]
[null,null,null,null,null,null,null,null,"__"]
[null,null,null,null,null,null,null,null,"__"]
[null,null,null,null,null,null,null,null,"__"]
[null,null,null,null,null,null,null,null,"__"]
[null,null,null,null,null,null,null,null,"__"]
[null,null,null,null,null,null,null,null,"__"]
[null,null,null,null,null,null,null,null,"__"]
[null,null,null,null,null,null,null,null,"__"]
[null,null,null,null,null,null,null,null,"__"]
[null,null,null,null,null,null,null,null,"__"]
[null,null,null,null,null,null,null,null,"__"]
[null,null,null,null,null,null,null,null,"__"]
[null,null,null,null,null,null,null,null,"__"]
[null,null,null,null,null,null,null,null,"__"]
[null,null,null,null,null,null,null,null,"__"]
[null,null,null,null,null,null,null,null,"__"]
[null,null,null,null,null,null,null,null,"__"]
[null,null,null,null,null,null,null,null,"__"]
[null,null,null,null,null,null,null,null,"__"]
[null,null,null,null,null,null,null,null,"__"]
[null,null,null,null,null,null,null,null,"__"]
[null,null,null,null,null,null,null,null,"__"]
[null,null,null,null,null,null,null,null,"__"]
[null,null,null,null,null,null,null,null,"__"]
[null,null,null,null,null,null,null,null,"__"]
[null,null,null,null,null,null,null,null,"__"]
[null,null,null,null,null,null,null,null,"__"]
[null,null,null,null,null,null,null,null,"__"]
[null,null,null,null,null,null,null,null,"__"]
[null,null,null,null,null,null,null,null,"__"]
[null,null,null,null,null,null,null,null,"__"]
[null,null,null,null,null,null,null,null,"__"]
[null,null,null,null,null,null,null,null,"__"]
[null,null,null,null,null,null,null,null,"__"]
[null,null,null,null,null,null,null,null,"__"]
[null,null,null,null,null,null,null,null,"__"]
[null,null,null,null,null,null,null,null,"__"]
[null,null,null,null,null,null,null,null,"__"]
[null,null,null,null,null,null,null,null,"__"]
[null,null,null,null,null,null,null,null,"__"]
[null,null,null,null,null,null,null,null,"__"]
[null,null,null,null,null,null,null,null,"__"]
[null,null,null,null,null,null,null,null,"__"]
[null,null,null,null,null,null,null,null,"__"]
[null,null,null,null,null,null,null,null,"__"]
[null,null,null,null,null,null,null,null,"__"]
[null,null,null,null,null,null,null,null,"__"]
[null,null,null,null,null,null,null,null,"__"]
[null,null,null,null,null,null,null,null,"__"]
[null,null,null,null,null,null,null,null,"__"]
[null,null,null,null,null,null,null,null,"__"]
[null,null,null,null,null,null,null,null,"__"]
[null,null,null,null,null,null,null,null,"__"]
[null,null,null,null,null,null,null,null,"__"]
[null,null,null,null,null,null,null,null,{"$f":"CONCATENATE(A1669,\"_\",B1669,\"_\",C1669)","v":"__"}]
[null,null,null,null,null,null,null,null,"__"]
[null,null,null,null,null,null,null,null,"__"]
[null,null,null,null,null,null,null,null,"__"]
[null,null,null,null,null,null,null,null,"__"]
[null,null,null,null,null,null,null,null,"__"]
[null,null,null,null,null,null,null,null,"__"]
[null,null,null,null,null,null,null,null,"__"]
[null,null,null,null,null,null,null,null,"__"]
[null,null,null,null,null,null,null,null,"__"]
[null,null,null,null,null,null,null,null,"__"]
[null,null,null,null,null,null,null,null,"__"]
[null,null,null,null,null,null,null,null,"__"]
[null,null,null,null,null,null,null,null,"__"]
[null,null,null,null,null,null,null,null,"__"]
[null,null,null,null,null,null,null,null,"__"]
[null,null,null,null,null,null,null,null,"__"]
[null,null,null,null,null,null,null,null,"__"]
[null,null,null,null,null,null,null,null,"__"]
[null,null,null,null,null,null,null,null,"__"]
[null,null,null,null,null,null,null,null,"__"]
[null,null,null,null,null,null,null,null,"__"]
[null,null,null,null,null,null,null,null,"__"]
[null,null,null,null,null,null,null,null,"__"]
[null,null,null,null,null,null,null,null,"__"]
[null,null,null,null,null,null,null,null,"__"]
[null,null,null,null,null,null,null,null,"__"]
[null,null,null,null,null,null,null,null,"__"]
[null,null,null,null,null,null,null,null,"__"]
[null,null,null,null,null,null,null,null,"__"]
[null,null,null,null,null,null,null,null,"__"]
[null,null,null,null,null,null,null,null,"__"]
[null,null,null,null,null,null,null,null,"__"]
[null,null,null,null,null,null,null,null,"__"]
[null,null,null,null,null,null,null,null,"__"]
[null,null,null,null,null,null,null,null,"__"]
[null,null,null,null,null,null,null,null,"__"]
[null,null,null,null,null,null,null,null,"__"]
[null,null,null,null,null,null,null,null,"__"]
[null,null,null,null,null,null,null,null,"__"]
[null,null,null,null,null,null,null,null,"__"]
[null,null,null,null,null,null,null,null,"__"]
[null,null,null,null,null,null,null,null,"__"]
[null,null,null,null,null,null,null,null,"__"]
[null,null,null,null,null,null,null,null,"__"]
[null,null,null,null,null,null,null,null,"__"]
[null,null,null,null,null,null,null,null,"__"]
[null,null,null,null,null,null,null,null,"__"]
[null,null,null,null,null,null,null,null,"__"]
[null,null,null,null,null,null,null,null,"__"]
[null,null,null,null,null,null,null,null,"__"]
[null,null,null,null,null,null,null,null,"__"]
[null,null,null,null,null,null,null,null,"__"]
[null,null,null,null,null,null,null,null,"__"]
[null,null,null,null,null,null,null,null,"__"]
[null,null,null,null,null,null,null,null,"__"]
[null,null,null,null,null,null,null,null,"__"]
[null,null,null,null,null,null,null,null,"__"]
[null,null,null,null,null,null,null,null,"__"]
[null,null,null,null,null,null,null,null,"__"]
[null,null,null,null,null,null,null,null,"__"]
[null,null,null,null,null,null,null,null,"__"]
[null,null,null,null,null,null,null,null,"__"]
[null,null,null,null,null,null,null,null,"__"]
[null,null,null,null,null,null,null,null,{"$f":"CONCATENATE(A1733,\"_\",B1733,\"_\",C1733)","v":"__"}]
[null,null,null,null,null,null,null,null,"__"]
[null,null,null,null,null,null,null,null,"__"]
[null,null,null,null,null,null,null,null,"__"]
[null,null,null,null,null,null,null,null,"__"]
[null,null,null,null,null,null,null,null,"__"]
[null,null,null,null,null,null,null,null,"__"]
[null,null,null,null,null,null,null,null,"__"]
[null,null,null,null,null,null,null,null,"__"]
[null,null,null,null,null,null,null,null,"__"]
[null,null,null,null,null,null,null,null,"__"]
[null,null,null,null,null,null,null,null,"__"]
[null,null,null,null,null,null,null,null,"__"]
[null,null,null,null,null,null,null,null,"__"]
[null,null,null,null,null,null,null,null,"__"]
[null,null,null,null,null,null,null,null,"__"]
[null,null,null,null,null,null,null,null,"__"]
[null,null,null,null,null,null,null,null,"__"]
[null,null,null,null,null,null,null,null,"__"]
[null,null,null,null,null,null,null,null,"__"]
[null,null,null,null,null,null,null,null,"__"]
[null,null,null,null,null,null,null,null,"__"]
[null,null,null,null,null,null,null,null,"__"]
[null,null,null,null,null,null,null,null,"__"]
[null,null,null,null,null,null,null,null,"__"]
[null,null,null,null,null,null,null,null,"__"]
[null,null,null,null,null,null,null,null,"__"]
[null,null,null,null,null,null,null,null,"__"]
[null,null,null,null,null,null,null,null,"__"]
[null,null,null,null,null,null,null,null,"__"]
[null,null,null,null,null,null,null,null,"__"]
[null,null,null,null,null,null,null,null,"__"]
[null,null,null,null,null,null,null,null,"__"]
[null,null,null,null,null,null,null,null,"__"]
[null,null,null,null,null,null,null,null,"__"]
[null,null,null,null,null,null,null,null,"__"]
[null,null,null,null,null,null,null,null,"__"]
[null,null,null,null,null,null,null,null,"__"]
[null,null,null,null,null,null,null,null,"__"]
[null,null,null,null,null,null,null,null,"__"]
[null,null,null,null,null,null,null,null,"__"]
[null,null,null,null,null,null,null,null,"__"]
[null,null,null,null,null,null,null,null,"__"]
[null,null,null,null,null,null,null,null,"__"]
[null,null,null,null,null,null,null,null,"__"]
[null,null,null,null,null,null,null,null,"__"]
[null,null,null,null,null,null,null,null,"__"]
[null,null,null,null,null,null,null,null,"__"]
[null,null,null,null,null,null,null,null,"__"]
[null,null,null,null,null,null,null,null,"__"]
[null,null,null,null,null,null,null,null,"__"]
[null,null,null,null,null,null,null,null,"__"]
[null,null,null,null,null,null,null,null,"__"]
[null,null,null,null,null,null,null,null,"__"]
[null,null,null,null,null,null,null,null,"__"]
[null,null,null,null,null,null,null,null,"__"]
[null,null,null,null,null,null,null,null,"__"]
[null,null,null,null,null,null,null,null,"__"]
[null,null,null,null,null,null,null,null,"__"]
[null,null,null,null,null,null,null,null,"__"]
[null,null,null,null,null,null,null,null,"__"]
[null,null,null,null,null,null,null,null,"__"]
[null,null,null,null,null,null,null,null,"__"]
[null,null,null,null,null,null,null,null,"__"]
[null,null,null,null,null,null,null,null,{"$f":"CONCATENATE(A1797,\"_\",B1797,\"_\",C1797)","v":"__"}]
[null,null,null,null,null,null,null,null,"__"]
[null,null,null,null,null,null,null,null,"__"]
[null,null,null,null,null,null,null,null,"__"]
[null,null,null,null,null,null,null,null,"__"]
[null,null,null,null,null,null,null,null,"__"]
[null,null,null,null,null,null,null,null,"__"]
[null,null,null,null,null,null,null,null,"__"]
[null,null,null,null,null,null,null,null,"__"]
[null,null,null,null,null,null,null,null,"__"]
[null,null,null,null,null,null,null,null,"__"]
[null,null,null,null,null,null,null,null,"__"]
[null,null,null,null,null,null,null,null,"__"]
[null,null,null,null,null,null,null,null,"__"]
[null,null,null,null,null,null,null,null,"__"]
[null,null,null,null,null,null,null,null,"__"]
[null,null,null,null,null,null,null,null,"__"]
[null,null,null,null,null,null,null,null,"__"]
[null,null,null,null,null,null,null,null,"__"]
[null,null,null,null,null,null,null,null,"__"]
[null,null,null,null,null,null,null,null,"__"]
[null,null,null,null,null,null,null,null,"__"]
[null,null,null,null,null,null,null,null,"__"]
[null,null,null,null,null,null,null,null,"__"]
[null,null,null,null,null,null,null,null,"__"]
[null,null,null,null,null,null,null,null,"__"]
[null,null,null,null,null,null,null,null,"__"]
[null,null,null,null,null,null,null,null,"__"]
[null,null,null,null,null,null,null,null,"__"]
[null,null,null,null,null,null,null,null,"__"]
[null,null,null,null,null,null,null,null,"__"]
[null,null,null,null,null,null,null,null,"__"]
[null,null,null,null,null,null,null,null,"__"]
[null,null,null,null,null,null,null,null,"__"]
[null,null,null,null,null,null,null,null,"__"]
[null,null,null,null,null,null,null,null,"__"]
[null,null,null,null,null,null,null,null,"__"]
[null,null,null,null,null,null,null,null,"__"]
[null,null,null,null,null,null,null,null,"__"]
[null,null,null,null,null,null,null,null,"__"]
[null,null,null,null,null,null,null,null,"__"]
[null,null,null,null,null,null,null,null,"__"]
[null,null,null,null,null,null,null,null,"__"]
[null,null,null,null,null,null,null,null,"__"]
[null,null,null,null,null,null,null,null,"__"]
[null,null,null,null,null,null,null,null,"__"]
[null,null,null,null,null,null,null,null,"__"]
[null,null,null,null,null,null,null,null,"__"]
[null,null,null,null,null,null,null,null,"__"]
[null,null,null,null,null,null,null,null,"__"]
[null,null,null,null,null,null,null,null,"__"]
[null,null,null,null,null,null,null,null,"__"]
[null,null,null,null,null,null,null,null,"__"]
[null,null,null,null,null,null,null,null,"__"]
[null,null,null,null,null,null,null,null,"__"]
[null,null,null,null,null,null,null,null,"__"]
[null,null,null,null,null,null,null,null,"__"]
[null,null,null,null,null,null,null,null,"__"]
[null,null,null,null,null,null,null,null,"__"]
[null,null,null,null,null,null,null,null,"__"]
[null,null,null,null,null,null,null,null,"__"]
[null,null,null,null,null,null,null,null,"__"]
[null,null,null,null,null,null,null,null,"__"]
[null,null,null,null,null,null,null,null,"__"]
[null,null,null,null,null,null,null,null,{"$f":"CONCATENATE(A1861,\"_\",B1861,\"_\",C1861)","v":"__"}]
[null,null,null,null,null,null,null,null,"__"]
[null,null,null,null,null,null,null,null,"__"]
[null,null,null,null,null,null,null,null,"__"]
[null,null,null,null,null,null,null,null,"__"]
[null,null,null,null,null,null,null,null,"__"]
[null,null,null,null,null,null,null,null,"__"]
[null,null,null,null,null,null,null,null,"__"]
[null,null,null,null,null,null,null,null,"__"]
[null,null,null,null,null,null,null,null,"__"]
[null,null,null,null,null,null,null,null,"__"]
[null,null,null,null,null,null,null,null,"__"]
[null,null,null,null,null,null,null,null,"__"]
[null,null,null,null,null,null,null,null,"__"]
[null,null,null,null,null,null,null,null,"__"]
[null,null,null,null,null,null,null,null,"__"]
[null,null,null,null,null,null,null,null,"__"]
[null,null,null,null,null,null,null,null,"__"]
[null,null,null,null,null,null,null,null,"__"]
[null,null,null,null,null,null,null,null,"__"]
[null,null,null,null,null,null,null,null,"__"]
[null,null,null,null,null,null,null,null,"__"]
[null,null,null,null,null,null,null,null,"__"]
[null,null,null,null,null,null,null,null,"__"]
[null,null,null,null,null,null,null,null,"__"]
[null,null,null,null,null,null,null,null,"__"]
[null,null,null,null,null,null,null,null,"__"]
[null,null,null,null,null,null,null,null,"__"]
[null,null,null,null,null,null,null,null,"__"]
[null,null,null,null,null,null,null,null,"__"]
[null,null,null,null,null,null,null,null,"__"]
[null,null,null,null,null,null,null,null,"__"]
[null,null,null,null,null,null,null,null,"__"]
[null,null,null,null,null,null,null,null,"__"]
[null,null,null,null,null,null,null,null,"__"]
[null,null,null,null,null,null,null,null,"__"]
[null,null,null,null,null,null,null,null,"__"]
[null,null,null,null,null,null,null,null,"__"]
[null,null,null,null,null,null,null,null,"__"]
[null,null,null,null,null,null,null,null,"__"]
[null,null,null,null,null,null,null,null,"__"]
[null,null,null,null,null,null,null,null,"__"]
[null,null,null,null,null,null,null,null,"__"]
[null,null,null,null,null,null,null,null,"__"]
[null,null,null,null,null,null,null,null,"__"]
[null,null,null,null,null,null,null,null,"__"]
[null,null,null,null,null,null,null,null,"__"]
[null,null,null,null,null,null,null,null,"__"]
[null,null,null,null,null,null,null,null,"__"]
[null,null,null,null,null,null,null,null,"__"]
[null,null,null,null,null,null,null,null,"__"]
[null,null,null,null,null,null,null,null,"__"]
[null,null,null,null,null,null,null,null,"__"]
[null,null,null,null,null,null,null,null,"__"]
[null,null,null,null,null,null,null,null,"__"]
[null,null,null,null,null,null,null,null,"__"]
[null,null,null,null,null,null,null,null,"__"]
[null,null,null,null,null,null,null,null,"__"]
[null,null,null,null,null,null,null,null,"__"]
[null,null,null,null,null,null,null,null,"__"]
[null,null,null,null,null,null,null,null,"__"]
[null,null,null,null,null,null,null,null,"__"]
[null,null,null,null,null,null,null,null,"__"]
[null,null,null,null,null,null,null,null,"__"]
[null,null,null,null,null,null,null,null,{"$f":"CONCATENATE(A1925,\"_\",B1925,\"_\",C1925)","v":"__"}]
[null,null,null,null,null,null,null,null,"__"]
[null,null,null,null,null,null,null,null,"__"]
[null,null,null,null,null,null,null,null,"__"]
[null,null,null,null,null,null,null,null,"__"]
[null,null,null,null,null,null,null,null,"__"]
[null,null,null,null,null,null,null,null,"__"]
[null,null,null,null,null,null,null,null,"__"]
[null,null,null,null,null,null,null,null,"__"]
[null,null,null,null,null,null,null,null,"__"]
[null,null,null,null,null,null,null,null,"__"]
[null,null,null,null,null,null,null,null,"__"]
[null,null,null,null,null,null,null,null,"__"]
[null,null,null,null,null,null,null,null,"__"]
[null,null,null,null,null,null,null,null,"__"]
[null,null,null,null,null,null,null,null,"__"]
[null,null,null,null,null,null,null,null,"__"]
[null,null,null,null,null,null,null,null,"__"]
[null,null,null,null,null,null,null,null,"__"]
[null,null,null,null,null,null,null,null,"__"]
[null,null,null,null,null,null,null,null,"__"]
[null,null,null,null,null,null,null,null,"__"]
[null,null,null,null,null,null,null,null,"__"]
[null,null,null,null,null,null,null,null,"__"]
[null,null,null,null,null,null,null,null,"__"]
[null,null,null,null,null,null,null,null,"__"]
[null,null,null,null,null,null,null,null,"__"]
[null,null,null,null,null,null,null,null,"__"]
[null,null,null,null,null,null,null,null,"__"]
[null,null,null,null,null,null,null,null,"__"]
[null,null,null,null,null,null,null,null,"__"]
[null,null,null,null,null,null,null,null,"__"]
[null,null,null,null,null,null,null,null,"__"]
[null,null,null,null,null,null,null,null,"__"]
[null,null,null,null,null,null,null,null,"__"]
[null,null,null,null,null,null,null,null,"__"]
[null,null,null,null,null,null,null,null,"__"]
[null,null,null,null,null,null,null,null,"__"]
[null,null,null,null,null,null,null,null,"__"]
[null,null,null,null,null,null,null,null,"__"]
[null,null,null,null,null,null,null,null,"__"]
[null,null,null,null,null,null,null,null,"__"]
[null,null,null,null,null,null,null,null,"__"]
[null,null,null,null,null,null,null,null,"__"]
[null,null,null,null,null,null,null,null,"__"]
[null,null,null,null,null,null,null,null,"__"]
[null,null,null,null,null,null,null,null,"__"]
[null,null,null,null,null,null,null,null,"__"]
[null,null,null,null,null,null,null,null,"__"]
[null,null,null,null,null,null,null,null,"__"]
[null,null,null,null,null,null,null,null,"__"]
[null,null,null,null,null,null,null,null,"__"]
[null,null,null,null,null,null,null,null,"__"]
[null,null,null,null,null,null,null,null,"__"]
[null,null,null,null,null,null,null,null,"__"]
[null,null,null,null,null,null,null,null,"__"]
[null,null,null,null,null,null,null,null,"__"]
[null,null,null,null,null,null,null,null,"__"]
[null,null,null,null,null,null,null,null,"__"]
[null,null,null,null,null,null,null,null,"__"]
[null,null,null,null,null,null,null,null,"__"]
[null,null,null,null,null,null,null,null,"__"]
[null,null,null,null,null,null,null,null,"__"]
[null,null,null,null,null,null,null,null,"__"]
[null,null,null,null,null,null,null,null,{"$f":"CONCATENATE(A1989,\"_\",B1989,\"_\",C1989)","v":"__"}]
[null,null,null,null,null,null,null,null,"__"]
[null,null,null,null,null,null,null,null,"__"]
[null,null,null,null,null,null,null,null,"__"]
[null,null,null,null,null,null,null,null,"__"]
[null,null,null,null,null,null,null,null,"__"]
[null,null,null,null,null,null,null,null,"__"]
[null,null,null,null,null,null,null,null,"__"]
[null,null,null,null,null,null,null,null,"__"]
[null,null,null,null,null,null,null,null,"__"]
[null,null,null,null,null,null,null,null,"__"]
[null,null,null,null,null,null,null,null,"__"]
[null,null,null,null,null,null,null,null,"__"]
[null,null,null,null,null,null,null,null,"__"]
[null,null,null,null,null,null,null,null,"__"]
[null,null,null,null,null,null,null,null,"__"]
[null,null,null,null,null,null,null,null,"__"]
[null,null,null,null,null,null,null,null,"__"]
[null,null,null,null,null,null,null,null,"__"]
[null,null,null,null,null,null,null,null,"__"]
[null,null,null,null,null,null,null,null,"__"]
[null,null,null,null,null,null,null,null,"__"]
[null,null,null,null,null,null,null,null,"__"]
[null,null,null,null,null,null,null,null,"__"]
[null,null,null,null,null,null,null,null,"__"]
[null,null,null,null,null,null,null,null,"__"]
[null,null,null,null,null,null,null,null,"__"]
[null,null,null,null,null,null,null,null,"__"]
[null,null,null,null,null,null,null,null,"__"]
[null,null,null,null,null,null,null,null,"__"]
[null,null,null,null,null,null,null,null,"__"]
[null,null,null,null,null,null,null,null,"__"]
[null,null,null,null,null,null,null,null,"__"]
[null,null,null,null,null,null,null,null,"__"]
[null,null,null,null,null,null,null,null,"__"]
[null,null,null,null,null,null,null,null,"__"]
[null,null,null,null,null,null,null,null,"__"]
[null,null,null,null,null,null,null,null,"__"]
[null,null,null,null,null,null,null,null,"__"]
[null,null,null,null,null,null,null,null,"__"]
[null,null,null,null,null,null,null,null,"__"]
[null,null,null,null,null,null,null,null,"__"]
[null,null,null,null,null,null,null,null,"__"]
[null,null,null,null,null,null,null,null,"__"]
[null,null,null,null,null,null,null,null,"__"]
[null,null,null,null,null,null,null,null,"__"]
[null,null,null,null,null,null,null,null,"__"]
[null,null,null,null,null,null,null,null,"__"]
[null,null,null,null,null,null,null,null,"__"]
[null,null,null,null,null,null,null,null,"__"]
[null,null,null,null,null,null,null,null,"__"]
[null,null,null,null,null,null,null,null,"__"]
[null,null,null,null,null,null,null,null,"__"]
[null,null,null,null,null,null,null,null,"__"]
[null,null,null,null,null,null,null,null,"__"]
[null,null,null,null,null,null,null,null,"__"]
[null,null,null,null,null,null,null,null,"__"]
[null,null,null,null,null,null,null,null,"__"]
[null,null,null,null,null,null,null,null,"__"]
[null,null,null,null,null,null,null,null,"__"]
[null,null,null,null,null,null,null,null,"__"]
[null,null,null,null,null,null,null,null,"__"]
[null,null,null,null,null,null,null,null,"__"]
[null,null,null,null,null,null,null,null,"__"]
[null,null,null,null,null,null,null,null,{"$f":"CONCATENATE(A2053,\"_\",B2053,\"_\",C2053)","v":"__"}]
[null,null,null,null,null,null,null,null,"__"]
[null,null,null,null,null,null,null,null,"__"]
[null,null,null,null,null,null,null,null,"__"]
[null,null,null,null,null,null,null,null,"__"]
[null,null,null,null,null,null,null,null,"__"]
[null,null,null,null,null,null,null,null,"__"]
[null,null,null,null,null,null,null,null,"__"]
[null,null,null,null,null,null,null,null,"__"]
[null,null,null,null,null,null,null,null,"__"]
[null,null,null,null,null,null,null,null,"__"]
[null,null,null,null,null,null,null,null,"__"]
[null,null,null,null,null,null,null,null,"__"]
[null,null,null,null,null,null,null,null,"__"]
[null,null,null,null,null,null,null,null,"__"]
[null,null,null,null,null,null,null,null,"__"]
[null,null,null,null,null,null,null,null,"__"]
[null,null,null,null,null,null,null,null,"__"]
[null,null,null,null,null,null,null,null,"__"]
[null,null,null,null,null,null,null,null,"__"]
[null,null,null,null,null,null,null,null,"__"]
[null,null,null,null,null,null,null,null,"__"]
[null,null,null,null,null,null,null,null,"__"]
[null,null,null,null,null,null,null,null,"__"]
[null,null,null,null,null,null,null,null,"__"]
[null,null,null,null,null,null,null,null,"__"]
[null,null,null,null,null,null,null,null,"__"]
[null,null,null,null,null,null,null,null,"__"]
[null,null,null,null,null,null,null,null,"__"]
[null,null,null,null,null,null,null,null,"__"]
[null,null,null,null,null,null,null,null,"__"]
[null,null,null,null,null,null,null,null,"__"]
[null,null,null,null,null,null,null,null,"__"]
[null,null,null,null,null,null,null,null,"__"]
[null,null,null,null,null,null,null,null,"__"]
[null,null,null,null,null,null,null,null,"__"]
[null,null,null,null,null,null,null,null,"__"]
[null,null,null,null,null,null,null,null,"__"]
[null,null,null,null,null,null,null,null,"__"]
[null,null,null,null,null,null,null,null,"__"]
[null,null,null,null,null,null,null,null,"__"]
[null,null,null,null,null,null,null,null,"__"]
[null,null,null,null,null,null,null,null,"__"]
[null,null,null,null,null,null,null,null,"__"]
[null,null,null,null,null,null,null,null,"__"]
[null,null,null,null,null,null,null,null,"__"]
[null,null,null,null,null,null,null,null,"__"]
[null,null,null,null,null,null,null,null,"__"]
[null,null,null,null,null,null,null,null,"__"]
[null,null,null,null,null,null,null,null,"__"]
[null,null,null,null,null,null,null,null,"__"]
[null,null,null,null,null,null,null,null,"__"]
[null,null,null,null,null,null,null,null,"__"]
[null,null,null,null,null,null,null,null,"__"]
[null,null,null,null,null,null,null,null,"__"]
[null,null,null,null,null,null,null,null,"__"]
[null,null,null,null,null,null,null,null,"__"]
[null,null,null,null,null,null,null,null,"__"]
[null,null,null,null,null,null,null,null,"__"]
[null,null,null,null,null,null,null,null,"__"]
[null,null,null,null,null,null,null,null,"__"]
[null,null,null,null,null,null,null,null,"__"]
[null,null,null,null,null,null,null,null,"__"]
[null,null,null,null,null,null,null,null,"__"]
[null,null,null,null,null,null,null,null,{"$f":"CONCATENATE(A2117,\"_\",B2117,\"_\",C2117)","v":"__"}]
[null,null,null,null,null,null,null,null,"__"]
[null,null,null,null,null,null,null,null,"__"]
[null,null,null,null,null,null,null,null,"__"]
[null,null,null,null,null,null,null,null,"__"]
[null,null,null,null,null,null,null,null,"__"]
[null,null,null,null,null,null,null,null,"__"]
[null,null,null,null,null,null,null,null,"__"]
[null,null,null,null,null,null,null,null,"__"]
[null,null,null,null,null,null,null,null,"__"]
[null,null,null,null,null,null,null,null,"__"]
[null,null,null,null,null,null,null,null,"__"]
[null,null,null,null,null,null,null,null,"__"]
[null,null,null,null,null,null,null,null,"__"]
[null,null,null,null,null,null,null,null,"__"]
[null,null,null,null,null,null,null,null,"__"]
[null,null,null,null,null,null,null,null,"__"]
[null,null,null,null,null,null,null,null,"__"]
[null,null,null,null,null,null,null,null,"__"]
[null,null,null,null,null,null,null,null,"__"]
[null,null,null,null,null,null,null,null,"__"]
[null,null,null,null,null,null,null,null,"__"]
[null,null,null,null,null,null,null,null,"__"]
[null,null,null,null,null,null,null,null,"__"]
[null,null,null,null,null,null,null,null,"__"]
[null,null,null,null,null,null,null,null,"__"]
[null,null,null,null,null,null,null,null,"__"]
[null,null,null,null,null,null,null,null,"__"]
[null,null,null,null,null,null,null,null,"__"]
[null,null,null,null,null,null,null,null,"__"]
[null,null,null,null,null,null,null,null,"__"]
[null,null,null,null,null,null,null,null,"__"]
[null,null,null,null,null,null,null,null,"__"]
[null,null,null,null,null,null,null,null,"__"]
[null,null,null,null,null,null,null,null,"__"]
[null,null,null,null,null,null,null,null,"__"]
[null,null,null,null,null,null,null,null,"__"]
[null,null,null,null,null,null,null,null,"__"]
[null,null,null,null,null,null,null,null,"__"]
[null,null,null,null,null,null,null,null,"__"]
[null,null,null,null,null,null,null,null,"__"]
[null,null,null,null,null,null,null,null,"__"]
[null,null,null,null,null,null,null,null,"__"]
[null,null,null,null,null,null,null,null,"__"]
[null,null,null,null,null,null,null,null,"__"]
[null,null,null,null,null,null,null,null,"__"]
[null,null,null,null,null,null,null,null,"__"]
[null,null,null,null,null,null,null,null,"__"]
[null,null,null,null,null,null,null,null,"__"]
[null,null,null,null,null,null,null,null,"__"]
[null,null,null,null,null,null,null,null,"__"]
[null,null,null,null,null,null,null,null,"__"]
[null,null,null,null,null,null,null,null,"__"]
[null,null,null,null,null,null,null,null,"__"]
[null,null,null,null,null,null,null,null,"__"]
[null,null,null,null,null,null,null,null,"__"]
[null,null,null,null,null,null,null,null,"__"]
[null,null,null,null,null,null,null,null,"__"]
[null,null,null,null,null,null,null,null,"__"]
[null,null,null,null,null,null,null,null,"__"]
[null,null,null,null,null,null,null,null,"__"]
[null,null,null,null,null,null,null,null,"__"]
[null,null,null,null,null,null,null,null,"__"]
[null,null,null,null,null,null,null,null,"__"]
[null,null,null,null,null,null,null,null,{"$f":"CONCATENATE(A2181,\"_\",B2181,\"_\",C2181)","v":"__"}]
[null,null,null,null,null,null,null,null,"__"]
[null,null,null,null,null,null,null,null,"__"]
[null,null,null,null,null,null,null,null,"__"]
[null,null,null,null,null,null,null,null,"__"]
[null,null,null,null,null,null,null,null,"__"]
[null,null,null,null,null,null,null,null,"__"]
[null,null,null,null,null,null,null,null,"__"]
[null,null,null,null,null,null,null,null,"__"]
[null,null,null,null,null,null,null,null,"__"]
[null,null,null,null,null,null,null,null,"__"]
[null,null,null,null,null,null,null,null,"__"]
[null,null,null,null,null,null,null,null,"__"]
[null,null,null,null,null,null,null,null,"__"]
[null,null,null,null,null,null,null,null,"__"]
[null,null,null,null,null,null,null,null,"__"]
[null,null,null,null,null,null,null,null,"__"]
[null,null,null,null,null,null,null,null,"__"]
[null,null,null,null,null,null,null,null,"__"]
[null,null,null,null,null,null,null,null,"__"]
[null,null,null,null,null,null,null,null,"__"]
[null,null,null,null,null,null,null,null,"__"]
[null,null,null,null,null,null,null,null,"__"]
[null,null,null,null,null,null,null,null,"__"]
[null,null,null,null,null,null,null,null,"__"]
[null,null,null,null,null,null,null,null,"__"]
[null,null,null,null,null,null,null,null,"__"]
[null,null,null,null,null,null,null,null,"__"]
[null,null,null,null,null,null,null,null,"__"]
[null,null,null,null,null,null,null,null,"__"]
[null,null,null,null,null,null,null,null,"__"]
[null,null,null,null,null,null,null,null,"__"]
[null,null,null,null,null,null,null,null,"__"]
[null,null,null,null,null,null,null,null,"__"]
[null,null,null,null,null,null,null,null,"__"]
[null,null,null,null,null,null,null,null,"__"]
[null,null,null,null,null,null,null,null,"__"]
[null,null,null,null,null,null,null,null,"__"]
[null,null,null,null,null,null,null,null,"__"]
[null,null,null,null,null,null,null,null,"__"]
[null,null,null,null,null,null,null,null,"__"]
[null,null,null,null,null,null,null,null,"__"]
[null,null,null,null,null,null,null,null,"__"]
[null,null,null,null,null,null,null,null,"__"]
[null,null,null,null,null,null,null,null,"__"]
[null,null,null,null,null,null,null,null,"__"]
[null,null,null,null,null,null,null,null,"__"]
[null,null,null,null,null,null,null,null,"__"]
[null,null,null,null,null,null,null,null,"__"]
[null,null,null,null,null,null,null,null,"__"]
[null,null,null,null,null,null,null,null,"__"]
[null,null,null,null,null,null,null,null,"__"]
[null,null,null,null,null,null,null,null,"__"]
[null,null,null,null,null,null,null,null,"__"]
[null,null,null,null,null,null,null,null,"__"]
[null,null,null,null,null,null,null,null,"__"]
[null,null,null,null,null,null,null,null,"__"]
[null,null,null,null,null,null,null,null,"__"]
[null,null,null,null,null,null,null,null,"__"]
[null,null,null,null,null,null,null,null,"__"]
[null,null,null,null,null,null,null,null,"__"]
[null,null,null,null,null,null,null,null,"__"]
[null,null,null,null,null,null,null,null,"__"]
[null,null,null,null,null,null,null,null,"__"]
[null,null,null,null,null,null,null,null,{"$f":"CONCATENATE(A2245,\"_\",B2245,\"_\",C2245)","v":"__"}]
[null,null,null,null,null,null,null,null,"__"]
[null,null,null,null,null,null,null,null,"__"]
[null,null,null,null,null,null,null,null,"__"]
[null,null,null,null,null,null,null,null,"__"]
[null,null,null,null,null,null,null,null,"__"]
[null,null,null,null,null,null,null,null,"__"]
[null,null,null,null,null,null,null,null,"__"]
[null,null,null,null,null,null,null,null,"__"]
[null,null,null,null,null,null,null,null,"__"]
[null,null,null,null,null,null,null,null,"__"]
[null,null,null,null,null,null,null,null,"__"]
[null,null,null,null,null,null,null,null,"__"]
[null,null,null,null,null,null,null,null,"__"]
[null,null,null,null,null,null,null,null,"__"]
[null,null,null,null,null,null,null,null,"__"]
[null,null,null,null,null,null,null,null,"__"]
[null,null,null,null,null,null,null,null,"__"]
[null,null,null,null,null,null,null,null,"__"]
[null,null,null,null,null,null,null,null,"__"]
[null,null,null,null,null,null,null,null,"__"]
[null,null,null,null,null,null,null,null,"__"]
[null,null,null,null,null,null,null,null,"__"]
[null,null,null,null,null,null,null,null,"__"]
[null,null,null,null,null,null,null,null,"__"]
[null,null,null,null,null,null,null,null,"__"]
[null,null,null,null,null,null,null,null,"__"]
[null,null,null,null,null,null,null,null,"__"]
[null,null,null,null,null,null,null,null,"__"]
[null,null,null,null,null,null,null,null,"__"]
[null,null,null,null,null,null,null,null,"__"]
[null,null,null,null,null,null,null,null,"__"]
[null,null,null,null,null,null,null,null,"__"]
[null,null,null,null,null,null,null,null,"__"]
[null,null,null,null,null,null,null,null,"__"]
[null,null,null,null,null,null,null,null,"__"]
[null,null,null,null,null,null,null,null,"__"]
[null,null,null,null,null,null,null,null,"__"]
[null,null,null,null,null,null,null,null,"__"]
[null,null,null,null,null,null,null,null,"__"]
[null,null,null,null,null,null,null,null,"__"]
[null,null,null,null,null,null,null,null,"__"]
[null,null,null,null,null,null,null,null,"__"]
[null,null,null,null,null,null,null,null,"__"]
[null,null,null,null,null,null,null,null,"__"]
[null,null,null,null,null,null,null,null,"__"]
[null,null,null,null,null,null,null,null,"__"]
[null,null,null,null,null,null,null,null,"__"]
[null,null,null,null,null,null,null,null,"__"]
[null,null,null,null,null,null,null,null,"__"]
[null,null,null,null,null,null,null,null,"__"]
[null,null,null,null,null,null,null,null,"__"]
[null,null,null,null,null,null,null,null,"__"]
[null,null,null,null,null,null,null,null,"__"]
[null,null,null,null,null,null,null,null,"__"]
[null,null,null,null,null,null,null,null,"__"]
[null,null,null,null,null,null,null,null,"__"]
[null,null,null,null,null,null,null,null,"__"]
[null,null,null,null,null,null,null,null,"__"]
[null,null,null,null,null,null,null,null,"__"]
[null,null,null,null,null,null,null,null,"__"]
[null,null,null,null,null,null,null,null,"__"]
[null,null,null,null,null,null,null,null,"__"]
[null,null,null,null,null,null,null,null,"__"]
[null,null,null,null,null,null,null,null,{"$f":"CONCATENATE(A2309,\"_\",B2309,\"_\",C2309)","v":"__"}]
[null,null,null,null,null,null,null,null,"__"]
[null,null,null,null,null,null,null,null,"__"]
[null,null,null,null,null,null,null,null,"__"]
[null,null,null,null,null,null,null,null,"__"]
[null,null,null,null,null,null,null,null,"__"]
[null,null,null,null,null,null,null,null,"__"]
[null,null,null,null,null,null,null,null,"__"]
[null,null,null,null,null,null,null,null,"__"]
[null,null,null,null,null,null,null,null,"__"]
[null,null,null,null,null,null,null,null,"__"]
[null,null,null,null,null,null,null,null,"__"]
[null,null,null,null,null,null,null,null,"__"]
[null,null,null,null,null,null,null,null,"__"]
[null,null,null,null,null,null,null,null,"__"]
[null,null,null,null,null,null,null,null,"__"]
[null,null,null,null,null,null,null,null,"__"]
[null,null,null,null,null,null,null,null,"__"]
[null,null,null,null,null,null,null,null,"__"]
[null,null,null,null,null,null,null,null,"__"]
[null,null,null,null,null,null,null,null,"__"]
[null,null,null,null,null,null,null,null,"__"]
[null,null,null,null,null,null,null,null,"__"]
[null,null,null,null,null,null,null,null,"__"]
[null,null,null,null,null,null,null,null,"__"]
[null,null,null,null,null,null,null,null,"__"]
[null,null,null,null,null,null,null,null,"__"]
[null,null,null,null,null,null,null,null,"__"]
[null,null,null,null,null,null,null,null,"__"]
[null,null,null,null,null,null,null,null,"__"]
[null,null,null,null,null,null,null,null,"__"]
[null,null,null,null,null,null,null,null,"__"]
[null,null,null,null,null,null,null,null,"__"]
[null,null,null,null,null,null,null,null,"__"]
[null,null,null,null,null,null,null,null,"__"]
[null,null,null,null,null,null,null,null,"__"]
[null,null,null,null,null,null,null,null,"__"]
[null,null,null,null,null,null,null,null,"__"]
[null,null,null,null,null,null,null,null,"__"]
[null,null,null,null,null,null,null,null,"__"]
[null,null,null,null,null,null,null,null,"__"]
[null,null,null,null,null,null,null,null,"__"]
[null,null,null,null,null,null,null,null,"__"]
[null,null,null,null,null,null,null,null,"__"]
[null,null,null,null,null,null,null,null,"__"]
[null,null,null,null,null,null,null,null,"__"]
[null,null,null,null,null,null,null,null,"__"]
[null,null,null,null,null,null,null,null,"__"]
[null,null,null,null,null,null,null,null,"__"]
[null,null,null,null,null,null,null,null,"__"]
[null,null,null,null,null,null,null,null,"__"]
[null,null,null,null,null,null,null,null,"__"]
[null,null,null,null,null,null,null,null,"__"]
[null,null,null,null,null,null,null,null,"__"]
[null,null,null,null,null,null,null,null,"__"]
[null,null,null,null,null,null,null,null,"__"]
[null,null,null,null,null,null,null,null,"__"]
[null,null,null,null,null,null,null,null,"__"]
[null,null,null,null,null,null,null,null,"__"]
[null,null,null,null,null,null,null,null,"__"]
[null,null,null,null,null,null,null,null,"__"]
[null,null,null,null,null,null,null,null,"__"]
[null,null,null,null,null,null,null,null,"__"]
[null,null,null,null,null,null,null,null,"__"]
[null,null,null,null,null,null,null,null,{"$f":"CONCATENATE(A2373,\"_\",B2373,\"_\",C2373)","v":"__"}]
[null,null,null,null,null,null,null,null,"__"]
[null,null,null,null,null,null,null,null,"__"]
[null,null,null,null,null,null,null,null,"__"]
[null,null,null,null,null,null,null,null,"__"]
[null,null,null,null,null,null,null,null,"__"]
[null,null,null,null,null,null,null,null,"__"]
[null,null,null,null,null,null,null,null,"__"]
[null,null,null,null,null,null,null,null,"__"]
[null,null,null,null,null,null,null,null,"__"]
[null,null,null,null,null,null,null,null,"__"]
[null,null,null,null,null,null,null,null,"__"]
[null,null,null,null,null,null,null,null,"__"]
[null,null,null,null,null,null,null,null,"__"]
[null,null,null,null,null,null,null,null,"__"]
[null,null,null,null,null,null,null,null,"__"]
[null,null,null,null,null,null,null,null,"__"]
[null,null,null,null,null,null,null,null,"__"]
[null,null,null,null,null,null,null,null,"__"]
[null,null,null,null,null,null,null,null,"__"]
[null,null,null,null,null,null,null,null,"__"]
[null,null,null,null,null,null,null,null,"__"]
[null,null,null,null,null,null,null,null,"__"]
[null,null,null,null,null,null,null,null,"__"]
[null,null,null,null,null,null,null,null,"__"]
[null,null,null,null,null,null,null,null,"__"]
[null,null,null,null,null,null,null,null,"__"]
[null,null,null,null,null,null,null,null,"__"]
[null,null,null,null,null,null,null,null,"__"]
[null,null,null,null,null,null,null,null,"__"]
[null,null,null,null,null,null,null,null,"__"]
[null,null,null,null,null,null,null,null,"__"]
[null,null,null,null,null,null,null,null,"__"]
[null,null,null,null,null,null,null,null,"__"]
[null,null,null,null,null,null,null,null,"__"]
[null,null,null,null,null,null,null,null,"__"]
[null,null,null,null,null,null,null,null,"__"]
[null,null,null,null,null,null,null,null,"__"]
[null,null,null,null,null,null,null,null,"__"]
[null,null,null,null,null,null,null,null,"__"]
[null,null,null,null,null,null,null,null,"__"]
[null,null,null,null,null,null,null,null,"__"]
[null,null,null,null,null,null,null,null,"__"]
[null,null,null,null,null,null,null,null,"__"]
[null,null,null,null,null,null,null,null,"__"]
[null,null,null,null,null,null,null,null,"__"]
[null,null,null,null,null,null,null,null,"__"]
[null,null,null,null,null,null,null,null,"__"]
[null,null,null,null,null,null,null,null,"__"]
[null,null,null,null,null,null,null,null,"__"]
[null,null,null,null,null,null,null,null,"__"]
[null,null,null,null,null,null,null,null,"__"]
[null,null,null,null,null,null,null,null,"__"]
[null,null,null,null,null,null,null,null,"__"]
[null,null,null,null,null,null,null,null,"__"]
[null,null,null,null,null,null,null,null,"__"]
[null,null,null,null,null,null,null,null,"__"]
[null,null,null,null,null,null,null,null,"__"]
[null,null,null,null,null,null,null,null,"__"]
[null,null,null,null,null,null,null,null,"__"]
[null,null,null,null,null,null,null,null,"__"]
[null,null,null,null,null,null,null,null,"__"]
[null,null,null,null,null,null,null,null,"__"]
[null,null,null,null,null,null,null,null,"__"]
[null,null,null,null,null,null,null,null,{"$f":"CONCATENATE(A2437,\"_\",B2437,\"_\",C2437)","v":"__"}]
[null,null,null,null,null,null,null,null,"__"]
[null,null,null,null,null,null,null,null,"__"]
[null,null,null,null,null,null,null,null,"__"]
[null,null,null,null,null,null,null,null,"__"]
[null,null,null,null,null,null,null,null,"__"]
[null,null,null,null,null,null,null,null,"__"]
[null,null,null,null,null,null,null,null,"__"]
[null,null,null,null,null,null,null,null,"__"]
[null,null,null,null,null,null,null,null,"__"]
[null,null,null,null,null,null,null,null,"__"]
[null,null,null,null,null,null,null,null,"__"]
[null,null,null,null,null,null,null,null,"__"]
[null,null,null,null,null,null,null,null,"__"]
[null,null,null,null,null,null,null,null,"__"]
[null,null,null,null,null,null,null,null,"__"]
[null,null,null,null,null,null,null,null,"__"]
[null,null,null,null,null,null,null,null,"__"]
[null,null,null,null,null,null,null,null,"__"]
[null,null,null,null,null,null,null,null,"__"]
[null,null,null,null,null,null,null,null,"__"]
[null,null,null,null,null,null,null,null,"__"]
[null,null,null,null,null,null,null,null,"__"]
[null,null,null,null,null,null,null,null,"__"]
[null,null,null,null,null,null,null,null,"__"]
[null,null,null,null,null,null,null,null,"__"]
[null,null,null,null,null,null,null,null,"__"]
[null,null,null,null,null,null,null,null,"__"]
[null,null,null,null,null,null,null,null,"__"]
[null,null,null,null,null,null,null,null,"__"]
[null,null,null,null,null,null,null,null,"__"]
[null,null,null,null,null,null,null,null,"__"]
[null,null,null,null,null,null,null,null,"__"]
[null,null,null,null,null,null,null,null,"__"]
[null,null,null,null,null,null,null,null,"__"]
[null,null,null,null,null,null,null,null,"__"]
[null,null,null,null,null,null,null,null,"__"]
[null,null,null,null,null,null,null,null,"__"]
[null,null,null,null,null,null,null,null,"__"]
[null,null,null,null,null,null,null,null,"__"]
[null,null,null,null,null,null,null,null,"__"]
[null,null,null,null,null,null,null,null,"__"]
[null,null,null,null,null,null,null,null,"__"]
[null,null,null,null,null,null,null,null,"__"]
[null,null,null,null,null,null,null,null,"__"]
[null,null,null,null,null,null,null,null,"__"]
[null,null,null,null,null,null,null,null,"__"]
[null,null,null,null,null,null,null,null,"__"]
[null,null,null,null,null,null,null,null,"__"]
[null,null,null,null,null,null,null,null,"__"]
[null,null,null,null,null,null,null,null,"__"]
[null,null,null,null,null,null,null,null,"__"]
[null,null,null,null,null,null,null,null,"__"]
[null,null,null,null,null,null,null,null,"__"]
[null,null,null,null,null,null,null,null,"__"]
[null,null,null,null,null,null,null,null,"__"]
[null,null,null,null,null,null,null,null,"__"]
[null,null,null,null,null,null,null,null,"__"]
[null,null,null,null,null,null,null,null,"__"]
[null,null,null,null,null,null,null,null,"__"]
[null,null,null,null,null,null,null,null,"__"]
[null,null,null,null,null,null,null,null,"__"]
[null,null,null,null,null,null,null,null,"__"]
[null,null,null,null,null,null,null,null,"__"]
[null,null,null,null,null,null,null,null,{"$f":"CONCATENATE(A2501,\"_\",B2501,\"_\",C2501)","v":"__"}]
[null,null,null,null,null,null,null,null,"__"]
[null,null,null,null,null,null,null,null,"__"]
[null,null,null,null,null,null,null,null,"__"]
[null,null,null,null,null,null,null,null,"__"]
[null,null,null,null,null,null,null,null,"__"]
[null,null,null,null,null,null,null,null,"__"]
[null,null,null,null,null,null,null,null,"__"]
[null,null,null,null,null,null,null,null,"__"]
[null,null,null,null,null,null,null,null,"__"]
[null,null,null,null,null,null,null,null,"__"]
[null,null,null,null,null,null,null,null,"__"]
[null,null,null,null,null,null,null,null,"__"]
[null,null,null,null,null,null,null,null,"__"]
[null,null,null,null,null,null,null,null,"__"]
[null,null,null,null,null,null,null,null,"__"]
[null,null,null,null,null,null,null,null,"__"]
[null,null,null,null,null,null,null,null,"__"]
[null,null,null,null,null,null,null,null,"__"]
[null,null,null,null,null,null,null,null,"__"]
[null,null,null,null,null,null,null,null,"__"]
[null,null,null,null,null,null,null,null,"__"]
[null,null,null,null,null,null,null,null,"__"]
[null,null,null,null,null,null,null,null,"__"]
[null,null,null,null,null,null,null,null,"__"]
[null,null,null,null,null,null,null,null,"__"]
[null,null,null,null,null,null,null,null,"__"]
[null,null,null,null,null,null,null,null,"__"]
[null,null,null,null,null,null,null,null,"__"]
[null,null,null,null,null,null,null,null,"__"]
[null,null,null,null,null,null,null,null,"__"]
[null,null,null,null,null,null,null,null,"__"]
[null,null,null,null,null,null,null,null,"__"]
[null,null,null,null,null,null,null,null,"__"]
[null,null,null,null,null,null,null,null,"__"]
[null,null,null,null,null,null,null,null,"__"]
[null,null,null,null,null,null,null,null,"__"]
[null,null,null,null,null,null,null,null,"__"]
[null,null,null,null,null,null,null,null,"__"]
[null,null,null,null,null,null,null,null,"__"]
[null,null,null,null,null,null,null,null,"__"]
[null,null,null,null,null,null,null,null,"__"]
[null,null,null,null,null,null,null,null,"__"]
[null,null,null,null,null,null,null,null,"__"]
[null,null,null,null,null,null,null,null,"__"]
[null,null,null,null,null,null,null,null,"__"]
[null,null,null,null,null,null,null,null,"__"]
[null,null,null,null,null,null,null,null,"__"]
[null,null,null,null,null,null,null,null,"__"]
[null,null,null,null,null,null,null,null,"__"]
[null,null,null,null,null,null,null,null,"__"]
[null,null,null,null,null,null,null,null,"__"]
[null,null,null,null,null,null,null,null,"__"]
[null,null,null,null,null,null,null,null,"__"]
[null,null,null,null,null,null,null,null,"__"]
[null,null,null,null,null,null,null,null,"__"]
[null,null,null,null,null,null,null,null,"__"]
[null,null,null,null,null,null,null,null,"__"]
[null,null,null,null,null,null,null,null,"__"]
[null,null,null,null,null,null,null,null,"__"]
[null,null,null,null,null,null,null,null,"__"]
[null,null,null,null,null,null,null,null,"__"]
[null,null,null,null,null,null,null,null,"__"]
[null,null,null,null,null,null,null,null,"__"]
[null,null,null,null,null,null,null,null,{"$f":"CONCATENATE(A2565,\"_\",B2565,\"_\",C2565)","v":"__"}]
[null,null,null,null,null,null,null,null,"__"]
[null,null,null,null,null,null,null,null,"__"]
[null,null,null,null,null,null,null,null,"__"]
[null,null,null,null,null,null,null,null,"__"]
[null,null,null,null,null,null,null,null,"__"]
[null,null,null,null,null,null,null,null,"__"]
[null,null,null,null,null,null,null,null,"__"]
[null,null,null,null,null,null,null,null,"__"]
[null,null,null,null,null,null,null,null,"__"]
[null,null,null,null,null,null,null,null,"__"]
[null,null,null,null,null,null,null,null,"__"]
[null,null,null,null,null,null,null,null,"__"]
[null,null,null,null,null,null,null,null,"__"]
[null,null,null,null,null,null,null,null,"__"]
[null,null,null,null,null,null,null,null,"__"]
[null,null,null,null,null,null,null,null,"__"]
[null,null,null,null,null,null,null,null,"__"]
[null,null,null,null,null,null,null,null,"__"]
[null,null,null,null,null,null,null,null,"__"]
[null,null,null,null,null,null,null,null,"__"]
[null,null,null,null,null,null,null,null,"__"]
[null,null,null,null,null,null,null,null,"__"]
[null,null,null,null,null,null,null,null,"__"]
[null,null,null,null,null,null,null,null,"__"]
[null,null,null,null,null,null,null,null,"__"]
[null,null,null,null,null,null,null,null,"__"]
[null,null,null,null,null,null,null,null,"__"]
[null,null,null,null,null,null,null,null,"__"]
[null,null,null,null,null,null,null,null,"__"]
[null,null,null,null,null,null,null,null,"__"]
[null,null,null,null,null,null,null,null,"__"]
[null,null,null,null,null,null,null,null,"__"]
[null,null,null,null,null,null,null,null,"__"]
[null,null,null,null,null,null,null,null,"__"]
[null,null,null,null,null,null,null,null,"__"]
[null,null,null,null,null,null,null,null,"__"]
[null,null,null,null,null,null,null,null,"__"]
[null,null,null,null,null,null,null,null,"__"]
[null,null,null,null,null,null,null,null,"__"]
[null,null,null,null,null,null,null,null,"__"]
[null,null,null,null,null,null,null,null,"__"]
[null,null,null,null,null,null,null,null,"__"]
[null,null,null,null,null,null,null,null,"__"]
[null,null,null,null,null,null,null,null,"__"]
[null,null,null,null,null,null,null,null,"__"]
[null,null,null,null,null,null,null,null,"__"]
[null,null,null,null,null,null,null,null,"__"]
[null,null,null,null,null,null,null,null,"__"]
[null,null,null,null,null,null,null,null,"__"]
[null,null,null,null,null,null,null,null,"__"]
[null,null,null,null,null,null,null,null,"__"]
[null,null,null,null,null,null,null,null,"__"]
[null,null,null,null,null,null,null,null,"__"]
[null,null,null,null,null,null,null,null,"__"]
[null,null,null,null,null,null,null,null,"__"]
[null,null,null,null,null,null,null,null,"__"]
[null,null,null,null,null,null,null,null,"__"]
[null,null,null,null,null,null,null,null,"__"]
[null,null,null,null,null,null,null,null,"__"]
[null,null,null,null,null,null,null,null,"__"]
[null,null,null,null,null,null,null,null,"__"]
[null,null,null,null,null,null,null,null,"__"]
[null,null,null,null,null,null,null,null,"__"]
[null,null,null,null,null,null,null,null,{"$f":"CONCATENATE(A2629,\"_\",B2629,\"_\",C2629)","v":"__"}]
[null,null,null,null,null,null,null,null,"__"]
[null,null,null,null,null,null,null,null,"__"]
[null,null,null,null,null,null,null,null,"__"]
[null,null,null,null,null,null,null,null,"__"]
[null,null,null,null,null,null,null,null,"__"]
[null,null,null,null,null,null,null,null,"__"]
[null,null,null,null,null,null,null,null,"__"]
[null,null,null,null,null,null,null,null,"__"]
[null,null,null,null,null,null,null,null,"__"]
[null,null,null,null,null,null,null,null,"__"]
[null,null,null,null,null,null,null,null,"__"]
[null,null,null,null,null,null,null,null,"__"]
[null,null,null,null,null,null,null,null,"__"]
[null,null,null,null,null,null,null,null,"__"]
[null,null,null,null,null,null,null,null,"__"]
[null,null,null,null,null,null,null,null,"__"]
[null,null,null,null,null,null,null,null,"__"]
[null,null,null,null,null,null,null,null,"__"]
[null,null,null,null,null,null,null,null,"__"]
[null,null,null,null,null,null,null,null,"__"]
[null,null,null,null,null,null,null,null,"__"]
[null,null,null,null,null,null,null,null,"__"]
[null,null,null,null,null,null,null,null,"__"]
[null,null,null,null,null,null,null,null,"__"]
[null,null,null,null,null,null,null,null,"__"]
[null,null,null,null,null,null,null,null,"__"]
[null,null,null,null,null,null,null,null,"__"]
[null,null,null,null,null,null,null,null,"__"]
[null,null,null,null,null,null,null,null,"__"]
[null,null,null,null,null,null,null,null,"__"]
[null,null,null,null,null,null,null,null,"__"]
[null,null,null,null,null,null,null,null,"__"]
[null,null,null,null,null,null,null,null,"__"]
[null,null,null,null,null,null,null,null,"__"]
[null,null,null,null,null,null,null,null,"__"]
[null,null,null,null,null,null,null,null,"__"]
[null,null,null,null,null,null,null,null,"__"]
[null,null,null,null,null,null,null,null,"__"]
[null,null,null,null,null,null,null,null,"__"]
[null,null,null,null,null,null,null,null,"__"]
[null,null,null,null,null,null,null,null,"__"]
[null,null,null,null,null,null,null,null,"__"]
[null,null,null,null,null,null,null,null,"__"]
[null,null,null,null,null,null,null,null,"__"]
[null,null,null,null,null,null,null,null,"__"]
[null,null,null,null,null,null,null,null,"__"]
[null,null,null,null,null,null,null,null,"__"]
[null,null,null,null,null,null,null,null,"__"]
[null,null,null,null,null,null,null,null,"__"]
[null,null,null,null,null,null,null,null,"__"]
[null,null,null,null,null,null,null,null,"__"]
[null,null,null,null,null,null,null,null,"__"]
[null,null,null,null,null,null,null,null,"__"]
[null,null,null,null,null,null,null,null,"__"]
[null,null,null,null,null,null,null,null,"__"]
[null,null,null,null,null,null,null,null,"__"]
[null,null,null,null,null,null,null,null,"__"]
[null,null,null,null,null,null,null,null,"__"]
[null,null,null,null,null,null,null,null,"__"]
[null,null,null,null,null,null,null,null,"__"]
[null,null,null,null,null,null,null,null,"__"]
[null,null,null,null,null,null,null,null,"__"]
[null,null,null,null,null,null,null,null,"__"]
[null,null,null,null,null,null,null,null,{"$f":"CONCATENATE(A2693,\"_\",B2693,\"_\",C2693)","v":"__"}]
[null,null,null,null,null,null,null,null,"__"]
[null,null,null,null,null,null,null,null,"__"]
[null,null,null,null,null,null,null,null,"__"]
[null,null,null,null,null,null,null,null,"__"]
[null,null,null,null,null,null,null,null,"__"]
[null,null,null,null,null,null,null,null,"__"]
[null,null,null,null,null,null,null,null,"__"]
[null,null,null,null,null,null,null,null,"__"]
[null,null,null,null,null,null,null,null,"__"]
[null,null,null,null,null,null,null,null,"__"]
[null,null,null,null,null,null,null,null,"__"]
[null,null,null,null,null,null,null,null,"__"]
[null,null,null,null,null,null,null,null,"__"]
[null,null,null,null,null,null,null,null,"__"]
[null,null,null,null,null,null,null,null,"__"]
[null,null,null,null,null,null,null,null,"__"]
[null,null,null,null,null,null,null,null,"__"]
[null,null,null,null,null,null,null,null,"__"]
[null,null,null,null,null,null,null,null,"__"]
[null,null,null,null,null,null,null,null,"__"]
[null,null,null,null,null,null,null,null,"__"]
[null,null,null,null,null,null,null,null,"__"]
[null,null,null,null,null,null,null,null,"__"]
[null,null,null,null,null,null,null,null,"__"]
[null,null,null,null,null,null,null,null,"__"]
[null,null,null,null,null,null,null,null,"__"]
[null,null,null,null,null,null,null,null,"__"]
[null,null,null,null,null,null,null,null,"__"]
[null,null,null,null,null,null,null,null,"__"]
[null,null,null,null,null,null,null,null,"__"]
[null,null,null,null,null,null,null,null,"__"]
[null,null,null,null,null,null,null,null,"__"]
[null,null,null,null,null,null,null,null,"__"]
[null,null,null,null,null,null,null,null,"__"]
[null,null,null,null,null,null,null,null,"__"]
[null,null,null,null,null,null,null,null,"__"]
[null,null,null,null,null,null,null,null,"__"]
[null,null,null,null,null,null,null,null,"__"]
[null,null,null,null,null,null,null,null,"__"]
[null,null,null,null,null,null,null,null,"__"]
[null,null,null,null,null,null,null,null,"__"]
[null,null,null,null,null,null,null,null,"__"]
[null,null,null,null,null,null,null,null,"__"]
[null,null,null,null,null,null,null,null,"__"]
[null,null,null,null,null,null,null,null,"__"]
[null,null,null,null,null,null,null,null,"__"]
[null,null,null,null,null,null,null,null,"__"]
[null,null,null,null,null,null,null,null,"__"]
[null,null,null,null,null,null,null,null,"__"]
[null,null,null,null,null,null,null,null,"__"]
[null,null,null,null,null,null,null,null,"__"]
[null,null,null,null,null,null,null,null,"__"]
[null,null,null,null,null,null,null,null,"__"]
[null,null,null,null,null,null,null,null,"__"]
[null,null,null,null,null,null,null,null,"__"]
[null,null,null,null,null,null,null,null,"__"]
[null,null,null,null,null,null,null,null,"__"]
[null,null,null,null,null,null,null,null,"__"]
[null,null,null,null,null,null,null,null,"__"]
[null,null,null,null,null,null,null,null,"__"]
[null,null,null,null,null,null,null,null,"__"]
[null,null,null,null,null,null,null,null,"__"]
[null,null,null,null,null,null,null,null,"__"]
[null,null,null,null,null,null,null,null,{"$f":"CONCATENATE(A2757,\"_\",B2757,\"_\",C2757)","v":"__"}]
[null,null,null,null,null,null,null,null,"__"]
[null,null,null,null,null,null,null,null,"__"]
[null,null,null,null,null,null,null,null,"__"]
[null,null,null,null,null,null,null,null,"__"]
[null,null,null,null,null,null,null,null,"__"]
[null,null,null,null,null,null,null,null,"__"]
[null,null,null,null,null,null,null,null,"__"]
[null,null,null,null,null,null,null,null,"__"]
[null,null,null,null,null,null,null,null,"__"]
[null,null,null,null,null,null,null,null,"__"]
[null,null,null,null,null,null,null,null,"__"]
[null,null,null,null,null,null,null,null,"__"]
[null,null,null,null,null,null,null,null,"__"]
[null,null,null,null,null,null,null,null,"__"]
[null,null,null,null,null,null,null,null,"__"]
[null,null,null,null,null,null,null,null,"__"]
[null,null,null,null,null,null,null,null,"__"]
[null,null,null,null,null,null,null,null,"__"]
[null,null,null,null,null,null,null,null,"__"]
[null,null,null,null,null,null,null,null,"__"]
[null,null,null,null,null,null,null,null,"__"]
[null,null,null,null,null,null,null,null,"__"]
[null,null,null,null,null,null,null,null,"__"]
[null,null,null,null,null,null,null,null,"__"]
[null,null,null,null,null,null,null,null,"__"]
[null,null,null,null,null,null,null,null,"__"]
[null,null,null,null,null,null,null,null,"__"]
[null,null,null,null,null,null,null,null,"__"]
[null,null,null,null,null,null,null,null,"__"]
[null,null,null,null,null,null,null,null,"__"]
[null,null,null,null,null,null,null,null,"__"]
[null,null,null,null,null,null,null,null,"__"]
[null,null,null,null,null,null,null,null,"__"]
[null,null,null,null,null,null,null,null,"__"]
[null,null,null,null,null,null,null,null,"__"]
[null,null,null,null,null,null,null,null,"__"]
[null,null,null,null,null,null,null,null,"__"]
[null,null,null,null,null,null,null,null,"__"]
[null,null,null,null,null,null,null,null,"__"]
[null,null,null,null,null,null,null,null,"__"]
[null,null,null,null,null,null,null,null,"__"]
[null,null,null,null,null,null,null,null,"__"]
[null,null,null,null,null,null,null,null,"__"]
[null,null,null,null,null,null,null,null,"__"]
[null,null,null,null,null,null,null,null,"__"]
[null,null,null,null,null,null,null,null,"__"]
[null,null,null,null,null,null,null,null,"__"]
[null,null,null,null,null,null,null,null,"__"]
[null,null,null,null,null,null,null,null,"__"]
[null,null,null,null,null,null,null,null,"__"]
[null,null,null,null,null,null,null,null,"__"]
[null,null,null,null,null,null,null,null,"__"]
[null,null,null,null,null,null,null,null,"__"]
[null,null,null,null,null,null,null,null,"__"]
[null,null,null,null,null,null,null,null,"__"]
[null,null,null,null,null,null,null,null,"__"]
[null,null,null,null,null,null,null,null,"__"]
[null,null,null,null,null,null,null,null,"__"]
[null,null,null,null,null,null,null,null,"__"]
[null,null,null,null,null,null,null,null,"__"]
[null,null,null,null,null,null,null,null,"__"]
[null,null,null,null,null,null,null,null,"__"]
[null,null,null,null,null,null,null,null,"__"]
[null,null,null,null,null,null,null,null,{"$f":"CONCATENATE(A2821,\"_\",B2821,\"_\",C2821)","v":"__"}]
[null,null,null,null,null,null,null,null,"__"]
[null,null,null,null,null,null,null,null,"__"]
[null,null,null,null,null,null,null,null,"__"]
[null,null,null,null,null,null,null,null,"__"]
[null,null,null,null,null,null,null,null,"__"]
[null,null,null,null,null,null,null,null,"__"]
[null,null,null,null,null,null,null,null,"__"]
[null,null,null,null,null,null,null,null,"__"]
[null,null,null,null,null,null,null,null,"__"]
[null,null,null,null,null,null,null,null,"__"]
[null,null,null,null,null,null,null,null,"__"]
[null,null,null,null,null,null,null,null,"__"]
[null,null,null,null,null,null,null,null,"__"]
[null,null,null,null,null,null,null,null,"__"]
[null,null,null,null,null,null,null,null,"__"]
[null,null,null,null,null,null,null,null,"__"]
[null,null,null,null,null,null,null,null,"__"]
[null,null,null,null,null,null,null,null,"__"]
[null,null,null,null,null,null,null,null,"__"]
[null,null,null,null,null,null,null,null,"__"]
[null,null,null,null,null,null,null,null,"__"]
[null,null,null,null,null,null,null,null,"__"]
[null,null,null,null,null,null,null,null,"__"]
[null,null,null,null,null,null,null,null,"__"]
[null,null,null,null,null,null,null,null,"__"]
[null,null,null,null,null,null,null,null,"__"]
[null,null,null,null,null,null,null,null,"__"]
[null,null,null,null,null,null,null,null,"__"]
[null,null,null,null,null,null,null,null,"__"]
[null,null,null,null,null,null,null,null,"__"]
[null,null,null,null,null,null,null,null,"__"]
[null,null,null,null,null,null,null,null,"__"]
[null,null,null,null,null,null,null,null,"__"]
[null,null,null,null,null,null,null,null,"__"]
[null,null,null,null,null,null,null,null,"__"]
[null,null,null,null,null,null,null,null,"__"]
[null,null,null,null,null,null,null,null,"__"]
[null,null,null,null,null,null,null,null,"__"]
[null,null,null,null,null,null,null,null,"__"]
[null,null,null,null,null,null,null,null,"__"]
[null,null,null,null,null,null,null,null,"__"]
[null,null,null,null,null,null,null,null,"__"]
[null,null,null,null,null,null,null,null,"__"]
[null,null,null,null,null,null,null,null,"__"]
[null,null,null,null,null,null,null,null,"__"]
[null,null,null,null,null,null,null,null,"__"]
[null,null,null,null,null,null,null,null,"__"]
[null,null,null,null,null,null,null,null,"__"]
[null,null,null,null,null,null,null,null,"__"]
[null,null,null,null,null,null,null,null,"__"]
[null,null,null,null,null,null,null,null,"__"]
[null,null,null,null,null,null,null,null,"__"]
[null,null,null,null,null,null,null,null,"__"]
[null,null,null,null,null,null,null,null,"__"]
[null,null,null,null,null,null,null,null,"__"]
[null,null,null,null,null,null,null,null,"__"]
[null,null,null,null,null,null,null,null,"__"]
[null,null,null,null,null,null,null,null,"__"]
[null,null,null,null,null,null,null,null,"__"]
[null,null,null,null,null,null,null,null,"__"]
[null,null,null,null,null,null,null,null,"__"]
[null,null,null,null,null,null,null,null,"__"]
[null,null,null,null,null,null,null,null,"__"]
[null,null,null,null,null,null,null,null,{"$f":"CONCATENATE(A2885,\"_\",B2885,\"_\",C2885)","v":"__"}]
[null,null,null,null,null,null,null,null,"__"]
[null,null,null,null,null,null,null,null,"__"]
[null,null,null,null,null,null,null,null,"__"]
[null,null,null,null,null,null,null,null,"__"]
[null,null,null,null,null,null,null,null,"__"]
[null,null,null,null,null,null,null,null,"__"]
[null,null,null,null,null,null,null,null,"__"]
[null,null,null,null,null,null,null,null,"__"]
[null,null,null,null,null,null,null,null,"__"]
[null,null,null,null,null,null,null,null,"__"]
[null,null,null,null,null,null,null,null,"__"]
[null,null,null,null,null,null,null,null,"__"]
[null,null,null,null,null,null,null,null,"__"]
[null,null,null,null,null,null,null,null,"__"]
[null,null,null,null,null,null,null,null,"__"]
[null,null,null,null,null,null,null,null,"__"]
[null,null,null,null,null,null,null,null,"__"]
[null,null,null,null,null,null,null,null,"__"]
[null,null,null,null,null,null,null,null,"__"]
[null,null,null,null,null,null,null,null,"__"]
[null,null,null,null,null,null,null,null,"__"]
[null,null,null,null,null,null,null,null,"__"]
[null,null,null,null,null,null,null,null,"__"]
[null,null,null,null,null,null,null,null,"__"]
[null,null,null,null,null,null,null,null,"__"]
[null,null,null,null,null,null,null,null,"__"]
[null,null,null,null,null,null,null,null,"__"]
[null,null,null,null,null,null,null,null,"__"]
[null,null,null,null,null,null,null,null,"__"]
[null,null,null,null,null,null,null,null,"__"]
[null,null,null,null,null,null,null,null,"__"]
[null,null,null,null,null,null,null,null,"__"]
[null,null,null,null,null,null,null,null,"__"]
[null,null,null,null,null,null,null,null,"__"]
[null,null,null,null,null,null,null,null,"__"]
[null,null,null,null,null,null,null,null,"__"]
[null,null,null,null,null,null,null,null,"__"]
[null,null,null,null,null,null,null,null,"__"]
[null,null,null,null,null,null,null,null,"__"]
[null,null,null,null,null,null,null,null,"__"]
[null,null,null,null,null,null,null,null,"__"]
[null,null,null,null,null,null,null,null,"__"]
[null,null,null,null,null,null,null,null,"__"]
[null,null,null,null,null,null,null,null,"__"]
[null,null,null,null,null,null,null,null,"__"]
[null,null,null,null,null,null,null,null,"__"]
[null,null,null,null,null,null,null,null,"__"]
[null,null,null,null,null,null,null,null,"__"]
[null,null,null,null,null,null,null,null,"__"]
[null,null,null,null,null,null,null,null,"__"]
[null,null,null,null,null,null,null,null,"__"]
[null,null,null,null,null,null,null,null,"__"]
[null,null,null,null,null,null,null,null,"__"]
[null,null,null,null,null,null,null,null,"__"]
[null,null,null,null,null,null,null,null,"__"]
[null,null,null,null,null,null,null,null,"__"]
[null,null,null,null,null,null,null,null,"__"]
[null,null,null,null,null,null,null,null,"__"]
[null,null,null,null,null,null,null,null,"__"]
[null,null,null,null,null,null,null,null,"__"]
[null,null,null,null,null,null,null,null,"__"]
[null,null,null,null,null,null,null,null,"__"]
[null,null,null,null,null,null,null,null,"__"]
[null,null,null,null,null,null,null,null,{"$f":"CONCATENATE(A2949,\"_\",B2949,\"_\",C2949)","v":"__"}]
[null,null,null,null,null,null,null,null,"__"]
[null,null,null,null,null,null,null,null,"__"]
[null,null,null,null,null,null,null,null,"__"]
[null,null,null,null,null,null,null,null,"__"]
[null,null,null,null,null,null,null,null,"__"]
[null,null,null,null,null,null,null,null,"__"]
[null,null,null,null,null,null,null,null,"__"]
[null,null,null,null,null,null,null,null,"__"]
[null,null,null,null,null,null,null,null,"__"]
[null,null,null,null,null,null,null,null,"__"]
[null,null,null,null,null,null,null,null,"__"]
[null,null,null,null,null,null,null,null,"__"]
[null,null,null,null,null,null,null,null,"__"]
[null,null,null,null,null,null,null,null,"__"]
[null,null,null,null,null,null,null,null,"__"]
[null,null,null,null,null,null,null,null,"__"]
[null,null,null,null,null,null,null,null,"__"]
[null,null,null,null,null,null,null,null,"__"]
[null,null,null,null,null,null,null,null,"__"]
[null,null,null,null,null,null,null,null,"__"]
[null,null,null,null,null,null,null,null,"__"]
[null,null,null,null,null,null,null,null,"__"]
[null,null,null,null,null,null,null,null,"__"]
[null,null,null,null,null,null,null,null,"__"]
[null,null,null,null,null,null,null,null,"__"]
[null,null,null,null,null,null,null,null,"__"]
[null,null,null,null,null,null,null,null,"__"]
[null,null,null,null,null,null,null,null,"__"]
[null,null,null,null,null,null,null,null,"__"]
[null,null,null,null,null,null,null,null,"__"]
[null,null,null,null,null,null,null,null,"__"]
[null,null,null,null,null,null,null,null,"__"]
[null,null,null,null,null,null,null,null,"__"]
[null,null,null,null,null,null,null,null,"__"]
[null,null,null,null,null,null,null,null,"__"]
[null,null,null,null,null,null,null,null,"__"]
[null,null,null,null,null,null,null,null,"__"]
[null,null,null,null,null,null,null,null,"__"]
[null,null,null,null,null,null,null,null,"__"]
[null,null,null,null,null,null,null,null,"__"]
[null,null,null,null,null,null,null,null,"__"]
[null,null,null,null,null,null,null,null,"__"]
[null,null,null,null,null,null,null,null,"__"]
[null,null,null,null,null,null,null,null,"__"]
[null,null,null,null,null,null,null,null,"__"]
[null,null,null,null,null,null,null,null,"__"]
[null,null,null,null,null,null,null,null,"__"]
[null,null,null,null,null,null,null,null,"__"]
[null,null,null,null,null,null,null,null,"__"]
[null,null,null,null,null,null,null,null,"__"]
[null,null,null,null,null,null,null,null,"__"]
[null,null,null,null,null,null,null,null,"__"]
[null,null,null,null,null,null,null,null,"__"]
[null,null,null,null,null,null,null,null,"__"]
[null,null,null,null,null,null,null,null,"__"]
[null,null,null,null,null,null,null,null,"__"]
[null,null,null,null,null,null,null,null,"__"]
[null,null,null,null,null,null,null,null,"__"]
[null,null,null,null,null,null,null,null,"__"]
[null,null,null,null,null,null,null,null,"__"]
[null,null,null,null,null,null,null,null,"__"]
[null,null,null,null,null,null,null,null,"__"]
[null,null,null,null,null,null,null,null,"__"]
[null,null,null,null,null,null,null,null,{"$f":"CONCATENATE(A3013,\"_\",B3013,\"_\",C3013)","v":"__"}]
[null,null,null,null,null,null,null,null,"__"]
[null,null,null,null,null,null,null,null,"__"]
[null,null,null,null,null,null,null,null,"__"]
[null,null,null,null,null,null,null,null,"__"]
[null,null,null,null,null,null,null,null,"__"]
[null,null,null,null,null,null,null,null,"__"]
[null,null,null,null,null,null,null,null,"__"]
[null,null,null,null,null,null,null,null,"__"]
[null,null,null,null,null,null,null,null,"__"]
[null,null,null,null,null,null,null,null,"__"]
[null,null,null,null,null,null,null,null,"__"]
[null,null,null,null,null,null,null,null,"__"]
[null,null,null,null,null,null,null,null,"__"]
[null,null,null,null,null,null,null,null,"__"]
[null,null,null,null,null,null,null,null,"__"]
[null,null,null,null,null,null,null,null,"__"]
[null,null,null,null,null,null,null,null,"__"]
[null,null,null,null,null,null,null,null,"__"]
[null,null,null,null,null,null,null,null,"__"]
[null,null,null,null,null,null,null,null,"__"]
[null,null,null,null,null,null,null,null,"__"]
[null,null,null,null,null,null,null,null,"__"]
[null,null,null,null,null,null,null,null,"__"]
[null,null,null,null,null,null,null,null,"__"]
[null,null,null,null,null,null,null,null,"__"]
[null,null,null,null,null,null,null,null,"__"]
[null,null,null,null,null,null,null,null,"__"]
[null,null,null,null,null,null,null,null,"__"]
[null,null,null,null,null,null,null,null,"__"]
[null,null,null,null,null,null,null,null,"__"]
[null,null,null,null,null,null,null,null,"__"]
[null,null,null,null,null,null,null,null,"__"]
[null,null,null,null,null,null,null,null,"__"]
[null,null,null,null,null,null,null,null,"__"]
[null,null,null,null,null,null,null,null,"__"]
[null,null,null,null,null,null,null,null,"__"]
[null,null,null,null,null,null,null,null,"__"]
[null,null,null,null,null,null,null,null,"__"]
[null,null,null,null,null,null,null,null,"__"]
[null,null,null,null,null,null,null,null,"__"]
[null,null,null,null,null,null,null,null,"__"]
[null,null,null,null,null,null,null,null,"__"]
[null,null,null,null,null,null,null,null,"__"]
[null,null,null,null,null,null,null,null,"__"]
[null,null,null,null,null,null,null,null,"__"]
[null,null,null,null,null,null,null,null,"__"]
[null,null,null,null,null,null,null,null,"__"]
[null,null,null,null,null,null,null,null,"__"]
[null,null,null,null,null,null,null,null,"__"]
[null,null,null,null,null,null,null,null,"__"]
[null,null,null,null,null,null,null,null,"__"]
[null,null,null,null,null,null,null,null,"__"]
[null,null,null,null,null,null,null,null,"__"]
[null,null,null,null,null,null,null,null,"__"]
[null,null,null,null,null,null,null,null,"__"]
[null,null,null,null,null,null,null,null,"__"]
[null,null,null,null,null,null,null,null,"__"]
[null,null,null,null,null,null,null,null,"__"]
[null,null,null,null,null,null,null,null,"__"]
[null,null,null,null,null,null,null,null,"__"]
[null,null,null,null,null,null,null,null,"__"]
[null,null,null,null,null,null,null,null,"__"]
[null,null,null,null,null,null,null,null,"__"]
[null,null,null,null,null,null,null,null,{"$f":"CONCATENATE(A3077,\"_\",B3077,\"_\",C3077)","v":"__"}]
[null,null,null,null,null,null,null,null,"__"]
[null,null,null,null,null,null,null,null,"__"]
[null,null,null,null,null,null,null,null,"__"]
[null,null,null,null,null,null,null,null,"__"]
[null,null,null,null,null,null,null,null,"__"]
[null,null,null,null,null,null,null,null,"__"]
[null,null,null,null,null,null,null,null,"__"]
[null,null,null,null,null,null,null,null,"__"]
[null,null,null,null,null,null,null,null,"__"]
[null,null,null,null,null,null,null,null,"__"]
[null,null,null,null,null,null,null,null,"__"]
[null,null,null,null,null,null,null,null,"__"]
[null,null,null,null,null,null,null,null,"__"]
[null,null,null,null,null,null,null,null,"__"]
[null,null,null,null,null,null,null,null,"__"]
[null,null,null,null,null,null,null,null,"__"]
[null,null,null,null,null,null,null,null,"__"]
[null,null,null,null,null,null,null,null,"__"]
[null,null,null,null,null,null,null,null,"__"]
[null,null,null,null,null,null,null,null,"__"]
[null,null,null,null,null,null,null,null,"__"]
[null,null,null,null,null,null,null,null,"__"]
[null,null,null,null,null,null,null,null,"__"]
[null,null,null,null,null,null,null,null,"__"]
[null,null,null,null,null,null,null,null,"__"]
[null,null,null,null,null,null,null,null,"__"]
[null,null,null,null,null,null,null,null,"__"]
[null,null,null,null,null,null,null,null,"__"]
[null,null,null,null,null,null,null,null,"__"]
[null,null,null,null,null,null,null,null,"__"]
[null,null,null,null,null,null,null,null,"__"]
[null,null,null,null,null,null,null,null,"__"]
[null,null,null,null,null,null,null,null,"__"]
[null,null,null,null,null,null,null,null,"__"]
[null,null,null,null,null,null,null,null,"__"]
[null,null,null,null,null,null,null,null,"__"]
[null,null,null,null,null,null,null,null,"__"]
[null,null,null,null,null,null,null,null,"__"]
[null,null,null,null,null,null,null,null,"__"]
[null,null,null,null,null,null,null,null,"__"]
[null,null,null,null,null,null,null,null,"__"]
[null,null,null,null,null,null,null,null,"__"]
[null,null,null,null,null,null,null,null,"__"]
[null,null,null,null,null,null,null,null,"__"]
[null,null,null,null,null,null,null,null,"__"]
[null,null,null,null,null,null,null,null,"__"]
[null,null,null,null,null,null,null,null,"__"]
[null,null,null,null,null,null,null,null,"__"]
[null,null,null,null,null,null,null,null,"__"]
[null,null,null,null,null,null,null,null,"__"]
[null,null,null,null,null,null,null,null,"__"]
[null,null,null,null,null,null,null,null,"__"]
[null,null,null,null,null,null,null,null,"__"]
[null,null,null,null,null,null,null,null,"__"]
[null,null,null,null,null,null,null,null,"__"]
[null,null,null,null,null,null,null,null,"__"]
[null,null,null,null,null,null,null,null,"__"]
[null,null,null,null,null,null,null,null,"__"]
[null,null,null,null,null,null,null,null,"__"]
[null,null,null,null,null,null,null,null,"__"]
[null,null,null,null,null,null,null,null,"__"]
[null,null,null,null,null,null,null,null,"__"]
[null,null,null,null,null,null,null,null,"__"]
[null,null,null,null,null,null,null,null,{"$f":"CONCATENATE(A3141,\"_\",B3141,\"_\",C3141)","v":"__"}]
[null,null,null,null,null,null,null,null,"__"]
[null,null,null,null,null,null,null,null,"__"]
[null,null,null,null,null,null,null,null,"__"]
[null,null,null,null,null,null,null,null,"__"]
[null,null,null,null,null,null,null,null,"__"]
[null,null,null,null,null,null,null,null,"__"]
[null,null,null,null,null,null,null,null,"__"]
[null,null,null,null,null,null,null,null,"__"]
[null,null,null,null,null,null,null,null,"__"]
[null,null,null,null,null,null,null,null,"__"]
[null,null,null,null,null,null,null,null,"__"]
[null,null,null,null,null,null,null,null,"__"]
[null,null,null,null,null,null,null,null,"__"]
[null,null,null,null,null,null,null,null,"__"]
[null,null,null,null,null,null,null,null,"__"]
[null,null,null,null,null,null,null,null,"__"]
[null,null,null,null,null,null,null,null,"__"]
[null,null,null,null,null,null,null,null,"__"]
[null,null,null,null,null,null,null,null,"__"]
[null,null,null,null,null,null,null,null,"__"]
[null,null,null,null,null,null,null,null,"__"]
[null,null,null,null,null,null,null,null,"__"]
[null,null,null,null,null,null,null,null,"__"]
[null,null,null,null,null,null,null,null,"__"]
[null,null,null,null,null,null,null,null,"__"]
[null,null,null,null,null,null,null,null,"__"]
[null,null,null,null,null,null,null,null,"__"]
[null,null,null,null,null,null,null,null,"__"]
[null,null,null,null,null,null,null,null,"__"]
[null,null,null,null,null,null,null,null,"__"]
[null,null,null,null,null,null,null,null,"__"]
[null,null,null,null,null,null,null,null,"__"]
[null,null,null,null,null,null,null,null,"__"]
[null,null,null,null,null,null,null,null,"__"]
[null,null,null,null,null,null,null,null,"__"]
[null,null,null,null,null,null,null,null,"__"]
[null,null,null,null,null,null,null,null,"__"]
[null,null,null,null,null,null,null,null,"__"]
[null,null,null,null,null,null,null,null,"__"]
[null,null,null,null,null,null,null,null,"__"]
[null,null,null,null,null,null,null,null,"__"]
[null,null,null,null,null,null,null,null,"__"]
[null,null,null,null,null,null,null,null,"__"]
[null,null,null,null,null,null,null,null,"__"]
[null,null,null,null,null,null,null,null,"__"]
[null,null,null,null,null,null,null,null,"__"]
[null,null,null,null,null,null,null,null,"__"]
[null,null,null,null,null,null,null,null,"__"]
[null,null,null,null,null,null,null,null,"__"]
[null,null,null,null,null,null,null,null,"__"]
[null,null,null,null,null,null,null,null,"__"]
[null,null,null,null,null,null,null,null,"__"]
[null,null,null,null,null,null,null,null,"__"]
[null,null,null,null,null,null,null,null,"__"]
[null,null,null,null,null,null,null,null,"__"]
[null,null,null,null,null,null,null,null,"__"]
[null,null,null,null,null,null,null,null,"__"]
[null,null,null,null,null,null,null,null,"__"]
[null,null,null,null,null,null,null,null,"__"]
[null,null,null,null,null,null,null,null,"__"]
[null,null,null,null,null,null,null,null,"__"]
[null,null,null,null,null,null,null,null,"__"]
[null,null,null,null,null,null,null,null,"__"]
[null,null,null,null,null,null,null,null,{"$f":"CONCATENATE(A3205,\"_\",B3205,\"_\",C3205)","v":"__"}]
[null,null,null,null,null,null,null,null,"__"]
[null,null,null,null,null,null,null,null,"__"]
[null,null,null,null,null,null,null,null,"__"]
[null,null,null,null,null,null,null,null,"__"]
[null,null,null,null,null,null,null,null,"__"]
[null,null,null,null,null,null,null,null,"__"]
[null,null,null,null,null,null,null,null,"__"]
[null,null,null,null,null,null,null,null,"__"]
[null,null,null,null,null,null,null,null,"__"]
[null,null,null,null,null,null,null,null,"__"]
[null,null,null,null,null,null,null,null,"__"]
[null,null,null,null,null,null,null,null,"__"]
[null,null,null,null,null,null,null,null,"__"]
[null,null,null,null,null,null,null,null,"__"]
[null,null,null,null,null,null,null,null,"__"]
[null,null,null,null,null,null,null,null,"__"]
[null,null,null,null,null,null,null,null,"__"]
[null,null,null,null,null,null,null,null,"__"]
[null,null,null,null,null,null,null,null,"__"]
[null,null,null,null,null,null,null,null,"__"]
[null,null,null,null,null,null,null,null,"__"]
[null,null,null,null,null,null,null,null,"__"]
[null,null,null,null,null,null,null,null,"__"]
[null,null,null,null,null,null,null,null,"__"]
[null,null,null,null,null,null,null,null,"__"]
[null,null,null,null,null,null,null,null,"__"]
[null,null,null,null,null,null,null,null,"__"]
[null,null,null,null,null,null,null,null,"__"]
[null,null,null,null,null,null,null,null,"__"]
[null,null,null,null,null,null,null,null,"__"]
[null,null,null,null,null,null,null,null,"__"]
[null,null,null,null,null,null,null,null,"__"]
[null,null,null,null,null,null,null,null,"__"]
[null,null,null,null,null,null,null,null,"__"]
[null,null,null,null,null,null,null,null,"__"]
[null,null,null,null,null,null,null,null,"__"]
[null,null,null,null,null,null,null,null,"__"]
[null,null,null,null,null,null,null,null,"__"]
[null,null,null,null,null,null,null,null,"__"]
[null,null,null,null,null,null,null,null,"__"]
[null,null,null,null,null,null,null,null,"__"]
[null,null,null,null,null,null,null,null,"__"]
[null,null,null,null,null,null,null,null,"__"]
[null,null,null,null,null,null,null,null,"__"]
[null,null,null,null,null,null,null,null,"__"]
[null,null,null,null,null,null,null,null,"__"]
[null,null,null,null,null,null,null,null,"__"]
[null,null,null,null,null,null,null,null,"__"]
[null,null,null,null,null,null,null,null,"__"]
[null,null,null,null,null,null,null,null,"__"]
[null,null,null,null,null,null,null,null,"__"]
[null,null,null,null,null,null,null,null,"__"]
[null,null,null,null,null,null,null,null,"__"]
[null,null,null,null,null,null,null,null,"__"]
[null,null,null,null,null,null,null,null,"__"]
[null,null,null,null,null,null,null,null,"__"]
[null,null,null,null,null,null,null,null,"__"]
[null,null,null,null,null,null,null,null,"__"]
[null,null,null,null,null,null,null,null,"__"]
[null,null,null,null,null,null,null,null,"__"]
[null,null,null,null,null,null,null,null,"__"]
[null,null,null,null,null,null,null,null,"__"]
[null,null,null,null,null,null,null,null,"__"]
[null,null,null,null,null,null,null,null,{"$f":"CONCATENATE(A3269,\"_\",B3269,\"_\",C3269)","v":"__"}]
[null,null,null,null,null,null,null,null,"__"]
[null,null,null,null,null,null,null,null,"__"]
[null,null,null,null,null,null,null,null,"__"]
[null,null,null,null,null,null,null,null,"__"]
[null,null,null,null,null,null,null,null,"__"]
[null,null,null,null,null,null,null,null,"__"]
[null,null,null,null,null,null,null,null,"__"]
[null,null,null,null,null,null,null,null,"__"]
[null,null,null,null,null,null,null,null,"__"]
[null,null,null,null,null,null,null,null,"__"]
[null,null,null,null,null,null,null,null,"__"]
[null,null,null,null,null,null,null,null,"__"]
[null,null,null,null,null,null,null,null,"__"]
[null,null,null,null,null,null,null,null,"__"]
[null,null,null,null,null,null,null,null,"__"]
[null,null,null,null,null,null,null,null,"__"]
[null,null,null,null,null,null,null,null,"__"]
[null,null,null,null,null,null,null,null,"__"]
[null,null,null,null,null,null,null,null,"__"]
[null,null,null,null,null,null,null,null,"__"]
[null,null,null,null,null,null,null,null,"__"]
[null,null,null,null,null,null,null,null,"__"]
[null,null,null,null,null,null,null,null,"__"]
[null,null,null,null,null,null,null,null,"__"]
[null,null,null,null,null,null,null,null,"__"]
[null,null,null,null,null,null,null,null,"__"]
[null,null,null,null,null,null,null,null,"__"]
[null,null,null,null,null,null,null,null,"__"]
[null,null,null,null,null,null,null,null,"__"]
[null,null,null,null,null,null,null,null,"__"]
[null,null,null,null,null,null,null,null,"__"]
[null,null,null,null,null,null,null,null,"__"]
[null,null,null,null,null,null,null,null,"__"]
[null,null,null,null,null,null,null,null,"__"]
[null,null,null,null,null,null,null,null,"__"]
[null,null,null,null,null,null,null,null,"__"]
[null,null,null,null,null,null,null,null,"__"]
[null,null,null,null,null,null,null,null,"__"]
[null,null,null,null,null,null,null,null,"__"]
[null,null,null,null,null,null,null,null,"__"]
[null,null,null,null,null,null,null,null,"__"]
[null,null,null,null,null,null,null,null,"__"]
[null,null,null,null,null,null,null,null,"__"]
[null,null,null,null,null,null,null,null,"__"]
[null,null,null,null,null,null,null,null,"__"]
[null,null,null,null,null,null,null,null,"__"]
[null,null,null,null,null,null,null,null,"__"]
[null,null,null,null,null,null,null,null,"__"]
[null,null,null,null,null,null,null,null,"__"]
[null,null,null,null,null,null,null,null,"__"]
[null,null,null,null,null,null,null,null,"__"]
[null,null,null,null,null,null,null,null,"__"]
[null,null,null,null,null,null,null,null,"__"]
[null,null,null,null,null,null,null,null,"__"]
[null,null,null,null,null,null,null,null,"__"]
[null,null,null,null,null,null,null,null,"__"]
[null,null,null,null,null,null,null,null,"__"]
[null,null,null,null,null,null,null,null,"__"]
[null,null,null,null,null,null,null,null,"__"]
[null,null,null,null,null,null,null,null,"__"]
[null,null,null,null,null,null,null,null,"__"]
[null,null,null,null,null,null,null,null,"__"]
[null,null,null,null,null,null,null,null,"__"]
[null,null,null,null,null,null,null,null,{"$f":"CONCATENATE(A3333,\"_\",B3333,\"_\",C3333)","v":"__"}]
[null,null,null,null,null,null,null,null,"__"]
[null,null,null,null,null,null,null,null,"__"]
[null,null,null,null,null,null,null,null,"__"]
[null,null,null,null,null,null,null,null,"__"]
[null,null,null,null,null,null,null,null,"__"]
[null,null,null,null,null,null,null,null,"__"]
[null,null,null,null,null,null,null,null,"__"]
[null,null,null,null,null,null,null,null,"__"]
[null,null,null,null,null,null,null,null,"__"]
[null,null,null,null,null,null,null,null,"__"]
[null,null,null,null,null,null,null,null,"__"]
[null,null,null,null,null,null,null,null,"__"]
[null,null,null,null,null,null,null,null,"__"]
[null,null,null,null,null,null,null,null,"__"]
[null,null,null,null,null,null,null,null,"__"]
[null,null,null,null,null,null,null,null,"__"]
[null,null,null,null,null,null,null,null,"__"]
[null,null,null,null,null,null,null,null,"__"]
[null,null,null,null,null,null,null,null,"__"]
[null,null,null,null,null,null,null,null,"__"]
[null,null,null,null,null,null,null,null,"__"]
[null,null,null,null,null,null,null,null,"__"]
[null,null,null,null,null,null,null,null,"__"]
[null,null,null,null,null,null,null,null,"__"]
[null,null,null,null,null,null,null,null,"__"]
[null,null,null,null,null,null,null,null,"__"]
[null,null,null,null,null,null,null,null,"__"]
[null,null,null,null,null,null,null,null,"__"]
[null,null,null,null,null,null,null,null,"__"]
[null,null,null,null,null,null,null,null,"__"]
[null,null,null,null,null,null,null,null,"__"]
[null,null,null,null,null,null,null,null,"__"]
[null,null,null,null,null,null,null,null,"__"]
[null,null,null,null,null,null,null,null,"__"]
[null,null,null,null,null,null,null,null,"__"]
[null,null,null,null,null,null,null,null,"__"]
[null,null,null,null,null,null,null,null,"__"]
[null,null,null,null,null,null,null,null,"__"]
[null,null,null,null,null,null,null,null,"__"]
[null,null,null,null,null,null,null,null,"__"]
[null,null,null,null,null,null,null,null,"__"]
[null,null,null,null,null,null,null,null,"__"]
[null,null,null,null,null,null,null,null,"__"]
[null,null,null,null,null,null,null,null,"__"]
[null,null,null,null,null,null,null,null,"__"]
[null,null,null,null,null,null,null,null,"__"]
[null,null,null,null,null,null,null,null,"__"]
[null,null,null,null,null,null,null,null,"__"]
[null,null,null,null,null,null,null,null,"__"]
[null,null,null,null,null,null,null,null,"__"]
[null,null,null,null,null,null,null,null,"__"]
[null,null,null,null,null,null,null,null,"__"]
[null,null,null,null,null,null,null,null,"__"]
[null,null,null,null,null,null,null,null,"__"]
[null,null,null,null,null,null,null,null,"__"]
[null,null,null,null,null,null,null,null,"__"]
[null,null,null,null,null,null,null,null,"__"]
[null,null,null,null,null,null,null,null,"__"]
[null,null,null,null,null,null,null,null,"__"]
[null,null,null,null,null,null,null,null,"__"]
[null,null,null,null,null,null,null,null,"__"]
[null,null,null,null,null,null,null,null,"__"]
[null,null,null,null,null,null,null,null,"__"]
[null,null,null,null,null,null,null,null,{"$f":"CONCATENATE(A3397,\"_\",B3397,\"_\",C3397)","v":"__"}]
[null,null,null,null,null,null,null,null,"__"]
[null,null,null,null,null,null,null,null,"__"]
[null,null,null,null,null,null,null,null,"__"]
[null,null,null,null,null,null,null,null,"__"]
[null,null,null,null,null,null,null,null,"__"]
[null,null,null,null,null,null,null,null,"__"]
[null,null,null,null,null,null,null,null,"__"]
[null,null,null,null,null,null,null,null,"__"]
[null,null,null,null,null,null,null,null,"__"]
[null,null,null,null,null,null,null,null,"__"]
[null,null,null,null,null,null,null,null,"__"]
[null,null,null,null,null,null,null,null,"__"]
[null,null,null,null,null,null,null,null,"__"]
[null,null,null,null,null,null,null,null,"__"]
[null,null,null,null,null,null,null,null,"__"]
[null,null,null,null,null,null,null,null,"__"]
[null,null,null,null,null,null,null,null,"__"]
[null,null,null,null,null,null,null,null,"__"]
[null,null,null,null,null,null,null,null,"__"]
[null,null,null,null,null,null,null,null,"__"]
[null,null,null,null,null,null,null,null,"__"]
[null,null,null,null,null,null,null,null,"__"]
[null,null,null,null,null,null,null,null,"__"]
[null,null,null,null,null,null,null,null,"__"]
[null,null,null,null,null,null,null,null,"__"]
[null,null,null,null,null,null,null,null,"__"]
[null,null,null,null,null,null,null,null,"__"]
[null,null,null,null,null,null,null,null,"__"]
[null,null,null,null,null,null,null,null,"__"]
[null,null,null,null,null,null,null,null,"__"]
[null,null,null,null,null,null,null,null,"__"]
[null,null,null,null,null,null,null,null,"__"]
[null,null,null,null,null,null,null,null,"__"]
[null,null,null,null,null,null,null,null,"__"]
[null,null,null,null,null,null,null,null,"__"]
[null,null,null,null,null,null,null,null,"__"]
[null,null,null,null,null,null,null,null,"__"]
[null,null,null,null,null,null,null,null,"__"]
[null,null,null,null,null,null,null,null,"__"]
[null,null,null,null,null,null,null,null,"__"]
[null,null,null,null,null,null,null,null,"__"]
[null,null,null,null,null,null,null,null,"__"]
[null,null,null,null,null,null,null,null,"__"]
[null,null,null,null,null,null,null,null,"__"]
[null,null,null,null,null,null,null,null,"__"]
[null,null,null,null,null,null,null,null,"__"]
[null,null,null,null,null,null,null,null,"__"]
[null,null,null,null,null,null,null,null,"__"]
[null,null,null,null,null,null,null,null,"__"]
[null,null,null,null,null,null,null,null,"__"]
[null,null,null,null,null,null,null,null,"__"]
[null,null,null,null,null,null,null,null,"__"]
[null,null,null,null,null,null,null,null,"__"]
[null,null,null,null,null,null,null,null,"__"]
[null,null,null,null,null,null,null,null,"__"]
[null,null,null,null,null,null,null,null,"__"]
[null,null,null,null,null,null,null,null,"__"]
[null,null,null,null,null,null,null,null,"__"]
[null,null,null,null,null,null,null,null,"__"]
[null,null,null,null,null,null,null,null,"__"]
[null,null,null,null,null,null,null,null,"__"]
[null,null,null,null,null,null,null,null,"__"]
[null,null,null,null,null,null,null,null,"__"]
[null,null,null,null,null,null,null,null,{"$f":"CONCATENATE(A3461,\"_\",B3461,\"_\",C3461)","v":"__"}]
[null,null,null,null,null,null,null,null,"__"]
[null,null,null,null,null,null,null,null,"__"]
[null,null,null,null,null,null,null,null,"__"]
[null,null,null,null,null,null,null,null,"__"]
[null,null,null,null,null,null,null,null,"__"]
[null,null,null,null,null,null,null,null,"__"]
[null,null,null,null,null,null,null,null,"__"]
[null,null,null,null,null,null,null,null,"__"]
[null,null,null,null,null,null,null,null,"__"]
[null,null,null,null,null,null,null,null,"__"]
[null,null,null,null,null,null,null,null,"__"]
[null,null,null,null,null,null,null,null,"__"]
[null,null,null,null,null,null,null,null,"__"]
[null,null,null,null,null,null,null,null,"__"]
[null,null,null,null,null,null,null,null,"__"]
[null,null,null,null,null,null,null,null,"__"]
[null,null,null,null,null,null,null,null,"__"]
[null,null,null,null,null,null,null,null,"__"]
[null,null,null,null,null,null,null,null,"__"]
[null,null,null,null,null,null,null,null,"__"]
[null,null,null,null,null,null,null,null,"__"]
[null,null,null,null,null,null,null,null,"__"]
[null,null,null,null,null,null,null,null,"__"]
[null,null,null,null,null,null,null,null,"__"]
[null,null,null,null,null,null,null,null,"__"]
[null,null,null,null,null,null,null,null,"__"]
[null,null,null,null,null,null,null,null,"__"]
[null,null,null,null,null,null,null,null,"__"]
[null,null,null,null,null,null,null,null,"__"]
[null,null,null,null,null,null,null,null,"__"]
[null,null,null,null,null,null,null,null,"__"]
[null,null,null,null,null,null,null,null,"__"]
[null,null,null,null,null,null,null,null,"__"]
[null,null,null,null,null,null,null,null,"__"]
[null,null,null,null,null,null,null,null,"__"]
[null,null,null,null,null,null,null,null,"__"]
[null,null,null,null,null,null,null,null,"__"]
[null,null,null,null,null,null,null,null,"__"]
[null,null,null,null,null,null,null,null,"__"]
[null,null,null,null,null,null,null,null,"__"]
[null,null,null,null,null,null,null,null,"__"]
[null,null,null,null,null,null,null,null,"__"]
[null,null,null,null,null,null,null,null,"__"]
[null,null,null,null,null,null,null,null,"__"]
[null,null,null,null,null,null,null,null,"__"]
[null,null,null,null,null,null,null,null,"__"]
[null,null,null,null,null,null,null,null,"__"]
[null,null,null,null,null,null,null,null,"__"]
[null,null,null,null,null,null,null,null,"__"]
[null,null,null,null,null,null,null,null,"__"]
[null,null,null,null,null,null,null,null,"__"]
[null,null,null,null,null,null,null,null,"__"]
[null,null,null,null,null,null,null,null,"__"]
[null,null,null,null,null,null,null,null,"__"]
[null,null,null,null,null,null,null,null,"__"]
[null,null,null,null,null,null,null,null,"__"]
[null,null,null,null,null,null,null,null,"__"]
[null,null,null,null,null,null,null,null,"__"]
[null,null,null,null,null,null,null,null,"__"]
[null,null,null,null,null,null,null,null,"__"]
[null,null,null,null,null,null,null,null,"__"]
[null,null,null,null,null,null,null,null,"__"]
[null,null,null,null,null,null,null,null,"__"]
[null,null,null,null,null,null,null,null,{"$f":"CONCATENATE(A3525,\"_\",B3525,\"_\",C3525)","v":"__"}]
[null,null,null,null,null,null,null,null,"__"]
[null,null,null,null,null,null,null,null,"__"]
[null,null,null,null,null,null,null,null,"__"]
[null,null,null,null,null,null,null,null,"__"]
[null,null,null,null,null,null,null,null,"__"]
[null,null,null,null,null,null,null,null,"__"]
[null,null,null,null,null,null,null,null,"__"]
[null,null,null,null,null,null,null,null,"__"]
[null,null,null,null,null,null,null,null,"__"]
[null,null,null,null,null,null,null,null,"__"]
[null,null,null,null,null,null,null,null,"__"]
[null,null,null,null,null,null,null,null,"__"]
[null,null,null,null,null,null,null,null,"__"]
[null,null,null,null,null,null,null,null,"__"]
[null,null,null,null,null,null,null,null,"__"]
[null,null,null,null,null,null,null,null,"__"]
[null,null,null,null,null,null,null,null,"__"]
[null,null,null,null,null,null,null,null,"__"]
[null,null,null,null,null,null,null,null,"__"]
[null,null,null,null,null,null,null,null,"__"]
[null,null,null,null,null,null,null,null,"__"]
[null,null,null,null,null,null,null,null,"__"]
[null,null,null,null,null,null,null,null,"__"]
[null,null,null,null,null,null,null,null,"__"]
[null,null,null,null,null,null,null,null,"__"]
[null,null,null,null,null,null,null,null,"__"]
[null,null,null,null,null,null,null,null,"__"]
[null,null,null,null,null,null,null,null,"__"]
[null,null,null,null,null,null,null,null,"__"]
[null,null,null,null,null,null,null,null,"__"]
[null,null,null,null,null,null,null,null,"__"]
[null,null,null,null,null,null,null,null,"__"]
[null,null,null,null,null,null,null,null,"__"]
[null,null,null,null,null,null,null,null,"__"]
[null,null,null,null,null,null,null,null,"__"]
[null,null,null,null,null,null,null,null,"__"]
[null,null,null,null,null,null,null,null,"__"]
[null,null,null,null,null,null,null,null,"__"]
[null,null,null,null,null,null,null,null,"__"]
[null,null,null,null,null,null,null,null,"__"]
[null,null,null,null,null,null,null,null,"__"]
[null,null,null,null,null,null,null,null,"__"]
[null,null,null,null,null,null,null,null,"__"]
[null,null,null,null,null,null,null,null,"__"]
[null,null,null,null,null,null,null,null,"__"]
[null,null,null,null,null,null,null,null,"__"]
[null,null,null,null,null,null,null,null,"__"]
[null,null,null,null,null,null,null,null,"__"]
[null,null,null,null,null,null,null,null,"__"]
[null,null,null,null,null,null,null,null,"__"]
[null,null,null,null,null,null,null,null,"__"]
[null,null,null,null,null,null,null,null,"__"]
[null,null,null,null,null,null,null,null,"__"]
[null,null,null,null,null,null,null,null,"__"]
[null,null,null,null,null,null,null,null,"__"]
[null,null,null,null,null,null,null,null,"__"]
[null,null,null,null,null,null,null,null,"__"]
[null,null,null,null,null,null,null,null,"__"]
[null,null,null,null,null,null,null,null,"__"]
[null,null,null,null,null,null,null,null,"__"]
[null,null,null,null,null,null,null,null,"__"]
[null,null,null,null,null,null,null,null,"__"]
[null,null,null,null,null,null,null,null,"__"]
[null,null,null,null,null,null,null,null,{"$f":"CONCATENATE(A3589,\"_\",B3589,\"_\",C3589)","v":"__"}]
[null,null,null,null,null,null,null,null,"__"]
[null,null,null,null,null,null,null,null,"__"]
[null,null,null,null,null,null,null,null,"__"]
[null,null,null,null,null,null,null,null,"__"]
[null,null,null,null,null,null,null,null,"__"]
[null,null,null,null,null,null,null,null,"__"]
[null,null,null,null,null,null,null,null,"__"]
[null,null,null,null,null,null,null,null,"__"]
[null,null,null,null,null,null,null,null,"__"]
[null,null,null,null,null,null,null,null,"__"]
[null,null,null,null,null,null,null,null,"__"]
[null,null,null,null,null,null,null,null,"__"]
[null,null,null,null,null,null,null,null,"__"]
[null,null,null,null,null,null,null,null,"__"]
[null,null,null,null,null,null,null,null,"__"]
[null,null,null,null,null,null,null,null,"__"]
[null,null,null,null,null,null,null,null,"__"]
[null,null,null,null,null,null,null,null,"__"]
[null,null,null,null,null,null,null,null,"__"]
[null,null,null,null,null,null,null,null,"__"]
[null,null,null,null,null,null,null,null,"__"]
[null,null,null,null,null,null,null,null,"__"]
[null,null,null,null,null,null,null,null,"__"]
[null,null,null,null,null,null,null,null,"__"]
[null,null,null,null,null,null,null,null,"__"]
[null,null,null,null,null,null,null,null,"__"]
[null,null,null,null,null,null,null,null,"__"]
[null,null,null,null,null,null,null,null,"__"]
[null,null,null,null,null,null,null,null,"__"]
[null,null,null,null,null,null,null,null,"__"]
[null,null,null,null,null,null,null,null,"__"]
[null,null,null,null,null,null,null,null,"__"]
[null,null,null,null,null,null,null,null,"__"]
[null,null,null,null,null,null,null,null,"__"]
[null,null,null,null,null,null,null,null,"__"]
[null,null,null,null,null,null,null,null,"__"]
[null,null,null,null,null,null,null,null,"__"]
[null,null,null,null,null,null,null,null,"__"]
[null,null,null,null,null,null,null,null,"__"]
[null,null,null,null,null,null,null,null,"__"]
[null,null,null,null,null,null,null,null,"__"]
[null,null,null,null,null,null,null,null,"__"]
[null,null,null,null,null,null,null,null,"__"]
[null,null,null,null,null,null,null,null,"__"]
[null,null,null,null,null,null,null,null,"__"]
[null,null,null,null,null,null,null,null,"__"]
[null,null,null,null,null,null,null,null,"__"]
[null,null,null,null,null,null,null,null,"__"]
[null,null,null,null,null,null,null,null,"__"]
[null,null,null,null,null,null,null,null,"__"]
[null,null,null,null,null,null,null,null,"__"]
[null,null,null,null,null,null,null,null,"__"]
[null,null,null,null,null,null,null,null,"__"]
[null,null,null,null,null,null,null,null,"__"]
[null,null,null,null,null,null,null,null,"__"]
[null,null,null,null,null,null,null,null,"__"]
[null,null,null,null,null,null,null,null,"__"]
[null,null,null,null,null,null,null,null,"__"]
[null,null,null,null,null,null,null,null,"__"]
[null,null,null,null,null,null,null,null,"__"]
[null,null,null,null,null,null,null,null,"__"]
[null,null,null,null,null,null,null,null,"__"]
[null,null,null,null,null,null,null,null,"__"]
[null,null,null,null,null,null,null,null,{"$f":"CONCATENATE(A3653,\"_\",B3653,\"_\",C3653)","v":"__"}]
[null,null,null,null,null,null,null,null,"__"]
[null,null,null,null,null,null,null,null,"__"]
[null,null,null,null,null,null,null,null,"__"]
[null,null,null,null,null,null,null,null,"__"]
[null,null,null,null,null,null,null,null,"__"]
[null,null,null,null,null,null,null,null,"__"]
[null,null,null,null,null,null,null,null,"__"]
[null,null,null,null,null,null,null,null,"__"]
[null,null,null,null,null,null,null,null,"__"]
[null,null,null,null,null,null,null,null,"__"]
[null,null,null,null,null,null,null,null,"__"]
[null,null,null,null,null,null,null,null,"__"]
[null,null,null,null,null,null,null,null,"__"]
[null,null,null,null,null,null,null,null,"__"]
[null,null,null,null,null,null,null,null,"__"]
[null,null,null,null,null,null,null,null,"__"]
[null,null,null,null,null,null,null,null,"__"]
[null,null,null,null,null,null,null,null,"__"]
[null,null,null,null,null,null,null,null,"__"]
[null,null,null,null,null,null,null,null,"__"]
[null,null,null,null,null,null,null,null,"__"]
[null,null,null,null,null,null,null,null,"__"]
[null,null,null,null,null,null,null,null,"__"]
[null,null,null,null,null,null,null,null,"__"]
[null,null,null,null,null,null,null,null,"__"]
[null,null,null,null,null,null,null,null,"__"]
[null,null,null,null,null,null,null,null,"__"]
[null,null,null,null,null,null,null,null,"__"]
[null,null,null,null,null,null,null,null,"__"]
[null,null,null,null,null,null,null,null,"__"]
[null,null,null,null,null,null,null,null,"__"]
[null,null,null,null,null,null,null,null,"__"]
[null,null,null,null,null,null,null,null,"__"]
[null,null,null,null,null,null,null,null,"__"]
[null,null,null,null,null,null,null,null,"__"]
[null,null,null,null,null,null,null,null,"__"]
[null,null,null,null,null,null,null,null,"__"]
[null,null,null,null,null,null,null,null,"__"]
[null,null,null,null,null,null,null,null,"__"]
[null,null,null,null,null,null,null,null,"__"]
[null,null,null,null,null,null,null,null,"__"]
[null,null,null,null,null,null,null,null,"__"]
[null,null,null,null,null,null,null,null,"__"]
[null,null,null,null,null,null,null,null,"__"]
[null,null,null,null,null,null,null,null,"__"]
[null,null,null,null,null,null,null,null,"__"]
[null,null,null,null,null,null,null,null,"__"]
[null,null,null,null,null,null,null,null,"__"]
[null,null,null,null,null,null,null,null,"__"]
[null,null,null,null,null,null,null,null,"__"]
[null,null,null,null,null,null,null,null,"__"]
[null,null,null,null,null,null,null,null,"__"]
[null,null,null,null,null,null,null,null,"__"]
[null,null,null,null,null,null,null,null,"__"]
[null,null,null,null,null,null,null,null,"__"]
[null,null,null,null,null,null,null,null,"__"]
[null,null,null,null,null,null,null,null,"__"]
[null,null,null,null,null,null,null,null,"__"]
[null,null,null,null,null,null,null,null,"__"]
[null,null,null,null,null,null,null,null,"__"]
[null,null,null,null,null,null,null,null,"__"]
[null,null,null,null,null,null,null,null,"__"]
[null,null,null,null,null,null,null,null,"__"]
[null,null,null,null,null,null,null,null,{"$f":"CONCATENATE(A3717,\"_\",B3717,\"_\",C3717)","v":"__"}]
[null,null,null,null,null,null,null,null,"__"]
[null,null,null,null,null,null,null,null,"__"]
[null,null,null,null,null,null,null,null,"__"]
[null,null,null,null,null,null,null,null,"__"]
[null,null,null,null,null,null,null,null,"__"]
[null,null,null,null,null,null,null,null,"__"]
[null,null,null,null,null,null,null,null,"__"]
[null,null,null,null,null,null,null,null,"__"]
[null,null,null,null,null,null,null,null,"__"]
[null,null,null,null,null,null,null,null,"__"]
[null,null,null,null,null,null,null,null,"__"]
[null,null,null,null,null,null,null,null,"__"]
[null,null,null,null,null,null,null,null,"__"]
[null,null,null,null,null,null,null,null,"__"]
[null,null,null,null,null,null,null,null,"__"]
[null,null,null,null,null,null,null,null,"__"]
[null,null,null,null,null,null,null,null,"__"]
[null,null,null,null,null,null,null,null,"__"]
[null,null,null,null,null,null,null,null,"__"]
[null,null,null,null,null,null,null,null,"__"]
[null,null,null,null,null,null,null,null,"__"]
[null,null,null,null,null,null,null,null,"__"]
[null,null,null,null,null,null,null,null,"__"]
[null,null,null,null,null,null,null,null,"__"]
[null,null,null,null,null,null,null,null,"__"]
[null,null,null,null,null,null,null,null,"__"]
[null,null,null,null,null,null,null,null,"__"]
[null,null,null,null,null,null,null,null,"__"]
[null,null,null,null,null,null,null,null,"__"]
[null,null,null,null,null,null,null,null,"__"]
[null,null,null,null,null,null,null,null,"__"]
[null,null,null,null,null,null,null,null,"__"]
[null,null,null,null,null,null,null,null,"__"]
[null,null,null,null,null,null,null,null,"__"]
[null,null,null,null,null,null,null,null,"__"]
[null,null,null,null,null,null,null,null,"__"]
[null,null,null,null,null,null,null,null,"__"]
[null,null,null,null,null,null,null,null,"__"]
[null,null,null,null,null,null,null,null,"__"]
[null,null,null,null,null,null,null,null,"__"]
[null,null,null,null,null,null,null,null,"__"]
[null,null,null,null,null,null,null,null,"__"]
[null,null,null,null,null,null,null,null,"__"]
[null,null,null,null,null,null,null,null,"__"]
[null,null,null,null,null,null,null,null,"__"]
[null,null,null,null,null,null,null,null,"__"]
[null,null,null,null,null,null,null,null,"__"]
[null,null,null,null,null,null,null,null,"__"]
[null,null,null,null,null,null,null,null,"__"]
[null,null,null,null,null,null,null,null,"__"]
[null,null,null,null,null,null,null,null,"__"]
[null,null,null,null,null,null,null,null,"__"]
[null,null,null,null,null,null,null,null,"__"]
[null,null,null,null,null,null,null,null,"__"]
[null,null,null,null,null,null,null,null,"__"]
[null,null,null,null,null,null,null,null,"__"]
[null,null,null,null,null,null,null,null,"__"]
[null,null,null,null,null,null,null,null,"__"]
[null,null,null,null,null,null,null,null,"__"]
[null,null,null,null,null,null,null,null,"__"]
[null,null,null,null,null,null,null,null,"__"]
[null,null,null,null,null,null,null,null,"__"]
[null,null,null,null,null,null,null,null,"__"]
[null,null,null,null,null,null,null,null,{"$f":"CONCATENATE(A3781,\"_\",B3781,\"_\",C3781)","v":"__"}]
[null,null,null,null,null,null,null,null,"__"]
[null,null,null,null,null,null,null,null,"__"]
[null,null,null,null,null,null,null,null,"__"]
[null,null,null,null,null,null,null,null,"__"]
[null,null,null,null,null,null,null,null,"__"]
[null,null,null,null,null,null,null,null,"__"]
[null,null,null,null,null,null,null,null,"__"]
[null,null,null,null,null,null,null,null,"__"]
[null,null,null,null,null,null,null,null,"__"]
[null,null,null,null,null,null,null,null,"__"]
[null,null,null,null,null,null,null,null,"__"]
[null,null,null,null,null,null,null,null,"__"]
[null,null,null,null,null,null,null,null,"__"]
[null,null,null,null,null,null,null,null,"__"]
[null,null,null,null,null,null,null,null,"__"]
[null,null,null,null,null,null,null,null,"__"]
[null,null,null,null,null,null,null,null,"__"]
[null,null,null,null,null,null,null,null,"__"]
[null,null,null,null,null,null,null,null,"__"]
[null,null,null,null,null,null,null,null,"__"]
[null,null,null,null,null,null,null,null,"__"]
[null,null,null,null,null,null,null,null,"__"]
[null,null,null,null,null,null,null,null,"__"]
[null,null,null,null,null,null,null,null,"__"]
[null,null,null,null,null,null,null,null,"__"]
[null,null,null,null,null,null,null,null,"__"]
[null,null,null,null,null,null,null,null,"__"]
[null,null,null,null,null,null,null,null,"__"]
[null,null,null,null,null,null,null,null,"__"]
[null,null,null,null,null,null,null,null,"__"]
[null,null,null,null,null,null,null,null,"__"]
[null,null,null,null,null,null,null,null,"__"]
[null,null,null,null,null,null,null,null,"__"]
[null,null,null,null,null,null,null,null,"__"]
[null,null,null,null,null,null,null,null,"__"]
[null,null,null,null,null,null,null,null,"__"]
[null,null,null,null,null,null,null,null,"__"]
[null,null,null,null,null,null,null,null,"__"]
[null,null,null,null,null,null,null,null,"__"]
[null,null,null,null,null,null,null,null,"__"]
[null,null,null,null,null,null,null,null,"__"]
[null,null,null,null,null,null,null,null,"__"]
[null,null,null,null,null,null,null,null,"__"]
[null,null,null,null,null,null,null,null,"__"]
[null,null,null,null,null,null,null,null,"__"]
[null,null,null,null,null,null,null,null,"__"]
[null,null,null,null,null,null,null,null,"__"]
[null,null,null,null,null,null,null,null,"__"]
[null,null,null,null,null,null,null,null,"__"]
[null,null,null,null,null,null,null,null,"__"]
[null,null,null,null,null,null,null,null,"__"]
[null,null,null,null,null,null,null,null,"__"]
[null,null,null,null,null,null,null,null,"__"]
[null,null,null,null,null,null,null,null,"__"]
[null,null,null,null,null,null,null,null,"__"]
[null,null,null,null,null,null,null,null,"__"]
[null,null,null,null,null,null,null,null,"__"]
[null,null,null,null,null,null,null,null,"__"]
[null,null,null,null,null,null,null,null,"__"]
[null,null,null,null,null,null,null,null,"__"]
[null,null,null,null,null,null,null,null,"__"]
[null,null,null,null,null,null,null,null,"__"]
[null,null,null,null,null,null,null,null,"__"]
[null,null,null,null,null,null,null,null,{"$f":"CONCATENATE(A3845,\"_\",B3845,\"_\",C3845)","v":"__"}]
[null,null,null,null,null,null,null,null,"__"]
[null,null,null,null,null,null,null,null,"__"]
[null,null,null,null,null,null,null,null,"__"]
[null,null,null,null,null,null,null,null,"__"]
[null,null,null,null,null,null,null,null,"__"]
[null,null,null,null,null,null,null,null,"__"]
[null,null,null,null,null,null,null,null,"__"]
[null,null,null,null,null,null,null,null,"__"]
[null,null,null,null,null,null,null,null,"__"]
[null,null,null,null,null,null,null,null,"__"]
[null,null,null,null,null,null,null,null,"__"]
[null,null,null,null,null,null,null,null,"__"]
[null,null,null,null,null,null,null,null,"__"]
[null,null,null,null,null,null,null,null,"__"]
[null,null,null,null,null,null,null,null,"__"]
[null,null,null,null,null,null,null,null,"__"]
[null,null,null,null,null,null,null,null,"__"]
[null,null,null,null,null,null,null,null,"__"]
[null,null,null,null,null,null,null,null,"__"]
[null,null,null,null,null,null,null,null,"__"]
[null,null,null,null,null,null,null,null,"__"]
[null,null,null,null,null,null,null,null,"__"]
[null,null,null,null,null,null,null,null,"__"]
[null,null,null,null,null,null,null,null,"__"]
[null,null,null,null,null,null,null,null,"__"]
[null,null,null,null,null,null,null,null,"__"]
[null,null,null,null,null,null,null,null,"__"]
[null,null,null,null,null,null,null,null,"__"]
[null,null,null,null,null,null,null,null,"__"]
[null,null,null,null,null,null,null,null,"__"]
[null,null,null,null,null,null,null,null,"__"]
[null,null,null,null,null,null,null,null,"__"]
[null,null,null,null,null,null,null,null,"__"]
[null,null,null,null,null,null,null,null,"__"]
[null,null,null,null,null,null,null,null,"__"]
[null,null,null,null,null,null,null,null,"__"]
[null,null,null,null,null,null,null,null,"__"]
[null,null,null,null,null,null,null,null,"__"]
[null,null,null,null,null,null,null,null,"__"]
[null,null,null,null,null,null,null,null,"__"]
[null,null,null,null,null,null,null,null,"__"]
[null,null,null,null,null,null,null,null,"__"]
[null,null,null,null,null,null,null,null,"__"]
[null,null,null,null,null,null,null,null,"__"]
[null,null,null,null,null,null,null,null,"__"]
[null,null,null,null,null,null,null,null,"__"]
[null,null,null,null,null,null,null,null,"__"]
[null,null,null,null,null,null,null,null,"__"]
[null,null,null,null,null,null,null,null,"__"]
[null,null,null,null,null,null,null,null,"__"]
[null,null,null,null,null,null,null,null,"__"]
[null,null,null,null,null,null,null,null,"__"]
[null,null,null,null,null,null,null,null,"__"]
[null,null,null,null,null,null,null,null,"__"]
[null,null,null,null,null,null,null,null,"__"]
[null,null,null,null,null,null,null,null,"__"]
[null,null,null,null,null,null,null,null,"__"]
[null,null,null,null,null,null,null,null,"__"]
[null,null,null,null,null,null,null,null,"__"]
[null,null,null,null,null,null,null,null,"__"]
[null,null,null,null,null,null,null,null,"__"]
[null,null,null,null,null,null,null,null,"__"]
[null,null,null,null,null,null,null,null,"__"]
[null,null,null,null,null,null,null,null,{"$f":"CONCATENATE(A3909,\"_\",B3909,\"_\",C3909)","v":"__"}]
[null,null,null,null,null,null,null,null,"__"]
[null,null,null,null,null,null,null,null,"__"]
[null,null,null,null,null,null,null,null,"__"]
[null,null,null,null,null,null,null,null,"__"]
[null,null,null,null,null,null,null,null,"__"]
[null,null,null,null,null,null,null,null,"__"]
[null,null,null,null,null,null,null,null,"__"]
[null,null,null,null,null,null,null,null,"__"]
[null,null,null,null,null,null,null,null,"__"]
[null,null,null,null,null,null,null,null,"__"]
[null,null,null,null,null,null,null,null,"__"]
[null,null,null,null,null,null,null,null,"__"]
[null,null,null,null,null,null,null,null,"__"]
[null,null,null,null,null,null,null,null,"__"]
[null,null,null,null,null,null,null,null,"__"]
[null,null,null,null,null,null,null,null,"__"]
[null,null,null,null,null,null,null,null,"__"]
[null,null,null,null,null,null,null,null,"__"]
[null,null,null,null,null,null,null,null,"__"]
[null,null,null,null,null,null,null,null,"__"]
[null,null,null,null,null,null,null,null,"__"]
[null,null,null,null,null,null,null,null,"__"]
[null,null,null,null,null,null,null,null,"__"]
[null,null,null,null,null,null,null,null,"__"]
[null,null,null,null,null,null,null,null,"__"]
[null,null,null,null,null,null,null,null,"__"]
[null,null,null,null,null,null,null,null,"__"]
[null,null,null,null,null,null,null,null,"__"]
[null,null,null,null,null,null,null,null,"__"]
[null,null,null,null,null,null,null,null,"__"]
[null,null,null,null,null,null,null,null,"__"]
[null,null,null,null,null,null,null,null,"__"]
[null,null,null,null,null,null,null,null,"__"]
[null,null,null,null,null,null,null,null,"__"]
[null,null,null,null,null,null,null,null,"__"]
[null,null,null,null,null,null,null,null,"__"]
[null,null,null,null,null,null,null,null,"__"]
[null,null,null,null,null,null,null,null,"__"]
[null,null,null,null,null,null,null,null,"__"]
[null,null,null,null,null,null,null,null,"__"]
[null,null,null,null,null,null,null,null,"__"]
[null,null,null,null,null,null,null,null,"__"]
[null,null,null,null,null,null,null,null,"__"]
[null,null,null,null,null,null,null,null,"__"]
[null,null,null,null,null,null,null,null,"__"]
[null,null,null,null,null,null,null,null,"__"]
[null,null,null,null,null,null,null,null,"__"]
[null,null,null,null,null,null,null,null,"__"]
[null,null,null,null,null,null,null,null,"__"]
[null,null,null,null,null,null,null,null,"__"]
[null,null,null,null,null,null,null,null,"__"]
[null,null,null,null,null,null,null,null,"__"]
[null,null,null,null,null,null,null,null,"__"]
[null,null,null,null,null,null,null,null,"__"]
[null,null,null,null,null,null,null,null,"__"]
[null,null,null,null,null,null,null,null,"__"]
[null,null,null,null,null,null,null,null,"__"]
[null,null,null,null,null,null,null,null,"__"]
[null,null,null,null,null,null,null,null,"__"]
[null,null,null,null,null,null,null,null,"__"]
[null,null,null,null,null,null,null,null,"__"]
[null,null,null,null,null,null,null,null,"__"]
[null,null,null,null,null,null,null,null,"__"]
[null,null,null,null,null,null,null,null,{"$f":"CONCATENATE(A3973,\"_\",B3973,\"_\",C3973)","v":"__"}]
[null,null,null,null,null,null,null,null,"__"]
[null,null,null,null,null,null,null,null,"__"]
[null,null,null,null,null,null,null,null,"__"]
[null,null,null,null,null,null,null,null,"__"]
[null,null,null,null,null,null,null,null,"__"]
[null,null,null,null,null,null,null,null,"__"]
[null,null,null,null,null,null,null,null,"__"]
[null,null,null,null,null,null,null,null,"__"]
[null,null,null,null,null,null,null,null,"__"]
[null,null,null,null,null,null,null,null,"__"]
[null,null,null,null,null,null,null,null,"__"]
[null,null,null,null,null,null,null,null,"__"]
[null,null,null,null,null,null,null,null,"__"]
[null,null,null,null,null,null,null,null,"__"]
[null,null,null,null,null,null,null,null,"__"]
[null,null,null,null,null,null,null,null,"__"]
[null,null,null,null,null,null,null,null,"__"]
[null,null,null,null,null,null,null,null,"__"]
[null,null,null,null,null,null,null,null,"__"]
[null,null,null,null,null,null,null,null,"__"]
[null,null,null,null,null,null,null,null,"__"]
[null,null,null,null,null,null,null,null,"__"]
[null,null,null,null,null,null,null,null,"__"]
[null,null,null,null,null,null,null,null,"__"]
[null,null,null,null,null,null,null,null,"__"]
[null,null,null,null,null,null,null,null,"__"]
[null,null,null,null,null,null,null,null,"__"]
[null,null,null,null,null,null,null,null,"__"]
[null,null,null,null,null,null,null,null,"__"]
[null,null,null,null,null,null,null,null,"__"]
[null,null,null,null,null,null,null,null,"__"]
[null,null,null,null,null,null,null,null,"__"]
[null,null,null,null,null,null,null,null,"__"]
[null,null,null,null,null,null,null,null,"__"]
[null,null,null,null,null,null,null,null,"__"]
[null,null,null,null,null,null,null,null,"__"]
[null,null,null,null,null,null,null,null,"__"]
[null,null,null,null,null,null,null,null,"__"]
[null,null,null,null,null,null,null,null,"__"]
[null,null,null,null,null,null,null,null,"__"]
[null,null,null,null,null,null,null,null,"__"]
[null,null,null,null,null,null,null,null,"__"]
[null,null,null,null,null,null,null,null,"__"]
[null,null,null,null,null,null,null,null,"__"]
[null,null,null,null,null,null,null,null,"__"]
[null,null,null,null,null,null,null,null,"__"]
[null,null,null,null,null,null,null,null,"__"]
[null,null,null,null,null,null,null,null,"__"]
[null,null,null,null,null,null,null,null,"__"]
[null,null,null,null,null,null,null,null,"__"]
[null,null,null,null,null,null,null,null,"__"]
[null,null,null,null,null,null,null,null,"__"]
[null,null,null,null,null,null,null,null,"__"]
[null,null,null,null,null,null,null,null,"__"]
[null,null,null,null,null,null,null,null,"__"]
[null,null,null,null,null,null,null,null,"__"]
[null,null,null,null,null,null,null,null,"__"]
[null,null,null,null,null,null,null,null,"__"]
[null,null,null,null,null,null,null,null,"__"]
[null,null,null,null,null,null,null,null,"__"]
[null,null,null,null,null,null,null,null,"__"]
[null,null,null,null,null,null,null,null,"__"]
[null,null,null,null,null,null,null,null,"__"]
[null,null,null,null,null,null,null,null,{"$f":"CONCATENATE(A4037,\"_\",B4037,\"_\",C4037)","v":"__"}]
[null,null,null,null,null,null,null,null,"__"]
[null,null,null,null,null,null,null,null,"__"]
[null,null,null,null,null,null,null,null,"__"]
[null,null,null,null,null,null,null,null,"__"]
[null,null,null,null,null,null,null,null,"__"]
[null,null,null,null,null,null,null,null,"__"]
[null,null,null,null,null,null,null,null,"__"]
[null,null,null,null,null,null,null,null,"__"]
[null,null,null,null,null,null,null,null,"__"]
[null,null,null,null,null,null,null,null,"__"]
[null,null,null,null,null,null,null,null,"__"]
[null,null,null,null,null,null,null,null,"__"]
[null,null,null,null,null,null,null,null,"__"]
[null,null,null,null,null,null,null,null,"__"]
[null,null,null,null,null,null,null,null,"__"]
[null,null,null,null,null,null,null,null,"__"]
[null,null,null,null,null,null,null,null,"__"]
[null,null,null,null,null,null,null,null,"__"]
[null,null,null,null,null,null,null,null,"__"]
[null,null,null,null,null,null,null,null,"__"]
[null,null,null,null,null,null,null,null,"__"]
[null,null,null,null,null,null,null,null,"__"]
[null,null,null,null,null,null,null,null,"__"]
[null,null,null,null,null,null,null,null,"__"]
[null,null,null,null,null,null,null,null,"__"]
[null,null,null,null,null,null,null,null,"__"]
[null,null,null,null,null,null,null,null,"__"]
[null,null,null,null,null,null,null,null,"__"]
[null,null,null,null,null,null,null,null,"__"]
[null,null,null,null,null,null,null,null,"__"]
[null,null,null,null,null,null,null,null,"__"]
[null,null,null,null,null,null,null,null,"__"]
[null,null,null,null,null,null,null,null,"__"]
[null,null,null,null,null,null,null,null,"__"]
[null,null,null,null,null,null,null,null,"__"]
[null,null,null,null,null,null,null,null,"__"]
[null,null,null,null,null,null,null,null,"__"]
[null,null,null,null,null,null,null,null,"__"]
[null,null,null,null,null,null,null,null,"__"]
[null,null,null,null,null,null,null,null,"__"]
[null,null,null,null,null,null,null,null,"__"]
[null,null,null,null,null,null,null,null,"__"]
[null,null,null,null,null,null,null,null,"__"]
[null,null,null,null,null,null,null,null,"__"]
[null,null,null,null,null,null,null,null,"__"]
[null,null,null,null,null,null,null,null,"__"]
[null,null,null,null,null,null,null,null,"__"]
[null,null,null,null,null,null,null,null,"__"]
[null,null,null,null,null,null,null,null,"__"]
[null,null,null,null,null,null,null,null,"__"]
[null,null,null,null,null,null,null,null,"__"]
[null,null,null,null,null,null,null,null,"__"]
[null,null,null,null,null,null,null,null,"__"]
[null,null,null,null,null,null,null,null,"__"]
[null,null,null,null,null,null,null,null,"__"]
[null,null,null,null,null,null,null,null,"__"]
[null,null,null,null,null,null,null,null,"__"]
[null,null,null,null,null,null,null,null,"__"]
[null,null,null,null,null,null,null,null,"__"]
[null,null,null,null,null,null,null,null,"__"]
[null,null,null,null,null,null,null,null,"__"]
[null,null,null,null,null,null,null,null,"__"]
[null,null,null,null,null,null,null,null,"__"]
[null,null,null,null,null,null,null,null,{"$f":"CONCATENATE(A4101,\"_\",B4101,\"_\",C4101)","v":"__"}]
[null,null,null,null,null,null,null,null,"__"]
[null,null,null,null,null,null,null,null,"__"]
[null,null,null,null,null,null,null,null,"__"]
[null,null,null,null,null,null,null,null,"__"]
[null,null,null,null,null,null,null,null,"__"]
[null,null,null,null,null,null,null,null,"__"]
[null,null,null,null,null,null,null,null,"__"]
[null,null,null,null,null,null,null,null,"__"]
[null,null,null,null,null,null,null,null,"__"]
[null,null,null,null,null,null,null,null,"__"]
[null,null,null,null,null,null,null,null,"__"]
[null,null,null,null,null,null,null,null,"__"]
[null,null,null,null,null,null,null,null,"__"]
[null,null,null,null,null,null,null,null,"__"]
[null,null,null,null,null,null,null,null,"__"]
[null,null,null,null,null,null,null,null,"__"]
[null,null,null,null,null,null,null,null,"__"]
[null,null,null,null,null,null,null,null,"__"]
[null,null,null,null,null,null,null,null,"__"]
[null,null,null,null,null,null,null,null,"__"]
[null,null,null,null,null,null,null,null,"__"]
[null,null,null,null,null,null,null,null,"__"]
[null,null,null,null,null,null,null,null,"__"]
[null,null,null,null,null,null,null,null,"__"]
[null,null,null,null,null,null,null,null,"__"]
[null,null,null,null,null,null,null,null,"__"]
[null,null,null,null,null,null,null,null,"__"]
[null,null,null,null,null,null,null,null,"__"]
[null,null,null,null,null,null,null,null,"__"]
[null,null,null,null,null,null,null,null,"__"]
[null,null,null,null,null,null,null,null,"__"]
[null,null,null,null,null,null,null,null,"__"]
[null,null,null,null,null,null,null,null,"__"]
[null,null,null,null,null,null,null,null,"__"]
[null,null,null,null,null,null,null,null,"__"]
[null,null,null,null,null,null,null,null,"__"]
[null,null,null,null,null,null,null,null,"__"]
[null,null,null,null,null,null,null,null,"__"]
[null,null,null,null,null,null,null,null,"__"]
[null,null,null,null,null,null,null,null,"__"]
[null,null,null,null,null,null,null,null,"__"]
[null,null,null,null,null,null,null,null,"__"]
[null,null,null,null,null,null,null,null,"__"]
[null,null,null,null,null,null,null,null,"__"]
[null,null,null,null,null,null,null,null,"__"]
[null,null,null,null,null,null,null,null,"__"]
[null,null,null,null,null,null,null,null,"__"]
[null,null,null,null,null,null,null,null,"__"]
[null,null,null,null,null,null,null,null,"__"]
[null,null,null,null,null,null,null,null,"__"]
[null,null,null,null,null,null,null,null,"__"]
[null,null,null,null,null,null,null,null,"__"]
[null,null,null,null,null,null,null,null,"__"]
[null,null,null,null,null,null,null,null,"__"]
[null,null,null,null,null,null,null,null,"__"]
[null,null,null,null,null,null,null,null,"__"]
[null,null,null,null,null,null,null,null,"__"]
[null,null,null,null,null,null,null,null,"__"]
[null,null,null,null,null,null,null,null,"__"]
[null,null,null,null,null,null,null,null,"__"]
[null,null,null,null,null,null,null,null,"__"]
[null,null,null,null,null,null,null,null,"__"]
[null,null,null,null,null,null,null,null,"__"]
[null,null,null,null,null,null,null,null,{"$f":"CONCATENATE(A4165,\"_\",B4165,\"_\",C4165)","v":"__"}]
[null,null,null,null,null,null,null,null,"__"]
[null,null,null,null,null,null,null,null,"__"]
[null,null,null,null,null,null,null,null,"__"]
[null,null,null,null,null,null,null,null,"__"]
[null,null,null,null,null,null,null,null,"__"]
[null,null,null,null,null,null,null,null,"__"]
[null,null,null,null,null,null,null,null,"__"]
[null,null,null,null,null,null,null,null,"__"]
[null,null,null,null,null,null,null,null,"__"]
[null,null,null,null,null,null,null,null,"__"]
[null,null,null,null,null,null,null,null,"__"]
[null,null,null,null,null,null,null,null,"__"]
[null,null,null,null,null,null,null,null,"__"]
[null,null,null,null,null,null,null,null,"__"]
[null,null,null,null,null,null,null,null,"__"]
[null,null,null,null,null,null,null,null,"__"]
[null,null,null,null,null,null,null,null,"__"]
[null,null,null,null,null,null,null,null,"__"]
[null,null,null,null,null,null,null,null,"__"]
[null,null,null,null,null,null,null,null,"__"]
[null,null,null,null,null,null,null,null,"__"]
[null,null,null,null,null,null,null,null,"__"]
[null,null,null,null,null,null,null,null,"__"]
[null,null,null,null,null,null,null,null,"__"]
[null,null,null,null,null,null,null,null,"__"]
[null,null,null,null,null,null,null,null,"__"]
[null,null,null,null,null,null,null,null,"__"]
[null,null,null,null,null,null,null,null,"__"]
[null,null,null,null,null,null,null,null,"__"]
[null,null,null,null,null,null,null,null,"__"]
[null,null,null,null,null,null,null,null,"__"]
[null,null,null,null,null,null,null,null,"__"]
[null,null,null,null,null,null,null,null,"__"]
[null,null,null,null,null,null,null,null,"__"]
[null,null,null,null,null,null,null,null,"__"]
[null,null,null,null,null,null,null,null,"__"]
[null,null,null,null,null,null,null,null,"__"]
[null,null,null,null,null,null,null,null,"__"]
[null,null,null,null,null,null,null,null,"__"]
[null,null,null,null,null,null,null,null,"__"]
[null,null,null,null,null,null,null,null,"__"]
[null,null,null,null,null,null,null,null,"__"]
[null,null,null,null,null,null,null,null,"__"]
[null,null,null,null,null,null,null,null,"__"]
[null,null,null,null,null,null,null,null,"__"]
[null,null,null,null,null,null,null,null,"__"]
[null,null,null,null,null,null,null,null,"__"]
[null,null,null,null,null,null,null,null,"__"]
[null,null,null,null,null,null,null,null,"__"]
[null,null,null,null,null,null,null,null,"__"]
[null,null,null,null,null,null,null,null,"__"]
[null,null,null,null,null,null,null,null,"__"]
[null,null,null,null,null,null,null,null,"__"]
[null,null,null,null,null,null,null,null,"__"]
[null,null,null,null,null,null,null,null,"__"]
[null,null,null,null,null,null,null,null,"__"]
[null,null,null,null,null,null,null,null,"__"]
[null,null,null,null,null,null,null,null,"__"]
[null,null,null,null,null,null,null,null,"__"]
[null,null,null,null,null,null,null,null,"__"]
[null,null,null,null,null,null,null,null,"__"]
[null,null,null,null,null,null,null,null,"__"]
[null,null,null,null,null,null,null,null,"__"]
[null,null,null,null,null,null,null,null,{"$f":"CONCATENATE(A4229,\"_\",B4229,\"_\",C4229)","v":"__"}]
[null,null,null,null,null,null,null,null,"__"]
[null,null,null,null,null,null,null,null,"__"]
[null,null,null,null,null,null,null,null,"__"]
[null,null,null,null,null,null,null,null,"__"]
[null,null,null,null,null,null,null,null,"__"]
[null,null,null,null,null,null,null,null,"__"]
[null,null,null,null,null,null,null,null,"__"]
[null,null,null,null,null,null,null,null,"__"]
[null,null,null,null,null,null,null,null,"__"]
[null,null,null,null,null,null,null,null,"__"]
[null,null,null,null,null,null,null,null,"__"]
[null,null,null,null,null,null,null,null,"__"]
[null,null,null,null,null,null,null,null,"__"]
[null,null,null,null,null,null,null,null,"__"]
[null,null,null,null,null,null,null,null,"__"]
[null,null,null,null,null,null,null,null,"__"]
[null,null,null,null,null,null,null,null,"__"]
[null,null,null,null,null,null,null,null,"__"]
[null,null,null,null,null,null,null,null,"__"]
[null,null,null,null,null,null,null,null,"__"]
[null,null,null,null,null,null,null,null,"__"]
[null,null,null,null,null,null,null,null,"__"]
[null,null,null,null,null,null,null,null,"__"]
[null,null,null,null,null,null,null,null,"__"]
[null,null,null,null,null,null,null,null,"__"]
[null,null,null,null,null,null,null,null,"__"]
[null,null,null,null,null,null,null,null,"__"]
[null,null,null,null,null,null,null,null,"__"]
[null,null,null,null,null,null,null,null,"__"]
[null,null,null,null,null,null,null,null,"__"]
[null,null,null,null,null,null,null,null,"__"]
[null,null,null,null,null,null,null,null,"__"]
[null,null,null,null,null,null,null,null,"__"]
[null,null,null,null,null,null,null,null,"__"]
[null,null,null,null,null,null,null,null,"__"]
[null,null,null,null,null,null,null,null,"__"]
[null,null,null,null,null,null,null,null,"__"]
[null,null,null,null,null,null,null,null,"__"]
[null,null,null,null,null,null,null,null,"__"]
[null,null,null,null,null,null,null,null,"__"]
[null,null,null,null,null,null,null,null,"__"]
[null,null,null,null,null,null,null,null,"__"]
[null,null,null,null,null,null,null,null,"__"]
[null,null,null,null,null,null,null,null,"__"]
[null,null,null,null,null,null,null,null,"__"]
[null,null,null,null,null,null,null,null,"__"]
[null,null,null,null,null,null,null,null,"__"]
[null,null,null,null,null,null,null,null,"__"]
[null,null,null,null,null,null,null,null,"__"]
[null,null,null,null,null,null,null,null,"__"]
[null,null,null,null,null,null,null,null,"__"]
[null,null,null,null,null,null,null,null,"__"]
[null,null,null,null,null,null,null,null,"__"]
[null,null,null,null,null,null,null,null,"__"]
[null,null,null,null,null,null,null,null,"__"]
[null,null,null,null,null,null,null,null,"__"]
[null,null,null,null,null,null,null,null,"__"]
[null,null,null,null,null,null,null,null,"__"]
[null,null,null,null,null,null,null,null,"__"]
[null,null,null,null,null,null,null,null,"__"]
[null,null,null,null,null,null,null,null,"__"]
[null,null,null,null,null,null,null,null,"__"]
[null,null,null,null,null,null,null,null,"__"]
[null,null,null,null,null,null,null,null,{"$f":"CONCATENATE(A4293,\"_\",B4293,\"_\",C4293)","v":"__"}]
[null,null,null,null,null,null,null,null,"__"]
[null,null,null,null,null,null,null,null,"__"]
[null,null,null,null,null,null,null,null,"__"]
[null,null,null,null,null,null,null,null,"__"]
[null,null,null,null,null,null,null,null,"__"]
[null,null,null,null,null,null,null,null,"__"]
[null,null,null,null,null,null,null,null,"__"]
[null,null,null,null,null,null,null,null,"__"]
[null,null,null,null,null,null,null,null,"__"]
[null,null,null,null,null,null,null,null,"__"]
[null,null,null,null,null,null,null,null,"__"]
[null,null,null,null,null,null,null,null,"__"]
[null,null,null,null,null,null,null,null,"__"]
[null,null,null,null,null,null,null,null,"__"]
[null,null,null,null,null,null,null,null,"__"]
[null,null,null,null,null,null,null,null,"__"]
[null,null,null,null,null,null,null,null,"__"]
[null,null,null,null,null,null,null,null,"__"]
[null,null,null,null,null,null,null,null,"__"]
[null,null,null,null,null,null,null,null,"__"]
[null,null,null,null,null,null,null,null,"__"]
[null,null,null,null,null,null,null,null,"__"]
[null,null,null,null,null,null,null,null,"__"]
[null,null,null,null,null,null,null,null,"__"]
[null,null,null,null,null,null,null,null,"__"]
[null,null,null,null,null,null,null,null,"__"]
[null,null,null,null,null,null,null,null,"__"]
[null,null,null,null,null,null,null,null,"__"]
[null,null,null,null,null,null,null,null,"__"]
[null,null,null,null,null,null,null,null,"__"]
[null,null,null,null,null,null,null,null,"__"]
[null,null,null,null,null,null,null,null,"__"]
[null,null,null,null,null,null,null,null,"__"]
[null,null,null,null,null,null,null,null,"__"]
[null,null,null,null,null,null,null,null,"__"]
[null,null,null,null,null,null,null,null,"__"]
[null,null,null,null,null,null,null,null,"__"]
[null,null,null,null,null,null,null,null,"__"]
[null,null,null,null,null,null,null,null,"__"]
[null,null,null,null,null,null,null,null,"__"]
[null,null,null,null,null,null,null,null,"__"]
[null,null,null,null,null,null,null,null,"__"]
[null,null,null,null,null,null,null,null,"__"]
[null,null,null,null,null,null,null,null,"__"]
[null,null,null,null,null,null,null,null,"__"]
[null,null,null,null,null,null,null,null,"__"]
[null,null,null,null,null,null,null,null,"__"]
[null,null,null,null,null,null,null,null,"__"]
[null,null,null,null,null,null,null,null,"__"]
[null,null,null,null,null,null,null,null,"__"]
[null,null,null,null,null,null,null,null,"__"]
[null,null,null,null,null,null,null,null,"__"]
[null,null,null,null,null,null,null,null,"__"]
[null,null,null,null,null,null,null,null,"__"]
[null,null,null,null,null,null,null,null,"__"]
[null,null,null,null,null,null,null,null,"__"]
[null,null,null,null,null,null,null,null,"__"]
[null,null,null,null,null,null,null,null,"__"]
[null,null,null,null,null,null,null,null,"__"]
[null,null,null,null,null,null,null,null,"__"]
[null,null,null,null,null,null,null,null,"__"]
[null,null,null,null,null,null,null,null,"__"]
[null,null,null,null,null,null,null,null,"__"]
[null,null,null,null,null,null,null,null,{"$f":"CONCATENATE(A4357,\"_\",B4357,\"_\",C4357)","v":"__"}]
[null,null,null,null,null,null,null,null,"__"]
[null,null,null,null,null,null,null,null,"__"]
[null,null,null,null,null,null,null,null,"__"]
[null,null,null,null,null,null,null,null,"__"]
[null,null,null,null,null,null,null,null,"__"]
[null,null,null,null,null,null,null,null,"__"]
[null,null,null,null,null,null,null,null,"__"]
[null,null,null,null,null,null,null,null,"__"]
[null,null,null,null,null,null,null,null,"__"]
[null,null,null,null,null,null,null,null,"__"]
[null,null,null,null,null,null,null,null,"__"]
[null,null,null,null,null,null,null,null,"__"]
[null,null,null,null,null,null,null,null,"__"]
[null,null,null,null,null,null,null,null,"__"]
[null,null,null,null,null,null,null,null,"__"]
[null,null,null,null,null,null,null,null,"__"]
[null,null,null,null,null,null,null,null,"__"]
[null,null,null,null,null,null,null,null,"__"]
[null,null,null,null,null,null,null,null,"__"]
[null,null,null,null,null,null,null,null,"__"]
[null,null,null,null,null,null,null,null,"__"]
[null,null,null,null,null,null,null,null,"__"]
[null,null,null,null,null,null,null,null,"__"]
[null,null,null,null,null,null,null,null,"__"]
[null,null,null,null,null,null,null,null,"__"]
[null,null,null,null,null,null,null,null,"__"]
[null,null,null,null,null,null,null,null,"__"]
[null,null,null,null,null,null,null,null,"__"]
[null,null,null,null,null,null,null,null,"__"]
[null,null,null,null,null,null,null,null,"__"]
[null,null,null,null,null,null,null,null,"__"]
[null,null,null,null,null,null,null,null,"__"]
[null,null,null,null,null,null,null,null,"__"]
[null,null,null,null,null,null,null,null,"__"]
[null,null,null,null,null,null,null,null,"__"]
[null,null,null,null,null,null,null,null,"__"]
[null,null,null,null,null,null,null,null,"__"]
[null,null,null,null,null,null,null,null,"__"]
[null,null,null,null,null,null,null,null,"__"]
[null,null,null,null,null,null,null,null,"__"]
[null,null,null,null,null,null,null,null,"__"]
[null,null,null,null,null,null,null,null,"__"]
[null,null,null,null,null,null,null,null,"__"]
[null,null,null,null,null,null,null,null,"__"]
[null,null,null,null,null,null,null,null,"__"]
[null,null,null,null,null,null,null,null,"__"]
[null,null,null,null,null,null,null,null,"__"]
[null,null,null,null,null,null,null,null,"__"]
[null,null,null,null,null,null,null,null,"__"]
[null,null,null,null,null,null,null,null,"__"]
[null,null,null,null,null,null,null,null,"__"]
[null,null,null,null,null,null,null,null,"__"]
[null,null,null,null,null,null,null,null,"__"]
[null,null,null,null,null,null,null,null,"__"]
[null,null,null,null,null,null,null,null,"__"]
[null,null,null,null,null,null,null,null,"__"]
[null,null,null,null,null,null,null,null,"__"]
[null,null,null,null,null,null,null,null,"__"]
[null,null,null,null,null,null,null,null,"__"]
[null,null,null,null,null,null,null,null,"__"]
[null,null,null,null,null,null,null,null,"__"]
[null,null,null,null,null,null,null,null,"__"]
[null,null,null,null,null,null,null,null,"__"]
[null,null,null,null,null,null,null,null,{"$f":"CONCATENATE(A4421,\"_\",B4421,\"_\",C4421)","v":"__"}]
[null,null,null,null,null,null,null,null,"__"]
[null,null,null,null,null,null,null,null,"__"]
[null,null,null,null,null,null,null,null,"__"]
[null,null,null,null,null,null,null,null,"__"]
[null,null,null,null,null,null,null,null,"__"]
[null,null,null,null,null,null,null,null,"__"]
[null,null,null,null,null,null,null,null,"__"]
[null,null,null,null,null,null,null,null,"__"]
[null,null,null,null,null,null,null,null,"__"]
[null,null,null,null,null,null,null,null,"__"]
[null,null,null,null,null,null,null,null,"__"]
[null,null,null,null,null,null,null,null,"__"]
[null,null,null,null,null,null,null,null,"__"]
[null,null,null,null,null,null,null,null,"__"]
[null,null,null,null,null,null,null,null,"__"]
[null,null,null,null,null,null,null,null,"__"]
[null,null,null,null,null,null,null,null,"__"]
[null,null,null,null,null,null,null,null,"__"]
[null,null,null,null,null,null,null,null,"__"]
[null,null,null,null,null,null,null,null,"__"]
[null,null,null,null,null,null,null,null,"__"]
[null,null,null,null,null,null,null,null,"__"]
[null,null,null,null,null,null,null,null,"__"]
[null,null,null,null,null,null,null,null,"__"]
[null,null,null,null,null,null,null,null,"__"]
[null,null,null,null,null,null,null,null,"__"]
[null,null,null,null,null,null,null,null,"__"]
[null,null,null,null,null,null,null,null,"__"]
[null,null,null,null,null,null,null,null,"__"]
[null,null,null,null,null,null,null,null,"__"]
[null,null,null,null,null,null,null,null,"__"]
[null,null,null,null,null,null,null,null,"__"]
[null,null,null,null,null,null,null,null,"__"]
[null,null,null,null,null,null,null,null,"__"]
[null,null,null,null,null,null,null,null,"__"]
[null,null,null,null,null,null,null,null,"__"]
[null,null,null,null,null,null,null,null,"__"]
[null,null,null,null,null,null,null,null,"__"]
[null,null,null,null,null,null,null,null,"__"]
[null,null,null,null,null,null,null,null,"__"]
[null,null,null,null,null,null,null,null,"__"]
[null,null,null,null,null,null,null,null,"__"]
[null,null,null,null,null,null,null,null,"__"]
[null,null,null,null,null,null,null,null,"__"]
[null,null,null,null,null,null,null,null,"__"]
[null,null,null,null,null,null,null,null,"__"]
[null,null,null,null,null,null,null,null,"__"]
[null,null,null,null,null,null,null,null,"__"]
[null,null,null,null,null,null,null,null,"__"]
[null,null,null,null,null,null,null,null,"__"]
[null,null,null,null,null,null,null,null,"__"]
[null,null,null,null,null,null,null,null,"__"]
[null,null,null,null,null,null,null,null,"__"]
[null,null,null,null,null,null,null,null,"__"]
[null,null,null,null,null,null,null,null,"__"]
[null,null,null,null,null,null,null,null,"__"]
[null,null,null,null,null,null,null,null,"__"]
[null,null,null,null,null,null,null,null,"__"]
[null,null,null,null,null,null,null,null,"__"]
[null,null,null,null,null,null,null,null,"__"]
[null,null,null,null,null,null,null,null,"__"]
[null,null,null,null,null,null,null,null,"__"]
[null,null,null,null,null,null,null,null,"__"]
[null,null,null,null,null,null,null,null,{"$f":"CONCATENATE(A4485,\"_\",B4485,\"_\",C4485)","v":"__"}]
[null,null,null,null,null,null,null,null,"__"]
[null,null,null,null,null,null,null,null,"__"]
[null,null,null,null,null,null,null,null,"__"]
[null,null,null,null,null,null,null,null,"__"]
[null,null,null,null,null,null,null,null,"__"]
[null,null,null,null,null,null,null,null,"__"]
[null,null,null,null,null,null,null,null,"__"]
[null,null,null,null,null,null,null,null,"__"]
[null,null,null,null,null,null,null,null,"__"]
[null,null,null,null,null,null,null,null,"__"]
[null,null,null,null,null,null,null,null,"__"]
[null,null,null,null,null,null,null,null,"__"]
[null,null,null,null,null,null,null,null,"__"]
[null,null,null,null,null,null,null,null,"__"]
[null,null,null,null,null,null,null,null,"__"]
[null,null,null,null,null,null,null,null,"__"]
[null,null,null,null,null,null,null,null,"__"]
[null,null,null,null,null,null,null,null,"__"]
[null,null,null,null,null,null,null,null,"__"]
[null,null,null,null,null,null,null,null,"__"]
[null,null,null,null,null,null,null,null,"__"]
[null,null,null,null,null,null,null,null,"__"]
[null,null,null,null,null,null,null,null,"__"]
[null,null,null,null,null,null,null,null,"__"]
[null,null,null,null,null,null,null,null,"__"]
[null,null,null,null,null,null,null,null,"__"]
[null,null,null,null,null,null,null,null,"__"]
[null,null,null,null,null,null,null,null,"__"]
[null,null,null,null,null,null,null,null,"__"]
[null,null,null,null,null,null,null,null,"__"]
[null,null,null,null,null,null,null,null,"__"]
[null,null,null,null,null,null,null,null,"__"]
[null,null,null,null,null,null,null,null,"__"]
[null,null,null,null,null,null,null,null,"__"]
[null,null,null,null,null,null,null,null,"__"]
[null,null,null,null,null,null,null,null,"__"]
[null,null,null,null,null,null,null,null,"__"]
[null,null,null,null,null,null,null,null,"__"]
[null,null,null,null,null,null,null,null,"__"]
[null,null,null,null,null,null,null,null,"__"]
[null,null,null,null,null,null,null,null,"__"]
[null,null,null,null,null,null,null,null,"__"]
[null,null,null,null,null,null,null,null,"__"]
[null,null,null,null,null,null,null,null,"__"]
[null,null,null,null,null,null,null,null,"__"]
[null,null,null,null,null,null,null,null,"__"]
[null,null,null,null,null,null,null,null,"__"]
[null,null,null,null,null,null,null,null,"__"]
[null,null,null,null,null,null,null,null,"__"]
[null,null,null,null,null,null,null,null,"__"]
[null,null,null,null,null,null,null,null,"__"]
[null,null,null,null,null,null,null,null,"__"]
[null,null,null,null,null,null,null,null,"__"]
[null,null,null,null,null,null,null,null,"__"]
[null,null,null,null,null,null,null,null,"__"]
[null,null,null,null,null,null,null,null,"__"]
[null,null,null,null,null,null,null,null,"__"]
[null,null,null,null,null,null,null,null,"__"]
[null,null,null,null,null,null,null,null,"__"]
[null,null,null,null,null,null,null,null,"__"]
[null,null,null,null,null,null,null,null,"__"]
[null,null,null,null,null,null,null,null,"__"]
[null,null,null,null,null,null,null,null,"__"]
[null,null,null,null,null,null,null,null,{"$f":"CONCATENATE(A4549,\"_\",B4549,\"_\",C4549)","v":"__"}]
[null,null,null,null,null,null,null,null,"__"]
[null,null,null,null,null,null,null,null,"__"]
[null,null,null,null,null,null,null,null,"__"]
[null,null,null,null,null,null,null,null,"__"]
[null,null,null,null,null,null,null,null,"__"]
[null,null,null,null,null,null,null,null,"__"]
[null,null,null,null,null,null,null,null,"__"]
[null,null,null,null,null,null,null,null,"__"]
[null,null,null,null,null,null,null,null,"__"]
[null,null,null,null,null,null,null,null,"__"]
[null,null,null,null,null,null,null,null,"__"]
[null,null,null,null,null,null,null,null,"__"]
[null,null,null,null,null,null,null,null,"__"]
[null,null,null,null,null,null,null,null,"__"]
[null,null,null,null,null,null,null,null,"__"]
[null,null,null,null,null,null,null,null,"__"]
[null,null,null,null,null,null,null,null,"__"]
[null,null,null,null,null,null,null,null,"__"]
[null,null,null,null,null,null,null,null,"__"]
[null,null,null,null,null,null,null,null,"__"]
[null,null,null,null,null,null,null,null,"__"]
[null,null,null,null,null,null,null,null,"__"]
[null,null,null,null,null,null,null,null,"__"]
[null,null,null,null,null,null,null,null,"__"]
[null,null,null,null,null,null,null,null,"__"]
[null,null,null,null,null,null,null,null,"__"]
[null,null,null,null,null,null,null,null,"__"]
[null,null,null,null,null,null,null,null,"__"]
[null,null,null,null,null,null,null,null,"__"]
[null,null,null,null,null,null,null,null,"__"]
[null,null,null,null,null,null,null,null,"__"]
[null,null,null,null,null,null,null,null,"__"]
[null,null,null,null,null,null,null,null,"__"]
[null,null,null,null,null,null,null,null,"__"]
[null,null,null,null,null,null,null,null,"__"]
[null,null,null,null,null,null,null,null,"__"]
[null,null,null,null,null,null,null,null,"__"]
[null,null,null,null,null,null,null,null,"__"]
[null,null,null,null,null,null,null,null,"__"]
[null,null,null,null,null,null,null,null,"__"]
[null,null,null,null,null,null,null,null,"__"]
[null,null,null,null,null,null,null,null,"__"]
[null,null,null,null,null,null,null,null,"__"]
[null,null,null,null,null,null,null,null,"__"]
[null,null,null,null,null,null,null,null,"__"]
[null,null,null,null,null,null,null,null,"__"]
[null,null,null,null,null,null,null,null,"__"]
[null,null,null,null,null,null,null,null,"__"]
[null,null,null,null,null,null,null,null,"__"]
[null,null,null,null,null,null,null,null,"__"]
[null,null,null,null,null,null,null,null,"__"]
[null,null,null,null,null,null,null,null,"__"]
[null,null,null,null,null,null,null,null,"__"]
[null,null,null,null,null,null,null,null,"__"]
[null,null,null,null,null,null,null,null,"__"]
[null,null,null,null,null,null,null,null,"__"]
[null,null,null,null,null,null,null,null,"__"]
[null,null,null,null,null,null,null,null,"__"]
[null,null,null,null,null,null,null,null,"__"]
[null,null,null,null,null,null,null,null,"__"]
[null,null,null,null,null,null,null,null,"__"]
[null,null,null,null,null,null,null,null,"__"]
[null,null,null,null,null,null,null,null,"__"]
[null,null,null,null,null,null,null,null,{"$f":"CONCATENATE(A4613,\"_\",B4613,\"_\",C4613)","v":"__"}]
[null,null,null,null,null,null,null,null,"__"]
[null,null,null,null,null,null,null,null,"__"]
[null,null,null,null,null,null,null,null,"__"]
[null,null,null,null,null,null,null,null,"__"]
[null,null,null,null,null,null,null,null,"__"]
[null,null,null,null,null,null,null,null,"__"]
[null,null,null,null,null,null,null,null,"__"]
[null,null,null,null,null,null,null,null,"__"]
[null,null,null,null,null,null,null,null,"__"]
[null,null,null,null,null,null,null,null,"__"]
[null,null,null,null,null,null,null,null,"__"]
[null,null,null,null,null,null,null,null,"__"]
[null,null,null,null,null,null,null,null,"__"]
[null,null,null,null,null,null,null,null,"__"]
[null,null,null,null,null,null,null,null,"__"]
[null,null,null,null,null,null,null,null,"__"]
[null,null,null,null,null,null,null,null,"__"]
[null,null,null,null,null,null,null,null,"__"]
[null,null,null,null,null,null,null,null,"__"]
[null,null,null,null,null,null,null,null,"__"]
[null,null,null,null,null,null,null,null,"__"]
[null,null,null,null,null,null,null,null,"__"]
[null,null,null,null,null,null,null,null,"__"]
[null,null,null,null,null,null,null,null,"__"]
[null,null,null,null,null,null,null,null,"__"]
[null,null,null,null,null,null,null,null,"__"]
[null,null,null,null,null,null,null,null,"__"]
[null,null,null,null,null,null,null,null,"__"]
[null,null,null,null,null,null,null,null,"__"]
[null,null,null,null,null,null,null,null,"__"]
[null,null,null,null,null,null,null,null,"__"]
[null,null,null,null,null,null,null,null,"__"]
[null,null,null,null,null,null,null,null,"__"]
[null,null,null,null,null,null,null,null,"__"]
[null,null,null,null,null,null,null,null,"__"]
[null,null,null,null,null,null,null,null,"__"]
[null,null,null,null,null,null,null,null,"__"]
[null,null,null,null,null,null,null,null,"__"]
[null,null,null,null,null,null,null,null,"__"]
[null,null,null,null,null,null,null,null,"__"]
[null,null,null,null,null,null,null,null,"__"]
[null,null,null,null,null,null,null,null,"__"]
[null,null,null,null,null,null,null,null,"__"]
[null,null,null,null,null,null,null,null,"__"]
[null,null,null,null,null,null,null,null,"__"]
[null,null,null,null,null,null,null,null,"__"]
[null,null,null,null,null,null,null,null,"__"]
[null,null,null,null,null,null,null,null,"__"]
[null,null,null,null,null,null,null,null,"__"]
[null,null,null,null,null,null,null,null,"__"]
[null,null,null,null,null,null,null,null,"__"]
[null,null,null,null,null,null,null,null,"__"]
[null,null,null,null,null,null,null,null,"__"]
[null,null,null,null,null,null,null,null,"__"]
[null,null,null,null,null,null,null,null,"__"]
[null,null,null,null,null,null,null,null,"__"]
[null,null,null,null,null,null,null,null,"__"]
[null,null,null,null,null,null,null,null,"__"]
[null,null,null,null,null,null,null,null,"__"]
[null,null,null,null,null,null,null,null,"__"]
[null,null,null,null,null,null,null,null,"__"]
[null,null,null,null,null,null,null,null,"__"]
[null,null,null,null,null,null,null,null,"__"]
[null,null,null,null,null,null,null,null,{"$f":"CONCATENATE(A4677,\"_\",B4677,\"_\",C4677)","v":"__"}]
[null,null,null,null,null,null,null,null,"__"]
[null,null,null,null,null,null,null,null,"__"]
[null,null,null,null,null,null,null,null,"__"]
[null,null,null,null,null,null,null,null,"__"]
[null,null,null,null,null,null,null,null,"__"]
[null,null,null,null,null,null,null,null,"__"]
[null,null,null,null,null,null,null,null,"__"]
[null,null,null,null,null,null,null,null,"__"]
[null,null,null,null,null,null,null,null,"__"]
[null,null,null,null,null,null,null,null,"__"]
[null,null,null,null,null,null,null,null,"__"]
[null,null,null,null,null,null,null,null,"__"]
[null,null,null,null,null,null,null,null,"__"]
[null,null,null,null,null,null,null,null,"__"]
[null,null,null,null,null,null,null,null,"__"]
[null,null,null,null,null,null,null,null,"__"]
[null,null,null,null,null,null,null,null,"__"]
[null,null,null,null,null,null,null,null,"__"]
[null,null,null,null,null,null,null,null,"__"]
[null,null,null,null,null,null,null,null,"__"]
[null,null,null,null,null,null,null,null,"__"]
[null,null,null,null,null,null,null,null,"__"]
[null,null,null,null,null,null,null,null,"__"]
[null,null,null,null,null,null,null,null,"__"]
[null,null,null,null,null,null,null,null,"__"]
[null,null,null,null,null,null,null,null,"__"]
[null,null,null,null,null,null,null,null,"__"]
[null,null,null,null,null,null,null,null,"__"]
[null,null,null,null,null,null,null,null,"__"]
[null,null,null,null,null,null,null,null,"__"]
[null,null,null,null,null,null,null,null,"__"]
[null,null,null,null,null,null,null,null,"__"]
[null,null,null,null,null,null,null,null,"__"]
[null,null,null,null,null,null,null,null,"__"]
[null,null,null,null,null,null,null,null,"__"]
[null,null,null,null,null,null,null,null,"__"]
[null,null,null,null,null,null,null,null,"__"]
[null,null,null,null,null,null,null,null,"__"]
[null,null,null,null,null,null,null,null,"__"]
[null,null,null,null,null,null,null,null,"__"]
[null,null,null,null,null,null,null,null,"__"]
[null,null,null,null,null,null,null,null,"__"]
[null,null,null,null,null,null,null,null,"__"]
[null,null,null,null,null,null,null,null,"__"]
[null,null,null,null,null,null,null,null,"__"]
[null,null,null,null,null,null,null,null,"__"]
[null,null,null,null,null,null,null,null,"__"]
[null,null,null,null,null,null,null,null,"__"]
[null,null,null,null,null,null,null,null,"__"]
[null,null,null,null,null,null,null,null,"__"]
[null,null,null,null,null,null,null,null,"__"]
[null,null,null,null,null,null,null,null,"__"]
[null,null,null,null,null,null,null,null,"__"]
[null,null,null,null,null,null,null,null,"__"]
[null,null,null,null,null,null,null,null,"__"]
[null,null,null,null,null,null,null,null,"__"]
[null,null,null,null,null,null,null,null,"__"]
[null,null,null,null,null,null,null,null,"__"]
[null,null,null,null,null,null,null,null,"__"]
[null,null,null,null,null,null,null,null,"__"]
[null,null,null,null,null,null,null,null,"__"]
[null,null,null,null,null,null,null,null,"__"]
[null,null,null,null,null,null,null,null,"__"]
[null,null,null,null,null,null,null,null,{"$f":"CONCATENATE(A4741,\"_\",B4741,\"_\",C4741)","v":"__"}]
[null,null,null,null,null,null,null,null,"__"]
[null,null,null,null,null,null,null,null,"__"]
[null,null,null,null,null,null,null,null,"__"]
[null,null,null,null,null,null,null,null,"__"]
[null,null,null,null,null,null,null,null,"__"]
[null,null,null,null,null,null,null,null,"__"]
[null,null,null,null,null,null,null,null,"__"]
[null,null,null,null,null,null,null,null,"__"]
[null,null,null,null,null,null,null,null,"__"]
[null,null,null,null,null,null,null,null,"__"]
[null,null,null,null,null,null,null,null,"__"]
[null,null,null,null,null,null,null,null,"__"]
[null,null,null,null,null,null,null,null,"__"]
[null,null,null,null,null,null,null,null,"__"]
[null,null,null,null,null,null,null,null,"__"]
[null,null,null,null,null,null,null,null,"__"]
[null,null,null,null,null,null,null,null,"__"]
[null,null,null,null,null,null,null,null,"__"]
[null,null,null,null,null,null,null,null,"__"]
[null,null,null,null,null,null,null,null,"__"]
[null,null,null,null,null,null,null,null,"__"]
[null,null,null,null,null,null,null,null,"__"]
[null,null,null,null,null,null,null,null,"__"]
[null,null,null,null,null,null,null,null,"__"]
[null,null,null,null,null,null,null,null,"__"]
[null,null,null,null,null,null,null,null,"__"]
[null,null,null,null,null,null,null,null,"__"]
[null,null,null,null,null,null,null,null,"__"]
[null,null,null,null,null,null,null,null,"__"]
[null,null,null,null,null,null,null,null,"__"]
[null,null,null,null,null,null,null,null,"__"]
[null,null,null,null,null,null,null,null,"__"]
[null,null,null,null,null,null,null,null,"__"]
[null,null,null,null,null,null,null,null,"__"]
[null,null,null,null,null,null,null,null,"__"]
[null,null,null,null,null,null,null,null,"__"]
[null,null,null,null,null,null,null,null,"__"]
[null,null,null,null,null,null,null,null,"__"]
[null,null,null,null,null,null,null,null,"__"]
[null,null,null,null,null,null,null,null,"__"]
[null,null,null,null,null,null,null,null,"__"]
[null,null,null,null,null,null,null,null,"__"]
[null,null,null,null,null,null,null,null,"__"]
[null,null,null,null,null,null,null,null,"__"]
[null,null,null,null,null,null,null,null,"__"]
[null,null,null,null,null,null,null,null,"__"]
[null,null,null,null,null,null,null,null,"__"]
[null,null,null,null,null,null,null,null,"__"]
[null,null,null,null,null,null,null,null,"__"]
[null,null,null,null,null,null,null,null,"__"]
[null,null,null,null,null,null,null,null,"__"]
[null,null,null,null,null,null,null,null,"__"]
[null,null,null,null,null,null,null,null,"__"]
[null,null,null,null,null,null,null,null,"__"]
[null,null,null,null,null,null,null,null,"__"]
[null,null,null,null,null,null,null,null,"__"]
[null,null,null,null,null,null,null,null,"__"]
[null,null,null,null,null,null,null,null,"__"]
[null,null,null,null,null,null,null,null,"__"]
[null,null,null,null,null,null,null,null,"__"]
[null,null,null,null,null,null,null,null,"__"]
[null,null,null,null,null,null,null,null,"__"]
[null,null,null,null,null,null,null,null,"__"]
[null,null,null,null,null,null,null,null,{"$f":"CONCATENATE(A4805,\"_\",B4805,\"_\",C4805)","v":"__"}]
[null,null,null,null,null,null,null,null,"__"]
[null,null,null,null,null,null,null,null,"__"]
[null,null,null,null,null,null,null,null,"__"]
[null,null,null,null,null,null,null,null,"__"]
[null,null,null,null,null,null,null,null,"__"]
[null,null,null,null,null,null,null,null,"__"]
[null,null,null,null,null,null,null,null,"__"]
[null,null,null,null,null,null,null,null,"__"]
[null,null,null,null,null,null,null,null,"__"]
[null,null,null,null,null,null,null,null,"__"]
[null,null,null,null,null,null,null,null,"__"]
[null,null,null,null,null,null,null,null,"__"]
[null,null,null,null,null,null,null,null,"__"]
[null,null,null,null,null,null,null,null,"__"]
[null,null,null,null,null,null,null,null,"__"]
[null,null,null,null,null,null,null,null,"__"]
[null,null,null,null,null,null,null,null,"__"]
[null,null,null,null,null,null,null,null,"__"]
[null,null,null,null,null,null,null,null,"__"]
[null,null,null,null,null,null,null,null,"__"]
[null,null,null,null,null,null,null,null,"__"]
[null,null,null,null,null,null,null,null,"__"]
[null,null,null,null,null,null,null,null,"__"]
[null,null,null,null,null,null,null,null,"__"]
[null,null,null,null,null,null,null,null,"__"]
[null,null,null,null,null,null,null,null,"__"]
[null,null,null,null,null,null,null,null,"__"]
[null,null,null,null,null,null,null,null,"__"]
[null,null,null,null,null,null,null,null,"__"]
[null,null,null,null,null,null,null,null,"__"]
[null,null,null,null,null,null,null,null,"__"]
[null,null,null,null,null,null,null,null,"__"]
[null,null,null,null,null,null,null,null,"__"]
[null,null,null,null,null,null,null,null,"__"]
[null,null,null,null,null,null,null,null,"__"]
[null,null,null,null,null,null,null,null,"__"]
[null,null,null,null,null,null,null,null,"__"]
[null,null,null,null,null,null,null,null,"__"]
[null,null,null,null,null,null,null,null,"__"]
[null,null,null,null,null,null,null,null,"__"]
[null,null,null,null,null,null,null,null,"__"]
[null,null,null,null,null,null,null,null,"__"]
[null,null,null,null,null,null,null,null,"__"]
[null,null,null,null,null,null,null,null,"__"]
[null,null,null,null,null,null,null,null,"__"]
[null,null,null,null,null,null,null,null,"__"]
[null,null,null,null,null,null,null,null,"__"]
[null,null,null,null,null,null,null,null,"__"]
[null,null,null,null,null,null,null,null,"__"]
[null,null,null,null,null,null,null,null,"__"]
[null,null,null,null,null,null,null,null,"__"]
[null,null,null,null,null,null,null,null,"__"]
[null,null,null,null,null,null,null,null,"__"]
[null,null,null,null,null,null,null,null,"__"]
[null,null,null,null,null,null,null,null,"__"]
[null,null,null,null,null,null,null,null,"__"]
[null,null,null,null,null,null,null,null,"__"]
[null,null,null,null,null,null,null,null,"__"]
[null,null,null,null,null,null,null,null,"__"]
[null,null,null,null,null,null,null,null,"__"]
[null,null,null,null,null,null,null,null,"__"]
[null,null,null,null,null,null,null,null,"__"]
[null,null,null,null,null,null,null,null,"__"]
[null,null,null,null,null,null,null,null,{"$f":"CONCATENATE(A4869,\"_\",B4869,\"_\",C4869)","v":"__"}]
[null,null,null,null,null,null,null,null,"__"]
[null,null,null,null,null,null,null,null,"__"]
[null,null,null,null,null,null,null,null,"__"]
[null,null,null,null,null,null,null,null,"__"]
[null,null,null,null,null,null,null,null,"__"]
[null,null,null,null,null,null,null,null,"__"]
[null,null,null,null,null,null,null,null,"__"]
[null,null,null,null,null,null,null,null,"__"]
[null,null,null,null,null,null,null,null,"__"]
[null,null,null,null,null,null,null,null,"__"]
[null,null,null,null,null,null,null,null,"__"]
[null,null,null,null,null,null,null,null,"__"]
[null,null,null,null,null,null,null,null,"__"]
[null,null,null,null,null,null,null,null,"__"]
[null,null,null,null,null,null,null,null,"__"]
[null,null,null,null,null,null,null,null,"__"]
[null,null,null,null,null,null,null,null,"__"]
[null,null,null,null,null,null,null,null,"__"]
[null,null,null,null,null,null,null,null,"__"]
[null,null,null,null,null,null,null,null,"__"]
[null,null,null,null,null,null,null,null,"__"]
[null,null,null,null,null,null,null,null,"__"]
[null,null,null,null,null,null,null,null,"__"]
[null,null,null,null,null,null,null,null,"__"]
[null,null,null,null,null,null,null,null,"__"]
[null,null,null,null,null,null,null,null,"__"]
[null,null,null,null,null,null,null,null,"__"]
[null,null,null,null,null,null,null,null,"__"]
[null,null,null,null,null,null,null,null,"__"]
[null,null,null,null,null,null,null,null,"__"]
[null,null,null,null,null,null,null,null,"__"]
[null,null,null,null,null,null,null,null,"__"]
[null,null,null,null,null,null,null,null,"__"]
[null,null,null,null,null,null,null,null,"__"]
[null,null,null,null,null,null,null,null,"__"]
[null,null,null,null,null,null,null,null,"__"]
[null,null,null,null,null,null,null,null,"__"]
[null,null,null,null,null,null,null,null,"__"]
[null,null,null,null,null,null,null,null,"__"]
[null,null,null,null,null,null,null,null,"__"]
[null,null,null,null,null,null,null,null,"__"]
[null,null,null,null,null,null,null,null,"__"]
[null,null,null,null,null,null,null,null,"__"]
[null,null,null,null,null,null,null,null,"__"]
[null,null,null,null,null,null,null,null,"__"]
[null,null,null,null,null,null,null,null,"__"]
[null,null,null,null,null,null,null,null,"__"]
[null,null,null,null,null,null,null,null,"__"]
[null,null,null,null,null,null,null,null,"__"]
[null,null,null,null,null,null,null,null,"__"]
[null,null,null,null,null,null,null,null,"__"]
[null,null,null,null,null,null,null,null,"__"]
[null,null,null,null,null,null,null,null,"__"]
[null,null,null,null,null,null,null,null,"__"]
[null,null,null,null,null,null,null,null,"__"]
[null,null,null,null,null,null,null,null,"__"]
[null,null,null,null,null,null,null,null,"__"]
[null,null,null,null,null,null,null,null,"__"]
[null,null,null,null,null,null,null,null,"__"]
[null,null,null,null,null,null,null,null,"__"]
[null,null,null,null,null,null,null,null,"__"]
[null,null,null,null,null,null,null,null,"__"]
[null,null,null,null,null,null,null,null,"__"]
[null,null,null,null,null,null,null,null,{"$f":"CONCATENATE(A4933,\"_\",B4933,\"_\",C4933)","v":"__"}]
[null,null,null,null,null,null,null,null,"__"]
[null,null,null,null,null,null,null,null,"__"]
[null,null,null,null,null,null,null,null,"__"]
[null,null,null,null,null,null,null,null,"__"]
[null,null,null,null,null,null,null,null,"__"]
[null,null,null,null,null,null,null,null,"__"]
[null,null,null,null,null,null,null,null,"__"]
[null,null,null,null,null,null,null,null,"__"]
[null,null,null,null,null,null,null,null,"__"]
[null,null,null,null,null,null,null,null,"__"]
[null,null,null,null,null,null,null,null,"__"]
[null,null,null,null,null,null,null,null,"__"]
[null,null,null,null,null,null,null,null,"__"]
[null,null,null,null,null,null,null,null,"__"]
[null,null,null,null,null,null,null,null,"__"]
[null,null,null,null,null,null,null,null,"__"]
[null,null,null,null,null,null,null,null,"__"]
[null,null,null,null,null,null,null,null,"__"]
[null,null,null,null,null,null,null,null,"__"]
[null,null,null,null,null,null,null,null,"__"]
[null,null,null,null,null,null,null,null,"__"]
[null,null,null,null,null,null,null,null,"__"]
[null,null,null,null,null,null,null,null,"__"]
[null,null,null,null,null,null,null,null,"__"]
[null,null,null,null,null,null,null,null,"__"]
[null,null,null,null,null,null,null,null,"__"]
[null,null,null,null,null,null,null,null,"__"]
[null,null,null,null,null,null,null,null,"__"]
[null,null,null,null,null,null,null,null,"__"]
[null,null,null,null,null,null,null,null,"__"]
[null,null,null,null,null,null,null,null,"__"]
[null,null,null,null,null,null,null,null,"__"]
[null,null,null,null,null,null,null,null,"__"]
[null,null,null,null,null,null,null,null,"__"]
[null,null,null,null,null,null,null,null,"__"]
[null,null,null,null,null,null,null,null,"__"]
[null,null,null,null,null,null,null,null,"__"]
[null,null,null,null,null,null,null,null,"__"]
[null,null,null,null,null,null,null,null,"__"]
[null,null,null,null,null,null,null,null,"__"]
[null,null,null,null,null,null,null,null,"__"]
[null,null,null,null,null,null,null,null,"__"]
[null,null,null,null,null,null,null,null,"__"]
[null,null,null,null,null,null,null,null,"__"]
[null,null,null,null,null,null,null,null,"__"]
[null,null,null,null,null,null,null,null,"__"]
[null,null,null,null,null,null,null,null,"__"]
[null,null,null,null,null,null,null,null,"__"]
[null,null,null,null,null,null,null,null,"__"]
[null,null,null,null,null,null,null,null,"__"]
[null,null,null,null,null,null,null,null,"__"]
[null,null,null,null,null,null,null,null,"__"]
[null,null,null,null,null,null,null,null,"__"]
[null,null,null,null,null,null,null,null,"__"]
[null,null,null,null,null,null,null,null,"__"]
[null,null,null,null,null,null,null,null,"__"]
[null,null,null,null,null,null,null,null,"__"]
[null,null,null,null,null,null,null,null,"__"]
[null,null,null,null,null,null,null,null,"__"]
[null,null,null,null,null,null,null,null,"__"]
[null,null,null,null,null,null,null,null,"__"]
[null,null,null,null,null,null,null,null,"__"]
[null,null,null,null,null,null,null,null,"__"]
[null,null,null,null,null,null,null,null,{"$f":"CONCATENATE(A4997,\"_\",B4997,\"_\",C4997)","v":"__"}]
[null,null,null,null,null,null,null,null,"__"]
[null,null,null,null,null,null,null,null,"__"]
[null,null,null,null,null,null,null,null,"__"]

{"sheet":"Processed Data","index":19,"n_rows":2954,"n_cols":18,"rows_kept":2954,"cut":false,"hidden":true,"merged":[]}
[]
["mnemonic","lob","lob_desc","geo","IRSDB description (Please ignore if data downloaded from other sources e.g. analyst data from Amazon S3)","key","Section","Sheet","Section Start Row","Row Offset","Row","Column","Destination cell address","status","Value from DB","Value from model","Type","Old mnemonic"]
["SUCMCONAME",null,null,null,{"$f":"_xlfn.XLOOKUP(F3,'Raw Data'!$I$4:$I$5000,'Raw Data'!$D$4:$D$5000,\"*** Mnemonic not found ***\",0)","v":"*** Mnemonic not found ***"},{"$f":"CONCATENATE(A3,\"_\",B3,\"_\",D3)","v":"SUCMCONAME__"},"Summary","Input",{"$f":"ROW(section_summary)","v":8},2,{"$f":"I3+J3","v":10},"F",{"$f":"CONCATENATE(H3,\"!\",L3,K3)","v":"Input!F10"},{"$f":"_xlfn.XLOOKUP(F3,'Raw Data'!$I$4:$I$5000,'Raw Data'!$E$4:$E$5000,100,0)","v":100},{"$f":"IF(N3=0,_xlfn.XLOOKUP(F3,'Raw Data'!$I$4:$I$5000,'Raw Data'!$H$4:$H$5000,\"\",0),\"\")","v":""},{"$f":"IF(INDIRECT(M3) = \"\",\"\",INDIRECT(M3))","v":""},"c"]
["SUCMINFO",null,null,null,{"$f":"_xlfn.XLOOKUP(F4,'Raw Data'!$I$4:$I$5000,'Raw Data'!$D$4:$D$5000,\"*** Mnemonic not found ***\",0)","v":"*** Mnemonic not found ***"},{"$f":"CONCATENATE(A4,\"_\",B4,\"_\",D4)","v":"SUCMINFO__"},null,"Input",null,null,{"$f":"K3+1","v":11},{"$f":"L3","v":"F"},"Input!F11",{"$f":"_xlfn.XLOOKUP(F4,'Raw Data'!$I$4:$I$5000,'Raw Data'!$E$4:$E$5000,100,0)","v":100},{"$f":"IF(N4=0,_xlfn.XLOOKUP(F4,'Raw Data'!$I$4:$I$5000,'Raw Data'!$H$4:$H$5000,\"\",0),\"\")","v":""},{"$f":"IF(INDIRECT(M4) = \"\",\"\",INDIRECT(M4))","v":""},"c"]
["SUCMREVTYPE",null,null,null,{"$f":"_xlfn.XLOOKUP(F5,'Raw Data'!$I$4:$I$5000,'Raw Data'!$D$4:$D$5000,\"*** Mnemonic not found ***\",0)","v":"*** Mnemonic not found ***"},"SUCMREVTYPE__",null,"Input",null,null,{"$f":"K4","v":11},"H","Input!H11",{"$f":"_xlfn.XLOOKUP(F5,'Raw Data'!$I$4:$I$5000,'Raw Data'!$E$4:$E$5000,100,0)","v":100},{"$f":"IF(N5=0,_xlfn.XLOOKUP(F5,'Raw Data'!$I$4:$I$5000,'Raw Data'!$H$4:$H$5000,\"\",0),\"\")","v":""},{"$f":"IF(INDIRECT(M5) = \"\",\"\",INDIRECT(M5))","v":"Actual"},"c","summary_review_type"]
["SUCMREGION",null,null,null,{"$f":"_xlfn.XLOOKUP(F6,'Raw Data'!$I$4:$I$5000,'Raw Data'!$D$4:$D$5000,\"*** Mnemonic not found ***\",0)","v":"*** Mnemonic not found ***"},"SUCMREGION__",null,"Input",null,null,{"$f":"K5","v":11},"J",{"$f":"CONCATENATE(H6,\"!\",L6,K6)","v":"Input!J11"},{"$f":"_xlfn.XLOOKUP(F6,'Raw Data'!$I$4:$I$5000,'Raw Data'!$E$4:$E$5000,100,0)","v":100},{"$f":"IF(N6=0,_xlfn.XLOOKUP(F6,'Raw Data'!$I$4:$I$5000,'Raw Data'!$H$4:$H$5000,\"\",0),\"\")","v":""},{"$f":"IF(INDIRECT(M6) = \"\",\"\",INDIRECT(M6))","v":""},"c","summary_region"]
["SUCMDOMCNTRY",null,null,null,{"$f":"_xlfn.XLOOKUP(F7,'Raw Data'!$I$4:$I$5000,'Raw Data'!$D$4:$D$5000,\"*** Mnemonic not found ***\",0)","v":"*** Mnemonic not found ***"},"SUCMDOMCNTRY__",null,"Input",null,null,{"$f":"K4","v":11},"L","Input!L11",{"$f":"_xlfn.XLOOKUP(F7,'Raw Data'!$I$4:$I$5000,'Raw Data'!$E$4:$E$5000,100,0)","v":100},{"$f":"IF(N7=0,_xlfn.XLOOKUP(F7,'Raw Data'!$I$4:$I$5000,'Raw Data'!$H$4:$H$5000,\"\",0),\"\")","v":""},{"$f":"IF(INDIRECT(M7) = \"\",\"\",INDIRECT(M7))","v":""},"c"]
["SUCMCURRENCY",null,null,null,{"$f":"_xlfn.XLOOKUP(F8,'Raw Data'!$I$4:$I$5000,'Raw Data'!$D$4:$D$5000,\"*** Mnemonic not found ***\",0)","v":"*** Mnemonic not found ***"},"SUCMCURRENCY__",null,"Input",null,null,{"$f":"K7+1","v":12},"F","Input!F12",{"$f":"_xlfn.XLOOKUP(F8,'Raw Data'!$I$4:$I$5000,'Raw Data'!$E$4:$E$5000,100,0)","v":100},{"$f":"IF(N8=0,_xlfn.XLOOKUP(F8,'Raw Data'!$I$4:$I$5000,'Raw Data'!$H$4:$H$5000,\"\",0),\"\")","v":""},{"$f":"IF(INDIRECT(M8) = \"\",\"\",INDIRECT(M8))","v":"USD"},"c"]
["SUCMUSDEXRATE",null,null,null,{"$f":"_xlfn.XLOOKUP(F9,'Raw Data'!$I$4:$I$5000,'Raw Data'!$D$4:$D$5000,\"*** Mnemonic not found ***\",0)","v":"*** Mnemonic not found ***"},"SUCMUSDEXRATE__",null,"Input",null,null,{"$f":"K8","v":12},"H",{"$f":"CONCATENATE(H9,\"!\",L9,K9)","v":"Input!H12"},{"$f":"_xlfn.XLOOKUP(F9,'Raw Data'!$I$4:$I$5000,'Raw Data'!$E$4:$E$5000,100,0)","v":100},{"$f":"IF(N9=0,_xlfn.XLOOKUP(F9,'Raw Data'!$I$4:$I$5000,'Raw Data'!$H$4:$H$5000,\"\",0),\"\")","v":""},{"$f":"IF(INDIRECT(M9) = \"\",\"\",INDIRECT(M9))","v":1},"n"]
["SUCMUNITS",null,null,null,{"$f":"_xlfn.XLOOKUP(F10,'Raw Data'!$I$4:$I$5000,'Raw Data'!$D$4:$D$5000,\"*** Mnemonic not found ***\",0)","v":"*** Mnemonic not found ***"},"SUCMUNITS__",null,"Input",null,null,{"$f":"K8","v":12},"J","Input!J12",{"$f":"_xlfn.XLOOKUP(F10,'Raw Data'!$I$4:$I$5000,'Raw Data'!$E$4:$E$5000,100,0)","v":100},{"$f":"IF(N10=0,_xlfn.XLOOKUP(F10,'Raw Data'!$I$4:$I$5000,'Raw Data'!$H$4:$H$5000,\"\",0),\"\")","v":""},{"$f":"IF(INDIRECT(M10) = \"\",\"\",INDIRECT(M10))","v":"Millions"},"c"]
["SUCMSECTOR",null,null,null,{"$f":"_xlfn.XLOOKUP(F11,'Raw Data'!$I$4:$I$5000,'Raw Data'!$D$4:$D$5000,\"*** Mnemonic not found ***\",0)","v":"*** Mnemonic not found ***"},"SUCMSECTOR__",null,"Input",null,null,{"$f":"K9","v":12},"L",{"$f":"CONCATENATE(H11,\"!\",L11,K11)","v":"Input!L12"},{"$f":"_xlfn.XLOOKUP(F11,'Raw Data'!$I$4:$I$5000,'Raw Data'!$E$4:$E$5000,100,0)","v":100},{"$f":"IF(N11=0,_xlfn.XLOOKUP(F11,'Raw Data'!$I$4:$I$5000,'Raw Data'!$H$4:$H$5000,\"\",0),\"\")","v":""},{"$f":"IF(INDIRECT(M11) = \"\",\"\",INDIRECT(M11))","v":""},"c","summary_sector"]
["SUCMREPORTINGYEAR",null,null,null,{"$f":"_xlfn.XLOOKUP(F12,'Raw Data'!$I$4:$I$5000,'Raw Data'!$D$4:$D$5000,\"*** Mnemonic not found ***\",0)","v":"*** Mnemonic not found ***"},"SUCMREPORTINGYEAR__",null,"Input",null,null,{"$f":"K11+1","v":13},"F",{"$f":"CONCATENATE(H12,\"!\",L12,K12)","v":"Input!F13"},{"$f":"_xlfn.XLOOKUP(F12,'Raw Data'!$I$4:$I$5000,'Raw Data'!$E$4:$E$5000,100,0)","v":100},{"$f":"IF(N12=0,_xlfn.XLOOKUP(F12,'Raw Data'!$I$4:$I$5000,'Raw Data'!$H$4:$H$5000,\"\",0),\"\")","v":""},{"$f":"IF(INDIRECT(M12) = \"\",\"\",INDIRECT(M12))","v":""},"n","summary_reporting_year"]
["SUCMTACPHS",null,null,null,{"$f":"_xlfn.XLOOKUP(F13,'Raw Data'!$I$4:$I$5000,'Raw Data'!$D$4:$D$5000,\"*** Mnemonic not found ***\",0)","v":"*** Mnemonic not found ***"},"SUCMTACPHS__","TAC","Input",{"$f":"ROW(section_tac)","v":15},2,{"$f":"I13+J13","v":17},"F","Input!F17",{"$f":"_xlfn.XLOOKUP(F13,'Raw Data'!$I$4:$I$5000,'Raw Data'!$E$4:$E$5000,100,0)","v":100},{"$f":"IF(N13=0,_xlfn.XLOOKUP(F13,'Raw Data'!$I$4:$I$5000,'Raw Data'!$H$4:$H$5000,\"\",0),\"\")","v":""},{"$f":"IF(INDIRECT(M13) = \"\",\"\",INDIRECT(M13))","v":""},"n"]
["SUCMEQMINCONSSUB",null,null,null,{"$f":"_xlfn.XLOOKUP(F14,'Raw Data'!$I$4:$I$5000,'Raw Data'!$D$4:$D$5000,\"*** Mnemonic not found ***\",0)","v":"*** Mnemonic not found ***"},"SUCMEQMINCONSSUB__",null,"Input",{"$f":"I13","v":15},null,{"$f":"K13+3","v":20},{"$f":"L13","v":"F"},"Input!F20",{"$f":"_xlfn.XLOOKUP(F14,'Raw Data'!$I$4:$I$5000,'Raw Data'!$E$4:$E$5000,100,0)","v":100},{"$f":"IF(N14=0,_xlfn.XLOOKUP(F14,'Raw Data'!$I$4:$I$5000,'Raw Data'!$H$4:$H$5000,\"\",0),\"\")","v":""},{"$f":"IF(INDIRECT(M14) = \"\",\"\",INDIRECT(M14))","v":""},"n"]
["SUCMPROPSHDVDNOTACC",null,null,null,{"$f":"_xlfn.XLOOKUP(F15,'Raw Data'!$I$4:$I$5000,'Raw Data'!$D$4:$D$5000,\"*** Mnemonic not found ***\",0)","v":"*** Mnemonic not found ***"},"SUCMPROPSHDVDNOTACC__",null,"Input",{"$f":"I14","v":15},null,{"$f":"K14+1","v":21},"F","Input!F21",{"$f":"_xlfn.XLOOKUP(F15,'Raw Data'!$I$4:$I$5000,'Raw Data'!$E$4:$E$5000,100,0)","v":100},{"$f":"IF(N15=0,_xlfn.XLOOKUP(F15,'Raw Data'!$I$4:$I$5000,'Raw Data'!$H$4:$H$5000,\"\",0),\"\")","v":""},{"$f":"IF(INDIRECT(M15) = \"\",\"\",INDIRECT(M15))","v":""},"n"]
["SUCMOFFBALPENSDEFAFTER",null,null,null,{"$f":"_xlfn.XLOOKUP(F16,'Raw Data'!$I$4:$I$5000,'Raw Data'!$D$4:$D$5000,\"*** Mnemonic not found ***\",0)","v":"*** Mnemonic not found ***"},"SUCMOFFBALPENSDEFAFTER__",null,"Input",15,null,{"$f":"K15+1","v":22},"F","Input!F22",{"$f":"_xlfn.XLOOKUP(F16,'Raw Data'!$I$4:$I$5000,'Raw Data'!$E$4:$E$5000,100,0)","v":100},{"$f":"IF(N16=0,_xlfn.XLOOKUP(F16,'Raw Data'!$I$4:$I$5000,'Raw Data'!$H$4:$H$5000,\"\",0),\"\")","v":""},{"$f":"IF(INDIRECT(M16) = \"\",\"\",INDIRECT(M16))","v":""},"n"]
["SUCMOFFBALPENSURP",null,null,null,{"$f":"_xlfn.XLOOKUP(F17,'Raw Data'!$I$4:$I$5000,'Raw Data'!$D$4:$D$5000,\"*** Mnemonic not found ***\",0)","v":"*** Mnemonic not found ***"},"SUCMOFFBALPENSURP__",null,"Input",{"$f":"I16","v":15},null,{"$f":"K16+1","v":23},{"$f":"L16","v":"F"},"Input!F23",{"$f":"_xlfn.XLOOKUP(F17,'Raw Data'!$I$4:$I$5000,'Raw Data'!$E$4:$E$5000,100,0)","v":100},{"$f":"IF(N17=0,_xlfn.XLOOKUP(F17,'Raw Data'!$I$4:$I$5000,'Raw Data'!$H$4:$H$5000,\"\",0),\"\")","v":""},{"$f":"IF(INDIRECT(M17) = \"\",\"\",INDIRECT(M17))","v":""},"n"]
["SUCMONBALPENSURP",null,null,null,{"$f":"_xlfn.XLOOKUP(F18,'Raw Data'!$I$4:$I$5000,'Raw Data'!$D$4:$D$5000,\"*** Mnemonic not found ***\",0)","v":"*** Mnemonic not found ***"},"SUCMONBALPENSURP__",null,"Input",{"$f":"I17","v":15},null,{"$f":"K17+1","v":24},{"$f":"L16","v":"F"},"Input!F24",{"$f":"_xlfn.XLOOKUP(F18,'Raw Data'!$I$4:$I$5000,'Raw Data'!$E$4:$E$5000,100,0)","v":100},{"$f":"IF(N18=0,_xlfn.XLOOKUP(F18,'Raw Data'!$I$4:$I$5000,'Raw Data'!$H$4:$H$5000,\"\",0),\"\")","v":""},{"$f":"IF(INDIRECT(M18) = \"\",\"\",INDIRECT(M18))","v":""},"n"]
["SUCMINVOWNTREASSHRS",null,null,null,{"$f":"_xlfn.XLOOKUP(F19,'Raw Data'!$I$4:$I$5000,'Raw Data'!$D$4:$D$5000,\"*** Mnemonic not found ***\",0)","v":"*** Mnemonic not found ***"},"SUCMINVOWNTREASSHRS__",null,"Input",15,null,{"$f":"K18+1","v":25},"F","Input!F25",{"$f":"_xlfn.XLOOKUP(F19,'Raw Data'!$I$4:$I$5000,'Raw Data'!$E$4:$E$5000,100,0)","v":100},{"$f":"IF(N19=0,_xlfn.XLOOKUP(F19,'Raw Data'!$I$4:$I$5000,'Raw Data'!$H$4:$H$5000,\"\",0),\"\")","v":""},{"$f":"IF(INDIRECT(M19) = \"\",\"\",INDIRECT(M19))","v":""},"n"]
["SUCMGOODWILL",null,null,null,{"$f":"_xlfn.XLOOKUP(F20,'Raw Data'!$I$4:$I$5000,'Raw Data'!$D$4:$D$5000,\"*** Mnemonic not found ***\",0)","v":"*** Mnemonic not found ***"},"SUCMGOODWILL__",null,"Input",15,null,{"$f":"K19+3","v":28},"F","Input!F28",{"$f":"_xlfn.XLOOKUP(F20,'Raw Data'!$I$4:$I$5000,'Raw Data'!$E$4:$E$5000,100,0)","v":100},{"$f":"IF(N20=0,_xlfn.XLOOKUP(F20,'Raw Data'!$I$4:$I$5000,'Raw Data'!$H$4:$H$5000,\"\",0),\"\")","v":""},{"$f":"IF(INDIRECT(M20) = \"\",\"\",INDIRECT(M20))","v":""},"n"]
["SUCMOTHINTANGASST",null,null,null,{"$f":"_xlfn.XLOOKUP(F21,'Raw Data'!$I$4:$I$5000,'Raw Data'!$D$4:$D$5000,\"*** Mnemonic not found ***\",0)","v":"*** Mnemonic not found ***"},"SUCMOTHINTANGASST__",null,"Input",15,null,{"$f":"K20+1","v":29},"F","Input!F29",{"$f":"_xlfn.XLOOKUP(F21,'Raw Data'!$I$4:$I$5000,'Raw Data'!$E$4:$E$5000,100,0)","v":100},{"$f":"IF(N21=0,_xlfn.XLOOKUP(F21,'Raw Data'!$I$4:$I$5000,'Raw Data'!$H$4:$H$5000,\"\",0),\"\")","v":""},{"$f":"IF(INDIRECT(M21) = \"\",\"\",INDIRECT(M21))","v":""},"n"]
["SUCMOFFUNREALNOLIFEBNDS",null,null,null,{"$f":"_xlfn.XLOOKUP(F22,'Raw Data'!$I$4:$I$5000,'Raw Data'!$D$4:$D$5000,\"*** Mnemonic not found ***\",0)","v":"*** Mnemonic not found ***"},"SUCMOFFUNREALNOLIFEBNDS__",null,"Input",15,null,{"$f":"K21+3","v":32},"F","Input!F32",{"$f":"_xlfn.XLOOKUP(F22,'Raw Data'!$I$4:$I$5000,'Raw Data'!$E$4:$E$5000,100,0)","v":100},{"$f":"IF(N22=0,_xlfn.XLOOKUP(F22,'Raw Data'!$I$4:$I$5000,'Raw Data'!$H$4:$H$5000,\"\",0),\"\")","v":""},{"$f":"IF(INDIRECT(M22) = \"\",\"\",INDIRECT(M22))","v":""},"n"]
["SUCMUNCONASSJOINTMV",null,null,null,{"$f":"_xlfn.XLOOKUP(F23,'Raw Data'!$I$4:$I$5000,'Raw Data'!$D$4:$D$5000,\"*** Mnemonic not found ***\",0)","v":"*** Mnemonic not found ***"},"SUCMUNCONASSJOINTMV__",null,"Input",15,null,{"$f":"K22+1","v":33},"F","Input!F33",{"$f":"_xlfn.XLOOKUP(F23,'Raw Data'!$I$4:$I$5000,'Raw Data'!$E$4:$E$5000,100,0)","v":100},{"$f":"IF(N23=0,_xlfn.XLOOKUP(F23,'Raw Data'!$I$4:$I$5000,'Raw Data'!$H$4:$H$5000,\"\",0),\"\")","v":""},{"$f":"IF(INDIRECT(M23) = \"\",\"\",INDIRECT(M23))","v":""},"n"]
["SUCMUNCONASSJOINTBV",null,null,null,{"$f":"_xlfn.XLOOKUP(F24,'Raw Data'!$I$4:$I$5000,'Raw Data'!$D$4:$D$5000,\"*** Mnemonic not found ***\",0)","v":"*** Mnemonic not found ***"},"SUCMUNCONASSJOINTBV__",null,"Input",15,null,{"$f":"K23+1","v":34},"F","Input!F34",{"$f":"_xlfn.XLOOKUP(F24,'Raw Data'!$I$4:$I$5000,'Raw Data'!$E$4:$E$5000,100,0)","v":100},{"$f":"IF(N24=0,_xlfn.XLOOKUP(F24,'Raw Data'!$I$4:$I$5000,'Raw Data'!$H$4:$H$5000,\"\",0),\"\")","v":""},{"$f":"IF(INDIRECT(M24) = \"\",\"\",INDIRECT(M24))","v":""},"n"]
["SUCMNOLIFENOTDISC",null,null,null,{"$f":"_xlfn.XLOOKUP(F25,'Raw Data'!$I$4:$I$5000,'Raw Data'!$D$4:$D$5000,\"*** Mnemonic not found ***\",0)","v":"*** Mnemonic not found ***"},"SUCMNOLIFENOTDISC__",null,"Input",15,null,{"$f":"K24+3","v":37},"F","Input!F37",{"$f":"_xlfn.XLOOKUP(F25,'Raw Data'!$I$4:$I$5000,'Raw Data'!$E$4:$E$5000,100,0)","v":100},{"$f":"IF(N25=0,_xlfn.XLOOKUP(F25,'Raw Data'!$I$4:$I$5000,'Raw Data'!$H$4:$H$5000,\"\",0),\"\")","v":""},{"$f":"IF(INDIRECT(M25) = \"\",\"\",INDIRECT(M25))","v":""},"n"]
["SUCMNOLIFEDISC",null,null,null,{"$f":"_xlfn.XLOOKUP(F26,'Raw Data'!$I$4:$I$5000,'Raw Data'!$D$4:$D$5000,\"*** Mnemonic not found ***\",0)","v":"*** Mnemonic not found ***"},"SUCMNOLIFEDISC__",null,"Input",15,null,{"$f":"K25+1","v":38},"F","Input!F38",{"$f":"_xlfn.XLOOKUP(F26,'Raw Data'!$I$4:$I$5000,'Raw Data'!$E$4:$E$5000,100,0)","v":100},{"$f":"IF(N26=0,_xlfn.XLOOKUP(F26,'Raw Data'!$I$4:$I$5000,'Raw Data'!$H$4:$H$5000,\"\",0),\"\")","v":""},{"$f":"IF(INDIRECT(M26) = \"\",\"\",INDIRECT(M26))","v":""},"n"]
["SUCMAPPTAXRATE",null,null,null,{"$f":"_xlfn.XLOOKUP(F27,'Raw Data'!$I$4:$I$5000,'Raw Data'!$D$4:$D$5000,\"*** Mnemonic not found ***\",0)","v":"*** Mnemonic not found ***"},"SUCMAPPTAXRATE__",null,"Input",15,null,{"$f":"K26+1","v":39},"F","Input!F39",{"$f":"_xlfn.XLOOKUP(F27,'Raw Data'!$I$4:$I$5000,'Raw Data'!$E$4:$E$5000,100,0)","v":100},{"$f":"IF(N27=0,_xlfn.XLOOKUP(F27,'Raw Data'!$I$4:$I$5000,'Raw Data'!$H$4:$H$5000,\"\",0),\"\")","v":""},{"$f":"IF(INDIRECT(M27) = \"\",\"\",INDIRECT(M27))","v":""},"n"]
["SUCMONBALLOSSRESDISC",null,null,null,{"$f":"_xlfn.XLOOKUP(F28,'Raw Data'!$I$4:$I$5000,'Raw Data'!$D$4:$D$5000,\"*** Mnemonic not found ***\",0)","v":"*** Mnemonic not found ***"},"SUCMONBALLOSSRESDISC__",null,"Input",15,null,{"$f":"K27+1","v":40},{"$f":"L26","v":"F"},"Input!F40",{"$f":"_xlfn.XLOOKUP(F28,'Raw Data'!$I$4:$I$5000,'Raw Data'!$E$4:$E$5000,100,0)","v":100},{"$f":"IF(N28=0,_xlfn.XLOOKUP(F28,'Raw Data'!$I$4:$I$5000,'Raw Data'!$H$4:$H$5000,\"\",0),\"\")","v":""},{"$f":"IF(INDIRECT(M28) = \"\",\"\",INDIRECT(M28))","v":""},"n"]
["SUCMRELEGVTBONDYIELD",null,null,null,{"$f":"_xlfn.XLOOKUP(F29,'Raw Data'!$I$4:$I$5000,'Raw Data'!$D$4:$D$5000,\"*** Mnemonic not found ***\",0)","v":"*** Mnemonic not found ***"},"SUCMRELEGVTBONDYIELD__",null,"Input",15,null,{"$f":"K28+1","v":41},{"$f":"L28","v":"F"},"Input!F41",{"$f":"_xlfn.XLOOKUP(F29,'Raw Data'!$I$4:$I$5000,'Raw Data'!$E$4:$E$5000,100,0)","v":100},{"$f":"IF(N29=0,_xlfn.XLOOKUP(F29,'Raw Data'!$I$4:$I$5000,'Raw Data'!$H$4:$H$5000,\"\",0),\"\")","v":""},{"$f":"IF(INDIRECT(M29) = \"\",\"\",INDIRECT(M29))","v":""},"n"]
["SUCMMEANTERMUNDISC",null,null,null,{"$f":"_xlfn.XLOOKUP(F30,'Raw Data'!$I$4:$I$5000,'Raw Data'!$D$4:$D$5000,\"*** Mnemonic not found ***\",0)","v":"*** Mnemonic not found ***"},"SUCMMEANTERMUNDISC__",null,"Input",15,null,42,"F","Input!F42",{"$f":"_xlfn.XLOOKUP(F30,'Raw Data'!$I$4:$I$5000,'Raw Data'!$E$4:$E$5000,100,0)","v":100},{"$f":"IF(N30=0,_xlfn.XLOOKUP(F30,'Raw Data'!$I$4:$I$5000,'Raw Data'!$H$4:$H$5000,\"\",0),\"\")","v":""},{"$f":"IF(INDIRECT(M30) = \"\",\"\",INDIRECT(M30))","v":""},"n"]
["SUCMPCLRSURPDEFUNDISC",null,null,null,{"$f":"_xlfn.XLOOKUP(F31,'Raw Data'!$I$4:$I$5000,'Raw Data'!$D$4:$D$5000,\"*** Mnemonic not found ***\",0)","v":"*** Mnemonic not found ***"},"SUCMPCLRSURPDEFUNDISC__",null,"Input",15,null,43,"F","Input!F43",{"$f":"_xlfn.XLOOKUP(F31,'Raw Data'!$I$4:$I$5000,'Raw Data'!$E$4:$E$5000,100,0)","v":100},{"$f":"IF(N31=0,_xlfn.XLOOKUP(F31,'Raw Data'!$I$4:$I$5000,'Raw Data'!$H$4:$H$5000,\"\",0),\"\")","v":""},{"$f":"IF(INDIRECT(M31) = \"\",\"\",INDIRECT(M31))","v":""},"n"]
["SUCMTACOTHEQRESNON",null,null,null,{"$f":"_xlfn.XLOOKUP(F32,'Raw Data'!$I$4:$I$5000,'Raw Data'!$D$4:$D$5000,\"*** Mnemonic not found ***\",0)","v":"*** Mnemonic not found ***"},"SUCMTACOTHEQRESNON__",null,"Input",15,null,44,"F","Input!F44",{"$f":"_xlfn.XLOOKUP(F32,'Raw Data'!$I$4:$I$5000,'Raw Data'!$E$4:$E$5000,100,0)","v":100},{"$f":"IF(N32=0,_xlfn.XLOOKUP(F32,'Raw Data'!$I$4:$I$5000,'Raw Data'!$H$4:$H$5000,\"\",0),\"\")","v":""},{"$f":"IF(INDIRECT(M32) = \"\",\"\",INDIRECT(M32))","v":""},"n"]
["SUCMPCLRSURPDEFDISC",null,null,null,{"$f":"_xlfn.XLOOKUP(F33,'Raw Data'!$I$4:$I$5000,'Raw Data'!$D$4:$D$5000,\"*** Mnemonic not found ***\",0)","v":"*** Mnemonic not found ***"},"SUCMPCLRSURPDEFDISC__",null,"Input",15,null,{"$f":"K32+1","v":45},{"$f":"L32","v":"F"},"Input!F45",{"$f":"_xlfn.XLOOKUP(F33,'Raw Data'!$I$4:$I$5000,'Raw Data'!$E$4:$E$5000,100,0)","v":100},{"$f":"IF(N33=0,_xlfn.XLOOKUP(F33,'Raw Data'!$I$4:$I$5000,'Raw Data'!$H$4:$H$5000,\"\",0),\"\")","v":""},{"$f":"IF(INDIRECT(M33) = \"\",\"\",INDIRECT(M33))","v":""},"n"]
["SUCMOFFBALLIFEVIFNET",null,null,null,{"$f":"_xlfn.XLOOKUP(F34,'Raw Data'!$I$4:$I$5000,'Raw Data'!$D$4:$D$5000,\"*** Mnemonic not found ***\",0)","v":"*** Mnemonic not found ***"},"SUCMOFFBALLIFEVIFNET__",null,"Input",{"$f":"I33","v":15},null,{"$f":"K33+3","v":48},{"$f":"L33","v":"F"},"Input!F48",{"$f":"_xlfn.XLOOKUP(F34,'Raw Data'!$I$4:$I$5000,'Raw Data'!$E$4:$E$5000,100,0)","v":100},{"$f":"IF(N34=0,_xlfn.XLOOKUP(F34,'Raw Data'!$I$4:$I$5000,'Raw Data'!$H$4:$H$5000,\"\",0),\"\")","v":""},{"$f":"IF(INDIRECT(M34) = \"\",\"\",INDIRECT(M34))","v":""},"n"]
["SUCMONBALDACVOBAVIF",null,null,null,{"$f":"_xlfn.XLOOKUP(F35,'Raw Data'!$I$4:$I$5000,'Raw Data'!$D$4:$D$5000,\"*** Mnemonic not found ***\",0)","v":"*** Mnemonic not found ***"},"SUCMONBALDACVOBAVIF__",null,"Input",15,null,{"$f":"K34+1","v":49},"F","Input!F49",{"$f":"_xlfn.XLOOKUP(F35,'Raw Data'!$I$4:$I$5000,'Raw Data'!$E$4:$E$5000,100,0)","v":100},{"$f":"IF(N35=0,_xlfn.XLOOKUP(F35,'Raw Data'!$I$4:$I$5000,'Raw Data'!$H$4:$H$5000,\"\",0),\"\")","v":""},{"$f":"IF(INDIRECT(M35) = \"\",\"\",INDIRECT(M35))","v":""},"n"]
["SUCMTACOTHEQRESLIF",null,null,null,{"$f":"_xlfn.XLOOKUP(F36,'Raw Data'!$I$4:$I$5000,'Raw Data'!$D$4:$D$5000,\"*** Mnemonic not found ***\",0)","v":"*** Mnemonic not found ***"},"SUCMTACOTHEQRESLIF__",null,"Input",{"$f":"I35","v":15},null,{"$f":"K35+1","v":50},{"$f":"L35","v":"F"},"Input!F50",{"$f":"_xlfn.XLOOKUP(F36,'Raw Data'!$I$4:$I$5000,'Raw Data'!$E$4:$E$5000,100,0)","v":100},{"$f":"IF(N36=0,_xlfn.XLOOKUP(F36,'Raw Data'!$I$4:$I$5000,'Raw Data'!$H$4:$H$5000,\"\",0),\"\")","v":""},{"$f":"IF(INDIRECT(M36) = \"\",\"\",INDIRECT(M36))","v":""},"n"]
["SUCMLIFERESMVADJ",null,null,null,{"$f":"_xlfn.XLOOKUP(F37,'Raw Data'!$I$4:$I$5000,'Raw Data'!$D$4:$D$5000,\"*** Mnemonic not found ***\",0)","v":"*** Mnemonic not found ***"},"SUCMLIFERESMVADJ__",null,"Input",{"$f":"I36","v":15},null,{"$f":"K36+1","v":51},{"$f":"L35","v":"F"},"Input!F51",{"$f":"_xlfn.XLOOKUP(F37,'Raw Data'!$I$4:$I$5000,'Raw Data'!$E$4:$E$5000,100,0)","v":100},{"$f":"IF(N37=0,_xlfn.XLOOKUP(F37,'Raw Data'!$I$4:$I$5000,'Raw Data'!$H$4:$H$5000,\"\",0),\"\")","v":""},{"$f":"IF(INDIRECT(M37) = \"\",\"\",INDIRECT(M37))","v":""},"n"]
["SUCMPHCAPAVAIL",null,null,null,{"$f":"_xlfn.XLOOKUP(F38,'Raw Data'!$I$4:$I$5000,'Raw Data'!$D$4:$D$5000,\"*** Mnemonic not found ***\",0)","v":"*** Mnemonic not found ***"},"SUCMPHCAPAVAIL__",null,"Input",15,null,{"$f":"K37+2","v":53},"F","Input!F53",{"$f":"_xlfn.XLOOKUP(F38,'Raw Data'!$I$4:$I$5000,'Raw Data'!$E$4:$E$5000,100,0)","v":100},{"$f":"IF(N38=0,_xlfn.XLOOKUP(F38,'Raw Data'!$I$4:$I$5000,'Raw Data'!$H$4:$H$5000,\"\",0),\"\")","v":""},{"$f":"IF(INDIRECT(M38) = \"\",\"\",INDIRECT(M38))","v":""},"n"]
["SUCMURGINVBKLIFE",null,null,null,{"$f":"_xlfn.XLOOKUP(F39,'Raw Data'!$I$4:$I$5000,'Raw Data'!$D$4:$D$5000,\"*** Mnemonic not found ***\",0)","v":"*** Mnemonic not found ***"},"SUCMURGINVBKLIFE__",null,"Input",15,null,{"$f":"K38+2","v":55},"F",{"$f":"CONCATENATE(H39,\"!\",L39,K39)","v":"Input!F55"},{"$f":"_xlfn.XLOOKUP(F39,'Raw Data'!$I$4:$I$5000,'Raw Data'!$E$4:$E$5000,100,0)","v":100},{"$f":"IF(N39=0,_xlfn.XLOOKUP(F39,'Raw Data'!$I$4:$I$5000,'Raw Data'!$H$4:$H$5000,\"\",0),\"\")","v":""},{"$f":"IF(INDIRECT(M39) = \"\",\"\",INDIRECT(M39))","v":""},"n","tac_urg_on_invest_for_life"]
["SUCMHYBEQHIGH",null,null,null,{"$f":"_xlfn.XLOOKUP(F40,'Raw Data'!$I$4:$I$5000,'Raw Data'!$D$4:$D$5000,\"*** Mnemonic not found ***\",0)","v":"*** Mnemonic not found ***"},"SUCMHYBEQHIGH__",null,"Input",{"$f":"I38","v":15},null,{"$f":"K39+3","v":58},{"$f":"L38","v":"F"},"Input!F58",{"$f":"_xlfn.XLOOKUP(F40,'Raw Data'!$I$4:$I$5000,'Raw Data'!$E$4:$E$5000,100,0)","v":100},{"$f":"IF(N40=0,_xlfn.XLOOKUP(F40,'Raw Data'!$I$4:$I$5000,'Raw Data'!$H$4:$H$5000,\"\",0),\"\")","v":""},{"$f":"IF(INDIRECT(M40) = \"\",\"\",INDIRECT(M40))","v":""},"n"]
["SUCMHYBEQINTERM",null,null,null,{"$f":"_xlfn.XLOOKUP(F41,'Raw Data'!$I$4:$I$5000,'Raw Data'!$D$4:$D$5000,\"*** Mnemonic not found ***\",0)","v":"*** Mnemonic not found ***"},"SUCMHYBEQINTERM__",null,"Input",15,null,{"$f":"K40+1","v":59},"F","Input!F59",{"$f":"_xlfn.XLOOKUP(F41,'Raw Data'!$I$4:$I$5000,'Raw Data'!$E$4:$E$5000,100,0)","v":100},{"$f":"IF(N41=0,_xlfn.XLOOKUP(F41,'Raw Data'!$I$4:$I$5000,'Raw Data'!$H$4:$H$5000,\"\",0),\"\")","v":""},{"$f":"IF(INDIRECT(M41) = \"\",\"\",INDIRECT(M41))","v":""},"n"]
["SUCMHYBEQNONE",null,null,null,{"$f":"_xlfn.XLOOKUP(F42,'Raw Data'!$I$4:$I$5000,'Raw Data'!$D$4:$D$5000,\"*** Mnemonic not found ***\",0)","v":"*** Mnemonic not found ***"},"SUCMHYBEQNONE__",null,"Input",15,null,{"$f":"K41+1","v":60},"F","Input!F60",{"$f":"_xlfn.XLOOKUP(F42,'Raw Data'!$I$4:$I$5000,'Raw Data'!$E$4:$E$5000,100,0)","v":100},{"$f":"IF(N42=0,_xlfn.XLOOKUP(F42,'Raw Data'!$I$4:$I$5000,'Raw Data'!$H$4:$H$5000,\"\",0),\"\")","v":""},{"$f":"IF(INDIRECT(M42) = \"\",\"\",INDIRECT(M42))","v":""},"n"]
["SUCMHYBELIGDFC",null,null,null,{"$f":"_xlfn.XLOOKUP(F43,'Raw Data'!$I$4:$I$5000,'Raw Data'!$D$4:$D$5000,\"*** Mnemonic not found ***\",0)","v":"*** Mnemonic not found ***"},"SUCMHYBELIGDFC__",null,"Input",15,null,{"$f":"K42+1","v":61},"F","Input!F61",{"$f":"_xlfn.XLOOKUP(F43,'Raw Data'!$I$4:$I$5000,'Raw Data'!$E$4:$E$5000,100,0)","v":100},{"$f":"IF(N43=0,_xlfn.XLOOKUP(F43,'Raw Data'!$I$4:$I$5000,'Raw Data'!$H$4:$H$5000,\"\",0),\"\")","v":""},{"$f":"IF(INDIRECT(M43) = \"\",\"\",INDIRECT(M43))","v":""},"n"]
["SUCMDEBTCAPELIG",null,null,null,{"$f":"_xlfn.XLOOKUP(F44,'Raw Data'!$I$4:$I$5000,'Raw Data'!$D$4:$D$5000,\"*** Mnemonic not found ***\",0)","v":"*** Mnemonic not found ***"},"SUCMDEBTCAPELIG__",null,"Input",15,null,{"$f":"K43+2","v":63},"F","Input!F63",{"$f":"_xlfn.XLOOKUP(F44,'Raw Data'!$I$4:$I$5000,'Raw Data'!$E$4:$E$5000,100,0)","v":100},{"$f":"IF(N44=0,_xlfn.XLOOKUP(F44,'Raw Data'!$I$4:$I$5000,'Raw Data'!$H$4:$H$5000,\"\",0),\"\")","v":""},{"$f":"IF(INDIRECT(M44) = \"\",\"\",INDIRECT(M44))","v":"No"},"c"]
["SUCMDEBTELIGDFC",null,null,null,{"$f":"_xlfn.XLOOKUP(F45,'Raw Data'!$I$4:$I$5000,'Raw Data'!$D$4:$D$5000,\"*** Mnemonic not found ***\",0)","v":"*** Mnemonic not found ***"},"SUCMDEBTELIGDFC__",null,"Input",15,null,{"$f":"K44+1","v":64},"F","Input!F64",{"$f":"_xlfn.XLOOKUP(F45,'Raw Data'!$I$4:$I$5000,'Raw Data'!$E$4:$E$5000,100,0)","v":100},{"$f":"IF(N45=0,_xlfn.XLOOKUP(F45,'Raw Data'!$I$4:$I$5000,'Raw Data'!$H$4:$H$5000,\"\",0),\"\")","v":""},{"$f":"IF(INDIRECT(M45) = \"\",\"\",INDIRECT(M45))","v":""},"n"]
["SUCMDEBTELIGDFCIN",null,null,null,{"$f":"_xlfn.XLOOKUP(F46,'Raw Data'!$I$4:$I$5000,'Raw Data'!$D$4:$D$5000,\"*** Mnemonic not found ***\",0)","v":"*** Mnemonic not found ***"},{"$f":"CONCATENATE(A46,\"_\",B46,\"_\",D46)","v":"SUCMDEBTELIGDFCIN__"},null,"Input",15,null,{"$f":"K45+1","v":65},"F",{"$f":"CONCATENATE(H46,\"!\",L46,K46)","v":"Input!F65"},{"$f":"_xlfn.XLOOKUP(F46,'Raw Data'!$I$4:$I$5000,'Raw Data'!$E$4:$E$5000,100,0)","v":100},{"$f":"IF(N46=0,_xlfn.XLOOKUP(F46,'Raw Data'!$I$4:$I$5000,'Raw Data'!$H$4:$H$5000,\"\",0),\"\")","v":""},{"$f":"IF(INDIRECT(M46) = \"\",\"\",INDIRECT(M46))","v":""},"n"]
["SUCMDEBTNOELIGSFC",null,null,null,{"$f":"_xlfn.XLOOKUP(F47,'Raw Data'!$I$4:$I$5000,'Raw Data'!$D$4:$D$5000,\"*** Mnemonic not found ***\",0)","v":"*** Mnemonic not found ***"},"SUCMDEBTNOELIGSFC__",null,"Input",{"$f":"I45","v":15},null,{"$f":"K46+1","v":66},"F","Input!F66",{"$f":"_xlfn.XLOOKUP(F47,'Raw Data'!$I$4:$I$5000,'Raw Data'!$E$4:$E$5000,100,0)","v":100},{"$f":"IF(N47=0,_xlfn.XLOOKUP(F47,'Raw Data'!$I$4:$I$5000,'Raw Data'!$H$4:$H$5000,\"\",0),\"\")","v":""},{"$f":"IF(INDIRECT(M47) = \"\",\"\",INDIRECT(M47))","v":""},"n"]
["SUCMCASHINVATNOHCAMT",null,null,null,{"$f":"_xlfn.XLOOKUP(F48,'Raw Data'!$I$4:$I$5000,'Raw Data'!$D$4:$D$5000,\"*** Mnemonic not found ***\",0)","v":"*** Mnemonic not found ***"},"SUCMCASHINVATNOHCAMT__",null,"Input",15,null,67,"F",{"$f":"CONCATENATE(H48,\"!\",L48,K48)","v":"Input!F67"},{"$f":"_xlfn.XLOOKUP(F48,'Raw Data'!$I$4:$I$5000,'Raw Data'!$E$4:$E$5000,100,0)","v":100},{"$f":"IF(N48=0,_xlfn.XLOOKUP(F48,'Raw Data'!$I$4:$I$5000,'Raw Data'!$H$4:$H$5000,\"\",0),\"\")","v":""},{"$f":"IF(INDIRECT(M48) = \"\",\"\",INDIRECT(M48))","v":""},"n","tac_cash_and_asset_nohc_amt"]
["SUCMCASHINVATNOHCHC",null,null,null,{"$f":"_xlfn.XLOOKUP(F49,'Raw Data'!$I$4:$I$5000,'Raw Data'!$D$4:$D$5000,\"*** Mnemonic not found ***\",0)","v":"*** Mnemonic not found ***"},"SUCMCASHINVATNOHCHC__",null,"Input",15,null,{"$f":"K48+1","v":68},"F",{"$f":"CONCATENATE(H49,\"!\",L49,K49)","v":"Input!F68"},{"$f":"_xlfn.XLOOKUP(F49,'Raw Data'!$I$4:$I$5000,'Raw Data'!$E$4:$E$5000,100,0)","v":100},{"$f":"IF(N49=0,_xlfn.XLOOKUP(F49,'Raw Data'!$I$4:$I$5000,'Raw Data'!$H$4:$H$5000,\"\",0),\"\")","v":""},{"$f":"IF(INDIRECT(M49) = \"\",\"\",INDIRECT(M49))","v":""},"n","tac_cash_and_asset_nohc_haircut"]
["SUCMINVSUBDECONS",null,null,null,{"$f":"_xlfn.XLOOKUP(F50,'Raw Data'!$I$4:$I$5000,'Raw Data'!$D$4:$D$5000,\"*** Mnemonic not found ***\",0)","v":"*** Mnemonic not found ***"},"SUCMINVSUBDECONS__",null,"Input",{"$f":"I47","v":15},null,{"$f":"K49+5","v":73},{"$f":"L47","v":"F"},"Input!F73",{"$f":"_xlfn.XLOOKUP(F50,'Raw Data'!$I$4:$I$5000,'Raw Data'!$E$4:$E$5000,100,0)","v":100},{"$f":"IF(N50=0,_xlfn.XLOOKUP(F50,'Raw Data'!$I$4:$I$5000,'Raw Data'!$H$4:$H$5000,\"\",0),\"\")","v":""},{"$f":"IF(INDIRECT(M50) = \"\",\"\",INDIRECT(M50))","v":""},"n"]
["SUCMUNCONSSUBSNOCONS",null,null,null,{"$f":"_xlfn.XLOOKUP(F51,'Raw Data'!$I$4:$I$5000,'Raw Data'!$D$4:$D$5000,\"*** Mnemonic not found ***\",0)","v":"*** Mnemonic not found ***"},"SUCMUNCONSSUBSNOCONS__",null,"Input",15,null,{"$f":"K50+1","v":74},"F","Input!F74",{"$f":"_xlfn.XLOOKUP(F51,'Raw Data'!$I$4:$I$5000,'Raw Data'!$E$4:$E$5000,100,0)","v":100},{"$f":"IF(N51=0,_xlfn.XLOOKUP(F51,'Raw Data'!$I$4:$I$5000,'Raw Data'!$H$4:$H$5000,\"\",0),\"\")","v":""},{"$f":"IF(INDIRECT(M51) = \"\",\"\",INDIRECT(M51))","v":""},"n"]
["SUCMCGHRAAA_LESS1",null,null,null,{"$f":"_xlfn.XLOOKUP(F52,'Raw Data'!$I$4:$I$5000,'Raw Data'!$D$4:$D$5000,\"*** Mnemonic not found ***\",0)","v":"*** Mnemonic not found ***"},"SUCMCGHRAAA_LESS1__","S&P Rated Bonds","Input",{"$f":"ROW(section_bonds_sp_rated)","v":79},4,{"$f":"I52+J52","v":83},"F","Input!F83",{"$f":"_xlfn.XLOOKUP(F52,'Raw Data'!$I$4:$I$5000,'Raw Data'!$E$4:$E$5000,100,0)","v":100},{"$f":"IF(N52=0,_xlfn.XLOOKUP(F52,'Raw Data'!$I$4:$I$5000,'Raw Data'!$H$4:$H$5000,\"\",0),\"\")","v":""},{"$f":"IF(INDIRECT(M52) = \"\",\"\",INDIRECT(M52))","v":""},"n"]
["SUCMCGHRAAA_1TO5",null,null,null,{"$f":"_xlfn.XLOOKUP(F53,'Raw Data'!$I$4:$I$5000,'Raw Data'!$D$4:$D$5000,\"*** Mnemonic not found ***\",0)","v":"*** Mnemonic not found ***"},"SUCMCGHRAAA_1TO5__",null,"Input",null,null,{"$f":"K52+1","v":84},{"$f":"L52","v":"F"},"Input!F84",{"$f":"_xlfn.XLOOKUP(F53,'Raw Data'!$I$4:$I$5000,'Raw Data'!$E$4:$E$5000,100,0)","v":100},{"$f":"IF(N53=0,_xlfn.XLOOKUP(F53,'Raw Data'!$I$4:$I$5000,'Raw Data'!$H$4:$H$5000,\"\",0),\"\")","v":""},{"$f":"IF(INDIRECT(M53) = \"\",\"\",INDIRECT(M53))","v":""},"n"]
["SUCMCGHRAAA_5TO10",null,null,null,{"$f":"_xlfn.XLOOKUP(F54,'Raw Data'!$I$4:$I$5000,'Raw Data'!$D$4:$D$5000,\"*** Mnemonic not found ***\",0)","v":"*** Mnemonic not found ***"},"SUCMCGHRAAA_5TO10__",null,"Input",null,null,{"$f":"K53+1","v":85},"F","Input!F85",{"$f":"_xlfn.XLOOKUP(F54,'Raw Data'!$I$4:$I$5000,'Raw Data'!$E$4:$E$5000,100,0)","v":100},{"$f":"IF(N54=0,_xlfn.XLOOKUP(F54,'Raw Data'!$I$4:$I$5000,'Raw Data'!$H$4:$H$5000,\"\",0),\"\")","v":""},{"$f":"IF(INDIRECT(M54) = \"\",\"\",INDIRECT(M54))","v":""},"n"]
["SUCMCGHRAAA_10TO20",null,null,null,{"$f":"_xlfn.XLOOKUP(F55,'Raw Data'!$I$4:$I$5000,'Raw Data'!$D$4:$D$5000,\"*** Mnemonic not found ***\",0)","v":"*** Mnemonic not found ***"},"SUCMCGHRAAA_10TO20__",null,"Input",null,null,86,"F","Input!F86",{"$f":"_xlfn.XLOOKUP(F55,'Raw Data'!$I$4:$I$5000,'Raw Data'!$E$4:$E$5000,100,0)","v":100},{"$f":"IF(N55=0,_xlfn.XLOOKUP(F55,'Raw Data'!$I$4:$I$5000,'Raw Data'!$H$4:$H$5000,\"\",0),\"\")","v":""},{"$f":"IF(INDIRECT(M55) = \"\",\"\",INDIRECT(M55))","v":""},"n"]
["SUCMCGHRAAA_GRTR20",null,null,null,{"$f":"_xlfn.XLOOKUP(F56,'Raw Data'!$I$4:$I$5000,'Raw Data'!$D$4:$D$5000,\"*** Mnemonic not found ***\",0)","v":"*** Mnemonic not found ***"},"SUCMCGHRAAA_GRTR20__",null,"Input",null,null,87,"F","Input!F87",{"$f":"_xlfn.XLOOKUP(F56,'Raw Data'!$I$4:$I$5000,'Raw Data'!$E$4:$E$5000,100,0)","v":100},{"$f":"IF(N56=0,_xlfn.XLOOKUP(F56,'Raw Data'!$I$4:$I$5000,'Raw Data'!$H$4:$H$5000,\"\",0),\"\")","v":""},{"$f":"IF(INDIRECT(M56) = \"\",\"\",INDIRECT(M56))","v":""},"n"]
["SUCMCGHRAA_LESS1",null,null,null,{"$f":"_xlfn.XLOOKUP(F57,'Raw Data'!$I$4:$I$5000,'Raw Data'!$D$4:$D$5000,\"*** Mnemonic not found ***\",0)","v":"*** Mnemonic not found ***"},"SUCMCGHRAA_LESS1__",null,"Input",null,null,{"$f":"K52","v":83},"G","Input!G83",{"$f":"_xlfn.XLOOKUP(F57,'Raw Data'!$I$4:$I$5000,'Raw Data'!$E$4:$E$5000,100,0)","v":100},{"$f":"IF(N57=0,_xlfn.XLOOKUP(F57,'Raw Data'!$I$4:$I$5000,'Raw Data'!$H$4:$H$5000,\"\",0),\"\")","v":""},{"$f":"IF(INDIRECT(M57) = \"\",\"\",INDIRECT(M57))","v":""},"n"]
["SUCMCGHRAA_1TO5",null,null,null,{"$f":"_xlfn.XLOOKUP(F58,'Raw Data'!$I$4:$I$5000,'Raw Data'!$D$4:$D$5000,\"*** Mnemonic not found ***\",0)","v":"*** Mnemonic not found ***"},"SUCMCGHRAA_1TO5__",null,"Input",null,null,{"$f":"K57+1","v":84},{"$f":"L57","v":"G"},"Input!G84",{"$f":"_xlfn.XLOOKUP(F58,'Raw Data'!$I$4:$I$5000,'Raw Data'!$E$4:$E$5000,100,0)","v":100},{"$f":"IF(N58=0,_xlfn.XLOOKUP(F58,'Raw Data'!$I$4:$I$5000,'Raw Data'!$H$4:$H$5000,\"\",0),\"\")","v":""},{"$f":"IF(INDIRECT(M58) = \"\",\"\",INDIRECT(M58))","v":""},"n"]
["SUCMCGHRAA_5TO10",null,null,null,{"$f":"_xlfn.XLOOKUP(F59,'Raw Data'!$I$4:$I$5000,'Raw Data'!$D$4:$D$5000,\"*** Mnemonic not found ***\",0)","v":"*** Mnemonic not found ***"},"SUCMCGHRAA_5TO10__",null,"Input",null,null,{"$f":"K58+1","v":85},"G","Input!G85",{"$f":"_xlfn.XLOOKUP(F59,'Raw Data'!$I$4:$I$5000,'Raw Data'!$E$4:$E$5000,100,0)","v":100},{"$f":"IF(N59=0,_xlfn.XLOOKUP(F59,'Raw Data'!$I$4:$I$5000,'Raw Data'!$H$4:$H$5000,\"\",0),\"\")","v":""},{"$f":"IF(INDIRECT(M59) = \"\",\"\",INDIRECT(M59))","v":""},"n"]
["SUCMCGHRAA_10TO20",null,null,null,{"$f":"_xlfn.XLOOKUP(F60,'Raw Data'!$I$4:$I$5000,'Raw Data'!$D$4:$D$5000,\"*** Mnemonic not found ***\",0)","v":"*** Mnemonic not found ***"},"SUCMCGHRAA_10TO20__",null,"Input",null,null,86,"G","Input!G86",{"$f":"_xlfn.XLOOKUP(F60,'Raw Data'!$I$4:$I$5000,'Raw Data'!$E$4:$E$5000,100,0)","v":100},{"$f":"IF(N60=0,_xlfn.XLOOKUP(F60,'Raw Data'!$I$4:$I$5000,'Raw Data'!$H$4:$H$5000,\"\",0),\"\")","v":""},{"$f":"IF(INDIRECT(M60) = \"\",\"\",INDIRECT(M60))","v":""},"n"]
["SUCMCGHRAA_GRTR20",null,null,null,{"$f":"_xlfn.XLOOKUP(F61,'Raw Data'!$I$4:$I$5000,'Raw Data'!$D$4:$D$5000,\"*** Mnemonic not found ***\",0)","v":"*** Mnemonic not found ***"},"SUCMCGHRAA_GRTR20__",null,"Input",null,null,87,"G","Input!G87",{"$f":"_xlfn.XLOOKUP(F61,'Raw Data'!$I$4:$I$5000,'Raw Data'!$E$4:$E$5000,100,0)","v":100},{"$f":"IF(N61=0,_xlfn.XLOOKUP(F61,'Raw Data'!$I$4:$I$5000,'Raw Data'!$H$4:$H$5000,\"\",0),\"\")","v":""},{"$f":"IF(INDIRECT(M61) = \"\",\"\",INDIRECT(M61))","v":""},"n"]
["SUCMCGHRA_LESS1",null,null,null,{"$f":"_xlfn.XLOOKUP(F62,'Raw Data'!$I$4:$I$5000,'Raw Data'!$D$4:$D$5000,\"*** Mnemonic not found ***\",0)","v":"*** Mnemonic not found ***"},"SUCMCGHRA_LESS1__",null,"Input",null,null,{"$f":"K57","v":83},"H","Input!H83",{"$f":"_xlfn.XLOOKUP(F62,'Raw Data'!$I$4:$I$5000,'Raw Data'!$E$4:$E$5000,100,0)","v":100},{"$f":"IF(N62=0,_xlfn.XLOOKUP(F62,'Raw Data'!$I$4:$I$5000,'Raw Data'!$H$4:$H$5000,\"\",0),\"\")","v":""},{"$f":"IF(INDIRECT(M62) = \"\",\"\",INDIRECT(M62))","v":""},"n"]
["SUCMCGHRA_1TO5",null,null,null,{"$f":"_xlfn.XLOOKUP(F63,'Raw Data'!$I$4:$I$5000,'Raw Data'!$D$4:$D$5000,\"*** Mnemonic not found ***\",0)","v":"*** Mnemonic not found ***"},"SUCMCGHRA_1TO5__",null,"Input",null,null,{"$f":"K62+1","v":84},{"$f":"L62","v":"H"},"Input!H84",{"$f":"_xlfn.XLOOKUP(F63,'Raw Data'!$I$4:$I$5000,'Raw Data'!$E$4:$E$5000,100,0)","v":100},{"$f":"IF(N63=0,_xlfn.XLOOKUP(F63,'Raw Data'!$I$4:$I$5000,'Raw Data'!$H$4:$H$5000,\"\",0),\"\")","v":""},{"$f":"IF(INDIRECT(M63) = \"\",\"\",INDIRECT(M63))","v":""},"n"]
["SUCMCGHRA_5TO10",null,null,null,{"$f":"_xlfn.XLOOKUP(F64,'Raw Data'!$I$4:$I$5000,'Raw Data'!$D$4:$D$5000,\"*** Mnemonic not found ***\",0)","v":"*** Mnemonic not found ***"},"SUCMCGHRA_5TO10__",null,"Input",null,null,{"$f":"K63+1","v":85},"H","Input!H85",{"$f":"_xlfn.XLOOKUP(F64,'Raw Data'!$I$4:$I$5000,'Raw Data'!$E$4:$E$5000,100,0)","v":100},{"$f":"IF(N64=0,_xlfn.XLOOKUP(F64,'Raw Data'!$I$4:$I$5000,'Raw Data'!$H$4:$H$5000,\"\",0),\"\")","v":""},{"$f":"IF(INDIRECT(M64) = \"\",\"\",INDIRECT(M64))","v":""},"n"]
["SUCMCGHRA_10TO20",null,null,null,{"$f":"_xlfn.XLOOKUP(F65,'Raw Data'!$I$4:$I$5000,'Raw Data'!$D$4:$D$5000,\"*** Mnemonic not found ***\",0)","v":"*** Mnemonic not found ***"},"SUCMCGHRA_10TO20__",null,"Input",null,null,86,"H","Input!H86",{"$f":"_xlfn.XLOOKUP(F65,'Raw Data'!$I$4:$I$5000,'Raw Data'!$E$4:$E$5000,100,0)","v":100},{"$f":"IF(N65=0,_xlfn.XLOOKUP(F65,'Raw Data'!$I$4:$I$5000,'Raw Data'!$H$4:$H$5000,\"\",0),\"\")","v":""},{"$f":"IF(INDIRECT(M65) = \"\",\"\",INDIRECT(M65))","v":""},"n"]
["SUCMCGHRA_GRTR20",null,null,null,{"$f":"_xlfn.XLOOKUP(F66,'Raw Data'!$I$4:$I$5000,'Raw Data'!$D$4:$D$5000,\"*** Mnemonic not found ***\",0)","v":"*** Mnemonic not found ***"},"SUCMCGHRA_GRTR20__",null,"Input",null,null,87,"H","Input!H87",{"$f":"_xlfn.XLOOKUP(F66,'Raw Data'!$I$4:$I$5000,'Raw Data'!$E$4:$E$5000,100,0)","v":100},{"$f":"IF(N66=0,_xlfn.XLOOKUP(F66,'Raw Data'!$I$4:$I$5000,'Raw Data'!$H$4:$H$5000,\"\",0),\"\")","v":""},{"$f":"IF(INDIRECT(M66) = \"\",\"\",INDIRECT(M66))","v":""},"n"]
["SUCMCGHRBBB_LESS1",null,null,null,{"$f":"_xlfn.XLOOKUP(F67,'Raw Data'!$I$4:$I$5000,'Raw Data'!$D$4:$D$5000,\"*** Mnemonic not found ***\",0)","v":"*** Mnemonic not found ***"},"SUCMCGHRBBB_LESS1__",null,"Input",null,null,{"$f":"K62","v":83},"I","Input!I83",{"$f":"_xlfn.XLOOKUP(F67,'Raw Data'!$I$4:$I$5000,'Raw Data'!$E$4:$E$5000,100,0)","v":100},{"$f":"IF(N67=0,_xlfn.XLOOKUP(F67,'Raw Data'!$I$4:$I$5000,'Raw Data'!$H$4:$H$5000,\"\",0),\"\")","v":""},{"$f":"IF(INDIRECT(M67) = \"\",\"\",INDIRECT(M67))","v":""},"n"]
["SUCMCGHRBBB_1TO5",null,null,null,{"$f":"_xlfn.XLOOKUP(F68,'Raw Data'!$I$4:$I$5000,'Raw Data'!$D$4:$D$5000,\"*** Mnemonic not found ***\",0)","v":"*** Mnemonic not found ***"},"SUCMCGHRBBB_1TO5__",null,"Input",null,null,{"$f":"K67+1","v":84},{"$f":"L67","v":"I"},"Input!I84",{"$f":"_xlfn.XLOOKUP(F68,'Raw Data'!$I$4:$I$5000,'Raw Data'!$E$4:$E$5000,100,0)","v":100},{"$f":"IF(N68=0,_xlfn.XLOOKUP(F68,'Raw Data'!$I$4:$I$5000,'Raw Data'!$H$4:$H$5000,\"\",0),\"\")","v":""},{"$f":"IF(INDIRECT(M68) = \"\",\"\",INDIRECT(M68))","v":""},"n"]
["SUCMCGHRBBB_5TO10",null,null,null,{"$f":"_xlfn.XLOOKUP(F69,'Raw Data'!$I$4:$I$5000,'Raw Data'!$D$4:$D$5000,\"*** Mnemonic not found ***\",0)","v":"*** Mnemonic not found ***"},{"$f":"CONCATENATE(A69,\"_\",B69,\"_\",D69)","v":"SUCMCGHRBBB_5TO10__"},null,"Input",null,null,{"$f":"K68+1","v":85},"I","Input!I85",{"$f":"_xlfn.XLOOKUP(F69,'Raw Data'!$I$4:$I$5000,'Raw Data'!$E$4:$E$5000,100,0)","v":100},{"$f":"IF(N69=0,_xlfn.XLOOKUP(F69,'Raw Data'!$I$4:$I$5000,'Raw Data'!$H$4:$H$5000,\"\",0),\"\")","v":""},{"$f":"IF(INDIRECT(M69) = \"\",\"\",INDIRECT(M69))","v":""},"n"]
["SUCMCGHRBBB_10TO20",null,null,null,{"$f":"_xlfn.XLOOKUP(F70,'Raw Data'!$I$4:$I$5000,'Raw Data'!$D$4:$D$5000,\"*** Mnemonic not found ***\",0)","v":"*** Mnemonic not found ***"},"SUCMCGHRBBB_10TO20__",null,"Input",null,null,86,"I","Input!I86",{"$f":"_xlfn.XLOOKUP(F70,'Raw Data'!$I$4:$I$5000,'Raw Data'!$E$4:$E$5000,100,0)","v":100},{"$f":"IF(N70=0,_xlfn.XLOOKUP(F70,'Raw Data'!$I$4:$I$5000,'Raw Data'!$H$4:$H$5000,\"\",0),\"\")","v":""},{"$f":"IF(INDIRECT(M70) = \"\",\"\",INDIRECT(M70))","v":""},"n"]
["SUCMCGHRBBB_GRTR20",null,null,null,{"$f":"_xlfn.XLOOKUP(F71,'Raw Data'!$I$4:$I$5000,'Raw Data'!$D$4:$D$5000,\"*** Mnemonic not found ***\",0)","v":"*** Mnemonic not found ***"},"SUCMCGHRBBB_GRTR20__",null,"Input",null,null,87,"I","Input!I87",{"$f":"_xlfn.XLOOKUP(F71,'Raw Data'!$I$4:$I$5000,'Raw Data'!$E$4:$E$5000,100,0)","v":100},{"$f":"IF(N71=0,_xlfn.XLOOKUP(F71,'Raw Data'!$I$4:$I$5000,'Raw Data'!$H$4:$H$5000,\"\",0),\"\")","v":""},{"$f":"IF(INDIRECT(M71) = \"\",\"\",INDIRECT(M71))","v":""},"n"]
["SUCMCGHRBB_LESS1",null,null,null,{"$f":"_xlfn.XLOOKUP(F72,'Raw Data'!$I$4:$I$5000,'Raw Data'!$D$4:$D$5000,\"*** Mnemonic not found ***\",0)","v":"*** Mnemonic not found ***"},"SUCMCGHRBB_LESS1__",null,"Input",null,null,{"$f":"K67","v":83},"J","Input!J83",{"$f":"_xlfn.XLOOKUP(F72,'Raw Data'!$I$4:$I$5000,'Raw Data'!$E$4:$E$5000,100,0)","v":100},{"$f":"IF(N72=0,_xlfn.XLOOKUP(F72,'Raw Data'!$I$4:$I$5000,'Raw Data'!$H$4:$H$5000,\"\",0),\"\")","v":""},{"$f":"IF(INDIRECT(M72) = \"\",\"\",INDIRECT(M72))","v":""},"n"]
["SUCMCGHRBB_1TO5",null,null,null,{"$f":"_xlfn.XLOOKUP(F73,'Raw Data'!$I$4:$I$5000,'Raw Data'!$D$4:$D$5000,\"*** Mnemonic not found ***\",0)","v":"*** Mnemonic not found ***"},"SUCMCGHRBB_1TO5__",null,"Input",null,null,{"$f":"K72+1","v":84},{"$f":"L72","v":"J"},"Input!J84",{"$f":"_xlfn.XLOOKUP(F73,'Raw Data'!$I$4:$I$5000,'Raw Data'!$E$4:$E$5000,100,0)","v":100},{"$f":"IF(N73=0,_xlfn.XLOOKUP(F73,'Raw Data'!$I$4:$I$5000,'Raw Data'!$H$4:$H$5000,\"\",0),\"\")","v":""},{"$f":"IF(INDIRECT(M73) = \"\",\"\",INDIRECT(M73))","v":""},"n"]
["SUCMCGHRBB_5TO10",null,null,null,{"$f":"_xlfn.XLOOKUP(F74,'Raw Data'!$I$4:$I$5000,'Raw Data'!$D$4:$D$5000,\"*** Mnemonic not found ***\",0)","v":"*** Mnemonic not found ***"},"SUCMCGHRBB_5TO10__",null,"Input",null,null,{"$f":"K73+1","v":85},"J","Input!J85",{"$f":"_xlfn.XLOOKUP(F74,'Raw Data'!$I$4:$I$5000,'Raw Data'!$E$4:$E$5000,100,0)","v":100},{"$f":"IF(N74=0,_xlfn.XLOOKUP(F74,'Raw Data'!$I$4:$I$5000,'Raw Data'!$H$4:$H$5000,\"\",0),\"\")","v":""},{"$f":"IF(INDIRECT(M74) = \"\",\"\",INDIRECT(M74))","v":""},"n"]
["SUCMCGHRBB_10TO20",null,null,null,{"$f":"_xlfn.XLOOKUP(F75,'Raw Data'!$I$4:$I$5000,'Raw Data'!$D$4:$D$5000,\"*** Mnemonic not found ***\",0)","v":"*** Mnemonic not found ***"},"SUCMCGHRBB_10TO20__",null,"Input",null,null,86,"J","Input!J86",{"$f":"_xlfn.XLOOKUP(F75,'Raw Data'!$I$4:$I$5000,'Raw Data'!$E$4:$E$5000,100,0)","v":100},{"$f":"IF(N75=0,_xlfn.XLOOKUP(F75,'Raw Data'!$I$4:$I$5000,'Raw Data'!$H$4:$H$5000,\"\",0),\"\")","v":""},{"$f":"IF(INDIRECT(M75) = \"\",\"\",INDIRECT(M75))","v":""},"n"]
["SUCMCGHRBB_GRTR20",null,null,null,{"$f":"_xlfn.XLOOKUP(F76,'Raw Data'!$I$4:$I$5000,'Raw Data'!$D$4:$D$5000,\"*** Mnemonic not found ***\",0)","v":"*** Mnemonic not found ***"},"SUCMCGHRBB_GRTR20__",null,"Input",null,null,87,"J","Input!J87",{"$f":"_xlfn.XLOOKUP(F76,'Raw Data'!$I$4:$I$5000,'Raw Data'!$E$4:$E$5000,100,0)","v":100},{"$f":"IF(N76=0,_xlfn.XLOOKUP(F76,'Raw Data'!$I$4:$I$5000,'Raw Data'!$H$4:$H$5000,\"\",0),\"\")","v":""},{"$f":"IF(INDIRECT(M76) = \"\",\"\",INDIRECT(M76))","v":""},"n"]
["SUCMCGHRB_LESS1",null,null,null,{"$f":"_xlfn.XLOOKUP(F77,'Raw Data'!$I$4:$I$5000,'Raw Data'!$D$4:$D$5000,\"*** Mnemonic not found ***\",0)","v":"*** Mnemonic not found ***"},"SUCMCGHRB_LESS1__",null,"Input",null,null,{"$f":"K72","v":83},"K","Input!K83",{"$f":"_xlfn.XLOOKUP(F77,'Raw Data'!$I$4:$I$5000,'Raw Data'!$E$4:$E$5000,100,0)","v":100},{"$f":"IF(N77=0,_xlfn.XLOOKUP(F77,'Raw Data'!$I$4:$I$5000,'Raw Data'!$H$4:$H$5000,\"\",0),\"\")","v":""},{"$f":"IF(INDIRECT(M77) = \"\",\"\",INDIRECT(M77))","v":""},"n"]
["SUCMCGHRB_1TO5",null,null,null,{"$f":"_xlfn.XLOOKUP(F78,'Raw Data'!$I$4:$I$5000,'Raw Data'!$D$4:$D$5000,\"*** Mnemonic not found ***\",0)","v":"*** Mnemonic not found ***"},"SUCMCGHRB_1TO5__",null,"Input",null,null,{"$f":"K77+1","v":84},{"$f":"L77","v":"K"},"Input!K84",{"$f":"_xlfn.XLOOKUP(F78,'Raw Data'!$I$4:$I$5000,'Raw Data'!$E$4:$E$5000,100,0)","v":100},{"$f":"IF(N78=0,_xlfn.XLOOKUP(F78,'Raw Data'!$I$4:$I$5000,'Raw Data'!$H$4:$H$5000,\"\",0),\"\")","v":""},{"$f":"IF(INDIRECT(M78) = \"\",\"\",INDIRECT(M78))","v":""},"n"]
["SUCMCGHRB_5TO10",null,null,null,{"$f":"_xlfn.XLOOKUP(F79,'Raw Data'!$I$4:$I$5000,'Raw Data'!$D$4:$D$5000,\"*** Mnemonic not found ***\",0)","v":"*** Mnemonic not found ***"},"SUCMCGHRB_5TO10__",null,"Input",null,null,{"$f":"K78+1","v":85},"K",{"$f":"CONCATENATE(H79,\"!\",L79,K79)","v":"Input!K85"},{"$f":"_xlfn.XLOOKUP(F79,'Raw Data'!$I$4:$I$5000,'Raw Data'!$E$4:$E$5000,100,0)","v":100},{"$f":"IF(N79=0,_xlfn.XLOOKUP(F79,'Raw Data'!$I$4:$I$5000,'Raw Data'!$H$4:$H$5000,\"\",0),\"\")","v":""},{"$f":"IF(INDIRECT(M79) = \"\",\"\",INDIRECT(M79))","v":""},"n"]
["SUCMCGHRB_10TO20",null,null,null,{"$f":"_xlfn.XLOOKUP(F80,'Raw Data'!$I$4:$I$5000,'Raw Data'!$D$4:$D$5000,\"*** Mnemonic not found ***\",0)","v":"*** Mnemonic not found ***"},"SUCMCGHRB_10TO20__",null,"Input",null,null,86,"K","Input!K86",{"$f":"_xlfn.XLOOKUP(F80,'Raw Data'!$I$4:$I$5000,'Raw Data'!$E$4:$E$5000,100,0)","v":100},{"$f":"IF(N80=0,_xlfn.XLOOKUP(F80,'Raw Data'!$I$4:$I$5000,'Raw Data'!$H$4:$H$5000,\"\",0),\"\")","v":""},{"$f":"IF(INDIRECT(M80) = \"\",\"\",INDIRECT(M80))","v":""},"n"]
["SUCMCGHRB_GRTR20",null,null,null,{"$f":"_xlfn.XLOOKUP(F81,'Raw Data'!$I$4:$I$5000,'Raw Data'!$D$4:$D$5000,\"*** Mnemonic not found ***\",0)","v":"*** Mnemonic not found ***"},"SUCMCGHRB_GRTR20__",null,"Input",null,null,87,"K","Input!K87",{"$f":"_xlfn.XLOOKUP(F81,'Raw Data'!$I$4:$I$5000,'Raw Data'!$E$4:$E$5000,100,0)","v":100},{"$f":"IF(N81=0,_xlfn.XLOOKUP(F81,'Raw Data'!$I$4:$I$5000,'Raw Data'!$H$4:$H$5000,\"\",0),\"\")","v":""},{"$f":"IF(INDIRECT(M81) = \"\",\"\",INDIRECT(M81))","v":""},"n"]
["SUCMCGHRCCC_LESS1",null,null,null,{"$f":"_xlfn.XLOOKUP(F82,'Raw Data'!$I$4:$I$5000,'Raw Data'!$D$4:$D$5000,\"*** Mnemonic not found ***\",0)","v":"*** Mnemonic not found ***"},"SUCMCGHRCCC_LESS1__",null,"Input",null,null,{"$f":"K77","v":83},"L","Input!L83",{"$f":"_xlfn.XLOOKUP(F82,'Raw Data'!$I$4:$I$5000,'Raw Data'!$E$4:$E$5000,100,0)","v":100},{"$f":"IF(N82=0,_xlfn.XLOOKUP(F82,'Raw Data'!$I$4:$I$5000,'Raw Data'!$H$4:$H$5000,\"\",0),\"\")","v":""},{"$f":"IF(INDIRECT(M82) = \"\",\"\",INDIRECT(M82))","v":""},"n"]
["SUCMCGHRCCC_1TO5",null,null,null,{"$f":"_xlfn.XLOOKUP(F83,'Raw Data'!$I$4:$I$5000,'Raw Data'!$D$4:$D$5000,\"*** Mnemonic not found ***\",0)","v":"*** Mnemonic not found ***"},"SUCMCGHRCCC_1TO5__",null,"Input",null,null,{"$f":"K82+1","v":84},{"$f":"L82","v":"L"},"Input!L84",{"$f":"_xlfn.XLOOKUP(F83,'Raw Data'!$I$4:$I$5000,'Raw Data'!$E$4:$E$5000,100,0)","v":100},{"$f":"IF(N83=0,_xlfn.XLOOKUP(F83,'Raw Data'!$I$4:$I$5000,'Raw Data'!$H$4:$H$5000,\"\",0),\"\")","v":""},{"$f":"IF(INDIRECT(M83) = \"\",\"\",INDIRECT(M83))","v":""},"n"]
["SUCMCGHRCCC_5TO10",null,null,null,{"$f":"_xlfn.XLOOKUP(F84,'Raw Data'!$I$4:$I$5000,'Raw Data'!$D$4:$D$5000,\"*** Mnemonic not found ***\",0)","v":"*** Mnemonic not found ***"},"SUCMCGHRCCC_5TO10__",null,"Input",null,null,{"$f":"K83+1","v":85},"L","Input!L85",{"$f":"_xlfn.XLOOKUP(F84,'Raw Data'!$I$4:$I$5000,'Raw Data'!$E$4:$E$5000,100,0)","v":100},{"$f":"IF(N84=0,_xlfn.XLOOKUP(F84,'Raw Data'!$I$4:$I$5000,'Raw Data'!$H$4:$H$5000,\"\",0),\"\")","v":""},{"$f":"IF(INDIRECT(M84) = \"\",\"\",INDIRECT(M84))","v":""},"n"]
["SUCMCGHRCCC_10TO20",null,null,null,{"$f":"_xlfn.XLOOKUP(F85,'Raw Data'!$I$4:$I$5000,'Raw Data'!$D$4:$D$5000,\"*** Mnemonic not found ***\",0)","v":"*** Mnemonic not found ***"},"SUCMCGHRCCC_10TO20__",null,"Input",null,null,86,"L","Input!L86",{"$f":"_xlfn.XLOOKUP(F85,'Raw Data'!$I$4:$I$5000,'Raw Data'!$E$4:$E$5000,100,0)","v":100},{"$f":"IF(N85=0,_xlfn.XLOOKUP(F85,'Raw Data'!$I$4:$I$5000,'Raw Data'!$H$4:$H$5000,\"\",0),\"\")","v":""},{"$f":"IF(INDIRECT(M85) = \"\",\"\",INDIRECT(M85))","v":""},"n"]
["SUCMCGHRCCC_GRTR20",null,null,null,{"$f":"_xlfn.XLOOKUP(F86,'Raw Data'!$I$4:$I$5000,'Raw Data'!$D$4:$D$5000,\"*** Mnemonic not found ***\",0)","v":"*** Mnemonic not found ***"},"SUCMCGHRCCC_GRTR20__",null,"Input",null,null,87,"L","Input!L87",{"$f":"_xlfn.XLOOKUP(F86,'Raw Data'!$I$4:$I$5000,'Raw Data'!$E$4:$E$5000,100,0)","v":100},{"$f":"IF(N86=0,_xlfn.XLOOKUP(F86,'Raw Data'!$I$4:$I$5000,'Raw Data'!$H$4:$H$5000,\"\",0),\"\")","v":""},{"$f":"IF(INDIRECT(M86) = \"\",\"\",INDIRECT(M86))","v":""},"n"]
["SUCMCGHRD_LESS1",null,null,null,{"$f":"_xlfn.XLOOKUP(F87,'Raw Data'!$I$4:$I$5000,'Raw Data'!$D$4:$D$5000,\"*** Mnemonic not found ***\",0)","v":"*** Mnemonic not found ***"},"SUCMCGHRD_LESS1__",null,"Input",null,null,{"$f":"K82","v":83},"M","Input!M83",{"$f":"_xlfn.XLOOKUP(F87,'Raw Data'!$I$4:$I$5000,'Raw Data'!$E$4:$E$5000,100,0)","v":100},{"$f":"IF(N87=0,_xlfn.XLOOKUP(F87,'Raw Data'!$I$4:$I$5000,'Raw Data'!$H$4:$H$5000,\"\",0),\"\")","v":""},{"$f":"IF(INDIRECT(M87) = \"\",\"\",INDIRECT(M87))","v":""},"n"]
["SUCMCGHRD_1TO5",null,null,null,{"$f":"_xlfn.XLOOKUP(F88,'Raw Data'!$I$4:$I$5000,'Raw Data'!$D$4:$D$5000,\"*** Mnemonic not found ***\",0)","v":"*** Mnemonic not found ***"},"SUCMCGHRD_1TO5__",null,"Input",null,null,{"$f":"K87+1","v":84},{"$f":"L87","v":"M"},"Input!M84",{"$f":"_xlfn.XLOOKUP(F88,'Raw Data'!$I$4:$I$5000,'Raw Data'!$E$4:$E$5000,100,0)","v":100},{"$f":"IF(N88=0,_xlfn.XLOOKUP(F88,'Raw Data'!$I$4:$I$5000,'Raw Data'!$H$4:$H$5000,\"\",0),\"\")","v":""},{"$f":"IF(INDIRECT(M88) = \"\",\"\",INDIRECT(M88))","v":""},"n"]
["SUCMCGHRD_5TO10",null,null,null,{"$f":"_xlfn.XLOOKUP(F89,'Raw Data'!$I$4:$I$5000,'Raw Data'!$D$4:$D$5000,\"*** Mnemonic not found ***\",0)","v":"*** Mnemonic not found ***"},"SUCMCGHRD_5TO10__",null,"Input",null,null,{"$f":"K88+1","v":85},"M","Input!M85",{"$f":"_xlfn.XLOOKUP(F89,'Raw Data'!$I$4:$I$5000,'Raw Data'!$E$4:$E$5000,100,0)","v":100},{"$f":"IF(N89=0,_xlfn.XLOOKUP(F89,'Raw Data'!$I$4:$I$5000,'Raw Data'!$H$4:$H$5000,\"\",0),\"\")","v":""},{"$f":"IF(INDIRECT(M89) = \"\",\"\",INDIRECT(M89))","v":""},"n"]
["SUCMCGHRD_10TO20",null,null,null,{"$f":"_xlfn.XLOOKUP(F90,'Raw Data'!$I$4:$I$5000,'Raw Data'!$D$4:$D$5000,\"*** Mnemonic not found ***\",0)","v":"*** Mnemonic not found ***"},"SUCMCGHRD_10TO20__",null,"Input",null,null,86,"M","Input!M86",{"$f":"_xlfn.XLOOKUP(F90,'Raw Data'!$I$4:$I$5000,'Raw Data'!$E$4:$E$5000,100,0)","v":100},{"$f":"IF(N90=0,_xlfn.XLOOKUP(F90,'Raw Data'!$I$4:$I$5000,'Raw Data'!$H$4:$H$5000,\"\",0),\"\")","v":""},{"$f":"IF(INDIRECT(M90) = \"\",\"\",INDIRECT(M90))","v":""},"n"]
["SUCMCGHRD_GRTR20",null,null,null,{"$f":"_xlfn.XLOOKUP(F91,'Raw Data'!$I$4:$I$5000,'Raw Data'!$D$4:$D$5000,\"*** Mnemonic not found ***\",0)","v":"*** Mnemonic not found ***"},"SUCMCGHRD_GRTR20__",null,"Input",null,null,87,"M","Input!M87",{"$f":"_xlfn.XLOOKUP(F91,'Raw Data'!$I$4:$I$5000,'Raw Data'!$E$4:$E$5000,100,0)","v":100},{"$f":"IF(N91=0,_xlfn.XLOOKUP(F91,'Raw Data'!$I$4:$I$5000,'Raw Data'!$H$4:$H$5000,\"\",0),\"\")","v":""},{"$f":"IF(INDIRECT(M91) = \"\",\"\",INDIRECT(M91))","v":""},"n"]
["SUCMCGMRAAA_LESS1",null,null,null,{"$f":"_xlfn.XLOOKUP(F92,'Raw Data'!$I$4:$I$5000,'Raw Data'!$D$4:$D$5000,\"*** Mnemonic not found ***\",0)","v":"*** Mnemonic not found ***"},"SUCMCGMRAAA_LESS1__",null,"Input",{"$f":"ROW(section_bonds_sp_rated)","v":79},{"$f":"J52+8","v":12},{"$f":"I92+J92","v":91},"F","Input!F91",{"$f":"_xlfn.XLOOKUP(F92,'Raw Data'!$I$4:$I$5000,'Raw Data'!$E$4:$E$5000,100,0)","v":100},{"$f":"IF(N92=0,_xlfn.XLOOKUP(F92,'Raw Data'!$I$4:$I$5000,'Raw Data'!$H$4:$H$5000,\"\",0),\"\")","v":""},{"$f":"IF(INDIRECT(M92) = \"\",\"\",INDIRECT(M92))","v":""},"n"]
["SUCMCGMRAAA_1TO5",null,null,null,{"$f":"_xlfn.XLOOKUP(F93,'Raw Data'!$I$4:$I$5000,'Raw Data'!$D$4:$D$5000,\"*** Mnemonic not found ***\",0)","v":"*** Mnemonic not found ***"},"SUCMCGMRAAA_1TO5__",null,"Input",null,null,{"$f":"K92+1","v":92},{"$f":"L92","v":"F"},"Input!F92",{"$f":"_xlfn.XLOOKUP(F93,'Raw Data'!$I$4:$I$5000,'Raw Data'!$E$4:$E$5000,100,0)","v":100},{"$f":"IF(N93=0,_xlfn.XLOOKUP(F93,'Raw Data'!$I$4:$I$5000,'Raw Data'!$H$4:$H$5000,\"\",0),\"\")","v":""},{"$f":"IF(INDIRECT(M93) = \"\",\"\",INDIRECT(M93))","v":""},"n"]
["SUCMCGMRAAA_5TO10",null,null,null,{"$f":"_xlfn.XLOOKUP(F94,'Raw Data'!$I$4:$I$5000,'Raw Data'!$D$4:$D$5000,\"*** Mnemonic not found ***\",0)","v":"*** Mnemonic not found ***"},"SUCMCGMRAAA_5TO10__",null,"Input",null,null,{"$f":"K93+1","v":93},"F","Input!F93",{"$f":"_xlfn.XLOOKUP(F94,'Raw Data'!$I$4:$I$5000,'Raw Data'!$E$4:$E$5000,100,0)","v":100},{"$f":"IF(N94=0,_xlfn.XLOOKUP(F94,'Raw Data'!$I$4:$I$5000,'Raw Data'!$H$4:$H$5000,\"\",0),\"\")","v":""},{"$f":"IF(INDIRECT(M94) = \"\",\"\",INDIRECT(M94))","v":""},"n"]
["SUCMCGMRAAA_10TO20",null,null,null,{"$f":"_xlfn.XLOOKUP(F95,'Raw Data'!$I$4:$I$5000,'Raw Data'!$D$4:$D$5000,\"*** Mnemonic not found ***\",0)","v":"*** Mnemonic not found ***"},"SUCMCGMRAAA_10TO20__",null,"Input",null,null,94,"F","Input!F94",{"$f":"_xlfn.XLOOKUP(F95,'Raw Data'!$I$4:$I$5000,'Raw Data'!$E$4:$E$5000,100,0)","v":100},{"$f":"IF(N95=0,_xlfn.XLOOKUP(F95,'Raw Data'!$I$4:$I$5000,'Raw Data'!$H$4:$H$5000,\"\",0),\"\")","v":""},{"$f":"IF(INDIRECT(M95) = \"\",\"\",INDIRECT(M95))","v":""},"n"]
["SUCMCGMRAAA_GRTR20",null,null,null,{"$f":"_xlfn.XLOOKUP(F96,'Raw Data'!$I$4:$I$5000,'Raw Data'!$D$4:$D$5000,\"*** Mnemonic not found ***\",0)","v":"*** Mnemonic not found ***"},"SUCMCGMRAAA_GRTR20__",null,"Input",null,null,95,"F","Input!F95",{"$f":"_xlfn.XLOOKUP(F96,'Raw Data'!$I$4:$I$5000,'Raw Data'!$E$4:$E$5000,100,0)","v":100},{"$f":"IF(N96=0,_xlfn.XLOOKUP(F96,'Raw Data'!$I$4:$I$5000,'Raw Data'!$H$4:$H$5000,\"\",0),\"\")","v":""},{"$f":"IF(INDIRECT(M96) = \"\",\"\",INDIRECT(M96))","v":""},"n"]
["SUCMCGMRAA_LESS1",null,null,null,{"$f":"_xlfn.XLOOKUP(F97,'Raw Data'!$I$4:$I$5000,'Raw Data'!$D$4:$D$5000,\"*** Mnemonic not found ***\",0)","v":"*** Mnemonic not found ***"},"SUCMCGMRAA_LESS1__",null,"Input",null,null,{"$f":"K92","v":91},"G","Input!G91",{"$f":"_xlfn.XLOOKUP(F97,'Raw Data'!$I$4:$I$5000,'Raw Data'!$E$4:$E$5000,100,0)","v":100},{"$f":"IF(N97=0,_xlfn.XLOOKUP(F97,'Raw Data'!$I$4:$I$5000,'Raw Data'!$H$4:$H$5000,\"\",0),\"\")","v":""},{"$f":"IF(INDIRECT(M97) = \"\",\"\",INDIRECT(M97))","v":""},"n"]
["SUCMCGMRAA_1TO5",null,null,null,{"$f":"_xlfn.XLOOKUP(F98,'Raw Data'!$I$4:$I$5000,'Raw Data'!$D$4:$D$5000,\"*** Mnemonic not found ***\",0)","v":"*** Mnemonic not found ***"},"SUCMCGMRAA_1TO5__",null,"Input",null,null,{"$f":"K97+1","v":92},{"$f":"L97","v":"G"},"Input!G92",{"$f":"_xlfn.XLOOKUP(F98,'Raw Data'!$I$4:$I$5000,'Raw Data'!$E$4:$E$5000,100,0)","v":100},{"$f":"IF(N98=0,_xlfn.XLOOKUP(F98,'Raw Data'!$I$4:$I$5000,'Raw Data'!$H$4:$H$5000,\"\",0),\"\")","v":""},{"$f":"IF(INDIRECT(M98) = \"\",\"\",INDIRECT(M98))","v":""},"n"]
["SUCMCGMRAA_5TO10",null,null,null,{"$f":"_xlfn.XLOOKUP(F99,'Raw Data'!$I$4:$I$5000,'Raw Data'!$D$4:$D$5000,\"*** Mnemonic not found ***\",0)","v":"*** Mnemonic not found ***"},"SUCMCGMRAA_5TO10__",null,"Input",null,null,{"$f":"K98+1","v":93},"G","Input!G93",{"$f":"_xlfn.XLOOKUP(F99,'Raw Data'!$I$4:$I$5000,'Raw Data'!$E$4:$E$5000,100,0)","v":100},{"$f":"IF(N99=0,_xlfn.XLOOKUP(F99,'Raw Data'!$I$4:$I$5000,'Raw Data'!$H$4:$H$5000,\"\",0),\"\")","v":""},{"$f":"IF(INDIRECT(M99) = \"\",\"\",INDIRECT(M99))","v":""},"n"]
["SUCMCGMRAA_10TO20",null,null,null,{"$f":"_xlfn.XLOOKUP(F100,'Raw Data'!$I$4:$I$5000,'Raw Data'!$D$4:$D$5000,\"*** Mnemonic not found ***\",0)","v":"*** Mnemonic not found ***"},"SUCMCGMRAA_10TO20__",null,"Input",null,null,94,"G","Input!G94",{"$f":"_xlfn.XLOOKUP(F100,'Raw Data'!$I$4:$I$5000,'Raw Data'!$E$4:$E$5000,100,0)","v":100},{"$f":"IF(N100=0,_xlfn.XLOOKUP(F100,'Raw Data'!$I$4:$I$5000,'Raw Data'!$H$4:$H$5000,\"\",0),\"\")","v":""},{"$f":"IF(INDIRECT(M100) = \"\",\"\",INDIRECT(M100))","v":""},"n"]
["SUCMCGMRAA_GRTR20",null,null,null,{"$f":"_xlfn.XLOOKUP(F101,'Raw Data'!$I$4:$I$5000,'Raw Data'!$D$4:$D$5000,\"*** Mnemonic not found ***\",0)","v":"*** Mnemonic not found ***"},"SUCMCGMRAA_GRTR20__",null,"Input",null,null,95,"G","Input!G95",{"$f":"_xlfn.XLOOKUP(F101,'Raw Data'!$I$4:$I$5000,'Raw Data'!$E$4:$E$5000,100,0)","v":100},{"$f":"IF(N101=0,_xlfn.XLOOKUP(F101,'Raw Data'!$I$4:$I$5000,'Raw Data'!$H$4:$H$5000,\"\",0),\"\")","v":""},{"$f":"IF(INDIRECT(M101) = \"\",\"\",INDIRECT(M101))","v":""},"n"]
["SUCMCGMRA_LESS1",null,null,null,{"$f":"_xlfn.XLOOKUP(F102,'Raw Data'!$I$4:$I$5000,'Raw Data'!$D$4:$D$5000,\"*** Mnemonic not found ***\",0)","v":"*** Mnemonic not found ***"},"SUCMCGMRA_LESS1__",null,"Input",null,null,{"$f":"K97","v":91},"H","Input!H91",{"$f":"_xlfn.XLOOKUP(F102,'Raw Data'!$I$4:$I$5000,'Raw Data'!$E$4:$E$5000,100,0)","v":100},{"$f":"IF(N102=0,_xlfn.XLOOKUP(F102,'Raw Data'!$I$4:$I$5000,'Raw Data'!$H$4:$H$5000,\"\",0),\"\")","v":""},{"$f":"IF(INDIRECT(M102) = \"\",\"\",INDIRECT(M102))","v":""},"n"]
["SUCMCGMRA_1TO5",null,null,null,{"$f":"_xlfn.XLOOKUP(F103,'Raw Data'!$I$4:$I$5000,'Raw Data'!$D$4:$D$5000,\"*** Mnemonic not found ***\",0)","v":"*** Mnemonic not found ***"},"SUCMCGMRA_1TO5__",null,"Input",null,null,{"$f":"K102+1","v":92},{"$f":"L102","v":"H"},"Input!H92",{"$f":"_xlfn.XLOOKUP(F103,'Raw Data'!$I$4:$I$5000,'Raw Data'!$E$4:$E$5000,100,0)","v":100},{"$f":"IF(N103=0,_xlfn.XLOOKUP(F103,'Raw Data'!$I$4:$I$5000,'Raw Data'!$H$4:$H$5000,\"\",0),\"\")","v":""},{"$f":"IF(INDIRECT(M103) = \"\",\"\",INDIRECT(M103))","v":""},"n"]
["SUCMCGMRA_5TO10",null,null,null,{"$f":"_xlfn.XLOOKUP(F104,'Raw Data'!$I$4:$I$5000,'Raw Data'!$D$4:$D$5000,\"*** Mnemonic not found ***\",0)","v":"*** Mnemonic not found ***"},"SUCMCGMRA_5TO10__",null,"Input",null,null,{"$f":"K103+1","v":93},"H","Input!H93",{"$f":"_xlfn.XLOOKUP(F104,'Raw Data'!$I$4:$I$5000,'Raw Data'!$E$4:$E$5000,100,0)","v":100},{"$f":"IF(N104=0,_xlfn.XLOOKUP(F104,'Raw Data'!$I$4:$I$5000,'Raw Data'!$H$4:$H$5000,\"\",0),\"\")","v":""},{"$f":"IF(INDIRECT(M104) = \"\",\"\",INDIRECT(M104))","v":""},"n"]
["SUCMCGMRA_10TO20",null,null,null,{"$f":"_xlfn.XLOOKUP(F105,'Raw Data'!$I$4:$I$5000,'Raw Data'!$D$4:$D$5000,\"*** Mnemonic not found ***\",0)","v":"*** Mnemonic not found ***"},"SUCMCGMRA_10TO20__",null,"Input",null,null,94,"H","Input!H94",{"$f":"_xlfn.XLOOKUP(F105,'Raw Data'!$I$4:$I$5000,'Raw Data'!$E$4:$E$5000,100,0)","v":100},{"$f":"IF(N105=0,_xlfn.XLOOKUP(F105,'Raw Data'!$I$4:$I$5000,'Raw Data'!$H$4:$H$5000,\"\",0),\"\")","v":""},{"$f":"IF(INDIRECT(M105) = \"\",\"\",INDIRECT(M105))","v":""},"n"]
["SUCMCGMRA_GRTR20",null,null,null,{"$f":"_xlfn.XLOOKUP(F106,'Raw Data'!$I$4:$I$5000,'Raw Data'!$D$4:$D$5000,\"*** Mnemonic not found ***\",0)","v":"*** Mnemonic not found ***"},"SUCMCGMRA_GRTR20__",null,"Input",null,null,95,"H","Input!H95",{"$f":"_xlfn.XLOOKUP(F106,'Raw Data'!$I$4:$I$5000,'Raw Data'!$E$4:$E$5000,100,0)","v":100},{"$f":"IF(N106=0,_xlfn.XLOOKUP(F106,'Raw Data'!$I$4:$I$5000,'Raw Data'!$H$4:$H$5000,\"\",0),\"\")","v":""},{"$f":"IF(INDIRECT(M106) = \"\",\"\",INDIRECT(M106))","v":""},"n"]
["SUCMCGMRBBB_LESS1",null,null,null,{"$f":"_xlfn.XLOOKUP(F107,'Raw Data'!$I$4:$I$5000,'Raw Data'!$D$4:$D$5000,\"*** Mnemonic not found ***\",0)","v":"*** Mnemonic not found ***"},"SUCMCGMRBBB_LESS1__",null,"Input",null,null,{"$f":"K102","v":91},"I","Input!I91",{"$f":"_xlfn.XLOOKUP(F107,'Raw Data'!$I$4:$I$5000,'Raw Data'!$E$4:$E$5000,100,0)","v":100},{"$f":"IF(N107=0,_xlfn.XLOOKUP(F107,'Raw Data'!$I$4:$I$5000,'Raw Data'!$H$4:$H$5000,\"\",0),\"\")","v":""},{"$f":"IF(INDIRECT(M107) = \"\",\"\",INDIRECT(M107))","v":""},"n"]
["SUCMCGMRBBB_1TO5",null,null,null,{"$f":"_xlfn.XLOOKUP(F108,'Raw Data'!$I$4:$I$5000,'Raw Data'!$D$4:$D$5000,\"*** Mnemonic not found ***\",0)","v":"*** Mnemonic not found ***"},"SUCMCGMRBBB_1TO5__",null,"Input",null,null,{"$f":"K107+1","v":92},{"$f":"L107","v":"I"},"Input!I92",{"$f":"_xlfn.XLOOKUP(F108,'Raw Data'!$I$4:$I$5000,'Raw Data'!$E$4:$E$5000,100,0)","v":100},{"$f":"IF(N108=0,_xlfn.XLOOKUP(F108,'Raw Data'!$I$4:$I$5000,'Raw Data'!$H$4:$H$5000,\"\",0),\"\")","v":""},{"$f":"IF(INDIRECT(M108) = \"\",\"\",INDIRECT(M108))","v":""},"n"]
["SUCMCGMRBBB_5TO10",null,null,null,{"$f":"_xlfn.XLOOKUP(F109,'Raw Data'!$I$4:$I$5000,'Raw Data'!$D$4:$D$5000,\"*** Mnemonic not found ***\",0)","v":"*** Mnemonic not found ***"},"SUCMCGMRBBB_5TO10__",null,"Input",null,null,{"$f":"K108+1","v":93},"I","Input!I93",{"$f":"_xlfn.XLOOKUP(F109,'Raw Data'!$I$4:$I$5000,'Raw Data'!$E$4:$E$5000,100,0)","v":100},{"$f":"IF(N109=0,_xlfn.XLOOKUP(F109,'Raw Data'!$I$4:$I$5000,'Raw Data'!$H$4:$H$5000,\"\",0),\"\")","v":""},{"$f":"IF(INDIRECT(M109) = \"\",\"\",INDIRECT(M109))","v":""},"n"]
["SUCMCGMRBBB_10TO20",null,null,null,{"$f":"_xlfn.XLOOKUP(F110,'Raw Data'!$I$4:$I$5000,'Raw Data'!$D$4:$D$5000,\"*** Mnemonic not found ***\",0)","v":"*** Mnemonic not found ***"},"SUCMCGMRBBB_10TO20__",null,"Input",null,null,94,"I","Input!I94",{"$f":"_xlfn.XLOOKUP(F110,'Raw Data'!$I$4:$I$5000,'Raw Data'!$E$4:$E$5000,100,0)","v":100},{"$f":"IF(N110=0,_xlfn.XLOOKUP(F110,'Raw Data'!$I$4:$I$5000,'Raw Data'!$H$4:$H$5000,\"\",0),\"\")","v":""},{"$f":"IF(INDIRECT(M110) = \"\",\"\",INDIRECT(M110))","v":""},"n"]
["SUCMCGMRBBB_GRTR20",null,null,null,{"$f":"_xlfn.XLOOKUP(F111,'Raw Data'!$I$4:$I$5000,'Raw Data'!$D$4:$D$5000,\"*** Mnemonic not found ***\",0)","v":"*** Mnemonic not found ***"},"SUCMCGMRBBB_GRTR20__",null,"Input",null,null,95,"I","Input!I95",{"$f":"_xlfn.XLOOKUP(F111,'Raw Data'!$I$4:$I$5000,'Raw Data'!$E$4:$E$5000,100,0)","v":100},{"$f":"IF(N111=0,_xlfn.XLOOKUP(F111,'Raw Data'!$I$4:$I$5000,'Raw Data'!$H$4:$H$5000,\"\",0),\"\")","v":""},{"$f":"IF(INDIRECT(M111) = \"\",\"\",INDIRECT(M111))","v":""},"n"]
["SUCMCGMRBB_LESS1",null,null,null,{"$f":"_xlfn.XLOOKUP(F112,'Raw Data'!$I$4:$I$5000,'Raw Data'!$D$4:$D$5000,\"*** Mnemonic not found ***\",0)","v":"*** Mnemonic not found ***"},"SUCMCGMRBB_LESS1__",null,"Input",null,null,{"$f":"K107","v":91},"J","Input!J91",{"$f":"_xlfn.XLOOKUP(F112,'Raw Data'!$I$4:$I$5000,'Raw Data'!$E$4:$E$5000,100,0)","v":100},{"$f":"IF(N112=0,_xlfn.XLOOKUP(F112,'Raw Data'!$I$4:$I$5000,'Raw Data'!$H$4:$H$5000,\"\",0),\"\")","v":""},{"$f":"IF(INDIRECT(M112) = \"\",\"\",INDIRECT(M112))","v":""},"n"]
["SUCMCGMRBB_1TO5",null,null,null,{"$f":"_xlfn.XLOOKUP(F113,'Raw Data'!$I$4:$I$5000,'Raw Data'!$D$4:$D$5000,\"*** Mnemonic not found ***\",0)","v":"*** Mnemonic not found ***"},"SUCMCGMRBB_1TO5__",null,"Input",null,null,{"$f":"K112+1","v":92},{"$f":"L112","v":"J"},"Input!J92",{"$f":"_xlfn.XLOOKUP(F113,'Raw Data'!$I$4:$I$5000,'Raw Data'!$E$4:$E$5000,100,0)","v":100},{"$f":"IF(N113=0,_xlfn.XLOOKUP(F113,'Raw Data'!$I$4:$I$5000,'Raw Data'!$H$4:$H$5000,\"\",0),\"\")","v":""},{"$f":"IF(INDIRECT(M113) = \"\",\"\",INDIRECT(M113))","v":""},"n"]
["SUCMCGMRBB_5TO10",null,null,null,{"$f":"_xlfn.XLOOKUP(F114,'Raw Data'!$I$4:$I$5000,'Raw Data'!$D$4:$D$5000,\"*** Mnemonic not found ***\",0)","v":"*** Mnemonic not found ***"},"SUCMCGMRBB_5TO10__",null,"Input",null,null,{"$f":"K113+1","v":93},"J","Input!J93",{"$f":"_xlfn.XLOOKUP(F114,'Raw Data'!$I$4:$I$5000,'Raw Data'!$E$4:$E$5000,100,0)","v":100},{"$f":"IF(N114=0,_xlfn.XLOOKUP(F114,'Raw Data'!$I$4:$I$5000,'Raw Data'!$H$4:$H$5000,\"\",0),\"\")","v":""},{"$f":"IF(INDIRECT(M114) = \"\",\"\",INDIRECT(M114))","v":""},"n"]
["SUCMCGMRBB_10TO20",null,null,null,{"$f":"_xlfn.XLOOKUP(F115,'Raw Data'!$I$4:$I$5000,'Raw Data'!$D$4:$D$5000,\"*** Mnemonic not found ***\",0)","v":"*** Mnemonic not found ***"},"SUCMCGMRBB_10TO20__",null,"Input",null,null,94,"J","Input!J94",{"$f":"_xlfn.XLOOKUP(F115,'Raw Data'!$I$4:$I$5000,'Raw Data'!$E$4:$E$5000,100,0)","v":100},{"$f":"IF(N115=0,_xlfn.XLOOKUP(F115,'Raw Data'!$I$4:$I$5000,'Raw Data'!$H$4:$H$5000,\"\",0),\"\")","v":""},{"$f":"IF(INDIRECT(M115) = \"\",\"\",INDIRECT(M115))","v":""},"n"]
["SUCMCGMRBB_GRTR20",null,null,null,{"$f":"_xlfn.XLOOKUP(F116,'Raw Data'!$I$4:$I$5000,'Raw Data'!$D$4:$D$5000,\"*** Mnemonic not found ***\",0)","v":"*** Mnemonic not found ***"},"SUCMCGMRBB_GRTR20__",null,"Input",null,null,95,"J","Input!J95",{"$f":"_xlfn.XLOOKUP(F116,'Raw Data'!$I$4:$I$5000,'Raw Data'!$E$4:$E$5000,100,0)","v":100},{"$f":"IF(N116=0,_xlfn.XLOOKUP(F116,'Raw Data'!$I$4:$I$5000,'Raw Data'!$H$4:$H$5000,\"\",0),\"\")","v":""},{"$f":"IF(INDIRECT(M116) = \"\",\"\",INDIRECT(M116))","v":""},"n"]
["SUCMCGMRB_LESS1",null,null,null,{"$f":"_xlfn.XLOOKUP(F117,'Raw Data'!$I$4:$I$5000,'Raw Data'!$D$4:$D$5000,\"*** Mnemonic not found ***\",0)","v":"*** Mnemonic not found ***"},"SUCMCGMRB_LESS1__",null,"Input",null,null,{"$f":"K112","v":91},"K","Input!K91",{"$f":"_xlfn.XLOOKUP(F117,'Raw Data'!$I$4:$I$5000,'Raw Data'!$E$4:$E$5000,100,0)","v":100},{"$f":"IF(N117=0,_xlfn.XLOOKUP(F117,'Raw Data'!$I$4:$I$5000,'Raw Data'!$H$4:$H$5000,\"\",0),\"\")","v":""},{"$f":"IF(INDIRECT(M117) = \"\",\"\",INDIRECT(M117))","v":""},"n"]
["SUCMCGMRB_1TO5",null,null,null,{"$f":"_xlfn.XLOOKUP(F118,'Raw Data'!$I$4:$I$5000,'Raw Data'!$D$4:$D$5000,\"*** Mnemonic not found ***\",0)","v":"*** Mnemonic not found ***"},"SUCMCGMRB_1TO5__",null,"Input",null,null,{"$f":"K117+1","v":92},{"$f":"L117","v":"K"},"Input!K92",{"$f":"_xlfn.XLOOKUP(F118,'Raw Data'!$I$4:$I$5000,'Raw Data'!$E$4:$E$5000,100,0)","v":100},{"$f":"IF(N118=0,_xlfn.XLOOKUP(F118,'Raw Data'!$I$4:$I$5000,'Raw Data'!$H$4:$H$5000,\"\",0),\"\")","v":""},{"$f":"IF(INDIRECT(M118) = \"\",\"\",INDIRECT(M118))","v":""},"n"]
["SUCMCGMRB_5TO10",null,null,null,{"$f":"_xlfn.XLOOKUP(F119,'Raw Data'!$I$4:$I$5000,'Raw Data'!$D$4:$D$5000,\"*** Mnemonic not found ***\",0)","v":"*** Mnemonic not found ***"},"SUCMCGMRB_5TO10__",null,"Input",null,null,{"$f":"K118+1","v":93},"K","Input!K93",{"$f":"_xlfn.XLOOKUP(F119,'Raw Data'!$I$4:$I$5000,'Raw Data'!$E$4:$E$5000,100,0)","v":100},{"$f":"IF(N119=0,_xlfn.XLOOKUP(F119,'Raw Data'!$I$4:$I$5000,'Raw Data'!$H$4:$H$5000,\"\",0),\"\")","v":""},{"$f":"IF(INDIRECT(M119) = \"\",\"\",INDIRECT(M119))","v":""},"n"]
["SUCMCGMRB_10TO20",null,null,null,{"$f":"_xlfn.XLOOKUP(F120,'Raw Data'!$I$4:$I$5000,'Raw Data'!$D$4:$D$5000,\"*** Mnemonic not found ***\",0)","v":"*** Mnemonic not found ***"},"SUCMCGMRB_10TO20__",null,"Input",null,null,94,"K","Input!K94",{"$f":"_xlfn.XLOOKUP(F120,'Raw Data'!$I$4:$I$5000,'Raw Data'!$E$4:$E$5000,100,0)","v":100},{"$f":"IF(N120=0,_xlfn.XLOOKUP(F120,'Raw Data'!$I$4:$I$5000,'Raw Data'!$H$4:$H$5000,\"\",0),\"\")","v":""},{"$f":"IF(INDIRECT(M120) = \"\",\"\",INDIRECT(M120))","v":""},"n"]
["SUCMCGMRB_GRTR20",null,null,null,{"$f":"_xlfn.XLOOKUP(F121,'Raw Data'!$I$4:$I$5000,'Raw Data'!$D$4:$D$5000,\"*** Mnemonic not found ***\",0)","v":"*** Mnemonic not found ***"},"SUCMCGMRB_GRTR20__",null,"Input",null,null,95,"K","Input!K95",{"$f":"_xlfn.XLOOKUP(F121,'Raw Data'!$I$4:$I$5000,'Raw Data'!$E$4:$E$5000,100,0)","v":100},{"$f":"IF(N121=0,_xlfn.XLOOKUP(F121,'Raw Data'!$I$4:$I$5000,'Raw Data'!$H$4:$H$5000,\"\",0),\"\")","v":""},{"$f":"IF(INDIRECT(M121) = \"\",\"\",INDIRECT(M121))","v":""},"n"]
["SUCMCGMRCCC_LESS1",null,null,null,{"$f":"_xlfn.XLOOKUP(F122,'Raw Data'!$I$4:$I$5000,'Raw Data'!$D$4:$D$5000,\"*** Mnemonic not found ***\",0)","v":"*** Mnemonic not found ***"},"SUCMCGMRCCC_LESS1__",null,"Input",null,null,{"$f":"K117","v":91},"L","Input!L91",{"$f":"_xlfn.XLOOKUP(F122,'Raw Data'!$I$4:$I$5000,'Raw Data'!$E$4:$E$5000,100,0)","v":100},{"$f":"IF(N122=0,_xlfn.XLOOKUP(F122,'Raw Data'!$I$4:$I$5000,'Raw Data'!$H$4:$H$5000,\"\",0),\"\")","v":""},{"$f":"IF(INDIRECT(M122) = \"\",\"\",INDIRECT(M122))","v":""},"n"]
["SUCMCGMRCCC_1TO5",null,null,null,{"$f":"_xlfn.XLOOKUP(F123,'Raw Data'!$I$4:$I$5000,'Raw Data'!$D$4:$D$5000,\"*** Mnemonic not found ***\",0)","v":"*** Mnemonic not found ***"},"SUCMCGMRCCC_1TO5__",null,"Input",null,null,{"$f":"K122+1","v":92},{"$f":"L122","v":"L"},"Input!L92",{"$f":"_xlfn.XLOOKUP(F123,'Raw Data'!$I$4:$I$5000,'Raw Data'!$E$4:$E$5000,100,0)","v":100},{"$f":"IF(N123=0,_xlfn.XLOOKUP(F123,'Raw Data'!$I$4:$I$5000,'Raw Data'!$H$4:$H$5000,\"\",0),\"\")","v":""},{"$f":"IF(INDIRECT(M123) = \"\",\"\",INDIRECT(M123))","v":""},"n"]
["SUCMCGMRCCC_5TO10",null,null,null,{"$f":"_xlfn.XLOOKUP(F124,'Raw Data'!$I$4:$I$5000,'Raw Data'!$D$4:$D$5000,\"*** Mnemonic not found ***\",0)","v":"*** Mnemonic not found ***"},"SUCMCGMRCCC_5TO10__",null,"Input",null,null,{"$f":"K123+1","v":93},"L","Input!L93",{"$f":"_xlfn.XLOOKUP(F124,'Raw Data'!$I$4:$I$5000,'Raw Data'!$E$4:$E$5000,100,0)","v":100},{"$f":"IF(N124=0,_xlfn.XLOOKUP(F124,'Raw Data'!$I$4:$I$5000,'Raw Data'!$H$4:$H$5000,\"\",0),\"\")","v":""},{"$f":"IF(INDIRECT(M124) = \"\",\"\",INDIRECT(M124))","v":""},"n"]
["SUCMCGMRCCC_10TO20",null,null,null,{"$f":"_xlfn.XLOOKUP(F125,'Raw Data'!$I$4:$I$5000,'Raw Data'!$D$4:$D$5000,\"*** Mnemonic not found ***\",0)","v":"*** Mnemonic not found ***"},"SUCMCGMRCCC_10TO20__",null,"Input",null,null,94,"L","Input!L94",{"$f":"_xlfn.XLOOKUP(F125,'Raw Data'!$I$4:$I$5000,'Raw Data'!$E$4:$E$5000,100,0)","v":100},{"$f":"IF(N125=0,_xlfn.XLOOKUP(F125,'Raw Data'!$I$4:$I$5000,'Raw Data'!$H$4:$H$5000,\"\",0),\"\")","v":""},{"$f":"IF(INDIRECT(M125) = \"\",\"\",INDIRECT(M125))","v":""},"n"]
["SUCMCGMRCCC_GRTR20",null,null,null,{"$f":"_xlfn.XLOOKUP(F126,'Raw Data'!$I$4:$I$5000,'Raw Data'!$D$4:$D$5000,\"*** Mnemonic not found ***\",0)","v":"*** Mnemonic not found ***"},"SUCMCGMRCCC_GRTR20__",null,"Input",null,null,95,"L","Input!L95",{"$f":"_xlfn.XLOOKUP(F126,'Raw Data'!$I$4:$I$5000,'Raw Data'!$E$4:$E$5000,100,0)","v":100},{"$f":"IF(N126=0,_xlfn.XLOOKUP(F126,'Raw Data'!$I$4:$I$5000,'Raw Data'!$H$4:$H$5000,\"\",0),\"\")","v":""},{"$f":"IF(INDIRECT(M126) = \"\",\"\",INDIRECT(M126))","v":""},"n"]
["SUCMCGMRD_LESS1",null,null,null,{"$f":"_xlfn.XLOOKUP(F127,'Raw Data'!$I$4:$I$5000,'Raw Data'!$D$4:$D$5000,\"*** Mnemonic not found ***\",0)","v":"*** Mnemonic not found ***"},"SUCMCGMRD_LESS1__",null,"Input",null,null,{"$f":"K122","v":91},"M","Input!M91",{"$f":"_xlfn.XLOOKUP(F127,'Raw Data'!$I$4:$I$5000,'Raw Data'!$E$4:$E$5000,100,0)","v":100},{"$f":"IF(N127=0,_xlfn.XLOOKUP(F127,'Raw Data'!$I$4:$I$5000,'Raw Data'!$H$4:$H$5000,\"\",0),\"\")","v":""},{"$f":"IF(INDIRECT(M127) = \"\",\"\",INDIRECT(M127))","v":""},"n"]
["SUCMCGMRD_1TO5",null,null,null,{"$f":"_xlfn.XLOOKUP(F128,'Raw Data'!$I$4:$I$5000,'Raw Data'!$D$4:$D$5000,\"*** Mnemonic not found ***\",0)","v":"*** Mnemonic not found ***"},"SUCMCGMRD_1TO5__",null,"Input",null,null,{"$f":"K127+1","v":92},{"$f":"L127","v":"M"},"Input!M92",{"$f":"_xlfn.XLOOKUP(F128,'Raw Data'!$I$4:$I$5000,'Raw Data'!$E$4:$E$5000,100,0)","v":100},{"$f":"IF(N128=0,_xlfn.XLOOKUP(F128,'Raw Data'!$I$4:$I$5000,'Raw Data'!$H$4:$H$5000,\"\",0),\"\")","v":""},{"$f":"IF(INDIRECT(M128) = \"\",\"\",INDIRECT(M128))","v":""},"n"]
["SUCMCGMRD_5TO10",null,null,null,{"$f":"_xlfn.XLOOKUP(F129,'Raw Data'!$I$4:$I$5000,'Raw Data'!$D$4:$D$5000,\"*** Mnemonic not found ***\",0)","v":"*** Mnemonic not found ***"},"SUCMCGMRD_5TO10__",null,"Input",null,null,{"$f":"K128+1","v":93},"M","Input!M93",{"$f":"_xlfn.XLOOKUP(F129,'Raw Data'!$I$4:$I$5000,'Raw Data'!$E$4:$E$5000,100,0)","v":100},{"$f":"IF(N129=0,_xlfn.XLOOKUP(F129,'Raw Data'!$I$4:$I$5000,'Raw Data'!$H$4:$H$5000,\"\",0),\"\")","v":""},{"$f":"IF(INDIRECT(M129) = \"\",\"\",INDIRECT(M129))","v":""},"n"]
["SUCMCGMRD_10TO20",null,null,null,{"$f":"_xlfn.XLOOKUP(F130,'Raw Data'!$I$4:$I$5000,'Raw Data'!$D$4:$D$5000,\"*** Mnemonic not found ***\",0)","v":"*** Mnemonic not found ***"},"SUCMCGMRD_10TO20__",null,"Input",null,null,94,"M","Input!M94",{"$f":"_xlfn.XLOOKUP(F130,'Raw Data'!$I$4:$I$5000,'Raw Data'!$E$4:$E$5000,100,0)","v":100},{"$f":"IF(N130=0,_xlfn.XLOOKUP(F130,'Raw Data'!$I$4:$I$5000,'Raw Data'!$H$4:$H$5000,\"\",0),\"\")","v":""},{"$f":"IF(INDIRECT(M130) = \"\",\"\",INDIRECT(M130))","v":""},"n"]
["SUCMCGMRD_GRTR20",null,null,null,{"$f":"_xlfn.XLOOKUP(F131,'Raw Data'!$I$4:$I$5000,'Raw Data'!$D$4:$D$5000,\"*** Mnemonic not found ***\",0)","v":"*** Mnemonic not found ***"},"SUCMCGMRD_GRTR20__",null,"Input",null,null,95,"M","Input!M95",{"$f":"_xlfn.XLOOKUP(F131,'Raw Data'!$I$4:$I$5000,'Raw Data'!$E$4:$E$5000,100,0)","v":100},{"$f":"IF(N131=0,_xlfn.XLOOKUP(F131,'Raw Data'!$I$4:$I$5000,'Raw Data'!$H$4:$H$5000,\"\",0),\"\")","v":""},{"$f":"IF(INDIRECT(M131) = \"\",\"\",INDIRECT(M131))","v":""},"n"]
["SUCMCGLRAAA_LESS1",null,null,null,{"$f":"_xlfn.XLOOKUP(F132,'Raw Data'!$I$4:$I$5000,'Raw Data'!$D$4:$D$5000,\"*** Mnemonic not found ***\",0)","v":"*** Mnemonic not found ***"},"SUCMCGLRAAA_LESS1__",null,"Input",{"$f":"ROW(section_bonds_sp_rated)","v":79},{"$f":"J92+8","v":20},{"$f":"I132+J132","v":99},"F","Input!F99",{"$f":"_xlfn.XLOOKUP(F132,'Raw Data'!$I$4:$I$5000,'Raw Data'!$E$4:$E$5000,100,0)","v":100},{"$f":"IF(N132=0,_xlfn.XLOOKUP(F132,'Raw Data'!$I$4:$I$5000,'Raw Data'!$H$4:$H$5000,\"\",0),\"\")","v":""},{"$f":"IF(INDIRECT(M132) = \"\",\"\",INDIRECT(M132))","v":""},"n"]
["SUCMCGLRAAA_1TO5",null,null,null,{"$f":"_xlfn.XLOOKUP(F133,'Raw Data'!$I$4:$I$5000,'Raw Data'!$D$4:$D$5000,\"*** Mnemonic not found ***\",0)","v":"*** Mnemonic not found ***"},{"$f":"CONCATENATE(A133,\"_\",B133,\"_\",D133)","v":"SUCMCGLRAAA_1TO5__"},null,"Input",null,null,{"$f":"K132+1","v":100},{"$f":"L132","v":"F"},"Input!F100",{"$f":"_xlfn.XLOOKUP(F133,'Raw Data'!$I$4:$I$5000,'Raw Data'!$E$4:$E$5000,100,0)","v":100},{"$f":"IF(N133=0,_xlfn.XLOOKUP(F133,'Raw Data'!$I$4:$I$5000,'Raw Data'!$H$4:$H$5000,\"\",0),\"\")","v":""},{"$f":"IF(INDIRECT(M133) = \"\",\"\",INDIRECT(M133))","v":""},"n"]
["SUCMCGLRAAA_5TO10",null,null,null,{"$f":"_xlfn.XLOOKUP(F134,'Raw Data'!$I$4:$I$5000,'Raw Data'!$D$4:$D$5000,\"*** Mnemonic not found ***\",0)","v":"*** Mnemonic not found ***"},"SUCMCGLRAAA_5TO10__",null,"Input",null,null,{"$f":"K133+1","v":101},"F","Input!F101",{"$f":"_xlfn.XLOOKUP(F134,'Raw Data'!$I$4:$I$5000,'Raw Data'!$E$4:$E$5000,100,0)","v":100},{"$f":"IF(N134=0,_xlfn.XLOOKUP(F134,'Raw Data'!$I$4:$I$5000,'Raw Data'!$H$4:$H$5000,\"\",0),\"\")","v":""},{"$f":"IF(INDIRECT(M134) = \"\",\"\",INDIRECT(M134))","v":""},"n"]
["SUCMCGLRAAA_10TO20",null,null,null,{"$f":"_xlfn.XLOOKUP(F135,'Raw Data'!$I$4:$I$5000,'Raw Data'!$D$4:$D$5000,\"*** Mnemonic not found ***\",0)","v":"*** Mnemonic not found ***"},"SUCMCGLRAAA_10TO20__",null,"Input",null,null,102,"F","Input!F102",{"$f":"_xlfn.XLOOKUP(F135,'Raw Data'!$I$4:$I$5000,'Raw Data'!$E$4:$E$5000,100,0)","v":100},{"$f":"IF(N135=0,_xlfn.XLOOKUP(F135,'Raw Data'!$I$4:$I$5000,'Raw Data'!$H$4:$H$5000,\"\",0),\"\")","v":""},{"$f":"IF(INDIRECT(M135) = \"\",\"\",INDIRECT(M135))","v":""},"n"]
["SUCMCGLRAAA_GRTR20",null,null,null,{"$f":"_xlfn.XLOOKUP(F136,'Raw Data'!$I$4:$I$5000,'Raw Data'!$D$4:$D$5000,\"*** Mnemonic not found ***\",0)","v":"*** Mnemonic not found ***"},"SUCMCGLRAAA_GRTR20__",null,"Input",null,null,103,"F","Input!F103",{"$f":"_xlfn.XLOOKUP(F136,'Raw Data'!$I$4:$I$5000,'Raw Data'!$E$4:$E$5000,100,0)","v":100},{"$f":"IF(N136=0,_xlfn.XLOOKUP(F136,'Raw Data'!$I$4:$I$5000,'Raw Data'!$H$4:$H$5000,\"\",0),\"\")","v":""},{"$f":"IF(INDIRECT(M136) = \"\",\"\",INDIRECT(M136))","v":""},"n"]
["SUCMCGLRAA_LESS1",null,null,null,{"$f":"_xlfn.XLOOKUP(F137,'Raw Data'!$I$4:$I$5000,'Raw Data'!$D$4:$D$5000,\"*** Mnemonic not found ***\",0)","v":"*** Mnemonic not found ***"},"SUCMCGLRAA_LESS1__",null,"Input",null,null,{"$f":"K132","v":99},"G","Input!G99",{"$f":"_xlfn.XLOOKUP(F137,'Raw Data'!$I$4:$I$5000,'Raw Data'!$E$4:$E$5000,100,0)","v":100},{"$f":"IF(N137=0,_xlfn.XLOOKUP(F137,'Raw Data'!$I$4:$I$5000,'Raw Data'!$H$4:$H$5000,\"\",0),\"\")","v":""},{"$f":"IF(INDIRECT(M137) = \"\",\"\",INDIRECT(M137))","v":""},"n"]
["SUCMCGLRAA_1TO5",null,null,null,{"$f":"_xlfn.XLOOKUP(F138,'Raw Data'!$I$4:$I$5000,'Raw Data'!$D$4:$D$5000,\"*** Mnemonic not found ***\",0)","v":"*** Mnemonic not found ***"},"SUCMCGLRAA_1TO5__",null,"Input",null,null,{"$f":"K137+1","v":100},{"$f":"L137","v":"G"},"Input!G100",{"$f":"_xlfn.XLOOKUP(F138,'Raw Data'!$I$4:$I$5000,'Raw Data'!$E$4:$E$5000,100,0)","v":100},{"$f":"IF(N138=0,_xlfn.XLOOKUP(F138,'Raw Data'!$I$4:$I$5000,'Raw Data'!$H$4:$H$5000,\"\",0),\"\")","v":""},{"$f":"IF(INDIRECT(M138) = \"\",\"\",INDIRECT(M138))","v":""},"n"]
["SUCMCGLRAA_5TO10",null,null,null,{"$f":"_xlfn.XLOOKUP(F139,'Raw Data'!$I$4:$I$5000,'Raw Data'!$D$4:$D$5000,\"*** Mnemonic not found ***\",0)","v":"*** Mnemonic not found ***"},"SUCMCGLRAA_5TO10__",null,"Input",null,null,{"$f":"K138+1","v":101},"G","Input!G101",{"$f":"_xlfn.XLOOKUP(F139,'Raw Data'!$I$4:$I$5000,'Raw Data'!$E$4:$E$5000,100,0)","v":100},{"$f":"IF(N139=0,_xlfn.XLOOKUP(F139,'Raw Data'!$I$4:$I$5000,'Raw Data'!$H$4:$H$5000,\"\",0),\"\")","v":""},{"$f":"IF(INDIRECT(M139) = \"\",\"\",INDIRECT(M139))","v":""},"n"]
["SUCMCGLRAA_10TO20",null,null,null,{"$f":"_xlfn.XLOOKUP(F140,'Raw Data'!$I$4:$I$5000,'Raw Data'!$D$4:$D$5000,\"*** Mnemonic not found ***\",0)","v":"*** Mnemonic not found ***"},"SUCMCGLRAA_10TO20__",null,"Input",null,null,102,"G","Input!G102",{"$f":"_xlfn.XLOOKUP(F140,'Raw Data'!$I$4:$I$5000,'Raw Data'!$E$4:$E$5000,100,0)","v":100},{"$f":"IF(N140=0,_xlfn.XLOOKUP(F140,'Raw Data'!$I$4:$I$5000,'Raw Data'!$H$4:$H$5000,\"\",0),\"\")","v":""},{"$f":"IF(INDIRECT(M140) = \"\",\"\",INDIRECT(M140))","v":""},"n"]
["SUCMCGLRAA_GRTR20",null,null,null,{"$f":"_xlfn.XLOOKUP(F141,'Raw Data'!$I$4:$I$5000,'Raw Data'!$D$4:$D$5000,\"*** Mnemonic not found ***\",0)","v":"*** Mnemonic not found ***"},"SUCMCGLRAA_GRTR20__",null,"Input",null,null,103,"G","Input!G103",{"$f":"_xlfn.XLOOKUP(F141,'Raw Data'!$I$4:$I$5000,'Raw Data'!$E$4:$E$5000,100,0)","v":100},{"$f":"IF(N141=0,_xlfn.XLOOKUP(F141,'Raw Data'!$I$4:$I$5000,'Raw Data'!$H$4:$H$5000,\"\",0),\"\")","v":""},{"$f":"IF(INDIRECT(M141) = \"\",\"\",INDIRECT(M141))","v":""},"n"]
["SUCMCGLRA_LESS1",null,null,null,{"$f":"_xlfn.XLOOKUP(F142,'Raw Data'!$I$4:$I$5000,'Raw Data'!$D$4:$D$5000,\"*** Mnemonic not found ***\",0)","v":"*** Mnemonic not found ***"},"SUCMCGLRA_LESS1__",null,"Input",null,null,{"$f":"K137","v":99},"H","Input!H99",{"$f":"_xlfn.XLOOKUP(F142,'Raw Data'!$I$4:$I$5000,'Raw Data'!$E$4:$E$5000,100,0)","v":100},{"$f":"IF(N142=0,_xlfn.XLOOKUP(F142,'Raw Data'!$I$4:$I$5000,'Raw Data'!$H$4:$H$5000,\"\",0),\"\")","v":""},{"$f":"IF(INDIRECT(M142) = \"\",\"\",INDIRECT(M142))","v":""},"n"]
["SUCMCGLRA_1TO5",null,null,null,{"$f":"_xlfn.XLOOKUP(F143,'Raw Data'!$I$4:$I$5000,'Raw Data'!$D$4:$D$5000,\"*** Mnemonic not found ***\",0)","v":"*** Mnemonic not found ***"},"SUCMCGLRA_1TO5__",null,"Input",null,null,{"$f":"K142+1","v":100},{"$f":"L142","v":"H"},{"$f":"CONCATENATE(H143,\"!\",L143,K143)","v":"Input!H100"},{"$f":"_xlfn.XLOOKUP(F143,'Raw Data'!$I$4:$I$5000,'Raw Data'!$E$4:$E$5000,100,0)","v":100},{"$f":"IF(N143=0,_xlfn.XLOOKUP(F143,'Raw Data'!$I$4:$I$5000,'Raw Data'!$H$4:$H$5000,\"\",0),\"\")","v":""},{"$f":"IF(INDIRECT(M143) = \"\",\"\",INDIRECT(M143))","v":""},"n"]
["SUCMCGLRA_5TO10",null,null,null,{"$f":"_xlfn.XLOOKUP(F144,'Raw Data'!$I$4:$I$5000,'Raw Data'!$D$4:$D$5000,\"*** Mnemonic not found ***\",0)","v":"*** Mnemonic not found ***"},"SUCMCGLRA_5TO10__",null,"Input",null,null,{"$f":"K143+1","v":101},"H","Input!H101",{"$f":"_xlfn.XLOOKUP(F144,'Raw Data'!$I$4:$I$5000,'Raw Data'!$E$4:$E$5000,100,0)","v":100},{"$f":"IF(N144=0,_xlfn.XLOOKUP(F144,'Raw Data'!$I$4:$I$5000,'Raw Data'!$H$4:$H$5000,\"\",0),\"\")","v":""},{"$f":"IF(INDIRECT(M144) = \"\",\"\",INDIRECT(M144))","v":""},"n"]
["SUCMCGLRA_10TO20",null,null,null,{"$f":"_xlfn.XLOOKUP(F145,'Raw Data'!$I$4:$I$5000,'Raw Data'!$D$4:$D$5000,\"*** Mnemonic not found ***\",0)","v":"*** Mnemonic not found ***"},"SUCMCGLRA_10TO20__",null,"Input",null,null,102,"H","Input!H102",{"$f":"_xlfn.XLOOKUP(F145,'Raw Data'!$I$4:$I$5000,'Raw Data'!$E$4:$E$5000,100,0)","v":100},{"$f":"IF(N145=0,_xlfn.XLOOKUP(F145,'Raw Data'!$I$4:$I$5000,'Raw Data'!$H$4:$H$5000,\"\",0),\"\")","v":""},{"$f":"IF(INDIRECT(M145) = \"\",\"\",INDIRECT(M145))","v":""},"n"]
["SUCMCGLRA_GRTR20",null,null,null,{"$f":"_xlfn.XLOOKUP(F146,'Raw Data'!$I$4:$I$5000,'Raw Data'!$D$4:$D$5000,\"*** Mnemonic not found ***\",0)","v":"*** Mnemonic not found ***"},"SUCMCGLRA_GRTR20__",null,"Input",null,null,103,"H","Input!H103",{"$f":"_xlfn.XLOOKUP(F146,'Raw Data'!$I$4:$I$5000,'Raw Data'!$E$4:$E$5000,100,0)","v":100},{"$f":"IF(N146=0,_xlfn.XLOOKUP(F146,'Raw Data'!$I$4:$I$5000,'Raw Data'!$H$4:$H$5000,\"\",0),\"\")","v":""},{"$f":"IF(INDIRECT(M146) = \"\",\"\",INDIRECT(M146))","v":""},"n"]
["SUCMCGLRBBB_LESS1",null,null,null,{"$f":"_xlfn.XLOOKUP(F147,'Raw Data'!$I$4:$I$5000,'Raw Data'!$D$4:$D$5000,\"*** Mnemonic not found ***\",0)","v":"*** Mnemonic not found ***"},"SUCMCGLRBBB_LESS1__",null,"Input",null,null,{"$f":"K142","v":99},"I","Input!I99",{"$f":"_xlfn.XLOOKUP(F147,'Raw Data'!$I$4:$I$5000,'Raw Data'!$E$4:$E$5000,100,0)","v":100},{"$f":"IF(N147=0,_xlfn.XLOOKUP(F147,'Raw Data'!$I$4:$I$5000,'Raw Data'!$H$4:$H$5000,\"\",0),\"\")","v":""},{"$f":"IF(INDIRECT(M147) = \"\",\"\",INDIRECT(M147))","v":""},"n"]
["SUCMCGLRBBB_1TO5",null,null,null,{"$f":"_xlfn.XLOOKUP(F148,'Raw Data'!$I$4:$I$5000,'Raw Data'!$D$4:$D$5000,\"*** Mnemonic not found ***\",0)","v":"*** Mnemonic not found ***"},"SUCMCGLRBBB_1TO5__",null,"Input",null,null,{"$f":"K147+1","v":100},{"$f":"L147","v":"I"},"Input!I100",{"$f":"_xlfn.XLOOKUP(F148,'Raw Data'!$I$4:$I$5000,'Raw Data'!$E$4:$E$5000,100,0)","v":100},{"$f":"IF(N148=0,_xlfn.XLOOKUP(F148,'Raw Data'!$I$4:$I$5000,'Raw Data'!$H$4:$H$5000,\"\",0),\"\")","v":""},{"$f":"IF(INDIRECT(M148) = \"\",\"\",INDIRECT(M148))","v":""},"n"]
["SUCMCGLRBBB_5TO10",null,null,null,{"$f":"_xlfn.XLOOKUP(F149,'Raw Data'!$I$4:$I$5000,'Raw Data'!$D$4:$D$5000,\"*** Mnemonic not found ***\",0)","v":"*** Mnemonic not found ***"},"SUCMCGLRBBB_5TO10__",null,"Input",null,null,{"$f":"K148+1","v":101},"I","Input!I101",{"$f":"_xlfn.XLOOKUP(F149,'Raw Data'!$I$4:$I$5000,'Raw Data'!$E$4:$E$5000,100,0)","v":100},{"$f":"IF(N149=0,_xlfn.XLOOKUP(F149,'Raw Data'!$I$4:$I$5000,'Raw Data'!$H$4:$H$5000,\"\",0),\"\")","v":""},{"$f":"IF(INDIRECT(M149) = \"\",\"\",INDIRECT(M149))","v":""},"n"]
["SUCMCGLRBBB_10TO20",null,null,null,{"$f":"_xlfn.XLOOKUP(F150,'Raw Data'!$I$4:$I$5000,'Raw Data'!$D$4:$D$5000,\"*** Mnemonic not found ***\",0)","v":"*** Mnemonic not found ***"},"SUCMCGLRBBB_10TO20__",null,"Input",null,null,102,"I","Input!I102",{"$f":"_xlfn.XLOOKUP(F150,'Raw Data'!$I$4:$I$5000,'Raw Data'!$E$4:$E$5000,100,0)","v":100},{"$f":"IF(N150=0,_xlfn.XLOOKUP(F150,'Raw Data'!$I$4:$I$5000,'Raw Data'!$H$4:$H$5000,\"\",0),\"\")","v":""},{"$f":"IF(INDIRECT(M150) = \"\",\"\",INDIRECT(M150))","v":""},"n"]
["SUCMCGLRBBB_GRTR20",null,null,null,{"$f":"_xlfn.XLOOKUP(F151,'Raw Data'!$I$4:$I$5000,'Raw Data'!$D$4:$D$5000,\"*** Mnemonic not found ***\",0)","v":"*** Mnemonic not found ***"},"SUCMCGLRBBB_GRTR20__",null,"Input",null,null,103,"I","Input!I103",{"$f":"_xlfn.XLOOKUP(F151,'Raw Data'!$I$4:$I$5000,'Raw Data'!$E$4:$E$5000,100,0)","v":100},{"$f":"IF(N151=0,_xlfn.XLOOKUP(F151,'Raw Data'!$I$4:$I$5000,'Raw Data'!$H$4:$H$5000,\"\",0),\"\")","v":""},{"$f":"IF(INDIRECT(M151) = \"\",\"\",INDIRECT(M151))","v":""},"n"]
["SUCMCGLRBB_LESS1",null,null,null,{"$f":"_xlfn.XLOOKUP(F152,'Raw Data'!$I$4:$I$5000,'Raw Data'!$D$4:$D$5000,\"*** Mnemonic not found ***\",0)","v":"*** Mnemonic not found ***"},"SUCMCGLRBB_LESS1__",null,"Input",null,null,{"$f":"K147","v":99},"J","Input!J99",{"$f":"_xlfn.XLOOKUP(F152,'Raw Data'!$I$4:$I$5000,'Raw Data'!$E$4:$E$5000,100,0)","v":100},{"$f":"IF(N152=0,_xlfn.XLOOKUP(F152,'Raw Data'!$I$4:$I$5000,'Raw Data'!$H$4:$H$5000,\"\",0),\"\")","v":""},{"$f":"IF(INDIRECT(M152) = \"\",\"\",INDIRECT(M152))","v":""},"n"]
["SUCMCGLRBB_1TO5",null,null,null,{"$f":"_xlfn.XLOOKUP(F153,'Raw Data'!$I$4:$I$5000,'Raw Data'!$D$4:$D$5000,\"*** Mnemonic not found ***\",0)","v":"*** Mnemonic not found ***"},"SUCMCGLRBB_1TO5__",null,"Input",null,null,{"$f":"K152+1","v":100},{"$f":"L152","v":"J"},"Input!J100",{"$f":"_xlfn.XLOOKUP(F153,'Raw Data'!$I$4:$I$5000,'Raw Data'!$E$4:$E$5000,100,0)","v":100},{"$f":"IF(N153=0,_xlfn.XLOOKUP(F153,'Raw Data'!$I$4:$I$5000,'Raw Data'!$H$4:$H$5000,\"\",0),\"\")","v":""},{"$f":"IF(INDIRECT(M153) = \"\",\"\",INDIRECT(M153))","v":""},"n"]
["SUCMCGLRBB_5TO10",null,null,null,{"$f":"_xlfn.XLOOKUP(F154,'Raw Data'!$I$4:$I$5000,'Raw Data'!$D$4:$D$5000,\"*** Mnemonic not found ***\",0)","v":"*** Mnemonic not found ***"},"SUCMCGLRBB_5TO10__",null,"Input",null,null,{"$f":"K153+1","v":101},"J","Input!J101",{"$f":"_xlfn.XLOOKUP(F154,'Raw Data'!$I$4:$I$5000,'Raw Data'!$E$4:$E$5000,100,0)","v":100},{"$f":"IF(N154=0,_xlfn.XLOOKUP(F154,'Raw Data'!$I$4:$I$5000,'Raw Data'!$H$4:$H$5000,\"\",0),\"\")","v":""},{"$f":"IF(INDIRECT(M154) = \"\",\"\",INDIRECT(M154))","v":""},"n"]
["SUCMCGLRBB_10TO20",null,null,null,{"$f":"_xlfn.XLOOKUP(F155,'Raw Data'!$I$4:$I$5000,'Raw Data'!$D$4:$D$5000,\"*** Mnemonic not found ***\",0)","v":"*** Mnemonic not found ***"},"SUCMCGLRBB_10TO20__",null,"Input",null,null,102,"J","Input!J102",{"$f":"_xlfn.XLOOKUP(F155,'Raw Data'!$I$4:$I$5000,'Raw Data'!$E$4:$E$5000,100,0)","v":100},{"$f":"IF(N155=0,_xlfn.XLOOKUP(F155,'Raw Data'!$I$4:$I$5000,'Raw Data'!$H$4:$H$5000,\"\",0),\"\")","v":""},{"$f":"IF(INDIRECT(M155) = \"\",\"\",INDIRECT(M155))","v":""},"n"]
["SUCMCGLRBB_GRTR20",null,null,null,{"$f":"_xlfn.XLOOKUP(F156,'Raw Data'!$I$4:$I$5000,'Raw Data'!$D$4:$D$5000,\"*** Mnemonic not found ***\",0)","v":"*** Mnemonic not found ***"},"SUCMCGLRBB_GRTR20__",null,"Input",null,null,103,"J","Input!J103",{"$f":"_xlfn.XLOOKUP(F156,'Raw Data'!$I$4:$I$5000,'Raw Data'!$E$4:$E$5000,100,0)","v":100},{"$f":"IF(N156=0,_xlfn.XLOOKUP(F156,'Raw Data'!$I$4:$I$5000,'Raw Data'!$H$4:$H$5000,\"\",0),\"\")","v":""},{"$f":"IF(INDIRECT(M156) = \"\",\"\",INDIRECT(M156))","v":""},"n"]
["SUCMCGLRB_LESS1",null,null,null,{"$f":"_xlfn.XLOOKUP(F157,'Raw Data'!$I$4:$I$5000,'Raw Data'!$D$4:$D$5000,\"*** Mnemonic not found ***\",0)","v":"*** Mnemonic not found ***"},"SUCMCGLRB_LESS1__",null,"Input",null,null,{"$f":"K152","v":99},"K","Input!K99",{"$f":"_xlfn.XLOOKUP(F157,'Raw Data'!$I$4:$I$5000,'Raw Data'!$E$4:$E$5000,100,0)","v":100},{"$f":"IF(N157=0,_xlfn.XLOOKUP(F157,'Raw Data'!$I$4:$I$5000,'Raw Data'!$H$4:$H$5000,\"\",0),\"\")","v":""},{"$f":"IF(INDIRECT(M157) = \"\",\"\",INDIRECT(M157))","v":""},"n"]
["SUCMCGLRB_1TO5",null,null,null,{"$f":"_xlfn.XLOOKUP(F158,'Raw Data'!$I$4:$I$5000,'Raw Data'!$D$4:$D$5000,\"*** Mnemonic not found ***\",0)","v":"*** Mnemonic not found ***"},"SUCMCGLRB_1TO5__",null,"Input",null,null,{"$f":"K157+1","v":100},{"$f":"L157","v":"K"},"Input!K100",{"$f":"_xlfn.XLOOKUP(F158,'Raw Data'!$I$4:$I$5000,'Raw Data'!$E$4:$E$5000,100,0)","v":100},{"$f":"IF(N158=0,_xlfn.XLOOKUP(F158,'Raw Data'!$I$4:$I$5000,'Raw Data'!$H$4:$H$5000,\"\",0),\"\")","v":""},{"$f":"IF(INDIRECT(M158) = \"\",\"\",INDIRECT(M158))","v":""},"n"]
["SUCMCGLRB_5TO10",null,null,null,{"$f":"_xlfn.XLOOKUP(F159,'Raw Data'!$I$4:$I$5000,'Raw Data'!$D$4:$D$5000,\"*** Mnemonic not found ***\",0)","v":"*** Mnemonic not found ***"},"SUCMCGLRB_5TO10__",null,"Input",null,null,{"$f":"K158+1","v":101},"K","Input!K101",{"$f":"_xlfn.XLOOKUP(F159,'Raw Data'!$I$4:$I$5000,'Raw Data'!$E$4:$E$5000,100,0)","v":100},{"$f":"IF(N159=0,_xlfn.XLOOKUP(F159,'Raw Data'!$I$4:$I$5000,'Raw Data'!$H$4:$H$5000,\"\",0),\"\")","v":""},{"$f":"IF(INDIRECT(M159) = \"\",\"\",INDIRECT(M159))","v":""},"n"]
["SUCMCGLRB_10TO20",null,null,null,{"$f":"_xlfn.XLOOKUP(F160,'Raw Data'!$I$4:$I$5000,'Raw Data'!$D$4:$D$5000,\"*** Mnemonic not found ***\",0)","v":"*** Mnemonic not found ***"},"SUCMCGLRB_10TO20__",null,"Input",null,null,102,"K","Input!K102",{"$f":"_xlfn.XLOOKUP(F160,'Raw Data'!$I$4:$I$5000,'Raw Data'!$E$4:$E$5000,100,0)","v":100},{"$f":"IF(N160=0,_xlfn.XLOOKUP(F160,'Raw Data'!$I$4:$I$5000,'Raw Data'!$H$4:$H$5000,\"\",0),\"\")","v":""},{"$f":"IF(INDIRECT(M160) = \"\",\"\",INDIRECT(M160))","v":""},"n"]
["SUCMCGLRB_GRTR20",null,null,null,{"$f":"_xlfn.XLOOKUP(F161,'Raw Data'!$I$4:$I$5000,'Raw Data'!$D$4:$D$5000,\"*** Mnemonic not found ***\",0)","v":"*** Mnemonic not found ***"},"SUCMCGLRB_GRTR20__",null,"Input",null,null,103,"K","Input!K103",{"$f":"_xlfn.XLOOKUP(F161,'Raw Data'!$I$4:$I$5000,'Raw Data'!$E$4:$E$5000,100,0)","v":100},{"$f":"IF(N161=0,_xlfn.XLOOKUP(F161,'Raw Data'!$I$4:$I$5000,'Raw Data'!$H$4:$H$5000,\"\",0),\"\")","v":""},{"$f":"IF(INDIRECT(M161) = \"\",\"\",INDIRECT(M161))","v":""},"n"]
["SUCMCGLRCCC_LESS1",null,null,null,{"$f":"_xlfn.XLOOKUP(F162,'Raw Data'!$I$4:$I$5000,'Raw Data'!$D$4:$D$5000,\"*** Mnemonic not found ***\",0)","v":"*** Mnemonic not found ***"},"SUCMCGLRCCC_LESS1__",null,"Input",null,null,{"$f":"K157","v":99},"L","Input!L99",{"$f":"_xlfn.XLOOKUP(F162,'Raw Data'!$I$4:$I$5000,'Raw Data'!$E$4:$E$5000,100,0)","v":100},{"$f":"IF(N162=0,_xlfn.XLOOKUP(F162,'Raw Data'!$I$4:$I$5000,'Raw Data'!$H$4:$H$5000,\"\",0),\"\")","v":""},{"$f":"IF(INDIRECT(M162) = \"\",\"\",INDIRECT(M162))","v":""},"n"]
["SUCMCGLRCCC_1TO5",null,null,null,{"$f":"_xlfn.XLOOKUP(F163,'Raw Data'!$I$4:$I$5000,'Raw Data'!$D$4:$D$5000,\"*** Mnemonic not found ***\",0)","v":"*** Mnemonic not found ***"},"SUCMCGLRCCC_1TO5__",null,"Input",null,null,{"$f":"K162+1","v":100},{"$f":"L162","v":"L"},"Input!L100",{"$f":"_xlfn.XLOOKUP(F163,'Raw Data'!$I$4:$I$5000,'Raw Data'!$E$4:$E$5000,100,0)","v":100},{"$f":"IF(N163=0,_xlfn.XLOOKUP(F163,'Raw Data'!$I$4:$I$5000,'Raw Data'!$H$4:$H$5000,\"\",0),\"\")","v":""},{"$f":"IF(INDIRECT(M163) = \"\",\"\",INDIRECT(M163))","v":""},"n"]
["SUCMCGLRCCC_5TO10",null,null,null,{"$f":"_xlfn.XLOOKUP(F164,'Raw Data'!$I$4:$I$5000,'Raw Data'!$D$4:$D$5000,\"*** Mnemonic not found ***\",0)","v":"*** Mnemonic not found ***"},"SUCMCGLRCCC_5TO10__",null,"Input",null,null,{"$f":"K163+1","v":101},"L","Input!L101",{"$f":"_xlfn.XLOOKUP(F164,'Raw Data'!$I$4:$I$5000,'Raw Data'!$E$4:$E$5000,100,0)","v":100},{"$f":"IF(N164=0,_xlfn.XLOOKUP(F164,'Raw Data'!$I$4:$I$5000,'Raw Data'!$H$4:$H$5000,\"\",0),\"\")","v":""},{"$f":"IF(INDIRECT(M164) = \"\",\"\",INDIRECT(M164))","v":""},"n"]
["SUCMCGLRCCC_10TO20",null,null,null,{"$f":"_xlfn.XLOOKUP(F165,'Raw Data'!$I$4:$I$5000,'Raw Data'!$D$4:$D$5000,\"*** Mnemonic not found ***\",0)","v":"*** Mnemonic not found ***"},"SUCMCGLRCCC_10TO20__",null,"Input",null,null,102,"L","Input!L102",{"$f":"_xlfn.XLOOKUP(F165,'Raw Data'!$I$4:$I$5000,'Raw Data'!$E$4:$E$5000,100,0)","v":100},{"$f":"IF(N165=0,_xlfn.XLOOKUP(F165,'Raw Data'!$I$4:$I$5000,'Raw Data'!$H$4:$H$5000,\"\",0),\"\")","v":""},{"$f":"IF(INDIRECT(M165) = \"\",\"\",INDIRECT(M165))","v":""},"n"]
["SUCMCGLRCCC_GRTR20",null,null,null,{"$f":"_xlfn.XLOOKUP(F166,'Raw Data'!$I$4:$I$5000,'Raw Data'!$D$4:$D$5000,\"*** Mnemonic not found ***\",0)","v":"*** Mnemonic not found ***"},"SUCMCGLRCCC_GRTR20__",null,"Input",null,null,103,"L","Input!L103",{"$f":"_xlfn.XLOOKUP(F166,'Raw Data'!$I$4:$I$5000,'Raw Data'!$E$4:$E$5000,100,0)","v":100},{"$f":"IF(N166=0,_xlfn.XLOOKUP(F166,'Raw Data'!$I$4:$I$5000,'Raw Data'!$H$4:$H$5000,\"\",0),\"\")","v":""},{"$f":"IF(INDIRECT(M166) = \"\",\"\",INDIRECT(M166))","v":""},"n"]
["SUCMCGLRD_LESS1",null,null,null,{"$f":"_xlfn.XLOOKUP(F167,'Raw Data'!$I$4:$I$5000,'Raw Data'!$D$4:$D$5000,\"*** Mnemonic not found ***\",0)","v":"*** Mnemonic not found ***"},"SUCMCGLRD_LESS1__",null,"Input",null,null,{"$f":"K162","v":99},"M","Input!M99",{"$f":"_xlfn.XLOOKUP(F167,'Raw Data'!$I$4:$I$5000,'Raw Data'!$E$4:$E$5000,100,0)","v":100},{"$f":"IF(N167=0,_xlfn.XLOOKUP(F167,'Raw Data'!$I$4:$I$5000,'Raw Data'!$H$4:$H$5000,\"\",0),\"\")","v":""},{"$f":"IF(INDIRECT(M167) = \"\",\"\",INDIRECT(M167))","v":""},"n"]
["SUCMCGLRD_1TO5",null,null,null,{"$f":"_xlfn.XLOOKUP(F168,'Raw Data'!$I$4:$I$5000,'Raw Data'!$D$4:$D$5000,\"*** Mnemonic not found ***\",0)","v":"*** Mnemonic not found ***"},"SUCMCGLRD_1TO5__",null,"Input",null,null,{"$f":"K167+1","v":100},{"$f":"L167","v":"M"},"Input!M100",{"$f":"_xlfn.XLOOKUP(F168,'Raw Data'!$I$4:$I$5000,'Raw Data'!$E$4:$E$5000,100,0)","v":100},{"$f":"IF(N168=0,_xlfn.XLOOKUP(F168,'Raw Data'!$I$4:$I$5000,'Raw Data'!$H$4:$H$5000,\"\",0),\"\")","v":""},{"$f":"IF(INDIRECT(M168) = \"\",\"\",INDIRECT(M168))","v":""},"n"]
["SUCMCGLRD_5TO10",null,null,null,{"$f":"_xlfn.XLOOKUP(F169,'Raw Data'!$I$4:$I$5000,'Raw Data'!$D$4:$D$5000,\"*** Mnemonic not found ***\",0)","v":"*** Mnemonic not found ***"},"SUCMCGLRD_5TO10__",null,"Input",null,null,{"$f":"K168+1","v":101},"M","Input!M101",{"$f":"_xlfn.XLOOKUP(F169,'Raw Data'!$I$4:$I$5000,'Raw Data'!$E$4:$E$5000,100,0)","v":100},{"$f":"IF(N169=0,_xlfn.XLOOKUP(F169,'Raw Data'!$I$4:$I$5000,'Raw Data'!$H$4:$H$5000,\"\",0),\"\")","v":""},{"$f":"IF(INDIRECT(M169) = \"\",\"\",INDIRECT(M169))","v":""},"n"]
["SUCMCGLRD_10TO20",null,null,null,{"$f":"_xlfn.XLOOKUP(F170,'Raw Data'!$I$4:$I$5000,'Raw Data'!$D$4:$D$5000,\"*** Mnemonic not found ***\",0)","v":"*** Mnemonic not found ***"},"SUCMCGLRD_10TO20__",null,"Input",null,null,102,"M","Input!M102",{"$f":"_xlfn.XLOOKUP(F170,'Raw Data'!$I$4:$I$5000,'Raw Data'!$E$4:$E$5000,100,0)","v":100},{"$f":"IF(N170=0,_xlfn.XLOOKUP(F170,'Raw Data'!$I$4:$I$5000,'Raw Data'!$H$4:$H$5000,\"\",0),\"\")","v":""},{"$f":"IF(INDIRECT(M170) = \"\",\"\",INDIRECT(M170))","v":""},"n"]
["SUCMCGLRD_GRTR20",null,null,null,{"$f":"_xlfn.XLOOKUP(F171,'Raw Data'!$I$4:$I$5000,'Raw Data'!$D$4:$D$5000,\"*** Mnemonic not found ***\",0)","v":"*** Mnemonic not found ***"},"SUCMCGLRD_GRTR20__",null,"Input",null,null,103,"M","Input!M103",{"$f":"_xlfn.XLOOKUP(F171,'Raw Data'!$I$4:$I$5000,'Raw Data'!$E$4:$E$5000,100,0)","v":100},{"$f":"IF(N171=0,_xlfn.XLOOKUP(F171,'Raw Data'!$I$4:$I$5000,'Raw Data'!$H$4:$H$5000,\"\",0),\"\")","v":""},{"$f":"IF(INDIRECT(M171) = \"\",\"\",INDIRECT(M171))","v":""},"n"]
["SUCMCGSFAAA_LESS1",null,null,null,{"$f":"_xlfn.XLOOKUP(F172,'Raw Data'!$I$4:$I$5000,'Raw Data'!$D$4:$D$5000,\"*** Mnemonic not found ***\",0)","v":"*** Mnemonic not found ***"},"SUCMCGSFAAA_LESS1__",null,"Input",{"$f":"ROW(section_bonds_sp_rated)","v":79},{"$f":"J132+8","v":28},{"$f":"I172+J172","v":107},"F","Input!F107",{"$f":"_xlfn.XLOOKUP(F172,'Raw Data'!$I$4:$I$5000,'Raw Data'!$E$4:$E$5000,100,0)","v":100},{"$f":"IF(N172=0,_xlfn.XLOOKUP(F172,'Raw Data'!$I$4:$I$5000,'Raw Data'!$H$4:$H$5000,\"\",0),\"\")","v":""},{"$f":"IF(INDIRECT(M172) = \"\",\"\",INDIRECT(M172))","v":""},"n"]
["SUCMCGSFAAA_1TO5",null,null,null,{"$f":"_xlfn.XLOOKUP(F173,'Raw Data'!$I$4:$I$5000,'Raw Data'!$D$4:$D$5000,\"*** Mnemonic not found ***\",0)","v":"*** Mnemonic not found ***"},"SUCMCGSFAAA_1TO5__",null,"Input",null,null,{"$f":"K172+1","v":108},{"$f":"L172","v":"F"},"Input!F108",{"$f":"_xlfn.XLOOKUP(F173,'Raw Data'!$I$4:$I$5000,'Raw Data'!$E$4:$E$5000,100,0)","v":100},{"$f":"IF(N173=0,_xlfn.XLOOKUP(F173,'Raw Data'!$I$4:$I$5000,'Raw Data'!$H$4:$H$5000,\"\",0),\"\")","v":""},{"$f":"IF(INDIRECT(M173) = \"\",\"\",INDIRECT(M173))","v":""},"n"]
["SUCMCGSFAAA_5TO10",null,null,null,{"$f":"_xlfn.XLOOKUP(F174,'Raw Data'!$I$4:$I$5000,'Raw Data'!$D$4:$D$5000,\"*** Mnemonic not found ***\",0)","v":"*** Mnemonic not found ***"},"SUCMCGSFAAA_5TO10__",null,"Input",null,null,{"$f":"K173+1","v":109},"F","Input!F109",{"$f":"_xlfn.XLOOKUP(F174,'Raw Data'!$I$4:$I$5000,'Raw Data'!$E$4:$E$5000,100,0)","v":100},{"$f":"IF(N174=0,_xlfn.XLOOKUP(F174,'Raw Data'!$I$4:$I$5000,'Raw Data'!$H$4:$H$5000,\"\",0),\"\")","v":""},{"$f":"IF(INDIRECT(M174) = \"\",\"\",INDIRECT(M174))","v":""},"n"]
["SUCMCGSFAAA_10TO20",null,null,null,{"$f":"_xlfn.XLOOKUP(F175,'Raw Data'!$I$4:$I$5000,'Raw Data'!$D$4:$D$5000,\"*** Mnemonic not found ***\",0)","v":"*** Mnemonic not found ***"},"SUCMCGSFAAA_10TO20__",null,"Input",null,null,110,"F","Input!F110",{"$f":"_xlfn.XLOOKUP(F175,'Raw Data'!$I$4:$I$5000,'Raw Data'!$E$4:$E$5000,100,0)","v":100},{"$f":"IF(N175=0,_xlfn.XLOOKUP(F175,'Raw Data'!$I$4:$I$5000,'Raw Data'!$H$4:$H$5000,\"\",0),\"\")","v":""},{"$f":"IF(INDIRECT(M175) = \"\",\"\",INDIRECT(M175))","v":""},"n"]
["SUCMCGSFAAA_GRTR20",null,null,null,{"$f":"_xlfn.XLOOKUP(F176,'Raw Data'!$I$4:$I$5000,'Raw Data'!$D$4:$D$5000,\"*** Mnemonic not found ***\",0)","v":"*** Mnemonic not found ***"},"SUCMCGSFAAA_GRTR20__",null,"Input",null,null,111,"F","Input!F111",{"$f":"_xlfn.XLOOKUP(F176,'Raw Data'!$I$4:$I$5000,'Raw Data'!$E$4:$E$5000,100,0)","v":100},{"$f":"IF(N176=0,_xlfn.XLOOKUP(F176,'Raw Data'!$I$4:$I$5000,'Raw Data'!$H$4:$H$5000,\"\",0),\"\")","v":""},{"$f":"IF(INDIRECT(M176) = \"\",\"\",INDIRECT(M176))","v":""},"n"]
["SUCMCGSFAA_LESS1",null,null,null,{"$f":"_xlfn.XLOOKUP(F177,'Raw Data'!$I$4:$I$5000,'Raw Data'!$D$4:$D$5000,\"*** Mnemonic not found ***\",0)","v":"*** Mnemonic not found ***"},"SUCMCGSFAA_LESS1__",null,"Input",null,null,{"$f":"K172","v":107},"G","Input!G107",{"$f":"_xlfn.XLOOKUP(F177,'Raw Data'!$I$4:$I$5000,'Raw Data'!$E$4:$E$5000,100,0)","v":100},{"$f":"IF(N177=0,_xlfn.XLOOKUP(F177,'Raw Data'!$I$4:$I$5000,'Raw Data'!$H$4:$H$5000,\"\",0),\"\")","v":""},{"$f":"IF(INDIRECT(M177) = \"\",\"\",INDIRECT(M177))","v":""},"n"]
["SUCMCGSFAA_1TO5",null,null,null,{"$f":"_xlfn.XLOOKUP(F178,'Raw Data'!$I$4:$I$5000,'Raw Data'!$D$4:$D$5000,\"*** Mnemonic not found ***\",0)","v":"*** Mnemonic not found ***"},"SUCMCGSFAA_1TO5__",null,"Input",null,null,{"$f":"K177+1","v":108},{"$f":"L177","v":"G"},"Input!G108",{"$f":"_xlfn.XLOOKUP(F178,'Raw Data'!$I$4:$I$5000,'Raw Data'!$E$4:$E$5000,100,0)","v":100},{"$f":"IF(N178=0,_xlfn.XLOOKUP(F178,'Raw Data'!$I$4:$I$5000,'Raw Data'!$H$4:$H$5000,\"\",0),\"\")","v":""},{"$f":"IF(INDIRECT(M178) = \"\",\"\",INDIRECT(M178))","v":""},"n"]
["SUCMCGSFAA_5TO10",null,null,null,{"$f":"_xlfn.XLOOKUP(F179,'Raw Data'!$I$4:$I$5000,'Raw Data'!$D$4:$D$5000,\"*** Mnemonic not found ***\",0)","v":"*** Mnemonic not found ***"},"SUCMCGSFAA_5TO10__",null,"Input",null,null,{"$f":"K178+1","v":109},"G","Input!G109",{"$f":"_xlfn.XLOOKUP(F179,'Raw Data'!$I$4:$I$5000,'Raw Data'!$E$4:$E$5000,100,0)","v":100},{"$f":"IF(N179=0,_xlfn.XLOOKUP(F179,'Raw Data'!$I$4:$I$5000,'Raw Data'!$H$4:$H$5000,\"\",0),\"\")","v":""},{"$f":"IF(INDIRECT(M179) = \"\",\"\",INDIRECT(M179))","v":""},"n"]
["SUCMCGSFAA_10TO20",null,null,null,{"$f":"_xlfn.XLOOKUP(F180,'Raw Data'!$I$4:$I$5000,'Raw Data'!$D$4:$D$5000,\"*** Mnemonic not found ***\",0)","v":"*** Mnemonic not found ***"},"SUCMCGSFAA_10TO20__",null,"Input",null,null,110,"G","Input!G110",{"$f":"_xlfn.XLOOKUP(F180,'Raw Data'!$I$4:$I$5000,'Raw Data'!$E$4:$E$5000,100,0)","v":100},{"$f":"IF(N180=0,_xlfn.XLOOKUP(F180,'Raw Data'!$I$4:$I$5000,'Raw Data'!$H$4:$H$5000,\"\",0),\"\")","v":""},{"$f":"IF(INDIRECT(M180) = \"\",\"\",INDIRECT(M180))","v":""},"n"]
["SUCMCGSFAA_GRTR20",null,null,null,{"$f":"_xlfn.XLOOKUP(F181,'Raw Data'!$I$4:$I$5000,'Raw Data'!$D$4:$D$5000,\"*** Mnemonic not found ***\",0)","v":"*** Mnemonic not found ***"},"SUCMCGSFAA_GRTR20__",null,"Input",null,null,111,"G","Input!G111",{"$f":"_xlfn.XLOOKUP(F181,'Raw Data'!$I$4:$I$5000,'Raw Data'!$E$4:$E$5000,100,0)","v":100},{"$f":"IF(N181=0,_xlfn.XLOOKUP(F181,'Raw Data'!$I$4:$I$5000,'Raw Data'!$H$4:$H$5000,\"\",0),\"\")","v":""},{"$f":"IF(INDIRECT(M181) = \"\",\"\",INDIRECT(M181))","v":""},"n"]
["SUCMCGSFA_LESS1",null,null,null,{"$f":"_xlfn.XLOOKUP(F182,'Raw Data'!$I$4:$I$5000,'Raw Data'!$D$4:$D$5000,\"*** Mnemonic not found ***\",0)","v":"*** Mnemonic not found ***"},"SUCMCGSFA_LESS1__",null,"Input",null,null,{"$f":"K177","v":107},"H","Input!H107",{"$f":"_xlfn.XLOOKUP(F182,'Raw Data'!$I$4:$I$5000,'Raw Data'!$E$4:$E$5000,100,0)","v":100},{"$f":"IF(N182=0,_xlfn.XLOOKUP(F182,'Raw Data'!$I$4:$I$5000,'Raw Data'!$H$4:$H$5000,\"\",0),\"\")","v":""},{"$f":"IF(INDIRECT(M182) = \"\",\"\",INDIRECT(M182))","v":""},"n"]
["SUCMCGSFA_1TO5",null,null,null,{"$f":"_xlfn.XLOOKUP(F183,'Raw Data'!$I$4:$I$5000,'Raw Data'!$D$4:$D$5000,\"*** Mnemonic not found ***\",0)","v":"*** Mnemonic not found ***"},"SUCMCGSFA_1TO5__",null,"Input",null,null,{"$f":"K182+1","v":108},{"$f":"L182","v":"H"},"Input!H108",{"$f":"_xlfn.XLOOKUP(F183,'Raw Data'!$I$4:$I$5000,'Raw Data'!$E$4:$E$5000,100,0)","v":100},{"$f":"IF(N183=0,_xlfn.XLOOKUP(F183,'Raw Data'!$I$4:$I$5000,'Raw Data'!$H$4:$H$5000,\"\",0),\"\")","v":""},{"$f":"IF(INDIRECT(M183) = \"\",\"\",INDIRECT(M183))","v":""},"n"]
["SUCMCGSFA_5TO10",null,null,null,{"$f":"_xlfn.XLOOKUP(F184,'Raw Data'!$I$4:$I$5000,'Raw Data'!$D$4:$D$5000,\"*** Mnemonic not found ***\",0)","v":"*** Mnemonic not found ***"},"SUCMCGSFA_5TO10__",null,"Input",null,null,{"$f":"K183+1","v":109},"H","Input!H109",{"$f":"_xlfn.XLOOKUP(F184,'Raw Data'!$I$4:$I$5000,'Raw Data'!$E$4:$E$5000,100,0)","v":100},{"$f":"IF(N184=0,_xlfn.XLOOKUP(F184,'Raw Data'!$I$4:$I$5000,'Raw Data'!$H$4:$H$5000,\"\",0),\"\")","v":""},{"$f":"IF(INDIRECT(M184) = \"\",\"\",INDIRECT(M184))","v":""},"n"]
["SUCMCGSFA_10TO20",null,null,null,{"$f":"_xlfn.XLOOKUP(F185,'Raw Data'!$I$4:$I$5000,'Raw Data'!$D$4:$D$5000,\"*** Mnemonic not found ***\",0)","v":"*** Mnemonic not found ***"},"SUCMCGSFA_10TO20__",null,"Input",null,null,110,"H","Input!H110",{"$f":"_xlfn.XLOOKUP(F185,'Raw Data'!$I$4:$I$5000,'Raw Data'!$E$4:$E$5000,100,0)","v":100},{"$f":"IF(N185=0,_xlfn.XLOOKUP(F185,'Raw Data'!$I$4:$I$5000,'Raw Data'!$H$4:$H$5000,\"\",0),\"\")","v":""},{"$f":"IF(INDIRECT(M185) = \"\",\"\",INDIRECT(M185))","v":""},"n"]
["SUCMCGSFA_GRTR20",null,null,null,{"$f":"_xlfn.XLOOKUP(F186,'Raw Data'!$I$4:$I$5000,'Raw Data'!$D$4:$D$5000,\"*** Mnemonic not found ***\",0)","v":"*** Mnemonic not found ***"},"SUCMCGSFA_GRTR20__",null,"Input",null,null,111,"H","Input!H111",{"$f":"_xlfn.XLOOKUP(F186,'Raw Data'!$I$4:$I$5000,'Raw Data'!$E$4:$E$5000,100,0)","v":100},{"$f":"IF(N186=0,_xlfn.XLOOKUP(F186,'Raw Data'!$I$4:$I$5000,'Raw Data'!$H$4:$H$5000,\"\",0),\"\")","v":""},{"$f":"IF(INDIRECT(M186) = \"\",\"\",INDIRECT(M186))","v":""},"n"]
["SUCMCGSFBBB_LESS1",null,null,null,{"$f":"_xlfn.XLOOKUP(F187,'Raw Data'!$I$4:$I$5000,'Raw Data'!$D$4:$D$5000,\"*** Mnemonic not found ***\",0)","v":"*** Mnemonic not found ***"},"SUCMCGSFBBB_LESS1__",null,"Input",null,null,{"$f":"K182","v":107},"I","Input!I107",{"$f":"_xlfn.XLOOKUP(F187,'Raw Data'!$I$4:$I$5000,'Raw Data'!$E$4:$E$5000,100,0)","v":100},{"$f":"IF(N187=0,_xlfn.XLOOKUP(F187,'Raw Data'!$I$4:$I$5000,'Raw Data'!$H$4:$H$5000,\"\",0),\"\")","v":""},{"$f":"IF(INDIRECT(M187) = \"\",\"\",INDIRECT(M187))","v":""},"n"]
["SUCMCGSFBBB_1TO5",null,null,null,{"$f":"_xlfn.XLOOKUP(F188,'Raw Data'!$I$4:$I$5000,'Raw Data'!$D$4:$D$5000,\"*** Mnemonic not found ***\",0)","v":"*** Mnemonic not found ***"},"SUCMCGSFBBB_1TO5__",null,"Input",null,null,{"$f":"K187+1","v":108},{"$f":"L187","v":"I"},"Input!I108",{"$f":"_xlfn.XLOOKUP(F188,'Raw Data'!$I$4:$I$5000,'Raw Data'!$E$4:$E$5000,100,0)","v":100},{"$f":"IF(N188=0,_xlfn.XLOOKUP(F188,'Raw Data'!$I$4:$I$5000,'Raw Data'!$H$4:$H$5000,\"\",0),\"\")","v":""},{"$f":"IF(INDIRECT(M188) = \"\",\"\",INDIRECT(M188))","v":""},"n"]
["SUCMCGSFBBB_5TO10",null,null,null,{"$f":"_xlfn.XLOOKUP(F189,'Raw Data'!$I$4:$I$5000,'Raw Data'!$D$4:$D$5000,\"*** Mnemonic not found ***\",0)","v":"*** Mnemonic not found ***"},"SUCMCGSFBBB_5TO10__",null,"Input",null,null,{"$f":"K188+1","v":109},"I","Input!I109",{"$f":"_xlfn.XLOOKUP(F189,'Raw Data'!$I$4:$I$5000,'Raw Data'!$E$4:$E$5000,100,0)","v":100},{"$f":"IF(N189=0,_xlfn.XLOOKUP(F189,'Raw Data'!$I$4:$I$5000,'Raw Data'!$H$4:$H$5000,\"\",0),\"\")","v":""},{"$f":"IF(INDIRECT(M189) = \"\",\"\",INDIRECT(M189))","v":""},"n"]
["SUCMCGSFBBB_10TO20",null,null,null,{"$f":"_xlfn.XLOOKUP(F190,'Raw Data'!$I$4:$I$5000,'Raw Data'!$D$4:$D$5000,\"*** Mnemonic not found ***\",0)","v":"*** Mnemonic not found ***"},"SUCMCGSFBBB_10TO20__",null,"Input",null,null,110,"I","Input!I110",{"$f":"_xlfn.XLOOKUP(F190,'Raw Data'!$I$4:$I$5000,'Raw Data'!$E$4:$E$5000,100,0)","v":100},{"$f":"IF(N190=0,_xlfn.XLOOKUP(F190,'Raw Data'!$I$4:$I$5000,'Raw Data'!$H$4:$H$5000,\"\",0),\"\")","v":""},{"$f":"IF(INDIRECT(M190) = \"\",\"\",INDIRECT(M190))","v":""},"n"]
["SUCMCGSFBBB_GRTR20",null,null,null,{"$f":"_xlfn.XLOOKUP(F191,'Raw Data'!$I$4:$I$5000,'Raw Data'!$D$4:$D$5000,\"*** Mnemonic not found ***\",0)","v":"*** Mnemonic not found ***"},"SUCMCGSFBBB_GRTR20__",null,"Input",null,null,111,"I","Input!I111",{"$f":"_xlfn.XLOOKUP(F191,'Raw Data'!$I$4:$I$5000,'Raw Data'!$E$4:$E$5000,100,0)","v":100},{"$f":"IF(N191=0,_xlfn.XLOOKUP(F191,'Raw Data'!$I$4:$I$5000,'Raw Data'!$H$4:$H$5000,\"\",0),\"\")","v":""},{"$f":"IF(INDIRECT(M191) = \"\",\"\",INDIRECT(M191))","v":""},"n"]
["SUCMCGSFBB_LESS1",null,null,null,{"$f":"_xlfn.XLOOKUP(F192,'Raw Data'!$I$4:$I$5000,'Raw Data'!$D$4:$D$5000,\"*** Mnemonic not found ***\",0)","v":"*** Mnemonic not found ***"},"SUCMCGSFBB_LESS1__",null,"Input",null,null,{"$f":"K187","v":107},"J","Input!J107",{"$f":"_xlfn.XLOOKUP(F192,'Raw Data'!$I$4:$I$5000,'Raw Data'!$E$4:$E$5000,100,0)","v":100},{"$f":"IF(N192=0,_xlfn.XLOOKUP(F192,'Raw Data'!$I$4:$I$5000,'Raw Data'!$H$4:$H$5000,\"\",0),\"\")","v":""},{"$f":"IF(INDIRECT(M192) = \"\",\"\",INDIRECT(M192))","v":""},"n"]
["SUCMCGSFBB_1TO5",null,null,null,{"$f":"_xlfn.XLOOKUP(F193,'Raw Data'!$I$4:$I$5000,'Raw Data'!$D$4:$D$5000,\"*** Mnemonic not found ***\",0)","v":"*** Mnemonic not found ***"},"SUCMCGSFBB_1TO5__",null,"Input",null,null,{"$f":"K192+1","v":108},{"$f":"L192","v":"J"},"Input!J108",{"$f":"_xlfn.XLOOKUP(F193,'Raw Data'!$I$4:$I$5000,'Raw Data'!$E$4:$E$5000,100,0)","v":100},{"$f":"IF(N193=0,_xlfn.XLOOKUP(F193,'Raw Data'!$I$4:$I$5000,'Raw Data'!$H$4:$H$5000,\"\",0),\"\")","v":""},{"$f":"IF(INDIRECT(M193) = \"\",\"\",INDIRECT(M193))","v":""},"n"]
["SUCMCGSFBB_5TO10",null,null,null,{"$f":"_xlfn.XLOOKUP(F194,'Raw Data'!$I$4:$I$5000,'Raw Data'!$D$4:$D$5000,\"*** Mnemonic not found ***\",0)","v":"*** Mnemonic not found ***"},"SUCMCGSFBB_5TO10__",null,"Input",null,null,{"$f":"K193+1","v":109},"J","Input!J109",{"$f":"_xlfn.XLOOKUP(F194,'Raw Data'!$I$4:$I$5000,'Raw Data'!$E$4:$E$5000,100,0)","v":100},{"$f":"IF(N194=0,_xlfn.XLOOKUP(F194,'Raw Data'!$I$4:$I$5000,'Raw Data'!$H$4:$H$5000,\"\",0),\"\")","v":""},{"$f":"IF(INDIRECT(M194) = \"\",\"\",INDIRECT(M194))","v":""},"n"]
["SUCMCGSFBB_10TO20",null,null,null,{"$f":"_xlfn.XLOOKUP(F195,'Raw Data'!$I$4:$I$5000,'Raw Data'!$D$4:$D$5000,\"*** Mnemonic not found ***\",0)","v":"*** Mnemonic not found ***"},"SUCMCGSFBB_10TO20__",null,"Input",null,null,110,"J","Input!J110",{"$f":"_xlfn.XLOOKUP(F195,'Raw Data'!$I$4:$I$5000,'Raw Data'!$E$4:$E$5000,100,0)","v":100},{"$f":"IF(N195=0,_xlfn.XLOOKUP(F195,'Raw Data'!$I$4:$I$5000,'Raw Data'!$H$4:$H$5000,\"\",0),\"\")","v":""},{"$f":"IF(INDIRECT(M195) = \"\",\"\",INDIRECT(M195))","v":""},"n"]
["SUCMCGSFBB_GRTR20",null,null,null,{"$f":"_xlfn.XLOOKUP(F196,'Raw Data'!$I$4:$I$5000,'Raw Data'!$D$4:$D$5000,\"*** Mnemonic not found ***\",0)","v":"*** Mnemonic not found ***"},"SUCMCGSFBB_GRTR20__",null,"Input",null,null,111,"J","Input!J111",{"$f":"_xlfn.XLOOKUP(F196,'Raw Data'!$I$4:$I$5000,'Raw Data'!$E$4:$E$5000,100,0)","v":100},{"$f":"IF(N196=0,_xlfn.XLOOKUP(F196,'Raw Data'!$I$4:$I$5000,'Raw Data'!$H$4:$H$5000,\"\",0),\"\")","v":""},{"$f":"IF(INDIRECT(M196) = \"\",\"\",INDIRECT(M196))","v":""},"n"]
["SUCMCGSFB_LESS1",null,null,null,{"$f":"_xlfn.XLOOKUP(F197,'Raw Data'!$I$4:$I$5000,'Raw Data'!$D$4:$D$5000,\"*** Mnemonic not found ***\",0)","v":"*** Mnemonic not found ***"},{"$f":"CONCATENATE(A197,\"_\",B197,\"_\",D197)","v":"SUCMCGSFB_LESS1__"},null,"Input",null,null,{"$f":"K192","v":107},"K","Input!K107",{"$f":"_xlfn.XLOOKUP(F197,'Raw Data'!$I$4:$I$5000,'Raw Data'!$E$4:$E$5000,100,0)","v":100},{"$f":"IF(N197=0,_xlfn.XLOOKUP(F197,'Raw Data'!$I$4:$I$5000,'Raw Data'!$H$4:$H$5000,\"\",0),\"\")","v":""},{"$f":"IF(INDIRECT(M197) = \"\",\"\",INDIRECT(M197))","v":""},"n"]
["SUCMCGSFB_1TO5",null,null,null,{"$f":"_xlfn.XLOOKUP(F198,'Raw Data'!$I$4:$I$5000,'Raw Data'!$D$4:$D$5000,\"*** Mnemonic not found ***\",0)","v":"*** Mnemonic not found ***"},"SUCMCGSFB_1TO5__",null,"Input",null,null,{"$f":"K197+1","v":108},{"$f":"L197","v":"K"},"Input!K108",{"$f":"_xlfn.XLOOKUP(F198,'Raw Data'!$I$4:$I$5000,'Raw Data'!$E$4:$E$5000,100,0)","v":100},{"$f":"IF(N198=0,_xlfn.XLOOKUP(F198,'Raw Data'!$I$4:$I$5000,'Raw Data'!$H$4:$H$5000,\"\",0),\"\")","v":""},{"$f":"IF(INDIRECT(M198) = \"\",\"\",INDIRECT(M198))","v":""},"n"]
["SUCMCGSFB_5TO10",null,null,null,{"$f":"_xlfn.XLOOKUP(F199,'Raw Data'!$I$4:$I$5000,'Raw Data'!$D$4:$D$5000,\"*** Mnemonic not found ***\",0)","v":"*** Mnemonic not found ***"},"SUCMCGSFB_5TO10__",null,"Input",null,null,{"$f":"K198+1","v":109},"K","Input!K109",{"$f":"_xlfn.XLOOKUP(F199,'Raw Data'!$I$4:$I$5000,'Raw Data'!$E$4:$E$5000,100,0)","v":100},{"$f":"IF(N199=0,_xlfn.XLOOKUP(F199,'Raw Data'!$I$4:$I$5000,'Raw Data'!$H$4:$H$5000,\"\",0),\"\")","v":""},{"$f":"IF(INDIRECT(M199) = \"\",\"\",INDIRECT(M199))","v":""},"n"]
["SUCMCGSFB_10TO20",null,null,null,{"$f":"_xlfn.XLOOKUP(F200,'Raw Data'!$I$4:$I$5000,'Raw Data'!$D$4:$D$5000,\"*** Mnemonic not found ***\",0)","v":"*** Mnemonic not found ***"},"SUCMCGSFB_10TO20__",null,"Input",null,null,110,"K","Input!K110",{"$f":"_xlfn.XLOOKUP(F200,'Raw Data'!$I$4:$I$5000,'Raw Data'!$E$4:$E$5000,100,0)","v":100},{"$f":"IF(N200=0,_xlfn.XLOOKUP(F200,'Raw Data'!$I$4:$I$5000,'Raw Data'!$H$4:$H$5000,\"\",0),\"\")","v":""},{"$f":"IF(INDIRECT(M200) = \"\",\"\",INDIRECT(M200))","v":""},"n"]
["SUCMCGSFB_GRTR20",null,null,null,{"$f":"_xlfn.XLOOKUP(F201,'Raw Data'!$I$4:$I$5000,'Raw Data'!$D$4:$D$5000,\"*** Mnemonic not found ***\",0)","v":"*** Mnemonic not found ***"},"SUCMCGSFB_GRTR20__",null,"Input",null,null,111,"K","Input!K111",{"$f":"_xlfn.XLOOKUP(F201,'Raw Data'!$I$4:$I$5000,'Raw Data'!$E$4:$E$5000,100,0)","v":100},{"$f":"IF(N201=0,_xlfn.XLOOKUP(F201,'Raw Data'!$I$4:$I$5000,'Raw Data'!$H$4:$H$5000,\"\",0),\"\")","v":""},{"$f":"IF(INDIRECT(M201) = \"\",\"\",INDIRECT(M201))","v":""},"n"]
["SUCMCGSFCCC_LESS1",null,null,null,{"$f":"_xlfn.XLOOKUP(F202,'Raw Data'!$I$4:$I$5000,'Raw Data'!$D$4:$D$5000,\"*** Mnemonic not found ***\",0)","v":"*** Mnemonic not found ***"},"SUCMCGSFCCC_LESS1__",null,"Input",null,null,{"$f":"K197","v":107},"L","Input!L107",{"$f":"_xlfn.XLOOKUP(F202,'Raw Data'!$I$4:$I$5000,'Raw Data'!$E$4:$E$5000,100,0)","v":100},{"$f":"IF(N202=0,_xlfn.XLOOKUP(F202,'Raw Data'!$I$4:$I$5000,'Raw Data'!$H$4:$H$5000,\"\",0),\"\")","v":""},{"$f":"IF(INDIRECT(M202) = \"\",\"\",INDIRECT(M202))","v":""},"n"]
["SUCMCGSFCCC_1TO5",null,null,null,{"$f":"_xlfn.XLOOKUP(F203,'Raw Data'!$I$4:$I$5000,'Raw Data'!$D$4:$D$5000,\"*** Mnemonic not found ***\",0)","v":"*** Mnemonic not found ***"},"SUCMCGSFCCC_1TO5__",null,"Input",null,null,{"$f":"K202+1","v":108},{"$f":"L202","v":"L"},"Input!L108",{"$f":"_xlfn.XLOOKUP(F203,'Raw Data'!$I$4:$I$5000,'Raw Data'!$E$4:$E$5000,100,0)","v":100},{"$f":"IF(N203=0,_xlfn.XLOOKUP(F203,'Raw Data'!$I$4:$I$5000,'Raw Data'!$H$4:$H$5000,\"\",0),\"\")","v":""},{"$f":"IF(INDIRECT(M203) = \"\",\"\",INDIRECT(M203))","v":""},"n"]
["SUCMCGSFCCC_5TO10",null,null,null,{"$f":"_xlfn.XLOOKUP(F204,'Raw Data'!$I$4:$I$5000,'Raw Data'!$D$4:$D$5000,\"*** Mnemonic not found ***\",0)","v":"*** Mnemonic not found ***"},"SUCMCGSFCCC_5TO10__",null,"Input",null,null,{"$f":"K203+1","v":109},"L","Input!L109",{"$f":"_xlfn.XLOOKUP(F204,'Raw Data'!$I$4:$I$5000,'Raw Data'!$E$4:$E$5000,100,0)","v":100},{"$f":"IF(N204=0,_xlfn.XLOOKUP(F204,'Raw Data'!$I$4:$I$5000,'Raw Data'!$H$4:$H$5000,\"\",0),\"\")","v":""},{"$f":"IF(INDIRECT(M204) = \"\",\"\",INDIRECT(M204))","v":""},"n"]
["SUCMCGSFCCC_10TO20",null,null,null,{"$f":"_xlfn.XLOOKUP(F205,'Raw Data'!$I$4:$I$5000,'Raw Data'!$D$4:$D$5000,\"*** Mnemonic not found ***\",0)","v":"*** Mnemonic not found ***"},"SUCMCGSFCCC_10TO20__",null,"Input",null,null,110,"L","Input!L110",{"$f":"_xlfn.XLOOKUP(F205,'Raw Data'!$I$4:$I$5000,'Raw Data'!$E$4:$E$5000,100,0)","v":100},{"$f":"IF(N205=0,_xlfn.XLOOKUP(F205,'Raw Data'!$I$4:$I$5000,'Raw Data'!$H$4:$H$5000,\"\",0),\"\")","v":""},{"$f":"IF(INDIRECT(M205) = \"\",\"\",INDIRECT(M205))","v":""},"n"]
["SUCMCGSFCCC_GRTR20",null,null,null,{"$f":"_xlfn.XLOOKUP(F206,'Raw Data'!$I$4:$I$5000,'Raw Data'!$D$4:$D$5000,\"*** Mnemonic not found ***\",0)","v":"*** Mnemonic not found ***"},"SUCMCGSFCCC_GRTR20__",null,"Input",null,null,111,"L","Input!L111",{"$f":"_xlfn.XLOOKUP(F206,'Raw Data'!$I$4:$I$5000,'Raw Data'!$E$4:$E$5000,100,0)","v":100},{"$f":"IF(N206=0,_xlfn.XLOOKUP(F206,'Raw Data'!$I$4:$I$5000,'Raw Data'!$H$4:$H$5000,\"\",0),\"\")","v":""},{"$f":"IF(INDIRECT(M206) = \"\",\"\",INDIRECT(M206))","v":""},"n"]
["SUCMCGSFD_LESS1",null,null,null,{"$f":"_xlfn.XLOOKUP(F207,'Raw Data'!$I$4:$I$5000,'Raw Data'!$D$4:$D$5000,\"*** Mnemonic not found ***\",0)","v":"*** Mnemonic not found ***"},"SUCMCGSFD_LESS1__",null,"Input",null,null,{"$f":"K202","v":107},"M",{"$f":"CONCATENATE(H207,\"!\",L207,K207)","v":"Input!M107"},{"$f":"_xlfn.XLOOKUP(F207,'Raw Data'!$I$4:$I$5000,'Raw Data'!$E$4:$E$5000,100,0)","v":100},{"$f":"IF(N207=0,_xlfn.XLOOKUP(F207,'Raw Data'!$I$4:$I$5000,'Raw Data'!$H$4:$H$5000,\"\",0),\"\")","v":""},{"$f":"IF(INDIRECT(M207) = \"\",\"\",INDIRECT(M207))","v":""},"n"]
["SUCMCGSFD_1TO5",null,null,null,{"$f":"_xlfn.XLOOKUP(F208,'Raw Data'!$I$4:$I$5000,'Raw Data'!$D$4:$D$5000,\"*** Mnemonic not found ***\",0)","v":"*** Mnemonic not found ***"},"SUCMCGSFD_1TO5__",null,"Input",null,null,{"$f":"K207+1","v":108},{"$f":"L207","v":"M"},"Input!M108",{"$f":"_xlfn.XLOOKUP(F208,'Raw Data'!$I$4:$I$5000,'Raw Data'!$E$4:$E$5000,100,0)","v":100},{"$f":"IF(N208=0,_xlfn.XLOOKUP(F208,'Raw Data'!$I$4:$I$5000,'Raw Data'!$H$4:$H$5000,\"\",0),\"\")","v":""},{"$f":"IF(INDIRECT(M208) = \"\",\"\",INDIRECT(M208))","v":""},"n"]
["SUCMCGSFD_5TO10",null,null,null,{"$f":"_xlfn.XLOOKUP(F209,'Raw Data'!$I$4:$I$5000,'Raw Data'!$D$4:$D$5000,\"*** Mnemonic not found ***\",0)","v":"*** Mnemonic not found ***"},"SUCMCGSFD_5TO10__",null,"Input",null,null,{"$f":"K208+1","v":109},"M","Input!M109",{"$f":"_xlfn.XLOOKUP(F209,'Raw Data'!$I$4:$I$5000,'Raw Data'!$E$4:$E$5000,100,0)","v":100},{"$f":"IF(N209=0,_xlfn.XLOOKUP(F209,'Raw Data'!$I$4:$I$5000,'Raw Data'!$H$4:$H$5000,\"\",0),\"\")","v":""},{"$f":"IF(INDIRECT(M209) = \"\",\"\",INDIRECT(M209))","v":""},"n"]
["SUCMCGSFD_10TO20",null,null,null,{"$f":"_xlfn.XLOOKUP(F210,'Raw Data'!$I$4:$I$5000,'Raw Data'!$D$4:$D$5000,\"*** Mnemonic not found ***\",0)","v":"*** Mnemonic not found ***"},"SUCMCGSFD_10TO20__",null,"Input",null,null,110,"M","Input!M110",{"$f":"_xlfn.XLOOKUP(F210,'Raw Data'!$I$4:$I$5000,'Raw Data'!$E$4:$E$5000,100,0)","v":100},{"$f":"IF(N210=0,_xlfn.XLOOKUP(F210,'Raw Data'!$I$4:$I$5000,'Raw Data'!$H$4:$H$5000,\"\",0),\"\")","v":""},{"$f":"IF(INDIRECT(M210) = \"\",\"\",INDIRECT(M210))","v":""},"n"]
["SUCMCGSFD_GRTR20",null,null,null,{"$f":"_xlfn.XLOOKUP(F211,'Raw Data'!$I$4:$I$5000,'Raw Data'!$D$4:$D$5000,\"*** Mnemonic not found ***\",0)","v":"*** Mnemonic not found ***"},"SUCMCGSFD_GRTR20__",null,"Input",null,null,111,{"$f":"L210","v":"M"},"Input!M111",{"$f":"_xlfn.XLOOKUP(F211,'Raw Data'!$I$4:$I$5000,'Raw Data'!$E$4:$E$5000,100,0)","v":100},{"$f":"IF(N211=0,_xlfn.XLOOKUP(F211,'Raw Data'!$I$4:$I$5000,'Raw Data'!$H$4:$H$5000,\"\",0),\"\")","v":""},{"$f":"IF(INDIRECT(M211) = \"\",\"\",INDIRECT(M211))","v":""},"n"]
["SUCMTOTRATEDBNDS",null,null,null,{"$f":"_xlfn.XLOOKUP(F212,'Raw Data'!$I$4:$I$5000,'Raw Data'!$D$4:$D$5000,\"*** Mnemonic not found ***\",0)","v":"*** Mnemonic not found ***"},"SUCMTOTRATEDBNDS__",null,"Input",null,null,{"$f":"K211+4","v":115},"F","Input!F115",{"$f":"_xlfn.XLOOKUP(F212,'Raw Data'!$I$4:$I$5000,'Raw Data'!$E$4:$E$5000,100,0)","v":100},{"$f":"IF(N212=0,_xlfn.XLOOKUP(F212,'Raw Data'!$I$4:$I$5000,'Raw Data'!$H$4:$H$5000,\"\",0),\"\")","v":""},{"$f":"IF(INDIRECT(M212) = \"\",\"\",INDIRECT(M212))","v":""},"n"]
["SUCMALT1AAA_LESS1",null,null,null,{"$f":"_xlfn.XLOOKUP(F213,'Raw Data'!$I$4:$I$5000,'Raw Data'!$D$4:$D$5000,\"*** Mnemonic not found ***\",0)","v":"*** Mnemonic not found ***"},"SUCMALT1AAA_LESS1__","S&P Unrated Steps 2 and 3","Input",{"$f":"ROW(section_bonds_sp_unrated_step_2_3)","v":118},5,{"$f":"I213+J213","v":123},"F","Input!F123",{"$f":"_xlfn.XLOOKUP(F213,'Raw Data'!$I$4:$I$5000,'Raw Data'!$E$4:$E$5000,100,0)","v":100},{"$f":"IF(N213=0,_xlfn.XLOOKUP(F213,'Raw Data'!$I$4:$I$5000,'Raw Data'!$H$4:$H$5000,\"\",0),\"\")","v":""},{"$f":"IF(INDIRECT(M213) = \"\",\"\",INDIRECT(M213))","v":""},"n"]
["SUCMALT1AAA_1TO5",null,null,null,{"$f":"_xlfn.XLOOKUP(F214,'Raw Data'!$I$4:$I$5000,'Raw Data'!$D$4:$D$5000,\"*** Mnemonic not found ***\",0)","v":"*** Mnemonic not found ***"},"SUCMALT1AAA_1TO5__",null,"Input",null,null,{"$f":"K213+1","v":124},{"$f":"L213","v":"F"},"Input!F124",{"$f":"_xlfn.XLOOKUP(F214,'Raw Data'!$I$4:$I$5000,'Raw Data'!$E$4:$E$5000,100,0)","v":100},{"$f":"IF(N214=0,_xlfn.XLOOKUP(F214,'Raw Data'!$I$4:$I$5000,'Raw Data'!$H$4:$H$5000,\"\",0),\"\")","v":""},{"$f":"IF(INDIRECT(M214) = \"\",\"\",INDIRECT(M214))","v":""},"n"]
["SUCMALT1AAA_5TO10",null,null,null,{"$f":"_xlfn.XLOOKUP(F215,'Raw Data'!$I$4:$I$5000,'Raw Data'!$D$4:$D$5000,\"*** Mnemonic not found ***\",0)","v":"*** Mnemonic not found ***"},"SUCMALT1AAA_5TO10__",null,"Input",null,null,{"$f":"K214+1","v":125},"F","Input!F125",{"$f":"_xlfn.XLOOKUP(F215,'Raw Data'!$I$4:$I$5000,'Raw Data'!$E$4:$E$5000,100,0)","v":100},{"$f":"IF(N215=0,_xlfn.XLOOKUP(F215,'Raw Data'!$I$4:$I$5000,'Raw Data'!$H$4:$H$5000,\"\",0),\"\")","v":""},{"$f":"IF(INDIRECT(M215) = \"\",\"\",INDIRECT(M215))","v":""},"n"]
["SUCMALT1AAA_10TO20",null,null,null,{"$f":"_xlfn.XLOOKUP(F216,'Raw Data'!$I$4:$I$5000,'Raw Data'!$D$4:$D$5000,\"*** Mnemonic not found ***\",0)","v":"*** Mnemonic not found ***"},"SUCMALT1AAA_10TO20__",null,"Input",null,null,126,"F","Input!F126",{"$f":"_xlfn.XLOOKUP(F216,'Raw Data'!$I$4:$I$5000,'Raw Data'!$E$4:$E$5000,100,0)","v":100},{"$f":"IF(N216=0,_xlfn.XLOOKUP(F216,'Raw Data'!$I$4:$I$5000,'Raw Data'!$H$4:$H$5000,\"\",0),\"\")","v":""},{"$f":"IF(INDIRECT(M216) = \"\",\"\",INDIRECT(M216))","v":""},"n"]
["SUCMALT1AAA_GRTR20",null,null,null,{"$f":"_xlfn.XLOOKUP(F217,'Raw Data'!$I$4:$I$5000,'Raw Data'!$D$4:$D$5000,\"*** Mnemonic not found ***\",0)","v":"*** Mnemonic not found ***"},"SUCMALT1AAA_GRTR20__",null,"Input",null,null,127,"F","Input!F127",{"$f":"_xlfn.XLOOKUP(F217,'Raw Data'!$I$4:$I$5000,'Raw Data'!$E$4:$E$5000,100,0)","v":100},{"$f":"IF(N217=0,_xlfn.XLOOKUP(F217,'Raw Data'!$I$4:$I$5000,'Raw Data'!$H$4:$H$5000,\"\",0),\"\")","v":""},{"$f":"IF(INDIRECT(M217) = \"\",\"\",INDIRECT(M217))","v":""},"n"]
["SUCMALT1AA_LESS1",null,null,null,{"$f":"_xlfn.XLOOKUP(F218,'Raw Data'!$I$4:$I$5000,'Raw Data'!$D$4:$D$5000,\"*** Mnemonic not found ***\",0)","v":"*** Mnemonic not found ***"},"SUCMALT1AA_LESS1__",null,"Input",null,null,{"$f":"K213","v":123},"G","Input!G123",{"$f":"_xlfn.XLOOKUP(F218,'Raw Data'!$I$4:$I$5000,'Raw Data'!$E$4:$E$5000,100,0)","v":100},{"$f":"IF(N218=0,_xlfn.XLOOKUP(F218,'Raw Data'!$I$4:$I$5000,'Raw Data'!$H$4:$H$5000,\"\",0),\"\")","v":""},{"$f":"IF(INDIRECT(M218) = \"\",\"\",INDIRECT(M218))","v":""},"n"]
["SUCMALT1AA_1TO5",null,null,null,{"$f":"_xlfn.XLOOKUP(F219,'Raw Data'!$I$4:$I$5000,'Raw Data'!$D$4:$D$5000,\"*** Mnemonic not found ***\",0)","v":"*** Mnemonic not found ***"},"SUCMALT1AA_1TO5__",null,"Input",null,null,{"$f":"K218+1","v":124},{"$f":"L218","v":"G"},"Input!G124",{"$f":"_xlfn.XLOOKUP(F219,'Raw Data'!$I$4:$I$5000,'Raw Data'!$E$4:$E$5000,100,0)","v":100},{"$f":"IF(N219=0,_xlfn.XLOOKUP(F219,'Raw Data'!$I$4:$I$5000,'Raw Data'!$H$4:$H$5000,\"\",0),\"\")","v":""},{"$f":"IF(INDIRECT(M219) = \"\",\"\",INDIRECT(M219))","v":""},"n"]
["SUCMALT1AA_5TO10",null,null,null,{"$f":"_xlfn.XLOOKUP(F220,'Raw Data'!$I$4:$I$5000,'Raw Data'!$D$4:$D$5000,\"*** Mnemonic not found ***\",0)","v":"*** Mnemonic not found ***"},"SUCMALT1AA_5TO10__",null,"Input",null,null,{"$f":"K219+1","v":125},"G","Input!G125",{"$f":"_xlfn.XLOOKUP(F220,'Raw Data'!$I$4:$I$5000,'Raw Data'!$E$4:$E$5000,100,0)","v":100},{"$f":"IF(N220=0,_xlfn.XLOOKUP(F220,'Raw Data'!$I$4:$I$5000,'Raw Data'!$H$4:$H$5000,\"\",0),\"\")","v":""},{"$f":"IF(INDIRECT(M220) = \"\",\"\",INDIRECT(M220))","v":""},"n"]
["SUCMALT1AA_10TO20",null,null,null,{"$f":"_xlfn.XLOOKUP(F221,'Raw Data'!$I$4:$I$5000,'Raw Data'!$D$4:$D$5000,\"*** Mnemonic not found ***\",0)","v":"*** Mnemonic not found ***"},"SUCMALT1AA_10TO20__",null,"Input",null,null,126,"G","Input!G126",{"$f":"_xlfn.XLOOKUP(F221,'Raw Data'!$I$4:$I$5000,'Raw Data'!$E$4:$E$5000,100,0)","v":100},{"$f":"IF(N221=0,_xlfn.XLOOKUP(F221,'Raw Data'!$I$4:$I$5000,'Raw Data'!$H$4:$H$5000,\"\",0),\"\")","v":""},{"$f":"IF(INDIRECT(M221) = \"\",\"\",INDIRECT(M221))","v":""},"n"]
["SUCMALT1AA_GRTR20",null,null,null,{"$f":"_xlfn.XLOOKUP(F222,'Raw Data'!$I$4:$I$5000,'Raw Data'!$D$4:$D$5000,\"*** Mnemonic not found ***\",0)","v":"*** Mnemonic not found ***"},"SUCMALT1AA_GRTR20__",null,"Input",null,null,127,"G","Input!G127",{"$f":"_xlfn.XLOOKUP(F222,'Raw Data'!$I$4:$I$5000,'Raw Data'!$E$4:$E$5000,100,0)","v":100},{"$f":"IF(N222=0,_xlfn.XLOOKUP(F222,'Raw Data'!$I$4:$I$5000,'Raw Data'!$H$4:$H$5000,\"\",0),\"\")","v":""},{"$f":"IF(INDIRECT(M222) = \"\",\"\",INDIRECT(M222))","v":""},"n"]
["SUCMALT1A_LESS1",null,null,null,{"$f":"_xlfn.XLOOKUP(F223,'Raw Data'!$I$4:$I$5000,'Raw Data'!$D$4:$D$5000,\"*** Mnemonic not found ***\",0)","v":"*** Mnemonic not found ***"},"SUCMALT1A_LESS1__",null,"Input",null,null,{"$f":"K218","v":123},"H","Input!H123",{"$f":"_xlfn.XLOOKUP(F223,'Raw Data'!$I$4:$I$5000,'Raw Data'!$E$4:$E$5000,100,0)","v":100},{"$f":"IF(N223=0,_xlfn.XLOOKUP(F223,'Raw Data'!$I$4:$I$5000,'Raw Data'!$H$4:$H$5000,\"\",0),\"\")","v":""},{"$f":"IF(INDIRECT(M223) = \"\",\"\",INDIRECT(M223))","v":""},"n"]
["SUCMALT1A_1TO5",null,null,null,{"$f":"_xlfn.XLOOKUP(F224,'Raw Data'!$I$4:$I$5000,'Raw Data'!$D$4:$D$5000,\"*** Mnemonic not found ***\",0)","v":"*** Mnemonic not found ***"},"SUCMALT1A_1TO5__",null,"Input",null,null,{"$f":"K223+1","v":124},{"$f":"L223","v":"H"},"Input!H124",{"$f":"_xlfn.XLOOKUP(F224,'Raw Data'!$I$4:$I$5000,'Raw Data'!$E$4:$E$5000,100,0)","v":100},{"$f":"IF(N224=0,_xlfn.XLOOKUP(F224,'Raw Data'!$I$4:$I$5000,'Raw Data'!$H$4:$H$5000,\"\",0),\"\")","v":""},{"$f":"IF(INDIRECT(M224) = \"\",\"\",INDIRECT(M224))","v":""},"n"]
["SUCMALT1A_5TO10",null,null,null,{"$f":"_xlfn.XLOOKUP(F225,'Raw Data'!$I$4:$I$5000,'Raw Data'!$D$4:$D$5000,\"*** Mnemonic not found ***\",0)","v":"*** Mnemonic not found ***"},"SUCMALT1A_5TO10__",null,"Input",null,null,{"$f":"K224+1","v":125},"H","Input!H125",{"$f":"_xlfn.XLOOKUP(F225,'Raw Data'!$I$4:$I$5000,'Raw Data'!$E$4:$E$5000,100,0)","v":100},{"$f":"IF(N225=0,_xlfn.XLOOKUP(F225,'Raw Data'!$I$4:$I$5000,'Raw Data'!$H$4:$H$5000,\"\",0),\"\")","v":""},{"$f":"IF(INDIRECT(M225) = \"\",\"\",INDIRECT(M225))","v":""},"n"]
["SUCMALT1A_10TO20",null,null,null,{"$f":"_xlfn.XLOOKUP(F226,'Raw Data'!$I$4:$I$5000,'Raw Data'!$D$4:$D$5000,\"*** Mnemonic not found ***\",0)","v":"*** Mnemonic not found ***"},"SUCMALT1A_10TO20__",null,"Input",null,null,126,"H","Input!H126",{"$f":"_xlfn.XLOOKUP(F226,'Raw Data'!$I$4:$I$5000,'Raw Data'!$E$4:$E$5000,100,0)","v":100},{"$f":"IF(N226=0,_xlfn.XLOOKUP(F226,'Raw Data'!$I$4:$I$5000,'Raw Data'!$H$4:$H$5000,\"\",0),\"\")","v":""},{"$f":"IF(INDIRECT(M226) = \"\",\"\",INDIRECT(M226))","v":""},"n"]
["SUCMALT1A_GRTR20",null,null,null,{"$f":"_xlfn.XLOOKUP(F227,'Raw Data'!$I$4:$I$5000,'Raw Data'!$D$4:$D$5000,\"*** Mnemonic not found ***\",0)","v":"*** Mnemonic not found ***"},"SUCMALT1A_GRTR20__",null,"Input",null,null,127,"H","Input!H127",{"$f":"_xlfn.XLOOKUP(F227,'Raw Data'!$I$4:$I$5000,'Raw Data'!$E$4:$E$5000,100,0)","v":100},{"$f":"IF(N227=0,_xlfn.XLOOKUP(F227,'Raw Data'!$I$4:$I$5000,'Raw Data'!$H$4:$H$5000,\"\",0),\"\")","v":""},{"$f":"IF(INDIRECT(M227) = \"\",\"\",INDIRECT(M227))","v":""},"n"]
["SUCMALT1BBB_LESS1",null,null,null,{"$f":"_xlfn.XLOOKUP(F228,'Raw Data'!$I$4:$I$5000,'Raw Data'!$D$4:$D$5000,\"*** Mnemonic not found ***\",0)","v":"*** Mnemonic not found ***"},"SUCMALT1BBB_LESS1__",null,"Input",null,null,{"$f":"K223","v":123},"I","Input!I123",{"$f":"_xlfn.XLOOKUP(F228,'Raw Data'!$I$4:$I$5000,'Raw Data'!$E$4:$E$5000,100,0)","v":100},{"$f":"IF(N228=0,_xlfn.XLOOKUP(F228,'Raw Data'!$I$4:$I$5000,'Raw Data'!$H$4:$H$5000,\"\",0),\"\")","v":""},{"$f":"IF(INDIRECT(M228) = \"\",\"\",INDIRECT(M228))","v":""},"n"]
["SUCMALT1BBB_1TO5",null,null,null,{"$f":"_xlfn.XLOOKUP(F229,'Raw Data'!$I$4:$I$5000,'Raw Data'!$D$4:$D$5000,\"*** Mnemonic not found ***\",0)","v":"*** Mnemonic not found ***"},"SUCMALT1BBB_1TO5__",null,"Input",null,null,{"$f":"K228+1","v":124},{"$f":"L228","v":"I"},"Input!I124",{"$f":"_xlfn.XLOOKUP(F229,'Raw Data'!$I$4:$I$5000,'Raw Data'!$E$4:$E$5000,100,0)","v":100},{"$f":"IF(N229=0,_xlfn.XLOOKUP(F229,'Raw Data'!$I$4:$I$5000,'Raw Data'!$H$4:$H$5000,\"\",0),\"\")","v":""},{"$f":"IF(INDIRECT(M229) = \"\",\"\",INDIRECT(M229))","v":""},"n"]
["SUCMALT1BBB_5TO10",null,null,null,{"$f":"_xlfn.XLOOKUP(F230,'Raw Data'!$I$4:$I$5000,'Raw Data'!$D$4:$D$5000,\"*** Mnemonic not found ***\",0)","v":"*** Mnemonic not found ***"},"SUCMALT1BBB_5TO10__",null,"Input",null,null,{"$f":"K229+1","v":125},"I","Input!I125",{"$f":"_xlfn.XLOOKUP(F230,'Raw Data'!$I$4:$I$5000,'Raw Data'!$E$4:$E$5000,100,0)","v":100},{"$f":"IF(N230=0,_xlfn.XLOOKUP(F230,'Raw Data'!$I$4:$I$5000,'Raw Data'!$H$4:$H$5000,\"\",0),\"\")","v":""},{"$f":"IF(INDIRECT(M230) = \"\",\"\",INDIRECT(M230))","v":""},"n"]
["SUCMALT1BBB_10TO20",null,null,null,{"$f":"_xlfn.XLOOKUP(F231,'Raw Data'!$I$4:$I$5000,'Raw Data'!$D$4:$D$5000,\"*** Mnemonic not found ***\",0)","v":"*** Mnemonic not found ***"},"SUCMALT1BBB_10TO20__",null,"Input",null,null,126,"I","Input!I126",{"$f":"_xlfn.XLOOKUP(F231,'Raw Data'!$I$4:$I$5000,'Raw Data'!$E$4:$E$5000,100,0)","v":100},{"$f":"IF(N231=0,_xlfn.XLOOKUP(F231,'Raw Data'!$I$4:$I$5000,'Raw Data'!$H$4:$H$5000,\"\",0),\"\")","v":""},{"$f":"IF(INDIRECT(M231) = \"\",\"\",INDIRECT(M231))","v":""},"n"]
["SUCMALT1BBB_GRTR20",null,null,null,{"$f":"_xlfn.XLOOKUP(F232,'Raw Data'!$I$4:$I$5000,'Raw Data'!$D$4:$D$5000,\"*** Mnemonic not found ***\",0)","v":"*** Mnemonic not found ***"},"SUCMALT1BBB_GRTR20__",null,"Input",null,null,127,"I","Input!I127",{"$f":"_xlfn.XLOOKUP(F232,'Raw Data'!$I$4:$I$5000,'Raw Data'!$E$4:$E$5000,100,0)","v":100},{"$f":"IF(N232=0,_xlfn.XLOOKUP(F232,'Raw Data'!$I$4:$I$5000,'Raw Data'!$H$4:$H$5000,\"\",0),\"\")","v":""},{"$f":"IF(INDIRECT(M232) = \"\",\"\",INDIRECT(M232))","v":""},"n"]
["SUCMALT1BB_LESS1",null,null,null,{"$f":"_xlfn.XLOOKUP(F233,'Raw Data'!$I$4:$I$5000,'Raw Data'!$D$4:$D$5000,\"*** Mnemonic not found ***\",0)","v":"*** Mnemonic not found ***"},"SUCMALT1BB_LESS1__",null,"Input",null,null,{"$f":"K228","v":123},"J","Input!J123",{"$f":"_xlfn.XLOOKUP(F233,'Raw Data'!$I$4:$I$5000,'Raw Data'!$E$4:$E$5000,100,0)","v":100},{"$f":"IF(N233=0,_xlfn.XLOOKUP(F233,'Raw Data'!$I$4:$I$5000,'Raw Data'!$H$4:$H$5000,\"\",0),\"\")","v":""},{"$f":"IF(INDIRECT(M233) = \"\",\"\",INDIRECT(M233))","v":""},"n"]
["SUCMALT1BB_1TO5",null,null,null,{"$f":"_xlfn.XLOOKUP(F234,'Raw Data'!$I$4:$I$5000,'Raw Data'!$D$4:$D$5000,\"*** Mnemonic not found ***\",0)","v":"*** Mnemonic not found ***"},"SUCMALT1BB_1TO5__",null,"Input",null,null,{"$f":"K233+1","v":124},{"$f":"L233","v":"J"},"Input!J124",{"$f":"_xlfn.XLOOKUP(F234,'Raw Data'!$I$4:$I$5000,'Raw Data'!$E$4:$E$5000,100,0)","v":100},{"$f":"IF(N234=0,_xlfn.XLOOKUP(F234,'Raw Data'!$I$4:$I$5000,'Raw Data'!$H$4:$H$5000,\"\",0),\"\")","v":""},{"$f":"IF(INDIRECT(M234) = \"\",\"\",INDIRECT(M234))","v":""},"n"]
["SUCMALT1BB_5TO10",null,null,null,{"$f":"_xlfn.XLOOKUP(F235,'Raw Data'!$I$4:$I$5000,'Raw Data'!$D$4:$D$5000,\"*** Mnemonic not found ***\",0)","v":"*** Mnemonic not found ***"},"SUCMALT1BB_5TO10__",null,"Input",null,null,{"$f":"K234+1","v":125},"J","Input!J125",{"$f":"_xlfn.XLOOKUP(F235,'Raw Data'!$I$4:$I$5000,'Raw Data'!$E$4:$E$5000,100,0)","v":100},{"$f":"IF(N235=0,_xlfn.XLOOKUP(F235,'Raw Data'!$I$4:$I$5000,'Raw Data'!$H$4:$H$5000,\"\",0),\"\")","v":""},{"$f":"IF(INDIRECT(M235) = \"\",\"\",INDIRECT(M235))","v":""},"n"]
["SUCMALT1BB_10TO20",null,null,null,{"$f":"_xlfn.XLOOKUP(F236,'Raw Data'!$I$4:$I$5000,'Raw Data'!$D$4:$D$5000,\"*** Mnemonic not found ***\",0)","v":"*** Mnemonic not found ***"},"SUCMALT1BB_10TO20__",null,"Input",null,null,126,"J","Input!J126",{"$f":"_xlfn.XLOOKUP(F236,'Raw Data'!$I$4:$I$5000,'Raw Data'!$E$4:$E$5000,100,0)","v":100},{"$f":"IF(N236=0,_xlfn.XLOOKUP(F236,'Raw Data'!$I$4:$I$5000,'Raw Data'!$H$4:$H$5000,\"\",0),\"\")","v":""},{"$f":"IF(INDIRECT(M236) = \"\",\"\",INDIRECT(M236))","v":""},"n"]
["SUCMALT1BB_GRTR20",null,null,null,{"$f":"_xlfn.XLOOKUP(F237,'Raw Data'!$I$4:$I$5000,'Raw Data'!$D$4:$D$5000,\"*** Mnemonic not found ***\",0)","v":"*** Mnemonic not found ***"},"SUCMALT1BB_GRTR20__",null,"Input",null,null,127,"J","Input!J127",{"$f":"_xlfn.XLOOKUP(F237,'Raw Data'!$I$4:$I$5000,'Raw Data'!$E$4:$E$5000,100,0)","v":100},{"$f":"IF(N237=0,_xlfn.XLOOKUP(F237,'Raw Data'!$I$4:$I$5000,'Raw Data'!$H$4:$H$5000,\"\",0),\"\")","v":""},{"$f":"IF(INDIRECT(M237) = \"\",\"\",INDIRECT(M237))","v":""},"n"]
["SUCMALT1B_LESS1",null,null,null,{"$f":"_xlfn.XLOOKUP(F238,'Raw Data'!$I$4:$I$5000,'Raw Data'!$D$4:$D$5000,\"*** Mnemonic not found ***\",0)","v":"*** Mnemonic not found ***"},"SUCMALT1B_LESS1__",null,"Input",null,null,{"$f":"K233","v":123},"K","Input!K123",{"$f":"_xlfn.XLOOKUP(F238,'Raw Data'!$I$4:$I$5000,'Raw Data'!$E$4:$E$5000,100,0)","v":100},{"$f":"IF(N238=0,_xlfn.XLOOKUP(F238,'Raw Data'!$I$4:$I$5000,'Raw Data'!$H$4:$H$5000,\"\",0),\"\")","v":""},{"$f":"IF(INDIRECT(M238) = \"\",\"\",INDIRECT(M238))","v":""},"n"]
["SUCMALT1B_1TO5",null,null,null,{"$f":"_xlfn.XLOOKUP(F239,'Raw Data'!$I$4:$I$5000,'Raw Data'!$D$4:$D$5000,\"*** Mnemonic not found ***\",0)","v":"*** Mnemonic not found ***"},"SUCMALT1B_1TO5__",null,"Input",null,null,{"$f":"K238+1","v":124},{"$f":"L238","v":"K"},"Input!K124",{"$f":"_xlfn.XLOOKUP(F239,'Raw Data'!$I$4:$I$5000,'Raw Data'!$E$4:$E$5000,100,0)","v":100},{"$f":"IF(N239=0,_xlfn.XLOOKUP(F239,'Raw Data'!$I$4:$I$5000,'Raw Data'!$H$4:$H$5000,\"\",0),\"\")","v":""},{"$f":"IF(INDIRECT(M239) = \"\",\"\",INDIRECT(M239))","v":""},"n"]
["SUCMALT1B_5TO10",null,null,null,{"$f":"_xlfn.XLOOKUP(F240,'Raw Data'!$I$4:$I$5000,'Raw Data'!$D$4:$D$5000,\"*** Mnemonic not found ***\",0)","v":"*** Mnemonic not found ***"},"SUCMALT1B_5TO10__",null,"Input",null,null,{"$f":"K239+1","v":125},"K","Input!K125",{"$f":"_xlfn.XLOOKUP(F240,'Raw Data'!$I$4:$I$5000,'Raw Data'!$E$4:$E$5000,100,0)","v":100},{"$f":"IF(N240=0,_xlfn.XLOOKUP(F240,'Raw Data'!$I$4:$I$5000,'Raw Data'!$H$4:$H$5000,\"\",0),\"\")","v":""},{"$f":"IF(INDIRECT(M240) = \"\",\"\",INDIRECT(M240))","v":""},"n"]
["SUCMALT1B_10TO20",null,null,null,{"$f":"_xlfn.XLOOKUP(F241,'Raw Data'!$I$4:$I$5000,'Raw Data'!$D$4:$D$5000,\"*** Mnemonic not found ***\",0)","v":"*** Mnemonic not found ***"},"SUCMALT1B_10TO20__",null,"Input",null,null,126,"K","Input!K126",{"$f":"_xlfn.XLOOKUP(F241,'Raw Data'!$I$4:$I$5000,'Raw Data'!$E$4:$E$5000,100,0)","v":100},{"$f":"IF(N241=0,_xlfn.XLOOKUP(F241,'Raw Data'!$I$4:$I$5000,'Raw Data'!$H$4:$H$5000,\"\",0),\"\")","v":""},{"$f":"IF(INDIRECT(M241) = \"\",\"\",INDIRECT(M241))","v":""},"n"]
["SUCMALT1B_GRTR20",null,null,null,{"$f":"_xlfn.XLOOKUP(F242,'Raw Data'!$I$4:$I$5000,'Raw Data'!$D$4:$D$5000,\"*** Mnemonic not found ***\",0)","v":"*** Mnemonic not found ***"},"SUCMALT1B_GRTR20__",null,"Input",null,null,127,"K","Input!K127",{"$f":"_xlfn.XLOOKUP(F242,'Raw Data'!$I$4:$I$5000,'Raw Data'!$E$4:$E$5000,100,0)","v":100},{"$f":"IF(N242=0,_xlfn.XLOOKUP(F242,'Raw Data'!$I$4:$I$5000,'Raw Data'!$H$4:$H$5000,\"\",0),\"\")","v":""},{"$f":"IF(INDIRECT(M242) = \"\",\"\",INDIRECT(M242))","v":""},"n"]
["SUCMALT1CCC_LESS1",null,null,null,{"$f":"_xlfn.XLOOKUP(F243,'Raw Data'!$I$4:$I$5000,'Raw Data'!$D$4:$D$5000,\"*** Mnemonic not found ***\",0)","v":"*** Mnemonic not found ***"},"SUCMALT1CCC_LESS1__",null,"Input",null,null,{"$f":"K238","v":123},"L","Input!L123",{"$f":"_xlfn.XLOOKUP(F243,'Raw Data'!$I$4:$I$5000,'Raw Data'!$E$4:$E$5000,100,0)","v":100},{"$f":"IF(N243=0,_xlfn.XLOOKUP(F243,'Raw Data'!$I$4:$I$5000,'Raw Data'!$H$4:$H$5000,\"\",0),\"\")","v":""},{"$f":"IF(INDIRECT(M243) = \"\",\"\",INDIRECT(M243))","v":""},"n"]
["SUCMALT1CCC_1TO5",null,null,null,{"$f":"_xlfn.XLOOKUP(F244,'Raw Data'!$I$4:$I$5000,'Raw Data'!$D$4:$D$5000,\"*** Mnemonic not found ***\",0)","v":"*** Mnemonic not found ***"},"SUCMALT1CCC_1TO5__",null,"Input",null,null,{"$f":"K243+1","v":124},{"$f":"L243","v":"L"},"Input!L124",{"$f":"_xlfn.XLOOKUP(F244,'Raw Data'!$I$4:$I$5000,'Raw Data'!$E$4:$E$5000,100,0)","v":100},{"$f":"IF(N244=0,_xlfn.XLOOKUP(F244,'Raw Data'!$I$4:$I$5000,'Raw Data'!$H$4:$H$5000,\"\",0),\"\")","v":""},{"$f":"IF(INDIRECT(M244) = \"\",\"\",INDIRECT(M244))","v":""},"n"]
["SUCMALT1CCC_5TO10",null,null,null,{"$f":"_xlfn.XLOOKUP(F245,'Raw Data'!$I$4:$I$5000,'Raw Data'!$D$4:$D$5000,\"*** Mnemonic not found ***\",0)","v":"*** Mnemonic not found ***"},"SUCMALT1CCC_5TO10__",null,"Input",null,null,{"$f":"K244+1","v":125},"L","Input!L125",{"$f":"_xlfn.XLOOKUP(F245,'Raw Data'!$I$4:$I$5000,'Raw Data'!$E$4:$E$5000,100,0)","v":100},{"$f":"IF(N245=0,_xlfn.XLOOKUP(F245,'Raw Data'!$I$4:$I$5000,'Raw Data'!$H$4:$H$5000,\"\",0),\"\")","v":""},{"$f":"IF(INDIRECT(M245) = \"\",\"\",INDIRECT(M245))","v":""},"n"]
["SUCMALT1CCC_10TO20",null,null,null,{"$f":"_xlfn.XLOOKUP(F246,'Raw Data'!$I$4:$I$5000,'Raw Data'!$D$4:$D$5000,\"*** Mnemonic not found ***\",0)","v":"*** Mnemonic not found ***"},"SUCMALT1CCC_10TO20__",null,"Input",null,null,126,"L","Input!L126",{"$f":"_xlfn.XLOOKUP(F246,'Raw Data'!$I$4:$I$5000,'Raw Data'!$E$4:$E$5000,100,0)","v":100},{"$f":"IF(N246=0,_xlfn.XLOOKUP(F246,'Raw Data'!$I$4:$I$5000,'Raw Data'!$H$4:$H$5000,\"\",0),\"\")","v":""},{"$f":"IF(INDIRECT(M246) = \"\",\"\",INDIRECT(M246))","v":""},"n"]
["SUCMALT1CCC_GRTR20",null,null,null,{"$f":"_xlfn.XLOOKUP(F247,'Raw Data'!$I$4:$I$5000,'Raw Data'!$D$4:$D$5000,\"*** Mnemonic not found ***\",0)","v":"*** Mnemonic not found ***"},"SUCMALT1CCC_GRTR20__",null,"Input",null,null,127,"L","Input!L127",{"$f":"_xlfn.XLOOKUP(F247,'Raw Data'!$I$4:$I$5000,'Raw Data'!$E$4:$E$5000,100,0)","v":100},{"$f":"IF(N247=0,_xlfn.XLOOKUP(F247,'Raw Data'!$I$4:$I$5000,'Raw Data'!$H$4:$H$5000,\"\",0),\"\")","v":""},{"$f":"IF(INDIRECT(M247) = \"\",\"\",INDIRECT(M247))","v":""},"n"]
["SUCMALT2AAA_LESS1",null,null,null,{"$f":"_xlfn.XLOOKUP(F248,'Raw Data'!$I$4:$I$5000,'Raw Data'!$D$4:$D$5000,\"*** Mnemonic not found ***\",0)","v":"*** Mnemonic not found ***"},"SUCMALT2AAA_LESS1__",null,"Input",{"$f":"ROW(section_bonds_sp_unrated_step_2_3)","v":118},{"$f":"J213+8","v":13},{"$f":"I248+J248","v":131},"F","Input!F131",{"$f":"_xlfn.XLOOKUP(F248,'Raw Data'!$I$4:$I$5000,'Raw Data'!$E$4:$E$5000,100,0)","v":100},{"$f":"IF(N248=0,_xlfn.XLOOKUP(F248,'Raw Data'!$I$4:$I$5000,'Raw Data'!$H$4:$H$5000,\"\",0),\"\")","v":""},{"$f":"IF(INDIRECT(M248) = \"\",\"\",INDIRECT(M248))","v":""},"n"]
["SUCMALT2AAA_1TO5",null,null,null,{"$f":"_xlfn.XLOOKUP(F249,'Raw Data'!$I$4:$I$5000,'Raw Data'!$D$4:$D$5000,\"*** Mnemonic not found ***\",0)","v":"*** Mnemonic not found ***"},"SUCMALT2AAA_1TO5__",null,"Input",null,null,{"$f":"K248+1","v":132},{"$f":"L248","v":"F"},"Input!F132",{"$f":"_xlfn.XLOOKUP(F249,'Raw Data'!$I$4:$I$5000,'Raw Data'!$E$4:$E$5000,100,0)","v":100},{"$f":"IF(N249=0,_xlfn.XLOOKUP(F249,'Raw Data'!$I$4:$I$5000,'Raw Data'!$H$4:$H$5000,\"\",0),\"\")","v":""},{"$f":"IF(INDIRECT(M249) = \"\",\"\",INDIRECT(M249))","v":""},"n"]
["SUCMALT2AAA_5TO10",null,null,null,{"$f":"_xlfn.XLOOKUP(F250,'Raw Data'!$I$4:$I$5000,'Raw Data'!$D$4:$D$5000,\"*** Mnemonic not found ***\",0)","v":"*** Mnemonic not found ***"},"SUCMALT2AAA_5TO10__",null,"Input",null,null,{"$f":"K249+1","v":133},"F","Input!F133",{"$f":"_xlfn.XLOOKUP(F250,'Raw Data'!$I$4:$I$5000,'Raw Data'!$E$4:$E$5000,100,0)","v":100},{"$f":"IF(N250=0,_xlfn.XLOOKUP(F250,'Raw Data'!$I$4:$I$5000,'Raw Data'!$H$4:$H$5000,\"\",0),\"\")","v":""},{"$f":"IF(INDIRECT(M250) = \"\",\"\",INDIRECT(M250))","v":""},"n"]
["SUCMALT2AAA_10TO20",null,null,null,{"$f":"_xlfn.XLOOKUP(F251,'Raw Data'!$I$4:$I$5000,'Raw Data'!$D$4:$D$5000,\"*** Mnemonic not found ***\",0)","v":"*** Mnemonic not found ***"},"SUCMALT2AAA_10TO20__",null,"Input",null,null,134,"F","Input!F134",{"$f":"_xlfn.XLOOKUP(F251,'Raw Data'!$I$4:$I$5000,'Raw Data'!$E$4:$E$5000,100,0)","v":100},{"$f":"IF(N251=0,_xlfn.XLOOKUP(F251,'Raw Data'!$I$4:$I$5000,'Raw Data'!$H$4:$H$5000,\"\",0),\"\")","v":""},{"$f":"IF(INDIRECT(M251) = \"\",\"\",INDIRECT(M251))","v":""},"n"]
["SUCMALT2AAA_GRTR20",null,null,null,{"$f":"_xlfn.XLOOKUP(F252,'Raw Data'!$I$4:$I$5000,'Raw Data'!$D$4:$D$5000,\"*** Mnemonic not found ***\",0)","v":"*** Mnemonic not found ***"},"SUCMALT2AAA_GRTR20__",null,"Input",null,null,135,"F","Input!F135",{"$f":"_xlfn.XLOOKUP(F252,'Raw Data'!$I$4:$I$5000,'Raw Data'!$E$4:$E$5000,100,0)","v":100},{"$f":"IF(N252=0,_xlfn.XLOOKUP(F252,'Raw Data'!$I$4:$I$5000,'Raw Data'!$H$4:$H$5000,\"\",0),\"\")","v":""},{"$f":"IF(INDIRECT(M252) = \"\",\"\",INDIRECT(M252))","v":""},"n"]
["SUCMALT2AA_LESS1",null,null,null,{"$f":"_xlfn.XLOOKUP(F253,'Raw Data'!$I$4:$I$5000,'Raw Data'!$D$4:$D$5000,\"*** Mnemonic not found ***\",0)","v":"*** Mnemonic not found ***"},"SUCMALT2AA_LESS1__",null,"Input",null,null,{"$f":"K248","v":131},"G","Input!G131",{"$f":"_xlfn.XLOOKUP(F253,'Raw Data'!$I$4:$I$5000,'Raw Data'!$E$4:$E$5000,100,0)","v":100},{"$f":"IF(N253=0,_xlfn.XLOOKUP(F253,'Raw Data'!$I$4:$I$5000,'Raw Data'!$H$4:$H$5000,\"\",0),\"\")","v":""},{"$f":"IF(INDIRECT(M253) = \"\",\"\",INDIRECT(M253))","v":""},"n"]
["SUCMALT2AA_1TO5",null,null,null,{"$f":"_xlfn.XLOOKUP(F254,'Raw Data'!$I$4:$I$5000,'Raw Data'!$D$4:$D$5000,\"*** Mnemonic not found ***\",0)","v":"*** Mnemonic not found ***"},"SUCMALT2AA_1TO5__",null,"Input",null,null,{"$f":"K253+1","v":132},{"$f":"L253","v":"G"},"Input!G132",{"$f":"_xlfn.XLOOKUP(F254,'Raw Data'!$I$4:$I$5000,'Raw Data'!$E$4:$E$5000,100,0)","v":100},{"$f":"IF(N254=0,_xlfn.XLOOKUP(F254,'Raw Data'!$I$4:$I$5000,'Raw Data'!$H$4:$H$5000,\"\",0),\"\")","v":""},{"$f":"IF(INDIRECT(M254) = \"\",\"\",INDIRECT(M254))","v":""},"n"]
["SUCMALT2AA_5TO10",null,null,null,{"$f":"_xlfn.XLOOKUP(F255,'Raw Data'!$I$4:$I$5000,'Raw Data'!$D$4:$D$5000,\"*** Mnemonic not found ***\",0)","v":"*** Mnemonic not found ***"},"SUCMALT2AA_5TO10__",null,"Input",null,null,{"$f":"K254+1","v":133},"G","Input!G133",{"$f":"_xlfn.XLOOKUP(F255,'Raw Data'!$I$4:$I$5000,'Raw Data'!$E$4:$E$5000,100,0)","v":100},{"$f":"IF(N255=0,_xlfn.XLOOKUP(F255,'Raw Data'!$I$4:$I$5000,'Raw Data'!$H$4:$H$5000,\"\",0),\"\")","v":""},{"$f":"IF(INDIRECT(M255) = \"\",\"\",INDIRECT(M255))","v":""},"n"]
["SUCMALT2AA_10TO20",null,null,null,{"$f":"_xlfn.XLOOKUP(F256,'Raw Data'!$I$4:$I$5000,'Raw Data'!$D$4:$D$5000,\"*** Mnemonic not found ***\",0)","v":"*** Mnemonic not found ***"},"SUCMALT2AA_10TO20__",null,"Input",null,null,134,"G","Input!G134",{"$f":"_xlfn.XLOOKUP(F256,'Raw Data'!$I$4:$I$5000,'Raw Data'!$E$4:$E$5000,100,0)","v":100},{"$f":"IF(N256=0,_xlfn.XLOOKUP(F256,'Raw Data'!$I$4:$I$5000,'Raw Data'!$H$4:$H$5000,\"\",0),\"\")","v":""},{"$f":"IF(INDIRECT(M256) = \"\",\"\",INDIRECT(M256))","v":""},"n"]
["SUCMALT2AA_GRTR20",null,null,null,{"$f":"_xlfn.XLOOKUP(F257,'Raw Data'!$I$4:$I$5000,'Raw Data'!$D$4:$D$5000,\"*** Mnemonic not found ***\",0)","v":"*** Mnemonic not found ***"},"SUCMALT2AA_GRTR20__",null,"Input",null,null,135,"G","Input!G135",{"$f":"_xlfn.XLOOKUP(F257,'Raw Data'!$I$4:$I$5000,'Raw Data'!$E$4:$E$5000,100,0)","v":100},{"$f":"IF(N257=0,_xlfn.XLOOKUP(F257,'Raw Data'!$I$4:$I$5000,'Raw Data'!$H$4:$H$5000,\"\",0),\"\")","v":""},{"$f":"IF(INDIRECT(M257) = \"\",\"\",INDIRECT(M257))","v":""},"n"]
["SUCMALT2A_LESS1",null,null,null,{"$f":"_xlfn.XLOOKUP(F258,'Raw Data'!$I$4:$I$5000,'Raw Data'!$D$4:$D$5000,\"*** Mnemonic not found ***\",0)","v":"*** Mnemonic not found ***"},"SUCMALT2A_LESS1__",null,"Input",null,null,{"$f":"K253","v":131},"H","Input!H131",{"$f":"_xlfn.XLOOKUP(F258,'Raw Data'!$I$4:$I$5000,'Raw Data'!$E$4:$E$5000,100,0)","v":100},{"$f":"IF(N258=0,_xlfn.XLOOKUP(F258,'Raw Data'!$I$4:$I$5000,'Raw Data'!$H$4:$H$5000,\"\",0),\"\")","v":""},{"$f":"IF(INDIRECT(M258) = \"\",\"\",INDIRECT(M258))","v":""},"n"]
["SUCMALT2A_1TO5",null,null,null,{"$f":"_xlfn.XLOOKUP(F259,'Raw Data'!$I$4:$I$5000,'Raw Data'!$D$4:$D$5000,\"*** Mnemonic not found ***\",0)","v":"*** Mnemonic not found ***"},"SUCMALT2A_1TO5__",null,"Input",null,null,{"$f":"K258+1","v":132},{"$f":"L258","v":"H"},"Input!H132",{"$f":"_xlfn.XLOOKUP(F259,'Raw Data'!$I$4:$I$5000,'Raw Data'!$E$4:$E$5000,100,0)","v":100},{"$f":"IF(N259=0,_xlfn.XLOOKUP(F259,'Raw Data'!$I$4:$I$5000,'Raw Data'!$H$4:$H$5000,\"\",0),\"\")","v":""},{"$f":"IF(INDIRECT(M259) = \"\",\"\",INDIRECT(M259))","v":""},"n"]
["SUCMALT2A_5TO10",null,null,null,{"$f":"_xlfn.XLOOKUP(F260,'Raw Data'!$I$4:$I$5000,'Raw Data'!$D$4:$D$5000,\"*** Mnemonic not found ***\",0)","v":"*** Mnemonic not found ***"},"SUCMALT2A_5TO10__",null,"Input",null,null,{"$f":"K259+1","v":133},"H","Input!H133",{"$f":"_xlfn.XLOOKUP(F260,'Raw Data'!$I$4:$I$5000,'Raw Data'!$E$4:$E$5000,100,0)","v":100},{"$f":"IF(N260=0,_xlfn.XLOOKUP(F260,'Raw Data'!$I$4:$I$5000,'Raw Data'!$H$4:$H$5000,\"\",0),\"\")","v":""},{"$f":"IF(INDIRECT(M260) = \"\",\"\",INDIRECT(M260))","v":""},"n"]
["SUCMALT2A_10TO20",null,null,null,{"$f":"_xlfn.XLOOKUP(F261,'Raw Data'!$I$4:$I$5000,'Raw Data'!$D$4:$D$5000,\"*** Mnemonic not found ***\",0)","v":"*** Mnemonic not found ***"},{"$f":"CONCATENATE(A261,\"_\",B261,\"_\",D261)","v":"SUCMALT2A_10TO20__"},null,"Input",null,null,134,"H","Input!H134",{"$f":"_xlfn.XLOOKUP(F261,'Raw Data'!$I$4:$I$5000,'Raw Data'!$E$4:$E$5000,100,0)","v":100},{"$f":"IF(N261=0,_xlfn.XLOOKUP(F261,'Raw Data'!$I$4:$I$5000,'Raw Data'!$H$4:$H$5000,\"\",0),\"\")","v":""},{"$f":"IF(INDIRECT(M261) = \"\",\"\",INDIRECT(M261))","v":""},"n"]
["SUCMALT2A_GRTR20",null,null,null,{"$f":"_xlfn.XLOOKUP(F262,'Raw Data'!$I$4:$I$5000,'Raw Data'!$D$4:$D$5000,\"*** Mnemonic not found ***\",0)","v":"*** Mnemonic not found ***"},"SUCMALT2A_GRTR20__",null,"Input",null,null,135,"H","Input!H135",{"$f":"_xlfn.XLOOKUP(F262,'Raw Data'!$I$4:$I$5000,'Raw Data'!$E$4:$E$5000,100,0)","v":100},{"$f":"IF(N262=0,_xlfn.XLOOKUP(F262,'Raw Data'!$I$4:$I$5000,'Raw Data'!$H$4:$H$5000,\"\",0),\"\")","v":""},{"$f":"IF(INDIRECT(M262) = \"\",\"\",INDIRECT(M262))","v":""},"n"]
["SUCMALT2BBB_LESS1",null,null,null,{"$f":"_xlfn.XLOOKUP(F263,'Raw Data'!$I$4:$I$5000,'Raw Data'!$D$4:$D$5000,\"*** Mnemonic not found ***\",0)","v":"*** Mnemonic not found ***"},"SUCMALT2BBB_LESS1__",null,"Input",null,null,{"$f":"K258","v":131},"I","Input!I131",{"$f":"_xlfn.XLOOKUP(F263,'Raw Data'!$I$4:$I$5000,'Raw Data'!$E$4:$E$5000,100,0)","v":100},{"$f":"IF(N263=0,_xlfn.XLOOKUP(F263,'Raw Data'!$I$4:$I$5000,'Raw Data'!$H$4:$H$5000,\"\",0),\"\")","v":""},{"$f":"IF(INDIRECT(M263) = \"\",\"\",INDIRECT(M263))","v":""},"n"]
["SUCMALT2BBB_1TO5",null,null,null,{"$f":"_xlfn.XLOOKUP(F264,'Raw Data'!$I$4:$I$5000,'Raw Data'!$D$4:$D$5000,\"*** Mnemonic not found ***\",0)","v":"*** Mnemonic not found ***"},"SUCMALT2BBB_1TO5__",null,"Input",null,null,{"$f":"K263+1","v":132},{"$f":"L263","v":"I"},"Input!I132",{"$f":"_xlfn.XLOOKUP(F264,'Raw Data'!$I$4:$I$5000,'Raw Data'!$E$4:$E$5000,100,0)","v":100},{"$f":"IF(N264=0,_xlfn.XLOOKUP(F264,'Raw Data'!$I$4:$I$5000,'Raw Data'!$H$4:$H$5000,\"\",0),\"\")","v":""},{"$f":"IF(INDIRECT(M264) = \"\",\"\",INDIRECT(M264))","v":""},"n"]
["SUCMALT2BBB_5TO10",null,null,null,{"$f":"_xlfn.XLOOKUP(F265,'Raw Data'!$I$4:$I$5000,'Raw Data'!$D$4:$D$5000,\"*** Mnemonic not found ***\",0)","v":"*** Mnemonic not found ***"},"SUCMALT2BBB_5TO10__",null,"Input",null,null,{"$f":"K264+1","v":133},"I","Input!I133",{"$f":"_xlfn.XLOOKUP(F265,'Raw Data'!$I$4:$I$5000,'Raw Data'!$E$4:$E$5000,100,0)","v":100},{"$f":"IF(N265=0,_xlfn.XLOOKUP(F265,'Raw Data'!$I$4:$I$5000,'Raw Data'!$H$4:$H$5000,\"\",0),\"\")","v":""},{"$f":"IF(INDIRECT(M265) = \"\",\"\",INDIRECT(M265))","v":""},"n"]
["SUCMALT2BBB_10TO20",null,null,null,{"$f":"_xlfn.XLOOKUP(F266,'Raw Data'!$I$4:$I$5000,'Raw Data'!$D$4:$D$5000,\"*** Mnemonic not found ***\",0)","v":"*** Mnemonic not found ***"},"SUCMALT2BBB_10TO20__",null,"Input",null,null,134,"I","Input!I134",{"$f":"_xlfn.XLOOKUP(F266,'Raw Data'!$I$4:$I$5000,'Raw Data'!$E$4:$E$5000,100,0)","v":100},{"$f":"IF(N266=0,_xlfn.XLOOKUP(F266,'Raw Data'!$I$4:$I$5000,'Raw Data'!$H$4:$H$5000,\"\",0),\"\")","v":""},{"$f":"IF(INDIRECT(M266) = \"\",\"\",INDIRECT(M266))","v":""},"n"]
["SUCMALT2BBB_GRTR20",null,null,null,{"$f":"_xlfn.XLOOKUP(F267,'Raw Data'!$I$4:$I$5000,'Raw Data'!$D$4:$D$5000,\"*** Mnemonic not found ***\",0)","v":"*** Mnemonic not found ***"},"SUCMALT2BBB_GRTR20__",null,"Input",null,null,135,"I","Input!I135",{"$f":"_xlfn.XLOOKUP(F267,'Raw Data'!$I$4:$I$5000,'Raw Data'!$E$4:$E$5000,100,0)","v":100},{"$f":"IF(N267=0,_xlfn.XLOOKUP(F267,'Raw Data'!$I$4:$I$5000,'Raw Data'!$H$4:$H$5000,\"\",0),\"\")","v":""},{"$f":"IF(INDIRECT(M267) = \"\",\"\",INDIRECT(M267))","v":""},"n"]
["SUCMALT2BB_LESS1",null,null,null,{"$f":"_xlfn.XLOOKUP(F268,'Raw Data'!$I$4:$I$5000,'Raw Data'!$D$4:$D$5000,\"*** Mnemonic not found ***\",0)","v":"*** Mnemonic not found ***"},"SUCMALT2BB_LESS1__",null,"Input",null,null,{"$f":"K263","v":131},"J","Input!J131",{"$f":"_xlfn.XLOOKUP(F268,'Raw Data'!$I$4:$I$5000,'Raw Data'!$E$4:$E$5000,100,0)","v":100},{"$f":"IF(N268=0,_xlfn.XLOOKUP(F268,'Raw Data'!$I$4:$I$5000,'Raw Data'!$H$4:$H$5000,\"\",0),\"\")","v":""},{"$f":"IF(INDIRECT(M268) = \"\",\"\",INDIRECT(M268))","v":""},"n"]
["SUCMALT2BB_1TO5",null,null,null,{"$f":"_xlfn.XLOOKUP(F269,'Raw Data'!$I$4:$I$5000,'Raw Data'!$D$4:$D$5000,\"*** Mnemonic not found ***\",0)","v":"*** Mnemonic not found ***"},"SUCMALT2BB_1TO5__",null,"Input",null,null,{"$f":"K268+1","v":132},{"$f":"L268","v":"J"},"Input!J132",{"$f":"_xlfn.XLOOKUP(F269,'Raw Data'!$I$4:$I$5000,'Raw Data'!$E$4:$E$5000,100,0)","v":100},{"$f":"IF(N269=0,_xlfn.XLOOKUP(F269,'Raw Data'!$I$4:$I$5000,'Raw Data'!$H$4:$H$5000,\"\",0),\"\")","v":""},{"$f":"IF(INDIRECT(M269) = \"\",\"\",INDIRECT(M269))","v":""},"n"]
["SUCMALT2BB_5TO10",null,null,null,{"$f":"_xlfn.XLOOKUP(F270,'Raw Data'!$I$4:$I$5000,'Raw Data'!$D$4:$D$5000,\"*** Mnemonic not found ***\",0)","v":"*** Mnemonic not found ***"},"SUCMALT2BB_5TO10__",null,"Input",null,null,{"$f":"K269+1","v":133},"J","Input!J133",{"$f":"_xlfn.XLOOKUP(F270,'Raw Data'!$I$4:$I$5000,'Raw Data'!$E$4:$E$5000,100,0)","v":100},{"$f":"IF(N270=0,_xlfn.XLOOKUP(F270,'Raw Data'!$I$4:$I$5000,'Raw Data'!$H$4:$H$5000,\"\",0),\"\")","v":""},{"$f":"IF(INDIRECT(M270) = \"\",\"\",INDIRECT(M270))","v":""},"n"]
["SUCMALT2BB_10TO20",null,null,null,{"$f":"_xlfn.XLOOKUP(F271,'Raw Data'!$I$4:$I$5000,'Raw Data'!$D$4:$D$5000,\"*** Mnemonic not found ***\",0)","v":"*** Mnemonic not found ***"},"SUCMALT2BB_10TO20__",null,"Input",null,null,134,"J",{"$f":"CONCATENATE(H271,\"!\",L271,K271)","v":"Input!J134"},{"$f":"_xlfn.XLOOKUP(F271,'Raw Data'!$I$4:$I$5000,'Raw Data'!$E$4:$E$5000,100,0)","v":100},{"$f":"IF(N271=0,_xlfn.XLOOKUP(F271,'Raw Data'!$I$4:$I$5000,'Raw Data'!$H$4:$H$5000,\"\",0),\"\")","v":""},{"$f":"IF(INDIRECT(M271) = \"\",\"\",INDIRECT(M271))","v":""},"n"]
["SUCMALT2BB_GRTR20",null,null,null,{"$f":"_xlfn.XLOOKUP(F272,'Raw Data'!$I$4:$I$5000,'Raw Data'!$D$4:$D$5000,\"*** Mnemonic not found ***\",0)","v":"*** Mnemonic not found ***"},"SUCMALT2BB_GRTR20__",null,"Input",null,null,135,"J","Input!J135",{"$f":"_xlfn.XLOOKUP(F272,'Raw Data'!$I$4:$I$5000,'Raw Data'!$E$4:$E$5000,100,0)","v":100},{"$f":"IF(N272=0,_xlfn.XLOOKUP(F272,'Raw Data'!$I$4:$I$5000,'Raw Data'!$H$4:$H$5000,\"\",0),\"\")","v":""},{"$f":"IF(INDIRECT(M272) = \"\",\"\",INDIRECT(M272))","v":""},"n"]
["SUCMALT2B_LESS1",null,null,null,{"$f":"_xlfn.XLOOKUP(F273,'Raw Data'!$I$4:$I$5000,'Raw Data'!$D$4:$D$5000,\"*** Mnemonic not found ***\",0)","v":"*** Mnemonic not found ***"},"SUCMALT2B_LESS1__",null,"Input",null,null,{"$f":"K268","v":131},"K","Input!K131",{"$f":"_xlfn.XLOOKUP(F273,'Raw Data'!$I$4:$I$5000,'Raw Data'!$E$4:$E$5000,100,0)","v":100},{"$f":"IF(N273=0,_xlfn.XLOOKUP(F273,'Raw Data'!$I$4:$I$5000,'Raw Data'!$H$4:$H$5000,\"\",0),\"\")","v":""},{"$f":"IF(INDIRECT(M273) = \"\",\"\",INDIRECT(M273))","v":""},"n"]
["SUCMALT2B_1TO5",null,null,null,{"$f":"_xlfn.XLOOKUP(F274,'Raw Data'!$I$4:$I$5000,'Raw Data'!$D$4:$D$5000,\"*** Mnemonic not found ***\",0)","v":"*** Mnemonic not found ***"},"SUCMALT2B_1TO5__",null,"Input",null,null,{"$f":"K273+1","v":132},{"$f":"L273","v":"K"},"Input!K132",{"$f":"_xlfn.XLOOKUP(F274,'Raw Data'!$I$4:$I$5000,'Raw Data'!$E$4:$E$5000,100,0)","v":100},{"$f":"IF(N274=0,_xlfn.XLOOKUP(F274,'Raw Data'!$I$4:$I$5000,'Raw Data'!$H$4:$H$5000,\"\",0),\"\")","v":""},{"$f":"IF(INDIRECT(M274) = \"\",\"\",INDIRECT(M274))","v":""},"n"]
["SUCMALT2B_5TO10",null,null,null,{"$f":"_xlfn.XLOOKUP(F275,'Raw Data'!$I$4:$I$5000,'Raw Data'!$D$4:$D$5000,\"*** Mnemonic not found ***\",0)","v":"*** Mnemonic not found ***"},"SUCMALT2B_5TO10__",null,"Input",null,null,{"$f":"K274+1","v":133},"K","Input!K133",{"$f":"_xlfn.XLOOKUP(F275,'Raw Data'!$I$4:$I$5000,'Raw Data'!$E$4:$E$5000,100,0)","v":100},{"$f":"IF(N275=0,_xlfn.XLOOKUP(F275,'Raw Data'!$I$4:$I$5000,'Raw Data'!$H$4:$H$5000,\"\",0),\"\")","v":""},{"$f":"IF(INDIRECT(M275) = \"\",\"\",INDIRECT(M275))","v":""},"n"]
["SUCMALT2B_10TO20",null,null,null,{"$f":"_xlfn.XLOOKUP(F276,'Raw Data'!$I$4:$I$5000,'Raw Data'!$D$4:$D$5000,\"*** Mnemonic not found ***\",0)","v":"*** Mnemonic not found ***"},"SUCMALT2B_10TO20__",null,"Input",null,null,134,"K","Input!K134",{"$f":"_xlfn.XLOOKUP(F276,'Raw Data'!$I$4:$I$5000,'Raw Data'!$E$4:$E$5000,100,0)","v":100},{"$f":"IF(N276=0,_xlfn.XLOOKUP(F276,'Raw Data'!$I$4:$I$5000,'Raw Data'!$H$4:$H$5000,\"\",0),\"\")","v":""},{"$f":"IF(INDIRECT(M276) = \"\",\"\",INDIRECT(M276))","v":""},"n"]
["SUCMALT2B_GRTR20",null,null,null,{"$f":"_xlfn.XLOOKUP(F277,'Raw Data'!$I$4:$I$5000,'Raw Data'!$D$4:$D$5000,\"*** Mnemonic not found ***\",0)","v":"*** Mnemonic not found ***"},"SUCMALT2B_GRTR20__",null,"Input",null,null,135,"K","Input!K135",{"$f":"_xlfn.XLOOKUP(F277,'Raw Data'!$I$4:$I$5000,'Raw Data'!$E$4:$E$5000,100,0)","v":100},{"$f":"IF(N277=0,_xlfn.XLOOKUP(F277,'Raw Data'!$I$4:$I$5000,'Raw Data'!$H$4:$H$5000,\"\",0),\"\")","v":""},{"$f":"IF(INDIRECT(M277) = \"\",\"\",INDIRECT(M277))","v":""},"n"]
["SUCMALT2CCC_LESS1",null,null,null,{"$f":"_xlfn.XLOOKUP(F278,'Raw Data'!$I$4:$I$5000,'Raw Data'!$D$4:$D$5000,\"*** Mnemonic not found ***\",0)","v":"*** Mnemonic not found ***"},"SUCMALT2CCC_LESS1__",null,"Input",null,null,{"$f":"K273","v":131},"L","Input!L131",{"$f":"_xlfn.XLOOKUP(F278,'Raw Data'!$I$4:$I$5000,'Raw Data'!$E$4:$E$5000,100,0)","v":100},{"$f":"IF(N278=0,_xlfn.XLOOKUP(F278,'Raw Data'!$I$4:$I$5000,'Raw Data'!$H$4:$H$5000,\"\",0),\"\")","v":""},{"$f":"IF(INDIRECT(M278) = \"\",\"\",INDIRECT(M278))","v":""},"n"]
["SUCMALT2CCC_1TO5",null,null,null,{"$f":"_xlfn.XLOOKUP(F279,'Raw Data'!$I$4:$I$5000,'Raw Data'!$D$4:$D$5000,\"*** Mnemonic not found ***\",0)","v":"*** Mnemonic not found ***"},"SUCMALT2CCC_1TO5__",null,"Input",null,null,{"$f":"K278+1","v":132},{"$f":"L278","v":"L"},"Input!L132",{"$f":"_xlfn.XLOOKUP(F279,'Raw Data'!$I$4:$I$5000,'Raw Data'!$E$4:$E$5000,100,0)","v":100},{"$f":"IF(N279=0,_xlfn.XLOOKUP(F279,'Raw Data'!$I$4:$I$5000,'Raw Data'!$H$4:$H$5000,\"\",0),\"\")","v":""},{"$f":"IF(INDIRECT(M279) = \"\",\"\",INDIRECT(M279))","v":""},"n"]
["SUCMALT2CCC_5TO10",null,null,null,{"$f":"_xlfn.XLOOKUP(F280,'Raw Data'!$I$4:$I$5000,'Raw Data'!$D$4:$D$5000,\"*** Mnemonic not found ***\",0)","v":"*** Mnemonic not found ***"},"SUCMALT2CCC_5TO10__",null,"Input",null,null,{"$f":"K279+1","v":133},"L","Input!L133",{"$f":"_xlfn.XLOOKUP(F280,'Raw Data'!$I$4:$I$5000,'Raw Data'!$E$4:$E$5000,100,0)","v":100},{"$f":"IF(N280=0,_xlfn.XLOOKUP(F280,'Raw Data'!$I$4:$I$5000,'Raw Data'!$H$4:$H$5000,\"\",0),\"\")","v":""},{"$f":"IF(INDIRECT(M280) = \"\",\"\",INDIRECT(M280))","v":""},"n"]
["SUCMALT2CCC_10TO20",null,null,null,{"$f":"_xlfn.XLOOKUP(F281,'Raw Data'!$I$4:$I$5000,'Raw Data'!$D$4:$D$5000,\"*** Mnemonic not found ***\",0)","v":"*** Mnemonic not found ***"},"SUCMALT2CCC_10TO20__",null,"Input",null,null,134,"L","Input!L134",{"$f":"_xlfn.XLOOKUP(F281,'Raw Data'!$I$4:$I$5000,'Raw Data'!$E$4:$E$5000,100,0)","v":100},{"$f":"IF(N281=0,_xlfn.XLOOKUP(F281,'Raw Data'!$I$4:$I$5000,'Raw Data'!$H$4:$H$5000,\"\",0),\"\")","v":""},{"$f":"IF(INDIRECT(M281) = \"\",\"\",INDIRECT(M281))","v":""},"n"]
["SUCMALT2CCC_GRTR20",null,null,null,{"$f":"_xlfn.XLOOKUP(F282,'Raw Data'!$I$4:$I$5000,'Raw Data'!$D$4:$D$5000,\"*** Mnemonic not found ***\",0)","v":"*** Mnemonic not found ***"},"SUCMALT2CCC_GRTR20__",null,"Input",null,null,135,"L","Input!L135",{"$f":"_xlfn.XLOOKUP(F282,'Raw Data'!$I$4:$I$5000,'Raw Data'!$E$4:$E$5000,100,0)","v":100},{"$f":"IF(N282=0,_xlfn.XLOOKUP(F282,'Raw Data'!$I$4:$I$5000,'Raw Data'!$H$4:$H$5000,\"\",0),\"\")","v":""},{"$f":"IF(INDIRECT(M282) = \"\",\"\",INDIRECT(M282))","v":""},"n"]
["SUCMALT3AAA_LESS1",null,null,null,{"$f":"_xlfn.XLOOKUP(F283,'Raw Data'!$I$4:$I$5000,'Raw Data'!$D$4:$D$5000,\"*** Mnemonic not found ***\",0)","v":"*** Mnemonic not found ***"},"SUCMALT3AAA_LESS1__",null,"Input",{"$f":"ROW(section_bonds_sp_unrated_step_2_3)","v":118},{"$f":"J248+8","v":21},{"$f":"I283+J283","v":139},"F","Input!F139",{"$f":"_xlfn.XLOOKUP(F283,'Raw Data'!$I$4:$I$5000,'Raw Data'!$E$4:$E$5000,100,0)","v":100},{"$f":"IF(N283=0,_xlfn.XLOOKUP(F283,'Raw Data'!$I$4:$I$5000,'Raw Data'!$H$4:$H$5000,\"\",0),\"\")","v":""},{"$f":"IF(INDIRECT(M283) = \"\",\"\",INDIRECT(M283))","v":""},"n"]
["SUCMALT3AAA_1TO5",null,null,null,{"$f":"_xlfn.XLOOKUP(F284,'Raw Data'!$I$4:$I$5000,'Raw Data'!$D$4:$D$5000,\"*** Mnemonic not found ***\",0)","v":"*** Mnemonic not found ***"},"SUCMALT3AAA_1TO5__",null,"Input",null,null,{"$f":"K283+1","v":140},{"$f":"L283","v":"F"},"Input!F140",{"$f":"_xlfn.XLOOKUP(F284,'Raw Data'!$I$4:$I$5000,'Raw Data'!$E$4:$E$5000,100,0)","v":100},{"$f":"IF(N284=0,_xlfn.XLOOKUP(F284,'Raw Data'!$I$4:$I$5000,'Raw Data'!$H$4:$H$5000,\"\",0),\"\")","v":""},{"$f":"IF(INDIRECT(M284) = \"\",\"\",INDIRECT(M284))","v":""},"n"]
["SUCMALT3AAA_5TO10",null,null,null,{"$f":"_xlfn.XLOOKUP(F285,'Raw Data'!$I$4:$I$5000,'Raw Data'!$D$4:$D$5000,\"*** Mnemonic not found ***\",0)","v":"*** Mnemonic not found ***"},"SUCMALT3AAA_5TO10__",null,"Input",null,null,{"$f":"K284+1","v":141},"F","Input!F141",{"$f":"_xlfn.XLOOKUP(F285,'Raw Data'!$I$4:$I$5000,'Raw Data'!$E$4:$E$5000,100,0)","v":100},{"$f":"IF(N285=0,_xlfn.XLOOKUP(F285,'Raw Data'!$I$4:$I$5000,'Raw Data'!$H$4:$H$5000,\"\",0),\"\")","v":""},{"$f":"IF(INDIRECT(M285) = \"\",\"\",INDIRECT(M285))","v":""},"n"]
["SUCMALT3AAA_10TO20",null,null,null,{"$f":"_xlfn.XLOOKUP(F286,'Raw Data'!$I$4:$I$5000,'Raw Data'!$D$4:$D$5000,\"*** Mnemonic not found ***\",0)","v":"*** Mnemonic not found ***"},"SUCMALT3AAA_10TO20__",null,"Input",null,null,142,"F","Input!F142",{"$f":"_xlfn.XLOOKUP(F286,'Raw Data'!$I$4:$I$5000,'Raw Data'!$E$4:$E$5000,100,0)","v":100},{"$f":"IF(N286=0,_xlfn.XLOOKUP(F286,'Raw Data'!$I$4:$I$5000,'Raw Data'!$H$4:$H$5000,\"\",0),\"\")","v":""},{"$f":"IF(INDIRECT(M286) = \"\",\"\",INDIRECT(M286))","v":""},"n"]
["SUCMALT3AAA_GRTR20",null,null,null,{"$f":"_xlfn.XLOOKUP(F287,'Raw Data'!$I$4:$I$5000,'Raw Data'!$D$4:$D$5000,\"*** Mnemonic not found ***\",0)","v":"*** Mnemonic not found ***"},"SUCMALT3AAA_GRTR20__",null,"Input",null,null,143,"F","Input!F143",{"$f":"_xlfn.XLOOKUP(F287,'Raw Data'!$I$4:$I$5000,'Raw Data'!$E$4:$E$5000,100,0)","v":100},{"$f":"IF(N287=0,_xlfn.XLOOKUP(F287,'Raw Data'!$I$4:$I$5000,'Raw Data'!$H$4:$H$5000,\"\",0),\"\")","v":""},{"$f":"IF(INDIRECT(M287) = \"\",\"\",INDIRECT(M287))","v":""},"n"]
["SUCMALT3AA_LESS1",null,null,null,{"$f":"_xlfn.XLOOKUP(F288,'Raw Data'!$I$4:$I$5000,'Raw Data'!$D$4:$D$5000,\"*** Mnemonic not found ***\",0)","v":"*** Mnemonic not found ***"},"SUCMALT3AA_LESS1__",null,"Input",null,null,{"$f":"K283","v":139},"G","Input!G139",{"$f":"_xlfn.XLOOKUP(F288,'Raw Data'!$I$4:$I$5000,'Raw Data'!$E$4:$E$5000,100,0)","v":100},{"$f":"IF(N288=0,_xlfn.XLOOKUP(F288,'Raw Data'!$I$4:$I$5000,'Raw Data'!$H$4:$H$5000,\"\",0),\"\")","v":""},{"$f":"IF(INDIRECT(M288) = \"\",\"\",INDIRECT(M288))","v":""},"n"]
["SUCMALT3AA_1TO5",null,null,null,{"$f":"_xlfn.XLOOKUP(F289,'Raw Data'!$I$4:$I$5000,'Raw Data'!$D$4:$D$5000,\"*** Mnemonic not found ***\",0)","v":"*** Mnemonic not found ***"},"SUCMALT3AA_1TO5__",null,"Input",null,null,{"$f":"K288+1","v":140},{"$f":"L288","v":"G"},"Input!G140",{"$f":"_xlfn.XLOOKUP(F289,'Raw Data'!$I$4:$I$5000,'Raw Data'!$E$4:$E$5000,100,0)","v":100},{"$f":"IF(N289=0,_xlfn.XLOOKUP(F289,'Raw Data'!$I$4:$I$5000,'Raw Data'!$H$4:$H$5000,\"\",0),\"\")","v":""},{"$f":"IF(INDIRECT(M289) = \"\",\"\",INDIRECT(M289))","v":""},"n"]
["SUCMALT3AA_5TO10",null,null,null,{"$f":"_xlfn.XLOOKUP(F290,'Raw Data'!$I$4:$I$5000,'Raw Data'!$D$4:$D$5000,\"*** Mnemonic not found ***\",0)","v":"*** Mnemonic not found ***"},"SUCMALT3AA_5TO10__",null,"Input",null,null,{"$f":"K289+1","v":141},"G","Input!G141",{"$f":"_xlfn.XLOOKUP(F290,'Raw Data'!$I$4:$I$5000,'Raw Data'!$E$4:$E$5000,100,0)","v":100},{"$f":"IF(N290=0,_xlfn.XLOOKUP(F290,'Raw Data'!$I$4:$I$5000,'Raw Data'!$H$4:$H$5000,\"\",0),\"\")","v":""},{"$f":"IF(INDIRECT(M290) = \"\",\"\",INDIRECT(M290))","v":""},"n"]
["SUCMALT3AA_10TO20",null,null,null,{"$f":"_xlfn.XLOOKUP(F291,'Raw Data'!$I$4:$I$5000,'Raw Data'!$D$4:$D$5000,\"*** Mnemonic not found ***\",0)","v":"*** Mnemonic not found ***"},"SUCMALT3AA_10TO20__",null,"Input",null,null,142,"G","Input!G142",{"$f":"_xlfn.XLOOKUP(F291,'Raw Data'!$I$4:$I$5000,'Raw Data'!$E$4:$E$5000,100,0)","v":100},{"$f":"IF(N291=0,_xlfn.XLOOKUP(F291,'Raw Data'!$I$4:$I$5000,'Raw Data'!$H$4:$H$5000,\"\",0),\"\")","v":""},{"$f":"IF(INDIRECT(M291) = \"\",\"\",INDIRECT(M291))","v":""},"n"]
["SUCMALT3AA_GRTR20",null,null,null,{"$f":"_xlfn.XLOOKUP(F292,'Raw Data'!$I$4:$I$5000,'Raw Data'!$D$4:$D$5000,\"*** Mnemonic not found ***\",0)","v":"*** Mnemonic not found ***"},"SUCMALT3AA_GRTR20__",null,"Input",null,null,143,"G","Input!G143",{"$f":"_xlfn.XLOOKUP(F292,'Raw Data'!$I$4:$I$5000,'Raw Data'!$E$4:$E$5000,100,0)","v":100},{"$f":"IF(N292=0,_xlfn.XLOOKUP(F292,'Raw Data'!$I$4:$I$5000,'Raw Data'!$H$4:$H$5000,\"\",0),\"\")","v":""},{"$f":"IF(INDIRECT(M292) = \"\",\"\",INDIRECT(M292))","v":""},"n"]
["SUCMALT3A_LESS1",null,null,null,{"$f":"_xlfn.XLOOKUP(F293,'Raw Data'!$I$4:$I$5000,'Raw Data'!$D$4:$D$5000,\"*** Mnemonic not found ***\",0)","v":"*** Mnemonic not found ***"},"SUCMALT3A_LESS1__",null,"Input",null,null,{"$f":"K288","v":139},"H","Input!H139",{"$f":"_xlfn.XLOOKUP(F293,'Raw Data'!$I$4:$I$5000,'Raw Data'!$E$4:$E$5000,100,0)","v":100},{"$f":"IF(N293=0,_xlfn.XLOOKUP(F293,'Raw Data'!$I$4:$I$5000,'Raw Data'!$H$4:$H$5000,\"\",0),\"\")","v":""},{"$f":"IF(INDIRECT(M293) = \"\",\"\",INDIRECT(M293))","v":""},"n"]
["SUCMALT3A_1TO5",null,null,null,{"$f":"_xlfn.XLOOKUP(F294,'Raw Data'!$I$4:$I$5000,'Raw Data'!$D$4:$D$5000,\"*** Mnemonic not found ***\",0)","v":"*** Mnemonic not found ***"},"SUCMALT3A_1TO5__",null,"Input",null,null,{"$f":"K293+1","v":140},{"$f":"L293","v":"H"},"Input!H140",{"$f":"_xlfn.XLOOKUP(F294,'Raw Data'!$I$4:$I$5000,'Raw Data'!$E$4:$E$5000,100,0)","v":100},{"$f":"IF(N294=0,_xlfn.XLOOKUP(F294,'Raw Data'!$I$4:$I$5000,'Raw Data'!$H$4:$H$5000,\"\",0),\"\")","v":""},{"$f":"IF(INDIRECT(M294) = \"\",\"\",INDIRECT(M294))","v":""},"n"]
["SUCMALT3A_5TO10",null,null,null,{"$f":"_xlfn.XLOOKUP(F295,'Raw Data'!$I$4:$I$5000,'Raw Data'!$D$4:$D$5000,\"*** Mnemonic not found ***\",0)","v":"*** Mnemonic not found ***"},"SUCMALT3A_5TO10__",null,"Input",null,null,{"$f":"K294+1","v":141},"H","Input!H141",{"$f":"_xlfn.XLOOKUP(F295,'Raw Data'!$I$4:$I$5000,'Raw Data'!$E$4:$E$5000,100,0)","v":100},{"$f":"IF(N295=0,_xlfn.XLOOKUP(F295,'Raw Data'!$I$4:$I$5000,'Raw Data'!$H$4:$H$5000,\"\",0),\"\")","v":""},{"$f":"IF(INDIRECT(M295) = \"\",\"\",INDIRECT(M295))","v":""},"n"]
["SUCMALT3A_10TO20",null,null,null,{"$f":"_xlfn.XLOOKUP(F296,'Raw Data'!$I$4:$I$5000,'Raw Data'!$D$4:$D$5000,\"*** Mnemonic not found ***\",0)","v":"*** Mnemonic not found ***"},"SUCMALT3A_10TO20__",null,"Input",null,null,142,"H","Input!H142",{"$f":"_xlfn.XLOOKUP(F296,'Raw Data'!$I$4:$I$5000,'Raw Data'!$E$4:$E$5000,100,0)","v":100},{"$f":"IF(N296=0,_xlfn.XLOOKUP(F296,'Raw Data'!$I$4:$I$5000,'Raw Data'!$H$4:$H$5000,\"\",0),\"\")","v":""},{"$f":"IF(INDIRECT(M296) = \"\",\"\",INDIRECT(M296))","v":""},"n"]
["SUCMALT3A_GRTR20",null,null,null,{"$f":"_xlfn.XLOOKUP(F297,'Raw Data'!$I$4:$I$5000,'Raw Data'!$D$4:$D$5000,\"*** Mnemonic not found ***\",0)","v":"*** Mnemonic not found ***"},"SUCMALT3A_GRTR20__",null,"Input",null,null,143,"H","Input!H143",{"$f":"_xlfn.XLOOKUP(F297,'Raw Data'!$I$4:$I$5000,'Raw Data'!$E$4:$E$5000,100,0)","v":100},{"$f":"IF(N297=0,_xlfn.XLOOKUP(F297,'Raw Data'!$I$4:$I$5000,'Raw Data'!$H$4:$H$5000,\"\",0),\"\")","v":""},{"$f":"IF(INDIRECT(M297) = \"\",\"\",INDIRECT(M297))","v":""},"n"]
["SUCMALT3BBB_LESS1",null,null,null,{"$f":"_xlfn.XLOOKUP(F298,'Raw Data'!$I$4:$I$5000,'Raw Data'!$D$4:$D$5000,\"*** Mnemonic not found ***\",0)","v":"*** Mnemonic not found ***"},"SUCMALT3BBB_LESS1__",null,"Input",null,null,{"$f":"K293","v":139},"I","Input!I139",{"$f":"_xlfn.XLOOKUP(F298,'Raw Data'!$I$4:$I$5000,'Raw Data'!$E$4:$E$5000,100,0)","v":100},{"$f":"IF(N298=0,_xlfn.XLOOKUP(F298,'Raw Data'!$I$4:$I$5000,'Raw Data'!$H$4:$H$5000,\"\",0),\"\")","v":""},{"$f":"IF(INDIRECT(M298) = \"\",\"\",INDIRECT(M298))","v":""},"n"]
["SUCMALT3BBB_1TO5",null,null,null,{"$f":"_xlfn.XLOOKUP(F299,'Raw Data'!$I$4:$I$5000,'Raw Data'!$D$4:$D$5000,\"*** Mnemonic not found ***\",0)","v":"*** Mnemonic not found ***"},"SUCMALT3BBB_1TO5__",null,"Input",null,null,{"$f":"K298+1","v":140},{"$f":"L298","v":"I"},"Input!I140",{"$f":"_xlfn.XLOOKUP(F299,'Raw Data'!$I$4:$I$5000,'Raw Data'!$E$4:$E$5000,100,0)","v":100},{"$f":"IF(N299=0,_xlfn.XLOOKUP(F299,'Raw Data'!$I$4:$I$5000,'Raw Data'!$H$4:$H$5000,\"\",0),\"\")","v":""},{"$f":"IF(INDIRECT(M299) = \"\",\"\",INDIRECT(M299))","v":""},"n"]
["SUCMALT3BBB_5TO10",null,null,null,{"$f":"_xlfn.XLOOKUP(F300,'Raw Data'!$I$4:$I$5000,'Raw Data'!$D$4:$D$5000,\"*** Mnemonic not found ***\",0)","v":"*** Mnemonic not found ***"},"SUCMALT3BBB_5TO10__",null,"Input",null,null,{"$f":"K299+1","v":141},"I","Input!I141",{"$f":"_xlfn.XLOOKUP(F300,'Raw Data'!$I$4:$I$5000,'Raw Data'!$E$4:$E$5000,100,0)","v":100},{"$f":"IF(N300=0,_xlfn.XLOOKUP(F300,'Raw Data'!$I$4:$I$5000,'Raw Data'!$H$4:$H$5000,\"\",0),\"\")","v":""},{"$f":"IF(INDIRECT(M300) = \"\",\"\",INDIRECT(M300))","v":""},"n"]
["SUCMALT3BBB_10TO20",null,null,null,{"$f":"_xlfn.XLOOKUP(F301,'Raw Data'!$I$4:$I$5000,'Raw Data'!$D$4:$D$5000,\"*** Mnemonic not found ***\",0)","v":"*** Mnemonic not found ***"},"SUCMALT3BBB_10TO20__",null,"Input",null,null,142,"I","Input!I142",{"$f":"_xlfn.XLOOKUP(F301,'Raw Data'!$I$4:$I$5000,'Raw Data'!$E$4:$E$5000,100,0)","v":100},{"$f":"IF(N301=0,_xlfn.XLOOKUP(F301,'Raw Data'!$I$4:$I$5000,'Raw Data'!$H$4:$H$5000,\"\",0),\"\")","v":""},{"$f":"IF(INDIRECT(M301) = \"\",\"\",INDIRECT(M301))","v":""},"n"]
["SUCMALT3BBB_GRTR20",null,null,null,{"$f":"_xlfn.XLOOKUP(F302,'Raw Data'!$I$4:$I$5000,'Raw Data'!$D$4:$D$5000,\"*** Mnemonic not found ***\",0)","v":"*** Mnemonic not found ***"},"SUCMALT3BBB_GRTR20__",null,"Input",null,null,143,"I","Input!I143",{"$f":"_xlfn.XLOOKUP(F302,'Raw Data'!$I$4:$I$5000,'Raw Data'!$E$4:$E$5000,100,0)","v":100},{"$f":"IF(N302=0,_xlfn.XLOOKUP(F302,'Raw Data'!$I$4:$I$5000,'Raw Data'!$H$4:$H$5000,\"\",0),\"\")","v":""},{"$f":"IF(INDIRECT(M302) = \"\",\"\",INDIRECT(M302))","v":""},"n"]
["SUCMALT3BB_LESS1",null,null,null,{"$f":"_xlfn.XLOOKUP(F303,'Raw Data'!$I$4:$I$5000,'Raw Data'!$D$4:$D$5000,\"*** Mnemonic not found ***\",0)","v":"*** Mnemonic not found ***"},"SUCMALT3BB_LESS1__",null,"Input",null,null,{"$f":"K298","v":139},"J","Input!J139",{"$f":"_xlfn.XLOOKUP(F303,'Raw Data'!$I$4:$I$5000,'Raw Data'!$E$4:$E$5000,100,0)","v":100},{"$f":"IF(N303=0,_xlfn.XLOOKUP(F303,'Raw Data'!$I$4:$I$5000,'Raw Data'!$H$4:$H$5000,\"\",0),\"\")","v":""},{"$f":"IF(INDIRECT(M303) = \"\",\"\",INDIRECT(M303))","v":""},"n"]
["SUCMALT3BB_1TO5",null,null,null,{"$f":"_xlfn.XLOOKUP(F304,'Raw Data'!$I$4:$I$5000,'Raw Data'!$D$4:$D$5000,\"*** Mnemonic not found ***\",0)","v":"*** Mnemonic not found ***"},"SUCMALT3BB_1TO5__",null,"Input",null,null,{"$f":"K303+1","v":140},{"$f":"L303","v":"J"},"Input!J140",{"$f":"_xlfn.XLOOKUP(F304,'Raw Data'!$I$4:$I$5000,'Raw Data'!$E$4:$E$5000,100,0)","v":100},{"$f":"IF(N304=0,_xlfn.XLOOKUP(F304,'Raw Data'!$I$4:$I$5000,'Raw Data'!$H$4:$H$5000,\"\",0),\"\")","v":""},{"$f":"IF(INDIRECT(M304) = \"\",\"\",INDIRECT(M304))","v":""},"n"]
["SUCMALT3BB_5TO10",null,null,null,{"$f":"_xlfn.XLOOKUP(F305,'Raw Data'!$I$4:$I$5000,'Raw Data'!$D$4:$D$5000,\"*** Mnemonic not found ***\",0)","v":"*** Mnemonic not found ***"},"SUCMALT3BB_5TO10__",null,"Input",null,null,{"$f":"K304+1","v":141},"J","Input!J141",{"$f":"_xlfn.XLOOKUP(F305,'Raw Data'!$I$4:$I$5000,'Raw Data'!$E$4:$E$5000,100,0)","v":100},{"$f":"IF(N305=0,_xlfn.XLOOKUP(F305,'Raw Data'!$I$4:$I$5000,'Raw Data'!$H$4:$H$5000,\"\",0),\"\")","v":""},{"$f":"IF(INDIRECT(M305) = \"\",\"\",INDIRECT(M305))","v":""},"n"]
["SUCMALT3BB_10TO20",null,null,null,{"$f":"_xlfn.XLOOKUP(F306,'Raw Data'!$I$4:$I$5000,'Raw Data'!$D$4:$D$5000,\"*** Mnemonic not found ***\",0)","v":"*** Mnemonic not found ***"},"SUCMALT3BB_10TO20__",null,"Input",null,null,142,"J","Input!J142",{"$f":"_xlfn.XLOOKUP(F306,'Raw Data'!$I$4:$I$5000,'Raw Data'!$E$4:$E$5000,100,0)","v":100},{"$f":"IF(N306=0,_xlfn.XLOOKUP(F306,'Raw Data'!$I$4:$I$5000,'Raw Data'!$H$4:$H$5000,\"\",0),\"\")","v":""},{"$f":"IF(INDIRECT(M306) = \"\",\"\",INDIRECT(M306))","v":""},"n"]
["SUCMALT3BB_GRTR20",null,null,null,{"$f":"_xlfn.XLOOKUP(F307,'Raw Data'!$I$4:$I$5000,'Raw Data'!$D$4:$D$5000,\"*** Mnemonic not found ***\",0)","v":"*** Mnemonic not found ***"},"SUCMALT3BB_GRTR20__",null,"Input",null,null,143,"J","Input!J143",{"$f":"_xlfn.XLOOKUP(F307,'Raw Data'!$I$4:$I$5000,'Raw Data'!$E$4:$E$5000,100,0)","v":100},{"$f":"IF(N307=0,_xlfn.XLOOKUP(F307,'Raw Data'!$I$4:$I$5000,'Raw Data'!$H$4:$H$5000,\"\",0),\"\")","v":""},{"$f":"IF(INDIRECT(M307) = \"\",\"\",INDIRECT(M307))","v":""},"n"]
["SUCMALT3B_LESS1",null,null,null,{"$f":"_xlfn.XLOOKUP(F308,'Raw Data'!$I$4:$I$5000,'Raw Data'!$D$4:$D$5000,\"*** Mnemonic not found ***\",0)","v":"*** Mnemonic not found ***"},"SUCMALT3B_LESS1__",null,"Input",null,null,{"$f":"K303","v":139},"K","Input!K139",{"$f":"_xlfn.XLOOKUP(F308,'Raw Data'!$I$4:$I$5000,'Raw Data'!$E$4:$E$5000,100,0)","v":100},{"$f":"IF(N308=0,_xlfn.XLOOKUP(F308,'Raw Data'!$I$4:$I$5000,'Raw Data'!$H$4:$H$5000,\"\",0),\"\")","v":""},{"$f":"IF(INDIRECT(M308) = \"\",\"\",INDIRECT(M308))","v":""},"n"]
["SUCMALT3B_1TO5",null,null,null,{"$f":"_xlfn.XLOOKUP(F309,'Raw Data'!$I$4:$I$5000,'Raw Data'!$D$4:$D$5000,\"*** Mnemonic not found ***\",0)","v":"*** Mnemonic not found ***"},"SUCMALT3B_1TO5__",null,"Input",null,null,{"$f":"K308+1","v":140},{"$f":"L308","v":"K"},"Input!K140",{"$f":"_xlfn.XLOOKUP(F309,'Raw Data'!$I$4:$I$5000,'Raw Data'!$E$4:$E$5000,100,0)","v":100},{"$f":"IF(N309=0,_xlfn.XLOOKUP(F309,'Raw Data'!$I$4:$I$5000,'Raw Data'!$H$4:$H$5000,\"\",0),\"\")","v":""},{"$f":"IF(INDIRECT(M309) = \"\",\"\",INDIRECT(M309))","v":""},"n"]
["SUCMALT3B_5TO10",null,null,null,{"$f":"_xlfn.XLOOKUP(F310,'Raw Data'!$I$4:$I$5000,'Raw Data'!$D$4:$D$5000,\"*** Mnemonic not found ***\",0)","v":"*** Mnemonic not found ***"},"SUCMALT3B_5TO10__",null,"Input",null,null,{"$f":"K309+1","v":141},"K","Input!K141",{"$f":"_xlfn.XLOOKUP(F310,'Raw Data'!$I$4:$I$5000,'Raw Data'!$E$4:$E$5000,100,0)","v":100},{"$f":"IF(N310=0,_xlfn.XLOOKUP(F310,'Raw Data'!$I$4:$I$5000,'Raw Data'!$H$4:$H$5000,\"\",0),\"\")","v":""},{"$f":"IF(INDIRECT(M310) = \"\",\"\",INDIRECT(M310))","v":""},"n"]
["SUCMALT3B_10TO20",null,null,null,{"$f":"_xlfn.XLOOKUP(F311,'Raw Data'!$I$4:$I$5000,'Raw Data'!$D$4:$D$5000,\"*** Mnemonic not found ***\",0)","v":"*** Mnemonic not found ***"},"SUCMALT3B_10TO20__",null,"Input",null,null,142,"K","Input!K142",{"$f":"_xlfn.XLOOKUP(F311,'Raw Data'!$I$4:$I$5000,'Raw Data'!$E$4:$E$5000,100,0)","v":100},{"$f":"IF(N311=0,_xlfn.XLOOKUP(F311,'Raw Data'!$I$4:$I$5000,'Raw Data'!$H$4:$H$5000,\"\",0),\"\")","v":""},{"$f":"IF(INDIRECT(M311) = \"\",\"\",INDIRECT(M311))","v":""},"n"]
["SUCMALT3B_GRTR20",null,null,null,{"$f":"_xlfn.XLOOKUP(F312,'Raw Data'!$I$4:$I$5000,'Raw Data'!$D$4:$D$5000,\"*** Mnemonic not found ***\",0)","v":"*** Mnemonic not found ***"},"SUCMALT3B_GRTR20__",null,"Input",null,null,143,"K","Input!K143",{"$f":"_xlfn.XLOOKUP(F312,'Raw Data'!$I$4:$I$5000,'Raw Data'!$E$4:$E$5000,100,0)","v":100},{"$f":"IF(N312=0,_xlfn.XLOOKUP(F312,'Raw Data'!$I$4:$I$5000,'Raw Data'!$H$4:$H$5000,\"\",0),\"\")","v":""},{"$f":"IF(INDIRECT(M312) = \"\",\"\",INDIRECT(M312))","v":""},"n"]
["SUCMALT3CCC_LESS1",null,null,null,{"$f":"_xlfn.XLOOKUP(F313,'Raw Data'!$I$4:$I$5000,'Raw Data'!$D$4:$D$5000,\"*** Mnemonic not found ***\",0)","v":"*** Mnemonic not found ***"},"SUCMALT3CCC_LESS1__",null,"Input",null,null,{"$f":"K308","v":139},"L","Input!L139",{"$f":"_xlfn.XLOOKUP(F313,'Raw Data'!$I$4:$I$5000,'Raw Data'!$E$4:$E$5000,100,0)","v":100},{"$f":"IF(N313=0,_xlfn.XLOOKUP(F313,'Raw Data'!$I$4:$I$5000,'Raw Data'!$H$4:$H$5000,\"\",0),\"\")","v":""},{"$f":"IF(INDIRECT(M313) = \"\",\"\",INDIRECT(M313))","v":""},"n"]
["SUCMALT3CCC_1TO5",null,null,null,{"$f":"_xlfn.XLOOKUP(F314,'Raw Data'!$I$4:$I$5000,'Raw Data'!$D$4:$D$5000,\"*** Mnemonic not found ***\",0)","v":"*** Mnemonic not found ***"},"SUCMALT3CCC_1TO5__",null,"Input",null,null,{"$f":"K313+1","v":140},{"$f":"L313","v":"L"},"Input!L140",{"$f":"_xlfn.XLOOKUP(F314,'Raw Data'!$I$4:$I$5000,'Raw Data'!$E$4:$E$5000,100,0)","v":100},{"$f":"IF(N314=0,_xlfn.XLOOKUP(F314,'Raw Data'!$I$4:$I$5000,'Raw Data'!$H$4:$H$5000,\"\",0),\"\")","v":""},{"$f":"IF(INDIRECT(M314) = \"\",\"\",INDIRECT(M314))","v":""},"n"]
["SUCMALT3CCC_5TO10",null,null,null,{"$f":"_xlfn.XLOOKUP(F315,'Raw Data'!$I$4:$I$5000,'Raw Data'!$D$4:$D$5000,\"*** Mnemonic not found ***\",0)","v":"*** Mnemonic not found ***"},"SUCMALT3CCC_5TO10__",null,"Input",null,null,{"$f":"K314+1","v":141},"L","Input!L141",{"$f":"_xlfn.XLOOKUP(F315,'Raw Data'!$I$4:$I$5000,'Raw Data'!$E$4:$E$5000,100,0)","v":100},{"$f":"IF(N315=0,_xlfn.XLOOKUP(F315,'Raw Data'!$I$4:$I$5000,'Raw Data'!$H$4:$H$5000,\"\",0),\"\")","v":""},{"$f":"IF(INDIRECT(M315) = \"\",\"\",INDIRECT(M315))","v":""},"n"]
["SUCMALT3CCC_10TO20",null,null,null,{"$f":"_xlfn.XLOOKUP(F316,'Raw Data'!$I$4:$I$5000,'Raw Data'!$D$4:$D$5000,\"*** Mnemonic not found ***\",0)","v":"*** Mnemonic not found ***"},"SUCMALT3CCC_10TO20__",null,"Input",null,null,142,"L","Input!L142",{"$f":"_xlfn.XLOOKUP(F316,'Raw Data'!$I$4:$I$5000,'Raw Data'!$E$4:$E$5000,100,0)","v":100},{"$f":"IF(N316=0,_xlfn.XLOOKUP(F316,'Raw Data'!$I$4:$I$5000,'Raw Data'!$H$4:$H$5000,\"\",0),\"\")","v":""},{"$f":"IF(INDIRECT(M316) = \"\",\"\",INDIRECT(M316))","v":""},"n"]
["SUCMALT3CCC_GRTR20",null,null,null,{"$f":"_xlfn.XLOOKUP(F317,'Raw Data'!$I$4:$I$5000,'Raw Data'!$D$4:$D$5000,\"*** Mnemonic not found ***\",0)","v":"*** Mnemonic not found ***"},"SUCMALT3CCC_GRTR20__",null,"Input",null,null,143,"L","Input!L143",{"$f":"_xlfn.XLOOKUP(F317,'Raw Data'!$I$4:$I$5000,'Raw Data'!$E$4:$E$5000,100,0)","v":100},{"$f":"IF(N317=0,_xlfn.XLOOKUP(F317,'Raw Data'!$I$4:$I$5000,'Raw Data'!$H$4:$H$5000,\"\",0),\"\")","v":""},{"$f":"IF(INDIRECT(M317) = \"\",\"\",INDIRECT(M317))","v":""},"n"]
["SUCMALT4AAA_LESS1",null,null,null,{"$f":"_xlfn.XLOOKUP(F318,'Raw Data'!$I$4:$I$5000,'Raw Data'!$D$4:$D$5000,\"*** Mnemonic not found ***\",0)","v":"*** Mnemonic not found ***"},"SUCMALT4AAA_LESS1__",null,"Input",{"$f":"ROW(section_bonds_sp_unrated_step_2_3)","v":118},{"$f":"J283+8","v":29},{"$f":"I318+J318","v":147},"F","Input!F147",{"$f":"_xlfn.XLOOKUP(F318,'Raw Data'!$I$4:$I$5000,'Raw Data'!$E$4:$E$5000,100,0)","v":100},{"$f":"IF(N318=0,_xlfn.XLOOKUP(F318,'Raw Data'!$I$4:$I$5000,'Raw Data'!$H$4:$H$5000,\"\",0),\"\")","v":""},{"$f":"IF(INDIRECT(M318) = \"\",\"\",INDIRECT(M318))","v":""},"n"]
["SUCMALT4AAA_1TO5",null,null,null,{"$f":"_xlfn.XLOOKUP(F319,'Raw Data'!$I$4:$I$5000,'Raw Data'!$D$4:$D$5000,\"*** Mnemonic not found ***\",0)","v":"*** Mnemonic not found ***"},"SUCMALT4AAA_1TO5__",null,"Input",null,null,{"$f":"K318+1","v":148},{"$f":"L318","v":"F"},"Input!F148",{"$f":"_xlfn.XLOOKUP(F319,'Raw Data'!$I$4:$I$5000,'Raw Data'!$E$4:$E$5000,100,0)","v":100},{"$f":"IF(N319=0,_xlfn.XLOOKUP(F319,'Raw Data'!$I$4:$I$5000,'Raw Data'!$H$4:$H$5000,\"\",0),\"\")","v":""},{"$f":"IF(INDIRECT(M319) = \"\",\"\",INDIRECT(M319))","v":""},"n"]
["SUCMALT4AAA_5TO10",null,null,null,{"$f":"_xlfn.XLOOKUP(F320,'Raw Data'!$I$4:$I$5000,'Raw Data'!$D$4:$D$5000,\"*** Mnemonic not found ***\",0)","v":"*** Mnemonic not found ***"},"SUCMALT4AAA_5TO10__",null,"Input",null,null,{"$f":"K319+1","v":149},"F","Input!F149",{"$f":"_xlfn.XLOOKUP(F320,'Raw Data'!$I$4:$I$5000,'Raw Data'!$E$4:$E$5000,100,0)","v":100},{"$f":"IF(N320=0,_xlfn.XLOOKUP(F320,'Raw Data'!$I$4:$I$5000,'Raw Data'!$H$4:$H$5000,\"\",0),\"\")","v":""},{"$f":"IF(INDIRECT(M320) = \"\",\"\",INDIRECT(M320))","v":""},"n"]
["SUCMALT4AAA_10TO20",null,null,null,{"$f":"_xlfn.XLOOKUP(F321,'Raw Data'!$I$4:$I$5000,'Raw Data'!$D$4:$D$5000,\"*** Mnemonic not found ***\",0)","v":"*** Mnemonic not found ***"},"SUCMALT4AAA_10TO20__",null,"Input",null,null,150,"F","Input!F150",{"$f":"_xlfn.XLOOKUP(F321,'Raw Data'!$I$4:$I$5000,'Raw Data'!$E$4:$E$5000,100,0)","v":100},{"$f":"IF(N321=0,_xlfn.XLOOKUP(F321,'Raw Data'!$I$4:$I$5000,'Raw Data'!$H$4:$H$5000,\"\",0),\"\")","v":""},{"$f":"IF(INDIRECT(M321) = \"\",\"\",INDIRECT(M321))","v":""},"n"]
["SUCMALT4AAA_GRTR20",null,null,null,{"$f":"_xlfn.XLOOKUP(F322,'Raw Data'!$I$4:$I$5000,'Raw Data'!$D$4:$D$5000,\"*** Mnemonic not found ***\",0)","v":"*** Mnemonic not found ***"},"SUCMALT4AAA_GRTR20__",null,"Input",null,null,151,"F","Input!F151",{"$f":"_xlfn.XLOOKUP(F322,'Raw Data'!$I$4:$I$5000,'Raw Data'!$E$4:$E$5000,100,0)","v":100},{"$f":"IF(N322=0,_xlfn.XLOOKUP(F322,'Raw Data'!$I$4:$I$5000,'Raw Data'!$H$4:$H$5000,\"\",0),\"\")","v":""},{"$f":"IF(INDIRECT(M322) = \"\",\"\",INDIRECT(M322))","v":""},"n"]
["SUCMALT4AA_LESS1",null,null,null,{"$f":"_xlfn.XLOOKUP(F323,'Raw Data'!$I$4:$I$5000,'Raw Data'!$D$4:$D$5000,\"*** Mnemonic not found ***\",0)","v":"*** Mnemonic not found ***"},"SUCMALT4AA_LESS1__",null,"Input",null,null,{"$f":"K318","v":147},"G","Input!G147",{"$f":"_xlfn.XLOOKUP(F323,'Raw Data'!$I$4:$I$5000,'Raw Data'!$E$4:$E$5000,100,0)","v":100},{"$f":"IF(N323=0,_xlfn.XLOOKUP(F323,'Raw Data'!$I$4:$I$5000,'Raw Data'!$H$4:$H$5000,\"\",0),\"\")","v":""},{"$f":"IF(INDIRECT(M323) = \"\",\"\",INDIRECT(M323))","v":""},"n"]
["SUCMALT4AA_1TO5",null,null,null,{"$f":"_xlfn.XLOOKUP(F324,'Raw Data'!$I$4:$I$5000,'Raw Data'!$D$4:$D$5000,\"*** Mnemonic not found ***\",0)","v":"*** Mnemonic not found ***"},"SUCMALT4AA_1TO5__",null,"Input",null,null,{"$f":"K323+1","v":148},{"$f":"L323","v":"G"},"Input!G148",{"$f":"_xlfn.XLOOKUP(F324,'Raw Data'!$I$4:$I$5000,'Raw Data'!$E$4:$E$5000,100,0)","v":100},{"$f":"IF(N324=0,_xlfn.XLOOKUP(F324,'Raw Data'!$I$4:$I$5000,'Raw Data'!$H$4:$H$5000,\"\",0),\"\")","v":""},{"$f":"IF(INDIRECT(M324) = \"\",\"\",INDIRECT(M324))","v":""},"n"]
["SUCMALT4AA_5TO10",null,null,null,{"$f":"_xlfn.XLOOKUP(F325,'Raw Data'!$I$4:$I$5000,'Raw Data'!$D$4:$D$5000,\"*** Mnemonic not found ***\",0)","v":"*** Mnemonic not found ***"},{"$f":"CONCATENATE(A325,\"_\",B325,\"_\",D325)","v":"SUCMALT4AA_5TO10__"},null,"Input",null,null,{"$f":"K324+1","v":149},"G","Input!G149",{"$f":"_xlfn.XLOOKUP(F325,'Raw Data'!$I$4:$I$5000,'Raw Data'!$E$4:$E$5000,100,0)","v":100},{"$f":"IF(N325=0,_xlfn.XLOOKUP(F325,'Raw Data'!$I$4:$I$5000,'Raw Data'!$H$4:$H$5000,\"\",0),\"\")","v":""},{"$f":"IF(INDIRECT(M325) = \"\",\"\",INDIRECT(M325))","v":""},"n"]
["SUCMALT4AA_10TO20",null,null,null,{"$f":"_xlfn.XLOOKUP(F326,'Raw Data'!$I$4:$I$5000,'Raw Data'!$D$4:$D$5000,\"*** Mnemonic not found ***\",0)","v":"*** Mnemonic not found ***"},"SUCMALT4AA_10TO20__",null,"Input",null,null,150,"G","Input!G150",{"$f":"_xlfn.XLOOKUP(F326,'Raw Data'!$I$4:$I$5000,'Raw Data'!$E$4:$E$5000,100,0)","v":100},{"$f":"IF(N326=0,_xlfn.XLOOKUP(F326,'Raw Data'!$I$4:$I$5000,'Raw Data'!$H$4:$H$5000,\"\",0),\"\")","v":""},{"$f":"IF(INDIRECT(M326) = \"\",\"\",INDIRECT(M326))","v":""},"n"]
["SUCMALT4AA_GRTR20",null,null,null,{"$f":"_xlfn.XLOOKUP(F327,'Raw Data'!$I$4:$I$5000,'Raw Data'!$D$4:$D$5000,\"*** Mnemonic not found ***\",0)","v":"*** Mnemonic not found ***"},"SUCMALT4AA_GRTR20__",null,"Input",null,null,151,"G","Input!G151",{"$f":"_xlfn.XLOOKUP(F327,'Raw Data'!$I$4:$I$5000,'Raw Data'!$E$4:$E$5000,100,0)","v":100},{"$f":"IF(N327=0,_xlfn.XLOOKUP(F327,'Raw Data'!$I$4:$I$5000,'Raw Data'!$H$4:$H$5000,\"\",0),\"\")","v":""},{"$f":"IF(INDIRECT(M327) = \"\",\"\",INDIRECT(M327))","v":""},"n"]
["SUCMALT4A_LESS1",null,null,null,{"$f":"_xlfn.XLOOKUP(F328,'Raw Data'!$I$4:$I$5000,'Raw Data'!$D$4:$D$5000,\"*** Mnemonic not found ***\",0)","v":"*** Mnemonic not found ***"},"SUCMALT4A_LESS1__",null,"Input",null,null,{"$f":"K323","v":147},"H","Input!H147",{"$f":"_xlfn.XLOOKUP(F328,'Raw Data'!$I$4:$I$5000,'Raw Data'!$E$4:$E$5000,100,0)","v":100},{"$f":"IF(N328=0,_xlfn.XLOOKUP(F328,'Raw Data'!$I$4:$I$5000,'Raw Data'!$H$4:$H$5000,\"\",0),\"\")","v":""},{"$f":"IF(INDIRECT(M328) = \"\",\"\",INDIRECT(M328))","v":""},"n"]
["SUCMALT4A_1TO5",null,null,null,{"$f":"_xlfn.XLOOKUP(F329,'Raw Data'!$I$4:$I$5000,'Raw Data'!$D$4:$D$5000,\"*** Mnemonic not found ***\",0)","v":"*** Mnemonic not found ***"},"SUCMALT4A_1TO5__",null,"Input",null,null,{"$f":"K328+1","v":148},{"$f":"L328","v":"H"},"Input!H148",{"$f":"_xlfn.XLOOKUP(F329,'Raw Data'!$I$4:$I$5000,'Raw Data'!$E$4:$E$5000,100,0)","v":100},{"$f":"IF(N329=0,_xlfn.XLOOKUP(F329,'Raw Data'!$I$4:$I$5000,'Raw Data'!$H$4:$H$5000,\"\",0),\"\")","v":""},{"$f":"IF(INDIRECT(M329) = \"\",\"\",INDIRECT(M329))","v":""},"n"]
["SUCMALT4A_5TO10",null,null,null,{"$f":"_xlfn.XLOOKUP(F330,'Raw Data'!$I$4:$I$5000,'Raw Data'!$D$4:$D$5000,\"*** Mnemonic not found ***\",0)","v":"*** Mnemonic not found ***"},"SUCMALT4A_5TO10__",null,"Input",null,null,{"$f":"K329+1","v":149},"H","Input!H149",{"$f":"_xlfn.XLOOKUP(F330,'Raw Data'!$I$4:$I$5000,'Raw Data'!$E$4:$E$5000,100,0)","v":100},{"$f":"IF(N330=0,_xlfn.XLOOKUP(F330,'Raw Data'!$I$4:$I$5000,'Raw Data'!$H$4:$H$5000,\"\",0),\"\")","v":""},{"$f":"IF(INDIRECT(M330) = \"\",\"\",INDIRECT(M330))","v":""},"n"]
["SUCMALT4A_10TO20",null,null,null,{"$f":"_xlfn.XLOOKUP(F331,'Raw Data'!$I$4:$I$5000,'Raw Data'!$D$4:$D$5000,\"*** Mnemonic not found ***\",0)","v":"*** Mnemonic not found ***"},"SUCMALT4A_10TO20__",null,"Input",null,null,150,"H","Input!H150",{"$f":"_xlfn.XLOOKUP(F331,'Raw Data'!$I$4:$I$5000,'Raw Data'!$E$4:$E$5000,100,0)","v":100},{"$f":"IF(N331=0,_xlfn.XLOOKUP(F331,'Raw Data'!$I$4:$I$5000,'Raw Data'!$H$4:$H$5000,\"\",0),\"\")","v":""},{"$f":"IF(INDIRECT(M331) = \"\",\"\",INDIRECT(M331))","v":""},"n"]
["SUCMALT4A_GRTR20",null,null,null,{"$f":"_xlfn.XLOOKUP(F332,'Raw Data'!$I$4:$I$5000,'Raw Data'!$D$4:$D$5000,\"*** Mnemonic not found ***\",0)","v":"*** Mnemonic not found ***"},"SUCMALT4A_GRTR20__",null,"Input",null,null,151,"H","Input!H151",{"$f":"_xlfn.XLOOKUP(F332,'Raw Data'!$I$4:$I$5000,'Raw Data'!$E$4:$E$5000,100,0)","v":100},{"$f":"IF(N332=0,_xlfn.XLOOKUP(F332,'Raw Data'!$I$4:$I$5000,'Raw Data'!$H$4:$H$5000,\"\",0),\"\")","v":""},{"$f":"IF(INDIRECT(M332) = \"\",\"\",INDIRECT(M332))","v":""},"n"]
["SUCMALT4BBB_LESS1",null,null,null,{"$f":"_xlfn.XLOOKUP(F333,'Raw Data'!$I$4:$I$5000,'Raw Data'!$D$4:$D$5000,\"*** Mnemonic not found ***\",0)","v":"*** Mnemonic not found ***"},"SUCMALT4BBB_LESS1__",null,"Input",null,null,{"$f":"K328","v":147},"I","Input!I147",{"$f":"_xlfn.XLOOKUP(F333,'Raw Data'!$I$4:$I$5000,'Raw Data'!$E$4:$E$5000,100,0)","v":100},{"$f":"IF(N333=0,_xlfn.XLOOKUP(F333,'Raw Data'!$I$4:$I$5000,'Raw Data'!$H$4:$H$5000,\"\",0),\"\")","v":""},{"$f":"IF(INDIRECT(M333) = \"\",\"\",INDIRECT(M333))","v":""},"n"]
["SUCMALT4BBB_1TO5",null,null,null,{"$f":"_xlfn.XLOOKUP(F334,'Raw Data'!$I$4:$I$5000,'Raw Data'!$D$4:$D$5000,\"*** Mnemonic not found ***\",0)","v":"*** Mnemonic not found ***"},"SUCMALT4BBB_1TO5__",null,"Input",null,null,{"$f":"K333+1","v":148},{"$f":"L333","v":"I"},"Input!I148",{"$f":"_xlfn.XLOOKUP(F334,'Raw Data'!$I$4:$I$5000,'Raw Data'!$E$4:$E$5000,100,0)","v":100},{"$f":"IF(N334=0,_xlfn.XLOOKUP(F334,'Raw Data'!$I$4:$I$5000,'Raw Data'!$H$4:$H$5000,\"\",0),\"\")","v":""},{"$f":"IF(INDIRECT(M334) = \"\",\"\",INDIRECT(M334))","v":""},"n"]
["SUCMALT4BBB_5TO10",null,null,null,{"$f":"_xlfn.XLOOKUP(F335,'Raw Data'!$I$4:$I$5000,'Raw Data'!$D$4:$D$5000,\"*** Mnemonic not found ***\",0)","v":"*** Mnemonic not found ***"},"SUCMALT4BBB_5TO10__",null,"Input",null,null,{"$f":"K334+1","v":149},"I",{"$f":"CONCATENATE(H335,\"!\",L335,K335)","v":"Input!I149"},{"$f":"_xlfn.XLOOKUP(F335,'Raw Data'!$I$4:$I$5000,'Raw Data'!$E$4:$E$5000,100,0)","v":100},{"$f":"IF(N335=0,_xlfn.XLOOKUP(F335,'Raw Data'!$I$4:$I$5000,'Raw Data'!$H$4:$H$5000,\"\",0),\"\")","v":""},{"$f":"IF(INDIRECT(M335) = \"\",\"\",INDIRECT(M335))","v":""},"n"]
["SUCMALT4BBB_10TO20",null,null,null,{"$f":"_xlfn.XLOOKUP(F336,'Raw Data'!$I$4:$I$5000,'Raw Data'!$D$4:$D$5000,\"*** Mnemonic not found ***\",0)","v":"*** Mnemonic not found ***"},"SUCMALT4BBB_10TO20__",null,"Input",null,null,150,"I","Input!I150",{"$f":"_xlfn.XLOOKUP(F336,'Raw Data'!$I$4:$I$5000,'Raw Data'!$E$4:$E$5000,100,0)","v":100},{"$f":"IF(N336=0,_xlfn.XLOOKUP(F336,'Raw Data'!$I$4:$I$5000,'Raw Data'!$H$4:$H$5000,\"\",0),\"\")","v":""},{"$f":"IF(INDIRECT(M336) = \"\",\"\",INDIRECT(M336))","v":""},"n"]
["SUCMALT4BBB_GRTR20",null,null,null,{"$f":"_xlfn.XLOOKUP(F337,'Raw Data'!$I$4:$I$5000,'Raw Data'!$D$4:$D$5000,\"*** Mnemonic not found ***\",0)","v":"*** Mnemonic not found ***"},"SUCMALT4BBB_GRTR20__",null,"Input",null,null,151,"I","Input!I151",{"$f":"_xlfn.XLOOKUP(F337,'Raw Data'!$I$4:$I$5000,'Raw Data'!$E$4:$E$5000,100,0)","v":100},{"$f":"IF(N337=0,_xlfn.XLOOKUP(F337,'Raw Data'!$I$4:$I$5000,'Raw Data'!$H$4:$H$5000,\"\",0),\"\")","v":""},{"$f":"IF(INDIRECT(M337) = \"\",\"\",INDIRECT(M337))","v":""},"n"]
["SUCMALT4BB_LESS1",null,null,null,{"$f":"_xlfn.XLOOKUP(F338,'Raw Data'!$I$4:$I$5000,'Raw Data'!$D$4:$D$5000,\"*** Mnemonic not found ***\",0)","v":"*** Mnemonic not found ***"},"SUCMALT4BB_LESS1__",null,"Input",null,null,{"$f":"K333","v":147},"J","Input!J147",{"$f":"_xlfn.XLOOKUP(F338,'Raw Data'!$I$4:$I$5000,'Raw Data'!$E$4:$E$5000,100,0)","v":100},{"$f":"IF(N338=0,_xlfn.XLOOKUP(F338,'Raw Data'!$I$4:$I$5000,'Raw Data'!$H$4:$H$5000,\"\",0),\"\")","v":""},{"$f":"IF(INDIRECT(M338) = \"\",\"\",INDIRECT(M338))","v":""},"n"]
["SUCMALT4BB_1TO5",null,null,null,{"$f":"_xlfn.XLOOKUP(F339,'Raw Data'!$I$4:$I$5000,'Raw Data'!$D$4:$D$5000,\"*** Mnemonic not found ***\",0)","v":"*** Mnemonic not found ***"},"SUCMALT4BB_1TO5__",null,"Input",null,null,{"$f":"K338+1","v":148},{"$f":"L338","v":"J"},"Input!J148",{"$f":"_xlfn.XLOOKUP(F339,'Raw Data'!$I$4:$I$5000,'Raw Data'!$E$4:$E$5000,100,0)","v":100},{"$f":"IF(N339=0,_xlfn.XLOOKUP(F339,'Raw Data'!$I$4:$I$5000,'Raw Data'!$H$4:$H$5000,\"\",0),\"\")","v":""},{"$f":"IF(INDIRECT(M339) = \"\",\"\",INDIRECT(M339))","v":""},"n"]
["SUCMALT4BB_5TO10",null,null,null,{"$f":"_xlfn.XLOOKUP(F340,'Raw Data'!$I$4:$I$5000,'Raw Data'!$D$4:$D$5000,\"*** Mnemonic not found ***\",0)","v":"*** Mnemonic not found ***"},"SUCMALT4BB_5TO10__",null,"Input",null,null,{"$f":"K339+1","v":149},"J","Input!J149",{"$f":"_xlfn.XLOOKUP(F340,'Raw Data'!$I$4:$I$5000,'Raw Data'!$E$4:$E$5000,100,0)","v":100},{"$f":"IF(N340=0,_xlfn.XLOOKUP(F340,'Raw Data'!$I$4:$I$5000,'Raw Data'!$H$4:$H$5000,\"\",0),\"\")","v":""},{"$f":"IF(INDIRECT(M340) = \"\",\"\",INDIRECT(M340))","v":""},"n"]
["SUCMALT4BB_10TO20",null,null,null,{"$f":"_xlfn.XLOOKUP(F341,'Raw Data'!$I$4:$I$5000,'Raw Data'!$D$4:$D$5000,\"*** Mnemonic not found ***\",0)","v":"*** Mnemonic not found ***"},"SUCMALT4BB_10TO20__",null,"Input",null,null,150,"J","Input!J150",{"$f":"_xlfn.XLOOKUP(F341,'Raw Data'!$I$4:$I$5000,'Raw Data'!$E$4:$E$5000,100,0)","v":100},{"$f":"IF(N341=0,_xlfn.XLOOKUP(F341,'Raw Data'!$I$4:$I$5000,'Raw Data'!$H$4:$H$5000,\"\",0),\"\")","v":""},{"$f":"IF(INDIRECT(M341) = \"\",\"\",INDIRECT(M341))","v":""},"n"]
["SUCMALT4BB_GRTR20",null,null,null,{"$f":"_xlfn.XLOOKUP(F342,'Raw Data'!$I$4:$I$5000,'Raw Data'!$D$4:$D$5000,\"*** Mnemonic not found ***\",0)","v":"*** Mnemonic not found ***"},"SUCMALT4BB_GRTR20__",null,"Input",null,null,151,"J","Input!J151",{"$f":"_xlfn.XLOOKUP(F342,'Raw Data'!$I$4:$I$5000,'Raw Data'!$E$4:$E$5000,100,0)","v":100},{"$f":"IF(N342=0,_xlfn.XLOOKUP(F342,'Raw Data'!$I$4:$I$5000,'Raw Data'!$H$4:$H$5000,\"\",0),\"\")","v":""},{"$f":"IF(INDIRECT(M342) = \"\",\"\",INDIRECT(M342))","v":""},"n"]
["SUCMALT4B_LESS1",null,null,null,{"$f":"_xlfn.XLOOKUP(F343,'Raw Data'!$I$4:$I$5000,'Raw Data'!$D$4:$D$5000,\"*** Mnemonic not found ***\",0)","v":"*** Mnemonic not found ***"},"SUCMALT4B_LESS1__",null,"Input",null,null,{"$f":"K338","v":147},"K","Input!K147",{"$f":"_xlfn.XLOOKUP(F343,'Raw Data'!$I$4:$I$5000,'Raw Data'!$E$4:$E$5000,100,0)","v":100},{"$f":"IF(N343=0,_xlfn.XLOOKUP(F343,'Raw Data'!$I$4:$I$5000,'Raw Data'!$H$4:$H$5000,\"\",0),\"\")","v":""},{"$f":"IF(INDIRECT(M343) = \"\",\"\",INDIRECT(M343))","v":""},"n"]
["SUCMALT4B_1TO5",null,null,null,{"$f":"_xlfn.XLOOKUP(F344,'Raw Data'!$I$4:$I$5000,'Raw Data'!$D$4:$D$5000,\"*** Mnemonic not found ***\",0)","v":"*** Mnemonic not found ***"},"SUCMALT4B_1TO5__",null,"Input",null,null,{"$f":"K343+1","v":148},{"$f":"L343","v":"K"},"Input!K148",{"$f":"_xlfn.XLOOKUP(F344,'Raw Data'!$I$4:$I$5000,'Raw Data'!$E$4:$E$5000,100,0)","v":100},{"$f":"IF(N344=0,_xlfn.XLOOKUP(F344,'Raw Data'!$I$4:$I$5000,'Raw Data'!$H$4:$H$5000,\"\",0),\"\")","v":""},{"$f":"IF(INDIRECT(M344) = \"\",\"\",INDIRECT(M344))","v":""},"n"]
["SUCMALT4B_5TO10",null,null,null,{"$f":"_xlfn.XLOOKUP(F345,'Raw Data'!$I$4:$I$5000,'Raw Data'!$D$4:$D$5000,\"*** Mnemonic not found ***\",0)","v":"*** Mnemonic not found ***"},"SUCMALT4B_5TO10__",null,"Input",null,null,{"$f":"K344+1","v":149},"K","Input!K149",{"$f":"_xlfn.XLOOKUP(F345,'Raw Data'!$I$4:$I$5000,'Raw Data'!$E$4:$E$5000,100,0)","v":100},{"$f":"IF(N345=0,_xlfn.XLOOKUP(F345,'Raw Data'!$I$4:$I$5000,'Raw Data'!$H$4:$H$5000,\"\",0),\"\")","v":""},{"$f":"IF(INDIRECT(M345) = \"\",\"\",INDIRECT(M345))","v":""},"n"]
["SUCMALT4B_10TO20",null,null,null,{"$f":"_xlfn.XLOOKUP(F346,'Raw Data'!$I$4:$I$5000,'Raw Data'!$D$4:$D$5000,\"*** Mnemonic not found ***\",0)","v":"*** Mnemonic not found ***"},"SUCMALT4B_10TO20__",null,"Input",null,null,150,"K","Input!K150",{"$f":"_xlfn.XLOOKUP(F346,'Raw Data'!$I$4:$I$5000,'Raw Data'!$E$4:$E$5000,100,0)","v":100},{"$f":"IF(N346=0,_xlfn.XLOOKUP(F346,'Raw Data'!$I$4:$I$5000,'Raw Data'!$H$4:$H$5000,\"\",0),\"\")","v":""},{"$f":"IF(INDIRECT(M346) = \"\",\"\",INDIRECT(M346))","v":""},"n"]
["SUCMALT4B_GRTR20",null,null,null,{"$f":"_xlfn.XLOOKUP(F347,'Raw Data'!$I$4:$I$5000,'Raw Data'!$D$4:$D$5000,\"*** Mnemonic not found ***\",0)","v":"*** Mnemonic not found ***"},"SUCMALT4B_GRTR20__",null,"Input",null,null,151,"K","Input!K151",{"$f":"_xlfn.XLOOKUP(F347,'Raw Data'!$I$4:$I$5000,'Raw Data'!$E$4:$E$5000,100,0)","v":100},{"$f":"IF(N347=0,_xlfn.XLOOKUP(F347,'Raw Data'!$I$4:$I$5000,'Raw Data'!$H$4:$H$5000,\"\",0),\"\")","v":""},{"$f":"IF(INDIRECT(M347) = \"\",\"\",INDIRECT(M347))","v":""},"n"]
["SUCMALT4CCC_LESS1",null,null,null,{"$f":"_xlfn.XLOOKUP(F348,'Raw Data'!$I$4:$I$5000,'Raw Data'!$D$4:$D$5000,\"*** Mnemonic not found ***\",0)","v":"*** Mnemonic not found ***"},"SUCMALT4CCC_LESS1__",null,"Input",null,null,{"$f":"K343","v":147},"L","Input!L147",{"$f":"_xlfn.XLOOKUP(F348,'Raw Data'!$I$4:$I$5000,'Raw Data'!$E$4:$E$5000,100,0)","v":100},{"$f":"IF(N348=0,_xlfn.XLOOKUP(F348,'Raw Data'!$I$4:$I$5000,'Raw Data'!$H$4:$H$5000,\"\",0),\"\")","v":""},{"$f":"IF(INDIRECT(M348) = \"\",\"\",INDIRECT(M348))","v":""},"n"]
["SUCMALT4CCC_1TO5",null,null,null,{"$f":"_xlfn.XLOOKUP(F349,'Raw Data'!$I$4:$I$5000,'Raw Data'!$D$4:$D$5000,\"*** Mnemonic not found ***\",0)","v":"*** Mnemonic not found ***"},"SUCMALT4CCC_1TO5__",null,"Input",null,null,{"$f":"K348+1","v":148},{"$f":"L348","v":"L"},"Input!L148",{"$f":"_xlfn.XLOOKUP(F349,'Raw Data'!$I$4:$I$5000,'Raw Data'!$E$4:$E$5000,100,0)","v":100},{"$f":"IF(N349=0,_xlfn.XLOOKUP(F349,'Raw Data'!$I$4:$I$5000,'Raw Data'!$H$4:$H$5000,\"\",0),\"\")","v":""},{"$f":"IF(INDIRECT(M349) = \"\",\"\",INDIRECT(M349))","v":""},"n"]
["SUCMALT4CCC_5TO10",null,null,null,{"$f":"_xlfn.XLOOKUP(F350,'Raw Data'!$I$4:$I$5000,'Raw Data'!$D$4:$D$5000,\"*** Mnemonic not found ***\",0)","v":"*** Mnemonic not found ***"},"SUCMALT4CCC_5TO10__",null,"Input",null,null,{"$f":"K349+1","v":149},"L","Input!L149",{"$f":"_xlfn.XLOOKUP(F350,'Raw Data'!$I$4:$I$5000,'Raw Data'!$E$4:$E$5000,100,0)","v":100},{"$f":"IF(N350=0,_xlfn.XLOOKUP(F350,'Raw Data'!$I$4:$I$5000,'Raw Data'!$H$4:$H$5000,\"\",0),\"\")","v":""},{"$f":"IF(INDIRECT(M350) = \"\",\"\",INDIRECT(M350))","v":""},"n"]
["SUCMALT4CCC_10TO20",null,null,null,{"$f":"_xlfn.XLOOKUP(F351,'Raw Data'!$I$4:$I$5000,'Raw Data'!$D$4:$D$5000,\"*** Mnemonic not found ***\",0)","v":"*** Mnemonic not found ***"},"SUCMALT4CCC_10TO20__",null,"Input",null,null,150,"L","Input!L150",{"$f":"_xlfn.XLOOKUP(F351,'Raw Data'!$I$4:$I$5000,'Raw Data'!$E$4:$E$5000,100,0)","v":100},{"$f":"IF(N351=0,_xlfn.XLOOKUP(F351,'Raw Data'!$I$4:$I$5000,'Raw Data'!$H$4:$H$5000,\"\",0),\"\")","v":""},{"$f":"IF(INDIRECT(M351) = \"\",\"\",INDIRECT(M351))","v":""},"n"]
["SUCMALT4CCC_GRTR20",null,null,null,{"$f":"_xlfn.XLOOKUP(F352,'Raw Data'!$I$4:$I$5000,'Raw Data'!$D$4:$D$5000,\"*** Mnemonic not found ***\",0)","v":"*** Mnemonic not found ***"},"SUCMALT4CCC_GRTR20__",null,"Input",null,null,151,"L","Input!L151",{"$f":"_xlfn.XLOOKUP(F352,'Raw Data'!$I$4:$I$5000,'Raw Data'!$E$4:$E$5000,100,0)","v":100},{"$f":"IF(N352=0,_xlfn.XLOOKUP(F352,'Raw Data'!$I$4:$I$5000,'Raw Data'!$H$4:$H$5000,\"\",0),\"\")","v":""},{"$f":"IF(INDIRECT(M352) = \"\",\"\",INDIRECT(M352))","v":""},"n"]
["SUCMOTH1AAA_LESS1",null,null,null,{"$f":"_xlfn.XLOOKUP(F353,'Raw Data'!$I$4:$I$5000,'Raw Data'!$D$4:$D$5000,\"*** Mnemonic not found ***\",0)","v":"*** Mnemonic not found ***"},"SUCMOTH1AAA_LESS1__",null,"Input",{"$f":"ROW(section_bonds_sp_unrated_step_2_3)","v":118},{"$f":"J318+9","v":38},{"$f":"I353+J353","v":156},"F","Input!F156",{"$f":"_xlfn.XLOOKUP(F353,'Raw Data'!$I$4:$I$5000,'Raw Data'!$E$4:$E$5000,100,0)","v":100},{"$f":"IF(N353=0,_xlfn.XLOOKUP(F353,'Raw Data'!$I$4:$I$5000,'Raw Data'!$H$4:$H$5000,\"\",0),\"\")","v":""},{"$f":"IF(INDIRECT(M353) = \"\",\"\",INDIRECT(M353))","v":""},"n"]
["SUCMOTH1AAA_1TO5",null,null,null,{"$f":"_xlfn.XLOOKUP(F354,'Raw Data'!$I$4:$I$5000,'Raw Data'!$D$4:$D$5000,\"*** Mnemonic not found ***\",0)","v":"*** Mnemonic not found ***"},"SUCMOTH1AAA_1TO5__",null,"Input",null,null,{"$f":"K353+1","v":157},{"$f":"L353","v":"F"},"Input!F157",{"$f":"_xlfn.XLOOKUP(F354,'Raw Data'!$I$4:$I$5000,'Raw Data'!$E$4:$E$5000,100,0)","v":100},{"$f":"IF(N354=0,_xlfn.XLOOKUP(F354,'Raw Data'!$I$4:$I$5000,'Raw Data'!$H$4:$H$5000,\"\",0),\"\")","v":""},{"$f":"IF(INDIRECT(M354) = \"\",\"\",INDIRECT(M354))","v":""},"n"]
["SUCMOTH1AAA_5TO10",null,null,null,{"$f":"_xlfn.XLOOKUP(F355,'Raw Data'!$I$4:$I$5000,'Raw Data'!$D$4:$D$5000,\"*** Mnemonic not found ***\",0)","v":"*** Mnemonic not found ***"},"SUCMOTH1AAA_5TO10__",null,"Input",null,null,{"$f":"K354+1","v":158},"F","Input!F158",{"$f":"_xlfn.XLOOKUP(F355,'Raw Data'!$I$4:$I$5000,'Raw Data'!$E$4:$E$5000,100,0)","v":100},{"$f":"IF(N355=0,_xlfn.XLOOKUP(F355,'Raw Data'!$I$4:$I$5000,'Raw Data'!$H$4:$H$5000,\"\",0),\"\")","v":""},{"$f":"IF(INDIRECT(M355) = \"\",\"\",INDIRECT(M355))","v":""},"n"]
["SUCMOTH1AAA_10TO20",null,null,null,{"$f":"_xlfn.XLOOKUP(F356,'Raw Data'!$I$4:$I$5000,'Raw Data'!$D$4:$D$5000,\"*** Mnemonic not found ***\",0)","v":"*** Mnemonic not found ***"},"SUCMOTH1AAA_10TO20__",null,"Input",null,null,159,"F","Input!F159",{"$f":"_xlfn.XLOOKUP(F356,'Raw Data'!$I$4:$I$5000,'Raw Data'!$E$4:$E$5000,100,0)","v":100},{"$f":"IF(N356=0,_xlfn.XLOOKUP(F356,'Raw Data'!$I$4:$I$5000,'Raw Data'!$H$4:$H$5000,\"\",0),\"\")","v":""},{"$f":"IF(INDIRECT(M356) = \"\",\"\",INDIRECT(M356))","v":""},"n"]
["SUCMOTH1AAA_GRTR20",null,null,null,{"$f":"_xlfn.XLOOKUP(F357,'Raw Data'!$I$4:$I$5000,'Raw Data'!$D$4:$D$5000,\"*** Mnemonic not found ***\",0)","v":"*** Mnemonic not found ***"},"SUCMOTH1AAA_GRTR20__",null,"Input",null,null,160,"F","Input!F160",{"$f":"_xlfn.XLOOKUP(F357,'Raw Data'!$I$4:$I$5000,'Raw Data'!$E$4:$E$5000,100,0)","v":100},{"$f":"IF(N357=0,_xlfn.XLOOKUP(F357,'Raw Data'!$I$4:$I$5000,'Raw Data'!$H$4:$H$5000,\"\",0),\"\")","v":""},{"$f":"IF(INDIRECT(M357) = \"\",\"\",INDIRECT(M357))","v":""},"n"]
["SUCMOTH1AA_LESS1",null,null,null,{"$f":"_xlfn.XLOOKUP(F358,'Raw Data'!$I$4:$I$5000,'Raw Data'!$D$4:$D$5000,\"*** Mnemonic not found ***\",0)","v":"*** Mnemonic not found ***"},"SUCMOTH1AA_LESS1__",null,"Input",null,null,{"$f":"K353","v":156},"G","Input!G156",{"$f":"_xlfn.XLOOKUP(F358,'Raw Data'!$I$4:$I$5000,'Raw Data'!$E$4:$E$5000,100,0)","v":100},{"$f":"IF(N358=0,_xlfn.XLOOKUP(F358,'Raw Data'!$I$4:$I$5000,'Raw Data'!$H$4:$H$5000,\"\",0),\"\")","v":""},{"$f":"IF(INDIRECT(M358) = \"\",\"\",INDIRECT(M358))","v":""},"n"]
["SUCMOTH1AA_1TO5",null,null,null,{"$f":"_xlfn.XLOOKUP(F359,'Raw Data'!$I$4:$I$5000,'Raw Data'!$D$4:$D$5000,\"*** Mnemonic not found ***\",0)","v":"*** Mnemonic not found ***"},"SUCMOTH1AA_1TO5__",null,"Input",null,null,{"$f":"K358+1","v":157},{"$f":"L358","v":"G"},"Input!G157",{"$f":"_xlfn.XLOOKUP(F359,'Raw Data'!$I$4:$I$5000,'Raw Data'!$E$4:$E$5000,100,0)","v":100},{"$f":"IF(N359=0,_xlfn.XLOOKUP(F359,'Raw Data'!$I$4:$I$5000,'Raw Data'!$H$4:$H$5000,\"\",0),\"\")","v":""},{"$f":"IF(INDIRECT(M359) = \"\",\"\",INDIRECT(M359))","v":""},"n"]
["SUCMOTH1AA_5TO10",null,null,null,{"$f":"_xlfn.XLOOKUP(F360,'Raw Data'!$I$4:$I$5000,'Raw Data'!$D$4:$D$5000,\"*** Mnemonic not found ***\",0)","v":"*** Mnemonic not found ***"},"SUCMOTH1AA_5TO10__",null,"Input",null,null,{"$f":"K359+1","v":158},"G","Input!G158",{"$f":"_xlfn.XLOOKUP(F360,'Raw Data'!$I$4:$I$5000,'Raw Data'!$E$4:$E$5000,100,0)","v":100},{"$f":"IF(N360=0,_xlfn.XLOOKUP(F360,'Raw Data'!$I$4:$I$5000,'Raw Data'!$H$4:$H$5000,\"\",0),\"\")","v":""},{"$f":"IF(INDIRECT(M360) = \"\",\"\",INDIRECT(M360))","v":""},"n"]
["SUCMOTH1AA_10TO20",null,null,null,{"$f":"_xlfn.XLOOKUP(F361,'Raw Data'!$I$4:$I$5000,'Raw Data'!$D$4:$D$5000,\"*** Mnemonic not found ***\",0)","v":"*** Mnemonic not found ***"},"SUCMOTH1AA_10TO20__",null,"Input",null,null,159,"G","Input!G159",{"$f":"_xlfn.XLOOKUP(F361,'Raw Data'!$I$4:$I$5000,'Raw Data'!$E$4:$E$5000,100,0)","v":100},{"$f":"IF(N361=0,_xlfn.XLOOKUP(F361,'Raw Data'!$I$4:$I$5000,'Raw Data'!$H$4:$H$5000,\"\",0),\"\")","v":""},{"$f":"IF(INDIRECT(M361) = \"\",\"\",INDIRECT(M361))","v":""},"n"]
["SUCMOTH1AA_GRTR20",null,null,null,{"$f":"_xlfn.XLOOKUP(F362,'Raw Data'!$I$4:$I$5000,'Raw Data'!$D$4:$D$5000,\"*** Mnemonic not found ***\",0)","v":"*** Mnemonic not found ***"},"SUCMOTH1AA_GRTR20__",null,"Input",null,null,160,"G","Input!G160",{"$f":"_xlfn.XLOOKUP(F362,'Raw Data'!$I$4:$I$5000,'Raw Data'!$E$4:$E$5000,100,0)","v":100},{"$f":"IF(N362=0,_xlfn.XLOOKUP(F362,'Raw Data'!$I$4:$I$5000,'Raw Data'!$H$4:$H$5000,\"\",0),\"\")","v":""},{"$f":"IF(INDIRECT(M362) = \"\",\"\",INDIRECT(M362))","v":""},"n"]
["SUCMOTH1A_LESS1",null,null,null,{"$f":"_xlfn.XLOOKUP(F363,'Raw Data'!$I$4:$I$5000,'Raw Data'!$D$4:$D$5000,\"*** Mnemonic not found ***\",0)","v":"*** Mnemonic not found ***"},"SUCMOTH1A_LESS1__",null,"Input",null,null,{"$f":"K358","v":156},"H","Input!H156",{"$f":"_xlfn.XLOOKUP(F363,'Raw Data'!$I$4:$I$5000,'Raw Data'!$E$4:$E$5000,100,0)","v":100},{"$f":"IF(N363=0,_xlfn.XLOOKUP(F363,'Raw Data'!$I$4:$I$5000,'Raw Data'!$H$4:$H$5000,\"\",0),\"\")","v":""},{"$f":"IF(INDIRECT(M363) = \"\",\"\",INDIRECT(M363))","v":""},"n"]
["SUCMOTH1A_1TO5",null,null,null,{"$f":"_xlfn.XLOOKUP(F364,'Raw Data'!$I$4:$I$5000,'Raw Data'!$D$4:$D$5000,\"*** Mnemonic not found ***\",0)","v":"*** Mnemonic not found ***"},"SUCMOTH1A_1TO5__",null,"Input",null,null,{"$f":"K363+1","v":157},{"$f":"L363","v":"H"},"Input!H157",{"$f":"_xlfn.XLOOKUP(F364,'Raw Data'!$I$4:$I$5000,'Raw Data'!$E$4:$E$5000,100,0)","v":100},{"$f":"IF(N364=0,_xlfn.XLOOKUP(F364,'Raw Data'!$I$4:$I$5000,'Raw Data'!$H$4:$H$5000,\"\",0),\"\")","v":""},{"$f":"IF(INDIRECT(M364) = \"\",\"\",INDIRECT(M364))","v":""},"n"]
["SUCMOTH1A_5TO10",null,null,null,{"$f":"_xlfn.XLOOKUP(F365,'Raw Data'!$I$4:$I$5000,'Raw Data'!$D$4:$D$5000,\"*** Mnemonic not found ***\",0)","v":"*** Mnemonic not found ***"},"SUCMOTH1A_5TO10__",null,"Input",null,null,{"$f":"K364+1","v":158},"H","Input!H158",{"$f":"_xlfn.XLOOKUP(F365,'Raw Data'!$I$4:$I$5000,'Raw Data'!$E$4:$E$5000,100,0)","v":100},{"$f":"IF(N365=0,_xlfn.XLOOKUP(F365,'Raw Data'!$I$4:$I$5000,'Raw Data'!$H$4:$H$5000,\"\",0),\"\")","v":""},{"$f":"IF(INDIRECT(M365) = \"\",\"\",INDIRECT(M365))","v":""},"n"]
["SUCMOTH1A_10TO20",null,null,null,{"$f":"_xlfn.XLOOKUP(F366,'Raw Data'!$I$4:$I$5000,'Raw Data'!$D$4:$D$5000,\"*** Mnemonic not found ***\",0)","v":"*** Mnemonic not found ***"},"SUCMOTH1A_10TO20__",null,"Input",null,null,159,"H","Input!H159",{"$f":"_xlfn.XLOOKUP(F366,'Raw Data'!$I$4:$I$5000,'Raw Data'!$E$4:$E$5000,100,0)","v":100},{"$f":"IF(N366=0,_xlfn.XLOOKUP(F366,'Raw Data'!$I$4:$I$5000,'Raw Data'!$H$4:$H$5000,\"\",0),\"\")","v":""},{"$f":"IF(INDIRECT(M366) = \"\",\"\",INDIRECT(M366))","v":""},"n"]
["SUCMOTH1A_GRTR20",null,null,null,{"$f":"_xlfn.XLOOKUP(F367,'Raw Data'!$I$4:$I$5000,'Raw Data'!$D$4:$D$5000,\"*** Mnemonic not found ***\",0)","v":"*** Mnemonic not found ***"},"SUCMOTH1A_GRTR20__",null,"Input",null,null,160,"H","Input!H160",{"$f":"_xlfn.XLOOKUP(F367,'Raw Data'!$I$4:$I$5000,'Raw Data'!$E$4:$E$5000,100,0)","v":100},{"$f":"IF(N367=0,_xlfn.XLOOKUP(F367,'Raw Data'!$I$4:$I$5000,'Raw Data'!$H$4:$H$5000,\"\",0),\"\")","v":""},{"$f":"IF(INDIRECT(M367) = \"\",\"\",INDIRECT(M367))","v":""},"n"]
["SUCMOTH1BBB_LESS1",null,null,null,{"$f":"_xlfn.XLOOKUP(F368,'Raw Data'!$I$4:$I$5000,'Raw Data'!$D$4:$D$5000,\"*** Mnemonic not found ***\",0)","v":"*** Mnemonic not found ***"},"SUCMOTH1BBB_LESS1__",null,"Input",null,null,{"$f":"K363","v":156},"I","Input!I156",{"$f":"_xlfn.XLOOKUP(F368,'Raw Data'!$I$4:$I$5000,'Raw Data'!$E$4:$E$5000,100,0)","v":100},{"$f":"IF(N368=0,_xlfn.XLOOKUP(F368,'Raw Data'!$I$4:$I$5000,'Raw Data'!$H$4:$H$5000,\"\",0),\"\")","v":""},{"$f":"IF(INDIRECT(M368) = \"\",\"\",INDIRECT(M368))","v":""},"n"]
["SUCMOTH1BBB_1TO5",null,null,null,{"$f":"_xlfn.XLOOKUP(F369,'Raw Data'!$I$4:$I$5000,'Raw Data'!$D$4:$D$5000,\"*** Mnemonic not found ***\",0)","v":"*** Mnemonic not found ***"},"SUCMOTH1BBB_1TO5__",null,"Input",null,null,{"$f":"K368+1","v":157},{"$f":"L368","v":"I"},"Input!I157",{"$f":"_xlfn.XLOOKUP(F369,'Raw Data'!$I$4:$I$5000,'Raw Data'!$E$4:$E$5000,100,0)","v":100},{"$f":"IF(N369=0,_xlfn.XLOOKUP(F369,'Raw Data'!$I$4:$I$5000,'Raw Data'!$H$4:$H$5000,\"\",0),\"\")","v":""},{"$f":"IF(INDIRECT(M369) = \"\",\"\",INDIRECT(M369))","v":""},"n"]
["SUCMOTH1BBB_5TO10",null,null,null,{"$f":"_xlfn.XLOOKUP(F370,'Raw Data'!$I$4:$I$5000,'Raw Data'!$D$4:$D$5000,\"*** Mnemonic not found ***\",0)","v":"*** Mnemonic not found ***"},"SUCMOTH1BBB_5TO10__",null,"Input",null,null,{"$f":"K369+1","v":158},"I","Input!I158",{"$f":"_xlfn.XLOOKUP(F370,'Raw Data'!$I$4:$I$5000,'Raw Data'!$E$4:$E$5000,100,0)","v":100},{"$f":"IF(N370=0,_xlfn.XLOOKUP(F370,'Raw Data'!$I$4:$I$5000,'Raw Data'!$H$4:$H$5000,\"\",0),\"\")","v":""},{"$f":"IF(INDIRECT(M370) = \"\",\"\",INDIRECT(M370))","v":""},"n"]
["SUCMOTH1BBB_10TO20",null,null,null,{"$f":"_xlfn.XLOOKUP(F371,'Raw Data'!$I$4:$I$5000,'Raw Data'!$D$4:$D$5000,\"*** Mnemonic not found ***\",0)","v":"*** Mnemonic not found ***"},"SUCMOTH1BBB_10TO20__",null,"Input",null,null,159,"I","Input!I159",{"$f":"_xlfn.XLOOKUP(F371,'Raw Data'!$I$4:$I$5000,'Raw Data'!$E$4:$E$5000,100,0)","v":100},{"$f":"IF(N371=0,_xlfn.XLOOKUP(F371,'Raw Data'!$I$4:$I$5000,'Raw Data'!$H$4:$H$5000,\"\",0),\"\")","v":""},{"$f":"IF(INDIRECT(M371) = \"\",\"\",INDIRECT(M371))","v":""},"n"]
["SUCMOTH1BBB_GRTR20",null,null,null,{"$f":"_xlfn.XLOOKUP(F372,'Raw Data'!$I$4:$I$5000,'Raw Data'!$D$4:$D$5000,\"*** Mnemonic not found ***\",0)","v":"*** Mnemonic not found ***"},"SUCMOTH1BBB_GRTR20__",null,"Input",null,null,160,"I","Input!I160",{"$f":"_xlfn.XLOOKUP(F372,'Raw Data'!$I$4:$I$5000,'Raw Data'!$E$4:$E$5000,100,0)","v":100},{"$f":"IF(N372=0,_xlfn.XLOOKUP(F372,'Raw Data'!$I$4:$I$5000,'Raw Data'!$H$4:$H$5000,\"\",0),\"\")","v":""},{"$f":"IF(INDIRECT(M372) = \"\",\"\",INDIRECT(M372))","v":""},"n"]
["SUCMOTH1BB_LESS1",null,null,null,{"$f":"_xlfn.XLOOKUP(F373,'Raw Data'!$I$4:$I$5000,'Raw Data'!$D$4:$D$5000,\"*** Mnemonic not found ***\",0)","v":"*** Mnemonic not found ***"},"SUCMOTH1BB_LESS1__",null,"Input",null,null,{"$f":"K368","v":156},"J","Input!J156",{"$f":"_xlfn.XLOOKUP(F373,'Raw Data'!$I$4:$I$5000,'Raw Data'!$E$4:$E$5000,100,0)","v":100},{"$f":"IF(N373=0,_xlfn.XLOOKUP(F373,'Raw Data'!$I$4:$I$5000,'Raw Data'!$H$4:$H$5000,\"\",0),\"\")","v":""},{"$f":"IF(INDIRECT(M373) = \"\",\"\",INDIRECT(M373))","v":""},"n"]
["SUCMOTH1BB_1TO5",null,null,null,{"$f":"_xlfn.XLOOKUP(F374,'Raw Data'!$I$4:$I$5000,'Raw Data'!$D$4:$D$5000,\"*** Mnemonic not found ***\",0)","v":"*** Mnemonic not found ***"},"SUCMOTH1BB_1TO5__",null,"Input",null,null,{"$f":"K373+1","v":157},{"$f":"L373","v":"J"},"Input!J157",{"$f":"_xlfn.XLOOKUP(F374,'Raw Data'!$I$4:$I$5000,'Raw Data'!$E$4:$E$5000,100,0)","v":100},{"$f":"IF(N374=0,_xlfn.XLOOKUP(F374,'Raw Data'!$I$4:$I$5000,'Raw Data'!$H$4:$H$5000,\"\",0),\"\")","v":""},{"$f":"IF(INDIRECT(M374) = \"\",\"\",INDIRECT(M374))","v":""},"n"]
["SUCMOTH1BB_5TO10",null,null,null,{"$f":"_xlfn.XLOOKUP(F375,'Raw Data'!$I$4:$I$5000,'Raw Data'!$D$4:$D$5000,\"*** Mnemonic not found ***\",0)","v":"*** Mnemonic not found ***"},"SUCMOTH1BB_5TO10__",null,"Input",null,null,{"$f":"K374+1","v":158},"J","Input!J158",{"$f":"_xlfn.XLOOKUP(F375,'Raw Data'!$I$4:$I$5000,'Raw Data'!$E$4:$E$5000,100,0)","v":100},{"$f":"IF(N375=0,_xlfn.XLOOKUP(F375,'Raw Data'!$I$4:$I$5000,'Raw Data'!$H$4:$H$5000,\"\",0),\"\")","v":""},{"$f":"IF(INDIRECT(M375) = \"\",\"\",INDIRECT(M375))","v":""},"n"]
["SUCMOTH1BB_10TO20",null,null,null,{"$f":"_xlfn.XLOOKUP(F376,'Raw Data'!$I$4:$I$5000,'Raw Data'!$D$4:$D$5000,\"*** Mnemonic not found ***\",0)","v":"*** Mnemonic not found ***"},"SUCMOTH1BB_10TO20__",null,"Input",null,null,159,"J","Input!J159",{"$f":"_xlfn.XLOOKUP(F376,'Raw Data'!$I$4:$I$5000,'Raw Data'!$E$4:$E$5000,100,0)","v":100},{"$f":"IF(N376=0,_xlfn.XLOOKUP(F376,'Raw Data'!$I$4:$I$5000,'Raw Data'!$H$4:$H$5000,\"\",0),\"\")","v":""},{"$f":"IF(INDIRECT(M376) = \"\",\"\",INDIRECT(M376))","v":""},"n"]
["SUCMOTH1BB_GRTR20",null,null,null,{"$f":"_xlfn.XLOOKUP(F377,'Raw Data'!$I$4:$I$5000,'Raw Data'!$D$4:$D$5000,\"*** Mnemonic not found ***\",0)","v":"*** Mnemonic not found ***"},"SUCMOTH1BB_GRTR20__",null,"Input",null,null,160,"J","Input!J160",{"$f":"_xlfn.XLOOKUP(F377,'Raw Data'!$I$4:$I$5000,'Raw Data'!$E$4:$E$5000,100,0)","v":100},{"$f":"IF(N377=0,_xlfn.XLOOKUP(F377,'Raw Data'!$I$4:$I$5000,'Raw Data'!$H$4:$H$5000,\"\",0),\"\")","v":""},{"$f":"IF(INDIRECT(M377) = \"\",\"\",INDIRECT(M377))","v":""},"n"]
["SUCMOTH1B_LESS1",null,null,null,{"$f":"_xlfn.XLOOKUP(F378,'Raw Data'!$I$4:$I$5000,'Raw Data'!$D$4:$D$5000,\"*** Mnemonic not found ***\",0)","v":"*** Mnemonic not found ***"},"SUCMOTH1B_LESS1__",null,"Input",null,null,{"$f":"K373","v":156},"K","Input!K156",{"$f":"_xlfn.XLOOKUP(F378,'Raw Data'!$I$4:$I$5000,'Raw Data'!$E$4:$E$5000,100,0)","v":100},{"$f":"IF(N378=0,_xlfn.XLOOKUP(F378,'Raw Data'!$I$4:$I$5000,'Raw Data'!$H$4:$H$5000,\"\",0),\"\")","v":""},{"$f":"IF(INDIRECT(M378) = \"\",\"\",INDIRECT(M378))","v":""},"n"]
["SUCMOTH1B_1TO5",null,null,null,{"$f":"_xlfn.XLOOKUP(F379,'Raw Data'!$I$4:$I$5000,'Raw Data'!$D$4:$D$5000,\"*** Mnemonic not found ***\",0)","v":"*** Mnemonic not found ***"},"SUCMOTH1B_1TO5__",null,"Input",null,null,{"$f":"K378+1","v":157},{"$f":"L378","v":"K"},"Input!K157",{"$f":"_xlfn.XLOOKUP(F379,'Raw Data'!$I$4:$I$5000,'Raw Data'!$E$4:$E$5000,100,0)","v":100},{"$f":"IF(N379=0,_xlfn.XLOOKUP(F379,'Raw Data'!$I$4:$I$5000,'Raw Data'!$H$4:$H$5000,\"\",0),\"\")","v":""},{"$f":"IF(INDIRECT(M379) = \"\",\"\",INDIRECT(M379))","v":""},"n"]
["SUCMOTH1B_5TO10",null,null,null,{"$f":"_xlfn.XLOOKUP(F380,'Raw Data'!$I$4:$I$5000,'Raw Data'!$D$4:$D$5000,\"*** Mnemonic not found ***\",0)","v":"*** Mnemonic not found ***"},"SUCMOTH1B_5TO10__",null,"Input",null,null,{"$f":"K379+1","v":158},"K","Input!K158",{"$f":"_xlfn.XLOOKUP(F380,'Raw Data'!$I$4:$I$5000,'Raw Data'!$E$4:$E$5000,100,0)","v":100},{"$f":"IF(N380=0,_xlfn.XLOOKUP(F380,'Raw Data'!$I$4:$I$5000,'Raw Data'!$H$4:$H$5000,\"\",0),\"\")","v":""},{"$f":"IF(INDIRECT(M380) = \"\",\"\",INDIRECT(M380))","v":""},"n"]
["SUCMOTH1B_10TO20",null,null,null,{"$f":"_xlfn.XLOOKUP(F381,'Raw Data'!$I$4:$I$5000,'Raw Data'!$D$4:$D$5000,\"*** Mnemonic not found ***\",0)","v":"*** Mnemonic not found ***"},"SUCMOTH1B_10TO20__",null,"Input",null,null,159,"K","Input!K159",{"$f":"_xlfn.XLOOKUP(F381,'Raw Data'!$I$4:$I$5000,'Raw Data'!$E$4:$E$5000,100,0)","v":100},{"$f":"IF(N381=0,_xlfn.XLOOKUP(F381,'Raw Data'!$I$4:$I$5000,'Raw Data'!$H$4:$H$5000,\"\",0),\"\")","v":""},{"$f":"IF(INDIRECT(M381) = \"\",\"\",INDIRECT(M381))","v":""},"n"]
["SUCMOTH1B_GRTR20",null,null,null,{"$f":"_xlfn.XLOOKUP(F382,'Raw Data'!$I$4:$I$5000,'Raw Data'!$D$4:$D$5000,\"*** Mnemonic not found ***\",0)","v":"*** Mnemonic not found ***"},"SUCMOTH1B_GRTR20__",null,"Input",null,null,160,"K","Input!K160",{"$f":"_xlfn.XLOOKUP(F382,'Raw Data'!$I$4:$I$5000,'Raw Data'!$E$4:$E$5000,100,0)","v":100},{"$f":"IF(N382=0,_xlfn.XLOOKUP(F382,'Raw Data'!$I$4:$I$5000,'Raw Data'!$H$4:$H$5000,\"\",0),\"\")","v":""},{"$f":"IF(INDIRECT(M382) = \"\",\"\",INDIRECT(M382))","v":""},"n"]
["SUCMOTH1CCC_LESS1",null,null,null,{"$f":"_xlfn.XLOOKUP(F383,'Raw Data'!$I$4:$I$5000,'Raw Data'!$D$4:$D$5000,\"*** Mnemonic not found ***\",0)","v":"*** Mnemonic not found ***"},"SUCMOTH1CCC_LESS1__",null,"Input",null,null,{"$f":"K378","v":156},"L","Input!L156",{"$f":"_xlfn.XLOOKUP(F383,'Raw Data'!$I$4:$I$5000,'Raw Data'!$E$4:$E$5000,100,0)","v":100},{"$f":"IF(N383=0,_xlfn.XLOOKUP(F383,'Raw Data'!$I$4:$I$5000,'Raw Data'!$H$4:$H$5000,\"\",0),\"\")","v":""},{"$f":"IF(INDIRECT(M383) = \"\",\"\",INDIRECT(M383))","v":""},"n"]
["SUCMOTH1CCC_1TO5",null,null,null,{"$f":"_xlfn.XLOOKUP(F384,'Raw Data'!$I$4:$I$5000,'Raw Data'!$D$4:$D$5000,\"*** Mnemonic not found ***\",0)","v":"*** Mnemonic not found ***"},"SUCMOTH1CCC_1TO5__",null,"Input",null,null,{"$f":"K383+1","v":157},{"$f":"L383","v":"L"},"Input!L157",{"$f":"_xlfn.XLOOKUP(F384,'Raw Data'!$I$4:$I$5000,'Raw Data'!$E$4:$E$5000,100,0)","v":100},{"$f":"IF(N384=0,_xlfn.XLOOKUP(F384,'Raw Data'!$I$4:$I$5000,'Raw Data'!$H$4:$H$5000,\"\",0),\"\")","v":""},{"$f":"IF(INDIRECT(M384) = \"\",\"\",INDIRECT(M384))","v":""},"n"]
["SUCMOTH1CCC_5TO10",null,null,null,{"$f":"_xlfn.XLOOKUP(F385,'Raw Data'!$I$4:$I$5000,'Raw Data'!$D$4:$D$5000,\"*** Mnemonic not found ***\",0)","v":"*** Mnemonic not found ***"},"SUCMOTH1CCC_5TO10__",null,"Input",null,null,{"$f":"K384+1","v":158},"L","Input!L158",{"$f":"_xlfn.XLOOKUP(F385,'Raw Data'!$I$4:$I$5000,'Raw Data'!$E$4:$E$5000,100,0)","v":100},{"$f":"IF(N385=0,_xlfn.XLOOKUP(F385,'Raw Data'!$I$4:$I$5000,'Raw Data'!$H$4:$H$5000,\"\",0),\"\")","v":""},{"$f":"IF(INDIRECT(M385) = \"\",\"\",INDIRECT(M385))","v":""},"n"]
["SUCMOTH1CCC_10TO20",null,null,null,{"$f":"_xlfn.XLOOKUP(F386,'Raw Data'!$I$4:$I$5000,'Raw Data'!$D$4:$D$5000,\"*** Mnemonic not found ***\",0)","v":"*** Mnemonic not found ***"},"SUCMOTH1CCC_10TO20__",null,"Input",null,null,159,"L","Input!L159",{"$f":"_xlfn.XLOOKUP(F386,'Raw Data'!$I$4:$I$5000,'Raw Data'!$E$4:$E$5000,100,0)","v":100},{"$f":"IF(N386=0,_xlfn.XLOOKUP(F386,'Raw Data'!$I$4:$I$5000,'Raw Data'!$H$4:$H$5000,\"\",0),\"\")","v":""},{"$f":"IF(INDIRECT(M386) = \"\",\"\",INDIRECT(M386))","v":""},"n"]
["SUCMOTH1CCC_GRTR20",null,null,null,{"$f":"_xlfn.XLOOKUP(F387,'Raw Data'!$I$4:$I$5000,'Raw Data'!$D$4:$D$5000,\"*** Mnemonic not found ***\",0)","v":"*** Mnemonic not found ***"},"SUCMOTH1CCC_GRTR20__",null,"Input",null,null,160,"L","Input!L160",{"$f":"_xlfn.XLOOKUP(F387,'Raw Data'!$I$4:$I$5000,'Raw Data'!$E$4:$E$5000,100,0)","v":100},{"$f":"IF(N387=0,_xlfn.XLOOKUP(F387,'Raw Data'!$I$4:$I$5000,'Raw Data'!$H$4:$H$5000,\"\",0),\"\")","v":""},{"$f":"IF(INDIRECT(M387) = \"\",\"\",INDIRECT(M387))","v":""},"n"]
["SUCMOTH2AAA_LESS1",null,null,null,{"$f":"_xlfn.XLOOKUP(F388,'Raw Data'!$I$4:$I$5000,'Raw Data'!$D$4:$D$5000,\"*** Mnemonic not found ***\",0)","v":"*** Mnemonic not found ***"},"SUCMOTH2AAA_LESS1__",null,"Input",{"$f":"ROW(section_bonds_sp_unrated_step_2_3)","v":118},{"$f":"J353+8","v":46},{"$f":"I388+J388","v":164},"F","Input!F164",{"$f":"_xlfn.XLOOKUP(F388,'Raw Data'!$I$4:$I$5000,'Raw Data'!$E$4:$E$5000,100,0)","v":100},{"$f":"IF(N388=0,_xlfn.XLOOKUP(F388,'Raw Data'!$I$4:$I$5000,'Raw Data'!$H$4:$H$5000,\"\",0),\"\")","v":""},{"$f":"IF(INDIRECT(M388) = \"\",\"\",INDIRECT(M388))","v":""},"n"]
["SUCMOTH2AAA_1TO5",null,null,null,{"$f":"_xlfn.XLOOKUP(F389,'Raw Data'!$I$4:$I$5000,'Raw Data'!$D$4:$D$5000,\"*** Mnemonic not found ***\",0)","v":"*** Mnemonic not found ***"},{"$f":"CONCATENATE(A389,\"_\",B389,\"_\",D389)","v":"SUCMOTH2AAA_1TO5__"},null,"Input",null,null,{"$f":"K388+1","v":165},{"$f":"L388","v":"F"},"Input!F165",{"$f":"_xlfn.XLOOKUP(F389,'Raw Data'!$I$4:$I$5000,'Raw Data'!$E$4:$E$5000,100,0)","v":100},{"$f":"IF(N389=0,_xlfn.XLOOKUP(F389,'Raw Data'!$I$4:$I$5000,'Raw Data'!$H$4:$H$5000,\"\",0),\"\")","v":""},{"$f":"IF(INDIRECT(M389) = \"\",\"\",INDIRECT(M389))","v":""},"n"]
["SUCMOTH2AAA_5TO10",null,null,null,{"$f":"_xlfn.XLOOKUP(F390,'Raw Data'!$I$4:$I$5000,'Raw Data'!$D$4:$D$5000,\"*** Mnemonic not found ***\",0)","v":"*** Mnemonic not found ***"},"SUCMOTH2AAA_5TO10__",null,"Input",null,null,{"$f":"K389+1","v":166},"F","Input!F166",{"$f":"_xlfn.XLOOKUP(F390,'Raw Data'!$I$4:$I$5000,'Raw Data'!$E$4:$E$5000,100,0)","v":100},{"$f":"IF(N390=0,_xlfn.XLOOKUP(F390,'Raw Data'!$I$4:$I$5000,'Raw Data'!$H$4:$H$5000,\"\",0),\"\")","v":""},{"$f":"IF(INDIRECT(M390) = \"\",\"\",INDIRECT(M390))","v":""},"n"]
["SUCMOTH2AAA_10TO20",null,null,null,{"$f":"_xlfn.XLOOKUP(F391,'Raw Data'!$I$4:$I$5000,'Raw Data'!$D$4:$D$5000,\"*** Mnemonic not found ***\",0)","v":"*** Mnemonic not found ***"},"SUCMOTH2AAA_10TO20__",null,"Input",null,null,167,"F","Input!F167",{"$f":"_xlfn.XLOOKUP(F391,'Raw Data'!$I$4:$I$5000,'Raw Data'!$E$4:$E$5000,100,0)","v":100},{"$f":"IF(N391=0,_xlfn.XLOOKUP(F391,'Raw Data'!$I$4:$I$5000,'Raw Data'!$H$4:$H$5000,\"\",0),\"\")","v":""},{"$f":"IF(INDIRECT(M391) = \"\",\"\",INDIRECT(M391))","v":""},"n"]
["SUCMOTH2AAA_GRTR20",null,null,null,{"$f":"_xlfn.XLOOKUP(F392,'Raw Data'!$I$4:$I$5000,'Raw Data'!$D$4:$D$5000,\"*** Mnemonic not found ***\",0)","v":"*** Mnemonic not found ***"},"SUCMOTH2AAA_GRTR20__",null,"Input",null,null,168,"F","Input!F168",{"$f":"_xlfn.XLOOKUP(F392,'Raw Data'!$I$4:$I$5000,'Raw Data'!$E$4:$E$5000,100,0)","v":100},{"$f":"IF(N392=0,_xlfn.XLOOKUP(F392,'Raw Data'!$I$4:$I$5000,'Raw Data'!$H$4:$H$5000,\"\",0),\"\")","v":""},{"$f":"IF(INDIRECT(M392) = \"\",\"\",INDIRECT(M392))","v":""},"n"]
["SUCMOTH2AA_LESS1",null,null,null,{"$f":"_xlfn.XLOOKUP(F393,'Raw Data'!$I$4:$I$5000,'Raw Data'!$D$4:$D$5000,\"*** Mnemonic not found ***\",0)","v":"*** Mnemonic not found ***"},"SUCMOTH2AA_LESS1__",null,"Input",null,null,{"$f":"K388","v":164},"G","Input!G164",{"$f":"_xlfn.XLOOKUP(F393,'Raw Data'!$I$4:$I$5000,'Raw Data'!$E$4:$E$5000,100,0)","v":100},{"$f":"IF(N393=0,_xlfn.XLOOKUP(F393,'Raw Data'!$I$4:$I$5000,'Raw Data'!$H$4:$H$5000,\"\",0),\"\")","v":""},{"$f":"IF(INDIRECT(M393) = \"\",\"\",INDIRECT(M393))","v":""},"n"]
["SUCMOTH2AA_1TO5",null,null,null,{"$f":"_xlfn.XLOOKUP(F394,'Raw Data'!$I$4:$I$5000,'Raw Data'!$D$4:$D$5000,\"*** Mnemonic not found ***\",0)","v":"*** Mnemonic not found ***"},"SUCMOTH2AA_1TO5__",null,"Input",null,null,{"$f":"K393+1","v":165},{"$f":"L393","v":"G"},"Input!G165",{"$f":"_xlfn.XLOOKUP(F394,'Raw Data'!$I$4:$I$5000,'Raw Data'!$E$4:$E$5000,100,0)","v":100},{"$f":"IF(N394=0,_xlfn.XLOOKUP(F394,'Raw Data'!$I$4:$I$5000,'Raw Data'!$H$4:$H$5000,\"\",0),\"\")","v":""},{"$f":"IF(INDIRECT(M394) = \"\",\"\",INDIRECT(M394))","v":""},"n"]
["SUCMOTH2AA_5TO10",null,null,null,{"$f":"_xlfn.XLOOKUP(F395,'Raw Data'!$I$4:$I$5000,'Raw Data'!$D$4:$D$5000,\"*** Mnemonic not found ***\",0)","v":"*** Mnemonic not found ***"},"SUCMOTH2AA_5TO10__",null,"Input",null,null,{"$f":"K394+1","v":166},"G","Input!G166",{"$f":"_xlfn.XLOOKUP(F395,'Raw Data'!$I$4:$I$5000,'Raw Data'!$E$4:$E$5000,100,0)","v":100},{"$f":"IF(N395=0,_xlfn.XLOOKUP(F395,'Raw Data'!$I$4:$I$5000,'Raw Data'!$H$4:$H$5000,\"\",0),\"\")","v":""},{"$f":"IF(INDIRECT(M395) = \"\",\"\",INDIRECT(M395))","v":""},"n"]
["SUCMOTH2AA_10TO20",null,null,null,{"$f":"_xlfn.XLOOKUP(F396,'Raw Data'!$I$4:$I$5000,'Raw Data'!$D$4:$D$5000,\"*** Mnemonic not found ***\",0)","v":"*** Mnemonic not found ***"},"SUCMOTH2AA_10TO20__",null,"Input",null,null,167,"G","Input!G167",{"$f":"_xlfn.XLOOKUP(F396,'Raw Data'!$I$4:$I$5000,'Raw Data'!$E$4:$E$5000,100,0)","v":100},{"$f":"IF(N396=0,_xlfn.XLOOKUP(F396,'Raw Data'!$I$4:$I$5000,'Raw Data'!$H$4:$H$5000,\"\",0),\"\")","v":""},{"$f":"IF(INDIRECT(M396) = \"\",\"\",INDIRECT(M396))","v":""},"n"]
["SUCMOTH2AA_GRTR20",null,null,null,{"$f":"_xlfn.XLOOKUP(F397,'Raw Data'!$I$4:$I$5000,'Raw Data'!$D$4:$D$5000,\"*** Mnemonic not found ***\",0)","v":"*** Mnemonic not found ***"},"SUCMOTH2AA_GRTR20__",null,"Input",null,null,168,"G","Input!G168",{"$f":"_xlfn.XLOOKUP(F397,'Raw Data'!$I$4:$I$5000,'Raw Data'!$E$4:$E$5000,100,0)","v":100},{"$f":"IF(N397=0,_xlfn.XLOOKUP(F397,'Raw Data'!$I$4:$I$5000,'Raw Data'!$H$4:$H$5000,\"\",0),\"\")","v":""},{"$f":"IF(INDIRECT(M397) = \"\",\"\",INDIRECT(M397))","v":""},"n"]
["SUCMOTH2A_LESS1",null,null,null,{"$f":"_xlfn.XLOOKUP(F398,'Raw Data'!$I$4:$I$5000,'Raw Data'!$D$4:$D$5000,\"*** Mnemonic not found ***\",0)","v":"*** Mnemonic not found ***"},"SUCMOTH2A_LESS1__",null,"Input",null,null,{"$f":"K393","v":164},"H","Input!H164",{"$f":"_xlfn.XLOOKUP(F398,'Raw Data'!$I$4:$I$5000,'Raw Data'!$E$4:$E$5000,100,0)","v":100},{"$f":"IF(N398=0,_xlfn.XLOOKUP(F398,'Raw Data'!$I$4:$I$5000,'Raw Data'!$H$4:$H$5000,\"\",0),\"\")","v":""},{"$f":"IF(INDIRECT(M398) = \"\",\"\",INDIRECT(M398))","v":""},"n"]
["SUCMOTH2A_1TO5",null,null,null,{"$f":"_xlfn.XLOOKUP(F399,'Raw Data'!$I$4:$I$5000,'Raw Data'!$D$4:$D$5000,\"*** Mnemonic not found ***\",0)","v":"*** Mnemonic not found ***"},"SUCMOTH2A_1TO5__",null,"Input",null,null,{"$f":"K398+1","v":165},{"$f":"L398","v":"H"},{"$f":"CONCATENATE(H399,\"!\",L399,K399)","v":"Input!H165"},{"$f":"_xlfn.XLOOKUP(F399,'Raw Data'!$I$4:$I$5000,'Raw Data'!$E$4:$E$5000,100,0)","v":100},{"$f":"IF(N399=0,_xlfn.XLOOKUP(F399,'Raw Data'!$I$4:$I$5000,'Raw Data'!$H$4:$H$5000,\"\",0),\"\")","v":""},{"$f":"IF(INDIRECT(M399) = \"\",\"\",INDIRECT(M399))","v":""},"n"]
["SUCMOTH2A_5TO10",null,null,null,{"$f":"_xlfn.XLOOKUP(F400,'Raw Data'!$I$4:$I$5000,'Raw Data'!$D$4:$D$5000,\"*** Mnemonic not found ***\",0)","v":"*** Mnemonic not found ***"},"SUCMOTH2A_5TO10__",null,"Input",null,null,{"$f":"K399+1","v":166},"H","Input!H166",{"$f":"_xlfn.XLOOKUP(F400,'Raw Data'!$I$4:$I$5000,'Raw Data'!$E$4:$E$5000,100,0)","v":100},{"$f":"IF(N400=0,_xlfn.XLOOKUP(F400,'Raw Data'!$I$4:$I$5000,'Raw Data'!$H$4:$H$5000,\"\",0),\"\")","v":""},{"$f":"IF(INDIRECT(M400) = \"\",\"\",INDIRECT(M400))","v":""},"n"]
["SUCMOTH2A_10TO20",null,null,null,{"$f":"_xlfn.XLOOKUP(F401,'Raw Data'!$I$4:$I$5000,'Raw Data'!$D$4:$D$5000,\"*** Mnemonic not found ***\",0)","v":"*** Mnemonic not found ***"},"SUCMOTH2A_10TO20__",null,"Input",null,null,167,"H","Input!H167",{"$f":"_xlfn.XLOOKUP(F401,'Raw Data'!$I$4:$I$5000,'Raw Data'!$E$4:$E$5000,100,0)","v":100},{"$f":"IF(N401=0,_xlfn.XLOOKUP(F401,'Raw Data'!$I$4:$I$5000,'Raw Data'!$H$4:$H$5000,\"\",0),\"\")","v":""},{"$f":"IF(INDIRECT(M401) = \"\",\"\",INDIRECT(M401))","v":""},"n"]
["SUCMOTH2A_GRTR20",null,null,null,{"$f":"_xlfn.XLOOKUP(F402,'Raw Data'!$I$4:$I$5000,'Raw Data'!$D$4:$D$5000,\"*** Mnemonic not found ***\",0)","v":"*** Mnemonic not found ***"},"SUCMOTH2A_GRTR20__",null,"Input",null,null,168,"H","Input!H168",{"$f":"_xlfn.XLOOKUP(F402,'Raw Data'!$I$4:$I$5000,'Raw Data'!$E$4:$E$5000,100,0)","v":100},{"$f":"IF(N402=0,_xlfn.XLOOKUP(F402,'Raw Data'!$I$4:$I$5000,'Raw Data'!$H$4:$H$5000,\"\",0),\"\")","v":""},{"$f":"IF(INDIRECT(M402) = \"\",\"\",INDIRECT(M402))","v":""},"n"]
["SUCMOTH2BBB_LESS1",null,null,null,{"$f":"_xlfn.XLOOKUP(F403,'Raw Data'!$I$4:$I$5000,'Raw Data'!$D$4:$D$5000,\"*** Mnemonic not found ***\",0)","v":"*** Mnemonic not found ***"},"SUCMOTH2BBB_LESS1__",null,"Input",null,null,{"$f":"K398","v":164},"I","Input!I164",{"$f":"_xlfn.XLOOKUP(F403,'Raw Data'!$I$4:$I$5000,'Raw Data'!$E$4:$E$5000,100,0)","v":100},{"$f":"IF(N403=0,_xlfn.XLOOKUP(F403,'Raw Data'!$I$4:$I$5000,'Raw Data'!$H$4:$H$5000,\"\",0),\"\")","v":""},{"$f":"IF(INDIRECT(M403) = \"\",\"\",INDIRECT(M403))","v":""},"n"]
["SUCMOTH2BBB_1TO5",null,null,null,{"$f":"_xlfn.XLOOKUP(F404,'Raw Data'!$I$4:$I$5000,'Raw Data'!$D$4:$D$5000,\"*** Mnemonic not found ***\",0)","v":"*** Mnemonic not found ***"},"SUCMOTH2BBB_1TO5__",null,"Input",null,null,{"$f":"K403+1","v":165},{"$f":"L403","v":"I"},"Input!I165",{"$f":"_xlfn.XLOOKUP(F404,'Raw Data'!$I$4:$I$5000,'Raw Data'!$E$4:$E$5000,100,0)","v":100},{"$f":"IF(N404=0,_xlfn.XLOOKUP(F404,'Raw Data'!$I$4:$I$5000,'Raw Data'!$H$4:$H$5000,\"\",0),\"\")","v":""},{"$f":"IF(INDIRECT(M404) = \"\",\"\",INDIRECT(M404))","v":""},"n"]
["SUCMOTH2BBB_5TO10",null,null,null,{"$f":"_xlfn.XLOOKUP(F405,'Raw Data'!$I$4:$I$5000,'Raw Data'!$D$4:$D$5000,\"*** Mnemonic not found ***\",0)","v":"*** Mnemonic not found ***"},"SUCMOTH2BBB_5TO10__",null,"Input",null,null,{"$f":"K404+1","v":166},"I","Input!I166",{"$f":"_xlfn.XLOOKUP(F405,'Raw Data'!$I$4:$I$5000,'Raw Data'!$E$4:$E$5000,100,0)","v":100},{"$f":"IF(N405=0,_xlfn.XLOOKUP(F405,'Raw Data'!$I$4:$I$5000,'Raw Data'!$H$4:$H$5000,\"\",0),\"\")","v":""},{"$f":"IF(INDIRECT(M405) = \"\",\"\",INDIRECT(M405))","v":""},"n"]
["SUCMOTH2BBB_10TO20",null,null,null,{"$f":"_xlfn.XLOOKUP(F406,'Raw Data'!$I$4:$I$5000,'Raw Data'!$D$4:$D$5000,\"*** Mnemonic not found ***\",0)","v":"*** Mnemonic not found ***"},"SUCMOTH2BBB_10TO20__",null,"Input",null,null,167,"I","Input!I167",{"$f":"_xlfn.XLOOKUP(F406,'Raw Data'!$I$4:$I$5000,'Raw Data'!$E$4:$E$5000,100,0)","v":100},{"$f":"IF(N406=0,_xlfn.XLOOKUP(F406,'Raw Data'!$I$4:$I$5000,'Raw Data'!$H$4:$H$5000,\"\",0),\"\")","v":""},{"$f":"IF(INDIRECT(M406) = \"\",\"\",INDIRECT(M406))","v":""},"n"]
["SUCMOTH2BBB_GRTR20",null,null,null,{"$f":"_xlfn.XLOOKUP(F407,'Raw Data'!$I$4:$I$5000,'Raw Data'!$D$4:$D$5000,\"*** Mnemonic not found ***\",0)","v":"*** Mnemonic not found ***"},"SUCMOTH2BBB_GRTR20__",null,"Input",null,null,168,"I","Input!I168",{"$f":"_xlfn.XLOOKUP(F407,'Raw Data'!$I$4:$I$5000,'Raw Data'!$E$4:$E$5000,100,0)","v":100},{"$f":"IF(N407=0,_xlfn.XLOOKUP(F407,'Raw Data'!$I$4:$I$5000,'Raw Data'!$H$4:$H$5000,\"\",0),\"\")","v":""},{"$f":"IF(INDIRECT(M407) = \"\",\"\",INDIRECT(M407))","v":""},"n"]
["SUCMOTH2BB_LESS1",null,null,null,{"$f":"_xlfn.XLOOKUP(F408,'Raw Data'!$I$4:$I$5000,'Raw Data'!$D$4:$D$5000,\"*** Mnemonic not found ***\",0)","v":"*** Mnemonic not found ***"},"SUCMOTH2BB_LESS1__",null,"Input",null,null,{"$f":"K403","v":164},"J","Input!J164",{"$f":"_xlfn.XLOOKUP(F408,'Raw Data'!$I$4:$I$5000,'Raw Data'!$E$4:$E$5000,100,0)","v":100},{"$f":"IF(N408=0,_xlfn.XLOOKUP(F408,'Raw Data'!$I$4:$I$5000,'Raw Data'!$H$4:$H$5000,\"\",0),\"\")","v":""},{"$f":"IF(INDIRECT(M408) = \"\",\"\",INDIRECT(M408))","v":""},"n"]
["SUCMOTH2BB_1TO5",null,null,null,{"$f":"_xlfn.XLOOKUP(F409,'Raw Data'!$I$4:$I$5000,'Raw Data'!$D$4:$D$5000,\"*** Mnemonic not found ***\",0)","v":"*** Mnemonic not found ***"},"SUCMOTH2BB_1TO5__",null,"Input",null,null,{"$f":"K408+1","v":165},{"$f":"L408","v":"J"},"Input!J165",{"$f":"_xlfn.XLOOKUP(F409,'Raw Data'!$I$4:$I$5000,'Raw Data'!$E$4:$E$5000,100,0)","v":100},{"$f":"IF(N409=0,_xlfn.XLOOKUP(F409,'Raw Data'!$I$4:$I$5000,'Raw Data'!$H$4:$H$5000,\"\",0),\"\")","v":""},{"$f":"IF(INDIRECT(M409) = \"\",\"\",INDIRECT(M409))","v":""},"n"]
["SUCMOTH2BB_5TO10",null,null,null,{"$f":"_xlfn.XLOOKUP(F410,'Raw Data'!$I$4:$I$5000,'Raw Data'!$D$4:$D$5000,\"*** Mnemonic not found ***\",0)","v":"*** Mnemonic not found ***"},"SUCMOTH2BB_5TO10__",null,"Input",null,null,{"$f":"K409+1","v":166},"J","Input!J166",{"$f":"_xlfn.XLOOKUP(F410,'Raw Data'!$I$4:$I$5000,'Raw Data'!$E$4:$E$5000,100,0)","v":100},{"$f":"IF(N410=0,_xlfn.XLOOKUP(F410,'Raw Data'!$I$4:$I$5000,'Raw Data'!$H$4:$H$5000,\"\",0),\"\")","v":""},{"$f":"IF(INDIRECT(M410) = \"\",\"\",INDIRECT(M410))","v":""},"n"]
["SUCMOTH2BB_10TO20",null,null,null,{"$f":"_xlfn.XLOOKUP(F411,'Raw Data'!$I$4:$I$5000,'Raw Data'!$D$4:$D$5000,\"*** Mnemonic not found ***\",0)","v":"*** Mnemonic not found ***"},"SUCMOTH2BB_10TO20__",null,"Input",null,null,167,"J","Input!J167",{"$f":"_xlfn.XLOOKUP(F411,'Raw Data'!$I$4:$I$5000,'Raw Data'!$E$4:$E$5000,100,0)","v":100},{"$f":"IF(N411=0,_xlfn.XLOOKUP(F411,'Raw Data'!$I$4:$I$5000,'Raw Data'!$H$4:$H$5000,\"\",0),\"\")","v":""},{"$f":"IF(INDIRECT(M411) = \"\",\"\",INDIRECT(M411))","v":""},"n"]
["SUCMOTH2BB_GRTR20",null,null,null,{"$f":"_xlfn.XLOOKUP(F412,'Raw Data'!$I$4:$I$5000,'Raw Data'!$D$4:$D$5000,\"*** Mnemonic not found ***\",0)","v":"*** Mnemonic not found ***"},"SUCMOTH2BB_GRTR20__",null,"Input",null,null,168,"J","Input!J168",{"$f":"_xlfn.XLOOKUP(F412,'Raw Data'!$I$4:$I$5000,'Raw Data'!$E$4:$E$5000,100,0)","v":100},{"$f":"IF(N412=0,_xlfn.XLOOKUP(F412,'Raw Data'!$I$4:$I$5000,'Raw Data'!$H$4:$H$5000,\"\",0),\"\")","v":""},{"$f":"IF(INDIRECT(M412) = \"\",\"\",INDIRECT(M412))","v":""},"n"]
["SUCMOTH2B_LESS1",null,null,null,{"$f":"_xlfn.XLOOKUP(F413,'Raw Data'!$I$4:$I$5000,'Raw Data'!$D$4:$D$5000,\"*** Mnemonic not found ***\",0)","v":"*** Mnemonic not found ***"},"SUCMOTH2B_LESS1__",null,"Input",null,null,{"$f":"K408","v":164},"K","Input!K164",{"$f":"_xlfn.XLOOKUP(F413,'Raw Data'!$I$4:$I$5000,'Raw Data'!$E$4:$E$5000,100,0)","v":100},{"$f":"IF(N413=0,_xlfn.XLOOKUP(F413,'Raw Data'!$I$4:$I$5000,'Raw Data'!$H$4:$H$5000,\"\",0),\"\")","v":""},{"$f":"IF(INDIRECT(M413) = \"\",\"\",INDIRECT(M413))","v":""},"n"]
["SUCMOTH2B_1TO5",null,null,null,{"$f":"_xlfn.XLOOKUP(F414,'Raw Data'!$I$4:$I$5000,'Raw Data'!$D$4:$D$5000,\"*** Mnemonic not found ***\",0)","v":"*** Mnemonic not found ***"},"SUCMOTH2B_1TO5__",null,"Input",null,null,{"$f":"K413+1","v":165},{"$f":"L413","v":"K"},"Input!K165",{"$f":"_xlfn.XLOOKUP(F414,'Raw Data'!$I$4:$I$5000,'Raw Data'!$E$4:$E$5000,100,0)","v":100},{"$f":"IF(N414=0,_xlfn.XLOOKUP(F414,'Raw Data'!$I$4:$I$5000,'Raw Data'!$H$4:$H$5000,\"\",0),\"\")","v":""},{"$f":"IF(INDIRECT(M414) = \"\",\"\",INDIRECT(M414))","v":""},"n"]
["SUCMOTH2B_5TO10",null,null,null,{"$f":"_xlfn.XLOOKUP(F415,'Raw Data'!$I$4:$I$5000,'Raw Data'!$D$4:$D$5000,\"*** Mnemonic not found ***\",0)","v":"*** Mnemonic not found ***"},"SUCMOTH2B_5TO10__",null,"Input",null,null,{"$f":"K414+1","v":166},"K","Input!K166",{"$f":"_xlfn.XLOOKUP(F415,'Raw Data'!$I$4:$I$5000,'Raw Data'!$E$4:$E$5000,100,0)","v":100},{"$f":"IF(N415=0,_xlfn.XLOOKUP(F415,'Raw Data'!$I$4:$I$5000,'Raw Data'!$H$4:$H$5000,\"\",0),\"\")","v":""},{"$f":"IF(INDIRECT(M415) = \"\",\"\",INDIRECT(M415))","v":""},"n"]
["SUCMOTH2B_10TO20",null,null,null,{"$f":"_xlfn.XLOOKUP(F416,'Raw Data'!$I$4:$I$5000,'Raw Data'!$D$4:$D$5000,\"*** Mnemonic not found ***\",0)","v":"*** Mnemonic not found ***"},"SUCMOTH2B_10TO20__",null,"Input",null,null,167,"K","Input!K167",{"$f":"_xlfn.XLOOKUP(F416,'Raw Data'!$I$4:$I$5000,'Raw Data'!$E$4:$E$5000,100,0)","v":100},{"$f":"IF(N416=0,_xlfn.XLOOKUP(F416,'Raw Data'!$I$4:$I$5000,'Raw Data'!$H$4:$H$5000,\"\",0),\"\")","v":""},{"$f":"IF(INDIRECT(M416) = \"\",\"\",INDIRECT(M416))","v":""},"n"]
["SUCMOTH2B_GRTR20",null,null,null,{"$f":"_xlfn.XLOOKUP(F417,'Raw Data'!$I$4:$I$5000,'Raw Data'!$D$4:$D$5000,\"*** Mnemonic not found ***\",0)","v":"*** Mnemonic not found ***"},"SUCMOTH2B_GRTR20__",null,"Input",null,null,168,"K","Input!K168",{"$f":"_xlfn.XLOOKUP(F417,'Raw Data'!$I$4:$I$5000,'Raw Data'!$E$4:$E$5000,100,0)","v":100},{"$f":"IF(N417=0,_xlfn.XLOOKUP(F417,'Raw Data'!$I$4:$I$5000,'Raw Data'!$H$4:$H$5000,\"\",0),\"\")","v":""},{"$f":"IF(INDIRECT(M417) = \"\",\"\",INDIRECT(M417))","v":""},"n"]
["SUCMOTH2CCC_LESS1",null,null,null,{"$f":"_xlfn.XLOOKUP(F418,'Raw Data'!$I$4:$I$5000,'Raw Data'!$D$4:$D$5000,\"*** Mnemonic not found ***\",0)","v":"*** Mnemonic not found ***"},"SUCMOTH2CCC_LESS1__",null,"Input",null,null,{"$f":"K413","v":164},"L","Input!L164",{"$f":"_xlfn.XLOOKUP(F418,'Raw Data'!$I$4:$I$5000,'Raw Data'!$E$4:$E$5000,100,0)","v":100},{"$f":"IF(N418=0,_xlfn.XLOOKUP(F418,'Raw Data'!$I$4:$I$5000,'Raw Data'!$H$4:$H$5000,\"\",0),\"\")","v":""},{"$f":"IF(INDIRECT(M418) = \"\",\"\",INDIRECT(M418))","v":""},"n"]
["SUCMOTH2CCC_1TO5",null,null,null,{"$f":"_xlfn.XLOOKUP(F419,'Raw Data'!$I$4:$I$5000,'Raw Data'!$D$4:$D$5000,\"*** Mnemonic not found ***\",0)","v":"*** Mnemonic not found ***"},"SUCMOTH2CCC_1TO5__",null,"Input",null,null,{"$f":"K418+1","v":165},{"$f":"L418","v":"L"},"Input!L165",{"$f":"_xlfn.XLOOKUP(F419,'Raw Data'!$I$4:$I$5000,'Raw Data'!$E$4:$E$5000,100,0)","v":100},{"$f":"IF(N419=0,_xlfn.XLOOKUP(F419,'Raw Data'!$I$4:$I$5000,'Raw Data'!$H$4:$H$5000,\"\",0),\"\")","v":""},{"$f":"IF(INDIRECT(M419) = \"\",\"\",INDIRECT(M419))","v":""},"n"]
["SUCMOTH2CCC_5TO10",null,null,null,{"$f":"_xlfn.XLOOKUP(F420,'Raw Data'!$I$4:$I$5000,'Raw Data'!$D$4:$D$5000,\"*** Mnemonic not found ***\",0)","v":"*** Mnemonic not found ***"},"SUCMOTH2CCC_5TO10__",null,"Input",null,null,{"$f":"K419+1","v":166},"L","Input!L166",{"$f":"_xlfn.XLOOKUP(F420,'Raw Data'!$I$4:$I$5000,'Raw Data'!$E$4:$E$5000,100,0)","v":100},{"$f":"IF(N420=0,_xlfn.XLOOKUP(F420,'Raw Data'!$I$4:$I$5000,'Raw Data'!$H$4:$H$5000,\"\",0),\"\")","v":""},{"$f":"IF(INDIRECT(M420) = \"\",\"\",INDIRECT(M420))","v":""},"n"]
["SUCMOTH2CCC_10TO20",null,null,null,{"$f":"_xlfn.XLOOKUP(F421,'Raw Data'!$I$4:$I$5000,'Raw Data'!$D$4:$D$5000,\"*** Mnemonic not found ***\",0)","v":"*** Mnemonic not found ***"},"SUCMOTH2CCC_10TO20__",null,"Input",null,null,167,"L","Input!L167",{"$f":"_xlfn.XLOOKUP(F421,'Raw Data'!$I$4:$I$5000,'Raw Data'!$E$4:$E$5000,100,0)","v":100},{"$f":"IF(N421=0,_xlfn.XLOOKUP(F421,'Raw Data'!$I$4:$I$5000,'Raw Data'!$H$4:$H$5000,\"\",0),\"\")","v":""},{"$f":"IF(INDIRECT(M421) = \"\",\"\",INDIRECT(M421))","v":""},"n"]
["SUCMOTH2CCC_GRTR20",null,null,null,{"$f":"_xlfn.XLOOKUP(F422,'Raw Data'!$I$4:$I$5000,'Raw Data'!$D$4:$D$5000,\"*** Mnemonic not found ***\",0)","v":"*** Mnemonic not found ***"},"SUCMOTH2CCC_GRTR20__",null,"Input",null,null,168,"L","Input!L168",{"$f":"_xlfn.XLOOKUP(F422,'Raw Data'!$I$4:$I$5000,'Raw Data'!$E$4:$E$5000,100,0)","v":100},{"$f":"IF(N422=0,_xlfn.XLOOKUP(F422,'Raw Data'!$I$4:$I$5000,'Raw Data'!$H$4:$H$5000,\"\",0),\"\")","v":""},{"$f":"IF(INDIRECT(M422) = \"\",\"\",INDIRECT(M422))","v":""},"n"]
["SUCMOTH3AAA_LESS1",null,null,null,{"$f":"_xlfn.XLOOKUP(F423,'Raw Data'!$I$4:$I$5000,'Raw Data'!$D$4:$D$5000,\"*** Mnemonic not found ***\",0)","v":"*** Mnemonic not found ***"},"SUCMOTH3AAA_LESS1__",null,"Input",{"$f":"ROW(section_bonds_sp_unrated_step_2_3)","v":118},{"$f":"J388+8","v":54},{"$f":"I423+J423","v":172},"F","Input!F172",{"$f":"_xlfn.XLOOKUP(F423,'Raw Data'!$I$4:$I$5000,'Raw Data'!$E$4:$E$5000,100,0)","v":100},{"$f":"IF(N423=0,_xlfn.XLOOKUP(F423,'Raw Data'!$I$4:$I$5000,'Raw Data'!$H$4:$H$5000,\"\",0),\"\")","v":""},{"$f":"IF(INDIRECT(M423) = \"\",\"\",INDIRECT(M423))","v":""},"n"]
["SUCMOTH3AAA_1TO5",null,null,null,{"$f":"_xlfn.XLOOKUP(F424,'Raw Data'!$I$4:$I$5000,'Raw Data'!$D$4:$D$5000,\"*** Mnemonic not found ***\",0)","v":"*** Mnemonic not found ***"},"SUCMOTH3AAA_1TO5__",null,"Input",null,null,{"$f":"K423+1","v":173},{"$f":"L423","v":"F"},"Input!F173",{"$f":"_xlfn.XLOOKUP(F424,'Raw Data'!$I$4:$I$5000,'Raw Data'!$E$4:$E$5000,100,0)","v":100},{"$f":"IF(N424=0,_xlfn.XLOOKUP(F424,'Raw Data'!$I$4:$I$5000,'Raw Data'!$H$4:$H$5000,\"\",0),\"\")","v":""},{"$f":"IF(INDIRECT(M424) = \"\",\"\",INDIRECT(M424))","v":""},"n"]
["SUCMOTH3AAA_5TO10",null,null,null,{"$f":"_xlfn.XLOOKUP(F425,'Raw Data'!$I$4:$I$5000,'Raw Data'!$D$4:$D$5000,\"*** Mnemonic not found ***\",0)","v":"*** Mnemonic not found ***"},"SUCMOTH3AAA_5TO10__",null,"Input",null,null,{"$f":"K424+1","v":174},"F","Input!F174",{"$f":"_xlfn.XLOOKUP(F425,'Raw Data'!$I$4:$I$5000,'Raw Data'!$E$4:$E$5000,100,0)","v":100},{"$f":"IF(N425=0,_xlfn.XLOOKUP(F425,'Raw Data'!$I$4:$I$5000,'Raw Data'!$H$4:$H$5000,\"\",0),\"\")","v":""},{"$f":"IF(INDIRECT(M425) = \"\",\"\",INDIRECT(M425))","v":""},"n"]
["SUCMOTH3AAA_10TO20",null,null,null,{"$f":"_xlfn.XLOOKUP(F426,'Raw Data'!$I$4:$I$5000,'Raw Data'!$D$4:$D$5000,\"*** Mnemonic not found ***\",0)","v":"*** Mnemonic not found ***"},"SUCMOTH3AAA_10TO20__",null,"Input",null,null,175,"F","Input!F175",{"$f":"_xlfn.XLOOKUP(F426,'Raw Data'!$I$4:$I$5000,'Raw Data'!$E$4:$E$5000,100,0)","v":100},{"$f":"IF(N426=0,_xlfn.XLOOKUP(F426,'Raw Data'!$I$4:$I$5000,'Raw Data'!$H$4:$H$5000,\"\",0),\"\")","v":""},{"$f":"IF(INDIRECT(M426) = \"\",\"\",INDIRECT(M426))","v":""},"n"]
["SUCMOTH3AAA_GRTR20",null,null,null,{"$f":"_xlfn.XLOOKUP(F427,'Raw Data'!$I$4:$I$5000,'Raw Data'!$D$4:$D$5000,\"*** Mnemonic not found ***\",0)","v":"*** Mnemonic not found ***"},"SUCMOTH3AAA_GRTR20__",null,"Input",null,null,176,"F","Input!F176",{"$f":"_xlfn.XLOOKUP(F427,'Raw Data'!$I$4:$I$5000,'Raw Data'!$E$4:$E$5000,100,0)","v":100},{"$f":"IF(N427=0,_xlfn.XLOOKUP(F427,'Raw Data'!$I$4:$I$5000,'Raw Data'!$H$4:$H$5000,\"\",0),\"\")","v":""},{"$f":"IF(INDIRECT(M427) = \"\",\"\",INDIRECT(M427))","v":""},"n"]
["SUCMOTH3AA_LESS1",null,null,null,{"$f":"_xlfn.XLOOKUP(F428,'Raw Data'!$I$4:$I$5000,'Raw Data'!$D$4:$D$5000,\"*** Mnemonic not found ***\",0)","v":"*** Mnemonic not found ***"},"SUCMOTH3AA_LESS1__",null,"Input",null,null,{"$f":"K423","v":172},"G","Input!G172",{"$f":"_xlfn.XLOOKUP(F428,'Raw Data'!$I$4:$I$5000,'Raw Data'!$E$4:$E$5000,100,0)","v":100},{"$f":"IF(N428=0,_xlfn.XLOOKUP(F428,'Raw Data'!$I$4:$I$5000,'Raw Data'!$H$4:$H$5000,\"\",0),\"\")","v":""},{"$f":"IF(INDIRECT(M428) = \"\",\"\",INDIRECT(M428))","v":""},"n"]
["SUCMOTH3AA_1TO5",null,null,null,{"$f":"_xlfn.XLOOKUP(F429,'Raw Data'!$I$4:$I$5000,'Raw Data'!$D$4:$D$5000,\"*** Mnemonic not found ***\",0)","v":"*** Mnemonic not found ***"},"SUCMOTH3AA_1TO5__",null,"Input",null,null,{"$f":"K428+1","v":173},{"$f":"L428","v":"G"},"Input!G173",{"$f":"_xlfn.XLOOKUP(F429,'Raw Data'!$I$4:$I$5000,'Raw Data'!$E$4:$E$5000,100,0)","v":100},{"$f":"IF(N429=0,_xlfn.XLOOKUP(F429,'Raw Data'!$I$4:$I$5000,'Raw Data'!$H$4:$H$5000,\"\",0),\"\")","v":""},{"$f":"IF(INDIRECT(M429) = \"\",\"\",INDIRECT(M429))","v":""},"n"]
["SUCMOTH3AA_5TO10",null,null,null,{"$f":"_xlfn.XLOOKUP(F430,'Raw Data'!$I$4:$I$5000,'Raw Data'!$D$4:$D$5000,\"*** Mnemonic not found ***\",0)","v":"*** Mnemonic not found ***"},"SUCMOTH3AA_5TO10__",null,"Input",null,null,{"$f":"K429+1","v":174},"G","Input!G174",{"$f":"_xlfn.XLOOKUP(F430,'Raw Data'!$I$4:$I$5000,'Raw Data'!$E$4:$E$5000,100,0)","v":100},{"$f":"IF(N430=0,_xlfn.XLOOKUP(F430,'Raw Data'!$I$4:$I$5000,'Raw Data'!$H$4:$H$5000,\"\",0),\"\")","v":""},{"$f":"IF(INDIRECT(M430) = \"\",\"\",INDIRECT(M430))","v":""},"n"]
["SUCMOTH3AA_10TO20",null,null,null,{"$f":"_xlfn.XLOOKUP(F431,'Raw Data'!$I$4:$I$5000,'Raw Data'!$D$4:$D$5000,\"*** Mnemonic not found ***\",0)","v":"*** Mnemonic not found ***"},"SUCMOTH3AA_10TO20__",null,"Input",null,null,175,"G","Input!G175",{"$f":"_xlfn.XLOOKUP(F431,'Raw Data'!$I$4:$I$5000,'Raw Data'!$E$4:$E$5000,100,0)","v":100},{"$f":"IF(N431=0,_xlfn.XLOOKUP(F431,'Raw Data'!$I$4:$I$5000,'Raw Data'!$H$4:$H$5000,\"\",0),\"\")","v":""},{"$f":"IF(INDIRECT(M431) = \"\",\"\",INDIRECT(M431))","v":""},"n"]
["SUCMOTH3AA_GRTR20",null,null,null,{"$f":"_xlfn.XLOOKUP(F432,'Raw Data'!$I$4:$I$5000,'Raw Data'!$D$4:$D$5000,\"*** Mnemonic not found ***\",0)","v":"*** Mnemonic not found ***"},"SUCMOTH3AA_GRTR20__",null,"Input",null,null,176,"G","Input!G176",{"$f":"_xlfn.XLOOKUP(F432,'Raw Data'!$I$4:$I$5000,'Raw Data'!$E$4:$E$5000,100,0)","v":100},{"$f":"IF(N432=0,_xlfn.XLOOKUP(F432,'Raw Data'!$I$4:$I$5000,'Raw Data'!$H$4:$H$5000,\"\",0),\"\")","v":""},{"$f":"IF(INDIRECT(M432) = \"\",\"\",INDIRECT(M432))","v":""},"n"]
["SUCMOTH3A_LESS1",null,null,null,{"$f":"_xlfn.XLOOKUP(F433,'Raw Data'!$I$4:$I$5000,'Raw Data'!$D$4:$D$5000,\"*** Mnemonic not found ***\",0)","v":"*** Mnemonic not found ***"},"SUCMOTH3A_LESS1__",null,"Input",null,null,{"$f":"K428","v":172},"H","Input!H172",{"$f":"_xlfn.XLOOKUP(F433,'Raw Data'!$I$4:$I$5000,'Raw Data'!$E$4:$E$5000,100,0)","v":100},{"$f":"IF(N433=0,_xlfn.XLOOKUP(F433,'Raw Data'!$I$4:$I$5000,'Raw Data'!$H$4:$H$5000,\"\",0),\"\")","v":""},{"$f":"IF(INDIRECT(M433) = \"\",\"\",INDIRECT(M433))","v":""},"n"]
["SUCMOTH3A_1TO5",null,null,null,{"$f":"_xlfn.XLOOKUP(F434,'Raw Data'!$I$4:$I$5000,'Raw Data'!$D$4:$D$5000,\"*** Mnemonic not found ***\",0)","v":"*** Mnemonic not found ***"},"SUCMOTH3A_1TO5__",null,"Input",null,null,{"$f":"K433+1","v":173},{"$f":"L433","v":"H"},"Input!H173",{"$f":"_xlfn.XLOOKUP(F434,'Raw Data'!$I$4:$I$5000,'Raw Data'!$E$4:$E$5000,100,0)","v":100},{"$f":"IF(N434=0,_xlfn.XLOOKUP(F434,'Raw Data'!$I$4:$I$5000,'Raw Data'!$H$4:$H$5000,\"\",0),\"\")","v":""},{"$f":"IF(INDIRECT(M434) = \"\",\"\",INDIRECT(M434))","v":""},"n"]
["SUCMOTH3A_5TO10",null,null,null,{"$f":"_xlfn.XLOOKUP(F435,'Raw Data'!$I$4:$I$5000,'Raw Data'!$D$4:$D$5000,\"*** Mnemonic not found ***\",0)","v":"*** Mnemonic not found ***"},"SUCMOTH3A_5TO10__",null,"Input",null,null,{"$f":"K434+1","v":174},"H","Input!H174",{"$f":"_xlfn.XLOOKUP(F435,'Raw Data'!$I$4:$I$5000,'Raw Data'!$E$4:$E$5000,100,0)","v":100},{"$f":"IF(N435=0,_xlfn.XLOOKUP(F435,'Raw Data'!$I$4:$I$5000,'Raw Data'!$H$4:$H$5000,\"\",0),\"\")","v":""},{"$f":"IF(INDIRECT(M435) = \"\",\"\",INDIRECT(M435))","v":""},"n"]
["SUCMOTH3A_10TO20",null,null,null,{"$f":"_xlfn.XLOOKUP(F436,'Raw Data'!$I$4:$I$5000,'Raw Data'!$D$4:$D$5000,\"*** Mnemonic not found ***\",0)","v":"*** Mnemonic not found ***"},"SUCMOTH3A_10TO20__",null,"Input",null,null,175,"H","Input!H175",{"$f":"_xlfn.XLOOKUP(F436,'Raw Data'!$I$4:$I$5000,'Raw Data'!$E$4:$E$5000,100,0)","v":100},{"$f":"IF(N436=0,_xlfn.XLOOKUP(F436,'Raw Data'!$I$4:$I$5000,'Raw Data'!$H$4:$H$5000,\"\",0),\"\")","v":""},{"$f":"IF(INDIRECT(M436) = \"\",\"\",INDIRECT(M436))","v":""},"n"]
["SUCMOTH3A_GRTR20",null,null,null,{"$f":"_xlfn.XLOOKUP(F437,'Raw Data'!$I$4:$I$5000,'Raw Data'!$D$4:$D$5000,\"*** Mnemonic not found ***\",0)","v":"*** Mnemonic not found ***"},"SUCMOTH3A_GRTR20__",null,"Input",null,null,176,"H","Input!H176",{"$f":"_xlfn.XLOOKUP(F437,'Raw Data'!$I$4:$I$5000,'Raw Data'!$E$4:$E$5000,100,0)","v":100},{"$f":"IF(N437=0,_xlfn.XLOOKUP(F437,'Raw Data'!$I$4:$I$5000,'Raw Data'!$H$4:$H$5000,\"\",0),\"\")","v":""},{"$f":"IF(INDIRECT(M437) = \"\",\"\",INDIRECT(M437))","v":""},"n"]
["SUCMOTH3BBB_LESS1",null,null,null,{"$f":"_xlfn.XLOOKUP(F438,'Raw Data'!$I$4:$I$5000,'Raw Data'!$D$4:$D$5000,\"*** Mnemonic not found ***\",0)","v":"*** Mnemonic not found ***"},"SUCMOTH3BBB_LESS1__",null,"Input",null,null,{"$f":"K433","v":172},"I","Input!I172",{"$f":"_xlfn.XLOOKUP(F438,'Raw Data'!$I$4:$I$5000,'Raw Data'!$E$4:$E$5000,100,0)","v":100},{"$f":"IF(N438=0,_xlfn.XLOOKUP(F438,'Raw Data'!$I$4:$I$5000,'Raw Data'!$H$4:$H$5000,\"\",0),\"\")","v":""},{"$f":"IF(INDIRECT(M438) = \"\",\"\",INDIRECT(M438))","v":""},"n"]
["SUCMOTH3BBB_1TO5",null,null,null,{"$f":"_xlfn.XLOOKUP(F439,'Raw Data'!$I$4:$I$5000,'Raw Data'!$D$4:$D$5000,\"*** Mnemonic not found ***\",0)","v":"*** Mnemonic not found ***"},"SUCMOTH3BBB_1TO5__",null,"Input",null,null,{"$f":"K438+1","v":173},{"$f":"L438","v":"I"},"Input!I173",{"$f":"_xlfn.XLOOKUP(F439,'Raw Data'!$I$4:$I$5000,'Raw Data'!$E$4:$E$5000,100,0)","v":100},{"$f":"IF(N439=0,_xlfn.XLOOKUP(F439,'Raw Data'!$I$4:$I$5000,'Raw Data'!$H$4:$H$5000,\"\",0),\"\")","v":""},{"$f":"IF(INDIRECT(M439) = \"\",\"\",INDIRECT(M439))","v":""},"n"]
["SUCMOTH3BBB_5TO10",null,null,null,{"$f":"_xlfn.XLOOKUP(F440,'Raw Data'!$I$4:$I$5000,'Raw Data'!$D$4:$D$5000,\"*** Mnemonic not found ***\",0)","v":"*** Mnemonic not found ***"},"SUCMOTH3BBB_5TO10__",null,"Input",null,null,{"$f":"K439+1","v":174},"I","Input!I174",{"$f":"_xlfn.XLOOKUP(F440,'Raw Data'!$I$4:$I$5000,'Raw Data'!$E$4:$E$5000,100,0)","v":100},{"$f":"IF(N440=0,_xlfn.XLOOKUP(F440,'Raw Data'!$I$4:$I$5000,'Raw Data'!$H$4:$H$5000,\"\",0),\"\")","v":""},{"$f":"IF(INDIRECT(M440) = \"\",\"\",INDIRECT(M440))","v":""},"n"]
["SUCMOTH3BBB_10TO20",null,null,null,{"$f":"_xlfn.XLOOKUP(F441,'Raw Data'!$I$4:$I$5000,'Raw Data'!$D$4:$D$5000,\"*** Mnemonic not found ***\",0)","v":"*** Mnemonic not found ***"},"SUCMOTH3BBB_10TO20__",null,"Input",null,null,175,"I","Input!I175",{"$f":"_xlfn.XLOOKUP(F441,'Raw Data'!$I$4:$I$5000,'Raw Data'!$E$4:$E$5000,100,0)","v":100},{"$f":"IF(N441=0,_xlfn.XLOOKUP(F441,'Raw Data'!$I$4:$I$5000,'Raw Data'!$H$4:$H$5000,\"\",0),\"\")","v":""},{"$f":"IF(INDIRECT(M441) = \"\",\"\",INDIRECT(M441))","v":""},"n"]
["SUCMOTH3BBB_GRTR20",null,null,null,{"$f":"_xlfn.XLOOKUP(F442,'Raw Data'!$I$4:$I$5000,'Raw Data'!$D$4:$D$5000,\"*** Mnemonic not found ***\",0)","v":"*** Mnemonic not found ***"},"SUCMOTH3BBB_GRTR20__",null,"Input",null,null,176,"I","Input!I176",{"$f":"_xlfn.XLOOKUP(F442,'Raw Data'!$I$4:$I$5000,'Raw Data'!$E$4:$E$5000,100,0)","v":100},{"$f":"IF(N442=0,_xlfn.XLOOKUP(F442,'Raw Data'!$I$4:$I$5000,'Raw Data'!$H$4:$H$5000,\"\",0),\"\")","v":""},{"$f":"IF(INDIRECT(M442) = \"\",\"\",INDIRECT(M442))","v":""},"n"]
["SUCMOTH3BB_LESS1",null,null,null,{"$f":"_xlfn.XLOOKUP(F443,'Raw Data'!$I$4:$I$5000,'Raw Data'!$D$4:$D$5000,\"*** Mnemonic not found ***\",0)","v":"*** Mnemonic not found ***"},"SUCMOTH3BB_LESS1__",null,"Input",null,null,{"$f":"K438","v":172},"J","Input!J172",{"$f":"_xlfn.XLOOKUP(F443,'Raw Data'!$I$4:$I$5000,'Raw Data'!$E$4:$E$5000,100,0)","v":100},{"$f":"IF(N443=0,_xlfn.XLOOKUP(F443,'Raw Data'!$I$4:$I$5000,'Raw Data'!$H$4:$H$5000,\"\",0),\"\")","v":""},{"$f":"IF(INDIRECT(M443) = \"\",\"\",INDIRECT(M443))","v":""},"n"]
["SUCMOTH3BB_1TO5",null,null,null,{"$f":"_xlfn.XLOOKUP(F444,'Raw Data'!$I$4:$I$5000,'Raw Data'!$D$4:$D$5000,\"*** Mnemonic not found ***\",0)","v":"*** Mnemonic not found ***"},"SUCMOTH3BB_1TO5__",null,"Input",null,null,{"$f":"K443+1","v":173},{"$f":"L443","v":"J"},"Input!J173",{"$f":"_xlfn.XLOOKUP(F444,'Raw Data'!$I$4:$I$5000,'Raw Data'!$E$4:$E$5000,100,0)","v":100},{"$f":"IF(N444=0,_xlfn.XLOOKUP(F444,'Raw Data'!$I$4:$I$5000,'Raw Data'!$H$4:$H$5000,\"\",0),\"\")","v":""},{"$f":"IF(INDIRECT(M444) = \"\",\"\",INDIRECT(M444))","v":""},"n"]
["SUCMOTH3BB_5TO10",null,null,null,{"$f":"_xlfn.XLOOKUP(F445,'Raw Data'!$I$4:$I$5000,'Raw Data'!$D$4:$D$5000,\"*** Mnemonic not found ***\",0)","v":"*** Mnemonic not found ***"},"SUCMOTH3BB_5TO10__",null,"Input",null,null,{"$f":"K444+1","v":174},"J","Input!J174",{"$f":"_xlfn.XLOOKUP(F445,'Raw Data'!$I$4:$I$5000,'Raw Data'!$E$4:$E$5000,100,0)","v":100},{"$f":"IF(N445=0,_xlfn.XLOOKUP(F445,'Raw Data'!$I$4:$I$5000,'Raw Data'!$H$4:$H$5000,\"\",0),\"\")","v":""},{"$f":"IF(INDIRECT(M445) = \"\",\"\",INDIRECT(M445))","v":""},"n"]
["SUCMOTH3BB_10TO20",null,null,null,{"$f":"_xlfn.XLOOKUP(F446,'Raw Data'!$I$4:$I$5000,'Raw Data'!$D$4:$D$5000,\"*** Mnemonic not found ***\",0)","v":"*** Mnemonic not found ***"},"SUCMOTH3BB_10TO20__",null,"Input",null,null,175,"J","Input!J175",{"$f":"_xlfn.XLOOKUP(F446,'Raw Data'!$I$4:$I$5000,'Raw Data'!$E$4:$E$5000,100,0)","v":100},{"$f":"IF(N446=0,_xlfn.XLOOKUP(F446,'Raw Data'!$I$4:$I$5000,'Raw Data'!$H$4:$H$5000,\"\",0),\"\")","v":""},{"$f":"IF(INDIRECT(M446) = \"\",\"\",INDIRECT(M446))","v":""},"n"]
["SUCMOTH3BB_GRTR20",null,null,null,{"$f":"_xlfn.XLOOKUP(F447,'Raw Data'!$I$4:$I$5000,'Raw Data'!$D$4:$D$5000,\"*** Mnemonic not found ***\",0)","v":"*** Mnemonic not found ***"},"SUCMOTH3BB_GRTR20__",null,"Input",null,null,176,"J","Input!J176",{"$f":"_xlfn.XLOOKUP(F447,'Raw Data'!$I$4:$I$5000,'Raw Data'!$E$4:$E$5000,100,0)","v":100},{"$f":"IF(N447=0,_xlfn.XLOOKUP(F447,'Raw Data'!$I$4:$I$5000,'Raw Data'!$H$4:$H$5000,\"\",0),\"\")","v":""},{"$f":"IF(INDIRECT(M447) = \"\",\"\",INDIRECT(M447))","v":""},"n"]
["SUCMOTH3B_LESS1",null,null,null,{"$f":"_xlfn.XLOOKUP(F448,'Raw Data'!$I$4:$I$5000,'Raw Data'!$D$4:$D$5000,\"*** Mnemonic not found ***\",0)","v":"*** Mnemonic not found ***"},"SUCMOTH3B_LESS1__",null,"Input",null,null,{"$f":"K443","v":172},"K","Input!K172",{"$f":"_xlfn.XLOOKUP(F448,'Raw Data'!$I$4:$I$5000,'Raw Data'!$E$4:$E$5000,100,0)","v":100},{"$f":"IF(N448=0,_xlfn.XLOOKUP(F448,'Raw Data'!$I$4:$I$5000,'Raw Data'!$H$4:$H$5000,\"\",0),\"\")","v":""},{"$f":"IF(INDIRECT(M448) = \"\",\"\",INDIRECT(M448))","v":""},"n"]
["SUCMOTH3B_1TO5",null,null,null,{"$f":"_xlfn.XLOOKUP(F449,'Raw Data'!$I$4:$I$5000,'Raw Data'!$D$4:$D$5000,\"*** Mnemonic not found ***\",0)","v":"*** Mnemonic not found ***"},"SUCMOTH3B_1TO5__",null,"Input",null,null,{"$f":"K448+1","v":173},{"$f":"L448","v":"K"},"Input!K173",{"$f":"_xlfn.XLOOKUP(F449,'Raw Data'!$I$4:$I$5000,'Raw Data'!$E$4:$E$5000,100,0)","v":100},{"$f":"IF(N449=0,_xlfn.XLOOKUP(F449,'Raw Data'!$I$4:$I$5000,'Raw Data'!$H$4:$H$5000,\"\",0),\"\")","v":""},{"$f":"IF(INDIRECT(M449) = \"\",\"\",INDIRECT(M449))","v":""},"n"]
["SUCMOTH3B_5TO10",null,null,null,{"$f":"_xlfn.XLOOKUP(F450,'Raw Data'!$I$4:$I$5000,'Raw Data'!$D$4:$D$5000,\"*** Mnemonic not found ***\",0)","v":"*** Mnemonic not found ***"},"SUCMOTH3B_5TO10__",null,"Input",null,null,{"$f":"K449+1","v":174},"K","Input!K174",{"$f":"_xlfn.XLOOKUP(F450,'Raw Data'!$I$4:$I$5000,'Raw Data'!$E$4:$E$5000,100,0)","v":100},{"$f":"IF(N450=0,_xlfn.XLOOKUP(F450,'Raw Data'!$I$4:$I$5000,'Raw Data'!$H$4:$H$5000,\"\",0),\"\")","v":""},{"$f":"IF(INDIRECT(M450) = \"\",\"\",INDIRECT(M450))","v":""},"n"]
["SUCMOTH3B_10TO20",null,null,null,{"$f":"_xlfn.XLOOKUP(F451,'Raw Data'!$I$4:$I$5000,'Raw Data'!$D$4:$D$5000,\"*** Mnemonic not found ***\",0)","v":"*** Mnemonic not found ***"},"SUCMOTH3B_10TO20__",null,"Input",null,null,175,"K","Input!K175",{"$f":"_xlfn.XLOOKUP(F451,'Raw Data'!$I$4:$I$5000,'Raw Data'!$E$4:$E$5000,100,0)","v":100},{"$f":"IF(N451=0,_xlfn.XLOOKUP(F451,'Raw Data'!$I$4:$I$5000,'Raw Data'!$H$4:$H$5000,\"\",0),\"\")","v":""},{"$f":"IF(INDIRECT(M451) = \"\",\"\",INDIRECT(M451))","v":""},"n"]
["SUCMOTH3B_GRTR20",null,null,null,{"$f":"_xlfn.XLOOKUP(F452,'Raw Data'!$I$4:$I$5000,'Raw Data'!$D$4:$D$5000,\"*** Mnemonic not found ***\",0)","v":"*** Mnemonic not found ***"},"SUCMOTH3B_GRTR20__",null,"Input",null,null,176,"K","Input!K176",{"$f":"_xlfn.XLOOKUP(F452,'Raw Data'!$I$4:$I$5000,'Raw Data'!$E$4:$E$5000,100,0)","v":100},{"$f":"IF(N452=0,_xlfn.XLOOKUP(F452,'Raw Data'!$I$4:$I$5000,'Raw Data'!$H$4:$H$5000,\"\",0),\"\")","v":""},{"$f":"IF(INDIRECT(M452) = \"\",\"\",INDIRECT(M452))","v":""},"n"]
["SUCMOTH3CCC_LESS1",null,null,null,{"$f":"_xlfn.XLOOKUP(F453,'Raw Data'!$I$4:$I$5000,'Raw Data'!$D$4:$D$5000,\"*** Mnemonic not found ***\",0)","v":"*** Mnemonic not found ***"},{"$f":"CONCATENATE(A453,\"_\",B453,\"_\",D453)","v":"SUCMOTH3CCC_LESS1__"},null,"Input",null,null,{"$f":"K448","v":172},"L","Input!L172",{"$f":"_xlfn.XLOOKUP(F453,'Raw Data'!$I$4:$I$5000,'Raw Data'!$E$4:$E$5000,100,0)","v":100},{"$f":"IF(N453=0,_xlfn.XLOOKUP(F453,'Raw Data'!$I$4:$I$5000,'Raw Data'!$H$4:$H$5000,\"\",0),\"\")","v":""},{"$f":"IF(INDIRECT(M453) = \"\",\"\",INDIRECT(M453))","v":""},"n"]
["SUCMOTH3CCC_1TO5",null,null,null,{"$f":"_xlfn.XLOOKUP(F454,'Raw Data'!$I$4:$I$5000,'Raw Data'!$D$4:$D$5000,\"*** Mnemonic not found ***\",0)","v":"*** Mnemonic not found ***"},"SUCMOTH3CCC_1TO5__",null,"Input",null,null,{"$f":"K453+1","v":173},{"$f":"L453","v":"L"},"Input!L173",{"$f":"_xlfn.XLOOKUP(F454,'Raw Data'!$I$4:$I$5000,'Raw Data'!$E$4:$E$5000,100,0)","v":100},{"$f":"IF(N454=0,_xlfn.XLOOKUP(F454,'Raw Data'!$I$4:$I$5000,'Raw Data'!$H$4:$H$5000,\"\",0),\"\")","v":""},{"$f":"IF(INDIRECT(M454) = \"\",\"\",INDIRECT(M454))","v":""},"n"]
["SUCMOTH3CCC_5TO10",null,null,null,{"$f":"_xlfn.XLOOKUP(F455,'Raw Data'!$I$4:$I$5000,'Raw Data'!$D$4:$D$5000,\"*** Mnemonic not found ***\",0)","v":"*** Mnemonic not found ***"},"SUCMOTH3CCC_5TO10__",null,"Input",null,null,{"$f":"K454+1","v":174},"L","Input!L174",{"$f":"_xlfn.XLOOKUP(F455,'Raw Data'!$I$4:$I$5000,'Raw Data'!$E$4:$E$5000,100,0)","v":100},{"$f":"IF(N455=0,_xlfn.XLOOKUP(F455,'Raw Data'!$I$4:$I$5000,'Raw Data'!$H$4:$H$5000,\"\",0),\"\")","v":""},{"$f":"IF(INDIRECT(M455) = \"\",\"\",INDIRECT(M455))","v":""},"n"]
["SUCMOTH3CCC_10TO20",null,null,null,{"$f":"_xlfn.XLOOKUP(F456,'Raw Data'!$I$4:$I$5000,'Raw Data'!$D$4:$D$5000,\"*** Mnemonic not found ***\",0)","v":"*** Mnemonic not found ***"},"SUCMOTH3CCC_10TO20__",null,"Input",null,null,175,"L","Input!L175",{"$f":"_xlfn.XLOOKUP(F456,'Raw Data'!$I$4:$I$5000,'Raw Data'!$E$4:$E$5000,100,0)","v":100},{"$f":"IF(N456=0,_xlfn.XLOOKUP(F456,'Raw Data'!$I$4:$I$5000,'Raw Data'!$H$4:$H$5000,\"\",0),\"\")","v":""},{"$f":"IF(INDIRECT(M456) = \"\",\"\",INDIRECT(M456))","v":""},"n"]
["SUCMOTH3CCC_GRTR20",null,null,null,{"$f":"_xlfn.XLOOKUP(F457,'Raw Data'!$I$4:$I$5000,'Raw Data'!$D$4:$D$5000,\"*** Mnemonic not found ***\",0)","v":"*** Mnemonic not found ***"},"SUCMOTH3CCC_GRTR20__",null,"Input",null,null,176,"L","Input!L176",{"$f":"_xlfn.XLOOKUP(F457,'Raw Data'!$I$4:$I$5000,'Raw Data'!$E$4:$E$5000,100,0)","v":100},{"$f":"IF(N457=0,_xlfn.XLOOKUP(F457,'Raw Data'!$I$4:$I$5000,'Raw Data'!$H$4:$H$5000,\"\",0),\"\")","v":""},{"$f":"IF(INDIRECT(M457) = \"\",\"\",INDIRECT(M457))","v":""},"n"]
["SUCMOTH4AAA_LESS1",null,null,null,{"$f":"_xlfn.XLOOKUP(F458,'Raw Data'!$I$4:$I$5000,'Raw Data'!$D$4:$D$5000,\"*** Mnemonic not found ***\",0)","v":"*** Mnemonic not found ***"},"SUCMOTH4AAA_LESS1__",null,"Input",{"$f":"ROW(section_bonds_sp_unrated_step_2_3)","v":118},{"$f":"J423+8","v":62},{"$f":"I458+J458","v":180},"F","Input!F180",{"$f":"_xlfn.XLOOKUP(F458,'Raw Data'!$I$4:$I$5000,'Raw Data'!$E$4:$E$5000,100,0)","v":100},{"$f":"IF(N458=0,_xlfn.XLOOKUP(F458,'Raw Data'!$I$4:$I$5000,'Raw Data'!$H$4:$H$5000,\"\",0),\"\")","v":""},{"$f":"IF(INDIRECT(M458) = \"\",\"\",INDIRECT(M458))","v":""},"n"]
["SUCMOTH4AAA_1TO5",null,null,null,{"$f":"_xlfn.XLOOKUP(F459,'Raw Data'!$I$4:$I$5000,'Raw Data'!$D$4:$D$5000,\"*** Mnemonic not found ***\",0)","v":"*** Mnemonic not found ***"},"SUCMOTH4AAA_1TO5__",null,"Input",null,null,{"$f":"K458+1","v":181},{"$f":"L458","v":"F"},"Input!F181",{"$f":"_xlfn.XLOOKUP(F459,'Raw Data'!$I$4:$I$5000,'Raw Data'!$E$4:$E$5000,100,0)","v":100},{"$f":"IF(N459=0,_xlfn.XLOOKUP(F459,'Raw Data'!$I$4:$I$5000,'Raw Data'!$H$4:$H$5000,\"\",0),\"\")","v":""},{"$f":"IF(INDIRECT(M459) = \"\",\"\",INDIRECT(M459))","v":""},"n"]
["SUCMOTH4AAA_5TO10",null,null,null,{"$f":"_xlfn.XLOOKUP(F460,'Raw Data'!$I$4:$I$5000,'Raw Data'!$D$4:$D$5000,\"*** Mnemonic not found ***\",0)","v":"*** Mnemonic not found ***"},"SUCMOTH4AAA_5TO10__",null,"Input",null,null,{"$f":"K459+1","v":182},"F","Input!F182",{"$f":"_xlfn.XLOOKUP(F460,'Raw Data'!$I$4:$I$5000,'Raw Data'!$E$4:$E$5000,100,0)","v":100},{"$f":"IF(N460=0,_xlfn.XLOOKUP(F460,'Raw Data'!$I$4:$I$5000,'Raw Data'!$H$4:$H$5000,\"\",0),\"\")","v":""},{"$f":"IF(INDIRECT(M460) = \"\",\"\",INDIRECT(M460))","v":""},"n"]
["SUCMOTH4AAA_10TO20",null,null,null,{"$f":"_xlfn.XLOOKUP(F461,'Raw Data'!$I$4:$I$5000,'Raw Data'!$D$4:$D$5000,\"*** Mnemonic not found ***\",0)","v":"*** Mnemonic not found ***"},"SUCMOTH4AAA_10TO20__",null,"Input",null,null,183,"F","Input!F183",{"$f":"_xlfn.XLOOKUP(F461,'Raw Data'!$I$4:$I$5000,'Raw Data'!$E$4:$E$5000,100,0)","v":100},{"$f":"IF(N461=0,_xlfn.XLOOKUP(F461,'Raw Data'!$I$4:$I$5000,'Raw Data'!$H$4:$H$5000,\"\",0),\"\")","v":""},{"$f":"IF(INDIRECT(M461) = \"\",\"\",INDIRECT(M461))","v":""},"n"]
["SUCMOTH4AAA_GRTR20",null,null,null,{"$f":"_xlfn.XLOOKUP(F462,'Raw Data'!$I$4:$I$5000,'Raw Data'!$D$4:$D$5000,\"*** Mnemonic not found ***\",0)","v":"*** Mnemonic not found ***"},"SUCMOTH4AAA_GRTR20__",null,"Input",null,null,184,"F","Input!F184",{"$f":"_xlfn.XLOOKUP(F462,'Raw Data'!$I$4:$I$5000,'Raw Data'!$E$4:$E$5000,100,0)","v":100},{"$f":"IF(N462=0,_xlfn.XLOOKUP(F462,'Raw Data'!$I$4:$I$5000,'Raw Data'!$H$4:$H$5000,\"\",0),\"\")","v":""},{"$f":"IF(INDIRECT(M462) = \"\",\"\",INDIRECT(M462))","v":""},"n"]
["SUCMOTH4AA_LESS1",null,null,null,{"$f":"_xlfn.XLOOKUP(F463,'Raw Data'!$I$4:$I$5000,'Raw Data'!$D$4:$D$5000,\"*** Mnemonic not found ***\",0)","v":"*** Mnemonic not found ***"},"SUCMOTH4AA_LESS1__",null,"Input",null,null,{"$f":"K458","v":180},"G",{"$f":"CONCATENATE(H463,\"!\",L463,K463)","v":"Input!G180"},{"$f":"_xlfn.XLOOKUP(F463,'Raw Data'!$I$4:$I$5000,'Raw Data'!$E$4:$E$5000,100,0)","v":100},{"$f":"IF(N463=0,_xlfn.XLOOKUP(F463,'Raw Data'!$I$4:$I$5000,'Raw Data'!$H$4:$H$5000,\"\",0),\"\")","v":""},{"$f":"IF(INDIRECT(M463) = \"\",\"\",INDIRECT(M463))","v":""},"n"]
["SUCMOTH4AA_1TO5",null,null,null,{"$f":"_xlfn.XLOOKUP(F464,'Raw Data'!$I$4:$I$5000,'Raw Data'!$D$4:$D$5000,\"*** Mnemonic not found ***\",0)","v":"*** Mnemonic not found ***"},"SUCMOTH4AA_1TO5__",null,"Input",null,null,{"$f":"K463+1","v":181},{"$f":"L463","v":"G"},"Input!G181",{"$f":"_xlfn.XLOOKUP(F464,'Raw Data'!$I$4:$I$5000,'Raw Data'!$E$4:$E$5000,100,0)","v":100},{"$f":"IF(N464=0,_xlfn.XLOOKUP(F464,'Raw Data'!$I$4:$I$5000,'Raw Data'!$H$4:$H$5000,\"\",0),\"\")","v":""},{"$f":"IF(INDIRECT(M464) = \"\",\"\",INDIRECT(M464))","v":""},"n"]
["SUCMOTH4AA_5TO10",null,null,null,{"$f":"_xlfn.XLOOKUP(F465,'Raw Data'!$I$4:$I$5000,'Raw Data'!$D$4:$D$5000,\"*** Mnemonic not found ***\",0)","v":"*** Mnemonic not found ***"},"SUCMOTH4AA_5TO10__",null,"Input",null,null,{"$f":"K464+1","v":182},"G","Input!G182",{"$f":"_xlfn.XLOOKUP(F465,'Raw Data'!$I$4:$I$5000,'Raw Data'!$E$4:$E$5000,100,0)","v":100},{"$f":"IF(N465=0,_xlfn.XLOOKUP(F465,'Raw Data'!$I$4:$I$5000,'Raw Data'!$H$4:$H$5000,\"\",0),\"\")","v":""},{"$f":"IF(INDIRECT(M465) = \"\",\"\",INDIRECT(M465))","v":""},"n"]
["SUCMOTH4AA_10TO20",null,null,null,{"$f":"_xlfn.XLOOKUP(F466,'Raw Data'!$I$4:$I$5000,'Raw Data'!$D$4:$D$5000,\"*** Mnemonic not found ***\",0)","v":"*** Mnemonic not found ***"},"SUCMOTH4AA_10TO20__",null,"Input",null,null,183,"G","Input!G183",{"$f":"_xlfn.XLOOKUP(F466,'Raw Data'!$I$4:$I$5000,'Raw Data'!$E$4:$E$5000,100,0)","v":100},{"$f":"IF(N466=0,_xlfn.XLOOKUP(F466,'Raw Data'!$I$4:$I$5000,'Raw Data'!$H$4:$H$5000,\"\",0),\"\")","v":""},{"$f":"IF(INDIRECT(M466) = \"\",\"\",INDIRECT(M466))","v":""},"n"]
["SUCMOTH4AA_GRTR20",null,null,null,{"$f":"_xlfn.XLOOKUP(F467,'Raw Data'!$I$4:$I$5000,'Raw Data'!$D$4:$D$5000,\"*** Mnemonic not found ***\",0)","v":"*** Mnemonic not found ***"},"SUCMOTH4AA_GRTR20__",null,"Input",null,null,184,"G","Input!G184",{"$f":"_xlfn.XLOOKUP(F467,'Raw Data'!$I$4:$I$5000,'Raw Data'!$E$4:$E$5000,100,0)","v":100},{"$f":"IF(N467=0,_xlfn.XLOOKUP(F467,'Raw Data'!$I$4:$I$5000,'Raw Data'!$H$4:$H$5000,\"\",0),\"\")","v":""},{"$f":"IF(INDIRECT(M467) = \"\",\"\",INDIRECT(M467))","v":""},"n"]
["SUCMOTH4A_LESS1",null,null,null,{"$f":"_xlfn.XLOOKUP(F468,'Raw Data'!$I$4:$I$5000,'Raw Data'!$D$4:$D$5000,\"*** Mnemonic not found ***\",0)","v":"*** Mnemonic not found ***"},"SUCMOTH4A_LESS1__",null,"Input",null,null,{"$f":"K463","v":180},"H","Input!H180",{"$f":"_xlfn.XLOOKUP(F468,'Raw Data'!$I$4:$I$5000,'Raw Data'!$E$4:$E$5000,100,0)","v":100},{"$f":"IF(N468=0,_xlfn.XLOOKUP(F468,'Raw Data'!$I$4:$I$5000,'Raw Data'!$H$4:$H$5000,\"\",0),\"\")","v":""},{"$f":"IF(INDIRECT(M468) = \"\",\"\",INDIRECT(M468))","v":""},"n"]
["SUCMOTH4A_1TO5",null,null,null,{"$f":"_xlfn.XLOOKUP(F469,'Raw Data'!$I$4:$I$5000,'Raw Data'!$D$4:$D$5000,\"*** Mnemonic not found ***\",0)","v":"*** Mnemonic not found ***"},"SUCMOTH4A_1TO5__",null,"Input",null,null,{"$f":"K468+1","v":181},{"$f":"L468","v":"H"},"Input!H181",{"$f":"_xlfn.XLOOKUP(F469,'Raw Data'!$I$4:$I$5000,'Raw Data'!$E$4:$E$5000,100,0)","v":100},{"$f":"IF(N469=0,_xlfn.XLOOKUP(F469,'Raw Data'!$I$4:$I$5000,'Raw Data'!$H$4:$H$5000,\"\",0),\"\")","v":""},{"$f":"IF(INDIRECT(M469) = \"\",\"\",INDIRECT(M469))","v":""},"n"]
["SUCMOTH4A_5TO10",null,null,null,{"$f":"_xlfn.XLOOKUP(F470,'Raw Data'!$I$4:$I$5000,'Raw Data'!$D$4:$D$5000,\"*** Mnemonic not found ***\",0)","v":"*** Mnemonic not found ***"},"SUCMOTH4A_5TO10__",null,"Input",null,null,{"$f":"K469+1","v":182},"H","Input!H182",{"$f":"_xlfn.XLOOKUP(F470,'Raw Data'!$I$4:$I$5000,'Raw Data'!$E$4:$E$5000,100,0)","v":100},{"$f":"IF(N470=0,_xlfn.XLOOKUP(F470,'Raw Data'!$I$4:$I$5000,'Raw Data'!$H$4:$H$5000,\"\",0),\"\")","v":""},{"$f":"IF(INDIRECT(M470) = \"\",\"\",INDIRECT(M470))","v":""},"n"]
["SUCMOTH4A_10TO20",null,null,null,{"$f":"_xlfn.XLOOKUP(F471,'Raw Data'!$I$4:$I$5000,'Raw Data'!$D$4:$D$5000,\"*** Mnemonic not found ***\",0)","v":"*** Mnemonic not found ***"},"SUCMOTH4A_10TO20__",null,"Input",null,null,183,"H","Input!H183",{"$f":"_xlfn.XLOOKUP(F471,'Raw Data'!$I$4:$I$5000,'Raw Data'!$E$4:$E$5000,100,0)","v":100},{"$f":"IF(N471=0,_xlfn.XLOOKUP(F471,'Raw Data'!$I$4:$I$5000,'Raw Data'!$H$4:$H$5000,\"\",0),\"\")","v":""},{"$f":"IF(INDIRECT(M471) = \"\",\"\",INDIRECT(M471))","v":""},"n"]
["SUCMOTH4A_GRTR20",null,null,null,{"$f":"_xlfn.XLOOKUP(F472,'Raw Data'!$I$4:$I$5000,'Raw Data'!$D$4:$D$5000,\"*** Mnemonic not found ***\",0)","v":"*** Mnemonic not found ***"},"SUCMOTH4A_GRTR20__",null,"Input",null,null,184,"H","Input!H184",{"$f":"_xlfn.XLOOKUP(F472,'Raw Data'!$I$4:$I$5000,'Raw Data'!$E$4:$E$5000,100,0)","v":100},{"$f":"IF(N472=0,_xlfn.XLOOKUP(F472,'Raw Data'!$I$4:$I$5000,'Raw Data'!$H$4:$H$5000,\"\",0),\"\")","v":""},{"$f":"IF(INDIRECT(M472) = \"\",\"\",INDIRECT(M472))","v":""},"n"]
["SUCMOTH4BBB_LESS1",null,null,null,{"$f":"_xlfn.XLOOKUP(F473,'Raw Data'!$I$4:$I$5000,'Raw Data'!$D$4:$D$5000,\"*** Mnemonic not found ***\",0)","v":"*** Mnemonic not found ***"},"SUCMOTH4BBB_LESS1__",null,"Input",null,null,{"$f":"K468","v":180},"I","Input!I180",{"$f":"_xlfn.XLOOKUP(F473,'Raw Data'!$I$4:$I$5000,'Raw Data'!$E$4:$E$5000,100,0)","v":100},{"$f":"IF(N473=0,_xlfn.XLOOKUP(F473,'Raw Data'!$I$4:$I$5000,'Raw Data'!$H$4:$H$5000,\"\",0),\"\")","v":""},{"$f":"IF(INDIRECT(M473) = \"\",\"\",INDIRECT(M473))","v":""},"n"]
["SUCMOTH4BBB_1TO5",null,null,null,{"$f":"_xlfn.XLOOKUP(F474,'Raw Data'!$I$4:$I$5000,'Raw Data'!$D$4:$D$5000,\"*** Mnemonic not found ***\",0)","v":"*** Mnemonic not found ***"},"SUCMOTH4BBB_1TO5__",null,"Input",null,null,{"$f":"K473+1","v":181},{"$f":"L473","v":"I"},"Input!I181",{"$f":"_xlfn.XLOOKUP(F474,'Raw Data'!$I$4:$I$5000,'Raw Data'!$E$4:$E$5000,100,0)","v":100},{"$f":"IF(N474=0,_xlfn.XLOOKUP(F474,'Raw Data'!$I$4:$I$5000,'Raw Data'!$H$4:$H$5000,\"\",0),\"\")","v":""},{"$f":"IF(INDIRECT(M474) = \"\",\"\",INDIRECT(M474))","v":""},"n"]
["SUCMOTH4BBB_5TO10",null,null,null,{"$f":"_xlfn.XLOOKUP(F475,'Raw Data'!$I$4:$I$5000,'Raw Data'!$D$4:$D$5000,\"*** Mnemonic not found ***\",0)","v":"*** Mnemonic not found ***"},"SUCMOTH4BBB_5TO10__",null,"Input",null,null,{"$f":"K474+1","v":182},"I","Input!I182",{"$f":"_xlfn.XLOOKUP(F475,'Raw Data'!$I$4:$I$5000,'Raw Data'!$E$4:$E$5000,100,0)","v":100},{"$f":"IF(N475=0,_xlfn.XLOOKUP(F475,'Raw Data'!$I$4:$I$5000,'Raw Data'!$H$4:$H$5000,\"\",0),\"\")","v":""},{"$f":"IF(INDIRECT(M475) = \"\",\"\",INDIRECT(M475))","v":""},"n"]
["SUCMOTH4BBB_10TO20",null,null,null,{"$f":"_xlfn.XLOOKUP(F476,'Raw Data'!$I$4:$I$5000,'Raw Data'!$D$4:$D$5000,\"*** Mnemonic not found ***\",0)","v":"*** Mnemonic not found ***"},"SUCMOTH4BBB_10TO20__",null,"Input",null,null,183,"I","Input!I183",{"$f":"_xlfn.XLOOKUP(F476,'Raw Data'!$I$4:$I$5000,'Raw Data'!$E$4:$E$5000,100,0)","v":100},{"$f":"IF(N476=0,_xlfn.XLOOKUP(F476,'Raw Data'!$I$4:$I$5000,'Raw Data'!$H$4:$H$5000,\"\",0),\"\")","v":""},{"$f":"IF(INDIRECT(M476) = \"\",\"\",INDIRECT(M476))","v":""},"n"]
["SUCMOTH4BBB_GRTR20",null,null,null,{"$f":"_xlfn.XLOOKUP(F477,'Raw Data'!$I$4:$I$5000,'Raw Data'!$D$4:$D$5000,\"*** Mnemonic not found ***\",0)","v":"*** Mnemonic not found ***"},"SUCMOTH4BBB_GRTR20__",null,"Input",null,null,184,"I","Input!I184",{"$f":"_xlfn.XLOOKUP(F477,'Raw Data'!$I$4:$I$5000,'Raw Data'!$E$4:$E$5000,100,0)","v":100},{"$f":"IF(N477=0,_xlfn.XLOOKUP(F477,'Raw Data'!$I$4:$I$5000,'Raw Data'!$H$4:$H$5000,\"\",0),\"\")","v":""},{"$f":"IF(INDIRECT(M477) = \"\",\"\",INDIRECT(M477))","v":""},"n"]
["SUCMOTH4BB_LESS1",null,null,null,{"$f":"_xlfn.XLOOKUP(F478,'Raw Data'!$I$4:$I$5000,'Raw Data'!$D$4:$D$5000,\"*** Mnemonic not found ***\",0)","v":"*** Mnemonic not found ***"},"SUCMOTH4BB_LESS1__",null,"Input",null,null,{"$f":"K473","v":180},"J","Input!J180",{"$f":"_xlfn.XLOOKUP(F478,'Raw Data'!$I$4:$I$5000,'Raw Data'!$E$4:$E$5000,100,0)","v":100},{"$f":"IF(N478=0,_xlfn.XLOOKUP(F478,'Raw Data'!$I$4:$I$5000,'Raw Data'!$H$4:$H$5000,\"\",0),\"\")","v":""},{"$f":"IF(INDIRECT(M478) = \"\",\"\",INDIRECT(M478))","v":""},"n"]
["SUCMOTH4BB_1TO5",null,null,null,{"$f":"_xlfn.XLOOKUP(F479,'Raw Data'!$I$4:$I$5000,'Raw Data'!$D$4:$D$5000,\"*** Mnemonic not found ***\",0)","v":"*** Mnemonic not found ***"},"SUCMOTH4BB_1TO5__",null,"Input",null,null,{"$f":"K478+1","v":181},{"$f":"L478","v":"J"},"Input!J181",{"$f":"_xlfn.XLOOKUP(F479,'Raw Data'!$I$4:$I$5000,'Raw Data'!$E$4:$E$5000,100,0)","v":100},{"$f":"IF(N479=0,_xlfn.XLOOKUP(F479,'Raw Data'!$I$4:$I$5000,'Raw Data'!$H$4:$H$5000,\"\",0),\"\")","v":""},{"$f":"IF(INDIRECT(M479) = \"\",\"\",INDIRECT(M479))","v":""},"n"]
["SUCMOTH4BB_5TO10",null,null,null,{"$f":"_xlfn.XLOOKUP(F480,'Raw Data'!$I$4:$I$5000,'Raw Data'!$D$4:$D$5000,\"*** Mnemonic not found ***\",0)","v":"*** Mnemonic not found ***"},"SUCMOTH4BB_5TO10__",null,"Input",null,null,{"$f":"K479+1","v":182},"J","Input!J182",{"$f":"_xlfn.XLOOKUP(F480,'Raw Data'!$I$4:$I$5000,'Raw Data'!$E$4:$E$5000,100,0)","v":100},{"$f":"IF(N480=0,_xlfn.XLOOKUP(F480,'Raw Data'!$I$4:$I$5000,'Raw Data'!$H$4:$H$5000,\"\",0),\"\")","v":""},{"$f":"IF(INDIRECT(M480) = \"\",\"\",INDIRECT(M480))","v":""},"n"]
["SUCMOTH4BB_10TO20",null,null,null,{"$f":"_xlfn.XLOOKUP(F481,'Raw Data'!$I$4:$I$5000,'Raw Data'!$D$4:$D$5000,\"*** Mnemonic not found ***\",0)","v":"*** Mnemonic not found ***"},"SUCMOTH4BB_10TO20__",null,"Input",null,null,183,"J","Input!J183",{"$f":"_xlfn.XLOOKUP(F481,'Raw Data'!$I$4:$I$5000,'Raw Data'!$E$4:$E$5000,100,0)","v":100},{"$f":"IF(N481=0,_xlfn.XLOOKUP(F481,'Raw Data'!$I$4:$I$5000,'Raw Data'!$H$4:$H$5000,\"\",0),\"\")","v":""},{"$f":"IF(INDIRECT(M481) = \"\",\"\",INDIRECT(M481))","v":""},"n"]
["SUCMOTH4BB_GRTR20",null,null,null,{"$f":"_xlfn.XLOOKUP(F482,'Raw Data'!$I$4:$I$5000,'Raw Data'!$D$4:$D$5000,\"*** Mnemonic not found ***\",0)","v":"*** Mnemonic not found ***"},"SUCMOTH4BB_GRTR20__",null,"Input",null,null,184,"J","Input!J184",{"$f":"_xlfn.XLOOKUP(F482,'Raw Data'!$I$4:$I$5000,'Raw Data'!$E$4:$E$5000,100,0)","v":100},{"$f":"IF(N482=0,_xlfn.XLOOKUP(F482,'Raw Data'!$I$4:$I$5000,'Raw Data'!$H$4:$H$5000,\"\",0),\"\")","v":""},{"$f":"IF(INDIRECT(M482) = \"\",\"\",INDIRECT(M482))","v":""},"n"]
["SUCMOTH4B_LESS1",null,null,null,{"$f":"_xlfn.XLOOKUP(F483,'Raw Data'!$I$4:$I$5000,'Raw Data'!$D$4:$D$5000,\"*** Mnemonic not found ***\",0)","v":"*** Mnemonic not found ***"},"SUCMOTH4B_LESS1__",null,"Input",null,null,{"$f":"K478","v":180},"K","Input!K180",{"$f":"_xlfn.XLOOKUP(F483,'Raw Data'!$I$4:$I$5000,'Raw Data'!$E$4:$E$5000,100,0)","v":100},{"$f":"IF(N483=0,_xlfn.XLOOKUP(F483,'Raw Data'!$I$4:$I$5000,'Raw Data'!$H$4:$H$5000,\"\",0),\"\")","v":""},{"$f":"IF(INDIRECT(M483) = \"\",\"\",INDIRECT(M483))","v":""},"n"]
["SUCMOTH4B_1TO5",null,null,null,{"$f":"_xlfn.XLOOKUP(F484,'Raw Data'!$I$4:$I$5000,'Raw Data'!$D$4:$D$5000,\"*** Mnemonic not found ***\",0)","v":"*** Mnemonic not found ***"},"SUCMOTH4B_1TO5__",null,"Input",null,null,{"$f":"K483+1","v":181},{"$f":"L483","v":"K"},"Input!K181",{"$f":"_xlfn.XLOOKUP(F484,'Raw Data'!$I$4:$I$5000,'Raw Data'!$E$4:$E$5000,100,0)","v":100},{"$f":"IF(N484=0,_xlfn.XLOOKUP(F484,'Raw Data'!$I$4:$I$5000,'Raw Data'!$H$4:$H$5000,\"\",0),\"\")","v":""},{"$f":"IF(INDIRECT(M484) = \"\",\"\",INDIRECT(M484))","v":""},"n"]
["SUCMOTH4B_5TO10",null,null,null,{"$f":"_xlfn.XLOOKUP(F485,'Raw Data'!$I$4:$I$5000,'Raw Data'!$D$4:$D$5000,\"*** Mnemonic not found ***\",0)","v":"*** Mnemonic not found ***"},"SUCMOTH4B_5TO10__",null,"Input",null,null,{"$f":"K484+1","v":182},"K","Input!K182",{"$f":"_xlfn.XLOOKUP(F485,'Raw Data'!$I$4:$I$5000,'Raw Data'!$E$4:$E$5000,100,0)","v":100},{"$f":"IF(N485=0,_xlfn.XLOOKUP(F485,'Raw Data'!$I$4:$I$5000,'Raw Data'!$H$4:$H$5000,\"\",0),\"\")","v":""},{"$f":"IF(INDIRECT(M485) = \"\",\"\",INDIRECT(M485))","v":""},"n"]
["SUCMOTH4B_10TO20",null,null,null,{"$f":"_xlfn.XLOOKUP(F486,'Raw Data'!$I$4:$I$5000,'Raw Data'!$D$4:$D$5000,\"*** Mnemonic not found ***\",0)","v":"*** Mnemonic not found ***"},"SUCMOTH4B_10TO20__",null,"Input",null,null,183,"K","Input!K183",{"$f":"_xlfn.XLOOKUP(F486,'Raw Data'!$I$4:$I$5000,'Raw Data'!$E$4:$E$5000,100,0)","v":100},{"$f":"IF(N486=0,_xlfn.XLOOKUP(F486,'Raw Data'!$I$4:$I$5000,'Raw Data'!$H$4:$H$5000,\"\",0),\"\")","v":""},{"$f":"IF(INDIRECT(M486) = \"\",\"\",INDIRECT(M486))","v":""},"n"]
["SUCMOTH4B_GRTR20",null,null,null,{"$f":"_xlfn.XLOOKUP(F487,'Raw Data'!$I$4:$I$5000,'Raw Data'!$D$4:$D$5000,\"*** Mnemonic not found ***\",0)","v":"*** Mnemonic not found ***"},"SUCMOTH4B_GRTR20__",null,"Input",null,null,184,"K","Input!K184",{"$f":"_xlfn.XLOOKUP(F487,'Raw Data'!$I$4:$I$5000,'Raw Data'!$E$4:$E$5000,100,0)","v":100},{"$f":"IF(N487=0,_xlfn.XLOOKUP(F487,'Raw Data'!$I$4:$I$5000,'Raw Data'!$H$4:$H$5000,\"\",0),\"\")","v":""},{"$f":"IF(INDIRECT(M487) = \"\",\"\",INDIRECT(M487))","v":""},"n"]
["SUCMOTH4CCC_LESS1",null,null,null,{"$f":"_xlfn.XLOOKUP(F488,'Raw Data'!$I$4:$I$5000,'Raw Data'!$D$4:$D$5000,\"*** Mnemonic not found ***\",0)","v":"*** Mnemonic not found ***"},"SUCMOTH4CCC_LESS1__",null,"Input",null,null,{"$f":"K483","v":180},"L","Input!L180",{"$f":"_xlfn.XLOOKUP(F488,'Raw Data'!$I$4:$I$5000,'Raw Data'!$E$4:$E$5000,100,0)","v":100},{"$f":"IF(N488=0,_xlfn.XLOOKUP(F488,'Raw Data'!$I$4:$I$5000,'Raw Data'!$H$4:$H$5000,\"\",0),\"\")","v":""},{"$f":"IF(INDIRECT(M488) = \"\",\"\",INDIRECT(M488))","v":""},"n"]
["SUCMOTH4CCC_1TO5",null,null,null,{"$f":"_xlfn.XLOOKUP(F489,'Raw Data'!$I$4:$I$5000,'Raw Data'!$D$4:$D$5000,\"*** Mnemonic not found ***\",0)","v":"*** Mnemonic not found ***"},"SUCMOTH4CCC_1TO5__",null,"Input",null,null,{"$f":"K488+1","v":181},{"$f":"L488","v":"L"},"Input!L181",{"$f":"_xlfn.XLOOKUP(F489,'Raw Data'!$I$4:$I$5000,'Raw Data'!$E$4:$E$5000,100,0)","v":100},{"$f":"IF(N489=0,_xlfn.XLOOKUP(F489,'Raw Data'!$I$4:$I$5000,'Raw Data'!$H$4:$H$5000,\"\",0),\"\")","v":""},{"$f":"IF(INDIRECT(M489) = \"\",\"\",INDIRECT(M489))","v":""},"n"]
["SUCMOTH4CCC_5TO10",null,null,null,{"$f":"_xlfn.XLOOKUP(F490,'Raw Data'!$I$4:$I$5000,'Raw Data'!$D$4:$D$5000,\"*** Mnemonic not found ***\",0)","v":"*** Mnemonic not found ***"},"SUCMOTH4CCC_5TO10__",null,"Input",null,null,{"$f":"K489+1","v":182},"L","Input!L182",{"$f":"_xlfn.XLOOKUP(F490,'Raw Data'!$I$4:$I$5000,'Raw Data'!$E$4:$E$5000,100,0)","v":100},{"$f":"IF(N490=0,_xlfn.XLOOKUP(F490,'Raw Data'!$I$4:$I$5000,'Raw Data'!$H$4:$H$5000,\"\",0),\"\")","v":""},{"$f":"IF(INDIRECT(M490) = \"\",\"\",INDIRECT(M490))","v":""},"n"]
["SUCMOTH4CCC_10TO20",null,null,null,{"$f":"_xlfn.XLOOKUP(F491,'Raw Data'!$I$4:$I$5000,'Raw Data'!$D$4:$D$5000,\"*** Mnemonic not found ***\",0)","v":"*** Mnemonic not found ***"},"SUCMOTH4CCC_10TO20__",null,"Input",null,null,183,"L","Input!L183",{"$f":"_xlfn.XLOOKUP(F491,'Raw Data'!$I$4:$I$5000,'Raw Data'!$E$4:$E$5000,100,0)","v":100},{"$f":"IF(N491=0,_xlfn.XLOOKUP(F491,'Raw Data'!$I$4:$I$5000,'Raw Data'!$H$4:$H$5000,\"\",0),\"\")","v":""},{"$f":"IF(INDIRECT(M491) = \"\",\"\",INDIRECT(M491))","v":""},"n"]
["SUCMOTH4CCC_GRTR20",null,null,null,{"$f":"_xlfn.XLOOKUP(F492,'Raw Data'!$I$4:$I$5000,'Raw Data'!$D$4:$D$5000,\"*** Mnemonic not found ***\",0)","v":"*** Mnemonic not found ***"},"SUCMOTH4CCC_GRTR20__",null,"Input",null,null,184,"L","Input!L184",{"$f":"_xlfn.XLOOKUP(F492,'Raw Data'!$I$4:$I$5000,'Raw Data'!$E$4:$E$5000,100,0)","v":100},{"$f":"IF(N492=0,_xlfn.XLOOKUP(F492,'Raw Data'!$I$4:$I$5000,'Raw Data'!$H$4:$H$5000,\"\",0),\"\")","v":""},{"$f":"IF(INDIRECT(M492) = \"\",\"\",INDIRECT(M492))","v":""},"n"]
["SUCMRUR1NFCERG1_LESS1",null,null,null,{"$f":"_xlfn.XLOOKUP(F493,'Raw Data'!$I$4:$I$5000,'Raw Data'!$D$4:$D$5000,\"*** Mnemonic not found ***\",0)","v":"*** Mnemonic not found ***"},"SUCMRUR1NFCERG1_LESS1__","S&P Unrated Step 4","Input",{"$f":"ROW(section_bonds_sp_unrated_step_4)","v":187},5,{"$f":"I493+J493","v":192},"C","Input!C192",{"$f":"_xlfn.XLOOKUP(F493,'Raw Data'!$I$4:$I$5000,'Raw Data'!$E$4:$E$5000,100,0)","v":100},{"$f":"IF(N493=0,_xlfn.XLOOKUP(F493,'Raw Data'!$I$4:$I$5000,'Raw Data'!$H$4:$H$5000,\"\",0),\"\")","v":""},{"$f":"IF(INDIRECT(M493) = \"\",\"\",INDIRECT(M493))","v":""},"n"]
["SUCMRUR1NFCERG2_LESS1",null,null,null,{"$f":"_xlfn.XLOOKUP(F494,'Raw Data'!$I$4:$I$5000,'Raw Data'!$D$4:$D$5000,\"*** Mnemonic not found ***\",0)","v":"*** Mnemonic not found ***"},"SUCMRUR1NFCERG2_LESS1__",null,"Input",null,null,{"$f":"K493","v":192},"D","Input!D192",{"$f":"_xlfn.XLOOKUP(F494,'Raw Data'!$I$4:$I$5000,'Raw Data'!$E$4:$E$5000,100,0)","v":100},{"$f":"IF(N494=0,_xlfn.XLOOKUP(F494,'Raw Data'!$I$4:$I$5000,'Raw Data'!$H$4:$H$5000,\"\",0),\"\")","v":""},{"$f":"IF(INDIRECT(M494) = \"\",\"\",INDIRECT(M494))","v":""},"n"]
["SUCMRUR1NFCERG3_LESS1",null,null,null,{"$f":"_xlfn.XLOOKUP(F495,'Raw Data'!$I$4:$I$5000,'Raw Data'!$D$4:$D$5000,\"*** Mnemonic not found ***\",0)","v":"*** Mnemonic not found ***"},"SUCMRUR1NFCERG3_LESS1__",null,"Input",null,null,{"$f":"K494","v":192},"E","Input!E192",{"$f":"_xlfn.XLOOKUP(F495,'Raw Data'!$I$4:$I$5000,'Raw Data'!$E$4:$E$5000,100,0)","v":100},{"$f":"IF(N495=0,_xlfn.XLOOKUP(F495,'Raw Data'!$I$4:$I$5000,'Raw Data'!$H$4:$H$5000,\"\",0),\"\")","v":""},{"$f":"IF(INDIRECT(M495) = \"\",\"\",INDIRECT(M495))","v":""},"n"]
["SUCMRUR1NFCERG4_LESS1",null,null,null,{"$f":"_xlfn.XLOOKUP(F496,'Raw Data'!$I$4:$I$5000,'Raw Data'!$D$4:$D$5000,\"*** Mnemonic not found ***\",0)","v":"*** Mnemonic not found ***"},"SUCMRUR1NFCERG4_LESS1__",null,"Input",null,null,192,"F","Input!F192",{"$f":"_xlfn.XLOOKUP(F496,'Raw Data'!$I$4:$I$5000,'Raw Data'!$E$4:$E$5000,100,0)","v":100},{"$f":"IF(N496=0,_xlfn.XLOOKUP(F496,'Raw Data'!$I$4:$I$5000,'Raw Data'!$H$4:$H$5000,\"\",0),\"\")","v":""},{"$f":"IF(INDIRECT(M496) = \"\",\"\",INDIRECT(M496))","v":""},"n"]
["SUCMRUR1NFCERG5_LESS1",null,null,null,{"$f":"_xlfn.XLOOKUP(F497,'Raw Data'!$I$4:$I$5000,'Raw Data'!$D$4:$D$5000,\"*** Mnemonic not found ***\",0)","v":"*** Mnemonic not found ***"},"SUCMRUR1NFCERG5_LESS1__",null,"Input",null,null,192,"G","Input!G192",{"$f":"_xlfn.XLOOKUP(F497,'Raw Data'!$I$4:$I$5000,'Raw Data'!$E$4:$E$5000,100,0)","v":100},{"$f":"IF(N497=0,_xlfn.XLOOKUP(F497,'Raw Data'!$I$4:$I$5000,'Raw Data'!$H$4:$H$5000,\"\",0),\"\")","v":""},{"$f":"IF(INDIRECT(M497) = \"\",\"\",INDIRECT(M497))","v":""},"n"]
["SUCMRUR1NFCERG6_LESS1",null,null,null,{"$f":"_xlfn.XLOOKUP(F498,'Raw Data'!$I$4:$I$5000,'Raw Data'!$D$4:$D$5000,\"*** Mnemonic not found ***\",0)","v":"*** Mnemonic not found ***"},"SUCMRUR1NFCERG6_LESS1__",null,"Input",null,null,192,"H","Input!H192",{"$f":"_xlfn.XLOOKUP(F498,'Raw Data'!$I$4:$I$5000,'Raw Data'!$E$4:$E$5000,100,0)","v":100},{"$f":"IF(N498=0,_xlfn.XLOOKUP(F498,'Raw Data'!$I$4:$I$5000,'Raw Data'!$H$4:$H$5000,\"\",0),\"\")","v":""},{"$f":"IF(INDIRECT(M498) = \"\",\"\",INDIRECT(M498))","v":""},"n"]
["SUCMRUR1NFCERG7_LESS1",null,null,null,{"$f":"_xlfn.XLOOKUP(F499,'Raw Data'!$I$4:$I$5000,'Raw Data'!$D$4:$D$5000,\"*** Mnemonic not found ***\",0)","v":"*** Mnemonic not found ***"},"SUCMRUR1NFCERG7_LESS1__",null,"Input",null,null,192,"I","Input!I192",{"$f":"_xlfn.XLOOKUP(F499,'Raw Data'!$I$4:$I$5000,'Raw Data'!$E$4:$E$5000,100,0)","v":100},{"$f":"IF(N499=0,_xlfn.XLOOKUP(F499,'Raw Data'!$I$4:$I$5000,'Raw Data'!$H$4:$H$5000,\"\",0),\"\")","v":""},{"$f":"IF(INDIRECT(M499) = \"\",\"\",INDIRECT(M499))","v":""},"n"]
["SUCMRUR1NFCERG8_LESS1",null,null,null,{"$f":"_xlfn.XLOOKUP(F500,'Raw Data'!$I$4:$I$5000,'Raw Data'!$D$4:$D$5000,\"*** Mnemonic not found ***\",0)","v":"*** Mnemonic not found ***"},"SUCMRUR1NFCERG8_LESS1__",null,"Input",null,null,192,"J","Input!J192",{"$f":"_xlfn.XLOOKUP(F500,'Raw Data'!$I$4:$I$5000,'Raw Data'!$E$4:$E$5000,100,0)","v":100},{"$f":"IF(N500=0,_xlfn.XLOOKUP(F500,'Raw Data'!$I$4:$I$5000,'Raw Data'!$H$4:$H$5000,\"\",0),\"\")","v":""},{"$f":"IF(INDIRECT(M500) = \"\",\"\",INDIRECT(M500))","v":""},"n"]
["SUCMRUR1NFCERG9_LESS1",null,null,null,{"$f":"_xlfn.XLOOKUP(F501,'Raw Data'!$I$4:$I$5000,'Raw Data'!$D$4:$D$5000,\"*** Mnemonic not found ***\",0)","v":"*** Mnemonic not found ***"},"SUCMRUR1NFCERG9_LESS1__",null,"Input",null,null,192,"K","Input!K192",{"$f":"_xlfn.XLOOKUP(F501,'Raw Data'!$I$4:$I$5000,'Raw Data'!$E$4:$E$5000,100,0)","v":100},{"$f":"IF(N501=0,_xlfn.XLOOKUP(F501,'Raw Data'!$I$4:$I$5000,'Raw Data'!$H$4:$H$5000,\"\",0),\"\")","v":""},{"$f":"IF(INDIRECT(M501) = \"\",\"\",INDIRECT(M501))","v":""},"n"]
["SUCMRUR1NFCERG10_LESS1",null,null,null,{"$f":"_xlfn.XLOOKUP(F502,'Raw Data'!$I$4:$I$5000,'Raw Data'!$D$4:$D$5000,\"*** Mnemonic not found ***\",0)","v":"*** Mnemonic not found ***"},"SUCMRUR1NFCERG10_LESS1__",null,"Input",null,null,192,"L","Input!L192",{"$f":"_xlfn.XLOOKUP(F502,'Raw Data'!$I$4:$I$5000,'Raw Data'!$E$4:$E$5000,100,0)","v":100},{"$f":"IF(N502=0,_xlfn.XLOOKUP(F502,'Raw Data'!$I$4:$I$5000,'Raw Data'!$H$4:$H$5000,\"\",0),\"\")","v":""},{"$f":"IF(INDIRECT(M502) = \"\",\"\",INDIRECT(M502))","v":""},"n"]
["SUCMRUR1NFCERGNA_LESS1",null,null,null,{"$f":"_xlfn.XLOOKUP(F503,'Raw Data'!$I$4:$I$5000,'Raw Data'!$D$4:$D$5000,\"*** Mnemonic not found ***\",0)","v":"*** Mnemonic not found ***"},"SUCMRUR1NFCERGNA_LESS1__",null,"Input",null,null,192,"M","Input!M192",{"$f":"_xlfn.XLOOKUP(F503,'Raw Data'!$I$4:$I$5000,'Raw Data'!$E$4:$E$5000,100,0)","v":100},{"$f":"IF(N503=0,_xlfn.XLOOKUP(F503,'Raw Data'!$I$4:$I$5000,'Raw Data'!$H$4:$H$5000,\"\",0),\"\")","v":""},{"$f":"IF(INDIRECT(M503) = \"\",\"\",INDIRECT(M503))","v":""},"n"]
["SUCMRUR1NFCERG1_1TO5",null,null,null,{"$f":"_xlfn.XLOOKUP(F504,'Raw Data'!$I$4:$I$5000,'Raw Data'!$D$4:$D$5000,\"*** Mnemonic not found ***\",0)","v":"*** Mnemonic not found ***"},"SUCMRUR1NFCERG1_1TO5__",null,"Input",null,null,{"$f":"K493+1","v":193},{"$f":"L493","v":"C"},"Input!C193",{"$f":"_xlfn.XLOOKUP(F504,'Raw Data'!$I$4:$I$5000,'Raw Data'!$E$4:$E$5000,100,0)","v":100},{"$f":"IF(N504=0,_xlfn.XLOOKUP(F504,'Raw Data'!$I$4:$I$5000,'Raw Data'!$H$4:$H$5000,\"\",0),\"\")","v":""},{"$f":"IF(INDIRECT(M504) = \"\",\"\",INDIRECT(M504))","v":""},"n"]
["SUCMRUR1NFCERG2_1TO5",null,null,null,{"$f":"_xlfn.XLOOKUP(F505,'Raw Data'!$I$4:$I$5000,'Raw Data'!$D$4:$D$5000,\"*** Mnemonic not found ***\",0)","v":"*** Mnemonic not found ***"},"SUCMRUR1NFCERG2_1TO5__",null,"Input",null,null,{"$f":"K494+1","v":193},{"$f":"L494","v":"D"},"Input!D193",{"$f":"_xlfn.XLOOKUP(F505,'Raw Data'!$I$4:$I$5000,'Raw Data'!$E$4:$E$5000,100,0)","v":100},{"$f":"IF(N505=0,_xlfn.XLOOKUP(F505,'Raw Data'!$I$4:$I$5000,'Raw Data'!$H$4:$H$5000,\"\",0),\"\")","v":""},{"$f":"IF(INDIRECT(M505) = \"\",\"\",INDIRECT(M505))","v":""},"n"]
["SUCMRUR1NFCERG3_1TO5",null,null,null,{"$f":"_xlfn.XLOOKUP(F506,'Raw Data'!$I$4:$I$5000,'Raw Data'!$D$4:$D$5000,\"*** Mnemonic not found ***\",0)","v":"*** Mnemonic not found ***"},"SUCMRUR1NFCERG3_1TO5__",null,"Input",null,null,193,"E","Input!E193",{"$f":"_xlfn.XLOOKUP(F506,'Raw Data'!$I$4:$I$5000,'Raw Data'!$E$4:$E$5000,100,0)","v":100},{"$f":"IF(N506=0,_xlfn.XLOOKUP(F506,'Raw Data'!$I$4:$I$5000,'Raw Data'!$H$4:$H$5000,\"\",0),\"\")","v":""},{"$f":"IF(INDIRECT(M506) = \"\",\"\",INDIRECT(M506))","v":""},"n"]
["SUCMRUR1NFCERG4_1TO5",null,null,null,{"$f":"_xlfn.XLOOKUP(F507,'Raw Data'!$I$4:$I$5000,'Raw Data'!$D$4:$D$5000,\"*** Mnemonic not found ***\",0)","v":"*** Mnemonic not found ***"},"SUCMRUR1NFCERG4_1TO5__",null,"Input",null,null,193,"F","Input!F193",{"$f":"_xlfn.XLOOKUP(F507,'Raw Data'!$I$4:$I$5000,'Raw Data'!$E$4:$E$5000,100,0)","v":100},{"$f":"IF(N507=0,_xlfn.XLOOKUP(F507,'Raw Data'!$I$4:$I$5000,'Raw Data'!$H$4:$H$5000,\"\",0),\"\")","v":""},{"$f":"IF(INDIRECT(M507) = \"\",\"\",INDIRECT(M507))","v":""},"n"]
["SUCMRUR1NFCERG5_1TO5",null,null,null,{"$f":"_xlfn.XLOOKUP(F508,'Raw Data'!$I$4:$I$5000,'Raw Data'!$D$4:$D$5000,\"*** Mnemonic not found ***\",0)","v":"*** Mnemonic not found ***"},"SUCMRUR1NFCERG5_1TO5__",null,"Input",null,null,193,"G","Input!G193",{"$f":"_xlfn.XLOOKUP(F508,'Raw Data'!$I$4:$I$5000,'Raw Data'!$E$4:$E$5000,100,0)","v":100},{"$f":"IF(N508=0,_xlfn.XLOOKUP(F508,'Raw Data'!$I$4:$I$5000,'Raw Data'!$H$4:$H$5000,\"\",0),\"\")","v":""},{"$f":"IF(INDIRECT(M508) = \"\",\"\",INDIRECT(M508))","v":""},"n"]
["SUCMRUR1NFCERG6_1TO5",null,null,null,{"$f":"_xlfn.XLOOKUP(F509,'Raw Data'!$I$4:$I$5000,'Raw Data'!$D$4:$D$5000,\"*** Mnemonic not found ***\",0)","v":"*** Mnemonic not found ***"},"SUCMRUR1NFCERG6_1TO5__",null,"Input",null,null,193,"H","Input!H193",{"$f":"_xlfn.XLOOKUP(F509,'Raw Data'!$I$4:$I$5000,'Raw Data'!$E$4:$E$5000,100,0)","v":100},{"$f":"IF(N509=0,_xlfn.XLOOKUP(F509,'Raw Data'!$I$4:$I$5000,'Raw Data'!$H$4:$H$5000,\"\",0),\"\")","v":""},{"$f":"IF(INDIRECT(M509) = \"\",\"\",INDIRECT(M509))","v":""},"n"]
["SUCMRUR1NFCERG7_1TO5",null,null,null,{"$f":"_xlfn.XLOOKUP(F510,'Raw Data'!$I$4:$I$5000,'Raw Data'!$D$4:$D$5000,\"*** Mnemonic not found ***\",0)","v":"*** Mnemonic not found ***"},"SUCMRUR1NFCERG7_1TO5__",null,"Input",null,null,193,"I","Input!I193",{"$f":"_xlfn.XLOOKUP(F510,'Raw Data'!$I$4:$I$5000,'Raw Data'!$E$4:$E$5000,100,0)","v":100},{"$f":"IF(N510=0,_xlfn.XLOOKUP(F510,'Raw Data'!$I$4:$I$5000,'Raw Data'!$H$4:$H$5000,\"\",0),\"\")","v":""},{"$f":"IF(INDIRECT(M510) = \"\",\"\",INDIRECT(M510))","v":""},"n"]
["SUCMRUR1NFCERG8_1TO5",null,null,null,{"$f":"_xlfn.XLOOKUP(F511,'Raw Data'!$I$4:$I$5000,'Raw Data'!$D$4:$D$5000,\"*** Mnemonic not found ***\",0)","v":"*** Mnemonic not found ***"},"SUCMRUR1NFCERG8_1TO5__",null,"Input",null,null,193,"J","Input!J193",{"$f":"_xlfn.XLOOKUP(F511,'Raw Data'!$I$4:$I$5000,'Raw Data'!$E$4:$E$5000,100,0)","v":100},{"$f":"IF(N511=0,_xlfn.XLOOKUP(F511,'Raw Data'!$I$4:$I$5000,'Raw Data'!$H$4:$H$5000,\"\",0),\"\")","v":""},{"$f":"IF(INDIRECT(M511) = \"\",\"\",INDIRECT(M511))","v":""},"n"]
["SUCMRUR1NFCERG9_1TO5",null,null,null,{"$f":"_xlfn.XLOOKUP(F512,'Raw Data'!$I$4:$I$5000,'Raw Data'!$D$4:$D$5000,\"*** Mnemonic not found ***\",0)","v":"*** Mnemonic not found ***"},"SUCMRUR1NFCERG9_1TO5__",null,"Input",null,null,193,"K","Input!K193",{"$f":"_xlfn.XLOOKUP(F512,'Raw Data'!$I$4:$I$5000,'Raw Data'!$E$4:$E$5000,100,0)","v":100},{"$f":"IF(N512=0,_xlfn.XLOOKUP(F512,'Raw Data'!$I$4:$I$5000,'Raw Data'!$H$4:$H$5000,\"\",0),\"\")","v":""},{"$f":"IF(INDIRECT(M512) = \"\",\"\",INDIRECT(M512))","v":""},"n"]
["SUCMRUR1NFCERG10_1TO5",null,null,null,{"$f":"_xlfn.XLOOKUP(F513,'Raw Data'!$I$4:$I$5000,'Raw Data'!$D$4:$D$5000,\"*** Mnemonic not found ***\",0)","v":"*** Mnemonic not found ***"},"SUCMRUR1NFCERG10_1TO5__",null,"Input",null,null,193,"L","Input!L193",{"$f":"_xlfn.XLOOKUP(F513,'Raw Data'!$I$4:$I$5000,'Raw Data'!$E$4:$E$5000,100,0)","v":100},{"$f":"IF(N513=0,_xlfn.XLOOKUP(F513,'Raw Data'!$I$4:$I$5000,'Raw Data'!$H$4:$H$5000,\"\",0),\"\")","v":""},{"$f":"IF(INDIRECT(M513) = \"\",\"\",INDIRECT(M513))","v":""},"n"]
["SUCMRUR1NFCERGNA_1TO5",null,null,null,{"$f":"_xlfn.XLOOKUP(F514,'Raw Data'!$I$4:$I$5000,'Raw Data'!$D$4:$D$5000,\"*** Mnemonic not found ***\",0)","v":"*** Mnemonic not found ***"},"SUCMRUR1NFCERGNA_1TO5__",null,"Input",null,null,193,"M","Input!M193",{"$f":"_xlfn.XLOOKUP(F514,'Raw Data'!$I$4:$I$5000,'Raw Data'!$E$4:$E$5000,100,0)","v":100},{"$f":"IF(N514=0,_xlfn.XLOOKUP(F514,'Raw Data'!$I$4:$I$5000,'Raw Data'!$H$4:$H$5000,\"\",0),\"\")","v":""},{"$f":"IF(INDIRECT(M514) = \"\",\"\",INDIRECT(M514))","v":""},"n"]
["SUCMRUR1NFCERG1_5TO10",null,null,null,{"$f":"_xlfn.XLOOKUP(F515,'Raw Data'!$I$4:$I$5000,'Raw Data'!$D$4:$D$5000,\"*** Mnemonic not found ***\",0)","v":"*** Mnemonic not found ***"},"SUCMRUR1NFCERG1_5TO10__",null,"Input",null,null,194,"C","Input!C194",{"$f":"_xlfn.XLOOKUP(F515,'Raw Data'!$I$4:$I$5000,'Raw Data'!$E$4:$E$5000,100,0)","v":100},{"$f":"IF(N515=0,_xlfn.XLOOKUP(F515,'Raw Data'!$I$4:$I$5000,'Raw Data'!$H$4:$H$5000,\"\",0),\"\")","v":""},{"$f":"IF(INDIRECT(M515) = \"\",\"\",INDIRECT(M515))","v":""},"n"]
["SUCMRUR1NFCERG2_5TO10",null,null,null,{"$f":"_xlfn.XLOOKUP(F516,'Raw Data'!$I$4:$I$5000,'Raw Data'!$D$4:$D$5000,\"*** Mnemonic not found ***\",0)","v":"*** Mnemonic not found ***"},"SUCMRUR1NFCERG2_5TO10__",null,"Input",null,null,194,"D","Input!D194",{"$f":"_xlfn.XLOOKUP(F516,'Raw Data'!$I$4:$I$5000,'Raw Data'!$E$4:$E$5000,100,0)","v":100},{"$f":"IF(N516=0,_xlfn.XLOOKUP(F516,'Raw Data'!$I$4:$I$5000,'Raw Data'!$H$4:$H$5000,\"\",0),\"\")","v":""},{"$f":"IF(INDIRECT(M516) = \"\",\"\",INDIRECT(M516))","v":""},"n"]
["SUCMRUR1NFCERG3_5TO10",null,null,null,{"$f":"_xlfn.XLOOKUP(F517,'Raw Data'!$I$4:$I$5000,'Raw Data'!$D$4:$D$5000,\"*** Mnemonic not found ***\",0)","v":"*** Mnemonic not found ***"},{"$f":"CONCATENATE(A517,\"_\",B517,\"_\",D517)","v":"SUCMRUR1NFCERG3_5TO10__"},null,"Input",null,null,194,"E","Input!E194",{"$f":"_xlfn.XLOOKUP(F517,'Raw Data'!$I$4:$I$5000,'Raw Data'!$E$4:$E$5000,100,0)","v":100},{"$f":"IF(N517=0,_xlfn.XLOOKUP(F517,'Raw Data'!$I$4:$I$5000,'Raw Data'!$H$4:$H$5000,\"\",0),\"\")","v":""},{"$f":"IF(INDIRECT(M517) = \"\",\"\",INDIRECT(M517))","v":""},"n"]
["SUCMRUR1NFCERG4_5TO10",null,null,null,{"$f":"_xlfn.XLOOKUP(F518,'Raw Data'!$I$4:$I$5000,'Raw Data'!$D$4:$D$5000,\"*** Mnemonic not found ***\",0)","v":"*** Mnemonic not found ***"},"SUCMRUR1NFCERG4_5TO10__",null,"Input",null,null,194,"F","Input!F194",{"$f":"_xlfn.XLOOKUP(F518,'Raw Data'!$I$4:$I$5000,'Raw Data'!$E$4:$E$5000,100,0)","v":100},{"$f":"IF(N518=0,_xlfn.XLOOKUP(F518,'Raw Data'!$I$4:$I$5000,'Raw Data'!$H$4:$H$5000,\"\",0),\"\")","v":""},{"$f":"IF(INDIRECT(M518) = \"\",\"\",INDIRECT(M518))","v":""},"n"]
["SUCMRUR1NFCERG5_5TO10",null,null,null,{"$f":"_xlfn.XLOOKUP(F519,'Raw Data'!$I$4:$I$5000,'Raw Data'!$D$4:$D$5000,\"*** Mnemonic not found ***\",0)","v":"*** Mnemonic not found ***"},"SUCMRUR1NFCERG5_5TO10__",null,"Input",null,null,194,"G","Input!G194",{"$f":"_xlfn.XLOOKUP(F519,'Raw Data'!$I$4:$I$5000,'Raw Data'!$E$4:$E$5000,100,0)","v":100},{"$f":"IF(N519=0,_xlfn.XLOOKUP(F519,'Raw Data'!$I$4:$I$5000,'Raw Data'!$H$4:$H$5000,\"\",0),\"\")","v":""},{"$f":"IF(INDIRECT(M519) = \"\",\"\",INDIRECT(M519))","v":""},"n"]
["SUCMRUR1NFCERG6_5TO10",null,null,null,{"$f":"_xlfn.XLOOKUP(F520,'Raw Data'!$I$4:$I$5000,'Raw Data'!$D$4:$D$5000,\"*** Mnemonic not found ***\",0)","v":"*** Mnemonic not found ***"},"SUCMRUR1NFCERG6_5TO10__",null,"Input",null,null,194,"H","Input!H194",{"$f":"_xlfn.XLOOKUP(F520,'Raw Data'!$I$4:$I$5000,'Raw Data'!$E$4:$E$5000,100,0)","v":100},{"$f":"IF(N520=0,_xlfn.XLOOKUP(F520,'Raw Data'!$I$4:$I$5000,'Raw Data'!$H$4:$H$5000,\"\",0),\"\")","v":""},{"$f":"IF(INDIRECT(M520) = \"\",\"\",INDIRECT(M520))","v":""},"n"]
["SUCMRUR1NFCERG7_5TO10",null,null,null,{"$f":"_xlfn.XLOOKUP(F521,'Raw Data'!$I$4:$I$5000,'Raw Data'!$D$4:$D$5000,\"*** Mnemonic not found ***\",0)","v":"*** Mnemonic not found ***"},"SUCMRUR1NFCERG7_5TO10__",null,"Input",null,null,194,"I","Input!I194",{"$f":"_xlfn.XLOOKUP(F521,'Raw Data'!$I$4:$I$5000,'Raw Data'!$E$4:$E$5000,100,0)","v":100},{"$f":"IF(N521=0,_xlfn.XLOOKUP(F521,'Raw Data'!$I$4:$I$5000,'Raw Data'!$H$4:$H$5000,\"\",0),\"\")","v":""},{"$f":"IF(INDIRECT(M521) = \"\",\"\",INDIRECT(M521))","v":""},"n"]
["SUCMRUR1NFCERG8_5TO10",null,null,null,{"$f":"_xlfn.XLOOKUP(F522,'Raw Data'!$I$4:$I$5000,'Raw Data'!$D$4:$D$5000,\"*** Mnemonic not found ***\",0)","v":"*** Mnemonic not found ***"},"SUCMRUR1NFCERG8_5TO10__",null,"Input",null,null,194,"J","Input!J194",{"$f":"_xlfn.XLOOKUP(F522,'Raw Data'!$I$4:$I$5000,'Raw Data'!$E$4:$E$5000,100,0)","v":100},{"$f":"IF(N522=0,_xlfn.XLOOKUP(F522,'Raw Data'!$I$4:$I$5000,'Raw Data'!$H$4:$H$5000,\"\",0),\"\")","v":""},{"$f":"IF(INDIRECT(M522) = \"\",\"\",INDIRECT(M522))","v":""},"n"]
["SUCMRUR1NFCERG9_5TO10",null,null,null,{"$f":"_xlfn.XLOOKUP(F523,'Raw Data'!$I$4:$I$5000,'Raw Data'!$D$4:$D$5000,\"*** Mnemonic not found ***\",0)","v":"*** Mnemonic not found ***"},"SUCMRUR1NFCERG9_5TO10__",null,"Input",null,null,194,"K","Input!K194",{"$f":"_xlfn.XLOOKUP(F523,'Raw Data'!$I$4:$I$5000,'Raw Data'!$E$4:$E$5000,100,0)","v":100},{"$f":"IF(N523=0,_xlfn.XLOOKUP(F523,'Raw Data'!$I$4:$I$5000,'Raw Data'!$H$4:$H$5000,\"\",0),\"\")","v":""},{"$f":"IF(INDIRECT(M523) = \"\",\"\",INDIRECT(M523))","v":""},"n"]
["SUCMRUR1NFCERG10_5TO10",null,null,null,{"$f":"_xlfn.XLOOKUP(F524,'Raw Data'!$I$4:$I$5000,'Raw Data'!$D$4:$D$5000,\"*** Mnemonic not found ***\",0)","v":"*** Mnemonic not found ***"},"SUCMRUR1NFCERG10_5TO10__",null,"Input",null,null,194,"L","Input!L194",{"$f":"_xlfn.XLOOKUP(F524,'Raw Data'!$I$4:$I$5000,'Raw Data'!$E$4:$E$5000,100,0)","v":100},{"$f":"IF(N524=0,_xlfn.XLOOKUP(F524,'Raw Data'!$I$4:$I$5000,'Raw Data'!$H$4:$H$5000,\"\",0),\"\")","v":""},{"$f":"IF(INDIRECT(M524) = \"\",\"\",INDIRECT(M524))","v":""},"n"]
["SUCMRUR1NFCERGNA_5TO10",null,null,null,{"$f":"_xlfn.XLOOKUP(F525,'Raw Data'!$I$4:$I$5000,'Raw Data'!$D$4:$D$5000,\"*** Mnemonic not found ***\",0)","v":"*** Mnemonic not found ***"},"SUCMRUR1NFCERGNA_5TO10__",null,"Input",null,null,194,"M","Input!M194",{"$f":"_xlfn.XLOOKUP(F525,'Raw Data'!$I$4:$I$5000,'Raw Data'!$E$4:$E$5000,100,0)","v":100},{"$f":"IF(N525=0,_xlfn.XLOOKUP(F525,'Raw Data'!$I$4:$I$5000,'Raw Data'!$H$4:$H$5000,\"\",0),\"\")","v":""},{"$f":"IF(INDIRECT(M525) = \"\",\"\",INDIRECT(M525))","v":""},"n"]
["SUCMRUR1NFCERG1_10TO20",null,null,null,{"$f":"_xlfn.XLOOKUP(F526,'Raw Data'!$I$4:$I$5000,'Raw Data'!$D$4:$D$5000,\"*** Mnemonic not found ***\",0)","v":"*** Mnemonic not found ***"},"SUCMRUR1NFCERG1_10TO20__",null,"Input",null,null,195,"C","Input!C195",{"$f":"_xlfn.XLOOKUP(F526,'Raw Data'!$I$4:$I$5000,'Raw Data'!$E$4:$E$5000,100,0)","v":100},{"$f":"IF(N526=0,_xlfn.XLOOKUP(F526,'Raw Data'!$I$4:$I$5000,'Raw Data'!$H$4:$H$5000,\"\",0),\"\")","v":""},{"$f":"IF(INDIRECT(M526) = \"\",\"\",INDIRECT(M526))","v":""},"n"]
["SUCMRUR1NFCERG2_10TO20",null,null,null,{"$f":"_xlfn.XLOOKUP(F527,'Raw Data'!$I$4:$I$5000,'Raw Data'!$D$4:$D$5000,\"*** Mnemonic not found ***\",0)","v":"*** Mnemonic not found ***"},"SUCMRUR1NFCERG2_10TO20__",null,"Input",null,null,195,"D",{"$f":"CONCATENATE(H527,\"!\",L527,K527)","v":"Input!D195"},{"$f":"_xlfn.XLOOKUP(F527,'Raw Data'!$I$4:$I$5000,'Raw Data'!$E$4:$E$5000,100,0)","v":100},{"$f":"IF(N527=0,_xlfn.XLOOKUP(F527,'Raw Data'!$I$4:$I$5000,'Raw Data'!$H$4:$H$5000,\"\",0),\"\")","v":""},{"$f":"IF(INDIRECT(M527) = \"\",\"\",INDIRECT(M527))","v":""},"n"]
["SUCMRUR1NFCERG3_10TO20",null,null,null,{"$f":"_xlfn.XLOOKUP(F528,'Raw Data'!$I$4:$I$5000,'Raw Data'!$D$4:$D$5000,\"*** Mnemonic not found ***\",0)","v":"*** Mnemonic not found ***"},"SUCMRUR1NFCERG3_10TO20__",null,"Input",null,null,195,"E","Input!E195",{"$f":"_xlfn.XLOOKUP(F528,'Raw Data'!$I$4:$I$5000,'Raw Data'!$E$4:$E$5000,100,0)","v":100},{"$f":"IF(N528=0,_xlfn.XLOOKUP(F528,'Raw Data'!$I$4:$I$5000,'Raw Data'!$H$4:$H$5000,\"\",0),\"\")","v":""},{"$f":"IF(INDIRECT(M528) = \"\",\"\",INDIRECT(M528))","v":""},"n"]
["SUCMRUR1NFCERG4_10TO20",null,null,null,{"$f":"_xlfn.XLOOKUP(F529,'Raw Data'!$I$4:$I$5000,'Raw Data'!$D$4:$D$5000,\"*** Mnemonic not found ***\",0)","v":"*** Mnemonic not found ***"},"SUCMRUR1NFCERG4_10TO20__",null,"Input",null,null,195,"F","Input!F195",{"$f":"_xlfn.XLOOKUP(F529,'Raw Data'!$I$4:$I$5000,'Raw Data'!$E$4:$E$5000,100,0)","v":100},{"$f":"IF(N529=0,_xlfn.XLOOKUP(F529,'Raw Data'!$I$4:$I$5000,'Raw Data'!$H$4:$H$5000,\"\",0),\"\")","v":""},{"$f":"IF(INDIRECT(M529) = \"\",\"\",INDIRECT(M529))","v":""},"n"]
["SUCMRUR1NFCERG5_10TO20",null,null,null,{"$f":"_xlfn.XLOOKUP(F530,'Raw Data'!$I$4:$I$5000,'Raw Data'!$D$4:$D$5000,\"*** Mnemonic not found ***\",0)","v":"*** Mnemonic not found ***"},"SUCMRUR1NFCERG5_10TO20__",null,"Input",null,null,195,"G","Input!G195",{"$f":"_xlfn.XLOOKUP(F530,'Raw Data'!$I$4:$I$5000,'Raw Data'!$E$4:$E$5000,100,0)","v":100},{"$f":"IF(N530=0,_xlfn.XLOOKUP(F530,'Raw Data'!$I$4:$I$5000,'Raw Data'!$H$4:$H$5000,\"\",0),\"\")","v":""},{"$f":"IF(INDIRECT(M530) = \"\",\"\",INDIRECT(M530))","v":""},"n"]
["SUCMRUR1NFCERG6_10TO20",null,null,null,{"$f":"_xlfn.XLOOKUP(F531,'Raw Data'!$I$4:$I$5000,'Raw Data'!$D$4:$D$5000,\"*** Mnemonic not found ***\",0)","v":"*** Mnemonic not found ***"},"SUCMRUR1NFCERG6_10TO20__",null,"Input",null,null,195,"H","Input!H195",{"$f":"_xlfn.XLOOKUP(F531,'Raw Data'!$I$4:$I$5000,'Raw Data'!$E$4:$E$5000,100,0)","v":100},{"$f":"IF(N531=0,_xlfn.XLOOKUP(F531,'Raw Data'!$I$4:$I$5000,'Raw Data'!$H$4:$H$5000,\"\",0),\"\")","v":""},{"$f":"IF(INDIRECT(M531) = \"\",\"\",INDIRECT(M531))","v":""},"n"]
["SUCMRUR1NFCERG7_10TO20",null,null,null,{"$f":"_xlfn.XLOOKUP(F532,'Raw Data'!$I$4:$I$5000,'Raw Data'!$D$4:$D$5000,\"*** Mnemonic not found ***\",0)","v":"*** Mnemonic not found ***"},"SUCMRUR1NFCERG7_10TO20__",null,"Input",null,null,195,"I","Input!I195",{"$f":"_xlfn.XLOOKUP(F532,'Raw Data'!$I$4:$I$5000,'Raw Data'!$E$4:$E$5000,100,0)","v":100},{"$f":"IF(N532=0,_xlfn.XLOOKUP(F532,'Raw Data'!$I$4:$I$5000,'Raw Data'!$H$4:$H$5000,\"\",0),\"\")","v":""},{"$f":"IF(INDIRECT(M532) = \"\",\"\",INDIRECT(M532))","v":""},"n"]
["SUCMRUR1NFCERG8_10TO20",null,null,null,{"$f":"_xlfn.XLOOKUP(F533,'Raw Data'!$I$4:$I$5000,'Raw Data'!$D$4:$D$5000,\"*** Mnemonic not found ***\",0)","v":"*** Mnemonic not found ***"},"SUCMRUR1NFCERG8_10TO20__",null,"Input",null,null,195,"J","Input!J195",{"$f":"_xlfn.XLOOKUP(F533,'Raw Data'!$I$4:$I$5000,'Raw Data'!$E$4:$E$5000,100,0)","v":100},{"$f":"IF(N533=0,_xlfn.XLOOKUP(F533,'Raw Data'!$I$4:$I$5000,'Raw Data'!$H$4:$H$5000,\"\",0),\"\")","v":""},{"$f":"IF(INDIRECT(M533) = \"\",\"\",INDIRECT(M533))","v":""},"n"]
["SUCMRUR1NFCERG9_10TO20",null,null,null,{"$f":"_xlfn.XLOOKUP(F534,'Raw Data'!$I$4:$I$5000,'Raw Data'!$D$4:$D$5000,\"*** Mnemonic not found ***\",0)","v":"*** Mnemonic not found ***"},"SUCMRUR1NFCERG9_10TO20__",null,"Input",null,null,195,"K","Input!K195",{"$f":"_xlfn.XLOOKUP(F534,'Raw Data'!$I$4:$I$5000,'Raw Data'!$E$4:$E$5000,100,0)","v":100},{"$f":"IF(N534=0,_xlfn.XLOOKUP(F534,'Raw Data'!$I$4:$I$5000,'Raw Data'!$H$4:$H$5000,\"\",0),\"\")","v":""},{"$f":"IF(INDIRECT(M534) = \"\",\"\",INDIRECT(M534))","v":""},"n"]
["SUCMRUR1NFCERG10_10TO20",null,null,null,{"$f":"_xlfn.XLOOKUP(F535,'Raw Data'!$I$4:$I$5000,'Raw Data'!$D$4:$D$5000,\"*** Mnemonic not found ***\",0)","v":"*** Mnemonic not found ***"},"SUCMRUR1NFCERG10_10TO20__",null,"Input",null,null,195,"L","Input!L195",{"$f":"_xlfn.XLOOKUP(F535,'Raw Data'!$I$4:$I$5000,'Raw Data'!$E$4:$E$5000,100,0)","v":100},{"$f":"IF(N535=0,_xlfn.XLOOKUP(F535,'Raw Data'!$I$4:$I$5000,'Raw Data'!$H$4:$H$5000,\"\",0),\"\")","v":""},{"$f":"IF(INDIRECT(M535) = \"\",\"\",INDIRECT(M535))","v":""},"n"]
["SUCMRUR1NFCERGNA_10TO20",null,null,null,{"$f":"_xlfn.XLOOKUP(F536,'Raw Data'!$I$4:$I$5000,'Raw Data'!$D$4:$D$5000,\"*** Mnemonic not found ***\",0)","v":"*** Mnemonic not found ***"},"SUCMRUR1NFCERGNA_10TO20__",null,"Input",null,null,195,"M","Input!M195",{"$f":"_xlfn.XLOOKUP(F536,'Raw Data'!$I$4:$I$5000,'Raw Data'!$E$4:$E$5000,100,0)","v":100},{"$f":"IF(N536=0,_xlfn.XLOOKUP(F536,'Raw Data'!$I$4:$I$5000,'Raw Data'!$H$4:$H$5000,\"\",0),\"\")","v":""},{"$f":"IF(INDIRECT(M536) = \"\",\"\",INDIRECT(M536))","v":""},"n"]
["SUCMRUR1NFCERG1_GRTR20",null,null,null,{"$f":"_xlfn.XLOOKUP(F537,'Raw Data'!$I$4:$I$5000,'Raw Data'!$D$4:$D$5000,\"*** Mnemonic not found ***\",0)","v":"*** Mnemonic not found ***"},"SUCMRUR1NFCERG1_GRTR20__",null,"Input",null,null,196,"C","Input!C196",{"$f":"_xlfn.XLOOKUP(F537,'Raw Data'!$I$4:$I$5000,'Raw Data'!$E$4:$E$5000,100,0)","v":100},{"$f":"IF(N537=0,_xlfn.XLOOKUP(F537,'Raw Data'!$I$4:$I$5000,'Raw Data'!$H$4:$H$5000,\"\",0),\"\")","v":""},{"$f":"IF(INDIRECT(M537) = \"\",\"\",INDIRECT(M537))","v":""},"n"]
["SUCMRUR1NFCERG2_GRTR20",null,null,null,{"$f":"_xlfn.XLOOKUP(F538,'Raw Data'!$I$4:$I$5000,'Raw Data'!$D$4:$D$5000,\"*** Mnemonic not found ***\",0)","v":"*** Mnemonic not found ***"},"SUCMRUR1NFCERG2_GRTR20__",null,"Input",null,null,196,"D","Input!D196",{"$f":"_xlfn.XLOOKUP(F538,'Raw Data'!$I$4:$I$5000,'Raw Data'!$E$4:$E$5000,100,0)","v":100},{"$f":"IF(N538=0,_xlfn.XLOOKUP(F538,'Raw Data'!$I$4:$I$5000,'Raw Data'!$H$4:$H$5000,\"\",0),\"\")","v":""},{"$f":"IF(INDIRECT(M538) = \"\",\"\",INDIRECT(M538))","v":""},"n"]
["SUCMRUR1NFCERG3_GRTR20",null,null,null,{"$f":"_xlfn.XLOOKUP(F539,'Raw Data'!$I$4:$I$5000,'Raw Data'!$D$4:$D$5000,\"*** Mnemonic not found ***\",0)","v":"*** Mnemonic not found ***"},"SUCMRUR1NFCERG3_GRTR20__",null,"Input",null,null,196,"E","Input!E196",{"$f":"_xlfn.XLOOKUP(F539,'Raw Data'!$I$4:$I$5000,'Raw Data'!$E$4:$E$5000,100,0)","v":100},{"$f":"IF(N539=0,_xlfn.XLOOKUP(F539,'Raw Data'!$I$4:$I$5000,'Raw Data'!$H$4:$H$5000,\"\",0),\"\")","v":""},{"$f":"IF(INDIRECT(M539) = \"\",\"\",INDIRECT(M539))","v":""},"n"]
["SUCMRUR1NFCERG4_GRTR20",null,null,null,{"$f":"_xlfn.XLOOKUP(F540,'Raw Data'!$I$4:$I$5000,'Raw Data'!$D$4:$D$5000,\"*** Mnemonic not found ***\",0)","v":"*** Mnemonic not found ***"},"SUCMRUR1NFCERG4_GRTR20__",null,"Input",null,null,196,"F","Input!F196",{"$f":"_xlfn.XLOOKUP(F540,'Raw Data'!$I$4:$I$5000,'Raw Data'!$E$4:$E$5000,100,0)","v":100},{"$f":"IF(N540=0,_xlfn.XLOOKUP(F540,'Raw Data'!$I$4:$I$5000,'Raw Data'!$H$4:$H$5000,\"\",0),\"\")","v":""},{"$f":"IF(INDIRECT(M540) = \"\",\"\",INDIRECT(M540))","v":""},"n"]
["SUCMRUR1NFCERG5_GRTR20",null,null,null,{"$f":"_xlfn.XLOOKUP(F541,'Raw Data'!$I$4:$I$5000,'Raw Data'!$D$4:$D$5000,\"*** Mnemonic not found ***\",0)","v":"*** Mnemonic not found ***"},"SUCMRUR1NFCERG5_GRTR20__",null,"Input",null,null,196,"G","Input!G196",{"$f":"_xlfn.XLOOKUP(F541,'Raw Data'!$I$4:$I$5000,'Raw Data'!$E$4:$E$5000,100,0)","v":100},{"$f":"IF(N541=0,_xlfn.XLOOKUP(F541,'Raw Data'!$I$4:$I$5000,'Raw Data'!$H$4:$H$5000,\"\",0),\"\")","v":""},{"$f":"IF(INDIRECT(M541) = \"\",\"\",INDIRECT(M541))","v":""},"n"]
["SUCMRUR1NFCERG6_GRTR20",null,null,null,{"$f":"_xlfn.XLOOKUP(F542,'Raw Data'!$I$4:$I$5000,'Raw Data'!$D$4:$D$5000,\"*** Mnemonic not found ***\",0)","v":"*** Mnemonic not found ***"},"SUCMRUR1NFCERG6_GRTR20__",null,"Input",null,null,196,"H","Input!H196",{"$f":"_xlfn.XLOOKUP(F542,'Raw Data'!$I$4:$I$5000,'Raw Data'!$E$4:$E$5000,100,0)","v":100},{"$f":"IF(N542=0,_xlfn.XLOOKUP(F542,'Raw Data'!$I$4:$I$5000,'Raw Data'!$H$4:$H$5000,\"\",0),\"\")","v":""},{"$f":"IF(INDIRECT(M542) = \"\",\"\",INDIRECT(M542))","v":""},"n"]
["SUCMRUR1NFCERG7_GRTR20",null,null,null,{"$f":"_xlfn.XLOOKUP(F543,'Raw Data'!$I$4:$I$5000,'Raw Data'!$D$4:$D$5000,\"*** Mnemonic not found ***\",0)","v":"*** Mnemonic not found ***"},"SUCMRUR1NFCERG7_GRTR20__",null,"Input",null,null,196,"I","Input!I196",{"$f":"_xlfn.XLOOKUP(F543,'Raw Data'!$I$4:$I$5000,'Raw Data'!$E$4:$E$5000,100,0)","v":100},{"$f":"IF(N543=0,_xlfn.XLOOKUP(F543,'Raw Data'!$I$4:$I$5000,'Raw Data'!$H$4:$H$5000,\"\",0),\"\")","v":""},{"$f":"IF(INDIRECT(M543) = \"\",\"\",INDIRECT(M543))","v":""},"n"]
["SUCMRUR1NFCERG8_GRTR20",null,null,null,{"$f":"_xlfn.XLOOKUP(F544,'Raw Data'!$I$4:$I$5000,'Raw Data'!$D$4:$D$5000,\"*** Mnemonic not found ***\",0)","v":"*** Mnemonic not found ***"},"SUCMRUR1NFCERG8_GRTR20__",null,"Input",null,null,196,"J","Input!J196",{"$f":"_xlfn.XLOOKUP(F544,'Raw Data'!$I$4:$I$5000,'Raw Data'!$E$4:$E$5000,100,0)","v":100},{"$f":"IF(N544=0,_xlfn.XLOOKUP(F544,'Raw Data'!$I$4:$I$5000,'Raw Data'!$H$4:$H$5000,\"\",0),\"\")","v":""},{"$f":"IF(INDIRECT(M544) = \"\",\"\",INDIRECT(M544))","v":""},"n"]
["SUCMRUR1NFCERG9_GRTR20",null,null,null,{"$f":"_xlfn.XLOOKUP(F545,'Raw Data'!$I$4:$I$5000,'Raw Data'!$D$4:$D$5000,\"*** Mnemonic not found ***\",0)","v":"*** Mnemonic not found ***"},"SUCMRUR1NFCERG9_GRTR20__",null,"Input",null,null,196,"K","Input!K196",{"$f":"_xlfn.XLOOKUP(F545,'Raw Data'!$I$4:$I$5000,'Raw Data'!$E$4:$E$5000,100,0)","v":100},{"$f":"IF(N545=0,_xlfn.XLOOKUP(F545,'Raw Data'!$I$4:$I$5000,'Raw Data'!$H$4:$H$5000,\"\",0),\"\")","v":""},{"$f":"IF(INDIRECT(M545) = \"\",\"\",INDIRECT(M545))","v":""},"n"]
["SUCMRUR1NFCERG10_GRTR20",null,null,null,{"$f":"_xlfn.XLOOKUP(F546,'Raw Data'!$I$4:$I$5000,'Raw Data'!$D$4:$D$5000,\"*** Mnemonic not found ***\",0)","v":"*** Mnemonic not found ***"},"SUCMRUR1NFCERG10_GRTR20__",null,"Input",null,null,196,"L","Input!L196",{"$f":"_xlfn.XLOOKUP(F546,'Raw Data'!$I$4:$I$5000,'Raw Data'!$E$4:$E$5000,100,0)","v":100},{"$f":"IF(N546=0,_xlfn.XLOOKUP(F546,'Raw Data'!$I$4:$I$5000,'Raw Data'!$H$4:$H$5000,\"\",0),\"\")","v":""},{"$f":"IF(INDIRECT(M546) = \"\",\"\",INDIRECT(M546))","v":""},"n"]
["SUCMRUR1NFCERGNA_GRTR20",null,null,null,{"$f":"_xlfn.XLOOKUP(F547,'Raw Data'!$I$4:$I$5000,'Raw Data'!$D$4:$D$5000,\"*** Mnemonic not found ***\",0)","v":"*** Mnemonic not found ***"},"SUCMRUR1NFCERGNA_GRTR20__",null,"Input",null,null,196,"M","Input!M196",{"$f":"_xlfn.XLOOKUP(F547,'Raw Data'!$I$4:$I$5000,'Raw Data'!$E$4:$E$5000,100,0)","v":100},{"$f":"IF(N547=0,_xlfn.XLOOKUP(F547,'Raw Data'!$I$4:$I$5000,'Raw Data'!$H$4:$H$5000,\"\",0),\"\")","v":""},{"$f":"IF(INDIRECT(M547) = \"\",\"\",INDIRECT(M547))","v":""},"n"]
["SUCMRUR2NFCERG1_LESS1",null,null,null,{"$f":"_xlfn.XLOOKUP(F548,'Raw Data'!$I$4:$I$5000,'Raw Data'!$D$4:$D$5000,\"*** Mnemonic not found ***\",0)","v":"*** Mnemonic not found ***"},"SUCMRUR2NFCERG1_LESS1__",null,"Input",{"$f":"ROW(section_bonds_sp_unrated_step_4)","v":187},{"$f":"J493+10","v":15},{"$f":"I548+J548","v":202},{"$f":"L537","v":"C"},"Input!C202",{"$f":"_xlfn.XLOOKUP(F548,'Raw Data'!$I$4:$I$5000,'Raw Data'!$E$4:$E$5000,100,0)","v":100},{"$f":"IF(N548=0,_xlfn.XLOOKUP(F548,'Raw Data'!$I$4:$I$5000,'Raw Data'!$H$4:$H$5000,\"\",0),\"\")","v":""},{"$f":"IF(INDIRECT(M548) = \"\",\"\",INDIRECT(M548))","v":""},"n"]
["SUCMRUR2NFCERG2_LESS1",null,null,null,{"$f":"_xlfn.XLOOKUP(F549,'Raw Data'!$I$4:$I$5000,'Raw Data'!$D$4:$D$5000,\"*** Mnemonic not found ***\",0)","v":"*** Mnemonic not found ***"},"SUCMRUR2NFCERG2_LESS1__",null,"Input",null,null,{"$f":"K548","v":202},{"$f":"L538","v":"D"},"Input!D202",{"$f":"_xlfn.XLOOKUP(F549,'Raw Data'!$I$4:$I$5000,'Raw Data'!$E$4:$E$5000,100,0)","v":100},{"$f":"IF(N549=0,_xlfn.XLOOKUP(F549,'Raw Data'!$I$4:$I$5000,'Raw Data'!$H$4:$H$5000,\"\",0),\"\")","v":""},{"$f":"IF(INDIRECT(M549) = \"\",\"\",INDIRECT(M549))","v":""},"n"]
["SUCMRUR2NFCERG3_LESS1",null,null,null,{"$f":"_xlfn.XLOOKUP(F550,'Raw Data'!$I$4:$I$5000,'Raw Data'!$D$4:$D$5000,\"*** Mnemonic not found ***\",0)","v":"*** Mnemonic not found ***"},"SUCMRUR2NFCERG3_LESS1__",null,"Input",null,null,{"$f":"K549","v":202},"E","Input!E202",{"$f":"_xlfn.XLOOKUP(F550,'Raw Data'!$I$4:$I$5000,'Raw Data'!$E$4:$E$5000,100,0)","v":100},{"$f":"IF(N550=0,_xlfn.XLOOKUP(F550,'Raw Data'!$I$4:$I$5000,'Raw Data'!$H$4:$H$5000,\"\",0),\"\")","v":""},{"$f":"IF(INDIRECT(M550) = \"\",\"\",INDIRECT(M550))","v":""},"n"]
["SUCMRUR2NFCERG4_LESS1",null,null,null,{"$f":"_xlfn.XLOOKUP(F551,'Raw Data'!$I$4:$I$5000,'Raw Data'!$D$4:$D$5000,\"*** Mnemonic not found ***\",0)","v":"*** Mnemonic not found ***"},"SUCMRUR2NFCERG4_LESS1__",null,"Input",null,null,202,"F","Input!F202",{"$f":"_xlfn.XLOOKUP(F551,'Raw Data'!$I$4:$I$5000,'Raw Data'!$E$4:$E$5000,100,0)","v":100},{"$f":"IF(N551=0,_xlfn.XLOOKUP(F551,'Raw Data'!$I$4:$I$5000,'Raw Data'!$H$4:$H$5000,\"\",0),\"\")","v":""},{"$f":"IF(INDIRECT(M551) = \"\",\"\",INDIRECT(M551))","v":""},"n"]
["SUCMRUR2NFCERG5_LESS1",null,null,null,{"$f":"_xlfn.XLOOKUP(F552,'Raw Data'!$I$4:$I$5000,'Raw Data'!$D$4:$D$5000,\"*** Mnemonic not found ***\",0)","v":"*** Mnemonic not found ***"},"SUCMRUR2NFCERG5_LESS1__",null,"Input",null,null,202,"G","Input!G202",{"$f":"_xlfn.XLOOKUP(F552,'Raw Data'!$I$4:$I$5000,'Raw Data'!$E$4:$E$5000,100,0)","v":100},{"$f":"IF(N552=0,_xlfn.XLOOKUP(F552,'Raw Data'!$I$4:$I$5000,'Raw Data'!$H$4:$H$5000,\"\",0),\"\")","v":""},{"$f":"IF(INDIRECT(M552) = \"\",\"\",INDIRECT(M552))","v":""},"n"]
["SUCMRUR2NFCERG6_LESS1",null,null,null,{"$f":"_xlfn.XLOOKUP(F553,'Raw Data'!$I$4:$I$5000,'Raw Data'!$D$4:$D$5000,\"*** Mnemonic not found ***\",0)","v":"*** Mnemonic not found ***"},"SUCMRUR2NFCERG6_LESS1__",null,"Input",null,null,202,"H","Input!H202",{"$f":"_xlfn.XLOOKUP(F553,'Raw Data'!$I$4:$I$5000,'Raw Data'!$E$4:$E$5000,100,0)","v":100},{"$f":"IF(N553=0,_xlfn.XLOOKUP(F553,'Raw Data'!$I$4:$I$5000,'Raw Data'!$H$4:$H$5000,\"\",0),\"\")","v":""},{"$f":"IF(INDIRECT(M553) = \"\",\"\",INDIRECT(M553))","v":""},"n"]
["SUCMRUR2NFCERG7_LESS1",null,null,null,{"$f":"_xlfn.XLOOKUP(F554,'Raw Data'!$I$4:$I$5000,'Raw Data'!$D$4:$D$5000,\"*** Mnemonic not found ***\",0)","v":"*** Mnemonic not found ***"},"SUCMRUR2NFCERG7_LESS1__",null,"Input",null,null,202,"I","Input!I202",{"$f":"_xlfn.XLOOKUP(F554,'Raw Data'!$I$4:$I$5000,'Raw Data'!$E$4:$E$5000,100,0)","v":100},{"$f":"IF(N554=0,_xlfn.XLOOKUP(F554,'Raw Data'!$I$4:$I$5000,'Raw Data'!$H$4:$H$5000,\"\",0),\"\")","v":""},{"$f":"IF(INDIRECT(M554) = \"\",\"\",INDIRECT(M554))","v":""},"n"]
["SUCMRUR2NFCERG8_LESS1",null,null,null,{"$f":"_xlfn.XLOOKUP(F555,'Raw Data'!$I$4:$I$5000,'Raw Data'!$D$4:$D$5000,\"*** Mnemonic not found ***\",0)","v":"*** Mnemonic not found ***"},"SUCMRUR2NFCERG8_LESS1__",null,"Input",null,null,202,"J","Input!J202",{"$f":"_xlfn.XLOOKUP(F555,'Raw Data'!$I$4:$I$5000,'Raw Data'!$E$4:$E$5000,100,0)","v":100},{"$f":"IF(N555=0,_xlfn.XLOOKUP(F555,'Raw Data'!$I$4:$I$5000,'Raw Data'!$H$4:$H$5000,\"\",0),\"\")","v":""},{"$f":"IF(INDIRECT(M555) = \"\",\"\",INDIRECT(M555))","v":""},"n"]
["SUCMRUR2NFCERG9_LESS1",null,null,null,{"$f":"_xlfn.XLOOKUP(F556,'Raw Data'!$I$4:$I$5000,'Raw Data'!$D$4:$D$5000,\"*** Mnemonic not found ***\",0)","v":"*** Mnemonic not found ***"},"SUCMRUR2NFCERG9_LESS1__",null,"Input",null,null,202,"K","Input!K202",{"$f":"_xlfn.XLOOKUP(F556,'Raw Data'!$I$4:$I$5000,'Raw Data'!$E$4:$E$5000,100,0)","v":100},{"$f":"IF(N556=0,_xlfn.XLOOKUP(F556,'Raw Data'!$I$4:$I$5000,'Raw Data'!$H$4:$H$5000,\"\",0),\"\")","v":""},{"$f":"IF(INDIRECT(M556) = \"\",\"\",INDIRECT(M556))","v":""},"n"]
["SUCMRUR2NFCERG10_LESS1",null,null,null,{"$f":"_xlfn.XLOOKUP(F557,'Raw Data'!$I$4:$I$5000,'Raw Data'!$D$4:$D$5000,\"*** Mnemonic not found ***\",0)","v":"*** Mnemonic not found ***"},"SUCMRUR2NFCERG10_LESS1__",null,"Input",null,null,202,"L","Input!L202",{"$f":"_xlfn.XLOOKUP(F557,'Raw Data'!$I$4:$I$5000,'Raw Data'!$E$4:$E$5000,100,0)","v":100},{"$f":"IF(N557=0,_xlfn.XLOOKUP(F557,'Raw Data'!$I$4:$I$5000,'Raw Data'!$H$4:$H$5000,\"\",0),\"\")","v":""},{"$f":"IF(INDIRECT(M557) = \"\",\"\",INDIRECT(M557))","v":""},"n"]
["SUCMRUR2NFCERGNA_LESS1",null,null,null,{"$f":"_xlfn.XLOOKUP(F558,'Raw Data'!$I$4:$I$5000,'Raw Data'!$D$4:$D$5000,\"*** Mnemonic not found ***\",0)","v":"*** Mnemonic not found ***"},"SUCMRUR2NFCERGNA_LESS1__",null,"Input",null,null,202,"M","Input!M202",{"$f":"_xlfn.XLOOKUP(F558,'Raw Data'!$I$4:$I$5000,'Raw Data'!$E$4:$E$5000,100,0)","v":100},{"$f":"IF(N558=0,_xlfn.XLOOKUP(F558,'Raw Data'!$I$4:$I$5000,'Raw Data'!$H$4:$H$5000,\"\",0),\"\")","v":""},{"$f":"IF(INDIRECT(M558) = \"\",\"\",INDIRECT(M558))","v":""},"n"]
["SUCMRUR2NFCERG1_1TO5",null,null,null,{"$f":"_xlfn.XLOOKUP(F559,'Raw Data'!$I$4:$I$5000,'Raw Data'!$D$4:$D$5000,\"*** Mnemonic not found ***\",0)","v":"*** Mnemonic not found ***"},"SUCMRUR2NFCERG1_1TO5__",null,"Input",null,null,{"$f":"K548+1","v":203},{"$f":"L548","v":"C"},"Input!C203",{"$f":"_xlfn.XLOOKUP(F559,'Raw Data'!$I$4:$I$5000,'Raw Data'!$E$4:$E$5000,100,0)","v":100},{"$f":"IF(N559=0,_xlfn.XLOOKUP(F559,'Raw Data'!$I$4:$I$5000,'Raw Data'!$H$4:$H$5000,\"\",0),\"\")","v":""},{"$f":"IF(INDIRECT(M559) = \"\",\"\",INDIRECT(M559))","v":""},"n"]
["SUCMRUR2NFCERG2_1TO5",null,null,null,{"$f":"_xlfn.XLOOKUP(F560,'Raw Data'!$I$4:$I$5000,'Raw Data'!$D$4:$D$5000,\"*** Mnemonic not found ***\",0)","v":"*** Mnemonic not found ***"},"SUCMRUR2NFCERG2_1TO5__",null,"Input",null,null,{"$f":"K549+1","v":203},{"$f":"L549","v":"D"},"Input!D203",{"$f":"_xlfn.XLOOKUP(F560,'Raw Data'!$I$4:$I$5000,'Raw Data'!$E$4:$E$5000,100,0)","v":100},{"$f":"IF(N560=0,_xlfn.XLOOKUP(F560,'Raw Data'!$I$4:$I$5000,'Raw Data'!$H$4:$H$5000,\"\",0),\"\")","v":""},{"$f":"IF(INDIRECT(M560) = \"\",\"\",INDIRECT(M560))","v":""},"n"]
["SUCMRUR2NFCERG3_1TO5",null,null,null,{"$f":"_xlfn.XLOOKUP(F561,'Raw Data'!$I$4:$I$5000,'Raw Data'!$D$4:$D$5000,\"*** Mnemonic not found ***\",0)","v":"*** Mnemonic not found ***"},"SUCMRUR2NFCERG3_1TO5__",null,"Input",null,null,203,"E","Input!E203",{"$f":"_xlfn.XLOOKUP(F561,'Raw Data'!$I$4:$I$5000,'Raw Data'!$E$4:$E$5000,100,0)","v":100},{"$f":"IF(N561=0,_xlfn.XLOOKUP(F561,'Raw Data'!$I$4:$I$5000,'Raw Data'!$H$4:$H$5000,\"\",0),\"\")","v":""},{"$f":"IF(INDIRECT(M561) = \"\",\"\",INDIRECT(M561))","v":""},"n"]
["SUCMRUR2NFCERG4_1TO5",null,null,null,{"$f":"_xlfn.XLOOKUP(F562,'Raw Data'!$I$4:$I$5000,'Raw Data'!$D$4:$D$5000,\"*** Mnemonic not found ***\",0)","v":"*** Mnemonic not found ***"},"SUCMRUR2NFCERG4_1TO5__",null,"Input",null,null,203,"F","Input!F203",{"$f":"_xlfn.XLOOKUP(F562,'Raw Data'!$I$4:$I$5000,'Raw Data'!$E$4:$E$5000,100,0)","v":100},{"$f":"IF(N562=0,_xlfn.XLOOKUP(F562,'Raw Data'!$I$4:$I$5000,'Raw Data'!$H$4:$H$5000,\"\",0),\"\")","v":""},{"$f":"IF(INDIRECT(M562) = \"\",\"\",INDIRECT(M562))","v":""},"n"]
["SUCMRUR2NFCERG5_1TO5",null,null,null,{"$f":"_xlfn.XLOOKUP(F563,'Raw Data'!$I$4:$I$5000,'Raw Data'!$D$4:$D$5000,\"*** Mnemonic not found ***\",0)","v":"*** Mnemonic not found ***"},"SUCMRUR2NFCERG5_1TO5__",null,"Input",null,null,203,"G","Input!G203",{"$f":"_xlfn.XLOOKUP(F563,'Raw Data'!$I$4:$I$5000,'Raw Data'!$E$4:$E$5000,100,0)","v":100},{"$f":"IF(N563=0,_xlfn.XLOOKUP(F563,'Raw Data'!$I$4:$I$5000,'Raw Data'!$H$4:$H$5000,\"\",0),\"\")","v":""},{"$f":"IF(INDIRECT(M563) = \"\",\"\",INDIRECT(M563))","v":""},"n"]
["SUCMRUR2NFCERG6_1TO5",null,null,null,{"$f":"_xlfn.XLOOKUP(F564,'Raw Data'!$I$4:$I$5000,'Raw Data'!$D$4:$D$5000,\"*** Mnemonic not found ***\",0)","v":"*** Mnemonic not found ***"},"SUCMRUR2NFCERG6_1TO5__",null,"Input",null,null,203,"H","Input!H203",{"$f":"_xlfn.XLOOKUP(F564,'Raw Data'!$I$4:$I$5000,'Raw Data'!$E$4:$E$5000,100,0)","v":100},{"$f":"IF(N564=0,_xlfn.XLOOKUP(F564,'Raw Data'!$I$4:$I$5000,'Raw Data'!$H$4:$H$5000,\"\",0),\"\")","v":""},{"$f":"IF(INDIRECT(M564) = \"\",\"\",INDIRECT(M564))","v":""},"n"]
["SUCMRUR2NFCERG7_1TO5",null,null,null,{"$f":"_xlfn.XLOOKUP(F565,'Raw Data'!$I$4:$I$5000,'Raw Data'!$D$4:$D$5000,\"*** Mnemonic not found ***\",0)","v":"*** Mnemonic not found ***"},"SUCMRUR2NFCERG7_1TO5__",null,"Input",null,null,203,"I","Input!I203",{"$f":"_xlfn.XLOOKUP(F565,'Raw Data'!$I$4:$I$5000,'Raw Data'!$E$4:$E$5000,100,0)","v":100},{"$f":"IF(N565=0,_xlfn.XLOOKUP(F565,'Raw Data'!$I$4:$I$5000,'Raw Data'!$H$4:$H$5000,\"\",0),\"\")","v":""},{"$f":"IF(INDIRECT(M565) = \"\",\"\",INDIRECT(M565))","v":""},"n"]
["SUCMRUR2NFCERG8_1TO5",null,null,null,{"$f":"_xlfn.XLOOKUP(F566,'Raw Data'!$I$4:$I$5000,'Raw Data'!$D$4:$D$5000,\"*** Mnemonic not found ***\",0)","v":"*** Mnemonic not found ***"},"SUCMRUR2NFCERG8_1TO5__",null,"Input",null,null,203,"J","Input!J203",{"$f":"_xlfn.XLOOKUP(F566,'Raw Data'!$I$4:$I$5000,'Raw Data'!$E$4:$E$5000,100,0)","v":100},{"$f":"IF(N566=0,_xlfn.XLOOKUP(F566,'Raw Data'!$I$4:$I$5000,'Raw Data'!$H$4:$H$5000,\"\",0),\"\")","v":""},{"$f":"IF(INDIRECT(M566) = \"\",\"\",INDIRECT(M566))","v":""},"n"]
["SUCMRUR2NFCERG9_1TO5",null,null,null,{"$f":"_xlfn.XLOOKUP(F567,'Raw Data'!$I$4:$I$5000,'Raw Data'!$D$4:$D$5000,\"*** Mnemonic not found ***\",0)","v":"*** Mnemonic not found ***"},"SUCMRUR2NFCERG9_1TO5__",null,"Input",null,null,203,"K","Input!K203",{"$f":"_xlfn.XLOOKUP(F567,'Raw Data'!$I$4:$I$5000,'Raw Data'!$E$4:$E$5000,100,0)","v":100},{"$f":"IF(N567=0,_xlfn.XLOOKUP(F567,'Raw Data'!$I$4:$I$5000,'Raw Data'!$H$4:$H$5000,\"\",0),\"\")","v":""},{"$f":"IF(INDIRECT(M567) = \"\",\"\",INDIRECT(M567))","v":""},"n"]
["SUCMRUR2NFCERG10_1TO5",null,null,null,{"$f":"_xlfn.XLOOKUP(F568,'Raw Data'!$I$4:$I$5000,'Raw Data'!$D$4:$D$5000,\"*** Mnemonic not found ***\",0)","v":"*** Mnemonic not found ***"},"SUCMRUR2NFCERG10_1TO5__",null,"Input",null,null,203,"L","Input!L203",{"$f":"_xlfn.XLOOKUP(F568,'Raw Data'!$I$4:$I$5000,'Raw Data'!$E$4:$E$5000,100,0)","v":100},{"$f":"IF(N568=0,_xlfn.XLOOKUP(F568,'Raw Data'!$I$4:$I$5000,'Raw Data'!$H$4:$H$5000,\"\",0),\"\")","v":""},{"$f":"IF(INDIRECT(M568) = \"\",\"\",INDIRECT(M568))","v":""},"n"]
["SUCMRUR2NFCERGNA_1TO5",null,null,null,{"$f":"_xlfn.XLOOKUP(F569,'Raw Data'!$I$4:$I$5000,'Raw Data'!$D$4:$D$5000,\"*** Mnemonic not found ***\",0)","v":"*** Mnemonic not found ***"},"SUCMRUR2NFCERGNA_1TO5__",null,"Input",null,null,203,"M","Input!M203",{"$f":"_xlfn.XLOOKUP(F569,'Raw Data'!$I$4:$I$5000,'Raw Data'!$E$4:$E$5000,100,0)","v":100},{"$f":"IF(N569=0,_xlfn.XLOOKUP(F569,'Raw Data'!$I$4:$I$5000,'Raw Data'!$H$4:$H$5000,\"\",0),\"\")","v":""},{"$f":"IF(INDIRECT(M569) = \"\",\"\",INDIRECT(M569))","v":""},"n"]
["SUCMRUR2NFCERG1_5TO10",null,null,null,{"$f":"_xlfn.XLOOKUP(F570,'Raw Data'!$I$4:$I$5000,'Raw Data'!$D$4:$D$5000,\"*** Mnemonic not found ***\",0)","v":"*** Mnemonic not found ***"},"SUCMRUR2NFCERG1_5TO10__",null,"Input",null,null,204,"C","Input!C204",{"$f":"_xlfn.XLOOKUP(F570,'Raw Data'!$I$4:$I$5000,'Raw Data'!$E$4:$E$5000,100,0)","v":100},{"$f":"IF(N570=0,_xlfn.XLOOKUP(F570,'Raw Data'!$I$4:$I$5000,'Raw Data'!$H$4:$H$5000,\"\",0),\"\")","v":""},{"$f":"IF(INDIRECT(M570) = \"\",\"\",INDIRECT(M570))","v":""},"n"]
["SUCMRUR2NFCERG2_5TO10",null,null,null,{"$f":"_xlfn.XLOOKUP(F571,'Raw Data'!$I$4:$I$5000,'Raw Data'!$D$4:$D$5000,\"*** Mnemonic not found ***\",0)","v":"*** Mnemonic not found ***"},"SUCMRUR2NFCERG2_5TO10__",null,"Input",null,null,204,"D","Input!D204",{"$f":"_xlfn.XLOOKUP(F571,'Raw Data'!$I$4:$I$5000,'Raw Data'!$E$4:$E$5000,100,0)","v":100},{"$f":"IF(N571=0,_xlfn.XLOOKUP(F571,'Raw Data'!$I$4:$I$5000,'Raw Data'!$H$4:$H$5000,\"\",0),\"\")","v":""},{"$f":"IF(INDIRECT(M571) = \"\",\"\",INDIRECT(M571))","v":""},"n"]
["SUCMRUR2NFCERG3_5TO10",null,null,null,{"$f":"_xlfn.XLOOKUP(F572,'Raw Data'!$I$4:$I$5000,'Raw Data'!$D$4:$D$5000,\"*** Mnemonic not found ***\",0)","v":"*** Mnemonic not found ***"},"SUCMRUR2NFCERG3_5TO10__",null,"Input",null,null,204,"E","Input!E204",{"$f":"_xlfn.XLOOKUP(F572,'Raw Data'!$I$4:$I$5000,'Raw Data'!$E$4:$E$5000,100,0)","v":100},{"$f":"IF(N572=0,_xlfn.XLOOKUP(F572,'Raw Data'!$I$4:$I$5000,'Raw Data'!$H$4:$H$5000,\"\",0),\"\")","v":""},{"$f":"IF(INDIRECT(M572) = \"\",\"\",INDIRECT(M572))","v":""},"n"]
["SUCMRUR2NFCERG4_5TO10",null,null,null,{"$f":"_xlfn.XLOOKUP(F573,'Raw Data'!$I$4:$I$5000,'Raw Data'!$D$4:$D$5000,\"*** Mnemonic not found ***\",0)","v":"*** Mnemonic not found ***"},"SUCMRUR2NFCERG4_5TO10__",null,"Input",null,null,204,"F","Input!F204",{"$f":"_xlfn.XLOOKUP(F573,'Raw Data'!$I$4:$I$5000,'Raw Data'!$E$4:$E$5000,100,0)","v":100},{"$f":"IF(N573=0,_xlfn.XLOOKUP(F573,'Raw Data'!$I$4:$I$5000,'Raw Data'!$H$4:$H$5000,\"\",0),\"\")","v":""},{"$f":"IF(INDIRECT(M573) = \"\",\"\",INDIRECT(M573))","v":""},"n"]
["SUCMRUR2NFCERG5_5TO10",null,null,null,{"$f":"_xlfn.XLOOKUP(F574,'Raw Data'!$I$4:$I$5000,'Raw Data'!$D$4:$D$5000,\"*** Mnemonic not found ***\",0)","v":"*** Mnemonic not found ***"},"SUCMRUR2NFCERG5_5TO10__",null,"Input",null,null,204,"G","Input!G204",{"$f":"_xlfn.XLOOKUP(F574,'Raw Data'!$I$4:$I$5000,'Raw Data'!$E$4:$E$5000,100,0)","v":100},{"$f":"IF(N574=0,_xlfn.XLOOKUP(F574,'Raw Data'!$I$4:$I$5000,'Raw Data'!$H$4:$H$5000,\"\",0),\"\")","v":""},{"$f":"IF(INDIRECT(M574) = \"\",\"\",INDIRECT(M574))","v":""},"n"]
["SUCMRUR2NFCERG6_5TO10",null,null,null,{"$f":"_xlfn.XLOOKUP(F575,'Raw Data'!$I$4:$I$5000,'Raw Data'!$D$4:$D$5000,\"*** Mnemonic not found ***\",0)","v":"*** Mnemonic not found ***"},"SUCMRUR2NFCERG6_5TO10__",null,"Input",null,null,204,"H","Input!H204",{"$f":"_xlfn.XLOOKUP(F575,'Raw Data'!$I$4:$I$5000,'Raw Data'!$E$4:$E$5000,100,0)","v":100},{"$f":"IF(N575=0,_xlfn.XLOOKUP(F575,'Raw Data'!$I$4:$I$5000,'Raw Data'!$H$4:$H$5000,\"\",0),\"\")","v":""},{"$f":"IF(INDIRECT(M575) = \"\",\"\",INDIRECT(M575))","v":""},"n"]
["SUCMRUR2NFCERG7_5TO10",null,null,null,{"$f":"_xlfn.XLOOKUP(F576,'Raw Data'!$I$4:$I$5000,'Raw Data'!$D$4:$D$5000,\"*** Mnemonic not found ***\",0)","v":"*** Mnemonic not found ***"},"SUCMRUR2NFCERG7_5TO10__",null,"Input",null,null,204,"I","Input!I204",{"$f":"_xlfn.XLOOKUP(F576,'Raw Data'!$I$4:$I$5000,'Raw Data'!$E$4:$E$5000,100,0)","v":100},{"$f":"IF(N576=0,_xlfn.XLOOKUP(F576,'Raw Data'!$I$4:$I$5000,'Raw Data'!$H$4:$H$5000,\"\",0),\"\")","v":""},{"$f":"IF(INDIRECT(M576) = \"\",\"\",INDIRECT(M576))","v":""},"n"]
["SUCMRUR2NFCERG8_5TO10",null,null,null,{"$f":"_xlfn.XLOOKUP(F577,'Raw Data'!$I$4:$I$5000,'Raw Data'!$D$4:$D$5000,\"*** Mnemonic not found ***\",0)","v":"*** Mnemonic not found ***"},"SUCMRUR2NFCERG8_5TO10__",null,"Input",null,null,204,"J","Input!J204",{"$f":"_xlfn.XLOOKUP(F577,'Raw Data'!$I$4:$I$5000,'Raw Data'!$E$4:$E$5000,100,0)","v":100},{"$f":"IF(N577=0,_xlfn.XLOOKUP(F577,'Raw Data'!$I$4:$I$5000,'Raw Data'!$H$4:$H$5000,\"\",0),\"\")","v":""},{"$f":"IF(INDIRECT(M577) = \"\",\"\",INDIRECT(M577))","v":""},"n"]
["SUCMRUR2NFCERG9_5TO10",null,null,null,{"$f":"_xlfn.XLOOKUP(F578,'Raw Data'!$I$4:$I$5000,'Raw Data'!$D$4:$D$5000,\"*** Mnemonic not found ***\",0)","v":"*** Mnemonic not found ***"},"SUCMRUR2NFCERG9_5TO10__",null,"Input",null,null,204,"K","Input!K204",{"$f":"_xlfn.XLOOKUP(F578,'Raw Data'!$I$4:$I$5000,'Raw Data'!$E$4:$E$5000,100,0)","v":100},{"$f":"IF(N578=0,_xlfn.XLOOKUP(F578,'Raw Data'!$I$4:$I$5000,'Raw Data'!$H$4:$H$5000,\"\",0),\"\")","v":""},{"$f":"IF(INDIRECT(M578) = \"\",\"\",INDIRECT(M578))","v":""},"n"]
["SUCMRUR2NFCERG10_5TO10",null,null,null,{"$f":"_xlfn.XLOOKUP(F579,'Raw Data'!$I$4:$I$5000,'Raw Data'!$D$4:$D$5000,\"*** Mnemonic not found ***\",0)","v":"*** Mnemonic not found ***"},"SUCMRUR2NFCERG10_5TO10__",null,"Input",null,null,204,"L","Input!L204",{"$f":"_xlfn.XLOOKUP(F579,'Raw Data'!$I$4:$I$5000,'Raw Data'!$E$4:$E$5000,100,0)","v":100},{"$f":"IF(N579=0,_xlfn.XLOOKUP(F579,'Raw Data'!$I$4:$I$5000,'Raw Data'!$H$4:$H$5000,\"\",0),\"\")","v":""},{"$f":"IF(INDIRECT(M579) = \"\",\"\",INDIRECT(M579))","v":""},"n"]
["SUCMRUR2NFCERGNA_5TO10",null,null,null,{"$f":"_xlfn.XLOOKUP(F580,'Raw Data'!$I$4:$I$5000,'Raw Data'!$D$4:$D$5000,\"*** Mnemonic not found ***\",0)","v":"*** Mnemonic not found ***"},"SUCMRUR2NFCERGNA_5TO10__",null,"Input",null,null,204,"M","Input!M204",{"$f":"_xlfn.XLOOKUP(F580,'Raw Data'!$I$4:$I$5000,'Raw Data'!$E$4:$E$5000,100,0)","v":100},{"$f":"IF(N580=0,_xlfn.XLOOKUP(F580,'Raw Data'!$I$4:$I$5000,'Raw Data'!$H$4:$H$5000,\"\",0),\"\")","v":""},{"$f":"IF(INDIRECT(M580) = \"\",\"\",INDIRECT(M580))","v":""},"n"]
["SUCMRUR2NFCERG1_10TO20",null,null,null,{"$f":"_xlfn.XLOOKUP(F581,'Raw Data'!$I$4:$I$5000,'Raw Data'!$D$4:$D$5000,\"*** Mnemonic not found ***\",0)","v":"*** Mnemonic not found ***"},{"$f":"CONCATENATE(A581,\"_\",B581,\"_\",D581)","v":"SUCMRUR2NFCERG1_10TO20__"},null,"Input",null,null,205,"C","Input!C205",{"$f":"_xlfn.XLOOKUP(F581,'Raw Data'!$I$4:$I$5000,'Raw Data'!$E$4:$E$5000,100,0)","v":100},{"$f":"IF(N581=0,_xlfn.XLOOKUP(F581,'Raw Data'!$I$4:$I$5000,'Raw Data'!$H$4:$H$5000,\"\",0),\"\")","v":""},{"$f":"IF(INDIRECT(M581) = \"\",\"\",INDIRECT(M581))","v":""},"n"]
["SUCMRUR2NFCERG2_10TO20",null,null,null,{"$f":"_xlfn.XLOOKUP(F582,'Raw Data'!$I$4:$I$5000,'Raw Data'!$D$4:$D$5000,\"*** Mnemonic not found ***\",0)","v":"*** Mnemonic not found ***"},"SUCMRUR2NFCERG2_10TO20__",null,"Input",null,null,205,"D","Input!D205",{"$f":"_xlfn.XLOOKUP(F582,'Raw Data'!$I$4:$I$5000,'Raw Data'!$E$4:$E$5000,100,0)","v":100},{"$f":"IF(N582=0,_xlfn.XLOOKUP(F582,'Raw Data'!$I$4:$I$5000,'Raw Data'!$H$4:$H$5000,\"\",0),\"\")","v":""},{"$f":"IF(INDIRECT(M582) = \"\",\"\",INDIRECT(M582))","v":""},"n"]
["SUCMRUR2NFCERG3_10TO20",null,null,null,{"$f":"_xlfn.XLOOKUP(F583,'Raw Data'!$I$4:$I$5000,'Raw Data'!$D$4:$D$5000,\"*** Mnemonic not found ***\",0)","v":"*** Mnemonic not found ***"},"SUCMRUR2NFCERG3_10TO20__",null,"Input",null,null,205,"E","Input!E205",{"$f":"_xlfn.XLOOKUP(F583,'Raw Data'!$I$4:$I$5000,'Raw Data'!$E$4:$E$5000,100,0)","v":100},{"$f":"IF(N583=0,_xlfn.XLOOKUP(F583,'Raw Data'!$I$4:$I$5000,'Raw Data'!$H$4:$H$5000,\"\",0),\"\")","v":""},{"$f":"IF(INDIRECT(M583) = \"\",\"\",INDIRECT(M583))","v":""},"n"]
["SUCMRUR2NFCERG4_10TO20",null,null,null,{"$f":"_xlfn.XLOOKUP(F584,'Raw Data'!$I$4:$I$5000,'Raw Data'!$D$4:$D$5000,\"*** Mnemonic not found ***\",0)","v":"*** Mnemonic not found ***"},"SUCMRUR2NFCERG4_10TO20__",null,"Input",null,null,205,"F","Input!F205",{"$f":"_xlfn.XLOOKUP(F584,'Raw Data'!$I$4:$I$5000,'Raw Data'!$E$4:$E$5000,100,0)","v":100},{"$f":"IF(N584=0,_xlfn.XLOOKUP(F584,'Raw Data'!$I$4:$I$5000,'Raw Data'!$H$4:$H$5000,\"\",0),\"\")","v":""},{"$f":"IF(INDIRECT(M584) = \"\",\"\",INDIRECT(M584))","v":""},"n"]
["SUCMRUR2NFCERG5_10TO20",null,null,null,{"$f":"_xlfn.XLOOKUP(F585,'Raw Data'!$I$4:$I$5000,'Raw Data'!$D$4:$D$5000,\"*** Mnemonic not found ***\",0)","v":"*** Mnemonic not found ***"},"SUCMRUR2NFCERG5_10TO20__",null,"Input",null,null,205,"G","Input!G205",{"$f":"_xlfn.XLOOKUP(F585,'Raw Data'!$I$4:$I$5000,'Raw Data'!$E$4:$E$5000,100,0)","v":100},{"$f":"IF(N585=0,_xlfn.XLOOKUP(F585,'Raw Data'!$I$4:$I$5000,'Raw Data'!$H$4:$H$5000,\"\",0),\"\")","v":""},{"$f":"IF(INDIRECT(M585) = \"\",\"\",INDIRECT(M585))","v":""},"n"]
["SUCMRUR2NFCERG6_10TO20",null,null,null,{"$f":"_xlfn.XLOOKUP(F586,'Raw Data'!$I$4:$I$5000,'Raw Data'!$D$4:$D$5000,\"*** Mnemonic not found ***\",0)","v":"*** Mnemonic not found ***"},"SUCMRUR2NFCERG6_10TO20__",null,"Input",null,null,205,"H","Input!H205",{"$f":"_xlfn.XLOOKUP(F586,'Raw Data'!$I$4:$I$5000,'Raw Data'!$E$4:$E$5000,100,0)","v":100},{"$f":"IF(N586=0,_xlfn.XLOOKUP(F586,'Raw Data'!$I$4:$I$5000,'Raw Data'!$H$4:$H$5000,\"\",0),\"\")","v":""},{"$f":"IF(INDIRECT(M586) = \"\",\"\",INDIRECT(M586))","v":""},"n"]
["SUCMRUR2NFCERG7_10TO20",null,null,null,{"$f":"_xlfn.XLOOKUP(F587,'Raw Data'!$I$4:$I$5000,'Raw Data'!$D$4:$D$5000,\"*** Mnemonic not found ***\",0)","v":"*** Mnemonic not found ***"},"SUCMRUR2NFCERG7_10TO20__",null,"Input",null,null,205,"I","Input!I205",{"$f":"_xlfn.XLOOKUP(F587,'Raw Data'!$I$4:$I$5000,'Raw Data'!$E$4:$E$5000,100,0)","v":100},{"$f":"IF(N587=0,_xlfn.XLOOKUP(F587,'Raw Data'!$I$4:$I$5000,'Raw Data'!$H$4:$H$5000,\"\",0),\"\")","v":""},{"$f":"IF(INDIRECT(M587) = \"\",\"\",INDIRECT(M587))","v":""},"n"]
["SUCMRUR2NFCERG8_10TO20",null,null,null,{"$f":"_xlfn.XLOOKUP(F588,'Raw Data'!$I$4:$I$5000,'Raw Data'!$D$4:$D$5000,\"*** Mnemonic not found ***\",0)","v":"*** Mnemonic not found ***"},"SUCMRUR2NFCERG8_10TO20__",null,"Input",null,null,205,"J","Input!J205",{"$f":"_xlfn.XLOOKUP(F588,'Raw Data'!$I$4:$I$5000,'Raw Data'!$E$4:$E$5000,100,0)","v":100},{"$f":"IF(N588=0,_xlfn.XLOOKUP(F588,'Raw Data'!$I$4:$I$5000,'Raw Data'!$H$4:$H$5000,\"\",0),\"\")","v":""},{"$f":"IF(INDIRECT(M588) = \"\",\"\",INDIRECT(M588))","v":""},"n"]
["SUCMRUR2NFCERG9_10TO20",null,null,null,{"$f":"_xlfn.XLOOKUP(F589,'Raw Data'!$I$4:$I$5000,'Raw Data'!$D$4:$D$5000,\"*** Mnemonic not found ***\",0)","v":"*** Mnemonic not found ***"},"SUCMRUR2NFCERG9_10TO20__",null,"Input",null,null,205,"K","Input!K205",{"$f":"_xlfn.XLOOKUP(F589,'Raw Data'!$I$4:$I$5000,'Raw Data'!$E$4:$E$5000,100,0)","v":100},{"$f":"IF(N589=0,_xlfn.XLOOKUP(F589,'Raw Data'!$I$4:$I$5000,'Raw Data'!$H$4:$H$5000,\"\",0),\"\")","v":""},{"$f":"IF(INDIRECT(M589) = \"\",\"\",INDIRECT(M589))","v":""},"n"]
["SUCMRUR2NFCERG10_10TO20",null,null,null,{"$f":"_xlfn.XLOOKUP(F590,'Raw Data'!$I$4:$I$5000,'Raw Data'!$D$4:$D$5000,\"*** Mnemonic not found ***\",0)","v":"*** Mnemonic not found ***"},"SUCMRUR2NFCERG10_10TO20__",null,"Input",null,null,205,"L","Input!L205",{"$f":"_xlfn.XLOOKUP(F590,'Raw Data'!$I$4:$I$5000,'Raw Data'!$E$4:$E$5000,100,0)","v":100},{"$f":"IF(N590=0,_xlfn.XLOOKUP(F590,'Raw Data'!$I$4:$I$5000,'Raw Data'!$H$4:$H$5000,\"\",0),\"\")","v":""},{"$f":"IF(INDIRECT(M590) = \"\",\"\",INDIRECT(M590))","v":""},"n"]
["SUCMRUR2NFCERGNA_10TO20",null,null,null,{"$f":"_xlfn.XLOOKUP(F591,'Raw Data'!$I$4:$I$5000,'Raw Data'!$D$4:$D$5000,\"*** Mnemonic not found ***\",0)","v":"*** Mnemonic not found ***"},"SUCMRUR2NFCERGNA_10TO20__",null,"Input",null,null,205,"M",{"$f":"CONCATENATE(H591,\"!\",L591,K591)","v":"Input!M205"},{"$f":"_xlfn.XLOOKUP(F591,'Raw Data'!$I$4:$I$5000,'Raw Data'!$E$4:$E$5000,100,0)","v":100},{"$f":"IF(N591=0,_xlfn.XLOOKUP(F591,'Raw Data'!$I$4:$I$5000,'Raw Data'!$H$4:$H$5000,\"\",0),\"\")","v":""},{"$f":"IF(INDIRECT(M591) = \"\",\"\",INDIRECT(M591))","v":""},"n"]
["SUCMRUR2NFCERG1_GRTR20",null,null,null,{"$f":"_xlfn.XLOOKUP(F592,'Raw Data'!$I$4:$I$5000,'Raw Data'!$D$4:$D$5000,\"*** Mnemonic not found ***\",0)","v":"*** Mnemonic not found ***"},"SUCMRUR2NFCERG1_GRTR20__",null,"Input",null,null,206,"C","Input!C206",{"$f":"_xlfn.XLOOKUP(F592,'Raw Data'!$I$4:$I$5000,'Raw Data'!$E$4:$E$5000,100,0)","v":100},{"$f":"IF(N592=0,_xlfn.XLOOKUP(F592,'Raw Data'!$I$4:$I$5000,'Raw Data'!$H$4:$H$5000,\"\",0),\"\")","v":""},{"$f":"IF(INDIRECT(M592) = \"\",\"\",INDIRECT(M592))","v":""},"n"]
["SUCMRUR2NFCERG2_GRTR20",null,null,null,{"$f":"_xlfn.XLOOKUP(F593,'Raw Data'!$I$4:$I$5000,'Raw Data'!$D$4:$D$5000,\"*** Mnemonic not found ***\",0)","v":"*** Mnemonic not found ***"},"SUCMRUR2NFCERG2_GRTR20__",null,"Input",null,null,206,"D","Input!D206",{"$f":"_xlfn.XLOOKUP(F593,'Raw Data'!$I$4:$I$5000,'Raw Data'!$E$4:$E$5000,100,0)","v":100},{"$f":"IF(N593=0,_xlfn.XLOOKUP(F593,'Raw Data'!$I$4:$I$5000,'Raw Data'!$H$4:$H$5000,\"\",0),\"\")","v":""},{"$f":"IF(INDIRECT(M593) = \"\",\"\",INDIRECT(M593))","v":""},"n"]
["SUCMRUR2NFCERG3_GRTR20",null,null,null,{"$f":"_xlfn.XLOOKUP(F594,'Raw Data'!$I$4:$I$5000,'Raw Data'!$D$4:$D$5000,\"*** Mnemonic not found ***\",0)","v":"*** Mnemonic not found ***"},"SUCMRUR2NFCERG3_GRTR20__",null,"Input",null,null,206,"E","Input!E206",{"$f":"_xlfn.XLOOKUP(F594,'Raw Data'!$I$4:$I$5000,'Raw Data'!$E$4:$E$5000,100,0)","v":100},{"$f":"IF(N594=0,_xlfn.XLOOKUP(F594,'Raw Data'!$I$4:$I$5000,'Raw Data'!$H$4:$H$5000,\"\",0),\"\")","v":""},{"$f":"IF(INDIRECT(M594) = \"\",\"\",INDIRECT(M594))","v":""},"n"]
["SUCMRUR2NFCERG4_GRTR20",null,null,null,{"$f":"_xlfn.XLOOKUP(F595,'Raw Data'!$I$4:$I$5000,'Raw Data'!$D$4:$D$5000,\"*** Mnemonic not found ***\",0)","v":"*** Mnemonic not found ***"},"SUCMRUR2NFCERG4_GRTR20__",null,"Input",null,null,206,"F","Input!F206",{"$f":"_xlfn.XLOOKUP(F595,'Raw Data'!$I$4:$I$5000,'Raw Data'!$E$4:$E$5000,100,0)","v":100},{"$f":"IF(N595=0,_xlfn.XLOOKUP(F595,'Raw Data'!$I$4:$I$5000,'Raw Data'!$H$4:$H$5000,\"\",0),\"\")","v":""},{"$f":"IF(INDIRECT(M595) = \"\",\"\",INDIRECT(M595))","v":""},"n"]
["SUCMRUR2NFCERG5_GRTR20",null,null,null,{"$f":"_xlfn.XLOOKUP(F596,'Raw Data'!$I$4:$I$5000,'Raw Data'!$D$4:$D$5000,\"*** Mnemonic not found ***\",0)","v":"*** Mnemonic not found ***"},"SUCMRUR2NFCERG5_GRTR20__",null,"Input",null,null,206,"G","Input!G206",{"$f":"_xlfn.XLOOKUP(F596,'Raw Data'!$I$4:$I$5000,'Raw Data'!$E$4:$E$5000,100,0)","v":100},{"$f":"IF(N596=0,_xlfn.XLOOKUP(F596,'Raw Data'!$I$4:$I$5000,'Raw Data'!$H$4:$H$5000,\"\",0),\"\")","v":""},{"$f":"IF(INDIRECT(M596) = \"\",\"\",INDIRECT(M596))","v":""},"n"]
["SUCMRUR2NFCERG6_GRTR20",null,null,null,{"$f":"_xlfn.XLOOKUP(F597,'Raw Data'!$I$4:$I$5000,'Raw Data'!$D$4:$D$5000,\"*** Mnemonic not found ***\",0)","v":"*** Mnemonic not found ***"},"SUCMRUR2NFCERG6_GRTR20__",null,"Input",null,null,206,"H","Input!H206",{"$f":"_xlfn.XLOOKUP(F597,'Raw Data'!$I$4:$I$5000,'Raw Data'!$E$4:$E$5000,100,0)","v":100},{"$f":"IF(N597=0,_xlfn.XLOOKUP(F597,'Raw Data'!$I$4:$I$5000,'Raw Data'!$H$4:$H$5000,\"\",0),\"\")","v":""},{"$f":"IF(INDIRECT(M597) = \"\",\"\",INDIRECT(M597))","v":""},"n"]
["SUCMRUR2NFCERG7_GRTR20",null,null,null,{"$f":"_xlfn.XLOOKUP(F598,'Raw Data'!$I$4:$I$5000,'Raw Data'!$D$4:$D$5000,\"*** Mnemonic not found ***\",0)","v":"*** Mnemonic not found ***"},"SUCMRUR2NFCERG7_GRTR20__",null,"Input",null,null,206,"I","Input!I206",{"$f":"_xlfn.XLOOKUP(F598,'Raw Data'!$I$4:$I$5000,'Raw Data'!$E$4:$E$5000,100,0)","v":100},{"$f":"IF(N598=0,_xlfn.XLOOKUP(F598,'Raw Data'!$I$4:$I$5000,'Raw Data'!$H$4:$H$5000,\"\",0),\"\")","v":""},{"$f":"IF(INDIRECT(M598) = \"\",\"\",INDIRECT(M598))","v":""},"n"]
["SUCMRUR2NFCERG8_GRTR20",null,null,null,{"$f":"_xlfn.XLOOKUP(F599,'Raw Data'!$I$4:$I$5000,'Raw Data'!$D$4:$D$5000,\"*** Mnemonic not found ***\",0)","v":"*** Mnemonic not found ***"},"SUCMRUR2NFCERG8_GRTR20__",null,"Input",null,null,206,"J","Input!J206",{"$f":"_xlfn.XLOOKUP(F599,'Raw Data'!$I$4:$I$5000,'Raw Data'!$E$4:$E$5000,100,0)","v":100},{"$f":"IF(N599=0,_xlfn.XLOOKUP(F599,'Raw Data'!$I$4:$I$5000,'Raw Data'!$H$4:$H$5000,\"\",0),\"\")","v":""},{"$f":"IF(INDIRECT(M599) = \"\",\"\",INDIRECT(M599))","v":""},"n"]
["SUCMRUR2NFCERG9_GRTR20",null,null,null,{"$f":"_xlfn.XLOOKUP(F600,'Raw Data'!$I$4:$I$5000,'Raw Data'!$D$4:$D$5000,\"*** Mnemonic not found ***\",0)","v":"*** Mnemonic not found ***"},"SUCMRUR2NFCERG9_GRTR20__",null,"Input",null,null,206,"K","Input!K206",{"$f":"_xlfn.XLOOKUP(F600,'Raw Data'!$I$4:$I$5000,'Raw Data'!$E$4:$E$5000,100,0)","v":100},{"$f":"IF(N600=0,_xlfn.XLOOKUP(F600,'Raw Data'!$I$4:$I$5000,'Raw Data'!$H$4:$H$5000,\"\",0),\"\")","v":""},{"$f":"IF(INDIRECT(M600) = \"\",\"\",INDIRECT(M600))","v":""},"n"]
["SUCMRUR2NFCERG10_GRTR20",null,null,null,{"$f":"_xlfn.XLOOKUP(F601,'Raw Data'!$I$4:$I$5000,'Raw Data'!$D$4:$D$5000,\"*** Mnemonic not found ***\",0)","v":"*** Mnemonic not found ***"},"SUCMRUR2NFCERG10_GRTR20__",null,"Input",null,null,206,"L","Input!L206",{"$f":"_xlfn.XLOOKUP(F601,'Raw Data'!$I$4:$I$5000,'Raw Data'!$E$4:$E$5000,100,0)","v":100},{"$f":"IF(N601=0,_xlfn.XLOOKUP(F601,'Raw Data'!$I$4:$I$5000,'Raw Data'!$H$4:$H$5000,\"\",0),\"\")","v":""},{"$f":"IF(INDIRECT(M601) = \"\",\"\",INDIRECT(M601))","v":""},"n"]
["SUCMRUR2NFCERGNA_GRTR20",null,null,null,{"$f":"_xlfn.XLOOKUP(F602,'Raw Data'!$I$4:$I$5000,'Raw Data'!$D$4:$D$5000,\"*** Mnemonic not found ***\",0)","v":"*** Mnemonic not found ***"},"SUCMRUR2NFCERGNA_GRTR20__",null,"Input",null,null,206,"M","Input!M206",{"$f":"_xlfn.XLOOKUP(F602,'Raw Data'!$I$4:$I$5000,'Raw Data'!$E$4:$E$5000,100,0)","v":100},{"$f":"IF(N602=0,_xlfn.XLOOKUP(F602,'Raw Data'!$I$4:$I$5000,'Raw Data'!$H$4:$H$5000,\"\",0),\"\")","v":""},{"$f":"IF(INDIRECT(M602) = \"\",\"\",INDIRECT(M602))","v":""},"n"]
["SUCMRUR3NFCERG1_LESS1",null,null,null,{"$f":"_xlfn.XLOOKUP(F603,'Raw Data'!$I$4:$I$5000,'Raw Data'!$D$4:$D$5000,\"*** Mnemonic not found ***\",0)","v":"*** Mnemonic not found ***"},"SUCMRUR3NFCERG1_LESS1__",null,"Input",{"$f":"ROW(section_bonds_sp_unrated_step_4)","v":187},{"$f":"J548+10","v":25},{"$f":"I603+J603","v":212},{"$f":"L592","v":"C"},"Input!C212",{"$f":"_xlfn.XLOOKUP(F603,'Raw Data'!$I$4:$I$5000,'Raw Data'!$E$4:$E$5000,100,0)","v":100},{"$f":"IF(N603=0,_xlfn.XLOOKUP(F603,'Raw Data'!$I$4:$I$5000,'Raw Data'!$H$4:$H$5000,\"\",0),\"\")","v":""},{"$f":"IF(INDIRECT(M603) = \"\",\"\",INDIRECT(M603))","v":""},"n"]
["SUCMRUR3NFCERG2_LESS1",null,null,null,{"$f":"_xlfn.XLOOKUP(F604,'Raw Data'!$I$4:$I$5000,'Raw Data'!$D$4:$D$5000,\"*** Mnemonic not found ***\",0)","v":"*** Mnemonic not found ***"},"SUCMRUR3NFCERG2_LESS1__",null,"Input",null,null,{"$f":"K603","v":212},{"$f":"L593","v":"D"},"Input!D212",{"$f":"_xlfn.XLOOKUP(F604,'Raw Data'!$I$4:$I$5000,'Raw Data'!$E$4:$E$5000,100,0)","v":100},{"$f":"IF(N604=0,_xlfn.XLOOKUP(F604,'Raw Data'!$I$4:$I$5000,'Raw Data'!$H$4:$H$5000,\"\",0),\"\")","v":""},{"$f":"IF(INDIRECT(M604) = \"\",\"\",INDIRECT(M604))","v":""},"n"]
["SUCMRUR3NFCERG3_LESS1",null,null,null,{"$f":"_xlfn.XLOOKUP(F605,'Raw Data'!$I$4:$I$5000,'Raw Data'!$D$4:$D$5000,\"*** Mnemonic not found ***\",0)","v":"*** Mnemonic not found ***"},"SUCMRUR3NFCERG3_LESS1__",null,"Input",null,null,{"$f":"K604","v":212},"E","Input!E212",{"$f":"_xlfn.XLOOKUP(F605,'Raw Data'!$I$4:$I$5000,'Raw Data'!$E$4:$E$5000,100,0)","v":100},{"$f":"IF(N605=0,_xlfn.XLOOKUP(F605,'Raw Data'!$I$4:$I$5000,'Raw Data'!$H$4:$H$5000,\"\",0),\"\")","v":""},{"$f":"IF(INDIRECT(M605) = \"\",\"\",INDIRECT(M605))","v":""},"n"]
["SUCMRUR3NFCERG4_LESS1",null,null,null,{"$f":"_xlfn.XLOOKUP(F606,'Raw Data'!$I$4:$I$5000,'Raw Data'!$D$4:$D$5000,\"*** Mnemonic not found ***\",0)","v":"*** Mnemonic not found ***"},"SUCMRUR3NFCERG4_LESS1__",null,"Input",null,null,212,"F","Input!F212",{"$f":"_xlfn.XLOOKUP(F606,'Raw Data'!$I$4:$I$5000,'Raw Data'!$E$4:$E$5000,100,0)","v":100},{"$f":"IF(N606=0,_xlfn.XLOOKUP(F606,'Raw Data'!$I$4:$I$5000,'Raw Data'!$H$4:$H$5000,\"\",0),\"\")","v":""},{"$f":"IF(INDIRECT(M606) = \"\",\"\",INDIRECT(M606))","v":""},"n"]
["SUCMRUR3NFCERG5_LESS1",null,null,null,{"$f":"_xlfn.XLOOKUP(F607,'Raw Data'!$I$4:$I$5000,'Raw Data'!$D$4:$D$5000,\"*** Mnemonic not found ***\",0)","v":"*** Mnemonic not found ***"},"SUCMRUR3NFCERG5_LESS1__",null,"Input",null,null,212,"G","Input!G212",{"$f":"_xlfn.XLOOKUP(F607,'Raw Data'!$I$4:$I$5000,'Raw Data'!$E$4:$E$5000,100,0)","v":100},{"$f":"IF(N607=0,_xlfn.XLOOKUP(F607,'Raw Data'!$I$4:$I$5000,'Raw Data'!$H$4:$H$5000,\"\",0),\"\")","v":""},{"$f":"IF(INDIRECT(M607) = \"\",\"\",INDIRECT(M607))","v":""},"n"]
["SUCMRUR3NFCERG6_LESS1",null,null,null,{"$f":"_xlfn.XLOOKUP(F608,'Raw Data'!$I$4:$I$5000,'Raw Data'!$D$4:$D$5000,\"*** Mnemonic not found ***\",0)","v":"*** Mnemonic not found ***"},"SUCMRUR3NFCERG6_LESS1__",null,"Input",null,null,212,"H","Input!H212",{"$f":"_xlfn.XLOOKUP(F608,'Raw Data'!$I$4:$I$5000,'Raw Data'!$E$4:$E$5000,100,0)","v":100},{"$f":"IF(N608=0,_xlfn.XLOOKUP(F608,'Raw Data'!$I$4:$I$5000,'Raw Data'!$H$4:$H$5000,\"\",0),\"\")","v":""},{"$f":"IF(INDIRECT(M608) = \"\",\"\",INDIRECT(M608))","v":""},"n"]
["SUCMRUR3NFCERG7_LESS1",null,null,null,{"$f":"_xlfn.XLOOKUP(F609,'Raw Data'!$I$4:$I$5000,'Raw Data'!$D$4:$D$5000,\"*** Mnemonic not found ***\",0)","v":"*** Mnemonic not found ***"},"SUCMRUR3NFCERG7_LESS1__",null,"Input",null,null,212,"I","Input!I212",{"$f":"_xlfn.XLOOKUP(F609,'Raw Data'!$I$4:$I$5000,'Raw Data'!$E$4:$E$5000,100,0)","v":100},{"$f":"IF(N609=0,_xlfn.XLOOKUP(F609,'Raw Data'!$I$4:$I$5000,'Raw Data'!$H$4:$H$5000,\"\",0),\"\")","v":""},{"$f":"IF(INDIRECT(M609) = \"\",\"\",INDIRECT(M609))","v":""},"n"]
["SUCMRUR3NFCERG8_LESS1",null,null,null,{"$f":"_xlfn.XLOOKUP(F610,'Raw Data'!$I$4:$I$5000,'Raw Data'!$D$4:$D$5000,\"*** Mnemonic not found ***\",0)","v":"*** Mnemonic not found ***"},"SUCMRUR3NFCERG8_LESS1__",null,"Input",null,null,212,"J","Input!J212",{"$f":"_xlfn.XLOOKUP(F610,'Raw Data'!$I$4:$I$5000,'Raw Data'!$E$4:$E$5000,100,0)","v":100},{"$f":"IF(N610=0,_xlfn.XLOOKUP(F610,'Raw Data'!$I$4:$I$5000,'Raw Data'!$H$4:$H$5000,\"\",0),\"\")","v":""},{"$f":"IF(INDIRECT(M610) = \"\",\"\",INDIRECT(M610))","v":""},"n"]
["SUCMRUR3NFCERG9_LESS1",null,null,null,{"$f":"_xlfn.XLOOKUP(F611,'Raw Data'!$I$4:$I$5000,'Raw Data'!$D$4:$D$5000,\"*** Mnemonic not found ***\",0)","v":"*** Mnemonic not found ***"},"SUCMRUR3NFCERG9_LESS1__",null,"Input",null,null,212,"K","Input!K212",{"$f":"_xlfn.XLOOKUP(F611,'Raw Data'!$I$4:$I$5000,'Raw Data'!$E$4:$E$5000,100,0)","v":100},{"$f":"IF(N611=0,_xlfn.XLOOKUP(F611,'Raw Data'!$I$4:$I$5000,'Raw Data'!$H$4:$H$5000,\"\",0),\"\")","v":""},{"$f":"IF(INDIRECT(M611) = \"\",\"\",INDIRECT(M611))","v":""},"n"]
["SUCMRUR3NFCERG10_LESS1",null,null,null,{"$f":"_xlfn.XLOOKUP(F612,'Raw Data'!$I$4:$I$5000,'Raw Data'!$D$4:$D$5000,\"*** Mnemonic not found ***\",0)","v":"*** Mnemonic not found ***"},"SUCMRUR3NFCERG10_LESS1__",null,"Input",null,null,212,"L","Input!L212",{"$f":"_xlfn.XLOOKUP(F612,'Raw Data'!$I$4:$I$5000,'Raw Data'!$E$4:$E$5000,100,0)","v":100},{"$f":"IF(N612=0,_xlfn.XLOOKUP(F612,'Raw Data'!$I$4:$I$5000,'Raw Data'!$H$4:$H$5000,\"\",0),\"\")","v":""},{"$f":"IF(INDIRECT(M612) = \"\",\"\",INDIRECT(M612))","v":""},"n"]
["SUCMRUR3NFCERGNA_LESS1",null,null,null,{"$f":"_xlfn.XLOOKUP(F613,'Raw Data'!$I$4:$I$5000,'Raw Data'!$D$4:$D$5000,\"*** Mnemonic not found ***\",0)","v":"*** Mnemonic not found ***"},"SUCMRUR3NFCERGNA_LESS1__",null,"Input",null,null,212,"M","Input!M212",{"$f":"_xlfn.XLOOKUP(F613,'Raw Data'!$I$4:$I$5000,'Raw Data'!$E$4:$E$5000,100,0)","v":100},{"$f":"IF(N613=0,_xlfn.XLOOKUP(F613,'Raw Data'!$I$4:$I$5000,'Raw Data'!$H$4:$H$5000,\"\",0),\"\")","v":""},{"$f":"IF(INDIRECT(M613) = \"\",\"\",INDIRECT(M613))","v":""},"n"]
["SUCMRUR3NFCERG1_1TO5",null,null,null,{"$f":"_xlfn.XLOOKUP(F614,'Raw Data'!$I$4:$I$5000,'Raw Data'!$D$4:$D$5000,\"*** Mnemonic not found ***\",0)","v":"*** Mnemonic not found ***"},"SUCMRUR3NFCERG1_1TO5__",null,"Input",null,null,{"$f":"K603+1","v":213},{"$f":"L603","v":"C"},"Input!C213",{"$f":"_xlfn.XLOOKUP(F614,'Raw Data'!$I$4:$I$5000,'Raw Data'!$E$4:$E$5000,100,0)","v":100},{"$f":"IF(N614=0,_xlfn.XLOOKUP(F614,'Raw Data'!$I$4:$I$5000,'Raw Data'!$H$4:$H$5000,\"\",0),\"\")","v":""},{"$f":"IF(INDIRECT(M614) = \"\",\"\",INDIRECT(M614))","v":""},"n"]
["SUCMRUR3NFCERG2_1TO5",null,null,null,{"$f":"_xlfn.XLOOKUP(F615,'Raw Data'!$I$4:$I$5000,'Raw Data'!$D$4:$D$5000,\"*** Mnemonic not found ***\",0)","v":"*** Mnemonic not found ***"},"SUCMRUR3NFCERG2_1TO5__",null,"Input",null,null,{"$f":"K604+1","v":213},{"$f":"L604","v":"D"},"Input!D213",{"$f":"_xlfn.XLOOKUP(F615,'Raw Data'!$I$4:$I$5000,'Raw Data'!$E$4:$E$5000,100,0)","v":100},{"$f":"IF(N615=0,_xlfn.XLOOKUP(F615,'Raw Data'!$I$4:$I$5000,'Raw Data'!$H$4:$H$5000,\"\",0),\"\")","v":""},{"$f":"IF(INDIRECT(M615) = \"\",\"\",INDIRECT(M615))","v":""},"n"]
["SUCMRUR3NFCERG3_1TO5",null,null,null,{"$f":"_xlfn.XLOOKUP(F616,'Raw Data'!$I$4:$I$5000,'Raw Data'!$D$4:$D$5000,\"*** Mnemonic not found ***\",0)","v":"*** Mnemonic not found ***"},"SUCMRUR3NFCERG3_1TO5__",null,"Input",null,null,213,"E","Input!E213",{"$f":"_xlfn.XLOOKUP(F616,'Raw Data'!$I$4:$I$5000,'Raw Data'!$E$4:$E$5000,100,0)","v":100},{"$f":"IF(N616=0,_xlfn.XLOOKUP(F616,'Raw Data'!$I$4:$I$5000,'Raw Data'!$H$4:$H$5000,\"\",0),\"\")","v":""},{"$f":"IF(INDIRECT(M616) = \"\",\"\",INDIRECT(M616))","v":""},"n"]
["SUCMRUR3NFCERG4_1TO5",null,null,null,{"$f":"_xlfn.XLOOKUP(F617,'Raw Data'!$I$4:$I$5000,'Raw Data'!$D$4:$D$5000,\"*** Mnemonic not found ***\",0)","v":"*** Mnemonic not found ***"},"SUCMRUR3NFCERG4_1TO5__",null,"Input",null,null,213,"F","Input!F213",{"$f":"_xlfn.XLOOKUP(F617,'Raw Data'!$I$4:$I$5000,'Raw Data'!$E$4:$E$5000,100,0)","v":100},{"$f":"IF(N617=0,_xlfn.XLOOKUP(F617,'Raw Data'!$I$4:$I$5000,'Raw Data'!$H$4:$H$5000,\"\",0),\"\")","v":""},{"$f":"IF(INDIRECT(M617) = \"\",\"\",INDIRECT(M617))","v":""},"n"]
["SUCMRUR3NFCERG5_1TO5",null,null,null,{"$f":"_xlfn.XLOOKUP(F618,'Raw Data'!$I$4:$I$5000,'Raw Data'!$D$4:$D$5000,\"*** Mnemonic not found ***\",0)","v":"*** Mnemonic not found ***"},"SUCMRUR3NFCERG5_1TO5__",null,"Input",null,null,213,"G","Input!G213",{"$f":"_xlfn.XLOOKUP(F618,'Raw Data'!$I$4:$I$5000,'Raw Data'!$E$4:$E$5000,100,0)","v":100},{"$f":"IF(N618=0,_xlfn.XLOOKUP(F618,'Raw Data'!$I$4:$I$5000,'Raw Data'!$H$4:$H$5000,\"\",0),\"\")","v":""},{"$f":"IF(INDIRECT(M618) = \"\",\"\",INDIRECT(M618))","v":""},"n"]
["SUCMRUR3NFCERG6_1TO5",null,null,null,{"$f":"_xlfn.XLOOKUP(F619,'Raw Data'!$I$4:$I$5000,'Raw Data'!$D$4:$D$5000,\"*** Mnemonic not found ***\",0)","v":"*** Mnemonic not found ***"},"SUCMRUR3NFCERG6_1TO5__",null,"Input",null,null,213,"H","Input!H213",{"$f":"_xlfn.XLOOKUP(F619,'Raw Data'!$I$4:$I$5000,'Raw Data'!$E$4:$E$5000,100,0)","v":100},{"$f":"IF(N619=0,_xlfn.XLOOKUP(F619,'Raw Data'!$I$4:$I$5000,'Raw Data'!$H$4:$H$5000,\"\",0),\"\")","v":""},{"$f":"IF(INDIRECT(M619) = \"\",\"\",INDIRECT(M619))","v":""},"n"]
["SUCMRUR3NFCERG7_1TO5",null,null,null,{"$f":"_xlfn.XLOOKUP(F620,'Raw Data'!$I$4:$I$5000,'Raw Data'!$D$4:$D$5000,\"*** Mnemonic not found ***\",0)","v":"*** Mnemonic not found ***"},"SUCMRUR3NFCERG7_1TO5__",null,"Input",null,null,213,"I","Input!I213",{"$f":"_xlfn.XLOOKUP(F620,'Raw Data'!$I$4:$I$5000,'Raw Data'!$E$4:$E$5000,100,0)","v":100},{"$f":"IF(N620=0,_xlfn.XLOOKUP(F620,'Raw Data'!$I$4:$I$5000,'Raw Data'!$H$4:$H$5000,\"\",0),\"\")","v":""},{"$f":"IF(INDIRECT(M620) = \"\",\"\",INDIRECT(M620))","v":""},"n"]
["SUCMRUR3NFCERG8_1TO5",null,null,null,{"$f":"_xlfn.XLOOKUP(F621,'Raw Data'!$I$4:$I$5000,'Raw Data'!$D$4:$D$5000,\"*** Mnemonic not found ***\",0)","v":"*** Mnemonic not found ***"},"SUCMRUR3NFCERG8_1TO5__",null,"Input",null,null,213,"J","Input!J213",{"$f":"_xlfn.XLOOKUP(F621,'Raw Data'!$I$4:$I$5000,'Raw Data'!$E$4:$E$5000,100,0)","v":100},{"$f":"IF(N621=0,_xlfn.XLOOKUP(F621,'Raw Data'!$I$4:$I$5000,'Raw Data'!$H$4:$H$5000,\"\",0),\"\")","v":""},{"$f":"IF(INDIRECT(M621) = \"\",\"\",INDIRECT(M621))","v":""},"n"]
["SUCMRUR3NFCERG9_1TO5",null,null,null,{"$f":"_xlfn.XLOOKUP(F622,'Raw Data'!$I$4:$I$5000,'Raw Data'!$D$4:$D$5000,\"*** Mnemonic not found ***\",0)","v":"*** Mnemonic not found ***"},"SUCMRUR3NFCERG9_1TO5__",null,"Input",null,null,213,"K","Input!K213",{"$f":"_xlfn.XLOOKUP(F622,'Raw Data'!$I$4:$I$5000,'Raw Data'!$E$4:$E$5000,100,0)","v":100},{"$f":"IF(N622=0,_xlfn.XLOOKUP(F622,'Raw Data'!$I$4:$I$5000,'Raw Data'!$H$4:$H$5000,\"\",0),\"\")","v":""},{"$f":"IF(INDIRECT(M622) = \"\",\"\",INDIRECT(M622))","v":""},"n"]
["SUCMRUR3NFCERG10_1TO5",null,null,null,{"$f":"_xlfn.XLOOKUP(F623,'Raw Data'!$I$4:$I$5000,'Raw Data'!$D$4:$D$5000,\"*** Mnemonic not found ***\",0)","v":"*** Mnemonic not found ***"},"SUCMRUR3NFCERG10_1TO5__",null,"Input",null,null,213,"L","Input!L213",{"$f":"_xlfn.XLOOKUP(F623,'Raw Data'!$I$4:$I$5000,'Raw Data'!$E$4:$E$5000,100,0)","v":100},{"$f":"IF(N623=0,_xlfn.XLOOKUP(F623,'Raw Data'!$I$4:$I$5000,'Raw Data'!$H$4:$H$5000,\"\",0),\"\")","v":""},{"$f":"IF(INDIRECT(M623) = \"\",\"\",INDIRECT(M623))","v":""},"n"]
["SUCMRUR3NFCERGNA_1TO5",null,null,null,{"$f":"_xlfn.XLOOKUP(F624,'Raw Data'!$I$4:$I$5000,'Raw Data'!$D$4:$D$5000,\"*** Mnemonic not found ***\",0)","v":"*** Mnemonic not found ***"},"SUCMRUR3NFCERGNA_1TO5__",null,"Input",null,null,213,"M","Input!M213",{"$f":"_xlfn.XLOOKUP(F624,'Raw Data'!$I$4:$I$5000,'Raw Data'!$E$4:$E$5000,100,0)","v":100},{"$f":"IF(N624=0,_xlfn.XLOOKUP(F624,'Raw Data'!$I$4:$I$5000,'Raw Data'!$H$4:$H$5000,\"\",0),\"\")","v":""},{"$f":"IF(INDIRECT(M624) = \"\",\"\",INDIRECT(M624))","v":""},"n"]
["SUCMRUR3NFCERG1_5TO10",null,null,null,{"$f":"_xlfn.XLOOKUP(F625,'Raw Data'!$I$4:$I$5000,'Raw Data'!$D$4:$D$5000,\"*** Mnemonic not found ***\",0)","v":"*** Mnemonic not found ***"},"SUCMRUR3NFCERG1_5TO10__",null,"Input",null,null,214,"C","Input!C214",{"$f":"_xlfn.XLOOKUP(F625,'Raw Data'!$I$4:$I$5000,'Raw Data'!$E$4:$E$5000,100,0)","v":100},{"$f":"IF(N625=0,_xlfn.XLOOKUP(F625,'Raw Data'!$I$4:$I$5000,'Raw Data'!$H$4:$H$5000,\"\",0),\"\")","v":""},{"$f":"IF(INDIRECT(M625) = \"\",\"\",INDIRECT(M625))","v":""},"n"]
["SUCMRUR3NFCERG2_5TO10",null,null,null,{"$f":"_xlfn.XLOOKUP(F626,'Raw Data'!$I$4:$I$5000,'Raw Data'!$D$4:$D$5000,\"*** Mnemonic not found ***\",0)","v":"*** Mnemonic not found ***"},"SUCMRUR3NFCERG2_5TO10__",null,"Input",null,null,214,"D","Input!D214",{"$f":"_xlfn.XLOOKUP(F626,'Raw Data'!$I$4:$I$5000,'Raw Data'!$E$4:$E$5000,100,0)","v":100},{"$f":"IF(N626=0,_xlfn.XLOOKUP(F626,'Raw Data'!$I$4:$I$5000,'Raw Data'!$H$4:$H$5000,\"\",0),\"\")","v":""},{"$f":"IF(INDIRECT(M626) = \"\",\"\",INDIRECT(M626))","v":""},"n"]
["SUCMRUR3NFCERG3_5TO10",null,null,null,{"$f":"_xlfn.XLOOKUP(F627,'Raw Data'!$I$4:$I$5000,'Raw Data'!$D$4:$D$5000,\"*** Mnemonic not found ***\",0)","v":"*** Mnemonic not found ***"},"SUCMRUR3NFCERG3_5TO10__",null,"Input",null,null,214,"E","Input!E214",{"$f":"_xlfn.XLOOKUP(F627,'Raw Data'!$I$4:$I$5000,'Raw Data'!$E$4:$E$5000,100,0)","v":100},{"$f":"IF(N627=0,_xlfn.XLOOKUP(F627,'Raw Data'!$I$4:$I$5000,'Raw Data'!$H$4:$H$5000,\"\",0),\"\")","v":""},{"$f":"IF(INDIRECT(M627) = \"\",\"\",INDIRECT(M627))","v":""},"n"]
["SUCMRUR3NFCERG4_5TO10",null,null,null,{"$f":"_xlfn.XLOOKUP(F628,'Raw Data'!$I$4:$I$5000,'Raw Data'!$D$4:$D$5000,\"*** Mnemonic not found ***\",0)","v":"*** Mnemonic not found ***"},"SUCMRUR3NFCERG4_5TO10__",null,"Input",null,null,214,"F","Input!F214",{"$f":"_xlfn.XLOOKUP(F628,'Raw Data'!$I$4:$I$5000,'Raw Data'!$E$4:$E$5000,100,0)","v":100},{"$f":"IF(N628=0,_xlfn.XLOOKUP(F628,'Raw Data'!$I$4:$I$5000,'Raw Data'!$H$4:$H$5000,\"\",0),\"\")","v":""},{"$f":"IF(INDIRECT(M628) = \"\",\"\",INDIRECT(M628))","v":""},"n"]
["SUCMRUR3NFCERG5_5TO10",null,null,null,{"$f":"_xlfn.XLOOKUP(F629,'Raw Data'!$I$4:$I$5000,'Raw Data'!$D$4:$D$5000,\"*** Mnemonic not found ***\",0)","v":"*** Mnemonic not found ***"},"SUCMRUR3NFCERG5_5TO10__",null,"Input",null,null,214,"G","Input!G214",{"$f":"_xlfn.XLOOKUP(F629,'Raw Data'!$I$4:$I$5000,'Raw Data'!$E$4:$E$5000,100,0)","v":100},{"$f":"IF(N629=0,_xlfn.XLOOKUP(F629,'Raw Data'!$I$4:$I$5000,'Raw Data'!$H$4:$H$5000,\"\",0),\"\")","v":""},{"$f":"IF(INDIRECT(M629) = \"\",\"\",INDIRECT(M629))","v":""},"n"]
["SUCMRUR3NFCERG6_5TO10",null,null,null,{"$f":"_xlfn.XLOOKUP(F630,'Raw Data'!$I$4:$I$5000,'Raw Data'!$D$4:$D$5000,\"*** Mnemonic not found ***\",0)","v":"*** Mnemonic not found ***"},"SUCMRUR3NFCERG6_5TO10__",null,"Input",null,null,214,"H","Input!H214",{"$f":"_xlfn.XLOOKUP(F630,'Raw Data'!$I$4:$I$5000,'Raw Data'!$E$4:$E$5000,100,0)","v":100},{"$f":"IF(N630=0,_xlfn.XLOOKUP(F630,'Raw Data'!$I$4:$I$5000,'Raw Data'!$H$4:$H$5000,\"\",0),\"\")","v":""},{"$f":"IF(INDIRECT(M630) = \"\",\"\",INDIRECT(M630))","v":""},"n"]
["SUCMRUR3NFCERG7_5TO10",null,null,null,{"$f":"_xlfn.XLOOKUP(F631,'Raw Data'!$I$4:$I$5000,'Raw Data'!$D$4:$D$5000,\"*** Mnemonic not found ***\",0)","v":"*** Mnemonic not found ***"},"SUCMRUR3NFCERG7_5TO10__",null,"Input",null,null,214,"I","Input!I214",{"$f":"_xlfn.XLOOKUP(F631,'Raw Data'!$I$4:$I$5000,'Raw Data'!$E$4:$E$5000,100,0)","v":100},{"$f":"IF(N631=0,_xlfn.XLOOKUP(F631,'Raw Data'!$I$4:$I$5000,'Raw Data'!$H$4:$H$5000,\"\",0),\"\")","v":""},{"$f":"IF(INDIRECT(M631) = \"\",\"\",INDIRECT(M631))","v":""},"n"]
["SUCMRUR3NFCERG8_5TO10",null,null,null,{"$f":"_xlfn.XLOOKUP(F632,'Raw Data'!$I$4:$I$5000,'Raw Data'!$D$4:$D$5000,\"*** Mnemonic not found ***\",0)","v":"*** Mnemonic not found ***"},"SUCMRUR3NFCERG8_5TO10__",null,"Input",null,null,214,"J","Input!J214",{"$f":"_xlfn.XLOOKUP(F632,'Raw Data'!$I$4:$I$5000,'Raw Data'!$E$4:$E$5000,100,0)","v":100},{"$f":"IF(N632=0,_xlfn.XLOOKUP(F632,'Raw Data'!$I$4:$I$5000,'Raw Data'!$H$4:$H$5000,\"\",0),\"\")","v":""},{"$f":"IF(INDIRECT(M632) = \"\",\"\",INDIRECT(M632))","v":""},"n"]
["SUCMRUR3NFCERG9_5TO10",null,null,null,{"$f":"_xlfn.XLOOKUP(F633,'Raw Data'!$I$4:$I$5000,'Raw Data'!$D$4:$D$5000,\"*** Mnemonic not found ***\",0)","v":"*** Mnemonic not found ***"},"SUCMRUR3NFCERG9_5TO10__",null,"Input",null,null,214,"K","Input!K214",{"$f":"_xlfn.XLOOKUP(F633,'Raw Data'!$I$4:$I$5000,'Raw Data'!$E$4:$E$5000,100,0)","v":100},{"$f":"IF(N633=0,_xlfn.XLOOKUP(F633,'Raw Data'!$I$4:$I$5000,'Raw Data'!$H$4:$H$5000,\"\",0),\"\")","v":""},{"$f":"IF(INDIRECT(M633) = \"\",\"\",INDIRECT(M633))","v":""},"n"]
["SUCMRUR3NFCERG10_5TO10",null,null,null,{"$f":"_xlfn.XLOOKUP(F634,'Raw Data'!$I$4:$I$5000,'Raw Data'!$D$4:$D$5000,\"*** Mnemonic not found ***\",0)","v":"*** Mnemonic not found ***"},"SUCMRUR3NFCERG10_5TO10__",null,"Input",null,null,214,"L","Input!L214",{"$f":"_xlfn.XLOOKUP(F634,'Raw Data'!$I$4:$I$5000,'Raw Data'!$E$4:$E$5000,100,0)","v":100},{"$f":"IF(N634=0,_xlfn.XLOOKUP(F634,'Raw Data'!$I$4:$I$5000,'Raw Data'!$H$4:$H$5000,\"\",0),\"\")","v":""},{"$f":"IF(INDIRECT(M634) = \"\",\"\",INDIRECT(M634))","v":""},"n"]
["SUCMRUR3NFCERGNA_5TO10",null,null,null,{"$f":"_xlfn.XLOOKUP(F635,'Raw Data'!$I$4:$I$5000,'Raw Data'!$D$4:$D$5000,\"*** Mnemonic not found ***\",0)","v":"*** Mnemonic not found ***"},"SUCMRUR3NFCERGNA_5TO10__",null,"Input",null,null,214,"M","Input!M214",{"$f":"_xlfn.XLOOKUP(F635,'Raw Data'!$I$4:$I$5000,'Raw Data'!$E$4:$E$5000,100,0)","v":100},{"$f":"IF(N635=0,_xlfn.XLOOKUP(F635,'Raw Data'!$I$4:$I$5000,'Raw Data'!$H$4:$H$5000,\"\",0),\"\")","v":""},{"$f":"IF(INDIRECT(M635) = \"\",\"\",INDIRECT(M635))","v":""},"n"]
["SUCMRUR3NFCERG1_10TO20",null,null,null,{"$f":"_xlfn.XLOOKUP(F636,'Raw Data'!$I$4:$I$5000,'Raw Data'!$D$4:$D$5000,\"*** Mnemonic not found ***\",0)","v":"*** Mnemonic not found ***"},"SUCMRUR3NFCERG1_10TO20__",null,"Input",null,null,215,"C","Input!C215",{"$f":"_xlfn.XLOOKUP(F636,'Raw Data'!$I$4:$I$5000,'Raw Data'!$E$4:$E$5000,100,0)","v":100},{"$f":"IF(N636=0,_xlfn.XLOOKUP(F636,'Raw Data'!$I$4:$I$5000,'Raw Data'!$H$4:$H$5000,\"\",0),\"\")","v":""},{"$f":"IF(INDIRECT(M636) = \"\",\"\",INDIRECT(M636))","v":""},"n"]
["SUCMRUR3NFCERG2_10TO20",null,null,null,{"$f":"_xlfn.XLOOKUP(F637,'Raw Data'!$I$4:$I$5000,'Raw Data'!$D$4:$D$5000,\"*** Mnemonic not found ***\",0)","v":"*** Mnemonic not found ***"},"SUCMRUR3NFCERG2_10TO20__",null,"Input",null,null,215,"D","Input!D215",{"$f":"_xlfn.XLOOKUP(F637,'Raw Data'!$I$4:$I$5000,'Raw Data'!$E$4:$E$5000,100,0)","v":100},{"$f":"IF(N637=0,_xlfn.XLOOKUP(F637,'Raw Data'!$I$4:$I$5000,'Raw Data'!$H$4:$H$5000,\"\",0),\"\")","v":""},{"$f":"IF(INDIRECT(M637) = \"\",\"\",INDIRECT(M637))","v":""},"n"]
["SUCMRUR3NFCERG3_10TO20",null,null,null,{"$f":"_xlfn.XLOOKUP(F638,'Raw Data'!$I$4:$I$5000,'Raw Data'!$D$4:$D$5000,\"*** Mnemonic not found ***\",0)","v":"*** Mnemonic not found ***"},"SUCMRUR3NFCERG3_10TO20__",null,"Input",null,null,215,"E","Input!E215",{"$f":"_xlfn.XLOOKUP(F638,'Raw Data'!$I$4:$I$5000,'Raw Data'!$E$4:$E$5000,100,0)","v":100},{"$f":"IF(N638=0,_xlfn.XLOOKUP(F638,'Raw Data'!$I$4:$I$5000,'Raw Data'!$H$4:$H$5000,\"\",0),\"\")","v":""},{"$f":"IF(INDIRECT(M638) = \"\",\"\",INDIRECT(M638))","v":""},"n"]
["SUCMRUR3NFCERG4_10TO20",null,null,null,{"$f":"_xlfn.XLOOKUP(F639,'Raw Data'!$I$4:$I$5000,'Raw Data'!$D$4:$D$5000,\"*** Mnemonic not found ***\",0)","v":"*** Mnemonic not found ***"},"SUCMRUR3NFCERG4_10TO20__",null,"Input",null,null,215,"F","Input!F215",{"$f":"_xlfn.XLOOKUP(F639,'Raw Data'!$I$4:$I$5000,'Raw Data'!$E$4:$E$5000,100,0)","v":100},{"$f":"IF(N639=0,_xlfn.XLOOKUP(F639,'Raw Data'!$I$4:$I$5000,'Raw Data'!$H$4:$H$5000,\"\",0),\"\")","v":""},{"$f":"IF(INDIRECT(M639) = \"\",\"\",INDIRECT(M639))","v":""},"n"]
["SUCMRUR3NFCERG5_10TO20",null,null,null,{"$f":"_xlfn.XLOOKUP(F640,'Raw Data'!$I$4:$I$5000,'Raw Data'!$D$4:$D$5000,\"*** Mnemonic not found ***\",0)","v":"*** Mnemonic not found ***"},"SUCMRUR3NFCERG5_10TO20__",null,"Input",null,null,215,"G","Input!G215",{"$f":"_xlfn.XLOOKUP(F640,'Raw Data'!$I$4:$I$5000,'Raw Data'!$E$4:$E$5000,100,0)","v":100},{"$f":"IF(N640=0,_xlfn.XLOOKUP(F640,'Raw Data'!$I$4:$I$5000,'Raw Data'!$H$4:$H$5000,\"\",0),\"\")","v":""},{"$f":"IF(INDIRECT(M640) = \"\",\"\",INDIRECT(M640))","v":""},"n"]
["SUCMRUR3NFCERG6_10TO20",null,null,null,{"$f":"_xlfn.XLOOKUP(F641,'Raw Data'!$I$4:$I$5000,'Raw Data'!$D$4:$D$5000,\"*** Mnemonic not found ***\",0)","v":"*** Mnemonic not found ***"},"SUCMRUR3NFCERG6_10TO20__",null,"Input",null,null,215,"H","Input!H215",{"$f":"_xlfn.XLOOKUP(F641,'Raw Data'!$I$4:$I$5000,'Raw Data'!$E$4:$E$5000,100,0)","v":100},{"$f":"IF(N641=0,_xlfn.XLOOKUP(F641,'Raw Data'!$I$4:$I$5000,'Raw Data'!$H$4:$H$5000,\"\",0),\"\")","v":""},{"$f":"IF(INDIRECT(M641) = \"\",\"\",INDIRECT(M641))","v":""},"n"]
["SUCMRUR3NFCERG7_10TO20",null,null,null,{"$f":"_xlfn.XLOOKUP(F642,'Raw Data'!$I$4:$I$5000,'Raw Data'!$D$4:$D$5000,\"*** Mnemonic not found ***\",0)","v":"*** Mnemonic not found ***"},"SUCMRUR3NFCERG7_10TO20__",null,"Input",null,null,215,"I","Input!I215",{"$f":"_xlfn.XLOOKUP(F642,'Raw Data'!$I$4:$I$5000,'Raw Data'!$E$4:$E$5000,100,0)","v":100},{"$f":"IF(N642=0,_xlfn.XLOOKUP(F642,'Raw Data'!$I$4:$I$5000,'Raw Data'!$H$4:$H$5000,\"\",0),\"\")","v":""},{"$f":"IF(INDIRECT(M642) = \"\",\"\",INDIRECT(M642))","v":""},"n"]
["SUCMRUR3NFCERG8_10TO20",null,null,null,{"$f":"_xlfn.XLOOKUP(F643,'Raw Data'!$I$4:$I$5000,'Raw Data'!$D$4:$D$5000,\"*** Mnemonic not found ***\",0)","v":"*** Mnemonic not found ***"},"SUCMRUR3NFCERG8_10TO20__",null,"Input",null,null,215,"J","Input!J215",{"$f":"_xlfn.XLOOKUP(F643,'Raw Data'!$I$4:$I$5000,'Raw Data'!$E$4:$E$5000,100,0)","v":100},{"$f":"IF(N643=0,_xlfn.XLOOKUP(F643,'Raw Data'!$I$4:$I$5000,'Raw Data'!$H$4:$H$5000,\"\",0),\"\")","v":""},{"$f":"IF(INDIRECT(M643) = \"\",\"\",INDIRECT(M643))","v":""},"n"]
["SUCMRUR3NFCERG9_10TO20",null,null,null,{"$f":"_xlfn.XLOOKUP(F644,'Raw Data'!$I$4:$I$5000,'Raw Data'!$D$4:$D$5000,\"*** Mnemonic not found ***\",0)","v":"*** Mnemonic not found ***"},"SUCMRUR3NFCERG9_10TO20__",null,"Input",null,null,215,"K","Input!K215",{"$f":"_xlfn.XLOOKUP(F644,'Raw Data'!$I$4:$I$5000,'Raw Data'!$E$4:$E$5000,100,0)","v":100},{"$f":"IF(N644=0,_xlfn.XLOOKUP(F644,'Raw Data'!$I$4:$I$5000,'Raw Data'!$H$4:$H$5000,\"\",0),\"\")","v":""},{"$f":"IF(INDIRECT(M644) = \"\",\"\",INDIRECT(M644))","v":""},"n"]
["SUCMRUR3NFCERG10_10TO20",null,null,null,{"$f":"_xlfn.XLOOKUP(F645,'Raw Data'!$I$4:$I$5000,'Raw Data'!$D$4:$D$5000,\"*** Mnemonic not found ***\",0)","v":"*** Mnemonic not found ***"},{"$f":"CONCATENATE(A645,\"_\",B645,\"_\",D645)","v":"SUCMRUR3NFCERG10_10TO20__"},null,"Input",null,null,215,"L","Input!L215",{"$f":"_xlfn.XLOOKUP(F645,'Raw Data'!$I$4:$I$5000,'Raw Data'!$E$4:$E$5000,100,0)","v":100},{"$f":"IF(N645=0,_xlfn.XLOOKUP(F645,'Raw Data'!$I$4:$I$5000,'Raw Data'!$H$4:$H$5000,\"\",0),\"\")","v":""},{"$f":"IF(INDIRECT(M645) = \"\",\"\",INDIRECT(M645))","v":""},"n"]
["SUCMRUR3NFCERGNA_10TO20",null,null,null,{"$f":"_xlfn.XLOOKUP(F646,'Raw Data'!$I$4:$I$5000,'Raw Data'!$D$4:$D$5000,\"*** Mnemonic not found ***\",0)","v":"*** Mnemonic not found ***"},"SUCMRUR3NFCERGNA_10TO20__",null,"Input",null,null,215,"M","Input!M215",{"$f":"_xlfn.XLOOKUP(F646,'Raw Data'!$I$4:$I$5000,'Raw Data'!$E$4:$E$5000,100,0)","v":100},{"$f":"IF(N646=0,_xlfn.XLOOKUP(F646,'Raw Data'!$I$4:$I$5000,'Raw Data'!$H$4:$H$5000,\"\",0),\"\")","v":""},{"$f":"IF(INDIRECT(M646) = \"\",\"\",INDIRECT(M646))","v":""},"n"]
["SUCMRUR3NFCERG1_GRTR20",null,null,null,{"$f":"_xlfn.XLOOKUP(F647,'Raw Data'!$I$4:$I$5000,'Raw Data'!$D$4:$D$5000,\"*** Mnemonic not found ***\",0)","v":"*** Mnemonic not found ***"},"SUCMRUR3NFCERG1_GRTR20__",null,"Input",null,null,216,"C","Input!C216",{"$f":"_xlfn.XLOOKUP(F647,'Raw Data'!$I$4:$I$5000,'Raw Data'!$E$4:$E$5000,100,0)","v":100},{"$f":"IF(N647=0,_xlfn.XLOOKUP(F647,'Raw Data'!$I$4:$I$5000,'Raw Data'!$H$4:$H$5000,\"\",0),\"\")","v":""},{"$f":"IF(INDIRECT(M647) = \"\",\"\",INDIRECT(M647))","v":""},"n"]
["SUCMRUR3NFCERG2_GRTR20",null,null,null,{"$f":"_xlfn.XLOOKUP(F648,'Raw Data'!$I$4:$I$5000,'Raw Data'!$D$4:$D$5000,\"*** Mnemonic not found ***\",0)","v":"*** Mnemonic not found ***"},"SUCMRUR3NFCERG2_GRTR20__",null,"Input",null,null,216,"D","Input!D216",{"$f":"_xlfn.XLOOKUP(F648,'Raw Data'!$I$4:$I$5000,'Raw Data'!$E$4:$E$5000,100,0)","v":100},{"$f":"IF(N648=0,_xlfn.XLOOKUP(F648,'Raw Data'!$I$4:$I$5000,'Raw Data'!$H$4:$H$5000,\"\",0),\"\")","v":""},{"$f":"IF(INDIRECT(M648) = \"\",\"\",INDIRECT(M648))","v":""},"n"]
["SUCMRUR3NFCERG3_GRTR20",null,null,null,{"$f":"_xlfn.XLOOKUP(F649,'Raw Data'!$I$4:$I$5000,'Raw Data'!$D$4:$D$5000,\"*** Mnemonic not found ***\",0)","v":"*** Mnemonic not found ***"},"SUCMRUR3NFCERG3_GRTR20__",null,"Input",null,null,216,"E","Input!E216",{"$f":"_xlfn.XLOOKUP(F649,'Raw Data'!$I$4:$I$5000,'Raw Data'!$E$4:$E$5000,100,0)","v":100},{"$f":"IF(N649=0,_xlfn.XLOOKUP(F649,'Raw Data'!$I$4:$I$5000,'Raw Data'!$H$4:$H$5000,\"\",0),\"\")","v":""},{"$f":"IF(INDIRECT(M649) = \"\",\"\",INDIRECT(M649))","v":""},"n"]
["SUCMRUR3NFCERG4_GRTR20",null,null,null,{"$f":"_xlfn.XLOOKUP(F650,'Raw Data'!$I$4:$I$5000,'Raw Data'!$D$4:$D$5000,\"*** Mnemonic not found ***\",0)","v":"*** Mnemonic not found ***"},"SUCMRUR3NFCERG4_GRTR20__",null,"Input",null,null,216,"F","Input!F216",{"$f":"_xlfn.XLOOKUP(F650,'Raw Data'!$I$4:$I$5000,'Raw Data'!$E$4:$E$5000,100,0)","v":100},{"$f":"IF(N650=0,_xlfn.XLOOKUP(F650,'Raw Data'!$I$4:$I$5000,'Raw Data'!$H$4:$H$5000,\"\",0),\"\")","v":""},{"$f":"IF(INDIRECT(M650) = \"\",\"\",INDIRECT(M650))","v":""},"n"]
["SUCMRUR3NFCERG5_GRTR20",null,null,null,{"$f":"_xlfn.XLOOKUP(F651,'Raw Data'!$I$4:$I$5000,'Raw Data'!$D$4:$D$5000,\"*** Mnemonic not found ***\",0)","v":"*** Mnemonic not found ***"},"SUCMRUR3NFCERG5_GRTR20__",null,"Input",null,null,216,"G","Input!G216",{"$f":"_xlfn.XLOOKUP(F651,'Raw Data'!$I$4:$I$5000,'Raw Data'!$E$4:$E$5000,100,0)","v":100},{"$f":"IF(N651=0,_xlfn.XLOOKUP(F651,'Raw Data'!$I$4:$I$5000,'Raw Data'!$H$4:$H$5000,\"\",0),\"\")","v":""},{"$f":"IF(INDIRECT(M651) = \"\",\"\",INDIRECT(M651))","v":""},"n"]
["SUCMRUR3NFCERG6_GRTR20",null,null,null,{"$f":"_xlfn.XLOOKUP(F652,'Raw Data'!$I$4:$I$5000,'Raw Data'!$D$4:$D$5000,\"*** Mnemonic not found ***\",0)","v":"*** Mnemonic not found ***"},"SUCMRUR3NFCERG6_GRTR20__",null,"Input",null,null,216,"H","Input!H216",{"$f":"_xlfn.XLOOKUP(F652,'Raw Data'!$I$4:$I$5000,'Raw Data'!$E$4:$E$5000,100,0)","v":100},{"$f":"IF(N652=0,_xlfn.XLOOKUP(F652,'Raw Data'!$I$4:$I$5000,'Raw Data'!$H$4:$H$5000,\"\",0),\"\")","v":""},{"$f":"IF(INDIRECT(M652) = \"\",\"\",INDIRECT(M652))","v":""},"n"]
["SUCMRUR3NFCERG7_GRTR20",null,null,null,{"$f":"_xlfn.XLOOKUP(F653,'Raw Data'!$I$4:$I$5000,'Raw Data'!$D$4:$D$5000,\"*** Mnemonic not found ***\",0)","v":"*** Mnemonic not found ***"},"SUCMRUR3NFCERG7_GRTR20__",null,"Input",null,null,216,"I","Input!I216",{"$f":"_xlfn.XLOOKUP(F653,'Raw Data'!$I$4:$I$5000,'Raw Data'!$E$4:$E$5000,100,0)","v":100},{"$f":"IF(N653=0,_xlfn.XLOOKUP(F653,'Raw Data'!$I$4:$I$5000,'Raw Data'!$H$4:$H$5000,\"\",0),\"\")","v":""},{"$f":"IF(INDIRECT(M653) = \"\",\"\",INDIRECT(M653))","v":""},"n"]
["SUCMRUR3NFCERG8_GRTR20",null,null,null,{"$f":"_xlfn.XLOOKUP(F654,'Raw Data'!$I$4:$I$5000,'Raw Data'!$D$4:$D$5000,\"*** Mnemonic not found ***\",0)","v":"*** Mnemonic not found ***"},"SUCMRUR3NFCERG8_GRTR20__",null,"Input",null,null,216,"J","Input!J216",{"$f":"_xlfn.XLOOKUP(F654,'Raw Data'!$I$4:$I$5000,'Raw Data'!$E$4:$E$5000,100,0)","v":100},{"$f":"IF(N654=0,_xlfn.XLOOKUP(F654,'Raw Data'!$I$4:$I$5000,'Raw Data'!$H$4:$H$5000,\"\",0),\"\")","v":""},{"$f":"IF(INDIRECT(M654) = \"\",\"\",INDIRECT(M654))","v":""},"n"]
["SUCMRUR3NFCERG9_GRTR20",null,null,null,{"$f":"_xlfn.XLOOKUP(F655,'Raw Data'!$I$4:$I$5000,'Raw Data'!$D$4:$D$5000,\"*** Mnemonic not found ***\",0)","v":"*** Mnemonic not found ***"},"SUCMRUR3NFCERG9_GRTR20__",null,"Input",null,null,216,"K",{"$f":"CONCATENATE(H655,\"!\",L655,K655)","v":"Input!K216"},{"$f":"_xlfn.XLOOKUP(F655,'Raw Data'!$I$4:$I$5000,'Raw Data'!$E$4:$E$5000,100,0)","v":100},{"$f":"IF(N655=0,_xlfn.XLOOKUP(F655,'Raw Data'!$I$4:$I$5000,'Raw Data'!$H$4:$H$5000,\"\",0),\"\")","v":""},{"$f":"IF(INDIRECT(M655) = \"\",\"\",INDIRECT(M655))","v":""},"n"]
["SUCMRUR3NFCERG10_GRTR20",null,null,null,{"$f":"_xlfn.XLOOKUP(F656,'Raw Data'!$I$4:$I$5000,'Raw Data'!$D$4:$D$5000,\"*** Mnemonic not found ***\",0)","v":"*** Mnemonic not found ***"},"SUCMRUR3NFCERG10_GRTR20__",null,"Input",null,null,216,"L","Input!L216",{"$f":"_xlfn.XLOOKUP(F656,'Raw Data'!$I$4:$I$5000,'Raw Data'!$E$4:$E$5000,100,0)","v":100},{"$f":"IF(N656=0,_xlfn.XLOOKUP(F656,'Raw Data'!$I$4:$I$5000,'Raw Data'!$H$4:$H$5000,\"\",0),\"\")","v":""},{"$f":"IF(INDIRECT(M656) = \"\",\"\",INDIRECT(M656))","v":""},"n"]
["SUCMRUR3NFCERGNA_GRTR20",null,null,null,{"$f":"_xlfn.XLOOKUP(F657,'Raw Data'!$I$4:$I$5000,'Raw Data'!$D$4:$D$5000,\"*** Mnemonic not found ***\",0)","v":"*** Mnemonic not found ***"},"SUCMRUR3NFCERGNA_GRTR20__",null,"Input",null,null,216,"M","Input!M216",{"$f":"_xlfn.XLOOKUP(F657,'Raw Data'!$I$4:$I$5000,'Raw Data'!$E$4:$E$5000,100,0)","v":100},{"$f":"IF(N657=0,_xlfn.XLOOKUP(F657,'Raw Data'!$I$4:$I$5000,'Raw Data'!$H$4:$H$5000,\"\",0),\"\")","v":""},{"$f":"IF(INDIRECT(M657) = \"\",\"\",INDIRECT(M657))","v":""},"n"]
["SUCMRUR1FINERG1_LESS1",null,null,null,{"$f":"_xlfn.XLOOKUP(F658,'Raw Data'!$I$4:$I$5000,'Raw Data'!$D$4:$D$5000,\"*** Mnemonic not found ***\",0)","v":"*** Mnemonic not found ***"},"SUCMRUR1FINERG1_LESS1__",null,"Input",{"$f":"ROW(section_bonds_sp_unrated_step_4)","v":187},{"$f":"J603+10","v":35},{"$f":"I658+J658","v":222},{"$f":"L647","v":"C"},"Input!C222",{"$f":"_xlfn.XLOOKUP(F658,'Raw Data'!$I$4:$I$5000,'Raw Data'!$E$4:$E$5000,100,0)","v":100},{"$f":"IF(N658=0,_xlfn.XLOOKUP(F658,'Raw Data'!$I$4:$I$5000,'Raw Data'!$H$4:$H$5000,\"\",0),\"\")","v":""},{"$f":"IF(INDIRECT(M658) = \"\",\"\",INDIRECT(M658))","v":""},"n"]
["SUCMRUR1FINERG2_LESS1",null,null,null,{"$f":"_xlfn.XLOOKUP(F659,'Raw Data'!$I$4:$I$5000,'Raw Data'!$D$4:$D$5000,\"*** Mnemonic not found ***\",0)","v":"*** Mnemonic not found ***"},"SUCMRUR1FINERG2_LESS1__",null,"Input",null,null,{"$f":"K658","v":222},{"$f":"L648","v":"D"},"Input!D222",{"$f":"_xlfn.XLOOKUP(F659,'Raw Data'!$I$4:$I$5000,'Raw Data'!$E$4:$E$5000,100,0)","v":100},{"$f":"IF(N659=0,_xlfn.XLOOKUP(F659,'Raw Data'!$I$4:$I$5000,'Raw Data'!$H$4:$H$5000,\"\",0),\"\")","v":""},{"$f":"IF(INDIRECT(M659) = \"\",\"\",INDIRECT(M659))","v":""},"n"]
["SUCMRUR1FINERG3_LESS1",null,null,null,{"$f":"_xlfn.XLOOKUP(F660,'Raw Data'!$I$4:$I$5000,'Raw Data'!$D$4:$D$5000,\"*** Mnemonic not found ***\",0)","v":"*** Mnemonic not found ***"},"SUCMRUR1FINERG3_LESS1__",null,"Input",null,null,{"$f":"K659","v":222},"E","Input!E222",{"$f":"_xlfn.XLOOKUP(F660,'Raw Data'!$I$4:$I$5000,'Raw Data'!$E$4:$E$5000,100,0)","v":100},{"$f":"IF(N660=0,_xlfn.XLOOKUP(F660,'Raw Data'!$I$4:$I$5000,'Raw Data'!$H$4:$H$5000,\"\",0),\"\")","v":""},{"$f":"IF(INDIRECT(M660) = \"\",\"\",INDIRECT(M660))","v":""},"n"]
["SUCMRUR1FINERG4_LESS1",null,null,null,{"$f":"_xlfn.XLOOKUP(F661,'Raw Data'!$I$4:$I$5000,'Raw Data'!$D$4:$D$5000,\"*** Mnemonic not found ***\",0)","v":"*** Mnemonic not found ***"},"SUCMRUR1FINERG4_LESS1__",null,"Input",null,null,222,"F","Input!F222",{"$f":"_xlfn.XLOOKUP(F661,'Raw Data'!$I$4:$I$5000,'Raw Data'!$E$4:$E$5000,100,0)","v":100},{"$f":"IF(N661=0,_xlfn.XLOOKUP(F661,'Raw Data'!$I$4:$I$5000,'Raw Data'!$H$4:$H$5000,\"\",0),\"\")","v":""},{"$f":"IF(INDIRECT(M661) = \"\",\"\",INDIRECT(M661))","v":""},"n"]
["SUCMRUR1FINERG5_LESS1",null,null,null,{"$f":"_xlfn.XLOOKUP(F662,'Raw Data'!$I$4:$I$5000,'Raw Data'!$D$4:$D$5000,\"*** Mnemonic not found ***\",0)","v":"*** Mnemonic not found ***"},"SUCMRUR1FINERG5_LESS1__",null,"Input",null,null,222,"G","Input!G222",{"$f":"_xlfn.XLOOKUP(F662,'Raw Data'!$I$4:$I$5000,'Raw Data'!$E$4:$E$5000,100,0)","v":100},{"$f":"IF(N662=0,_xlfn.XLOOKUP(F662,'Raw Data'!$I$4:$I$5000,'Raw Data'!$H$4:$H$5000,\"\",0),\"\")","v":""},{"$f":"IF(INDIRECT(M662) = \"\",\"\",INDIRECT(M662))","v":""},"n"]
["SUCMRUR1FINERG6_LESS1",null,null,null,{"$f":"_xlfn.XLOOKUP(F663,'Raw Data'!$I$4:$I$5000,'Raw Data'!$D$4:$D$5000,\"*** Mnemonic not found ***\",0)","v":"*** Mnemonic not found ***"},"SUCMRUR1FINERG6_LESS1__",null,"Input",null,null,222,"H","Input!H222",{"$f":"_xlfn.XLOOKUP(F663,'Raw Data'!$I$4:$I$5000,'Raw Data'!$E$4:$E$5000,100,0)","v":100},{"$f":"IF(N663=0,_xlfn.XLOOKUP(F663,'Raw Data'!$I$4:$I$5000,'Raw Data'!$H$4:$H$5000,\"\",0),\"\")","v":""},{"$f":"IF(INDIRECT(M663) = \"\",\"\",INDIRECT(M663))","v":""},"n"]
["SUCMRUR1FINERG7_LESS1",null,null,null,{"$f":"_xlfn.XLOOKUP(F664,'Raw Data'!$I$4:$I$5000,'Raw Data'!$D$4:$D$5000,\"*** Mnemonic not found ***\",0)","v":"*** Mnemonic not found ***"},"SUCMRUR1FINERG7_LESS1__",null,"Input",null,null,222,"I","Input!I222",{"$f":"_xlfn.XLOOKUP(F664,'Raw Data'!$I$4:$I$5000,'Raw Data'!$E$4:$E$5000,100,0)","v":100},{"$f":"IF(N664=0,_xlfn.XLOOKUP(F664,'Raw Data'!$I$4:$I$5000,'Raw Data'!$H$4:$H$5000,\"\",0),\"\")","v":""},{"$f":"IF(INDIRECT(M664) = \"\",\"\",INDIRECT(M664))","v":""},"n"]
["SUCMRUR1FINERG8_LESS1",null,null,null,{"$f":"_xlfn.XLOOKUP(F665,'Raw Data'!$I$4:$I$5000,'Raw Data'!$D$4:$D$5000,\"*** Mnemonic not found ***\",0)","v":"*** Mnemonic not found ***"},"SUCMRUR1FINERG8_LESS1__",null,"Input",null,null,222,"J","Input!J222",{"$f":"_xlfn.XLOOKUP(F665,'Raw Data'!$I$4:$I$5000,'Raw Data'!$E$4:$E$5000,100,0)","v":100},{"$f":"IF(N665=0,_xlfn.XLOOKUP(F665,'Raw Data'!$I$4:$I$5000,'Raw Data'!$H$4:$H$5000,\"\",0),\"\")","v":""},{"$f":"IF(INDIRECT(M665) = \"\",\"\",INDIRECT(M665))","v":""},"n"]
["SUCMRUR1FINERG9_LESS1",null,null,null,{"$f":"_xlfn.XLOOKUP(F666,'Raw Data'!$I$4:$I$5000,'Raw Data'!$D$4:$D$5000,\"*** Mnemonic not found ***\",0)","v":"*** Mnemonic not found ***"},"SUCMRUR1FINERG9_LESS1__",null,"Input",null,null,222,"K","Input!K222",{"$f":"_xlfn.XLOOKUP(F666,'Raw Data'!$I$4:$I$5000,'Raw Data'!$E$4:$E$5000,100,0)","v":100},{"$f":"IF(N666=0,_xlfn.XLOOKUP(F666,'Raw Data'!$I$4:$I$5000,'Raw Data'!$H$4:$H$5000,\"\",0),\"\")","v":""},{"$f":"IF(INDIRECT(M666) = \"\",\"\",INDIRECT(M666))","v":""},"n"]
["SUCMRUR1FINERG10_LESS1",null,null,null,{"$f":"_xlfn.XLOOKUP(F667,'Raw Data'!$I$4:$I$5000,'Raw Data'!$D$4:$D$5000,\"*** Mnemonic not found ***\",0)","v":"*** Mnemonic not found ***"},"SUCMRUR1FINERG10_LESS1__",null,"Input",null,null,222,"L","Input!L222",{"$f":"_xlfn.XLOOKUP(F667,'Raw Data'!$I$4:$I$5000,'Raw Data'!$E$4:$E$5000,100,0)","v":100},{"$f":"IF(N667=0,_xlfn.XLOOKUP(F667,'Raw Data'!$I$4:$I$5000,'Raw Data'!$H$4:$H$5000,\"\",0),\"\")","v":""},{"$f":"IF(INDIRECT(M667) = \"\",\"\",INDIRECT(M667))","v":""},"n"]
["SUCMRUR1FINERGNA_LESS1",null,null,null,{"$f":"_xlfn.XLOOKUP(F668,'Raw Data'!$I$4:$I$5000,'Raw Data'!$D$4:$D$5000,\"*** Mnemonic not found ***\",0)","v":"*** Mnemonic not found ***"},"SUCMRUR1FINERGNA_LESS1__",null,"Input",null,null,222,"M","Input!M222",{"$f":"_xlfn.XLOOKUP(F668,'Raw Data'!$I$4:$I$5000,'Raw Data'!$E$4:$E$5000,100,0)","v":100},{"$f":"IF(N668=0,_xlfn.XLOOKUP(F668,'Raw Data'!$I$4:$I$5000,'Raw Data'!$H$4:$H$5000,\"\",0),\"\")","v":""},{"$f":"IF(INDIRECT(M668) = \"\",\"\",INDIRECT(M668))","v":""},"n"]
["SUCMRUR1FINERG1_1TO5",null,null,null,{"$f":"_xlfn.XLOOKUP(F669,'Raw Data'!$I$4:$I$5000,'Raw Data'!$D$4:$D$5000,\"*** Mnemonic not found ***\",0)","v":"*** Mnemonic not found ***"},"SUCMRUR1FINERG1_1TO5__",null,"Input",null,null,{"$f":"K658+1","v":223},{"$f":"L658","v":"C"},"Input!C223",{"$f":"_xlfn.XLOOKUP(F669,'Raw Data'!$I$4:$I$5000,'Raw Data'!$E$4:$E$5000,100,0)","v":100},{"$f":"IF(N669=0,_xlfn.XLOOKUP(F669,'Raw Data'!$I$4:$I$5000,'Raw Data'!$H$4:$H$5000,\"\",0),\"\")","v":""},{"$f":"IF(INDIRECT(M669) = \"\",\"\",INDIRECT(M669))","v":""},"n"]
["SUCMRUR1FINERG2_1TO5",null,null,null,{"$f":"_xlfn.XLOOKUP(F670,'Raw Data'!$I$4:$I$5000,'Raw Data'!$D$4:$D$5000,\"*** Mnemonic not found ***\",0)","v":"*** Mnemonic not found ***"},"SUCMRUR1FINERG2_1TO5__",null,"Input",null,null,{"$f":"K659+1","v":223},{"$f":"L659","v":"D"},"Input!D223",{"$f":"_xlfn.XLOOKUP(F670,'Raw Data'!$I$4:$I$5000,'Raw Data'!$E$4:$E$5000,100,0)","v":100},{"$f":"IF(N670=0,_xlfn.XLOOKUP(F670,'Raw Data'!$I$4:$I$5000,'Raw Data'!$H$4:$H$5000,\"\",0),\"\")","v":""},{"$f":"IF(INDIRECT(M670) = \"\",\"\",INDIRECT(M670))","v":""},"n"]
["SUCMRUR1FINERG3_1TO5",null,null,null,{"$f":"_xlfn.XLOOKUP(F671,'Raw Data'!$I$4:$I$5000,'Raw Data'!$D$4:$D$5000,\"*** Mnemonic not found ***\",0)","v":"*** Mnemonic not found ***"},"SUCMRUR1FINERG3_1TO5__",null,"Input",null,null,223,"E","Input!E223",{"$f":"_xlfn.XLOOKUP(F671,'Raw Data'!$I$4:$I$5000,'Raw Data'!$E$4:$E$5000,100,0)","v":100},{"$f":"IF(N671=0,_xlfn.XLOOKUP(F671,'Raw Data'!$I$4:$I$5000,'Raw Data'!$H$4:$H$5000,\"\",0),\"\")","v":""},{"$f":"IF(INDIRECT(M671) = \"\",\"\",INDIRECT(M671))","v":""},"n"]
["SUCMRUR1FINERG4_1TO5",null,null,null,{"$f":"_xlfn.XLOOKUP(F672,'Raw Data'!$I$4:$I$5000,'Raw Data'!$D$4:$D$5000,\"*** Mnemonic not found ***\",0)","v":"*** Mnemonic not found ***"},"SUCMRUR1FINERG4_1TO5__",null,"Input",null,null,223,"F","Input!F223",{"$f":"_xlfn.XLOOKUP(F672,'Raw Data'!$I$4:$I$5000,'Raw Data'!$E$4:$E$5000,100,0)","v":100},{"$f":"IF(N672=0,_xlfn.XLOOKUP(F672,'Raw Data'!$I$4:$I$5000,'Raw Data'!$H$4:$H$5000,\"\",0),\"\")","v":""},{"$f":"IF(INDIRECT(M672) = \"\",\"\",INDIRECT(M672))","v":""},"n"]
["SUCMRUR1FINERG5_1TO5",null,null,null,{"$f":"_xlfn.XLOOKUP(F673,'Raw Data'!$I$4:$I$5000,'Raw Data'!$D$4:$D$5000,\"*** Mnemonic not found ***\",0)","v":"*** Mnemonic not found ***"},"SUCMRUR1FINERG5_1TO5__",null,"Input",null,null,223,"G","Input!G223",{"$f":"_xlfn.XLOOKUP(F673,'Raw Data'!$I$4:$I$5000,'Raw Data'!$E$4:$E$5000,100,0)","v":100},{"$f":"IF(N673=0,_xlfn.XLOOKUP(F673,'Raw Data'!$I$4:$I$5000,'Raw Data'!$H$4:$H$5000,\"\",0),\"\")","v":""},{"$f":"IF(INDIRECT(M673) = \"\",\"\",INDIRECT(M673))","v":""},"n"]
["SUCMRUR1FINERG6_1TO5",null,null,null,{"$f":"_xlfn.XLOOKUP(F674,'Raw Data'!$I$4:$I$5000,'Raw Data'!$D$4:$D$5000,\"*** Mnemonic not found ***\",0)","v":"*** Mnemonic not found ***"},"SUCMRUR1FINERG6_1TO5__",null,"Input",null,null,223,"H","Input!H223",{"$f":"_xlfn.XLOOKUP(F674,'Raw Data'!$I$4:$I$5000,'Raw Data'!$E$4:$E$5000,100,0)","v":100},{"$f":"IF(N674=0,_xlfn.XLOOKUP(F674,'Raw Data'!$I$4:$I$5000,'Raw Data'!$H$4:$H$5000,\"\",0),\"\")","v":""},{"$f":"IF(INDIRECT(M674) = \"\",\"\",INDIRECT(M674))","v":""},"n"]
["SUCMRUR1FINERG7_1TO5",null,null,null,{"$f":"_xlfn.XLOOKUP(F675,'Raw Data'!$I$4:$I$5000,'Raw Data'!$D$4:$D$5000,\"*** Mnemonic not found ***\",0)","v":"*** Mnemonic not found ***"},"SUCMRUR1FINERG7_1TO5__",null,"Input",null,null,223,"I","Input!I223",{"$f":"_xlfn.XLOOKUP(F675,'Raw Data'!$I$4:$I$5000,'Raw Data'!$E$4:$E$5000,100,0)","v":100},{"$f":"IF(N675=0,_xlfn.XLOOKUP(F675,'Raw Data'!$I$4:$I$5000,'Raw Data'!$H$4:$H$5000,\"\",0),\"\")","v":""},{"$f":"IF(INDIRECT(M675) = \"\",\"\",INDIRECT(M675))","v":""},"n"]
["SUCMRUR1FINERG8_1TO5",null,null,null,{"$f":"_xlfn.XLOOKUP(F676,'Raw Data'!$I$4:$I$5000,'Raw Data'!$D$4:$D$5000,\"*** Mnemonic not found ***\",0)","v":"*** Mnemonic not found ***"},"SUCMRUR1FINERG8_1TO5__",null,"Input",null,null,223,"J","Input!J223",{"$f":"_xlfn.XLOOKUP(F676,'Raw Data'!$I$4:$I$5000,'Raw Data'!$E$4:$E$5000,100,0)","v":100},{"$f":"IF(N676=0,_xlfn.XLOOKUP(F676,'Raw Data'!$I$4:$I$5000,'Raw Data'!$H$4:$H$5000,\"\",0),\"\")","v":""},{"$f":"IF(INDIRECT(M676) = \"\",\"\",INDIRECT(M676))","v":""},"n"]
["SUCMRUR1FINERG9_1TO5",null,null,null,{"$f":"_xlfn.XLOOKUP(F677,'Raw Data'!$I$4:$I$5000,'Raw Data'!$D$4:$D$5000,\"*** Mnemonic not found ***\",0)","v":"*** Mnemonic not found ***"},"SUCMRUR1FINERG9_1TO5__",null,"Input",null,null,223,"K","Input!K223",{"$f":"_xlfn.XLOOKUP(F677,'Raw Data'!$I$4:$I$5000,'Raw Data'!$E$4:$E$5000,100,0)","v":100},{"$f":"IF(N677=0,_xlfn.XLOOKUP(F677,'Raw Data'!$I$4:$I$5000,'Raw Data'!$H$4:$H$5000,\"\",0),\"\")","v":""},{"$f":"IF(INDIRECT(M677) = \"\",\"\",INDIRECT(M677))","v":""},"n"]
["SUCMRUR1FINERG10_1TO5",null,null,null,{"$f":"_xlfn.XLOOKUP(F678,'Raw Data'!$I$4:$I$5000,'Raw Data'!$D$4:$D$5000,\"*** Mnemonic not found ***\",0)","v":"*** Mnemonic not found ***"},"SUCMRUR1FINERG10_1TO5__",null,"Input",null,null,223,"L","Input!L223",{"$f":"_xlfn.XLOOKUP(F678,'Raw Data'!$I$4:$I$5000,'Raw Data'!$E$4:$E$5000,100,0)","v":100},{"$f":"IF(N678=0,_xlfn.XLOOKUP(F678,'Raw Data'!$I$4:$I$5000,'Raw Data'!$H$4:$H$5000,\"\",0),\"\")","v":""},{"$f":"IF(INDIRECT(M678) = \"\",\"\",INDIRECT(M678))","v":""},"n"]
["SUCMRUR1FINERGNA_1TO5",null,null,null,{"$f":"_xlfn.XLOOKUP(F679,'Raw Data'!$I$4:$I$5000,'Raw Data'!$D$4:$D$5000,\"*** Mnemonic not found ***\",0)","v":"*** Mnemonic not found ***"},"SUCMRUR1FINERGNA_1TO5__",null,"Input",null,null,223,"M","Input!M223",{"$f":"_xlfn.XLOOKUP(F679,'Raw Data'!$I$4:$I$5000,'Raw Data'!$E$4:$E$5000,100,0)","v":100},{"$f":"IF(N679=0,_xlfn.XLOOKUP(F679,'Raw Data'!$I$4:$I$5000,'Raw Data'!$H$4:$H$5000,\"\",0),\"\")","v":""},{"$f":"IF(INDIRECT(M679) = \"\",\"\",INDIRECT(M679))","v":""},"n"]
["SUCMRUR1FINERG1_5TO10",null,null,null,{"$f":"_xlfn.XLOOKUP(F680,'Raw Data'!$I$4:$I$5000,'Raw Data'!$D$4:$D$5000,\"*** Mnemonic not found ***\",0)","v":"*** Mnemonic not found ***"},"SUCMRUR1FINERG1_5TO10__",null,"Input",null,null,224,"C","Input!C224",{"$f":"_xlfn.XLOOKUP(F680,'Raw Data'!$I$4:$I$5000,'Raw Data'!$E$4:$E$5000,100,0)","v":100},{"$f":"IF(N680=0,_xlfn.XLOOKUP(F680,'Raw Data'!$I$4:$I$5000,'Raw Data'!$H$4:$H$5000,\"\",0),\"\")","v":""},{"$f":"IF(INDIRECT(M680) = \"\",\"\",INDIRECT(M680))","v":""},"n"]
["SUCMRUR1FINERG2_5TO10",null,null,null,{"$f":"_xlfn.XLOOKUP(F681,'Raw Data'!$I$4:$I$5000,'Raw Data'!$D$4:$D$5000,\"*** Mnemonic not found ***\",0)","v":"*** Mnemonic not found ***"},"SUCMRUR1FINERG2_5TO10__",null,"Input",null,null,224,"D","Input!D224",{"$f":"_xlfn.XLOOKUP(F681,'Raw Data'!$I$4:$I$5000,'Raw Data'!$E$4:$E$5000,100,0)","v":100},{"$f":"IF(N681=0,_xlfn.XLOOKUP(F681,'Raw Data'!$I$4:$I$5000,'Raw Data'!$H$4:$H$5000,\"\",0),\"\")","v":""},{"$f":"IF(INDIRECT(M681) = \"\",\"\",INDIRECT(M681))","v":""},"n"]
["SUCMRUR1FINERG3_5TO10",null,null,null,{"$f":"_xlfn.XLOOKUP(F682,'Raw Data'!$I$4:$I$5000,'Raw Data'!$D$4:$D$5000,\"*** Mnemonic not found ***\",0)","v":"*** Mnemonic not found ***"},"SUCMRUR1FINERG3_5TO10__",null,"Input",null,null,224,"E","Input!E224",{"$f":"_xlfn.XLOOKUP(F682,'Raw Data'!$I$4:$I$5000,'Raw Data'!$E$4:$E$5000,100,0)","v":100},{"$f":"IF(N682=0,_xlfn.XLOOKUP(F682,'Raw Data'!$I$4:$I$5000,'Raw Data'!$H$4:$H$5000,\"\",0),\"\")","v":""},{"$f":"IF(INDIRECT(M682) = \"\",\"\",INDIRECT(M682))","v":""},"n"]
["SUCMRUR1FINERG4_5TO10",null,null,null,{"$f":"_xlfn.XLOOKUP(F683,'Raw Data'!$I$4:$I$5000,'Raw Data'!$D$4:$D$5000,\"*** Mnemonic not found ***\",0)","v":"*** Mnemonic not found ***"},"SUCMRUR1FINERG4_5TO10__",null,"Input",null,null,224,"F","Input!F224",{"$f":"_xlfn.XLOOKUP(F683,'Raw Data'!$I$4:$I$5000,'Raw Data'!$E$4:$E$5000,100,0)","v":100},{"$f":"IF(N683=0,_xlfn.XLOOKUP(F683,'Raw Data'!$I$4:$I$5000,'Raw Data'!$H$4:$H$5000,\"\",0),\"\")","v":""},{"$f":"IF(INDIRECT(M683) = \"\",\"\",INDIRECT(M683))","v":""},"n"]
["SUCMRUR1FINERG5_5TO10",null,null,null,{"$f":"_xlfn.XLOOKUP(F684,'Raw Data'!$I$4:$I$5000,'Raw Data'!$D$4:$D$5000,\"*** Mnemonic not found ***\",0)","v":"*** Mnemonic not found ***"},"SUCMRUR1FINERG5_5TO10__",null,"Input",null,null,224,"G","Input!G224",{"$f":"_xlfn.XLOOKUP(F684,'Raw Data'!$I$4:$I$5000,'Raw Data'!$E$4:$E$5000,100,0)","v":100},{"$f":"IF(N684=0,_xlfn.XLOOKUP(F684,'Raw Data'!$I$4:$I$5000,'Raw Data'!$H$4:$H$5000,\"\",0),\"\")","v":""},{"$f":"IF(INDIRECT(M684) = \"\",\"\",INDIRECT(M684))","v":""},"n"]
["SUCMRUR1FINERG6_5TO10",null,null,null,{"$f":"_xlfn.XLOOKUP(F685,'Raw Data'!$I$4:$I$5000,'Raw Data'!$D$4:$D$5000,\"*** Mnemonic not found ***\",0)","v":"*** Mnemonic not found ***"},"SUCMRUR1FINERG6_5TO10__",null,"Input",null,null,224,"H","Input!H224",{"$f":"_xlfn.XLOOKUP(F685,'Raw Data'!$I$4:$I$5000,'Raw Data'!$E$4:$E$5000,100,0)","v":100},{"$f":"IF(N685=0,_xlfn.XLOOKUP(F685,'Raw Data'!$I$4:$I$5000,'Raw Data'!$H$4:$H$5000,\"\",0),\"\")","v":""},{"$f":"IF(INDIRECT(M685) = \"\",\"\",INDIRECT(M685))","v":""},"n"]
["SUCMRUR1FINERG7_5TO10",null,null,null,{"$f":"_xlfn.XLOOKUP(F686,'Raw Data'!$I$4:$I$5000,'Raw Data'!$D$4:$D$5000,\"*** Mnemonic not found ***\",0)","v":"*** Mnemonic not found ***"},"SUCMRUR1FINERG7_5TO10__",null,"Input",null,null,224,"I","Input!I224",{"$f":"_xlfn.XLOOKUP(F686,'Raw Data'!$I$4:$I$5000,'Raw Data'!$E$4:$E$5000,100,0)","v":100},{"$f":"IF(N686=0,_xlfn.XLOOKUP(F686,'Raw Data'!$I$4:$I$5000,'Raw Data'!$H$4:$H$5000,\"\",0),\"\")","v":""},{"$f":"IF(INDIRECT(M686) = \"\",\"\",INDIRECT(M686))","v":""},"n"]
["SUCMRUR1FINERG8_5TO10",null,null,null,{"$f":"_xlfn.XLOOKUP(F687,'Raw Data'!$I$4:$I$5000,'Raw Data'!$D$4:$D$5000,\"*** Mnemonic not found ***\",0)","v":"*** Mnemonic not found ***"},"SUCMRUR1FINERG8_5TO10__",null,"Input",null,null,224,"J","Input!J224",{"$f":"_xlfn.XLOOKUP(F687,'Raw Data'!$I$4:$I$5000,'Raw Data'!$E$4:$E$5000,100,0)","v":100},{"$f":"IF(N687=0,_xlfn.XLOOKUP(F687,'Raw Data'!$I$4:$I$5000,'Raw Data'!$H$4:$H$5000,\"\",0),\"\")","v":""},{"$f":"IF(INDIRECT(M687) = \"\",\"\",INDIRECT(M687))","v":""},"n"]
["SUCMRUR1FINERG9_5TO10",null,null,null,{"$f":"_xlfn.XLOOKUP(F688,'Raw Data'!$I$4:$I$5000,'Raw Data'!$D$4:$D$5000,\"*** Mnemonic not found ***\",0)","v":"*** Mnemonic not found ***"},"SUCMRUR1FINERG9_5TO10__",null,"Input",null,null,224,"K","Input!K224",{"$f":"_xlfn.XLOOKUP(F688,'Raw Data'!$I$4:$I$5000,'Raw Data'!$E$4:$E$5000,100,0)","v":100},{"$f":"IF(N688=0,_xlfn.XLOOKUP(F688,'Raw Data'!$I$4:$I$5000,'Raw Data'!$H$4:$H$5000,\"\",0),\"\")","v":""},{"$f":"IF(INDIRECT(M688) = \"\",\"\",INDIRECT(M688))","v":""},"n"]
["SUCMRUR1FINERG10_5TO10",null,null,null,{"$f":"_xlfn.XLOOKUP(F689,'Raw Data'!$I$4:$I$5000,'Raw Data'!$D$4:$D$5000,\"*** Mnemonic not found ***\",0)","v":"*** Mnemonic not found ***"},"SUCMRUR1FINERG10_5TO10__",null,"Input",null,null,224,"L","Input!L224",{"$f":"_xlfn.XLOOKUP(F689,'Raw Data'!$I$4:$I$5000,'Raw Data'!$E$4:$E$5000,100,0)","v":100},{"$f":"IF(N689=0,_xlfn.XLOOKUP(F689,'Raw Data'!$I$4:$I$5000,'Raw Data'!$H$4:$H$5000,\"\",0),\"\")","v":""},{"$f":"IF(INDIRECT(M689) = \"\",\"\",INDIRECT(M689))","v":""},"n"]
["SUCMRUR1FINERGNA_5TO10",null,null,null,{"$f":"_xlfn.XLOOKUP(F690,'Raw Data'!$I$4:$I$5000,'Raw Data'!$D$4:$D$5000,\"*** Mnemonic not found ***\",0)","v":"*** Mnemonic not found ***"},"SUCMRUR1FINERGNA_5TO10__",null,"Input",null,null,224,"M","Input!M224",{"$f":"_xlfn.XLOOKUP(F690,'Raw Data'!$I$4:$I$5000,'Raw Data'!$E$4:$E$5000,100,0)","v":100},{"$f":"IF(N690=0,_xlfn.XLOOKUP(F690,'Raw Data'!$I$4:$I$5000,'Raw Data'!$H$4:$H$5000,\"\",0),\"\")","v":""},{"$f":"IF(INDIRECT(M690) = \"\",\"\",INDIRECT(M690))","v":""},"n"]
["SUCMRUR1FINERG1_10TO20",null,null,null,{"$f":"_xlfn.XLOOKUP(F691,'Raw Data'!$I$4:$I$5000,'Raw Data'!$D$4:$D$5000,\"*** Mnemonic not found ***\",0)","v":"*** Mnemonic not found ***"},"SUCMRUR1FINERG1_10TO20__",null,"Input",null,null,225,"C","Input!C225",{"$f":"_xlfn.XLOOKUP(F691,'Raw Data'!$I$4:$I$5000,'Raw Data'!$E$4:$E$5000,100,0)","v":100},{"$f":"IF(N691=0,_xlfn.XLOOKUP(F691,'Raw Data'!$I$4:$I$5000,'Raw Data'!$H$4:$H$5000,\"\",0),\"\")","v":""},{"$f":"IF(INDIRECT(M691) = \"\",\"\",INDIRECT(M691))","v":""},"n"]
["SUCMRUR1FINERG2_10TO20",null,null,null,{"$f":"_xlfn.XLOOKUP(F692,'Raw Data'!$I$4:$I$5000,'Raw Data'!$D$4:$D$5000,\"*** Mnemonic not found ***\",0)","v":"*** Mnemonic not found ***"},"SUCMRUR1FINERG2_10TO20__",null,"Input",null,null,225,"D","Input!D225",{"$f":"_xlfn.XLOOKUP(F692,'Raw Data'!$I$4:$I$5000,'Raw Data'!$E$4:$E$5000,100,0)","v":100},{"$f":"IF(N692=0,_xlfn.XLOOKUP(F692,'Raw Data'!$I$4:$I$5000,'Raw Data'!$H$4:$H$5000,\"\",0),\"\")","v":""},{"$f":"IF(INDIRECT(M692) = \"\",\"\",INDIRECT(M692))","v":""},"n"]
["SUCMRUR1FINERG3_10TO20",null,null,null,{"$f":"_xlfn.XLOOKUP(F693,'Raw Data'!$I$4:$I$5000,'Raw Data'!$D$4:$D$5000,\"*** Mnemonic not found ***\",0)","v":"*** Mnemonic not found ***"},"SUCMRUR1FINERG3_10TO20__",null,"Input",null,null,225,"E","Input!E225",{"$f":"_xlfn.XLOOKUP(F693,'Raw Data'!$I$4:$I$5000,'Raw Data'!$E$4:$E$5000,100,0)","v":100},{"$f":"IF(N693=0,_xlfn.XLOOKUP(F693,'Raw Data'!$I$4:$I$5000,'Raw Data'!$H$4:$H$5000,\"\",0),\"\")","v":""},{"$f":"IF(INDIRECT(M693) = \"\",\"\",INDIRECT(M693))","v":""},"n"]
["SUCMRUR1FINERG4_10TO20",null,null,null,{"$f":"_xlfn.XLOOKUP(F694,'Raw Data'!$I$4:$I$5000,'Raw Data'!$D$4:$D$5000,\"*** Mnemonic not found ***\",0)","v":"*** Mnemonic not found ***"},"SUCMRUR1FINERG4_10TO20__",null,"Input",null,null,225,"F","Input!F225",{"$f":"_xlfn.XLOOKUP(F694,'Raw Data'!$I$4:$I$5000,'Raw Data'!$E$4:$E$5000,100,0)","v":100},{"$f":"IF(N694=0,_xlfn.XLOOKUP(F694,'Raw Data'!$I$4:$I$5000,'Raw Data'!$H$4:$H$5000,\"\",0),\"\")","v":""},{"$f":"IF(INDIRECT(M694) = \"\",\"\",INDIRECT(M694))","v":""},"n"]
["SUCMRUR1FINERG5_10TO20",null,null,null,{"$f":"_xlfn.XLOOKUP(F695,'Raw Data'!$I$4:$I$5000,'Raw Data'!$D$4:$D$5000,\"*** Mnemonic not found ***\",0)","v":"*** Mnemonic not found ***"},"SUCMRUR1FINERG5_10TO20__",null,"Input",null,null,225,"G","Input!G225",{"$f":"_xlfn.XLOOKUP(F695,'Raw Data'!$I$4:$I$5000,'Raw Data'!$E$4:$E$5000,100,0)","v":100},{"$f":"IF(N695=0,_xlfn.XLOOKUP(F695,'Raw Data'!$I$4:$I$5000,'Raw Data'!$H$4:$H$5000,\"\",0),\"\")","v":""},{"$f":"IF(INDIRECT(M695) = \"\",\"\",INDIRECT(M695))","v":""},"n"]
["SUCMRUR1FINERG6_10TO20",null,null,null,{"$f":"_xlfn.XLOOKUP(F696,'Raw Data'!$I$4:$I$5000,'Raw Data'!$D$4:$D$5000,\"*** Mnemonic not found ***\",0)","v":"*** Mnemonic not found ***"},"SUCMRUR1FINERG6_10TO20__",null,"Input",null,null,225,"H","Input!H225",{"$f":"_xlfn.XLOOKUP(F696,'Raw Data'!$I$4:$I$5000,'Raw Data'!$E$4:$E$5000,100,0)","v":100},{"$f":"IF(N696=0,_xlfn.XLOOKUP(F696,'Raw Data'!$I$4:$I$5000,'Raw Data'!$H$4:$H$5000,\"\",0),\"\")","v":""},{"$f":"IF(INDIRECT(M696) = \"\",\"\",INDIRECT(M696))","v":""},"n"]
["SUCMRUR1FINERG7_10TO20",null,null,null,{"$f":"_xlfn.XLOOKUP(F697,'Raw Data'!$I$4:$I$5000,'Raw Data'!$D$4:$D$5000,\"*** Mnemonic not found ***\",0)","v":"*** Mnemonic not found ***"},"SUCMRUR1FINERG7_10TO20__",null,"Input",null,null,225,"I","Input!I225",{"$f":"_xlfn.XLOOKUP(F697,'Raw Data'!$I$4:$I$5000,'Raw Data'!$E$4:$E$5000,100,0)","v":100},{"$f":"IF(N697=0,_xlfn.XLOOKUP(F697,'Raw Data'!$I$4:$I$5000,'Raw Data'!$H$4:$H$5000,\"\",0),\"\")","v":""},{"$f":"IF(INDIRECT(M697) = \"\",\"\",INDIRECT(M697))","v":""},"n"]
["SUCMRUR1FINERG8_10TO20",null,null,null,{"$f":"_xlfn.XLOOKUP(F698,'Raw Data'!$I$4:$I$5000,'Raw Data'!$D$4:$D$5000,\"*** Mnemonic not found ***\",0)","v":"*** Mnemonic not found ***"},"SUCMRUR1FINERG8_10TO20__",null,"Input",null,null,225,"J","Input!J225",{"$f":"_xlfn.XLOOKUP(F698,'Raw Data'!$I$4:$I$5000,'Raw Data'!$E$4:$E$5000,100,0)","v":100},{"$f":"IF(N698=0,_xlfn.XLOOKUP(F698,'Raw Data'!$I$4:$I$5000,'Raw Data'!$H$4:$H$5000,\"\",0),\"\")","v":""},{"$f":"IF(INDIRECT(M698) = \"\",\"\",INDIRECT(M698))","v":""},"n"]
["SUCMRUR1FINERG9_10TO20",null,null,null,{"$f":"_xlfn.XLOOKUP(F699,'Raw Data'!$I$4:$I$5000,'Raw Data'!$D$4:$D$5000,\"*** Mnemonic not found ***\",0)","v":"*** Mnemonic not found ***"},"SUCMRUR1FINERG9_10TO20__",null,"Input",null,null,225,"K","Input!K225",{"$f":"_xlfn.XLOOKUP(F699,'Raw Data'!$I$4:$I$5000,'Raw Data'!$E$4:$E$5000,100,0)","v":100},{"$f":"IF(N699=0,_xlfn.XLOOKUP(F699,'Raw Data'!$I$4:$I$5000,'Raw Data'!$H$4:$H$5000,\"\",0),\"\")","v":""},{"$f":"IF(INDIRECT(M699) = \"\",\"\",INDIRECT(M699))","v":""},"n"]
["SUCMRUR1FINERG10_10TO20",null,null,null,{"$f":"_xlfn.XLOOKUP(F700,'Raw Data'!$I$4:$I$5000,'Raw Data'!$D$4:$D$5000,\"*** Mnemonic not found ***\",0)","v":"*** Mnemonic not found ***"},"SUCMRUR1FINERG10_10TO20__",null,"Input",null,null,225,"L","Input!L225",{"$f":"_xlfn.XLOOKUP(F700,'Raw Data'!$I$4:$I$5000,'Raw Data'!$E$4:$E$5000,100,0)","v":100},{"$f":"IF(N700=0,_xlfn.XLOOKUP(F700,'Raw Data'!$I$4:$I$5000,'Raw Data'!$H$4:$H$5000,\"\",0),\"\")","v":""},{"$f":"IF(INDIRECT(M700) = \"\",\"\",INDIRECT(M700))","v":""},"n"]
["SUCMRUR1FINERGNA_10TO20",null,null,null,{"$f":"_xlfn.XLOOKUP(F701,'Raw Data'!$I$4:$I$5000,'Raw Data'!$D$4:$D$5000,\"*** Mnemonic not found ***\",0)","v":"*** Mnemonic not found ***"},"SUCMRUR1FINERGNA_10TO20__",null,"Input",null,null,225,"M","Input!M225",{"$f":"_xlfn.XLOOKUP(F701,'Raw Data'!$I$4:$I$5000,'Raw Data'!$E$4:$E$5000,100,0)","v":100},{"$f":"IF(N701=0,_xlfn.XLOOKUP(F701,'Raw Data'!$I$4:$I$5000,'Raw Data'!$H$4:$H$5000,\"\",0),\"\")","v":""},{"$f":"IF(INDIRECT(M701) = \"\",\"\",INDIRECT(M701))","v":""},"n"]
["SUCMRUR1FINERG1_GRTR20",null,null,null,{"$f":"_xlfn.XLOOKUP(F702,'Raw Data'!$I$4:$I$5000,'Raw Data'!$D$4:$D$5000,\"*** Mnemonic not found ***\",0)","v":"*** Mnemonic not found ***"},"SUCMRUR1FINERG1_GRTR20__",null,"Input",null,null,226,"C","Input!C226",{"$f":"_xlfn.XLOOKUP(F702,'Raw Data'!$I$4:$I$5000,'Raw Data'!$E$4:$E$5000,100,0)","v":100},{"$f":"IF(N702=0,_xlfn.XLOOKUP(F702,'Raw Data'!$I$4:$I$5000,'Raw Data'!$H$4:$H$5000,\"\",0),\"\")","v":""},{"$f":"IF(INDIRECT(M702) = \"\",\"\",INDIRECT(M702))","v":""},"n"]
["SUCMRUR1FINERG2_GRTR20",null,null,null,{"$f":"_xlfn.XLOOKUP(F703,'Raw Data'!$I$4:$I$5000,'Raw Data'!$D$4:$D$5000,\"*** Mnemonic not found ***\",0)","v":"*** Mnemonic not found ***"},"SUCMRUR1FINERG2_GRTR20__",null,"Input",null,null,226,"D","Input!D226",{"$f":"_xlfn.XLOOKUP(F703,'Raw Data'!$I$4:$I$5000,'Raw Data'!$E$4:$E$5000,100,0)","v":100},{"$f":"IF(N703=0,_xlfn.XLOOKUP(F703,'Raw Data'!$I$4:$I$5000,'Raw Data'!$H$4:$H$5000,\"\",0),\"\")","v":""},{"$f":"IF(INDIRECT(M703) = \"\",\"\",INDIRECT(M703))","v":""},"n"]
["SUCMRUR1FINERG3_GRTR20",null,null,null,{"$f":"_xlfn.XLOOKUP(F704,'Raw Data'!$I$4:$I$5000,'Raw Data'!$D$4:$D$5000,\"*** Mnemonic not found ***\",0)","v":"*** Mnemonic not found ***"},"SUCMRUR1FINERG3_GRTR20__",null,"Input",null,null,226,"E","Input!E226",{"$f":"_xlfn.XLOOKUP(F704,'Raw Data'!$I$4:$I$5000,'Raw Data'!$E$4:$E$5000,100,0)","v":100},{"$f":"IF(N704=0,_xlfn.XLOOKUP(F704,'Raw Data'!$I$4:$I$5000,'Raw Data'!$H$4:$H$5000,\"\",0),\"\")","v":""},{"$f":"IF(INDIRECT(M704) = \"\",\"\",INDIRECT(M704))","v":""},"n"]
["SUCMRUR1FINERG4_GRTR20",null,null,null,{"$f":"_xlfn.XLOOKUP(F705,'Raw Data'!$I$4:$I$5000,'Raw Data'!$D$4:$D$5000,\"*** Mnemonic not found ***\",0)","v":"*** Mnemonic not found ***"},"SUCMRUR1FINERG4_GRTR20__",null,"Input",null,null,226,"F","Input!F226",{"$f":"_xlfn.XLOOKUP(F705,'Raw Data'!$I$4:$I$5000,'Raw Data'!$E$4:$E$5000,100,0)","v":100},{"$f":"IF(N705=0,_xlfn.XLOOKUP(F705,'Raw Data'!$I$4:$I$5000,'Raw Data'!$H$4:$H$5000,\"\",0),\"\")","v":""},{"$f":"IF(INDIRECT(M705) = \"\",\"\",INDIRECT(M705))","v":""},"n"]
["SUCMRUR1FINERG5_GRTR20",null,null,null,{"$f":"_xlfn.XLOOKUP(F706,'Raw Data'!$I$4:$I$5000,'Raw Data'!$D$4:$D$5000,\"*** Mnemonic not found ***\",0)","v":"*** Mnemonic not found ***"},"SUCMRUR1FINERG5_GRTR20__",null,"Input",null,null,226,"G","Input!G226",{"$f":"_xlfn.XLOOKUP(F706,'Raw Data'!$I$4:$I$5000,'Raw Data'!$E$4:$E$5000,100,0)","v":100},{"$f":"IF(N706=0,_xlfn.XLOOKUP(F706,'Raw Data'!$I$4:$I$5000,'Raw Data'!$H$4:$H$5000,\"\",0),\"\")","v":""},{"$f":"IF(INDIRECT(M706) = \"\",\"\",INDIRECT(M706))","v":""},"n"]
["SUCMRUR1FINERG6_GRTR20",null,null,null,{"$f":"_xlfn.XLOOKUP(F707,'Raw Data'!$I$4:$I$5000,'Raw Data'!$D$4:$D$5000,\"*** Mnemonic not found ***\",0)","v":"*** Mnemonic not found ***"},"SUCMRUR1FINERG6_GRTR20__",null,"Input",null,null,226,"H","Input!H226",{"$f":"_xlfn.XLOOKUP(F707,'Raw Data'!$I$4:$I$5000,'Raw Data'!$E$4:$E$5000,100,0)","v":100},{"$f":"IF(N707=0,_xlfn.XLOOKUP(F707,'Raw Data'!$I$4:$I$5000,'Raw Data'!$H$4:$H$5000,\"\",0),\"\")","v":""},{"$f":"IF(INDIRECT(M707) = \"\",\"\",INDIRECT(M707))","v":""},"n"]
["SUCMRUR1FINERG7_GRTR20",null,null,null,{"$f":"_xlfn.XLOOKUP(F708,'Raw Data'!$I$4:$I$5000,'Raw Data'!$D$4:$D$5000,\"*** Mnemonic not found ***\",0)","v":"*** Mnemonic not found ***"},"SUCMRUR1FINERG7_GRTR20__",null,"Input",null,null,226,"I","Input!I226",{"$f":"_xlfn.XLOOKUP(F708,'Raw Data'!$I$4:$I$5000,'Raw Data'!$E$4:$E$5000,100,0)","v":100},{"$f":"IF(N708=0,_xlfn.XLOOKUP(F708,'Raw Data'!$I$4:$I$5000,'Raw Data'!$H$4:$H$5000,\"\",0),\"\")","v":""},{"$f":"IF(INDIRECT(M708) = \"\",\"\",INDIRECT(M708))","v":""},"n"]
["SUCMRUR1FINERG8_GRTR20",null,null,null,{"$f":"_xlfn.XLOOKUP(F709,'Raw Data'!$I$4:$I$5000,'Raw Data'!$D$4:$D$5000,\"*** Mnemonic not found ***\",0)","v":"*** Mnemonic not found ***"},{"$f":"CONCATENATE(A709,\"_\",B709,\"_\",D709)","v":"SUCMRUR1FINERG8_GRTR20__"},null,"Input",null,null,226,"J","Input!J226",{"$f":"_xlfn.XLOOKUP(F709,'Raw Data'!$I$4:$I$5000,'Raw Data'!$E$4:$E$5000,100,0)","v":100},{"$f":"IF(N709=0,_xlfn.XLOOKUP(F709,'Raw Data'!$I$4:$I$5000,'Raw Data'!$H$4:$H$5000,\"\",0),\"\")","v":""},{"$f":"IF(INDIRECT(M709) = \"\",\"\",INDIRECT(M709))","v":""},"n"]
["SUCMRUR1FINERG9_GRTR20",null,null,null,{"$f":"_xlfn.XLOOKUP(F710,'Raw Data'!$I$4:$I$5000,'Raw Data'!$D$4:$D$5000,\"*** Mnemonic not found ***\",0)","v":"*** Mnemonic not found ***"},"SUCMRUR1FINERG9_GRTR20__",null,"Input",null,null,226,"K","Input!K226",{"$f":"_xlfn.XLOOKUP(F710,'Raw Data'!$I$4:$I$5000,'Raw Data'!$E$4:$E$5000,100,0)","v":100},{"$f":"IF(N710=0,_xlfn.XLOOKUP(F710,'Raw Data'!$I$4:$I$5000,'Raw Data'!$H$4:$H$5000,\"\",0),\"\")","v":""},{"$f":"IF(INDIRECT(M710) = \"\",\"\",INDIRECT(M710))","v":""},"n"]
["SUCMRUR1FINERG10_GRTR20",null,null,null,{"$f":"_xlfn.XLOOKUP(F711,'Raw Data'!$I$4:$I$5000,'Raw Data'!$D$4:$D$5000,\"*** Mnemonic not found ***\",0)","v":"*** Mnemonic not found ***"},"SUCMRUR1FINERG10_GRTR20__",null,"Input",null,null,226,"L","Input!L226",{"$f":"_xlfn.XLOOKUP(F711,'Raw Data'!$I$4:$I$5000,'Raw Data'!$E$4:$E$5000,100,0)","v":100},{"$f":"IF(N711=0,_xlfn.XLOOKUP(F711,'Raw Data'!$I$4:$I$5000,'Raw Data'!$H$4:$H$5000,\"\",0),\"\")","v":""},{"$f":"IF(INDIRECT(M711) = \"\",\"\",INDIRECT(M711))","v":""},"n"]
["SUCMRUR1FINERGNA_GRTR20",null,null,null,{"$f":"_xlfn.XLOOKUP(F712,'Raw Data'!$I$4:$I$5000,'Raw Data'!$D$4:$D$5000,\"*** Mnemonic not found ***\",0)","v":"*** Mnemonic not found ***"},"SUCMRUR1FINERGNA_GRTR20__",null,"Input",null,null,226,"M","Input!M226",{"$f":"_xlfn.XLOOKUP(F712,'Raw Data'!$I$4:$I$5000,'Raw Data'!$E$4:$E$5000,100,0)","v":100},{"$f":"IF(N712=0,_xlfn.XLOOKUP(F712,'Raw Data'!$I$4:$I$5000,'Raw Data'!$H$4:$H$5000,\"\",0),\"\")","v":""},{"$f":"IF(INDIRECT(M712) = \"\",\"\",INDIRECT(M712))","v":""},"n"]
["SUCMRUR2FINERG1_LESS1",null,null,null,{"$f":"_xlfn.XLOOKUP(F713,'Raw Data'!$I$4:$I$5000,'Raw Data'!$D$4:$D$5000,\"*** Mnemonic not found ***\",0)","v":"*** Mnemonic not found ***"},"SUCMRUR2FINERG1_LESS1__",null,"Input",{"$f":"ROW(section_bonds_sp_unrated_step_4)","v":187},{"$f":"J658+10","v":45},{"$f":"I713+J713","v":232},{"$f":"L702","v":"C"},"Input!C232",{"$f":"_xlfn.XLOOKUP(F713,'Raw Data'!$I$4:$I$5000,'Raw Data'!$E$4:$E$5000,100,0)","v":100},{"$f":"IF(N713=0,_xlfn.XLOOKUP(F713,'Raw Data'!$I$4:$I$5000,'Raw Data'!$H$4:$H$5000,\"\",0),\"\")","v":""},{"$f":"IF(INDIRECT(M713) = \"\",\"\",INDIRECT(M713))","v":""},"n"]
["SUCMRUR2FINERG2_LESS1",null,null,null,{"$f":"_xlfn.XLOOKUP(F714,'Raw Data'!$I$4:$I$5000,'Raw Data'!$D$4:$D$5000,\"*** Mnemonic not found ***\",0)","v":"*** Mnemonic not found ***"},"SUCMRUR2FINERG2_LESS1__",null,"Input",null,null,{"$f":"K713","v":232},{"$f":"L703","v":"D"},"Input!D232",{"$f":"_xlfn.XLOOKUP(F714,'Raw Data'!$I$4:$I$5000,'Raw Data'!$E$4:$E$5000,100,0)","v":100},{"$f":"IF(N714=0,_xlfn.XLOOKUP(F714,'Raw Data'!$I$4:$I$5000,'Raw Data'!$H$4:$H$5000,\"\",0),\"\")","v":""},{"$f":"IF(INDIRECT(M714) = \"\",\"\",INDIRECT(M714))","v":""},"n"]
["SUCMRUR2FINERG3_LESS1",null,null,null,{"$f":"_xlfn.XLOOKUP(F715,'Raw Data'!$I$4:$I$5000,'Raw Data'!$D$4:$D$5000,\"*** Mnemonic not found ***\",0)","v":"*** Mnemonic not found ***"},"SUCMRUR2FINERG3_LESS1__",null,"Input",null,null,{"$f":"K714","v":232},"E","Input!E232",{"$f":"_xlfn.XLOOKUP(F715,'Raw Data'!$I$4:$I$5000,'Raw Data'!$E$4:$E$5000,100,0)","v":100},{"$f":"IF(N715=0,_xlfn.XLOOKUP(F715,'Raw Data'!$I$4:$I$5000,'Raw Data'!$H$4:$H$5000,\"\",0),\"\")","v":""},{"$f":"IF(INDIRECT(M715) = \"\",\"\",INDIRECT(M715))","v":""},"n"]
["SUCMRUR2FINERG4_LESS1",null,null,null,{"$f":"_xlfn.XLOOKUP(F716,'Raw Data'!$I$4:$I$5000,'Raw Data'!$D$4:$D$5000,\"*** Mnemonic not found ***\",0)","v":"*** Mnemonic not found ***"},"SUCMRUR2FINERG4_LESS1__",null,"Input",null,null,232,"F","Input!F232",{"$f":"_xlfn.XLOOKUP(F716,'Raw Data'!$I$4:$I$5000,'Raw Data'!$E$4:$E$5000,100,0)","v":100},{"$f":"IF(N716=0,_xlfn.XLOOKUP(F716,'Raw Data'!$I$4:$I$5000,'Raw Data'!$H$4:$H$5000,\"\",0),\"\")","v":""},{"$f":"IF(INDIRECT(M716) = \"\",\"\",INDIRECT(M716))","v":""},"n"]
["SUCMRUR2FINERG5_LESS1",null,null,null,{"$f":"_xlfn.XLOOKUP(F717,'Raw Data'!$I$4:$I$5000,'Raw Data'!$D$4:$D$5000,\"*** Mnemonic not found ***\",0)","v":"*** Mnemonic not found ***"},"SUCMRUR2FINERG5_LESS1__",null,"Input",null,null,232,"G","Input!G232",{"$f":"_xlfn.XLOOKUP(F717,'Raw Data'!$I$4:$I$5000,'Raw Data'!$E$4:$E$5000,100,0)","v":100},{"$f":"IF(N717=0,_xlfn.XLOOKUP(F717,'Raw Data'!$I$4:$I$5000,'Raw Data'!$H$4:$H$5000,\"\",0),\"\")","v":""},{"$f":"IF(INDIRECT(M717) = \"\",\"\",INDIRECT(M717))","v":""},"n"]
["SUCMRUR2FINERG6_LESS1",null,null,null,{"$f":"_xlfn.XLOOKUP(F718,'Raw Data'!$I$4:$I$5000,'Raw Data'!$D$4:$D$5000,\"*** Mnemonic not found ***\",0)","v":"*** Mnemonic not found ***"},"SUCMRUR2FINERG6_LESS1__",null,"Input",null,null,232,"H","Input!H232",{"$f":"_xlfn.XLOOKUP(F718,'Raw Data'!$I$4:$I$5000,'Raw Data'!$E$4:$E$5000,100,0)","v":100},{"$f":"IF(N718=0,_xlfn.XLOOKUP(F718,'Raw Data'!$I$4:$I$5000,'Raw Data'!$H$4:$H$5000,\"\",0),\"\")","v":""},{"$f":"IF(INDIRECT(M718) = \"\",\"\",INDIRECT(M718))","v":""},"n"]
["SUCMRUR2FINERG7_LESS1",null,null,null,{"$f":"_xlfn.XLOOKUP(F719,'Raw Data'!$I$4:$I$5000,'Raw Data'!$D$4:$D$5000,\"*** Mnemonic not found ***\",0)","v":"*** Mnemonic not found ***"},"SUCMRUR2FINERG7_LESS1__",null,"Input",null,null,232,"I",{"$f":"CONCATENATE(H719,\"!\",L719,K719)","v":"Input!I232"},{"$f":"_xlfn.XLOOKUP(F719,'Raw Data'!$I$4:$I$5000,'Raw Data'!$E$4:$E$5000,100,0)","v":100},{"$f":"IF(N719=0,_xlfn.XLOOKUP(F719,'Raw Data'!$I$4:$I$5000,'Raw Data'!$H$4:$H$5000,\"\",0),\"\")","v":""},{"$f":"IF(INDIRECT(M719) = \"\",\"\",INDIRECT(M719))","v":""},"n"]
["SUCMRUR2FINERG8_LESS1",null,null,null,{"$f":"_xlfn.XLOOKUP(F720,'Raw Data'!$I$4:$I$5000,'Raw Data'!$D$4:$D$5000,\"*** Mnemonic not found ***\",0)","v":"*** Mnemonic not found ***"},"SUCMRUR2FINERG8_LESS1__",null,"Input",null,null,232,"J","Input!J232",{"$f":"_xlfn.XLOOKUP(F720,'Raw Data'!$I$4:$I$5000,'Raw Data'!$E$4:$E$5000,100,0)","v":100},{"$f":"IF(N720=0,_xlfn.XLOOKUP(F720,'Raw Data'!$I$4:$I$5000,'Raw Data'!$H$4:$H$5000,\"\",0),\"\")","v":""},{"$f":"IF(INDIRECT(M720) = \"\",\"\",INDIRECT(M720))","v":""},"n"]
["SUCMRUR2FINERG9_LESS1",null,null,null,{"$f":"_xlfn.XLOOKUP(F721,'Raw Data'!$I$4:$I$5000,'Raw Data'!$D$4:$D$5000,\"*** Mnemonic not found ***\",0)","v":"*** Mnemonic not found ***"},"SUCMRUR2FINERG9_LESS1__",null,"Input",null,null,232,"K","Input!K232",{"$f":"_xlfn.XLOOKUP(F721,'Raw Data'!$I$4:$I$5000,'Raw Data'!$E$4:$E$5000,100,0)","v":100},{"$f":"IF(N721=0,_xlfn.XLOOKUP(F721,'Raw Data'!$I$4:$I$5000,'Raw Data'!$H$4:$H$5000,\"\",0),\"\")","v":""},{"$f":"IF(INDIRECT(M721) = \"\",\"\",INDIRECT(M721))","v":""},"n"]
["SUCMRUR2FINERG10_LESS1",null,null,null,{"$f":"_xlfn.XLOOKUP(F722,'Raw Data'!$I$4:$I$5000,'Raw Data'!$D$4:$D$5000,\"*** Mnemonic not found ***\",0)","v":"*** Mnemonic not found ***"},"SUCMRUR2FINERG10_LESS1__",null,"Input",null,null,232,"L","Input!L232",{"$f":"_xlfn.XLOOKUP(F722,'Raw Data'!$I$4:$I$5000,'Raw Data'!$E$4:$E$5000,100,0)","v":100},{"$f":"IF(N722=0,_xlfn.XLOOKUP(F722,'Raw Data'!$I$4:$I$5000,'Raw Data'!$H$4:$H$5000,\"\",0),\"\")","v":""},{"$f":"IF(INDIRECT(M722) = \"\",\"\",INDIRECT(M722))","v":""},"n"]
["SUCMRUR2FINERGNA_LESS1",null,null,null,{"$f":"_xlfn.XLOOKUP(F723,'Raw Data'!$I$4:$I$5000,'Raw Data'!$D$4:$D$5000,\"*** Mnemonic not found ***\",0)","v":"*** Mnemonic not found ***"},"SUCMRUR2FINERGNA_LESS1__",null,"Input",null,null,232,"M","Input!M232",{"$f":"_xlfn.XLOOKUP(F723,'Raw Data'!$I$4:$I$5000,'Raw Data'!$E$4:$E$5000,100,0)","v":100},{"$f":"IF(N723=0,_xlfn.XLOOKUP(F723,'Raw Data'!$I$4:$I$5000,'Raw Data'!$H$4:$H$5000,\"\",0),\"\")","v":""},{"$f":"IF(INDIRECT(M723) = \"\",\"\",INDIRECT(M723))","v":""},"n"]
["SUCMRUR2FINERG1_1TO5",null,null,null,{"$f":"_xlfn.XLOOKUP(F724,'Raw Data'!$I$4:$I$5000,'Raw Data'!$D$4:$D$5000,\"*** Mnemonic not found ***\",0)","v":"*** Mnemonic not found ***"},"SUCMRUR2FINERG1_1TO5__",null,"Input",null,null,{"$f":"K713+1","v":233},{"$f":"L713","v":"C"},"Input!C233",{"$f":"_xlfn.XLOOKUP(F724,'Raw Data'!$I$4:$I$5000,'Raw Data'!$E$4:$E$5000,100,0)","v":100},{"$f":"IF(N724=0,_xlfn.XLOOKUP(F724,'Raw Data'!$I$4:$I$5000,'Raw Data'!$H$4:$H$5000,\"\",0),\"\")","v":""},{"$f":"IF(INDIRECT(M724) = \"\",\"\",INDIRECT(M724))","v":""},"n"]
["SUCMRUR2FINERG2_1TO5",null,null,null,{"$f":"_xlfn.XLOOKUP(F725,'Raw Data'!$I$4:$I$5000,'Raw Data'!$D$4:$D$5000,\"*** Mnemonic not found ***\",0)","v":"*** Mnemonic not found ***"},"SUCMRUR2FINERG2_1TO5__",null,"Input",null,null,{"$f":"K714+1","v":233},{"$f":"L714","v":"D"},"Input!D233",{"$f":"_xlfn.XLOOKUP(F725,'Raw Data'!$I$4:$I$5000,'Raw Data'!$E$4:$E$5000,100,0)","v":100},{"$f":"IF(N725=0,_xlfn.XLOOKUP(F725,'Raw Data'!$I$4:$I$5000,'Raw Data'!$H$4:$H$5000,\"\",0),\"\")","v":""},{"$f":"IF(INDIRECT(M725) = \"\",\"\",INDIRECT(M725))","v":""},"n"]
["SUCMRUR2FINERG3_1TO5",null,null,null,{"$f":"_xlfn.XLOOKUP(F726,'Raw Data'!$I$4:$I$5000,'Raw Data'!$D$4:$D$5000,\"*** Mnemonic not found ***\",0)","v":"*** Mnemonic not found ***"},"SUCMRUR2FINERG3_1TO5__",null,"Input",null,null,233,"E","Input!E233",{"$f":"_xlfn.XLOOKUP(F726,'Raw Data'!$I$4:$I$5000,'Raw Data'!$E$4:$E$5000,100,0)","v":100},{"$f":"IF(N726=0,_xlfn.XLOOKUP(F726,'Raw Data'!$I$4:$I$5000,'Raw Data'!$H$4:$H$5000,\"\",0),\"\")","v":""},{"$f":"IF(INDIRECT(M726) = \"\",\"\",INDIRECT(M726))","v":""},"n"]
["SUCMRUR2FINERG4_1TO5",null,null,null,{"$f":"_xlfn.XLOOKUP(F727,'Raw Data'!$I$4:$I$5000,'Raw Data'!$D$4:$D$5000,\"*** Mnemonic not found ***\",0)","v":"*** Mnemonic not found ***"},"SUCMRUR2FINERG4_1TO5__",null,"Input",null,null,233,"F","Input!F233",{"$f":"_xlfn.XLOOKUP(F727,'Raw Data'!$I$4:$I$5000,'Raw Data'!$E$4:$E$5000,100,0)","v":100},{"$f":"IF(N727=0,_xlfn.XLOOKUP(F727,'Raw Data'!$I$4:$I$5000,'Raw Data'!$H$4:$H$5000,\"\",0),\"\")","v":""},{"$f":"IF(INDIRECT(M727) = \"\",\"\",INDIRECT(M727))","v":""},"n"]
["SUCMRUR2FINERG5_1TO5",null,null,null,{"$f":"_xlfn.XLOOKUP(F728,'Raw Data'!$I$4:$I$5000,'Raw Data'!$D$4:$D$5000,\"*** Mnemonic not found ***\",0)","v":"*** Mnemonic not found ***"},"SUCMRUR2FINERG5_1TO5__",null,"Input",null,null,233,"G","Input!G233",{"$f":"_xlfn.XLOOKUP(F728,'Raw Data'!$I$4:$I$5000,'Raw Data'!$E$4:$E$5000,100,0)","v":100},{"$f":"IF(N728=0,_xlfn.XLOOKUP(F728,'Raw Data'!$I$4:$I$5000,'Raw Data'!$H$4:$H$5000,\"\",0),\"\")","v":""},{"$f":"IF(INDIRECT(M728) = \"\",\"\",INDIRECT(M728))","v":""},"n"]
["SUCMRUR2FINERG6_1TO5",null,null,null,{"$f":"_xlfn.XLOOKUP(F729,'Raw Data'!$I$4:$I$5000,'Raw Data'!$D$4:$D$5000,\"*** Mnemonic not found ***\",0)","v":"*** Mnemonic not found ***"},"SUCMRUR2FINERG6_1TO5__",null,"Input",null,null,233,"H","Input!H233",{"$f":"_xlfn.XLOOKUP(F729,'Raw Data'!$I$4:$I$5000,'Raw Data'!$E$4:$E$5000,100,0)","v":100},{"$f":"IF(N729=0,_xlfn.XLOOKUP(F729,'Raw Data'!$I$4:$I$5000,'Raw Data'!$H$4:$H$5000,\"\",0),\"\")","v":""},{"$f":"IF(INDIRECT(M729) = \"\",\"\",INDIRECT(M729))","v":""},"n"]
["SUCMRUR2FINERG7_1TO5",null,null,null,{"$f":"_xlfn.XLOOKUP(F730,'Raw Data'!$I$4:$I$5000,'Raw Data'!$D$4:$D$5000,\"*** Mnemonic not found ***\",0)","v":"*** Mnemonic not found ***"},"SUCMRUR2FINERG7_1TO5__",null,"Input",null,null,233,"I","Input!I233",{"$f":"_xlfn.XLOOKUP(F730,'Raw Data'!$I$4:$I$5000,'Raw Data'!$E$4:$E$5000,100,0)","v":100},{"$f":"IF(N730=0,_xlfn.XLOOKUP(F730,'Raw Data'!$I$4:$I$5000,'Raw Data'!$H$4:$H$5000,\"\",0),\"\")","v":""},{"$f":"IF(INDIRECT(M730) = \"\",\"\",INDIRECT(M730))","v":""},"n"]
["SUCMRUR2FINERG8_1TO5",null,null,null,{"$f":"_xlfn.XLOOKUP(F731,'Raw Data'!$I$4:$I$5000,'Raw Data'!$D$4:$D$5000,\"*** Mnemonic not found ***\",0)","v":"*** Mnemonic not found ***"},"SUCMRUR2FINERG8_1TO5__",null,"Input",null,null,233,"J","Input!J233",{"$f":"_xlfn.XLOOKUP(F731,'Raw Data'!$I$4:$I$5000,'Raw Data'!$E$4:$E$5000,100,0)","v":100},{"$f":"IF(N731=0,_xlfn.XLOOKUP(F731,'Raw Data'!$I$4:$I$5000,'Raw Data'!$H$4:$H$5000,\"\",0),\"\")","v":""},{"$f":"IF(INDIRECT(M731) = \"\",\"\",INDIRECT(M731))","v":""},"n"]
["SUCMRUR2FINERG9_1TO5",null,null,null,{"$f":"_xlfn.XLOOKUP(F732,'Raw Data'!$I$4:$I$5000,'Raw Data'!$D$4:$D$5000,\"*** Mnemonic not found ***\",0)","v":"*** Mnemonic not found ***"},"SUCMRUR2FINERG9_1TO5__",null,"Input",null,null,233,"K","Input!K233",{"$f":"_xlfn.XLOOKUP(F732,'Raw Data'!$I$4:$I$5000,'Raw Data'!$E$4:$E$5000,100,0)","v":100},{"$f":"IF(N732=0,_xlfn.XLOOKUP(F732,'Raw Data'!$I$4:$I$5000,'Raw Data'!$H$4:$H$5000,\"\",0),\"\")","v":""},{"$f":"IF(INDIRECT(M732) = \"\",\"\",INDIRECT(M732))","v":""},"n"]
["SUCMRUR2FINERG10_1TO5",null,null,null,{"$f":"_xlfn.XLOOKUP(F733,'Raw Data'!$I$4:$I$5000,'Raw Data'!$D$4:$D$5000,\"*** Mnemonic not found ***\",0)","v":"*** Mnemonic not found ***"},"SUCMRUR2FINERG10_1TO5__",null,"Input",null,null,233,"L","Input!L233",{"$f":"_xlfn.XLOOKUP(F733,'Raw Data'!$I$4:$I$5000,'Raw Data'!$E$4:$E$5000,100,0)","v":100},{"$f":"IF(N733=0,_xlfn.XLOOKUP(F733,'Raw Data'!$I$4:$I$5000,'Raw Data'!$H$4:$H$5000,\"\",0),\"\")","v":""},{"$f":"IF(INDIRECT(M733) = \"\",\"\",INDIRECT(M733))","v":""},"n"]
["SUCMRUR2FINERGNA_1TO5",null,null,null,{"$f":"_xlfn.XLOOKUP(F734,'Raw Data'!$I$4:$I$5000,'Raw Data'!$D$4:$D$5000,\"*** Mnemonic not found ***\",0)","v":"*** Mnemonic not found ***"},"SUCMRUR2FINERGNA_1TO5__",null,"Input",null,null,233,"M","Input!M233",{"$f":"_xlfn.XLOOKUP(F734,'Raw Data'!$I$4:$I$5000,'Raw Data'!$E$4:$E$5000,100,0)","v":100},{"$f":"IF(N734=0,_xlfn.XLOOKUP(F734,'Raw Data'!$I$4:$I$5000,'Raw Data'!$H$4:$H$5000,\"\",0),\"\")","v":""},{"$f":"IF(INDIRECT(M734) = \"\",\"\",INDIRECT(M734))","v":""},"n"]
["SUCMRUR2FINERG1_5TO10",null,null,null,{"$f":"_xlfn.XLOOKUP(F735,'Raw Data'!$I$4:$I$5000,'Raw Data'!$D$4:$D$5000,\"*** Mnemonic not found ***\",0)","v":"*** Mnemonic not found ***"},"SUCMRUR2FINERG1_5TO10__",null,"Input",null,null,234,"C","Input!C234",{"$f":"_xlfn.XLOOKUP(F735,'Raw Data'!$I$4:$I$5000,'Raw Data'!$E$4:$E$5000,100,0)","v":100},{"$f":"IF(N735=0,_xlfn.XLOOKUP(F735,'Raw Data'!$I$4:$I$5000,'Raw Data'!$H$4:$H$5000,\"\",0),\"\")","v":""},{"$f":"IF(INDIRECT(M735) = \"\",\"\",INDIRECT(M735))","v":""},"n"]
["SUCMRUR2FINERG2_5TO10",null,null,null,{"$f":"_xlfn.XLOOKUP(F736,'Raw Data'!$I$4:$I$5000,'Raw Data'!$D$4:$D$5000,\"*** Mnemonic not found ***\",0)","v":"*** Mnemonic not found ***"},"SUCMRUR2FINERG2_5TO10__",null,"Input",null,null,234,"D","Input!D234",{"$f":"_xlfn.XLOOKUP(F736,'Raw Data'!$I$4:$I$5000,'Raw Data'!$E$4:$E$5000,100,0)","v":100},{"$f":"IF(N736=0,_xlfn.XLOOKUP(F736,'Raw Data'!$I$4:$I$5000,'Raw Data'!$H$4:$H$5000,\"\",0),\"\")","v":""},{"$f":"IF(INDIRECT(M736) = \"\",\"\",INDIRECT(M736))","v":""},"n"]
["SUCMRUR2FINERG3_5TO10",null,null,null,{"$f":"_xlfn.XLOOKUP(F737,'Raw Data'!$I$4:$I$5000,'Raw Data'!$D$4:$D$5000,\"*** Mnemonic not found ***\",0)","v":"*** Mnemonic not found ***"},"SUCMRUR2FINERG3_5TO10__",null,"Input",null,null,234,"E","Input!E234",{"$f":"_xlfn.XLOOKUP(F737,'Raw Data'!$I$4:$I$5000,'Raw Data'!$E$4:$E$5000,100,0)","v":100},{"$f":"IF(N737=0,_xlfn.XLOOKUP(F737,'Raw Data'!$I$4:$I$5000,'Raw Data'!$H$4:$H$5000,\"\",0),\"\")","v":""},{"$f":"IF(INDIRECT(M737) = \"\",\"\",INDIRECT(M737))","v":""},"n"]
["SUCMRUR2FINERG4_5TO10",null,null,null,{"$f":"_xlfn.XLOOKUP(F738,'Raw Data'!$I$4:$I$5000,'Raw Data'!$D$4:$D$5000,\"*** Mnemonic not found ***\",0)","v":"*** Mnemonic not found ***"},"SUCMRUR2FINERG4_5TO10__",null,"Input",null,null,234,"F","Input!F234",{"$f":"_xlfn.XLOOKUP(F738,'Raw Data'!$I$4:$I$5000,'Raw Data'!$E$4:$E$5000,100,0)","v":100},{"$f":"IF(N738=0,_xlfn.XLOOKUP(F738,'Raw Data'!$I$4:$I$5000,'Raw Data'!$H$4:$H$5000,\"\",0),\"\")","v":""},{"$f":"IF(INDIRECT(M738) = \"\",\"\",INDIRECT(M738))","v":""},"n"]
["SUCMRUR2FINERG5_5TO10",null,null,null,{"$f":"_xlfn.XLOOKUP(F739,'Raw Data'!$I$4:$I$5000,'Raw Data'!$D$4:$D$5000,\"*** Mnemonic not found ***\",0)","v":"*** Mnemonic not found ***"},"SUCMRUR2FINERG5_5TO10__",null,"Input",null,null,234,"G","Input!G234",{"$f":"_xlfn.XLOOKUP(F739,'Raw Data'!$I$4:$I$5000,'Raw Data'!$E$4:$E$5000,100,0)","v":100},{"$f":"IF(N739=0,_xlfn.XLOOKUP(F739,'Raw Data'!$I$4:$I$5000,'Raw Data'!$H$4:$H$5000,\"\",0),\"\")","v":""},{"$f":"IF(INDIRECT(M739) = \"\",\"\",INDIRECT(M739))","v":""},"n"]
["SUCMRUR2FINERG6_5TO10",null,null,null,{"$f":"_xlfn.XLOOKUP(F740,'Raw Data'!$I$4:$I$5000,'Raw Data'!$D$4:$D$5000,\"*** Mnemonic not found ***\",0)","v":"*** Mnemonic not found ***"},"SUCMRUR2FINERG6_5TO10__",null,"Input",null,null,234,"H","Input!H234",{"$f":"_xlfn.XLOOKUP(F740,'Raw Data'!$I$4:$I$5000,'Raw Data'!$E$4:$E$5000,100,0)","v":100},{"$f":"IF(N740=0,_xlfn.XLOOKUP(F740,'Raw Data'!$I$4:$I$5000,'Raw Data'!$H$4:$H$5000,\"\",0),\"\")","v":""},{"$f":"IF(INDIRECT(M740) = \"\",\"\",INDIRECT(M740))","v":""},"n"]
["SUCMRUR2FINERG7_5TO10",null,null,null,{"$f":"_xlfn.XLOOKUP(F741,'Raw Data'!$I$4:$I$5000,'Raw Data'!$D$4:$D$5000,\"*** Mnemonic not found ***\",0)","v":"*** Mnemonic not found ***"},"SUCMRUR2FINERG7_5TO10__",null,"Input",null,null,234,"I","Input!I234",{"$f":"_xlfn.XLOOKUP(F741,'Raw Data'!$I$4:$I$5000,'Raw Data'!$E$4:$E$5000,100,0)","v":100},{"$f":"IF(N741=0,_xlfn.XLOOKUP(F741,'Raw Data'!$I$4:$I$5000,'Raw Data'!$H$4:$H$5000,\"\",0),\"\")","v":""},{"$f":"IF(INDIRECT(M741) = \"\",\"\",INDIRECT(M741))","v":""},"n"]
["SUCMRUR2FINERG8_5TO10",null,null,null,{"$f":"_xlfn.XLOOKUP(F742,'Raw Data'!$I$4:$I$5000,'Raw Data'!$D$4:$D$5000,\"*** Mnemonic not found ***\",0)","v":"*** Mnemonic not found ***"},"SUCMRUR2FINERG8_5TO10__",null,"Input",null,null,234,"J","Input!J234",{"$f":"_xlfn.XLOOKUP(F742,'Raw Data'!$I$4:$I$5000,'Raw Data'!$E$4:$E$5000,100,0)","v":100},{"$f":"IF(N742=0,_xlfn.XLOOKUP(F742,'Raw Data'!$I$4:$I$5000,'Raw Data'!$H$4:$H$5000,\"\",0),\"\")","v":""},{"$f":"IF(INDIRECT(M742) = \"\",\"\",INDIRECT(M742))","v":""},"n"]
["SUCMRUR2FINERG9_5TO10",null,null,null,{"$f":"_xlfn.XLOOKUP(F743,'Raw Data'!$I$4:$I$5000,'Raw Data'!$D$4:$D$5000,\"*** Mnemonic not found ***\",0)","v":"*** Mnemonic not found ***"},"SUCMRUR2FINERG9_5TO10__",null,"Input",null,null,234,"K","Input!K234",{"$f":"_xlfn.XLOOKUP(F743,'Raw Data'!$I$4:$I$5000,'Raw Data'!$E$4:$E$5000,100,0)","v":100},{"$f":"IF(N743=0,_xlfn.XLOOKUP(F743,'Raw Data'!$I$4:$I$5000,'Raw Data'!$H$4:$H$5000,\"\",0),\"\")","v":""},{"$f":"IF(INDIRECT(M743) = \"\",\"\",INDIRECT(M743))","v":""},"n"]
["SUCMRUR2FINERG10_5TO10",null,null,null,{"$f":"_xlfn.XLOOKUP(F744,'Raw Data'!$I$4:$I$5000,'Raw Data'!$D$4:$D$5000,\"*** Mnemonic not found ***\",0)","v":"*** Mnemonic not found ***"},"SUCMRUR2FINERG10_5TO10__",null,"Input",null,null,234,"L","Input!L234",{"$f":"_xlfn.XLOOKUP(F744,'Raw Data'!$I$4:$I$5000,'Raw Data'!$E$4:$E$5000,100,0)","v":100},{"$f":"IF(N744=0,_xlfn.XLOOKUP(F744,'Raw Data'!$I$4:$I$5000,'Raw Data'!$H$4:$H$5000,\"\",0),\"\")","v":""},{"$f":"IF(INDIRECT(M744) = \"\",\"\",INDIRECT(M744))","v":""},"n"]
["SUCMRUR2FINERGNA_5TO10",null,null,null,{"$f":"_xlfn.XLOOKUP(F745,'Raw Data'!$I$4:$I$5000,'Raw Data'!$D$4:$D$5000,\"*** Mnemonic not found ***\",0)","v":"*** Mnemonic not found ***"},"SUCMRUR2FINERGNA_5TO10__",null,"Input",null,null,234,"M","Input!M234",{"$f":"_xlfn.XLOOKUP(F745,'Raw Data'!$I$4:$I$5000,'Raw Data'!$E$4:$E$5000,100,0)","v":100},{"$f":"IF(N745=0,_xlfn.XLOOKUP(F745,'Raw Data'!$I$4:$I$5000,'Raw Data'!$H$4:$H$5000,\"\",0),\"\")","v":""},{"$f":"IF(INDIRECT(M745) = \"\",\"\",INDIRECT(M745))","v":""},"n"]
["SUCMRUR2FINERG1_10TO20",null,null,null,{"$f":"_xlfn.XLOOKUP(F746,'Raw Data'!$I$4:$I$5000,'Raw Data'!$D$4:$D$5000,\"*** Mnemonic not found ***\",0)","v":"*** Mnemonic not found ***"},"SUCMRUR2FINERG1_10TO20__",null,"Input",null,null,235,"C","Input!C235",{"$f":"_xlfn.XLOOKUP(F746,'Raw Data'!$I$4:$I$5000,'Raw Data'!$E$4:$E$5000,100,0)","v":100},{"$f":"IF(N746=0,_xlfn.XLOOKUP(F746,'Raw Data'!$I$4:$I$5000,'Raw Data'!$H$4:$H$5000,\"\",0),\"\")","v":""},{"$f":"IF(INDIRECT(M746) = \"\",\"\",INDIRECT(M746))","v":""},"n"]
["SUCMRUR2FINERG2_10TO20",null,null,null,{"$f":"_xlfn.XLOOKUP(F747,'Raw Data'!$I$4:$I$5000,'Raw Data'!$D$4:$D$5000,\"*** Mnemonic not found ***\",0)","v":"*** Mnemonic not found ***"},"SUCMRUR2FINERG2_10TO20__",null,"Input",null,null,235,"D","Input!D235",{"$f":"_xlfn.XLOOKUP(F747,'Raw Data'!$I$4:$I$5000,'Raw Data'!$E$4:$E$5000,100,0)","v":100},{"$f":"IF(N747=0,_xlfn.XLOOKUP(F747,'Raw Data'!$I$4:$I$5000,'Raw Data'!$H$4:$H$5000,\"\",0),\"\")","v":""},{"$f":"IF(INDIRECT(M747) = \"\",\"\",INDIRECT(M747))","v":""},"n"]
["SUCMRUR2FINERG3_10TO20",null,null,null,{"$f":"_xlfn.XLOOKUP(F748,'Raw Data'!$I$4:$I$5000,'Raw Data'!$D$4:$D$5000,\"*** Mnemonic not found ***\",0)","v":"*** Mnemonic not found ***"},"SUCMRUR2FINERG3_10TO20__",null,"Input",null,null,235,"E","Input!E235",{"$f":"_xlfn.XLOOKUP(F748,'Raw Data'!$I$4:$I$5000,'Raw Data'!$E$4:$E$5000,100,0)","v":100},{"$f":"IF(N748=0,_xlfn.XLOOKUP(F748,'Raw Data'!$I$4:$I$5000,'Raw Data'!$H$4:$H$5000,\"\",0),\"\")","v":""},{"$f":"IF(INDIRECT(M748) = \"\",\"\",INDIRECT(M748))","v":""},"n"]
["SUCMRUR2FINERG4_10TO20",null,null,null,{"$f":"_xlfn.XLOOKUP(F749,'Raw Data'!$I$4:$I$5000,'Raw Data'!$D$4:$D$5000,\"*** Mnemonic not found ***\",0)","v":"*** Mnemonic not found ***"},"SUCMRUR2FINERG4_10TO20__",null,"Input",null,null,235,"F","Input!F235",{"$f":"_xlfn.XLOOKUP(F749,'Raw Data'!$I$4:$I$5000,'Raw Data'!$E$4:$E$5000,100,0)","v":100},{"$f":"IF(N749=0,_xlfn.XLOOKUP(F749,'Raw Data'!$I$4:$I$5000,'Raw Data'!$H$4:$H$5000,\"\",0),\"\")","v":""},{"$f":"IF(INDIRECT(M749) = \"\",\"\",INDIRECT(M749))","v":""},"n"]
["SUCMRUR2FINERG5_10TO20",null,null,null,{"$f":"_xlfn.XLOOKUP(F750,'Raw Data'!$I$4:$I$5000,'Raw Data'!$D$4:$D$5000,\"*** Mnemonic not found ***\",0)","v":"*** Mnemonic not found ***"},"SUCMRUR2FINERG5_10TO20__",null,"Input",null,null,235,"G","Input!G235",{"$f":"_xlfn.XLOOKUP(F750,'Raw Data'!$I$4:$I$5000,'Raw Data'!$E$4:$E$5000,100,0)","v":100},{"$f":"IF(N750=0,_xlfn.XLOOKUP(F750,'Raw Data'!$I$4:$I$5000,'Raw Data'!$H$4:$H$5000,\"\",0),\"\")","v":""},{"$f":"IF(INDIRECT(M750) = \"\",\"\",INDIRECT(M750))","v":""},"n"]
["SUCMRUR2FINERG6_10TO20",null,null,null,{"$f":"_xlfn.XLOOKUP(F751,'Raw Data'!$I$4:$I$5000,'Raw Data'!$D$4:$D$5000,\"*** Mnemonic not found ***\",0)","v":"*** Mnemonic not found ***"},"SUCMRUR2FINERG6_10TO20__",null,"Input",null,null,235,"H","Input!H235",{"$f":"_xlfn.XLOOKUP(F751,'Raw Data'!$I$4:$I$5000,'Raw Data'!$E$4:$E$5000,100,0)","v":100},{"$f":"IF(N751=0,_xlfn.XLOOKUP(F751,'Raw Data'!$I$4:$I$5000,'Raw Data'!$H$4:$H$5000,\"\",0),\"\")","v":""},{"$f":"IF(INDIRECT(M751) = \"\",\"\",INDIRECT(M751))","v":""},"n"]
["SUCMRUR2FINERG7_10TO20",null,null,null,{"$f":"_xlfn.XLOOKUP(F752,'Raw Data'!$I$4:$I$5000,'Raw Data'!$D$4:$D$5000,\"*** Mnemonic not found ***\",0)","v":"*** Mnemonic not found ***"},"SUCMRUR2FINERG7_10TO20__",null,"Input",null,null,235,"I","Input!I235",{"$f":"_xlfn.XLOOKUP(F752,'Raw Data'!$I$4:$I$5000,'Raw Data'!$E$4:$E$5000,100,0)","v":100},{"$f":"IF(N752=0,_xlfn.XLOOKUP(F752,'Raw Data'!$I$4:$I$5000,'Raw Data'!$H$4:$H$5000,\"\",0),\"\")","v":""},{"$f":"IF(INDIRECT(M752) = \"\",\"\",INDIRECT(M752))","v":""},"n"]
["SUCMRUR2FINERG8_10TO20",null,null,null,{"$f":"_xlfn.XLOOKUP(F753,'Raw Data'!$I$4:$I$5000,'Raw Data'!$D$4:$D$5000,\"*** Mnemonic not found ***\",0)","v":"*** Mnemonic not found ***"},"SUCMRUR2FINERG8_10TO20__",null,"Input",null,null,235,"J","Input!J235",{"$f":"_xlfn.XLOOKUP(F753,'Raw Data'!$I$4:$I$5000,'Raw Data'!$E$4:$E$5000,100,0)","v":100},{"$f":"IF(N753=0,_xlfn.XLOOKUP(F753,'Raw Data'!$I$4:$I$5000,'Raw Data'!$H$4:$H$5000,\"\",0),\"\")","v":""},{"$f":"IF(INDIRECT(M753) = \"\",\"\",INDIRECT(M753))","v":""},"n"]
["SUCMRUR2FINERG9_10TO20",null,null,null,{"$f":"_xlfn.XLOOKUP(F754,'Raw Data'!$I$4:$I$5000,'Raw Data'!$D$4:$D$5000,\"*** Mnemonic not found ***\",0)","v":"*** Mnemonic not found ***"},"SUCMRUR2FINERG9_10TO20__",null,"Input",null,null,235,"K","Input!K235",{"$f":"_xlfn.XLOOKUP(F754,'Raw Data'!$I$4:$I$5000,'Raw Data'!$E$4:$E$5000,100,0)","v":100},{"$f":"IF(N754=0,_xlfn.XLOOKUP(F754,'Raw Data'!$I$4:$I$5000,'Raw Data'!$H$4:$H$5000,\"\",0),\"\")","v":""},{"$f":"IF(INDIRECT(M754) = \"\",\"\",INDIRECT(M754))","v":""},"n"]
["SUCMRUR2FINERG10_10TO20",null,null,null,{"$f":"_xlfn.XLOOKUP(F755,'Raw Data'!$I$4:$I$5000,'Raw Data'!$D$4:$D$5000,\"*** Mnemonic not found ***\",0)","v":"*** Mnemonic not found ***"},"SUCMRUR2FINERG10_10TO20__",null,"Input",null,null,235,"L","Input!L235",{"$f":"_xlfn.XLOOKUP(F755,'Raw Data'!$I$4:$I$5000,'Raw Data'!$E$4:$E$5000,100,0)","v":100},{"$f":"IF(N755=0,_xlfn.XLOOKUP(F755,'Raw Data'!$I$4:$I$5000,'Raw Data'!$H$4:$H$5000,\"\",0),\"\")","v":""},{"$f":"IF(INDIRECT(M755) = \"\",\"\",INDIRECT(M755))","v":""},"n"]
["SUCMRUR2FINERGNA_10TO20",null,null,null,{"$f":"_xlfn.XLOOKUP(F756,'Raw Data'!$I$4:$I$5000,'Raw Data'!$D$4:$D$5000,\"*** Mnemonic not found ***\",0)","v":"*** Mnemonic not found ***"},"SUCMRUR2FINERGNA_10TO20__",null,"Input",null,null,235,"M","Input!M235",{"$f":"_xlfn.XLOOKUP(F756,'Raw Data'!$I$4:$I$5000,'Raw Data'!$E$4:$E$5000,100,0)","v":100},{"$f":"IF(N756=0,_xlfn.XLOOKUP(F756,'Raw Data'!$I$4:$I$5000,'Raw Data'!$H$4:$H$5000,\"\",0),\"\")","v":""},{"$f":"IF(INDIRECT(M756) = \"\",\"\",INDIRECT(M756))","v":""},"n"]
["SUCMRUR2FINERG1_GRTR20",null,null,null,{"$f":"_xlfn.XLOOKUP(F757,'Raw Data'!$I$4:$I$5000,'Raw Data'!$D$4:$D$5000,\"*** Mnemonic not found ***\",0)","v":"*** Mnemonic not found ***"},"SUCMRUR2FINERG1_GRTR20__",null,"Input",null,null,236,"C","Input!C236",{"$f":"_xlfn.XLOOKUP(F757,'Raw Data'!$I$4:$I$5000,'Raw Data'!$E$4:$E$5000,100,0)","v":100},{"$f":"IF(N757=0,_xlfn.XLOOKUP(F757,'Raw Data'!$I$4:$I$5000,'Raw Data'!$H$4:$H$5000,\"\",0),\"\")","v":""},{"$f":"IF(INDIRECT(M757) = \"\",\"\",INDIRECT(M757))","v":""},"n"]
["SUCMRUR2FINERG2_GRTR20",null,null,null,{"$f":"_xlfn.XLOOKUP(F758,'Raw Data'!$I$4:$I$5000,'Raw Data'!$D$4:$D$5000,\"*** Mnemonic not found ***\",0)","v":"*** Mnemonic not found ***"},"SUCMRUR2FINERG2_GRTR20__",null,"Input",null,null,236,"D","Input!D236",{"$f":"_xlfn.XLOOKUP(F758,'Raw Data'!$I$4:$I$5000,'Raw Data'!$E$4:$E$5000,100,0)","v":100},{"$f":"IF(N758=0,_xlfn.XLOOKUP(F758,'Raw Data'!$I$4:$I$5000,'Raw Data'!$H$4:$H$5000,\"\",0),\"\")","v":""},{"$f":"IF(INDIRECT(M758) = \"\",\"\",INDIRECT(M758))","v":""},"n"]
["SUCMRUR2FINERG3_GRTR20",null,null,null,{"$f":"_xlfn.XLOOKUP(F759,'Raw Data'!$I$4:$I$5000,'Raw Data'!$D$4:$D$5000,\"*** Mnemonic not found ***\",0)","v":"*** Mnemonic not found ***"},"SUCMRUR2FINERG3_GRTR20__",null,"Input",null,null,236,"E","Input!E236",{"$f":"_xlfn.XLOOKUP(F759,'Raw Data'!$I$4:$I$5000,'Raw Data'!$E$4:$E$5000,100,0)","v":100},{"$f":"IF(N759=0,_xlfn.XLOOKUP(F759,'Raw Data'!$I$4:$I$5000,'Raw Data'!$H$4:$H$5000,\"\",0),\"\")","v":""},{"$f":"IF(INDIRECT(M759) = \"\",\"\",INDIRECT(M759))","v":""},"n"]
["SUCMRUR2FINERG4_GRTR20",null,null,null,{"$f":"_xlfn.XLOOKUP(F760,'Raw Data'!$I$4:$I$5000,'Raw Data'!$D$4:$D$5000,\"*** Mnemonic not found ***\",0)","v":"*** Mnemonic not found ***"},"SUCMRUR2FINERG4_GRTR20__",null,"Input",null,null,236,"F","Input!F236",{"$f":"_xlfn.XLOOKUP(F760,'Raw Data'!$I$4:$I$5000,'Raw Data'!$E$4:$E$5000,100,0)","v":100},{"$f":"IF(N760=0,_xlfn.XLOOKUP(F760,'Raw Data'!$I$4:$I$5000,'Raw Data'!$H$4:$H$5000,\"\",0),\"\")","v":""},{"$f":"IF(INDIRECT(M760) = \"\",\"\",INDIRECT(M760))","v":""},"n"]
["SUCMRUR2FINERG5_GRTR20",null,null,null,{"$f":"_xlfn.XLOOKUP(F761,'Raw Data'!$I$4:$I$5000,'Raw Data'!$D$4:$D$5000,\"*** Mnemonic not found ***\",0)","v":"*** Mnemonic not found ***"},"SUCMRUR2FINERG5_GRTR20__",null,"Input",null,null,236,"G","Input!G236",{"$f":"_xlfn.XLOOKUP(F761,'Raw Data'!$I$4:$I$5000,'Raw Data'!$E$4:$E$5000,100,0)","v":100},{"$f":"IF(N761=0,_xlfn.XLOOKUP(F761,'Raw Data'!$I$4:$I$5000,'Raw Data'!$H$4:$H$5000,\"\",0),\"\")","v":""},{"$f":"IF(INDIRECT(M761) = \"\",\"\",INDIRECT(M761))","v":""},"n"]
["SUCMRUR2FINERG6_GRTR20",null,null,null,{"$f":"_xlfn.XLOOKUP(F762,'Raw Data'!$I$4:$I$5000,'Raw Data'!$D$4:$D$5000,\"*** Mnemonic not found ***\",0)","v":"*** Mnemonic not found ***"},"SUCMRUR2FINERG6_GRTR20__",null,"Input",null,null,236,"H","Input!H236",{"$f":"_xlfn.XLOOKUP(F762,'Raw Data'!$I$4:$I$5000,'Raw Data'!$E$4:$E$5000,100,0)","v":100},{"$f":"IF(N762=0,_xlfn.XLOOKUP(F762,'Raw Data'!$I$4:$I$5000,'Raw Data'!$H$4:$H$5000,\"\",0),\"\")","v":""},{"$f":"IF(INDIRECT(M762) = \"\",\"\",INDIRECT(M762))","v":""},"n"]
["SUCMRUR2FINERG7_GRTR20",null,null,null,{"$f":"_xlfn.XLOOKUP(F763,'Raw Data'!$I$4:$I$5000,'Raw Data'!$D$4:$D$5000,\"*** Mnemonic not found ***\",0)","v":"*** Mnemonic not found ***"},"SUCMRUR2FINERG7_GRTR20__",null,"Input",null,null,236,"I","Input!I236",{"$f":"_xlfn.XLOOKUP(F763,'Raw Data'!$I$4:$I$5000,'Raw Data'!$E$4:$E$5000,100,0)","v":100},{"$f":"IF(N763=0,_xlfn.XLOOKUP(F763,'Raw Data'!$I$4:$I$5000,'Raw Data'!$H$4:$H$5000,\"\",0),\"\")","v":""},{"$f":"IF(INDIRECT(M763) = \"\",\"\",INDIRECT(M763))","v":""},"n"]
["SUCMRUR2FINERG8_GRTR20",null,null,null,{"$f":"_xlfn.XLOOKUP(F764,'Raw Data'!$I$4:$I$5000,'Raw Data'!$D$4:$D$5000,\"*** Mnemonic not found ***\",0)","v":"*** Mnemonic not found ***"},"SUCMRUR2FINERG8_GRTR20__",null,"Input",null,null,236,"J","Input!J236",{"$f":"_xlfn.XLOOKUP(F764,'Raw Data'!$I$4:$I$5000,'Raw Data'!$E$4:$E$5000,100,0)","v":100},{"$f":"IF(N764=0,_xlfn.XLOOKUP(F764,'Raw Data'!$I$4:$I$5000,'Raw Data'!$H$4:$H$5000,\"\",0),\"\")","v":""},{"$f":"IF(INDIRECT(M764) = \"\",\"\",INDIRECT(M764))","v":""},"n"]
["SUCMRUR2FINERG9_GRTR20",null,null,null,{"$f":"_xlfn.XLOOKUP(F765,'Raw Data'!$I$4:$I$5000,'Raw Data'!$D$4:$D$5000,\"*** Mnemonic not found ***\",0)","v":"*** Mnemonic not found ***"},"SUCMRUR2FINERG9_GRTR20__",null,"Input",null,null,236,"K","Input!K236",{"$f":"_xlfn.XLOOKUP(F765,'Raw Data'!$I$4:$I$5000,'Raw Data'!$E$4:$E$5000,100,0)","v":100},{"$f":"IF(N765=0,_xlfn.XLOOKUP(F765,'Raw Data'!$I$4:$I$5000,'Raw Data'!$H$4:$H$5000,\"\",0),\"\")","v":""},{"$f":"IF(INDIRECT(M765) = \"\",\"\",INDIRECT(M765))","v":""},"n"]
["SUCMRUR2FINERG10_GRTR20",null,null,null,{"$f":"_xlfn.XLOOKUP(F766,'Raw Data'!$I$4:$I$5000,'Raw Data'!$D$4:$D$5000,\"*** Mnemonic not found ***\",0)","v":"*** Mnemonic not found ***"},"SUCMRUR2FINERG10_GRTR20__",null,"Input",null,null,236,"L","Input!L236",{"$f":"_xlfn.XLOOKUP(F766,'Raw Data'!$I$4:$I$5000,'Raw Data'!$E$4:$E$5000,100,0)","v":100},{"$f":"IF(N766=0,_xlfn.XLOOKUP(F766,'Raw Data'!$I$4:$I$5000,'Raw Data'!$H$4:$H$5000,\"\",0),\"\")","v":""},{"$f":"IF(INDIRECT(M766) = \"\",\"\",INDIRECT(M766))","v":""},"n"]
["SUCMRUR2FINERGNA_GRTR20",null,null,null,{"$f":"_xlfn.XLOOKUP(F767,'Raw Data'!$I$4:$I$5000,'Raw Data'!$D$4:$D$5000,\"*** Mnemonic not found ***\",0)","v":"*** Mnemonic not found ***"},"SUCMRUR2FINERGNA_GRTR20__",null,"Input",null,null,236,"M","Input!M236",{"$f":"_xlfn.XLOOKUP(F767,'Raw Data'!$I$4:$I$5000,'Raw Data'!$E$4:$E$5000,100,0)","v":100},{"$f":"IF(N767=0,_xlfn.XLOOKUP(F767,'Raw Data'!$I$4:$I$5000,'Raw Data'!$H$4:$H$5000,\"\",0),\"\")","v":""},{"$f":"IF(INDIRECT(M767) = \"\",\"\",INDIRECT(M767))","v":""},"n"]
["SUCMRUR3FINERG1_LESS1",null,null,null,{"$f":"_xlfn.XLOOKUP(F768,'Raw Data'!$I$4:$I$5000,'Raw Data'!$D$4:$D$5000,\"*** Mnemonic not found ***\",0)","v":"*** Mnemonic not found ***"},"SUCMRUR3FINERG1_LESS1__",null,"Input",{"$f":"ROW(section_bonds_sp_unrated_step_4)","v":187},{"$f":"J713+10","v":55},{"$f":"I768+J768","v":242},{"$f":"L757","v":"C"},"Input!C242",{"$f":"_xlfn.XLOOKUP(F768,'Raw Data'!$I$4:$I$5000,'Raw Data'!$E$4:$E$5000,100,0)","v":100},{"$f":"IF(N768=0,_xlfn.XLOOKUP(F768,'Raw Data'!$I$4:$I$5000,'Raw Data'!$H$4:$H$5000,\"\",0),\"\")","v":""},{"$f":"IF(INDIRECT(M768) = \"\",\"\",INDIRECT(M768))","v":""},"n"]
["SUCMRUR3FINERG2_LESS1",null,null,null,{"$f":"_xlfn.XLOOKUP(F769,'Raw Data'!$I$4:$I$5000,'Raw Data'!$D$4:$D$5000,\"*** Mnemonic not found ***\",0)","v":"*** Mnemonic not found ***"},"SUCMRUR3FINERG2_LESS1__",null,"Input",null,null,{"$f":"K768","v":242},{"$f":"L758","v":"D"},"Input!D242",{"$f":"_xlfn.XLOOKUP(F769,'Raw Data'!$I$4:$I$5000,'Raw Data'!$E$4:$E$5000,100,0)","v":100},{"$f":"IF(N769=0,_xlfn.XLOOKUP(F769,'Raw Data'!$I$4:$I$5000,'Raw Data'!$H$4:$H$5000,\"\",0),\"\")","v":""},{"$f":"IF(INDIRECT(M769) = \"\",\"\",INDIRECT(M769))","v":""},"n"]
["SUCMRUR3FINERG3_LESS1",null,null,null,{"$f":"_xlfn.XLOOKUP(F770,'Raw Data'!$I$4:$I$5000,'Raw Data'!$D$4:$D$5000,\"*** Mnemonic not found ***\",0)","v":"*** Mnemonic not found ***"},"SUCMRUR3FINERG3_LESS1__",null,"Input",null,null,{"$f":"K769","v":242},"E","Input!E242",{"$f":"_xlfn.XLOOKUP(F770,'Raw Data'!$I$4:$I$5000,'Raw Data'!$E$4:$E$5000,100,0)","v":100},{"$f":"IF(N770=0,_xlfn.XLOOKUP(F770,'Raw Data'!$I$4:$I$5000,'Raw Data'!$H$4:$H$5000,\"\",0),\"\")","v":""},{"$f":"IF(INDIRECT(M770) = \"\",\"\",INDIRECT(M770))","v":""},"n"]
["SUCMRUR3FINERG4_LESS1",null,null,null,{"$f":"_xlfn.XLOOKUP(F771,'Raw Data'!$I$4:$I$5000,'Raw Data'!$D$4:$D$5000,\"*** Mnemonic not found ***\",0)","v":"*** Mnemonic not found ***"},"SUCMRUR3FINERG4_LESS1__",null,"Input",null,null,242,"F","Input!F242",{"$f":"_xlfn.XLOOKUP(F771,'Raw Data'!$I$4:$I$5000,'Raw Data'!$E$4:$E$5000,100,0)","v":100},{"$f":"IF(N771=0,_xlfn.XLOOKUP(F771,'Raw Data'!$I$4:$I$5000,'Raw Data'!$H$4:$H$5000,\"\",0),\"\")","v":""},{"$f":"IF(INDIRECT(M771) = \"\",\"\",INDIRECT(M771))","v":""},"n"]
["SUCMRUR3FINERG5_LESS1",null,null,null,{"$f":"_xlfn.XLOOKUP(F772,'Raw Data'!$I$4:$I$5000,'Raw Data'!$D$4:$D$5000,\"*** Mnemonic not found ***\",0)","v":"*** Mnemonic not found ***"},"SUCMRUR3FINERG5_LESS1__",null,"Input",null,null,242,"G","Input!G242",{"$f":"_xlfn.XLOOKUP(F772,'Raw Data'!$I$4:$I$5000,'Raw Data'!$E$4:$E$5000,100,0)","v":100},{"$f":"IF(N772=0,_xlfn.XLOOKUP(F772,'Raw Data'!$I$4:$I$5000,'Raw Data'!$H$4:$H$5000,\"\",0),\"\")","v":""},{"$f":"IF(INDIRECT(M772) = \"\",\"\",INDIRECT(M772))","v":""},"n"]
["SUCMRUR3FINERG6_LESS1",null,null,null,{"$f":"_xlfn.XLOOKUP(F773,'Raw Data'!$I$4:$I$5000,'Raw Data'!$D$4:$D$5000,\"*** Mnemonic not found ***\",0)","v":"*** Mnemonic not found ***"},{"$f":"CONCATENATE(A773,\"_\",B773,\"_\",D773)","v":"SUCMRUR3FINERG6_LESS1__"},null,"Input",null,null,242,"H","Input!H242",{"$f":"_xlfn.XLOOKUP(F773,'Raw Data'!$I$4:$I$5000,'Raw Data'!$E$4:$E$5000,100,0)","v":100},{"$f":"IF(N773=0,_xlfn.XLOOKUP(F773,'Raw Data'!$I$4:$I$5000,'Raw Data'!$H$4:$H$5000,\"\",0),\"\")","v":""},{"$f":"IF(INDIRECT(M773) = \"\",\"\",INDIRECT(M773))","v":""},"n"]
["SUCMRUR3FINERG7_LESS1",null,null,null,{"$f":"_xlfn.XLOOKUP(F774,'Raw Data'!$I$4:$I$5000,'Raw Data'!$D$4:$D$5000,\"*** Mnemonic not found ***\",0)","v":"*** Mnemonic not found ***"},"SUCMRUR3FINERG7_LESS1__",null,"Input",null,null,242,"I","Input!I242",{"$f":"_xlfn.XLOOKUP(F774,'Raw Data'!$I$4:$I$5000,'Raw Data'!$E$4:$E$5000,100,0)","v":100},{"$f":"IF(N774=0,_xlfn.XLOOKUP(F774,'Raw Data'!$I$4:$I$5000,'Raw Data'!$H$4:$H$5000,\"\",0),\"\")","v":""},{"$f":"IF(INDIRECT(M774) = \"\",\"\",INDIRECT(M774))","v":""},"n"]
["SUCMRUR3FINERG8_LESS1",null,null,null,{"$f":"_xlfn.XLOOKUP(F775,'Raw Data'!$I$4:$I$5000,'Raw Data'!$D$4:$D$5000,\"*** Mnemonic not found ***\",0)","v":"*** Mnemonic not found ***"},"SUCMRUR3FINERG8_LESS1__",null,"Input",null,null,242,"J","Input!J242",{"$f":"_xlfn.XLOOKUP(F775,'Raw Data'!$I$4:$I$5000,'Raw Data'!$E$4:$E$5000,100,0)","v":100},{"$f":"IF(N775=0,_xlfn.XLOOKUP(F775,'Raw Data'!$I$4:$I$5000,'Raw Data'!$H$4:$H$5000,\"\",0),\"\")","v":""},{"$f":"IF(INDIRECT(M775) = \"\",\"\",INDIRECT(M775))","v":""},"n"]
["SUCMRUR3FINERG9_LESS1",null,null,null,{"$f":"_xlfn.XLOOKUP(F776,'Raw Data'!$I$4:$I$5000,'Raw Data'!$D$4:$D$5000,\"*** Mnemonic not found ***\",0)","v":"*** Mnemonic not found ***"},"SUCMRUR3FINERG9_LESS1__",null,"Input",null,null,242,"K","Input!K242",{"$f":"_xlfn.XLOOKUP(F776,'Raw Data'!$I$4:$I$5000,'Raw Data'!$E$4:$E$5000,100,0)","v":100},{"$f":"IF(N776=0,_xlfn.XLOOKUP(F776,'Raw Data'!$I$4:$I$5000,'Raw Data'!$H$4:$H$5000,\"\",0),\"\")","v":""},{"$f":"IF(INDIRECT(M776) = \"\",\"\",INDIRECT(M776))","v":""},"n"]
["SUCMRUR3FINERG10_LESS1",null,null,null,{"$f":"_xlfn.XLOOKUP(F777,'Raw Data'!$I$4:$I$5000,'Raw Data'!$D$4:$D$5000,\"*** Mnemonic not found ***\",0)","v":"*** Mnemonic not found ***"},"SUCMRUR3FINERG10_LESS1__",null,"Input",null,null,242,"L","Input!L242",{"$f":"_xlfn.XLOOKUP(F777,'Raw Data'!$I$4:$I$5000,'Raw Data'!$E$4:$E$5000,100,0)","v":100},{"$f":"IF(N777=0,_xlfn.XLOOKUP(F777,'Raw Data'!$I$4:$I$5000,'Raw Data'!$H$4:$H$5000,\"\",0),\"\")","v":""},{"$f":"IF(INDIRECT(M777) = \"\",\"\",INDIRECT(M777))","v":""},"n"]
["SUCMRUR3FINERGNA_LESS1",null,null,null,{"$f":"_xlfn.XLOOKUP(F778,'Raw Data'!$I$4:$I$5000,'Raw Data'!$D$4:$D$5000,\"*** Mnemonic not found ***\",0)","v":"*** Mnemonic not found ***"},"SUCMRUR3FINERGNA_LESS1__",null,"Input",null,null,242,"M","Input!M242",{"$f":"_xlfn.XLOOKUP(F778,'Raw Data'!$I$4:$I$5000,'Raw Data'!$E$4:$E$5000,100,0)","v":100},{"$f":"IF(N778=0,_xlfn.XLOOKUP(F778,'Raw Data'!$I$4:$I$5000,'Raw Data'!$H$4:$H$5000,\"\",0),\"\")","v":""},{"$f":"IF(INDIRECT(M778) = \"\",\"\",INDIRECT(M778))","v":""},"n"]
["SUCMRUR3FINERG1_1TO5",null,null,null,{"$f":"_xlfn.XLOOKUP(F779,'Raw Data'!$I$4:$I$5000,'Raw Data'!$D$4:$D$5000,\"*** Mnemonic not found ***\",0)","v":"*** Mnemonic not found ***"},"SUCMRUR3FINERG1_1TO5__",null,"Input",null,null,{"$f":"K768+1","v":243},{"$f":"L768","v":"C"},"Input!C243",{"$f":"_xlfn.XLOOKUP(F779,'Raw Data'!$I$4:$I$5000,'Raw Data'!$E$4:$E$5000,100,0)","v":100},{"$f":"IF(N779=0,_xlfn.XLOOKUP(F779,'Raw Data'!$I$4:$I$5000,'Raw Data'!$H$4:$H$5000,\"\",0),\"\")","v":""},{"$f":"IF(INDIRECT(M779) = \"\",\"\",INDIRECT(M779))","v":""},"n"]
["SUCMRUR3FINERG2_1TO5",null,null,null,{"$f":"_xlfn.XLOOKUP(F780,'Raw Data'!$I$4:$I$5000,'Raw Data'!$D$4:$D$5000,\"*** Mnemonic not found ***\",0)","v":"*** Mnemonic not found ***"},"SUCMRUR3FINERG2_1TO5__",null,"Input",null,null,{"$f":"K769+1","v":243},{"$f":"L769","v":"D"},"Input!D243",{"$f":"_xlfn.XLOOKUP(F780,'Raw Data'!$I$4:$I$5000,'Raw Data'!$E$4:$E$5000,100,0)","v":100},{"$f":"IF(N780=0,_xlfn.XLOOKUP(F780,'Raw Data'!$I$4:$I$5000,'Raw Data'!$H$4:$H$5000,\"\",0),\"\")","v":""},{"$f":"IF(INDIRECT(M780) = \"\",\"\",INDIRECT(M780))","v":""},"n"]
["SUCMRUR3FINERG3_1TO5",null,null,null,{"$f":"_xlfn.XLOOKUP(F781,'Raw Data'!$I$4:$I$5000,'Raw Data'!$D$4:$D$5000,\"*** Mnemonic not found ***\",0)","v":"*** Mnemonic not found ***"},"SUCMRUR3FINERG3_1TO5__",null,"Input",null,null,243,"E","Input!E243",{"$f":"_xlfn.XLOOKUP(F781,'Raw Data'!$I$4:$I$5000,'Raw Data'!$E$4:$E$5000,100,0)","v":100},{"$f":"IF(N781=0,_xlfn.XLOOKUP(F781,'Raw Data'!$I$4:$I$5000,'Raw Data'!$H$4:$H$5000,\"\",0),\"\")","v":""},{"$f":"IF(INDIRECT(M781) = \"\",\"\",INDIRECT(M781))","v":""},"n"]
["SUCMRUR3FINERG4_1TO5",null,null,null,{"$f":"_xlfn.XLOOKUP(F782,'Raw Data'!$I$4:$I$5000,'Raw Data'!$D$4:$D$5000,\"*** Mnemonic not found ***\",0)","v":"*** Mnemonic not found ***"},"SUCMRUR3FINERG4_1TO5__",null,"Input",null,null,243,"F","Input!F243",{"$f":"_xlfn.XLOOKUP(F782,'Raw Data'!$I$4:$I$5000,'Raw Data'!$E$4:$E$5000,100,0)","v":100},{"$f":"IF(N782=0,_xlfn.XLOOKUP(F782,'Raw Data'!$I$4:$I$5000,'Raw Data'!$H$4:$H$5000,\"\",0),\"\")","v":""},{"$f":"IF(INDIRECT(M782) = \"\",\"\",INDIRECT(M782))","v":""},"n"]
["SUCMRUR3FINERG5_1TO5",null,null,null,{"$f":"_xlfn.XLOOKUP(F783,'Raw Data'!$I$4:$I$5000,'Raw Data'!$D$4:$D$5000,\"*** Mnemonic not found ***\",0)","v":"*** Mnemonic not found ***"},"SUCMRUR3FINERG5_1TO5__",null,"Input",null,null,243,"G",{"$f":"CONCATENATE(H783,\"!\",L783,K783)","v":"Input!G243"},{"$f":"_xlfn.XLOOKUP(F783,'Raw Data'!$I$4:$I$5000,'Raw Data'!$E$4:$E$5000,100,0)","v":100},{"$f":"IF(N783=0,_xlfn.XLOOKUP(F783,'Raw Data'!$I$4:$I$5000,'Raw Data'!$H$4:$H$5000,\"\",0),\"\")","v":""},{"$f":"IF(INDIRECT(M783) = \"\",\"\",INDIRECT(M783))","v":""},"n"]
["SUCMRUR3FINERG6_1TO5",null,null,null,{"$f":"_xlfn.XLOOKUP(F784,'Raw Data'!$I$4:$I$5000,'Raw Data'!$D$4:$D$5000,\"*** Mnemonic not found ***\",0)","v":"*** Mnemonic not found ***"},"SUCMRUR3FINERG6_1TO5__",null,"Input",null,null,243,"H","Input!H243",{"$f":"_xlfn.XLOOKUP(F784,'Raw Data'!$I$4:$I$5000,'Raw Data'!$E$4:$E$5000,100,0)","v":100},{"$f":"IF(N784=0,_xlfn.XLOOKUP(F784,'Raw Data'!$I$4:$I$5000,'Raw Data'!$H$4:$H$5000,\"\",0),\"\")","v":""},{"$f":"IF(INDIRECT(M784) = \"\",\"\",INDIRECT(M784))","v":""},"n"]
["SUCMRUR3FINERG7_1TO5",null,null,null,{"$f":"_xlfn.XLOOKUP(F785,'Raw Data'!$I$4:$I$5000,'Raw Data'!$D$4:$D$5000,\"*** Mnemonic not found ***\",0)","v":"*** Mnemonic not found ***"},"SUCMRUR3FINERG7_1TO5__",null,"Input",null,null,243,"I","Input!I243",{"$f":"_xlfn.XLOOKUP(F785,'Raw Data'!$I$4:$I$5000,'Raw Data'!$E$4:$E$5000,100,0)","v":100},{"$f":"IF(N785=0,_xlfn.XLOOKUP(F785,'Raw Data'!$I$4:$I$5000,'Raw Data'!$H$4:$H$5000,\"\",0),\"\")","v":""},{"$f":"IF(INDIRECT(M785) = \"\",\"\",INDIRECT(M785))","v":""},"n"]
["SUCMRUR3FINERG8_1TO5",null,null,null,{"$f":"_xlfn.XLOOKUP(F786,'Raw Data'!$I$4:$I$5000,'Raw Data'!$D$4:$D$5000,\"*** Mnemonic not found ***\",0)","v":"*** Mnemonic not found ***"},"SUCMRUR3FINERG8_1TO5__",null,"Input",null,null,243,"J","Input!J243",{"$f":"_xlfn.XLOOKUP(F786,'Raw Data'!$I$4:$I$5000,'Raw Data'!$E$4:$E$5000,100,0)","v":100},{"$f":"IF(N786=0,_xlfn.XLOOKUP(F786,'Raw Data'!$I$4:$I$5000,'Raw Data'!$H$4:$H$5000,\"\",0),\"\")","v":""},{"$f":"IF(INDIRECT(M786) = \"\",\"\",INDIRECT(M786))","v":""},"n"]
["SUCMRUR3FINERG9_1TO5",null,null,null,{"$f":"_xlfn.XLOOKUP(F787,'Raw Data'!$I$4:$I$5000,'Raw Data'!$D$4:$D$5000,\"*** Mnemonic not found ***\",0)","v":"*** Mnemonic not found ***"},"SUCMRUR3FINERG9_1TO5__",null,"Input",null,null,243,"K","Input!K243",{"$f":"_xlfn.XLOOKUP(F787,'Raw Data'!$I$4:$I$5000,'Raw Data'!$E$4:$E$5000,100,0)","v":100},{"$f":"IF(N787=0,_xlfn.XLOOKUP(F787,'Raw Data'!$I$4:$I$5000,'Raw Data'!$H$4:$H$5000,\"\",0),\"\")","v":""},{"$f":"IF(INDIRECT(M787) = \"\",\"\",INDIRECT(M787))","v":""},"n"]
["SUCMRUR3FINERG10_1TO5",null,null,null,{"$f":"_xlfn.XLOOKUP(F788,'Raw Data'!$I$4:$I$5000,'Raw Data'!$D$4:$D$5000,\"*** Mnemonic not found ***\",0)","v":"*** Mnemonic not found ***"},"SUCMRUR3FINERG10_1TO5__",null,"Input",null,null,243,"L","Input!L243",{"$f":"_xlfn.XLOOKUP(F788,'Raw Data'!$I$4:$I$5000,'Raw Data'!$E$4:$E$5000,100,0)","v":100},{"$f":"IF(N788=0,_xlfn.XLOOKUP(F788,'Raw Data'!$I$4:$I$5000,'Raw Data'!$H$4:$H$5000,\"\",0),\"\")","v":""},{"$f":"IF(INDIRECT(M788) = \"\",\"\",INDIRECT(M788))","v":""},"n"]
["SUCMRUR3FINERGNA_1TO5",null,null,null,{"$f":"_xlfn.XLOOKUP(F789,'Raw Data'!$I$4:$I$5000,'Raw Data'!$D$4:$D$5000,\"*** Mnemonic not found ***\",0)","v":"*** Mnemonic not found ***"},"SUCMRUR3FINERGNA_1TO5__",null,"Input",null,null,243,"M","Input!M243",{"$f":"_xlfn.XLOOKUP(F789,'Raw Data'!$I$4:$I$5000,'Raw Data'!$E$4:$E$5000,100,0)","v":100},{"$f":"IF(N789=0,_xlfn.XLOOKUP(F789,'Raw Data'!$I$4:$I$5000,'Raw Data'!$H$4:$H$5000,\"\",0),\"\")","v":""},{"$f":"IF(INDIRECT(M789) = \"\",\"\",INDIRECT(M789))","v":""},"n"]
["SUCMRUR3FINERG1_5TO10",null,null,null,{"$f":"_xlfn.XLOOKUP(F790,'Raw Data'!$I$4:$I$5000,'Raw Data'!$D$4:$D$5000,\"*** Mnemonic not found ***\",0)","v":"*** Mnemonic not found ***"},"SUCMRUR3FINERG1_5TO10__",null,"Input",null,null,244,"C","Input!C244",{"$f":"_xlfn.XLOOKUP(F790,'Raw Data'!$I$4:$I$5000,'Raw Data'!$E$4:$E$5000,100,0)","v":100},{"$f":"IF(N790=0,_xlfn.XLOOKUP(F790,'Raw Data'!$I$4:$I$5000,'Raw Data'!$H$4:$H$5000,\"\",0),\"\")","v":""},{"$f":"IF(INDIRECT(M790) = \"\",\"\",INDIRECT(M790))","v":""},"n"]
["SUCMRUR3FINERG2_5TO10",null,null,null,{"$f":"_xlfn.XLOOKUP(F791,'Raw Data'!$I$4:$I$5000,'Raw Data'!$D$4:$D$5000,\"*** Mnemonic not found ***\",0)","v":"*** Mnemonic not found ***"},"SUCMRUR3FINERG2_5TO10__",null,"Input",null,null,244,"D","Input!D244",{"$f":"_xlfn.XLOOKUP(F791,'Raw Data'!$I$4:$I$5000,'Raw Data'!$E$4:$E$5000,100,0)","v":100},{"$f":"IF(N791=0,_xlfn.XLOOKUP(F791,'Raw Data'!$I$4:$I$5000,'Raw Data'!$H$4:$H$5000,\"\",0),\"\")","v":""},{"$f":"IF(INDIRECT(M791) = \"\",\"\",INDIRECT(M791))","v":""},"n"]
["SUCMRUR3FINERG3_5TO10",null,null,null,{"$f":"_xlfn.XLOOKUP(F792,'Raw Data'!$I$4:$I$5000,'Raw Data'!$D$4:$D$5000,\"*** Mnemonic not found ***\",0)","v":"*** Mnemonic not found ***"},"SUCMRUR3FINERG3_5TO10__",null,"Input",null,null,244,"E","Input!E244",{"$f":"_xlfn.XLOOKUP(F792,'Raw Data'!$I$4:$I$5000,'Raw Data'!$E$4:$E$5000,100,0)","v":100},{"$f":"IF(N792=0,_xlfn.XLOOKUP(F792,'Raw Data'!$I$4:$I$5000,'Raw Data'!$H$4:$H$5000,\"\",0),\"\")","v":""},{"$f":"IF(INDIRECT(M792) = \"\",\"\",INDIRECT(M792))","v":""},"n"]
["SUCMRUR3FINERG4_5TO10",null,null,null,{"$f":"_xlfn.XLOOKUP(F793,'Raw Data'!$I$4:$I$5000,'Raw Data'!$D$4:$D$5000,\"*** Mnemonic not found ***\",0)","v":"*** Mnemonic not found ***"},"SUCMRUR3FINERG4_5TO10__",null,"Input",null,null,244,"F","Input!F244",{"$f":"_xlfn.XLOOKUP(F793,'Raw Data'!$I$4:$I$5000,'Raw Data'!$E$4:$E$5000,100,0)","v":100},{"$f":"IF(N793=0,_xlfn.XLOOKUP(F793,'Raw Data'!$I$4:$I$5000,'Raw Data'!$H$4:$H$5000,\"\",0),\"\")","v":""},{"$f":"IF(INDIRECT(M793) = \"\",\"\",INDIRECT(M793))","v":""},"n"]
["SUCMRUR3FINERG5_5TO10",null,null,null,{"$f":"_xlfn.XLOOKUP(F794,'Raw Data'!$I$4:$I$5000,'Raw Data'!$D$4:$D$5000,\"*** Mnemonic not found ***\",0)","v":"*** Mnemonic not found ***"},"SUCMRUR3FINERG5_5TO10__",null,"Input",null,null,244,"G","Input!G244",{"$f":"_xlfn.XLOOKUP(F794,'Raw Data'!$I$4:$I$5000,'Raw Data'!$E$4:$E$5000,100,0)","v":100},{"$f":"IF(N794=0,_xlfn.XLOOKUP(F794,'Raw Data'!$I$4:$I$5000,'Raw Data'!$H$4:$H$5000,\"\",0),\"\")","v":""},{"$f":"IF(INDIRECT(M794) = \"\",\"\",INDIRECT(M794))","v":""},"n"]
["SUCMRUR3FINERG6_5TO10",null,null,null,{"$f":"_xlfn.XLOOKUP(F795,'Raw Data'!$I$4:$I$5000,'Raw Data'!$D$4:$D$5000,\"*** Mnemonic not found ***\",0)","v":"*** Mnemonic not found ***"},"SUCMRUR3FINERG6_5TO10__",null,"Input",null,null,244,"H","Input!H244",{"$f":"_xlfn.XLOOKUP(F795,'Raw Data'!$I$4:$I$5000,'Raw Data'!$E$4:$E$5000,100,0)","v":100},{"$f":"IF(N795=0,_xlfn.XLOOKUP(F795,'Raw Data'!$I$4:$I$5000,'Raw Data'!$H$4:$H$5000,\"\",0),\"\")","v":""},{"$f":"IF(INDIRECT(M795) = \"\",\"\",INDIRECT(M795))","v":""},"n"]
["SUCMRUR3FINERG7_5TO10",null,null,null,{"$f":"_xlfn.XLOOKUP(F796,'Raw Data'!$I$4:$I$5000,'Raw Data'!$D$4:$D$5000,\"*** Mnemonic not found ***\",0)","v":"*** Mnemonic not found ***"},"SUCMRUR3FINERG7_5TO10__",null,"Input",null,null,244,"I","Input!I244",{"$f":"_xlfn.XLOOKUP(F796,'Raw Data'!$I$4:$I$5000,'Raw Data'!$E$4:$E$5000,100,0)","v":100},{"$f":"IF(N796=0,_xlfn.XLOOKUP(F796,'Raw Data'!$I$4:$I$5000,'Raw Data'!$H$4:$H$5000,\"\",0),\"\")","v":""},{"$f":"IF(INDIRECT(M796) = \"\",\"\",INDIRECT(M796))","v":""},"n"]
["SUCMRUR3FINERG8_5TO10",null,null,null,{"$f":"_xlfn.XLOOKUP(F797,'Raw Data'!$I$4:$I$5000,'Raw Data'!$D$4:$D$5000,\"*** Mnemonic not found ***\",0)","v":"*** Mnemonic not found ***"},"SUCMRUR3FINERG8_5TO10__",null,"Input",null,null,244,"J","Input!J244",{"$f":"_xlfn.XLOOKUP(F797,'Raw Data'!$I$4:$I$5000,'Raw Data'!$E$4:$E$5000,100,0)","v":100},{"$f":"IF(N797=0,_xlfn.XLOOKUP(F797,'Raw Data'!$I$4:$I$5000,'Raw Data'!$H$4:$H$5000,\"\",0),\"\")","v":""},{"$f":"IF(INDIRECT(M797) = \"\",\"\",INDIRECT(M797))","v":""},"n"]
["SUCMRUR3FINERG9_5TO10",null,null,null,{"$f":"_xlfn.XLOOKUP(F798,'Raw Data'!$I$4:$I$5000,'Raw Data'!$D$4:$D$5000,\"*** Mnemonic not found ***\",0)","v":"*** Mnemonic not found ***"},"SUCMRUR3FINERG9_5TO10__",null,"Input",null,null,244,"K","Input!K244",{"$f":"_xlfn.XLOOKUP(F798,'Raw Data'!$I$4:$I$5000,'Raw Data'!$E$4:$E$5000,100,0)","v":100},{"$f":"IF(N798=0,_xlfn.XLOOKUP(F798,'Raw Data'!$I$4:$I$5000,'Raw Data'!$H$4:$H$5000,\"\",0),\"\")","v":""},{"$f":"IF(INDIRECT(M798) = \"\",\"\",INDIRECT(M798))","v":""},"n"]
["SUCMRUR3FINERG10_5TO10",null,null,null,{"$f":"_xlfn.XLOOKUP(F799,'Raw Data'!$I$4:$I$5000,'Raw Data'!$D$4:$D$5000,\"*** Mnemonic not found ***\",0)","v":"*** Mnemonic not found ***"},"SUCMRUR3FINERG10_5TO10__",null,"Input",null,null,244,"L","Input!L244",{"$f":"_xlfn.XLOOKUP(F799,'Raw Data'!$I$4:$I$5000,'Raw Data'!$E$4:$E$5000,100,0)","v":100},{"$f":"IF(N799=0,_xlfn.XLOOKUP(F799,'Raw Data'!$I$4:$I$5000,'Raw Data'!$H$4:$H$5000,\"\",0),\"\")","v":""},{"$f":"IF(INDIRECT(M799) = \"\",\"\",INDIRECT(M799))","v":""},"n"]
["SUCMRUR3FINERGNA_5TO10",null,null,null,{"$f":"_xlfn.XLOOKUP(F800,'Raw Data'!$I$4:$I$5000,'Raw Data'!$D$4:$D$5000,\"*** Mnemonic not found ***\",0)","v":"*** Mnemonic not found ***"},"SUCMRUR3FINERGNA_5TO10__",null,"Input",null,null,244,"M","Input!M244",{"$f":"_xlfn.XLOOKUP(F800,'Raw Data'!$I$4:$I$5000,'Raw Data'!$E$4:$E$5000,100,0)","v":100},{"$f":"IF(N800=0,_xlfn.XLOOKUP(F800,'Raw Data'!$I$4:$I$5000,'Raw Data'!$H$4:$H$5000,\"\",0),\"\")","v":""},{"$f":"IF(INDIRECT(M800) = \"\",\"\",INDIRECT(M800))","v":""},"n"]
["SUCMRUR3FINERG1_10TO20",null,null,null,{"$f":"_xlfn.XLOOKUP(F801,'Raw Data'!$I$4:$I$5000,'Raw Data'!$D$4:$D$5000,\"*** Mnemonic not found ***\",0)","v":"*** Mnemonic not found ***"},"SUCMRUR3FINERG1_10TO20__",null,"Input",null,null,245,"C","Input!C245",{"$f":"_xlfn.XLOOKUP(F801,'Raw Data'!$I$4:$I$5000,'Raw Data'!$E$4:$E$5000,100,0)","v":100},{"$f":"IF(N801=0,_xlfn.XLOOKUP(F801,'Raw Data'!$I$4:$I$5000,'Raw Data'!$H$4:$H$5000,\"\",0),\"\")","v":""},{"$f":"IF(INDIRECT(M801) = \"\",\"\",INDIRECT(M801))","v":""},"n"]
["SUCMRUR3FINERG2_10TO20",null,null,null,{"$f":"_xlfn.XLOOKUP(F802,'Raw Data'!$I$4:$I$5000,'Raw Data'!$D$4:$D$5000,\"*** Mnemonic not found ***\",0)","v":"*** Mnemonic not found ***"},"SUCMRUR3FINERG2_10TO20__",null,"Input",null,null,245,"D","Input!D245",{"$f":"_xlfn.XLOOKUP(F802,'Raw Data'!$I$4:$I$5000,'Raw Data'!$E$4:$E$5000,100,0)","v":100},{"$f":"IF(N802=0,_xlfn.XLOOKUP(F802,'Raw Data'!$I$4:$I$5000,'Raw Data'!$H$4:$H$5000,\"\",0),\"\")","v":""},{"$f":"IF(INDIRECT(M802) = \"\",\"\",INDIRECT(M802))","v":""},"n"]
["SUCMRUR3FINERG3_10TO20",null,null,null,{"$f":"_xlfn.XLOOKUP(F803,'Raw Data'!$I$4:$I$5000,'Raw Data'!$D$4:$D$5000,\"*** Mnemonic not found ***\",0)","v":"*** Mnemonic not found ***"},"SUCMRUR3FINERG3_10TO20__",null,"Input",null,null,245,"E","Input!E245",{"$f":"_xlfn.XLOOKUP(F803,'Raw Data'!$I$4:$I$5000,'Raw Data'!$E$4:$E$5000,100,0)","v":100},{"$f":"IF(N803=0,_xlfn.XLOOKUP(F803,'Raw Data'!$I$4:$I$5000,'Raw Data'!$H$4:$H$5000,\"\",0),\"\")","v":""},{"$f":"IF(INDIRECT(M803) = \"\",\"\",INDIRECT(M803))","v":""},"n"]
["SUCMRUR3FINERG4_10TO20",null,null,null,{"$f":"_xlfn.XLOOKUP(F804,'Raw Data'!$I$4:$I$5000,'Raw Data'!$D$4:$D$5000,\"*** Mnemonic not found ***\",0)","v":"*** Mnemonic not found ***"},"SUCMRUR3FINERG4_10TO20__",null,"Input",null,null,245,"F","Input!F245",{"$f":"_xlfn.XLOOKUP(F804,'Raw Data'!$I$4:$I$5000,'Raw Data'!$E$4:$E$5000,100,0)","v":100},{"$f":"IF(N804=0,_xlfn.XLOOKUP(F804,'Raw Data'!$I$4:$I$5000,'Raw Data'!$H$4:$H$5000,\"\",0),\"\")","v":""},{"$f":"IF(INDIRECT(M804) = \"\",\"\",INDIRECT(M804))","v":""},"n"]
["SUCMRUR3FINERG5_10TO20",null,null,null,{"$f":"_xlfn.XLOOKUP(F805,'Raw Data'!$I$4:$I$5000,'Raw Data'!$D$4:$D$5000,\"*** Mnemonic not found ***\",0)","v":"*** Mnemonic not found ***"},"SUCMRUR3FINERG5_10TO20__",null,"Input",null,null,245,"G","Input!G245",{"$f":"_xlfn.XLOOKUP(F805,'Raw Data'!$I$4:$I$5000,'Raw Data'!$E$4:$E$5000,100,0)","v":100},{"$f":"IF(N805=0,_xlfn.XLOOKUP(F805,'Raw Data'!$I$4:$I$5000,'Raw Data'!$H$4:$H$5000,\"\",0),\"\")","v":""},{"$f":"IF(INDIRECT(M805) = \"\",\"\",INDIRECT(M805))","v":""},"n"]
["SUCMRUR3FINERG6_10TO20",null,null,null,{"$f":"_xlfn.XLOOKUP(F806,'Raw Data'!$I$4:$I$5000,'Raw Data'!$D$4:$D$5000,\"*** Mnemonic not found ***\",0)","v":"*** Mnemonic not found ***"},"SUCMRUR3FINERG6_10TO20__",null,"Input",null,null,245,"H","Input!H245",{"$f":"_xlfn.XLOOKUP(F806,'Raw Data'!$I$4:$I$5000,'Raw Data'!$E$4:$E$5000,100,0)","v":100},{"$f":"IF(N806=0,_xlfn.XLOOKUP(F806,'Raw Data'!$I$4:$I$5000,'Raw Data'!$H$4:$H$5000,\"\",0),\"\")","v":""},{"$f":"IF(INDIRECT(M806) = \"\",\"\",INDIRECT(M806))","v":""},"n"]
["SUCMRUR3FINERG7_10TO20",null,null,null,{"$f":"_xlfn.XLOOKUP(F807,'Raw Data'!$I$4:$I$5000,'Raw Data'!$D$4:$D$5000,\"*** Mnemonic not found ***\",0)","v":"*** Mnemonic not found ***"},"SUCMRUR3FINERG7_10TO20__",null,"Input",null,null,245,"I","Input!I245",{"$f":"_xlfn.XLOOKUP(F807,'Raw Data'!$I$4:$I$5000,'Raw Data'!$E$4:$E$5000,100,0)","v":100},{"$f":"IF(N807=0,_xlfn.XLOOKUP(F807,'Raw Data'!$I$4:$I$5000,'Raw Data'!$H$4:$H$5000,\"\",0),\"\")","v":""},{"$f":"IF(INDIRECT(M807) = \"\",\"\",INDIRECT(M807))","v":""},"n"]
["SUCMRUR3FINERG8_10TO20",null,null,null,{"$f":"_xlfn.XLOOKUP(F808,'Raw Data'!$I$4:$I$5000,'Raw Data'!$D$4:$D$5000,\"*** Mnemonic not found ***\",0)","v":"*** Mnemonic not found ***"},"SUCMRUR3FINERG8_10TO20__",null,"Input",null,null,245,"J","Input!J245",{"$f":"_xlfn.XLOOKUP(F808,'Raw Data'!$I$4:$I$5000,'Raw Data'!$E$4:$E$5000,100,0)","v":100},{"$f":"IF(N808=0,_xlfn.XLOOKUP(F808,'Raw Data'!$I$4:$I$5000,'Raw Data'!$H$4:$H$5000,\"\",0),\"\")","v":""},{"$f":"IF(INDIRECT(M808) = \"\",\"\",INDIRECT(M808))","v":""},"n"]
["SUCMRUR3FINERG9_10TO20",null,null,null,{"$f":"_xlfn.XLOOKUP(F809,'Raw Data'!$I$4:$I$5000,'Raw Data'!$D$4:$D$5000,\"*** Mnemonic not found ***\",0)","v":"*** Mnemonic not found ***"},"SUCMRUR3FINERG9_10TO20__",null,"Input",null,null,245,"K","Input!K245",{"$f":"_xlfn.XLOOKUP(F809,'Raw Data'!$I$4:$I$5000,'Raw Data'!$E$4:$E$5000,100,0)","v":100},{"$f":"IF(N809=0,_xlfn.XLOOKUP(F809,'Raw Data'!$I$4:$I$5000,'Raw Data'!$H$4:$H$5000,\"\",0),\"\")","v":""},{"$f":"IF(INDIRECT(M809) = \"\",\"\",INDIRECT(M809))","v":""},"n"]
["SUCMRUR3FINERG10_10TO20",null,null,null,{"$f":"_xlfn.XLOOKUP(F810,'Raw Data'!$I$4:$I$5000,'Raw Data'!$D$4:$D$5000,\"*** Mnemonic not found ***\",0)","v":"*** Mnemonic not found ***"},"SUCMRUR3FINERG10_10TO20__",null,"Input",null,null,245,"L","Input!L245",{"$f":"_xlfn.XLOOKUP(F810,'Raw Data'!$I$4:$I$5000,'Raw Data'!$E$4:$E$5000,100,0)","v":100},{"$f":"IF(N810=0,_xlfn.XLOOKUP(F810,'Raw Data'!$I$4:$I$5000,'Raw Data'!$H$4:$H$5000,\"\",0),\"\")","v":""},{"$f":"IF(INDIRECT(M810) = \"\",\"\",INDIRECT(M810))","v":""},"n"]
["SUCMRUR3FINERGNA_10TO20",null,null,null,{"$f":"_xlfn.XLOOKUP(F811,'Raw Data'!$I$4:$I$5000,'Raw Data'!$D$4:$D$5000,\"*** Mnemonic not found ***\",0)","v":"*** Mnemonic not found ***"},"SUCMRUR3FINERGNA_10TO20__",null,"Input",null,null,245,"M","Input!M245",{"$f":"_xlfn.XLOOKUP(F811,'Raw Data'!$I$4:$I$5000,'Raw Data'!$E$4:$E$5000,100,0)","v":100},{"$f":"IF(N811=0,_xlfn.XLOOKUP(F811,'Raw Data'!$I$4:$I$5000,'Raw Data'!$H$4:$H$5000,\"\",0),\"\")","v":""},{"$f":"IF(INDIRECT(M811) = \"\",\"\",INDIRECT(M811))","v":""},"n"]
["SUCMRUR3FINERG1_GRTR20",null,null,null,{"$f":"_xlfn.XLOOKUP(F812,'Raw Data'!$I$4:$I$5000,'Raw Data'!$D$4:$D$5000,\"*** Mnemonic not found ***\",0)","v":"*** Mnemonic not found ***"},"SUCMRUR3FINERG1_GRTR20__",null,"Input",null,null,246,"C","Input!C246",{"$f":"_xlfn.XLOOKUP(F812,'Raw Data'!$I$4:$I$5000,'Raw Data'!$E$4:$E$5000,100,0)","v":100},{"$f":"IF(N812=0,_xlfn.XLOOKUP(F812,'Raw Data'!$I$4:$I$5000,'Raw Data'!$H$4:$H$5000,\"\",0),\"\")","v":""},{"$f":"IF(INDIRECT(M812) = \"\",\"\",INDIRECT(M812))","v":""},"n"]
["SUCMRUR3FINERG2_GRTR20",null,null,null,{"$f":"_xlfn.XLOOKUP(F813,'Raw Data'!$I$4:$I$5000,'Raw Data'!$D$4:$D$5000,\"*** Mnemonic not found ***\",0)","v":"*** Mnemonic not found ***"},"SUCMRUR3FINERG2_GRTR20__",null,"Input",null,null,246,"D","Input!D246",{"$f":"_xlfn.XLOOKUP(F813,'Raw Data'!$I$4:$I$5000,'Raw Data'!$E$4:$E$5000,100,0)","v":100},{"$f":"IF(N813=0,_xlfn.XLOOKUP(F813,'Raw Data'!$I$4:$I$5000,'Raw Data'!$H$4:$H$5000,\"\",0),\"\")","v":""},{"$f":"IF(INDIRECT(M813) = \"\",\"\",INDIRECT(M813))","v":""},"n"]
["SUCMRUR3FINERG3_GRTR20",null,null,null,{"$f":"_xlfn.XLOOKUP(F814,'Raw Data'!$I$4:$I$5000,'Raw Data'!$D$4:$D$5000,\"*** Mnemonic not found ***\",0)","v":"*** Mnemonic not found ***"},"SUCMRUR3FINERG3_GRTR20__",null,"Input",null,null,246,"E","Input!E246",{"$f":"_xlfn.XLOOKUP(F814,'Raw Data'!$I$4:$I$5000,'Raw Data'!$E$4:$E$5000,100,0)","v":100},{"$f":"IF(N814=0,_xlfn.XLOOKUP(F814,'Raw Data'!$I$4:$I$5000,'Raw Data'!$H$4:$H$5000,\"\",0),\"\")","v":""},{"$f":"IF(INDIRECT(M814) = \"\",\"\",INDIRECT(M814))","v":""},"n"]
["SUCMRUR3FINERG4_GRTR20",null,null,null,{"$f":"_xlfn.XLOOKUP(F815,'Raw Data'!$I$4:$I$5000,'Raw Data'!$D$4:$D$5000,\"*** Mnemonic not found ***\",0)","v":"*** Mnemonic not found ***"},"SUCMRUR3FINERG4_GRTR20__",null,"Input",null,null,246,"F","Input!F246",{"$f":"_xlfn.XLOOKUP(F815,'Raw Data'!$I$4:$I$5000,'Raw Data'!$E$4:$E$5000,100,0)","v":100},{"$f":"IF(N815=0,_xlfn.XLOOKUP(F815,'Raw Data'!$I$4:$I$5000,'Raw Data'!$H$4:$H$5000,\"\",0),\"\")","v":""},{"$f":"IF(INDIRECT(M815) = \"\",\"\",INDIRECT(M815))","v":""},"n"]
["SUCMRUR3FINERG5_GRTR20",null,null,null,{"$f":"_xlfn.XLOOKUP(F816,'Raw Data'!$I$4:$I$5000,'Raw Data'!$D$4:$D$5000,\"*** Mnemonic not found ***\",0)","v":"*** Mnemonic not found ***"},"SUCMRUR3FINERG5_GRTR20__",null,"Input",null,null,246,"G","Input!G246",{"$f":"_xlfn.XLOOKUP(F816,'Raw Data'!$I$4:$I$5000,'Raw Data'!$E$4:$E$5000,100,0)","v":100},{"$f":"IF(N816=0,_xlfn.XLOOKUP(F816,'Raw Data'!$I$4:$I$5000,'Raw Data'!$H$4:$H$5000,\"\",0),\"\")","v":""},{"$f":"IF(INDIRECT(M816) = \"\",\"\",INDIRECT(M816))","v":""},"n"]
["SUCMRUR3FINERG6_GRTR20",null,null,null,{"$f":"_xlfn.XLOOKUP(F817,'Raw Data'!$I$4:$I$5000,'Raw Data'!$D$4:$D$5000,\"*** Mnemonic not found ***\",0)","v":"*** Mnemonic not found ***"},"SUCMRUR3FINERG6_GRTR20__",null,"Input",null,null,246,"H","Input!H246",{"$f":"_xlfn.XLOOKUP(F817,'Raw Data'!$I$4:$I$5000,'Raw Data'!$E$4:$E$5000,100,0)","v":100},{"$f":"IF(N817=0,_xlfn.XLOOKUP(F817,'Raw Data'!$I$4:$I$5000,'Raw Data'!$H$4:$H$5000,\"\",0),\"\")","v":""},{"$f":"IF(INDIRECT(M817) = \"\",\"\",INDIRECT(M817))","v":""},"n"]
["SUCMRUR3FINERG7_GRTR20",null,null,null,{"$f":"_xlfn.XLOOKUP(F818,'Raw Data'!$I$4:$I$5000,'Raw Data'!$D$4:$D$5000,\"*** Mnemonic not found ***\",0)","v":"*** Mnemonic not found ***"},"SUCMRUR3FINERG7_GRTR20__",null,"Input",null,null,246,"I","Input!I246",{"$f":"_xlfn.XLOOKUP(F818,'Raw Data'!$I$4:$I$5000,'Raw Data'!$E$4:$E$5000,100,0)","v":100},{"$f":"IF(N818=0,_xlfn.XLOOKUP(F818,'Raw Data'!$I$4:$I$5000,'Raw Data'!$H$4:$H$5000,\"\",0),\"\")","v":""},{"$f":"IF(INDIRECT(M818) = \"\",\"\",INDIRECT(M818))","v":""},"n"]
["SUCMRUR3FINERG8_GRTR20",null,null,null,{"$f":"_xlfn.XLOOKUP(F819,'Raw Data'!$I$4:$I$5000,'Raw Data'!$D$4:$D$5000,\"*** Mnemonic not found ***\",0)","v":"*** Mnemonic not found ***"},"SUCMRUR3FINERG8_GRTR20__",null,"Input",null,null,246,"J","Input!J246",{"$f":"_xlfn.XLOOKUP(F819,'Raw Data'!$I$4:$I$5000,'Raw Data'!$E$4:$E$5000,100,0)","v":100},{"$f":"IF(N819=0,_xlfn.XLOOKUP(F819,'Raw Data'!$I$4:$I$5000,'Raw Data'!$H$4:$H$5000,\"\",0),\"\")","v":""},{"$f":"IF(INDIRECT(M819) = \"\",\"\",INDIRECT(M819))","v":""},"n"]
["SUCMRUR3FINERG9_GRTR20",null,null,null,{"$f":"_xlfn.XLOOKUP(F820,'Raw Data'!$I$4:$I$5000,'Raw Data'!$D$4:$D$5000,\"*** Mnemonic not found ***\",0)","v":"*** Mnemonic not found ***"},"SUCMRUR3FINERG9_GRTR20__",null,"Input",null,null,246,"K","Input!K246",{"$f":"_xlfn.XLOOKUP(F820,'Raw Data'!$I$4:$I$5000,'Raw Data'!$E$4:$E$5000,100,0)","v":100},{"$f":"IF(N820=0,_xlfn.XLOOKUP(F820,'Raw Data'!$I$4:$I$5000,'Raw Data'!$H$4:$H$5000,\"\",0),\"\")","v":""},{"$f":"IF(INDIRECT(M820) = \"\",\"\",INDIRECT(M820))","v":""},"n"]
["SUCMRUR3FINERG10_GRTR20",null,null,null,{"$f":"_xlfn.XLOOKUP(F821,'Raw Data'!$I$4:$I$5000,'Raw Data'!$D$4:$D$5000,\"*** Mnemonic not found ***\",0)","v":"*** Mnemonic not found ***"},"SUCMRUR3FINERG10_GRTR20__",null,"Input",null,null,246,"L","Input!L246",{"$f":"_xlfn.XLOOKUP(F821,'Raw Data'!$I$4:$I$5000,'Raw Data'!$E$4:$E$5000,100,0)","v":100},{"$f":"IF(N821=0,_xlfn.XLOOKUP(F821,'Raw Data'!$I$4:$I$5000,'Raw Data'!$H$4:$H$5000,\"\",0),\"\")","v":""},{"$f":"IF(INDIRECT(M821) = \"\",\"\",INDIRECT(M821))","v":""},"n"]
["SUCMRUR3FINERGNA_GRTR20",null,null,null,{"$f":"_xlfn.XLOOKUP(F822,'Raw Data'!$I$4:$I$5000,'Raw Data'!$D$4:$D$5000,\"*** Mnemonic not found ***\",0)","v":"*** Mnemonic not found ***"},"SUCMRUR3FINERGNA_GRTR20__",null,"Input",null,null,246,"M","Input!M246",{"$f":"_xlfn.XLOOKUP(F822,'Raw Data'!$I$4:$I$5000,'Raw Data'!$E$4:$E$5000,100,0)","v":100},{"$f":"IF(N822=0,_xlfn.XLOOKUP(F822,'Raw Data'!$I$4:$I$5000,'Raw Data'!$H$4:$H$5000,\"\",0),\"\")","v":""},{"$f":"IF(INDIRECT(M822) = \"\",\"\",INDIRECT(M822))","v":""},"n"]
["SUCMRUR1SOVERG1_LESS1",null,null,null,{"$f":"_xlfn.XLOOKUP(F823,'Raw Data'!$I$4:$I$5000,'Raw Data'!$D$4:$D$5000,\"*** Mnemonic not found ***\",0)","v":"*** Mnemonic not found ***"},"SUCMRUR1SOVERG1_LESS1__",null,"Input",{"$f":"ROW(section_bonds_sp_unrated_step_4)","v":187},{"$f":"J768+10","v":65},{"$f":"I823+J823","v":252},{"$f":"L812","v":"C"},"Input!C252",{"$f":"_xlfn.XLOOKUP(F823,'Raw Data'!$I$4:$I$5000,'Raw Data'!$E$4:$E$5000,100,0)","v":100},{"$f":"IF(N823=0,_xlfn.XLOOKUP(F823,'Raw Data'!$I$4:$I$5000,'Raw Data'!$H$4:$H$5000,\"\",0),\"\")","v":""},{"$f":"IF(INDIRECT(M823) = \"\",\"\",INDIRECT(M823))","v":""},"n"]
["SUCMRUR1SOVERG2_LESS1",null,null,null,{"$f":"_xlfn.XLOOKUP(F824,'Raw Data'!$I$4:$I$5000,'Raw Data'!$D$4:$D$5000,\"*** Mnemonic not found ***\",0)","v":"*** Mnemonic not found ***"},"SUCMRUR1SOVERG2_LESS1__",null,"Input",null,null,{"$f":"K823","v":252},{"$f":"L813","v":"D"},"Input!D252",{"$f":"_xlfn.XLOOKUP(F824,'Raw Data'!$I$4:$I$5000,'Raw Data'!$E$4:$E$5000,100,0)","v":100},{"$f":"IF(N824=0,_xlfn.XLOOKUP(F824,'Raw Data'!$I$4:$I$5000,'Raw Data'!$H$4:$H$5000,\"\",0),\"\")","v":""},{"$f":"IF(INDIRECT(M824) = \"\",\"\",INDIRECT(M824))","v":""},"n"]
["SUCMRUR1SOVERG3_LESS1",null,null,null,{"$f":"_xlfn.XLOOKUP(F825,'Raw Data'!$I$4:$I$5000,'Raw Data'!$D$4:$D$5000,\"*** Mnemonic not found ***\",0)","v":"*** Mnemonic not found ***"},"SUCMRUR1SOVERG3_LESS1__",null,"Input",null,null,{"$f":"K824","v":252},"E","Input!E252",{"$f":"_xlfn.XLOOKUP(F825,'Raw Data'!$I$4:$I$5000,'Raw Data'!$E$4:$E$5000,100,0)","v":100},{"$f":"IF(N825=0,_xlfn.XLOOKUP(F825,'Raw Data'!$I$4:$I$5000,'Raw Data'!$H$4:$H$5000,\"\",0),\"\")","v":""},{"$f":"IF(INDIRECT(M825) = \"\",\"\",INDIRECT(M825))","v":""},"n"]
["SUCMRUR1SOVERG4_LESS1",null,null,null,{"$f":"_xlfn.XLOOKUP(F826,'Raw Data'!$I$4:$I$5000,'Raw Data'!$D$4:$D$5000,\"*** Mnemonic not found ***\",0)","v":"*** Mnemonic not found ***"},"SUCMRUR1SOVERG4_LESS1__",null,"Input",null,null,252,"F","Input!F252",{"$f":"_xlfn.XLOOKUP(F826,'Raw Data'!$I$4:$I$5000,'Raw Data'!$E$4:$E$5000,100,0)","v":100},{"$f":"IF(N826=0,_xlfn.XLOOKUP(F826,'Raw Data'!$I$4:$I$5000,'Raw Data'!$H$4:$H$5000,\"\",0),\"\")","v":""},{"$f":"IF(INDIRECT(M826) = \"\",\"\",INDIRECT(M826))","v":""},"n"]
["SUCMRUR1SOVERG5_LESS1",null,null,null,{"$f":"_xlfn.XLOOKUP(F827,'Raw Data'!$I$4:$I$5000,'Raw Data'!$D$4:$D$5000,\"*** Mnemonic not found ***\",0)","v":"*** Mnemonic not found ***"},"SUCMRUR1SOVERG5_LESS1__",null,"Input",null,null,252,"G","Input!G252",{"$f":"_xlfn.XLOOKUP(F827,'Raw Data'!$I$4:$I$5000,'Raw Data'!$E$4:$E$5000,100,0)","v":100},{"$f":"IF(N827=0,_xlfn.XLOOKUP(F827,'Raw Data'!$I$4:$I$5000,'Raw Data'!$H$4:$H$5000,\"\",0),\"\")","v":""},{"$f":"IF(INDIRECT(M827) = \"\",\"\",INDIRECT(M827))","v":""},"n"]
["SUCMRUR1SOVERG6_LESS1",null,null,null,{"$f":"_xlfn.XLOOKUP(F828,'Raw Data'!$I$4:$I$5000,'Raw Data'!$D$4:$D$5000,\"*** Mnemonic not found ***\",0)","v":"*** Mnemonic not found ***"},"SUCMRUR1SOVERG6_LESS1__",null,"Input",null,null,252,"H","Input!H252",{"$f":"_xlfn.XLOOKUP(F828,'Raw Data'!$I$4:$I$5000,'Raw Data'!$E$4:$E$5000,100,0)","v":100},{"$f":"IF(N828=0,_xlfn.XLOOKUP(F828,'Raw Data'!$I$4:$I$5000,'Raw Data'!$H$4:$H$5000,\"\",0),\"\")","v":""},{"$f":"IF(INDIRECT(M828) = \"\",\"\",INDIRECT(M828))","v":""},"n"]
["SUCMRUR1SOVERG7_LESS1",null,null,null,{"$f":"_xlfn.XLOOKUP(F829,'Raw Data'!$I$4:$I$5000,'Raw Data'!$D$4:$D$5000,\"*** Mnemonic not found ***\",0)","v":"*** Mnemonic not found ***"},"SUCMRUR1SOVERG7_LESS1__",null,"Input",null,null,252,"I","Input!I252",{"$f":"_xlfn.XLOOKUP(F829,'Raw Data'!$I$4:$I$5000,'Raw Data'!$E$4:$E$5000,100,0)","v":100},{"$f":"IF(N829=0,_xlfn.XLOOKUP(F829,'Raw Data'!$I$4:$I$5000,'Raw Data'!$H$4:$H$5000,\"\",0),\"\")","v":""},{"$f":"IF(INDIRECT(M829) = \"\",\"\",INDIRECT(M829))","v":""},"n"]
["SUCMRUR1SOVERG8_LESS1",null,null,null,{"$f":"_xlfn.XLOOKUP(F830,'Raw Data'!$I$4:$I$5000,'Raw Data'!$D$4:$D$5000,\"*** Mnemonic not found ***\",0)","v":"*** Mnemonic not found ***"},"SUCMRUR1SOVERG8_LESS1__",null,"Input",null,null,252,"J","Input!J252",{"$f":"_xlfn.XLOOKUP(F830,'Raw Data'!$I$4:$I$5000,'Raw Data'!$E$4:$E$5000,100,0)","v":100},{"$f":"IF(N830=0,_xlfn.XLOOKUP(F830,'Raw Data'!$I$4:$I$5000,'Raw Data'!$H$4:$H$5000,\"\",0),\"\")","v":""},{"$f":"IF(INDIRECT(M830) = \"\",\"\",INDIRECT(M830))","v":""},"n"]
["SUCMRUR1SOVERG9_LESS1",null,null,null,{"$f":"_xlfn.XLOOKUP(F831,'Raw Data'!$I$4:$I$5000,'Raw Data'!$D$4:$D$5000,\"*** Mnemonic not found ***\",0)","v":"*** Mnemonic not found ***"},"SUCMRUR1SOVERG9_LESS1__",null,"Input",null,null,252,"K","Input!K252",{"$f":"_xlfn.XLOOKUP(F831,'Raw Data'!$I$4:$I$5000,'Raw Data'!$E$4:$E$5000,100,0)","v":100},{"$f":"IF(N831=0,_xlfn.XLOOKUP(F831,'Raw Data'!$I$4:$I$5000,'Raw Data'!$H$4:$H$5000,\"\",0),\"\")","v":""},{"$f":"IF(INDIRECT(M831) = \"\",\"\",INDIRECT(M831))","v":""},"n"]
["SUCMRUR1SOVERG10_LESS1",null,null,null,{"$f":"_xlfn.XLOOKUP(F832,'Raw Data'!$I$4:$I$5000,'Raw Data'!$D$4:$D$5000,\"*** Mnemonic not found ***\",0)","v":"*** Mnemonic not found ***"},"SUCMRUR1SOVERG10_LESS1__",null,"Input",null,null,252,"L","Input!L252",{"$f":"_xlfn.XLOOKUP(F832,'Raw Data'!$I$4:$I$5000,'Raw Data'!$E$4:$E$5000,100,0)","v":100},{"$f":"IF(N832=0,_xlfn.XLOOKUP(F832,'Raw Data'!$I$4:$I$5000,'Raw Data'!$H$4:$H$5000,\"\",0),\"\")","v":""},{"$f":"IF(INDIRECT(M832) = \"\",\"\",INDIRECT(M832))","v":""},"n"]
["SUCMRUR1SOVERGNA_LESS1",null,null,null,{"$f":"_xlfn.XLOOKUP(F833,'Raw Data'!$I$4:$I$5000,'Raw Data'!$D$4:$D$5000,\"*** Mnemonic not found ***\",0)","v":"*** Mnemonic not found ***"},"SUCMRUR1SOVERGNA_LESS1__",null,"Input",null,null,252,"M","Input!M252",{"$f":"_xlfn.XLOOKUP(F833,'Raw Data'!$I$4:$I$5000,'Raw Data'!$E$4:$E$5000,100,0)","v":100},{"$f":"IF(N833=0,_xlfn.XLOOKUP(F833,'Raw Data'!$I$4:$I$5000,'Raw Data'!$H$4:$H$5000,\"\",0),\"\")","v":""},{"$f":"IF(INDIRECT(M833) = \"\",\"\",INDIRECT(M833))","v":""},"n"]
["SUCMRUR1SOVERG1_1TO5",null,null,null,{"$f":"_xlfn.XLOOKUP(F834,'Raw Data'!$I$4:$I$5000,'Raw Data'!$D$4:$D$5000,\"*** Mnemonic not found ***\",0)","v":"*** Mnemonic not found ***"},"SUCMRUR1SOVERG1_1TO5__",null,"Input",null,null,{"$f":"K823+1","v":253},{"$f":"L823","v":"C"},"Input!C253",{"$f":"_xlfn.XLOOKUP(F834,'Raw Data'!$I$4:$I$5000,'Raw Data'!$E$4:$E$5000,100,0)","v":100},{"$f":"IF(N834=0,_xlfn.XLOOKUP(F834,'Raw Data'!$I$4:$I$5000,'Raw Data'!$H$4:$H$5000,\"\",0),\"\")","v":""},{"$f":"IF(INDIRECT(M834) = \"\",\"\",INDIRECT(M834))","v":""},"n"]
["SUCMRUR1SOVERG2_1TO5",null,null,null,{"$f":"_xlfn.XLOOKUP(F835,'Raw Data'!$I$4:$I$5000,'Raw Data'!$D$4:$D$5000,\"*** Mnemonic not found ***\",0)","v":"*** Mnemonic not found ***"},"SUCMRUR1SOVERG2_1TO5__",null,"Input",null,null,{"$f":"K824+1","v":253},{"$f":"L824","v":"D"},"Input!D253",{"$f":"_xlfn.XLOOKUP(F835,'Raw Data'!$I$4:$I$5000,'Raw Data'!$E$4:$E$5000,100,0)","v":100},{"$f":"IF(N835=0,_xlfn.XLOOKUP(F835,'Raw Data'!$I$4:$I$5000,'Raw Data'!$H$4:$H$5000,\"\",0),\"\")","v":""},{"$f":"IF(INDIRECT(M835) = \"\",\"\",INDIRECT(M835))","v":""},"n"]
["SUCMRUR1SOVERG3_1TO5",null,null,null,{"$f":"_xlfn.XLOOKUP(F836,'Raw Data'!$I$4:$I$5000,'Raw Data'!$D$4:$D$5000,\"*** Mnemonic not found ***\",0)","v":"*** Mnemonic not found ***"},"SUCMRUR1SOVERG3_1TO5__",null,"Input",null,null,253,"E","Input!E253",{"$f":"_xlfn.XLOOKUP(F836,'Raw Data'!$I$4:$I$5000,'Raw Data'!$E$4:$E$5000,100,0)","v":100},{"$f":"IF(N836=0,_xlfn.XLOOKUP(F836,'Raw Data'!$I$4:$I$5000,'Raw Data'!$H$4:$H$5000,\"\",0),\"\")","v":""},{"$f":"IF(INDIRECT(M836) = \"\",\"\",INDIRECT(M836))","v":""},"n"]
["SUCMRUR1SOVERG4_1TO5",null,null,null,{"$f":"_xlfn.XLOOKUP(F837,'Raw Data'!$I$4:$I$5000,'Raw Data'!$D$4:$D$5000,\"*** Mnemonic not found ***\",0)","v":"*** Mnemonic not found ***"},{"$f":"CONCATENATE(A837,\"_\",B837,\"_\",D837)","v":"SUCMRUR1SOVERG4_1TO5__"},null,"Input",null,null,253,"F","Input!F253",{"$f":"_xlfn.XLOOKUP(F837,'Raw Data'!$I$4:$I$5000,'Raw Data'!$E$4:$E$5000,100,0)","v":100},{"$f":"IF(N837=0,_xlfn.XLOOKUP(F837,'Raw Data'!$I$4:$I$5000,'Raw Data'!$H$4:$H$5000,\"\",0),\"\")","v":""},{"$f":"IF(INDIRECT(M837) = \"\",\"\",INDIRECT(M837))","v":""},"n"]
["SUCMRUR1SOVERG5_1TO5",null,null,null,{"$f":"_xlfn.XLOOKUP(F838,'Raw Data'!$I$4:$I$5000,'Raw Data'!$D$4:$D$5000,\"*** Mnemonic not found ***\",0)","v":"*** Mnemonic not found ***"},"SUCMRUR1SOVERG5_1TO5__",null,"Input",null,null,253,"G","Input!G253",{"$f":"_xlfn.XLOOKUP(F838,'Raw Data'!$I$4:$I$5000,'Raw Data'!$E$4:$E$5000,100,0)","v":100},{"$f":"IF(N838=0,_xlfn.XLOOKUP(F838,'Raw Data'!$I$4:$I$5000,'Raw Data'!$H$4:$H$5000,\"\",0),\"\")","v":""},{"$f":"IF(INDIRECT(M838) = \"\",\"\",INDIRECT(M838))","v":""},"n"]
["SUCMRUR1SOVERG6_1TO5",null,null,null,{"$f":"_xlfn.XLOOKUP(F839,'Raw Data'!$I$4:$I$5000,'Raw Data'!$D$4:$D$5000,\"*** Mnemonic not found ***\",0)","v":"*** Mnemonic not found ***"},"SUCMRUR1SOVERG6_1TO5__",null,"Input",null,null,253,"H","Input!H253",{"$f":"_xlfn.XLOOKUP(F839,'Raw Data'!$I$4:$I$5000,'Raw Data'!$E$4:$E$5000,100,0)","v":100},{"$f":"IF(N839=0,_xlfn.XLOOKUP(F839,'Raw Data'!$I$4:$I$5000,'Raw Data'!$H$4:$H$5000,\"\",0),\"\")","v":""},{"$f":"IF(INDIRECT(M839) = \"\",\"\",INDIRECT(M839))","v":""},"n"]
["SUCMRUR1SOVERG7_1TO5",null,null,null,{"$f":"_xlfn.XLOOKUP(F840,'Raw Data'!$I$4:$I$5000,'Raw Data'!$D$4:$D$5000,\"*** Mnemonic not found ***\",0)","v":"*** Mnemonic not found ***"},"SUCMRUR1SOVERG7_1TO5__",null,"Input",null,null,253,"I","Input!I253",{"$f":"_xlfn.XLOOKUP(F840,'Raw Data'!$I$4:$I$5000,'Raw Data'!$E$4:$E$5000,100,0)","v":100},{"$f":"IF(N840=0,_xlfn.XLOOKUP(F840,'Raw Data'!$I$4:$I$5000,'Raw Data'!$H$4:$H$5000,\"\",0),\"\")","v":""},{"$f":"IF(INDIRECT(M840) = \"\",\"\",INDIRECT(M840))","v":""},"n"]
["SUCMRUR1SOVERG8_1TO5",null,null,null,{"$f":"_xlfn.XLOOKUP(F841,'Raw Data'!$I$4:$I$5000,'Raw Data'!$D$4:$D$5000,\"*** Mnemonic not found ***\",0)","v":"*** Mnemonic not found ***"},"SUCMRUR1SOVERG8_1TO5__",null,"Input",null,null,253,"J","Input!J253",{"$f":"_xlfn.XLOOKUP(F841,'Raw Data'!$I$4:$I$5000,'Raw Data'!$E$4:$E$5000,100,0)","v":100},{"$f":"IF(N841=0,_xlfn.XLOOKUP(F841,'Raw Data'!$I$4:$I$5000,'Raw Data'!$H$4:$H$5000,\"\",0),\"\")","v":""},{"$f":"IF(INDIRECT(M841) = \"\",\"\",INDIRECT(M841))","v":""},"n"]
["SUCMRUR1SOVERG9_1TO5",null,null,null,{"$f":"_xlfn.XLOOKUP(F842,'Raw Data'!$I$4:$I$5000,'Raw Data'!$D$4:$D$5000,\"*** Mnemonic not found ***\",0)","v":"*** Mnemonic not found ***"},"SUCMRUR1SOVERG9_1TO5__",null,"Input",null,null,253,"K","Input!K253",{"$f":"_xlfn.XLOOKUP(F842,'Raw Data'!$I$4:$I$5000,'Raw Data'!$E$4:$E$5000,100,0)","v":100},{"$f":"IF(N842=0,_xlfn.XLOOKUP(F842,'Raw Data'!$I$4:$I$5000,'Raw Data'!$H$4:$H$5000,\"\",0),\"\")","v":""},{"$f":"IF(INDIRECT(M842) = \"\",\"\",INDIRECT(M842))","v":""},"n"]
["SUCMRUR1SOVERG10_1TO5",null,null,null,{"$f":"_xlfn.XLOOKUP(F843,'Raw Data'!$I$4:$I$5000,'Raw Data'!$D$4:$D$5000,\"*** Mnemonic not found ***\",0)","v":"*** Mnemonic not found ***"},"SUCMRUR1SOVERG10_1TO5__",null,"Input",null,null,253,"L","Input!L253",{"$f":"_xlfn.XLOOKUP(F843,'Raw Data'!$I$4:$I$5000,'Raw Data'!$E$4:$E$5000,100,0)","v":100},{"$f":"IF(N843=0,_xlfn.XLOOKUP(F843,'Raw Data'!$I$4:$I$5000,'Raw Data'!$H$4:$H$5000,\"\",0),\"\")","v":""},{"$f":"IF(INDIRECT(M843) = \"\",\"\",INDIRECT(M843))","v":""},"n"]
["SUCMRUR1SOVERGNA_1TO5",null,null,null,{"$f":"_xlfn.XLOOKUP(F844,'Raw Data'!$I$4:$I$5000,'Raw Data'!$D$4:$D$5000,\"*** Mnemonic not found ***\",0)","v":"*** Mnemonic not found ***"},"SUCMRUR1SOVERGNA_1TO5__",null,"Input",null,null,253,"M","Input!M253",{"$f":"_xlfn.XLOOKUP(F844,'Raw Data'!$I$4:$I$5000,'Raw Data'!$E$4:$E$5000,100,0)","v":100},{"$f":"IF(N844=0,_xlfn.XLOOKUP(F844,'Raw Data'!$I$4:$I$5000,'Raw Data'!$H$4:$H$5000,\"\",0),\"\")","v":""},{"$f":"IF(INDIRECT(M844) = \"\",\"\",INDIRECT(M844))","v":""},"n"]
["SUCMRUR1SOVERG1_5TO10",null,null,null,{"$f":"_xlfn.XLOOKUP(F845,'Raw Data'!$I$4:$I$5000,'Raw Data'!$D$4:$D$5000,\"*** Mnemonic not found ***\",0)","v":"*** Mnemonic not found ***"},"SUCMRUR1SOVERG1_5TO10__",null,"Input",null,null,254,"C","Input!C254",{"$f":"_xlfn.XLOOKUP(F845,'Raw Data'!$I$4:$I$5000,'Raw Data'!$E$4:$E$5000,100,0)","v":100},{"$f":"IF(N845=0,_xlfn.XLOOKUP(F845,'Raw Data'!$I$4:$I$5000,'Raw Data'!$H$4:$H$5000,\"\",0),\"\")","v":""},{"$f":"IF(INDIRECT(M845) = \"\",\"\",INDIRECT(M845))","v":""},"n"]
["SUCMRUR1SOVERG2_5TO10",null,null,null,{"$f":"_xlfn.XLOOKUP(F846,'Raw Data'!$I$4:$I$5000,'Raw Data'!$D$4:$D$5000,\"*** Mnemonic not found ***\",0)","v":"*** Mnemonic not found ***"},"SUCMRUR1SOVERG2_5TO10__",null,"Input",null,null,254,"D","Input!D254",{"$f":"_xlfn.XLOOKUP(F846,'Raw Data'!$I$4:$I$5000,'Raw Data'!$E$4:$E$5000,100,0)","v":100},{"$f":"IF(N846=0,_xlfn.XLOOKUP(F846,'Raw Data'!$I$4:$I$5000,'Raw Data'!$H$4:$H$5000,\"\",0),\"\")","v":""},{"$f":"IF(INDIRECT(M846) = \"\",\"\",INDIRECT(M846))","v":""},"n"]
["SUCMRUR1SOVERG3_5TO10",null,null,null,{"$f":"_xlfn.XLOOKUP(F847,'Raw Data'!$I$4:$I$5000,'Raw Data'!$D$4:$D$5000,\"*** Mnemonic not found ***\",0)","v":"*** Mnemonic not found ***"},"SUCMRUR1SOVERG3_5TO10__",null,"Input",null,null,254,"E",{"$f":"CONCATENATE(H847,\"!\",L847,K847)","v":"Input!E254"},{"$f":"_xlfn.XLOOKUP(F847,'Raw Data'!$I$4:$I$5000,'Raw Data'!$E$4:$E$5000,100,0)","v":100},{"$f":"IF(N847=0,_xlfn.XLOOKUP(F847,'Raw Data'!$I$4:$I$5000,'Raw Data'!$H$4:$H$5000,\"\",0),\"\")","v":""},{"$f":"IF(INDIRECT(M847) = \"\",\"\",INDIRECT(M847))","v":""},"n"]
["SUCMRUR1SOVERG4_5TO10",null,null,null,{"$f":"_xlfn.XLOOKUP(F848,'Raw Data'!$I$4:$I$5000,'Raw Data'!$D$4:$D$5000,\"*** Mnemonic not found ***\",0)","v":"*** Mnemonic not found ***"},"SUCMRUR1SOVERG4_5TO10__",null,"Input",null,null,254,"F","Input!F254",{"$f":"_xlfn.XLOOKUP(F848,'Raw Data'!$I$4:$I$5000,'Raw Data'!$E$4:$E$5000,100,0)","v":100},{"$f":"IF(N848=0,_xlfn.XLOOKUP(F848,'Raw Data'!$I$4:$I$5000,'Raw Data'!$H$4:$H$5000,\"\",0),\"\")","v":""},{"$f":"IF(INDIRECT(M848) = \"\",\"\",INDIRECT(M848))","v":""},"n"]
["SUCMRUR1SOVERG5_5TO10",null,null,null,{"$f":"_xlfn.XLOOKUP(F849,'Raw Data'!$I$4:$I$5000,'Raw Data'!$D$4:$D$5000,\"*** Mnemonic not found ***\",0)","v":"*** Mnemonic not found ***"},"SUCMRUR1SOVERG5_5TO10__",null,"Input",null,null,254,"G","Input!G254",{"$f":"_xlfn.XLOOKUP(F849,'Raw Data'!$I$4:$I$5000,'Raw Data'!$E$4:$E$5000,100,0)","v":100},{"$f":"IF(N849=0,_xlfn.XLOOKUP(F849,'Raw Data'!$I$4:$I$5000,'Raw Data'!$H$4:$H$5000,\"\",0),\"\")","v":""},{"$f":"IF(INDIRECT(M849) = \"\",\"\",INDIRECT(M849))","v":""},"n"]
["SUCMRUR1SOVERG6_5TO10",null,null,null,{"$f":"_xlfn.XLOOKUP(F850,'Raw Data'!$I$4:$I$5000,'Raw Data'!$D$4:$D$5000,\"*** Mnemonic not found ***\",0)","v":"*** Mnemonic not found ***"},"SUCMRUR1SOVERG6_5TO10__",null,"Input",null,null,254,"H","Input!H254",{"$f":"_xlfn.XLOOKUP(F850,'Raw Data'!$I$4:$I$5000,'Raw Data'!$E$4:$E$5000,100,0)","v":100},{"$f":"IF(N850=0,_xlfn.XLOOKUP(F850,'Raw Data'!$I$4:$I$5000,'Raw Data'!$H$4:$H$5000,\"\",0),\"\")","v":""},{"$f":"IF(INDIRECT(M850) = \"\",\"\",INDIRECT(M850))","v":""},"n"]
["SUCMRUR1SOVERG7_5TO10",null,null,null,{"$f":"_xlfn.XLOOKUP(F851,'Raw Data'!$I$4:$I$5000,'Raw Data'!$D$4:$D$5000,\"*** Mnemonic not found ***\",0)","v":"*** Mnemonic not found ***"},"SUCMRUR1SOVERG7_5TO10__",null,"Input",null,null,254,"I","Input!I254",{"$f":"_xlfn.XLOOKUP(F851,'Raw Data'!$I$4:$I$5000,'Raw Data'!$E$4:$E$5000,100,0)","v":100},{"$f":"IF(N851=0,_xlfn.XLOOKUP(F851,'Raw Data'!$I$4:$I$5000,'Raw Data'!$H$4:$H$5000,\"\",0),\"\")","v":""},{"$f":"IF(INDIRECT(M851) = \"\",\"\",INDIRECT(M851))","v":""},"n"]
["SUCMRUR1SOVERG8_5TO10",null,null,null,{"$f":"_xlfn.XLOOKUP(F852,'Raw Data'!$I$4:$I$5000,'Raw Data'!$D$4:$D$5000,\"*** Mnemonic not found ***\",0)","v":"*** Mnemonic not found ***"},"SUCMRUR1SOVERG8_5TO10__",null,"Input",null,null,254,"J","Input!J254",{"$f":"_xlfn.XLOOKUP(F852,'Raw Data'!$I$4:$I$5000,'Raw Data'!$E$4:$E$5000,100,0)","v":100},{"$f":"IF(N852=0,_xlfn.XLOOKUP(F852,'Raw Data'!$I$4:$I$5000,'Raw Data'!$H$4:$H$5000,\"\",0),\"\")","v":""},{"$f":"IF(INDIRECT(M852) = \"\",\"\",INDIRECT(M852))","v":""},"n"]
["SUCMRUR1SOVERG9_5TO10",null,null,null,{"$f":"_xlfn.XLOOKUP(F853,'Raw Data'!$I$4:$I$5000,'Raw Data'!$D$4:$D$5000,\"*** Mnemonic not found ***\",0)","v":"*** Mnemonic not found ***"},"SUCMRUR1SOVERG9_5TO10__",null,"Input",null,null,254,"K","Input!K254",{"$f":"_xlfn.XLOOKUP(F853,'Raw Data'!$I$4:$I$5000,'Raw Data'!$E$4:$E$5000,100,0)","v":100},{"$f":"IF(N853=0,_xlfn.XLOOKUP(F853,'Raw Data'!$I$4:$I$5000,'Raw Data'!$H$4:$H$5000,\"\",0),\"\")","v":""},{"$f":"IF(INDIRECT(M853) = \"\",\"\",INDIRECT(M853))","v":""},"n"]
["SUCMRUR1SOVERG10_5TO10",null,null,null,{"$f":"_xlfn.XLOOKUP(F854,'Raw Data'!$I$4:$I$5000,'Raw Data'!$D$4:$D$5000,\"*** Mnemonic not found ***\",0)","v":"*** Mnemonic not found ***"},"SUCMRUR1SOVERG10_5TO10__",null,"Input",null,null,254,"L","Input!L254",{"$f":"_xlfn.XLOOKUP(F854,'Raw Data'!$I$4:$I$5000,'Raw Data'!$E$4:$E$5000,100,0)","v":100},{"$f":"IF(N854=0,_xlfn.XLOOKUP(F854,'Raw Data'!$I$4:$I$5000,'Raw Data'!$H$4:$H$5000,\"\",0),\"\")","v":""},{"$f":"IF(INDIRECT(M854) = \"\",\"\",INDIRECT(M854))","v":""},"n"]
["SUCMRUR1SOVERGNA_5TO10",null,null,null,{"$f":"_xlfn.XLOOKUP(F855,'Raw Data'!$I$4:$I$5000,'Raw Data'!$D$4:$D$5000,\"*** Mnemonic not found ***\",0)","v":"*** Mnemonic not found ***"},"SUCMRUR1SOVERGNA_5TO10__",null,"Input",null,null,254,"M","Input!M254",{"$f":"_xlfn.XLOOKUP(F855,'Raw Data'!$I$4:$I$5000,'Raw Data'!$E$4:$E$5000,100,0)","v":100},{"$f":"IF(N855=0,_xlfn.XLOOKUP(F855,'Raw Data'!$I$4:$I$5000,'Raw Data'!$H$4:$H$5000,\"\",0),\"\")","v":""},{"$f":"IF(INDIRECT(M855) = \"\",\"\",INDIRECT(M855))","v":""},"n"]
["SUCMRUR1SOVERG1_10TO20",null,null,null,{"$f":"_xlfn.XLOOKUP(F856,'Raw Data'!$I$4:$I$5000,'Raw Data'!$D$4:$D$5000,\"*** Mnemonic not found ***\",0)","v":"*** Mnemonic not found ***"},"SUCMRUR1SOVERG1_10TO20__",null,"Input",null,null,255,"C","Input!C255",{"$f":"_xlfn.XLOOKUP(F856,'Raw Data'!$I$4:$I$5000,'Raw Data'!$E$4:$E$5000,100,0)","v":100},{"$f":"IF(N856=0,_xlfn.XLOOKUP(F856,'Raw Data'!$I$4:$I$5000,'Raw Data'!$H$4:$H$5000,\"\",0),\"\")","v":""},{"$f":"IF(INDIRECT(M856) = \"\",\"\",INDIRECT(M856))","v":""},"n"]
["SUCMRUR1SOVERG2_10TO20",null,null,null,{"$f":"_xlfn.XLOOKUP(F857,'Raw Data'!$I$4:$I$5000,'Raw Data'!$D$4:$D$5000,\"*** Mnemonic not found ***\",0)","v":"*** Mnemonic not found ***"},"SUCMRUR1SOVERG2_10TO20__",null,"Input",null,null,255,"D","Input!D255",{"$f":"_xlfn.XLOOKUP(F857,'Raw Data'!$I$4:$I$5000,'Raw Data'!$E$4:$E$5000,100,0)","v":100},{"$f":"IF(N857=0,_xlfn.XLOOKUP(F857,'Raw Data'!$I$4:$I$5000,'Raw Data'!$H$4:$H$5000,\"\",0),\"\")","v":""},{"$f":"IF(INDIRECT(M857) = \"\",\"\",INDIRECT(M857))","v":""},"n"]
["SUCMRUR1SOVERG3_10TO20",null,null,null,{"$f":"_xlfn.XLOOKUP(F858,'Raw Data'!$I$4:$I$5000,'Raw Data'!$D$4:$D$5000,\"*** Mnemonic not found ***\",0)","v":"*** Mnemonic not found ***"},"SUCMRUR1SOVERG3_10TO20__",null,"Input",null,null,255,"E","Input!E255",{"$f":"_xlfn.XLOOKUP(F858,'Raw Data'!$I$4:$I$5000,'Raw Data'!$E$4:$E$5000,100,0)","v":100},{"$f":"IF(N858=0,_xlfn.XLOOKUP(F858,'Raw Data'!$I$4:$I$5000,'Raw Data'!$H$4:$H$5000,\"\",0),\"\")","v":""},{"$f":"IF(INDIRECT(M858) = \"\",\"\",INDIRECT(M858))","v":""},"n"]
["SUCMRUR1SOVERG4_10TO20",null,null,null,{"$f":"_xlfn.XLOOKUP(F859,'Raw Data'!$I$4:$I$5000,'Raw Data'!$D$4:$D$5000,\"*** Mnemonic not found ***\",0)","v":"*** Mnemonic not found ***"},"SUCMRUR1SOVERG4_10TO20__",null,"Input",null,null,255,"F","Input!F255",{"$f":"_xlfn.XLOOKUP(F859,'Raw Data'!$I$4:$I$5000,'Raw Data'!$E$4:$E$5000,100,0)","v":100},{"$f":"IF(N859=0,_xlfn.XLOOKUP(F859,'Raw Data'!$I$4:$I$5000,'Raw Data'!$H$4:$H$5000,\"\",0),\"\")","v":""},{"$f":"IF(INDIRECT(M859) = \"\",\"\",INDIRECT(M859))","v":""},"n"]
["SUCMRUR1SOVERG5_10TO20",null,null,null,{"$f":"_xlfn.XLOOKUP(F860,'Raw Data'!$I$4:$I$5000,'Raw Data'!$D$4:$D$5000,\"*** Mnemonic not found ***\",0)","v":"*** Mnemonic not found ***"},"SUCMRUR1SOVERG5_10TO20__",null,"Input",null,null,255,"G","Input!G255",{"$f":"_xlfn.XLOOKUP(F860,'Raw Data'!$I$4:$I$5000,'Raw Data'!$E$4:$E$5000,100,0)","v":100},{"$f":"IF(N860=0,_xlfn.XLOOKUP(F860,'Raw Data'!$I$4:$I$5000,'Raw Data'!$H$4:$H$5000,\"\",0),\"\")","v":""},{"$f":"IF(INDIRECT(M860) = \"\",\"\",INDIRECT(M860))","v":""},"n"]
["SUCMRUR1SOVERG6_10TO20",null,null,null,{"$f":"_xlfn.XLOOKUP(F861,'Raw Data'!$I$4:$I$5000,'Raw Data'!$D$4:$D$5000,\"*** Mnemonic not found ***\",0)","v":"*** Mnemonic not found ***"},"SUCMRUR1SOVERG6_10TO20__",null,"Input",null,null,255,"H","Input!H255",{"$f":"_xlfn.XLOOKUP(F861,'Raw Data'!$I$4:$I$5000,'Raw Data'!$E$4:$E$5000,100,0)","v":100},{"$f":"IF(N861=0,_xlfn.XLOOKUP(F861,'Raw Data'!$I$4:$I$5000,'Raw Data'!$H$4:$H$5000,\"\",0),\"\")","v":""},{"$f":"IF(INDIRECT(M861) = \"\",\"\",INDIRECT(M861))","v":""},"n"]
["SUCMRUR1SOVERG7_10TO20",null,null,null,{"$f":"_xlfn.XLOOKUP(F862,'Raw Data'!$I$4:$I$5000,'Raw Data'!$D$4:$D$5000,\"*** Mnemonic not found ***\",0)","v":"*** Mnemonic not found ***"},"SUCMRUR1SOVERG7_10TO20__",null,"Input",null,null,255,"I","Input!I255",{"$f":"_xlfn.XLOOKUP(F862,'Raw Data'!$I$4:$I$5000,'Raw Data'!$E$4:$E$5000,100,0)","v":100},{"$f":"IF(N862=0,_xlfn.XLOOKUP(F862,'Raw Data'!$I$4:$I$5000,'Raw Data'!$H$4:$H$5000,\"\",0),\"\")","v":""},{"$f":"IF(INDIRECT(M862) = \"\",\"\",INDIRECT(M862))","v":""},"n"]
["SUCMRUR1SOVERG8_10TO20",null,null,null,{"$f":"_xlfn.XLOOKUP(F863,'Raw Data'!$I$4:$I$5000,'Raw Data'!$D$4:$D$5000,\"*** Mnemonic not found ***\",0)","v":"*** Mnemonic not found ***"},"SUCMRUR1SOVERG8_10TO20__",null,"Input",null,null,255,"J","Input!J255",{"$f":"_xlfn.XLOOKUP(F863,'Raw Data'!$I$4:$I$5000,'Raw Data'!$E$4:$E$5000,100,0)","v":100},{"$f":"IF(N863=0,_xlfn.XLOOKUP(F863,'Raw Data'!$I$4:$I$5000,'Raw Data'!$H$4:$H$5000,\"\",0),\"\")","v":""},{"$f":"IF(INDIRECT(M863) = \"\",\"\",INDIRECT(M863))","v":""},"n"]
["SUCMRUR1SOVERG9_10TO20",null,null,null,{"$f":"_xlfn.XLOOKUP(F864,'Raw Data'!$I$4:$I$5000,'Raw Data'!$D$4:$D$5000,\"*** Mnemonic not found ***\",0)","v":"*** Mnemonic not found ***"},"SUCMRUR1SOVERG9_10TO20__",null,"Input",null,null,255,"K","Input!K255",{"$f":"_xlfn.XLOOKUP(F864,'Raw Data'!$I$4:$I$5000,'Raw Data'!$E$4:$E$5000,100,0)","v":100},{"$f":"IF(N864=0,_xlfn.XLOOKUP(F864,'Raw Data'!$I$4:$I$5000,'Raw Data'!$H$4:$H$5000,\"\",0),\"\")","v":""},{"$f":"IF(INDIRECT(M864) = \"\",\"\",INDIRECT(M864))","v":""},"n"]
["SUCMRUR1SOVERG10_10TO20",null,null,null,{"$f":"_xlfn.XLOOKUP(F865,'Raw Data'!$I$4:$I$5000,'Raw Data'!$D$4:$D$5000,\"*** Mnemonic not found ***\",0)","v":"*** Mnemonic not found ***"},"SUCMRUR1SOVERG10_10TO20__",null,"Input",null,null,255,"L","Input!L255",{"$f":"_xlfn.XLOOKUP(F865,'Raw Data'!$I$4:$I$5000,'Raw Data'!$E$4:$E$5000,100,0)","v":100},{"$f":"IF(N865=0,_xlfn.XLOOKUP(F865,'Raw Data'!$I$4:$I$5000,'Raw Data'!$H$4:$H$5000,\"\",0),\"\")","v":""},{"$f":"IF(INDIRECT(M865) = \"\",\"\",INDIRECT(M865))","v":""},"n"]
["SUCMRUR1SOVERGNA_10TO20",null,null,null,{"$f":"_xlfn.XLOOKUP(F866,'Raw Data'!$I$4:$I$5000,'Raw Data'!$D$4:$D$5000,\"*** Mnemonic not found ***\",0)","v":"*** Mnemonic not found ***"},"SUCMRUR1SOVERGNA_10TO20__",null,"Input",null,null,255,"M","Input!M255",{"$f":"_xlfn.XLOOKUP(F866,'Raw Data'!$I$4:$I$5000,'Raw Data'!$E$4:$E$5000,100,0)","v":100},{"$f":"IF(N866=0,_xlfn.XLOOKUP(F866,'Raw Data'!$I$4:$I$5000,'Raw Data'!$H$4:$H$5000,\"\",0),\"\")","v":""},{"$f":"IF(INDIRECT(M866) = \"\",\"\",INDIRECT(M866))","v":""},"n"]
["SUCMRUR1SOVERG1_GRTR20",null,null,null,{"$f":"_xlfn.XLOOKUP(F867,'Raw Data'!$I$4:$I$5000,'Raw Data'!$D$4:$D$5000,\"*** Mnemonic not found ***\",0)","v":"*** Mnemonic not found ***"},"SUCMRUR1SOVERG1_GRTR20__",null,"Input",null,null,256,"C","Input!C256",{"$f":"_xlfn.XLOOKUP(F867,'Raw Data'!$I$4:$I$5000,'Raw Data'!$E$4:$E$5000,100,0)","v":100},{"$f":"IF(N867=0,_xlfn.XLOOKUP(F867,'Raw Data'!$I$4:$I$5000,'Raw Data'!$H$4:$H$5000,\"\",0),\"\")","v":""},{"$f":"IF(INDIRECT(M867) = \"\",\"\",INDIRECT(M867))","v":""},"n"]
["SUCMRUR1SOVERG2_GRTR20",null,null,null,{"$f":"_xlfn.XLOOKUP(F868,'Raw Data'!$I$4:$I$5000,'Raw Data'!$D$4:$D$5000,\"*** Mnemonic not found ***\",0)","v":"*** Mnemonic not found ***"},"SUCMRUR1SOVERG2_GRTR20__",null,"Input",null,null,256,"D","Input!D256",{"$f":"_xlfn.XLOOKUP(F868,'Raw Data'!$I$4:$I$5000,'Raw Data'!$E$4:$E$5000,100,0)","v":100},{"$f":"IF(N868=0,_xlfn.XLOOKUP(F868,'Raw Data'!$I$4:$I$5000,'Raw Data'!$H$4:$H$5000,\"\",0),\"\")","v":""},{"$f":"IF(INDIRECT(M868) = \"\",\"\",INDIRECT(M868))","v":""},"n"]
["SUCMRUR1SOVERG3_GRTR20",null,null,null,{"$f":"_xlfn.XLOOKUP(F869,'Raw Data'!$I$4:$I$5000,'Raw Data'!$D$4:$D$5000,\"*** Mnemonic not found ***\",0)","v":"*** Mnemonic not found ***"},"SUCMRUR1SOVERG3_GRTR20__",null,"Input",null,null,256,"E","Input!E256",{"$f":"_xlfn.XLOOKUP(F869,'Raw Data'!$I$4:$I$5000,'Raw Data'!$E$4:$E$5000,100,0)","v":100},{"$f":"IF(N869=0,_xlfn.XLOOKUP(F869,'Raw Data'!$I$4:$I$5000,'Raw Data'!$H$4:$H$5000,\"\",0),\"\")","v":""},{"$f":"IF(INDIRECT(M869) = \"\",\"\",INDIRECT(M869))","v":""},"n"]
["SUCMRUR1SOVERG4_GRTR20",null,null,null,{"$f":"_xlfn.XLOOKUP(F870,'Raw Data'!$I$4:$I$5000,'Raw Data'!$D$4:$D$5000,\"*** Mnemonic not found ***\",0)","v":"*** Mnemonic not found ***"},"SUCMRUR1SOVERG4_GRTR20__",null,"Input",null,null,256,"F","Input!F256",{"$f":"_xlfn.XLOOKUP(F870,'Raw Data'!$I$4:$I$5000,'Raw Data'!$E$4:$E$5000,100,0)","v":100},{"$f":"IF(N870=0,_xlfn.XLOOKUP(F870,'Raw Data'!$I$4:$I$5000,'Raw Data'!$H$4:$H$5000,\"\",0),\"\")","v":""},{"$f":"IF(INDIRECT(M870) = \"\",\"\",INDIRECT(M870))","v":""},"n"]
["SUCMRUR1SOVERG5_GRTR20",null,null,null,{"$f":"_xlfn.XLOOKUP(F871,'Raw Data'!$I$4:$I$5000,'Raw Data'!$D$4:$D$5000,\"*** Mnemonic not found ***\",0)","v":"*** Mnemonic not found ***"},"SUCMRUR1SOVERG5_GRTR20__",null,"Input",null,null,256,"G","Input!G256",{"$f":"_xlfn.XLOOKUP(F871,'Raw Data'!$I$4:$I$5000,'Raw Data'!$E$4:$E$5000,100,0)","v":100},{"$f":"IF(N871=0,_xlfn.XLOOKUP(F871,'Raw Data'!$I$4:$I$5000,'Raw Data'!$H$4:$H$5000,\"\",0),\"\")","v":""},{"$f":"IF(INDIRECT(M871) = \"\",\"\",INDIRECT(M871))","v":""},"n"]
["SUCMRUR1SOVERG6_GRTR20",null,null,null,{"$f":"_xlfn.XLOOKUP(F872,'Raw Data'!$I$4:$I$5000,'Raw Data'!$D$4:$D$5000,\"*** Mnemonic not found ***\",0)","v":"*** Mnemonic not found ***"},"SUCMRUR1SOVERG6_GRTR20__",null,"Input",null,null,256,"H","Input!H256",{"$f":"_xlfn.XLOOKUP(F872,'Raw Data'!$I$4:$I$5000,'Raw Data'!$E$4:$E$5000,100,0)","v":100},{"$f":"IF(N872=0,_xlfn.XLOOKUP(F872,'Raw Data'!$I$4:$I$5000,'Raw Data'!$H$4:$H$5000,\"\",0),\"\")","v":""},{"$f":"IF(INDIRECT(M872) = \"\",\"\",INDIRECT(M872))","v":""},"n"]
["SUCMRUR1SOVERG7_GRTR20",null,null,null,{"$f":"_xlfn.XLOOKUP(F873,'Raw Data'!$I$4:$I$5000,'Raw Data'!$D$4:$D$5000,\"*** Mnemonic not found ***\",0)","v":"*** Mnemonic not found ***"},"SUCMRUR1SOVERG7_GRTR20__",null,"Input",null,null,256,"I","Input!I256",{"$f":"_xlfn.XLOOKUP(F873,'Raw Data'!$I$4:$I$5000,'Raw Data'!$E$4:$E$5000,100,0)","v":100},{"$f":"IF(N873=0,_xlfn.XLOOKUP(F873,'Raw Data'!$I$4:$I$5000,'Raw Data'!$H$4:$H$5000,\"\",0),\"\")","v":""},{"$f":"IF(INDIRECT(M873) = \"\",\"\",INDIRECT(M873))","v":""},"n"]
["SUCMRUR1SOVERG8_GRTR20",null,null,null,{"$f":"_xlfn.XLOOKUP(F874,'Raw Data'!$I$4:$I$5000,'Raw Data'!$D$4:$D$5000,\"*** Mnemonic not found ***\",0)","v":"*** Mnemonic not found ***"},"SUCMRUR1SOVERG8_GRTR20__",null,"Input",null,null,256,"J","Input!J256",{"$f":"_xlfn.XLOOKUP(F874,'Raw Data'!$I$4:$I$5000,'Raw Data'!$E$4:$E$5000,100,0)","v":100},{"$f":"IF(N874=0,_xlfn.XLOOKUP(F874,'Raw Data'!$I$4:$I$5000,'Raw Data'!$H$4:$H$5000,\"\",0),\"\")","v":""},{"$f":"IF(INDIRECT(M874) = \"\",\"\",INDIRECT(M874))","v":""},"n"]
["SUCMRUR1SOVERG9_GRTR20",null,null,null,{"$f":"_xlfn.XLOOKUP(F875,'Raw Data'!$I$4:$I$5000,'Raw Data'!$D$4:$D$5000,\"*** Mnemonic not found ***\",0)","v":"*** Mnemonic not found ***"},"SUCMRUR1SOVERG9_GRTR20__",null,"Input",null,null,256,"K","Input!K256",{"$f":"_xlfn.XLOOKUP(F875,'Raw Data'!$I$4:$I$5000,'Raw Data'!$E$4:$E$5000,100,0)","v":100},{"$f":"IF(N875=0,_xlfn.XLOOKUP(F875,'Raw Data'!$I$4:$I$5000,'Raw Data'!$H$4:$H$5000,\"\",0),\"\")","v":""},{"$f":"IF(INDIRECT(M875) = \"\",\"\",INDIRECT(M875))","v":""},"n"]
["SUCMRUR1SOVERG10_GRTR20",null,null,null,{"$f":"_xlfn.XLOOKUP(F876,'Raw Data'!$I$4:$I$5000,'Raw Data'!$D$4:$D$5000,\"*** Mnemonic not found ***\",0)","v":"*** Mnemonic not found ***"},"SUCMRUR1SOVERG10_GRTR20__",null,"Input",null,null,256,"L","Input!L256",{"$f":"_xlfn.XLOOKUP(F876,'Raw Data'!$I$4:$I$5000,'Raw Data'!$E$4:$E$5000,100,0)","v":100},{"$f":"IF(N876=0,_xlfn.XLOOKUP(F876,'Raw Data'!$I$4:$I$5000,'Raw Data'!$H$4:$H$5000,\"\",0),\"\")","v":""},{"$f":"IF(INDIRECT(M876) = \"\",\"\",INDIRECT(M876))","v":""},"n"]
["SUCMRUR1SOVERGNA_GRTR20",null,null,null,{"$f":"_xlfn.XLOOKUP(F877,'Raw Data'!$I$4:$I$5000,'Raw Data'!$D$4:$D$5000,\"*** Mnemonic not found ***\",0)","v":"*** Mnemonic not found ***"},"SUCMRUR1SOVERGNA_GRTR20__",null,"Input",null,null,256,"M","Input!M256",{"$f":"_xlfn.XLOOKUP(F877,'Raw Data'!$I$4:$I$5000,'Raw Data'!$E$4:$E$5000,100,0)","v":100},{"$f":"IF(N877=0,_xlfn.XLOOKUP(F877,'Raw Data'!$I$4:$I$5000,'Raw Data'!$H$4:$H$5000,\"\",0),\"\")","v":""},{"$f":"IF(INDIRECT(M877) = \"\",\"\",INDIRECT(M877))","v":""},"n"]
["SUCMRUR2SOVERG1_LESS1",null,null,null,{"$f":"_xlfn.XLOOKUP(F878,'Raw Data'!$I$4:$I$5000,'Raw Data'!$D$4:$D$5000,\"*** Mnemonic not found ***\",0)","v":"*** Mnemonic not found ***"},"SUCMRUR2SOVERG1_LESS1__",null,"Input",{"$f":"ROW(section_bonds_sp_unrated_step_4)","v":187},{"$f":"J823+10","v":75},{"$f":"I878+J878","v":262},{"$f":"L867","v":"C"},"Input!C262",{"$f":"_xlfn.XLOOKUP(F878,'Raw Data'!$I$4:$I$5000,'Raw Data'!$E$4:$E$5000,100,0)","v":100},{"$f":"IF(N878=0,_xlfn.XLOOKUP(F878,'Raw Data'!$I$4:$I$5000,'Raw Data'!$H$4:$H$5000,\"\",0),\"\")","v":""},{"$f":"IF(INDIRECT(M878) = \"\",\"\",INDIRECT(M878))","v":""},"n"]
["SUCMRUR2SOVERG2_LESS1",null,null,null,{"$f":"_xlfn.XLOOKUP(F879,'Raw Data'!$I$4:$I$5000,'Raw Data'!$D$4:$D$5000,\"*** Mnemonic not found ***\",0)","v":"*** Mnemonic not found ***"},"SUCMRUR2SOVERG2_LESS1__",null,"Input",null,null,{"$f":"K878","v":262},{"$f":"L868","v":"D"},"Input!D262",{"$f":"_xlfn.XLOOKUP(F879,'Raw Data'!$I$4:$I$5000,'Raw Data'!$E$4:$E$5000,100,0)","v":100},{"$f":"IF(N879=0,_xlfn.XLOOKUP(F879,'Raw Data'!$I$4:$I$5000,'Raw Data'!$H$4:$H$5000,\"\",0),\"\")","v":""},{"$f":"IF(INDIRECT(M879) = \"\",\"\",INDIRECT(M879))","v":""},"n"]
["SUCMRUR2SOVERG3_LESS1",null,null,null,{"$f":"_xlfn.XLOOKUP(F880,'Raw Data'!$I$4:$I$5000,'Raw Data'!$D$4:$D$5000,\"*** Mnemonic not found ***\",0)","v":"*** Mnemonic not found ***"},"SUCMRUR2SOVERG3_LESS1__",null,"Input",null,null,{"$f":"K879","v":262},"E","Input!E262",{"$f":"_xlfn.XLOOKUP(F880,'Raw Data'!$I$4:$I$5000,'Raw Data'!$E$4:$E$5000,100,0)","v":100},{"$f":"IF(N880=0,_xlfn.XLOOKUP(F880,'Raw Data'!$I$4:$I$5000,'Raw Data'!$H$4:$H$5000,\"\",0),\"\")","v":""},{"$f":"IF(INDIRECT(M880) = \"\",\"\",INDIRECT(M880))","v":""},"n"]
["SUCMRUR2SOVERG4_LESS1",null,null,null,{"$f":"_xlfn.XLOOKUP(F881,'Raw Data'!$I$4:$I$5000,'Raw Data'!$D$4:$D$5000,\"*** Mnemonic not found ***\",0)","v":"*** Mnemonic not found ***"},"SUCMRUR2SOVERG4_LESS1__",null,"Input",null,null,262,"F","Input!F262",{"$f":"_xlfn.XLOOKUP(F881,'Raw Data'!$I$4:$I$5000,'Raw Data'!$E$4:$E$5000,100,0)","v":100},{"$f":"IF(N881=0,_xlfn.XLOOKUP(F881,'Raw Data'!$I$4:$I$5000,'Raw Data'!$H$4:$H$5000,\"\",0),\"\")","v":""},{"$f":"IF(INDIRECT(M881) = \"\",\"\",INDIRECT(M881))","v":""},"n"]
["SUCMRUR2SOVERG5_LESS1",null,null,null,{"$f":"_xlfn.XLOOKUP(F882,'Raw Data'!$I$4:$I$5000,'Raw Data'!$D$4:$D$5000,\"*** Mnemonic not found ***\",0)","v":"*** Mnemonic not found ***"},"SUCMRUR2SOVERG5_LESS1__",null,"Input",null,null,262,"G","Input!G262",{"$f":"_xlfn.XLOOKUP(F882,'Raw Data'!$I$4:$I$5000,'Raw Data'!$E$4:$E$5000,100,0)","v":100},{"$f":"IF(N882=0,_xlfn.XLOOKUP(F882,'Raw Data'!$I$4:$I$5000,'Raw Data'!$H$4:$H$5000,\"\",0),\"\")","v":""},{"$f":"IF(INDIRECT(M882) = \"\",\"\",INDIRECT(M882))","v":""},"n"]
["SUCMRUR2SOVERG6_LESS1",null,null,null,{"$f":"_xlfn.XLOOKUP(F883,'Raw Data'!$I$4:$I$5000,'Raw Data'!$D$4:$D$5000,\"*** Mnemonic not found ***\",0)","v":"*** Mnemonic not found ***"},"SUCMRUR2SOVERG6_LESS1__",null,"Input",null,null,262,"H","Input!H262",{"$f":"_xlfn.XLOOKUP(F883,'Raw Data'!$I$4:$I$5000,'Raw Data'!$E$4:$E$5000,100,0)","v":100},{"$f":"IF(N883=0,_xlfn.XLOOKUP(F883,'Raw Data'!$I$4:$I$5000,'Raw Data'!$H$4:$H$5000,\"\",0),\"\")","v":""},{"$f":"IF(INDIRECT(M883) = \"\",\"\",INDIRECT(M883))","v":""},"n"]
["SUCMRUR2SOVERG7_LESS1",null,null,null,{"$f":"_xlfn.XLOOKUP(F884,'Raw Data'!$I$4:$I$5000,'Raw Data'!$D$4:$D$5000,\"*** Mnemonic not found ***\",0)","v":"*** Mnemonic not found ***"},"SUCMRUR2SOVERG7_LESS1__",null,"Input",null,null,262,"I","Input!I262",{"$f":"_xlfn.XLOOKUP(F884,'Raw Data'!$I$4:$I$5000,'Raw Data'!$E$4:$E$5000,100,0)","v":100},{"$f":"IF(N884=0,_xlfn.XLOOKUP(F884,'Raw Data'!$I$4:$I$5000,'Raw Data'!$H$4:$H$5000,\"\",0),\"\")","v":""},{"$f":"IF(INDIRECT(M884) = \"\",\"\",INDIRECT(M884))","v":""},"n"]
["SUCMRUR2SOVERG8_LESS1",null,null,null,{"$f":"_xlfn.XLOOKUP(F885,'Raw Data'!$I$4:$I$5000,'Raw Data'!$D$4:$D$5000,\"*** Mnemonic not found ***\",0)","v":"*** Mnemonic not found ***"},"SUCMRUR2SOVERG8_LESS1__",null,"Input",null,null,262,"J","Input!J262",{"$f":"_xlfn.XLOOKUP(F885,'Raw Data'!$I$4:$I$5000,'Raw Data'!$E$4:$E$5000,100,0)","v":100},{"$f":"IF(N885=0,_xlfn.XLOOKUP(F885,'Raw Data'!$I$4:$I$5000,'Raw Data'!$H$4:$H$5000,\"\",0),\"\")","v":""},{"$f":"IF(INDIRECT(M885) = \"\",\"\",INDIRECT(M885))","v":""},"n"]
["SUCMRUR2SOVERG9_LESS1",null,null,null,{"$f":"_xlfn.XLOOKUP(F886,'Raw Data'!$I$4:$I$5000,'Raw Data'!$D$4:$D$5000,\"*** Mnemonic not found ***\",0)","v":"*** Mnemonic not found ***"},"SUCMRUR2SOVERG9_LESS1__",null,"Input",null,null,262,"K","Input!K262",{"$f":"_xlfn.XLOOKUP(F886,'Raw Data'!$I$4:$I$5000,'Raw Data'!$E$4:$E$5000,100,0)","v":100},{"$f":"IF(N886=0,_xlfn.XLOOKUP(F886,'Raw Data'!$I$4:$I$5000,'Raw Data'!$H$4:$H$5000,\"\",0),\"\")","v":""},{"$f":"IF(INDIRECT(M886) = \"\",\"\",INDIRECT(M886))","v":""},"n"]
["SUCMRUR2SOVERG10_LESS1",null,null,null,{"$f":"_xlfn.XLOOKUP(F887,'Raw Data'!$I$4:$I$5000,'Raw Data'!$D$4:$D$5000,\"*** Mnemonic not found ***\",0)","v":"*** Mnemonic not found ***"},"SUCMRUR2SOVERG10_LESS1__",null,"Input",null,null,262,"L","Input!L262",{"$f":"_xlfn.XLOOKUP(F887,'Raw Data'!$I$4:$I$5000,'Raw Data'!$E$4:$E$5000,100,0)","v":100},{"$f":"IF(N887=0,_xlfn.XLOOKUP(F887,'Raw Data'!$I$4:$I$5000,'Raw Data'!$H$4:$H$5000,\"\",0),\"\")","v":""},{"$f":"IF(INDIRECT(M887) = \"\",\"\",INDIRECT(M887))","v":""},"n"]
["SUCMRUR2SOVERGNA_LESS1",null,null,null,{"$f":"_xlfn.XLOOKUP(F888,'Raw Data'!$I$4:$I$5000,'Raw Data'!$D$4:$D$5000,\"*** Mnemonic not found ***\",0)","v":"*** Mnemonic not found ***"},"SUCMRUR2SOVERGNA_LESS1__",null,"Input",null,null,262,"M","Input!M262",{"$f":"_xlfn.XLOOKUP(F888,'Raw Data'!$I$4:$I$5000,'Raw Data'!$E$4:$E$5000,100,0)","v":100},{"$f":"IF(N888=0,_xlfn.XLOOKUP(F888,'Raw Data'!$I$4:$I$5000,'Raw Data'!$H$4:$H$5000,\"\",0),\"\")","v":""},{"$f":"IF(INDIRECT(M888) = \"\",\"\",INDIRECT(M888))","v":""},"n"]
["SUCMRUR2SOVERG1_1TO5",null,null,null,{"$f":"_xlfn.XLOOKUP(F889,'Raw Data'!$I$4:$I$5000,'Raw Data'!$D$4:$D$5000,\"*** Mnemonic not found ***\",0)","v":"*** Mnemonic not found ***"},"SUCMRUR2SOVERG1_1TO5__",null,"Input",null,null,{"$f":"K878+1","v":263},{"$f":"L878","v":"C"},"Input!C263",{"$f":"_xlfn.XLOOKUP(F889,'Raw Data'!$I$4:$I$5000,'Raw Data'!$E$4:$E$5000,100,0)","v":100},{"$f":"IF(N889=0,_xlfn.XLOOKUP(F889,'Raw Data'!$I$4:$I$5000,'Raw Data'!$H$4:$H$5000,\"\",0),\"\")","v":""},{"$f":"IF(INDIRECT(M889) = \"\",\"\",INDIRECT(M889))","v":""},"n"]
["SUCMRUR2SOVERG2_1TO5",null,null,null,{"$f":"_xlfn.XLOOKUP(F890,'Raw Data'!$I$4:$I$5000,'Raw Data'!$D$4:$D$5000,\"*** Mnemonic not found ***\",0)","v":"*** Mnemonic not found ***"},"SUCMRUR2SOVERG2_1TO5__",null,"Input",null,null,{"$f":"K879+1","v":263},{"$f":"L879","v":"D"},"Input!D263",{"$f":"_xlfn.XLOOKUP(F890,'Raw Data'!$I$4:$I$5000,'Raw Data'!$E$4:$E$5000,100,0)","v":100},{"$f":"IF(N890=0,_xlfn.XLOOKUP(F890,'Raw Data'!$I$4:$I$5000,'Raw Data'!$H$4:$H$5000,\"\",0),\"\")","v":""},{"$f":"IF(INDIRECT(M890) = \"\",\"\",INDIRECT(M890))","v":""},"n"]
["SUCMRUR2SOVERG3_1TO5",null,null,null,{"$f":"_xlfn.XLOOKUP(F891,'Raw Data'!$I$4:$I$5000,'Raw Data'!$D$4:$D$5000,\"*** Mnemonic not found ***\",0)","v":"*** Mnemonic not found ***"},"SUCMRUR2SOVERG3_1TO5__",null,"Input",null,null,263,"E","Input!E263",{"$f":"_xlfn.XLOOKUP(F891,'Raw Data'!$I$4:$I$5000,'Raw Data'!$E$4:$E$5000,100,0)","v":100},{"$f":"IF(N891=0,_xlfn.XLOOKUP(F891,'Raw Data'!$I$4:$I$5000,'Raw Data'!$H$4:$H$5000,\"\",0),\"\")","v":""},{"$f":"IF(INDIRECT(M891) = \"\",\"\",INDIRECT(M891))","v":""},"n"]
["SUCMRUR2SOVERG4_1TO5",null,null,null,{"$f":"_xlfn.XLOOKUP(F892,'Raw Data'!$I$4:$I$5000,'Raw Data'!$D$4:$D$5000,\"*** Mnemonic not found ***\",0)","v":"*** Mnemonic not found ***"},"SUCMRUR2SOVERG4_1TO5__",null,"Input",null,null,263,"F","Input!F263",{"$f":"_xlfn.XLOOKUP(F892,'Raw Data'!$I$4:$I$5000,'Raw Data'!$E$4:$E$5000,100,0)","v":100},{"$f":"IF(N892=0,_xlfn.XLOOKUP(F892,'Raw Data'!$I$4:$I$5000,'Raw Data'!$H$4:$H$5000,\"\",0),\"\")","v":""},{"$f":"IF(INDIRECT(M892) = \"\",\"\",INDIRECT(M892))","v":""},"n"]
["SUCMRUR2SOVERG5_1TO5",null,null,null,{"$f":"_xlfn.XLOOKUP(F893,'Raw Data'!$I$4:$I$5000,'Raw Data'!$D$4:$D$5000,\"*** Mnemonic not found ***\",0)","v":"*** Mnemonic not found ***"},"SUCMRUR2SOVERG5_1TO5__",null,"Input",null,null,263,"G","Input!G263",{"$f":"_xlfn.XLOOKUP(F893,'Raw Data'!$I$4:$I$5000,'Raw Data'!$E$4:$E$5000,100,0)","v":100},{"$f":"IF(N893=0,_xlfn.XLOOKUP(F893,'Raw Data'!$I$4:$I$5000,'Raw Data'!$H$4:$H$5000,\"\",0),\"\")","v":""},{"$f":"IF(INDIRECT(M893) = \"\",\"\",INDIRECT(M893))","v":""},"n"]
["SUCMRUR2SOVERG6_1TO5",null,null,null,{"$f":"_xlfn.XLOOKUP(F894,'Raw Data'!$I$4:$I$5000,'Raw Data'!$D$4:$D$5000,\"*** Mnemonic not found ***\",0)","v":"*** Mnemonic not found ***"},"SUCMRUR2SOVERG6_1TO5__",null,"Input",null,null,263,"H","Input!H263",{"$f":"_xlfn.XLOOKUP(F894,'Raw Data'!$I$4:$I$5000,'Raw Data'!$E$4:$E$5000,100,0)","v":100},{"$f":"IF(N894=0,_xlfn.XLOOKUP(F894,'Raw Data'!$I$4:$I$5000,'Raw Data'!$H$4:$H$5000,\"\",0),\"\")","v":""},{"$f":"IF(INDIRECT(M894) = \"\",\"\",INDIRECT(M894))","v":""},"n"]
["SUCMRUR2SOVERG7_1TO5",null,null,null,{"$f":"_xlfn.XLOOKUP(F895,'Raw Data'!$I$4:$I$5000,'Raw Data'!$D$4:$D$5000,\"*** Mnemonic not found ***\",0)","v":"*** Mnemonic not found ***"},"SUCMRUR2SOVERG7_1TO5__",null,"Input",null,null,263,"I","Input!I263",{"$f":"_xlfn.XLOOKUP(F895,'Raw Data'!$I$4:$I$5000,'Raw Data'!$E$4:$E$5000,100,0)","v":100},{"$f":"IF(N895=0,_xlfn.XLOOKUP(F895,'Raw Data'!$I$4:$I$5000,'Raw Data'!$H$4:$H$5000,\"\",0),\"\")","v":""},{"$f":"IF(INDIRECT(M895) = \"\",\"\",INDIRECT(M895))","v":""},"n"]
["SUCMRUR2SOVERG8_1TO5",null,null,null,{"$f":"_xlfn.XLOOKUP(F896,'Raw Data'!$I$4:$I$5000,'Raw Data'!$D$4:$D$5000,\"*** Mnemonic not found ***\",0)","v":"*** Mnemonic not found ***"},"SUCMRUR2SOVERG8_1TO5__",null,"Input",null,null,263,"J","Input!J263",{"$f":"_xlfn.XLOOKUP(F896,'Raw Data'!$I$4:$I$5000,'Raw Data'!$E$4:$E$5000,100,0)","v":100},{"$f":"IF(N896=0,_xlfn.XLOOKUP(F896,'Raw Data'!$I$4:$I$5000,'Raw Data'!$H$4:$H$5000,\"\",0),\"\")","v":""},{"$f":"IF(INDIRECT(M896) = \"\",\"\",INDIRECT(M896))","v":""},"n"]
["SUCMRUR2SOVERG9_1TO5",null,null,null,{"$f":"_xlfn.XLOOKUP(F897,'Raw Data'!$I$4:$I$5000,'Raw Data'!$D$4:$D$5000,\"*** Mnemonic not found ***\",0)","v":"*** Mnemonic not found ***"},"SUCMRUR2SOVERG9_1TO5__",null,"Input",null,null,263,"K","Input!K263",{"$f":"_xlfn.XLOOKUP(F897,'Raw Data'!$I$4:$I$5000,'Raw Data'!$E$4:$E$5000,100,0)","v":100},{"$f":"IF(N897=0,_xlfn.XLOOKUP(F897,'Raw Data'!$I$4:$I$5000,'Raw Data'!$H$4:$H$5000,\"\",0),\"\")","v":""},{"$f":"IF(INDIRECT(M897) = \"\",\"\",INDIRECT(M897))","v":""},"n"]
["SUCMRUR2SOVERG10_1TO5",null,null,null,{"$f":"_xlfn.XLOOKUP(F898,'Raw Data'!$I$4:$I$5000,'Raw Data'!$D$4:$D$5000,\"*** Mnemonic not found ***\",0)","v":"*** Mnemonic not found ***"},"SUCMRUR2SOVERG10_1TO5__",null,"Input",null,null,263,"L","Input!L263",{"$f":"_xlfn.XLOOKUP(F898,'Raw Data'!$I$4:$I$5000,'Raw Data'!$E$4:$E$5000,100,0)","v":100},{"$f":"IF(N898=0,_xlfn.XLOOKUP(F898,'Raw Data'!$I$4:$I$5000,'Raw Data'!$H$4:$H$5000,\"\",0),\"\")","v":""},{"$f":"IF(INDIRECT(M898) = \"\",\"\",INDIRECT(M898))","v":""},"n"]
["SUCMRUR2SOVERGNA_1TO5",null,null,null,{"$f":"_xlfn.XLOOKUP(F899,'Raw Data'!$I$4:$I$5000,'Raw Data'!$D$4:$D$5000,\"*** Mnemonic not found ***\",0)","v":"*** Mnemonic not found ***"},"SUCMRUR2SOVERGNA_1TO5__",null,"Input",null,null,263,"M","Input!M263",{"$f":"_xlfn.XLOOKUP(F899,'Raw Data'!$I$4:$I$5000,'Raw Data'!$E$4:$E$5000,100,0)","v":100},{"$f":"IF(N899=0,_xlfn.XLOOKUP(F899,'Raw Data'!$I$4:$I$5000,'Raw Data'!$H$4:$H$5000,\"\",0),\"\")","v":""},{"$f":"IF(INDIRECT(M899) = \"\",\"\",INDIRECT(M899))","v":""},"n"]
["SUCMRUR2SOVERG1_5TO10",null,null,null,{"$f":"_xlfn.XLOOKUP(F900,'Raw Data'!$I$4:$I$5000,'Raw Data'!$D$4:$D$5000,\"*** Mnemonic not found ***\",0)","v":"*** Mnemonic not found ***"},"SUCMRUR2SOVERG1_5TO10__",null,"Input",null,null,264,"C","Input!C264",{"$f":"_xlfn.XLOOKUP(F900,'Raw Data'!$I$4:$I$5000,'Raw Data'!$E$4:$E$5000,100,0)","v":100},{"$f":"IF(N900=0,_xlfn.XLOOKUP(F900,'Raw Data'!$I$4:$I$5000,'Raw Data'!$H$4:$H$5000,\"\",0),\"\")","v":""},{"$f":"IF(INDIRECT(M900) = \"\",\"\",INDIRECT(M900))","v":""},"n"]
["SUCMRUR2SOVERG2_5TO10",null,null,null,{"$f":"_xlfn.XLOOKUP(F901,'Raw Data'!$I$4:$I$5000,'Raw Data'!$D$4:$D$5000,\"*** Mnemonic not found ***\",0)","v":"*** Mnemonic not found ***"},{"$f":"CONCATENATE(A901,\"_\",B901,\"_\",D901)","v":"SUCMRUR2SOVERG2_5TO10__"},null,"Input",null,null,264,"D","Input!D264",{"$f":"_xlfn.XLOOKUP(F901,'Raw Data'!$I$4:$I$5000,'Raw Data'!$E$4:$E$5000,100,0)","v":100},{"$f":"IF(N901=0,_xlfn.XLOOKUP(F901,'Raw Data'!$I$4:$I$5000,'Raw Data'!$H$4:$H$5000,\"\",0),\"\")","v":""},{"$f":"IF(INDIRECT(M901) = \"\",\"\",INDIRECT(M901))","v":""},"n"]
["SUCMRUR2SOVERG3_5TO10",null,null,null,{"$f":"_xlfn.XLOOKUP(F902,'Raw Data'!$I$4:$I$5000,'Raw Data'!$D$4:$D$5000,\"*** Mnemonic not found ***\",0)","v":"*** Mnemonic not found ***"},"SUCMRUR2SOVERG3_5TO10__",null,"Input",null,null,264,"E","Input!E264",{"$f":"_xlfn.XLOOKUP(F902,'Raw Data'!$I$4:$I$5000,'Raw Data'!$E$4:$E$5000,100,0)","v":100},{"$f":"IF(N902=0,_xlfn.XLOOKUP(F902,'Raw Data'!$I$4:$I$5000,'Raw Data'!$H$4:$H$5000,\"\",0),\"\")","v":""},{"$f":"IF(INDIRECT(M902) = \"\",\"\",INDIRECT(M902))","v":""},"n"]
["SUCMRUR2SOVERG4_5TO10",null,null,null,{"$f":"_xlfn.XLOOKUP(F903,'Raw Data'!$I$4:$I$5000,'Raw Data'!$D$4:$D$5000,\"*** Mnemonic not found ***\",0)","v":"*** Mnemonic not found ***"},"SUCMRUR2SOVERG4_5TO10__",null,"Input",null,null,264,"F","Input!F264",{"$f":"_xlfn.XLOOKUP(F903,'Raw Data'!$I$4:$I$5000,'Raw Data'!$E$4:$E$5000,100,0)","v":100},{"$f":"IF(N903=0,_xlfn.XLOOKUP(F903,'Raw Data'!$I$4:$I$5000,'Raw Data'!$H$4:$H$5000,\"\",0),\"\")","v":""},{"$f":"IF(INDIRECT(M903) = \"\",\"\",INDIRECT(M903))","v":""},"n"]
["SUCMRUR2SOVERG5_5TO10",null,null,null,{"$f":"_xlfn.XLOOKUP(F904,'Raw Data'!$I$4:$I$5000,'Raw Data'!$D$4:$D$5000,\"*** Mnemonic not found ***\",0)","v":"*** Mnemonic not found ***"},"SUCMRUR2SOVERG5_5TO10__",null,"Input",null,null,264,"G","Input!G264",{"$f":"_xlfn.XLOOKUP(F904,'Raw Data'!$I$4:$I$5000,'Raw Data'!$E$4:$E$5000,100,0)","v":100},{"$f":"IF(N904=0,_xlfn.XLOOKUP(F904,'Raw Data'!$I$4:$I$5000,'Raw Data'!$H$4:$H$5000,\"\",0),\"\")","v":""},{"$f":"IF(INDIRECT(M904) = \"\",\"\",INDIRECT(M904))","v":""},"n"]
["SUCMRUR2SOVERG6_5TO10",null,null,null,{"$f":"_xlfn.XLOOKUP(F905,'Raw Data'!$I$4:$I$5000,'Raw Data'!$D$4:$D$5000,\"*** Mnemonic not found ***\",0)","v":"*** Mnemonic not found ***"},"SUCMRUR2SOVERG6_5TO10__",null,"Input",null,null,264,"H","Input!H264",{"$f":"_xlfn.XLOOKUP(F905,'Raw Data'!$I$4:$I$5000,'Raw Data'!$E$4:$E$5000,100,0)","v":100},{"$f":"IF(N905=0,_xlfn.XLOOKUP(F905,'Raw Data'!$I$4:$I$5000,'Raw Data'!$H$4:$H$5000,\"\",0),\"\")","v":""},{"$f":"IF(INDIRECT(M905) = \"\",\"\",INDIRECT(M905))","v":""},"n"]
["SUCMRUR2SOVERG7_5TO10",null,null,null,{"$f":"_xlfn.XLOOKUP(F906,'Raw Data'!$I$4:$I$5000,'Raw Data'!$D$4:$D$5000,\"*** Mnemonic not found ***\",0)","v":"*** Mnemonic not found ***"},"SUCMRUR2SOVERG7_5TO10__",null,"Input",null,null,264,"I","Input!I264",{"$f":"_xlfn.XLOOKUP(F906,'Raw Data'!$I$4:$I$5000,'Raw Data'!$E$4:$E$5000,100,0)","v":100},{"$f":"IF(N906=0,_xlfn.XLOOKUP(F906,'Raw Data'!$I$4:$I$5000,'Raw Data'!$H$4:$H$5000,\"\",0),\"\")","v":""},{"$f":"IF(INDIRECT(M906) = \"\",\"\",INDIRECT(M906))","v":""},"n"]
["SUCMRUR2SOVERG8_5TO10",null,null,null,{"$f":"_xlfn.XLOOKUP(F907,'Raw Data'!$I$4:$I$5000,'Raw Data'!$D$4:$D$5000,\"*** Mnemonic not found ***\",0)","v":"*** Mnemonic not found ***"},"SUCMRUR2SOVERG8_5TO10__",null,"Input",null,null,264,"J","Input!J264",{"$f":"_xlfn.XLOOKUP(F907,'Raw Data'!$I$4:$I$5000,'Raw Data'!$E$4:$E$5000,100,0)","v":100},{"$f":"IF(N907=0,_xlfn.XLOOKUP(F907,'Raw Data'!$I$4:$I$5000,'Raw Data'!$H$4:$H$5000,\"\",0),\"\")","v":""},{"$f":"IF(INDIRECT(M907) = \"\",\"\",INDIRECT(M907))","v":""},"n"]
["SUCMRUR2SOVERG9_5TO10",null,null,null,{"$f":"_xlfn.XLOOKUP(F908,'Raw Data'!$I$4:$I$5000,'Raw Data'!$D$4:$D$5000,\"*** Mnemonic not found ***\",0)","v":"*** Mnemonic not found ***"},"SUCMRUR2SOVERG9_5TO10__",null,"Input",null,null,264,"K","Input!K264",{"$f":"_xlfn.XLOOKUP(F908,'Raw Data'!$I$4:$I$5000,'Raw Data'!$E$4:$E$5000,100,0)","v":100},{"$f":"IF(N908=0,_xlfn.XLOOKUP(F908,'Raw Data'!$I$4:$I$5000,'Raw Data'!$H$4:$H$5000,\"\",0),\"\")","v":""},{"$f":"IF(INDIRECT(M908) = \"\",\"\",INDIRECT(M908))","v":""},"n"]
["SUCMRUR2SOVERG10_5TO10",null,null,null,{"$f":"_xlfn.XLOOKUP(F909,'Raw Data'!$I$4:$I$5000,'Raw Data'!$D$4:$D$5000,\"*** Mnemonic not found ***\",0)","v":"*** Mnemonic not found ***"},"SUCMRUR2SOVERG10_5TO10__",null,"Input",null,null,264,"L","Input!L264",{"$f":"_xlfn.XLOOKUP(F909,'Raw Data'!$I$4:$I$5000,'Raw Data'!$E$4:$E$5000,100,0)","v":100},{"$f":"IF(N909=0,_xlfn.XLOOKUP(F909,'Raw Data'!$I$4:$I$5000,'Raw Data'!$H$4:$H$5000,\"\",0),\"\")","v":""},{"$f":"IF(INDIRECT(M909) = \"\",\"\",INDIRECT(M909))","v":""},"n"]
["SUCMRUR2SOVERGNA_5TO10",null,null,null,{"$f":"_xlfn.XLOOKUP(F910,'Raw Data'!$I$4:$I$5000,'Raw Data'!$D$4:$D$5000,\"*** Mnemonic not found ***\",0)","v":"*** Mnemonic not found ***"},"SUCMRUR2SOVERGNA_5TO10__",null,"Input",null,null,264,"M","Input!M264",{"$f":"_xlfn.XLOOKUP(F910,'Raw Data'!$I$4:$I$5000,'Raw Data'!$E$4:$E$5000,100,0)","v":100},{"$f":"IF(N910=0,_xlfn.XLOOKUP(F910,'Raw Data'!$I$4:$I$5000,'Raw Data'!$H$4:$H$5000,\"\",0),\"\")","v":""},{"$f":"IF(INDIRECT(M910) = \"\",\"\",INDIRECT(M910))","v":""},"n"]
["SUCMRUR2SOVERG1_10TO20",null,null,null,{"$f":"_xlfn.XLOOKUP(F911,'Raw Data'!$I$4:$I$5000,'Raw Data'!$D$4:$D$5000,\"*** Mnemonic not found ***\",0)","v":"*** Mnemonic not found ***"},"SUCMRUR2SOVERG1_10TO20__",null,"Input",null,null,265,"C",{"$f":"CONCATENATE(H911,\"!\",L911,K911)","v":"Input!C265"},{"$f":"_xlfn.XLOOKUP(F911,'Raw Data'!$I$4:$I$5000,'Raw Data'!$E$4:$E$5000,100,0)","v":100},{"$f":"IF(N911=0,_xlfn.XLOOKUP(F911,'Raw Data'!$I$4:$I$5000,'Raw Data'!$H$4:$H$5000,\"\",0),\"\")","v":""},{"$f":"IF(INDIRECT(M911) = \"\",\"\",INDIRECT(M911))","v":""},"n"]
["SUCMRUR2SOVERG2_10TO20",null,null,null,{"$f":"_xlfn.XLOOKUP(F912,'Raw Data'!$I$4:$I$5000,'Raw Data'!$D$4:$D$5000,\"*** Mnemonic not found ***\",0)","v":"*** Mnemonic not found ***"},"SUCMRUR2SOVERG2_10TO20__",null,"Input",null,null,265,"D","Input!D265",{"$f":"_xlfn.XLOOKUP(F912,'Raw Data'!$I$4:$I$5000,'Raw Data'!$E$4:$E$5000,100,0)","v":100},{"$f":"IF(N912=0,_xlfn.XLOOKUP(F912,'Raw Data'!$I$4:$I$5000,'Raw Data'!$H$4:$H$5000,\"\",0),\"\")","v":""},{"$f":"IF(INDIRECT(M912) = \"\",\"\",INDIRECT(M912))","v":""},"n"]
["SUCMRUR2SOVERG3_10TO20",null,null,null,{"$f":"_xlfn.XLOOKUP(F913,'Raw Data'!$I$4:$I$5000,'Raw Data'!$D$4:$D$5000,\"*** Mnemonic not found ***\",0)","v":"*** Mnemonic not found ***"},"SUCMRUR2SOVERG3_10TO20__",null,"Input",null,null,265,"E","Input!E265",{"$f":"_xlfn.XLOOKUP(F913,'Raw Data'!$I$4:$I$5000,'Raw Data'!$E$4:$E$5000,100,0)","v":100},{"$f":"IF(N913=0,_xlfn.XLOOKUP(F913,'Raw Data'!$I$4:$I$5000,'Raw Data'!$H$4:$H$5000,\"\",0),\"\")","v":""},{"$f":"IF(INDIRECT(M913) = \"\",\"\",INDIRECT(M913))","v":""},"n"]
["SUCMRUR2SOVERG4_10TO20",null,null,null,{"$f":"_xlfn.XLOOKUP(F914,'Raw Data'!$I$4:$I$5000,'Raw Data'!$D$4:$D$5000,\"*** Mnemonic not found ***\",0)","v":"*** Mnemonic not found ***"},"SUCMRUR2SOVERG4_10TO20__",null,"Input",null,null,265,"F","Input!F265",{"$f":"_xlfn.XLOOKUP(F914,'Raw Data'!$I$4:$I$5000,'Raw Data'!$E$4:$E$5000,100,0)","v":100},{"$f":"IF(N914=0,_xlfn.XLOOKUP(F914,'Raw Data'!$I$4:$I$5000,'Raw Data'!$H$4:$H$5000,\"\",0),\"\")","v":""},{"$f":"IF(INDIRECT(M914) = \"\",\"\",INDIRECT(M914))","v":""},"n"]
["SUCMRUR2SOVERG5_10TO20",null,null,null,{"$f":"_xlfn.XLOOKUP(F915,'Raw Data'!$I$4:$I$5000,'Raw Data'!$D$4:$D$5000,\"*** Mnemonic not found ***\",0)","v":"*** Mnemonic not found ***"},"SUCMRUR2SOVERG5_10TO20__",null,"Input",null,null,265,"G","Input!G265",{"$f":"_xlfn.XLOOKUP(F915,'Raw Data'!$I$4:$I$5000,'Raw Data'!$E$4:$E$5000,100,0)","v":100},{"$f":"IF(N915=0,_xlfn.XLOOKUP(F915,'Raw Data'!$I$4:$I$5000,'Raw Data'!$H$4:$H$5000,\"\",0),\"\")","v":""},{"$f":"IF(INDIRECT(M915) = \"\",\"\",INDIRECT(M915))","v":""},"n"]
["SUCMRUR2SOVERG6_10TO20",null,null,null,{"$f":"_xlfn.XLOOKUP(F916,'Raw Data'!$I$4:$I$5000,'Raw Data'!$D$4:$D$5000,\"*** Mnemonic not found ***\",0)","v":"*** Mnemonic not found ***"},"SUCMRUR2SOVERG6_10TO20__",null,"Input",null,null,265,"H","Input!H265",{"$f":"_xlfn.XLOOKUP(F916,'Raw Data'!$I$4:$I$5000,'Raw Data'!$E$4:$E$5000,100,0)","v":100},{"$f":"IF(N916=0,_xlfn.XLOOKUP(F916,'Raw Data'!$I$4:$I$5000,'Raw Data'!$H$4:$H$5000,\"\",0),\"\")","v":""},{"$f":"IF(INDIRECT(M916) = \"\",\"\",INDIRECT(M916))","v":""},"n"]
["SUCMRUR2SOVERG7_10TO20",null,null,null,{"$f":"_xlfn.XLOOKUP(F917,'Raw Data'!$I$4:$I$5000,'Raw Data'!$D$4:$D$5000,\"*** Mnemonic not found ***\",0)","v":"*** Mnemonic not found ***"},"SUCMRUR2SOVERG7_10TO20__",null,"Input",null,null,265,"I","Input!I265",{"$f":"_xlfn.XLOOKUP(F917,'Raw Data'!$I$4:$I$5000,'Raw Data'!$E$4:$E$5000,100,0)","v":100},{"$f":"IF(N917=0,_xlfn.XLOOKUP(F917,'Raw Data'!$I$4:$I$5000,'Raw Data'!$H$4:$H$5000,\"\",0),\"\")","v":""},{"$f":"IF(INDIRECT(M917) = \"\",\"\",INDIRECT(M917))","v":""},"n"]
["SUCMRUR2SOVERG8_10TO20",null,null,null,{"$f":"_xlfn.XLOOKUP(F918,'Raw Data'!$I$4:$I$5000,'Raw Data'!$D$4:$D$5000,\"*** Mnemonic not found ***\",0)","v":"*** Mnemonic not found ***"},"SUCMRUR2SOVERG8_10TO20__",null,"Input",null,null,265,"J","Input!J265",{"$f":"_xlfn.XLOOKUP(F918,'Raw Data'!$I$4:$I$5000,'Raw Data'!$E$4:$E$5000,100,0)","v":100},{"$f":"IF(N918=0,_xlfn.XLOOKUP(F918,'Raw Data'!$I$4:$I$5000,'Raw Data'!$H$4:$H$5000,\"\",0),\"\")","v":""},{"$f":"IF(INDIRECT(M918) = \"\",\"\",INDIRECT(M918))","v":""},"n"]
["SUCMRUR2SOVERG9_10TO20",null,null,null,{"$f":"_xlfn.XLOOKUP(F919,'Raw Data'!$I$4:$I$5000,'Raw Data'!$D$4:$D$5000,\"*** Mnemonic not found ***\",0)","v":"*** Mnemonic not found ***"},"SUCMRUR2SOVERG9_10TO20__",null,"Input",null,null,265,"K","Input!K265",{"$f":"_xlfn.XLOOKUP(F919,'Raw Data'!$I$4:$I$5000,'Raw Data'!$E$4:$E$5000,100,0)","v":100},{"$f":"IF(N919=0,_xlfn.XLOOKUP(F919,'Raw Data'!$I$4:$I$5000,'Raw Data'!$H$4:$H$5000,\"\",0),\"\")","v":""},{"$f":"IF(INDIRECT(M919) = \"\",\"\",INDIRECT(M919))","v":""},"n"]
["SUCMRUR2SOVERG10_10TO20",null,null,null,{"$f":"_xlfn.XLOOKUP(F920,'Raw Data'!$I$4:$I$5000,'Raw Data'!$D$4:$D$5000,\"*** Mnemonic not found ***\",0)","v":"*** Mnemonic not found ***"},"SUCMRUR2SOVERG10_10TO20__",null,"Input",null,null,265,"L","Input!L265",{"$f":"_xlfn.XLOOKUP(F920,'Raw Data'!$I$4:$I$5000,'Raw Data'!$E$4:$E$5000,100,0)","v":100},{"$f":"IF(N920=0,_xlfn.XLOOKUP(F920,'Raw Data'!$I$4:$I$5000,'Raw Data'!$H$4:$H$5000,\"\",0),\"\")","v":""},{"$f":"IF(INDIRECT(M920) = \"\",\"\",INDIRECT(M920))","v":""},"n"]
["SUCMRUR2SOVERGNA_10TO20",null,null,null,{"$f":"_xlfn.XLOOKUP(F921,'Raw Data'!$I$4:$I$5000,'Raw Data'!$D$4:$D$5000,\"*** Mnemonic not found ***\",0)","v":"*** Mnemonic not found ***"},"SUCMRUR2SOVERGNA_10TO20__",null,"Input",null,null,265,"M","Input!M265",{"$f":"_xlfn.XLOOKUP(F921,'Raw Data'!$I$4:$I$5000,'Raw Data'!$E$4:$E$5000,100,0)","v":100},{"$f":"IF(N921=0,_xlfn.XLOOKUP(F921,'Raw Data'!$I$4:$I$5000,'Raw Data'!$H$4:$H$5000,\"\",0),\"\")","v":""},{"$f":"IF(INDIRECT(M921) = \"\",\"\",INDIRECT(M921))","v":""},"n"]
["SUCMRUR2SOVERG1_GRTR20",null,null,null,{"$f":"_xlfn.XLOOKUP(F922,'Raw Data'!$I$4:$I$5000,'Raw Data'!$D$4:$D$5000,\"*** Mnemonic not found ***\",0)","v":"*** Mnemonic not found ***"},"SUCMRUR2SOVERG1_GRTR20__",null,"Input",null,null,266,"C","Input!C266",{"$f":"_xlfn.XLOOKUP(F922,'Raw Data'!$I$4:$I$5000,'Raw Data'!$E$4:$E$5000,100,0)","v":100},{"$f":"IF(N922=0,_xlfn.XLOOKUP(F922,'Raw Data'!$I$4:$I$5000,'Raw Data'!$H$4:$H$5000,\"\",0),\"\")","v":""},{"$f":"IF(INDIRECT(M922) = \"\",\"\",INDIRECT(M922))","v":""},"n"]
["SUCMRUR2SOVERG2_GRTR20",null,null,null,{"$f":"_xlfn.XLOOKUP(F923,'Raw Data'!$I$4:$I$5000,'Raw Data'!$D$4:$D$5000,\"*** Mnemonic not found ***\",0)","v":"*** Mnemonic not found ***"},"SUCMRUR2SOVERG2_GRTR20__",null,"Input",null,null,266,"D","Input!D266",{"$f":"_xlfn.XLOOKUP(F923,'Raw Data'!$I$4:$I$5000,'Raw Data'!$E$4:$E$5000,100,0)","v":100},{"$f":"IF(N923=0,_xlfn.XLOOKUP(F923,'Raw Data'!$I$4:$I$5000,'Raw Data'!$H$4:$H$5000,\"\",0),\"\")","v":""},{"$f":"IF(INDIRECT(M923) = \"\",\"\",INDIRECT(M923))","v":""},"n"]
["SUCMRUR2SOVERG3_GRTR20",null,null,null,{"$f":"_xlfn.XLOOKUP(F924,'Raw Data'!$I$4:$I$5000,'Raw Data'!$D$4:$D$5000,\"*** Mnemonic not found ***\",0)","v":"*** Mnemonic not found ***"},"SUCMRUR2SOVERG3_GRTR20__",null,"Input",null,null,266,"E","Input!E266",{"$f":"_xlfn.XLOOKUP(F924,'Raw Data'!$I$4:$I$5000,'Raw Data'!$E$4:$E$5000,100,0)","v":100},{"$f":"IF(N924=0,_xlfn.XLOOKUP(F924,'Raw Data'!$I$4:$I$5000,'Raw Data'!$H$4:$H$5000,\"\",0),\"\")","v":""},{"$f":"IF(INDIRECT(M924) = \"\",\"\",INDIRECT(M924))","v":""},"n"]
["SUCMRUR2SOVERG4_GRTR20",null,null,null,{"$f":"_xlfn.XLOOKUP(F925,'Raw Data'!$I$4:$I$5000,'Raw Data'!$D$4:$D$5000,\"*** Mnemonic not found ***\",0)","v":"*** Mnemonic not found ***"},"SUCMRUR2SOVERG4_GRTR20__",null,"Input",null,null,266,"F","Input!F266",{"$f":"_xlfn.XLOOKUP(F925,'Raw Data'!$I$4:$I$5000,'Raw Data'!$E$4:$E$5000,100,0)","v":100},{"$f":"IF(N925=0,_xlfn.XLOOKUP(F925,'Raw Data'!$I$4:$I$5000,'Raw Data'!$H$4:$H$5000,\"\",0),\"\")","v":""},{"$f":"IF(INDIRECT(M925) = \"\",\"\",INDIRECT(M925))","v":""},"n"]
["SUCMRUR2SOVERG5_GRTR20",null,null,null,{"$f":"_xlfn.XLOOKUP(F926,'Raw Data'!$I$4:$I$5000,'Raw Data'!$D$4:$D$5000,\"*** Mnemonic not found ***\",0)","v":"*** Mnemonic not found ***"},"SUCMRUR2SOVERG5_GRTR20__",null,"Input",null,null,266,"G","Input!G266",{"$f":"_xlfn.XLOOKUP(F926,'Raw Data'!$I$4:$I$5000,'Raw Data'!$E$4:$E$5000,100,0)","v":100},{"$f":"IF(N926=0,_xlfn.XLOOKUP(F926,'Raw Data'!$I$4:$I$5000,'Raw Data'!$H$4:$H$5000,\"\",0),\"\")","v":""},{"$f":"IF(INDIRECT(M926) = \"\",\"\",INDIRECT(M926))","v":""},"n"]
["SUCMRUR2SOVERG6_GRTR20",null,null,null,{"$f":"_xlfn.XLOOKUP(F927,'Raw Data'!$I$4:$I$5000,'Raw Data'!$D$4:$D$5000,\"*** Mnemonic not found ***\",0)","v":"*** Mnemonic not found ***"},"SUCMRUR2SOVERG6_GRTR20__",null,"Input",null,null,266,"H","Input!H266",{"$f":"_xlfn.XLOOKUP(F927,'Raw Data'!$I$4:$I$5000,'Raw Data'!$E$4:$E$5000,100,0)","v":100},{"$f":"IF(N927=0,_xlfn.XLOOKUP(F927,'Raw Data'!$I$4:$I$5000,'Raw Data'!$H$4:$H$5000,\"\",0),\"\")","v":""},{"$f":"IF(INDIRECT(M927) = \"\",\"\",INDIRECT(M927))","v":""},"n"]
["SUCMRUR2SOVERG7_GRTR20",null,null,null,{"$f":"_xlfn.XLOOKUP(F928,'Raw Data'!$I$4:$I$5000,'Raw Data'!$D$4:$D$5000,\"*** Mnemonic not found ***\",0)","v":"*** Mnemonic not found ***"},"SUCMRUR2SOVERG7_GRTR20__",null,"Input",null,null,266,"I","Input!I266",{"$f":"_xlfn.XLOOKUP(F928,'Raw Data'!$I$4:$I$5000,'Raw Data'!$E$4:$E$5000,100,0)","v":100},{"$f":"IF(N928=0,_xlfn.XLOOKUP(F928,'Raw Data'!$I$4:$I$5000,'Raw Data'!$H$4:$H$5000,\"\",0),\"\")","v":""},{"$f":"IF(INDIRECT(M928) = \"\",\"\",INDIRECT(M928))","v":""},"n"]
["SUCMRUR2SOVERG8_GRTR20",null,null,null,{"$f":"_xlfn.XLOOKUP(F929,'Raw Data'!$I$4:$I$5000,'Raw Data'!$D$4:$D$5000,\"*** Mnemonic not found ***\",0)","v":"*** Mnemonic not found ***"},"SUCMRUR2SOVERG8_GRTR20__",null,"Input",null,null,266,"J","Input!J266",{"$f":"_xlfn.XLOOKUP(F929,'Raw Data'!$I$4:$I$5000,'Raw Data'!$E$4:$E$5000,100,0)","v":100},{"$f":"IF(N929=0,_xlfn.XLOOKUP(F929,'Raw Data'!$I$4:$I$5000,'Raw Data'!$H$4:$H$5000,\"\",0),\"\")","v":""},{"$f":"IF(INDIRECT(M929) = \"\",\"\",INDIRECT(M929))","v":""},"n"]
["SUCMRUR2SOVERG9_GRTR20",null,null,null,{"$f":"_xlfn.XLOOKUP(F930,'Raw Data'!$I$4:$I$5000,'Raw Data'!$D$4:$D$5000,\"*** Mnemonic not found ***\",0)","v":"*** Mnemonic not found ***"},"SUCMRUR2SOVERG9_GRTR20__",null,"Input",null,null,266,"K","Input!K266",{"$f":"_xlfn.XLOOKUP(F930,'Raw Data'!$I$4:$I$5000,'Raw Data'!$E$4:$E$5000,100,0)","v":100},{"$f":"IF(N930=0,_xlfn.XLOOKUP(F930,'Raw Data'!$I$4:$I$5000,'Raw Data'!$H$4:$H$5000,\"\",0),\"\")","v":""},{"$f":"IF(INDIRECT(M930) = \"\",\"\",INDIRECT(M930))","v":""},"n"]
["SUCMRUR2SOVERG10_GRTR20",null,null,null,{"$f":"_xlfn.XLOOKUP(F931,'Raw Data'!$I$4:$I$5000,'Raw Data'!$D$4:$D$5000,\"*** Mnemonic not found ***\",0)","v":"*** Mnemonic not found ***"},"SUCMRUR2SOVERG10_GRTR20__",null,"Input",null,null,266,"L","Input!L266",{"$f":"_xlfn.XLOOKUP(F931,'Raw Data'!$I$4:$I$5000,'Raw Data'!$E$4:$E$5000,100,0)","v":100},{"$f":"IF(N931=0,_xlfn.XLOOKUP(F931,'Raw Data'!$I$4:$I$5000,'Raw Data'!$H$4:$H$5000,\"\",0),\"\")","v":""},{"$f":"IF(INDIRECT(M931) = \"\",\"\",INDIRECT(M931))","v":""},"n"]
["SUCMRUR2SOVERGNA_GRTR20",null,null,null,{"$f":"_xlfn.XLOOKUP(F932,'Raw Data'!$I$4:$I$5000,'Raw Data'!$D$4:$D$5000,\"*** Mnemonic not found ***\",0)","v":"*** Mnemonic not found ***"},"SUCMRUR2SOVERGNA_GRTR20__",null,"Input",null,null,266,"M","Input!M266",{"$f":"_xlfn.XLOOKUP(F932,'Raw Data'!$I$4:$I$5000,'Raw Data'!$E$4:$E$5000,100,0)","v":100},{"$f":"IF(N932=0,_xlfn.XLOOKUP(F932,'Raw Data'!$I$4:$I$5000,'Raw Data'!$H$4:$H$5000,\"\",0),\"\")","v":""},{"$f":"IF(INDIRECT(M932) = \"\",\"\",INDIRECT(M932))","v":""},"n"]
["SUCMRUR3SOVERG1_LESS1",null,null,null,{"$f":"_xlfn.XLOOKUP(F933,'Raw Data'!$I$4:$I$5000,'Raw Data'!$D$4:$D$5000,\"*** Mnemonic not found ***\",0)","v":"*** Mnemonic not found ***"},"SUCMRUR3SOVERG1_LESS1__",null,"Input",{"$f":"ROW(section_bonds_sp_unrated_step_4)","v":187},{"$f":"J878+10","v":85},{"$f":"I933+J933","v":272},{"$f":"L922","v":"C"},"Input!C272",{"$f":"_xlfn.XLOOKUP(F933,'Raw Data'!$I$4:$I$5000,'Raw Data'!$E$4:$E$5000,100,0)","v":100},{"$f":"IF(N933=0,_xlfn.XLOOKUP(F933,'Raw Data'!$I$4:$I$5000,'Raw Data'!$H$4:$H$5000,\"\",0),\"\")","v":""},{"$f":"IF(INDIRECT(M933) = \"\",\"\",INDIRECT(M933))","v":""},"n"]
["SUCMRUR3SOVERG2_LESS1",null,null,null,{"$f":"_xlfn.XLOOKUP(F934,'Raw Data'!$I$4:$I$5000,'Raw Data'!$D$4:$D$5000,\"*** Mnemonic not found ***\",0)","v":"*** Mnemonic not found ***"},"SUCMRUR3SOVERG2_LESS1__",null,"Input",null,null,{"$f":"K933","v":272},{"$f":"L923","v":"D"},"Input!D272",{"$f":"_xlfn.XLOOKUP(F934,'Raw Data'!$I$4:$I$5000,'Raw Data'!$E$4:$E$5000,100,0)","v":100},{"$f":"IF(N934=0,_xlfn.XLOOKUP(F934,'Raw Data'!$I$4:$I$5000,'Raw Data'!$H$4:$H$5000,\"\",0),\"\")","v":""},{"$f":"IF(INDIRECT(M934) = \"\",\"\",INDIRECT(M934))","v":""},"n"]
["SUCMRUR3SOVERG3_LESS1",null,null,null,{"$f":"_xlfn.XLOOKUP(F935,'Raw Data'!$I$4:$I$5000,'Raw Data'!$D$4:$D$5000,\"*** Mnemonic not found ***\",0)","v":"*** Mnemonic not found ***"},"SUCMRUR3SOVERG3_LESS1__",null,"Input",null,null,{"$f":"K934","v":272},"E","Input!E272",{"$f":"_xlfn.XLOOKUP(F935,'Raw Data'!$I$4:$I$5000,'Raw Data'!$E$4:$E$5000,100,0)","v":100},{"$f":"IF(N935=0,_xlfn.XLOOKUP(F935,'Raw Data'!$I$4:$I$5000,'Raw Data'!$H$4:$H$5000,\"\",0),\"\")","v":""},{"$f":"IF(INDIRECT(M935) = \"\",\"\",INDIRECT(M935))","v":""},"n"]
["SUCMRUR3SOVERG4_LESS1",null,null,null,{"$f":"_xlfn.XLOOKUP(F936,'Raw Data'!$I$4:$I$5000,'Raw Data'!$D$4:$D$5000,\"*** Mnemonic not found ***\",0)","v":"*** Mnemonic not found ***"},"SUCMRUR3SOVERG4_LESS1__",null,"Input",null,null,272,"F","Input!F272",{"$f":"_xlfn.XLOOKUP(F936,'Raw Data'!$I$4:$I$5000,'Raw Data'!$E$4:$E$5000,100,0)","v":100},{"$f":"IF(N936=0,_xlfn.XLOOKUP(F936,'Raw Data'!$I$4:$I$5000,'Raw Data'!$H$4:$H$5000,\"\",0),\"\")","v":""},{"$f":"IF(INDIRECT(M936) = \"\",\"\",INDIRECT(M936))","v":""},"n"]
["SUCMRUR3SOVERG5_LESS1",null,null,null,{"$f":"_xlfn.XLOOKUP(F937,'Raw Data'!$I$4:$I$5000,'Raw Data'!$D$4:$D$5000,\"*** Mnemonic not found ***\",0)","v":"*** Mnemonic not found ***"},"SUCMRUR3SOVERG5_LESS1__",null,"Input",null,null,272,"G","Input!G272",{"$f":"_xlfn.XLOOKUP(F937,'Raw Data'!$I$4:$I$5000,'Raw Data'!$E$4:$E$5000,100,0)","v":100},{"$f":"IF(N937=0,_xlfn.XLOOKUP(F937,'Raw Data'!$I$4:$I$5000,'Raw Data'!$H$4:$H$5000,\"\",0),\"\")","v":""},{"$f":"IF(INDIRECT(M937) = \"\",\"\",INDIRECT(M937))","v":""},"n"]
["SUCMRUR3SOVERG6_LESS1",null,null,null,{"$f":"_xlfn.XLOOKUP(F938,'Raw Data'!$I$4:$I$5000,'Raw Data'!$D$4:$D$5000,\"*** Mnemonic not found ***\",0)","v":"*** Mnemonic not found ***"},"SUCMRUR3SOVERG6_LESS1__",null,"Input",null,null,272,"H","Input!H272",{"$f":"_xlfn.XLOOKUP(F938,'Raw Data'!$I$4:$I$5000,'Raw Data'!$E$4:$E$5000,100,0)","v":100},{"$f":"IF(N938=0,_xlfn.XLOOKUP(F938,'Raw Data'!$I$4:$I$5000,'Raw Data'!$H$4:$H$5000,\"\",0),\"\")","v":""},{"$f":"IF(INDIRECT(M938) = \"\",\"\",INDIRECT(M938))","v":""},"n"]
["SUCMRUR3SOVERG7_LESS1",null,null,null,{"$f":"_xlfn.XLOOKUP(F939,'Raw Data'!$I$4:$I$5000,'Raw Data'!$D$4:$D$5000,\"*** Mnemonic not found ***\",0)","v":"*** Mnemonic not found ***"},"SUCMRUR3SOVERG7_LESS1__",null,"Input",null,null,272,"I","Input!I272",{"$f":"_xlfn.XLOOKUP(F939,'Raw Data'!$I$4:$I$5000,'Raw Data'!$E$4:$E$5000,100,0)","v":100},{"$f":"IF(N939=0,_xlfn.XLOOKUP(F939,'Raw Data'!$I$4:$I$5000,'Raw Data'!$H$4:$H$5000,\"\",0),\"\")","v":""},{"$f":"IF(INDIRECT(M939) = \"\",\"\",INDIRECT(M939))","v":""},"n"]
["SUCMRUR3SOVERG8_LESS1",null,null,null,{"$f":"_xlfn.XLOOKUP(F940,'Raw Data'!$I$4:$I$5000,'Raw Data'!$D$4:$D$5000,\"*** Mnemonic not found ***\",0)","v":"*** Mnemonic not found ***"},"SUCMRUR3SOVERG8_LESS1__",null,"Input",null,null,272,"J","Input!J272",{"$f":"_xlfn.XLOOKUP(F940,'Raw Data'!$I$4:$I$5000,'Raw Data'!$E$4:$E$5000,100,0)","v":100},{"$f":"IF(N940=0,_xlfn.XLOOKUP(F940,'Raw Data'!$I$4:$I$5000,'Raw Data'!$H$4:$H$5000,\"\",0),\"\")","v":""},{"$f":"IF(INDIRECT(M940) = \"\",\"\",INDIRECT(M940))","v":""},"n"]
["SUCMRUR3SOVERG9_LESS1",null,null,null,{"$f":"_xlfn.XLOOKUP(F941,'Raw Data'!$I$4:$I$5000,'Raw Data'!$D$4:$D$5000,\"*** Mnemonic not found ***\",0)","v":"*** Mnemonic not found ***"},"SUCMRUR3SOVERG9_LESS1__",null,"Input",null,null,272,"K","Input!K272",{"$f":"_xlfn.XLOOKUP(F941,'Raw Data'!$I$4:$I$5000,'Raw Data'!$E$4:$E$5000,100,0)","v":100},{"$f":"IF(N941=0,_xlfn.XLOOKUP(F941,'Raw Data'!$I$4:$I$5000,'Raw Data'!$H$4:$H$5000,\"\",0),\"\")","v":""},{"$f":"IF(INDIRECT(M941) = \"\",\"\",INDIRECT(M941))","v":""},"n"]
["SUCMRUR3SOVERG10_LESS1",null,null,null,{"$f":"_xlfn.XLOOKUP(F942,'Raw Data'!$I$4:$I$5000,'Raw Data'!$D$4:$D$5000,\"*** Mnemonic not found ***\",0)","v":"*** Mnemonic not found ***"},"SUCMRUR3SOVERG10_LESS1__",null,"Input",null,null,272,"L","Input!L272",{"$f":"_xlfn.XLOOKUP(F942,'Raw Data'!$I$4:$I$5000,'Raw Data'!$E$4:$E$5000,100,0)","v":100},{"$f":"IF(N942=0,_xlfn.XLOOKUP(F942,'Raw Data'!$I$4:$I$5000,'Raw Data'!$H$4:$H$5000,\"\",0),\"\")","v":""},{"$f":"IF(INDIRECT(M942) = \"\",\"\",INDIRECT(M942))","v":""},"n"]
["SUCMRUR3SOVERGNA_LESS1",null,null,null,{"$f":"_xlfn.XLOOKUP(F943,'Raw Data'!$I$4:$I$5000,'Raw Data'!$D$4:$D$5000,\"*** Mnemonic not found ***\",0)","v":"*** Mnemonic not found ***"},"SUCMRUR3SOVERGNA_LESS1__",null,"Input",null,null,272,"M","Input!M272",{"$f":"_xlfn.XLOOKUP(F943,'Raw Data'!$I$4:$I$5000,'Raw Data'!$E$4:$E$5000,100,0)","v":100},{"$f":"IF(N943=0,_xlfn.XLOOKUP(F943,'Raw Data'!$I$4:$I$5000,'Raw Data'!$H$4:$H$5000,\"\",0),\"\")","v":""},{"$f":"IF(INDIRECT(M943) = \"\",\"\",INDIRECT(M943))","v":""},"n"]
["SUCMRUR3SOVERG1_1TO5",null,null,null,{"$f":"_xlfn.XLOOKUP(F944,'Raw Data'!$I$4:$I$5000,'Raw Data'!$D$4:$D$5000,\"*** Mnemonic not found ***\",0)","v":"*** Mnemonic not found ***"},"SUCMRUR3SOVERG1_1TO5__",null,"Input",null,null,{"$f":"K933+1","v":273},{"$f":"L933","v":"C"},"Input!C273",{"$f":"_xlfn.XLOOKUP(F944,'Raw Data'!$I$4:$I$5000,'Raw Data'!$E$4:$E$5000,100,0)","v":100},{"$f":"IF(N944=0,_xlfn.XLOOKUP(F944,'Raw Data'!$I$4:$I$5000,'Raw Data'!$H$4:$H$5000,\"\",0),\"\")","v":""},{"$f":"IF(INDIRECT(M944) = \"\",\"\",INDIRECT(M944))","v":""},"n"]
["SUCMRUR3SOVERG2_1TO5",null,null,null,{"$f":"_xlfn.XLOOKUP(F945,'Raw Data'!$I$4:$I$5000,'Raw Data'!$D$4:$D$5000,\"*** Mnemonic not found ***\",0)","v":"*** Mnemonic not found ***"},"SUCMRUR3SOVERG2_1TO5__",null,"Input",null,null,{"$f":"K934+1","v":273},{"$f":"L934","v":"D"},"Input!D273",{"$f":"_xlfn.XLOOKUP(F945,'Raw Data'!$I$4:$I$5000,'Raw Data'!$E$4:$E$5000,100,0)","v":100},{"$f":"IF(N945=0,_xlfn.XLOOKUP(F945,'Raw Data'!$I$4:$I$5000,'Raw Data'!$H$4:$H$5000,\"\",0),\"\")","v":""},{"$f":"IF(INDIRECT(M945) = \"\",\"\",INDIRECT(M945))","v":""},"n"]
["SUCMRUR3SOVERG3_1TO5",null,null,null,{"$f":"_xlfn.XLOOKUP(F946,'Raw Data'!$I$4:$I$5000,'Raw Data'!$D$4:$D$5000,\"*** Mnemonic not found ***\",0)","v":"*** Mnemonic not found ***"},"SUCMRUR3SOVERG3_1TO5__",null,"Input",null,null,273,"E","Input!E273",{"$f":"_xlfn.XLOOKUP(F946,'Raw Data'!$I$4:$I$5000,'Raw Data'!$E$4:$E$5000,100,0)","v":100},{"$f":"IF(N946=0,_xlfn.XLOOKUP(F946,'Raw Data'!$I$4:$I$5000,'Raw Data'!$H$4:$H$5000,\"\",0),\"\")","v":""},{"$f":"IF(INDIRECT(M946) = \"\",\"\",INDIRECT(M946))","v":""},"n"]
["SUCMRUR3SOVERG4_1TO5",null,null,null,{"$f":"_xlfn.XLOOKUP(F947,'Raw Data'!$I$4:$I$5000,'Raw Data'!$D$4:$D$5000,\"*** Mnemonic not found ***\",0)","v":"*** Mnemonic not found ***"},"SUCMRUR3SOVERG4_1TO5__",null,"Input",null,null,273,"F","Input!F273",{"$f":"_xlfn.XLOOKUP(F947,'Raw Data'!$I$4:$I$5000,'Raw Data'!$E$4:$E$5000,100,0)","v":100},{"$f":"IF(N947=0,_xlfn.XLOOKUP(F947,'Raw Data'!$I$4:$I$5000,'Raw Data'!$H$4:$H$5000,\"\",0),\"\")","v":""},{"$f":"IF(INDIRECT(M947) = \"\",\"\",INDIRECT(M947))","v":""},"n"]
["SUCMRUR3SOVERG5_1TO5",null,null,null,{"$f":"_xlfn.XLOOKUP(F948,'Raw Data'!$I$4:$I$5000,'Raw Data'!$D$4:$D$5000,\"*** Mnemonic not found ***\",0)","v":"*** Mnemonic not found ***"},"SUCMRUR3SOVERG5_1TO5__",null,"Input",null,null,273,"G","Input!G273",{"$f":"_xlfn.XLOOKUP(F948,'Raw Data'!$I$4:$I$5000,'Raw Data'!$E$4:$E$5000,100,0)","v":100},{"$f":"IF(N948=0,_xlfn.XLOOKUP(F948,'Raw Data'!$I$4:$I$5000,'Raw Data'!$H$4:$H$5000,\"\",0),\"\")","v":""},{"$f":"IF(INDIRECT(M948) = \"\",\"\",INDIRECT(M948))","v":""},"n"]
["SUCMRUR3SOVERG6_1TO5",null,null,null,{"$f":"_xlfn.XLOOKUP(F949,'Raw Data'!$I$4:$I$5000,'Raw Data'!$D$4:$D$5000,\"*** Mnemonic not found ***\",0)","v":"*** Mnemonic not found ***"},"SUCMRUR3SOVERG6_1TO5__",null,"Input",null,null,273,"H","Input!H273",{"$f":"_xlfn.XLOOKUP(F949,'Raw Data'!$I$4:$I$5000,'Raw Data'!$E$4:$E$5000,100,0)","v":100},{"$f":"IF(N949=0,_xlfn.XLOOKUP(F949,'Raw Data'!$I$4:$I$5000,'Raw Data'!$H$4:$H$5000,\"\",0),\"\")","v":""},{"$f":"IF(INDIRECT(M949) = \"\",\"\",INDIRECT(M949))","v":""},"n"]
["SUCMRUR3SOVERG7_1TO5",null,null,null,{"$f":"_xlfn.XLOOKUP(F950,'Raw Data'!$I$4:$I$5000,'Raw Data'!$D$4:$D$5000,\"*** Mnemonic not found ***\",0)","v":"*** Mnemonic not found ***"},"SUCMRUR3SOVERG7_1TO5__",null,"Input",null,null,273,"I","Input!I273",{"$f":"_xlfn.XLOOKUP(F950,'Raw Data'!$I$4:$I$5000,'Raw Data'!$E$4:$E$5000,100,0)","v":100},{"$f":"IF(N950=0,_xlfn.XLOOKUP(F950,'Raw Data'!$I$4:$I$5000,'Raw Data'!$H$4:$H$5000,\"\",0),\"\")","v":""},{"$f":"IF(INDIRECT(M950) = \"\",\"\",INDIRECT(M950))","v":""},"n"]
["SUCMRUR3SOVERG8_1TO5",null,null,null,{"$f":"_xlfn.XLOOKUP(F951,'Raw Data'!$I$4:$I$5000,'Raw Data'!$D$4:$D$5000,\"*** Mnemonic not found ***\",0)","v":"*** Mnemonic not found ***"},"SUCMRUR3SOVERG8_1TO5__",null,"Input",null,null,273,"J","Input!J273",{"$f":"_xlfn.XLOOKUP(F951,'Raw Data'!$I$4:$I$5000,'Raw Data'!$E$4:$E$5000,100,0)","v":100},{"$f":"IF(N951=0,_xlfn.XLOOKUP(F951,'Raw Data'!$I$4:$I$5000,'Raw Data'!$H$4:$H$5000,\"\",0),\"\")","v":""},{"$f":"IF(INDIRECT(M951) = \"\",\"\",INDIRECT(M951))","v":""},"n"]
["SUCMRUR3SOVERG9_1TO5",null,null,null,{"$f":"_xlfn.XLOOKUP(F952,'Raw Data'!$I$4:$I$5000,'Raw Data'!$D$4:$D$5000,\"*** Mnemonic not found ***\",0)","v":"*** Mnemonic not found ***"},"SUCMRUR3SOVERG9_1TO5__",null,"Input",null,null,273,"K","Input!K273",{"$f":"_xlfn.XLOOKUP(F952,'Raw Data'!$I$4:$I$5000,'Raw Data'!$E$4:$E$5000,100,0)","v":100},{"$f":"IF(N952=0,_xlfn.XLOOKUP(F952,'Raw Data'!$I$4:$I$5000,'Raw Data'!$H$4:$H$5000,\"\",0),\"\")","v":""},{"$f":"IF(INDIRECT(M952) = \"\",\"\",INDIRECT(M952))","v":""},"n"]
["SUCMRUR3SOVERG10_1TO5",null,null,null,{"$f":"_xlfn.XLOOKUP(F953,'Raw Data'!$I$4:$I$5000,'Raw Data'!$D$4:$D$5000,\"*** Mnemonic not found ***\",0)","v":"*** Mnemonic not found ***"},"SUCMRUR3SOVERG10_1TO5__",null,"Input",null,null,273,"L","Input!L273",{"$f":"_xlfn.XLOOKUP(F953,'Raw Data'!$I$4:$I$5000,'Raw Data'!$E$4:$E$5000,100,0)","v":100},{"$f":"IF(N953=0,_xlfn.XLOOKUP(F953,'Raw Data'!$I$4:$I$5000,'Raw Data'!$H$4:$H$5000,\"\",0),\"\")","v":""},{"$f":"IF(INDIRECT(M953) = \"\",\"\",INDIRECT(M953))","v":""},"n"]
["SUCMRUR3SOVERGNA_1TO5",null,null,null,{"$f":"_xlfn.XLOOKUP(F954,'Raw Data'!$I$4:$I$5000,'Raw Data'!$D$4:$D$5000,\"*** Mnemonic not found ***\",0)","v":"*** Mnemonic not found ***"},"SUCMRUR3SOVERGNA_1TO5__",null,"Input",null,null,273,"M","Input!M273",{"$f":"_xlfn.XLOOKUP(F954,'Raw Data'!$I$4:$I$5000,'Raw Data'!$E$4:$E$5000,100,0)","v":100},{"$f":"IF(N954=0,_xlfn.XLOOKUP(F954,'Raw Data'!$I$4:$I$5000,'Raw Data'!$H$4:$H$5000,\"\",0),\"\")","v":""},{"$f":"IF(INDIRECT(M954) = \"\",\"\",INDIRECT(M954))","v":""},"n"]
["SUCMRUR3SOVERG1_5TO10",null,null,null,{"$f":"_xlfn.XLOOKUP(F955,'Raw Data'!$I$4:$I$5000,'Raw Data'!$D$4:$D$5000,\"*** Mnemonic not found ***\",0)","v":"*** Mnemonic not found ***"},"SUCMRUR3SOVERG1_5TO10__",null,"Input",null,null,274,"C","Input!C274",{"$f":"_xlfn.XLOOKUP(F955,'Raw Data'!$I$4:$I$5000,'Raw Data'!$E$4:$E$5000,100,0)","v":100},{"$f":"IF(N955=0,_xlfn.XLOOKUP(F955,'Raw Data'!$I$4:$I$5000,'Raw Data'!$H$4:$H$5000,\"\",0),\"\")","v":""},{"$f":"IF(INDIRECT(M955) = \"\",\"\",INDIRECT(M955))","v":""},"n"]
["SUCMRUR3SOVERG2_5TO10",null,null,null,{"$f":"_xlfn.XLOOKUP(F956,'Raw Data'!$I$4:$I$5000,'Raw Data'!$D$4:$D$5000,\"*** Mnemonic not found ***\",0)","v":"*** Mnemonic not found ***"},"SUCMRUR3SOVERG2_5TO10__",null,"Input",null,null,274,"D","Input!D274",{"$f":"_xlfn.XLOOKUP(F956,'Raw Data'!$I$4:$I$5000,'Raw Data'!$E$4:$E$5000,100,0)","v":100},{"$f":"IF(N956=0,_xlfn.XLOOKUP(F956,'Raw Data'!$I$4:$I$5000,'Raw Data'!$H$4:$H$5000,\"\",0),\"\")","v":""},{"$f":"IF(INDIRECT(M956) = \"\",\"\",INDIRECT(M956))","v":""},"n"]
["SUCMRUR3SOVERG3_5TO10",null,null,null,{"$f":"_xlfn.XLOOKUP(F957,'Raw Data'!$I$4:$I$5000,'Raw Data'!$D$4:$D$5000,\"*** Mnemonic not found ***\",0)","v":"*** Mnemonic not found ***"},"SUCMRUR3SOVERG3_5TO10__",null,"Input",null,null,274,"E","Input!E274",{"$f":"_xlfn.XLOOKUP(F957,'Raw Data'!$I$4:$I$5000,'Raw Data'!$E$4:$E$5000,100,0)","v":100},{"$f":"IF(N957=0,_xlfn.XLOOKUP(F957,'Raw Data'!$I$4:$I$5000,'Raw Data'!$H$4:$H$5000,\"\",0),\"\")","v":""},{"$f":"IF(INDIRECT(M957) = \"\",\"\",INDIRECT(M957))","v":""},"n"]
["SUCMRUR3SOVERG4_5TO10",null,null,null,{"$f":"_xlfn.XLOOKUP(F958,'Raw Data'!$I$4:$I$5000,'Raw Data'!$D$4:$D$5000,\"*** Mnemonic not found ***\",0)","v":"*** Mnemonic not found ***"},"SUCMRUR3SOVERG4_5TO10__",null,"Input",null,null,274,"F","Input!F274",{"$f":"_xlfn.XLOOKUP(F958,'Raw Data'!$I$4:$I$5000,'Raw Data'!$E$4:$E$5000,100,0)","v":100},{"$f":"IF(N958=0,_xlfn.XLOOKUP(F958,'Raw Data'!$I$4:$I$5000,'Raw Data'!$H$4:$H$5000,\"\",0),\"\")","v":""},{"$f":"IF(INDIRECT(M958) = \"\",\"\",INDIRECT(M958))","v":""},"n"]
["SUCMRUR3SOVERG5_5TO10",null,null,null,{"$f":"_xlfn.XLOOKUP(F959,'Raw Data'!$I$4:$I$5000,'Raw Data'!$D$4:$D$5000,\"*** Mnemonic not found ***\",0)","v":"*** Mnemonic not found ***"},"SUCMRUR3SOVERG5_5TO10__",null,"Input",null,null,274,"G","Input!G274",{"$f":"_xlfn.XLOOKUP(F959,'Raw Data'!$I$4:$I$5000,'Raw Data'!$E$4:$E$5000,100,0)","v":100},{"$f":"IF(N959=0,_xlfn.XLOOKUP(F959,'Raw Data'!$I$4:$I$5000,'Raw Data'!$H$4:$H$5000,\"\",0),\"\")","v":""},{"$f":"IF(INDIRECT(M959) = \"\",\"\",INDIRECT(M959))","v":""},"n"]
["SUCMRUR3SOVERG6_5TO10",null,null,null,{"$f":"_xlfn.XLOOKUP(F960,'Raw Data'!$I$4:$I$5000,'Raw Data'!$D$4:$D$5000,\"*** Mnemonic not found ***\",0)","v":"*** Mnemonic not found ***"},"SUCMRUR3SOVERG6_5TO10__",null,"Input",null,null,274,"H","Input!H274",{"$f":"_xlfn.XLOOKUP(F960,'Raw Data'!$I$4:$I$5000,'Raw Data'!$E$4:$E$5000,100,0)","v":100},{"$f":"IF(N960=0,_xlfn.XLOOKUP(F960,'Raw Data'!$I$4:$I$5000,'Raw Data'!$H$4:$H$5000,\"\",0),\"\")","v":""},{"$f":"IF(INDIRECT(M960) = \"\",\"\",INDIRECT(M960))","v":""},"n"]
["SUCMRUR3SOVERG7_5TO10",null,null,null,{"$f":"_xlfn.XLOOKUP(F961,'Raw Data'!$I$4:$I$5000,'Raw Data'!$D$4:$D$5000,\"*** Mnemonic not found ***\",0)","v":"*** Mnemonic not found ***"},"SUCMRUR3SOVERG7_5TO10__",null,"Input",null,null,274,"I","Input!I274",{"$f":"_xlfn.XLOOKUP(F961,'Raw Data'!$I$4:$I$5000,'Raw Data'!$E$4:$E$5000,100,0)","v":100},{"$f":"IF(N961=0,_xlfn.XLOOKUP(F961,'Raw Data'!$I$4:$I$5000,'Raw Data'!$H$4:$H$5000,\"\",0),\"\")","v":""},{"$f":"IF(INDIRECT(M961) = \"\",\"\",INDIRECT(M961))","v":""},"n"]
["SUCMRUR3SOVERG8_5TO10",null,null,null,{"$f":"_xlfn.XLOOKUP(F962,'Raw Data'!$I$4:$I$5000,'Raw Data'!$D$4:$D$5000,\"*** Mnemonic not found ***\",0)","v":"*** Mnemonic not found ***"},"SUCMRUR3SOVERG8_5TO10__",null,"Input",null,null,274,"J","Input!J274",{"$f":"_xlfn.XLOOKUP(F962,'Raw Data'!$I$4:$I$5000,'Raw Data'!$E$4:$E$5000,100,0)","v":100},{"$f":"IF(N962=0,_xlfn.XLOOKUP(F962,'Raw Data'!$I$4:$I$5000,'Raw Data'!$H$4:$H$5000,\"\",0),\"\")","v":""},{"$f":"IF(INDIRECT(M962) = \"\",\"\",INDIRECT(M962))","v":""},"n"]
["SUCMRUR3SOVERG9_5TO10",null,null,null,{"$f":"_xlfn.XLOOKUP(F963,'Raw Data'!$I$4:$I$5000,'Raw Data'!$D$4:$D$5000,\"*** Mnemonic not found ***\",0)","v":"*** Mnemonic not found ***"},"SUCMRUR3SOVERG9_5TO10__",null,"Input",null,null,274,"K","Input!K274",{"$f":"_xlfn.XLOOKUP(F963,'Raw Data'!$I$4:$I$5000,'Raw Data'!$E$4:$E$5000,100,0)","v":100},{"$f":"IF(N963=0,_xlfn.XLOOKUP(F963,'Raw Data'!$I$4:$I$5000,'Raw Data'!$H$4:$H$5000,\"\",0),\"\")","v":""},{"$f":"IF(INDIRECT(M963) = \"\",\"\",INDIRECT(M963))","v":""},"n"]
["SUCMRUR3SOVERG10_5TO10",null,null,null,{"$f":"_xlfn.XLOOKUP(F964,'Raw Data'!$I$4:$I$5000,'Raw Data'!$D$4:$D$5000,\"*** Mnemonic not found ***\",0)","v":"*** Mnemonic not found ***"},"SUCMRUR3SOVERG10_5TO10__",null,"Input",null,null,274,"L","Input!L274",{"$f":"_xlfn.XLOOKUP(F964,'Raw Data'!$I$4:$I$5000,'Raw Data'!$E$4:$E$5000,100,0)","v":100},{"$f":"IF(N964=0,_xlfn.XLOOKUP(F964,'Raw Data'!$I$4:$I$5000,'Raw Data'!$H$4:$H$5000,\"\",0),\"\")","v":""},{"$f":"IF(INDIRECT(M964) = \"\",\"\",INDIRECT(M964))","v":""},"n"]
["SUCMRUR3SOVERGNA_5TO10",null,null,null,{"$f":"_xlfn.XLOOKUP(F965,'Raw Data'!$I$4:$I$5000,'Raw Data'!$D$4:$D$5000,\"*** Mnemonic not found ***\",0)","v":"*** Mnemonic not found ***"},{"$f":"CONCATENATE(A965,\"_\",B965,\"_\",D965)","v":"SUCMRUR3SOVERGNA_5TO10__"},null,"Input",null,null,274,"M","Input!M274",{"$f":"_xlfn.XLOOKUP(F965,'Raw Data'!$I$4:$I$5000,'Raw Data'!$E$4:$E$5000,100,0)","v":100},{"$f":"IF(N965=0,_xlfn.XLOOKUP(F965,'Raw Data'!$I$4:$I$5000,'Raw Data'!$H$4:$H$5000,\"\",0),\"\")","v":""},{"$f":"IF(INDIRECT(M965) = \"\",\"\",INDIRECT(M965))","v":""},"n"]
["SUCMRUR3SOVERG1_10TO20",null,null,null,{"$f":"_xlfn.XLOOKUP(F966,'Raw Data'!$I$4:$I$5000,'Raw Data'!$D$4:$D$5000,\"*** Mnemonic not found ***\",0)","v":"*** Mnemonic not found ***"},"SUCMRUR3SOVERG1_10TO20__",null,"Input",null,null,275,"C","Input!C275",{"$f":"_xlfn.XLOOKUP(F966,'Raw Data'!$I$4:$I$5000,'Raw Data'!$E$4:$E$5000,100,0)","v":100},{"$f":"IF(N966=0,_xlfn.XLOOKUP(F966,'Raw Data'!$I$4:$I$5000,'Raw Data'!$H$4:$H$5000,\"\",0),\"\")","v":""},{"$f":"IF(INDIRECT(M966) = \"\",\"\",INDIRECT(M966))","v":""},"n"]
["SUCMRUR3SOVERG2_10TO20",null,null,null,{"$f":"_xlfn.XLOOKUP(F967,'Raw Data'!$I$4:$I$5000,'Raw Data'!$D$4:$D$5000,\"*** Mnemonic not found ***\",0)","v":"*** Mnemonic not found ***"},"SUCMRUR3SOVERG2_10TO20__",null,"Input",null,null,275,"D","Input!D275",{"$f":"_xlfn.XLOOKUP(F967,'Raw Data'!$I$4:$I$5000,'Raw Data'!$E$4:$E$5000,100,0)","v":100},{"$f":"IF(N967=0,_xlfn.XLOOKUP(F967,'Raw Data'!$I$4:$I$5000,'Raw Data'!$H$4:$H$5000,\"\",0),\"\")","v":""},{"$f":"IF(INDIRECT(M967) = \"\",\"\",INDIRECT(M967))","v":""},"n"]
["SUCMRUR3SOVERG3_10TO20",null,null,null,{"$f":"_xlfn.XLOOKUP(F968,'Raw Data'!$I$4:$I$5000,'Raw Data'!$D$4:$D$5000,\"*** Mnemonic not found ***\",0)","v":"*** Mnemonic not found ***"},"SUCMRUR3SOVERG3_10TO20__",null,"Input",null,null,275,"E","Input!E275",{"$f":"_xlfn.XLOOKUP(F968,'Raw Data'!$I$4:$I$5000,'Raw Data'!$E$4:$E$5000,100,0)","v":100},{"$f":"IF(N968=0,_xlfn.XLOOKUP(F968,'Raw Data'!$I$4:$I$5000,'Raw Data'!$H$4:$H$5000,\"\",0),\"\")","v":""},{"$f":"IF(INDIRECT(M968) = \"\",\"\",INDIRECT(M968))","v":""},"n"]
["SUCMRUR3SOVERG4_10TO20",null,null,null,{"$f":"_xlfn.XLOOKUP(F969,'Raw Data'!$I$4:$I$5000,'Raw Data'!$D$4:$D$5000,\"*** Mnemonic not found ***\",0)","v":"*** Mnemonic not found ***"},"SUCMRUR3SOVERG4_10TO20__",null,"Input",null,null,275,"F","Input!F275",{"$f":"_xlfn.XLOOKUP(F969,'Raw Data'!$I$4:$I$5000,'Raw Data'!$E$4:$E$5000,100,0)","v":100},{"$f":"IF(N969=0,_xlfn.XLOOKUP(F969,'Raw Data'!$I$4:$I$5000,'Raw Data'!$H$4:$H$5000,\"\",0),\"\")","v":""},{"$f":"IF(INDIRECT(M969) = \"\",\"\",INDIRECT(M969))","v":""},"n"]
["SUCMRUR3SOVERG5_10TO20",null,null,null,{"$f":"_xlfn.XLOOKUP(F970,'Raw Data'!$I$4:$I$5000,'Raw Data'!$D$4:$D$5000,\"*** Mnemonic not found ***\",0)","v":"*** Mnemonic not found ***"},"SUCMRUR3SOVERG5_10TO20__",null,"Input",null,null,275,"G","Input!G275",{"$f":"_xlfn.XLOOKUP(F970,'Raw Data'!$I$4:$I$5000,'Raw Data'!$E$4:$E$5000,100,0)","v":100},{"$f":"IF(N970=0,_xlfn.XLOOKUP(F970,'Raw Data'!$I$4:$I$5000,'Raw Data'!$H$4:$H$5000,\"\",0),\"\")","v":""},{"$f":"IF(INDIRECT(M970) = \"\",\"\",INDIRECT(M970))","v":""},"n"]
["SUCMRUR3SOVERG6_10TO20",null,null,null,{"$f":"_xlfn.XLOOKUP(F971,'Raw Data'!$I$4:$I$5000,'Raw Data'!$D$4:$D$5000,\"*** Mnemonic not found ***\",0)","v":"*** Mnemonic not found ***"},"SUCMRUR3SOVERG6_10TO20__",null,"Input",null,null,275,"H","Input!H275",{"$f":"_xlfn.XLOOKUP(F971,'Raw Data'!$I$4:$I$5000,'Raw Data'!$E$4:$E$5000,100,0)","v":100},{"$f":"IF(N971=0,_xlfn.XLOOKUP(F971,'Raw Data'!$I$4:$I$5000,'Raw Data'!$H$4:$H$5000,\"\",0),\"\")","v":""},{"$f":"IF(INDIRECT(M971) = \"\",\"\",INDIRECT(M971))","v":""},"n"]
["SUCMRUR3SOVERG7_10TO20",null,null,null,{"$f":"_xlfn.XLOOKUP(F972,'Raw Data'!$I$4:$I$5000,'Raw Data'!$D$4:$D$5000,\"*** Mnemonic not found ***\",0)","v":"*** Mnemonic not found ***"},"SUCMRUR3SOVERG7_10TO20__",null,"Input",null,null,275,"I","Input!I275",{"$f":"_xlfn.XLOOKUP(F972,'Raw Data'!$I$4:$I$5000,'Raw Data'!$E$4:$E$5000,100,0)","v":100},{"$f":"IF(N972=0,_xlfn.XLOOKUP(F972,'Raw Data'!$I$4:$I$5000,'Raw Data'!$H$4:$H$5000,\"\",0),\"\")","v":""},{"$f":"IF(INDIRECT(M972) = \"\",\"\",INDIRECT(M972))","v":""},"n"]
["SUCMRUR3SOVERG8_10TO20",null,null,null,{"$f":"_xlfn.XLOOKUP(F973,'Raw Data'!$I$4:$I$5000,'Raw Data'!$D$4:$D$5000,\"*** Mnemonic not found ***\",0)","v":"*** Mnemonic not found ***"},"SUCMRUR3SOVERG8_10TO20__",null,"Input",null,null,275,"J","Input!J275",{"$f":"_xlfn.XLOOKUP(F973,'Raw Data'!$I$4:$I$5000,'Raw Data'!$E$4:$E$5000,100,0)","v":100},{"$f":"IF(N973=0,_xlfn.XLOOKUP(F973,'Raw Data'!$I$4:$I$5000,'Raw Data'!$H$4:$H$5000,\"\",0),\"\")","v":""},{"$f":"IF(INDIRECT(M973) = \"\",\"\",INDIRECT(M973))","v":""},"n"]
["SUCMRUR3SOVERG9_10TO20",null,null,null,{"$f":"_xlfn.XLOOKUP(F974,'Raw Data'!$I$4:$I$5000,'Raw Data'!$D$4:$D$5000,\"*** Mnemonic not found ***\",0)","v":"*** Mnemonic not found ***"},"SUCMRUR3SOVERG9_10TO20__",null,"Input",null,null,275,"K","Input!K275",{"$f":"_xlfn.XLOOKUP(F974,'Raw Data'!$I$4:$I$5000,'Raw Data'!$E$4:$E$5000,100,0)","v":100},{"$f":"IF(N974=0,_xlfn.XLOOKUP(F974,'Raw Data'!$I$4:$I$5000,'Raw Data'!$H$4:$H$5000,\"\",0),\"\")","v":""},{"$f":"IF(INDIRECT(M974) = \"\",\"\",INDIRECT(M974))","v":""},"n"]
["SUCMRUR3SOVERG10_10TO20",null,null,null,{"$f":"_xlfn.XLOOKUP(F975,'Raw Data'!$I$4:$I$5000,'Raw Data'!$D$4:$D$5000,\"*** Mnemonic not found ***\",0)","v":"*** Mnemonic not found ***"},"SUCMRUR3SOVERG10_10TO20__",null,"Input",null,null,275,"L",{"$f":"CONCATENATE(H975,\"!\",L975,K975)","v":"Input!L275"},{"$f":"_xlfn.XLOOKUP(F975,'Raw Data'!$I$4:$I$5000,'Raw Data'!$E$4:$E$5000,100,0)","v":100},{"$f":"IF(N975=0,_xlfn.XLOOKUP(F975,'Raw Data'!$I$4:$I$5000,'Raw Data'!$H$4:$H$5000,\"\",0),\"\")","v":""},{"$f":"IF(INDIRECT(M975) = \"\",\"\",INDIRECT(M975))","v":""},"n"]
["SUCMRUR3SOVERGNA_10TO20",null,null,null,{"$f":"_xlfn.XLOOKUP(F976,'Raw Data'!$I$4:$I$5000,'Raw Data'!$D$4:$D$5000,\"*** Mnemonic not found ***\",0)","v":"*** Mnemonic not found ***"},"SUCMRUR3SOVERGNA_10TO20__",null,"Input",null,null,275,"M","Input!M275",{"$f":"_xlfn.XLOOKUP(F976,'Raw Data'!$I$4:$I$5000,'Raw Data'!$E$4:$E$5000,100,0)","v":100},{"$f":"IF(N976=0,_xlfn.XLOOKUP(F976,'Raw Data'!$I$4:$I$5000,'Raw Data'!$H$4:$H$5000,\"\",0),\"\")","v":""},{"$f":"IF(INDIRECT(M976) = \"\",\"\",INDIRECT(M976))","v":""},"n"]
["SUCMRUR3SOVERG1_GRTR20",null,null,null,{"$f":"_xlfn.XLOOKUP(F977,'Raw Data'!$I$4:$I$5000,'Raw Data'!$D$4:$D$5000,\"*** Mnemonic not found ***\",0)","v":"*** Mnemonic not found ***"},"SUCMRUR3SOVERG1_GRTR20__",null,"Input",null,null,276,"C","Input!C276",{"$f":"_xlfn.XLOOKUP(F977,'Raw Data'!$I$4:$I$5000,'Raw Data'!$E$4:$E$5000,100,0)","v":100},{"$f":"IF(N977=0,_xlfn.XLOOKUP(F977,'Raw Data'!$I$4:$I$5000,'Raw Data'!$H$4:$H$5000,\"\",0),\"\")","v":""},{"$f":"IF(INDIRECT(M977) = \"\",\"\",INDIRECT(M977))","v":""},"n"]
["SUCMRUR3SOVERG2_GRTR20",null,null,null,{"$f":"_xlfn.XLOOKUP(F978,'Raw Data'!$I$4:$I$5000,'Raw Data'!$D$4:$D$5000,\"*** Mnemonic not found ***\",0)","v":"*** Mnemonic not found ***"},"SUCMRUR3SOVERG2_GRTR20__",null,"Input",null,null,276,"D","Input!D276",{"$f":"_xlfn.XLOOKUP(F978,'Raw Data'!$I$4:$I$5000,'Raw Data'!$E$4:$E$5000,100,0)","v":100},{"$f":"IF(N978=0,_xlfn.XLOOKUP(F978,'Raw Data'!$I$4:$I$5000,'Raw Data'!$H$4:$H$5000,\"\",0),\"\")","v":""},{"$f":"IF(INDIRECT(M978) = \"\",\"\",INDIRECT(M978))","v":""},"n"]
["SUCMRUR3SOVERG3_GRTR20",null,null,null,{"$f":"_xlfn.XLOOKUP(F979,'Raw Data'!$I$4:$I$5000,'Raw Data'!$D$4:$D$5000,\"*** Mnemonic not found ***\",0)","v":"*** Mnemonic not found ***"},"SUCMRUR3SOVERG3_GRTR20__",null,"Input",null,null,276,"E","Input!E276",{"$f":"_xlfn.XLOOKUP(F979,'Raw Data'!$I$4:$I$5000,'Raw Data'!$E$4:$E$5000,100,0)","v":100},{"$f":"IF(N979=0,_xlfn.XLOOKUP(F979,'Raw Data'!$I$4:$I$5000,'Raw Data'!$H$4:$H$5000,\"\",0),\"\")","v":""},{"$f":"IF(INDIRECT(M979) = \"\",\"\",INDIRECT(M979))","v":""},"n"]
["SUCMRUR3SOVERG4_GRTR20",null,null,null,{"$f":"_xlfn.XLOOKUP(F980,'Raw Data'!$I$4:$I$5000,'Raw Data'!$D$4:$D$5000,\"*** Mnemonic not found ***\",0)","v":"*** Mnemonic not found ***"},"SUCMRUR3SOVERG4_GRTR20__",null,"Input",null,null,276,"F","Input!F276",{"$f":"_xlfn.XLOOKUP(F980,'Raw Data'!$I$4:$I$5000,'Raw Data'!$E$4:$E$5000,100,0)","v":100},{"$f":"IF(N980=0,_xlfn.XLOOKUP(F980,'Raw Data'!$I$4:$I$5000,'Raw Data'!$H$4:$H$5000,\"\",0),\"\")","v":""},{"$f":"IF(INDIRECT(M980) = \"\",\"\",INDIRECT(M980))","v":""},"n"]
["SUCMRUR3SOVERG5_GRTR20",null,null,null,{"$f":"_xlfn.XLOOKUP(F981,'Raw Data'!$I$4:$I$5000,'Raw Data'!$D$4:$D$5000,\"*** Mnemonic not found ***\",0)","v":"*** Mnemonic not found ***"},"SUCMRUR3SOVERG5_GRTR20__",null,"Input",null,null,276,"G","Input!G276",{"$f":"_xlfn.XLOOKUP(F981,'Raw Data'!$I$4:$I$5000,'Raw Data'!$E$4:$E$5000,100,0)","v":100},{"$f":"IF(N981=0,_xlfn.XLOOKUP(F981,'Raw Data'!$I$4:$I$5000,'Raw Data'!$H$4:$H$5000,\"\",0),\"\")","v":""},{"$f":"IF(INDIRECT(M981) = \"\",\"\",INDIRECT(M981))","v":""},"n"]
["SUCMRUR3SOVERG6_GRTR20",null,null,null,{"$f":"_xlfn.XLOOKUP(F982,'Raw Data'!$I$4:$I$5000,'Raw Data'!$D$4:$D$5000,\"*** Mnemonic not found ***\",0)","v":"*** Mnemonic not found ***"},"SUCMRUR3SOVERG6_GRTR20__",null,"Input",null,null,276,"H","Input!H276",{"$f":"_xlfn.XLOOKUP(F982,'Raw Data'!$I$4:$I$5000,'Raw Data'!$E$4:$E$5000,100,0)","v":100},{"$f":"IF(N982=0,_xlfn.XLOOKUP(F982,'Raw Data'!$I$4:$I$5000,'Raw Data'!$H$4:$H$5000,\"\",0),\"\")","v":""},{"$f":"IF(INDIRECT(M982) = \"\",\"\",INDIRECT(M982))","v":""},"n"]
["SUCMRUR3SOVERG7_GRTR20",null,null,null,{"$f":"_xlfn.XLOOKUP(F983,'Raw Data'!$I$4:$I$5000,'Raw Data'!$D$4:$D$5000,\"*** Mnemonic not found ***\",0)","v":"*** Mnemonic not found ***"},"SUCMRUR3SOVERG7_GRTR20__",null,"Input",null,null,276,"I","Input!I276",{"$f":"_xlfn.XLOOKUP(F983,'Raw Data'!$I$4:$I$5000,'Raw Data'!$E$4:$E$5000,100,0)","v":100},{"$f":"IF(N983=0,_xlfn.XLOOKUP(F983,'Raw Data'!$I$4:$I$5000,'Raw Data'!$H$4:$H$5000,\"\",0),\"\")","v":""},{"$f":"IF(INDIRECT(M983) = \"\",\"\",INDIRECT(M983))","v":""},"n"]
["SUCMRUR3SOVERG8_GRTR20",null,null,null,{"$f":"_xlfn.XLOOKUP(F984,'Raw Data'!$I$4:$I$5000,'Raw Data'!$D$4:$D$5000,\"*** Mnemonic not found ***\",0)","v":"*** Mnemonic not found ***"},"SUCMRUR3SOVERG8_GRTR20__",null,"Input",null,null,276,"J","Input!J276",{"$f":"_xlfn.XLOOKUP(F984,'Raw Data'!$I$4:$I$5000,'Raw Data'!$E$4:$E$5000,100,0)","v":100},{"$f":"IF(N984=0,_xlfn.XLOOKUP(F984,'Raw Data'!$I$4:$I$5000,'Raw Data'!$H$4:$H$5000,\"\",0),\"\")","v":""},{"$f":"IF(INDIRECT(M984) = \"\",\"\",INDIRECT(M984))","v":""},"n"]
["SUCMRUR3SOVERG9_GRTR20",null,null,null,{"$f":"_xlfn.XLOOKUP(F985,'Raw Data'!$I$4:$I$5000,'Raw Data'!$D$4:$D$5000,\"*** Mnemonic not found ***\",0)","v":"*** Mnemonic not found ***"},"SUCMRUR3SOVERG9_GRTR20__",null,"Input",null,null,276,"K","Input!K276",{"$f":"_xlfn.XLOOKUP(F985,'Raw Data'!$I$4:$I$5000,'Raw Data'!$E$4:$E$5000,100,0)","v":100},{"$f":"IF(N985=0,_xlfn.XLOOKUP(F985,'Raw Data'!$I$4:$I$5000,'Raw Data'!$H$4:$H$5000,\"\",0),\"\")","v":""},{"$f":"IF(INDIRECT(M985) = \"\",\"\",INDIRECT(M985))","v":""},"n"]
["SUCMRUR3SOVERG10_GRTR20",null,null,null,{"$f":"_xlfn.XLOOKUP(F986,'Raw Data'!$I$4:$I$5000,'Raw Data'!$D$4:$D$5000,\"*** Mnemonic not found ***\",0)","v":"*** Mnemonic not found ***"},"SUCMRUR3SOVERG10_GRTR20__",null,"Input",null,null,276,"L","Input!L276",{"$f":"_xlfn.XLOOKUP(F986,'Raw Data'!$I$4:$I$5000,'Raw Data'!$E$4:$E$5000,100,0)","v":100},{"$f":"IF(N986=0,_xlfn.XLOOKUP(F986,'Raw Data'!$I$4:$I$5000,'Raw Data'!$H$4:$H$5000,\"\",0),\"\")","v":""},{"$f":"IF(INDIRECT(M986) = \"\",\"\",INDIRECT(M986))","v":""},"n"]
["SUCMRUR3SOVERGNA_GRTR20",null,null,null,{"$f":"_xlfn.XLOOKUP(F987,'Raw Data'!$I$4:$I$5000,'Raw Data'!$D$4:$D$5000,\"*** Mnemonic not found ***\",0)","v":"*** Mnemonic not found ***"},"SUCMRUR3SOVERGNA_GRTR20__",null,"Input",null,null,276,"M","Input!M276",{"$f":"_xlfn.XLOOKUP(F987,'Raw Data'!$I$4:$I$5000,'Raw Data'!$E$4:$E$5000,100,0)","v":100},{"$f":"IF(N987=0,_xlfn.XLOOKUP(F987,'Raw Data'!$I$4:$I$5000,'Raw Data'!$H$4:$H$5000,\"\",0),\"\")","v":""},{"$f":"IF(INDIRECT(M987) = \"\",\"\",INDIRECT(M987))","v":""},"n"]
["SUCMRUR4SFERG1_LESS1",null,null,null,{"$f":"_xlfn.XLOOKUP(F988,'Raw Data'!$I$4:$I$5000,'Raw Data'!$D$4:$D$5000,\"*** Mnemonic not found ***\",0)","v":"*** Mnemonic not found ***"},"SUCMRUR4SFERG1_LESS1__",null,"Input",{"$f":"ROW(section_bonds_sp_unrated_step_4)","v":187},{"$f":"J933+10","v":95},{"$f":"I988+J988","v":282},{"$f":"L977","v":"C"},"Input!C282",{"$f":"_xlfn.XLOOKUP(F988,'Raw Data'!$I$4:$I$5000,'Raw Data'!$E$4:$E$5000,100,0)","v":100},{"$f":"IF(N988=0,_xlfn.XLOOKUP(F988,'Raw Data'!$I$4:$I$5000,'Raw Data'!$H$4:$H$5000,\"\",0),\"\")","v":""},{"$f":"IF(INDIRECT(M988) = \"\",\"\",INDIRECT(M988))","v":""},"n"]
["SUCMRUR4SFERG2_LESS1",null,null,null,{"$f":"_xlfn.XLOOKUP(F989,'Raw Data'!$I$4:$I$5000,'Raw Data'!$D$4:$D$5000,\"*** Mnemonic not found ***\",0)","v":"*** Mnemonic not found ***"},"SUCMRUR4SFERG2_LESS1__",null,"Input",null,null,{"$f":"K988","v":282},{"$f":"L978","v":"D"},"Input!D282",{"$f":"_xlfn.XLOOKUP(F989,'Raw Data'!$I$4:$I$5000,'Raw Data'!$E$4:$E$5000,100,0)","v":100},{"$f":"IF(N989=0,_xlfn.XLOOKUP(F989,'Raw Data'!$I$4:$I$5000,'Raw Data'!$H$4:$H$5000,\"\",0),\"\")","v":""},{"$f":"IF(INDIRECT(M989) = \"\",\"\",INDIRECT(M989))","v":""},"n"]
["SUCMRUR4SFERG3_LESS1",null,null,null,{"$f":"_xlfn.XLOOKUP(F990,'Raw Data'!$I$4:$I$5000,'Raw Data'!$D$4:$D$5000,\"*** Mnemonic not found ***\",0)","v":"*** Mnemonic not found ***"},"SUCMRUR4SFERG3_LESS1__",null,"Input",null,null,{"$f":"K989","v":282},"E","Input!E282",{"$f":"_xlfn.XLOOKUP(F990,'Raw Data'!$I$4:$I$5000,'Raw Data'!$E$4:$E$5000,100,0)","v":100},{"$f":"IF(N990=0,_xlfn.XLOOKUP(F990,'Raw Data'!$I$4:$I$5000,'Raw Data'!$H$4:$H$5000,\"\",0),\"\")","v":""},{"$f":"IF(INDIRECT(M990) = \"\",\"\",INDIRECT(M990))","v":""},"n"]
["SUCMRUR4SFERG4_LESS1",null,null,null,{"$f":"_xlfn.XLOOKUP(F991,'Raw Data'!$I$4:$I$5000,'Raw Data'!$D$4:$D$5000,\"*** Mnemonic not found ***\",0)","v":"*** Mnemonic not found ***"},"SUCMRUR4SFERG4_LESS1__",null,"Input",null,null,282,"F","Input!F282",{"$f":"_xlfn.XLOOKUP(F991,'Raw Data'!$I$4:$I$5000,'Raw Data'!$E$4:$E$5000,100,0)","v":100},{"$f":"IF(N991=0,_xlfn.XLOOKUP(F991,'Raw Data'!$I$4:$I$5000,'Raw Data'!$H$4:$H$5000,\"\",0),\"\")","v":""},{"$f":"IF(INDIRECT(M991) = \"\",\"\",INDIRECT(M991))","v":""},"n"]
["SUCMRUR4SFERG5_LESS1",null,null,null,{"$f":"_xlfn.XLOOKUP(F992,'Raw Data'!$I$4:$I$5000,'Raw Data'!$D$4:$D$5000,\"*** Mnemonic not found ***\",0)","v":"*** Mnemonic not found ***"},"SUCMRUR4SFERG5_LESS1__",null,"Input",null,null,282,"G","Input!G282",{"$f":"_xlfn.XLOOKUP(F992,'Raw Data'!$I$4:$I$5000,'Raw Data'!$E$4:$E$5000,100,0)","v":100},{"$f":"IF(N992=0,_xlfn.XLOOKUP(F992,'Raw Data'!$I$4:$I$5000,'Raw Data'!$H$4:$H$5000,\"\",0),\"\")","v":""},{"$f":"IF(INDIRECT(M992) = \"\",\"\",INDIRECT(M992))","v":""},"n"]
["SUCMRUR4SFERG6_LESS1",null,null,null,{"$f":"_xlfn.XLOOKUP(F993,'Raw Data'!$I$4:$I$5000,'Raw Data'!$D$4:$D$5000,\"*** Mnemonic not found ***\",0)","v":"*** Mnemonic not found ***"},"SUCMRUR4SFERG6_LESS1__",null,"Input",null,null,282,"H","Input!H282",{"$f":"_xlfn.XLOOKUP(F993,'Raw Data'!$I$4:$I$5000,'Raw Data'!$E$4:$E$5000,100,0)","v":100},{"$f":"IF(N993=0,_xlfn.XLOOKUP(F993,'Raw Data'!$I$4:$I$5000,'Raw Data'!$H$4:$H$5000,\"\",0),\"\")","v":""},{"$f":"IF(INDIRECT(M993) = \"\",\"\",INDIRECT(M993))","v":""},"n"]
["SUCMRUR4SFERG7_LESS1",null,null,null,{"$f":"_xlfn.XLOOKUP(F994,'Raw Data'!$I$4:$I$5000,'Raw Data'!$D$4:$D$5000,\"*** Mnemonic not found ***\",0)","v":"*** Mnemonic not found ***"},"SUCMRUR4SFERG7_LESS1__",null,"Input",null,null,282,"I","Input!I282",{"$f":"_xlfn.XLOOKUP(F994,'Raw Data'!$I$4:$I$5000,'Raw Data'!$E$4:$E$5000,100,0)","v":100},{"$f":"IF(N994=0,_xlfn.XLOOKUP(F994,'Raw Data'!$I$4:$I$5000,'Raw Data'!$H$4:$H$5000,\"\",0),\"\")","v":""},{"$f":"IF(INDIRECT(M994) = \"\",\"\",INDIRECT(M994))","v":""},"n"]
["SUCMRUR4SFERG8_LESS1",null,null,null,{"$f":"_xlfn.XLOOKUP(F995,'Raw Data'!$I$4:$I$5000,'Raw Data'!$D$4:$D$5000,\"*** Mnemonic not found ***\",0)","v":"*** Mnemonic not found ***"},"SUCMRUR4SFERG8_LESS1__",null,"Input",null,null,282,"J","Input!J282",{"$f":"_xlfn.XLOOKUP(F995,'Raw Data'!$I$4:$I$5000,'Raw Data'!$E$4:$E$5000,100,0)","v":100},{"$f":"IF(N995=0,_xlfn.XLOOKUP(F995,'Raw Data'!$I$4:$I$5000,'Raw Data'!$H$4:$H$5000,\"\",0),\"\")","v":""},{"$f":"IF(INDIRECT(M995) = \"\",\"\",INDIRECT(M995))","v":""},"n"]
["SUCMRUR4SFERG9_LESS1",null,null,null,{"$f":"_xlfn.XLOOKUP(F996,'Raw Data'!$I$4:$I$5000,'Raw Data'!$D$4:$D$5000,\"*** Mnemonic not found ***\",0)","v":"*** Mnemonic not found ***"},"SUCMRUR4SFERG9_LESS1__",null,"Input",null,null,282,"K","Input!K282",{"$f":"_xlfn.XLOOKUP(F996,'Raw Data'!$I$4:$I$5000,'Raw Data'!$E$4:$E$5000,100,0)","v":100},{"$f":"IF(N996=0,_xlfn.XLOOKUP(F996,'Raw Data'!$I$4:$I$5000,'Raw Data'!$H$4:$H$5000,\"\",0),\"\")","v":""},{"$f":"IF(INDIRECT(M996) = \"\",\"\",INDIRECT(M996))","v":""},"n"]
["SUCMRUR4SFERG10_LESS1",null,null,null,{"$f":"_xlfn.XLOOKUP(F997,'Raw Data'!$I$4:$I$5000,'Raw Data'!$D$4:$D$5000,\"*** Mnemonic not found ***\",0)","v":"*** Mnemonic not found ***"},"SUCMRUR4SFERG10_LESS1__",null,"Input",null,null,282,"L","Input!L282",{"$f":"_xlfn.XLOOKUP(F997,'Raw Data'!$I$4:$I$5000,'Raw Data'!$E$4:$E$5000,100,0)","v":100},{"$f":"IF(N997=0,_xlfn.XLOOKUP(F997,'Raw Data'!$I$4:$I$5000,'Raw Data'!$H$4:$H$5000,\"\",0),\"\")","v":""},{"$f":"IF(INDIRECT(M997) = \"\",\"\",INDIRECT(M997))","v":""},"n"]
["SUCMRUR4SFERGNA_LESS1",null,null,null,{"$f":"_xlfn.XLOOKUP(F998,'Raw Data'!$I$4:$I$5000,'Raw Data'!$D$4:$D$5000,\"*** Mnemonic not found ***\",0)","v":"*** Mnemonic not found ***"},"SUCMRUR4SFERGNA_LESS1__",null,"Input",null,null,282,"M","Input!M282",{"$f":"_xlfn.XLOOKUP(F998,'Raw Data'!$I$4:$I$5000,'Raw Data'!$E$4:$E$5000,100,0)","v":100},{"$f":"IF(N998=0,_xlfn.XLOOKUP(F998,'Raw Data'!$I$4:$I$5000,'Raw Data'!$H$4:$H$5000,\"\",0),\"\")","v":""},{"$f":"IF(INDIRECT(M998) = \"\",\"\",INDIRECT(M998))","v":""},"n"]
["SUCMRUR4SFERG1_1TO5",null,null,null,{"$f":"_xlfn.XLOOKUP(F999,'Raw Data'!$I$4:$I$5000,'Raw Data'!$D$4:$D$5000,\"*** Mnemonic not found ***\",0)","v":"*** Mnemonic not found ***"},"SUCMRUR4SFERG1_1TO5__",null,"Input",null,null,{"$f":"K988+1","v":283},{"$f":"L988","v":"C"},"Input!C283",{"$f":"_xlfn.XLOOKUP(F999,'Raw Data'!$I$4:$I$5000,'Raw Data'!$E$4:$E$5000,100,0)","v":100},{"$f":"IF(N999=0,_xlfn.XLOOKUP(F999,'Raw Data'!$I$4:$I$5000,'Raw Data'!$H$4:$H$5000,\"\",0),\"\")","v":""},{"$f":"IF(INDIRECT(M999) = \"\",\"\",INDIRECT(M999))","v":""},"n"]
["SUCMRUR4SFERG2_1TO5",null,null,null,{"$f":"_xlfn.XLOOKUP(F1000,'Raw Data'!$I$4:$I$5000,'Raw Data'!$D$4:$D$5000,\"*** Mnemonic not found ***\",0)","v":"*** Mnemonic not found ***"},"SUCMRUR4SFERG2_1TO5__",null,"Input",null,null,{"$f":"K989+1","v":283},{"$f":"L989","v":"D"},"Input!D283",{"$f":"_xlfn.XLOOKUP(F1000,'Raw Data'!$I$4:$I$5000,'Raw Data'!$E$4:$E$5000,100,0)","v":100},{"$f":"IF(N1000=0,_xlfn.XLOOKUP(F1000,'Raw Data'!$I$4:$I$5000,'Raw Data'!$H$4:$H$5000,\"\",0),\"\")","v":""},{"$f":"IF(INDIRECT(M1000) = \"\",\"\",INDIRECT(M1000))","v":""},"n"]
["SUCMRUR4SFERG3_1TO5",null,null,null,{"$f":"_xlfn.XLOOKUP(F1001,'Raw Data'!$I$4:$I$5000,'Raw Data'!$D$4:$D$5000,\"*** Mnemonic not found ***\",0)","v":"*** Mnemonic not found ***"},"SUCMRUR4SFERG3_1TO5__",null,"Input",null,null,283,"E","Input!E283",{"$f":"_xlfn.XLOOKUP(F1001,'Raw Data'!$I$4:$I$5000,'Raw Data'!$E$4:$E$5000,100,0)","v":100},{"$f":"IF(N1001=0,_xlfn.XLOOKUP(F1001,'Raw Data'!$I$4:$I$5000,'Raw Data'!$H$4:$H$5000,\"\",0),\"\")","v":""},{"$f":"IF(INDIRECT(M1001) = \"\",\"\",INDIRECT(M1001))","v":""},"n"]
["SUCMRUR4SFERG4_1TO5",null,null,null,{"$f":"_xlfn.XLOOKUP(F1002,'Raw Data'!$I$4:$I$5000,'Raw Data'!$D$4:$D$5000,\"*** Mnemonic not found ***\",0)","v":"*** Mnemonic not found ***"},"SUCMRUR4SFERG4_1TO5__",null,"Input",null,null,283,"F","Input!F283",{"$f":"_xlfn.XLOOKUP(F1002,'Raw Data'!$I$4:$I$5000,'Raw Data'!$E$4:$E$5000,100,0)","v":100},{"$f":"IF(N1002=0,_xlfn.XLOOKUP(F1002,'Raw Data'!$I$4:$I$5000,'Raw Data'!$H$4:$H$5000,\"\",0),\"\")","v":""},{"$f":"IF(INDIRECT(M1002) = \"\",\"\",INDIRECT(M1002))","v":""},"n"]
["SUCMRUR4SFERG5_1TO5",null,null,null,{"$f":"_xlfn.XLOOKUP(F1003,'Raw Data'!$I$4:$I$5000,'Raw Data'!$D$4:$D$5000,\"*** Mnemonic not found ***\",0)","v":"*** Mnemonic not found ***"},"SUCMRUR4SFERG5_1TO5__",null,"Input",null,null,283,"G","Input!G283",{"$f":"_xlfn.XLOOKUP(F1003,'Raw Data'!$I$4:$I$5000,'Raw Data'!$E$4:$E$5000,100,0)","v":100},{"$f":"IF(N1003=0,_xlfn.XLOOKUP(F1003,'Raw Data'!$I$4:$I$5000,'Raw Data'!$H$4:$H$5000,\"\",0),\"\")","v":""},{"$f":"IF(INDIRECT(M1003) = \"\",\"\",INDIRECT(M1003))","v":""},"n"]
["SUCMRUR4SFERG6_1TO5",null,null,null,{"$f":"_xlfn.XLOOKUP(F1004,'Raw Data'!$I$4:$I$5000,'Raw Data'!$D$4:$D$5000,\"*** Mnemonic not found ***\",0)","v":"*** Mnemonic not found ***"},"SUCMRUR4SFERG6_1TO5__",null,"Input",null,null,283,"H","Input!H283",{"$f":"_xlfn.XLOOKUP(F1004,'Raw Data'!$I$4:$I$5000,'Raw Data'!$E$4:$E$5000,100,0)","v":100},{"$f":"IF(N1004=0,_xlfn.XLOOKUP(F1004,'Raw Data'!$I$4:$I$5000,'Raw Data'!$H$4:$H$5000,\"\",0),\"\")","v":""},{"$f":"IF(INDIRECT(M1004) = \"\",\"\",INDIRECT(M1004))","v":""},"n"]
["SUCMRUR4SFERG7_1TO5",null,null,null,{"$f":"_xlfn.XLOOKUP(F1005,'Raw Data'!$I$4:$I$5000,'Raw Data'!$D$4:$D$5000,\"*** Mnemonic not found ***\",0)","v":"*** Mnemonic not found ***"},"SUCMRUR4SFERG7_1TO5__",null,"Input",null,null,283,"I","Input!I283",{"$f":"_xlfn.XLOOKUP(F1005,'Raw Data'!$I$4:$I$5000,'Raw Data'!$E$4:$E$5000,100,0)","v":100},{"$f":"IF(N1005=0,_xlfn.XLOOKUP(F1005,'Raw Data'!$I$4:$I$5000,'Raw Data'!$H$4:$H$5000,\"\",0),\"\")","v":""},{"$f":"IF(INDIRECT(M1005) = \"\",\"\",INDIRECT(M1005))","v":""},"n"]
["SUCMRUR4SFERG8_1TO5",null,null,null,{"$f":"_xlfn.XLOOKUP(F1006,'Raw Data'!$I$4:$I$5000,'Raw Data'!$D$4:$D$5000,\"*** Mnemonic not found ***\",0)","v":"*** Mnemonic not found ***"},"SUCMRUR4SFERG8_1TO5__",null,"Input",null,null,283,"J","Input!J283",{"$f":"_xlfn.XLOOKUP(F1006,'Raw Data'!$I$4:$I$5000,'Raw Data'!$E$4:$E$5000,100,0)","v":100},{"$f":"IF(N1006=0,_xlfn.XLOOKUP(F1006,'Raw Data'!$I$4:$I$5000,'Raw Data'!$H$4:$H$5000,\"\",0),\"\")","v":""},{"$f":"IF(INDIRECT(M1006) = \"\",\"\",INDIRECT(M1006))","v":""},"n"]
["SUCMRUR4SFERG9_1TO5",null,null,null,{"$f":"_xlfn.XLOOKUP(F1007,'Raw Data'!$I$4:$I$5000,'Raw Data'!$D$4:$D$5000,\"*** Mnemonic not found ***\",0)","v":"*** Mnemonic not found ***"},"SUCMRUR4SFERG9_1TO5__",null,"Input",null,null,283,"K","Input!K283",{"$f":"_xlfn.XLOOKUP(F1007,'Raw Data'!$I$4:$I$5000,'Raw Data'!$E$4:$E$5000,100,0)","v":100},{"$f":"IF(N1007=0,_xlfn.XLOOKUP(F1007,'Raw Data'!$I$4:$I$5000,'Raw Data'!$H$4:$H$5000,\"\",0),\"\")","v":""},{"$f":"IF(INDIRECT(M1007) = \"\",\"\",INDIRECT(M1007))","v":""},"n"]
["SUCMRUR4SFERG10_1TO5",null,null,null,{"$f":"_xlfn.XLOOKUP(F1008,'Raw Data'!$I$4:$I$5000,'Raw Data'!$D$4:$D$5000,\"*** Mnemonic not found ***\",0)","v":"*** Mnemonic not found ***"},"SUCMRUR4SFERG10_1TO5__",null,"Input",null,null,283,"L","Input!L283",{"$f":"_xlfn.XLOOKUP(F1008,'Raw Data'!$I$4:$I$5000,'Raw Data'!$E$4:$E$5000,100,0)","v":100},{"$f":"IF(N1008=0,_xlfn.XLOOKUP(F1008,'Raw Data'!$I$4:$I$5000,'Raw Data'!$H$4:$H$5000,\"\",0),\"\")","v":""},{"$f":"IF(INDIRECT(M1008) = \"\",\"\",INDIRECT(M1008))","v":""},"n"]
["SUCMRUR4SFERGNA_1TO5",null,null,null,{"$f":"_xlfn.XLOOKUP(F1009,'Raw Data'!$I$4:$I$5000,'Raw Data'!$D$4:$D$5000,\"*** Mnemonic not found ***\",0)","v":"*** Mnemonic not found ***"},"SUCMRUR4SFERGNA_1TO5__",null,"Input",null,null,283,"M","Input!M283",{"$f":"_xlfn.XLOOKUP(F1009,'Raw Data'!$I$4:$I$5000,'Raw Data'!$E$4:$E$5000,100,0)","v":100},{"$f":"IF(N1009=0,_xlfn.XLOOKUP(F1009,'Raw Data'!$I$4:$I$5000,'Raw Data'!$H$4:$H$5000,\"\",0),\"\")","v":""},{"$f":"IF(INDIRECT(M1009) = \"\",\"\",INDIRECT(M1009))","v":""},"n"]
["SUCMRUR4SFERG1_5TO10",null,null,null,{"$f":"_xlfn.XLOOKUP(F1010,'Raw Data'!$I$4:$I$5000,'Raw Data'!$D$4:$D$5000,\"*** Mnemonic not found ***\",0)","v":"*** Mnemonic not found ***"},"SUCMRUR4SFERG1_5TO10__",null,"Input",null,null,284,"C","Input!C284",{"$f":"_xlfn.XLOOKUP(F1010,'Raw Data'!$I$4:$I$5000,'Raw Data'!$E$4:$E$5000,100,0)","v":100},{"$f":"IF(N1010=0,_xlfn.XLOOKUP(F1010,'Raw Data'!$I$4:$I$5000,'Raw Data'!$H$4:$H$5000,\"\",0),\"\")","v":""},{"$f":"IF(INDIRECT(M1010) = \"\",\"\",INDIRECT(M1010))","v":""},"n"]
["SUCMRUR4SFERG2_5TO10",null,null,null,{"$f":"_xlfn.XLOOKUP(F1011,'Raw Data'!$I$4:$I$5000,'Raw Data'!$D$4:$D$5000,\"*** Mnemonic not found ***\",0)","v":"*** Mnemonic not found ***"},"SUCMRUR4SFERG2_5TO10__",null,"Input",null,null,284,"D","Input!D284",{"$f":"_xlfn.XLOOKUP(F1011,'Raw Data'!$I$4:$I$5000,'Raw Data'!$E$4:$E$5000,100,0)","v":100},{"$f":"IF(N1011=0,_xlfn.XLOOKUP(F1011,'Raw Data'!$I$4:$I$5000,'Raw Data'!$H$4:$H$5000,\"\",0),\"\")","v":""},{"$f":"IF(INDIRECT(M1011) = \"\",\"\",INDIRECT(M1011))","v":""},"n"]
["SUCMRUR4SFERG3_5TO10",null,null,null,{"$f":"_xlfn.XLOOKUP(F1012,'Raw Data'!$I$4:$I$5000,'Raw Data'!$D$4:$D$5000,\"*** Mnemonic not found ***\",0)","v":"*** Mnemonic not found ***"},"SUCMRUR4SFERG3_5TO10__",null,"Input",null,null,284,"E","Input!E284",{"$f":"_xlfn.XLOOKUP(F1012,'Raw Data'!$I$4:$I$5000,'Raw Data'!$E$4:$E$5000,100,0)","v":100},{"$f":"IF(N1012=0,_xlfn.XLOOKUP(F1012,'Raw Data'!$I$4:$I$5000,'Raw Data'!$H$4:$H$5000,\"\",0),\"\")","v":""},{"$f":"IF(INDIRECT(M1012) = \"\",\"\",INDIRECT(M1012))","v":""},"n"]
["SUCMRUR4SFERG4_5TO10",null,null,null,{"$f":"_xlfn.XLOOKUP(F1013,'Raw Data'!$I$4:$I$5000,'Raw Data'!$D$4:$D$5000,\"*** Mnemonic not found ***\",0)","v":"*** Mnemonic not found ***"},"SUCMRUR4SFERG4_5TO10__",null,"Input",null,null,284,"F","Input!F284",{"$f":"_xlfn.XLOOKUP(F1013,'Raw Data'!$I$4:$I$5000,'Raw Data'!$E$4:$E$5000,100,0)","v":100},{"$f":"IF(N1013=0,_xlfn.XLOOKUP(F1013,'Raw Data'!$I$4:$I$5000,'Raw Data'!$H$4:$H$5000,\"\",0),\"\")","v":""},{"$f":"IF(INDIRECT(M1013) = \"\",\"\",INDIRECT(M1013))","v":""},"n"]
["SUCMRUR4SFERG5_5TO10",null,null,null,{"$f":"_xlfn.XLOOKUP(F1014,'Raw Data'!$I$4:$I$5000,'Raw Data'!$D$4:$D$5000,\"*** Mnemonic not found ***\",0)","v":"*** Mnemonic not found ***"},"SUCMRUR4SFERG5_5TO10__",null,"Input",null,null,284,"G","Input!G284",{"$f":"_xlfn.XLOOKUP(F1014,'Raw Data'!$I$4:$I$5000,'Raw Data'!$E$4:$E$5000,100,0)","v":100},{"$f":"IF(N1014=0,_xlfn.XLOOKUP(F1014,'Raw Data'!$I$4:$I$5000,'Raw Data'!$H$4:$H$5000,\"\",0),\"\")","v":""},{"$f":"IF(INDIRECT(M1014) = \"\",\"\",INDIRECT(M1014))","v":""},"n"]
["SUCMRUR4SFERG6_5TO10",null,null,null,{"$f":"_xlfn.XLOOKUP(F1015,'Raw Data'!$I$4:$I$5000,'Raw Data'!$D$4:$D$5000,\"*** Mnemonic not found ***\",0)","v":"*** Mnemonic not found ***"},"SUCMRUR4SFERG6_5TO10__",null,"Input",null,null,284,"H","Input!H284",{"$f":"_xlfn.XLOOKUP(F1015,'Raw Data'!$I$4:$I$5000,'Raw Data'!$E$4:$E$5000,100,0)","v":100},{"$f":"IF(N1015=0,_xlfn.XLOOKUP(F1015,'Raw Data'!$I$4:$I$5000,'Raw Data'!$H$4:$H$5000,\"\",0),\"\")","v":""},{"$f":"IF(INDIRECT(M1015) = \"\",\"\",INDIRECT(M1015))","v":""},"n"]
["SUCMRUR4SFERG7_5TO10",null,null,null,{"$f":"_xlfn.XLOOKUP(F1016,'Raw Data'!$I$4:$I$5000,'Raw Data'!$D$4:$D$5000,\"*** Mnemonic not found ***\",0)","v":"*** Mnemonic not found ***"},"SUCMRUR4SFERG7_5TO10__",null,"Input",null,null,284,"I","Input!I284",{"$f":"_xlfn.XLOOKUP(F1016,'Raw Data'!$I$4:$I$5000,'Raw Data'!$E$4:$E$5000,100,0)","v":100},{"$f":"IF(N1016=0,_xlfn.XLOOKUP(F1016,'Raw Data'!$I$4:$I$5000,'Raw Data'!$H$4:$H$5000,\"\",0),\"\")","v":""},{"$f":"IF(INDIRECT(M1016) = \"\",\"\",INDIRECT(M1016))","v":""},"n"]
["SUCMRUR4SFERG8_5TO10",null,null,null,{"$f":"_xlfn.XLOOKUP(F1017,'Raw Data'!$I$4:$I$5000,'Raw Data'!$D$4:$D$5000,\"*** Mnemonic not found ***\",0)","v":"*** Mnemonic not found ***"},"SUCMRUR4SFERG8_5TO10__",null,"Input",null,null,284,"J","Input!J284",{"$f":"_xlfn.XLOOKUP(F1017,'Raw Data'!$I$4:$I$5000,'Raw Data'!$E$4:$E$5000,100,0)","v":100},{"$f":"IF(N1017=0,_xlfn.XLOOKUP(F1017,'Raw Data'!$I$4:$I$5000,'Raw Data'!$H$4:$H$5000,\"\",0),\"\")","v":""},{"$f":"IF(INDIRECT(M1017) = \"\",\"\",INDIRECT(M1017))","v":""},"n"]
["SUCMRUR4SFERG9_5TO10",null,null,null,{"$f":"_xlfn.XLOOKUP(F1018,'Raw Data'!$I$4:$I$5000,'Raw Data'!$D$4:$D$5000,\"*** Mnemonic not found ***\",0)","v":"*** Mnemonic not found ***"},"SUCMRUR4SFERG9_5TO10__",null,"Input",null,null,284,"K","Input!K284",{"$f":"_xlfn.XLOOKUP(F1018,'Raw Data'!$I$4:$I$5000,'Raw Data'!$E$4:$E$5000,100,0)","v":100},{"$f":"IF(N1018=0,_xlfn.XLOOKUP(F1018,'Raw Data'!$I$4:$I$5000,'Raw Data'!$H$4:$H$5000,\"\",0),\"\")","v":""},{"$f":"IF(INDIRECT(M1018) = \"\",\"\",INDIRECT(M1018))","v":""},"n"]
["SUCMRUR4SFERG10_5TO10",null,null,null,{"$f":"_xlfn.XLOOKUP(F1019,'Raw Data'!$I$4:$I$5000,'Raw Data'!$D$4:$D$5000,\"*** Mnemonic not found ***\",0)","v":"*** Mnemonic not found ***"},"SUCMRUR4SFERG10_5TO10__",null,"Input",null,null,284,"L","Input!L284",{"$f":"_xlfn.XLOOKUP(F1019,'Raw Data'!$I$4:$I$5000,'Raw Data'!$E$4:$E$5000,100,0)","v":100},{"$f":"IF(N1019=0,_xlfn.XLOOKUP(F1019,'Raw Data'!$I$4:$I$5000,'Raw Data'!$H$4:$H$5000,\"\",0),\"\")","v":""},{"$f":"IF(INDIRECT(M1019) = \"\",\"\",INDIRECT(M1019))","v":""},"n"]
["SUCMRUR4SFERGNA_5TO10",null,null,null,{"$f":"_xlfn.XLOOKUP(F1020,'Raw Data'!$I$4:$I$5000,'Raw Data'!$D$4:$D$5000,\"*** Mnemonic not found ***\",0)","v":"*** Mnemonic not found ***"},"SUCMRUR4SFERGNA_5TO10__",null,"Input",null,null,284,"M","Input!M284",{"$f":"_xlfn.XLOOKUP(F1020,'Raw Data'!$I$4:$I$5000,'Raw Data'!$E$4:$E$5000,100,0)","v":100},{"$f":"IF(N1020=0,_xlfn.XLOOKUP(F1020,'Raw Data'!$I$4:$I$5000,'Raw Data'!$H$4:$H$5000,\"\",0),\"\")","v":""},{"$f":"IF(INDIRECT(M1020) = \"\",\"\",INDIRECT(M1020))","v":""},"n"]
["SUCMRUR4SFERG1_10TO20",null,null,null,{"$f":"_xlfn.XLOOKUP(F1021,'Raw Data'!$I$4:$I$5000,'Raw Data'!$D$4:$D$5000,\"*** Mnemonic not found ***\",0)","v":"*** Mnemonic not found ***"},"SUCMRUR4SFERG1_10TO20__",null,"Input",null,null,285,"C","Input!C285",{"$f":"_xlfn.XLOOKUP(F1021,'Raw Data'!$I$4:$I$5000,'Raw Data'!$E$4:$E$5000,100,0)","v":100},{"$f":"IF(N1021=0,_xlfn.XLOOKUP(F1021,'Raw Data'!$I$4:$I$5000,'Raw Data'!$H$4:$H$5000,\"\",0),\"\")","v":""},{"$f":"IF(INDIRECT(M1021) = \"\",\"\",INDIRECT(M1021))","v":""},"n"]
["SUCMRUR4SFERG2_10TO20",null,null,null,{"$f":"_xlfn.XLOOKUP(F1022,'Raw Data'!$I$4:$I$5000,'Raw Data'!$D$4:$D$5000,\"*** Mnemonic not found ***\",0)","v":"*** Mnemonic not found ***"},"SUCMRUR4SFERG2_10TO20__",null,"Input",null,null,285,"D","Input!D285",{"$f":"_xlfn.XLOOKUP(F1022,'Raw Data'!$I$4:$I$5000,'Raw Data'!$E$4:$E$5000,100,0)","v":100},{"$f":"IF(N1022=0,_xlfn.XLOOKUP(F1022,'Raw Data'!$I$4:$I$5000,'Raw Data'!$H$4:$H$5000,\"\",0),\"\")","v":""},{"$f":"IF(INDIRECT(M1022) = \"\",\"\",INDIRECT(M1022))","v":""},"n"]
["SUCMRUR4SFERG3_10TO20",null,null,null,{"$f":"_xlfn.XLOOKUP(F1023,'Raw Data'!$I$4:$I$5000,'Raw Data'!$D$4:$D$5000,\"*** Mnemonic not found ***\",0)","v":"*** Mnemonic not found ***"},"SUCMRUR4SFERG3_10TO20__",null,"Input",null,null,285,"E","Input!E285",{"$f":"_xlfn.XLOOKUP(F1023,'Raw Data'!$I$4:$I$5000,'Raw Data'!$E$4:$E$5000,100,0)","v":100},{"$f":"IF(N1023=0,_xlfn.XLOOKUP(F1023,'Raw Data'!$I$4:$I$5000,'Raw Data'!$H$4:$H$5000,\"\",0),\"\")","v":""},{"$f":"IF(INDIRECT(M1023) = \"\",\"\",INDIRECT(M1023))","v":""},"n"]
["SUCMRUR4SFERG4_10TO20",null,null,null,{"$f":"_xlfn.XLOOKUP(F1024,'Raw Data'!$I$4:$I$5000,'Raw Data'!$D$4:$D$5000,\"*** Mnemonic not found ***\",0)","v":"*** Mnemonic not found ***"},"SUCMRUR4SFERG4_10TO20__",null,"Input",null,null,285,"F","Input!F285",{"$f":"_xlfn.XLOOKUP(F1024,'Raw Data'!$I$4:$I$5000,'Raw Data'!$E$4:$E$5000,100,0)","v":100},{"$f":"IF(N1024=0,_xlfn.XLOOKUP(F1024,'Raw Data'!$I$4:$I$5000,'Raw Data'!$H$4:$H$5000,\"\",0),\"\")","v":""},{"$f":"IF(INDIRECT(M1024) = \"\",\"\",INDIRECT(M1024))","v":""},"n"]
["SUCMRUR4SFERG5_10TO20",null,null,null,{"$f":"_xlfn.XLOOKUP(F1025,'Raw Data'!$I$4:$I$5000,'Raw Data'!$D$4:$D$5000,\"*** Mnemonic not found ***\",0)","v":"*** Mnemonic not found ***"},"SUCMRUR4SFERG5_10TO20__",null,"Input",null,null,285,"G","Input!G285",{"$f":"_xlfn.XLOOKUP(F1025,'Raw Data'!$I$4:$I$5000,'Raw Data'!$E$4:$E$5000,100,0)","v":100},{"$f":"IF(N1025=0,_xlfn.XLOOKUP(F1025,'Raw Data'!$I$4:$I$5000,'Raw Data'!$H$4:$H$5000,\"\",0),\"\")","v":""},{"$f":"IF(INDIRECT(M1025) = \"\",\"\",INDIRECT(M1025))","v":""},"n"]
["SUCMRUR4SFERG6_10TO20",null,null,null,{"$f":"_xlfn.XLOOKUP(F1026,'Raw Data'!$I$4:$I$5000,'Raw Data'!$D$4:$D$5000,\"*** Mnemonic not found ***\",0)","v":"*** Mnemonic not found ***"},"SUCMRUR4SFERG6_10TO20__",null,"Input",null,null,285,"H","Input!H285",{"$f":"_xlfn.XLOOKUP(F1026,'Raw Data'!$I$4:$I$5000,'Raw Data'!$E$4:$E$5000,100,0)","v":100},{"$f":"IF(N1026=0,_xlfn.XLOOKUP(F1026,'Raw Data'!$I$4:$I$5000,'Raw Data'!$H$4:$H$5000,\"\",0),\"\")","v":""},{"$f":"IF(INDIRECT(M1026) = \"\",\"\",INDIRECT(M1026))","v":""},"n"]
["SUCMRUR4SFERG7_10TO20",null,null,null,{"$f":"_xlfn.XLOOKUP(F1027,'Raw Data'!$I$4:$I$5000,'Raw Data'!$D$4:$D$5000,\"*** Mnemonic not found ***\",0)","v":"*** Mnemonic not found ***"},"SUCMRUR4SFERG7_10TO20__",null,"Input",null,null,285,"I","Input!I285",{"$f":"_xlfn.XLOOKUP(F1027,'Raw Data'!$I$4:$I$5000,'Raw Data'!$E$4:$E$5000,100,0)","v":100},{"$f":"IF(N1027=0,_xlfn.XLOOKUP(F1027,'Raw Data'!$I$4:$I$5000,'Raw Data'!$H$4:$H$5000,\"\",0),\"\")","v":""},{"$f":"IF(INDIRECT(M1027) = \"\",\"\",INDIRECT(M1027))","v":""},"n"]
["SUCMRUR4SFERG8_10TO20",null,null,null,{"$f":"_xlfn.XLOOKUP(F1028,'Raw Data'!$I$4:$I$5000,'Raw Data'!$D$4:$D$5000,\"*** Mnemonic not found ***\",0)","v":"*** Mnemonic not found ***"},"SUCMRUR4SFERG8_10TO20__",null,"Input",null,null,285,"J","Input!J285",{"$f":"_xlfn.XLOOKUP(F1028,'Raw Data'!$I$4:$I$5000,'Raw Data'!$E$4:$E$5000,100,0)","v":100},{"$f":"IF(N1028=0,_xlfn.XLOOKUP(F1028,'Raw Data'!$I$4:$I$5000,'Raw Data'!$H$4:$H$5000,\"\",0),\"\")","v":""},{"$f":"IF(INDIRECT(M1028) = \"\",\"\",INDIRECT(M1028))","v":""},"n"]
["SUCMRUR4SFERG9_10TO20",null,null,null,{"$f":"_xlfn.XLOOKUP(F1029,'Raw Data'!$I$4:$I$5000,'Raw Data'!$D$4:$D$5000,\"*** Mnemonic not found ***\",0)","v":"*** Mnemonic not found ***"},{"$f":"CONCATENATE(A1029,\"_\",B1029,\"_\",D1029)","v":"SUCMRUR4SFERG9_10TO20__"},null,"Input",null,null,285,"K","Input!K285",{"$f":"_xlfn.XLOOKUP(F1029,'Raw Data'!$I$4:$I$5000,'Raw Data'!$E$4:$E$5000,100,0)","v":100},{"$f":"IF(N1029=0,_xlfn.XLOOKUP(F1029,'Raw Data'!$I$4:$I$5000,'Raw Data'!$H$4:$H$5000,\"\",0),\"\")","v":""},{"$f":"IF(INDIRECT(M1029) = \"\",\"\",INDIRECT(M1029))","v":""},"n"]
["SUCMRUR4SFERG10_10TO20",null,null,null,{"$f":"_xlfn.XLOOKUP(F1030,'Raw Data'!$I$4:$I$5000,'Raw Data'!$D$4:$D$5000,\"*** Mnemonic not found ***\",0)","v":"*** Mnemonic not found ***"},"SUCMRUR4SFERG10_10TO20__",null,"Input",null,null,285,"L","Input!L285",{"$f":"_xlfn.XLOOKUP(F1030,'Raw Data'!$I$4:$I$5000,'Raw Data'!$E$4:$E$5000,100,0)","v":100},{"$f":"IF(N1030=0,_xlfn.XLOOKUP(F1030,'Raw Data'!$I$4:$I$5000,'Raw Data'!$H$4:$H$5000,\"\",0),\"\")","v":""},{"$f":"IF(INDIRECT(M1030) = \"\",\"\",INDIRECT(M1030))","v":""},"n"]
["SUCMRUR4SFERGNA_10TO20",null,null,null,{"$f":"_xlfn.XLOOKUP(F1031,'Raw Data'!$I$4:$I$5000,'Raw Data'!$D$4:$D$5000,\"*** Mnemonic not found ***\",0)","v":"*** Mnemonic not found ***"},"SUCMRUR4SFERGNA_10TO20__",null,"Input",null,null,285,"M","Input!M285",{"$f":"_xlfn.XLOOKUP(F1031,'Raw Data'!$I$4:$I$5000,'Raw Data'!$E$4:$E$5000,100,0)","v":100},{"$f":"IF(N1031=0,_xlfn.XLOOKUP(F1031,'Raw Data'!$I$4:$I$5000,'Raw Data'!$H$4:$H$5000,\"\",0),\"\")","v":""},{"$f":"IF(INDIRECT(M1031) = \"\",\"\",INDIRECT(M1031))","v":""},"n"]
["SUCMRUR4SFERG1_GRTR20",null,null,null,{"$f":"_xlfn.XLOOKUP(F1032,'Raw Data'!$I$4:$I$5000,'Raw Data'!$D$4:$D$5000,\"*** Mnemonic not found ***\",0)","v":"*** Mnemonic not found ***"},"SUCMRUR4SFERG1_GRTR20__",null,"Input",null,null,286,"C","Input!C286",{"$f":"_xlfn.XLOOKUP(F1032,'Raw Data'!$I$4:$I$5000,'Raw Data'!$E$4:$E$5000,100,0)","v":100},{"$f":"IF(N1032=0,_xlfn.XLOOKUP(F1032,'Raw Data'!$I$4:$I$5000,'Raw Data'!$H$4:$H$5000,\"\",0),\"\")","v":""},{"$f":"IF(INDIRECT(M1032) = \"\",\"\",INDIRECT(M1032))","v":""},"n"]
["SUCMRUR4SFERG2_GRTR20",null,null,null,{"$f":"_xlfn.XLOOKUP(F1033,'Raw Data'!$I$4:$I$5000,'Raw Data'!$D$4:$D$5000,\"*** Mnemonic not found ***\",0)","v":"*** Mnemonic not found ***"},"SUCMRUR4SFERG2_GRTR20__",null,"Input",null,null,286,"D","Input!D286",{"$f":"_xlfn.XLOOKUP(F1033,'Raw Data'!$I$4:$I$5000,'Raw Data'!$E$4:$E$5000,100,0)","v":100},{"$f":"IF(N1033=0,_xlfn.XLOOKUP(F1033,'Raw Data'!$I$4:$I$5000,'Raw Data'!$H$4:$H$5000,\"\",0),\"\")","v":""},{"$f":"IF(INDIRECT(M1033) = \"\",\"\",INDIRECT(M1033))","v":""},"n"]
["SUCMRUR4SFERG3_GRTR20",null,null,null,{"$f":"_xlfn.XLOOKUP(F1034,'Raw Data'!$I$4:$I$5000,'Raw Data'!$D$4:$D$5000,\"*** Mnemonic not found ***\",0)","v":"*** Mnemonic not found ***"},"SUCMRUR4SFERG3_GRTR20__",null,"Input",null,null,286,"E","Input!E286",{"$f":"_xlfn.XLOOKUP(F1034,'Raw Data'!$I$4:$I$5000,'Raw Data'!$E$4:$E$5000,100,0)","v":100},{"$f":"IF(N1034=0,_xlfn.XLOOKUP(F1034,'Raw Data'!$I$4:$I$5000,'Raw Data'!$H$4:$H$5000,\"\",0),\"\")","v":""},{"$f":"IF(INDIRECT(M1034) = \"\",\"\",INDIRECT(M1034))","v":""},"n"]
["SUCMRUR4SFERG4_GRTR20",null,null,null,{"$f":"_xlfn.XLOOKUP(F1035,'Raw Data'!$I$4:$I$5000,'Raw Data'!$D$4:$D$5000,\"*** Mnemonic not found ***\",0)","v":"*** Mnemonic not found ***"},"SUCMRUR4SFERG4_GRTR20__",null,"Input",null,null,286,"F","Input!F286",{"$f":"_xlfn.XLOOKUP(F1035,'Raw Data'!$I$4:$I$5000,'Raw Data'!$E$4:$E$5000,100,0)","v":100},{"$f":"IF(N1035=0,_xlfn.XLOOKUP(F1035,'Raw Data'!$I$4:$I$5000,'Raw Data'!$H$4:$H$5000,\"\",0),\"\")","v":""},{"$f":"IF(INDIRECT(M1035) = \"\",\"\",INDIRECT(M1035))","v":""},"n"]
["SUCMRUR4SFERG5_GRTR20",null,null,null,{"$f":"_xlfn.XLOOKUP(F1036,'Raw Data'!$I$4:$I$5000,'Raw Data'!$D$4:$D$5000,\"*** Mnemonic not found ***\",0)","v":"*** Mnemonic not found ***"},"SUCMRUR4SFERG5_GRTR20__",null,"Input",null,null,286,"G","Input!G286",{"$f":"_xlfn.XLOOKUP(F1036,'Raw Data'!$I$4:$I$5000,'Raw Data'!$E$4:$E$5000,100,0)","v":100},{"$f":"IF(N1036=0,_xlfn.XLOOKUP(F1036,'Raw Data'!$I$4:$I$5000,'Raw Data'!$H$4:$H$5000,\"\",0),\"\")","v":""},{"$f":"IF(INDIRECT(M1036) = \"\",\"\",INDIRECT(M1036))","v":""},"n"]
["SUCMRUR4SFERG6_GRTR20",null,null,null,{"$f":"_xlfn.XLOOKUP(F1037,'Raw Data'!$I$4:$I$5000,'Raw Data'!$D$4:$D$5000,\"*** Mnemonic not found ***\",0)","v":"*** Mnemonic not found ***"},"SUCMRUR4SFERG6_GRTR20__",null,"Input",null,null,286,"H","Input!H286",{"$f":"_xlfn.XLOOKUP(F1037,'Raw Data'!$I$4:$I$5000,'Raw Data'!$E$4:$E$5000,100,0)","v":100},{"$f":"IF(N1037=0,_xlfn.XLOOKUP(F1037,'Raw Data'!$I$4:$I$5000,'Raw Data'!$H$4:$H$5000,\"\",0),\"\")","v":""},{"$f":"IF(INDIRECT(M1037) = \"\",\"\",INDIRECT(M1037))","v":""},"n"]
["SUCMRUR4SFERG7_GRTR20",null,null,null,{"$f":"_xlfn.XLOOKUP(F1038,'Raw Data'!$I$4:$I$5000,'Raw Data'!$D$4:$D$5000,\"*** Mnemonic not found ***\",0)","v":"*** Mnemonic not found ***"},"SUCMRUR4SFERG7_GRTR20__",null,"Input",null,null,286,"I","Input!I286",{"$f":"_xlfn.XLOOKUP(F1038,'Raw Data'!$I$4:$I$5000,'Raw Data'!$E$4:$E$5000,100,0)","v":100},{"$f":"IF(N1038=0,_xlfn.XLOOKUP(F1038,'Raw Data'!$I$4:$I$5000,'Raw Data'!$H$4:$H$5000,\"\",0),\"\")","v":""},{"$f":"IF(INDIRECT(M1038) = \"\",\"\",INDIRECT(M1038))","v":""},"n"]
["SUCMRUR4SFERG8_GRTR20",null,null,null,{"$f":"_xlfn.XLOOKUP(F1039,'Raw Data'!$I$4:$I$5000,'Raw Data'!$D$4:$D$5000,\"*** Mnemonic not found ***\",0)","v":"*** Mnemonic not found ***"},"SUCMRUR4SFERG8_GRTR20__",null,"Input",null,null,286,"J","Input!J286",{"$f":"_xlfn.XLOOKUP(F1039,'Raw Data'!$I$4:$I$5000,'Raw Data'!$E$4:$E$5000,100,0)","v":100},{"$f":"IF(N1039=0,_xlfn.XLOOKUP(F1039,'Raw Data'!$I$4:$I$5000,'Raw Data'!$H$4:$H$5000,\"\",0),\"\")","v":""},{"$f":"IF(INDIRECT(M1039) = \"\",\"\",INDIRECT(M1039))","v":""},"n"]
["SUCMRUR4SFERG9_GRTR20",null,null,null,{"$f":"_xlfn.XLOOKUP(F1040,'Raw Data'!$I$4:$I$5000,'Raw Data'!$D$4:$D$5000,\"*** Mnemonic not found ***\",0)","v":"*** Mnemonic not found ***"},"SUCMRUR4SFERG9_GRTR20__",null,"Input",null,null,286,"K","Input!K286",{"$f":"_xlfn.XLOOKUP(F1040,'Raw Data'!$I$4:$I$5000,'Raw Data'!$E$4:$E$5000,100,0)","v":100},{"$f":"IF(N1040=0,_xlfn.XLOOKUP(F1040,'Raw Data'!$I$4:$I$5000,'Raw Data'!$H$4:$H$5000,\"\",0),\"\")","v":""},{"$f":"IF(INDIRECT(M1040) = \"\",\"\",INDIRECT(M1040))","v":""},"n"]
["SUCMRUR4SFERG10_GRTR20",null,null,null,{"$f":"_xlfn.XLOOKUP(F1041,'Raw Data'!$I$4:$I$5000,'Raw Data'!$D$4:$D$5000,\"*** Mnemonic not found ***\",0)","v":"*** Mnemonic not found ***"},"SUCMRUR4SFERG10_GRTR20__",null,"Input",null,null,286,"L","Input!L286",{"$f":"_xlfn.XLOOKUP(F1041,'Raw Data'!$I$4:$I$5000,'Raw Data'!$E$4:$E$5000,100,0)","v":100},{"$f":"IF(N1041=0,_xlfn.XLOOKUP(F1041,'Raw Data'!$I$4:$I$5000,'Raw Data'!$H$4:$H$5000,\"\",0),\"\")","v":""},{"$f":"IF(INDIRECT(M1041) = \"\",\"\",INDIRECT(M1041))","v":""},"n"]
["SUCMRUR4SFERGNA_GRTR20",null,null,null,{"$f":"_xlfn.XLOOKUP(F1042,'Raw Data'!$I$4:$I$5000,'Raw Data'!$D$4:$D$5000,\"*** Mnemonic not found ***\",0)","v":"*** Mnemonic not found ***"},"SUCMRUR4SFERGNA_GRTR20__",null,"Input",null,null,286,"M","Input!M286",{"$f":"_xlfn.XLOOKUP(F1042,'Raw Data'!$I$4:$I$5000,'Raw Data'!$E$4:$E$5000,100,0)","v":100},{"$f":"IF(N1042=0,_xlfn.XLOOKUP(F1042,'Raw Data'!$I$4:$I$5000,'Raw Data'!$H$4:$H$5000,\"\",0),\"\")","v":""},{"$f":"IF(INDIRECT(M1042) = \"\",\"\",INDIRECT(M1042))","v":""},"n"]
["SUCMRUR4SFMERG1_LESS1",null,null,null,{"$f":"_xlfn.XLOOKUP(F1043,'Raw Data'!$I$4:$I$5000,'Raw Data'!$D$4:$D$5000,\"*** Mnemonic not found ***\",0)","v":"*** Mnemonic not found ***"},"SUCMRUR4SFMERG1_LESS1__",null,"Input",{"$f":"ROW(section_bonds_sp_unrated_step_4)","v":187},{"$f":"J988+10","v":105},{"$f":"I1043+J1043","v":292},{"$f":"L1032","v":"C"},{"$f":"CONCATENATE(H1043,\"!\",L1043,K1043)","v":"Input!C292"},{"$f":"_xlfn.XLOOKUP(F1043,'Raw Data'!$I$4:$I$5000,'Raw Data'!$E$4:$E$5000,100,0)","v":100},{"$f":"IF(N1043=0,_xlfn.XLOOKUP(F1043,'Raw Data'!$I$4:$I$5000,'Raw Data'!$H$4:$H$5000,\"\",0),\"\")","v":""},{"$f":"IF(INDIRECT(M1043) = \"\",\"\",INDIRECT(M1043))","v":""},"n"]
["SUCMRUR4SFMERG2_LESS1",null,null,null,{"$f":"_xlfn.XLOOKUP(F1044,'Raw Data'!$I$4:$I$5000,'Raw Data'!$D$4:$D$5000,\"*** Mnemonic not found ***\",0)","v":"*** Mnemonic not found ***"},"SUCMRUR4SFMERG2_LESS1__",null,"Input",null,null,{"$f":"K1043","v":292},{"$f":"L1033","v":"D"},"Input!D292",{"$f":"_xlfn.XLOOKUP(F1044,'Raw Data'!$I$4:$I$5000,'Raw Data'!$E$4:$E$5000,100,0)","v":100},{"$f":"IF(N1044=0,_xlfn.XLOOKUP(F1044,'Raw Data'!$I$4:$I$5000,'Raw Data'!$H$4:$H$5000,\"\",0),\"\")","v":""},{"$f":"IF(INDIRECT(M1044) = \"\",\"\",INDIRECT(M1044))","v":""},"n"]
["SUCMRUR4SFMERG3_LESS1",null,null,null,{"$f":"_xlfn.XLOOKUP(F1045,'Raw Data'!$I$4:$I$5000,'Raw Data'!$D$4:$D$5000,\"*** Mnemonic not found ***\",0)","v":"*** Mnemonic not found ***"},"SUCMRUR4SFMERG3_LESS1__",null,"Input",null,null,{"$f":"K1044","v":292},"E","Input!E292",{"$f":"_xlfn.XLOOKUP(F1045,'Raw Data'!$I$4:$I$5000,'Raw Data'!$E$4:$E$5000,100,0)","v":100},{"$f":"IF(N1045=0,_xlfn.XLOOKUP(F1045,'Raw Data'!$I$4:$I$5000,'Raw Data'!$H$4:$H$5000,\"\",0),\"\")","v":""},{"$f":"IF(INDIRECT(M1045) = \"\",\"\",INDIRECT(M1045))","v":""},"n"]
["SUCMRUR4SFMERG4_LESS1",null,null,null,{"$f":"_xlfn.XLOOKUP(F1046,'Raw Data'!$I$4:$I$5000,'Raw Data'!$D$4:$D$5000,\"*** Mnemonic not found ***\",0)","v":"*** Mnemonic not found ***"},"SUCMRUR4SFMERG4_LESS1__",null,"Input",null,null,292,"F","Input!F292",{"$f":"_xlfn.XLOOKUP(F1046,'Raw Data'!$I$4:$I$5000,'Raw Data'!$E$4:$E$5000,100,0)","v":100},{"$f":"IF(N1046=0,_xlfn.XLOOKUP(F1046,'Raw Data'!$I$4:$I$5000,'Raw Data'!$H$4:$H$5000,\"\",0),\"\")","v":""},{"$f":"IF(INDIRECT(M1046) = \"\",\"\",INDIRECT(M1046))","v":""},"n"]
["SUCMRUR4SFMERG5_LESS1",null,null,null,{"$f":"_xlfn.XLOOKUP(F1047,'Raw Data'!$I$4:$I$5000,'Raw Data'!$D$4:$D$5000,\"*** Mnemonic not found ***\",0)","v":"*** Mnemonic not found ***"},"SUCMRUR4SFMERG5_LESS1__",null,"Input",null,null,292,"G","Input!G292",{"$f":"_xlfn.XLOOKUP(F1047,'Raw Data'!$I$4:$I$5000,'Raw Data'!$E$4:$E$5000,100,0)","v":100},{"$f":"IF(N1047=0,_xlfn.XLOOKUP(F1047,'Raw Data'!$I$4:$I$5000,'Raw Data'!$H$4:$H$5000,\"\",0),\"\")","v":""},{"$f":"IF(INDIRECT(M1047) = \"\",\"\",INDIRECT(M1047))","v":""},"n"]
["SUCMRUR4SFMERG6_LESS1",null,null,null,{"$f":"_xlfn.XLOOKUP(F1048,'Raw Data'!$I$4:$I$5000,'Raw Data'!$D$4:$D$5000,\"*** Mnemonic not found ***\",0)","v":"*** Mnemonic not found ***"},"SUCMRUR4SFMERG6_LESS1__",null,"Input",null,null,292,"H","Input!H292",{"$f":"_xlfn.XLOOKUP(F1048,'Raw Data'!$I$4:$I$5000,'Raw Data'!$E$4:$E$5000,100,0)","v":100},{"$f":"IF(N1048=0,_xlfn.XLOOKUP(F1048,'Raw Data'!$I$4:$I$5000,'Raw Data'!$H$4:$H$5000,\"\",0),\"\")","v":""},{"$f":"IF(INDIRECT(M1048) = \"\",\"\",INDIRECT(M1048))","v":""},"n"]
["SUCMRUR4SFMERG7_LESS1",null,null,null,{"$f":"_xlfn.XLOOKUP(F1049,'Raw Data'!$I$4:$I$5000,'Raw Data'!$D$4:$D$5000,\"*** Mnemonic not found ***\",0)","v":"*** Mnemonic not found ***"},"SUCMRUR4SFMERG7_LESS1__",null,"Input",null,null,292,"I","Input!I292",{"$f":"_xlfn.XLOOKUP(F1049,'Raw Data'!$I$4:$I$5000,'Raw Data'!$E$4:$E$5000,100,0)","v":100},{"$f":"IF(N1049=0,_xlfn.XLOOKUP(F1049,'Raw Data'!$I$4:$I$5000,'Raw Data'!$H$4:$H$5000,\"\",0),\"\")","v":""},{"$f":"IF(INDIRECT(M1049) = \"\",\"\",INDIRECT(M1049))","v":""},"n"]
["SUCMRUR4SFMERG8_LESS1",null,null,null,{"$f":"_xlfn.XLOOKUP(F1050,'Raw Data'!$I$4:$I$5000,'Raw Data'!$D$4:$D$5000,\"*** Mnemonic not found ***\",0)","v":"*** Mnemonic not found ***"},"SUCMRUR4SFMERG8_LESS1__",null,"Input",null,null,292,"J","Input!J292",{"$f":"_xlfn.XLOOKUP(F1050,'Raw Data'!$I$4:$I$5000,'Raw Data'!$E$4:$E$5000,100,0)","v":100},{"$f":"IF(N1050=0,_xlfn.XLOOKUP(F1050,'Raw Data'!$I$4:$I$5000,'Raw Data'!$H$4:$H$5000,\"\",0),\"\")","v":""},{"$f":"IF(INDIRECT(M1050) = \"\",\"\",INDIRECT(M1050))","v":""},"n"]
["SUCMRUR4SFMERG9_LESS1",null,null,null,{"$f":"_xlfn.XLOOKUP(F1051,'Raw Data'!$I$4:$I$5000,'Raw Data'!$D$4:$D$5000,\"*** Mnemonic not found ***\",0)","v":"*** Mnemonic not found ***"},"SUCMRUR4SFMERG9_LESS1__",null,"Input",null,null,292,"K","Input!K292",{"$f":"_xlfn.XLOOKUP(F1051,'Raw Data'!$I$4:$I$5000,'Raw Data'!$E$4:$E$5000,100,0)","v":100},{"$f":"IF(N1051=0,_xlfn.XLOOKUP(F1051,'Raw Data'!$I$4:$I$5000,'Raw Data'!$H$4:$H$5000,\"\",0),\"\")","v":""},{"$f":"IF(INDIRECT(M1051) = \"\",\"\",INDIRECT(M1051))","v":""},"n"]
["SUCMRUR4SFMERG10_LESS1",null,null,null,{"$f":"_xlfn.XLOOKUP(F1052,'Raw Data'!$I$4:$I$5000,'Raw Data'!$D$4:$D$5000,\"*** Mnemonic not found ***\",0)","v":"*** Mnemonic not found ***"},"SUCMRUR4SFMERG10_LESS1__",null,"Input",null,null,292,"L","Input!L292",{"$f":"_xlfn.XLOOKUP(F1052,'Raw Data'!$I$4:$I$5000,'Raw Data'!$E$4:$E$5000,100,0)","v":100},{"$f":"IF(N1052=0,_xlfn.XLOOKUP(F1052,'Raw Data'!$I$4:$I$5000,'Raw Data'!$H$4:$H$5000,\"\",0),\"\")","v":""},{"$f":"IF(INDIRECT(M1052) = \"\",\"\",INDIRECT(M1052))","v":""},"n"]
["SUCMRUR4SFMERGNA_LESS1",null,null,null,{"$f":"_xlfn.XLOOKUP(F1053,'Raw Data'!$I$4:$I$5000,'Raw Data'!$D$4:$D$5000,\"*** Mnemonic not found ***\",0)","v":"*** Mnemonic not found ***"},"SUCMRUR4SFMERGNA_LESS1__",null,"Input",null,null,292,"M","Input!M292",{"$f":"_xlfn.XLOOKUP(F1053,'Raw Data'!$I$4:$I$5000,'Raw Data'!$E$4:$E$5000,100,0)","v":100},{"$f":"IF(N1053=0,_xlfn.XLOOKUP(F1053,'Raw Data'!$I$4:$I$5000,'Raw Data'!$H$4:$H$5000,\"\",0),\"\")","v":""},{"$f":"IF(INDIRECT(M1053) = \"\",\"\",INDIRECT(M1053))","v":""},"n"]
["SUCMRUR4SFMERG1_1TO5",null,null,null,{"$f":"_xlfn.XLOOKUP(F1054,'Raw Data'!$I$4:$I$5000,'Raw Data'!$D$4:$D$5000,\"*** Mnemonic not found ***\",0)","v":"*** Mnemonic not found ***"},"SUCMRUR4SFMERG1_1TO5__",null,"Input",null,null,{"$f":"K1043+1","v":293},{"$f":"L1043","v":"C"},"Input!C293",{"$f":"_xlfn.XLOOKUP(F1054,'Raw Data'!$I$4:$I$5000,'Raw Data'!$E$4:$E$5000,100,0)","v":100},{"$f":"IF(N1054=0,_xlfn.XLOOKUP(F1054,'Raw Data'!$I$4:$I$5000,'Raw Data'!$H$4:$H$5000,\"\",0),\"\")","v":""},{"$f":"IF(INDIRECT(M1054) = \"\",\"\",INDIRECT(M1054))","v":""},"n"]
["SUCMRUR4SFMERG2_1TO5",null,null,null,{"$f":"_xlfn.XLOOKUP(F1055,'Raw Data'!$I$4:$I$5000,'Raw Data'!$D$4:$D$5000,\"*** Mnemonic not found ***\",0)","v":"*** Mnemonic not found ***"},"SUCMRUR4SFMERG2_1TO5__",null,"Input",null,null,{"$f":"K1044+1","v":293},{"$f":"L1044","v":"D"},"Input!D293",{"$f":"_xlfn.XLOOKUP(F1055,'Raw Data'!$I$4:$I$5000,'Raw Data'!$E$4:$E$5000,100,0)","v":100},{"$f":"IF(N1055=0,_xlfn.XLOOKUP(F1055,'Raw Data'!$I$4:$I$5000,'Raw Data'!$H$4:$H$5000,\"\",0),\"\")","v":""},{"$f":"IF(INDIRECT(M1055) = \"\",\"\",INDIRECT(M1055))","v":""},"n"]
["SUCMRUR4SFMERG3_1TO5",null,null,null,{"$f":"_xlfn.XLOOKUP(F1056,'Raw Data'!$I$4:$I$5000,'Raw Data'!$D$4:$D$5000,\"*** Mnemonic not found ***\",0)","v":"*** Mnemonic not found ***"},"SUCMRUR4SFMERG3_1TO5__",null,"Input",null,null,293,"E","Input!E293",{"$f":"_xlfn.XLOOKUP(F1056,'Raw Data'!$I$4:$I$5000,'Raw Data'!$E$4:$E$5000,100,0)","v":100},{"$f":"IF(N1056=0,_xlfn.XLOOKUP(F1056,'Raw Data'!$I$4:$I$5000,'Raw Data'!$H$4:$H$5000,\"\",0),\"\")","v":""},{"$f":"IF(INDIRECT(M1056) = \"\",\"\",INDIRECT(M1056))","v":""},"n"]
["SUCMRUR4SFMERG4_1TO5",null,null,null,{"$f":"_xlfn.XLOOKUP(F1057,'Raw Data'!$I$4:$I$5000,'Raw Data'!$D$4:$D$5000,\"*** Mnemonic not found ***\",0)","v":"*** Mnemonic not found ***"},"SUCMRUR4SFMERG4_1TO5__",null,"Input",null,null,293,"F","Input!F293",{"$f":"_xlfn.XLOOKUP(F1057,'Raw Data'!$I$4:$I$5000,'Raw Data'!$E$4:$E$5000,100,0)","v":100},{"$f":"IF(N1057=0,_xlfn.XLOOKUP(F1057,'Raw Data'!$I$4:$I$5000,'Raw Data'!$H$4:$H$5000,\"\",0),\"\")","v":""},{"$f":"IF(INDIRECT(M1057) = \"\",\"\",INDIRECT(M1057))","v":""},"n"]
["SUCMRUR4SFMERG5_1TO5",null,null,null,{"$f":"_xlfn.XLOOKUP(F1058,'Raw Data'!$I$4:$I$5000,'Raw Data'!$D$4:$D$5000,\"*** Mnemonic not found ***\",0)","v":"*** Mnemonic not found ***"},"SUCMRUR4SFMERG5_1TO5__",null,"Input",null,null,293,"G","Input!G293",{"$f":"_xlfn.XLOOKUP(F1058,'Raw Data'!$I$4:$I$5000,'Raw Data'!$E$4:$E$5000,100,0)","v":100},{"$f":"IF(N1058=0,_xlfn.XLOOKUP(F1058,'Raw Data'!$I$4:$I$5000,'Raw Data'!$H$4:$H$5000,\"\",0),\"\")","v":""},{"$f":"IF(INDIRECT(M1058) = \"\",\"\",INDIRECT(M1058))","v":""},"n"]
["SUCMRUR4SFMERG6_1TO5",null,null,null,{"$f":"_xlfn.XLOOKUP(F1059,'Raw Data'!$I$4:$I$5000,'Raw Data'!$D$4:$D$5000,\"*** Mnemonic not found ***\",0)","v":"*** Mnemonic not found ***"},"SUCMRUR4SFMERG6_1TO5__",null,"Input",null,null,293,"H","Input!H293",{"$f":"_xlfn.XLOOKUP(F1059,'Raw Data'!$I$4:$I$5000,'Raw Data'!$E$4:$E$5000,100,0)","v":100},{"$f":"IF(N1059=0,_xlfn.XLOOKUP(F1059,'Raw Data'!$I$4:$I$5000,'Raw Data'!$H$4:$H$5000,\"\",0),\"\")","v":""},{"$f":"IF(INDIRECT(M1059) = \"\",\"\",INDIRECT(M1059))","v":""},"n"]
["SUCMRUR4SFMERG7_1TO5",null,null,null,{"$f":"_xlfn.XLOOKUP(F1060,'Raw Data'!$I$4:$I$5000,'Raw Data'!$D$4:$D$5000,\"*** Mnemonic not found ***\",0)","v":"*** Mnemonic not found ***"},"SUCMRUR4SFMERG7_1TO5__",null,"Input",null,null,293,"I","Input!I293",{"$f":"_xlfn.XLOOKUP(F1060,'Raw Data'!$I$4:$I$5000,'Raw Data'!$E$4:$E$5000,100,0)","v":100},{"$f":"IF(N1060=0,_xlfn.XLOOKUP(F1060,'Raw Data'!$I$4:$I$5000,'Raw Data'!$H$4:$H$5000,\"\",0),\"\")","v":""},{"$f":"IF(INDIRECT(M1060) = \"\",\"\",INDIRECT(M1060))","v":""},"n"]
["SUCMRUR4SFMERG8_1TO5",null,null,null,{"$f":"_xlfn.XLOOKUP(F1061,'Raw Data'!$I$4:$I$5000,'Raw Data'!$D$4:$D$5000,\"*** Mnemonic not found ***\",0)","v":"*** Mnemonic not found ***"},"SUCMRUR4SFMERG8_1TO5__",null,"Input",null,null,293,"J","Input!J293",{"$f":"_xlfn.XLOOKUP(F1061,'Raw Data'!$I$4:$I$5000,'Raw Data'!$E$4:$E$5000,100,0)","v":100},{"$f":"IF(N1061=0,_xlfn.XLOOKUP(F1061,'Raw Data'!$I$4:$I$5000,'Raw Data'!$H$4:$H$5000,\"\",0),\"\")","v":""},{"$f":"IF(INDIRECT(M1061) = \"\",\"\",INDIRECT(M1061))","v":""},"n"]
["SUCMRUR4SFMERG9_1TO5",null,null,null,{"$f":"_xlfn.XLOOKUP(F1062,'Raw Data'!$I$4:$I$5000,'Raw Data'!$D$4:$D$5000,\"*** Mnemonic not found ***\",0)","v":"*** Mnemonic not found ***"},"SUCMRUR4SFMERG9_1TO5__",null,"Input",null,null,293,"K","Input!K293",{"$f":"_xlfn.XLOOKUP(F1062,'Raw Data'!$I$4:$I$5000,'Raw Data'!$E$4:$E$5000,100,0)","v":100},{"$f":"IF(N1062=0,_xlfn.XLOOKUP(F1062,'Raw Data'!$I$4:$I$5000,'Raw Data'!$H$4:$H$5000,\"\",0),\"\")","v":""},{"$f":"IF(INDIRECT(M1062) = \"\",\"\",INDIRECT(M1062))","v":""},"n"]
["SUCMRUR4SFMERG10_1TO5",null,null,null,{"$f":"_xlfn.XLOOKUP(F1063,'Raw Data'!$I$4:$I$5000,'Raw Data'!$D$4:$D$5000,\"*** Mnemonic not found ***\",0)","v":"*** Mnemonic not found ***"},"SUCMRUR4SFMERG10_1TO5__",null,"Input",null,null,293,"L","Input!L293",{"$f":"_xlfn.XLOOKUP(F1063,'Raw Data'!$I$4:$I$5000,'Raw Data'!$E$4:$E$5000,100,0)","v":100},{"$f":"IF(N1063=0,_xlfn.XLOOKUP(F1063,'Raw Data'!$I$4:$I$5000,'Raw Data'!$H$4:$H$5000,\"\",0),\"\")","v":""},{"$f":"IF(INDIRECT(M1063) = \"\",\"\",INDIRECT(M1063))","v":""},"n"]
["SUCMRUR4SFMERGNA_1TO5",null,null,null,{"$f":"_xlfn.XLOOKUP(F1064,'Raw Data'!$I$4:$I$5000,'Raw Data'!$D$4:$D$5000,\"*** Mnemonic not found ***\",0)","v":"*** Mnemonic not found ***"},"SUCMRUR4SFMERGNA_1TO5__",null,"Input",null,null,293,"M","Input!M293",{"$f":"_xlfn.XLOOKUP(F1064,'Raw Data'!$I$4:$I$5000,'Raw Data'!$E$4:$E$5000,100,0)","v":100},{"$f":"IF(N1064=0,_xlfn.XLOOKUP(F1064,'Raw Data'!$I$4:$I$5000,'Raw Data'!$H$4:$H$5000,\"\",0),\"\")","v":""},{"$f":"IF(INDIRECT(M1064) = \"\",\"\",INDIRECT(M1064))","v":""},"n"]
["SUCMRUR4SFMERG1_5TO10",null,null,null,{"$f":"_xlfn.XLOOKUP(F1065,'Raw Data'!$I$4:$I$5000,'Raw Data'!$D$4:$D$5000,\"*** Mnemonic not found ***\",0)","v":"*** Mnemonic not found ***"},"SUCMRUR4SFMERG1_5TO10__",null,"Input",null,null,294,"C","Input!C294",{"$f":"_xlfn.XLOOKUP(F1065,'Raw Data'!$I$4:$I$5000,'Raw Data'!$E$4:$E$5000,100,0)","v":100},{"$f":"IF(N1065=0,_xlfn.XLOOKUP(F1065,'Raw Data'!$I$4:$I$5000,'Raw Data'!$H$4:$H$5000,\"\",0),\"\")","v":""},{"$f":"IF(INDIRECT(M1065) = \"\",\"\",INDIRECT(M1065))","v":""},"n"]
["SUCMRUR4SFMERG2_5TO10",null,null,null,{"$f":"_xlfn.XLOOKUP(F1066,'Raw Data'!$I$4:$I$5000,'Raw Data'!$D$4:$D$5000,\"*** Mnemonic not found ***\",0)","v":"*** Mnemonic not found ***"},"SUCMRUR4SFMERG2_5TO10__",null,"Input",null,null,294,"D","Input!D294",{"$f":"_xlfn.XLOOKUP(F1066,'Raw Data'!$I$4:$I$5000,'Raw Data'!$E$4:$E$5000,100,0)","v":100},{"$f":"IF(N1066=0,_xlfn.XLOOKUP(F1066,'Raw Data'!$I$4:$I$5000,'Raw Data'!$H$4:$H$5000,\"\",0),\"\")","v":""},{"$f":"IF(INDIRECT(M1066) = \"\",\"\",INDIRECT(M1066))","v":""},"n"]
["SUCMRUR4SFMERG3_5TO10",null,null,null,{"$f":"_xlfn.XLOOKUP(F1067,'Raw Data'!$I$4:$I$5000,'Raw Data'!$D$4:$D$5000,\"*** Mnemonic not found ***\",0)","v":"*** Mnemonic not found ***"},"SUCMRUR4SFMERG3_5TO10__",null,"Input",null,null,294,"E","Input!E294",{"$f":"_xlfn.XLOOKUP(F1067,'Raw Data'!$I$4:$I$5000,'Raw Data'!$E$4:$E$5000,100,0)","v":100},{"$f":"IF(N1067=0,_xlfn.XLOOKUP(F1067,'Raw Data'!$I$4:$I$5000,'Raw Data'!$H$4:$H$5000,\"\",0),\"\")","v":""},{"$f":"IF(INDIRECT(M1067) = \"\",\"\",INDIRECT(M1067))","v":""},"n"]
["SUCMRUR4SFMERG4_5TO10",null,null,null,{"$f":"_xlfn.XLOOKUP(F1068,'Raw Data'!$I$4:$I$5000,'Raw Data'!$D$4:$D$5000,\"*** Mnemonic not found ***\",0)","v":"*** Mnemonic not found ***"},"SUCMRUR4SFMERG4_5TO10__",null,"Input",null,null,294,"F","Input!F294",{"$f":"_xlfn.XLOOKUP(F1068,'Raw Data'!$I$4:$I$5000,'Raw Data'!$E$4:$E$5000,100,0)","v":100},{"$f":"IF(N1068=0,_xlfn.XLOOKUP(F1068,'Raw Data'!$I$4:$I$5000,'Raw Data'!$H$4:$H$5000,\"\",0),\"\")","v":""},{"$f":"IF(INDIRECT(M1068) = \"\",\"\",INDIRECT(M1068))","v":""},"n"]
["SUCMRUR4SFMERG5_5TO10",null,null,null,{"$f":"_xlfn.XLOOKUP(F1069,'Raw Data'!$I$4:$I$5000,'Raw Data'!$D$4:$D$5000,\"*** Mnemonic not found ***\",0)","v":"*** Mnemonic not found ***"},"SUCMRUR4SFMERG5_5TO10__",null,"Input",null,null,294,"G","Input!G294",{"$f":"_xlfn.XLOOKUP(F1069,'Raw Data'!$I$4:$I$5000,'Raw Data'!$E$4:$E$5000,100,0)","v":100},{"$f":"IF(N1069=0,_xlfn.XLOOKUP(F1069,'Raw Data'!$I$4:$I$5000,'Raw Data'!$H$4:$H$5000,\"\",0),\"\")","v":""},{"$f":"IF(INDIRECT(M1069) = \"\",\"\",INDIRECT(M1069))","v":""},"n"]
["SUCMRUR4SFMERG6_5TO10",null,null,null,{"$f":"_xlfn.XLOOKUP(F1070,'Raw Data'!$I$4:$I$5000,'Raw Data'!$D$4:$D$5000,\"*** Mnemonic not found ***\",0)","v":"*** Mnemonic not found ***"},"SUCMRUR4SFMERG6_5TO10__",null,"Input",null,null,294,"H","Input!H294",{"$f":"_xlfn.XLOOKUP(F1070,'Raw Data'!$I$4:$I$5000,'Raw Data'!$E$4:$E$5000,100,0)","v":100},{"$f":"IF(N1070=0,_xlfn.XLOOKUP(F1070,'Raw Data'!$I$4:$I$5000,'Raw Data'!$H$4:$H$5000,\"\",0),\"\")","v":""},{"$f":"IF(INDIRECT(M1070) = \"\",\"\",INDIRECT(M1070))","v":""},"n"]
["SUCMRUR4SFMERG7_5TO10",null,null,null,{"$f":"_xlfn.XLOOKUP(F1071,'Raw Data'!$I$4:$I$5000,'Raw Data'!$D$4:$D$5000,\"*** Mnemonic not found ***\",0)","v":"*** Mnemonic not found ***"},"SUCMRUR4SFMERG7_5TO10__",null,"Input",null,null,294,"I","Input!I294",{"$f":"_xlfn.XLOOKUP(F1071,'Raw Data'!$I$4:$I$5000,'Raw Data'!$E$4:$E$5000,100,0)","v":100},{"$f":"IF(N1071=0,_xlfn.XLOOKUP(F1071,'Raw Data'!$I$4:$I$5000,'Raw Data'!$H$4:$H$5000,\"\",0),\"\")","v":""},{"$f":"IF(INDIRECT(M1071) = \"\",\"\",INDIRECT(M1071))","v":""},"n"]
["SUCMRUR4SFMERG8_5TO10",null,null,null,{"$f":"_xlfn.XLOOKUP(F1072,'Raw Data'!$I$4:$I$5000,'Raw Data'!$D$4:$D$5000,\"*** Mnemonic not found ***\",0)","v":"*** Mnemonic not found ***"},"SUCMRUR4SFMERG8_5TO10__",null,"Input",null,null,294,"J","Input!J294",{"$f":"_xlfn.XLOOKUP(F1072,'Raw Data'!$I$4:$I$5000,'Raw Data'!$E$4:$E$5000,100,0)","v":100},{"$f":"IF(N1072=0,_xlfn.XLOOKUP(F1072,'Raw Data'!$I$4:$I$5000,'Raw Data'!$H$4:$H$5000,\"\",0),\"\")","v":""},{"$f":"IF(INDIRECT(M1072) = \"\",\"\",INDIRECT(M1072))","v":""},"n"]
["SUCMRUR4SFMERG9_5TO10",null,null,null,{"$f":"_xlfn.XLOOKUP(F1073,'Raw Data'!$I$4:$I$5000,'Raw Data'!$D$4:$D$5000,\"*** Mnemonic not found ***\",0)","v":"*** Mnemonic not found ***"},"SUCMRUR4SFMERG9_5TO10__",null,"Input",null,null,294,"K","Input!K294",{"$f":"_xlfn.XLOOKUP(F1073,'Raw Data'!$I$4:$I$5000,'Raw Data'!$E$4:$E$5000,100,0)","v":100},{"$f":"IF(N1073=0,_xlfn.XLOOKUP(F1073,'Raw Data'!$I$4:$I$5000,'Raw Data'!$H$4:$H$5000,\"\",0),\"\")","v":""},{"$f":"IF(INDIRECT(M1073) = \"\",\"\",INDIRECT(M1073))","v":""},"n"]
["SUCMRUR4SFMERG10_5TO10",null,null,null,{"$f":"_xlfn.XLOOKUP(F1074,'Raw Data'!$I$4:$I$5000,'Raw Data'!$D$4:$D$5000,\"*** Mnemonic not found ***\",0)","v":"*** Mnemonic not found ***"},"SUCMRUR4SFMERG10_5TO10__",null,"Input",null,null,294,"L","Input!L294",{"$f":"_xlfn.XLOOKUP(F1074,'Raw Data'!$I$4:$I$5000,'Raw Data'!$E$4:$E$5000,100,0)","v":100},{"$f":"IF(N1074=0,_xlfn.XLOOKUP(F1074,'Raw Data'!$I$4:$I$5000,'Raw Data'!$H$4:$H$5000,\"\",0),\"\")","v":""},{"$f":"IF(INDIRECT(M1074) = \"\",\"\",INDIRECT(M1074))","v":""},"n"]
["SUCMRUR4SFMERGNA_5TO10",null,null,null,{"$f":"_xlfn.XLOOKUP(F1075,'Raw Data'!$I$4:$I$5000,'Raw Data'!$D$4:$D$5000,\"*** Mnemonic not found ***\",0)","v":"*** Mnemonic not found ***"},"SUCMRUR4SFMERGNA_5TO10__",null,"Input",null,null,294,"M","Input!M294",{"$f":"_xlfn.XLOOKUP(F1075,'Raw Data'!$I$4:$I$5000,'Raw Data'!$E$4:$E$5000,100,0)","v":100},{"$f":"IF(N1075=0,_xlfn.XLOOKUP(F1075,'Raw Data'!$I$4:$I$5000,'Raw Data'!$H$4:$H$5000,\"\",0),\"\")","v":""},{"$f":"IF(INDIRECT(M1075) = \"\",\"\",INDIRECT(M1075))","v":""},"n"]
["SUCMRUR4SFMERG1_10TO20",null,null,null,{"$f":"_xlfn.XLOOKUP(F1076,'Raw Data'!$I$4:$I$5000,'Raw Data'!$D$4:$D$5000,\"*** Mnemonic not found ***\",0)","v":"*** Mnemonic not found ***"},"SUCMRUR4SFMERG1_10TO20__",null,"Input",null,null,295,"C","Input!C295",{"$f":"_xlfn.XLOOKUP(F1076,'Raw Data'!$I$4:$I$5000,'Raw Data'!$E$4:$E$5000,100,0)","v":100},{"$f":"IF(N1076=0,_xlfn.XLOOKUP(F1076,'Raw Data'!$I$4:$I$5000,'Raw Data'!$H$4:$H$5000,\"\",0),\"\")","v":""},{"$f":"IF(INDIRECT(M1076) = \"\",\"\",INDIRECT(M1076))","v":""},"n"]
["SUCMRUR4SFMERG2_10TO20",null,null,null,{"$f":"_xlfn.XLOOKUP(F1077,'Raw Data'!$I$4:$I$5000,'Raw Data'!$D$4:$D$5000,\"*** Mnemonic not found ***\",0)","v":"*** Mnemonic not found ***"},"SUCMRUR4SFMERG2_10TO20__",null,"Input",null,null,295,"D","Input!D295",{"$f":"_xlfn.XLOOKUP(F1077,'Raw Data'!$I$4:$I$5000,'Raw Data'!$E$4:$E$5000,100,0)","v":100},{"$f":"IF(N1077=0,_xlfn.XLOOKUP(F1077,'Raw Data'!$I$4:$I$5000,'Raw Data'!$H$4:$H$5000,\"\",0),\"\")","v":""},{"$f":"IF(INDIRECT(M1077) = \"\",\"\",INDIRECT(M1077))","v":""},"n"]
["SUCMRUR4SFMERG3_10TO20",null,null,null,{"$f":"_xlfn.XLOOKUP(F1078,'Raw Data'!$I$4:$I$5000,'Raw Data'!$D$4:$D$5000,\"*** Mnemonic not found ***\",0)","v":"*** Mnemonic not found ***"},"SUCMRUR4SFMERG3_10TO20__",null,"Input",null,null,295,"E","Input!E295",{"$f":"_xlfn.XLOOKUP(F1078,'Raw Data'!$I$4:$I$5000,'Raw Data'!$E$4:$E$5000,100,0)","v":100},{"$f":"IF(N1078=0,_xlfn.XLOOKUP(F1078,'Raw Data'!$I$4:$I$5000,'Raw Data'!$H$4:$H$5000,\"\",0),\"\")","v":""},{"$f":"IF(INDIRECT(M1078) = \"\",\"\",INDIRECT(M1078))","v":""},"n"]
["SUCMRUR4SFMERG4_10TO20",null,null,null,{"$f":"_xlfn.XLOOKUP(F1079,'Raw Data'!$I$4:$I$5000,'Raw Data'!$D$4:$D$5000,\"*** Mnemonic not found ***\",0)","v":"*** Mnemonic not found ***"},"SUCMRUR4SFMERG4_10TO20__",null,"Input",null,null,295,"F","Input!F295",{"$f":"_xlfn.XLOOKUP(F1079,'Raw Data'!$I$4:$I$5000,'Raw Data'!$E$4:$E$5000,100,0)","v":100},{"$f":"IF(N1079=0,_xlfn.XLOOKUP(F1079,'Raw Data'!$I$4:$I$5000,'Raw Data'!$H$4:$H$5000,\"\",0),\"\")","v":""},{"$f":"IF(INDIRECT(M1079) = \"\",\"\",INDIRECT(M1079))","v":""},"n"]
["SUCMRUR4SFMERG5_10TO20",null,null,null,{"$f":"_xlfn.XLOOKUP(F1080,'Raw Data'!$I$4:$I$5000,'Raw Data'!$D$4:$D$5000,\"*** Mnemonic not found ***\",0)","v":"*** Mnemonic not found ***"},"SUCMRUR4SFMERG5_10TO20__",null,"Input",null,null,295,"G","Input!G295",{"$f":"_xlfn.XLOOKUP(F1080,'Raw Data'!$I$4:$I$5000,'Raw Data'!$E$4:$E$5000,100,0)","v":100},{"$f":"IF(N1080=0,_xlfn.XLOOKUP(F1080,'Raw Data'!$I$4:$I$5000,'Raw Data'!$H$4:$H$5000,\"\",0),\"\")","v":""},{"$f":"IF(INDIRECT(M1080) = \"\",\"\",INDIRECT(M1080))","v":""},"n"]
["SUCMRUR4SFMERG6_10TO20",null,null,null,{"$f":"_xlfn.XLOOKUP(F1081,'Raw Data'!$I$4:$I$5000,'Raw Data'!$D$4:$D$5000,\"*** Mnemonic not found ***\",0)","v":"*** Mnemonic not found ***"},"SUCMRUR4SFMERG6_10TO20__",null,"Input",null,null,295,"H","Input!H295",{"$f":"_xlfn.XLOOKUP(F1081,'Raw Data'!$I$4:$I$5000,'Raw Data'!$E$4:$E$5000,100,0)","v":100},{"$f":"IF(N1081=0,_xlfn.XLOOKUP(F1081,'Raw Data'!$I$4:$I$5000,'Raw Data'!$H$4:$H$5000,\"\",0),\"\")","v":""},{"$f":"IF(INDIRECT(M1081) = \"\",\"\",INDIRECT(M1081))","v":""},"n"]
["SUCMRUR4SFMERG7_10TO20",null,null,null,{"$f":"_xlfn.XLOOKUP(F1082,'Raw Data'!$I$4:$I$5000,'Raw Data'!$D$4:$D$5000,\"*** Mnemonic not found ***\",0)","v":"*** Mnemonic not found ***"},"SUCMRUR4SFMERG7_10TO20__",null,"Input",null,null,295,"I","Input!I295",{"$f":"_xlfn.XLOOKUP(F1082,'Raw Data'!$I$4:$I$5000,'Raw Data'!$E$4:$E$5000,100,0)","v":100},{"$f":"IF(N1082=0,_xlfn.XLOOKUP(F1082,'Raw Data'!$I$4:$I$5000,'Raw Data'!$H$4:$H$5000,\"\",0),\"\")","v":""},{"$f":"IF(INDIRECT(M1082) = \"\",\"\",INDIRECT(M1082))","v":""},"n"]
["SUCMRUR4SFMERG8_10TO20",null,null,null,{"$f":"_xlfn.XLOOKUP(F1083,'Raw Data'!$I$4:$I$5000,'Raw Data'!$D$4:$D$5000,\"*** Mnemonic not found ***\",0)","v":"*** Mnemonic not found ***"},"SUCMRUR4SFMERG8_10TO20__",null,"Input",null,null,295,"J","Input!J295",{"$f":"_xlfn.XLOOKUP(F1083,'Raw Data'!$I$4:$I$5000,'Raw Data'!$E$4:$E$5000,100,0)","v":100},{"$f":"IF(N1083=0,_xlfn.XLOOKUP(F1083,'Raw Data'!$I$4:$I$5000,'Raw Data'!$H$4:$H$5000,\"\",0),\"\")","v":""},{"$f":"IF(INDIRECT(M1083) = \"\",\"\",INDIRECT(M1083))","v":""},"n"]
["SUCMRUR4SFMERG9_10TO20",null,null,null,{"$f":"_xlfn.XLOOKUP(F1084,'Raw Data'!$I$4:$I$5000,'Raw Data'!$D$4:$D$5000,\"*** Mnemonic not found ***\",0)","v":"*** Mnemonic not found ***"},"SUCMRUR4SFMERG9_10TO20__",null,"Input",null,null,295,"K","Input!K295",{"$f":"_xlfn.XLOOKUP(F1084,'Raw Data'!$I$4:$I$5000,'Raw Data'!$E$4:$E$5000,100,0)","v":100},{"$f":"IF(N1084=0,_xlfn.XLOOKUP(F1084,'Raw Data'!$I$4:$I$5000,'Raw Data'!$H$4:$H$5000,\"\",0),\"\")","v":""},{"$f":"IF(INDIRECT(M1084) = \"\",\"\",INDIRECT(M1084))","v":""},"n"]
["SUCMRUR4SFMERG10_10TO20",null,null,null,{"$f":"_xlfn.XLOOKUP(F1085,'Raw Data'!$I$4:$I$5000,'Raw Data'!$D$4:$D$5000,\"*** Mnemonic not found ***\",0)","v":"*** Mnemonic not found ***"},"SUCMRUR4SFMERG10_10TO20__",null,"Input",null,null,295,"L","Input!L295",{"$f":"_xlfn.XLOOKUP(F1085,'Raw Data'!$I$4:$I$5000,'Raw Data'!$E$4:$E$5000,100,0)","v":100},{"$f":"IF(N1085=0,_xlfn.XLOOKUP(F1085,'Raw Data'!$I$4:$I$5000,'Raw Data'!$H$4:$H$5000,\"\",0),\"\")","v":""},{"$f":"IF(INDIRECT(M1085) = \"\",\"\",INDIRECT(M1085))","v":""},"n"]
["SUCMRUR4SFMERGNA_10TO20",null,null,null,{"$f":"_xlfn.XLOOKUP(F1086,'Raw Data'!$I$4:$I$5000,'Raw Data'!$D$4:$D$5000,\"*** Mnemonic not found ***\",0)","v":"*** Mnemonic not found ***"},"SUCMRUR4SFMERGNA_10TO20__",null,"Input",null,null,295,"M","Input!M295",{"$f":"_xlfn.XLOOKUP(F1086,'Raw Data'!$I$4:$I$5000,'Raw Data'!$E$4:$E$5000,100,0)","v":100},{"$f":"IF(N1086=0,_xlfn.XLOOKUP(F1086,'Raw Data'!$I$4:$I$5000,'Raw Data'!$H$4:$H$5000,\"\",0),\"\")","v":""},{"$f":"IF(INDIRECT(M1086) = \"\",\"\",INDIRECT(M1086))","v":""},"n"]
["SUCMRUR4SFMERG1_GRTR20",null,null,null,{"$f":"_xlfn.XLOOKUP(F1087,'Raw Data'!$I$4:$I$5000,'Raw Data'!$D$4:$D$5000,\"*** Mnemonic not found ***\",0)","v":"*** Mnemonic not found ***"},"SUCMRUR4SFMERG1_GRTR20__",null,"Input",null,null,296,"C","Input!C296",{"$f":"_xlfn.XLOOKUP(F1087,'Raw Data'!$I$4:$I$5000,'Raw Data'!$E$4:$E$5000,100,0)","v":100},{"$f":"IF(N1087=0,_xlfn.XLOOKUP(F1087,'Raw Data'!$I$4:$I$5000,'Raw Data'!$H$4:$H$5000,\"\",0),\"\")","v":""},{"$f":"IF(INDIRECT(M1087) = \"\",\"\",INDIRECT(M1087))","v":""},"n"]
["SUCMRUR4SFMERG2_GRTR20",null,null,null,{"$f":"_xlfn.XLOOKUP(F1088,'Raw Data'!$I$4:$I$5000,'Raw Data'!$D$4:$D$5000,\"*** Mnemonic not found ***\",0)","v":"*** Mnemonic not found ***"},"SUCMRUR4SFMERG2_GRTR20__",null,"Input",null,null,296,"D","Input!D296",{"$f":"_xlfn.XLOOKUP(F1088,'Raw Data'!$I$4:$I$5000,'Raw Data'!$E$4:$E$5000,100,0)","v":100},{"$f":"IF(N1088=0,_xlfn.XLOOKUP(F1088,'Raw Data'!$I$4:$I$5000,'Raw Data'!$H$4:$H$5000,\"\",0),\"\")","v":""},{"$f":"IF(INDIRECT(M1088) = \"\",\"\",INDIRECT(M1088))","v":""},"n"]
["SUCMRUR4SFMERG3_GRTR20",null,null,null,{"$f":"_xlfn.XLOOKUP(F1089,'Raw Data'!$I$4:$I$5000,'Raw Data'!$D$4:$D$5000,\"*** Mnemonic not found ***\",0)","v":"*** Mnemonic not found ***"},"SUCMRUR4SFMERG3_GRTR20__",null,"Input",null,null,296,"E","Input!E296",{"$f":"_xlfn.XLOOKUP(F1089,'Raw Data'!$I$4:$I$5000,'Raw Data'!$E$4:$E$5000,100,0)","v":100},{"$f":"IF(N1089=0,_xlfn.XLOOKUP(F1089,'Raw Data'!$I$4:$I$5000,'Raw Data'!$H$4:$H$5000,\"\",0),\"\")","v":""},{"$f":"IF(INDIRECT(M1089) = \"\",\"\",INDIRECT(M1089))","v":""},"n"]
["SUCMRUR4SFMERG4_GRTR20",null,null,null,{"$f":"_xlfn.XLOOKUP(F1090,'Raw Data'!$I$4:$I$5000,'Raw Data'!$D$4:$D$5000,\"*** Mnemonic not found ***\",0)","v":"*** Mnemonic not found ***"},"SUCMRUR4SFMERG4_GRTR20__",null,"Input",null,null,296,"F","Input!F296",{"$f":"_xlfn.XLOOKUP(F1090,'Raw Data'!$I$4:$I$5000,'Raw Data'!$E$4:$E$5000,100,0)","v":100},{"$f":"IF(N1090=0,_xlfn.XLOOKUP(F1090,'Raw Data'!$I$4:$I$5000,'Raw Data'!$H$4:$H$5000,\"\",0),\"\")","v":""},{"$f":"IF(INDIRECT(M1090) = \"\",\"\",INDIRECT(M1090))","v":""},"n"]
["SUCMRUR4SFMERG5_GRTR20",null,null,null,{"$f":"_xlfn.XLOOKUP(F1091,'Raw Data'!$I$4:$I$5000,'Raw Data'!$D$4:$D$5000,\"*** Mnemonic not found ***\",0)","v":"*** Mnemonic not found ***"},"SUCMRUR4SFMERG5_GRTR20__",null,"Input",null,null,296,"G","Input!G296",{"$f":"_xlfn.XLOOKUP(F1091,'Raw Data'!$I$4:$I$5000,'Raw Data'!$E$4:$E$5000,100,0)","v":100},{"$f":"IF(N1091=0,_xlfn.XLOOKUP(F1091,'Raw Data'!$I$4:$I$5000,'Raw Data'!$H$4:$H$5000,\"\",0),\"\")","v":""},{"$f":"IF(INDIRECT(M1091) = \"\",\"\",INDIRECT(M1091))","v":""},"n"]
["SUCMRUR4SFMERG6_GRTR20",null,null,null,{"$f":"_xlfn.XLOOKUP(F1092,'Raw Data'!$I$4:$I$5000,'Raw Data'!$D$4:$D$5000,\"*** Mnemonic not found ***\",0)","v":"*** Mnemonic not found ***"},"SUCMRUR4SFMERG6_GRTR20__",null,"Input",null,null,296,"H","Input!H296",{"$f":"_xlfn.XLOOKUP(F1092,'Raw Data'!$I$4:$I$5000,'Raw Data'!$E$4:$E$5000,100,0)","v":100},{"$f":"IF(N1092=0,_xlfn.XLOOKUP(F1092,'Raw Data'!$I$4:$I$5000,'Raw Data'!$H$4:$H$5000,\"\",0),\"\")","v":""},{"$f":"IF(INDIRECT(M1092) = \"\",\"\",INDIRECT(M1092))","v":""},"n"]
["SUCMRUR4SFMERG7_GRTR20",null,null,null,{"$f":"_xlfn.XLOOKUP(F1093,'Raw Data'!$I$4:$I$5000,'Raw Data'!$D$4:$D$5000,\"*** Mnemonic not found ***\",0)","v":"*** Mnemonic not found ***"},{"$f":"CONCATENATE(A1093,\"_\",B1093,\"_\",D1093)","v":"SUCMRUR4SFMERG7_GRTR20__"},null,"Input",null,null,296,"I","Input!I296",{"$f":"_xlfn.XLOOKUP(F1093,'Raw Data'!$I$4:$I$5000,'Raw Data'!$E$4:$E$5000,100,0)","v":100},{"$f":"IF(N1093=0,_xlfn.XLOOKUP(F1093,'Raw Data'!$I$4:$I$5000,'Raw Data'!$H$4:$H$5000,\"\",0),\"\")","v":""},{"$f":"IF(INDIRECT(M1093) = \"\",\"\",INDIRECT(M1093))","v":""},"n"]
["SUCMRUR4SFMERG8_GRTR20",null,null,null,{"$f":"_xlfn.XLOOKUP(F1094,'Raw Data'!$I$4:$I$5000,'Raw Data'!$D$4:$D$5000,\"*** Mnemonic not found ***\",0)","v":"*** Mnemonic not found ***"},"SUCMRUR4SFMERG8_GRTR20__",null,"Input",null,null,296,"J","Input!J296",{"$f":"_xlfn.XLOOKUP(F1094,'Raw Data'!$I$4:$I$5000,'Raw Data'!$E$4:$E$5000,100,0)","v":100},{"$f":"IF(N1094=0,_xlfn.XLOOKUP(F1094,'Raw Data'!$I$4:$I$5000,'Raw Data'!$H$4:$H$5000,\"\",0),\"\")","v":""},{"$f":"IF(INDIRECT(M1094) = \"\",\"\",INDIRECT(M1094))","v":""},"n"]
["SUCMRUR4SFMERG9_GRTR20",null,null,null,{"$f":"_xlfn.XLOOKUP(F1095,'Raw Data'!$I$4:$I$5000,'Raw Data'!$D$4:$D$5000,\"*** Mnemonic not found ***\",0)","v":"*** Mnemonic not found ***"},"SUCMRUR4SFMERG9_GRTR20__",null,"Input",null,null,296,"K","Input!K296",{"$f":"_xlfn.XLOOKUP(F1095,'Raw Data'!$I$4:$I$5000,'Raw Data'!$E$4:$E$5000,100,0)","v":100},{"$f":"IF(N1095=0,_xlfn.XLOOKUP(F1095,'Raw Data'!$I$4:$I$5000,'Raw Data'!$H$4:$H$5000,\"\",0),\"\")","v":""},{"$f":"IF(INDIRECT(M1095) = \"\",\"\",INDIRECT(M1095))","v":""},"n"]
["SUCMRUR4SFMERG10_GRTR20",null,null,null,{"$f":"_xlfn.XLOOKUP(F1096,'Raw Data'!$I$4:$I$5000,'Raw Data'!$D$4:$D$5000,\"*** Mnemonic not found ***\",0)","v":"*** Mnemonic not found ***"},"SUCMRUR4SFMERG10_GRTR20__",null,"Input",null,null,296,"L","Input!L296",{"$f":"_xlfn.XLOOKUP(F1096,'Raw Data'!$I$4:$I$5000,'Raw Data'!$E$4:$E$5000,100,0)","v":100},{"$f":"IF(N1096=0,_xlfn.XLOOKUP(F1096,'Raw Data'!$I$4:$I$5000,'Raw Data'!$H$4:$H$5000,\"\",0),\"\")","v":""},{"$f":"IF(INDIRECT(M1096) = \"\",\"\",INDIRECT(M1096))","v":""},"n"]
["SUCMRUR4SFMERGNA_GRTR20",null,null,null,{"$f":"_xlfn.XLOOKUP(F1097,'Raw Data'!$I$4:$I$5000,'Raw Data'!$D$4:$D$5000,\"*** Mnemonic not found ***\",0)","v":"*** Mnemonic not found ***"},"SUCMRUR4SFMERGNA_GRTR20__",null,"Input",null,null,296,"M","Input!M296",{"$f":"_xlfn.XLOOKUP(F1097,'Raw Data'!$I$4:$I$5000,'Raw Data'!$E$4:$E$5000,100,0)","v":100},{"$f":"IF(N1097=0,_xlfn.XLOOKUP(F1097,'Raw Data'!$I$4:$I$5000,'Raw Data'!$H$4:$H$5000,\"\",0),\"\")","v":""},{"$f":"IF(INDIRECT(M1097) = \"\",\"\",INDIRECT(M1097))","v":""},"n"]
["SUCMRUR4SFJERG1_LESS1",null,null,null,{"$f":"_xlfn.XLOOKUP(F1098,'Raw Data'!$I$4:$I$5000,'Raw Data'!$D$4:$D$5000,\"*** Mnemonic not found ***\",0)","v":"*** Mnemonic not found ***"},"SUCMRUR4SFJERG1_LESS1__",null,"Input",{"$f":"ROW(section_bonds_sp_unrated_step_4)","v":187},{"$f":"J1043+10","v":115},{"$f":"I1098+J1098","v":302},{"$f":"L1087","v":"C"},{"$f":"CONCATENATE(H1098,\"!\",L1098,K1098)","v":"Input!C302"},{"$f":"_xlfn.XLOOKUP(F1098,'Raw Data'!$I$4:$I$5000,'Raw Data'!$E$4:$E$5000,100,0)","v":100},{"$f":"IF(N1098=0,_xlfn.XLOOKUP(F1098,'Raw Data'!$I$4:$I$5000,'Raw Data'!$H$4:$H$5000,\"\",0),\"\")","v":""},{"$f":"IF(INDIRECT(M1098) = \"\",\"\",INDIRECT(M1098))","v":""},"n"]
["SUCMRUR4SFJERG2_LESS1",null,null,null,{"$f":"_xlfn.XLOOKUP(F1099,'Raw Data'!$I$4:$I$5000,'Raw Data'!$D$4:$D$5000,\"*** Mnemonic not found ***\",0)","v":"*** Mnemonic not found ***"},"SUCMRUR4SFJERG2_LESS1__",null,"Input",null,null,{"$f":"K1098","v":302},{"$f":"L1088","v":"D"},"Input!D302",{"$f":"_xlfn.XLOOKUP(F1099,'Raw Data'!$I$4:$I$5000,'Raw Data'!$E$4:$E$5000,100,0)","v":100},{"$f":"IF(N1099=0,_xlfn.XLOOKUP(F1099,'Raw Data'!$I$4:$I$5000,'Raw Data'!$H$4:$H$5000,\"\",0),\"\")","v":""},{"$f":"IF(INDIRECT(M1099) = \"\",\"\",INDIRECT(M1099))","v":""},"n"]
["SUCMRUR4SFJERG3_LESS1",null,null,null,{"$f":"_xlfn.XLOOKUP(F1100,'Raw Data'!$I$4:$I$5000,'Raw Data'!$D$4:$D$5000,\"*** Mnemonic not found ***\",0)","v":"*** Mnemonic not found ***"},"SUCMRUR4SFJERG3_LESS1__",null,"Input",null,null,{"$f":"K1099","v":302},"E","Input!E302",{"$f":"_xlfn.XLOOKUP(F1100,'Raw Data'!$I$4:$I$5000,'Raw Data'!$E$4:$E$5000,100,0)","v":100},{"$f":"IF(N1100=0,_xlfn.XLOOKUP(F1100,'Raw Data'!$I$4:$I$5000,'Raw Data'!$H$4:$H$5000,\"\",0),\"\")","v":""},{"$f":"IF(INDIRECT(M1100) = \"\",\"\",INDIRECT(M1100))","v":""},"n"]
["SUCMRUR4SFJERG4_LESS1",null,null,null,{"$f":"_xlfn.XLOOKUP(F1101,'Raw Data'!$I$4:$I$5000,'Raw Data'!$D$4:$D$5000,\"*** Mnemonic not found ***\",0)","v":"*** Mnemonic not found ***"},"SUCMRUR4SFJERG4_LESS1__",null,"Input",null,null,302,"F","Input!F302",{"$f":"_xlfn.XLOOKUP(F1101,'Raw Data'!$I$4:$I$5000,'Raw Data'!$E$4:$E$5000,100,0)","v":100},{"$f":"IF(N1101=0,_xlfn.XLOOKUP(F1101,'Raw Data'!$I$4:$I$5000,'Raw Data'!$H$4:$H$5000,\"\",0),\"\")","v":""},{"$f":"IF(INDIRECT(M1101) = \"\",\"\",INDIRECT(M1101))","v":""},"n"]
["SUCMRUR4SFJERG5_LESS1",null,null,null,{"$f":"_xlfn.XLOOKUP(F1102,'Raw Data'!$I$4:$I$5000,'Raw Data'!$D$4:$D$5000,\"*** Mnemonic not found ***\",0)","v":"*** Mnemonic not found ***"},"SUCMRUR4SFJERG5_LESS1__",null,"Input",null,null,302,"G","Input!G302",{"$f":"_xlfn.XLOOKUP(F1102,'Raw Data'!$I$4:$I$5000,'Raw Data'!$E$4:$E$5000,100,0)","v":100},{"$f":"IF(N1102=0,_xlfn.XLOOKUP(F1102,'Raw Data'!$I$4:$I$5000,'Raw Data'!$H$4:$H$5000,\"\",0),\"\")","v":""},{"$f":"IF(INDIRECT(M1102) = \"\",\"\",INDIRECT(M1102))","v":""},"n"]
["SUCMRUR4SFJERG6_LESS1",null,null,null,{"$f":"_xlfn.XLOOKUP(F1103,'Raw Data'!$I$4:$I$5000,'Raw Data'!$D$4:$D$5000,\"*** Mnemonic not found ***\",0)","v":"*** Mnemonic not found ***"},"SUCMRUR4SFJERG6_LESS1__",null,"Input",null,null,302,"H","Input!H302",{"$f":"_xlfn.XLOOKUP(F1103,'Raw Data'!$I$4:$I$5000,'Raw Data'!$E$4:$E$5000,100,0)","v":100},{"$f":"IF(N1103=0,_xlfn.XLOOKUP(F1103,'Raw Data'!$I$4:$I$5000,'Raw Data'!$H$4:$H$5000,\"\",0),\"\")","v":""},{"$f":"IF(INDIRECT(M1103) = \"\",\"\",INDIRECT(M1103))","v":""},"n"]
["SUCMRUR4SFJERG7_LESS1",null,null,null,{"$f":"_xlfn.XLOOKUP(F1104,'Raw Data'!$I$4:$I$5000,'Raw Data'!$D$4:$D$5000,\"*** Mnemonic not found ***\",0)","v":"*** Mnemonic not found ***"},"SUCMRUR4SFJERG7_LESS1__",null,"Input",null,null,302,"I","Input!I302",{"$f":"_xlfn.XLOOKUP(F1104,'Raw Data'!$I$4:$I$5000,'Raw Data'!$E$4:$E$5000,100,0)","v":100},{"$f":"IF(N1104=0,_xlfn.XLOOKUP(F1104,'Raw Data'!$I$4:$I$5000,'Raw Data'!$H$4:$H$5000,\"\",0),\"\")","v":""},{"$f":"IF(INDIRECT(M1104) = \"\",\"\",INDIRECT(M1104))","v":""},"n"]
["SUCMRUR4SFJERG8_LESS1",null,null,null,{"$f":"_xlfn.XLOOKUP(F1105,'Raw Data'!$I$4:$I$5000,'Raw Data'!$D$4:$D$5000,\"*** Mnemonic not found ***\",0)","v":"*** Mnemonic not found ***"},"SUCMRUR4SFJERG8_LESS1__",null,"Input",null,null,302,"J","Input!J302",{"$f":"_xlfn.XLOOKUP(F1105,'Raw Data'!$I$4:$I$5000,'Raw Data'!$E$4:$E$5000,100,0)","v":100},{"$f":"IF(N1105=0,_xlfn.XLOOKUP(F1105,'Raw Data'!$I$4:$I$5000,'Raw Data'!$H$4:$H$5000,\"\",0),\"\")","v":""},{"$f":"IF(INDIRECT(M1105) = \"\",\"\",INDIRECT(M1105))","v":""},"n"]
["SUCMRUR4SFJERG9_LESS1",null,null,null,{"$f":"_xlfn.XLOOKUP(F1106,'Raw Data'!$I$4:$I$5000,'Raw Data'!$D$4:$D$5000,\"*** Mnemonic not found ***\",0)","v":"*** Mnemonic not found ***"},"SUCMRUR4SFJERG9_LESS1__",null,"Input",null,null,302,"K","Input!K302",{"$f":"_xlfn.XLOOKUP(F1106,'Raw Data'!$I$4:$I$5000,'Raw Data'!$E$4:$E$5000,100,0)","v":100},{"$f":"IF(N1106=0,_xlfn.XLOOKUP(F1106,'Raw Data'!$I$4:$I$5000,'Raw Data'!$H$4:$H$5000,\"\",0),\"\")","v":""},{"$f":"IF(INDIRECT(M1106) = \"\",\"\",INDIRECT(M1106))","v":""},"n"]
["SUCMRUR4SFJERG10_LESS1",null,null,null,{"$f":"_xlfn.XLOOKUP(F1107,'Raw Data'!$I$4:$I$5000,'Raw Data'!$D$4:$D$5000,\"*** Mnemonic not found ***\",0)","v":"*** Mnemonic not found ***"},"SUCMRUR4SFJERG10_LESS1__",null,"Input",null,null,302,"L","Input!L302",{"$f":"_xlfn.XLOOKUP(F1107,'Raw Data'!$I$4:$I$5000,'Raw Data'!$E$4:$E$5000,100,0)","v":100},{"$f":"IF(N1107=0,_xlfn.XLOOKUP(F1107,'Raw Data'!$I$4:$I$5000,'Raw Data'!$H$4:$H$5000,\"\",0),\"\")","v":""},{"$f":"IF(INDIRECT(M1107) = \"\",\"\",INDIRECT(M1107))","v":""},"n"]
["SUCMRUR4SFJERGNA_LESS1",null,null,null,{"$f":"_xlfn.XLOOKUP(F1108,'Raw Data'!$I$4:$I$5000,'Raw Data'!$D$4:$D$5000,\"*** Mnemonic not found ***\",0)","v":"*** Mnemonic not found ***"},"SUCMRUR4SFJERGNA_LESS1__",null,"Input",null,null,302,"M","Input!M302",{"$f":"_xlfn.XLOOKUP(F1108,'Raw Data'!$I$4:$I$5000,'Raw Data'!$E$4:$E$5000,100,0)","v":100},{"$f":"IF(N1108=0,_xlfn.XLOOKUP(F1108,'Raw Data'!$I$4:$I$5000,'Raw Data'!$H$4:$H$5000,\"\",0),\"\")","v":""},{"$f":"IF(INDIRECT(M1108) = \"\",\"\",INDIRECT(M1108))","v":""},"n"]
["SUCMRUR4SFJERG1_1TO5",null,null,null,{"$f":"_xlfn.XLOOKUP(F1109,'Raw Data'!$I$4:$I$5000,'Raw Data'!$D$4:$D$5000,\"*** Mnemonic not found ***\",0)","v":"*** Mnemonic not found ***"},"SUCMRUR4SFJERG1_1TO5__",null,"Input",null,null,{"$f":"K1098+1","v":303},{"$f":"L1098","v":"C"},"Input!C303",{"$f":"_xlfn.XLOOKUP(F1109,'Raw Data'!$I$4:$I$5000,'Raw Data'!$E$4:$E$5000,100,0)","v":100},{"$f":"IF(N1109=0,_xlfn.XLOOKUP(F1109,'Raw Data'!$I$4:$I$5000,'Raw Data'!$H$4:$H$5000,\"\",0),\"\")","v":""},{"$f":"IF(INDIRECT(M1109) = \"\",\"\",INDIRECT(M1109))","v":""},"n"]
["SUCMRUR4SFJERG2_1TO5",null,null,null,{"$f":"_xlfn.XLOOKUP(F1110,'Raw Data'!$I$4:$I$5000,'Raw Data'!$D$4:$D$5000,\"*** Mnemonic not found ***\",0)","v":"*** Mnemonic not found ***"},"SUCMRUR4SFJERG2_1TO5__",null,"Input",null,null,{"$f":"K1099+1","v":303},{"$f":"L1099","v":"D"},"Input!D303",{"$f":"_xlfn.XLOOKUP(F1110,'Raw Data'!$I$4:$I$5000,'Raw Data'!$E$4:$E$5000,100,0)","v":100},{"$f":"IF(N1110=0,_xlfn.XLOOKUP(F1110,'Raw Data'!$I$4:$I$5000,'Raw Data'!$H$4:$H$5000,\"\",0),\"\")","v":""},{"$f":"IF(INDIRECT(M1110) = \"\",\"\",INDIRECT(M1110))","v":""},"n"]
["SUCMRUR4SFJERG3_1TO5",null,null,null,{"$f":"_xlfn.XLOOKUP(F1111,'Raw Data'!$I$4:$I$5000,'Raw Data'!$D$4:$D$5000,\"*** Mnemonic not found ***\",0)","v":"*** Mnemonic not found ***"},"SUCMRUR4SFJERG3_1TO5__",null,"Input",null,null,303,"E","Input!E303",{"$f":"_xlfn.XLOOKUP(F1111,'Raw Data'!$I$4:$I$5000,'Raw Data'!$E$4:$E$5000,100,0)","v":100},{"$f":"IF(N1111=0,_xlfn.XLOOKUP(F1111,'Raw Data'!$I$4:$I$5000,'Raw Data'!$H$4:$H$5000,\"\",0),\"\")","v":""},{"$f":"IF(INDIRECT(M1111) = \"\",\"\",INDIRECT(M1111))","v":""},"n"]
["SUCMRUR4SFJERG4_1TO5",null,null,null,{"$f":"_xlfn.XLOOKUP(F1112,'Raw Data'!$I$4:$I$5000,'Raw Data'!$D$4:$D$5000,\"*** Mnemonic not found ***\",0)","v":"*** Mnemonic not found ***"},"SUCMRUR4SFJERG4_1TO5__",null,"Input",null,null,303,"F","Input!F303",{"$f":"_xlfn.XLOOKUP(F1112,'Raw Data'!$I$4:$I$5000,'Raw Data'!$E$4:$E$5000,100,0)","v":100},{"$f":"IF(N1112=0,_xlfn.XLOOKUP(F1112,'Raw Data'!$I$4:$I$5000,'Raw Data'!$H$4:$H$5000,\"\",0),\"\")","v":""},{"$f":"IF(INDIRECT(M1112) = \"\",\"\",INDIRECT(M1112))","v":""},"n"]
["SUCMRUR4SFJERG5_1TO5",null,null,null,{"$f":"_xlfn.XLOOKUP(F1113,'Raw Data'!$I$4:$I$5000,'Raw Data'!$D$4:$D$5000,\"*** Mnemonic not found ***\",0)","v":"*** Mnemonic not found ***"},"SUCMRUR4SFJERG5_1TO5__",null,"Input",null,null,303,"G","Input!G303",{"$f":"_xlfn.XLOOKUP(F1113,'Raw Data'!$I$4:$I$5000,'Raw Data'!$E$4:$E$5000,100,0)","v":100},{"$f":"IF(N1113=0,_xlfn.XLOOKUP(F1113,'Raw Data'!$I$4:$I$5000,'Raw Data'!$H$4:$H$5000,\"\",0),\"\")","v":""},{"$f":"IF(INDIRECT(M1113) = \"\",\"\",INDIRECT(M1113))","v":""},"n"]
["SUCMRUR4SFJERG6_1TO5",null,null,null,{"$f":"_xlfn.XLOOKUP(F1114,'Raw Data'!$I$4:$I$5000,'Raw Data'!$D$4:$D$5000,\"*** Mnemonic not found ***\",0)","v":"*** Mnemonic not found ***"},"SUCMRUR4SFJERG6_1TO5__",null,"Input",null,null,303,"H","Input!H303",{"$f":"_xlfn.XLOOKUP(F1114,'Raw Data'!$I$4:$I$5000,'Raw Data'!$E$4:$E$5000,100,0)","v":100},{"$f":"IF(N1114=0,_xlfn.XLOOKUP(F1114,'Raw Data'!$I$4:$I$5000,'Raw Data'!$H$4:$H$5000,\"\",0),\"\")","v":""},{"$f":"IF(INDIRECT(M1114) = \"\",\"\",INDIRECT(M1114))","v":""},"n"]
["SUCMRUR4SFJERG7_1TO5",null,null,null,{"$f":"_xlfn.XLOOKUP(F1115,'Raw Data'!$I$4:$I$5000,'Raw Data'!$D$4:$D$5000,\"*** Mnemonic not found ***\",0)","v":"*** Mnemonic not found ***"},"SUCMRUR4SFJERG7_1TO5__",null,"Input",null,null,303,"I","Input!I303",{"$f":"_xlfn.XLOOKUP(F1115,'Raw Data'!$I$4:$I$5000,'Raw Data'!$E$4:$E$5000,100,0)","v":100},{"$f":"IF(N1115=0,_xlfn.XLOOKUP(F1115,'Raw Data'!$I$4:$I$5000,'Raw Data'!$H$4:$H$5000,\"\",0),\"\")","v":""},{"$f":"IF(INDIRECT(M1115) = \"\",\"\",INDIRECT(M1115))","v":""},"n"]
["SUCMRUR4SFJERG8_1TO5",null,null,null,{"$f":"_xlfn.XLOOKUP(F1116,'Raw Data'!$I$4:$I$5000,'Raw Data'!$D$4:$D$5000,\"*** Mnemonic not found ***\",0)","v":"*** Mnemonic not found ***"},"SUCMRUR4SFJERG8_1TO5__",null,"Input",null,null,303,"J","Input!J303",{"$f":"_xlfn.XLOOKUP(F1116,'Raw Data'!$I$4:$I$5000,'Raw Data'!$E$4:$E$5000,100,0)","v":100},{"$f":"IF(N1116=0,_xlfn.XLOOKUP(F1116,'Raw Data'!$I$4:$I$5000,'Raw Data'!$H$4:$H$5000,\"\",0),\"\")","v":""},{"$f":"IF(INDIRECT(M1116) = \"\",\"\",INDIRECT(M1116))","v":""},"n"]
["SUCMRUR4SFJERG9_1TO5",null,null,null,{"$f":"_xlfn.XLOOKUP(F1117,'Raw Data'!$I$4:$I$5000,'Raw Data'!$D$4:$D$5000,\"*** Mnemonic not found ***\",0)","v":"*** Mnemonic not found ***"},"SUCMRUR4SFJERG9_1TO5__",null,"Input",null,null,303,"K","Input!K303",{"$f":"_xlfn.XLOOKUP(F1117,'Raw Data'!$I$4:$I$5000,'Raw Data'!$E$4:$E$5000,100,0)","v":100},{"$f":"IF(N1117=0,_xlfn.XLOOKUP(F1117,'Raw Data'!$I$4:$I$5000,'Raw Data'!$H$4:$H$5000,\"\",0),\"\")","v":""},{"$f":"IF(INDIRECT(M1117) = \"\",\"\",INDIRECT(M1117))","v":""},"n"]
["SUCMRUR4SFJERG10_1TO5",null,null,null,{"$f":"_xlfn.XLOOKUP(F1118,'Raw Data'!$I$4:$I$5000,'Raw Data'!$D$4:$D$5000,\"*** Mnemonic not found ***\",0)","v":"*** Mnemonic not found ***"},"SUCMRUR4SFJERG10_1TO5__",null,"Input",null,null,303,"L","Input!L303",{"$f":"_xlfn.XLOOKUP(F1118,'Raw Data'!$I$4:$I$5000,'Raw Data'!$E$4:$E$5000,100,0)","v":100},{"$f":"IF(N1118=0,_xlfn.XLOOKUP(F1118,'Raw Data'!$I$4:$I$5000,'Raw Data'!$H$4:$H$5000,\"\",0),\"\")","v":""},{"$f":"IF(INDIRECT(M1118) = \"\",\"\",INDIRECT(M1118))","v":""},"n"]
["SUCMRUR4SFJERGNA_1TO5",null,null,null,{"$f":"_xlfn.XLOOKUP(F1119,'Raw Data'!$I$4:$I$5000,'Raw Data'!$D$4:$D$5000,\"*** Mnemonic not found ***\",0)","v":"*** Mnemonic not found ***"},"SUCMRUR4SFJERGNA_1TO5__",null,"Input",null,null,303,"M","Input!M303",{"$f":"_xlfn.XLOOKUP(F1119,'Raw Data'!$I$4:$I$5000,'Raw Data'!$E$4:$E$5000,100,0)","v":100},{"$f":"IF(N1119=0,_xlfn.XLOOKUP(F1119,'Raw Data'!$I$4:$I$5000,'Raw Data'!$H$4:$H$5000,\"\",0),\"\")","v":""},{"$f":"IF(INDIRECT(M1119) = \"\",\"\",INDIRECT(M1119))","v":""},"n"]
["SUCMRUR4SFJERG1_5TO10",null,null,null,{"$f":"_xlfn.XLOOKUP(F1120,'Raw Data'!$I$4:$I$5000,'Raw Data'!$D$4:$D$5000,\"*** Mnemonic not found ***\",0)","v":"*** Mnemonic not found ***"},"SUCMRUR4SFJERG1_5TO10__",null,"Input",null,null,304,"C","Input!C304",{"$f":"_xlfn.XLOOKUP(F1120,'Raw Data'!$I$4:$I$5000,'Raw Data'!$E$4:$E$5000,100,0)","v":100},{"$f":"IF(N1120=0,_xlfn.XLOOKUP(F1120,'Raw Data'!$I$4:$I$5000,'Raw Data'!$H$4:$H$5000,\"\",0),\"\")","v":""},{"$f":"IF(INDIRECT(M1120) = \"\",\"\",INDIRECT(M1120))","v":""},"n"]
["SUCMRUR4SFJERG2_5TO10",null,null,null,{"$f":"_xlfn.XLOOKUP(F1121,'Raw Data'!$I$4:$I$5000,'Raw Data'!$D$4:$D$5000,\"*** Mnemonic not found ***\",0)","v":"*** Mnemonic not found ***"},"SUCMRUR4SFJERG2_5TO10__",null,"Input",null,null,304,"D","Input!D304",{"$f":"_xlfn.XLOOKUP(F1121,'Raw Data'!$I$4:$I$5000,'Raw Data'!$E$4:$E$5000,100,0)","v":100},{"$f":"IF(N1121=0,_xlfn.XLOOKUP(F1121,'Raw Data'!$I$4:$I$5000,'Raw Data'!$H$4:$H$5000,\"\",0),\"\")","v":""},{"$f":"IF(INDIRECT(M1121) = \"\",\"\",INDIRECT(M1121))","v":""},"n"]
["SUCMRUR4SFJERG3_5TO10",null,null,null,{"$f":"_xlfn.XLOOKUP(F1122,'Raw Data'!$I$4:$I$5000,'Raw Data'!$D$4:$D$5000,\"*** Mnemonic not found ***\",0)","v":"*** Mnemonic not found ***"},"SUCMRUR4SFJERG3_5TO10__",null,"Input",null,null,304,"E","Input!E304",{"$f":"_xlfn.XLOOKUP(F1122,'Raw Data'!$I$4:$I$5000,'Raw Data'!$E$4:$E$5000,100,0)","v":100},{"$f":"IF(N1122=0,_xlfn.XLOOKUP(F1122,'Raw Data'!$I$4:$I$5000,'Raw Data'!$H$4:$H$5000,\"\",0),\"\")","v":""},{"$f":"IF(INDIRECT(M1122) = \"\",\"\",INDIRECT(M1122))","v":""},"n"]
["SUCMRUR4SFJERG4_5TO10",null,null,null,{"$f":"_xlfn.XLOOKUP(F1123,'Raw Data'!$I$4:$I$5000,'Raw Data'!$D$4:$D$5000,\"*** Mnemonic not found ***\",0)","v":"*** Mnemonic not found ***"},"SUCMRUR4SFJERG4_5TO10__",null,"Input",null,null,304,"F","Input!F304",{"$f":"_xlfn.XLOOKUP(F1123,'Raw Data'!$I$4:$I$5000,'Raw Data'!$E$4:$E$5000,100,0)","v":100},{"$f":"IF(N1123=0,_xlfn.XLOOKUP(F1123,'Raw Data'!$I$4:$I$5000,'Raw Data'!$H$4:$H$5000,\"\",0),\"\")","v":""},{"$f":"IF(INDIRECT(M1123) = \"\",\"\",INDIRECT(M1123))","v":""},"n"]
["SUCMRUR4SFJERG5_5TO10",null,null,null,{"$f":"_xlfn.XLOOKUP(F1124,'Raw Data'!$I$4:$I$5000,'Raw Data'!$D$4:$D$5000,\"*** Mnemonic not found ***\",0)","v":"*** Mnemonic not found ***"},"SUCMRUR4SFJERG5_5TO10__",null,"Input",null,null,304,"G","Input!G304",{"$f":"_xlfn.XLOOKUP(F1124,'Raw Data'!$I$4:$I$5000,'Raw Data'!$E$4:$E$5000,100,0)","v":100},{"$f":"IF(N1124=0,_xlfn.XLOOKUP(F1124,'Raw Data'!$I$4:$I$5000,'Raw Data'!$H$4:$H$5000,\"\",0),\"\")","v":""},{"$f":"IF(INDIRECT(M1124) = \"\",\"\",INDIRECT(M1124))","v":""},"n"]
["SUCMRUR4SFJERG6_5TO10",null,null,null,{"$f":"_xlfn.XLOOKUP(F1125,'Raw Data'!$I$4:$I$5000,'Raw Data'!$D$4:$D$5000,\"*** Mnemonic not found ***\",0)","v":"*** Mnemonic not found ***"},"SUCMRUR4SFJERG6_5TO10__",null,"Input",null,null,304,"H","Input!H304",{"$f":"_xlfn.XLOOKUP(F1125,'Raw Data'!$I$4:$I$5000,'Raw Data'!$E$4:$E$5000,100,0)","v":100},{"$f":"IF(N1125=0,_xlfn.XLOOKUP(F1125,'Raw Data'!$I$4:$I$5000,'Raw Data'!$H$4:$H$5000,\"\",0),\"\")","v":""},{"$f":"IF(INDIRECT(M1125) = \"\",\"\",INDIRECT(M1125))","v":""},"n"]
["SUCMRUR4SFJERG7_5TO10",null,null,null,{"$f":"_xlfn.XLOOKUP(F1126,'Raw Data'!$I$4:$I$5000,'Raw Data'!$D$4:$D$5000,\"*** Mnemonic not found ***\",0)","v":"*** Mnemonic not found ***"},"SUCMRUR4SFJERG7_5TO10__",null,"Input",null,null,304,"I","Input!I304",{"$f":"_xlfn.XLOOKUP(F1126,'Raw Data'!$I$4:$I$5000,'Raw Data'!$E$4:$E$5000,100,0)","v":100},{"$f":"IF(N1126=0,_xlfn.XLOOKUP(F1126,'Raw Data'!$I$4:$I$5000,'Raw Data'!$H$4:$H$5000,\"\",0),\"\")","v":""},{"$f":"IF(INDIRECT(M1126) = \"\",\"\",INDIRECT(M1126))","v":""},"n"]
["SUCMRUR4SFJERG8_5TO10",null,null,null,{"$f":"_xlfn.XLOOKUP(F1127,'Raw Data'!$I$4:$I$5000,'Raw Data'!$D$4:$D$5000,\"*** Mnemonic not found ***\",0)","v":"*** Mnemonic not found ***"},"SUCMRUR4SFJERG8_5TO10__",null,"Input",null,null,304,"J","Input!J304",{"$f":"_xlfn.XLOOKUP(F1127,'Raw Data'!$I$4:$I$5000,'Raw Data'!$E$4:$E$5000,100,0)","v":100},{"$f":"IF(N1127=0,_xlfn.XLOOKUP(F1127,'Raw Data'!$I$4:$I$5000,'Raw Data'!$H$4:$H$5000,\"\",0),\"\")","v":""},{"$f":"IF(INDIRECT(M1127) = \"\",\"\",INDIRECT(M1127))","v":""},"n"]
["SUCMRUR4SFJERG9_5TO10",null,null,null,{"$f":"_xlfn.XLOOKUP(F1128,'Raw Data'!$I$4:$I$5000,'Raw Data'!$D$4:$D$5000,\"*** Mnemonic not found ***\",0)","v":"*** Mnemonic not found ***"},"SUCMRUR4SFJERG9_5TO10__",null,"Input",null,null,304,"K","Input!K304",{"$f":"_xlfn.XLOOKUP(F1128,'Raw Data'!$I$4:$I$5000,'Raw Data'!$E$4:$E$5000,100,0)","v":100},{"$f":"IF(N1128=0,_xlfn.XLOOKUP(F1128,'Raw Data'!$I$4:$I$5000,'Raw Data'!$H$4:$H$5000,\"\",0),\"\")","v":""},{"$f":"IF(INDIRECT(M1128) = \"\",\"\",INDIRECT(M1128))","v":""},"n"]
["SUCMRUR4SFJERG10_5TO10",null,null,null,{"$f":"_xlfn.XLOOKUP(F1129,'Raw Data'!$I$4:$I$5000,'Raw Data'!$D$4:$D$5000,\"*** Mnemonic not found ***\",0)","v":"*** Mnemonic not found ***"},"SUCMRUR4SFJERG10_5TO10__",null,"Input",null,null,304,"L","Input!L304",{"$f":"_xlfn.XLOOKUP(F1129,'Raw Data'!$I$4:$I$5000,'Raw Data'!$E$4:$E$5000,100,0)","v":100},{"$f":"IF(N1129=0,_xlfn.XLOOKUP(F1129,'Raw Data'!$I$4:$I$5000,'Raw Data'!$H$4:$H$5000,\"\",0),\"\")","v":""},{"$f":"IF(INDIRECT(M1129) = \"\",\"\",INDIRECT(M1129))","v":""},"n"]
["SUCMRUR4SFJERGNA_5TO10",null,null,null,{"$f":"_xlfn.XLOOKUP(F1130,'Raw Data'!$I$4:$I$5000,'Raw Data'!$D$4:$D$5000,\"*** Mnemonic not found ***\",0)","v":"*** Mnemonic not found ***"},"SUCMRUR4SFJERGNA_5TO10__",null,"Input",null,null,304,"M","Input!M304",{"$f":"_xlfn.XLOOKUP(F1130,'Raw Data'!$I$4:$I$5000,'Raw Data'!$E$4:$E$5000,100,0)","v":100},{"$f":"IF(N1130=0,_xlfn.XLOOKUP(F1130,'Raw Data'!$I$4:$I$5000,'Raw Data'!$H$4:$H$5000,\"\",0),\"\")","v":""},{"$f":"IF(INDIRECT(M1130) = \"\",\"\",INDIRECT(M1130))","v":""},"n"]
["SUCMRUR4SFJERG1_10TO20",null,null,null,{"$f":"_xlfn.XLOOKUP(F1131,'Raw Data'!$I$4:$I$5000,'Raw Data'!$D$4:$D$5000,\"*** Mnemonic not found ***\",0)","v":"*** Mnemonic not found ***"},"SUCMRUR4SFJERG1_10TO20__",null,"Input",null,null,305,"C","Input!C305",{"$f":"_xlfn.XLOOKUP(F1131,'Raw Data'!$I$4:$I$5000,'Raw Data'!$E$4:$E$5000,100,0)","v":100},{"$f":"IF(N1131=0,_xlfn.XLOOKUP(F1131,'Raw Data'!$I$4:$I$5000,'Raw Data'!$H$4:$H$5000,\"\",0),\"\")","v":""},{"$f":"IF(INDIRECT(M1131) = \"\",\"\",INDIRECT(M1131))","v":""},"n"]
["SUCMRUR4SFJERG2_10TO20",null,null,null,{"$f":"_xlfn.XLOOKUP(F1132,'Raw Data'!$I$4:$I$5000,'Raw Data'!$D$4:$D$5000,\"*** Mnemonic not found ***\",0)","v":"*** Mnemonic not found ***"},"SUCMRUR4SFJERG2_10TO20__",null,"Input",null,null,305,"D","Input!D305",{"$f":"_xlfn.XLOOKUP(F1132,'Raw Data'!$I$4:$I$5000,'Raw Data'!$E$4:$E$5000,100,0)","v":100},{"$f":"IF(N1132=0,_xlfn.XLOOKUP(F1132,'Raw Data'!$I$4:$I$5000,'Raw Data'!$H$4:$H$5000,\"\",0),\"\")","v":""},{"$f":"IF(INDIRECT(M1132) = \"\",\"\",INDIRECT(M1132))","v":""},"n"]
["SUCMRUR4SFJERG3_10TO20",null,null,null,{"$f":"_xlfn.XLOOKUP(F1133,'Raw Data'!$I$4:$I$5000,'Raw Data'!$D$4:$D$5000,\"*** Mnemonic not found ***\",0)","v":"*** Mnemonic not found ***"},"SUCMRUR4SFJERG3_10TO20__",null,"Input",null,null,305,"E","Input!E305",{"$f":"_xlfn.XLOOKUP(F1133,'Raw Data'!$I$4:$I$5000,'Raw Data'!$E$4:$E$5000,100,0)","v":100},{"$f":"IF(N1133=0,_xlfn.XLOOKUP(F1133,'Raw Data'!$I$4:$I$5000,'Raw Data'!$H$4:$H$5000,\"\",0),\"\")","v":""},{"$f":"IF(INDIRECT(M1133) = \"\",\"\",INDIRECT(M1133))","v":""},"n"]
["SUCMRUR4SFJERG4_10TO20",null,null,null,{"$f":"_xlfn.XLOOKUP(F1134,'Raw Data'!$I$4:$I$5000,'Raw Data'!$D$4:$D$5000,\"*** Mnemonic not found ***\",0)","v":"*** Mnemonic not found ***"},"SUCMRUR4SFJERG4_10TO20__",null,"Input",null,null,305,"F","Input!F305",{"$f":"_xlfn.XLOOKUP(F1134,'Raw Data'!$I$4:$I$5000,'Raw Data'!$E$4:$E$5000,100,0)","v":100},{"$f":"IF(N1134=0,_xlfn.XLOOKUP(F1134,'Raw Data'!$I$4:$I$5000,'Raw Data'!$H$4:$H$5000,\"\",0),\"\")","v":""},{"$f":"IF(INDIRECT(M1134) = \"\",\"\",INDIRECT(M1134))","v":""},"n"]
["SUCMRUR4SFJERG5_10TO20",null,null,null,{"$f":"_xlfn.XLOOKUP(F1135,'Raw Data'!$I$4:$I$5000,'Raw Data'!$D$4:$D$5000,\"*** Mnemonic not found ***\",0)","v":"*** Mnemonic not found ***"},"SUCMRUR4SFJERG5_10TO20__",null,"Input",null,null,305,"G","Input!G305",{"$f":"_xlfn.XLOOKUP(F1135,'Raw Data'!$I$4:$I$5000,'Raw Data'!$E$4:$E$5000,100,0)","v":100},{"$f":"IF(N1135=0,_xlfn.XLOOKUP(F1135,'Raw Data'!$I$4:$I$5000,'Raw Data'!$H$4:$H$5000,\"\",0),\"\")","v":""},{"$f":"IF(INDIRECT(M1135) = \"\",\"\",INDIRECT(M1135))","v":""},"n"]
["SUCMRUR4SFJERG6_10TO20",null,null,null,{"$f":"_xlfn.XLOOKUP(F1136,'Raw Data'!$I$4:$I$5000,'Raw Data'!$D$4:$D$5000,\"*** Mnemonic not found ***\",0)","v":"*** Mnemonic not found ***"},"SUCMRUR4SFJERG6_10TO20__",null,"Input",null,null,305,"H","Input!H305",{"$f":"_xlfn.XLOOKUP(F1136,'Raw Data'!$I$4:$I$5000,'Raw Data'!$E$4:$E$5000,100,0)","v":100},{"$f":"IF(N1136=0,_xlfn.XLOOKUP(F1136,'Raw Data'!$I$4:$I$5000,'Raw Data'!$H$4:$H$5000,\"\",0),\"\")","v":""},{"$f":"IF(INDIRECT(M1136) = \"\",\"\",INDIRECT(M1136))","v":""},"n"]
["SUCMRUR4SFJERG7_10TO20",null,null,null,{"$f":"_xlfn.XLOOKUP(F1137,'Raw Data'!$I$4:$I$5000,'Raw Data'!$D$4:$D$5000,\"*** Mnemonic not found ***\",0)","v":"*** Mnemonic not found ***"},"SUCMRUR4SFJERG7_10TO20__",null,"Input",null,null,305,"I","Input!I305",{"$f":"_xlfn.XLOOKUP(F1137,'Raw Data'!$I$4:$I$5000,'Raw Data'!$E$4:$E$5000,100,0)","v":100},{"$f":"IF(N1137=0,_xlfn.XLOOKUP(F1137,'Raw Data'!$I$4:$I$5000,'Raw Data'!$H$4:$H$5000,\"\",0),\"\")","v":""},{"$f":"IF(INDIRECT(M1137) = \"\",\"\",INDIRECT(M1137))","v":""},"n"]
["SUCMRUR4SFJERG8_10TO20",null,null,null,{"$f":"_xlfn.XLOOKUP(F1138,'Raw Data'!$I$4:$I$5000,'Raw Data'!$D$4:$D$5000,\"*** Mnemonic not found ***\",0)","v":"*** Mnemonic not found ***"},"SUCMRUR4SFJERG8_10TO20__",null,"Input",null,null,305,"J","Input!J305",{"$f":"_xlfn.XLOOKUP(F1138,'Raw Data'!$I$4:$I$5000,'Raw Data'!$E$4:$E$5000,100,0)","v":100},{"$f":"IF(N1138=0,_xlfn.XLOOKUP(F1138,'Raw Data'!$I$4:$I$5000,'Raw Data'!$H$4:$H$5000,\"\",0),\"\")","v":""},{"$f":"IF(INDIRECT(M1138) = \"\",\"\",INDIRECT(M1138))","v":""},"n"]
["SUCMRUR4SFJERG9_10TO20",null,null,null,{"$f":"_xlfn.XLOOKUP(F1139,'Raw Data'!$I$4:$I$5000,'Raw Data'!$D$4:$D$5000,\"*** Mnemonic not found ***\",0)","v":"*** Mnemonic not found ***"},"SUCMRUR4SFJERG9_10TO20__",null,"Input",null,null,305,"K","Input!K305",{"$f":"_xlfn.XLOOKUP(F1139,'Raw Data'!$I$4:$I$5000,'Raw Data'!$E$4:$E$5000,100,0)","v":100},{"$f":"IF(N1139=0,_xlfn.XLOOKUP(F1139,'Raw Data'!$I$4:$I$5000,'Raw Data'!$H$4:$H$5000,\"\",0),\"\")","v":""},{"$f":"IF(INDIRECT(M1139) = \"\",\"\",INDIRECT(M1139))","v":""},"n"]
["SUCMRUR4SFJERG10_10TO20",null,null,null,{"$f":"_xlfn.XLOOKUP(F1140,'Raw Data'!$I$4:$I$5000,'Raw Data'!$D$4:$D$5000,\"*** Mnemonic not found ***\",0)","v":"*** Mnemonic not found ***"},"SUCMRUR4SFJERG10_10TO20__",null,"Input",null,null,305,"L","Input!L305",{"$f":"_xlfn.XLOOKUP(F1140,'Raw Data'!$I$4:$I$5000,'Raw Data'!$E$4:$E$5000,100,0)","v":100},{"$f":"IF(N1140=0,_xlfn.XLOOKUP(F1140,'Raw Data'!$I$4:$I$5000,'Raw Data'!$H$4:$H$5000,\"\",0),\"\")","v":""},{"$f":"IF(INDIRECT(M1140) = \"\",\"\",INDIRECT(M1140))","v":""},"n"]
["SUCMRUR4SFJERGNA_10TO20",null,null,null,{"$f":"_xlfn.XLOOKUP(F1141,'Raw Data'!$I$4:$I$5000,'Raw Data'!$D$4:$D$5000,\"*** Mnemonic not found ***\",0)","v":"*** Mnemonic not found ***"},"SUCMRUR4SFJERGNA_10TO20__",null,"Input",null,null,305,"M","Input!M305",{"$f":"_xlfn.XLOOKUP(F1141,'Raw Data'!$I$4:$I$5000,'Raw Data'!$E$4:$E$5000,100,0)","v":100},{"$f":"IF(N1141=0,_xlfn.XLOOKUP(F1141,'Raw Data'!$I$4:$I$5000,'Raw Data'!$H$4:$H$5000,\"\",0),\"\")","v":""},{"$f":"IF(INDIRECT(M1141) = \"\",\"\",INDIRECT(M1141))","v":""},"n"]
["SUCMRUR4SFJERG1_GRTR20",null,null,null,{"$f":"_xlfn.XLOOKUP(F1142,'Raw Data'!$I$4:$I$5000,'Raw Data'!$D$4:$D$5000,\"*** Mnemonic not found ***\",0)","v":"*** Mnemonic not found ***"},"SUCMRUR4SFJERG1_GRTR20__",null,"Input",null,null,306,"C","Input!C306",{"$f":"_xlfn.XLOOKUP(F1142,'Raw Data'!$I$4:$I$5000,'Raw Data'!$E$4:$E$5000,100,0)","v":100},{"$f":"IF(N1142=0,_xlfn.XLOOKUP(F1142,'Raw Data'!$I$4:$I$5000,'Raw Data'!$H$4:$H$5000,\"\",0),\"\")","v":""},{"$f":"IF(INDIRECT(M1142) = \"\",\"\",INDIRECT(M1142))","v":""},"n"]
["SUCMRUR4SFJERG2_GRTR20",null,null,null,{"$f":"_xlfn.XLOOKUP(F1143,'Raw Data'!$I$4:$I$5000,'Raw Data'!$D$4:$D$5000,\"*** Mnemonic not found ***\",0)","v":"*** Mnemonic not found ***"},"SUCMRUR4SFJERG2_GRTR20__",null,"Input",null,null,306,"D","Input!D306",{"$f":"_xlfn.XLOOKUP(F1143,'Raw Data'!$I$4:$I$5000,'Raw Data'!$E$4:$E$5000,100,0)","v":100},{"$f":"IF(N1143=0,_xlfn.XLOOKUP(F1143,'Raw Data'!$I$4:$I$5000,'Raw Data'!$H$4:$H$5000,\"\",0),\"\")","v":""},{"$f":"IF(INDIRECT(M1143) = \"\",\"\",INDIRECT(M1143))","v":""},"n"]
["SUCMRUR4SFJERG3_GRTR20",null,null,null,{"$f":"_xlfn.XLOOKUP(F1144,'Raw Data'!$I$4:$I$5000,'Raw Data'!$D$4:$D$5000,\"*** Mnemonic not found ***\",0)","v":"*** Mnemonic not found ***"},"SUCMRUR4SFJERG3_GRTR20__",null,"Input",null,null,306,"E","Input!E306",{"$f":"_xlfn.XLOOKUP(F1144,'Raw Data'!$I$4:$I$5000,'Raw Data'!$E$4:$E$5000,100,0)","v":100},{"$f":"IF(N1144=0,_xlfn.XLOOKUP(F1144,'Raw Data'!$I$4:$I$5000,'Raw Data'!$H$4:$H$5000,\"\",0),\"\")","v":""},{"$f":"IF(INDIRECT(M1144) = \"\",\"\",INDIRECT(M1144))","v":""},"n"]
["SUCMRUR4SFJERG4_GRTR20",null,null,null,{"$f":"_xlfn.XLOOKUP(F1145,'Raw Data'!$I$4:$I$5000,'Raw Data'!$D$4:$D$5000,\"*** Mnemonic not found ***\",0)","v":"*** Mnemonic not found ***"},"SUCMRUR4SFJERG4_GRTR20__",null,"Input",null,null,306,"F","Input!F306",{"$f":"_xlfn.XLOOKUP(F1145,'Raw Data'!$I$4:$I$5000,'Raw Data'!$E$4:$E$5000,100,0)","v":100},{"$f":"IF(N1145=0,_xlfn.XLOOKUP(F1145,'Raw Data'!$I$4:$I$5000,'Raw Data'!$H$4:$H$5000,\"\",0),\"\")","v":""},{"$f":"IF(INDIRECT(M1145) = \"\",\"\",INDIRECT(M1145))","v":""},"n"]
["SUCMRUR4SFJERG5_GRTR20",null,null,null,{"$f":"_xlfn.XLOOKUP(F1146,'Raw Data'!$I$4:$I$5000,'Raw Data'!$D$4:$D$5000,\"*** Mnemonic not found ***\",0)","v":"*** Mnemonic not found ***"},"SUCMRUR4SFJERG5_GRTR20__",null,"Input",null,null,306,"G","Input!G306",{"$f":"_xlfn.XLOOKUP(F1146,'Raw Data'!$I$4:$I$5000,'Raw Data'!$E$4:$E$5000,100,0)","v":100},{"$f":"IF(N1146=0,_xlfn.XLOOKUP(F1146,'Raw Data'!$I$4:$I$5000,'Raw Data'!$H$4:$H$5000,\"\",0),\"\")","v":""},{"$f":"IF(INDIRECT(M1146) = \"\",\"\",INDIRECT(M1146))","v":""},"n"]
["SUCMRUR4SFJERG6_GRTR20",null,null,null,{"$f":"_xlfn.XLOOKUP(F1147,'Raw Data'!$I$4:$I$5000,'Raw Data'!$D$4:$D$5000,\"*** Mnemonic not found ***\",0)","v":"*** Mnemonic not found ***"},"SUCMRUR4SFJERG6_GRTR20__",null,"Input",null,null,306,"H","Input!H306",{"$f":"_xlfn.XLOOKUP(F1147,'Raw Data'!$I$4:$I$5000,'Raw Data'!$E$4:$E$5000,100,0)","v":100},{"$f":"IF(N1147=0,_xlfn.XLOOKUP(F1147,'Raw Data'!$I$4:$I$5000,'Raw Data'!$H$4:$H$5000,\"\",0),\"\")","v":""},{"$f":"IF(INDIRECT(M1147) = \"\",\"\",INDIRECT(M1147))","v":""},"n"]
["SUCMRUR4SFJERG7_GRTR20",null,null,null,{"$f":"_xlfn.XLOOKUP(F1148,'Raw Data'!$I$4:$I$5000,'Raw Data'!$D$4:$D$5000,\"*** Mnemonic not found ***\",0)","v":"*** Mnemonic not found ***"},"SUCMRUR4SFJERG7_GRTR20__",null,"Input",null,null,306,"I","Input!I306",{"$f":"_xlfn.XLOOKUP(F1148,'Raw Data'!$I$4:$I$5000,'Raw Data'!$E$4:$E$5000,100,0)","v":100},{"$f":"IF(N1148=0,_xlfn.XLOOKUP(F1148,'Raw Data'!$I$4:$I$5000,'Raw Data'!$H$4:$H$5000,\"\",0),\"\")","v":""},{"$f":"IF(INDIRECT(M1148) = \"\",\"\",INDIRECT(M1148))","v":""},"n"]
["SUCMRUR4SFJERG8_GRTR20",null,null,null,{"$f":"_xlfn.XLOOKUP(F1149,'Raw Data'!$I$4:$I$5000,'Raw Data'!$D$4:$D$5000,\"*** Mnemonic not found ***\",0)","v":"*** Mnemonic not found ***"},"SUCMRUR4SFJERG8_GRTR20__",null,"Input",null,null,306,"J","Input!J306",{"$f":"_xlfn.XLOOKUP(F1149,'Raw Data'!$I$4:$I$5000,'Raw Data'!$E$4:$E$5000,100,0)","v":100},{"$f":"IF(N1149=0,_xlfn.XLOOKUP(F1149,'Raw Data'!$I$4:$I$5000,'Raw Data'!$H$4:$H$5000,\"\",0),\"\")","v":""},{"$f":"IF(INDIRECT(M1149) = \"\",\"\",INDIRECT(M1149))","v":""},"n"]
["SUCMRUR4SFJERG9_GRTR20",null,null,null,{"$f":"_xlfn.XLOOKUP(F1150,'Raw Data'!$I$4:$I$5000,'Raw Data'!$D$4:$D$5000,\"*** Mnemonic not found ***\",0)","v":"*** Mnemonic not found ***"},"SUCMRUR4SFJERG9_GRTR20__",null,"Input",null,null,306,"K","Input!K306",{"$f":"_xlfn.XLOOKUP(F1150,'Raw Data'!$I$4:$I$5000,'Raw Data'!$E$4:$E$5000,100,0)","v":100},{"$f":"IF(N1150=0,_xlfn.XLOOKUP(F1150,'Raw Data'!$I$4:$I$5000,'Raw Data'!$H$4:$H$5000,\"\",0),\"\")","v":""},{"$f":"IF(INDIRECT(M1150) = \"\",\"\",INDIRECT(M1150))","v":""},"n"]
["SUCMRUR4SFJERG10_GRTR20",null,null,null,{"$f":"_xlfn.XLOOKUP(F1151,'Raw Data'!$I$4:$I$5000,'Raw Data'!$D$4:$D$5000,\"*** Mnemonic not found ***\",0)","v":"*** Mnemonic not found ***"},"SUCMRUR4SFJERG10_GRTR20__",null,"Input",null,null,306,"L","Input!L306",{"$f":"_xlfn.XLOOKUP(F1151,'Raw Data'!$I$4:$I$5000,'Raw Data'!$E$4:$E$5000,100,0)","v":100},{"$f":"IF(N1151=0,_xlfn.XLOOKUP(F1151,'Raw Data'!$I$4:$I$5000,'Raw Data'!$H$4:$H$5000,\"\",0),\"\")","v":""},{"$f":"IF(INDIRECT(M1151) = \"\",\"\",INDIRECT(M1151))","v":""},"n"]
["SUCMRUR4SFJERGNA_GRTR20",null,null,null,{"$f":"_xlfn.XLOOKUP(F1152,'Raw Data'!$I$4:$I$5000,'Raw Data'!$D$4:$D$5000,\"*** Mnemonic not found ***\",0)","v":"*** Mnemonic not found ***"},"SUCMRUR4SFJERGNA_GRTR20__",null,"Input",null,null,306,"M","Input!M306",{"$f":"_xlfn.XLOOKUP(F1152,'Raw Data'!$I$4:$I$5000,'Raw Data'!$E$4:$E$5000,100,0)","v":100},{"$f":"IF(N1152=0,_xlfn.XLOOKUP(F1152,'Raw Data'!$I$4:$I$5000,'Raw Data'!$H$4:$H$5000,\"\",0),\"\")","v":""},{"$f":"IF(INDIRECT(M1152) = \"\",\"\",INDIRECT(M1152))","v":""},"n"]
["ADJICMERGNFC1",null,null,null,{"$f":"_xlfn.XLOOKUP(F1153,'Raw Data'!$I$4:$I$5000,'Raw Data'!$D$4:$D$5000,\"*** Mnemonic not found ***\",0)","v":"*** Mnemonic not found ***"},"ADJICMERGNFC1__"," Adjustment to Economic Risk Group mapping","Input",{"$f":"ROW(section_erg_to_rtg_map)","v":309},5,{"$f":"I1153+J1153","v":314},"C","Input!C314",{"$f":"_xlfn.XLOOKUP(F1153,'Raw Data'!$I$4:$I$5000,'Raw Data'!$E$4:$E$5000,100,0)","v":100},{"$f":"IF(N1153=0,_xlfn.XLOOKUP(F1153,'Raw Data'!$I$4:$I$5000,'Raw Data'!$H$4:$H$5000,\"\",0),\"\")","v":""},{"$f":"IF(INDIRECT(M1153) = \"\",\"\",INDIRECT(M1153))","v":0},"n"]
["ADJICMERGNFC2",null,null,null,{"$f":"_xlfn.XLOOKUP(F1154,'Raw Data'!$I$4:$I$5000,'Raw Data'!$D$4:$D$5000,\"*** Mnemonic not found ***\",0)","v":"*** Mnemonic not found ***"},"ADJICMERGNFC2__",null,"Input",null,null,{"$f":"K1153","v":314},"D","Input!D314",{"$f":"_xlfn.XLOOKUP(F1154,'Raw Data'!$I$4:$I$5000,'Raw Data'!$E$4:$E$5000,100,0)","v":100},{"$f":"IF(N1154=0,_xlfn.XLOOKUP(F1154,'Raw Data'!$I$4:$I$5000,'Raw Data'!$H$4:$H$5000,\"\",0),\"\")","v":""},{"$f":"IF(INDIRECT(M1154) = \"\",\"\",INDIRECT(M1154))","v":0},"n"]
["ADJICMERGNFC3",null,null,null,{"$f":"_xlfn.XLOOKUP(F1155,'Raw Data'!$I$4:$I$5000,'Raw Data'!$D$4:$D$5000,\"*** Mnemonic not found ***\",0)","v":"*** Mnemonic not found ***"},"ADJICMERGNFC3__",null,"Input",null,null,{"$f":"K1154","v":314},"E","Input!E314",{"$f":"_xlfn.XLOOKUP(F1155,'Raw Data'!$I$4:$I$5000,'Raw Data'!$E$4:$E$5000,100,0)","v":100},{"$f":"IF(N1155=0,_xlfn.XLOOKUP(F1155,'Raw Data'!$I$4:$I$5000,'Raw Data'!$H$4:$H$5000,\"\",0),\"\")","v":""},{"$f":"IF(INDIRECT(M1155) = \"\",\"\",INDIRECT(M1155))","v":0},"n"]
["ADJICMERGNFC4",null,null,null,{"$f":"_xlfn.XLOOKUP(F1156,'Raw Data'!$I$4:$I$5000,'Raw Data'!$D$4:$D$5000,\"*** Mnemonic not found ***\",0)","v":"*** Mnemonic not found ***"},"ADJICMERGNFC4__",null,"Input",null,null,314,"F","Input!F314",{"$f":"_xlfn.XLOOKUP(F1156,'Raw Data'!$I$4:$I$5000,'Raw Data'!$E$4:$E$5000,100,0)","v":100},{"$f":"IF(N1156=0,_xlfn.XLOOKUP(F1156,'Raw Data'!$I$4:$I$5000,'Raw Data'!$H$4:$H$5000,\"\",0),\"\")","v":""},{"$f":"IF(INDIRECT(M1156) = \"\",\"\",INDIRECT(M1156))","v":0},"n"]
["ADJICMERGNFC5",null,null,null,{"$f":"_xlfn.XLOOKUP(F1157,'Raw Data'!$I$4:$I$5000,'Raw Data'!$D$4:$D$5000,\"*** Mnemonic not found ***\",0)","v":"*** Mnemonic not found ***"},{"$f":"CONCATENATE(A1157,\"_\",B1157,\"_\",D1157)","v":"ADJICMERGNFC5__"},null,"Input",null,null,314,"G","Input!G314",{"$f":"_xlfn.XLOOKUP(F1157,'Raw Data'!$I$4:$I$5000,'Raw Data'!$E$4:$E$5000,100,0)","v":100},{"$f":"IF(N1157=0,_xlfn.XLOOKUP(F1157,'Raw Data'!$I$4:$I$5000,'Raw Data'!$H$4:$H$5000,\"\",0),\"\")","v":""},{"$f":"IF(INDIRECT(M1157) = \"\",\"\",INDIRECT(M1157))","v":0},"n"]
["ADJICMERGNFC6",null,null,null,{"$f":"_xlfn.XLOOKUP(F1158,'Raw Data'!$I$4:$I$5000,'Raw Data'!$D$4:$D$5000,\"*** Mnemonic not found ***\",0)","v":"*** Mnemonic not found ***"},"ADJICMERGNFC6__",null,"Input",null,null,314,"H","Input!H314",{"$f":"_xlfn.XLOOKUP(F1158,'Raw Data'!$I$4:$I$5000,'Raw Data'!$E$4:$E$5000,100,0)","v":100},{"$f":"IF(N1158=0,_xlfn.XLOOKUP(F1158,'Raw Data'!$I$4:$I$5000,'Raw Data'!$H$4:$H$5000,\"\",0),\"\")","v":""},{"$f":"IF(INDIRECT(M1158) = \"\",\"\",INDIRECT(M1158))","v":0},"n"]
["ADJICMERGNFC7",null,null,null,{"$f":"_xlfn.XLOOKUP(F1159,'Raw Data'!$I$4:$I$5000,'Raw Data'!$D$4:$D$5000,\"*** Mnemonic not found ***\",0)","v":"*** Mnemonic not found ***"},"ADJICMERGNFC7__",null,"Input",null,null,314,"I","Input!I314",{"$f":"_xlfn.XLOOKUP(F1159,'Raw Data'!$I$4:$I$5000,'Raw Data'!$E$4:$E$5000,100,0)","v":100},{"$f":"IF(N1159=0,_xlfn.XLOOKUP(F1159,'Raw Data'!$I$4:$I$5000,'Raw Data'!$H$4:$H$5000,\"\",0),\"\")","v":""},{"$f":"IF(INDIRECT(M1159) = \"\",\"\",INDIRECT(M1159))","v":0},"n"]
["ADJICMERGNFC8",null,null,null,{"$f":"_xlfn.XLOOKUP(F1160,'Raw Data'!$I$4:$I$5000,'Raw Data'!$D$4:$D$5000,\"*** Mnemonic not found ***\",0)","v":"*** Mnemonic not found ***"},"ADJICMERGNFC8__",null,"Input",null,null,314,"J","Input!J314",{"$f":"_xlfn.XLOOKUP(F1160,'Raw Data'!$I$4:$I$5000,'Raw Data'!$E$4:$E$5000,100,0)","v":100},{"$f":"IF(N1160=0,_xlfn.XLOOKUP(F1160,'Raw Data'!$I$4:$I$5000,'Raw Data'!$H$4:$H$5000,\"\",0),\"\")","v":""},{"$f":"IF(INDIRECT(M1160) = \"\",\"\",INDIRECT(M1160))","v":0},"n"]
["ADJICMERGNFC9",null,null,null,{"$f":"_xlfn.XLOOKUP(F1161,'Raw Data'!$I$4:$I$5000,'Raw Data'!$D$4:$D$5000,\"*** Mnemonic not found ***\",0)","v":"*** Mnemonic not found ***"},"ADJICMERGNFC9__",null,"Input",null,null,314,"K","Input!K314",{"$f":"_xlfn.XLOOKUP(F1161,'Raw Data'!$I$4:$I$5000,'Raw Data'!$E$4:$E$5000,100,0)","v":100},{"$f":"IF(N1161=0,_xlfn.XLOOKUP(F1161,'Raw Data'!$I$4:$I$5000,'Raw Data'!$H$4:$H$5000,\"\",0),\"\")","v":""},{"$f":"IF(INDIRECT(M1161) = \"\",\"\",INDIRECT(M1161))","v":0},"n"]
["ADJICMERGNFC10",null,null,null,{"$f":"_xlfn.XLOOKUP(F1162,'Raw Data'!$I$4:$I$5000,'Raw Data'!$D$4:$D$5000,\"*** Mnemonic not found ***\",0)","v":"*** Mnemonic not found ***"},"ADJICMERGNFC10__",null,"Input",null,null,314,"L","Input!L314",{"$f":"_xlfn.XLOOKUP(F1162,'Raw Data'!$I$4:$I$5000,'Raw Data'!$E$4:$E$5000,100,0)","v":100},{"$f":"IF(N1162=0,_xlfn.XLOOKUP(F1162,'Raw Data'!$I$4:$I$5000,'Raw Data'!$H$4:$H$5000,\"\",0),\"\")","v":""},{"$f":"IF(INDIRECT(M1162) = \"\",\"\",INDIRECT(M1162))","v":0},"n"]
["ADJICMERGFIN1",null,null,null,{"$f":"_xlfn.XLOOKUP(F1163,'Raw Data'!$I$4:$I$5000,'Raw Data'!$D$4:$D$5000,\"*** Mnemonic not found ***\",0)","v":"*** Mnemonic not found ***"},"ADJICMERGFIN1__",null,"Input",null,null,{"$f":"K1153+4","v":318},{"$f":"L1153","v":"C"},"Input!C318",{"$f":"_xlfn.XLOOKUP(F1163,'Raw Data'!$I$4:$I$5000,'Raw Data'!$E$4:$E$5000,100,0)","v":100},{"$f":"IF(N1163=0,_xlfn.XLOOKUP(F1163,'Raw Data'!$I$4:$I$5000,'Raw Data'!$H$4:$H$5000,\"\",0),\"\")","v":""},{"$f":"IF(INDIRECT(M1163) = \"\",\"\",INDIRECT(M1163))","v":0},"n"]
["ADJICMERGFIN2",null,null,null,{"$f":"_xlfn.XLOOKUP(F1164,'Raw Data'!$I$4:$I$5000,'Raw Data'!$D$4:$D$5000,\"*** Mnemonic not found ***\",0)","v":"*** Mnemonic not found ***"},"ADJICMERGFIN2__",null,"Input",null,null,{"$f":"K1163","v":318},{"$f":"L1154","v":"D"},"Input!D318",{"$f":"_xlfn.XLOOKUP(F1164,'Raw Data'!$I$4:$I$5000,'Raw Data'!$E$4:$E$5000,100,0)","v":100},{"$f":"IF(N1164=0,_xlfn.XLOOKUP(F1164,'Raw Data'!$I$4:$I$5000,'Raw Data'!$H$4:$H$5000,\"\",0),\"\")","v":""},{"$f":"IF(INDIRECT(M1164) = \"\",\"\",INDIRECT(M1164))","v":0},"n"]
["ADJICMERGFIN3",null,null,null,{"$f":"_xlfn.XLOOKUP(F1165,'Raw Data'!$I$4:$I$5000,'Raw Data'!$D$4:$D$5000,\"*** Mnemonic not found ***\",0)","v":"*** Mnemonic not found ***"},"ADJICMERGFIN3__",null,"Input",null,null,{"$f":"K1164","v":318},"E","Input!E318",{"$f":"_xlfn.XLOOKUP(F1165,'Raw Data'!$I$4:$I$5000,'Raw Data'!$E$4:$E$5000,100,0)","v":100},{"$f":"IF(N1165=0,_xlfn.XLOOKUP(F1165,'Raw Data'!$I$4:$I$5000,'Raw Data'!$H$4:$H$5000,\"\",0),\"\")","v":""},{"$f":"IF(INDIRECT(M1165) = \"\",\"\",INDIRECT(M1165))","v":0},"n"]
["ADJICMERGFIN4",null,null,null,{"$f":"_xlfn.XLOOKUP(F1166,'Raw Data'!$I$4:$I$5000,'Raw Data'!$D$4:$D$5000,\"*** Mnemonic not found ***\",0)","v":"*** Mnemonic not found ***"},"ADJICMERGFIN4__",null,"Input",null,null,318,"F","Input!F318",{"$f":"_xlfn.XLOOKUP(F1166,'Raw Data'!$I$4:$I$5000,'Raw Data'!$E$4:$E$5000,100,0)","v":100},{"$f":"IF(N1166=0,_xlfn.XLOOKUP(F1166,'Raw Data'!$I$4:$I$5000,'Raw Data'!$H$4:$H$5000,\"\",0),\"\")","v":""},{"$f":"IF(INDIRECT(M1166) = \"\",\"\",INDIRECT(M1166))","v":0},"n"]
["ADJICMERGFIN5",null,null,null,{"$f":"_xlfn.XLOOKUP(F1167,'Raw Data'!$I$4:$I$5000,'Raw Data'!$D$4:$D$5000,\"*** Mnemonic not found ***\",0)","v":"*** Mnemonic not found ***"},"ADJICMERGFIN5__",null,"Input",null,null,318,"G","Input!G318",{"$f":"_xlfn.XLOOKUP(F1167,'Raw Data'!$I$4:$I$5000,'Raw Data'!$E$4:$E$5000,100,0)","v":100},{"$f":"IF(N1167=0,_xlfn.XLOOKUP(F1167,'Raw Data'!$I$4:$I$5000,'Raw Data'!$H$4:$H$5000,\"\",0),\"\")","v":""},{"$f":"IF(INDIRECT(M1167) = \"\",\"\",INDIRECT(M1167))","v":0},"n"]
["ADJICMERGFIN6",null,null,null,{"$f":"_xlfn.XLOOKUP(F1168,'Raw Data'!$I$4:$I$5000,'Raw Data'!$D$4:$D$5000,\"*** Mnemonic not found ***\",0)","v":"*** Mnemonic not found ***"},"ADJICMERGFIN6__",null,"Input",null,null,318,"H","Input!H318",{"$f":"_xlfn.XLOOKUP(F1168,'Raw Data'!$I$4:$I$5000,'Raw Data'!$E$4:$E$5000,100,0)","v":100},{"$f":"IF(N1168=0,_xlfn.XLOOKUP(F1168,'Raw Data'!$I$4:$I$5000,'Raw Data'!$H$4:$H$5000,\"\",0),\"\")","v":""},{"$f":"IF(INDIRECT(M1168) = \"\",\"\",INDIRECT(M1168))","v":0},"n"]
["ADJICMERGFIN7",null,null,null,{"$f":"_xlfn.XLOOKUP(F1169,'Raw Data'!$I$4:$I$5000,'Raw Data'!$D$4:$D$5000,\"*** Mnemonic not found ***\",0)","v":"*** Mnemonic not found ***"},"ADJICMERGFIN7__",null,"Input",null,null,318,"I","Input!I318",{"$f":"_xlfn.XLOOKUP(F1169,'Raw Data'!$I$4:$I$5000,'Raw Data'!$E$4:$E$5000,100,0)","v":100},{"$f":"IF(N1169=0,_xlfn.XLOOKUP(F1169,'Raw Data'!$I$4:$I$5000,'Raw Data'!$H$4:$H$5000,\"\",0),\"\")","v":""},{"$f":"IF(INDIRECT(M1169) = \"\",\"\",INDIRECT(M1169))","v":0},"n"]
["ADJICMERGFIN8",null,null,null,{"$f":"_xlfn.XLOOKUP(F1170,'Raw Data'!$I$4:$I$5000,'Raw Data'!$D$4:$D$5000,\"*** Mnemonic not found ***\",0)","v":"*** Mnemonic not found ***"},"ADJICMERGFIN8__",null,"Input",null,null,318,"J","Input!J318",{"$f":"_xlfn.XLOOKUP(F1170,'Raw Data'!$I$4:$I$5000,'Raw Data'!$E$4:$E$5000,100,0)","v":100},{"$f":"IF(N1170=0,_xlfn.XLOOKUP(F1170,'Raw Data'!$I$4:$I$5000,'Raw Data'!$H$4:$H$5000,\"\",0),\"\")","v":""},{"$f":"IF(INDIRECT(M1170) = \"\",\"\",INDIRECT(M1170))","v":0},"n"]
["ADJICMERGFIN9",null,null,null,{"$f":"_xlfn.XLOOKUP(F1171,'Raw Data'!$I$4:$I$5000,'Raw Data'!$D$4:$D$5000,\"*** Mnemonic not found ***\",0)","v":"*** Mnemonic not found ***"},"ADJICMERGFIN9__",null,"Input",null,null,318,"K","Input!K318",{"$f":"_xlfn.XLOOKUP(F1171,'Raw Data'!$I$4:$I$5000,'Raw Data'!$E$4:$E$5000,100,0)","v":100},{"$f":"IF(N1171=0,_xlfn.XLOOKUP(F1171,'Raw Data'!$I$4:$I$5000,'Raw Data'!$H$4:$H$5000,\"\",0),\"\")","v":""},{"$f":"IF(INDIRECT(M1171) = \"\",\"\",INDIRECT(M1171))","v":0},"n"]
["ADJICMERGFIN10",null,null,null,{"$f":"_xlfn.XLOOKUP(F1172,'Raw Data'!$I$4:$I$5000,'Raw Data'!$D$4:$D$5000,\"*** Mnemonic not found ***\",0)","v":"*** Mnemonic not found ***"},"ADJICMERGFIN10__",null,"Input",null,null,318,"L","Input!L318",{"$f":"_xlfn.XLOOKUP(F1172,'Raw Data'!$I$4:$I$5000,'Raw Data'!$E$4:$E$5000,100,0)","v":100},{"$f":"IF(N1172=0,_xlfn.XLOOKUP(F1172,'Raw Data'!$I$4:$I$5000,'Raw Data'!$H$4:$H$5000,\"\",0),\"\")","v":""},{"$f":"IF(INDIRECT(M1172) = \"\",\"\",INDIRECT(M1172))","v":0},"n"]
["ADJICMERGSOV1",null,null,null,{"$f":"_xlfn.XLOOKUP(F1173,'Raw Data'!$I$4:$I$5000,'Raw Data'!$D$4:$D$5000,\"*** Mnemonic not found ***\",0)","v":"*** Mnemonic not found ***"},"ADJICMERGSOV1__",null,"Input",null,null,{"$f":"K1163+4","v":322},"C","Input!C322",{"$f":"_xlfn.XLOOKUP(F1173,'Raw Data'!$I$4:$I$5000,'Raw Data'!$E$4:$E$5000,100,0)","v":100},{"$f":"IF(N1173=0,_xlfn.XLOOKUP(F1173,'Raw Data'!$I$4:$I$5000,'Raw Data'!$H$4:$H$5000,\"\",0),\"\")","v":""},{"$f":"IF(INDIRECT(M1173) = \"\",\"\",INDIRECT(M1173))","v":0},"n"]
["ADJICMERGSOV2",null,null,null,{"$f":"_xlfn.XLOOKUP(F1174,'Raw Data'!$I$4:$I$5000,'Raw Data'!$D$4:$D$5000,\"*** Mnemonic not found ***\",0)","v":"*** Mnemonic not found ***"},"ADJICMERGSOV2__",null,"Input",null,null,{"$f":"K1173","v":322},"D","Input!D322",{"$f":"_xlfn.XLOOKUP(F1174,'Raw Data'!$I$4:$I$5000,'Raw Data'!$E$4:$E$5000,100,0)","v":100},{"$f":"IF(N1174=0,_xlfn.XLOOKUP(F1174,'Raw Data'!$I$4:$I$5000,'Raw Data'!$H$4:$H$5000,\"\",0),\"\")","v":""},{"$f":"IF(INDIRECT(M1174) = \"\",\"\",INDIRECT(M1174))","v":0},"n"]
["ADJICMERGSOV3",null,null,null,{"$f":"_xlfn.XLOOKUP(F1175,'Raw Data'!$I$4:$I$5000,'Raw Data'!$D$4:$D$5000,\"*** Mnemonic not found ***\",0)","v":"*** Mnemonic not found ***"},"ADJICMERGSOV3__",null,"Input",null,null,{"$f":"K1174","v":322},"E","Input!E322",{"$f":"_xlfn.XLOOKUP(F1175,'Raw Data'!$I$4:$I$5000,'Raw Data'!$E$4:$E$5000,100,0)","v":100},{"$f":"IF(N1175=0,_xlfn.XLOOKUP(F1175,'Raw Data'!$I$4:$I$5000,'Raw Data'!$H$4:$H$5000,\"\",0),\"\")","v":""},{"$f":"IF(INDIRECT(M1175) = \"\",\"\",INDIRECT(M1175))","v":0},"n"]
["ADJICMERGSOV4",null,null,null,{"$f":"_xlfn.XLOOKUP(F1176,'Raw Data'!$I$4:$I$5000,'Raw Data'!$D$4:$D$5000,\"*** Mnemonic not found ***\",0)","v":"*** Mnemonic not found ***"},"ADJICMERGSOV4__",null,"Input",null,null,322,"F","Input!F322",{"$f":"_xlfn.XLOOKUP(F1176,'Raw Data'!$I$4:$I$5000,'Raw Data'!$E$4:$E$5000,100,0)","v":100},{"$f":"IF(N1176=0,_xlfn.XLOOKUP(F1176,'Raw Data'!$I$4:$I$5000,'Raw Data'!$H$4:$H$5000,\"\",0),\"\")","v":""},{"$f":"IF(INDIRECT(M1176) = \"\",\"\",INDIRECT(M1176))","v":0},"n"]
["ADJICMERGSOV5",null,null,null,{"$f":"_xlfn.XLOOKUP(F1177,'Raw Data'!$I$4:$I$5000,'Raw Data'!$D$4:$D$5000,\"*** Mnemonic not found ***\",0)","v":"*** Mnemonic not found ***"},"ADJICMERGSOV5__",null,"Input",null,null,322,"G","Input!G322",{"$f":"_xlfn.XLOOKUP(F1177,'Raw Data'!$I$4:$I$5000,'Raw Data'!$E$4:$E$5000,100,0)","v":100},{"$f":"IF(N1177=0,_xlfn.XLOOKUP(F1177,'Raw Data'!$I$4:$I$5000,'Raw Data'!$H$4:$H$5000,\"\",0),\"\")","v":""},{"$f":"IF(INDIRECT(M1177) = \"\",\"\",INDIRECT(M1177))","v":0},"n"]
["ADJICMERGSOV6",null,null,null,{"$f":"_xlfn.XLOOKUP(F1178,'Raw Data'!$I$4:$I$5000,'Raw Data'!$D$4:$D$5000,\"*** Mnemonic not found ***\",0)","v":"*** Mnemonic not found ***"},"ADJICMERGSOV6__",null,"Input",null,null,322,"H","Input!H322",{"$f":"_xlfn.XLOOKUP(F1178,'Raw Data'!$I$4:$I$5000,'Raw Data'!$E$4:$E$5000,100,0)","v":100},{"$f":"IF(N1178=0,_xlfn.XLOOKUP(F1178,'Raw Data'!$I$4:$I$5000,'Raw Data'!$H$4:$H$5000,\"\",0),\"\")","v":""},{"$f":"IF(INDIRECT(M1178) = \"\",\"\",INDIRECT(M1178))","v":0},"n"]
["ADJICMERGSOV7",null,null,null,{"$f":"_xlfn.XLOOKUP(F1179,'Raw Data'!$I$4:$I$5000,'Raw Data'!$D$4:$D$5000,\"*** Mnemonic not found ***\",0)","v":"*** Mnemonic not found ***"},"ADJICMERGSOV7__",null,"Input",null,null,322,"I","Input!I322",{"$f":"_xlfn.XLOOKUP(F1179,'Raw Data'!$I$4:$I$5000,'Raw Data'!$E$4:$E$5000,100,0)","v":100},{"$f":"IF(N1179=0,_xlfn.XLOOKUP(F1179,'Raw Data'!$I$4:$I$5000,'Raw Data'!$H$4:$H$5000,\"\",0),\"\")","v":""},{"$f":"IF(INDIRECT(M1179) = \"\",\"\",INDIRECT(M1179))","v":0},"n"]
["ADJICMERGSOV8",null,null,null,{"$f":"_xlfn.XLOOKUP(F1180,'Raw Data'!$I$4:$I$5000,'Raw Data'!$D$4:$D$5000,\"*** Mnemonic not found ***\",0)","v":"*** Mnemonic not found ***"},"ADJICMERGSOV8__",null,"Input",null,null,322,"J","Input!J322",{"$f":"_xlfn.XLOOKUP(F1180,'Raw Data'!$I$4:$I$5000,'Raw Data'!$E$4:$E$5000,100,0)","v":100},{"$f":"IF(N1180=0,_xlfn.XLOOKUP(F1180,'Raw Data'!$I$4:$I$5000,'Raw Data'!$H$4:$H$5000,\"\",0),\"\")","v":""},{"$f":"IF(INDIRECT(M1180) = \"\",\"\",INDIRECT(M1180))","v":0},"n"]
["ADJICMERGSOV9",null,null,null,{"$f":"_xlfn.XLOOKUP(F1181,'Raw Data'!$I$4:$I$5000,'Raw Data'!$D$4:$D$5000,\"*** Mnemonic not found ***\",0)","v":"*** Mnemonic not found ***"},"ADJICMERGSOV9__",null,"Input",null,null,322,"K","Input!K322",{"$f":"_xlfn.XLOOKUP(F1181,'Raw Data'!$I$4:$I$5000,'Raw Data'!$E$4:$E$5000,100,0)","v":100},{"$f":"IF(N1181=0,_xlfn.XLOOKUP(F1181,'Raw Data'!$I$4:$I$5000,'Raw Data'!$H$4:$H$5000,\"\",0),\"\")","v":""},{"$f":"IF(INDIRECT(M1181) = \"\",\"\",INDIRECT(M1181))","v":0},"n"]
["ADJICMERGSOV10",null,null,null,{"$f":"_xlfn.XLOOKUP(F1182,'Raw Data'!$I$4:$I$5000,'Raw Data'!$D$4:$D$5000,\"*** Mnemonic not found ***\",0)","v":"*** Mnemonic not found ***"},"ADJICMERGSOV10__",null,"Input",null,null,322,"L","Input!L322",{"$f":"_xlfn.XLOOKUP(F1182,'Raw Data'!$I$4:$I$5000,'Raw Data'!$E$4:$E$5000,100,0)","v":100},{"$f":"IF(N1182=0,_xlfn.XLOOKUP(F1182,'Raw Data'!$I$4:$I$5000,'Raw Data'!$H$4:$H$5000,\"\",0),\"\")","v":""},{"$f":"IF(INDIRECT(M1182) = \"\",\"\",INDIRECT(M1182))","v":0},"n"]
["ADJICMERGSF1",null,null,null,{"$f":"_xlfn.XLOOKUP(F1183,'Raw Data'!$I$4:$I$5000,'Raw Data'!$D$4:$D$5000,\"*** Mnemonic not found ***\",0)","v":"*** Mnemonic not found ***"},"ADJICMERGSF1__",null,"Input",null,null,{"$f":"K1173+4","v":326},"C","Input!C326",{"$f":"_xlfn.XLOOKUP(F1183,'Raw Data'!$I$4:$I$5000,'Raw Data'!$E$4:$E$5000,100,0)","v":100},{"$f":"IF(N1183=0,_xlfn.XLOOKUP(F1183,'Raw Data'!$I$4:$I$5000,'Raw Data'!$H$4:$H$5000,\"\",0),\"\")","v":""},{"$f":"IF(INDIRECT(M1183) = \"\",\"\",INDIRECT(M1183))","v":0},"n"]
["ADJICMERGSF2",null,null,null,{"$f":"_xlfn.XLOOKUP(F1184,'Raw Data'!$I$4:$I$5000,'Raw Data'!$D$4:$D$5000,\"*** Mnemonic not found ***\",0)","v":"*** Mnemonic not found ***"},"ADJICMERGSF2__",null,"Input",null,null,{"$f":"K1183","v":326},"D","Input!D326",{"$f":"_xlfn.XLOOKUP(F1184,'Raw Data'!$I$4:$I$5000,'Raw Data'!$E$4:$E$5000,100,0)","v":100},{"$f":"IF(N1184=0,_xlfn.XLOOKUP(F1184,'Raw Data'!$I$4:$I$5000,'Raw Data'!$H$4:$H$5000,\"\",0),\"\")","v":""},{"$f":"IF(INDIRECT(M1184) = \"\",\"\",INDIRECT(M1184))","v":0},"n"]
["ADJICMERGSF3",null,null,null,{"$f":"_xlfn.XLOOKUP(F1185,'Raw Data'!$I$4:$I$5000,'Raw Data'!$D$4:$D$5000,\"*** Mnemonic not found ***\",0)","v":"*** Mnemonic not found ***"},"ADJICMERGSF3__",null,"Input",null,null,{"$f":"K1184","v":326},"E","Input!E326",{"$f":"_xlfn.XLOOKUP(F1185,'Raw Data'!$I$4:$I$5000,'Raw Data'!$E$4:$E$5000,100,0)","v":100},{"$f":"IF(N1185=0,_xlfn.XLOOKUP(F1185,'Raw Data'!$I$4:$I$5000,'Raw Data'!$H$4:$H$5000,\"\",0),\"\")","v":""},{"$f":"IF(INDIRECT(M1185) = \"\",\"\",INDIRECT(M1185))","v":0},"n"]
["ADJICMERGSF4",null,null,null,{"$f":"_xlfn.XLOOKUP(F1186,'Raw Data'!$I$4:$I$5000,'Raw Data'!$D$4:$D$5000,\"*** Mnemonic not found ***\",0)","v":"*** Mnemonic not found ***"},"ADJICMERGSF4__",null,"Input",null,null,326,"F","Input!F326",{"$f":"_xlfn.XLOOKUP(F1186,'Raw Data'!$I$4:$I$5000,'Raw Data'!$E$4:$E$5000,100,0)","v":100},{"$f":"IF(N1186=0,_xlfn.XLOOKUP(F1186,'Raw Data'!$I$4:$I$5000,'Raw Data'!$H$4:$H$5000,\"\",0),\"\")","v":""},{"$f":"IF(INDIRECT(M1186) = \"\",\"\",INDIRECT(M1186))","v":0},"n"]
["ADJICMERGSF5",null,null,null,{"$f":"_xlfn.XLOOKUP(F1187,'Raw Data'!$I$4:$I$5000,'Raw Data'!$D$4:$D$5000,\"*** Mnemonic not found ***\",0)","v":"*** Mnemonic not found ***"},"ADJICMERGSF5__",null,"Input",null,null,326,"G","Input!G326",{"$f":"_xlfn.XLOOKUP(F1187,'Raw Data'!$I$4:$I$5000,'Raw Data'!$E$4:$E$5000,100,0)","v":100},{"$f":"IF(N1187=0,_xlfn.XLOOKUP(F1187,'Raw Data'!$I$4:$I$5000,'Raw Data'!$H$4:$H$5000,\"\",0),\"\")","v":""},{"$f":"IF(INDIRECT(M1187) = \"\",\"\",INDIRECT(M1187))","v":0},"n"]
["ADJICMERGSF6",null,null,null,{"$f":"_xlfn.XLOOKUP(F1188,'Raw Data'!$I$4:$I$5000,'Raw Data'!$D$4:$D$5000,\"*** Mnemonic not found ***\",0)","v":"*** Mnemonic not found ***"},"ADJICMERGSF6__",null,"Input",null,null,326,"H","Input!H326",{"$f":"_xlfn.XLOOKUP(F1188,'Raw Data'!$I$4:$I$5000,'Raw Data'!$E$4:$E$5000,100,0)","v":100},{"$f":"IF(N1188=0,_xlfn.XLOOKUP(F1188,'Raw Data'!$I$4:$I$5000,'Raw Data'!$H$4:$H$5000,\"\",0),\"\")","v":""},{"$f":"IF(INDIRECT(M1188) = \"\",\"\",INDIRECT(M1188))","v":0},"n"]
["ADJICMERGSF7",null,null,null,{"$f":"_xlfn.XLOOKUP(F1189,'Raw Data'!$I$4:$I$5000,'Raw Data'!$D$4:$D$5000,\"*** Mnemonic not found ***\",0)","v":"*** Mnemonic not found ***"},"ADJICMERGSF7__",null,"Input",null,null,326,"I","Input!I326",{"$f":"_xlfn.XLOOKUP(F1189,'Raw Data'!$I$4:$I$5000,'Raw Data'!$E$4:$E$5000,100,0)","v":100},{"$f":"IF(N1189=0,_xlfn.XLOOKUP(F1189,'Raw Data'!$I$4:$I$5000,'Raw Data'!$H$4:$H$5000,\"\",0),\"\")","v":""},{"$f":"IF(INDIRECT(M1189) = \"\",\"\",INDIRECT(M1189))","v":0},"n"]
["ADJICMERGSF8",null,null,null,{"$f":"_xlfn.XLOOKUP(F1190,'Raw Data'!$I$4:$I$5000,'Raw Data'!$D$4:$D$5000,\"*** Mnemonic not found ***\",0)","v":"*** Mnemonic not found ***"},"ADJICMERGSF8__",null,"Input",null,null,326,"J","Input!J326",{"$f":"_xlfn.XLOOKUP(F1190,'Raw Data'!$I$4:$I$5000,'Raw Data'!$E$4:$E$5000,100,0)","v":100},{"$f":"IF(N1190=0,_xlfn.XLOOKUP(F1190,'Raw Data'!$I$4:$I$5000,'Raw Data'!$H$4:$H$5000,\"\",0),\"\")","v":""},{"$f":"IF(INDIRECT(M1190) = \"\",\"\",INDIRECT(M1190))","v":0},"n"]
["ADJICMERGSF9",null,null,null,{"$f":"_xlfn.XLOOKUP(F1191,'Raw Data'!$I$4:$I$5000,'Raw Data'!$D$4:$D$5000,\"*** Mnemonic not found ***\",0)","v":"*** Mnemonic not found ***"},"ADJICMERGSF9__",null,"Input",null,null,326,"K","Input!K326",{"$f":"_xlfn.XLOOKUP(F1191,'Raw Data'!$I$4:$I$5000,'Raw Data'!$E$4:$E$5000,100,0)","v":100},{"$f":"IF(N1191=0,_xlfn.XLOOKUP(F1191,'Raw Data'!$I$4:$I$5000,'Raw Data'!$H$4:$H$5000,\"\",0),\"\")","v":""},{"$f":"IF(INDIRECT(M1191) = \"\",\"\",INDIRECT(M1191))","v":0},"n"]
["ADJICMERGSF10",null,null,null,{"$f":"_xlfn.XLOOKUP(F1192,'Raw Data'!$I$4:$I$5000,'Raw Data'!$D$4:$D$5000,\"*** Mnemonic not found ***\",0)","v":"*** Mnemonic not found ***"},"ADJICMERGSF10__",null,"Input",null,null,326,"L","Input!L326",{"$f":"_xlfn.XLOOKUP(F1192,'Raw Data'!$I$4:$I$5000,'Raw Data'!$E$4:$E$5000,100,0)","v":100},{"$f":"IF(N1192=0,_xlfn.XLOOKUP(F1192,'Raw Data'!$I$4:$I$5000,'Raw Data'!$H$4:$H$5000,\"\",0),\"\")","v":""},{"$f":"IF(INDIRECT(M1192) = \"\",\"\",INDIRECT(M1192))","v":0},"n"]
["ADJICMERGSFM1",null,null,null,{"$f":"_xlfn.XLOOKUP(F1193,'Raw Data'!$I$4:$I$5000,'Raw Data'!$D$4:$D$5000,\"*** Mnemonic not found ***\",0)","v":"*** Mnemonic not found ***"},"ADJICMERGSFM1__",null,"Input",null,null,{"$f":"K1183+4","v":330},"C",{"$f":"CONCATENATE(H1193,\"!\",L1193,K1193)","v":"Input!C330"},{"$f":"_xlfn.XLOOKUP(F1193,'Raw Data'!$I$4:$I$5000,'Raw Data'!$E$4:$E$5000,100,0)","v":100},{"$f":"IF(N1193=0,_xlfn.XLOOKUP(F1193,'Raw Data'!$I$4:$I$5000,'Raw Data'!$H$4:$H$5000,\"\",0),\"\")","v":""},{"$f":"IF(INDIRECT(M1193) = \"\",\"\",INDIRECT(M1193))","v":0},"n"]
["ADJICMERGSFM2",null,null,null,{"$f":"_xlfn.XLOOKUP(F1194,'Raw Data'!$I$4:$I$5000,'Raw Data'!$D$4:$D$5000,\"*** Mnemonic not found ***\",0)","v":"*** Mnemonic not found ***"},"ADJICMERGSFM2__",null,"Input",null,null,{"$f":"K1193","v":330},"D","Input!D330",{"$f":"_xlfn.XLOOKUP(F1194,'Raw Data'!$I$4:$I$5000,'Raw Data'!$E$4:$E$5000,100,0)","v":100},{"$f":"IF(N1194=0,_xlfn.XLOOKUP(F1194,'Raw Data'!$I$4:$I$5000,'Raw Data'!$H$4:$H$5000,\"\",0),\"\")","v":""},{"$f":"IF(INDIRECT(M1194) = \"\",\"\",INDIRECT(M1194))","v":0},"n"]
["ADJICMERGSFM3",null,null,null,{"$f":"_xlfn.XLOOKUP(F1195,'Raw Data'!$I$4:$I$5000,'Raw Data'!$D$4:$D$5000,\"*** Mnemonic not found ***\",0)","v":"*** Mnemonic not found ***"},"ADJICMERGSFM3__",null,"Input",null,null,{"$f":"K1194","v":330},"E","Input!E330",{"$f":"_xlfn.XLOOKUP(F1195,'Raw Data'!$I$4:$I$5000,'Raw Data'!$E$4:$E$5000,100,0)","v":100},{"$f":"IF(N1195=0,_xlfn.XLOOKUP(F1195,'Raw Data'!$I$4:$I$5000,'Raw Data'!$H$4:$H$5000,\"\",0),\"\")","v":""},{"$f":"IF(INDIRECT(M1195) = \"\",\"\",INDIRECT(M1195))","v":0},"n"]
["ADJICMERGSFM4",null,null,null,{"$f":"_xlfn.XLOOKUP(F1196,'Raw Data'!$I$4:$I$5000,'Raw Data'!$D$4:$D$5000,\"*** Mnemonic not found ***\",0)","v":"*** Mnemonic not found ***"},"ADJICMERGSFM4__",null,"Input",null,null,330,"F","Input!F330",{"$f":"_xlfn.XLOOKUP(F1196,'Raw Data'!$I$4:$I$5000,'Raw Data'!$E$4:$E$5000,100,0)","v":100},{"$f":"IF(N1196=0,_xlfn.XLOOKUP(F1196,'Raw Data'!$I$4:$I$5000,'Raw Data'!$H$4:$H$5000,\"\",0),\"\")","v":""},{"$f":"IF(INDIRECT(M1196) = \"\",\"\",INDIRECT(M1196))","v":0},"n"]
["ADJICMERGSFM5",null,null,null,{"$f":"_xlfn.XLOOKUP(F1197,'Raw Data'!$I$4:$I$5000,'Raw Data'!$D$4:$D$5000,\"*** Mnemonic not found ***\",0)","v":"*** Mnemonic not found ***"},"ADJICMERGSFM5__",null,"Input",null,null,330,"G","Input!G330",{"$f":"_xlfn.XLOOKUP(F1197,'Raw Data'!$I$4:$I$5000,'Raw Data'!$E$4:$E$5000,100,0)","v":100},{"$f":"IF(N1197=0,_xlfn.XLOOKUP(F1197,'Raw Data'!$I$4:$I$5000,'Raw Data'!$H$4:$H$5000,\"\",0),\"\")","v":""},{"$f":"IF(INDIRECT(M1197) = \"\",\"\",INDIRECT(M1197))","v":0},"n"]
["ADJICMERGSFM6",null,null,null,{"$f":"_xlfn.XLOOKUP(F1198,'Raw Data'!$I$4:$I$5000,'Raw Data'!$D$4:$D$5000,\"*** Mnemonic not found ***\",0)","v":"*** Mnemonic not found ***"},"ADJICMERGSFM6__",null,"Input",null,null,330,"H","Input!H330",{"$f":"_xlfn.XLOOKUP(F1198,'Raw Data'!$I$4:$I$5000,'Raw Data'!$E$4:$E$5000,100,0)","v":100},{"$f":"IF(N1198=0,_xlfn.XLOOKUP(F1198,'Raw Data'!$I$4:$I$5000,'Raw Data'!$H$4:$H$5000,\"\",0),\"\")","v":""},{"$f":"IF(INDIRECT(M1198) = \"\",\"\",INDIRECT(M1198))","v":0},"n"]
["ADJICMERGSFM7",null,null,null,{"$f":"_xlfn.XLOOKUP(F1199,'Raw Data'!$I$4:$I$5000,'Raw Data'!$D$4:$D$5000,\"*** Mnemonic not found ***\",0)","v":"*** Mnemonic not found ***"},"ADJICMERGSFM7__",null,"Input",null,null,330,"I","Input!I330",{"$f":"_xlfn.XLOOKUP(F1199,'Raw Data'!$I$4:$I$5000,'Raw Data'!$E$4:$E$5000,100,0)","v":100},{"$f":"IF(N1199=0,_xlfn.XLOOKUP(F1199,'Raw Data'!$I$4:$I$5000,'Raw Data'!$H$4:$H$5000,\"\",0),\"\")","v":""},{"$f":"IF(INDIRECT(M1199) = \"\",\"\",INDIRECT(M1199))","v":0},"n"]
["ADJICMERGSFM8",null,null,null,{"$f":"_xlfn.XLOOKUP(F1200,'Raw Data'!$I$4:$I$5000,'Raw Data'!$D$4:$D$5000,\"*** Mnemonic not found ***\",0)","v":"*** Mnemonic not found ***"},"ADJICMERGSFM8__",null,"Input",null,null,330,"J","Input!J330",{"$f":"_xlfn.XLOOKUP(F1200,'Raw Data'!$I$4:$I$5000,'Raw Data'!$E$4:$E$5000,100,0)","v":100},{"$f":"IF(N1200=0,_xlfn.XLOOKUP(F1200,'Raw Data'!$I$4:$I$5000,'Raw Data'!$H$4:$H$5000,\"\",0),\"\")","v":""},{"$f":"IF(INDIRECT(M1200) = \"\",\"\",INDIRECT(M1200))","v":0},"n"]
["ADJICMERGSFM9",null,null,null,{"$f":"_xlfn.XLOOKUP(F1201,'Raw Data'!$I$4:$I$5000,'Raw Data'!$D$4:$D$5000,\"*** Mnemonic not found ***\",0)","v":"*** Mnemonic not found ***"},"ADJICMERGSFM9__",null,"Input",null,null,330,"K","Input!K330",{"$f":"_xlfn.XLOOKUP(F1201,'Raw Data'!$I$4:$I$5000,'Raw Data'!$E$4:$E$5000,100,0)","v":100},{"$f":"IF(N1201=0,_xlfn.XLOOKUP(F1201,'Raw Data'!$I$4:$I$5000,'Raw Data'!$H$4:$H$5000,\"\",0),\"\")","v":""},{"$f":"IF(INDIRECT(M1201) = \"\",\"\",INDIRECT(M1201))","v":0},"n"]
["ADJICMERGSFM10",null,null,null,{"$f":"_xlfn.XLOOKUP(F1202,'Raw Data'!$I$4:$I$5000,'Raw Data'!$D$4:$D$5000,\"*** Mnemonic not found ***\",0)","v":"*** Mnemonic not found ***"},"ADJICMERGSFM10__",null,"Input",null,null,330,"L","Input!L330",{"$f":"_xlfn.XLOOKUP(F1202,'Raw Data'!$I$4:$I$5000,'Raw Data'!$E$4:$E$5000,100,0)","v":100},{"$f":"IF(N1202=0,_xlfn.XLOOKUP(F1202,'Raw Data'!$I$4:$I$5000,'Raw Data'!$H$4:$H$5000,\"\",0),\"\")","v":""},{"$f":"IF(INDIRECT(M1202) = \"\",\"\",INDIRECT(M1202))","v":0},"n"]
["ADJICMERGSFJ1",null,null,null,{"$f":"_xlfn.XLOOKUP(F1203,'Raw Data'!$I$4:$I$5000,'Raw Data'!$D$4:$D$5000,\"*** Mnemonic not found ***\",0)","v":"*** Mnemonic not found ***"},"ADJICMERGSFJ1__",null,"Input",null,null,{"$f":"K1193+4","v":334},"C",{"$f":"CONCATENATE(H1203,\"!\",L1203,K1203)","v":"Input!C334"},{"$f":"_xlfn.XLOOKUP(F1203,'Raw Data'!$I$4:$I$5000,'Raw Data'!$E$4:$E$5000,100,0)","v":100},{"$f":"IF(N1203=0,_xlfn.XLOOKUP(F1203,'Raw Data'!$I$4:$I$5000,'Raw Data'!$H$4:$H$5000,\"\",0),\"\")","v":""},{"$f":"IF(INDIRECT(M1203) = \"\",\"\",INDIRECT(M1203))","v":0},"n"]
["ADJICMERGSFJ2",null,null,null,{"$f":"_xlfn.XLOOKUP(F1204,'Raw Data'!$I$4:$I$5000,'Raw Data'!$D$4:$D$5000,\"*** Mnemonic not found ***\",0)","v":"*** Mnemonic not found ***"},"ADJICMERGSFJ2__",null,"Input",null,null,{"$f":"K1203","v":334},"D","Input!D334",{"$f":"_xlfn.XLOOKUP(F1204,'Raw Data'!$I$4:$I$5000,'Raw Data'!$E$4:$E$5000,100,0)","v":100},{"$f":"IF(N1204=0,_xlfn.XLOOKUP(F1204,'Raw Data'!$I$4:$I$5000,'Raw Data'!$H$4:$H$5000,\"\",0),\"\")","v":""},{"$f":"IF(INDIRECT(M1204) = \"\",\"\",INDIRECT(M1204))","v":0},"n"]
["ADJICMERGSFJ3",null,null,null,{"$f":"_xlfn.XLOOKUP(F1205,'Raw Data'!$I$4:$I$5000,'Raw Data'!$D$4:$D$5000,\"*** Mnemonic not found ***\",0)","v":"*** Mnemonic not found ***"},"ADJICMERGSFJ3__",null,"Input",null,null,{"$f":"K1204","v":334},"E","Input!E334",{"$f":"_xlfn.XLOOKUP(F1205,'Raw Data'!$I$4:$I$5000,'Raw Data'!$E$4:$E$5000,100,0)","v":100},{"$f":"IF(N1205=0,_xlfn.XLOOKUP(F1205,'Raw Data'!$I$4:$I$5000,'Raw Data'!$H$4:$H$5000,\"\",0),\"\")","v":""},{"$f":"IF(INDIRECT(M1205) = \"\",\"\",INDIRECT(M1205))","v":0},"n"]
["ADJICMERGSFJ4",null,null,null,{"$f":"_xlfn.XLOOKUP(F1206,'Raw Data'!$I$4:$I$5000,'Raw Data'!$D$4:$D$5000,\"*** Mnemonic not found ***\",0)","v":"*** Mnemonic not found ***"},"ADJICMERGSFJ4__",null,"Input",null,null,334,"F","Input!F334",{"$f":"_xlfn.XLOOKUP(F1206,'Raw Data'!$I$4:$I$5000,'Raw Data'!$E$4:$E$5000,100,0)","v":100},{"$f":"IF(N1206=0,_xlfn.XLOOKUP(F1206,'Raw Data'!$I$4:$I$5000,'Raw Data'!$H$4:$H$5000,\"\",0),\"\")","v":""},{"$f":"IF(INDIRECT(M1206) = \"\",\"\",INDIRECT(M1206))","v":0},"n"]
["ADJICMERGSFJ5",null,null,null,{"$f":"_xlfn.XLOOKUP(F1207,'Raw Data'!$I$4:$I$5000,'Raw Data'!$D$4:$D$5000,\"*** Mnemonic not found ***\",0)","v":"*** Mnemonic not found ***"},"ADJICMERGSFJ5__",null,"Input",null,null,334,"G","Input!G334",{"$f":"_xlfn.XLOOKUP(F1207,'Raw Data'!$I$4:$I$5000,'Raw Data'!$E$4:$E$5000,100,0)","v":100},{"$f":"IF(N1207=0,_xlfn.XLOOKUP(F1207,'Raw Data'!$I$4:$I$5000,'Raw Data'!$H$4:$H$5000,\"\",0),\"\")","v":""},{"$f":"IF(INDIRECT(M1207) = \"\",\"\",INDIRECT(M1207))","v":0},"n"]
["ADJICMERGSFJ6",null,null,null,{"$f":"_xlfn.XLOOKUP(F1208,'Raw Data'!$I$4:$I$5000,'Raw Data'!$D$4:$D$5000,\"*** Mnemonic not found ***\",0)","v":"*** Mnemonic not found ***"},"ADJICMERGSFJ6__",null,"Input",null,null,334,"H","Input!H334",{"$f":"_xlfn.XLOOKUP(F1208,'Raw Data'!$I$4:$I$5000,'Raw Data'!$E$4:$E$5000,100,0)","v":100},{"$f":"IF(N1208=0,_xlfn.XLOOKUP(F1208,'Raw Data'!$I$4:$I$5000,'Raw Data'!$H$4:$H$5000,\"\",0),\"\")","v":""},{"$f":"IF(INDIRECT(M1208) = \"\",\"\",INDIRECT(M1208))","v":0},"n"]
["ADJICMERGSFJ7",null,null,null,{"$f":"_xlfn.XLOOKUP(F1209,'Raw Data'!$I$4:$I$5000,'Raw Data'!$D$4:$D$5000,\"*** Mnemonic not found ***\",0)","v":"*** Mnemonic not found ***"},"ADJICMERGSFJ7__",null,"Input",null,null,334,"I","Input!I334",{"$f":"_xlfn.XLOOKUP(F1209,'Raw Data'!$I$4:$I$5000,'Raw Data'!$E$4:$E$5000,100,0)","v":100},{"$f":"IF(N1209=0,_xlfn.XLOOKUP(F1209,'Raw Data'!$I$4:$I$5000,'Raw Data'!$H$4:$H$5000,\"\",0),\"\")","v":""},{"$f":"IF(INDIRECT(M1209) = \"\",\"\",INDIRECT(M1209))","v":0},"n"]
["ADJICMERGSFJ8",null,null,null,{"$f":"_xlfn.XLOOKUP(F1210,'Raw Data'!$I$4:$I$5000,'Raw Data'!$D$4:$D$5000,\"*** Mnemonic not found ***\",0)","v":"*** Mnemonic not found ***"},"ADJICMERGSFJ8__",null,"Input",null,null,334,"J","Input!J334",{"$f":"_xlfn.XLOOKUP(F1210,'Raw Data'!$I$4:$I$5000,'Raw Data'!$E$4:$E$5000,100,0)","v":100},{"$f":"IF(N1210=0,_xlfn.XLOOKUP(F1210,'Raw Data'!$I$4:$I$5000,'Raw Data'!$H$4:$H$5000,\"\",0),\"\")","v":""},{"$f":"IF(INDIRECT(M1210) = \"\",\"\",INDIRECT(M1210))","v":0},"n"]
["ADJICMERGSFJ9",null,null,null,{"$f":"_xlfn.XLOOKUP(F1211,'Raw Data'!$I$4:$I$5000,'Raw Data'!$D$4:$D$5000,\"*** Mnemonic not found ***\",0)","v":"*** Mnemonic not found ***"},"ADJICMERGSFJ9__",null,"Input",null,null,334,"K","Input!K334",{"$f":"_xlfn.XLOOKUP(F1211,'Raw Data'!$I$4:$I$5000,'Raw Data'!$E$4:$E$5000,100,0)","v":100},{"$f":"IF(N1211=0,_xlfn.XLOOKUP(F1211,'Raw Data'!$I$4:$I$5000,'Raw Data'!$H$4:$H$5000,\"\",0),\"\")","v":""},{"$f":"IF(INDIRECT(M1211) = \"\",\"\",INDIRECT(M1211))","v":0},"n"]
["ADJICMERGSFJ10",null,null,null,{"$f":"_xlfn.XLOOKUP(F1212,'Raw Data'!$I$4:$I$5000,'Raw Data'!$D$4:$D$5000,\"*** Mnemonic not found ***\",0)","v":"*** Mnemonic not found ***"},"ADJICMERGSFJ10__",null,"Input",null,null,334,"L","Input!L334",{"$f":"_xlfn.XLOOKUP(F1212,'Raw Data'!$I$4:$I$5000,'Raw Data'!$E$4:$E$5000,100,0)","v":100},{"$f":"IF(N1212=0,_xlfn.XLOOKUP(F1212,'Raw Data'!$I$4:$I$5000,'Raw Data'!$H$4:$H$5000,\"\",0),\"\")","v":""},{"$f":"IF(INDIRECT(M1212) = \"\",\"\",INDIRECT(M1212))","v":0},"n"]
["SUCMGTTOTRATEDBNDS",null,null,null,{"$f":"_xlfn.XLOOKUP(F1213,'Raw Data'!$I$4:$I$5000,'Raw Data'!$D$4:$D$5000,\"*** Mnemonic not found ***\",0)","v":"*** Mnemonic not found ***"},"SUCMGTTOTRATEDBNDS__",null,"Input",null,null,{"$f":"K1212+6","v":340},"F","Input!F340",{"$f":"_xlfn.XLOOKUP(F1213,'Raw Data'!$I$4:$I$5000,'Raw Data'!$E$4:$E$5000,100,0)","v":100},{"$f":"IF(N1213=0,_xlfn.XLOOKUP(F1213,'Raw Data'!$I$4:$I$5000,'Raw Data'!$H$4:$H$5000,\"\",0),\"\")","v":""},{"$f":"IF(INDIRECT(M1213) = \"\",\"\",INDIRECT(M1213))","v":""},"n"]
["SUCMEQHOLDGR1LIST",null,null,null,{"$f":"_xlfn.XLOOKUP(F1214,'Raw Data'!$I$4:$I$5000,'Raw Data'!$D$4:$D$5000,\"*** Mnemonic not found ***\",0)","v":"*** Mnemonic not found ***"},"SUCMEQHOLDGR1LIST__","Equity Risk","Input",{"$f":"ROW(section_equity)","v":343},3,{"$f":"I1214+J1214","v":346},"F","Input!F346",{"$f":"_xlfn.XLOOKUP(F1214,'Raw Data'!$I$4:$I$5000,'Raw Data'!$E$4:$E$5000,100,0)","v":100},{"$f":"IF(N1214=0,_xlfn.XLOOKUP(F1214,'Raw Data'!$I$4:$I$5000,'Raw Data'!$H$4:$H$5000,\"\",0),\"\")","v":""},{"$f":"IF(INDIRECT(M1214) = \"\",\"\",INDIRECT(M1214))","v":""},"n"]
["SUCMEQHOLDGR2LIST",null,null,null,{"$f":"_xlfn.XLOOKUP(F1215,'Raw Data'!$I$4:$I$5000,'Raw Data'!$D$4:$D$5000,\"*** Mnemonic not found ***\",0)","v":"*** Mnemonic not found ***"},"SUCMEQHOLDGR2LIST__",null,"Input",null,null,{"$f":"K1214+1","v":347},{"$f":"L1214","v":"F"},"Input!F347",{"$f":"_xlfn.XLOOKUP(F1215,'Raw Data'!$I$4:$I$5000,'Raw Data'!$E$4:$E$5000,100,0)","v":100},{"$f":"IF(N1215=0,_xlfn.XLOOKUP(F1215,'Raw Data'!$I$4:$I$5000,'Raw Data'!$H$4:$H$5000,\"\",0),\"\")","v":""},{"$f":"IF(INDIRECT(M1215) = \"\",\"\",INDIRECT(M1215))","v":""},"n"]
["SUCMEQHOLDGR3LIST",null,null,null,{"$f":"_xlfn.XLOOKUP(F1216,'Raw Data'!$I$4:$I$5000,'Raw Data'!$D$4:$D$5000,\"*** Mnemonic not found ***\",0)","v":"*** Mnemonic not found ***"},"SUCMEQHOLDGR3LIST__",null,"Input",null,null,{"$f":"K1215+1","v":348},{"$f":"L1215","v":"F"},"Input!F348",{"$f":"_xlfn.XLOOKUP(F1216,'Raw Data'!$I$4:$I$5000,'Raw Data'!$E$4:$E$5000,100,0)","v":100},{"$f":"IF(N1216=0,_xlfn.XLOOKUP(F1216,'Raw Data'!$I$4:$I$5000,'Raw Data'!$H$4:$H$5000,\"\",0),\"\")","v":""},{"$f":"IF(INDIRECT(M1216) = \"\",\"\",INDIRECT(M1216))","v":""},"n"]
["SUCMEQHOLDGR4LIST",null,null,null,{"$f":"_xlfn.XLOOKUP(F1217,'Raw Data'!$I$4:$I$5000,'Raw Data'!$D$4:$D$5000,\"*** Mnemonic not found ***\",0)","v":"*** Mnemonic not found ***"},"SUCMEQHOLDGR4LIST__",null,"Input",null,null,349,"F","Input!F349",{"$f":"_xlfn.XLOOKUP(F1217,'Raw Data'!$I$4:$I$5000,'Raw Data'!$E$4:$E$5000,100,0)","v":100},{"$f":"IF(N1217=0,_xlfn.XLOOKUP(F1217,'Raw Data'!$I$4:$I$5000,'Raw Data'!$H$4:$H$5000,\"\",0),\"\")","v":""},{"$f":"IF(INDIRECT(M1217) = \"\",\"\",INDIRECT(M1217))","v":""},"n"]
["SUCMEQHOLDGR1UNLIST",null,null,null,{"$f":"_xlfn.XLOOKUP(F1218,'Raw Data'!$I$4:$I$5000,'Raw Data'!$D$4:$D$5000,\"*** Mnemonic not found ***\",0)","v":"*** Mnemonic not found ***"},"SUCMEQHOLDGR1UNLIST__",null,"Input",null,null,{"$f":"K1214","v":346},"G","Input!G346",{"$f":"_xlfn.XLOOKUP(F1218,'Raw Data'!$I$4:$I$5000,'Raw Data'!$E$4:$E$5000,100,0)","v":100},{"$f":"IF(N1218=0,_xlfn.XLOOKUP(F1218,'Raw Data'!$I$4:$I$5000,'Raw Data'!$H$4:$H$5000,\"\",0),\"\")","v":""},{"$f":"IF(INDIRECT(M1218) = \"\",\"\",INDIRECT(M1218))","v":""},"n"]
["SUCMEQHOLDGR2UNLIST",null,null,null,{"$f":"_xlfn.XLOOKUP(F1219,'Raw Data'!$I$4:$I$5000,'Raw Data'!$D$4:$D$5000,\"*** Mnemonic not found ***\",0)","v":"*** Mnemonic not found ***"},"SUCMEQHOLDGR2UNLIST__",null,"Input",null,null,{"$f":"K1218+1","v":347},{"$f":"L1218","v":"G"},"Input!G347",{"$f":"_xlfn.XLOOKUP(F1219,'Raw Data'!$I$4:$I$5000,'Raw Data'!$E$4:$E$5000,100,0)","v":100},{"$f":"IF(N1219=0,_xlfn.XLOOKUP(F1219,'Raw Data'!$I$4:$I$5000,'Raw Data'!$H$4:$H$5000,\"\",0),\"\")","v":""},{"$f":"IF(INDIRECT(M1219) = \"\",\"\",INDIRECT(M1219))","v":""},"n"]
["SUCMEQHOLDGR3UNLIST",null,null,null,{"$f":"_xlfn.XLOOKUP(F1220,'Raw Data'!$I$4:$I$5000,'Raw Data'!$D$4:$D$5000,\"*** Mnemonic not found ***\",0)","v":"*** Mnemonic not found ***"},"SUCMEQHOLDGR3UNLIST__",null,"Input",null,null,{"$f":"K1219+1","v":348},{"$f":"L1219","v":"G"},"Input!G348",{"$f":"_xlfn.XLOOKUP(F1220,'Raw Data'!$I$4:$I$5000,'Raw Data'!$E$4:$E$5000,100,0)","v":100},{"$f":"IF(N1220=0,_xlfn.XLOOKUP(F1220,'Raw Data'!$I$4:$I$5000,'Raw Data'!$H$4:$H$5000,\"\",0),\"\")","v":""},{"$f":"IF(INDIRECT(M1220) = \"\",\"\",INDIRECT(M1220))","v":""},"n"]
["SUCMEQHOLDGR4UNLIST",null,null,null,{"$f":"_xlfn.XLOOKUP(F1221,'Raw Data'!$I$4:$I$5000,'Raw Data'!$D$4:$D$5000,\"*** Mnemonic not found ***\",0)","v":"*** Mnemonic not found ***"},{"$f":"CONCATENATE(A1221,\"_\",B1221,\"_\",D1221)","v":"SUCMEQHOLDGR4UNLIST__"},null,"Input",null,null,349,"G","Input!G349",{"$f":"_xlfn.XLOOKUP(F1221,'Raw Data'!$I$4:$I$5000,'Raw Data'!$E$4:$E$5000,100,0)","v":100},{"$f":"IF(N1221=0,_xlfn.XLOOKUP(F1221,'Raw Data'!$I$4:$I$5000,'Raw Data'!$H$4:$H$5000,\"\",0),\"\")","v":""},{"$f":"IF(INDIRECT(M1221) = \"\",\"\",INDIRECT(M1221))","v":""},"n"]
["SUCMEQHOLDINVGR1LIST",null,null,null,{"$f":"_xlfn.XLOOKUP(F1222,'Raw Data'!$I$4:$I$5000,'Raw Data'!$D$4:$D$5000,\"*** Mnemonic not found ***\",0)","v":"*** Mnemonic not found ***"},"SUCMEQHOLDINVGR1LIST__",null,"Input",null,null,{"$f":"K1218","v":346},"H","Input!H346",{"$f":"_xlfn.XLOOKUP(F1222,'Raw Data'!$I$4:$I$5000,'Raw Data'!$E$4:$E$5000,100,0)","v":100},{"$f":"IF(N1222=0,_xlfn.XLOOKUP(F1222,'Raw Data'!$I$4:$I$5000,'Raw Data'!$H$4:$H$5000,\"\",0),\"\")","v":""},{"$f":"IF(INDIRECT(M1222) = \"\",\"\",INDIRECT(M1222))","v":""},"n"]
["SUCMEQHOLDINVGR2LIST",null,null,null,{"$f":"_xlfn.XLOOKUP(F1223,'Raw Data'!$I$4:$I$5000,'Raw Data'!$D$4:$D$5000,\"*** Mnemonic not found ***\",0)","v":"*** Mnemonic not found ***"},"SUCMEQHOLDINVGR2LIST__",null,"Input",null,null,{"$f":"K1222+1","v":347},{"$f":"L1222","v":"H"},"Input!H347",{"$f":"_xlfn.XLOOKUP(F1223,'Raw Data'!$I$4:$I$5000,'Raw Data'!$E$4:$E$5000,100,0)","v":100},{"$f":"IF(N1223=0,_xlfn.XLOOKUP(F1223,'Raw Data'!$I$4:$I$5000,'Raw Data'!$H$4:$H$5000,\"\",0),\"\")","v":""},{"$f":"IF(INDIRECT(M1223) = \"\",\"\",INDIRECT(M1223))","v":""},"n"]
["SUCMEQHOLDINVGR3LIST",null,null,null,{"$f":"_xlfn.XLOOKUP(F1224,'Raw Data'!$I$4:$I$5000,'Raw Data'!$D$4:$D$5000,\"*** Mnemonic not found ***\",0)","v":"*** Mnemonic not found ***"},"SUCMEQHOLDINVGR3LIST__",null,"Input",null,null,{"$f":"K1223+1","v":348},{"$f":"L1223","v":"H"},"Input!H348",{"$f":"_xlfn.XLOOKUP(F1224,'Raw Data'!$I$4:$I$5000,'Raw Data'!$E$4:$E$5000,100,0)","v":100},{"$f":"IF(N1224=0,_xlfn.XLOOKUP(F1224,'Raw Data'!$I$4:$I$5000,'Raw Data'!$H$4:$H$5000,\"\",0),\"\")","v":""},{"$f":"IF(INDIRECT(M1224) = \"\",\"\",INDIRECT(M1224))","v":""},"n"]
["SUCMEQHOLDINVGR4LIST",null,null,null,{"$f":"_xlfn.XLOOKUP(F1225,'Raw Data'!$I$4:$I$5000,'Raw Data'!$D$4:$D$5000,\"*** Mnemonic not found ***\",0)","v":"*** Mnemonic not found ***"},"SUCMEQHOLDINVGR4LIST__",null,"Input",null,null,349,"H","Input!H349",{"$f":"_xlfn.XLOOKUP(F1225,'Raw Data'!$I$4:$I$5000,'Raw Data'!$E$4:$E$5000,100,0)","v":100},{"$f":"IF(N1225=0,_xlfn.XLOOKUP(F1225,'Raw Data'!$I$4:$I$5000,'Raw Data'!$H$4:$H$5000,\"\",0),\"\")","v":""},{"$f":"IF(INDIRECT(M1225) = \"\",\"\",INDIRECT(M1225))","v":""},"n"]
["SUCMEQHOLDINVGR1UNLIST",null,null,null,{"$f":"_xlfn.XLOOKUP(F1226,'Raw Data'!$I$4:$I$5000,'Raw Data'!$D$4:$D$5000,\"*** Mnemonic not found ***\",0)","v":"*** Mnemonic not found ***"},"SUCMEQHOLDINVGR1UNLIST__",null,"Input",null,null,{"$f":"K1222","v":346},"I","Input!I346",{"$f":"_xlfn.XLOOKUP(F1226,'Raw Data'!$I$4:$I$5000,'Raw Data'!$E$4:$E$5000,100,0)","v":100},{"$f":"IF(N1226=0,_xlfn.XLOOKUP(F1226,'Raw Data'!$I$4:$I$5000,'Raw Data'!$H$4:$H$5000,\"\",0),\"\")","v":""},{"$f":"IF(INDIRECT(M1226) = \"\",\"\",INDIRECT(M1226))","v":""},"n"]
["SUCMEQHOLDINVGR2UNLIST",null,null,null,{"$f":"_xlfn.XLOOKUP(F1227,'Raw Data'!$I$4:$I$5000,'Raw Data'!$D$4:$D$5000,\"*** Mnemonic not found ***\",0)","v":"*** Mnemonic not found ***"},"SUCMEQHOLDINVGR2UNLIST__",null,"Input",null,null,{"$f":"K1226+1","v":347},{"$f":"L1226","v":"I"},"Input!I347",{"$f":"_xlfn.XLOOKUP(F1227,'Raw Data'!$I$4:$I$5000,'Raw Data'!$E$4:$E$5000,100,0)","v":100},{"$f":"IF(N1227=0,_xlfn.XLOOKUP(F1227,'Raw Data'!$I$4:$I$5000,'Raw Data'!$H$4:$H$5000,\"\",0),\"\")","v":""},{"$f":"IF(INDIRECT(M1227) = \"\",\"\",INDIRECT(M1227))","v":""},"n"]
["SUCMEQHOLDINVGR3UNLIST",null,null,null,{"$f":"_xlfn.XLOOKUP(F1228,'Raw Data'!$I$4:$I$5000,'Raw Data'!$D$4:$D$5000,\"*** Mnemonic not found ***\",0)","v":"*** Mnemonic not found ***"},"SUCMEQHOLDINVGR3UNLIST__",null,"Input",null,null,{"$f":"K1227+1","v":348},{"$f":"L1227","v":"I"},"Input!I348",{"$f":"_xlfn.XLOOKUP(F1228,'Raw Data'!$I$4:$I$5000,'Raw Data'!$E$4:$E$5000,100,0)","v":100},{"$f":"IF(N1228=0,_xlfn.XLOOKUP(F1228,'Raw Data'!$I$4:$I$5000,'Raw Data'!$H$4:$H$5000,\"\",0),\"\")","v":""},{"$f":"IF(INDIRECT(M1228) = \"\",\"\",INDIRECT(M1228))","v":""},"n"]
["SUCMEQHOLDINVGR4UNLIST",null,null,null,{"$f":"_xlfn.XLOOKUP(F1229,'Raw Data'!$I$4:$I$5000,'Raw Data'!$D$4:$D$5000,\"*** Mnemonic not found ***\",0)","v":"*** Mnemonic not found ***"},"SUCMEQHOLDINVGR4UNLIST__",null,"Input",null,null,349,"I","Input!I349",{"$f":"_xlfn.XLOOKUP(F1229,'Raw Data'!$I$4:$I$5000,'Raw Data'!$E$4:$E$5000,100,0)","v":100},{"$f":"IF(N1229=0,_xlfn.XLOOKUP(F1229,'Raw Data'!$I$4:$I$5000,'Raw Data'!$H$4:$H$5000,\"\",0),\"\")","v":""},{"$f":"IF(INDIRECT(M1229) = \"\",\"\",INDIRECT(M1229))","v":""},"n"]
["SUCMEQINFRACAT1",null,null,null,{"$f":"_xlfn.XLOOKUP(F1230,'Raw Data'!$I$4:$I$5000,'Raw Data'!$D$4:$D$5000,\"*** Mnemonic not found ***\",0)","v":"*** Mnemonic not found ***"},{"$f":"CONCATENATE(A1230,\"_\",B1230,\"_\",D1230)","v":"SUCMEQINFRACAT1__"},null,"Input",null,null,{"$f":"K1226","v":346},"L",{"$f":"CONCATENATE(H1230,\"!\",L1230,K1230)","v":"Input!L346"},{"$f":"_xlfn.XLOOKUP(F1230,'Raw Data'!$I$4:$I$5000,'Raw Data'!$E$4:$E$5000,100,0)","v":100},{"$f":"IF(N1230=0,_xlfn.XLOOKUP(F1230,'Raw Data'!$I$4:$I$5000,'Raw Data'!$H$4:$H$5000,\"\",0),\"\")","v":""},{"$f":"IF(INDIRECT(M1230) = \"\",\"\",INDIRECT(M1230))","v":""},"n","equity_infrastructure_cat_1"]
["SUCMEQINFRACAT2",null,null,null,{"$f":"_xlfn.XLOOKUP(F1231,'Raw Data'!$I$4:$I$5000,'Raw Data'!$D$4:$D$5000,\"*** Mnemonic not found ***\",0)","v":"*** Mnemonic not found ***"},"SUCMEQINFRACAT2__",null,"Input",null,null,347,{"$f":"L1230","v":"L"},"Input!L347",{"$f":"_xlfn.XLOOKUP(F1231,'Raw Data'!$I$4:$I$5000,'Raw Data'!$E$4:$E$5000,100,0)","v":100},{"$f":"IF(N1231=0,_xlfn.XLOOKUP(F1231,'Raw Data'!$I$4:$I$5000,'Raw Data'!$H$4:$H$5000,\"\",0),\"\")","v":""},{"$f":"IF(INDIRECT(M1231) = \"\",\"\",INDIRECT(M1231))","v":""},"n","equity_infrastructure_cat_2"]
["SUCMTOTEQHOLD",null,null,null,{"$f":"_xlfn.XLOOKUP(F1232,'Raw Data'!$I$4:$I$5000,'Raw Data'!$D$4:$D$5000,\"*** Mnemonic not found ***\",0)","v":"*** Mnemonic not found ***"},"SUCMTOTEQHOLD__",null,"Input",null,null,{"$f":"K1229+2","v":351},{"$f":"L1214","v":"F"},"Input!F351",{"$f":"_xlfn.XLOOKUP(F1232,'Raw Data'!$I$4:$I$5000,'Raw Data'!$E$4:$E$5000,100,0)","v":100},{"$f":"IF(N1232=0,_xlfn.XLOOKUP(F1232,'Raw Data'!$I$4:$I$5000,'Raw Data'!$H$4:$H$5000,\"\",0),\"\")","v":""},{"$f":"IF(INDIRECT(M1232) = \"\",\"\",INDIRECT(M1232))","v":""},"n"]
["SUCMREINVPROPGR1",null,null,null,{"$f":"_xlfn.XLOOKUP(F1233,'Raw Data'!$I$4:$I$5000,'Raw Data'!$D$4:$D$5000,\"*** Mnemonic not found ***\",0)","v":"*** Mnemonic not found ***"},"SUCMREINVPROPGR1__","Real Estate","Input",{"$f":"ROW(section_real_estate)","v":354},3,{"$f":"I1233+J1233","v":357},"F","Input!F357",{"$f":"_xlfn.XLOOKUP(F1233,'Raw Data'!$I$4:$I$5000,'Raw Data'!$E$4:$E$5000,100,0)","v":100},{"$f":"IF(N1233=0,_xlfn.XLOOKUP(F1233,'Raw Data'!$I$4:$I$5000,'Raw Data'!$H$4:$H$5000,\"\",0),\"\")","v":""},{"$f":"IF(INDIRECT(M1233) = \"\",\"\",INDIRECT(M1233))","v":""},"n"]
["SUCMREINVPROPGR2",null,null,null,{"$f":"_xlfn.XLOOKUP(F1234,'Raw Data'!$I$4:$I$5000,'Raw Data'!$D$4:$D$5000,\"*** Mnemonic not found ***\",0)","v":"*** Mnemonic not found ***"},"SUCMREINVPROPGR2__",null,"Input",null,null,{"$f":"K1233+1","v":358},{"$f":"L1233","v":"F"},"Input!F358",{"$f":"_xlfn.XLOOKUP(F1234,'Raw Data'!$I$4:$I$5000,'Raw Data'!$E$4:$E$5000,100,0)","v":100},{"$f":"IF(N1234=0,_xlfn.XLOOKUP(F1234,'Raw Data'!$I$4:$I$5000,'Raw Data'!$H$4:$H$5000,\"\",0),\"\")","v":""},{"$f":"IF(INDIRECT(M1234) = \"\",\"\",INDIRECT(M1234))","v":""},"n"]
["SUCMREINVPROPGR3",null,null,null,{"$f":"_xlfn.XLOOKUP(F1235,'Raw Data'!$I$4:$I$5000,'Raw Data'!$D$4:$D$5000,\"*** Mnemonic not found ***\",0)","v":"*** Mnemonic not found ***"},"SUCMREINVPROPGR3__",null,"Input",null,null,{"$f":"K1234+1","v":359},{"$f":"L1234","v":"F"},"Input!F359",{"$f":"_xlfn.XLOOKUP(F1235,'Raw Data'!$I$4:$I$5000,'Raw Data'!$E$4:$E$5000,100,0)","v":100},{"$f":"IF(N1235=0,_xlfn.XLOOKUP(F1235,'Raw Data'!$I$4:$I$5000,'Raw Data'!$H$4:$H$5000,\"\",0),\"\")","v":""},{"$f":"IF(INDIRECT(M1235) = \"\",\"\",INDIRECT(M1235))","v":""},"n"]
["SUCMREINVPROPGR4",null,null,null,{"$f":"_xlfn.XLOOKUP(F1236,'Raw Data'!$I$4:$I$5000,'Raw Data'!$D$4:$D$5000,\"*** Mnemonic not found ***\",0)","v":"*** Mnemonic not found ***"},"SUCMREINVPROPGR4__",null,"Input",null,null,360,"F","Input!F360",{"$f":"_xlfn.XLOOKUP(F1236,'Raw Data'!$I$4:$I$5000,'Raw Data'!$E$4:$E$5000,100,0)","v":100},{"$f":"IF(N1236=0,_xlfn.XLOOKUP(F1236,'Raw Data'!$I$4:$I$5000,'Raw Data'!$H$4:$H$5000,\"\",0),\"\")","v":""},{"$f":"IF(INDIRECT(M1236) = \"\",\"\",INDIRECT(M1236))","v":""},"n"]
["SUCMREOWNOCCGR1",null,null,null,{"$f":"_xlfn.XLOOKUP(F1237,'Raw Data'!$I$4:$I$5000,'Raw Data'!$D$4:$D$5000,\"*** Mnemonic not found ***\",0)","v":"*** Mnemonic not found ***"},"SUCMREOWNOCCGR1__",null,"Input",null,null,{"$f":"K1233","v":357},"G","Input!G357",{"$f":"_xlfn.XLOOKUP(F1237,'Raw Data'!$I$4:$I$5000,'Raw Data'!$E$4:$E$5000,100,0)","v":100},{"$f":"IF(N1237=0,_xlfn.XLOOKUP(F1237,'Raw Data'!$I$4:$I$5000,'Raw Data'!$H$4:$H$5000,\"\",0),\"\")","v":""},{"$f":"IF(INDIRECT(M1237) = \"\",\"\",INDIRECT(M1237))","v":""},"n"]
["SUCMREOWNOCCGR2",null,null,null,{"$f":"_xlfn.XLOOKUP(F1238,'Raw Data'!$I$4:$I$5000,'Raw Data'!$D$4:$D$5000,\"*** Mnemonic not found ***\",0)","v":"*** Mnemonic not found ***"},"SUCMREOWNOCCGR2__",null,"Input",null,null,{"$f":"K1237+1","v":358},{"$f":"L1237","v":"G"},"Input!G358",{"$f":"_xlfn.XLOOKUP(F1238,'Raw Data'!$I$4:$I$5000,'Raw Data'!$E$4:$E$5000,100,0)","v":100},{"$f":"IF(N1238=0,_xlfn.XLOOKUP(F1238,'Raw Data'!$I$4:$I$5000,'Raw Data'!$H$4:$H$5000,\"\",0),\"\")","v":""},{"$f":"IF(INDIRECT(M1238) = \"\",\"\",INDIRECT(M1238))","v":""},"n"]
["SUCMREOWNOCCGR3",null,null,null,{"$f":"_xlfn.XLOOKUP(F1239,'Raw Data'!$I$4:$I$5000,'Raw Data'!$D$4:$D$5000,\"*** Mnemonic not found ***\",0)","v":"*** Mnemonic not found ***"},"SUCMREOWNOCCGR3__",null,"Input",null,null,{"$f":"K1238+1","v":359},{"$f":"L1238","v":"G"},"Input!G359",{"$f":"_xlfn.XLOOKUP(F1239,'Raw Data'!$I$4:$I$5000,'Raw Data'!$E$4:$E$5000,100,0)","v":100},{"$f":"IF(N1239=0,_xlfn.XLOOKUP(F1239,'Raw Data'!$I$4:$I$5000,'Raw Data'!$H$4:$H$5000,\"\",0),\"\")","v":""},{"$f":"IF(INDIRECT(M1239) = \"\",\"\",INDIRECT(M1239))","v":""},"n"]
["SUCMREOWNOCCGR4",null,null,null,{"$f":"_xlfn.XLOOKUP(F1240,'Raw Data'!$I$4:$I$5000,'Raw Data'!$D$4:$D$5000,\"*** Mnemonic not found ***\",0)","v":"*** Mnemonic not found ***"},"SUCMREOWNOCCGR4__",null,"Input",null,null,360,"G","Input!G360",{"$f":"_xlfn.XLOOKUP(F1240,'Raw Data'!$I$4:$I$5000,'Raw Data'!$E$4:$E$5000,100,0)","v":100},{"$f":"IF(N1240=0,_xlfn.XLOOKUP(F1240,'Raw Data'!$I$4:$I$5000,'Raw Data'!$H$4:$H$5000,\"\",0),\"\")","v":""},{"$f":"IF(INDIRECT(M1240) = \"\",\"\",INDIRECT(M1240))","v":""},"n"]
["SUCMREHOLDTOT",null,null,null,{"$f":"_xlfn.XLOOKUP(F1241,'Raw Data'!$I$4:$I$5000,'Raw Data'!$D$4:$D$5000,\"*** Mnemonic not found ***\",0)","v":"*** Mnemonic not found ***"},"SUCMREHOLDTOT__",null,"Input",null,null,{"$f":"K1240+2","v":362},{"$f":"L1233","v":"F"},"Input!F362",{"$f":"_xlfn.XLOOKUP(F1241,'Raw Data'!$I$4:$I$5000,'Raw Data'!$E$4:$E$5000,100,0)","v":100},{"$f":"IF(N1241=0,_xlfn.XLOOKUP(F1241,'Raw Data'!$I$4:$I$5000,'Raw Data'!$H$4:$H$5000,\"\",0),\"\")","v":""},{"$f":"IF(INDIRECT(M1241) = \"\",\"\",INDIRECT(M1241))","v":""},"n"]
["SUCMCMIG14XLESS60",null,null,null,{"$f":"_xlfn.XLOOKUP(F1242,'Raw Data'!$I$4:$I$5000,'Raw Data'!$D$4:$D$5000,\"*** Mnemonic not found ***\",0)","v":"*** Mnemonic not found ***"},"SUCMCMIG14XLESS60__","Other invested assets - Commercial Mortgage","Input",{"$f":"ROW(section_other_invested_assets)","v":365},6,{"$f":"I1242+J1242","v":371},"F","Input!F371",{"$f":"_xlfn.XLOOKUP(F1242,'Raw Data'!$I$4:$I$5000,'Raw Data'!$E$4:$E$5000,100,0)","v":100},{"$f":"IF(N1242=0,_xlfn.XLOOKUP(F1242,'Raw Data'!$I$4:$I$5000,'Raw Data'!$H$4:$H$5000,\"\",0),\"\")","v":""},{"$f":"IF(INDIRECT(M1242) = \"\",\"\",INDIRECT(M1242))","v":""},"n"]
["SUCMCMIGS14X60_80",null,null,null,{"$f":"_xlfn.XLOOKUP(F1243,'Raw Data'!$I$4:$I$5000,'Raw Data'!$D$4:$D$5000,\"*** Mnemonic not found ***\",0)","v":"*** Mnemonic not found ***"},"SUCMCMIGS14X60_80__",null,"Input",null,null,{"$f":"K1242+1","v":372},{"$f":"L1242","v":"F"},"Input!F372",{"$f":"_xlfn.XLOOKUP(F1243,'Raw Data'!$I$4:$I$5000,'Raw Data'!$E$4:$E$5000,100,0)","v":100},{"$f":"IF(N1243=0,_xlfn.XLOOKUP(F1243,'Raw Data'!$I$4:$I$5000,'Raw Data'!$H$4:$H$5000,\"\",0),\"\")","v":""},{"$f":"IF(INDIRECT(M1243) = \"\",\"\",INDIRECT(M1243))","v":""},"n"]
["SUCMCMIGS14XGREAT80",null,null,null,{"$f":"_xlfn.XLOOKUP(F1244,'Raw Data'!$I$4:$I$5000,'Raw Data'!$D$4:$D$5000,\"*** Mnemonic not found ***\",0)","v":"*** Mnemonic not found ***"},"SUCMCMIGS14XGREAT80__",null,"Input",null,null,{"$f":"K1243+1","v":373},{"$f":"L1243","v":"F"},"Input!F373",{"$f":"_xlfn.XLOOKUP(F1244,'Raw Data'!$I$4:$I$5000,'Raw Data'!$E$4:$E$5000,100,0)","v":100},{"$f":"IF(N1244=0,_xlfn.XLOOKUP(F1244,'Raw Data'!$I$4:$I$5000,'Raw Data'!$H$4:$H$5000,\"\",0),\"\")","v":""},{"$f":"IF(INDIRECT(M1244) = \"\",\"\",INDIRECT(M1244))","v":""},"n"]
["SUCMCMIG11_14XLESS60",null,null,null,{"$f":"_xlfn.XLOOKUP(F1245,'Raw Data'!$I$4:$I$5000,'Raw Data'!$D$4:$D$5000,\"*** Mnemonic not found ***\",0)","v":"*** Mnemonic not found ***"},"SUCMCMIG11_14XLESS60__",null,"Input",null,null,{"$f":"K1242","v":371},"G","Input!G371",{"$f":"_xlfn.XLOOKUP(F1245,'Raw Data'!$I$4:$I$5000,'Raw Data'!$E$4:$E$5000,100,0)","v":100},{"$f":"IF(N1245=0,_xlfn.XLOOKUP(F1245,'Raw Data'!$I$4:$I$5000,'Raw Data'!$H$4:$H$5000,\"\",0),\"\")","v":""},{"$f":"IF(INDIRECT(M1245) = \"\",\"\",INDIRECT(M1245))","v":""},"n"]
["SUCMCMIGS11_14X60_80",null,null,null,{"$f":"_xlfn.XLOOKUP(F1246,'Raw Data'!$I$4:$I$5000,'Raw Data'!$D$4:$D$5000,\"*** Mnemonic not found ***\",0)","v":"*** Mnemonic not found ***"},"SUCMCMIGS11_14X60_80__",null,"Input",null,null,{"$f":"K1245+1","v":372},{"$f":"L1245","v":"G"},"Input!G372",{"$f":"_xlfn.XLOOKUP(F1246,'Raw Data'!$I$4:$I$5000,'Raw Data'!$E$4:$E$5000,100,0)","v":100},{"$f":"IF(N1246=0,_xlfn.XLOOKUP(F1246,'Raw Data'!$I$4:$I$5000,'Raw Data'!$H$4:$H$5000,\"\",0),\"\")","v":""},{"$f":"IF(INDIRECT(M1246) = \"\",\"\",INDIRECT(M1246))","v":""},"n"]
["SUCMCMIGS11_14XGREAT80",null,null,null,{"$f":"_xlfn.XLOOKUP(F1247,'Raw Data'!$I$4:$I$5000,'Raw Data'!$D$4:$D$5000,\"*** Mnemonic not found ***\",0)","v":"*** Mnemonic not found ***"},"SUCMCMIGS11_14XGREAT80__",null,"Input",null,null,{"$f":"K1246+1","v":373},{"$f":"L1246","v":"G"},"Input!G373",{"$f":"_xlfn.XLOOKUP(F1247,'Raw Data'!$I$4:$I$5000,'Raw Data'!$E$4:$E$5000,100,0)","v":100},{"$f":"IF(N1247=0,_xlfn.XLOOKUP(F1247,'Raw Data'!$I$4:$I$5000,'Raw Data'!$H$4:$H$5000,\"\",0),\"\")","v":""},{"$f":"IF(INDIRECT(M1247) = \"\",\"\",INDIRECT(M1247))","v":""},"n"]
["SUCMCMIG11XLESS60",null,null,null,{"$f":"_xlfn.XLOOKUP(F1248,'Raw Data'!$I$4:$I$5000,'Raw Data'!$D$4:$D$5000,\"*** Mnemonic not found ***\",0)","v":"*** Mnemonic not found ***"},"SUCMCMIG11XLESS60__",null,"Input",null,null,{"$f":"K1245","v":371},"H","Input!H371",{"$f":"_xlfn.XLOOKUP(F1248,'Raw Data'!$I$4:$I$5000,'Raw Data'!$E$4:$E$5000,100,0)","v":100},{"$f":"IF(N1248=0,_xlfn.XLOOKUP(F1248,'Raw Data'!$I$4:$I$5000,'Raw Data'!$H$4:$H$5000,\"\",0),\"\")","v":""},{"$f":"IF(INDIRECT(M1248) = \"\",\"\",INDIRECT(M1248))","v":""},"n"]
["SUCMCMIGS11X60_80",null,null,null,{"$f":"_xlfn.XLOOKUP(F1249,'Raw Data'!$I$4:$I$5000,'Raw Data'!$D$4:$D$5000,\"*** Mnemonic not found ***\",0)","v":"*** Mnemonic not found ***"},"SUCMCMIGS11X60_80__",null,"Input",null,null,{"$f":"K1248+1","v":372},{"$f":"L1248","v":"H"},"Input!H372",{"$f":"_xlfn.XLOOKUP(F1249,'Raw Data'!$I$4:$I$5000,'Raw Data'!$E$4:$E$5000,100,0)","v":100},{"$f":"IF(N1249=0,_xlfn.XLOOKUP(F1249,'Raw Data'!$I$4:$I$5000,'Raw Data'!$H$4:$H$5000,\"\",0),\"\")","v":""},{"$f":"IF(INDIRECT(M1249) = \"\",\"\",INDIRECT(M1249))","v":""},"n"]
["SUCMCMIGS11XGREAT80",null,null,null,{"$f":"_xlfn.XLOOKUP(F1250,'Raw Data'!$I$4:$I$5000,'Raw Data'!$D$4:$D$5000,\"*** Mnemonic not found ***\",0)","v":"*** Mnemonic not found ***"},"SUCMCMIGS11XGREAT80__",null,"Input",null,null,{"$f":"K1249+1","v":373},{"$f":"L1249","v":"H"},"Input!H373",{"$f":"_xlfn.XLOOKUP(F1250,'Raw Data'!$I$4:$I$5000,'Raw Data'!$E$4:$E$5000,100,0)","v":100},{"$f":"IF(N1250=0,_xlfn.XLOOKUP(F1250,'Raw Data'!$I$4:$I$5000,'Raw Data'!$H$4:$H$5000,\"\",0),\"\")","v":""},{"$f":"IF(INDIRECT(M1250) = \"\",\"\",INDIRECT(M1250))","v":""},"n"]
["SUCMCMIGDELINQLESS60",null,null,null,{"$f":"_xlfn.XLOOKUP(F1251,'Raw Data'!$I$4:$I$5000,'Raw Data'!$D$4:$D$5000,\"*** Mnemonic not found ***\",0)","v":"*** Mnemonic not found ***"},"SUCMCMIGDELINQLESS60__",null,"Input",null,null,{"$f":"K1248","v":371},"I","Input!I371",{"$f":"_xlfn.XLOOKUP(F1251,'Raw Data'!$I$4:$I$5000,'Raw Data'!$E$4:$E$5000,100,0)","v":100},{"$f":"IF(N1251=0,_xlfn.XLOOKUP(F1251,'Raw Data'!$I$4:$I$5000,'Raw Data'!$H$4:$H$5000,\"\",0),\"\")","v":""},{"$f":"IF(INDIRECT(M1251) = \"\",\"\",INDIRECT(M1251))","v":""},"n"]
["SUCMCMIGSDELINQ60_80",null,null,null,{"$f":"_xlfn.XLOOKUP(F1252,'Raw Data'!$I$4:$I$5000,'Raw Data'!$D$4:$D$5000,\"*** Mnemonic not found ***\",0)","v":"*** Mnemonic not found ***"},"SUCMCMIGSDELINQ60_80__",null,"Input",null,null,{"$f":"K1251+1","v":372},{"$f":"L1251","v":"I"},"Input!I372",{"$f":"_xlfn.XLOOKUP(F1252,'Raw Data'!$I$4:$I$5000,'Raw Data'!$E$4:$E$5000,100,0)","v":100},{"$f":"IF(N1252=0,_xlfn.XLOOKUP(F1252,'Raw Data'!$I$4:$I$5000,'Raw Data'!$H$4:$H$5000,\"\",0),\"\")","v":""},{"$f":"IF(INDIRECT(M1252) = \"\",\"\",INDIRECT(M1252))","v":""},"n"]
["SUCMCMIGSDELINQGREAT80",null,null,null,{"$f":"_xlfn.XLOOKUP(F1253,'Raw Data'!$I$4:$I$5000,'Raw Data'!$D$4:$D$5000,\"*** Mnemonic not found ***\",0)","v":"*** Mnemonic not found ***"},"SUCMCMIGSDELINQGREAT80__",null,"Input",null,null,{"$f":"K1252+1","v":373},{"$f":"L1252","v":"I"},"Input!I373",{"$f":"_xlfn.XLOOKUP(F1253,'Raw Data'!$I$4:$I$5000,'Raw Data'!$E$4:$E$5000,100,0)","v":100},{"$f":"IF(N1253=0,_xlfn.XLOOKUP(F1253,'Raw Data'!$I$4:$I$5000,'Raw Data'!$H$4:$H$5000,\"\",0),\"\")","v":""},{"$f":"IF(INDIRECT(M1253) = \"\",\"\",INDIRECT(M1253))","v":""},"n"]
["SUCMCMIGFORECLLESS60",null,null,null,{"$f":"_xlfn.XLOOKUP(F1254,'Raw Data'!$I$4:$I$5000,'Raw Data'!$D$4:$D$5000,\"*** Mnemonic not found ***\",0)","v":"*** Mnemonic not found ***"},"SUCMCMIGFORECLLESS60__",null,"Input",null,null,{"$f":"K1251","v":371},"J","Input!J371",{"$f":"_xlfn.XLOOKUP(F1254,'Raw Data'!$I$4:$I$5000,'Raw Data'!$E$4:$E$5000,100,0)","v":100},{"$f":"IF(N1254=0,_xlfn.XLOOKUP(F1254,'Raw Data'!$I$4:$I$5000,'Raw Data'!$H$4:$H$5000,\"\",0),\"\")","v":""},{"$f":"IF(INDIRECT(M1254) = \"\",\"\",INDIRECT(M1254))","v":""},"n"]
["SUCMCMIGSFORECL60_80",null,null,null,{"$f":"_xlfn.XLOOKUP(F1255,'Raw Data'!$I$4:$I$5000,'Raw Data'!$D$4:$D$5000,\"*** Mnemonic not found ***\",0)","v":"*** Mnemonic not found ***"},"SUCMCMIGSFORECL60_80__",null,"Input",null,null,{"$f":"K1254+1","v":372},{"$f":"L1254","v":"J"},"Input!J372",{"$f":"_xlfn.XLOOKUP(F1255,'Raw Data'!$I$4:$I$5000,'Raw Data'!$E$4:$E$5000,100,0)","v":100},{"$f":"IF(N1255=0,_xlfn.XLOOKUP(F1255,'Raw Data'!$I$4:$I$5000,'Raw Data'!$H$4:$H$5000,\"\",0),\"\")","v":""},{"$f":"IF(INDIRECT(M1255) = \"\",\"\",INDIRECT(M1255))","v":""},"n"]
["SUCMCMIGSFORECLGREAT80",null,null,null,{"$f":"_xlfn.XLOOKUP(F1256,'Raw Data'!$I$4:$I$5000,'Raw Data'!$D$4:$D$5000,\"*** Mnemonic not found ***\",0)","v":"*** Mnemonic not found ***"},"SUCMCMIGSFORECLGREAT80__",null,"Input",null,null,{"$f":"K1255+1","v":373},{"$f":"L1255","v":"J"},"Input!J373",{"$f":"_xlfn.XLOOKUP(F1256,'Raw Data'!$I$4:$I$5000,'Raw Data'!$E$4:$E$5000,100,0)","v":100},{"$f":"IF(N1256=0,_xlfn.XLOOKUP(F1256,'Raw Data'!$I$4:$I$5000,'Raw Data'!$H$4:$H$5000,\"\",0),\"\")","v":""},{"$f":"IF(INDIRECT(M1256) = \"\",\"\",INDIRECT(M1256))","v":""},"n"]
["SUCMCMIGCONSTRLESS60",null,null,null,{"$f":"_xlfn.XLOOKUP(F1257,'Raw Data'!$I$4:$I$5000,'Raw Data'!$D$4:$D$5000,\"*** Mnemonic not found ***\",0)","v":"*** Mnemonic not found ***"},"SUCMCMIGCONSTRLESS60__",null,"Input",null,null,{"$f":"K1254","v":371},"K","Input!K371",{"$f":"_xlfn.XLOOKUP(F1257,'Raw Data'!$I$4:$I$5000,'Raw Data'!$E$4:$E$5000,100,0)","v":100},{"$f":"IF(N1257=0,_xlfn.XLOOKUP(F1257,'Raw Data'!$I$4:$I$5000,'Raw Data'!$H$4:$H$5000,\"\",0),\"\")","v":""},{"$f":"IF(INDIRECT(M1257) = \"\",\"\",INDIRECT(M1257))","v":""},"n"]
["SUCMCMIGSCONSTR60_80",null,null,null,{"$f":"_xlfn.XLOOKUP(F1258,'Raw Data'!$I$4:$I$5000,'Raw Data'!$D$4:$D$5000,\"*** Mnemonic not found ***\",0)","v":"*** Mnemonic not found ***"},"SUCMCMIGSCONSTR60_80__",null,"Input",null,null,{"$f":"K1257+1","v":372},{"$f":"L1257","v":"K"},"Input!K372",{"$f":"_xlfn.XLOOKUP(F1258,'Raw Data'!$I$4:$I$5000,'Raw Data'!$E$4:$E$5000,100,0)","v":100},{"$f":"IF(N1258=0,_xlfn.XLOOKUP(F1258,'Raw Data'!$I$4:$I$5000,'Raw Data'!$H$4:$H$5000,\"\",0),\"\")","v":""},{"$f":"IF(INDIRECT(M1258) = \"\",\"\",INDIRECT(M1258))","v":""},"n"]
["SUCMCMIGSCONSTRGREAT80",null,null,null,{"$f":"_xlfn.XLOOKUP(F1259,'Raw Data'!$I$4:$I$5000,'Raw Data'!$D$4:$D$5000,\"*** Mnemonic not found ***\",0)","v":"*** Mnemonic not found ***"},"SUCMCMIGSCONSTRGREAT80__",null,"Input",null,null,{"$f":"K1258+1","v":373},{"$f":"L1258","v":"K"},"Input!K373",{"$f":"_xlfn.XLOOKUP(F1259,'Raw Data'!$I$4:$I$5000,'Raw Data'!$E$4:$E$5000,100,0)","v":100},{"$f":"IF(N1259=0,_xlfn.XLOOKUP(F1259,'Raw Data'!$I$4:$I$5000,'Raw Data'!$H$4:$H$5000,\"\",0),\"\")","v":""},{"$f":"IF(INDIRECT(M1259) = \"\",\"\",INDIRECT(M1259))","v":""},"n"]
["SUCMCMPERFORMLESS60",null,null,null,{"$f":"_xlfn.XLOOKUP(F1260,'Raw Data'!$I$4:$I$5000,'Raw Data'!$D$4:$D$5000,\"*** Mnemonic not found ***\",0)","v":"*** Mnemonic not found ***"},"SUCMCMPERFORMLESS60__","Other invested assets - Residential Mortgage","Input",{"$f":"ROW(section_other_invested_assets)","v":365},12,{"$f":"I1260+J1260","v":377},"F","Input!F377",{"$f":"_xlfn.XLOOKUP(F1260,'Raw Data'!$I$4:$I$5000,'Raw Data'!$E$4:$E$5000,100,0)","v":100},{"$f":"IF(N1260=0,_xlfn.XLOOKUP(F1260,'Raw Data'!$I$4:$I$5000,'Raw Data'!$H$4:$H$5000,\"\",0),\"\")","v":""},{"$f":"IF(INDIRECT(M1260) = \"\",\"\",INDIRECT(M1260))","v":""},"n"]
["SUCMCMPERFORM60_80",null,null,null,{"$f":"_xlfn.XLOOKUP(F1261,'Raw Data'!$I$4:$I$5000,'Raw Data'!$D$4:$D$5000,\"*** Mnemonic not found ***\",0)","v":"*** Mnemonic not found ***"},"SUCMCMPERFORM60_80__",null,"Input",null,null,{"$f":"K1260+1","v":378},{"$f":"L1260","v":"F"},"Input!F378",{"$f":"_xlfn.XLOOKUP(F1261,'Raw Data'!$I$4:$I$5000,'Raw Data'!$E$4:$E$5000,100,0)","v":100},{"$f":"IF(N1261=0,_xlfn.XLOOKUP(F1261,'Raw Data'!$I$4:$I$5000,'Raw Data'!$H$4:$H$5000,\"\",0),\"\")","v":""},{"$f":"IF(INDIRECT(M1261) = \"\",\"\",INDIRECT(M1261))","v":""},"n"]
["SUCMCMPERFORMGREAT80",null,null,null,{"$f":"_xlfn.XLOOKUP(F1262,'Raw Data'!$I$4:$I$5000,'Raw Data'!$D$4:$D$5000,\"*** Mnemonic not found ***\",0)","v":"*** Mnemonic not found ***"},"SUCMCMPERFORMGREAT80__",null,"Input",null,null,{"$f":"K1261+1","v":379},{"$f":"L1261","v":"F"},"Input!F379",{"$f":"_xlfn.XLOOKUP(F1262,'Raw Data'!$I$4:$I$5000,'Raw Data'!$E$4:$E$5000,100,0)","v":100},{"$f":"IF(N1262=0,_xlfn.XLOOKUP(F1262,'Raw Data'!$I$4:$I$5000,'Raw Data'!$H$4:$H$5000,\"\",0),\"\")","v":""},{"$f":"IF(INDIRECT(M1262) = \"\",\"\",INDIRECT(M1262))","v":""},"n"]
["SUCMCMNONPERLESS60",null,null,null,{"$f":"_xlfn.XLOOKUP(F1263,'Raw Data'!$I$4:$I$5000,'Raw Data'!$D$4:$D$5000,\"*** Mnemonic not found ***\",0)","v":"*** Mnemonic not found ***"},"SUCMCMNONPERLESS60__",null,"Input",null,null,{"$f":"K1260","v":377},"G","Input!G377",{"$f":"_xlfn.XLOOKUP(F1263,'Raw Data'!$I$4:$I$5000,'Raw Data'!$E$4:$E$5000,100,0)","v":100},{"$f":"IF(N1263=0,_xlfn.XLOOKUP(F1263,'Raw Data'!$I$4:$I$5000,'Raw Data'!$H$4:$H$5000,\"\",0),\"\")","v":""},{"$f":"IF(INDIRECT(M1263) = \"\",\"\",INDIRECT(M1263))","v":""},"n"]
["SUCMCMNONPER60_80",null,null,null,{"$f":"_xlfn.XLOOKUP(F1264,'Raw Data'!$I$4:$I$5000,'Raw Data'!$D$4:$D$5000,\"*** Mnemonic not found ***\",0)","v":"*** Mnemonic not found ***"},"SUCMCMNONPER60_80__",null,"Input",null,null,{"$f":"K1263+1","v":378},{"$f":"L1263","v":"G"},"Input!G378",{"$f":"_xlfn.XLOOKUP(F1264,'Raw Data'!$I$4:$I$5000,'Raw Data'!$E$4:$E$5000,100,0)","v":100},{"$f":"IF(N1264=0,_xlfn.XLOOKUP(F1264,'Raw Data'!$I$4:$I$5000,'Raw Data'!$H$4:$H$5000,\"\",0),\"\")","v":""},{"$f":"IF(INDIRECT(M1264) = \"\",\"\",INDIRECT(M1264))","v":""},"n"]
["SUCMCMNONPERGREAT80",null,null,null,{"$f":"_xlfn.XLOOKUP(F1265,'Raw Data'!$I$4:$I$5000,'Raw Data'!$D$4:$D$5000,\"*** Mnemonic not found ***\",0)","v":"*** Mnemonic not found ***"},"SUCMCMNONPERGREAT80__",null,"Input",null,null,{"$f":"K1264+1","v":379},{"$f":"L1264","v":"G"},"Input!G379",{"$f":"_xlfn.XLOOKUP(F1265,'Raw Data'!$I$4:$I$5000,'Raw Data'!$E$4:$E$5000,100,0)","v":100},{"$f":"IF(N1265=0,_xlfn.XLOOKUP(F1265,'Raw Data'!$I$4:$I$5000,'Raw Data'!$H$4:$H$5000,\"\",0),\"\")","v":""},{"$f":"IF(INDIRECT(M1265) = \"\",\"\",INDIRECT(M1265))","v":""},"n"]
["SUCMOTCDERIV",null,null,null,{"$f":"_xlfn.XLOOKUP(F1266,'Raw Data'!$I$4:$I$5000,'Raw Data'!$D$4:$D$5000,\"*** Mnemonic not found ***\",0)","v":"*** Mnemonic not found ***"},"SUCMOTCDERIV__","Other invested assets - Non-mortgage","Input",{"$f":"ROW(section_other_invested_assets)","v":365},17,{"$f":"I1266+J1266","v":382},"F","Input!F382",{"$f":"_xlfn.XLOOKUP(F1266,'Raw Data'!$I$4:$I$5000,'Raw Data'!$E$4:$E$5000,100,0)","v":100},{"$f":"IF(N1266=0,_xlfn.XLOOKUP(F1266,'Raw Data'!$I$4:$I$5000,'Raw Data'!$H$4:$H$5000,\"\",0),\"\")","v":""},{"$f":"IF(INDIRECT(M1266) = \"\",\"\",INDIRECT(M1266))","v":""},"n"]
["SUCMBANKDEPA",null,null,null,{"$f":"_xlfn.XLOOKUP(F1267,'Raw Data'!$I$4:$I$5000,'Raw Data'!$D$4:$D$5000,\"*** Mnemonic not found ***\",0)","v":"*** Mnemonic not found ***"},"SUCMBANKDEPA__",null,"Input",{"$f":"ROW(section_other_invested_assets)","v":365},20,{"$f":"I1267+J1267","v":385},{"$f":"L1266","v":"F"},{"$f":"CONCATENATE(H1267,\"!\",L1267,K1267)","v":"Input!F385"},{"$f":"_xlfn.XLOOKUP(F1267,'Raw Data'!$I$4:$I$5000,'Raw Data'!$E$4:$E$5000,100,0)","v":100},{"$f":"IF(N1267=0,_xlfn.XLOOKUP(F1267,'Raw Data'!$I$4:$I$5000,'Raw Data'!$H$4:$H$5000,\"\",0),\"\")","v":""},{"$f":"IF(INDIRECT(M1267) = \"\",\"\",INDIRECT(M1267))","v":""},"n"]
["SUCMBANKDEPBBB",null,null,null,{"$f":"_xlfn.XLOOKUP(F1268,'Raw Data'!$I$4:$I$5000,'Raw Data'!$D$4:$D$5000,\"*** Mnemonic not found ***\",0)","v":"*** Mnemonic not found ***"},"SUCMBANKDEPBBB__",null,"Input",null,null,{"$f":"K1267+1","v":386},{"$f":"L1267","v":"F"},"Input!F386",{"$f":"_xlfn.XLOOKUP(F1268,'Raw Data'!$I$4:$I$5000,'Raw Data'!$E$4:$E$5000,100,0)","v":100},{"$f":"IF(N1268=0,_xlfn.XLOOKUP(F1268,'Raw Data'!$I$4:$I$5000,'Raw Data'!$H$4:$H$5000,\"\",0),\"\")","v":""},{"$f":"IF(INDIRECT(M1268) = \"\",\"\",INDIRECT(M1268))","v":""},"n"]
["SUCMBANKDEPBB",null,null,null,{"$f":"_xlfn.XLOOKUP(F1269,'Raw Data'!$I$4:$I$5000,'Raw Data'!$D$4:$D$5000,\"*** Mnemonic not found ***\",0)","v":"*** Mnemonic not found ***"},"SUCMBANKDEPBB__",null,"Input",null,null,{"$f":"K1268+1","v":387},{"$f":"L1268","v":"F"},"Input!F387",{"$f":"_xlfn.XLOOKUP(F1269,'Raw Data'!$I$4:$I$5000,'Raw Data'!$E$4:$E$5000,100,0)","v":100},{"$f":"IF(N1269=0,_xlfn.XLOOKUP(F1269,'Raw Data'!$I$4:$I$5000,'Raw Data'!$H$4:$H$5000,\"\",0),\"\")","v":""},{"$f":"IF(INDIRECT(M1269) = \"\",\"\",INDIRECT(M1269))","v":""},"n"]
["SUCMBANKDEPCCC",null,null,null,{"$f":"_xlfn.XLOOKUP(F1270,'Raw Data'!$I$4:$I$5000,'Raw Data'!$D$4:$D$5000,\"*** Mnemonic not found ***\",0)","v":"*** Mnemonic not found ***"},"SUCMBANKDEPCCC__",null,"Input",null,null,388,"F","Input!F388",{"$f":"_xlfn.XLOOKUP(F1270,'Raw Data'!$I$4:$I$5000,'Raw Data'!$E$4:$E$5000,100,0)","v":100},{"$f":"IF(N1270=0,_xlfn.XLOOKUP(F1270,'Raw Data'!$I$4:$I$5000,'Raw Data'!$H$4:$H$5000,\"\",0),\"\")","v":""},{"$f":"IF(INDIRECT(M1270) = \"\",\"\",INDIRECT(M1270))","v":""},"n"]
["SUCMBANKDEPCED",null,null,null,{"$f":"_xlfn.XLOOKUP(F1271,'Raw Data'!$I$4:$I$5000,'Raw Data'!$D$4:$D$5000,\"*** Mnemonic not found ***\",0)","v":"*** Mnemonic not found ***"},"SUCMBANKDEPCED__",null,"Input",{"$f":"ROW(section_other_invested_assets)","v":365},25,{"$f":"I1271+J1271","v":390},"F","Input!F390",{"$f":"_xlfn.XLOOKUP(F1271,'Raw Data'!$I$4:$I$5000,'Raw Data'!$E$4:$E$5000,100,0)","v":100},{"$f":"IF(N1271=0,_xlfn.XLOOKUP(F1271,'Raw Data'!$I$4:$I$5000,'Raw Data'!$H$4:$H$5000,\"\",0),\"\")","v":""},{"$f":"IF(INDIRECT(M1271) = \"\",\"\",INDIRECT(M1271))","v":""},"n"]
["SUCMTOTINVASST",null,null,null,{"$f":"_xlfn.XLOOKUP(F1272,'Raw Data'!$I$4:$I$5000,'Raw Data'!$D$4:$D$5000,\"*** Mnemonic not found ***\",0)","v":"*** Mnemonic not found ***"},"SUCMTOTINVASST__",null,"Input",{"$f":"ROW(section_other_invested_assets)","v":365},27,{"$f":"I1272+J1272","v":392},"F","Input!F392",{"$f":"_xlfn.XLOOKUP(F1272,'Raw Data'!$I$4:$I$5000,'Raw Data'!$E$4:$E$5000,100,0)","v":100},{"$f":"IF(N1272=0,_xlfn.XLOOKUP(F1272,'Raw Data'!$I$4:$I$5000,'Raw Data'!$H$4:$H$5000,\"\",0),\"\")","v":""},{"$f":"IF(INDIRECT(M1272) = \"\",\"\",INDIRECT(M1272))","v":""},"n"]
["SUCMSPRRDUEAAA",null,null,null,{"$f":"_xlfn.XLOOKUP(F1273,'Raw Data'!$I$4:$I$5000,'Raw Data'!$D$4:$D$5000,\"*** Mnemonic not found ***\",0)","v":"*** Mnemonic not found ***"},"SUCMSPRRDUEAAA__","Non-invested assets - Reinsurance Recoverables","Input",{"$f":"ROW(section_non_invested_assets)","v":395},4,{"$f":"I1273+J1273","v":399},"F","Input!F399",{"$f":"_xlfn.XLOOKUP(F1273,'Raw Data'!$I$4:$I$5000,'Raw Data'!$E$4:$E$5000,100,0)","v":100},{"$f":"IF(N1273=0,_xlfn.XLOOKUP(F1273,'Raw Data'!$I$4:$I$5000,'Raw Data'!$H$4:$H$5000,\"\",0),\"\")","v":""},{"$f":"IF(INDIRECT(M1273) = \"\",\"\",INDIRECT(M1273))","v":""},"n"]
["SUCMSPRRDUEAA",null,null,null,{"$f":"_xlfn.XLOOKUP(F1274,'Raw Data'!$I$4:$I$5000,'Raw Data'!$D$4:$D$5000,\"*** Mnemonic not found ***\",0)","v":"*** Mnemonic not found ***"},"SUCMSPRRDUEAA__",null,"Input",null,null,{"$f":"K1273+1","v":400},"F","Input!F400",{"$f":"_xlfn.XLOOKUP(F1274,'Raw Data'!$I$4:$I$5000,'Raw Data'!$E$4:$E$5000,100,0)","v":100},{"$f":"IF(N1274=0,_xlfn.XLOOKUP(F1274,'Raw Data'!$I$4:$I$5000,'Raw Data'!$H$4:$H$5000,\"\",0),\"\")","v":""},{"$f":"IF(INDIRECT(M1274) = \"\",\"\",INDIRECT(M1274))","v":""},"n"]
["SUCMSPRRDUEA",null,null,null,{"$f":"_xlfn.XLOOKUP(F1275,'Raw Data'!$I$4:$I$5000,'Raw Data'!$D$4:$D$5000,\"*** Mnemonic not found ***\",0)","v":"*** Mnemonic not found ***"},"SUCMSPRRDUEA__",null,"Input",null,null,{"$f":"K1274+1","v":401},"F","Input!F401",{"$f":"_xlfn.XLOOKUP(F1275,'Raw Data'!$I$4:$I$5000,'Raw Data'!$E$4:$E$5000,100,0)","v":100},{"$f":"IF(N1275=0,_xlfn.XLOOKUP(F1275,'Raw Data'!$I$4:$I$5000,'Raw Data'!$H$4:$H$5000,\"\",0),\"\")","v":""},{"$f":"IF(INDIRECT(M1275) = \"\",\"\",INDIRECT(M1275))","v":""},"n"]
["SUCMSPRRDUEBBB",null,null,null,{"$f":"_xlfn.XLOOKUP(F1276,'Raw Data'!$I$4:$I$5000,'Raw Data'!$D$4:$D$5000,\"*** Mnemonic not found ***\",0)","v":"*** Mnemonic not found ***"},"SUCMSPRRDUEBBB__",null,"Input",null,null,402,"F","Input!F402",{"$f":"_xlfn.XLOOKUP(F1276,'Raw Data'!$I$4:$I$5000,'Raw Data'!$E$4:$E$5000,100,0)","v":100},{"$f":"IF(N1276=0,_xlfn.XLOOKUP(F1276,'Raw Data'!$I$4:$I$5000,'Raw Data'!$H$4:$H$5000,\"\",0),\"\")","v":""},{"$f":"IF(INDIRECT(M1276) = \"\",\"\",INDIRECT(M1276))","v":""},"n"]
["SUCMSPRRDUEBB",null,null,null,{"$f":"_xlfn.XLOOKUP(F1277,'Raw Data'!$I$4:$I$5000,'Raw Data'!$D$4:$D$5000,\"*** Mnemonic not found ***\",0)","v":"*** Mnemonic not found ***"},"SUCMSPRRDUEBB__",null,"Input",null,null,403,"F","Input!F403",{"$f":"_xlfn.XLOOKUP(F1277,'Raw Data'!$I$4:$I$5000,'Raw Data'!$E$4:$E$5000,100,0)","v":100},{"$f":"IF(N1277=0,_xlfn.XLOOKUP(F1277,'Raw Data'!$I$4:$I$5000,'Raw Data'!$H$4:$H$5000,\"\",0),\"\")","v":""},{"$f":"IF(INDIRECT(M1277) = \"\",\"\",INDIRECT(M1277))","v":""},"n"]
["SUCMSPRRDUEB",null,null,null,{"$f":"_xlfn.XLOOKUP(F1278,'Raw Data'!$I$4:$I$5000,'Raw Data'!$D$4:$D$5000,\"*** Mnemonic not found ***\",0)","v":"*** Mnemonic not found ***"},"SUCMSPRRDUEB__",null,"Input",null,null,404,"F","Input!F404",{"$f":"_xlfn.XLOOKUP(F1278,'Raw Data'!$I$4:$I$5000,'Raw Data'!$E$4:$E$5000,100,0)","v":100},{"$f":"IF(N1278=0,_xlfn.XLOOKUP(F1278,'Raw Data'!$I$4:$I$5000,'Raw Data'!$H$4:$H$5000,\"\",0),\"\")","v":""},{"$f":"IF(INDIRECT(M1278) = \"\",\"\",INDIRECT(M1278))","v":""},"n"]
["SUCMSPRRDUECCC",null,null,null,{"$f":"_xlfn.XLOOKUP(F1279,'Raw Data'!$I$4:$I$5000,'Raw Data'!$D$4:$D$5000,\"*** Mnemonic not found ***\",0)","v":"*** Mnemonic not found ***"},"SUCMSPRRDUECCC__",null,"Input",null,null,405,"F","Input!F405",{"$f":"_xlfn.XLOOKUP(F1279,'Raw Data'!$I$4:$I$5000,'Raw Data'!$E$4:$E$5000,100,0)","v":100},{"$f":"IF(N1279=0,_xlfn.XLOOKUP(F1279,'Raw Data'!$I$4:$I$5000,'Raw Data'!$H$4:$H$5000,\"\",0),\"\")","v":""},{"$f":"IF(INDIRECT(M1279) = \"\",\"\",INDIRECT(M1279))","v":""},"n"]
["SUCMSPRRDUED",null,null,null,{"$f":"_xlfn.XLOOKUP(F1280,'Raw Data'!$I$4:$I$5000,'Raw Data'!$D$4:$D$5000,\"*** Mnemonic not found ***\",0)","v":"*** Mnemonic not found ***"},"SUCMSPRRDUED__",null,"Input",null,null,406,"F","Input!F406",{"$f":"_xlfn.XLOOKUP(F1280,'Raw Data'!$I$4:$I$5000,'Raw Data'!$E$4:$E$5000,100,0)","v":100},{"$f":"IF(N1280=0,_xlfn.XLOOKUP(F1280,'Raw Data'!$I$4:$I$5000,'Raw Data'!$H$4:$H$5000,\"\",0),\"\")","v":""},{"$f":"IF(INDIRECT(M1280) = \"\",\"\",INDIRECT(M1280))","v":""},"n"]
["SUCMSPRROSIBNRAAA",null,null,null,{"$f":"_xlfn.XLOOKUP(F1281,'Raw Data'!$I$4:$I$5000,'Raw Data'!$D$4:$D$5000,\"*** Mnemonic not found ***\",0)","v":"*** Mnemonic not found ***"},"SUCMSPRROSIBNRAAA__",null,"Input",{"$f":"ROW(section_non_invested_assets)","v":395},{"$f":"J1273","v":4},{"$f":"I1281+J1281","v":399},"G","Input!G399",{"$f":"_xlfn.XLOOKUP(F1281,'Raw Data'!$I$4:$I$5000,'Raw Data'!$E$4:$E$5000,100,0)","v":100},{"$f":"IF(N1281=0,_xlfn.XLOOKUP(F1281,'Raw Data'!$I$4:$I$5000,'Raw Data'!$H$4:$H$5000,\"\",0),\"\")","v":""},{"$f":"IF(INDIRECT(M1281) = \"\",\"\",INDIRECT(M1281))","v":""},"n"]
["SUCMSPRROSIBNRAA",null,null,null,{"$f":"_xlfn.XLOOKUP(F1282,'Raw Data'!$I$4:$I$5000,'Raw Data'!$D$4:$D$5000,\"*** Mnemonic not found ***\",0)","v":"*** Mnemonic not found ***"},"SUCMSPRROSIBNRAA__",null,"Input",null,null,{"$f":"K1281+1","v":400},{"$f":"L1281","v":"G"},"Input!G400",{"$f":"_xlfn.XLOOKUP(F1282,'Raw Data'!$I$4:$I$5000,'Raw Data'!$E$4:$E$5000,100,0)","v":100},{"$f":"IF(N1282=0,_xlfn.XLOOKUP(F1282,'Raw Data'!$I$4:$I$5000,'Raw Data'!$H$4:$H$5000,\"\",0),\"\")","v":""},{"$f":"IF(INDIRECT(M1282) = \"\",\"\",INDIRECT(M1282))","v":""},"n"]
["SUCMSPRROSIBNRA",null,null,null,{"$f":"_xlfn.XLOOKUP(F1283,'Raw Data'!$I$4:$I$5000,'Raw Data'!$D$4:$D$5000,\"*** Mnemonic not found ***\",0)","v":"*** Mnemonic not found ***"},"SUCMSPRROSIBNRA__",null,"Input",null,null,{"$f":"K1282+1","v":401},"G","Input!G401",{"$f":"_xlfn.XLOOKUP(F1283,'Raw Data'!$I$4:$I$5000,'Raw Data'!$E$4:$E$5000,100,0)","v":100},{"$f":"IF(N1283=0,_xlfn.XLOOKUP(F1283,'Raw Data'!$I$4:$I$5000,'Raw Data'!$H$4:$H$5000,\"\",0),\"\")","v":""},{"$f":"IF(INDIRECT(M1283) = \"\",\"\",INDIRECT(M1283))","v":""},"n"]
["SUCMSPRROSIBNRBBB",null,null,null,{"$f":"_xlfn.XLOOKUP(F1284,'Raw Data'!$I$4:$I$5000,'Raw Data'!$D$4:$D$5000,\"*** Mnemonic not found ***\",0)","v":"*** Mnemonic not found ***"},"SUCMSPRROSIBNRBBB__",null,"Input",null,null,402,"G","Input!G402",{"$f":"_xlfn.XLOOKUP(F1284,'Raw Data'!$I$4:$I$5000,'Raw Data'!$E$4:$E$5000,100,0)","v":100},{"$f":"IF(N1284=0,_xlfn.XLOOKUP(F1284,'Raw Data'!$I$4:$I$5000,'Raw Data'!$H$4:$H$5000,\"\",0),\"\")","v":""},{"$f":"IF(INDIRECT(M1284) = \"\",\"\",INDIRECT(M1284))","v":""},"n"]
["SUCMSPRROSIBNRBB",null,null,null,{"$f":"_xlfn.XLOOKUP(F1285,'Raw Data'!$I$4:$I$5000,'Raw Data'!$D$4:$D$5000,\"*** Mnemonic not found ***\",0)","v":"*** Mnemonic not found ***"},"SUCMSPRROSIBNRBB__",null,"Input",null,null,403,"G","Input!G403",{"$f":"_xlfn.XLOOKUP(F1285,'Raw Data'!$I$4:$I$5000,'Raw Data'!$E$4:$E$5000,100,0)","v":100},{"$f":"IF(N1285=0,_xlfn.XLOOKUP(F1285,'Raw Data'!$I$4:$I$5000,'Raw Data'!$H$4:$H$5000,\"\",0),\"\")","v":""},{"$f":"IF(INDIRECT(M1285) = \"\",\"\",INDIRECT(M1285))","v":""},"n"]
["SUCMSPRROSIBNRB",null,null,null,{"$f":"_xlfn.XLOOKUP(F1286,'Raw Data'!$I$4:$I$5000,'Raw Data'!$D$4:$D$5000,\"*** Mnemonic not found ***\",0)","v":"*** Mnemonic not found ***"},"SUCMSPRROSIBNRB__",null,"Input",null,null,404,"G","Input!G404",{"$f":"_xlfn.XLOOKUP(F1286,'Raw Data'!$I$4:$I$5000,'Raw Data'!$E$4:$E$5000,100,0)","v":100},{"$f":"IF(N1286=0,_xlfn.XLOOKUP(F1286,'Raw Data'!$I$4:$I$5000,'Raw Data'!$H$4:$H$5000,\"\",0),\"\")","v":""},{"$f":"IF(INDIRECT(M1286) = \"\",\"\",INDIRECT(M1286))","v":""},"n"]
["SUCMSPRROSIBNRCCC",null,null,null,{"$f":"_xlfn.XLOOKUP(F1287,'Raw Data'!$I$4:$I$5000,'Raw Data'!$D$4:$D$5000,\"*** Mnemonic not found ***\",0)","v":"*** Mnemonic not found ***"},{"$f":"CONCATENATE(A1287,\"_\",B1287,\"_\",D1287)","v":"SUCMSPRROSIBNRCCC__"},null,"Input",null,null,405,"G","Input!G405",{"$f":"_xlfn.XLOOKUP(F1287,'Raw Data'!$I$4:$I$5000,'Raw Data'!$E$4:$E$5000,100,0)","v":100},{"$f":"IF(N1287=0,_xlfn.XLOOKUP(F1287,'Raw Data'!$I$4:$I$5000,'Raw Data'!$H$4:$H$5000,\"\",0),\"\")","v":""},{"$f":"IF(INDIRECT(M1287) = \"\",\"\",INDIRECT(M1287))","v":""},"n"]
["SUCMSPRROSIBNRD",null,null,null,{"$f":"_xlfn.XLOOKUP(F1288,'Raw Data'!$I$4:$I$5000,'Raw Data'!$D$4:$D$5000,\"*** Mnemonic not found ***\",0)","v":"*** Mnemonic not found ***"},"SUCMSPRROSIBNRD__",null,"Input",null,null,406,"G","Input!G406",{"$f":"_xlfn.XLOOKUP(F1288,'Raw Data'!$I$4:$I$5000,'Raw Data'!$E$4:$E$5000,100,0)","v":100},{"$f":"IF(N1288=0,_xlfn.XLOOKUP(F1288,'Raw Data'!$I$4:$I$5000,'Raw Data'!$H$4:$H$5000,\"\",0),\"\")","v":""},{"$f":"IF(INDIRECT(M1288) = \"\",\"\",INDIRECT(M1288))","v":""},"n"]
["SUCMSPRRLOCREINAAA",null,null,null,{"$f":"_xlfn.XLOOKUP(F1289,'Raw Data'!$I$4:$I$5000,'Raw Data'!$D$4:$D$5000,\"*** Mnemonic not found ***\",0)","v":"*** Mnemonic not found ***"},"SUCMSPRRLOCREINAAA__",null,"Input",{"$f":"ROW(section_non_invested_assets)","v":395},{"$f":"J1281","v":4},{"$f":"I1289+J1289","v":399},"H","Input!H399",{"$f":"_xlfn.XLOOKUP(F1289,'Raw Data'!$I$4:$I$5000,'Raw Data'!$E$4:$E$5000,100,0)","v":100},{"$f":"IF(N1289=0,_xlfn.XLOOKUP(F1289,'Raw Data'!$I$4:$I$5000,'Raw Data'!$H$4:$H$5000,\"\",0),\"\")","v":""},{"$f":"IF(INDIRECT(M1289) = \"\",\"\",INDIRECT(M1289))","v":""},"n"]
["SUCMSPRRLOCREINAA",null,null,null,{"$f":"_xlfn.XLOOKUP(F1290,'Raw Data'!$I$4:$I$5000,'Raw Data'!$D$4:$D$5000,\"*** Mnemonic not found ***\",0)","v":"*** Mnemonic not found ***"},"SUCMSPRRLOCREINAA__",null,"Input",null,null,{"$f":"K1289+1","v":400},{"$f":"L1289","v":"H"},"Input!H400",{"$f":"_xlfn.XLOOKUP(F1290,'Raw Data'!$I$4:$I$5000,'Raw Data'!$E$4:$E$5000,100,0)","v":100},{"$f":"IF(N1290=0,_xlfn.XLOOKUP(F1290,'Raw Data'!$I$4:$I$5000,'Raw Data'!$H$4:$H$5000,\"\",0),\"\")","v":""},{"$f":"IF(INDIRECT(M1290) = \"\",\"\",INDIRECT(M1290))","v":""},"n"]
["SUCMSPRRLOCREINA",null,null,null,{"$f":"_xlfn.XLOOKUP(F1291,'Raw Data'!$I$4:$I$5000,'Raw Data'!$D$4:$D$5000,\"*** Mnemonic not found ***\",0)","v":"*** Mnemonic not found ***"},"SUCMSPRRLOCREINA__",null,"Input",null,null,{"$f":"K1290+1","v":401},"H","Input!H401",{"$f":"_xlfn.XLOOKUP(F1291,'Raw Data'!$I$4:$I$5000,'Raw Data'!$E$4:$E$5000,100,0)","v":100},{"$f":"IF(N1291=0,_xlfn.XLOOKUP(F1291,'Raw Data'!$I$4:$I$5000,'Raw Data'!$H$4:$H$5000,\"\",0),\"\")","v":""},{"$f":"IF(INDIRECT(M1291) = \"\",\"\",INDIRECT(M1291))","v":""},"n"]
["SUCMSPRRLOCREINBBB",null,null,null,{"$f":"_xlfn.XLOOKUP(F1292,'Raw Data'!$I$4:$I$5000,'Raw Data'!$D$4:$D$5000,\"*** Mnemonic not found ***\",0)","v":"*** Mnemonic not found ***"},"SUCMSPRRLOCREINBBB__",null,"Input",null,null,402,"H","Input!H402",{"$f":"_xlfn.XLOOKUP(F1292,'Raw Data'!$I$4:$I$5000,'Raw Data'!$E$4:$E$5000,100,0)","v":100},{"$f":"IF(N1292=0,_xlfn.XLOOKUP(F1292,'Raw Data'!$I$4:$I$5000,'Raw Data'!$H$4:$H$5000,\"\",0),\"\")","v":""},{"$f":"IF(INDIRECT(M1292) = \"\",\"\",INDIRECT(M1292))","v":""},"n"]
["SUCMSPRRLOCREINBB",null,null,null,{"$f":"_xlfn.XLOOKUP(F1293,'Raw Data'!$I$4:$I$5000,'Raw Data'!$D$4:$D$5000,\"*** Mnemonic not found ***\",0)","v":"*** Mnemonic not found ***"},"SUCMSPRRLOCREINBB__",null,"Input",null,null,403,"H","Input!H403",{"$f":"_xlfn.XLOOKUP(F1293,'Raw Data'!$I$4:$I$5000,'Raw Data'!$E$4:$E$5000,100,0)","v":100},{"$f":"IF(N1293=0,_xlfn.XLOOKUP(F1293,'Raw Data'!$I$4:$I$5000,'Raw Data'!$H$4:$H$5000,\"\",0),\"\")","v":""},{"$f":"IF(INDIRECT(M1293) = \"\",\"\",INDIRECT(M1293))","v":""},"n"]
["SUCMSPRRLOCREINB",null,null,null,{"$f":"_xlfn.XLOOKUP(F1294,'Raw Data'!$I$4:$I$5000,'Raw Data'!$D$4:$D$5000,\"*** Mnemonic not found ***\",0)","v":"*** Mnemonic not found ***"},"SUCMSPRRLOCREINB__",null,"Input",null,null,404,"H","Input!H404",{"$f":"_xlfn.XLOOKUP(F1294,'Raw Data'!$I$4:$I$5000,'Raw Data'!$E$4:$E$5000,100,0)","v":100},{"$f":"IF(N1294=0,_xlfn.XLOOKUP(F1294,'Raw Data'!$I$4:$I$5000,'Raw Data'!$H$4:$H$5000,\"\",0),\"\")","v":""},{"$f":"IF(INDIRECT(M1294) = \"\",\"\",INDIRECT(M1294))","v":""},"n"]
["SUCMSPRRLOCREINCCC",null,null,null,{"$f":"_xlfn.XLOOKUP(F1295,'Raw Data'!$I$4:$I$5000,'Raw Data'!$D$4:$D$5000,\"*** Mnemonic not found ***\",0)","v":"*** Mnemonic not found ***"},"SUCMSPRRLOCREINCCC__",null,"Input",null,null,405,"H","Input!H405",{"$f":"_xlfn.XLOOKUP(F1295,'Raw Data'!$I$4:$I$5000,'Raw Data'!$E$4:$E$5000,100,0)","v":100},{"$f":"IF(N1295=0,_xlfn.XLOOKUP(F1295,'Raw Data'!$I$4:$I$5000,'Raw Data'!$H$4:$H$5000,\"\",0),\"\")","v":""},{"$f":"IF(INDIRECT(M1295) = \"\",\"\",INDIRECT(M1295))","v":""},"n"]
["SUCMSPRRLOCREIND",null,null,null,{"$f":"_xlfn.XLOOKUP(F1296,'Raw Data'!$I$4:$I$5000,'Raw Data'!$D$4:$D$5000,\"*** Mnemonic not found ***\",0)","v":"*** Mnemonic not found ***"},"SUCMSPRRLOCREIND__",null,"Input",null,null,406,"H","Input!H406",{"$f":"_xlfn.XLOOKUP(F1296,'Raw Data'!$I$4:$I$5000,'Raw Data'!$E$4:$E$5000,100,0)","v":100},{"$f":"IF(N1296=0,_xlfn.XLOOKUP(F1296,'Raw Data'!$I$4:$I$5000,'Raw Data'!$H$4:$H$5000,\"\",0),\"\")","v":""},{"$f":"IF(INDIRECT(M1296) = \"\",\"\",INDIRECT(M1296))","v":""},"n"]
["SUCMALTRRDUEAAA",null,null,null,{"$f":"_xlfn.XLOOKUP(F1297,'Raw Data'!$I$4:$I$5000,'Raw Data'!$D$4:$D$5000,\"*** Mnemonic not found ***\",0)","v":"*** Mnemonic not found ***"},"SUCMALTRRDUEAAA__","Non-invested assets - Reinsurance Recoverables","Input",{"$f":"ROW(section_non_invested_assets)","v":395},15,{"$f":"I1297+J1297","v":410},"F","Input!F410",{"$f":"_xlfn.XLOOKUP(F1297,'Raw Data'!$I$4:$I$5000,'Raw Data'!$E$4:$E$5000,100,0)","v":100},{"$f":"IF(N1297=0,_xlfn.XLOOKUP(F1297,'Raw Data'!$I$4:$I$5000,'Raw Data'!$H$4:$H$5000,\"\",0),\"\")","v":""},{"$f":"IF(INDIRECT(M1297) = \"\",\"\",INDIRECT(M1297))","v":""},"n"]
["SUCMALTRRDUEAA",null,null,null,{"$f":"_xlfn.XLOOKUP(F1298,'Raw Data'!$I$4:$I$5000,'Raw Data'!$D$4:$D$5000,\"*** Mnemonic not found ***\",0)","v":"*** Mnemonic not found ***"},"SUCMALTRRDUEAA__",null,"Input",null,null,{"$f":"K1297+1","v":411},{"$f":"L1297","v":"F"},"Input!F411",{"$f":"_xlfn.XLOOKUP(F1298,'Raw Data'!$I$4:$I$5000,'Raw Data'!$E$4:$E$5000,100,0)","v":100},{"$f":"IF(N1298=0,_xlfn.XLOOKUP(F1298,'Raw Data'!$I$4:$I$5000,'Raw Data'!$H$4:$H$5000,\"\",0),\"\")","v":""},{"$f":"IF(INDIRECT(M1298) = \"\",\"\",INDIRECT(M1298))","v":""},"n"]
["SUCMALTRRDUEA",null,null,null,{"$f":"_xlfn.XLOOKUP(F1299,'Raw Data'!$I$4:$I$5000,'Raw Data'!$D$4:$D$5000,\"*** Mnemonic not found ***\",0)","v":"*** Mnemonic not found ***"},"SUCMALTRRDUEA__",null,"Input",null,null,{"$f":"K1298+1","v":412},"F","Input!F412",{"$f":"_xlfn.XLOOKUP(F1299,'Raw Data'!$I$4:$I$5000,'Raw Data'!$E$4:$E$5000,100,0)","v":100},{"$f":"IF(N1299=0,_xlfn.XLOOKUP(F1299,'Raw Data'!$I$4:$I$5000,'Raw Data'!$H$4:$H$5000,\"\",0),\"\")","v":""},{"$f":"IF(INDIRECT(M1299) = \"\",\"\",INDIRECT(M1299))","v":""},"n"]
["SUCMALTRRDUEBBB",null,null,null,{"$f":"_xlfn.XLOOKUP(F1300,'Raw Data'!$I$4:$I$5000,'Raw Data'!$D$4:$D$5000,\"*** Mnemonic not found ***\",0)","v":"*** Mnemonic not found ***"},"SUCMALTRRDUEBBB__",null,"Input",null,null,413,"F","Input!F413",{"$f":"_xlfn.XLOOKUP(F1300,'Raw Data'!$I$4:$I$5000,'Raw Data'!$E$4:$E$5000,100,0)","v":100},{"$f":"IF(N1300=0,_xlfn.XLOOKUP(F1300,'Raw Data'!$I$4:$I$5000,'Raw Data'!$H$4:$H$5000,\"\",0),\"\")","v":""},{"$f":"IF(INDIRECT(M1300) = \"\",\"\",INDIRECT(M1300))","v":""},"n"]
["SUCMALTRRDUEBB",null,null,null,{"$f":"_xlfn.XLOOKUP(F1301,'Raw Data'!$I$4:$I$5000,'Raw Data'!$D$4:$D$5000,\"*** Mnemonic not found ***\",0)","v":"*** Mnemonic not found ***"},"SUCMALTRRDUEBB__",null,"Input",null,null,414,"F","Input!F414",{"$f":"_xlfn.XLOOKUP(F1301,'Raw Data'!$I$4:$I$5000,'Raw Data'!$E$4:$E$5000,100,0)","v":100},{"$f":"IF(N1301=0,_xlfn.XLOOKUP(F1301,'Raw Data'!$I$4:$I$5000,'Raw Data'!$H$4:$H$5000,\"\",0),\"\")","v":""},{"$f":"IF(INDIRECT(M1301) = \"\",\"\",INDIRECT(M1301))","v":""},"n"]
["SUCMALTRRDUEB",null,null,null,{"$f":"_xlfn.XLOOKUP(F1302,'Raw Data'!$I$4:$I$5000,'Raw Data'!$D$4:$D$5000,\"*** Mnemonic not found ***\",0)","v":"*** Mnemonic not found ***"},"SUCMALTRRDUEB__",null,"Input",null,null,415,"F","Input!F415",{"$f":"_xlfn.XLOOKUP(F1302,'Raw Data'!$I$4:$I$5000,'Raw Data'!$E$4:$E$5000,100,0)","v":100},{"$f":"IF(N1302=0,_xlfn.XLOOKUP(F1302,'Raw Data'!$I$4:$I$5000,'Raw Data'!$H$4:$H$5000,\"\",0),\"\")","v":""},{"$f":"IF(INDIRECT(M1302) = \"\",\"\",INDIRECT(M1302))","v":""},"n"]
["SUCMALTRRDUECCC",null,null,null,{"$f":"_xlfn.XLOOKUP(F1303,'Raw Data'!$I$4:$I$5000,'Raw Data'!$D$4:$D$5000,\"*** Mnemonic not found ***\",0)","v":"*** Mnemonic not found ***"},"SUCMALTRRDUECCC__",null,"Input",null,null,416,"F","Input!F416",{"$f":"_xlfn.XLOOKUP(F1303,'Raw Data'!$I$4:$I$5000,'Raw Data'!$E$4:$E$5000,100,0)","v":100},{"$f":"IF(N1303=0,_xlfn.XLOOKUP(F1303,'Raw Data'!$I$4:$I$5000,'Raw Data'!$H$4:$H$5000,\"\",0),\"\")","v":""},{"$f":"IF(INDIRECT(M1303) = \"\",\"\",INDIRECT(M1303))","v":""},"n"]
["SUCMALTRRDUED",null,null,null,{"$f":"_xlfn.XLOOKUP(F1304,'Raw Data'!$I$4:$I$5000,'Raw Data'!$D$4:$D$5000,\"*** Mnemonic not found ***\",0)","v":"*** Mnemonic not found ***"},"SUCMALTRRDUED__",null,"Input",null,null,417,"F","Input!F417",{"$f":"_xlfn.XLOOKUP(F1304,'Raw Data'!$I$4:$I$5000,'Raw Data'!$E$4:$E$5000,100,0)","v":100},{"$f":"IF(N1304=0,_xlfn.XLOOKUP(F1304,'Raw Data'!$I$4:$I$5000,'Raw Data'!$H$4:$H$5000,\"\",0),\"\")","v":""},{"$f":"IF(INDIRECT(M1304) = \"\",\"\",INDIRECT(M1304))","v":""},"n"]
["SUCMALTRROSIBNRAAA",null,null,null,{"$f":"_xlfn.XLOOKUP(F1305,'Raw Data'!$I$4:$I$5000,'Raw Data'!$D$4:$D$5000,\"*** Mnemonic not found ***\",0)","v":"*** Mnemonic not found ***"},"SUCMALTRROSIBNRAAA__",null,"Input",{"$f":"ROW(section_non_invested_assets)","v":395},{"$f":"J1297","v":15},{"$f":"I1305+J1305","v":410},"G","Input!G410",{"$f":"_xlfn.XLOOKUP(F1305,'Raw Data'!$I$4:$I$5000,'Raw Data'!$E$4:$E$5000,100,0)","v":100},{"$f":"IF(N1305=0,_xlfn.XLOOKUP(F1305,'Raw Data'!$I$4:$I$5000,'Raw Data'!$H$4:$H$5000,\"\",0),\"\")","v":""},{"$f":"IF(INDIRECT(M1305) = \"\",\"\",INDIRECT(M1305))","v":""},"n"]
["SUCMALTRROSIBNRAA",null,null,null,{"$f":"_xlfn.XLOOKUP(F1306,'Raw Data'!$I$4:$I$5000,'Raw Data'!$D$4:$D$5000,\"*** Mnemonic not found ***\",0)","v":"*** Mnemonic not found ***"},"SUCMALTRROSIBNRAA__",null,"Input",null,null,{"$f":"K1305+1","v":411},{"$f":"L1305","v":"G"},"Input!G411",{"$f":"_xlfn.XLOOKUP(F1306,'Raw Data'!$I$4:$I$5000,'Raw Data'!$E$4:$E$5000,100,0)","v":100},{"$f":"IF(N1306=0,_xlfn.XLOOKUP(F1306,'Raw Data'!$I$4:$I$5000,'Raw Data'!$H$4:$H$5000,\"\",0),\"\")","v":""},{"$f":"IF(INDIRECT(M1306) = \"\",\"\",INDIRECT(M1306))","v":""},"n"]
["SUCMALTRROSIBNRA",null,null,null,{"$f":"_xlfn.XLOOKUP(F1307,'Raw Data'!$I$4:$I$5000,'Raw Data'!$D$4:$D$5000,\"*** Mnemonic not found ***\",0)","v":"*** Mnemonic not found ***"},"SUCMALTRROSIBNRA__",null,"Input",null,null,{"$f":"K1306+1","v":412},"G","Input!G412",{"$f":"_xlfn.XLOOKUP(F1307,'Raw Data'!$I$4:$I$5000,'Raw Data'!$E$4:$E$5000,100,0)","v":100},{"$f":"IF(N1307=0,_xlfn.XLOOKUP(F1307,'Raw Data'!$I$4:$I$5000,'Raw Data'!$H$4:$H$5000,\"\",0),\"\")","v":""},{"$f":"IF(INDIRECT(M1307) = \"\",\"\",INDIRECT(M1307))","v":""},"n"]
["SUCMALTRROSIBNRBBB",null,null,null,{"$f":"_xlfn.XLOOKUP(F1308,'Raw Data'!$I$4:$I$5000,'Raw Data'!$D$4:$D$5000,\"*** Mnemonic not found ***\",0)","v":"*** Mnemonic not found ***"},"SUCMALTRROSIBNRBBB__",null,"Input",null,null,413,"G","Input!G413",{"$f":"_xlfn.XLOOKUP(F1308,'Raw Data'!$I$4:$I$5000,'Raw Data'!$E$4:$E$5000,100,0)","v":100},{"$f":"IF(N1308=0,_xlfn.XLOOKUP(F1308,'Raw Data'!$I$4:$I$5000,'Raw Data'!$H$4:$H$5000,\"\",0),\"\")","v":""},{"$f":"IF(INDIRECT(M1308) = \"\",\"\",INDIRECT(M1308))","v":""},"n"]
["SUCMALTRROSIBNRBB",null,null,null,{"$f":"_xlfn.XLOOKUP(F1309,'Raw Data'!$I$4:$I$5000,'Raw Data'!$D$4:$D$5000,\"*** Mnemonic not found ***\",0)","v":"*** Mnemonic not found ***"},"SUCMALTRROSIBNRBB__",null,"Input",null,null,414,"G","Input!G414",{"$f":"_xlfn.XLOOKUP(F1309,'Raw Data'!$I$4:$I$5000,'Raw Data'!$E$4:$E$5000,100,0)","v":100},{"$f":"IF(N1309=0,_xlfn.XLOOKUP(F1309,'Raw Data'!$I$4:$I$5000,'Raw Data'!$H$4:$H$5000,\"\",0),\"\")","v":""},{"$f":"IF(INDIRECT(M1309) = \"\",\"\",INDIRECT(M1309))","v":""},"n"]
["SUCMALTRROSIBNRB",null,null,null,{"$f":"_xlfn.XLOOKUP(F1310,'Raw Data'!$I$4:$I$5000,'Raw Data'!$D$4:$D$5000,\"*** Mnemonic not found ***\",0)","v":"*** Mnemonic not found ***"},"SUCMALTRROSIBNRB__",null,"Input",null,null,415,"G","Input!G415",{"$f":"_xlfn.XLOOKUP(F1310,'Raw Data'!$I$4:$I$5000,'Raw Data'!$E$4:$E$5000,100,0)","v":100},{"$f":"IF(N1310=0,_xlfn.XLOOKUP(F1310,'Raw Data'!$I$4:$I$5000,'Raw Data'!$H$4:$H$5000,\"\",0),\"\")","v":""},{"$f":"IF(INDIRECT(M1310) = \"\",\"\",INDIRECT(M1310))","v":""},"n"]
["SUCMALTRROSIBNRCCC",null,null,null,{"$f":"_xlfn.XLOOKUP(F1311,'Raw Data'!$I$4:$I$5000,'Raw Data'!$D$4:$D$5000,\"*** Mnemonic not found ***\",0)","v":"*** Mnemonic not found ***"},"SUCMALTRROSIBNRCCC__",null,"Input",null,null,416,"G","Input!G416",{"$f":"_xlfn.XLOOKUP(F1311,'Raw Data'!$I$4:$I$5000,'Raw Data'!$E$4:$E$5000,100,0)","v":100},{"$f":"IF(N1311=0,_xlfn.XLOOKUP(F1311,'Raw Data'!$I$4:$I$5000,'Raw Data'!$H$4:$H$5000,\"\",0),\"\")","v":""},{"$f":"IF(INDIRECT(M1311) = \"\",\"\",INDIRECT(M1311))","v":""},"n"]
["SUCMALTRROSIBNRD",null,null,null,{"$f":"_xlfn.XLOOKUP(F1312,'Raw Data'!$I$4:$I$5000,'Raw Data'!$D$4:$D$5000,\"*** Mnemonic not found ***\",0)","v":"*** Mnemonic not found ***"},"SUCMALTRROSIBNRD__",null,"Input",null,null,417,"G","Input!G417",{"$f":"_xlfn.XLOOKUP(F1312,'Raw Data'!$I$4:$I$5000,'Raw Data'!$E$4:$E$5000,100,0)","v":100},{"$f":"IF(N1312=0,_xlfn.XLOOKUP(F1312,'Raw Data'!$I$4:$I$5000,'Raw Data'!$H$4:$H$5000,\"\",0),\"\")","v":""},{"$f":"IF(INDIRECT(M1312) = \"\",\"\",INDIRECT(M1312))","v":""},"n"]
["SUCMALTRRLOCREINAAA",null,null,null,{"$f":"_xlfn.XLOOKUP(F1313,'Raw Data'!$I$4:$I$5000,'Raw Data'!$D$4:$D$5000,\"*** Mnemonic not found ***\",0)","v":"*** Mnemonic not found ***"},"SUCMALTRRLOCREINAAA__",null,"Input",{"$f":"ROW(section_non_invested_assets)","v":395},{"$f":"J1305","v":15},{"$f":"I1313+J1313","v":410},"H","Input!H410",{"$f":"_xlfn.XLOOKUP(F1313,'Raw Data'!$I$4:$I$5000,'Raw Data'!$E$4:$E$5000,100,0)","v":100},{"$f":"IF(N1313=0,_xlfn.XLOOKUP(F1313,'Raw Data'!$I$4:$I$5000,'Raw Data'!$H$4:$H$5000,\"\",0),\"\")","v":""},{"$f":"IF(INDIRECT(M1313) = \"\",\"\",INDIRECT(M1313))","v":""},"n"]
["SUCMALTRRLOCREINAA",null,null,null,{"$f":"_xlfn.XLOOKUP(F1314,'Raw Data'!$I$4:$I$5000,'Raw Data'!$D$4:$D$5000,\"*** Mnemonic not found ***\",0)","v":"*** Mnemonic not found ***"},"SUCMALTRRLOCREINAA__",null,"Input",null,null,{"$f":"K1313+1","v":411},{"$f":"L1313","v":"H"},"Input!H411",{"$f":"_xlfn.XLOOKUP(F1314,'Raw Data'!$I$4:$I$5000,'Raw Data'!$E$4:$E$5000,100,0)","v":100},{"$f":"IF(N1314=0,_xlfn.XLOOKUP(F1314,'Raw Data'!$I$4:$I$5000,'Raw Data'!$H$4:$H$5000,\"\",0),\"\")","v":""},{"$f":"IF(INDIRECT(M1314) = \"\",\"\",INDIRECT(M1314))","v":""},"n"]
["SUCMALTRRLOCREINA",null,null,null,{"$f":"_xlfn.XLOOKUP(F1315,'Raw Data'!$I$4:$I$5000,'Raw Data'!$D$4:$D$5000,\"*** Mnemonic not found ***\",0)","v":"*** Mnemonic not found ***"},"SUCMALTRRLOCREINA__",null,"Input",null,null,{"$f":"K1314+1","v":412},"H","Input!H412",{"$f":"_xlfn.XLOOKUP(F1315,'Raw Data'!$I$4:$I$5000,'Raw Data'!$E$4:$E$5000,100,0)","v":100},{"$f":"IF(N1315=0,_xlfn.XLOOKUP(F1315,'Raw Data'!$I$4:$I$5000,'Raw Data'!$H$4:$H$5000,\"\",0),\"\")","v":""},{"$f":"IF(INDIRECT(M1315) = \"\",\"\",INDIRECT(M1315))","v":""},"n"]
["SUCMALTRRLOCREINBBB",null,null,null,{"$f":"_xlfn.XLOOKUP(F1316,'Raw Data'!$I$4:$I$5000,'Raw Data'!$D$4:$D$5000,\"*** Mnemonic not found ***\",0)","v":"*** Mnemonic not found ***"},"SUCMALTRRLOCREINBBB__",null,"Input",null,null,413,"H","Input!H413",{"$f":"_xlfn.XLOOKUP(F1316,'Raw Data'!$I$4:$I$5000,'Raw Data'!$E$4:$E$5000,100,0)","v":100},{"$f":"IF(N1316=0,_xlfn.XLOOKUP(F1316,'Raw Data'!$I$4:$I$5000,'Raw Data'!$H$4:$H$5000,\"\",0),\"\")","v":""},{"$f":"IF(INDIRECT(M1316) = \"\",\"\",INDIRECT(M1316))","v":""},"n"]
["SUCMALTRRLOCREINBB",null,null,null,{"$f":"_xlfn.XLOOKUP(F1317,'Raw Data'!$I$4:$I$5000,'Raw Data'!$D$4:$D$5000,\"*** Mnemonic not found ***\",0)","v":"*** Mnemonic not found ***"},"SUCMALTRRLOCREINBB__",null,"Input",null,null,414,"H","Input!H414",{"$f":"_xlfn.XLOOKUP(F1317,'Raw Data'!$I$4:$I$5000,'Raw Data'!$E$4:$E$5000,100,0)","v":100},{"$f":"IF(N1317=0,_xlfn.XLOOKUP(F1317,'Raw Data'!$I$4:$I$5000,'Raw Data'!$H$4:$H$5000,\"\",0),\"\")","v":""},{"$f":"IF(INDIRECT(M1317) = \"\",\"\",INDIRECT(M1317))","v":""},"n"]
["SUCMALTRRLOCREINB",null,null,null,{"$f":"_xlfn.XLOOKUP(F1318,'Raw Data'!$I$4:$I$5000,'Raw Data'!$D$4:$D$5000,\"*** Mnemonic not found ***\",0)","v":"*** Mnemonic not found ***"},"SUCMALTRRLOCREINB__",null,"Input",null,null,415,"H","Input!H415",{"$f":"_xlfn.XLOOKUP(F1318,'Raw Data'!$I$4:$I$5000,'Raw Data'!$E$4:$E$5000,100,0)","v":100},{"$f":"IF(N1318=0,_xlfn.XLOOKUP(F1318,'Raw Data'!$I$4:$I$5000,'Raw Data'!$H$4:$H$5000,\"\",0),\"\")","v":""},{"$f":"IF(INDIRECT(M1318) = \"\",\"\",INDIRECT(M1318))","v":""},"n"]
["SUCMALTRRLOCREINCCC",null,null,null,{"$f":"_xlfn.XLOOKUP(F1319,'Raw Data'!$I$4:$I$5000,'Raw Data'!$D$4:$D$5000,\"*** Mnemonic not found ***\",0)","v":"*** Mnemonic not found ***"},"SUCMALTRRLOCREINCCC__",null,"Input",null,null,416,"H","Input!H416",{"$f":"_xlfn.XLOOKUP(F1319,'Raw Data'!$I$4:$I$5000,'Raw Data'!$E$4:$E$5000,100,0)","v":100},{"$f":"IF(N1319=0,_xlfn.XLOOKUP(F1319,'Raw Data'!$I$4:$I$5000,'Raw Data'!$H$4:$H$5000,\"\",0),\"\")","v":""},{"$f":"IF(INDIRECT(M1319) = \"\",\"\",INDIRECT(M1319))","v":""},"n"]
["SUCMALTRRLOCREIND",null,null,null,{"$f":"_xlfn.XLOOKUP(F1320,'Raw Data'!$I$4:$I$5000,'Raw Data'!$D$4:$D$5000,\"*** Mnemonic not found ***\",0)","v":"*** Mnemonic not found ***"},"SUCMALTRRLOCREIND__",null,"Input",null,null,417,{"$f":"L1319","v":"H"},"Input!H417",{"$f":"_xlfn.XLOOKUP(F1320,'Raw Data'!$I$4:$I$5000,'Raw Data'!$E$4:$E$5000,100,0)","v":100},{"$f":"IF(N1320=0,_xlfn.XLOOKUP(F1320,'Raw Data'!$I$4:$I$5000,'Raw Data'!$H$4:$H$5000,\"\",0),\"\")","v":""},{"$f":"IF(INDIRECT(M1320) = \"\",\"\",INDIRECT(M1320))","v":""},"n"]
["SUCMRRINSREC",null,null,null,{"$f":"_xlfn.XLOOKUP(F1321,'Raw Data'!$I$4:$I$5000,'Raw Data'!$D$4:$D$5000,\"*** Mnemonic not found ***\",0)","v":"*** Mnemonic not found ***"},"SUCMRRINSREC__","Non-invested assets -Other chargeable","Input",{"$f":"ROW(section_non_invested_assets)","v":395},25,{"$f":"I1321+J1321","v":420},"F","Input!F420",{"$f":"_xlfn.XLOOKUP(F1321,'Raw Data'!$I$4:$I$5000,'Raw Data'!$E$4:$E$5000,100,0)","v":100},{"$f":"IF(N1321=0,_xlfn.XLOOKUP(F1321,'Raw Data'!$I$4:$I$5000,'Raw Data'!$H$4:$H$5000,\"\",0),\"\")","v":""},{"$f":"IF(INDIRECT(M1321) = \"\",\"\",INDIRECT(M1321))","v":""},"n"]
["SUCMRRLEASE",null,null,null,{"$f":"_xlfn.XLOOKUP(F1322,'Raw Data'!$I$4:$I$5000,'Raw Data'!$D$4:$D$5000,\"*** Mnemonic not found ***\",0)","v":"*** Mnemonic not found ***"},"SUCMRRLEASE__",null,"Input",null,null,{"$f":"K1321+1","v":421},{"$f":"L1321","v":"F"},"Input!F421",{"$f":"_xlfn.XLOOKUP(F1322,'Raw Data'!$I$4:$I$5000,'Raw Data'!$E$4:$E$5000,100,0)","v":100},{"$f":"IF(N1322=0,_xlfn.XLOOKUP(F1322,'Raw Data'!$I$4:$I$5000,'Raw Data'!$H$4:$H$5000,\"\",0),\"\")","v":""},{"$f":"IF(INDIRECT(M1322) = \"\",\"\",INDIRECT(M1322))","v":""},"n"]
["SUCMRRASOASC",null,null,null,{"$f":"_xlfn.XLOOKUP(F1323,'Raw Data'!$I$4:$I$5000,'Raw Data'!$D$4:$D$5000,\"*** Mnemonic not found ***\",0)","v":"*** Mnemonic not found ***"},"SUCMRRASOASC__",null,"Input",null,null,{"$f":"K1322+1","v":422},"F","Input!F422",{"$f":"_xlfn.XLOOKUP(F1323,'Raw Data'!$I$4:$I$5000,'Raw Data'!$E$4:$E$5000,100,0)","v":100},{"$f":"IF(N1323=0,_xlfn.XLOOKUP(F1323,'Raw Data'!$I$4:$I$5000,'Raw Data'!$H$4:$H$5000,\"\",0),\"\")","v":""},{"$f":"IF(INDIRECT(M1323) = \"\",\"\",INDIRECT(M1323))","v":""},"n"]
["SUCMRROTH",null,null,null,{"$f":"_xlfn.XLOOKUP(F1324,'Raw Data'!$I$4:$I$5000,'Raw Data'!$D$4:$D$5000,\"*** Mnemonic not found ***\",0)","v":"*** Mnemonic not found ***"},"SUCMRROTH__",null,"Input",null,null,423,"F",{"$f":"CONCATENATE(H1324,\"!\",L1324,K1324)","v":"Input!F423"},{"$f":"_xlfn.XLOOKUP(F1324,'Raw Data'!$I$4:$I$5000,'Raw Data'!$E$4:$E$5000,100,0)","v":100},{"$f":"IF(N1324=0,_xlfn.XLOOKUP(F1324,'Raw Data'!$I$4:$I$5000,'Raw Data'!$H$4:$H$5000,\"\",0),\"\")","v":""},{"$f":"IF(INDIRECT(M1324) = \"\",\"\",INDIRECT(M1324))","v":""},"n","assset_other_chargeable_assets_other"]
["SUCMRROTHASST",null,null,null,{"$f":"_xlfn.XLOOKUP(F1325,'Raw Data'!$I$4:$I$5000,'Raw Data'!$D$4:$D$5000,\"*** Mnemonic not found ***\",0)","v":"*** Mnemonic not found ***"},"SUCMRROTHASST__","Non-invested assets -Other assets","Input",null,null,{"$f":"K1324+1","v":424},"F","Input!F424",{"$f":"_xlfn.XLOOKUP(F1325,'Raw Data'!$I$4:$I$5000,'Raw Data'!$E$4:$E$5000,100,0)","v":100},{"$f":"IF(N1325=0,_xlfn.XLOOKUP(F1325,'Raw Data'!$I$4:$I$5000,'Raw Data'!$H$4:$H$5000,\"\",0),\"\")","v":""},{"$f":"IF(INDIRECT(M1325) = \"\",\"\",INDIRECT(M1325))","v":""},"n"]
["SUCMRRDEFTAX",null,null,null,{"$f":"_xlfn.XLOOKUP(F1326,'Raw Data'!$I$4:$I$5000,'Raw Data'!$D$4:$D$5000,\"*** Mnemonic not found ***\",0)","v":"*** Mnemonic not found ***"},"SUCMRRDEFTAX__","Non-invested assets -non-cargeable","Input",null,null,{"$f":"K1325+3","v":427},"F","Input!F427",{"$f":"_xlfn.XLOOKUP(F1326,'Raw Data'!$I$4:$I$5000,'Raw Data'!$E$4:$E$5000,100,0)","v":100},{"$f":"IF(N1326=0,_xlfn.XLOOKUP(F1326,'Raw Data'!$I$4:$I$5000,'Raw Data'!$H$4:$H$5000,\"\",0),\"\")","v":""},{"$f":"IF(INDIRECT(M1326) = \"\",\"\",INDIRECT(M1326))","v":""},"n"]
["SUCMRREXASST",null,null,null,{"$f":"_xlfn.XLOOKUP(F1327,'Raw Data'!$I$4:$I$5000,'Raw Data'!$D$4:$D$5000,\"*** Mnemonic not found ***\",0)","v":"*** Mnemonic not found ***"},"SUCMRREXASST__",null,"Input",null,null,{"$f":"K1326+1","v":428},"F","Input!F428",{"$f":"_xlfn.XLOOKUP(F1327,'Raw Data'!$I$4:$I$5000,'Raw Data'!$E$4:$E$5000,100,0)","v":100},{"$f":"IF(N1327=0,_xlfn.XLOOKUP(F1327,'Raw Data'!$I$4:$I$5000,'Raw Data'!$H$4:$H$5000,\"\",0),\"\")","v":""},{"$f":"IF(INDIRECT(M1327) = \"\",\"\",INDIRECT(M1327))","v":""},"n"]
["SUCMTOTBSASST",null,null,null,{"$f":"_xlfn.XLOOKUP(F1328,'Raw Data'!$I$4:$I$5000,'Raw Data'!$D$4:$D$5000,\"*** Mnemonic not found ***\",0)","v":"*** Mnemonic not found ***"},"SUCMTOTBSASST__","Total balance sheet assets","Input",null,null,{"$f":"K1327+4","v":432},"F","Input!F432",{"$f":"_xlfn.XLOOKUP(F1328,'Raw Data'!$I$4:$I$5000,'Raw Data'!$E$4:$E$5000,100,0)","v":100},{"$f":"IF(N1328=0,_xlfn.XLOOKUP(F1328,'Raw Data'!$I$4:$I$5000,'Raw Data'!$H$4:$H$5000,\"\",0),\"\")","v":""},{"$f":"IF(INDIRECT(M1328) = \"\",\"\",INDIRECT(M1328))","v":""},"n"]
["SUCMPROPORRSK_EMEA","LIA","General liability",null,{"$f":"_xlfn.XLOOKUP(F1329,'Raw Data'!$I$4:$I$5000,'Raw Data'!$D$4:$D$5000,\"*** Mnemonic not found ***\",0)","v":"*** Mnemonic not found ***"},"SUCMPROPORRSK_EMEA_LIA_","Non-life premium - EMEA","Input",{"$f":"ROW(section_non_life_prem)","v":437},4,{"$f":"I1329+J1329","v":441},"F","Input!F441",{"$f":"_xlfn.XLOOKUP(F1329,'Raw Data'!$I$4:$I$5000,'Raw Data'!$E$4:$E$5000,100,0)","v":100},{"$f":"IF(N1329=0,_xlfn.XLOOKUP(F1329,'Raw Data'!$I$4:$I$5000,'Raw Data'!$H$4:$H$5000,\"\",0),\"\")","v":""},{"$f":"IF(INDIRECT(M1329) = \"\",\"\",INDIRECT(M1329))","v":""},"n"]
["SUCMPROPORRSK_EMEA","WCP","Workers compensation",null,{"$f":"_xlfn.XLOOKUP(F1330,'Raw Data'!$I$4:$I$5000,'Raw Data'!$D$4:$D$5000,\"*** Mnemonic not found ***\",0)","v":"*** Mnemonic not found ***"},"SUCMPROPORRSK_EMEA_WCP_",null,"Input",null,null,{"$f":"K1329+1","v":442},"F","Input!F442",{"$f":"_xlfn.XLOOKUP(F1330,'Raw Data'!$I$4:$I$5000,'Raw Data'!$E$4:$E$5000,100,0)","v":100},{"$f":"IF(N1330=0,_xlfn.XLOOKUP(F1330,'Raw Data'!$I$4:$I$5000,'Raw Data'!$H$4:$H$5000,\"\",0),\"\")","v":""},{"$f":"IF(INDIRECT(M1330) = \"\",\"\",INDIRECT(M1330))","v":""},"n"]
["SUCMPROPORRSK_EMEA","FIR","Fire & other damage to property",null,{"$f":"_xlfn.XLOOKUP(F1331,'Raw Data'!$I$4:$I$5000,'Raw Data'!$D$4:$D$5000,\"*** Mnemonic not found ***\",0)","v":"*** Mnemonic not found ***"},"SUCMPROPORRSK_EMEA_FIR_",null,"Input",null,null,{"$f":"K1330+1","v":443},"F","Input!F443",{"$f":"_xlfn.XLOOKUP(F1331,'Raw Data'!$I$4:$I$5000,'Raw Data'!$E$4:$E$5000,100,0)","v":100},{"$f":"IF(N1331=0,_xlfn.XLOOKUP(F1331,'Raw Data'!$I$4:$I$5000,'Raw Data'!$H$4:$H$5000,\"\",0),\"\")","v":""},{"$f":"IF(INDIRECT(M1331) = \"\",\"\",INDIRECT(M1331))","v":""},"n"]
["SUCMPROPORRSK_EMEA","ALB","Motor vehicle liability",null,{"$f":"_xlfn.XLOOKUP(F1332,'Raw Data'!$I$4:$I$5000,'Raw Data'!$D$4:$D$5000,\"*** Mnemonic not found ***\",0)","v":"*** Mnemonic not found ***"},"SUCMPROPORRSK_EMEA_ALB_",null,"Input",null,null,444,"F",{"$f":"CONCATENATE(H1332,\"!\",L1332,K1332)","v":"Input!F444"},{"$f":"_xlfn.XLOOKUP(F1332,'Raw Data'!$I$4:$I$5000,'Raw Data'!$E$4:$E$5000,100,0)","v":100},{"$f":"IF(N1332=0,_xlfn.XLOOKUP(F1332,'Raw Data'!$I$4:$I$5000,'Raw Data'!$H$4:$H$5000,\"\",0),\"\")","v":""},{"$f":"IF(INDIRECT(M1332) = \"\",\"\",INDIRECT(M1332))","v":""},"n"]
["SUCMPROPORRSK_EMEA","OTHM","Other motor",null,{"$f":"_xlfn.XLOOKUP(F1333,'Raw Data'!$I$4:$I$5000,'Raw Data'!$D$4:$D$5000,\"*** Mnemonic not found ***\",0)","v":"*** Mnemonic not found ***"},"SUCMPROPORRSK_EMEA_OTHM_",null,"Input",null,null,445,"F","Input!F445",{"$f":"_xlfn.XLOOKUP(F1333,'Raw Data'!$I$4:$I$5000,'Raw Data'!$E$4:$E$5000,100,0)","v":100},{"$f":"IF(N1333=0,_xlfn.XLOOKUP(F1333,'Raw Data'!$I$4:$I$5000,'Raw Data'!$H$4:$H$5000,\"\",0),\"\")","v":""},{"$f":"IF(INDIRECT(M1333) = \"\",\"\",INDIRECT(M1333))","v":""},"n"]
["SUCMPROPORRSK_EMEA","CRDS","Credit & suretyship ",null,{"$f":"_xlfn.XLOOKUP(F1334,'Raw Data'!$I$4:$I$5000,'Raw Data'!$D$4:$D$5000,\"*** Mnemonic not found ***\",0)","v":"*** Mnemonic not found ***"},"SUCMPROPORRSK_EMEA_CRDS_",null,"Input",null,null,446,"F","Input!F446",{"$f":"_xlfn.XLOOKUP(F1334,'Raw Data'!$I$4:$I$5000,'Raw Data'!$E$4:$E$5000,100,0)","v":100},{"$f":"IF(N1334=0,_xlfn.XLOOKUP(F1334,'Raw Data'!$I$4:$I$5000,'Raw Data'!$H$4:$H$5000,\"\",0),\"\")","v":""},{"$f":"IF(INDIRECT(M1334) = \"\",\"\",INDIRECT(M1334))","v":""},"n"]
["SUCMPROPORRSK_EMEA","MSFL","Miscellaneous financial loss",null,{"$f":"_xlfn.XLOOKUP(F1335,'Raw Data'!$I$4:$I$5000,'Raw Data'!$D$4:$D$5000,\"*** Mnemonic not found ***\",0)","v":"*** Mnemonic not found ***"},"SUCMPROPORRSK_EMEA_MSFL_",null,"Input",null,null,447,"F","Input!F447",{"$f":"_xlfn.XLOOKUP(F1335,'Raw Data'!$I$4:$I$5000,'Raw Data'!$E$4:$E$5000,100,0)","v":100},{"$f":"IF(N1335=0,_xlfn.XLOOKUP(F1335,'Raw Data'!$I$4:$I$5000,'Raw Data'!$H$4:$H$5000,\"\",0),\"\")","v":""},{"$f":"IF(INDIRECT(M1335) = \"\",\"\",INDIRECT(M1335))","v":""},"n"]
["SUCMPROPORRSK_EMEA","HMEI","Health & medical expense insurance",null,{"$f":"_xlfn.XLOOKUP(F1336,'Raw Data'!$I$4:$I$5000,'Raw Data'!$D$4:$D$5000,\"*** Mnemonic not found ***\",0)","v":"*** Mnemonic not found ***"},"SUCMPROPORRSK_EMEA_HMEI_",null,"Input",null,null,448,"F","Input!F448",{"$f":"_xlfn.XLOOKUP(F1336,'Raw Data'!$I$4:$I$5000,'Raw Data'!$E$4:$E$5000,100,0)","v":100},{"$f":"IF(N1336=0,_xlfn.XLOOKUP(F1336,'Raw Data'!$I$4:$I$5000,'Raw Data'!$H$4:$H$5000,\"\",0),\"\")","v":""},{"$f":"IF(INDIRECT(M1336) = \"\",\"\",INDIRECT(M1336))","v":""},"n"]
["SUCMPROPORRSK_EMEA","MAVT","Marine, aviation and transport",null,{"$f":"_xlfn.XLOOKUP(F1337,'Raw Data'!$I$4:$I$5000,'Raw Data'!$D$4:$D$5000,\"*** Mnemonic not found ***\",0)","v":"*** Mnemonic not found ***"},"SUCMPROPORRSK_EMEA_MAVT_",null,"Input",null,null,449,"F","Input!F449",{"$f":"_xlfn.XLOOKUP(F1337,'Raw Data'!$I$4:$I$5000,'Raw Data'!$E$4:$E$5000,100,0)","v":100},{"$f":"IF(N1337=0,_xlfn.XLOOKUP(F1337,'Raw Data'!$I$4:$I$5000,'Raw Data'!$H$4:$H$5000,\"\",0),\"\")","v":""},{"$f":"IF(INDIRECT(M1337) = \"\",\"\",INDIRECT(M1337))","v":""},"n"]
["SUCMPROPORRSK_EMEA","MPIN","Marine protection & indemnity",null,{"$f":"_xlfn.XLOOKUP(F1338,'Raw Data'!$I$4:$I$5000,'Raw Data'!$D$4:$D$5000,\"*** Mnemonic not found ***\",0)","v":"*** Mnemonic not found ***"},"SUCMPROPORRSK_EMEA_MPIN_",null,"Input",null,null,450,"F",{"$f":"CONCATENATE(H1338,\"!\",L1338,K1338)","v":"Input!F450"},{"$f":"_xlfn.XLOOKUP(F1338,'Raw Data'!$I$4:$I$5000,'Raw Data'!$E$4:$E$5000,100,0)","v":100},{"$f":"IF(N1338=0,_xlfn.XLOOKUP(F1338,'Raw Data'!$I$4:$I$5000,'Raw Data'!$H$4:$H$5000,\"\",0),\"\")","v":""},{"$f":"IF(INDIRECT(M1338) = \"\",\"\",INDIRECT(M1338))","v":""},"n"]
["SUCMPROPORRSK_EMEA","ASST","Assistance",null,{"$f":"_xlfn.XLOOKUP(F1339,'Raw Data'!$I$4:$I$5000,'Raw Data'!$D$4:$D$5000,\"*** Mnemonic not found ***\",0)","v":"*** Mnemonic not found ***"},"SUCMPROPORRSK_EMEA_ASST_",null,"Input",null,null,{"$f":"K1338+1","v":451},"F","Input!F451",{"$f":"_xlfn.XLOOKUP(F1339,'Raw Data'!$I$4:$I$5000,'Raw Data'!$E$4:$E$5000,100,0)","v":100},{"$f":"IF(N1339=0,_xlfn.XLOOKUP(F1339,'Raw Data'!$I$4:$I$5000,'Raw Data'!$H$4:$H$5000,\"\",0),\"\")","v":""},{"$f":"IF(INDIRECT(M1339) = \"\",\"\",INDIRECT(M1339))","v":""},"n"]
["SUCMPROPORRSK_EMEA","INPR","Income protection",null,{"$f":"_xlfn.XLOOKUP(F1340,'Raw Data'!$I$4:$I$5000,'Raw Data'!$D$4:$D$5000,\"*** Mnemonic not found ***\",0)","v":"*** Mnemonic not found ***"},"SUCMPROPORRSK_EMEA_INPR_",null,"Input",null,null,452,"F","Input!F452",{"$f":"_xlfn.XLOOKUP(F1340,'Raw Data'!$I$4:$I$5000,'Raw Data'!$E$4:$E$5000,100,0)","v":100},{"$f":"IF(N1340=0,_xlfn.XLOOKUP(F1340,'Raw Data'!$I$4:$I$5000,'Raw Data'!$H$4:$H$5000,\"\",0),\"\")","v":""},{"$f":"IF(INDIRECT(M1340) = \"\",\"\",INDIRECT(M1340))","v":""},"n"]
["SUCMPROPORRSK_EMEA","LEGEX","Legal expense",null,{"$f":"_xlfn.XLOOKUP(F1341,'Raw Data'!$I$4:$I$5000,'Raw Data'!$D$4:$D$5000,\"*** Mnemonic not found ***\",0)","v":"*** Mnemonic not found ***"},"SUCMPROPORRSK_EMEA_LEGEX_",null,"Input",null,null,453,"F","Input!F453",{"$f":"_xlfn.XLOOKUP(F1341,'Raw Data'!$I$4:$I$5000,'Raw Data'!$E$4:$E$5000,100,0)","v":100},{"$f":"IF(N1341=0,_xlfn.XLOOKUP(F1341,'Raw Data'!$I$4:$I$5000,'Raw Data'!$H$4:$H$5000,\"\",0),\"\")","v":""},{"$f":"IF(INDIRECT(M1341) = \"\",\"\",INDIRECT(M1341))","v":""},"n"]
["SUCMPROPORRSK_EMEA","OCAH","Other",null,{"$f":"_xlfn.XLOOKUP(F1342,'Raw Data'!$I$4:$I$5000,'Raw Data'!$D$4:$D$5000,\"*** Mnemonic not found ***\",0)","v":"*** Mnemonic not found ***"},"SUCMPROPORRSK_EMEA_OCAH_",null,"Input",null,null,454,{"$f":"L1341","v":"F"},"Input!F454",{"$f":"_xlfn.XLOOKUP(F1342,'Raw Data'!$I$4:$I$5000,'Raw Data'!$E$4:$E$5000,100,0)","v":100},{"$f":"IF(N1342=0,_xlfn.XLOOKUP(F1342,'Raw Data'!$I$4:$I$5000,'Raw Data'!$H$4:$H$5000,\"\",0),\"\")","v":""},{"$f":"IF(INDIRECT(M1342) = \"\",\"\",INDIRECT(M1342))","v":""},"n"]
["SUCMNONPROPORRSK_EMEA","LIA","General liability",null,{"$f":"_xlfn.XLOOKUP(F1343,'Raw Data'!$I$4:$I$5000,'Raw Data'!$D$4:$D$5000,\"*** Mnemonic not found ***\",0)","v":"*** Mnemonic not found ***"},"SUCMNONPROPORRSK_EMEA_LIA_",null,"Input",{"$f":"ROW(section_non_life_prem)","v":437},{"$f":"J1329","v":4},{"$f":"I1343+J1343","v":441},"G","Input!G441",{"$f":"_xlfn.XLOOKUP(F1343,'Raw Data'!$I$4:$I$5000,'Raw Data'!$E$4:$E$5000,100,0)","v":100},{"$f":"IF(N1343=0,_xlfn.XLOOKUP(F1343,'Raw Data'!$I$4:$I$5000,'Raw Data'!$H$4:$H$5000,\"\",0),\"\")","v":""},{"$f":"IF(INDIRECT(M1343) = \"\",\"\",INDIRECT(M1343))","v":""},"n"]
["SUCMNONPROPORRSK_EMEA","WCP","Workers compensation",null,{"$f":"_xlfn.XLOOKUP(F1344,'Raw Data'!$I$4:$I$5000,'Raw Data'!$D$4:$D$5000,\"*** Mnemonic not found ***\",0)","v":"*** Mnemonic not found ***"},"SUCMNONPROPORRSK_EMEA_WCP_",null,"Input",null,null,{"$f":"K1343+1","v":442},{"$f":"L1343","v":"G"},"Input!G442",{"$f":"_xlfn.XLOOKUP(F1344,'Raw Data'!$I$4:$I$5000,'Raw Data'!$E$4:$E$5000,100,0)","v":100},{"$f":"IF(N1344=0,_xlfn.XLOOKUP(F1344,'Raw Data'!$I$4:$I$5000,'Raw Data'!$H$4:$H$5000,\"\",0),\"\")","v":""},{"$f":"IF(INDIRECT(M1344) = \"\",\"\",INDIRECT(M1344))","v":""},"n"]
["SUCMNONPROPORRSK_EMEA","FIR","Fire & other damage to property",null,{"$f":"_xlfn.XLOOKUP(F1345,'Raw Data'!$I$4:$I$5000,'Raw Data'!$D$4:$D$5000,\"*** Mnemonic not found ***\",0)","v":"*** Mnemonic not found ***"},"SUCMNONPROPORRSK_EMEA_FIR_",null,"Input",null,null,{"$f":"K1344+1","v":443},"G","Input!G443",{"$f":"_xlfn.XLOOKUP(F1345,'Raw Data'!$I$4:$I$5000,'Raw Data'!$E$4:$E$5000,100,0)","v":100},{"$f":"IF(N1345=0,_xlfn.XLOOKUP(F1345,'Raw Data'!$I$4:$I$5000,'Raw Data'!$H$4:$H$5000,\"\",0),\"\")","v":""},{"$f":"IF(INDIRECT(M1345) = \"\",\"\",INDIRECT(M1345))","v":""},"n"]
["SUCMNONPROPORRSK_EMEA","ALB","Motor vehicle liability",null,{"$f":"_xlfn.XLOOKUP(F1346,'Raw Data'!$I$4:$I$5000,'Raw Data'!$D$4:$D$5000,\"*** Mnemonic not found ***\",0)","v":"*** Mnemonic not found ***"},"SUCMNONPROPORRSK_EMEA_ALB_",null,"Input",null,null,444,"G","Input!G444",{"$f":"_xlfn.XLOOKUP(F1346,'Raw Data'!$I$4:$I$5000,'Raw Data'!$E$4:$E$5000,100,0)","v":100},{"$f":"IF(N1346=0,_xlfn.XLOOKUP(F1346,'Raw Data'!$I$4:$I$5000,'Raw Data'!$H$4:$H$5000,\"\",0),\"\")","v":""},{"$f":"IF(INDIRECT(M1346) = \"\",\"\",INDIRECT(M1346))","v":""},"n"]
["SUCMNONPROPORRSK_EMEA","OTHM","Other motor",null,{"$f":"_xlfn.XLOOKUP(F1347,'Raw Data'!$I$4:$I$5000,'Raw Data'!$D$4:$D$5000,\"*** Mnemonic not found ***\",0)","v":"*** Mnemonic not found ***"},"SUCMNONPROPORRSK_EMEA_OTHM_",null,"Input",null,null,445,"G","Input!G445",{"$f":"_xlfn.XLOOKUP(F1347,'Raw Data'!$I$4:$I$5000,'Raw Data'!$E$4:$E$5000,100,0)","v":100},{"$f":"IF(N1347=0,_xlfn.XLOOKUP(F1347,'Raw Data'!$I$4:$I$5000,'Raw Data'!$H$4:$H$5000,\"\",0),\"\")","v":""},{"$f":"IF(INDIRECT(M1347) = \"\",\"\",INDIRECT(M1347))","v":""},"n"]
["SUCMNONPROPORRSK_EMEA","CRDS","Credit & suretyship ",null,{"$f":"_xlfn.XLOOKUP(F1348,'Raw Data'!$I$4:$I$5000,'Raw Data'!$D$4:$D$5000,\"*** Mnemonic not found ***\",0)","v":"*** Mnemonic not found ***"},"SUCMNONPROPORRSK_EMEA_CRDS_",null,"Input",null,null,446,"G","Input!G446",{"$f":"_xlfn.XLOOKUP(F1348,'Raw Data'!$I$4:$I$5000,'Raw Data'!$E$4:$E$5000,100,0)","v":100},{"$f":"IF(N1348=0,_xlfn.XLOOKUP(F1348,'Raw Data'!$I$4:$I$5000,'Raw Data'!$H$4:$H$5000,\"\",0),\"\")","v":""},{"$f":"IF(INDIRECT(M1348) = \"\",\"\",INDIRECT(M1348))","v":""},"n"]
["SUCMNONPROPORRSK_EMEA","MSFL","Miscellaneous financial loss",null,{"$f":"_xlfn.XLOOKUP(F1349,'Raw Data'!$I$4:$I$5000,'Raw Data'!$D$4:$D$5000,\"*** Mnemonic not found ***\",0)","v":"*** Mnemonic not found ***"},"SUCMNONPROPORRSK_EMEA_MSFL_",null,"Input",null,null,447,"G","Input!G447",{"$f":"_xlfn.XLOOKUP(F1349,'Raw Data'!$I$4:$I$5000,'Raw Data'!$E$4:$E$5000,100,0)","v":100},{"$f":"IF(N1349=0,_xlfn.XLOOKUP(F1349,'Raw Data'!$I$4:$I$5000,'Raw Data'!$H$4:$H$5000,\"\",0),\"\")","v":""},{"$f":"IF(INDIRECT(M1349) = \"\",\"\",INDIRECT(M1349))","v":""},"n"]
["SUCMNONPROPORRSK_EMEA","HMEI","Health & medical expense insurance",null,{"$f":"_xlfn.XLOOKUP(F1350,'Raw Data'!$I$4:$I$5000,'Raw Data'!$D$4:$D$5000,\"*** Mnemonic not found ***\",0)","v":"*** Mnemonic not found ***"},"SUCMNONPROPORRSK_EMEA_HMEI_",null,"Input",null,null,448,"G","Input!G448",{"$f":"_xlfn.XLOOKUP(F1350,'Raw Data'!$I$4:$I$5000,'Raw Data'!$E$4:$E$5000,100,0)","v":100},{"$f":"IF(N1350=0,_xlfn.XLOOKUP(F1350,'Raw Data'!$I$4:$I$5000,'Raw Data'!$H$4:$H$5000,\"\",0),\"\")","v":""},{"$f":"IF(INDIRECT(M1350) = \"\",\"\",INDIRECT(M1350))","v":""},"n"]
["SUCMNONPROPORRSK_EMEA","MAVT","Marine, aviation and transport",null,{"$f":"_xlfn.XLOOKUP(F1351,'Raw Data'!$I$4:$I$5000,'Raw Data'!$D$4:$D$5000,\"*** Mnemonic not found ***\",0)","v":"*** Mnemonic not found ***"},{"$f":"CONCATENATE(A1351,\"_\",B1351,\"_\",D1351)","v":"SUCMNONPROPORRSK_EMEA_MAVT_"},null,"Input",null,null,449,"G","Input!G449",{"$f":"_xlfn.XLOOKUP(F1351,'Raw Data'!$I$4:$I$5000,'Raw Data'!$E$4:$E$5000,100,0)","v":100},{"$f":"IF(N1351=0,_xlfn.XLOOKUP(F1351,'Raw Data'!$I$4:$I$5000,'Raw Data'!$H$4:$H$5000,\"\",0),\"\")","v":""},{"$f":"IF(INDIRECT(M1351) = \"\",\"\",INDIRECT(M1351))","v":""},"n"]
["SUCMNONPROPORRSK_EMEA","MPIN","Marine protection & indemnity",null,{"$f":"_xlfn.XLOOKUP(F1352,'Raw Data'!$I$4:$I$5000,'Raw Data'!$D$4:$D$5000,\"*** Mnemonic not found ***\",0)","v":"*** Mnemonic not found ***"},"SUCMNONPROPORRSK_EMEA_MPIN_",null,"Input",null,null,450,"G",{"$f":"CONCATENATE(H1352,\"!\",L1352,K1352)","v":"Input!G450"},{"$f":"_xlfn.XLOOKUP(F1352,'Raw Data'!$I$4:$I$5000,'Raw Data'!$E$4:$E$5000,100,0)","v":100},{"$f":"IF(N1352=0,_xlfn.XLOOKUP(F1352,'Raw Data'!$I$4:$I$5000,'Raw Data'!$H$4:$H$5000,\"\",0),\"\")","v":""},{"$f":"IF(INDIRECT(M1352) = \"\",\"\",INDIRECT(M1352))","v":""},"n"]
["SUCMNONPROPORRSK_EMEA","ASST","Assistance",null,{"$f":"_xlfn.XLOOKUP(F1353,'Raw Data'!$I$4:$I$5000,'Raw Data'!$D$4:$D$5000,\"*** Mnemonic not found ***\",0)","v":"*** Mnemonic not found ***"},"SUCMNONPROPORRSK_EMEA_ASST_",null,"Input",null,null,{"$f":"K1352+1","v":451},{"$f":"L1352","v":"G"},"Input!G451",{"$f":"_xlfn.XLOOKUP(F1353,'Raw Data'!$I$4:$I$5000,'Raw Data'!$E$4:$E$5000,100,0)","v":100},{"$f":"IF(N1353=0,_xlfn.XLOOKUP(F1353,'Raw Data'!$I$4:$I$5000,'Raw Data'!$H$4:$H$5000,\"\",0),\"\")","v":""},{"$f":"IF(INDIRECT(M1353) = \"\",\"\",INDIRECT(M1353))","v":""},"n"]
["SUCMNONPROPORRSK_EMEA","INPR","Income protection",null,{"$f":"_xlfn.XLOOKUP(F1354,'Raw Data'!$I$4:$I$5000,'Raw Data'!$D$4:$D$5000,\"*** Mnemonic not found ***\",0)","v":"*** Mnemonic not found ***"},"SUCMNONPROPORRSK_EMEA_INPR_",null,"Input",null,null,452,"G","Input!G452",{"$f":"_xlfn.XLOOKUP(F1354,'Raw Data'!$I$4:$I$5000,'Raw Data'!$E$4:$E$5000,100,0)","v":100},{"$f":"IF(N1354=0,_xlfn.XLOOKUP(F1354,'Raw Data'!$I$4:$I$5000,'Raw Data'!$H$4:$H$5000,\"\",0),\"\")","v":""},{"$f":"IF(INDIRECT(M1354) = \"\",\"\",INDIRECT(M1354))","v":""},"n"]
["SUCMNONPROPORRSK_EMEA","LEGEX","Legal expense",null,{"$f":"_xlfn.XLOOKUP(F1355,'Raw Data'!$I$4:$I$5000,'Raw Data'!$D$4:$D$5000,\"*** Mnemonic not found ***\",0)","v":"*** Mnemonic not found ***"},"SUCMNONPROPORRSK_EMEA_LEGEX_",null,"Input",null,null,453,"G","Input!G453",{"$f":"_xlfn.XLOOKUP(F1355,'Raw Data'!$I$4:$I$5000,'Raw Data'!$E$4:$E$5000,100,0)","v":100},{"$f":"IF(N1355=0,_xlfn.XLOOKUP(F1355,'Raw Data'!$I$4:$I$5000,'Raw Data'!$H$4:$H$5000,\"\",0),\"\")","v":""},{"$f":"IF(INDIRECT(M1355) = \"\",\"\",INDIRECT(M1355))","v":""},"n"]
["SUCMNONPROPORRSK_EMEA","OCAH","Other",null,{"$f":"_xlfn.XLOOKUP(F1356,'Raw Data'!$I$4:$I$5000,'Raw Data'!$D$4:$D$5000,\"*** Mnemonic not found ***\",0)","v":"*** Mnemonic not found ***"},"SUCMNONPROPORRSK_EMEA_OCAH_",null,"Input",null,null,454,{"$f":"L1355","v":"G"},"Input!G454",{"$f":"_xlfn.XLOOKUP(F1356,'Raw Data'!$I$4:$I$5000,'Raw Data'!$E$4:$E$5000,100,0)","v":100},{"$f":"IF(N1356=0,_xlfn.XLOOKUP(F1356,'Raw Data'!$I$4:$I$5000,'Raw Data'!$H$4:$H$5000,\"\",0),\"\")","v":""},{"$f":"IF(INDIRECT(M1356) = \"\",\"\",INDIRECT(M1356))","v":""},"n"]
["SUCMPROPORRSK_US","EWCP","Excess workers compensation",null,{"$f":"_xlfn.XLOOKUP(F1357,'Raw Data'!$I$4:$I$5000,'Raw Data'!$D$4:$D$5000,\"*** Mnemonic not found ***\",0)","v":"*** Mnemonic not found ***"},"SUCMPROPORRSK_US_EWCP_","Non-life premium - US","Input",{"$f":"ROW(section_non_life_prem)","v":437},19,{"$f":"I1357+J1357","v":456},"F","Input!F456",{"$f":"_xlfn.XLOOKUP(F1357,'Raw Data'!$I$4:$I$5000,'Raw Data'!$E$4:$E$5000,100,0)","v":100},{"$f":"IF(N1357=0,_xlfn.XLOOKUP(F1357,'Raw Data'!$I$4:$I$5000,'Raw Data'!$H$4:$H$5000,\"\",0),\"\")","v":""},{"$f":"IF(INDIRECT(M1357) = \"\",\"\",INDIRECT(M1357))","v":""},"n"]
["SUCMPROPORRSK_US","MEC","Medical malpractice - claims made",null,{"$f":"_xlfn.XLOOKUP(F1358,'Raw Data'!$I$4:$I$5000,'Raw Data'!$D$4:$D$5000,\"*** Mnemonic not found ***\",0)","v":"*** Mnemonic not found ***"},"SUCMPROPORRSK_US_MEC_",null,"Input",null,null,{"$f":"K1357+1","v":457},{"$f":"L1357","v":"F"},"Input!F457",{"$f":"_xlfn.XLOOKUP(F1358,'Raw Data'!$I$4:$I$5000,'Raw Data'!$E$4:$E$5000,100,0)","v":100},{"$f":"IF(N1358=0,_xlfn.XLOOKUP(F1358,'Raw Data'!$I$4:$I$5000,'Raw Data'!$H$4:$H$5000,\"\",0),\"\")","v":""},{"$f":"IF(INDIRECT(M1358) = \"\",\"\",INDIRECT(M1358))","v":""},"n"]
["SUCMPROPORRSK_US","MEO","Medical malpractice - occurrence",null,{"$f":"_xlfn.XLOOKUP(F1359,'Raw Data'!$I$4:$I$5000,'Raw Data'!$D$4:$D$5000,\"*** Mnemonic not found ***\",0)","v":"*** Mnemonic not found ***"},"SUCMPROPORRSK_US_MEO_",null,"Input",null,null,{"$f":"K1358+1","v":458},"F","Input!F458",{"$f":"_xlfn.XLOOKUP(F1359,'Raw Data'!$I$4:$I$5000,'Raw Data'!$E$4:$E$5000,100,0)","v":100},{"$f":"IF(N1359=0,_xlfn.XLOOKUP(F1359,'Raw Data'!$I$4:$I$5000,'Raw Data'!$H$4:$H$5000,\"\",0),\"\")","v":""},{"$f":"IF(INDIRECT(M1359) = \"\",\"\",INDIRECT(M1359))","v":""},"n"]
["SUCMPROPORRSK_US","OLC","Other liability - claims made",null,{"$f":"_xlfn.XLOOKUP(F1360,'Raw Data'!$I$4:$I$5000,'Raw Data'!$D$4:$D$5000,\"*** Mnemonic not found ***\",0)","v":"*** Mnemonic not found ***"},"SUCMPROPORRSK_US_OLC_",null,"Input",null,null,459,"F","Input!F459",{"$f":"_xlfn.XLOOKUP(F1360,'Raw Data'!$I$4:$I$5000,'Raw Data'!$E$4:$E$5000,100,0)","v":100},{"$f":"IF(N1360=0,_xlfn.XLOOKUP(F1360,'Raw Data'!$I$4:$I$5000,'Raw Data'!$H$4:$H$5000,\"\",0),\"\")","v":""},{"$f":"IF(INDIRECT(M1360) = \"\",\"\",INDIRECT(M1360))","v":""},"n"]
["SUCMPROPORRSK_US","OLO","Other liability - occurrence",null,{"$f":"_xlfn.XLOOKUP(F1361,'Raw Data'!$I$4:$I$5000,'Raw Data'!$D$4:$D$5000,\"*** Mnemonic not found ***\",0)","v":"*** Mnemonic not found ***"},"SUCMPROPORRSK_US_OLO_",null,"Input",null,null,460,"F","Input!F460",{"$f":"_xlfn.XLOOKUP(F1361,'Raw Data'!$I$4:$I$5000,'Raw Data'!$E$4:$E$5000,100,0)","v":100},{"$f":"IF(N1361=0,_xlfn.XLOOKUP(F1361,'Raw Data'!$I$4:$I$5000,'Raw Data'!$H$4:$H$5000,\"\",0),\"\")","v":""},{"$f":"IF(INDIRECT(M1361) = \"\",\"\",INDIRECT(M1361))","v":""},"n"]
["SUCMPROPORRSK_US","PLC","Product liability - claims made",null,{"$f":"_xlfn.XLOOKUP(F1362,'Raw Data'!$I$4:$I$5000,'Raw Data'!$D$4:$D$5000,\"*** Mnemonic not found ***\",0)","v":"*** Mnemonic not found ***"},"SUCMPROPORRSK_US_PLC_",null,"Input",null,null,461,"F","Input!F461",{"$f":"_xlfn.XLOOKUP(F1362,'Raw Data'!$I$4:$I$5000,'Raw Data'!$E$4:$E$5000,100,0)","v":100},{"$f":"IF(N1362=0,_xlfn.XLOOKUP(F1362,'Raw Data'!$I$4:$I$5000,'Raw Data'!$H$4:$H$5000,\"\",0),\"\")","v":""},{"$f":"IF(INDIRECT(M1362) = \"\",\"\",INDIRECT(M1362))","v":""},"n"]
["SUCMPROPORRSK_US","PLO","Product liability - occurrence",null,{"$f":"_xlfn.XLOOKUP(F1363,'Raw Data'!$I$4:$I$5000,'Raw Data'!$D$4:$D$5000,\"*** Mnemonic not found ***\",0)","v":"*** Mnemonic not found ***"},"SUCMPROPORRSK_US_PLO_",null,"Input",null,null,462,"F","Input!F462",{"$f":"_xlfn.XLOOKUP(F1363,'Raw Data'!$I$4:$I$5000,'Raw Data'!$E$4:$E$5000,100,0)","v":100},{"$f":"IF(N1363=0,_xlfn.XLOOKUP(F1363,'Raw Data'!$I$4:$I$5000,'Raw Data'!$H$4:$H$5000,\"\",0),\"\")","v":""},{"$f":"IF(INDIRECT(M1363) = \"\",\"\",INDIRECT(M1363))","v":""},"n"]
["SUCMPROPORRSK_US","WCP","Workers compensation",null,{"$f":"_xlfn.XLOOKUP(F1364,'Raw Data'!$I$4:$I$5000,'Raw Data'!$D$4:$D$5000,\"*** Mnemonic not found ***\",0)","v":"*** Mnemonic not found ***"},"SUCMPROPORRSK_US_WCP_",null,"Input",null,null,463,"F","Input!F463",{"$f":"_xlfn.XLOOKUP(F1364,'Raw Data'!$I$4:$I$5000,'Raw Data'!$E$4:$E$5000,100,0)","v":100},{"$f":"IF(N1364=0,_xlfn.XLOOKUP(F1364,'Raw Data'!$I$4:$I$5000,'Raw Data'!$H$4:$H$5000,\"\",0),\"\")","v":""},{"$f":"IF(INDIRECT(M1364) = \"\",\"\",INDIRECT(M1364))","v":""},"n"]
["SUCMPROPORRSK_US","BLM","Boiler & machinery",null,{"$f":"_xlfn.XLOOKUP(F1365,'Raw Data'!$I$4:$I$5000,'Raw Data'!$D$4:$D$5000,\"*** Mnemonic not found ***\",0)","v":"*** Mnemonic not found ***"},"SUCMPROPORRSK_US_BLM_",null,"Input",null,null,464,"F","Input!F464",{"$f":"_xlfn.XLOOKUP(F1365,'Raw Data'!$I$4:$I$5000,'Raw Data'!$E$4:$E$5000,100,0)","v":100},{"$f":"IF(N1365=0,_xlfn.XLOOKUP(F1365,'Raw Data'!$I$4:$I$5000,'Raw Data'!$H$4:$H$5000,\"\",0),\"\")","v":""},{"$f":"IF(INDIRECT(M1365) = \"\",\"\",INDIRECT(M1365))","v":""},"n"]
["SUCMPROPORRSK_US","CMP","Commercial multi-peril",null,{"$f":"_xlfn.XLOOKUP(F1366,'Raw Data'!$I$4:$I$5000,'Raw Data'!$D$4:$D$5000,\"*** Mnemonic not found ***\",0)","v":"*** Mnemonic not found ***"},"SUCMPROPORRSK_US_CMP_",null,"Input",null,null,465,"F","Input!F465",{"$f":"_xlfn.XLOOKUP(F1366,'Raw Data'!$I$4:$I$5000,'Raw Data'!$E$4:$E$5000,100,0)","v":100},{"$f":"IF(N1366=0,_xlfn.XLOOKUP(F1366,'Raw Data'!$I$4:$I$5000,'Raw Data'!$H$4:$H$5000,\"\",0),\"\")","v":""},{"$f":"IF(INDIRECT(M1366) = \"\",\"\",INDIRECT(M1366))","v":""},"n"]
["SUCMPROPORRSK_US","HFM","Homeowner/Farmowner multi-peril",null,{"$f":"_xlfn.XLOOKUP(F1367,'Raw Data'!$I$4:$I$5000,'Raw Data'!$D$4:$D$5000,\"*** Mnemonic not found ***\",0)","v":"*** Mnemonic not found ***"},"SUCMPROPORRSK_US_HFM_",null,"Input",null,null,466,"F","Input!F466",{"$f":"_xlfn.XLOOKUP(F1367,'Raw Data'!$I$4:$I$5000,'Raw Data'!$E$4:$E$5000,100,0)","v":100},{"$f":"IF(N1367=0,_xlfn.XLOOKUP(F1367,'Raw Data'!$I$4:$I$5000,'Raw Data'!$H$4:$H$5000,\"\",0),\"\")","v":""},{"$f":"IF(INDIRECT(M1367) = \"\",\"\",INDIRECT(M1367))","v":""},"n"]
["SUCMPROPORRSK_US","SPP","Special property (fire, allied lines, inland marine, earthquake, burglary and theft)",null,{"$f":"_xlfn.XLOOKUP(F1368,'Raw Data'!$I$4:$I$5000,'Raw Data'!$D$4:$D$5000,\"*** Mnemonic not found ***\",0)","v":"*** Mnemonic not found ***"},"SUCMPROPORRSK_US_SPP_",null,"Input",null,null,467,"F","Input!F467",{"$f":"_xlfn.XLOOKUP(F1368,'Raw Data'!$I$4:$I$5000,'Raw Data'!$E$4:$E$5000,100,0)","v":100},{"$f":"IF(N1368=0,_xlfn.XLOOKUP(F1368,'Raw Data'!$I$4:$I$5000,'Raw Data'!$H$4:$H$5000,\"\",0),\"\")","v":""},{"$f":"IF(INDIRECT(M1368) = \"\",\"\",INDIRECT(M1368))","v":""},"n"]
["SUCMPROPORRSK_US","APB","Auto physical damage",null,{"$f":"_xlfn.XLOOKUP(F1369,'Raw Data'!$I$4:$I$5000,'Raw Data'!$D$4:$D$5000,\"*** Mnemonic not found ***\",0)","v":"*** Mnemonic not found ***"},"SUCMPROPORRSK_US_APB_",null,"Input",null,null,468,"F","Input!F468",{"$f":"_xlfn.XLOOKUP(F1369,'Raw Data'!$I$4:$I$5000,'Raw Data'!$E$4:$E$5000,100,0)","v":100},{"$f":"IF(N1369=0,_xlfn.XLOOKUP(F1369,'Raw Data'!$I$4:$I$5000,'Raw Data'!$H$4:$H$5000,\"\",0),\"\")","v":""},{"$f":"IF(INDIRECT(M1369) = \"\",\"\",INDIRECT(M1369))","v":""},"n"]
["SUCMPROPORRSK_US","CAL","Commercial auto liability",null,{"$f":"_xlfn.XLOOKUP(F1370,'Raw Data'!$I$4:$I$5000,'Raw Data'!$D$4:$D$5000,\"*** Mnemonic not found ***\",0)","v":"*** Mnemonic not found ***"},"SUCMPROPORRSK_US_CAL_",null,"Input",null,null,469,"F","Input!F469",{"$f":"_xlfn.XLOOKUP(F1370,'Raw Data'!$I$4:$I$5000,'Raw Data'!$E$4:$E$5000,100,0)","v":100},{"$f":"IF(N1370=0,_xlfn.XLOOKUP(F1370,'Raw Data'!$I$4:$I$5000,'Raw Data'!$H$4:$H$5000,\"\",0),\"\")","v":""},{"$f":"IF(INDIRECT(M1370) = \"\",\"\",INDIRECT(M1370))","v":""},"n"]
["SUCMPROPORRSK_US","PPA","Private passenger auto liability",null,{"$f":"_xlfn.XLOOKUP(F1371,'Raw Data'!$I$4:$I$5000,'Raw Data'!$D$4:$D$5000,\"*** Mnemonic not found ***\",0)","v":"*** Mnemonic not found ***"},"SUCMPROPORRSK_US_PPA_",null,"Input",null,null,470,"F","Input!F470",{"$f":"_xlfn.XLOOKUP(F1371,'Raw Data'!$I$4:$I$5000,'Raw Data'!$E$4:$E$5000,100,0)","v":100},{"$f":"IF(N1371=0,_xlfn.XLOOKUP(F1371,'Raw Data'!$I$4:$I$5000,'Raw Data'!$H$4:$H$5000,\"\",0),\"\")","v":""},{"$f":"IF(INDIRECT(M1371) = \"\",\"\",INDIRECT(M1371))","v":""},"n"]
["SUCMPROPORRSK_US","CRD","Credit",null,{"$f":"_xlfn.XLOOKUP(F1372,'Raw Data'!$I$4:$I$5000,'Raw Data'!$D$4:$D$5000,\"*** Mnemonic not found ***\",0)","v":"*** Mnemonic not found ***"},"SUCMPROPORRSK_US_CRD_",null,"Input",null,null,471,"F","Input!F471",{"$f":"_xlfn.XLOOKUP(F1372,'Raw Data'!$I$4:$I$5000,'Raw Data'!$E$4:$E$5000,100,0)","v":100},{"$f":"IF(N1372=0,_xlfn.XLOOKUP(F1372,'Raw Data'!$I$4:$I$5000,'Raw Data'!$H$4:$H$5000,\"\",0),\"\")","v":""},{"$f":"IF(INDIRECT(M1372) = \"\",\"\",INDIRECT(M1372))","v":""},"n"]
["SUCMPROPORRSK_US","FIDSUR","Fidelity/Surety",null,{"$f":"_xlfn.XLOOKUP(F1373,'Raw Data'!$I$4:$I$5000,'Raw Data'!$D$4:$D$5000,\"*** Mnemonic not found ***\",0)","v":"*** Mnemonic not found ***"},"SUCMPROPORRSK_US_FIDSUR_",null,"Input",null,null,472,"F","Input!F472",{"$f":"_xlfn.XLOOKUP(F1373,'Raw Data'!$I$4:$I$5000,'Raw Data'!$E$4:$E$5000,100,0)","v":100},{"$f":"IF(N1373=0,_xlfn.XLOOKUP(F1373,'Raw Data'!$I$4:$I$5000,'Raw Data'!$H$4:$H$5000,\"\",0),\"\")","v":""},{"$f":"IF(INDIRECT(M1373) = \"\",\"\",INDIRECT(M1373))","v":""},"n"]
["SUCMPROPORRSK_US","FIG","Financial guaranty ",null,{"$f":"_xlfn.XLOOKUP(F1374,'Raw Data'!$I$4:$I$5000,'Raw Data'!$D$4:$D$5000,\"*** Mnemonic not found ***\",0)","v":"*** Mnemonic not found ***"},"SUCMPROPORRSK_US_FIG_",null,"Input",null,null,473,"F","Input!F473",{"$f":"_xlfn.XLOOKUP(F1374,'Raw Data'!$I$4:$I$5000,'Raw Data'!$E$4:$E$5000,100,0)","v":100},{"$f":"IF(N1374=0,_xlfn.XLOOKUP(F1374,'Raw Data'!$I$4:$I$5000,'Raw Data'!$H$4:$H$5000,\"\",0),\"\")","v":""},{"$f":"IF(INDIRECT(M1374) = \"\",\"\",INDIRECT(M1374))","v":""},"n"]
["SUCMPROPORRSK_US","STPR","A&H stop loss reinsurance",null,{"$f":"_xlfn.XLOOKUP(F1375,'Raw Data'!$I$4:$I$5000,'Raw Data'!$D$4:$D$5000,\"*** Mnemonic not found ***\",0)","v":"*** Mnemonic not found ***"},"SUCMPROPORRSK_US_STPR_",null,"Input",null,null,474,"F","Input!F474",{"$f":"_xlfn.XLOOKUP(F1375,'Raw Data'!$I$4:$I$5000,'Raw Data'!$E$4:$E$5000,100,0)","v":100},{"$f":"IF(N1375=0,_xlfn.XLOOKUP(F1375,'Raw Data'!$I$4:$I$5000,'Raw Data'!$H$4:$H$5000,\"\",0),\"\")","v":""},{"$f":"IF(INDIRECT(M1375) = \"\",\"\",INDIRECT(M1375))","v":""},"n"]
["SUCMPROPORRSK_US","AAH","Accident & health",null,{"$f":"_xlfn.XLOOKUP(F1376,'Raw Data'!$I$4:$I$5000,'Raw Data'!$D$4:$D$5000,\"*** Mnemonic not found ***\",0)","v":"*** Mnemonic not found ***"},"SUCMPROPORRSK_US_AAH_",null,"Input",null,null,475,"F","Input!F475",{"$f":"_xlfn.XLOOKUP(F1376,'Raw Data'!$I$4:$I$5000,'Raw Data'!$E$4:$E$5000,100,0)","v":100},{"$f":"IF(N1376=0,_xlfn.XLOOKUP(F1376,'Raw Data'!$I$4:$I$5000,'Raw Data'!$H$4:$H$5000,\"\",0),\"\")","v":""},{"$f":"IF(INDIRECT(M1376) = \"\",\"\",INDIRECT(M1376))","v":""},"n"]
["SUCMPROPORRSK_US","ADSADC","Administrative services only/administrative services contract",null,{"$f":"_xlfn.XLOOKUP(F1377,'Raw Data'!$I$4:$I$5000,'Raw Data'!$D$4:$D$5000,\"*** Mnemonic not found ***\",0)","v":"*** Mnemonic not found ***"},"SUCMPROPORRSK_US_ADSADC_",null,"Input",null,null,476,"F","Input!F476",{"$f":"_xlfn.XLOOKUP(F1377,'Raw Data'!$I$4:$I$5000,'Raw Data'!$E$4:$E$5000,100,0)","v":100},{"$f":"IF(N1377=0,_xlfn.XLOOKUP(F1377,'Raw Data'!$I$4:$I$5000,'Raw Data'!$H$4:$H$5000,\"\",0),\"\")","v":""},{"$f":"IF(INDIRECT(M1377) = \"\",\"\",INDIRECT(M1377))","v":""},"n"]
["SUCMPROPORRSK_US","FLRS","Full risk and experience rated group and individual health",null,{"$f":"_xlfn.XLOOKUP(F1378,'Raw Data'!$I$4:$I$5000,'Raw Data'!$D$4:$D$5000,\"*** Mnemonic not found ***\",0)","v":"*** Mnemonic not found ***"},"SUCMPROPORRSK_US_FLRS_",null,"Input",null,null,477,"F","Input!F477",{"$f":"_xlfn.XLOOKUP(F1378,'Raw Data'!$I$4:$I$5000,'Raw Data'!$E$4:$E$5000,100,0)","v":100},{"$f":"IF(N1378=0,_xlfn.XLOOKUP(F1378,'Raw Data'!$I$4:$I$5000,'Raw Data'!$H$4:$H$5000,\"\",0),\"\")","v":""},{"$f":"IF(INDIRECT(M1378) = \"\",\"\",INDIRECT(M1378))","v":""},"n"]
["SUCMPROPORRSK_US","DENVIS","Dental and vision",null,{"$f":"_xlfn.XLOOKUP(F1379,'Raw Data'!$I$4:$I$5000,'Raw Data'!$D$4:$D$5000,\"*** Mnemonic not found ***\",0)","v":"*** Mnemonic not found ***"},"SUCMPROPORRSK_US_DENVIS_",null,"Input",null,null,478,"F","Input!F478",{"$f":"_xlfn.XLOOKUP(F1379,'Raw Data'!$I$4:$I$5000,'Raw Data'!$E$4:$E$5000,100,0)","v":100},{"$f":"IF(N1379=0,_xlfn.XLOOKUP(F1379,'Raw Data'!$I$4:$I$5000,'Raw Data'!$H$4:$H$5000,\"\",0),\"\")","v":""},{"$f":"IF(INDIRECT(M1379) = \"\",\"\",INDIRECT(M1379))","v":""},"n"]
["SUCMPROPORRSK_US","FEP","Federal employee health benefit program",null,{"$f":"_xlfn.XLOOKUP(F1380,'Raw Data'!$I$4:$I$5000,'Raw Data'!$D$4:$D$5000,\"*** Mnemonic not found ***\",0)","v":"*** Mnemonic not found ***"},"SUCMPROPORRSK_US_FEP_",null,"Input",null,null,479,"F","Input!F479",{"$f":"_xlfn.XLOOKUP(F1380,'Raw Data'!$I$4:$I$5000,'Raw Data'!$E$4:$E$5000,100,0)","v":100},{"$f":"IF(N1380=0,_xlfn.XLOOKUP(F1380,'Raw Data'!$I$4:$I$5000,'Raw Data'!$H$4:$H$5000,\"\",0),\"\")","v":""},{"$f":"IF(INDIRECT(M1380) = \"\",\"\",INDIRECT(M1380))","v":""},"n"]
["SUCMPROPORRSK_US","HMDO","Hospital indemnity, accidental death & dismemberment, specified disease, and other limited benefits",null,{"$f":"_xlfn.XLOOKUP(F1381,'Raw Data'!$I$4:$I$5000,'Raw Data'!$D$4:$D$5000,\"*** Mnemonic not found ***\",0)","v":"*** Mnemonic not found ***"},"SUCMPROPORRSK_US_HMDO_",null,"Input",null,null,480,"F","Input!F480",{"$f":"_xlfn.XLOOKUP(F1381,'Raw Data'!$I$4:$I$5000,'Raw Data'!$E$4:$E$5000,100,0)","v":100},{"$f":"IF(N1381=0,_xlfn.XLOOKUP(F1381,'Raw Data'!$I$4:$I$5000,'Raw Data'!$H$4:$H$5000,\"\",0),\"\")","v":""},{"$f":"IF(INDIRECT(M1381) = \"\",\"\",INDIRECT(M1381))","v":""},"n"]
["SUCMPROPORRSK_US","MDMID","Medicare and Medicaid",null,{"$f":"_xlfn.XLOOKUP(F1382,'Raw Data'!$I$4:$I$5000,'Raw Data'!$D$4:$D$5000,\"*** Mnemonic not found ***\",0)","v":"*** Mnemonic not found ***"},"SUCMPROPORRSK_US_MDMID_",null,"Input",null,null,481,"F","Input!F481",{"$f":"_xlfn.XLOOKUP(F1382,'Raw Data'!$I$4:$I$5000,'Raw Data'!$E$4:$E$5000,100,0)","v":100},{"$f":"IF(N1382=0,_xlfn.XLOOKUP(F1382,'Raw Data'!$I$4:$I$5000,'Raw Data'!$H$4:$H$5000,\"\",0),\"\")","v":""},{"$f":"IF(INDIRECT(M1382) = \"\",\"\",INDIRECT(M1382))","v":""},"n"]
["SUCMPROPORRSK_US","MEDDO","Medicare Part D (all other)",null,{"$f":"_xlfn.XLOOKUP(F1383,'Raw Data'!$I$4:$I$5000,'Raw Data'!$D$4:$D$5000,\"*** Mnemonic not found ***\",0)","v":"*** Mnemonic not found ***"},"SUCMPROPORRSK_US_MEDDO_",null,"Input",null,null,482,"F","Input!F482",{"$f":"_xlfn.XLOOKUP(F1383,'Raw Data'!$I$4:$I$5000,'Raw Data'!$E$4:$E$5000,100,0)","v":100},{"$f":"IF(N1383=0,_xlfn.XLOOKUP(F1383,'Raw Data'!$I$4:$I$5000,'Raw Data'!$H$4:$H$5000,\"\",0),\"\")","v":""},{"$f":"IF(INDIRECT(M1383) = \"\",\"\",INDIRECT(M1383))","v":""},"n"]
["SUCMPROPORRSK_US","MEDDRO","Medicare Part D (risk corridor only)",null,{"$f":"_xlfn.XLOOKUP(F1384,'Raw Data'!$I$4:$I$5000,'Raw Data'!$D$4:$D$5000,\"*** Mnemonic not found ***\",0)","v":"*** Mnemonic not found ***"},"SUCMPROPORRSK_US_MEDDRO_",null,"Input",null,null,483,"F","Input!F483",{"$f":"_xlfn.XLOOKUP(F1384,'Raw Data'!$I$4:$I$5000,'Raw Data'!$E$4:$E$5000,100,0)","v":100},{"$f":"IF(N1384=0,_xlfn.XLOOKUP(F1384,'Raw Data'!$I$4:$I$5000,'Raw Data'!$H$4:$H$5000,\"\",0),\"\")","v":""},{"$f":"IF(INDIRECT(M1384) = \"\",\"\",INDIRECT(M1384))","v":""},"n"]
["SUCMPROPORRSK_US","MEDDRR","Medicare Part D (risk corridor and reinsurance)",null,{"$f":"_xlfn.XLOOKUP(F1385,'Raw Data'!$I$4:$I$5000,'Raw Data'!$D$4:$D$5000,\"*** Mnemonic not found ***\",0)","v":"*** Mnemonic not found ***"},"SUCMPROPORRSK_US_MEDDRR_",null,"Input",null,null,484,"F","Input!F484",{"$f":"_xlfn.XLOOKUP(F1385,'Raw Data'!$I$4:$I$5000,'Raw Data'!$E$4:$E$5000,100,0)","v":100},{"$f":"IF(N1385=0,_xlfn.XLOOKUP(F1385,'Raw Data'!$I$4:$I$5000,'Raw Data'!$H$4:$H$5000,\"\",0),\"\")","v":""},{"$f":"IF(INDIRECT(M1385) = \"\",\"\",INDIRECT(M1385))","v":""},"n"]
["SUCMPROPORRSK_US","MDS","Medicare supplemental",null,{"$f":"_xlfn.XLOOKUP(F1386,'Raw Data'!$I$4:$I$5000,'Raw Data'!$D$4:$D$5000,\"*** Mnemonic not found ***\",0)","v":"*** Mnemonic not found ***"},"SUCMPROPORRSK_US_MDS_",null,"Input",null,null,485,"F","Input!F485",{"$f":"_xlfn.XLOOKUP(F1386,'Raw Data'!$I$4:$I$5000,'Raw Data'!$E$4:$E$5000,100,0)","v":100},{"$f":"IF(N1386=0,_xlfn.XLOOKUP(F1386,'Raw Data'!$I$4:$I$5000,'Raw Data'!$H$4:$H$5000,\"\",0),\"\")","v":""},{"$f":"IF(INDIRECT(M1386) = \"\",\"\",INDIRECT(M1386))","v":""},"n"]
["SUCMPROPORRSK_US","OLBF","Other health",null,{"$f":"_xlfn.XLOOKUP(F1387,'Raw Data'!$I$4:$I$5000,'Raw Data'!$D$4:$D$5000,\"*** Mnemonic not found ***\",0)","v":"*** Mnemonic not found ***"},"SUCMPROPORRSK_US_OLBF_",null,"Input",null,null,486,"F","Input!F486",{"$f":"_xlfn.XLOOKUP(F1387,'Raw Data'!$I$4:$I$5000,'Raw Data'!$E$4:$E$5000,100,0)","v":100},{"$f":"IF(N1387=0,_xlfn.XLOOKUP(F1387,'Raw Data'!$I$4:$I$5000,'Raw Data'!$H$4:$H$5000,\"\",0),\"\")","v":""},{"$f":"IF(INDIRECT(M1387) = \"\",\"\",INDIRECT(M1387))","v":""},"n"]
["SUCMPROPORRSK_US","AIR","Aircraft",null,{"$f":"_xlfn.XLOOKUP(F1388,'Raw Data'!$I$4:$I$5000,'Raw Data'!$D$4:$D$5000,\"*** Mnemonic not found ***\",0)","v":"*** Mnemonic not found ***"},"SUCMPROPORRSK_US_AIR_",null,"Input",null,null,487,"F","Input!F487",{"$f":"_xlfn.XLOOKUP(F1388,'Raw Data'!$I$4:$I$5000,'Raw Data'!$E$4:$E$5000,100,0)","v":100},{"$f":"IF(N1388=0,_xlfn.XLOOKUP(F1388,'Raw Data'!$I$4:$I$5000,'Raw Data'!$H$4:$H$5000,\"\",0),\"\")","v":""},{"$f":"IF(INDIRECT(M1388) = \"\",\"\",INDIRECT(M1388))","v":""},"n"]
["SUCMPROPORRSK_US","MPIN","Marine protection & indemnity",null,{"$f":"_xlfn.XLOOKUP(F1389,'Raw Data'!$I$4:$I$5000,'Raw Data'!$D$4:$D$5000,\"*** Mnemonic not found ***\",0)","v":"*** Mnemonic not found ***"},"SUCMPROPORRSK_US_MPIN_",null,"Input",null,null,488,"F",{"$f":"CONCATENATE(H1389,\"!\",L1389,K1389)","v":"Input!F488"},{"$f":"_xlfn.XLOOKUP(F1389,'Raw Data'!$I$4:$I$5000,'Raw Data'!$E$4:$E$5000,100,0)","v":100},{"$f":"IF(N1389=0,_xlfn.XLOOKUP(F1389,'Raw Data'!$I$4:$I$5000,'Raw Data'!$H$4:$H$5000,\"\",0),\"\")","v":""},{"$f":"IF(INDIRECT(M1389) = \"\",\"\",INDIRECT(M1389))","v":""},"n"]
["SUCMPROPORRSK_US","OCM","Ocean marine",null,{"$f":"_xlfn.XLOOKUP(F1390,'Raw Data'!$I$4:$I$5000,'Raw Data'!$D$4:$D$5000,\"*** Mnemonic not found ***\",0)","v":"*** Mnemonic not found ***"},"SUCMPROPORRSK_US_OCM_",null,"Input",null,null,489,"F",{"$f":"CONCATENATE(H1390,\"!\",L1390,K1390)","v":"Input!F489"},{"$f":"_xlfn.XLOOKUP(F1390,'Raw Data'!$I$4:$I$5000,'Raw Data'!$E$4:$E$5000,100,0)","v":100},{"$f":"IF(N1390=0,_xlfn.XLOOKUP(F1390,'Raw Data'!$I$4:$I$5000,'Raw Data'!$H$4:$H$5000,\"\",0),\"\")","v":""},{"$f":"IF(INDIRECT(M1390) = \"\",\"\",INDIRECT(M1390))","v":""},"n"]
["SUCMPROPORRSK_US","TITLE","Title",null,{"$f":"_xlfn.XLOOKUP(F1391,'Raw Data'!$I$4:$I$5000,'Raw Data'!$D$4:$D$5000,\"*** Mnemonic not found ***\",0)","v":"*** Mnemonic not found ***"},"SUCMPROPORRSK_US_TITLE_",null,"Input",null,null,{"$f":"K1390+1","v":490},{"$f":"L1390","v":"F"},"Input!F490",{"$f":"_xlfn.XLOOKUP(F1391,'Raw Data'!$I$4:$I$5000,'Raw Data'!$E$4:$E$5000,100,0)","v":100},{"$f":"IF(N1391=0,_xlfn.XLOOKUP(F1391,'Raw Data'!$I$4:$I$5000,'Raw Data'!$H$4:$H$5000,\"\",0),\"\")","v":""},{"$f":"IF(INDIRECT(M1391) = \"\",\"\",INDIRECT(M1391))","v":""},"n"]
["SUCMPROPORRSK_US","WAR","Warranty",null,{"$f":"_xlfn.XLOOKUP(F1392,'Raw Data'!$I$4:$I$5000,'Raw Data'!$D$4:$D$5000,\"*** Mnemonic not found ***\",0)","v":"*** Mnemonic not found ***"},"SUCMPROPORRSK_US_WAR_",null,"Input",null,null,491,"F","Input!F491",{"$f":"_xlfn.XLOOKUP(F1392,'Raw Data'!$I$4:$I$5000,'Raw Data'!$E$4:$E$5000,100,0)","v":100},{"$f":"IF(N1392=0,_xlfn.XLOOKUP(F1392,'Raw Data'!$I$4:$I$5000,'Raw Data'!$H$4:$H$5000,\"\",0),\"\")","v":""},{"$f":"IF(INDIRECT(M1392) = \"\",\"\",INDIRECT(M1392))","v":""},"n"]
["SUCMPROPORRSK_US","OCAH","Other",null,{"$f":"_xlfn.XLOOKUP(F1393,'Raw Data'!$I$4:$I$5000,'Raw Data'!$D$4:$D$5000,\"*** Mnemonic not found ***\",0)","v":"*** Mnemonic not found ***"},"SUCMPROPORRSK_US_OCAH_",null,"Input",null,null,492,{"$f":"L1392","v":"F"},"Input!F492",{"$f":"_xlfn.XLOOKUP(F1393,'Raw Data'!$I$4:$I$5000,'Raw Data'!$E$4:$E$5000,100,0)","v":100},{"$f":"IF(N1393=0,_xlfn.XLOOKUP(F1393,'Raw Data'!$I$4:$I$5000,'Raw Data'!$H$4:$H$5000,\"\",0),\"\")","v":""},{"$f":"IF(INDIRECT(M1393) = \"\",\"\",INDIRECT(M1393))","v":""},"n"]
["SUCMNONPROPORRSK_US","EWCP","Excess workers compensation",null,{"$f":"_xlfn.XLOOKUP(F1394,'Raw Data'!$I$4:$I$5000,'Raw Data'!$D$4:$D$5000,\"*** Mnemonic not found ***\",0)","v":"*** Mnemonic not found ***"},"SUCMNONPROPORRSK_US_EWCP_",null,"Input",{"$f":"ROW(section_non_life_prem)","v":437},{"$f":"J1357","v":19},{"$f":"I1394+J1394","v":456},"G","Input!G456",{"$f":"_xlfn.XLOOKUP(F1394,'Raw Data'!$I$4:$I$5000,'Raw Data'!$E$4:$E$5000,100,0)","v":100},{"$f":"IF(N1394=0,_xlfn.XLOOKUP(F1394,'Raw Data'!$I$4:$I$5000,'Raw Data'!$H$4:$H$5000,\"\",0),\"\")","v":""},{"$f":"IF(INDIRECT(M1394) = \"\",\"\",INDIRECT(M1394))","v":""},"n"]
["SUCMNONPROPORRSK_US","MEC","Medical malpractice - claims made",null,{"$f":"_xlfn.XLOOKUP(F1395,'Raw Data'!$I$4:$I$5000,'Raw Data'!$D$4:$D$5000,\"*** Mnemonic not found ***\",0)","v":"*** Mnemonic not found ***"},"SUCMNONPROPORRSK_US_MEC_",null,"Input",null,null,{"$f":"K1394+1","v":457},{"$f":"L1394","v":"G"},"Input!G457",{"$f":"_xlfn.XLOOKUP(F1395,'Raw Data'!$I$4:$I$5000,'Raw Data'!$E$4:$E$5000,100,0)","v":100},{"$f":"IF(N1395=0,_xlfn.XLOOKUP(F1395,'Raw Data'!$I$4:$I$5000,'Raw Data'!$H$4:$H$5000,\"\",0),\"\")","v":""},{"$f":"IF(INDIRECT(M1395) = \"\",\"\",INDIRECT(M1395))","v":""},"n"]
["SUCMNONPROPORRSK_US","MEO","Medical malpractice - occurrence",null,{"$f":"_xlfn.XLOOKUP(F1396,'Raw Data'!$I$4:$I$5000,'Raw Data'!$D$4:$D$5000,\"*** Mnemonic not found ***\",0)","v":"*** Mnemonic not found ***"},"SUCMNONPROPORRSK_US_MEO_",null,"Input",null,null,{"$f":"K1395+1","v":458},{"$f":"L1395","v":"G"},"Input!G458",{"$f":"_xlfn.XLOOKUP(F1396,'Raw Data'!$I$4:$I$5000,'Raw Data'!$E$4:$E$5000,100,0)","v":100},{"$f":"IF(N1396=0,_xlfn.XLOOKUP(F1396,'Raw Data'!$I$4:$I$5000,'Raw Data'!$H$4:$H$5000,\"\",0),\"\")","v":""},{"$f":"IF(INDIRECT(M1396) = \"\",\"\",INDIRECT(M1396))","v":""},"n"]
["SUCMNONPROPORRSK_US","OLC","Other liability - claims made",null,{"$f":"_xlfn.XLOOKUP(F1397,'Raw Data'!$I$4:$I$5000,'Raw Data'!$D$4:$D$5000,\"*** Mnemonic not found ***\",0)","v":"*** Mnemonic not found ***"},"SUCMNONPROPORRSK_US_OLC_",null,"Input",null,null,459,"G","Input!G459",{"$f":"_xlfn.XLOOKUP(F1397,'Raw Data'!$I$4:$I$5000,'Raw Data'!$E$4:$E$5000,100,0)","v":100},{"$f":"IF(N1397=0,_xlfn.XLOOKUP(F1397,'Raw Data'!$I$4:$I$5000,'Raw Data'!$H$4:$H$5000,\"\",0),\"\")","v":""},{"$f":"IF(INDIRECT(M1397) = \"\",\"\",INDIRECT(M1397))","v":""},"n"]
["SUCMNONPROPORRSK_US","OLO","Other liability - occurrence",null,{"$f":"_xlfn.XLOOKUP(F1398,'Raw Data'!$I$4:$I$5000,'Raw Data'!$D$4:$D$5000,\"*** Mnemonic not found ***\",0)","v":"*** Mnemonic not found ***"},"SUCMNONPROPORRSK_US_OLO_",null,"Input",null,null,460,"G","Input!G460",{"$f":"_xlfn.XLOOKUP(F1398,'Raw Data'!$I$4:$I$5000,'Raw Data'!$E$4:$E$5000,100,0)","v":100},{"$f":"IF(N1398=0,_xlfn.XLOOKUP(F1398,'Raw Data'!$I$4:$I$5000,'Raw Data'!$H$4:$H$5000,\"\",0),\"\")","v":""},{"$f":"IF(INDIRECT(M1398) = \"\",\"\",INDIRECT(M1398))","v":""},"n"]
["SUCMNONPROPORRSK_US","PLC","Product liability - claims made",null,{"$f":"_xlfn.XLOOKUP(F1399,'Raw Data'!$I$4:$I$5000,'Raw Data'!$D$4:$D$5000,\"*** Mnemonic not found ***\",0)","v":"*** Mnemonic not found ***"},"SUCMNONPROPORRSK_US_PLC_",null,"Input",null,null,461,"G",{"$f":"CONCATENATE(H1399,\"!\",L1399,K1399)","v":"Input!G461"},{"$f":"_xlfn.XLOOKUP(F1399,'Raw Data'!$I$4:$I$5000,'Raw Data'!$E$4:$E$5000,100,0)","v":100},{"$f":"IF(N1399=0,_xlfn.XLOOKUP(F1399,'Raw Data'!$I$4:$I$5000,'Raw Data'!$H$4:$H$5000,\"\",0),\"\")","v":""},{"$f":"IF(INDIRECT(M1399) = \"\",\"\",INDIRECT(M1399))","v":""},"n"]
["SUCMNONPROPORRSK_US","PLO","Product liability - occurrence",null,{"$f":"_xlfn.XLOOKUP(F1400,'Raw Data'!$I$4:$I$5000,'Raw Data'!$D$4:$D$5000,\"*** Mnemonic not found ***\",0)","v":"*** Mnemonic not found ***"},"SUCMNONPROPORRSK_US_PLO_",null,"Input",null,null,462,"G","Input!G462",{"$f":"_xlfn.XLOOKUP(F1400,'Raw Data'!$I$4:$I$5000,'Raw Data'!$E$4:$E$5000,100,0)","v":100},{"$f":"IF(N1400=0,_xlfn.XLOOKUP(F1400,'Raw Data'!$I$4:$I$5000,'Raw Data'!$H$4:$H$5000,\"\",0),\"\")","v":""},{"$f":"IF(INDIRECT(M1400) = \"\",\"\",INDIRECT(M1400))","v":""},"n"]
["SUCMNONPROPORRSK_US","WCP","Workers compensation",null,{"$f":"_xlfn.XLOOKUP(F1401,'Raw Data'!$I$4:$I$5000,'Raw Data'!$D$4:$D$5000,\"*** Mnemonic not found ***\",0)","v":"*** Mnemonic not found ***"},"SUCMNONPROPORRSK_US_WCP_",null,"Input",null,null,463,"G","Input!G463",{"$f":"_xlfn.XLOOKUP(F1401,'Raw Data'!$I$4:$I$5000,'Raw Data'!$E$4:$E$5000,100,0)","v":100},{"$f":"IF(N1401=0,_xlfn.XLOOKUP(F1401,'Raw Data'!$I$4:$I$5000,'Raw Data'!$H$4:$H$5000,\"\",0),\"\")","v":""},{"$f":"IF(INDIRECT(M1401) = \"\",\"\",INDIRECT(M1401))","v":""},"n"]
["SUCMNONPROPORRSK_US","BLM","Boiler & machinery",null,{"$f":"_xlfn.XLOOKUP(F1402,'Raw Data'!$I$4:$I$5000,'Raw Data'!$D$4:$D$5000,\"*** Mnemonic not found ***\",0)","v":"*** Mnemonic not found ***"},"SUCMNONPROPORRSK_US_BLM_",null,"Input",null,null,464,"G","Input!G464",{"$f":"_xlfn.XLOOKUP(F1402,'Raw Data'!$I$4:$I$5000,'Raw Data'!$E$4:$E$5000,100,0)","v":100},{"$f":"IF(N1402=0,_xlfn.XLOOKUP(F1402,'Raw Data'!$I$4:$I$5000,'Raw Data'!$H$4:$H$5000,\"\",0),\"\")","v":""},{"$f":"IF(INDIRECT(M1402) = \"\",\"\",INDIRECT(M1402))","v":""},"n"]
["SUCMNONPROPORRSK_US","CMP","Commercial multi-peril",null,{"$f":"_xlfn.XLOOKUP(F1403,'Raw Data'!$I$4:$I$5000,'Raw Data'!$D$4:$D$5000,\"*** Mnemonic not found ***\",0)","v":"*** Mnemonic not found ***"},"SUCMNONPROPORRSK_US_CMP_",null,"Input",null,null,465,"G","Input!G465",{"$f":"_xlfn.XLOOKUP(F1403,'Raw Data'!$I$4:$I$5000,'Raw Data'!$E$4:$E$5000,100,0)","v":100},{"$f":"IF(N1403=0,_xlfn.XLOOKUP(F1403,'Raw Data'!$I$4:$I$5000,'Raw Data'!$H$4:$H$5000,\"\",0),\"\")","v":""},{"$f":"IF(INDIRECT(M1403) = \"\",\"\",INDIRECT(M1403))","v":""},"n"]
["SUCMNONPROPORRSK_US","HFM","Homeowner/Farmowner multi-peril",null,{"$f":"_xlfn.XLOOKUP(F1404,'Raw Data'!$I$4:$I$5000,'Raw Data'!$D$4:$D$5000,\"*** Mnemonic not found ***\",0)","v":"*** Mnemonic not found ***"},"SUCMNONPROPORRSK_US_HFM_",null,"Input",null,null,466,"G","Input!G466",{"$f":"_xlfn.XLOOKUP(F1404,'Raw Data'!$I$4:$I$5000,'Raw Data'!$E$4:$E$5000,100,0)","v":100},{"$f":"IF(N1404=0,_xlfn.XLOOKUP(F1404,'Raw Data'!$I$4:$I$5000,'Raw Data'!$H$4:$H$5000,\"\",0),\"\")","v":""},{"$f":"IF(INDIRECT(M1404) = \"\",\"\",INDIRECT(M1404))","v":""},"n"]
["SUCMNONPROPORRSK_US","SPP","Special property (fire, allied lines, inland marine, earthquake, burglary and theft)",null,{"$f":"_xlfn.XLOOKUP(F1405,'Raw Data'!$I$4:$I$5000,'Raw Data'!$D$4:$D$5000,\"*** Mnemonic not found ***\",0)","v":"*** Mnemonic not found ***"},"SUCMNONPROPORRSK_US_SPP_",null,"Input",null,null,467,"G","Input!G467",{"$f":"_xlfn.XLOOKUP(F1405,'Raw Data'!$I$4:$I$5000,'Raw Data'!$E$4:$E$5000,100,0)","v":100},{"$f":"IF(N1405=0,_xlfn.XLOOKUP(F1405,'Raw Data'!$I$4:$I$5000,'Raw Data'!$H$4:$H$5000,\"\",0),\"\")","v":""},{"$f":"IF(INDIRECT(M1405) = \"\",\"\",INDIRECT(M1405))","v":""},"n"]
["SUCMNONPROPORRSK_US","APB","Auto physical damage",null,{"$f":"_xlfn.XLOOKUP(F1406,'Raw Data'!$I$4:$I$5000,'Raw Data'!$D$4:$D$5000,\"*** Mnemonic not found ***\",0)","v":"*** Mnemonic not found ***"},"SUCMNONPROPORRSK_US_APB_",null,"Input",null,null,468,"G","Input!G468",{"$f":"_xlfn.XLOOKUP(F1406,'Raw Data'!$I$4:$I$5000,'Raw Data'!$E$4:$E$5000,100,0)","v":100},{"$f":"IF(N1406=0,_xlfn.XLOOKUP(F1406,'Raw Data'!$I$4:$I$5000,'Raw Data'!$H$4:$H$5000,\"\",0),\"\")","v":""},{"$f":"IF(INDIRECT(M1406) = \"\",\"\",INDIRECT(M1406))","v":""},"n"]
["SUCMNONPROPORRSK_US","CAL","Commercial auto liability",null,{"$f":"_xlfn.XLOOKUP(F1407,'Raw Data'!$I$4:$I$5000,'Raw Data'!$D$4:$D$5000,\"*** Mnemonic not found ***\",0)","v":"*** Mnemonic not found ***"},"SUCMNONPROPORRSK_US_CAL_",null,"Input",null,null,469,"G","Input!G469",{"$f":"_xlfn.XLOOKUP(F1407,'Raw Data'!$I$4:$I$5000,'Raw Data'!$E$4:$E$5000,100,0)","v":100},{"$f":"IF(N1407=0,_xlfn.XLOOKUP(F1407,'Raw Data'!$I$4:$I$5000,'Raw Data'!$H$4:$H$5000,\"\",0),\"\")","v":""},{"$f":"IF(INDIRECT(M1407) = \"\",\"\",INDIRECT(M1407))","v":""},"n"]
["SUCMNONPROPORRSK_US","PPA","Private passenger auto liability",null,{"$f":"_xlfn.XLOOKUP(F1408,'Raw Data'!$I$4:$I$5000,'Raw Data'!$D$4:$D$5000,\"*** Mnemonic not found ***\",0)","v":"*** Mnemonic not found ***"},"SUCMNONPROPORRSK_US_PPA_",null,"Input",null,null,470,"G","Input!G470",{"$f":"_xlfn.XLOOKUP(F1408,'Raw Data'!$I$4:$I$5000,'Raw Data'!$E$4:$E$5000,100,0)","v":100},{"$f":"IF(N1408=0,_xlfn.XLOOKUP(F1408,'Raw Data'!$I$4:$I$5000,'Raw Data'!$H$4:$H$5000,\"\",0),\"\")","v":""},{"$f":"IF(INDIRECT(M1408) = \"\",\"\",INDIRECT(M1408))","v":""},"n"]
["SUCMNONPROPORRSK_US","CRD","Credit",null,{"$f":"_xlfn.XLOOKUP(F1409,'Raw Data'!$I$4:$I$5000,'Raw Data'!$D$4:$D$5000,\"*** Mnemonic not found ***\",0)","v":"*** Mnemonic not found ***"},"SUCMNONPROPORRSK_US_CRD_",null,"Input",null,null,471,"G","Input!G471",{"$f":"_xlfn.XLOOKUP(F1409,'Raw Data'!$I$4:$I$5000,'Raw Data'!$E$4:$E$5000,100,0)","v":100},{"$f":"IF(N1409=0,_xlfn.XLOOKUP(F1409,'Raw Data'!$I$4:$I$5000,'Raw Data'!$H$4:$H$5000,\"\",0),\"\")","v":""},{"$f":"IF(INDIRECT(M1409) = \"\",\"\",INDIRECT(M1409))","v":""},"n"]
["SUCMNONPROPORRSK_US","FIDSUR","Fidelity/Surety",null,{"$f":"_xlfn.XLOOKUP(F1410,'Raw Data'!$I$4:$I$5000,'Raw Data'!$D$4:$D$5000,\"*** Mnemonic not found ***\",0)","v":"*** Mnemonic not found ***"},"SUCMNONPROPORRSK_US_FIDSUR_",null,"Input",null,null,472,"G","Input!G472",{"$f":"_xlfn.XLOOKUP(F1410,'Raw Data'!$I$4:$I$5000,'Raw Data'!$E$4:$E$5000,100,0)","v":100},{"$f":"IF(N1410=0,_xlfn.XLOOKUP(F1410,'Raw Data'!$I$4:$I$5000,'Raw Data'!$H$4:$H$5000,\"\",0),\"\")","v":""},{"$f":"IF(INDIRECT(M1410) = \"\",\"\",INDIRECT(M1410))","v":""},"n"]
["SUCMNONPROPORRSK_US","FIG","Financial guaranty ",null,{"$f":"_xlfn.XLOOKUP(F1411,'Raw Data'!$I$4:$I$5000,'Raw Data'!$D$4:$D$5000,\"*** Mnemonic not found ***\",0)","v":"*** Mnemonic not found ***"},"SUCMNONPROPORRSK_US_FIG_",null,"Input",null,null,473,"G","Input!G473",{"$f":"_xlfn.XLOOKUP(F1411,'Raw Data'!$I$4:$I$5000,'Raw Data'!$E$4:$E$5000,100,0)","v":100},{"$f":"IF(N1411=0,_xlfn.XLOOKUP(F1411,'Raw Data'!$I$4:$I$5000,'Raw Data'!$H$4:$H$5000,\"\",0),\"\")","v":""},{"$f":"IF(INDIRECT(M1411) = \"\",\"\",INDIRECT(M1411))","v":""},"n"]
["SUCMNONPROPORRSK_US","STPR","A&H stop loss reinsurance",null,{"$f":"_xlfn.XLOOKUP(F1412,'Raw Data'!$I$4:$I$5000,'Raw Data'!$D$4:$D$5000,\"*** Mnemonic not found ***\",0)","v":"*** Mnemonic not found ***"},"SUCMNONPROPORRSK_US_STPR_",null,"Input",null,null,474,"G","Input!G474",{"$f":"_xlfn.XLOOKUP(F1412,'Raw Data'!$I$4:$I$5000,'Raw Data'!$E$4:$E$5000,100,0)","v":100},{"$f":"IF(N1412=0,_xlfn.XLOOKUP(F1412,'Raw Data'!$I$4:$I$5000,'Raw Data'!$H$4:$H$5000,\"\",0),\"\")","v":""},{"$f":"IF(INDIRECT(M1412) = \"\",\"\",INDIRECT(M1412))","v":""},"n"]
["SUCMNONPROPORRSK_US","AAH","Accident & health",null,{"$f":"_xlfn.XLOOKUP(F1413,'Raw Data'!$I$4:$I$5000,'Raw Data'!$D$4:$D$5000,\"*** Mnemonic not found ***\",0)","v":"*** Mnemonic not found ***"},"SUCMNONPROPORRSK_US_AAH_",null,"Input",null,null,475,"G","Input!G475",{"$f":"_xlfn.XLOOKUP(F1413,'Raw Data'!$I$4:$I$5000,'Raw Data'!$E$4:$E$5000,100,0)","v":100},{"$f":"IF(N1413=0,_xlfn.XLOOKUP(F1413,'Raw Data'!$I$4:$I$5000,'Raw Data'!$H$4:$H$5000,\"\",0),\"\")","v":""},{"$f":"IF(INDIRECT(M1413) = \"\",\"\",INDIRECT(M1413))","v":""},"n"]
["SUCMNONPROPORRSK_US","ADSADC","Administrative services only/administrative services contract",null,{"$f":"_xlfn.XLOOKUP(F1414,'Raw Data'!$I$4:$I$5000,'Raw Data'!$D$4:$D$5000,\"*** Mnemonic not found ***\",0)","v":"*** Mnemonic not found ***"},"SUCMNONPROPORRSK_US_ADSADC_",null,"Input",null,null,476,"G","Input!G476",{"$f":"_xlfn.XLOOKUP(F1414,'Raw Data'!$I$4:$I$5000,'Raw Data'!$E$4:$E$5000,100,0)","v":100},{"$f":"IF(N1414=0,_xlfn.XLOOKUP(F1414,'Raw Data'!$I$4:$I$5000,'Raw Data'!$H$4:$H$5000,\"\",0),\"\")","v":""},{"$f":"IF(INDIRECT(M1414) = \"\",\"\",INDIRECT(M1414))","v":""},"n"]
["SUCMNONPROPORRSK_US","FLRS","Full risk and experience rated group and individual health",null,{"$f":"_xlfn.XLOOKUP(F1415,'Raw Data'!$I$4:$I$5000,'Raw Data'!$D$4:$D$5000,\"*** Mnemonic not found ***\",0)","v":"*** Mnemonic not found ***"},{"$f":"CONCATENATE(A1415,\"_\",B1415,\"_\",D1415)","v":"SUCMNONPROPORRSK_US_FLRS_"},null,"Input",null,null,477,"G","Input!G477",{"$f":"_xlfn.XLOOKUP(F1415,'Raw Data'!$I$4:$I$5000,'Raw Data'!$E$4:$E$5000,100,0)","v":100},{"$f":"IF(N1415=0,_xlfn.XLOOKUP(F1415,'Raw Data'!$I$4:$I$5000,'Raw Data'!$H$4:$H$5000,\"\",0),\"\")","v":""},{"$f":"IF(INDIRECT(M1415) = \"\",\"\",INDIRECT(M1415))","v":""},"n"]
["SUCMNONPROPORRSK_US","DENVIS","Dental and vision",null,{"$f":"_xlfn.XLOOKUP(F1416,'Raw Data'!$I$4:$I$5000,'Raw Data'!$D$4:$D$5000,\"*** Mnemonic not found ***\",0)","v":"*** Mnemonic not found ***"},"SUCMNONPROPORRSK_US_DENVIS_",null,"Input",null,null,478,"G","Input!G478",{"$f":"_xlfn.XLOOKUP(F1416,'Raw Data'!$I$4:$I$5000,'Raw Data'!$E$4:$E$5000,100,0)","v":100},{"$f":"IF(N1416=0,_xlfn.XLOOKUP(F1416,'Raw Data'!$I$4:$I$5000,'Raw Data'!$H$4:$H$5000,\"\",0),\"\")","v":""},{"$f":"IF(INDIRECT(M1416) = \"\",\"\",INDIRECT(M1416))","v":""},"n"]
["SUCMNONPROPORRSK_US","FEP","Federal employee health benefit program",null,{"$f":"_xlfn.XLOOKUP(F1417,'Raw Data'!$I$4:$I$5000,'Raw Data'!$D$4:$D$5000,\"*** Mnemonic not found ***\",0)","v":"*** Mnemonic not found ***"},"SUCMNONPROPORRSK_US_FEP_",null,"Input",null,null,479,"G","Input!G479",{"$f":"_xlfn.XLOOKUP(F1417,'Raw Data'!$I$4:$I$5000,'Raw Data'!$E$4:$E$5000,100,0)","v":100},{"$f":"IF(N1417=0,_xlfn.XLOOKUP(F1417,'Raw Data'!$I$4:$I$5000,'Raw Data'!$H$4:$H$5000,\"\",0),\"\")","v":""},{"$f":"IF(INDIRECT(M1417) = \"\",\"\",INDIRECT(M1417))","v":""},"n"]
["SUCMNONPROPORRSK_US","HMDO","Hospital indemnity, accidental death & dismemberment, specified disease, and other limited benefits",null,{"$f":"_xlfn.XLOOKUP(F1418,'Raw Data'!$I$4:$I$5000,'Raw Data'!$D$4:$D$5000,\"*** Mnemonic not found ***\",0)","v":"*** Mnemonic not found ***"},"SUCMNONPROPORRSK_US_HMDO_",null,"Input",null,null,480,"G","Input!G480",{"$f":"_xlfn.XLOOKUP(F1418,'Raw Data'!$I$4:$I$5000,'Raw Data'!$E$4:$E$5000,100,0)","v":100},{"$f":"IF(N1418=0,_xlfn.XLOOKUP(F1418,'Raw Data'!$I$4:$I$5000,'Raw Data'!$H$4:$H$5000,\"\",0),\"\")","v":""},{"$f":"IF(INDIRECT(M1418) = \"\",\"\",INDIRECT(M1418))","v":""},"n"]
["SUCMNONPROPORRSK_US","MDMID","Medicare and Medicaid",null,{"$f":"_xlfn.XLOOKUP(F1419,'Raw Data'!$I$4:$I$5000,'Raw Data'!$D$4:$D$5000,\"*** Mnemonic not found ***\",0)","v":"*** Mnemonic not found ***"},"SUCMNONPROPORRSK_US_MDMID_",null,"Input",null,null,481,"G","Input!G481",{"$f":"_xlfn.XLOOKUP(F1419,'Raw Data'!$I$4:$I$5000,'Raw Data'!$E$4:$E$5000,100,0)","v":100},{"$f":"IF(N1419=0,_xlfn.XLOOKUP(F1419,'Raw Data'!$I$4:$I$5000,'Raw Data'!$H$4:$H$5000,\"\",0),\"\")","v":""},{"$f":"IF(INDIRECT(M1419) = \"\",\"\",INDIRECT(M1419))","v":""},"n"]
["SUCMNONPROPORRSK_US","MEDDO","Medicare Part D (all other)",null,{"$f":"_xlfn.XLOOKUP(F1420,'Raw Data'!$I$4:$I$5000,'Raw Data'!$D$4:$D$5000,\"*** Mnemonic not found ***\",0)","v":"*** Mnemonic not found ***"},"SUCMNONPROPORRSK_US_MEDDO_",null,"Input",null,null,482,"G","Input!G482",{"$f":"_xlfn.XLOOKUP(F1420,'Raw Data'!$I$4:$I$5000,'Raw Data'!$E$4:$E$5000,100,0)","v":100},{"$f":"IF(N1420=0,_xlfn.XLOOKUP(F1420,'Raw Data'!$I$4:$I$5000,'Raw Data'!$H$4:$H$5000,\"\",0),\"\")","v":""},{"$f":"IF(INDIRECT(M1420) = \"\",\"\",INDIRECT(M1420))","v":""},"n"]
["SUCMNONPROPORRSK_US","MEDDRO","Medicare Part D (risk corridor only)",null,{"$f":"_xlfn.XLOOKUP(F1421,'Raw Data'!$I$4:$I$5000,'Raw Data'!$D$4:$D$5000,\"*** Mnemonic not found ***\",0)","v":"*** Mnemonic not found ***"},"SUCMNONPROPORRSK_US_MEDDRO_",null,"Input",null,null,483,"G","Input!G483",{"$f":"_xlfn.XLOOKUP(F1421,'Raw Data'!$I$4:$I$5000,'Raw Data'!$E$4:$E$5000,100,0)","v":100},{"$f":"IF(N1421=0,_xlfn.XLOOKUP(F1421,'Raw Data'!$I$4:$I$5000,'Raw Data'!$H$4:$H$5000,\"\",0),\"\")","v":""},{"$f":"IF(INDIRECT(M1421) = \"\",\"\",INDIRECT(M1421))","v":""},"n"]
["SUCMNONPROPORRSK_US","MEDDRR","Medicare Part D (risk corridor and reinsurance)",null,{"$f":"_xlfn.XLOOKUP(F1422,'Raw Data'!$I$4:$I$5000,'Raw Data'!$D$4:$D$5000,\"*** Mnemonic not found ***\",0)","v":"*** Mnemonic not found ***"},"SUCMNONPROPORRSK_US_MEDDRR_",null,"Input",null,null,484,"G","Input!G484",{"$f":"_xlfn.XLOOKUP(F1422,'Raw Data'!$I$4:$I$5000,'Raw Data'!$E$4:$E$5000,100,0)","v":100},{"$f":"IF(N1422=0,_xlfn.XLOOKUP(F1422,'Raw Data'!$I$4:$I$5000,'Raw Data'!$H$4:$H$5000,\"\",0),\"\")","v":""},{"$f":"IF(INDIRECT(M1422) = \"\",\"\",INDIRECT(M1422))","v":""},"n"]
["SUCMNONPROPORRSK_US","MDS","Medicare supplemental",null,{"$f":"_xlfn.XLOOKUP(F1423,'Raw Data'!$I$4:$I$5000,'Raw Data'!$D$4:$D$5000,\"*** Mnemonic not found ***\",0)","v":"*** Mnemonic not found ***"},"SUCMNONPROPORRSK_US_MDS_",null,"Input",null,null,485,"G","Input!G485",{"$f":"_xlfn.XLOOKUP(F1423,'Raw Data'!$I$4:$I$5000,'Raw Data'!$E$4:$E$5000,100,0)","v":100},{"$f":"IF(N1423=0,_xlfn.XLOOKUP(F1423,'Raw Data'!$I$4:$I$5000,'Raw Data'!$H$4:$H$5000,\"\",0),\"\")","v":""},{"$f":"IF(INDIRECT(M1423) = \"\",\"\",INDIRECT(M1423))","v":""},"n"]
["SUCMNONPROPORRSK_US","OLBF","Other health",null,{"$f":"_xlfn.XLOOKUP(F1424,'Raw Data'!$I$4:$I$5000,'Raw Data'!$D$4:$D$5000,\"*** Mnemonic not found ***\",0)","v":"*** Mnemonic not found ***"},"SUCMNONPROPORRSK_US_OLBF_",null,"Input",null,null,486,"G","Input!G486",{"$f":"_xlfn.XLOOKUP(F1424,'Raw Data'!$I$4:$I$5000,'Raw Data'!$E$4:$E$5000,100,0)","v":100},{"$f":"IF(N1424=0,_xlfn.XLOOKUP(F1424,'Raw Data'!$I$4:$I$5000,'Raw Data'!$H$4:$H$5000,\"\",0),\"\")","v":""},{"$f":"IF(INDIRECT(M1424) = \"\",\"\",INDIRECT(M1424))","v":""},"n"]
["SUCMNONPROPORRSK_US","AIR","Aircraft",null,{"$f":"_xlfn.XLOOKUP(F1425,'Raw Data'!$I$4:$I$5000,'Raw Data'!$D$4:$D$5000,\"*** Mnemonic not found ***\",0)","v":"*** Mnemonic not found ***"},"SUCMNONPROPORRSK_US_AIR_",null,"Input",null,null,487,"G","Input!G487",{"$f":"_xlfn.XLOOKUP(F1425,'Raw Data'!$I$4:$I$5000,'Raw Data'!$E$4:$E$5000,100,0)","v":100},{"$f":"IF(N1425=0,_xlfn.XLOOKUP(F1425,'Raw Data'!$I$4:$I$5000,'Raw Data'!$H$4:$H$5000,\"\",0),\"\")","v":""},{"$f":"IF(INDIRECT(M1425) = \"\",\"\",INDIRECT(M1425))","v":""},"n"]
["SUCMNONPROPORRSK_US","MPIN","Marine protection & indemnity",null,{"$f":"_xlfn.XLOOKUP(F1426,'Raw Data'!$I$4:$I$5000,'Raw Data'!$D$4:$D$5000,\"*** Mnemonic not found ***\",0)","v":"*** Mnemonic not found ***"},"SUCMNONPROPORRSK_US_MPIN_",null,"Input",null,null,488,"G","Input!G488",{"$f":"_xlfn.XLOOKUP(F1426,'Raw Data'!$I$4:$I$5000,'Raw Data'!$E$4:$E$5000,100,0)","v":100},{"$f":"IF(N1426=0,_xlfn.XLOOKUP(F1426,'Raw Data'!$I$4:$I$5000,'Raw Data'!$H$4:$H$5000,\"\",0),\"\")","v":""},{"$f":"IF(INDIRECT(M1426) = \"\",\"\",INDIRECT(M1426))","v":""},"n"]
["SUCMNONPROPORRSK_US","OCM","Ocean marine",null,{"$f":"_xlfn.XLOOKUP(F1427,'Raw Data'!$I$4:$I$5000,'Raw Data'!$D$4:$D$5000,\"*** Mnemonic not found ***\",0)","v":"*** Mnemonic not found ***"},"SUCMNONPROPORRSK_US_OCM_",null,"Input",null,null,489,"G",{"$f":"CONCATENATE(H1427,\"!\",L1427,K1427)","v":"Input!G489"},{"$f":"_xlfn.XLOOKUP(F1427,'Raw Data'!$I$4:$I$5000,'Raw Data'!$E$4:$E$5000,100,0)","v":100},{"$f":"IF(N1427=0,_xlfn.XLOOKUP(F1427,'Raw Data'!$I$4:$I$5000,'Raw Data'!$H$4:$H$5000,\"\",0),\"\")","v":""},{"$f":"IF(INDIRECT(M1427) = \"\",\"\",INDIRECT(M1427))","v":""},"n"]
["SUCMNONPROPORRSK_US","TITLE","Title",null,{"$f":"_xlfn.XLOOKUP(F1428,'Raw Data'!$I$4:$I$5000,'Raw Data'!$D$4:$D$5000,\"*** Mnemonic not found ***\",0)","v":"*** Mnemonic not found ***"},"SUCMNONPROPORRSK_US_TITLE_",null,"Input",null,null,{"$f":"K1427+1","v":490},{"$f":"L1427","v":"G"},"Input!G490",{"$f":"_xlfn.XLOOKUP(F1428,'Raw Data'!$I$4:$I$5000,'Raw Data'!$E$4:$E$5000,100,0)","v":100},{"$f":"IF(N1428=0,_xlfn.XLOOKUP(F1428,'Raw Data'!$I$4:$I$5000,'Raw Data'!$H$4:$H$5000,\"\",0),\"\")","v":""},{"$f":"IF(INDIRECT(M1428) = \"\",\"\",INDIRECT(M1428))","v":""},"n"]
["SUCMNONPROPORRSK_US","WAR","Warranty",null,{"$f":"_xlfn.XLOOKUP(F1429,'Raw Data'!$I$4:$I$5000,'Raw Data'!$D$4:$D$5000,\"*** Mnemonic not found ***\",0)","v":"*** Mnemonic not found ***"},"SUCMNONPROPORRSK_US_WAR_",null,"Input",null,null,491,"G","Input!G491",{"$f":"_xlfn.XLOOKUP(F1429,'Raw Data'!$I$4:$I$5000,'Raw Data'!$E$4:$E$5000,100,0)","v":100},{"$f":"IF(N1429=0,_xlfn.XLOOKUP(F1429,'Raw Data'!$I$4:$I$5000,'Raw Data'!$H$4:$H$5000,\"\",0),\"\")","v":""},{"$f":"IF(INDIRECT(M1429) = \"\",\"\",INDIRECT(M1429))","v":""},"n"]
["SUCMNONPROPORRSK_US","OCAH","Other",null,{"$f":"_xlfn.XLOOKUP(F1430,'Raw Data'!$I$4:$I$5000,'Raw Data'!$D$4:$D$5000,\"*** Mnemonic not found ***\",0)","v":"*** Mnemonic not found ***"},"SUCMNONPROPORRSK_US_OCAH_",null,"Input",null,null,492,"G","Input!G492",{"$f":"_xlfn.XLOOKUP(F1430,'Raw Data'!$I$4:$I$5000,'Raw Data'!$E$4:$E$5000,100,0)","v":100},{"$f":"IF(N1430=0,_xlfn.XLOOKUP(F1430,'Raw Data'!$I$4:$I$5000,'Raw Data'!$H$4:$H$5000,\"\",0),\"\")","v":""},{"$f":"IF(INDIRECT(M1430) = \"\",\"\",INDIRECT(M1430))","v":""},"n"]
["SUCMPROPORRSK_CN","LIA","Liability",null,{"$f":"_xlfn.XLOOKUP(F1431,'Raw Data'!$I$4:$I$5000,'Raw Data'!$D$4:$D$5000,\"*** Mnemonic not found ***\",0)","v":"*** Mnemonic not found ***"},"SUCMPROPORRSK_CN_LIA_","Non-life premium - Canada","Input",{"$f":"ROW(section_non_life_prem)","v":437},57,{"$f":"I1431+J1431","v":494},"F","Input!F494",{"$f":"_xlfn.XLOOKUP(F1431,'Raw Data'!$I$4:$I$5000,'Raw Data'!$E$4:$E$5000,100,0)","v":100},{"$f":"IF(N1431=0,_xlfn.XLOOKUP(F1431,'Raw Data'!$I$4:$I$5000,'Raw Data'!$H$4:$H$5000,\"\",0),\"\")","v":""},{"$f":"IF(INDIRECT(M1431) = \"\",\"\",INDIRECT(M1431))","v":""},"n"]
["SUCMPROPORRSK_CN","BLM","Boiler & machinery",null,{"$f":"_xlfn.XLOOKUP(F1432,'Raw Data'!$I$4:$I$5000,'Raw Data'!$D$4:$D$5000,\"*** Mnemonic not found ***\",0)","v":"*** Mnemonic not found ***"},"SUCMPROPORRSK_CN_BLM_",null,"Input",null,null,{"$f":"K1431+1","v":495},{"$f":"L1431","v":"F"},"Input!F495",{"$f":"_xlfn.XLOOKUP(F1432,'Raw Data'!$I$4:$I$5000,'Raw Data'!$E$4:$E$5000,100,0)","v":100},{"$f":"IF(N1432=0,_xlfn.XLOOKUP(F1432,'Raw Data'!$I$4:$I$5000,'Raw Data'!$H$4:$H$5000,\"\",0),\"\")","v":""},{"$f":"IF(INDIRECT(M1432) = \"\",\"\",INDIRECT(M1432))","v":""},"n"]
["SUCMPROPORRSK_CN","CMPR","Commercial property",null,{"$f":"_xlfn.XLOOKUP(F1433,'Raw Data'!$I$4:$I$5000,'Raw Data'!$D$4:$D$5000,\"*** Mnemonic not found ***\",0)","v":"*** Mnemonic not found ***"},"SUCMPROPORRSK_CN_CMPR_",null,"Input",null,null,{"$f":"K1432+1","v":496},{"$f":"L1432","v":"F"},"Input!F496",{"$f":"_xlfn.XLOOKUP(F1433,'Raw Data'!$I$4:$I$5000,'Raw Data'!$E$4:$E$5000,100,0)","v":100},{"$f":"IF(N1433=0,_xlfn.XLOOKUP(F1433,'Raw Data'!$I$4:$I$5000,'Raw Data'!$H$4:$H$5000,\"\",0),\"\")","v":""},{"$f":"IF(INDIRECT(M1433) = \"\",\"\",INDIRECT(M1433))","v":""},"n"]
["SUCMPROPORRSK_CN","HAIL","Hail",null,{"$f":"_xlfn.XLOOKUP(F1434,'Raw Data'!$I$4:$I$5000,'Raw Data'!$D$4:$D$5000,\"*** Mnemonic not found ***\",0)","v":"*** Mnemonic not found ***"},"SUCMPROPORRSK_CN_HAIL_",null,"Input",null,null,497,"F","Input!F497",{"$f":"_xlfn.XLOOKUP(F1434,'Raw Data'!$I$4:$I$5000,'Raw Data'!$E$4:$E$5000,100,0)","v":100},{"$f":"IF(N1434=0,_xlfn.XLOOKUP(F1434,'Raw Data'!$I$4:$I$5000,'Raw Data'!$H$4:$H$5000,\"\",0),\"\")","v":""},{"$f":"IF(INDIRECT(M1434) = \"\",\"\",INDIRECT(M1434))","v":""},"n"]
["SUCMPROPORRSK_CN","PPR","Personal property",null,{"$f":"_xlfn.XLOOKUP(F1435,'Raw Data'!$I$4:$I$5000,'Raw Data'!$D$4:$D$5000,\"*** Mnemonic not found ***\",0)","v":"*** Mnemonic not found ***"},"SUCMPROPORRSK_CN_PPR_",null,"Input",null,null,498,"F","Input!F498",{"$f":"_xlfn.XLOOKUP(F1435,'Raw Data'!$I$4:$I$5000,'Raw Data'!$E$4:$E$5000,100,0)","v":100},{"$f":"IF(N1435=0,_xlfn.XLOOKUP(F1435,'Raw Data'!$I$4:$I$5000,'Raw Data'!$H$4:$H$5000,\"\",0),\"\")","v":""},{"$f":"IF(INDIRECT(M1435) = \"\",\"\",INDIRECT(M1435))","v":""},"n"]
["SUCMPROPORRSK_CN","ALB","Auto - liability",null,{"$f":"_xlfn.XLOOKUP(F1436,'Raw Data'!$I$4:$I$5000,'Raw Data'!$D$4:$D$5000,\"*** Mnemonic not found ***\",0)","v":"*** Mnemonic not found ***"},"SUCMPROPORRSK_CN_ALB_",null,"Input",null,null,499,"F","Input!F499",{"$f":"_xlfn.XLOOKUP(F1436,'Raw Data'!$I$4:$I$5000,'Raw Data'!$E$4:$E$5000,100,0)","v":100},{"$f":"IF(N1436=0,_xlfn.XLOOKUP(F1436,'Raw Data'!$I$4:$I$5000,'Raw Data'!$H$4:$H$5000,\"\",0),\"\")","v":""},{"$f":"IF(INDIRECT(M1436) = \"\",\"\",INDIRECT(M1436))","v":""},"n"]
["SUCMPROPORRSK_CN","ATOTH","Auto - other",null,{"$f":"_xlfn.XLOOKUP(F1437,'Raw Data'!$I$4:$I$5000,'Raw Data'!$D$4:$D$5000,\"*** Mnemonic not found ***\",0)","v":"*** Mnemonic not found ***"},"SUCMPROPORRSK_CN_ATOTH_",null,"Input",null,null,500,"F","Input!F500",{"$f":"_xlfn.XLOOKUP(F1437,'Raw Data'!$I$4:$I$5000,'Raw Data'!$E$4:$E$5000,100,0)","v":100},{"$f":"IF(N1437=0,_xlfn.XLOOKUP(F1437,'Raw Data'!$I$4:$I$5000,'Raw Data'!$H$4:$H$5000,\"\",0),\"\")","v":""},{"$f":"IF(INDIRECT(M1437) = \"\",\"\",INDIRECT(M1437))","v":""},"n"]
["SUCMPROPORRSK_CN","ATPAC","Auto - personal accident",null,{"$f":"_xlfn.XLOOKUP(F1438,'Raw Data'!$I$4:$I$5000,'Raw Data'!$D$4:$D$5000,\"*** Mnemonic not found ***\",0)","v":"*** Mnemonic not found ***"},"SUCMPROPORRSK_CN_ATPAC_",null,"Input",null,null,501,"F","Input!F501",{"$f":"_xlfn.XLOOKUP(F1438,'Raw Data'!$I$4:$I$5000,'Raw Data'!$E$4:$E$5000,100,0)","v":100},{"$f":"IF(N1438=0,_xlfn.XLOOKUP(F1438,'Raw Data'!$I$4:$I$5000,'Raw Data'!$H$4:$H$5000,\"\",0),\"\")","v":""},{"$f":"IF(INDIRECT(M1438) = \"\",\"\",INDIRECT(M1438))","v":""},"n"]
["SUCMPROPORRSK_CN","CRD","Credit",null,{"$f":"_xlfn.XLOOKUP(F1439,'Raw Data'!$I$4:$I$5000,'Raw Data'!$D$4:$D$5000,\"*** Mnemonic not found ***\",0)","v":"*** Mnemonic not found ***"},"SUCMPROPORRSK_CN_CRD_",null,"Input",null,null,502,"F","Input!F502",{"$f":"_xlfn.XLOOKUP(F1439,'Raw Data'!$I$4:$I$5000,'Raw Data'!$E$4:$E$5000,100,0)","v":100},{"$f":"IF(N1439=0,_xlfn.XLOOKUP(F1439,'Raw Data'!$I$4:$I$5000,'Raw Data'!$H$4:$H$5000,\"\",0),\"\")","v":""},{"$f":"IF(INDIRECT(M1439) = \"\",\"\",INDIRECT(M1439))","v":""},"n"]
["SUCMPROPORRSK_CN","CRPR","Credit protection",null,{"$f":"_xlfn.XLOOKUP(F1440,'Raw Data'!$I$4:$I$5000,'Raw Data'!$D$4:$D$5000,\"*** Mnemonic not found ***\",0)","v":"*** Mnemonic not found ***"},"SUCMPROPORRSK_CN_CRPR_",null,"Input",null,null,503,"F","Input!F503",{"$f":"_xlfn.XLOOKUP(F1440,'Raw Data'!$I$4:$I$5000,'Raw Data'!$E$4:$E$5000,100,0)","v":100},{"$f":"IF(N1440=0,_xlfn.XLOOKUP(F1440,'Raw Data'!$I$4:$I$5000,'Raw Data'!$H$4:$H$5000,\"\",0),\"\")","v":""},{"$f":"IF(INDIRECT(M1440) = \"\",\"\",INDIRECT(M1440))","v":""},"n"]
["SUCMPROPORRSK_CN","FID","Fidelity",null,{"$f":"_xlfn.XLOOKUP(F1441,'Raw Data'!$I$4:$I$5000,'Raw Data'!$D$4:$D$5000,\"*** Mnemonic not found ***\",0)","v":"*** Mnemonic not found ***"},"SUCMPROPORRSK_CN_FID_",null,"Input",null,null,504,"F","Input!F504",{"$f":"_xlfn.XLOOKUP(F1441,'Raw Data'!$I$4:$I$5000,'Raw Data'!$E$4:$E$5000,100,0)","v":100},{"$f":"IF(N1441=0,_xlfn.XLOOKUP(F1441,'Raw Data'!$I$4:$I$5000,'Raw Data'!$H$4:$H$5000,\"\",0),\"\")","v":""},{"$f":"IF(INDIRECT(M1441) = \"\",\"\",INDIRECT(M1441))","v":""},"n"]
["SUCMPROPORRSK_CN","SUR","Surety",null,{"$f":"_xlfn.XLOOKUP(F1442,'Raw Data'!$I$4:$I$5000,'Raw Data'!$D$4:$D$5000,\"*** Mnemonic not found ***\",0)","v":"*** Mnemonic not found ***"},"SUCMPROPORRSK_CN_SUR_",null,"Input",null,null,505,"F","Input!F505",{"$f":"_xlfn.XLOOKUP(F1442,'Raw Data'!$I$4:$I$5000,'Raw Data'!$E$4:$E$5000,100,0)","v":100},{"$f":"IF(N1442=0,_xlfn.XLOOKUP(F1442,'Raw Data'!$I$4:$I$5000,'Raw Data'!$H$4:$H$5000,\"\",0),\"\")","v":""},{"$f":"IF(INDIRECT(M1442) = \"\",\"\",INDIRECT(M1442))","v":""},"n"]
["SUCMPROPORRSK_CN","ACSK","Accident & sickness (excluding supplementary health, disability income)",null,{"$f":"_xlfn.XLOOKUP(F1443,'Raw Data'!$I$4:$I$5000,'Raw Data'!$D$4:$D$5000,\"*** Mnemonic not found ***\",0)","v":"*** Mnemonic not found ***"},"SUCMPROPORRSK_CN_ACSK_",null,"Input",null,null,506,"F","Input!F506",{"$f":"_xlfn.XLOOKUP(F1443,'Raw Data'!$I$4:$I$5000,'Raw Data'!$E$4:$E$5000,100,0)","v":100},{"$f":"IF(N1443=0,_xlfn.XLOOKUP(F1443,'Raw Data'!$I$4:$I$5000,'Raw Data'!$H$4:$H$5000,\"\",0),\"\")","v":""},{"$f":"IF(INDIRECT(M1443) = \"\",\"\",INDIRECT(M1443))","v":""},"n"]
["SUCMPROPORRSK_CN","SUPH","Supplementary health",null,{"$f":"_xlfn.XLOOKUP(F1444,'Raw Data'!$I$4:$I$5000,'Raw Data'!$D$4:$D$5000,\"*** Mnemonic not found ***\",0)","v":"*** Mnemonic not found ***"},"SUCMPROPORRSK_CN_SUPH_",null,"Input",null,null,507,"F","Input!F507",{"$f":"_xlfn.XLOOKUP(F1444,'Raw Data'!$I$4:$I$5000,'Raw Data'!$E$4:$E$5000,100,0)","v":100},{"$f":"IF(N1444=0,_xlfn.XLOOKUP(F1444,'Raw Data'!$I$4:$I$5000,'Raw Data'!$H$4:$H$5000,\"\",0),\"\")","v":""},{"$f":"IF(INDIRECT(M1444) = \"\",\"\",INDIRECT(M1444))","v":""},"n"]
["SUCMPROPORRSK_CN","AIR","Aircraft",null,{"$f":"_xlfn.XLOOKUP(F1445,'Raw Data'!$I$4:$I$5000,'Raw Data'!$D$4:$D$5000,\"*** Mnemonic not found ***\",0)","v":"*** Mnemonic not found ***"},"SUCMPROPORRSK_CN_AIR_",null,"Input",null,null,508,"F",{"$f":"CONCATENATE(H1445,\"!\",L1445,K1445)","v":"Input!F508"},{"$f":"_xlfn.XLOOKUP(F1445,'Raw Data'!$I$4:$I$5000,'Raw Data'!$E$4:$E$5000,100,0)","v":100},{"$f":"IF(N1445=0,_xlfn.XLOOKUP(F1445,'Raw Data'!$I$4:$I$5000,'Raw Data'!$H$4:$H$5000,\"\",0),\"\")","v":""},{"$f":"IF(INDIRECT(M1445) = \"\",\"\",INDIRECT(M1445))","v":""},"n"]
["SUCMPROPORRSK_CN","OCM","Marine",null,{"$f":"_xlfn.XLOOKUP(F1446,'Raw Data'!$I$4:$I$5000,'Raw Data'!$D$4:$D$5000,\"*** Mnemonic not found ***\",0)","v":"*** Mnemonic not found ***"},"SUCMPROPORRSK_CN_OCM_",null,"Input",null,null,{"$f":"K1445+1","v":509},{"$f":"L1445","v":"F"},"Input!F509",{"$f":"_xlfn.XLOOKUP(F1446,'Raw Data'!$I$4:$I$5000,'Raw Data'!$E$4:$E$5000,100,0)","v":100},{"$f":"IF(N1446=0,_xlfn.XLOOKUP(F1446,'Raw Data'!$I$4:$I$5000,'Raw Data'!$H$4:$H$5000,\"\",0),\"\")","v":""},{"$f":"IF(INDIRECT(M1446) = \"\",\"\",INDIRECT(M1446))","v":""},"n"]
["SUCMPROPORRSK_CN","MPIN","Marine protection & indemnity",null,{"$f":"_xlfn.XLOOKUP(F1447,'Raw Data'!$I$4:$I$5000,'Raw Data'!$D$4:$D$5000,\"*** Mnemonic not found ***\",0)","v":"*** Mnemonic not found ***"},"SUCMPROPORRSK_CN_MPIN_",null,"Input",null,null,510,"F","Input!F510",{"$f":"_xlfn.XLOOKUP(F1447,'Raw Data'!$I$4:$I$5000,'Raw Data'!$E$4:$E$5000,100,0)","v":100},{"$f":"IF(N1447=0,_xlfn.XLOOKUP(F1447,'Raw Data'!$I$4:$I$5000,'Raw Data'!$H$4:$H$5000,\"\",0),\"\")","v":""},{"$f":"IF(INDIRECT(M1447) = \"\",\"\",INDIRECT(M1447))","v":""},"n"]
["SUCMPROPORRSK_CN","LEGEX","Legal expense",null,{"$f":"_xlfn.XLOOKUP(F1448,'Raw Data'!$I$4:$I$5000,'Raw Data'!$D$4:$D$5000,\"*** Mnemonic not found ***\",0)","v":"*** Mnemonic not found ***"},"SUCMPROPORRSK_CN_LEGEX_",null,"Input",null,null,511,"F",{"$f":"CONCATENATE(H1448,\"!\",L1448,K1448)","v":"Input!F511"},{"$f":"_xlfn.XLOOKUP(F1448,'Raw Data'!$I$4:$I$5000,'Raw Data'!$E$4:$E$5000,100,0)","v":100},{"$f":"IF(N1448=0,_xlfn.XLOOKUP(F1448,'Raw Data'!$I$4:$I$5000,'Raw Data'!$H$4:$H$5000,\"\",0),\"\")","v":""},{"$f":"IF(INDIRECT(M1448) = \"\",\"\",INDIRECT(M1448))","v":""},"n"]
["SUCMPROPORRSK_CN","OAPR","Other approved products",null,{"$f":"_xlfn.XLOOKUP(F1449,'Raw Data'!$I$4:$I$5000,'Raw Data'!$D$4:$D$5000,\"*** Mnemonic not found ***\",0)","v":"*** Mnemonic not found ***"},"SUCMPROPORRSK_CN_OAPR_",null,"Input",null,null,{"$f":"K1448+1","v":512},{"$f":"L1448","v":"F"},"Input!F512",{"$f":"_xlfn.XLOOKUP(F1449,'Raw Data'!$I$4:$I$5000,'Raw Data'!$E$4:$E$5000,100,0)","v":100},{"$f":"IF(N1449=0,_xlfn.XLOOKUP(F1449,'Raw Data'!$I$4:$I$5000,'Raw Data'!$H$4:$H$5000,\"\",0),\"\")","v":""},{"$f":"IF(INDIRECT(M1449) = \"\",\"\",INDIRECT(M1449))","v":""},"n"]
["SUCMPROPORRSK_CN","TITLE","Title",null,{"$f":"_xlfn.XLOOKUP(F1450,'Raw Data'!$I$4:$I$5000,'Raw Data'!$D$4:$D$5000,\"*** Mnemonic not found ***\",0)","v":"*** Mnemonic not found ***"},"SUCMPROPORRSK_CN_TITLE_",null,"Input",null,null,513,"F","Input!F513",{"$f":"_xlfn.XLOOKUP(F1450,'Raw Data'!$I$4:$I$5000,'Raw Data'!$E$4:$E$5000,100,0)","v":100},{"$f":"IF(N1450=0,_xlfn.XLOOKUP(F1450,'Raw Data'!$I$4:$I$5000,'Raw Data'!$H$4:$H$5000,\"\",0),\"\")","v":""},{"$f":"IF(INDIRECT(M1450) = \"\",\"\",INDIRECT(M1450))","v":""},"n"]
["SUCMPROPORRSK_CN","WAR","Warranty",null,{"$f":"_xlfn.XLOOKUP(F1451,'Raw Data'!$I$4:$I$5000,'Raw Data'!$D$4:$D$5000,\"*** Mnemonic not found ***\",0)","v":"*** Mnemonic not found ***"},"SUCMPROPORRSK_CN_WAR_",null,"Input",null,null,514,"F","Input!F514",{"$f":"_xlfn.XLOOKUP(F1451,'Raw Data'!$I$4:$I$5000,'Raw Data'!$E$4:$E$5000,100,0)","v":100},{"$f":"IF(N1451=0,_xlfn.XLOOKUP(F1451,'Raw Data'!$I$4:$I$5000,'Raw Data'!$H$4:$H$5000,\"\",0),\"\")","v":""},{"$f":"IF(INDIRECT(M1451) = \"\",\"\",INDIRECT(M1451))","v":""},"n"]
["SUCMPROPORRSK_CN","OCAH","Other",null,{"$f":"_xlfn.XLOOKUP(F1452,'Raw Data'!$I$4:$I$5000,'Raw Data'!$D$4:$D$5000,\"*** Mnemonic not found ***\",0)","v":"*** Mnemonic not found ***"},"SUCMPROPORRSK_CN_OCAH_",null,"Input",null,null,515,"F","Input!F515",{"$f":"_xlfn.XLOOKUP(F1452,'Raw Data'!$I$4:$I$5000,'Raw Data'!$E$4:$E$5000,100,0)","v":100},{"$f":"IF(N1452=0,_xlfn.XLOOKUP(F1452,'Raw Data'!$I$4:$I$5000,'Raw Data'!$H$4:$H$5000,\"\",0),\"\")","v":""},{"$f":"IF(INDIRECT(M1452) = \"\",\"\",INDIRECT(M1452))","v":""},"n"]
["SUCMNONPROPORRSK_CN","LIA","Liability",null,{"$f":"_xlfn.XLOOKUP(F1453,'Raw Data'!$I$4:$I$5000,'Raw Data'!$D$4:$D$5000,\"*** Mnemonic not found ***\",0)","v":"*** Mnemonic not found ***"},"SUCMNONPROPORRSK_CN_LIA_",null,"Input",{"$f":"ROW(section_non_life_prem)","v":437},{"$f":"J1431","v":57},{"$f":"I1453+J1453","v":494},"G","Input!G494",{"$f":"_xlfn.XLOOKUP(F1453,'Raw Data'!$I$4:$I$5000,'Raw Data'!$E$4:$E$5000,100,0)","v":100},{"$f":"IF(N1453=0,_xlfn.XLOOKUP(F1453,'Raw Data'!$I$4:$I$5000,'Raw Data'!$H$4:$H$5000,\"\",0),\"\")","v":""},{"$f":"IF(INDIRECT(M1453) = \"\",\"\",INDIRECT(M1453))","v":""},"n"]
["SUCMNONPROPORRSK_CN","BLM","Boiler & machinery",null,{"$f":"_xlfn.XLOOKUP(F1454,'Raw Data'!$I$4:$I$5000,'Raw Data'!$D$4:$D$5000,\"*** Mnemonic not found ***\",0)","v":"*** Mnemonic not found ***"},"SUCMNONPROPORRSK_CN_BLM_",null,"Input",null,null,{"$f":"K1453+1","v":495},{"$f":"L1453","v":"G"},"Input!G495",{"$f":"_xlfn.XLOOKUP(F1454,'Raw Data'!$I$4:$I$5000,'Raw Data'!$E$4:$E$5000,100,0)","v":100},{"$f":"IF(N1454=0,_xlfn.XLOOKUP(F1454,'Raw Data'!$I$4:$I$5000,'Raw Data'!$H$4:$H$5000,\"\",0),\"\")","v":""},{"$f":"IF(INDIRECT(M1454) = \"\",\"\",INDIRECT(M1454))","v":""},"n"]
["SUCMNONPROPORRSK_CN","CMPR","Commercial property",null,{"$f":"_xlfn.XLOOKUP(F1455,'Raw Data'!$I$4:$I$5000,'Raw Data'!$D$4:$D$5000,\"*** Mnemonic not found ***\",0)","v":"*** Mnemonic not found ***"},"SUCMNONPROPORRSK_CN_CMPR_",null,"Input",null,null,{"$f":"K1454+1","v":496},{"$f":"L1454","v":"G"},"Input!G496",{"$f":"_xlfn.XLOOKUP(F1455,'Raw Data'!$I$4:$I$5000,'Raw Data'!$E$4:$E$5000,100,0)","v":100},{"$f":"IF(N1455=0,_xlfn.XLOOKUP(F1455,'Raw Data'!$I$4:$I$5000,'Raw Data'!$H$4:$H$5000,\"\",0),\"\")","v":""},{"$f":"IF(INDIRECT(M1455) = \"\",\"\",INDIRECT(M1455))","v":""},"n"]
["SUCMNONPROPORRSK_CN","HAIL","Hail",null,{"$f":"_xlfn.XLOOKUP(F1456,'Raw Data'!$I$4:$I$5000,'Raw Data'!$D$4:$D$5000,\"*** Mnemonic not found ***\",0)","v":"*** Mnemonic not found ***"},"SUCMNONPROPORRSK_CN_HAIL_",null,"Input",null,null,497,"G","Input!G497",{"$f":"_xlfn.XLOOKUP(F1456,'Raw Data'!$I$4:$I$5000,'Raw Data'!$E$4:$E$5000,100,0)","v":100},{"$f":"IF(N1456=0,_xlfn.XLOOKUP(F1456,'Raw Data'!$I$4:$I$5000,'Raw Data'!$H$4:$H$5000,\"\",0),\"\")","v":""},{"$f":"IF(INDIRECT(M1456) = \"\",\"\",INDIRECT(M1456))","v":""},"n"]
["SUCMNONPROPORRSK_CN","PPR","Personal property",null,{"$f":"_xlfn.XLOOKUP(F1457,'Raw Data'!$I$4:$I$5000,'Raw Data'!$D$4:$D$5000,\"*** Mnemonic not found ***\",0)","v":"*** Mnemonic not found ***"},"SUCMNONPROPORRSK_CN_PPR_",null,"Input",null,null,498,"G","Input!G498",{"$f":"_xlfn.XLOOKUP(F1457,'Raw Data'!$I$4:$I$5000,'Raw Data'!$E$4:$E$5000,100,0)","v":100},{"$f":"IF(N1457=0,_xlfn.XLOOKUP(F1457,'Raw Data'!$I$4:$I$5000,'Raw Data'!$H$4:$H$5000,\"\",0),\"\")","v":""},{"$f":"IF(INDIRECT(M1457) = \"\",\"\",INDIRECT(M1457))","v":""},"n"]
["SUCMNONPROPORRSK_CN","ALB","Auto - liability",null,{"$f":"_xlfn.XLOOKUP(F1458,'Raw Data'!$I$4:$I$5000,'Raw Data'!$D$4:$D$5000,\"*** Mnemonic not found ***\",0)","v":"*** Mnemonic not found ***"},"SUCMNONPROPORRSK_CN_ALB_",null,"Input",null,null,499,"G","Input!G499",{"$f":"_xlfn.XLOOKUP(F1458,'Raw Data'!$I$4:$I$5000,'Raw Data'!$E$4:$E$5000,100,0)","v":100},{"$f":"IF(N1458=0,_xlfn.XLOOKUP(F1458,'Raw Data'!$I$4:$I$5000,'Raw Data'!$H$4:$H$5000,\"\",0),\"\")","v":""},{"$f":"IF(INDIRECT(M1458) = \"\",\"\",INDIRECT(M1458))","v":""},"n"]
["SUCMNONPROPORRSK_CN","ATOTH","Auto - other",null,{"$f":"_xlfn.XLOOKUP(F1459,'Raw Data'!$I$4:$I$5000,'Raw Data'!$D$4:$D$5000,\"*** Mnemonic not found ***\",0)","v":"*** Mnemonic not found ***"},"SUCMNONPROPORRSK_CN_ATOTH_",null,"Input",null,null,500,"G","Input!G500",{"$f":"_xlfn.XLOOKUP(F1459,'Raw Data'!$I$4:$I$5000,'Raw Data'!$E$4:$E$5000,100,0)","v":100},{"$f":"IF(N1459=0,_xlfn.XLOOKUP(F1459,'Raw Data'!$I$4:$I$5000,'Raw Data'!$H$4:$H$5000,\"\",0),\"\")","v":""},{"$f":"IF(INDIRECT(M1459) = \"\",\"\",INDIRECT(M1459))","v":""},"n"]
["SUCMNONPROPORRSK_CN","ATPAC","Auto - personal accident",null,{"$f":"_xlfn.XLOOKUP(F1460,'Raw Data'!$I$4:$I$5000,'Raw Data'!$D$4:$D$5000,\"*** Mnemonic not found ***\",0)","v":"*** Mnemonic not found ***"},"SUCMNONPROPORRSK_CN_ATPAC_",null,"Input",null,null,501,"G","Input!G501",{"$f":"_xlfn.XLOOKUP(F1460,'Raw Data'!$I$4:$I$5000,'Raw Data'!$E$4:$E$5000,100,0)","v":100},{"$f":"IF(N1460=0,_xlfn.XLOOKUP(F1460,'Raw Data'!$I$4:$I$5000,'Raw Data'!$H$4:$H$5000,\"\",0),\"\")","v":""},{"$f":"IF(INDIRECT(M1460) = \"\",\"\",INDIRECT(M1460))","v":""},"n"]
["SUCMNONPROPORRSK_CN","CRD","Credit",null,{"$f":"_xlfn.XLOOKUP(F1461,'Raw Data'!$I$4:$I$5000,'Raw Data'!$D$4:$D$5000,\"*** Mnemonic not found ***\",0)","v":"*** Mnemonic not found ***"},"SUCMNONPROPORRSK_CN_CRD_",null,"Input",null,null,502,"G","Input!G502",{"$f":"_xlfn.XLOOKUP(F1461,'Raw Data'!$I$4:$I$5000,'Raw Data'!$E$4:$E$5000,100,0)","v":100},{"$f":"IF(N1461=0,_xlfn.XLOOKUP(F1461,'Raw Data'!$I$4:$I$5000,'Raw Data'!$H$4:$H$5000,\"\",0),\"\")","v":""},{"$f":"IF(INDIRECT(M1461) = \"\",\"\",INDIRECT(M1461))","v":""},"n"]
["SUCMNONPROPORRSK_CN","CRPR","Credit protection",null,{"$f":"_xlfn.XLOOKUP(F1462,'Raw Data'!$I$4:$I$5000,'Raw Data'!$D$4:$D$5000,\"*** Mnemonic not found ***\",0)","v":"*** Mnemonic not found ***"},"SUCMNONPROPORRSK_CN_CRPR_",null,"Input",null,null,503,"G","Input!G503",{"$f":"_xlfn.XLOOKUP(F1462,'Raw Data'!$I$4:$I$5000,'Raw Data'!$E$4:$E$5000,100,0)","v":100},{"$f":"IF(N1462=0,_xlfn.XLOOKUP(F1462,'Raw Data'!$I$4:$I$5000,'Raw Data'!$H$4:$H$5000,\"\",0),\"\")","v":""},{"$f":"IF(INDIRECT(M1462) = \"\",\"\",INDIRECT(M1462))","v":""},"n"]
["SUCMNONPROPORRSK_CN","FID","Fidelity",null,{"$f":"_xlfn.XLOOKUP(F1463,'Raw Data'!$I$4:$I$5000,'Raw Data'!$D$4:$D$5000,\"*** Mnemonic not found ***\",0)","v":"*** Mnemonic not found ***"},"SUCMNONPROPORRSK_CN_FID_",null,"Input",null,null,504,"G","Input!G504",{"$f":"_xlfn.XLOOKUP(F1463,'Raw Data'!$I$4:$I$5000,'Raw Data'!$E$4:$E$5000,100,0)","v":100},{"$f":"IF(N1463=0,_xlfn.XLOOKUP(F1463,'Raw Data'!$I$4:$I$5000,'Raw Data'!$H$4:$H$5000,\"\",0),\"\")","v":""},{"$f":"IF(INDIRECT(M1463) = \"\",\"\",INDIRECT(M1463))","v":""},"n"]
["SUCMNONPROPORRSK_CN","SUR","Surety",null,{"$f":"_xlfn.XLOOKUP(F1464,'Raw Data'!$I$4:$I$5000,'Raw Data'!$D$4:$D$5000,\"*** Mnemonic not found ***\",0)","v":"*** Mnemonic not found ***"},"SUCMNONPROPORRSK_CN_SUR_",null,"Input",null,null,505,"G","Input!G505",{"$f":"_xlfn.XLOOKUP(F1464,'Raw Data'!$I$4:$I$5000,'Raw Data'!$E$4:$E$5000,100,0)","v":100},{"$f":"IF(N1464=0,_xlfn.XLOOKUP(F1464,'Raw Data'!$I$4:$I$5000,'Raw Data'!$H$4:$H$5000,\"\",0),\"\")","v":""},{"$f":"IF(INDIRECT(M1464) = \"\",\"\",INDIRECT(M1464))","v":""},"n"]
["SUCMNONPROPORRSK_CN","ACSK","Accident & sickness (excluding supplementary health, disability income)",null,{"$f":"_xlfn.XLOOKUP(F1465,'Raw Data'!$I$4:$I$5000,'Raw Data'!$D$4:$D$5000,\"*** Mnemonic not found ***\",0)","v":"*** Mnemonic not found ***"},"SUCMNONPROPORRSK_CN_ACSK_",null,"Input",null,null,506,"G","Input!G506",{"$f":"_xlfn.XLOOKUP(F1465,'Raw Data'!$I$4:$I$5000,'Raw Data'!$E$4:$E$5000,100,0)","v":100},{"$f":"IF(N1465=0,_xlfn.XLOOKUP(F1465,'Raw Data'!$I$4:$I$5000,'Raw Data'!$H$4:$H$5000,\"\",0),\"\")","v":""},{"$f":"IF(INDIRECT(M1465) = \"\",\"\",INDIRECT(M1465))","v":""},"n"]
["SUCMNONPROPORRSK_CN","SUPH","Supplementary health",null,{"$f":"_xlfn.XLOOKUP(F1466,'Raw Data'!$I$4:$I$5000,'Raw Data'!$D$4:$D$5000,\"*** Mnemonic not found ***\",0)","v":"*** Mnemonic not found ***"},"SUCMNONPROPORRSK_CN_SUPH_",null,"Input",null,null,507,"G",{"$f":"CONCATENATE(H1466,\"!\",L1466,K1466)","v":"Input!G507"},{"$f":"_xlfn.XLOOKUP(F1466,'Raw Data'!$I$4:$I$5000,'Raw Data'!$E$4:$E$5000,100,0)","v":100},{"$f":"IF(N1466=0,_xlfn.XLOOKUP(F1466,'Raw Data'!$I$4:$I$5000,'Raw Data'!$H$4:$H$5000,\"\",0),\"\")","v":""},{"$f":"IF(INDIRECT(M1466) = \"\",\"\",INDIRECT(M1466))","v":""},"n"]
["SUCMNONPROPORRSK_CN","AIR","Aircraft",null,{"$f":"_xlfn.XLOOKUP(F1467,'Raw Data'!$I$4:$I$5000,'Raw Data'!$D$4:$D$5000,\"*** Mnemonic not found ***\",0)","v":"*** Mnemonic not found ***"},"SUCMNONPROPORRSK_CN_AIR_",null,"Input",null,null,508,"G",{"$f":"CONCATENATE(H1467,\"!\",L1467,K1467)","v":"Input!G508"},{"$f":"_xlfn.XLOOKUP(F1467,'Raw Data'!$I$4:$I$5000,'Raw Data'!$E$4:$E$5000,100,0)","v":100},{"$f":"IF(N1467=0,_xlfn.XLOOKUP(F1467,'Raw Data'!$I$4:$I$5000,'Raw Data'!$H$4:$H$5000,\"\",0),\"\")","v":""},{"$f":"IF(INDIRECT(M1467) = \"\",\"\",INDIRECT(M1467))","v":""},"n"]
["SUCMNONPROPORRSK_CN","OCM","Marine",null,{"$f":"_xlfn.XLOOKUP(F1468,'Raw Data'!$I$4:$I$5000,'Raw Data'!$D$4:$D$5000,\"*** Mnemonic not found ***\",0)","v":"*** Mnemonic not found ***"},"SUCMNONPROPORRSK_CN_OCM_",null,"Input",null,null,{"$f":"K1467+1","v":509},{"$f":"L1467","v":"G"},"Input!G509",{"$f":"_xlfn.XLOOKUP(F1468,'Raw Data'!$I$4:$I$5000,'Raw Data'!$E$4:$E$5000,100,0)","v":100},{"$f":"IF(N1468=0,_xlfn.XLOOKUP(F1468,'Raw Data'!$I$4:$I$5000,'Raw Data'!$H$4:$H$5000,\"\",0),\"\")","v":""},{"$f":"IF(INDIRECT(M1468) = \"\",\"\",INDIRECT(M1468))","v":""},"n"]
["SUCMNONPROPORRSK_CN","MPIN","Marine protection & indemnity",null,{"$f":"_xlfn.XLOOKUP(F1469,'Raw Data'!$I$4:$I$5000,'Raw Data'!$D$4:$D$5000,\"*** Mnemonic not found ***\",0)","v":"*** Mnemonic not found ***"},"SUCMNONPROPORRSK_CN_MPIN_",null,"Input",null,null,{"$f":"K1468+1","v":510},{"$f":"L1468","v":"G"},"Input!G510",{"$f":"_xlfn.XLOOKUP(F1469,'Raw Data'!$I$4:$I$5000,'Raw Data'!$E$4:$E$5000,100,0)","v":100},{"$f":"IF(N1469=0,_xlfn.XLOOKUP(F1469,'Raw Data'!$I$4:$I$5000,'Raw Data'!$H$4:$H$5000,\"\",0),\"\")","v":""},{"$f":"IF(INDIRECT(M1469) = \"\",\"\",INDIRECT(M1469))","v":""},"n"]
["SUCMNONPROPORRSK_CN","LEGEX","Legal expense",null,{"$f":"_xlfn.XLOOKUP(F1470,'Raw Data'!$I$4:$I$5000,'Raw Data'!$D$4:$D$5000,\"*** Mnemonic not found ***\",0)","v":"*** Mnemonic not found ***"},"SUCMNONPROPORRSK_CN_LEGEX_",null,"Input",null,null,511,"G",{"$f":"CONCATENATE(H1470,\"!\",L1470,K1470)","v":"Input!G511"},{"$f":"_xlfn.XLOOKUP(F1470,'Raw Data'!$I$4:$I$5000,'Raw Data'!$E$4:$E$5000,100,0)","v":100},{"$f":"IF(N1470=0,_xlfn.XLOOKUP(F1470,'Raw Data'!$I$4:$I$5000,'Raw Data'!$H$4:$H$5000,\"\",0),\"\")","v":""},{"$f":"IF(INDIRECT(M1470) = \"\",\"\",INDIRECT(M1470))","v":""},"n"]
["SUCMNONPROPORRSK_CN","OAPR","Other approved products",null,{"$f":"_xlfn.XLOOKUP(F1471,'Raw Data'!$I$4:$I$5000,'Raw Data'!$D$4:$D$5000,\"*** Mnemonic not found ***\",0)","v":"*** Mnemonic not found ***"},"SUCMNONPROPORRSK_CN_OAPR_",null,"Input",null,null,{"$f":"K1470+1","v":512},{"$f":"L1470","v":"G"},"Input!G512",{"$f":"_xlfn.XLOOKUP(F1471,'Raw Data'!$I$4:$I$5000,'Raw Data'!$E$4:$E$5000,100,0)","v":100},{"$f":"IF(N1471=0,_xlfn.XLOOKUP(F1471,'Raw Data'!$I$4:$I$5000,'Raw Data'!$H$4:$H$5000,\"\",0),\"\")","v":""},{"$f":"IF(INDIRECT(M1471) = \"\",\"\",INDIRECT(M1471))","v":""},"n"]
["SUCMNONPROPORRSK_CN","TITLE","Title",null,{"$f":"_xlfn.XLOOKUP(F1472,'Raw Data'!$I$4:$I$5000,'Raw Data'!$D$4:$D$5000,\"*** Mnemonic not found ***\",0)","v":"*** Mnemonic not found ***"},"SUCMNONPROPORRSK_CN_TITLE_",null,"Input",null,null,513,"G","Input!G513",{"$f":"_xlfn.XLOOKUP(F1472,'Raw Data'!$I$4:$I$5000,'Raw Data'!$E$4:$E$5000,100,0)","v":100},{"$f":"IF(N1472=0,_xlfn.XLOOKUP(F1472,'Raw Data'!$I$4:$I$5000,'Raw Data'!$H$4:$H$5000,\"\",0),\"\")","v":""},{"$f":"IF(INDIRECT(M1472) = \"\",\"\",INDIRECT(M1472))","v":""},"n"]
["SUCMNONPROPORRSK_CN","WAR","Warranty",null,{"$f":"_xlfn.XLOOKUP(F1473,'Raw Data'!$I$4:$I$5000,'Raw Data'!$D$4:$D$5000,\"*** Mnemonic not found ***\",0)","v":"*** Mnemonic not found ***"},"SUCMNONPROPORRSK_CN_WAR_",null,"Input",null,null,514,"G","Input!G514",{"$f":"_xlfn.XLOOKUP(F1473,'Raw Data'!$I$4:$I$5000,'Raw Data'!$E$4:$E$5000,100,0)","v":100},{"$f":"IF(N1473=0,_xlfn.XLOOKUP(F1473,'Raw Data'!$I$4:$I$5000,'Raw Data'!$H$4:$H$5000,\"\",0),\"\")","v":""},{"$f":"IF(INDIRECT(M1473) = \"\",\"\",INDIRECT(M1473))","v":""},"n"]
["SUCMNONPROPORRSK_CN","OCAH","Other",null,{"$f":"_xlfn.XLOOKUP(F1474,'Raw Data'!$I$4:$I$5000,'Raw Data'!$D$4:$D$5000,\"*** Mnemonic not found ***\",0)","v":"*** Mnemonic not found ***"},"SUCMNONPROPORRSK_CN_OCAH_",null,"Input",null,null,515,"G","Input!G515",{"$f":"_xlfn.XLOOKUP(F1474,'Raw Data'!$I$4:$I$5000,'Raw Data'!$E$4:$E$5000,100,0)","v":100},{"$f":"IF(N1474=0,_xlfn.XLOOKUP(F1474,'Raw Data'!$I$4:$I$5000,'Raw Data'!$H$4:$H$5000,\"\",0),\"\")","v":""},{"$f":"IF(INDIRECT(M1474) = \"\",\"\",INDIRECT(M1474))","v":""},"n"]
["SUCMPROPORRSK_AP","EMLIB","Employers liability",null,{"$f":"_xlfn.XLOOKUP(F1475,'Raw Data'!$I$4:$I$5000,'Raw Data'!$D$4:$D$5000,\"*** Mnemonic not found ***\",0)","v":"*** Mnemonic not found ***"},"SUCMPROPORRSK_AP_EMLIB_","Non-life premium - Asia Pacific","Input",{"$f":"ROW(section_non_life_prem)","v":437},80,{"$f":"I1475+J1475","v":517},"F","Input!F517",{"$f":"_xlfn.XLOOKUP(F1475,'Raw Data'!$I$4:$I$5000,'Raw Data'!$E$4:$E$5000,100,0)","v":100},{"$f":"IF(N1475=0,_xlfn.XLOOKUP(F1475,'Raw Data'!$I$4:$I$5000,'Raw Data'!$H$4:$H$5000,\"\",0),\"\")","v":""},{"$f":"IF(INDIRECT(M1475) = \"\",\"\",INDIRECT(M1475))","v":""},"n"]
["SUCMPROPORRSK_AP","LIA","General liability",null,{"$f":"_xlfn.XLOOKUP(F1476,'Raw Data'!$I$4:$I$5000,'Raw Data'!$D$4:$D$5000,\"*** Mnemonic not found ***\",0)","v":"*** Mnemonic not found ***"},"SUCMPROPORRSK_AP_LIA_",null,"Input",null,null,{"$f":"K1475+1","v":518},{"$f":"L1475","v":"F"},"Input!F518",{"$f":"_xlfn.XLOOKUP(F1476,'Raw Data'!$I$4:$I$5000,'Raw Data'!$E$4:$E$5000,100,0)","v":100},{"$f":"IF(N1476=0,_xlfn.XLOOKUP(F1476,'Raw Data'!$I$4:$I$5000,'Raw Data'!$H$4:$H$5000,\"\",0),\"\")","v":""},{"$f":"IF(INDIRECT(M1476) = \"\",\"\",INDIRECT(M1476))","v":""},"n"]
["SUCMPROPORRSK_AP","PRIND","Professional indemnity",null,{"$f":"_xlfn.XLOOKUP(F1477,'Raw Data'!$I$4:$I$5000,'Raw Data'!$D$4:$D$5000,\"*** Mnemonic not found ***\",0)","v":"*** Mnemonic not found ***"},"SUCMPROPORRSK_AP_PRIND_",null,"Input",null,null,{"$f":"K1476+1","v":519},{"$f":"L1476","v":"F"},"Input!F519",{"$f":"_xlfn.XLOOKUP(F1477,'Raw Data'!$I$4:$I$5000,'Raw Data'!$E$4:$E$5000,100,0)","v":100},{"$f":"IF(N1477=0,_xlfn.XLOOKUP(F1477,'Raw Data'!$I$4:$I$5000,'Raw Data'!$H$4:$H$5000,\"\",0),\"\")","v":""},{"$f":"IF(INDIRECT(M1477) = \"\",\"\",INDIRECT(M1477))","v":""},"n"]
["SUCMPROPORRSK_AP","PAPL","Public and product liability",null,{"$f":"_xlfn.XLOOKUP(F1478,'Raw Data'!$I$4:$I$5000,'Raw Data'!$D$4:$D$5000,\"*** Mnemonic not found ***\",0)","v":"*** Mnemonic not found ***"},"SUCMPROPORRSK_AP_PAPL_",null,"Input",null,null,520,"F","Input!F520",{"$f":"_xlfn.XLOOKUP(F1478,'Raw Data'!$I$4:$I$5000,'Raw Data'!$E$4:$E$5000,100,0)","v":100},{"$f":"IF(N1478=0,_xlfn.XLOOKUP(F1478,'Raw Data'!$I$4:$I$5000,'Raw Data'!$H$4:$H$5000,\"\",0),\"\")","v":""},{"$f":"IF(INDIRECT(M1478) = \"\",\"\",INDIRECT(M1478))","v":""},"n"]
["SUCMPROPORRSK_AP","CMPR","Commercial property",null,{"$f":"_xlfn.XLOOKUP(F1479,'Raw Data'!$I$4:$I$5000,'Raw Data'!$D$4:$D$5000,\"*** Mnemonic not found ***\",0)","v":"*** Mnemonic not found ***"},{"$f":"CONCATENATE(A1479,\"_\",B1479,\"_\",D1479)","v":"SUCMPROPORRSK_AP_CMPR_"},null,"Input",null,null,521,"F","Input!F521",{"$f":"_xlfn.XLOOKUP(F1479,'Raw Data'!$I$4:$I$5000,'Raw Data'!$E$4:$E$5000,100,0)","v":100},{"$f":"IF(N1479=0,_xlfn.XLOOKUP(F1479,'Raw Data'!$I$4:$I$5000,'Raw Data'!$H$4:$H$5000,\"\",0),\"\")","v":""},{"$f":"IF(INDIRECT(M1479) = \"\",\"\",INDIRECT(M1479))","v":""},"n"]
["SUCMPROPORRSK_AP","HMP","Domestic property",null,{"$f":"_xlfn.XLOOKUP(F1480,'Raw Data'!$I$4:$I$5000,'Raw Data'!$D$4:$D$5000,\"*** Mnemonic not found ***\",0)","v":"*** Mnemonic not found ***"},"SUCMPROPORRSK_AP_HMP_",null,"Input",null,null,522,"F","Input!F522",{"$f":"_xlfn.XLOOKUP(F1480,'Raw Data'!$I$4:$I$5000,'Raw Data'!$E$4:$E$5000,100,0)","v":100},{"$f":"IF(N1480=0,_xlfn.XLOOKUP(F1480,'Raw Data'!$I$4:$I$5000,'Raw Data'!$H$4:$H$5000,\"\",0),\"\")","v":""},{"$f":"IF(INDIRECT(M1480) = \"\",\"\",INDIRECT(M1480))","v":""},"n"]
["SUCMPROPORRSK_AP","ENG","Engineering",null,{"$f":"_xlfn.XLOOKUP(F1481,'Raw Data'!$I$4:$I$5000,'Raw Data'!$D$4:$D$5000,\"*** Mnemonic not found ***\",0)","v":"*** Mnemonic not found ***"},"SUCMPROPORRSK_AP_ENG_",null,"Input",null,null,523,"F","Input!F523",{"$f":"_xlfn.XLOOKUP(F1481,'Raw Data'!$I$4:$I$5000,'Raw Data'!$E$4:$E$5000,100,0)","v":100},{"$f":"IF(N1481=0,_xlfn.XLOOKUP(F1481,'Raw Data'!$I$4:$I$5000,'Raw Data'!$H$4:$H$5000,\"\",0),\"\")","v":""},{"$f":"IF(INDIRECT(M1481) = \"\",\"\",INDIRECT(M1481))","v":""},"n"]
["SUCMPROPORRSK_AP","CALANZ","Commercial motor - Australia and New Zealand",null,{"$f":"_xlfn.XLOOKUP(F1482,'Raw Data'!$I$4:$I$5000,'Raw Data'!$D$4:$D$5000,\"*** Mnemonic not found ***\",0)","v":"*** Mnemonic not found ***"},"SUCMPROPORRSK_AP_CALANZ_",null,"Input",null,null,524,"F","Input!F524",{"$f":"_xlfn.XLOOKUP(F1482,'Raw Data'!$I$4:$I$5000,'Raw Data'!$E$4:$E$5000,100,0)","v":100},{"$f":"IF(N1482=0,_xlfn.XLOOKUP(F1482,'Raw Data'!$I$4:$I$5000,'Raw Data'!$H$4:$H$5000,\"\",0),\"\")","v":""},{"$f":"IF(INDIRECT(M1482) = \"\",\"\",INDIRECT(M1482))","v":""},"n"]
["SUCMPROPORRSK_AP","PALANZ","Domestic motor - Australia and New Zealand",null,{"$f":"_xlfn.XLOOKUP(F1483,'Raw Data'!$I$4:$I$5000,'Raw Data'!$D$4:$D$5000,\"*** Mnemonic not found ***\",0)","v":"*** Mnemonic not found ***"},"SUCMPROPORRSK_AP_PALANZ_",null,"Input",null,null,525,"F","Input!F525",{"$f":"_xlfn.XLOOKUP(F1483,'Raw Data'!$I$4:$I$5000,'Raw Data'!$E$4:$E$5000,100,0)","v":100},{"$f":"IF(N1483=0,_xlfn.XLOOKUP(F1483,'Raw Data'!$I$4:$I$5000,'Raw Data'!$H$4:$H$5000,\"\",0),\"\")","v":""},{"$f":"IF(INDIRECT(M1483) = \"\",\"\",INDIRECT(M1483))","v":""},"n"]
["SUCMPROPORRSK_AP","ALB","Motor - all inclusive",null,{"$f":"_xlfn.XLOOKUP(F1484,'Raw Data'!$I$4:$I$5000,'Raw Data'!$D$4:$D$5000,\"*** Mnemonic not found ***\",0)","v":"*** Mnemonic not found ***"},"SUCMPROPORRSK_AP_ALB_",null,"Input",null,null,526,"F",{"$f":"CONCATENATE(H1484,\"!\",L1484,K1484)","v":"Input!F526"},{"$f":"_xlfn.XLOOKUP(F1484,'Raw Data'!$I$4:$I$5000,'Raw Data'!$E$4:$E$5000,100,0)","v":100},{"$f":"IF(N1484=0,_xlfn.XLOOKUP(F1484,'Raw Data'!$I$4:$I$5000,'Raw Data'!$H$4:$H$5000,\"\",0),\"\")","v":""},{"$f":"IF(INDIRECT(M1484) = \"\",\"\",INDIRECT(M1484))","v":""},"n"]
["SUCMPROPORRSK_AP","AJPTW","Motor - Japan and Taiwan",null,{"$f":"_xlfn.XLOOKUP(F1485,'Raw Data'!$I$4:$I$5000,'Raw Data'!$D$4:$D$5000,\"*** Mnemonic not found ***\",0)","v":"*** Mnemonic not found ***"},"SUCMPROPORRSK_AP_AJPTW_",null,"Input",null,null,{"$f":"K1484+1","v":527},{"$f":"L1484","v":"F"},"Input!F527",{"$f":"_xlfn.XLOOKUP(F1485,'Raw Data'!$I$4:$I$5000,'Raw Data'!$E$4:$E$5000,100,0)","v":100},{"$f":"IF(N1485=0,_xlfn.XLOOKUP(F1485,'Raw Data'!$I$4:$I$5000,'Raw Data'!$H$4:$H$5000,\"\",0),\"\")","v":""},{"$f":"IF(INDIRECT(M1485) = \"\",\"\",INDIRECT(M1485))","v":""},"n"]
["SUCMPROPORRSK_AP","TPLM","Third party liability motor",null,{"$f":"_xlfn.XLOOKUP(F1486,'Raw Data'!$I$4:$I$5000,'Raw Data'!$D$4:$D$5000,\"*** Mnemonic not found ***\",0)","v":"*** Mnemonic not found ***"},"SUCMPROPORRSK_AP_TPLM_",null,"Input",null,null,528,"F","Input!F528",{"$f":"_xlfn.XLOOKUP(F1486,'Raw Data'!$I$4:$I$5000,'Raw Data'!$E$4:$E$5000,100,0)","v":100},{"$f":"IF(N1486=0,_xlfn.XLOOKUP(F1486,'Raw Data'!$I$4:$I$5000,'Raw Data'!$H$4:$H$5000,\"\",0),\"\")","v":""},{"$f":"IF(INDIRECT(M1486) = \"\",\"\",INDIRECT(M1486))","v":""},"n"]
["SUCMPROPORRSK_AP","CONCR","Consumer credit",null,{"$f":"_xlfn.XLOOKUP(F1487,'Raw Data'!$I$4:$I$5000,'Raw Data'!$D$4:$D$5000,\"*** Mnemonic not found ***\",0)","v":"*** Mnemonic not found ***"},"SUCMPROPORRSK_AP_CONCR_",null,"Input",null,null,529,"F","Input!F529",{"$f":"_xlfn.XLOOKUP(F1487,'Raw Data'!$I$4:$I$5000,'Raw Data'!$E$4:$E$5000,100,0)","v":100},{"$f":"IF(N1487=0,_xlfn.XLOOKUP(F1487,'Raw Data'!$I$4:$I$5000,'Raw Data'!$H$4:$H$5000,\"\",0),\"\")","v":""},{"$f":"IF(INDIRECT(M1487) = \"\",\"\",INDIRECT(M1487))","v":""},"n"]
["SUCMPROPORRSK_AP","CRD","Credit",null,{"$f":"_xlfn.XLOOKUP(F1488,'Raw Data'!$I$4:$I$5000,'Raw Data'!$D$4:$D$5000,\"*** Mnemonic not found ***\",0)","v":"*** Mnemonic not found ***"},"SUCMPROPORRSK_AP_CRD_",null,"Input",null,null,530,"F","Input!F530",{"$f":"_xlfn.XLOOKUP(F1488,'Raw Data'!$I$4:$I$5000,'Raw Data'!$E$4:$E$5000,100,0)","v":100},{"$f":"IF(N1488=0,_xlfn.XLOOKUP(F1488,'Raw Data'!$I$4:$I$5000,'Raw Data'!$H$4:$H$5000,\"\",0),\"\")","v":""},{"$f":"IF(INDIRECT(M1488) = \"\",\"\",INDIRECT(M1488))","v":""},"n"]
["SUCMPROPORRSK_AP","AAH","Accident & health",null,{"$f":"_xlfn.XLOOKUP(F1489,'Raw Data'!$I$4:$I$5000,'Raw Data'!$D$4:$D$5000,\"*** Mnemonic not found ***\",0)","v":"*** Mnemonic not found ***"},"SUCMPROPORRSK_AP_AAH_",null,"Input",null,null,531,"F","Input!F531",{"$f":"_xlfn.XLOOKUP(F1489,'Raw Data'!$I$4:$I$5000,'Raw Data'!$E$4:$E$5000,100,0)","v":100},{"$f":"IF(N1489=0,_xlfn.XLOOKUP(F1489,'Raw Data'!$I$4:$I$5000,'Raw Data'!$H$4:$H$5000,\"\",0),\"\")","v":""},{"$f":"IF(INDIRECT(M1489) = \"\",\"\",INDIRECT(M1489))","v":""},"n"]
["SUCMPROPORRSK_AP","HLTH","Health",null,{"$f":"_xlfn.XLOOKUP(F1490,'Raw Data'!$I$4:$I$5000,'Raw Data'!$D$4:$D$5000,\"*** Mnemonic not found ***\",0)","v":"*** Mnemonic not found ***"},"SUCMPROPORRSK_AP_HLTH_",null,"Input",null,null,532,"F","Input!F532",{"$f":"_xlfn.XLOOKUP(F1490,'Raw Data'!$I$4:$I$5000,'Raw Data'!$E$4:$E$5000,100,0)","v":100},{"$f":"IF(N1490=0,_xlfn.XLOOKUP(F1490,'Raw Data'!$I$4:$I$5000,'Raw Data'!$H$4:$H$5000,\"\",0),\"\")","v":""},{"$f":"IF(INDIRECT(M1490) = \"\",\"\",INDIRECT(M1490))","v":""},"n"]
["SUCMPROPORRSK_AP","MAVC","Marine, aviation - cargo",null,{"$f":"_xlfn.XLOOKUP(F1491,'Raw Data'!$I$4:$I$5000,'Raw Data'!$D$4:$D$5000,\"*** Mnemonic not found ***\",0)","v":"*** Mnemonic not found ***"},"SUCMPROPORRSK_AP_MAVC_",null,"Input",null,null,533,"F","Input!F533",{"$f":"_xlfn.XLOOKUP(F1491,'Raw Data'!$I$4:$I$5000,'Raw Data'!$E$4:$E$5000,100,0)","v":100},{"$f":"IF(N1491=0,_xlfn.XLOOKUP(F1491,'Raw Data'!$I$4:$I$5000,'Raw Data'!$H$4:$H$5000,\"\",0),\"\")","v":""},{"$f":"IF(INDIRECT(M1491) = \"\",\"\",INDIRECT(M1491))","v":""},"n"]
["SUCMPROPORRSK_AP","MAVH","Marine, aviation - hull",null,{"$f":"_xlfn.XLOOKUP(F1492,'Raw Data'!$I$4:$I$5000,'Raw Data'!$D$4:$D$5000,\"*** Mnemonic not found ***\",0)","v":"*** Mnemonic not found ***"},"SUCMPROPORRSK_AP_MAVH_",null,"Input",null,null,534,"F","Input!F534",{"$f":"_xlfn.XLOOKUP(F1492,'Raw Data'!$I$4:$I$5000,'Raw Data'!$E$4:$E$5000,100,0)","v":100},{"$f":"IF(N1492=0,_xlfn.XLOOKUP(F1492,'Raw Data'!$I$4:$I$5000,'Raw Data'!$H$4:$H$5000,\"\",0),\"\")","v":""},{"$f":"IF(INDIRECT(M1492) = \"\",\"\",INDIRECT(M1492))","v":""},"n"]
["SUCMPROPORRSK_AP","MPIN","Marine protection & indemnity",null,{"$f":"_xlfn.XLOOKUP(F1493,'Raw Data'!$I$4:$I$5000,'Raw Data'!$D$4:$D$5000,\"*** Mnemonic not found ***\",0)","v":"*** Mnemonic not found ***"},"SUCMPROPORRSK_AP_MPIN_",null,"Input",null,null,535,"F",{"$f":"CONCATENATE(H1493,\"!\",L1493,K1493)","v":"Input!F535"},{"$f":"_xlfn.XLOOKUP(F1493,'Raw Data'!$I$4:$I$5000,'Raw Data'!$E$4:$E$5000,100,0)","v":100},{"$f":"IF(N1493=0,_xlfn.XLOOKUP(F1493,'Raw Data'!$I$4:$I$5000,'Raw Data'!$H$4:$H$5000,\"\",0),\"\")","v":""},{"$f":"IF(INDIRECT(M1493) = \"\",\"\",INDIRECT(M1493))","v":""},"n"]
["SUCMPROPORRSK_AP","TRV","Travel",null,{"$f":"_xlfn.XLOOKUP(F1494,'Raw Data'!$I$4:$I$5000,'Raw Data'!$D$4:$D$5000,\"*** Mnemonic not found ***\",0)","v":"*** Mnemonic not found ***"},"SUCMPROPORRSK_AP_TRV_",null,"Input",null,null,{"$f":"K1493+1","v":536},{"$f":"L1493","v":"F"},"Input!F536",{"$f":"_xlfn.XLOOKUP(F1494,'Raw Data'!$I$4:$I$5000,'Raw Data'!$E$4:$E$5000,100,0)","v":100},{"$f":"IF(N1494=0,_xlfn.XLOOKUP(F1494,'Raw Data'!$I$4:$I$5000,'Raw Data'!$H$4:$H$5000,\"\",0),\"\")","v":""},{"$f":"IF(INDIRECT(M1494) = \"\",\"\",INDIRECT(M1494))","v":""},"n"]
["SUCMPROPORRSK_AP","OCAH","Other",null,{"$f":"_xlfn.XLOOKUP(F1495,'Raw Data'!$I$4:$I$5000,'Raw Data'!$D$4:$D$5000,\"*** Mnemonic not found ***\",0)","v":"*** Mnemonic not found ***"},"SUCMPROPORRSK_AP_OCAH_",null,"Input",null,null,537,"F","Input!F537",{"$f":"_xlfn.XLOOKUP(F1495,'Raw Data'!$I$4:$I$5000,'Raw Data'!$E$4:$E$5000,100,0)","v":100},{"$f":"IF(N1495=0,_xlfn.XLOOKUP(F1495,'Raw Data'!$I$4:$I$5000,'Raw Data'!$H$4:$H$5000,\"\",0),\"\")","v":""},{"$f":"IF(INDIRECT(M1495) = \"\",\"\",INDIRECT(M1495))","v":""},"n"]
["SUCMNONPROPORRSK_AP","EMLIB","Employers liability",null,{"$f":"_xlfn.XLOOKUP(F1496,'Raw Data'!$I$4:$I$5000,'Raw Data'!$D$4:$D$5000,\"*** Mnemonic not found ***\",0)","v":"*** Mnemonic not found ***"},"SUCMNONPROPORRSK_AP_EMLIB_",null,"Input",{"$f":"ROW(section_non_life_prem)","v":437},{"$f":"J1475","v":80},{"$f":"I1496+J1496","v":517},"G","Input!G517",{"$f":"_xlfn.XLOOKUP(F1496,'Raw Data'!$I$4:$I$5000,'Raw Data'!$E$4:$E$5000,100,0)","v":100},{"$f":"IF(N1496=0,_xlfn.XLOOKUP(F1496,'Raw Data'!$I$4:$I$5000,'Raw Data'!$H$4:$H$5000,\"\",0),\"\")","v":""},{"$f":"IF(INDIRECT(M1496) = \"\",\"\",INDIRECT(M1496))","v":""},"n"]
["SUCMNONPROPORRSK_AP","LIA","General liability",null,{"$f":"_xlfn.XLOOKUP(F1497,'Raw Data'!$I$4:$I$5000,'Raw Data'!$D$4:$D$5000,\"*** Mnemonic not found ***\",0)","v":"*** Mnemonic not found ***"},"SUCMNONPROPORRSK_AP_LIA_",null,"Input",null,null,{"$f":"K1496+1","v":518},{"$f":"L1496","v":"G"},"Input!G518",{"$f":"_xlfn.XLOOKUP(F1497,'Raw Data'!$I$4:$I$5000,'Raw Data'!$E$4:$E$5000,100,0)","v":100},{"$f":"IF(N1497=0,_xlfn.XLOOKUP(F1497,'Raw Data'!$I$4:$I$5000,'Raw Data'!$H$4:$H$5000,\"\",0),\"\")","v":""},{"$f":"IF(INDIRECT(M1497) = \"\",\"\",INDIRECT(M1497))","v":""},"n"]
["SUCMNONPROPORRSK_AP","PRIND","Professional indemnity",null,{"$f":"_xlfn.XLOOKUP(F1498,'Raw Data'!$I$4:$I$5000,'Raw Data'!$D$4:$D$5000,\"*** Mnemonic not found ***\",0)","v":"*** Mnemonic not found ***"},"SUCMNONPROPORRSK_AP_PRIND_",null,"Input",null,null,{"$f":"K1497+1","v":519},{"$f":"L1497","v":"G"},"Input!G519",{"$f":"_xlfn.XLOOKUP(F1498,'Raw Data'!$I$4:$I$5000,'Raw Data'!$E$4:$E$5000,100,0)","v":100},{"$f":"IF(N1498=0,_xlfn.XLOOKUP(F1498,'Raw Data'!$I$4:$I$5000,'Raw Data'!$H$4:$H$5000,\"\",0),\"\")","v":""},{"$f":"IF(INDIRECT(M1498) = \"\",\"\",INDIRECT(M1498))","v":""},"n"]
["SUCMNONPROPORRSK_AP","PAPL","Public and product liability",null,{"$f":"_xlfn.XLOOKUP(F1499,'Raw Data'!$I$4:$I$5000,'Raw Data'!$D$4:$D$5000,\"*** Mnemonic not found ***\",0)","v":"*** Mnemonic not found ***"},"SUCMNONPROPORRSK_AP_PAPL_",null,"Input",null,null,520,"G","Input!G520",{"$f":"_xlfn.XLOOKUP(F1499,'Raw Data'!$I$4:$I$5000,'Raw Data'!$E$4:$E$5000,100,0)","v":100},{"$f":"IF(N1499=0,_xlfn.XLOOKUP(F1499,'Raw Data'!$I$4:$I$5000,'Raw Data'!$H$4:$H$5000,\"\",0),\"\")","v":""},{"$f":"IF(INDIRECT(M1499) = \"\",\"\",INDIRECT(M1499))","v":""},"n"]
["SUCMNONPROPORRSK_AP","CMPR","Commercial property",null,{"$f":"_xlfn.XLOOKUP(F1500,'Raw Data'!$I$4:$I$5000,'Raw Data'!$D$4:$D$5000,\"*** Mnemonic not found ***\",0)","v":"*** Mnemonic not found ***"},"SUCMNONPROPORRSK_AP_CMPR_",null,"Input",null,null,521,"G","Input!G521",{"$f":"_xlfn.XLOOKUP(F1500,'Raw Data'!$I$4:$I$5000,'Raw Data'!$E$4:$E$5000,100,0)","v":100},{"$f":"IF(N1500=0,_xlfn.XLOOKUP(F1500,'Raw Data'!$I$4:$I$5000,'Raw Data'!$H$4:$H$5000,\"\",0),\"\")","v":""},{"$f":"IF(INDIRECT(M1500) = \"\",\"\",INDIRECT(M1500))","v":""},"n"]
["SUCMNONPROPORRSK_AP","HMP","Domestic property",null,{"$f":"_xlfn.XLOOKUP(F1501,'Raw Data'!$I$4:$I$5000,'Raw Data'!$D$4:$D$5000,\"*** Mnemonic not found ***\",0)","v":"*** Mnemonic not found ***"},"SUCMNONPROPORRSK_AP_HMP_",null,"Input",null,null,522,"G","Input!G522",{"$f":"_xlfn.XLOOKUP(F1501,'Raw Data'!$I$4:$I$5000,'Raw Data'!$E$4:$E$5000,100,0)","v":100},{"$f":"IF(N1501=0,_xlfn.XLOOKUP(F1501,'Raw Data'!$I$4:$I$5000,'Raw Data'!$H$4:$H$5000,\"\",0),\"\")","v":""},{"$f":"IF(INDIRECT(M1501) = \"\",\"\",INDIRECT(M1501))","v":""},"n"]
["SUCMNONPROPORRSK_AP","ENG","Engineering",null,{"$f":"_xlfn.XLOOKUP(F1502,'Raw Data'!$I$4:$I$5000,'Raw Data'!$D$4:$D$5000,\"*** Mnemonic not found ***\",0)","v":"*** Mnemonic not found ***"},"SUCMNONPROPORRSK_AP_ENG_",null,"Input",null,null,523,"G","Input!G523",{"$f":"_xlfn.XLOOKUP(F1502,'Raw Data'!$I$4:$I$5000,'Raw Data'!$E$4:$E$5000,100,0)","v":100},{"$f":"IF(N1502=0,_xlfn.XLOOKUP(F1502,'Raw Data'!$I$4:$I$5000,'Raw Data'!$H$4:$H$5000,\"\",0),\"\")","v":""},{"$f":"IF(INDIRECT(M1502) = \"\",\"\",INDIRECT(M1502))","v":""},"n"]
["SUCMNONPROPORRSK_AP","CALANZ","Commercial motor - Australia and New Zealand",null,{"$f":"_xlfn.XLOOKUP(F1503,'Raw Data'!$I$4:$I$5000,'Raw Data'!$D$4:$D$5000,\"*** Mnemonic not found ***\",0)","v":"*** Mnemonic not found ***"},"SUCMNONPROPORRSK_AP_CALANZ_",null,"Input",null,null,524,"G","Input!G524",{"$f":"_xlfn.XLOOKUP(F1503,'Raw Data'!$I$4:$I$5000,'Raw Data'!$E$4:$E$5000,100,0)","v":100},{"$f":"IF(N1503=0,_xlfn.XLOOKUP(F1503,'Raw Data'!$I$4:$I$5000,'Raw Data'!$H$4:$H$5000,\"\",0),\"\")","v":""},{"$f":"IF(INDIRECT(M1503) = \"\",\"\",INDIRECT(M1503))","v":""},"n"]
["SUCMNONPROPORRSK_AP","PALANZ","Domestic motor - Australia and New Zealand",null,{"$f":"_xlfn.XLOOKUP(F1504,'Raw Data'!$I$4:$I$5000,'Raw Data'!$D$4:$D$5000,\"*** Mnemonic not found ***\",0)","v":"*** Mnemonic not found ***"},"SUCMNONPROPORRSK_AP_PALANZ_",null,"Input",null,null,525,"G","Input!G525",{"$f":"_xlfn.XLOOKUP(F1504,'Raw Data'!$I$4:$I$5000,'Raw Data'!$E$4:$E$5000,100,0)","v":100},{"$f":"IF(N1504=0,_xlfn.XLOOKUP(F1504,'Raw Data'!$I$4:$I$5000,'Raw Data'!$H$4:$H$5000,\"\",0),\"\")","v":""},{"$f":"IF(INDIRECT(M1504) = \"\",\"\",INDIRECT(M1504))","v":""},"n"]
["SUCMNONPROPORRSK_AP","ALB","Motor - all inclusive",null,{"$f":"_xlfn.XLOOKUP(F1505,'Raw Data'!$I$4:$I$5000,'Raw Data'!$D$4:$D$5000,\"*** Mnemonic not found ***\",0)","v":"*** Mnemonic not found ***"},"SUCMNONPROPORRSK_AP_ALB_",null,"Input",null,null,526,"G","Input!G526",{"$f":"_xlfn.XLOOKUP(F1505,'Raw Data'!$I$4:$I$5000,'Raw Data'!$E$4:$E$5000,100,0)","v":100},{"$f":"IF(N1505=0,_xlfn.XLOOKUP(F1505,'Raw Data'!$I$4:$I$5000,'Raw Data'!$H$4:$H$5000,\"\",0),\"\")","v":""},{"$f":"IF(INDIRECT(M1505) = \"\",\"\",INDIRECT(M1505))","v":""},"n"]
["SUCMNONPROPORRSK_AP","AJPTW","Motor - Japan and Taiwan",null,{"$f":"_xlfn.XLOOKUP(F1506,'Raw Data'!$I$4:$I$5000,'Raw Data'!$D$4:$D$5000,\"*** Mnemonic not found ***\",0)","v":"*** Mnemonic not found ***"},"SUCMNONPROPORRSK_AP_AJPTW_",null,"Input",null,null,527,"G","Input!G527",{"$f":"_xlfn.XLOOKUP(F1506,'Raw Data'!$I$4:$I$5000,'Raw Data'!$E$4:$E$5000,100,0)","v":100},{"$f":"IF(N1506=0,_xlfn.XLOOKUP(F1506,'Raw Data'!$I$4:$I$5000,'Raw Data'!$H$4:$H$5000,\"\",0),\"\")","v":""},{"$f":"IF(INDIRECT(M1506) = \"\",\"\",INDIRECT(M1506))","v":""},"n"]
["SUCMNONPROPORRSK_AP","TPLM","Third party liability motor",null,{"$f":"_xlfn.XLOOKUP(F1507,'Raw Data'!$I$4:$I$5000,'Raw Data'!$D$4:$D$5000,\"*** Mnemonic not found ***\",0)","v":"*** Mnemonic not found ***"},"SUCMNONPROPORRSK_AP_TPLM_",null,"Input",null,null,528,"G","Input!G528",{"$f":"_xlfn.XLOOKUP(F1507,'Raw Data'!$I$4:$I$5000,'Raw Data'!$E$4:$E$5000,100,0)","v":100},{"$f":"IF(N1507=0,_xlfn.XLOOKUP(F1507,'Raw Data'!$I$4:$I$5000,'Raw Data'!$H$4:$H$5000,\"\",0),\"\")","v":""},{"$f":"IF(INDIRECT(M1507) = \"\",\"\",INDIRECT(M1507))","v":""},"n"]
["SUCMNONPROPORRSK_AP","CONCR","Consumer credit",null,{"$f":"_xlfn.XLOOKUP(F1508,'Raw Data'!$I$4:$I$5000,'Raw Data'!$D$4:$D$5000,\"*** Mnemonic not found ***\",0)","v":"*** Mnemonic not found ***"},"SUCMNONPROPORRSK_AP_CONCR_",null,"Input",null,null,529,"G","Input!G529",{"$f":"_xlfn.XLOOKUP(F1508,'Raw Data'!$I$4:$I$5000,'Raw Data'!$E$4:$E$5000,100,0)","v":100},{"$f":"IF(N1508=0,_xlfn.XLOOKUP(F1508,'Raw Data'!$I$4:$I$5000,'Raw Data'!$H$4:$H$5000,\"\",0),\"\")","v":""},{"$f":"IF(INDIRECT(M1508) = \"\",\"\",INDIRECT(M1508))","v":""},"n"]
["SUCMNONPROPORRSK_AP","CRD","Credit",null,{"$f":"_xlfn.XLOOKUP(F1509,'Raw Data'!$I$4:$I$5000,'Raw Data'!$D$4:$D$5000,\"*** Mnemonic not found ***\",0)","v":"*** Mnemonic not found ***"},"SUCMNONPROPORRSK_AP_CRD_",null,"Input",null,null,530,"G","Input!G530",{"$f":"_xlfn.XLOOKUP(F1509,'Raw Data'!$I$4:$I$5000,'Raw Data'!$E$4:$E$5000,100,0)","v":100},{"$f":"IF(N1509=0,_xlfn.XLOOKUP(F1509,'Raw Data'!$I$4:$I$5000,'Raw Data'!$H$4:$H$5000,\"\",0),\"\")","v":""},{"$f":"IF(INDIRECT(M1509) = \"\",\"\",INDIRECT(M1509))","v":""},"n"]
["SUCMNONPROPORRSK_AP","AAH","Accident & health",null,{"$f":"_xlfn.XLOOKUP(F1510,'Raw Data'!$I$4:$I$5000,'Raw Data'!$D$4:$D$5000,\"*** Mnemonic not found ***\",0)","v":"*** Mnemonic not found ***"},"SUCMNONPROPORRSK_AP_AAH_",null,"Input",null,null,531,"G","Input!G531",{"$f":"_xlfn.XLOOKUP(F1510,'Raw Data'!$I$4:$I$5000,'Raw Data'!$E$4:$E$5000,100,0)","v":100},{"$f":"IF(N1510=0,_xlfn.XLOOKUP(F1510,'Raw Data'!$I$4:$I$5000,'Raw Data'!$H$4:$H$5000,\"\",0),\"\")","v":""},{"$f":"IF(INDIRECT(M1510) = \"\",\"\",INDIRECT(M1510))","v":""},"n"]
["SUCMNONPROPORRSK_AP","HLTH","Health",null,{"$f":"_xlfn.XLOOKUP(F1511,'Raw Data'!$I$4:$I$5000,'Raw Data'!$D$4:$D$5000,\"*** Mnemonic not found ***\",0)","v":"*** Mnemonic not found ***"},"SUCMNONPROPORRSK_AP_HLTH_",null,"Input",null,null,532,"G","Input!G532",{"$f":"_xlfn.XLOOKUP(F1511,'Raw Data'!$I$4:$I$5000,'Raw Data'!$E$4:$E$5000,100,0)","v":100},{"$f":"IF(N1511=0,_xlfn.XLOOKUP(F1511,'Raw Data'!$I$4:$I$5000,'Raw Data'!$H$4:$H$5000,\"\",0),\"\")","v":""},{"$f":"IF(INDIRECT(M1511) = \"\",\"\",INDIRECT(M1511))","v":""},"n"]
["SUCMNONPROPORRSK_AP","MAVC","Marine, aviation - cargo",null,{"$f":"_xlfn.XLOOKUP(F1512,'Raw Data'!$I$4:$I$5000,'Raw Data'!$D$4:$D$5000,\"*** Mnemonic not found ***\",0)","v":"*** Mnemonic not found ***"},"SUCMNONPROPORRSK_AP_MAVC_",null,"Input",null,null,533,"G","Input!G533",{"$f":"_xlfn.XLOOKUP(F1512,'Raw Data'!$I$4:$I$5000,'Raw Data'!$E$4:$E$5000,100,0)","v":100},{"$f":"IF(N1512=0,_xlfn.XLOOKUP(F1512,'Raw Data'!$I$4:$I$5000,'Raw Data'!$H$4:$H$5000,\"\",0),\"\")","v":""},{"$f":"IF(INDIRECT(M1512) = \"\",\"\",INDIRECT(M1512))","v":""},"n"]
["SUCMNONPROPORRSK_AP","MAVH","Marine, aviation - hull",null,{"$f":"_xlfn.XLOOKUP(F1513,'Raw Data'!$I$4:$I$5000,'Raw Data'!$D$4:$D$5000,\"*** Mnemonic not found ***\",0)","v":"*** Mnemonic not found ***"},"SUCMNONPROPORRSK_AP_MAVH_",null,"Input",null,null,534,"G","Input!G534",{"$f":"_xlfn.XLOOKUP(F1513,'Raw Data'!$I$4:$I$5000,'Raw Data'!$E$4:$E$5000,100,0)","v":100},{"$f":"IF(N1513=0,_xlfn.XLOOKUP(F1513,'Raw Data'!$I$4:$I$5000,'Raw Data'!$H$4:$H$5000,\"\",0),\"\")","v":""},{"$f":"IF(INDIRECT(M1513) = \"\",\"\",INDIRECT(M1513))","v":""},"n"]
["SUCMNONPROPORRSK_AP","MPIN","Marine protection & indemnity",null,{"$f":"_xlfn.XLOOKUP(F1514,'Raw Data'!$I$4:$I$5000,'Raw Data'!$D$4:$D$5000,\"*** Mnemonic not found ***\",0)","v":"*** Mnemonic not found ***"},"SUCMNONPROPORRSK_AP_MPIN_",null,"Input",null,null,535,"G","Input!G535",{"$f":"_xlfn.XLOOKUP(F1514,'Raw Data'!$I$4:$I$5000,'Raw Data'!$E$4:$E$5000,100,0)","v":100},{"$f":"IF(N1514=0,_xlfn.XLOOKUP(F1514,'Raw Data'!$I$4:$I$5000,'Raw Data'!$H$4:$H$5000,\"\",0),\"\")","v":""},{"$f":"IF(INDIRECT(M1514) = \"\",\"\",INDIRECT(M1514))","v":""},"n"]
["SUCMNONPROPORRSK_AP","TRV","Travel",null,{"$f":"_xlfn.XLOOKUP(F1515,'Raw Data'!$I$4:$I$5000,'Raw Data'!$D$4:$D$5000,\"*** Mnemonic not found ***\",0)","v":"*** Mnemonic not found ***"},"SUCMNONPROPORRSK_AP_TRV_",null,"Input",null,null,536,"G","Input!G536",{"$f":"_xlfn.XLOOKUP(F1515,'Raw Data'!$I$4:$I$5000,'Raw Data'!$E$4:$E$5000,100,0)","v":100},{"$f":"IF(N1515=0,_xlfn.XLOOKUP(F1515,'Raw Data'!$I$4:$I$5000,'Raw Data'!$H$4:$H$5000,\"\",0),\"\")","v":""},{"$f":"IF(INDIRECT(M1515) = \"\",\"\",INDIRECT(M1515))","v":""},"n"]
["SUCMNONPROPORRSK_AP","OCAH","Other",null,{"$f":"_xlfn.XLOOKUP(F1516,'Raw Data'!$I$4:$I$5000,'Raw Data'!$D$4:$D$5000,\"*** Mnemonic not found ***\",0)","v":"*** Mnemonic not found ***"},"SUCMNONPROPORRSK_AP_OCAH_",null,"Input",null,null,537,"G","Input!G537",{"$f":"_xlfn.XLOOKUP(F1516,'Raw Data'!$I$4:$I$5000,'Raw Data'!$E$4:$E$5000,100,0)","v":100},{"$f":"IF(N1516=0,_xlfn.XLOOKUP(F1516,'Raw Data'!$I$4:$I$5000,'Raw Data'!$H$4:$H$5000,\"\",0),\"\")","v":""},{"$f":"IF(INDIRECT(M1516) = \"\",\"\",INDIRECT(M1516))","v":""},"n"]
["SUCMPROPORRSK_LAM","EMLIB","Employers liability",null,{"$f":"_xlfn.XLOOKUP(F1517,'Raw Data'!$I$4:$I$5000,'Raw Data'!$D$4:$D$5000,\"*** Mnemonic not found ***\",0)","v":"*** Mnemonic not found ***"},"SUCMPROPORRSK_LAM_EMLIB_","Non-life premium - Latin America","Input",{"$f":"ROW(section_non_life_prem)","v":437},102,{"$f":"I1517+J1517","v":539},"F","Input!F539",{"$f":"_xlfn.XLOOKUP(F1517,'Raw Data'!$I$4:$I$5000,'Raw Data'!$E$4:$E$5000,100,0)","v":100},{"$f":"IF(N1517=0,_xlfn.XLOOKUP(F1517,'Raw Data'!$I$4:$I$5000,'Raw Data'!$H$4:$H$5000,\"\",0),\"\")","v":""},{"$f":"IF(INDIRECT(M1517) = \"\",\"\",INDIRECT(M1517))","v":""},"n"]
["SUCMPROPORRSK_LAM","LIA","General liability",null,{"$f":"_xlfn.XLOOKUP(F1518,'Raw Data'!$I$4:$I$5000,'Raw Data'!$D$4:$D$5000,\"*** Mnemonic not found ***\",0)","v":"*** Mnemonic not found ***"},"SUCMPROPORRSK_LAM_LIA_",null,"Input",null,null,{"$f":"K1517+1","v":540},{"$f":"L1517","v":"F"},"Input!F540",{"$f":"_xlfn.XLOOKUP(F1518,'Raw Data'!$I$4:$I$5000,'Raw Data'!$E$4:$E$5000,100,0)","v":100},{"$f":"IF(N1518=0,_xlfn.XLOOKUP(F1518,'Raw Data'!$I$4:$I$5000,'Raw Data'!$H$4:$H$5000,\"\",0),\"\")","v":""},{"$f":"IF(INDIRECT(M1518) = \"\",\"\",INDIRECT(M1518))","v":""},"n"]
["SUCMPROPORRSK_LAM","PRIND","Professional indemnity",null,{"$f":"_xlfn.XLOOKUP(F1519,'Raw Data'!$I$4:$I$5000,'Raw Data'!$D$4:$D$5000,\"*** Mnemonic not found ***\",0)","v":"*** Mnemonic not found ***"},"SUCMPROPORRSK_LAM_PRIND_",null,"Input",null,null,{"$f":"K1518+1","v":541},{"$f":"L1518","v":"F"},"Input!F541",{"$f":"_xlfn.XLOOKUP(F1519,'Raw Data'!$I$4:$I$5000,'Raw Data'!$E$4:$E$5000,100,0)","v":100},{"$f":"IF(N1519=0,_xlfn.XLOOKUP(F1519,'Raw Data'!$I$4:$I$5000,'Raw Data'!$H$4:$H$5000,\"\",0),\"\")","v":""},{"$f":"IF(INDIRECT(M1519) = \"\",\"\",INDIRECT(M1519))","v":""},"n"]
["SUCMPROPORRSK_LAM","CMPR","Commercial property",null,{"$f":"_xlfn.XLOOKUP(F1520,'Raw Data'!$I$4:$I$5000,'Raw Data'!$D$4:$D$5000,\"*** Mnemonic not found ***\",0)","v":"*** Mnemonic not found ***"},"SUCMPROPORRSK_LAM_CMPR_",null,"Input",null,null,542,"F","Input!F542",{"$f":"_xlfn.XLOOKUP(F1520,'Raw Data'!$I$4:$I$5000,'Raw Data'!$E$4:$E$5000,100,0)","v":100},{"$f":"IF(N1520=0,_xlfn.XLOOKUP(F1520,'Raw Data'!$I$4:$I$5000,'Raw Data'!$H$4:$H$5000,\"\",0),\"\")","v":""},{"$f":"IF(INDIRECT(M1520) = \"\",\"\",INDIRECT(M1520))","v":""},"n"]
["SUCMPROPORRSK_LAM","HMP","Domestic property",null,{"$f":"_xlfn.XLOOKUP(F1521,'Raw Data'!$I$4:$I$5000,'Raw Data'!$D$4:$D$5000,\"*** Mnemonic not found ***\",0)","v":"*** Mnemonic not found ***"},"SUCMPROPORRSK_LAM_HMP_",null,"Input",null,null,543,"F","Input!F543",{"$f":"_xlfn.XLOOKUP(F1521,'Raw Data'!$I$4:$I$5000,'Raw Data'!$E$4:$E$5000,100,0)","v":100},{"$f":"IF(N1521=0,_xlfn.XLOOKUP(F1521,'Raw Data'!$I$4:$I$5000,'Raw Data'!$H$4:$H$5000,\"\",0),\"\")","v":""},{"$f":"IF(INDIRECT(M1521) = \"\",\"\",INDIRECT(M1521))","v":""},"n"]
["SUCMPROPORRSK_LAM","MEXFR","Mexico farm & ranch",null,{"$f":"_xlfn.XLOOKUP(F1522,'Raw Data'!$I$4:$I$5000,'Raw Data'!$D$4:$D$5000,\"*** Mnemonic not found ***\",0)","v":"*** Mnemonic not found ***"},"SUCMPROPORRSK_LAM_MEXFR_",null,"Input",null,null,544,"F","Input!F544",{"$f":"_xlfn.XLOOKUP(F1522,'Raw Data'!$I$4:$I$5000,'Raw Data'!$E$4:$E$5000,100,0)","v":100},{"$f":"IF(N1522=0,_xlfn.XLOOKUP(F1522,'Raw Data'!$I$4:$I$5000,'Raw Data'!$H$4:$H$5000,\"\",0),\"\")","v":""},{"$f":"IF(INDIRECT(M1522) = \"\",\"\",INDIRECT(M1522))","v":""},"n"]
["SUCMPROPORRSK_LAM","PLM","Property all inclusive",null,{"$f":"_xlfn.XLOOKUP(F1523,'Raw Data'!$I$4:$I$5000,'Raw Data'!$D$4:$D$5000,\"*** Mnemonic not found ***\",0)","v":"*** Mnemonic not found ***"},"SUCMPROPORRSK_LAM_PLM_",null,"Input",null,null,545,"F","Input!F545",{"$f":"_xlfn.XLOOKUP(F1523,'Raw Data'!$I$4:$I$5000,'Raw Data'!$E$4:$E$5000,100,0)","v":100},{"$f":"IF(N1523=0,_xlfn.XLOOKUP(F1523,'Raw Data'!$I$4:$I$5000,'Raw Data'!$H$4:$H$5000,\"\",0),\"\")","v":""},{"$f":"IF(INDIRECT(M1523) = \"\",\"\",INDIRECT(M1523))","v":""},"n"]
["SUCMPROPORRSK_LAM","ALB","Motor all inclusive",null,{"$f":"_xlfn.XLOOKUP(F1524,'Raw Data'!$I$4:$I$5000,'Raw Data'!$D$4:$D$5000,\"*** Mnemonic not found ***\",0)","v":"*** Mnemonic not found ***"},"SUCMPROPORRSK_LAM_ALB_",null,"Input",null,null,546,"F","Input!F546",{"$f":"_xlfn.XLOOKUP(F1524,'Raw Data'!$I$4:$I$5000,'Raw Data'!$E$4:$E$5000,100,0)","v":100},{"$f":"IF(N1524=0,_xlfn.XLOOKUP(F1524,'Raw Data'!$I$4:$I$5000,'Raw Data'!$H$4:$H$5000,\"\",0),\"\")","v":""},{"$f":"IF(INDIRECT(M1524) = \"\",\"\",INDIRECT(M1524))","v":""},"n"]
["SUCMPROPORRSK_LAM","CRD","Credit",null,{"$f":"_xlfn.XLOOKUP(F1525,'Raw Data'!$I$4:$I$5000,'Raw Data'!$D$4:$D$5000,\"*** Mnemonic not found ***\",0)","v":"*** Mnemonic not found ***"},"SUCMPROPORRSK_LAM_CRD_",null,"Input",null,null,547,"F","Input!F547",{"$f":"_xlfn.XLOOKUP(F1525,'Raw Data'!$I$4:$I$5000,'Raw Data'!$E$4:$E$5000,100,0)","v":100},{"$f":"IF(N1525=0,_xlfn.XLOOKUP(F1525,'Raw Data'!$I$4:$I$5000,'Raw Data'!$H$4:$H$5000,\"\",0),\"\")","v":""},{"$f":"IF(INDIRECT(M1525) = \"\",\"\",INDIRECT(M1525))","v":""},"n"]
["SUCMPROPORRSK_LAM","FID","Fidelity",null,{"$f":"_xlfn.XLOOKUP(F1526,'Raw Data'!$I$4:$I$5000,'Raw Data'!$D$4:$D$5000,\"*** Mnemonic not found ***\",0)","v":"*** Mnemonic not found ***"},"SUCMPROPORRSK_LAM_FID_",null,"Input",null,null,548,"F","Input!F548",{"$f":"_xlfn.XLOOKUP(F1526,'Raw Data'!$I$4:$I$5000,'Raw Data'!$E$4:$E$5000,100,0)","v":100},{"$f":"IF(N1526=0,_xlfn.XLOOKUP(F1526,'Raw Data'!$I$4:$I$5000,'Raw Data'!$H$4:$H$5000,\"\",0),\"\")","v":""},{"$f":"IF(INDIRECT(M1526) = \"\",\"\",INDIRECT(M1526))","v":""},"n"]
["SUCMPROPORRSK_LAM","SUR","Surety",null,{"$f":"_xlfn.XLOOKUP(F1527,'Raw Data'!$I$4:$I$5000,'Raw Data'!$D$4:$D$5000,\"*** Mnemonic not found ***\",0)","v":"*** Mnemonic not found ***"},"SUCMPROPORRSK_LAM_SUR_",null,"Input",null,null,549,"F","Input!F549",{"$f":"_xlfn.XLOOKUP(F1527,'Raw Data'!$I$4:$I$5000,'Raw Data'!$E$4:$E$5000,100,0)","v":100},{"$f":"IF(N1527=0,_xlfn.XLOOKUP(F1527,'Raw Data'!$I$4:$I$5000,'Raw Data'!$H$4:$H$5000,\"\",0),\"\")","v":""},{"$f":"IF(INDIRECT(M1527) = \"\",\"\",INDIRECT(M1527))","v":""},"n"]
["SUCMPROPORRSK_LAM","AAH","Accident & health",null,{"$f":"_xlfn.XLOOKUP(F1528,'Raw Data'!$I$4:$I$5000,'Raw Data'!$D$4:$D$5000,\"*** Mnemonic not found ***\",0)","v":"*** Mnemonic not found ***"},"SUCMPROPORRSK_LAM_AAH_",null,"Input",null,null,550,"F","Input!F550",{"$f":"_xlfn.XLOOKUP(F1528,'Raw Data'!$I$4:$I$5000,'Raw Data'!$E$4:$E$5000,100,0)","v":100},{"$f":"IF(N1528=0,_xlfn.XLOOKUP(F1528,'Raw Data'!$I$4:$I$5000,'Raw Data'!$H$4:$H$5000,\"\",0),\"\")","v":""},{"$f":"IF(INDIRECT(M1528) = \"\",\"\",INDIRECT(M1528))","v":""},"n"]
["SUCMPROPORRSK_LAM","HMEDEX","Health & medical exp",null,{"$f":"_xlfn.XLOOKUP(F1529,'Raw Data'!$I$4:$I$5000,'Raw Data'!$D$4:$D$5000,\"*** Mnemonic not found ***\",0)","v":"*** Mnemonic not found ***"},"SUCMPROPORRSK_LAM_HMEDEX_",null,"Input",null,null,551,"F","Input!F551",{"$f":"_xlfn.XLOOKUP(F1529,'Raw Data'!$I$4:$I$5000,'Raw Data'!$E$4:$E$5000,100,0)","v":100},{"$f":"IF(N1529=0,_xlfn.XLOOKUP(F1529,'Raw Data'!$I$4:$I$5000,'Raw Data'!$H$4:$H$5000,\"\",0),\"\")","v":""},{"$f":"IF(INDIRECT(M1529) = \"\",\"\",INDIRECT(M1529))","v":""},"n"]
["SUCMPROPORRSK_LAM","MAVA","Marine, Aviation - all inclusive",null,{"$f":"_xlfn.XLOOKUP(F1530,'Raw Data'!$I$4:$I$5000,'Raw Data'!$D$4:$D$5000,\"*** Mnemonic not found ***\",0)","v":"*** Mnemonic not found ***"},"SUCMPROPORRSK_LAM_MAVA_",null,"Input",null,null,552,"F","Input!F552",{"$f":"_xlfn.XLOOKUP(F1530,'Raw Data'!$I$4:$I$5000,'Raw Data'!$E$4:$E$5000,100,0)","v":100},{"$f":"IF(N1530=0,_xlfn.XLOOKUP(F1530,'Raw Data'!$I$4:$I$5000,'Raw Data'!$H$4:$H$5000,\"\",0),\"\")","v":""},{"$f":"IF(INDIRECT(M1530) = \"\",\"\",INDIRECT(M1530))","v":""},"n"]
["SUCMPROPORRSK_LAM","MAVC","Marine, Aviation - cargo",null,{"$f":"_xlfn.XLOOKUP(F1531,'Raw Data'!$I$4:$I$5000,'Raw Data'!$D$4:$D$5000,\"*** Mnemonic not found ***\",0)","v":"*** Mnemonic not found ***"},"SUCMPROPORRSK_LAM_MAVC_",null,"Input",null,null,553,"F","Input!F553",{"$f":"_xlfn.XLOOKUP(F1531,'Raw Data'!$I$4:$I$5000,'Raw Data'!$E$4:$E$5000,100,0)","v":100},{"$f":"IF(N1531=0,_xlfn.XLOOKUP(F1531,'Raw Data'!$I$4:$I$5000,'Raw Data'!$H$4:$H$5000,\"\",0),\"\")","v":""},{"$f":"IF(INDIRECT(M1531) = \"\",\"\",INDIRECT(M1531))","v":""},"n"]
["SUCMPROPORRSK_LAM","MPIN","Marine protection & indemnity",null,{"$f":"_xlfn.XLOOKUP(F1532,'Raw Data'!$I$4:$I$5000,'Raw Data'!$D$4:$D$5000,\"*** Mnemonic not found ***\",0)","v":"*** Mnemonic not found ***"},"SUCMPROPORRSK_LAM_MPIN_",null,"Input",null,null,554,"F",{"$f":"CONCATENATE(H1532,\"!\",L1532,K1532)","v":"Input!F554"},{"$f":"_xlfn.XLOOKUP(F1532,'Raw Data'!$I$4:$I$5000,'Raw Data'!$E$4:$E$5000,100,0)","v":100},{"$f":"IF(N1532=0,_xlfn.XLOOKUP(F1532,'Raw Data'!$I$4:$I$5000,'Raw Data'!$H$4:$H$5000,\"\",0),\"\")","v":""},{"$f":"IF(INDIRECT(M1532) = \"\",\"\",INDIRECT(M1532))","v":""},"n"]
["SUCMPROPORRSK_LAM","TRV","Travel",null,{"$f":"_xlfn.XLOOKUP(F1533,'Raw Data'!$I$4:$I$5000,'Raw Data'!$D$4:$D$5000,\"*** Mnemonic not found ***\",0)","v":"*** Mnemonic not found ***"},"SUCMPROPORRSK_LAM_TRV_",null,"Input",null,null,555,"F","Input!F555",{"$f":"_xlfn.XLOOKUP(F1533,'Raw Data'!$I$4:$I$5000,'Raw Data'!$E$4:$E$5000,100,0)","v":100},{"$f":"IF(N1533=0,_xlfn.XLOOKUP(F1533,'Raw Data'!$I$4:$I$5000,'Raw Data'!$H$4:$H$5000,\"\",0),\"\")","v":""},{"$f":"IF(INDIRECT(M1533) = \"\",\"\",INDIRECT(M1533))","v":""},"n"]
["SUCMPROPORRSK_LAM","WAR","Warranty",null,{"$f":"_xlfn.XLOOKUP(F1534,'Raw Data'!$I$4:$I$5000,'Raw Data'!$D$4:$D$5000,\"*** Mnemonic not found ***\",0)","v":"*** Mnemonic not found ***"},"SUCMPROPORRSK_LAM_WAR_",null,"Input",null,null,556,"F","Input!F556",{"$f":"_xlfn.XLOOKUP(F1534,'Raw Data'!$I$4:$I$5000,'Raw Data'!$E$4:$E$5000,100,0)","v":100},{"$f":"IF(N1534=0,_xlfn.XLOOKUP(F1534,'Raw Data'!$I$4:$I$5000,'Raw Data'!$H$4:$H$5000,\"\",0),\"\")","v":""},{"$f":"IF(INDIRECT(M1534) = \"\",\"\",INDIRECT(M1534))","v":""},"n"]
["SUCMPROPORRSK_LAM","OCAH","Other",null,{"$f":"_xlfn.XLOOKUP(F1535,'Raw Data'!$I$4:$I$5000,'Raw Data'!$D$4:$D$5000,\"*** Mnemonic not found ***\",0)","v":"*** Mnemonic not found ***"},"SUCMPROPORRSK_LAM_OCAH_",null,"Input",null,null,557,"F","Input!F557",{"$f":"_xlfn.XLOOKUP(F1535,'Raw Data'!$I$4:$I$5000,'Raw Data'!$E$4:$E$5000,100,0)","v":100},{"$f":"IF(N1535=0,_xlfn.XLOOKUP(F1535,'Raw Data'!$I$4:$I$5000,'Raw Data'!$H$4:$H$5000,\"\",0),\"\")","v":""},{"$f":"IF(INDIRECT(M1535) = \"\",\"\",INDIRECT(M1535))","v":""},"n"]
["SUCMNONPROPORRSK_LAM","EMLIB","Employers liability",null,{"$f":"_xlfn.XLOOKUP(F1536,'Raw Data'!$I$4:$I$5000,'Raw Data'!$D$4:$D$5000,\"*** Mnemonic not found ***\",0)","v":"*** Mnemonic not found ***"},"SUCMNONPROPORRSK_LAM_EMLIB_",null,"Input",{"$f":"ROW(section_non_life_prem)","v":437},{"$f":"J1517","v":102},{"$f":"I1536+J1536","v":539},"G","Input!G539",{"$f":"_xlfn.XLOOKUP(F1536,'Raw Data'!$I$4:$I$5000,'Raw Data'!$E$4:$E$5000,100,0)","v":100},{"$f":"IF(N1536=0,_xlfn.XLOOKUP(F1536,'Raw Data'!$I$4:$I$5000,'Raw Data'!$H$4:$H$5000,\"\",0),\"\")","v":""},{"$f":"IF(INDIRECT(M1536) = \"\",\"\",INDIRECT(M1536))","v":""},"n"]
["SUCMNONPROPORRSK_LAM","LIA","General liability",null,{"$f":"_xlfn.XLOOKUP(F1537,'Raw Data'!$I$4:$I$5000,'Raw Data'!$D$4:$D$5000,\"*** Mnemonic not found ***\",0)","v":"*** Mnemonic not found ***"},"SUCMNONPROPORRSK_LAM_LIA_",null,"Input",null,null,{"$f":"K1536+1","v":540},{"$f":"L1536","v":"G"},{"$f":"CONCATENATE(H1537,\"!\",L1537,K1537)","v":"Input!G540"},{"$f":"_xlfn.XLOOKUP(F1537,'Raw Data'!$I$4:$I$5000,'Raw Data'!$E$4:$E$5000,100,0)","v":100},{"$f":"IF(N1537=0,_xlfn.XLOOKUP(F1537,'Raw Data'!$I$4:$I$5000,'Raw Data'!$H$4:$H$5000,\"\",0),\"\")","v":""},{"$f":"IF(INDIRECT(M1537) = \"\",\"\",INDIRECT(M1537))","v":""},"n"]
["SUCMNONPROPORRSK_LAM","PRIND","Professional indemnity",null,{"$f":"_xlfn.XLOOKUP(F1538,'Raw Data'!$I$4:$I$5000,'Raw Data'!$D$4:$D$5000,\"*** Mnemonic not found ***\",0)","v":"*** Mnemonic not found ***"},"SUCMNONPROPORRSK_LAM_PRIND_",null,"Input",null,null,{"$f":"K1537+1","v":541},{"$f":"L1537","v":"G"},"Input!G541",{"$f":"_xlfn.XLOOKUP(F1538,'Raw Data'!$I$4:$I$5000,'Raw Data'!$E$4:$E$5000,100,0)","v":100},{"$f":"IF(N1538=0,_xlfn.XLOOKUP(F1538,'Raw Data'!$I$4:$I$5000,'Raw Data'!$H$4:$H$5000,\"\",0),\"\")","v":""},{"$f":"IF(INDIRECT(M1538) = \"\",\"\",INDIRECT(M1538))","v":""},"n"]
["SUCMNONPROPORRSK_LAM","CMPR","Commercial property",null,{"$f":"_xlfn.XLOOKUP(F1539,'Raw Data'!$I$4:$I$5000,'Raw Data'!$D$4:$D$5000,\"*** Mnemonic not found ***\",0)","v":"*** Mnemonic not found ***"},"SUCMNONPROPORRSK_LAM_CMPR_",null,"Input",null,null,542,"G","Input!G542",{"$f":"_xlfn.XLOOKUP(F1539,'Raw Data'!$I$4:$I$5000,'Raw Data'!$E$4:$E$5000,100,0)","v":100},{"$f":"IF(N1539=0,_xlfn.XLOOKUP(F1539,'Raw Data'!$I$4:$I$5000,'Raw Data'!$H$4:$H$5000,\"\",0),\"\")","v":""},{"$f":"IF(INDIRECT(M1539) = \"\",\"\",INDIRECT(M1539))","v":""},"n"]
["SUCMNONPROPORRSK_LAM","HMP","Domestic property",null,{"$f":"_xlfn.XLOOKUP(F1540,'Raw Data'!$I$4:$I$5000,'Raw Data'!$D$4:$D$5000,\"*** Mnemonic not found ***\",0)","v":"*** Mnemonic not found ***"},"SUCMNONPROPORRSK_LAM_HMP_",null,"Input",null,null,543,"G","Input!G543",{"$f":"_xlfn.XLOOKUP(F1540,'Raw Data'!$I$4:$I$5000,'Raw Data'!$E$4:$E$5000,100,0)","v":100},{"$f":"IF(N1540=0,_xlfn.XLOOKUP(F1540,'Raw Data'!$I$4:$I$5000,'Raw Data'!$H$4:$H$5000,\"\",0),\"\")","v":""},{"$f":"IF(INDIRECT(M1540) = \"\",\"\",INDIRECT(M1540))","v":""},"n"]
["SUCMNONPROPORRSK_LAM","MEXFR","Mexico farm & ranch",null,{"$f":"_xlfn.XLOOKUP(F1541,'Raw Data'!$I$4:$I$5000,'Raw Data'!$D$4:$D$5000,\"*** Mnemonic not found ***\",0)","v":"*** Mnemonic not found ***"},"SUCMNONPROPORRSK_LAM_MEXFR_",null,"Input",null,null,544,"G","Input!G544",{"$f":"_xlfn.XLOOKUP(F1541,'Raw Data'!$I$4:$I$5000,'Raw Data'!$E$4:$E$5000,100,0)","v":100},{"$f":"IF(N1541=0,_xlfn.XLOOKUP(F1541,'Raw Data'!$I$4:$I$5000,'Raw Data'!$H$4:$H$5000,\"\",0),\"\")","v":""},{"$f":"IF(INDIRECT(M1541) = \"\",\"\",INDIRECT(M1541))","v":""},"n"]
["SUCMNONPROPORRSK_LAM","PLM","Property all inclusive",null,{"$f":"_xlfn.XLOOKUP(F1542,'Raw Data'!$I$4:$I$5000,'Raw Data'!$D$4:$D$5000,\"*** Mnemonic not found ***\",0)","v":"*** Mnemonic not found ***"},"SUCMNONPROPORRSK_LAM_PLM_",null,"Input",null,null,545,"G","Input!G545",{"$f":"_xlfn.XLOOKUP(F1542,'Raw Data'!$I$4:$I$5000,'Raw Data'!$E$4:$E$5000,100,0)","v":100},{"$f":"IF(N1542=0,_xlfn.XLOOKUP(F1542,'Raw Data'!$I$4:$I$5000,'Raw Data'!$H$4:$H$5000,\"\",0),\"\")","v":""},{"$f":"IF(INDIRECT(M1542) = \"\",\"\",INDIRECT(M1542))","v":""},"n"]
["SUCMNONPROPORRSK_LAM","ALB","Motor all inclusive",null,{"$f":"_xlfn.XLOOKUP(F1543,'Raw Data'!$I$4:$I$5000,'Raw Data'!$D$4:$D$5000,\"*** Mnemonic not found ***\",0)","v":"*** Mnemonic not found ***"},{"$f":"CONCATENATE(A1543,\"_\",B1543,\"_\",D1543)","v":"SUCMNONPROPORRSK_LAM_ALB_"},null,"Input",null,null,546,"G","Input!G546",{"$f":"_xlfn.XLOOKUP(F1543,'Raw Data'!$I$4:$I$5000,'Raw Data'!$E$4:$E$5000,100,0)","v":100},{"$f":"IF(N1543=0,_xlfn.XLOOKUP(F1543,'Raw Data'!$I$4:$I$5000,'Raw Data'!$H$4:$H$5000,\"\",0),\"\")","v":""},{"$f":"IF(INDIRECT(M1543) = \"\",\"\",INDIRECT(M1543))","v":""},"n"]
["SUCMNONPROPORRSK_LAM","CRD","Credit",null,{"$f":"_xlfn.XLOOKUP(F1544,'Raw Data'!$I$4:$I$5000,'Raw Data'!$D$4:$D$5000,\"*** Mnemonic not found ***\",0)","v":"*** Mnemonic not found ***"},"SUCMNONPROPORRSK_LAM_CRD_",null,"Input",null,null,547,"G","Input!G547",{"$f":"_xlfn.XLOOKUP(F1544,'Raw Data'!$I$4:$I$5000,'Raw Data'!$E$4:$E$5000,100,0)","v":100},{"$f":"IF(N1544=0,_xlfn.XLOOKUP(F1544,'Raw Data'!$I$4:$I$5000,'Raw Data'!$H$4:$H$5000,\"\",0),\"\")","v":""},{"$f":"IF(INDIRECT(M1544) = \"\",\"\",INDIRECT(M1544))","v":""},"n"]
["SUCMNONPROPORRSK_LAM","FID","Fidelity",null,{"$f":"_xlfn.XLOOKUP(F1545,'Raw Data'!$I$4:$I$5000,'Raw Data'!$D$4:$D$5000,\"*** Mnemonic not found ***\",0)","v":"*** Mnemonic not found ***"},"SUCMNONPROPORRSK_LAM_FID_",null,"Input",null,null,548,"G","Input!G548",{"$f":"_xlfn.XLOOKUP(F1545,'Raw Data'!$I$4:$I$5000,'Raw Data'!$E$4:$E$5000,100,0)","v":100},{"$f":"IF(N1545=0,_xlfn.XLOOKUP(F1545,'Raw Data'!$I$4:$I$5000,'Raw Data'!$H$4:$H$5000,\"\",0),\"\")","v":""},{"$f":"IF(INDIRECT(M1545) = \"\",\"\",INDIRECT(M1545))","v":""},"n"]
["SUCMNONPROPORRSK_LAM","SUR","Surety",null,{"$f":"_xlfn.XLOOKUP(F1546,'Raw Data'!$I$4:$I$5000,'Raw Data'!$D$4:$D$5000,\"*** Mnemonic not found ***\",0)","v":"*** Mnemonic not found ***"},"SUCMNONPROPORRSK_LAM_SUR_",null,"Input",null,null,549,"G","Input!G549",{"$f":"_xlfn.XLOOKUP(F1546,'Raw Data'!$I$4:$I$5000,'Raw Data'!$E$4:$E$5000,100,0)","v":100},{"$f":"IF(N1546=0,_xlfn.XLOOKUP(F1546,'Raw Data'!$I$4:$I$5000,'Raw Data'!$H$4:$H$5000,\"\",0),\"\")","v":""},{"$f":"IF(INDIRECT(M1546) = \"\",\"\",INDIRECT(M1546))","v":""},"n"]
["SUCMNONPROPORRSK_LAM","AAH","Accident & health",null,{"$f":"_xlfn.XLOOKUP(F1547,'Raw Data'!$I$4:$I$5000,'Raw Data'!$D$4:$D$5000,\"*** Mnemonic not found ***\",0)","v":"*** Mnemonic not found ***"},"SUCMNONPROPORRSK_LAM_AAH_",null,"Input",null,null,550,"G","Input!G550",{"$f":"_xlfn.XLOOKUP(F1547,'Raw Data'!$I$4:$I$5000,'Raw Data'!$E$4:$E$5000,100,0)","v":100},{"$f":"IF(N1547=0,_xlfn.XLOOKUP(F1547,'Raw Data'!$I$4:$I$5000,'Raw Data'!$H$4:$H$5000,\"\",0),\"\")","v":""},{"$f":"IF(INDIRECT(M1547) = \"\",\"\",INDIRECT(M1547))","v":""},"n"]
["SUCMNONPROPORRSK_LAM","HMEDEX","Health & medical exp",null,{"$f":"_xlfn.XLOOKUP(F1548,'Raw Data'!$I$4:$I$5000,'Raw Data'!$D$4:$D$5000,\"*** Mnemonic not found ***\",0)","v":"*** Mnemonic not found ***"},"SUCMNONPROPORRSK_LAM_HMEDEX_",null,"Input",null,null,551,"G","Input!G551",{"$f":"_xlfn.XLOOKUP(F1548,'Raw Data'!$I$4:$I$5000,'Raw Data'!$E$4:$E$5000,100,0)","v":100},{"$f":"IF(N1548=0,_xlfn.XLOOKUP(F1548,'Raw Data'!$I$4:$I$5000,'Raw Data'!$H$4:$H$5000,\"\",0),\"\")","v":""},{"$f":"IF(INDIRECT(M1548) = \"\",\"\",INDIRECT(M1548))","v":""},"n"]
["SUCMNONPROPORRSK_LAM","MAVA","Marine, Aviation - all inclusive",null,{"$f":"_xlfn.XLOOKUP(F1549,'Raw Data'!$I$4:$I$5000,'Raw Data'!$D$4:$D$5000,\"*** Mnemonic not found ***\",0)","v":"*** Mnemonic not found ***"},"SUCMNONPROPORRSK_LAM_MAVA_",null,"Input",null,null,552,"G","Input!G552",{"$f":"_xlfn.XLOOKUP(F1549,'Raw Data'!$I$4:$I$5000,'Raw Data'!$E$4:$E$5000,100,0)","v":100},{"$f":"IF(N1549=0,_xlfn.XLOOKUP(F1549,'Raw Data'!$I$4:$I$5000,'Raw Data'!$H$4:$H$5000,\"\",0),\"\")","v":""},{"$f":"IF(INDIRECT(M1549) = \"\",\"\",INDIRECT(M1549))","v":""},"n"]
["SUCMNONPROPORRSK_LAM","MAVC","Marine, Aviation - cargo",null,{"$f":"_xlfn.XLOOKUP(F1550,'Raw Data'!$I$4:$I$5000,'Raw Data'!$D$4:$D$5000,\"*** Mnemonic not found ***\",0)","v":"*** Mnemonic not found ***"},"SUCMNONPROPORRSK_LAM_MAVC_",null,"Input",null,null,553,"G","Input!G553",{"$f":"_xlfn.XLOOKUP(F1550,'Raw Data'!$I$4:$I$5000,'Raw Data'!$E$4:$E$5000,100,0)","v":100},{"$f":"IF(N1550=0,_xlfn.XLOOKUP(F1550,'Raw Data'!$I$4:$I$5000,'Raw Data'!$H$4:$H$5000,\"\",0),\"\")","v":""},{"$f":"IF(INDIRECT(M1550) = \"\",\"\",INDIRECT(M1550))","v":""},"n"]
["SUCMNONPROPORRSK_LAM","MPIN","Marine protection & indemnity",null,{"$f":"_xlfn.XLOOKUP(F1551,'Raw Data'!$I$4:$I$5000,'Raw Data'!$D$4:$D$5000,\"*** Mnemonic not found ***\",0)","v":"*** Mnemonic not found ***"},"SUCMNONPROPORRSK_LAM_MPIN_",null,"Input",null,null,554,"G",{"$f":"CONCATENATE(H1551,\"!\",L1551,K1551)","v":"Input!G554"},{"$f":"_xlfn.XLOOKUP(F1551,'Raw Data'!$I$4:$I$5000,'Raw Data'!$E$4:$E$5000,100,0)","v":100},{"$f":"IF(N1551=0,_xlfn.XLOOKUP(F1551,'Raw Data'!$I$4:$I$5000,'Raw Data'!$H$4:$H$5000,\"\",0),\"\")","v":""},{"$f":"IF(INDIRECT(M1551) = \"\",\"\",INDIRECT(M1551))","v":""},"n"]
["SUCMNONPROPORRSK_LAM","TRV","Travel",null,{"$f":"_xlfn.XLOOKUP(F1552,'Raw Data'!$I$4:$I$5000,'Raw Data'!$D$4:$D$5000,\"*** Mnemonic not found ***\",0)","v":"*** Mnemonic not found ***"},"SUCMNONPROPORRSK_LAM_TRV_",null,"Input",null,null,555,"G","Input!G555",{"$f":"_xlfn.XLOOKUP(F1552,'Raw Data'!$I$4:$I$5000,'Raw Data'!$E$4:$E$5000,100,0)","v":100},{"$f":"IF(N1552=0,_xlfn.XLOOKUP(F1552,'Raw Data'!$I$4:$I$5000,'Raw Data'!$H$4:$H$5000,\"\",0),\"\")","v":""},{"$f":"IF(INDIRECT(M1552) = \"\",\"\",INDIRECT(M1552))","v":""},"n"]
["SUCMNONPROPORRSK_LAM","WAR","Warranty",null,{"$f":"_xlfn.XLOOKUP(F1553,'Raw Data'!$I$4:$I$5000,'Raw Data'!$D$4:$D$5000,\"*** Mnemonic not found ***\",0)","v":"*** Mnemonic not found ***"},"SUCMNONPROPORRSK_LAM_WAR_",null,"Input",null,null,556,"G","Input!G556",{"$f":"_xlfn.XLOOKUP(F1553,'Raw Data'!$I$4:$I$5000,'Raw Data'!$E$4:$E$5000,100,0)","v":100},{"$f":"IF(N1553=0,_xlfn.XLOOKUP(F1553,'Raw Data'!$I$4:$I$5000,'Raw Data'!$H$4:$H$5000,\"\",0),\"\")","v":""},{"$f":"IF(INDIRECT(M1553) = \"\",\"\",INDIRECT(M1553))","v":""},"n"]
["SUCMNONPROPORRSK_LAM","OCAH","Other",null,{"$f":"_xlfn.XLOOKUP(F1554,'Raw Data'!$I$4:$I$5000,'Raw Data'!$D$4:$D$5000,\"*** Mnemonic not found ***\",0)","v":"*** Mnemonic not found ***"},"SUCMNONPROPORRSK_LAM_OCAH_",null,"Input",null,null,557,"G","Input!G557",{"$f":"_xlfn.XLOOKUP(F1554,'Raw Data'!$I$4:$I$5000,'Raw Data'!$E$4:$E$5000,100,0)","v":100},{"$f":"IF(N1554=0,_xlfn.XLOOKUP(F1554,'Raw Data'!$I$4:$I$5000,'Raw Data'!$H$4:$H$5000,\"\",0),\"\")","v":""},{"$f":"IF(INDIRECT(M1554) = \"\",\"\",INDIRECT(M1554))","v":""},"n"]
["SUCMPRRSKTOT",null,null,null,{"$f":"_xlfn.XLOOKUP(F1555,'Raw Data'!$I$4:$I$5000,'Raw Data'!$D$4:$D$5000,\"*** Mnemonic not found ***\",0)","v":"*** Mnemonic not found ***"},"SUCMPRRSKTOT__",null,"Input",null,null,{"$f":"K1554+11","v":568},"F","Input!F568",{"$f":"_xlfn.XLOOKUP(F1555,'Raw Data'!$I$4:$I$5000,'Raw Data'!$E$4:$E$5000,100,0)","v":100},{"$f":"IF(N1555=0,_xlfn.XLOOKUP(F1555,'Raw Data'!$I$4:$I$5000,'Raw Data'!$H$4:$H$5000,\"\",0),\"\")","v":""},{"$f":"IF(INDIRECT(M1555) = \"\",\"\",INDIRECT(M1555))","v":""},"n"]
["SUCMPRNATCAT",null,null,null,{"$f":"_xlfn.XLOOKUP(F1556,'Raw Data'!$I$4:$I$5000,'Raw Data'!$D$4:$D$5000,\"*** Mnemonic not found ***\",0)","v":"*** Mnemonic not found ***"},"SUCMPRNATCAT__",null,"Input",null,null,{"$f":"K1555","v":568},"K","Input!K568",{"$f":"_xlfn.XLOOKUP(F1556,'Raw Data'!$I$4:$I$5000,'Raw Data'!$E$4:$E$5000,100,0)","v":100},{"$f":"IF(N1556=0,_xlfn.XLOOKUP(F1556,'Raw Data'!$I$4:$I$5000,'Raw Data'!$H$4:$H$5000,\"\",0),\"\")","v":""},{"$f":"IF(INDIRECT(M1556) = \"\",\"\",INDIRECT(M1556))","v":"No"},"c"]
["SUCMPROPORESRSK_EMEA","LIA","General liability",null,{"$f":"_xlfn.XLOOKUP(F1557,'Raw Data'!$I$4:$I$5000,'Raw Data'!$D$4:$D$5000,\"*** Mnemonic not found ***\",0)","v":"*** Mnemonic not found ***"},"SUCMPROPORESRSK_EMEA_LIA_","Non-life reserve - EMEA","Input",{"$f":"ROW(section_non_life_resv)","v":571},4,{"$f":"I1557+J1557","v":575},"F","Input!F575",{"$f":"_xlfn.XLOOKUP(F1557,'Raw Data'!$I$4:$I$5000,'Raw Data'!$E$4:$E$5000,100,0)","v":100},{"$f":"IF(N1557=0,_xlfn.XLOOKUP(F1557,'Raw Data'!$I$4:$I$5000,'Raw Data'!$H$4:$H$5000,\"\",0),\"\")","v":""},{"$f":"IF(INDIRECT(M1557) = \"\",\"\",INDIRECT(M1557))","v":""},"n"]
["SUCMPROPORESRSK_EMEA","WCP","Workers compensation",null,{"$f":"_xlfn.XLOOKUP(F1558,'Raw Data'!$I$4:$I$5000,'Raw Data'!$D$4:$D$5000,\"*** Mnemonic not found ***\",0)","v":"*** Mnemonic not found ***"},"SUCMPROPORESRSK_EMEA_WCP_",null,"Input",null,null,{"$f":"K1557+1","v":576},{"$f":"L1557","v":"F"},"Input!F576",{"$f":"_xlfn.XLOOKUP(F1558,'Raw Data'!$I$4:$I$5000,'Raw Data'!$E$4:$E$5000,100,0)","v":100},{"$f":"IF(N1558=0,_xlfn.XLOOKUP(F1558,'Raw Data'!$I$4:$I$5000,'Raw Data'!$H$4:$H$5000,\"\",0),\"\")","v":""},{"$f":"IF(INDIRECT(M1558) = \"\",\"\",INDIRECT(M1558))","v":""},"n"]
["SUCMPROPORESRSK_EMEA","FIR","Fire & other damage to property",null,{"$f":"_xlfn.XLOOKUP(F1559,'Raw Data'!$I$4:$I$5000,'Raw Data'!$D$4:$D$5000,\"*** Mnemonic not found ***\",0)","v":"*** Mnemonic not found ***"},"SUCMPROPORESRSK_EMEA_FIR_",null,"Input",null,null,{"$f":"K1558+1","v":577},{"$f":"L1558","v":"F"},"Input!F577",{"$f":"_xlfn.XLOOKUP(F1559,'Raw Data'!$I$4:$I$5000,'Raw Data'!$E$4:$E$5000,100,0)","v":100},{"$f":"IF(N1559=0,_xlfn.XLOOKUP(F1559,'Raw Data'!$I$4:$I$5000,'Raw Data'!$H$4:$H$5000,\"\",0),\"\")","v":""},{"$f":"IF(INDIRECT(M1559) = \"\",\"\",INDIRECT(M1559))","v":""},"n"]
["SUCMPROPORESRSK_EMEA","ALB","Motor vehicle liability",null,{"$f":"_xlfn.XLOOKUP(F1560,'Raw Data'!$I$4:$I$5000,'Raw Data'!$D$4:$D$5000,\"*** Mnemonic not found ***\",0)","v":"*** Mnemonic not found ***"},"SUCMPROPORESRSK_EMEA_ALB_",null,"Input",null,null,578,"F","Input!F578",{"$f":"_xlfn.XLOOKUP(F1560,'Raw Data'!$I$4:$I$5000,'Raw Data'!$E$4:$E$5000,100,0)","v":100},{"$f":"IF(N1560=0,_xlfn.XLOOKUP(F1560,'Raw Data'!$I$4:$I$5000,'Raw Data'!$H$4:$H$5000,\"\",0),\"\")","v":""},{"$f":"IF(INDIRECT(M1560) = \"\",\"\",INDIRECT(M1560))","v":""},"n"]
["SUCMPROPORESRSK_EMEA","OTHM","Other motor",null,{"$f":"_xlfn.XLOOKUP(F1561,'Raw Data'!$I$4:$I$5000,'Raw Data'!$D$4:$D$5000,\"*** Mnemonic not found ***\",0)","v":"*** Mnemonic not found ***"},"SUCMPROPORESRSK_EMEA_OTHM_",null,"Input",null,null,579,"F","Input!F579",{"$f":"_xlfn.XLOOKUP(F1561,'Raw Data'!$I$4:$I$5000,'Raw Data'!$E$4:$E$5000,100,0)","v":100},{"$f":"IF(N1561=0,_xlfn.XLOOKUP(F1561,'Raw Data'!$I$4:$I$5000,'Raw Data'!$H$4:$H$5000,\"\",0),\"\")","v":""},{"$f":"IF(INDIRECT(M1561) = \"\",\"\",INDIRECT(M1561))","v":""},"n"]
["SUCMPROPORESRSK_EMEA","CRDS","Credit & suretyship",null,{"$f":"_xlfn.XLOOKUP(F1562,'Raw Data'!$I$4:$I$5000,'Raw Data'!$D$4:$D$5000,\"*** Mnemonic not found ***\",0)","v":"*** Mnemonic not found ***"},"SUCMPROPORESRSK_EMEA_CRDS_",null,"Input",null,null,580,"F","Input!F580",{"$f":"_xlfn.XLOOKUP(F1562,'Raw Data'!$I$4:$I$5000,'Raw Data'!$E$4:$E$5000,100,0)","v":100},{"$f":"IF(N1562=0,_xlfn.XLOOKUP(F1562,'Raw Data'!$I$4:$I$5000,'Raw Data'!$H$4:$H$5000,\"\",0),\"\")","v":""},{"$f":"IF(INDIRECT(M1562) = \"\",\"\",INDIRECT(M1562))","v":""},"n"]
["SUCMPROPORESRSK_EMEA","MSFL","Miscellaneous financial loss",null,{"$f":"_xlfn.XLOOKUP(F1563,'Raw Data'!$I$4:$I$5000,'Raw Data'!$D$4:$D$5000,\"*** Mnemonic not found ***\",0)","v":"*** Mnemonic not found ***"},"SUCMPROPORESRSK_EMEA_MSFL_",null,"Input",null,null,581,"F","Input!F581",{"$f":"_xlfn.XLOOKUP(F1563,'Raw Data'!$I$4:$I$5000,'Raw Data'!$E$4:$E$5000,100,0)","v":100},{"$f":"IF(N1563=0,_xlfn.XLOOKUP(F1563,'Raw Data'!$I$4:$I$5000,'Raw Data'!$H$4:$H$5000,\"\",0),\"\")","v":""},{"$f":"IF(INDIRECT(M1563) = \"\",\"\",INDIRECT(M1563))","v":""},"n"]
["SUCMPROPORESRSK_EMEA","HMEI","Health & medical expense insurance",null,{"$f":"_xlfn.XLOOKUP(F1564,'Raw Data'!$I$4:$I$5000,'Raw Data'!$D$4:$D$5000,\"*** Mnemonic not found ***\",0)","v":"*** Mnemonic not found ***"},"SUCMPROPORESRSK_EMEA_HMEI_",null,"Input",null,null,582,"F","Input!F582",{"$f":"_xlfn.XLOOKUP(F1564,'Raw Data'!$I$4:$I$5000,'Raw Data'!$E$4:$E$5000,100,0)","v":100},{"$f":"IF(N1564=0,_xlfn.XLOOKUP(F1564,'Raw Data'!$I$4:$I$5000,'Raw Data'!$H$4:$H$5000,\"\",0),\"\")","v":""},{"$f":"IF(INDIRECT(M1564) = \"\",\"\",INDIRECT(M1564))","v":""},"n"]
["SUCMPROPORESRSK_EMEA","MAVT","Marine, aviation, and transport",null,{"$f":"_xlfn.XLOOKUP(F1565,'Raw Data'!$I$4:$I$5000,'Raw Data'!$D$4:$D$5000,\"*** Mnemonic not found ***\",0)","v":"*** Mnemonic not found ***"},"SUCMPROPORESRSK_EMEA_MAVT_",null,"Input",null,null,583,"F","Input!F583",{"$f":"_xlfn.XLOOKUP(F1565,'Raw Data'!$I$4:$I$5000,'Raw Data'!$E$4:$E$5000,100,0)","v":100},{"$f":"IF(N1565=0,_xlfn.XLOOKUP(F1565,'Raw Data'!$I$4:$I$5000,'Raw Data'!$H$4:$H$5000,\"\",0),\"\")","v":""},{"$f":"IF(INDIRECT(M1565) = \"\",\"\",INDIRECT(M1565))","v":""},"n"]
["SUCMPROPORESRSK_EMEA","MPIN","Marine protection & indemnity",null,{"$f":"_xlfn.XLOOKUP(F1566,'Raw Data'!$I$4:$I$5000,'Raw Data'!$D$4:$D$5000,\"*** Mnemonic not found ***\",0)","v":"*** Mnemonic not found ***"},"SUCMPROPORESRSK_EMEA_MPIN_",null,"Input",null,null,584,"F",{"$f":"CONCATENATE(H1566,\"!\",L1566,K1566)","v":"Input!F584"},{"$f":"_xlfn.XLOOKUP(F1566,'Raw Data'!$I$4:$I$5000,'Raw Data'!$E$4:$E$5000,100,0)","v":100},{"$f":"IF(N1566=0,_xlfn.XLOOKUP(F1566,'Raw Data'!$I$4:$I$5000,'Raw Data'!$H$4:$H$5000,\"\",0),\"\")","v":""},{"$f":"IF(INDIRECT(M1566) = \"\",\"\",INDIRECT(M1566))","v":""},"n"]
["SUCMPROPORESRSK_EMEA","ASST","Assistance",null,{"$f":"_xlfn.XLOOKUP(F1567,'Raw Data'!$I$4:$I$5000,'Raw Data'!$D$4:$D$5000,\"*** Mnemonic not found ***\",0)","v":"*** Mnemonic not found ***"},"SUCMPROPORESRSK_EMEA_ASST_",null,"Input",null,null,585,"F","Input!F585",{"$f":"_xlfn.XLOOKUP(F1567,'Raw Data'!$I$4:$I$5000,'Raw Data'!$E$4:$E$5000,100,0)","v":100},{"$f":"IF(N1567=0,_xlfn.XLOOKUP(F1567,'Raw Data'!$I$4:$I$5000,'Raw Data'!$H$4:$H$5000,\"\",0),\"\")","v":""},{"$f":"IF(INDIRECT(M1567) = \"\",\"\",INDIRECT(M1567))","v":""},"n"]
["SUCMPROPORESRSK_EMEA","INPR","Income protection",null,{"$f":"_xlfn.XLOOKUP(F1568,'Raw Data'!$I$4:$I$5000,'Raw Data'!$D$4:$D$5000,\"*** Mnemonic not found ***\",0)","v":"*** Mnemonic not found ***"},"SUCMPROPORESRSK_EMEA_INPR_",null,"Input",null,null,586,"F","Input!F586",{"$f":"_xlfn.XLOOKUP(F1568,'Raw Data'!$I$4:$I$5000,'Raw Data'!$E$4:$E$5000,100,0)","v":100},{"$f":"IF(N1568=0,_xlfn.XLOOKUP(F1568,'Raw Data'!$I$4:$I$5000,'Raw Data'!$H$4:$H$5000,\"\",0),\"\")","v":""},{"$f":"IF(INDIRECT(M1568) = \"\",\"\",INDIRECT(M1568))","v":""},"n"]
["SUCMPROPORESRSK_EMEA","LEGEX","Legal expense",null,{"$f":"_xlfn.XLOOKUP(F1569,'Raw Data'!$I$4:$I$5000,'Raw Data'!$D$4:$D$5000,\"*** Mnemonic not found ***\",0)","v":"*** Mnemonic not found ***"},"SUCMPROPORESRSK_EMEA_LEGEX_",null,"Input",null,null,587,"F","Input!F587",{"$f":"_xlfn.XLOOKUP(F1569,'Raw Data'!$I$4:$I$5000,'Raw Data'!$E$4:$E$5000,100,0)","v":100},{"$f":"IF(N1569=0,_xlfn.XLOOKUP(F1569,'Raw Data'!$I$4:$I$5000,'Raw Data'!$H$4:$H$5000,\"\",0),\"\")","v":""},{"$f":"IF(INDIRECT(M1569) = \"\",\"\",INDIRECT(M1569))","v":""},"n"]
["SUCMPROPORESRSK_EMEA","OCAH","Other",null,{"$f":"_xlfn.XLOOKUP(F1570,'Raw Data'!$I$4:$I$5000,'Raw Data'!$D$4:$D$5000,\"*** Mnemonic not found ***\",0)","v":"*** Mnemonic not found ***"},"SUCMPROPORESRSK_EMEA_OCAH_",null,"Input",null,null,588,"F","Input!F588",{"$f":"_xlfn.XLOOKUP(F1570,'Raw Data'!$I$4:$I$5000,'Raw Data'!$E$4:$E$5000,100,0)","v":100},{"$f":"IF(N1570=0,_xlfn.XLOOKUP(F1570,'Raw Data'!$I$4:$I$5000,'Raw Data'!$H$4:$H$5000,\"\",0),\"\")","v":""},{"$f":"IF(INDIRECT(M1570) = \"\",\"\",INDIRECT(M1570))","v":""},"n"]
["SUCMNOPROPORESRSK_EMEA","LIA","General liability",null,{"$f":"_xlfn.XLOOKUP(F1571,'Raw Data'!$I$4:$I$5000,'Raw Data'!$D$4:$D$5000,\"*** Mnemonic not found ***\",0)","v":"*** Mnemonic not found ***"},"SUCMNOPROPORESRSK_EMEA_LIA_",null,"Input",{"$f":"ROW(section_non_life_resv)","v":571},{"$f":"J1557","v":4},{"$f":"I1571+J1571","v":575},"G","Input!G575",{"$f":"_xlfn.XLOOKUP(F1571,'Raw Data'!$I$4:$I$5000,'Raw Data'!$E$4:$E$5000,100,0)","v":100},{"$f":"IF(N1571=0,_xlfn.XLOOKUP(F1571,'Raw Data'!$I$4:$I$5000,'Raw Data'!$H$4:$H$5000,\"\",0),\"\")","v":""},{"$f":"IF(INDIRECT(M1571) = \"\",\"\",INDIRECT(M1571))","v":""},"n"]
["SUCMNOPROPORESRSK_EMEA","WCP","Workers compensation",null,{"$f":"_xlfn.XLOOKUP(F1572,'Raw Data'!$I$4:$I$5000,'Raw Data'!$D$4:$D$5000,\"*** Mnemonic not found ***\",0)","v":"*** Mnemonic not found ***"},"SUCMNOPROPORESRSK_EMEA_WCP_",null,"Input",null,null,{"$f":"K1571+1","v":576},{"$f":"L1571","v":"G"},"Input!G576",{"$f":"_xlfn.XLOOKUP(F1572,'Raw Data'!$I$4:$I$5000,'Raw Data'!$E$4:$E$5000,100,0)","v":100},{"$f":"IF(N1572=0,_xlfn.XLOOKUP(F1572,'Raw Data'!$I$4:$I$5000,'Raw Data'!$H$4:$H$5000,\"\",0),\"\")","v":""},{"$f":"IF(INDIRECT(M1572) = \"\",\"\",INDIRECT(M1572))","v":""},"n"]
["SUCMNOPROPORESRSK_EMEA","FIR","Fire & other damage to property",null,{"$f":"_xlfn.XLOOKUP(F1573,'Raw Data'!$I$4:$I$5000,'Raw Data'!$D$4:$D$5000,\"*** Mnemonic not found ***\",0)","v":"*** Mnemonic not found ***"},"SUCMNOPROPORESRSK_EMEA_FIR_",null,"Input",null,null,{"$f":"K1572+1","v":577},{"$f":"L1572","v":"G"},"Input!G577",{"$f":"_xlfn.XLOOKUP(F1573,'Raw Data'!$I$4:$I$5000,'Raw Data'!$E$4:$E$5000,100,0)","v":100},{"$f":"IF(N1573=0,_xlfn.XLOOKUP(F1573,'Raw Data'!$I$4:$I$5000,'Raw Data'!$H$4:$H$5000,\"\",0),\"\")","v":""},{"$f":"IF(INDIRECT(M1573) = \"\",\"\",INDIRECT(M1573))","v":""},"n"]
["SUCMNOPROPORESRSK_EMEA","ALB","Motor vehicle liability",null,{"$f":"_xlfn.XLOOKUP(F1574,'Raw Data'!$I$4:$I$5000,'Raw Data'!$D$4:$D$5000,\"*** Mnemonic not found ***\",0)","v":"*** Mnemonic not found ***"},"SUCMNOPROPORESRSK_EMEA_ALB_",null,"Input",null,null,578,"G","Input!G578",{"$f":"_xlfn.XLOOKUP(F1574,'Raw Data'!$I$4:$I$5000,'Raw Data'!$E$4:$E$5000,100,0)","v":100},{"$f":"IF(N1574=0,_xlfn.XLOOKUP(F1574,'Raw Data'!$I$4:$I$5000,'Raw Data'!$H$4:$H$5000,\"\",0),\"\")","v":""},{"$f":"IF(INDIRECT(M1574) = \"\",\"\",INDIRECT(M1574))","v":""},"n"]
["SUCMNOPROPORESRSK_EMEA","OTHM","Other motor",null,{"$f":"_xlfn.XLOOKUP(F1575,'Raw Data'!$I$4:$I$5000,'Raw Data'!$D$4:$D$5000,\"*** Mnemonic not found ***\",0)","v":"*** Mnemonic not found ***"},"SUCMNOPROPORESRSK_EMEA_OTHM_",null,"Input",null,null,579,"G","Input!G579",{"$f":"_xlfn.XLOOKUP(F1575,'Raw Data'!$I$4:$I$5000,'Raw Data'!$E$4:$E$5000,100,0)","v":100},{"$f":"IF(N1575=0,_xlfn.XLOOKUP(F1575,'Raw Data'!$I$4:$I$5000,'Raw Data'!$H$4:$H$5000,\"\",0),\"\")","v":""},{"$f":"IF(INDIRECT(M1575) = \"\",\"\",INDIRECT(M1575))","v":""},"n"]
["SUCMNOPROPORESRSK_EMEA","CRDS","Credit & suretyship",null,{"$f":"_xlfn.XLOOKUP(F1576,'Raw Data'!$I$4:$I$5000,'Raw Data'!$D$4:$D$5000,\"*** Mnemonic not found ***\",0)","v":"*** Mnemonic not found ***"},"SUCMNOPROPORESRSK_EMEA_CRDS_",null,"Input",null,null,580,"G","Input!G580",{"$f":"_xlfn.XLOOKUP(F1576,'Raw Data'!$I$4:$I$5000,'Raw Data'!$E$4:$E$5000,100,0)","v":100},{"$f":"IF(N1576=0,_xlfn.XLOOKUP(F1576,'Raw Data'!$I$4:$I$5000,'Raw Data'!$H$4:$H$5000,\"\",0),\"\")","v":""},{"$f":"IF(INDIRECT(M1576) = \"\",\"\",INDIRECT(M1576))","v":""},"n"]
["SUCMNOPROPORESRSK_EMEA","MSFL","Miscellaneous financial loss",null,{"$f":"_xlfn.XLOOKUP(F1577,'Raw Data'!$I$4:$I$5000,'Raw Data'!$D$4:$D$5000,\"*** Mnemonic not found ***\",0)","v":"*** Mnemonic not found ***"},"SUCMNOPROPORESRSK_EMEA_MSFL_",null,"Input",null,null,581,"G","Input!G581",{"$f":"_xlfn.XLOOKUP(F1577,'Raw Data'!$I$4:$I$5000,'Raw Data'!$E$4:$E$5000,100,0)","v":100},{"$f":"IF(N1577=0,_xlfn.XLOOKUP(F1577,'Raw Data'!$I$4:$I$5000,'Raw Data'!$H$4:$H$5000,\"\",0),\"\")","v":""},{"$f":"IF(INDIRECT(M1577) = \"\",\"\",INDIRECT(M1577))","v":""},"n"]
["SUCMNOPROPORESRSK_EMEA","HMEI","Health & medical expense insurance",null,{"$f":"_xlfn.XLOOKUP(F1578,'Raw Data'!$I$4:$I$5000,'Raw Data'!$D$4:$D$5000,\"*** Mnemonic not found ***\",0)","v":"*** Mnemonic not found ***"},"SUCMNOPROPORESRSK_EMEA_HMEI_",null,"Input",null,null,582,"G","Input!G582",{"$f":"_xlfn.XLOOKUP(F1578,'Raw Data'!$I$4:$I$5000,'Raw Data'!$E$4:$E$5000,100,0)","v":100},{"$f":"IF(N1578=0,_xlfn.XLOOKUP(F1578,'Raw Data'!$I$4:$I$5000,'Raw Data'!$H$4:$H$5000,\"\",0),\"\")","v":""},{"$f":"IF(INDIRECT(M1578) = \"\",\"\",INDIRECT(M1578))","v":""},"n"]
["SUCMNOPROPORESRSK_EMEA","MAVT","Marine, aviation, and transport",null,{"$f":"_xlfn.XLOOKUP(F1579,'Raw Data'!$I$4:$I$5000,'Raw Data'!$D$4:$D$5000,\"*** Mnemonic not found ***\",0)","v":"*** Mnemonic not found ***"},"SUCMNOPROPORESRSK_EMEA_MAVT_",null,"Input",null,null,583,"G","Input!G583",{"$f":"_xlfn.XLOOKUP(F1579,'Raw Data'!$I$4:$I$5000,'Raw Data'!$E$4:$E$5000,100,0)","v":100},{"$f":"IF(N1579=0,_xlfn.XLOOKUP(F1579,'Raw Data'!$I$4:$I$5000,'Raw Data'!$H$4:$H$5000,\"\",0),\"\")","v":""},{"$f":"IF(INDIRECT(M1579) = \"\",\"\",INDIRECT(M1579))","v":""},"n"]
["SUCMNOPROPORESRSK_EMEA","MPIN","Marine protection & indemnity",null,{"$f":"_xlfn.XLOOKUP(F1580,'Raw Data'!$I$4:$I$5000,'Raw Data'!$D$4:$D$5000,\"*** Mnemonic not found ***\",0)","v":"*** Mnemonic not found ***"},"SUCMNOPROPORESRSK_EMEA_MPIN_",null,"Input",null,null,584,"G",{"$f":"CONCATENATE(H1580,\"!\",L1580,K1580)","v":"Input!G584"},{"$f":"_xlfn.XLOOKUP(F1580,'Raw Data'!$I$4:$I$5000,'Raw Data'!$E$4:$E$5000,100,0)","v":100},{"$f":"IF(N1580=0,_xlfn.XLOOKUP(F1580,'Raw Data'!$I$4:$I$5000,'Raw Data'!$H$4:$H$5000,\"\",0),\"\")","v":""},{"$f":"IF(INDIRECT(M1580) = \"\",\"\",INDIRECT(M1580))","v":""},"n"]
["SUCMNOPROPORESRSK_EMEA","ASST","Assistance",null,{"$f":"_xlfn.XLOOKUP(F1581,'Raw Data'!$I$4:$I$5000,'Raw Data'!$D$4:$D$5000,\"*** Mnemonic not found ***\",0)","v":"*** Mnemonic not found ***"},"SUCMNOPROPORESRSK_EMEA_ASST_",null,"Input",null,null,585,"G","Input!G585",{"$f":"_xlfn.XLOOKUP(F1581,'Raw Data'!$I$4:$I$5000,'Raw Data'!$E$4:$E$5000,100,0)","v":100},{"$f":"IF(N1581=0,_xlfn.XLOOKUP(F1581,'Raw Data'!$I$4:$I$5000,'Raw Data'!$H$4:$H$5000,\"\",0),\"\")","v":""},{"$f":"IF(INDIRECT(M1581) = \"\",\"\",INDIRECT(M1581))","v":""},"n"]
["SUCMNOPROPORESRSK_EMEA","INPR","Income protection",null,{"$f":"_xlfn.XLOOKUP(F1582,'Raw Data'!$I$4:$I$5000,'Raw Data'!$D$4:$D$5000,\"*** Mnemonic not found ***\",0)","v":"*** Mnemonic not found ***"},"SUCMNOPROPORESRSK_EMEA_INPR_",null,"Input",null,null,586,"G","Input!G586",{"$f":"_xlfn.XLOOKUP(F1582,'Raw Data'!$I$4:$I$5000,'Raw Data'!$E$4:$E$5000,100,0)","v":100},{"$f":"IF(N1582=0,_xlfn.XLOOKUP(F1582,'Raw Data'!$I$4:$I$5000,'Raw Data'!$H$4:$H$5000,\"\",0),\"\")","v":""},{"$f":"IF(INDIRECT(M1582) = \"\",\"\",INDIRECT(M1582))","v":""},"n"]
["SUCMNOPROPORESRSK_EMEA","LEGEX","Legal expense",null,{"$f":"_xlfn.XLOOKUP(F1583,'Raw Data'!$I$4:$I$5000,'Raw Data'!$D$4:$D$5000,\"*** Mnemonic not found ***\",0)","v":"*** Mnemonic not found ***"},"SUCMNOPROPORESRSK_EMEA_LEGEX_",null,"Input",null,null,587,"G","Input!G587",{"$f":"_xlfn.XLOOKUP(F1583,'Raw Data'!$I$4:$I$5000,'Raw Data'!$E$4:$E$5000,100,0)","v":100},{"$f":"IF(N1583=0,_xlfn.XLOOKUP(F1583,'Raw Data'!$I$4:$I$5000,'Raw Data'!$H$4:$H$5000,\"\",0),\"\")","v":""},{"$f":"IF(INDIRECT(M1583) = \"\",\"\",INDIRECT(M1583))","v":""},"n"]
["SUCMNOPROPORESRSK_EMEA","OCAH","Other",null,{"$f":"_xlfn.XLOOKUP(F1584,'Raw Data'!$I$4:$I$5000,'Raw Data'!$D$4:$D$5000,\"*** Mnemonic not found ***\",0)","v":"*** Mnemonic not found ***"},"SUCMNOPROPORESRSK_EMEA_OCAH_",null,"Input",null,null,588,"G","Input!G588",{"$f":"_xlfn.XLOOKUP(F1584,'Raw Data'!$I$4:$I$5000,'Raw Data'!$E$4:$E$5000,100,0)","v":100},{"$f":"IF(N1584=0,_xlfn.XLOOKUP(F1584,'Raw Data'!$I$4:$I$5000,'Raw Data'!$H$4:$H$5000,\"\",0),\"\")","v":""},{"$f":"IF(INDIRECT(M1584) = \"\",\"\",INDIRECT(M1584))","v":""},"n"]
["SUCMPROPORESRSK_US","MEC","Medical malpractice - claims made",null,{"$f":"_xlfn.XLOOKUP(F1585,'Raw Data'!$I$4:$I$5000,'Raw Data'!$D$4:$D$5000,\"*** Mnemonic not found ***\",0)","v":"*** Mnemonic not found ***"},"SUCMPROPORESRSK_US_MEC_","Non-life reserve - US","Input",{"$f":"ROW(section_non_life_resv)","v":571},19,{"$f":"I1585+J1585","v":590},"F","Input!F590",{"$f":"_xlfn.XLOOKUP(F1585,'Raw Data'!$I$4:$I$5000,'Raw Data'!$E$4:$E$5000,100,0)","v":100},{"$f":"IF(N1585=0,_xlfn.XLOOKUP(F1585,'Raw Data'!$I$4:$I$5000,'Raw Data'!$H$4:$H$5000,\"\",0),\"\")","v":""},{"$f":"IF(INDIRECT(M1585) = \"\",\"\",INDIRECT(M1585))","v":""},"n"]
["SUCMPROPORESRSK_US","MEO","Medical malpractice - occurrence",null,{"$f":"_xlfn.XLOOKUP(F1586,'Raw Data'!$I$4:$I$5000,'Raw Data'!$D$4:$D$5000,\"*** Mnemonic not found ***\",0)","v":"*** Mnemonic not found ***"},"SUCMPROPORESRSK_US_MEO_",null,"Input",null,null,{"$f":"K1585+1","v":591},{"$f":"L1585","v":"F"},"Input!F591",{"$f":"_xlfn.XLOOKUP(F1586,'Raw Data'!$I$4:$I$5000,'Raw Data'!$E$4:$E$5000,100,0)","v":100},{"$f":"IF(N1586=0,_xlfn.XLOOKUP(F1586,'Raw Data'!$I$4:$I$5000,'Raw Data'!$H$4:$H$5000,\"\",0),\"\")","v":""},{"$f":"IF(INDIRECT(M1586) = \"\",\"\",INDIRECT(M1586))","v":""},"n"]
["SUCMPROPORESRSK_US","OLC","Other liability - claims made",null,{"$f":"_xlfn.XLOOKUP(F1587,'Raw Data'!$I$4:$I$5000,'Raw Data'!$D$4:$D$5000,\"*** Mnemonic not found ***\",0)","v":"*** Mnemonic not found ***"},"SUCMPROPORESRSK_US_OLC_",null,"Input",null,null,{"$f":"K1586+1","v":592},{"$f":"L1586","v":"F"},"Input!F592",{"$f":"_xlfn.XLOOKUP(F1587,'Raw Data'!$I$4:$I$5000,'Raw Data'!$E$4:$E$5000,100,0)","v":100},{"$f":"IF(N1587=0,_xlfn.XLOOKUP(F1587,'Raw Data'!$I$4:$I$5000,'Raw Data'!$H$4:$H$5000,\"\",0),\"\")","v":""},{"$f":"IF(INDIRECT(M1587) = \"\",\"\",INDIRECT(M1587))","v":""},"n"]
["SUCMPROPORESRSK_US","OLO","Other liability - occurrence",null,{"$f":"_xlfn.XLOOKUP(F1588,'Raw Data'!$I$4:$I$5000,'Raw Data'!$D$4:$D$5000,\"*** Mnemonic not found ***\",0)","v":"*** Mnemonic not found ***"},"SUCMPROPORESRSK_US_OLO_",null,"Input",null,null,593,"F","Input!F593",{"$f":"_xlfn.XLOOKUP(F1588,'Raw Data'!$I$4:$I$5000,'Raw Data'!$E$4:$E$5000,100,0)","v":100},{"$f":"IF(N1588=0,_xlfn.XLOOKUP(F1588,'Raw Data'!$I$4:$I$5000,'Raw Data'!$H$4:$H$5000,\"\",0),\"\")","v":""},{"$f":"IF(INDIRECT(M1588) = \"\",\"\",INDIRECT(M1588))","v":""},"n"]
["SUCMPROPORESRSK_US","PLC","Product liability - claims made",null,{"$f":"_xlfn.XLOOKUP(F1589,'Raw Data'!$I$4:$I$5000,'Raw Data'!$D$4:$D$5000,\"*** Mnemonic not found ***\",0)","v":"*** Mnemonic not found ***"},"SUCMPROPORESRSK_US_PLC_",null,"Input",null,null,594,"F","Input!F594",{"$f":"_xlfn.XLOOKUP(F1589,'Raw Data'!$I$4:$I$5000,'Raw Data'!$E$4:$E$5000,100,0)","v":100},{"$f":"IF(N1589=0,_xlfn.XLOOKUP(F1589,'Raw Data'!$I$4:$I$5000,'Raw Data'!$H$4:$H$5000,\"\",0),\"\")","v":""},{"$f":"IF(INDIRECT(M1589) = \"\",\"\",INDIRECT(M1589))","v":""},"n"]
["SUCMPROPORESRSK_US","PLO","Product liability - occurrence",null,{"$f":"_xlfn.XLOOKUP(F1590,'Raw Data'!$I$4:$I$5000,'Raw Data'!$D$4:$D$5000,\"*** Mnemonic not found ***\",0)","v":"*** Mnemonic not found ***"},"SUCMPROPORESRSK_US_PLO_",null,"Input",null,null,595,"F","Input!F595",{"$f":"_xlfn.XLOOKUP(F1590,'Raw Data'!$I$4:$I$5000,'Raw Data'!$E$4:$E$5000,100,0)","v":100},{"$f":"IF(N1590=0,_xlfn.XLOOKUP(F1590,'Raw Data'!$I$4:$I$5000,'Raw Data'!$H$4:$H$5000,\"\",0),\"\")","v":""},{"$f":"IF(INDIRECT(M1590) = \"\",\"\",INDIRECT(M1590))","v":""},"n"]
["SUCMPROPORESRSK_US","WCP","Workers compensation",null,{"$f":"_xlfn.XLOOKUP(F1591,'Raw Data'!$I$4:$I$5000,'Raw Data'!$D$4:$D$5000,\"*** Mnemonic not found ***\",0)","v":"*** Mnemonic not found ***"},"SUCMPROPORESRSK_US_WCP_",null,"Input",null,null,596,"F","Input!F596",{"$f":"_xlfn.XLOOKUP(F1591,'Raw Data'!$I$4:$I$5000,'Raw Data'!$E$4:$E$5000,100,0)","v":100},{"$f":"IF(N1591=0,_xlfn.XLOOKUP(F1591,'Raw Data'!$I$4:$I$5000,'Raw Data'!$H$4:$H$5000,\"\",0),\"\")","v":""},{"$f":"IF(INDIRECT(M1591) = \"\",\"\",INDIRECT(M1591))","v":""},"n"]
["SUCMPROPORESRSK_US","BLM","Boiler & machinery",null,{"$f":"_xlfn.XLOOKUP(F1592,'Raw Data'!$I$4:$I$5000,'Raw Data'!$D$4:$D$5000,\"*** Mnemonic not found ***\",0)","v":"*** Mnemonic not found ***"},"SUCMPROPORESRSK_US_BLM_",null,"Input",null,null,597,"F","Input!F597",{"$f":"_xlfn.XLOOKUP(F1592,'Raw Data'!$I$4:$I$5000,'Raw Data'!$E$4:$E$5000,100,0)","v":100},{"$f":"IF(N1592=0,_xlfn.XLOOKUP(F1592,'Raw Data'!$I$4:$I$5000,'Raw Data'!$H$4:$H$5000,\"\",0),\"\")","v":""},{"$f":"IF(INDIRECT(M1592) = \"\",\"\",INDIRECT(M1592))","v":""},"n"]
["SUCMPROPORESRSK_US","CMP","Commercial multi-peril",null,{"$f":"_xlfn.XLOOKUP(F1593,'Raw Data'!$I$4:$I$5000,'Raw Data'!$D$4:$D$5000,\"*** Mnemonic not found ***\",0)","v":"*** Mnemonic not found ***"},"SUCMPROPORESRSK_US_CMP_",null,"Input",null,null,598,"F","Input!F598",{"$f":"_xlfn.XLOOKUP(F1593,'Raw Data'!$I$4:$I$5000,'Raw Data'!$E$4:$E$5000,100,0)","v":100},{"$f":"IF(N1593=0,_xlfn.XLOOKUP(F1593,'Raw Data'!$I$4:$I$5000,'Raw Data'!$H$4:$H$5000,\"\",0),\"\")","v":""},{"$f":"IF(INDIRECT(M1593) = \"\",\"\",INDIRECT(M1593))","v":""},"n"]
["SUCMPROPORESRSK_US","HFM","Homeowner/Farmowner multi-peril",null,{"$f":"_xlfn.XLOOKUP(F1594,'Raw Data'!$I$4:$I$5000,'Raw Data'!$D$4:$D$5000,\"*** Mnemonic not found ***\",0)","v":"*** Mnemonic not found ***"},"SUCMPROPORESRSK_US_HFM_",null,"Input",null,null,599,"F","Input!F599",{"$f":"_xlfn.XLOOKUP(F1594,'Raw Data'!$I$4:$I$5000,'Raw Data'!$E$4:$E$5000,100,0)","v":100},{"$f":"IF(N1594=0,_xlfn.XLOOKUP(F1594,'Raw Data'!$I$4:$I$5000,'Raw Data'!$H$4:$H$5000,\"\",0),\"\")","v":""},{"$f":"IF(INDIRECT(M1594) = \"\",\"\",INDIRECT(M1594))","v":""},"n"]
["SUCMPROPORESRSK_US","SPP","Special property (fire, allied lines, inland marine, earthquake, burglary and theft)",null,{"$f":"_xlfn.XLOOKUP(F1595,'Raw Data'!$I$4:$I$5000,'Raw Data'!$D$4:$D$5000,\"*** Mnemonic not found ***\",0)","v":"*** Mnemonic not found ***"},"SUCMPROPORESRSK_US_SPP_",null,"Input",null,null,600,"F","Input!F600",{"$f":"_xlfn.XLOOKUP(F1595,'Raw Data'!$I$4:$I$5000,'Raw Data'!$E$4:$E$5000,100,0)","v":100},{"$f":"IF(N1595=0,_xlfn.XLOOKUP(F1595,'Raw Data'!$I$4:$I$5000,'Raw Data'!$H$4:$H$5000,\"\",0),\"\")","v":""},{"$f":"IF(INDIRECT(M1595) = \"\",\"\",INDIRECT(M1595))","v":""},"n"]
["SUCMPROPORESRSK_US","APB","Auto physical damage",null,{"$f":"_xlfn.XLOOKUP(F1596,'Raw Data'!$I$4:$I$5000,'Raw Data'!$D$4:$D$5000,\"*** Mnemonic not found ***\",0)","v":"*** Mnemonic not found ***"},"SUCMPROPORESRSK_US_APB_",null,"Input",null,null,601,"F","Input!F601",{"$f":"_xlfn.XLOOKUP(F1596,'Raw Data'!$I$4:$I$5000,'Raw Data'!$E$4:$E$5000,100,0)","v":100},{"$f":"IF(N1596=0,_xlfn.XLOOKUP(F1596,'Raw Data'!$I$4:$I$5000,'Raw Data'!$H$4:$H$5000,\"\",0),\"\")","v":""},{"$f":"IF(INDIRECT(M1596) = \"\",\"\",INDIRECT(M1596))","v":""},"n"]
["SUCMPROPORESRSK_US","CAL","Commercial auto liability",null,{"$f":"_xlfn.XLOOKUP(F1597,'Raw Data'!$I$4:$I$5000,'Raw Data'!$D$4:$D$5000,\"*** Mnemonic not found ***\",0)","v":"*** Mnemonic not found ***"},"SUCMPROPORESRSK_US_CAL_",null,"Input",null,null,602,"F","Input!F602",{"$f":"_xlfn.XLOOKUP(F1597,'Raw Data'!$I$4:$I$5000,'Raw Data'!$E$4:$E$5000,100,0)","v":100},{"$f":"IF(N1597=0,_xlfn.XLOOKUP(F1597,'Raw Data'!$I$4:$I$5000,'Raw Data'!$H$4:$H$5000,\"\",0),\"\")","v":""},{"$f":"IF(INDIRECT(M1597) = \"\",\"\",INDIRECT(M1597))","v":""},"n"]
["SUCMPROPORESRSK_US","PPA","Private passenger auto liability",null,{"$f":"_xlfn.XLOOKUP(F1598,'Raw Data'!$I$4:$I$5000,'Raw Data'!$D$4:$D$5000,\"*** Mnemonic not found ***\",0)","v":"*** Mnemonic not found ***"},"SUCMPROPORESRSK_US_PPA_",null,"Input",null,null,603,"F","Input!F603",{"$f":"_xlfn.XLOOKUP(F1598,'Raw Data'!$I$4:$I$5000,'Raw Data'!$E$4:$E$5000,100,0)","v":100},{"$f":"IF(N1598=0,_xlfn.XLOOKUP(F1598,'Raw Data'!$I$4:$I$5000,'Raw Data'!$H$4:$H$5000,\"\",0),\"\")","v":""},{"$f":"IF(INDIRECT(M1598) = \"\",\"\",INDIRECT(M1598))","v":""},"n"]
["SUCMPROPORESRSK_US","CRD","Credit",null,{"$f":"_xlfn.XLOOKUP(F1599,'Raw Data'!$I$4:$I$5000,'Raw Data'!$D$4:$D$5000,\"*** Mnemonic not found ***\",0)","v":"*** Mnemonic not found ***"},"SUCMPROPORESRSK_US_CRD_",null,"Input",null,null,604,"F","Input!F604",{"$f":"_xlfn.XLOOKUP(F1599,'Raw Data'!$I$4:$I$5000,'Raw Data'!$E$4:$E$5000,100,0)","v":100},{"$f":"IF(N1599=0,_xlfn.XLOOKUP(F1599,'Raw Data'!$I$4:$I$5000,'Raw Data'!$H$4:$H$5000,\"\",0),\"\")","v":""},{"$f":"IF(INDIRECT(M1599) = \"\",\"\",INDIRECT(M1599))","v":""},"n"]
["SUCMPROPORESRSK_US","FIDSUR","Fidelity/Surety",null,{"$f":"_xlfn.XLOOKUP(F1600,'Raw Data'!$I$4:$I$5000,'Raw Data'!$D$4:$D$5000,\"*** Mnemonic not found ***\",0)","v":"*** Mnemonic not found ***"},"SUCMPROPORESRSK_US_FIDSUR_",null,"Input",null,null,605,"F","Input!F605",{"$f":"_xlfn.XLOOKUP(F1600,'Raw Data'!$I$4:$I$5000,'Raw Data'!$E$4:$E$5000,100,0)","v":100},{"$f":"IF(N1600=0,_xlfn.XLOOKUP(F1600,'Raw Data'!$I$4:$I$5000,'Raw Data'!$H$4:$H$5000,\"\",0),\"\")","v":""},{"$f":"IF(INDIRECT(M1600) = \"\",\"\",INDIRECT(M1600))","v":""},"n"]
["SUCMPROPORESRSK_US","FIG","Financial guaranty",null,{"$f":"_xlfn.XLOOKUP(F1601,'Raw Data'!$I$4:$I$5000,'Raw Data'!$D$4:$D$5000,\"*** Mnemonic not found ***\",0)","v":"*** Mnemonic not found ***"},"SUCMPROPORESRSK_US_FIG_",null,"Input",null,null,606,"F","Input!F606",{"$f":"_xlfn.XLOOKUP(F1601,'Raw Data'!$I$4:$I$5000,'Raw Data'!$E$4:$E$5000,100,0)","v":100},{"$f":"IF(N1601=0,_xlfn.XLOOKUP(F1601,'Raw Data'!$I$4:$I$5000,'Raw Data'!$H$4:$H$5000,\"\",0),\"\")","v":""},{"$f":"IF(INDIRECT(M1601) = \"\",\"\",INDIRECT(M1601))","v":""},"n"]
["SUCMPROPORESRSK_US","AAH","Accident & health",null,{"$f":"_xlfn.XLOOKUP(F1602,'Raw Data'!$I$4:$I$5000,'Raw Data'!$D$4:$D$5000,\"*** Mnemonic not found ***\",0)","v":"*** Mnemonic not found ***"},"SUCMPROPORESRSK_US_AAH_",null,"Input",null,null,607,"F","Input!F607",{"$f":"_xlfn.XLOOKUP(F1602,'Raw Data'!$I$4:$I$5000,'Raw Data'!$E$4:$E$5000,100,0)","v":100},{"$f":"IF(N1602=0,_xlfn.XLOOKUP(F1602,'Raw Data'!$I$4:$I$5000,'Raw Data'!$H$4:$H$5000,\"\",0),\"\")","v":""},{"$f":"IF(INDIRECT(M1602) = \"\",\"\",INDIRECT(M1602))","v":""},"n"]
["SUCMPROPORESRSK_US","USHRES","US health reserves",null,{"$f":"_xlfn.XLOOKUP(F1603,'Raw Data'!$I$4:$I$5000,'Raw Data'!$D$4:$D$5000,\"*** Mnemonic not found ***\",0)","v":"*** Mnemonic not found ***"},"SUCMPROPORESRSK_US_USHRES_",null,"Input",null,null,608,"F","Input!F608",{"$f":"_xlfn.XLOOKUP(F1603,'Raw Data'!$I$4:$I$5000,'Raw Data'!$E$4:$E$5000,100,0)","v":100},{"$f":"IF(N1603=0,_xlfn.XLOOKUP(F1603,'Raw Data'!$I$4:$I$5000,'Raw Data'!$H$4:$H$5000,\"\",0),\"\")","v":""},{"$f":"IF(INDIRECT(M1603) = \"\",\"\",INDIRECT(M1603))","v":""},"n"]
["SUCMPROPORESRSK_US","AIR","Aircraft",null,{"$f":"_xlfn.XLOOKUP(F1604,'Raw Data'!$I$4:$I$5000,'Raw Data'!$D$4:$D$5000,\"*** Mnemonic not found ***\",0)","v":"*** Mnemonic not found ***"},"SUCMPROPORESRSK_US_AIR_",null,"Input",null,null,609,"F",{"$f":"CONCATENATE(H1604,\"!\",L1604,K1604)","v":"Input!F609"},{"$f":"_xlfn.XLOOKUP(F1604,'Raw Data'!$I$4:$I$5000,'Raw Data'!$E$4:$E$5000,100,0)","v":100},{"$f":"IF(N1604=0,_xlfn.XLOOKUP(F1604,'Raw Data'!$I$4:$I$5000,'Raw Data'!$H$4:$H$5000,\"\",0),\"\")","v":""},{"$f":"IF(INDIRECT(M1604) = \"\",\"\",INDIRECT(M1604))","v":""},"n"]
["SUCMPROPORESRSK_US","MPIN","Marine protection & indemnity",null,{"$f":"_xlfn.XLOOKUP(F1605,'Raw Data'!$I$4:$I$5000,'Raw Data'!$D$4:$D$5000,\"*** Mnemonic not found ***\",0)","v":"*** Mnemonic not found ***"},"SUCMPROPORESRSK_US_MPIN_",null,"Input",null,null,610,"F","Input!F610",{"$f":"_xlfn.XLOOKUP(F1605,'Raw Data'!$I$4:$I$5000,'Raw Data'!$E$4:$E$5000,100,0)","v":100},{"$f":"IF(N1605=0,_xlfn.XLOOKUP(F1605,'Raw Data'!$I$4:$I$5000,'Raw Data'!$H$4:$H$5000,\"\",0),\"\")","v":""},{"$f":"IF(INDIRECT(M1605) = \"\",\"\",INDIRECT(M1605))","v":""},"n"]
["SUCMPROPORESRSK_US","OCM","Ocean marine",null,{"$f":"_xlfn.XLOOKUP(F1606,'Raw Data'!$I$4:$I$5000,'Raw Data'!$D$4:$D$5000,\"*** Mnemonic not found ***\",0)","v":"*** Mnemonic not found ***"},"SUCMPROPORESRSK_US_OCM_",null,"Input",null,null,611,"F",{"$f":"CONCATENATE(H1606,\"!\",L1606,K1606)","v":"Input!F611"},{"$f":"_xlfn.XLOOKUP(F1606,'Raw Data'!$I$4:$I$5000,'Raw Data'!$E$4:$E$5000,100,0)","v":100},{"$f":"IF(N1606=0,_xlfn.XLOOKUP(F1606,'Raw Data'!$I$4:$I$5000,'Raw Data'!$H$4:$H$5000,\"\",0),\"\")","v":""},{"$f":"IF(INDIRECT(M1606) = \"\",\"\",INDIRECT(M1606))","v":""},"n"]
["SUCMPROPORESRSK_US","TITLE","Title",null,{"$f":"_xlfn.XLOOKUP(F1607,'Raw Data'!$I$4:$I$5000,'Raw Data'!$D$4:$D$5000,\"*** Mnemonic not found ***\",0)","v":"*** Mnemonic not found ***"},{"$f":"CONCATENATE(A1607,\"_\",B1607,\"_\",D1607)","v":"SUCMPROPORESRSK_US_TITLE_"},null,"Input",null,null,612,"F","Input!F612",{"$f":"_xlfn.XLOOKUP(F1607,'Raw Data'!$I$4:$I$5000,'Raw Data'!$E$4:$E$5000,100,0)","v":100},{"$f":"IF(N1607=0,_xlfn.XLOOKUP(F1607,'Raw Data'!$I$4:$I$5000,'Raw Data'!$H$4:$H$5000,\"\",0),\"\")","v":""},{"$f":"IF(INDIRECT(M1607) = \"\",\"\",INDIRECT(M1607))","v":""},"n"]
["SUCMPROPORESRSK_US","WAR","Warranty",null,{"$f":"_xlfn.XLOOKUP(F1608,'Raw Data'!$I$4:$I$5000,'Raw Data'!$D$4:$D$5000,\"*** Mnemonic not found ***\",0)","v":"*** Mnemonic not found ***"},"SUCMPROPORESRSK_US_WAR_",null,"Input",null,null,613,"F","Input!F613",{"$f":"_xlfn.XLOOKUP(F1608,'Raw Data'!$I$4:$I$5000,'Raw Data'!$E$4:$E$5000,100,0)","v":100},{"$f":"IF(N1608=0,_xlfn.XLOOKUP(F1608,'Raw Data'!$I$4:$I$5000,'Raw Data'!$H$4:$H$5000,\"\",0),\"\")","v":""},{"$f":"IF(INDIRECT(M1608) = \"\",\"\",INDIRECT(M1608))","v":""},"n"]
["SUCMPROPORESRSK_US","OCAH","Other",null,{"$f":"_xlfn.XLOOKUP(F1609,'Raw Data'!$I$4:$I$5000,'Raw Data'!$D$4:$D$5000,\"*** Mnemonic not found ***\",0)","v":"*** Mnemonic not found ***"},"SUCMPROPORESRSK_US_OCAH_",null,"Input",null,null,614,"F","Input!F614",{"$f":"_xlfn.XLOOKUP(F1609,'Raw Data'!$I$4:$I$5000,'Raw Data'!$E$4:$E$5000,100,0)","v":100},{"$f":"IF(N1609=0,_xlfn.XLOOKUP(F1609,'Raw Data'!$I$4:$I$5000,'Raw Data'!$H$4:$H$5000,\"\",0),\"\")","v":""},{"$f":"IF(INDIRECT(M1609) = \"\",\"\",INDIRECT(M1609))","v":""},"n"]
["SUCMNOPROPORESRSK_US","MEC","Medical malpractice - claims made",null,{"$f":"_xlfn.XLOOKUP(F1610,'Raw Data'!$I$4:$I$5000,'Raw Data'!$D$4:$D$5000,\"*** Mnemonic not found ***\",0)","v":"*** Mnemonic not found ***"},"SUCMNOPROPORESRSK_US_MEC_",null,"Input",{"$f":"ROW(section_non_life_resv)","v":571},{"$f":"J1585","v":19},{"$f":"I1610+J1610","v":590},"G","Input!G590",{"$f":"_xlfn.XLOOKUP(F1610,'Raw Data'!$I$4:$I$5000,'Raw Data'!$E$4:$E$5000,100,0)","v":100},{"$f":"IF(N1610=0,_xlfn.XLOOKUP(F1610,'Raw Data'!$I$4:$I$5000,'Raw Data'!$H$4:$H$5000,\"\",0),\"\")","v":""},{"$f":"IF(INDIRECT(M1610) = \"\",\"\",INDIRECT(M1610))","v":""},"n"]
["SUCMNOPROPORESRSK_US","MEO","Medical malpractice - occurrence",null,{"$f":"_xlfn.XLOOKUP(F1611,'Raw Data'!$I$4:$I$5000,'Raw Data'!$D$4:$D$5000,\"*** Mnemonic not found ***\",0)","v":"*** Mnemonic not found ***"},"SUCMNOPROPORESRSK_US_MEO_",null,"Input",null,null,{"$f":"K1610+1","v":591},{"$f":"L1610","v":"G"},"Input!G591",{"$f":"_xlfn.XLOOKUP(F1611,'Raw Data'!$I$4:$I$5000,'Raw Data'!$E$4:$E$5000,100,0)","v":100},{"$f":"IF(N1611=0,_xlfn.XLOOKUP(F1611,'Raw Data'!$I$4:$I$5000,'Raw Data'!$H$4:$H$5000,\"\",0),\"\")","v":""},{"$f":"IF(INDIRECT(M1611) = \"\",\"\",INDIRECT(M1611))","v":""},"n"]
["SUCMNOPROPORESRSK_US","OLC","Other liability - claims made",null,{"$f":"_xlfn.XLOOKUP(F1612,'Raw Data'!$I$4:$I$5000,'Raw Data'!$D$4:$D$5000,\"*** Mnemonic not found ***\",0)","v":"*** Mnemonic not found ***"},"SUCMNOPROPORESRSK_US_OLC_",null,"Input",null,null,{"$f":"K1611+1","v":592},{"$f":"L1611","v":"G"},"Input!G592",{"$f":"_xlfn.XLOOKUP(F1612,'Raw Data'!$I$4:$I$5000,'Raw Data'!$E$4:$E$5000,100,0)","v":100},{"$f":"IF(N1612=0,_xlfn.XLOOKUP(F1612,'Raw Data'!$I$4:$I$5000,'Raw Data'!$H$4:$H$5000,\"\",0),\"\")","v":""},{"$f":"IF(INDIRECT(M1612) = \"\",\"\",INDIRECT(M1612))","v":""},"n"]
["SUCMNOPROPORESRSK_US","OLO","Other liability - occurrence",null,{"$f":"_xlfn.XLOOKUP(F1613,'Raw Data'!$I$4:$I$5000,'Raw Data'!$D$4:$D$5000,\"*** Mnemonic not found ***\",0)","v":"*** Mnemonic not found ***"},"SUCMNOPROPORESRSK_US_OLO_",null,"Input",null,null,593,"G","Input!G593",{"$f":"_xlfn.XLOOKUP(F1613,'Raw Data'!$I$4:$I$5000,'Raw Data'!$E$4:$E$5000,100,0)","v":100},{"$f":"IF(N1613=0,_xlfn.XLOOKUP(F1613,'Raw Data'!$I$4:$I$5000,'Raw Data'!$H$4:$H$5000,\"\",0),\"\")","v":""},{"$f":"IF(INDIRECT(M1613) = \"\",\"\",INDIRECT(M1613))","v":""},"n"]
["SUCMNOPROPORESRSK_US","PLC","Product liability - claims made",null,{"$f":"_xlfn.XLOOKUP(F1614,'Raw Data'!$I$4:$I$5000,'Raw Data'!$D$4:$D$5000,\"*** Mnemonic not found ***\",0)","v":"*** Mnemonic not found ***"},"SUCMNOPROPORESRSK_US_PLC_",null,"Input",null,null,594,"G","Input!G594",{"$f":"_xlfn.XLOOKUP(F1614,'Raw Data'!$I$4:$I$5000,'Raw Data'!$E$4:$E$5000,100,0)","v":100},{"$f":"IF(N1614=0,_xlfn.XLOOKUP(F1614,'Raw Data'!$I$4:$I$5000,'Raw Data'!$H$4:$H$5000,\"\",0),\"\")","v":""},{"$f":"IF(INDIRECT(M1614) = \"\",\"\",INDIRECT(M1614))","v":""},"n"]
["SUCMNOPROPORESRSK_US","PLO","Product liability - occurrence",null,{"$f":"_xlfn.XLOOKUP(F1615,'Raw Data'!$I$4:$I$5000,'Raw Data'!$D$4:$D$5000,\"*** Mnemonic not found ***\",0)","v":"*** Mnemonic not found ***"},"SUCMNOPROPORESRSK_US_PLO_",null,"Input",null,null,595,"G","Input!G595",{"$f":"_xlfn.XLOOKUP(F1615,'Raw Data'!$I$4:$I$5000,'Raw Data'!$E$4:$E$5000,100,0)","v":100},{"$f":"IF(N1615=0,_xlfn.XLOOKUP(F1615,'Raw Data'!$I$4:$I$5000,'Raw Data'!$H$4:$H$5000,\"\",0),\"\")","v":""},{"$f":"IF(INDIRECT(M1615) = \"\",\"\",INDIRECT(M1615))","v":""},"n"]
["SUCMNOPROPORESRSK_US","WCP","Workers compensation",null,{"$f":"_xlfn.XLOOKUP(F1616,'Raw Data'!$I$4:$I$5000,'Raw Data'!$D$4:$D$5000,\"*** Mnemonic not found ***\",0)","v":"*** Mnemonic not found ***"},"SUCMNOPROPORESRSK_US_WCP_",null,"Input",null,null,596,"G","Input!G596",{"$f":"_xlfn.XLOOKUP(F1616,'Raw Data'!$I$4:$I$5000,'Raw Data'!$E$4:$E$5000,100,0)","v":100},{"$f":"IF(N1616=0,_xlfn.XLOOKUP(F1616,'Raw Data'!$I$4:$I$5000,'Raw Data'!$H$4:$H$5000,\"\",0),\"\")","v":""},{"$f":"IF(INDIRECT(M1616) = \"\",\"\",INDIRECT(M1616))","v":""},"n"]
["SUCMNOPROPORESRSK_US","BLM","Boiler & machinery",null,{"$f":"_xlfn.XLOOKUP(F1617,'Raw Data'!$I$4:$I$5000,'Raw Data'!$D$4:$D$5000,\"*** Mnemonic not found ***\",0)","v":"*** Mnemonic not found ***"},"SUCMNOPROPORESRSK_US_BLM_",null,"Input",null,null,597,"G","Input!G597",{"$f":"_xlfn.XLOOKUP(F1617,'Raw Data'!$I$4:$I$5000,'Raw Data'!$E$4:$E$5000,100,0)","v":100},{"$f":"IF(N1617=0,_xlfn.XLOOKUP(F1617,'Raw Data'!$I$4:$I$5000,'Raw Data'!$H$4:$H$5000,\"\",0),\"\")","v":""},{"$f":"IF(INDIRECT(M1617) = \"\",\"\",INDIRECT(M1617))","v":""},"n"]
["SUCMNOPROPORESRSK_US","CMP","Commercial multi-peril",null,{"$f":"_xlfn.XLOOKUP(F1618,'Raw Data'!$I$4:$I$5000,'Raw Data'!$D$4:$D$5000,\"*** Mnemonic not found ***\",0)","v":"*** Mnemonic not found ***"},"SUCMNOPROPORESRSK_US_CMP_",null,"Input",null,null,598,"G","Input!G598",{"$f":"_xlfn.XLOOKUP(F1618,'Raw Data'!$I$4:$I$5000,'Raw Data'!$E$4:$E$5000,100,0)","v":100},{"$f":"IF(N1618=0,_xlfn.XLOOKUP(F1618,'Raw Data'!$I$4:$I$5000,'Raw Data'!$H$4:$H$5000,\"\",0),\"\")","v":""},{"$f":"IF(INDIRECT(M1618) = \"\",\"\",INDIRECT(M1618))","v":""},"n"]
["SUCMNOPROPORESRSK_US","HFM","Homeowner/Farmowner multi-peril",null,{"$f":"_xlfn.XLOOKUP(F1619,'Raw Data'!$I$4:$I$5000,'Raw Data'!$D$4:$D$5000,\"*** Mnemonic not found ***\",0)","v":"*** Mnemonic not found ***"},"SUCMNOPROPORESRSK_US_HFM_",null,"Input",null,null,599,"G","Input!G599",{"$f":"_xlfn.XLOOKUP(F1619,'Raw Data'!$I$4:$I$5000,'Raw Data'!$E$4:$E$5000,100,0)","v":100},{"$f":"IF(N1619=0,_xlfn.XLOOKUP(F1619,'Raw Data'!$I$4:$I$5000,'Raw Data'!$H$4:$H$5000,\"\",0),\"\")","v":""},{"$f":"IF(INDIRECT(M1619) = \"\",\"\",INDIRECT(M1619))","v":""},"n"]
["SUCMNOPROPORESRSK_US","SPP","Special property (fire, allied lines, inland marine, earthquake, burglary and theft)",null,{"$f":"_xlfn.XLOOKUP(F1620,'Raw Data'!$I$4:$I$5000,'Raw Data'!$D$4:$D$5000,\"*** Mnemonic not found ***\",0)","v":"*** Mnemonic not found ***"},"SUCMNOPROPORESRSK_US_SPP_",null,"Input",null,null,600,"G","Input!G600",{"$f":"_xlfn.XLOOKUP(F1620,'Raw Data'!$I$4:$I$5000,'Raw Data'!$E$4:$E$5000,100,0)","v":100},{"$f":"IF(N1620=0,_xlfn.XLOOKUP(F1620,'Raw Data'!$I$4:$I$5000,'Raw Data'!$H$4:$H$5000,\"\",0),\"\")","v":""},{"$f":"IF(INDIRECT(M1620) = \"\",\"\",INDIRECT(M1620))","v":""},"n"]
["SUCMNOPROPORESRSK_US","APB","Auto physical damage",null,{"$f":"_xlfn.XLOOKUP(F1621,'Raw Data'!$I$4:$I$5000,'Raw Data'!$D$4:$D$5000,\"*** Mnemonic not found ***\",0)","v":"*** Mnemonic not found ***"},"SUCMNOPROPORESRSK_US_APB_",null,"Input",null,null,601,"G","Input!G601",{"$f":"_xlfn.XLOOKUP(F1621,'Raw Data'!$I$4:$I$5000,'Raw Data'!$E$4:$E$5000,100,0)","v":100},{"$f":"IF(N1621=0,_xlfn.XLOOKUP(F1621,'Raw Data'!$I$4:$I$5000,'Raw Data'!$H$4:$H$5000,\"\",0),\"\")","v":""},{"$f":"IF(INDIRECT(M1621) = \"\",\"\",INDIRECT(M1621))","v":""},"n"]
["SUCMNOPROPORESRSK_US","CAL","Commercial auto liability",null,{"$f":"_xlfn.XLOOKUP(F1622,'Raw Data'!$I$4:$I$5000,'Raw Data'!$D$4:$D$5000,\"*** Mnemonic not found ***\",0)","v":"*** Mnemonic not found ***"},"SUCMNOPROPORESRSK_US_CAL_",null,"Input",null,null,602,"G","Input!G602",{"$f":"_xlfn.XLOOKUP(F1622,'Raw Data'!$I$4:$I$5000,'Raw Data'!$E$4:$E$5000,100,0)","v":100},{"$f":"IF(N1622=0,_xlfn.XLOOKUP(F1622,'Raw Data'!$I$4:$I$5000,'Raw Data'!$H$4:$H$5000,\"\",0),\"\")","v":""},{"$f":"IF(INDIRECT(M1622) = \"\",\"\",INDIRECT(M1622))","v":""},"n"]
["SUCMNOPROPORESRSK_US","PPA","Private passenger auto liability",null,{"$f":"_xlfn.XLOOKUP(F1623,'Raw Data'!$I$4:$I$5000,'Raw Data'!$D$4:$D$5000,\"*** Mnemonic not found ***\",0)","v":"*** Mnemonic not found ***"},"SUCMNOPROPORESRSK_US_PPA_",null,"Input",null,null,603,"G","Input!G603",{"$f":"_xlfn.XLOOKUP(F1623,'Raw Data'!$I$4:$I$5000,'Raw Data'!$E$4:$E$5000,100,0)","v":100},{"$f":"IF(N1623=0,_xlfn.XLOOKUP(F1623,'Raw Data'!$I$4:$I$5000,'Raw Data'!$H$4:$H$5000,\"\",0),\"\")","v":""},{"$f":"IF(INDIRECT(M1623) = \"\",\"\",INDIRECT(M1623))","v":""},"n"]
["SUCMNOPROPORESRSK_US","CRD","Credit",null,{"$f":"_xlfn.XLOOKUP(F1624,'Raw Data'!$I$4:$I$5000,'Raw Data'!$D$4:$D$5000,\"*** Mnemonic not found ***\",0)","v":"*** Mnemonic not found ***"},"SUCMNOPROPORESRSK_US_CRD_",null,"Input",null,null,604,"G","Input!G604",{"$f":"_xlfn.XLOOKUP(F1624,'Raw Data'!$I$4:$I$5000,'Raw Data'!$E$4:$E$5000,100,0)","v":100},{"$f":"IF(N1624=0,_xlfn.XLOOKUP(F1624,'Raw Data'!$I$4:$I$5000,'Raw Data'!$H$4:$H$5000,\"\",0),\"\")","v":""},{"$f":"IF(INDIRECT(M1624) = \"\",\"\",INDIRECT(M1624))","v":""},"n"]
["SUCMNOPROPORESRSK_US","FIDSUR","Fidelity/Surety",null,{"$f":"_xlfn.XLOOKUP(F1625,'Raw Data'!$I$4:$I$5000,'Raw Data'!$D$4:$D$5000,\"*** Mnemonic not found ***\",0)","v":"*** Mnemonic not found ***"},"SUCMNOPROPORESRSK_US_FIDSUR_",null,"Input",null,null,605,"G","Input!G605",{"$f":"_xlfn.XLOOKUP(F1625,'Raw Data'!$I$4:$I$5000,'Raw Data'!$E$4:$E$5000,100,0)","v":100},{"$f":"IF(N1625=0,_xlfn.XLOOKUP(F1625,'Raw Data'!$I$4:$I$5000,'Raw Data'!$H$4:$H$5000,\"\",0),\"\")","v":""},{"$f":"IF(INDIRECT(M1625) = \"\",\"\",INDIRECT(M1625))","v":""},"n"]
["SUCMNOPROPORESRSK_US","FIG","Financial guaranty",null,{"$f":"_xlfn.XLOOKUP(F1626,'Raw Data'!$I$4:$I$5000,'Raw Data'!$D$4:$D$5000,\"*** Mnemonic not found ***\",0)","v":"*** Mnemonic not found ***"},"SUCMNOPROPORESRSK_US_FIG_",null,"Input",null,null,606,"G","Input!G606",{"$f":"_xlfn.XLOOKUP(F1626,'Raw Data'!$I$4:$I$5000,'Raw Data'!$E$4:$E$5000,100,0)","v":100},{"$f":"IF(N1626=0,_xlfn.XLOOKUP(F1626,'Raw Data'!$I$4:$I$5000,'Raw Data'!$H$4:$H$5000,\"\",0),\"\")","v":""},{"$f":"IF(INDIRECT(M1626) = \"\",\"\",INDIRECT(M1626))","v":""},"n"]
["SUCMNOPROPORESRSK_US","AAH","Accident & health",null,{"$f":"_xlfn.XLOOKUP(F1627,'Raw Data'!$I$4:$I$5000,'Raw Data'!$D$4:$D$5000,\"*** Mnemonic not found ***\",0)","v":"*** Mnemonic not found ***"},"SUCMNOPROPORESRSK_US_AAH_",null,"Input",null,null,607,"G","Input!G607",{"$f":"_xlfn.XLOOKUP(F1627,'Raw Data'!$I$4:$I$5000,'Raw Data'!$E$4:$E$5000,100,0)","v":100},{"$f":"IF(N1627=0,_xlfn.XLOOKUP(F1627,'Raw Data'!$I$4:$I$5000,'Raw Data'!$H$4:$H$5000,\"\",0),\"\")","v":""},{"$f":"IF(INDIRECT(M1627) = \"\",\"\",INDIRECT(M1627))","v":""},"n"]
["SUCMNOPROPORESRSK_US","USHRES","US health reserves",null,{"$f":"_xlfn.XLOOKUP(F1628,'Raw Data'!$I$4:$I$5000,'Raw Data'!$D$4:$D$5000,\"*** Mnemonic not found ***\",0)","v":"*** Mnemonic not found ***"},"SUCMNOPROPORESRSK_US_USHRES_",null,"Input",null,null,608,"G","Input!G608",{"$f":"_xlfn.XLOOKUP(F1628,'Raw Data'!$I$4:$I$5000,'Raw Data'!$E$4:$E$5000,100,0)","v":100},{"$f":"IF(N1628=0,_xlfn.XLOOKUP(F1628,'Raw Data'!$I$4:$I$5000,'Raw Data'!$H$4:$H$5000,\"\",0),\"\")","v":""},{"$f":"IF(INDIRECT(M1628) = \"\",\"\",INDIRECT(M1628))","v":""},"n"]
["SUCMNOPROPORESRSK_US","AIR","Aircraft",null,{"$f":"_xlfn.XLOOKUP(F1629,'Raw Data'!$I$4:$I$5000,'Raw Data'!$D$4:$D$5000,\"*** Mnemonic not found ***\",0)","v":"*** Mnemonic not found ***"},"SUCMNOPROPORESRSK_US_AIR_",null,"Input",null,null,609,"G","Input!G609",{"$f":"_xlfn.XLOOKUP(F1629,'Raw Data'!$I$4:$I$5000,'Raw Data'!$E$4:$E$5000,100,0)","v":100},{"$f":"IF(N1629=0,_xlfn.XLOOKUP(F1629,'Raw Data'!$I$4:$I$5000,'Raw Data'!$H$4:$H$5000,\"\",0),\"\")","v":""},{"$f":"IF(INDIRECT(M1629) = \"\",\"\",INDIRECT(M1629))","v":""},"n"]
["SUCMNOPROPORESRSK_US","MPIN","Marine protection & indemnity",null,{"$f":"_xlfn.XLOOKUP(F1630,'Raw Data'!$I$4:$I$5000,'Raw Data'!$D$4:$D$5000,\"*** Mnemonic not found ***\",0)","v":"*** Mnemonic not found ***"},"SUCMNOPROPORESRSK_US_MPIN_",null,"Input",null,null,610,"G","Input!G610",{"$f":"_xlfn.XLOOKUP(F1630,'Raw Data'!$I$4:$I$5000,'Raw Data'!$E$4:$E$5000,100,0)","v":100},{"$f":"IF(N1630=0,_xlfn.XLOOKUP(F1630,'Raw Data'!$I$4:$I$5000,'Raw Data'!$H$4:$H$5000,\"\",0),\"\")","v":""},{"$f":"IF(INDIRECT(M1630) = \"\",\"\",INDIRECT(M1630))","v":""},"n"]
["SUCMNOPROPORESRSK_US","OCM","Ocean marine",null,{"$f":"_xlfn.XLOOKUP(F1631,'Raw Data'!$I$4:$I$5000,'Raw Data'!$D$4:$D$5000,\"*** Mnemonic not found ***\",0)","v":"*** Mnemonic not found ***"},"SUCMNOPROPORESRSK_US_OCM_",null,"Input",null,null,611,"G",{"$f":"CONCATENATE(H1631,\"!\",L1631,K1631)","v":"Input!G611"},{"$f":"_xlfn.XLOOKUP(F1631,'Raw Data'!$I$4:$I$5000,'Raw Data'!$E$4:$E$5000,100,0)","v":100},{"$f":"IF(N1631=0,_xlfn.XLOOKUP(F1631,'Raw Data'!$I$4:$I$5000,'Raw Data'!$H$4:$H$5000,\"\",0),\"\")","v":""},{"$f":"IF(INDIRECT(M1631) = \"\",\"\",INDIRECT(M1631))","v":""},"n"]
["SUCMNOPROPORESRSK_US","TITLE","Title",null,{"$f":"_xlfn.XLOOKUP(F1632,'Raw Data'!$I$4:$I$5000,'Raw Data'!$D$4:$D$5000,\"*** Mnemonic not found ***\",0)","v":"*** Mnemonic not found ***"},"SUCMNOPROPORESRSK_US_TITLE_",null,"Input",null,null,612,"G","Input!G612",{"$f":"_xlfn.XLOOKUP(F1632,'Raw Data'!$I$4:$I$5000,'Raw Data'!$E$4:$E$5000,100,0)","v":100},{"$f":"IF(N1632=0,_xlfn.XLOOKUP(F1632,'Raw Data'!$I$4:$I$5000,'Raw Data'!$H$4:$H$5000,\"\",0),\"\")","v":""},{"$f":"IF(INDIRECT(M1632) = \"\",\"\",INDIRECT(M1632))","v":""},"n"]
["SUCMNOPROPORESRSK_US","WAR","Warranty",null,{"$f":"_xlfn.XLOOKUP(F1633,'Raw Data'!$I$4:$I$5000,'Raw Data'!$D$4:$D$5000,\"*** Mnemonic not found ***\",0)","v":"*** Mnemonic not found ***"},"SUCMNOPROPORESRSK_US_WAR_",null,"Input",null,null,613,"G","Input!G613",{"$f":"_xlfn.XLOOKUP(F1633,'Raw Data'!$I$4:$I$5000,'Raw Data'!$E$4:$E$5000,100,0)","v":100},{"$f":"IF(N1633=0,_xlfn.XLOOKUP(F1633,'Raw Data'!$I$4:$I$5000,'Raw Data'!$H$4:$H$5000,\"\",0),\"\")","v":""},{"$f":"IF(INDIRECT(M1633) = \"\",\"\",INDIRECT(M1633))","v":""},"n"]
["SUCMNOPROPORESRSK_US","OCAH","Other",null,{"$f":"_xlfn.XLOOKUP(F1634,'Raw Data'!$I$4:$I$5000,'Raw Data'!$D$4:$D$5000,\"*** Mnemonic not found ***\",0)","v":"*** Mnemonic not found ***"},"SUCMNOPROPORESRSK_US_OCAH_",null,"Input",null,null,614,"G","Input!G614",{"$f":"_xlfn.XLOOKUP(F1634,'Raw Data'!$I$4:$I$5000,'Raw Data'!$E$4:$E$5000,100,0)","v":100},{"$f":"IF(N1634=0,_xlfn.XLOOKUP(F1634,'Raw Data'!$I$4:$I$5000,'Raw Data'!$H$4:$H$5000,\"\",0),\"\")","v":""},{"$f":"IF(INDIRECT(M1634) = \"\",\"\",INDIRECT(M1634))","v":""},"n"]
["SUCMPROPORESRSK_CN","LIA","Liability",null,{"$f":"_xlfn.XLOOKUP(F1635,'Raw Data'!$I$4:$I$5000,'Raw Data'!$D$4:$D$5000,\"*** Mnemonic not found ***\",0)","v":"*** Mnemonic not found ***"},"SUCMPROPORESRSK_CN_LIA_","Non-life reserve - Canada","Input",{"$f":"ROW(section_non_life_resv)","v":571},45,{"$f":"I1635+J1635","v":616},"F","Input!F616",{"$f":"_xlfn.XLOOKUP(F1635,'Raw Data'!$I$4:$I$5000,'Raw Data'!$E$4:$E$5000,100,0)","v":100},{"$f":"IF(N1635=0,_xlfn.XLOOKUP(F1635,'Raw Data'!$I$4:$I$5000,'Raw Data'!$H$4:$H$5000,\"\",0),\"\")","v":""},{"$f":"IF(INDIRECT(M1635) = \"\",\"\",INDIRECT(M1635))","v":""},"n"]
["SUCMPROPORESRSK_CN","BLM","Boiler & machinery",null,{"$f":"_xlfn.XLOOKUP(F1636,'Raw Data'!$I$4:$I$5000,'Raw Data'!$D$4:$D$5000,\"*** Mnemonic not found ***\",0)","v":"*** Mnemonic not found ***"},"SUCMPROPORESRSK_CN_BLM_",null,"Input",null,null,{"$f":"K1635+1","v":617},{"$f":"L1635","v":"F"},"Input!F617",{"$f":"_xlfn.XLOOKUP(F1636,'Raw Data'!$I$4:$I$5000,'Raw Data'!$E$4:$E$5000,100,0)","v":100},{"$f":"IF(N1636=0,_xlfn.XLOOKUP(F1636,'Raw Data'!$I$4:$I$5000,'Raw Data'!$H$4:$H$5000,\"\",0),\"\")","v":""},{"$f":"IF(INDIRECT(M1636) = \"\",\"\",INDIRECT(M1636))","v":""},"n"]
["SUCMPROPORESRSK_CN","CMPR","Commercial property",null,{"$f":"_xlfn.XLOOKUP(F1637,'Raw Data'!$I$4:$I$5000,'Raw Data'!$D$4:$D$5000,\"*** Mnemonic not found ***\",0)","v":"*** Mnemonic not found ***"},"SUCMPROPORESRSK_CN_CMPR_",null,"Input",null,null,{"$f":"K1636+1","v":618},{"$f":"L1636","v":"F"},"Input!F618",{"$f":"_xlfn.XLOOKUP(F1637,'Raw Data'!$I$4:$I$5000,'Raw Data'!$E$4:$E$5000,100,0)","v":100},{"$f":"IF(N1637=0,_xlfn.XLOOKUP(F1637,'Raw Data'!$I$4:$I$5000,'Raw Data'!$H$4:$H$5000,\"\",0),\"\")","v":""},{"$f":"IF(INDIRECT(M1637) = \"\",\"\",INDIRECT(M1637))","v":""},"n"]
["SUCMPROPORESRSK_CN","HAIL","Hail",null,{"$f":"_xlfn.XLOOKUP(F1638,'Raw Data'!$I$4:$I$5000,'Raw Data'!$D$4:$D$5000,\"*** Mnemonic not found ***\",0)","v":"*** Mnemonic not found ***"},"SUCMPROPORESRSK_CN_HAIL_",null,"Input",null,null,619,"F","Input!F619",{"$f":"_xlfn.XLOOKUP(F1638,'Raw Data'!$I$4:$I$5000,'Raw Data'!$E$4:$E$5000,100,0)","v":100},{"$f":"IF(N1638=0,_xlfn.XLOOKUP(F1638,'Raw Data'!$I$4:$I$5000,'Raw Data'!$H$4:$H$5000,\"\",0),\"\")","v":""},{"$f":"IF(INDIRECT(M1638) = \"\",\"\",INDIRECT(M1638))","v":""},"n"]
["SUCMPROPORESRSK_CN","PPR","Personal property",null,{"$f":"_xlfn.XLOOKUP(F1639,'Raw Data'!$I$4:$I$5000,'Raw Data'!$D$4:$D$5000,\"*** Mnemonic not found ***\",0)","v":"*** Mnemonic not found ***"},"SUCMPROPORESRSK_CN_PPR_",null,"Input",null,null,620,"F","Input!F620",{"$f":"_xlfn.XLOOKUP(F1639,'Raw Data'!$I$4:$I$5000,'Raw Data'!$E$4:$E$5000,100,0)","v":100},{"$f":"IF(N1639=0,_xlfn.XLOOKUP(F1639,'Raw Data'!$I$4:$I$5000,'Raw Data'!$H$4:$H$5000,\"\",0),\"\")","v":""},{"$f":"IF(INDIRECT(M1639) = \"\",\"\",INDIRECT(M1639))","v":""},"n"]
["SUCMPROPORESRSK_CN","ALB","Auto - liability",null,{"$f":"_xlfn.XLOOKUP(F1640,'Raw Data'!$I$4:$I$5000,'Raw Data'!$D$4:$D$5000,\"*** Mnemonic not found ***\",0)","v":"*** Mnemonic not found ***"},"SUCMPROPORESRSK_CN_ALB_",null,"Input",null,null,621,"F","Input!F621",{"$f":"_xlfn.XLOOKUP(F1640,'Raw Data'!$I$4:$I$5000,'Raw Data'!$E$4:$E$5000,100,0)","v":100},{"$f":"IF(N1640=0,_xlfn.XLOOKUP(F1640,'Raw Data'!$I$4:$I$5000,'Raw Data'!$H$4:$H$5000,\"\",0),\"\")","v":""},{"$f":"IF(INDIRECT(M1640) = \"\",\"\",INDIRECT(M1640))","v":""},"n"]
["SUCMPROPORESRSK_CN","ATOTH","Auto - other",null,{"$f":"_xlfn.XLOOKUP(F1641,'Raw Data'!$I$4:$I$5000,'Raw Data'!$D$4:$D$5000,\"*** Mnemonic not found ***\",0)","v":"*** Mnemonic not found ***"},"SUCMPROPORESRSK_CN_ATOTH_",null,"Input",null,null,622,"F","Input!F622",{"$f":"_xlfn.XLOOKUP(F1641,'Raw Data'!$I$4:$I$5000,'Raw Data'!$E$4:$E$5000,100,0)","v":100},{"$f":"IF(N1641=0,_xlfn.XLOOKUP(F1641,'Raw Data'!$I$4:$I$5000,'Raw Data'!$H$4:$H$5000,\"\",0),\"\")","v":""},{"$f":"IF(INDIRECT(M1641) = \"\",\"\",INDIRECT(M1641))","v":""},"n"]
["SUCMPROPORESRSK_CN","ATPAC","Auto - personal accident",null,{"$f":"_xlfn.XLOOKUP(F1642,'Raw Data'!$I$4:$I$5000,'Raw Data'!$D$4:$D$5000,\"*** Mnemonic not found ***\",0)","v":"*** Mnemonic not found ***"},"SUCMPROPORESRSK_CN_ATPAC_",null,"Input",null,null,623,"F","Input!F623",{"$f":"_xlfn.XLOOKUP(F1642,'Raw Data'!$I$4:$I$5000,'Raw Data'!$E$4:$E$5000,100,0)","v":100},{"$f":"IF(N1642=0,_xlfn.XLOOKUP(F1642,'Raw Data'!$I$4:$I$5000,'Raw Data'!$H$4:$H$5000,\"\",0),\"\")","v":""},{"$f":"IF(INDIRECT(M1642) = \"\",\"\",INDIRECT(M1642))","v":""},"n"]
["SUCMPROPORESRSK_CN","CRD","Credit",null,{"$f":"_xlfn.XLOOKUP(F1643,'Raw Data'!$I$4:$I$5000,'Raw Data'!$D$4:$D$5000,\"*** Mnemonic not found ***\",0)","v":"*** Mnemonic not found ***"},"SUCMPROPORESRSK_CN_CRD_",null,"Input",null,null,624,"F","Input!F624",{"$f":"_xlfn.XLOOKUP(F1643,'Raw Data'!$I$4:$I$5000,'Raw Data'!$E$4:$E$5000,100,0)","v":100},{"$f":"IF(N1643=0,_xlfn.XLOOKUP(F1643,'Raw Data'!$I$4:$I$5000,'Raw Data'!$H$4:$H$5000,\"\",0),\"\")","v":""},{"$f":"IF(INDIRECT(M1643) = \"\",\"\",INDIRECT(M1643))","v":""},"n"]
["SUCMPROPORESRSK_CN","CRPR","Credit protection",null,{"$f":"_xlfn.XLOOKUP(F1644,'Raw Data'!$I$4:$I$5000,'Raw Data'!$D$4:$D$5000,\"*** Mnemonic not found ***\",0)","v":"*** Mnemonic not found ***"},"SUCMPROPORESRSK_CN_CRPR_",null,"Input",null,null,625,"F","Input!F625",{"$f":"_xlfn.XLOOKUP(F1644,'Raw Data'!$I$4:$I$5000,'Raw Data'!$E$4:$E$5000,100,0)","v":100},{"$f":"IF(N1644=0,_xlfn.XLOOKUP(F1644,'Raw Data'!$I$4:$I$5000,'Raw Data'!$H$4:$H$5000,\"\",0),\"\")","v":""},{"$f":"IF(INDIRECT(M1644) = \"\",\"\",INDIRECT(M1644))","v":""},"n"]
["SUCMPROPORESRSK_CN","FID","Fidelity",null,{"$f":"_xlfn.XLOOKUP(F1645,'Raw Data'!$I$4:$I$5000,'Raw Data'!$D$4:$D$5000,\"*** Mnemonic not found ***\",0)","v":"*** Mnemonic not found ***"},"SUCMPROPORESRSK_CN_FID_",null,"Input",null,null,626,"F","Input!F626",{"$f":"_xlfn.XLOOKUP(F1645,'Raw Data'!$I$4:$I$5000,'Raw Data'!$E$4:$E$5000,100,0)","v":100},{"$f":"IF(N1645=0,_xlfn.XLOOKUP(F1645,'Raw Data'!$I$4:$I$5000,'Raw Data'!$H$4:$H$5000,\"\",0),\"\")","v":""},{"$f":"IF(INDIRECT(M1645) = \"\",\"\",INDIRECT(M1645))","v":""},"n"]
["SUCMPROPORESRSK_CN","SUR","Surety",null,{"$f":"_xlfn.XLOOKUP(F1646,'Raw Data'!$I$4:$I$5000,'Raw Data'!$D$4:$D$5000,\"*** Mnemonic not found ***\",0)","v":"*** Mnemonic not found ***"},"SUCMPROPORESRSK_CN_SUR_",null,"Input",null,null,627,"F","Input!F627",{"$f":"_xlfn.XLOOKUP(F1646,'Raw Data'!$I$4:$I$5000,'Raw Data'!$E$4:$E$5000,100,0)","v":100},{"$f":"IF(N1646=0,_xlfn.XLOOKUP(F1646,'Raw Data'!$I$4:$I$5000,'Raw Data'!$H$4:$H$5000,\"\",0),\"\")","v":""},{"$f":"IF(INDIRECT(M1646) = \"\",\"\",INDIRECT(M1646))","v":""},"n"]
["SUCMPROPORESRSK_CN","ACSK","Accident & sickness (excluding supplementary health, disability income)",null,{"$f":"_xlfn.XLOOKUP(F1647,'Raw Data'!$I$4:$I$5000,'Raw Data'!$D$4:$D$5000,\"*** Mnemonic not found ***\",0)","v":"*** Mnemonic not found ***"},"SUCMPROPORESRSK_CN_ACSK_",null,"Input",null,null,628,"F","Input!F628",{"$f":"_xlfn.XLOOKUP(F1647,'Raw Data'!$I$4:$I$5000,'Raw Data'!$E$4:$E$5000,100,0)","v":100},{"$f":"IF(N1647=0,_xlfn.XLOOKUP(F1647,'Raw Data'!$I$4:$I$5000,'Raw Data'!$H$4:$H$5000,\"\",0),\"\")","v":""},{"$f":"IF(INDIRECT(M1647) = \"\",\"\",INDIRECT(M1647))","v":""},"n"]
["SUCMPROPORESRSK_CN","SUPH","Supplementary health",null,{"$f":"_xlfn.XLOOKUP(F1648,'Raw Data'!$I$4:$I$5000,'Raw Data'!$D$4:$D$5000,\"*** Mnemonic not found ***\",0)","v":"*** Mnemonic not found ***"},"SUCMPROPORESRSK_CN_SUPH_",null,"Input",null,null,629,"F",{"$f":"CONCATENATE(H1648,\"!\",L1648,K1648)","v":"Input!F629"},{"$f":"_xlfn.XLOOKUP(F1648,'Raw Data'!$I$4:$I$5000,'Raw Data'!$E$4:$E$5000,100,0)","v":100},{"$f":"IF(N1648=0,_xlfn.XLOOKUP(F1648,'Raw Data'!$I$4:$I$5000,'Raw Data'!$H$4:$H$5000,\"\",0),\"\")","v":""},{"$f":"IF(INDIRECT(M1648) = \"\",\"\",INDIRECT(M1648))","v":""},"n"]
["SUCMPROPORESRSK_CN","AIR","Aircraft",null,{"$f":"_xlfn.XLOOKUP(F1649,'Raw Data'!$I$4:$I$5000,'Raw Data'!$D$4:$D$5000,\"*** Mnemonic not found ***\",0)","v":"*** Mnemonic not found ***"},"SUCMPROPORESRSK_CN_AIR_",null,"Input",null,null,630,"F","Input!F630",{"$f":"_xlfn.XLOOKUP(F1649,'Raw Data'!$I$4:$I$5000,'Raw Data'!$E$4:$E$5000,100,0)","v":100},{"$f":"IF(N1649=0,_xlfn.XLOOKUP(F1649,'Raw Data'!$I$4:$I$5000,'Raw Data'!$H$4:$H$5000,\"\",0),\"\")","v":""},{"$f":"IF(INDIRECT(M1649) = \"\",\"\",INDIRECT(M1649))","v":""},"n"]
["SUCMPROPORESRSK_CN","OCM","Marine",null,{"$f":"_xlfn.XLOOKUP(F1650,'Raw Data'!$I$4:$I$5000,'Raw Data'!$D$4:$D$5000,\"*** Mnemonic not found ***\",0)","v":"*** Mnemonic not found ***"},"SUCMPROPORESRSK_CN_OCM_",null,"Input",null,null,631,"F","Input!F631",{"$f":"_xlfn.XLOOKUP(F1650,'Raw Data'!$I$4:$I$5000,'Raw Data'!$E$4:$E$5000,100,0)","v":100},{"$f":"IF(N1650=0,_xlfn.XLOOKUP(F1650,'Raw Data'!$I$4:$I$5000,'Raw Data'!$H$4:$H$5000,\"\",0),\"\")","v":""},{"$f":"IF(INDIRECT(M1650) = \"\",\"\",INDIRECT(M1650))","v":""},"n"]
["SUCMPROPORESRSK_CN","MPIN","Marine protection & indemnity",null,{"$f":"_xlfn.XLOOKUP(F1651,'Raw Data'!$I$4:$I$5000,'Raw Data'!$D$4:$D$5000,\"*** Mnemonic not found ***\",0)","v":"*** Mnemonic not found ***"},"SUCMPROPORESRSK_CN_MPIN_",null,"Input",null,null,632,"F","Input!F632",{"$f":"_xlfn.XLOOKUP(F1651,'Raw Data'!$I$4:$I$5000,'Raw Data'!$E$4:$E$5000,100,0)","v":100},{"$f":"IF(N1651=0,_xlfn.XLOOKUP(F1651,'Raw Data'!$I$4:$I$5000,'Raw Data'!$H$4:$H$5000,\"\",0),\"\")","v":""},{"$f":"IF(INDIRECT(M1651) = \"\",\"\",INDIRECT(M1651))","v":""},"n"]
["SUCMPROPORESRSK_CN","MAVT","Marine, aviation, and transport",null,{"$f":"_xlfn.XLOOKUP(F1652,'Raw Data'!$I$4:$I$5000,'Raw Data'!$D$4:$D$5000,\"*** Mnemonic not found ***\",0)","v":"*** Mnemonic not found ***"},"SUCMPROPORESRSK_CN_MAVT_",null,"Input",null,null,633,"F","Input!F633",{"$f":"_xlfn.XLOOKUP(F1652,'Raw Data'!$I$4:$I$5000,'Raw Data'!$E$4:$E$5000,100,0)","v":100},{"$f":"IF(N1652=0,_xlfn.XLOOKUP(F1652,'Raw Data'!$I$4:$I$5000,'Raw Data'!$H$4:$H$5000,\"\",0),\"\")","v":""},{"$f":"IF(INDIRECT(M1652) = \"\",\"\",INDIRECT(M1652))","v":""},"n"]
["SUCMPROPORESRSK_CN","OAPR","Other approved products",null,{"$f":"_xlfn.XLOOKUP(F1653,'Raw Data'!$I$4:$I$5000,'Raw Data'!$D$4:$D$5000,\"*** Mnemonic not found ***\",0)","v":"*** Mnemonic not found ***"},"SUCMPROPORESRSK_CN_OAPR_",null,"Input",null,null,634,"F","Input!F634",{"$f":"_xlfn.XLOOKUP(F1653,'Raw Data'!$I$4:$I$5000,'Raw Data'!$E$4:$E$5000,100,0)","v":100},{"$f":"IF(N1653=0,_xlfn.XLOOKUP(F1653,'Raw Data'!$I$4:$I$5000,'Raw Data'!$H$4:$H$5000,\"\",0),\"\")","v":""},{"$f":"IF(INDIRECT(M1653) = \"\",\"\",INDIRECT(M1653))","v":""},"n"]
["SUCMPROPORESRSK_CN","TITLE","Title",null,{"$f":"_xlfn.XLOOKUP(F1654,'Raw Data'!$I$4:$I$5000,'Raw Data'!$D$4:$D$5000,\"*** Mnemonic not found ***\",0)","v":"*** Mnemonic not found ***"},"SUCMPROPORESRSK_CN_TITLE_",null,"Input",null,null,635,"F","Input!F635",{"$f":"_xlfn.XLOOKUP(F1654,'Raw Data'!$I$4:$I$5000,'Raw Data'!$E$4:$E$5000,100,0)","v":100},{"$f":"IF(N1654=0,_xlfn.XLOOKUP(F1654,'Raw Data'!$I$4:$I$5000,'Raw Data'!$H$4:$H$5000,\"\",0),\"\")","v":""},{"$f":"IF(INDIRECT(M1654) = \"\",\"\",INDIRECT(M1654))","v":""},"n"]
["SUCMPROPORESRSK_CN","WAR","Warranty",null,{"$f":"_xlfn.XLOOKUP(F1655,'Raw Data'!$I$4:$I$5000,'Raw Data'!$D$4:$D$5000,\"*** Mnemonic not found ***\",0)","v":"*** Mnemonic not found ***"},"SUCMPROPORESRSK_CN_WAR_",null,"Input",null,null,636,"F","Input!F636",{"$f":"_xlfn.XLOOKUP(F1655,'Raw Data'!$I$4:$I$5000,'Raw Data'!$E$4:$E$5000,100,0)","v":100},{"$f":"IF(N1655=0,_xlfn.XLOOKUP(F1655,'Raw Data'!$I$4:$I$5000,'Raw Data'!$H$4:$H$5000,\"\",0),\"\")","v":""},{"$f":"IF(INDIRECT(M1655) = \"\",\"\",INDIRECT(M1655))","v":""},"n"]
["SUCMPROPORESRSK_CN","OCAH","Other",null,{"$f":"_xlfn.XLOOKUP(F1656,'Raw Data'!$I$4:$I$5000,'Raw Data'!$D$4:$D$5000,\"*** Mnemonic not found ***\",0)","v":"*** Mnemonic not found ***"},"SUCMPROPORESRSK_CN_OCAH_",null,"Input",null,null,637,"F","Input!F637",{"$f":"_xlfn.XLOOKUP(F1656,'Raw Data'!$I$4:$I$5000,'Raw Data'!$E$4:$E$5000,100,0)","v":100},{"$f":"IF(N1656=0,_xlfn.XLOOKUP(F1656,'Raw Data'!$I$4:$I$5000,'Raw Data'!$H$4:$H$5000,\"\",0),\"\")","v":""},{"$f":"IF(INDIRECT(M1656) = \"\",\"\",INDIRECT(M1656))","v":""},"n"]
["SUCMNOPROPORESRSK_CN","LIA","Liability",null,{"$f":"_xlfn.XLOOKUP(F1657,'Raw Data'!$I$4:$I$5000,'Raw Data'!$D$4:$D$5000,\"*** Mnemonic not found ***\",0)","v":"*** Mnemonic not found ***"},"SUCMNOPROPORESRSK_CN_LIA_",null,"Input",{"$f":"ROW(section_non_life_resv)","v":571},{"$f":"J1635","v":45},{"$f":"I1657+J1657","v":616},"G","Input!G616",{"$f":"_xlfn.XLOOKUP(F1657,'Raw Data'!$I$4:$I$5000,'Raw Data'!$E$4:$E$5000,100,0)","v":100},{"$f":"IF(N1657=0,_xlfn.XLOOKUP(F1657,'Raw Data'!$I$4:$I$5000,'Raw Data'!$H$4:$H$5000,\"\",0),\"\")","v":""},{"$f":"IF(INDIRECT(M1657) = \"\",\"\",INDIRECT(M1657))","v":""},"n"]
["SUCMNOPROPORESRSK_CN","BLM","Boiler & machinery",null,{"$f":"_xlfn.XLOOKUP(F1658,'Raw Data'!$I$4:$I$5000,'Raw Data'!$D$4:$D$5000,\"*** Mnemonic not found ***\",0)","v":"*** Mnemonic not found ***"},"SUCMNOPROPORESRSK_CN_BLM_",null,"Input",null,null,{"$f":"K1657+1","v":617},{"$f":"L1657","v":"G"},"Input!G617",{"$f":"_xlfn.XLOOKUP(F1658,'Raw Data'!$I$4:$I$5000,'Raw Data'!$E$4:$E$5000,100,0)","v":100},{"$f":"IF(N1658=0,_xlfn.XLOOKUP(F1658,'Raw Data'!$I$4:$I$5000,'Raw Data'!$H$4:$H$5000,\"\",0),\"\")","v":""},{"$f":"IF(INDIRECT(M1658) = \"\",\"\",INDIRECT(M1658))","v":""},"n"]
["SUCMNOPROPORESRSK_CN","CMPR","Commercial property",null,{"$f":"_xlfn.XLOOKUP(F1659,'Raw Data'!$I$4:$I$5000,'Raw Data'!$D$4:$D$5000,\"*** Mnemonic not found ***\",0)","v":"*** Mnemonic not found ***"},"SUCMNOPROPORESRSK_CN_CMPR_",null,"Input",null,null,{"$f":"K1658+1","v":618},{"$f":"L1658","v":"G"},"Input!G618",{"$f":"_xlfn.XLOOKUP(F1659,'Raw Data'!$I$4:$I$5000,'Raw Data'!$E$4:$E$5000,100,0)","v":100},{"$f":"IF(N1659=0,_xlfn.XLOOKUP(F1659,'Raw Data'!$I$4:$I$5000,'Raw Data'!$H$4:$H$5000,\"\",0),\"\")","v":""},{"$f":"IF(INDIRECT(M1659) = \"\",\"\",INDIRECT(M1659))","v":""},"n"]
["SUCMNOPROPORESRSK_CN","HAIL","Hail",null,{"$f":"_xlfn.XLOOKUP(F1660,'Raw Data'!$I$4:$I$5000,'Raw Data'!$D$4:$D$5000,\"*** Mnemonic not found ***\",0)","v":"*** Mnemonic not found ***"},"SUCMNOPROPORESRSK_CN_HAIL_",null,"Input",null,null,619,"G","Input!G619",{"$f":"_xlfn.XLOOKUP(F1660,'Raw Data'!$I$4:$I$5000,'Raw Data'!$E$4:$E$5000,100,0)","v":100},{"$f":"IF(N1660=0,_xlfn.XLOOKUP(F1660,'Raw Data'!$I$4:$I$5000,'Raw Data'!$H$4:$H$5000,\"\",0),\"\")","v":""},{"$f":"IF(INDIRECT(M1660) = \"\",\"\",INDIRECT(M1660))","v":""},"n"]
["SUCMNOPROPORESRSK_CN","PPR","Personal property",null,{"$f":"_xlfn.XLOOKUP(F1661,'Raw Data'!$I$4:$I$5000,'Raw Data'!$D$4:$D$5000,\"*** Mnemonic not found ***\",0)","v":"*** Mnemonic not found ***"},"SUCMNOPROPORESRSK_CN_PPR_",null,"Input",null,null,620,"G","Input!G620",{"$f":"_xlfn.XLOOKUP(F1661,'Raw Data'!$I$4:$I$5000,'Raw Data'!$E$4:$E$5000,100,0)","v":100},{"$f":"IF(N1661=0,_xlfn.XLOOKUP(F1661,'Raw Data'!$I$4:$I$5000,'Raw Data'!$H$4:$H$5000,\"\",0),\"\")","v":""},{"$f":"IF(INDIRECT(M1661) = \"\",\"\",INDIRECT(M1661))","v":""},"n"]
["SUCMNOPROPORESRSK_CN","ALB","Auto - liability",null,{"$f":"_xlfn.XLOOKUP(F1662,'Raw Data'!$I$4:$I$5000,'Raw Data'!$D$4:$D$5000,\"*** Mnemonic not found ***\",0)","v":"*** Mnemonic not found ***"},"SUCMNOPROPORESRSK_CN_ALB_",null,"Input",null,null,621,"G","Input!G621",{"$f":"_xlfn.XLOOKUP(F1662,'Raw Data'!$I$4:$I$5000,'Raw Data'!$E$4:$E$5000,100,0)","v":100},{"$f":"IF(N1662=0,_xlfn.XLOOKUP(F1662,'Raw Data'!$I$4:$I$5000,'Raw Data'!$H$4:$H$5000,\"\",0),\"\")","v":""},{"$f":"IF(INDIRECT(M1662) = \"\",\"\",INDIRECT(M1662))","v":""},"n"]
["SUCMNOPROPORESRSK_CN","ATOTH","Auto - other",null,{"$f":"_xlfn.XLOOKUP(F1663,'Raw Data'!$I$4:$I$5000,'Raw Data'!$D$4:$D$5000,\"*** Mnemonic not found ***\",0)","v":"*** Mnemonic not found ***"},"SUCMNOPROPORESRSK_CN_ATOTH_",null,"Input",null,null,622,"G","Input!G622",{"$f":"_xlfn.XLOOKUP(F1663,'Raw Data'!$I$4:$I$5000,'Raw Data'!$E$4:$E$5000,100,0)","v":100},{"$f":"IF(N1663=0,_xlfn.XLOOKUP(F1663,'Raw Data'!$I$4:$I$5000,'Raw Data'!$H$4:$H$5000,\"\",0),\"\")","v":""},{"$f":"IF(INDIRECT(M1663) = \"\",\"\",INDIRECT(M1663))","v":""},"n"]
["SUCMNOPROPORESRSK_CN","ATPAC","Auto - personal accident",null,{"$f":"_xlfn.XLOOKUP(F1664,'Raw Data'!$I$4:$I$5000,'Raw Data'!$D$4:$D$5000,\"*** Mnemonic not found ***\",0)","v":"*** Mnemonic not found ***"},"SUCMNOPROPORESRSK_CN_ATPAC_",null,"Input",null,null,623,"G","Input!G623",{"$f":"_xlfn.XLOOKUP(F1664,'Raw Data'!$I$4:$I$5000,'Raw Data'!$E$4:$E$5000,100,0)","v":100},{"$f":"IF(N1664=0,_xlfn.XLOOKUP(F1664,'Raw Data'!$I$4:$I$5000,'Raw Data'!$H$4:$H$5000,\"\",0),\"\")","v":""},{"$f":"IF(INDIRECT(M1664) = \"\",\"\",INDIRECT(M1664))","v":""},"n"]
["SUCMNOPROPORESRSK_CN","CRD","Credit",null,{"$f":"_xlfn.XLOOKUP(F1665,'Raw Data'!$I$4:$I$5000,'Raw Data'!$D$4:$D$5000,\"*** Mnemonic not found ***\",0)","v":"*** Mnemonic not found ***"},"SUCMNOPROPORESRSK_CN_CRD_",null,"Input",null,null,624,"G","Input!G624",{"$f":"_xlfn.XLOOKUP(F1665,'Raw Data'!$I$4:$I$5000,'Raw Data'!$E$4:$E$5000,100,0)","v":100},{"$f":"IF(N1665=0,_xlfn.XLOOKUP(F1665,'Raw Data'!$I$4:$I$5000,'Raw Data'!$H$4:$H$5000,\"\",0),\"\")","v":""},{"$f":"IF(INDIRECT(M1665) = \"\",\"\",INDIRECT(M1665))","v":""},"n"]
["SUCMNOPROPORESRSK_CN","CRPR","Credit protection",null,{"$f":"_xlfn.XLOOKUP(F1666,'Raw Data'!$I$4:$I$5000,'Raw Data'!$D$4:$D$5000,\"*** Mnemonic not found ***\",0)","v":"*** Mnemonic not found ***"},"SUCMNOPROPORESRSK_CN_CRPR_",null,"Input",null,null,625,"G","Input!G625",{"$f":"_xlfn.XLOOKUP(F1666,'Raw Data'!$I$4:$I$5000,'Raw Data'!$E$4:$E$5000,100,0)","v":100},{"$f":"IF(N1666=0,_xlfn.XLOOKUP(F1666,'Raw Data'!$I$4:$I$5000,'Raw Data'!$H$4:$H$5000,\"\",0),\"\")","v":""},{"$f":"IF(INDIRECT(M1666) = \"\",\"\",INDIRECT(M1666))","v":""},"n"]
["SUCMNOPROPORESRSK_CN","FID","Fidelity",null,{"$f":"_xlfn.XLOOKUP(F1667,'Raw Data'!$I$4:$I$5000,'Raw Data'!$D$4:$D$5000,\"*** Mnemonic not found ***\",0)","v":"*** Mnemonic not found ***"},"SUCMNOPROPORESRSK_CN_FID_",null,"Input",null,null,626,"G","Input!G626",{"$f":"_xlfn.XLOOKUP(F1667,'Raw Data'!$I$4:$I$5000,'Raw Data'!$E$4:$E$5000,100,0)","v":100},{"$f":"IF(N1667=0,_xlfn.XLOOKUP(F1667,'Raw Data'!$I$4:$I$5000,'Raw Data'!$H$4:$H$5000,\"\",0),\"\")","v":""},{"$f":"IF(INDIRECT(M1667) = \"\",\"\",INDIRECT(M1667))","v":""},"n"]
["SUCMNOPROPORESRSK_CN","SUR","Surety",null,{"$f":"_xlfn.XLOOKUP(F1668,'Raw Data'!$I$4:$I$5000,'Raw Data'!$D$4:$D$5000,\"*** Mnemonic not found ***\",0)","v":"*** Mnemonic not found ***"},"SUCMNOPROPORESRSK_CN_SUR_",null,"Input",null,null,627,"G","Input!G627",{"$f":"_xlfn.XLOOKUP(F1668,'Raw Data'!$I$4:$I$5000,'Raw Data'!$E$4:$E$5000,100,0)","v":100},{"$f":"IF(N1668=0,_xlfn.XLOOKUP(F1668,'Raw Data'!$I$4:$I$5000,'Raw Data'!$H$4:$H$5000,\"\",0),\"\")","v":""},{"$f":"IF(INDIRECT(M1668) = \"\",\"\",INDIRECT(M1668))","v":""},"n"]
["SUCMNOPROPORESRSK_CN","ACSK","Accident & sickness (excluding supplementary health, disability income)",null,{"$f":"_xlfn.XLOOKUP(F1669,'Raw Data'!$I$4:$I$5000,'Raw Data'!$D$4:$D$5000,\"*** Mnemonic not found ***\",0)","v":"*** Mnemonic not found ***"},"SUCMNOPROPORESRSK_CN_ACSK_",null,"Input",null,null,628,"G","Input!G628",{"$f":"_xlfn.XLOOKUP(F1669,'Raw Data'!$I$4:$I$5000,'Raw Data'!$E$4:$E$5000,100,0)","v":100},{"$f":"IF(N1669=0,_xlfn.XLOOKUP(F1669,'Raw Data'!$I$4:$I$5000,'Raw Data'!$H$4:$H$5000,\"\",0),\"\")","v":""},{"$f":"IF(INDIRECT(M1669) = \"\",\"\",INDIRECT(M1669))","v":""},"n"]
["SUCMNOPROPORESRSK_CN","SUPH","Supplementary health",null,{"$f":"_xlfn.XLOOKUP(F1670,'Raw Data'!$I$4:$I$5000,'Raw Data'!$D$4:$D$5000,\"*** Mnemonic not found ***\",0)","v":"*** Mnemonic not found ***"},"SUCMNOPROPORESRSK_CN_SUPH_",null,"Input",null,null,629,"G",{"$f":"CONCATENATE(H1670,\"!\",L1670,K1670)","v":"Input!G629"},{"$f":"_xlfn.XLOOKUP(F1670,'Raw Data'!$I$4:$I$5000,'Raw Data'!$E$4:$E$5000,100,0)","v":100},{"$f":"IF(N1670=0,_xlfn.XLOOKUP(F1670,'Raw Data'!$I$4:$I$5000,'Raw Data'!$H$4:$H$5000,\"\",0),\"\")","v":""},{"$f":"IF(INDIRECT(M1670) = \"\",\"\",INDIRECT(M1670))","v":""},"n"]
["SUCMNOPROPORESRSK_CN","AIR","Aircraft",null,{"$f":"_xlfn.XLOOKUP(F1671,'Raw Data'!$I$4:$I$5000,'Raw Data'!$D$4:$D$5000,\"*** Mnemonic not found ***\",0)","v":"*** Mnemonic not found ***"},{"$f":"CONCATENATE(A1671,\"_\",B1671,\"_\",D1671)","v":"SUCMNOPROPORESRSK_CN_AIR_"},null,"Input",null,null,630,"G","Input!G630",{"$f":"_xlfn.XLOOKUP(F1671,'Raw Data'!$I$4:$I$5000,'Raw Data'!$E$4:$E$5000,100,0)","v":100},{"$f":"IF(N1671=0,_xlfn.XLOOKUP(F1671,'Raw Data'!$I$4:$I$5000,'Raw Data'!$H$4:$H$5000,\"\",0),\"\")","v":""},{"$f":"IF(INDIRECT(M1671) = \"\",\"\",INDIRECT(M1671))","v":""},"n"]
["SUCMNOPROPORESRSK_CN","OCM","Marine",null,{"$f":"_xlfn.XLOOKUP(F1672,'Raw Data'!$I$4:$I$5000,'Raw Data'!$D$4:$D$5000,\"*** Mnemonic not found ***\",0)","v":"*** Mnemonic not found ***"},"SUCMNOPROPORESRSK_CN_OCM_",null,"Input",null,null,631,"G","Input!G631",{"$f":"_xlfn.XLOOKUP(F1672,'Raw Data'!$I$4:$I$5000,'Raw Data'!$E$4:$E$5000,100,0)","v":100},{"$f":"IF(N1672=0,_xlfn.XLOOKUP(F1672,'Raw Data'!$I$4:$I$5000,'Raw Data'!$H$4:$H$5000,\"\",0),\"\")","v":""},{"$f":"IF(INDIRECT(M1672) = \"\",\"\",INDIRECT(M1672))","v":""},"n"]
["SUCMNOPROPORESRSK_CN","MPIN","Marine protection & indemnity",null,{"$f":"_xlfn.XLOOKUP(F1673,'Raw Data'!$I$4:$I$5000,'Raw Data'!$D$4:$D$5000,\"*** Mnemonic not found ***\",0)","v":"*** Mnemonic not found ***"},"SUCMNOPROPORESRSK_CN_MPIN_",null,"Input",null,null,632,"G","Input!G632",{"$f":"_xlfn.XLOOKUP(F1673,'Raw Data'!$I$4:$I$5000,'Raw Data'!$E$4:$E$5000,100,0)","v":100},{"$f":"IF(N1673=0,_xlfn.XLOOKUP(F1673,'Raw Data'!$I$4:$I$5000,'Raw Data'!$H$4:$H$5000,\"\",0),\"\")","v":""},{"$f":"IF(INDIRECT(M1673) = \"\",\"\",INDIRECT(M1673))","v":""},"n"]
["SUCMNOPROPORESRSK_CN","MAVT","Marine, aviation, and transport",null,{"$f":"_xlfn.XLOOKUP(F1674,'Raw Data'!$I$4:$I$5000,'Raw Data'!$D$4:$D$5000,\"*** Mnemonic not found ***\",0)","v":"*** Mnemonic not found ***"},"SUCMNOPROPORESRSK_CN_MAVT_",null,"Input",null,null,633,"G","Input!G633",{"$f":"_xlfn.XLOOKUP(F1674,'Raw Data'!$I$4:$I$5000,'Raw Data'!$E$4:$E$5000,100,0)","v":100},{"$f":"IF(N1674=0,_xlfn.XLOOKUP(F1674,'Raw Data'!$I$4:$I$5000,'Raw Data'!$H$4:$H$5000,\"\",0),\"\")","v":""},{"$f":"IF(INDIRECT(M1674) = \"\",\"\",INDIRECT(M1674))","v":""},"n"]
["SUCMNOPROPORESRSK_CN","OAPR","Other approved products",null,{"$f":"_xlfn.XLOOKUP(F1675,'Raw Data'!$I$4:$I$5000,'Raw Data'!$D$4:$D$5000,\"*** Mnemonic not found ***\",0)","v":"*** Mnemonic not found ***"},"SUCMNOPROPORESRSK_CN_OAPR_",null,"Input",null,null,634,"G","Input!G634",{"$f":"_xlfn.XLOOKUP(F1675,'Raw Data'!$I$4:$I$5000,'Raw Data'!$E$4:$E$5000,100,0)","v":100},{"$f":"IF(N1675=0,_xlfn.XLOOKUP(F1675,'Raw Data'!$I$4:$I$5000,'Raw Data'!$H$4:$H$5000,\"\",0),\"\")","v":""},{"$f":"IF(INDIRECT(M1675) = \"\",\"\",INDIRECT(M1675))","v":""},"n"]
["SUCMNOPROPORESRSK_CN","TITLE","Title",null,{"$f":"_xlfn.XLOOKUP(F1676,'Raw Data'!$I$4:$I$5000,'Raw Data'!$D$4:$D$5000,\"*** Mnemonic not found ***\",0)","v":"*** Mnemonic not found ***"},"SUCMNOPROPORESRSK_CN_TITLE_",null,"Input",null,null,635,"G","Input!G635",{"$f":"_xlfn.XLOOKUP(F1676,'Raw Data'!$I$4:$I$5000,'Raw Data'!$E$4:$E$5000,100,0)","v":100},{"$f":"IF(N1676=0,_xlfn.XLOOKUP(F1676,'Raw Data'!$I$4:$I$5000,'Raw Data'!$H$4:$H$5000,\"\",0),\"\")","v":""},{"$f":"IF(INDIRECT(M1676) = \"\",\"\",INDIRECT(M1676))","v":""},"n"]
["SUCMNOPROPORESRSK_CN","WAR","Warranty",null,{"$f":"_xlfn.XLOOKUP(F1677,'Raw Data'!$I$4:$I$5000,'Raw Data'!$D$4:$D$5000,\"*** Mnemonic not found ***\",0)","v":"*** Mnemonic not found ***"},"SUCMNOPROPORESRSK_CN_WAR_",null,"Input",null,null,636,"G","Input!G636",{"$f":"_xlfn.XLOOKUP(F1677,'Raw Data'!$I$4:$I$5000,'Raw Data'!$E$4:$E$5000,100,0)","v":100},{"$f":"IF(N1677=0,_xlfn.XLOOKUP(F1677,'Raw Data'!$I$4:$I$5000,'Raw Data'!$H$4:$H$5000,\"\",0),\"\")","v":""},{"$f":"IF(INDIRECT(M1677) = \"\",\"\",INDIRECT(M1677))","v":""},"n"]
["SUCMNOPROPORESRSK_CN","OCAH","Other",null,{"$f":"_xlfn.XLOOKUP(F1678,'Raw Data'!$I$4:$I$5000,'Raw Data'!$D$4:$D$5000,\"*** Mnemonic not found ***\",0)","v":"*** Mnemonic not found ***"},"SUCMNOPROPORESRSK_CN_OCAH_",null,"Input",null,null,637,"G","Input!G637",{"$f":"_xlfn.XLOOKUP(F1678,'Raw Data'!$I$4:$I$5000,'Raw Data'!$E$4:$E$5000,100,0)","v":100},{"$f":"IF(N1678=0,_xlfn.XLOOKUP(F1678,'Raw Data'!$I$4:$I$5000,'Raw Data'!$H$4:$H$5000,\"\",0),\"\")","v":""},{"$f":"IF(INDIRECT(M1678) = \"\",\"\",INDIRECT(M1678))","v":""},"n"]
["SUCMPROPORESRSK_AP","EMLIB","Employers liability",null,{"$f":"_xlfn.XLOOKUP(F1679,'Raw Data'!$I$4:$I$5000,'Raw Data'!$D$4:$D$5000,\"*** Mnemonic not found ***\",0)","v":"*** Mnemonic not found ***"},"SUCMPROPORESRSK_AP_EMLIB_","Non-life reserve - Asia Pacific","Input",{"$f":"ROW(section_non_life_resv)","v":571},68,{"$f":"I1679+J1679","v":639},"F",{"$f":"CONCATENATE(H1679,\"!\",L1679,K1679)","v":"Input!F639"},{"$f":"_xlfn.XLOOKUP(F1679,'Raw Data'!$I$4:$I$5000,'Raw Data'!$E$4:$E$5000,100,0)","v":100},{"$f":"IF(N1679=0,_xlfn.XLOOKUP(F1679,'Raw Data'!$I$4:$I$5000,'Raw Data'!$H$4:$H$5000,\"\",0),\"\")","v":""},{"$f":"IF(INDIRECT(M1679) = \"\",\"\",INDIRECT(M1679))","v":""},"n"]
["SUCMPROPORESRSK_AP","LIA","General liability",null,{"$f":"_xlfn.XLOOKUP(F1680,'Raw Data'!$I$4:$I$5000,'Raw Data'!$D$4:$D$5000,\"*** Mnemonic not found ***\",0)","v":"*** Mnemonic not found ***"},"SUCMPROPORESRSK_AP_LIA_",null,"Input",null,null,{"$f":"K1679+1","v":640},{"$f":"L1679","v":"F"},"Input!F640",{"$f":"_xlfn.XLOOKUP(F1680,'Raw Data'!$I$4:$I$5000,'Raw Data'!$E$4:$E$5000,100,0)","v":100},{"$f":"IF(N1680=0,_xlfn.XLOOKUP(F1680,'Raw Data'!$I$4:$I$5000,'Raw Data'!$H$4:$H$5000,\"\",0),\"\")","v":""},{"$f":"IF(INDIRECT(M1680) = \"\",\"\",INDIRECT(M1680))","v":""},"n"]
["SUCMPROPORESRSK_AP","PRIND","Professional indemnity",null,{"$f":"_xlfn.XLOOKUP(F1681,'Raw Data'!$I$4:$I$5000,'Raw Data'!$D$4:$D$5000,\"*** Mnemonic not found ***\",0)","v":"*** Mnemonic not found ***"},"SUCMPROPORESRSK_AP_PRIND_",null,"Input",null,null,{"$f":"K1680+1","v":641},{"$f":"L1680","v":"F"},{"$f":"CONCATENATE(H1681,\"!\",L1681,K1681)","v":"Input!F641"},{"$f":"_xlfn.XLOOKUP(F1681,'Raw Data'!$I$4:$I$5000,'Raw Data'!$E$4:$E$5000,100,0)","v":100},{"$f":"IF(N1681=0,_xlfn.XLOOKUP(F1681,'Raw Data'!$I$4:$I$5000,'Raw Data'!$H$4:$H$5000,\"\",0),\"\")","v":""},{"$f":"IF(INDIRECT(M1681) = \"\",\"\",INDIRECT(M1681))","v":""},"n"]
["SUCMPROPORESRSK_AP","PAPL","Public and product liability",null,{"$f":"_xlfn.XLOOKUP(F1682,'Raw Data'!$I$4:$I$5000,'Raw Data'!$D$4:$D$5000,\"*** Mnemonic not found ***\",0)","v":"*** Mnemonic not found ***"},"SUCMPROPORESRSK_AP_PAPL_",null,"Input",null,null,642,"F","Input!F642",{"$f":"_xlfn.XLOOKUP(F1682,'Raw Data'!$I$4:$I$5000,'Raw Data'!$E$4:$E$5000,100,0)","v":100},{"$f":"IF(N1682=0,_xlfn.XLOOKUP(F1682,'Raw Data'!$I$4:$I$5000,'Raw Data'!$H$4:$H$5000,\"\",0),\"\")","v":""},{"$f":"IF(INDIRECT(M1682) = \"\",\"\",INDIRECT(M1682))","v":""},"n"]
["SUCMPROPORESRSK_AP","CMPR","Commercial property",null,{"$f":"_xlfn.XLOOKUP(F1683,'Raw Data'!$I$4:$I$5000,'Raw Data'!$D$4:$D$5000,\"*** Mnemonic not found ***\",0)","v":"*** Mnemonic not found ***"},"SUCMPROPORESRSK_AP_CMPR_",null,"Input",null,null,643,"F","Input!F643",{"$f":"_xlfn.XLOOKUP(F1683,'Raw Data'!$I$4:$I$5000,'Raw Data'!$E$4:$E$5000,100,0)","v":100},{"$f":"IF(N1683=0,_xlfn.XLOOKUP(F1683,'Raw Data'!$I$4:$I$5000,'Raw Data'!$H$4:$H$5000,\"\",0),\"\")","v":""},{"$f":"IF(INDIRECT(M1683) = \"\",\"\",INDIRECT(M1683))","v":""},"n"]
["SUCMPROPORESRSK_AP","HMP","Domestic property",null,{"$f":"_xlfn.XLOOKUP(F1684,'Raw Data'!$I$4:$I$5000,'Raw Data'!$D$4:$D$5000,\"*** Mnemonic not found ***\",0)","v":"*** Mnemonic not found ***"},"SUCMPROPORESRSK_AP_HMP_",null,"Input",null,null,644,"F","Input!F644",{"$f":"_xlfn.XLOOKUP(F1684,'Raw Data'!$I$4:$I$5000,'Raw Data'!$E$4:$E$5000,100,0)","v":100},{"$f":"IF(N1684=0,_xlfn.XLOOKUP(F1684,'Raw Data'!$I$4:$I$5000,'Raw Data'!$H$4:$H$5000,\"\",0),\"\")","v":""},{"$f":"IF(INDIRECT(M1684) = \"\",\"\",INDIRECT(M1684))","v":""},"n"]
["SUCMPROPORESRSK_AP","ENG","Engineering",null,{"$f":"_xlfn.XLOOKUP(F1685,'Raw Data'!$I$4:$I$5000,'Raw Data'!$D$4:$D$5000,\"*** Mnemonic not found ***\",0)","v":"*** Mnemonic not found ***"},"SUCMPROPORESRSK_AP_ENG_",null,"Input",null,null,645,"F","Input!F645",{"$f":"_xlfn.XLOOKUP(F1685,'Raw Data'!$I$4:$I$5000,'Raw Data'!$E$4:$E$5000,100,0)","v":100},{"$f":"IF(N1685=0,_xlfn.XLOOKUP(F1685,'Raw Data'!$I$4:$I$5000,'Raw Data'!$H$4:$H$5000,\"\",0),\"\")","v":""},{"$f":"IF(INDIRECT(M1685) = \"\",\"\",INDIRECT(M1685))","v":""},"n"]
["SUCMPROPORESRSK_AP","CALANZ","Commercial motor - Australia and New Zealand",null,{"$f":"_xlfn.XLOOKUP(F1686,'Raw Data'!$I$4:$I$5000,'Raw Data'!$D$4:$D$5000,\"*** Mnemonic not found ***\",0)","v":"*** Mnemonic not found ***"},"SUCMPROPORESRSK_AP_CALANZ_",null,"Input",null,null,646,"F","Input!F646",{"$f":"_xlfn.XLOOKUP(F1686,'Raw Data'!$I$4:$I$5000,'Raw Data'!$E$4:$E$5000,100,0)","v":100},{"$f":"IF(N1686=0,_xlfn.XLOOKUP(F1686,'Raw Data'!$I$4:$I$5000,'Raw Data'!$H$4:$H$5000,\"\",0),\"\")","v":""},{"$f":"IF(INDIRECT(M1686) = \"\",\"\",INDIRECT(M1686))","v":""},"n"]
["SUCMPROPORESRSK_AP","PALANZ","Domestic motor - Australia and New Zealand",null,{"$f":"_xlfn.XLOOKUP(F1687,'Raw Data'!$I$4:$I$5000,'Raw Data'!$D$4:$D$5000,\"*** Mnemonic not found ***\",0)","v":"*** Mnemonic not found ***"},"SUCMPROPORESRSK_AP_PALANZ_",null,"Input",null,null,647,"F","Input!F647",{"$f":"_xlfn.XLOOKUP(F1687,'Raw Data'!$I$4:$I$5000,'Raw Data'!$E$4:$E$5000,100,0)","v":100},{"$f":"IF(N1687=0,_xlfn.XLOOKUP(F1687,'Raw Data'!$I$4:$I$5000,'Raw Data'!$H$4:$H$5000,\"\",0),\"\")","v":""},{"$f":"IF(INDIRECT(M1687) = \"\",\"\",INDIRECT(M1687))","v":""},"n"]
["SUCMPROPORESRSK_AP","ALB","Motor - all inclusive",null,{"$f":"_xlfn.XLOOKUP(F1688,'Raw Data'!$I$4:$I$5000,'Raw Data'!$D$4:$D$5000,\"*** Mnemonic not found ***\",0)","v":"*** Mnemonic not found ***"},"SUCMPROPORESRSK_AP_ALB_",null,"Input",null,null,648,"F","Input!F648",{"$f":"_xlfn.XLOOKUP(F1688,'Raw Data'!$I$4:$I$5000,'Raw Data'!$E$4:$E$5000,100,0)","v":100},{"$f":"IF(N1688=0,_xlfn.XLOOKUP(F1688,'Raw Data'!$I$4:$I$5000,'Raw Data'!$H$4:$H$5000,\"\",0),\"\")","v":""},{"$f":"IF(INDIRECT(M1688) = \"\",\"\",INDIRECT(M1688))","v":""},"n"]
["SUCMPROPORESRSK_AP","AJPTW","Motor - Japan and Taiwan",null,{"$f":"_xlfn.XLOOKUP(F1689,'Raw Data'!$I$4:$I$5000,'Raw Data'!$D$4:$D$5000,\"*** Mnemonic not found ***\",0)","v":"*** Mnemonic not found ***"},"SUCMPROPORESRSK_AP_AJPTW_",null,"Input",null,null,649,"F","Input!F649",{"$f":"_xlfn.XLOOKUP(F1689,'Raw Data'!$I$4:$I$5000,'Raw Data'!$E$4:$E$5000,100,0)","v":100},{"$f":"IF(N1689=0,_xlfn.XLOOKUP(F1689,'Raw Data'!$I$4:$I$5000,'Raw Data'!$H$4:$H$5000,\"\",0),\"\")","v":""},{"$f":"IF(INDIRECT(M1689) = \"\",\"\",INDIRECT(M1689))","v":""},"n"]
["SUCMPROPORESRSK_AP","TPLM","Third party liability motor",null,{"$f":"_xlfn.XLOOKUP(F1690,'Raw Data'!$I$4:$I$5000,'Raw Data'!$D$4:$D$5000,\"*** Mnemonic not found ***\",0)","v":"*** Mnemonic not found ***"},"SUCMPROPORESRSK_AP_TPLM_",null,"Input",null,null,650,"F","Input!F650",{"$f":"_xlfn.XLOOKUP(F1690,'Raw Data'!$I$4:$I$5000,'Raw Data'!$E$4:$E$5000,100,0)","v":100},{"$f":"IF(N1690=0,_xlfn.XLOOKUP(F1690,'Raw Data'!$I$4:$I$5000,'Raw Data'!$H$4:$H$5000,\"\",0),\"\")","v":""},{"$f":"IF(INDIRECT(M1690) = \"\",\"\",INDIRECT(M1690))","v":""},"n"]
["SUCMPROPORESRSK_AP","CONCR","Consumer credit",null,{"$f":"_xlfn.XLOOKUP(F1691,'Raw Data'!$I$4:$I$5000,'Raw Data'!$D$4:$D$5000,\"*** Mnemonic not found ***\",0)","v":"*** Mnemonic not found ***"},"SUCMPROPORESRSK_AP_CONCR_",null,"Input",null,null,651,"F","Input!F651",{"$f":"_xlfn.XLOOKUP(F1691,'Raw Data'!$I$4:$I$5000,'Raw Data'!$E$4:$E$5000,100,0)","v":100},{"$f":"IF(N1691=0,_xlfn.XLOOKUP(F1691,'Raw Data'!$I$4:$I$5000,'Raw Data'!$H$4:$H$5000,\"\",0),\"\")","v":""},{"$f":"IF(INDIRECT(M1691) = \"\",\"\",INDIRECT(M1691))","v":""},"n"]
["SUCMPROPORESRSK_AP","CRD","Credit",null,{"$f":"_xlfn.XLOOKUP(F1692,'Raw Data'!$I$4:$I$5000,'Raw Data'!$D$4:$D$5000,\"*** Mnemonic not found ***\",0)","v":"*** Mnemonic not found ***"},"SUCMPROPORESRSK_AP_CRD_",null,"Input",null,null,652,"F","Input!F652",{"$f":"_xlfn.XLOOKUP(F1692,'Raw Data'!$I$4:$I$5000,'Raw Data'!$E$4:$E$5000,100,0)","v":100},{"$f":"IF(N1692=0,_xlfn.XLOOKUP(F1692,'Raw Data'!$I$4:$I$5000,'Raw Data'!$H$4:$H$5000,\"\",0),\"\")","v":""},{"$f":"IF(INDIRECT(M1692) = \"\",\"\",INDIRECT(M1692))","v":""},"n"]
["SUCMPROPORESRSK_AP","AAH","Accident and health",null,{"$f":"_xlfn.XLOOKUP(F1693,'Raw Data'!$I$4:$I$5000,'Raw Data'!$D$4:$D$5000,\"*** Mnemonic not found ***\",0)","v":"*** Mnemonic not found ***"},"SUCMPROPORESRSK_AP_AAH_",null,"Input",null,null,653,"F","Input!F653",{"$f":"_xlfn.XLOOKUP(F1693,'Raw Data'!$I$4:$I$5000,'Raw Data'!$E$4:$E$5000,100,0)","v":100},{"$f":"IF(N1693=0,_xlfn.XLOOKUP(F1693,'Raw Data'!$I$4:$I$5000,'Raw Data'!$H$4:$H$5000,\"\",0),\"\")","v":""},{"$f":"IF(INDIRECT(M1693) = \"\",\"\",INDIRECT(M1693))","v":""},"n"]
["SUCMPROPORESRSK_AP","HLTH","Health",null,{"$f":"_xlfn.XLOOKUP(F1694,'Raw Data'!$I$4:$I$5000,'Raw Data'!$D$4:$D$5000,\"*** Mnemonic not found ***\",0)","v":"*** Mnemonic not found ***"},"SUCMPROPORESRSK_AP_HLTH_",null,"Input",null,null,654,"F","Input!F654",{"$f":"_xlfn.XLOOKUP(F1694,'Raw Data'!$I$4:$I$5000,'Raw Data'!$E$4:$E$5000,100,0)","v":100},{"$f":"IF(N1694=0,_xlfn.XLOOKUP(F1694,'Raw Data'!$I$4:$I$5000,'Raw Data'!$H$4:$H$5000,\"\",0),\"\")","v":""},{"$f":"IF(INDIRECT(M1694) = \"\",\"\",INDIRECT(M1694))","v":""},"n"]
["SUCMPROPORESRSK_AP","MAVC","Marine, aviation - cargo",null,{"$f":"_xlfn.XLOOKUP(F1695,'Raw Data'!$I$4:$I$5000,'Raw Data'!$D$4:$D$5000,\"*** Mnemonic not found ***\",0)","v":"*** Mnemonic not found ***"},"SUCMPROPORESRSK_AP_MAVC_",null,"Input",null,null,655,"F","Input!F655",{"$f":"_xlfn.XLOOKUP(F1695,'Raw Data'!$I$4:$I$5000,'Raw Data'!$E$4:$E$5000,100,0)","v":100},{"$f":"IF(N1695=0,_xlfn.XLOOKUP(F1695,'Raw Data'!$I$4:$I$5000,'Raw Data'!$H$4:$H$5000,\"\",0),\"\")","v":""},{"$f":"IF(INDIRECT(M1695) = \"\",\"\",INDIRECT(M1695))","v":""},"n"]
["SUCMPROPORESRSK_AP","MAVH","Marine, aviation - hull",null,{"$f":"_xlfn.XLOOKUP(F1696,'Raw Data'!$I$4:$I$5000,'Raw Data'!$D$4:$D$5000,\"*** Mnemonic not found ***\",0)","v":"*** Mnemonic not found ***"},"SUCMPROPORESRSK_AP_MAVH_",null,"Input",null,null,656,"F","Input!F656",{"$f":"_xlfn.XLOOKUP(F1696,'Raw Data'!$I$4:$I$5000,'Raw Data'!$E$4:$E$5000,100,0)","v":100},{"$f":"IF(N1696=0,_xlfn.XLOOKUP(F1696,'Raw Data'!$I$4:$I$5000,'Raw Data'!$H$4:$H$5000,\"\",0),\"\")","v":""},{"$f":"IF(INDIRECT(M1696) = \"\",\"\",INDIRECT(M1696))","v":""},"n"]
["SUCMPROPORESRSK_AP","MPIN","Marine protection & indemnity",null,{"$f":"_xlfn.XLOOKUP(F1697,'Raw Data'!$I$4:$I$5000,'Raw Data'!$D$4:$D$5000,\"*** Mnemonic not found ***\",0)","v":"*** Mnemonic not found ***"},"SUCMPROPORESRSK_AP_MPIN_",null,"Input",null,null,657,"F","Input!F657",{"$f":"_xlfn.XLOOKUP(F1697,'Raw Data'!$I$4:$I$5000,'Raw Data'!$E$4:$E$5000,100,0)","v":100},{"$f":"IF(N1697=0,_xlfn.XLOOKUP(F1697,'Raw Data'!$I$4:$I$5000,'Raw Data'!$H$4:$H$5000,\"\",0),\"\")","v":""},{"$f":"IF(INDIRECT(M1697) = \"\",\"\",INDIRECT(M1697))","v":""},"n"]
["SUCMPROPORESRSK_AP","TRV","Travel",null,{"$f":"_xlfn.XLOOKUP(F1698,'Raw Data'!$I$4:$I$5000,'Raw Data'!$D$4:$D$5000,\"*** Mnemonic not found ***\",0)","v":"*** Mnemonic not found ***"},"SUCMPROPORESRSK_AP_TRV_",null,"Input",null,null,658,"F","Input!F658",{"$f":"_xlfn.XLOOKUP(F1698,'Raw Data'!$I$4:$I$5000,'Raw Data'!$E$4:$E$5000,100,0)","v":100},{"$f":"IF(N1698=0,_xlfn.XLOOKUP(F1698,'Raw Data'!$I$4:$I$5000,'Raw Data'!$H$4:$H$5000,\"\",0),\"\")","v":""},{"$f":"IF(INDIRECT(M1698) = \"\",\"\",INDIRECT(M1698))","v":""},"n"]
["SUCMPROPORESRSK_AP","OCAH","Other",null,{"$f":"_xlfn.XLOOKUP(F1699,'Raw Data'!$I$4:$I$5000,'Raw Data'!$D$4:$D$5000,\"*** Mnemonic not found ***\",0)","v":"*** Mnemonic not found ***"},"SUCMPROPORESRSK_AP_OCAH_",null,"Input",null,null,659,"F","Input!F659",{"$f":"_xlfn.XLOOKUP(F1699,'Raw Data'!$I$4:$I$5000,'Raw Data'!$E$4:$E$5000,100,0)","v":100},{"$f":"IF(N1699=0,_xlfn.XLOOKUP(F1699,'Raw Data'!$I$4:$I$5000,'Raw Data'!$H$4:$H$5000,\"\",0),\"\")","v":""},{"$f":"IF(INDIRECT(M1699) = \"\",\"\",INDIRECT(M1699))","v":""},"n"]
["SUCMNOPROPORESRSK_AP","EMLIB","Employers liability",null,{"$f":"_xlfn.XLOOKUP(F1700,'Raw Data'!$I$4:$I$5000,'Raw Data'!$D$4:$D$5000,\"*** Mnemonic not found ***\",0)","v":"*** Mnemonic not found ***"},"SUCMNOPROPORESRSK_AP_EMLIB_",null,"Input",{"$f":"ROW(section_non_life_resv)","v":571},{"$f":"J1679","v":68},{"$f":"I1700+J1700","v":639},"G","Input!G639",{"$f":"_xlfn.XLOOKUP(F1700,'Raw Data'!$I$4:$I$5000,'Raw Data'!$E$4:$E$5000,100,0)","v":100},{"$f":"IF(N1700=0,_xlfn.XLOOKUP(F1700,'Raw Data'!$I$4:$I$5000,'Raw Data'!$H$4:$H$5000,\"\",0),\"\")","v":""},{"$f":"IF(INDIRECT(M1700) = \"\",\"\",INDIRECT(M1700))","v":""},"n"]
["SUCMNOPROPORESRSK_AP","LIA","General liability",null,{"$f":"_xlfn.XLOOKUP(F1701,'Raw Data'!$I$4:$I$5000,'Raw Data'!$D$4:$D$5000,\"*** Mnemonic not found ***\",0)","v":"*** Mnemonic not found ***"},"SUCMNOPROPORESRSK_AP_LIA_",null,"Input",null,null,{"$f":"K1700+1","v":640},{"$f":"L1700","v":"G"},"Input!G640",{"$f":"_xlfn.XLOOKUP(F1701,'Raw Data'!$I$4:$I$5000,'Raw Data'!$E$4:$E$5000,100,0)","v":100},{"$f":"IF(N1701=0,_xlfn.XLOOKUP(F1701,'Raw Data'!$I$4:$I$5000,'Raw Data'!$H$4:$H$5000,\"\",0),\"\")","v":""},{"$f":"IF(INDIRECT(M1701) = \"\",\"\",INDIRECT(M1701))","v":""},"n"]
["SUCMNOPROPORESRSK_AP","PRIND","Professional indemnity",null,{"$f":"_xlfn.XLOOKUP(F1702,'Raw Data'!$I$4:$I$5000,'Raw Data'!$D$4:$D$5000,\"*** Mnemonic not found ***\",0)","v":"*** Mnemonic not found ***"},"SUCMNOPROPORESRSK_AP_PRIND_",null,"Input",null,null,{"$f":"K1701+1","v":641},{"$f":"L1701","v":"G"},{"$f":"CONCATENATE(H1702,\"!\",L1702,K1702)","v":"Input!G641"},{"$f":"_xlfn.XLOOKUP(F1702,'Raw Data'!$I$4:$I$5000,'Raw Data'!$E$4:$E$5000,100,0)","v":100},{"$f":"IF(N1702=0,_xlfn.XLOOKUP(F1702,'Raw Data'!$I$4:$I$5000,'Raw Data'!$H$4:$H$5000,\"\",0),\"\")","v":""},{"$f":"IF(INDIRECT(M1702) = \"\",\"\",INDIRECT(M1702))","v":""},"n"]
["SUCMNOPROPORESRSK_AP","PAPL","Public and product liability",null,{"$f":"_xlfn.XLOOKUP(F1703,'Raw Data'!$I$4:$I$5000,'Raw Data'!$D$4:$D$5000,\"*** Mnemonic not found ***\",0)","v":"*** Mnemonic not found ***"},"SUCMNOPROPORESRSK_AP_PAPL_",null,"Input",null,null,642,"G","Input!G642",{"$f":"_xlfn.XLOOKUP(F1703,'Raw Data'!$I$4:$I$5000,'Raw Data'!$E$4:$E$5000,100,0)","v":100},{"$f":"IF(N1703=0,_xlfn.XLOOKUP(F1703,'Raw Data'!$I$4:$I$5000,'Raw Data'!$H$4:$H$5000,\"\",0),\"\")","v":""},{"$f":"IF(INDIRECT(M1703) = \"\",\"\",INDIRECT(M1703))","v":""},"n"]
["SUCMNOPROPORESRSK_AP","CMPR","Commercial property",null,{"$f":"_xlfn.XLOOKUP(F1704,'Raw Data'!$I$4:$I$5000,'Raw Data'!$D$4:$D$5000,\"*** Mnemonic not found ***\",0)","v":"*** Mnemonic not found ***"},"SUCMNOPROPORESRSK_AP_CMPR_",null,"Input",null,null,643,"G","Input!G643",{"$f":"_xlfn.XLOOKUP(F1704,'Raw Data'!$I$4:$I$5000,'Raw Data'!$E$4:$E$5000,100,0)","v":100},{"$f":"IF(N1704=0,_xlfn.XLOOKUP(F1704,'Raw Data'!$I$4:$I$5000,'Raw Data'!$H$4:$H$5000,\"\",0),\"\")","v":""},{"$f":"IF(INDIRECT(M1704) = \"\",\"\",INDIRECT(M1704))","v":""},"n"]
["SUCMNOPROPORESRSK_AP","HMP","Domestic property",null,{"$f":"_xlfn.XLOOKUP(F1705,'Raw Data'!$I$4:$I$5000,'Raw Data'!$D$4:$D$5000,\"*** Mnemonic not found ***\",0)","v":"*** Mnemonic not found ***"},"SUCMNOPROPORESRSK_AP_HMP_",null,"Input",null,null,644,"G","Input!G644",{"$f":"_xlfn.XLOOKUP(F1705,'Raw Data'!$I$4:$I$5000,'Raw Data'!$E$4:$E$5000,100,0)","v":100},{"$f":"IF(N1705=0,_xlfn.XLOOKUP(F1705,'Raw Data'!$I$4:$I$5000,'Raw Data'!$H$4:$H$5000,\"\",0),\"\")","v":""},{"$f":"IF(INDIRECT(M1705) = \"\",\"\",INDIRECT(M1705))","v":""},"n"]
["SUCMNOPROPORESRSK_AP","ENG","Engineering",null,{"$f":"_xlfn.XLOOKUP(F1706,'Raw Data'!$I$4:$I$5000,'Raw Data'!$D$4:$D$5000,\"*** Mnemonic not found ***\",0)","v":"*** Mnemonic not found ***"},"SUCMNOPROPORESRSK_AP_ENG_",null,"Input",null,null,645,"G","Input!G645",{"$f":"_xlfn.XLOOKUP(F1706,'Raw Data'!$I$4:$I$5000,'Raw Data'!$E$4:$E$5000,100,0)","v":100},{"$f":"IF(N1706=0,_xlfn.XLOOKUP(F1706,'Raw Data'!$I$4:$I$5000,'Raw Data'!$H$4:$H$5000,\"\",0),\"\")","v":""},{"$f":"IF(INDIRECT(M1706) = \"\",\"\",INDIRECT(M1706))","v":""},"n"]
["SUCMNOPROPORESRSK_AP","CALANZ","Commercial motor - Australia and New Zealand",null,{"$f":"_xlfn.XLOOKUP(F1707,'Raw Data'!$I$4:$I$5000,'Raw Data'!$D$4:$D$5000,\"*** Mnemonic not found ***\",0)","v":"*** Mnemonic not found ***"},"SUCMNOPROPORESRSK_AP_CALANZ_",null,"Input",null,null,646,"G","Input!G646",{"$f":"_xlfn.XLOOKUP(F1707,'Raw Data'!$I$4:$I$5000,'Raw Data'!$E$4:$E$5000,100,0)","v":100},{"$f":"IF(N1707=0,_xlfn.XLOOKUP(F1707,'Raw Data'!$I$4:$I$5000,'Raw Data'!$H$4:$H$5000,\"\",0),\"\")","v":""},{"$f":"IF(INDIRECT(M1707) = \"\",\"\",INDIRECT(M1707))","v":""},"n"]
["SUCMNOPROPORESRSK_AP","PALANZ","Domestic motor - Australia and New Zealand",null,{"$f":"_xlfn.XLOOKUP(F1708,'Raw Data'!$I$4:$I$5000,'Raw Data'!$D$4:$D$5000,\"*** Mnemonic not found ***\",0)","v":"*** Mnemonic not found ***"},"SUCMNOPROPORESRSK_AP_PALANZ_",null,"Input",null,null,647,"G","Input!G647",{"$f":"_xlfn.XLOOKUP(F1708,'Raw Data'!$I$4:$I$5000,'Raw Data'!$E$4:$E$5000,100,0)","v":100},{"$f":"IF(N1708=0,_xlfn.XLOOKUP(F1708,'Raw Data'!$I$4:$I$5000,'Raw Data'!$H$4:$H$5000,\"\",0),\"\")","v":""},{"$f":"IF(INDIRECT(M1708) = \"\",\"\",INDIRECT(M1708))","v":""},"n"]
["SUCMNOPROPORESRSK_AP","ALB","Motor - all inclusive",null,{"$f":"_xlfn.XLOOKUP(F1709,'Raw Data'!$I$4:$I$5000,'Raw Data'!$D$4:$D$5000,\"*** Mnemonic not found ***\",0)","v":"*** Mnemonic not found ***"},"SUCMNOPROPORESRSK_AP_ALB_",null,"Input",null,null,648,"G","Input!G648",{"$f":"_xlfn.XLOOKUP(F1709,'Raw Data'!$I$4:$I$5000,'Raw Data'!$E$4:$E$5000,100,0)","v":100},{"$f":"IF(N1709=0,_xlfn.XLOOKUP(F1709,'Raw Data'!$I$4:$I$5000,'Raw Data'!$H$4:$H$5000,\"\",0),\"\")","v":""},{"$f":"IF(INDIRECT(M1709) = \"\",\"\",INDIRECT(M1709))","v":""},"n"]
["SUCMNOPROPORESRSK_AP","AJPTW","Motor - Japan and Taiwan",null,{"$f":"_xlfn.XLOOKUP(F1710,'Raw Data'!$I$4:$I$5000,'Raw Data'!$D$4:$D$5000,\"*** Mnemonic not found ***\",0)","v":"*** Mnemonic not found ***"},"SUCMNOPROPORESRSK_AP_AJPTW_",null,"Input",null,null,649,"G","Input!G649",{"$f":"_xlfn.XLOOKUP(F1710,'Raw Data'!$I$4:$I$5000,'Raw Data'!$E$4:$E$5000,100,0)","v":100},{"$f":"IF(N1710=0,_xlfn.XLOOKUP(F1710,'Raw Data'!$I$4:$I$5000,'Raw Data'!$H$4:$H$5000,\"\",0),\"\")","v":""},{"$f":"IF(INDIRECT(M1710) = \"\",\"\",INDIRECT(M1710))","v":""},"n"]
["SUCMNOPROPORESRSK_AP","TPLM","Third party liability motor",null,{"$f":"_xlfn.XLOOKUP(F1711,'Raw Data'!$I$4:$I$5000,'Raw Data'!$D$4:$D$5000,\"*** Mnemonic not found ***\",0)","v":"*** Mnemonic not found ***"},"SUCMNOPROPORESRSK_AP_TPLM_",null,"Input",null,null,650,"G","Input!G650",{"$f":"_xlfn.XLOOKUP(F1711,'Raw Data'!$I$4:$I$5000,'Raw Data'!$E$4:$E$5000,100,0)","v":100},{"$f":"IF(N1711=0,_xlfn.XLOOKUP(F1711,'Raw Data'!$I$4:$I$5000,'Raw Data'!$H$4:$H$5000,\"\",0),\"\")","v":""},{"$f":"IF(INDIRECT(M1711) = \"\",\"\",INDIRECT(M1711))","v":""},"n"]
["SUCMNOPROPORESRSK_AP","CONCR","Consumer credit",null,{"$f":"_xlfn.XLOOKUP(F1712,'Raw Data'!$I$4:$I$5000,'Raw Data'!$D$4:$D$5000,\"*** Mnemonic not found ***\",0)","v":"*** Mnemonic not found ***"},"SUCMNOPROPORESRSK_AP_CONCR_",null,"Input",null,null,651,"G","Input!G651",{"$f":"_xlfn.XLOOKUP(F1712,'Raw Data'!$I$4:$I$5000,'Raw Data'!$E$4:$E$5000,100,0)","v":100},{"$f":"IF(N1712=0,_xlfn.XLOOKUP(F1712,'Raw Data'!$I$4:$I$5000,'Raw Data'!$H$4:$H$5000,\"\",0),\"\")","v":""},{"$f":"IF(INDIRECT(M1712) = \"\",\"\",INDIRECT(M1712))","v":""},"n"]
["SUCMNOPROPORESRSK_AP","CRD","Credit",null,{"$f":"_xlfn.XLOOKUP(F1713,'Raw Data'!$I$4:$I$5000,'Raw Data'!$D$4:$D$5000,\"*** Mnemonic not found ***\",0)","v":"*** Mnemonic not found ***"},"SUCMNOPROPORESRSK_AP_CRD_",null,"Input",null,null,652,"G","Input!G652",{"$f":"_xlfn.XLOOKUP(F1713,'Raw Data'!$I$4:$I$5000,'Raw Data'!$E$4:$E$5000,100,0)","v":100},{"$f":"IF(N1713=0,_xlfn.XLOOKUP(F1713,'Raw Data'!$I$4:$I$5000,'Raw Data'!$H$4:$H$5000,\"\",0),\"\")","v":""},{"$f":"IF(INDIRECT(M1713) = \"\",\"\",INDIRECT(M1713))","v":""},"n"]
["SUCMNOPROPORESRSK_AP","AAH","Accident and health",null,{"$f":"_xlfn.XLOOKUP(F1714,'Raw Data'!$I$4:$I$5000,'Raw Data'!$D$4:$D$5000,\"*** Mnemonic not found ***\",0)","v":"*** Mnemonic not found ***"},"SUCMNOPROPORESRSK_AP_AAH_",null,"Input",null,null,653,"G","Input!G653",{"$f":"_xlfn.XLOOKUP(F1714,'Raw Data'!$I$4:$I$5000,'Raw Data'!$E$4:$E$5000,100,0)","v":100},{"$f":"IF(N1714=0,_xlfn.XLOOKUP(F1714,'Raw Data'!$I$4:$I$5000,'Raw Data'!$H$4:$H$5000,\"\",0),\"\")","v":""},{"$f":"IF(INDIRECT(M1714) = \"\",\"\",INDIRECT(M1714))","v":""},"n"]
["SUCMNOPROPORESRSK_AP","HLTH","Health",null,{"$f":"_xlfn.XLOOKUP(F1715,'Raw Data'!$I$4:$I$5000,'Raw Data'!$D$4:$D$5000,\"*** Mnemonic not found ***\",0)","v":"*** Mnemonic not found ***"},"SUCMNOPROPORESRSK_AP_HLTH_",null,"Input",null,null,654,"G","Input!G654",{"$f":"_xlfn.XLOOKUP(F1715,'Raw Data'!$I$4:$I$5000,'Raw Data'!$E$4:$E$5000,100,0)","v":100},{"$f":"IF(N1715=0,_xlfn.XLOOKUP(F1715,'Raw Data'!$I$4:$I$5000,'Raw Data'!$H$4:$H$5000,\"\",0),\"\")","v":""},{"$f":"IF(INDIRECT(M1715) = \"\",\"\",INDIRECT(M1715))","v":""},"n"]
["SUCMNOPROPORESRSK_AP","MAVC","Marine, aviation - cargo",null,{"$f":"_xlfn.XLOOKUP(F1716,'Raw Data'!$I$4:$I$5000,'Raw Data'!$D$4:$D$5000,\"*** Mnemonic not found ***\",0)","v":"*** Mnemonic not found ***"},"SUCMNOPROPORESRSK_AP_MAVC_",null,"Input",null,null,655,"G","Input!G655",{"$f":"_xlfn.XLOOKUP(F1716,'Raw Data'!$I$4:$I$5000,'Raw Data'!$E$4:$E$5000,100,0)","v":100},{"$f":"IF(N1716=0,_xlfn.XLOOKUP(F1716,'Raw Data'!$I$4:$I$5000,'Raw Data'!$H$4:$H$5000,\"\",0),\"\")","v":""},{"$f":"IF(INDIRECT(M1716) = \"\",\"\",INDIRECT(M1716))","v":""},"n"]
["SUCMNOPROPORESRSK_AP","MAVH","Marine, aviation - hull",null,{"$f":"_xlfn.XLOOKUP(F1717,'Raw Data'!$I$4:$I$5000,'Raw Data'!$D$4:$D$5000,\"*** Mnemonic not found ***\",0)","v":"*** Mnemonic not found ***"},"SUCMNOPROPORESRSK_AP_MAVH_",null,"Input",null,null,656,"G","Input!G656",{"$f":"_xlfn.XLOOKUP(F1717,'Raw Data'!$I$4:$I$5000,'Raw Data'!$E$4:$E$5000,100,0)","v":100},{"$f":"IF(N1717=0,_xlfn.XLOOKUP(F1717,'Raw Data'!$I$4:$I$5000,'Raw Data'!$H$4:$H$5000,\"\",0),\"\")","v":""},{"$f":"IF(INDIRECT(M1717) = \"\",\"\",INDIRECT(M1717))","v":""},"n"]
["SUCMNOPROPORESRSK_AP","MPIN","Marine protection & indemnity",null,{"$f":"_xlfn.XLOOKUP(F1718,'Raw Data'!$I$4:$I$5000,'Raw Data'!$D$4:$D$5000,\"*** Mnemonic not found ***\",0)","v":"*** Mnemonic not found ***"},"SUCMNOPROPORESRSK_AP_MPIN_",null,"Input",null,null,657,"G","Input!G657",{"$f":"_xlfn.XLOOKUP(F1718,'Raw Data'!$I$4:$I$5000,'Raw Data'!$E$4:$E$5000,100,0)","v":100},{"$f":"IF(N1718=0,_xlfn.XLOOKUP(F1718,'Raw Data'!$I$4:$I$5000,'Raw Data'!$H$4:$H$5000,\"\",0),\"\")","v":""},{"$f":"IF(INDIRECT(M1718) = \"\",\"\",INDIRECT(M1718))","v":""},"n"]
["SUCMNOPROPORESRSK_AP","TRV","Travel",null,{"$f":"_xlfn.XLOOKUP(F1719,'Raw Data'!$I$4:$I$5000,'Raw Data'!$D$4:$D$5000,\"*** Mnemonic not found ***\",0)","v":"*** Mnemonic not found ***"},"SUCMNOPROPORESRSK_AP_TRV_",null,"Input",null,null,658,"G","Input!G658",{"$f":"_xlfn.XLOOKUP(F1719,'Raw Data'!$I$4:$I$5000,'Raw Data'!$E$4:$E$5000,100,0)","v":100},{"$f":"IF(N1719=0,_xlfn.XLOOKUP(F1719,'Raw Data'!$I$4:$I$5000,'Raw Data'!$H$4:$H$5000,\"\",0),\"\")","v":""},{"$f":"IF(INDIRECT(M1719) = \"\",\"\",INDIRECT(M1719))","v":""},"n"]
["SUCMNOPROPORESRSK_AP","OCAH","Other",null,{"$f":"_xlfn.XLOOKUP(F1720,'Raw Data'!$I$4:$I$5000,'Raw Data'!$D$4:$D$5000,\"*** Mnemonic not found ***\",0)","v":"*** Mnemonic not found ***"},"SUCMNOPROPORESRSK_AP_OCAH_",null,"Input",null,null,659,"G","Input!G659",{"$f":"_xlfn.XLOOKUP(F1720,'Raw Data'!$I$4:$I$5000,'Raw Data'!$E$4:$E$5000,100,0)","v":100},{"$f":"IF(N1720=0,_xlfn.XLOOKUP(F1720,'Raw Data'!$I$4:$I$5000,'Raw Data'!$H$4:$H$5000,\"\",0),\"\")","v":""},{"$f":"IF(INDIRECT(M1720) = \"\",\"\",INDIRECT(M1720))","v":""},"n"]
["SUCMPROPORESRSK_LAM","EMLIB","Employers liability",null,{"$f":"_xlfn.XLOOKUP(F1721,'Raw Data'!$I$4:$I$5000,'Raw Data'!$D$4:$D$5000,\"*** Mnemonic not found ***\",0)","v":"*** Mnemonic not found ***"},"SUCMPROPORESRSK_LAM_EMLIB_","Non-life reserve - Latin America","Input",{"$f":"ROW(section_non_life_resv)","v":571},90,{"$f":"I1721+J1721","v":661},"F","Input!F661",{"$f":"_xlfn.XLOOKUP(F1721,'Raw Data'!$I$4:$I$5000,'Raw Data'!$E$4:$E$5000,100,0)","v":100},{"$f":"IF(N1721=0,_xlfn.XLOOKUP(F1721,'Raw Data'!$I$4:$I$5000,'Raw Data'!$H$4:$H$5000,\"\",0),\"\")","v":""},{"$f":"IF(INDIRECT(M1721) = \"\",\"\",INDIRECT(M1721))","v":""},"n"]
["SUCMPROPORESRSK_LAM","LIA","General liability",null,{"$f":"_xlfn.XLOOKUP(F1722,'Raw Data'!$I$4:$I$5000,'Raw Data'!$D$4:$D$5000,\"*** Mnemonic not found ***\",0)","v":"*** Mnemonic not found ***"},"SUCMPROPORESRSK_LAM_LIA_",null,"Input",null,null,{"$f":"K1721+1","v":662},{"$f":"L1721","v":"F"},"Input!F662",{"$f":"_xlfn.XLOOKUP(F1722,'Raw Data'!$I$4:$I$5000,'Raw Data'!$E$4:$E$5000,100,0)","v":100},{"$f":"IF(N1722=0,_xlfn.XLOOKUP(F1722,'Raw Data'!$I$4:$I$5000,'Raw Data'!$H$4:$H$5000,\"\",0),\"\")","v":""},{"$f":"IF(INDIRECT(M1722) = \"\",\"\",INDIRECT(M1722))","v":""},"n"]
["SUCMPROPORESRSK_LAM","PRIND","Professional indemnity",null,{"$f":"_xlfn.XLOOKUP(F1723,'Raw Data'!$I$4:$I$5000,'Raw Data'!$D$4:$D$5000,\"*** Mnemonic not found ***\",0)","v":"*** Mnemonic not found ***"},"SUCMPROPORESRSK_LAM_PRIND_",null,"Input",null,null,{"$f":"K1722+1","v":663},{"$f":"L1722","v":"F"},"Input!F663",{"$f":"_xlfn.XLOOKUP(F1723,'Raw Data'!$I$4:$I$5000,'Raw Data'!$E$4:$E$5000,100,0)","v":100},{"$f":"IF(N1723=0,_xlfn.XLOOKUP(F1723,'Raw Data'!$I$4:$I$5000,'Raw Data'!$H$4:$H$5000,\"\",0),\"\")","v":""},{"$f":"IF(INDIRECT(M1723) = \"\",\"\",INDIRECT(M1723))","v":""},"n"]
["SUCMPROPORESRSK_LAM","CMPR","Commercial property",null,{"$f":"_xlfn.XLOOKUP(F1724,'Raw Data'!$I$4:$I$5000,'Raw Data'!$D$4:$D$5000,\"*** Mnemonic not found ***\",0)","v":"*** Mnemonic not found ***"},"SUCMPROPORESRSK_LAM_CMPR_",null,"Input",null,null,664,"F","Input!F664",{"$f":"_xlfn.XLOOKUP(F1724,'Raw Data'!$I$4:$I$5000,'Raw Data'!$E$4:$E$5000,100,0)","v":100},{"$f":"IF(N1724=0,_xlfn.XLOOKUP(F1724,'Raw Data'!$I$4:$I$5000,'Raw Data'!$H$4:$H$5000,\"\",0),\"\")","v":""},{"$f":"IF(INDIRECT(M1724) = \"\",\"\",INDIRECT(M1724))","v":""},"n"]
["SUCMPROPORESRSK_LAM","HMP","Domestic property",null,{"$f":"_xlfn.XLOOKUP(F1725,'Raw Data'!$I$4:$I$5000,'Raw Data'!$D$4:$D$5000,\"*** Mnemonic not found ***\",0)","v":"*** Mnemonic not found ***"},"SUCMPROPORESRSK_LAM_HMP_",null,"Input",null,null,665,"F","Input!F665",{"$f":"_xlfn.XLOOKUP(F1725,'Raw Data'!$I$4:$I$5000,'Raw Data'!$E$4:$E$5000,100,0)","v":100},{"$f":"IF(N1725=0,_xlfn.XLOOKUP(F1725,'Raw Data'!$I$4:$I$5000,'Raw Data'!$H$4:$H$5000,\"\",0),\"\")","v":""},{"$f":"IF(INDIRECT(M1725) = \"\",\"\",INDIRECT(M1725))","v":""},"n"]
["SUCMPROPORESRSK_LAM","MEXFR","Mexico farm & ranch",null,{"$f":"_xlfn.XLOOKUP(F1726,'Raw Data'!$I$4:$I$5000,'Raw Data'!$D$4:$D$5000,\"*** Mnemonic not found ***\",0)","v":"*** Mnemonic not found ***"},"SUCMPROPORESRSK_LAM_MEXFR_",null,"Input",null,null,666,"F","Input!F666",{"$f":"_xlfn.XLOOKUP(F1726,'Raw Data'!$I$4:$I$5000,'Raw Data'!$E$4:$E$5000,100,0)","v":100},{"$f":"IF(N1726=0,_xlfn.XLOOKUP(F1726,'Raw Data'!$I$4:$I$5000,'Raw Data'!$H$4:$H$5000,\"\",0),\"\")","v":""},{"$f":"IF(INDIRECT(M1726) = \"\",\"\",INDIRECT(M1726))","v":""},"n"]
["SUCMPROPORESRSK_LAM","PLM","Property all inclusive",null,{"$f":"_xlfn.XLOOKUP(F1727,'Raw Data'!$I$4:$I$5000,'Raw Data'!$D$4:$D$5000,\"*** Mnemonic not found ***\",0)","v":"*** Mnemonic not found ***"},"SUCMPROPORESRSK_LAM_PLM_",null,"Input",null,null,667,"F","Input!F667",{"$f":"_xlfn.XLOOKUP(F1727,'Raw Data'!$I$4:$I$5000,'Raw Data'!$E$4:$E$5000,100,0)","v":100},{"$f":"IF(N1727=0,_xlfn.XLOOKUP(F1727,'Raw Data'!$I$4:$I$5000,'Raw Data'!$H$4:$H$5000,\"\",0),\"\")","v":""},{"$f":"IF(INDIRECT(M1727) = \"\",\"\",INDIRECT(M1727))","v":""},"n"]
["SUCMPROPORESRSK_LAM","ALB","Motor all inclusive",null,{"$f":"_xlfn.XLOOKUP(F1728,'Raw Data'!$I$4:$I$5000,'Raw Data'!$D$4:$D$5000,\"*** Mnemonic not found ***\",0)","v":"*** Mnemonic not found ***"},"SUCMPROPORESRSK_LAM_ALB_",null,"Input",null,null,668,"F","Input!F668",{"$f":"_xlfn.XLOOKUP(F1728,'Raw Data'!$I$4:$I$5000,'Raw Data'!$E$4:$E$5000,100,0)","v":100},{"$f":"IF(N1728=0,_xlfn.XLOOKUP(F1728,'Raw Data'!$I$4:$I$5000,'Raw Data'!$H$4:$H$5000,\"\",0),\"\")","v":""},{"$f":"IF(INDIRECT(M1728) = \"\",\"\",INDIRECT(M1728))","v":""},"n"]
["SUCMPROPORESRSK_LAM","CRD","Credit",null,{"$f":"_xlfn.XLOOKUP(F1729,'Raw Data'!$I$4:$I$5000,'Raw Data'!$D$4:$D$5000,\"*** Mnemonic not found ***\",0)","v":"*** Mnemonic not found ***"},"SUCMPROPORESRSK_LAM_CRD_",null,"Input",null,null,669,"F","Input!F669",{"$f":"_xlfn.XLOOKUP(F1729,'Raw Data'!$I$4:$I$5000,'Raw Data'!$E$4:$E$5000,100,0)","v":100},{"$f":"IF(N1729=0,_xlfn.XLOOKUP(F1729,'Raw Data'!$I$4:$I$5000,'Raw Data'!$H$4:$H$5000,\"\",0),\"\")","v":""},{"$f":"IF(INDIRECT(M1729) = \"\",\"\",INDIRECT(M1729))","v":""},"n"]
["SUCMPROPORESRSK_LAM","FID","Fidelity",null,{"$f":"_xlfn.XLOOKUP(F1730,'Raw Data'!$I$4:$I$5000,'Raw Data'!$D$4:$D$5000,\"*** Mnemonic not found ***\",0)","v":"*** Mnemonic not found ***"},"SUCMPROPORESRSK_LAM_FID_",null,"Input",null,null,670,"F","Input!F670",{"$f":"_xlfn.XLOOKUP(F1730,'Raw Data'!$I$4:$I$5000,'Raw Data'!$E$4:$E$5000,100,0)","v":100},{"$f":"IF(N1730=0,_xlfn.XLOOKUP(F1730,'Raw Data'!$I$4:$I$5000,'Raw Data'!$H$4:$H$5000,\"\",0),\"\")","v":""},{"$f":"IF(INDIRECT(M1730) = \"\",\"\",INDIRECT(M1730))","v":""},"n"]
["SUCMPROPORESRSK_LAM","SUR","Surety",null,{"$f":"_xlfn.XLOOKUP(F1731,'Raw Data'!$I$4:$I$5000,'Raw Data'!$D$4:$D$5000,\"*** Mnemonic not found ***\",0)","v":"*** Mnemonic not found ***"},"SUCMPROPORESRSK_LAM_SUR_",null,"Input",null,null,671,"F","Input!F671",{"$f":"_xlfn.XLOOKUP(F1731,'Raw Data'!$I$4:$I$5000,'Raw Data'!$E$4:$E$5000,100,0)","v":100},{"$f":"IF(N1731=0,_xlfn.XLOOKUP(F1731,'Raw Data'!$I$4:$I$5000,'Raw Data'!$H$4:$H$5000,\"\",0),\"\")","v":""},{"$f":"IF(INDIRECT(M1731) = \"\",\"\",INDIRECT(M1731))","v":""},"n"]
["SUCMPROPORESRSK_LAM","AAH","Accident & health",null,{"$f":"_xlfn.XLOOKUP(F1732,'Raw Data'!$I$4:$I$5000,'Raw Data'!$D$4:$D$5000,\"*** Mnemonic not found ***\",0)","v":"*** Mnemonic not found ***"},"SUCMPROPORESRSK_LAM_AAH_",null,"Input",null,null,672,"F","Input!F672",{"$f":"_xlfn.XLOOKUP(F1732,'Raw Data'!$I$4:$I$5000,'Raw Data'!$E$4:$E$5000,100,0)","v":100},{"$f":"IF(N1732=0,_xlfn.XLOOKUP(F1732,'Raw Data'!$I$4:$I$5000,'Raw Data'!$H$4:$H$5000,\"\",0),\"\")","v":""},{"$f":"IF(INDIRECT(M1732) = \"\",\"\",INDIRECT(M1732))","v":""},"n"]
["SUCMPROPORESRSK_LAM","HMEDEX","Health & medical exp",null,{"$f":"_xlfn.XLOOKUP(F1733,'Raw Data'!$I$4:$I$5000,'Raw Data'!$D$4:$D$5000,\"*** Mnemonic not found ***\",0)","v":"*** Mnemonic not found ***"},"SUCMPROPORESRSK_LAM_HMEDEX_",null,"Input",null,null,673,"F","Input!F673",{"$f":"_xlfn.XLOOKUP(F1733,'Raw Data'!$I$4:$I$5000,'Raw Data'!$E$4:$E$5000,100,0)","v":100},{"$f":"IF(N1733=0,_xlfn.XLOOKUP(F1733,'Raw Data'!$I$4:$I$5000,'Raw Data'!$H$4:$H$5000,\"\",0),\"\")","v":""},{"$f":"IF(INDIRECT(M1733) = \"\",\"\",INDIRECT(M1733))","v":""},"n"]
["SUCMPROPORESRSK_LAM","MAVA","Marine aviation - all inclusive",null,{"$f":"_xlfn.XLOOKUP(F1734,'Raw Data'!$I$4:$I$5000,'Raw Data'!$D$4:$D$5000,\"*** Mnemonic not found ***\",0)","v":"*** Mnemonic not found ***"},"SUCMPROPORESRSK_LAM_MAVA_",null,"Input",null,null,674,"F","Input!F674",{"$f":"_xlfn.XLOOKUP(F1734,'Raw Data'!$I$4:$I$5000,'Raw Data'!$E$4:$E$5000,100,0)","v":100},{"$f":"IF(N1734=0,_xlfn.XLOOKUP(F1734,'Raw Data'!$I$4:$I$5000,'Raw Data'!$H$4:$H$5000,\"\",0),\"\")","v":""},{"$f":"IF(INDIRECT(M1734) = \"\",\"\",INDIRECT(M1734))","v":""},"n"]
["SUCMPROPORESRSK_LAM","MAVC","Marine aviation - cargo",null,{"$f":"_xlfn.XLOOKUP(F1735,'Raw Data'!$I$4:$I$5000,'Raw Data'!$D$4:$D$5000,\"*** Mnemonic not found ***\",0)","v":"*** Mnemonic not found ***"},{"$f":"CONCATENATE(A1735,\"_\",B1735,\"_\",D1735)","v":"SUCMPROPORESRSK_LAM_MAVC_"},null,"Input",null,null,675,"F","Input!F675",{"$f":"_xlfn.XLOOKUP(F1735,'Raw Data'!$I$4:$I$5000,'Raw Data'!$E$4:$E$5000,100,0)","v":100},{"$f":"IF(N1735=0,_xlfn.XLOOKUP(F1735,'Raw Data'!$I$4:$I$5000,'Raw Data'!$H$4:$H$5000,\"\",0),\"\")","v":""},{"$f":"IF(INDIRECT(M1735) = \"\",\"\",INDIRECT(M1735))","v":""},"n"]
["SUCMPROPORESRSK_LAM","MPIN","Marine protection & indemnity",null,{"$f":"_xlfn.XLOOKUP(F1736,'Raw Data'!$I$4:$I$5000,'Raw Data'!$D$4:$D$5000,\"*** Mnemonic not found ***\",0)","v":"*** Mnemonic not found ***"},"SUCMPROPORESRSK_LAM_MPIN_",null,"Input",null,null,676,"F",{"$f":"CONCATENATE(H1736,\"!\",L1736,K1736)","v":"Input!F676"},{"$f":"_xlfn.XLOOKUP(F1736,'Raw Data'!$I$4:$I$5000,'Raw Data'!$E$4:$E$5000,100,0)","v":100},{"$f":"IF(N1736=0,_xlfn.XLOOKUP(F1736,'Raw Data'!$I$4:$I$5000,'Raw Data'!$H$4:$H$5000,\"\",0),\"\")","v":""},{"$f":"IF(INDIRECT(M1736) = \"\",\"\",INDIRECT(M1736))","v":""},"n"]
["SUCMPROPORESRSK_LAM","TRV","Travel",null,{"$f":"_xlfn.XLOOKUP(F1737,'Raw Data'!$I$4:$I$5000,'Raw Data'!$D$4:$D$5000,\"*** Mnemonic not found ***\",0)","v":"*** Mnemonic not found ***"},"SUCMPROPORESRSK_LAM_TRV_",null,"Input",null,null,677,"F","Input!F677",{"$f":"_xlfn.XLOOKUP(F1737,'Raw Data'!$I$4:$I$5000,'Raw Data'!$E$4:$E$5000,100,0)","v":100},{"$f":"IF(N1737=0,_xlfn.XLOOKUP(F1737,'Raw Data'!$I$4:$I$5000,'Raw Data'!$H$4:$H$5000,\"\",0),\"\")","v":""},{"$f":"IF(INDIRECT(M1737) = \"\",\"\",INDIRECT(M1737))","v":""},"n"]
["SUCMPROPORESRSK_LAM","WAR","Warranty",null,{"$f":"_xlfn.XLOOKUP(F1738,'Raw Data'!$I$4:$I$5000,'Raw Data'!$D$4:$D$5000,\"*** Mnemonic not found ***\",0)","v":"*** Mnemonic not found ***"},"SUCMPROPORESRSK_LAM_WAR_",null,"Input",null,null,678,"F","Input!F678",{"$f":"_xlfn.XLOOKUP(F1738,'Raw Data'!$I$4:$I$5000,'Raw Data'!$E$4:$E$5000,100,0)","v":100},{"$f":"IF(N1738=0,_xlfn.XLOOKUP(F1738,'Raw Data'!$I$4:$I$5000,'Raw Data'!$H$4:$H$5000,\"\",0),\"\")","v":""},{"$f":"IF(INDIRECT(M1738) = \"\",\"\",INDIRECT(M1738))","v":""},"n"]
["SUCMPROPORESRSK_LAM","OCAH","Other",null,{"$f":"_xlfn.XLOOKUP(F1739,'Raw Data'!$I$4:$I$5000,'Raw Data'!$D$4:$D$5000,\"*** Mnemonic not found ***\",0)","v":"*** Mnemonic not found ***"},"SUCMPROPORESRSK_LAM_OCAH_",null,"Input",null,null,679,"F","Input!F679",{"$f":"_xlfn.XLOOKUP(F1739,'Raw Data'!$I$4:$I$5000,'Raw Data'!$E$4:$E$5000,100,0)","v":100},{"$f":"IF(N1739=0,_xlfn.XLOOKUP(F1739,'Raw Data'!$I$4:$I$5000,'Raw Data'!$H$4:$H$5000,\"\",0),\"\")","v":""},{"$f":"IF(INDIRECT(M1739) = \"\",\"\",INDIRECT(M1739))","v":""},"n"]
["SUCMNOPROPORESRSK_LAM","EMLIB","Employers liability",null,{"$f":"_xlfn.XLOOKUP(F1740,'Raw Data'!$I$4:$I$5000,'Raw Data'!$D$4:$D$5000,\"*** Mnemonic not found ***\",0)","v":"*** Mnemonic not found ***"},"SUCMNOPROPORESRSK_LAM_EMLIB_",null,"Input",{"$f":"ROW(section_non_life_resv)","v":571},{"$f":"J1721","v":90},{"$f":"I1740+J1740","v":661},"G","Input!G661",{"$f":"_xlfn.XLOOKUP(F1740,'Raw Data'!$I$4:$I$5000,'Raw Data'!$E$4:$E$5000,100,0)","v":100},{"$f":"IF(N1740=0,_xlfn.XLOOKUP(F1740,'Raw Data'!$I$4:$I$5000,'Raw Data'!$H$4:$H$5000,\"\",0),\"\")","v":""},{"$f":"IF(INDIRECT(M1740) = \"\",\"\",INDIRECT(M1740))","v":""},"n"]
["SUCMNOPROPORESRSK_LAM","LIA","General liability",null,{"$f":"_xlfn.XLOOKUP(F1741,'Raw Data'!$I$4:$I$5000,'Raw Data'!$D$4:$D$5000,\"*** Mnemonic not found ***\",0)","v":"*** Mnemonic not found ***"},"SUCMNOPROPORESRSK_LAM_LIA_",null,"Input",null,null,{"$f":"K1740+1","v":662},{"$f":"L1740","v":"G"},"Input!G662",{"$f":"_xlfn.XLOOKUP(F1741,'Raw Data'!$I$4:$I$5000,'Raw Data'!$E$4:$E$5000,100,0)","v":100},{"$f":"IF(N1741=0,_xlfn.XLOOKUP(F1741,'Raw Data'!$I$4:$I$5000,'Raw Data'!$H$4:$H$5000,\"\",0),\"\")","v":""},{"$f":"IF(INDIRECT(M1741) = \"\",\"\",INDIRECT(M1741))","v":""},"n"]
["SUCMNOPROPORESRSK_LAM","PRIND","Professional indemnity",null,{"$f":"_xlfn.XLOOKUP(F1742,'Raw Data'!$I$4:$I$5000,'Raw Data'!$D$4:$D$5000,\"*** Mnemonic not found ***\",0)","v":"*** Mnemonic not found ***"},"SUCMNOPROPORESRSK_LAM_PRIND_",null,"Input",null,null,{"$f":"K1741+1","v":663},{"$f":"L1741","v":"G"},"Input!G663",{"$f":"_xlfn.XLOOKUP(F1742,'Raw Data'!$I$4:$I$5000,'Raw Data'!$E$4:$E$5000,100,0)","v":100},{"$f":"IF(N1742=0,_xlfn.XLOOKUP(F1742,'Raw Data'!$I$4:$I$5000,'Raw Data'!$H$4:$H$5000,\"\",0),\"\")","v":""},{"$f":"IF(INDIRECT(M1742) = \"\",\"\",INDIRECT(M1742))","v":""},"n"]
["SUCMNOPROPORESRSK_LAM","CMPR","Commercial property",null,{"$f":"_xlfn.XLOOKUP(F1743,'Raw Data'!$I$4:$I$5000,'Raw Data'!$D$4:$D$5000,\"*** Mnemonic not found ***\",0)","v":"*** Mnemonic not found ***"},"SUCMNOPROPORESRSK_LAM_CMPR_",null,"Input",null,null,664,"G",{"$f":"CONCATENATE(H1743,\"!\",L1743,K1743)","v":"Input!G664"},{"$f":"_xlfn.XLOOKUP(F1743,'Raw Data'!$I$4:$I$5000,'Raw Data'!$E$4:$E$5000,100,0)","v":100},{"$f":"IF(N1743=0,_xlfn.XLOOKUP(F1743,'Raw Data'!$I$4:$I$5000,'Raw Data'!$H$4:$H$5000,\"\",0),\"\")","v":""},{"$f":"IF(INDIRECT(M1743) = \"\",\"\",INDIRECT(M1743))","v":""},"n"]
["SUCMNOPROPORESRSK_LAM","HMP","Domestic property",null,{"$f":"_xlfn.XLOOKUP(F1744,'Raw Data'!$I$4:$I$5000,'Raw Data'!$D$4:$D$5000,\"*** Mnemonic not found ***\",0)","v":"*** Mnemonic not found ***"},"SUCMNOPROPORESRSK_LAM_HMP_",null,"Input",null,null,665,"G","Input!G665",{"$f":"_xlfn.XLOOKUP(F1744,'Raw Data'!$I$4:$I$5000,'Raw Data'!$E$4:$E$5000,100,0)","v":100},{"$f":"IF(N1744=0,_xlfn.XLOOKUP(F1744,'Raw Data'!$I$4:$I$5000,'Raw Data'!$H$4:$H$5000,\"\",0),\"\")","v":""},{"$f":"IF(INDIRECT(M1744) = \"\",\"\",INDIRECT(M1744))","v":""},"n"]
["SUCMNOPROPORESRSK_LAM","MEXFR","Mexico farm & ranch",null,{"$f":"_xlfn.XLOOKUP(F1745,'Raw Data'!$I$4:$I$5000,'Raw Data'!$D$4:$D$5000,\"*** Mnemonic not found ***\",0)","v":"*** Mnemonic not found ***"},"SUCMNOPROPORESRSK_LAM_MEXFR_",null,"Input",null,null,666,"G","Input!G666",{"$f":"_xlfn.XLOOKUP(F1745,'Raw Data'!$I$4:$I$5000,'Raw Data'!$E$4:$E$5000,100,0)","v":100},{"$f":"IF(N1745=0,_xlfn.XLOOKUP(F1745,'Raw Data'!$I$4:$I$5000,'Raw Data'!$H$4:$H$5000,\"\",0),\"\")","v":""},{"$f":"IF(INDIRECT(M1745) = \"\",\"\",INDIRECT(M1745))","v":""},"n"]
["SUCMNOPROPORESRSK_LAM","PLM","Property all inclusive",null,{"$f":"_xlfn.XLOOKUP(F1746,'Raw Data'!$I$4:$I$5000,'Raw Data'!$D$4:$D$5000,\"*** Mnemonic not found ***\",0)","v":"*** Mnemonic not found ***"},"SUCMNOPROPORESRSK_LAM_PLM_",null,"Input",null,null,667,"G","Input!G667",{"$f":"_xlfn.XLOOKUP(F1746,'Raw Data'!$I$4:$I$5000,'Raw Data'!$E$4:$E$5000,100,0)","v":100},{"$f":"IF(N1746=0,_xlfn.XLOOKUP(F1746,'Raw Data'!$I$4:$I$5000,'Raw Data'!$H$4:$H$5000,\"\",0),\"\")","v":""},{"$f":"IF(INDIRECT(M1746) = \"\",\"\",INDIRECT(M1746))","v":""},"n"]
["SUCMNOPROPORESRSK_LAM","ALB","Motor all inclusive",null,{"$f":"_xlfn.XLOOKUP(F1747,'Raw Data'!$I$4:$I$5000,'Raw Data'!$D$4:$D$5000,\"*** Mnemonic not found ***\",0)","v":"*** Mnemonic not found ***"},"SUCMNOPROPORESRSK_LAM_ALB_",null,"Input",null,null,668,"G","Input!G668",{"$f":"_xlfn.XLOOKUP(F1747,'Raw Data'!$I$4:$I$5000,'Raw Data'!$E$4:$E$5000,100,0)","v":100},{"$f":"IF(N1747=0,_xlfn.XLOOKUP(F1747,'Raw Data'!$I$4:$I$5000,'Raw Data'!$H$4:$H$5000,\"\",0),\"\")","v":""},{"$f":"IF(INDIRECT(M1747) = \"\",\"\",INDIRECT(M1747))","v":""},"n"]
["SUCMNOPROPORESRSK_LAM","CRD","Credit",null,{"$f":"_xlfn.XLOOKUP(F1748,'Raw Data'!$I$4:$I$5000,'Raw Data'!$D$4:$D$5000,\"*** Mnemonic not found ***\",0)","v":"*** Mnemonic not found ***"},"SUCMNOPROPORESRSK_LAM_CRD_",null,"Input",null,null,669,"G","Input!G669",{"$f":"_xlfn.XLOOKUP(F1748,'Raw Data'!$I$4:$I$5000,'Raw Data'!$E$4:$E$5000,100,0)","v":100},{"$f":"IF(N1748=0,_xlfn.XLOOKUP(F1748,'Raw Data'!$I$4:$I$5000,'Raw Data'!$H$4:$H$5000,\"\",0),\"\")","v":""},{"$f":"IF(INDIRECT(M1748) = \"\",\"\",INDIRECT(M1748))","v":""},"n"]
["SUCMNOPROPORESRSK_LAM","FID","Fidelity",null,{"$f":"_xlfn.XLOOKUP(F1749,'Raw Data'!$I$4:$I$5000,'Raw Data'!$D$4:$D$5000,\"*** Mnemonic not found ***\",0)","v":"*** Mnemonic not found ***"},"SUCMNOPROPORESRSK_LAM_FID_",null,"Input",null,null,670,"G","Input!G670",{"$f":"_xlfn.XLOOKUP(F1749,'Raw Data'!$I$4:$I$5000,'Raw Data'!$E$4:$E$5000,100,0)","v":100},{"$f":"IF(N1749=0,_xlfn.XLOOKUP(F1749,'Raw Data'!$I$4:$I$5000,'Raw Data'!$H$4:$H$5000,\"\",0),\"\")","v":""},{"$f":"IF(INDIRECT(M1749) = \"\",\"\",INDIRECT(M1749))","v":""},"n"]
["SUCMNOPROPORESRSK_LAM","SUR","Surety",null,{"$f":"_xlfn.XLOOKUP(F1750,'Raw Data'!$I$4:$I$5000,'Raw Data'!$D$4:$D$5000,\"*** Mnemonic not found ***\",0)","v":"*** Mnemonic not found ***"},"SUCMNOPROPORESRSK_LAM_SUR_",null,"Input",null,null,671,"G","Input!G671",{"$f":"_xlfn.XLOOKUP(F1750,'Raw Data'!$I$4:$I$5000,'Raw Data'!$E$4:$E$5000,100,0)","v":100},{"$f":"IF(N1750=0,_xlfn.XLOOKUP(F1750,'Raw Data'!$I$4:$I$5000,'Raw Data'!$H$4:$H$5000,\"\",0),\"\")","v":""},{"$f":"IF(INDIRECT(M1750) = \"\",\"\",INDIRECT(M1750))","v":""},"n"]
["SUCMNOPROPORESRSK_LAM","AAH","Accident & health",null,{"$f":"_xlfn.XLOOKUP(F1751,'Raw Data'!$I$4:$I$5000,'Raw Data'!$D$4:$D$5000,\"*** Mnemonic not found ***\",0)","v":"*** Mnemonic not found ***"},"SUCMNOPROPORESRSK_LAM_AAH_",null,"Input",null,null,672,"G","Input!G672",{"$f":"_xlfn.XLOOKUP(F1751,'Raw Data'!$I$4:$I$5000,'Raw Data'!$E$4:$E$5000,100,0)","v":100},{"$f":"IF(N1751=0,_xlfn.XLOOKUP(F1751,'Raw Data'!$I$4:$I$5000,'Raw Data'!$H$4:$H$5000,\"\",0),\"\")","v":""},{"$f":"IF(INDIRECT(M1751) = \"\",\"\",INDIRECT(M1751))","v":""},"n"]
["SUCMNOPROPORESRSK_LAM","HMEDEX","Health & medical exp",null,{"$f":"_xlfn.XLOOKUP(F1752,'Raw Data'!$I$4:$I$5000,'Raw Data'!$D$4:$D$5000,\"*** Mnemonic not found ***\",0)","v":"*** Mnemonic not found ***"},"SUCMNOPROPORESRSK_LAM_HMEDEX_",null,"Input",null,null,673,"G","Input!G673",{"$f":"_xlfn.XLOOKUP(F1752,'Raw Data'!$I$4:$I$5000,'Raw Data'!$E$4:$E$5000,100,0)","v":100},{"$f":"IF(N1752=0,_xlfn.XLOOKUP(F1752,'Raw Data'!$I$4:$I$5000,'Raw Data'!$H$4:$H$5000,\"\",0),\"\")","v":""},{"$f":"IF(INDIRECT(M1752) = \"\",\"\",INDIRECT(M1752))","v":""},"n"]
["SUCMNOPROPORESRSK_LAM","MAVA","Marine aviation - all inclusive",null,{"$f":"_xlfn.XLOOKUP(F1753,'Raw Data'!$I$4:$I$5000,'Raw Data'!$D$4:$D$5000,\"*** Mnemonic not found ***\",0)","v":"*** Mnemonic not found ***"},"SUCMNOPROPORESRSK_LAM_MAVA_",null,"Input",null,null,674,"G","Input!G674",{"$f":"_xlfn.XLOOKUP(F1753,'Raw Data'!$I$4:$I$5000,'Raw Data'!$E$4:$E$5000,100,0)","v":100},{"$f":"IF(N1753=0,_xlfn.XLOOKUP(F1753,'Raw Data'!$I$4:$I$5000,'Raw Data'!$H$4:$H$5000,\"\",0),\"\")","v":""},{"$f":"IF(INDIRECT(M1753) = \"\",\"\",INDIRECT(M1753))","v":""},"n"]
["SUCMNOPROPORESRSK_LAM","MAVC","Marine aviation - cargo",null,{"$f":"_xlfn.XLOOKUP(F1754,'Raw Data'!$I$4:$I$5000,'Raw Data'!$D$4:$D$5000,\"*** Mnemonic not found ***\",0)","v":"*** Mnemonic not found ***"},"SUCMNOPROPORESRSK_LAM_MAVC_",null,"Input",null,null,675,"G","Input!G675",{"$f":"_xlfn.XLOOKUP(F1754,'Raw Data'!$I$4:$I$5000,'Raw Data'!$E$4:$E$5000,100,0)","v":100},{"$f":"IF(N1754=0,_xlfn.XLOOKUP(F1754,'Raw Data'!$I$4:$I$5000,'Raw Data'!$H$4:$H$5000,\"\",0),\"\")","v":""},{"$f":"IF(INDIRECT(M1754) = \"\",\"\",INDIRECT(M1754))","v":""},"n"]
["SUCMNOPROPORESRSK_LAM","MPIN","Marine protection & indemnity",null,{"$f":"_xlfn.XLOOKUP(F1755,'Raw Data'!$I$4:$I$5000,'Raw Data'!$D$4:$D$5000,\"*** Mnemonic not found ***\",0)","v":"*** Mnemonic not found ***"},"SUCMNOPROPORESRSK_LAM_MPIN_",null,"Input",null,null,676,"G",{"$f":"CONCATENATE(H1755,\"!\",L1755,K1755)","v":"Input!G676"},{"$f":"_xlfn.XLOOKUP(F1755,'Raw Data'!$I$4:$I$5000,'Raw Data'!$E$4:$E$5000,100,0)","v":100},{"$f":"IF(N1755=0,_xlfn.XLOOKUP(F1755,'Raw Data'!$I$4:$I$5000,'Raw Data'!$H$4:$H$5000,\"\",0),\"\")","v":""},{"$f":"IF(INDIRECT(M1755) = \"\",\"\",INDIRECT(M1755))","v":""},"n"]
["SUCMNOPROPORESRSK_LAM","TRV","Travel",null,{"$f":"_xlfn.XLOOKUP(F1756,'Raw Data'!$I$4:$I$5000,'Raw Data'!$D$4:$D$5000,\"*** Mnemonic not found ***\",0)","v":"*** Mnemonic not found ***"},"SUCMNOPROPORESRSK_LAM_TRV_",null,"Input",null,null,677,"G","Input!G677",{"$f":"_xlfn.XLOOKUP(F1756,'Raw Data'!$I$4:$I$5000,'Raw Data'!$E$4:$E$5000,100,0)","v":100},{"$f":"IF(N1756=0,_xlfn.XLOOKUP(F1756,'Raw Data'!$I$4:$I$5000,'Raw Data'!$H$4:$H$5000,\"\",0),\"\")","v":""},{"$f":"IF(INDIRECT(M1756) = \"\",\"\",INDIRECT(M1756))","v":""},"n"]
["SUCMNOPROPORESRSK_LAM","WAR","Warranty",null,{"$f":"_xlfn.XLOOKUP(F1757,'Raw Data'!$I$4:$I$5000,'Raw Data'!$D$4:$D$5000,\"*** Mnemonic not found ***\",0)","v":"*** Mnemonic not found ***"},"SUCMNOPROPORESRSK_LAM_WAR_",null,"Input",null,null,678,"G","Input!G678",{"$f":"_xlfn.XLOOKUP(F1757,'Raw Data'!$I$4:$I$5000,'Raw Data'!$E$4:$E$5000,100,0)","v":100},{"$f":"IF(N1757=0,_xlfn.XLOOKUP(F1757,'Raw Data'!$I$4:$I$5000,'Raw Data'!$H$4:$H$5000,\"\",0),\"\")","v":""},{"$f":"IF(INDIRECT(M1757) = \"\",\"\",INDIRECT(M1757))","v":""},"n"]
["SUCMNOPROPORESRSK_LAM","OCAH","Other",null,{"$f":"_xlfn.XLOOKUP(F1758,'Raw Data'!$I$4:$I$5000,'Raw Data'!$D$4:$D$5000,\"*** Mnemonic not found ***\",0)","v":"*** Mnemonic not found ***"},"SUCMNOPROPORESRSK_LAM_OCAH_",null,"Input",null,null,679,"G","Input!G679",{"$f":"_xlfn.XLOOKUP(F1758,'Raw Data'!$I$4:$I$5000,'Raw Data'!$E$4:$E$5000,100,0)","v":100},{"$f":"IF(N1758=0,_xlfn.XLOOKUP(F1758,'Raw Data'!$I$4:$I$5000,'Raw Data'!$H$4:$H$5000,\"\",0),\"\")","v":""},{"$f":"IF(INDIRECT(M1758) = \"\",\"\",INDIRECT(M1758))","v":""},"n"]
["SUCMRESRSKTOT",null,null,null,{"$f":"_xlfn.XLOOKUP(F1759,'Raw Data'!$I$4:$I$5000,'Raw Data'!$D$4:$D$5000,\"*** Mnemonic not found ***\",0)","v":"*** Mnemonic not found ***"},"SUCMRESRSKTOT__",null,"Input",null,null,{"$f":"K1758+11","v":690},"F","Input!F690",{"$f":"_xlfn.XLOOKUP(F1759,'Raw Data'!$I$4:$I$5000,'Raw Data'!$E$4:$E$5000,100,0)","v":100},{"$f":"IF(N1759=0,_xlfn.XLOOKUP(F1759,'Raw Data'!$I$4:$I$5000,'Raw Data'!$H$4:$H$5000,\"\",0),\"\")","v":""},{"$f":"IF(INDIRECT(M1759) = \"\",\"\",INDIRECT(M1759))","v":""},"n"]
["SUCMPROPORNPW_MI",null,null,null,{"$f":"_xlfn.XLOOKUP(F1760,'Raw Data'!$I$4:$I$5000,'Raw Data'!$D$4:$D$5000,\"*** Mnemonic not found ***\",0)","v":"*** Mnemonic not found ***"},"SUCMPROPORNPW_MI__","Mortgage Insurance","Input",{"$f":"ROW(section_mortgage_insurance)","v":693},3,{"$f":"I1760+J1760","v":696},"F","Input!F696",{"$f":"_xlfn.XLOOKUP(F1760,'Raw Data'!$I$4:$I$5000,'Raw Data'!$E$4:$E$5000,100,0)","v":100},{"$f":"IF(N1760=0,_xlfn.XLOOKUP(F1760,'Raw Data'!$I$4:$I$5000,'Raw Data'!$H$4:$H$5000,\"\",0),\"\")","v":""},{"$f":"IF(INDIRECT(M1760) = \"\",\"\",INDIRECT(M1760))","v":""},"n"]
["SUCMPROPORUEP_MI",null,null,null,{"$f":"_xlfn.XLOOKUP(F1761,'Raw Data'!$I$4:$I$5000,'Raw Data'!$D$4:$D$5000,\"*** Mnemonic not found ***\",0)","v":"*** Mnemonic not found ***"},"SUCMPROPORUEP_MI__",null,"Input",null,null,{"$f":"K1760+1","v":697},{"$f":"L1760","v":"F"},"Input!F697",{"$f":"_xlfn.XLOOKUP(F1761,'Raw Data'!$I$4:$I$5000,'Raw Data'!$E$4:$E$5000,100,0)","v":100},{"$f":"IF(N1761=0,_xlfn.XLOOKUP(F1761,'Raw Data'!$I$4:$I$5000,'Raw Data'!$H$4:$H$5000,\"\",0),\"\")","v":""},{"$f":"IF(INDIRECT(M1761) = \"\",\"\",INDIRECT(M1761))","v":""},"n"]
["SUCMPROPORNLR_MI",null,null,null,{"$f":"_xlfn.XLOOKUP(F1762,'Raw Data'!$I$4:$I$5000,'Raw Data'!$D$4:$D$5000,\"*** Mnemonic not found ***\",0)","v":"*** Mnemonic not found ***"},"SUCMPROPORNLR_MI__",null,"Input",null,null,698,"F","Input!F698",{"$f":"_xlfn.XLOOKUP(F1762,'Raw Data'!$I$4:$I$5000,'Raw Data'!$E$4:$E$5000,100,0)","v":100},{"$f":"IF(N1762=0,_xlfn.XLOOKUP(F1762,'Raw Data'!$I$4:$I$5000,'Raw Data'!$H$4:$H$5000,\"\",0),\"\")","v":""},{"$f":"IF(INDIRECT(M1762) = \"\",\"\",INDIRECT(M1762))","v":""},"n"]
["SUCMNOPROPORNPW_MI",null,null,null,{"$f":"_xlfn.XLOOKUP(F1763,'Raw Data'!$I$4:$I$5000,'Raw Data'!$D$4:$D$5000,\"*** Mnemonic not found ***\",0)","v":"*** Mnemonic not found ***"},"SUCMNOPROPORNPW_MI__",null,"Input",null,null,{"$f":"K1760","v":696},"G","Input!G696",{"$f":"_xlfn.XLOOKUP(F1763,'Raw Data'!$I$4:$I$5000,'Raw Data'!$E$4:$E$5000,100,0)","v":100},{"$f":"IF(N1763=0,_xlfn.XLOOKUP(F1763,'Raw Data'!$I$4:$I$5000,'Raw Data'!$H$4:$H$5000,\"\",0),\"\")","v":""},{"$f":"IF(INDIRECT(M1763) = \"\",\"\",INDIRECT(M1763))","v":""},"n"]
["SUCMNOPROPORUEP_MI",null,null,null,{"$f":"_xlfn.XLOOKUP(F1764,'Raw Data'!$I$4:$I$5000,'Raw Data'!$D$4:$D$5000,\"*** Mnemonic not found ***\",0)","v":"*** Mnemonic not found ***"},"SUCMNOPROPORUEP_MI__",null,"Input",null,null,{"$f":"K1763+1","v":697},{"$f":"L1763","v":"G"},"Input!G697",{"$f":"_xlfn.XLOOKUP(F1764,'Raw Data'!$I$4:$I$5000,'Raw Data'!$E$4:$E$5000,100,0)","v":100},{"$f":"IF(N1764=0,_xlfn.XLOOKUP(F1764,'Raw Data'!$I$4:$I$5000,'Raw Data'!$H$4:$H$5000,\"\",0),\"\")","v":""},{"$f":"IF(INDIRECT(M1764) = \"\",\"\",INDIRECT(M1764))","v":""},"n"]
["SUCMNOPROPORNLR_MI",null,null,null,{"$f":"_xlfn.XLOOKUP(F1765,'Raw Data'!$I$4:$I$5000,'Raw Data'!$D$4:$D$5000,\"*** Mnemonic not found ***\",0)","v":"*** Mnemonic not found ***"},"SUCMNOPROPORNLR_MI__",null,"Input",null,null,698,"G","Input!G698",{"$f":"_xlfn.XLOOKUP(F1765,'Raw Data'!$I$4:$I$5000,'Raw Data'!$E$4:$E$5000,100,0)","v":100},{"$f":"IF(N1765=0,_xlfn.XLOOKUP(F1765,'Raw Data'!$I$4:$I$5000,'Raw Data'!$H$4:$H$5000,\"\",0),\"\")","v":""},{"$f":"IF(INDIRECT(M1765) = \"\",\"\",INDIRECT(M1765))","v":""},"n"]
["SUCMUPRLRCEARNPAT_MI",null,null,null,{"$f":"_xlfn.XLOOKUP(F1766,'Raw Data'!$I$4:$I$5000,'Raw Data'!$D$4:$D$5000,\"*** Mnemonic not found ***\",0)","v":"*** Mnemonic not found ***"},{"$f":"CONCATENATE(A1766,\"_\",B1766,\"_\",D1766)","v":"SUCMUPRLRCEARNPAT_MI__"},null,"Input",null,null,697,"I",{"$f":"CONCATENATE(H1766,\"!\",L1766,K1766)","v":"Input!I697"},{"$f":"_xlfn.XLOOKUP(F1766,'Raw Data'!$I$4:$I$5000,'Raw Data'!$E$4:$E$5000,100,0)","v":100},{"$f":"IF(N1766=0,_xlfn.XLOOKUP(F1766,'Raw Data'!$I$4:$I$5000,'Raw Data'!$H$4:$H$5000,\"\",0),\"\")","v":""},{"$f":"IF(INDIRECT(M1766) = \"\",\"\",INDIRECT(M1766))","v":0.2},"n","inp_mi_upr_earn_pattern"]
["SUCMAEPOEPCURVE",null,null,null,{"$f":"_xlfn.XLOOKUP(F1767,'Raw Data'!$I$4:$I$5000,'Raw Data'!$D$4:$D$5000,\"*** Mnemonic not found ***\",0)","v":"*** Mnemonic not found ***"},"SUCMAEPOEPCURVE__","Natural catastrophe","Input",{"$f":"ROW(section_natural_catastrophe)","v":701},2,{"$f":"I1767+J1767","v":703},"F","Input!F703",{"$f":"_xlfn.XLOOKUP(F1767,'Raw Data'!$I$4:$I$5000,'Raw Data'!$E$4:$E$5000,100,0)","v":100},{"$f":"IF(N1767=0,_xlfn.XLOOKUP(F1767,'Raw Data'!$I$4:$I$5000,'Raw Data'!$H$4:$H$5000,\"\",0),\"\")","v":""},{"$f":"IF(INDIRECT(M1767) = \"\",\"\",INDIRECT(M1767))","v":"Yes, AEP"},"c"]
["SUCMNCRGROSS_200",null,null,null,{"$f":"_xlfn.XLOOKUP(F1768,'Raw Data'!$I$4:$I$5000,'Raw Data'!$D$4:$D$5000,\"*** Mnemonic not found ***\",0)","v":"*** Mnemonic not found ***"},"SUCMNCRGROSS_200__",null,"Input",null,null,{"$f":"K1767+3","v":706},{"$f":"L1767","v":"F"},"Input!F706",{"$f":"_xlfn.XLOOKUP(F1768,'Raw Data'!$I$4:$I$5000,'Raw Data'!$E$4:$E$5000,100,0)","v":100},{"$f":"IF(N1768=0,_xlfn.XLOOKUP(F1768,'Raw Data'!$I$4:$I$5000,'Raw Data'!$H$4:$H$5000,\"\",0),\"\")","v":""},{"$f":"IF(INDIRECT(M1768) = \"\",\"\",INDIRECT(M1768))","v":""},"n"]
["SUCMNCRNET_200",null,null,null,{"$f":"_xlfn.XLOOKUP(F1769,'Raw Data'!$I$4:$I$5000,'Raw Data'!$D$4:$D$5000,\"*** Mnemonic not found ***\",0)","v":"*** Mnemonic not found ***"},"SUCMNCRNET_200__",null,"Input",null,null,{"$f":"K1768+1","v":707},{"$f":"L1768","v":"F"},"Input!F707",{"$f":"_xlfn.XLOOKUP(F1769,'Raw Data'!$I$4:$I$5000,'Raw Data'!$E$4:$E$5000,100,0)","v":100},{"$f":"IF(N1769=0,_xlfn.XLOOKUP(F1769,'Raw Data'!$I$4:$I$5000,'Raw Data'!$H$4:$H$5000,\"\",0),\"\")","v":""},{"$f":"IF(INDIRECT(M1769) = \"\",\"\",INDIRECT(M1769))","v":""},"n"]
["SUCMNCRRECUNCOLL_200",null,null,null,{"$f":"_xlfn.XLOOKUP(F1770,'Raw Data'!$I$4:$I$5000,'Raw Data'!$D$4:$D$5000,\"*** Mnemonic not found ***\",0)","v":"*** Mnemonic not found ***"},"SUCMNCRRECUNCOLL_200__",null,"Input",null,null,708,"F","Input!F708",{"$f":"_xlfn.XLOOKUP(F1770,'Raw Data'!$I$4:$I$5000,'Raw Data'!$E$4:$E$5000,100,0)","v":100},{"$f":"IF(N1770=0,_xlfn.XLOOKUP(F1770,'Raw Data'!$I$4:$I$5000,'Raw Data'!$H$4:$H$5000,\"\",0),\"\")","v":""},{"$f":"IF(INDIRECT(M1770) = \"\",\"\",INDIRECT(M1770))","v":""},"n"]
["SUCMNCRRECCOLL_200",null,null,null,{"$f":"_xlfn.XLOOKUP(F1771,'Raw Data'!$I$4:$I$5000,'Raw Data'!$D$4:$D$5000,\"*** Mnemonic not found ***\",0)","v":"*** Mnemonic not found ***"},"SUCMNCRRECCOLL_200__",null,"Input",null,null,709,"F","Input!F709",{"$f":"_xlfn.XLOOKUP(F1771,'Raw Data'!$I$4:$I$5000,'Raw Data'!$E$4:$E$5000,100,0)","v":100},{"$f":"IF(N1771=0,_xlfn.XLOOKUP(F1771,'Raw Data'!$I$4:$I$5000,'Raw Data'!$H$4:$H$5000,\"\",0),\"\")","v":""},{"$f":"IF(INDIRECT(M1771) = \"\",\"\",INDIRECT(M1771))","v":""},"n"]
["SUCMNCPINWARD_200",null,null,null,{"$f":"_xlfn.XLOOKUP(F1772,'Raw Data'!$I$4:$I$5000,'Raw Data'!$D$4:$D$5000,\"*** Mnemonic not found ***\",0)","v":"*** Mnemonic not found ***"},"SUCMNCPINWARD_200__",null,"Input",null,null,710,"F","Input!F710",{"$f":"_xlfn.XLOOKUP(F1772,'Raw Data'!$I$4:$I$5000,'Raw Data'!$E$4:$E$5000,100,0)","v":100},{"$f":"IF(N1772=0,_xlfn.XLOOKUP(F1772,'Raw Data'!$I$4:$I$5000,'Raw Data'!$H$4:$H$5000,\"\",0),\"\")","v":""},{"$f":"IF(INDIRECT(M1772) = \"\",\"\",INDIRECT(M1772))","v":""},"n"]
["SUCMNCPOUTWARD_200",null,null,null,{"$f":"_xlfn.XLOOKUP(F1773,'Raw Data'!$I$4:$I$5000,'Raw Data'!$D$4:$D$5000,\"*** Mnemonic not found ***\",0)","v":"*** Mnemonic not found ***"},"SUCMNCPOUTWARD_200__",null,"Input",null,null,711,"F","Input!F711",{"$f":"_xlfn.XLOOKUP(F1773,'Raw Data'!$I$4:$I$5000,'Raw Data'!$E$4:$E$5000,100,0)","v":100},{"$f":"IF(N1773=0,_xlfn.XLOOKUP(F1773,'Raw Data'!$I$4:$I$5000,'Raw Data'!$H$4:$H$5000,\"\",0),\"\")","v":""},{"$f":"IF(INDIRECT(M1773) = \"\",\"\",INDIRECT(M1773))","v":""},"n"]
["SUCMNCRGROSS_250",null,null,null,{"$f":"_xlfn.XLOOKUP(F1774,'Raw Data'!$I$4:$I$5000,'Raw Data'!$D$4:$D$5000,\"*** Mnemonic not found ***\",0)","v":"*** Mnemonic not found ***"},"SUCMNCRGROSS_250__",null,"Input",{"$f":"ROW(section_natural_catastrophe)","v":701},5,{"$f":"I1774+J1774","v":706},"G","Input!G706",{"$f":"_xlfn.XLOOKUP(F1774,'Raw Data'!$I$4:$I$5000,'Raw Data'!$E$4:$E$5000,100,0)","v":100},{"$f":"IF(N1774=0,_xlfn.XLOOKUP(F1774,'Raw Data'!$I$4:$I$5000,'Raw Data'!$H$4:$H$5000,\"\",0),\"\")","v":""},{"$f":"IF(INDIRECT(M1774) = \"\",\"\",INDIRECT(M1774))","v":""},"n"]
["SUCMNCRNET_250",null,null,null,{"$f":"_xlfn.XLOOKUP(F1775,'Raw Data'!$I$4:$I$5000,'Raw Data'!$D$4:$D$5000,\"*** Mnemonic not found ***\",0)","v":"*** Mnemonic not found ***"},"SUCMNCRNET_250__",null,"Input",null,null,{"$f":"K1774+1","v":707},{"$f":"L1774","v":"G"},"Input!G707",{"$f":"_xlfn.XLOOKUP(F1775,'Raw Data'!$I$4:$I$5000,'Raw Data'!$E$4:$E$5000,100,0)","v":100},{"$f":"IF(N1775=0,_xlfn.XLOOKUP(F1775,'Raw Data'!$I$4:$I$5000,'Raw Data'!$H$4:$H$5000,\"\",0),\"\")","v":""},{"$f":"IF(INDIRECT(M1775) = \"\",\"\",INDIRECT(M1775))","v":""},"n"]
["SUCMNCRRECUNCOLL_250",null,null,null,{"$f":"_xlfn.XLOOKUP(F1776,'Raw Data'!$I$4:$I$5000,'Raw Data'!$D$4:$D$5000,\"*** Mnemonic not found ***\",0)","v":"*** Mnemonic not found ***"},"SUCMNCRRECUNCOLL_250__",null,"Input",null,null,708,"G","Input!G708",{"$f":"_xlfn.XLOOKUP(F1776,'Raw Data'!$I$4:$I$5000,'Raw Data'!$E$4:$E$5000,100,0)","v":100},{"$f":"IF(N1776=0,_xlfn.XLOOKUP(F1776,'Raw Data'!$I$4:$I$5000,'Raw Data'!$H$4:$H$5000,\"\",0),\"\")","v":""},{"$f":"IF(INDIRECT(M1776) = \"\",\"\",INDIRECT(M1776))","v":""},"n"]
["SUCMNCRRECCOLL_250",null,null,null,{"$f":"_xlfn.XLOOKUP(F1777,'Raw Data'!$I$4:$I$5000,'Raw Data'!$D$4:$D$5000,\"*** Mnemonic not found ***\",0)","v":"*** Mnemonic not found ***"},"SUCMNCRRECCOLL_250__",null,"Input",null,null,709,"G","Input!G709",{"$f":"_xlfn.XLOOKUP(F1777,'Raw Data'!$I$4:$I$5000,'Raw Data'!$E$4:$E$5000,100,0)","v":100},{"$f":"IF(N1777=0,_xlfn.XLOOKUP(F1777,'Raw Data'!$I$4:$I$5000,'Raw Data'!$H$4:$H$5000,\"\",0),\"\")","v":""},{"$f":"IF(INDIRECT(M1777) = \"\",\"\",INDIRECT(M1777))","v":""},"n"]
["SUCMNCPINWARD_250",null,null,null,{"$f":"_xlfn.XLOOKUP(F1778,'Raw Data'!$I$4:$I$5000,'Raw Data'!$D$4:$D$5000,\"*** Mnemonic not found ***\",0)","v":"*** Mnemonic not found ***"},"SUCMNCPINWARD_250__",null,"Input",null,null,710,"G","Input!G710",{"$f":"_xlfn.XLOOKUP(F1778,'Raw Data'!$I$4:$I$5000,'Raw Data'!$E$4:$E$5000,100,0)","v":100},{"$f":"IF(N1778=0,_xlfn.XLOOKUP(F1778,'Raw Data'!$I$4:$I$5000,'Raw Data'!$H$4:$H$5000,\"\",0),\"\")","v":""},{"$f":"IF(INDIRECT(M1778) = \"\",\"\",INDIRECT(M1778))","v":""},"n"]
["SUCMNCPOUTWARD_250",null,null,null,{"$f":"_xlfn.XLOOKUP(F1779,'Raw Data'!$I$4:$I$5000,'Raw Data'!$D$4:$D$5000,\"*** Mnemonic not found ***\",0)","v":"*** Mnemonic not found ***"},"SUCMNCPOUTWARD_250__",null,"Input",null,null,711,"G","Input!G711",{"$f":"_xlfn.XLOOKUP(F1779,'Raw Data'!$I$4:$I$5000,'Raw Data'!$E$4:$E$5000,100,0)","v":100},{"$f":"IF(N1779=0,_xlfn.XLOOKUP(F1779,'Raw Data'!$I$4:$I$5000,'Raw Data'!$H$4:$H$5000,\"\",0),\"\")","v":""},{"$f":"IF(INDIRECT(M1779) = \"\",\"\",INDIRECT(M1779))","v":""},"n"]
["SUCMNCRGROSS_333",null,null,null,{"$f":"_xlfn.XLOOKUP(F1780,'Raw Data'!$I$4:$I$5000,'Raw Data'!$D$4:$D$5000,\"*** Mnemonic not found ***\",0)","v":"*** Mnemonic not found ***"},"SUCMNCRGROSS_333__",null,"Input",{"$f":"ROW(section_natural_catastrophe)","v":701},5,{"$f":"I1780+J1780","v":706},"H",{"$f":"CONCATENATE(H1780,\"!\",L1780,K1780)","v":"Input!H706"},{"$f":"_xlfn.XLOOKUP(F1780,'Raw Data'!$I$4:$I$5000,'Raw Data'!$E$4:$E$5000,100,0)","v":100},{"$f":"IF(N1780=0,_xlfn.XLOOKUP(F1780,'Raw Data'!$I$4:$I$5000,'Raw Data'!$H$4:$H$5000,\"\",0),\"\")","v":""},{"$f":"IF(INDIRECT(M1780) = \"\",\"\",INDIRECT(M1780))","v":""},"n"]
["SUCMNCRNET_333",null,null,null,{"$f":"_xlfn.XLOOKUP(F1781,'Raw Data'!$I$4:$I$5000,'Raw Data'!$D$4:$D$5000,\"*** Mnemonic not found ***\",0)","v":"*** Mnemonic not found ***"},"SUCMNCRNET_333__",null,"Input",null,null,{"$f":"K1780+1","v":707},{"$f":"L1780","v":"H"},"Input!H707",{"$f":"_xlfn.XLOOKUP(F1781,'Raw Data'!$I$4:$I$5000,'Raw Data'!$E$4:$E$5000,100,0)","v":100},{"$f":"IF(N1781=0,_xlfn.XLOOKUP(F1781,'Raw Data'!$I$4:$I$5000,'Raw Data'!$H$4:$H$5000,\"\",0),\"\")","v":""},{"$f":"IF(INDIRECT(M1781) = \"\",\"\",INDIRECT(M1781))","v":""},"n"]
["SUCMNCRRECUNCOLL_333",null,null,null,{"$f":"_xlfn.XLOOKUP(F1782,'Raw Data'!$I$4:$I$5000,'Raw Data'!$D$4:$D$5000,\"*** Mnemonic not found ***\",0)","v":"*** Mnemonic not found ***"},"SUCMNCRRECUNCOLL_333__",null,"Input",null,null,708,"H","Input!H708",{"$f":"_xlfn.XLOOKUP(F1782,'Raw Data'!$I$4:$I$5000,'Raw Data'!$E$4:$E$5000,100,0)","v":100},{"$f":"IF(N1782=0,_xlfn.XLOOKUP(F1782,'Raw Data'!$I$4:$I$5000,'Raw Data'!$H$4:$H$5000,\"\",0),\"\")","v":""},{"$f":"IF(INDIRECT(M1782) = \"\",\"\",INDIRECT(M1782))","v":""},"n"]
["SUCMNCRRECCOLL_333",null,null,null,{"$f":"_xlfn.XLOOKUP(F1783,'Raw Data'!$I$4:$I$5000,'Raw Data'!$D$4:$D$5000,\"*** Mnemonic not found ***\",0)","v":"*** Mnemonic not found ***"},"SUCMNCRRECCOLL_333__",null,"Input",null,null,709,"H","Input!H709",{"$f":"_xlfn.XLOOKUP(F1783,'Raw Data'!$I$4:$I$5000,'Raw Data'!$E$4:$E$5000,100,0)","v":100},{"$f":"IF(N1783=0,_xlfn.XLOOKUP(F1783,'Raw Data'!$I$4:$I$5000,'Raw Data'!$H$4:$H$5000,\"\",0),\"\")","v":""},{"$f":"IF(INDIRECT(M1783) = \"\",\"\",INDIRECT(M1783))","v":""},"n"]
["SUCMNCPINWARD_333",null,null,null,{"$f":"_xlfn.XLOOKUP(F1784,'Raw Data'!$I$4:$I$5000,'Raw Data'!$D$4:$D$5000,\"*** Mnemonic not found ***\",0)","v":"*** Mnemonic not found ***"},"SUCMNCPINWARD_333__",null,"Input",null,null,710,"H","Input!H710",{"$f":"_xlfn.XLOOKUP(F1784,'Raw Data'!$I$4:$I$5000,'Raw Data'!$E$4:$E$5000,100,0)","v":100},{"$f":"IF(N1784=0,_xlfn.XLOOKUP(F1784,'Raw Data'!$I$4:$I$5000,'Raw Data'!$H$4:$H$5000,\"\",0),\"\")","v":""},{"$f":"IF(INDIRECT(M1784) = \"\",\"\",INDIRECT(M1784))","v":""},"n"]
["SUCMNCPOUTWARD_333",null,null,null,{"$f":"_xlfn.XLOOKUP(F1785,'Raw Data'!$I$4:$I$5000,'Raw Data'!$D$4:$D$5000,\"*** Mnemonic not found ***\",0)","v":"*** Mnemonic not found ***"},"SUCMNCPOUTWARD_333__",null,"Input",null,null,{"$f":"K1784+1","v":711},{"$f":"L1784","v":"H"},"Input!H711",{"$f":"_xlfn.XLOOKUP(F1785,'Raw Data'!$I$4:$I$5000,'Raw Data'!$E$4:$E$5000,100,0)","v":100},{"$f":"IF(N1785=0,_xlfn.XLOOKUP(F1785,'Raw Data'!$I$4:$I$5000,'Raw Data'!$H$4:$H$5000,\"\",0),\"\")","v":""},{"$f":"IF(INDIRECT(M1785) = \"\",\"\",INDIRECT(M1785))","v":""},"n"]
["SUCMNCRGROSS_500",null,null,null,{"$f":"_xlfn.XLOOKUP(F1786,'Raw Data'!$I$4:$I$5000,'Raw Data'!$D$4:$D$5000,\"*** Mnemonic not found ***\",0)","v":"*** Mnemonic not found ***"},"SUCMNCRGROSS_500__",null,"Input",{"$f":"ROW(section_natural_catastrophe)","v":701},5,{"$f":"I1786+J1786","v":706},"I","Input!I706",{"$f":"_xlfn.XLOOKUP(F1786,'Raw Data'!$I$4:$I$5000,'Raw Data'!$E$4:$E$5000,100,0)","v":100},{"$f":"IF(N1786=0,_xlfn.XLOOKUP(F1786,'Raw Data'!$I$4:$I$5000,'Raw Data'!$H$4:$H$5000,\"\",0),\"\")","v":""},{"$f":"IF(INDIRECT(M1786) = \"\",\"\",INDIRECT(M1786))","v":""},"n"]
["SUCMNCRNET_500",null,null,null,{"$f":"_xlfn.XLOOKUP(F1787,'Raw Data'!$I$4:$I$5000,'Raw Data'!$D$4:$D$5000,\"*** Mnemonic not found ***\",0)","v":"*** Mnemonic not found ***"},"SUCMNCRNET_500__",null,"Input",null,null,707,"I","Input!I707",{"$f":"_xlfn.XLOOKUP(F1787,'Raw Data'!$I$4:$I$5000,'Raw Data'!$E$4:$E$5000,100,0)","v":100},{"$f":"IF(N1787=0,_xlfn.XLOOKUP(F1787,'Raw Data'!$I$4:$I$5000,'Raw Data'!$H$4:$H$5000,\"\",0),\"\")","v":""},{"$f":"IF(INDIRECT(M1787) = \"\",\"\",INDIRECT(M1787))","v":""},"n"]
["SUCMNCRRECUNCOLL_500",null,null,null,{"$f":"_xlfn.XLOOKUP(F1788,'Raw Data'!$I$4:$I$5000,'Raw Data'!$D$4:$D$5000,\"*** Mnemonic not found ***\",0)","v":"*** Mnemonic not found ***"},"SUCMNCRRECUNCOLL_500__",null,"Input",null,null,708,"I","Input!I708",{"$f":"_xlfn.XLOOKUP(F1788,'Raw Data'!$I$4:$I$5000,'Raw Data'!$E$4:$E$5000,100,0)","v":100},{"$f":"IF(N1788=0,_xlfn.XLOOKUP(F1788,'Raw Data'!$I$4:$I$5000,'Raw Data'!$H$4:$H$5000,\"\",0),\"\")","v":""},{"$f":"IF(INDIRECT(M1788) = \"\",\"\",INDIRECT(M1788))","v":""},"n"]
["SUCMNCRRECCOLL_500",null,null,null,{"$f":"_xlfn.XLOOKUP(F1789,'Raw Data'!$I$4:$I$5000,'Raw Data'!$D$4:$D$5000,\"*** Mnemonic not found ***\",0)","v":"*** Mnemonic not found ***"},"SUCMNCRRECCOLL_500__",null,"Input",null,null,709,"I","Input!I709",{"$f":"_xlfn.XLOOKUP(F1789,'Raw Data'!$I$4:$I$5000,'Raw Data'!$E$4:$E$5000,100,0)","v":100},{"$f":"IF(N1789=0,_xlfn.XLOOKUP(F1789,'Raw Data'!$I$4:$I$5000,'Raw Data'!$H$4:$H$5000,\"\",0),\"\")","v":""},{"$f":"IF(INDIRECT(M1789) = \"\",\"\",INDIRECT(M1789))","v":""},"n"]
["SUCMNCPINWARD_500",null,null,null,{"$f":"_xlfn.XLOOKUP(F1790,'Raw Data'!$I$4:$I$5000,'Raw Data'!$D$4:$D$5000,\"*** Mnemonic not found ***\",0)","v":"*** Mnemonic not found ***"},"SUCMNCPINWARD_500__",null,"Input",null,null,710,"I","Input!I710",{"$f":"_xlfn.XLOOKUP(F1790,'Raw Data'!$I$4:$I$5000,'Raw Data'!$E$4:$E$5000,100,0)","v":100},{"$f":"IF(N1790=0,_xlfn.XLOOKUP(F1790,'Raw Data'!$I$4:$I$5000,'Raw Data'!$H$4:$H$5000,\"\",0),\"\")","v":""},{"$f":"IF(INDIRECT(M1790) = \"\",\"\",INDIRECT(M1790))","v":""},"n"]
["SUCMNCPOUTWARD_500",null,null,null,{"$f":"_xlfn.XLOOKUP(F1791,'Raw Data'!$I$4:$I$5000,'Raw Data'!$D$4:$D$5000,\"*** Mnemonic not found ***\",0)","v":"*** Mnemonic not found ***"},"SUCMNCPOUTWARD_500__",null,"Input",null,null,711,"I","Input!I711",{"$f":"_xlfn.XLOOKUP(F1791,'Raw Data'!$I$4:$I$5000,'Raw Data'!$E$4:$E$5000,100,0)","v":100},{"$f":"IF(N1791=0,_xlfn.XLOOKUP(F1791,'Raw Data'!$I$4:$I$5000,'Raw Data'!$H$4:$H$5000,\"\",0),\"\")","v":""},{"$f":"IF(INDIRECT(M1791) = \"\",\"\",INDIRECT(M1791))","v":""},"n"]
["SUCMNCRAAL",null,null,null,{"$f":"_xlfn.XLOOKUP(F1792,'Raw Data'!$I$4:$I$5000,'Raw Data'!$D$4:$D$5000,\"*** Mnemonic not found ***\",0)","v":"*** Mnemonic not found ***"},"SUCMNCRAAL__",null,"Input",null,null,{"$f":"K1791+3","v":714},"F","Input!F714",{"$f":"_xlfn.XLOOKUP(F1792,'Raw Data'!$I$4:$I$5000,'Raw Data'!$E$4:$E$5000,100,0)","v":100},{"$f":"IF(N1792=0,_xlfn.XLOOKUP(F1792,'Raw Data'!$I$4:$I$5000,'Raw Data'!$H$4:$H$5000,\"\",0),\"\")","v":""},{"$f":"IF(INDIRECT(M1792) = \"\",\"\",INDIRECT(M1792))","v":""},"n"]
["SUCMNATCATCHG_995",null,null,null,{"$f":"_xlfn.XLOOKUP(F1793,'Raw Data'!$I$4:$I$5000,'Raw Data'!$D$4:$D$5000,\"*** Mnemonic not found ***\",0)","v":"*** Mnemonic not found ***"},"SUCMNATCATCHG_995__",null,"Input",null,null,{"$f":"K1792+2","v":716},{"$f":"L1792","v":"F"},"Input!F716",{"$f":"_xlfn.XLOOKUP(F1793,'Raw Data'!$I$4:$I$5000,'Raw Data'!$E$4:$E$5000,100,0)","v":100},{"$f":"IF(N1793=0,_xlfn.XLOOKUP(F1793,'Raw Data'!$I$4:$I$5000,'Raw Data'!$H$4:$H$5000,\"\",0),\"\")","v":""},{"$f":"IF(INDIRECT(M1793) = \"\",\"\",INDIRECT(M1793))","v":""},"n"]
["SUCMNATCATREC_995",null,null,null,{"$f":"_xlfn.XLOOKUP(F1794,'Raw Data'!$I$4:$I$5000,'Raw Data'!$D$4:$D$5000,\"*** Mnemonic not found ***\",0)","v":"*** Mnemonic not found ***"},{"$f":"CONCATENATE(A1794,\"_\",B1794,\"_\",D1794)","v":"SUCMNATCATREC_995__"},null,"Input",null,null,{"$f":"K1793","v":716},"J",{"$f":"CONCATENATE(H1794,\"!\",L1794,K1794)","v":"Input!J716"},{"$f":"_xlfn.XLOOKUP(F1794,'Raw Data'!$I$4:$I$5000,'Raw Data'!$E$4:$E$5000,100,0)","v":100},{"$f":"IF(N1794=0,_xlfn.XLOOKUP(F1794,'Raw Data'!$I$4:$I$5000,'Raw Data'!$H$4:$H$5000,\"\",0),\"\")","v":""},{"$f":"IF(INDIRECT(M1794) = \"\",\"\",INDIRECT(M1794))","v":""},"n"]
["SUCMMORTCIRITHDM",null,null,null,{"$f":"_xlfn.XLOOKUP(F1795,'Raw Data'!$I$4:$I$5000,'Raw Data'!$D$4:$D$5000,\"*** Mnemonic not found ***\",0)","v":"*** Mnemonic not found ***"},"SUCMMORTCIRITHDM__","Life - Mortality and Pandemic","Input",{"$f":"ROW(section_mort_and_pandemic)","v":721},3,{"$f":"I1795+J1795","v":724},"F","Input!F724",{"$f":"_xlfn.XLOOKUP(F1795,'Raw Data'!$I$4:$I$5000,'Raw Data'!$E$4:$E$5000,100,0)","v":100},{"$f":"IF(N1795=0,_xlfn.XLOOKUP(F1795,'Raw Data'!$I$4:$I$5000,'Raw Data'!$H$4:$H$5000,\"\",0),\"\")","v":""},{"$f":"IF(INDIRECT(M1795) = \"\",\"\",INDIRECT(M1795))","v":""},"n"]
["SUCMMORTCIRITLDM",null,null,null,{"$f":"_xlfn.XLOOKUP(F1796,'Raw Data'!$I$4:$I$5000,'Raw Data'!$D$4:$D$5000,\"*** Mnemonic not found ***\",0)","v":"*** Mnemonic not found ***"},"SUCMMORTCIRITLDM__",null,"Input",null,null,{"$f":"K1795+1","v":725},{"$f":"L1795","v":"F"},"Input!F725",{"$f":"_xlfn.XLOOKUP(F1796,'Raw Data'!$I$4:$I$5000,'Raw Data'!$E$4:$E$5000,100,0)","v":100},{"$f":"IF(N1796=0,_xlfn.XLOOKUP(F1796,'Raw Data'!$I$4:$I$5000,'Raw Data'!$H$4:$H$5000,\"\",0),\"\")","v":""},{"$f":"IF(INDIRECT(M1796) = \"\",\"\",INDIRECT(M1796))","v":""},"n"]
["SUCMMORTGROSSTOT",null,null,null,{"$f":"_xlfn.XLOOKUP(F1797,'Raw Data'!$I$4:$I$5000,'Raw Data'!$D$4:$D$5000,\"*** Mnemonic not found ***\",0)","v":"*** Mnemonic not found ***"},"SUCMMORTGROSSTOT__",null,"Input",null,null,{"$f":"K1796+4","v":729},"F","Input!F729",{"$f":"_xlfn.XLOOKUP(F1797,'Raw Data'!$I$4:$I$5000,'Raw Data'!$E$4:$E$5000,100,0)","v":100},{"$f":"IF(N1797=0,_xlfn.XLOOKUP(F1797,'Raw Data'!$I$4:$I$5000,'Raw Data'!$H$4:$H$5000,\"\",0),\"\")","v":""},{"$f":"IF(INDIRECT(M1797) = \"\",\"\",INDIRECT(M1797))","v":""},"n"]
["SUCMMORBCIRITHDM",null,null,null,{"$f":"_xlfn.XLOOKUP(F1798,'Raw Data'!$I$4:$I$5000,'Raw Data'!$D$4:$D$5000,\"*** Mnemonic not found ***\",0)","v":"*** Mnemonic not found ***"},"SUCMMORBCIRITHDM__","Life - Morbidity -- critical illness","Input",{"$f":"ROW(section_morbidity_ci)","v":732},3,{"$f":"I1798+J1798","v":735},"F","Input!F735",{"$f":"_xlfn.XLOOKUP(F1798,'Raw Data'!$I$4:$I$5000,'Raw Data'!$E$4:$E$5000,100,0)","v":100},{"$f":"IF(N1798=0,_xlfn.XLOOKUP(F1798,'Raw Data'!$I$4:$I$5000,'Raw Data'!$H$4:$H$5000,\"\",0),\"\")","v":""},{"$f":"IF(INDIRECT(M1798) = \"\",\"\",INDIRECT(M1798))","v":""},"n"]
["SUCMMORBCIRITLDM",null,null,null,{"$f":"_xlfn.XLOOKUP(F1799,'Raw Data'!$I$4:$I$5000,'Raw Data'!$D$4:$D$5000,\"*** Mnemonic not found ***\",0)","v":"*** Mnemonic not found ***"},"SUCMMORBCIRITLDM__",null,"Input",null,null,{"$f":"K1798+1","v":736},{"$f":"L1798","v":"F"},"Input!F736",{"$f":"_xlfn.XLOOKUP(F1799,'Raw Data'!$I$4:$I$5000,'Raw Data'!$E$4:$E$5000,100,0)","v":100},{"$f":"IF(N1799=0,_xlfn.XLOOKUP(F1799,'Raw Data'!$I$4:$I$5000,'Raw Data'!$H$4:$H$5000,\"\",0),\"\")","v":""},{"$f":"IF(INDIRECT(M1799) = \"\",\"\",INDIRECT(M1799))","v":""},"n"]
["SUCMDISPRDISNONCANCEL",null,null,null,{"$f":"_xlfn.XLOOKUP(F1800,'Raw Data'!$I$4:$I$5000,'Raw Data'!$D$4:$D$5000,\"*** Mnemonic not found ***\",0)","v":"*** Mnemonic not found ***"},"SUCMDISPRDISNONCANCEL__","Life - Morbidity -- disability","Input",{"$f":"ROW(section_morbidity_disability)","v":739},3,{"$f":"I1800+J1800","v":742},"F","Input!F742",{"$f":"_xlfn.XLOOKUP(F1800,'Raw Data'!$I$4:$I$5000,'Raw Data'!$E$4:$E$5000,100,0)","v":100},{"$f":"IF(N1800=0,_xlfn.XLOOKUP(F1800,'Raw Data'!$I$4:$I$5000,'Raw Data'!$H$4:$H$5000,\"\",0),\"\")","v":""},{"$f":"IF(INDIRECT(M1800) = \"\",\"\",INDIRECT(M1800))","v":""},"n"]
["SUCMDISPRDISOII",null,null,null,{"$f":"_xlfn.XLOOKUP(F1801,'Raw Data'!$I$4:$I$5000,'Raw Data'!$D$4:$D$5000,\"*** Mnemonic not found ***\",0)","v":"*** Mnemonic not found ***"},{"$f":"CONCATENATE(A1801,\"_\",B1801,\"_\",D1801)","v":"SUCMDISPRDISOII__"},null,"Input",null,null,{"$f":"K1800+1","v":743},{"$f":"L1800","v":"F"},"Input!F743",{"$f":"_xlfn.XLOOKUP(F1801,'Raw Data'!$I$4:$I$5000,'Raw Data'!$E$4:$E$5000,100,0)","v":100},{"$f":"IF(N1801=0,_xlfn.XLOOKUP(F1801,'Raw Data'!$I$4:$I$5000,'Raw Data'!$H$4:$H$5000,\"\",0),\"\")","v":""},{"$f":"IF(INDIRECT(M1801) = \"\",\"\",INDIRECT(M1801))","v":""},"n"]
["SUCMDISPRDISGLT",null,null,null,{"$f":"_xlfn.XLOOKUP(F1802,'Raw Data'!$I$4:$I$5000,'Raw Data'!$D$4:$D$5000,\"*** Mnemonic not found ***\",0)","v":"*** Mnemonic not found ***"},"SUCMDISPRDISGLT__",null,"Input",null,null,744,"F","Input!F744",{"$f":"_xlfn.XLOOKUP(F1802,'Raw Data'!$I$4:$I$5000,'Raw Data'!$E$4:$E$5000,100,0)","v":100},{"$f":"IF(N1802=0,_xlfn.XLOOKUP(F1802,'Raw Data'!$I$4:$I$5000,'Raw Data'!$H$4:$H$5000,\"\",0),\"\")","v":""},{"$f":"IF(INDIRECT(M1802) = \"\",\"\",INDIRECT(M1802))","v":""},"n"]
["SUCMDISPRGST",null,null,null,{"$f":"_xlfn.XLOOKUP(F1803,'Raw Data'!$I$4:$I$5000,'Raw Data'!$D$4:$D$5000,\"*** Mnemonic not found ***\",0)","v":"*** Mnemonic not found ***"},"SUCMDISPRGST__",null,"Input",null,null,745,"F","Input!F745",{"$f":"_xlfn.XLOOKUP(F1803,'Raw Data'!$I$4:$I$5000,'Raw Data'!$E$4:$E$5000,100,0)","v":100},{"$f":"IF(N1803=0,_xlfn.XLOOKUP(F1803,'Raw Data'!$I$4:$I$5000,'Raw Data'!$H$4:$H$5000,\"\",0),\"\")","v":""},{"$f":"IF(INDIRECT(M1803) = \"\",\"\",INDIRECT(M1803))","v":""},"n"]
["SUCMDISPRCROSBAL",null,null,null,{"$f":"_xlfn.XLOOKUP(F1804,'Raw Data'!$I$4:$I$5000,'Raw Data'!$D$4:$D$5000,\"*** Mnemonic not found ***\",0)","v":"*** Mnemonic not found ***"},"SUCMDISPRCROSBAL__",null,"Input",null,null,746,"F","Input!F746",{"$f":"_xlfn.XLOOKUP(F1804,'Raw Data'!$I$4:$I$5000,'Raw Data'!$E$4:$E$5000,100,0)","v":100},{"$f":"IF(N1804=0,_xlfn.XLOOKUP(F1804,'Raw Data'!$I$4:$I$5000,'Raw Data'!$H$4:$H$5000,\"\",0),\"\")","v":""},{"$f":"IF(INDIRECT(M1804) = \"\",\"\",INDIRECT(M1804))","v":""},"n"]
["SUCMDISPRCSRWITH",null,null,null,{"$f":"_xlfn.XLOOKUP(F1805,'Raw Data'!$I$4:$I$5000,'Raw Data'!$D$4:$D$5000,\"*** Mnemonic not found ***\",0)","v":"*** Mnemonic not found ***"},"SUCMDISPRCSRWITH__",null,"Input",null,null,747,"F","Input!F747",{"$f":"_xlfn.XLOOKUP(F1805,'Raw Data'!$I$4:$I$5000,'Raw Data'!$E$4:$E$5000,100,0)","v":100},{"$f":"IF(N1805=0,_xlfn.XLOOKUP(F1805,'Raw Data'!$I$4:$I$5000,'Raw Data'!$H$4:$H$5000,\"\",0),\"\")","v":""},{"$f":"IF(INDIRECT(M1805) = \"\",\"\",INDIRECT(M1805))","v":""},"n"]
["SUCMDISPRCSRWITHOUT",null,null,null,{"$f":"_xlfn.XLOOKUP(F1806,'Raw Data'!$I$4:$I$5000,'Raw Data'!$D$4:$D$5000,\"*** Mnemonic not found ***\",0)","v":"*** Mnemonic not found ***"},"SUCMDISPRCSRWITHOUT__",null,"Input",null,null,748,"F","Input!F748",{"$f":"_xlfn.XLOOKUP(F1806,'Raw Data'!$I$4:$I$5000,'Raw Data'!$E$4:$E$5000,100,0)","v":100},{"$f":"IF(N1806=0,_xlfn.XLOOKUP(F1806,'Raw Data'!$I$4:$I$5000,'Raw Data'!$H$4:$H$5000,\"\",0),\"\")","v":""},{"$f":"IF(INDIRECT(M1806) = \"\",\"\",INDIRECT(M1806))","v":""},"n"]
["SUCMDISPROTHERDISB",null,null,null,{"$f":"_xlfn.XLOOKUP(F1807,'Raw Data'!$I$4:$I$5000,'Raw Data'!$D$4:$D$5000,\"*** Mnemonic not found ***\",0)","v":"*** Mnemonic not found ***"},"SUCMDISPROTHERDISB__",null,"Input",null,null,749,"F","Input!F749",{"$f":"_xlfn.XLOOKUP(F1807,'Raw Data'!$I$4:$I$5000,'Raw Data'!$E$4:$E$5000,100,0)","v":100},{"$f":"IF(N1807=0,_xlfn.XLOOKUP(F1807,'Raw Data'!$I$4:$I$5000,'Raw Data'!$H$4:$H$5000,\"\",0),\"\")","v":""},{"$f":"IF(INDIRECT(M1807) = \"\",\"\",INDIRECT(M1807))","v":""},"n"]
["SUCMDISRESERPROD",null,null,null,{"$f":"_xlfn.XLOOKUP(F1808,'Raw Data'!$I$4:$I$5000,'Raw Data'!$D$4:$D$5000,\"*** Mnemonic not found ***\",0)","v":"*** Mnemonic not found ***"},"SUCMDISRESERPROD__",null,"Input",null,null,{"$f":"K1807+3","v":752},"F","Input!F752",{"$f":"_xlfn.XLOOKUP(F1808,'Raw Data'!$I$4:$I$5000,'Raw Data'!$E$4:$E$5000,100,0)","v":100},{"$f":"IF(N1808=0,_xlfn.XLOOKUP(F1808,'Raw Data'!$I$4:$I$5000,'Raw Data'!$H$4:$H$5000,\"\",0),\"\")","v":""},{"$f":"IF(INDIRECT(M1808) = \"\",\"\",INDIRECT(M1808))","v":""},"n"]
["SUCMLTCLAIB_NONUS",null,null,null,{"$f":"_xlfn.XLOOKUP(F1809,'Raw Data'!$I$4:$I$5000,'Raw Data'!$D$4:$D$5000,\"*** Mnemonic not found ***\",0)","v":"*** Mnemonic not found ***"},"SUCMLTCLAIB_NONUS__","Life - Morbidity -- long-term care","Input",{"$f":"ROW(section_morbidity_ltc)","v":755},3,{"$f":"I1809+J1809","v":758},"F","Input!F758",{"$f":"_xlfn.XLOOKUP(F1809,'Raw Data'!$I$4:$I$5000,'Raw Data'!$E$4:$E$5000,100,0)","v":100},{"$f":"IF(N1809=0,_xlfn.XLOOKUP(F1809,'Raw Data'!$I$4:$I$5000,'Raw Data'!$H$4:$H$5000,\"\",0),\"\")","v":""},{"$f":"IF(INDIRECT(M1809) = \"\",\"\",INDIRECT(M1809))","v":""},"n"]
["SUCMLTCCLAIMS_US",null,null,null,{"$f":"_xlfn.XLOOKUP(F1810,'Raw Data'!$I$4:$I$5000,'Raw Data'!$D$4:$D$5000,\"*** Mnemonic not found ***\",0)","v":"*** Mnemonic not found ***"},"SUCMLTCCLAIMS_US__",null,"Input",null,null,{"$f":"K1809+2","v":760},{"$f":"L1809","v":"F"},"Input!F760",{"$f":"_xlfn.XLOOKUP(F1810,'Raw Data'!$I$4:$I$5000,'Raw Data'!$E$4:$E$5000,100,0)","v":100},{"$f":"IF(N1810=0,_xlfn.XLOOKUP(F1810,'Raw Data'!$I$4:$I$5000,'Raw Data'!$H$4:$H$5000,\"\",0),\"\")","v":""},{"$f":"IF(INDIRECT(M1810) = \"\",\"\",INDIRECT(M1810))","v":""},"n"]
["SUCMLTCEARNPREM_US",null,null,null,{"$f":"_xlfn.XLOOKUP(F1811,'Raw Data'!$I$4:$I$5000,'Raw Data'!$D$4:$D$5000,\"*** Mnemonic not found ***\",0)","v":"*** Mnemonic not found ***"},"SUCMLTCEARNPREM_US__",null,"Input",null,null,{"$f":"K1810+1","v":761},"F","Input!F761",{"$f":"_xlfn.XLOOKUP(F1811,'Raw Data'!$I$4:$I$5000,'Raw Data'!$E$4:$E$5000,100,0)","v":100},{"$f":"IF(N1811=0,_xlfn.XLOOKUP(F1811,'Raw Data'!$I$4:$I$5000,'Raw Data'!$H$4:$H$5000,\"\",0),\"\")","v":""},{"$f":"IF(INDIRECT(M1811) = \"\",\"\",INDIRECT(M1811))","v":""},"n"]
["SUCMLTCCLAIMRES_US",null,null,null,{"$f":"_xlfn.XLOOKUP(F1812,'Raw Data'!$I$4:$I$5000,'Raw Data'!$D$4:$D$5000,\"*** Mnemonic not found ***\",0)","v":"*** Mnemonic not found ***"},"SUCMLTCCLAIMRES_US__",null,"Input",null,null,762,"F","Input!F762",{"$f":"_xlfn.XLOOKUP(F1812,'Raw Data'!$I$4:$I$5000,'Raw Data'!$E$4:$E$5000,100,0)","v":100},{"$f":"IF(N1812=0,_xlfn.XLOOKUP(F1812,'Raw Data'!$I$4:$I$5000,'Raw Data'!$H$4:$H$5000,\"\",0),\"\")","v":""},{"$f":"IF(INDIRECT(M1812) = \"\",\"\",INDIRECT(M1812))","v":""},"n"]
["SUCMLTCACTLFRES_US",null,null,null,{"$f":"_xlfn.XLOOKUP(F1813,'Raw Data'!$I$4:$I$5000,'Raw Data'!$D$4:$D$5000,\"*** Mnemonic not found ***\",0)","v":"*** Mnemonic not found ***"},"SUCMLTCACTLFRES_US__",null,"Input",null,null,763,"F",{"$f":"CONCATENATE(H1813,\"!\",L1813,K1813)","v":"Input!F763"},{"$f":"_xlfn.XLOOKUP(F1813,'Raw Data'!$I$4:$I$5000,'Raw Data'!$E$4:$E$5000,100,0)","v":100},{"$f":"IF(N1813=0,_xlfn.XLOOKUP(F1813,'Raw Data'!$I$4:$I$5000,'Raw Data'!$H$4:$H$5000,\"\",0),\"\")","v":""},{"$f":"IF(INDIRECT(M1813) = \"\",\"\",INDIRECT(M1813))","v":""},"n"]
["SUCMLONGOTHERIP",null,null,null,{"$f":"_xlfn.XLOOKUP(F1814,'Raw Data'!$I$4:$I$5000,'Raw Data'!$D$4:$D$5000,\"*** Mnemonic not found ***\",0)","v":"*** Mnemonic not found ***"},"SUCMLONGOTHERIP__","Life - Morbidity -- longevity","Input",{"$f":"ROW(section_longevity)","v":766},2,{"$f":"I1814+J1814","v":768},"F","Input!F768",{"$f":"_xlfn.XLOOKUP(F1814,'Raw Data'!$I$4:$I$5000,'Raw Data'!$E$4:$E$5000,100,0)","v":100},{"$f":"IF(N1814=0,_xlfn.XLOOKUP(F1814,'Raw Data'!$I$4:$I$5000,'Raw Data'!$H$4:$H$5000,\"\",0),\"\")","v":""},{"$f":"IF(INDIRECT(M1814) = \"\",\"\",INDIRECT(M1814))","v":""},"n"]
["SUCMLONGOTHER_CAT1",null,null,null,{"$f":"_xlfn.XLOOKUP(F1815,'Raw Data'!$I$4:$I$5000,'Raw Data'!$D$4:$D$5000,\"*** Mnemonic not found ***\",0)","v":"*** Mnemonic not found ***"},"SUCMLONGOTHER_CAT1__",null,"Input",null,null,{"$f":"K1814+1","v":769},{"$f":"L1814","v":"F"},"Input!F769",{"$f":"_xlfn.XLOOKUP(F1815,'Raw Data'!$I$4:$I$5000,'Raw Data'!$E$4:$E$5000,100,0)","v":100},{"$f":"IF(N1815=0,_xlfn.XLOOKUP(F1815,'Raw Data'!$I$4:$I$5000,'Raw Data'!$H$4:$H$5000,\"\",0),\"\")","v":""},{"$f":"IF(INDIRECT(M1815) = \"\",\"\",INDIRECT(M1815))","v":""},"n"]
["SUCMLONGOTHER_CAT2",null,null,null,{"$f":"_xlfn.XLOOKUP(F1816,'Raw Data'!$I$4:$I$5000,'Raw Data'!$D$4:$D$5000,\"*** Mnemonic not found ***\",0)","v":"*** Mnemonic not found ***"},"SUCMLONGOTHER_CAT2__",null,"Input",null,null,{"$f":"K1815+1","v":770},{"$f":"L1815","v":"F"},"Input!F770",{"$f":"_xlfn.XLOOKUP(F1816,'Raw Data'!$I$4:$I$5000,'Raw Data'!$E$4:$E$5000,100,0)","v":100},{"$f":"IF(N1816=0,_xlfn.XLOOKUP(F1816,'Raw Data'!$I$4:$I$5000,'Raw Data'!$H$4:$H$5000,\"\",0),\"\")","v":""},{"$f":"IF(INDIRECT(M1816) = \"\",\"\",INDIRECT(M1816))","v":""},"n"]
["SUCMLONGOTHER_CAT3",null,null,null,{"$f":"_xlfn.XLOOKUP(F1817,'Raw Data'!$I$4:$I$5000,'Raw Data'!$D$4:$D$5000,\"*** Mnemonic not found ***\",0)","v":"*** Mnemonic not found ***"},"SUCMLONGOTHER_CAT3__",null,"Input",null,null,{"$f":"K1816+1","v":771},{"$f":"L1816","v":"F"},"Input!F771",{"$f":"_xlfn.XLOOKUP(F1817,'Raw Data'!$I$4:$I$5000,'Raw Data'!$E$4:$E$5000,100,0)","v":100},{"$f":"IF(N1817=0,_xlfn.XLOOKUP(F1817,'Raw Data'!$I$4:$I$5000,'Raw Data'!$H$4:$H$5000,\"\",0),\"\")","v":""},{"$f":"IF(INDIRECT(M1817) = \"\",\"\",INDIRECT(M1817))","v":""},"n"]
["SUCMLONGRESCONFLVL",null,null,null,{"$f":"_xlfn.XLOOKUP(F1818,'Raw Data'!$I$4:$I$5000,'Raw Data'!$D$4:$D$5000,\"*** Mnemonic not found ***\",0)","v":"*** Mnemonic not found ***"},"SUCMLONGRESCONFLVL__",null,"Input",null,null,772,"F",{"$f":"CONCATENATE(H1818,\"!\",L1818,K1818)","v":"Input!F772"},{"$f":"_xlfn.XLOOKUP(F1818,'Raw Data'!$I$4:$I$5000,'Raw Data'!$E$4:$E$5000,100,0)","v":100},{"$f":"IF(N1818=0,_xlfn.XLOOKUP(F1818,'Raw Data'!$I$4:$I$5000,'Raw Data'!$H$4:$H$5000,\"\",0),\"\")","v":""},{"$f":"IF(INDIRECT(M1818) = \"\",\"\",INDIRECT(M1818))","v":"Default"},"c"]
["SUCMOLTRNONGAPROT",null,null,null,{"$f":"_xlfn.XLOOKUP(F1819,'Raw Data'!$I$4:$I$5000,'Raw Data'!$D$4:$D$5000,\"*** Mnemonic not found ***\",0)","v":"*** Mnemonic not found ***"},"SUCMOLTRNONGAPROT__","Life - Other","Input",{"$f":"ROW(section_other_life)","v":777},5,{"$f":"I1819+J1819","v":782},"F","Input!F782",{"$f":"_xlfn.XLOOKUP(F1819,'Raw Data'!$I$4:$I$5000,'Raw Data'!$E$4:$E$5000,100,0)","v":100},{"$f":"IF(N1819=0,_xlfn.XLOOKUP(F1819,'Raw Data'!$I$4:$I$5000,'Raw Data'!$H$4:$H$5000,\"\",0),\"\")","v":""},{"$f":"IF(INDIRECT(M1819) = \"\",\"\",INDIRECT(M1819))","v":""},"n"]
["SUCMOLTRNONGAPHI",null,null,null,{"$f":"_xlfn.XLOOKUP(F1820,'Raw Data'!$I$4:$I$5000,'Raw Data'!$D$4:$D$5000,\"*** Mnemonic not found ***\",0)","v":"*** Mnemonic not found ***"},"SUCMOLTRNONGAPHI__",null,"Input",null,null,{"$f":"K1819+1","v":783},{"$f":"L1819","v":"F"},"Input!F783",{"$f":"_xlfn.XLOOKUP(F1820,'Raw Data'!$I$4:$I$5000,'Raw Data'!$E$4:$E$5000,100,0)","v":100},{"$f":"IF(N1820=0,_xlfn.XLOOKUP(F1820,'Raw Data'!$I$4:$I$5000,'Raw Data'!$H$4:$H$5000,\"\",0),\"\")","v":""},{"$f":"IF(INDIRECT(M1820) = \"\",\"\",INDIRECT(M1820))","v":""},"n"]
["SUCMOLTRNONGANLS",null,null,null,{"$f":"_xlfn.XLOOKUP(F1821,'Raw Data'!$I$4:$I$5000,'Raw Data'!$D$4:$D$5000,\"*** Mnemonic not found ***\",0)","v":"*** Mnemonic not found ***"},"SUCMOLTRNONGANLS__",null,"Input",null,null,{"$f":"K1820+2","v":785},"F","Input!F785",{"$f":"_xlfn.XLOOKUP(F1821,'Raw Data'!$I$4:$I$5000,'Raw Data'!$E$4:$E$5000,100,0)","v":100},{"$f":"IF(N1821=0,_xlfn.XLOOKUP(F1821,'Raw Data'!$I$4:$I$5000,'Raw Data'!$H$4:$H$5000,\"\",0),\"\")","v":""},{"$f":"IF(INDIRECT(M1821) = \"\",\"\",INDIRECT(M1821))","v":""},"n"]
["SUCMOLTRNONGAIPA",null,null,null,{"$f":"_xlfn.XLOOKUP(F1822,'Raw Data'!$I$4:$I$5000,'Raw Data'!$D$4:$D$5000,\"*** Mnemonic not found ***\",0)","v":"*** Mnemonic not found ***"},"SUCMOLTRNONGAIPA__",null,"Input",null,null,{"$f":"K1821+2","v":787},"F","Input!F787",{"$f":"_xlfn.XLOOKUP(F1822,'Raw Data'!$I$4:$I$5000,'Raw Data'!$E$4:$E$5000,100,0)","v":100},{"$f":"IF(N1822=0,_xlfn.XLOOKUP(F1822,'Raw Data'!$I$4:$I$5000,'Raw Data'!$H$4:$H$5000,\"\",0),\"\")","v":""},{"$f":"IF(INDIRECT(M1822) = \"\",\"\",INDIRECT(M1822))","v":""},"n"]
["SUCMOLTRNONGADEFWO",null,null,null,{"$f":"_xlfn.XLOOKUP(F1823,'Raw Data'!$I$4:$I$5000,'Raw Data'!$D$4:$D$5000,\"*** Mnemonic not found ***\",0)","v":"*** Mnemonic not found ***"},"SUCMOLTRNONGADEFWO__",null,"Input",null,null,{"$f":"K1822+1","v":788},"F","Input!F788",{"$f":"_xlfn.XLOOKUP(F1823,'Raw Data'!$I$4:$I$5000,'Raw Data'!$E$4:$E$5000,100,0)","v":100},{"$f":"IF(N1823=0,_xlfn.XLOOKUP(F1823,'Raw Data'!$I$4:$I$5000,'Raw Data'!$H$4:$H$5000,\"\",0),\"\")","v":""},{"$f":"IF(INDIRECT(M1823) = \"\",\"\",INDIRECT(M1823))","v":""},"n"]
["SUCMOLTRNONGADEFW",null,null,null,{"$f":"_xlfn.XLOOKUP(F1824,'Raw Data'!$I$4:$I$5000,'Raw Data'!$D$4:$D$5000,\"*** Mnemonic not found ***\",0)","v":"*** Mnemonic not found ***"},"SUCMOLTRNONGADEFW__",null,"Input",null,null,789,"F",{"$f":"CONCATENATE(H1824,\"!\",L1824,K1824)","v":"Input!F789"},{"$f":"_xlfn.XLOOKUP(F1824,'Raw Data'!$I$4:$I$5000,'Raw Data'!$E$4:$E$5000,100,0)","v":100},{"$f":"IF(N1824=0,_xlfn.XLOOKUP(F1824,'Raw Data'!$I$4:$I$5000,'Raw Data'!$H$4:$H$5000,\"\",0),\"\")","v":""},{"$f":"IF(INDIRECT(M1824) = \"\",\"\",INDIRECT(M1824))","v":""},"n"]
["SUCMOLTRNONGADEFGIC",null,null,null,{"$f":"_xlfn.XLOOKUP(F1825,'Raw Data'!$I$4:$I$5000,'Raw Data'!$D$4:$D$5000,\"*** Mnemonic not found ***\",0)","v":"*** Mnemonic not found ***"},"SUCMOLTRNONGADEFGIC__",null,"Input",null,null,{"$f":"K1824+2","v":791},"F","Input!F791",{"$f":"_xlfn.XLOOKUP(F1825,'Raw Data'!$I$4:$I$5000,'Raw Data'!$E$4:$E$5000,100,0)","v":100},{"$f":"IF(N1825=0,_xlfn.XLOOKUP(F1825,'Raw Data'!$I$4:$I$5000,'Raw Data'!$H$4:$H$5000,\"\",0),\"\")","v":""},{"$f":"IF(INDIRECT(M1825) = \"\",\"\",INDIRECT(M1825))","v":""},"n"]
["SUCMOLTRNONGADEFOLP",null,null,null,{"$f":"_xlfn.XLOOKUP(F1826,'Raw Data'!$I$4:$I$5000,'Raw Data'!$D$4:$D$5000,\"*** Mnemonic not found ***\",0)","v":"*** Mnemonic not found ***"},"SUCMOLTRNONGADEFOLP__",null,"Input",null,null,{"$f":"K1825+1","v":792},"F","Input!F792",{"$f":"_xlfn.XLOOKUP(F1826,'Raw Data'!$I$4:$I$5000,'Raw Data'!$E$4:$E$5000,100,0)","v":100},{"$f":"IF(N1826=0,_xlfn.XLOOKUP(F1826,'Raw Data'!$I$4:$I$5000,'Raw Data'!$H$4:$H$5000,\"\",0),\"\")","v":""},{"$f":"IF(INDIRECT(M1826) = \"\",\"\",INDIRECT(M1826))","v":""},"n"]
["SUCMOLTRNONSADEFLBW",null,null,null,{"$f":"_xlfn.XLOOKUP(F1827,'Raw Data'!$I$4:$I$5000,'Raw Data'!$D$4:$D$5000,\"*** Mnemonic not found ***\",0)","v":"*** Mnemonic not found ***"},"SUCMOLTRNONSADEFLBW__",null,"Input",null,null,{"$f":"K1826+2","v":794},"F","Input!F794",{"$f":"_xlfn.XLOOKUP(F1827,'Raw Data'!$I$4:$I$5000,'Raw Data'!$E$4:$E$5000,100,0)","v":100},{"$f":"IF(N1827=0,_xlfn.XLOOKUP(F1827,'Raw Data'!$I$4:$I$5000,'Raw Data'!$H$4:$H$5000,\"\",0),\"\")","v":""},{"$f":"IF(INDIRECT(M1827) = \"\",\"\",INDIRECT(M1827))","v":""},"n"]
["SUCMOLTRNONSADEFLBINVWO",null,null,null,{"$f":"_xlfn.XLOOKUP(F1828,'Raw Data'!$I$4:$I$5000,'Raw Data'!$D$4:$D$5000,\"*** Mnemonic not found ***\",0)","v":"*** Mnemonic not found ***"},"SUCMOLTRNONSADEFLBINVWO__",null,"Input",null,null,{"$f":"K1827+1","v":795},"F","Input!F795",{"$f":"_xlfn.XLOOKUP(F1828,'Raw Data'!$I$4:$I$5000,'Raw Data'!$E$4:$E$5000,100,0)","v":100},{"$f":"IF(N1828=0,_xlfn.XLOOKUP(F1828,'Raw Data'!$I$4:$I$5000,'Raw Data'!$H$4:$H$5000,\"\",0),\"\")","v":""},{"$f":"IF(INDIRECT(M1828) = \"\",\"\",INDIRECT(M1828))","v":""},"n"]
["SUCMOLTRNONPBEXPOA",null,null,null,{"$f":"_xlfn.XLOOKUP(F1829,'Raw Data'!$I$4:$I$5000,'Raw Data'!$D$4:$D$5000,\"*** Mnemonic not found ***\",0)","v":"*** Mnemonic not found ***"},"SUCMOLTRNONPBEXPOA__",null,"Input",null,null,{"$f":"K1828+3","v":798},"F","Input!F798",{"$f":"_xlfn.XLOOKUP(F1829,'Raw Data'!$I$4:$I$5000,'Raw Data'!$E$4:$E$5000,100,0)","v":100},{"$f":"IF(N1829=0,_xlfn.XLOOKUP(F1829,'Raw Data'!$I$4:$I$5000,'Raw Data'!$H$4:$H$5000,\"\",0),\"\")","v":""},{"$f":"IF(INDIRECT(M1829) = \"\",\"\",INDIRECT(M1829))","v":""},"n"]
["SUCMOLTRNONPBCPOA",null,null,null,{"$f":"_xlfn.XLOOKUP(F1830,'Raw Data'!$I$4:$I$5000,'Raw Data'!$D$4:$D$5000,\"*** Mnemonic not found ***\",0)","v":"*** Mnemonic not found ***"},"SUCMOLTRNONPBCPOA__",null,"Input",null,null,{"$f":"K1829+1","v":799},"F","Input!F799",{"$f":"_xlfn.XLOOKUP(F1830,'Raw Data'!$I$4:$I$5000,'Raw Data'!$E$4:$E$5000,100,0)","v":100},{"$f":"IF(N1830=0,_xlfn.XLOOKUP(F1830,'Raw Data'!$I$4:$I$5000,'Raw Data'!$H$4:$H$5000,\"\",0),\"\")","v":""},{"$f":"IF(INDIRECT(M1830) = \"\",\"\",INDIRECT(M1830))","v":""},"n"]
["SUCMOLTRNONPBCPDA",null,null,null,{"$f":"_xlfn.XLOOKUP(F1831,'Raw Data'!$I$4:$I$5000,'Raw Data'!$D$4:$D$5000,\"*** Mnemonic not found ***\",0)","v":"*** Mnemonic not found ***"},"SUCMOLTRNONPBCPDA__",null,"Input",null,null,800,"F","Input!F800",{"$f":"_xlfn.XLOOKUP(F1831,'Raw Data'!$I$4:$I$5000,'Raw Data'!$E$4:$E$5000,100,0)","v":100},{"$f":"IF(N1831=0,_xlfn.XLOOKUP(F1831,'Raw Data'!$I$4:$I$5000,'Raw Data'!$H$4:$H$5000,\"\",0),\"\")","v":""},{"$f":"IF(INDIRECT(M1831) = \"\",\"\",INDIRECT(M1831))","v":""},"n"]
["SUCMOLTRTOTLR",null,null,null,{"$f":"_xlfn.XLOOKUP(F1832,'Raw Data'!$I$4:$I$5000,'Raw Data'!$D$4:$D$5000,\"*** Mnemonic not found ***\",0)","v":"*** Mnemonic not found ***"},"SUCMOLTRTOTLR__",null,"Input",null,null,{"$f":"K1831+2","v":802},"F","Input!F802",{"$f":"_xlfn.XLOOKUP(F1832,'Raw Data'!$I$4:$I$5000,'Raw Data'!$E$4:$E$5000,100,0)","v":100},{"$f":"IF(N1832=0,_xlfn.XLOOKUP(F1832,'Raw Data'!$I$4:$I$5000,'Raw Data'!$H$4:$H$5000,\"\",0),\"\")","v":""},{"$f":"IF(INDIRECT(M1832) = \"\",\"\",INDIRECT(M1832))","v":""},"n"]
["SUCMOLTRNONGANLS_LAP",null,null,null,{"$f":"_xlfn.XLOOKUP(F1833,'Raw Data'!$I$4:$I$5000,'Raw Data'!$D$4:$D$5000,\"*** Mnemonic not found ***\",0)","v":"*** Mnemonic not found ***"},"SUCMOLTRNONGANLS_LAP__",null,"Input",{"$f":"ROW(section_other_life)","v":777},8,{"$f":"I1833+J1833","v":785},"G","Input!G785",{"$f":"_xlfn.XLOOKUP(F1833,'Raw Data'!$I$4:$I$5000,'Raw Data'!$E$4:$E$5000,100,0)","v":100},{"$f":"IF(N1833=0,_xlfn.XLOOKUP(F1833,'Raw Data'!$I$4:$I$5000,'Raw Data'!$H$4:$H$5000,\"\",0),\"\")","v":""},{"$f":"IF(INDIRECT(M1833) = \"\",\"\",INDIRECT(M1833))","v":""},"n"]
["SUCMOLTRNONGADEFW_LAP",null,null,null,{"$f":"_xlfn.XLOOKUP(F1834,'Raw Data'!$I$4:$I$5000,'Raw Data'!$D$4:$D$5000,\"*** Mnemonic not found ***\",0)","v":"*** Mnemonic not found ***"},"SUCMOLTRNONGADEFW_LAP__",null,"Input",null,null,{"$f":"K1833+4","v":789},{"$f":"L1833","v":"G"},"Input!G789",{"$f":"_xlfn.XLOOKUP(F1834,'Raw Data'!$I$4:$I$5000,'Raw Data'!$E$4:$E$5000,100,0)","v":100},{"$f":"IF(N1834=0,_xlfn.XLOOKUP(F1834,'Raw Data'!$I$4:$I$5000,'Raw Data'!$H$4:$H$5000,\"\",0),\"\")","v":""},{"$f":"IF(INDIRECT(M1834) = \"\",\"\",INDIRECT(M1834))","v":""},"n"]
["SUCMOLTRNONSADEFLBW_LAP",null,null,null,{"$f":"_xlfn.XLOOKUP(F1835,'Raw Data'!$I$4:$I$5000,'Raw Data'!$D$4:$D$5000,\"*** Mnemonic not found ***\",0)","v":"*** Mnemonic not found ***"},"SUCMOLTRNONSADEFLBW_LAP__",null,"Input",null,null,{"$f":"K1834+5","v":794},"G","Input!G794",{"$f":"_xlfn.XLOOKUP(F1835,'Raw Data'!$I$4:$I$5000,'Raw Data'!$E$4:$E$5000,100,0)","v":100},{"$f":"IF(N1835=0,_xlfn.XLOOKUP(F1835,'Raw Data'!$I$4:$I$5000,'Raw Data'!$H$4:$H$5000,\"\",0),\"\")","v":""},{"$f":"IF(INDIRECT(M1835) = \"\",\"\",INDIRECT(M1835))","v":""},"n"]
["SUCMOLTRNONPBEXPOA_LAP",null,null,null,{"$f":"_xlfn.XLOOKUP(F1836,'Raw Data'!$I$4:$I$5000,'Raw Data'!$D$4:$D$5000,\"*** Mnemonic not found ***\",0)","v":"*** Mnemonic not found ***"},"SUCMOLTRNONPBEXPOA_LAP__",null,"Input",null,null,{"$f":"K1835+4","v":798},"G","Input!G798",{"$f":"_xlfn.XLOOKUP(F1836,'Raw Data'!$I$4:$I$5000,'Raw Data'!$E$4:$E$5000,100,0)","v":100},{"$f":"IF(N1836=0,_xlfn.XLOOKUP(F1836,'Raw Data'!$I$4:$I$5000,'Raw Data'!$H$4:$H$5000,\"\",0),\"\")","v":""},{"$f":"IF(INDIRECT(M1836) = \"\",\"\",INDIRECT(M1836))","v":""},"n"]
["SUCMOLTRNONPBCPDA_LAP",null,null,null,{"$f":"_xlfn.XLOOKUP(F1837,'Raw Data'!$I$4:$I$5000,'Raw Data'!$D$4:$D$5000,\"*** Mnemonic not found ***\",0)","v":"*** Mnemonic not found ***"},"SUCMOLTRNONPBCPDA_LAP__",null,"Input",null,null,{"$f":"K1836+2","v":800},"G","Input!G800",{"$f":"_xlfn.XLOOKUP(F1837,'Raw Data'!$I$4:$I$5000,'Raw Data'!$E$4:$E$5000,100,0)","v":100},{"$f":"IF(N1837=0,_xlfn.XLOOKUP(F1837,'Raw Data'!$I$4:$I$5000,'Raw Data'!$H$4:$H$5000,\"\",0),\"\")","v":""},{"$f":"IF(INDIRECT(M1837) = \"\",\"\",INDIRECT(M1837))","v":""},"n"]
["SUCMOLTRNONGANLS_NO",null,null,null,{"$f":"_xlfn.XLOOKUP(F1838,'Raw Data'!$I$4:$I$5000,'Raw Data'!$D$4:$D$5000,\"*** Mnemonic not found ***\",0)","v":"*** Mnemonic not found ***"},"SUCMOLTRNONGANLS_NO__",null,"Input",{"$f":"ROW(section_other_life)","v":777},8,{"$f":"I1838+J1838","v":785},"H","Input!H785",{"$f":"_xlfn.XLOOKUP(F1838,'Raw Data'!$I$4:$I$5000,'Raw Data'!$E$4:$E$5000,100,0)","v":100},{"$f":"IF(N1838=0,_xlfn.XLOOKUP(F1838,'Raw Data'!$I$4:$I$5000,'Raw Data'!$H$4:$H$5000,\"\",0),\"\")","v":""},{"$f":"IF(INDIRECT(M1838) = \"\",\"\",INDIRECT(M1838))","v":""},"n"]
["SUCMOLTRNONGADEFWO_NO",null,null,null,{"$f":"_xlfn.XLOOKUP(F1839,'Raw Data'!$I$4:$I$5000,'Raw Data'!$D$4:$D$5000,\"*** Mnemonic not found ***\",0)","v":"*** Mnemonic not found ***"},"SUCMOLTRNONGADEFWO_NO__",null,"Input",null,null,{"$f":"K1838+3","v":788},{"$f":"L1838","v":"H"},"Input!H788",{"$f":"_xlfn.XLOOKUP(F1839,'Raw Data'!$I$4:$I$5000,'Raw Data'!$E$4:$E$5000,100,0)","v":100},{"$f":"IF(N1839=0,_xlfn.XLOOKUP(F1839,'Raw Data'!$I$4:$I$5000,'Raw Data'!$H$4:$H$5000,\"\",0),\"\")","v":""},{"$f":"IF(INDIRECT(M1839) = \"\",\"\",INDIRECT(M1839))","v":""},"n"]
["SUCMOLTRNONGADEFW_NO",null,null,null,{"$f":"_xlfn.XLOOKUP(F1840,'Raw Data'!$I$4:$I$5000,'Raw Data'!$D$4:$D$5000,\"*** Mnemonic not found ***\",0)","v":"*** Mnemonic not found ***"},"SUCMOLTRNONGADEFW_NO__",null,"Input",null,null,{"$f":"K1839+1","v":789},"H","Input!H789",{"$f":"_xlfn.XLOOKUP(F1840,'Raw Data'!$I$4:$I$5000,'Raw Data'!$E$4:$E$5000,100,0)","v":100},{"$f":"IF(N1840=0,_xlfn.XLOOKUP(F1840,'Raw Data'!$I$4:$I$5000,'Raw Data'!$H$4:$H$5000,\"\",0),\"\")","v":""},{"$f":"IF(INDIRECT(M1840) = \"\",\"\",INDIRECT(M1840))","v":""},"n"]
["SUCMOLTRNONGADEFGIC_NO",null,null,null,{"$f":"_xlfn.XLOOKUP(F1841,'Raw Data'!$I$4:$I$5000,'Raw Data'!$D$4:$D$5000,\"*** Mnemonic not found ***\",0)","v":"*** Mnemonic not found ***"},"SUCMOLTRNONGADEFGIC_NO__",null,"Input",null,null,{"$f":"K1840+2","v":791},"H","Input!H791",{"$f":"_xlfn.XLOOKUP(F1841,'Raw Data'!$I$4:$I$5000,'Raw Data'!$E$4:$E$5000,100,0)","v":100},{"$f":"IF(N1841=0,_xlfn.XLOOKUP(F1841,'Raw Data'!$I$4:$I$5000,'Raw Data'!$H$4:$H$5000,\"\",0),\"\")","v":""},{"$f":"IF(INDIRECT(M1841) = \"\",\"\",INDIRECT(M1841))","v":""},"n"]
["SUCMOLTRNONSADEFLBW_NO",null,null,null,{"$f":"_xlfn.XLOOKUP(F1842,'Raw Data'!$I$4:$I$5000,'Raw Data'!$D$4:$D$5000,\"*** Mnemonic not found ***\",0)","v":"*** Mnemonic not found ***"},"SUCMOLTRNONSADEFLBW_NO__",null,"Input",null,null,{"$f":"K1841+3","v":794},"H","Input!H794",{"$f":"_xlfn.XLOOKUP(F1842,'Raw Data'!$I$4:$I$5000,'Raw Data'!$E$4:$E$5000,100,0)","v":100},{"$f":"IF(N1842=0,_xlfn.XLOOKUP(F1842,'Raw Data'!$I$4:$I$5000,'Raw Data'!$H$4:$H$5000,\"\",0),\"\")","v":""},{"$f":"IF(INDIRECT(M1842) = \"\",\"\",INDIRECT(M1842))","v":""},"n"]
["SUCMOLTRNONPBEXPOA_NO",null,null,null,{"$f":"_xlfn.XLOOKUP(F1843,'Raw Data'!$I$4:$I$5000,'Raw Data'!$D$4:$D$5000,\"*** Mnemonic not found ***\",0)","v":"*** Mnemonic not found ***"},"SUCMOLTRNONPBEXPOA_NO__",null,"Input",null,null,{"$f":"K1842+4","v":798},"H","Input!H798",{"$f":"_xlfn.XLOOKUP(F1843,'Raw Data'!$I$4:$I$5000,'Raw Data'!$E$4:$E$5000,100,0)","v":100},{"$f":"IF(N1843=0,_xlfn.XLOOKUP(F1843,'Raw Data'!$I$4:$I$5000,'Raw Data'!$H$4:$H$5000,\"\",0),\"\")","v":""},{"$f":"IF(INDIRECT(M1843) = \"\",\"\",INDIRECT(M1843))","v":""},"n"]
["SUCMOLTRNONPBCPDA_NO",null,null,null,{"$f":"_xlfn.XLOOKUP(F1844,'Raw Data'!$I$4:$I$5000,'Raw Data'!$D$4:$D$5000,\"*** Mnemonic not found ***\",0)","v":"*** Mnemonic not found ***"},"SUCMOLTRNONPBCPDA_NO__",null,"Input",null,null,{"$f":"K1843+2","v":800},"H","Input!H800",{"$f":"_xlfn.XLOOKUP(F1844,'Raw Data'!$I$4:$I$5000,'Raw Data'!$E$4:$E$5000,100,0)","v":100},{"$f":"IF(N1844=0,_xlfn.XLOOKUP(F1844,'Raw Data'!$I$4:$I$5000,'Raw Data'!$H$4:$H$5000,\"\",0),\"\")","v":""},{"$f":"IF(INDIRECT(M1844) = \"\",\"\",INDIRECT(M1844))","v":""},"n"]
["SUCMVABE995_AAA",null,null,null,{"$f":"_xlfn.XLOOKUP(F1845,'Raw Data'!$I$4:$I$5000,'Raw Data'!$D$4:$D$5000,\"*** Mnemonic not found ***\",0)","v":"*** Mnemonic not found ***"},"SUCMVABE995_AAA__","Product specific - Variable Annuities","Input",{"$f":"ROW(section_variable_annuities)","v":807},3,{"$f":"I1845+J1845","v":810},"F","Input!F810",{"$f":"_xlfn.XLOOKUP(F1845,'Raw Data'!$I$4:$I$5000,'Raw Data'!$E$4:$E$5000,100,0)","v":100},{"$f":"IF(N1845=0,_xlfn.XLOOKUP(F1845,'Raw Data'!$I$4:$I$5000,'Raw Data'!$H$4:$H$5000,\"\",0),\"\")","v":""},{"$f":"IF(INDIRECT(M1845) = \"\",\"\",INDIRECT(M1845))","v":""},"n"]
["SUCMVABE98_AA",null,null,null,{"$f":"_xlfn.XLOOKUP(F1846,'Raw Data'!$I$4:$I$5000,'Raw Data'!$D$4:$D$5000,\"*** Mnemonic not found ***\",0)","v":"*** Mnemonic not found ***"},"SUCMVABE98_AA__",null,"Input",null,null,{"$f":"K1845+1","v":811},{"$f":"L1845","v":"F"},"Input!F811",{"$f":"_xlfn.XLOOKUP(F1846,'Raw Data'!$I$4:$I$5000,'Raw Data'!$E$4:$E$5000,100,0)","v":100},{"$f":"IF(N1846=0,_xlfn.XLOOKUP(F1846,'Raw Data'!$I$4:$I$5000,'Raw Data'!$H$4:$H$5000,\"\",0),\"\")","v":""},{"$f":"IF(INDIRECT(M1846) = \"\",\"\",INDIRECT(M1846))","v":""},"n"]
["SUCMVABE95_A",null,null,null,{"$f":"_xlfn.XLOOKUP(F1847,'Raw Data'!$I$4:$I$5000,'Raw Data'!$D$4:$D$5000,\"*** Mnemonic not found ***\",0)","v":"*** Mnemonic not found ***"},"SUCMVABE95_A__",null,"Input",null,null,{"$f":"K1846+1","v":812},"F","Input!F812",{"$f":"_xlfn.XLOOKUP(F1847,'Raw Data'!$I$4:$I$5000,'Raw Data'!$E$4:$E$5000,100,0)","v":100},{"$f":"IF(N1847=0,_xlfn.XLOOKUP(F1847,'Raw Data'!$I$4:$I$5000,'Raw Data'!$H$4:$H$5000,\"\",0),\"\")","v":""},{"$f":"IF(INDIRECT(M1847) = \"\",\"\",INDIRECT(M1847))","v":""},"n"]
["SUCMVABE90_BBB",null,null,null,{"$f":"_xlfn.XLOOKUP(F1848,'Raw Data'!$I$4:$I$5000,'Raw Data'!$D$4:$D$5000,\"*** Mnemonic not found ***\",0)","v":"*** Mnemonic not found ***"},"SUCMVABE90_BBB__",null,"Input",null,null,813,"F","Input!F813",{"$f":"_xlfn.XLOOKUP(F1848,'Raw Data'!$I$4:$I$5000,'Raw Data'!$E$4:$E$5000,100,0)","v":100},{"$f":"IF(N1848=0,_xlfn.XLOOKUP(F1848,'Raw Data'!$I$4:$I$5000,'Raw Data'!$H$4:$H$5000,\"\",0),\"\")","v":""},{"$f":"IF(INDIRECT(M1848) = \"\",\"\",INDIRECT(M1848))","v":""},"n"]
["SUCMVAADJ995_AAA",null,null,null,{"$f":"_xlfn.XLOOKUP(F1849,'Raw Data'!$I$4:$I$5000,'Raw Data'!$D$4:$D$5000,\"*** Mnemonic not found ***\",0)","v":"*** Mnemonic not found ***"},"SUCMVAADJ995_AAA__",null,"Input",{"$f":"ROW(section_variable_annuities)","v":807},{"$f":"J1845","v":3},{"$f":"I1849+J1849","v":810},"G","Input!G810",{"$f":"_xlfn.XLOOKUP(F1849,'Raw Data'!$I$4:$I$5000,'Raw Data'!$E$4:$E$5000,100,0)","v":100},{"$f":"IF(N1849=0,_xlfn.XLOOKUP(F1849,'Raw Data'!$I$4:$I$5000,'Raw Data'!$H$4:$H$5000,\"\",0),\"\")","v":""},{"$f":"IF(INDIRECT(M1849) = \"\",\"\",INDIRECT(M1849))","v":""},"n"]
["SUCMVAADJ98_AA",null,null,null,{"$f":"_xlfn.XLOOKUP(F1850,'Raw Data'!$I$4:$I$5000,'Raw Data'!$D$4:$D$5000,\"*** Mnemonic not found ***\",0)","v":"*** Mnemonic not found ***"},"SUCMVAADJ98_AA__",null,"Input",null,null,{"$f":"K1849+1","v":811},{"$f":"L1849","v":"G"},"Input!G811",{"$f":"_xlfn.XLOOKUP(F1850,'Raw Data'!$I$4:$I$5000,'Raw Data'!$E$4:$E$5000,100,0)","v":100},{"$f":"IF(N1850=0,_xlfn.XLOOKUP(F1850,'Raw Data'!$I$4:$I$5000,'Raw Data'!$H$4:$H$5000,\"\",0),\"\")","v":""},{"$f":"IF(INDIRECT(M1850) = \"\",\"\",INDIRECT(M1850))","v":""},"n"]
["SUCMVAADJ95_A",null,null,null,{"$f":"_xlfn.XLOOKUP(F1851,'Raw Data'!$I$4:$I$5000,'Raw Data'!$D$4:$D$5000,\"*** Mnemonic not found ***\",0)","v":"*** Mnemonic not found ***"},"SUCMVAADJ95_A__",null,"Input",null,null,{"$f":"K1850+1","v":812},"G","Input!G812",{"$f":"_xlfn.XLOOKUP(F1851,'Raw Data'!$I$4:$I$5000,'Raw Data'!$E$4:$E$5000,100,0)","v":100},{"$f":"IF(N1851=0,_xlfn.XLOOKUP(F1851,'Raw Data'!$I$4:$I$5000,'Raw Data'!$H$4:$H$5000,\"\",0),\"\")","v":""},{"$f":"IF(INDIRECT(M1851) = \"\",\"\",INDIRECT(M1851))","v":""},"n"]
["SUCMVAADJ90_BBB",null,null,null,{"$f":"_xlfn.XLOOKUP(F1852,'Raw Data'!$I$4:$I$5000,'Raw Data'!$D$4:$D$5000,\"*** Mnemonic not found ***\",0)","v":"*** Mnemonic not found ***"},"SUCMVAADJ90_BBB__",null,"Input",null,null,813,"G","Input!G813",{"$f":"_xlfn.XLOOKUP(F1852,'Raw Data'!$I$4:$I$5000,'Raw Data'!$E$4:$E$5000,100,0)","v":100},{"$f":"IF(N1852=0,_xlfn.XLOOKUP(F1852,'Raw Data'!$I$4:$I$5000,'Raw Data'!$H$4:$H$5000,\"\",0),\"\")","v":""},{"$f":"IF(INDIRECT(M1852) = \"\",\"\",INDIRECT(M1852))","v":""},"n"]
["SUCMVAERROR",null,null,null,{"$f":"_xlfn.XLOOKUP(F1853,'Raw Data'!$I$4:$I$5000,'Raw Data'!$D$4:$D$5000,\"*** Mnemonic not found ***\",0)","v":"*** Mnemonic not found ***"},"SUCMVAERROR__",null,"Input",{"$f":"ROW(section_variable_annuities)","v":807},8,{"$f":"I1853+J1853","v":815},"F","Input!F815",{"$f":"_xlfn.XLOOKUP(F1853,'Raw Data'!$I$4:$I$5000,'Raw Data'!$E$4:$E$5000,100,0)","v":100},{"$f":"IF(N1853=0,_xlfn.XLOOKUP(F1853,'Raw Data'!$I$4:$I$5000,'Raw Data'!$H$4:$H$5000,\"\",0),\"\")","v":""},{"$f":"IF(INDIRECT(M1853) = \"\",\"\",INDIRECT(M1853))","v":""},"n"]
["SUCMVASTATNETREINS",null,null,null,{"$f":"_xlfn.XLOOKUP(F1854,'Raw Data'!$I$4:$I$5000,'Raw Data'!$D$4:$D$5000,\"*** Mnemonic not found ***\",0)","v":"*** Mnemonic not found ***"},"SUCMVASTATNETREINS__",null,"Input",null,null,{"$f":"K1853+2","v":817},{"$f":"L1853","v":"F"},"Input!F817",{"$f":"_xlfn.XLOOKUP(F1854,'Raw Data'!$I$4:$I$5000,'Raw Data'!$E$4:$E$5000,100,0)","v":100},{"$f":"IF(N1854=0,_xlfn.XLOOKUP(F1854,'Raw Data'!$I$4:$I$5000,'Raw Data'!$H$4:$H$5000,\"\",0),\"\")","v":""},{"$f":"IF(INDIRECT(M1854) = \"\",\"\",INDIRECT(M1854))","v":""},"n"]
["SUCMSEGFUND_9999",null,null,null,{"$f":"_xlfn.XLOOKUP(F1855,'Raw Data'!$I$4:$I$5000,'Raw Data'!$D$4:$D$5000,\"*** Mnemonic not found ***\",0)","v":"*** Mnemonic not found ***"},"SUCMSEGFUND_9999__","Product specific - Ring-fenced funds","Input",{"$f":"ROW(section_ring_fenced_funds)","v":820},3,{"$f":"I1855+J1855","v":823},"F","Input!F823",{"$f":"_xlfn.XLOOKUP(F1855,'Raw Data'!$I$4:$I$5000,'Raw Data'!$E$4:$E$5000,100,0)","v":100},{"$f":"IF(N1855=0,_xlfn.XLOOKUP(F1855,'Raw Data'!$I$4:$I$5000,'Raw Data'!$H$4:$H$5000,\"\",0),\"\")","v":""},{"$f":"IF(INDIRECT(M1855) = \"\",\"\",INDIRECT(M1855))","v":""},"n"]
["SUCMSEGFUND_9995",null,null,null,{"$f":"_xlfn.XLOOKUP(F1856,'Raw Data'!$I$4:$I$5000,'Raw Data'!$D$4:$D$5000,\"*** Mnemonic not found ***\",0)","v":"*** Mnemonic not found ***"},"SUCMSEGFUND_9995__",null,"Input",null,null,{"$f":"K1855+1","v":824},{"$f":"L1855","v":"F"},"Input!F824",{"$f":"_xlfn.XLOOKUP(F1856,'Raw Data'!$I$4:$I$5000,'Raw Data'!$E$4:$E$5000,100,0)","v":100},{"$f":"IF(N1856=0,_xlfn.XLOOKUP(F1856,'Raw Data'!$I$4:$I$5000,'Raw Data'!$H$4:$H$5000,\"\",0),\"\")","v":""},{"$f":"IF(INDIRECT(M1856) = \"\",\"\",INDIRECT(M1856))","v":""},"n"]
["SUCMSEGFUND_9980",null,null,null,{"$f":"_xlfn.XLOOKUP(F1857,'Raw Data'!$I$4:$I$5000,'Raw Data'!$D$4:$D$5000,\"*** Mnemonic not found ***\",0)","v":"*** Mnemonic not found ***"},"SUCMSEGFUND_9980__",null,"Input",null,null,{"$f":"K1856+1","v":825},"F","Input!F825",{"$f":"_xlfn.XLOOKUP(F1857,'Raw Data'!$I$4:$I$5000,'Raw Data'!$E$4:$E$5000,100,0)","v":100},{"$f":"IF(N1857=0,_xlfn.XLOOKUP(F1857,'Raw Data'!$I$4:$I$5000,'Raw Data'!$H$4:$H$5000,\"\",0),\"\")","v":""},{"$f":"IF(INDIRECT(M1857) = \"\",\"\",INDIRECT(M1857))","v":""},"n"]
["SUCMSEGFUND_9950",null,null,null,{"$f":"_xlfn.XLOOKUP(F1858,'Raw Data'!$I$4:$I$5000,'Raw Data'!$D$4:$D$5000,\"*** Mnemonic not found ***\",0)","v":"*** Mnemonic not found ***"},"SUCMSEGFUND_9950__",null,"Input",null,null,826,"F","Input!F826",{"$f":"_xlfn.XLOOKUP(F1858,'Raw Data'!$I$4:$I$5000,'Raw Data'!$E$4:$E$5000,100,0)","v":100},{"$f":"IF(N1858=0,_xlfn.XLOOKUP(F1858,'Raw Data'!$I$4:$I$5000,'Raw Data'!$H$4:$H$5000,\"\",0),\"\")","v":""},{"$f":"IF(INDIRECT(M1858) = \"\",\"\",INDIRECT(M1858))","v":""},"n"]
["SUCMGERMANAGE",null,null,null,{"$f":"_xlfn.XLOOKUP(F1859,'Raw Data'!$I$4:$I$5000,'Raw Data'!$D$4:$D$5000,\"*** Mnemonic not found ***\",0)","v":"*** Mnemonic not found ***"},"SUCMGERMANAGE__","Product specific -German health","Input",{"$f":"ROW(section_german_health)","v":829},2,{"$f":"I1859+J1859","v":831},"F",{"$f":"CONCATENATE(H1859,\"!\",L1859,K1859)","v":"Input!F831"},{"$f":"_xlfn.XLOOKUP(F1859,'Raw Data'!$I$4:$I$5000,'Raw Data'!$E$4:$E$5000,100,0)","v":100},{"$f":"IF(N1859=0,_xlfn.XLOOKUP(F1859,'Raw Data'!$I$4:$I$5000,'Raw Data'!$H$4:$H$5000,\"\",0),\"\")","v":""},{"$f":"IF(INDIRECT(M1859) = \"\",\"\",INDIRECT(M1859))","v":""},"n"]
["SUCMIRRMODDUR",null,null,null,{"$f":"_xlfn.XLOOKUP(F1860,'Raw Data'!$I$4:$I$5000,'Raw Data'!$D$4:$D$5000,\"*** Mnemonic not found ***\",0)","v":"*** Mnemonic not found ***"},"SUCMIRRMODDUR__","Interest Rate Risk","Input",{"$f":"ROW(section_interest_rate)","v":836},2,{"$f":"I1860+J1860","v":838},"G",{"$f":"CONCATENATE(H1860,\"!\",L1860,K1860)","v":"Input!G838"},{"$f":"_xlfn.XLOOKUP(F1860,'Raw Data'!$I$4:$I$5000,'Raw Data'!$E$4:$E$5000,100,0)","v":100},{"$f":"IF(N1860=0,_xlfn.XLOOKUP(F1860,'Raw Data'!$I$4:$I$5000,'Raw Data'!$H$4:$H$5000,\"\",0),\"\")","v":""},{"$f":"IF(INDIRECT(M1860) = \"\",\"\",INDIRECT(M1860))","v":"No"},"c"]
["SUCMCOMDURMISMATCH",null,null,null,{"$f":"_xlfn.XLOOKUP(F1861,'Raw Data'!$I$4:$I$5000,'Raw Data'!$D$4:$D$5000,\"*** Mnemonic not found ***\",0)","v":"*** Mnemonic not found ***"},"SUCMCOMDURMISMATCH__",null,"Input",null,null,{"$f":"K1860+1","v":839},{"$f":"L1860","v":"G"},{"$f":"CONCATENATE(H1861,\"!\",L1861,K1861)","v":"Input!G839"},{"$f":"_xlfn.XLOOKUP(F1861,'Raw Data'!$I$4:$I$5000,'Raw Data'!$E$4:$E$5000,100,0)","v":100},{"$f":"IF(N1861=0,_xlfn.XLOOKUP(F1861,'Raw Data'!$I$4:$I$5000,'Raw Data'!$H$4:$H$5000,\"\",0),\"\")","v":""},{"$f":"IF(INDIRECT(M1861) = \"\",\"\",INDIRECT(M1861))","v":""},"n"]
["SUCMIRRNCMV_9999",null,null,null,{"$f":"_xlfn.XLOOKUP(F1862,'Raw Data'!$I$4:$I$5000,'Raw Data'!$D$4:$D$5000,\"*** Mnemonic not found ***\",0)","v":"*** Mnemonic not found ***"},{"$f":"CONCATENATE(A1862,\"_\",B1862,\"_\",D1862)","v":"SUCMIRRNCMV_9999__"},null,"Input",null,null,{"$f":"K1861","v":839},"I",{"$f":"CONCATENATE(H1862,\"!\",L1862,K1862)","v":"Input!I839"},{"$f":"_xlfn.XLOOKUP(F1862,'Raw Data'!$I$4:$I$5000,'Raw Data'!$E$4:$E$5000,100,0)","v":100},{"$f":"IF(N1862=0,_xlfn.XLOOKUP(F1862,'Raw Data'!$I$4:$I$5000,'Raw Data'!$H$4:$H$5000,\"\",0),\"\")","v":""},{"$f":"IF(INDIRECT(M1862) = \"\",\"\",INDIRECT(M1862))","v":""},"n","ir_ncmv_99_99"]
["SUCMIRRNCMV_9995",null,null,null,{"$f":"_xlfn.XLOOKUP(F1863,'Raw Data'!$I$4:$I$5000,'Raw Data'!$D$4:$D$5000,\"*** Mnemonic not found ***\",0)","v":"*** Mnemonic not found ***"},"SUCMIRRNCMV_9995__",null,"Input",null,null,{"$f":"K1862","v":839},"J","Input!J839",{"$f":"_xlfn.XLOOKUP(F1863,'Raw Data'!$I$4:$I$5000,'Raw Data'!$E$4:$E$5000,100,0)","v":100},{"$f":"IF(N1863=0,_xlfn.XLOOKUP(F1863,'Raw Data'!$I$4:$I$5000,'Raw Data'!$H$4:$H$5000,\"\",0),\"\")","v":""},{"$f":"IF(INDIRECT(M1863) = \"\",\"\",INDIRECT(M1863))","v":""},"n","ir_ncmv_99_95"]
["SUCMIRRNCMV_9980",null,null,null,{"$f":"_xlfn.XLOOKUP(F1864,'Raw Data'!$I$4:$I$5000,'Raw Data'!$D$4:$D$5000,\"*** Mnemonic not found ***\",0)","v":"*** Mnemonic not found ***"},"SUCMIRRNCMV_9980__",null,"Input",null,null,839,"K","Input!K839",{"$f":"_xlfn.XLOOKUP(F1864,'Raw Data'!$I$4:$I$5000,'Raw Data'!$E$4:$E$5000,100,0)","v":100},{"$f":"IF(N1864=0,_xlfn.XLOOKUP(F1864,'Raw Data'!$I$4:$I$5000,'Raw Data'!$H$4:$H$5000,\"\",0),\"\")","v":""},{"$f":"IF(INDIRECT(M1864) = \"\",\"\",INDIRECT(M1864))","v":""},"n","ir_ncmv_99_80"]
["SUCMIRRNCMV_9950",null,null,null,{"$f":"_xlfn.XLOOKUP(F1865,'Raw Data'!$I$4:$I$5000,'Raw Data'!$D$4:$D$5000,\"*** Mnemonic not found ***\",0)","v":"*** Mnemonic not found ***"},"SUCMIRRNCMV_9950__",null,"Input",null,null,839,"L","Input!L839",{"$f":"_xlfn.XLOOKUP(F1865,'Raw Data'!$I$4:$I$5000,'Raw Data'!$E$4:$E$5000,100,0)","v":100},{"$f":"IF(N1865=0,_xlfn.XLOOKUP(F1865,'Raw Data'!$I$4:$I$5000,'Raw Data'!$H$4:$H$5000,\"\",0),\"\")","v":""},{"$f":"IF(INDIRECT(M1865) = \"\",\"\",INDIRECT(M1865))","v":""},"n","ir_ncmv_99_50"]
["SUCMONEROUSSTRESS",null,null,null,{"$f":"_xlfn.XLOOKUP(F1866,'Raw Data'!$I$4:$I$5000,'Raw Data'!$D$4:$D$5000,\"*** Mnemonic not found ***\",0)","v":"*** Mnemonic not found ***"},"SUCMONEROUSSTRESS__",null,"Input",null,null,{"$f":"K1865+1","v":840},"G",{"$f":"CONCATENATE(H1866,\"!\",L1866,K1866)","v":"Input!G840"},{"$f":"_xlfn.XLOOKUP(F1866,'Raw Data'!$I$4:$I$5000,'Raw Data'!$E$4:$E$5000,100,0)","v":100},{"$f":"IF(N1866=0,_xlfn.XLOOKUP(F1866,'Raw Data'!$I$4:$I$5000,'Raw Data'!$H$4:$H$5000,\"\",0),\"\")","v":""},{"$f":"IF(INDIRECT(M1866) = \"\",\"\",INDIRECT(M1866))","v":""},"c"]
["SUCMDURNONLIFELIAB",null,null,null,{"$f":"_xlfn.XLOOKUP(F1867,'Raw Data'!$I$4:$I$5000,'Raw Data'!$D$4:$D$5000,\"*** Mnemonic not found ***\",0)","v":"*** Mnemonic not found ***"},"SUCMDURNONLIFELIAB__",null,"Input",null,null,{"$f":"K1866+2","v":842},{"$f":"L1866","v":"G"},"Input!G842",{"$f":"_xlfn.XLOOKUP(F1867,'Raw Data'!$I$4:$I$5000,'Raw Data'!$E$4:$E$5000,100,0)","v":100},{"$f":"IF(N1867=0,_xlfn.XLOOKUP(F1867,'Raw Data'!$I$4:$I$5000,'Raw Data'!$H$4:$H$5000,\"\",0),\"\")","v":""},{"$f":"IF(INDIRECT(M1867) = \"\",\"\",INDIRECT(M1867))","v":""},"n"]
["SUCMDURXSASSETYEARS",null,null,null,{"$f":"_xlfn.XLOOKUP(F1868,'Raw Data'!$I$4:$I$5000,'Raw Data'!$D$4:$D$5000,\"*** Mnemonic not found ***\",0)","v":"*** Mnemonic not found ***"},"SUCMDURXSASSETYEARS__",null,"Input",null,null,{"$f":"K1867+1","v":843},"G","Input!G843",{"$f":"_xlfn.XLOOKUP(F1868,'Raw Data'!$I$4:$I$5000,'Raw Data'!$E$4:$E$5000,100,0)","v":100},{"$f":"IF(N1868=0,_xlfn.XLOOKUP(F1868,'Raw Data'!$I$4:$I$5000,'Raw Data'!$H$4:$H$5000,\"\",0),\"\")","v":""},{"$f":"IF(INDIRECT(M1868) = \"\",\"\",INDIRECT(M1868))","v":""},"n"]
["SUCMONEROUSTOT",null,null,null,{"$f":"_xlfn.XLOOKUP(F1869,'Raw Data'!$I$4:$I$5000,'Raw Data'!$D$4:$D$5000,\"*** Mnemonic not found ***\",0)","v":"*** Mnemonic not found ***"},{"$f":"CONCATENATE(A1869,\"_\",B1869,\"_\",D1869)","v":"SUCMONEROUSTOT__"},null,"Input",null,null,{"$f":"K1868+2","v":845},"G","Input!G845",{"$f":"_xlfn.XLOOKUP(F1869,'Raw Data'!$I$4:$I$5000,'Raw Data'!$E$4:$E$5000,100,0)","v":100},{"$f":"IF(N1869=0,_xlfn.XLOOKUP(F1869,'Raw Data'!$I$4:$I$5000,'Raw Data'!$H$4:$H$5000,\"\",0),\"\")","v":""},{"$f":"IF(INDIRECT(M1869) = \"\",\"\",INDIRECT(M1869))","v":"No"},"c"]
["SUCMONEROUSSTRESS_LIF",null,null,null,{"$f":"_xlfn.XLOOKUP(F1870,'Raw Data'!$I$4:$I$5000,'Raw Data'!$D$4:$D$5000,\"*** Mnemonic not found ***\",0)","v":"*** Mnemonic not found ***"},"SUCMONEROUSSTRESS_LIF__",null,"Input",null,null,{"$f":"K1869+2","v":847},{"$f":"L1868","v":"G"},"Input!G847",{"$f":"_xlfn.XLOOKUP(F1870,'Raw Data'!$I$4:$I$5000,'Raw Data'!$E$4:$E$5000,100,0)","v":100},{"$f":"IF(N1870=0,_xlfn.XLOOKUP(F1870,'Raw Data'!$I$4:$I$5000,'Raw Data'!$H$4:$H$5000,\"\",0),\"\")","v":""},{"$f":"IF(INDIRECT(M1870) = \"\",\"\",INDIRECT(M1870))","v":"Unknown"},"c"]
["SUCMONEROUSSTRESS_NON",null,null,null,{"$f":"_xlfn.XLOOKUP(F1871,'Raw Data'!$I$4:$I$5000,'Raw Data'!$D$4:$D$5000,\"*** Mnemonic not found ***\",0)","v":"*** Mnemonic not found ***"},"SUCMONEROUSSTRESS_NON__",null,"Input",null,null,{"$f":"K1870","v":847},"H","Input!H847",{"$f":"_xlfn.XLOOKUP(F1871,'Raw Data'!$I$4:$I$5000,'Raw Data'!$E$4:$E$5000,100,0)","v":100},{"$f":"IF(N1871=0,_xlfn.XLOOKUP(F1871,'Raw Data'!$I$4:$I$5000,'Raw Data'!$H$4:$H$5000,\"\",0),\"\")","v":""},{"$f":"IF(INDIRECT(M1871) = \"\",\"\",INDIRECT(M1871))","v":"Unknown"},"c"]
["SUCMFORCURRPROD",null,null,null,{"$f":"_xlfn.XLOOKUP(F1872,'Raw Data'!$I$4:$I$5000,'Raw Data'!$D$4:$D$5000,\"*** Mnemonic not found ***\",0)","v":"*** Mnemonic not found ***"},"SUCMFORCURRPROD__",null,"Input",null,null,{"$f":"K1871+11","v":858},"G",{"$f":"CONCATENATE(H1872,\"!\",L1872,K1872)","v":"Input!G858"},{"$f":"_xlfn.XLOOKUP(F1872,'Raw Data'!$I$4:$I$5000,'Raw Data'!$E$4:$E$5000,100,0)","v":100},{"$f":"IF(N1872=0,_xlfn.XLOOKUP(F1872,'Raw Data'!$I$4:$I$5000,'Raw Data'!$H$4:$H$5000,\"\",0),\"\")","v":""},{"$f":"IF(INDIRECT(M1872) = \"\",\"\",INDIRECT(M1872))","v":"No"},"c"]
["SUCMFORCURRCTRY1",null,null,null,{"$f":"_xlfn.XLOOKUP(F1873,'Raw Data'!$I$4:$I$5000,'Raw Data'!$D$4:$D$5000,\"*** Mnemonic not found ***\",0)","v":"*** Mnemonic not found ***"},"SUCMFORCURRCTRY1__",null,"Input",null,null,{"$f":"K1871+15","v":862},"C","Input!C862",{"$f":"_xlfn.XLOOKUP(F1873,'Raw Data'!$I$4:$I$5000,'Raw Data'!$E$4:$E$5000,100,0)","v":100},{"$f":"IF(N1873=0,_xlfn.XLOOKUP(F1873,'Raw Data'!$I$4:$I$5000,'Raw Data'!$H$4:$H$5000,\"\",0),\"\")","v":""},{"$f":"IF(INDIRECT(M1873) = \"\",\"\",INDIRECT(M1873))","v":""},"c"]
["SUCMFORCURRCTRY2",null,null,null,{"$f":"_xlfn.XLOOKUP(F1874,'Raw Data'!$I$4:$I$5000,'Raw Data'!$D$4:$D$5000,\"*** Mnemonic not found ***\",0)","v":"*** Mnemonic not found ***"},"SUCMFORCURRCTRY2__",null,"Input",null,null,{"$f":"K1873+1","v":863},{"$f":"L1873","v":"C"},"Input!C863",{"$f":"_xlfn.XLOOKUP(F1874,'Raw Data'!$I$4:$I$5000,'Raw Data'!$E$4:$E$5000,100,0)","v":100},{"$f":"IF(N1874=0,_xlfn.XLOOKUP(F1874,'Raw Data'!$I$4:$I$5000,'Raw Data'!$H$4:$H$5000,\"\",0),\"\")","v":""},{"$f":"IF(INDIRECT(M1874) = \"\",\"\",INDIRECT(M1874))","v":""},"c"]
["SUCMFORCURRCTRY3",null,null,null,{"$f":"_xlfn.XLOOKUP(F1875,'Raw Data'!$I$4:$I$5000,'Raw Data'!$D$4:$D$5000,\"*** Mnemonic not found ***\",0)","v":"*** Mnemonic not found ***"},"SUCMFORCURRCTRY3__",null,"Input",null,null,864,"C","Input!C864",{"$f":"_xlfn.XLOOKUP(F1875,'Raw Data'!$I$4:$I$5000,'Raw Data'!$E$4:$E$5000,100,0)","v":100},{"$f":"IF(N1875=0,_xlfn.XLOOKUP(F1875,'Raw Data'!$I$4:$I$5000,'Raw Data'!$H$4:$H$5000,\"\",0),\"\")","v":""},{"$f":"IF(INDIRECT(M1875) = \"\",\"\",INDIRECT(M1875))","v":""},"c"]
["SUCMFORCURRCTRY4",null,null,null,{"$f":"_xlfn.XLOOKUP(F1876,'Raw Data'!$I$4:$I$5000,'Raw Data'!$D$4:$D$5000,\"*** Mnemonic not found ***\",0)","v":"*** Mnemonic not found ***"},"SUCMFORCURRCTRY4__",null,"Input",null,null,865,"C","Input!C865",{"$f":"_xlfn.XLOOKUP(F1876,'Raw Data'!$I$4:$I$5000,'Raw Data'!$E$4:$E$5000,100,0)","v":100},{"$f":"IF(N1876=0,_xlfn.XLOOKUP(F1876,'Raw Data'!$I$4:$I$5000,'Raw Data'!$H$4:$H$5000,\"\",0),\"\")","v":""},{"$f":"IF(INDIRECT(M1876) = \"\",\"\",INDIRECT(M1876))","v":""},"c"]
["SUCMFORCURRCTRY5",null,null,null,{"$f":"_xlfn.XLOOKUP(F1877,'Raw Data'!$I$4:$I$5000,'Raw Data'!$D$4:$D$5000,\"*** Mnemonic not found ***\",0)","v":"*** Mnemonic not found ***"},"SUCMFORCURRCTRY5__",null,"Input",null,null,866,"C","Input!C866",{"$f":"_xlfn.XLOOKUP(F1877,'Raw Data'!$I$4:$I$5000,'Raw Data'!$E$4:$E$5000,100,0)","v":100},{"$f":"IF(N1877=0,_xlfn.XLOOKUP(F1877,'Raw Data'!$I$4:$I$5000,'Raw Data'!$H$4:$H$5000,\"\",0),\"\")","v":""},{"$f":"IF(INDIRECT(M1877) = \"\",\"\",INDIRECT(M1877))","v":""},"c"]
["SUCMFORCURRCTRY6",null,null,null,{"$f":"_xlfn.XLOOKUP(F1878,'Raw Data'!$I$4:$I$5000,'Raw Data'!$D$4:$D$5000,\"*** Mnemonic not found ***\",0)","v":"*** Mnemonic not found ***"},"SUCMFORCURRCTRY6__",null,"Input",null,null,867,"C","Input!C867",{"$f":"_xlfn.XLOOKUP(F1878,'Raw Data'!$I$4:$I$5000,'Raw Data'!$E$4:$E$5000,100,0)","v":100},{"$f":"IF(N1878=0,_xlfn.XLOOKUP(F1878,'Raw Data'!$I$4:$I$5000,'Raw Data'!$H$4:$H$5000,\"\",0),\"\")","v":""},{"$f":"IF(INDIRECT(M1878) = \"\",\"\",INDIRECT(M1878))","v":""},"c"]
["SUCMFORCURRCTRY7",null,null,null,{"$f":"_xlfn.XLOOKUP(F1879,'Raw Data'!$I$4:$I$5000,'Raw Data'!$D$4:$D$5000,\"*** Mnemonic not found ***\",0)","v":"*** Mnemonic not found ***"},"SUCMFORCURRCTRY7__",null,"Input",null,null,868,"C","Input!C868",{"$f":"_xlfn.XLOOKUP(F1879,'Raw Data'!$I$4:$I$5000,'Raw Data'!$E$4:$E$5000,100,0)","v":100},{"$f":"IF(N1879=0,_xlfn.XLOOKUP(F1879,'Raw Data'!$I$4:$I$5000,'Raw Data'!$H$4:$H$5000,\"\",0),\"\")","v":""},{"$f":"IF(INDIRECT(M1879) = \"\",\"\",INDIRECT(M1879))","v":""},"c"]
["SUCMFORCURRCTRY8",null,null,null,{"$f":"_xlfn.XLOOKUP(F1880,'Raw Data'!$I$4:$I$5000,'Raw Data'!$D$4:$D$5000,\"*** Mnemonic not found ***\",0)","v":"*** Mnemonic not found ***"},"SUCMFORCURRCTRY8__",null,"Input",null,null,869,"C","Input!C869",{"$f":"_xlfn.XLOOKUP(F1880,'Raw Data'!$I$4:$I$5000,'Raw Data'!$E$4:$E$5000,100,0)","v":100},{"$f":"IF(N1880=0,_xlfn.XLOOKUP(F1880,'Raw Data'!$I$4:$I$5000,'Raw Data'!$H$4:$H$5000,\"\",0),\"\")","v":""},{"$f":"IF(INDIRECT(M1880) = \"\",\"\",INDIRECT(M1880))","v":""},"c"]
["SUCMFORCURRCTRY9",null,null,null,{"$f":"_xlfn.XLOOKUP(F1881,'Raw Data'!$I$4:$I$5000,'Raw Data'!$D$4:$D$5000,\"*** Mnemonic not found ***\",0)","v":"*** Mnemonic not found ***"},"SUCMFORCURRCTRY9__",null,"Input",null,null,870,"C","Input!C870",{"$f":"_xlfn.XLOOKUP(F1881,'Raw Data'!$I$4:$I$5000,'Raw Data'!$E$4:$E$5000,100,0)","v":100},{"$f":"IF(N1881=0,_xlfn.XLOOKUP(F1881,'Raw Data'!$I$4:$I$5000,'Raw Data'!$H$4:$H$5000,\"\",0),\"\")","v":""},{"$f":"IF(INDIRECT(M1881) = \"\",\"\",INDIRECT(M1881))","v":""},"c"]
["SUCMFORCURRCTRY10",null,null,null,{"$f":"_xlfn.XLOOKUP(F1882,'Raw Data'!$I$4:$I$5000,'Raw Data'!$D$4:$D$5000,\"*** Mnemonic not found ***\",0)","v":"*** Mnemonic not found ***"},"SUCMFORCURRCTRY10__",null,"Input",null,null,871,"C","Input!C871",{"$f":"_xlfn.XLOOKUP(F1882,'Raw Data'!$I$4:$I$5000,'Raw Data'!$E$4:$E$5000,100,0)","v":100},{"$f":"IF(N1882=0,_xlfn.XLOOKUP(F1882,'Raw Data'!$I$4:$I$5000,'Raw Data'!$H$4:$H$5000,\"\",0),\"\")","v":""},{"$f":"IF(INDIRECT(M1882) = \"\",\"\",INDIRECT(M1882))","v":""},"c"]
["SUCMFORCURRCTRY11",null,null,null,{"$f":"_xlfn.XLOOKUP(F1883,'Raw Data'!$I$4:$I$5000,'Raw Data'!$D$4:$D$5000,\"*** Mnemonic not found ***\",0)","v":"*** Mnemonic not found ***"},"SUCMFORCURRCTRY11__",null,"Input",null,null,872,"C","Input!C872",{"$f":"_xlfn.XLOOKUP(F1883,'Raw Data'!$I$4:$I$5000,'Raw Data'!$E$4:$E$5000,100,0)","v":100},{"$f":"IF(N1883=0,_xlfn.XLOOKUP(F1883,'Raw Data'!$I$4:$I$5000,'Raw Data'!$H$4:$H$5000,\"\",0),\"\")","v":""},{"$f":"IF(INDIRECT(M1883) = \"\",\"\",INDIRECT(M1883))","v":""},"c"]
["SUCMFORCURRCTRY12",null,null,null,{"$f":"_xlfn.XLOOKUP(F1884,'Raw Data'!$I$4:$I$5000,'Raw Data'!$D$4:$D$5000,\"*** Mnemonic not found ***\",0)","v":"*** Mnemonic not found ***"},"SUCMFORCURRCTRY12__",null,"Input",null,null,873,"C","Input!C873",{"$f":"_xlfn.XLOOKUP(F1884,'Raw Data'!$I$4:$I$5000,'Raw Data'!$E$4:$E$5000,100,0)","v":100},{"$f":"IF(N1884=0,_xlfn.XLOOKUP(F1884,'Raw Data'!$I$4:$I$5000,'Raw Data'!$H$4:$H$5000,\"\",0),\"\")","v":""},{"$f":"IF(INDIRECT(M1884) = \"\",\"\",INDIRECT(M1884))","v":""},"c"]
["SUCMFORCURRCTRY13",null,null,null,{"$f":"_xlfn.XLOOKUP(F1885,'Raw Data'!$I$4:$I$5000,'Raw Data'!$D$4:$D$5000,\"*** Mnemonic not found ***\",0)","v":"*** Mnemonic not found ***"},"SUCMFORCURRCTRY13__",null,"Input",null,null,874,"C","Input!C874",{"$f":"_xlfn.XLOOKUP(F1885,'Raw Data'!$I$4:$I$5000,'Raw Data'!$E$4:$E$5000,100,0)","v":100},{"$f":"IF(N1885=0,_xlfn.XLOOKUP(F1885,'Raw Data'!$I$4:$I$5000,'Raw Data'!$H$4:$H$5000,\"\",0),\"\")","v":""},{"$f":"IF(INDIRECT(M1885) = \"\",\"\",INDIRECT(M1885))","v":""},"c"]
["SUCMFORCURRCTRY14",null,null,null,{"$f":"_xlfn.XLOOKUP(F1886,'Raw Data'!$I$4:$I$5000,'Raw Data'!$D$4:$D$5000,\"*** Mnemonic not found ***\",0)","v":"*** Mnemonic not found ***"},"SUCMFORCURRCTRY14__",null,"Input",null,null,875,"C","Input!C875",{"$f":"_xlfn.XLOOKUP(F1886,'Raw Data'!$I$4:$I$5000,'Raw Data'!$E$4:$E$5000,100,0)","v":100},{"$f":"IF(N1886=0,_xlfn.XLOOKUP(F1886,'Raw Data'!$I$4:$I$5000,'Raw Data'!$H$4:$H$5000,\"\",0),\"\")","v":""},{"$f":"IF(INDIRECT(M1886) = \"\",\"\",INDIRECT(M1886))","v":""},"c"]
["SUCMFORCURRCTRY15",null,null,null,{"$f":"_xlfn.XLOOKUP(F1887,'Raw Data'!$I$4:$I$5000,'Raw Data'!$D$4:$D$5000,\"*** Mnemonic not found ***\",0)","v":"*** Mnemonic not found ***"},"SUCMFORCURRCTRY15__",null,"Input",null,null,876,"C","Input!C876",{"$f":"_xlfn.XLOOKUP(F1887,'Raw Data'!$I$4:$I$5000,'Raw Data'!$E$4:$E$5000,100,0)","v":100},{"$f":"IF(N1887=0,_xlfn.XLOOKUP(F1887,'Raw Data'!$I$4:$I$5000,'Raw Data'!$H$4:$H$5000,\"\",0),\"\")","v":""},{"$f":"IF(INDIRECT(M1887) = \"\",\"\",INDIRECT(M1887))","v":""},"c"]
["SUCMFORCURRCTRY16",null,null,null,{"$f":"_xlfn.XLOOKUP(F1888,'Raw Data'!$I$4:$I$5000,'Raw Data'!$D$4:$D$5000,\"*** Mnemonic not found ***\",0)","v":"*** Mnemonic not found ***"},"SUCMFORCURRCTRY16__",null,"Input",null,null,877,"C","Input!C877",{"$f":"_xlfn.XLOOKUP(F1888,'Raw Data'!$I$4:$I$5000,'Raw Data'!$E$4:$E$5000,100,0)","v":100},{"$f":"IF(N1888=0,_xlfn.XLOOKUP(F1888,'Raw Data'!$I$4:$I$5000,'Raw Data'!$H$4:$H$5000,\"\",0),\"\")","v":""},{"$f":"IF(INDIRECT(M1888) = \"\",\"\",INDIRECT(M1888))","v":""},"c"]
["SUCMFORCURRCTRY17",null,null,null,{"$f":"_xlfn.XLOOKUP(F1889,'Raw Data'!$I$4:$I$5000,'Raw Data'!$D$4:$D$5000,\"*** Mnemonic not found ***\",0)","v":"*** Mnemonic not found ***"},"SUCMFORCURRCTRY17__",null,"Input",null,null,878,"C","Input!C878",{"$f":"_xlfn.XLOOKUP(F1889,'Raw Data'!$I$4:$I$5000,'Raw Data'!$E$4:$E$5000,100,0)","v":100},{"$f":"IF(N1889=0,_xlfn.XLOOKUP(F1889,'Raw Data'!$I$4:$I$5000,'Raw Data'!$H$4:$H$5000,\"\",0),\"\")","v":""},{"$f":"IF(INDIRECT(M1889) = \"\",\"\",INDIRECT(M1889))","v":""},"c"]
["SUCMFORCURRCTRY18",null,null,null,{"$f":"_xlfn.XLOOKUP(F1890,'Raw Data'!$I$4:$I$5000,'Raw Data'!$D$4:$D$5000,\"*** Mnemonic not found ***\",0)","v":"*** Mnemonic not found ***"},"SUCMFORCURRCTRY18__",null,"Input",null,null,879,"C","Input!C879",{"$f":"_xlfn.XLOOKUP(F1890,'Raw Data'!$I$4:$I$5000,'Raw Data'!$E$4:$E$5000,100,0)","v":100},{"$f":"IF(N1890=0,_xlfn.XLOOKUP(F1890,'Raw Data'!$I$4:$I$5000,'Raw Data'!$H$4:$H$5000,\"\",0),\"\")","v":""},{"$f":"IF(INDIRECT(M1890) = \"\",\"\",INDIRECT(M1890))","v":""},"c"]
["SUCMFORCURRCTRY19",null,null,null,{"$f":"_xlfn.XLOOKUP(F1891,'Raw Data'!$I$4:$I$5000,'Raw Data'!$D$4:$D$5000,\"*** Mnemonic not found ***\",0)","v":"*** Mnemonic not found ***"},"SUCMFORCURRCTRY19__",null,"Input",null,null,880,"C","Input!C880",{"$f":"_xlfn.XLOOKUP(F1891,'Raw Data'!$I$4:$I$5000,'Raw Data'!$E$4:$E$5000,100,0)","v":100},{"$f":"IF(N1891=0,_xlfn.XLOOKUP(F1891,'Raw Data'!$I$4:$I$5000,'Raw Data'!$H$4:$H$5000,\"\",0),\"\")","v":""},{"$f":"IF(INDIRECT(M1891) = \"\",\"\",INDIRECT(M1891))","v":""},"c"]
["SUCMFORCURRCTRY20",null,null,null,{"$f":"_xlfn.XLOOKUP(F1892,'Raw Data'!$I$4:$I$5000,'Raw Data'!$D$4:$D$5000,\"*** Mnemonic not found ***\",0)","v":"*** Mnemonic not found ***"},"SUCMFORCURRCTRY20__",null,"Input",null,null,881,"C","Input!C881",{"$f":"_xlfn.XLOOKUP(F1892,'Raw Data'!$I$4:$I$5000,'Raw Data'!$E$4:$E$5000,100,0)","v":100},{"$f":"IF(N1892=0,_xlfn.XLOOKUP(F1892,'Raw Data'!$I$4:$I$5000,'Raw Data'!$H$4:$H$5000,\"\",0),\"\")","v":""},{"$f":"IF(INDIRECT(M1892) = \"\",\"\",INDIRECT(M1892))","v":""},"c"]
["SUCMFORCURRCTRY21",null,null,null,{"$f":"_xlfn.XLOOKUP(F1893,'Raw Data'!$I$4:$I$5000,'Raw Data'!$D$4:$D$5000,\"*** Mnemonic not found ***\",0)","v":"*** Mnemonic not found ***"},"SUCMFORCURRCTRY21__",null,"Input",null,null,882,"C","Input!C882",{"$f":"_xlfn.XLOOKUP(F1893,'Raw Data'!$I$4:$I$5000,'Raw Data'!$E$4:$E$5000,100,0)","v":100},{"$f":"IF(N1893=0,_xlfn.XLOOKUP(F1893,'Raw Data'!$I$4:$I$5000,'Raw Data'!$H$4:$H$5000,\"\",0),\"\")","v":""},{"$f":"IF(INDIRECT(M1893) = \"\",\"\",INDIRECT(M1893))","v":""},"c"]
["SUCMFORCURRCTRY22",null,null,null,{"$f":"_xlfn.XLOOKUP(F1894,'Raw Data'!$I$4:$I$5000,'Raw Data'!$D$4:$D$5000,\"*** Mnemonic not found ***\",0)","v":"*** Mnemonic not found ***"},"SUCMFORCURRCTRY22__",null,"Input",null,null,883,"C","Input!C883",{"$f":"_xlfn.XLOOKUP(F1894,'Raw Data'!$I$4:$I$5000,'Raw Data'!$E$4:$E$5000,100,0)","v":100},{"$f":"IF(N1894=0,_xlfn.XLOOKUP(F1894,'Raw Data'!$I$4:$I$5000,'Raw Data'!$H$4:$H$5000,\"\",0),\"\")","v":""},{"$f":"IF(INDIRECT(M1894) = \"\",\"\",INDIRECT(M1894))","v":""},"c"]
["SUCMFORCURRCTRY23",null,null,null,{"$f":"_xlfn.XLOOKUP(F1895,'Raw Data'!$I$4:$I$5000,'Raw Data'!$D$4:$D$5000,\"*** Mnemonic not found ***\",0)","v":"*** Mnemonic not found ***"},"SUCMFORCURRCTRY23__",null,"Input",null,null,884,"C","Input!C884",{"$f":"_xlfn.XLOOKUP(F1895,'Raw Data'!$I$4:$I$5000,'Raw Data'!$E$4:$E$5000,100,0)","v":100},{"$f":"IF(N1895=0,_xlfn.XLOOKUP(F1895,'Raw Data'!$I$4:$I$5000,'Raw Data'!$H$4:$H$5000,\"\",0),\"\")","v":""},{"$f":"IF(INDIRECT(M1895) = \"\",\"\",INDIRECT(M1895))","v":""},"c"]
["SUCMFORCURRCTRY24",null,null,null,{"$f":"_xlfn.XLOOKUP(F1896,'Raw Data'!$I$4:$I$5000,'Raw Data'!$D$4:$D$5000,\"*** Mnemonic not found ***\",0)","v":"*** Mnemonic not found ***"},"SUCMFORCURRCTRY24__",null,"Input",null,null,885,"C","Input!C885",{"$f":"_xlfn.XLOOKUP(F1896,'Raw Data'!$I$4:$I$5000,'Raw Data'!$E$4:$E$5000,100,0)","v":100},{"$f":"IF(N1896=0,_xlfn.XLOOKUP(F1896,'Raw Data'!$I$4:$I$5000,'Raw Data'!$H$4:$H$5000,\"\",0),\"\")","v":""},{"$f":"IF(INDIRECT(M1896) = \"\",\"\",INDIRECT(M1896))","v":""},"c"]
["SUCMFORCURRCTRY25",null,null,null,{"$f":"_xlfn.XLOOKUP(F1897,'Raw Data'!$I$4:$I$5000,'Raw Data'!$D$4:$D$5000,\"*** Mnemonic not found ***\",0)","v":"*** Mnemonic not found ***"},"SUCMFORCURRCTRY25__",null,"Input",null,null,886,"C","Input!C886",{"$f":"_xlfn.XLOOKUP(F1897,'Raw Data'!$I$4:$I$5000,'Raw Data'!$E$4:$E$5000,100,0)","v":100},{"$f":"IF(N1897=0,_xlfn.XLOOKUP(F1897,'Raw Data'!$I$4:$I$5000,'Raw Data'!$H$4:$H$5000,\"\",0),\"\")","v":""},{"$f":"IF(INDIRECT(M1897) = \"\",\"\",INDIRECT(M1897))","v":""},"c"]
["SUCMFORCURRCTRY26",null,null,null,{"$f":"_xlfn.XLOOKUP(F1898,'Raw Data'!$I$4:$I$5000,'Raw Data'!$D$4:$D$5000,\"*** Mnemonic not found ***\",0)","v":"*** Mnemonic not found ***"},"SUCMFORCURRCTRY26__",null,"Input",null,null,887,"C","Input!C887",{"$f":"_xlfn.XLOOKUP(F1898,'Raw Data'!$I$4:$I$5000,'Raw Data'!$E$4:$E$5000,100,0)","v":100},{"$f":"IF(N1898=0,_xlfn.XLOOKUP(F1898,'Raw Data'!$I$4:$I$5000,'Raw Data'!$H$4:$H$5000,\"\",0),\"\")","v":""},{"$f":"IF(INDIRECT(M1898) = \"\",\"\",INDIRECT(M1898))","v":""},"c"]
["SUCMFORCURRCTRY27",null,null,null,{"$f":"_xlfn.XLOOKUP(F1899,'Raw Data'!$I$4:$I$5000,'Raw Data'!$D$4:$D$5000,\"*** Mnemonic not found ***\",0)","v":"*** Mnemonic not found ***"},"SUCMFORCURRCTRY27__",null,"Input",null,null,888,"C","Input!C888",{"$f":"_xlfn.XLOOKUP(F1899,'Raw Data'!$I$4:$I$5000,'Raw Data'!$E$4:$E$5000,100,0)","v":100},{"$f":"IF(N1899=0,_xlfn.XLOOKUP(F1899,'Raw Data'!$I$4:$I$5000,'Raw Data'!$H$4:$H$5000,\"\",0),\"\")","v":""},{"$f":"IF(INDIRECT(M1899) = \"\",\"\",INDIRECT(M1899))","v":""},"c"]
["SUCMFORCURRCTRY28",null,null,null,{"$f":"_xlfn.XLOOKUP(F1900,'Raw Data'!$I$4:$I$5000,'Raw Data'!$D$4:$D$5000,\"*** Mnemonic not found ***\",0)","v":"*** Mnemonic not found ***"},"SUCMFORCURRCTRY28__",null,"Input",null,null,889,"C","Input!C889",{"$f":"_xlfn.XLOOKUP(F1900,'Raw Data'!$I$4:$I$5000,'Raw Data'!$E$4:$E$5000,100,0)","v":100},{"$f":"IF(N1900=0,_xlfn.XLOOKUP(F1900,'Raw Data'!$I$4:$I$5000,'Raw Data'!$H$4:$H$5000,\"\",0),\"\")","v":""},{"$f":"IF(INDIRECT(M1900) = \"\",\"\",INDIRECT(M1900))","v":""},"c"]
["SUCMFORCURRCTRY29",null,null,null,{"$f":"_xlfn.XLOOKUP(F1901,'Raw Data'!$I$4:$I$5000,'Raw Data'!$D$4:$D$5000,\"*** Mnemonic not found ***\",0)","v":"*** Mnemonic not found ***"},"SUCMFORCURRCTRY29__",null,"Input",null,null,890,"C","Input!C890",{"$f":"_xlfn.XLOOKUP(F1901,'Raw Data'!$I$4:$I$5000,'Raw Data'!$E$4:$E$5000,100,0)","v":100},{"$f":"IF(N1901=0,_xlfn.XLOOKUP(F1901,'Raw Data'!$I$4:$I$5000,'Raw Data'!$H$4:$H$5000,\"\",0),\"\")","v":""},{"$f":"IF(INDIRECT(M1901) = \"\",\"\",INDIRECT(M1901))","v":""},"c"]
["SUCMFORCURRCTRY30",null,null,null,{"$f":"_xlfn.XLOOKUP(F1902,'Raw Data'!$I$4:$I$5000,'Raw Data'!$D$4:$D$5000,\"*** Mnemonic not found ***\",0)","v":"*** Mnemonic not found ***"},"SUCMFORCURRCTRY30__",null,"Input",null,null,891,"C","Input!C891",{"$f":"_xlfn.XLOOKUP(F1902,'Raw Data'!$I$4:$I$5000,'Raw Data'!$E$4:$E$5000,100,0)","v":100},{"$f":"IF(N1902=0,_xlfn.XLOOKUP(F1902,'Raw Data'!$I$4:$I$5000,'Raw Data'!$H$4:$H$5000,\"\",0),\"\")","v":""},{"$f":"IF(INDIRECT(M1902) = \"\",\"\",INDIRECT(M1902))","v":""},"c"]
["SUCMFORCURRCTRY31",null,null,null,{"$f":"_xlfn.XLOOKUP(F1903,'Raw Data'!$I$4:$I$5000,'Raw Data'!$D$4:$D$5000,\"*** Mnemonic not found ***\",0)","v":"*** Mnemonic not found ***"},"SUCMFORCURRCTRY31__",null,"Input",null,null,892,"C","Input!C892",{"$f":"_xlfn.XLOOKUP(F1903,'Raw Data'!$I$4:$I$5000,'Raw Data'!$E$4:$E$5000,100,0)","v":100},{"$f":"IF(N1903=0,_xlfn.XLOOKUP(F1903,'Raw Data'!$I$4:$I$5000,'Raw Data'!$H$4:$H$5000,\"\",0),\"\")","v":""},{"$f":"IF(INDIRECT(M1903) = \"\",\"\",INDIRECT(M1903))","v":""},"c"]
["SUCMFORCURRCTRY32",null,null,null,{"$f":"_xlfn.XLOOKUP(F1904,'Raw Data'!$I$4:$I$5000,'Raw Data'!$D$4:$D$5000,\"*** Mnemonic not found ***\",0)","v":"*** Mnemonic not found ***"},"SUCMFORCURRCTRY32__",null,"Input",null,null,893,"C","Input!C893",{"$f":"_xlfn.XLOOKUP(F1904,'Raw Data'!$I$4:$I$5000,'Raw Data'!$E$4:$E$5000,100,0)","v":100},{"$f":"IF(N1904=0,_xlfn.XLOOKUP(F1904,'Raw Data'!$I$4:$I$5000,'Raw Data'!$H$4:$H$5000,\"\",0),\"\")","v":""},{"$f":"IF(INDIRECT(M1904) = \"\",\"\",INDIRECT(M1904))","v":""},"c"]
["SUCMFORCURRCTRY33",null,null,null,{"$f":"_xlfn.XLOOKUP(F1905,'Raw Data'!$I$4:$I$5000,'Raw Data'!$D$4:$D$5000,\"*** Mnemonic not found ***\",0)","v":"*** Mnemonic not found ***"},"SUCMFORCURRCTRY33__",null,"Input",null,null,894,"C","Input!C894",{"$f":"_xlfn.XLOOKUP(F1905,'Raw Data'!$I$4:$I$5000,'Raw Data'!$E$4:$E$5000,100,0)","v":100},{"$f":"IF(N1905=0,_xlfn.XLOOKUP(F1905,'Raw Data'!$I$4:$I$5000,'Raw Data'!$H$4:$H$5000,\"\",0),\"\")","v":""},{"$f":"IF(INDIRECT(M1905) = \"\",\"\",INDIRECT(M1905))","v":""},"c"]
["SUCMFORCURRCTRY34",null,null,null,{"$f":"_xlfn.XLOOKUP(F1906,'Raw Data'!$I$4:$I$5000,'Raw Data'!$D$4:$D$5000,\"*** Mnemonic not found ***\",0)","v":"*** Mnemonic not found ***"},"SUCMFORCURRCTRY34__",null,"Input",null,null,895,"C","Input!C895",{"$f":"_xlfn.XLOOKUP(F1906,'Raw Data'!$I$4:$I$5000,'Raw Data'!$E$4:$E$5000,100,0)","v":100},{"$f":"IF(N1906=0,_xlfn.XLOOKUP(F1906,'Raw Data'!$I$4:$I$5000,'Raw Data'!$H$4:$H$5000,\"\",0),\"\")","v":""},{"$f":"IF(INDIRECT(M1906) = \"\",\"\",INDIRECT(M1906))","v":""},"c"]
["SUCMFORCURRCTRY35",null,null,null,{"$f":"_xlfn.XLOOKUP(F1907,'Raw Data'!$I$4:$I$5000,'Raw Data'!$D$4:$D$5000,\"*** Mnemonic not found ***\",0)","v":"*** Mnemonic not found ***"},"SUCMFORCURRCTRY35__",null,"Input",null,null,896,"C","Input!C896",{"$f":"_xlfn.XLOOKUP(F1907,'Raw Data'!$I$4:$I$5000,'Raw Data'!$E$4:$E$5000,100,0)","v":100},{"$f":"IF(N1907=0,_xlfn.XLOOKUP(F1907,'Raw Data'!$I$4:$I$5000,'Raw Data'!$H$4:$H$5000,\"\",0),\"\")","v":""},{"$f":"IF(INDIRECT(M1907) = \"\",\"\",INDIRECT(M1907))","v":""},"c"]
["SUCMFORCURRCTRY_IRRSK2",null,null,null,{"$f":"_xlfn.XLOOKUP(F1908,'Raw Data'!$I$4:$I$5000,'Raw Data'!$D$4:$D$5000,\"*** Mnemonic not found ***\",0)","v":"*** Mnemonic not found ***"},"SUCMFORCURRCTRY_IRRSK2__",null,"Input",null,null,{"$f":"K1874","v":863},"D","Input!D863",{"$f":"_xlfn.XLOOKUP(F1908,'Raw Data'!$I$4:$I$5000,'Raw Data'!$E$4:$E$5000,100,0)","v":100},{"$f":"IF(N1908=0,_xlfn.XLOOKUP(F1908,'Raw Data'!$I$4:$I$5000,'Raw Data'!$H$4:$H$5000,\"\",0),\"\")","v":""},{"$f":"IF(INDIRECT(M1908) = \"\",\"\",INDIRECT(M1908))","v":""},"c"]
["SUCMFORCURRCTRY_IRRSK3",null,null,null,{"$f":"_xlfn.XLOOKUP(F1909,'Raw Data'!$I$4:$I$5000,'Raw Data'!$D$4:$D$5000,\"*** Mnemonic not found ***\",0)","v":"*** Mnemonic not found ***"},"SUCMFORCURRCTRY_IRRSK3__",null,"Input",null,null,{"$f":"K1908+1","v":864},{"$f":"L1908","v":"D"},"Input!D864",{"$f":"_xlfn.XLOOKUP(F1909,'Raw Data'!$I$4:$I$5000,'Raw Data'!$E$4:$E$5000,100,0)","v":100},{"$f":"IF(N1909=0,_xlfn.XLOOKUP(F1909,'Raw Data'!$I$4:$I$5000,'Raw Data'!$H$4:$H$5000,\"\",0),\"\")","v":""},{"$f":"IF(INDIRECT(M1909) = \"\",\"\",INDIRECT(M1909))","v":""},"c"]
["SUCMFORCURRCTRY_IRRSK4",null,null,null,{"$f":"_xlfn.XLOOKUP(F1910,'Raw Data'!$I$4:$I$5000,'Raw Data'!$D$4:$D$5000,\"*** Mnemonic not found ***\",0)","v":"*** Mnemonic not found ***"},"SUCMFORCURRCTRY_IRRSK4__",null,"Input",null,null,865,"D","Input!D865",{"$f":"_xlfn.XLOOKUP(F1910,'Raw Data'!$I$4:$I$5000,'Raw Data'!$E$4:$E$5000,100,0)","v":100},{"$f":"IF(N1910=0,_xlfn.XLOOKUP(F1910,'Raw Data'!$I$4:$I$5000,'Raw Data'!$H$4:$H$5000,\"\",0),\"\")","v":""},{"$f":"IF(INDIRECT(M1910) = \"\",\"\",INDIRECT(M1910))","v":""},"c"]
["SUCMFORCURRCTRY_IRRSK5",null,null,null,{"$f":"_xlfn.XLOOKUP(F1911,'Raw Data'!$I$4:$I$5000,'Raw Data'!$D$4:$D$5000,\"*** Mnemonic not found ***\",0)","v":"*** Mnemonic not found ***"},"SUCMFORCURRCTRY_IRRSK5__",null,"Input",null,null,866,"D","Input!D866",{"$f":"_xlfn.XLOOKUP(F1911,'Raw Data'!$I$4:$I$5000,'Raw Data'!$E$4:$E$5000,100,0)","v":100},{"$f":"IF(N1911=0,_xlfn.XLOOKUP(F1911,'Raw Data'!$I$4:$I$5000,'Raw Data'!$H$4:$H$5000,\"\",0),\"\")","v":""},{"$f":"IF(INDIRECT(M1911) = \"\",\"\",INDIRECT(M1911))","v":""},"c"]
["SUCMFORCURRCTRY_IRRSK6",null,null,null,{"$f":"_xlfn.XLOOKUP(F1912,'Raw Data'!$I$4:$I$5000,'Raw Data'!$D$4:$D$5000,\"*** Mnemonic not found ***\",0)","v":"*** Mnemonic not found ***"},"SUCMFORCURRCTRY_IRRSK6__",null,"Input",null,null,867,"D","Input!D867",{"$f":"_xlfn.XLOOKUP(F1912,'Raw Data'!$I$4:$I$5000,'Raw Data'!$E$4:$E$5000,100,0)","v":100},{"$f":"IF(N1912=0,_xlfn.XLOOKUP(F1912,'Raw Data'!$I$4:$I$5000,'Raw Data'!$H$4:$H$5000,\"\",0),\"\")","v":""},{"$f":"IF(INDIRECT(M1912) = \"\",\"\",INDIRECT(M1912))","v":""},"c"]
["SUCMFORCURRCTRY_IRRSK7",null,null,null,{"$f":"_xlfn.XLOOKUP(F1913,'Raw Data'!$I$4:$I$5000,'Raw Data'!$D$4:$D$5000,\"*** Mnemonic not found ***\",0)","v":"*** Mnemonic not found ***"},"SUCMFORCURRCTRY_IRRSK7__",null,"Input",null,null,868,"D","Input!D868",{"$f":"_xlfn.XLOOKUP(F1913,'Raw Data'!$I$4:$I$5000,'Raw Data'!$E$4:$E$5000,100,0)","v":100},{"$f":"IF(N1913=0,_xlfn.XLOOKUP(F1913,'Raw Data'!$I$4:$I$5000,'Raw Data'!$H$4:$H$5000,\"\",0),\"\")","v":""},{"$f":"IF(INDIRECT(M1913) = \"\",\"\",INDIRECT(M1913))","v":""},"c"]
["SUCMFORCURRCTRY_IRRSK8",null,null,null,{"$f":"_xlfn.XLOOKUP(F1914,'Raw Data'!$I$4:$I$5000,'Raw Data'!$D$4:$D$5000,\"*** Mnemonic not found ***\",0)","v":"*** Mnemonic not found ***"},"SUCMFORCURRCTRY_IRRSK8__",null,"Input",null,null,869,"D","Input!D869",{"$f":"_xlfn.XLOOKUP(F1914,'Raw Data'!$I$4:$I$5000,'Raw Data'!$E$4:$E$5000,100,0)","v":100},{"$f":"IF(N1914=0,_xlfn.XLOOKUP(F1914,'Raw Data'!$I$4:$I$5000,'Raw Data'!$H$4:$H$5000,\"\",0),\"\")","v":""},{"$f":"IF(INDIRECT(M1914) = \"\",\"\",INDIRECT(M1914))","v":""},"c"]
["SUCMFORCURRCTRY_IRRSK9",null,null,null,{"$f":"_xlfn.XLOOKUP(F1915,'Raw Data'!$I$4:$I$5000,'Raw Data'!$D$4:$D$5000,\"*** Mnemonic not found ***\",0)","v":"*** Mnemonic not found ***"},"SUCMFORCURRCTRY_IRRSK9__",null,"Input",null,null,870,"D","Input!D870",{"$f":"_xlfn.XLOOKUP(F1915,'Raw Data'!$I$4:$I$5000,'Raw Data'!$E$4:$E$5000,100,0)","v":100},{"$f":"IF(N1915=0,_xlfn.XLOOKUP(F1915,'Raw Data'!$I$4:$I$5000,'Raw Data'!$H$4:$H$5000,\"\",0),\"\")","v":""},{"$f":"IF(INDIRECT(M1915) = \"\",\"\",INDIRECT(M1915))","v":""},"c"]
["SUCMFORCURRCTRY_IRRSK10",null,null,null,{"$f":"_xlfn.XLOOKUP(F1916,'Raw Data'!$I$4:$I$5000,'Raw Data'!$D$4:$D$5000,\"*** Mnemonic not found ***\",0)","v":"*** Mnemonic not found ***"},"SUCMFORCURRCTRY_IRRSK10__",null,"Input",null,null,871,"D","Input!D871",{"$f":"_xlfn.XLOOKUP(F1916,'Raw Data'!$I$4:$I$5000,'Raw Data'!$E$4:$E$5000,100,0)","v":100},{"$f":"IF(N1916=0,_xlfn.XLOOKUP(F1916,'Raw Data'!$I$4:$I$5000,'Raw Data'!$H$4:$H$5000,\"\",0),\"\")","v":""},{"$f":"IF(INDIRECT(M1916) = \"\",\"\",INDIRECT(M1916))","v":""},"c"]
["SUCMFORCURRCTRY_IRRSK11",null,null,null,{"$f":"_xlfn.XLOOKUP(F1917,'Raw Data'!$I$4:$I$5000,'Raw Data'!$D$4:$D$5000,\"*** Mnemonic not found ***\",0)","v":"*** Mnemonic not found ***"},"SUCMFORCURRCTRY_IRRSK11__",null,"Input",null,null,872,"D","Input!D872",{"$f":"_xlfn.XLOOKUP(F1917,'Raw Data'!$I$4:$I$5000,'Raw Data'!$E$4:$E$5000,100,0)","v":100},{"$f":"IF(N1917=0,_xlfn.XLOOKUP(F1917,'Raw Data'!$I$4:$I$5000,'Raw Data'!$H$4:$H$5000,\"\",0),\"\")","v":""},{"$f":"IF(INDIRECT(M1917) = \"\",\"\",INDIRECT(M1917))","v":""},"c"]
["SUCMFORCURRCTRY_IRRSK12",null,null,null,{"$f":"_xlfn.XLOOKUP(F1918,'Raw Data'!$I$4:$I$5000,'Raw Data'!$D$4:$D$5000,\"*** Mnemonic not found ***\",0)","v":"*** Mnemonic not found ***"},"SUCMFORCURRCTRY_IRRSK12__",null,"Input",null,null,873,"D","Input!D873",{"$f":"_xlfn.XLOOKUP(F1918,'Raw Data'!$I$4:$I$5000,'Raw Data'!$E$4:$E$5000,100,0)","v":100},{"$f":"IF(N1918=0,_xlfn.XLOOKUP(F1918,'Raw Data'!$I$4:$I$5000,'Raw Data'!$H$4:$H$5000,\"\",0),\"\")","v":""},{"$f":"IF(INDIRECT(M1918) = \"\",\"\",INDIRECT(M1918))","v":""},"c"]
["SUCMFORCURRCTRY_IRRSK13",null,null,null,{"$f":"_xlfn.XLOOKUP(F1919,'Raw Data'!$I$4:$I$5000,'Raw Data'!$D$4:$D$5000,\"*** Mnemonic not found ***\",0)","v":"*** Mnemonic not found ***"},"SUCMFORCURRCTRY_IRRSK13__",null,"Input",null,null,874,"D","Input!D874",{"$f":"_xlfn.XLOOKUP(F1919,'Raw Data'!$I$4:$I$5000,'Raw Data'!$E$4:$E$5000,100,0)","v":100},{"$f":"IF(N1919=0,_xlfn.XLOOKUP(F1919,'Raw Data'!$I$4:$I$5000,'Raw Data'!$H$4:$H$5000,\"\",0),\"\")","v":""},{"$f":"IF(INDIRECT(M1919) = \"\",\"\",INDIRECT(M1919))","v":""},"c"]
["SUCMFORCURRCTRY_IRRSK14",null,null,null,{"$f":"_xlfn.XLOOKUP(F1920,'Raw Data'!$I$4:$I$5000,'Raw Data'!$D$4:$D$5000,\"*** Mnemonic not found ***\",0)","v":"*** Mnemonic not found ***"},"SUCMFORCURRCTRY_IRRSK14__",null,"Input",null,null,875,"D","Input!D875",{"$f":"_xlfn.XLOOKUP(F1920,'Raw Data'!$I$4:$I$5000,'Raw Data'!$E$4:$E$5000,100,0)","v":100},{"$f":"IF(N1920=0,_xlfn.XLOOKUP(F1920,'Raw Data'!$I$4:$I$5000,'Raw Data'!$H$4:$H$5000,\"\",0),\"\")","v":""},{"$f":"IF(INDIRECT(M1920) = \"\",\"\",INDIRECT(M1920))","v":""},"c"]
["SUCMFORCURRCTRY_IRRSK15",null,null,null,{"$f":"_xlfn.XLOOKUP(F1921,'Raw Data'!$I$4:$I$5000,'Raw Data'!$D$4:$D$5000,\"*** Mnemonic not found ***\",0)","v":"*** Mnemonic not found ***"},"SUCMFORCURRCTRY_IRRSK15__",null,"Input",null,null,876,"D","Input!D876",{"$f":"_xlfn.XLOOKUP(F1921,'Raw Data'!$I$4:$I$5000,'Raw Data'!$E$4:$E$5000,100,0)","v":100},{"$f":"IF(N1921=0,_xlfn.XLOOKUP(F1921,'Raw Data'!$I$4:$I$5000,'Raw Data'!$H$4:$H$5000,\"\",0),\"\")","v":""},{"$f":"IF(INDIRECT(M1921) = \"\",\"\",INDIRECT(M1921))","v":""},"c"]
["SUCMFORCURRCTRY_IRRSK16",null,null,null,{"$f":"_xlfn.XLOOKUP(F1922,'Raw Data'!$I$4:$I$5000,'Raw Data'!$D$4:$D$5000,\"*** Mnemonic not found ***\",0)","v":"*** Mnemonic not found ***"},"SUCMFORCURRCTRY_IRRSK16__",null,"Input",null,null,877,"D","Input!D877",{"$f":"_xlfn.XLOOKUP(F1922,'Raw Data'!$I$4:$I$5000,'Raw Data'!$E$4:$E$5000,100,0)","v":100},{"$f":"IF(N1922=0,_xlfn.XLOOKUP(F1922,'Raw Data'!$I$4:$I$5000,'Raw Data'!$H$4:$H$5000,\"\",0),\"\")","v":""},{"$f":"IF(INDIRECT(M1922) = \"\",\"\",INDIRECT(M1922))","v":""},"c"]
["SUCMFORCURRCTRY_IRRSK17",null,null,null,{"$f":"_xlfn.XLOOKUP(F1923,'Raw Data'!$I$4:$I$5000,'Raw Data'!$D$4:$D$5000,\"*** Mnemonic not found ***\",0)","v":"*** Mnemonic not found ***"},"SUCMFORCURRCTRY_IRRSK17__",null,"Input",null,null,878,"D","Input!D878",{"$f":"_xlfn.XLOOKUP(F1923,'Raw Data'!$I$4:$I$5000,'Raw Data'!$E$4:$E$5000,100,0)","v":100},{"$f":"IF(N1923=0,_xlfn.XLOOKUP(F1923,'Raw Data'!$I$4:$I$5000,'Raw Data'!$H$4:$H$5000,\"\",0),\"\")","v":""},{"$f":"IF(INDIRECT(M1923) = \"\",\"\",INDIRECT(M1923))","v":""},"c"]
["SUCMFORCURRCTRY_IRRSK18",null,null,null,{"$f":"_xlfn.XLOOKUP(F1924,'Raw Data'!$I$4:$I$5000,'Raw Data'!$D$4:$D$5000,\"*** Mnemonic not found ***\",0)","v":"*** Mnemonic not found ***"},"SUCMFORCURRCTRY_IRRSK18__",null,"Input",null,null,879,"D","Input!D879",{"$f":"_xlfn.XLOOKUP(F1924,'Raw Data'!$I$4:$I$5000,'Raw Data'!$E$4:$E$5000,100,0)","v":100},{"$f":"IF(N1924=0,_xlfn.XLOOKUP(F1924,'Raw Data'!$I$4:$I$5000,'Raw Data'!$H$4:$H$5000,\"\",0),\"\")","v":""},{"$f":"IF(INDIRECT(M1924) = \"\",\"\",INDIRECT(M1924))","v":""},"c"]
["SUCMFORCURRCTRY_IRRSK19",null,null,null,{"$f":"_xlfn.XLOOKUP(F1925,'Raw Data'!$I$4:$I$5000,'Raw Data'!$D$4:$D$5000,\"*** Mnemonic not found ***\",0)","v":"*** Mnemonic not found ***"},"SUCMFORCURRCTRY_IRRSK19__",null,"Input",null,null,880,"D","Input!D880",{"$f":"_xlfn.XLOOKUP(F1925,'Raw Data'!$I$4:$I$5000,'Raw Data'!$E$4:$E$5000,100,0)","v":100},{"$f":"IF(N1925=0,_xlfn.XLOOKUP(F1925,'Raw Data'!$I$4:$I$5000,'Raw Data'!$H$4:$H$5000,\"\",0),\"\")","v":""},{"$f":"IF(INDIRECT(M1925) = \"\",\"\",INDIRECT(M1925))","v":""},"c"]
["SUCMFORCURRCTRY_IRRSK20",null,null,null,{"$f":"_xlfn.XLOOKUP(F1926,'Raw Data'!$I$4:$I$5000,'Raw Data'!$D$4:$D$5000,\"*** Mnemonic not found ***\",0)","v":"*** Mnemonic not found ***"},"SUCMFORCURRCTRY_IRRSK20__",null,"Input",null,null,881,"D","Input!D881",{"$f":"_xlfn.XLOOKUP(F1926,'Raw Data'!$I$4:$I$5000,'Raw Data'!$E$4:$E$5000,100,0)","v":100},{"$f":"IF(N1926=0,_xlfn.XLOOKUP(F1926,'Raw Data'!$I$4:$I$5000,'Raw Data'!$H$4:$H$5000,\"\",0),\"\")","v":""},{"$f":"IF(INDIRECT(M1926) = \"\",\"\",INDIRECT(M1926))","v":""},"c"]
["SUCMFORCURRCTRY_IRRSK21",null,null,null,{"$f":"_xlfn.XLOOKUP(F1927,'Raw Data'!$I$4:$I$5000,'Raw Data'!$D$4:$D$5000,\"*** Mnemonic not found ***\",0)","v":"*** Mnemonic not found ***"},"SUCMFORCURRCTRY_IRRSK21__",null,"Input",null,null,882,"D","Input!D882",{"$f":"_xlfn.XLOOKUP(F1927,'Raw Data'!$I$4:$I$5000,'Raw Data'!$E$4:$E$5000,100,0)","v":100},{"$f":"IF(N1927=0,_xlfn.XLOOKUP(F1927,'Raw Data'!$I$4:$I$5000,'Raw Data'!$H$4:$H$5000,\"\",0),\"\")","v":""},{"$f":"IF(INDIRECT(M1927) = \"\",\"\",INDIRECT(M1927))","v":""},"c"]
["SUCMFORCURRCTRY_IRRSK22",null,null,null,{"$f":"_xlfn.XLOOKUP(F1928,'Raw Data'!$I$4:$I$5000,'Raw Data'!$D$4:$D$5000,\"*** Mnemonic not found ***\",0)","v":"*** Mnemonic not found ***"},"SUCMFORCURRCTRY_IRRSK22__",null,"Input",null,null,883,"D","Input!D883",{"$f":"_xlfn.XLOOKUP(F1928,'Raw Data'!$I$4:$I$5000,'Raw Data'!$E$4:$E$5000,100,0)","v":100},{"$f":"IF(N1928=0,_xlfn.XLOOKUP(F1928,'Raw Data'!$I$4:$I$5000,'Raw Data'!$H$4:$H$5000,\"\",0),\"\")","v":""},{"$f":"IF(INDIRECT(M1928) = \"\",\"\",INDIRECT(M1928))","v":""},"c"]
["SUCMFORCURRCTRY_IRRSK23",null,null,null,{"$f":"_xlfn.XLOOKUP(F1929,'Raw Data'!$I$4:$I$5000,'Raw Data'!$D$4:$D$5000,\"*** Mnemonic not found ***\",0)","v":"*** Mnemonic not found ***"},"SUCMFORCURRCTRY_IRRSK23__",null,"Input",null,null,884,"D","Input!D884",{"$f":"_xlfn.XLOOKUP(F1929,'Raw Data'!$I$4:$I$5000,'Raw Data'!$E$4:$E$5000,100,0)","v":100},{"$f":"IF(N1929=0,_xlfn.XLOOKUP(F1929,'Raw Data'!$I$4:$I$5000,'Raw Data'!$H$4:$H$5000,\"\",0),\"\")","v":""},{"$f":"IF(INDIRECT(M1929) = \"\",\"\",INDIRECT(M1929))","v":""},"c"]
["SUCMFORCURRCTRY_IRRSK24",null,null,null,{"$f":"_xlfn.XLOOKUP(F1930,'Raw Data'!$I$4:$I$5000,'Raw Data'!$D$4:$D$5000,\"*** Mnemonic not found ***\",0)","v":"*** Mnemonic not found ***"},"SUCMFORCURRCTRY_IRRSK24__",null,"Input",null,null,885,"D","Input!D885",{"$f":"_xlfn.XLOOKUP(F1930,'Raw Data'!$I$4:$I$5000,'Raw Data'!$E$4:$E$5000,100,0)","v":100},{"$f":"IF(N1930=0,_xlfn.XLOOKUP(F1930,'Raw Data'!$I$4:$I$5000,'Raw Data'!$H$4:$H$5000,\"\",0),\"\")","v":""},{"$f":"IF(INDIRECT(M1930) = \"\",\"\",INDIRECT(M1930))","v":""},"c"]
["SUCMFORCURRCTRY_IRRSK25",null,null,null,{"$f":"_xlfn.XLOOKUP(F1931,'Raw Data'!$I$4:$I$5000,'Raw Data'!$D$4:$D$5000,\"*** Mnemonic not found ***\",0)","v":"*** Mnemonic not found ***"},"SUCMFORCURRCTRY_IRRSK25__",null,"Input",null,null,886,"D","Input!D886",{"$f":"_xlfn.XLOOKUP(F1931,'Raw Data'!$I$4:$I$5000,'Raw Data'!$E$4:$E$5000,100,0)","v":100},{"$f":"IF(N1931=0,_xlfn.XLOOKUP(F1931,'Raw Data'!$I$4:$I$5000,'Raw Data'!$H$4:$H$5000,\"\",0),\"\")","v":""},{"$f":"IF(INDIRECT(M1931) = \"\",\"\",INDIRECT(M1931))","v":""},"c"]
["SUCMFORCURRCTRY_IRRSK26",null,null,null,{"$f":"_xlfn.XLOOKUP(F1932,'Raw Data'!$I$4:$I$5000,'Raw Data'!$D$4:$D$5000,\"*** Mnemonic not found ***\",0)","v":"*** Mnemonic not found ***"},"SUCMFORCURRCTRY_IRRSK26__",null,"Input",null,null,887,"D","Input!D887",{"$f":"_xlfn.XLOOKUP(F1932,'Raw Data'!$I$4:$I$5000,'Raw Data'!$E$4:$E$5000,100,0)","v":100},{"$f":"IF(N1932=0,_xlfn.XLOOKUP(F1932,'Raw Data'!$I$4:$I$5000,'Raw Data'!$H$4:$H$5000,\"\",0),\"\")","v":""},{"$f":"IF(INDIRECT(M1932) = \"\",\"\",INDIRECT(M1932))","v":""},"c"]
["SUCMFORCURRCTRY_IRRSK27",null,null,null,{"$f":"_xlfn.XLOOKUP(F1933,'Raw Data'!$I$4:$I$5000,'Raw Data'!$D$4:$D$5000,\"*** Mnemonic not found ***\",0)","v":"*** Mnemonic not found ***"},{"$f":"CONCATENATE(A1933,\"_\",B1933,\"_\",D1933)","v":"SUCMFORCURRCTRY_IRRSK27__"},null,"Input",null,null,888,"D","Input!D888",{"$f":"_xlfn.XLOOKUP(F1933,'Raw Data'!$I$4:$I$5000,'Raw Data'!$E$4:$E$5000,100,0)","v":100},{"$f":"IF(N1933=0,_xlfn.XLOOKUP(F1933,'Raw Data'!$I$4:$I$5000,'Raw Data'!$H$4:$H$5000,\"\",0),\"\")","v":""},{"$f":"IF(INDIRECT(M1933) = \"\",\"\",INDIRECT(M1933))","v":""},"c"]
["SUCMFORCURRCTRY_IRRSK28",null,null,null,{"$f":"_xlfn.XLOOKUP(F1934,'Raw Data'!$I$4:$I$5000,'Raw Data'!$D$4:$D$5000,\"*** Mnemonic not found ***\",0)","v":"*** Mnemonic not found ***"},"SUCMFORCURRCTRY_IRRSK28__",null,"Input",null,null,889,"D","Input!D889",{"$f":"_xlfn.XLOOKUP(F1934,'Raw Data'!$I$4:$I$5000,'Raw Data'!$E$4:$E$5000,100,0)","v":100},{"$f":"IF(N1934=0,_xlfn.XLOOKUP(F1934,'Raw Data'!$I$4:$I$5000,'Raw Data'!$H$4:$H$5000,\"\",0),\"\")","v":""},{"$f":"IF(INDIRECT(M1934) = \"\",\"\",INDIRECT(M1934))","v":""},"c"]
["SUCMFORCURRCTRY_IRRSK29",null,null,null,{"$f":"_xlfn.XLOOKUP(F1935,'Raw Data'!$I$4:$I$5000,'Raw Data'!$D$4:$D$5000,\"*** Mnemonic not found ***\",0)","v":"*** Mnemonic not found ***"},"SUCMFORCURRCTRY_IRRSK29__",null,"Input",null,null,890,"D","Input!D890",{"$f":"_xlfn.XLOOKUP(F1935,'Raw Data'!$I$4:$I$5000,'Raw Data'!$E$4:$E$5000,100,0)","v":100},{"$f":"IF(N1935=0,_xlfn.XLOOKUP(F1935,'Raw Data'!$I$4:$I$5000,'Raw Data'!$H$4:$H$5000,\"\",0),\"\")","v":""},{"$f":"IF(INDIRECT(M1935) = \"\",\"\",INDIRECT(M1935))","v":""},"c"]
["SUCMFORCURRCTRY_IRRSK30",null,null,null,{"$f":"_xlfn.XLOOKUP(F1936,'Raw Data'!$I$4:$I$5000,'Raw Data'!$D$4:$D$5000,\"*** Mnemonic not found ***\",0)","v":"*** Mnemonic not found ***"},"SUCMFORCURRCTRY_IRRSK30__",null,"Input",null,null,891,"D","Input!D891",{"$f":"_xlfn.XLOOKUP(F1936,'Raw Data'!$I$4:$I$5000,'Raw Data'!$E$4:$E$5000,100,0)","v":100},{"$f":"IF(N1936=0,_xlfn.XLOOKUP(F1936,'Raw Data'!$I$4:$I$5000,'Raw Data'!$H$4:$H$5000,\"\",0),\"\")","v":""},{"$f":"IF(INDIRECT(M1936) = \"\",\"\",INDIRECT(M1936))","v":""},"c"]
["SUCMFORCURRCTRY_IRRSK31",null,null,null,{"$f":"_xlfn.XLOOKUP(F1937,'Raw Data'!$I$4:$I$5000,'Raw Data'!$D$4:$D$5000,\"*** Mnemonic not found ***\",0)","v":"*** Mnemonic not found ***"},"SUCMFORCURRCTRY_IRRSK31__",null,"Input",null,null,892,"D","Input!D892",{"$f":"_xlfn.XLOOKUP(F1937,'Raw Data'!$I$4:$I$5000,'Raw Data'!$E$4:$E$5000,100,0)","v":100},{"$f":"IF(N1937=0,_xlfn.XLOOKUP(F1937,'Raw Data'!$I$4:$I$5000,'Raw Data'!$H$4:$H$5000,\"\",0),\"\")","v":""},{"$f":"IF(INDIRECT(M1937) = \"\",\"\",INDIRECT(M1937))","v":""},"c"]
["SUCMFORCURRCTRY_IRRSK32",null,null,null,{"$f":"_xlfn.XLOOKUP(F1938,'Raw Data'!$I$4:$I$5000,'Raw Data'!$D$4:$D$5000,\"*** Mnemonic not found ***\",0)","v":"*** Mnemonic not found ***"},"SUCMFORCURRCTRY_IRRSK32__",null,"Input",null,null,893,"D","Input!D893",{"$f":"_xlfn.XLOOKUP(F1938,'Raw Data'!$I$4:$I$5000,'Raw Data'!$E$4:$E$5000,100,0)","v":100},{"$f":"IF(N1938=0,_xlfn.XLOOKUP(F1938,'Raw Data'!$I$4:$I$5000,'Raw Data'!$H$4:$H$5000,\"\",0),\"\")","v":""},{"$f":"IF(INDIRECT(M1938) = \"\",\"\",INDIRECT(M1938))","v":""},"c"]
["SUCMFORCURRCTRY_IRRSK33",null,null,null,{"$f":"_xlfn.XLOOKUP(F1939,'Raw Data'!$I$4:$I$5000,'Raw Data'!$D$4:$D$5000,\"*** Mnemonic not found ***\",0)","v":"*** Mnemonic not found ***"},"SUCMFORCURRCTRY_IRRSK33__",null,"Input",null,null,894,"D","Input!D894",{"$f":"_xlfn.XLOOKUP(F1939,'Raw Data'!$I$4:$I$5000,'Raw Data'!$E$4:$E$5000,100,0)","v":100},{"$f":"IF(N1939=0,_xlfn.XLOOKUP(F1939,'Raw Data'!$I$4:$I$5000,'Raw Data'!$H$4:$H$5000,\"\",0),\"\")","v":""},{"$f":"IF(INDIRECT(M1939) = \"\",\"\",INDIRECT(M1939))","v":""},"c"]
["SUCMFORCURRCTRY_IRRSK34",null,null,null,{"$f":"_xlfn.XLOOKUP(F1940,'Raw Data'!$I$4:$I$5000,'Raw Data'!$D$4:$D$5000,\"*** Mnemonic not found ***\",0)","v":"*** Mnemonic not found ***"},"SUCMFORCURRCTRY_IRRSK34__",null,"Input",null,null,895,"D","Input!D895",{"$f":"_xlfn.XLOOKUP(F1940,'Raw Data'!$I$4:$I$5000,'Raw Data'!$E$4:$E$5000,100,0)","v":100},{"$f":"IF(N1940=0,_xlfn.XLOOKUP(F1940,'Raw Data'!$I$4:$I$5000,'Raw Data'!$H$4:$H$5000,\"\",0),\"\")","v":""},{"$f":"IF(INDIRECT(M1940) = \"\",\"\",INDIRECT(M1940))","v":""},"c"]
["SUCMFORCURRCTRY_IRRSK35",null,null,null,{"$f":"_xlfn.XLOOKUP(F1941,'Raw Data'!$I$4:$I$5000,'Raw Data'!$D$4:$D$5000,\"*** Mnemonic not found ***\",0)","v":"*** Mnemonic not found ***"},"SUCMFORCURRCTRY_IRRSK35__",null,"Input",null,null,896,"D","Input!D896",{"$f":"_xlfn.XLOOKUP(F1941,'Raw Data'!$I$4:$I$5000,'Raw Data'!$E$4:$E$5000,100,0)","v":100},{"$f":"IF(N1941=0,_xlfn.XLOOKUP(F1941,'Raw Data'!$I$4:$I$5000,'Raw Data'!$H$4:$H$5000,\"\",0),\"\")","v":""},{"$f":"IF(INDIRECT(M1941) = \"\",\"\",INDIRECT(M1941))","v":""},"c"]
["SUCMFORCURRPRODSEG2",null,null,null,{"$f":"_xlfn.XLOOKUP(F1942,'Raw Data'!$I$4:$I$5000,'Raw Data'!$D$4:$D$5000,\"*** Mnemonic not found ***\",0)","v":"*** Mnemonic not found ***"},"SUCMFORCURRPRODSEG2__",null,"Input",null,null,{"$f":"K1908","v":863},"E","Input!E863",{"$f":"_xlfn.XLOOKUP(F1942,'Raw Data'!$I$4:$I$5000,'Raw Data'!$E$4:$E$5000,100,0)","v":100},{"$f":"IF(N1942=0,_xlfn.XLOOKUP(F1942,'Raw Data'!$I$4:$I$5000,'Raw Data'!$H$4:$H$5000,\"\",0),\"\")","v":""},{"$f":"IF(INDIRECT(M1942) = \"\",\"\",INDIRECT(M1942))","v":""},"c"]
["SUCMFORCURRPRODSEG3",null,null,null,{"$f":"_xlfn.XLOOKUP(F1943,'Raw Data'!$I$4:$I$5000,'Raw Data'!$D$4:$D$5000,\"*** Mnemonic not found ***\",0)","v":"*** Mnemonic not found ***"},"SUCMFORCURRPRODSEG3__",null,"Input",null,null,{"$f":"K1942+1","v":864},{"$f":"L1942","v":"E"},"Input!E864",{"$f":"_xlfn.XLOOKUP(F1943,'Raw Data'!$I$4:$I$5000,'Raw Data'!$E$4:$E$5000,100,0)","v":100},{"$f":"IF(N1943=0,_xlfn.XLOOKUP(F1943,'Raw Data'!$I$4:$I$5000,'Raw Data'!$H$4:$H$5000,\"\",0),\"\")","v":""},{"$f":"IF(INDIRECT(M1943) = \"\",\"\",INDIRECT(M1943))","v":""},"c"]
["SUCMFORCURRPRODSEG4",null,null,null,{"$f":"_xlfn.XLOOKUP(F1944,'Raw Data'!$I$4:$I$5000,'Raw Data'!$D$4:$D$5000,\"*** Mnemonic not found ***\",0)","v":"*** Mnemonic not found ***"},"SUCMFORCURRPRODSEG4__",null,"Input",null,null,865,"E","Input!E865",{"$f":"_xlfn.XLOOKUP(F1944,'Raw Data'!$I$4:$I$5000,'Raw Data'!$E$4:$E$5000,100,0)","v":100},{"$f":"IF(N1944=0,_xlfn.XLOOKUP(F1944,'Raw Data'!$I$4:$I$5000,'Raw Data'!$H$4:$H$5000,\"\",0),\"\")","v":""},{"$f":"IF(INDIRECT(M1944) = \"\",\"\",INDIRECT(M1944))","v":""},"c"]
["SUCMFORCURRPRODSEG5",null,null,null,{"$f":"_xlfn.XLOOKUP(F1945,'Raw Data'!$I$4:$I$5000,'Raw Data'!$D$4:$D$5000,\"*** Mnemonic not found ***\",0)","v":"*** Mnemonic not found ***"},"SUCMFORCURRPRODSEG5__",null,"Input",null,null,866,"E","Input!E866",{"$f":"_xlfn.XLOOKUP(F1945,'Raw Data'!$I$4:$I$5000,'Raw Data'!$E$4:$E$5000,100,0)","v":100},{"$f":"IF(N1945=0,_xlfn.XLOOKUP(F1945,'Raw Data'!$I$4:$I$5000,'Raw Data'!$H$4:$H$5000,\"\",0),\"\")","v":""},{"$f":"IF(INDIRECT(M1945) = \"\",\"\",INDIRECT(M1945))","v":""},"c"]
["SUCMFORCURRPRODSEG6",null,null,null,{"$f":"_xlfn.XLOOKUP(F1946,'Raw Data'!$I$4:$I$5000,'Raw Data'!$D$4:$D$5000,\"*** Mnemonic not found ***\",0)","v":"*** Mnemonic not found ***"},"SUCMFORCURRPRODSEG6__",null,"Input",null,null,867,"E","Input!E867",{"$f":"_xlfn.XLOOKUP(F1946,'Raw Data'!$I$4:$I$5000,'Raw Data'!$E$4:$E$5000,100,0)","v":100},{"$f":"IF(N1946=0,_xlfn.XLOOKUP(F1946,'Raw Data'!$I$4:$I$5000,'Raw Data'!$H$4:$H$5000,\"\",0),\"\")","v":""},{"$f":"IF(INDIRECT(M1946) = \"\",\"\",INDIRECT(M1946))","v":""},"c"]
["SUCMFORCURRPRODSEG7",null,null,null,{"$f":"_xlfn.XLOOKUP(F1947,'Raw Data'!$I$4:$I$5000,'Raw Data'!$D$4:$D$5000,\"*** Mnemonic not found ***\",0)","v":"*** Mnemonic not found ***"},"SUCMFORCURRPRODSEG7__",null,"Input",null,null,868,"E","Input!E868",{"$f":"_xlfn.XLOOKUP(F1947,'Raw Data'!$I$4:$I$5000,'Raw Data'!$E$4:$E$5000,100,0)","v":100},{"$f":"IF(N1947=0,_xlfn.XLOOKUP(F1947,'Raw Data'!$I$4:$I$5000,'Raw Data'!$H$4:$H$5000,\"\",0),\"\")","v":""},{"$f":"IF(INDIRECT(M1947) = \"\",\"\",INDIRECT(M1947))","v":""},"c"]
["SUCMFORCURRPRODSEG8",null,null,null,{"$f":"_xlfn.XLOOKUP(F1948,'Raw Data'!$I$4:$I$5000,'Raw Data'!$D$4:$D$5000,\"*** Mnemonic not found ***\",0)","v":"*** Mnemonic not found ***"},"SUCMFORCURRPRODSEG8__",null,"Input",null,null,869,"E","Input!E869",{"$f":"_xlfn.XLOOKUP(F1948,'Raw Data'!$I$4:$I$5000,'Raw Data'!$E$4:$E$5000,100,0)","v":100},{"$f":"IF(N1948=0,_xlfn.XLOOKUP(F1948,'Raw Data'!$I$4:$I$5000,'Raw Data'!$H$4:$H$5000,\"\",0),\"\")","v":""},{"$f":"IF(INDIRECT(M1948) = \"\",\"\",INDIRECT(M1948))","v":""},"c"]
["SUCMFORCURRPRODSEG9",null,null,null,{"$f":"_xlfn.XLOOKUP(F1949,'Raw Data'!$I$4:$I$5000,'Raw Data'!$D$4:$D$5000,\"*** Mnemonic not found ***\",0)","v":"*** Mnemonic not found ***"},"SUCMFORCURRPRODSEG9__",null,"Input",null,null,870,"E","Input!E870",{"$f":"_xlfn.XLOOKUP(F1949,'Raw Data'!$I$4:$I$5000,'Raw Data'!$E$4:$E$5000,100,0)","v":100},{"$f":"IF(N1949=0,_xlfn.XLOOKUP(F1949,'Raw Data'!$I$4:$I$5000,'Raw Data'!$H$4:$H$5000,\"\",0),\"\")","v":""},{"$f":"IF(INDIRECT(M1949) = \"\",\"\",INDIRECT(M1949))","v":""},"c"]
["SUCMFORCURRPRODSEG10",null,null,null,{"$f":"_xlfn.XLOOKUP(F1950,'Raw Data'!$I$4:$I$5000,'Raw Data'!$D$4:$D$5000,\"*** Mnemonic not found ***\",0)","v":"*** Mnemonic not found ***"},"SUCMFORCURRPRODSEG10__",null,"Input",null,null,871,"E","Input!E871",{"$f":"_xlfn.XLOOKUP(F1950,'Raw Data'!$I$4:$I$5000,'Raw Data'!$E$4:$E$5000,100,0)","v":100},{"$f":"IF(N1950=0,_xlfn.XLOOKUP(F1950,'Raw Data'!$I$4:$I$5000,'Raw Data'!$H$4:$H$5000,\"\",0),\"\")","v":""},{"$f":"IF(INDIRECT(M1950) = \"\",\"\",INDIRECT(M1950))","v":""},"c"]
["SUCMFORCURRPRODSEG11",null,null,null,{"$f":"_xlfn.XLOOKUP(F1951,'Raw Data'!$I$4:$I$5000,'Raw Data'!$D$4:$D$5000,\"*** Mnemonic not found ***\",0)","v":"*** Mnemonic not found ***"},"SUCMFORCURRPRODSEG11__",null,"Input",null,null,872,"E","Input!E872",{"$f":"_xlfn.XLOOKUP(F1951,'Raw Data'!$I$4:$I$5000,'Raw Data'!$E$4:$E$5000,100,0)","v":100},{"$f":"IF(N1951=0,_xlfn.XLOOKUP(F1951,'Raw Data'!$I$4:$I$5000,'Raw Data'!$H$4:$H$5000,\"\",0),\"\")","v":""},{"$f":"IF(INDIRECT(M1951) = \"\",\"\",INDIRECT(M1951))","v":""},"c"]
["SUCMFORCURRPRODSEG12",null,null,null,{"$f":"_xlfn.XLOOKUP(F1952,'Raw Data'!$I$4:$I$5000,'Raw Data'!$D$4:$D$5000,\"*** Mnemonic not found ***\",0)","v":"*** Mnemonic not found ***"},"SUCMFORCURRPRODSEG12__",null,"Input",null,null,873,"E","Input!E873",{"$f":"_xlfn.XLOOKUP(F1952,'Raw Data'!$I$4:$I$5000,'Raw Data'!$E$4:$E$5000,100,0)","v":100},{"$f":"IF(N1952=0,_xlfn.XLOOKUP(F1952,'Raw Data'!$I$4:$I$5000,'Raw Data'!$H$4:$H$5000,\"\",0),\"\")","v":""},{"$f":"IF(INDIRECT(M1952) = \"\",\"\",INDIRECT(M1952))","v":""},"c"]
["SUCMFORCURRPRODSEG13",null,null,null,{"$f":"_xlfn.XLOOKUP(F1953,'Raw Data'!$I$4:$I$5000,'Raw Data'!$D$4:$D$5000,\"*** Mnemonic not found ***\",0)","v":"*** Mnemonic not found ***"},"SUCMFORCURRPRODSEG13__",null,"Input",null,null,874,"E","Input!E874",{"$f":"_xlfn.XLOOKUP(F1953,'Raw Data'!$I$4:$I$5000,'Raw Data'!$E$4:$E$5000,100,0)","v":100},{"$f":"IF(N1953=0,_xlfn.XLOOKUP(F1953,'Raw Data'!$I$4:$I$5000,'Raw Data'!$H$4:$H$5000,\"\",0),\"\")","v":""},{"$f":"IF(INDIRECT(M1953) = \"\",\"\",INDIRECT(M1953))","v":""},"c"]
["SUCMFORCURRPRODSEG14",null,null,null,{"$f":"_xlfn.XLOOKUP(F1954,'Raw Data'!$I$4:$I$5000,'Raw Data'!$D$4:$D$5000,\"*** Mnemonic not found ***\",0)","v":"*** Mnemonic not found ***"},"SUCMFORCURRPRODSEG14__",null,"Input",null,null,875,"E","Input!E875",{"$f":"_xlfn.XLOOKUP(F1954,'Raw Data'!$I$4:$I$5000,'Raw Data'!$E$4:$E$5000,100,0)","v":100},{"$f":"IF(N1954=0,_xlfn.XLOOKUP(F1954,'Raw Data'!$I$4:$I$5000,'Raw Data'!$H$4:$H$5000,\"\",0),\"\")","v":""},{"$f":"IF(INDIRECT(M1954) = \"\",\"\",INDIRECT(M1954))","v":""},"c"]
["SUCMFORCURRPRODSEG15",null,null,null,{"$f":"_xlfn.XLOOKUP(F1955,'Raw Data'!$I$4:$I$5000,'Raw Data'!$D$4:$D$5000,\"*** Mnemonic not found ***\",0)","v":"*** Mnemonic not found ***"},"SUCMFORCURRPRODSEG15__",null,"Input",null,null,876,"E","Input!E876",{"$f":"_xlfn.XLOOKUP(F1955,'Raw Data'!$I$4:$I$5000,'Raw Data'!$E$4:$E$5000,100,0)","v":100},{"$f":"IF(N1955=0,_xlfn.XLOOKUP(F1955,'Raw Data'!$I$4:$I$5000,'Raw Data'!$H$4:$H$5000,\"\",0),\"\")","v":""},{"$f":"IF(INDIRECT(M1955) = \"\",\"\",INDIRECT(M1955))","v":""},"c"]
["SUCMFORCURRPRODSEG16",null,null,null,{"$f":"_xlfn.XLOOKUP(F1956,'Raw Data'!$I$4:$I$5000,'Raw Data'!$D$4:$D$5000,\"*** Mnemonic not found ***\",0)","v":"*** Mnemonic not found ***"},"SUCMFORCURRPRODSEG16__",null,"Input",null,null,877,"E","Input!E877",{"$f":"_xlfn.XLOOKUP(F1956,'Raw Data'!$I$4:$I$5000,'Raw Data'!$E$4:$E$5000,100,0)","v":100},{"$f":"IF(N1956=0,_xlfn.XLOOKUP(F1956,'Raw Data'!$I$4:$I$5000,'Raw Data'!$H$4:$H$5000,\"\",0),\"\")","v":""},{"$f":"IF(INDIRECT(M1956) = \"\",\"\",INDIRECT(M1956))","v":""},"c"]
["SUCMFORCURRPRODSEG17",null,null,null,{"$f":"_xlfn.XLOOKUP(F1957,'Raw Data'!$I$4:$I$5000,'Raw Data'!$D$4:$D$5000,\"*** Mnemonic not found ***\",0)","v":"*** Mnemonic not found ***"},"SUCMFORCURRPRODSEG17__",null,"Input",null,null,878,"E","Input!E878",{"$f":"_xlfn.XLOOKUP(F1957,'Raw Data'!$I$4:$I$5000,'Raw Data'!$E$4:$E$5000,100,0)","v":100},{"$f":"IF(N1957=0,_xlfn.XLOOKUP(F1957,'Raw Data'!$I$4:$I$5000,'Raw Data'!$H$4:$H$5000,\"\",0),\"\")","v":""},{"$f":"IF(INDIRECT(M1957) = \"\",\"\",INDIRECT(M1957))","v":""},"c"]
["SUCMFORCURRPRODSEG18",null,null,null,{"$f":"_xlfn.XLOOKUP(F1958,'Raw Data'!$I$4:$I$5000,'Raw Data'!$D$4:$D$5000,\"*** Mnemonic not found ***\",0)","v":"*** Mnemonic not found ***"},"SUCMFORCURRPRODSEG18__",null,"Input",null,null,879,"E","Input!E879",{"$f":"_xlfn.XLOOKUP(F1958,'Raw Data'!$I$4:$I$5000,'Raw Data'!$E$4:$E$5000,100,0)","v":100},{"$f":"IF(N1958=0,_xlfn.XLOOKUP(F1958,'Raw Data'!$I$4:$I$5000,'Raw Data'!$H$4:$H$5000,\"\",0),\"\")","v":""},{"$f":"IF(INDIRECT(M1958) = \"\",\"\",INDIRECT(M1958))","v":""},"c"]
["SUCMFORCURRPRODSEG19",null,null,null,{"$f":"_xlfn.XLOOKUP(F1959,'Raw Data'!$I$4:$I$5000,'Raw Data'!$D$4:$D$5000,\"*** Mnemonic not found ***\",0)","v":"*** Mnemonic not found ***"},"SUCMFORCURRPRODSEG19__",null,"Input",null,null,880,"E","Input!E880",{"$f":"_xlfn.XLOOKUP(F1959,'Raw Data'!$I$4:$I$5000,'Raw Data'!$E$4:$E$5000,100,0)","v":100},{"$f":"IF(N1959=0,_xlfn.XLOOKUP(F1959,'Raw Data'!$I$4:$I$5000,'Raw Data'!$H$4:$H$5000,\"\",0),\"\")","v":""},{"$f":"IF(INDIRECT(M1959) = \"\",\"\",INDIRECT(M1959))","v":""},"c"]
["SUCMFORCURRPRODSEG20",null,null,null,{"$f":"_xlfn.XLOOKUP(F1960,'Raw Data'!$I$4:$I$5000,'Raw Data'!$D$4:$D$5000,\"*** Mnemonic not found ***\",0)","v":"*** Mnemonic not found ***"},"SUCMFORCURRPRODSEG20__",null,"Input",null,null,881,"E","Input!E881",{"$f":"_xlfn.XLOOKUP(F1960,'Raw Data'!$I$4:$I$5000,'Raw Data'!$E$4:$E$5000,100,0)","v":100},{"$f":"IF(N1960=0,_xlfn.XLOOKUP(F1960,'Raw Data'!$I$4:$I$5000,'Raw Data'!$H$4:$H$5000,\"\",0),\"\")","v":""},{"$f":"IF(INDIRECT(M1960) = \"\",\"\",INDIRECT(M1960))","v":""},"c"]
["SUCMFORCURRPRODSEG21",null,null,null,{"$f":"_xlfn.XLOOKUP(F1961,'Raw Data'!$I$4:$I$5000,'Raw Data'!$D$4:$D$5000,\"*** Mnemonic not found ***\",0)","v":"*** Mnemonic not found ***"},"SUCMFORCURRPRODSEG21__",null,"Input",null,null,882,"E","Input!E882",{"$f":"_xlfn.XLOOKUP(F1961,'Raw Data'!$I$4:$I$5000,'Raw Data'!$E$4:$E$5000,100,0)","v":100},{"$f":"IF(N1961=0,_xlfn.XLOOKUP(F1961,'Raw Data'!$I$4:$I$5000,'Raw Data'!$H$4:$H$5000,\"\",0),\"\")","v":""},{"$f":"IF(INDIRECT(M1961) = \"\",\"\",INDIRECT(M1961))","v":""},"c"]
["SUCMFORCURRPRODSEG22",null,null,null,{"$f":"_xlfn.XLOOKUP(F1962,'Raw Data'!$I$4:$I$5000,'Raw Data'!$D$4:$D$5000,\"*** Mnemonic not found ***\",0)","v":"*** Mnemonic not found ***"},"SUCMFORCURRPRODSEG22__",null,"Input",null,null,883,"E","Input!E883",{"$f":"_xlfn.XLOOKUP(F1962,'Raw Data'!$I$4:$I$5000,'Raw Data'!$E$4:$E$5000,100,0)","v":100},{"$f":"IF(N1962=0,_xlfn.XLOOKUP(F1962,'Raw Data'!$I$4:$I$5000,'Raw Data'!$H$4:$H$5000,\"\",0),\"\")","v":""},{"$f":"IF(INDIRECT(M1962) = \"\",\"\",INDIRECT(M1962))","v":""},"c"]
["SUCMFORCURRPRODSEG23",null,null,null,{"$f":"_xlfn.XLOOKUP(F1963,'Raw Data'!$I$4:$I$5000,'Raw Data'!$D$4:$D$5000,\"*** Mnemonic not found ***\",0)","v":"*** Mnemonic not found ***"},"SUCMFORCURRPRODSEG23__",null,"Input",null,null,884,"E","Input!E884",{"$f":"_xlfn.XLOOKUP(F1963,'Raw Data'!$I$4:$I$5000,'Raw Data'!$E$4:$E$5000,100,0)","v":100},{"$f":"IF(N1963=0,_xlfn.XLOOKUP(F1963,'Raw Data'!$I$4:$I$5000,'Raw Data'!$H$4:$H$5000,\"\",0),\"\")","v":""},{"$f":"IF(INDIRECT(M1963) = \"\",\"\",INDIRECT(M1963))","v":""},"c"]
["SUCMFORCURRPRODSEG24",null,null,null,{"$f":"_xlfn.XLOOKUP(F1964,'Raw Data'!$I$4:$I$5000,'Raw Data'!$D$4:$D$5000,\"*** Mnemonic not found ***\",0)","v":"*** Mnemonic not found ***"},"SUCMFORCURRPRODSEG24__",null,"Input",null,null,885,"E","Input!E885",{"$f":"_xlfn.XLOOKUP(F1964,'Raw Data'!$I$4:$I$5000,'Raw Data'!$E$4:$E$5000,100,0)","v":100},{"$f":"IF(N1964=0,_xlfn.XLOOKUP(F1964,'Raw Data'!$I$4:$I$5000,'Raw Data'!$H$4:$H$5000,\"\",0),\"\")","v":""},{"$f":"IF(INDIRECT(M1964) = \"\",\"\",INDIRECT(M1964))","v":""},"c"]
["SUCMFORCURRPRODSEG25",null,null,null,{"$f":"_xlfn.XLOOKUP(F1965,'Raw Data'!$I$4:$I$5000,'Raw Data'!$D$4:$D$5000,\"*** Mnemonic not found ***\",0)","v":"*** Mnemonic not found ***"},"SUCMFORCURRPRODSEG25__",null,"Input",null,null,886,"E","Input!E886",{"$f":"_xlfn.XLOOKUP(F1965,'Raw Data'!$I$4:$I$5000,'Raw Data'!$E$4:$E$5000,100,0)","v":100},{"$f":"IF(N1965=0,_xlfn.XLOOKUP(F1965,'Raw Data'!$I$4:$I$5000,'Raw Data'!$H$4:$H$5000,\"\",0),\"\")","v":""},{"$f":"IF(INDIRECT(M1965) = \"\",\"\",INDIRECT(M1965))","v":""},"c"]
["SUCMFORCURRPRODSEG26",null,null,null,{"$f":"_xlfn.XLOOKUP(F1966,'Raw Data'!$I$4:$I$5000,'Raw Data'!$D$4:$D$5000,\"*** Mnemonic not found ***\",0)","v":"*** Mnemonic not found ***"},"SUCMFORCURRPRODSEG26__",null,"Input",null,null,887,"E","Input!E887",{"$f":"_xlfn.XLOOKUP(F1966,'Raw Data'!$I$4:$I$5000,'Raw Data'!$E$4:$E$5000,100,0)","v":100},{"$f":"IF(N1966=0,_xlfn.XLOOKUP(F1966,'Raw Data'!$I$4:$I$5000,'Raw Data'!$H$4:$H$5000,\"\",0),\"\")","v":""},{"$f":"IF(INDIRECT(M1966) = \"\",\"\",INDIRECT(M1966))","v":""},"c"]
["SUCMFORCURRPRODSEG27",null,null,null,{"$f":"_xlfn.XLOOKUP(F1967,'Raw Data'!$I$4:$I$5000,'Raw Data'!$D$4:$D$5000,\"*** Mnemonic not found ***\",0)","v":"*** Mnemonic not found ***"},"SUCMFORCURRPRODSEG27__",null,"Input",null,null,888,"E","Input!E888",{"$f":"_xlfn.XLOOKUP(F1967,'Raw Data'!$I$4:$I$5000,'Raw Data'!$E$4:$E$5000,100,0)","v":100},{"$f":"IF(N1967=0,_xlfn.XLOOKUP(F1967,'Raw Data'!$I$4:$I$5000,'Raw Data'!$H$4:$H$5000,\"\",0),\"\")","v":""},{"$f":"IF(INDIRECT(M1967) = \"\",\"\",INDIRECT(M1967))","v":""},"c"]
["SUCMFORCURRPRODSEG28",null,null,null,{"$f":"_xlfn.XLOOKUP(F1968,'Raw Data'!$I$4:$I$5000,'Raw Data'!$D$4:$D$5000,\"*** Mnemonic not found ***\",0)","v":"*** Mnemonic not found ***"},"SUCMFORCURRPRODSEG28__",null,"Input",null,null,889,"E","Input!E889",{"$f":"_xlfn.XLOOKUP(F1968,'Raw Data'!$I$4:$I$5000,'Raw Data'!$E$4:$E$5000,100,0)","v":100},{"$f":"IF(N1968=0,_xlfn.XLOOKUP(F1968,'Raw Data'!$I$4:$I$5000,'Raw Data'!$H$4:$H$5000,\"\",0),\"\")","v":""},{"$f":"IF(INDIRECT(M1968) = \"\",\"\",INDIRECT(M1968))","v":""},"c"]
["SUCMFORCURRPRODSEG29",null,null,null,{"$f":"_xlfn.XLOOKUP(F1969,'Raw Data'!$I$4:$I$5000,'Raw Data'!$D$4:$D$5000,\"*** Mnemonic not found ***\",0)","v":"*** Mnemonic not found ***"},"SUCMFORCURRPRODSEG29__",null,"Input",null,null,890,"E","Input!E890",{"$f":"_xlfn.XLOOKUP(F1969,'Raw Data'!$I$4:$I$5000,'Raw Data'!$E$4:$E$5000,100,0)","v":100},{"$f":"IF(N1969=0,_xlfn.XLOOKUP(F1969,'Raw Data'!$I$4:$I$5000,'Raw Data'!$H$4:$H$5000,\"\",0),\"\")","v":""},{"$f":"IF(INDIRECT(M1969) = \"\",\"\",INDIRECT(M1969))","v":""},"c"]
["SUCMFORCURRPRODSEG30",null,null,null,{"$f":"_xlfn.XLOOKUP(F1970,'Raw Data'!$I$4:$I$5000,'Raw Data'!$D$4:$D$5000,\"*** Mnemonic not found ***\",0)","v":"*** Mnemonic not found ***"},"SUCMFORCURRPRODSEG30__",null,"Input",null,null,891,"E","Input!E891",{"$f":"_xlfn.XLOOKUP(F1970,'Raw Data'!$I$4:$I$5000,'Raw Data'!$E$4:$E$5000,100,0)","v":100},{"$f":"IF(N1970=0,_xlfn.XLOOKUP(F1970,'Raw Data'!$I$4:$I$5000,'Raw Data'!$H$4:$H$5000,\"\",0),\"\")","v":""},{"$f":"IF(INDIRECT(M1970) = \"\",\"\",INDIRECT(M1970))","v":""},"c"]
["SUCMFORCURRPRODSEG31",null,null,null,{"$f":"_xlfn.XLOOKUP(F1971,'Raw Data'!$I$4:$I$5000,'Raw Data'!$D$4:$D$5000,\"*** Mnemonic not found ***\",0)","v":"*** Mnemonic not found ***"},"SUCMFORCURRPRODSEG31__",null,"Input",null,null,892,"E","Input!E892",{"$f":"_xlfn.XLOOKUP(F1971,'Raw Data'!$I$4:$I$5000,'Raw Data'!$E$4:$E$5000,100,0)","v":100},{"$f":"IF(N1971=0,_xlfn.XLOOKUP(F1971,'Raw Data'!$I$4:$I$5000,'Raw Data'!$H$4:$H$5000,\"\",0),\"\")","v":""},{"$f":"IF(INDIRECT(M1971) = \"\",\"\",INDIRECT(M1971))","v":""},"c"]
["SUCMFORCURRPRODSEG32",null,null,null,{"$f":"_xlfn.XLOOKUP(F1972,'Raw Data'!$I$4:$I$5000,'Raw Data'!$D$4:$D$5000,\"*** Mnemonic not found ***\",0)","v":"*** Mnemonic not found ***"},"SUCMFORCURRPRODSEG32__",null,"Input",null,null,893,"E","Input!E893",{"$f":"_xlfn.XLOOKUP(F1972,'Raw Data'!$I$4:$I$5000,'Raw Data'!$E$4:$E$5000,100,0)","v":100},{"$f":"IF(N1972=0,_xlfn.XLOOKUP(F1972,'Raw Data'!$I$4:$I$5000,'Raw Data'!$H$4:$H$5000,\"\",0),\"\")","v":""},{"$f":"IF(INDIRECT(M1972) = \"\",\"\",INDIRECT(M1972))","v":""},"c"]
["SUCMFORCURRPRODSEG33",null,null,null,{"$f":"_xlfn.XLOOKUP(F1973,'Raw Data'!$I$4:$I$5000,'Raw Data'!$D$4:$D$5000,\"*** Mnemonic not found ***\",0)","v":"*** Mnemonic not found ***"},"SUCMFORCURRPRODSEG33__",null,"Input",null,null,894,"E","Input!E894",{"$f":"_xlfn.XLOOKUP(F1973,'Raw Data'!$I$4:$I$5000,'Raw Data'!$E$4:$E$5000,100,0)","v":100},{"$f":"IF(N1973=0,_xlfn.XLOOKUP(F1973,'Raw Data'!$I$4:$I$5000,'Raw Data'!$H$4:$H$5000,\"\",0),\"\")","v":""},{"$f":"IF(INDIRECT(M1973) = \"\",\"\",INDIRECT(M1973))","v":""},"c"]
["SUCMFORCURRPRODSEG34",null,null,null,{"$f":"_xlfn.XLOOKUP(F1974,'Raw Data'!$I$4:$I$5000,'Raw Data'!$D$4:$D$5000,\"*** Mnemonic not found ***\",0)","v":"*** Mnemonic not found ***"},"SUCMFORCURRPRODSEG34__",null,"Input",null,null,895,"E","Input!E895",{"$f":"_xlfn.XLOOKUP(F1974,'Raw Data'!$I$4:$I$5000,'Raw Data'!$E$4:$E$5000,100,0)","v":100},{"$f":"IF(N1974=0,_xlfn.XLOOKUP(F1974,'Raw Data'!$I$4:$I$5000,'Raw Data'!$H$4:$H$5000,\"\",0),\"\")","v":""},{"$f":"IF(INDIRECT(M1974) = \"\",\"\",INDIRECT(M1974))","v":""},"c"]
["SUCMFORCURRPRODSEG35",null,null,null,{"$f":"_xlfn.XLOOKUP(F1975,'Raw Data'!$I$4:$I$5000,'Raw Data'!$D$4:$D$5000,\"*** Mnemonic not found ***\",0)","v":"*** Mnemonic not found ***"},"SUCMFORCURRPRODSEG35__",null,"Input",null,null,896,"E","Input!E896",{"$f":"_xlfn.XLOOKUP(F1975,'Raw Data'!$I$4:$I$5000,'Raw Data'!$E$4:$E$5000,100,0)","v":100},{"$f":"IF(N1975=0,_xlfn.XLOOKUP(F1975,'Raw Data'!$I$4:$I$5000,'Raw Data'!$H$4:$H$5000,\"\",0),\"\")","v":""},{"$f":"IF(INDIRECT(M1975) = \"\",\"\",INDIRECT(M1975))","v":""},"c"]
["SUCMFORCURREXPAMT1",null,null,null,{"$f":"_xlfn.XLOOKUP(F1976,'Raw Data'!$I$4:$I$5000,'Raw Data'!$D$4:$D$5000,\"*** Mnemonic not found ***\",0)","v":"*** Mnemonic not found ***"},"SUCMFORCURREXPAMT1__",null,"Input",null,null,{"$f":"K1873","v":862},"F","Input!F862",{"$f":"_xlfn.XLOOKUP(F1976,'Raw Data'!$I$4:$I$5000,'Raw Data'!$E$4:$E$5000,100,0)","v":100},{"$f":"IF(N1976=0,_xlfn.XLOOKUP(F1976,'Raw Data'!$I$4:$I$5000,'Raw Data'!$H$4:$H$5000,\"\",0),\"\")","v":""},{"$f":"IF(INDIRECT(M1976) = \"\",\"\",INDIRECT(M1976))","v":""},"n"]
["SUCMFORCURREXPAMT2",null,null,null,{"$f":"_xlfn.XLOOKUP(F1977,'Raw Data'!$I$4:$I$5000,'Raw Data'!$D$4:$D$5000,\"*** Mnemonic not found ***\",0)","v":"*** Mnemonic not found ***"},"SUCMFORCURREXPAMT2__",null,"Input",null,null,{"$f":"K1976+1","v":863},{"$f":"L1976","v":"F"},"Input!F863",{"$f":"_xlfn.XLOOKUP(F1977,'Raw Data'!$I$4:$I$5000,'Raw Data'!$E$4:$E$5000,100,0)","v":100},{"$f":"IF(N1977=0,_xlfn.XLOOKUP(F1977,'Raw Data'!$I$4:$I$5000,'Raw Data'!$H$4:$H$5000,\"\",0),\"\")","v":""},{"$f":"IF(INDIRECT(M1977) = \"\",\"\",INDIRECT(M1977))","v":""},"n"]
["SUCMFORCURREXPAMT3",null,null,null,{"$f":"_xlfn.XLOOKUP(F1978,'Raw Data'!$I$4:$I$5000,'Raw Data'!$D$4:$D$5000,\"*** Mnemonic not found ***\",0)","v":"*** Mnemonic not found ***"},"SUCMFORCURREXPAMT3__",null,"Input",null,null,864,"F","Input!F864",{"$f":"_xlfn.XLOOKUP(F1978,'Raw Data'!$I$4:$I$5000,'Raw Data'!$E$4:$E$5000,100,0)","v":100},{"$f":"IF(N1978=0,_xlfn.XLOOKUP(F1978,'Raw Data'!$I$4:$I$5000,'Raw Data'!$H$4:$H$5000,\"\",0),\"\")","v":""},{"$f":"IF(INDIRECT(M1978) = \"\",\"\",INDIRECT(M1978))","v":""},"n"]
["SUCMFORCURREXPAMT4",null,null,null,{"$f":"_xlfn.XLOOKUP(F1979,'Raw Data'!$I$4:$I$5000,'Raw Data'!$D$4:$D$5000,\"*** Mnemonic not found ***\",0)","v":"*** Mnemonic not found ***"},"SUCMFORCURREXPAMT4__",null,"Input",null,null,865,"F","Input!F865",{"$f":"_xlfn.XLOOKUP(F1979,'Raw Data'!$I$4:$I$5000,'Raw Data'!$E$4:$E$5000,100,0)","v":100},{"$f":"IF(N1979=0,_xlfn.XLOOKUP(F1979,'Raw Data'!$I$4:$I$5000,'Raw Data'!$H$4:$H$5000,\"\",0),\"\")","v":""},{"$f":"IF(INDIRECT(M1979) = \"\",\"\",INDIRECT(M1979))","v":""},"n"]
["SUCMFORCURREXPAMT5",null,null,null,{"$f":"_xlfn.XLOOKUP(F1980,'Raw Data'!$I$4:$I$5000,'Raw Data'!$D$4:$D$5000,\"*** Mnemonic not found ***\",0)","v":"*** Mnemonic not found ***"},"SUCMFORCURREXPAMT5__",null,"Input",null,null,866,"F","Input!F866",{"$f":"_xlfn.XLOOKUP(F1980,'Raw Data'!$I$4:$I$5000,'Raw Data'!$E$4:$E$5000,100,0)","v":100},{"$f":"IF(N1980=0,_xlfn.XLOOKUP(F1980,'Raw Data'!$I$4:$I$5000,'Raw Data'!$H$4:$H$5000,\"\",0),\"\")","v":""},{"$f":"IF(INDIRECT(M1980) = \"\",\"\",INDIRECT(M1980))","v":""},"n"]
["SUCMFORCURREXPAMT6",null,null,null,{"$f":"_xlfn.XLOOKUP(F1981,'Raw Data'!$I$4:$I$5000,'Raw Data'!$D$4:$D$5000,\"*** Mnemonic not found ***\",0)","v":"*** Mnemonic not found ***"},"SUCMFORCURREXPAMT6__",null,"Input",null,null,867,"F","Input!F867",{"$f":"_xlfn.XLOOKUP(F1981,'Raw Data'!$I$4:$I$5000,'Raw Data'!$E$4:$E$5000,100,0)","v":100},{"$f":"IF(N1981=0,_xlfn.XLOOKUP(F1981,'Raw Data'!$I$4:$I$5000,'Raw Data'!$H$4:$H$5000,\"\",0),\"\")","v":""},{"$f":"IF(INDIRECT(M1981) = \"\",\"\",INDIRECT(M1981))","v":""},"n"]
["SUCMFORCURREXPAMT7",null,null,null,{"$f":"_xlfn.XLOOKUP(F1982,'Raw Data'!$I$4:$I$5000,'Raw Data'!$D$4:$D$5000,\"*** Mnemonic not found ***\",0)","v":"*** Mnemonic not found ***"},"SUCMFORCURREXPAMT7__",null,"Input",null,null,868,"F","Input!F868",{"$f":"_xlfn.XLOOKUP(F1982,'Raw Data'!$I$4:$I$5000,'Raw Data'!$E$4:$E$5000,100,0)","v":100},{"$f":"IF(N1982=0,_xlfn.XLOOKUP(F1982,'Raw Data'!$I$4:$I$5000,'Raw Data'!$H$4:$H$5000,\"\",0),\"\")","v":""},{"$f":"IF(INDIRECT(M1982) = \"\",\"\",INDIRECT(M1982))","v":""},"n"]
["SUCMFORCURREXPAMT8",null,null,null,{"$f":"_xlfn.XLOOKUP(F1983,'Raw Data'!$I$4:$I$5000,'Raw Data'!$D$4:$D$5000,\"*** Mnemonic not found ***\",0)","v":"*** Mnemonic not found ***"},"SUCMFORCURREXPAMT8__",null,"Input",null,null,869,"F","Input!F869",{"$f":"_xlfn.XLOOKUP(F1983,'Raw Data'!$I$4:$I$5000,'Raw Data'!$E$4:$E$5000,100,0)","v":100},{"$f":"IF(N1983=0,_xlfn.XLOOKUP(F1983,'Raw Data'!$I$4:$I$5000,'Raw Data'!$H$4:$H$5000,\"\",0),\"\")","v":""},{"$f":"IF(INDIRECT(M1983) = \"\",\"\",INDIRECT(M1983))","v":""},"n"]
["SUCMFORCURREXPAMT9",null,null,null,{"$f":"_xlfn.XLOOKUP(F1984,'Raw Data'!$I$4:$I$5000,'Raw Data'!$D$4:$D$5000,\"*** Mnemonic not found ***\",0)","v":"*** Mnemonic not found ***"},"SUCMFORCURREXPAMT9__",null,"Input",null,null,870,"F","Input!F870",{"$f":"_xlfn.XLOOKUP(F1984,'Raw Data'!$I$4:$I$5000,'Raw Data'!$E$4:$E$5000,100,0)","v":100},{"$f":"IF(N1984=0,_xlfn.XLOOKUP(F1984,'Raw Data'!$I$4:$I$5000,'Raw Data'!$H$4:$H$5000,\"\",0),\"\")","v":""},{"$f":"IF(INDIRECT(M1984) = \"\",\"\",INDIRECT(M1984))","v":""},"n"]
["SUCMFORCURREXPAMT10",null,null,null,{"$f":"_xlfn.XLOOKUP(F1985,'Raw Data'!$I$4:$I$5000,'Raw Data'!$D$4:$D$5000,\"*** Mnemonic not found ***\",0)","v":"*** Mnemonic not found ***"},"SUCMFORCURREXPAMT10__",null,"Input",null,null,871,"F","Input!F871",{"$f":"_xlfn.XLOOKUP(F1985,'Raw Data'!$I$4:$I$5000,'Raw Data'!$E$4:$E$5000,100,0)","v":100},{"$f":"IF(N1985=0,_xlfn.XLOOKUP(F1985,'Raw Data'!$I$4:$I$5000,'Raw Data'!$H$4:$H$5000,\"\",0),\"\")","v":""},{"$f":"IF(INDIRECT(M1985) = \"\",\"\",INDIRECT(M1985))","v":""},"n"]
["SUCMFORCURREXPAMT11",null,null,null,{"$f":"_xlfn.XLOOKUP(F1986,'Raw Data'!$I$4:$I$5000,'Raw Data'!$D$4:$D$5000,\"*** Mnemonic not found ***\",0)","v":"*** Mnemonic not found ***"},"SUCMFORCURREXPAMT11__",null,"Input",null,null,872,"F","Input!F872",{"$f":"_xlfn.XLOOKUP(F1986,'Raw Data'!$I$4:$I$5000,'Raw Data'!$E$4:$E$5000,100,0)","v":100},{"$f":"IF(N1986=0,_xlfn.XLOOKUP(F1986,'Raw Data'!$I$4:$I$5000,'Raw Data'!$H$4:$H$5000,\"\",0),\"\")","v":""},{"$f":"IF(INDIRECT(M1986) = \"\",\"\",INDIRECT(M1986))","v":""},"n"]
["SUCMFORCURREXPAMT12",null,null,null,{"$f":"_xlfn.XLOOKUP(F1987,'Raw Data'!$I$4:$I$5000,'Raw Data'!$D$4:$D$5000,\"*** Mnemonic not found ***\",0)","v":"*** Mnemonic not found ***"},"SUCMFORCURREXPAMT12__",null,"Input",null,null,873,"F","Input!F873",{"$f":"_xlfn.XLOOKUP(F1987,'Raw Data'!$I$4:$I$5000,'Raw Data'!$E$4:$E$5000,100,0)","v":100},{"$f":"IF(N1987=0,_xlfn.XLOOKUP(F1987,'Raw Data'!$I$4:$I$5000,'Raw Data'!$H$4:$H$5000,\"\",0),\"\")","v":""},{"$f":"IF(INDIRECT(M1987) = \"\",\"\",INDIRECT(M1987))","v":""},"n"]
["SUCMFORCURREXPAMT13",null,null,null,{"$f":"_xlfn.XLOOKUP(F1988,'Raw Data'!$I$4:$I$5000,'Raw Data'!$D$4:$D$5000,\"*** Mnemonic not found ***\",0)","v":"*** Mnemonic not found ***"},"SUCMFORCURREXPAMT13__",null,"Input",null,null,874,"F","Input!F874",{"$f":"_xlfn.XLOOKUP(F1988,'Raw Data'!$I$4:$I$5000,'Raw Data'!$E$4:$E$5000,100,0)","v":100},{"$f":"IF(N1988=0,_xlfn.XLOOKUP(F1988,'Raw Data'!$I$4:$I$5000,'Raw Data'!$H$4:$H$5000,\"\",0),\"\")","v":""},{"$f":"IF(INDIRECT(M1988) = \"\",\"\",INDIRECT(M1988))","v":""},"n"]
["SUCMFORCURREXPAMT14",null,null,null,{"$f":"_xlfn.XLOOKUP(F1989,'Raw Data'!$I$4:$I$5000,'Raw Data'!$D$4:$D$5000,\"*** Mnemonic not found ***\",0)","v":"*** Mnemonic not found ***"},"SUCMFORCURREXPAMT14__",null,"Input",null,null,875,"F","Input!F875",{"$f":"_xlfn.XLOOKUP(F1989,'Raw Data'!$I$4:$I$5000,'Raw Data'!$E$4:$E$5000,100,0)","v":100},{"$f":"IF(N1989=0,_xlfn.XLOOKUP(F1989,'Raw Data'!$I$4:$I$5000,'Raw Data'!$H$4:$H$5000,\"\",0),\"\")","v":""},{"$f":"IF(INDIRECT(M1989) = \"\",\"\",INDIRECT(M1989))","v":""},"n"]
["SUCMFORCURREXPAMT15",null,null,null,{"$f":"_xlfn.XLOOKUP(F1990,'Raw Data'!$I$4:$I$5000,'Raw Data'!$D$4:$D$5000,\"*** Mnemonic not found ***\",0)","v":"*** Mnemonic not found ***"},"SUCMFORCURREXPAMT15__",null,"Input",null,null,876,"F","Input!F876",{"$f":"_xlfn.XLOOKUP(F1990,'Raw Data'!$I$4:$I$5000,'Raw Data'!$E$4:$E$5000,100,0)","v":100},{"$f":"IF(N1990=0,_xlfn.XLOOKUP(F1990,'Raw Data'!$I$4:$I$5000,'Raw Data'!$H$4:$H$5000,\"\",0),\"\")","v":""},{"$f":"IF(INDIRECT(M1990) = \"\",\"\",INDIRECT(M1990))","v":""},"n"]
["SUCMFORCURREXPAMT16",null,null,null,{"$f":"_xlfn.XLOOKUP(F1991,'Raw Data'!$I$4:$I$5000,'Raw Data'!$D$4:$D$5000,\"*** Mnemonic not found ***\",0)","v":"*** Mnemonic not found ***"},"SUCMFORCURREXPAMT16__",null,"Input",null,null,877,"F","Input!F877",{"$f":"_xlfn.XLOOKUP(F1991,'Raw Data'!$I$4:$I$5000,'Raw Data'!$E$4:$E$5000,100,0)","v":100},{"$f":"IF(N1991=0,_xlfn.XLOOKUP(F1991,'Raw Data'!$I$4:$I$5000,'Raw Data'!$H$4:$H$5000,\"\",0),\"\")","v":""},{"$f":"IF(INDIRECT(M1991) = \"\",\"\",INDIRECT(M1991))","v":""},"n"]
["SUCMFORCURREXPAMT17",null,null,null,{"$f":"_xlfn.XLOOKUP(F1992,'Raw Data'!$I$4:$I$5000,'Raw Data'!$D$4:$D$5000,\"*** Mnemonic not found ***\",0)","v":"*** Mnemonic not found ***"},"SUCMFORCURREXPAMT17__",null,"Input",null,null,878,"F","Input!F878",{"$f":"_xlfn.XLOOKUP(F1992,'Raw Data'!$I$4:$I$5000,'Raw Data'!$E$4:$E$5000,100,0)","v":100},{"$f":"IF(N1992=0,_xlfn.XLOOKUP(F1992,'Raw Data'!$I$4:$I$5000,'Raw Data'!$H$4:$H$5000,\"\",0),\"\")","v":""},{"$f":"IF(INDIRECT(M1992) = \"\",\"\",INDIRECT(M1992))","v":""},"n"]
["SUCMFORCURREXPAMT18",null,null,null,{"$f":"_xlfn.XLOOKUP(F1993,'Raw Data'!$I$4:$I$5000,'Raw Data'!$D$4:$D$5000,\"*** Mnemonic not found ***\",0)","v":"*** Mnemonic not found ***"},"SUCMFORCURREXPAMT18__",null,"Input",null,null,879,"F","Input!F879",{"$f":"_xlfn.XLOOKUP(F1993,'Raw Data'!$I$4:$I$5000,'Raw Data'!$E$4:$E$5000,100,0)","v":100},{"$f":"IF(N1993=0,_xlfn.XLOOKUP(F1993,'Raw Data'!$I$4:$I$5000,'Raw Data'!$H$4:$H$5000,\"\",0),\"\")","v":""},{"$f":"IF(INDIRECT(M1993) = \"\",\"\",INDIRECT(M1993))","v":""},"n"]
["SUCMFORCURREXPAMT19",null,null,null,{"$f":"_xlfn.XLOOKUP(F1994,'Raw Data'!$I$4:$I$5000,'Raw Data'!$D$4:$D$5000,\"*** Mnemonic not found ***\",0)","v":"*** Mnemonic not found ***"},"SUCMFORCURREXPAMT19__",null,"Input",null,null,880,"F","Input!F880",{"$f":"_xlfn.XLOOKUP(F1994,'Raw Data'!$I$4:$I$5000,'Raw Data'!$E$4:$E$5000,100,0)","v":100},{"$f":"IF(N1994=0,_xlfn.XLOOKUP(F1994,'Raw Data'!$I$4:$I$5000,'Raw Data'!$H$4:$H$5000,\"\",0),\"\")","v":""},{"$f":"IF(INDIRECT(M1994) = \"\",\"\",INDIRECT(M1994))","v":""},"n"]
["SUCMFORCURREXPAMT20",null,null,null,{"$f":"_xlfn.XLOOKUP(F1995,'Raw Data'!$I$4:$I$5000,'Raw Data'!$D$4:$D$5000,\"*** Mnemonic not found ***\",0)","v":"*** Mnemonic not found ***"},"SUCMFORCURREXPAMT20__",null,"Input",null,null,881,"F","Input!F881",{"$f":"_xlfn.XLOOKUP(F1995,'Raw Data'!$I$4:$I$5000,'Raw Data'!$E$4:$E$5000,100,0)","v":100},{"$f":"IF(N1995=0,_xlfn.XLOOKUP(F1995,'Raw Data'!$I$4:$I$5000,'Raw Data'!$H$4:$H$5000,\"\",0),\"\")","v":""},{"$f":"IF(INDIRECT(M1995) = \"\",\"\",INDIRECT(M1995))","v":""},"n"]
["SUCMFORCURREXPAMT21",null,null,null,{"$f":"_xlfn.XLOOKUP(F1996,'Raw Data'!$I$4:$I$5000,'Raw Data'!$D$4:$D$5000,\"*** Mnemonic not found ***\",0)","v":"*** Mnemonic not found ***"},"SUCMFORCURREXPAMT21__",null,"Input",null,null,882,"F","Input!F882",{"$f":"_xlfn.XLOOKUP(F1996,'Raw Data'!$I$4:$I$5000,'Raw Data'!$E$4:$E$5000,100,0)","v":100},{"$f":"IF(N1996=0,_xlfn.XLOOKUP(F1996,'Raw Data'!$I$4:$I$5000,'Raw Data'!$H$4:$H$5000,\"\",0),\"\")","v":""},{"$f":"IF(INDIRECT(M1996) = \"\",\"\",INDIRECT(M1996))","v":""},"n"]
["SUCMFORCURREXPAMT22",null,null,null,{"$f":"_xlfn.XLOOKUP(F1997,'Raw Data'!$I$4:$I$5000,'Raw Data'!$D$4:$D$5000,\"*** Mnemonic not found ***\",0)","v":"*** Mnemonic not found ***"},{"$f":"CONCATENATE(A1997,\"_\",B1997,\"_\",D1997)","v":"SUCMFORCURREXPAMT22__"},null,"Input",null,null,883,"F","Input!F883",{"$f":"_xlfn.XLOOKUP(F1997,'Raw Data'!$I$4:$I$5000,'Raw Data'!$E$4:$E$5000,100,0)","v":100},{"$f":"IF(N1997=0,_xlfn.XLOOKUP(F1997,'Raw Data'!$I$4:$I$5000,'Raw Data'!$H$4:$H$5000,\"\",0),\"\")","v":""},{"$f":"IF(INDIRECT(M1997) = \"\",\"\",INDIRECT(M1997))","v":""},"n"]
["SUCMFORCURREXPAMT23",null,null,null,{"$f":"_xlfn.XLOOKUP(F1998,'Raw Data'!$I$4:$I$5000,'Raw Data'!$D$4:$D$5000,\"*** Mnemonic not found ***\",0)","v":"*** Mnemonic not found ***"},"SUCMFORCURREXPAMT23__",null,"Input",null,null,884,"F","Input!F884",{"$f":"_xlfn.XLOOKUP(F1998,'Raw Data'!$I$4:$I$5000,'Raw Data'!$E$4:$E$5000,100,0)","v":100},{"$f":"IF(N1998=0,_xlfn.XLOOKUP(F1998,'Raw Data'!$I$4:$I$5000,'Raw Data'!$H$4:$H$5000,\"\",0),\"\")","v":""},{"$f":"IF(INDIRECT(M1998) = \"\",\"\",INDIRECT(M1998))","v":""},"n"]
["SUCMFORCURREXPAMT24",null,null,null,{"$f":"_xlfn.XLOOKUP(F1999,'Raw Data'!$I$4:$I$5000,'Raw Data'!$D$4:$D$5000,\"*** Mnemonic not found ***\",0)","v":"*** Mnemonic not found ***"},"SUCMFORCURREXPAMT24__",null,"Input",null,null,885,"F","Input!F885",{"$f":"_xlfn.XLOOKUP(F1999,'Raw Data'!$I$4:$I$5000,'Raw Data'!$E$4:$E$5000,100,0)","v":100},{"$f":"IF(N1999=0,_xlfn.XLOOKUP(F1999,'Raw Data'!$I$4:$I$5000,'Raw Data'!$H$4:$H$5000,\"\",0),\"\")","v":""},{"$f":"IF(INDIRECT(M1999) = \"\",\"\",INDIRECT(M1999))","v":""},"n"]
["SUCMFORCURREXPAMT25",null,null,null,{"$f":"_xlfn.XLOOKUP(F2000,'Raw Data'!$I$4:$I$5000,'Raw Data'!$D$4:$D$5000,\"*** Mnemonic not found ***\",0)","v":"*** Mnemonic not found ***"},"SUCMFORCURREXPAMT25__",null,"Input",null,null,886,"F","Input!F886",{"$f":"_xlfn.XLOOKUP(F2000,'Raw Data'!$I$4:$I$5000,'Raw Data'!$E$4:$E$5000,100,0)","v":100},{"$f":"IF(N2000=0,_xlfn.XLOOKUP(F2000,'Raw Data'!$I$4:$I$5000,'Raw Data'!$H$4:$H$5000,\"\",0),\"\")","v":""},{"$f":"IF(INDIRECT(M2000) = \"\",\"\",INDIRECT(M2000))","v":""},"n"]
["SUCMFORCURREXPAMT26",null,null,null,{"$f":"_xlfn.XLOOKUP(F2001,'Raw Data'!$I$4:$I$5000,'Raw Data'!$D$4:$D$5000,\"*** Mnemonic not found ***\",0)","v":"*** Mnemonic not found ***"},"SUCMFORCURREXPAMT26__",null,"Input",null,null,887,"F","Input!F887",{"$f":"_xlfn.XLOOKUP(F2001,'Raw Data'!$I$4:$I$5000,'Raw Data'!$E$4:$E$5000,100,0)","v":100},{"$f":"IF(N2001=0,_xlfn.XLOOKUP(F2001,'Raw Data'!$I$4:$I$5000,'Raw Data'!$H$4:$H$5000,\"\",0),\"\")","v":""},{"$f":"IF(INDIRECT(M2001) = \"\",\"\",INDIRECT(M2001))","v":""},"n"]
["SUCMFORCURREXPAMT27",null,null,null,{"$f":"_xlfn.XLOOKUP(F2002,'Raw Data'!$I$4:$I$5000,'Raw Data'!$D$4:$D$5000,\"*** Mnemonic not found ***\",0)","v":"*** Mnemonic not found ***"},"SUCMFORCURREXPAMT27__",null,"Input",null,null,888,"F","Input!F888",{"$f":"_xlfn.XLOOKUP(F2002,'Raw Data'!$I$4:$I$5000,'Raw Data'!$E$4:$E$5000,100,0)","v":100},{"$f":"IF(N2002=0,_xlfn.XLOOKUP(F2002,'Raw Data'!$I$4:$I$5000,'Raw Data'!$H$4:$H$5000,\"\",0),\"\")","v":""},{"$f":"IF(INDIRECT(M2002) = \"\",\"\",INDIRECT(M2002))","v":""},"n"]
["SUCMFORCURREXPAMT28",null,null,null,{"$f":"_xlfn.XLOOKUP(F2003,'Raw Data'!$I$4:$I$5000,'Raw Data'!$D$4:$D$5000,\"*** Mnemonic not found ***\",0)","v":"*** Mnemonic not found ***"},"SUCMFORCURREXPAMT28__",null,"Input",null,null,889,"F","Input!F889",{"$f":"_xlfn.XLOOKUP(F2003,'Raw Data'!$I$4:$I$5000,'Raw Data'!$E$4:$E$5000,100,0)","v":100},{"$f":"IF(N2003=0,_xlfn.XLOOKUP(F2003,'Raw Data'!$I$4:$I$5000,'Raw Data'!$H$4:$H$5000,\"\",0),\"\")","v":""},{"$f":"IF(INDIRECT(M2003) = \"\",\"\",INDIRECT(M2003))","v":""},"n"]
["SUCMFORCURREXPAMT29",null,null,null,{"$f":"_xlfn.XLOOKUP(F2004,'Raw Data'!$I$4:$I$5000,'Raw Data'!$D$4:$D$5000,\"*** Mnemonic not found ***\",0)","v":"*** Mnemonic not found ***"},"SUCMFORCURREXPAMT29__",null,"Input",null,null,890,"F","Input!F890",{"$f":"_xlfn.XLOOKUP(F2004,'Raw Data'!$I$4:$I$5000,'Raw Data'!$E$4:$E$5000,100,0)","v":100},{"$f":"IF(N2004=0,_xlfn.XLOOKUP(F2004,'Raw Data'!$I$4:$I$5000,'Raw Data'!$H$4:$H$5000,\"\",0),\"\")","v":""},{"$f":"IF(INDIRECT(M2004) = \"\",\"\",INDIRECT(M2004))","v":""},"n"]
["SUCMFORCURREXPAMT30",null,null,null,{"$f":"_xlfn.XLOOKUP(F2005,'Raw Data'!$I$4:$I$5000,'Raw Data'!$D$4:$D$5000,\"*** Mnemonic not found ***\",0)","v":"*** Mnemonic not found ***"},"SUCMFORCURREXPAMT30__",null,"Input",null,null,891,"F","Input!F891",{"$f":"_xlfn.XLOOKUP(F2005,'Raw Data'!$I$4:$I$5000,'Raw Data'!$E$4:$E$5000,100,0)","v":100},{"$f":"IF(N2005=0,_xlfn.XLOOKUP(F2005,'Raw Data'!$I$4:$I$5000,'Raw Data'!$H$4:$H$5000,\"\",0),\"\")","v":""},{"$f":"IF(INDIRECT(M2005) = \"\",\"\",INDIRECT(M2005))","v":""},"n"]
["SUCMFORCURREXPAMT31",null,null,null,{"$f":"_xlfn.XLOOKUP(F2006,'Raw Data'!$I$4:$I$5000,'Raw Data'!$D$4:$D$5000,\"*** Mnemonic not found ***\",0)","v":"*** Mnemonic not found ***"},"SUCMFORCURREXPAMT31__",null,"Input",null,null,892,"F","Input!F892",{"$f":"_xlfn.XLOOKUP(F2006,'Raw Data'!$I$4:$I$5000,'Raw Data'!$E$4:$E$5000,100,0)","v":100},{"$f":"IF(N2006=0,_xlfn.XLOOKUP(F2006,'Raw Data'!$I$4:$I$5000,'Raw Data'!$H$4:$H$5000,\"\",0),\"\")","v":""},{"$f":"IF(INDIRECT(M2006) = \"\",\"\",INDIRECT(M2006))","v":""},"n"]
["SUCMFORCURREXPAMT32",null,null,null,{"$f":"_xlfn.XLOOKUP(F2007,'Raw Data'!$I$4:$I$5000,'Raw Data'!$D$4:$D$5000,\"*** Mnemonic not found ***\",0)","v":"*** Mnemonic not found ***"},"SUCMFORCURREXPAMT32__",null,"Input",null,null,893,"F","Input!F893",{"$f":"_xlfn.XLOOKUP(F2007,'Raw Data'!$I$4:$I$5000,'Raw Data'!$E$4:$E$5000,100,0)","v":100},{"$f":"IF(N2007=0,_xlfn.XLOOKUP(F2007,'Raw Data'!$I$4:$I$5000,'Raw Data'!$H$4:$H$5000,\"\",0),\"\")","v":""},{"$f":"IF(INDIRECT(M2007) = \"\",\"\",INDIRECT(M2007))","v":""},"n"]
["SUCMFORCURREXPAMT33",null,null,null,{"$f":"_xlfn.XLOOKUP(F2008,'Raw Data'!$I$4:$I$5000,'Raw Data'!$D$4:$D$5000,\"*** Mnemonic not found ***\",0)","v":"*** Mnemonic not found ***"},"SUCMFORCURREXPAMT33__",null,"Input",null,null,894,"F","Input!F894",{"$f":"_xlfn.XLOOKUP(F2008,'Raw Data'!$I$4:$I$5000,'Raw Data'!$E$4:$E$5000,100,0)","v":100},{"$f":"IF(N2008=0,_xlfn.XLOOKUP(F2008,'Raw Data'!$I$4:$I$5000,'Raw Data'!$H$4:$H$5000,\"\",0),\"\")","v":""},{"$f":"IF(INDIRECT(M2008) = \"\",\"\",INDIRECT(M2008))","v":""},"n"]
["SUCMFORCURREXPAMT34",null,null,null,{"$f":"_xlfn.XLOOKUP(F2009,'Raw Data'!$I$4:$I$5000,'Raw Data'!$D$4:$D$5000,\"*** Mnemonic not found ***\",0)","v":"*** Mnemonic not found ***"},"SUCMFORCURREXPAMT34__",null,"Input",null,null,895,"F","Input!F895",{"$f":"_xlfn.XLOOKUP(F2009,'Raw Data'!$I$4:$I$5000,'Raw Data'!$E$4:$E$5000,100,0)","v":100},{"$f":"IF(N2009=0,_xlfn.XLOOKUP(F2009,'Raw Data'!$I$4:$I$5000,'Raw Data'!$H$4:$H$5000,\"\",0),\"\")","v":""},{"$f":"IF(INDIRECT(M2009) = \"\",\"\",INDIRECT(M2009))","v":""},"n"]
["SUCMFORCURREXPAMT35",null,null,null,{"$f":"_xlfn.XLOOKUP(F2010,'Raw Data'!$I$4:$I$5000,'Raw Data'!$D$4:$D$5000,\"*** Mnemonic not found ***\",0)","v":"*** Mnemonic not found ***"},"SUCMFORCURREXPAMT35__",null,"Input",null,null,896,"F","Input!F896",{"$f":"_xlfn.XLOOKUP(F2010,'Raw Data'!$I$4:$I$5000,'Raw Data'!$E$4:$E$5000,100,0)","v":100},{"$f":"IF(N2010=0,_xlfn.XLOOKUP(F2010,'Raw Data'!$I$4:$I$5000,'Raw Data'!$H$4:$H$5000,\"\",0),\"\")","v":""},{"$f":"IF(INDIRECT(M2010) = \"\",\"\",INDIRECT(M2010))","v":""},"n"]
["SUCMFORCURRADJAMT1",null,null,null,{"$f":"_xlfn.XLOOKUP(F2011,'Raw Data'!$I$4:$I$5000,'Raw Data'!$D$4:$D$5000,\"*** Mnemonic not found ***\",0)","v":"*** Mnemonic not found ***"},"SUCMFORCURRADJAMT1__",null,"Input",null,null,{"$f":"K1976","v":862},"G","Input!G862",{"$f":"_xlfn.XLOOKUP(F2011,'Raw Data'!$I$4:$I$5000,'Raw Data'!$E$4:$E$5000,100,0)","v":100},{"$f":"IF(N2011=0,_xlfn.XLOOKUP(F2011,'Raw Data'!$I$4:$I$5000,'Raw Data'!$H$4:$H$5000,\"\",0),\"\")","v":""},{"$f":"IF(INDIRECT(M2011) = \"\",\"\",INDIRECT(M2011))","v":""},"n"]
["SUCMFORCURRADJAMT2",null,null,null,{"$f":"_xlfn.XLOOKUP(F2012,'Raw Data'!$I$4:$I$5000,'Raw Data'!$D$4:$D$5000,\"*** Mnemonic not found ***\",0)","v":"*** Mnemonic not found ***"},"SUCMFORCURRADJAMT2__",null,"Input",null,null,{"$f":"K2011+1","v":863},{"$f":"L2011","v":"G"},"Input!G863",{"$f":"_xlfn.XLOOKUP(F2012,'Raw Data'!$I$4:$I$5000,'Raw Data'!$E$4:$E$5000,100,0)","v":100},{"$f":"IF(N2012=0,_xlfn.XLOOKUP(F2012,'Raw Data'!$I$4:$I$5000,'Raw Data'!$H$4:$H$5000,\"\",0),\"\")","v":""},{"$f":"IF(INDIRECT(M2012) = \"\",\"\",INDIRECT(M2012))","v":""},"n"]
["SUCMFORCURRADJAMT3",null,null,null,{"$f":"_xlfn.XLOOKUP(F2013,'Raw Data'!$I$4:$I$5000,'Raw Data'!$D$4:$D$5000,\"*** Mnemonic not found ***\",0)","v":"*** Mnemonic not found ***"},"SUCMFORCURRADJAMT3__",null,"Input",null,null,864,"G","Input!G864",{"$f":"_xlfn.XLOOKUP(F2013,'Raw Data'!$I$4:$I$5000,'Raw Data'!$E$4:$E$5000,100,0)","v":100},{"$f":"IF(N2013=0,_xlfn.XLOOKUP(F2013,'Raw Data'!$I$4:$I$5000,'Raw Data'!$H$4:$H$5000,\"\",0),\"\")","v":""},{"$f":"IF(INDIRECT(M2013) = \"\",\"\",INDIRECT(M2013))","v":""},"n"]
["SUCMFORCURRADJAMT4",null,null,null,{"$f":"_xlfn.XLOOKUP(F2014,'Raw Data'!$I$4:$I$5000,'Raw Data'!$D$4:$D$5000,\"*** Mnemonic not found ***\",0)","v":"*** Mnemonic not found ***"},"SUCMFORCURRADJAMT4__",null,"Input",null,null,865,"G","Input!G865",{"$f":"_xlfn.XLOOKUP(F2014,'Raw Data'!$I$4:$I$5000,'Raw Data'!$E$4:$E$5000,100,0)","v":100},{"$f":"IF(N2014=0,_xlfn.XLOOKUP(F2014,'Raw Data'!$I$4:$I$5000,'Raw Data'!$H$4:$H$5000,\"\",0),\"\")","v":""},{"$f":"IF(INDIRECT(M2014) = \"\",\"\",INDIRECT(M2014))","v":""},"n"]
["SUCMFORCURRADJAMT5",null,null,null,{"$f":"_xlfn.XLOOKUP(F2015,'Raw Data'!$I$4:$I$5000,'Raw Data'!$D$4:$D$5000,\"*** Mnemonic not found ***\",0)","v":"*** Mnemonic not found ***"},"SUCMFORCURRADJAMT5__",null,"Input",null,null,866,"G","Input!G866",{"$f":"_xlfn.XLOOKUP(F2015,'Raw Data'!$I$4:$I$5000,'Raw Data'!$E$4:$E$5000,100,0)","v":100},{"$f":"IF(N2015=0,_xlfn.XLOOKUP(F2015,'Raw Data'!$I$4:$I$5000,'Raw Data'!$H$4:$H$5000,\"\",0),\"\")","v":""},{"$f":"IF(INDIRECT(M2015) = \"\",\"\",INDIRECT(M2015))","v":""},"n"]
["SUCMFORCURRADJAMT6",null,null,null,{"$f":"_xlfn.XLOOKUP(F2016,'Raw Data'!$I$4:$I$5000,'Raw Data'!$D$4:$D$5000,\"*** Mnemonic not found ***\",0)","v":"*** Mnemonic not found ***"},"SUCMFORCURRADJAMT6__",null,"Input",null,null,867,"G","Input!G867",{"$f":"_xlfn.XLOOKUP(F2016,'Raw Data'!$I$4:$I$5000,'Raw Data'!$E$4:$E$5000,100,0)","v":100},{"$f":"IF(N2016=0,_xlfn.XLOOKUP(F2016,'Raw Data'!$I$4:$I$5000,'Raw Data'!$H$4:$H$5000,\"\",0),\"\")","v":""},{"$f":"IF(INDIRECT(M2016) = \"\",\"\",INDIRECT(M2016))","v":""},"n"]
["SUCMFORCURRADJAMT7",null,null,null,{"$f":"_xlfn.XLOOKUP(F2017,'Raw Data'!$I$4:$I$5000,'Raw Data'!$D$4:$D$5000,\"*** Mnemonic not found ***\",0)","v":"*** Mnemonic not found ***"},"SUCMFORCURRADJAMT7__",null,"Input",null,null,868,"G","Input!G868",{"$f":"_xlfn.XLOOKUP(F2017,'Raw Data'!$I$4:$I$5000,'Raw Data'!$E$4:$E$5000,100,0)","v":100},{"$f":"IF(N2017=0,_xlfn.XLOOKUP(F2017,'Raw Data'!$I$4:$I$5000,'Raw Data'!$H$4:$H$5000,\"\",0),\"\")","v":""},{"$f":"IF(INDIRECT(M2017) = \"\",\"\",INDIRECT(M2017))","v":""},"n"]
["SUCMFORCURRADJAMT8",null,null,null,{"$f":"_xlfn.XLOOKUP(F2018,'Raw Data'!$I$4:$I$5000,'Raw Data'!$D$4:$D$5000,\"*** Mnemonic not found ***\",0)","v":"*** Mnemonic not found ***"},"SUCMFORCURRADJAMT8__",null,"Input",null,null,869,"G","Input!G869",{"$f":"_xlfn.XLOOKUP(F2018,'Raw Data'!$I$4:$I$5000,'Raw Data'!$E$4:$E$5000,100,0)","v":100},{"$f":"IF(N2018=0,_xlfn.XLOOKUP(F2018,'Raw Data'!$I$4:$I$5000,'Raw Data'!$H$4:$H$5000,\"\",0),\"\")","v":""},{"$f":"IF(INDIRECT(M2018) = \"\",\"\",INDIRECT(M2018))","v":""},"n"]
["SUCMFORCURRADJAMT9",null,null,null,{"$f":"_xlfn.XLOOKUP(F2019,'Raw Data'!$I$4:$I$5000,'Raw Data'!$D$4:$D$5000,\"*** Mnemonic not found ***\",0)","v":"*** Mnemonic not found ***"},"SUCMFORCURRADJAMT9__",null,"Input",null,null,870,"G","Input!G870",{"$f":"_xlfn.XLOOKUP(F2019,'Raw Data'!$I$4:$I$5000,'Raw Data'!$E$4:$E$5000,100,0)","v":100},{"$f":"IF(N2019=0,_xlfn.XLOOKUP(F2019,'Raw Data'!$I$4:$I$5000,'Raw Data'!$H$4:$H$5000,\"\",0),\"\")","v":""},{"$f":"IF(INDIRECT(M2019) = \"\",\"\",INDIRECT(M2019))","v":""},"n"]
["SUCMFORCURRADJAMT10",null,null,null,{"$f":"_xlfn.XLOOKUP(F2020,'Raw Data'!$I$4:$I$5000,'Raw Data'!$D$4:$D$5000,\"*** Mnemonic not found ***\",0)","v":"*** Mnemonic not found ***"},"SUCMFORCURRADJAMT10__",null,"Input",null,null,871,"G","Input!G871",{"$f":"_xlfn.XLOOKUP(F2020,'Raw Data'!$I$4:$I$5000,'Raw Data'!$E$4:$E$5000,100,0)","v":100},{"$f":"IF(N2020=0,_xlfn.XLOOKUP(F2020,'Raw Data'!$I$4:$I$5000,'Raw Data'!$H$4:$H$5000,\"\",0),\"\")","v":""},{"$f":"IF(INDIRECT(M2020) = \"\",\"\",INDIRECT(M2020))","v":""},"n"]
["SUCMFORCURRADJAMT11",null,null,null,{"$f":"_xlfn.XLOOKUP(F2021,'Raw Data'!$I$4:$I$5000,'Raw Data'!$D$4:$D$5000,\"*** Mnemonic not found ***\",0)","v":"*** Mnemonic not found ***"},"SUCMFORCURRADJAMT11__",null,"Input",null,null,872,"G","Input!G872",{"$f":"_xlfn.XLOOKUP(F2021,'Raw Data'!$I$4:$I$5000,'Raw Data'!$E$4:$E$5000,100,0)","v":100},{"$f":"IF(N2021=0,_xlfn.XLOOKUP(F2021,'Raw Data'!$I$4:$I$5000,'Raw Data'!$H$4:$H$5000,\"\",0),\"\")","v":""},{"$f":"IF(INDIRECT(M2021) = \"\",\"\",INDIRECT(M2021))","v":""},"n"]
["SUCMFORCURRADJAMT12",null,null,null,{"$f":"_xlfn.XLOOKUP(F2022,'Raw Data'!$I$4:$I$5000,'Raw Data'!$D$4:$D$5000,\"*** Mnemonic not found ***\",0)","v":"*** Mnemonic not found ***"},"SUCMFORCURRADJAMT12__",null,"Input",null,null,873,"G","Input!G873",{"$f":"_xlfn.XLOOKUP(F2022,'Raw Data'!$I$4:$I$5000,'Raw Data'!$E$4:$E$5000,100,0)","v":100},{"$f":"IF(N2022=0,_xlfn.XLOOKUP(F2022,'Raw Data'!$I$4:$I$5000,'Raw Data'!$H$4:$H$5000,\"\",0),\"\")","v":""},{"$f":"IF(INDIRECT(M2022) = \"\",\"\",INDIRECT(M2022))","v":""},"n"]
["SUCMFORCURRADJAMT13",null,null,null,{"$f":"_xlfn.XLOOKUP(F2023,'Raw Data'!$I$4:$I$5000,'Raw Data'!$D$4:$D$5000,\"*** Mnemonic not found ***\",0)","v":"*** Mnemonic not found ***"},"SUCMFORCURRADJAMT13__",null,"Input",null,null,874,"G","Input!G874",{"$f":"_xlfn.XLOOKUP(F2023,'Raw Data'!$I$4:$I$5000,'Raw Data'!$E$4:$E$5000,100,0)","v":100},{"$f":"IF(N2023=0,_xlfn.XLOOKUP(F2023,'Raw Data'!$I$4:$I$5000,'Raw Data'!$H$4:$H$5000,\"\",0),\"\")","v":""},{"$f":"IF(INDIRECT(M2023) = \"\",\"\",INDIRECT(M2023))","v":""},"n"]
["SUCMFORCURRADJAMT14",null,null,null,{"$f":"_xlfn.XLOOKUP(F2024,'Raw Data'!$I$4:$I$5000,'Raw Data'!$D$4:$D$5000,\"*** Mnemonic not found ***\",0)","v":"*** Mnemonic not found ***"},"SUCMFORCURRADJAMT14__",null,"Input",null,null,875,"G","Input!G875",{"$f":"_xlfn.XLOOKUP(F2024,'Raw Data'!$I$4:$I$5000,'Raw Data'!$E$4:$E$5000,100,0)","v":100},{"$f":"IF(N2024=0,_xlfn.XLOOKUP(F2024,'Raw Data'!$I$4:$I$5000,'Raw Data'!$H$4:$H$5000,\"\",0),\"\")","v":""},{"$f":"IF(INDIRECT(M2024) = \"\",\"\",INDIRECT(M2024))","v":""},"n"]
["SUCMFORCURRADJAMT15",null,null,null,{"$f":"_xlfn.XLOOKUP(F2025,'Raw Data'!$I$4:$I$5000,'Raw Data'!$D$4:$D$5000,\"*** Mnemonic not found ***\",0)","v":"*** Mnemonic not found ***"},"SUCMFORCURRADJAMT15__",null,"Input",null,null,876,"G",{"$f":"CONCATENATE(H2025,\"!\",L2025,K2025)","v":"Input!G876"},{"$f":"_xlfn.XLOOKUP(F2025,'Raw Data'!$I$4:$I$5000,'Raw Data'!$E$4:$E$5000,100,0)","v":100},{"$f":"IF(N2025=0,_xlfn.XLOOKUP(F2025,'Raw Data'!$I$4:$I$5000,'Raw Data'!$H$4:$H$5000,\"\",0),\"\")","v":""},{"$f":"IF(INDIRECT(M2025) = \"\",\"\",INDIRECT(M2025))","v":""},"n"]
["SUCMFORCURRADJAMT16",null,null,null,{"$f":"_xlfn.XLOOKUP(F2026,'Raw Data'!$I$4:$I$5000,'Raw Data'!$D$4:$D$5000,\"*** Mnemonic not found ***\",0)","v":"*** Mnemonic not found ***"},"SUCMFORCURRADJAMT16__",null,"Input",null,null,877,"G","Input!G877",{"$f":"_xlfn.XLOOKUP(F2026,'Raw Data'!$I$4:$I$5000,'Raw Data'!$E$4:$E$5000,100,0)","v":100},{"$f":"IF(N2026=0,_xlfn.XLOOKUP(F2026,'Raw Data'!$I$4:$I$5000,'Raw Data'!$H$4:$H$5000,\"\",0),\"\")","v":""},{"$f":"IF(INDIRECT(M2026) = \"\",\"\",INDIRECT(M2026))","v":""},"n"]
["SUCMFORCURRADJAMT17",null,null,null,{"$f":"_xlfn.XLOOKUP(F2027,'Raw Data'!$I$4:$I$5000,'Raw Data'!$D$4:$D$5000,\"*** Mnemonic not found ***\",0)","v":"*** Mnemonic not found ***"},"SUCMFORCURRADJAMT17__",null,"Input",null,null,878,"G","Input!G878",{"$f":"_xlfn.XLOOKUP(F2027,'Raw Data'!$I$4:$I$5000,'Raw Data'!$E$4:$E$5000,100,0)","v":100},{"$f":"IF(N2027=0,_xlfn.XLOOKUP(F2027,'Raw Data'!$I$4:$I$5000,'Raw Data'!$H$4:$H$5000,\"\",0),\"\")","v":""},{"$f":"IF(INDIRECT(M2027) = \"\",\"\",INDIRECT(M2027))","v":""},"n"]
["SUCMFORCURRADJAMT18",null,null,null,{"$f":"_xlfn.XLOOKUP(F2028,'Raw Data'!$I$4:$I$5000,'Raw Data'!$D$4:$D$5000,\"*** Mnemonic not found ***\",0)","v":"*** Mnemonic not found ***"},"SUCMFORCURRADJAMT18__",null,"Input",null,null,879,"G","Input!G879",{"$f":"_xlfn.XLOOKUP(F2028,'Raw Data'!$I$4:$I$5000,'Raw Data'!$E$4:$E$5000,100,0)","v":100},{"$f":"IF(N2028=0,_xlfn.XLOOKUP(F2028,'Raw Data'!$I$4:$I$5000,'Raw Data'!$H$4:$H$5000,\"\",0),\"\")","v":""},{"$f":"IF(INDIRECT(M2028) = \"\",\"\",INDIRECT(M2028))","v":""},"n"]
["SUCMFORCURRADJAMT19",null,null,null,{"$f":"_xlfn.XLOOKUP(F2029,'Raw Data'!$I$4:$I$5000,'Raw Data'!$D$4:$D$5000,\"*** Mnemonic not found ***\",0)","v":"*** Mnemonic not found ***"},"SUCMFORCURRADJAMT19__",null,"Input",null,null,880,"G","Input!G880",{"$f":"_xlfn.XLOOKUP(F2029,'Raw Data'!$I$4:$I$5000,'Raw Data'!$E$4:$E$5000,100,0)","v":100},{"$f":"IF(N2029=0,_xlfn.XLOOKUP(F2029,'Raw Data'!$I$4:$I$5000,'Raw Data'!$H$4:$H$5000,\"\",0),\"\")","v":""},{"$f":"IF(INDIRECT(M2029) = \"\",\"\",INDIRECT(M2029))","v":""},"n"]
["SUCMFORCURRADJAMT20",null,null,null,{"$f":"_xlfn.XLOOKUP(F2030,'Raw Data'!$I$4:$I$5000,'Raw Data'!$D$4:$D$5000,\"*** Mnemonic not found ***\",0)","v":"*** Mnemonic not found ***"},"SUCMFORCURRADJAMT20__",null,"Input",null,null,881,"G","Input!G881",{"$f":"_xlfn.XLOOKUP(F2030,'Raw Data'!$I$4:$I$5000,'Raw Data'!$E$4:$E$5000,100,0)","v":100},{"$f":"IF(N2030=0,_xlfn.XLOOKUP(F2030,'Raw Data'!$I$4:$I$5000,'Raw Data'!$H$4:$H$5000,\"\",0),\"\")","v":""},{"$f":"IF(INDIRECT(M2030) = \"\",\"\",INDIRECT(M2030))","v":""},"n"]
["SUCMFORCURRADJAMT21",null,null,null,{"$f":"_xlfn.XLOOKUP(F2031,'Raw Data'!$I$4:$I$5000,'Raw Data'!$D$4:$D$5000,\"*** Mnemonic not found ***\",0)","v":"*** Mnemonic not found ***"},"SUCMFORCURRADJAMT21__",null,"Input",null,null,882,"G","Input!G882",{"$f":"_xlfn.XLOOKUP(F2031,'Raw Data'!$I$4:$I$5000,'Raw Data'!$E$4:$E$5000,100,0)","v":100},{"$f":"IF(N2031=0,_xlfn.XLOOKUP(F2031,'Raw Data'!$I$4:$I$5000,'Raw Data'!$H$4:$H$5000,\"\",0),\"\")","v":""},{"$f":"IF(INDIRECT(M2031) = \"\",\"\",INDIRECT(M2031))","v":""},"n"]
["SUCMFORCURRADJAMT22",null,null,null,{"$f":"_xlfn.XLOOKUP(F2032,'Raw Data'!$I$4:$I$5000,'Raw Data'!$D$4:$D$5000,\"*** Mnemonic not found ***\",0)","v":"*** Mnemonic not found ***"},"SUCMFORCURRADJAMT22__",null,"Input",null,null,883,"G","Input!G883",{"$f":"_xlfn.XLOOKUP(F2032,'Raw Data'!$I$4:$I$5000,'Raw Data'!$E$4:$E$5000,100,0)","v":100},{"$f":"IF(N2032=0,_xlfn.XLOOKUP(F2032,'Raw Data'!$I$4:$I$5000,'Raw Data'!$H$4:$H$5000,\"\",0),\"\")","v":""},{"$f":"IF(INDIRECT(M2032) = \"\",\"\",INDIRECT(M2032))","v":""},"n"]
["SUCMFORCURRADJAMT23",null,null,null,{"$f":"_xlfn.XLOOKUP(F2033,'Raw Data'!$I$4:$I$5000,'Raw Data'!$D$4:$D$5000,\"*** Mnemonic not found ***\",0)","v":"*** Mnemonic not found ***"},"SUCMFORCURRADJAMT23__",null,"Input",null,null,884,"G","Input!G884",{"$f":"_xlfn.XLOOKUP(F2033,'Raw Data'!$I$4:$I$5000,'Raw Data'!$E$4:$E$5000,100,0)","v":100},{"$f":"IF(N2033=0,_xlfn.XLOOKUP(F2033,'Raw Data'!$I$4:$I$5000,'Raw Data'!$H$4:$H$5000,\"\",0),\"\")","v":""},{"$f":"IF(INDIRECT(M2033) = \"\",\"\",INDIRECT(M2033))","v":""},"n"]
["SUCMFORCURRADJAMT24",null,null,null,{"$f":"_xlfn.XLOOKUP(F2034,'Raw Data'!$I$4:$I$5000,'Raw Data'!$D$4:$D$5000,\"*** Mnemonic not found ***\",0)","v":"*** Mnemonic not found ***"},"SUCMFORCURRADJAMT24__",null,"Input",null,null,885,"G","Input!G885",{"$f":"_xlfn.XLOOKUP(F2034,'Raw Data'!$I$4:$I$5000,'Raw Data'!$E$4:$E$5000,100,0)","v":100},{"$f":"IF(N2034=0,_xlfn.XLOOKUP(F2034,'Raw Data'!$I$4:$I$5000,'Raw Data'!$H$4:$H$5000,\"\",0),\"\")","v":""},{"$f":"IF(INDIRECT(M2034) = \"\",\"\",INDIRECT(M2034))","v":""},"n"]
["SUCMFORCURRADJAMT25",null,null,null,{"$f":"_xlfn.XLOOKUP(F2035,'Raw Data'!$I$4:$I$5000,'Raw Data'!$D$4:$D$5000,\"*** Mnemonic not found ***\",0)","v":"*** Mnemonic not found ***"},"SUCMFORCURRADJAMT25__",null,"Input",null,null,886,"G","Input!G886",{"$f":"_xlfn.XLOOKUP(F2035,'Raw Data'!$I$4:$I$5000,'Raw Data'!$E$4:$E$5000,100,0)","v":100},{"$f":"IF(N2035=0,_xlfn.XLOOKUP(F2035,'Raw Data'!$I$4:$I$5000,'Raw Data'!$H$4:$H$5000,\"\",0),\"\")","v":""},{"$f":"IF(INDIRECT(M2035) = \"\",\"\",INDIRECT(M2035))","v":""},"n"]
["SUCMFORCURRADJAMT26",null,null,null,{"$f":"_xlfn.XLOOKUP(F2036,'Raw Data'!$I$4:$I$5000,'Raw Data'!$D$4:$D$5000,\"*** Mnemonic not found ***\",0)","v":"*** Mnemonic not found ***"},"SUCMFORCURRADJAMT26__",null,"Input",null,null,887,"G","Input!G887",{"$f":"_xlfn.XLOOKUP(F2036,'Raw Data'!$I$4:$I$5000,'Raw Data'!$E$4:$E$5000,100,0)","v":100},{"$f":"IF(N2036=0,_xlfn.XLOOKUP(F2036,'Raw Data'!$I$4:$I$5000,'Raw Data'!$H$4:$H$5000,\"\",0),\"\")","v":""},{"$f":"IF(INDIRECT(M2036) = \"\",\"\",INDIRECT(M2036))","v":""},"n"]
["SUCMFORCURRADJAMT27",null,null,null,{"$f":"_xlfn.XLOOKUP(F2037,'Raw Data'!$I$4:$I$5000,'Raw Data'!$D$4:$D$5000,\"*** Mnemonic not found ***\",0)","v":"*** Mnemonic not found ***"},"SUCMFORCURRADJAMT27__",null,"Input",null,null,888,"G","Input!G888",{"$f":"_xlfn.XLOOKUP(F2037,'Raw Data'!$I$4:$I$5000,'Raw Data'!$E$4:$E$5000,100,0)","v":100},{"$f":"IF(N2037=0,_xlfn.XLOOKUP(F2037,'Raw Data'!$I$4:$I$5000,'Raw Data'!$H$4:$H$5000,\"\",0),\"\")","v":""},{"$f":"IF(INDIRECT(M2037) = \"\",\"\",INDIRECT(M2037))","v":""},"n"]
["SUCMFORCURRADJAMT28",null,null,null,{"$f":"_xlfn.XLOOKUP(F2038,'Raw Data'!$I$4:$I$5000,'Raw Data'!$D$4:$D$5000,\"*** Mnemonic not found ***\",0)","v":"*** Mnemonic not found ***"},"SUCMFORCURRADJAMT28__",null,"Input",null,null,889,"G","Input!G889",{"$f":"_xlfn.XLOOKUP(F2038,'Raw Data'!$I$4:$I$5000,'Raw Data'!$E$4:$E$5000,100,0)","v":100},{"$f":"IF(N2038=0,_xlfn.XLOOKUP(F2038,'Raw Data'!$I$4:$I$5000,'Raw Data'!$H$4:$H$5000,\"\",0),\"\")","v":""},{"$f":"IF(INDIRECT(M2038) = \"\",\"\",INDIRECT(M2038))","v":""},"n"]
["SUCMFORCURRADJAMT29",null,null,null,{"$f":"_xlfn.XLOOKUP(F2039,'Raw Data'!$I$4:$I$5000,'Raw Data'!$D$4:$D$5000,\"*** Mnemonic not found ***\",0)","v":"*** Mnemonic not found ***"},"SUCMFORCURRADJAMT29__",null,"Input",null,null,890,"G","Input!G890",{"$f":"_xlfn.XLOOKUP(F2039,'Raw Data'!$I$4:$I$5000,'Raw Data'!$E$4:$E$5000,100,0)","v":100},{"$f":"IF(N2039=0,_xlfn.XLOOKUP(F2039,'Raw Data'!$I$4:$I$5000,'Raw Data'!$H$4:$H$5000,\"\",0),\"\")","v":""},{"$f":"IF(INDIRECT(M2039) = \"\",\"\",INDIRECT(M2039))","v":""},"n"]
["SUCMFORCURRADJAMT30",null,null,null,{"$f":"_xlfn.XLOOKUP(F2040,'Raw Data'!$I$4:$I$5000,'Raw Data'!$D$4:$D$5000,\"*** Mnemonic not found ***\",0)","v":"*** Mnemonic not found ***"},"SUCMFORCURRADJAMT30__",null,"Input",null,null,891,"G","Input!G891",{"$f":"_xlfn.XLOOKUP(F2040,'Raw Data'!$I$4:$I$5000,'Raw Data'!$E$4:$E$5000,100,0)","v":100},{"$f":"IF(N2040=0,_xlfn.XLOOKUP(F2040,'Raw Data'!$I$4:$I$5000,'Raw Data'!$H$4:$H$5000,\"\",0),\"\")","v":""},{"$f":"IF(INDIRECT(M2040) = \"\",\"\",INDIRECT(M2040))","v":""},"n"]
["SUCMFORCURRADJAMT31",null,null,null,{"$f":"_xlfn.XLOOKUP(F2041,'Raw Data'!$I$4:$I$5000,'Raw Data'!$D$4:$D$5000,\"*** Mnemonic not found ***\",0)","v":"*** Mnemonic not found ***"},"SUCMFORCURRADJAMT31__",null,"Input",null,null,892,"G","Input!G892",{"$f":"_xlfn.XLOOKUP(F2041,'Raw Data'!$I$4:$I$5000,'Raw Data'!$E$4:$E$5000,100,0)","v":100},{"$f":"IF(N2041=0,_xlfn.XLOOKUP(F2041,'Raw Data'!$I$4:$I$5000,'Raw Data'!$H$4:$H$5000,\"\",0),\"\")","v":""},{"$f":"IF(INDIRECT(M2041) = \"\",\"\",INDIRECT(M2041))","v":""},"n"]
["SUCMFORCURRADJAMT32",null,null,null,{"$f":"_xlfn.XLOOKUP(F2042,'Raw Data'!$I$4:$I$5000,'Raw Data'!$D$4:$D$5000,\"*** Mnemonic not found ***\",0)","v":"*** Mnemonic not found ***"},"SUCMFORCURRADJAMT32__",null,"Input",null,null,893,"G","Input!G893",{"$f":"_xlfn.XLOOKUP(F2042,'Raw Data'!$I$4:$I$5000,'Raw Data'!$E$4:$E$5000,100,0)","v":100},{"$f":"IF(N2042=0,_xlfn.XLOOKUP(F2042,'Raw Data'!$I$4:$I$5000,'Raw Data'!$H$4:$H$5000,\"\",0),\"\")","v":""},{"$f":"IF(INDIRECT(M2042) = \"\",\"\",INDIRECT(M2042))","v":""},"n"]
["SUCMFORCURRADJAMT33",null,null,null,{"$f":"_xlfn.XLOOKUP(F2043,'Raw Data'!$I$4:$I$5000,'Raw Data'!$D$4:$D$5000,\"*** Mnemonic not found ***\",0)","v":"*** Mnemonic not found ***"},"SUCMFORCURRADJAMT33__",null,"Input",null,null,894,"G","Input!G894",{"$f":"_xlfn.XLOOKUP(F2043,'Raw Data'!$I$4:$I$5000,'Raw Data'!$E$4:$E$5000,100,0)","v":100},{"$f":"IF(N2043=0,_xlfn.XLOOKUP(F2043,'Raw Data'!$I$4:$I$5000,'Raw Data'!$H$4:$H$5000,\"\",0),\"\")","v":""},{"$f":"IF(INDIRECT(M2043) = \"\",\"\",INDIRECT(M2043))","v":""},"n"]
["SUCMFORCURRADJAMT34",null,null,null,{"$f":"_xlfn.XLOOKUP(F2044,'Raw Data'!$I$4:$I$5000,'Raw Data'!$D$4:$D$5000,\"*** Mnemonic not found ***\",0)","v":"*** Mnemonic not found ***"},"SUCMFORCURRADJAMT34__",null,"Input",null,null,895,"G","Input!G895",{"$f":"_xlfn.XLOOKUP(F2044,'Raw Data'!$I$4:$I$5000,'Raw Data'!$E$4:$E$5000,100,0)","v":100},{"$f":"IF(N2044=0,_xlfn.XLOOKUP(F2044,'Raw Data'!$I$4:$I$5000,'Raw Data'!$H$4:$H$5000,\"\",0),\"\")","v":""},{"$f":"IF(INDIRECT(M2044) = \"\",\"\",INDIRECT(M2044))","v":""},"n"]
["SUCMFORCURRADJAMT35",null,null,null,{"$f":"_xlfn.XLOOKUP(F2045,'Raw Data'!$I$4:$I$5000,'Raw Data'!$D$4:$D$5000,\"*** Mnemonic not found ***\",0)","v":"*** Mnemonic not found ***"},"SUCMFORCURRADJAMT35__",null,"Input",null,null,896,"G","Input!G896",{"$f":"_xlfn.XLOOKUP(F2045,'Raw Data'!$I$4:$I$5000,'Raw Data'!$E$4:$E$5000,100,0)","v":100},{"$f":"IF(N2045=0,_xlfn.XLOOKUP(F2045,'Raw Data'!$I$4:$I$5000,'Raw Data'!$H$4:$H$5000,\"\",0),\"\")","v":""},{"$f":"IF(INDIRECT(M2045) = \"\",\"\",INDIRECT(M2045))","v":""},"n"]
["SUCMFORCURRIRR1",null,null,null,{"$f":"_xlfn.XLOOKUP(F2046,'Raw Data'!$I$4:$I$5000,'Raw Data'!$D$4:$D$5000,\"*** Mnemonic not found ***\",0)","v":"*** Mnemonic not found ***"},"SUCMFORCURRIRR1__",null,"Input",null,null,{"$f":"K2011","v":862},"H","Input!H862",{"$f":"_xlfn.XLOOKUP(F2046,'Raw Data'!$I$4:$I$5000,'Raw Data'!$E$4:$E$5000,100,0)","v":100},{"$f":"IF(N2046=0,_xlfn.XLOOKUP(F2046,'Raw Data'!$I$4:$I$5000,'Raw Data'!$H$4:$H$5000,\"\",0),\"\")","v":""},{"$f":"IF(INDIRECT(M2046) = \"\",\"\",INDIRECT(M2046))","v":""},"n"]
["SUCMFORCURRIRR2",null,null,null,{"$f":"_xlfn.XLOOKUP(F2047,'Raw Data'!$I$4:$I$5000,'Raw Data'!$D$4:$D$5000,\"*** Mnemonic not found ***\",0)","v":"*** Mnemonic not found ***"},"SUCMFORCURRIRR2__",null,"Input",null,null,863,"H","Input!H863",{"$f":"_xlfn.XLOOKUP(F2047,'Raw Data'!$I$4:$I$5000,'Raw Data'!$E$4:$E$5000,100,0)","v":100},{"$f":"IF(N2047=0,_xlfn.XLOOKUP(F2047,'Raw Data'!$I$4:$I$5000,'Raw Data'!$H$4:$H$5000,\"\",0),\"\")","v":""},{"$f":"IF(INDIRECT(M2047) = \"\",\"\",INDIRECT(M2047))","v":""},"n"]
["SUCMFORCURRIRR3",null,null,null,{"$f":"_xlfn.XLOOKUP(F2048,'Raw Data'!$I$4:$I$5000,'Raw Data'!$D$4:$D$5000,\"*** Mnemonic not found ***\",0)","v":"*** Mnemonic not found ***"},"SUCMFORCURRIRR3__",null,"Input",null,null,864,"H","Input!H864",{"$f":"_xlfn.XLOOKUP(F2048,'Raw Data'!$I$4:$I$5000,'Raw Data'!$E$4:$E$5000,100,0)","v":100},{"$f":"IF(N2048=0,_xlfn.XLOOKUP(F2048,'Raw Data'!$I$4:$I$5000,'Raw Data'!$H$4:$H$5000,\"\",0),\"\")","v":""},{"$f":"IF(INDIRECT(M2048) = \"\",\"\",INDIRECT(M2048))","v":""},"n"]
["SUCMFORCURRIRR4",null,null,null,{"$f":"_xlfn.XLOOKUP(F2049,'Raw Data'!$I$4:$I$5000,'Raw Data'!$D$4:$D$5000,\"*** Mnemonic not found ***\",0)","v":"*** Mnemonic not found ***"},"SUCMFORCURRIRR4__",null,"Input",null,null,865,"H","Input!H865",{"$f":"_xlfn.XLOOKUP(F2049,'Raw Data'!$I$4:$I$5000,'Raw Data'!$E$4:$E$5000,100,0)","v":100},{"$f":"IF(N2049=0,_xlfn.XLOOKUP(F2049,'Raw Data'!$I$4:$I$5000,'Raw Data'!$H$4:$H$5000,\"\",0),\"\")","v":""},{"$f":"IF(INDIRECT(M2049) = \"\",\"\",INDIRECT(M2049))","v":""},"n"]
["SUCMFORCURRIRR5",null,null,null,{"$f":"_xlfn.XLOOKUP(F2050,'Raw Data'!$I$4:$I$5000,'Raw Data'!$D$4:$D$5000,\"*** Mnemonic not found ***\",0)","v":"*** Mnemonic not found ***"},"SUCMFORCURRIRR5__",null,"Input",null,null,866,"H","Input!H866",{"$f":"_xlfn.XLOOKUP(F2050,'Raw Data'!$I$4:$I$5000,'Raw Data'!$E$4:$E$5000,100,0)","v":100},{"$f":"IF(N2050=0,_xlfn.XLOOKUP(F2050,'Raw Data'!$I$4:$I$5000,'Raw Data'!$H$4:$H$5000,\"\",0),\"\")","v":""},{"$f":"IF(INDIRECT(M2050) = \"\",\"\",INDIRECT(M2050))","v":""},"n"]
["SUCMFORCURRIRR6",null,null,null,{"$f":"_xlfn.XLOOKUP(F2051,'Raw Data'!$I$4:$I$5000,'Raw Data'!$D$4:$D$5000,\"*** Mnemonic not found ***\",0)","v":"*** Mnemonic not found ***"},"SUCMFORCURRIRR6__",null,"Input",null,null,867,"H","Input!H867",{"$f":"_xlfn.XLOOKUP(F2051,'Raw Data'!$I$4:$I$5000,'Raw Data'!$E$4:$E$5000,100,0)","v":100},{"$f":"IF(N2051=0,_xlfn.XLOOKUP(F2051,'Raw Data'!$I$4:$I$5000,'Raw Data'!$H$4:$H$5000,\"\",0),\"\")","v":""},{"$f":"IF(INDIRECT(M2051) = \"\",\"\",INDIRECT(M2051))","v":""},"n"]
["SUCMFORCURRIRR7",null,null,null,{"$f":"_xlfn.XLOOKUP(F2052,'Raw Data'!$I$4:$I$5000,'Raw Data'!$D$4:$D$5000,\"*** Mnemonic not found ***\",0)","v":"*** Mnemonic not found ***"},"SUCMFORCURRIRR7__",null,"Input",null,null,868,"H","Input!H868",{"$f":"_xlfn.XLOOKUP(F2052,'Raw Data'!$I$4:$I$5000,'Raw Data'!$E$4:$E$5000,100,0)","v":100},{"$f":"IF(N2052=0,_xlfn.XLOOKUP(F2052,'Raw Data'!$I$4:$I$5000,'Raw Data'!$H$4:$H$5000,\"\",0),\"\")","v":""},{"$f":"IF(INDIRECT(M2052) = \"\",\"\",INDIRECT(M2052))","v":""},"n"]
["SUCMFORCURRIRR8",null,null,null,{"$f":"_xlfn.XLOOKUP(F2053,'Raw Data'!$I$4:$I$5000,'Raw Data'!$D$4:$D$5000,\"*** Mnemonic not found ***\",0)","v":"*** Mnemonic not found ***"},"SUCMFORCURRIRR8__",null,"Input",null,null,869,"H","Input!H869",{"$f":"_xlfn.XLOOKUP(F2053,'Raw Data'!$I$4:$I$5000,'Raw Data'!$E$4:$E$5000,100,0)","v":100},{"$f":"IF(N2053=0,_xlfn.XLOOKUP(F2053,'Raw Data'!$I$4:$I$5000,'Raw Data'!$H$4:$H$5000,\"\",0),\"\")","v":""},{"$f":"IF(INDIRECT(M2053) = \"\",\"\",INDIRECT(M2053))","v":""},"n"]
["SUCMFORCURRIRR9",null,null,null,{"$f":"_xlfn.XLOOKUP(F2054,'Raw Data'!$I$4:$I$5000,'Raw Data'!$D$4:$D$5000,\"*** Mnemonic not found ***\",0)","v":"*** Mnemonic not found ***"},"SUCMFORCURRIRR9__",null,"Input",null,null,870,"H","Input!H870",{"$f":"_xlfn.XLOOKUP(F2054,'Raw Data'!$I$4:$I$5000,'Raw Data'!$E$4:$E$5000,100,0)","v":100},{"$f":"IF(N2054=0,_xlfn.XLOOKUP(F2054,'Raw Data'!$I$4:$I$5000,'Raw Data'!$H$4:$H$5000,\"\",0),\"\")","v":""},{"$f":"IF(INDIRECT(M2054) = \"\",\"\",INDIRECT(M2054))","v":""},"n"]
["SUCMFORCURRIRR10",null,null,null,{"$f":"_xlfn.XLOOKUP(F2055,'Raw Data'!$I$4:$I$5000,'Raw Data'!$D$4:$D$5000,\"*** Mnemonic not found ***\",0)","v":"*** Mnemonic not found ***"},"SUCMFORCURRIRR10__",null,"Input",null,null,871,"H","Input!H871",{"$f":"_xlfn.XLOOKUP(F2055,'Raw Data'!$I$4:$I$5000,'Raw Data'!$E$4:$E$5000,100,0)","v":100},{"$f":"IF(N2055=0,_xlfn.XLOOKUP(F2055,'Raw Data'!$I$4:$I$5000,'Raw Data'!$H$4:$H$5000,\"\",0),\"\")","v":""},{"$f":"IF(INDIRECT(M2055) = \"\",\"\",INDIRECT(M2055))","v":""},"n"]
["SUCMFORCURRIRR11",null,null,null,{"$f":"_xlfn.XLOOKUP(F2056,'Raw Data'!$I$4:$I$5000,'Raw Data'!$D$4:$D$5000,\"*** Mnemonic not found ***\",0)","v":"*** Mnemonic not found ***"},"SUCMFORCURRIRR11__",null,"Input",null,null,872,"H","Input!H872",{"$f":"_xlfn.XLOOKUP(F2056,'Raw Data'!$I$4:$I$5000,'Raw Data'!$E$4:$E$5000,100,0)","v":100},{"$f":"IF(N2056=0,_xlfn.XLOOKUP(F2056,'Raw Data'!$I$4:$I$5000,'Raw Data'!$H$4:$H$5000,\"\",0),\"\")","v":""},{"$f":"IF(INDIRECT(M2056) = \"\",\"\",INDIRECT(M2056))","v":""},"n"]
["SUCMFORCURRIRR12",null,null,null,{"$f":"_xlfn.XLOOKUP(F2057,'Raw Data'!$I$4:$I$5000,'Raw Data'!$D$4:$D$5000,\"*** Mnemonic not found ***\",0)","v":"*** Mnemonic not found ***"},"SUCMFORCURRIRR12__",null,"Input",null,null,873,"H","Input!H873",{"$f":"_xlfn.XLOOKUP(F2057,'Raw Data'!$I$4:$I$5000,'Raw Data'!$E$4:$E$5000,100,0)","v":100},{"$f":"IF(N2057=0,_xlfn.XLOOKUP(F2057,'Raw Data'!$I$4:$I$5000,'Raw Data'!$H$4:$H$5000,\"\",0),\"\")","v":""},{"$f":"IF(INDIRECT(M2057) = \"\",\"\",INDIRECT(M2057))","v":""},"n"]
["SUCMFORCURRIRR13",null,null,null,{"$f":"_xlfn.XLOOKUP(F2058,'Raw Data'!$I$4:$I$5000,'Raw Data'!$D$4:$D$5000,\"*** Mnemonic not found ***\",0)","v":"*** Mnemonic not found ***"},"SUCMFORCURRIRR13__",null,"Input",null,null,874,"H","Input!H874",{"$f":"_xlfn.XLOOKUP(F2058,'Raw Data'!$I$4:$I$5000,'Raw Data'!$E$4:$E$5000,100,0)","v":100},{"$f":"IF(N2058=0,_xlfn.XLOOKUP(F2058,'Raw Data'!$I$4:$I$5000,'Raw Data'!$H$4:$H$5000,\"\",0),\"\")","v":""},{"$f":"IF(INDIRECT(M2058) = \"\",\"\",INDIRECT(M2058))","v":""},"n"]
["SUCMFORCURRIRR14",null,null,null,{"$f":"_xlfn.XLOOKUP(F2059,'Raw Data'!$I$4:$I$5000,'Raw Data'!$D$4:$D$5000,\"*** Mnemonic not found ***\",0)","v":"*** Mnemonic not found ***"},"SUCMFORCURRIRR14__",null,"Input",null,null,875,"H","Input!H875",{"$f":"_xlfn.XLOOKUP(F2059,'Raw Data'!$I$4:$I$5000,'Raw Data'!$E$4:$E$5000,100,0)","v":100},{"$f":"IF(N2059=0,_xlfn.XLOOKUP(F2059,'Raw Data'!$I$4:$I$5000,'Raw Data'!$H$4:$H$5000,\"\",0),\"\")","v":""},{"$f":"IF(INDIRECT(M2059) = \"\",\"\",INDIRECT(M2059))","v":""},"n"]
["SUCMFORCURRIRR15",null,null,null,{"$f":"_xlfn.XLOOKUP(F2060,'Raw Data'!$I$4:$I$5000,'Raw Data'!$D$4:$D$5000,\"*** Mnemonic not found ***\",0)","v":"*** Mnemonic not found ***"},"SUCMFORCURRIRR15__",null,"Input",null,null,876,"H",{"$f":"CONCATENATE(H2060,\"!\",L2060,K2060)","v":"Input!H876"},{"$f":"_xlfn.XLOOKUP(F2060,'Raw Data'!$I$4:$I$5000,'Raw Data'!$E$4:$E$5000,100,0)","v":100},{"$f":"IF(N2060=0,_xlfn.XLOOKUP(F2060,'Raw Data'!$I$4:$I$5000,'Raw Data'!$H$4:$H$5000,\"\",0),\"\")","v":""},{"$f":"IF(INDIRECT(M2060) = \"\",\"\",INDIRECT(M2060))","v":""},"n"]
["SUCMFORCURRIRR16",null,null,null,{"$f":"_xlfn.XLOOKUP(F2061,'Raw Data'!$I$4:$I$5000,'Raw Data'!$D$4:$D$5000,\"*** Mnemonic not found ***\",0)","v":"*** Mnemonic not found ***"},{"$f":"CONCATENATE(A2061,\"_\",B2061,\"_\",D2061)","v":"SUCMFORCURRIRR16__"},null,"Input",null,null,877,"H","Input!H877",{"$f":"_xlfn.XLOOKUP(F2061,'Raw Data'!$I$4:$I$5000,'Raw Data'!$E$4:$E$5000,100,0)","v":100},{"$f":"IF(N2061=0,_xlfn.XLOOKUP(F2061,'Raw Data'!$I$4:$I$5000,'Raw Data'!$H$4:$H$5000,\"\",0),\"\")","v":""},{"$f":"IF(INDIRECT(M2061) = \"\",\"\",INDIRECT(M2061))","v":""},"n"]
["SUCMFORCURRIRR17",null,null,null,{"$f":"_xlfn.XLOOKUP(F2062,'Raw Data'!$I$4:$I$5000,'Raw Data'!$D$4:$D$5000,\"*** Mnemonic not found ***\",0)","v":"*** Mnemonic not found ***"},"SUCMFORCURRIRR17__",null,"Input",null,null,878,"H","Input!H878",{"$f":"_xlfn.XLOOKUP(F2062,'Raw Data'!$I$4:$I$5000,'Raw Data'!$E$4:$E$5000,100,0)","v":100},{"$f":"IF(N2062=0,_xlfn.XLOOKUP(F2062,'Raw Data'!$I$4:$I$5000,'Raw Data'!$H$4:$H$5000,\"\",0),\"\")","v":""},{"$f":"IF(INDIRECT(M2062) = \"\",\"\",INDIRECT(M2062))","v":""},"n"]
["SUCMFORCURRIRR18",null,null,null,{"$f":"_xlfn.XLOOKUP(F2063,'Raw Data'!$I$4:$I$5000,'Raw Data'!$D$4:$D$5000,\"*** Mnemonic not found ***\",0)","v":"*** Mnemonic not found ***"},"SUCMFORCURRIRR18__",null,"Input",null,null,879,"H","Input!H879",{"$f":"_xlfn.XLOOKUP(F2063,'Raw Data'!$I$4:$I$5000,'Raw Data'!$E$4:$E$5000,100,0)","v":100},{"$f":"IF(N2063=0,_xlfn.XLOOKUP(F2063,'Raw Data'!$I$4:$I$5000,'Raw Data'!$H$4:$H$5000,\"\",0),\"\")","v":""},{"$f":"IF(INDIRECT(M2063) = \"\",\"\",INDIRECT(M2063))","v":""},"n"]
["SUCMFORCURRIRR19",null,null,null,{"$f":"_xlfn.XLOOKUP(F2064,'Raw Data'!$I$4:$I$5000,'Raw Data'!$D$4:$D$5000,\"*** Mnemonic not found ***\",0)","v":"*** Mnemonic not found ***"},"SUCMFORCURRIRR19__",null,"Input",null,null,880,"H","Input!H880",{"$f":"_xlfn.XLOOKUP(F2064,'Raw Data'!$I$4:$I$5000,'Raw Data'!$E$4:$E$5000,100,0)","v":100},{"$f":"IF(N2064=0,_xlfn.XLOOKUP(F2064,'Raw Data'!$I$4:$I$5000,'Raw Data'!$H$4:$H$5000,\"\",0),\"\")","v":""},{"$f":"IF(INDIRECT(M2064) = \"\",\"\",INDIRECT(M2064))","v":""},"n"]
["SUCMFORCURRIRR20",null,null,null,{"$f":"_xlfn.XLOOKUP(F2065,'Raw Data'!$I$4:$I$5000,'Raw Data'!$D$4:$D$5000,\"*** Mnemonic not found ***\",0)","v":"*** Mnemonic not found ***"},"SUCMFORCURRIRR20__",null,"Input",null,null,881,"H","Input!H881",{"$f":"_xlfn.XLOOKUP(F2065,'Raw Data'!$I$4:$I$5000,'Raw Data'!$E$4:$E$5000,100,0)","v":100},{"$f":"IF(N2065=0,_xlfn.XLOOKUP(F2065,'Raw Data'!$I$4:$I$5000,'Raw Data'!$H$4:$H$5000,\"\",0),\"\")","v":""},{"$f":"IF(INDIRECT(M2065) = \"\",\"\",INDIRECT(M2065))","v":""},"n"]
["SUCMFORCURRIRR21",null,null,null,{"$f":"_xlfn.XLOOKUP(F2066,'Raw Data'!$I$4:$I$5000,'Raw Data'!$D$4:$D$5000,\"*** Mnemonic not found ***\",0)","v":"*** Mnemonic not found ***"},"SUCMFORCURRIRR21__",null,"Input",null,null,882,"H","Input!H882",{"$f":"_xlfn.XLOOKUP(F2066,'Raw Data'!$I$4:$I$5000,'Raw Data'!$E$4:$E$5000,100,0)","v":100},{"$f":"IF(N2066=0,_xlfn.XLOOKUP(F2066,'Raw Data'!$I$4:$I$5000,'Raw Data'!$H$4:$H$5000,\"\",0),\"\")","v":""},{"$f":"IF(INDIRECT(M2066) = \"\",\"\",INDIRECT(M2066))","v":""},"n"]
["SUCMFORCURRIRR22",null,null,null,{"$f":"_xlfn.XLOOKUP(F2067,'Raw Data'!$I$4:$I$5000,'Raw Data'!$D$4:$D$5000,\"*** Mnemonic not found ***\",0)","v":"*** Mnemonic not found ***"},"SUCMFORCURRIRR22__",null,"Input",null,null,883,"H","Input!H883",{"$f":"_xlfn.XLOOKUP(F2067,'Raw Data'!$I$4:$I$5000,'Raw Data'!$E$4:$E$5000,100,0)","v":100},{"$f":"IF(N2067=0,_xlfn.XLOOKUP(F2067,'Raw Data'!$I$4:$I$5000,'Raw Data'!$H$4:$H$5000,\"\",0),\"\")","v":""},{"$f":"IF(INDIRECT(M2067) = \"\",\"\",INDIRECT(M2067))","v":""},"n"]
["SUCMFORCURRIRR23",null,null,null,{"$f":"_xlfn.XLOOKUP(F2068,'Raw Data'!$I$4:$I$5000,'Raw Data'!$D$4:$D$5000,\"*** Mnemonic not found ***\",0)","v":"*** Mnemonic not found ***"},"SUCMFORCURRIRR23__",null,"Input",null,null,884,"H","Input!H884",{"$f":"_xlfn.XLOOKUP(F2068,'Raw Data'!$I$4:$I$5000,'Raw Data'!$E$4:$E$5000,100,0)","v":100},{"$f":"IF(N2068=0,_xlfn.XLOOKUP(F2068,'Raw Data'!$I$4:$I$5000,'Raw Data'!$H$4:$H$5000,\"\",0),\"\")","v":""},{"$f":"IF(INDIRECT(M2068) = \"\",\"\",INDIRECT(M2068))","v":""},"n"]
["SUCMFORCURRIRR24",null,null,null,{"$f":"_xlfn.XLOOKUP(F2069,'Raw Data'!$I$4:$I$5000,'Raw Data'!$D$4:$D$5000,\"*** Mnemonic not found ***\",0)","v":"*** Mnemonic not found ***"},"SUCMFORCURRIRR24__",null,"Input",null,null,885,"H","Input!H885",{"$f":"_xlfn.XLOOKUP(F2069,'Raw Data'!$I$4:$I$5000,'Raw Data'!$E$4:$E$5000,100,0)","v":100},{"$f":"IF(N2069=0,_xlfn.XLOOKUP(F2069,'Raw Data'!$I$4:$I$5000,'Raw Data'!$H$4:$H$5000,\"\",0),\"\")","v":""},{"$f":"IF(INDIRECT(M2069) = \"\",\"\",INDIRECT(M2069))","v":""},"n"]
["SUCMFORCURRIRR25",null,null,null,{"$f":"_xlfn.XLOOKUP(F2070,'Raw Data'!$I$4:$I$5000,'Raw Data'!$D$4:$D$5000,\"*** Mnemonic not found ***\",0)","v":"*** Mnemonic not found ***"},"SUCMFORCURRIRR25__",null,"Input",null,null,886,"H","Input!H886",{"$f":"_xlfn.XLOOKUP(F2070,'Raw Data'!$I$4:$I$5000,'Raw Data'!$E$4:$E$5000,100,0)","v":100},{"$f":"IF(N2070=0,_xlfn.XLOOKUP(F2070,'Raw Data'!$I$4:$I$5000,'Raw Data'!$H$4:$H$5000,\"\",0),\"\")","v":""},{"$f":"IF(INDIRECT(M2070) = \"\",\"\",INDIRECT(M2070))","v":""},"n"]
["SUCMFORCURRIRR26",null,null,null,{"$f":"_xlfn.XLOOKUP(F2071,'Raw Data'!$I$4:$I$5000,'Raw Data'!$D$4:$D$5000,\"*** Mnemonic not found ***\",0)","v":"*** Mnemonic not found ***"},"SUCMFORCURRIRR26__",null,"Input",null,null,887,"H","Input!H887",{"$f":"_xlfn.XLOOKUP(F2071,'Raw Data'!$I$4:$I$5000,'Raw Data'!$E$4:$E$5000,100,0)","v":100},{"$f":"IF(N2071=0,_xlfn.XLOOKUP(F2071,'Raw Data'!$I$4:$I$5000,'Raw Data'!$H$4:$H$5000,\"\",0),\"\")","v":""},{"$f":"IF(INDIRECT(M2071) = \"\",\"\",INDIRECT(M2071))","v":""},"n"]
["SUCMFORCURRIRR27",null,null,null,{"$f":"_xlfn.XLOOKUP(F2072,'Raw Data'!$I$4:$I$5000,'Raw Data'!$D$4:$D$5000,\"*** Mnemonic not found ***\",0)","v":"*** Mnemonic not found ***"},"SUCMFORCURRIRR27__",null,"Input",null,null,888,"H","Input!H888",{"$f":"_xlfn.XLOOKUP(F2072,'Raw Data'!$I$4:$I$5000,'Raw Data'!$E$4:$E$5000,100,0)","v":100},{"$f":"IF(N2072=0,_xlfn.XLOOKUP(F2072,'Raw Data'!$I$4:$I$5000,'Raw Data'!$H$4:$H$5000,\"\",0),\"\")","v":""},{"$f":"IF(INDIRECT(M2072) = \"\",\"\",INDIRECT(M2072))","v":""},"n"]
["SUCMFORCURRIRR28",null,null,null,{"$f":"_xlfn.XLOOKUP(F2073,'Raw Data'!$I$4:$I$5000,'Raw Data'!$D$4:$D$5000,\"*** Mnemonic not found ***\",0)","v":"*** Mnemonic not found ***"},"SUCMFORCURRIRR28__",null,"Input",null,null,889,"H","Input!H889",{"$f":"_xlfn.XLOOKUP(F2073,'Raw Data'!$I$4:$I$5000,'Raw Data'!$E$4:$E$5000,100,0)","v":100},{"$f":"IF(N2073=0,_xlfn.XLOOKUP(F2073,'Raw Data'!$I$4:$I$5000,'Raw Data'!$H$4:$H$5000,\"\",0),\"\")","v":""},{"$f":"IF(INDIRECT(M2073) = \"\",\"\",INDIRECT(M2073))","v":""},"n"]
["SUCMFORCURRIRR29",null,null,null,{"$f":"_xlfn.XLOOKUP(F2074,'Raw Data'!$I$4:$I$5000,'Raw Data'!$D$4:$D$5000,\"*** Mnemonic not found ***\",0)","v":"*** Mnemonic not found ***"},"SUCMFORCURRIRR29__",null,"Input",null,null,890,"H","Input!H890",{"$f":"_xlfn.XLOOKUP(F2074,'Raw Data'!$I$4:$I$5000,'Raw Data'!$E$4:$E$5000,100,0)","v":100},{"$f":"IF(N2074=0,_xlfn.XLOOKUP(F2074,'Raw Data'!$I$4:$I$5000,'Raw Data'!$H$4:$H$5000,\"\",0),\"\")","v":""},{"$f":"IF(INDIRECT(M2074) = \"\",\"\",INDIRECT(M2074))","v":""},"n"]
["SUCMFORCURRIRR30",null,null,null,{"$f":"_xlfn.XLOOKUP(F2075,'Raw Data'!$I$4:$I$5000,'Raw Data'!$D$4:$D$5000,\"*** Mnemonic not found ***\",0)","v":"*** Mnemonic not found ***"},"SUCMFORCURRIRR30__",null,"Input",null,null,891,"H","Input!H891",{"$f":"_xlfn.XLOOKUP(F2075,'Raw Data'!$I$4:$I$5000,'Raw Data'!$E$4:$E$5000,100,0)","v":100},{"$f":"IF(N2075=0,_xlfn.XLOOKUP(F2075,'Raw Data'!$I$4:$I$5000,'Raw Data'!$H$4:$H$5000,\"\",0),\"\")","v":""},{"$f":"IF(INDIRECT(M2075) = \"\",\"\",INDIRECT(M2075))","v":""},"n"]
["SUCMFORCURRIRR31",null,null,null,{"$f":"_xlfn.XLOOKUP(F2076,'Raw Data'!$I$4:$I$5000,'Raw Data'!$D$4:$D$5000,\"*** Mnemonic not found ***\",0)","v":"*** Mnemonic not found ***"},"SUCMFORCURRIRR31__",null,"Input",null,null,892,"H","Input!H892",{"$f":"_xlfn.XLOOKUP(F2076,'Raw Data'!$I$4:$I$5000,'Raw Data'!$E$4:$E$5000,100,0)","v":100},{"$f":"IF(N2076=0,_xlfn.XLOOKUP(F2076,'Raw Data'!$I$4:$I$5000,'Raw Data'!$H$4:$H$5000,\"\",0),\"\")","v":""},{"$f":"IF(INDIRECT(M2076) = \"\",\"\",INDIRECT(M2076))","v":""},"n"]
["SUCMFORCURRIRR32",null,null,null,{"$f":"_xlfn.XLOOKUP(F2077,'Raw Data'!$I$4:$I$5000,'Raw Data'!$D$4:$D$5000,\"*** Mnemonic not found ***\",0)","v":"*** Mnemonic not found ***"},"SUCMFORCURRIRR32__",null,"Input",null,null,893,"H","Input!H893",{"$f":"_xlfn.XLOOKUP(F2077,'Raw Data'!$I$4:$I$5000,'Raw Data'!$E$4:$E$5000,100,0)","v":100},{"$f":"IF(N2077=0,_xlfn.XLOOKUP(F2077,'Raw Data'!$I$4:$I$5000,'Raw Data'!$H$4:$H$5000,\"\",0),\"\")","v":""},{"$f":"IF(INDIRECT(M2077) = \"\",\"\",INDIRECT(M2077))","v":""},"n"]
["SUCMFORCURRIRR33",null,null,null,{"$f":"_xlfn.XLOOKUP(F2078,'Raw Data'!$I$4:$I$5000,'Raw Data'!$D$4:$D$5000,\"*** Mnemonic not found ***\",0)","v":"*** Mnemonic not found ***"},"SUCMFORCURRIRR33__",null,"Input",null,null,894,"H","Input!H894",{"$f":"_xlfn.XLOOKUP(F2078,'Raw Data'!$I$4:$I$5000,'Raw Data'!$E$4:$E$5000,100,0)","v":100},{"$f":"IF(N2078=0,_xlfn.XLOOKUP(F2078,'Raw Data'!$I$4:$I$5000,'Raw Data'!$H$4:$H$5000,\"\",0),\"\")","v":""},{"$f":"IF(INDIRECT(M2078) = \"\",\"\",INDIRECT(M2078))","v":""},"n"]
["SUCMFORCURRIRR34",null,null,null,{"$f":"_xlfn.XLOOKUP(F2079,'Raw Data'!$I$4:$I$5000,'Raw Data'!$D$4:$D$5000,\"*** Mnemonic not found ***\",0)","v":"*** Mnemonic not found ***"},"SUCMFORCURRIRR34__",null,"Input",null,null,895,"H","Input!H895",{"$f":"_xlfn.XLOOKUP(F2079,'Raw Data'!$I$4:$I$5000,'Raw Data'!$E$4:$E$5000,100,0)","v":100},{"$f":"IF(N2079=0,_xlfn.XLOOKUP(F2079,'Raw Data'!$I$4:$I$5000,'Raw Data'!$H$4:$H$5000,\"\",0),\"\")","v":""},{"$f":"IF(INDIRECT(M2079) = \"\",\"\",INDIRECT(M2079))","v":""},"n"]
["SUCMFORCURRIRR35",null,null,null,{"$f":"_xlfn.XLOOKUP(F2080,'Raw Data'!$I$4:$I$5000,'Raw Data'!$D$4:$D$5000,\"*** Mnemonic not found ***\",0)","v":"*** Mnemonic not found ***"},"SUCMFORCURRIRR35__",null,"Input",null,null,896,"H","Input!H896",{"$f":"_xlfn.XLOOKUP(F2080,'Raw Data'!$I$4:$I$5000,'Raw Data'!$E$4:$E$5000,100,0)","v":100},{"$f":"IF(N2080=0,_xlfn.XLOOKUP(F2080,'Raw Data'!$I$4:$I$5000,'Raw Data'!$H$4:$H$5000,\"\",0),\"\")","v":""},{"$f":"IF(INDIRECT(M2080) = \"\",\"\",INDIRECT(M2080))","v":""},"n"]
["SUCMFORCURRDURMIS1",null,null,null,{"$f":"_xlfn.XLOOKUP(F2081,'Raw Data'!$I$4:$I$5000,'Raw Data'!$D$4:$D$5000,\"*** Mnemonic not found ***\",0)","v":"*** Mnemonic not found ***"},"SUCMFORCURRDURMIS1__",null,"Input",null,null,{"$f":"K2046","v":862},"I","Input!I862",{"$f":"_xlfn.XLOOKUP(F2081,'Raw Data'!$I$4:$I$5000,'Raw Data'!$E$4:$E$5000,100,0)","v":100},{"$f":"IF(N2081=0,_xlfn.XLOOKUP(F2081,'Raw Data'!$I$4:$I$5000,'Raw Data'!$H$4:$H$5000,\"\",0),\"\")","v":""},{"$f":"IF(INDIRECT(M2081) = \"\",\"\",INDIRECT(M2081))","v":""},"c"]
["SUCMFORCURRDURMIS2",null,null,null,{"$f":"_xlfn.XLOOKUP(F2082,'Raw Data'!$I$4:$I$5000,'Raw Data'!$D$4:$D$5000,\"*** Mnemonic not found ***\",0)","v":"*** Mnemonic not found ***"},"SUCMFORCURRDURMIS2__",null,"Input",null,null,863,"I","Input!I863",{"$f":"_xlfn.XLOOKUP(F2082,'Raw Data'!$I$4:$I$5000,'Raw Data'!$E$4:$E$5000,100,0)","v":100},{"$f":"IF(N2082=0,_xlfn.XLOOKUP(F2082,'Raw Data'!$I$4:$I$5000,'Raw Data'!$H$4:$H$5000,\"\",0),\"\")","v":""},{"$f":"IF(INDIRECT(M2082) = \"\",\"\",INDIRECT(M2082))","v":""},"c"]
["SUCMFORCURRDURMIS3",null,null,null,{"$f":"_xlfn.XLOOKUP(F2083,'Raw Data'!$I$4:$I$5000,'Raw Data'!$D$4:$D$5000,\"*** Mnemonic not found ***\",0)","v":"*** Mnemonic not found ***"},"SUCMFORCURRDURMIS3__",null,"Input",null,null,864,"I","Input!I864",{"$f":"_xlfn.XLOOKUP(F2083,'Raw Data'!$I$4:$I$5000,'Raw Data'!$E$4:$E$5000,100,0)","v":100},{"$f":"IF(N2083=0,_xlfn.XLOOKUP(F2083,'Raw Data'!$I$4:$I$5000,'Raw Data'!$H$4:$H$5000,\"\",0),\"\")","v":""},{"$f":"IF(INDIRECT(M2083) = \"\",\"\",INDIRECT(M2083))","v":""},"c"]
["SUCMFORCURRDURMIS4",null,null,null,{"$f":"_xlfn.XLOOKUP(F2084,'Raw Data'!$I$4:$I$5000,'Raw Data'!$D$4:$D$5000,\"*** Mnemonic not found ***\",0)","v":"*** Mnemonic not found ***"},"SUCMFORCURRDURMIS4__",null,"Input",null,null,865,"I","Input!I865",{"$f":"_xlfn.XLOOKUP(F2084,'Raw Data'!$I$4:$I$5000,'Raw Data'!$E$4:$E$5000,100,0)","v":100},{"$f":"IF(N2084=0,_xlfn.XLOOKUP(F2084,'Raw Data'!$I$4:$I$5000,'Raw Data'!$H$4:$H$5000,\"\",0),\"\")","v":""},{"$f":"IF(INDIRECT(M2084) = \"\",\"\",INDIRECT(M2084))","v":""},"c"]
["SUCMFORCURRDURMIS5",null,null,null,{"$f":"_xlfn.XLOOKUP(F2085,'Raw Data'!$I$4:$I$5000,'Raw Data'!$D$4:$D$5000,\"*** Mnemonic not found ***\",0)","v":"*** Mnemonic not found ***"},"SUCMFORCURRDURMIS5__",null,"Input",null,null,866,"I","Input!I866",{"$f":"_xlfn.XLOOKUP(F2085,'Raw Data'!$I$4:$I$5000,'Raw Data'!$E$4:$E$5000,100,0)","v":100},{"$f":"IF(N2085=0,_xlfn.XLOOKUP(F2085,'Raw Data'!$I$4:$I$5000,'Raw Data'!$H$4:$H$5000,\"\",0),\"\")","v":""},{"$f":"IF(INDIRECT(M2085) = \"\",\"\",INDIRECT(M2085))","v":""},"c"]
["SUCMFORCURRDURMIS6",null,null,null,{"$f":"_xlfn.XLOOKUP(F2086,'Raw Data'!$I$4:$I$5000,'Raw Data'!$D$4:$D$5000,\"*** Mnemonic not found ***\",0)","v":"*** Mnemonic not found ***"},"SUCMFORCURRDURMIS6__",null,"Input",null,null,867,"I","Input!I867",{"$f":"_xlfn.XLOOKUP(F2086,'Raw Data'!$I$4:$I$5000,'Raw Data'!$E$4:$E$5000,100,0)","v":100},{"$f":"IF(N2086=0,_xlfn.XLOOKUP(F2086,'Raw Data'!$I$4:$I$5000,'Raw Data'!$H$4:$H$5000,\"\",0),\"\")","v":""},{"$f":"IF(INDIRECT(M2086) = \"\",\"\",INDIRECT(M2086))","v":""},"c"]
["SUCMFORCURRDURMIS7",null,null,null,{"$f":"_xlfn.XLOOKUP(F2087,'Raw Data'!$I$4:$I$5000,'Raw Data'!$D$4:$D$5000,\"*** Mnemonic not found ***\",0)","v":"*** Mnemonic not found ***"},"SUCMFORCURRDURMIS7__",null,"Input",null,null,868,"I","Input!I868",{"$f":"_xlfn.XLOOKUP(F2087,'Raw Data'!$I$4:$I$5000,'Raw Data'!$E$4:$E$5000,100,0)","v":100},{"$f":"IF(N2087=0,_xlfn.XLOOKUP(F2087,'Raw Data'!$I$4:$I$5000,'Raw Data'!$H$4:$H$5000,\"\",0),\"\")","v":""},{"$f":"IF(INDIRECT(M2087) = \"\",\"\",INDIRECT(M2087))","v":""},"c"]
["SUCMFORCURRDURMIS8",null,null,null,{"$f":"_xlfn.XLOOKUP(F2088,'Raw Data'!$I$4:$I$5000,'Raw Data'!$D$4:$D$5000,\"*** Mnemonic not found ***\",0)","v":"*** Mnemonic not found ***"},"SUCMFORCURRDURMIS8__",null,"Input",null,null,869,"I","Input!I869",{"$f":"_xlfn.XLOOKUP(F2088,'Raw Data'!$I$4:$I$5000,'Raw Data'!$E$4:$E$5000,100,0)","v":100},{"$f":"IF(N2088=0,_xlfn.XLOOKUP(F2088,'Raw Data'!$I$4:$I$5000,'Raw Data'!$H$4:$H$5000,\"\",0),\"\")","v":""},{"$f":"IF(INDIRECT(M2088) = \"\",\"\",INDIRECT(M2088))","v":""},"c"]
["SUCMFORCURRDURMIS9",null,null,null,{"$f":"_xlfn.XLOOKUP(F2089,'Raw Data'!$I$4:$I$5000,'Raw Data'!$D$4:$D$5000,\"*** Mnemonic not found ***\",0)","v":"*** Mnemonic not found ***"},"SUCMFORCURRDURMIS9__",null,"Input",null,null,870,"I","Input!I870",{"$f":"_xlfn.XLOOKUP(F2089,'Raw Data'!$I$4:$I$5000,'Raw Data'!$E$4:$E$5000,100,0)","v":100},{"$f":"IF(N2089=0,_xlfn.XLOOKUP(F2089,'Raw Data'!$I$4:$I$5000,'Raw Data'!$H$4:$H$5000,\"\",0),\"\")","v":""},{"$f":"IF(INDIRECT(M2089) = \"\",\"\",INDIRECT(M2089))","v":""},"c"]
["SUCMFORCURRDURMIS10",null,null,null,{"$f":"_xlfn.XLOOKUP(F2090,'Raw Data'!$I$4:$I$5000,'Raw Data'!$D$4:$D$5000,\"*** Mnemonic not found ***\",0)","v":"*** Mnemonic not found ***"},"SUCMFORCURRDURMIS10__",null,"Input",null,null,871,"I","Input!I871",{"$f":"_xlfn.XLOOKUP(F2090,'Raw Data'!$I$4:$I$5000,'Raw Data'!$E$4:$E$5000,100,0)","v":100},{"$f":"IF(N2090=0,_xlfn.XLOOKUP(F2090,'Raw Data'!$I$4:$I$5000,'Raw Data'!$H$4:$H$5000,\"\",0),\"\")","v":""},{"$f":"IF(INDIRECT(M2090) = \"\",\"\",INDIRECT(M2090))","v":""},"c"]
["SUCMFORCURRDURMIS11",null,null,null,{"$f":"_xlfn.XLOOKUP(F2091,'Raw Data'!$I$4:$I$5000,'Raw Data'!$D$4:$D$5000,\"*** Mnemonic not found ***\",0)","v":"*** Mnemonic not found ***"},"SUCMFORCURRDURMIS11__",null,"Input",null,null,872,"I","Input!I872",{"$f":"_xlfn.XLOOKUP(F2091,'Raw Data'!$I$4:$I$5000,'Raw Data'!$E$4:$E$5000,100,0)","v":100},{"$f":"IF(N2091=0,_xlfn.XLOOKUP(F2091,'Raw Data'!$I$4:$I$5000,'Raw Data'!$H$4:$H$5000,\"\",0),\"\")","v":""},{"$f":"IF(INDIRECT(M2091) = \"\",\"\",INDIRECT(M2091))","v":""},"c"]
["SUCMFORCURRDURMIS12",null,null,null,{"$f":"_xlfn.XLOOKUP(F2092,'Raw Data'!$I$4:$I$5000,'Raw Data'!$D$4:$D$5000,\"*** Mnemonic not found ***\",0)","v":"*** Mnemonic not found ***"},"SUCMFORCURRDURMIS12__",null,"Input",null,null,873,"I","Input!I873",{"$f":"_xlfn.XLOOKUP(F2092,'Raw Data'!$I$4:$I$5000,'Raw Data'!$E$4:$E$5000,100,0)","v":100},{"$f":"IF(N2092=0,_xlfn.XLOOKUP(F2092,'Raw Data'!$I$4:$I$5000,'Raw Data'!$H$4:$H$5000,\"\",0),\"\")","v":""},{"$f":"IF(INDIRECT(M2092) = \"\",\"\",INDIRECT(M2092))","v":""},"c"]
["SUCMFORCURRDURMIS13",null,null,null,{"$f":"_xlfn.XLOOKUP(F2093,'Raw Data'!$I$4:$I$5000,'Raw Data'!$D$4:$D$5000,\"*** Mnemonic not found ***\",0)","v":"*** Mnemonic not found ***"},"SUCMFORCURRDURMIS13__",null,"Input",null,null,874,"I","Input!I874",{"$f":"_xlfn.XLOOKUP(F2093,'Raw Data'!$I$4:$I$5000,'Raw Data'!$E$4:$E$5000,100,0)","v":100},{"$f":"IF(N2093=0,_xlfn.XLOOKUP(F2093,'Raw Data'!$I$4:$I$5000,'Raw Data'!$H$4:$H$5000,\"\",0),\"\")","v":""},{"$f":"IF(INDIRECT(M2093) = \"\",\"\",INDIRECT(M2093))","v":""},"c"]
["SUCMFORCURRDURMIS14",null,null,null,{"$f":"_xlfn.XLOOKUP(F2094,'Raw Data'!$I$4:$I$5000,'Raw Data'!$D$4:$D$5000,\"*** Mnemonic not found ***\",0)","v":"*** Mnemonic not found ***"},"SUCMFORCURRDURMIS14__",null,"Input",null,null,875,"I","Input!I875",{"$f":"_xlfn.XLOOKUP(F2094,'Raw Data'!$I$4:$I$5000,'Raw Data'!$E$4:$E$5000,100,0)","v":100},{"$f":"IF(N2094=0,_xlfn.XLOOKUP(F2094,'Raw Data'!$I$4:$I$5000,'Raw Data'!$H$4:$H$5000,\"\",0),\"\")","v":""},{"$f":"IF(INDIRECT(M2094) = \"\",\"\",INDIRECT(M2094))","v":""},"c"]
["SUCMFORCURRDURMIS15",null,null,null,{"$f":"_xlfn.XLOOKUP(F2095,'Raw Data'!$I$4:$I$5000,'Raw Data'!$D$4:$D$5000,\"*** Mnemonic not found ***\",0)","v":"*** Mnemonic not found ***"},"SUCMFORCURRDURMIS15__",null,"Input",null,null,876,"I",{"$f":"CONCATENATE(H2095,\"!\",L2095,K2095)","v":"Input!I876"},{"$f":"_xlfn.XLOOKUP(F2095,'Raw Data'!$I$4:$I$5000,'Raw Data'!$E$4:$E$5000,100,0)","v":100},{"$f":"IF(N2095=0,_xlfn.XLOOKUP(F2095,'Raw Data'!$I$4:$I$5000,'Raw Data'!$H$4:$H$5000,\"\",0),\"\")","v":""},{"$f":"IF(INDIRECT(M2095) = \"\",\"\",INDIRECT(M2095))","v":""},"c"]
["SUCMFORCURRDURMIS16",null,null,null,{"$f":"_xlfn.XLOOKUP(F2096,'Raw Data'!$I$4:$I$5000,'Raw Data'!$D$4:$D$5000,\"*** Mnemonic not found ***\",0)","v":"*** Mnemonic not found ***"},"SUCMFORCURRDURMIS16__",null,"Input",null,null,877,"I","Input!I877",{"$f":"_xlfn.XLOOKUP(F2096,'Raw Data'!$I$4:$I$5000,'Raw Data'!$E$4:$E$5000,100,0)","v":100},{"$f":"IF(N2096=0,_xlfn.XLOOKUP(F2096,'Raw Data'!$I$4:$I$5000,'Raw Data'!$H$4:$H$5000,\"\",0),\"\")","v":""},{"$f":"IF(INDIRECT(M2096) = \"\",\"\",INDIRECT(M2096))","v":""},"c"]
["SUCMFORCURRDURMIS17",null,null,null,{"$f":"_xlfn.XLOOKUP(F2097,'Raw Data'!$I$4:$I$5000,'Raw Data'!$D$4:$D$5000,\"*** Mnemonic not found ***\",0)","v":"*** Mnemonic not found ***"},"SUCMFORCURRDURMIS17__",null,"Input",null,null,878,"I","Input!I878",{"$f":"_xlfn.XLOOKUP(F2097,'Raw Data'!$I$4:$I$5000,'Raw Data'!$E$4:$E$5000,100,0)","v":100},{"$f":"IF(N2097=0,_xlfn.XLOOKUP(F2097,'Raw Data'!$I$4:$I$5000,'Raw Data'!$H$4:$H$5000,\"\",0),\"\")","v":""},{"$f":"IF(INDIRECT(M2097) = \"\",\"\",INDIRECT(M2097))","v":""},"c"]
["SUCMFORCURRDURMIS18",null,null,null,{"$f":"_xlfn.XLOOKUP(F2098,'Raw Data'!$I$4:$I$5000,'Raw Data'!$D$4:$D$5000,\"*** Mnemonic not found ***\",0)","v":"*** Mnemonic not found ***"},"SUCMFORCURRDURMIS18__",null,"Input",null,null,879,"I","Input!I879",{"$f":"_xlfn.XLOOKUP(F2098,'Raw Data'!$I$4:$I$5000,'Raw Data'!$E$4:$E$5000,100,0)","v":100},{"$f":"IF(N2098=0,_xlfn.XLOOKUP(F2098,'Raw Data'!$I$4:$I$5000,'Raw Data'!$H$4:$H$5000,\"\",0),\"\")","v":""},{"$f":"IF(INDIRECT(M2098) = \"\",\"\",INDIRECT(M2098))","v":""},"c"]
["SUCMFORCURRDURMIS19",null,null,null,{"$f":"_xlfn.XLOOKUP(F2099,'Raw Data'!$I$4:$I$5000,'Raw Data'!$D$4:$D$5000,\"*** Mnemonic not found ***\",0)","v":"*** Mnemonic not found ***"},"SUCMFORCURRDURMIS19__",null,"Input",null,null,880,"I","Input!I880",{"$f":"_xlfn.XLOOKUP(F2099,'Raw Data'!$I$4:$I$5000,'Raw Data'!$E$4:$E$5000,100,0)","v":100},{"$f":"IF(N2099=0,_xlfn.XLOOKUP(F2099,'Raw Data'!$I$4:$I$5000,'Raw Data'!$H$4:$H$5000,\"\",0),\"\")","v":""},{"$f":"IF(INDIRECT(M2099) = \"\",\"\",INDIRECT(M2099))","v":""},"c"]
["SUCMFORCURRDURMIS20",null,null,null,{"$f":"_xlfn.XLOOKUP(F2100,'Raw Data'!$I$4:$I$5000,'Raw Data'!$D$4:$D$5000,\"*** Mnemonic not found ***\",0)","v":"*** Mnemonic not found ***"},"SUCMFORCURRDURMIS20__",null,"Input",null,null,881,"I","Input!I881",{"$f":"_xlfn.XLOOKUP(F2100,'Raw Data'!$I$4:$I$5000,'Raw Data'!$E$4:$E$5000,100,0)","v":100},{"$f":"IF(N2100=0,_xlfn.XLOOKUP(F2100,'Raw Data'!$I$4:$I$5000,'Raw Data'!$H$4:$H$5000,\"\",0),\"\")","v":""},{"$f":"IF(INDIRECT(M2100) = \"\",\"\",INDIRECT(M2100))","v":""},"c"]
["SUCMFORCURRDURMIS21",null,null,null,{"$f":"_xlfn.XLOOKUP(F2101,'Raw Data'!$I$4:$I$5000,'Raw Data'!$D$4:$D$5000,\"*** Mnemonic not found ***\",0)","v":"*** Mnemonic not found ***"},"SUCMFORCURRDURMIS21__",null,"Input",null,null,882,"I","Input!I882",{"$f":"_xlfn.XLOOKUP(F2101,'Raw Data'!$I$4:$I$5000,'Raw Data'!$E$4:$E$5000,100,0)","v":100},{"$f":"IF(N2101=0,_xlfn.XLOOKUP(F2101,'Raw Data'!$I$4:$I$5000,'Raw Data'!$H$4:$H$5000,\"\",0),\"\")","v":""},{"$f":"IF(INDIRECT(M2101) = \"\",\"\",INDIRECT(M2101))","v":""},"c"]
["SUCMFORCURRDURMIS22",null,null,null,{"$f":"_xlfn.XLOOKUP(F2102,'Raw Data'!$I$4:$I$5000,'Raw Data'!$D$4:$D$5000,\"*** Mnemonic not found ***\",0)","v":"*** Mnemonic not found ***"},"SUCMFORCURRDURMIS22__",null,"Input",null,null,883,"I","Input!I883",{"$f":"_xlfn.XLOOKUP(F2102,'Raw Data'!$I$4:$I$5000,'Raw Data'!$E$4:$E$5000,100,0)","v":100},{"$f":"IF(N2102=0,_xlfn.XLOOKUP(F2102,'Raw Data'!$I$4:$I$5000,'Raw Data'!$H$4:$H$5000,\"\",0),\"\")","v":""},{"$f":"IF(INDIRECT(M2102) = \"\",\"\",INDIRECT(M2102))","v":""},"c"]
["SUCMFORCURRDURMIS23",null,null,null,{"$f":"_xlfn.XLOOKUP(F2103,'Raw Data'!$I$4:$I$5000,'Raw Data'!$D$4:$D$5000,\"*** Mnemonic not found ***\",0)","v":"*** Mnemonic not found ***"},"SUCMFORCURRDURMIS23__",null,"Input",null,null,884,"I","Input!I884",{"$f":"_xlfn.XLOOKUP(F2103,'Raw Data'!$I$4:$I$5000,'Raw Data'!$E$4:$E$5000,100,0)","v":100},{"$f":"IF(N2103=0,_xlfn.XLOOKUP(F2103,'Raw Data'!$I$4:$I$5000,'Raw Data'!$H$4:$H$5000,\"\",0),\"\")","v":""},{"$f":"IF(INDIRECT(M2103) = \"\",\"\",INDIRECT(M2103))","v":""},"c"]
["SUCMFORCURRDURMIS24",null,null,null,{"$f":"_xlfn.XLOOKUP(F2104,'Raw Data'!$I$4:$I$5000,'Raw Data'!$D$4:$D$5000,\"*** Mnemonic not found ***\",0)","v":"*** Mnemonic not found ***"},"SUCMFORCURRDURMIS24__",null,"Input",null,null,885,"I","Input!I885",{"$f":"_xlfn.XLOOKUP(F2104,'Raw Data'!$I$4:$I$5000,'Raw Data'!$E$4:$E$5000,100,0)","v":100},{"$f":"IF(N2104=0,_xlfn.XLOOKUP(F2104,'Raw Data'!$I$4:$I$5000,'Raw Data'!$H$4:$H$5000,\"\",0),\"\")","v":""},{"$f":"IF(INDIRECT(M2104) = \"\",\"\",INDIRECT(M2104))","v":""},"c"]
["SUCMFORCURRDURMIS25",null,null,null,{"$f":"_xlfn.XLOOKUP(F2105,'Raw Data'!$I$4:$I$5000,'Raw Data'!$D$4:$D$5000,\"*** Mnemonic not found ***\",0)","v":"*** Mnemonic not found ***"},"SUCMFORCURRDURMIS25__",null,"Input",null,null,886,"I","Input!I886",{"$f":"_xlfn.XLOOKUP(F2105,'Raw Data'!$I$4:$I$5000,'Raw Data'!$E$4:$E$5000,100,0)","v":100},{"$f":"IF(N2105=0,_xlfn.XLOOKUP(F2105,'Raw Data'!$I$4:$I$5000,'Raw Data'!$H$4:$H$5000,\"\",0),\"\")","v":""},{"$f":"IF(INDIRECT(M2105) = \"\",\"\",INDIRECT(M2105))","v":""},"c"]
["SUCMFORCURRDURMIS26",null,null,null,{"$f":"_xlfn.XLOOKUP(F2106,'Raw Data'!$I$4:$I$5000,'Raw Data'!$D$4:$D$5000,\"*** Mnemonic not found ***\",0)","v":"*** Mnemonic not found ***"},"SUCMFORCURRDURMIS26__",null,"Input",null,null,887,"I","Input!I887",{"$f":"_xlfn.XLOOKUP(F2106,'Raw Data'!$I$4:$I$5000,'Raw Data'!$E$4:$E$5000,100,0)","v":100},{"$f":"IF(N2106=0,_xlfn.XLOOKUP(F2106,'Raw Data'!$I$4:$I$5000,'Raw Data'!$H$4:$H$5000,\"\",0),\"\")","v":""},{"$f":"IF(INDIRECT(M2106) = \"\",\"\",INDIRECT(M2106))","v":""},"c"]
["SUCMFORCURRDURMIS27",null,null,null,{"$f":"_xlfn.XLOOKUP(F2107,'Raw Data'!$I$4:$I$5000,'Raw Data'!$D$4:$D$5000,\"*** Mnemonic not found ***\",0)","v":"*** Mnemonic not found ***"},"SUCMFORCURRDURMIS27__",null,"Input",null,null,888,"I","Input!I888",{"$f":"_xlfn.XLOOKUP(F2107,'Raw Data'!$I$4:$I$5000,'Raw Data'!$E$4:$E$5000,100,0)","v":100},{"$f":"IF(N2107=0,_xlfn.XLOOKUP(F2107,'Raw Data'!$I$4:$I$5000,'Raw Data'!$H$4:$H$5000,\"\",0),\"\")","v":""},{"$f":"IF(INDIRECT(M2107) = \"\",\"\",INDIRECT(M2107))","v":""},"c"]
["SUCMFORCURRDURMIS28",null,null,null,{"$f":"_xlfn.XLOOKUP(F2108,'Raw Data'!$I$4:$I$5000,'Raw Data'!$D$4:$D$5000,\"*** Mnemonic not found ***\",0)","v":"*** Mnemonic not found ***"},"SUCMFORCURRDURMIS28__",null,"Input",null,null,889,"I","Input!I889",{"$f":"_xlfn.XLOOKUP(F2108,'Raw Data'!$I$4:$I$5000,'Raw Data'!$E$4:$E$5000,100,0)","v":100},{"$f":"IF(N2108=0,_xlfn.XLOOKUP(F2108,'Raw Data'!$I$4:$I$5000,'Raw Data'!$H$4:$H$5000,\"\",0),\"\")","v":""},{"$f":"IF(INDIRECT(M2108) = \"\",\"\",INDIRECT(M2108))","v":""},"c"]
["SUCMFORCURRDURMIS29",null,null,null,{"$f":"_xlfn.XLOOKUP(F2109,'Raw Data'!$I$4:$I$5000,'Raw Data'!$D$4:$D$5000,\"*** Mnemonic not found ***\",0)","v":"*** Mnemonic not found ***"},"SUCMFORCURRDURMIS29__",null,"Input",null,null,890,"I","Input!I890",{"$f":"_xlfn.XLOOKUP(F2109,'Raw Data'!$I$4:$I$5000,'Raw Data'!$E$4:$E$5000,100,0)","v":100},{"$f":"IF(N2109=0,_xlfn.XLOOKUP(F2109,'Raw Data'!$I$4:$I$5000,'Raw Data'!$H$4:$H$5000,\"\",0),\"\")","v":""},{"$f":"IF(INDIRECT(M2109) = \"\",\"\",INDIRECT(M2109))","v":""},"c"]
["SUCMFORCURRDURMIS30",null,null,null,{"$f":"_xlfn.XLOOKUP(F2110,'Raw Data'!$I$4:$I$5000,'Raw Data'!$D$4:$D$5000,\"*** Mnemonic not found ***\",0)","v":"*** Mnemonic not found ***"},"SUCMFORCURRDURMIS30__",null,"Input",null,null,891,"I","Input!I891",{"$f":"_xlfn.XLOOKUP(F2110,'Raw Data'!$I$4:$I$5000,'Raw Data'!$E$4:$E$5000,100,0)","v":100},{"$f":"IF(N2110=0,_xlfn.XLOOKUP(F2110,'Raw Data'!$I$4:$I$5000,'Raw Data'!$H$4:$H$5000,\"\",0),\"\")","v":""},{"$f":"IF(INDIRECT(M2110) = \"\",\"\",INDIRECT(M2110))","v":""},"c"]
["SUCMFORCURRDURMIS31",null,null,null,{"$f":"_xlfn.XLOOKUP(F2111,'Raw Data'!$I$4:$I$5000,'Raw Data'!$D$4:$D$5000,\"*** Mnemonic not found ***\",0)","v":"*** Mnemonic not found ***"},"SUCMFORCURRDURMIS31__",null,"Input",null,null,892,"I","Input!I892",{"$f":"_xlfn.XLOOKUP(F2111,'Raw Data'!$I$4:$I$5000,'Raw Data'!$E$4:$E$5000,100,0)","v":100},{"$f":"IF(N2111=0,_xlfn.XLOOKUP(F2111,'Raw Data'!$I$4:$I$5000,'Raw Data'!$H$4:$H$5000,\"\",0),\"\")","v":""},{"$f":"IF(INDIRECT(M2111) = \"\",\"\",INDIRECT(M2111))","v":""},"c"]
["SUCMFORCURRDURMIS32",null,null,null,{"$f":"_xlfn.XLOOKUP(F2112,'Raw Data'!$I$4:$I$5000,'Raw Data'!$D$4:$D$5000,\"*** Mnemonic not found ***\",0)","v":"*** Mnemonic not found ***"},"SUCMFORCURRDURMIS32__",null,"Input",null,null,893,"I","Input!I893",{"$f":"_xlfn.XLOOKUP(F2112,'Raw Data'!$I$4:$I$5000,'Raw Data'!$E$4:$E$5000,100,0)","v":100},{"$f":"IF(N2112=0,_xlfn.XLOOKUP(F2112,'Raw Data'!$I$4:$I$5000,'Raw Data'!$H$4:$H$5000,\"\",0),\"\")","v":""},{"$f":"IF(INDIRECT(M2112) = \"\",\"\",INDIRECT(M2112))","v":""},"c"]
["SUCMFORCURRDURMIS33",null,null,null,{"$f":"_xlfn.XLOOKUP(F2113,'Raw Data'!$I$4:$I$5000,'Raw Data'!$D$4:$D$5000,\"*** Mnemonic not found ***\",0)","v":"*** Mnemonic not found ***"},"SUCMFORCURRDURMIS33__",null,"Input",null,null,894,"I","Input!I894",{"$f":"_xlfn.XLOOKUP(F2113,'Raw Data'!$I$4:$I$5000,'Raw Data'!$E$4:$E$5000,100,0)","v":100},{"$f":"IF(N2113=0,_xlfn.XLOOKUP(F2113,'Raw Data'!$I$4:$I$5000,'Raw Data'!$H$4:$H$5000,\"\",0),\"\")","v":""},{"$f":"IF(INDIRECT(M2113) = \"\",\"\",INDIRECT(M2113))","v":""},"c"]
["SUCMFORCURRDURMIS34",null,null,null,{"$f":"_xlfn.XLOOKUP(F2114,'Raw Data'!$I$4:$I$5000,'Raw Data'!$D$4:$D$5000,\"*** Mnemonic not found ***\",0)","v":"*** Mnemonic not found ***"},"SUCMFORCURRDURMIS34__",null,"Input",null,null,895,"I","Input!I895",{"$f":"_xlfn.XLOOKUP(F2114,'Raw Data'!$I$4:$I$5000,'Raw Data'!$E$4:$E$5000,100,0)","v":100},{"$f":"IF(N2114=0,_xlfn.XLOOKUP(F2114,'Raw Data'!$I$4:$I$5000,'Raw Data'!$H$4:$H$5000,\"\",0),\"\")","v":""},{"$f":"IF(INDIRECT(M2114) = \"\",\"\",INDIRECT(M2114))","v":""},"c"]
["SUCMFORCURRDURMIS35",null,null,null,{"$f":"_xlfn.XLOOKUP(F2115,'Raw Data'!$I$4:$I$5000,'Raw Data'!$D$4:$D$5000,\"*** Mnemonic not found ***\",0)","v":"*** Mnemonic not found ***"},"SUCMFORCURRDURMIS35__",null,"Input",null,null,896,"I","Input!I896",{"$f":"_xlfn.XLOOKUP(F2115,'Raw Data'!$I$4:$I$5000,'Raw Data'!$E$4:$E$5000,100,0)","v":100},{"$f":"IF(N2115=0,_xlfn.XLOOKUP(F2115,'Raw Data'!$I$4:$I$5000,'Raw Data'!$H$4:$H$5000,\"\",0),\"\")","v":""},{"$f":"IF(INDIRECT(M2115) = \"\",\"\",INDIRECT(M2115))","v":""},"c"]
["SUCMAIREGSOLVRATIO",null,null,null,{"$f":"_xlfn.XLOOKUP(F2116,'Raw Data'!$I$4:$I$5000,'Raw Data'!$D$4:$D$5000,\"*** Mnemonic not found ***\",0)","v":"*** Mnemonic not found ***"},"SUCMAIREGSOLVRATIO__","Additional Information","Input",{"$f":"ROW(section_additional_information)","v":899},2,{"$f":"I2116+J2116","v":901},"F",{"$f":"CONCATENATE(H2116,\"!\",L2116,K2116)","v":"Input!F901"},{"$f":"_xlfn.XLOOKUP(F2116,'Raw Data'!$I$4:$I$5000,'Raw Data'!$E$4:$E$5000,100,0)","v":100},{"$f":"IF(N2116=0,_xlfn.XLOOKUP(F2116,'Raw Data'!$I$4:$I$5000,'Raw Data'!$H$4:$H$5000,\"\",0),\"\")","v":""},{"$f":"IF(INDIRECT(M2116) = \"\",\"\",INDIRECT(M2116))","v":""},"n"]
["SUCMAIASOF",null,null,null,{"$f":"_xlfn.XLOOKUP(F2117,'Raw Data'!$I$4:$I$5000,'Raw Data'!$D$4:$D$5000,\"*** Mnemonic not found ***\",0)","v":"*** Mnemonic not found ***"},"SUCMAIASOF__",null,"Input",null,null,{"$f":"K2116","v":901},"H","Input!H901",{"$f":"_xlfn.XLOOKUP(F2117,'Raw Data'!$I$4:$I$5000,'Raw Data'!$E$4:$E$5000,100,0)","v":100},{"$f":"IF(N2117=0,_xlfn.XLOOKUP(F2117,'Raw Data'!$I$4:$I$5000,'Raw Data'!$H$4:$H$5000,\"\",0),\"\")","v":""},{"$f":"IF(INDIRECT(M2117) = \"\",\"\",INDIRECT(M2117))","v":""},"c"]
["SUCMAINONLIFEDAC",null,null,null,{"$f":"_xlfn.XLOOKUP(F2118,'Raw Data'!$I$4:$I$5000,'Raw Data'!$D$4:$D$5000,\"*** Mnemonic not found ***\",0)","v":"*** Mnemonic not found ***"},"SUCMAINONLIFEDAC__",null,"Input",null,null,{"$f":"K2117+1","v":902},{"$f":"L2116","v":"F"},"Input!F902",{"$f":"_xlfn.XLOOKUP(F2118,'Raw Data'!$I$4:$I$5000,'Raw Data'!$E$4:$E$5000,100,0)","v":100},{"$f":"IF(N2118=0,_xlfn.XLOOKUP(F2118,'Raw Data'!$I$4:$I$5000,'Raw Data'!$H$4:$H$5000,\"\",0),\"\")","v":""},{"$f":"IF(INDIRECT(M2118) = \"\",\"\",INDIRECT(M2118))","v":""},"n"]
["SUCMAINETUPR",null,null,null,{"$f":"_xlfn.XLOOKUP(F2119,'Raw Data'!$I$4:$I$5000,'Raw Data'!$D$4:$D$5000,\"*** Mnemonic not found ***\",0)","v":"*** Mnemonic not found ***"},"SUCMAINETUPR__",null,"Input",null,null,{"$f":"K2118+1","v":903},{"$f":"L2116","v":"F"},{"$f":"CONCATENATE(H2119,\"!\",L2119,K2119)","v":"Input!F903"},{"$f":"_xlfn.XLOOKUP(F2119,'Raw Data'!$I$4:$I$5000,'Raw Data'!$E$4:$E$5000,100,0)","v":100},{"$f":"IF(N2119=0,_xlfn.XLOOKUP(F2119,'Raw Data'!$I$4:$I$5000,'Raw Data'!$H$4:$H$5000,\"\",0),\"\")","v":""},{"$f":"IF(INDIRECT(M2119) = \"\",\"\",INDIRECT(M2119))","v":""},"n"]
["ADJCAPCOMCAT1",null,null,null,{"$f":"_xlfn.XLOOKUP(F2120,'Raw Data'!$I$4:$I$5000,'Raw Data'!$D$4:$D$5000,\"*** Mnemonic not found ***\",0)","v":"*** Mnemonic not found ***"},"ADJCAPCOMCAT1__","Adjustments - Required Capital","Adjustment",{"$f":"ROW(section_adj_req_capital)","v":2},3,{"$f":"I2120+J2120","v":5},"D","Adjustment!D5",{"$f":"_xlfn.XLOOKUP(F2120,'Raw Data'!$I$4:$I$5000,'Raw Data'!$E$4:$E$5000,100,0)","v":100},{"$f":"IF(N2120=0,_xlfn.XLOOKUP(F2120,'Raw Data'!$I$4:$I$5000,'Raw Data'!$H$4:$H$5000,\"\",0),\"\")","v":""},{"$f":"IF(INDIRECT(M2120) = \"\",\"\",INDIRECT(M2120))","v":""},"c"]
["ADJCAPCOMCAT2",null,null,null,{"$f":"_xlfn.XLOOKUP(F2121,'Raw Data'!$I$4:$I$5000,'Raw Data'!$D$4:$D$5000,\"*** Mnemonic not found ***\",0)","v":"*** Mnemonic not found ***"},"ADJCAPCOMCAT2__",null,"Adjustment",null,null,{"$f":"K2120+1","v":6},{"$f":"L2120","v":"D"},"Adjustment!D6",{"$f":"_xlfn.XLOOKUP(F2121,'Raw Data'!$I$4:$I$5000,'Raw Data'!$E$4:$E$5000,100,0)","v":100},{"$f":"IF(N2121=0,_xlfn.XLOOKUP(F2121,'Raw Data'!$I$4:$I$5000,'Raw Data'!$H$4:$H$5000,\"\",0),\"\")","v":""},{"$f":"IF(INDIRECT(M2121) = \"\",\"\",INDIRECT(M2121))","v":""},"c"]
["ADJCAPCOMCAT3",null,null,null,{"$f":"_xlfn.XLOOKUP(F2122,'Raw Data'!$I$4:$I$5000,'Raw Data'!$D$4:$D$5000,\"*** Mnemonic not found ***\",0)","v":"*** Mnemonic not found ***"},"ADJCAPCOMCAT3__",null,"Adjustment",null,null,{"$f":"K2121+1","v":7},{"$f":"L2121","v":"D"},"Adjustment!D7",{"$f":"_xlfn.XLOOKUP(F2122,'Raw Data'!$I$4:$I$5000,'Raw Data'!$E$4:$E$5000,100,0)","v":100},{"$f":"IF(N2122=0,_xlfn.XLOOKUP(F2122,'Raw Data'!$I$4:$I$5000,'Raw Data'!$H$4:$H$5000,\"\",0),\"\")","v":""},{"$f":"IF(INDIRECT(M2122) = \"\",\"\",INDIRECT(M2122))","v":""},"c"]
["ADJCAPCOMCAT4",null,null,null,{"$f":"_xlfn.XLOOKUP(F2123,'Raw Data'!$I$4:$I$5000,'Raw Data'!$D$4:$D$5000,\"*** Mnemonic not found ***\",0)","v":"*** Mnemonic not found ***"},"ADJCAPCOMCAT4__",null,"Adjustment",null,null,8,"D","Adjustment!D8",{"$f":"_xlfn.XLOOKUP(F2123,'Raw Data'!$I$4:$I$5000,'Raw Data'!$E$4:$E$5000,100,0)","v":100},{"$f":"IF(N2123=0,_xlfn.XLOOKUP(F2123,'Raw Data'!$I$4:$I$5000,'Raw Data'!$H$4:$H$5000,\"\",0),\"\")","v":""},{"$f":"IF(INDIRECT(M2123) = \"\",\"\",INDIRECT(M2123))","v":""},"c"]
["ADJCAPCOMCAT5",null,null,null,{"$f":"_xlfn.XLOOKUP(F2124,'Raw Data'!$I$4:$I$5000,'Raw Data'!$D$4:$D$5000,\"*** Mnemonic not found ***\",0)","v":"*** Mnemonic not found ***"},"ADJCAPCOMCAT5__",null,"Adjustment",null,null,9,"D","Adjustment!D9",{"$f":"_xlfn.XLOOKUP(F2124,'Raw Data'!$I$4:$I$5000,'Raw Data'!$E$4:$E$5000,100,0)","v":100},{"$f":"IF(N2124=0,_xlfn.XLOOKUP(F2124,'Raw Data'!$I$4:$I$5000,'Raw Data'!$H$4:$H$5000,\"\",0),\"\")","v":""},{"$f":"IF(INDIRECT(M2124) = \"\",\"\",INDIRECT(M2124))","v":""},"c"]
["ADJCAPCOMCAT6",null,null,null,{"$f":"_xlfn.XLOOKUP(F2125,'Raw Data'!$I$4:$I$5000,'Raw Data'!$D$4:$D$5000,\"*** Mnemonic not found ***\",0)","v":"*** Mnemonic not found ***"},{"$f":"CONCATENATE(A2125,\"_\",B2125,\"_\",D2125)","v":"ADJCAPCOMCAT6__"},null,"Adjustment",null,null,10,"D","Adjustment!D10",{"$f":"_xlfn.XLOOKUP(F2125,'Raw Data'!$I$4:$I$5000,'Raw Data'!$E$4:$E$5000,100,0)","v":100},{"$f":"IF(N2125=0,_xlfn.XLOOKUP(F2125,'Raw Data'!$I$4:$I$5000,'Raw Data'!$H$4:$H$5000,\"\",0),\"\")","v":""},{"$f":"IF(INDIRECT(M2125) = \"\",\"\",INDIRECT(M2125))","v":""},"c"]
["ADJCAPCOMCAT7",null,null,null,{"$f":"_xlfn.XLOOKUP(F2126,'Raw Data'!$I$4:$I$5000,'Raw Data'!$D$4:$D$5000,\"*** Mnemonic not found ***\",0)","v":"*** Mnemonic not found ***"},"ADJCAPCOMCAT7__",null,"Adjustment",null,null,11,"D","Adjustment!D11",{"$f":"_xlfn.XLOOKUP(F2126,'Raw Data'!$I$4:$I$5000,'Raw Data'!$E$4:$E$5000,100,0)","v":100},{"$f":"IF(N2126=0,_xlfn.XLOOKUP(F2126,'Raw Data'!$I$4:$I$5000,'Raw Data'!$H$4:$H$5000,\"\",0),\"\")","v":""},{"$f":"IF(INDIRECT(M2126) = \"\",\"\",INDIRECT(M2126))","v":""},"c"]
["ADJCAPCOMCAT8",null,null,null,{"$f":"_xlfn.XLOOKUP(F2127,'Raw Data'!$I$4:$I$5000,'Raw Data'!$D$4:$D$5000,\"*** Mnemonic not found ***\",0)","v":"*** Mnemonic not found ***"},"ADJCAPCOMCAT8__",null,"Adjustment",null,null,12,"D","Adjustment!D12",{"$f":"_xlfn.XLOOKUP(F2127,'Raw Data'!$I$4:$I$5000,'Raw Data'!$E$4:$E$5000,100,0)","v":100},{"$f":"IF(N2127=0,_xlfn.XLOOKUP(F2127,'Raw Data'!$I$4:$I$5000,'Raw Data'!$H$4:$H$5000,\"\",0),\"\")","v":""},{"$f":"IF(INDIRECT(M2127) = \"\",\"\",INDIRECT(M2127))","v":""},"c"]
["ADJCAPCOMCAT9",null,null,null,{"$f":"_xlfn.XLOOKUP(F2128,'Raw Data'!$I$4:$I$5000,'Raw Data'!$D$4:$D$5000,\"*** Mnemonic not found ***\",0)","v":"*** Mnemonic not found ***"},"ADJCAPCOMCAT9__",null,"Adjustment",null,null,13,"D","Adjustment!D13",{"$f":"_xlfn.XLOOKUP(F2128,'Raw Data'!$I$4:$I$5000,'Raw Data'!$E$4:$E$5000,100,0)","v":100},{"$f":"IF(N2128=0,_xlfn.XLOOKUP(F2128,'Raw Data'!$I$4:$I$5000,'Raw Data'!$H$4:$H$5000,\"\",0),\"\")","v":""},{"$f":"IF(INDIRECT(M2128) = \"\",\"\",INDIRECT(M2128))","v":""},"c"]
["ADJCAPCOMCAT10",null,null,null,{"$f":"_xlfn.XLOOKUP(F2129,'Raw Data'!$I$4:$I$5000,'Raw Data'!$D$4:$D$5000,\"*** Mnemonic not found ***\",0)","v":"*** Mnemonic not found ***"},"ADJCAPCOMCAT10__",null,"Adjustment",null,null,14,"D","Adjustment!D14",{"$f":"_xlfn.XLOOKUP(F2129,'Raw Data'!$I$4:$I$5000,'Raw Data'!$E$4:$E$5000,100,0)","v":100},{"$f":"IF(N2129=0,_xlfn.XLOOKUP(F2129,'Raw Data'!$I$4:$I$5000,'Raw Data'!$H$4:$H$5000,\"\",0),\"\")","v":""},{"$f":"IF(INDIRECT(M2129) = \"\",\"\",INDIRECT(M2129))","v":""},"c"]
["ADJCAPCOMCAT11",null,null,null,{"$f":"_xlfn.XLOOKUP(F2130,'Raw Data'!$I$4:$I$5000,'Raw Data'!$D$4:$D$5000,\"*** Mnemonic not found ***\",0)","v":"*** Mnemonic not found ***"},"ADJCAPCOMCAT11__",null,"Adjustment",null,null,15,"D","Adjustment!D15",{"$f":"_xlfn.XLOOKUP(F2130,'Raw Data'!$I$4:$I$5000,'Raw Data'!$E$4:$E$5000,100,0)","v":100},{"$f":"IF(N2130=0,_xlfn.XLOOKUP(F2130,'Raw Data'!$I$4:$I$5000,'Raw Data'!$H$4:$H$5000,\"\",0),\"\")","v":""},{"$f":"IF(INDIRECT(M2130) = \"\",\"\",INDIRECT(M2130))","v":""},"c"]
["ADJCAPCOMCAT12",null,null,null,{"$f":"_xlfn.XLOOKUP(F2131,'Raw Data'!$I$4:$I$5000,'Raw Data'!$D$4:$D$5000,\"*** Mnemonic not found ***\",0)","v":"*** Mnemonic not found ***"},"ADJCAPCOMCAT12__",null,"Adjustment",null,null,16,"D","Adjustment!D16",{"$f":"_xlfn.XLOOKUP(F2131,'Raw Data'!$I$4:$I$5000,'Raw Data'!$E$4:$E$5000,100,0)","v":100},{"$f":"IF(N2131=0,_xlfn.XLOOKUP(F2131,'Raw Data'!$I$4:$I$5000,'Raw Data'!$H$4:$H$5000,\"\",0),\"\")","v":""},{"$f":"IF(INDIRECT(M2131) = \"\",\"\",INDIRECT(M2131))","v":""},"c"]
["ADJCAPCOMCAT13",null,null,null,{"$f":"_xlfn.XLOOKUP(F2132,'Raw Data'!$I$4:$I$5000,'Raw Data'!$D$4:$D$5000,\"*** Mnemonic not found ***\",0)","v":"*** Mnemonic not found ***"},"ADJCAPCOMCAT13__",null,"Adjustment",null,null,17,"D","Adjustment!D17",{"$f":"_xlfn.XLOOKUP(F2132,'Raw Data'!$I$4:$I$5000,'Raw Data'!$E$4:$E$5000,100,0)","v":100},{"$f":"IF(N2132=0,_xlfn.XLOOKUP(F2132,'Raw Data'!$I$4:$I$5000,'Raw Data'!$H$4:$H$5000,\"\",0),\"\")","v":""},{"$f":"IF(INDIRECT(M2132) = \"\",\"\",INDIRECT(M2132))","v":""},"c"]
["ADJCAPCOMCAT14",null,null,null,{"$f":"_xlfn.XLOOKUP(F2133,'Raw Data'!$I$4:$I$5000,'Raw Data'!$D$4:$D$5000,\"*** Mnemonic not found ***\",0)","v":"*** Mnemonic not found ***"},"ADJCAPCOMCAT14__",null,"Adjustment",null,null,18,"D","Adjustment!D18",{"$f":"_xlfn.XLOOKUP(F2133,'Raw Data'!$I$4:$I$5000,'Raw Data'!$E$4:$E$5000,100,0)","v":100},{"$f":"IF(N2133=0,_xlfn.XLOOKUP(F2133,'Raw Data'!$I$4:$I$5000,'Raw Data'!$H$4:$H$5000,\"\",0),\"\")","v":""},{"$f":"IF(INDIRECT(M2133) = \"\",\"\",INDIRECT(M2133))","v":""},"c"]
["ADJCAPCOMCAT15",null,null,null,{"$f":"_xlfn.XLOOKUP(F2134,'Raw Data'!$I$4:$I$5000,'Raw Data'!$D$4:$D$5000,\"*** Mnemonic not found ***\",0)","v":"*** Mnemonic not found ***"},"ADJCAPCOMCAT15__",null,"Adjustment",null,null,19,"D","Adjustment!D19",{"$f":"_xlfn.XLOOKUP(F2134,'Raw Data'!$I$4:$I$5000,'Raw Data'!$E$4:$E$5000,100,0)","v":100},{"$f":"IF(N2134=0,_xlfn.XLOOKUP(F2134,'Raw Data'!$I$4:$I$5000,'Raw Data'!$H$4:$H$5000,\"\",0),\"\")","v":""},{"$f":"IF(INDIRECT(M2134) = \"\",\"\",INDIRECT(M2134))","v":""},"c"]
["ADJCAPCOMCAT16",null,null,null,{"$f":"_xlfn.XLOOKUP(F2135,'Raw Data'!$I$4:$I$5000,'Raw Data'!$D$4:$D$5000,\"*** Mnemonic not found ***\",0)","v":"*** Mnemonic not found ***"},"ADJCAPCOMCAT16__",null,"Adjustment",null,null,20,"D","Adjustment!D20",{"$f":"_xlfn.XLOOKUP(F2135,'Raw Data'!$I$4:$I$5000,'Raw Data'!$E$4:$E$5000,100,0)","v":100},{"$f":"IF(N2135=0,_xlfn.XLOOKUP(F2135,'Raw Data'!$I$4:$I$5000,'Raw Data'!$H$4:$H$5000,\"\",0),\"\")","v":""},{"$f":"IF(INDIRECT(M2135) = \"\",\"\",INDIRECT(M2135))","v":""},"c"]
["ADJCAPCOMCAT17",null,null,null,{"$f":"_xlfn.XLOOKUP(F2136,'Raw Data'!$I$4:$I$5000,'Raw Data'!$D$4:$D$5000,\"*** Mnemonic not found ***\",0)","v":"*** Mnemonic not found ***"},"ADJCAPCOMCAT17__",null,"Adjustment",null,null,21,"D","Adjustment!D21",{"$f":"_xlfn.XLOOKUP(F2136,'Raw Data'!$I$4:$I$5000,'Raw Data'!$E$4:$E$5000,100,0)","v":100},{"$f":"IF(N2136=0,_xlfn.XLOOKUP(F2136,'Raw Data'!$I$4:$I$5000,'Raw Data'!$H$4:$H$5000,\"\",0),\"\")","v":""},{"$f":"IF(INDIRECT(M2136) = \"\",\"\",INDIRECT(M2136))","v":""},"c"]
["ADJCAPCOMCAT18",null,null,null,{"$f":"_xlfn.XLOOKUP(F2137,'Raw Data'!$I$4:$I$5000,'Raw Data'!$D$4:$D$5000,\"*** Mnemonic not found ***\",0)","v":"*** Mnemonic not found ***"},"ADJCAPCOMCAT18__",null,"Adjustment",null,null,22,"D","Adjustment!D22",{"$f":"_xlfn.XLOOKUP(F2137,'Raw Data'!$I$4:$I$5000,'Raw Data'!$E$4:$E$5000,100,0)","v":100},{"$f":"IF(N2137=0,_xlfn.XLOOKUP(F2137,'Raw Data'!$I$4:$I$5000,'Raw Data'!$H$4:$H$5000,\"\",0),\"\")","v":""},{"$f":"IF(INDIRECT(M2137) = \"\",\"\",INDIRECT(M2137))","v":""},"c"]
["ADJCAPCOMCAT19",null,null,null,{"$f":"_xlfn.XLOOKUP(F2138,'Raw Data'!$I$4:$I$5000,'Raw Data'!$D$4:$D$5000,\"*** Mnemonic not found ***\",0)","v":"*** Mnemonic not found ***"},"ADJCAPCOMCAT19__",null,"Adjustment",null,null,23,"D","Adjustment!D23",{"$f":"_xlfn.XLOOKUP(F2138,'Raw Data'!$I$4:$I$5000,'Raw Data'!$E$4:$E$5000,100,0)","v":100},{"$f":"IF(N2138=0,_xlfn.XLOOKUP(F2138,'Raw Data'!$I$4:$I$5000,'Raw Data'!$H$4:$H$5000,\"\",0),\"\")","v":""},{"$f":"IF(INDIRECT(M2138) = \"\",\"\",INDIRECT(M2138))","v":""},"c"]
["ADJCAPCOMCAT20",null,null,null,{"$f":"_xlfn.XLOOKUP(F2139,'Raw Data'!$I$4:$I$5000,'Raw Data'!$D$4:$D$5000,\"*** Mnemonic not found ***\",0)","v":"*** Mnemonic not found ***"},"ADJCAPCOMCAT20__",null,"Adjustment",null,null,24,"D","Adjustment!D24",{"$f":"_xlfn.XLOOKUP(F2139,'Raw Data'!$I$4:$I$5000,'Raw Data'!$E$4:$E$5000,100,0)","v":100},{"$f":"IF(N2139=0,_xlfn.XLOOKUP(F2139,'Raw Data'!$I$4:$I$5000,'Raw Data'!$H$4:$H$5000,\"\",0),\"\")","v":""},{"$f":"IF(INDIRECT(M2139) = \"\",\"\",INDIRECT(M2139))","v":""},"c"]
["ADJCAPCOMEXPAMT1",null,null,null,{"$f":"_xlfn.XLOOKUP(F2140,'Raw Data'!$I$4:$I$5000,'Raw Data'!$D$4:$D$5000,\"*** Mnemonic not found ***\",0)","v":"*** Mnemonic not found ***"},"ADJCAPCOMEXPAMT1__",null,"Adjustment",null,null,{"$f":"K2120","v":5},"E","Adjustment!E5",{"$f":"_xlfn.XLOOKUP(F2140,'Raw Data'!$I$4:$I$5000,'Raw Data'!$E$4:$E$5000,100,0)","v":100},{"$f":"IF(N2140=0,_xlfn.XLOOKUP(F2140,'Raw Data'!$I$4:$I$5000,'Raw Data'!$H$4:$H$5000,\"\",0),\"\")","v":""},{"$f":"IF(INDIRECT(M2140) = \"\",\"\",INDIRECT(M2140))","v":""},"n"]
["ADJCAPCOMEXPAMT2",null,null,null,{"$f":"_xlfn.XLOOKUP(F2141,'Raw Data'!$I$4:$I$5000,'Raw Data'!$D$4:$D$5000,\"*** Mnemonic not found ***\",0)","v":"*** Mnemonic not found ***"},"ADJCAPCOMEXPAMT2__",null,"Adjustment",null,null,{"$f":"K2140+1","v":6},{"$f":"L2140","v":"E"},"Adjustment!E6",{"$f":"_xlfn.XLOOKUP(F2141,'Raw Data'!$I$4:$I$5000,'Raw Data'!$E$4:$E$5000,100,0)","v":100},{"$f":"IF(N2141=0,_xlfn.XLOOKUP(F2141,'Raw Data'!$I$4:$I$5000,'Raw Data'!$H$4:$H$5000,\"\",0),\"\")","v":""},{"$f":"IF(INDIRECT(M2141) = \"\",\"\",INDIRECT(M2141))","v":""},"n"]
["ADJCAPCOMEXPAMT3",null,null,null,{"$f":"_xlfn.XLOOKUP(F2142,'Raw Data'!$I$4:$I$5000,'Raw Data'!$D$4:$D$5000,\"*** Mnemonic not found ***\",0)","v":"*** Mnemonic not found ***"},"ADJCAPCOMEXPAMT3__",null,"Adjustment",null,null,{"$f":"K2141+1","v":7},{"$f":"L2141","v":"E"},"Adjustment!E7",{"$f":"_xlfn.XLOOKUP(F2142,'Raw Data'!$I$4:$I$5000,'Raw Data'!$E$4:$E$5000,100,0)","v":100},{"$f":"IF(N2142=0,_xlfn.XLOOKUP(F2142,'Raw Data'!$I$4:$I$5000,'Raw Data'!$H$4:$H$5000,\"\",0),\"\")","v":""},{"$f":"IF(INDIRECT(M2142) = \"\",\"\",INDIRECT(M2142))","v":""},"n"]
["ADJCAPCOMEXPAMT4",null,null,null,{"$f":"_xlfn.XLOOKUP(F2143,'Raw Data'!$I$4:$I$5000,'Raw Data'!$D$4:$D$5000,\"*** Mnemonic not found ***\",0)","v":"*** Mnemonic not found ***"},"ADJCAPCOMEXPAMT4__",null,"Adjustment",null,null,8,"E","Adjustment!E8",{"$f":"_xlfn.XLOOKUP(F2143,'Raw Data'!$I$4:$I$5000,'Raw Data'!$E$4:$E$5000,100,0)","v":100},{"$f":"IF(N2143=0,_xlfn.XLOOKUP(F2143,'Raw Data'!$I$4:$I$5000,'Raw Data'!$H$4:$H$5000,\"\",0),\"\")","v":""},{"$f":"IF(INDIRECT(M2143) = \"\",\"\",INDIRECT(M2143))","v":""},"n"]
["ADJCAPCOMEXPAMT5",null,null,null,{"$f":"_xlfn.XLOOKUP(F2144,'Raw Data'!$I$4:$I$5000,'Raw Data'!$D$4:$D$5000,\"*** Mnemonic not found ***\",0)","v":"*** Mnemonic not found ***"},"ADJCAPCOMEXPAMT5__",null,"Adjustment",null,null,9,"E","Adjustment!E9",{"$f":"_xlfn.XLOOKUP(F2144,'Raw Data'!$I$4:$I$5000,'Raw Data'!$E$4:$E$5000,100,0)","v":100},{"$f":"IF(N2144=0,_xlfn.XLOOKUP(F2144,'Raw Data'!$I$4:$I$5000,'Raw Data'!$H$4:$H$5000,\"\",0),\"\")","v":""},{"$f":"IF(INDIRECT(M2144) = \"\",\"\",INDIRECT(M2144))","v":""},"n"]
["ADJCAPCOMEXPAMT6",null,null,null,{"$f":"_xlfn.XLOOKUP(F2145,'Raw Data'!$I$4:$I$5000,'Raw Data'!$D$4:$D$5000,\"*** Mnemonic not found ***\",0)","v":"*** Mnemonic not found ***"},"ADJCAPCOMEXPAMT6__",null,"Adjustment",null,null,10,"E","Adjustment!E10",{"$f":"_xlfn.XLOOKUP(F2145,'Raw Data'!$I$4:$I$5000,'Raw Data'!$E$4:$E$5000,100,0)","v":100},{"$f":"IF(N2145=0,_xlfn.XLOOKUP(F2145,'Raw Data'!$I$4:$I$5000,'Raw Data'!$H$4:$H$5000,\"\",0),\"\")","v":""},{"$f":"IF(INDIRECT(M2145) = \"\",\"\",INDIRECT(M2145))","v":""},"n"]
["ADJCAPCOMEXPAMT7",null,null,null,{"$f":"_xlfn.XLOOKUP(F2146,'Raw Data'!$I$4:$I$5000,'Raw Data'!$D$4:$D$5000,\"*** Mnemonic not found ***\",0)","v":"*** Mnemonic not found ***"},"ADJCAPCOMEXPAMT7__",null,"Adjustment",null,null,11,"E","Adjustment!E11",{"$f":"_xlfn.XLOOKUP(F2146,'Raw Data'!$I$4:$I$5000,'Raw Data'!$E$4:$E$5000,100,0)","v":100},{"$f":"IF(N2146=0,_xlfn.XLOOKUP(F2146,'Raw Data'!$I$4:$I$5000,'Raw Data'!$H$4:$H$5000,\"\",0),\"\")","v":""},{"$f":"IF(INDIRECT(M2146) = \"\",\"\",INDIRECT(M2146))","v":""},"n"]
["ADJCAPCOMEXPAMT8",null,null,null,{"$f":"_xlfn.XLOOKUP(F2147,'Raw Data'!$I$4:$I$5000,'Raw Data'!$D$4:$D$5000,\"*** Mnemonic not found ***\",0)","v":"*** Mnemonic not found ***"},"ADJCAPCOMEXPAMT8__",null,"Adjustment",null,null,12,"E","Adjustment!E12",{"$f":"_xlfn.XLOOKUP(F2147,'Raw Data'!$I$4:$I$5000,'Raw Data'!$E$4:$E$5000,100,0)","v":100},{"$f":"IF(N2147=0,_xlfn.XLOOKUP(F2147,'Raw Data'!$I$4:$I$5000,'Raw Data'!$H$4:$H$5000,\"\",0),\"\")","v":""},{"$f":"IF(INDIRECT(M2147) = \"\",\"\",INDIRECT(M2147))","v":""},"n"]
["ADJCAPCOMEXPAMT9",null,null,null,{"$f":"_xlfn.XLOOKUP(F2148,'Raw Data'!$I$4:$I$5000,'Raw Data'!$D$4:$D$5000,\"*** Mnemonic not found ***\",0)","v":"*** Mnemonic not found ***"},"ADJCAPCOMEXPAMT9__",null,"Adjustment",null,null,13,"E","Adjustment!E13",{"$f":"_xlfn.XLOOKUP(F2148,'Raw Data'!$I$4:$I$5000,'Raw Data'!$E$4:$E$5000,100,0)","v":100},{"$f":"IF(N2148=0,_xlfn.XLOOKUP(F2148,'Raw Data'!$I$4:$I$5000,'Raw Data'!$H$4:$H$5000,\"\",0),\"\")","v":""},{"$f":"IF(INDIRECT(M2148) = \"\",\"\",INDIRECT(M2148))","v":""},"n"]
["ADJCAPCOMEXPAMT10",null,null,null,{"$f":"_xlfn.XLOOKUP(F2149,'Raw Data'!$I$4:$I$5000,'Raw Data'!$D$4:$D$5000,\"*** Mnemonic not found ***\",0)","v":"*** Mnemonic not found ***"},"ADJCAPCOMEXPAMT10__",null,"Adjustment",null,null,14,"E","Adjustment!E14",{"$f":"_xlfn.XLOOKUP(F2149,'Raw Data'!$I$4:$I$5000,'Raw Data'!$E$4:$E$5000,100,0)","v":100},{"$f":"IF(N2149=0,_xlfn.XLOOKUP(F2149,'Raw Data'!$I$4:$I$5000,'Raw Data'!$H$4:$H$5000,\"\",0),\"\")","v":""},{"$f":"IF(INDIRECT(M2149) = \"\",\"\",INDIRECT(M2149))","v":""},"n"]
["ADJCAPCOMEXPAMT11",null,null,null,{"$f":"_xlfn.XLOOKUP(F2150,'Raw Data'!$I$4:$I$5000,'Raw Data'!$D$4:$D$5000,\"*** Mnemonic not found ***\",0)","v":"*** Mnemonic not found ***"},"ADJCAPCOMEXPAMT11__",null,"Adjustment",null,null,15,"E","Adjustment!E15",{"$f":"_xlfn.XLOOKUP(F2150,'Raw Data'!$I$4:$I$5000,'Raw Data'!$E$4:$E$5000,100,0)","v":100},{"$f":"IF(N2150=0,_xlfn.XLOOKUP(F2150,'Raw Data'!$I$4:$I$5000,'Raw Data'!$H$4:$H$5000,\"\",0),\"\")","v":""},{"$f":"IF(INDIRECT(M2150) = \"\",\"\",INDIRECT(M2150))","v":""},"n"]
["ADJCAPCOMEXPAMT12",null,null,null,{"$f":"_xlfn.XLOOKUP(F2151,'Raw Data'!$I$4:$I$5000,'Raw Data'!$D$4:$D$5000,\"*** Mnemonic not found ***\",0)","v":"*** Mnemonic not found ***"},"ADJCAPCOMEXPAMT12__",null,"Adjustment",null,null,16,"E","Adjustment!E16",{"$f":"_xlfn.XLOOKUP(F2151,'Raw Data'!$I$4:$I$5000,'Raw Data'!$E$4:$E$5000,100,0)","v":100},{"$f":"IF(N2151=0,_xlfn.XLOOKUP(F2151,'Raw Data'!$I$4:$I$5000,'Raw Data'!$H$4:$H$5000,\"\",0),\"\")","v":""},{"$f":"IF(INDIRECT(M2151) = \"\",\"\",INDIRECT(M2151))","v":""},"n"]
["ADJCAPCOMEXPAMT13",null,null,null,{"$f":"_xlfn.XLOOKUP(F2152,'Raw Data'!$I$4:$I$5000,'Raw Data'!$D$4:$D$5000,\"*** Mnemonic not found ***\",0)","v":"*** Mnemonic not found ***"},"ADJCAPCOMEXPAMT13__",null,"Adjustment",null,null,17,"E","Adjustment!E17",{"$f":"_xlfn.XLOOKUP(F2152,'Raw Data'!$I$4:$I$5000,'Raw Data'!$E$4:$E$5000,100,0)","v":100},{"$f":"IF(N2152=0,_xlfn.XLOOKUP(F2152,'Raw Data'!$I$4:$I$5000,'Raw Data'!$H$4:$H$5000,\"\",0),\"\")","v":""},{"$f":"IF(INDIRECT(M2152) = \"\",\"\",INDIRECT(M2152))","v":""},"n"]
["ADJCAPCOMEXPAMT14",null,null,null,{"$f":"_xlfn.XLOOKUP(F2153,'Raw Data'!$I$4:$I$5000,'Raw Data'!$D$4:$D$5000,\"*** Mnemonic not found ***\",0)","v":"*** Mnemonic not found ***"},"ADJCAPCOMEXPAMT14__",null,"Adjustment",null,null,18,"E","Adjustment!E18",{"$f":"_xlfn.XLOOKUP(F2153,'Raw Data'!$I$4:$I$5000,'Raw Data'!$E$4:$E$5000,100,0)","v":100},{"$f":"IF(N2153=0,_xlfn.XLOOKUP(F2153,'Raw Data'!$I$4:$I$5000,'Raw Data'!$H$4:$H$5000,\"\",0),\"\")","v":""},{"$f":"IF(INDIRECT(M2153) = \"\",\"\",INDIRECT(M2153))","v":""},"n"]
["ADJCAPCOMEXPAMT15",null,null,null,{"$f":"_xlfn.XLOOKUP(F2154,'Raw Data'!$I$4:$I$5000,'Raw Data'!$D$4:$D$5000,\"*** Mnemonic not found ***\",0)","v":"*** Mnemonic not found ***"},"ADJCAPCOMEXPAMT15__",null,"Adjustment",null,null,19,"E","Adjustment!E19",{"$f":"_xlfn.XLOOKUP(F2154,'Raw Data'!$I$4:$I$5000,'Raw Data'!$E$4:$E$5000,100,0)","v":100},{"$f":"IF(N2154=0,_xlfn.XLOOKUP(F2154,'Raw Data'!$I$4:$I$5000,'Raw Data'!$H$4:$H$5000,\"\",0),\"\")","v":""},{"$f":"IF(INDIRECT(M2154) = \"\",\"\",INDIRECT(M2154))","v":""},"n"]
["ADJCAPCOMEXPAMT16",null,null,null,{"$f":"_xlfn.XLOOKUP(F2155,'Raw Data'!$I$4:$I$5000,'Raw Data'!$D$4:$D$5000,\"*** Mnemonic not found ***\",0)","v":"*** Mnemonic not found ***"},"ADJCAPCOMEXPAMT16__",null,"Adjustment",null,null,20,"E","Adjustment!E20",{"$f":"_xlfn.XLOOKUP(F2155,'Raw Data'!$I$4:$I$5000,'Raw Data'!$E$4:$E$5000,100,0)","v":100},{"$f":"IF(N2155=0,_xlfn.XLOOKUP(F2155,'Raw Data'!$I$4:$I$5000,'Raw Data'!$H$4:$H$5000,\"\",0),\"\")","v":""},{"$f":"IF(INDIRECT(M2155) = \"\",\"\",INDIRECT(M2155))","v":""},"n"]
["ADJCAPCOMEXPAMT17",null,null,null,{"$f":"_xlfn.XLOOKUP(F2156,'Raw Data'!$I$4:$I$5000,'Raw Data'!$D$4:$D$5000,\"*** Mnemonic not found ***\",0)","v":"*** Mnemonic not found ***"},"ADJCAPCOMEXPAMT17__",null,"Adjustment",null,null,21,"E","Adjustment!E21",{"$f":"_xlfn.XLOOKUP(F2156,'Raw Data'!$I$4:$I$5000,'Raw Data'!$E$4:$E$5000,100,0)","v":100},{"$f":"IF(N2156=0,_xlfn.XLOOKUP(F2156,'Raw Data'!$I$4:$I$5000,'Raw Data'!$H$4:$H$5000,\"\",0),\"\")","v":""},{"$f":"IF(INDIRECT(M2156) = \"\",\"\",INDIRECT(M2156))","v":""},"n"]
["ADJCAPCOMEXPAMT18",null,null,null,{"$f":"_xlfn.XLOOKUP(F2157,'Raw Data'!$I$4:$I$5000,'Raw Data'!$D$4:$D$5000,\"*** Mnemonic not found ***\",0)","v":"*** Mnemonic not found ***"},"ADJCAPCOMEXPAMT18__",null,"Adjustment",null,null,22,"E","Adjustment!E22",{"$f":"_xlfn.XLOOKUP(F2157,'Raw Data'!$I$4:$I$5000,'Raw Data'!$E$4:$E$5000,100,0)","v":100},{"$f":"IF(N2157=0,_xlfn.XLOOKUP(F2157,'Raw Data'!$I$4:$I$5000,'Raw Data'!$H$4:$H$5000,\"\",0),\"\")","v":""},{"$f":"IF(INDIRECT(M2157) = \"\",\"\",INDIRECT(M2157))","v":""},"n"]
["ADJCAPCOMEXPAMT19",null,null,null,{"$f":"_xlfn.XLOOKUP(F2158,'Raw Data'!$I$4:$I$5000,'Raw Data'!$D$4:$D$5000,\"*** Mnemonic not found ***\",0)","v":"*** Mnemonic not found ***"},"ADJCAPCOMEXPAMT19__",null,"Adjustment",null,null,23,"E","Adjustment!E23",{"$f":"_xlfn.XLOOKUP(F2158,'Raw Data'!$I$4:$I$5000,'Raw Data'!$E$4:$E$5000,100,0)","v":100},{"$f":"IF(N2158=0,_xlfn.XLOOKUP(F2158,'Raw Data'!$I$4:$I$5000,'Raw Data'!$H$4:$H$5000,\"\",0),\"\")","v":""},{"$f":"IF(INDIRECT(M2158) = \"\",\"\",INDIRECT(M2158))","v":""},"n"]
["ADJCAPCOMEXPAMT20",null,null,null,{"$f":"_xlfn.XLOOKUP(F2159,'Raw Data'!$I$4:$I$5000,'Raw Data'!$D$4:$D$5000,\"*** Mnemonic not found ***\",0)","v":"*** Mnemonic not found ***"},"ADJCAPCOMEXPAMT20__",null,"Adjustment",null,null,24,"E","Adjustment!E24",{"$f":"_xlfn.XLOOKUP(F2159,'Raw Data'!$I$4:$I$5000,'Raw Data'!$E$4:$E$5000,100,0)","v":100},{"$f":"IF(N2159=0,_xlfn.XLOOKUP(F2159,'Raw Data'!$I$4:$I$5000,'Raw Data'!$H$4:$H$5000,\"\",0),\"\")","v":""},{"$f":"IF(INDIRECT(M2159) = \"\",\"\",INDIRECT(M2159))","v":""},"n"]
["ADJCAPCOM9999_1",null,null,null,{"$f":"_xlfn.XLOOKUP(F2160,'Raw Data'!$I$4:$I$5000,'Raw Data'!$D$4:$D$5000,\"*** Mnemonic not found ***\",0)","v":"*** Mnemonic not found ***"},"ADJCAPCOM9999_1__",null,"Adjustment",null,null,{"$f":"K2140","v":5},"F","Adjustment!F5",{"$f":"_xlfn.XLOOKUP(F2160,'Raw Data'!$I$4:$I$5000,'Raw Data'!$E$4:$E$5000,100,0)","v":100},{"$f":"IF(N2160=0,_xlfn.XLOOKUP(F2160,'Raw Data'!$I$4:$I$5000,'Raw Data'!$H$4:$H$5000,\"\",0),\"\")","v":""},{"$f":"IF(INDIRECT(M2160) = \"\",\"\",INDIRECT(M2160))","v":""},"n"]
["ADJCAPCOM9999_2",null,null,null,{"$f":"_xlfn.XLOOKUP(F2161,'Raw Data'!$I$4:$I$5000,'Raw Data'!$D$4:$D$5000,\"*** Mnemonic not found ***\",0)","v":"*** Mnemonic not found ***"},"ADJCAPCOM9999_2__",null,"Adjustment",null,null,{"$f":"K2160+1","v":6},{"$f":"L2160","v":"F"},"Adjustment!F6",{"$f":"_xlfn.XLOOKUP(F2161,'Raw Data'!$I$4:$I$5000,'Raw Data'!$E$4:$E$5000,100,0)","v":100},{"$f":"IF(N2161=0,_xlfn.XLOOKUP(F2161,'Raw Data'!$I$4:$I$5000,'Raw Data'!$H$4:$H$5000,\"\",0),\"\")","v":""},{"$f":"IF(INDIRECT(M2161) = \"\",\"\",INDIRECT(M2161))","v":""},"n"]
["ADJCAPCOM9999_3",null,null,null,{"$f":"_xlfn.XLOOKUP(F2162,'Raw Data'!$I$4:$I$5000,'Raw Data'!$D$4:$D$5000,\"*** Mnemonic not found ***\",0)","v":"*** Mnemonic not found ***"},"ADJCAPCOM9999_3__",null,"Adjustment",null,null,{"$f":"K2161+1","v":7},{"$f":"L2161","v":"F"},"Adjustment!F7",{"$f":"_xlfn.XLOOKUP(F2162,'Raw Data'!$I$4:$I$5000,'Raw Data'!$E$4:$E$5000,100,0)","v":100},{"$f":"IF(N2162=0,_xlfn.XLOOKUP(F2162,'Raw Data'!$I$4:$I$5000,'Raw Data'!$H$4:$H$5000,\"\",0),\"\")","v":""},{"$f":"IF(INDIRECT(M2162) = \"\",\"\",INDIRECT(M2162))","v":""},"n"]
["ADJCAPCOM9999_4",null,null,null,{"$f":"_xlfn.XLOOKUP(F2163,'Raw Data'!$I$4:$I$5000,'Raw Data'!$D$4:$D$5000,\"*** Mnemonic not found ***\",0)","v":"*** Mnemonic not found ***"},"ADJCAPCOM9999_4__",null,"Adjustment",null,null,8,"F",{"$f":"CONCATENATE(H2163,\"!\",L2163,K2163)","v":"Adjustment!F8"},{"$f":"_xlfn.XLOOKUP(F2163,'Raw Data'!$I$4:$I$5000,'Raw Data'!$E$4:$E$5000,100,0)","v":100},{"$f":"IF(N2163=0,_xlfn.XLOOKUP(F2163,'Raw Data'!$I$4:$I$5000,'Raw Data'!$H$4:$H$5000,\"\",0),\"\")","v":""},{"$f":"IF(INDIRECT(M2163) = \"\",\"\",INDIRECT(M2163))","v":""},"n"]
["ADJCAPCOM9999_5",null,null,null,{"$f":"_xlfn.XLOOKUP(F2164,'Raw Data'!$I$4:$I$5000,'Raw Data'!$D$4:$D$5000,\"*** Mnemonic not found ***\",0)","v":"*** Mnemonic not found ***"},"ADJCAPCOM9999_5__",null,"Adjustment",null,null,9,"F","Adjustment!F9",{"$f":"_xlfn.XLOOKUP(F2164,'Raw Data'!$I$4:$I$5000,'Raw Data'!$E$4:$E$5000,100,0)","v":100},{"$f":"IF(N2164=0,_xlfn.XLOOKUP(F2164,'Raw Data'!$I$4:$I$5000,'Raw Data'!$H$4:$H$5000,\"\",0),\"\")","v":""},{"$f":"IF(INDIRECT(M2164) = \"\",\"\",INDIRECT(M2164))","v":""},"n"]
["ADJCAPCOM9999_6",null,null,null,{"$f":"_xlfn.XLOOKUP(F2165,'Raw Data'!$I$4:$I$5000,'Raw Data'!$D$4:$D$5000,\"*** Mnemonic not found ***\",0)","v":"*** Mnemonic not found ***"},"ADJCAPCOM9999_6__",null,"Adjustment",null,null,10,"F","Adjustment!F10",{"$f":"_xlfn.XLOOKUP(F2165,'Raw Data'!$I$4:$I$5000,'Raw Data'!$E$4:$E$5000,100,0)","v":100},{"$f":"IF(N2165=0,_xlfn.XLOOKUP(F2165,'Raw Data'!$I$4:$I$5000,'Raw Data'!$H$4:$H$5000,\"\",0),\"\")","v":""},{"$f":"IF(INDIRECT(M2165) = \"\",\"\",INDIRECT(M2165))","v":""},"n"]
["ADJCAPCOM9999_7",null,null,null,{"$f":"_xlfn.XLOOKUP(F2166,'Raw Data'!$I$4:$I$5000,'Raw Data'!$D$4:$D$5000,\"*** Mnemonic not found ***\",0)","v":"*** Mnemonic not found ***"},"ADJCAPCOM9999_7__",null,"Adjustment",null,null,11,"F","Adjustment!F11",{"$f":"_xlfn.XLOOKUP(F2166,'Raw Data'!$I$4:$I$5000,'Raw Data'!$E$4:$E$5000,100,0)","v":100},{"$f":"IF(N2166=0,_xlfn.XLOOKUP(F2166,'Raw Data'!$I$4:$I$5000,'Raw Data'!$H$4:$H$5000,\"\",0),\"\")","v":""},{"$f":"IF(INDIRECT(M2166) = \"\",\"\",INDIRECT(M2166))","v":""},"n"]
["ADJCAPCOM9999_8",null,null,null,{"$f":"_xlfn.XLOOKUP(F2167,'Raw Data'!$I$4:$I$5000,'Raw Data'!$D$4:$D$5000,\"*** Mnemonic not found ***\",0)","v":"*** Mnemonic not found ***"},"ADJCAPCOM9999_8__",null,"Adjustment",null,null,12,"F","Adjustment!F12",{"$f":"_xlfn.XLOOKUP(F2167,'Raw Data'!$I$4:$I$5000,'Raw Data'!$E$4:$E$5000,100,0)","v":100},{"$f":"IF(N2167=0,_xlfn.XLOOKUP(F2167,'Raw Data'!$I$4:$I$5000,'Raw Data'!$H$4:$H$5000,\"\",0),\"\")","v":""},{"$f":"IF(INDIRECT(M2167) = \"\",\"\",INDIRECT(M2167))","v":""},"n"]
["ADJCAPCOM9999_9",null,null,null,{"$f":"_xlfn.XLOOKUP(F2168,'Raw Data'!$I$4:$I$5000,'Raw Data'!$D$4:$D$5000,\"*** Mnemonic not found ***\",0)","v":"*** Mnemonic not found ***"},"ADJCAPCOM9999_9__",null,"Adjustment",null,null,13,"F","Adjustment!F13",{"$f":"_xlfn.XLOOKUP(F2168,'Raw Data'!$I$4:$I$5000,'Raw Data'!$E$4:$E$5000,100,0)","v":100},{"$f":"IF(N2168=0,_xlfn.XLOOKUP(F2168,'Raw Data'!$I$4:$I$5000,'Raw Data'!$H$4:$H$5000,\"\",0),\"\")","v":""},{"$f":"IF(INDIRECT(M2168) = \"\",\"\",INDIRECT(M2168))","v":""},"n"]
["ADJCAPCOM9999_10",null,null,null,{"$f":"_xlfn.XLOOKUP(F2169,'Raw Data'!$I$4:$I$5000,'Raw Data'!$D$4:$D$5000,\"*** Mnemonic not found ***\",0)","v":"*** Mnemonic not found ***"},"ADJCAPCOM9999_10__",null,"Adjustment",null,null,14,"F","Adjustment!F14",{"$f":"_xlfn.XLOOKUP(F2169,'Raw Data'!$I$4:$I$5000,'Raw Data'!$E$4:$E$5000,100,0)","v":100},{"$f":"IF(N2169=0,_xlfn.XLOOKUP(F2169,'Raw Data'!$I$4:$I$5000,'Raw Data'!$H$4:$H$5000,\"\",0),\"\")","v":""},{"$f":"IF(INDIRECT(M2169) = \"\",\"\",INDIRECT(M2169))","v":""},"n"]
["ADJCAPCOM9999_11",null,null,null,{"$f":"_xlfn.XLOOKUP(F2170,'Raw Data'!$I$4:$I$5000,'Raw Data'!$D$4:$D$5000,\"*** Mnemonic not found ***\",0)","v":"*** Mnemonic not found ***"},"ADJCAPCOM9999_11__",null,"Adjustment",null,null,15,"F","Adjustment!F15",{"$f":"_xlfn.XLOOKUP(F2170,'Raw Data'!$I$4:$I$5000,'Raw Data'!$E$4:$E$5000,100,0)","v":100},{"$f":"IF(N2170=0,_xlfn.XLOOKUP(F2170,'Raw Data'!$I$4:$I$5000,'Raw Data'!$H$4:$H$5000,\"\",0),\"\")","v":""},{"$f":"IF(INDIRECT(M2170) = \"\",\"\",INDIRECT(M2170))","v":""},"n"]
["ADJCAPCOM9999_12",null,null,null,{"$f":"_xlfn.XLOOKUP(F2171,'Raw Data'!$I$4:$I$5000,'Raw Data'!$D$4:$D$5000,\"*** Mnemonic not found ***\",0)","v":"*** Mnemonic not found ***"},"ADJCAPCOM9999_12__",null,"Adjustment",null,null,16,"F","Adjustment!F16",{"$f":"_xlfn.XLOOKUP(F2171,'Raw Data'!$I$4:$I$5000,'Raw Data'!$E$4:$E$5000,100,0)","v":100},{"$f":"IF(N2171=0,_xlfn.XLOOKUP(F2171,'Raw Data'!$I$4:$I$5000,'Raw Data'!$H$4:$H$5000,\"\",0),\"\")","v":""},{"$f":"IF(INDIRECT(M2171) = \"\",\"\",INDIRECT(M2171))","v":""},"n"]
["ADJCAPCOM9999_13",null,null,null,{"$f":"_xlfn.XLOOKUP(F2172,'Raw Data'!$I$4:$I$5000,'Raw Data'!$D$4:$D$5000,\"*** Mnemonic not found ***\",0)","v":"*** Mnemonic not found ***"},"ADJCAPCOM9999_13__",null,"Adjustment",null,null,17,"F","Adjustment!F17",{"$f":"_xlfn.XLOOKUP(F2172,'Raw Data'!$I$4:$I$5000,'Raw Data'!$E$4:$E$5000,100,0)","v":100},{"$f":"IF(N2172=0,_xlfn.XLOOKUP(F2172,'Raw Data'!$I$4:$I$5000,'Raw Data'!$H$4:$H$5000,\"\",0),\"\")","v":""},{"$f":"IF(INDIRECT(M2172) = \"\",\"\",INDIRECT(M2172))","v":""},"n"]
["ADJCAPCOM9999_14",null,null,null,{"$f":"_xlfn.XLOOKUP(F2173,'Raw Data'!$I$4:$I$5000,'Raw Data'!$D$4:$D$5000,\"*** Mnemonic not found ***\",0)","v":"*** Mnemonic not found ***"},"ADJCAPCOM9999_14__",null,"Adjustment",null,null,18,"F","Adjustment!F18",{"$f":"_xlfn.XLOOKUP(F2173,'Raw Data'!$I$4:$I$5000,'Raw Data'!$E$4:$E$5000,100,0)","v":100},{"$f":"IF(N2173=0,_xlfn.XLOOKUP(F2173,'Raw Data'!$I$4:$I$5000,'Raw Data'!$H$4:$H$5000,\"\",0),\"\")","v":""},{"$f":"IF(INDIRECT(M2173) = \"\",\"\",INDIRECT(M2173))","v":""},"n"]
["ADJCAPCOM9999_15",null,null,null,{"$f":"_xlfn.XLOOKUP(F2174,'Raw Data'!$I$4:$I$5000,'Raw Data'!$D$4:$D$5000,\"*** Mnemonic not found ***\",0)","v":"*** Mnemonic not found ***"},"ADJCAPCOM9999_15__",null,"Adjustment",null,null,19,"F","Adjustment!F19",{"$f":"_xlfn.XLOOKUP(F2174,'Raw Data'!$I$4:$I$5000,'Raw Data'!$E$4:$E$5000,100,0)","v":100},{"$f":"IF(N2174=0,_xlfn.XLOOKUP(F2174,'Raw Data'!$I$4:$I$5000,'Raw Data'!$H$4:$H$5000,\"\",0),\"\")","v":""},{"$f":"IF(INDIRECT(M2174) = \"\",\"\",INDIRECT(M2174))","v":""},"n"]
["ADJCAPCOM9999_16",null,null,null,{"$f":"_xlfn.XLOOKUP(F2175,'Raw Data'!$I$4:$I$5000,'Raw Data'!$D$4:$D$5000,\"*** Mnemonic not found ***\",0)","v":"*** Mnemonic not found ***"},"ADJCAPCOM9999_16__",null,"Adjustment",null,null,20,"F","Adjustment!F20",{"$f":"_xlfn.XLOOKUP(F2175,'Raw Data'!$I$4:$I$5000,'Raw Data'!$E$4:$E$5000,100,0)","v":100},{"$f":"IF(N2175=0,_xlfn.XLOOKUP(F2175,'Raw Data'!$I$4:$I$5000,'Raw Data'!$H$4:$H$5000,\"\",0),\"\")","v":""},{"$f":"IF(INDIRECT(M2175) = \"\",\"\",INDIRECT(M2175))","v":""},"n"]
["ADJCAPCOM9999_17",null,null,null,{"$f":"_xlfn.XLOOKUP(F2176,'Raw Data'!$I$4:$I$5000,'Raw Data'!$D$4:$D$5000,\"*** Mnemonic not found ***\",0)","v":"*** Mnemonic not found ***"},"ADJCAPCOM9999_17__",null,"Adjustment",null,null,21,"F","Adjustment!F21",{"$f":"_xlfn.XLOOKUP(F2176,'Raw Data'!$I$4:$I$5000,'Raw Data'!$E$4:$E$5000,100,0)","v":100},{"$f":"IF(N2176=0,_xlfn.XLOOKUP(F2176,'Raw Data'!$I$4:$I$5000,'Raw Data'!$H$4:$H$5000,\"\",0),\"\")","v":""},{"$f":"IF(INDIRECT(M2176) = \"\",\"\",INDIRECT(M2176))","v":""},"n"]
["ADJCAPCOM9999_18",null,null,null,{"$f":"_xlfn.XLOOKUP(F2177,'Raw Data'!$I$4:$I$5000,'Raw Data'!$D$4:$D$5000,\"*** Mnemonic not found ***\",0)","v":"*** Mnemonic not found ***"},"ADJCAPCOM9999_18__",null,"Adjustment",null,null,22,"F","Adjustment!F22",{"$f":"_xlfn.XLOOKUP(F2177,'Raw Data'!$I$4:$I$5000,'Raw Data'!$E$4:$E$5000,100,0)","v":100},{"$f":"IF(N2177=0,_xlfn.XLOOKUP(F2177,'Raw Data'!$I$4:$I$5000,'Raw Data'!$H$4:$H$5000,\"\",0),\"\")","v":""},{"$f":"IF(INDIRECT(M2177) = \"\",\"\",INDIRECT(M2177))","v":""},"n"]
["ADJCAPCOM9999_19",null,null,null,{"$f":"_xlfn.XLOOKUP(F2178,'Raw Data'!$I$4:$I$5000,'Raw Data'!$D$4:$D$5000,\"*** Mnemonic not found ***\",0)","v":"*** Mnemonic not found ***"},"ADJCAPCOM9999_19__",null,"Adjustment",null,null,23,"F","Adjustment!F23",{"$f":"_xlfn.XLOOKUP(F2178,'Raw Data'!$I$4:$I$5000,'Raw Data'!$E$4:$E$5000,100,0)","v":100},{"$f":"IF(N2178=0,_xlfn.XLOOKUP(F2178,'Raw Data'!$I$4:$I$5000,'Raw Data'!$H$4:$H$5000,\"\",0),\"\")","v":""},{"$f":"IF(INDIRECT(M2178) = \"\",\"\",INDIRECT(M2178))","v":""},"n"]
["ADJCAPCOM9999_20",null,null,null,{"$f":"_xlfn.XLOOKUP(F2179,'Raw Data'!$I$4:$I$5000,'Raw Data'!$D$4:$D$5000,\"*** Mnemonic not found ***\",0)","v":"*** Mnemonic not found ***"},"ADJCAPCOM9999_20__",null,"Adjustment",null,null,24,"F","Adjustment!F24",{"$f":"_xlfn.XLOOKUP(F2179,'Raw Data'!$I$4:$I$5000,'Raw Data'!$E$4:$E$5000,100,0)","v":100},{"$f":"IF(N2179=0,_xlfn.XLOOKUP(F2179,'Raw Data'!$I$4:$I$5000,'Raw Data'!$H$4:$H$5000,\"\",0),\"\")","v":""},{"$f":"IF(INDIRECT(M2179) = \"\",\"\",INDIRECT(M2179))","v":""},"n"]
["ADJCAPCOM9995_1",null,null,null,{"$f":"_xlfn.XLOOKUP(F2180,'Raw Data'!$I$4:$I$5000,'Raw Data'!$D$4:$D$5000,\"*** Mnemonic not found ***\",0)","v":"*** Mnemonic not found ***"},"ADJCAPCOM9995_1__",null,"Adjustment",null,null,{"$f":"K2160","v":5},"G","Adjustment!G5",{"$f":"_xlfn.XLOOKUP(F2180,'Raw Data'!$I$4:$I$5000,'Raw Data'!$E$4:$E$5000,100,0)","v":100},{"$f":"IF(N2180=0,_xlfn.XLOOKUP(F2180,'Raw Data'!$I$4:$I$5000,'Raw Data'!$H$4:$H$5000,\"\",0),\"\")","v":""},{"$f":"IF(INDIRECT(M2180) = \"\",\"\",INDIRECT(M2180))","v":""},"n"]
["ADJCAPCOM9995_2",null,null,null,{"$f":"_xlfn.XLOOKUP(F2181,'Raw Data'!$I$4:$I$5000,'Raw Data'!$D$4:$D$5000,\"*** Mnemonic not found ***\",0)","v":"*** Mnemonic not found ***"},"ADJCAPCOM9995_2__",null,"Adjustment",null,null,{"$f":"K2180+1","v":6},{"$f":"L2180","v":"G"},"Adjustment!G6",{"$f":"_xlfn.XLOOKUP(F2181,'Raw Data'!$I$4:$I$5000,'Raw Data'!$E$4:$E$5000,100,0)","v":100},{"$f":"IF(N2181=0,_xlfn.XLOOKUP(F2181,'Raw Data'!$I$4:$I$5000,'Raw Data'!$H$4:$H$5000,\"\",0),\"\")","v":""},{"$f":"IF(INDIRECT(M2181) = \"\",\"\",INDIRECT(M2181))","v":""},"n"]
["ADJCAPCOM9995_3",null,null,null,{"$f":"_xlfn.XLOOKUP(F2182,'Raw Data'!$I$4:$I$5000,'Raw Data'!$D$4:$D$5000,\"*** Mnemonic not found ***\",0)","v":"*** Mnemonic not found ***"},"ADJCAPCOM9995_3__",null,"Adjustment",null,null,{"$f":"K2181+1","v":7},{"$f":"L2181","v":"G"},"Adjustment!G7",{"$f":"_xlfn.XLOOKUP(F2182,'Raw Data'!$I$4:$I$5000,'Raw Data'!$E$4:$E$5000,100,0)","v":100},{"$f":"IF(N2182=0,_xlfn.XLOOKUP(F2182,'Raw Data'!$I$4:$I$5000,'Raw Data'!$H$4:$H$5000,\"\",0),\"\")","v":""},{"$f":"IF(INDIRECT(M2182) = \"\",\"\",INDIRECT(M2182))","v":""},"n"]
["ADJCAPCOM9995_4",null,null,null,{"$f":"_xlfn.XLOOKUP(F2183,'Raw Data'!$I$4:$I$5000,'Raw Data'!$D$4:$D$5000,\"*** Mnemonic not found ***\",0)","v":"*** Mnemonic not found ***"},"ADJCAPCOM9995_4__",null,"Adjustment",null,null,8,"G","Adjustment!G8",{"$f":"_xlfn.XLOOKUP(F2183,'Raw Data'!$I$4:$I$5000,'Raw Data'!$E$4:$E$5000,100,0)","v":100},{"$f":"IF(N2183=0,_xlfn.XLOOKUP(F2183,'Raw Data'!$I$4:$I$5000,'Raw Data'!$H$4:$H$5000,\"\",0),\"\")","v":""},{"$f":"IF(INDIRECT(M2183) = \"\",\"\",INDIRECT(M2183))","v":""},"n"]
["ADJCAPCOM9995_5",null,null,null,{"$f":"_xlfn.XLOOKUP(F2184,'Raw Data'!$I$4:$I$5000,'Raw Data'!$D$4:$D$5000,\"*** Mnemonic not found ***\",0)","v":"*** Mnemonic not found ***"},"ADJCAPCOM9995_5__",null,"Adjustment",null,null,9,"G","Adjustment!G9",{"$f":"_xlfn.XLOOKUP(F2184,'Raw Data'!$I$4:$I$5000,'Raw Data'!$E$4:$E$5000,100,0)","v":100},{"$f":"IF(N2184=0,_xlfn.XLOOKUP(F2184,'Raw Data'!$I$4:$I$5000,'Raw Data'!$H$4:$H$5000,\"\",0),\"\")","v":""},{"$f":"IF(INDIRECT(M2184) = \"\",\"\",INDIRECT(M2184))","v":""},"n"]
["ADJCAPCOM9995_6",null,null,null,{"$f":"_xlfn.XLOOKUP(F2185,'Raw Data'!$I$4:$I$5000,'Raw Data'!$D$4:$D$5000,\"*** Mnemonic not found ***\",0)","v":"*** Mnemonic not found ***"},"ADJCAPCOM9995_6__",null,"Adjustment",null,null,10,"G","Adjustment!G10",{"$f":"_xlfn.XLOOKUP(F2185,'Raw Data'!$I$4:$I$5000,'Raw Data'!$E$4:$E$5000,100,0)","v":100},{"$f":"IF(N2185=0,_xlfn.XLOOKUP(F2185,'Raw Data'!$I$4:$I$5000,'Raw Data'!$H$4:$H$5000,\"\",0),\"\")","v":""},{"$f":"IF(INDIRECT(M2185) = \"\",\"\",INDIRECT(M2185))","v":""},"n"]
["ADJCAPCOM9995_7",null,null,null,{"$f":"_xlfn.XLOOKUP(F2186,'Raw Data'!$I$4:$I$5000,'Raw Data'!$D$4:$D$5000,\"*** Mnemonic not found ***\",0)","v":"*** Mnemonic not found ***"},"ADJCAPCOM9995_7__",null,"Adjustment",null,null,11,"G","Adjustment!G11",{"$f":"_xlfn.XLOOKUP(F2186,'Raw Data'!$I$4:$I$5000,'Raw Data'!$E$4:$E$5000,100,0)","v":100},{"$f":"IF(N2186=0,_xlfn.XLOOKUP(F2186,'Raw Data'!$I$4:$I$5000,'Raw Data'!$H$4:$H$5000,\"\",0),\"\")","v":""},{"$f":"IF(INDIRECT(M2186) = \"\",\"\",INDIRECT(M2186))","v":""},"n"]
["ADJCAPCOM9995_8",null,null,null,{"$f":"_xlfn.XLOOKUP(F2187,'Raw Data'!$I$4:$I$5000,'Raw Data'!$D$4:$D$5000,\"*** Mnemonic not found ***\",0)","v":"*** Mnemonic not found ***"},"ADJCAPCOM9995_8__",null,"Adjustment",null,null,12,"G","Adjustment!G12",{"$f":"_xlfn.XLOOKUP(F2187,'Raw Data'!$I$4:$I$5000,'Raw Data'!$E$4:$E$5000,100,0)","v":100},{"$f":"IF(N2187=0,_xlfn.XLOOKUP(F2187,'Raw Data'!$I$4:$I$5000,'Raw Data'!$H$4:$H$5000,\"\",0),\"\")","v":""},{"$f":"IF(INDIRECT(M2187) = \"\",\"\",INDIRECT(M2187))","v":""},"n"]
["ADJCAPCOM9995_9",null,null,null,{"$f":"_xlfn.XLOOKUP(F2188,'Raw Data'!$I$4:$I$5000,'Raw Data'!$D$4:$D$5000,\"*** Mnemonic not found ***\",0)","v":"*** Mnemonic not found ***"},"ADJCAPCOM9995_9__",null,"Adjustment",null,null,13,"G","Adjustment!G13",{"$f":"_xlfn.XLOOKUP(F2188,'Raw Data'!$I$4:$I$5000,'Raw Data'!$E$4:$E$5000,100,0)","v":100},{"$f":"IF(N2188=0,_xlfn.XLOOKUP(F2188,'Raw Data'!$I$4:$I$5000,'Raw Data'!$H$4:$H$5000,\"\",0),\"\")","v":""},{"$f":"IF(INDIRECT(M2188) = \"\",\"\",INDIRECT(M2188))","v":""},"n"]
["ADJCAPCOM9995_10",null,null,null,{"$f":"_xlfn.XLOOKUP(F2189,'Raw Data'!$I$4:$I$5000,'Raw Data'!$D$4:$D$5000,\"*** Mnemonic not found ***\",0)","v":"*** Mnemonic not found ***"},{"$f":"CONCATENATE(A2189,\"_\",B2189,\"_\",D2189)","v":"ADJCAPCOM9995_10__"},null,"Adjustment",null,null,14,"G","Adjustment!G14",{"$f":"_xlfn.XLOOKUP(F2189,'Raw Data'!$I$4:$I$5000,'Raw Data'!$E$4:$E$5000,100,0)","v":100},{"$f":"IF(N2189=0,_xlfn.XLOOKUP(F2189,'Raw Data'!$I$4:$I$5000,'Raw Data'!$H$4:$H$5000,\"\",0),\"\")","v":""},{"$f":"IF(INDIRECT(M2189) = \"\",\"\",INDIRECT(M2189))","v":""},"n"]
["ADJCAPCOM9995_11",null,null,null,{"$f":"_xlfn.XLOOKUP(F2190,'Raw Data'!$I$4:$I$5000,'Raw Data'!$D$4:$D$5000,\"*** Mnemonic not found ***\",0)","v":"*** Mnemonic not found ***"},"ADJCAPCOM9995_11__",null,"Adjustment",null,null,15,"G","Adjustment!G15",{"$f":"_xlfn.XLOOKUP(F2190,'Raw Data'!$I$4:$I$5000,'Raw Data'!$E$4:$E$5000,100,0)","v":100},{"$f":"IF(N2190=0,_xlfn.XLOOKUP(F2190,'Raw Data'!$I$4:$I$5000,'Raw Data'!$H$4:$H$5000,\"\",0),\"\")","v":""},{"$f":"IF(INDIRECT(M2190) = \"\",\"\",INDIRECT(M2190))","v":""},"n"]
["ADJCAPCOM9995_12",null,null,null,{"$f":"_xlfn.XLOOKUP(F2191,'Raw Data'!$I$4:$I$5000,'Raw Data'!$D$4:$D$5000,\"*** Mnemonic not found ***\",0)","v":"*** Mnemonic not found ***"},"ADJCAPCOM9995_12__",null,"Adjustment",null,null,16,"G","Adjustment!G16",{"$f":"_xlfn.XLOOKUP(F2191,'Raw Data'!$I$4:$I$5000,'Raw Data'!$E$4:$E$5000,100,0)","v":100},{"$f":"IF(N2191=0,_xlfn.XLOOKUP(F2191,'Raw Data'!$I$4:$I$5000,'Raw Data'!$H$4:$H$5000,\"\",0),\"\")","v":""},{"$f":"IF(INDIRECT(M2191) = \"\",\"\",INDIRECT(M2191))","v":""},"n"]
["ADJCAPCOM9995_13",null,null,null,{"$f":"_xlfn.XLOOKUP(F2192,'Raw Data'!$I$4:$I$5000,'Raw Data'!$D$4:$D$5000,\"*** Mnemonic not found ***\",0)","v":"*** Mnemonic not found ***"},"ADJCAPCOM9995_13__",null,"Adjustment",null,null,17,"G","Adjustment!G17",{"$f":"_xlfn.XLOOKUP(F2192,'Raw Data'!$I$4:$I$5000,'Raw Data'!$E$4:$E$5000,100,0)","v":100},{"$f":"IF(N2192=0,_xlfn.XLOOKUP(F2192,'Raw Data'!$I$4:$I$5000,'Raw Data'!$H$4:$H$5000,\"\",0),\"\")","v":""},{"$f":"IF(INDIRECT(M2192) = \"\",\"\",INDIRECT(M2192))","v":""},"n"]
["ADJCAPCOM9995_14",null,null,null,{"$f":"_xlfn.XLOOKUP(F2193,'Raw Data'!$I$4:$I$5000,'Raw Data'!$D$4:$D$5000,\"*** Mnemonic not found ***\",0)","v":"*** Mnemonic not found ***"},"ADJCAPCOM9995_14__",null,"Adjustment",null,null,18,"G","Adjustment!G18",{"$f":"_xlfn.XLOOKUP(F2193,'Raw Data'!$I$4:$I$5000,'Raw Data'!$E$4:$E$5000,100,0)","v":100},{"$f":"IF(N2193=0,_xlfn.XLOOKUP(F2193,'Raw Data'!$I$4:$I$5000,'Raw Data'!$H$4:$H$5000,\"\",0),\"\")","v":""},{"$f":"IF(INDIRECT(M2193) = \"\",\"\",INDIRECT(M2193))","v":""},"n"]
["ADJCAPCOM9995_15",null,null,null,{"$f":"_xlfn.XLOOKUP(F2194,'Raw Data'!$I$4:$I$5000,'Raw Data'!$D$4:$D$5000,\"*** Mnemonic not found ***\",0)","v":"*** Mnemonic not found ***"},"ADJCAPCOM9995_15__",null,"Adjustment",null,null,19,"G","Adjustment!G19",{"$f":"_xlfn.XLOOKUP(F2194,'Raw Data'!$I$4:$I$5000,'Raw Data'!$E$4:$E$5000,100,0)","v":100},{"$f":"IF(N2194=0,_xlfn.XLOOKUP(F2194,'Raw Data'!$I$4:$I$5000,'Raw Data'!$H$4:$H$5000,\"\",0),\"\")","v":""},{"$f":"IF(INDIRECT(M2194) = \"\",\"\",INDIRECT(M2194))","v":""},"n"]
["ADJCAPCOM9995_16",null,null,null,{"$f":"_xlfn.XLOOKUP(F2195,'Raw Data'!$I$4:$I$5000,'Raw Data'!$D$4:$D$5000,\"*** Mnemonic not found ***\",0)","v":"*** Mnemonic not found ***"},"ADJCAPCOM9995_16__",null,"Adjustment",null,null,20,"G","Adjustment!G20",{"$f":"_xlfn.XLOOKUP(F2195,'Raw Data'!$I$4:$I$5000,'Raw Data'!$E$4:$E$5000,100,0)","v":100},{"$f":"IF(N2195=0,_xlfn.XLOOKUP(F2195,'Raw Data'!$I$4:$I$5000,'Raw Data'!$H$4:$H$5000,\"\",0),\"\")","v":""},{"$f":"IF(INDIRECT(M2195) = \"\",\"\",INDIRECT(M2195))","v":""},"n"]
["ADJCAPCOM9995_17",null,null,null,{"$f":"_xlfn.XLOOKUP(F2196,'Raw Data'!$I$4:$I$5000,'Raw Data'!$D$4:$D$5000,\"*** Mnemonic not found ***\",0)","v":"*** Mnemonic not found ***"},"ADJCAPCOM9995_17__",null,"Adjustment",null,null,21,"G","Adjustment!G21",{"$f":"_xlfn.XLOOKUP(F2196,'Raw Data'!$I$4:$I$5000,'Raw Data'!$E$4:$E$5000,100,0)","v":100},{"$f":"IF(N2196=0,_xlfn.XLOOKUP(F2196,'Raw Data'!$I$4:$I$5000,'Raw Data'!$H$4:$H$5000,\"\",0),\"\")","v":""},{"$f":"IF(INDIRECT(M2196) = \"\",\"\",INDIRECT(M2196))","v":""},"n"]
["ADJCAPCOM9995_18",null,null,null,{"$f":"_xlfn.XLOOKUP(F2197,'Raw Data'!$I$4:$I$5000,'Raw Data'!$D$4:$D$5000,\"*** Mnemonic not found ***\",0)","v":"*** Mnemonic not found ***"},"ADJCAPCOM9995_18__",null,"Adjustment",null,null,22,"G","Adjustment!G22",{"$f":"_xlfn.XLOOKUP(F2197,'Raw Data'!$I$4:$I$5000,'Raw Data'!$E$4:$E$5000,100,0)","v":100},{"$f":"IF(N2197=0,_xlfn.XLOOKUP(F2197,'Raw Data'!$I$4:$I$5000,'Raw Data'!$H$4:$H$5000,\"\",0),\"\")","v":""},{"$f":"IF(INDIRECT(M2197) = \"\",\"\",INDIRECT(M2197))","v":""},"n"]
["ADJCAPCOM9995_19",null,null,null,{"$f":"_xlfn.XLOOKUP(F2198,'Raw Data'!$I$4:$I$5000,'Raw Data'!$D$4:$D$5000,\"*** Mnemonic not found ***\",0)","v":"*** Mnemonic not found ***"},"ADJCAPCOM9995_19__",null,"Adjustment",null,null,23,"G","Adjustment!G23",{"$f":"_xlfn.XLOOKUP(F2198,'Raw Data'!$I$4:$I$5000,'Raw Data'!$E$4:$E$5000,100,0)","v":100},{"$f":"IF(N2198=0,_xlfn.XLOOKUP(F2198,'Raw Data'!$I$4:$I$5000,'Raw Data'!$H$4:$H$5000,\"\",0),\"\")","v":""},{"$f":"IF(INDIRECT(M2198) = \"\",\"\",INDIRECT(M2198))","v":""},"n"]
["ADJCAPCOM9995_20",null,null,null,{"$f":"_xlfn.XLOOKUP(F2199,'Raw Data'!$I$4:$I$5000,'Raw Data'!$D$4:$D$5000,\"*** Mnemonic not found ***\",0)","v":"*** Mnemonic not found ***"},"ADJCAPCOM9995_20__",null,"Adjustment",null,null,24,"G","Adjustment!G24",{"$f":"_xlfn.XLOOKUP(F2199,'Raw Data'!$I$4:$I$5000,'Raw Data'!$E$4:$E$5000,100,0)","v":100},{"$f":"IF(N2199=0,_xlfn.XLOOKUP(F2199,'Raw Data'!$I$4:$I$5000,'Raw Data'!$H$4:$H$5000,\"\",0),\"\")","v":""},{"$f":"IF(INDIRECT(M2199) = \"\",\"\",INDIRECT(M2199))","v":""},"n"]
["ADJCAPCOM9980_1",null,null,null,{"$f":"_xlfn.XLOOKUP(F2200,'Raw Data'!$I$4:$I$5000,'Raw Data'!$D$4:$D$5000,\"*** Mnemonic not found ***\",0)","v":"*** Mnemonic not found ***"},"ADJCAPCOM9980_1__",null,"Adjustment",null,null,{"$f":"K2180","v":5},"H","Adjustment!H5",{"$f":"_xlfn.XLOOKUP(F2200,'Raw Data'!$I$4:$I$5000,'Raw Data'!$E$4:$E$5000,100,0)","v":100},{"$f":"IF(N2200=0,_xlfn.XLOOKUP(F2200,'Raw Data'!$I$4:$I$5000,'Raw Data'!$H$4:$H$5000,\"\",0),\"\")","v":""},{"$f":"IF(INDIRECT(M2200) = \"\",\"\",INDIRECT(M2200))","v":""},"n"]
["ADJCAPCOM9980_2",null,null,null,{"$f":"_xlfn.XLOOKUP(F2201,'Raw Data'!$I$4:$I$5000,'Raw Data'!$D$4:$D$5000,\"*** Mnemonic not found ***\",0)","v":"*** Mnemonic not found ***"},"ADJCAPCOM9980_2__",null,"Adjustment",null,null,{"$f":"K2200+1","v":6},{"$f":"L2200","v":"H"},"Adjustment!H6",{"$f":"_xlfn.XLOOKUP(F2201,'Raw Data'!$I$4:$I$5000,'Raw Data'!$E$4:$E$5000,100,0)","v":100},{"$f":"IF(N2201=0,_xlfn.XLOOKUP(F2201,'Raw Data'!$I$4:$I$5000,'Raw Data'!$H$4:$H$5000,\"\",0),\"\")","v":""},{"$f":"IF(INDIRECT(M2201) = \"\",\"\",INDIRECT(M2201))","v":""},"n"]
["ADJCAPCOM9980_3",null,null,null,{"$f":"_xlfn.XLOOKUP(F2202,'Raw Data'!$I$4:$I$5000,'Raw Data'!$D$4:$D$5000,\"*** Mnemonic not found ***\",0)","v":"*** Mnemonic not found ***"},"ADJCAPCOM9980_3__",null,"Adjustment",null,null,{"$f":"K2201+1","v":7},{"$f":"L2201","v":"H"},"Adjustment!H7",{"$f":"_xlfn.XLOOKUP(F2202,'Raw Data'!$I$4:$I$5000,'Raw Data'!$E$4:$E$5000,100,0)","v":100},{"$f":"IF(N2202=0,_xlfn.XLOOKUP(F2202,'Raw Data'!$I$4:$I$5000,'Raw Data'!$H$4:$H$5000,\"\",0),\"\")","v":""},{"$f":"IF(INDIRECT(M2202) = \"\",\"\",INDIRECT(M2202))","v":""},"n"]
["ADJCAPCOM9980_4",null,null,null,{"$f":"_xlfn.XLOOKUP(F2203,'Raw Data'!$I$4:$I$5000,'Raw Data'!$D$4:$D$5000,\"*** Mnemonic not found ***\",0)","v":"*** Mnemonic not found ***"},"ADJCAPCOM9980_4__",null,"Adjustment",null,null,8,"H","Adjustment!H8",{"$f":"_xlfn.XLOOKUP(F2203,'Raw Data'!$I$4:$I$5000,'Raw Data'!$E$4:$E$5000,100,0)","v":100},{"$f":"IF(N2203=0,_xlfn.XLOOKUP(F2203,'Raw Data'!$I$4:$I$5000,'Raw Data'!$H$4:$H$5000,\"\",0),\"\")","v":""},{"$f":"IF(INDIRECT(M2203) = \"\",\"\",INDIRECT(M2203))","v":""},"n"]
["ADJCAPCOM9980_5",null,null,null,{"$f":"_xlfn.XLOOKUP(F2204,'Raw Data'!$I$4:$I$5000,'Raw Data'!$D$4:$D$5000,\"*** Mnemonic not found ***\",0)","v":"*** Mnemonic not found ***"},"ADJCAPCOM9980_5__",null,"Adjustment",null,null,9,"H","Adjustment!H9",{"$f":"_xlfn.XLOOKUP(F2204,'Raw Data'!$I$4:$I$5000,'Raw Data'!$E$4:$E$5000,100,0)","v":100},{"$f":"IF(N2204=0,_xlfn.XLOOKUP(F2204,'Raw Data'!$I$4:$I$5000,'Raw Data'!$H$4:$H$5000,\"\",0),\"\")","v":""},{"$f":"IF(INDIRECT(M2204) = \"\",\"\",INDIRECT(M2204))","v":""},"n"]
["ADJCAPCOM9980_6",null,null,null,{"$f":"_xlfn.XLOOKUP(F2205,'Raw Data'!$I$4:$I$5000,'Raw Data'!$D$4:$D$5000,\"*** Mnemonic not found ***\",0)","v":"*** Mnemonic not found ***"},"ADJCAPCOM9980_6__",null,"Adjustment",null,null,10,"H","Adjustment!H10",{"$f":"_xlfn.XLOOKUP(F2205,'Raw Data'!$I$4:$I$5000,'Raw Data'!$E$4:$E$5000,100,0)","v":100},{"$f":"IF(N2205=0,_xlfn.XLOOKUP(F2205,'Raw Data'!$I$4:$I$5000,'Raw Data'!$H$4:$H$5000,\"\",0),\"\")","v":""},{"$f":"IF(INDIRECT(M2205) = \"\",\"\",INDIRECT(M2205))","v":""},"n"]
["ADJCAPCOM9980_7",null,null,null,{"$f":"_xlfn.XLOOKUP(F2206,'Raw Data'!$I$4:$I$5000,'Raw Data'!$D$4:$D$5000,\"*** Mnemonic not found ***\",0)","v":"*** Mnemonic not found ***"},"ADJCAPCOM9980_7__",null,"Adjustment",null,null,11,"H","Adjustment!H11",{"$f":"_xlfn.XLOOKUP(F2206,'Raw Data'!$I$4:$I$5000,'Raw Data'!$E$4:$E$5000,100,0)","v":100},{"$f":"IF(N2206=0,_xlfn.XLOOKUP(F2206,'Raw Data'!$I$4:$I$5000,'Raw Data'!$H$4:$H$5000,\"\",0),\"\")","v":""},{"$f":"IF(INDIRECT(M2206) = \"\",\"\",INDIRECT(M2206))","v":""},"n"]
["ADJCAPCOM9980_8",null,null,null,{"$f":"_xlfn.XLOOKUP(F2207,'Raw Data'!$I$4:$I$5000,'Raw Data'!$D$4:$D$5000,\"*** Mnemonic not found ***\",0)","v":"*** Mnemonic not found ***"},"ADJCAPCOM9980_8__",null,"Adjustment",null,null,12,"H","Adjustment!H12",{"$f":"_xlfn.XLOOKUP(F2207,'Raw Data'!$I$4:$I$5000,'Raw Data'!$E$4:$E$5000,100,0)","v":100},{"$f":"IF(N2207=0,_xlfn.XLOOKUP(F2207,'Raw Data'!$I$4:$I$5000,'Raw Data'!$H$4:$H$5000,\"\",0),\"\")","v":""},{"$f":"IF(INDIRECT(M2207) = \"\",\"\",INDIRECT(M2207))","v":""},"n"]
["ADJCAPCOM9980_9",null,null,null,{"$f":"_xlfn.XLOOKUP(F2208,'Raw Data'!$I$4:$I$5000,'Raw Data'!$D$4:$D$5000,\"*** Mnemonic not found ***\",0)","v":"*** Mnemonic not found ***"},"ADJCAPCOM9980_9__",null,"Adjustment",null,null,13,"H","Adjustment!H13",{"$f":"_xlfn.XLOOKUP(F2208,'Raw Data'!$I$4:$I$5000,'Raw Data'!$E$4:$E$5000,100,0)","v":100},{"$f":"IF(N2208=0,_xlfn.XLOOKUP(F2208,'Raw Data'!$I$4:$I$5000,'Raw Data'!$H$4:$H$5000,\"\",0),\"\")","v":""},{"$f":"IF(INDIRECT(M2208) = \"\",\"\",INDIRECT(M2208))","v":""},"n"]
["ADJCAPCOM9980_10",null,null,null,{"$f":"_xlfn.XLOOKUP(F2209,'Raw Data'!$I$4:$I$5000,'Raw Data'!$D$4:$D$5000,\"*** Mnemonic not found ***\",0)","v":"*** Mnemonic not found ***"},"ADJCAPCOM9980_10__",null,"Adjustment",null,null,14,"H","Adjustment!H14",{"$f":"_xlfn.XLOOKUP(F2209,'Raw Data'!$I$4:$I$5000,'Raw Data'!$E$4:$E$5000,100,0)","v":100},{"$f":"IF(N2209=0,_xlfn.XLOOKUP(F2209,'Raw Data'!$I$4:$I$5000,'Raw Data'!$H$4:$H$5000,\"\",0),\"\")","v":""},{"$f":"IF(INDIRECT(M2209) = \"\",\"\",INDIRECT(M2209))","v":""},"n"]
["ADJCAPCOM9980_11",null,null,null,{"$f":"_xlfn.XLOOKUP(F2210,'Raw Data'!$I$4:$I$5000,'Raw Data'!$D$4:$D$5000,\"*** Mnemonic not found ***\",0)","v":"*** Mnemonic not found ***"},"ADJCAPCOM9980_11__",null,"Adjustment",null,null,15,"H","Adjustment!H15",{"$f":"_xlfn.XLOOKUP(F2210,'Raw Data'!$I$4:$I$5000,'Raw Data'!$E$4:$E$5000,100,0)","v":100},{"$f":"IF(N2210=0,_xlfn.XLOOKUP(F2210,'Raw Data'!$I$4:$I$5000,'Raw Data'!$H$4:$H$5000,\"\",0),\"\")","v":""},{"$f":"IF(INDIRECT(M2210) = \"\",\"\",INDIRECT(M2210))","v":""},"n"]
["ADJCAPCOM9980_12",null,null,null,{"$f":"_xlfn.XLOOKUP(F2211,'Raw Data'!$I$4:$I$5000,'Raw Data'!$D$4:$D$5000,\"*** Mnemonic not found ***\",0)","v":"*** Mnemonic not found ***"},"ADJCAPCOM9980_12__",null,"Adjustment",null,null,16,"H","Adjustment!H16",{"$f":"_xlfn.XLOOKUP(F2211,'Raw Data'!$I$4:$I$5000,'Raw Data'!$E$4:$E$5000,100,0)","v":100},{"$f":"IF(N2211=0,_xlfn.XLOOKUP(F2211,'Raw Data'!$I$4:$I$5000,'Raw Data'!$H$4:$H$5000,\"\",0),\"\")","v":""},{"$f":"IF(INDIRECT(M2211) = \"\",\"\",INDIRECT(M2211))","v":""},"n"]
["ADJCAPCOM9980_13",null,null,null,{"$f":"_xlfn.XLOOKUP(F2212,'Raw Data'!$I$4:$I$5000,'Raw Data'!$D$4:$D$5000,\"*** Mnemonic not found ***\",0)","v":"*** Mnemonic not found ***"},"ADJCAPCOM9980_13__",null,"Adjustment",null,null,17,"H","Adjustment!H17",{"$f":"_xlfn.XLOOKUP(F2212,'Raw Data'!$I$4:$I$5000,'Raw Data'!$E$4:$E$5000,100,0)","v":100},{"$f":"IF(N2212=0,_xlfn.XLOOKUP(F2212,'Raw Data'!$I$4:$I$5000,'Raw Data'!$H$4:$H$5000,\"\",0),\"\")","v":""},{"$f":"IF(INDIRECT(M2212) = \"\",\"\",INDIRECT(M2212))","v":""},"n"]
["ADJCAPCOM9980_14",null,null,null,{"$f":"_xlfn.XLOOKUP(F2213,'Raw Data'!$I$4:$I$5000,'Raw Data'!$D$4:$D$5000,\"*** Mnemonic not found ***\",0)","v":"*** Mnemonic not found ***"},"ADJCAPCOM9980_14__",null,"Adjustment",null,null,18,"H","Adjustment!H18",{"$f":"_xlfn.XLOOKUP(F2213,'Raw Data'!$I$4:$I$5000,'Raw Data'!$E$4:$E$5000,100,0)","v":100},{"$f":"IF(N2213=0,_xlfn.XLOOKUP(F2213,'Raw Data'!$I$4:$I$5000,'Raw Data'!$H$4:$H$5000,\"\",0),\"\")","v":""},{"$f":"IF(INDIRECT(M2213) = \"\",\"\",INDIRECT(M2213))","v":""},"n"]
["ADJCAPCOM9980_15",null,null,null,{"$f":"_xlfn.XLOOKUP(F2214,'Raw Data'!$I$4:$I$5000,'Raw Data'!$D$4:$D$5000,\"*** Mnemonic not found ***\",0)","v":"*** Mnemonic not found ***"},"ADJCAPCOM9980_15__",null,"Adjustment",null,null,19,"H","Adjustment!H19",{"$f":"_xlfn.XLOOKUP(F2214,'Raw Data'!$I$4:$I$5000,'Raw Data'!$E$4:$E$5000,100,0)","v":100},{"$f":"IF(N2214=0,_xlfn.XLOOKUP(F2214,'Raw Data'!$I$4:$I$5000,'Raw Data'!$H$4:$H$5000,\"\",0),\"\")","v":""},{"$f":"IF(INDIRECT(M2214) = \"\",\"\",INDIRECT(M2214))","v":""},"n"]
["ADJCAPCOM9980_16",null,null,null,{"$f":"_xlfn.XLOOKUP(F2215,'Raw Data'!$I$4:$I$5000,'Raw Data'!$D$4:$D$5000,\"*** Mnemonic not found ***\",0)","v":"*** Mnemonic not found ***"},"ADJCAPCOM9980_16__",null,"Adjustment",null,null,20,"H","Adjustment!H20",{"$f":"_xlfn.XLOOKUP(F2215,'Raw Data'!$I$4:$I$5000,'Raw Data'!$E$4:$E$5000,100,0)","v":100},{"$f":"IF(N2215=0,_xlfn.XLOOKUP(F2215,'Raw Data'!$I$4:$I$5000,'Raw Data'!$H$4:$H$5000,\"\",0),\"\")","v":""},{"$f":"IF(INDIRECT(M2215) = \"\",\"\",INDIRECT(M2215))","v":""},"n"]
["ADJCAPCOM9980_17",null,null,null,{"$f":"_xlfn.XLOOKUP(F2216,'Raw Data'!$I$4:$I$5000,'Raw Data'!$D$4:$D$5000,\"*** Mnemonic not found ***\",0)","v":"*** Mnemonic not found ***"},"ADJCAPCOM9980_17__",null,"Adjustment",null,null,21,"H","Adjustment!H21",{"$f":"_xlfn.XLOOKUP(F2216,'Raw Data'!$I$4:$I$5000,'Raw Data'!$E$4:$E$5000,100,0)","v":100},{"$f":"IF(N2216=0,_xlfn.XLOOKUP(F2216,'Raw Data'!$I$4:$I$5000,'Raw Data'!$H$4:$H$5000,\"\",0),\"\")","v":""},{"$f":"IF(INDIRECT(M2216) = \"\",\"\",INDIRECT(M2216))","v":""},"n"]
["ADJCAPCOM9980_18",null,null,null,{"$f":"_xlfn.XLOOKUP(F2217,'Raw Data'!$I$4:$I$5000,'Raw Data'!$D$4:$D$5000,\"*** Mnemonic not found ***\",0)","v":"*** Mnemonic not found ***"},"ADJCAPCOM9980_18__",null,"Adjustment",null,null,22,"H","Adjustment!H22",{"$f":"_xlfn.XLOOKUP(F2217,'Raw Data'!$I$4:$I$5000,'Raw Data'!$E$4:$E$5000,100,0)","v":100},{"$f":"IF(N2217=0,_xlfn.XLOOKUP(F2217,'Raw Data'!$I$4:$I$5000,'Raw Data'!$H$4:$H$5000,\"\",0),\"\")","v":""},{"$f":"IF(INDIRECT(M2217) = \"\",\"\",INDIRECT(M2217))","v":""},"n"]
["ADJCAPCOM9980_19",null,null,null,{"$f":"_xlfn.XLOOKUP(F2218,'Raw Data'!$I$4:$I$5000,'Raw Data'!$D$4:$D$5000,\"*** Mnemonic not found ***\",0)","v":"*** Mnemonic not found ***"},"ADJCAPCOM9980_19__",null,"Adjustment",null,null,23,"H","Adjustment!H23",{"$f":"_xlfn.XLOOKUP(F2218,'Raw Data'!$I$4:$I$5000,'Raw Data'!$E$4:$E$5000,100,0)","v":100},{"$f":"IF(N2218=0,_xlfn.XLOOKUP(F2218,'Raw Data'!$I$4:$I$5000,'Raw Data'!$H$4:$H$5000,\"\",0),\"\")","v":""},{"$f":"IF(INDIRECT(M2218) = \"\",\"\",INDIRECT(M2218))","v":""},"n"]
["ADJCAPCOM9980_20",null,null,null,{"$f":"_xlfn.XLOOKUP(F2219,'Raw Data'!$I$4:$I$5000,'Raw Data'!$D$4:$D$5000,\"*** Mnemonic not found ***\",0)","v":"*** Mnemonic not found ***"},"ADJCAPCOM9980_20__",null,"Adjustment",null,null,24,"H","Adjustment!H24",{"$f":"_xlfn.XLOOKUP(F2219,'Raw Data'!$I$4:$I$5000,'Raw Data'!$E$4:$E$5000,100,0)","v":100},{"$f":"IF(N2219=0,_xlfn.XLOOKUP(F2219,'Raw Data'!$I$4:$I$5000,'Raw Data'!$H$4:$H$5000,\"\",0),\"\")","v":""},{"$f":"IF(INDIRECT(M2219) = \"\",\"\",INDIRECT(M2219))","v":""},"n"]
["ADJCAPCOM9950_1",null,null,null,{"$f":"_xlfn.XLOOKUP(F2220,'Raw Data'!$I$4:$I$5000,'Raw Data'!$D$4:$D$5000,\"*** Mnemonic not found ***\",0)","v":"*** Mnemonic not found ***"},"ADJCAPCOM9950_1__",null,"Adjustment",null,null,{"$f":"K2200","v":5},"I","Adjustment!I5",{"$f":"_xlfn.XLOOKUP(F2220,'Raw Data'!$I$4:$I$5000,'Raw Data'!$E$4:$E$5000,100,0)","v":100},{"$f":"IF(N2220=0,_xlfn.XLOOKUP(F2220,'Raw Data'!$I$4:$I$5000,'Raw Data'!$H$4:$H$5000,\"\",0),\"\")","v":""},{"$f":"IF(INDIRECT(M2220) = \"\",\"\",INDIRECT(M2220))","v":""},"n"]
["ADJCAPCOM9950_2",null,null,null,{"$f":"_xlfn.XLOOKUP(F2221,'Raw Data'!$I$4:$I$5000,'Raw Data'!$D$4:$D$5000,\"*** Mnemonic not found ***\",0)","v":"*** Mnemonic not found ***"},"ADJCAPCOM9950_2__",null,"Adjustment",null,null,{"$f":"K2220+1","v":6},{"$f":"L2220","v":"I"},"Adjustment!I6",{"$f":"_xlfn.XLOOKUP(F2221,'Raw Data'!$I$4:$I$5000,'Raw Data'!$E$4:$E$5000,100,0)","v":100},{"$f":"IF(N2221=0,_xlfn.XLOOKUP(F2221,'Raw Data'!$I$4:$I$5000,'Raw Data'!$H$4:$H$5000,\"\",0),\"\")","v":""},{"$f":"IF(INDIRECT(M2221) = \"\",\"\",INDIRECT(M2221))","v":""},"n"]
["ADJCAPCOM9950_3",null,null,null,{"$f":"_xlfn.XLOOKUP(F2222,'Raw Data'!$I$4:$I$5000,'Raw Data'!$D$4:$D$5000,\"*** Mnemonic not found ***\",0)","v":"*** Mnemonic not found ***"},"ADJCAPCOM9950_3__",null,"Adjustment",null,null,{"$f":"K2221+1","v":7},{"$f":"L2221","v":"I"},"Adjustment!I7",{"$f":"_xlfn.XLOOKUP(F2222,'Raw Data'!$I$4:$I$5000,'Raw Data'!$E$4:$E$5000,100,0)","v":100},{"$f":"IF(N2222=0,_xlfn.XLOOKUP(F2222,'Raw Data'!$I$4:$I$5000,'Raw Data'!$H$4:$H$5000,\"\",0),\"\")","v":""},{"$f":"IF(INDIRECT(M2222) = \"\",\"\",INDIRECT(M2222))","v":""},"n"]
["ADJCAPCOM9950_4",null,null,null,{"$f":"_xlfn.XLOOKUP(F2223,'Raw Data'!$I$4:$I$5000,'Raw Data'!$D$4:$D$5000,\"*** Mnemonic not found ***\",0)","v":"*** Mnemonic not found ***"},"ADJCAPCOM9950_4__",null,"Adjustment",null,null,8,"I","Adjustment!I8",{"$f":"_xlfn.XLOOKUP(F2223,'Raw Data'!$I$4:$I$5000,'Raw Data'!$E$4:$E$5000,100,0)","v":100},{"$f":"IF(N2223=0,_xlfn.XLOOKUP(F2223,'Raw Data'!$I$4:$I$5000,'Raw Data'!$H$4:$H$5000,\"\",0),\"\")","v":""},{"$f":"IF(INDIRECT(M2223) = \"\",\"\",INDIRECT(M2223))","v":""},"n"]
["ADJCAPCOM9950_5",null,null,null,{"$f":"_xlfn.XLOOKUP(F2224,'Raw Data'!$I$4:$I$5000,'Raw Data'!$D$4:$D$5000,\"*** Mnemonic not found ***\",0)","v":"*** Mnemonic not found ***"},"ADJCAPCOM9950_5__",null,"Adjustment",null,null,9,"I","Adjustment!I9",{"$f":"_xlfn.XLOOKUP(F2224,'Raw Data'!$I$4:$I$5000,'Raw Data'!$E$4:$E$5000,100,0)","v":100},{"$f":"IF(N2224=0,_xlfn.XLOOKUP(F2224,'Raw Data'!$I$4:$I$5000,'Raw Data'!$H$4:$H$5000,\"\",0),\"\")","v":""},{"$f":"IF(INDIRECT(M2224) = \"\",\"\",INDIRECT(M2224))","v":""},"n"]
["ADJCAPCOM9950_6",null,null,null,{"$f":"_xlfn.XLOOKUP(F2225,'Raw Data'!$I$4:$I$5000,'Raw Data'!$D$4:$D$5000,\"*** Mnemonic not found ***\",0)","v":"*** Mnemonic not found ***"},"ADJCAPCOM9950_6__",null,"Adjustment",null,null,10,"I","Adjustment!I10",{"$f":"_xlfn.XLOOKUP(F2225,'Raw Data'!$I$4:$I$5000,'Raw Data'!$E$4:$E$5000,100,0)","v":100},{"$f":"IF(N2225=0,_xlfn.XLOOKUP(F2225,'Raw Data'!$I$4:$I$5000,'Raw Data'!$H$4:$H$5000,\"\",0),\"\")","v":""},{"$f":"IF(INDIRECT(M2225) = \"\",\"\",INDIRECT(M2225))","v":""},"n"]
["ADJCAPCOM9950_7",null,null,null,{"$f":"_xlfn.XLOOKUP(F2226,'Raw Data'!$I$4:$I$5000,'Raw Data'!$D$4:$D$5000,\"*** Mnemonic not found ***\",0)","v":"*** Mnemonic not found ***"},"ADJCAPCOM9950_7__",null,"Adjustment",null,null,11,"I","Adjustment!I11",{"$f":"_xlfn.XLOOKUP(F2226,'Raw Data'!$I$4:$I$5000,'Raw Data'!$E$4:$E$5000,100,0)","v":100},{"$f":"IF(N2226=0,_xlfn.XLOOKUP(F2226,'Raw Data'!$I$4:$I$5000,'Raw Data'!$H$4:$H$5000,\"\",0),\"\")","v":""},{"$f":"IF(INDIRECT(M2226) = \"\",\"\",INDIRECT(M2226))","v":""},"n"]
["ADJCAPCOM9950_8",null,null,null,{"$f":"_xlfn.XLOOKUP(F2227,'Raw Data'!$I$4:$I$5000,'Raw Data'!$D$4:$D$5000,\"*** Mnemonic not found ***\",0)","v":"*** Mnemonic not found ***"},"ADJCAPCOM9950_8__",null,"Adjustment",null,null,12,"I",{"$f":"CONCATENATE(H2227,\"!\",L2227,K2227)","v":"Adjustment!I12"},{"$f":"_xlfn.XLOOKUP(F2227,'Raw Data'!$I$4:$I$5000,'Raw Data'!$E$4:$E$5000,100,0)","v":100},{"$f":"IF(N2227=0,_xlfn.XLOOKUP(F2227,'Raw Data'!$I$4:$I$5000,'Raw Data'!$H$4:$H$5000,\"\",0),\"\")","v":""},{"$f":"IF(INDIRECT(M2227) = \"\",\"\",INDIRECT(M2227))","v":""},"n"]
["ADJCAPCOM9950_9",null,null,null,{"$f":"_xlfn.XLOOKUP(F2228,'Raw Data'!$I$4:$I$5000,'Raw Data'!$D$4:$D$5000,\"*** Mnemonic not found ***\",0)","v":"*** Mnemonic not found ***"},"ADJCAPCOM9950_9__",null,"Adjustment",null,null,13,"I","Adjustment!I13",{"$f":"_xlfn.XLOOKUP(F2228,'Raw Data'!$I$4:$I$5000,'Raw Data'!$E$4:$E$5000,100,0)","v":100},{"$f":"IF(N2228=0,_xlfn.XLOOKUP(F2228,'Raw Data'!$I$4:$I$5000,'Raw Data'!$H$4:$H$5000,\"\",0),\"\")","v":""},{"$f":"IF(INDIRECT(M2228) = \"\",\"\",INDIRECT(M2228))","v":""},"n"]
["ADJCAPCOM9950_10",null,null,null,{"$f":"_xlfn.XLOOKUP(F2229,'Raw Data'!$I$4:$I$5000,'Raw Data'!$D$4:$D$5000,\"*** Mnemonic not found ***\",0)","v":"*** Mnemonic not found ***"},"ADJCAPCOM9950_10__",null,"Adjustment",null,null,14,"I","Adjustment!I14",{"$f":"_xlfn.XLOOKUP(F2229,'Raw Data'!$I$4:$I$5000,'Raw Data'!$E$4:$E$5000,100,0)","v":100},{"$f":"IF(N2229=0,_xlfn.XLOOKUP(F2229,'Raw Data'!$I$4:$I$5000,'Raw Data'!$H$4:$H$5000,\"\",0),\"\")","v":""},{"$f":"IF(INDIRECT(M2229) = \"\",\"\",INDIRECT(M2229))","v":""},"n"]
["ADJCAPCOM9950_11",null,null,null,{"$f":"_xlfn.XLOOKUP(F2230,'Raw Data'!$I$4:$I$5000,'Raw Data'!$D$4:$D$5000,\"*** Mnemonic not found ***\",0)","v":"*** Mnemonic not found ***"},"ADJCAPCOM9950_11__",null,"Adjustment",null,null,15,"I","Adjustment!I15",{"$f":"_xlfn.XLOOKUP(F2230,'Raw Data'!$I$4:$I$5000,'Raw Data'!$E$4:$E$5000,100,0)","v":100},{"$f":"IF(N2230=0,_xlfn.XLOOKUP(F2230,'Raw Data'!$I$4:$I$5000,'Raw Data'!$H$4:$H$5000,\"\",0),\"\")","v":""},{"$f":"IF(INDIRECT(M2230) = \"\",\"\",INDIRECT(M2230))","v":""},"n"]
["ADJCAPCOM9950_12",null,null,null,{"$f":"_xlfn.XLOOKUP(F2231,'Raw Data'!$I$4:$I$5000,'Raw Data'!$D$4:$D$5000,\"*** Mnemonic not found ***\",0)","v":"*** Mnemonic not found ***"},"ADJCAPCOM9950_12__",null,"Adjustment",null,null,16,"I","Adjustment!I16",{"$f":"_xlfn.XLOOKUP(F2231,'Raw Data'!$I$4:$I$5000,'Raw Data'!$E$4:$E$5000,100,0)","v":100},{"$f":"IF(N2231=0,_xlfn.XLOOKUP(F2231,'Raw Data'!$I$4:$I$5000,'Raw Data'!$H$4:$H$5000,\"\",0),\"\")","v":""},{"$f":"IF(INDIRECT(M2231) = \"\",\"\",INDIRECT(M2231))","v":""},"n"]
["ADJCAPCOM9950_13",null,null,null,{"$f":"_xlfn.XLOOKUP(F2232,'Raw Data'!$I$4:$I$5000,'Raw Data'!$D$4:$D$5000,\"*** Mnemonic not found ***\",0)","v":"*** Mnemonic not found ***"},"ADJCAPCOM9950_13__",null,"Adjustment",null,null,17,"I","Adjustment!I17",{"$f":"_xlfn.XLOOKUP(F2232,'Raw Data'!$I$4:$I$5000,'Raw Data'!$E$4:$E$5000,100,0)","v":100},{"$f":"IF(N2232=0,_xlfn.XLOOKUP(F2232,'Raw Data'!$I$4:$I$5000,'Raw Data'!$H$4:$H$5000,\"\",0),\"\")","v":""},{"$f":"IF(INDIRECT(M2232) = \"\",\"\",INDIRECT(M2232))","v":""},"n"]
["ADJCAPCOM9950_14",null,null,null,{"$f":"_xlfn.XLOOKUP(F2233,'Raw Data'!$I$4:$I$5000,'Raw Data'!$D$4:$D$5000,\"*** Mnemonic not found ***\",0)","v":"*** Mnemonic not found ***"},"ADJCAPCOM9950_14__",null,"Adjustment",null,null,18,"I","Adjustment!I18",{"$f":"_xlfn.XLOOKUP(F2233,'Raw Data'!$I$4:$I$5000,'Raw Data'!$E$4:$E$5000,100,0)","v":100},{"$f":"IF(N2233=0,_xlfn.XLOOKUP(F2233,'Raw Data'!$I$4:$I$5000,'Raw Data'!$H$4:$H$5000,\"\",0),\"\")","v":""},{"$f":"IF(INDIRECT(M2233) = \"\",\"\",INDIRECT(M2233))","v":""},"n"]
["ADJCAPCOM9950_15",null,null,null,{"$f":"_xlfn.XLOOKUP(F2234,'Raw Data'!$I$4:$I$5000,'Raw Data'!$D$4:$D$5000,\"*** Mnemonic not found ***\",0)","v":"*** Mnemonic not found ***"},"ADJCAPCOM9950_15__",null,"Adjustment",null,null,19,"I","Adjustment!I19",{"$f":"_xlfn.XLOOKUP(F2234,'Raw Data'!$I$4:$I$5000,'Raw Data'!$E$4:$E$5000,100,0)","v":100},{"$f":"IF(N2234=0,_xlfn.XLOOKUP(F2234,'Raw Data'!$I$4:$I$5000,'Raw Data'!$H$4:$H$5000,\"\",0),\"\")","v":""},{"$f":"IF(INDIRECT(M2234) = \"\",\"\",INDIRECT(M2234))","v":""},"n"]
["ADJCAPCOM9950_16",null,null,null,{"$f":"_xlfn.XLOOKUP(F2235,'Raw Data'!$I$4:$I$5000,'Raw Data'!$D$4:$D$5000,\"*** Mnemonic not found ***\",0)","v":"*** Mnemonic not found ***"},"ADJCAPCOM9950_16__",null,"Adjustment",null,null,20,"I","Adjustment!I20",{"$f":"_xlfn.XLOOKUP(F2235,'Raw Data'!$I$4:$I$5000,'Raw Data'!$E$4:$E$5000,100,0)","v":100},{"$f":"IF(N2235=0,_xlfn.XLOOKUP(F2235,'Raw Data'!$I$4:$I$5000,'Raw Data'!$H$4:$H$5000,\"\",0),\"\")","v":""},{"$f":"IF(INDIRECT(M2235) = \"\",\"\",INDIRECT(M2235))","v":""},"n"]
["ADJCAPCOM9950_17",null,null,null,{"$f":"_xlfn.XLOOKUP(F2236,'Raw Data'!$I$4:$I$5000,'Raw Data'!$D$4:$D$5000,\"*** Mnemonic not found ***\",0)","v":"*** Mnemonic not found ***"},"ADJCAPCOM9950_17__",null,"Adjustment",null,null,21,"I","Adjustment!I21",{"$f":"_xlfn.XLOOKUP(F2236,'Raw Data'!$I$4:$I$5000,'Raw Data'!$E$4:$E$5000,100,0)","v":100},{"$f":"IF(N2236=0,_xlfn.XLOOKUP(F2236,'Raw Data'!$I$4:$I$5000,'Raw Data'!$H$4:$H$5000,\"\",0),\"\")","v":""},{"$f":"IF(INDIRECT(M2236) = \"\",\"\",INDIRECT(M2236))","v":""},"n"]
["ADJCAPCOM9950_18",null,null,null,{"$f":"_xlfn.XLOOKUP(F2237,'Raw Data'!$I$4:$I$5000,'Raw Data'!$D$4:$D$5000,\"*** Mnemonic not found ***\",0)","v":"*** Mnemonic not found ***"},"ADJCAPCOM9950_18__",null,"Adjustment",null,null,22,"I","Adjustment!I22",{"$f":"_xlfn.XLOOKUP(F2237,'Raw Data'!$I$4:$I$5000,'Raw Data'!$E$4:$E$5000,100,0)","v":100},{"$f":"IF(N2237=0,_xlfn.XLOOKUP(F2237,'Raw Data'!$I$4:$I$5000,'Raw Data'!$H$4:$H$5000,\"\",0),\"\")","v":""},{"$f":"IF(INDIRECT(M2237) = \"\",\"\",INDIRECT(M2237))","v":""},"n"]
["ADJCAPCOM9950_19",null,null,null,{"$f":"_xlfn.XLOOKUP(F2238,'Raw Data'!$I$4:$I$5000,'Raw Data'!$D$4:$D$5000,\"*** Mnemonic not found ***\",0)","v":"*** Mnemonic not found ***"},"ADJCAPCOM9950_19__",null,"Adjustment",null,null,23,"I","Adjustment!I23",{"$f":"_xlfn.XLOOKUP(F2238,'Raw Data'!$I$4:$I$5000,'Raw Data'!$E$4:$E$5000,100,0)","v":100},{"$f":"IF(N2238=0,_xlfn.XLOOKUP(F2238,'Raw Data'!$I$4:$I$5000,'Raw Data'!$H$4:$H$5000,\"\",0),\"\")","v":""},{"$f":"IF(INDIRECT(M2238) = \"\",\"\",INDIRECT(M2238))","v":""},"n"]
["ADJCAPCOM9950_20",null,null,null,{"$f":"_xlfn.XLOOKUP(F2239,'Raw Data'!$I$4:$I$5000,'Raw Data'!$D$4:$D$5000,\"*** Mnemonic not found ***\",0)","v":"*** Mnemonic not found ***"},"ADJCAPCOM9950_20__",null,"Adjustment",null,null,24,"I","Adjustment!I24",{"$f":"_xlfn.XLOOKUP(F2239,'Raw Data'!$I$4:$I$5000,'Raw Data'!$E$4:$E$5000,100,0)","v":100},{"$f":"IF(N2239=0,_xlfn.XLOOKUP(F2239,'Raw Data'!$I$4:$I$5000,'Raw Data'!$H$4:$H$5000,\"\",0),\"\")","v":""},{"$f":"IF(INDIRECT(M2239) = \"\",\"\",INDIRECT(M2239))","v":""},"n"]
["ADJCAPCOMDESC1",null,null,null,{"$f":"_xlfn.XLOOKUP(F2240,'Raw Data'!$I$4:$I$5000,'Raw Data'!$D$4:$D$5000,\"*** Mnemonic not found ***\",0)","v":"*** Mnemonic not found ***"},"ADJCAPCOMDESC1__",null,"Adjustment",null,null,{"$f":"K2220","v":5},"J","Adjustment!J5",{"$f":"_xlfn.XLOOKUP(F2240,'Raw Data'!$I$4:$I$5000,'Raw Data'!$E$4:$E$5000,100,0)","v":100},{"$f":"IF(N2240=0,_xlfn.XLOOKUP(F2240,'Raw Data'!$I$4:$I$5000,'Raw Data'!$H$4:$H$5000,\"\",0),\"\")","v":""},{"$f":"IF(INDIRECT(M2240) = \"\",\"\",INDIRECT(M2240))","v":""},"c"]
["ADJCAPCOMDESC2",null,null,null,{"$f":"_xlfn.XLOOKUP(F2241,'Raw Data'!$I$4:$I$5000,'Raw Data'!$D$4:$D$5000,\"*** Mnemonic not found ***\",0)","v":"*** Mnemonic not found ***"},"ADJCAPCOMDESC2__",null,"Adjustment",null,null,{"$f":"K2240+1","v":6},{"$f":"L2240","v":"J"},"Adjustment!J6",{"$f":"_xlfn.XLOOKUP(F2241,'Raw Data'!$I$4:$I$5000,'Raw Data'!$E$4:$E$5000,100,0)","v":100},{"$f":"IF(N2241=0,_xlfn.XLOOKUP(F2241,'Raw Data'!$I$4:$I$5000,'Raw Data'!$H$4:$H$5000,\"\",0),\"\")","v":""},{"$f":"IF(INDIRECT(M2241) = \"\",\"\",INDIRECT(M2241))","v":""},"c"]
["ADJCAPCOMDESC3",null,null,null,{"$f":"_xlfn.XLOOKUP(F2242,'Raw Data'!$I$4:$I$5000,'Raw Data'!$D$4:$D$5000,\"*** Mnemonic not found ***\",0)","v":"*** Mnemonic not found ***"},"ADJCAPCOMDESC3__",null,"Adjustment",null,null,{"$f":"K2241+1","v":7},{"$f":"L2241","v":"J"},"Adjustment!J7",{"$f":"_xlfn.XLOOKUP(F2242,'Raw Data'!$I$4:$I$5000,'Raw Data'!$E$4:$E$5000,100,0)","v":100},{"$f":"IF(N2242=0,_xlfn.XLOOKUP(F2242,'Raw Data'!$I$4:$I$5000,'Raw Data'!$H$4:$H$5000,\"\",0),\"\")","v":""},{"$f":"IF(INDIRECT(M2242) = \"\",\"\",INDIRECT(M2242))","v":""},"c"]
["ADJCAPCOMDESC4",null,null,null,{"$f":"_xlfn.XLOOKUP(F2243,'Raw Data'!$I$4:$I$5000,'Raw Data'!$D$4:$D$5000,\"*** Mnemonic not found ***\",0)","v":"*** Mnemonic not found ***"},"ADJCAPCOMDESC4__",null,"Adjustment",null,null,8,"J","Adjustment!J8",{"$f":"_xlfn.XLOOKUP(F2243,'Raw Data'!$I$4:$I$5000,'Raw Data'!$E$4:$E$5000,100,0)","v":100},{"$f":"IF(N2243=0,_xlfn.XLOOKUP(F2243,'Raw Data'!$I$4:$I$5000,'Raw Data'!$H$4:$H$5000,\"\",0),\"\")","v":""},{"$f":"IF(INDIRECT(M2243) = \"\",\"\",INDIRECT(M2243))","v":""},"c"]
["ADJCAPCOMDESC5",null,null,null,{"$f":"_xlfn.XLOOKUP(F2244,'Raw Data'!$I$4:$I$5000,'Raw Data'!$D$4:$D$5000,\"*** Mnemonic not found ***\",0)","v":"*** Mnemonic not found ***"},"ADJCAPCOMDESC5__",null,"Adjustment",null,null,9,"J","Adjustment!J9",{"$f":"_xlfn.XLOOKUP(F2244,'Raw Data'!$I$4:$I$5000,'Raw Data'!$E$4:$E$5000,100,0)","v":100},{"$f":"IF(N2244=0,_xlfn.XLOOKUP(F2244,'Raw Data'!$I$4:$I$5000,'Raw Data'!$H$4:$H$5000,\"\",0),\"\")","v":""},{"$f":"IF(INDIRECT(M2244) = \"\",\"\",INDIRECT(M2244))","v":""},"c"]
["ADJCAPCOMDESC6",null,null,null,{"$f":"_xlfn.XLOOKUP(F2245,'Raw Data'!$I$4:$I$5000,'Raw Data'!$D$4:$D$5000,\"*** Mnemonic not found ***\",0)","v":"*** Mnemonic not found ***"},"ADJCAPCOMDESC6__",null,"Adjustment",null,null,10,"J","Adjustment!J10",{"$f":"_xlfn.XLOOKUP(F2245,'Raw Data'!$I$4:$I$5000,'Raw Data'!$E$4:$E$5000,100,0)","v":100},{"$f":"IF(N2245=0,_xlfn.XLOOKUP(F2245,'Raw Data'!$I$4:$I$5000,'Raw Data'!$H$4:$H$5000,\"\",0),\"\")","v":""},{"$f":"IF(INDIRECT(M2245) = \"\",\"\",INDIRECT(M2245))","v":""},"c"]
["ADJCAPCOMDESC7",null,null,null,{"$f":"_xlfn.XLOOKUP(F2246,'Raw Data'!$I$4:$I$5000,'Raw Data'!$D$4:$D$5000,\"*** Mnemonic not found ***\",0)","v":"*** Mnemonic not found ***"},"ADJCAPCOMDESC7__",null,"Adjustment",null,null,11,"J","Adjustment!J11",{"$f":"_xlfn.XLOOKUP(F2246,'Raw Data'!$I$4:$I$5000,'Raw Data'!$E$4:$E$5000,100,0)","v":100},{"$f":"IF(N2246=0,_xlfn.XLOOKUP(F2246,'Raw Data'!$I$4:$I$5000,'Raw Data'!$H$4:$H$5000,\"\",0),\"\")","v":""},{"$f":"IF(INDIRECT(M2246) = \"\",\"\",INDIRECT(M2246))","v":""},"c"]
["ADJCAPCOMDESC8",null,null,null,{"$f":"_xlfn.XLOOKUP(F2247,'Raw Data'!$I$4:$I$5000,'Raw Data'!$D$4:$D$5000,\"*** Mnemonic not found ***\",0)","v":"*** Mnemonic not found ***"},"ADJCAPCOMDESC8__",null,"Adjustment",null,null,12,"J","Adjustment!J12",{"$f":"_xlfn.XLOOKUP(F2247,'Raw Data'!$I$4:$I$5000,'Raw Data'!$E$4:$E$5000,100,0)","v":100},{"$f":"IF(N2247=0,_xlfn.XLOOKUP(F2247,'Raw Data'!$I$4:$I$5000,'Raw Data'!$H$4:$H$5000,\"\",0),\"\")","v":""},{"$f":"IF(INDIRECT(M2247) = \"\",\"\",INDIRECT(M2247))","v":""},"c"]
["ADJCAPCOMDESC9",null,null,null,{"$f":"_xlfn.XLOOKUP(F2248,'Raw Data'!$I$4:$I$5000,'Raw Data'!$D$4:$D$5000,\"*** Mnemonic not found ***\",0)","v":"*** Mnemonic not found ***"},"ADJCAPCOMDESC9__",null,"Adjustment",null,null,13,"J","Adjustment!J13",{"$f":"_xlfn.XLOOKUP(F2248,'Raw Data'!$I$4:$I$5000,'Raw Data'!$E$4:$E$5000,100,0)","v":100},{"$f":"IF(N2248=0,_xlfn.XLOOKUP(F2248,'Raw Data'!$I$4:$I$5000,'Raw Data'!$H$4:$H$5000,\"\",0),\"\")","v":""},{"$f":"IF(INDIRECT(M2248) = \"\",\"\",INDIRECT(M2248))","v":""},"c"]
["ADJCAPCOMDESC10",null,null,null,{"$f":"_xlfn.XLOOKUP(F2249,'Raw Data'!$I$4:$I$5000,'Raw Data'!$D$4:$D$5000,\"*** Mnemonic not found ***\",0)","v":"*** Mnemonic not found ***"},"ADJCAPCOMDESC10__",null,"Adjustment",null,null,14,"J","Adjustment!J14",{"$f":"_xlfn.XLOOKUP(F2249,'Raw Data'!$I$4:$I$5000,'Raw Data'!$E$4:$E$5000,100,0)","v":100},{"$f":"IF(N2249=0,_xlfn.XLOOKUP(F2249,'Raw Data'!$I$4:$I$5000,'Raw Data'!$H$4:$H$5000,\"\",0),\"\")","v":""},{"$f":"IF(INDIRECT(M2249) = \"\",\"\",INDIRECT(M2249))","v":""},"c"]
["ADJCAPCOMDESC11",null,null,null,{"$f":"_xlfn.XLOOKUP(F2250,'Raw Data'!$I$4:$I$5000,'Raw Data'!$D$4:$D$5000,\"*** Mnemonic not found ***\",0)","v":"*** Mnemonic not found ***"},"ADJCAPCOMDESC11__",null,"Adjustment",null,null,15,"J","Adjustment!J15",{"$f":"_xlfn.XLOOKUP(F2250,'Raw Data'!$I$4:$I$5000,'Raw Data'!$E$4:$E$5000,100,0)","v":100},{"$f":"IF(N2250=0,_xlfn.XLOOKUP(F2250,'Raw Data'!$I$4:$I$5000,'Raw Data'!$H$4:$H$5000,\"\",0),\"\")","v":""},{"$f":"IF(INDIRECT(M2250) = \"\",\"\",INDIRECT(M2250))","v":""},"c"]
["ADJCAPCOMDESC12",null,null,null,{"$f":"_xlfn.XLOOKUP(F2251,'Raw Data'!$I$4:$I$5000,'Raw Data'!$D$4:$D$5000,\"*** Mnemonic not found ***\",0)","v":"*** Mnemonic not found ***"},"ADJCAPCOMDESC12__",null,"Adjustment",null,null,16,"J","Adjustment!J16",{"$f":"_xlfn.XLOOKUP(F2251,'Raw Data'!$I$4:$I$5000,'Raw Data'!$E$4:$E$5000,100,0)","v":100},{"$f":"IF(N2251=0,_xlfn.XLOOKUP(F2251,'Raw Data'!$I$4:$I$5000,'Raw Data'!$H$4:$H$5000,\"\",0),\"\")","v":""},{"$f":"IF(INDIRECT(M2251) = \"\",\"\",INDIRECT(M2251))","v":""},"c"]
["ADJCAPCOMDESC13",null,null,null,{"$f":"_xlfn.XLOOKUP(F2252,'Raw Data'!$I$4:$I$5000,'Raw Data'!$D$4:$D$5000,\"*** Mnemonic not found ***\",0)","v":"*** Mnemonic not found ***"},"ADJCAPCOMDESC13__",null,"Adjustment",null,null,17,"J","Adjustment!J17",{"$f":"_xlfn.XLOOKUP(F2252,'Raw Data'!$I$4:$I$5000,'Raw Data'!$E$4:$E$5000,100,0)","v":100},{"$f":"IF(N2252=0,_xlfn.XLOOKUP(F2252,'Raw Data'!$I$4:$I$5000,'Raw Data'!$H$4:$H$5000,\"\",0),\"\")","v":""},{"$f":"IF(INDIRECT(M2252) = \"\",\"\",INDIRECT(M2252))","v":""},"c"]
["ADJCAPCOMDESC14",null,null,null,{"$f":"_xlfn.XLOOKUP(F2253,'Raw Data'!$I$4:$I$5000,'Raw Data'!$D$4:$D$5000,\"*** Mnemonic not found ***\",0)","v":"*** Mnemonic not found ***"},{"$f":"CONCATENATE(A2253,\"_\",B2253,\"_\",D2253)","v":"ADJCAPCOMDESC14__"},null,"Adjustment",null,null,18,"J","Adjustment!J18",{"$f":"_xlfn.XLOOKUP(F2253,'Raw Data'!$I$4:$I$5000,'Raw Data'!$E$4:$E$5000,100,0)","v":100},{"$f":"IF(N2253=0,_xlfn.XLOOKUP(F2253,'Raw Data'!$I$4:$I$5000,'Raw Data'!$H$4:$H$5000,\"\",0),\"\")","v":""},{"$f":"IF(INDIRECT(M2253) = \"\",\"\",INDIRECT(M2253))","v":""},"c"]
["ADJCAPCOMDESC15",null,null,null,{"$f":"_xlfn.XLOOKUP(F2254,'Raw Data'!$I$4:$I$5000,'Raw Data'!$D$4:$D$5000,\"*** Mnemonic not found ***\",0)","v":"*** Mnemonic not found ***"},"ADJCAPCOMDESC15__",null,"Adjustment",null,null,19,"J","Adjustment!J19",{"$f":"_xlfn.XLOOKUP(F2254,'Raw Data'!$I$4:$I$5000,'Raw Data'!$E$4:$E$5000,100,0)","v":100},{"$f":"IF(N2254=0,_xlfn.XLOOKUP(F2254,'Raw Data'!$I$4:$I$5000,'Raw Data'!$H$4:$H$5000,\"\",0),\"\")","v":""},{"$f":"IF(INDIRECT(M2254) = \"\",\"\",INDIRECT(M2254))","v":""},"c"]
["ADJCAPCOMDESC16",null,null,null,{"$f":"_xlfn.XLOOKUP(F2255,'Raw Data'!$I$4:$I$5000,'Raw Data'!$D$4:$D$5000,\"*** Mnemonic not found ***\",0)","v":"*** Mnemonic not found ***"},"ADJCAPCOMDESC16__",null,"Adjustment",null,null,20,"J","Adjustment!J20",{"$f":"_xlfn.XLOOKUP(F2255,'Raw Data'!$I$4:$I$5000,'Raw Data'!$E$4:$E$5000,100,0)","v":100},{"$f":"IF(N2255=0,_xlfn.XLOOKUP(F2255,'Raw Data'!$I$4:$I$5000,'Raw Data'!$H$4:$H$5000,\"\",0),\"\")","v":""},{"$f":"IF(INDIRECT(M2255) = \"\",\"\",INDIRECT(M2255))","v":""},"c"]
["ADJCAPCOMDESC17",null,null,null,{"$f":"_xlfn.XLOOKUP(F2256,'Raw Data'!$I$4:$I$5000,'Raw Data'!$D$4:$D$5000,\"*** Mnemonic not found ***\",0)","v":"*** Mnemonic not found ***"},"ADJCAPCOMDESC17__",null,"Adjustment",null,null,21,"J","Adjustment!J21",{"$f":"_xlfn.XLOOKUP(F2256,'Raw Data'!$I$4:$I$5000,'Raw Data'!$E$4:$E$5000,100,0)","v":100},{"$f":"IF(N2256=0,_xlfn.XLOOKUP(F2256,'Raw Data'!$I$4:$I$5000,'Raw Data'!$H$4:$H$5000,\"\",0),\"\")","v":""},{"$f":"IF(INDIRECT(M2256) = \"\",\"\",INDIRECT(M2256))","v":""},"c"]
["ADJCAPCOMDESC18",null,null,null,{"$f":"_xlfn.XLOOKUP(F2257,'Raw Data'!$I$4:$I$5000,'Raw Data'!$D$4:$D$5000,\"*** Mnemonic not found ***\",0)","v":"*** Mnemonic not found ***"},"ADJCAPCOMDESC18__",null,"Adjustment",null,null,22,"J","Adjustment!J22",{"$f":"_xlfn.XLOOKUP(F2257,'Raw Data'!$I$4:$I$5000,'Raw Data'!$E$4:$E$5000,100,0)","v":100},{"$f":"IF(N2257=0,_xlfn.XLOOKUP(F2257,'Raw Data'!$I$4:$I$5000,'Raw Data'!$H$4:$H$5000,\"\",0),\"\")","v":""},{"$f":"IF(INDIRECT(M2257) = \"\",\"\",INDIRECT(M2257))","v":""},"c"]
["ADJCAPCOMDESC19",null,null,null,{"$f":"_xlfn.XLOOKUP(F2258,'Raw Data'!$I$4:$I$5000,'Raw Data'!$D$4:$D$5000,\"*** Mnemonic not found ***\",0)","v":"*** Mnemonic not found ***"},"ADJCAPCOMDESC19__",null,"Adjustment",null,null,23,"J","Adjustment!J23",{"$f":"_xlfn.XLOOKUP(F2258,'Raw Data'!$I$4:$I$5000,'Raw Data'!$E$4:$E$5000,100,0)","v":100},{"$f":"IF(N2258=0,_xlfn.XLOOKUP(F2258,'Raw Data'!$I$4:$I$5000,'Raw Data'!$H$4:$H$5000,\"\",0),\"\")","v":""},{"$f":"IF(INDIRECT(M2258) = \"\",\"\",INDIRECT(M2258))","v":""},"c"]
["ADJCAPCOMDESC20",null,null,null,{"$f":"_xlfn.XLOOKUP(F2259,'Raw Data'!$I$4:$I$5000,'Raw Data'!$D$4:$D$5000,\"*** Mnemonic not found ***\",0)","v":"*** Mnemonic not found ***"},"ADJCAPCOMDESC20__",null,"Adjustment",null,null,24,"J","Adjustment!J24",{"$f":"_xlfn.XLOOKUP(F2259,'Raw Data'!$I$4:$I$5000,'Raw Data'!$E$4:$E$5000,100,0)","v":100},{"$f":"IF(N2259=0,_xlfn.XLOOKUP(F2259,'Raw Data'!$I$4:$I$5000,'Raw Data'!$H$4:$H$5000,\"\",0),\"\")","v":""},{"$f":"IF(INDIRECT(M2259) = \"\",\"\",INDIRECT(M2259))","v":""},"c"]
["ADJTACACECAT1",null,null,null,{"$f":"_xlfn.XLOOKUP(F2260,'Raw Data'!$I$4:$I$5000,'Raw Data'!$D$4:$D$5000,\"*** Mnemonic not found ***\",0)","v":"*** Mnemonic not found ***"},"ADJTACACECAT1__","Adjustments - TAC","Adjustment",{"$f":"ROW(section_adj_ace_tac)","v":27},3,{"$f":"I2260+J2260","v":30},"D","Adjustment!D30",{"$f":"_xlfn.XLOOKUP(F2260,'Raw Data'!$I$4:$I$5000,'Raw Data'!$E$4:$E$5000,100,0)","v":100},{"$f":"IF(N2260=0,_xlfn.XLOOKUP(F2260,'Raw Data'!$I$4:$I$5000,'Raw Data'!$H$4:$H$5000,\"\",0),\"\")","v":""},{"$f":"IF(INDIRECT(M2260) = \"\",\"\",INDIRECT(M2260))","v":""},"c"]
["ADJTACACECAT2",null,null,null,{"$f":"_xlfn.XLOOKUP(F2261,'Raw Data'!$I$4:$I$5000,'Raw Data'!$D$4:$D$5000,\"*** Mnemonic not found ***\",0)","v":"*** Mnemonic not found ***"},"ADJTACACECAT2__",null,"Adjustment",null,null,{"$f":"K2260+1","v":31},{"$f":"L2260","v":"D"},"Adjustment!D31",{"$f":"_xlfn.XLOOKUP(F2261,'Raw Data'!$I$4:$I$5000,'Raw Data'!$E$4:$E$5000,100,0)","v":100},{"$f":"IF(N2261=0,_xlfn.XLOOKUP(F2261,'Raw Data'!$I$4:$I$5000,'Raw Data'!$H$4:$H$5000,\"\",0),\"\")","v":""},{"$f":"IF(INDIRECT(M2261) = \"\",\"\",INDIRECT(M2261))","v":""},"c"]
["ADJTACACECAT3",null,null,null,{"$f":"_xlfn.XLOOKUP(F2262,'Raw Data'!$I$4:$I$5000,'Raw Data'!$D$4:$D$5000,\"*** Mnemonic not found ***\",0)","v":"*** Mnemonic not found ***"},"ADJTACACECAT3__",null,"Adjustment",null,null,{"$f":"K2261+1","v":32},{"$f":"L2261","v":"D"},"Adjustment!D32",{"$f":"_xlfn.XLOOKUP(F2262,'Raw Data'!$I$4:$I$5000,'Raw Data'!$E$4:$E$5000,100,0)","v":100},{"$f":"IF(N2262=0,_xlfn.XLOOKUP(F2262,'Raw Data'!$I$4:$I$5000,'Raw Data'!$H$4:$H$5000,\"\",0),\"\")","v":""},{"$f":"IF(INDIRECT(M2262) = \"\",\"\",INDIRECT(M2262))","v":""},"c"]
["ADJTACACECAT4",null,null,null,{"$f":"_xlfn.XLOOKUP(F2263,'Raw Data'!$I$4:$I$5000,'Raw Data'!$D$4:$D$5000,\"*** Mnemonic not found ***\",0)","v":"*** Mnemonic not found ***"},"ADJTACACECAT4__",null,"Adjustment",null,null,33,"D","Adjustment!D33",{"$f":"_xlfn.XLOOKUP(F2263,'Raw Data'!$I$4:$I$5000,'Raw Data'!$E$4:$E$5000,100,0)","v":100},{"$f":"IF(N2263=0,_xlfn.XLOOKUP(F2263,'Raw Data'!$I$4:$I$5000,'Raw Data'!$H$4:$H$5000,\"\",0),\"\")","v":""},{"$f":"IF(INDIRECT(M2263) = \"\",\"\",INDIRECT(M2263))","v":""},"c"]
["ADJTACACECAT5",null,null,null,{"$f":"_xlfn.XLOOKUP(F2264,'Raw Data'!$I$4:$I$5000,'Raw Data'!$D$4:$D$5000,\"*** Mnemonic not found ***\",0)","v":"*** Mnemonic not found ***"},"ADJTACACECAT5__",null,"Adjustment",null,null,34,"D","Adjustment!D34",{"$f":"_xlfn.XLOOKUP(F2264,'Raw Data'!$I$4:$I$5000,'Raw Data'!$E$4:$E$5000,100,0)","v":100},{"$f":"IF(N2264=0,_xlfn.XLOOKUP(F2264,'Raw Data'!$I$4:$I$5000,'Raw Data'!$H$4:$H$5000,\"\",0),\"\")","v":""},{"$f":"IF(INDIRECT(M2264) = \"\",\"\",INDIRECT(M2264))","v":""},"c"]
["ADJTACACECAT6",null,null,null,{"$f":"_xlfn.XLOOKUP(F2265,'Raw Data'!$I$4:$I$5000,'Raw Data'!$D$4:$D$5000,\"*** Mnemonic not found ***\",0)","v":"*** Mnemonic not found ***"},"ADJTACACECAT6__",null,"Adjustment",null,null,35,"D","Adjustment!D35",{"$f":"_xlfn.XLOOKUP(F2265,'Raw Data'!$I$4:$I$5000,'Raw Data'!$E$4:$E$5000,100,0)","v":100},{"$f":"IF(N2265=0,_xlfn.XLOOKUP(F2265,'Raw Data'!$I$4:$I$5000,'Raw Data'!$H$4:$H$5000,\"\",0),\"\")","v":""},{"$f":"IF(INDIRECT(M2265) = \"\",\"\",INDIRECT(M2265))","v":""},"c"]
["ADJTACACECAT7",null,null,null,{"$f":"_xlfn.XLOOKUP(F2266,'Raw Data'!$I$4:$I$5000,'Raw Data'!$D$4:$D$5000,\"*** Mnemonic not found ***\",0)","v":"*** Mnemonic not found ***"},"ADJTACACECAT7__",null,"Adjustment",null,null,36,"D","Adjustment!D36",{"$f":"_xlfn.XLOOKUP(F2266,'Raw Data'!$I$4:$I$5000,'Raw Data'!$E$4:$E$5000,100,0)","v":100},{"$f":"IF(N2266=0,_xlfn.XLOOKUP(F2266,'Raw Data'!$I$4:$I$5000,'Raw Data'!$H$4:$H$5000,\"\",0),\"\")","v":""},{"$f":"IF(INDIRECT(M2266) = \"\",\"\",INDIRECT(M2266))","v":""},"c"]
["ADJTACACECAT8",null,null,null,{"$f":"_xlfn.XLOOKUP(F2267,'Raw Data'!$I$4:$I$5000,'Raw Data'!$D$4:$D$5000,\"*** Mnemonic not found ***\",0)","v":"*** Mnemonic not found ***"},"ADJTACACECAT8__",null,"Adjustment",null,null,37,"D","Adjustment!D37",{"$f":"_xlfn.XLOOKUP(F2267,'Raw Data'!$I$4:$I$5000,'Raw Data'!$E$4:$E$5000,100,0)","v":100},{"$f":"IF(N2267=0,_xlfn.XLOOKUP(F2267,'Raw Data'!$I$4:$I$5000,'Raw Data'!$H$4:$H$5000,\"\",0),\"\")","v":""},{"$f":"IF(INDIRECT(M2267) = \"\",\"\",INDIRECT(M2267))","v":""},"c"]
["ADJTACACECAT9",null,null,null,{"$f":"_xlfn.XLOOKUP(F2268,'Raw Data'!$I$4:$I$5000,'Raw Data'!$D$4:$D$5000,\"*** Mnemonic not found ***\",0)","v":"*** Mnemonic not found ***"},"ADJTACACECAT9__",null,"Adjustment",null,null,38,"D","Adjustment!D38",{"$f":"_xlfn.XLOOKUP(F2268,'Raw Data'!$I$4:$I$5000,'Raw Data'!$E$4:$E$5000,100,0)","v":100},{"$f":"IF(N2268=0,_xlfn.XLOOKUP(F2268,'Raw Data'!$I$4:$I$5000,'Raw Data'!$H$4:$H$5000,\"\",0),\"\")","v":""},{"$f":"IF(INDIRECT(M2268) = \"\",\"\",INDIRECT(M2268))","v":""},"c"]
["ADJTACACECAT10",null,null,null,{"$f":"_xlfn.XLOOKUP(F2269,'Raw Data'!$I$4:$I$5000,'Raw Data'!$D$4:$D$5000,\"*** Mnemonic not found ***\",0)","v":"*** Mnemonic not found ***"},"ADJTACACECAT10__",null,"Adjustment",null,null,39,"D","Adjustment!D39",{"$f":"_xlfn.XLOOKUP(F2269,'Raw Data'!$I$4:$I$5000,'Raw Data'!$E$4:$E$5000,100,0)","v":100},{"$f":"IF(N2269=0,_xlfn.XLOOKUP(F2269,'Raw Data'!$I$4:$I$5000,'Raw Data'!$H$4:$H$5000,\"\",0),\"\")","v":""},{"$f":"IF(INDIRECT(M2269) = \"\",\"\",INDIRECT(M2269))","v":""},"c"]
["ADJTACACECAT11",null,null,null,{"$f":"_xlfn.XLOOKUP(F2270,'Raw Data'!$I$4:$I$5000,'Raw Data'!$D$4:$D$5000,\"*** Mnemonic not found ***\",0)","v":"*** Mnemonic not found ***"},"ADJTACACECAT11__",null,"Adjustment",null,null,40,"D","Adjustment!D40",{"$f":"_xlfn.XLOOKUP(F2270,'Raw Data'!$I$4:$I$5000,'Raw Data'!$E$4:$E$5000,100,0)","v":100},{"$f":"IF(N2270=0,_xlfn.XLOOKUP(F2270,'Raw Data'!$I$4:$I$5000,'Raw Data'!$H$4:$H$5000,\"\",0),\"\")","v":""},{"$f":"IF(INDIRECT(M2270) = \"\",\"\",INDIRECT(M2270))","v":""},"c"]
["ADJTACACECAT12",null,null,null,{"$f":"_xlfn.XLOOKUP(F2271,'Raw Data'!$I$4:$I$5000,'Raw Data'!$D$4:$D$5000,\"*** Mnemonic not found ***\",0)","v":"*** Mnemonic not found ***"},"ADJTACACECAT12__",null,"Adjustment",null,null,41,"D","Adjustment!D41",{"$f":"_xlfn.XLOOKUP(F2271,'Raw Data'!$I$4:$I$5000,'Raw Data'!$E$4:$E$5000,100,0)","v":100},{"$f":"IF(N2271=0,_xlfn.XLOOKUP(F2271,'Raw Data'!$I$4:$I$5000,'Raw Data'!$H$4:$H$5000,\"\",0),\"\")","v":""},{"$f":"IF(INDIRECT(M2271) = \"\",\"\",INDIRECT(M2271))","v":""},"c"]
["ADJTACACECAT13",null,null,null,{"$f":"_xlfn.XLOOKUP(F2272,'Raw Data'!$I$4:$I$5000,'Raw Data'!$D$4:$D$5000,\"*** Mnemonic not found ***\",0)","v":"*** Mnemonic not found ***"},"ADJTACACECAT13__",null,"Adjustment",null,null,42,"D","Adjustment!D42",{"$f":"_xlfn.XLOOKUP(F2272,'Raw Data'!$I$4:$I$5000,'Raw Data'!$E$4:$E$5000,100,0)","v":100},{"$f":"IF(N2272=0,_xlfn.XLOOKUP(F2272,'Raw Data'!$I$4:$I$5000,'Raw Data'!$H$4:$H$5000,\"\",0),\"\")","v":""},{"$f":"IF(INDIRECT(M2272) = \"\",\"\",INDIRECT(M2272))","v":""},"c"]
["ADJTACACECAT14",null,null,null,{"$f":"_xlfn.XLOOKUP(F2273,'Raw Data'!$I$4:$I$5000,'Raw Data'!$D$4:$D$5000,\"*** Mnemonic not found ***\",0)","v":"*** Mnemonic not found ***"},"ADJTACACECAT14__",null,"Adjustment",null,null,43,"D","Adjustment!D43",{"$f":"_xlfn.XLOOKUP(F2273,'Raw Data'!$I$4:$I$5000,'Raw Data'!$E$4:$E$5000,100,0)","v":100},{"$f":"IF(N2273=0,_xlfn.XLOOKUP(F2273,'Raw Data'!$I$4:$I$5000,'Raw Data'!$H$4:$H$5000,\"\",0),\"\")","v":""},{"$f":"IF(INDIRECT(M2273) = \"\",\"\",INDIRECT(M2273))","v":""},"c"]
["ADJTACACECAT15",null,null,null,{"$f":"_xlfn.XLOOKUP(F2274,'Raw Data'!$I$4:$I$5000,'Raw Data'!$D$4:$D$5000,\"*** Mnemonic not found ***\",0)","v":"*** Mnemonic not found ***"},"ADJTACACECAT15__",null,"Adjustment",null,null,44,"D","Adjustment!D44",{"$f":"_xlfn.XLOOKUP(F2274,'Raw Data'!$I$4:$I$5000,'Raw Data'!$E$4:$E$5000,100,0)","v":100},{"$f":"IF(N2274=0,_xlfn.XLOOKUP(F2274,'Raw Data'!$I$4:$I$5000,'Raw Data'!$H$4:$H$5000,\"\",0),\"\")","v":""},{"$f":"IF(INDIRECT(M2274) = \"\",\"\",INDIRECT(M2274))","v":""},"c"]
["ADJTACACECAT16",null,null,null,{"$f":"_xlfn.XLOOKUP(F2275,'Raw Data'!$I$4:$I$5000,'Raw Data'!$D$4:$D$5000,\"*** Mnemonic not found ***\",0)","v":"*** Mnemonic not found ***"},"ADJTACACECAT16__",null,"Adjustment",null,null,45,"D","Adjustment!D45",{"$f":"_xlfn.XLOOKUP(F2275,'Raw Data'!$I$4:$I$5000,'Raw Data'!$E$4:$E$5000,100,0)","v":100},{"$f":"IF(N2275=0,_xlfn.XLOOKUP(F2275,'Raw Data'!$I$4:$I$5000,'Raw Data'!$H$4:$H$5000,\"\",0),\"\")","v":""},{"$f":"IF(INDIRECT(M2275) = \"\",\"\",INDIRECT(M2275))","v":""},"c"]
["ADJTACACECAT17",null,null,null,{"$f":"_xlfn.XLOOKUP(F2276,'Raw Data'!$I$4:$I$5000,'Raw Data'!$D$4:$D$5000,\"*** Mnemonic not found ***\",0)","v":"*** Mnemonic not found ***"},"ADJTACACECAT17__",null,"Adjustment",null,null,46,"D","Adjustment!D46",{"$f":"_xlfn.XLOOKUP(F2276,'Raw Data'!$I$4:$I$5000,'Raw Data'!$E$4:$E$5000,100,0)","v":100},{"$f":"IF(N2276=0,_xlfn.XLOOKUP(F2276,'Raw Data'!$I$4:$I$5000,'Raw Data'!$H$4:$H$5000,\"\",0),\"\")","v":""},{"$f":"IF(INDIRECT(M2276) = \"\",\"\",INDIRECT(M2276))","v":""},"c"]
["ADJTACACECAT18",null,null,null,{"$f":"_xlfn.XLOOKUP(F2277,'Raw Data'!$I$4:$I$5000,'Raw Data'!$D$4:$D$5000,\"*** Mnemonic not found ***\",0)","v":"*** Mnemonic not found ***"},"ADJTACACECAT18__",null,"Adjustment",null,null,47,"D","Adjustment!D47",{"$f":"_xlfn.XLOOKUP(F2277,'Raw Data'!$I$4:$I$5000,'Raw Data'!$E$4:$E$5000,100,0)","v":100},{"$f":"IF(N2277=0,_xlfn.XLOOKUP(F2277,'Raw Data'!$I$4:$I$5000,'Raw Data'!$H$4:$H$5000,\"\",0),\"\")","v":""},{"$f":"IF(INDIRECT(M2277) = \"\",\"\",INDIRECT(M2277))","v":""},"c"]
["ADJTACACECAT19",null,null,null,{"$f":"_xlfn.XLOOKUP(F2278,'Raw Data'!$I$4:$I$5000,'Raw Data'!$D$4:$D$5000,\"*** Mnemonic not found ***\",0)","v":"*** Mnemonic not found ***"},"ADJTACACECAT19__",null,"Adjustment",null,null,48,"D","Adjustment!D48",{"$f":"_xlfn.XLOOKUP(F2278,'Raw Data'!$I$4:$I$5000,'Raw Data'!$E$4:$E$5000,100,0)","v":100},{"$f":"IF(N2278=0,_xlfn.XLOOKUP(F2278,'Raw Data'!$I$4:$I$5000,'Raw Data'!$H$4:$H$5000,\"\",0),\"\")","v":""},{"$f":"IF(INDIRECT(M2278) = \"\",\"\",INDIRECT(M2278))","v":""},"c"]
["ADJTACACECAT20",null,null,null,{"$f":"_xlfn.XLOOKUP(F2279,'Raw Data'!$I$4:$I$5000,'Raw Data'!$D$4:$D$5000,\"*** Mnemonic not found ***\",0)","v":"*** Mnemonic not found ***"},"ADJTACACECAT20__",null,"Adjustment",null,null,49,"D","Adjustment!D49",{"$f":"_xlfn.XLOOKUP(F2279,'Raw Data'!$I$4:$I$5000,'Raw Data'!$E$4:$E$5000,100,0)","v":100},{"$f":"IF(N2279=0,_xlfn.XLOOKUP(F2279,'Raw Data'!$I$4:$I$5000,'Raw Data'!$H$4:$H$5000,\"\",0),\"\")","v":""},{"$f":"IF(INDIRECT(M2279) = \"\",\"\",INDIRECT(M2279))","v":""},"c"]
["ADJTACACEAMT1",null,null,null,{"$f":"_xlfn.XLOOKUP(F2280,'Raw Data'!$I$4:$I$5000,'Raw Data'!$D$4:$D$5000,\"*** Mnemonic not found ***\",0)","v":"*** Mnemonic not found ***"},"ADJTACACEAMT1__",null,"Adjustment",null,null,{"$f":"K2260","v":30},"E","Adjustment!E30",{"$f":"_xlfn.XLOOKUP(F2280,'Raw Data'!$I$4:$I$5000,'Raw Data'!$E$4:$E$5000,100,0)","v":100},{"$f":"IF(N2280=0,_xlfn.XLOOKUP(F2280,'Raw Data'!$I$4:$I$5000,'Raw Data'!$H$4:$H$5000,\"\",0),\"\")","v":""},{"$f":"IF(INDIRECT(M2280) = \"\",\"\",INDIRECT(M2280))","v":""},"n"]
["ADJTACACEAMT2",null,null,null,{"$f":"_xlfn.XLOOKUP(F2281,'Raw Data'!$I$4:$I$5000,'Raw Data'!$D$4:$D$5000,\"*** Mnemonic not found ***\",0)","v":"*** Mnemonic not found ***"},"ADJTACACEAMT2__",null,"Adjustment",null,null,{"$f":"K2280+1","v":31},{"$f":"L2280","v":"E"},"Adjustment!E31",{"$f":"_xlfn.XLOOKUP(F2281,'Raw Data'!$I$4:$I$5000,'Raw Data'!$E$4:$E$5000,100,0)","v":100},{"$f":"IF(N2281=0,_xlfn.XLOOKUP(F2281,'Raw Data'!$I$4:$I$5000,'Raw Data'!$H$4:$H$5000,\"\",0),\"\")","v":""},{"$f":"IF(INDIRECT(M2281) = \"\",\"\",INDIRECT(M2281))","v":""},"n"]
["ADJTACACEAMT3",null,null,null,{"$f":"_xlfn.XLOOKUP(F2282,'Raw Data'!$I$4:$I$5000,'Raw Data'!$D$4:$D$5000,\"*** Mnemonic not found ***\",0)","v":"*** Mnemonic not found ***"},"ADJTACACEAMT3__",null,"Adjustment",null,null,{"$f":"K2281+1","v":32},{"$f":"L2281","v":"E"},"Adjustment!E32",{"$f":"_xlfn.XLOOKUP(F2282,'Raw Data'!$I$4:$I$5000,'Raw Data'!$E$4:$E$5000,100,0)","v":100},{"$f":"IF(N2282=0,_xlfn.XLOOKUP(F2282,'Raw Data'!$I$4:$I$5000,'Raw Data'!$H$4:$H$5000,\"\",0),\"\")","v":""},{"$f":"IF(INDIRECT(M2282) = \"\",\"\",INDIRECT(M2282))","v":""},"n"]
["ADJTACACEAMT4",null,null,null,{"$f":"_xlfn.XLOOKUP(F2283,'Raw Data'!$I$4:$I$5000,'Raw Data'!$D$4:$D$5000,\"*** Mnemonic not found ***\",0)","v":"*** Mnemonic not found ***"},"ADJTACACEAMT4__",null,"Adjustment",null,null,33,"E","Adjustment!E33",{"$f":"_xlfn.XLOOKUP(F2283,'Raw Data'!$I$4:$I$5000,'Raw Data'!$E$4:$E$5000,100,0)","v":100},{"$f":"IF(N2283=0,_xlfn.XLOOKUP(F2283,'Raw Data'!$I$4:$I$5000,'Raw Data'!$H$4:$H$5000,\"\",0),\"\")","v":""},{"$f":"IF(INDIRECT(M2283) = \"\",\"\",INDIRECT(M2283))","v":""},"n"]
["ADJTACACEAMT5",null,null,null,{"$f":"_xlfn.XLOOKUP(F2284,'Raw Data'!$I$4:$I$5000,'Raw Data'!$D$4:$D$5000,\"*** Mnemonic not found ***\",0)","v":"*** Mnemonic not found ***"},"ADJTACACEAMT5__",null,"Adjustment",null,null,34,"E","Adjustment!E34",{"$f":"_xlfn.XLOOKUP(F2284,'Raw Data'!$I$4:$I$5000,'Raw Data'!$E$4:$E$5000,100,0)","v":100},{"$f":"IF(N2284=0,_xlfn.XLOOKUP(F2284,'Raw Data'!$I$4:$I$5000,'Raw Data'!$H$4:$H$5000,\"\",0),\"\")","v":""},{"$f":"IF(INDIRECT(M2284) = \"\",\"\",INDIRECT(M2284))","v":""},"n"]
["ADJTACACEAMT6",null,null,null,{"$f":"_xlfn.XLOOKUP(F2285,'Raw Data'!$I$4:$I$5000,'Raw Data'!$D$4:$D$5000,\"*** Mnemonic not found ***\",0)","v":"*** Mnemonic not found ***"},"ADJTACACEAMT6__",null,"Adjustment",null,null,35,"E","Adjustment!E35",{"$f":"_xlfn.XLOOKUP(F2285,'Raw Data'!$I$4:$I$5000,'Raw Data'!$E$4:$E$5000,100,0)","v":100},{"$f":"IF(N2285=0,_xlfn.XLOOKUP(F2285,'Raw Data'!$I$4:$I$5000,'Raw Data'!$H$4:$H$5000,\"\",0),\"\")","v":""},{"$f":"IF(INDIRECT(M2285) = \"\",\"\",INDIRECT(M2285))","v":""},"n"]
["ADJTACACEAMT7",null,null,null,{"$f":"_xlfn.XLOOKUP(F2286,'Raw Data'!$I$4:$I$5000,'Raw Data'!$D$4:$D$5000,\"*** Mnemonic not found ***\",0)","v":"*** Mnemonic not found ***"},"ADJTACACEAMT7__",null,"Adjustment",null,null,36,"E","Adjustment!E36",{"$f":"_xlfn.XLOOKUP(F2286,'Raw Data'!$I$4:$I$5000,'Raw Data'!$E$4:$E$5000,100,0)","v":100},{"$f":"IF(N2286=0,_xlfn.XLOOKUP(F2286,'Raw Data'!$I$4:$I$5000,'Raw Data'!$H$4:$H$5000,\"\",0),\"\")","v":""},{"$f":"IF(INDIRECT(M2286) = \"\",\"\",INDIRECT(M2286))","v":""},"n"]
["ADJTACACEAMT8",null,null,null,{"$f":"_xlfn.XLOOKUP(F2287,'Raw Data'!$I$4:$I$5000,'Raw Data'!$D$4:$D$5000,\"*** Mnemonic not found ***\",0)","v":"*** Mnemonic not found ***"},"ADJTACACEAMT8__",null,"Adjustment",null,null,37,"E","Adjustment!E37",{"$f":"_xlfn.XLOOKUP(F2287,'Raw Data'!$I$4:$I$5000,'Raw Data'!$E$4:$E$5000,100,0)","v":100},{"$f":"IF(N2287=0,_xlfn.XLOOKUP(F2287,'Raw Data'!$I$4:$I$5000,'Raw Data'!$H$4:$H$5000,\"\",0),\"\")","v":""},{"$f":"IF(INDIRECT(M2287) = \"\",\"\",INDIRECT(M2287))","v":""},"n"]
["ADJTACACEAMT9",null,null,null,{"$f":"_xlfn.XLOOKUP(F2288,'Raw Data'!$I$4:$I$5000,'Raw Data'!$D$4:$D$5000,\"*** Mnemonic not found ***\",0)","v":"*** Mnemonic not found ***"},"ADJTACACEAMT9__",null,"Adjustment",null,null,38,"E","Adjustment!E38",{"$f":"_xlfn.XLOOKUP(F2288,'Raw Data'!$I$4:$I$5000,'Raw Data'!$E$4:$E$5000,100,0)","v":100},{"$f":"IF(N2288=0,_xlfn.XLOOKUP(F2288,'Raw Data'!$I$4:$I$5000,'Raw Data'!$H$4:$H$5000,\"\",0),\"\")","v":""},{"$f":"IF(INDIRECT(M2288) = \"\",\"\",INDIRECT(M2288))","v":""},"n"]
["ADJTACACEAMT10",null,null,null,{"$f":"_xlfn.XLOOKUP(F2289,'Raw Data'!$I$4:$I$5000,'Raw Data'!$D$4:$D$5000,\"*** Mnemonic not found ***\",0)","v":"*** Mnemonic not found ***"},"ADJTACACEAMT10__",null,"Adjustment",null,null,39,"E","Adjustment!E39",{"$f":"_xlfn.XLOOKUP(F2289,'Raw Data'!$I$4:$I$5000,'Raw Data'!$E$4:$E$5000,100,0)","v":100},{"$f":"IF(N2289=0,_xlfn.XLOOKUP(F2289,'Raw Data'!$I$4:$I$5000,'Raw Data'!$H$4:$H$5000,\"\",0),\"\")","v":""},{"$f":"IF(INDIRECT(M2289) = \"\",\"\",INDIRECT(M2289))","v":""},"n"]
["ADJTACACEAMT11",null,null,null,{"$f":"_xlfn.XLOOKUP(F2290,'Raw Data'!$I$4:$I$5000,'Raw Data'!$D$4:$D$5000,\"*** Mnemonic not found ***\",0)","v":"*** Mnemonic not found ***"},"ADJTACACEAMT11__",null,"Adjustment",null,null,40,"E","Adjustment!E40",{"$f":"_xlfn.XLOOKUP(F2290,'Raw Data'!$I$4:$I$5000,'Raw Data'!$E$4:$E$5000,100,0)","v":100},{"$f":"IF(N2290=0,_xlfn.XLOOKUP(F2290,'Raw Data'!$I$4:$I$5000,'Raw Data'!$H$4:$H$5000,\"\",0),\"\")","v":""},{"$f":"IF(INDIRECT(M2290) = \"\",\"\",INDIRECT(M2290))","v":""},"n"]
["ADJTACACEAMT12",null,null,null,{"$f":"_xlfn.XLOOKUP(F2291,'Raw Data'!$I$4:$I$5000,'Raw Data'!$D$4:$D$5000,\"*** Mnemonic not found ***\",0)","v":"*** Mnemonic not found ***"},"ADJTACACEAMT12__",null,"Adjustment",null,null,41,"E",{"$f":"CONCATENATE(H2291,\"!\",L2291,K2291)","v":"Adjustment!E41"},{"$f":"_xlfn.XLOOKUP(F2291,'Raw Data'!$I$4:$I$5000,'Raw Data'!$E$4:$E$5000,100,0)","v":100},{"$f":"IF(N2291=0,_xlfn.XLOOKUP(F2291,'Raw Data'!$I$4:$I$5000,'Raw Data'!$H$4:$H$5000,\"\",0),\"\")","v":""},{"$f":"IF(INDIRECT(M2291) = \"\",\"\",INDIRECT(M2291))","v":""},"n"]
["ADJTACACEAMT13",null,null,null,{"$f":"_xlfn.XLOOKUP(F2292,'Raw Data'!$I$4:$I$5000,'Raw Data'!$D$4:$D$5000,\"*** Mnemonic not found ***\",0)","v":"*** Mnemonic not found ***"},"ADJTACACEAMT13__",null,"Adjustment",null,null,42,"E","Adjustment!E42",{"$f":"_xlfn.XLOOKUP(F2292,'Raw Data'!$I$4:$I$5000,'Raw Data'!$E$4:$E$5000,100,0)","v":100},{"$f":"IF(N2292=0,_xlfn.XLOOKUP(F2292,'Raw Data'!$I$4:$I$5000,'Raw Data'!$H$4:$H$5000,\"\",0),\"\")","v":""},{"$f":"IF(INDIRECT(M2292) = \"\",\"\",INDIRECT(M2292))","v":""},"n"]
["ADJTACACEAMT14",null,null,null,{"$f":"_xlfn.XLOOKUP(F2293,'Raw Data'!$I$4:$I$5000,'Raw Data'!$D$4:$D$5000,\"*** Mnemonic not found ***\",0)","v":"*** Mnemonic not found ***"},"ADJTACACEAMT14__",null,"Adjustment",null,null,43,"E","Adjustment!E43",{"$f":"_xlfn.XLOOKUP(F2293,'Raw Data'!$I$4:$I$5000,'Raw Data'!$E$4:$E$5000,100,0)","v":100},{"$f":"IF(N2293=0,_xlfn.XLOOKUP(F2293,'Raw Data'!$I$4:$I$5000,'Raw Data'!$H$4:$H$5000,\"\",0),\"\")","v":""},{"$f":"IF(INDIRECT(M2293) = \"\",\"\",INDIRECT(M2293))","v":""},"n"]
["ADJTACACEAMT15",null,null,null,{"$f":"_xlfn.XLOOKUP(F2294,'Raw Data'!$I$4:$I$5000,'Raw Data'!$D$4:$D$5000,\"*** Mnemonic not found ***\",0)","v":"*** Mnemonic not found ***"},"ADJTACACEAMT15__",null,"Adjustment",null,null,44,"E","Adjustment!E44",{"$f":"_xlfn.XLOOKUP(F2294,'Raw Data'!$I$4:$I$5000,'Raw Data'!$E$4:$E$5000,100,0)","v":100},{"$f":"IF(N2294=0,_xlfn.XLOOKUP(F2294,'Raw Data'!$I$4:$I$5000,'Raw Data'!$H$4:$H$5000,\"\",0),\"\")","v":""},{"$f":"IF(INDIRECT(M2294) = \"\",\"\",INDIRECT(M2294))","v":""},"n"]
["ADJTACACEAMT16",null,null,null,{"$f":"_xlfn.XLOOKUP(F2295,'Raw Data'!$I$4:$I$5000,'Raw Data'!$D$4:$D$5000,\"*** Mnemonic not found ***\",0)","v":"*** Mnemonic not found ***"},"ADJTACACEAMT16__",null,"Adjustment",null,null,45,"E","Adjustment!E45",{"$f":"_xlfn.XLOOKUP(F2295,'Raw Data'!$I$4:$I$5000,'Raw Data'!$E$4:$E$5000,100,0)","v":100},{"$f":"IF(N2295=0,_xlfn.XLOOKUP(F2295,'Raw Data'!$I$4:$I$5000,'Raw Data'!$H$4:$H$5000,\"\",0),\"\")","v":""},{"$f":"IF(INDIRECT(M2295) = \"\",\"\",INDIRECT(M2295))","v":""},"n"]
["ADJTACACEAMT17",null,null,null,{"$f":"_xlfn.XLOOKUP(F2296,'Raw Data'!$I$4:$I$5000,'Raw Data'!$D$4:$D$5000,\"*** Mnemonic not found ***\",0)","v":"*** Mnemonic not found ***"},"ADJTACACEAMT17__",null,"Adjustment",null,null,46,"E","Adjustment!E46",{"$f":"_xlfn.XLOOKUP(F2296,'Raw Data'!$I$4:$I$5000,'Raw Data'!$E$4:$E$5000,100,0)","v":100},{"$f":"IF(N2296=0,_xlfn.XLOOKUP(F2296,'Raw Data'!$I$4:$I$5000,'Raw Data'!$H$4:$H$5000,\"\",0),\"\")","v":""},{"$f":"IF(INDIRECT(M2296) = \"\",\"\",INDIRECT(M2296))","v":""},"n"]
["ADJTACACEAMT18",null,null,null,{"$f":"_xlfn.XLOOKUP(F2297,'Raw Data'!$I$4:$I$5000,'Raw Data'!$D$4:$D$5000,\"*** Mnemonic not found ***\",0)","v":"*** Mnemonic not found ***"},"ADJTACACEAMT18__",null,"Adjustment",null,null,47,"E","Adjustment!E47",{"$f":"_xlfn.XLOOKUP(F2297,'Raw Data'!$I$4:$I$5000,'Raw Data'!$E$4:$E$5000,100,0)","v":100},{"$f":"IF(N2297=0,_xlfn.XLOOKUP(F2297,'Raw Data'!$I$4:$I$5000,'Raw Data'!$H$4:$H$5000,\"\",0),\"\")","v":""},{"$f":"IF(INDIRECT(M2297) = \"\",\"\",INDIRECT(M2297))","v":""},"n"]
["ADJTACACEAMT19",null,null,null,{"$f":"_xlfn.XLOOKUP(F2298,'Raw Data'!$I$4:$I$5000,'Raw Data'!$D$4:$D$5000,\"*** Mnemonic not found ***\",0)","v":"*** Mnemonic not found ***"},"ADJTACACEAMT19__",null,"Adjustment",null,null,48,"E","Adjustment!E48",{"$f":"_xlfn.XLOOKUP(F2298,'Raw Data'!$I$4:$I$5000,'Raw Data'!$E$4:$E$5000,100,0)","v":100},{"$f":"IF(N2298=0,_xlfn.XLOOKUP(F2298,'Raw Data'!$I$4:$I$5000,'Raw Data'!$H$4:$H$5000,\"\",0),\"\")","v":""},{"$f":"IF(INDIRECT(M2298) = \"\",\"\",INDIRECT(M2298))","v":""},"n"]
["ADJTACACEAMT20",null,null,null,{"$f":"_xlfn.XLOOKUP(F2299,'Raw Data'!$I$4:$I$5000,'Raw Data'!$D$4:$D$5000,\"*** Mnemonic not found ***\",0)","v":"*** Mnemonic not found ***"},"ADJTACACEAMT20__",null,"Adjustment",null,null,49,"E","Adjustment!E49",{"$f":"_xlfn.XLOOKUP(F2299,'Raw Data'!$I$4:$I$5000,'Raw Data'!$E$4:$E$5000,100,0)","v":100},{"$f":"IF(N2299=0,_xlfn.XLOOKUP(F2299,'Raw Data'!$I$4:$I$5000,'Raw Data'!$H$4:$H$5000,\"\",0),\"\")","v":""},{"$f":"IF(INDIRECT(M2299) = \"\",\"\",INDIRECT(M2299))","v":""},"n"]
["ADJTACACEDESC1",null,null,null,{"$f":"_xlfn.XLOOKUP(F2300,'Raw Data'!$I$4:$I$5000,'Raw Data'!$D$4:$D$5000,\"*** Mnemonic not found ***\",0)","v":"*** Mnemonic not found ***"},"ADJTACACEDESC1__",null,"Adjustment",null,null,{"$f":"K2280","v":30},"F","Adjustment!F30",{"$f":"_xlfn.XLOOKUP(F2300,'Raw Data'!$I$4:$I$5000,'Raw Data'!$E$4:$E$5000,100,0)","v":100},{"$f":"IF(N2300=0,_xlfn.XLOOKUP(F2300,'Raw Data'!$I$4:$I$5000,'Raw Data'!$H$4:$H$5000,\"\",0),\"\")","v":""},{"$f":"IF(INDIRECT(M2300) = \"\",\"\",INDIRECT(M2300))","v":""},"c"]
["ADJTACACEDESC2",null,null,null,{"$f":"_xlfn.XLOOKUP(F2301,'Raw Data'!$I$4:$I$5000,'Raw Data'!$D$4:$D$5000,\"*** Mnemonic not found ***\",0)","v":"*** Mnemonic not found ***"},"ADJTACACEDESC2__",null,"Adjustment",null,null,{"$f":"K2300+1","v":31},{"$f":"L2300","v":"F"},"Adjustment!F31",{"$f":"_xlfn.XLOOKUP(F2301,'Raw Data'!$I$4:$I$5000,'Raw Data'!$E$4:$E$5000,100,0)","v":100},{"$f":"IF(N2301=0,_xlfn.XLOOKUP(F2301,'Raw Data'!$I$4:$I$5000,'Raw Data'!$H$4:$H$5000,\"\",0),\"\")","v":""},{"$f":"IF(INDIRECT(M2301) = \"\",\"\",INDIRECT(M2301))","v":""},"c"]
["ADJTACACEDESC3",null,null,null,{"$f":"_xlfn.XLOOKUP(F2302,'Raw Data'!$I$4:$I$5000,'Raw Data'!$D$4:$D$5000,\"*** Mnemonic not found ***\",0)","v":"*** Mnemonic not found ***"},"ADJTACACEDESC3__",null,"Adjustment",null,null,{"$f":"K2301+1","v":32},{"$f":"L2301","v":"F"},"Adjustment!F32",{"$f":"_xlfn.XLOOKUP(F2302,'Raw Data'!$I$4:$I$5000,'Raw Data'!$E$4:$E$5000,100,0)","v":100},{"$f":"IF(N2302=0,_xlfn.XLOOKUP(F2302,'Raw Data'!$I$4:$I$5000,'Raw Data'!$H$4:$H$5000,\"\",0),\"\")","v":""},{"$f":"IF(INDIRECT(M2302) = \"\",\"\",INDIRECT(M2302))","v":""},"c"]
["ADJTACACEDESC4",null,null,null,{"$f":"_xlfn.XLOOKUP(F2303,'Raw Data'!$I$4:$I$5000,'Raw Data'!$D$4:$D$5000,\"*** Mnemonic not found ***\",0)","v":"*** Mnemonic not found ***"},"ADJTACACEDESC4__",null,"Adjustment",null,null,33,"F","Adjustment!F33",{"$f":"_xlfn.XLOOKUP(F2303,'Raw Data'!$I$4:$I$5000,'Raw Data'!$E$4:$E$5000,100,0)","v":100},{"$f":"IF(N2303=0,_xlfn.XLOOKUP(F2303,'Raw Data'!$I$4:$I$5000,'Raw Data'!$H$4:$H$5000,\"\",0),\"\")","v":""},{"$f":"IF(INDIRECT(M2303) = \"\",\"\",INDIRECT(M2303))","v":""},"c"]
["ADJTACACEDESC5",null,null,null,{"$f":"_xlfn.XLOOKUP(F2304,'Raw Data'!$I$4:$I$5000,'Raw Data'!$D$4:$D$5000,\"*** Mnemonic not found ***\",0)","v":"*** Mnemonic not found ***"},"ADJTACACEDESC5__",null,"Adjustment",null,null,34,"F","Adjustment!F34",{"$f":"_xlfn.XLOOKUP(F2304,'Raw Data'!$I$4:$I$5000,'Raw Data'!$E$4:$E$5000,100,0)","v":100},{"$f":"IF(N2304=0,_xlfn.XLOOKUP(F2304,'Raw Data'!$I$4:$I$5000,'Raw Data'!$H$4:$H$5000,\"\",0),\"\")","v":""},{"$f":"IF(INDIRECT(M2304) = \"\",\"\",INDIRECT(M2304))","v":""},"c"]
["ADJTACACEDESC6",null,null,null,{"$f":"_xlfn.XLOOKUP(F2305,'Raw Data'!$I$4:$I$5000,'Raw Data'!$D$4:$D$5000,\"*** Mnemonic not found ***\",0)","v":"*** Mnemonic not found ***"},"ADJTACACEDESC6__",null,"Adjustment",null,null,35,"F","Adjustment!F35",{"$f":"_xlfn.XLOOKUP(F2305,'Raw Data'!$I$4:$I$5000,'Raw Data'!$E$4:$E$5000,100,0)","v":100},{"$f":"IF(N2305=0,_xlfn.XLOOKUP(F2305,'Raw Data'!$I$4:$I$5000,'Raw Data'!$H$4:$H$5000,\"\",0),\"\")","v":""},{"$f":"IF(INDIRECT(M2305) = \"\",\"\",INDIRECT(M2305))","v":""},"c"]
["ADJTACACEDESC7",null,null,null,{"$f":"_xlfn.XLOOKUP(F2306,'Raw Data'!$I$4:$I$5000,'Raw Data'!$D$4:$D$5000,\"*** Mnemonic not found ***\",0)","v":"*** Mnemonic not found ***"},"ADJTACACEDESC7__",null,"Adjustment",null,null,36,"F","Adjustment!F36",{"$f":"_xlfn.XLOOKUP(F2306,'Raw Data'!$I$4:$I$5000,'Raw Data'!$E$4:$E$5000,100,0)","v":100},{"$f":"IF(N2306=0,_xlfn.XLOOKUP(F2306,'Raw Data'!$I$4:$I$5000,'Raw Data'!$H$4:$H$5000,\"\",0),\"\")","v":""},{"$f":"IF(INDIRECT(M2306) = \"\",\"\",INDIRECT(M2306))","v":""},"c"]
["ADJTACACEDESC8",null,null,null,{"$f":"_xlfn.XLOOKUP(F2307,'Raw Data'!$I$4:$I$5000,'Raw Data'!$D$4:$D$5000,\"*** Mnemonic not found ***\",0)","v":"*** Mnemonic not found ***"},"ADJTACACEDESC8__",null,"Adjustment",null,null,37,"F","Adjustment!F37",{"$f":"_xlfn.XLOOKUP(F2307,'Raw Data'!$I$4:$I$5000,'Raw Data'!$E$4:$E$5000,100,0)","v":100},{"$f":"IF(N2307=0,_xlfn.XLOOKUP(F2307,'Raw Data'!$I$4:$I$5000,'Raw Data'!$H$4:$H$5000,\"\",0),\"\")","v":""},{"$f":"IF(INDIRECT(M2307) = \"\",\"\",INDIRECT(M2307))","v":""},"c"]
["ADJTACACEDESC9",null,null,null,{"$f":"_xlfn.XLOOKUP(F2308,'Raw Data'!$I$4:$I$5000,'Raw Data'!$D$4:$D$5000,\"*** Mnemonic not found ***\",0)","v":"*** Mnemonic not found ***"},"ADJTACACEDESC9__",null,"Adjustment",null,null,38,"F","Adjustment!F38",{"$f":"_xlfn.XLOOKUP(F2308,'Raw Data'!$I$4:$I$5000,'Raw Data'!$E$4:$E$5000,100,0)","v":100},{"$f":"IF(N2308=0,_xlfn.XLOOKUP(F2308,'Raw Data'!$I$4:$I$5000,'Raw Data'!$H$4:$H$5000,\"\",0),\"\")","v":""},{"$f":"IF(INDIRECT(M2308) = \"\",\"\",INDIRECT(M2308))","v":""},"c"]
["ADJTACACEDESC10",null,null,null,{"$f":"_xlfn.XLOOKUP(F2309,'Raw Data'!$I$4:$I$5000,'Raw Data'!$D$4:$D$5000,\"*** Mnemonic not found ***\",0)","v":"*** Mnemonic not found ***"},"ADJTACACEDESC10__",null,"Adjustment",null,null,39,"F","Adjustment!F39",{"$f":"_xlfn.XLOOKUP(F2309,'Raw Data'!$I$4:$I$5000,'Raw Data'!$E$4:$E$5000,100,0)","v":100},{"$f":"IF(N2309=0,_xlfn.XLOOKUP(F2309,'Raw Data'!$I$4:$I$5000,'Raw Data'!$H$4:$H$5000,\"\",0),\"\")","v":""},{"$f":"IF(INDIRECT(M2309) = \"\",\"\",INDIRECT(M2309))","v":""},"c"]
["ADJTACACEDESC11",null,null,null,{"$f":"_xlfn.XLOOKUP(F2310,'Raw Data'!$I$4:$I$5000,'Raw Data'!$D$4:$D$5000,\"*** Mnemonic not found ***\",0)","v":"*** Mnemonic not found ***"},"ADJTACACEDESC11__",null,"Adjustment",null,null,40,"F","Adjustment!F40",{"$f":"_xlfn.XLOOKUP(F2310,'Raw Data'!$I$4:$I$5000,'Raw Data'!$E$4:$E$5000,100,0)","v":100},{"$f":"IF(N2310=0,_xlfn.XLOOKUP(F2310,'Raw Data'!$I$4:$I$5000,'Raw Data'!$H$4:$H$5000,\"\",0),\"\")","v":""},{"$f":"IF(INDIRECT(M2310) = \"\",\"\",INDIRECT(M2310))","v":""},"c"]
["ADJTACACEDESC12",null,null,null,{"$f":"_xlfn.XLOOKUP(F2311,'Raw Data'!$I$4:$I$5000,'Raw Data'!$D$4:$D$5000,\"*** Mnemonic not found ***\",0)","v":"*** Mnemonic not found ***"},"ADJTACACEDESC12__",null,"Adjustment",null,null,41,"F","Adjustment!F41",{"$f":"_xlfn.XLOOKUP(F2311,'Raw Data'!$I$4:$I$5000,'Raw Data'!$E$4:$E$5000,100,0)","v":100},{"$f":"IF(N2311=0,_xlfn.XLOOKUP(F2311,'Raw Data'!$I$4:$I$5000,'Raw Data'!$H$4:$H$5000,\"\",0),\"\")","v":""},{"$f":"IF(INDIRECT(M2311) = \"\",\"\",INDIRECT(M2311))","v":""},"c"]
["ADJTACACEDESC13",null,null,null,{"$f":"_xlfn.XLOOKUP(F2312,'Raw Data'!$I$4:$I$5000,'Raw Data'!$D$4:$D$5000,\"*** Mnemonic not found ***\",0)","v":"*** Mnemonic not found ***"},"ADJTACACEDESC13__",null,"Adjustment",null,null,42,"F","Adjustment!F42",{"$f":"_xlfn.XLOOKUP(F2312,'Raw Data'!$I$4:$I$5000,'Raw Data'!$E$4:$E$5000,100,0)","v":100},{"$f":"IF(N2312=0,_xlfn.XLOOKUP(F2312,'Raw Data'!$I$4:$I$5000,'Raw Data'!$H$4:$H$5000,\"\",0),\"\")","v":""},{"$f":"IF(INDIRECT(M2312) = \"\",\"\",INDIRECT(M2312))","v":""},"c"]
["ADJTACACEDESC14",null,null,null,{"$f":"_xlfn.XLOOKUP(F2313,'Raw Data'!$I$4:$I$5000,'Raw Data'!$D$4:$D$5000,\"*** Mnemonic not found ***\",0)","v":"*** Mnemonic not found ***"},"ADJTACACEDESC14__",null,"Adjustment",null,null,43,"F","Adjustment!F43",{"$f":"_xlfn.XLOOKUP(F2313,'Raw Data'!$I$4:$I$5000,'Raw Data'!$E$4:$E$5000,100,0)","v":100},{"$f":"IF(N2313=0,_xlfn.XLOOKUP(F2313,'Raw Data'!$I$4:$I$5000,'Raw Data'!$H$4:$H$5000,\"\",0),\"\")","v":""},{"$f":"IF(INDIRECT(M2313) = \"\",\"\",INDIRECT(M2313))","v":""},"c"]
["ADJTACACEDESC15",null,null,null,{"$f":"_xlfn.XLOOKUP(F2314,'Raw Data'!$I$4:$I$5000,'Raw Data'!$D$4:$D$5000,\"*** Mnemonic not found ***\",0)","v":"*** Mnemonic not found ***"},"ADJTACACEDESC15__",null,"Adjustment",null,null,44,"F","Adjustment!F44",{"$f":"_xlfn.XLOOKUP(F2314,'Raw Data'!$I$4:$I$5000,'Raw Data'!$E$4:$E$5000,100,0)","v":100},{"$f":"IF(N2314=0,_xlfn.XLOOKUP(F2314,'Raw Data'!$I$4:$I$5000,'Raw Data'!$H$4:$H$5000,\"\",0),\"\")","v":""},{"$f":"IF(INDIRECT(M2314) = \"\",\"\",INDIRECT(M2314))","v":""},"c"]
["ADJTACACEDESC16",null,null,null,{"$f":"_xlfn.XLOOKUP(F2315,'Raw Data'!$I$4:$I$5000,'Raw Data'!$D$4:$D$5000,\"*** Mnemonic not found ***\",0)","v":"*** Mnemonic not found ***"},"ADJTACACEDESC16__",null,"Adjustment",null,null,45,"F","Adjustment!F45",{"$f":"_xlfn.XLOOKUP(F2315,'Raw Data'!$I$4:$I$5000,'Raw Data'!$E$4:$E$5000,100,0)","v":100},{"$f":"IF(N2315=0,_xlfn.XLOOKUP(F2315,'Raw Data'!$I$4:$I$5000,'Raw Data'!$H$4:$H$5000,\"\",0),\"\")","v":""},{"$f":"IF(INDIRECT(M2315) = \"\",\"\",INDIRECT(M2315))","v":""},"c"]
["ADJTACACEDESC17",null,null,null,{"$f":"_xlfn.XLOOKUP(F2316,'Raw Data'!$I$4:$I$5000,'Raw Data'!$D$4:$D$5000,\"*** Mnemonic not found ***\",0)","v":"*** Mnemonic not found ***"},"ADJTACACEDESC17__",null,"Adjustment",null,null,46,"F","Adjustment!F46",{"$f":"_xlfn.XLOOKUP(F2316,'Raw Data'!$I$4:$I$5000,'Raw Data'!$E$4:$E$5000,100,0)","v":100},{"$f":"IF(N2316=0,_xlfn.XLOOKUP(F2316,'Raw Data'!$I$4:$I$5000,'Raw Data'!$H$4:$H$5000,\"\",0),\"\")","v":""},{"$f":"IF(INDIRECT(M2316) = \"\",\"\",INDIRECT(M2316))","v":""},"c"]
["ADJTACACEDESC18",null,null,null,{"$f":"_xlfn.XLOOKUP(F2317,'Raw Data'!$I$4:$I$5000,'Raw Data'!$D$4:$D$5000,\"*** Mnemonic not found ***\",0)","v":"*** Mnemonic not found ***"},{"$f":"CONCATENATE(A2317,\"_\",B2317,\"_\",D2317)","v":"ADJTACACEDESC18__"},null,"Adjustment",null,null,47,"F","Adjustment!F47",{"$f":"_xlfn.XLOOKUP(F2317,'Raw Data'!$I$4:$I$5000,'Raw Data'!$E$4:$E$5000,100,0)","v":100},{"$f":"IF(N2317=0,_xlfn.XLOOKUP(F2317,'Raw Data'!$I$4:$I$5000,'Raw Data'!$H$4:$H$5000,\"\",0),\"\")","v":""},{"$f":"IF(INDIRECT(M2317) = \"\",\"\",INDIRECT(M2317))","v":""},"c"]
["ADJTACACEDESC19",null,null,null,{"$f":"_xlfn.XLOOKUP(F2318,'Raw Data'!$I$4:$I$5000,'Raw Data'!$D$4:$D$5000,\"*** Mnemonic not found ***\",0)","v":"*** Mnemonic not found ***"},"ADJTACACEDESC19__",null,"Adjustment",null,null,48,"F","Adjustment!F48",{"$f":"_xlfn.XLOOKUP(F2318,'Raw Data'!$I$4:$I$5000,'Raw Data'!$E$4:$E$5000,100,0)","v":100},{"$f":"IF(N2318=0,_xlfn.XLOOKUP(F2318,'Raw Data'!$I$4:$I$5000,'Raw Data'!$H$4:$H$5000,\"\",0),\"\")","v":""},{"$f":"IF(INDIRECT(M2318) = \"\",\"\",INDIRECT(M2318))","v":""},"c"]
["ADJTACACEDESC20",null,null,null,{"$f":"_xlfn.XLOOKUP(F2319,'Raw Data'!$I$4:$I$5000,'Raw Data'!$D$4:$D$5000,\"*** Mnemonic not found ***\",0)","v":"*** Mnemonic not found ***"},"ADJTACACEDESC20__",null,"Adjustment",null,null,49,"F","Adjustment!F49",{"$f":"_xlfn.XLOOKUP(F2319,'Raw Data'!$I$4:$I$5000,'Raw Data'!$E$4:$E$5000,100,0)","v":100},{"$f":"IF(N2319=0,_xlfn.XLOOKUP(F2319,'Raw Data'!$I$4:$I$5000,'Raw Data'!$H$4:$H$5000,\"\",0),\"\")","v":""},{"$f":"IF(INDIRECT(M2319) = \"\",\"\",INDIRECT(M2319))","v":""},"c"]
["SUCMSUMINFO1_C",null,null,null,{"$f":"_xlfn.XLOOKUP(F2320,'Raw Data'!$I$4:$I$5000,'Raw Data'!$D$4:$D$5000,\"*** Mnemonic not found ***\",0)","v":"*** Mnemonic not found ***"},"SUCMSUMINFO1_C__","Comments - Summary","Input",{"$f":"ROW(section_summary)","v":8},2,{"$f":"I2320+J2320","v":10},"O","Input!O10",{"$f":"_xlfn.XLOOKUP(F2320,'Raw Data'!$I$4:$I$5000,'Raw Data'!$E$4:$E$5000,100,0)","v":100},{"$f":"IF(N2320=0,_xlfn.XLOOKUP(F2320,'Raw Data'!$I$4:$I$5000,'Raw Data'!$H$4:$H$5000,\"\",0),\"\")","v":""},{"$f":"IF(INDIRECT(M2320) = \"\",\"\",INDIRECT(M2320))","v":""},"c"]
["SUCMSUMINFO2_C",null,null,null,{"$f":"_xlfn.XLOOKUP(F2321,'Raw Data'!$I$4:$I$5000,'Raw Data'!$D$4:$D$5000,\"*** Mnemonic not found ***\",0)","v":"*** Mnemonic not found ***"},"SUCMSUMINFO2_C__",null,"Input",null,null,{"$f":"K2320+1","v":11},{"$f":"L2320","v":"O"},"Input!O11",{"$f":"_xlfn.XLOOKUP(F2321,'Raw Data'!$I$4:$I$5000,'Raw Data'!$E$4:$E$5000,100,0)","v":100},{"$f":"IF(N2321=0,_xlfn.XLOOKUP(F2321,'Raw Data'!$I$4:$I$5000,'Raw Data'!$H$4:$H$5000,\"\",0),\"\")","v":""},{"$f":"IF(INDIRECT(M2321) = \"\",\"\",INDIRECT(M2321))","v":""},"c"]
["SUCMSUMINFO3_C",null,null,null,{"$f":"_xlfn.XLOOKUP(F2322,'Raw Data'!$I$4:$I$5000,'Raw Data'!$D$4:$D$5000,\"*** Mnemonic not found ***\",0)","v":"*** Mnemonic not found ***"},"SUCMSUMINFO3_C__",null,"Input",null,null,{"$f":"K2321+1","v":12},{"$f":"L2321","v":"O"},"Input!O12",{"$f":"_xlfn.XLOOKUP(F2322,'Raw Data'!$I$4:$I$5000,'Raw Data'!$E$4:$E$5000,100,0)","v":100},{"$f":"IF(N2322=0,_xlfn.XLOOKUP(F2322,'Raw Data'!$I$4:$I$5000,'Raw Data'!$H$4:$H$5000,\"\",0),\"\")","v":""},{"$f":"IF(INDIRECT(M2322) = \"\",\"\",INDIRECT(M2322))","v":""},"c"]
["SUCMTACPHS_C",null,null,null,{"$f":"_xlfn.XLOOKUP(F2323,'Raw Data'!$I$4:$I$5000,'Raw Data'!$D$4:$D$5000,\"*** Mnemonic not found ***\",0)","v":"*** Mnemonic not found ***"},"SUCMTACPHS_C__","Comments - TAC","Input",{"$f":"ROW(section_tac)","v":15},2,{"$f":"I2323+J2323","v":17},"O","Input!O17",{"$f":"_xlfn.XLOOKUP(F2323,'Raw Data'!$I$4:$I$5000,'Raw Data'!$E$4:$E$5000,100,0)","v":100},{"$f":"IF(N2323=0,_xlfn.XLOOKUP(F2323,'Raw Data'!$I$4:$I$5000,'Raw Data'!$H$4:$H$5000,\"\",0),\"\")","v":""},{"$f":"IF(INDIRECT(M2323) = \"\",\"\",INDIRECT(M2323))","v":""},"c"]
["SUCMEQMINCONSSUB_C",null,null,null,{"$f":"_xlfn.XLOOKUP(F2324,'Raw Data'!$I$4:$I$5000,'Raw Data'!$D$4:$D$5000,\"*** Mnemonic not found ***\",0)","v":"*** Mnemonic not found ***"},"SUCMEQMINCONSSUB_C__",null,"Input",null,null,{"$f":"K2323+3","v":20},"O","Input!O20",{"$f":"_xlfn.XLOOKUP(F2324,'Raw Data'!$I$4:$I$5000,'Raw Data'!$E$4:$E$5000,100,0)","v":100},{"$f":"IF(N2324=0,_xlfn.XLOOKUP(F2324,'Raw Data'!$I$4:$I$5000,'Raw Data'!$H$4:$H$5000,\"\",0),\"\")","v":""},{"$f":"IF(INDIRECT(M2324) = \"\",\"\",INDIRECT(M2324))","v":""},"c"]
["SUCMPROPSHDVDNOTACC_C",null,null,null,{"$f":"_xlfn.XLOOKUP(F2325,'Raw Data'!$I$4:$I$5000,'Raw Data'!$D$4:$D$5000,\"*** Mnemonic not found ***\",0)","v":"*** Mnemonic not found ***"},"SUCMPROPSHDVDNOTACC_C__",null,"Input",null,null,{"$f":"K2324+1","v":21},"O","Input!O21",{"$f":"_xlfn.XLOOKUP(F2325,'Raw Data'!$I$4:$I$5000,'Raw Data'!$E$4:$E$5000,100,0)","v":100},{"$f":"IF(N2325=0,_xlfn.XLOOKUP(F2325,'Raw Data'!$I$4:$I$5000,'Raw Data'!$H$4:$H$5000,\"\",0),\"\")","v":""},{"$f":"IF(INDIRECT(M2325) = \"\",\"\",INDIRECT(M2325))","v":""},"c"]
["SUCMOFFBALPENSDEFAFT_C",null,null,null,{"$f":"_xlfn.XLOOKUP(F2326,'Raw Data'!$I$4:$I$5000,'Raw Data'!$D$4:$D$5000,\"*** Mnemonic not found ***\",0)","v":"*** Mnemonic not found ***"},"SUCMOFFBALPENSDEFAFT_C__",null,"Input",null,null,{"$f":"K2325+1","v":22},"O","Input!O22",{"$f":"_xlfn.XLOOKUP(F2326,'Raw Data'!$I$4:$I$5000,'Raw Data'!$E$4:$E$5000,100,0)","v":100},{"$f":"IF(N2326=0,_xlfn.XLOOKUP(F2326,'Raw Data'!$I$4:$I$5000,'Raw Data'!$H$4:$H$5000,\"\",0),\"\")","v":""},{"$f":"IF(INDIRECT(M2326) = \"\",\"\",INDIRECT(M2326))","v":""},"c"]
["SUCMOFFBALPENSURP_C",null,null,null,{"$f":"_xlfn.XLOOKUP(F2327,'Raw Data'!$I$4:$I$5000,'Raw Data'!$D$4:$D$5000,\"*** Mnemonic not found ***\",0)","v":"*** Mnemonic not found ***"},"SUCMOFFBALPENSURP_C__",null,"Input",null,null,23,"O","Input!O23",{"$f":"_xlfn.XLOOKUP(F2327,'Raw Data'!$I$4:$I$5000,'Raw Data'!$E$4:$E$5000,100,0)","v":100},{"$f":"IF(N2327=0,_xlfn.XLOOKUP(F2327,'Raw Data'!$I$4:$I$5000,'Raw Data'!$H$4:$H$5000,\"\",0),\"\")","v":""},{"$f":"IF(INDIRECT(M2327) = \"\",\"\",INDIRECT(M2327))","v":""},"c"]
["SUCMONBALPENSURP_C",null,null,null,{"$f":"_xlfn.XLOOKUP(F2328,'Raw Data'!$I$4:$I$5000,'Raw Data'!$D$4:$D$5000,\"*** Mnemonic not found ***\",0)","v":"*** Mnemonic not found ***"},"SUCMONBALPENSURP_C__",null,"Input",null,null,24,"O","Input!O24",{"$f":"_xlfn.XLOOKUP(F2328,'Raw Data'!$I$4:$I$5000,'Raw Data'!$E$4:$E$5000,100,0)","v":100},{"$f":"IF(N2328=0,_xlfn.XLOOKUP(F2328,'Raw Data'!$I$4:$I$5000,'Raw Data'!$H$4:$H$5000,\"\",0),\"\")","v":""},{"$f":"IF(INDIRECT(M2328) = \"\",\"\",INDIRECT(M2328))","v":""},"c"]
["SUCMINVOWNTREASSHRS_C",null,null,null,{"$f":"_xlfn.XLOOKUP(F2329,'Raw Data'!$I$4:$I$5000,'Raw Data'!$D$4:$D$5000,\"*** Mnemonic not found ***\",0)","v":"*** Mnemonic not found ***"},"SUCMINVOWNTREASSHRS_C__",null,"Input",null,null,25,"O","Input!O25",{"$f":"_xlfn.XLOOKUP(F2329,'Raw Data'!$I$4:$I$5000,'Raw Data'!$E$4:$E$5000,100,0)","v":100},{"$f":"IF(N2329=0,_xlfn.XLOOKUP(F2329,'Raw Data'!$I$4:$I$5000,'Raw Data'!$H$4:$H$5000,\"\",0),\"\")","v":""},{"$f":"IF(INDIRECT(M2329) = \"\",\"\",INDIRECT(M2329))","v":""},"c"]
["SUCMGOODWILL_C",null,null,null,{"$f":"_xlfn.XLOOKUP(F2330,'Raw Data'!$I$4:$I$5000,'Raw Data'!$D$4:$D$5000,\"*** Mnemonic not found ***\",0)","v":"*** Mnemonic not found ***"},"SUCMGOODWILL_C__",null,"Input",null,null,{"$f":"K2329+3","v":28},"O","Input!O28",{"$f":"_xlfn.XLOOKUP(F2330,'Raw Data'!$I$4:$I$5000,'Raw Data'!$E$4:$E$5000,100,0)","v":100},{"$f":"IF(N2330=0,_xlfn.XLOOKUP(F2330,'Raw Data'!$I$4:$I$5000,'Raw Data'!$H$4:$H$5000,\"\",0),\"\")","v":""},{"$f":"IF(INDIRECT(M2330) = \"\",\"\",INDIRECT(M2330))","v":""},"c"]
["SUCMOTHINTANGASST_C",null,null,null,{"$f":"_xlfn.XLOOKUP(F2331,'Raw Data'!$I$4:$I$5000,'Raw Data'!$D$4:$D$5000,\"*** Mnemonic not found ***\",0)","v":"*** Mnemonic not found ***"},"SUCMOTHINTANGASST_C__",null,"Input",null,null,29,"O","Input!O29",{"$f":"_xlfn.XLOOKUP(F2331,'Raw Data'!$I$4:$I$5000,'Raw Data'!$E$4:$E$5000,100,0)","v":100},{"$f":"IF(N2331=0,_xlfn.XLOOKUP(F2331,'Raw Data'!$I$4:$I$5000,'Raw Data'!$H$4:$H$5000,\"\",0),\"\")","v":""},{"$f":"IF(INDIRECT(M2331) = \"\",\"\",INDIRECT(M2331))","v":""},"c"]
["SUCMOFFUNRNOLIFEBNDS_C",null,null,null,{"$f":"_xlfn.XLOOKUP(F2332,'Raw Data'!$I$4:$I$5000,'Raw Data'!$D$4:$D$5000,\"*** Mnemonic not found ***\",0)","v":"*** Mnemonic not found ***"},"SUCMOFFUNRNOLIFEBNDS_C__",null,"Input",null,null,{"$f":"K2331+3","v":32},"O","Input!O32",{"$f":"_xlfn.XLOOKUP(F2332,'Raw Data'!$I$4:$I$5000,'Raw Data'!$E$4:$E$5000,100,0)","v":100},{"$f":"IF(N2332=0,_xlfn.XLOOKUP(F2332,'Raw Data'!$I$4:$I$5000,'Raw Data'!$H$4:$H$5000,\"\",0),\"\")","v":""},{"$f":"IF(INDIRECT(M2332) = \"\",\"\",INDIRECT(M2332))","v":""},"c"]
["SUCMUNCONASSJOINTMV_C",null,null,null,{"$f":"_xlfn.XLOOKUP(F2333,'Raw Data'!$I$4:$I$5000,'Raw Data'!$D$4:$D$5000,\"*** Mnemonic not found ***\",0)","v":"*** Mnemonic not found ***"},"SUCMUNCONASSJOINTMV_C__",null,"Input",null,null,33,"O","Input!O33",{"$f":"_xlfn.XLOOKUP(F2333,'Raw Data'!$I$4:$I$5000,'Raw Data'!$E$4:$E$5000,100,0)","v":100},{"$f":"IF(N2333=0,_xlfn.XLOOKUP(F2333,'Raw Data'!$I$4:$I$5000,'Raw Data'!$H$4:$H$5000,\"\",0),\"\")","v":""},{"$f":"IF(INDIRECT(M2333) = \"\",\"\",INDIRECT(M2333))","v":""},"c"]
["SUCMUNCONASSJOINTBV_C",null,null,null,{"$f":"_xlfn.XLOOKUP(F2334,'Raw Data'!$I$4:$I$5000,'Raw Data'!$D$4:$D$5000,\"*** Mnemonic not found ***\",0)","v":"*** Mnemonic not found ***"},"SUCMUNCONASSJOINTBV_C__",null,"Input",null,null,34,"O","Input!O34",{"$f":"_xlfn.XLOOKUP(F2334,'Raw Data'!$I$4:$I$5000,'Raw Data'!$E$4:$E$5000,100,0)","v":100},{"$f":"IF(N2334=0,_xlfn.XLOOKUP(F2334,'Raw Data'!$I$4:$I$5000,'Raw Data'!$H$4:$H$5000,\"\",0),\"\")","v":""},{"$f":"IF(INDIRECT(M2334) = \"\",\"\",INDIRECT(M2334))","v":""},"c"]
["SUCMNOLIFENOTDISC_C",null,null,null,{"$f":"_xlfn.XLOOKUP(F2335,'Raw Data'!$I$4:$I$5000,'Raw Data'!$D$4:$D$5000,\"*** Mnemonic not found ***\",0)","v":"*** Mnemonic not found ***"},"SUCMNOLIFENOTDISC_C__",null,"Input",null,null,{"$f":"K2334+3","v":37},"O","Input!O37",{"$f":"_xlfn.XLOOKUP(F2335,'Raw Data'!$I$4:$I$5000,'Raw Data'!$E$4:$E$5000,100,0)","v":100},{"$f":"IF(N2335=0,_xlfn.XLOOKUP(F2335,'Raw Data'!$I$4:$I$5000,'Raw Data'!$H$4:$H$5000,\"\",0),\"\")","v":""},{"$f":"IF(INDIRECT(M2335) = \"\",\"\",INDIRECT(M2335))","v":""},"c"]
["SUCMNOLIFEDISC_C",null,null,null,{"$f":"_xlfn.XLOOKUP(F2336,'Raw Data'!$I$4:$I$5000,'Raw Data'!$D$4:$D$5000,\"*** Mnemonic not found ***\",0)","v":"*** Mnemonic not found ***"},"SUCMNOLIFEDISC_C__",null,"Input",null,null,38,"O","Input!O38",{"$f":"_xlfn.XLOOKUP(F2336,'Raw Data'!$I$4:$I$5000,'Raw Data'!$E$4:$E$5000,100,0)","v":100},{"$f":"IF(N2336=0,_xlfn.XLOOKUP(F2336,'Raw Data'!$I$4:$I$5000,'Raw Data'!$H$4:$H$5000,\"\",0),\"\")","v":""},{"$f":"IF(INDIRECT(M2336) = \"\",\"\",INDIRECT(M2336))","v":""},"c"]
["SUCMAPPTAXRATE_C",null,null,null,{"$f":"_xlfn.XLOOKUP(F2337,'Raw Data'!$I$4:$I$5000,'Raw Data'!$D$4:$D$5000,\"*** Mnemonic not found ***\",0)","v":"*** Mnemonic not found ***"},"SUCMAPPTAXRATE_C__",null,"Input",null,null,39,"O","Input!O39",{"$f":"_xlfn.XLOOKUP(F2337,'Raw Data'!$I$4:$I$5000,'Raw Data'!$E$4:$E$5000,100,0)","v":100},{"$f":"IF(N2337=0,_xlfn.XLOOKUP(F2337,'Raw Data'!$I$4:$I$5000,'Raw Data'!$H$4:$H$5000,\"\",0),\"\")","v":""},{"$f":"IF(INDIRECT(M2337) = \"\",\"\",INDIRECT(M2337))","v":""},"c"]
["SUCMONBALLOSSRESDISC_C",null,null,null,{"$f":"_xlfn.XLOOKUP(F2338,'Raw Data'!$I$4:$I$5000,'Raw Data'!$D$4:$D$5000,\"*** Mnemonic not found ***\",0)","v":"*** Mnemonic not found ***"},"SUCMONBALLOSSRESDISC_C__",null,"Input",null,null,40,"O","Input!O40",{"$f":"_xlfn.XLOOKUP(F2338,'Raw Data'!$I$4:$I$5000,'Raw Data'!$E$4:$E$5000,100,0)","v":100},{"$f":"IF(N2338=0,_xlfn.XLOOKUP(F2338,'Raw Data'!$I$4:$I$5000,'Raw Data'!$H$4:$H$5000,\"\",0),\"\")","v":""},{"$f":"IF(INDIRECT(M2338) = \"\",\"\",INDIRECT(M2338))","v":""},"c"]
["SUCMRELEGVTBONDYIELD_C",null,null,null,{"$f":"_xlfn.XLOOKUP(F2339,'Raw Data'!$I$4:$I$5000,'Raw Data'!$D$4:$D$5000,\"*** Mnemonic not found ***\",0)","v":"*** Mnemonic not found ***"},"SUCMRELEGVTBONDYIELD_C__",null,"Input",null,null,41,"O","Input!O41",{"$f":"_xlfn.XLOOKUP(F2339,'Raw Data'!$I$4:$I$5000,'Raw Data'!$E$4:$E$5000,100,0)","v":100},{"$f":"IF(N2339=0,_xlfn.XLOOKUP(F2339,'Raw Data'!$I$4:$I$5000,'Raw Data'!$H$4:$H$5000,\"\",0),\"\")","v":""},{"$f":"IF(INDIRECT(M2339) = \"\",\"\",INDIRECT(M2339))","v":""},"c"]
["SUCMMEANTERMUNDISC_C",null,null,null,{"$f":"_xlfn.XLOOKUP(F2340,'Raw Data'!$I$4:$I$5000,'Raw Data'!$D$4:$D$5000,\"*** Mnemonic not found ***\",0)","v":"*** Mnemonic not found ***"},"SUCMMEANTERMUNDISC_C__",null,"Input",null,null,42,"O","Input!O42",{"$f":"_xlfn.XLOOKUP(F2340,'Raw Data'!$I$4:$I$5000,'Raw Data'!$E$4:$E$5000,100,0)","v":100},{"$f":"IF(N2340=0,_xlfn.XLOOKUP(F2340,'Raw Data'!$I$4:$I$5000,'Raw Data'!$H$4:$H$5000,\"\",0),\"\")","v":""},{"$f":"IF(INDIRECT(M2340) = \"\",\"\",INDIRECT(M2340))","v":""},"c"]
["SUCMPCLRSURPDEFUNDIS_C",null,null,null,{"$f":"_xlfn.XLOOKUP(F2341,'Raw Data'!$I$4:$I$5000,'Raw Data'!$D$4:$D$5000,\"*** Mnemonic not found ***\",0)","v":"*** Mnemonic not found ***"},"SUCMPCLRSURPDEFUNDIS_C__",null,"Input",null,null,43,"O","Input!O43",{"$f":"_xlfn.XLOOKUP(F2341,'Raw Data'!$I$4:$I$5000,'Raw Data'!$E$4:$E$5000,100,0)","v":100},{"$f":"IF(N2341=0,_xlfn.XLOOKUP(F2341,'Raw Data'!$I$4:$I$5000,'Raw Data'!$H$4:$H$5000,\"\",0),\"\")","v":""},{"$f":"IF(INDIRECT(M2341) = \"\",\"\",INDIRECT(M2341))","v":""},"c"]
["SUCMTACOTHEQRESNON_C",null,null,null,{"$f":"_xlfn.XLOOKUP(F2342,'Raw Data'!$I$4:$I$5000,'Raw Data'!$D$4:$D$5000,\"*** Mnemonic not found ***\",0)","v":"*** Mnemonic not found ***"},"SUCMTACOTHEQRESNON_C__",null,"Input",null,null,44,"O","Input!O44",{"$f":"_xlfn.XLOOKUP(F2342,'Raw Data'!$I$4:$I$5000,'Raw Data'!$E$4:$E$5000,100,0)","v":100},{"$f":"IF(N2342=0,_xlfn.XLOOKUP(F2342,'Raw Data'!$I$4:$I$5000,'Raw Data'!$H$4:$H$5000,\"\",0),\"\")","v":""},{"$f":"IF(INDIRECT(M2342) = \"\",\"\",INDIRECT(M2342))","v":""},"c"]
["SUCMPCLRSURPDEFDISC_C",null,null,null,{"$f":"_xlfn.XLOOKUP(F2343,'Raw Data'!$I$4:$I$5000,'Raw Data'!$D$4:$D$5000,\"*** Mnemonic not found ***\",0)","v":"*** Mnemonic not found ***"},"SUCMPCLRSURPDEFDISC_C__",null,"Input",null,null,45,"O",{"$f":"CONCATENATE(H2343,\"!\",L2343,K2343)","v":"Input!O45"},{"$f":"_xlfn.XLOOKUP(F2343,'Raw Data'!$I$4:$I$5000,'Raw Data'!$E$4:$E$5000,100,0)","v":100},{"$f":"IF(N2343=0,_xlfn.XLOOKUP(F2343,'Raw Data'!$I$4:$I$5000,'Raw Data'!$H$4:$H$5000,\"\",0),\"\")","v":""},{"$f":"IF(INDIRECT(M2343) = \"\",\"\",INDIRECT(M2343))","v":""},"c"]
["SUCMOFFBALLIFEVIFNET_C",null,null,null,{"$f":"_xlfn.XLOOKUP(F2344,'Raw Data'!$I$4:$I$5000,'Raw Data'!$D$4:$D$5000,\"*** Mnemonic not found ***\",0)","v":"*** Mnemonic not found ***"},"SUCMOFFBALLIFEVIFNET_C__",null,"Input",null,null,{"$f":"K2343+3","v":48},{"$f":"L2343","v":"O"},"Input!O48",{"$f":"_xlfn.XLOOKUP(F2344,'Raw Data'!$I$4:$I$5000,'Raw Data'!$E$4:$E$5000,100,0)","v":100},{"$f":"IF(N2344=0,_xlfn.XLOOKUP(F2344,'Raw Data'!$I$4:$I$5000,'Raw Data'!$H$4:$H$5000,\"\",0),\"\")","v":""},{"$f":"IF(INDIRECT(M2344) = \"\",\"\",INDIRECT(M2344))","v":""},"c"]
["SUCMONBALDACVOBAVIF_C",null,null,null,{"$f":"_xlfn.XLOOKUP(F2345,'Raw Data'!$I$4:$I$5000,'Raw Data'!$D$4:$D$5000,\"*** Mnemonic not found ***\",0)","v":"*** Mnemonic not found ***"},"SUCMONBALDACVOBAVIF_C__",null,"Input",null,null,{"$f":"K2344+1","v":49},"O","Input!O49",{"$f":"_xlfn.XLOOKUP(F2345,'Raw Data'!$I$4:$I$5000,'Raw Data'!$E$4:$E$5000,100,0)","v":100},{"$f":"IF(N2345=0,_xlfn.XLOOKUP(F2345,'Raw Data'!$I$4:$I$5000,'Raw Data'!$H$4:$H$5000,\"\",0),\"\")","v":""},{"$f":"IF(INDIRECT(M2345) = \"\",\"\",INDIRECT(M2345))","v":""},"c"]
["SUCMTACOTHEQRESLIF_C",null,null,null,{"$f":"_xlfn.XLOOKUP(F2346,'Raw Data'!$I$4:$I$5000,'Raw Data'!$D$4:$D$5000,\"*** Mnemonic not found ***\",0)","v":"*** Mnemonic not found ***"},"SUCMTACOTHEQRESLIF_C__",null,"Input",null,null,50,"O","Input!O50",{"$f":"_xlfn.XLOOKUP(F2346,'Raw Data'!$I$4:$I$5000,'Raw Data'!$E$4:$E$5000,100,0)","v":100},{"$f":"IF(N2346=0,_xlfn.XLOOKUP(F2346,'Raw Data'!$I$4:$I$5000,'Raw Data'!$H$4:$H$5000,\"\",0),\"\")","v":""},{"$f":"IF(INDIRECT(M2346) = \"\",\"\",INDIRECT(M2346))","v":""},"c"]
["SUCMLIFERESMVADJ_C",null,null,null,{"$f":"_xlfn.XLOOKUP(F2347,'Raw Data'!$I$4:$I$5000,'Raw Data'!$D$4:$D$5000,\"*** Mnemonic not found ***\",0)","v":"*** Mnemonic not found ***"},"SUCMLIFERESMVADJ_C__",null,"Input",null,null,51,"O","Input!O51",{"$f":"_xlfn.XLOOKUP(F2347,'Raw Data'!$I$4:$I$5000,'Raw Data'!$E$4:$E$5000,100,0)","v":100},{"$f":"IF(N2347=0,_xlfn.XLOOKUP(F2347,'Raw Data'!$I$4:$I$5000,'Raw Data'!$H$4:$H$5000,\"\",0),\"\")","v":""},{"$f":"IF(INDIRECT(M2347) = \"\",\"\",INDIRECT(M2347))","v":""},"c"]
["SUCMPHCAPAVAIL_C",null,null,null,{"$f":"_xlfn.XLOOKUP(F2348,'Raw Data'!$I$4:$I$5000,'Raw Data'!$D$4:$D$5000,\"*** Mnemonic not found ***\",0)","v":"*** Mnemonic not found ***"},"SUCMPHCAPAVAIL_C__",null,"Input",null,null,{"$f":"K2347+2","v":53},"O","Input!O53",{"$f":"_xlfn.XLOOKUP(F2348,'Raw Data'!$I$4:$I$5000,'Raw Data'!$E$4:$E$5000,100,0)","v":100},{"$f":"IF(N2348=0,_xlfn.XLOOKUP(F2348,'Raw Data'!$I$4:$I$5000,'Raw Data'!$H$4:$H$5000,\"\",0),\"\")","v":""},{"$f":"IF(INDIRECT(M2348) = \"\",\"\",INDIRECT(M2348))","v":""},"c"]
["SUCMURGINVBKLIFE_C",null,null,null,{"$f":"_xlfn.XLOOKUP(F2349,'Raw Data'!$I$4:$I$5000,'Raw Data'!$D$4:$D$5000,\"*** Mnemonic not found ***\",0)","v":"*** Mnemonic not found ***"},"SUCMURGINVBKLIFE_C__",null,"Input",null,null,{"$f":"K2348+2","v":55},{"$f":"L2350","v":"O"},{"$f":"CONCATENATE(H2349,\"!\",L2349,K2349)","v":"Input!O55"},{"$f":"_xlfn.XLOOKUP(F2349,'Raw Data'!$I$4:$I$5000,'Raw Data'!$E$4:$E$5000,100,0)","v":100},{"$f":"IF(N2349=0,_xlfn.XLOOKUP(F2349,'Raw Data'!$I$4:$I$5000,'Raw Data'!$H$4:$H$5000,\"\",0),\"\")","v":""},{"$f":"IF(INDIRECT(M2349) = \"\",\"\",INDIRECT(M2349))","v":""},"c","tac_urg_on_invest_for_life_c"]
["SUCMHYBEQHIGH_C",null,null,null,{"$f":"_xlfn.XLOOKUP(F2350,'Raw Data'!$I$4:$I$5000,'Raw Data'!$D$4:$D$5000,\"*** Mnemonic not found ***\",0)","v":"*** Mnemonic not found ***"},"SUCMHYBEQHIGH_C__",null,"Input",null,null,{"$f":"K2349+3","v":58},{"$f":"L2348","v":"O"},"Input!O58",{"$f":"_xlfn.XLOOKUP(F2350,'Raw Data'!$I$4:$I$5000,'Raw Data'!$E$4:$E$5000,100,0)","v":100},{"$f":"IF(N2350=0,_xlfn.XLOOKUP(F2350,'Raw Data'!$I$4:$I$5000,'Raw Data'!$H$4:$H$5000,\"\",0),\"\")","v":""},{"$f":"IF(INDIRECT(M2350) = \"\",\"\",INDIRECT(M2350))","v":""},"c"]
["SUCMHYBEQINTERM_C",null,null,null,{"$f":"_xlfn.XLOOKUP(F2351,'Raw Data'!$I$4:$I$5000,'Raw Data'!$D$4:$D$5000,\"*** Mnemonic not found ***\",0)","v":"*** Mnemonic not found ***"},"SUCMHYBEQINTERM_C__",null,"Input",null,null,{"$f":"K2350+1","v":59},{"$f":"L2350","v":"O"},"Input!O59",{"$f":"_xlfn.XLOOKUP(F2351,'Raw Data'!$I$4:$I$5000,'Raw Data'!$E$4:$E$5000,100,0)","v":100},{"$f":"IF(N2351=0,_xlfn.XLOOKUP(F2351,'Raw Data'!$I$4:$I$5000,'Raw Data'!$H$4:$H$5000,\"\",0),\"\")","v":""},{"$f":"IF(INDIRECT(M2351) = \"\",\"\",INDIRECT(M2351))","v":""},"c"]
["SUCMHYBEQNONE_C",null,null,null,{"$f":"_xlfn.XLOOKUP(F2352,'Raw Data'!$I$4:$I$5000,'Raw Data'!$D$4:$D$5000,\"*** Mnemonic not found ***\",0)","v":"*** Mnemonic not found ***"},"SUCMHYBEQNONE_C__",null,"Input",null,null,60,"O","Input!O60",{"$f":"_xlfn.XLOOKUP(F2352,'Raw Data'!$I$4:$I$5000,'Raw Data'!$E$4:$E$5000,100,0)","v":100},{"$f":"IF(N2352=0,_xlfn.XLOOKUP(F2352,'Raw Data'!$I$4:$I$5000,'Raw Data'!$H$4:$H$5000,\"\",0),\"\")","v":""},{"$f":"IF(INDIRECT(M2352) = \"\",\"\",INDIRECT(M2352))","v":""},"c"]
["SUCMHYBELIGDFC_C",null,null,null,{"$f":"_xlfn.XLOOKUP(F2353,'Raw Data'!$I$4:$I$5000,'Raw Data'!$D$4:$D$5000,\"*** Mnemonic not found ***\",0)","v":"*** Mnemonic not found ***"},"SUCMHYBELIGDFC_C__",null,"Input",null,null,61,"O","Input!O61",{"$f":"_xlfn.XLOOKUP(F2353,'Raw Data'!$I$4:$I$5000,'Raw Data'!$E$4:$E$5000,100,0)","v":100},{"$f":"IF(N2353=0,_xlfn.XLOOKUP(F2353,'Raw Data'!$I$4:$I$5000,'Raw Data'!$H$4:$H$5000,\"\",0),\"\")","v":""},{"$f":"IF(INDIRECT(M2353) = \"\",\"\",INDIRECT(M2353))","v":""},"c"]
["SUCMDEBTCAPELIG_C",null,null,null,{"$f":"_xlfn.XLOOKUP(F2354,'Raw Data'!$I$4:$I$5000,'Raw Data'!$D$4:$D$5000,\"*** Mnemonic not found ***\",0)","v":"*** Mnemonic not found ***"},"SUCMDEBTCAPELIG_C__",null,"Input",null,null,{"$f":"K2353+2","v":63},"O","Input!O63",{"$f":"_xlfn.XLOOKUP(F2354,'Raw Data'!$I$4:$I$5000,'Raw Data'!$E$4:$E$5000,100,0)","v":100},{"$f":"IF(N2354=0,_xlfn.XLOOKUP(F2354,'Raw Data'!$I$4:$I$5000,'Raw Data'!$H$4:$H$5000,\"\",0),\"\")","v":""},{"$f":"IF(INDIRECT(M2354) = \"\",\"\",INDIRECT(M2354))","v":""},"c"]
["SUCMDEBTELIGDFC_C",null,null,null,{"$f":"_xlfn.XLOOKUP(F2355,'Raw Data'!$I$4:$I$5000,'Raw Data'!$D$4:$D$5000,\"*** Mnemonic not found ***\",0)","v":"*** Mnemonic not found ***"},"SUCMDEBTELIGDFC_C__",null,"Input",null,null,{"$f":"K2354+1","v":64},"O","Input!O64",{"$f":"_xlfn.XLOOKUP(F2355,'Raw Data'!$I$4:$I$5000,'Raw Data'!$E$4:$E$5000,100,0)","v":100},{"$f":"IF(N2355=0,_xlfn.XLOOKUP(F2355,'Raw Data'!$I$4:$I$5000,'Raw Data'!$H$4:$H$5000,\"\",0),\"\")","v":""},{"$f":"IF(INDIRECT(M2355) = \"\",\"\",INDIRECT(M2355))","v":""},"c"]
["SUCMDEBTELIGDFCIN_C",null,null,null,{"$f":"_xlfn.XLOOKUP(F2356,'Raw Data'!$I$4:$I$5000,'Raw Data'!$D$4:$D$5000,\"*** Mnemonic not found ***\",0)","v":"*** Mnemonic not found ***"},{"$f":"CONCATENATE(A2356,\"_\",B2356,\"_\",D2356)","v":"SUCMDEBTELIGDFCIN_C__"},null,"Input",null,null,{"$f":"K2355+1","v":65},"O",{"$f":"CONCATENATE(H2356,\"!\",L2356,K2356)","v":"Input!O65"},{"$f":"_xlfn.XLOOKUP(F2356,'Raw Data'!$I$4:$I$5000,'Raw Data'!$E$4:$E$5000,100,0)","v":100},{"$f":"IF(N2356=0,_xlfn.XLOOKUP(F2356,'Raw Data'!$I$4:$I$5000,'Raw Data'!$H$4:$H$5000,\"\",0),\"\")","v":""},{"$f":"IF(INDIRECT(M2356) = \"\",\"\",INDIRECT(M2356))","v":""},"c"]
["SUCMDEBTNOELIGSFC_C",null,null,null,{"$f":"_xlfn.XLOOKUP(F2357,'Raw Data'!$I$4:$I$5000,'Raw Data'!$D$4:$D$5000,\"*** Mnemonic not found ***\",0)","v":"*** Mnemonic not found ***"},"SUCMDEBTNOELIGSFC_C__",null,"Input",null,null,{"$f":"K2356+1","v":66},"O","Input!O66",{"$f":"_xlfn.XLOOKUP(F2357,'Raw Data'!$I$4:$I$5000,'Raw Data'!$E$4:$E$5000,100,0)","v":100},{"$f":"IF(N2357=0,_xlfn.XLOOKUP(F2357,'Raw Data'!$I$4:$I$5000,'Raw Data'!$H$4:$H$5000,\"\",0),\"\")","v":""},{"$f":"IF(INDIRECT(M2357) = \"\",\"\",INDIRECT(M2357))","v":""},"c"]
["SUCMCASHINVATNOHCAMT_C",null,null,null,{"$f":"_xlfn.XLOOKUP(F2358,'Raw Data'!$I$4:$I$5000,'Raw Data'!$D$4:$D$5000,\"*** Mnemonic not found ***\",0)","v":"*** Mnemonic not found ***"},"SUCMCASHINVATNOHCAMT_C__",null,"Input",null,null,67,"O",{"$f":"CONCATENATE(H2358,\"!\",L2358,K2358)","v":"Input!O67"},{"$f":"_xlfn.XLOOKUP(F2358,'Raw Data'!$I$4:$I$5000,'Raw Data'!$E$4:$E$5000,100,0)","v":100},{"$f":"IF(N2358=0,_xlfn.XLOOKUP(F2358,'Raw Data'!$I$4:$I$5000,'Raw Data'!$H$4:$H$5000,\"\",0),\"\")","v":""},{"$f":"IF(INDIRECT(M2358) = \"\",\"\",INDIRECT(M2358))","v":""},"c","tac_cash_and_asset_nohc_amt_c"]
["SUCMCASHINVATNOHCHC_C",null,null,null,{"$f":"_xlfn.XLOOKUP(F2359,'Raw Data'!$I$4:$I$5000,'Raw Data'!$D$4:$D$5000,\"*** Mnemonic not found ***\",0)","v":"*** Mnemonic not found ***"},"SUCMCASHINVATNOHCHC_C__",null,"Input",null,null,68,"O","Input!O68",{"$f":"_xlfn.XLOOKUP(F2359,'Raw Data'!$I$4:$I$5000,'Raw Data'!$E$4:$E$5000,100,0)","v":100},{"$f":"IF(N2359=0,_xlfn.XLOOKUP(F2359,'Raw Data'!$I$4:$I$5000,'Raw Data'!$H$4:$H$5000,\"\",0),\"\")","v":""},{"$f":"IF(INDIRECT(M2359) = \"\",\"\",INDIRECT(M2359))","v":""},"c","tac_cash_and_asset_nohc_haircut_c"]
["SUCMTOTDEBTHYB_C",null,null,null,{"$f":"_xlfn.XLOOKUP(F2360,'Raw Data'!$I$4:$I$5000,'Raw Data'!$D$4:$D$5000,\"*** Mnemonic not found ***\",0)","v":"*** Mnemonic not found ***"},"SUCMTOTDEBTHYB_C__",null,"Input",null,null,{"$f":"K2359+2","v":70},{"$f":"L2359","v":"O"},{"$f":"CONCATENATE(H2360,\"!\",L2360,K2360)","v":"Input!O70"},{"$f":"_xlfn.XLOOKUP(F2360,'Raw Data'!$I$4:$I$5000,'Raw Data'!$E$4:$E$5000,100,0)","v":100},{"$f":"IF(N2360=0,_xlfn.XLOOKUP(F2360,'Raw Data'!$I$4:$I$5000,'Raw Data'!$H$4:$H$5000,\"\",0),\"\")","v":""},{"$f":"IF(INDIRECT(M2360) = \"\",\"\",INDIRECT(M2360))","v":""},"c"]
["SUCMINVSUBDECONS_C",null,null,null,{"$f":"_xlfn.XLOOKUP(F2361,'Raw Data'!$I$4:$I$5000,'Raw Data'!$D$4:$D$5000,\"*** Mnemonic not found ***\",0)","v":"*** Mnemonic not found ***"},"SUCMINVSUBDECONS_C__",null,"Input",null,null,{"$f":"K2360+3","v":73},"O","Input!O73",{"$f":"_xlfn.XLOOKUP(F2361,'Raw Data'!$I$4:$I$5000,'Raw Data'!$E$4:$E$5000,100,0)","v":100},{"$f":"IF(N2361=0,_xlfn.XLOOKUP(F2361,'Raw Data'!$I$4:$I$5000,'Raw Data'!$H$4:$H$5000,\"\",0),\"\")","v":""},{"$f":"IF(INDIRECT(M2361) = \"\",\"\",INDIRECT(M2361))","v":""},"c"]
["SUCMUNCONSSUBSNOCONS_C",null,null,null,{"$f":"_xlfn.XLOOKUP(F2362,'Raw Data'!$I$4:$I$5000,'Raw Data'!$D$4:$D$5000,\"*** Mnemonic not found ***\",0)","v":"*** Mnemonic not found ***"},"SUCMUNCONSSUBSNOCONS_C__",null,"Input",null,null,{"$f":"K2361+1","v":74},"O","Input!O74",{"$f":"_xlfn.XLOOKUP(F2362,'Raw Data'!$I$4:$I$5000,'Raw Data'!$E$4:$E$5000,100,0)","v":100},{"$f":"IF(N2362=0,_xlfn.XLOOKUP(F2362,'Raw Data'!$I$4:$I$5000,'Raw Data'!$H$4:$H$5000,\"\",0),\"\")","v":""},{"$f":"IF(INDIRECT(M2362) = \"\",\"\",INDIRECT(M2362))","v":""},"c"]
["SUCMCRRCAT1_C",null,null,null,{"$f":"_xlfn.XLOOKUP(F2363,'Raw Data'!$I$4:$I$5000,'Raw Data'!$D$4:$D$5000,\"*** Mnemonic not found ***\",0)","v":"*** Mnemonic not found ***"},"SUCMCRRCAT1_C__","Comments - S&P Rated Bonds","Input",{"$f":"ROW(section_bonds_sp_rated)","v":79},3,{"$f":"I2363+J2363","v":82},{"$f":"L2362","v":"O"},"Input!O82",{"$f":"_xlfn.XLOOKUP(F2363,'Raw Data'!$I$4:$I$5000,'Raw Data'!$E$4:$E$5000,100,0)","v":100},{"$f":"IF(N2363=0,_xlfn.XLOOKUP(F2363,'Raw Data'!$I$4:$I$5000,'Raw Data'!$H$4:$H$5000,\"\",0),\"\")","v":""},{"$f":"IF(INDIRECT(M2363) = \"\",\"\",INDIRECT(M2363))","v":""},"c"]
["SUCMCRRCAT1_LESS1_C",null,null,null,{"$f":"_xlfn.XLOOKUP(F2364,'Raw Data'!$I$4:$I$5000,'Raw Data'!$D$4:$D$5000,\"*** Mnemonic not found ***\",0)","v":"*** Mnemonic not found ***"},"SUCMCRRCAT1_LESS1_C__",null,"Input",null,null,{"$f":"K2363+1","v":83},"O","Input!O83",{"$f":"_xlfn.XLOOKUP(F2364,'Raw Data'!$I$4:$I$5000,'Raw Data'!$E$4:$E$5000,100,0)","v":100},{"$f":"IF(N2364=0,_xlfn.XLOOKUP(F2364,'Raw Data'!$I$4:$I$5000,'Raw Data'!$H$4:$H$5000,\"\",0),\"\")","v":""},{"$f":"IF(INDIRECT(M2364) = \"\",\"\",INDIRECT(M2364))","v":""},"c"]
["SUCMCRRCAT1_1TO5_C",null,null,null,{"$f":"_xlfn.XLOOKUP(F2365,'Raw Data'!$I$4:$I$5000,'Raw Data'!$D$4:$D$5000,\"*** Mnemonic not found ***\",0)","v":"*** Mnemonic not found ***"},"SUCMCRRCAT1_1TO5_C__",null,"Input",null,null,84,"O","Input!O84",{"$f":"_xlfn.XLOOKUP(F2365,'Raw Data'!$I$4:$I$5000,'Raw Data'!$E$4:$E$5000,100,0)","v":100},{"$f":"IF(N2365=0,_xlfn.XLOOKUP(F2365,'Raw Data'!$I$4:$I$5000,'Raw Data'!$H$4:$H$5000,\"\",0),\"\")","v":""},{"$f":"IF(INDIRECT(M2365) = \"\",\"\",INDIRECT(M2365))","v":""},"c"]
["SUCMCRRCAT1_5TO10_C",null,null,null,{"$f":"_xlfn.XLOOKUP(F2366,'Raw Data'!$I$4:$I$5000,'Raw Data'!$D$4:$D$5000,\"*** Mnemonic not found ***\",0)","v":"*** Mnemonic not found ***"},"SUCMCRRCAT1_5TO10_C__",null,"Input",null,null,85,"O","Input!O85",{"$f":"_xlfn.XLOOKUP(F2366,'Raw Data'!$I$4:$I$5000,'Raw Data'!$E$4:$E$5000,100,0)","v":100},{"$f":"IF(N2366=0,_xlfn.XLOOKUP(F2366,'Raw Data'!$I$4:$I$5000,'Raw Data'!$H$4:$H$5000,\"\",0),\"\")","v":""},{"$f":"IF(INDIRECT(M2366) = \"\",\"\",INDIRECT(M2366))","v":""},"c"]
["SUCMCRRCAT1_10TO20_C",null,null,null,{"$f":"_xlfn.XLOOKUP(F2367,'Raw Data'!$I$4:$I$5000,'Raw Data'!$D$4:$D$5000,\"*** Mnemonic not found ***\",0)","v":"*** Mnemonic not found ***"},"SUCMCRRCAT1_10TO20_C__",null,"Input",null,null,86,"O","Input!O86",{"$f":"_xlfn.XLOOKUP(F2367,'Raw Data'!$I$4:$I$5000,'Raw Data'!$E$4:$E$5000,100,0)","v":100},{"$f":"IF(N2367=0,_xlfn.XLOOKUP(F2367,'Raw Data'!$I$4:$I$5000,'Raw Data'!$H$4:$H$5000,\"\",0),\"\")","v":""},{"$f":"IF(INDIRECT(M2367) = \"\",\"\",INDIRECT(M2367))","v":""},"c"]
["SUCMCRRCAT1_GRTR20_C",null,null,null,{"$f":"_xlfn.XLOOKUP(F2368,'Raw Data'!$I$4:$I$5000,'Raw Data'!$D$4:$D$5000,\"*** Mnemonic not found ***\",0)","v":"*** Mnemonic not found ***"},"SUCMCRRCAT1_GRTR20_C__",null,"Input",null,null,87,"O","Input!O87",{"$f":"_xlfn.XLOOKUP(F2368,'Raw Data'!$I$4:$I$5000,'Raw Data'!$E$4:$E$5000,100,0)","v":100},{"$f":"IF(N2368=0,_xlfn.XLOOKUP(F2368,'Raw Data'!$I$4:$I$5000,'Raw Data'!$H$4:$H$5000,\"\",0),\"\")","v":""},{"$f":"IF(INDIRECT(M2368) = \"\",\"\",INDIRECT(M2368))","v":""},"c"]
["SUCMCRRCAT1_TOTAL_C",null,null,null,{"$f":"_xlfn.XLOOKUP(F2369,'Raw Data'!$I$4:$I$5000,'Raw Data'!$D$4:$D$5000,\"*** Mnemonic not found ***\",0)","v":"*** Mnemonic not found ***"},"SUCMCRRCAT1_TOTAL_C__",null,"Input",null,null,88,"O","Input!O88",{"$f":"_xlfn.XLOOKUP(F2369,'Raw Data'!$I$4:$I$5000,'Raw Data'!$E$4:$E$5000,100,0)","v":100},{"$f":"IF(N2369=0,_xlfn.XLOOKUP(F2369,'Raw Data'!$I$4:$I$5000,'Raw Data'!$H$4:$H$5000,\"\",0),\"\")","v":""},{"$f":"IF(INDIRECT(M2369) = \"\",\"\",INDIRECT(M2369))","v":""},"c"]
["SUCMCRRCAT2_C",null,null,null,{"$f":"_xlfn.XLOOKUP(F2370,'Raw Data'!$I$4:$I$5000,'Raw Data'!$D$4:$D$5000,\"*** Mnemonic not found ***\",0)","v":"*** Mnemonic not found ***"},"SUCMCRRCAT2_C__",null,"Input",null,null,{"$f":"K2369+2","v":90},"O","Input!O90",{"$f":"_xlfn.XLOOKUP(F2370,'Raw Data'!$I$4:$I$5000,'Raw Data'!$E$4:$E$5000,100,0)","v":100},{"$f":"IF(N2370=0,_xlfn.XLOOKUP(F2370,'Raw Data'!$I$4:$I$5000,'Raw Data'!$H$4:$H$5000,\"\",0),\"\")","v":""},{"$f":"IF(INDIRECT(M2370) = \"\",\"\",INDIRECT(M2370))","v":""},"c"]
["SUCMCRRCAT2_LESS1_C",null,null,null,{"$f":"_xlfn.XLOOKUP(F2371,'Raw Data'!$I$4:$I$5000,'Raw Data'!$D$4:$D$5000,\"*** Mnemonic not found ***\",0)","v":"*** Mnemonic not found ***"},"SUCMCRRCAT2_LESS1_C__",null,"Input",null,null,91,{"$f":"L2370","v":"O"},"Input!O91",{"$f":"_xlfn.XLOOKUP(F2371,'Raw Data'!$I$4:$I$5000,'Raw Data'!$E$4:$E$5000,100,0)","v":100},{"$f":"IF(N2371=0,_xlfn.XLOOKUP(F2371,'Raw Data'!$I$4:$I$5000,'Raw Data'!$H$4:$H$5000,\"\",0),\"\")","v":""},{"$f":"IF(INDIRECT(M2371) = \"\",\"\",INDIRECT(M2371))","v":""},"c"]
["SUCMCRRCAT2_1TO5_C",null,null,null,{"$f":"_xlfn.XLOOKUP(F2372,'Raw Data'!$I$4:$I$5000,'Raw Data'!$D$4:$D$5000,\"*** Mnemonic not found ***\",0)","v":"*** Mnemonic not found ***"},"SUCMCRRCAT2_1TO5_C__",null,"Input",null,null,92,"O","Input!O92",{"$f":"_xlfn.XLOOKUP(F2372,'Raw Data'!$I$4:$I$5000,'Raw Data'!$E$4:$E$5000,100,0)","v":100},{"$f":"IF(N2372=0,_xlfn.XLOOKUP(F2372,'Raw Data'!$I$4:$I$5000,'Raw Data'!$H$4:$H$5000,\"\",0),\"\")","v":""},{"$f":"IF(INDIRECT(M2372) = \"\",\"\",INDIRECT(M2372))","v":""},"c"]
["SUCMCRRCAT2_5TO10_C",null,null,null,{"$f":"_xlfn.XLOOKUP(F2373,'Raw Data'!$I$4:$I$5000,'Raw Data'!$D$4:$D$5000,\"*** Mnemonic not found ***\",0)","v":"*** Mnemonic not found ***"},"SUCMCRRCAT2_5TO10_C__",null,"Input",null,null,93,"O","Input!O93",{"$f":"_xlfn.XLOOKUP(F2373,'Raw Data'!$I$4:$I$5000,'Raw Data'!$E$4:$E$5000,100,0)","v":100},{"$f":"IF(N2373=0,_xlfn.XLOOKUP(F2373,'Raw Data'!$I$4:$I$5000,'Raw Data'!$H$4:$H$5000,\"\",0),\"\")","v":""},{"$f":"IF(INDIRECT(M2373) = \"\",\"\",INDIRECT(M2373))","v":""},"c"]
["SUCMCRRCAT2_10TO20_C",null,null,null,{"$f":"_xlfn.XLOOKUP(F2374,'Raw Data'!$I$4:$I$5000,'Raw Data'!$D$4:$D$5000,\"*** Mnemonic not found ***\",0)","v":"*** Mnemonic not found ***"},"SUCMCRRCAT2_10TO20_C__",null,"Input",null,null,94,"O","Input!O94",{"$f":"_xlfn.XLOOKUP(F2374,'Raw Data'!$I$4:$I$5000,'Raw Data'!$E$4:$E$5000,100,0)","v":100},{"$f":"IF(N2374=0,_xlfn.XLOOKUP(F2374,'Raw Data'!$I$4:$I$5000,'Raw Data'!$H$4:$H$5000,\"\",0),\"\")","v":""},{"$f":"IF(INDIRECT(M2374) = \"\",\"\",INDIRECT(M2374))","v":""},"c"]
["SUCMCRRCAT2_GRTR20_C",null,null,null,{"$f":"_xlfn.XLOOKUP(F2375,'Raw Data'!$I$4:$I$5000,'Raw Data'!$D$4:$D$5000,\"*** Mnemonic not found ***\",0)","v":"*** Mnemonic not found ***"},"SUCMCRRCAT2_GRTR20_C__",null,"Input",null,null,95,"O","Input!O95",{"$f":"_xlfn.XLOOKUP(F2375,'Raw Data'!$I$4:$I$5000,'Raw Data'!$E$4:$E$5000,100,0)","v":100},{"$f":"IF(N2375=0,_xlfn.XLOOKUP(F2375,'Raw Data'!$I$4:$I$5000,'Raw Data'!$H$4:$H$5000,\"\",0),\"\")","v":""},{"$f":"IF(INDIRECT(M2375) = \"\",\"\",INDIRECT(M2375))","v":""},"c"]
["SUCMCRRCAT2_TOTAL_C",null,null,null,{"$f":"_xlfn.XLOOKUP(F2376,'Raw Data'!$I$4:$I$5000,'Raw Data'!$D$4:$D$5000,\"*** Mnemonic not found ***\",0)","v":"*** Mnemonic not found ***"},"SUCMCRRCAT2_TOTAL_C__",null,"Input",null,null,96,"O","Input!O96",{"$f":"_xlfn.XLOOKUP(F2376,'Raw Data'!$I$4:$I$5000,'Raw Data'!$E$4:$E$5000,100,0)","v":100},{"$f":"IF(N2376=0,_xlfn.XLOOKUP(F2376,'Raw Data'!$I$4:$I$5000,'Raw Data'!$H$4:$H$5000,\"\",0),\"\")","v":""},{"$f":"IF(INDIRECT(M2376) = \"\",\"\",INDIRECT(M2376))","v":""},"c"]
["SUCMCRRCAT3_C",null,null,null,{"$f":"_xlfn.XLOOKUP(F2377,'Raw Data'!$I$4:$I$5000,'Raw Data'!$D$4:$D$5000,\"*** Mnemonic not found ***\",0)","v":"*** Mnemonic not found ***"},"SUCMCRRCAT3_C__",null,"Input",null,null,{"$f":"K2376+2","v":98},"O","Input!O98",{"$f":"_xlfn.XLOOKUP(F2377,'Raw Data'!$I$4:$I$5000,'Raw Data'!$E$4:$E$5000,100,0)","v":100},{"$f":"IF(N2377=0,_xlfn.XLOOKUP(F2377,'Raw Data'!$I$4:$I$5000,'Raw Data'!$H$4:$H$5000,\"\",0),\"\")","v":""},{"$f":"IF(INDIRECT(M2377) = \"\",\"\",INDIRECT(M2377))","v":""},"c"]
["SUCMCRRCAT3_LESS1_C",null,null,null,{"$f":"_xlfn.XLOOKUP(F2378,'Raw Data'!$I$4:$I$5000,'Raw Data'!$D$4:$D$5000,\"*** Mnemonic not found ***\",0)","v":"*** Mnemonic not found ***"},"SUCMCRRCAT3_LESS1_C__",null,"Input",null,null,99,"O","Input!O99",{"$f":"_xlfn.XLOOKUP(F2378,'Raw Data'!$I$4:$I$5000,'Raw Data'!$E$4:$E$5000,100,0)","v":100},{"$f":"IF(N2378=0,_xlfn.XLOOKUP(F2378,'Raw Data'!$I$4:$I$5000,'Raw Data'!$H$4:$H$5000,\"\",0),\"\")","v":""},{"$f":"IF(INDIRECT(M2378) = \"\",\"\",INDIRECT(M2378))","v":""},"c"]
["SUCMCRRCAT3_1TO5_C",null,null,null,{"$f":"_xlfn.XLOOKUP(F2379,'Raw Data'!$I$4:$I$5000,'Raw Data'!$D$4:$D$5000,\"*** Mnemonic not found ***\",0)","v":"*** Mnemonic not found ***"},"SUCMCRRCAT3_1TO5_C__",null,"Input",null,null,100,"O","Input!O100",{"$f":"_xlfn.XLOOKUP(F2379,'Raw Data'!$I$4:$I$5000,'Raw Data'!$E$4:$E$5000,100,0)","v":100},{"$f":"IF(N2379=0,_xlfn.XLOOKUP(F2379,'Raw Data'!$I$4:$I$5000,'Raw Data'!$H$4:$H$5000,\"\",0),\"\")","v":""},{"$f":"IF(INDIRECT(M2379) = \"\",\"\",INDIRECT(M2379))","v":""},"c"]
["SUCMCRRCAT3_5TO10_C",null,null,null,{"$f":"_xlfn.XLOOKUP(F2380,'Raw Data'!$I$4:$I$5000,'Raw Data'!$D$4:$D$5000,\"*** Mnemonic not found ***\",0)","v":"*** Mnemonic not found ***"},"SUCMCRRCAT3_5TO10_C__",null,"Input",null,null,101,"O","Input!O101",{"$f":"_xlfn.XLOOKUP(F2380,'Raw Data'!$I$4:$I$5000,'Raw Data'!$E$4:$E$5000,100,0)","v":100},{"$f":"IF(N2380=0,_xlfn.XLOOKUP(F2380,'Raw Data'!$I$4:$I$5000,'Raw Data'!$H$4:$H$5000,\"\",0),\"\")","v":""},{"$f":"IF(INDIRECT(M2380) = \"\",\"\",INDIRECT(M2380))","v":""},"c"]
["SUCMCRRCAT3_10TO20_C",null,null,null,{"$f":"_xlfn.XLOOKUP(F2381,'Raw Data'!$I$4:$I$5000,'Raw Data'!$D$4:$D$5000,\"*** Mnemonic not found ***\",0)","v":"*** Mnemonic not found ***"},"SUCMCRRCAT3_10TO20_C__",null,"Input",null,null,102,"O","Input!O102",{"$f":"_xlfn.XLOOKUP(F2381,'Raw Data'!$I$4:$I$5000,'Raw Data'!$E$4:$E$5000,100,0)","v":100},{"$f":"IF(N2381=0,_xlfn.XLOOKUP(F2381,'Raw Data'!$I$4:$I$5000,'Raw Data'!$H$4:$H$5000,\"\",0),\"\")","v":""},{"$f":"IF(INDIRECT(M2381) = \"\",\"\",INDIRECT(M2381))","v":""},"c"]
["SUCMCRRCAT3_GRTR20_C",null,null,null,{"$f":"_xlfn.XLOOKUP(F2382,'Raw Data'!$I$4:$I$5000,'Raw Data'!$D$4:$D$5000,\"*** Mnemonic not found ***\",0)","v":"*** Mnemonic not found ***"},{"$f":"CONCATENATE(A2382,\"_\",B2382,\"_\",D2382)","v":"SUCMCRRCAT3_GRTR20_C__"},null,"Input",null,null,103,"O","Input!O103",{"$f":"_xlfn.XLOOKUP(F2382,'Raw Data'!$I$4:$I$5000,'Raw Data'!$E$4:$E$5000,100,0)","v":100},{"$f":"IF(N2382=0,_xlfn.XLOOKUP(F2382,'Raw Data'!$I$4:$I$5000,'Raw Data'!$H$4:$H$5000,\"\",0),\"\")","v":""},{"$f":"IF(INDIRECT(M2382) = \"\",\"\",INDIRECT(M2382))","v":""},"c"]
["SUCMCRRCAT3_TOTAL_C",null,null,null,{"$f":"_xlfn.XLOOKUP(F2383,'Raw Data'!$I$4:$I$5000,'Raw Data'!$D$4:$D$5000,\"*** Mnemonic not found ***\",0)","v":"*** Mnemonic not found ***"},"SUCMCRRCAT3_TOTAL_C__",null,"Input",null,null,104,"O","Input!O104",{"$f":"_xlfn.XLOOKUP(F2383,'Raw Data'!$I$4:$I$5000,'Raw Data'!$E$4:$E$5000,100,0)","v":100},{"$f":"IF(N2383=0,_xlfn.XLOOKUP(F2383,'Raw Data'!$I$4:$I$5000,'Raw Data'!$H$4:$H$5000,\"\",0),\"\")","v":""},{"$f":"IF(INDIRECT(M2383) = \"\",\"\",INDIRECT(M2383))","v":""},"c"]
["SUCMCRRCAT4_C",null,null,null,{"$f":"_xlfn.XLOOKUP(F2384,'Raw Data'!$I$4:$I$5000,'Raw Data'!$D$4:$D$5000,\"*** Mnemonic not found ***\",0)","v":"*** Mnemonic not found ***"},"SUCMCRRCAT4_C__",null,"Input",null,null,{"$f":"K2383+2","v":106},"O","Input!O106",{"$f":"_xlfn.XLOOKUP(F2384,'Raw Data'!$I$4:$I$5000,'Raw Data'!$E$4:$E$5000,100,0)","v":100},{"$f":"IF(N2384=0,_xlfn.XLOOKUP(F2384,'Raw Data'!$I$4:$I$5000,'Raw Data'!$H$4:$H$5000,\"\",0),\"\")","v":""},{"$f":"IF(INDIRECT(M2384) = \"\",\"\",INDIRECT(M2384))","v":""},"c"]
["SUCMCRRCAT4_LESS1_C",null,null,null,{"$f":"_xlfn.XLOOKUP(F2385,'Raw Data'!$I$4:$I$5000,'Raw Data'!$D$4:$D$5000,\"*** Mnemonic not found ***\",0)","v":"*** Mnemonic not found ***"},"SUCMCRRCAT4_LESS1_C__",null,"Input",null,null,107,"O","Input!O107",{"$f":"_xlfn.XLOOKUP(F2385,'Raw Data'!$I$4:$I$5000,'Raw Data'!$E$4:$E$5000,100,0)","v":100},{"$f":"IF(N2385=0,_xlfn.XLOOKUP(F2385,'Raw Data'!$I$4:$I$5000,'Raw Data'!$H$4:$H$5000,\"\",0),\"\")","v":""},{"$f":"IF(INDIRECT(M2385) = \"\",\"\",INDIRECT(M2385))","v":""},"c"]
["SUCMCRRCAT4_1TO5_C",null,null,null,{"$f":"_xlfn.XLOOKUP(F2386,'Raw Data'!$I$4:$I$5000,'Raw Data'!$D$4:$D$5000,\"*** Mnemonic not found ***\",0)","v":"*** Mnemonic not found ***"},"SUCMCRRCAT4_1TO5_C__",null,"Input",null,null,108,"O","Input!O108",{"$f":"_xlfn.XLOOKUP(F2386,'Raw Data'!$I$4:$I$5000,'Raw Data'!$E$4:$E$5000,100,0)","v":100},{"$f":"IF(N2386=0,_xlfn.XLOOKUP(F2386,'Raw Data'!$I$4:$I$5000,'Raw Data'!$H$4:$H$5000,\"\",0),\"\")","v":""},{"$f":"IF(INDIRECT(M2386) = \"\",\"\",INDIRECT(M2386))","v":""},"c"]
["SUCMCRRCAT4_5TO10_C",null,null,null,{"$f":"_xlfn.XLOOKUP(F2387,'Raw Data'!$I$4:$I$5000,'Raw Data'!$D$4:$D$5000,\"*** Mnemonic not found ***\",0)","v":"*** Mnemonic not found ***"},"SUCMCRRCAT4_5TO10_C__",null,"Input",null,null,109,"O","Input!O109",{"$f":"_xlfn.XLOOKUP(F2387,'Raw Data'!$I$4:$I$5000,'Raw Data'!$E$4:$E$5000,100,0)","v":100},{"$f":"IF(N2387=0,_xlfn.XLOOKUP(F2387,'Raw Data'!$I$4:$I$5000,'Raw Data'!$H$4:$H$5000,\"\",0),\"\")","v":""},{"$f":"IF(INDIRECT(M2387) = \"\",\"\",INDIRECT(M2387))","v":""},"c"]
["SUCMCRRCAT4_10TO20_C",null,null,null,{"$f":"_xlfn.XLOOKUP(F2388,'Raw Data'!$I$4:$I$5000,'Raw Data'!$D$4:$D$5000,\"*** Mnemonic not found ***\",0)","v":"*** Mnemonic not found ***"},"SUCMCRRCAT4_10TO20_C__",null,"Input",null,null,110,"O","Input!O110",{"$f":"_xlfn.XLOOKUP(F2388,'Raw Data'!$I$4:$I$5000,'Raw Data'!$E$4:$E$5000,100,0)","v":100},{"$f":"IF(N2388=0,_xlfn.XLOOKUP(F2388,'Raw Data'!$I$4:$I$5000,'Raw Data'!$H$4:$H$5000,\"\",0),\"\")","v":""},{"$f":"IF(INDIRECT(M2388) = \"\",\"\",INDIRECT(M2388))","v":""},"c"]
["SUCMCRRCAT4_GRTR20_C",null,null,null,{"$f":"_xlfn.XLOOKUP(F2389,'Raw Data'!$I$4:$I$5000,'Raw Data'!$D$4:$D$5000,\"*** Mnemonic not found ***\",0)","v":"*** Mnemonic not found ***"},"SUCMCRRCAT4_GRTR20_C__",null,"Input",null,null,111,"O","Input!O111",{"$f":"_xlfn.XLOOKUP(F2389,'Raw Data'!$I$4:$I$5000,'Raw Data'!$E$4:$E$5000,100,0)","v":100},{"$f":"IF(N2389=0,_xlfn.XLOOKUP(F2389,'Raw Data'!$I$4:$I$5000,'Raw Data'!$H$4:$H$5000,\"\",0),\"\")","v":""},{"$f":"IF(INDIRECT(M2389) = \"\",\"\",INDIRECT(M2389))","v":""},"c"]
["SUCMCRRCAT4_TOTAL_C",null,null,null,{"$f":"_xlfn.XLOOKUP(F2390,'Raw Data'!$I$4:$I$5000,'Raw Data'!$D$4:$D$5000,\"*** Mnemonic not found ***\",0)","v":"*** Mnemonic not found ***"},"SUCMCRRCAT4_TOTAL_C__",null,"Input",null,null,112,"O","Input!O112",{"$f":"_xlfn.XLOOKUP(F2390,'Raw Data'!$I$4:$I$5000,'Raw Data'!$E$4:$E$5000,100,0)","v":100},{"$f":"IF(N2390=0,_xlfn.XLOOKUP(F2390,'Raw Data'!$I$4:$I$5000,'Raw Data'!$H$4:$H$5000,\"\",0),\"\")","v":""},{"$f":"IF(INDIRECT(M2390) = \"\",\"\",INDIRECT(M2390))","v":""},"c"]
["SUCMCRRGRANDTOT_C",null,null,null,{"$f":"_xlfn.XLOOKUP(F2391,'Raw Data'!$I$4:$I$5000,'Raw Data'!$D$4:$D$5000,\"*** Mnemonic not found ***\",0)","v":"*** Mnemonic not found ***"},"SUCMCRRGRANDTOT_C__",null,"Input",null,null,{"$f":"K2390+3","v":115},"O","Input!O115",{"$f":"_xlfn.XLOOKUP(F2391,'Raw Data'!$I$4:$I$5000,'Raw Data'!$E$4:$E$5000,100,0)","v":100},{"$f":"IF(N2391=0,_xlfn.XLOOKUP(F2391,'Raw Data'!$I$4:$I$5000,'Raw Data'!$H$4:$H$5000,\"\",0),\"\")","v":""},{"$f":"IF(INDIRECT(M2391) = \"\",\"\",INDIRECT(M2391))","v":""},"c"]
["SUCMALTCAT1_C",null,null,null,{"$f":"_xlfn.XLOOKUP(F2392,'Raw Data'!$I$4:$I$5000,'Raw Data'!$D$4:$D$5000,\"*** Mnemonic not found ***\",0)","v":"*** Mnemonic not found ***"},"SUCMALTCAT1_C__","Comments - S&P Unrated Steps 2 and 3","Input",{"$f":"ROW(section_bonds_sp_unrated_step_2_3)","v":118},4,{"$f":"I2392+J2392","v":122},{"$f":"L2391","v":"O"},"Input!O122",{"$f":"_xlfn.XLOOKUP(F2392,'Raw Data'!$I$4:$I$5000,'Raw Data'!$E$4:$E$5000,100,0)","v":100},{"$f":"IF(N2392=0,_xlfn.XLOOKUP(F2392,'Raw Data'!$I$4:$I$5000,'Raw Data'!$H$4:$H$5000,\"\",0),\"\")","v":""},{"$f":"IF(INDIRECT(M2392) = \"\",\"\",INDIRECT(M2392))","v":""},"c"]
["SUCMALTCAT1_LESS1_C",null,null,null,{"$f":"_xlfn.XLOOKUP(F2393,'Raw Data'!$I$4:$I$5000,'Raw Data'!$D$4:$D$5000,\"*** Mnemonic not found ***\",0)","v":"*** Mnemonic not found ***"},"SUCMALTCAT1_LESS1_C__",null,"Input",null,null,{"$f":"K2392+1","v":123},"O","Input!O123",{"$f":"_xlfn.XLOOKUP(F2393,'Raw Data'!$I$4:$I$5000,'Raw Data'!$E$4:$E$5000,100,0)","v":100},{"$f":"IF(N2393=0,_xlfn.XLOOKUP(F2393,'Raw Data'!$I$4:$I$5000,'Raw Data'!$H$4:$H$5000,\"\",0),\"\")","v":""},{"$f":"IF(INDIRECT(M2393) = \"\",\"\",INDIRECT(M2393))","v":""},"c"]
["SUCMALTCAT1_1TO5_C",null,null,null,{"$f":"_xlfn.XLOOKUP(F2394,'Raw Data'!$I$4:$I$5000,'Raw Data'!$D$4:$D$5000,\"*** Mnemonic not found ***\",0)","v":"*** Mnemonic not found ***"},"SUCMALTCAT1_1TO5_C__",null,"Input",null,null,124,"O","Input!O124",{"$f":"_xlfn.XLOOKUP(F2394,'Raw Data'!$I$4:$I$5000,'Raw Data'!$E$4:$E$5000,100,0)","v":100},{"$f":"IF(N2394=0,_xlfn.XLOOKUP(F2394,'Raw Data'!$I$4:$I$5000,'Raw Data'!$H$4:$H$5000,\"\",0),\"\")","v":""},{"$f":"IF(INDIRECT(M2394) = \"\",\"\",INDIRECT(M2394))","v":""},"c"]
["SUCMALTCAT1_5TO10_C",null,null,null,{"$f":"_xlfn.XLOOKUP(F2395,'Raw Data'!$I$4:$I$5000,'Raw Data'!$D$4:$D$5000,\"*** Mnemonic not found ***\",0)","v":"*** Mnemonic not found ***"},"SUCMALTCAT1_5TO10_C__",null,"Input",null,null,125,"O","Input!O125",{"$f":"_xlfn.XLOOKUP(F2395,'Raw Data'!$I$4:$I$5000,'Raw Data'!$E$4:$E$5000,100,0)","v":100},{"$f":"IF(N2395=0,_xlfn.XLOOKUP(F2395,'Raw Data'!$I$4:$I$5000,'Raw Data'!$H$4:$H$5000,\"\",0),\"\")","v":""},{"$f":"IF(INDIRECT(M2395) = \"\",\"\",INDIRECT(M2395))","v":""},"c"]
["SUCMALTCAT1_10TO20_C",null,null,null,{"$f":"_xlfn.XLOOKUP(F2396,'Raw Data'!$I$4:$I$5000,'Raw Data'!$D$4:$D$5000,\"*** Mnemonic not found ***\",0)","v":"*** Mnemonic not found ***"},"SUCMALTCAT1_10TO20_C__",null,"Input",null,null,126,"O","Input!O126",{"$f":"_xlfn.XLOOKUP(F2396,'Raw Data'!$I$4:$I$5000,'Raw Data'!$E$4:$E$5000,100,0)","v":100},{"$f":"IF(N2396=0,_xlfn.XLOOKUP(F2396,'Raw Data'!$I$4:$I$5000,'Raw Data'!$H$4:$H$5000,\"\",0),\"\")","v":""},{"$f":"IF(INDIRECT(M2396) = \"\",\"\",INDIRECT(M2396))","v":""},"c"]
["SUCMALTCAT1_GRTR20_C",null,null,null,{"$f":"_xlfn.XLOOKUP(F2397,'Raw Data'!$I$4:$I$5000,'Raw Data'!$D$4:$D$5000,\"*** Mnemonic not found ***\",0)","v":"*** Mnemonic not found ***"},"SUCMALTCAT1_GRTR20_C__",null,"Input",null,null,127,"O","Input!O127",{"$f":"_xlfn.XLOOKUP(F2397,'Raw Data'!$I$4:$I$5000,'Raw Data'!$E$4:$E$5000,100,0)","v":100},{"$f":"IF(N2397=0,_xlfn.XLOOKUP(F2397,'Raw Data'!$I$4:$I$5000,'Raw Data'!$H$4:$H$5000,\"\",0),\"\")","v":""},{"$f":"IF(INDIRECT(M2397) = \"\",\"\",INDIRECT(M2397))","v":""},"c"]
["SUCMALTCAT1_TOTAL_C",null,null,null,{"$f":"_xlfn.XLOOKUP(F2398,'Raw Data'!$I$4:$I$5000,'Raw Data'!$D$4:$D$5000,\"*** Mnemonic not found ***\",0)","v":"*** Mnemonic not found ***"},"SUCMALTCAT1_TOTAL_C__",null,"Input",null,null,128,"O",{"$f":"CONCATENATE(H2398,\"!\",L2398,K2398)","v":"Input!O128"},{"$f":"_xlfn.XLOOKUP(F2398,'Raw Data'!$I$4:$I$5000,'Raw Data'!$E$4:$E$5000,100,0)","v":100},{"$f":"IF(N2398=0,_xlfn.XLOOKUP(F2398,'Raw Data'!$I$4:$I$5000,'Raw Data'!$H$4:$H$5000,\"\",0),\"\")","v":""},{"$f":"IF(INDIRECT(M2398) = \"\",\"\",INDIRECT(M2398))","v":""},"c"]
["SUCMALTCAT2_C",null,null,null,{"$f":"_xlfn.XLOOKUP(F2399,'Raw Data'!$I$4:$I$5000,'Raw Data'!$D$4:$D$5000,\"*** Mnemonic not found ***\",0)","v":"*** Mnemonic not found ***"},"SUCMALTCAT2_C__",null,"Input",null,null,{"$f":"K2398+2","v":130},"O","Input!O130",{"$f":"_xlfn.XLOOKUP(F2399,'Raw Data'!$I$4:$I$5000,'Raw Data'!$E$4:$E$5000,100,0)","v":100},{"$f":"IF(N2399=0,_xlfn.XLOOKUP(F2399,'Raw Data'!$I$4:$I$5000,'Raw Data'!$H$4:$H$5000,\"\",0),\"\")","v":""},{"$f":"IF(INDIRECT(M2399) = \"\",\"\",INDIRECT(M2399))","v":""},"c"]
["SUCMALTCAT2_LESS1_C",null,null,null,{"$f":"_xlfn.XLOOKUP(F2400,'Raw Data'!$I$4:$I$5000,'Raw Data'!$D$4:$D$5000,\"*** Mnemonic not found ***\",0)","v":"*** Mnemonic not found ***"},"SUCMALTCAT2_LESS1_C__",null,"Input",null,null,131,"O","Input!O131",{"$f":"_xlfn.XLOOKUP(F2400,'Raw Data'!$I$4:$I$5000,'Raw Data'!$E$4:$E$5000,100,0)","v":100},{"$f":"IF(N2400=0,_xlfn.XLOOKUP(F2400,'Raw Data'!$I$4:$I$5000,'Raw Data'!$H$4:$H$5000,\"\",0),\"\")","v":""},{"$f":"IF(INDIRECT(M2400) = \"\",\"\",INDIRECT(M2400))","v":""},"c"]
["SUCMALTCAT2_1TO5_C",null,null,null,{"$f":"_xlfn.XLOOKUP(F2401,'Raw Data'!$I$4:$I$5000,'Raw Data'!$D$4:$D$5000,\"*** Mnemonic not found ***\",0)","v":"*** Mnemonic not found ***"},"SUCMALTCAT2_1TO5_C__",null,"Input",null,null,132,"O","Input!O132",{"$f":"_xlfn.XLOOKUP(F2401,'Raw Data'!$I$4:$I$5000,'Raw Data'!$E$4:$E$5000,100,0)","v":100},{"$f":"IF(N2401=0,_xlfn.XLOOKUP(F2401,'Raw Data'!$I$4:$I$5000,'Raw Data'!$H$4:$H$5000,\"\",0),\"\")","v":""},{"$f":"IF(INDIRECT(M2401) = \"\",\"\",INDIRECT(M2401))","v":""},"c"]
["SUCMALTCAT2_5TO10_C",null,null,null,{"$f":"_xlfn.XLOOKUP(F2402,'Raw Data'!$I$4:$I$5000,'Raw Data'!$D$4:$D$5000,\"*** Mnemonic not found ***\",0)","v":"*** Mnemonic not found ***"},"SUCMALTCAT2_5TO10_C__",null,"Input",null,null,133,"O","Input!O133",{"$f":"_xlfn.XLOOKUP(F2402,'Raw Data'!$I$4:$I$5000,'Raw Data'!$E$4:$E$5000,100,0)","v":100},{"$f":"IF(N2402=0,_xlfn.XLOOKUP(F2402,'Raw Data'!$I$4:$I$5000,'Raw Data'!$H$4:$H$5000,\"\",0),\"\")","v":""},{"$f":"IF(INDIRECT(M2402) = \"\",\"\",INDIRECT(M2402))","v":""},"c"]
["SUCMALTCAT2_10TO20_C",null,null,null,{"$f":"_xlfn.XLOOKUP(F2403,'Raw Data'!$I$4:$I$5000,'Raw Data'!$D$4:$D$5000,\"*** Mnemonic not found ***\",0)","v":"*** Mnemonic not found ***"},"SUCMALTCAT2_10TO20_C__",null,"Input",null,null,134,"O","Input!O134",{"$f":"_xlfn.XLOOKUP(F2403,'Raw Data'!$I$4:$I$5000,'Raw Data'!$E$4:$E$5000,100,0)","v":100},{"$f":"IF(N2403=0,_xlfn.XLOOKUP(F2403,'Raw Data'!$I$4:$I$5000,'Raw Data'!$H$4:$H$5000,\"\",0),\"\")","v":""},{"$f":"IF(INDIRECT(M2403) = \"\",\"\",INDIRECT(M2403))","v":""},"c"]
["SUCMALTCAT2_GRTR20_C",null,null,null,{"$f":"_xlfn.XLOOKUP(F2404,'Raw Data'!$I$4:$I$5000,'Raw Data'!$D$4:$D$5000,\"*** Mnemonic not found ***\",0)","v":"*** Mnemonic not found ***"},"SUCMALTCAT2_GRTR20_C__",null,"Input",null,null,135,"O","Input!O135",{"$f":"_xlfn.XLOOKUP(F2404,'Raw Data'!$I$4:$I$5000,'Raw Data'!$E$4:$E$5000,100,0)","v":100},{"$f":"IF(N2404=0,_xlfn.XLOOKUP(F2404,'Raw Data'!$I$4:$I$5000,'Raw Data'!$H$4:$H$5000,\"\",0),\"\")","v":""},{"$f":"IF(INDIRECT(M2404) = \"\",\"\",INDIRECT(M2404))","v":""},"c"]
["SUCMALTCAT2_TOTAL_C",null,null,null,{"$f":"_xlfn.XLOOKUP(F2405,'Raw Data'!$I$4:$I$5000,'Raw Data'!$D$4:$D$5000,\"*** Mnemonic not found ***\",0)","v":"*** Mnemonic not found ***"},"SUCMALTCAT2_TOTAL_C__",null,"Input",null,null,136,"O","Input!O136",{"$f":"_xlfn.XLOOKUP(F2405,'Raw Data'!$I$4:$I$5000,'Raw Data'!$E$4:$E$5000,100,0)","v":100},{"$f":"IF(N2405=0,_xlfn.XLOOKUP(F2405,'Raw Data'!$I$4:$I$5000,'Raw Data'!$H$4:$H$5000,\"\",0),\"\")","v":""},{"$f":"IF(INDIRECT(M2405) = \"\",\"\",INDIRECT(M2405))","v":""},"c"]
["SUCMALTCAT3_C",null,null,null,{"$f":"_xlfn.XLOOKUP(F2406,'Raw Data'!$I$4:$I$5000,'Raw Data'!$D$4:$D$5000,\"*** Mnemonic not found ***\",0)","v":"*** Mnemonic not found ***"},"SUCMALTCAT3_C__",null,"Input",null,null,{"$f":"K2405+2","v":138},"O","Input!O138",{"$f":"_xlfn.XLOOKUP(F2406,'Raw Data'!$I$4:$I$5000,'Raw Data'!$E$4:$E$5000,100,0)","v":100},{"$f":"IF(N2406=0,_xlfn.XLOOKUP(F2406,'Raw Data'!$I$4:$I$5000,'Raw Data'!$H$4:$H$5000,\"\",0),\"\")","v":""},{"$f":"IF(INDIRECT(M2406) = \"\",\"\",INDIRECT(M2406))","v":""},"c"]
["SUCMALTCAT3_LESS1_C",null,null,null,{"$f":"_xlfn.XLOOKUP(F2407,'Raw Data'!$I$4:$I$5000,'Raw Data'!$D$4:$D$5000,\"*** Mnemonic not found ***\",0)","v":"*** Mnemonic not found ***"},"SUCMALTCAT3_LESS1_C__",null,"Input",null,null,139,"O","Input!O139",{"$f":"_xlfn.XLOOKUP(F2407,'Raw Data'!$I$4:$I$5000,'Raw Data'!$E$4:$E$5000,100,0)","v":100},{"$f":"IF(N2407=0,_xlfn.XLOOKUP(F2407,'Raw Data'!$I$4:$I$5000,'Raw Data'!$H$4:$H$5000,\"\",0),\"\")","v":""},{"$f":"IF(INDIRECT(M2407) = \"\",\"\",INDIRECT(M2407))","v":""},"c"]
["SUCMALTCAT3_1TO5_C",null,null,null,{"$f":"_xlfn.XLOOKUP(F2408,'Raw Data'!$I$4:$I$5000,'Raw Data'!$D$4:$D$5000,\"*** Mnemonic not found ***\",0)","v":"*** Mnemonic not found ***"},"SUCMALTCAT3_1TO5_C__",null,"Input",null,null,140,"O","Input!O140",{"$f":"_xlfn.XLOOKUP(F2408,'Raw Data'!$I$4:$I$5000,'Raw Data'!$E$4:$E$5000,100,0)","v":100},{"$f":"IF(N2408=0,_xlfn.XLOOKUP(F2408,'Raw Data'!$I$4:$I$5000,'Raw Data'!$H$4:$H$5000,\"\",0),\"\")","v":""},{"$f":"IF(INDIRECT(M2408) = \"\",\"\",INDIRECT(M2408))","v":""},"c"]
["SUCMALTCAT3_5TO10_C",null,null,null,{"$f":"_xlfn.XLOOKUP(F2409,'Raw Data'!$I$4:$I$5000,'Raw Data'!$D$4:$D$5000,\"*** Mnemonic not found ***\",0)","v":"*** Mnemonic not found ***"},"SUCMALTCAT3_5TO10_C__",null,"Input",null,null,141,"O","Input!O141",{"$f":"_xlfn.XLOOKUP(F2409,'Raw Data'!$I$4:$I$5000,'Raw Data'!$E$4:$E$5000,100,0)","v":100},{"$f":"IF(N2409=0,_xlfn.XLOOKUP(F2409,'Raw Data'!$I$4:$I$5000,'Raw Data'!$H$4:$H$5000,\"\",0),\"\")","v":""},{"$f":"IF(INDIRECT(M2409) = \"\",\"\",INDIRECT(M2409))","v":""},"c"]
["SUCMALTCAT3_10TO20_C",null,null,null,{"$f":"_xlfn.XLOOKUP(F2410,'Raw Data'!$I$4:$I$5000,'Raw Data'!$D$4:$D$5000,\"*** Mnemonic not found ***\",0)","v":"*** Mnemonic not found ***"},"SUCMALTCAT3_10TO20_C__",null,"Input",null,null,142,"O","Input!O142",{"$f":"_xlfn.XLOOKUP(F2410,'Raw Data'!$I$4:$I$5000,'Raw Data'!$E$4:$E$5000,100,0)","v":100},{"$f":"IF(N2410=0,_xlfn.XLOOKUP(F2410,'Raw Data'!$I$4:$I$5000,'Raw Data'!$H$4:$H$5000,\"\",0),\"\")","v":""},{"$f":"IF(INDIRECT(M2410) = \"\",\"\",INDIRECT(M2410))","v":""},"c"]
["SUCMALTCAT3_GRTR20_C",null,null,null,{"$f":"_xlfn.XLOOKUP(F2411,'Raw Data'!$I$4:$I$5000,'Raw Data'!$D$4:$D$5000,\"*** Mnemonic not found ***\",0)","v":"*** Mnemonic not found ***"},"SUCMALTCAT3_GRTR20_C__",null,"Input",null,null,143,"O","Input!O143",{"$f":"_xlfn.XLOOKUP(F2411,'Raw Data'!$I$4:$I$5000,'Raw Data'!$E$4:$E$5000,100,0)","v":100},{"$f":"IF(N2411=0,_xlfn.XLOOKUP(F2411,'Raw Data'!$I$4:$I$5000,'Raw Data'!$H$4:$H$5000,\"\",0),\"\")","v":""},{"$f":"IF(INDIRECT(M2411) = \"\",\"\",INDIRECT(M2411))","v":""},"c"]
["SUCMALTCAT3_TOTAL_C",null,null,null,{"$f":"_xlfn.XLOOKUP(F2412,'Raw Data'!$I$4:$I$5000,'Raw Data'!$D$4:$D$5000,\"*** Mnemonic not found ***\",0)","v":"*** Mnemonic not found ***"},"SUCMALTCAT3_TOTAL_C__",null,"Input",null,null,144,"O","Input!O144",{"$f":"_xlfn.XLOOKUP(F2412,'Raw Data'!$I$4:$I$5000,'Raw Data'!$E$4:$E$5000,100,0)","v":100},{"$f":"IF(N2412=0,_xlfn.XLOOKUP(F2412,'Raw Data'!$I$4:$I$5000,'Raw Data'!$H$4:$H$5000,\"\",0),\"\")","v":""},{"$f":"IF(INDIRECT(M2412) = \"\",\"\",INDIRECT(M2412))","v":""},"c"]
["SUCMALTCAT4_C",null,null,null,{"$f":"_xlfn.XLOOKUP(F2413,'Raw Data'!$I$4:$I$5000,'Raw Data'!$D$4:$D$5000,\"*** Mnemonic not found ***\",0)","v":"*** Mnemonic not found ***"},"SUCMALTCAT4_C__",null,"Input",null,null,{"$f":"K2412+2","v":146},"O","Input!O146",{"$f":"_xlfn.XLOOKUP(F2413,'Raw Data'!$I$4:$I$5000,'Raw Data'!$E$4:$E$5000,100,0)","v":100},{"$f":"IF(N2413=0,_xlfn.XLOOKUP(F2413,'Raw Data'!$I$4:$I$5000,'Raw Data'!$H$4:$H$5000,\"\",0),\"\")","v":""},{"$f":"IF(INDIRECT(M2413) = \"\",\"\",INDIRECT(M2413))","v":""},"c"]
["SUCMALTCAT4_LESS1_C",null,null,null,{"$f":"_xlfn.XLOOKUP(F2414,'Raw Data'!$I$4:$I$5000,'Raw Data'!$D$4:$D$5000,\"*** Mnemonic not found ***\",0)","v":"*** Mnemonic not found ***"},"SUCMALTCAT4_LESS1_C__",null,"Input",null,null,147,"O","Input!O147",{"$f":"_xlfn.XLOOKUP(F2414,'Raw Data'!$I$4:$I$5000,'Raw Data'!$E$4:$E$5000,100,0)","v":100},{"$f":"IF(N2414=0,_xlfn.XLOOKUP(F2414,'Raw Data'!$I$4:$I$5000,'Raw Data'!$H$4:$H$5000,\"\",0),\"\")","v":""},{"$f":"IF(INDIRECT(M2414) = \"\",\"\",INDIRECT(M2414))","v":""},"c"]
["SUCMALTCAT4_1TO5_C",null,null,null,{"$f":"_xlfn.XLOOKUP(F2415,'Raw Data'!$I$4:$I$5000,'Raw Data'!$D$4:$D$5000,\"*** Mnemonic not found ***\",0)","v":"*** Mnemonic not found ***"},"SUCMALTCAT4_1TO5_C__",null,"Input",null,null,148,"O","Input!O148",{"$f":"_xlfn.XLOOKUP(F2415,'Raw Data'!$I$4:$I$5000,'Raw Data'!$E$4:$E$5000,100,0)","v":100},{"$f":"IF(N2415=0,_xlfn.XLOOKUP(F2415,'Raw Data'!$I$4:$I$5000,'Raw Data'!$H$4:$H$5000,\"\",0),\"\")","v":""},{"$f":"IF(INDIRECT(M2415) = \"\",\"\",INDIRECT(M2415))","v":""},"c"]
["SUCMALTCAT4_5TO10_C",null,null,null,{"$f":"_xlfn.XLOOKUP(F2416,'Raw Data'!$I$4:$I$5000,'Raw Data'!$D$4:$D$5000,\"*** Mnemonic not found ***\",0)","v":"*** Mnemonic not found ***"},"SUCMALTCAT4_5TO10_C__",null,"Input",null,null,149,"O","Input!O149",{"$f":"_xlfn.XLOOKUP(F2416,'Raw Data'!$I$4:$I$5000,'Raw Data'!$E$4:$E$5000,100,0)","v":100},{"$f":"IF(N2416=0,_xlfn.XLOOKUP(F2416,'Raw Data'!$I$4:$I$5000,'Raw Data'!$H$4:$H$5000,\"\",0),\"\")","v":""},{"$f":"IF(INDIRECT(M2416) = \"\",\"\",INDIRECT(M2416))","v":""},"c"]
["SUCMALTCAT4_10TO20_C",null,null,null,{"$f":"_xlfn.XLOOKUP(F2417,'Raw Data'!$I$4:$I$5000,'Raw Data'!$D$4:$D$5000,\"*** Mnemonic not found ***\",0)","v":"*** Mnemonic not found ***"},"SUCMALTCAT4_10TO20_C__",null,"Input",null,null,150,"O","Input!O150",{"$f":"_xlfn.XLOOKUP(F2417,'Raw Data'!$I$4:$I$5000,'Raw Data'!$E$4:$E$5000,100,0)","v":100},{"$f":"IF(N2417=0,_xlfn.XLOOKUP(F2417,'Raw Data'!$I$4:$I$5000,'Raw Data'!$H$4:$H$5000,\"\",0),\"\")","v":""},{"$f":"IF(INDIRECT(M2417) = \"\",\"\",INDIRECT(M2417))","v":""},"c"]
["SUCMALTCAT4_GRTR20_C",null,null,null,{"$f":"_xlfn.XLOOKUP(F2418,'Raw Data'!$I$4:$I$5000,'Raw Data'!$D$4:$D$5000,\"*** Mnemonic not found ***\",0)","v":"*** Mnemonic not found ***"},"SUCMALTCAT4_GRTR20_C__",null,"Input",null,null,151,"O","Input!O151",{"$f":"_xlfn.XLOOKUP(F2418,'Raw Data'!$I$4:$I$5000,'Raw Data'!$E$4:$E$5000,100,0)","v":100},{"$f":"IF(N2418=0,_xlfn.XLOOKUP(F2418,'Raw Data'!$I$4:$I$5000,'Raw Data'!$H$4:$H$5000,\"\",0),\"\")","v":""},{"$f":"IF(INDIRECT(M2418) = \"\",\"\",INDIRECT(M2418))","v":""},"c"]
["SUCMALTCAT4_TOTAL_C",null,null,null,{"$f":"_xlfn.XLOOKUP(F2419,'Raw Data'!$I$4:$I$5000,'Raw Data'!$D$4:$D$5000,\"*** Mnemonic not found ***\",0)","v":"*** Mnemonic not found ***"},"SUCMALTCAT4_TOTAL_C__",null,"Input",null,null,152,"O","Input!O152",{"$f":"_xlfn.XLOOKUP(F2419,'Raw Data'!$I$4:$I$5000,'Raw Data'!$E$4:$E$5000,100,0)","v":100},{"$f":"IF(N2419=0,_xlfn.XLOOKUP(F2419,'Raw Data'!$I$4:$I$5000,'Raw Data'!$H$4:$H$5000,\"\",0),\"\")","v":""},{"$f":"IF(INDIRECT(M2419) = \"\",\"\",INDIRECT(M2419))","v":""},"c"]
["SUCMOTHCAT1_C",null,null,null,{"$f":"_xlfn.XLOOKUP(F2420,'Raw Data'!$I$4:$I$5000,'Raw Data'!$D$4:$D$5000,\"*** Mnemonic not found ***\",0)","v":"*** Mnemonic not found ***"},"SUCMOTHCAT1_C__",null,"Input",null,null,{"$f":"K2419+3","v":155},"O","Input!O155",{"$f":"_xlfn.XLOOKUP(F2420,'Raw Data'!$I$4:$I$5000,'Raw Data'!$E$4:$E$5000,100,0)","v":100},{"$f":"IF(N2420=0,_xlfn.XLOOKUP(F2420,'Raw Data'!$I$4:$I$5000,'Raw Data'!$H$4:$H$5000,\"\",0),\"\")","v":""},{"$f":"IF(INDIRECT(M2420) = \"\",\"\",INDIRECT(M2420))","v":""},"c"]
["SUCMOTHCAT1_LESS1_C",null,null,null,{"$f":"_xlfn.XLOOKUP(F2421,'Raw Data'!$I$4:$I$5000,'Raw Data'!$D$4:$D$5000,\"*** Mnemonic not found ***\",0)","v":"*** Mnemonic not found ***"},"SUCMOTHCAT1_LESS1_C__",null,"Input",null,null,156,"O","Input!O156",{"$f":"_xlfn.XLOOKUP(F2421,'Raw Data'!$I$4:$I$5000,'Raw Data'!$E$4:$E$5000,100,0)","v":100},{"$f":"IF(N2421=0,_xlfn.XLOOKUP(F2421,'Raw Data'!$I$4:$I$5000,'Raw Data'!$H$4:$H$5000,\"\",0),\"\")","v":""},{"$f":"IF(INDIRECT(M2421) = \"\",\"\",INDIRECT(M2421))","v":""},"c"]
["SUCMOTHCAT1_1TO5_C",null,null,null,{"$f":"_xlfn.XLOOKUP(F2422,'Raw Data'!$I$4:$I$5000,'Raw Data'!$D$4:$D$5000,\"*** Mnemonic not found ***\",0)","v":"*** Mnemonic not found ***"},"SUCMOTHCAT1_1TO5_C__",null,"Input",null,null,157,"O","Input!O157",{"$f":"_xlfn.XLOOKUP(F2422,'Raw Data'!$I$4:$I$5000,'Raw Data'!$E$4:$E$5000,100,0)","v":100},{"$f":"IF(N2422=0,_xlfn.XLOOKUP(F2422,'Raw Data'!$I$4:$I$5000,'Raw Data'!$H$4:$H$5000,\"\",0),\"\")","v":""},{"$f":"IF(INDIRECT(M2422) = \"\",\"\",INDIRECT(M2422))","v":""},"c"]
["SUCMOTHCAT1_5TO10_C",null,null,null,{"$f":"_xlfn.XLOOKUP(F2423,'Raw Data'!$I$4:$I$5000,'Raw Data'!$D$4:$D$5000,\"*** Mnemonic not found ***\",0)","v":"*** Mnemonic not found ***"},"SUCMOTHCAT1_5TO10_C__",null,"Input",null,null,158,"O","Input!O158",{"$f":"_xlfn.XLOOKUP(F2423,'Raw Data'!$I$4:$I$5000,'Raw Data'!$E$4:$E$5000,100,0)","v":100},{"$f":"IF(N2423=0,_xlfn.XLOOKUP(F2423,'Raw Data'!$I$4:$I$5000,'Raw Data'!$H$4:$H$5000,\"\",0),\"\")","v":""},{"$f":"IF(INDIRECT(M2423) = \"\",\"\",INDIRECT(M2423))","v":""},"c"]
["SUCMOTHCAT1_10TO20_C",null,null,null,{"$f":"_xlfn.XLOOKUP(F2424,'Raw Data'!$I$4:$I$5000,'Raw Data'!$D$4:$D$5000,\"*** Mnemonic not found ***\",0)","v":"*** Mnemonic not found ***"},"SUCMOTHCAT1_10TO20_C__",null,"Input",null,null,159,"O","Input!O159",{"$f":"_xlfn.XLOOKUP(F2424,'Raw Data'!$I$4:$I$5000,'Raw Data'!$E$4:$E$5000,100,0)","v":100},{"$f":"IF(N2424=0,_xlfn.XLOOKUP(F2424,'Raw Data'!$I$4:$I$5000,'Raw Data'!$H$4:$H$5000,\"\",0),\"\")","v":""},{"$f":"IF(INDIRECT(M2424) = \"\",\"\",INDIRECT(M2424))","v":""},"c"]
["SUCMOTHCAT1_GRTR20_C",null,null,null,{"$f":"_xlfn.XLOOKUP(F2425,'Raw Data'!$I$4:$I$5000,'Raw Data'!$D$4:$D$5000,\"*** Mnemonic not found ***\",0)","v":"*** Mnemonic not found ***"},"SUCMOTHCAT1_GRTR20_C__",null,"Input",null,null,160,"O","Input!O160",{"$f":"_xlfn.XLOOKUP(F2425,'Raw Data'!$I$4:$I$5000,'Raw Data'!$E$4:$E$5000,100,0)","v":100},{"$f":"IF(N2425=0,_xlfn.XLOOKUP(F2425,'Raw Data'!$I$4:$I$5000,'Raw Data'!$H$4:$H$5000,\"\",0),\"\")","v":""},{"$f":"IF(INDIRECT(M2425) = \"\",\"\",INDIRECT(M2425))","v":""},"c"]
["SUCMOTHCAT1_TOTAL_C",null,null,null,{"$f":"_xlfn.XLOOKUP(F2426,'Raw Data'!$I$4:$I$5000,'Raw Data'!$D$4:$D$5000,\"*** Mnemonic not found ***\",0)","v":"*** Mnemonic not found ***"},"SUCMOTHCAT1_TOTAL_C__",null,"Input",null,null,161,"O","Input!O161",{"$f":"_xlfn.XLOOKUP(F2426,'Raw Data'!$I$4:$I$5000,'Raw Data'!$E$4:$E$5000,100,0)","v":100},{"$f":"IF(N2426=0,_xlfn.XLOOKUP(F2426,'Raw Data'!$I$4:$I$5000,'Raw Data'!$H$4:$H$5000,\"\",0),\"\")","v":""},{"$f":"IF(INDIRECT(M2426) = \"\",\"\",INDIRECT(M2426))","v":""},"c"]
["SUCMOTHCAT2_C",null,null,null,{"$f":"_xlfn.XLOOKUP(F2427,'Raw Data'!$I$4:$I$5000,'Raw Data'!$D$4:$D$5000,\"*** Mnemonic not found ***\",0)","v":"*** Mnemonic not found ***"},"SUCMOTHCAT2_C__",null,"Input",null,null,{"$f":"K2426+2","v":163},"O","Input!O163",{"$f":"_xlfn.XLOOKUP(F2427,'Raw Data'!$I$4:$I$5000,'Raw Data'!$E$4:$E$5000,100,0)","v":100},{"$f":"IF(N2427=0,_xlfn.XLOOKUP(F2427,'Raw Data'!$I$4:$I$5000,'Raw Data'!$H$4:$H$5000,\"\",0),\"\")","v":""},{"$f":"IF(INDIRECT(M2427) = \"\",\"\",INDIRECT(M2427))","v":""},"c"]
["SUCMOTHCAT2_LESS1_C",null,null,null,{"$f":"_xlfn.XLOOKUP(F2428,'Raw Data'!$I$4:$I$5000,'Raw Data'!$D$4:$D$5000,\"*** Mnemonic not found ***\",0)","v":"*** Mnemonic not found ***"},"SUCMOTHCAT2_LESS1_C__",null,"Input",null,null,164,"O","Input!O164",{"$f":"_xlfn.XLOOKUP(F2428,'Raw Data'!$I$4:$I$5000,'Raw Data'!$E$4:$E$5000,100,0)","v":100},{"$f":"IF(N2428=0,_xlfn.XLOOKUP(F2428,'Raw Data'!$I$4:$I$5000,'Raw Data'!$H$4:$H$5000,\"\",0),\"\")","v":""},{"$f":"IF(INDIRECT(M2428) = \"\",\"\",INDIRECT(M2428))","v":""},"c"]
["SUCMOTHCAT2_1TO5_C",null,null,null,{"$f":"_xlfn.XLOOKUP(F2429,'Raw Data'!$I$4:$I$5000,'Raw Data'!$D$4:$D$5000,\"*** Mnemonic not found ***\",0)","v":"*** Mnemonic not found ***"},"SUCMOTHCAT2_1TO5_C__",null,"Input",null,null,165,{"$f":"L2428","v":"O"},"Input!O165",{"$f":"_xlfn.XLOOKUP(F2429,'Raw Data'!$I$4:$I$5000,'Raw Data'!$E$4:$E$5000,100,0)","v":100},{"$f":"IF(N2429=0,_xlfn.XLOOKUP(F2429,'Raw Data'!$I$4:$I$5000,'Raw Data'!$H$4:$H$5000,\"\",0),\"\")","v":""},{"$f":"IF(INDIRECT(M2429) = \"\",\"\",INDIRECT(M2429))","v":""},"c"]
["SUCMOTHCAT2_5TO10_C",null,null,null,{"$f":"_xlfn.XLOOKUP(F2430,'Raw Data'!$I$4:$I$5000,'Raw Data'!$D$4:$D$5000,\"*** Mnemonic not found ***\",0)","v":"*** Mnemonic not found ***"},"SUCMOTHCAT2_5TO10_C__",null,"Input",null,null,166,"O","Input!O166",{"$f":"_xlfn.XLOOKUP(F2430,'Raw Data'!$I$4:$I$5000,'Raw Data'!$E$4:$E$5000,100,0)","v":100},{"$f":"IF(N2430=0,_xlfn.XLOOKUP(F2430,'Raw Data'!$I$4:$I$5000,'Raw Data'!$H$4:$H$5000,\"\",0),\"\")","v":""},{"$f":"IF(INDIRECT(M2430) = \"\",\"\",INDIRECT(M2430))","v":""},"c"]
["SUCMOTHCAT2_10TO20_C",null,null,null,{"$f":"_xlfn.XLOOKUP(F2431,'Raw Data'!$I$4:$I$5000,'Raw Data'!$D$4:$D$5000,\"*** Mnemonic not found ***\",0)","v":"*** Mnemonic not found ***"},"SUCMOTHCAT2_10TO20_C__",null,"Input",null,null,167,"O","Input!O167",{"$f":"_xlfn.XLOOKUP(F2431,'Raw Data'!$I$4:$I$5000,'Raw Data'!$E$4:$E$5000,100,0)","v":100},{"$f":"IF(N2431=0,_xlfn.XLOOKUP(F2431,'Raw Data'!$I$4:$I$5000,'Raw Data'!$H$4:$H$5000,\"\",0),\"\")","v":""},{"$f":"IF(INDIRECT(M2431) = \"\",\"\",INDIRECT(M2431))","v":""},"c"]
["SUCMOTHCAT2_GRTR20_C",null,null,null,{"$f":"_xlfn.XLOOKUP(F2432,'Raw Data'!$I$4:$I$5000,'Raw Data'!$D$4:$D$5000,\"*** Mnemonic not found ***\",0)","v":"*** Mnemonic not found ***"},"SUCMOTHCAT2_GRTR20_C__",null,"Input",null,null,168,"O","Input!O168",{"$f":"_xlfn.XLOOKUP(F2432,'Raw Data'!$I$4:$I$5000,'Raw Data'!$E$4:$E$5000,100,0)","v":100},{"$f":"IF(N2432=0,_xlfn.XLOOKUP(F2432,'Raw Data'!$I$4:$I$5000,'Raw Data'!$H$4:$H$5000,\"\",0),\"\")","v":""},{"$f":"IF(INDIRECT(M2432) = \"\",\"\",INDIRECT(M2432))","v":""},"c"]
["SUCMOTHCAT2_TOTAL_C",null,null,null,{"$f":"_xlfn.XLOOKUP(F2433,'Raw Data'!$I$4:$I$5000,'Raw Data'!$D$4:$D$5000,\"*** Mnemonic not found ***\",0)","v":"*** Mnemonic not found ***"},"SUCMOTHCAT2_TOTAL_C__",null,"Input",null,null,169,"O","Input!O169",{"$f":"_xlfn.XLOOKUP(F2433,'Raw Data'!$I$4:$I$5000,'Raw Data'!$E$4:$E$5000,100,0)","v":100},{"$f":"IF(N2433=0,_xlfn.XLOOKUP(F2433,'Raw Data'!$I$4:$I$5000,'Raw Data'!$H$4:$H$5000,\"\",0),\"\")","v":""},{"$f":"IF(INDIRECT(M2433) = \"\",\"\",INDIRECT(M2433))","v":""},"c"]
["SUCMOTHCAT3_C",null,null,null,{"$f":"_xlfn.XLOOKUP(F2434,'Raw Data'!$I$4:$I$5000,'Raw Data'!$D$4:$D$5000,\"*** Mnemonic not found ***\",0)","v":"*** Mnemonic not found ***"},"SUCMOTHCAT3_C__",null,"Input",null,null,{"$f":"K2433+2","v":171},"O","Input!O171",{"$f":"_xlfn.XLOOKUP(F2434,'Raw Data'!$I$4:$I$5000,'Raw Data'!$E$4:$E$5000,100,0)","v":100},{"$f":"IF(N2434=0,_xlfn.XLOOKUP(F2434,'Raw Data'!$I$4:$I$5000,'Raw Data'!$H$4:$H$5000,\"\",0),\"\")","v":""},{"$f":"IF(INDIRECT(M2434) = \"\",\"\",INDIRECT(M2434))","v":""},"c"]
["SUCMOTHCAT3_LESS1_C",null,null,null,{"$f":"_xlfn.XLOOKUP(F2435,'Raw Data'!$I$4:$I$5000,'Raw Data'!$D$4:$D$5000,\"*** Mnemonic not found ***\",0)","v":"*** Mnemonic not found ***"},"SUCMOTHCAT3_LESS1_C__",null,"Input",null,null,172,"O","Input!O172",{"$f":"_xlfn.XLOOKUP(F2435,'Raw Data'!$I$4:$I$5000,'Raw Data'!$E$4:$E$5000,100,0)","v":100},{"$f":"IF(N2435=0,_xlfn.XLOOKUP(F2435,'Raw Data'!$I$4:$I$5000,'Raw Data'!$H$4:$H$5000,\"\",0),\"\")","v":""},{"$f":"IF(INDIRECT(M2435) = \"\",\"\",INDIRECT(M2435))","v":""},"c"]
["SUCMOTHCAT3_1TO5_C",null,null,null,{"$f":"_xlfn.XLOOKUP(F2436,'Raw Data'!$I$4:$I$5000,'Raw Data'!$D$4:$D$5000,\"*** Mnemonic not found ***\",0)","v":"*** Mnemonic not found ***"},"SUCMOTHCAT3_1TO5_C__",null,"Input",null,null,173,"O","Input!O173",{"$f":"_xlfn.XLOOKUP(F2436,'Raw Data'!$I$4:$I$5000,'Raw Data'!$E$4:$E$5000,100,0)","v":100},{"$f":"IF(N2436=0,_xlfn.XLOOKUP(F2436,'Raw Data'!$I$4:$I$5000,'Raw Data'!$H$4:$H$5000,\"\",0),\"\")","v":""},{"$f":"IF(INDIRECT(M2436) = \"\",\"\",INDIRECT(M2436))","v":""},"c"]
["SUCMOTHCAT3_5TO10_C",null,null,null,{"$f":"_xlfn.XLOOKUP(F2437,'Raw Data'!$I$4:$I$5000,'Raw Data'!$D$4:$D$5000,\"*** Mnemonic not found ***\",0)","v":"*** Mnemonic not found ***"},"SUCMOTHCAT3_5TO10_C__",null,"Input",null,null,174,"O","Input!O174",{"$f":"_xlfn.XLOOKUP(F2437,'Raw Data'!$I$4:$I$5000,'Raw Data'!$E$4:$E$5000,100,0)","v":100},{"$f":"IF(N2437=0,_xlfn.XLOOKUP(F2437,'Raw Data'!$I$4:$I$5000,'Raw Data'!$H$4:$H$5000,\"\",0),\"\")","v":""},{"$f":"IF(INDIRECT(M2437) = \"\",\"\",INDIRECT(M2437))","v":""},"c"]
["SUCMOTHCAT3_10TO20_C",null,null,null,{"$f":"_xlfn.XLOOKUP(F2438,'Raw Data'!$I$4:$I$5000,'Raw Data'!$D$4:$D$5000,\"*** Mnemonic not found ***\",0)","v":"*** Mnemonic not found ***"},"SUCMOTHCAT3_10TO20_C__",null,"Input",null,null,175,"O","Input!O175",{"$f":"_xlfn.XLOOKUP(F2438,'Raw Data'!$I$4:$I$5000,'Raw Data'!$E$4:$E$5000,100,0)","v":100},{"$f":"IF(N2438=0,_xlfn.XLOOKUP(F2438,'Raw Data'!$I$4:$I$5000,'Raw Data'!$H$4:$H$5000,\"\",0),\"\")","v":""},{"$f":"IF(INDIRECT(M2438) = \"\",\"\",INDIRECT(M2438))","v":""},"c"]
["SUCMOTHCAT3_GRTR20_C",null,null,null,{"$f":"_xlfn.XLOOKUP(F2439,'Raw Data'!$I$4:$I$5000,'Raw Data'!$D$4:$D$5000,\"*** Mnemonic not found ***\",0)","v":"*** Mnemonic not found ***"},"SUCMOTHCAT3_GRTR20_C__",null,"Input",null,null,176,"O","Input!O176",{"$f":"_xlfn.XLOOKUP(F2439,'Raw Data'!$I$4:$I$5000,'Raw Data'!$E$4:$E$5000,100,0)","v":100},{"$f":"IF(N2439=0,_xlfn.XLOOKUP(F2439,'Raw Data'!$I$4:$I$5000,'Raw Data'!$H$4:$H$5000,\"\",0),\"\")","v":""},{"$f":"IF(INDIRECT(M2439) = \"\",\"\",INDIRECT(M2439))","v":""},"c"]
["SUCMOTHCAT3_TOTAL_C",null,null,null,{"$f":"_xlfn.XLOOKUP(F2440,'Raw Data'!$I$4:$I$5000,'Raw Data'!$D$4:$D$5000,\"*** Mnemonic not found ***\",0)","v":"*** Mnemonic not found ***"},"SUCMOTHCAT3_TOTAL_C__",null,"Input",null,null,177,"O","Input!O177",{"$f":"_xlfn.XLOOKUP(F2440,'Raw Data'!$I$4:$I$5000,'Raw Data'!$E$4:$E$5000,100,0)","v":100},{"$f":"IF(N2440=0,_xlfn.XLOOKUP(F2440,'Raw Data'!$I$4:$I$5000,'Raw Data'!$H$4:$H$5000,\"\",0),\"\")","v":""},{"$f":"IF(INDIRECT(M2440) = \"\",\"\",INDIRECT(M2440))","v":""},"c"]
["SUCMOTHCAT4_C",null,null,null,{"$f":"_xlfn.XLOOKUP(F2441,'Raw Data'!$I$4:$I$5000,'Raw Data'!$D$4:$D$5000,\"*** Mnemonic not found ***\",0)","v":"*** Mnemonic not found ***"},"SUCMOTHCAT4_C__",null,"Input",null,null,{"$f":"K2440+2","v":179},"O","Input!O179",{"$f":"_xlfn.XLOOKUP(F2441,'Raw Data'!$I$4:$I$5000,'Raw Data'!$E$4:$E$5000,100,0)","v":100},{"$f":"IF(N2441=0,_xlfn.XLOOKUP(F2441,'Raw Data'!$I$4:$I$5000,'Raw Data'!$H$4:$H$5000,\"\",0),\"\")","v":""},{"$f":"IF(INDIRECT(M2441) = \"\",\"\",INDIRECT(M2441))","v":""},"c"]
["SUCMOTHCAT4_LESS1_C",null,null,null,{"$f":"_xlfn.XLOOKUP(F2442,'Raw Data'!$I$4:$I$5000,'Raw Data'!$D$4:$D$5000,\"*** Mnemonic not found ***\",0)","v":"*** Mnemonic not found ***"},"SUCMOTHCAT4_LESS1_C__",null,"Input",null,null,180,"O","Input!O180",{"$f":"_xlfn.XLOOKUP(F2442,'Raw Data'!$I$4:$I$5000,'Raw Data'!$E$4:$E$5000,100,0)","v":100},{"$f":"IF(N2442=0,_xlfn.XLOOKUP(F2442,'Raw Data'!$I$4:$I$5000,'Raw Data'!$H$4:$H$5000,\"\",0),\"\")","v":""},{"$f":"IF(INDIRECT(M2442) = \"\",\"\",INDIRECT(M2442))","v":""},"c"]
["SUCMOTHCAT4_1TO5_C",null,null,null,{"$f":"_xlfn.XLOOKUP(F2443,'Raw Data'!$I$4:$I$5000,'Raw Data'!$D$4:$D$5000,\"*** Mnemonic not found ***\",0)","v":"*** Mnemonic not found ***"},"SUCMOTHCAT4_1TO5_C__",null,"Input",null,null,181,"O","Input!O181",{"$f":"_xlfn.XLOOKUP(F2443,'Raw Data'!$I$4:$I$5000,'Raw Data'!$E$4:$E$5000,100,0)","v":100},{"$f":"IF(N2443=0,_xlfn.XLOOKUP(F2443,'Raw Data'!$I$4:$I$5000,'Raw Data'!$H$4:$H$5000,\"\",0),\"\")","v":""},{"$f":"IF(INDIRECT(M2443) = \"\",\"\",INDIRECT(M2443))","v":""},"c"]
["SUCMOTHCAT4_5TO10_C",null,null,null,{"$f":"_xlfn.XLOOKUP(F2444,'Raw Data'!$I$4:$I$5000,'Raw Data'!$D$4:$D$5000,\"*** Mnemonic not found ***\",0)","v":"*** Mnemonic not found ***"},"SUCMOTHCAT4_5TO10_C__",null,"Input",null,null,182,"O","Input!O182",{"$f":"_xlfn.XLOOKUP(F2444,'Raw Data'!$I$4:$I$5000,'Raw Data'!$E$4:$E$5000,100,0)","v":100},{"$f":"IF(N2444=0,_xlfn.XLOOKUP(F2444,'Raw Data'!$I$4:$I$5000,'Raw Data'!$H$4:$H$5000,\"\",0),\"\")","v":""},{"$f":"IF(INDIRECT(M2444) = \"\",\"\",INDIRECT(M2444))","v":""},"c"]
["SUCMOTHCAT4_10TO20_C",null,null,null,{"$f":"_xlfn.XLOOKUP(F2445,'Raw Data'!$I$4:$I$5000,'Raw Data'!$D$4:$D$5000,\"*** Mnemonic not found ***\",0)","v":"*** Mnemonic not found ***"},"SUCMOTHCAT4_10TO20_C__",null,"Input",null,null,183,"O","Input!O183",{"$f":"_xlfn.XLOOKUP(F2445,'Raw Data'!$I$4:$I$5000,'Raw Data'!$E$4:$E$5000,100,0)","v":100},{"$f":"IF(N2445=0,_xlfn.XLOOKUP(F2445,'Raw Data'!$I$4:$I$5000,'Raw Data'!$H$4:$H$5000,\"\",0),\"\")","v":""},{"$f":"IF(INDIRECT(M2445) = \"\",\"\",INDIRECT(M2445))","v":""},"c"]
["SUCMOTHCAT4_GRTR20_C",null,null,null,{"$f":"_xlfn.XLOOKUP(F2446,'Raw Data'!$I$4:$I$5000,'Raw Data'!$D$4:$D$5000,\"*** Mnemonic not found ***\",0)","v":"*** Mnemonic not found ***"},{"$f":"CONCATENATE(A2446,\"_\",B2446,\"_\",D2446)","v":"SUCMOTHCAT4_GRTR20_C__"},null,"Input",null,null,184,"O","Input!O184",{"$f":"_xlfn.XLOOKUP(F2446,'Raw Data'!$I$4:$I$5000,'Raw Data'!$E$4:$E$5000,100,0)","v":100},{"$f":"IF(N2446=0,_xlfn.XLOOKUP(F2446,'Raw Data'!$I$4:$I$5000,'Raw Data'!$H$4:$H$5000,\"\",0),\"\")","v":""},{"$f":"IF(INDIRECT(M2446) = \"\",\"\",INDIRECT(M2446))","v":""},"c"]
["SUCMOTHCAT4_TOTAL_C",null,null,null,{"$f":"_xlfn.XLOOKUP(F2447,'Raw Data'!$I$4:$I$5000,'Raw Data'!$D$4:$D$5000,\"*** Mnemonic not found ***\",0)","v":"*** Mnemonic not found ***"},"SUCMOTHCAT4_TOTAL_C__",null,"Input",null,null,185,"O","Input!O185",{"$f":"_xlfn.XLOOKUP(F2447,'Raw Data'!$I$4:$I$5000,'Raw Data'!$E$4:$E$5000,100,0)","v":100},{"$f":"IF(N2447=0,_xlfn.XLOOKUP(F2447,'Raw Data'!$I$4:$I$5000,'Raw Data'!$H$4:$H$5000,\"\",0),\"\")","v":""},{"$f":"IF(INDIRECT(M2447) = \"\",\"\",INDIRECT(M2447))","v":""},"c"]
["SUCMRUR1NFCTOT_C",null,null,null,{"$f":"_xlfn.XLOOKUP(F2448,'Raw Data'!$I$4:$I$5000,'Raw Data'!$D$4:$D$5000,\"*** Mnemonic not found ***\",0)","v":"*** Mnemonic not found ***"},"SUCMRUR1NFCTOT_C__","Comments - S&P Unrated Bonds Step 4","Input",{"$f":"ROW(section_bonds_sp_unrated_step_4)","v":187},2,{"$f":"I2448+J2448","v":189},{"$f":"L2447","v":"O"},"Input!O189",{"$f":"_xlfn.XLOOKUP(F2448,'Raw Data'!$I$4:$I$5000,'Raw Data'!$E$4:$E$5000,100,0)","v":100},{"$f":"IF(N2448=0,_xlfn.XLOOKUP(F2448,'Raw Data'!$I$4:$I$5000,'Raw Data'!$H$4:$H$5000,\"\",0),\"\")","v":""},{"$f":"IF(INDIRECT(M2448) = \"\",\"\",INDIRECT(M2448))","v":""},"c"]
["SUCMRUR1NFCERG_C",null,null,null,{"$f":"_xlfn.XLOOKUP(F2449,'Raw Data'!$I$4:$I$5000,'Raw Data'!$D$4:$D$5000,\"*** Mnemonic not found ***\",0)","v":"*** Mnemonic not found ***"},"SUCMRUR1NFCERG_C__",null,"Input",null,null,{"$f":"K2448+1","v":190},"O","Input!O190",{"$f":"_xlfn.XLOOKUP(F2449,'Raw Data'!$I$4:$I$5000,'Raw Data'!$E$4:$E$5000,100,0)","v":100},{"$f":"IF(N2449=0,_xlfn.XLOOKUP(F2449,'Raw Data'!$I$4:$I$5000,'Raw Data'!$H$4:$H$5000,\"\",0),\"\")","v":""},{"$f":"IF(INDIRECT(M2449) = \"\",\"\",INDIRECT(M2449))","v":""},"c"]
["SUCMRUR1NFCYRS_C",null,null,null,{"$f":"_xlfn.XLOOKUP(F2450,'Raw Data'!$I$4:$I$5000,'Raw Data'!$D$4:$D$5000,\"*** Mnemonic not found ***\",0)","v":"*** Mnemonic not found ***"},"SUCMRUR1NFCYRS_C__",null,"Input",null,null,191,"O","Input!O191",{"$f":"_xlfn.XLOOKUP(F2450,'Raw Data'!$I$4:$I$5000,'Raw Data'!$E$4:$E$5000,100,0)","v":100},{"$f":"IF(N2450=0,_xlfn.XLOOKUP(F2450,'Raw Data'!$I$4:$I$5000,'Raw Data'!$H$4:$H$5000,\"\",0),\"\")","v":""},{"$f":"IF(INDIRECT(M2450) = \"\",\"\",INDIRECT(M2450))","v":""},"c"]
["SUCMRUR1NFC_LESS1_C",null,null,null,{"$f":"_xlfn.XLOOKUP(F2451,'Raw Data'!$I$4:$I$5000,'Raw Data'!$D$4:$D$5000,\"*** Mnemonic not found ***\",0)","v":"*** Mnemonic not found ***"},"SUCMRUR1NFC_LESS1_C__",null,"Input",null,null,192,"O","Input!O192",{"$f":"_xlfn.XLOOKUP(F2451,'Raw Data'!$I$4:$I$5000,'Raw Data'!$E$4:$E$5000,100,0)","v":100},{"$f":"IF(N2451=0,_xlfn.XLOOKUP(F2451,'Raw Data'!$I$4:$I$5000,'Raw Data'!$H$4:$H$5000,\"\",0),\"\")","v":""},{"$f":"IF(INDIRECT(M2451) = \"\",\"\",INDIRECT(M2451))","v":""},"c"]
["SUCMRUR1NFC_1TO5_C",null,null,null,{"$f":"_xlfn.XLOOKUP(F2452,'Raw Data'!$I$4:$I$5000,'Raw Data'!$D$4:$D$5000,\"*** Mnemonic not found ***\",0)","v":"*** Mnemonic not found ***"},"SUCMRUR1NFC_1TO5_C__",null,"Input",null,null,193,"O","Input!O193",{"$f":"_xlfn.XLOOKUP(F2452,'Raw Data'!$I$4:$I$5000,'Raw Data'!$E$4:$E$5000,100,0)","v":100},{"$f":"IF(N2452=0,_xlfn.XLOOKUP(F2452,'Raw Data'!$I$4:$I$5000,'Raw Data'!$H$4:$H$5000,\"\",0),\"\")","v":""},{"$f":"IF(INDIRECT(M2452) = \"\",\"\",INDIRECT(M2452))","v":""},"c"]
["SUCMRUR1NFC_5TO10_C",null,null,null,{"$f":"_xlfn.XLOOKUP(F2453,'Raw Data'!$I$4:$I$5000,'Raw Data'!$D$4:$D$5000,\"*** Mnemonic not found ***\",0)","v":"*** Mnemonic not found ***"},"SUCMRUR1NFC_5TO10_C__",null,"Input",null,null,194,"O","Input!O194",{"$f":"_xlfn.XLOOKUP(F2453,'Raw Data'!$I$4:$I$5000,'Raw Data'!$E$4:$E$5000,100,0)","v":100},{"$f":"IF(N2453=0,_xlfn.XLOOKUP(F2453,'Raw Data'!$I$4:$I$5000,'Raw Data'!$H$4:$H$5000,\"\",0),\"\")","v":""},{"$f":"IF(INDIRECT(M2453) = \"\",\"\",INDIRECT(M2453))","v":""},"c"]
["SUCMRUR1NFC_10TO20_C",null,null,null,{"$f":"_xlfn.XLOOKUP(F2454,'Raw Data'!$I$4:$I$5000,'Raw Data'!$D$4:$D$5000,\"*** Mnemonic not found ***\",0)","v":"*** Mnemonic not found ***"},"SUCMRUR1NFC_10TO20_C__",null,"Input",null,null,195,"O",{"$f":"CONCATENATE(H2454,\"!\",L2454,K2454)","v":"Input!O195"},{"$f":"_xlfn.XLOOKUP(F2454,'Raw Data'!$I$4:$I$5000,'Raw Data'!$E$4:$E$5000,100,0)","v":100},{"$f":"IF(N2454=0,_xlfn.XLOOKUP(F2454,'Raw Data'!$I$4:$I$5000,'Raw Data'!$H$4:$H$5000,\"\",0),\"\")","v":""},{"$f":"IF(INDIRECT(M2454) = \"\",\"\",INDIRECT(M2454))","v":""},"c"]
["SUCMRUR1NFC_GRTR20_C",null,null,null,{"$f":"_xlfn.XLOOKUP(F2455,'Raw Data'!$I$4:$I$5000,'Raw Data'!$D$4:$D$5000,\"*** Mnemonic not found ***\",0)","v":"*** Mnemonic not found ***"},"SUCMRUR1NFC_GRTR20_C__",null,"Input",null,null,196,"O","Input!O196",{"$f":"_xlfn.XLOOKUP(F2455,'Raw Data'!$I$4:$I$5000,'Raw Data'!$E$4:$E$5000,100,0)","v":100},{"$f":"IF(N2455=0,_xlfn.XLOOKUP(F2455,'Raw Data'!$I$4:$I$5000,'Raw Data'!$H$4:$H$5000,\"\",0),\"\")","v":""},{"$f":"IF(INDIRECT(M2455) = \"\",\"\",INDIRECT(M2455))","v":""},"c"]
["SUCMRUR2NFCTOT_C",null,null,null,{"$f":"_xlfn.XLOOKUP(F2456,'Raw Data'!$I$4:$I$5000,'Raw Data'!$D$4:$D$5000,\"*** Mnemonic not found ***\",0)","v":"*** Mnemonic not found ***"},"SUCMRUR2NFCTOT_C__",null,"Input",null,null,{"$f":"K2455+3","v":199},"O","Input!O199",{"$f":"_xlfn.XLOOKUP(F2456,'Raw Data'!$I$4:$I$5000,'Raw Data'!$E$4:$E$5000,100,0)","v":100},{"$f":"IF(N2456=0,_xlfn.XLOOKUP(F2456,'Raw Data'!$I$4:$I$5000,'Raw Data'!$H$4:$H$5000,\"\",0),\"\")","v":""},{"$f":"IF(INDIRECT(M2456) = \"\",\"\",INDIRECT(M2456))","v":""},"c"]
["SUCMRUR2NFCERG_C",null,null,null,{"$f":"_xlfn.XLOOKUP(F2457,'Raw Data'!$I$4:$I$5000,'Raw Data'!$D$4:$D$5000,\"*** Mnemonic not found ***\",0)","v":"*** Mnemonic not found ***"},"SUCMRUR2NFCERG_C__",null,"Input",null,null,200,"O","Input!O200",{"$f":"_xlfn.XLOOKUP(F2457,'Raw Data'!$I$4:$I$5000,'Raw Data'!$E$4:$E$5000,100,0)","v":100},{"$f":"IF(N2457=0,_xlfn.XLOOKUP(F2457,'Raw Data'!$I$4:$I$5000,'Raw Data'!$H$4:$H$5000,\"\",0),\"\")","v":""},{"$f":"IF(INDIRECT(M2457) = \"\",\"\",INDIRECT(M2457))","v":""},"c"]
["SUCMRUR2NFCYRS_C",null,null,null,{"$f":"_xlfn.XLOOKUP(F2458,'Raw Data'!$I$4:$I$5000,'Raw Data'!$D$4:$D$5000,\"*** Mnemonic not found ***\",0)","v":"*** Mnemonic not found ***"},"SUCMRUR2NFCYRS_C__",null,"Input",null,null,201,"O","Input!O201",{"$f":"_xlfn.XLOOKUP(F2458,'Raw Data'!$I$4:$I$5000,'Raw Data'!$E$4:$E$5000,100,0)","v":100},{"$f":"IF(N2458=0,_xlfn.XLOOKUP(F2458,'Raw Data'!$I$4:$I$5000,'Raw Data'!$H$4:$H$5000,\"\",0),\"\")","v":""},{"$f":"IF(INDIRECT(M2458) = \"\",\"\",INDIRECT(M2458))","v":""},"c"]
["SUCMRUR2NFC_LESS1_C",null,null,null,{"$f":"_xlfn.XLOOKUP(F2459,'Raw Data'!$I$4:$I$5000,'Raw Data'!$D$4:$D$5000,\"*** Mnemonic not found ***\",0)","v":"*** Mnemonic not found ***"},"SUCMRUR2NFC_LESS1_C__",null,"Input",null,null,202,"O","Input!O202",{"$f":"_xlfn.XLOOKUP(F2459,'Raw Data'!$I$4:$I$5000,'Raw Data'!$E$4:$E$5000,100,0)","v":100},{"$f":"IF(N2459=0,_xlfn.XLOOKUP(F2459,'Raw Data'!$I$4:$I$5000,'Raw Data'!$H$4:$H$5000,\"\",0),\"\")","v":""},{"$f":"IF(INDIRECT(M2459) = \"\",\"\",INDIRECT(M2459))","v":""},"c"]
["SUCMRUR2NFC_1TO5_C",null,null,null,{"$f":"_xlfn.XLOOKUP(F2460,'Raw Data'!$I$4:$I$5000,'Raw Data'!$D$4:$D$5000,\"*** Mnemonic not found ***\",0)","v":"*** Mnemonic not found ***"},"SUCMRUR2NFC_1TO5_C__",null,"Input",null,null,203,"O","Input!O203",{"$f":"_xlfn.XLOOKUP(F2460,'Raw Data'!$I$4:$I$5000,'Raw Data'!$E$4:$E$5000,100,0)","v":100},{"$f":"IF(N2460=0,_xlfn.XLOOKUP(F2460,'Raw Data'!$I$4:$I$5000,'Raw Data'!$H$4:$H$5000,\"\",0),\"\")","v":""},{"$f":"IF(INDIRECT(M2460) = \"\",\"\",INDIRECT(M2460))","v":""},"c"]
["SUCMRUR2NFC_5TO10_C",null,null,null,{"$f":"_xlfn.XLOOKUP(F2461,'Raw Data'!$I$4:$I$5000,'Raw Data'!$D$4:$D$5000,\"*** Mnemonic not found ***\",0)","v":"*** Mnemonic not found ***"},"SUCMRUR2NFC_5TO10_C__",null,"Input",null,null,204,"O","Input!O204",{"$f":"_xlfn.XLOOKUP(F2461,'Raw Data'!$I$4:$I$5000,'Raw Data'!$E$4:$E$5000,100,0)","v":100},{"$f":"IF(N2461=0,_xlfn.XLOOKUP(F2461,'Raw Data'!$I$4:$I$5000,'Raw Data'!$H$4:$H$5000,\"\",0),\"\")","v":""},{"$f":"IF(INDIRECT(M2461) = \"\",\"\",INDIRECT(M2461))","v":""},"c"]
["SUCMRUR2NFC_10TO20_C",null,null,null,{"$f":"_xlfn.XLOOKUP(F2462,'Raw Data'!$I$4:$I$5000,'Raw Data'!$D$4:$D$5000,\"*** Mnemonic not found ***\",0)","v":"*** Mnemonic not found ***"},"SUCMRUR2NFC_10TO20_C__",null,"Input",null,null,205,"O","Input!O205",{"$f":"_xlfn.XLOOKUP(F2462,'Raw Data'!$I$4:$I$5000,'Raw Data'!$E$4:$E$5000,100,0)","v":100},{"$f":"IF(N2462=0,_xlfn.XLOOKUP(F2462,'Raw Data'!$I$4:$I$5000,'Raw Data'!$H$4:$H$5000,\"\",0),\"\")","v":""},{"$f":"IF(INDIRECT(M2462) = \"\",\"\",INDIRECT(M2462))","v":""},"c"]
["SUCMRUR2NFC_GRTR20_C",null,null,null,{"$f":"_xlfn.XLOOKUP(F2463,'Raw Data'!$I$4:$I$5000,'Raw Data'!$D$4:$D$5000,\"*** Mnemonic not found ***\",0)","v":"*** Mnemonic not found ***"},"SUCMRUR2NFC_GRTR20_C__",null,"Input",null,null,206,"O","Input!O206",{"$f":"_xlfn.XLOOKUP(F2463,'Raw Data'!$I$4:$I$5000,'Raw Data'!$E$4:$E$5000,100,0)","v":100},{"$f":"IF(N2463=0,_xlfn.XLOOKUP(F2463,'Raw Data'!$I$4:$I$5000,'Raw Data'!$H$4:$H$5000,\"\",0),\"\")","v":""},{"$f":"IF(INDIRECT(M2463) = \"\",\"\",INDIRECT(M2463))","v":""},"c"]
["SUCMRUR3NFCTOT_C",null,null,null,{"$f":"_xlfn.XLOOKUP(F2464,'Raw Data'!$I$4:$I$5000,'Raw Data'!$D$4:$D$5000,\"*** Mnemonic not found ***\",0)","v":"*** Mnemonic not found ***"},"SUCMRUR3NFCTOT_C__",null,"Input",null,null,{"$f":"K2463+3","v":209},"O","Input!O209",{"$f":"_xlfn.XLOOKUP(F2464,'Raw Data'!$I$4:$I$5000,'Raw Data'!$E$4:$E$5000,100,0)","v":100},{"$f":"IF(N2464=0,_xlfn.XLOOKUP(F2464,'Raw Data'!$I$4:$I$5000,'Raw Data'!$H$4:$H$5000,\"\",0),\"\")","v":""},{"$f":"IF(INDIRECT(M2464) = \"\",\"\",INDIRECT(M2464))","v":""},"c"]
["SUCMRUR3NFCERG_C",null,null,null,{"$f":"_xlfn.XLOOKUP(F2465,'Raw Data'!$I$4:$I$5000,'Raw Data'!$D$4:$D$5000,\"*** Mnemonic not found ***\",0)","v":"*** Mnemonic not found ***"},"SUCMRUR3NFCERG_C__",null,"Input",null,null,{"$f":"K2464+1","v":210},{"$f":"L2464","v":"O"},"Input!O210",{"$f":"_xlfn.XLOOKUP(F2465,'Raw Data'!$I$4:$I$5000,'Raw Data'!$E$4:$E$5000,100,0)","v":100},{"$f":"IF(N2465=0,_xlfn.XLOOKUP(F2465,'Raw Data'!$I$4:$I$5000,'Raw Data'!$H$4:$H$5000,\"\",0),\"\")","v":""},{"$f":"IF(INDIRECT(M2465) = \"\",\"\",INDIRECT(M2465))","v":""},"c"]
["SUCMRUR3NFCYRS_C",null,null,null,{"$f":"_xlfn.XLOOKUP(F2466,'Raw Data'!$I$4:$I$5000,'Raw Data'!$D$4:$D$5000,\"*** Mnemonic not found ***\",0)","v":"*** Mnemonic not found ***"},"SUCMRUR3NFCYRS_C__",null,"Input",null,null,211,"O","Input!O211",{"$f":"_xlfn.XLOOKUP(F2466,'Raw Data'!$I$4:$I$5000,'Raw Data'!$E$4:$E$5000,100,0)","v":100},{"$f":"IF(N2466=0,_xlfn.XLOOKUP(F2466,'Raw Data'!$I$4:$I$5000,'Raw Data'!$H$4:$H$5000,\"\",0),\"\")","v":""},{"$f":"IF(INDIRECT(M2466) = \"\",\"\",INDIRECT(M2466))","v":""},"c"]
["SUCMRUR3NFC_LESS1_C",null,null,null,{"$f":"_xlfn.XLOOKUP(F2467,'Raw Data'!$I$4:$I$5000,'Raw Data'!$D$4:$D$5000,\"*** Mnemonic not found ***\",0)","v":"*** Mnemonic not found ***"},"SUCMRUR3NFC_LESS1_C__",null,"Input",null,null,212,"O","Input!O212",{"$f":"_xlfn.XLOOKUP(F2467,'Raw Data'!$I$4:$I$5000,'Raw Data'!$E$4:$E$5000,100,0)","v":100},{"$f":"IF(N2467=0,_xlfn.XLOOKUP(F2467,'Raw Data'!$I$4:$I$5000,'Raw Data'!$H$4:$H$5000,\"\",0),\"\")","v":""},{"$f":"IF(INDIRECT(M2467) = \"\",\"\",INDIRECT(M2467))","v":""},"c"]
["SUCMRUR3NFC_1TO5_C",null,null,null,{"$f":"_xlfn.XLOOKUP(F2468,'Raw Data'!$I$4:$I$5000,'Raw Data'!$D$4:$D$5000,\"*** Mnemonic not found ***\",0)","v":"*** Mnemonic not found ***"},"SUCMRUR3NFC_1TO5_C__",null,"Input",null,null,213,"O","Input!O213",{"$f":"_xlfn.XLOOKUP(F2468,'Raw Data'!$I$4:$I$5000,'Raw Data'!$E$4:$E$5000,100,0)","v":100},{"$f":"IF(N2468=0,_xlfn.XLOOKUP(F2468,'Raw Data'!$I$4:$I$5000,'Raw Data'!$H$4:$H$5000,\"\",0),\"\")","v":""},{"$f":"IF(INDIRECT(M2468) = \"\",\"\",INDIRECT(M2468))","v":""},"c"]
["SUCMRUR3NFC_5TO10_C",null,null,null,{"$f":"_xlfn.XLOOKUP(F2469,'Raw Data'!$I$4:$I$5000,'Raw Data'!$D$4:$D$5000,\"*** Mnemonic not found ***\",0)","v":"*** Mnemonic not found ***"},"SUCMRUR3NFC_5TO10_C__",null,"Input",null,null,214,"O","Input!O214",{"$f":"_xlfn.XLOOKUP(F2469,'Raw Data'!$I$4:$I$5000,'Raw Data'!$E$4:$E$5000,100,0)","v":100},{"$f":"IF(N2469=0,_xlfn.XLOOKUP(F2469,'Raw Data'!$I$4:$I$5000,'Raw Data'!$H$4:$H$5000,\"\",0),\"\")","v":""},{"$f":"IF(INDIRECT(M2469) = \"\",\"\",INDIRECT(M2469))","v":""},"c"]
["SUCMRUR3NFC_10TO20_C",null,null,null,{"$f":"_xlfn.XLOOKUP(F2470,'Raw Data'!$I$4:$I$5000,'Raw Data'!$D$4:$D$5000,\"*** Mnemonic not found ***\",0)","v":"*** Mnemonic not found ***"},"SUCMRUR3NFC_10TO20_C__",null,"Input",null,null,215,"O","Input!O215",{"$f":"_xlfn.XLOOKUP(F2470,'Raw Data'!$I$4:$I$5000,'Raw Data'!$E$4:$E$5000,100,0)","v":100},{"$f":"IF(N2470=0,_xlfn.XLOOKUP(F2470,'Raw Data'!$I$4:$I$5000,'Raw Data'!$H$4:$H$5000,\"\",0),\"\")","v":""},{"$f":"IF(INDIRECT(M2470) = \"\",\"\",INDIRECT(M2470))","v":""},"c"]
["SUCMRUR3NFC_GRTR20_C",null,null,null,{"$f":"_xlfn.XLOOKUP(F2471,'Raw Data'!$I$4:$I$5000,'Raw Data'!$D$4:$D$5000,\"*** Mnemonic not found ***\",0)","v":"*** Mnemonic not found ***"},"SUCMRUR3NFC_GRTR20_C__",null,"Input",null,null,216,"O","Input!O216",{"$f":"_xlfn.XLOOKUP(F2471,'Raw Data'!$I$4:$I$5000,'Raw Data'!$E$4:$E$5000,100,0)","v":100},{"$f":"IF(N2471=0,_xlfn.XLOOKUP(F2471,'Raw Data'!$I$4:$I$5000,'Raw Data'!$H$4:$H$5000,\"\",0),\"\")","v":""},{"$f":"IF(INDIRECT(M2471) = \"\",\"\",INDIRECT(M2471))","v":""},"c"]
["SUCMRUR1FINTOT_C",null,null,null,{"$f":"_xlfn.XLOOKUP(F2472,'Raw Data'!$I$4:$I$5000,'Raw Data'!$D$4:$D$5000,\"*** Mnemonic not found ***\",0)","v":"*** Mnemonic not found ***"},"SUCMRUR1FINTOT_C__",null,"Input",null,null,{"$f":"K2471+3","v":219},"O","Input!O219",{"$f":"_xlfn.XLOOKUP(F2472,'Raw Data'!$I$4:$I$5000,'Raw Data'!$E$4:$E$5000,100,0)","v":100},{"$f":"IF(N2472=0,_xlfn.XLOOKUP(F2472,'Raw Data'!$I$4:$I$5000,'Raw Data'!$H$4:$H$5000,\"\",0),\"\")","v":""},{"$f":"IF(INDIRECT(M2472) = \"\",\"\",INDIRECT(M2472))","v":""},"c"]
["SUCMRUR1FINERG_C",null,null,null,{"$f":"_xlfn.XLOOKUP(F2473,'Raw Data'!$I$4:$I$5000,'Raw Data'!$D$4:$D$5000,\"*** Mnemonic not found ***\",0)","v":"*** Mnemonic not found ***"},"SUCMRUR1FINERG_C__",null,"Input",null,null,{"$f":"K2472+1","v":220},{"$f":"L2472","v":"O"},"Input!O220",{"$f":"_xlfn.XLOOKUP(F2473,'Raw Data'!$I$4:$I$5000,'Raw Data'!$E$4:$E$5000,100,0)","v":100},{"$f":"IF(N2473=0,_xlfn.XLOOKUP(F2473,'Raw Data'!$I$4:$I$5000,'Raw Data'!$H$4:$H$5000,\"\",0),\"\")","v":""},{"$f":"IF(INDIRECT(M2473) = \"\",\"\",INDIRECT(M2473))","v":""},"c"]
["SUCMRUR1FINYRS_C",null,null,null,{"$f":"_xlfn.XLOOKUP(F2474,'Raw Data'!$I$4:$I$5000,'Raw Data'!$D$4:$D$5000,\"*** Mnemonic not found ***\",0)","v":"*** Mnemonic not found ***"},"SUCMRUR1FINYRS_C__",null,"Input",null,null,221,"O","Input!O221",{"$f":"_xlfn.XLOOKUP(F2474,'Raw Data'!$I$4:$I$5000,'Raw Data'!$E$4:$E$5000,100,0)","v":100},{"$f":"IF(N2474=0,_xlfn.XLOOKUP(F2474,'Raw Data'!$I$4:$I$5000,'Raw Data'!$H$4:$H$5000,\"\",0),\"\")","v":""},{"$f":"IF(INDIRECT(M2474) = \"\",\"\",INDIRECT(M2474))","v":""},"c"]
["SUCMRUR1FIN_LESS1_C",null,null,null,{"$f":"_xlfn.XLOOKUP(F2475,'Raw Data'!$I$4:$I$5000,'Raw Data'!$D$4:$D$5000,\"*** Mnemonic not found ***\",0)","v":"*** Mnemonic not found ***"},"SUCMRUR1FIN_LESS1_C__",null,"Input",null,null,222,"O","Input!O222",{"$f":"_xlfn.XLOOKUP(F2475,'Raw Data'!$I$4:$I$5000,'Raw Data'!$E$4:$E$5000,100,0)","v":100},{"$f":"IF(N2475=0,_xlfn.XLOOKUP(F2475,'Raw Data'!$I$4:$I$5000,'Raw Data'!$H$4:$H$5000,\"\",0),\"\")","v":""},{"$f":"IF(INDIRECT(M2475) = \"\",\"\",INDIRECT(M2475))","v":""},"c"]
["SUCMRUR1FIN_1TO5_C",null,null,null,{"$f":"_xlfn.XLOOKUP(F2476,'Raw Data'!$I$4:$I$5000,'Raw Data'!$D$4:$D$5000,\"*** Mnemonic not found ***\",0)","v":"*** Mnemonic not found ***"},"SUCMRUR1FIN_1TO5_C__",null,"Input",null,null,223,"O","Input!O223",{"$f":"_xlfn.XLOOKUP(F2476,'Raw Data'!$I$4:$I$5000,'Raw Data'!$E$4:$E$5000,100,0)","v":100},{"$f":"IF(N2476=0,_xlfn.XLOOKUP(F2476,'Raw Data'!$I$4:$I$5000,'Raw Data'!$H$4:$H$5000,\"\",0),\"\")","v":""},{"$f":"IF(INDIRECT(M2476) = \"\",\"\",INDIRECT(M2476))","v":""},"c"]
["SUCMRUR1FIN_5TO10_C",null,null,null,{"$f":"_xlfn.XLOOKUP(F2477,'Raw Data'!$I$4:$I$5000,'Raw Data'!$D$4:$D$5000,\"*** Mnemonic not found ***\",0)","v":"*** Mnemonic not found ***"},"SUCMRUR1FIN_5TO10_C__",null,"Input",null,null,224,"O","Input!O224",{"$f":"_xlfn.XLOOKUP(F2477,'Raw Data'!$I$4:$I$5000,'Raw Data'!$E$4:$E$5000,100,0)","v":100},{"$f":"IF(N2477=0,_xlfn.XLOOKUP(F2477,'Raw Data'!$I$4:$I$5000,'Raw Data'!$H$4:$H$5000,\"\",0),\"\")","v":""},{"$f":"IF(INDIRECT(M2477) = \"\",\"\",INDIRECT(M2477))","v":""},"c"]
["SUCMRUR1FIN_10TO20_C",null,null,null,{"$f":"_xlfn.XLOOKUP(F2478,'Raw Data'!$I$4:$I$5000,'Raw Data'!$D$4:$D$5000,\"*** Mnemonic not found ***\",0)","v":"*** Mnemonic not found ***"},"SUCMRUR1FIN_10TO20_C__",null,"Input",null,null,225,"O","Input!O225",{"$f":"_xlfn.XLOOKUP(F2478,'Raw Data'!$I$4:$I$5000,'Raw Data'!$E$4:$E$5000,100,0)","v":100},{"$f":"IF(N2478=0,_xlfn.XLOOKUP(F2478,'Raw Data'!$I$4:$I$5000,'Raw Data'!$H$4:$H$5000,\"\",0),\"\")","v":""},{"$f":"IF(INDIRECT(M2478) = \"\",\"\",INDIRECT(M2478))","v":""},"c"]
["SUCMRUR1FIN_GRTR20_C",null,null,null,{"$f":"_xlfn.XLOOKUP(F2479,'Raw Data'!$I$4:$I$5000,'Raw Data'!$D$4:$D$5000,\"*** Mnemonic not found ***\",0)","v":"*** Mnemonic not found ***"},"SUCMRUR1FIN_GRTR20_C__",null,"Input",null,null,226,"O","Input!O226",{"$f":"_xlfn.XLOOKUP(F2479,'Raw Data'!$I$4:$I$5000,'Raw Data'!$E$4:$E$5000,100,0)","v":100},{"$f":"IF(N2479=0,_xlfn.XLOOKUP(F2479,'Raw Data'!$I$4:$I$5000,'Raw Data'!$H$4:$H$5000,\"\",0),\"\")","v":""},{"$f":"IF(INDIRECT(M2479) = \"\",\"\",INDIRECT(M2479))","v":""},"c"]
["SUCMRUR2FINTOT_C",null,null,null,{"$f":"_xlfn.XLOOKUP(F2480,'Raw Data'!$I$4:$I$5000,'Raw Data'!$D$4:$D$5000,\"*** Mnemonic not found ***\",0)","v":"*** Mnemonic not found ***"},"SUCMRUR2FINTOT_C__",null,"Input",null,null,{"$f":"K2479+3","v":229},{"$f":"L2479","v":"O"},"Input!O229",{"$f":"_xlfn.XLOOKUP(F2480,'Raw Data'!$I$4:$I$5000,'Raw Data'!$E$4:$E$5000,100,0)","v":100},{"$f":"IF(N2480=0,_xlfn.XLOOKUP(F2480,'Raw Data'!$I$4:$I$5000,'Raw Data'!$H$4:$H$5000,\"\",0),\"\")","v":""},{"$f":"IF(INDIRECT(M2480) = \"\",\"\",INDIRECT(M2480))","v":""},"c"]
["SUCMRUR2FINERG_C",null,null,null,{"$f":"_xlfn.XLOOKUP(F2481,'Raw Data'!$I$4:$I$5000,'Raw Data'!$D$4:$D$5000,\"*** Mnemonic not found ***\",0)","v":"*** Mnemonic not found ***"},"SUCMRUR2FINERG_C__",null,"Input",null,null,230,"O","Input!O230",{"$f":"_xlfn.XLOOKUP(F2481,'Raw Data'!$I$4:$I$5000,'Raw Data'!$E$4:$E$5000,100,0)","v":100},{"$f":"IF(N2481=0,_xlfn.XLOOKUP(F2481,'Raw Data'!$I$4:$I$5000,'Raw Data'!$H$4:$H$5000,\"\",0),\"\")","v":""},{"$f":"IF(INDIRECT(M2481) = \"\",\"\",INDIRECT(M2481))","v":""},"c"]
["SUCMRUR2FINYRS_C",null,null,null,{"$f":"_xlfn.XLOOKUP(F2482,'Raw Data'!$I$4:$I$5000,'Raw Data'!$D$4:$D$5000,\"*** Mnemonic not found ***\",0)","v":"*** Mnemonic not found ***"},"SUCMRUR2FINYRS_C__",null,"Input",null,null,231,{"$f":"L2481","v":"O"},"Input!O231",{"$f":"_xlfn.XLOOKUP(F2482,'Raw Data'!$I$4:$I$5000,'Raw Data'!$E$4:$E$5000,100,0)","v":100},{"$f":"IF(N2482=0,_xlfn.XLOOKUP(F2482,'Raw Data'!$I$4:$I$5000,'Raw Data'!$H$4:$H$5000,\"\",0),\"\")","v":""},{"$f":"IF(INDIRECT(M2482) = \"\",\"\",INDIRECT(M2482))","v":""},"c"]
["SUCMRUR2FIN_LESS1_C",null,null,null,{"$f":"_xlfn.XLOOKUP(F2483,'Raw Data'!$I$4:$I$5000,'Raw Data'!$D$4:$D$5000,\"*** Mnemonic not found ***\",0)","v":"*** Mnemonic not found ***"},"SUCMRUR2FIN_LESS1_C__",null,"Input",null,null,232,"O","Input!O232",{"$f":"_xlfn.XLOOKUP(F2483,'Raw Data'!$I$4:$I$5000,'Raw Data'!$E$4:$E$5000,100,0)","v":100},{"$f":"IF(N2483=0,_xlfn.XLOOKUP(F2483,'Raw Data'!$I$4:$I$5000,'Raw Data'!$H$4:$H$5000,\"\",0),\"\")","v":""},{"$f":"IF(INDIRECT(M2483) = \"\",\"\",INDIRECT(M2483))","v":""},"c"]
["SUCMRUR2FIN_1TO5_C",null,null,null,{"$f":"_xlfn.XLOOKUP(F2484,'Raw Data'!$I$4:$I$5000,'Raw Data'!$D$4:$D$5000,\"*** Mnemonic not found ***\",0)","v":"*** Mnemonic not found ***"},"SUCMRUR2FIN_1TO5_C__",null,"Input",null,null,233,"O","Input!O233",{"$f":"_xlfn.XLOOKUP(F2484,'Raw Data'!$I$4:$I$5000,'Raw Data'!$E$4:$E$5000,100,0)","v":100},{"$f":"IF(N2484=0,_xlfn.XLOOKUP(F2484,'Raw Data'!$I$4:$I$5000,'Raw Data'!$H$4:$H$5000,\"\",0),\"\")","v":""},{"$f":"IF(INDIRECT(M2484) = \"\",\"\",INDIRECT(M2484))","v":""},"c"]
["SUCMRUR2FIN_5TO10_C",null,null,null,{"$f":"_xlfn.XLOOKUP(F2485,'Raw Data'!$I$4:$I$5000,'Raw Data'!$D$4:$D$5000,\"*** Mnemonic not found ***\",0)","v":"*** Mnemonic not found ***"},"SUCMRUR2FIN_5TO10_C__",null,"Input",null,null,234,"O","Input!O234",{"$f":"_xlfn.XLOOKUP(F2485,'Raw Data'!$I$4:$I$5000,'Raw Data'!$E$4:$E$5000,100,0)","v":100},{"$f":"IF(N2485=0,_xlfn.XLOOKUP(F2485,'Raw Data'!$I$4:$I$5000,'Raw Data'!$H$4:$H$5000,\"\",0),\"\")","v":""},{"$f":"IF(INDIRECT(M2485) = \"\",\"\",INDIRECT(M2485))","v":""},"c"]
["SUCMRUR2FIN_10TO20_C",null,null,null,{"$f":"_xlfn.XLOOKUP(F2486,'Raw Data'!$I$4:$I$5000,'Raw Data'!$D$4:$D$5000,\"*** Mnemonic not found ***\",0)","v":"*** Mnemonic not found ***"},"SUCMRUR2FIN_10TO20_C__",null,"Input",null,null,235,"O","Input!O235",{"$f":"_xlfn.XLOOKUP(F2486,'Raw Data'!$I$4:$I$5000,'Raw Data'!$E$4:$E$5000,100,0)","v":100},{"$f":"IF(N2486=0,_xlfn.XLOOKUP(F2486,'Raw Data'!$I$4:$I$5000,'Raw Data'!$H$4:$H$5000,\"\",0),\"\")","v":""},{"$f":"IF(INDIRECT(M2486) = \"\",\"\",INDIRECT(M2486))","v":""},"c"]
["SUCMRUR2FIN_GRTR20_C",null,null,null,{"$f":"_xlfn.XLOOKUP(F2487,'Raw Data'!$I$4:$I$5000,'Raw Data'!$D$4:$D$5000,\"*** Mnemonic not found ***\",0)","v":"*** Mnemonic not found ***"},"SUCMRUR2FIN_GRTR20_C__",null,"Input",null,null,236,"O","Input!O236",{"$f":"_xlfn.XLOOKUP(F2487,'Raw Data'!$I$4:$I$5000,'Raw Data'!$E$4:$E$5000,100,0)","v":100},{"$f":"IF(N2487=0,_xlfn.XLOOKUP(F2487,'Raw Data'!$I$4:$I$5000,'Raw Data'!$H$4:$H$5000,\"\",0),\"\")","v":""},{"$f":"IF(INDIRECT(M2487) = \"\",\"\",INDIRECT(M2487))","v":""},"c"]
["SUCMRUR3FINTOT_C",null,null,null,{"$f":"_xlfn.XLOOKUP(F2488,'Raw Data'!$I$4:$I$5000,'Raw Data'!$D$4:$D$5000,\"*** Mnemonic not found ***\",0)","v":"*** Mnemonic not found ***"},"SUCMRUR3FINTOT_C__",null,"Input",null,null,{"$f":"K2487+3","v":239},{"$f":"L2487","v":"O"},"Input!O239",{"$f":"_xlfn.XLOOKUP(F2488,'Raw Data'!$I$4:$I$5000,'Raw Data'!$E$4:$E$5000,100,0)","v":100},{"$f":"IF(N2488=0,_xlfn.XLOOKUP(F2488,'Raw Data'!$I$4:$I$5000,'Raw Data'!$H$4:$H$5000,\"\",0),\"\")","v":""},{"$f":"IF(INDIRECT(M2488) = \"\",\"\",INDIRECT(M2488))","v":""},"c"]
["SUCMRUR3FINERG_C",null,null,null,{"$f":"_xlfn.XLOOKUP(F2489,'Raw Data'!$I$4:$I$5000,'Raw Data'!$D$4:$D$5000,\"*** Mnemonic not found ***\",0)","v":"*** Mnemonic not found ***"},"SUCMRUR3FINERG_C__",null,"Input",null,null,240,"O","Input!O240",{"$f":"_xlfn.XLOOKUP(F2489,'Raw Data'!$I$4:$I$5000,'Raw Data'!$E$4:$E$5000,100,0)","v":100},{"$f":"IF(N2489=0,_xlfn.XLOOKUP(F2489,'Raw Data'!$I$4:$I$5000,'Raw Data'!$H$4:$H$5000,\"\",0),\"\")","v":""},{"$f":"IF(INDIRECT(M2489) = \"\",\"\",INDIRECT(M2489))","v":""},"c"]
["SUCMRUR3FINYRS_C",null,null,null,{"$f":"_xlfn.XLOOKUP(F2490,'Raw Data'!$I$4:$I$5000,'Raw Data'!$D$4:$D$5000,\"*** Mnemonic not found ***\",0)","v":"*** Mnemonic not found ***"},"SUCMRUR3FINYRS_C__",null,"Input",null,null,241,"O","Input!O241",{"$f":"_xlfn.XLOOKUP(F2490,'Raw Data'!$I$4:$I$5000,'Raw Data'!$E$4:$E$5000,100,0)","v":100},{"$f":"IF(N2490=0,_xlfn.XLOOKUP(F2490,'Raw Data'!$I$4:$I$5000,'Raw Data'!$H$4:$H$5000,\"\",0),\"\")","v":""},{"$f":"IF(INDIRECT(M2490) = \"\",\"\",INDIRECT(M2490))","v":""},"c"]
["SUCMRUR3FIN_LESS1_C",null,null,null,{"$f":"_xlfn.XLOOKUP(F2491,'Raw Data'!$I$4:$I$5000,'Raw Data'!$D$4:$D$5000,\"*** Mnemonic not found ***\",0)","v":"*** Mnemonic not found ***"},"SUCMRUR3FIN_LESS1_C__",null,"Input",null,null,242,"O","Input!O242",{"$f":"_xlfn.XLOOKUP(F2491,'Raw Data'!$I$4:$I$5000,'Raw Data'!$E$4:$E$5000,100,0)","v":100},{"$f":"IF(N2491=0,_xlfn.XLOOKUP(F2491,'Raw Data'!$I$4:$I$5000,'Raw Data'!$H$4:$H$5000,\"\",0),\"\")","v":""},{"$f":"IF(INDIRECT(M2491) = \"\",\"\",INDIRECT(M2491))","v":""},"c"]
["SUCMRUR3FIN_1TO5_C",null,null,null,{"$f":"_xlfn.XLOOKUP(F2492,'Raw Data'!$I$4:$I$5000,'Raw Data'!$D$4:$D$5000,\"*** Mnemonic not found ***\",0)","v":"*** Mnemonic not found ***"},"SUCMRUR3FIN_1TO5_C__",null,"Input",null,null,243,"O","Input!O243",{"$f":"_xlfn.XLOOKUP(F2492,'Raw Data'!$I$4:$I$5000,'Raw Data'!$E$4:$E$5000,100,0)","v":100},{"$f":"IF(N2492=0,_xlfn.XLOOKUP(F2492,'Raw Data'!$I$4:$I$5000,'Raw Data'!$H$4:$H$5000,\"\",0),\"\")","v":""},{"$f":"IF(INDIRECT(M2492) = \"\",\"\",INDIRECT(M2492))","v":""},"c"]
["SUCMRUR3FIN_5TO10_C",null,null,null,{"$f":"_xlfn.XLOOKUP(F2493,'Raw Data'!$I$4:$I$5000,'Raw Data'!$D$4:$D$5000,\"*** Mnemonic not found ***\",0)","v":"*** Mnemonic not found ***"},"SUCMRUR3FIN_5TO10_C__",null,"Input",null,null,244,"O","Input!O244",{"$f":"_xlfn.XLOOKUP(F2493,'Raw Data'!$I$4:$I$5000,'Raw Data'!$E$4:$E$5000,100,0)","v":100},{"$f":"IF(N2493=0,_xlfn.XLOOKUP(F2493,'Raw Data'!$I$4:$I$5000,'Raw Data'!$H$4:$H$5000,\"\",0),\"\")","v":""},{"$f":"IF(INDIRECT(M2493) = \"\",\"\",INDIRECT(M2493))","v":""},"c"]
["SUCMRUR3FIN_10TO20_C",null,null,null,{"$f":"_xlfn.XLOOKUP(F2494,'Raw Data'!$I$4:$I$5000,'Raw Data'!$D$4:$D$5000,\"*** Mnemonic not found ***\",0)","v":"*** Mnemonic not found ***"},"SUCMRUR3FIN_10TO20_C__",null,"Input",null,null,245,"O","Input!O245",{"$f":"_xlfn.XLOOKUP(F2494,'Raw Data'!$I$4:$I$5000,'Raw Data'!$E$4:$E$5000,100,0)","v":100},{"$f":"IF(N2494=0,_xlfn.XLOOKUP(F2494,'Raw Data'!$I$4:$I$5000,'Raw Data'!$H$4:$H$5000,\"\",0),\"\")","v":""},{"$f":"IF(INDIRECT(M2494) = \"\",\"\",INDIRECT(M2494))","v":""},"c"]
["SUCMRUR3FIN_GRTR20_C",null,null,null,{"$f":"_xlfn.XLOOKUP(F2495,'Raw Data'!$I$4:$I$5000,'Raw Data'!$D$4:$D$5000,\"*** Mnemonic not found ***\",0)","v":"*** Mnemonic not found ***"},"SUCMRUR3FIN_GRTR20_C__",null,"Input",null,null,246,"O","Input!O246",{"$f":"_xlfn.XLOOKUP(F2495,'Raw Data'!$I$4:$I$5000,'Raw Data'!$E$4:$E$5000,100,0)","v":100},{"$f":"IF(N2495=0,_xlfn.XLOOKUP(F2495,'Raw Data'!$I$4:$I$5000,'Raw Data'!$H$4:$H$5000,\"\",0),\"\")","v":""},{"$f":"IF(INDIRECT(M2495) = \"\",\"\",INDIRECT(M2495))","v":""},"c"]
["SUCMRUR1SOVERGTOT_C",null,null,null,{"$f":"_xlfn.XLOOKUP(F2496,'Raw Data'!$I$4:$I$5000,'Raw Data'!$D$4:$D$5000,\"*** Mnemonic not found ***\",0)","v":"*** Mnemonic not found ***"},"SUCMRUR1SOVERGTOT_C__",null,"Input",null,null,{"$f":"K2495+3","v":249},{"$f":"L2495","v":"O"},"Input!O249",{"$f":"_xlfn.XLOOKUP(F2496,'Raw Data'!$I$4:$I$5000,'Raw Data'!$E$4:$E$5000,100,0)","v":100},{"$f":"IF(N2496=0,_xlfn.XLOOKUP(F2496,'Raw Data'!$I$4:$I$5000,'Raw Data'!$H$4:$H$5000,\"\",0),\"\")","v":""},{"$f":"IF(INDIRECT(M2496) = \"\",\"\",INDIRECT(M2496))","v":""},"c"]
["SUCMRUR1SOVERGERG_C",null,null,null,{"$f":"_xlfn.XLOOKUP(F2497,'Raw Data'!$I$4:$I$5000,'Raw Data'!$D$4:$D$5000,\"*** Mnemonic not found ***\",0)","v":"*** Mnemonic not found ***"},"SUCMRUR1SOVERGERG_C__",null,"Input",null,null,250,"O","Input!O250",{"$f":"_xlfn.XLOOKUP(F2497,'Raw Data'!$I$4:$I$5000,'Raw Data'!$E$4:$E$5000,100,0)","v":100},{"$f":"IF(N2497=0,_xlfn.XLOOKUP(F2497,'Raw Data'!$I$4:$I$5000,'Raw Data'!$H$4:$H$5000,\"\",0),\"\")","v":""},{"$f":"IF(INDIRECT(M2497) = \"\",\"\",INDIRECT(M2497))","v":""},"c"]
["SUCMRUR1SOVERGYRS_C",null,null,null,{"$f":"_xlfn.XLOOKUP(F2498,'Raw Data'!$I$4:$I$5000,'Raw Data'!$D$4:$D$5000,\"*** Mnemonic not found ***\",0)","v":"*** Mnemonic not found ***"},"SUCMRUR1SOVERGYRS_C__",null,"Input",null,null,251,"O","Input!O251",{"$f":"_xlfn.XLOOKUP(F2498,'Raw Data'!$I$4:$I$5000,'Raw Data'!$E$4:$E$5000,100,0)","v":100},{"$f":"IF(N2498=0,_xlfn.XLOOKUP(F2498,'Raw Data'!$I$4:$I$5000,'Raw Data'!$H$4:$H$5000,\"\",0),\"\")","v":""},{"$f":"IF(INDIRECT(M2498) = \"\",\"\",INDIRECT(M2498))","v":""},"c"]
["SUCMRUR1SOVERG_LESS1_C",null,null,null,{"$f":"_xlfn.XLOOKUP(F2499,'Raw Data'!$I$4:$I$5000,'Raw Data'!$D$4:$D$5000,\"*** Mnemonic not found ***\",0)","v":"*** Mnemonic not found ***"},"SUCMRUR1SOVERG_LESS1_C__",null,"Input",null,null,252,"O","Input!O252",{"$f":"_xlfn.XLOOKUP(F2499,'Raw Data'!$I$4:$I$5000,'Raw Data'!$E$4:$E$5000,100,0)","v":100},{"$f":"IF(N2499=0,_xlfn.XLOOKUP(F2499,'Raw Data'!$I$4:$I$5000,'Raw Data'!$H$4:$H$5000,\"\",0),\"\")","v":""},{"$f":"IF(INDIRECT(M2499) = \"\",\"\",INDIRECT(M2499))","v":""},"c"]
["SUCMRUR1SOVERG_1TO5_C",null,null,null,{"$f":"_xlfn.XLOOKUP(F2500,'Raw Data'!$I$4:$I$5000,'Raw Data'!$D$4:$D$5000,\"*** Mnemonic not found ***\",0)","v":"*** Mnemonic not found ***"},"SUCMRUR1SOVERG_1TO5_C__",null,"Input",null,null,253,"O","Input!O253",{"$f":"_xlfn.XLOOKUP(F2500,'Raw Data'!$I$4:$I$5000,'Raw Data'!$E$4:$E$5000,100,0)","v":100},{"$f":"IF(N2500=0,_xlfn.XLOOKUP(F2500,'Raw Data'!$I$4:$I$5000,'Raw Data'!$H$4:$H$5000,\"\",0),\"\")","v":""},{"$f":"IF(INDIRECT(M2500) = \"\",\"\",INDIRECT(M2500))","v":""},"c"]
["SUCMRUR1SOVERG_5TO10_C",null,null,null,{"$f":"_xlfn.XLOOKUP(F2501,'Raw Data'!$I$4:$I$5000,'Raw Data'!$D$4:$D$5000,\"*** Mnemonic not found ***\",0)","v":"*** Mnemonic not found ***"},"SUCMRUR1SOVERG_5TO10_C__",null,"Input",null,null,254,"O","Input!O254",{"$f":"_xlfn.XLOOKUP(F2501,'Raw Data'!$I$4:$I$5000,'Raw Data'!$E$4:$E$5000,100,0)","v":100},{"$f":"IF(N2501=0,_xlfn.XLOOKUP(F2501,'Raw Data'!$I$4:$I$5000,'Raw Data'!$H$4:$H$5000,\"\",0),\"\")","v":""},{"$f":"IF(INDIRECT(M2501) = \"\",\"\",INDIRECT(M2501))","v":""},"c"]
["SUCMRUR1SOVERG_10TO20_C",null,null,null,{"$f":"_xlfn.XLOOKUP(F2502,'Raw Data'!$I$4:$I$5000,'Raw Data'!$D$4:$D$5000,\"*** Mnemonic not found ***\",0)","v":"*** Mnemonic not found ***"},"SUCMRUR1SOVERG_10TO20_C__",null,"Input",null,null,255,"O","Input!O255",{"$f":"_xlfn.XLOOKUP(F2502,'Raw Data'!$I$4:$I$5000,'Raw Data'!$E$4:$E$5000,100,0)","v":100},{"$f":"IF(N2502=0,_xlfn.XLOOKUP(F2502,'Raw Data'!$I$4:$I$5000,'Raw Data'!$H$4:$H$5000,\"\",0),\"\")","v":""},{"$f":"IF(INDIRECT(M2502) = \"\",\"\",INDIRECT(M2502))","v":""},"c"]
["SUCMRUR1SOVERG_GRTR20_C",null,null,null,{"$f":"_xlfn.XLOOKUP(F2503,'Raw Data'!$I$4:$I$5000,'Raw Data'!$D$4:$D$5000,\"*** Mnemonic not found ***\",0)","v":"*** Mnemonic not found ***"},"SUCMRUR1SOVERG_GRTR20_C__",null,"Input",null,null,256,"O","Input!O256",{"$f":"_xlfn.XLOOKUP(F2503,'Raw Data'!$I$4:$I$5000,'Raw Data'!$E$4:$E$5000,100,0)","v":100},{"$f":"IF(N2503=0,_xlfn.XLOOKUP(F2503,'Raw Data'!$I$4:$I$5000,'Raw Data'!$H$4:$H$5000,\"\",0),\"\")","v":""},{"$f":"IF(INDIRECT(M2503) = \"\",\"\",INDIRECT(M2503))","v":""},"c"]
["SUCMRUR2SOVERGTOT_C",null,null,null,{"$f":"_xlfn.XLOOKUP(F2504,'Raw Data'!$I$4:$I$5000,'Raw Data'!$D$4:$D$5000,\"*** Mnemonic not found ***\",0)","v":"*** Mnemonic not found ***"},"SUCMRUR2SOVERGTOT_C__",null,"Input",null,null,{"$f":"K2503+3","v":259},{"$f":"L2503","v":"O"},"Input!O259",{"$f":"_xlfn.XLOOKUP(F2504,'Raw Data'!$I$4:$I$5000,'Raw Data'!$E$4:$E$5000,100,0)","v":100},{"$f":"IF(N2504=0,_xlfn.XLOOKUP(F2504,'Raw Data'!$I$4:$I$5000,'Raw Data'!$H$4:$H$5000,\"\",0),\"\")","v":""},{"$f":"IF(INDIRECT(M2504) = \"\",\"\",INDIRECT(M2504))","v":""},"c"]
["SUCMRUR2SOVERGERG_C",null,null,null,{"$f":"_xlfn.XLOOKUP(F2505,'Raw Data'!$I$4:$I$5000,'Raw Data'!$D$4:$D$5000,\"*** Mnemonic not found ***\",0)","v":"*** Mnemonic not found ***"},"SUCMRUR2SOVERGERG_C__",null,"Input",null,null,260,"O","Input!O260",{"$f":"_xlfn.XLOOKUP(F2505,'Raw Data'!$I$4:$I$5000,'Raw Data'!$E$4:$E$5000,100,0)","v":100},{"$f":"IF(N2505=0,_xlfn.XLOOKUP(F2505,'Raw Data'!$I$4:$I$5000,'Raw Data'!$H$4:$H$5000,\"\",0),\"\")","v":""},{"$f":"IF(INDIRECT(M2505) = \"\",\"\",INDIRECT(M2505))","v":""},"c"]
["SUCMRUR2SOVERGYRS_C",null,null,null,{"$f":"_xlfn.XLOOKUP(F2506,'Raw Data'!$I$4:$I$5000,'Raw Data'!$D$4:$D$5000,\"*** Mnemonic not found ***\",0)","v":"*** Mnemonic not found ***"},"SUCMRUR2SOVERGYRS_C__",null,"Input",null,null,261,"O","Input!O261",{"$f":"_xlfn.XLOOKUP(F2506,'Raw Data'!$I$4:$I$5000,'Raw Data'!$E$4:$E$5000,100,0)","v":100},{"$f":"IF(N2506=0,_xlfn.XLOOKUP(F2506,'Raw Data'!$I$4:$I$5000,'Raw Data'!$H$4:$H$5000,\"\",0),\"\")","v":""},{"$f":"IF(INDIRECT(M2506) = \"\",\"\",INDIRECT(M2506))","v":""},"c"]
["SUCMRUR2SOVERG_LESS1_C",null,null,null,{"$f":"_xlfn.XLOOKUP(F2507,'Raw Data'!$I$4:$I$5000,'Raw Data'!$D$4:$D$5000,\"*** Mnemonic not found ***\",0)","v":"*** Mnemonic not found ***"},"SUCMRUR2SOVERG_LESS1_C__",null,"Input",null,null,{"$f":"K2506+1","v":262},"O","Input!O262",{"$f":"_xlfn.XLOOKUP(F2507,'Raw Data'!$I$4:$I$5000,'Raw Data'!$E$4:$E$5000,100,0)","v":100},{"$f":"IF(N2507=0,_xlfn.XLOOKUP(F2507,'Raw Data'!$I$4:$I$5000,'Raw Data'!$H$4:$H$5000,\"\",0),\"\")","v":""},{"$f":"IF(INDIRECT(M2507) = \"\",\"\",INDIRECT(M2507))","v":""},"c"]
["SUCMRUR2SOVERG_1TO5_C",null,null,null,{"$f":"_xlfn.XLOOKUP(F2508,'Raw Data'!$I$4:$I$5000,'Raw Data'!$D$4:$D$5000,\"*** Mnemonic not found ***\",0)","v":"*** Mnemonic not found ***"},"SUCMRUR2SOVERG_1TO5_C__",null,"Input",null,null,263,"O","Input!O263",{"$f":"_xlfn.XLOOKUP(F2508,'Raw Data'!$I$4:$I$5000,'Raw Data'!$E$4:$E$5000,100,0)","v":100},{"$f":"IF(N2508=0,_xlfn.XLOOKUP(F2508,'Raw Data'!$I$4:$I$5000,'Raw Data'!$H$4:$H$5000,\"\",0),\"\")","v":""},{"$f":"IF(INDIRECT(M2508) = \"\",\"\",INDIRECT(M2508))","v":""},"c"]
["SUCMRUR2SOVERG_5TO10_C",null,null,null,{"$f":"_xlfn.XLOOKUP(F2509,'Raw Data'!$I$4:$I$5000,'Raw Data'!$D$4:$D$5000,\"*** Mnemonic not found ***\",0)","v":"*** Mnemonic not found ***"},"SUCMRUR2SOVERG_5TO10_C__",null,"Input",null,null,264,"O","Input!O264",{"$f":"_xlfn.XLOOKUP(F2509,'Raw Data'!$I$4:$I$5000,'Raw Data'!$E$4:$E$5000,100,0)","v":100},{"$f":"IF(N2509=0,_xlfn.XLOOKUP(F2509,'Raw Data'!$I$4:$I$5000,'Raw Data'!$H$4:$H$5000,\"\",0),\"\")","v":""},{"$f":"IF(INDIRECT(M2509) = \"\",\"\",INDIRECT(M2509))","v":""},"c"]
["SUCMRUR2SOVERG_10TO20_C",null,null,null,{"$f":"_xlfn.XLOOKUP(F2510,'Raw Data'!$I$4:$I$5000,'Raw Data'!$D$4:$D$5000,\"*** Mnemonic not found ***\",0)","v":"*** Mnemonic not found ***"},{"$f":"CONCATENATE(A2510,\"_\",B2510,\"_\",D2510)","v":"SUCMRUR2SOVERG_10TO20_C__"},null,"Input",null,null,265,"O","Input!O265",{"$f":"_xlfn.XLOOKUP(F2510,'Raw Data'!$I$4:$I$5000,'Raw Data'!$E$4:$E$5000,100,0)","v":100},{"$f":"IF(N2510=0,_xlfn.XLOOKUP(F2510,'Raw Data'!$I$4:$I$5000,'Raw Data'!$H$4:$H$5000,\"\",0),\"\")","v":""},{"$f":"IF(INDIRECT(M2510) = \"\",\"\",INDIRECT(M2510))","v":""},"c"]
["SUCMRUR2SOVERG_GRTR20_C",null,null,null,{"$f":"_xlfn.XLOOKUP(F2511,'Raw Data'!$I$4:$I$5000,'Raw Data'!$D$4:$D$5000,\"*** Mnemonic not found ***\",0)","v":"*** Mnemonic not found ***"},"SUCMRUR2SOVERG_GRTR20_C__",null,"Input",null,null,266,"O","Input!O266",{"$f":"_xlfn.XLOOKUP(F2511,'Raw Data'!$I$4:$I$5000,'Raw Data'!$E$4:$E$5000,100,0)","v":100},{"$f":"IF(N2511=0,_xlfn.XLOOKUP(F2511,'Raw Data'!$I$4:$I$5000,'Raw Data'!$H$4:$H$5000,\"\",0),\"\")","v":""},{"$f":"IF(INDIRECT(M2511) = \"\",\"\",INDIRECT(M2511))","v":""},"c"]
["SUCMRUR3SOVERGTOT_C",null,null,null,{"$f":"_xlfn.XLOOKUP(F2512,'Raw Data'!$I$4:$I$5000,'Raw Data'!$D$4:$D$5000,\"*** Mnemonic not found ***\",0)","v":"*** Mnemonic not found ***"},"SUCMRUR3SOVERGTOT_C__",null,"Input",null,null,{"$f":"K2511+3","v":269},{"$f":"L2511","v":"O"},{"$f":"CONCATENATE(H2512,\"!\",L2512,K2512)","v":"Input!O269"},{"$f":"_xlfn.XLOOKUP(F2512,'Raw Data'!$I$4:$I$5000,'Raw Data'!$E$4:$E$5000,100,0)","v":100},{"$f":"IF(N2512=0,_xlfn.XLOOKUP(F2512,'Raw Data'!$I$4:$I$5000,'Raw Data'!$H$4:$H$5000,\"\",0),\"\")","v":""},{"$f":"IF(INDIRECT(M2512) = \"\",\"\",INDIRECT(M2512))","v":""},"c"]
["SUCMRUR3SOVERGERG_C",null,null,null,{"$f":"_xlfn.XLOOKUP(F2513,'Raw Data'!$I$4:$I$5000,'Raw Data'!$D$4:$D$5000,\"*** Mnemonic not found ***\",0)","v":"*** Mnemonic not found ***"},"SUCMRUR3SOVERGERG_C__",null,"Input",null,null,270,"O","Input!O270",{"$f":"_xlfn.XLOOKUP(F2513,'Raw Data'!$I$4:$I$5000,'Raw Data'!$E$4:$E$5000,100,0)","v":100},{"$f":"IF(N2513=0,_xlfn.XLOOKUP(F2513,'Raw Data'!$I$4:$I$5000,'Raw Data'!$H$4:$H$5000,\"\",0),\"\")","v":""},{"$f":"IF(INDIRECT(M2513) = \"\",\"\",INDIRECT(M2513))","v":""},"c"]
["SUCMRUR3SOVERGYRS_C",null,null,null,{"$f":"_xlfn.XLOOKUP(F2514,'Raw Data'!$I$4:$I$5000,'Raw Data'!$D$4:$D$5000,\"*** Mnemonic not found ***\",0)","v":"*** Mnemonic not found ***"},"SUCMRUR3SOVERGYRS_C__",null,"Input",null,null,271,"O","Input!O271",{"$f":"_xlfn.XLOOKUP(F2514,'Raw Data'!$I$4:$I$5000,'Raw Data'!$E$4:$E$5000,100,0)","v":100},{"$f":"IF(N2514=0,_xlfn.XLOOKUP(F2514,'Raw Data'!$I$4:$I$5000,'Raw Data'!$H$4:$H$5000,\"\",0),\"\")","v":""},{"$f":"IF(INDIRECT(M2514) = \"\",\"\",INDIRECT(M2514))","v":""},"c"]
["SUCMRUR3SOVERG_LESS1_C",null,null,null,{"$f":"_xlfn.XLOOKUP(F2515,'Raw Data'!$I$4:$I$5000,'Raw Data'!$D$4:$D$5000,\"*** Mnemonic not found ***\",0)","v":"*** Mnemonic not found ***"},"SUCMRUR3SOVERG_LESS1_C__",null,"Input",null,null,272,"O","Input!O272",{"$f":"_xlfn.XLOOKUP(F2515,'Raw Data'!$I$4:$I$5000,'Raw Data'!$E$4:$E$5000,100,0)","v":100},{"$f":"IF(N2515=0,_xlfn.XLOOKUP(F2515,'Raw Data'!$I$4:$I$5000,'Raw Data'!$H$4:$H$5000,\"\",0),\"\")","v":""},{"$f":"IF(INDIRECT(M2515) = \"\",\"\",INDIRECT(M2515))","v":""},"c"]
["SUCMRUR3SOVERG_1TO5_C",null,null,null,{"$f":"_xlfn.XLOOKUP(F2516,'Raw Data'!$I$4:$I$5000,'Raw Data'!$D$4:$D$5000,\"*** Mnemonic not found ***\",0)","v":"*** Mnemonic not found ***"},"SUCMRUR3SOVERG_1TO5_C__",null,"Input",null,null,273,"O","Input!O273",{"$f":"_xlfn.XLOOKUP(F2516,'Raw Data'!$I$4:$I$5000,'Raw Data'!$E$4:$E$5000,100,0)","v":100},{"$f":"IF(N2516=0,_xlfn.XLOOKUP(F2516,'Raw Data'!$I$4:$I$5000,'Raw Data'!$H$4:$H$5000,\"\",0),\"\")","v":""},{"$f":"IF(INDIRECT(M2516) = \"\",\"\",INDIRECT(M2516))","v":""},"c"]
["SUCMRUR3SOVERG_5TO10_C",null,null,null,{"$f":"_xlfn.XLOOKUP(F2517,'Raw Data'!$I$4:$I$5000,'Raw Data'!$D$4:$D$5000,\"*** Mnemonic not found ***\",0)","v":"*** Mnemonic not found ***"},"SUCMRUR3SOVERG_5TO10_C__",null,"Input",null,null,274,"O","Input!O274",{"$f":"_xlfn.XLOOKUP(F2517,'Raw Data'!$I$4:$I$5000,'Raw Data'!$E$4:$E$5000,100,0)","v":100},{"$f":"IF(N2517=0,_xlfn.XLOOKUP(F2517,'Raw Data'!$I$4:$I$5000,'Raw Data'!$H$4:$H$5000,\"\",0),\"\")","v":""},{"$f":"IF(INDIRECT(M2517) = \"\",\"\",INDIRECT(M2517))","v":""},"c"]
["SUCMRUR3SOVERG_10TO20_C",null,null,null,{"$f":"_xlfn.XLOOKUP(F2518,'Raw Data'!$I$4:$I$5000,'Raw Data'!$D$4:$D$5000,\"*** Mnemonic not found ***\",0)","v":"*** Mnemonic not found ***"},"SUCMRUR3SOVERG_10TO20_C__",null,"Input",null,null,275,"O","Input!O275",{"$f":"_xlfn.XLOOKUP(F2518,'Raw Data'!$I$4:$I$5000,'Raw Data'!$E$4:$E$5000,100,0)","v":100},{"$f":"IF(N2518=0,_xlfn.XLOOKUP(F2518,'Raw Data'!$I$4:$I$5000,'Raw Data'!$H$4:$H$5000,\"\",0),\"\")","v":""},{"$f":"IF(INDIRECT(M2518) = \"\",\"\",INDIRECT(M2518))","v":""},"c"]
["SUCMRUR3SOVERG_GRTR20_C",null,null,null,{"$f":"_xlfn.XLOOKUP(F2519,'Raw Data'!$I$4:$I$5000,'Raw Data'!$D$4:$D$5000,\"*** Mnemonic not found ***\",0)","v":"*** Mnemonic not found ***"},"SUCMRUR3SOVERG_GRTR20_C__",null,"Input",null,null,276,"O","Input!O276",{"$f":"_xlfn.XLOOKUP(F2519,'Raw Data'!$I$4:$I$5000,'Raw Data'!$E$4:$E$5000,100,0)","v":100},{"$f":"IF(N2519=0,_xlfn.XLOOKUP(F2519,'Raw Data'!$I$4:$I$5000,'Raw Data'!$H$4:$H$5000,\"\",0),\"\")","v":""},{"$f":"IF(INDIRECT(M2519) = \"\",\"\",INDIRECT(M2519))","v":""},"c"]
["SUCMRUR4SFTOT_C",null,null,null,{"$f":"_xlfn.XLOOKUP(F2520,'Raw Data'!$I$4:$I$5000,'Raw Data'!$D$4:$D$5000,\"*** Mnemonic not found ***\",0)","v":"*** Mnemonic not found ***"},"SUCMRUR4SFTOT_C__",null,"Input",null,null,{"$f":"K2519+3","v":279},{"$f":"L2519","v":"O"},"Input!O279",{"$f":"_xlfn.XLOOKUP(F2520,'Raw Data'!$I$4:$I$5000,'Raw Data'!$E$4:$E$5000,100,0)","v":100},{"$f":"IF(N2520=0,_xlfn.XLOOKUP(F2520,'Raw Data'!$I$4:$I$5000,'Raw Data'!$H$4:$H$5000,\"\",0),\"\")","v":""},{"$f":"IF(INDIRECT(M2520) = \"\",\"\",INDIRECT(M2520))","v":""},"c"]
["SUCMRUR4SFERG_C",null,null,null,{"$f":"_xlfn.XLOOKUP(F2521,'Raw Data'!$I$4:$I$5000,'Raw Data'!$D$4:$D$5000,\"*** Mnemonic not found ***\",0)","v":"*** Mnemonic not found ***"},"SUCMRUR4SFERG_C__",null,"Input",null,null,280,"O","Input!O280",{"$f":"_xlfn.XLOOKUP(F2521,'Raw Data'!$I$4:$I$5000,'Raw Data'!$E$4:$E$5000,100,0)","v":100},{"$f":"IF(N2521=0,_xlfn.XLOOKUP(F2521,'Raw Data'!$I$4:$I$5000,'Raw Data'!$H$4:$H$5000,\"\",0),\"\")","v":""},{"$f":"IF(INDIRECT(M2521) = \"\",\"\",INDIRECT(M2521))","v":""},"c"]
["SUCMRUR4SFYRS_C",null,null,null,{"$f":"_xlfn.XLOOKUP(F2522,'Raw Data'!$I$4:$I$5000,'Raw Data'!$D$4:$D$5000,\"*** Mnemonic not found ***\",0)","v":"*** Mnemonic not found ***"},"SUCMRUR4SFYRS_C__",null,"Input",null,null,281,"O","Input!O281",{"$f":"_xlfn.XLOOKUP(F2522,'Raw Data'!$I$4:$I$5000,'Raw Data'!$E$4:$E$5000,100,0)","v":100},{"$f":"IF(N2522=0,_xlfn.XLOOKUP(F2522,'Raw Data'!$I$4:$I$5000,'Raw Data'!$H$4:$H$5000,\"\",0),\"\")","v":""},{"$f":"IF(INDIRECT(M2522) = \"\",\"\",INDIRECT(M2522))","v":""},"c"]
["SUCMRUR4SF_LESS1_C",null,null,null,{"$f":"_xlfn.XLOOKUP(F2523,'Raw Data'!$I$4:$I$5000,'Raw Data'!$D$4:$D$5000,\"*** Mnemonic not found ***\",0)","v":"*** Mnemonic not found ***"},"SUCMRUR4SF_LESS1_C__",null,"Input",null,null,282,"O","Input!O282",{"$f":"_xlfn.XLOOKUP(F2523,'Raw Data'!$I$4:$I$5000,'Raw Data'!$E$4:$E$5000,100,0)","v":100},{"$f":"IF(N2523=0,_xlfn.XLOOKUP(F2523,'Raw Data'!$I$4:$I$5000,'Raw Data'!$H$4:$H$5000,\"\",0),\"\")","v":""},{"$f":"IF(INDIRECT(M2523) = \"\",\"\",INDIRECT(M2523))","v":""},"c"]
["SUCMRUR4SF_1TO5_C",null,null,null,{"$f":"_xlfn.XLOOKUP(F2524,'Raw Data'!$I$4:$I$5000,'Raw Data'!$D$4:$D$5000,\"*** Mnemonic not found ***\",0)","v":"*** Mnemonic not found ***"},"SUCMRUR4SF_1TO5_C__",null,"Input",null,null,283,"O","Input!O283",{"$f":"_xlfn.XLOOKUP(F2524,'Raw Data'!$I$4:$I$5000,'Raw Data'!$E$4:$E$5000,100,0)","v":100},{"$f":"IF(N2524=0,_xlfn.XLOOKUP(F2524,'Raw Data'!$I$4:$I$5000,'Raw Data'!$H$4:$H$5000,\"\",0),\"\")","v":""},{"$f":"IF(INDIRECT(M2524) = \"\",\"\",INDIRECT(M2524))","v":""},"c"]
["SUCMRUR4SF_5TO10_C",null,null,null,{"$f":"_xlfn.XLOOKUP(F2525,'Raw Data'!$I$4:$I$5000,'Raw Data'!$D$4:$D$5000,\"*** Mnemonic not found ***\",0)","v":"*** Mnemonic not found ***"},"SUCMRUR4SF_5TO10_C__",null,"Input",null,null,284,"O","Input!O284",{"$f":"_xlfn.XLOOKUP(F2525,'Raw Data'!$I$4:$I$5000,'Raw Data'!$E$4:$E$5000,100,0)","v":100},{"$f":"IF(N2525=0,_xlfn.XLOOKUP(F2525,'Raw Data'!$I$4:$I$5000,'Raw Data'!$H$4:$H$5000,\"\",0),\"\")","v":""},{"$f":"IF(INDIRECT(M2525) = \"\",\"\",INDIRECT(M2525))","v":""},"c"]
["SUCMRUR4SF_10TO20_C",null,null,null,{"$f":"_xlfn.XLOOKUP(F2526,'Raw Data'!$I$4:$I$5000,'Raw Data'!$D$4:$D$5000,\"*** Mnemonic not found ***\",0)","v":"*** Mnemonic not found ***"},"SUCMRUR4SF_10TO20_C__",null,"Input",null,null,285,"O","Input!O285",{"$f":"_xlfn.XLOOKUP(F2526,'Raw Data'!$I$4:$I$5000,'Raw Data'!$E$4:$E$5000,100,0)","v":100},{"$f":"IF(N2526=0,_xlfn.XLOOKUP(F2526,'Raw Data'!$I$4:$I$5000,'Raw Data'!$H$4:$H$5000,\"\",0),\"\")","v":""},{"$f":"IF(INDIRECT(M2526) = \"\",\"\",INDIRECT(M2526))","v":""},"c"]
["SUCMRUR4SF_GRTR20_C",null,null,null,{"$f":"_xlfn.XLOOKUP(F2527,'Raw Data'!$I$4:$I$5000,'Raw Data'!$D$4:$D$5000,\"*** Mnemonic not found ***\",0)","v":"*** Mnemonic not found ***"},"SUCMRUR4SF_GRTR20_C__",null,"Input",null,null,286,"O","Input!O286",{"$f":"_xlfn.XLOOKUP(F2527,'Raw Data'!$I$4:$I$5000,'Raw Data'!$E$4:$E$5000,100,0)","v":100},{"$f":"IF(N2527=0,_xlfn.XLOOKUP(F2527,'Raw Data'!$I$4:$I$5000,'Raw Data'!$H$4:$H$5000,\"\",0),\"\")","v":""},{"$f":"IF(INDIRECT(M2527) = \"\",\"\",INDIRECT(M2527))","v":""},"c"]
["SUCMRUR4SFMTOT_C",null,null,null,{"$f":"_xlfn.XLOOKUP(F2528,'Raw Data'!$I$4:$I$5000,'Raw Data'!$D$4:$D$5000,\"*** Mnemonic not found ***\",0)","v":"*** Mnemonic not found ***"},"SUCMRUR4SFMTOT_C__",null,"Input",null,null,{"$f":"K2527+3","v":289},{"$f":"L2527","v":"O"},{"$f":"CONCATENATE(H2528,\"!\",L2528,K2528)","v":"Input!O289"},{"$f":"_xlfn.XLOOKUP(F2528,'Raw Data'!$I$4:$I$5000,'Raw Data'!$E$4:$E$5000,100,0)","v":100},{"$f":"IF(N2528=0,_xlfn.XLOOKUP(F2528,'Raw Data'!$I$4:$I$5000,'Raw Data'!$H$4:$H$5000,\"\",0),\"\")","v":""},{"$f":"IF(INDIRECT(M2528) = \"\",\"\",INDIRECT(M2528))","v":""},"c"]
["SUCMRUR4SFMERG_C",null,null,null,{"$f":"_xlfn.XLOOKUP(F2529,'Raw Data'!$I$4:$I$5000,'Raw Data'!$D$4:$D$5000,\"*** Mnemonic not found ***\",0)","v":"*** Mnemonic not found ***"},"SUCMRUR4SFMERG_C__",null,"Input",null,null,290,"O","Input!O290",{"$f":"_xlfn.XLOOKUP(F2529,'Raw Data'!$I$4:$I$5000,'Raw Data'!$E$4:$E$5000,100,0)","v":100},{"$f":"IF(N2529=0,_xlfn.XLOOKUP(F2529,'Raw Data'!$I$4:$I$5000,'Raw Data'!$H$4:$H$5000,\"\",0),\"\")","v":""},{"$f":"IF(INDIRECT(M2529) = \"\",\"\",INDIRECT(M2529))","v":""},"c"]
["SUCMRUR4SFMYRS_C",null,null,null,{"$f":"_xlfn.XLOOKUP(F2530,'Raw Data'!$I$4:$I$5000,'Raw Data'!$D$4:$D$5000,\"*** Mnemonic not found ***\",0)","v":"*** Mnemonic not found ***"},"SUCMRUR4SFMYRS_C__",null,"Input",null,null,291,"O","Input!O291",{"$f":"_xlfn.XLOOKUP(F2530,'Raw Data'!$I$4:$I$5000,'Raw Data'!$E$4:$E$5000,100,0)","v":100},{"$f":"IF(N2530=0,_xlfn.XLOOKUP(F2530,'Raw Data'!$I$4:$I$5000,'Raw Data'!$H$4:$H$5000,\"\",0),\"\")","v":""},{"$f":"IF(INDIRECT(M2530) = \"\",\"\",INDIRECT(M2530))","v":""},"c"]
["SUCMRUR4SFM_LESS1_C",null,null,null,{"$f":"_xlfn.XLOOKUP(F2531,'Raw Data'!$I$4:$I$5000,'Raw Data'!$D$4:$D$5000,\"*** Mnemonic not found ***\",0)","v":"*** Mnemonic not found ***"},"SUCMRUR4SFM_LESS1_C__",null,"Input",null,null,292,"O","Input!O292",{"$f":"_xlfn.XLOOKUP(F2531,'Raw Data'!$I$4:$I$5000,'Raw Data'!$E$4:$E$5000,100,0)","v":100},{"$f":"IF(N2531=0,_xlfn.XLOOKUP(F2531,'Raw Data'!$I$4:$I$5000,'Raw Data'!$H$4:$H$5000,\"\",0),\"\")","v":""},{"$f":"IF(INDIRECT(M2531) = \"\",\"\",INDIRECT(M2531))","v":""},"c"]
["SUCMRUR4SFM_1TO5_C",null,null,null,{"$f":"_xlfn.XLOOKUP(F2532,'Raw Data'!$I$4:$I$5000,'Raw Data'!$D$4:$D$5000,\"*** Mnemonic not found ***\",0)","v":"*** Mnemonic not found ***"},"SUCMRUR4SFM_1TO5_C__",null,"Input",null,null,293,"O","Input!O293",{"$f":"_xlfn.XLOOKUP(F2532,'Raw Data'!$I$4:$I$5000,'Raw Data'!$E$4:$E$5000,100,0)","v":100},{"$f":"IF(N2532=0,_xlfn.XLOOKUP(F2532,'Raw Data'!$I$4:$I$5000,'Raw Data'!$H$4:$H$5000,\"\",0),\"\")","v":""},{"$f":"IF(INDIRECT(M2532) = \"\",\"\",INDIRECT(M2532))","v":""},"c"]
["SUCMRUR4SFM_5TO10_C",null,null,null,{"$f":"_xlfn.XLOOKUP(F2533,'Raw Data'!$I$4:$I$5000,'Raw Data'!$D$4:$D$5000,\"*** Mnemonic not found ***\",0)","v":"*** Mnemonic not found ***"},"SUCMRUR4SFM_5TO10_C__",null,"Input",null,null,294,"O","Input!O294",{"$f":"_xlfn.XLOOKUP(F2533,'Raw Data'!$I$4:$I$5000,'Raw Data'!$E$4:$E$5000,100,0)","v":100},{"$f":"IF(N2533=0,_xlfn.XLOOKUP(F2533,'Raw Data'!$I$4:$I$5000,'Raw Data'!$H$4:$H$5000,\"\",0),\"\")","v":""},{"$f":"IF(INDIRECT(M2533) = \"\",\"\",INDIRECT(M2533))","v":""},"c"]
["SUCMRUR4SFM_10TO20_C",null,null,null,{"$f":"_xlfn.XLOOKUP(F2534,'Raw Data'!$I$4:$I$5000,'Raw Data'!$D$4:$D$5000,\"*** Mnemonic not found ***\",0)","v":"*** Mnemonic not found ***"},"SUCMRUR4SFM_10TO20_C__",null,"Input",null,null,295,"O","Input!O295",{"$f":"_xlfn.XLOOKUP(F2534,'Raw Data'!$I$4:$I$5000,'Raw Data'!$E$4:$E$5000,100,0)","v":100},{"$f":"IF(N2534=0,_xlfn.XLOOKUP(F2534,'Raw Data'!$I$4:$I$5000,'Raw Data'!$H$4:$H$5000,\"\",0),\"\")","v":""},{"$f":"IF(INDIRECT(M2534) = \"\",\"\",INDIRECT(M2534))","v":""},"c"]
["SUCMRUR4SFM_GRTR20_C",null,null,null,{"$f":"_xlfn.XLOOKUP(F2535,'Raw Data'!$I$4:$I$5000,'Raw Data'!$D$4:$D$5000,\"*** Mnemonic not found ***\",0)","v":"*** Mnemonic not found ***"},"SUCMRUR4SFM_GRTR20_C__",null,"Input",null,null,296,"O","Input!O296",{"$f":"_xlfn.XLOOKUP(F2535,'Raw Data'!$I$4:$I$5000,'Raw Data'!$E$4:$E$5000,100,0)","v":100},{"$f":"IF(N2535=0,_xlfn.XLOOKUP(F2535,'Raw Data'!$I$4:$I$5000,'Raw Data'!$H$4:$H$5000,\"\",0),\"\")","v":""},{"$f":"IF(INDIRECT(M2535) = \"\",\"\",INDIRECT(M2535))","v":""},"c"]
["SUCMRUR4SFJTOT_C",null,null,null,{"$f":"_xlfn.XLOOKUP(F2536,'Raw Data'!$I$4:$I$5000,'Raw Data'!$D$4:$D$5000,\"*** Mnemonic not found ***\",0)","v":"*** Mnemonic not found ***"},"SUCMRUR4SFJTOT_C__",null,"Input",null,null,{"$f":"K2535+3","v":299},{"$f":"L2535","v":"O"},{"$f":"CONCATENATE(H2536,\"!\",L2536,K2536)","v":"Input!O299"},{"$f":"_xlfn.XLOOKUP(F2536,'Raw Data'!$I$4:$I$5000,'Raw Data'!$E$4:$E$5000,100,0)","v":100},{"$f":"IF(N2536=0,_xlfn.XLOOKUP(F2536,'Raw Data'!$I$4:$I$5000,'Raw Data'!$H$4:$H$5000,\"\",0),\"\")","v":""},{"$f":"IF(INDIRECT(M2536) = \"\",\"\",INDIRECT(M2536))","v":""},"c"]
["SUCMRUR4SFJERG_C",null,null,null,{"$f":"_xlfn.XLOOKUP(F2537,'Raw Data'!$I$4:$I$5000,'Raw Data'!$D$4:$D$5000,\"*** Mnemonic not found ***\",0)","v":"*** Mnemonic not found ***"},"SUCMRUR4SFJERG_C__",null,"Input",null,null,300,"O","Input!O300",{"$f":"_xlfn.XLOOKUP(F2537,'Raw Data'!$I$4:$I$5000,'Raw Data'!$E$4:$E$5000,100,0)","v":100},{"$f":"IF(N2537=0,_xlfn.XLOOKUP(F2537,'Raw Data'!$I$4:$I$5000,'Raw Data'!$H$4:$H$5000,\"\",0),\"\")","v":""},{"$f":"IF(INDIRECT(M2537) = \"\",\"\",INDIRECT(M2537))","v":""},"c"]
["SUCMRUR4SFJYRS_C",null,null,null,{"$f":"_xlfn.XLOOKUP(F2538,'Raw Data'!$I$4:$I$5000,'Raw Data'!$D$4:$D$5000,\"*** Mnemonic not found ***\",0)","v":"*** Mnemonic not found ***"},"SUCMRUR4SFJYRS_C__",null,"Input",null,null,301,"O","Input!O301",{"$f":"_xlfn.XLOOKUP(F2538,'Raw Data'!$I$4:$I$5000,'Raw Data'!$E$4:$E$5000,100,0)","v":100},{"$f":"IF(N2538=0,_xlfn.XLOOKUP(F2538,'Raw Data'!$I$4:$I$5000,'Raw Data'!$H$4:$H$5000,\"\",0),\"\")","v":""},{"$f":"IF(INDIRECT(M2538) = \"\",\"\",INDIRECT(M2538))","v":""},"c"]
["SUCMRUR4SFJ_LESS1_C",null,null,null,{"$f":"_xlfn.XLOOKUP(F2539,'Raw Data'!$I$4:$I$5000,'Raw Data'!$D$4:$D$5000,\"*** Mnemonic not found ***\",0)","v":"*** Mnemonic not found ***"},"SUCMRUR4SFJ_LESS1_C__",null,"Input",null,null,302,"O","Input!O302",{"$f":"_xlfn.XLOOKUP(F2539,'Raw Data'!$I$4:$I$5000,'Raw Data'!$E$4:$E$5000,100,0)","v":100},{"$f":"IF(N2539=0,_xlfn.XLOOKUP(F2539,'Raw Data'!$I$4:$I$5000,'Raw Data'!$H$4:$H$5000,\"\",0),\"\")","v":""},{"$f":"IF(INDIRECT(M2539) = \"\",\"\",INDIRECT(M2539))","v":""},"c"]
["SUCMRUR4SFJ_1TO5_C",null,null,null,{"$f":"_xlfn.XLOOKUP(F2540,'Raw Data'!$I$4:$I$5000,'Raw Data'!$D$4:$D$5000,\"*** Mnemonic not found ***\",0)","v":"*** Mnemonic not found ***"},"SUCMRUR4SFJ_1TO5_C__",null,"Input",null,null,303,"O","Input!O303",{"$f":"_xlfn.XLOOKUP(F2540,'Raw Data'!$I$4:$I$5000,'Raw Data'!$E$4:$E$5000,100,0)","v":100},{"$f":"IF(N2540=0,_xlfn.XLOOKUP(F2540,'Raw Data'!$I$4:$I$5000,'Raw Data'!$H$4:$H$5000,\"\",0),\"\")","v":""},{"$f":"IF(INDIRECT(M2540) = \"\",\"\",INDIRECT(M2540))","v":""},"c"]
["SUCMRUR4SFJ_5TO10_C",null,null,null,{"$f":"_xlfn.XLOOKUP(F2541,'Raw Data'!$I$4:$I$5000,'Raw Data'!$D$4:$D$5000,\"*** Mnemonic not found ***\",0)","v":"*** Mnemonic not found ***"},"SUCMRUR4SFJ_5TO10_C__",null,"Input",null,null,304,"O","Input!O304",{"$f":"_xlfn.XLOOKUP(F2541,'Raw Data'!$I$4:$I$5000,'Raw Data'!$E$4:$E$5000,100,0)","v":100},{"$f":"IF(N2541=0,_xlfn.XLOOKUP(F2541,'Raw Data'!$I$4:$I$5000,'Raw Data'!$H$4:$H$5000,\"\",0),\"\")","v":""},{"$f":"IF(INDIRECT(M2541) = \"\",\"\",INDIRECT(M2541))","v":""},"c"]
["SUCMRUR4SFJ_10TO20_C",null,null,null,{"$f":"_xlfn.XLOOKUP(F2542,'Raw Data'!$I$4:$I$5000,'Raw Data'!$D$4:$D$5000,\"*** Mnemonic not found ***\",0)","v":"*** Mnemonic not found ***"},"SUCMRUR4SFJ_10TO20_C__",null,"Input",null,null,305,"O","Input!O305",{"$f":"_xlfn.XLOOKUP(F2542,'Raw Data'!$I$4:$I$5000,'Raw Data'!$E$4:$E$5000,100,0)","v":100},{"$f":"IF(N2542=0,_xlfn.XLOOKUP(F2542,'Raw Data'!$I$4:$I$5000,'Raw Data'!$H$4:$H$5000,\"\",0),\"\")","v":""},{"$f":"IF(INDIRECT(M2542) = \"\",\"\",INDIRECT(M2542))","v":""},"c"]
["SUCMRUR4SFJ_GRTR20_C",null,null,null,{"$f":"_xlfn.XLOOKUP(F2543,'Raw Data'!$I$4:$I$5000,'Raw Data'!$D$4:$D$5000,\"*** Mnemonic not found ***\",0)","v":"*** Mnemonic not found ***"},"SUCMRUR4SFJ_GRTR20_C__",null,"Input",null,null,306,"O","Input!O306",{"$f":"_xlfn.XLOOKUP(F2543,'Raw Data'!$I$4:$I$5000,'Raw Data'!$E$4:$E$5000,100,0)","v":100},{"$f":"IF(N2543=0,_xlfn.XLOOKUP(F2543,'Raw Data'!$I$4:$I$5000,'Raw Data'!$H$4:$H$5000,\"\",0),\"\")","v":""},{"$f":"IF(INDIRECT(M2543) = \"\",\"\",INDIRECT(M2543))","v":""},"c"]
["SUCMERGMRCNFC_C",null,null,null,{"$f":"_xlfn.XLOOKUP(F2544,'Raw Data'!$I$4:$I$5000,'Raw Data'!$D$4:$D$5000,\"*** Mnemonic not found ***\",0)","v":"*** Mnemonic not found ***"},"SUCMERGMRCNFC_C__","Comments - S&P Unrated Bonds ERG to Rating","Input",{"$f":"ROW(section_erg_to_rtg_map)","v":309},4,{"$f":"I2544+J2544","v":313},{"$f":"L2527","v":"O"},"Input!O313",{"$f":"_xlfn.XLOOKUP(F2544,'Raw Data'!$I$4:$I$5000,'Raw Data'!$E$4:$E$5000,100,0)","v":100},{"$f":"IF(N2544=0,_xlfn.XLOOKUP(F2544,'Raw Data'!$I$4:$I$5000,'Raw Data'!$H$4:$H$5000,\"\",0),\"\")","v":""},{"$f":"IF(INDIRECT(M2544) = \"\",\"\",INDIRECT(M2544))","v":""},"c"]
["SUCMERGADJNFC_C",null,null,null,{"$f":"_xlfn.XLOOKUP(F2545,'Raw Data'!$I$4:$I$5000,'Raw Data'!$D$4:$D$5000,\"*** Mnemonic not found ***\",0)","v":"*** Mnemonic not found ***"},"SUCMERGADJNFC_C__",null,"Input",null,null,{"$f":"K2544+1","v":314},"O","Input!O314",{"$f":"_xlfn.XLOOKUP(F2545,'Raw Data'!$I$4:$I$5000,'Raw Data'!$E$4:$E$5000,100,0)","v":100},{"$f":"IF(N2545=0,_xlfn.XLOOKUP(F2545,'Raw Data'!$I$4:$I$5000,'Raw Data'!$H$4:$H$5000,\"\",0),\"\")","v":""},{"$f":"IF(INDIRECT(M2545) = \"\",\"\",INDIRECT(M2545))","v":""},"c"]
["SUCMERGARBNFC_C",null,null,null,{"$f":"_xlfn.XLOOKUP(F2546,'Raw Data'!$I$4:$I$5000,'Raw Data'!$D$4:$D$5000,\"*** Mnemonic not found ***\",0)","v":"*** Mnemonic not found ***"},"SUCMERGARBNFC_C__",null,"Input",null,null,{"$f":"K2545+1","v":315},"O","Input!O315",{"$f":"_xlfn.XLOOKUP(F2546,'Raw Data'!$I$4:$I$5000,'Raw Data'!$E$4:$E$5000,100,0)","v":100},{"$f":"IF(N2546=0,_xlfn.XLOOKUP(F2546,'Raw Data'!$I$4:$I$5000,'Raw Data'!$H$4:$H$5000,\"\",0),\"\")","v":""},{"$f":"IF(INDIRECT(M2546) = \"\",\"\",INDIRECT(M2546))","v":""},"c"]
["SUCMERGMRCFIN_C",null,null,null,{"$f":"_xlfn.XLOOKUP(F2547,'Raw Data'!$I$4:$I$5000,'Raw Data'!$D$4:$D$5000,\"*** Mnemonic not found ***\",0)","v":"*** Mnemonic not found ***"},"SUCMERGMRCFIN_C__",null,"Input",null,null,{"$f":"K2546+2","v":317},"O","Input!O317",{"$f":"_xlfn.XLOOKUP(F2547,'Raw Data'!$I$4:$I$5000,'Raw Data'!$E$4:$E$5000,100,0)","v":100},{"$f":"IF(N2547=0,_xlfn.XLOOKUP(F2547,'Raw Data'!$I$4:$I$5000,'Raw Data'!$H$4:$H$5000,\"\",0),\"\")","v":""},{"$f":"IF(INDIRECT(M2547) = \"\",\"\",INDIRECT(M2547))","v":""},"c"]
["SUCMERGADJFIN_C",null,null,null,{"$f":"_xlfn.XLOOKUP(F2548,'Raw Data'!$I$4:$I$5000,'Raw Data'!$D$4:$D$5000,\"*** Mnemonic not found ***\",0)","v":"*** Mnemonic not found ***"},"SUCMERGADJFIN_C__",null,"Input",null,null,318,"O","Input!O318",{"$f":"_xlfn.XLOOKUP(F2548,'Raw Data'!$I$4:$I$5000,'Raw Data'!$E$4:$E$5000,100,0)","v":100},{"$f":"IF(N2548=0,_xlfn.XLOOKUP(F2548,'Raw Data'!$I$4:$I$5000,'Raw Data'!$H$4:$H$5000,\"\",0),\"\")","v":""},{"$f":"IF(INDIRECT(M2548) = \"\",\"\",INDIRECT(M2548))","v":""},"c"]
["SUCMERGARBFIN_C",null,null,null,{"$f":"_xlfn.XLOOKUP(F2549,'Raw Data'!$I$4:$I$5000,'Raw Data'!$D$4:$D$5000,\"*** Mnemonic not found ***\",0)","v":"*** Mnemonic not found ***"},"SUCMERGARBFIN_C__",null,"Input",null,null,319,{"$f":"L2548","v":"O"},"Input!O319",{"$f":"_xlfn.XLOOKUP(F2549,'Raw Data'!$I$4:$I$5000,'Raw Data'!$E$4:$E$5000,100,0)","v":100},{"$f":"IF(N2549=0,_xlfn.XLOOKUP(F2549,'Raw Data'!$I$4:$I$5000,'Raw Data'!$H$4:$H$5000,\"\",0),\"\")","v":""},{"$f":"IF(INDIRECT(M2549) = \"\",\"\",INDIRECT(M2549))","v":""},"c"]
["SUCMERGMRCSOVER_C",null,null,null,{"$f":"_xlfn.XLOOKUP(F2550,'Raw Data'!$I$4:$I$5000,'Raw Data'!$D$4:$D$5000,\"*** Mnemonic not found ***\",0)","v":"*** Mnemonic not found ***"},"SUCMERGMRCSOVER_C__",null,"Input",null,null,{"$f":"K2549+2","v":321},"O","Input!O321",{"$f":"_xlfn.XLOOKUP(F2550,'Raw Data'!$I$4:$I$5000,'Raw Data'!$E$4:$E$5000,100,0)","v":100},{"$f":"IF(N2550=0,_xlfn.XLOOKUP(F2550,'Raw Data'!$I$4:$I$5000,'Raw Data'!$H$4:$H$5000,\"\",0),\"\")","v":""},{"$f":"IF(INDIRECT(M2550) = \"\",\"\",INDIRECT(M2550))","v":""},"c"]
["SUCMERGADJSOVER_C",null,null,null,{"$f":"_xlfn.XLOOKUP(F2551,'Raw Data'!$I$4:$I$5000,'Raw Data'!$D$4:$D$5000,\"*** Mnemonic not found ***\",0)","v":"*** Mnemonic not found ***"},"SUCMERGADJSOVER_C__",null,"Input",null,null,322,"O","Input!O322",{"$f":"_xlfn.XLOOKUP(F2551,'Raw Data'!$I$4:$I$5000,'Raw Data'!$E$4:$E$5000,100,0)","v":100},{"$f":"IF(N2551=0,_xlfn.XLOOKUP(F2551,'Raw Data'!$I$4:$I$5000,'Raw Data'!$H$4:$H$5000,\"\",0),\"\")","v":""},{"$f":"IF(INDIRECT(M2551) = \"\",\"\",INDIRECT(M2551))","v":""},"c"]
["SUCMERGARBSOVER_C",null,null,null,{"$f":"_xlfn.XLOOKUP(F2552,'Raw Data'!$I$4:$I$5000,'Raw Data'!$D$4:$D$5000,\"*** Mnemonic not found ***\",0)","v":"*** Mnemonic not found ***"},"SUCMERGARBSOVER_C__",null,"Input",null,null,323,"O","Input!O323",{"$f":"_xlfn.XLOOKUP(F2552,'Raw Data'!$I$4:$I$5000,'Raw Data'!$E$4:$E$5000,100,0)","v":100},{"$f":"IF(N2552=0,_xlfn.XLOOKUP(F2552,'Raw Data'!$I$4:$I$5000,'Raw Data'!$H$4:$H$5000,\"\",0),\"\")","v":""},{"$f":"IF(INDIRECT(M2552) = \"\",\"\",INDIRECT(M2552))","v":""},"c"]
["SUCMERGMRCSF_C",null,null,null,{"$f":"_xlfn.XLOOKUP(F2553,'Raw Data'!$I$4:$I$5000,'Raw Data'!$D$4:$D$5000,\"*** Mnemonic not found ***\",0)","v":"*** Mnemonic not found ***"},"SUCMERGMRCSF_C__",null,"Input",null,null,{"$f":"K2552+2","v":325},"O","Input!O325",{"$f":"_xlfn.XLOOKUP(F2553,'Raw Data'!$I$4:$I$5000,'Raw Data'!$E$4:$E$5000,100,0)","v":100},{"$f":"IF(N2553=0,_xlfn.XLOOKUP(F2553,'Raw Data'!$I$4:$I$5000,'Raw Data'!$H$4:$H$5000,\"\",0),\"\")","v":""},{"$f":"IF(INDIRECT(M2553) = \"\",\"\",INDIRECT(M2553))","v":""},"c"]
["SUCMERGADJSF_C",null,null,null,{"$f":"_xlfn.XLOOKUP(F2554,'Raw Data'!$I$4:$I$5000,'Raw Data'!$D$4:$D$5000,\"*** Mnemonic not found ***\",0)","v":"*** Mnemonic not found ***"},"SUCMERGADJSF_C__",null,"Input",null,null,326,"O","Input!O326",{"$f":"_xlfn.XLOOKUP(F2554,'Raw Data'!$I$4:$I$5000,'Raw Data'!$E$4:$E$5000,100,0)","v":100},{"$f":"IF(N2554=0,_xlfn.XLOOKUP(F2554,'Raw Data'!$I$4:$I$5000,'Raw Data'!$H$4:$H$5000,\"\",0),\"\")","v":""},{"$f":"IF(INDIRECT(M2554) = \"\",\"\",INDIRECT(M2554))","v":""},"c"]
["SUCMERGARBSF_C",null,null,null,{"$f":"_xlfn.XLOOKUP(F2555,'Raw Data'!$I$4:$I$5000,'Raw Data'!$D$4:$D$5000,\"*** Mnemonic not found ***\",0)","v":"*** Mnemonic not found ***"},"SUCMERGARBSF_C__",null,"Input",null,null,327,"O","Input!O327",{"$f":"_xlfn.XLOOKUP(F2555,'Raw Data'!$I$4:$I$5000,'Raw Data'!$E$4:$E$5000,100,0)","v":100},{"$f":"IF(N2555=0,_xlfn.XLOOKUP(F2555,'Raw Data'!$I$4:$I$5000,'Raw Data'!$H$4:$H$5000,\"\",0),\"\")","v":""},{"$f":"IF(INDIRECT(M2555) = \"\",\"\",INDIRECT(M2555))","v":""},"c"]
["SUCMERGMRCSFM_C",null,null,null,{"$f":"_xlfn.XLOOKUP(F2556,'Raw Data'!$I$4:$I$5000,'Raw Data'!$D$4:$D$5000,\"*** Mnemonic not found ***\",0)","v":"*** Mnemonic not found ***"},"SUCMERGMRCSFM_C__",null,"Input",null,null,{"$f":"K2555+2","v":329},"O",{"$f":"CONCATENATE(H2556,\"!\",L2556,K2556)","v":"Input!O329"},{"$f":"_xlfn.XLOOKUP(F2556,'Raw Data'!$I$4:$I$5000,'Raw Data'!$E$4:$E$5000,100,0)","v":100},{"$f":"IF(N2556=0,_xlfn.XLOOKUP(F2556,'Raw Data'!$I$4:$I$5000,'Raw Data'!$H$4:$H$5000,\"\",0),\"\")","v":""},{"$f":"IF(INDIRECT(M2556) = \"\",\"\",INDIRECT(M2556))","v":""},"c"]
["SUCMERGADJSFM_C",null,null,null,{"$f":"_xlfn.XLOOKUP(F2557,'Raw Data'!$I$4:$I$5000,'Raw Data'!$D$4:$D$5000,\"*** Mnemonic not found ***\",0)","v":"*** Mnemonic not found ***"},"SUCMERGADJSFM_C__",null,"Input",null,null,330,"O","Input!O330",{"$f":"_xlfn.XLOOKUP(F2557,'Raw Data'!$I$4:$I$5000,'Raw Data'!$E$4:$E$5000,100,0)","v":100},{"$f":"IF(N2557=0,_xlfn.XLOOKUP(F2557,'Raw Data'!$I$4:$I$5000,'Raw Data'!$H$4:$H$5000,\"\",0),\"\")","v":""},{"$f":"IF(INDIRECT(M2557) = \"\",\"\",INDIRECT(M2557))","v":""},"c"]
["SUCMERGARBSFM_C",null,null,null,{"$f":"_xlfn.XLOOKUP(F2558,'Raw Data'!$I$4:$I$5000,'Raw Data'!$D$4:$D$5000,\"*** Mnemonic not found ***\",0)","v":"*** Mnemonic not found ***"},"SUCMERGARBSFM_C__",null,"Input",null,null,331,"O","Input!O331",{"$f":"_xlfn.XLOOKUP(F2558,'Raw Data'!$I$4:$I$5000,'Raw Data'!$E$4:$E$5000,100,0)","v":100},{"$f":"IF(N2558=0,_xlfn.XLOOKUP(F2558,'Raw Data'!$I$4:$I$5000,'Raw Data'!$H$4:$H$5000,\"\",0),\"\")","v":""},{"$f":"IF(INDIRECT(M2558) = \"\",\"\",INDIRECT(M2558))","v":""},"c"]
["SUCMERGMRCSFJ_C",null,null,null,{"$f":"_xlfn.XLOOKUP(F2559,'Raw Data'!$I$4:$I$5000,'Raw Data'!$D$4:$D$5000,\"*** Mnemonic not found ***\",0)","v":"*** Mnemonic not found ***"},"SUCMERGMRCSFJ_C__",null,"Input",null,null,{"$f":"K2558+2","v":333},"O",{"$f":"CONCATENATE(H2559,\"!\",L2559,K2559)","v":"Input!O333"},{"$f":"_xlfn.XLOOKUP(F2559,'Raw Data'!$I$4:$I$5000,'Raw Data'!$E$4:$E$5000,100,0)","v":100},{"$f":"IF(N2559=0,_xlfn.XLOOKUP(F2559,'Raw Data'!$I$4:$I$5000,'Raw Data'!$H$4:$H$5000,\"\",0),\"\")","v":""},{"$f":"IF(INDIRECT(M2559) = \"\",\"\",INDIRECT(M2559))","v":""},"c"]
["SUCMERGADJSFJ_C",null,null,null,{"$f":"_xlfn.XLOOKUP(F2560,'Raw Data'!$I$4:$I$5000,'Raw Data'!$D$4:$D$5000,\"*** Mnemonic not found ***\",0)","v":"*** Mnemonic not found ***"},"SUCMERGADJSFJ_C__",null,"Input",null,null,334,"O","Input!O334",{"$f":"_xlfn.XLOOKUP(F2560,'Raw Data'!$I$4:$I$5000,'Raw Data'!$E$4:$E$5000,100,0)","v":100},{"$f":"IF(N2560=0,_xlfn.XLOOKUP(F2560,'Raw Data'!$I$4:$I$5000,'Raw Data'!$H$4:$H$5000,\"\",0),\"\")","v":""},{"$f":"IF(INDIRECT(M2560) = \"\",\"\",INDIRECT(M2560))","v":""},"c"]
["SUCMERGARBSFJ_C",null,null,null,{"$f":"_xlfn.XLOOKUP(F2561,'Raw Data'!$I$4:$I$5000,'Raw Data'!$D$4:$D$5000,\"*** Mnemonic not found ***\",0)","v":"*** Mnemonic not found ***"},"SUCMERGARBSFJ_C__",null,"Input",null,null,335,"O","Input!O335",{"$f":"_xlfn.XLOOKUP(F2561,'Raw Data'!$I$4:$I$5000,'Raw Data'!$E$4:$E$5000,100,0)","v":100},{"$f":"IF(N2561=0,_xlfn.XLOOKUP(F2561,'Raw Data'!$I$4:$I$5000,'Raw Data'!$H$4:$H$5000,\"\",0),\"\")","v":""},{"$f":"IF(INDIRECT(M2561) = \"\",\"\",INDIRECT(M2561))","v":""},"c"]
["SUCMEQHOLDGR1_C",null,null,null,{"$f":"_xlfn.XLOOKUP(F2562,'Raw Data'!$I$4:$I$5000,'Raw Data'!$D$4:$D$5000,\"*** Mnemonic not found ***\",0)","v":"*** Mnemonic not found ***"},"SUCMEQHOLDGR1_C__","Comments - Equity","Input",{"$f":"ROW(section_equity)","v":343},3,{"$f":"I2562+J2562","v":346},{"$f":"L2555","v":"O"},"Input!O346",{"$f":"_xlfn.XLOOKUP(F2562,'Raw Data'!$I$4:$I$5000,'Raw Data'!$E$4:$E$5000,100,0)","v":100},{"$f":"IF(N2562=0,_xlfn.XLOOKUP(F2562,'Raw Data'!$I$4:$I$5000,'Raw Data'!$H$4:$H$5000,\"\",0),\"\")","v":""},{"$f":"IF(INDIRECT(M2562) = \"\",\"\",INDIRECT(M2562))","v":""},"c"]
["SUCMEQHOLDGR2_C",null,null,null,{"$f":"_xlfn.XLOOKUP(F2563,'Raw Data'!$I$4:$I$5000,'Raw Data'!$D$4:$D$5000,\"*** Mnemonic not found ***\",0)","v":"*** Mnemonic not found ***"},"SUCMEQHOLDGR2_C__",null,"Input",null,null,{"$f":"K2562+1","v":347},"O","Input!O347",{"$f":"_xlfn.XLOOKUP(F2563,'Raw Data'!$I$4:$I$5000,'Raw Data'!$E$4:$E$5000,100,0)","v":100},{"$f":"IF(N2563=0,_xlfn.XLOOKUP(F2563,'Raw Data'!$I$4:$I$5000,'Raw Data'!$H$4:$H$5000,\"\",0),\"\")","v":""},{"$f":"IF(INDIRECT(M2563) = \"\",\"\",INDIRECT(M2563))","v":""},"c"]
["SUCMEQHOLDGR3_C",null,null,null,{"$f":"_xlfn.XLOOKUP(F2564,'Raw Data'!$I$4:$I$5000,'Raw Data'!$D$4:$D$5000,\"*** Mnemonic not found ***\",0)","v":"*** Mnemonic not found ***"},"SUCMEQHOLDGR3_C__",null,"Input",null,null,348,"O","Input!O348",{"$f":"_xlfn.XLOOKUP(F2564,'Raw Data'!$I$4:$I$5000,'Raw Data'!$E$4:$E$5000,100,0)","v":100},{"$f":"IF(N2564=0,_xlfn.XLOOKUP(F2564,'Raw Data'!$I$4:$I$5000,'Raw Data'!$H$4:$H$5000,\"\",0),\"\")","v":""},{"$f":"IF(INDIRECT(M2564) = \"\",\"\",INDIRECT(M2564))","v":""},"c"]
["SUCMEQHOLDGR4_C",null,null,null,{"$f":"_xlfn.XLOOKUP(F2565,'Raw Data'!$I$4:$I$5000,'Raw Data'!$D$4:$D$5000,\"*** Mnemonic not found ***\",0)","v":"*** Mnemonic not found ***"},"SUCMEQHOLDGR4_C__",null,"Input",null,null,349,"O","Input!O349",{"$f":"_xlfn.XLOOKUP(F2565,'Raw Data'!$I$4:$I$5000,'Raw Data'!$E$4:$E$5000,100,0)","v":100},{"$f":"IF(N2565=0,_xlfn.XLOOKUP(F2565,'Raw Data'!$I$4:$I$5000,'Raw Data'!$H$4:$H$5000,\"\",0),\"\")","v":""},{"$f":"IF(INDIRECT(M2565) = \"\",\"\",INDIRECT(M2565))","v":""},"c"]
["SUCMEQHOLDTOT_C",null,null,null,{"$f":"_xlfn.XLOOKUP(F2566,'Raw Data'!$I$4:$I$5000,'Raw Data'!$D$4:$D$5000,\"*** Mnemonic not found ***\",0)","v":"*** Mnemonic not found ***"},"SUCMEQHOLDTOT_C__",null,"Input",null,null,{"$f":"K2565+2","v":351},"O","Input!O351",{"$f":"_xlfn.XLOOKUP(F2566,'Raw Data'!$I$4:$I$5000,'Raw Data'!$E$4:$E$5000,100,0)","v":100},{"$f":"IF(N2566=0,_xlfn.XLOOKUP(F2566,'Raw Data'!$I$4:$I$5000,'Raw Data'!$H$4:$H$5000,\"\",0),\"\")","v":""},{"$f":"IF(INDIRECT(M2566) = \"\",\"\",INDIRECT(M2566))","v":""},"c"]
["SUCMREGR1_C",null,null,null,{"$f":"_xlfn.XLOOKUP(F2567,'Raw Data'!$I$4:$I$5000,'Raw Data'!$D$4:$D$5000,\"*** Mnemonic not found ***\",0)","v":"*** Mnemonic not found ***"},"SUCMREGR1_C__","Comments - Real Estate","Input",{"$f":"ROW(section_real_estate)","v":354},3,{"$f":"I2567+J2567","v":357},{"$f":"L2566","v":"O"},"Input!O357",{"$f":"_xlfn.XLOOKUP(F2567,'Raw Data'!$I$4:$I$5000,'Raw Data'!$E$4:$E$5000,100,0)","v":100},{"$f":"IF(N2567=0,_xlfn.XLOOKUP(F2567,'Raw Data'!$I$4:$I$5000,'Raw Data'!$H$4:$H$5000,\"\",0),\"\")","v":""},{"$f":"IF(INDIRECT(M2567) = \"\",\"\",INDIRECT(M2567))","v":""},"c"]
["SUCMREGR2_C",null,null,null,{"$f":"_xlfn.XLOOKUP(F2568,'Raw Data'!$I$4:$I$5000,'Raw Data'!$D$4:$D$5000,\"*** Mnemonic not found ***\",0)","v":"*** Mnemonic not found ***"},"SUCMREGR2_C__",null,"Input",null,null,{"$f":"K2567+1","v":358},"O","Input!O358",{"$f":"_xlfn.XLOOKUP(F2568,'Raw Data'!$I$4:$I$5000,'Raw Data'!$E$4:$E$5000,100,0)","v":100},{"$f":"IF(N2568=0,_xlfn.XLOOKUP(F2568,'Raw Data'!$I$4:$I$5000,'Raw Data'!$H$4:$H$5000,\"\",0),\"\")","v":""},{"$f":"IF(INDIRECT(M2568) = \"\",\"\",INDIRECT(M2568))","v":""},"c"]
["SUCMREGR3_C",null,null,null,{"$f":"_xlfn.XLOOKUP(F2569,'Raw Data'!$I$4:$I$5000,'Raw Data'!$D$4:$D$5000,\"*** Mnemonic not found ***\",0)","v":"*** Mnemonic not found ***"},"SUCMREGR3_C__",null,"Input",null,null,359,"O","Input!O359",{"$f":"_xlfn.XLOOKUP(F2569,'Raw Data'!$I$4:$I$5000,'Raw Data'!$E$4:$E$5000,100,0)","v":100},{"$f":"IF(N2569=0,_xlfn.XLOOKUP(F2569,'Raw Data'!$I$4:$I$5000,'Raw Data'!$H$4:$H$5000,\"\",0),\"\")","v":""},{"$f":"IF(INDIRECT(M2569) = \"\",\"\",INDIRECT(M2569))","v":""},"c"]
["SUCMREGR4_C",null,null,null,{"$f":"_xlfn.XLOOKUP(F2570,'Raw Data'!$I$4:$I$5000,'Raw Data'!$D$4:$D$5000,\"*** Mnemonic not found ***\",0)","v":"*** Mnemonic not found ***"},"SUCMREGR4_C__",null,"Input",null,null,360,"O","Input!O360",{"$f":"_xlfn.XLOOKUP(F2570,'Raw Data'!$I$4:$I$5000,'Raw Data'!$E$4:$E$5000,100,0)","v":100},{"$f":"IF(N2570=0,_xlfn.XLOOKUP(F2570,'Raw Data'!$I$4:$I$5000,'Raw Data'!$H$4:$H$5000,\"\",0),\"\")","v":""},{"$f":"IF(INDIRECT(M2570) = \"\",\"\",INDIRECT(M2570))","v":""},"c"]
["SUCMRETOT_C",null,null,null,{"$f":"_xlfn.XLOOKUP(F2571,'Raw Data'!$I$4:$I$5000,'Raw Data'!$D$4:$D$5000,\"*** Mnemonic not found ***\",0)","v":"*** Mnemonic not found ***"},"SUCMRETOT_C__",null,"Input",null,null,{"$f":"K2570+2","v":362},"O","Input!O362",{"$f":"_xlfn.XLOOKUP(F2571,'Raw Data'!$I$4:$I$5000,'Raw Data'!$E$4:$E$5000,100,0)","v":100},{"$f":"IF(N2571=0,_xlfn.XLOOKUP(F2571,'Raw Data'!$I$4:$I$5000,'Raw Data'!$H$4:$H$5000,\"\",0),\"\")","v":""},{"$f":"IF(INDIRECT(M2571) = \"\",\"\",INDIRECT(M2571))","v":""},"c"]
["SUCMCMIG_LESS60_C",null,null,null,{"$f":"_xlfn.XLOOKUP(F2572,'Raw Data'!$I$4:$I$5000,'Raw Data'!$D$4:$D$5000,\"*** Mnemonic not found ***\",0)","v":"*** Mnemonic not found ***"},"SUCMCMIG_LESS60_C__","Comments - Other Invested Assets","Input",{"$f":"ROW(section_other_invested_assets)","v":365},6,{"$f":"I2572+J2572","v":371},{"$f":"L2571","v":"O"},"Input!O371",{"$f":"_xlfn.XLOOKUP(F2572,'Raw Data'!$I$4:$I$5000,'Raw Data'!$E$4:$E$5000,100,0)","v":100},{"$f":"IF(N2572=0,_xlfn.XLOOKUP(F2572,'Raw Data'!$I$4:$I$5000,'Raw Data'!$H$4:$H$5000,\"\",0),\"\")","v":""},{"$f":"IF(INDIRECT(M2572) = \"\",\"\",INDIRECT(M2572))","v":""},"c"]
["SUCMCMIG_60_80_C",null,null,null,{"$f":"_xlfn.XLOOKUP(F2573,'Raw Data'!$I$4:$I$5000,'Raw Data'!$D$4:$D$5000,\"*** Mnemonic not found ***\",0)","v":"*** Mnemonic not found ***"},"SUCMCMIG_60_80_C__",null,"Input",null,null,{"$f":"K2572+1","v":372},"O","Input!O372",{"$f":"_xlfn.XLOOKUP(F2573,'Raw Data'!$I$4:$I$5000,'Raw Data'!$E$4:$E$5000,100,0)","v":100},{"$f":"IF(N2573=0,_xlfn.XLOOKUP(F2573,'Raw Data'!$I$4:$I$5000,'Raw Data'!$H$4:$H$5000,\"\",0),\"\")","v":""},{"$f":"IF(INDIRECT(M2573) = \"\",\"\",INDIRECT(M2573))","v":""},"c"]
["SUCMCMIG_GREAT80_C",null,null,null,{"$f":"_xlfn.XLOOKUP(F2574,'Raw Data'!$I$4:$I$5000,'Raw Data'!$D$4:$D$5000,\"*** Mnemonic not found ***\",0)","v":"*** Mnemonic not found ***"},{"$f":"CONCATENATE(A2574,\"_\",B2574,\"_\",D2574)","v":"SUCMCMIG_GREAT80_C__"},null,"Input",null,null,373,"O","Input!O373",{"$f":"_xlfn.XLOOKUP(F2574,'Raw Data'!$I$4:$I$5000,'Raw Data'!$E$4:$E$5000,100,0)","v":100},{"$f":"IF(N2574=0,_xlfn.XLOOKUP(F2574,'Raw Data'!$I$4:$I$5000,'Raw Data'!$H$4:$H$5000,\"\",0),\"\")","v":""},{"$f":"IF(INDIRECT(M2574) = \"\",\"\",INDIRECT(M2574))","v":""},"c"]
["SUCMRMIG_LESS60_C",null,null,null,{"$f":"_xlfn.XLOOKUP(F2575,'Raw Data'!$I$4:$I$5000,'Raw Data'!$D$4:$D$5000,\"*** Mnemonic not found ***\",0)","v":"*** Mnemonic not found ***"},"SUCMRMIG_LESS60_C__",null,"Input",null,null,{"$f":"K2574+4","v":377},"O","Input!O377",{"$f":"_xlfn.XLOOKUP(F2575,'Raw Data'!$I$4:$I$5000,'Raw Data'!$E$4:$E$5000,100,0)","v":100},{"$f":"IF(N2575=0,_xlfn.XLOOKUP(F2575,'Raw Data'!$I$4:$I$5000,'Raw Data'!$H$4:$H$5000,\"\",0),\"\")","v":""},{"$f":"IF(INDIRECT(M2575) = \"\",\"\",INDIRECT(M2575))","v":""},"c"]
["SUCMRMIG_60_80_C",null,null,null,{"$f":"_xlfn.XLOOKUP(F2576,'Raw Data'!$I$4:$I$5000,'Raw Data'!$D$4:$D$5000,\"*** Mnemonic not found ***\",0)","v":"*** Mnemonic not found ***"},"SUCMRMIG_60_80_C__",null,"Input",null,null,378,"O","Input!O378",{"$f":"_xlfn.XLOOKUP(F2576,'Raw Data'!$I$4:$I$5000,'Raw Data'!$E$4:$E$5000,100,0)","v":100},{"$f":"IF(N2576=0,_xlfn.XLOOKUP(F2576,'Raw Data'!$I$4:$I$5000,'Raw Data'!$H$4:$H$5000,\"\",0),\"\")","v":""},{"$f":"IF(INDIRECT(M2576) = \"\",\"\",INDIRECT(M2576))","v":""},"c"]
["SUCMRMIG_GREAT80_C",null,null,null,{"$f":"_xlfn.XLOOKUP(F2577,'Raw Data'!$I$4:$I$5000,'Raw Data'!$D$4:$D$5000,\"*** Mnemonic not found ***\",0)","v":"*** Mnemonic not found ***"},"SUCMRMIG_GREAT80_C__",null,"Input",null,null,379,"O","Input!O379",{"$f":"_xlfn.XLOOKUP(F2577,'Raw Data'!$I$4:$I$5000,'Raw Data'!$E$4:$E$5000,100,0)","v":100},{"$f":"IF(N2577=0,_xlfn.XLOOKUP(F2577,'Raw Data'!$I$4:$I$5000,'Raw Data'!$H$4:$H$5000,\"\",0),\"\")","v":""},{"$f":"IF(INDIRECT(M2577) = \"\",\"\",INDIRECT(M2577))","v":""},"c"]
["SUCMOTCDERIV_C",null,null,null,{"$f":"_xlfn.XLOOKUP(F2578,'Raw Data'!$I$4:$I$5000,'Raw Data'!$D$4:$D$5000,\"*** Mnemonic not found ***\",0)","v":"*** Mnemonic not found ***"},"SUCMOTCDERIV_C__",null,"Input",null,null,{"$f":"K2577+3","v":382},"O",{"$f":"CONCATENATE(H2578,\"!\",L2578,K2578)","v":"Input!O382"},{"$f":"_xlfn.XLOOKUP(F2578,'Raw Data'!$I$4:$I$5000,'Raw Data'!$E$4:$E$5000,100,0)","v":100},{"$f":"IF(N2578=0,_xlfn.XLOOKUP(F2578,'Raw Data'!$I$4:$I$5000,'Raw Data'!$H$4:$H$5000,\"\",0),\"\")","v":""},{"$f":"IF(INDIRECT(M2578) = \"\",\"\",INDIRECT(M2578))","v":""},"c"]
["SUCMBANKDEPA_C",null,null,null,{"$f":"_xlfn.XLOOKUP(F2579,'Raw Data'!$I$4:$I$5000,'Raw Data'!$D$4:$D$5000,\"*** Mnemonic not found ***\",0)","v":"*** Mnemonic not found ***"},"SUCMBANKDEPA_C__",null,"Input",null,null,{"$f":"K2578+3","v":385},"O","Input!O385",{"$f":"_xlfn.XLOOKUP(F2579,'Raw Data'!$I$4:$I$5000,'Raw Data'!$E$4:$E$5000,100,0)","v":100},{"$f":"IF(N2579=0,_xlfn.XLOOKUP(F2579,'Raw Data'!$I$4:$I$5000,'Raw Data'!$H$4:$H$5000,\"\",0),\"\")","v":""},{"$f":"IF(INDIRECT(M2579) = \"\",\"\",INDIRECT(M2579))","v":""},"c"]
["SUCMBANKDEPBBB_C",null,null,null,{"$f":"_xlfn.XLOOKUP(F2580,'Raw Data'!$I$4:$I$5000,'Raw Data'!$D$4:$D$5000,\"*** Mnemonic not found ***\",0)","v":"*** Mnemonic not found ***"},"SUCMBANKDEPBBB_C__",null,"Input",null,null,386,"O","Input!O386",{"$f":"_xlfn.XLOOKUP(F2580,'Raw Data'!$I$4:$I$5000,'Raw Data'!$E$4:$E$5000,100,0)","v":100},{"$f":"IF(N2580=0,_xlfn.XLOOKUP(F2580,'Raw Data'!$I$4:$I$5000,'Raw Data'!$H$4:$H$5000,\"\",0),\"\")","v":""},{"$f":"IF(INDIRECT(M2580) = \"\",\"\",INDIRECT(M2580))","v":""},"c"]
["SUCMBANKDEPBB_C",null,null,null,{"$f":"_xlfn.XLOOKUP(F2581,'Raw Data'!$I$4:$I$5000,'Raw Data'!$D$4:$D$5000,\"*** Mnemonic not found ***\",0)","v":"*** Mnemonic not found ***"},"SUCMBANKDEPBB_C__",null,"Input",null,null,387,"O","Input!O387",{"$f":"_xlfn.XLOOKUP(F2581,'Raw Data'!$I$4:$I$5000,'Raw Data'!$E$4:$E$5000,100,0)","v":100},{"$f":"IF(N2581=0,_xlfn.XLOOKUP(F2581,'Raw Data'!$I$4:$I$5000,'Raw Data'!$H$4:$H$5000,\"\",0),\"\")","v":""},{"$f":"IF(INDIRECT(M2581) = \"\",\"\",INDIRECT(M2581))","v":""},"c"]
["SUCMBANKDEPCCC_C",null,null,null,{"$f":"_xlfn.XLOOKUP(F2582,'Raw Data'!$I$4:$I$5000,'Raw Data'!$D$4:$D$5000,\"*** Mnemonic not found ***\",0)","v":"*** Mnemonic not found ***"},"SUCMBANKDEPCCC_C__",null,"Input",null,null,388,"O","Input!O388",{"$f":"_xlfn.XLOOKUP(F2582,'Raw Data'!$I$4:$I$5000,'Raw Data'!$E$4:$E$5000,100,0)","v":100},{"$f":"IF(N2582=0,_xlfn.XLOOKUP(F2582,'Raw Data'!$I$4:$I$5000,'Raw Data'!$H$4:$H$5000,\"\",0),\"\")","v":""},{"$f":"IF(INDIRECT(M2582) = \"\",\"\",INDIRECT(M2582))","v":""},"c"]
["SUCMBANKDEPCED_C",null,null,null,{"$f":"_xlfn.XLOOKUP(F2583,'Raw Data'!$I$4:$I$5000,'Raw Data'!$D$4:$D$5000,\"*** Mnemonic not found ***\",0)","v":"*** Mnemonic not found ***"},"SUCMBANKDEPCED_C__",null,"Input",null,null,{"$f":"K2582+2","v":390},"O","Input!O390",{"$f":"_xlfn.XLOOKUP(F2583,'Raw Data'!$I$4:$I$5000,'Raw Data'!$E$4:$E$5000,100,0)","v":100},{"$f":"IF(N2583=0,_xlfn.XLOOKUP(F2583,'Raw Data'!$I$4:$I$5000,'Raw Data'!$H$4:$H$5000,\"\",0),\"\")","v":""},{"$f":"IF(INDIRECT(M2583) = \"\",\"\",INDIRECT(M2583))","v":""},"c"]
["SUCMTOTINVASST_C",null,null,null,{"$f":"_xlfn.XLOOKUP(F2584,'Raw Data'!$I$4:$I$5000,'Raw Data'!$D$4:$D$5000,\"*** Mnemonic not found ***\",0)","v":"*** Mnemonic not found ***"},"SUCMTOTINVASST_C__",null,"Input",null,null,{"$f":"K2583+2","v":392},"O","Input!O392",{"$f":"_xlfn.XLOOKUP(F2584,'Raw Data'!$I$4:$I$5000,'Raw Data'!$E$4:$E$5000,100,0)","v":100},{"$f":"IF(N2584=0,_xlfn.XLOOKUP(F2584,'Raw Data'!$I$4:$I$5000,'Raw Data'!$H$4:$H$5000,\"\",0),\"\")","v":""},{"$f":"IF(INDIRECT(M2584) = \"\",\"\",INDIRECT(M2584))","v":""},"c"]
["SUCMSPRRAAA_C",null,null,null,{"$f":"_xlfn.XLOOKUP(F2585,'Raw Data'!$I$4:$I$5000,'Raw Data'!$D$4:$D$5000,\"*** Mnemonic not found ***\",0)","v":"*** Mnemonic not found ***"},"SUCMSPRRAAA_C__","Comments - Non-invested Assets","Input",{"$f":"ROW(section_non_invested_assets)","v":395},4,{"$f":"I2585+J2585","v":399},{"$f":"L2584","v":"O"},"Input!O399",{"$f":"_xlfn.XLOOKUP(F2585,'Raw Data'!$I$4:$I$5000,'Raw Data'!$E$4:$E$5000,100,0)","v":100},{"$f":"IF(N2585=0,_xlfn.XLOOKUP(F2585,'Raw Data'!$I$4:$I$5000,'Raw Data'!$H$4:$H$5000,\"\",0),\"\")","v":""},{"$f":"IF(INDIRECT(M2585) = \"\",\"\",INDIRECT(M2585))","v":""},"c"]
["SUCMSPRRAA_C",null,null,null,{"$f":"_xlfn.XLOOKUP(F2586,'Raw Data'!$I$4:$I$5000,'Raw Data'!$D$4:$D$5000,\"*** Mnemonic not found ***\",0)","v":"*** Mnemonic not found ***"},"SUCMSPRRAA_C__",null,"Input",null,null,{"$f":"K2585+1","v":400},"O","Input!O400",{"$f":"_xlfn.XLOOKUP(F2586,'Raw Data'!$I$4:$I$5000,'Raw Data'!$E$4:$E$5000,100,0)","v":100},{"$f":"IF(N2586=0,_xlfn.XLOOKUP(F2586,'Raw Data'!$I$4:$I$5000,'Raw Data'!$H$4:$H$5000,\"\",0),\"\")","v":""},{"$f":"IF(INDIRECT(M2586) = \"\",\"\",INDIRECT(M2586))","v":""},"c"]
["SUCMSPRRA_C",null,null,null,{"$f":"_xlfn.XLOOKUP(F2587,'Raw Data'!$I$4:$I$5000,'Raw Data'!$D$4:$D$5000,\"*** Mnemonic not found ***\",0)","v":"*** Mnemonic not found ***"},"SUCMSPRRA_C__",null,"Input",null,null,401,"O","Input!O401",{"$f":"_xlfn.XLOOKUP(F2587,'Raw Data'!$I$4:$I$5000,'Raw Data'!$E$4:$E$5000,100,0)","v":100},{"$f":"IF(N2587=0,_xlfn.XLOOKUP(F2587,'Raw Data'!$I$4:$I$5000,'Raw Data'!$H$4:$H$5000,\"\",0),\"\")","v":""},{"$f":"IF(INDIRECT(M2587) = \"\",\"\",INDIRECT(M2587))","v":""},"c"]
["SUCMSPRRBBB_C",null,null,null,{"$f":"_xlfn.XLOOKUP(F2588,'Raw Data'!$I$4:$I$5000,'Raw Data'!$D$4:$D$5000,\"*** Mnemonic not found ***\",0)","v":"*** Mnemonic not found ***"},"SUCMSPRRBBB_C__",null,"Input",null,null,402,"O","Input!O402",{"$f":"_xlfn.XLOOKUP(F2588,'Raw Data'!$I$4:$I$5000,'Raw Data'!$E$4:$E$5000,100,0)","v":100},{"$f":"IF(N2588=0,_xlfn.XLOOKUP(F2588,'Raw Data'!$I$4:$I$5000,'Raw Data'!$H$4:$H$5000,\"\",0),\"\")","v":""},{"$f":"IF(INDIRECT(M2588) = \"\",\"\",INDIRECT(M2588))","v":""},"c"]
["SUCMSPRRBB_C",null,null,null,{"$f":"_xlfn.XLOOKUP(F2589,'Raw Data'!$I$4:$I$5000,'Raw Data'!$D$4:$D$5000,\"*** Mnemonic not found ***\",0)","v":"*** Mnemonic not found ***"},"SUCMSPRRBB_C__",null,"Input",null,null,403,"O","Input!O403",{"$f":"_xlfn.XLOOKUP(F2589,'Raw Data'!$I$4:$I$5000,'Raw Data'!$E$4:$E$5000,100,0)","v":100},{"$f":"IF(N2589=0,_xlfn.XLOOKUP(F2589,'Raw Data'!$I$4:$I$5000,'Raw Data'!$H$4:$H$5000,\"\",0),\"\")","v":""},{"$f":"IF(INDIRECT(M2589) = \"\",\"\",INDIRECT(M2589))","v":""},"c"]
["SUCMSPRRB_C",null,null,null,{"$f":"_xlfn.XLOOKUP(F2590,'Raw Data'!$I$4:$I$5000,'Raw Data'!$D$4:$D$5000,\"*** Mnemonic not found ***\",0)","v":"*** Mnemonic not found ***"},"SUCMSPRRB_C__",null,"Input",null,null,404,"O","Input!O404",{"$f":"_xlfn.XLOOKUP(F2590,'Raw Data'!$I$4:$I$5000,'Raw Data'!$E$4:$E$5000,100,0)","v":100},{"$f":"IF(N2590=0,_xlfn.XLOOKUP(F2590,'Raw Data'!$I$4:$I$5000,'Raw Data'!$H$4:$H$5000,\"\",0),\"\")","v":""},{"$f":"IF(INDIRECT(M2590) = \"\",\"\",INDIRECT(M2590))","v":""},"c"]
["SUCMSPRRCCC_C",null,null,null,{"$f":"_xlfn.XLOOKUP(F2591,'Raw Data'!$I$4:$I$5000,'Raw Data'!$D$4:$D$5000,\"*** Mnemonic not found ***\",0)","v":"*** Mnemonic not found ***"},"SUCMSPRRCCC_C__",null,"Input",null,null,405,"O","Input!O405",{"$f":"_xlfn.XLOOKUP(F2591,'Raw Data'!$I$4:$I$5000,'Raw Data'!$E$4:$E$5000,100,0)","v":100},{"$f":"IF(N2591=0,_xlfn.XLOOKUP(F2591,'Raw Data'!$I$4:$I$5000,'Raw Data'!$H$4:$H$5000,\"\",0),\"\")","v":""},{"$f":"IF(INDIRECT(M2591) = \"\",\"\",INDIRECT(M2591))","v":""},"c"]
["SUCMSPRRD_C",null,null,null,{"$f":"_xlfn.XLOOKUP(F2592,'Raw Data'!$I$4:$I$5000,'Raw Data'!$D$4:$D$5000,\"*** Mnemonic not found ***\",0)","v":"*** Mnemonic not found ***"},"SUCMSPRRD_C__",null,"Input",null,null,406,"O","Input!O406",{"$f":"_xlfn.XLOOKUP(F2592,'Raw Data'!$I$4:$I$5000,'Raw Data'!$E$4:$E$5000,100,0)","v":100},{"$f":"IF(N2592=0,_xlfn.XLOOKUP(F2592,'Raw Data'!$I$4:$I$5000,'Raw Data'!$H$4:$H$5000,\"\",0),\"\")","v":""},{"$f":"IF(INDIRECT(M2592) = \"\",\"\",INDIRECT(M2592))","v":""},"c"]
["SUCMALTRRAAA_C",null,null,null,{"$f":"_xlfn.XLOOKUP(F2593,'Raw Data'!$I$4:$I$5000,'Raw Data'!$D$4:$D$5000,\"*** Mnemonic not found ***\",0)","v":"*** Mnemonic not found ***"},"SUCMALTRRAAA_C__",null,"Input",null,null,{"$f":"K2592+4","v":410},"O","Input!O410",{"$f":"_xlfn.XLOOKUP(F2593,'Raw Data'!$I$4:$I$5000,'Raw Data'!$E$4:$E$5000,100,0)","v":100},{"$f":"IF(N2593=0,_xlfn.XLOOKUP(F2593,'Raw Data'!$I$4:$I$5000,'Raw Data'!$H$4:$H$5000,\"\",0),\"\")","v":""},{"$f":"IF(INDIRECT(M2593) = \"\",\"\",INDIRECT(M2593))","v":""},"c"]
["SUCMALTRRAA_C",null,null,null,{"$f":"_xlfn.XLOOKUP(F2594,'Raw Data'!$I$4:$I$5000,'Raw Data'!$D$4:$D$5000,\"*** Mnemonic not found ***\",0)","v":"*** Mnemonic not found ***"},"SUCMALTRRAA_C__",null,"Input",null,null,411,"O","Input!O411",{"$f":"_xlfn.XLOOKUP(F2594,'Raw Data'!$I$4:$I$5000,'Raw Data'!$E$4:$E$5000,100,0)","v":100},{"$f":"IF(N2594=0,_xlfn.XLOOKUP(F2594,'Raw Data'!$I$4:$I$5000,'Raw Data'!$H$4:$H$5000,\"\",0),\"\")","v":""},{"$f":"IF(INDIRECT(M2594) = \"\",\"\",INDIRECT(M2594))","v":""},"c"]
["SUCMALTRRA_C",null,null,null,{"$f":"_xlfn.XLOOKUP(F2595,'Raw Data'!$I$4:$I$5000,'Raw Data'!$D$4:$D$5000,\"*** Mnemonic not found ***\",0)","v":"*** Mnemonic not found ***"},"SUCMALTRRA_C__",null,"Input",null,null,412,"O","Input!O412",{"$f":"_xlfn.XLOOKUP(F2595,'Raw Data'!$I$4:$I$5000,'Raw Data'!$E$4:$E$5000,100,0)","v":100},{"$f":"IF(N2595=0,_xlfn.XLOOKUP(F2595,'Raw Data'!$I$4:$I$5000,'Raw Data'!$H$4:$H$5000,\"\",0),\"\")","v":""},{"$f":"IF(INDIRECT(M2595) = \"\",\"\",INDIRECT(M2595))","v":""},"c"]
["SUCMALTRRBBB_C",null,null,null,{"$f":"_xlfn.XLOOKUP(F2596,'Raw Data'!$I$4:$I$5000,'Raw Data'!$D$4:$D$5000,\"*** Mnemonic not found ***\",0)","v":"*** Mnemonic not found ***"},"SUCMALTRRBBB_C__",null,"Input",null,null,413,{"$f":"L2595","v":"O"},"Input!O413",{"$f":"_xlfn.XLOOKUP(F2596,'Raw Data'!$I$4:$I$5000,'Raw Data'!$E$4:$E$5000,100,0)","v":100},{"$f":"IF(N2596=0,_xlfn.XLOOKUP(F2596,'Raw Data'!$I$4:$I$5000,'Raw Data'!$H$4:$H$5000,\"\",0),\"\")","v":""},{"$f":"IF(INDIRECT(M2596) = \"\",\"\",INDIRECT(M2596))","v":""},"c"]
["SUCMALTRRBB_C",null,null,null,{"$f":"_xlfn.XLOOKUP(F2597,'Raw Data'!$I$4:$I$5000,'Raw Data'!$D$4:$D$5000,\"*** Mnemonic not found ***\",0)","v":"*** Mnemonic not found ***"},"SUCMALTRRBB_C__",null,"Input",null,null,414,"O","Input!O414",{"$f":"_xlfn.XLOOKUP(F2597,'Raw Data'!$I$4:$I$5000,'Raw Data'!$E$4:$E$5000,100,0)","v":100},{"$f":"IF(N2597=0,_xlfn.XLOOKUP(F2597,'Raw Data'!$I$4:$I$5000,'Raw Data'!$H$4:$H$5000,\"\",0),\"\")","v":""},{"$f":"IF(INDIRECT(M2597) = \"\",\"\",INDIRECT(M2597))","v":""},"c"]
["SUCMALTRRB_C",null,null,null,{"$f":"_xlfn.XLOOKUP(F2598,'Raw Data'!$I$4:$I$5000,'Raw Data'!$D$4:$D$5000,\"*** Mnemonic not found ***\",0)","v":"*** Mnemonic not found ***"},"SUCMALTRRB_C__",null,"Input",null,null,415,"O","Input!O415",{"$f":"_xlfn.XLOOKUP(F2598,'Raw Data'!$I$4:$I$5000,'Raw Data'!$E$4:$E$5000,100,0)","v":100},{"$f":"IF(N2598=0,_xlfn.XLOOKUP(F2598,'Raw Data'!$I$4:$I$5000,'Raw Data'!$H$4:$H$5000,\"\",0),\"\")","v":""},{"$f":"IF(INDIRECT(M2598) = \"\",\"\",INDIRECT(M2598))","v":""},"c"]
["SUCMALTRRCCC_C",null,null,null,{"$f":"_xlfn.XLOOKUP(F2599,'Raw Data'!$I$4:$I$5000,'Raw Data'!$D$4:$D$5000,\"*** Mnemonic not found ***\",0)","v":"*** Mnemonic not found ***"},"SUCMALTRRCCC_C__",null,"Input",null,null,416,"O","Input!O416",{"$f":"_xlfn.XLOOKUP(F2599,'Raw Data'!$I$4:$I$5000,'Raw Data'!$E$4:$E$5000,100,0)","v":100},{"$f":"IF(N2599=0,_xlfn.XLOOKUP(F2599,'Raw Data'!$I$4:$I$5000,'Raw Data'!$H$4:$H$5000,\"\",0),\"\")","v":""},{"$f":"IF(INDIRECT(M2599) = \"\",\"\",INDIRECT(M2599))","v":""},"c"]
["SUCMALTRRD_C",null,null,null,{"$f":"_xlfn.XLOOKUP(F2600,'Raw Data'!$I$4:$I$5000,'Raw Data'!$D$4:$D$5000,\"*** Mnemonic not found ***\",0)","v":"*** Mnemonic not found ***"},"SUCMALTRRD_C__",null,"Input",null,null,417,"O","Input!O417",{"$f":"_xlfn.XLOOKUP(F2600,'Raw Data'!$I$4:$I$5000,'Raw Data'!$E$4:$E$5000,100,0)","v":100},{"$f":"IF(N2600=0,_xlfn.XLOOKUP(F2600,'Raw Data'!$I$4:$I$5000,'Raw Data'!$H$4:$H$5000,\"\",0),\"\")","v":""},{"$f":"IF(INDIRECT(M2600) = \"\",\"\",INDIRECT(M2600))","v":""},"c"]
["SUCMRRINSREC_C",null,null,null,{"$f":"_xlfn.XLOOKUP(F2601,'Raw Data'!$I$4:$I$5000,'Raw Data'!$D$4:$D$5000,\"*** Mnemonic not found ***\",0)","v":"*** Mnemonic not found ***"},"SUCMRRINSREC_C__",null,"Input",null,null,{"$f":"K2600+3","v":420},"O","Input!O420",{"$f":"_xlfn.XLOOKUP(F2601,'Raw Data'!$I$4:$I$5000,'Raw Data'!$E$4:$E$5000,100,0)","v":100},{"$f":"IF(N2601=0,_xlfn.XLOOKUP(F2601,'Raw Data'!$I$4:$I$5000,'Raw Data'!$H$4:$H$5000,\"\",0),\"\")","v":""},{"$f":"IF(INDIRECT(M2601) = \"\",\"\",INDIRECT(M2601))","v":""},"c"]
["SUCMRRLEASE_C",null,null,null,{"$f":"_xlfn.XLOOKUP(F2602,'Raw Data'!$I$4:$I$5000,'Raw Data'!$D$4:$D$5000,\"*** Mnemonic not found ***\",0)","v":"*** Mnemonic not found ***"},"SUCMRRLEASE_C__",null,"Input",null,null,421,"O","Input!O421",{"$f":"_xlfn.XLOOKUP(F2602,'Raw Data'!$I$4:$I$5000,'Raw Data'!$E$4:$E$5000,100,0)","v":100},{"$f":"IF(N2602=0,_xlfn.XLOOKUP(F2602,'Raw Data'!$I$4:$I$5000,'Raw Data'!$H$4:$H$5000,\"\",0),\"\")","v":""},{"$f":"IF(INDIRECT(M2602) = \"\",\"\",INDIRECT(M2602))","v":""},"c"]
["SUCMRRASOASC_C",null,null,null,{"$f":"_xlfn.XLOOKUP(F2603,'Raw Data'!$I$4:$I$5000,'Raw Data'!$D$4:$D$5000,\"*** Mnemonic not found ***\",0)","v":"*** Mnemonic not found ***"},"SUCMRRASOASC_C__",null,"Input",null,null,422,"O","Input!O422",{"$f":"_xlfn.XLOOKUP(F2603,'Raw Data'!$I$4:$I$5000,'Raw Data'!$E$4:$E$5000,100,0)","v":100},{"$f":"IF(N2603=0,_xlfn.XLOOKUP(F2603,'Raw Data'!$I$4:$I$5000,'Raw Data'!$H$4:$H$5000,\"\",0),\"\")","v":""},{"$f":"IF(INDIRECT(M2603) = \"\",\"\",INDIRECT(M2603))","v":""},"c"]
["SUCMRROTH_C",null,null,null,{"$f":"_xlfn.XLOOKUP(F2604,'Raw Data'!$I$4:$I$5000,'Raw Data'!$D$4:$D$5000,\"*** Mnemonic not found ***\",0)","v":"*** Mnemonic not found ***"},"SUCMRROTH_C__",null,"Input",null,null,423,"O",{"$f":"CONCATENATE(H2604,\"!\",L2604,K2604)","v":"Input!O423"},{"$f":"_xlfn.XLOOKUP(F2604,'Raw Data'!$I$4:$I$5000,'Raw Data'!$E$4:$E$5000,100,0)","v":100},{"$f":"IF(N2604=0,_xlfn.XLOOKUP(F2604,'Raw Data'!$I$4:$I$5000,'Raw Data'!$H$4:$H$5000,\"\",0),\"\")","v":""},{"$f":"IF(INDIRECT(M2604) = \"\",\"\",INDIRECT(M2604))","v":""},"c","assset_other_chargeable_assets_other_c"]
["SUCMRRDEFTAX_C",null,null,null,{"$f":"_xlfn.XLOOKUP(F2605,'Raw Data'!$I$4:$I$5000,'Raw Data'!$D$4:$D$5000,\"*** Mnemonic not found ***\",0)","v":"*** Mnemonic not found ***"},"SUCMRRDEFTAX_C__",null,"Input",null,null,{"$f":"K2604+1","v":424},{"$f":"L2604","v":"O"},"Input!O424",{"$f":"_xlfn.XLOOKUP(F2605,'Raw Data'!$I$4:$I$5000,'Raw Data'!$E$4:$E$5000,100,0)","v":100},{"$f":"IF(N2605=0,_xlfn.XLOOKUP(F2605,'Raw Data'!$I$4:$I$5000,'Raw Data'!$H$4:$H$5000,\"\",0),\"\")","v":""},{"$f":"IF(INDIRECT(M2605) = \"\",\"\",INDIRECT(M2605))","v":""},"c"]
["SUCMRREXASST_C",null,null,null,{"$f":"_xlfn.XLOOKUP(F2606,'Raw Data'!$I$4:$I$5000,'Raw Data'!$D$4:$D$5000,\"*** Mnemonic not found ***\",0)","v":"*** Mnemonic not found ***"},"SUCMRREXASST_C__",null,"Input",null,null,{"$f":"K2605+3","v":427},"O","Input!O427",{"$f":"_xlfn.XLOOKUP(F2606,'Raw Data'!$I$4:$I$5000,'Raw Data'!$E$4:$E$5000,100,0)","v":100},{"$f":"IF(N2606=0,_xlfn.XLOOKUP(F2606,'Raw Data'!$I$4:$I$5000,'Raw Data'!$H$4:$H$5000,\"\",0),\"\")","v":""},{"$f":"IF(INDIRECT(M2606) = \"\",\"\",INDIRECT(M2606))","v":""},"c"]
["SUCMRROTHASST_C",null,null,null,{"$f":"_xlfn.XLOOKUP(F2607,'Raw Data'!$I$4:$I$5000,'Raw Data'!$D$4:$D$5000,\"*** Mnemonic not found ***\",0)","v":"*** Mnemonic not found ***"},"SUCMRROTHASST_C__",null,"Input",null,null,428,"O","Input!O428",{"$f":"_xlfn.XLOOKUP(F2607,'Raw Data'!$I$4:$I$5000,'Raw Data'!$E$4:$E$5000,100,0)","v":100},{"$f":"IF(N2607=0,_xlfn.XLOOKUP(F2607,'Raw Data'!$I$4:$I$5000,'Raw Data'!$H$4:$H$5000,\"\",0),\"\")","v":""},{"$f":"IF(INDIRECT(M2607) = \"\",\"\",INDIRECT(M2607))","v":""},"c"]
["SUCMTOTBSASST_C",null,null,null,{"$f":"_xlfn.XLOOKUP(F2608,'Raw Data'!$I$4:$I$5000,'Raw Data'!$D$4:$D$5000,\"*** Mnemonic not found ***\",0)","v":"*** Mnemonic not found ***"},"SUCMTOTBSASST_C__",null,"Input",null,null,{"$f":"K2607+4","v":432},{"$f":"L2607","v":"O"},"Input!O432",{"$f":"_xlfn.XLOOKUP(F2608,'Raw Data'!$I$4:$I$5000,'Raw Data'!$E$4:$E$5000,100,0)","v":100},{"$f":"IF(N2608=0,_xlfn.XLOOKUP(F2608,'Raw Data'!$I$4:$I$5000,'Raw Data'!$H$4:$H$5000,\"\",0),\"\")","v":""},{"$f":"IF(INDIRECT(M2608) = \"\",\"\",INDIRECT(M2608))","v":""},"c"]
["SUCMPRRSK_EMEA_LIA_C",null,null,null,{"$f":"_xlfn.XLOOKUP(F2609,'Raw Data'!$I$4:$I$5000,'Raw Data'!$D$4:$D$5000,\"*** Mnemonic not found ***\",0)","v":"*** Mnemonic not found ***"},"SUCMPRRSK_EMEA_LIA_C__","Comments - Non-life Premium","Input",{"$f":"ROW(section_non_life_prem)","v":437},4,{"$f":"I2609+J2609","v":441},{"$f":"L2608","v":"O"},"Input!O441",{"$f":"_xlfn.XLOOKUP(F2609,'Raw Data'!$I$4:$I$5000,'Raw Data'!$E$4:$E$5000,100,0)","v":100},{"$f":"IF(N2609=0,_xlfn.XLOOKUP(F2609,'Raw Data'!$I$4:$I$5000,'Raw Data'!$H$4:$H$5000,\"\",0),\"\")","v":""},{"$f":"IF(INDIRECT(M2609) = \"\",\"\",INDIRECT(M2609))","v":""},"c","SUCMPRRSK_EMEA_LIA_C_LIA_"]
["SUCMPRRSK_EMEA_WCP_C",null,null,null,{"$f":"_xlfn.XLOOKUP(F2610,'Raw Data'!$I$4:$I$5000,'Raw Data'!$D$4:$D$5000,\"*** Mnemonic not found ***\",0)","v":"*** Mnemonic not found ***"},"SUCMPRRSK_EMEA_WCP_C__",null,"Input",null,null,{"$f":"K2609+1","v":442},{"$f":"L2609","v":"O"},{"$f":"CONCATENATE(H2610,\"!\",L2610,K2610)","v":"Input!O442"},{"$f":"_xlfn.XLOOKUP(F2610,'Raw Data'!$I$4:$I$5000,'Raw Data'!$E$4:$E$5000,100,0)","v":100},{"$f":"IF(N2610=0,_xlfn.XLOOKUP(F2610,'Raw Data'!$I$4:$I$5000,'Raw Data'!$H$4:$H$5000,\"\",0),\"\")","v":""},{"$f":"IF(INDIRECT(M2610) = \"\",\"\",INDIRECT(M2610))","v":""},"c","SUCMPRRSK_EMEA_WCP_C_WCP_"]
["SUCMPRRSK_EMEA_FIR_C",null,null,null,{"$f":"_xlfn.XLOOKUP(F2611,'Raw Data'!$I$4:$I$5000,'Raw Data'!$D$4:$D$5000,\"*** Mnemonic not found ***\",0)","v":"*** Mnemonic not found ***"},"SUCMPRRSK_EMEA_FIR_C__",null,"Input",null,null,443,"O","Input!O443",{"$f":"_xlfn.XLOOKUP(F2611,'Raw Data'!$I$4:$I$5000,'Raw Data'!$E$4:$E$5000,100,0)","v":100},{"$f":"IF(N2611=0,_xlfn.XLOOKUP(F2611,'Raw Data'!$I$4:$I$5000,'Raw Data'!$H$4:$H$5000,\"\",0),\"\")","v":""},{"$f":"IF(INDIRECT(M2611) = \"\",\"\",INDIRECT(M2611))","v":""},"c","SUCMPRRSK_EMEA_FIR_C_FIR_"]
["SUCMPRRSK_EMEA_ALB_C",null,null,null,{"$f":"_xlfn.XLOOKUP(F2612,'Raw Data'!$I$4:$I$5000,'Raw Data'!$D$4:$D$5000,\"*** Mnemonic not found ***\",0)","v":"*** Mnemonic not found ***"},"SUCMPRRSK_EMEA_ALB_C__",null,"Input",null,null,444,"O","Input!O444",{"$f":"_xlfn.XLOOKUP(F2612,'Raw Data'!$I$4:$I$5000,'Raw Data'!$E$4:$E$5000,100,0)","v":100},{"$f":"IF(N2612=0,_xlfn.XLOOKUP(F2612,'Raw Data'!$I$4:$I$5000,'Raw Data'!$H$4:$H$5000,\"\",0),\"\")","v":""},{"$f":"IF(INDIRECT(M2612) = \"\",\"\",INDIRECT(M2612))","v":""},"c","SUCMPRRSK_EMEA_ALB_C_ALB_"]
["SUCMPRRSK_EMEA_OTHM_C",null,null,null,{"$f":"_xlfn.XLOOKUP(F2613,'Raw Data'!$I$4:$I$5000,'Raw Data'!$D$4:$D$5000,\"*** Mnemonic not found ***\",0)","v":"*** Mnemonic not found ***"},"SUCMPRRSK_EMEA_OTHM_C__",null,"Input",null,null,445,"O","Input!O445",{"$f":"_xlfn.XLOOKUP(F2613,'Raw Data'!$I$4:$I$5000,'Raw Data'!$E$4:$E$5000,100,0)","v":100},{"$f":"IF(N2613=0,_xlfn.XLOOKUP(F2613,'Raw Data'!$I$4:$I$5000,'Raw Data'!$H$4:$H$5000,\"\",0),\"\")","v":""},{"$f":"IF(INDIRECT(M2613) = \"\",\"\",INDIRECT(M2613))","v":""},"c","SUCMPRRSK_EMEA_OTHM_C_OTHM_"]
["SUCMPRRSK_EMEA_CRDS_C",null,null,null,{"$f":"_xlfn.XLOOKUP(F2614,'Raw Data'!$I$4:$I$5000,'Raw Data'!$D$4:$D$5000,\"*** Mnemonic not found ***\",0)","v":"*** Mnemonic not found ***"},"SUCMPRRSK_EMEA_CRDS_C__",null,"Input",null,null,446,"O","Input!O446",{"$f":"_xlfn.XLOOKUP(F2614,'Raw Data'!$I$4:$I$5000,'Raw Data'!$E$4:$E$5000,100,0)","v":100},{"$f":"IF(N2614=0,_xlfn.XLOOKUP(F2614,'Raw Data'!$I$4:$I$5000,'Raw Data'!$H$4:$H$5000,\"\",0),\"\")","v":""},{"$f":"IF(INDIRECT(M2614) = \"\",\"\",INDIRECT(M2614))","v":""},"c","SUCMPRRSK_EMEA_CRDS_C_CRDS_"]
["SUCMPRRSK_EMEA_MSFL_C",null,null,null,{"$f":"_xlfn.XLOOKUP(F2615,'Raw Data'!$I$4:$I$5000,'Raw Data'!$D$4:$D$5000,\"*** Mnemonic not found ***\",0)","v":"*** Mnemonic not found ***"},"SUCMPRRSK_EMEA_MSFL_C__",null,"Input",null,null,447,"O","Input!O447",{"$f":"_xlfn.XLOOKUP(F2615,'Raw Data'!$I$4:$I$5000,'Raw Data'!$E$4:$E$5000,100,0)","v":100},{"$f":"IF(N2615=0,_xlfn.XLOOKUP(F2615,'Raw Data'!$I$4:$I$5000,'Raw Data'!$H$4:$H$5000,\"\",0),\"\")","v":""},{"$f":"IF(INDIRECT(M2615) = \"\",\"\",INDIRECT(M2615))","v":""},"c","SUCMPRRSK_EMEA_MSFL_C_MSFL_"]
["SUCMPRRSK_EMEA_HMEI_C",null,null,null,{"$f":"_xlfn.XLOOKUP(F2616,'Raw Data'!$I$4:$I$5000,'Raw Data'!$D$4:$D$5000,\"*** Mnemonic not found ***\",0)","v":"*** Mnemonic not found ***"},"SUCMPRRSK_EMEA_HMEI_C__",null,"Input",null,null,448,"O","Input!O448",{"$f":"_xlfn.XLOOKUP(F2616,'Raw Data'!$I$4:$I$5000,'Raw Data'!$E$4:$E$5000,100,0)","v":100},{"$f":"IF(N2616=0,_xlfn.XLOOKUP(F2616,'Raw Data'!$I$4:$I$5000,'Raw Data'!$H$4:$H$5000,\"\",0),\"\")","v":""},{"$f":"IF(INDIRECT(M2616) = \"\",\"\",INDIRECT(M2616))","v":""},"c","SUCMPRRSK_EMEA_HMEI_C_HMEI_"]
["SUCMPRRSK_EMEA_MAVT_C",null,null,null,{"$f":"_xlfn.XLOOKUP(F2617,'Raw Data'!$I$4:$I$5000,'Raw Data'!$D$4:$D$5000,\"*** Mnemonic not found ***\",0)","v":"*** Mnemonic not found ***"},"SUCMPRRSK_EMEA_MAVT_C__",null,"Input",null,null,449,"O","Input!O449",{"$f":"_xlfn.XLOOKUP(F2617,'Raw Data'!$I$4:$I$5000,'Raw Data'!$E$4:$E$5000,100,0)","v":100},{"$f":"IF(N2617=0,_xlfn.XLOOKUP(F2617,'Raw Data'!$I$4:$I$5000,'Raw Data'!$H$4:$H$5000,\"\",0),\"\")","v":""},{"$f":"IF(INDIRECT(M2617) = \"\",\"\",INDIRECT(M2617))","v":""},"c","SUCMPRRSK_EMEA_MAVT_C_MAVT_"]
["SUCMPRRSK_EMEA_MPIN_C",null,null,null,{"$f":"_xlfn.XLOOKUP(F2618,'Raw Data'!$I$4:$I$5000,'Raw Data'!$D$4:$D$5000,\"*** Mnemonic not found ***\",0)","v":"*** Mnemonic not found ***"},"SUCMPRRSK_EMEA_MPIN_C__",null,"Input",null,null,450,"O","Input!O450",{"$f":"_xlfn.XLOOKUP(F2618,'Raw Data'!$I$4:$I$5000,'Raw Data'!$E$4:$E$5000,100,0)","v":100},{"$f":"IF(N2618=0,_xlfn.XLOOKUP(F2618,'Raw Data'!$I$4:$I$5000,'Raw Data'!$H$4:$H$5000,\"\",0),\"\")","v":""},{"$f":"IF(INDIRECT(M2618) = \"\",\"\",INDIRECT(M2618))","v":""},"c","SUCMPRRSK_EMEA_MPIN_C_MPIN_"]
["SUCMPRRSK_EMEA_ASST_C",null,null,null,{"$f":"_xlfn.XLOOKUP(F2619,'Raw Data'!$I$4:$I$5000,'Raw Data'!$D$4:$D$5000,\"*** Mnemonic not found ***\",0)","v":"*** Mnemonic not found ***"},"SUCMPRRSK_EMEA_ASST_C__",null,"Input",null,null,451,"O","Input!O451",{"$f":"_xlfn.XLOOKUP(F2619,'Raw Data'!$I$4:$I$5000,'Raw Data'!$E$4:$E$5000,100,0)","v":100},{"$f":"IF(N2619=0,_xlfn.XLOOKUP(F2619,'Raw Data'!$I$4:$I$5000,'Raw Data'!$H$4:$H$5000,\"\",0),\"\")","v":""},{"$f":"IF(INDIRECT(M2619) = \"\",\"\",INDIRECT(M2619))","v":""},"c","SUCMPRRSK_EMEA_ASST_C_ASST_"]
["SUCMPRRSK_EMEA_INPR_C",null,null,null,{"$f":"_xlfn.XLOOKUP(F2620,'Raw Data'!$I$4:$I$5000,'Raw Data'!$D$4:$D$5000,\"*** Mnemonic not found ***\",0)","v":"*** Mnemonic not found ***"},"SUCMPRRSK_EMEA_INPR_C__",null,"Input",null,null,452,"O","Input!O452",{"$f":"_xlfn.XLOOKUP(F2620,'Raw Data'!$I$4:$I$5000,'Raw Data'!$E$4:$E$5000,100,0)","v":100},{"$f":"IF(N2620=0,_xlfn.XLOOKUP(F2620,'Raw Data'!$I$4:$I$5000,'Raw Data'!$H$4:$H$5000,\"\",0),\"\")","v":""},{"$f":"IF(INDIRECT(M2620) = \"\",\"\",INDIRECT(M2620))","v":""},"c","SUCMPRRSK_EMEA_INPR_C_INPR_"]
["SUCMPRRSK_EMEA_LEGEX_C",null,null,null,{"$f":"_xlfn.XLOOKUP(F2621,'Raw Data'!$I$4:$I$5000,'Raw Data'!$D$4:$D$5000,\"*** Mnemonic not found ***\",0)","v":"*** Mnemonic not found ***"},"SUCMPRRSK_EMEA_LEGEX_C__",null,"Input",null,null,453,"O","Input!O453",{"$f":"_xlfn.XLOOKUP(F2621,'Raw Data'!$I$4:$I$5000,'Raw Data'!$E$4:$E$5000,100,0)","v":100},{"$f":"IF(N2621=0,_xlfn.XLOOKUP(F2621,'Raw Data'!$I$4:$I$5000,'Raw Data'!$H$4:$H$5000,\"\",0),\"\")","v":""},{"$f":"IF(INDIRECT(M2621) = \"\",\"\",INDIRECT(M2621))","v":""},"c","SUCMPRRSK_EMEA_LEGEX_C_LEGEX_"]
["SUCMPRRSK_EMEA_OCAH_C",null,null,null,{"$f":"_xlfn.XLOOKUP(F2622,'Raw Data'!$I$4:$I$5000,'Raw Data'!$D$4:$D$5000,\"*** Mnemonic not found ***\",0)","v":"*** Mnemonic not found ***"},"SUCMPRRSK_EMEA_OCAH_C__",null,"Input",null,null,454,"O","Input!O454",{"$f":"_xlfn.XLOOKUP(F2622,'Raw Data'!$I$4:$I$5000,'Raw Data'!$E$4:$E$5000,100,0)","v":100},{"$f":"IF(N2622=0,_xlfn.XLOOKUP(F2622,'Raw Data'!$I$4:$I$5000,'Raw Data'!$H$4:$H$5000,\"\",0),\"\")","v":""},{"$f":"IF(INDIRECT(M2622) = \"\",\"\",INDIRECT(M2622))","v":""},"c","SUCMPRRSK_EMEA_OCAH_C_OCAH_"]
["SUCMPRRSK_US_EWCP_C",null,null,null,{"$f":"_xlfn.XLOOKUP(F2623,'Raw Data'!$I$4:$I$5000,'Raw Data'!$D$4:$D$5000,\"*** Mnemonic not found ***\",0)","v":"*** Mnemonic not found ***"},"SUCMPRRSK_US_EWCP_C__",null,"Input",null,null,{"$f":"K2622+2","v":456},"O","Input!O456",{"$f":"_xlfn.XLOOKUP(F2623,'Raw Data'!$I$4:$I$5000,'Raw Data'!$E$4:$E$5000,100,0)","v":100},{"$f":"IF(N2623=0,_xlfn.XLOOKUP(F2623,'Raw Data'!$I$4:$I$5000,'Raw Data'!$H$4:$H$5000,\"\",0),\"\")","v":""},{"$f":"IF(INDIRECT(M2623) = \"\",\"\",INDIRECT(M2623))","v":""},"c","SUCMPRRSK_US_EWCP_C_EWCP_"]
["SUCMPRRSK_US_MEC_C",null,null,null,{"$f":"_xlfn.XLOOKUP(F2624,'Raw Data'!$I$4:$I$5000,'Raw Data'!$D$4:$D$5000,\"*** Mnemonic not found ***\",0)","v":"*** Mnemonic not found ***"},"SUCMPRRSK_US_MEC_C__",null,"Input",null,null,457,"O","Input!O457",{"$f":"_xlfn.XLOOKUP(F2624,'Raw Data'!$I$4:$I$5000,'Raw Data'!$E$4:$E$5000,100,0)","v":100},{"$f":"IF(N2624=0,_xlfn.XLOOKUP(F2624,'Raw Data'!$I$4:$I$5000,'Raw Data'!$H$4:$H$5000,\"\",0),\"\")","v":""},{"$f":"IF(INDIRECT(M2624) = \"\",\"\",INDIRECT(M2624))","v":""},"c","SUCMPRRSK_US_MEC_C_MEC_"]
["SUCMPRRSK_US_MEO_C",null,null,null,{"$f":"_xlfn.XLOOKUP(F2625,'Raw Data'!$I$4:$I$5000,'Raw Data'!$D$4:$D$5000,\"*** Mnemonic not found ***\",0)","v":"*** Mnemonic not found ***"},"SUCMPRRSK_US_MEO_C__",null,"Input",null,null,458,"O","Input!O458",{"$f":"_xlfn.XLOOKUP(F2625,'Raw Data'!$I$4:$I$5000,'Raw Data'!$E$4:$E$5000,100,0)","v":100},{"$f":"IF(N2625=0,_xlfn.XLOOKUP(F2625,'Raw Data'!$I$4:$I$5000,'Raw Data'!$H$4:$H$5000,\"\",0),\"\")","v":""},{"$f":"IF(INDIRECT(M2625) = \"\",\"\",INDIRECT(M2625))","v":""},"c","SUCMPRRSK_US_MEO_C_MEO_"]
["SUCMPRRSK_US_OLC_C",null,null,null,{"$f":"_xlfn.XLOOKUP(F2626,'Raw Data'!$I$4:$I$5000,'Raw Data'!$D$4:$D$5000,\"*** Mnemonic not found ***\",0)","v":"*** Mnemonic not found ***"},"SUCMPRRSK_US_OLC_C__",null,"Input",null,null,459,"O","Input!O459",{"$f":"_xlfn.XLOOKUP(F2626,'Raw Data'!$I$4:$I$5000,'Raw Data'!$E$4:$E$5000,100,0)","v":100},{"$f":"IF(N2626=0,_xlfn.XLOOKUP(F2626,'Raw Data'!$I$4:$I$5000,'Raw Data'!$H$4:$H$5000,\"\",0),\"\")","v":""},{"$f":"IF(INDIRECT(M2626) = \"\",\"\",INDIRECT(M2626))","v":""},"c","SUCMPRRSK_US_OLC_C_OLC_"]
["SUCMPRRSK_US_OLO_C",null,null,null,{"$f":"_xlfn.XLOOKUP(F2627,'Raw Data'!$I$4:$I$5000,'Raw Data'!$D$4:$D$5000,\"*** Mnemonic not found ***\",0)","v":"*** Mnemonic not found ***"},"SUCMPRRSK_US_OLO_C__",null,"Input",null,null,460,"O","Input!O460",{"$f":"_xlfn.XLOOKUP(F2627,'Raw Data'!$I$4:$I$5000,'Raw Data'!$E$4:$E$5000,100,0)","v":100},{"$f":"IF(N2627=0,_xlfn.XLOOKUP(F2627,'Raw Data'!$I$4:$I$5000,'Raw Data'!$H$4:$H$5000,\"\",0),\"\")","v":""},{"$f":"IF(INDIRECT(M2627) = \"\",\"\",INDIRECT(M2627))","v":""},"c","SUCMPRRSK_US_OLO_C_OLO_"]
["SUCMPRRSK_US_PLC_C",null,null,null,{"$f":"_xlfn.XLOOKUP(F2628,'Raw Data'!$I$4:$I$5000,'Raw Data'!$D$4:$D$5000,\"*** Mnemonic not found ***\",0)","v":"*** Mnemonic not found ***"},"SUCMPRRSK_US_PLC_C__",null,"Input",null,null,461,"O","Input!O461",{"$f":"_xlfn.XLOOKUP(F2628,'Raw Data'!$I$4:$I$5000,'Raw Data'!$E$4:$E$5000,100,0)","v":100},{"$f":"IF(N2628=0,_xlfn.XLOOKUP(F2628,'Raw Data'!$I$4:$I$5000,'Raw Data'!$H$4:$H$5000,\"\",0),\"\")","v":""},{"$f":"IF(INDIRECT(M2628) = \"\",\"\",INDIRECT(M2628))","v":""},"c","SUCMPRRSK_US_PLC_C_PLC_"]
["SUCMPRRSK_US_PLO_C",null,null,null,{"$f":"_xlfn.XLOOKUP(F2629,'Raw Data'!$I$4:$I$5000,'Raw Data'!$D$4:$D$5000,\"*** Mnemonic not found ***\",0)","v":"*** Mnemonic not found ***"},"SUCMPRRSK_US_PLO_C__",null,"Input",null,null,462,"O","Input!O462",{"$f":"_xlfn.XLOOKUP(F2629,'Raw Data'!$I$4:$I$5000,'Raw Data'!$E$4:$E$5000,100,0)","v":100},{"$f":"IF(N2629=0,_xlfn.XLOOKUP(F2629,'Raw Data'!$I$4:$I$5000,'Raw Data'!$H$4:$H$5000,\"\",0),\"\")","v":""},{"$f":"IF(INDIRECT(M2629) = \"\",\"\",INDIRECT(M2629))","v":""},"c","SUCMPRRSK_US_PLO_C_PLO_"]
["SUCMPRRSK_US_WCP_C",null,null,null,{"$f":"_xlfn.XLOOKUP(F2630,'Raw Data'!$I$4:$I$5000,'Raw Data'!$D$4:$D$5000,\"*** Mnemonic not found ***\",0)","v":"*** Mnemonic not found ***"},"SUCMPRRSK_US_WCP_C__",null,"Input",null,null,463,"O","Input!O463",{"$f":"_xlfn.XLOOKUP(F2630,'Raw Data'!$I$4:$I$5000,'Raw Data'!$E$4:$E$5000,100,0)","v":100},{"$f":"IF(N2630=0,_xlfn.XLOOKUP(F2630,'Raw Data'!$I$4:$I$5000,'Raw Data'!$H$4:$H$5000,\"\",0),\"\")","v":""},{"$f":"IF(INDIRECT(M2630) = \"\",\"\",INDIRECT(M2630))","v":""},"c","SUCMPRRSK_US_WCP_C_WCP_"]
["SUCMPRRSK_US_BLM_C",null,null,null,{"$f":"_xlfn.XLOOKUP(F2631,'Raw Data'!$I$4:$I$5000,'Raw Data'!$D$4:$D$5000,\"*** Mnemonic not found ***\",0)","v":"*** Mnemonic not found ***"},"SUCMPRRSK_US_BLM_C__",null,"Input",null,null,464,"O","Input!O464",{"$f":"_xlfn.XLOOKUP(F2631,'Raw Data'!$I$4:$I$5000,'Raw Data'!$E$4:$E$5000,100,0)","v":100},{"$f":"IF(N2631=0,_xlfn.XLOOKUP(F2631,'Raw Data'!$I$4:$I$5000,'Raw Data'!$H$4:$H$5000,\"\",0),\"\")","v":""},{"$f":"IF(INDIRECT(M2631) = \"\",\"\",INDIRECT(M2631))","v":""},"c","SUCMPRRSK_US_BLM_C_BLM_"]
["SUCMPRRSK_US_CMP_C",null,null,null,{"$f":"_xlfn.XLOOKUP(F2632,'Raw Data'!$I$4:$I$5000,'Raw Data'!$D$4:$D$5000,\"*** Mnemonic not found ***\",0)","v":"*** Mnemonic not found ***"},"SUCMPRRSK_US_CMP_C__",null,"Input",null,null,465,"O","Input!O465",{"$f":"_xlfn.XLOOKUP(F2632,'Raw Data'!$I$4:$I$5000,'Raw Data'!$E$4:$E$5000,100,0)","v":100},{"$f":"IF(N2632=0,_xlfn.XLOOKUP(F2632,'Raw Data'!$I$4:$I$5000,'Raw Data'!$H$4:$H$5000,\"\",0),\"\")","v":""},{"$f":"IF(INDIRECT(M2632) = \"\",\"\",INDIRECT(M2632))","v":""},"c","SUCMPRRSK_US_CMP_C_CMP_"]
["SUCMPRRSK_US_HFM_C",null,null,null,{"$f":"_xlfn.XLOOKUP(F2633,'Raw Data'!$I$4:$I$5000,'Raw Data'!$D$4:$D$5000,\"*** Mnemonic not found ***\",0)","v":"*** Mnemonic not found ***"},"SUCMPRRSK_US_HFM_C__",null,"Input",null,null,466,"O","Input!O466",{"$f":"_xlfn.XLOOKUP(F2633,'Raw Data'!$I$4:$I$5000,'Raw Data'!$E$4:$E$5000,100,0)","v":100},{"$f":"IF(N2633=0,_xlfn.XLOOKUP(F2633,'Raw Data'!$I$4:$I$5000,'Raw Data'!$H$4:$H$5000,\"\",0),\"\")","v":""},{"$f":"IF(INDIRECT(M2633) = \"\",\"\",INDIRECT(M2633))","v":""},"c","SUCMPRRSK_US_HFM_C_HFM_"]
["SUCMPRRSK_US_SPP_C",null,null,null,{"$f":"_xlfn.XLOOKUP(F2634,'Raw Data'!$I$4:$I$5000,'Raw Data'!$D$4:$D$5000,\"*** Mnemonic not found ***\",0)","v":"*** Mnemonic not found ***"},"SUCMPRRSK_US_SPP_C__",null,"Input",null,null,467,"O","Input!O467",{"$f":"_xlfn.XLOOKUP(F2634,'Raw Data'!$I$4:$I$5000,'Raw Data'!$E$4:$E$5000,100,0)","v":100},{"$f":"IF(N2634=0,_xlfn.XLOOKUP(F2634,'Raw Data'!$I$4:$I$5000,'Raw Data'!$H$4:$H$5000,\"\",0),\"\")","v":""},{"$f":"IF(INDIRECT(M2634) = \"\",\"\",INDIRECT(M2634))","v":""},"c","SUCMPRRSK_US_SPP_C_SPP_"]
["SUCMPRRSK_US_APB_C",null,null,null,{"$f":"_xlfn.XLOOKUP(F2635,'Raw Data'!$I$4:$I$5000,'Raw Data'!$D$4:$D$5000,\"*** Mnemonic not found ***\",0)","v":"*** Mnemonic not found ***"},"SUCMPRRSK_US_APB_C__",null,"Input",null,null,468,"O","Input!O468",{"$f":"_xlfn.XLOOKUP(F2635,'Raw Data'!$I$4:$I$5000,'Raw Data'!$E$4:$E$5000,100,0)","v":100},{"$f":"IF(N2635=0,_xlfn.XLOOKUP(F2635,'Raw Data'!$I$4:$I$5000,'Raw Data'!$H$4:$H$5000,\"\",0),\"\")","v":""},{"$f":"IF(INDIRECT(M2635) = \"\",\"\",INDIRECT(M2635))","v":""},"c","SUCMPRRSK_US_APB_C_APB_"]
["SUCMPRRSK_US_CAL_C",null,null,null,{"$f":"_xlfn.XLOOKUP(F2636,'Raw Data'!$I$4:$I$5000,'Raw Data'!$D$4:$D$5000,\"*** Mnemonic not found ***\",0)","v":"*** Mnemonic not found ***"},"SUCMPRRSK_US_CAL_C__",null,"Input",null,null,469,"O","Input!O469",{"$f":"_xlfn.XLOOKUP(F2636,'Raw Data'!$I$4:$I$5000,'Raw Data'!$E$4:$E$5000,100,0)","v":100},{"$f":"IF(N2636=0,_xlfn.XLOOKUP(F2636,'Raw Data'!$I$4:$I$5000,'Raw Data'!$H$4:$H$5000,\"\",0),\"\")","v":""},{"$f":"IF(INDIRECT(M2636) = \"\",\"\",INDIRECT(M2636))","v":""},"c","SUCMPRRSK_US_CAL_C_CAL_"]
["SUCMPRRSK_US_PPA_C",null,null,null,{"$f":"_xlfn.XLOOKUP(F2637,'Raw Data'!$I$4:$I$5000,'Raw Data'!$D$4:$D$5000,\"*** Mnemonic not found ***\",0)","v":"*** Mnemonic not found ***"},"SUCMPRRSK_US_PPA_C__",null,"Input",null,null,470,"O","Input!O470",{"$f":"_xlfn.XLOOKUP(F2637,'Raw Data'!$I$4:$I$5000,'Raw Data'!$E$4:$E$5000,100,0)","v":100},{"$f":"IF(N2637=0,_xlfn.XLOOKUP(F2637,'Raw Data'!$I$4:$I$5000,'Raw Data'!$H$4:$H$5000,\"\",0),\"\")","v":""},{"$f":"IF(INDIRECT(M2637) = \"\",\"\",INDIRECT(M2637))","v":""},"c","SUCMPRRSK_US_PPA_C_PPA_"]
["SUCMPRRSK_US_CRD_C",null,null,null,{"$f":"_xlfn.XLOOKUP(F2638,'Raw Data'!$I$4:$I$5000,'Raw Data'!$D$4:$D$5000,\"*** Mnemonic not found ***\",0)","v":"*** Mnemonic not found ***"},{"$f":"CONCATENATE(A2638,\"_\",B2638,\"_\",D2638)","v":"SUCMPRRSK_US_CRD_C__"},null,"Input",null,null,471,"O","Input!O471",{"$f":"_xlfn.XLOOKUP(F2638,'Raw Data'!$I$4:$I$5000,'Raw Data'!$E$4:$E$5000,100,0)","v":100},{"$f":"IF(N2638=0,_xlfn.XLOOKUP(F2638,'Raw Data'!$I$4:$I$5000,'Raw Data'!$H$4:$H$5000,\"\",0),\"\")","v":""},{"$f":"IF(INDIRECT(M2638) = \"\",\"\",INDIRECT(M2638))","v":""},"c","SUCMPRRSK_US_CRD_C_CRD_"]
["SUCMPRRSK_US_FIDSUR_C",null,null,null,{"$f":"_xlfn.XLOOKUP(F2639,'Raw Data'!$I$4:$I$5000,'Raw Data'!$D$4:$D$5000,\"*** Mnemonic not found ***\",0)","v":"*** Mnemonic not found ***"},"SUCMPRRSK_US_FIDSUR_C__",null,"Input",null,null,472,"O","Input!O472",{"$f":"_xlfn.XLOOKUP(F2639,'Raw Data'!$I$4:$I$5000,'Raw Data'!$E$4:$E$5000,100,0)","v":100},{"$f":"IF(N2639=0,_xlfn.XLOOKUP(F2639,'Raw Data'!$I$4:$I$5000,'Raw Data'!$H$4:$H$5000,\"\",0),\"\")","v":""},{"$f":"IF(INDIRECT(M2639) = \"\",\"\",INDIRECT(M2639))","v":""},"c","SUCMPRRSK_US_FIDSUR_C_FIDSUR_"]
["SUCMPRRSK_US_FIG_C",null,null,null,{"$f":"_xlfn.XLOOKUP(F2640,'Raw Data'!$I$4:$I$5000,'Raw Data'!$D$4:$D$5000,\"*** Mnemonic not found ***\",0)","v":"*** Mnemonic not found ***"},"SUCMPRRSK_US_FIG_C__",null,"Input",null,null,473,"O","Input!O473",{"$f":"_xlfn.XLOOKUP(F2640,'Raw Data'!$I$4:$I$5000,'Raw Data'!$E$4:$E$5000,100,0)","v":100},{"$f":"IF(N2640=0,_xlfn.XLOOKUP(F2640,'Raw Data'!$I$4:$I$5000,'Raw Data'!$H$4:$H$5000,\"\",0),\"\")","v":""},{"$f":"IF(INDIRECT(M2640) = \"\",\"\",INDIRECT(M2640))","v":""},"c","SUCMPRRSK_US_FIG_C_FIG_"]
["SUCMPRRSK_US_STPR_C",null,null,null,{"$f":"_xlfn.XLOOKUP(F2641,'Raw Data'!$I$4:$I$5000,'Raw Data'!$D$4:$D$5000,\"*** Mnemonic not found ***\",0)","v":"*** Mnemonic not found ***"},"SUCMPRRSK_US_STPR_C__",null,"Input",null,null,474,"O","Input!O474",{"$f":"_xlfn.XLOOKUP(F2641,'Raw Data'!$I$4:$I$5000,'Raw Data'!$E$4:$E$5000,100,0)","v":100},{"$f":"IF(N2641=0,_xlfn.XLOOKUP(F2641,'Raw Data'!$I$4:$I$5000,'Raw Data'!$H$4:$H$5000,\"\",0),\"\")","v":""},{"$f":"IF(INDIRECT(M2641) = \"\",\"\",INDIRECT(M2641))","v":""},"c","SUCMPRRSK_US_STPR_C_STPR_"]
["SUCMPRRSK_US_AAH_C",null,null,null,{"$f":"_xlfn.XLOOKUP(F2642,'Raw Data'!$I$4:$I$5000,'Raw Data'!$D$4:$D$5000,\"*** Mnemonic not found ***\",0)","v":"*** Mnemonic not found ***"},"SUCMPRRSK_US_AAH_C__",null,"Input",null,null,475,"O","Input!O475",{"$f":"_xlfn.XLOOKUP(F2642,'Raw Data'!$I$4:$I$5000,'Raw Data'!$E$4:$E$5000,100,0)","v":100},{"$f":"IF(N2642=0,_xlfn.XLOOKUP(F2642,'Raw Data'!$I$4:$I$5000,'Raw Data'!$H$4:$H$5000,\"\",0),\"\")","v":""},{"$f":"IF(INDIRECT(M2642) = \"\",\"\",INDIRECT(M2642))","v":""},"c","SUCMPRRSK_US_AAH_C_AAH_"]
["SUCMPRRSK_US_ADSADC_C",null,null,null,{"$f":"_xlfn.XLOOKUP(F2643,'Raw Data'!$I$4:$I$5000,'Raw Data'!$D$4:$D$5000,\"*** Mnemonic not found ***\",0)","v":"*** Mnemonic not found ***"},"SUCMPRRSK_US_ADSADC_C__",null,"Input",null,null,476,"O","Input!O476",{"$f":"_xlfn.XLOOKUP(F2643,'Raw Data'!$I$4:$I$5000,'Raw Data'!$E$4:$E$5000,100,0)","v":100},{"$f":"IF(N2643=0,_xlfn.XLOOKUP(F2643,'Raw Data'!$I$4:$I$5000,'Raw Data'!$H$4:$H$5000,\"\",0),\"\")","v":""},{"$f":"IF(INDIRECT(M2643) = \"\",\"\",INDIRECT(M2643))","v":""},"c","SUCMPRRSK_US_ADSADC_C_ADSADC_"]
["SUCMPRRSK_US_FLRS_C",null,null,null,{"$f":"_xlfn.XLOOKUP(F2644,'Raw Data'!$I$4:$I$5000,'Raw Data'!$D$4:$D$5000,\"*** Mnemonic not found ***\",0)","v":"*** Mnemonic not found ***"},"SUCMPRRSK_US_FLRS_C__",null,"Input",null,null,477,"O","Input!O477",{"$f":"_xlfn.XLOOKUP(F2644,'Raw Data'!$I$4:$I$5000,'Raw Data'!$E$4:$E$5000,100,0)","v":100},{"$f":"IF(N2644=0,_xlfn.XLOOKUP(F2644,'Raw Data'!$I$4:$I$5000,'Raw Data'!$H$4:$H$5000,\"\",0),\"\")","v":""},{"$f":"IF(INDIRECT(M2644) = \"\",\"\",INDIRECT(M2644))","v":""},"c","SUCMPRRSK_US_FLRS_C_FLRS_"]
["SUCMPRRSK_US_DENVIS_C",null,null,null,{"$f":"_xlfn.XLOOKUP(F2645,'Raw Data'!$I$4:$I$5000,'Raw Data'!$D$4:$D$5000,\"*** Mnemonic not found ***\",0)","v":"*** Mnemonic not found ***"},"SUCMPRRSK_US_DENVIS_C__",null,"Input",null,null,478,"O","Input!O478",{"$f":"_xlfn.XLOOKUP(F2645,'Raw Data'!$I$4:$I$5000,'Raw Data'!$E$4:$E$5000,100,0)","v":100},{"$f":"IF(N2645=0,_xlfn.XLOOKUP(F2645,'Raw Data'!$I$4:$I$5000,'Raw Data'!$H$4:$H$5000,\"\",0),\"\")","v":""},{"$f":"IF(INDIRECT(M2645) = \"\",\"\",INDIRECT(M2645))","v":""},"c","SUCMPRRSK_US_DENVIS_C_DENVIS_"]
["SUCMPRRSK_US_FEP_C",null,null,null,{"$f":"_xlfn.XLOOKUP(F2646,'Raw Data'!$I$4:$I$5000,'Raw Data'!$D$4:$D$5000,\"*** Mnemonic not found ***\",0)","v":"*** Mnemonic not found ***"},"SUCMPRRSK_US_FEP_C__",null,"Input",null,null,479,"O","Input!O479",{"$f":"_xlfn.XLOOKUP(F2646,'Raw Data'!$I$4:$I$5000,'Raw Data'!$E$4:$E$5000,100,0)","v":100},{"$f":"IF(N2646=0,_xlfn.XLOOKUP(F2646,'Raw Data'!$I$4:$I$5000,'Raw Data'!$H$4:$H$5000,\"\",0),\"\")","v":""},{"$f":"IF(INDIRECT(M2646) = \"\",\"\",INDIRECT(M2646))","v":""},"c","SUCMPRRSK_US_FEP_C_FEP_"]
["SUCMPRRSK_US_HMDO_C",null,null,null,{"$f":"_xlfn.XLOOKUP(F2647,'Raw Data'!$I$4:$I$5000,'Raw Data'!$D$4:$D$5000,\"*** Mnemonic not found ***\",0)","v":"*** Mnemonic not found ***"},"SUCMPRRSK_US_HMDO_C__",null,"Input",null,null,480,"O","Input!O480",{"$f":"_xlfn.XLOOKUP(F2647,'Raw Data'!$I$4:$I$5000,'Raw Data'!$E$4:$E$5000,100,0)","v":100},{"$f":"IF(N2647=0,_xlfn.XLOOKUP(F2647,'Raw Data'!$I$4:$I$5000,'Raw Data'!$H$4:$H$5000,\"\",0),\"\")","v":""},{"$f":"IF(INDIRECT(M2647) = \"\",\"\",INDIRECT(M2647))","v":""},"c","SUCMPRRSK_US_HMDO_C_HMDO_"]
["SUCMPRRSK_US_MDMID_C",null,null,null,{"$f":"_xlfn.XLOOKUP(F2648,'Raw Data'!$I$4:$I$5000,'Raw Data'!$D$4:$D$5000,\"*** Mnemonic not found ***\",0)","v":"*** Mnemonic not found ***"},"SUCMPRRSK_US_MDMID_C__",null,"Input",null,null,481,"O","Input!O481",{"$f":"_xlfn.XLOOKUP(F2648,'Raw Data'!$I$4:$I$5000,'Raw Data'!$E$4:$E$5000,100,0)","v":100},{"$f":"IF(N2648=0,_xlfn.XLOOKUP(F2648,'Raw Data'!$I$4:$I$5000,'Raw Data'!$H$4:$H$5000,\"\",0),\"\")","v":""},{"$f":"IF(INDIRECT(M2648) = \"\",\"\",INDIRECT(M2648))","v":""},"c","SUCMPRRSK_US_MDMID_C_MDMID_"]
["SUCMPRRSK_US_MEDDO_C",null,null,null,{"$f":"_xlfn.XLOOKUP(F2649,'Raw Data'!$I$4:$I$5000,'Raw Data'!$D$4:$D$5000,\"*** Mnemonic not found ***\",0)","v":"*** Mnemonic not found ***"},"SUCMPRRSK_US_MEDDO_C__",null,"Input",null,null,482,"O","Input!O482",{"$f":"_xlfn.XLOOKUP(F2649,'Raw Data'!$I$4:$I$5000,'Raw Data'!$E$4:$E$5000,100,0)","v":100},{"$f":"IF(N2649=0,_xlfn.XLOOKUP(F2649,'Raw Data'!$I$4:$I$5000,'Raw Data'!$H$4:$H$5000,\"\",0),\"\")","v":""},{"$f":"IF(INDIRECT(M2649) = \"\",\"\",INDIRECT(M2649))","v":""},"c","SUCMPRRSK_US_MEDDO_C_MEDDO_"]
["SUCMPRRSK_US_MEDDRO_C",null,null,null,{"$f":"_xlfn.XLOOKUP(F2650,'Raw Data'!$I$4:$I$5000,'Raw Data'!$D$4:$D$5000,\"*** Mnemonic not found ***\",0)","v":"*** Mnemonic not found ***"},"SUCMPRRSK_US_MEDDRO_C__",null,"Input",null,null,483,"O","Input!O483",{"$f":"_xlfn.XLOOKUP(F2650,'Raw Data'!$I$4:$I$5000,'Raw Data'!$E$4:$E$5000,100,0)","v":100},{"$f":"IF(N2650=0,_xlfn.XLOOKUP(F2650,'Raw Data'!$I$4:$I$5000,'Raw Data'!$H$4:$H$5000,\"\",0),\"\")","v":""},{"$f":"IF(INDIRECT(M2650) = \"\",\"\",INDIRECT(M2650))","v":""},"c","SUCMPRRSK_US_MEDDRO_C_MEDDRO_"]
["SUCMPRRSK_US_MEDDRR_C",null,null,null,{"$f":"_xlfn.XLOOKUP(F2651,'Raw Data'!$I$4:$I$5000,'Raw Data'!$D$4:$D$5000,\"*** Mnemonic not found ***\",0)","v":"*** Mnemonic not found ***"},"SUCMPRRSK_US_MEDDRR_C__",null,"Input",null,null,484,"O","Input!O484",{"$f":"_xlfn.XLOOKUP(F2651,'Raw Data'!$I$4:$I$5000,'Raw Data'!$E$4:$E$5000,100,0)","v":100},{"$f":"IF(N2651=0,_xlfn.XLOOKUP(F2651,'Raw Data'!$I$4:$I$5000,'Raw Data'!$H$4:$H$5000,\"\",0),\"\")","v":""},{"$f":"IF(INDIRECT(M2651) = \"\",\"\",INDIRECT(M2651))","v":""},"c","SUCMPRRSK_US_MEDDRR_C_MEDDRR_"]
["SUCMPRRSK_US_MDS_C",null,null,null,{"$f":"_xlfn.XLOOKUP(F2652,'Raw Data'!$I$4:$I$5000,'Raw Data'!$D$4:$D$5000,\"*** Mnemonic not found ***\",0)","v":"*** Mnemonic not found ***"},"SUCMPRRSK_US_MDS_C__",null,"Input",null,null,485,"O","Input!O485",{"$f":"_xlfn.XLOOKUP(F2652,'Raw Data'!$I$4:$I$5000,'Raw Data'!$E$4:$E$5000,100,0)","v":100},{"$f":"IF(N2652=0,_xlfn.XLOOKUP(F2652,'Raw Data'!$I$4:$I$5000,'Raw Data'!$H$4:$H$5000,\"\",0),\"\")","v":""},{"$f":"IF(INDIRECT(M2652) = \"\",\"\",INDIRECT(M2652))","v":""},"c","SUCMPRRSK_US_MDS_C_MDS_"]
["SUCMPRRSK_US_OLBF_C",null,null,null,{"$f":"_xlfn.XLOOKUP(F2653,'Raw Data'!$I$4:$I$5000,'Raw Data'!$D$4:$D$5000,\"*** Mnemonic not found ***\",0)","v":"*** Mnemonic not found ***"},"SUCMPRRSK_US_OLBF_C__",null,"Input",null,null,486,"O","Input!O486",{"$f":"_xlfn.XLOOKUP(F2653,'Raw Data'!$I$4:$I$5000,'Raw Data'!$E$4:$E$5000,100,0)","v":100},{"$f":"IF(N2653=0,_xlfn.XLOOKUP(F2653,'Raw Data'!$I$4:$I$5000,'Raw Data'!$H$4:$H$5000,\"\",0),\"\")","v":""},{"$f":"IF(INDIRECT(M2653) = \"\",\"\",INDIRECT(M2653))","v":""},"c","SUCMPRRSK_US_OLBF_C_OLBF_"]
["SUCMPRRSK_US_AIR_C",null,null,null,{"$f":"_xlfn.XLOOKUP(F2654,'Raw Data'!$I$4:$I$5000,'Raw Data'!$D$4:$D$5000,\"*** Mnemonic not found ***\",0)","v":"*** Mnemonic not found ***"},"SUCMPRRSK_US_AIR_C__",null,"Input",null,null,487,"O","Input!O487",{"$f":"_xlfn.XLOOKUP(F2654,'Raw Data'!$I$4:$I$5000,'Raw Data'!$E$4:$E$5000,100,0)","v":100},{"$f":"IF(N2654=0,_xlfn.XLOOKUP(F2654,'Raw Data'!$I$4:$I$5000,'Raw Data'!$H$4:$H$5000,\"\",0),\"\")","v":""},{"$f":"IF(INDIRECT(M2654) = \"\",\"\",INDIRECT(M2654))","v":""},"c","SUCMPRRSK_US_AIR_C_AIR_"]
["SUCMPRRSK_US_MPIN_C",null,null,null,{"$f":"_xlfn.XLOOKUP(F2655,'Raw Data'!$I$4:$I$5000,'Raw Data'!$D$4:$D$5000,\"*** Mnemonic not found ***\",0)","v":"*** Mnemonic not found ***"},"SUCMPRRSK_US_MPIN_C__",null,"Input",null,null,488,"O","Input!O488",{"$f":"_xlfn.XLOOKUP(F2655,'Raw Data'!$I$4:$I$5000,'Raw Data'!$E$4:$E$5000,100,0)","v":100},{"$f":"IF(N2655=0,_xlfn.XLOOKUP(F2655,'Raw Data'!$I$4:$I$5000,'Raw Data'!$H$4:$H$5000,\"\",0),\"\")","v":""},{"$f":"IF(INDIRECT(M2655) = \"\",\"\",INDIRECT(M2655))","v":""},"c","SUCMPRRSK_US_MPIN_C_MPIN_"]
["SUCMPRRSK_US_OCM_C",null,null,null,{"$f":"_xlfn.XLOOKUP(F2656,'Raw Data'!$I$4:$I$5000,'Raw Data'!$D$4:$D$5000,\"*** Mnemonic not found ***\",0)","v":"*** Mnemonic not found ***"},"SUCMPRRSK_US_OCM_C__",null,"Input",null,null,489,"O","Input!O489",{"$f":"_xlfn.XLOOKUP(F2656,'Raw Data'!$I$4:$I$5000,'Raw Data'!$E$4:$E$5000,100,0)","v":100},{"$f":"IF(N2656=0,_xlfn.XLOOKUP(F2656,'Raw Data'!$I$4:$I$5000,'Raw Data'!$H$4:$H$5000,\"\",0),\"\")","v":""},{"$f":"IF(INDIRECT(M2656) = \"\",\"\",INDIRECT(M2656))","v":""},"c","SUCMPRRSK_US_OCM_C_OCM_"]
["SUCMPRRSK_US_TITLE_C",null,null,null,{"$f":"_xlfn.XLOOKUP(F2657,'Raw Data'!$I$4:$I$5000,'Raw Data'!$D$4:$D$5000,\"*** Mnemonic not found ***\",0)","v":"*** Mnemonic not found ***"},"SUCMPRRSK_US_TITLE_C__",null,"Input",null,null,{"$f":"K2656+1","v":490},"O","Input!O490",{"$f":"_xlfn.XLOOKUP(F2657,'Raw Data'!$I$4:$I$5000,'Raw Data'!$E$4:$E$5000,100,0)","v":100},{"$f":"IF(N2657=0,_xlfn.XLOOKUP(F2657,'Raw Data'!$I$4:$I$5000,'Raw Data'!$H$4:$H$5000,\"\",0),\"\")","v":""},{"$f":"IF(INDIRECT(M2657) = \"\",\"\",INDIRECT(M2657))","v":""},"c","SUCMPRRSK_US_TITLE_C_TITLE_"]
["SUCMPRRSK_US_WAR_C",null,null,null,{"$f":"_xlfn.XLOOKUP(F2658,'Raw Data'!$I$4:$I$5000,'Raw Data'!$D$4:$D$5000,\"*** Mnemonic not found ***\",0)","v":"*** Mnemonic not found ***"},"SUCMPRRSK_US_WAR_C__",null,"Input",null,null,491,"O","Input!O491",{"$f":"_xlfn.XLOOKUP(F2658,'Raw Data'!$I$4:$I$5000,'Raw Data'!$E$4:$E$5000,100,0)","v":100},{"$f":"IF(N2658=0,_xlfn.XLOOKUP(F2658,'Raw Data'!$I$4:$I$5000,'Raw Data'!$H$4:$H$5000,\"\",0),\"\")","v":""},{"$f":"IF(INDIRECT(M2658) = \"\",\"\",INDIRECT(M2658))","v":""},"c","SUCMPRRSK_US_WAR_C_WAR_"]
["SUCMPRRSK_US_OCAH_C",null,null,null,{"$f":"_xlfn.XLOOKUP(F2659,'Raw Data'!$I$4:$I$5000,'Raw Data'!$D$4:$D$5000,\"*** Mnemonic not found ***\",0)","v":"*** Mnemonic not found ***"},"SUCMPRRSK_US_OCAH_C__",null,"Input",null,null,492,"O","Input!O492",{"$f":"_xlfn.XLOOKUP(F2659,'Raw Data'!$I$4:$I$5000,'Raw Data'!$E$4:$E$5000,100,0)","v":100},{"$f":"IF(N2659=0,_xlfn.XLOOKUP(F2659,'Raw Data'!$I$4:$I$5000,'Raw Data'!$H$4:$H$5000,\"\",0),\"\")","v":""},{"$f":"IF(INDIRECT(M2659) = \"\",\"\",INDIRECT(M2659))","v":""},"c","SUCMPRRSK_US_OCAH_C_OCAH_"]
["SUCMPRRSK_CN_LIA_C",null,null,null,{"$f":"_xlfn.XLOOKUP(F2660,'Raw Data'!$I$4:$I$5000,'Raw Data'!$D$4:$D$5000,\"*** Mnemonic not found ***\",0)","v":"*** Mnemonic not found ***"},"SUCMPRRSK_CN_LIA_C__",null,"Input",null,null,{"$f":"K2659+2","v":494},"O","Input!O494",{"$f":"_xlfn.XLOOKUP(F2660,'Raw Data'!$I$4:$I$5000,'Raw Data'!$E$4:$E$5000,100,0)","v":100},{"$f":"IF(N2660=0,_xlfn.XLOOKUP(F2660,'Raw Data'!$I$4:$I$5000,'Raw Data'!$H$4:$H$5000,\"\",0),\"\")","v":""},{"$f":"IF(INDIRECT(M2660) = \"\",\"\",INDIRECT(M2660))","v":""},"c","SUCMPRRSK_CN_LIA_C_LIA_"]
["SUCMPRRSK_CN_BLM_C",null,null,null,{"$f":"_xlfn.XLOOKUP(F2661,'Raw Data'!$I$4:$I$5000,'Raw Data'!$D$4:$D$5000,\"*** Mnemonic not found ***\",0)","v":"*** Mnemonic not found ***"},"SUCMPRRSK_CN_BLM_C__",null,"Input",null,null,495,"O","Input!O495",{"$f":"_xlfn.XLOOKUP(F2661,'Raw Data'!$I$4:$I$5000,'Raw Data'!$E$4:$E$5000,100,0)","v":100},{"$f":"IF(N2661=0,_xlfn.XLOOKUP(F2661,'Raw Data'!$I$4:$I$5000,'Raw Data'!$H$4:$H$5000,\"\",0),\"\")","v":""},{"$f":"IF(INDIRECT(M2661) = \"\",\"\",INDIRECT(M2661))","v":""},"c","SUCMPRRSK_CN_BLM_C_BLM_"]
["SUCMPRRSK_CN_CMPR_C",null,null,null,{"$f":"_xlfn.XLOOKUP(F2662,'Raw Data'!$I$4:$I$5000,'Raw Data'!$D$4:$D$5000,\"*** Mnemonic not found ***\",0)","v":"*** Mnemonic not found ***"},"SUCMPRRSK_CN_CMPR_C__",null,"Input",null,null,496,"O","Input!O496",{"$f":"_xlfn.XLOOKUP(F2662,'Raw Data'!$I$4:$I$5000,'Raw Data'!$E$4:$E$5000,100,0)","v":100},{"$f":"IF(N2662=0,_xlfn.XLOOKUP(F2662,'Raw Data'!$I$4:$I$5000,'Raw Data'!$H$4:$H$5000,\"\",0),\"\")","v":""},{"$f":"IF(INDIRECT(M2662) = \"\",\"\",INDIRECT(M2662))","v":""},"c","SUCMPRRSK_CN_CMPR_C_CMPR_"]
["SUCMPRRSK_CN_HAIL_C",null,null,null,{"$f":"_xlfn.XLOOKUP(F2663,'Raw Data'!$I$4:$I$5000,'Raw Data'!$D$4:$D$5000,\"*** Mnemonic not found ***\",0)","v":"*** Mnemonic not found ***"},"SUCMPRRSK_CN_HAIL_C__",null,"Input",null,null,497,"O","Input!O497",{"$f":"_xlfn.XLOOKUP(F2663,'Raw Data'!$I$4:$I$5000,'Raw Data'!$E$4:$E$5000,100,0)","v":100},{"$f":"IF(N2663=0,_xlfn.XLOOKUP(F2663,'Raw Data'!$I$4:$I$5000,'Raw Data'!$H$4:$H$5000,\"\",0),\"\")","v":""},{"$f":"IF(INDIRECT(M2663) = \"\",\"\",INDIRECT(M2663))","v":""},"c","SUCMPRRSK_CN_HAIL_C_HAIL_"]
["SUCMPRRSK_CN_PPR_C",null,null,null,{"$f":"_xlfn.XLOOKUP(F2664,'Raw Data'!$I$4:$I$5000,'Raw Data'!$D$4:$D$5000,\"*** Mnemonic not found ***\",0)","v":"*** Mnemonic not found ***"},"SUCMPRRSK_CN_PPR_C__",null,"Input",null,null,498,"O","Input!O498",{"$f":"_xlfn.XLOOKUP(F2664,'Raw Data'!$I$4:$I$5000,'Raw Data'!$E$4:$E$5000,100,0)","v":100},{"$f":"IF(N2664=0,_xlfn.XLOOKUP(F2664,'Raw Data'!$I$4:$I$5000,'Raw Data'!$H$4:$H$5000,\"\",0),\"\")","v":""},{"$f":"IF(INDIRECT(M2664) = \"\",\"\",INDIRECT(M2664))","v":""},"c","SUCMPRRSK_CN_PPR_C_PPR_"]
["SUCMPRRSK_CN_ALB_C",null,null,null,{"$f":"_xlfn.XLOOKUP(F2665,'Raw Data'!$I$4:$I$5000,'Raw Data'!$D$4:$D$5000,\"*** Mnemonic not found ***\",0)","v":"*** Mnemonic not found ***"},"SUCMPRRSK_CN_ALB_C__",null,"Input",null,null,499,"O","Input!O499",{"$f":"_xlfn.XLOOKUP(F2665,'Raw Data'!$I$4:$I$5000,'Raw Data'!$E$4:$E$5000,100,0)","v":100},{"$f":"IF(N2665=0,_xlfn.XLOOKUP(F2665,'Raw Data'!$I$4:$I$5000,'Raw Data'!$H$4:$H$5000,\"\",0),\"\")","v":""},{"$f":"IF(INDIRECT(M2665) = \"\",\"\",INDIRECT(M2665))","v":""},"c","SUCMPRRSK_CN_ALB_C_ALB_"]
["SUCMPRRSK_CN_ATOTH_C",null,null,null,{"$f":"_xlfn.XLOOKUP(F2666,'Raw Data'!$I$4:$I$5000,'Raw Data'!$D$4:$D$5000,\"*** Mnemonic not found ***\",0)","v":"*** Mnemonic not found ***"},"SUCMPRRSK_CN_ATOTH_C__",null,"Input",null,null,500,"O","Input!O500",{"$f":"_xlfn.XLOOKUP(F2666,'Raw Data'!$I$4:$I$5000,'Raw Data'!$E$4:$E$5000,100,0)","v":100},{"$f":"IF(N2666=0,_xlfn.XLOOKUP(F2666,'Raw Data'!$I$4:$I$5000,'Raw Data'!$H$4:$H$5000,\"\",0),\"\")","v":""},{"$f":"IF(INDIRECT(M2666) = \"\",\"\",INDIRECT(M2666))","v":""},"c","SUCMPRRSK_CN_ATOTH_C_ATOTH_"]
["SUCMPRRSK_CN_ATPAC_C",null,null,null,{"$f":"_xlfn.XLOOKUP(F2667,'Raw Data'!$I$4:$I$5000,'Raw Data'!$D$4:$D$5000,\"*** Mnemonic not found ***\",0)","v":"*** Mnemonic not found ***"},"SUCMPRRSK_CN_ATPAC_C__",null,"Input",null,null,501,"O","Input!O501",{"$f":"_xlfn.XLOOKUP(F2667,'Raw Data'!$I$4:$I$5000,'Raw Data'!$E$4:$E$5000,100,0)","v":100},{"$f":"IF(N2667=0,_xlfn.XLOOKUP(F2667,'Raw Data'!$I$4:$I$5000,'Raw Data'!$H$4:$H$5000,\"\",0),\"\")","v":""},{"$f":"IF(INDIRECT(M2667) = \"\",\"\",INDIRECT(M2667))","v":""},"c","SUCMPRRSK_CN_ATPAC_C_ATPAC_"]
["SUCMPRRSK_CN_CRD_C",null,null,null,{"$f":"_xlfn.XLOOKUP(F2668,'Raw Data'!$I$4:$I$5000,'Raw Data'!$D$4:$D$5000,\"*** Mnemonic not found ***\",0)","v":"*** Mnemonic not found ***"},"SUCMPRRSK_CN_CRD_C__",null,"Input",null,null,502,"O","Input!O502",{"$f":"_xlfn.XLOOKUP(F2668,'Raw Data'!$I$4:$I$5000,'Raw Data'!$E$4:$E$5000,100,0)","v":100},{"$f":"IF(N2668=0,_xlfn.XLOOKUP(F2668,'Raw Data'!$I$4:$I$5000,'Raw Data'!$H$4:$H$5000,\"\",0),\"\")","v":""},{"$f":"IF(INDIRECT(M2668) = \"\",\"\",INDIRECT(M2668))","v":""},"c","SUCMPRRSK_CN_CRD_C_CRD_"]
["SUCMPRRSK_CN_CRPR_C",null,null,null,{"$f":"_xlfn.XLOOKUP(F2669,'Raw Data'!$I$4:$I$5000,'Raw Data'!$D$4:$D$5000,\"*** Mnemonic not found ***\",0)","v":"*** Mnemonic not found ***"},"SUCMPRRSK_CN_CRPR_C__",null,"Input",null,null,503,"O","Input!O503",{"$f":"_xlfn.XLOOKUP(F2669,'Raw Data'!$I$4:$I$5000,'Raw Data'!$E$4:$E$5000,100,0)","v":100},{"$f":"IF(N2669=0,_xlfn.XLOOKUP(F2669,'Raw Data'!$I$4:$I$5000,'Raw Data'!$H$4:$H$5000,\"\",0),\"\")","v":""},{"$f":"IF(INDIRECT(M2669) = \"\",\"\",INDIRECT(M2669))","v":""},"c","SUCMPRRSK_CN_CRPR_C_CRPR_"]
["SUCMPRRSK_CN_FID_C",null,null,null,{"$f":"_xlfn.XLOOKUP(F2670,'Raw Data'!$I$4:$I$5000,'Raw Data'!$D$4:$D$5000,\"*** Mnemonic not found ***\",0)","v":"*** Mnemonic not found ***"},"SUCMPRRSK_CN_FID_C__",null,"Input",null,null,504,"O","Input!O504",{"$f":"_xlfn.XLOOKUP(F2670,'Raw Data'!$I$4:$I$5000,'Raw Data'!$E$4:$E$5000,100,0)","v":100},{"$f":"IF(N2670=0,_xlfn.XLOOKUP(F2670,'Raw Data'!$I$4:$I$5000,'Raw Data'!$H$4:$H$5000,\"\",0),\"\")","v":""},{"$f":"IF(INDIRECT(M2670) = \"\",\"\",INDIRECT(M2670))","v":""},"c","SUCMPRRSK_CN_FID_C_FID_"]
["SUCMPRRSK_CN_SUR_C",null,null,null,{"$f":"_xlfn.XLOOKUP(F2671,'Raw Data'!$I$4:$I$5000,'Raw Data'!$D$4:$D$5000,\"*** Mnemonic not found ***\",0)","v":"*** Mnemonic not found ***"},"SUCMPRRSK_CN_SUR_C__",null,"Input",null,null,505,"O","Input!O505",{"$f":"_xlfn.XLOOKUP(F2671,'Raw Data'!$I$4:$I$5000,'Raw Data'!$E$4:$E$5000,100,0)","v":100},{"$f":"IF(N2671=0,_xlfn.XLOOKUP(F2671,'Raw Data'!$I$4:$I$5000,'Raw Data'!$H$4:$H$5000,\"\",0),\"\")","v":""},{"$f":"IF(INDIRECT(M2671) = \"\",\"\",INDIRECT(M2671))","v":""},"c","SUCMPRRSK_CN_SUR_C_SUR_"]
["SUCMPRRSK_CN_ACSK_C",null,null,null,{"$f":"_xlfn.XLOOKUP(F2672,'Raw Data'!$I$4:$I$5000,'Raw Data'!$D$4:$D$5000,\"*** Mnemonic not found ***\",0)","v":"*** Mnemonic not found ***"},"SUCMPRRSK_CN_ACSK_C__",null,"Input",null,null,506,"O","Input!O506",{"$f":"_xlfn.XLOOKUP(F2672,'Raw Data'!$I$4:$I$5000,'Raw Data'!$E$4:$E$5000,100,0)","v":100},{"$f":"IF(N2672=0,_xlfn.XLOOKUP(F2672,'Raw Data'!$I$4:$I$5000,'Raw Data'!$H$4:$H$5000,\"\",0),\"\")","v":""},{"$f":"IF(INDIRECT(M2672) = \"\",\"\",INDIRECT(M2672))","v":""},"c","SUCMPRRSK_CN_ACSK_C_ACSK_"]
["SUCMPRRSK_CN_SUPH_C",null,null,null,{"$f":"_xlfn.XLOOKUP(F2673,'Raw Data'!$I$4:$I$5000,'Raw Data'!$D$4:$D$5000,\"*** Mnemonic not found ***\",0)","v":"*** Mnemonic not found ***"},"SUCMPRRSK_CN_SUPH_C__",null,"Input",null,null,507,"O","Input!O507",{"$f":"_xlfn.XLOOKUP(F2673,'Raw Data'!$I$4:$I$5000,'Raw Data'!$E$4:$E$5000,100,0)","v":100},{"$f":"IF(N2673=0,_xlfn.XLOOKUP(F2673,'Raw Data'!$I$4:$I$5000,'Raw Data'!$H$4:$H$5000,\"\",0),\"\")","v":""},{"$f":"IF(INDIRECT(M2673) = \"\",\"\",INDIRECT(M2673))","v":""},"c","SUCMPRRSK_CN_SUPH_C_SUPH_"]
["SUCMPRRSK_CN_AIR_C",null,null,null,{"$f":"_xlfn.XLOOKUP(F2674,'Raw Data'!$I$4:$I$5000,'Raw Data'!$D$4:$D$5000,\"*** Mnemonic not found ***\",0)","v":"*** Mnemonic not found ***"},"SUCMPRRSK_CN_AIR_C__",null,"Input",null,null,508,{"$f":"L2673","v":"O"},{"$f":"CONCATENATE(H2674,\"!\",L2674,K2674)","v":"Input!O508"},{"$f":"_xlfn.XLOOKUP(F2674,'Raw Data'!$I$4:$I$5000,'Raw Data'!$E$4:$E$5000,100,0)","v":100},{"$f":"IF(N2674=0,_xlfn.XLOOKUP(F2674,'Raw Data'!$I$4:$I$5000,'Raw Data'!$H$4:$H$5000,\"\",0),\"\")","v":""},{"$f":"IF(INDIRECT(M2674) = \"\",\"\",INDIRECT(M2674))","v":""},"c","SUCMPRRSK_CN_AIR_C_AIR_"]
["SUCMPRRSK_CN_OCM_C",null,null,null,{"$f":"_xlfn.XLOOKUP(F2675,'Raw Data'!$I$4:$I$5000,'Raw Data'!$D$4:$D$5000,\"*** Mnemonic not found ***\",0)","v":"*** Mnemonic not found ***"},"SUCMPRRSK_CN_OCM_C__",null,"Input",null,null,509,"O","Input!O509",{"$f":"_xlfn.XLOOKUP(F2675,'Raw Data'!$I$4:$I$5000,'Raw Data'!$E$4:$E$5000,100,0)","v":100},{"$f":"IF(N2675=0,_xlfn.XLOOKUP(F2675,'Raw Data'!$I$4:$I$5000,'Raw Data'!$H$4:$H$5000,\"\",0),\"\")","v":""},{"$f":"IF(INDIRECT(M2675) = \"\",\"\",INDIRECT(M2675))","v":""},"c","SUCMPRRSK_CN_OCM_C_OCM_"]
["SUCMPRRSK_CN_MPIN_C",null,null,null,{"$f":"_xlfn.XLOOKUP(F2676,'Raw Data'!$I$4:$I$5000,'Raw Data'!$D$4:$D$5000,\"*** Mnemonic not found ***\",0)","v":"*** Mnemonic not found ***"},"SUCMPRRSK_CN_MPIN_C__",null,"Input",null,null,510,"O","Input!O510",{"$f":"_xlfn.XLOOKUP(F2676,'Raw Data'!$I$4:$I$5000,'Raw Data'!$E$4:$E$5000,100,0)","v":100},{"$f":"IF(N2676=0,_xlfn.XLOOKUP(F2676,'Raw Data'!$I$4:$I$5000,'Raw Data'!$H$4:$H$5000,\"\",0),\"\")","v":""},{"$f":"IF(INDIRECT(M2676) = \"\",\"\",INDIRECT(M2676))","v":""},"c","SUCMPRRSK_CN_MPIN_C_MPIN_"]
["SUCMPRRSK_CN_LEGEX_C",null,null,null,{"$f":"_xlfn.XLOOKUP(F2677,'Raw Data'!$I$4:$I$5000,'Raw Data'!$D$4:$D$5000,\"*** Mnemonic not found ***\",0)","v":"*** Mnemonic not found ***"},"SUCMPRRSK_CN_LEGEX_C__",null,"Input",null,null,511,"O","Input!O511",{"$f":"_xlfn.XLOOKUP(F2677,'Raw Data'!$I$4:$I$5000,'Raw Data'!$E$4:$E$5000,100,0)","v":100},{"$f":"IF(N2677=0,_xlfn.XLOOKUP(F2677,'Raw Data'!$I$4:$I$5000,'Raw Data'!$H$4:$H$5000,\"\",0),\"\")","v":""},{"$f":"IF(INDIRECT(M2677) = \"\",\"\",INDIRECT(M2677))","v":""},"c","SUCMPRRSK_CN_LEGEX_C_LEGEX_"]
["SUCMPRRSK_CN_OAPR_C",null,null,null,{"$f":"_xlfn.XLOOKUP(F2678,'Raw Data'!$I$4:$I$5000,'Raw Data'!$D$4:$D$5000,\"*** Mnemonic not found ***\",0)","v":"*** Mnemonic not found ***"},"SUCMPRRSK_CN_OAPR_C__",null,"Input",null,null,{"$f":"K2677+1","v":512},"O","Input!O512",{"$f":"_xlfn.XLOOKUP(F2678,'Raw Data'!$I$4:$I$5000,'Raw Data'!$E$4:$E$5000,100,0)","v":100},{"$f":"IF(N2678=0,_xlfn.XLOOKUP(F2678,'Raw Data'!$I$4:$I$5000,'Raw Data'!$H$4:$H$5000,\"\",0),\"\")","v":""},{"$f":"IF(INDIRECT(M2678) = \"\",\"\",INDIRECT(M2678))","v":""},"c","SUCMPRRSK_CN_OAPR_C_OAPR_"]
["SUCMPRRSK_CN_TITLE_C",null,null,null,{"$f":"_xlfn.XLOOKUP(F2679,'Raw Data'!$I$4:$I$5000,'Raw Data'!$D$4:$D$5000,\"*** Mnemonic not found ***\",0)","v":"*** Mnemonic not found ***"},"SUCMPRRSK_CN_TITLE_C__",null,"Input",null,null,513,"O","Input!O513",{"$f":"_xlfn.XLOOKUP(F2679,'Raw Data'!$I$4:$I$5000,'Raw Data'!$E$4:$E$5000,100,0)","v":100},{"$f":"IF(N2679=0,_xlfn.XLOOKUP(F2679,'Raw Data'!$I$4:$I$5000,'Raw Data'!$H$4:$H$5000,\"\",0),\"\")","v":""},{"$f":"IF(INDIRECT(M2679) = \"\",\"\",INDIRECT(M2679))","v":""},"c","SUCMPRRSK_CN_TITLE_C_TITLE_"]
["SUCMPRRSK_CN_WAR_C",null,null,null,{"$f":"_xlfn.XLOOKUP(F2680,'Raw Data'!$I$4:$I$5000,'Raw Data'!$D$4:$D$5000,\"*** Mnemonic not found ***\",0)","v":"*** Mnemonic not found ***"},"SUCMPRRSK_CN_WAR_C__",null,"Input",null,null,514,"O","Input!O514",{"$f":"_xlfn.XLOOKUP(F2680,'Raw Data'!$I$4:$I$5000,'Raw Data'!$E$4:$E$5000,100,0)","v":100},{"$f":"IF(N2680=0,_xlfn.XLOOKUP(F2680,'Raw Data'!$I$4:$I$5000,'Raw Data'!$H$4:$H$5000,\"\",0),\"\")","v":""},{"$f":"IF(INDIRECT(M2680) = \"\",\"\",INDIRECT(M2680))","v":""},"c","SUCMPRRSK_CN_WAR_C_WAR_"]
["SUCMPRRSK_CN_OCAH_C",null,null,null,{"$f":"_xlfn.XLOOKUP(F2681,'Raw Data'!$I$4:$I$5000,'Raw Data'!$D$4:$D$5000,\"*** Mnemonic not found ***\",0)","v":"*** Mnemonic not found ***"},"SUCMPRRSK_CN_OCAH_C__",null,"Input",null,null,515,"O","Input!O515",{"$f":"_xlfn.XLOOKUP(F2681,'Raw Data'!$I$4:$I$5000,'Raw Data'!$E$4:$E$5000,100,0)","v":100},{"$f":"IF(N2681=0,_xlfn.XLOOKUP(F2681,'Raw Data'!$I$4:$I$5000,'Raw Data'!$H$4:$H$5000,\"\",0),\"\")","v":""},{"$f":"IF(INDIRECT(M2681) = \"\",\"\",INDIRECT(M2681))","v":""},"c","SUCMPRRSK_CN_OCAH_C_OCAH_"]
["SUCMPRRSK_AP_EMLIB_C",null,null,null,{"$f":"_xlfn.XLOOKUP(F2682,'Raw Data'!$I$4:$I$5000,'Raw Data'!$D$4:$D$5000,\"*** Mnemonic not found ***\",0)","v":"*** Mnemonic not found ***"},"SUCMPRRSK_AP_EMLIB_C__",null,"Input",null,null,{"$f":"K2681+2","v":517},"O","Input!O517",{"$f":"_xlfn.XLOOKUP(F2682,'Raw Data'!$I$4:$I$5000,'Raw Data'!$E$4:$E$5000,100,0)","v":100},{"$f":"IF(N2682=0,_xlfn.XLOOKUP(F2682,'Raw Data'!$I$4:$I$5000,'Raw Data'!$H$4:$H$5000,\"\",0),\"\")","v":""},{"$f":"IF(INDIRECT(M2682) = \"\",\"\",INDIRECT(M2682))","v":""},"c","SUCMPRRSK_AP_EMLIB_C_EMLIB_"]
["SUCMPRRSK_AP_LIA_C",null,null,null,{"$f":"_xlfn.XLOOKUP(F2683,'Raw Data'!$I$4:$I$5000,'Raw Data'!$D$4:$D$5000,\"*** Mnemonic not found ***\",0)","v":"*** Mnemonic not found ***"},"SUCMPRRSK_AP_LIA_C__",null,"Input",null,null,518,"O","Input!O518",{"$f":"_xlfn.XLOOKUP(F2683,'Raw Data'!$I$4:$I$5000,'Raw Data'!$E$4:$E$5000,100,0)","v":100},{"$f":"IF(N2683=0,_xlfn.XLOOKUP(F2683,'Raw Data'!$I$4:$I$5000,'Raw Data'!$H$4:$H$5000,\"\",0),\"\")","v":""},{"$f":"IF(INDIRECT(M2683) = \"\",\"\",INDIRECT(M2683))","v":""},"c","SUCMPRRSK_AP_LIA_C_LIA_"]
["SUCMPRRSK_AP_PRIND_C",null,null,null,{"$f":"_xlfn.XLOOKUP(F2684,'Raw Data'!$I$4:$I$5000,'Raw Data'!$D$4:$D$5000,\"*** Mnemonic not found ***\",0)","v":"*** Mnemonic not found ***"},"SUCMPRRSK_AP_PRIND_C__",null,"Input",null,null,519,"O","Input!O519",{"$f":"_xlfn.XLOOKUP(F2684,'Raw Data'!$I$4:$I$5000,'Raw Data'!$E$4:$E$5000,100,0)","v":100},{"$f":"IF(N2684=0,_xlfn.XLOOKUP(F2684,'Raw Data'!$I$4:$I$5000,'Raw Data'!$H$4:$H$5000,\"\",0),\"\")","v":""},{"$f":"IF(INDIRECT(M2684) = \"\",\"\",INDIRECT(M2684))","v":""},"c","SUCMPRRSK_AP_PRIND_C_PRIND_"]
["SUCMPRRSK_AP_PAPL_C",null,null,null,{"$f":"_xlfn.XLOOKUP(F2685,'Raw Data'!$I$4:$I$5000,'Raw Data'!$D$4:$D$5000,\"*** Mnemonic not found ***\",0)","v":"*** Mnemonic not found ***"},"SUCMPRRSK_AP_PAPL_C__",null,"Input",null,null,520,"O","Input!O520",{"$f":"_xlfn.XLOOKUP(F2685,'Raw Data'!$I$4:$I$5000,'Raw Data'!$E$4:$E$5000,100,0)","v":100},{"$f":"IF(N2685=0,_xlfn.XLOOKUP(F2685,'Raw Data'!$I$4:$I$5000,'Raw Data'!$H$4:$H$5000,\"\",0),\"\")","v":""},{"$f":"IF(INDIRECT(M2685) = \"\",\"\",INDIRECT(M2685))","v":""},"c","SUCMPRRSK_AP_PAPL_C_PAPL_"]
["SUCMPRRSK_AP_CMPR_C",null,null,null,{"$f":"_xlfn.XLOOKUP(F2686,'Raw Data'!$I$4:$I$5000,'Raw Data'!$D$4:$D$5000,\"*** Mnemonic not found ***\",0)","v":"*** Mnemonic not found ***"},"SUCMPRRSK_AP_CMPR_C__",null,"Input",null,null,521,"O","Input!O521",{"$f":"_xlfn.XLOOKUP(F2686,'Raw Data'!$I$4:$I$5000,'Raw Data'!$E$4:$E$5000,100,0)","v":100},{"$f":"IF(N2686=0,_xlfn.XLOOKUP(F2686,'Raw Data'!$I$4:$I$5000,'Raw Data'!$H$4:$H$5000,\"\",0),\"\")","v":""},{"$f":"IF(INDIRECT(M2686) = \"\",\"\",INDIRECT(M2686))","v":""},"c","SUCMPRRSK_AP_CMPR_C_CMPR_"]
["SUCMPRRSK_AP_HMP_C",null,null,null,{"$f":"_xlfn.XLOOKUP(F2687,'Raw Data'!$I$4:$I$5000,'Raw Data'!$D$4:$D$5000,\"*** Mnemonic not found ***\",0)","v":"*** Mnemonic not found ***"},"SUCMPRRSK_AP_HMP_C__",null,"Input",null,null,522,"O","Input!O522",{"$f":"_xlfn.XLOOKUP(F2687,'Raw Data'!$I$4:$I$5000,'Raw Data'!$E$4:$E$5000,100,0)","v":100},{"$f":"IF(N2687=0,_xlfn.XLOOKUP(F2687,'Raw Data'!$I$4:$I$5000,'Raw Data'!$H$4:$H$5000,\"\",0),\"\")","v":""},{"$f":"IF(INDIRECT(M2687) = \"\",\"\",INDIRECT(M2687))","v":""},"c","SUCMPRRSK_AP_HMP_C_HMP_"]
["SUCMPRRSK_AP_ENG_C",null,null,null,{"$f":"_xlfn.XLOOKUP(F2688,'Raw Data'!$I$4:$I$5000,'Raw Data'!$D$4:$D$5000,\"*** Mnemonic not found ***\",0)","v":"*** Mnemonic not found ***"},"SUCMPRRSK_AP_ENG_C__",null,"Input",null,null,523,"O","Input!O523",{"$f":"_xlfn.XLOOKUP(F2688,'Raw Data'!$I$4:$I$5000,'Raw Data'!$E$4:$E$5000,100,0)","v":100},{"$f":"IF(N2688=0,_xlfn.XLOOKUP(F2688,'Raw Data'!$I$4:$I$5000,'Raw Data'!$H$4:$H$5000,\"\",0),\"\")","v":""},{"$f":"IF(INDIRECT(M2688) = \"\",\"\",INDIRECT(M2688))","v":""},"c","SUCMPRRSK_AP_ENG_C_ENG_"]
["SUCMPRRSK_AP_CALANZ_C",null,null,null,{"$f":"_xlfn.XLOOKUP(F2689,'Raw Data'!$I$4:$I$5000,'Raw Data'!$D$4:$D$5000,\"*** Mnemonic not found ***\",0)","v":"*** Mnemonic not found ***"},"SUCMPRRSK_AP_CALANZ_C__",null,"Input",null,null,524,"O","Input!O524",{"$f":"_xlfn.XLOOKUP(F2689,'Raw Data'!$I$4:$I$5000,'Raw Data'!$E$4:$E$5000,100,0)","v":100},{"$f":"IF(N2689=0,_xlfn.XLOOKUP(F2689,'Raw Data'!$I$4:$I$5000,'Raw Data'!$H$4:$H$5000,\"\",0),\"\")","v":""},{"$f":"IF(INDIRECT(M2689) = \"\",\"\",INDIRECT(M2689))","v":""},"c","SUCMPRRSK_AP_CALANZ_C_CALANZ_"]
["SUCMPRRSK_AP_PALANZ_C",null,null,null,{"$f":"_xlfn.XLOOKUP(F2690,'Raw Data'!$I$4:$I$5000,'Raw Data'!$D$4:$D$5000,\"*** Mnemonic not found ***\",0)","v":"*** Mnemonic not found ***"},"SUCMPRRSK_AP_PALANZ_C__",null,"Input",null,null,525,"O","Input!O525",{"$f":"_xlfn.XLOOKUP(F2690,'Raw Data'!$I$4:$I$5000,'Raw Data'!$E$4:$E$5000,100,0)","v":100},{"$f":"IF(N2690=0,_xlfn.XLOOKUP(F2690,'Raw Data'!$I$4:$I$5000,'Raw Data'!$H$4:$H$5000,\"\",0),\"\")","v":""},{"$f":"IF(INDIRECT(M2690) = \"\",\"\",INDIRECT(M2690))","v":""},"c","SUCMPRRSK_AP_PALANZ_C_PALANZ_"]
["SUCMPRRSK_AP_ALB_C",null,null,null,{"$f":"_xlfn.XLOOKUP(F2691,'Raw Data'!$I$4:$I$5000,'Raw Data'!$D$4:$D$5000,\"*** Mnemonic not found ***\",0)","v":"*** Mnemonic not found ***"},"SUCMPRRSK_AP_ALB_C__",null,"Input",null,null,526,"O","Input!O526",{"$f":"_xlfn.XLOOKUP(F2691,'Raw Data'!$I$4:$I$5000,'Raw Data'!$E$4:$E$5000,100,0)","v":100},{"$f":"IF(N2691=0,_xlfn.XLOOKUP(F2691,'Raw Data'!$I$4:$I$5000,'Raw Data'!$H$4:$H$5000,\"\",0),\"\")","v":""},{"$f":"IF(INDIRECT(M2691) = \"\",\"\",INDIRECT(M2691))","v":""},"c","SUCMPRRSK_AP_ALB_C_ALB_"]
["SUCMPRRSK_AP_AJPTW_C",null,null,null,{"$f":"_xlfn.XLOOKUP(F2692,'Raw Data'!$I$4:$I$5000,'Raw Data'!$D$4:$D$5000,\"*** Mnemonic not found ***\",0)","v":"*** Mnemonic not found ***"},"SUCMPRRSK_AP_AJPTW_C__",null,"Input",null,null,527,"O","Input!O527",{"$f":"_xlfn.XLOOKUP(F2692,'Raw Data'!$I$4:$I$5000,'Raw Data'!$E$4:$E$5000,100,0)","v":100},{"$f":"IF(N2692=0,_xlfn.XLOOKUP(F2692,'Raw Data'!$I$4:$I$5000,'Raw Data'!$H$4:$H$5000,\"\",0),\"\")","v":""},{"$f":"IF(INDIRECT(M2692) = \"\",\"\",INDIRECT(M2692))","v":""},"c","SUCMPRRSK_AP_AJPTW_C_AJPTW_"]
["SUCMPRRSK_AP_TPLM_C",null,null,null,{"$f":"_xlfn.XLOOKUP(F2693,'Raw Data'!$I$4:$I$5000,'Raw Data'!$D$4:$D$5000,\"*** Mnemonic not found ***\",0)","v":"*** Mnemonic not found ***"},"SUCMPRRSK_AP_TPLM_C__",null,"Input",null,null,528,"O","Input!O528",{"$f":"_xlfn.XLOOKUP(F2693,'Raw Data'!$I$4:$I$5000,'Raw Data'!$E$4:$E$5000,100,0)","v":100},{"$f":"IF(N2693=0,_xlfn.XLOOKUP(F2693,'Raw Data'!$I$4:$I$5000,'Raw Data'!$H$4:$H$5000,\"\",0),\"\")","v":""},{"$f":"IF(INDIRECT(M2693) = \"\",\"\",INDIRECT(M2693))","v":""},"c","SUCMPRRSK_AP_TPLM_C_TPLM_"]
["SUCMPRRSK_AP_CONCR_C",null,null,null,{"$f":"_xlfn.XLOOKUP(F2694,'Raw Data'!$I$4:$I$5000,'Raw Data'!$D$4:$D$5000,\"*** Mnemonic not found ***\",0)","v":"*** Mnemonic not found ***"},"SUCMPRRSK_AP_CONCR_C__",null,"Input",null,null,529,"O","Input!O529",{"$f":"_xlfn.XLOOKUP(F2694,'Raw Data'!$I$4:$I$5000,'Raw Data'!$E$4:$E$5000,100,0)","v":100},{"$f":"IF(N2694=0,_xlfn.XLOOKUP(F2694,'Raw Data'!$I$4:$I$5000,'Raw Data'!$H$4:$H$5000,\"\",0),\"\")","v":""},{"$f":"IF(INDIRECT(M2694) = \"\",\"\",INDIRECT(M2694))","v":""},"c","SUCMPRRSK_AP_CONCR_C_CONCR_"]
["SUCMPRRSK_AP_CRD_C",null,null,null,{"$f":"_xlfn.XLOOKUP(F2695,'Raw Data'!$I$4:$I$5000,'Raw Data'!$D$4:$D$5000,\"*** Mnemonic not found ***\",0)","v":"*** Mnemonic not found ***"},"SUCMPRRSK_AP_CRD_C__",null,"Input",null,null,530,"O","Input!O530",{"$f":"_xlfn.XLOOKUP(F2695,'Raw Data'!$I$4:$I$5000,'Raw Data'!$E$4:$E$5000,100,0)","v":100},{"$f":"IF(N2695=0,_xlfn.XLOOKUP(F2695,'Raw Data'!$I$4:$I$5000,'Raw Data'!$H$4:$H$5000,\"\",0),\"\")","v":""},{"$f":"IF(INDIRECT(M2695) = \"\",\"\",INDIRECT(M2695))","v":""},"c","SUCMPRRSK_AP_CRD_C_CRD_"]
["SUCMPRRSK_AP_AAH_C",null,null,null,{"$f":"_xlfn.XLOOKUP(F2696,'Raw Data'!$I$4:$I$5000,'Raw Data'!$D$4:$D$5000,\"*** Mnemonic not found ***\",0)","v":"*** Mnemonic not found ***"},"SUCMPRRSK_AP_AAH_C__",null,"Input",null,null,531,"O","Input!O531",{"$f":"_xlfn.XLOOKUP(F2696,'Raw Data'!$I$4:$I$5000,'Raw Data'!$E$4:$E$5000,100,0)","v":100},{"$f":"IF(N2696=0,_xlfn.XLOOKUP(F2696,'Raw Data'!$I$4:$I$5000,'Raw Data'!$H$4:$H$5000,\"\",0),\"\")","v":""},{"$f":"IF(INDIRECT(M2696) = \"\",\"\",INDIRECT(M2696))","v":""},"c","SUCMPRRSK_AP_AAH_C_AAH_"]
["SUCMPRRSK_AP_HLTH_C",null,null,null,{"$f":"_xlfn.XLOOKUP(F2697,'Raw Data'!$I$4:$I$5000,'Raw Data'!$D$4:$D$5000,\"*** Mnemonic not found ***\",0)","v":"*** Mnemonic not found ***"},"SUCMPRRSK_AP_HLTH_C__",null,"Input",null,null,532,"O","Input!O532",{"$f":"_xlfn.XLOOKUP(F2697,'Raw Data'!$I$4:$I$5000,'Raw Data'!$E$4:$E$5000,100,0)","v":100},{"$f":"IF(N2697=0,_xlfn.XLOOKUP(F2697,'Raw Data'!$I$4:$I$5000,'Raw Data'!$H$4:$H$5000,\"\",0),\"\")","v":""},{"$f":"IF(INDIRECT(M2697) = \"\",\"\",INDIRECT(M2697))","v":""},"c","SUCMPRRSK_AP_HLTH_C_HLTH_"]
["SUCMPRRSK_AP_MAVC_C",null,null,null,{"$f":"_xlfn.XLOOKUP(F2698,'Raw Data'!$I$4:$I$5000,'Raw Data'!$D$4:$D$5000,\"*** Mnemonic not found ***\",0)","v":"*** Mnemonic not found ***"},"SUCMPRRSK_AP_MAVC_C__",null,"Input",null,null,533,"O","Input!O533",{"$f":"_xlfn.XLOOKUP(F2698,'Raw Data'!$I$4:$I$5000,'Raw Data'!$E$4:$E$5000,100,0)","v":100},{"$f":"IF(N2698=0,_xlfn.XLOOKUP(F2698,'Raw Data'!$I$4:$I$5000,'Raw Data'!$H$4:$H$5000,\"\",0),\"\")","v":""},{"$f":"IF(INDIRECT(M2698) = \"\",\"\",INDIRECT(M2698))","v":""},"c","SUCMPRRSK_AP_MAVC_C_MAVC_"]
["SUCMPRRSK_AP_MAVH_C",null,null,null,{"$f":"_xlfn.XLOOKUP(F2699,'Raw Data'!$I$4:$I$5000,'Raw Data'!$D$4:$D$5000,\"*** Mnemonic not found ***\",0)","v":"*** Mnemonic not found ***"},"SUCMPRRSK_AP_MAVH_C__",null,"Input",null,null,534,"O","Input!O534",{"$f":"_xlfn.XLOOKUP(F2699,'Raw Data'!$I$4:$I$5000,'Raw Data'!$E$4:$E$5000,100,0)","v":100},{"$f":"IF(N2699=0,_xlfn.XLOOKUP(F2699,'Raw Data'!$I$4:$I$5000,'Raw Data'!$H$4:$H$5000,\"\",0),\"\")","v":""},{"$f":"IF(INDIRECT(M2699) = \"\",\"\",INDIRECT(M2699))","v":""},"c","SUCMPRRSK_AP_MAVH_C_MAVH_"]
["SUCMPRRSK_AP_MPIN_C",null,null,null,{"$f":"_xlfn.XLOOKUP(F2700,'Raw Data'!$I$4:$I$5000,'Raw Data'!$D$4:$D$5000,\"*** Mnemonic not found ***\",0)","v":"*** Mnemonic not found ***"},"SUCMPRRSK_AP_MPIN_C__",null,"Input",null,null,535,"O","Input!O535",{"$f":"_xlfn.XLOOKUP(F2700,'Raw Data'!$I$4:$I$5000,'Raw Data'!$E$4:$E$5000,100,0)","v":100},{"$f":"IF(N2700=0,_xlfn.XLOOKUP(F2700,'Raw Data'!$I$4:$I$5000,'Raw Data'!$H$4:$H$5000,\"\",0),\"\")","v":""},{"$f":"IF(INDIRECT(M2700) = \"\",\"\",INDIRECT(M2700))","v":""},"c","SUCMPRRSK_AP_MPIN_C_MPIN_"]
["SUCMPRRSK_AP_TRV_C",null,null,null,{"$f":"_xlfn.XLOOKUP(F2701,'Raw Data'!$I$4:$I$5000,'Raw Data'!$D$4:$D$5000,\"*** Mnemonic not found ***\",0)","v":"*** Mnemonic not found ***"},"SUCMPRRSK_AP_TRV_C__",null,"Input",null,null,536,"O","Input!O536",{"$f":"_xlfn.XLOOKUP(F2701,'Raw Data'!$I$4:$I$5000,'Raw Data'!$E$4:$E$5000,100,0)","v":100},{"$f":"IF(N2701=0,_xlfn.XLOOKUP(F2701,'Raw Data'!$I$4:$I$5000,'Raw Data'!$H$4:$H$5000,\"\",0),\"\")","v":""},{"$f":"IF(INDIRECT(M2701) = \"\",\"\",INDIRECT(M2701))","v":""},"c","SUCMPRRSK_AP_TRV_C_TRV_"]
["SUCMPRRSK_AP_OCAH_C",null,null,null,{"$f":"_xlfn.XLOOKUP(F2702,'Raw Data'!$I$4:$I$5000,'Raw Data'!$D$4:$D$5000,\"*** Mnemonic not found ***\",0)","v":"*** Mnemonic not found ***"},{"$f":"CONCATENATE(A2702,\"_\",B2702,\"_\",D2702)","v":"SUCMPRRSK_AP_OCAH_C__"},null,"Input",null,null,537,"O","Input!O537",{"$f":"_xlfn.XLOOKUP(F2702,'Raw Data'!$I$4:$I$5000,'Raw Data'!$E$4:$E$5000,100,0)","v":100},{"$f":"IF(N2702=0,_xlfn.XLOOKUP(F2702,'Raw Data'!$I$4:$I$5000,'Raw Data'!$H$4:$H$5000,\"\",0),\"\")","v":""},{"$f":"IF(INDIRECT(M2702) = \"\",\"\",INDIRECT(M2702))","v":""},"c","SUCMPRRSK_AP_OCAH_C_OCAH_"]
["SUCMPRRSK_LAM_EMLIB_C",null,null,null,{"$f":"_xlfn.XLOOKUP(F2703,'Raw Data'!$I$4:$I$5000,'Raw Data'!$D$4:$D$5000,\"*** Mnemonic not found ***\",0)","v":"*** Mnemonic not found ***"},"SUCMPRRSK_LAM_EMLIB_C__",null,"Input",null,null,{"$f":"K2702+2","v":539},"O","Input!O539",{"$f":"_xlfn.XLOOKUP(F2703,'Raw Data'!$I$4:$I$5000,'Raw Data'!$E$4:$E$5000,100,0)","v":100},{"$f":"IF(N2703=0,_xlfn.XLOOKUP(F2703,'Raw Data'!$I$4:$I$5000,'Raw Data'!$H$4:$H$5000,\"\",0),\"\")","v":""},{"$f":"IF(INDIRECT(M2703) = \"\",\"\",INDIRECT(M2703))","v":""},"c","SUCMPRRSK_LAM_EMLIB_C_EMLIB_"]
["SUCMPRRSK_LAM_LIA_C",null,null,null,{"$f":"_xlfn.XLOOKUP(F2704,'Raw Data'!$I$4:$I$5000,'Raw Data'!$D$4:$D$5000,\"*** Mnemonic not found ***\",0)","v":"*** Mnemonic not found ***"},"SUCMPRRSK_LAM_LIA_C__",null,"Input",null,null,540,"O","Input!O540",{"$f":"_xlfn.XLOOKUP(F2704,'Raw Data'!$I$4:$I$5000,'Raw Data'!$E$4:$E$5000,100,0)","v":100},{"$f":"IF(N2704=0,_xlfn.XLOOKUP(F2704,'Raw Data'!$I$4:$I$5000,'Raw Data'!$H$4:$H$5000,\"\",0),\"\")","v":""},{"$f":"IF(INDIRECT(M2704) = \"\",\"\",INDIRECT(M2704))","v":""},"c","SUCMPRRSK_LAM_LIA_C_LIA_"]
["SUCMPRRSK_LAM_PRIND_C",null,null,null,{"$f":"_xlfn.XLOOKUP(F2705,'Raw Data'!$I$4:$I$5000,'Raw Data'!$D$4:$D$5000,\"*** Mnemonic not found ***\",0)","v":"*** Mnemonic not found ***"},"SUCMPRRSK_LAM_PRIND_C__",null,"Input",null,null,541,"O","Input!O541",{"$f":"_xlfn.XLOOKUP(F2705,'Raw Data'!$I$4:$I$5000,'Raw Data'!$E$4:$E$5000,100,0)","v":100},{"$f":"IF(N2705=0,_xlfn.XLOOKUP(F2705,'Raw Data'!$I$4:$I$5000,'Raw Data'!$H$4:$H$5000,\"\",0),\"\")","v":""},{"$f":"IF(INDIRECT(M2705) = \"\",\"\",INDIRECT(M2705))","v":""},"c","SUCMPRRSK_LAM_PRIND_C_PRIND_"]
["SUCMPRRSK_LAM_CMPR_C",null,null,null,{"$f":"_xlfn.XLOOKUP(F2706,'Raw Data'!$I$4:$I$5000,'Raw Data'!$D$4:$D$5000,\"*** Mnemonic not found ***\",0)","v":"*** Mnemonic not found ***"},"SUCMPRRSK_LAM_CMPR_C__",null,"Input",null,null,542,"O","Input!O542",{"$f":"_xlfn.XLOOKUP(F2706,'Raw Data'!$I$4:$I$5000,'Raw Data'!$E$4:$E$5000,100,0)","v":100},{"$f":"IF(N2706=0,_xlfn.XLOOKUP(F2706,'Raw Data'!$I$4:$I$5000,'Raw Data'!$H$4:$H$5000,\"\",0),\"\")","v":""},{"$f":"IF(INDIRECT(M2706) = \"\",\"\",INDIRECT(M2706))","v":""},"c","SUCMPRRSK_LAM_CMPR_C_CMPR_"]
["SUCMPRRSK_LAM_HMP_C",null,null,null,{"$f":"_xlfn.XLOOKUP(F2707,'Raw Data'!$I$4:$I$5000,'Raw Data'!$D$4:$D$5000,\"*** Mnemonic not found ***\",0)","v":"*** Mnemonic not found ***"},"SUCMPRRSK_LAM_HMP_C__",null,"Input",null,null,543,"O","Input!O543",{"$f":"_xlfn.XLOOKUP(F2707,'Raw Data'!$I$4:$I$5000,'Raw Data'!$E$4:$E$5000,100,0)","v":100},{"$f":"IF(N2707=0,_xlfn.XLOOKUP(F2707,'Raw Data'!$I$4:$I$5000,'Raw Data'!$H$4:$H$5000,\"\",0),\"\")","v":""},{"$f":"IF(INDIRECT(M2707) = \"\",\"\",INDIRECT(M2707))","v":""},"c","SUCMPRRSK_LAM_HMP_C_HMP_"]
["SUCMPRRSK_LAM_MEXFR_C",null,null,null,{"$f":"_xlfn.XLOOKUP(F2708,'Raw Data'!$I$4:$I$5000,'Raw Data'!$D$4:$D$5000,\"*** Mnemonic not found ***\",0)","v":"*** Mnemonic not found ***"},"SUCMPRRSK_LAM_MEXFR_C__",null,"Input",null,null,544,"O","Input!O544",{"$f":"_xlfn.XLOOKUP(F2708,'Raw Data'!$I$4:$I$5000,'Raw Data'!$E$4:$E$5000,100,0)","v":100},{"$f":"IF(N2708=0,_xlfn.XLOOKUP(F2708,'Raw Data'!$I$4:$I$5000,'Raw Data'!$H$4:$H$5000,\"\",0),\"\")","v":""},{"$f":"IF(INDIRECT(M2708) = \"\",\"\",INDIRECT(M2708))","v":""},"c","SUCMPRRSK_LAM_MEXFR_C_MEXFR_"]
["SUCMPRRSK_LAM_PLM_C",null,null,null,{"$f":"_xlfn.XLOOKUP(F2709,'Raw Data'!$I$4:$I$5000,'Raw Data'!$D$4:$D$5000,\"*** Mnemonic not found ***\",0)","v":"*** Mnemonic not found ***"},"SUCMPRRSK_LAM_PLM_C__",null,"Input",null,null,545,"O","Input!O545",{"$f":"_xlfn.XLOOKUP(F2709,'Raw Data'!$I$4:$I$5000,'Raw Data'!$E$4:$E$5000,100,0)","v":100},{"$f":"IF(N2709=0,_xlfn.XLOOKUP(F2709,'Raw Data'!$I$4:$I$5000,'Raw Data'!$H$4:$H$5000,\"\",0),\"\")","v":""},{"$f":"IF(INDIRECT(M2709) = \"\",\"\",INDIRECT(M2709))","v":""},"c","SUCMPRRSK_LAM_PLM_C_PLM_"]
["SUCMPRRSK_LAM_ALB_C",null,null,null,{"$f":"_xlfn.XLOOKUP(F2710,'Raw Data'!$I$4:$I$5000,'Raw Data'!$D$4:$D$5000,\"*** Mnemonic not found ***\",0)","v":"*** Mnemonic not found ***"},"SUCMPRRSK_LAM_ALB_C__",null,"Input",null,null,546,"O","Input!O546",{"$f":"_xlfn.XLOOKUP(F2710,'Raw Data'!$I$4:$I$5000,'Raw Data'!$E$4:$E$5000,100,0)","v":100},{"$f":"IF(N2710=0,_xlfn.XLOOKUP(F2710,'Raw Data'!$I$4:$I$5000,'Raw Data'!$H$4:$H$5000,\"\",0),\"\")","v":""},{"$f":"IF(INDIRECT(M2710) = \"\",\"\",INDIRECT(M2710))","v":""},"c","SUCMPRRSK_LAM_ALB_C_ALB_"]
["SUCMPRRSK_LAM_CRD_C",null,null,null,{"$f":"_xlfn.XLOOKUP(F2711,'Raw Data'!$I$4:$I$5000,'Raw Data'!$D$4:$D$5000,\"*** Mnemonic not found ***\",0)","v":"*** Mnemonic not found ***"},"SUCMPRRSK_LAM_CRD_C__",null,"Input",null,null,547,"O","Input!O547",{"$f":"_xlfn.XLOOKUP(F2711,'Raw Data'!$I$4:$I$5000,'Raw Data'!$E$4:$E$5000,100,0)","v":100},{"$f":"IF(N2711=0,_xlfn.XLOOKUP(F2711,'Raw Data'!$I$4:$I$5000,'Raw Data'!$H$4:$H$5000,\"\",0),\"\")","v":""},{"$f":"IF(INDIRECT(M2711) = \"\",\"\",INDIRECT(M2711))","v":""},"c","SUCMPRRSK_LAM_CRD_C_CRD_"]
["SUCMPRRSK_LAM_FID_C",null,null,null,{"$f":"_xlfn.XLOOKUP(F2712,'Raw Data'!$I$4:$I$5000,'Raw Data'!$D$4:$D$5000,\"*** Mnemonic not found ***\",0)","v":"*** Mnemonic not found ***"},"SUCMPRRSK_LAM_FID_C__",null,"Input",null,null,548,"O","Input!O548",{"$f":"_xlfn.XLOOKUP(F2712,'Raw Data'!$I$4:$I$5000,'Raw Data'!$E$4:$E$5000,100,0)","v":100},{"$f":"IF(N2712=0,_xlfn.XLOOKUP(F2712,'Raw Data'!$I$4:$I$5000,'Raw Data'!$H$4:$H$5000,\"\",0),\"\")","v":""},{"$f":"IF(INDIRECT(M2712) = \"\",\"\",INDIRECT(M2712))","v":""},"c","SUCMPRRSK_LAM_FID_C_FID_"]
["SUCMPRRSK_LAM_SUR_C",null,null,null,{"$f":"_xlfn.XLOOKUP(F2713,'Raw Data'!$I$4:$I$5000,'Raw Data'!$D$4:$D$5000,\"*** Mnemonic not found ***\",0)","v":"*** Mnemonic not found ***"},"SUCMPRRSK_LAM_SUR_C__",null,"Input",null,null,549,"O","Input!O549",{"$f":"_xlfn.XLOOKUP(F2713,'Raw Data'!$I$4:$I$5000,'Raw Data'!$E$4:$E$5000,100,0)","v":100},{"$f":"IF(N2713=0,_xlfn.XLOOKUP(F2713,'Raw Data'!$I$4:$I$5000,'Raw Data'!$H$4:$H$5000,\"\",0),\"\")","v":""},{"$f":"IF(INDIRECT(M2713) = \"\",\"\",INDIRECT(M2713))","v":""},"c","SUCMPRRSK_LAM_SUR_C_SUR_"]
["SUCMPRRSK_LAM_AAH_C",null,null,null,{"$f":"_xlfn.XLOOKUP(F2714,'Raw Data'!$I$4:$I$5000,'Raw Data'!$D$4:$D$5000,\"*** Mnemonic not found ***\",0)","v":"*** Mnemonic not found ***"},"SUCMPRRSK_LAM_AAH_C__",null,"Input",null,null,550,"O","Input!O550",{"$f":"_xlfn.XLOOKUP(F2714,'Raw Data'!$I$4:$I$5000,'Raw Data'!$E$4:$E$5000,100,0)","v":100},{"$f":"IF(N2714=0,_xlfn.XLOOKUP(F2714,'Raw Data'!$I$4:$I$5000,'Raw Data'!$H$4:$H$5000,\"\",0),\"\")","v":""},{"$f":"IF(INDIRECT(M2714) = \"\",\"\",INDIRECT(M2714))","v":""},"c","SUCMPRRSK_LAM_AAH_C_AAH_"]
["SUCMPRRSK_LAM_HMEDEX_C",null,null,null,{"$f":"_xlfn.XLOOKUP(F2715,'Raw Data'!$I$4:$I$5000,'Raw Data'!$D$4:$D$5000,\"*** Mnemonic not found ***\",0)","v":"*** Mnemonic not found ***"},"SUCMPRRSK_LAM_HMEDEX_C__",null,"Input",null,null,551,"O","Input!O551",{"$f":"_xlfn.XLOOKUP(F2715,'Raw Data'!$I$4:$I$5000,'Raw Data'!$E$4:$E$5000,100,0)","v":100},{"$f":"IF(N2715=0,_xlfn.XLOOKUP(F2715,'Raw Data'!$I$4:$I$5000,'Raw Data'!$H$4:$H$5000,\"\",0),\"\")","v":""},{"$f":"IF(INDIRECT(M2715) = \"\",\"\",INDIRECT(M2715))","v":""},"c","SUCMPRRSK_LAM_HMEDEX_C_HMEDEX_"]
["SUCMPRRSK_LAM_MAVA_C",null,null,null,{"$f":"_xlfn.XLOOKUP(F2716,'Raw Data'!$I$4:$I$5000,'Raw Data'!$D$4:$D$5000,\"*** Mnemonic not found ***\",0)","v":"*** Mnemonic not found ***"},"SUCMPRRSK_LAM_MAVA_C__",null,"Input",null,null,552,"O","Input!O552",{"$f":"_xlfn.XLOOKUP(F2716,'Raw Data'!$I$4:$I$5000,'Raw Data'!$E$4:$E$5000,100,0)","v":100},{"$f":"IF(N2716=0,_xlfn.XLOOKUP(F2716,'Raw Data'!$I$4:$I$5000,'Raw Data'!$H$4:$H$5000,\"\",0),\"\")","v":""},{"$f":"IF(INDIRECT(M2716) = \"\",\"\",INDIRECT(M2716))","v":""},"c","SUCMPRRSK_LAM_MAVA_C_MAVA_"]
["SUCMPRRSK_LAM_MAVC_C",null,null,null,{"$f":"_xlfn.XLOOKUP(F2717,'Raw Data'!$I$4:$I$5000,'Raw Data'!$D$4:$D$5000,\"*** Mnemonic not found ***\",0)","v":"*** Mnemonic not found ***"},"SUCMPRRSK_LAM_MAVC_C__",null,"Input",null,null,553,"O","Input!O553",{"$f":"_xlfn.XLOOKUP(F2717,'Raw Data'!$I$4:$I$5000,'Raw Data'!$E$4:$E$5000,100,0)","v":100},{"$f":"IF(N2717=0,_xlfn.XLOOKUP(F2717,'Raw Data'!$I$4:$I$5000,'Raw Data'!$H$4:$H$5000,\"\",0),\"\")","v":""},{"$f":"IF(INDIRECT(M2717) = \"\",\"\",INDIRECT(M2717))","v":""},"c","SUCMPRRSK_LAM_MAVC_C_MAVC_"]
["SUCMPRRSK_LAM_MPIN_C",null,null,null,{"$f":"_xlfn.XLOOKUP(F2718,'Raw Data'!$I$4:$I$5000,'Raw Data'!$D$4:$D$5000,\"*** Mnemonic not found ***\",0)","v":"*** Mnemonic not found ***"},"SUCMPRRSK_LAM_MPIN_C__",null,"Input",null,null,554,"O","Input!O554",{"$f":"_xlfn.XLOOKUP(F2718,'Raw Data'!$I$4:$I$5000,'Raw Data'!$E$4:$E$5000,100,0)","v":100},{"$f":"IF(N2718=0,_xlfn.XLOOKUP(F2718,'Raw Data'!$I$4:$I$5000,'Raw Data'!$H$4:$H$5000,\"\",0),\"\")","v":""},{"$f":"IF(INDIRECT(M2718) = \"\",\"\",INDIRECT(M2718))","v":""},"c","SUCMPRRSK_LAM_MPIN_C_MPIN_"]
["SUCMPRRSK_LAM_TRV_C",null,null,null,{"$f":"_xlfn.XLOOKUP(F2719,'Raw Data'!$I$4:$I$5000,'Raw Data'!$D$4:$D$5000,\"*** Mnemonic not found ***\",0)","v":"*** Mnemonic not found ***"},"SUCMPRRSK_LAM_TRV_C__",null,"Input",null,null,555,"O","Input!O555",{"$f":"_xlfn.XLOOKUP(F2719,'Raw Data'!$I$4:$I$5000,'Raw Data'!$E$4:$E$5000,100,0)","v":100},{"$f":"IF(N2719=0,_xlfn.XLOOKUP(F2719,'Raw Data'!$I$4:$I$5000,'Raw Data'!$H$4:$H$5000,\"\",0),\"\")","v":""},{"$f":"IF(INDIRECT(M2719) = \"\",\"\",INDIRECT(M2719))","v":""},"c","SUCMPRRSK_LAM_TRV_C_TRV_"]
["SUCMPRRSK_LAM_WAR_C",null,null,null,{"$f":"_xlfn.XLOOKUP(F2720,'Raw Data'!$I$4:$I$5000,'Raw Data'!$D$4:$D$5000,\"*** Mnemonic not found ***\",0)","v":"*** Mnemonic not found ***"},"SUCMPRRSK_LAM_WAR_C__",null,"Input",null,null,556,"O","Input!O556",{"$f":"_xlfn.XLOOKUP(F2720,'Raw Data'!$I$4:$I$5000,'Raw Data'!$E$4:$E$5000,100,0)","v":100},{"$f":"IF(N2720=0,_xlfn.XLOOKUP(F2720,'Raw Data'!$I$4:$I$5000,'Raw Data'!$H$4:$H$5000,\"\",0),\"\")","v":""},{"$f":"IF(INDIRECT(M2720) = \"\",\"\",INDIRECT(M2720))","v":""},"c","SUCMPRRSK_LAM_WAR_C_WAR_"]
["SUCMPRRSK_LAM_OCAH_C",null,null,null,{"$f":"_xlfn.XLOOKUP(F2721,'Raw Data'!$I$4:$I$5000,'Raw Data'!$D$4:$D$5000,\"*** Mnemonic not found ***\",0)","v":"*** Mnemonic not found ***"},"SUCMPRRSK_LAM_OCAH_C__",null,"Input",null,null,557,"O","Input!O557",{"$f":"_xlfn.XLOOKUP(F2721,'Raw Data'!$I$4:$I$5000,'Raw Data'!$E$4:$E$5000,100,0)","v":100},{"$f":"IF(N2721=0,_xlfn.XLOOKUP(F2721,'Raw Data'!$I$4:$I$5000,'Raw Data'!$H$4:$H$5000,\"\",0),\"\")","v":""},{"$f":"IF(INDIRECT(M2721) = \"\",\"\",INDIRECT(M2721))","v":""},"c","SUCMPRRSK_LAM_OCAH_C_OCAH_"]
["SUCMPRRSK_INPUT_C",null,null,null,{"$f":"_xlfn.XLOOKUP(F2722,'Raw Data'!$I$4:$I$5000,'Raw Data'!$D$4:$D$5000,\"*** Mnemonic not found ***\",0)","v":"*** Mnemonic not found ***"},"SUCMPRRSK_INPUT_C__",null,"Input",null,null,{"$f":"K2721+2","v":559},"O","Input!O559",{"$f":"_xlfn.XLOOKUP(F2722,'Raw Data'!$I$4:$I$5000,'Raw Data'!$E$4:$E$5000,100,0)","v":100},{"$f":"IF(N2722=0,_xlfn.XLOOKUP(F2722,'Raw Data'!$I$4:$I$5000,'Raw Data'!$H$4:$H$5000,\"\",0),\"\")","v":""},{"$f":"IF(INDIRECT(M2722) = \"\",\"\",INDIRECT(M2722))","v":""},"c"]
["SUCMPRRSK_INPUT_LIA_C",null,null,null,{"$f":"_xlfn.XLOOKUP(F2723,'Raw Data'!$I$4:$I$5000,'Raw Data'!$D$4:$D$5000,\"*** Mnemonic not found ***\",0)","v":"*** Mnemonic not found ***"},"SUCMPRRSK_INPUT_LIA_C__",null,"Input",null,null,560,"O","Input!O560",{"$f":"_xlfn.XLOOKUP(F2723,'Raw Data'!$I$4:$I$5000,'Raw Data'!$E$4:$E$5000,100,0)","v":100},{"$f":"IF(N2723=0,_xlfn.XLOOKUP(F2723,'Raw Data'!$I$4:$I$5000,'Raw Data'!$H$4:$H$5000,\"\",0),\"\")","v":""},{"$f":"IF(INDIRECT(M2723) = \"\",\"\",INDIRECT(M2723))","v":""},"c"]
["SUCMPRRSK_INPUT_PROP_C",null,null,null,{"$f":"_xlfn.XLOOKUP(F2724,'Raw Data'!$I$4:$I$5000,'Raw Data'!$D$4:$D$5000,\"*** Mnemonic not found ***\",0)","v":"*** Mnemonic not found ***"},"SUCMPRRSK_INPUT_PROP_C__",null,"Input",null,null,561,"O","Input!O561",{"$f":"_xlfn.XLOOKUP(F2724,'Raw Data'!$I$4:$I$5000,'Raw Data'!$E$4:$E$5000,100,0)","v":100},{"$f":"IF(N2724=0,_xlfn.XLOOKUP(F2724,'Raw Data'!$I$4:$I$5000,'Raw Data'!$H$4:$H$5000,\"\",0),\"\")","v":""},{"$f":"IF(INDIRECT(M2724) = \"\",\"\",INDIRECT(M2724))","v":""},"c"]
["SUCMPRRSK_INPUT_MOT_C",null,null,null,{"$f":"_xlfn.XLOOKUP(F2725,'Raw Data'!$I$4:$I$5000,'Raw Data'!$D$4:$D$5000,\"*** Mnemonic not found ***\",0)","v":"*** Mnemonic not found ***"},"SUCMPRRSK_INPUT_MOT_C__",null,"Input",null,null,562,"O","Input!O562",{"$f":"_xlfn.XLOOKUP(F2725,'Raw Data'!$I$4:$I$5000,'Raw Data'!$E$4:$E$5000,100,0)","v":100},{"$f":"IF(N2725=0,_xlfn.XLOOKUP(F2725,'Raw Data'!$I$4:$I$5000,'Raw Data'!$H$4:$H$5000,\"\",0),\"\")","v":""},{"$f":"IF(INDIRECT(M2725) = \"\",\"\",INDIRECT(M2725))","v":""},"c"]
["SUCMPRRSK_INPUT_FIN_C",null,null,null,{"$f":"_xlfn.XLOOKUP(F2726,'Raw Data'!$I$4:$I$5000,'Raw Data'!$D$4:$D$5000,\"*** Mnemonic not found ***\",0)","v":"*** Mnemonic not found ***"},"SUCMPRRSK_INPUT_FIN_C__",null,"Input",null,null,563,"O","Input!O563",{"$f":"_xlfn.XLOOKUP(F2726,'Raw Data'!$I$4:$I$5000,'Raw Data'!$E$4:$E$5000,100,0)","v":100},{"$f":"IF(N2726=0,_xlfn.XLOOKUP(F2726,'Raw Data'!$I$4:$I$5000,'Raw Data'!$H$4:$H$5000,\"\",0),\"\")","v":""},{"$f":"IF(INDIRECT(M2726) = \"\",\"\",INDIRECT(M2726))","v":""},"c"]
["SUCMPRRSK_INPUT_HLTH_C",null,null,null,{"$f":"_xlfn.XLOOKUP(F2727,'Raw Data'!$I$4:$I$5000,'Raw Data'!$D$4:$D$5000,\"*** Mnemonic not found ***\",0)","v":"*** Mnemonic not found ***"},"SUCMPRRSK_INPUT_HLTH_C__",null,"Input",null,null,564,"O","Input!O564",{"$f":"_xlfn.XLOOKUP(F2727,'Raw Data'!$I$4:$I$5000,'Raw Data'!$E$4:$E$5000,100,0)","v":100},{"$f":"IF(N2727=0,_xlfn.XLOOKUP(F2727,'Raw Data'!$I$4:$I$5000,'Raw Data'!$H$4:$H$5000,\"\",0),\"\")","v":""},{"$f":"IF(INDIRECT(M2727) = \"\",\"\",INDIRECT(M2727))","v":""},"c"]
["SUCMPRRSK_INPUT_MAT_C",null,null,null,{"$f":"_xlfn.XLOOKUP(F2728,'Raw Data'!$I$4:$I$5000,'Raw Data'!$D$4:$D$5000,\"*** Mnemonic not found ***\",0)","v":"*** Mnemonic not found ***"},"SUCMPRRSK_INPUT_MAT_C__",null,"Input",null,null,565,"O","Input!O565",{"$f":"_xlfn.XLOOKUP(F2728,'Raw Data'!$I$4:$I$5000,'Raw Data'!$E$4:$E$5000,100,0)","v":100},{"$f":"IF(N2728=0,_xlfn.XLOOKUP(F2728,'Raw Data'!$I$4:$I$5000,'Raw Data'!$H$4:$H$5000,\"\",0),\"\")","v":""},{"$f":"IF(INDIRECT(M2728) = \"\",\"\",INDIRECT(M2728))","v":""},"c"]
["SUCMPRRSK_INPUT_OTH_C",null,null,null,{"$f":"_xlfn.XLOOKUP(F2729,'Raw Data'!$I$4:$I$5000,'Raw Data'!$D$4:$D$5000,\"*** Mnemonic not found ***\",0)","v":"*** Mnemonic not found ***"},"SUCMPRRSK_INPUT_OTH_C__",null,"Input",null,null,566,"O","Input!O566",{"$f":"_xlfn.XLOOKUP(F2729,'Raw Data'!$I$4:$I$5000,'Raw Data'!$E$4:$E$5000,100,0)","v":100},{"$f":"IF(N2729=0,_xlfn.XLOOKUP(F2729,'Raw Data'!$I$4:$I$5000,'Raw Data'!$H$4:$H$5000,\"\",0),\"\")","v":""},{"$f":"IF(INDIRECT(M2729) = \"\",\"\",INDIRECT(M2729))","v":""},"c"]
["SUCMPRRSK_INPUT_SUM_C",null,null,null,{"$f":"_xlfn.XLOOKUP(F2730,'Raw Data'!$I$4:$I$5000,'Raw Data'!$D$4:$D$5000,\"*** Mnemonic not found ***\",0)","v":"*** Mnemonic not found ***"},"SUCMPRRSK_INPUT_SUM_C__",null,"Input",null,null,{"$f":"K2729+2","v":568},"O","Input!O568",{"$f":"_xlfn.XLOOKUP(F2730,'Raw Data'!$I$4:$I$5000,'Raw Data'!$E$4:$E$5000,100,0)","v":100},{"$f":"IF(N2730=0,_xlfn.XLOOKUP(F2730,'Raw Data'!$I$4:$I$5000,'Raw Data'!$H$4:$H$5000,\"\",0),\"\")","v":""},{"$f":"IF(INDIRECT(M2730) = \"\",\"\",INDIRECT(M2730))","v":""},"c"]
["SUCMRESRSK_EMEA_LIA_C",null,null,null,{"$f":"_xlfn.XLOOKUP(F2731,'Raw Data'!$I$4:$I$5000,'Raw Data'!$D$4:$D$5000,\"*** Mnemonic not found ***\",0)","v":"*** Mnemonic not found ***"},"SUCMRESRSK_EMEA_LIA_C__","Comments - Non-life Reserves","Input",{"$f":"ROW(section_non_life_resv)","v":571},4,{"$f":"I2731+J2731","v":575},"O","Input!O575",{"$f":"_xlfn.XLOOKUP(F2731,'Raw Data'!$I$4:$I$5000,'Raw Data'!$E$4:$E$5000,100,0)","v":100},{"$f":"IF(N2731=0,_xlfn.XLOOKUP(F2731,'Raw Data'!$I$4:$I$5000,'Raw Data'!$H$4:$H$5000,\"\",0),\"\")","v":""},{"$f":"IF(INDIRECT(M2731) = \"\",\"\",INDIRECT(M2731))","v":""},"c","SUCMRESRSK_EMEA_LIA_C_LIA_"]
["SUCMRESRSK_EMEA_WCP_C",null,null,null,{"$f":"_xlfn.XLOOKUP(F2732,'Raw Data'!$I$4:$I$5000,'Raw Data'!$D$4:$D$5000,\"*** Mnemonic not found ***\",0)","v":"*** Mnemonic not found ***"},"SUCMRESRSK_EMEA_WCP_C__",null,"Input",null,null,{"$f":"K2731+1","v":576},"O","Input!O576",{"$f":"_xlfn.XLOOKUP(F2732,'Raw Data'!$I$4:$I$5000,'Raw Data'!$E$4:$E$5000,100,0)","v":100},{"$f":"IF(N2732=0,_xlfn.XLOOKUP(F2732,'Raw Data'!$I$4:$I$5000,'Raw Data'!$H$4:$H$5000,\"\",0),\"\")","v":""},{"$f":"IF(INDIRECT(M2732) = \"\",\"\",INDIRECT(M2732))","v":""},"c","SUCMRESRSK_EMEA_WCP_C_WCP_"]
["SUCMRESRSK_EMEA_FIR_C",null,null,null,{"$f":"_xlfn.XLOOKUP(F2733,'Raw Data'!$I$4:$I$5000,'Raw Data'!$D$4:$D$5000,\"*** Mnemonic not found ***\",0)","v":"*** Mnemonic not found ***"},"SUCMRESRSK_EMEA_FIR_C__",null,"Input",null,null,577,"O","Input!O577",{"$f":"_xlfn.XLOOKUP(F2733,'Raw Data'!$I$4:$I$5000,'Raw Data'!$E$4:$E$5000,100,0)","v":100},{"$f":"IF(N2733=0,_xlfn.XLOOKUP(F2733,'Raw Data'!$I$4:$I$5000,'Raw Data'!$H$4:$H$5000,\"\",0),\"\")","v":""},{"$f":"IF(INDIRECT(M2733) = \"\",\"\",INDIRECT(M2733))","v":""},"c","SUCMRESRSK_EMEA_FIR_C_FIR_"]
["SUCMRESRSK_EMEA_ALB_C",null,null,null,{"$f":"_xlfn.XLOOKUP(F2734,'Raw Data'!$I$4:$I$5000,'Raw Data'!$D$4:$D$5000,\"*** Mnemonic not found ***\",0)","v":"*** Mnemonic not found ***"},"SUCMRESRSK_EMEA_ALB_C__",null,"Input",null,null,578,"O","Input!O578",{"$f":"_xlfn.XLOOKUP(F2734,'Raw Data'!$I$4:$I$5000,'Raw Data'!$E$4:$E$5000,100,0)","v":100},{"$f":"IF(N2734=0,_xlfn.XLOOKUP(F2734,'Raw Data'!$I$4:$I$5000,'Raw Data'!$H$4:$H$5000,\"\",0),\"\")","v":""},{"$f":"IF(INDIRECT(M2734) = \"\",\"\",INDIRECT(M2734))","v":""},"c","SUCMRESRSK_EMEA_ALB_C_ALB_"]
["SUCMRESRSK_EMEA_OTHM_C",null,null,null,{"$f":"_xlfn.XLOOKUP(F2735,'Raw Data'!$I$4:$I$5000,'Raw Data'!$D$4:$D$5000,\"*** Mnemonic not found ***\",0)","v":"*** Mnemonic not found ***"},"SUCMRESRSK_EMEA_OTHM_C__",null,"Input",null,null,579,"O","Input!O579",{"$f":"_xlfn.XLOOKUP(F2735,'Raw Data'!$I$4:$I$5000,'Raw Data'!$E$4:$E$5000,100,0)","v":100},{"$f":"IF(N2735=0,_xlfn.XLOOKUP(F2735,'Raw Data'!$I$4:$I$5000,'Raw Data'!$H$4:$H$5000,\"\",0),\"\")","v":""},{"$f":"IF(INDIRECT(M2735) = \"\",\"\",INDIRECT(M2735))","v":""},"c","SUCMRESRSK_EMEA_OTHM_C_OTHM_"]
["SUCMRESRSK_EMEA_CRDS_C",null,null,null,{"$f":"_xlfn.XLOOKUP(F2736,'Raw Data'!$I$4:$I$5000,'Raw Data'!$D$4:$D$5000,\"*** Mnemonic not found ***\",0)","v":"*** Mnemonic not found ***"},"SUCMRESRSK_EMEA_CRDS_C__",null,"Input",null,null,580,"O","Input!O580",{"$f":"_xlfn.XLOOKUP(F2736,'Raw Data'!$I$4:$I$5000,'Raw Data'!$E$4:$E$5000,100,0)","v":100},{"$f":"IF(N2736=0,_xlfn.XLOOKUP(F2736,'Raw Data'!$I$4:$I$5000,'Raw Data'!$H$4:$H$5000,\"\",0),\"\")","v":""},{"$f":"IF(INDIRECT(M2736) = \"\",\"\",INDIRECT(M2736))","v":""},"c","SUCMRESRSK_EMEA_CRDS_C_CRDS_"]
["SUCMRESRSK_EMEA_MSFL_C",null,null,null,{"$f":"_xlfn.XLOOKUP(F2737,'Raw Data'!$I$4:$I$5000,'Raw Data'!$D$4:$D$5000,\"*** Mnemonic not found ***\",0)","v":"*** Mnemonic not found ***"},"SUCMRESRSK_EMEA_MSFL_C__",null,"Input",null,null,581,"O","Input!O581",{"$f":"_xlfn.XLOOKUP(F2737,'Raw Data'!$I$4:$I$5000,'Raw Data'!$E$4:$E$5000,100,0)","v":100},{"$f":"IF(N2737=0,_xlfn.XLOOKUP(F2737,'Raw Data'!$I$4:$I$5000,'Raw Data'!$H$4:$H$5000,\"\",0),\"\")","v":""},{"$f":"IF(INDIRECT(M2737) = \"\",\"\",INDIRECT(M2737))","v":""},"c","SUCMRESRSK_EMEA_MSFL_C_MSFL_"]
["SUCMRESRSK_EMEA_HMEI_C",null,null,null,{"$f":"_xlfn.XLOOKUP(F2738,'Raw Data'!$I$4:$I$5000,'Raw Data'!$D$4:$D$5000,\"*** Mnemonic not found ***\",0)","v":"*** Mnemonic not found ***"},"SUCMRESRSK_EMEA_HMEI_C__",null,"Input",null,null,582,{"$f":"L2737","v":"O"},{"$f":"CONCATENATE(H2738,\"!\",L2738,K2738)","v":"Input!O582"},{"$f":"_xlfn.XLOOKUP(F2738,'Raw Data'!$I$4:$I$5000,'Raw Data'!$E$4:$E$5000,100,0)","v":100},{"$f":"IF(N2738=0,_xlfn.XLOOKUP(F2738,'Raw Data'!$I$4:$I$5000,'Raw Data'!$H$4:$H$5000,\"\",0),\"\")","v":""},{"$f":"IF(INDIRECT(M2738) = \"\",\"\",INDIRECT(M2738))","v":""},"c","SUCMRESRSK_EMEA_HMEI_C_HMEI_"]
["SUCMRESRSK_EMEA_MAVT_C",null,null,null,{"$f":"_xlfn.XLOOKUP(F2739,'Raw Data'!$I$4:$I$5000,'Raw Data'!$D$4:$D$5000,\"*** Mnemonic not found ***\",0)","v":"*** Mnemonic not found ***"},"SUCMRESRSK_EMEA_MAVT_C__",null,"Input",null,null,583,"O","Input!O583",{"$f":"_xlfn.XLOOKUP(F2739,'Raw Data'!$I$4:$I$5000,'Raw Data'!$E$4:$E$5000,100,0)","v":100},{"$f":"IF(N2739=0,_xlfn.XLOOKUP(F2739,'Raw Data'!$I$4:$I$5000,'Raw Data'!$H$4:$H$5000,\"\",0),\"\")","v":""},{"$f":"IF(INDIRECT(M2739) = \"\",\"\",INDIRECT(M2739))","v":""},"c","SUCMRESRSK_EMEA_MAVT_C_MAVT_"]
["SUCMRESRSK_EMEA_MPIN_C",null,null,null,{"$f":"_xlfn.XLOOKUP(F2740,'Raw Data'!$I$4:$I$5000,'Raw Data'!$D$4:$D$5000,\"*** Mnemonic not found ***\",0)","v":"*** Mnemonic not found ***"},"SUCMRESRSK_EMEA_MPIN_C__",null,"Input",null,null,584,"O","Input!O584",{"$f":"_xlfn.XLOOKUP(F2740,'Raw Data'!$I$4:$I$5000,'Raw Data'!$E$4:$E$5000,100,0)","v":100},{"$f":"IF(N2740=0,_xlfn.XLOOKUP(F2740,'Raw Data'!$I$4:$I$5000,'Raw Data'!$H$4:$H$5000,\"\",0),\"\")","v":""},{"$f":"IF(INDIRECT(M2740) = \"\",\"\",INDIRECT(M2740))","v":""},"c","SUCMRESRSK_EMEA_MPIN_C_MPIN_"]
["SUCMRESRSK_EMEA_ASST_C",null,null,null,{"$f":"_xlfn.XLOOKUP(F2741,'Raw Data'!$I$4:$I$5000,'Raw Data'!$D$4:$D$5000,\"*** Mnemonic not found ***\",0)","v":"*** Mnemonic not found ***"},"SUCMRESRSK_EMEA_ASST_C__",null,"Input",null,null,585,"O","Input!O585",{"$f":"_xlfn.XLOOKUP(F2741,'Raw Data'!$I$4:$I$5000,'Raw Data'!$E$4:$E$5000,100,0)","v":100},{"$f":"IF(N2741=0,_xlfn.XLOOKUP(F2741,'Raw Data'!$I$4:$I$5000,'Raw Data'!$H$4:$H$5000,\"\",0),\"\")","v":""},{"$f":"IF(INDIRECT(M2741) = \"\",\"\",INDIRECT(M2741))","v":""},"c","SUCMRESRSK_EMEA_ASST_C_ASST_"]
["SUCMRESRSK_EMEA_INPR_C",null,null,null,{"$f":"_xlfn.XLOOKUP(F2742,'Raw Data'!$I$4:$I$5000,'Raw Data'!$D$4:$D$5000,\"*** Mnemonic not found ***\",0)","v":"*** Mnemonic not found ***"},"SUCMRESRSK_EMEA_INPR_C__",null,"Input",null,null,586,"O","Input!O586",{"$f":"_xlfn.XLOOKUP(F2742,'Raw Data'!$I$4:$I$5000,'Raw Data'!$E$4:$E$5000,100,0)","v":100},{"$f":"IF(N2742=0,_xlfn.XLOOKUP(F2742,'Raw Data'!$I$4:$I$5000,'Raw Data'!$H$4:$H$5000,\"\",0),\"\")","v":""},{"$f":"IF(INDIRECT(M2742) = \"\",\"\",INDIRECT(M2742))","v":""},"c","SUCMRESRSK_EMEA_INPR_C_INPR_"]
["SUCMRESRSK_EMEA_LEGEX_C",null,null,null,{"$f":"_xlfn.XLOOKUP(F2743,'Raw Data'!$I$4:$I$5000,'Raw Data'!$D$4:$D$5000,\"*** Mnemonic not found ***\",0)","v":"*** Mnemonic not found ***"},"SUCMRESRSK_EMEA_LEGEX_C__",null,"Input",null,null,587,"O","Input!O587",{"$f":"_xlfn.XLOOKUP(F2743,'Raw Data'!$I$4:$I$5000,'Raw Data'!$E$4:$E$5000,100,0)","v":100},{"$f":"IF(N2743=0,_xlfn.XLOOKUP(F2743,'Raw Data'!$I$4:$I$5000,'Raw Data'!$H$4:$H$5000,\"\",0),\"\")","v":""},{"$f":"IF(INDIRECT(M2743) = \"\",\"\",INDIRECT(M2743))","v":""},"c","SUCMRESRSK_EMEA_LEGEX_C_LEGEX_"]
["SUCMRESRSK_EMEA_OCAH_C",null,null,null,{"$f":"_xlfn.XLOOKUP(F2744,'Raw Data'!$I$4:$I$5000,'Raw Data'!$D$4:$D$5000,\"*** Mnemonic not found ***\",0)","v":"*** Mnemonic not found ***"},"SUCMRESRSK_EMEA_OCAH_C__",null,"Input",null,null,588,"O","Input!O588",{"$f":"_xlfn.XLOOKUP(F2744,'Raw Data'!$I$4:$I$5000,'Raw Data'!$E$4:$E$5000,100,0)","v":100},{"$f":"IF(N2744=0,_xlfn.XLOOKUP(F2744,'Raw Data'!$I$4:$I$5000,'Raw Data'!$H$4:$H$5000,\"\",0),\"\")","v":""},{"$f":"IF(INDIRECT(M2744) = \"\",\"\",INDIRECT(M2744))","v":""},"c","SUCMRESRSK_EMEA_OCAH_C_OCAH_"]
["SUCMRESRSK_US_MEC_C",null,null,null,{"$f":"_xlfn.XLOOKUP(F2745,'Raw Data'!$I$4:$I$5000,'Raw Data'!$D$4:$D$5000,\"*** Mnemonic not found ***\",0)","v":"*** Mnemonic not found ***"},"SUCMRESRSK_US_MEC_C__",null,"Input",null,null,{"$f":"K2744+2","v":590},"O","Input!O590",{"$f":"_xlfn.XLOOKUP(F2745,'Raw Data'!$I$4:$I$5000,'Raw Data'!$E$4:$E$5000,100,0)","v":100},{"$f":"IF(N2745=0,_xlfn.XLOOKUP(F2745,'Raw Data'!$I$4:$I$5000,'Raw Data'!$H$4:$H$5000,\"\",0),\"\")","v":""},{"$f":"IF(INDIRECT(M2745) = \"\",\"\",INDIRECT(M2745))","v":""},"c","SUCMRESRSK_US_MEC_C_MEC_"]
["SUCMRESRSK_US_MEO_C",null,null,null,{"$f":"_xlfn.XLOOKUP(F2746,'Raw Data'!$I$4:$I$5000,'Raw Data'!$D$4:$D$5000,\"*** Mnemonic not found ***\",0)","v":"*** Mnemonic not found ***"},"SUCMRESRSK_US_MEO_C__",null,"Input",null,null,{"$f":"K2745+1","v":591},"O","Input!O591",{"$f":"_xlfn.XLOOKUP(F2746,'Raw Data'!$I$4:$I$5000,'Raw Data'!$E$4:$E$5000,100,0)","v":100},{"$f":"IF(N2746=0,_xlfn.XLOOKUP(F2746,'Raw Data'!$I$4:$I$5000,'Raw Data'!$H$4:$H$5000,\"\",0),\"\")","v":""},{"$f":"IF(INDIRECT(M2746) = \"\",\"\",INDIRECT(M2746))","v":""},"c","SUCMRESRSK_US_MEO_C_MEO_"]
["SUCMRESRSK_US_OLC_C",null,null,null,{"$f":"_xlfn.XLOOKUP(F2747,'Raw Data'!$I$4:$I$5000,'Raw Data'!$D$4:$D$5000,\"*** Mnemonic not found ***\",0)","v":"*** Mnemonic not found ***"},"SUCMRESRSK_US_OLC_C__",null,"Input",null,null,592,"O","Input!O592",{"$f":"_xlfn.XLOOKUP(F2747,'Raw Data'!$I$4:$I$5000,'Raw Data'!$E$4:$E$5000,100,0)","v":100},{"$f":"IF(N2747=0,_xlfn.XLOOKUP(F2747,'Raw Data'!$I$4:$I$5000,'Raw Data'!$H$4:$H$5000,\"\",0),\"\")","v":""},{"$f":"IF(INDIRECT(M2747) = \"\",\"\",INDIRECT(M2747))","v":""},"c","SUCMRESRSK_US_OLC_C_OLC_"]
["SUCMRESRSK_US_OLO_C",null,null,null,{"$f":"_xlfn.XLOOKUP(F2748,'Raw Data'!$I$4:$I$5000,'Raw Data'!$D$4:$D$5000,\"*** Mnemonic not found ***\",0)","v":"*** Mnemonic not found ***"},"SUCMRESRSK_US_OLO_C__",null,"Input",null,null,593,"O","Input!O593",{"$f":"_xlfn.XLOOKUP(F2748,'Raw Data'!$I$4:$I$5000,'Raw Data'!$E$4:$E$5000,100,0)","v":100},{"$f":"IF(N2748=0,_xlfn.XLOOKUP(F2748,'Raw Data'!$I$4:$I$5000,'Raw Data'!$H$4:$H$5000,\"\",0),\"\")","v":""},{"$f":"IF(INDIRECT(M2748) = \"\",\"\",INDIRECT(M2748))","v":""},"c","SUCMRESRSK_US_OLO_C_OLO_"]
["SUCMRESRSK_US_PLC_C",null,null,null,{"$f":"_xlfn.XLOOKUP(F2749,'Raw Data'!$I$4:$I$5000,'Raw Data'!$D$4:$D$5000,\"*** Mnemonic not found ***\",0)","v":"*** Mnemonic not found ***"},"SUCMRESRSK_US_PLC_C__",null,"Input",null,null,594,"O","Input!O594",{"$f":"_xlfn.XLOOKUP(F2749,'Raw Data'!$I$4:$I$5000,'Raw Data'!$E$4:$E$5000,100,0)","v":100},{"$f":"IF(N2749=0,_xlfn.XLOOKUP(F2749,'Raw Data'!$I$4:$I$5000,'Raw Data'!$H$4:$H$5000,\"\",0),\"\")","v":""},{"$f":"IF(INDIRECT(M2749) = \"\",\"\",INDIRECT(M2749))","v":""},"c","SUCMRESRSK_US_PLC_C_PLC_"]
["SUCMRESRSK_US_PLO_C",null,null,null,{"$f":"_xlfn.XLOOKUP(F2750,'Raw Data'!$I$4:$I$5000,'Raw Data'!$D$4:$D$5000,\"*** Mnemonic not found ***\",0)","v":"*** Mnemonic not found ***"},"SUCMRESRSK_US_PLO_C__",null,"Input",null,null,595,"O","Input!O595",{"$f":"_xlfn.XLOOKUP(F2750,'Raw Data'!$I$4:$I$5000,'Raw Data'!$E$4:$E$5000,100,0)","v":100},{"$f":"IF(N2750=0,_xlfn.XLOOKUP(F2750,'Raw Data'!$I$4:$I$5000,'Raw Data'!$H$4:$H$5000,\"\",0),\"\")","v":""},{"$f":"IF(INDIRECT(M2750) = \"\",\"\",INDIRECT(M2750))","v":""},"c","SUCMRESRSK_US_PLO_C_PLO_"]
["SUCMRESRSK_US_WCP_C",null,null,null,{"$f":"_xlfn.XLOOKUP(F2751,'Raw Data'!$I$4:$I$5000,'Raw Data'!$D$4:$D$5000,\"*** Mnemonic not found ***\",0)","v":"*** Mnemonic not found ***"},"SUCMRESRSK_US_WCP_C__",null,"Input",null,null,596,"O","Input!O596",{"$f":"_xlfn.XLOOKUP(F2751,'Raw Data'!$I$4:$I$5000,'Raw Data'!$E$4:$E$5000,100,0)","v":100},{"$f":"IF(N2751=0,_xlfn.XLOOKUP(F2751,'Raw Data'!$I$4:$I$5000,'Raw Data'!$H$4:$H$5000,\"\",0),\"\")","v":""},{"$f":"IF(INDIRECT(M2751) = \"\",\"\",INDIRECT(M2751))","v":""},"c","SUCMRESRSK_US_WCP_C_WCP_"]
["SUCMRESRSK_US_BLM_C",null,null,null,{"$f":"_xlfn.XLOOKUP(F2752,'Raw Data'!$I$4:$I$5000,'Raw Data'!$D$4:$D$5000,\"*** Mnemonic not found ***\",0)","v":"*** Mnemonic not found ***"},"SUCMRESRSK_US_BLM_C__",null,"Input",null,null,597,"O","Input!O597",{"$f":"_xlfn.XLOOKUP(F2752,'Raw Data'!$I$4:$I$5000,'Raw Data'!$E$4:$E$5000,100,0)","v":100},{"$f":"IF(N2752=0,_xlfn.XLOOKUP(F2752,'Raw Data'!$I$4:$I$5000,'Raw Data'!$H$4:$H$5000,\"\",0),\"\")","v":""},{"$f":"IF(INDIRECT(M2752) = \"\",\"\",INDIRECT(M2752))","v":""},"c","SUCMRESRSK_US_BLM_C_BLM_"]
["SUCMRESRSK_US_CMP_C",null,null,null,{"$f":"_xlfn.XLOOKUP(F2753,'Raw Data'!$I$4:$I$5000,'Raw Data'!$D$4:$D$5000,\"*** Mnemonic not found ***\",0)","v":"*** Mnemonic not found ***"},"SUCMRESRSK_US_CMP_C__",null,"Input",null,null,598,"O","Input!O598",{"$f":"_xlfn.XLOOKUP(F2753,'Raw Data'!$I$4:$I$5000,'Raw Data'!$E$4:$E$5000,100,0)","v":100},{"$f":"IF(N2753=0,_xlfn.XLOOKUP(F2753,'Raw Data'!$I$4:$I$5000,'Raw Data'!$H$4:$H$5000,\"\",0),\"\")","v":""},{"$f":"IF(INDIRECT(M2753) = \"\",\"\",INDIRECT(M2753))","v":""},"c","SUCMRESRSK_US_CMP_C_CMP_"]
["SUCMRESRSK_US_HFM_C",null,null,null,{"$f":"_xlfn.XLOOKUP(F2754,'Raw Data'!$I$4:$I$5000,'Raw Data'!$D$4:$D$5000,\"*** Mnemonic not found ***\",0)","v":"*** Mnemonic not found ***"},"SUCMRESRSK_US_HFM_C__",null,"Input",null,null,599,"O","Input!O599",{"$f":"_xlfn.XLOOKUP(F2754,'Raw Data'!$I$4:$I$5000,'Raw Data'!$E$4:$E$5000,100,0)","v":100},{"$f":"IF(N2754=0,_xlfn.XLOOKUP(F2754,'Raw Data'!$I$4:$I$5000,'Raw Data'!$H$4:$H$5000,\"\",0),\"\")","v":""},{"$f":"IF(INDIRECT(M2754) = \"\",\"\",INDIRECT(M2754))","v":""},"c","SUCMRESRSK_US_HFM_C_HFM_"]
["SUCMRESRSK_US_SPP_C",null,null,null,{"$f":"_xlfn.XLOOKUP(F2755,'Raw Data'!$I$4:$I$5000,'Raw Data'!$D$4:$D$5000,\"*** Mnemonic not found ***\",0)","v":"*** Mnemonic not found ***"},"SUCMRESRSK_US_SPP_C__",null,"Input",null,null,600,"O","Input!O600",{"$f":"_xlfn.XLOOKUP(F2755,'Raw Data'!$I$4:$I$5000,'Raw Data'!$E$4:$E$5000,100,0)","v":100},{"$f":"IF(N2755=0,_xlfn.XLOOKUP(F2755,'Raw Data'!$I$4:$I$5000,'Raw Data'!$H$4:$H$5000,\"\",0),\"\")","v":""},{"$f":"IF(INDIRECT(M2755) = \"\",\"\",INDIRECT(M2755))","v":""},"c","SUCMRESRSK_US_SPP_C_SPP_"]
["SUCMRESRSK_US_APB_C",null,null,null,{"$f":"_xlfn.XLOOKUP(F2756,'Raw Data'!$I$4:$I$5000,'Raw Data'!$D$4:$D$5000,\"*** Mnemonic not found ***\",0)","v":"*** Mnemonic not found ***"},"SUCMRESRSK_US_APB_C__",null,"Input",null,null,601,"O","Input!O601",{"$f":"_xlfn.XLOOKUP(F2756,'Raw Data'!$I$4:$I$5000,'Raw Data'!$E$4:$E$5000,100,0)","v":100},{"$f":"IF(N2756=0,_xlfn.XLOOKUP(F2756,'Raw Data'!$I$4:$I$5000,'Raw Data'!$H$4:$H$5000,\"\",0),\"\")","v":""},{"$f":"IF(INDIRECT(M2756) = \"\",\"\",INDIRECT(M2756))","v":""},"c","SUCMRESRSK_US_APB_C_APB_"]
["SUCMRESRSK_US_CAL_C",null,null,null,{"$f":"_xlfn.XLOOKUP(F2757,'Raw Data'!$I$4:$I$5000,'Raw Data'!$D$4:$D$5000,\"*** Mnemonic not found ***\",0)","v":"*** Mnemonic not found ***"},"SUCMRESRSK_US_CAL_C__",null,"Input",null,null,602,"O","Input!O602",{"$f":"_xlfn.XLOOKUP(F2757,'Raw Data'!$I$4:$I$5000,'Raw Data'!$E$4:$E$5000,100,0)","v":100},{"$f":"IF(N2757=0,_xlfn.XLOOKUP(F2757,'Raw Data'!$I$4:$I$5000,'Raw Data'!$H$4:$H$5000,\"\",0),\"\")","v":""},{"$f":"IF(INDIRECT(M2757) = \"\",\"\",INDIRECT(M2757))","v":""},"c","SUCMRESRSK_US_CAL_C_CAL_"]
["SUCMRESRSK_US_PPA_C",null,null,null,{"$f":"_xlfn.XLOOKUP(F2758,'Raw Data'!$I$4:$I$5000,'Raw Data'!$D$4:$D$5000,\"*** Mnemonic not found ***\",0)","v":"*** Mnemonic not found ***"},"SUCMRESRSK_US_PPA_C__",null,"Input",null,null,603,"O","Input!O603",{"$f":"_xlfn.XLOOKUP(F2758,'Raw Data'!$I$4:$I$5000,'Raw Data'!$E$4:$E$5000,100,0)","v":100},{"$f":"IF(N2758=0,_xlfn.XLOOKUP(F2758,'Raw Data'!$I$4:$I$5000,'Raw Data'!$H$4:$H$5000,\"\",0),\"\")","v":""},{"$f":"IF(INDIRECT(M2758) = \"\",\"\",INDIRECT(M2758))","v":""},"c","SUCMRESRSK_US_PPA_C_PPA_"]
["SUCMRESRSK_US_CRD_C",null,null,null,{"$f":"_xlfn.XLOOKUP(F2759,'Raw Data'!$I$4:$I$5000,'Raw Data'!$D$4:$D$5000,\"*** Mnemonic not found ***\",0)","v":"*** Mnemonic not found ***"},"SUCMRESRSK_US_CRD_C__",null,"Input",null,null,604,"O","Input!O604",{"$f":"_xlfn.XLOOKUP(F2759,'Raw Data'!$I$4:$I$5000,'Raw Data'!$E$4:$E$5000,100,0)","v":100},{"$f":"IF(N2759=0,_xlfn.XLOOKUP(F2759,'Raw Data'!$I$4:$I$5000,'Raw Data'!$H$4:$H$5000,\"\",0),\"\")","v":""},{"$f":"IF(INDIRECT(M2759) = \"\",\"\",INDIRECT(M2759))","v":""},"c","SUCMRESRSK_US_CRD_C_CRD_"]
["SUCMRESRSK_US_FIDSUR_C",null,null,null,{"$f":"_xlfn.XLOOKUP(F2760,'Raw Data'!$I$4:$I$5000,'Raw Data'!$D$4:$D$5000,\"*** Mnemonic not found ***\",0)","v":"*** Mnemonic not found ***"},"SUCMRESRSK_US_FIDSUR_C__",null,"Input",null,null,605,"O","Input!O605",{"$f":"_xlfn.XLOOKUP(F2760,'Raw Data'!$I$4:$I$5000,'Raw Data'!$E$4:$E$5000,100,0)","v":100},{"$f":"IF(N2760=0,_xlfn.XLOOKUP(F2760,'Raw Data'!$I$4:$I$5000,'Raw Data'!$H$4:$H$5000,\"\",0),\"\")","v":""},{"$f":"IF(INDIRECT(M2760) = \"\",\"\",INDIRECT(M2760))","v":""},"c","SUCMRESRSK_US_FIDSUR_C_FIDSUR_"]
["SUCMRESRSK_US_FIG_C",null,null,null,{"$f":"_xlfn.XLOOKUP(F2761,'Raw Data'!$I$4:$I$5000,'Raw Data'!$D$4:$D$5000,\"*** Mnemonic not found ***\",0)","v":"*** Mnemonic not found ***"},"SUCMRESRSK_US_FIG_C__",null,"Input",null,null,606,"O","Input!O606",{"$f":"_xlfn.XLOOKUP(F2761,'Raw Data'!$I$4:$I$5000,'Raw Data'!$E$4:$E$5000,100,0)","v":100},{"$f":"IF(N2761=0,_xlfn.XLOOKUP(F2761,'Raw Data'!$I$4:$I$5000,'Raw Data'!$H$4:$H$5000,\"\",0),\"\")","v":""},{"$f":"IF(INDIRECT(M2761) = \"\",\"\",INDIRECT(M2761))","v":""},"c","SUCMRESRSK_US_FIG_C_FIG_"]
["SUCMRESRSK_US_AAH_C",null,null,null,{"$f":"_xlfn.XLOOKUP(F2762,'Raw Data'!$I$4:$I$5000,'Raw Data'!$D$4:$D$5000,\"*** Mnemonic not found ***\",0)","v":"*** Mnemonic not found ***"},"SUCMRESRSK_US_AAH_C__",null,"Input",null,null,607,"O","Input!O607",{"$f":"_xlfn.XLOOKUP(F2762,'Raw Data'!$I$4:$I$5000,'Raw Data'!$E$4:$E$5000,100,0)","v":100},{"$f":"IF(N2762=0,_xlfn.XLOOKUP(F2762,'Raw Data'!$I$4:$I$5000,'Raw Data'!$H$4:$H$5000,\"\",0),\"\")","v":""},{"$f":"IF(INDIRECT(M2762) = \"\",\"\",INDIRECT(M2762))","v":""},"c","SUCMRESRSK_US_AAH_C_AAH_"]
["SUCMRESRSK_US_OLBF_C",null,null,null,{"$f":"_xlfn.XLOOKUP(F2763,'Raw Data'!$I$4:$I$5000,'Raw Data'!$D$4:$D$5000,\"*** Mnemonic not found ***\",0)","v":"*** Mnemonic not found ***"},"SUCMRESRSK_US_OLBF_C__",null,"Input",null,null,608,"O","Input!O608",{"$f":"_xlfn.XLOOKUP(F2763,'Raw Data'!$I$4:$I$5000,'Raw Data'!$E$4:$E$5000,100,0)","v":100},{"$f":"IF(N2763=0,_xlfn.XLOOKUP(F2763,'Raw Data'!$I$4:$I$5000,'Raw Data'!$H$4:$H$5000,\"\",0),\"\")","v":""},{"$f":"IF(INDIRECT(M2763) = \"\",\"\",INDIRECT(M2763))","v":""},"c","SUCMRESRSK_US_OLBF_C_USHRES_"]
["SUCMRESRSK_US_AIR_C",null,null,null,{"$f":"_xlfn.XLOOKUP(F2764,'Raw Data'!$I$4:$I$5000,'Raw Data'!$D$4:$D$5000,\"*** Mnemonic not found ***\",0)","v":"*** Mnemonic not found ***"},"SUCMRESRSK_US_AIR_C__",null,"Input",null,null,609,"O","Input!O609",{"$f":"_xlfn.XLOOKUP(F2764,'Raw Data'!$I$4:$I$5000,'Raw Data'!$E$4:$E$5000,100,0)","v":100},{"$f":"IF(N2764=0,_xlfn.XLOOKUP(F2764,'Raw Data'!$I$4:$I$5000,'Raw Data'!$H$4:$H$5000,\"\",0),\"\")","v":""},{"$f":"IF(INDIRECT(M2764) = \"\",\"\",INDIRECT(M2764))","v":""},"c","SUCMRESRSK_US_AIR_C_AIR_"]
["SUCMRESRSK_US_MPIN_C",null,null,null,{"$f":"_xlfn.XLOOKUP(F2765,'Raw Data'!$I$4:$I$5000,'Raw Data'!$D$4:$D$5000,\"*** Mnemonic not found ***\",0)","v":"*** Mnemonic not found ***"},"SUCMRESRSK_US_MPIN_C__",null,"Input",null,null,610,"O","Input!O610",{"$f":"_xlfn.XLOOKUP(F2765,'Raw Data'!$I$4:$I$5000,'Raw Data'!$E$4:$E$5000,100,0)","v":100},{"$f":"IF(N2765=0,_xlfn.XLOOKUP(F2765,'Raw Data'!$I$4:$I$5000,'Raw Data'!$H$4:$H$5000,\"\",0),\"\")","v":""},{"$f":"IF(INDIRECT(M2765) = \"\",\"\",INDIRECT(M2765))","v":""},"c","SUCMRESRSK_US_MPIN_C_MPIN_"]
["SUCMRESRSK_US_OCM_C",null,null,null,{"$f":"_xlfn.XLOOKUP(F2766,'Raw Data'!$I$4:$I$5000,'Raw Data'!$D$4:$D$5000,\"*** Mnemonic not found ***\",0)","v":"*** Mnemonic not found ***"},{"$f":"CONCATENATE(A2766,\"_\",B2766,\"_\",D2766)","v":"SUCMRESRSK_US_OCM_C__"},null,"Input",null,null,611,"O","Input!O611",{"$f":"_xlfn.XLOOKUP(F2766,'Raw Data'!$I$4:$I$5000,'Raw Data'!$E$4:$E$5000,100,0)","v":100},{"$f":"IF(N2766=0,_xlfn.XLOOKUP(F2766,'Raw Data'!$I$4:$I$5000,'Raw Data'!$H$4:$H$5000,\"\",0),\"\")","v":""},{"$f":"IF(INDIRECT(M2766) = \"\",\"\",INDIRECT(M2766))","v":""},"c","SUCMRESRSK_US_OCM_C_OCM_"]
["SUCMRESRSK_US_TITLE_C",null,null,null,{"$f":"_xlfn.XLOOKUP(F2767,'Raw Data'!$I$4:$I$5000,'Raw Data'!$D$4:$D$5000,\"*** Mnemonic not found ***\",0)","v":"*** Mnemonic not found ***"},"SUCMRESRSK_US_TITLE_C__",null,"Input",null,null,612,"O","Input!O612",{"$f":"_xlfn.XLOOKUP(F2767,'Raw Data'!$I$4:$I$5000,'Raw Data'!$E$4:$E$5000,100,0)","v":100},{"$f":"IF(N2767=0,_xlfn.XLOOKUP(F2767,'Raw Data'!$I$4:$I$5000,'Raw Data'!$H$4:$H$5000,\"\",0),\"\")","v":""},{"$f":"IF(INDIRECT(M2767) = \"\",\"\",INDIRECT(M2767))","v":""},"c","SUCMRESRSK_US_TITLE_C_TITLE_"]
["SUCMRESRSK_US_WAR_C",null,null,null,{"$f":"_xlfn.XLOOKUP(F2768,'Raw Data'!$I$4:$I$5000,'Raw Data'!$D$4:$D$5000,\"*** Mnemonic not found ***\",0)","v":"*** Mnemonic not found ***"},"SUCMRESRSK_US_WAR_C__",null,"Input",null,null,613,"O","Input!O613",{"$f":"_xlfn.XLOOKUP(F2768,'Raw Data'!$I$4:$I$5000,'Raw Data'!$E$4:$E$5000,100,0)","v":100},{"$f":"IF(N2768=0,_xlfn.XLOOKUP(F2768,'Raw Data'!$I$4:$I$5000,'Raw Data'!$H$4:$H$5000,\"\",0),\"\")","v":""},{"$f":"IF(INDIRECT(M2768) = \"\",\"\",INDIRECT(M2768))","v":""},"c","SUCMRESRSK_US_WAR_C_WAR_"]
["SUCMRESRSK_US_OCAH_C",null,null,null,{"$f":"_xlfn.XLOOKUP(F2769,'Raw Data'!$I$4:$I$5000,'Raw Data'!$D$4:$D$5000,\"*** Mnemonic not found ***\",0)","v":"*** Mnemonic not found ***"},"SUCMRESRSK_US_OCAH_C__",null,"Input",null,null,614,"O","Input!O614",{"$f":"_xlfn.XLOOKUP(F2769,'Raw Data'!$I$4:$I$5000,'Raw Data'!$E$4:$E$5000,100,0)","v":100},{"$f":"IF(N2769=0,_xlfn.XLOOKUP(F2769,'Raw Data'!$I$4:$I$5000,'Raw Data'!$H$4:$H$5000,\"\",0),\"\")","v":""},{"$f":"IF(INDIRECT(M2769) = \"\",\"\",INDIRECT(M2769))","v":""},"c","SUCMRESRSK_US_OCAH_C_OCAH_"]
["SUCMRESRSK_CN_LIA_C",null,null,null,{"$f":"_xlfn.XLOOKUP(F2770,'Raw Data'!$I$4:$I$5000,'Raw Data'!$D$4:$D$5000,\"*** Mnemonic not found ***\",0)","v":"*** Mnemonic not found ***"},"SUCMRESRSK_CN_LIA_C__",null,"Input",null,null,{"$f":"K2769+2","v":616},"O","Input!O616",{"$f":"_xlfn.XLOOKUP(F2770,'Raw Data'!$I$4:$I$5000,'Raw Data'!$E$4:$E$5000,100,0)","v":100},{"$f":"IF(N2770=0,_xlfn.XLOOKUP(F2770,'Raw Data'!$I$4:$I$5000,'Raw Data'!$H$4:$H$5000,\"\",0),\"\")","v":""},{"$f":"IF(INDIRECT(M2770) = \"\",\"\",INDIRECT(M2770))","v":""},"c","SUCMRESRSK_CN_LIA_C_LIA_"]
["SUCMRESRSK_CN_BLM_C",null,null,null,{"$f":"_xlfn.XLOOKUP(F2771,'Raw Data'!$I$4:$I$5000,'Raw Data'!$D$4:$D$5000,\"*** Mnemonic not found ***\",0)","v":"*** Mnemonic not found ***"},"SUCMRESRSK_CN_BLM_C__",null,"Input",null,null,617,"O","Input!O617",{"$f":"_xlfn.XLOOKUP(F2771,'Raw Data'!$I$4:$I$5000,'Raw Data'!$E$4:$E$5000,100,0)","v":100},{"$f":"IF(N2771=0,_xlfn.XLOOKUP(F2771,'Raw Data'!$I$4:$I$5000,'Raw Data'!$H$4:$H$5000,\"\",0),\"\")","v":""},{"$f":"IF(INDIRECT(M2771) = \"\",\"\",INDIRECT(M2771))","v":""},"c","SUCMRESRSK_CN_BLM_C_BLM_"]
["SUCMRESRSK_CN_CMPR_C",null,null,null,{"$f":"_xlfn.XLOOKUP(F2772,'Raw Data'!$I$4:$I$5000,'Raw Data'!$D$4:$D$5000,\"*** Mnemonic not found ***\",0)","v":"*** Mnemonic not found ***"},"SUCMRESRSK_CN_CMPR_C__",null,"Input",null,null,618,"O","Input!O618",{"$f":"_xlfn.XLOOKUP(F2772,'Raw Data'!$I$4:$I$5000,'Raw Data'!$E$4:$E$5000,100,0)","v":100},{"$f":"IF(N2772=0,_xlfn.XLOOKUP(F2772,'Raw Data'!$I$4:$I$5000,'Raw Data'!$H$4:$H$5000,\"\",0),\"\")","v":""},{"$f":"IF(INDIRECT(M2772) = \"\",\"\",INDIRECT(M2772))","v":""},"c","SUCMRESRSK_CN_CMPR_C_CMPR_"]
["SUCMRESRSK_CN_HAIL_C",null,null,null,{"$f":"_xlfn.XLOOKUP(F2773,'Raw Data'!$I$4:$I$5000,'Raw Data'!$D$4:$D$5000,\"*** Mnemonic not found ***\",0)","v":"*** Mnemonic not found ***"},"SUCMRESRSK_CN_HAIL_C__",null,"Input",null,null,619,"O","Input!O619",{"$f":"_xlfn.XLOOKUP(F2773,'Raw Data'!$I$4:$I$5000,'Raw Data'!$E$4:$E$5000,100,0)","v":100},{"$f":"IF(N2773=0,_xlfn.XLOOKUP(F2773,'Raw Data'!$I$4:$I$5000,'Raw Data'!$H$4:$H$5000,\"\",0),\"\")","v":""},{"$f":"IF(INDIRECT(M2773) = \"\",\"\",INDIRECT(M2773))","v":""},"c","SUCMRESRSK_CN_HAIL_C_HAIL_"]
["SUCMRESRSK_CN_PPR_C",null,null,null,{"$f":"_xlfn.XLOOKUP(F2774,'Raw Data'!$I$4:$I$5000,'Raw Data'!$D$4:$D$5000,\"*** Mnemonic not found ***\",0)","v":"*** Mnemonic not found ***"},"SUCMRESRSK_CN_PPR_C__",null,"Input",null,null,620,"O","Input!O620",{"$f":"_xlfn.XLOOKUP(F2774,'Raw Data'!$I$4:$I$5000,'Raw Data'!$E$4:$E$5000,100,0)","v":100},{"$f":"IF(N2774=0,_xlfn.XLOOKUP(F2774,'Raw Data'!$I$4:$I$5000,'Raw Data'!$H$4:$H$5000,\"\",0),\"\")","v":""},{"$f":"IF(INDIRECT(M2774) = \"\",\"\",INDIRECT(M2774))","v":""},"c","SUCMRESRSK_CN_PPR_C_PPR_"]
["SUCMRESRSK_CN_ALB_C",null,null,null,{"$f":"_xlfn.XLOOKUP(F2775,'Raw Data'!$I$4:$I$5000,'Raw Data'!$D$4:$D$5000,\"*** Mnemonic not found ***\",0)","v":"*** Mnemonic not found ***"},"SUCMRESRSK_CN_ALB_C__",null,"Input",null,null,621,"O","Input!O621",{"$f":"_xlfn.XLOOKUP(F2775,'Raw Data'!$I$4:$I$5000,'Raw Data'!$E$4:$E$5000,100,0)","v":100},{"$f":"IF(N2775=0,_xlfn.XLOOKUP(F2775,'Raw Data'!$I$4:$I$5000,'Raw Data'!$H$4:$H$5000,\"\",0),\"\")","v":""},{"$f":"IF(INDIRECT(M2775) = \"\",\"\",INDIRECT(M2775))","v":""},"c","SUCMRESRSK_CN_ALB_C_ALB_"]
["SUCMRESRSK_CN_ATOTH_C",null,null,null,{"$f":"_xlfn.XLOOKUP(F2776,'Raw Data'!$I$4:$I$5000,'Raw Data'!$D$4:$D$5000,\"*** Mnemonic not found ***\",0)","v":"*** Mnemonic not found ***"},"SUCMRESRSK_CN_ATOTH_C__",null,"Input",null,null,622,"O","Input!O622",{"$f":"_xlfn.XLOOKUP(F2776,'Raw Data'!$I$4:$I$5000,'Raw Data'!$E$4:$E$5000,100,0)","v":100},{"$f":"IF(N2776=0,_xlfn.XLOOKUP(F2776,'Raw Data'!$I$4:$I$5000,'Raw Data'!$H$4:$H$5000,\"\",0),\"\")","v":""},{"$f":"IF(INDIRECT(M2776) = \"\",\"\",INDIRECT(M2776))","v":""},"c","SUCMRESRSK_CN_ATOTH_C_ATOTH_"]
["SUCMRESRSK_CN_ATPAC_C",null,null,null,{"$f":"_xlfn.XLOOKUP(F2777,'Raw Data'!$I$4:$I$5000,'Raw Data'!$D$4:$D$5000,\"*** Mnemonic not found ***\",0)","v":"*** Mnemonic not found ***"},"SUCMRESRSK_CN_ATPAC_C__",null,"Input",null,null,623,"O","Input!O623",{"$f":"_xlfn.XLOOKUP(F2777,'Raw Data'!$I$4:$I$5000,'Raw Data'!$E$4:$E$5000,100,0)","v":100},{"$f":"IF(N2777=0,_xlfn.XLOOKUP(F2777,'Raw Data'!$I$4:$I$5000,'Raw Data'!$H$4:$H$5000,\"\",0),\"\")","v":""},{"$f":"IF(INDIRECT(M2777) = \"\",\"\",INDIRECT(M2777))","v":""},"c","SUCMRESRSK_CN_ATPAC_C_ATPAC_"]
["SUCMRESRSK_CN_CRD_C",null,null,null,{"$f":"_xlfn.XLOOKUP(F2778,'Raw Data'!$I$4:$I$5000,'Raw Data'!$D$4:$D$5000,\"*** Mnemonic not found ***\",0)","v":"*** Mnemonic not found ***"},"SUCMRESRSK_CN_CRD_C__",null,"Input",null,null,624,"O","Input!O624",{"$f":"_xlfn.XLOOKUP(F2778,'Raw Data'!$I$4:$I$5000,'Raw Data'!$E$4:$E$5000,100,0)","v":100},{"$f":"IF(N2778=0,_xlfn.XLOOKUP(F2778,'Raw Data'!$I$4:$I$5000,'Raw Data'!$H$4:$H$5000,\"\",0),\"\")","v":""},{"$f":"IF(INDIRECT(M2778) = \"\",\"\",INDIRECT(M2778))","v":""},"c","SUCMRESRSK_CN_CRD_C_CRD_"]
["SUCMRESRSK_CN_CRPR_C",null,null,null,{"$f":"_xlfn.XLOOKUP(F2779,'Raw Data'!$I$4:$I$5000,'Raw Data'!$D$4:$D$5000,\"*** Mnemonic not found ***\",0)","v":"*** Mnemonic not found ***"},"SUCMRESRSK_CN_CRPR_C__",null,"Input",null,null,625,"O","Input!O625",{"$f":"_xlfn.XLOOKUP(F2779,'Raw Data'!$I$4:$I$5000,'Raw Data'!$E$4:$E$5000,100,0)","v":100},{"$f":"IF(N2779=0,_xlfn.XLOOKUP(F2779,'Raw Data'!$I$4:$I$5000,'Raw Data'!$H$4:$H$5000,\"\",0),\"\")","v":""},{"$f":"IF(INDIRECT(M2779) = \"\",\"\",INDIRECT(M2779))","v":""},"c","SUCMRESRSK_CN_CRPR_C_CRPR_"]
["SUCMRESRSK_CN_FID_C",null,null,null,{"$f":"_xlfn.XLOOKUP(F2780,'Raw Data'!$I$4:$I$5000,'Raw Data'!$D$4:$D$5000,\"*** Mnemonic not found ***\",0)","v":"*** Mnemonic not found ***"},"SUCMRESRSK_CN_FID_C__",null,"Input",null,null,626,"O","Input!O626",{"$f":"_xlfn.XLOOKUP(F2780,'Raw Data'!$I$4:$I$5000,'Raw Data'!$E$4:$E$5000,100,0)","v":100},{"$f":"IF(N2780=0,_xlfn.XLOOKUP(F2780,'Raw Data'!$I$4:$I$5000,'Raw Data'!$H$4:$H$5000,\"\",0),\"\")","v":""},{"$f":"IF(INDIRECT(M2780) = \"\",\"\",INDIRECT(M2780))","v":""},"c","SUCMRESRSK_CN_FID_C_FID_"]
["SUCMRESRSK_CN_SUR_C",null,null,null,{"$f":"_xlfn.XLOOKUP(F2781,'Raw Data'!$I$4:$I$5000,'Raw Data'!$D$4:$D$5000,\"*** Mnemonic not found ***\",0)","v":"*** Mnemonic not found ***"},"SUCMRESRSK_CN_SUR_C__",null,"Input",null,null,627,"O","Input!O627",{"$f":"_xlfn.XLOOKUP(F2781,'Raw Data'!$I$4:$I$5000,'Raw Data'!$E$4:$E$5000,100,0)","v":100},{"$f":"IF(N2781=0,_xlfn.XLOOKUP(F2781,'Raw Data'!$I$4:$I$5000,'Raw Data'!$H$4:$H$5000,\"\",0),\"\")","v":""},{"$f":"IF(INDIRECT(M2781) = \"\",\"\",INDIRECT(M2781))","v":""},"c","SUCMRESRSK_CN_SUR_C_SUR_"]
["SUCMRESRSK_CN_ACSK_C",null,null,null,{"$f":"_xlfn.XLOOKUP(F2782,'Raw Data'!$I$4:$I$5000,'Raw Data'!$D$4:$D$5000,\"*** Mnemonic not found ***\",0)","v":"*** Mnemonic not found ***"},"SUCMRESRSK_CN_ACSK_C__",null,"Input",null,null,628,"O","Input!O628",{"$f":"_xlfn.XLOOKUP(F2782,'Raw Data'!$I$4:$I$5000,'Raw Data'!$E$4:$E$5000,100,0)","v":100},{"$f":"IF(N2782=0,_xlfn.XLOOKUP(F2782,'Raw Data'!$I$4:$I$5000,'Raw Data'!$H$4:$H$5000,\"\",0),\"\")","v":""},{"$f":"IF(INDIRECT(M2782) = \"\",\"\",INDIRECT(M2782))","v":""},"c","SUCMRESRSK_CN_ACSK_C_ACSK_"]
["SUCMRESRSK_CN_SUPH_C",null,null,null,{"$f":"_xlfn.XLOOKUP(F2783,'Raw Data'!$I$4:$I$5000,'Raw Data'!$D$4:$D$5000,\"*** Mnemonic not found ***\",0)","v":"*** Mnemonic not found ***"},"SUCMRESRSK_CN_SUPH_C__",null,"Input",null,null,629,"O","Input!O629",{"$f":"_xlfn.XLOOKUP(F2783,'Raw Data'!$I$4:$I$5000,'Raw Data'!$E$4:$E$5000,100,0)","v":100},{"$f":"IF(N2783=0,_xlfn.XLOOKUP(F2783,'Raw Data'!$I$4:$I$5000,'Raw Data'!$H$4:$H$5000,\"\",0),\"\")","v":""},{"$f":"IF(INDIRECT(M2783) = \"\",\"\",INDIRECT(M2783))","v":""},"c","SUCMRESRSK_CN_SUPH_C_SUPH_"]
["SUCMRESRSK_CN_AIR_C",null,null,null,{"$f":"_xlfn.XLOOKUP(F2784,'Raw Data'!$I$4:$I$5000,'Raw Data'!$D$4:$D$5000,\"*** Mnemonic not found ***\",0)","v":"*** Mnemonic not found ***"},"SUCMRESRSK_CN_AIR_C__",null,"Input",null,null,630,"O","Input!O630",{"$f":"_xlfn.XLOOKUP(F2784,'Raw Data'!$I$4:$I$5000,'Raw Data'!$E$4:$E$5000,100,0)","v":100},{"$f":"IF(N2784=0,_xlfn.XLOOKUP(F2784,'Raw Data'!$I$4:$I$5000,'Raw Data'!$H$4:$H$5000,\"\",0),\"\")","v":""},{"$f":"IF(INDIRECT(M2784) = \"\",\"\",INDIRECT(M2784))","v":""},"c","SUCMRESRSK_CN_AIR_C_AIR_"]
["SUCMRESRSK_CN_OCM_C",null,null,null,{"$f":"_xlfn.XLOOKUP(F2785,'Raw Data'!$I$4:$I$5000,'Raw Data'!$D$4:$D$5000,\"*** Mnemonic not found ***\",0)","v":"*** Mnemonic not found ***"},"SUCMRESRSK_CN_OCM_C__",null,"Input",null,null,631,"O","Input!O631",{"$f":"_xlfn.XLOOKUP(F2785,'Raw Data'!$I$4:$I$5000,'Raw Data'!$E$4:$E$5000,100,0)","v":100},{"$f":"IF(N2785=0,_xlfn.XLOOKUP(F2785,'Raw Data'!$I$4:$I$5000,'Raw Data'!$H$4:$H$5000,\"\",0),\"\")","v":""},{"$f":"IF(INDIRECT(M2785) = \"\",\"\",INDIRECT(M2785))","v":""},"c","SUCMRESRSK_CN_OCM_C_OCM_"]
["SUCMRESRSK_CN_MPIN_C",null,null,null,{"$f":"_xlfn.XLOOKUP(F2786,'Raw Data'!$I$4:$I$5000,'Raw Data'!$D$4:$D$5000,\"*** Mnemonic not found ***\",0)","v":"*** Mnemonic not found ***"},"SUCMRESRSK_CN_MPIN_C__",null,"Input",null,null,632,"O","Input!O632",{"$f":"_xlfn.XLOOKUP(F2786,'Raw Data'!$I$4:$I$5000,'Raw Data'!$E$4:$E$5000,100,0)","v":100},{"$f":"IF(N2786=0,_xlfn.XLOOKUP(F2786,'Raw Data'!$I$4:$I$5000,'Raw Data'!$H$4:$H$5000,\"\",0),\"\")","v":""},{"$f":"IF(INDIRECT(M2786) = \"\",\"\",INDIRECT(M2786))","v":""},"c","SUCMRESRSK_CN_MPIN_C_MPIN_"]
["SUCMRESRSK_CN_MAVT_C",null,null,null,{"$f":"_xlfn.XLOOKUP(F2787,'Raw Data'!$I$4:$I$5000,'Raw Data'!$D$4:$D$5000,\"*** Mnemonic not found ***\",0)","v":"*** Mnemonic not found ***"},"SUCMRESRSK_CN_MAVT_C__",null,"Input",null,null,633,"O","Input!O633",{"$f":"_xlfn.XLOOKUP(F2787,'Raw Data'!$I$4:$I$5000,'Raw Data'!$E$4:$E$5000,100,0)","v":100},{"$f":"IF(N2787=0,_xlfn.XLOOKUP(F2787,'Raw Data'!$I$4:$I$5000,'Raw Data'!$H$4:$H$5000,\"\",0),\"\")","v":""},{"$f":"IF(INDIRECT(M2787) = \"\",\"\",INDIRECT(M2787))","v":""},"c","SUCMRESRSK_CN_MAVT_C_MAVT_"]
["SUCMRESRSK_CN_OAPR_C",null,null,null,{"$f":"_xlfn.XLOOKUP(F2788,'Raw Data'!$I$4:$I$5000,'Raw Data'!$D$4:$D$5000,\"*** Mnemonic not found ***\",0)","v":"*** Mnemonic not found ***"},"SUCMRESRSK_CN_OAPR_C__",null,"Input",null,null,634,"O","Input!O634",{"$f":"_xlfn.XLOOKUP(F2788,'Raw Data'!$I$4:$I$5000,'Raw Data'!$E$4:$E$5000,100,0)","v":100},{"$f":"IF(N2788=0,_xlfn.XLOOKUP(F2788,'Raw Data'!$I$4:$I$5000,'Raw Data'!$H$4:$H$5000,\"\",0),\"\")","v":""},{"$f":"IF(INDIRECT(M2788) = \"\",\"\",INDIRECT(M2788))","v":""},"c","SUCMRESRSK_CN_OAPR_C_OAPR_"]
["SUCMRESRSK_CN_TITLE_C",null,null,null,{"$f":"_xlfn.XLOOKUP(F2789,'Raw Data'!$I$4:$I$5000,'Raw Data'!$D$4:$D$5000,\"*** Mnemonic not found ***\",0)","v":"*** Mnemonic not found ***"},"SUCMRESRSK_CN_TITLE_C__",null,"Input",null,null,635,"O","Input!O635",{"$f":"_xlfn.XLOOKUP(F2789,'Raw Data'!$I$4:$I$5000,'Raw Data'!$E$4:$E$5000,100,0)","v":100},{"$f":"IF(N2789=0,_xlfn.XLOOKUP(F2789,'Raw Data'!$I$4:$I$5000,'Raw Data'!$H$4:$H$5000,\"\",0),\"\")","v":""},{"$f":"IF(INDIRECT(M2789) = \"\",\"\",INDIRECT(M2789))","v":""},"c","SUCMRESRSK_CN_TITLE_C_TITLE_"]
["SUCMRESRSK_CN_WAR_C",null,null,null,{"$f":"_xlfn.XLOOKUP(F2790,'Raw Data'!$I$4:$I$5000,'Raw Data'!$D$4:$D$5000,\"*** Mnemonic not found ***\",0)","v":"*** Mnemonic not found ***"},"SUCMRESRSK_CN_WAR_C__",null,"Input",null,null,636,"O","Input!O636",{"$f":"_xlfn.XLOOKUP(F2790,'Raw Data'!$I$4:$I$5000,'Raw Data'!$E$4:$E$5000,100,0)","v":100},{"$f":"IF(N2790=0,_xlfn.XLOOKUP(F2790,'Raw Data'!$I$4:$I$5000,'Raw Data'!$H$4:$H$5000,\"\",0),\"\")","v":""},{"$f":"IF(INDIRECT(M2790) = \"\",\"\",INDIRECT(M2790))","v":""},"c","SUCMRESRSK_CN_WAR_C_WAR_"]
["SUCMRESRSK_CN_OCAH_C",null,null,null,{"$f":"_xlfn.XLOOKUP(F2791,'Raw Data'!$I$4:$I$5000,'Raw Data'!$D$4:$D$5000,\"*** Mnemonic not found ***\",0)","v":"*** Mnemonic not found ***"},"SUCMRESRSK_CN_OCAH_C__",null,"Input",null,null,637,"O","Input!O637",{"$f":"_xlfn.XLOOKUP(F2791,'Raw Data'!$I$4:$I$5000,'Raw Data'!$E$4:$E$5000,100,0)","v":100},{"$f":"IF(N2791=0,_xlfn.XLOOKUP(F2791,'Raw Data'!$I$4:$I$5000,'Raw Data'!$H$4:$H$5000,\"\",0),\"\")","v":""},{"$f":"IF(INDIRECT(M2791) = \"\",\"\",INDIRECT(M2791))","v":""},"c","SUCMRESRSK_CN_OCAH_C_OCAH_"]
["SUCMRESRSK_AP_EMLIB_C",null,null,null,{"$f":"_xlfn.XLOOKUP(F2792,'Raw Data'!$I$4:$I$5000,'Raw Data'!$D$4:$D$5000,\"*** Mnemonic not found ***\",0)","v":"*** Mnemonic not found ***"},"SUCMRESRSK_AP_EMLIB_C__",null,"Input",null,null,{"$f":"K2791+2","v":639},"O","Input!O639",{"$f":"_xlfn.XLOOKUP(F2792,'Raw Data'!$I$4:$I$5000,'Raw Data'!$E$4:$E$5000,100,0)","v":100},{"$f":"IF(N2792=0,_xlfn.XLOOKUP(F2792,'Raw Data'!$I$4:$I$5000,'Raw Data'!$H$4:$H$5000,\"\",0),\"\")","v":""},{"$f":"IF(INDIRECT(M2792) = \"\",\"\",INDIRECT(M2792))","v":""},"c","SUCMRESRSK_AP_EMLIB_C_EMLIB_"]
["SUCMRESRSK_AP_LIA_C",null,null,null,{"$f":"_xlfn.XLOOKUP(F2793,'Raw Data'!$I$4:$I$5000,'Raw Data'!$D$4:$D$5000,\"*** Mnemonic not found ***\",0)","v":"*** Mnemonic not found ***"},"SUCMRESRSK_AP_LIA_C__",null,"Input",null,null,640,"O","Input!O640",{"$f":"_xlfn.XLOOKUP(F2793,'Raw Data'!$I$4:$I$5000,'Raw Data'!$E$4:$E$5000,100,0)","v":100},{"$f":"IF(N2793=0,_xlfn.XLOOKUP(F2793,'Raw Data'!$I$4:$I$5000,'Raw Data'!$H$4:$H$5000,\"\",0),\"\")","v":""},{"$f":"IF(INDIRECT(M2793) = \"\",\"\",INDIRECT(M2793))","v":""},"c","SUCMRESRSK_AP_LIA_C_LIA_"]
["SUCMRESRSK_AP_PRIND_C",null,null,null,{"$f":"_xlfn.XLOOKUP(F2794,'Raw Data'!$I$4:$I$5000,'Raw Data'!$D$4:$D$5000,\"*** Mnemonic not found ***\",0)","v":"*** Mnemonic not found ***"},"SUCMRESRSK_AP_PRIND_C__",null,"Input",null,null,641,"O","Input!O641",{"$f":"_xlfn.XLOOKUP(F2794,'Raw Data'!$I$4:$I$5000,'Raw Data'!$E$4:$E$5000,100,0)","v":100},{"$f":"IF(N2794=0,_xlfn.XLOOKUP(F2794,'Raw Data'!$I$4:$I$5000,'Raw Data'!$H$4:$H$5000,\"\",0),\"\")","v":""},{"$f":"IF(INDIRECT(M2794) = \"\",\"\",INDIRECT(M2794))","v":""},"c","SUCMRESRSK_AP_PRIND_C_PRIND_"]
["SUCMRESRSK_AP_PAPL_C",null,null,null,{"$f":"_xlfn.XLOOKUP(F2795,'Raw Data'!$I$4:$I$5000,'Raw Data'!$D$4:$D$5000,\"*** Mnemonic not found ***\",0)","v":"*** Mnemonic not found ***"},"SUCMRESRSK_AP_PAPL_C__",null,"Input",null,null,642,"O","Input!O642",{"$f":"_xlfn.XLOOKUP(F2795,'Raw Data'!$I$4:$I$5000,'Raw Data'!$E$4:$E$5000,100,0)","v":100},{"$f":"IF(N2795=0,_xlfn.XLOOKUP(F2795,'Raw Data'!$I$4:$I$5000,'Raw Data'!$H$4:$H$5000,\"\",0),\"\")","v":""},{"$f":"IF(INDIRECT(M2795) = \"\",\"\",INDIRECT(M2795))","v":""},"c","SUCMRESRSK_AP_PAPL_C_PAPL_"]
["SUCMRESRSK_AP_CMPR_C",null,null,null,{"$f":"_xlfn.XLOOKUP(F2796,'Raw Data'!$I$4:$I$5000,'Raw Data'!$D$4:$D$5000,\"*** Mnemonic not found ***\",0)","v":"*** Mnemonic not found ***"},"SUCMRESRSK_AP_CMPR_C__",null,"Input",null,null,643,"O","Input!O643",{"$f":"_xlfn.XLOOKUP(F2796,'Raw Data'!$I$4:$I$5000,'Raw Data'!$E$4:$E$5000,100,0)","v":100},{"$f":"IF(N2796=0,_xlfn.XLOOKUP(F2796,'Raw Data'!$I$4:$I$5000,'Raw Data'!$H$4:$H$5000,\"\",0),\"\")","v":""},{"$f":"IF(INDIRECT(M2796) = \"\",\"\",INDIRECT(M2796))","v":""},"c","SUCMRESRSK_AP_CMPR_C_CMPR_"]
["SUCMRESRSK_AP_HMP_C",null,null,null,{"$f":"_xlfn.XLOOKUP(F2797,'Raw Data'!$I$4:$I$5000,'Raw Data'!$D$4:$D$5000,\"*** Mnemonic not found ***\",0)","v":"*** Mnemonic not found ***"},"SUCMRESRSK_AP_HMP_C__",null,"Input",null,null,644,"O","Input!O644",{"$f":"_xlfn.XLOOKUP(F2797,'Raw Data'!$I$4:$I$5000,'Raw Data'!$E$4:$E$5000,100,0)","v":100},{"$f":"IF(N2797=0,_xlfn.XLOOKUP(F2797,'Raw Data'!$I$4:$I$5000,'Raw Data'!$H$4:$H$5000,\"\",0),\"\")","v":""},{"$f":"IF(INDIRECT(M2797) = \"\",\"\",INDIRECT(M2797))","v":""},"c","SUCMRESRSK_AP_HMP_C_HMP_"]
["SUCMRESRSK_AP_ENG_C",null,null,null,{"$f":"_xlfn.XLOOKUP(F2798,'Raw Data'!$I$4:$I$5000,'Raw Data'!$D$4:$D$5000,\"*** Mnemonic not found ***\",0)","v":"*** Mnemonic not found ***"},"SUCMRESRSK_AP_ENG_C__",null,"Input",null,null,645,"O","Input!O645",{"$f":"_xlfn.XLOOKUP(F2798,'Raw Data'!$I$4:$I$5000,'Raw Data'!$E$4:$E$5000,100,0)","v":100},{"$f":"IF(N2798=0,_xlfn.XLOOKUP(F2798,'Raw Data'!$I$4:$I$5000,'Raw Data'!$H$4:$H$5000,\"\",0),\"\")","v":""},{"$f":"IF(INDIRECT(M2798) = \"\",\"\",INDIRECT(M2798))","v":""},"c","SUCMRESRSK_AP_ENG_C_ENG_"]
["SUCMRESRSK_AP_CALANZ_C",null,null,null,{"$f":"_xlfn.XLOOKUP(F2799,'Raw Data'!$I$4:$I$5000,'Raw Data'!$D$4:$D$5000,\"*** Mnemonic not found ***\",0)","v":"*** Mnemonic not found ***"},"SUCMRESRSK_AP_CALANZ_C__",null,"Input",null,null,646,"O","Input!O646",{"$f":"_xlfn.XLOOKUP(F2799,'Raw Data'!$I$4:$I$5000,'Raw Data'!$E$4:$E$5000,100,0)","v":100},{"$f":"IF(N2799=0,_xlfn.XLOOKUP(F2799,'Raw Data'!$I$4:$I$5000,'Raw Data'!$H$4:$H$5000,\"\",0),\"\")","v":""},{"$f":"IF(INDIRECT(M2799) = \"\",\"\",INDIRECT(M2799))","v":""},"c","SUCMRESRSK_AP_CALANZ_C_CALANZ_"]
["SUCMRESRSK_AP_PALANZ_C",null,null,null,{"$f":"_xlfn.XLOOKUP(F2800,'Raw Data'!$I$4:$I$5000,'Raw Data'!$D$4:$D$5000,\"*** Mnemonic not found ***\",0)","v":"*** Mnemonic not found ***"},"SUCMRESRSK_AP_PALANZ_C__",null,"Input",null,null,647,"O","Input!O647",{"$f":"_xlfn.XLOOKUP(F2800,'Raw Data'!$I$4:$I$5000,'Raw Data'!$E$4:$E$5000,100,0)","v":100},{"$f":"IF(N2800=0,_xlfn.XLOOKUP(F2800,'Raw Data'!$I$4:$I$5000,'Raw Data'!$H$4:$H$5000,\"\",0),\"\")","v":""},{"$f":"IF(INDIRECT(M2800) = \"\",\"\",INDIRECT(M2800))","v":""},"c","SUCMRESRSK_AP_PALANZ_C_PALANZ_"]
["SUCMRESRSK_AP_ALB_C",null,null,null,{"$f":"_xlfn.XLOOKUP(F2801,'Raw Data'!$I$4:$I$5000,'Raw Data'!$D$4:$D$5000,\"*** Mnemonic not found ***\",0)","v":"*** Mnemonic not found ***"},"SUCMRESRSK_AP_ALB_C__",null,"Input",null,null,648,"O","Input!O648",{"$f":"_xlfn.XLOOKUP(F2801,'Raw Data'!$I$4:$I$5000,'Raw Data'!$E$4:$E$5000,100,0)","v":100},{"$f":"IF(N2801=0,_xlfn.XLOOKUP(F2801,'Raw Data'!$I$4:$I$5000,'Raw Data'!$H$4:$H$5000,\"\",0),\"\")","v":""},{"$f":"IF(INDIRECT(M2801) = \"\",\"\",INDIRECT(M2801))","v":""},"c","SUCMRESRSK_AP_ALB_C_ALB_"]
["SUCMRESRSK_AP_AJPTW_C",null,null,null,{"$f":"_xlfn.XLOOKUP(F2802,'Raw Data'!$I$4:$I$5000,'Raw Data'!$D$4:$D$5000,\"*** Mnemonic not found ***\",0)","v":"*** Mnemonic not found ***"},"SUCMRESRSK_AP_AJPTW_C__",null,"Input",null,null,649,{"$f":"L2801","v":"O"},{"$f":"CONCATENATE(H2802,\"!\",L2802,K2802)","v":"Input!O649"},{"$f":"_xlfn.XLOOKUP(F2802,'Raw Data'!$I$4:$I$5000,'Raw Data'!$E$4:$E$5000,100,0)","v":100},{"$f":"IF(N2802=0,_xlfn.XLOOKUP(F2802,'Raw Data'!$I$4:$I$5000,'Raw Data'!$H$4:$H$5000,\"\",0),\"\")","v":""},{"$f":"IF(INDIRECT(M2802) = \"\",\"\",INDIRECT(M2802))","v":""},"c","SUCMRESRSK_AP_AJPTW_C_AJPTW_"]
["SUCMRESRSK_AP_TPLM_C",null,null,null,{"$f":"_xlfn.XLOOKUP(F2803,'Raw Data'!$I$4:$I$5000,'Raw Data'!$D$4:$D$5000,\"*** Mnemonic not found ***\",0)","v":"*** Mnemonic not found ***"},"SUCMRESRSK_AP_TPLM_C__",null,"Input",null,null,650,"O","Input!O650",{"$f":"_xlfn.XLOOKUP(F2803,'Raw Data'!$I$4:$I$5000,'Raw Data'!$E$4:$E$5000,100,0)","v":100},{"$f":"IF(N2803=0,_xlfn.XLOOKUP(F2803,'Raw Data'!$I$4:$I$5000,'Raw Data'!$H$4:$H$5000,\"\",0),\"\")","v":""},{"$f":"IF(INDIRECT(M2803) = \"\",\"\",INDIRECT(M2803))","v":""},"c","SUCMRESRSK_AP_TPLM_C_TPLM_"]
["SUCMRESRSK_AP_CONCR_C",null,null,null,{"$f":"_xlfn.XLOOKUP(F2804,'Raw Data'!$I$4:$I$5000,'Raw Data'!$D$4:$D$5000,\"*** Mnemonic not found ***\",0)","v":"*** Mnemonic not found ***"},"SUCMRESRSK_AP_CONCR_C__",null,"Input",null,null,651,"O","Input!O651",{"$f":"_xlfn.XLOOKUP(F2804,'Raw Data'!$I$4:$I$5000,'Raw Data'!$E$4:$E$5000,100,0)","v":100},{"$f":"IF(N2804=0,_xlfn.XLOOKUP(F2804,'Raw Data'!$I$4:$I$5000,'Raw Data'!$H$4:$H$5000,\"\",0),\"\")","v":""},{"$f":"IF(INDIRECT(M2804) = \"\",\"\",INDIRECT(M2804))","v":""},"c","SUCMRESRSK_AP_CONCR_C_CONCR_"]
["SUCMRESRSK_AP_CRD_C",null,null,null,{"$f":"_xlfn.XLOOKUP(F2805,'Raw Data'!$I$4:$I$5000,'Raw Data'!$D$4:$D$5000,\"*** Mnemonic not found ***\",0)","v":"*** Mnemonic not found ***"},"SUCMRESRSK_AP_CRD_C__",null,"Input",null,null,652,"O","Input!O652",{"$f":"_xlfn.XLOOKUP(F2805,'Raw Data'!$I$4:$I$5000,'Raw Data'!$E$4:$E$5000,100,0)","v":100},{"$f":"IF(N2805=0,_xlfn.XLOOKUP(F2805,'Raw Data'!$I$4:$I$5000,'Raw Data'!$H$4:$H$5000,\"\",0),\"\")","v":""},{"$f":"IF(INDIRECT(M2805) = \"\",\"\",INDIRECT(M2805))","v":""},"c","SUCMRESRSK_AP_CRD_C_CRD_"]
["SUCMRESRSK_AP_AAH_C",null,null,null,{"$f":"_xlfn.XLOOKUP(F2806,'Raw Data'!$I$4:$I$5000,'Raw Data'!$D$4:$D$5000,\"*** Mnemonic not found ***\",0)","v":"*** Mnemonic not found ***"},"SUCMRESRSK_AP_AAH_C__",null,"Input",null,null,653,"O","Input!O653",{"$f":"_xlfn.XLOOKUP(F2806,'Raw Data'!$I$4:$I$5000,'Raw Data'!$E$4:$E$5000,100,0)","v":100},{"$f":"IF(N2806=0,_xlfn.XLOOKUP(F2806,'Raw Data'!$I$4:$I$5000,'Raw Data'!$H$4:$H$5000,\"\",0),\"\")","v":""},{"$f":"IF(INDIRECT(M2806) = \"\",\"\",INDIRECT(M2806))","v":""},"c","SUCMRESRSK_AP_AAH_C_AAH_"]
["SUCMRESRSK_AP_HLTH_C",null,null,null,{"$f":"_xlfn.XLOOKUP(F2807,'Raw Data'!$I$4:$I$5000,'Raw Data'!$D$4:$D$5000,\"*** Mnemonic not found ***\",0)","v":"*** Mnemonic not found ***"},"SUCMRESRSK_AP_HLTH_C__",null,"Input",null,null,654,"O","Input!O654",{"$f":"_xlfn.XLOOKUP(F2807,'Raw Data'!$I$4:$I$5000,'Raw Data'!$E$4:$E$5000,100,0)","v":100},{"$f":"IF(N2807=0,_xlfn.XLOOKUP(F2807,'Raw Data'!$I$4:$I$5000,'Raw Data'!$H$4:$H$5000,\"\",0),\"\")","v":""},{"$f":"IF(INDIRECT(M2807) = \"\",\"\",INDIRECT(M2807))","v":""},"c","SUCMRESRSK_AP_HLTH_C_HLTH_"]
["SUCMRESRSK_AP_MAVC_C",null,null,null,{"$f":"_xlfn.XLOOKUP(F2808,'Raw Data'!$I$4:$I$5000,'Raw Data'!$D$4:$D$5000,\"*** Mnemonic not found ***\",0)","v":"*** Mnemonic not found ***"},"SUCMRESRSK_AP_MAVC_C__",null,"Input",null,null,655,"O","Input!O655",{"$f":"_xlfn.XLOOKUP(F2808,'Raw Data'!$I$4:$I$5000,'Raw Data'!$E$4:$E$5000,100,0)","v":100},{"$f":"IF(N2808=0,_xlfn.XLOOKUP(F2808,'Raw Data'!$I$4:$I$5000,'Raw Data'!$H$4:$H$5000,\"\",0),\"\")","v":""},{"$f":"IF(INDIRECT(M2808) = \"\",\"\",INDIRECT(M2808))","v":""},"c","SUCMRESRSK_AP_MAVC_C_MAVC_"]
["SUCMRESRSK_AP_MAVH_C",null,null,null,{"$f":"_xlfn.XLOOKUP(F2809,'Raw Data'!$I$4:$I$5000,'Raw Data'!$D$4:$D$5000,\"*** Mnemonic not found ***\",0)","v":"*** Mnemonic not found ***"},"SUCMRESRSK_AP_MAVH_C__",null,"Input",null,null,656,"O","Input!O656",{"$f":"_xlfn.XLOOKUP(F2809,'Raw Data'!$I$4:$I$5000,'Raw Data'!$E$4:$E$5000,100,0)","v":100},{"$f":"IF(N2809=0,_xlfn.XLOOKUP(F2809,'Raw Data'!$I$4:$I$5000,'Raw Data'!$H$4:$H$5000,\"\",0),\"\")","v":""},{"$f":"IF(INDIRECT(M2809) = \"\",\"\",INDIRECT(M2809))","v":""},"c","SUCMRESRSK_AP_MAVH_C_MAVH_"]
["SUCMRESRSK_AP_MPIN_C",null,null,null,{"$f":"_xlfn.XLOOKUP(F2810,'Raw Data'!$I$4:$I$5000,'Raw Data'!$D$4:$D$5000,\"*** Mnemonic not found ***\",0)","v":"*** Mnemonic not found ***"},"SUCMRESRSK_AP_MPIN_C__",null,"Input",null,null,657,"O","Input!O657",{"$f":"_xlfn.XLOOKUP(F2810,'Raw Data'!$I$4:$I$5000,'Raw Data'!$E$4:$E$5000,100,0)","v":100},{"$f":"IF(N2810=0,_xlfn.XLOOKUP(F2810,'Raw Data'!$I$4:$I$5000,'Raw Data'!$H$4:$H$5000,\"\",0),\"\")","v":""},{"$f":"IF(INDIRECT(M2810) = \"\",\"\",INDIRECT(M2810))","v":""},"c","SUCMRESRSK_AP_MPIN_C_MPIN_"]
["SUCMRESRSK_AP_TRV_C",null,null,null,{"$f":"_xlfn.XLOOKUP(F2811,'Raw Data'!$I$4:$I$5000,'Raw Data'!$D$4:$D$5000,\"*** Mnemonic not found ***\",0)","v":"*** Mnemonic not found ***"},"SUCMRESRSK_AP_TRV_C__",null,"Input",null,null,658,"O","Input!O658",{"$f":"_xlfn.XLOOKUP(F2811,'Raw Data'!$I$4:$I$5000,'Raw Data'!$E$4:$E$5000,100,0)","v":100},{"$f":"IF(N2811=0,_xlfn.XLOOKUP(F2811,'Raw Data'!$I$4:$I$5000,'Raw Data'!$H$4:$H$5000,\"\",0),\"\")","v":""},{"$f":"IF(INDIRECT(M2811) = \"\",\"\",INDIRECT(M2811))","v":""},"c","SUCMRESRSK_AP_TRV_C_TRV_"]
["SUCMRESRSK_AP_OCAH_C",null,null,null,{"$f":"_xlfn.XLOOKUP(F2812,'Raw Data'!$I$4:$I$5000,'Raw Data'!$D$4:$D$5000,\"*** Mnemonic not found ***\",0)","v":"*** Mnemonic not found ***"},"SUCMRESRSK_AP_OCAH_C__",null,"Input",null,null,659,"O","Input!O659",{"$f":"_xlfn.XLOOKUP(F2812,'Raw Data'!$I$4:$I$5000,'Raw Data'!$E$4:$E$5000,100,0)","v":100},{"$f":"IF(N2812=0,_xlfn.XLOOKUP(F2812,'Raw Data'!$I$4:$I$5000,'Raw Data'!$H$4:$H$5000,\"\",0),\"\")","v":""},{"$f":"IF(INDIRECT(M2812) = \"\",\"\",INDIRECT(M2812))","v":""},"c","SUCMRESRSK_AP_OCAH_C_OCAH_"]
["SUCMRESRSK_LAM_EMLIB_C",null,null,null,{"$f":"_xlfn.XLOOKUP(F2813,'Raw Data'!$I$4:$I$5000,'Raw Data'!$D$4:$D$5000,\"*** Mnemonic not found ***\",0)","v":"*** Mnemonic not found ***"},"SUCMRESRSK_LAM_EMLIB_C__",null,"Input",null,null,{"$f":"K2812+2","v":661},"O","Input!O661",{"$f":"_xlfn.XLOOKUP(F2813,'Raw Data'!$I$4:$I$5000,'Raw Data'!$E$4:$E$5000,100,0)","v":100},{"$f":"IF(N2813=0,_xlfn.XLOOKUP(F2813,'Raw Data'!$I$4:$I$5000,'Raw Data'!$H$4:$H$5000,\"\",0),\"\")","v":""},{"$f":"IF(INDIRECT(M2813) = \"\",\"\",INDIRECT(M2813))","v":""},"c","SUCMRESRSK_LAM_EMLIB_C_EMLIB_"]
["SUCMRESRSK_LAM_LIA_C",null,null,null,{"$f":"_xlfn.XLOOKUP(F2814,'Raw Data'!$I$4:$I$5000,'Raw Data'!$D$4:$D$5000,\"*** Mnemonic not found ***\",0)","v":"*** Mnemonic not found ***"},"SUCMRESRSK_LAM_LIA_C__",null,"Input",null,null,{"$f":"K2813+1","v":662},"O","Input!O662",{"$f":"_xlfn.XLOOKUP(F2814,'Raw Data'!$I$4:$I$5000,'Raw Data'!$E$4:$E$5000,100,0)","v":100},{"$f":"IF(N2814=0,_xlfn.XLOOKUP(F2814,'Raw Data'!$I$4:$I$5000,'Raw Data'!$H$4:$H$5000,\"\",0),\"\")","v":""},{"$f":"IF(INDIRECT(M2814) = \"\",\"\",INDIRECT(M2814))","v":""},"c","SUCMRESRSK_LAM_LIA_C_LIA_"]
["SUCMRESRSK_LAM_PRIND_C",null,null,null,{"$f":"_xlfn.XLOOKUP(F2815,'Raw Data'!$I$4:$I$5000,'Raw Data'!$D$4:$D$5000,\"*** Mnemonic not found ***\",0)","v":"*** Mnemonic not found ***"},"SUCMRESRSK_LAM_PRIND_C__",null,"Input",null,null,663,"O","Input!O663",{"$f":"_xlfn.XLOOKUP(F2815,'Raw Data'!$I$4:$I$5000,'Raw Data'!$E$4:$E$5000,100,0)","v":100},{"$f":"IF(N2815=0,_xlfn.XLOOKUP(F2815,'Raw Data'!$I$4:$I$5000,'Raw Data'!$H$4:$H$5000,\"\",0),\"\")","v":""},{"$f":"IF(INDIRECT(M2815) = \"\",\"\",INDIRECT(M2815))","v":""},"c","SUCMRESRSK_LAM_PRIND_C_PRIND_"]
["SUCMRESRSK_LAM_CMPR_C",null,null,null,{"$f":"_xlfn.XLOOKUP(F2816,'Raw Data'!$I$4:$I$5000,'Raw Data'!$D$4:$D$5000,\"*** Mnemonic not found ***\",0)","v":"*** Mnemonic not found ***"},"SUCMRESRSK_LAM_CMPR_C__",null,"Input",null,null,664,"O","Input!O664",{"$f":"_xlfn.XLOOKUP(F2816,'Raw Data'!$I$4:$I$5000,'Raw Data'!$E$4:$E$5000,100,0)","v":100},{"$f":"IF(N2816=0,_xlfn.XLOOKUP(F2816,'Raw Data'!$I$4:$I$5000,'Raw Data'!$H$4:$H$5000,\"\",0),\"\")","v":""},{"$f":"IF(INDIRECT(M2816) = \"\",\"\",INDIRECT(M2816))","v":""},"c","SUCMRESRSK_LAM_CMPR_C_CMPR_"]
["SUCMRESRSK_LAM_HMP_C",null,null,null,{"$f":"_xlfn.XLOOKUP(F2817,'Raw Data'!$I$4:$I$5000,'Raw Data'!$D$4:$D$5000,\"*** Mnemonic not found ***\",0)","v":"*** Mnemonic not found ***"},"SUCMRESRSK_LAM_HMP_C__",null,"Input",null,null,665,"O","Input!O665",{"$f":"_xlfn.XLOOKUP(F2817,'Raw Data'!$I$4:$I$5000,'Raw Data'!$E$4:$E$5000,100,0)","v":100},{"$f":"IF(N2817=0,_xlfn.XLOOKUP(F2817,'Raw Data'!$I$4:$I$5000,'Raw Data'!$H$4:$H$5000,\"\",0),\"\")","v":""},{"$f":"IF(INDIRECT(M2817) = \"\",\"\",INDIRECT(M2817))","v":""},"c","SUCMRESRSK_LAM_HMP_C_HMP_"]
["SUCMRESRSK_LAM_MEXFR_C",null,null,null,{"$f":"_xlfn.XLOOKUP(F2818,'Raw Data'!$I$4:$I$5000,'Raw Data'!$D$4:$D$5000,\"*** Mnemonic not found ***\",0)","v":"*** Mnemonic not found ***"},"SUCMRESRSK_LAM_MEXFR_C__",null,"Input",null,null,666,"O","Input!O666",{"$f":"_xlfn.XLOOKUP(F2818,'Raw Data'!$I$4:$I$5000,'Raw Data'!$E$4:$E$5000,100,0)","v":100},{"$f":"IF(N2818=0,_xlfn.XLOOKUP(F2818,'Raw Data'!$I$4:$I$5000,'Raw Data'!$H$4:$H$5000,\"\",0),\"\")","v":""},{"$f":"IF(INDIRECT(M2818) = \"\",\"\",INDIRECT(M2818))","v":""},"c","SUCMRESRSK_LAM_MEXFR_C_MEXFR_"]
["SUCMRESRSK_LAM_PLM_C",null,null,null,{"$f":"_xlfn.XLOOKUP(F2819,'Raw Data'!$I$4:$I$5000,'Raw Data'!$D$4:$D$5000,\"*** Mnemonic not found ***\",0)","v":"*** Mnemonic not found ***"},"SUCMRESRSK_LAM_PLM_C__",null,"Input",null,null,667,"O","Input!O667",{"$f":"_xlfn.XLOOKUP(F2819,'Raw Data'!$I$4:$I$5000,'Raw Data'!$E$4:$E$5000,100,0)","v":100},{"$f":"IF(N2819=0,_xlfn.XLOOKUP(F2819,'Raw Data'!$I$4:$I$5000,'Raw Data'!$H$4:$H$5000,\"\",0),\"\")","v":""},{"$f":"IF(INDIRECT(M2819) = \"\",\"\",INDIRECT(M2819))","v":""},"c","SUCMRESRSK_LAM_PLM_C_PLM_"]
["SUCMRESRSK_LAM_ALB_C",null,null,null,{"$f":"_xlfn.XLOOKUP(F2820,'Raw Data'!$I$4:$I$5000,'Raw Data'!$D$4:$D$5000,\"*** Mnemonic not found ***\",0)","v":"*** Mnemonic not found ***"},"SUCMRESRSK_LAM_ALB_C__",null,"Input",null,null,668,"O","Input!O668",{"$f":"_xlfn.XLOOKUP(F2820,'Raw Data'!$I$4:$I$5000,'Raw Data'!$E$4:$E$5000,100,0)","v":100},{"$f":"IF(N2820=0,_xlfn.XLOOKUP(F2820,'Raw Data'!$I$4:$I$5000,'Raw Data'!$H$4:$H$5000,\"\",0),\"\")","v":""},{"$f":"IF(INDIRECT(M2820) = \"\",\"\",INDIRECT(M2820))","v":""},"c","SUCMRESRSK_LAM_ALB_C_ALB_"]
["SUCMRESRSK_LAM_CRD_C",null,null,null,{"$f":"_xlfn.XLOOKUP(F2821,'Raw Data'!$I$4:$I$5000,'Raw Data'!$D$4:$D$5000,\"*** Mnemonic not found ***\",0)","v":"*** Mnemonic not found ***"},"SUCMRESRSK_LAM_CRD_C__",null,"Input",null,null,669,"O","Input!O669",{"$f":"_xlfn.XLOOKUP(F2821,'Raw Data'!$I$4:$I$5000,'Raw Data'!$E$4:$E$5000,100,0)","v":100},{"$f":"IF(N2821=0,_xlfn.XLOOKUP(F2821,'Raw Data'!$I$4:$I$5000,'Raw Data'!$H$4:$H$5000,\"\",0),\"\")","v":""},{"$f":"IF(INDIRECT(M2821) = \"\",\"\",INDIRECT(M2821))","v":""},"c","SUCMRESRSK_LAM_CRD_C_CRD_"]
["SUCMRESRSK_LAM_FID_C",null,null,null,{"$f":"_xlfn.XLOOKUP(F2822,'Raw Data'!$I$4:$I$5000,'Raw Data'!$D$4:$D$5000,\"*** Mnemonic not found ***\",0)","v":"*** Mnemonic not found ***"},"SUCMRESRSK_LAM_FID_C__",null,"Input",null,null,670,"O","Input!O670",{"$f":"_xlfn.XLOOKUP(F2822,'Raw Data'!$I$4:$I$5000,'Raw Data'!$E$4:$E$5000,100,0)","v":100},{"$f":"IF(N2822=0,_xlfn.XLOOKUP(F2822,'Raw Data'!$I$4:$I$5000,'Raw Data'!$H$4:$H$5000,\"\",0),\"\")","v":""},{"$f":"IF(INDIRECT(M2822) = \"\",\"\",INDIRECT(M2822))","v":""},"c","SUCMRESRSK_LAM_FID_C_FID_"]
["SUCMRESRSK_LAM_SUR_C",null,null,null,{"$f":"_xlfn.XLOOKUP(F2823,'Raw Data'!$I$4:$I$5000,'Raw Data'!$D$4:$D$5000,\"*** Mnemonic not found ***\",0)","v":"*** Mnemonic not found ***"},"SUCMRESRSK_LAM_SUR_C__",null,"Input",null,null,671,"O","Input!O671",{"$f":"_xlfn.XLOOKUP(F2823,'Raw Data'!$I$4:$I$5000,'Raw Data'!$E$4:$E$5000,100,0)","v":100},{"$f":"IF(N2823=0,_xlfn.XLOOKUP(F2823,'Raw Data'!$I$4:$I$5000,'Raw Data'!$H$4:$H$5000,\"\",0),\"\")","v":""},{"$f":"IF(INDIRECT(M2823) = \"\",\"\",INDIRECT(M2823))","v":""},"c","SUCMRESRSK_LAM_SUR_C_SUR_"]
["SUCMRESRSK_LAM_AAH_C",null,null,null,{"$f":"_xlfn.XLOOKUP(F2824,'Raw Data'!$I$4:$I$5000,'Raw Data'!$D$4:$D$5000,\"*** Mnemonic not found ***\",0)","v":"*** Mnemonic not found ***"},"SUCMRESRSK_LAM_AAH_C__",null,"Input",null,null,672,"O","Input!O672",{"$f":"_xlfn.XLOOKUP(F2824,'Raw Data'!$I$4:$I$5000,'Raw Data'!$E$4:$E$5000,100,0)","v":100},{"$f":"IF(N2824=0,_xlfn.XLOOKUP(F2824,'Raw Data'!$I$4:$I$5000,'Raw Data'!$H$4:$H$5000,\"\",0),\"\")","v":""},{"$f":"IF(INDIRECT(M2824) = \"\",\"\",INDIRECT(M2824))","v":""},"c","SUCMRESRSK_LAM_AAH_C_AAH_"]
["SUCMRESRSK_LAM_HMEDEX_C",null,null,null,{"$f":"_xlfn.XLOOKUP(F2825,'Raw Data'!$I$4:$I$5000,'Raw Data'!$D$4:$D$5000,\"*** Mnemonic not found ***\",0)","v":"*** Mnemonic not found ***"},"SUCMRESRSK_LAM_HMEDEX_C__",null,"Input",null,null,673,"O","Input!O673",{"$f":"_xlfn.XLOOKUP(F2825,'Raw Data'!$I$4:$I$5000,'Raw Data'!$E$4:$E$5000,100,0)","v":100},{"$f":"IF(N2825=0,_xlfn.XLOOKUP(F2825,'Raw Data'!$I$4:$I$5000,'Raw Data'!$H$4:$H$5000,\"\",0),\"\")","v":""},{"$f":"IF(INDIRECT(M2825) = \"\",\"\",INDIRECT(M2825))","v":""},"c","SUCMRESRSK_LAM_HMEDEX_C_HMEDEX_"]
["SUCMRESRSK_LAM_MAVA_C",null,null,null,{"$f":"_xlfn.XLOOKUP(F2826,'Raw Data'!$I$4:$I$5000,'Raw Data'!$D$4:$D$5000,\"*** Mnemonic not found ***\",0)","v":"*** Mnemonic not found ***"},"SUCMRESRSK_LAM_MAVA_C__",null,"Input",null,null,674,"O","Input!O674",{"$f":"_xlfn.XLOOKUP(F2826,'Raw Data'!$I$4:$I$5000,'Raw Data'!$E$4:$E$5000,100,0)","v":100},{"$f":"IF(N2826=0,_xlfn.XLOOKUP(F2826,'Raw Data'!$I$4:$I$5000,'Raw Data'!$H$4:$H$5000,\"\",0),\"\")","v":""},{"$f":"IF(INDIRECT(M2826) = \"\",\"\",INDIRECT(M2826))","v":""},"c","SUCMRESRSK_LAM_MAVA_C_MAVA_"]
["SUCMRESRSK_LAM_MAVC_C",null,null,null,{"$f":"_xlfn.XLOOKUP(F2827,'Raw Data'!$I$4:$I$5000,'Raw Data'!$D$4:$D$5000,\"*** Mnemonic not found ***\",0)","v":"*** Mnemonic not found ***"},"SUCMRESRSK_LAM_MAVC_C__",null,"Input",null,null,675,"O","Input!O675",{"$f":"_xlfn.XLOOKUP(F2827,'Raw Data'!$I$4:$I$5000,'Raw Data'!$E$4:$E$5000,100,0)","v":100},{"$f":"IF(N2827=0,_xlfn.XLOOKUP(F2827,'Raw Data'!$I$4:$I$5000,'Raw Data'!$H$4:$H$5000,\"\",0),\"\")","v":""},{"$f":"IF(INDIRECT(M2827) = \"\",\"\",INDIRECT(M2827))","v":""},"c","SUCMRESRSK_LAM_MAVC_C_MAVC_"]
["SUCMRESRSK_LAM_MPIN_C",null,null,null,{"$f":"_xlfn.XLOOKUP(F2828,'Raw Data'!$I$4:$I$5000,'Raw Data'!$D$4:$D$5000,\"*** Mnemonic not found ***\",0)","v":"*** Mnemonic not found ***"},"SUCMRESRSK_LAM_MPIN_C__",null,"Input",null,null,676,"O","Input!O676",{"$f":"_xlfn.XLOOKUP(F2828,'Raw Data'!$I$4:$I$5000,'Raw Data'!$E$4:$E$5000,100,0)","v":100},{"$f":"IF(N2828=0,_xlfn.XLOOKUP(F2828,'Raw Data'!$I$4:$I$5000,'Raw Data'!$H$4:$H$5000,\"\",0),\"\")","v":""},{"$f":"IF(INDIRECT(M2828) = \"\",\"\",INDIRECT(M2828))","v":""},"c","SUCMRESRSK_LAM_MPIN_C_MPIN_"]
["SUCMRESRSK_LAM_TRV_C",null,null,null,{"$f":"_xlfn.XLOOKUP(F2829,'Raw Data'!$I$4:$I$5000,'Raw Data'!$D$4:$D$5000,\"*** Mnemonic not found ***\",0)","v":"*** Mnemonic not found ***"},"SUCMRESRSK_LAM_TRV_C__",null,"Input",null,null,677,"O","Input!O677",{"$f":"_xlfn.XLOOKUP(F2829,'Raw Data'!$I$4:$I$5000,'Raw Data'!$E$4:$E$5000,100,0)","v":100},{"$f":"IF(N2829=0,_xlfn.XLOOKUP(F2829,'Raw Data'!$I$4:$I$5000,'Raw Data'!$H$4:$H$5000,\"\",0),\"\")","v":""},{"$f":"IF(INDIRECT(M2829) = \"\",\"\",INDIRECT(M2829))","v":""},"c","SUCMRESRSK_LAM_TRV_C_TRV_"]
["SUCMRESRSK_LAM_WAR_C",null,null,null,{"$f":"_xlfn.XLOOKUP(F2830,'Raw Data'!$I$4:$I$5000,'Raw Data'!$D$4:$D$5000,\"*** Mnemonic not found ***\",0)","v":"*** Mnemonic not found ***"},{"$f":"CONCATENATE(A2830,\"_\",B2830,\"_\",D2830)","v":"SUCMRESRSK_LAM_WAR_C__"},null,"Input",null,null,678,"O","Input!O678",{"$f":"_xlfn.XLOOKUP(F2830,'Raw Data'!$I$4:$I$5000,'Raw Data'!$E$4:$E$5000,100,0)","v":100},{"$f":"IF(N2830=0,_xlfn.XLOOKUP(F2830,'Raw Data'!$I$4:$I$5000,'Raw Data'!$H$4:$H$5000,\"\",0),\"\")","v":""},{"$f":"IF(INDIRECT(M2830) = \"\",\"\",INDIRECT(M2830))","v":""},"c","SUCMRESRSK_LAM_WAR_C_WAR_"]
["SUCMRESRSK_LAM_OCAH_C",null,null,null,{"$f":"_xlfn.XLOOKUP(F2831,'Raw Data'!$I$4:$I$5000,'Raw Data'!$D$4:$D$5000,\"*** Mnemonic not found ***\",0)","v":"*** Mnemonic not found ***"},"SUCMRESRSK_LAM_OCAH_C__",null,"Input",null,null,679,"O","Input!O679",{"$f":"_xlfn.XLOOKUP(F2831,'Raw Data'!$I$4:$I$5000,'Raw Data'!$E$4:$E$5000,100,0)","v":100},{"$f":"IF(N2831=0,_xlfn.XLOOKUP(F2831,'Raw Data'!$I$4:$I$5000,'Raw Data'!$H$4:$H$5000,\"\",0),\"\")","v":""},{"$f":"IF(INDIRECT(M2831) = \"\",\"\",INDIRECT(M2831))","v":""},"c","SUCMRESRSK_LAM_OCAH_C_OCAH_"]
["SUCMRESRSK_INPUT_C",null,null,null,{"$f":"_xlfn.XLOOKUP(F2832,'Raw Data'!$I$4:$I$5000,'Raw Data'!$D$4:$D$5000,\"*** Mnemonic not found ***\",0)","v":"*** Mnemonic not found ***"},"SUCMRESRSK_INPUT_C__",null,"Input",null,null,{"$f":"K2831+2","v":681},"O","Input!O681",{"$f":"_xlfn.XLOOKUP(F2832,'Raw Data'!$I$4:$I$5000,'Raw Data'!$E$4:$E$5000,100,0)","v":100},{"$f":"IF(N2832=0,_xlfn.XLOOKUP(F2832,'Raw Data'!$I$4:$I$5000,'Raw Data'!$H$4:$H$5000,\"\",0),\"\")","v":""},{"$f":"IF(INDIRECT(M2832) = \"\",\"\",INDIRECT(M2832))","v":""},"c"]
["SUCMRESRSK_INPUT_LIA_C",null,null,null,{"$f":"_xlfn.XLOOKUP(F2833,'Raw Data'!$I$4:$I$5000,'Raw Data'!$D$4:$D$5000,\"*** Mnemonic not found ***\",0)","v":"*** Mnemonic not found ***"},"SUCMRESRSK_INPUT_LIA_C__",null,"Input",null,null,682,"O","Input!O682",{"$f":"_xlfn.XLOOKUP(F2833,'Raw Data'!$I$4:$I$5000,'Raw Data'!$E$4:$E$5000,100,0)","v":100},{"$f":"IF(N2833=0,_xlfn.XLOOKUP(F2833,'Raw Data'!$I$4:$I$5000,'Raw Data'!$H$4:$H$5000,\"\",0),\"\")","v":""},{"$f":"IF(INDIRECT(M2833) = \"\",\"\",INDIRECT(M2833))","v":""},"c"]
["SUCMRESRSK_INPUT_PROP_C",null,null,null,{"$f":"_xlfn.XLOOKUP(F2834,'Raw Data'!$I$4:$I$5000,'Raw Data'!$D$4:$D$5000,\"*** Mnemonic not found ***\",0)","v":"*** Mnemonic not found ***"},"SUCMRESRSK_INPUT_PROP_C__",null,"Input",null,null,683,"O","Input!O683",{"$f":"_xlfn.XLOOKUP(F2834,'Raw Data'!$I$4:$I$5000,'Raw Data'!$E$4:$E$5000,100,0)","v":100},{"$f":"IF(N2834=0,_xlfn.XLOOKUP(F2834,'Raw Data'!$I$4:$I$5000,'Raw Data'!$H$4:$H$5000,\"\",0),\"\")","v":""},{"$f":"IF(INDIRECT(M2834) = \"\",\"\",INDIRECT(M2834))","v":""},"c"]
["SUCMRESRSK_INPUT_MOT_C",null,null,null,{"$f":"_xlfn.XLOOKUP(F2835,'Raw Data'!$I$4:$I$5000,'Raw Data'!$D$4:$D$5000,\"*** Mnemonic not found ***\",0)","v":"*** Mnemonic not found ***"},"SUCMRESRSK_INPUT_MOT_C__",null,"Input",null,null,684,"O","Input!O684",{"$f":"_xlfn.XLOOKUP(F2835,'Raw Data'!$I$4:$I$5000,'Raw Data'!$E$4:$E$5000,100,0)","v":100},{"$f":"IF(N2835=0,_xlfn.XLOOKUP(F2835,'Raw Data'!$I$4:$I$5000,'Raw Data'!$H$4:$H$5000,\"\",0),\"\")","v":""},{"$f":"IF(INDIRECT(M2835) = \"\",\"\",INDIRECT(M2835))","v":""},"c"]
["SUCMRESRSK_INPUT_FIN_C",null,null,null,{"$f":"_xlfn.XLOOKUP(F2836,'Raw Data'!$I$4:$I$5000,'Raw Data'!$D$4:$D$5000,\"*** Mnemonic not found ***\",0)","v":"*** Mnemonic not found ***"},"SUCMRESRSK_INPUT_FIN_C__",null,"Input",null,null,685,"O","Input!O685",{"$f":"_xlfn.XLOOKUP(F2836,'Raw Data'!$I$4:$I$5000,'Raw Data'!$E$4:$E$5000,100,0)","v":100},{"$f":"IF(N2836=0,_xlfn.XLOOKUP(F2836,'Raw Data'!$I$4:$I$5000,'Raw Data'!$H$4:$H$5000,\"\",0),\"\")","v":""},{"$f":"IF(INDIRECT(M2836) = \"\",\"\",INDIRECT(M2836))","v":""},"c"]
["SUCMRESRSK_INPUT_HLTH_C",null,null,null,{"$f":"_xlfn.XLOOKUP(F2837,'Raw Data'!$I$4:$I$5000,'Raw Data'!$D$4:$D$5000,\"*** Mnemonic not found ***\",0)","v":"*** Mnemonic not found ***"},"SUCMRESRSK_INPUT_HLTH_C__",null,"Input",null,null,686,"O","Input!O686",{"$f":"_xlfn.XLOOKUP(F2837,'Raw Data'!$I$4:$I$5000,'Raw Data'!$E$4:$E$5000,100,0)","v":100},{"$f":"IF(N2837=0,_xlfn.XLOOKUP(F2837,'Raw Data'!$I$4:$I$5000,'Raw Data'!$H$4:$H$5000,\"\",0),\"\")","v":""},{"$f":"IF(INDIRECT(M2837) = \"\",\"\",INDIRECT(M2837))","v":""},"c"]
["SUCMRESRSK_INPUT_MAT_C",null,null,null,{"$f":"_xlfn.XLOOKUP(F2838,'Raw Data'!$I$4:$I$5000,'Raw Data'!$D$4:$D$5000,\"*** Mnemonic not found ***\",0)","v":"*** Mnemonic not found ***"},"SUCMRESRSK_INPUT_MAT_C__",null,"Input",null,null,687,"O","Input!O687",{"$f":"_xlfn.XLOOKUP(F2838,'Raw Data'!$I$4:$I$5000,'Raw Data'!$E$4:$E$5000,100,0)","v":100},{"$f":"IF(N2838=0,_xlfn.XLOOKUP(F2838,'Raw Data'!$I$4:$I$5000,'Raw Data'!$H$4:$H$5000,\"\",0),\"\")","v":""},{"$f":"IF(INDIRECT(M2838) = \"\",\"\",INDIRECT(M2838))","v":""},"c"]
["SUCMRESRSK_INPUT_OTH_C",null,null,null,{"$f":"_xlfn.XLOOKUP(F2839,'Raw Data'!$I$4:$I$5000,'Raw Data'!$D$4:$D$5000,\"*** Mnemonic not found ***\",0)","v":"*** Mnemonic not found ***"},"SUCMRESRSK_INPUT_OTH_C__",null,"Input",null,null,688,"O","Input!O688",{"$f":"_xlfn.XLOOKUP(F2839,'Raw Data'!$I$4:$I$5000,'Raw Data'!$E$4:$E$5000,100,0)","v":100},{"$f":"IF(N2839=0,_xlfn.XLOOKUP(F2839,'Raw Data'!$I$4:$I$5000,'Raw Data'!$H$4:$H$5000,\"\",0),\"\")","v":""},{"$f":"IF(INDIRECT(M2839) = \"\",\"\",INDIRECT(M2839))","v":""},"c"]
["SUCMRESRSK_INPUT_SUM_C",null,null,null,{"$f":"_xlfn.XLOOKUP(F2840,'Raw Data'!$I$4:$I$5000,'Raw Data'!$D$4:$D$5000,\"*** Mnemonic not found ***\",0)","v":"*** Mnemonic not found ***"},"SUCMRESRSK_INPUT_SUM_C__",null,"Input",null,null,{"$f":"K2839+2","v":690},"O","Input!O690",{"$f":"_xlfn.XLOOKUP(F2840,'Raw Data'!$I$4:$I$5000,'Raw Data'!$E$4:$E$5000,100,0)","v":100},{"$f":"IF(N2840=0,_xlfn.XLOOKUP(F2840,'Raw Data'!$I$4:$I$5000,'Raw Data'!$H$4:$H$5000,\"\",0),\"\")","v":""},{"$f":"IF(INDIRECT(M2840) = \"\",\"\",INDIRECT(M2840))","v":""},"c"]
["SUCMNPW_MI_C",null,null,null,{"$f":"_xlfn.XLOOKUP(F2841,'Raw Data'!$I$4:$I$5000,'Raw Data'!$D$4:$D$5000,\"*** Mnemonic not found ***\",0)","v":"*** Mnemonic not found ***"},"SUCMNPW_MI_C__","Comments - Mortgage Insurance","Input",{"$f":"ROW(section_mortgage_insurance)","v":693},3,{"$f":"I2841+J2841","v":696},{"$f":"L2840","v":"O"},{"$f":"CONCATENATE(H2841,\"!\",L2841,K2841)","v":"Input!O696"},{"$f":"_xlfn.XLOOKUP(F2841,'Raw Data'!$I$4:$I$5000,'Raw Data'!$E$4:$E$5000,100,0)","v":100},{"$f":"IF(N2841=0,_xlfn.XLOOKUP(F2841,'Raw Data'!$I$4:$I$5000,'Raw Data'!$H$4:$H$5000,\"\",0),\"\")","v":""},{"$f":"IF(INDIRECT(M2841) = \"\",\"\",INDIRECT(M2841))","v":""},"c"]
["SUCMUEP_MI_C",null,null,null,{"$f":"_xlfn.XLOOKUP(F2842,'Raw Data'!$I$4:$I$5000,'Raw Data'!$D$4:$D$5000,\"*** Mnemonic not found ***\",0)","v":"*** Mnemonic not found ***"},"SUCMUEP_MI_C__",null,"Input",null,null,{"$f":"K2841+1","v":697},{"$f":"L2841","v":"O"},"Input!O697",{"$f":"_xlfn.XLOOKUP(F2842,'Raw Data'!$I$4:$I$5000,'Raw Data'!$E$4:$E$5000,100,0)","v":100},{"$f":"IF(N2842=0,_xlfn.XLOOKUP(F2842,'Raw Data'!$I$4:$I$5000,'Raw Data'!$H$4:$H$5000,\"\",0),\"\")","v":""},{"$f":"IF(INDIRECT(M2842) = \"\",\"\",INDIRECT(M2842))","v":""},"c"]
["SUCMLR_MI_C",null,null,null,{"$f":"_xlfn.XLOOKUP(F2843,'Raw Data'!$I$4:$I$5000,'Raw Data'!$D$4:$D$5000,\"*** Mnemonic not found ***\",0)","v":"*** Mnemonic not found ***"},"SUCMLR_MI_C__",null,"Input",null,null,698,"O","Input!O698",{"$f":"_xlfn.XLOOKUP(F2843,'Raw Data'!$I$4:$I$5000,'Raw Data'!$E$4:$E$5000,100,0)","v":100},{"$f":"IF(N2843=0,_xlfn.XLOOKUP(F2843,'Raw Data'!$I$4:$I$5000,'Raw Data'!$H$4:$H$5000,\"\",0),\"\")","v":""},{"$f":"IF(INDIRECT(M2843) = \"\",\"\",INDIRECT(M2843))","v":""},"c"]
["SUCMAEPOEPCURVE_C",null,null,null,{"$f":"_xlfn.XLOOKUP(F2844,'Raw Data'!$I$4:$I$5000,'Raw Data'!$D$4:$D$5000,\"*** Mnemonic not found ***\",0)","v":"*** Mnemonic not found ***"},"SUCMAEPOEPCURVE_C__","Comments - Natural Catastrophe","Input",{"$f":"ROW(section_natural_catastrophe)","v":701},2,{"$f":"I2844+J2844","v":703},{"$f":"L2843","v":"O"},"Input!O703",{"$f":"_xlfn.XLOOKUP(F2844,'Raw Data'!$I$4:$I$5000,'Raw Data'!$E$4:$E$5000,100,0)","v":100},{"$f":"IF(N2844=0,_xlfn.XLOOKUP(F2844,'Raw Data'!$I$4:$I$5000,'Raw Data'!$H$4:$H$5000,\"\",0),\"\")","v":""},{"$f":"IF(INDIRECT(M2844) = \"\",\"\",INDIRECT(M2844))","v":""},"c"]
["SUCMNCRGROSS_C",null,null,null,{"$f":"_xlfn.XLOOKUP(F2845,'Raw Data'!$I$4:$I$5000,'Raw Data'!$D$4:$D$5000,\"*** Mnemonic not found ***\",0)","v":"*** Mnemonic not found ***"},"SUCMNCRGROSS_C__",null,"Input",null,null,{"$f":"K2844+3","v":706},"O","Input!O706",{"$f":"_xlfn.XLOOKUP(F2845,'Raw Data'!$I$4:$I$5000,'Raw Data'!$E$4:$E$5000,100,0)","v":100},{"$f":"IF(N2845=0,_xlfn.XLOOKUP(F2845,'Raw Data'!$I$4:$I$5000,'Raw Data'!$H$4:$H$5000,\"\",0),\"\")","v":""},{"$f":"IF(INDIRECT(M2845) = \"\",\"\",INDIRECT(M2845))","v":""},"c"]
["SUCMNCRNET_C",null,null,null,{"$f":"_xlfn.XLOOKUP(F2846,'Raw Data'!$I$4:$I$5000,'Raw Data'!$D$4:$D$5000,\"*** Mnemonic not found ***\",0)","v":"*** Mnemonic not found ***"},"SUCMNCRNET_C__",null,"Input",null,null,{"$f":"K2845+1","v":707},"O","Input!O707",{"$f":"_xlfn.XLOOKUP(F2846,'Raw Data'!$I$4:$I$5000,'Raw Data'!$E$4:$E$5000,100,0)","v":100},{"$f":"IF(N2846=0,_xlfn.XLOOKUP(F2846,'Raw Data'!$I$4:$I$5000,'Raw Data'!$H$4:$H$5000,\"\",0),\"\")","v":""},{"$f":"IF(INDIRECT(M2846) = \"\",\"\",INDIRECT(M2846))","v":""},"c"]
["SUCMNCRRECUNCOLL_C",null,null,null,{"$f":"_xlfn.XLOOKUP(F2847,'Raw Data'!$I$4:$I$5000,'Raw Data'!$D$4:$D$5000,\"*** Mnemonic not found ***\",0)","v":"*** Mnemonic not found ***"},"SUCMNCRRECUNCOLL_C__",null,"Input",null,null,708,"O","Input!O708",{"$f":"_xlfn.XLOOKUP(F2847,'Raw Data'!$I$4:$I$5000,'Raw Data'!$E$4:$E$5000,100,0)","v":100},{"$f":"IF(N2847=0,_xlfn.XLOOKUP(F2847,'Raw Data'!$I$4:$I$5000,'Raw Data'!$H$4:$H$5000,\"\",0),\"\")","v":""},{"$f":"IF(INDIRECT(M2847) = \"\",\"\",INDIRECT(M2847))","v":""},"c"]
["SUCMNCRRECCOLL_C",null,null,null,{"$f":"_xlfn.XLOOKUP(F2848,'Raw Data'!$I$4:$I$5000,'Raw Data'!$D$4:$D$5000,\"*** Mnemonic not found ***\",0)","v":"*** Mnemonic not found ***"},"SUCMNCRRECCOLL_C__",null,"Input",null,null,709,"O","Input!O709",{"$f":"_xlfn.XLOOKUP(F2848,'Raw Data'!$I$4:$I$5000,'Raw Data'!$E$4:$E$5000,100,0)","v":100},{"$f":"IF(N2848=0,_xlfn.XLOOKUP(F2848,'Raw Data'!$I$4:$I$5000,'Raw Data'!$H$4:$H$5000,\"\",0),\"\")","v":""},{"$f":"IF(INDIRECT(M2848) = \"\",\"\",INDIRECT(M2848))","v":""},"c"]
["SUCMNCPINWARD_C",null,null,null,{"$f":"_xlfn.XLOOKUP(F2849,'Raw Data'!$I$4:$I$5000,'Raw Data'!$D$4:$D$5000,\"*** Mnemonic not found ***\",0)","v":"*** Mnemonic not found ***"},"SUCMNCPINWARD_C__",null,"Input",null,null,710,"O","Input!O710",{"$f":"_xlfn.XLOOKUP(F2849,'Raw Data'!$I$4:$I$5000,'Raw Data'!$E$4:$E$5000,100,0)","v":100},{"$f":"IF(N2849=0,_xlfn.XLOOKUP(F2849,'Raw Data'!$I$4:$I$5000,'Raw Data'!$H$4:$H$5000,\"\",0),\"\")","v":""},{"$f":"IF(INDIRECT(M2849) = \"\",\"\",INDIRECT(M2849))","v":""},"c"]
["SUCMNCPOUTWARD_C",null,null,null,{"$f":"_xlfn.XLOOKUP(F2850,'Raw Data'!$I$4:$I$5000,'Raw Data'!$D$4:$D$5000,\"*** Mnemonic not found ***\",0)","v":"*** Mnemonic not found ***"},"SUCMNCPOUTWARD_C__",null,"Input",null,null,711,"O","Input!O711",{"$f":"_xlfn.XLOOKUP(F2850,'Raw Data'!$I$4:$I$5000,'Raw Data'!$E$4:$E$5000,100,0)","v":100},{"$f":"IF(N2850=0,_xlfn.XLOOKUP(F2850,'Raw Data'!$I$4:$I$5000,'Raw Data'!$H$4:$H$5000,\"\",0),\"\")","v":""},{"$f":"IF(INDIRECT(M2850) = \"\",\"\",INDIRECT(M2850))","v":""},"c"]
["SUCMNCNETLOSS_C",null,null,null,{"$f":"_xlfn.XLOOKUP(F2851,'Raw Data'!$I$4:$I$5000,'Raw Data'!$D$4:$D$5000,\"*** Mnemonic not found ***\",0)","v":"*** Mnemonic not found ***"},"SUCMNCNETLOSS_C__",null,"Input",null,null,712,"O","Input!O712",{"$f":"_xlfn.XLOOKUP(F2851,'Raw Data'!$I$4:$I$5000,'Raw Data'!$E$4:$E$5000,100,0)","v":100},{"$f":"IF(N2851=0,_xlfn.XLOOKUP(F2851,'Raw Data'!$I$4:$I$5000,'Raw Data'!$H$4:$H$5000,\"\",0),\"\")","v":""},{"$f":"IF(INDIRECT(M2851) = \"\",\"\",INDIRECT(M2851))","v":""},"c"]
["SUCMNCRAAL_C",null,null,null,{"$f":"_xlfn.XLOOKUP(F2852,'Raw Data'!$I$4:$I$5000,'Raw Data'!$D$4:$D$5000,\"*** Mnemonic not found ***\",0)","v":"*** Mnemonic not found ***"},"SUCMNCRAAL_C__",null,"Input",null,null,{"$f":"K2851+2","v":714},"O","Input!O714",{"$f":"_xlfn.XLOOKUP(F2852,'Raw Data'!$I$4:$I$5000,'Raw Data'!$E$4:$E$5000,100,0)","v":100},{"$f":"IF(N2852=0,_xlfn.XLOOKUP(F2852,'Raw Data'!$I$4:$I$5000,'Raw Data'!$H$4:$H$5000,\"\",0),\"\")","v":""},{"$f":"IF(INDIRECT(M2852) = \"\",\"\",INDIRECT(M2852))","v":""},"c"]
["SUCMNATCATCHG_995_C",null,null,null,{"$f":"_xlfn.XLOOKUP(F2853,'Raw Data'!$I$4:$I$5000,'Raw Data'!$D$4:$D$5000,\"*** Mnemonic not found ***\",0)","v":"*** Mnemonic not found ***"},"SUCMNATCATCHG_995_C__",null,"Input",null,null,{"$f":"K2852+2","v":716},"O","Input!O716",{"$f":"_xlfn.XLOOKUP(F2853,'Raw Data'!$I$4:$I$5000,'Raw Data'!$E$4:$E$5000,100,0)","v":100},{"$f":"IF(N2853=0,_xlfn.XLOOKUP(F2853,'Raw Data'!$I$4:$I$5000,'Raw Data'!$H$4:$H$5000,\"\",0),\"\")","v":""},{"$f":"IF(INDIRECT(M2853) = \"\",\"\",INDIRECT(M2853))","v":""},"c"]
["SUCMMORTCIRITHDM_C",null,null,null,{"$f":"_xlfn.XLOOKUP(F2854,'Raw Data'!$I$4:$I$5000,'Raw Data'!$D$4:$D$5000,\"*** Mnemonic not found ***\",0)","v":"*** Mnemonic not found ***"},"SUCMMORTCIRITHDM_C__","Comments - Mortality and Pandemic","Input",{"$f":"ROW(section_mort_and_pandemic)","v":721},3,{"$f":"I2854+J2854","v":724},{"$f":"L2853","v":"O"},"Input!O724",{"$f":"_xlfn.XLOOKUP(F2854,'Raw Data'!$I$4:$I$5000,'Raw Data'!$E$4:$E$5000,100,0)","v":100},{"$f":"IF(N2854=0,_xlfn.XLOOKUP(F2854,'Raw Data'!$I$4:$I$5000,'Raw Data'!$H$4:$H$5000,\"\",0),\"\")","v":""},{"$f":"IF(INDIRECT(M2854) = \"\",\"\",INDIRECT(M2854))","v":""},"c"]
["SUCMMORTCIRITLDM_C",null,null,null,{"$f":"_xlfn.XLOOKUP(F2855,'Raw Data'!$I$4:$I$5000,'Raw Data'!$D$4:$D$5000,\"*** Mnemonic not found ***\",0)","v":"*** Mnemonic not found ***"},"SUCMMORTCIRITLDM_C__",null,"Input",null,null,{"$f":"K2854+1","v":725},"O","Input!O725",{"$f":"_xlfn.XLOOKUP(F2855,'Raw Data'!$I$4:$I$5000,'Raw Data'!$E$4:$E$5000,100,0)","v":100},{"$f":"IF(N2855=0,_xlfn.XLOOKUP(F2855,'Raw Data'!$I$4:$I$5000,'Raw Data'!$H$4:$H$5000,\"\",0),\"\")","v":""},{"$f":"IF(INDIRECT(M2855) = \"\",\"\",INDIRECT(M2855))","v":""},"c"]
["SUCMMORTNETTOT_C",null,null,null,{"$f":"_xlfn.XLOOKUP(F2856,'Raw Data'!$I$4:$I$5000,'Raw Data'!$D$4:$D$5000,\"*** Mnemonic not found ***\",0)","v":"*** Mnemonic not found ***"},"SUCMMORTNETTOT_C__",null,"Input",null,null,{"$f":"K2855+2","v":727},"O","Input!O727",{"$f":"_xlfn.XLOOKUP(F2856,'Raw Data'!$I$4:$I$5000,'Raw Data'!$E$4:$E$5000,100,0)","v":100},{"$f":"IF(N2856=0,_xlfn.XLOOKUP(F2856,'Raw Data'!$I$4:$I$5000,'Raw Data'!$H$4:$H$5000,\"\",0),\"\")","v":""},{"$f":"IF(INDIRECT(M2856) = \"\",\"\",INDIRECT(M2856))","v":""},"c"]
["SUCMMORTGROSSTOT_C",null,null,null,{"$f":"_xlfn.XLOOKUP(F2857,'Raw Data'!$I$4:$I$5000,'Raw Data'!$D$4:$D$5000,\"*** Mnemonic not found ***\",0)","v":"*** Mnemonic not found ***"},"SUCMMORTGROSSTOT_C__",null,"Input",null,null,{"$f":"K2856+2","v":729},"O","Input!O729",{"$f":"_xlfn.XLOOKUP(F2857,'Raw Data'!$I$4:$I$5000,'Raw Data'!$E$4:$E$5000,100,0)","v":100},{"$f":"IF(N2857=0,_xlfn.XLOOKUP(F2857,'Raw Data'!$I$4:$I$5000,'Raw Data'!$H$4:$H$5000,\"\",0),\"\")","v":""},{"$f":"IF(INDIRECT(M2857) = \"\",\"\",INDIRECT(M2857))","v":""},"c"]
["SUCMMORBCIRITHDM_C",null,null,null,{"$f":"_xlfn.XLOOKUP(F2858,'Raw Data'!$I$4:$I$5000,'Raw Data'!$D$4:$D$5000,\"*** Mnemonic not found ***\",0)","v":"*** Mnemonic not found ***"},"SUCMMORBCIRITHDM_C__","Comments - Morbidity - Critical Illness","Input",{"$f":"ROW(section_morbidity_ci)","v":732},3,{"$f":"I2858+J2858","v":735},{"$f":"L2857","v":"O"},"Input!O735",{"$f":"_xlfn.XLOOKUP(F2858,'Raw Data'!$I$4:$I$5000,'Raw Data'!$E$4:$E$5000,100,0)","v":100},{"$f":"IF(N2858=0,_xlfn.XLOOKUP(F2858,'Raw Data'!$I$4:$I$5000,'Raw Data'!$H$4:$H$5000,\"\",0),\"\")","v":""},{"$f":"IF(INDIRECT(M2858) = \"\",\"\",INDIRECT(M2858))","v":""},"c"]
["SUCMMORBCIRITLDM_C",null,null,null,{"$f":"_xlfn.XLOOKUP(F2859,'Raw Data'!$I$4:$I$5000,'Raw Data'!$D$4:$D$5000,\"*** Mnemonic not found ***\",0)","v":"*** Mnemonic not found ***"},"SUCMMORBCIRITLDM_C__",null,"Input",null,null,{"$f":"K2858+1","v":736},{"$f":"L2858","v":"O"},"Input!O736",{"$f":"_xlfn.XLOOKUP(F2859,'Raw Data'!$I$4:$I$5000,'Raw Data'!$E$4:$E$5000,100,0)","v":100},{"$f":"IF(N2859=0,_xlfn.XLOOKUP(F2859,'Raw Data'!$I$4:$I$5000,'Raw Data'!$H$4:$H$5000,\"\",0),\"\")","v":""},{"$f":"IF(INDIRECT(M2859) = \"\",\"\",INDIRECT(M2859))","v":""},"c"]
["SUCMDISPRDISNONCANCEL_C",null,null,null,{"$f":"_xlfn.XLOOKUP(F2860,'Raw Data'!$I$4:$I$5000,'Raw Data'!$D$4:$D$5000,\"*** Mnemonic not found ***\",0)","v":"*** Mnemonic not found ***"},"SUCMDISPRDISNONCANCEL_C__","Comments - Morbidity - Disability","Input",{"$f":"ROW(section_morbidity_disability)","v":739},3,{"$f":"I2860+J2860","v":742},{"$f":"L2859","v":"O"},"Input!O742",{"$f":"_xlfn.XLOOKUP(F2860,'Raw Data'!$I$4:$I$5000,'Raw Data'!$E$4:$E$5000,100,0)","v":100},{"$f":"IF(N2860=0,_xlfn.XLOOKUP(F2860,'Raw Data'!$I$4:$I$5000,'Raw Data'!$H$4:$H$5000,\"\",0),\"\")","v":""},{"$f":"IF(INDIRECT(M2860) = \"\",\"\",INDIRECT(M2860))","v":""},"c"]
["SUCMDISPRDISOII_C",null,null,null,{"$f":"_xlfn.XLOOKUP(F2861,'Raw Data'!$I$4:$I$5000,'Raw Data'!$D$4:$D$5000,\"*** Mnemonic not found ***\",0)","v":"*** Mnemonic not found ***"},"SUCMDISPRDISOII_C__",null,"Input",null,null,{"$f":"K2860+1","v":743},{"$f":"L2860","v":"O"},"Input!O743",{"$f":"_xlfn.XLOOKUP(F2861,'Raw Data'!$I$4:$I$5000,'Raw Data'!$E$4:$E$5000,100,0)","v":100},{"$f":"IF(N2861=0,_xlfn.XLOOKUP(F2861,'Raw Data'!$I$4:$I$5000,'Raw Data'!$H$4:$H$5000,\"\",0),\"\")","v":""},{"$f":"IF(INDIRECT(M2861) = \"\",\"\",INDIRECT(M2861))","v":""},"c"]
["SUCMDISPRDISGLT_C",null,null,null,{"$f":"_xlfn.XLOOKUP(F2862,'Raw Data'!$I$4:$I$5000,'Raw Data'!$D$4:$D$5000,\"*** Mnemonic not found ***\",0)","v":"*** Mnemonic not found ***"},"SUCMDISPRDISGLT_C__",null,"Input",null,null,{"$f":"K2861+1","v":744},{"$f":"L2861","v":"O"},"Input!O744",{"$f":"_xlfn.XLOOKUP(F2862,'Raw Data'!$I$4:$I$5000,'Raw Data'!$E$4:$E$5000,100,0)","v":100},{"$f":"IF(N2862=0,_xlfn.XLOOKUP(F2862,'Raw Data'!$I$4:$I$5000,'Raw Data'!$H$4:$H$5000,\"\",0),\"\")","v":""},{"$f":"IF(INDIRECT(M2862) = \"\",\"\",INDIRECT(M2862))","v":""},"c"]
["SUCMDISPRGST_C",null,null,null,{"$f":"_xlfn.XLOOKUP(F2863,'Raw Data'!$I$4:$I$5000,'Raw Data'!$D$4:$D$5000,\"*** Mnemonic not found ***\",0)","v":"*** Mnemonic not found ***"},"SUCMDISPRGST_C__",null,"Input",null,null,745,"O","Input!O745",{"$f":"_xlfn.XLOOKUP(F2863,'Raw Data'!$I$4:$I$5000,'Raw Data'!$E$4:$E$5000,100,0)","v":100},{"$f":"IF(N2863=0,_xlfn.XLOOKUP(F2863,'Raw Data'!$I$4:$I$5000,'Raw Data'!$H$4:$H$5000,\"\",0),\"\")","v":""},{"$f":"IF(INDIRECT(M2863) = \"\",\"\",INDIRECT(M2863))","v":""},"c"]
["SUCMDISPRCROSBAL_C",null,null,null,{"$f":"_xlfn.XLOOKUP(F2864,'Raw Data'!$I$4:$I$5000,'Raw Data'!$D$4:$D$5000,\"*** Mnemonic not found ***\",0)","v":"*** Mnemonic not found ***"},"SUCMDISPRCROSBAL_C__",null,"Input",null,null,746,{"$f":"L2863","v":"O"},"Input!O746",{"$f":"_xlfn.XLOOKUP(F2864,'Raw Data'!$I$4:$I$5000,'Raw Data'!$E$4:$E$5000,100,0)","v":100},{"$f":"IF(N2864=0,_xlfn.XLOOKUP(F2864,'Raw Data'!$I$4:$I$5000,'Raw Data'!$H$4:$H$5000,\"\",0),\"\")","v":""},{"$f":"IF(INDIRECT(M2864) = \"\",\"\",INDIRECT(M2864))","v":""},"c"]
["SUCMDISPRCSRWITH_C",null,null,null,{"$f":"_xlfn.XLOOKUP(F2865,'Raw Data'!$I$4:$I$5000,'Raw Data'!$D$4:$D$5000,\"*** Mnemonic not found ***\",0)","v":"*** Mnemonic not found ***"},"SUCMDISPRCSRWITH_C__",null,"Input",null,null,747,{"$f":"L2864","v":"O"},"Input!O747",{"$f":"_xlfn.XLOOKUP(F2865,'Raw Data'!$I$4:$I$5000,'Raw Data'!$E$4:$E$5000,100,0)","v":100},{"$f":"IF(N2865=0,_xlfn.XLOOKUP(F2865,'Raw Data'!$I$4:$I$5000,'Raw Data'!$H$4:$H$5000,\"\",0),\"\")","v":""},{"$f":"IF(INDIRECT(M2865) = \"\",\"\",INDIRECT(M2865))","v":""},"c"]
["SUCMDISPRCSRWITHOUT_C",null,null,null,{"$f":"_xlfn.XLOOKUP(F2866,'Raw Data'!$I$4:$I$5000,'Raw Data'!$D$4:$D$5000,\"*** Mnemonic not found ***\",0)","v":"*** Mnemonic not found ***"},"SUCMDISPRCSRWITHOUT_C__",null,"Input",null,null,748,"O",{"$f":"CONCATENATE(H2866,\"!\",L2866,K2866)","v":"Input!O748"},{"$f":"_xlfn.XLOOKUP(F2866,'Raw Data'!$I$4:$I$5000,'Raw Data'!$E$4:$E$5000,100,0)","v":100},{"$f":"IF(N2866=0,_xlfn.XLOOKUP(F2866,'Raw Data'!$I$4:$I$5000,'Raw Data'!$H$4:$H$5000,\"\",0),\"\")","v":""},{"$f":"IF(INDIRECT(M2866) = \"\",\"\",INDIRECT(M2866))","v":""},"c"]
["SUCMDISPROTHERDISB_C",null,null,null,{"$f":"_xlfn.XLOOKUP(F2867,'Raw Data'!$I$4:$I$5000,'Raw Data'!$D$4:$D$5000,\"*** Mnemonic not found ***\",0)","v":"*** Mnemonic not found ***"},"SUCMDISPROTHERDISB_C__",null,"Input",null,null,749,"O","Input!O749",{"$f":"_xlfn.XLOOKUP(F2867,'Raw Data'!$I$4:$I$5000,'Raw Data'!$E$4:$E$5000,100,0)","v":100},{"$f":"IF(N2867=0,_xlfn.XLOOKUP(F2867,'Raw Data'!$I$4:$I$5000,'Raw Data'!$H$4:$H$5000,\"\",0),\"\")","v":""},{"$f":"IF(INDIRECT(M2867) = \"\",\"\",INDIRECT(M2867))","v":""},"c"]
["SUCMDISRESERPROD_C",null,null,null,{"$f":"_xlfn.XLOOKUP(F2868,'Raw Data'!$I$4:$I$5000,'Raw Data'!$D$4:$D$5000,\"*** Mnemonic not found ***\",0)","v":"*** Mnemonic not found ***"},"SUCMDISRESERPROD_C__",null,"Input",null,null,{"$f":"K2867+3","v":752},"O","Input!O752",{"$f":"_xlfn.XLOOKUP(F2868,'Raw Data'!$I$4:$I$5000,'Raw Data'!$E$4:$E$5000,100,0)","v":100},{"$f":"IF(N2868=0,_xlfn.XLOOKUP(F2868,'Raw Data'!$I$4:$I$5000,'Raw Data'!$H$4:$H$5000,\"\",0),\"\")","v":""},{"$f":"IF(INDIRECT(M2868) = \"\",\"\",INDIRECT(M2868))","v":""},"c"]
["SUCMLTCLAIB_NONUS_C",null,null,null,{"$f":"_xlfn.XLOOKUP(F2869,'Raw Data'!$I$4:$I$5000,'Raw Data'!$D$4:$D$5000,\"*** Mnemonic not found ***\",0)","v":"*** Mnemonic not found ***"},"SUCMLTCLAIB_NONUS_C__","Comments - Morbidity - Long-term Care","Input",{"$f":"ROW(section_morbidity_ltc)","v":755},3,{"$f":"I2869+J2869","v":758},{"$f":"L2868","v":"O"},"Input!O758",{"$f":"_xlfn.XLOOKUP(F2869,'Raw Data'!$I$4:$I$5000,'Raw Data'!$E$4:$E$5000,100,0)","v":100},{"$f":"IF(N2869=0,_xlfn.XLOOKUP(F2869,'Raw Data'!$I$4:$I$5000,'Raw Data'!$H$4:$H$5000,\"\",0),\"\")","v":""},{"$f":"IF(INDIRECT(M2869) = \"\",\"\",INDIRECT(M2869))","v":""},"c"]
["SUCMLTCCLAIMS_US_C",null,null,null,{"$f":"_xlfn.XLOOKUP(F2870,'Raw Data'!$I$4:$I$5000,'Raw Data'!$D$4:$D$5000,\"*** Mnemonic not found ***\",0)","v":"*** Mnemonic not found ***"},"SUCMLTCCLAIMS_US_C__",null,"Input",null,null,{"$f":"K2869+2","v":760},{"$f":"L2869","v":"O"},"Input!O760",{"$f":"_xlfn.XLOOKUP(F2870,'Raw Data'!$I$4:$I$5000,'Raw Data'!$E$4:$E$5000,100,0)","v":100},{"$f":"IF(N2870=0,_xlfn.XLOOKUP(F2870,'Raw Data'!$I$4:$I$5000,'Raw Data'!$H$4:$H$5000,\"\",0),\"\")","v":""},{"$f":"IF(INDIRECT(M2870) = \"\",\"\",INDIRECT(M2870))","v":""},"c"]
["SUCMLTCEARNPREM_US_C",null,null,null,{"$f":"_xlfn.XLOOKUP(F2871,'Raw Data'!$I$4:$I$5000,'Raw Data'!$D$4:$D$5000,\"*** Mnemonic not found ***\",0)","v":"*** Mnemonic not found ***"},"SUCMLTCEARNPREM_US_C__",null,"Input",null,null,{"$f":"K2870+1","v":761},{"$f":"L2870","v":"O"},"Input!O761",{"$f":"_xlfn.XLOOKUP(F2871,'Raw Data'!$I$4:$I$5000,'Raw Data'!$E$4:$E$5000,100,0)","v":100},{"$f":"IF(N2871=0,_xlfn.XLOOKUP(F2871,'Raw Data'!$I$4:$I$5000,'Raw Data'!$H$4:$H$5000,\"\",0),\"\")","v":""},{"$f":"IF(INDIRECT(M2871) = \"\",\"\",INDIRECT(M2871))","v":""},"c"]
["SUCMLTCCLAIMRES_US_C",null,null,null,{"$f":"_xlfn.XLOOKUP(F2872,'Raw Data'!$I$4:$I$5000,'Raw Data'!$D$4:$D$5000,\"*** Mnemonic not found ***\",0)","v":"*** Mnemonic not found ***"},"SUCMLTCCLAIMRES_US_C__",null,"Input",null,null,762,"O","Input!O762",{"$f":"_xlfn.XLOOKUP(F2872,'Raw Data'!$I$4:$I$5000,'Raw Data'!$E$4:$E$5000,100,0)","v":100},{"$f":"IF(N2872=0,_xlfn.XLOOKUP(F2872,'Raw Data'!$I$4:$I$5000,'Raw Data'!$H$4:$H$5000,\"\",0),\"\")","v":""},{"$f":"IF(INDIRECT(M2872) = \"\",\"\",INDIRECT(M2872))","v":""},"c"]
["SUCMLONGOTHERIP_CAT1_C",null,null,null,{"$f":"_xlfn.XLOOKUP(F2873,'Raw Data'!$I$4:$I$5000,'Raw Data'!$D$4:$D$5000,\"*** Mnemonic not found ***\",0)","v":"*** Mnemonic not found ***"},"SUCMLONGOTHERIP_CAT1_C__","Comments - Longevity","Input",{"$f":"ROW(section_longevity)","v":766},2,{"$f":"I2873+J2873","v":768},{"$f":"L2872","v":"O"},"Input!O768",{"$f":"_xlfn.XLOOKUP(F2873,'Raw Data'!$I$4:$I$5000,'Raw Data'!$E$4:$E$5000,100,0)","v":100},{"$f":"IF(N2873=0,_xlfn.XLOOKUP(F2873,'Raw Data'!$I$4:$I$5000,'Raw Data'!$H$4:$H$5000,\"\",0),\"\")","v":""},{"$f":"IF(INDIRECT(M2873) = \"\",\"\",INDIRECT(M2873))","v":""},"c"]
["SUCMLONGOTHER_CAT1_C",null,null,null,{"$f":"_xlfn.XLOOKUP(F2874,'Raw Data'!$I$4:$I$5000,'Raw Data'!$D$4:$D$5000,\"*** Mnemonic not found ***\",0)","v":"*** Mnemonic not found ***"},"SUCMLONGOTHER_CAT1_C__",null,"Input",null,null,{"$f":"K2873+1","v":769},{"$f":"L2873","v":"O"},"Input!O769",{"$f":"_xlfn.XLOOKUP(F2874,'Raw Data'!$I$4:$I$5000,'Raw Data'!$E$4:$E$5000,100,0)","v":100},{"$f":"IF(N2874=0,_xlfn.XLOOKUP(F2874,'Raw Data'!$I$4:$I$5000,'Raw Data'!$H$4:$H$5000,\"\",0),\"\")","v":""},{"$f":"IF(INDIRECT(M2874) = \"\",\"\",INDIRECT(M2874))","v":""},"c"]
["SUCMLONGOTHER_CAT2_C",null,null,null,{"$f":"_xlfn.XLOOKUP(F2875,'Raw Data'!$I$4:$I$5000,'Raw Data'!$D$4:$D$5000,\"*** Mnemonic not found ***\",0)","v":"*** Mnemonic not found ***"},"SUCMLONGOTHER_CAT2_C__",null,"Input",null,null,770,"O","Input!O770",{"$f":"_xlfn.XLOOKUP(F2875,'Raw Data'!$I$4:$I$5000,'Raw Data'!$E$4:$E$5000,100,0)","v":100},{"$f":"IF(N2875=0,_xlfn.XLOOKUP(F2875,'Raw Data'!$I$4:$I$5000,'Raw Data'!$H$4:$H$5000,\"\",0),\"\")","v":""},{"$f":"IF(INDIRECT(M2875) = \"\",\"\",INDIRECT(M2875))","v":""},"c"]
["SUCMLONGOTHER_CAT3_C",null,null,null,{"$f":"_xlfn.XLOOKUP(F2876,'Raw Data'!$I$4:$I$5000,'Raw Data'!$D$4:$D$5000,\"*** Mnemonic not found ***\",0)","v":"*** Mnemonic not found ***"},"SUCMLONGOTHER_CAT3_C__",null,"Input",null,null,{"$f":"K2875+1","v":771},{"$f":"L2875","v":"O"},"Input!O771",{"$f":"_xlfn.XLOOKUP(F2876,'Raw Data'!$I$4:$I$5000,'Raw Data'!$E$4:$E$5000,100,0)","v":100},{"$f":"IF(N2876=0,_xlfn.XLOOKUP(F2876,'Raw Data'!$I$4:$I$5000,'Raw Data'!$H$4:$H$5000,\"\",0),\"\")","v":""},{"$f":"IF(INDIRECT(M2876) = \"\",\"\",INDIRECT(M2876))","v":""},"c"]
["SUCMLONGRESCONFLVL_C",null,null,null,{"$f":"_xlfn.XLOOKUP(F2877,'Raw Data'!$I$4:$I$5000,'Raw Data'!$D$4:$D$5000,\"*** Mnemonic not found ***\",0)","v":"*** Mnemonic not found ***"},"SUCMLONGRESCONFLVL_C__",null,"Input",null,null,{"$f":"K2876+1","v":772},{"$f":"L2876","v":"O"},{"$f":"CONCATENATE(H2877,\"!\",L2877,K2877)","v":"Input!O772"},{"$f":"_xlfn.XLOOKUP(F2877,'Raw Data'!$I$4:$I$5000,'Raw Data'!$E$4:$E$5000,100,0)","v":100},{"$f":"IF(N2877=0,_xlfn.XLOOKUP(F2877,'Raw Data'!$I$4:$I$5000,'Raw Data'!$H$4:$H$5000,\"\",0),\"\")","v":""},{"$f":"IF(INDIRECT(M2877) = \"\",\"\",INDIRECT(M2877))","v":""},"c"]
["SUCMLONGEXPTOT_C",null,null,null,{"$f":"_xlfn.XLOOKUP(F2878,'Raw Data'!$I$4:$I$5000,'Raw Data'!$D$4:$D$5000,\"*** Mnemonic not found ***\",0)","v":"*** Mnemonic not found ***"},"SUCMLONGEXPTOT_C__",null,"Input",null,null,{"$f":"K2877+2","v":774},{"$f":"L2877","v":"O"},"Input!O774",{"$f":"_xlfn.XLOOKUP(F2878,'Raw Data'!$I$4:$I$5000,'Raw Data'!$E$4:$E$5000,100,0)","v":100},{"$f":"IF(N2878=0,_xlfn.XLOOKUP(F2878,'Raw Data'!$I$4:$I$5000,'Raw Data'!$H$4:$H$5000,\"\",0),\"\")","v":""},{"$f":"IF(INDIRECT(M2878) = \"\",\"\",INDIRECT(M2878))","v":""},"c"]
["SUCMOLTRPROT_C",null,null,null,{"$f":"_xlfn.XLOOKUP(F2879,'Raw Data'!$I$4:$I$5000,'Raw Data'!$D$4:$D$5000,\"*** Mnemonic not found ***\",0)","v":"*** Mnemonic not found ***"},"SUCMOLTRPROT_C__","Comments - Other Life","Input",{"$f":"ROW(section_other_life)","v":777},5,{"$f":"I2879+J2879","v":782},{"$f":"L2878","v":"O"},"Input!O782",{"$f":"_xlfn.XLOOKUP(F2879,'Raw Data'!$I$4:$I$5000,'Raw Data'!$E$4:$E$5000,100,0)","v":100},{"$f":"IF(N2879=0,_xlfn.XLOOKUP(F2879,'Raw Data'!$I$4:$I$5000,'Raw Data'!$H$4:$H$5000,\"\",0),\"\")","v":""},{"$f":"IF(INDIRECT(M2879) = \"\",\"\",INDIRECT(M2879))","v":""},"c"]
["SUCMOLTRPHI_C",null,null,null,{"$f":"_xlfn.XLOOKUP(F2880,'Raw Data'!$I$4:$I$5000,'Raw Data'!$D$4:$D$5000,\"*** Mnemonic not found ***\",0)","v":"*** Mnemonic not found ***"},"SUCMOLTRPHI_C__",null,"Input",null,null,{"$f":"K2879+1","v":783},{"$f":"L2879","v":"O"},"Input!O783",{"$f":"_xlfn.XLOOKUP(F2880,'Raw Data'!$I$4:$I$5000,'Raw Data'!$E$4:$E$5000,100,0)","v":100},{"$f":"IF(N2880=0,_xlfn.XLOOKUP(F2880,'Raw Data'!$I$4:$I$5000,'Raw Data'!$H$4:$H$5000,\"\",0),\"\")","v":""},{"$f":"IF(INDIRECT(M2880) = \"\",\"\",INDIRECT(M2880))","v":""},"c"]
["SUCMOLTRNLS_C",null,null,null,{"$f":"_xlfn.XLOOKUP(F2881,'Raw Data'!$I$4:$I$5000,'Raw Data'!$D$4:$D$5000,\"*** Mnemonic not found ***\",0)","v":"*** Mnemonic not found ***"},"SUCMOLTRNLS_C__",null,"Input",null,null,{"$f":"K2880+2","v":785},{"$f":"L2880","v":"O"},"Input!O785",{"$f":"_xlfn.XLOOKUP(F2881,'Raw Data'!$I$4:$I$5000,'Raw Data'!$E$4:$E$5000,100,0)","v":100},{"$f":"IF(N2881=0,_xlfn.XLOOKUP(F2881,'Raw Data'!$I$4:$I$5000,'Raw Data'!$H$4:$H$5000,\"\",0),\"\")","v":""},{"$f":"IF(INDIRECT(M2881) = \"\",\"\",INDIRECT(M2881))","v":""},"c"]
["SUCMOLTRIPA_C",null,null,null,{"$f":"_xlfn.XLOOKUP(F2882,'Raw Data'!$I$4:$I$5000,'Raw Data'!$D$4:$D$5000,\"*** Mnemonic not found ***\",0)","v":"*** Mnemonic not found ***"},"SUCMOLTRIPA_C__",null,"Input",null,null,{"$f":"K2881+2","v":787},{"$f":"L2881","v":"O"},"Input!O787",{"$f":"_xlfn.XLOOKUP(F2882,'Raw Data'!$I$4:$I$5000,'Raw Data'!$E$4:$E$5000,100,0)","v":100},{"$f":"IF(N2882=0,_xlfn.XLOOKUP(F2882,'Raw Data'!$I$4:$I$5000,'Raw Data'!$H$4:$H$5000,\"\",0),\"\")","v":""},{"$f":"IF(INDIRECT(M2882) = \"\",\"\",INDIRECT(M2882))","v":""},"c"]
["SUCMOLTRDEFWO_C",null,null,null,{"$f":"_xlfn.XLOOKUP(F2883,'Raw Data'!$I$4:$I$5000,'Raw Data'!$D$4:$D$5000,\"*** Mnemonic not found ***\",0)","v":"*** Mnemonic not found ***"},"SUCMOLTRDEFWO_C__",null,"Input",null,null,{"$f":"K2882+1","v":788},"O","Input!O788",{"$f":"_xlfn.XLOOKUP(F2883,'Raw Data'!$I$4:$I$5000,'Raw Data'!$E$4:$E$5000,100,0)","v":100},{"$f":"IF(N2883=0,_xlfn.XLOOKUP(F2883,'Raw Data'!$I$4:$I$5000,'Raw Data'!$H$4:$H$5000,\"\",0),\"\")","v":""},{"$f":"IF(INDIRECT(M2883) = \"\",\"\",INDIRECT(M2883))","v":""},"c"]
["SUCMOLTRDEFW_C",null,null,null,{"$f":"_xlfn.XLOOKUP(F2884,'Raw Data'!$I$4:$I$5000,'Raw Data'!$D$4:$D$5000,\"*** Mnemonic not found ***\",0)","v":"*** Mnemonic not found ***"},"SUCMOLTRDEFW_C__",null,"Input",null,null,{"$f":"K2883+1","v":789},{"$f":"L2883","v":"O"},"Input!O789",{"$f":"_xlfn.XLOOKUP(F2884,'Raw Data'!$I$4:$I$5000,'Raw Data'!$E$4:$E$5000,100,0)","v":100},{"$f":"IF(N2884=0,_xlfn.XLOOKUP(F2884,'Raw Data'!$I$4:$I$5000,'Raw Data'!$H$4:$H$5000,\"\",0),\"\")","v":""},{"$f":"IF(INDIRECT(M2884) = \"\",\"\",INDIRECT(M2884))","v":""},"c"]
["SUCMOLTRDEFGIC_C",null,null,null,{"$f":"_xlfn.XLOOKUP(F2885,'Raw Data'!$I$4:$I$5000,'Raw Data'!$D$4:$D$5000,\"*** Mnemonic not found ***\",0)","v":"*** Mnemonic not found ***"},"SUCMOLTRDEFGIC_C__",null,"Input",null,null,{"$f":"K2884+2","v":791},{"$f":"L2884","v":"O"},"Input!O791",{"$f":"_xlfn.XLOOKUP(F2885,'Raw Data'!$I$4:$I$5000,'Raw Data'!$E$4:$E$5000,100,0)","v":100},{"$f":"IF(N2885=0,_xlfn.XLOOKUP(F2885,'Raw Data'!$I$4:$I$5000,'Raw Data'!$H$4:$H$5000,\"\",0),\"\")","v":""},{"$f":"IF(INDIRECT(M2885) = \"\",\"\",INDIRECT(M2885))","v":""},"c"]
["SUCMOLTRDEFOLP_C",null,null,null,{"$f":"_xlfn.XLOOKUP(F2886,'Raw Data'!$I$4:$I$5000,'Raw Data'!$D$4:$D$5000,\"*** Mnemonic not found ***\",0)","v":"*** Mnemonic not found ***"},"SUCMOLTRDEFOLP_C__",null,"Input",null,null,{"$f":"K2885+1","v":792},"O","Input!O792",{"$f":"_xlfn.XLOOKUP(F2886,'Raw Data'!$I$4:$I$5000,'Raw Data'!$E$4:$E$5000,100,0)","v":100},{"$f":"IF(N2886=0,_xlfn.XLOOKUP(F2886,'Raw Data'!$I$4:$I$5000,'Raw Data'!$H$4:$H$5000,\"\",0),\"\")","v":""},{"$f":"IF(INDIRECT(M2886) = \"\",\"\",INDIRECT(M2886))","v":""},"c"]
["SUCMOLTRNONSADEFLBW_C",null,null,null,{"$f":"_xlfn.XLOOKUP(F2887,'Raw Data'!$I$4:$I$5000,'Raw Data'!$D$4:$D$5000,\"*** Mnemonic not found ***\",0)","v":"*** Mnemonic not found ***"},"SUCMOLTRNONSADEFLBW_C__",null,"Input",null,null,{"$f":"K2886+2","v":794},"O","Input!O794",{"$f":"_xlfn.XLOOKUP(F2887,'Raw Data'!$I$4:$I$5000,'Raw Data'!$E$4:$E$5000,100,0)","v":100},{"$f":"IF(N2887=0,_xlfn.XLOOKUP(F2887,'Raw Data'!$I$4:$I$5000,'Raw Data'!$H$4:$H$5000,\"\",0),\"\")","v":""},{"$f":"IF(INDIRECT(M2887) = \"\",\"\",INDIRECT(M2887))","v":""},"c"]
["SUCMOLTRNONSADEFBINVWO_C",null,null,null,{"$f":"_xlfn.XLOOKUP(F2888,'Raw Data'!$I$4:$I$5000,'Raw Data'!$D$4:$D$5000,\"*** Mnemonic not found ***\",0)","v":"*** Mnemonic not found ***"},"SUCMOLTRNONSADEFBINVWO_C__",null,"Input",null,null,{"$f":"K2887+1","v":795},"O","Input!O795",{"$f":"_xlfn.XLOOKUP(F2888,'Raw Data'!$I$4:$I$5000,'Raw Data'!$E$4:$E$5000,100,0)","v":100},{"$f":"IF(N2888=0,_xlfn.XLOOKUP(F2888,'Raw Data'!$I$4:$I$5000,'Raw Data'!$H$4:$H$5000,\"\",0),\"\")","v":""},{"$f":"IF(INDIRECT(M2888) = \"\",\"\",INDIRECT(M2888))","v":""},"c"]
["SUCMOLTRNONPBEXPOA_C",null,null,null,{"$f":"_xlfn.XLOOKUP(F2889,'Raw Data'!$I$4:$I$5000,'Raw Data'!$D$4:$D$5000,\"*** Mnemonic not found ***\",0)","v":"*** Mnemonic not found ***"},"SUCMOLTRNONPBEXPOA_C__",null,"Input",null,null,{"$f":"K2888+3","v":798},"O","Input!O798",{"$f":"_xlfn.XLOOKUP(F2889,'Raw Data'!$I$4:$I$5000,'Raw Data'!$E$4:$E$5000,100,0)","v":100},{"$f":"IF(N2889=0,_xlfn.XLOOKUP(F2889,'Raw Data'!$I$4:$I$5000,'Raw Data'!$H$4:$H$5000,\"\",0),\"\")","v":""},{"$f":"IF(INDIRECT(M2889) = \"\",\"\",INDIRECT(M2889))","v":""},"c"]
["SUCMOLTRNONPBCPOA_C",null,null,null,{"$f":"_xlfn.XLOOKUP(F2890,'Raw Data'!$I$4:$I$5000,'Raw Data'!$D$4:$D$5000,\"*** Mnemonic not found ***\",0)","v":"*** Mnemonic not found ***"},"SUCMOLTRNONPBCPOA_C__",null,"Input",null,null,{"$f":"K2889+1","v":799},"O","Input!O799",{"$f":"_xlfn.XLOOKUP(F2890,'Raw Data'!$I$4:$I$5000,'Raw Data'!$E$4:$E$5000,100,0)","v":100},{"$f":"IF(N2890=0,_xlfn.XLOOKUP(F2890,'Raw Data'!$I$4:$I$5000,'Raw Data'!$H$4:$H$5000,\"\",0),\"\")","v":""},{"$f":"IF(INDIRECT(M2890) = \"\",\"\",INDIRECT(M2890))","v":""},"c"]
["SUCMOLTRNONPBCPDA_C",null,null,null,{"$f":"_xlfn.XLOOKUP(F2891,'Raw Data'!$I$4:$I$5000,'Raw Data'!$D$4:$D$5000,\"*** Mnemonic not found ***\",0)","v":"*** Mnemonic not found ***"},"SUCMOLTRNONPBCPDA_C__",null,"Input",null,null,800,"O","Input!O800",{"$f":"_xlfn.XLOOKUP(F2891,'Raw Data'!$I$4:$I$5000,'Raw Data'!$E$4:$E$5000,100,0)","v":100},{"$f":"IF(N2891=0,_xlfn.XLOOKUP(F2891,'Raw Data'!$I$4:$I$5000,'Raw Data'!$H$4:$H$5000,\"\",0),\"\")","v":""},{"$f":"IF(INDIRECT(M2891) = \"\",\"\",INDIRECT(M2891))","v":""},"c"]
["SUCMOLTRTOTLR_C",null,null,null,{"$f":"_xlfn.XLOOKUP(F2892,'Raw Data'!$I$4:$I$5000,'Raw Data'!$D$4:$D$5000,\"*** Mnemonic not found ***\",0)","v":"*** Mnemonic not found ***"},"SUCMOLTRTOTLR_C__",null,"Input",null,null,{"$f":"K2891+2","v":802},"O","Input!O802",{"$f":"_xlfn.XLOOKUP(F2892,'Raw Data'!$I$4:$I$5000,'Raw Data'!$E$4:$E$5000,100,0)","v":100},{"$f":"IF(N2892=0,_xlfn.XLOOKUP(F2892,'Raw Data'!$I$4:$I$5000,'Raw Data'!$H$4:$H$5000,\"\",0),\"\")","v":""},{"$f":"IF(INDIRECT(M2892) = \"\",\"\",INDIRECT(M2892))","v":""},"c"]
["SUCMVA995_C",null,null,null,{"$f":"_xlfn.XLOOKUP(F2893,'Raw Data'!$I$4:$I$5000,'Raw Data'!$D$4:$D$5000,\"*** Mnemonic not found ***\",0)","v":"*** Mnemonic not found ***"},"SUCMVA995_C__","Comments - Variable Annuities","Input",{"$f":"ROW(section_variable_annuities)","v":807},3,{"$f":"I2893+J2893","v":810},{"$f":"L2892","v":"O"},"Input!O810",{"$f":"_xlfn.XLOOKUP(F2893,'Raw Data'!$I$4:$I$5000,'Raw Data'!$E$4:$E$5000,100,0)","v":100},{"$f":"IF(N2893=0,_xlfn.XLOOKUP(F2893,'Raw Data'!$I$4:$I$5000,'Raw Data'!$H$4:$H$5000,\"\",0),\"\")","v":""},{"$f":"IF(INDIRECT(M2893) = \"\",\"\",INDIRECT(M2893))","v":""},"c"]
["SUCMVA98_C",null,null,null,{"$f":"_xlfn.XLOOKUP(F2894,'Raw Data'!$I$4:$I$5000,'Raw Data'!$D$4:$D$5000,\"*** Mnemonic not found ***\",0)","v":"*** Mnemonic not found ***"},{"$f":"CONCATENATE(A2894,\"_\",B2894,\"_\",D2894)","v":"SUCMVA98_C__"},null,"Input",null,null,{"$f":"K2893+1","v":811},{"$f":"L2893","v":"O"},"Input!O811",{"$f":"_xlfn.XLOOKUP(F2894,'Raw Data'!$I$4:$I$5000,'Raw Data'!$E$4:$E$5000,100,0)","v":100},{"$f":"IF(N2894=0,_xlfn.XLOOKUP(F2894,'Raw Data'!$I$4:$I$5000,'Raw Data'!$H$4:$H$5000,\"\",0),\"\")","v":""},{"$f":"IF(INDIRECT(M2894) = \"\",\"\",INDIRECT(M2894))","v":""},"c"]
["SUCMVA95_C",null,null,null,{"$f":"_xlfn.XLOOKUP(F2895,'Raw Data'!$I$4:$I$5000,'Raw Data'!$D$4:$D$5000,\"*** Mnemonic not found ***\",0)","v":"*** Mnemonic not found ***"},"SUCMVA95_C__",null,"Input",null,null,{"$f":"K2894+1","v":812},{"$f":"L2894","v":"O"},"Input!O812",{"$f":"_xlfn.XLOOKUP(F2895,'Raw Data'!$I$4:$I$5000,'Raw Data'!$E$4:$E$5000,100,0)","v":100},{"$f":"IF(N2895=0,_xlfn.XLOOKUP(F2895,'Raw Data'!$I$4:$I$5000,'Raw Data'!$H$4:$H$5000,\"\",0),\"\")","v":""},{"$f":"IF(INDIRECT(M2895) = \"\",\"\",INDIRECT(M2895))","v":""},"c"]
["SUCMVA90_C",null,null,null,{"$f":"_xlfn.XLOOKUP(F2896,'Raw Data'!$I$4:$I$5000,'Raw Data'!$D$4:$D$5000,\"*** Mnemonic not found ***\",0)","v":"*** Mnemonic not found ***"},"SUCMVA90_C__",null,"Input",null,null,{"$f":"K2895+1","v":813},{"$f":"L2895","v":"O"},"Input!O813",{"$f":"_xlfn.XLOOKUP(F2896,'Raw Data'!$I$4:$I$5000,'Raw Data'!$E$4:$E$5000,100,0)","v":100},{"$f":"IF(N2896=0,_xlfn.XLOOKUP(F2896,'Raw Data'!$I$4:$I$5000,'Raw Data'!$H$4:$H$5000,\"\",0),\"\")","v":""},{"$f":"IF(INDIRECT(M2896) = \"\",\"\",INDIRECT(M2896))","v":""},"c"]
["SUCMVAERROR_C",null,null,null,{"$f":"_xlfn.XLOOKUP(F2897,'Raw Data'!$I$4:$I$5000,'Raw Data'!$D$4:$D$5000,\"*** Mnemonic not found ***\",0)","v":"*** Mnemonic not found ***"},"SUCMVAERROR_C__",null,"Input",null,null,{"$f":"K2896+2","v":815},"O","Input!O815",{"$f":"_xlfn.XLOOKUP(F2897,'Raw Data'!$I$4:$I$5000,'Raw Data'!$E$4:$E$5000,100,0)","v":100},{"$f":"IF(N2897=0,_xlfn.XLOOKUP(F2897,'Raw Data'!$I$4:$I$5000,'Raw Data'!$H$4:$H$5000,\"\",0),\"\")","v":""},{"$f":"IF(INDIRECT(M2897) = \"\",\"\",INDIRECT(M2897))","v":""},"c"]
["SUCMVASTATNETREINS_C",null,null,null,{"$f":"_xlfn.XLOOKUP(F2898,'Raw Data'!$I$4:$I$5000,'Raw Data'!$D$4:$D$5000,\"*** Mnemonic not found ***\",0)","v":"*** Mnemonic not found ***"},"SUCMVASTATNETREINS_C__",null,"Input",null,null,{"$f":"K2897+2","v":817},{"$f":"L2897","v":"O"},"Input!O817",{"$f":"_xlfn.XLOOKUP(F2898,'Raw Data'!$I$4:$I$5000,'Raw Data'!$E$4:$E$5000,100,0)","v":100},{"$f":"IF(N2898=0,_xlfn.XLOOKUP(F2898,'Raw Data'!$I$4:$I$5000,'Raw Data'!$H$4:$H$5000,\"\",0),\"\")","v":""},{"$f":"IF(INDIRECT(M2898) = \"\",\"\",INDIRECT(M2898))","v":""},"c"]
["SUCMSEGFUND_9999_C",null,null,null,{"$f":"_xlfn.XLOOKUP(F2899,'Raw Data'!$I$4:$I$5000,'Raw Data'!$D$4:$D$5000,\"*** Mnemonic not found ***\",0)","v":"*** Mnemonic not found ***"},"SUCMSEGFUND_9999_C__","Comments - Ring Fenced Funds","Input",{"$f":"ROW(section_ring_fenced_funds)","v":820},3,{"$f":"I2899+J2899","v":823},{"$f":"L2898","v":"O"},"Input!O823",{"$f":"_xlfn.XLOOKUP(F2899,'Raw Data'!$I$4:$I$5000,'Raw Data'!$E$4:$E$5000,100,0)","v":100},{"$f":"IF(N2899=0,_xlfn.XLOOKUP(F2899,'Raw Data'!$I$4:$I$5000,'Raw Data'!$H$4:$H$5000,\"\",0),\"\")","v":""},{"$f":"IF(INDIRECT(M2899) = \"\",\"\",INDIRECT(M2899))","v":""},"c"]
["SUCMSEGFUND_9995_C",null,null,null,{"$f":"_xlfn.XLOOKUP(F2900,'Raw Data'!$I$4:$I$5000,'Raw Data'!$D$4:$D$5000,\"*** Mnemonic not found ***\",0)","v":"*** Mnemonic not found ***"},"SUCMSEGFUND_9995_C__",null,"Input",null,null,{"$f":"K2899+1","v":824},{"$f":"L2899","v":"O"},"Input!O824",{"$f":"_xlfn.XLOOKUP(F2900,'Raw Data'!$I$4:$I$5000,'Raw Data'!$E$4:$E$5000,100,0)","v":100},{"$f":"IF(N2900=0,_xlfn.XLOOKUP(F2900,'Raw Data'!$I$4:$I$5000,'Raw Data'!$H$4:$H$5000,\"\",0),\"\")","v":""},{"$f":"IF(INDIRECT(M2900) = \"\",\"\",INDIRECT(M2900))","v":""},"c"]
["SUCMSEGFUND_9980_C",null,null,null,{"$f":"_xlfn.XLOOKUP(F2901,'Raw Data'!$I$4:$I$5000,'Raw Data'!$D$4:$D$5000,\"*** Mnemonic not found ***\",0)","v":"*** Mnemonic not found ***"},"SUCMSEGFUND_9980_C__",null,"Input",null,null,825,"O","Input!O825",{"$f":"_xlfn.XLOOKUP(F2901,'Raw Data'!$I$4:$I$5000,'Raw Data'!$E$4:$E$5000,100,0)","v":100},{"$f":"IF(N2901=0,_xlfn.XLOOKUP(F2901,'Raw Data'!$I$4:$I$5000,'Raw Data'!$H$4:$H$5000,\"\",0),\"\")","v":""},{"$f":"IF(INDIRECT(M2901) = \"\",\"\",INDIRECT(M2901))","v":""},"c"]
["SUCMSEGFUND_9950_C",null,null,null,{"$f":"_xlfn.XLOOKUP(F2902,'Raw Data'!$I$4:$I$5000,'Raw Data'!$D$4:$D$5000,\"*** Mnemonic not found ***\",0)","v":"*** Mnemonic not found ***"},"SUCMSEGFUND_9950_C__",null,"Input",null,null,826,{"$f":"L2901","v":"O"},"Input!O826",{"$f":"_xlfn.XLOOKUP(F2902,'Raw Data'!$I$4:$I$5000,'Raw Data'!$E$4:$E$5000,100,0)","v":100},{"$f":"IF(N2902=0,_xlfn.XLOOKUP(F2902,'Raw Data'!$I$4:$I$5000,'Raw Data'!$H$4:$H$5000,\"\",0),\"\")","v":""},{"$f":"IF(INDIRECT(M2902) = \"\",\"\",INDIRECT(M2902))","v":""},"c"]
["SUCMGERMANAGE_C",null,null,null,{"$f":"_xlfn.XLOOKUP(F2903,'Raw Data'!$I$4:$I$5000,'Raw Data'!$D$4:$D$5000,\"*** Mnemonic not found ***\",0)","v":"*** Mnemonic not found ***"},"SUCMGERMANAGE_C__","Comments - German Health","Input",{"$f":"ROW(section_german_health)","v":829},2,{"$f":"I2903+J2903","v":831},{"$f":"L2902","v":"O"},"Input!O831",{"$f":"_xlfn.XLOOKUP(F2903,'Raw Data'!$I$4:$I$5000,'Raw Data'!$E$4:$E$5000,100,0)","v":100},{"$f":"IF(N2903=0,_xlfn.XLOOKUP(F2903,'Raw Data'!$I$4:$I$5000,'Raw Data'!$H$4:$H$5000,\"\",0),\"\")","v":""},{"$f":"IF(INDIRECT(M2903) = \"\",\"\",INDIRECT(M2903))","v":""},"c"]
["SUCMDETMISMATCH_C",null,null,null,{"$f":"_xlfn.XLOOKUP(F2904,'Raw Data'!$I$4:$I$5000,'Raw Data'!$D$4:$D$5000,\"*** Mnemonic not found ***\",0)","v":"*** Mnemonic not found ***"},"SUCMDETMISMATCH_C__","Comments - Interest Rate","Input",{"$f":"ROW(section_interest_rate)","v":836},2,{"$f":"I2904+J2904","v":838},{"$f":"L2903","v":"O"},{"$f":"CONCATENATE(H2904,\"!\",L2904,K2904)","v":"Input!O838"},{"$f":"_xlfn.XLOOKUP(F2904,'Raw Data'!$I$4:$I$5000,'Raw Data'!$E$4:$E$5000,100,0)","v":100},{"$f":"IF(N2904=0,_xlfn.XLOOKUP(F2904,'Raw Data'!$I$4:$I$5000,'Raw Data'!$H$4:$H$5000,\"\",0),\"\")","v":""},{"$f":"IF(INDIRECT(M2904) = \"\",\"\",INDIRECT(M2904))","v":""},"c"]
["SUCMCOMDURMISMATCH_C",null,null,null,{"$f":"_xlfn.XLOOKUP(F2905,'Raw Data'!$I$4:$I$5000,'Raw Data'!$D$4:$D$5000,\"*** Mnemonic not found ***\",0)","v":"*** Mnemonic not found ***"},"SUCMCOMDURMISMATCH_C__",null,"Input",null,null,{"$f":"K2904+1","v":839},"O","Input!O839",{"$f":"_xlfn.XLOOKUP(F2905,'Raw Data'!$I$4:$I$5000,'Raw Data'!$E$4:$E$5000,100,0)","v":100},{"$f":"IF(N2905=0,_xlfn.XLOOKUP(F2905,'Raw Data'!$I$4:$I$5000,'Raw Data'!$H$4:$H$5000,\"\",0),\"\")","v":""},{"$f":"IF(INDIRECT(M2905) = \"\",\"\",INDIRECT(M2905))","v":""},"c"]
["SUCMONERSTRESS_C",null,null,null,{"$f":"_xlfn.XLOOKUP(F2906,'Raw Data'!$I$4:$I$5000,'Raw Data'!$D$4:$D$5000,\"*** Mnemonic not found ***\",0)","v":"*** Mnemonic not found ***"},"SUCMONERSTRESS_C__",null,"Input",null,null,840,"O","Input!O840",{"$f":"_xlfn.XLOOKUP(F2906,'Raw Data'!$I$4:$I$5000,'Raw Data'!$E$4:$E$5000,100,0)","v":100},{"$f":"IF(N2906=0,_xlfn.XLOOKUP(F2906,'Raw Data'!$I$4:$I$5000,'Raw Data'!$H$4:$H$5000,\"\",0),\"\")","v":""},{"$f":"IF(INDIRECT(M2906) = \"\",\"\",INDIRECT(M2906))","v":""},"c"]
["SUCMDURNONLIFELIAB_C",null,null,null,{"$f":"_xlfn.XLOOKUP(F2907,'Raw Data'!$I$4:$I$5000,'Raw Data'!$D$4:$D$5000,\"*** Mnemonic not found ***\",0)","v":"*** Mnemonic not found ***"},"SUCMDURNONLIFELIAB_C__",null,"Input",null,null,{"$f":"K2906+2","v":842},"O","Input!O842",{"$f":"_xlfn.XLOOKUP(F2907,'Raw Data'!$I$4:$I$5000,'Raw Data'!$E$4:$E$5000,100,0)","v":100},{"$f":"IF(N2907=0,_xlfn.XLOOKUP(F2907,'Raw Data'!$I$4:$I$5000,'Raw Data'!$H$4:$H$5000,\"\",0),\"\")","v":""},{"$f":"IF(INDIRECT(M2907) = \"\",\"\",INDIRECT(M2907))","v":""},"c"]
["SUCMDURXSASSETYEARS_C",null,null,null,{"$f":"_xlfn.XLOOKUP(F2908,'Raw Data'!$I$4:$I$5000,'Raw Data'!$D$4:$D$5000,\"*** Mnemonic not found ***\",0)","v":"*** Mnemonic not found ***"},"SUCMDURXSASSETYEARS_C__",null,"Input",null,null,843,{"$f":"L2907","v":"O"},"Input!O843",{"$f":"_xlfn.XLOOKUP(F2908,'Raw Data'!$I$4:$I$5000,'Raw Data'!$E$4:$E$5000,100,0)","v":100},{"$f":"IF(N2908=0,_xlfn.XLOOKUP(F2908,'Raw Data'!$I$4:$I$5000,'Raw Data'!$H$4:$H$5000,\"\",0),\"\")","v":""},{"$f":"IF(INDIRECT(M2908) = \"\",\"\",INDIRECT(M2908))","v":""},"c"]
["SUCMONSTRESSBOTH_C",null,null,null,{"$f":"_xlfn.XLOOKUP(F2909,'Raw Data'!$I$4:$I$5000,'Raw Data'!$D$4:$D$5000,\"*** Mnemonic not found ***\",0)","v":"*** Mnemonic not found ***"},"SUCMONSTRESSBOTH_C__",null,"Input",null,null,{"$f":"K2908+2","v":845},{"$f":"L2908","v":"O"},"Input!O845",{"$f":"_xlfn.XLOOKUP(F2909,'Raw Data'!$I$4:$I$5000,'Raw Data'!$E$4:$E$5000,100,0)","v":100},{"$f":"IF(N2909=0,_xlfn.XLOOKUP(F2909,'Raw Data'!$I$4:$I$5000,'Raw Data'!$H$4:$H$5000,\"\",0),\"\")","v":""},{"$f":"IF(INDIRECT(M2909) = \"\",\"\",INDIRECT(M2909))","v":""},"c"]
["SUCMONEROUSSTRESS_C",null,null,null,{"$f":"_xlfn.XLOOKUP(F2910,'Raw Data'!$I$4:$I$5000,'Raw Data'!$D$4:$D$5000,\"*** Mnemonic not found ***\",0)","v":"*** Mnemonic not found ***"},"SUCMONEROUSSTRESS_C__",null,"Input",null,null,{"$f":"K2909+2","v":847},"O","Input!O847",{"$f":"_xlfn.XLOOKUP(F2910,'Raw Data'!$I$4:$I$5000,'Raw Data'!$E$4:$E$5000,100,0)","v":100},{"$f":"IF(N2910=0,_xlfn.XLOOKUP(F2910,'Raw Data'!$I$4:$I$5000,'Raw Data'!$H$4:$H$5000,\"\",0),\"\")","v":""},{"$f":"IF(INDIRECT(M2910) = \"\",\"\",INDIRECT(M2910))","v":""},"c"]
["SUCMIRRREV_CAP_C",null,null,null,{"$f":"_xlfn.XLOOKUP(F2911,'Raw Data'!$I$4:$I$5000,'Raw Data'!$D$4:$D$5000,\"*** Mnemonic not found ***\",0)","v":"*** Mnemonic not found ***"},"SUCMIRRREV_CAP_C__",null,"Input",null,null,{"$f":"K2910+5","v":852},{"$f":"L2910","v":"O"},"Input!O852",{"$f":"_xlfn.XLOOKUP(F2911,'Raw Data'!$I$4:$I$5000,'Raw Data'!$E$4:$E$5000,100,0)","v":100},{"$f":"IF(N2911=0,_xlfn.XLOOKUP(F2911,'Raw Data'!$I$4:$I$5000,'Raw Data'!$H$4:$H$5000,\"\",0),\"\")","v":""},{"$f":"IF(INDIRECT(M2911) = \"\",\"\",INDIRECT(M2911))","v":""},"c"]
["SUCMIRRREV_LIFE_C",null,null,null,{"$f":"_xlfn.XLOOKUP(F2912,'Raw Data'!$I$4:$I$5000,'Raw Data'!$D$4:$D$5000,\"*** Mnemonic not found ***\",0)","v":"*** Mnemonic not found ***"},"SUCMIRRREV_LIFE_C__",null,"Input",null,null,853,{"$f":"L2911","v":"O"},"Input!O853",{"$f":"_xlfn.XLOOKUP(F2912,'Raw Data'!$I$4:$I$5000,'Raw Data'!$E$4:$E$5000,100,0)","v":100},{"$f":"IF(N2912=0,_xlfn.XLOOKUP(F2912,'Raw Data'!$I$4:$I$5000,'Raw Data'!$H$4:$H$5000,\"\",0),\"\")","v":""},{"$f":"IF(INDIRECT(M2912) = \"\",\"\",INDIRECT(M2912))","v":""},"c"]
["SUCMIRRREV_NOLIFE_C",null,null,null,{"$f":"_xlfn.XLOOKUP(F2913,'Raw Data'!$I$4:$I$5000,'Raw Data'!$D$4:$D$5000,\"*** Mnemonic not found ***\",0)","v":"*** Mnemonic not found ***"},"SUCMIRRREV_NOLIFE_C__",null,"Input",null,null,854,{"$f":"L2912","v":"O"},"Input!O854",{"$f":"_xlfn.XLOOKUP(F2913,'Raw Data'!$I$4:$I$5000,'Raw Data'!$E$4:$E$5000,100,0)","v":100},{"$f":"IF(N2913=0,_xlfn.XLOOKUP(F2913,'Raw Data'!$I$4:$I$5000,'Raw Data'!$H$4:$H$5000,\"\",0),\"\")","v":""},{"$f":"IF(INDIRECT(M2913) = \"\",\"\",INDIRECT(M2913))","v":""},"c"]
["SUCMIRRREV_IG_C",null,null,null,{"$f":"_xlfn.XLOOKUP(F2914,'Raw Data'!$I$4:$I$5000,'Raw Data'!$D$4:$D$5000,\"*** Mnemonic not found ***\",0)","v":"*** Mnemonic not found ***"},"SUCMIRRREV_IG_C__",null,"Input",null,null,855,{"$f":"L2913","v":"O"},"Input!O855",{"$f":"_xlfn.XLOOKUP(F2914,'Raw Data'!$I$4:$I$5000,'Raw Data'!$E$4:$E$5000,100,0)","v":100},{"$f":"IF(N2914=0,_xlfn.XLOOKUP(F2914,'Raw Data'!$I$4:$I$5000,'Raw Data'!$H$4:$H$5000,\"\",0),\"\")","v":""},{"$f":"IF(INDIRECT(M2914) = \"\",\"\",INDIRECT(M2914))","v":""},"c"]
["SUCMIRRREV_HLTH_C",null,null,null,{"$f":"_xlfn.XLOOKUP(F2915,'Raw Data'!$I$4:$I$5000,'Raw Data'!$D$4:$D$5000,\"*** Mnemonic not found ***\",0)","v":"*** Mnemonic not found ***"},{"$f":"CONCATENATE(A2915,\"_\",B2915,\"_\",D2915)","v":"SUCMIRRREV_HLTH_C__"},null,"Input",null,null,856,"O",{"$f":"CONCATENATE(H2915,\"!\",L2915,K2915)","v":"Input!O856"},{"$f":"_xlfn.XLOOKUP(F2915,'Raw Data'!$I$4:$I$5000,'Raw Data'!$E$4:$E$5000,100,0)","v":100},{"$f":"IF(N2915=0,_xlfn.XLOOKUP(F2915,'Raw Data'!$I$4:$I$5000,'Raw Data'!$H$4:$H$5000,\"\",0),\"\")","v":""},{"$f":"IF(INDIRECT(M2915) = \"\",\"\",INDIRECT(M2915))","v":""},"c"]
["SUCMFORCURRPROD_C",null,null,null,{"$f":"_xlfn.XLOOKUP(F2916,'Raw Data'!$I$4:$I$5000,'Raw Data'!$D$4:$D$5000,\"*** Mnemonic not found ***\",0)","v":"*** Mnemonic not found ***"},"SUCMFORCURRPROD_C__",null,"Input",null,null,{"$f":"K2915+2","v":858},{"$f":"L2915","v":"O"},"Input!O858",{"$f":"_xlfn.XLOOKUP(F2916,'Raw Data'!$I$4:$I$5000,'Raw Data'!$E$4:$E$5000,100,0)","v":100},{"$f":"IF(N2916=0,_xlfn.XLOOKUP(F2916,'Raw Data'!$I$4:$I$5000,'Raw Data'!$H$4:$H$5000,\"\",0),\"\")","v":""},{"$f":"IF(INDIRECT(M2916) = \"\",\"\",INDIRECT(M2916))","v":""},"c"]
["SUCMFCPROD_1_C",null,null,null,{"$f":"_xlfn.XLOOKUP(F2917,'Raw Data'!$I$4:$I$5000,'Raw Data'!$D$4:$D$5000,\"*** Mnemonic not found ***\",0)","v":"*** Mnemonic not found ***"},"SUCMFCPROD_1_C__",null,"Input",null,null,{"$f":"K2916+4","v":862},{"$f":"L2916","v":"O"},"Input!O862",{"$f":"_xlfn.XLOOKUP(F2917,'Raw Data'!$I$4:$I$5000,'Raw Data'!$E$4:$E$5000,100,0)","v":100},{"$f":"IF(N2917=0,_xlfn.XLOOKUP(F2917,'Raw Data'!$I$4:$I$5000,'Raw Data'!$H$4:$H$5000,\"\",0),\"\")","v":""},{"$f":"IF(INDIRECT(M2917) = \"\",\"\",INDIRECT(M2917))","v":""},"c"]
["SUCMFCPROD_2_C",null,null,null,{"$f":"_xlfn.XLOOKUP(F2918,'Raw Data'!$I$4:$I$5000,'Raw Data'!$D$4:$D$5000,\"*** Mnemonic not found ***\",0)","v":"*** Mnemonic not found ***"},"SUCMFCPROD_2_C__",null,"Input",null,null,863,{"$f":"L2917","v":"O"},"Input!O863",{"$f":"_xlfn.XLOOKUP(F2918,'Raw Data'!$I$4:$I$5000,'Raw Data'!$E$4:$E$5000,100,0)","v":100},{"$f":"IF(N2918=0,_xlfn.XLOOKUP(F2918,'Raw Data'!$I$4:$I$5000,'Raw Data'!$H$4:$H$5000,\"\",0),\"\")","v":""},{"$f":"IF(INDIRECT(M2918) = \"\",\"\",INDIRECT(M2918))","v":""},"c"]
["SUCMFCPROD_3_C",null,null,null,{"$f":"_xlfn.XLOOKUP(F2919,'Raw Data'!$I$4:$I$5000,'Raw Data'!$D$4:$D$5000,\"*** Mnemonic not found ***\",0)","v":"*** Mnemonic not found ***"},"SUCMFCPROD_3_C__",null,"Input",null,null,864,"O","Input!O864",{"$f":"_xlfn.XLOOKUP(F2919,'Raw Data'!$I$4:$I$5000,'Raw Data'!$E$4:$E$5000,100,0)","v":100},{"$f":"IF(N2919=0,_xlfn.XLOOKUP(F2919,'Raw Data'!$I$4:$I$5000,'Raw Data'!$H$4:$H$5000,\"\",0),\"\")","v":""},{"$f":"IF(INDIRECT(M2919) = \"\",\"\",INDIRECT(M2919))","v":""},"c"]
["SUCMFCPROD_4_C",null,null,null,{"$f":"_xlfn.XLOOKUP(F2920,'Raw Data'!$I$4:$I$5000,'Raw Data'!$D$4:$D$5000,\"*** Mnemonic not found ***\",0)","v":"*** Mnemonic not found ***"},"SUCMFCPROD_4_C__",null,"Input",null,null,865,{"$f":"L2919","v":"O"},"Input!O865",{"$f":"_xlfn.XLOOKUP(F2920,'Raw Data'!$I$4:$I$5000,'Raw Data'!$E$4:$E$5000,100,0)","v":100},{"$f":"IF(N2920=0,_xlfn.XLOOKUP(F2920,'Raw Data'!$I$4:$I$5000,'Raw Data'!$H$4:$H$5000,\"\",0),\"\")","v":""},{"$f":"IF(INDIRECT(M2920) = \"\",\"\",INDIRECT(M2920))","v":""},"c"]
["SUCMFCPROD_5_C",null,null,null,{"$f":"_xlfn.XLOOKUP(F2921,'Raw Data'!$I$4:$I$5000,'Raw Data'!$D$4:$D$5000,\"*** Mnemonic not found ***\",0)","v":"*** Mnemonic not found ***"},"SUCMFCPROD_5_C__",null,"Input",null,null,866,{"$f":"L2920","v":"O"},"Input!O866",{"$f":"_xlfn.XLOOKUP(F2921,'Raw Data'!$I$4:$I$5000,'Raw Data'!$E$4:$E$5000,100,0)","v":100},{"$f":"IF(N2921=0,_xlfn.XLOOKUP(F2921,'Raw Data'!$I$4:$I$5000,'Raw Data'!$H$4:$H$5000,\"\",0),\"\")","v":""},{"$f":"IF(INDIRECT(M2921) = \"\",\"\",INDIRECT(M2921))","v":""},"c"]
["SUCMFCPROD_6_C",null,null,null,{"$f":"_xlfn.XLOOKUP(F2922,'Raw Data'!$I$4:$I$5000,'Raw Data'!$D$4:$D$5000,\"*** Mnemonic not found ***\",0)","v":"*** Mnemonic not found ***"},"SUCMFCPROD_6_C__",null,"Input",null,null,867,"O","Input!O867",{"$f":"_xlfn.XLOOKUP(F2922,'Raw Data'!$I$4:$I$5000,'Raw Data'!$E$4:$E$5000,100,0)","v":100},{"$f":"IF(N2922=0,_xlfn.XLOOKUP(F2922,'Raw Data'!$I$4:$I$5000,'Raw Data'!$H$4:$H$5000,\"\",0),\"\")","v":""},{"$f":"IF(INDIRECT(M2922) = \"\",\"\",INDIRECT(M2922))","v":""},"c"]
["SUCMFCPROD_7_C",null,null,null,{"$f":"_xlfn.XLOOKUP(F2923,'Raw Data'!$I$4:$I$5000,'Raw Data'!$D$4:$D$5000,\"*** Mnemonic not found ***\",0)","v":"*** Mnemonic not found ***"},"SUCMFCPROD_7_C__",null,"Input",null,null,868,"O","Input!O868",{"$f":"_xlfn.XLOOKUP(F2923,'Raw Data'!$I$4:$I$5000,'Raw Data'!$E$4:$E$5000,100,0)","v":100},{"$f":"IF(N2923=0,_xlfn.XLOOKUP(F2923,'Raw Data'!$I$4:$I$5000,'Raw Data'!$H$4:$H$5000,\"\",0),\"\")","v":""},{"$f":"IF(INDIRECT(M2923) = \"\",\"\",INDIRECT(M2923))","v":""},"c"]
["SUCMFCPROD_8_C",null,null,null,{"$f":"_xlfn.XLOOKUP(F2924,'Raw Data'!$I$4:$I$5000,'Raw Data'!$D$4:$D$5000,\"*** Mnemonic not found ***\",0)","v":"*** Mnemonic not found ***"},"SUCMFCPROD_8_C__",null,"Input",null,null,869,"O","Input!O869",{"$f":"_xlfn.XLOOKUP(F2924,'Raw Data'!$I$4:$I$5000,'Raw Data'!$E$4:$E$5000,100,0)","v":100},{"$f":"IF(N2924=0,_xlfn.XLOOKUP(F2924,'Raw Data'!$I$4:$I$5000,'Raw Data'!$H$4:$H$5000,\"\",0),\"\")","v":""},{"$f":"IF(INDIRECT(M2924) = \"\",\"\",INDIRECT(M2924))","v":""},"c"]
["SUCMFCPROD_9_C",null,null,null,{"$f":"_xlfn.XLOOKUP(F2925,'Raw Data'!$I$4:$I$5000,'Raw Data'!$D$4:$D$5000,\"*** Mnemonic not found ***\",0)","v":"*** Mnemonic not found ***"},"SUCMFCPROD_9_C__",null,"Input",null,null,870,"O","Input!O870",{"$f":"_xlfn.XLOOKUP(F2925,'Raw Data'!$I$4:$I$5000,'Raw Data'!$E$4:$E$5000,100,0)","v":100},{"$f":"IF(N2925=0,_xlfn.XLOOKUP(F2925,'Raw Data'!$I$4:$I$5000,'Raw Data'!$H$4:$H$5000,\"\",0),\"\")","v":""},{"$f":"IF(INDIRECT(M2925) = \"\",\"\",INDIRECT(M2925))","v":""},"c"]
["SUCMFCPROD_10_C",null,null,null,{"$f":"_xlfn.XLOOKUP(F2926,'Raw Data'!$I$4:$I$5000,'Raw Data'!$D$4:$D$5000,\"*** Mnemonic not found ***\",0)","v":"*** Mnemonic not found ***"},"SUCMFCPROD_10_C__",null,"Input",null,null,871,"O","Input!O871",{"$f":"_xlfn.XLOOKUP(F2926,'Raw Data'!$I$4:$I$5000,'Raw Data'!$E$4:$E$5000,100,0)","v":100},{"$f":"IF(N2926=0,_xlfn.XLOOKUP(F2926,'Raw Data'!$I$4:$I$5000,'Raw Data'!$H$4:$H$5000,\"\",0),\"\")","v":""},{"$f":"IF(INDIRECT(M2926) = \"\",\"\",INDIRECT(M2926))","v":""},"c"]
["SUCMFCPROD_11_C",null,null,null,{"$f":"_xlfn.XLOOKUP(F2927,'Raw Data'!$I$4:$I$5000,'Raw Data'!$D$4:$D$5000,\"*** Mnemonic not found ***\",0)","v":"*** Mnemonic not found ***"},"SUCMFCPROD_11_C__",null,"Input",null,null,872,"O","Input!O872",{"$f":"_xlfn.XLOOKUP(F2927,'Raw Data'!$I$4:$I$5000,'Raw Data'!$E$4:$E$5000,100,0)","v":100},{"$f":"IF(N2927=0,_xlfn.XLOOKUP(F2927,'Raw Data'!$I$4:$I$5000,'Raw Data'!$H$4:$H$5000,\"\",0),\"\")","v":""},{"$f":"IF(INDIRECT(M2927) = \"\",\"\",INDIRECT(M2927))","v":""},"c"]
["SUCMFCPROD_12_C",null,null,null,{"$f":"_xlfn.XLOOKUP(F2928,'Raw Data'!$I$4:$I$5000,'Raw Data'!$D$4:$D$5000,\"*** Mnemonic not found ***\",0)","v":"*** Mnemonic not found ***"},"SUCMFCPROD_12_C__",null,"Input",null,null,873,"O","Input!O873",{"$f":"_xlfn.XLOOKUP(F2928,'Raw Data'!$I$4:$I$5000,'Raw Data'!$E$4:$E$5000,100,0)","v":100},{"$f":"IF(N2928=0,_xlfn.XLOOKUP(F2928,'Raw Data'!$I$4:$I$5000,'Raw Data'!$H$4:$H$5000,\"\",0),\"\")","v":""},{"$f":"IF(INDIRECT(M2928) = \"\",\"\",INDIRECT(M2928))","v":""},"c"]
["SUCMFCPROD_13_C",null,null,null,{"$f":"_xlfn.XLOOKUP(F2929,'Raw Data'!$I$4:$I$5000,'Raw Data'!$D$4:$D$5000,\"*** Mnemonic not found ***\",0)","v":"*** Mnemonic not found ***"},"SUCMFCPROD_13_C__",null,"Input",null,null,874,{"$f":"L2928","v":"O"},"Input!O874",{"$f":"_xlfn.XLOOKUP(F2929,'Raw Data'!$I$4:$I$5000,'Raw Data'!$E$4:$E$5000,100,0)","v":100},{"$f":"IF(N2929=0,_xlfn.XLOOKUP(F2929,'Raw Data'!$I$4:$I$5000,'Raw Data'!$H$4:$H$5000,\"\",0),\"\")","v":""},{"$f":"IF(INDIRECT(M2929) = \"\",\"\",INDIRECT(M2929))","v":""},"c"]
["SUCMFCPROD_14_C",null,null,null,{"$f":"_xlfn.XLOOKUP(F2930,'Raw Data'!$I$4:$I$5000,'Raw Data'!$D$4:$D$5000,\"*** Mnemonic not found ***\",0)","v":"*** Mnemonic not found ***"},"SUCMFCPROD_14_C__",null,"Input",null,null,875,{"$f":"L2929","v":"O"},"Input!O875",{"$f":"_xlfn.XLOOKUP(F2930,'Raw Data'!$I$4:$I$5000,'Raw Data'!$E$4:$E$5000,100,0)","v":100},{"$f":"IF(N2930=0,_xlfn.XLOOKUP(F2930,'Raw Data'!$I$4:$I$5000,'Raw Data'!$H$4:$H$5000,\"\",0),\"\")","v":""},{"$f":"IF(INDIRECT(M2930) = \"\",\"\",INDIRECT(M2930))","v":""},"c"]
["SUCMFCPROD_15_C",null,null,null,{"$f":"_xlfn.XLOOKUP(F2931,'Raw Data'!$I$4:$I$5000,'Raw Data'!$D$4:$D$5000,\"*** Mnemonic not found ***\",0)","v":"*** Mnemonic not found ***"},"SUCMFCPROD_15_C__",null,"Input",null,null,876,"O","Input!O876",{"$f":"_xlfn.XLOOKUP(F2931,'Raw Data'!$I$4:$I$5000,'Raw Data'!$E$4:$E$5000,100,0)","v":100},{"$f":"IF(N2931=0,_xlfn.XLOOKUP(F2931,'Raw Data'!$I$4:$I$5000,'Raw Data'!$H$4:$H$5000,\"\",0),\"\")","v":""},{"$f":"IF(INDIRECT(M2931) = \"\",\"\",INDIRECT(M2931))","v":""},"c"]
["SUCMFCPROD_16_C",null,null,null,{"$f":"_xlfn.XLOOKUP(F2932,'Raw Data'!$I$4:$I$5000,'Raw Data'!$D$4:$D$5000,\"*** Mnemonic not found ***\",0)","v":"*** Mnemonic not found ***"},"SUCMFCPROD_16_C__",null,"Input",null,null,877,{"$f":"L2931","v":"O"},"Input!O877",{"$f":"_xlfn.XLOOKUP(F2932,'Raw Data'!$I$4:$I$5000,'Raw Data'!$E$4:$E$5000,100,0)","v":100},{"$f":"IF(N2932=0,_xlfn.XLOOKUP(F2932,'Raw Data'!$I$4:$I$5000,'Raw Data'!$H$4:$H$5000,\"\",0),\"\")","v":""},{"$f":"IF(INDIRECT(M2932) = \"\",\"\",INDIRECT(M2932))","v":""},"c"]
["SUCMFCPROD_17_C",null,null,null,{"$f":"_xlfn.XLOOKUP(F2933,'Raw Data'!$I$4:$I$5000,'Raw Data'!$D$4:$D$5000,\"*** Mnemonic not found ***\",0)","v":"*** Mnemonic not found ***"},"SUCMFCPROD_17_C__",null,"Input",null,null,878,{"$f":"L2932","v":"O"},"Input!O878",{"$f":"_xlfn.XLOOKUP(F2933,'Raw Data'!$I$4:$I$5000,'Raw Data'!$E$4:$E$5000,100,0)","v":100},{"$f":"IF(N2933=0,_xlfn.XLOOKUP(F2933,'Raw Data'!$I$4:$I$5000,'Raw Data'!$H$4:$H$5000,\"\",0),\"\")","v":""},{"$f":"IF(INDIRECT(M2933) = \"\",\"\",INDIRECT(M2933))","v":""},"c"]
["SUCMFCPROD_18_C",null,null,null,{"$f":"_xlfn.XLOOKUP(F2934,'Raw Data'!$I$4:$I$5000,'Raw Data'!$D$4:$D$5000,\"*** Mnemonic not found ***\",0)","v":"*** Mnemonic not found ***"},"SUCMFCPROD_18_C__",null,"Input",null,null,879,"O","Input!O879",{"$f":"_xlfn.XLOOKUP(F2934,'Raw Data'!$I$4:$I$5000,'Raw Data'!$E$4:$E$5000,100,0)","v":100},{"$f":"IF(N2934=0,_xlfn.XLOOKUP(F2934,'Raw Data'!$I$4:$I$5000,'Raw Data'!$H$4:$H$5000,\"\",0),\"\")","v":""},{"$f":"IF(INDIRECT(M2934) = \"\",\"\",INDIRECT(M2934))","v":""},"c"]
["SUCMFCPROD_19_C",null,null,null,{"$f":"_xlfn.XLOOKUP(F2935,'Raw Data'!$I$4:$I$5000,'Raw Data'!$D$4:$D$5000,\"*** Mnemonic not found ***\",0)","v":"*** Mnemonic not found ***"},"SUCMFCPROD_19_C__",null,"Input",null,null,880,"O","Input!O880",{"$f":"_xlfn.XLOOKUP(F2935,'Raw Data'!$I$4:$I$5000,'Raw Data'!$E$4:$E$5000,100,0)","v":100},{"$f":"IF(N2935=0,_xlfn.XLOOKUP(F2935,'Raw Data'!$I$4:$I$5000,'Raw Data'!$H$4:$H$5000,\"\",0),\"\")","v":""},{"$f":"IF(INDIRECT(M2935) = \"\",\"\",INDIRECT(M2935))","v":""},"c"]
["SUCMFCPROD_20_C",null,null,null,{"$f":"_xlfn.XLOOKUP(F2936,'Raw Data'!$I$4:$I$5000,'Raw Data'!$D$4:$D$5000,\"*** Mnemonic not found ***\",0)","v":"*** Mnemonic not found ***"},"SUCMFCPROD_20_C__",null,"Input",null,null,881,"O","Input!O881",{"$f":"_xlfn.XLOOKUP(F2936,'Raw Data'!$I$4:$I$5000,'Raw Data'!$E$4:$E$5000,100,0)","v":100},{"$f":"IF(N2936=0,_xlfn.XLOOKUP(F2936,'Raw Data'!$I$4:$I$5000,'Raw Data'!$H$4:$H$5000,\"\",0),\"\")","v":""},{"$f":"IF(INDIRECT(M2936) = \"\",\"\",INDIRECT(M2936))","v":""},"c"]
["SUCMFCPROD_21_C",null,null,null,{"$f":"_xlfn.XLOOKUP(F2937,'Raw Data'!$I$4:$I$5000,'Raw Data'!$D$4:$D$5000,\"*** Mnemonic not found ***\",0)","v":"*** Mnemonic not found ***"},"SUCMFCPROD_21_C__",null,"Input",null,null,882,"O","Input!O882",{"$f":"_xlfn.XLOOKUP(F2937,'Raw Data'!$I$4:$I$5000,'Raw Data'!$E$4:$E$5000,100,0)","v":100},{"$f":"IF(N2937=0,_xlfn.XLOOKUP(F2937,'Raw Data'!$I$4:$I$5000,'Raw Data'!$H$4:$H$5000,\"\",0),\"\")","v":""},{"$f":"IF(INDIRECT(M2937) = \"\",\"\",INDIRECT(M2937))","v":""},"c"]
["SUCMFCPROD_22_C",null,null,null,{"$f":"_xlfn.XLOOKUP(F2938,'Raw Data'!$I$4:$I$5000,'Raw Data'!$D$4:$D$5000,\"*** Mnemonic not found ***\",0)","v":"*** Mnemonic not found ***"},"SUCMFCPROD_22_C__",null,"Input",null,null,883,"O","Input!O883",{"$f":"_xlfn.XLOOKUP(F2938,'Raw Data'!$I$4:$I$5000,'Raw Data'!$E$4:$E$5000,100,0)","v":100},{"$f":"IF(N2938=0,_xlfn.XLOOKUP(F2938,'Raw Data'!$I$4:$I$5000,'Raw Data'!$H$4:$H$5000,\"\",0),\"\")","v":""},{"$f":"IF(INDIRECT(M2938) = \"\",\"\",INDIRECT(M2938))","v":""},"c"]
["SUCMFCPROD_23_C",null,null,null,{"$f":"_xlfn.XLOOKUP(F2939,'Raw Data'!$I$4:$I$5000,'Raw Data'!$D$4:$D$5000,\"*** Mnemonic not found ***\",0)","v":"*** Mnemonic not found ***"},"SUCMFCPROD_23_C__",null,"Input",null,null,884,{"$f":"L2938","v":"O"},"Input!O884",{"$f":"_xlfn.XLOOKUP(F2939,'Raw Data'!$I$4:$I$5000,'Raw Data'!$E$4:$E$5000,100,0)","v":100},{"$f":"IF(N2939=0,_xlfn.XLOOKUP(F2939,'Raw Data'!$I$4:$I$5000,'Raw Data'!$H$4:$H$5000,\"\",0),\"\")","v":""},{"$f":"IF(INDIRECT(M2939) = \"\",\"\",INDIRECT(M2939))","v":""},"c"]
["SUCMFCPROD_24_C",null,null,null,{"$f":"_xlfn.XLOOKUP(F2940,'Raw Data'!$I$4:$I$5000,'Raw Data'!$D$4:$D$5000,\"*** Mnemonic not found ***\",0)","v":"*** Mnemonic not found ***"},"SUCMFCPROD_24_C__",null,"Input",null,null,885,{"$f":"L2939","v":"O"},"Input!O885",{"$f":"_xlfn.XLOOKUP(F2940,'Raw Data'!$I$4:$I$5000,'Raw Data'!$E$4:$E$5000,100,0)","v":100},{"$f":"IF(N2940=0,_xlfn.XLOOKUP(F2940,'Raw Data'!$I$4:$I$5000,'Raw Data'!$H$4:$H$5000,\"\",0),\"\")","v":""},{"$f":"IF(INDIRECT(M2940) = \"\",\"\",INDIRECT(M2940))","v":""},"c"]
["SUCMFCPROD_25_C",null,null,null,{"$f":"_xlfn.XLOOKUP(F2941,'Raw Data'!$I$4:$I$5000,'Raw Data'!$D$4:$D$5000,\"*** Mnemonic not found ***\",0)","v":"*** Mnemonic not found ***"},"SUCMFCPROD_25_C__",null,"Input",null,null,886,"O","Input!O886",{"$f":"_xlfn.XLOOKUP(F2941,'Raw Data'!$I$4:$I$5000,'Raw Data'!$E$4:$E$5000,100,0)","v":100},{"$f":"IF(N2941=0,_xlfn.XLOOKUP(F2941,'Raw Data'!$I$4:$I$5000,'Raw Data'!$H$4:$H$5000,\"\",0),\"\")","v":""},{"$f":"IF(INDIRECT(M2941) = \"\",\"\",INDIRECT(M2941))","v":""},"c"]
["SUCMFCPROD_26_C",null,null,null,{"$f":"_xlfn.XLOOKUP(F2942,'Raw Data'!$I$4:$I$5000,'Raw Data'!$D$4:$D$5000,\"*** Mnemonic not found ***\",0)","v":"*** Mnemonic not found ***"},"SUCMFCPROD_26_C__",null,"Input",null,null,887,{"$f":"L2941","v":"O"},"Input!O887",{"$f":"_xlfn.XLOOKUP(F2942,'Raw Data'!$I$4:$I$5000,'Raw Data'!$E$4:$E$5000,100,0)","v":100},{"$f":"IF(N2942=0,_xlfn.XLOOKUP(F2942,'Raw Data'!$I$4:$I$5000,'Raw Data'!$H$4:$H$5000,\"\",0),\"\")","v":""},{"$f":"IF(INDIRECT(M2942) = \"\",\"\",INDIRECT(M2942))","v":""},"c"]
["SUCMFCPROD_27_C",null,null,null,{"$f":"_xlfn.XLOOKUP(F2943,'Raw Data'!$I$4:$I$5000,'Raw Data'!$D$4:$D$5000,\"*** Mnemonic not found ***\",0)","v":"*** Mnemonic not found ***"},"SUCMFCPROD_27_C__",null,"Input",null,null,888,{"$f":"L2942","v":"O"},"Input!O888",{"$f":"_xlfn.XLOOKUP(F2943,'Raw Data'!$I$4:$I$5000,'Raw Data'!$E$4:$E$5000,100,0)","v":100},{"$f":"IF(N2943=0,_xlfn.XLOOKUP(F2943,'Raw Data'!$I$4:$I$5000,'Raw Data'!$H$4:$H$5000,\"\",0),\"\")","v":""},{"$f":"IF(INDIRECT(M2943) = \"\",\"\",INDIRECT(M2943))","v":""},"c"]
["SUCMFCPROD_28_C",null,null,null,{"$f":"_xlfn.XLOOKUP(F2944,'Raw Data'!$I$4:$I$5000,'Raw Data'!$D$4:$D$5000,\"*** Mnemonic not found ***\",0)","v":"*** Mnemonic not found ***"},"SUCMFCPROD_28_C__",null,"Input",null,null,889,"O","Input!O889",{"$f":"_xlfn.XLOOKUP(F2944,'Raw Data'!$I$4:$I$5000,'Raw Data'!$E$4:$E$5000,100,0)","v":100},{"$f":"IF(N2944=0,_xlfn.XLOOKUP(F2944,'Raw Data'!$I$4:$I$5000,'Raw Data'!$H$4:$H$5000,\"\",0),\"\")","v":""},{"$f":"IF(INDIRECT(M2944) = \"\",\"\",INDIRECT(M2944))","v":""},"c"]
["SUCMFCPROD_29_C",null,null,null,{"$f":"_xlfn.XLOOKUP(F2945,'Raw Data'!$I$4:$I$5000,'Raw Data'!$D$4:$D$5000,\"*** Mnemonic not found ***\",0)","v":"*** Mnemonic not found ***"},"SUCMFCPROD_29_C__",null,"Input",null,null,890,"O","Input!O890",{"$f":"_xlfn.XLOOKUP(F2945,'Raw Data'!$I$4:$I$5000,'Raw Data'!$E$4:$E$5000,100,0)","v":100},{"$f":"IF(N2945=0,_xlfn.XLOOKUP(F2945,'Raw Data'!$I$4:$I$5000,'Raw Data'!$H$4:$H$5000,\"\",0),\"\")","v":""},{"$f":"IF(INDIRECT(M2945) = \"\",\"\",INDIRECT(M2945))","v":""},"c"]
["SUCMFCPROD_30_C",null,null,null,{"$f":"_xlfn.XLOOKUP(F2946,'Raw Data'!$I$4:$I$5000,'Raw Data'!$D$4:$D$5000,\"*** Mnemonic not found ***\",0)","v":"*** Mnemonic not found ***"},"SUCMFCPROD_30_C__",null,"Input",null,null,891,"O","Input!O891",{"$f":"_xlfn.XLOOKUP(F2946,'Raw Data'!$I$4:$I$5000,'Raw Data'!$E$4:$E$5000,100,0)","v":100},{"$f":"IF(N2946=0,_xlfn.XLOOKUP(F2946,'Raw Data'!$I$4:$I$5000,'Raw Data'!$H$4:$H$5000,\"\",0),\"\")","v":""},{"$f":"IF(INDIRECT(M2946) = \"\",\"\",INDIRECT(M2946))","v":""},"c"]
["SUCMFCPROD_31_C",null,null,null,{"$f":"_xlfn.XLOOKUP(F2947,'Raw Data'!$I$4:$I$5000,'Raw Data'!$D$4:$D$5000,\"*** Mnemonic not found ***\",0)","v":"*** Mnemonic not found ***"},"SUCMFCPROD_31_C__",null,"Input",null,null,892,"O","Input!O892",{"$f":"_xlfn.XLOOKUP(F2947,'Raw Data'!$I$4:$I$5000,'Raw Data'!$E$4:$E$5000,100,0)","v":100},{"$f":"IF(N2947=0,_xlfn.XLOOKUP(F2947,'Raw Data'!$I$4:$I$5000,'Raw Data'!$H$4:$H$5000,\"\",0),\"\")","v":""},{"$f":"IF(INDIRECT(M2947) = \"\",\"\",INDIRECT(M2947))","v":""},"c"]
["SUCMFCPROD_32_C",null,null,null,{"$f":"_xlfn.XLOOKUP(F2948,'Raw Data'!$I$4:$I$5000,'Raw Data'!$D$4:$D$5000,\"*** Mnemonic not found ***\",0)","v":"*** Mnemonic not found ***"},"SUCMFCPROD_32_C__",null,"Input",null,null,893,"O","Input!O893",{"$f":"_xlfn.XLOOKUP(F2948,'Raw Data'!$I$4:$I$5000,'Raw Data'!$E$4:$E$5000,100,0)","v":100},{"$f":"IF(N2948=0,_xlfn.XLOOKUP(F2948,'Raw Data'!$I$4:$I$5000,'Raw Data'!$H$4:$H$5000,\"\",0),\"\")","v":""},{"$f":"IF(INDIRECT(M2948) = \"\",\"\",INDIRECT(M2948))","v":""},"c"]
["SUCMFCPROD_33_C",null,null,null,{"$f":"_xlfn.XLOOKUP(F2949,'Raw Data'!$I$4:$I$5000,'Raw Data'!$D$4:$D$5000,\"*** Mnemonic not found ***\",0)","v":"*** Mnemonic not found ***"},"SUCMFCPROD_33_C__",null,"Input",null,null,894,"O","Input!O894",{"$f":"_xlfn.XLOOKUP(F2949,'Raw Data'!$I$4:$I$5000,'Raw Data'!$E$4:$E$5000,100,0)","v":100},{"$f":"IF(N2949=0,_xlfn.XLOOKUP(F2949,'Raw Data'!$I$4:$I$5000,'Raw Data'!$H$4:$H$5000,\"\",0),\"\")","v":""},{"$f":"IF(INDIRECT(M2949) = \"\",\"\",INDIRECT(M2949))","v":""},"c"]
["SUCMFCPROD_34_C",null,null,null,{"$f":"_xlfn.XLOOKUP(F2950,'Raw Data'!$I$4:$I$5000,'Raw Data'!$D$4:$D$5000,\"*** Mnemonic not found ***\",0)","v":"*** Mnemonic not found ***"},"SUCMFCPROD_34_C__",null,"Input",null,null,895,"O","Input!O895",{"$f":"_xlfn.XLOOKUP(F2950,'Raw Data'!$I$4:$I$5000,'Raw Data'!$E$4:$E$5000,100,0)","v":100},{"$f":"IF(N2950=0,_xlfn.XLOOKUP(F2950,'Raw Data'!$I$4:$I$5000,'Raw Data'!$H$4:$H$5000,\"\",0),\"\")","v":""},{"$f":"IF(INDIRECT(M2950) = \"\",\"\",INDIRECT(M2950))","v":""},"c"]
["SUCMFCPROD_35_C",null,null,null,{"$f":"_xlfn.XLOOKUP(F2951,'Raw Data'!$I$4:$I$5000,'Raw Data'!$D$4:$D$5000,\"*** Mnemonic not found ***\",0)","v":"*** Mnemonic not found ***"},"SUCMFCPROD_35_C__",null,"Input",null,null,896,{"$f":"L2950","v":"O"},"Input!O896",{"$f":"_xlfn.XLOOKUP(F2951,'Raw Data'!$I$4:$I$5000,'Raw Data'!$E$4:$E$5000,100,0)","v":100},{"$f":"IF(N2951=0,_xlfn.XLOOKUP(F2951,'Raw Data'!$I$4:$I$5000,'Raw Data'!$H$4:$H$5000,\"\",0),\"\")","v":""},{"$f":"IF(INDIRECT(M2951) = \"\",\"\",INDIRECT(M2951))","v":""},"c"]
["SUCMRSR_C",null,null,null,{"$f":"_xlfn.XLOOKUP(F2952,'Raw Data'!$I$4:$I$5000,'Raw Data'!$D$4:$D$5000,\"*** Mnemonic not found ***\",0)","v":"*** Mnemonic not found ***"},"SUCMRSR_C__","Comments - Additional Info.","Input",{"$f":"ROW(section_additional_information)","v":899},2,{"$f":"I2952+J2952","v":901},{"$f":"L2951","v":"O"},"Input!O901",{"$f":"_xlfn.XLOOKUP(F2952,'Raw Data'!$I$4:$I$5000,'Raw Data'!$E$4:$E$5000,100,0)","v":100},{"$f":"IF(N2952=0,_xlfn.XLOOKUP(F2952,'Raw Data'!$I$4:$I$5000,'Raw Data'!$H$4:$H$5000,\"\",0),\"\")","v":""},{"$f":"IF(INDIRECT(M2952) = \"\",\"\",INDIRECT(M2952))","v":""},"c"]
["SUCMNONLIFEDAC_C",null,null,null,{"$f":"_xlfn.XLOOKUP(F2953,'Raw Data'!$I$4:$I$5000,'Raw Data'!$D$4:$D$5000,\"*** Mnemonic not found ***\",0)","v":"*** Mnemonic not found ***"},"SUCMNONLIFEDAC_C__",null,"Input",null,null,{"$f":"K2952+1","v":902},{"$f":"L2952","v":"O"},"Input!O902",{"$f":"_xlfn.XLOOKUP(F2953,'Raw Data'!$I$4:$I$5000,'Raw Data'!$E$4:$E$5000,100,0)","v":100},{"$f":"IF(N2953=0,_xlfn.XLOOKUP(F2953,'Raw Data'!$I$4:$I$5000,'Raw Data'!$H$4:$H$5000,\"\",0),\"\")","v":""},{"$f":"IF(INDIRECT(M2953) = \"\",\"\",INDIRECT(M2953))","v":""},"c"]
["SUCMNETUPR_C",null,null,null,{"$f":"_xlfn.XLOOKUP(F2954,'Raw Data'!$I$4:$I$5000,'Raw Data'!$D$4:$D$5000,\"*** Mnemonic not found ***\",0)","v":"*** Mnemonic not found ***"},"SUCMNETUPR_C__",null,"Input",null,null,903,"O","Input!O903",{"$f":"_xlfn.XLOOKUP(F2954,'Raw Data'!$I$4:$I$5000,'Raw Data'!$E$4:$E$5000,100,0)","v":100},{"$f":"IF(N2954=0,_xlfn.XLOOKUP(F2954,'Raw Data'!$I$4:$I$5000,'Raw Data'!$H$4:$H$5000,\"\",0),\"\")","v":""},{"$f":"IF(INDIRECT(M2954) = \"\",\"\",INDIRECT(M2954))","v":""},"c"]

{"sheet":"Data storage - Outputs","index":20,"n_rows":120,"n_cols":31,"rows_kept":120,"cut":false,"hidden":true,"merged":[]}
[]
[null,"Level 1","Level 2.1","Level 3","Level 4","Level 5","level 6","level 7","Key","Sheet","Section Start Row","Row Offset","Row","Column","Cell address","Value","Level 2.2","Key","Column","Cell address","Value","Level 2.3","Key","Column","Cell address","Value","Level 2.4","Key","Column","Cell address","Value"]
[null,"tac","shareholders_equity",null,null,null,null,null,{"$f":"CONCATENATE($B3, \":\",C3,\":\",$D3,\":\",$E3,\":\",$F3,\":\",$G3,\":\",$H3)","v":"tac:shareholders_equity:::::"},"Output",{"$f":"ROW(out_section_tac)","v":15},2,{"$f":"K3+L3","v":17},"H",{"$f":"CONCATENATE($J3,\"!\",N3,$M3)","v":"Output!H17"},{"$f":"INDIRECT(O3)","v":0},null,{"$f":"IF(Q3=\"\",\"\",CONCATENATE($B3,\":\",Q3,\":\",$D3,\":\",$E3,\":\",$F3,\":\",$G3,\":\",$H3))","v":""},"J",{"$f":"CONCATENATE($J3,\"!\",S3,$M3)","v":"Output!J17"},{"$f":"INDIRECT(T3)","v":0},null,{"$f":"IF(V3=\"\",\"\",CONCATENATE($B3,\":\",V3,\":\",$D3,\":\",$E3,\":\",$F3,\":\",$G3,\":\",$H3))","v":""},"L",{"$f":"CONCATENATE($J3,\"!\",X3,$M3)","v":"Output!L17"},{"$f":"INDIRECT(Y3)","v":0},null,{"$f":"IF(AA3=\"\",\"\",CONCATENATE($B3,\":\",AA3,\":\",$D3,\":\",$E3,\":\",$F3,\":\",$G3,\":\",$H3))","v":""},"N",{"$f":"CONCATENATE($J3,\"!\",AC3,$M3)","v":"Output!N17"},{"$f":"INDIRECT(AD3)","v":0}]
[null,{"$f":"B3","v":"tac"},"equity_non_control_interests",null,null,null,null,null,{"$f":"CONCATENATE($B4, \":\",C4,\":\",$D4,\":\",$E4,\":\",$F4,\":\",$G4,\":\",$H4)","v":"tac:equity_non_control_interests:::::"},"Output",null,1,{"$f":"M3+L4","v":18},{"$f":"N3","v":"H"},{"$f":"CONCATENATE($J4,\"!\",N4,$M4)","v":"Output!H18"},{"$f":"INDIRECT(O4)","v":0},null,{"$f":"IF(Q4=\"\",\"\",CONCATENATE($B4,\":\",Q4,\":\",$D4,\":\",$E4,\":\",$F4,\":\",$G4,\":\",$H4))","v":""},{"$f":"S3","v":"J"},{"$f":"CONCATENATE($J4,\"!\",S4,$M4)","v":"Output!J18"},{"$f":"INDIRECT(T4)","v":0},null,{"$f":"IF(V4=\"\",\"\",CONCATENATE($B4,\":\",V4,\":\",$D4,\":\",$E4,\":\",$F4,\":\",$G4,\":\",$H4))","v":""},{"$f":"X3","v":"L"},{"$f":"CONCATENATE($J4,\"!\",X4,$M4)","v":"Output!L18"},{"$f":"INDIRECT(Y4)","v":0},null,{"$f":"IF(AA4=\"\",\"\",CONCATENATE($B4,\":\",AA4,\":\",$D4,\":\",$E4,\":\",$F4,\":\",$G4,\":\",$H4))","v":""},{"$f":"AC3","v":"N"},{"$f":"CONCATENATE($J4,\"!\",AC4,$M4)","v":"Output!N18"},{"$f":"INDIRECT(AD4)","v":0}]
[null,{"$f":"B4","v":"tac"},"invest_own_shares",null,null,null,null,null,"tac:invest_own_shares:::::","Output",null,1,{"$f":"M4+L5","v":19},{"$f":"N4","v":"H"},"Output!H19",{"$f":"INDIRECT(O5)","v":0},null,"",{"$f":"S4","v":"J"},"Output!J19",{"$f":"INDIRECT(T5)","v":0},null,"",{"$f":"X4","v":"L"},"Output!L19",{"$f":"INDIRECT(Y5)","v":0},null,"",{"$f":"AC4","v":"N"},"Output!N19",{"$f":"INDIRECT(AD5)","v":0}]
[null,"tac","shareholder_distrib",null,null,null,null,null,"tac:shareholder_distrib:::::","Output",null,1,20,"H","Output!H20",{"$f":"INDIRECT(O6)","v":0},null,"","J","Output!J20",{"$f":"INDIRECT(T6)","v":0},null,"","L","Output!L20",{"$f":"INDIRECT(Y6)","v":0},null,"","N","Output!N20",{"$f":"INDIRECT(AD6)","v":0}]
[null,"tac","intangible_assets",null,null,null,null,null,"tac:intangible_assets:::::","Output",null,1,21,"H","Output!H21",{"$f":"INDIRECT(O7)","v":0},null,"","J","Output!J21",{"$f":"INDIRECT(T7)","v":0},null,"","L","Output!L21",{"$f":"INDIRECT(Y7)","v":0},null,"","N","Output!N21",{"$f":"INDIRECT(AD7)","v":0}]
[null,"tac","employee_benefits",null,null,null,null,null,"tac:employee_benefits:::::","Output",null,1,22,"H","Output!H22",{"$f":"INDIRECT(O8)","v":0},null,"","J","Output!J22",{"$f":"INDIRECT(T8)","v":0},null,"","L","Output!L22",{"$f":"INDIRECT(Y8)","v":0},null,"","N","Output!N22",{"$f":"INDIRECT(AD8)","v":0}]
[null,"tac","unrealized_gains",null,null,null,null,null,"tac:unrealized_gains:::::","Output",null,1,23,"H","Output!H23",{"$f":"INDIRECT(O9)","v":0},null,"","J","Output!J23",{"$f":"INDIRECT(T9)","v":0},null,"","L","Output!L23",{"$f":"INDIRECT(Y9)","v":0},null,"","N","Output!N23",{"$f":"INDIRECT(AD9)","v":0}]
[null,"tac","reserve_adj_non_life",null,null,null,null,null,"tac:reserve_adj_non_life:::::","Output",null,1,24,"H","Output!H24",{"$f":"INDIRECT(O10)","v":0},null,"","J","Output!J24",{"$f":"INDIRECT(T10)","v":0},null,"","L","Output!L24",{"$f":"INDIRECT(Y10)","v":0},null,"","N","Output!N24",{"$f":"INDIRECT(AD10)","v":0}]
[null,"tac","reserve_adj_life",null,null,null,null,null,"tac:reserve_adj_life:::::","Output",null,1,25,"H","Output!H25",{"$f":"INDIRECT(O11)","v":0},null,"","J","Output!J25",{"$f":"INDIRECT(T11)","v":0},null,"","L","Output!L25",{"$f":"INDIRECT(Y11)","v":0},null,"","N","Output!N25",{"$f":"INDIRECT(AD11)","v":0}]
[null,"tac","hybrid_capital",null,null,null,null,null,"tac:hybrid_capital:::::","Output",null,1,26,"H","Output!H26",{"$f":"INDIRECT(O12)","v":0},null,"","J","Output!J26",{"$f":"INDIRECT(T12)","v":0},null,"","L","Output!L26",{"$f":"INDIRECT(Y12)","v":0},null,"","N","Output!N26",{"$f":"INDIRECT(AD12)","v":0}]
[null,"tac","invest_subsidiaries",null,null,null,null,null,"tac:invest_subsidiaries:::::","Output",null,1,27,"H","Output!H27",{"$f":"INDIRECT(O13)","v":0},null,"","J","Output!J27",{"$f":"INDIRECT(T13)","v":0},null,"","L","Output!L27",{"$f":"INDIRECT(Y13)","v":0},null,"","N","Output!N27",{"$f":"INDIRECT(AD13)","v":0}]
[null,"tac","polycyholder_capital",null,null,null,null,null,"tac:polycyholder_capital:::::","Output",null,1,28,"H","Output!H28",{"$f":"INDIRECT(O14)","v":0},null,"","J","Output!J28",{"$f":"INDIRECT(T14)","v":0},null,"","L","Output!L28",{"$f":"INDIRECT(Y14)","v":0},null,"","N","Output!N28",{"$f":"INDIRECT(AD14)","v":0}]
[null,"tac","unrealized_gains_on_inv_backing_life",null,null,null,null,null,"tac:unrealized_gains_on_inv_backing_life:::::","Output",null,1,29,"H","Output!H29",{"$f":"INDIRECT(O15)","v":0},null,"","J","Output!J29",{"$f":"INDIRECT(T15)","v":0},null,"","L","Output!L29",{"$f":"INDIRECT(Y15)","v":0},null,"","N","Output!N29",{"$f":"INDIRECT(AD15)","v":0}]
[null,{"$f":"B14","v":"tac"},"adjustments",null,null,null,null,null,"tac:adjustments:::::","Output",null,1,30,{"$f":"N14","v":"H"},"Output!H30",{"$f":"INDIRECT(O16)","v":0},null,"","J","Output!J30",{"$f":"INDIRECT(T16)","v":0},null,"","L","Output!L30",{"$f":"INDIRECT(Y16)","v":0},null,"","N","Output!N30",{"$f":"INDIRECT(AD16)","v":0}]
[null,"tac","total",null,null,null,null,null,"tac:total:::::","Output",null,1,31,"H","Output!H31",{"$f":"INDIRECT(O17)","v":0},null,"","J","Output!J31",{"$f":"INDIRECT(T17)","v":0},null,"","L","Output!L31",{"$f":"INDIRECT(Y17)","v":0},null,"","N","Output!N31",{"$f":"INDIRECT(AD17)","v":0}]
[null,"required_capital","99_99","asset_risk","credit_risk","total",null,null,"required_capital:99_99:asset_risk:credit_risk:total::","Output",{"$f":"ROW(out_section_asset_risk)","v":34},2,{"$f":"K18+L18","v":36},"H","Output!H36",{"$f":"INDIRECT(O18)","v":0},"99_95","required_capital:99_95:asset_risk:credit_risk:total::","J","Output!J36",{"$f":"INDIRECT(T18)","v":0},"99_80","required_capital:99_80:asset_risk:credit_risk:total::","L","Output!L36",{"$f":"INDIRECT(Y18)","v":0},"99_50","required_capital:99_50:asset_risk:credit_risk:total::","N","Output!N36",{"$f":"INDIRECT(AD18)","v":0}]
[null,{"$f":"B18","v":"required_capital"},{"$f":"C18","v":"99_99"},{"$f":"D18","v":"asset_risk"},"credit_risk","bonds",null,null,"required_capital:99_99:asset_risk:credit_risk:bonds::","Output",null,1,{"$f":"M18+L19","v":37},"H","Output!H37",{"$f":"INDIRECT(O19)","v":0},"99_95","required_capital:99_95:asset_risk:credit_risk:bonds::","J","Output!J37",{"$f":"INDIRECT(T19)","v":0},"99_80","required_capital:99_80:asset_risk:credit_risk:bonds::","L","Output!L37",{"$f":"INDIRECT(Y19)","v":0},"99_50","required_capital:99_50:asset_risk:credit_risk:bonds::","N","Output!N37",{"$f":"INDIRECT(AD19)","v":0}]
[null,{"$f":"B19","v":"required_capital"},{"$f":"C19","v":"99_99"},{"$f":"D19","v":"asset_risk"},"credit_risk","reins_recov",null,null,"required_capital:99_99:asset_risk:credit_risk:reins_recov::","Output",null,1,38,"H","Output!H38",{"$f":"INDIRECT(O20)","v":0},"99_95","required_capital:99_95:asset_risk:credit_risk:reins_recov::","J","Output!J38",{"$f":"INDIRECT(T20)","v":0},"99_80","required_capital:99_80:asset_risk:credit_risk:reins_recov::","L","Output!L38",{"$f":"INDIRECT(Y20)","v":0},"99_50","required_capital:99_50:asset_risk:credit_risk:reins_recov::","N","Output!N38",{"$f":"INDIRECT(AD20)","v":0}]
[null,"required_capital","99_99","asset_risk","credit_risk","mortgage",null,null,"required_capital:99_99:asset_risk:credit_risk:mortgage::","Output",null,1,39,"H","Output!H39",{"$f":"INDIRECT(O21)","v":0},"99_95","required_capital:99_95:asset_risk:credit_risk:mortgage::","J","Output!J39",{"$f":"INDIRECT(T21)","v":0},"99_80","required_capital:99_80:asset_risk:credit_risk:mortgage::","L","Output!L39",{"$f":"INDIRECT(Y21)","v":0},"99_50","required_capital:99_50:asset_risk:credit_risk:mortgage::","N","Output!N39",{"$f":"INDIRECT(AD21)","v":0}]
[null,"required_capital","99_99","asset_risk","credit_risk","bank_deposits",null,null,"required_capital:99_99:asset_risk:credit_risk:bank_deposits::","Output",null,1,40,"H","Output!H40",{"$f":"INDIRECT(O22)","v":0},"99_95","required_capital:99_95:asset_risk:credit_risk:bank_deposits::","J","Output!J40",{"$f":"INDIRECT(T22)","v":0},"99_80","required_capital:99_80:asset_risk:credit_risk:bank_deposits::","L","Output!L40",{"$f":"INDIRECT(Y22)","v":0},"99_50","required_capital:99_50:asset_risk:credit_risk:bank_deposits::","N","Output!N40",{"$f":"INDIRECT(AD22)","v":0}]
[null,"required_capital","99_99","asset_risk","credit_risk","otc_derivatives",null,null,"required_capital:99_99:asset_risk:credit_risk:otc_derivatives::","Output",null,1,41,"H","Output!H41",{"$f":"INDIRECT(O23)","v":0},"99_95","required_capital:99_95:asset_risk:credit_risk:otc_derivatives::","J","Output!J41",{"$f":"INDIRECT(T23)","v":0},"99_80","required_capital:99_80:asset_risk:credit_risk:otc_derivatives::","L","Output!L41",{"$f":"INDIRECT(Y23)","v":0},"99_50","required_capital:99_50:asset_risk:credit_risk:otc_derivatives::","N","Output!N41",{"$f":"INDIRECT(AD23)","v":0}]
[null,"required_capital","99_99","asset_risk","credit_risk","other_chargeables",null,null,"required_capital:99_99:asset_risk:credit_risk:other_chargeables::","Output",null,1,42,"H","Output!H42",{"$f":"INDIRECT(O24)","v":0},"99_95","required_capital:99_95:asset_risk:credit_risk:other_chargeables::","J","Output!J42",{"$f":"INDIRECT(T24)","v":0},"99_80","required_capital:99_80:asset_risk:credit_risk:other_chargeables::","L","Output!L42",{"$f":"INDIRECT(Y24)","v":0},"99_50","required_capital:99_50:asset_risk:credit_risk:other_chargeables::","N","Output!N42",{"$f":"INDIRECT(AD24)","v":0}]
[null,"required_capital","99_99","asset_risk","credit_risk","deposit_with_cedents",null,null,"required_capital:99_99:asset_risk:credit_risk:deposit_with_cedents::","Output",null,1,43,"H","Output!H43",{"$f":"INDIRECT(O25)","v":0},"99_95","required_capital:99_95:asset_risk:credit_risk:deposit_with_cedents::","J","Output!J43",{"$f":"INDIRECT(T25)","v":0},"99_80","required_capital:99_80:asset_risk:credit_risk:deposit_with_cedents::","L","Output!L43",{"$f":"INDIRECT(Y25)","v":0},"99_50","required_capital:99_50:asset_risk:credit_risk:deposit_with_cedents::","N","Output!N43",{"$f":"INDIRECT(AD25)","v":0}]
[null,"required_capital","99_99","asset_risk","market_risk","total",null,null,"required_capital:99_99:asset_risk:market_risk:total::","Output",null,1,44,"H","Output!H44",{"$f":"INDIRECT(O26)","v":0},"99_95","required_capital:99_95:asset_risk:market_risk:total::",{"$f":"S25","v":"J"},"Output!J44",{"$f":"INDIRECT(T26)","v":0},"99_80","required_capital:99_80:asset_risk:market_risk:total::","L",{"$f":"CONCATENATE($J26,\"!\",X26,$M26)","v":"Output!L44"},{"$f":"INDIRECT(Y26)","v":0},"99_50","required_capital:99_50:asset_risk:market_risk:total::","N",{"$f":"CONCATENATE($J26,\"!\",AC26,$M26)","v":"Output!N44"},{"$f":"INDIRECT(AD26)","v":0}]
[null,"required_capital","99_99","asset_risk","market_risk","equity",null,null,"required_capital:99_99:asset_risk:market_risk:equity::","Output",null,1,{"$f":"M26+L27","v":45},"H","Output!H45",{"$f":"INDIRECT(O27)","v":0},"99_95","required_capital:99_95:asset_risk:market_risk:equity::","J","Output!J45",{"$f":"INDIRECT(T27)","v":0},"99_80","required_capital:99_80:asset_risk:market_risk:equity::","L","Output!L45",{"$f":"INDIRECT(Y27)","v":0},"99_50","required_capital:99_50:asset_risk:market_risk:equity::","N","Output!N45",{"$f":"INDIRECT(AD27)","v":0}]
[null,"required_capital","99_99","asset_risk","market_risk","real_estate",null,null,"required_capital:99_99:asset_risk:market_risk:real_estate::","Output",null,1,46,"H","Output!H46",{"$f":"INDIRECT(O28)","v":0},"99_95","required_capital:99_95:asset_risk:market_risk:real_estate::","J","Output!J46",{"$f":"INDIRECT(T28)","v":0},"99_80","required_capital:99_80:asset_risk:market_risk:real_estate::","L","Output!L46",{"$f":"INDIRECT(Y28)","v":0},"99_50","required_capital:99_50:asset_risk:market_risk:real_estate::","N","Output!N46",{"$f":"INDIRECT(AD28)","v":0}]
[null,"required_capital","99_99","asset_risk","market_risk","interest_rate",null,null,"required_capital:99_99:asset_risk:market_risk:interest_rate::","Output",null,1,47,"H","Output!H47",{"$f":"INDIRECT(O29)","v":0},"99_95","required_capital:99_95:asset_risk:market_risk:interest_rate::","J","Output!J47",{"$f":"INDIRECT(T29)","v":0},"99_80","required_capital:99_80:asset_risk:market_risk:interest_rate::","L","Output!L47",{"$f":"INDIRECT(Y29)","v":0},"99_50","required_capital:99_50:asset_risk:market_risk:interest_rate::","N","Output!N47",{"$f":"INDIRECT(AD29)","v":0}]
[null,"required_capital","99_99","asset_risk","other_assets_risk",null,null,null,"required_capital:99_99:asset_risk:other_assets_risk:::","Output",null,2,49,"H","Output!H49",{"$f":"INDIRECT(O30)","v":0},"99_95","required_capital:99_95:asset_risk:other_assets_risk:::","J","Output!J49",{"$f":"INDIRECT(T30)","v":0},"99_80","required_capital:99_80:asset_risk:other_assets_risk:::","L","Output!L49",{"$f":"INDIRECT(Y30)","v":0},"99_50","required_capital:99_50:asset_risk:other_assets_risk:::","N","Output!N49",{"$f":"INDIRECT(AD30)","v":0}]
[null,"required_capital","99_99","asset_risk","adjustments","total",null,null,"required_capital:99_99:asset_risk:adjustments:total::","Output",null,2,51,"H","Output!H51",{"$f":"INDIRECT(O31)","v":0},"99_95","required_capital:99_95:asset_risk:adjustments:total::","J","Output!J51",{"$f":"INDIRECT(T31)","v":0},"99_80","required_capital:99_80:asset_risk:adjustments:total::","L","Output!L51",{"$f":"INDIRECT(Y31)","v":0},"99_50","required_capital:99_50:asset_risk:adjustments:total::","N","Output!N51",{"$f":"INDIRECT(AD31)","v":0}]
[null,"required_capital","99_99","asset_risk","adjustments","value",null,null,"required_capital:99_99:asset_risk:adjustments:value::","Output",null,1,{"$f":"M31+L32","v":52},"H","Output!H52",{"$f":"INDIRECT(O32)","v":0},"99_95","required_capital:99_95:asset_risk:adjustments:value::","J","Output!J52",{"$f":"INDIRECT(T32)","v":0},"99_80","required_capital:99_80:asset_risk:adjustments:value::","L","Output!L52",{"$f":"INDIRECT(Y32)","v":0},"99_50","required_capital:99_50:asset_risk:adjustments:value::","N","Output!N52",{"$f":"INDIRECT(AD32)","v":0}]
[null,"required_capital","99_99","asset_risk","adjustments","credit_risk",null,null,"required_capital:99_99:asset_risk:adjustments:credit_risk::","Output",null,1,{"$f":"M32+L33","v":53},"H","Output!H53",{"$f":"INDIRECT(O33)","v":0},"99_95","required_capital:99_95:asset_risk:adjustments:credit_risk::","J","Output!J53",{"$f":"INDIRECT(T33)","v":0},"99_80","required_capital:99_80:asset_risk:adjustments:credit_risk::","L","Output!L53",{"$f":"INDIRECT(Y33)","v":0},"99_50","required_capital:99_50:asset_risk:adjustments:credit_risk::","N","Output!N53",{"$f":"INDIRECT(AD33)","v":0}]
[null,"required_capital","99_99","asset_risk","adjustments","market_risk",null,null,"required_capital:99_99:asset_risk:adjustments:market_risk::","Output",null,1,54,"H","Output!H54",{"$f":"INDIRECT(O34)","v":0},"99_95","required_capital:99_95:asset_risk:adjustments:market_risk::","J","Output!J54",{"$f":"INDIRECT(T34)","v":0},"99_80","required_capital:99_80:asset_risk:adjustments:market_risk::","L","Output!L54",{"$f":"INDIRECT(Y34)","v":0},"99_50","required_capital:99_50:asset_risk:adjustments:market_risk::","N","Output!N54",{"$f":"INDIRECT(AD34)","v":0}]
[null,"required_capital","99_99","asset_risk","adjustments","equity",null,null,"required_capital:99_99:asset_risk:adjustments:equity::","Output",null,1,55,"H","Output!H55",{"$f":"INDIRECT(O35)","v":0},"99_95","required_capital:99_95:asset_risk:adjustments:equity::","J","Output!J55",{"$f":"INDIRECT(T35)","v":0},"99_80","required_capital:99_80:asset_risk:adjustments:equity::","L","Output!L55",{"$f":"INDIRECT(Y35)","v":0},"99_50","required_capital:99_50:asset_risk:adjustments:equity::","N","Output!N55",{"$f":"INDIRECT(AD35)","v":0}]
[null,"required_capital","99_99","asset_risk","adjustments","real_estate",null,null,"required_capital:99_99:asset_risk:adjustments:real_estate::","Output",null,1,56,"H","Output!H56",{"$f":"INDIRECT(O36)","v":0},"99_95","required_capital:99_95:asset_risk:adjustments:real_estate::","J","Output!J56",{"$f":"INDIRECT(T36)","v":0},"99_80","required_capital:99_80:asset_risk:adjustments:real_estate::","L","Output!L56",{"$f":"INDIRECT(Y36)","v":0},"99_50","required_capital:99_50:asset_risk:adjustments:real_estate::","N","Output!N56",{"$f":"INDIRECT(AD36)","v":0}]
[null,"required_capital","99_99","asset_risk","adjustments","interest_rate",null,null,"required_capital:99_99:asset_risk:adjustments:interest_rate::","Output",null,1,57,"H","Output!H57",{"$f":"INDIRECT(O37)","v":0},"99_95","required_capital:99_95:asset_risk:adjustments:interest_rate::","J","Output!J57",{"$f":"INDIRECT(T37)","v":0},"99_80","required_capital:99_80:asset_risk:adjustments:interest_rate::","L","Output!L57",{"$f":"INDIRECT(Y37)","v":0},"99_50","required_capital:99_50:asset_risk:adjustments:interest_rate::","N","Output!N57",{"$f":"INDIRECT(AD37)","v":0}]
[null,"required_capital","99_99","asset_risk","adjustments","other_assets_risk",null,null,"required_capital:99_99:asset_risk:adjustments:other_assets_risk::","Output",null,1,58,"H","Output!H58",{"$f":"INDIRECT(O38)","v":0},"99_95","required_capital:99_95:asset_risk:adjustments:other_assets_risk::","J","Output!J58",{"$f":"INDIRECT(T38)","v":0},"99_80","required_capital:99_80:asset_risk:adjustments:other_assets_risk::","L","Output!L58",{"$f":"INDIRECT(Y38)","v":0},"99_50","required_capital:99_50:asset_risk:adjustments:other_assets_risk::","N","Output!N58",{"$f":"INDIRECT(AD38)","v":0}]
[null,"required_capital","99_99","asset_risk","total",null,null,null,"required_capital:99_99:asset_risk:total:::","Output",null,2,60,"H","Output!H60",{"$f":"INDIRECT(O39)","v":0},"99_95","required_capital:99_95:asset_risk:total:::","J","Output!J60",{"$f":"INDIRECT(T39)","v":0},"99_80","required_capital:99_80:asset_risk:total:::","L","Output!L60",{"$f":"INDIRECT(Y39)","v":0},"99_50","required_capital:99_50:asset_risk:total:::","N","Output!N60",{"$f":"INDIRECT(AD39)","v":0}]
[null,"required_capital","99_99","liability_risk","non_life","premium","total",null,"required_capital:99_99:liability_risk:non_life:premium:total:","Output",{"$f":"ROW(out_section_liability_risk)","v":63},2,{"$f":"K40+L40","v":65},"H","Output!H65",{"$f":"INDIRECT(O40)","v":0},"99_95","required_capital:99_95:liability_risk:non_life:premium:total:","J","Output!J65",{"$f":"INDIRECT(T40)","v":0},"99_80","required_capital:99_80:liability_risk:non_life:premium:total:","L","Output!L65",{"$f":"INDIRECT(Y40)","v":0},"99_50","required_capital:99_50:liability_risk:non_life:premium:total:","N","Output!N65",{"$f":"INDIRECT(AD40)","v":0}]
[null,"required_capital","99_99",{"$f":"D40","v":"liability_risk"},"non_life","premium","liability",null,"required_capital:99_99:liability_risk:non_life:premium:liability:","Output",null,1,{"$f":"M40+L41","v":66},"H","Output!H66",{"$f":"INDIRECT(O41)","v":0},"99_95","required_capital:99_95:liability_risk:non_life:premium:liability:","J","Output!J66",{"$f":"INDIRECT(T41)","v":0},"99_80","required_capital:99_80:liability_risk:non_life:premium:liability:","L","Output!L66",{"$f":"INDIRECT(Y41)","v":0},"99_50","required_capital:99_50:liability_risk:non_life:premium:liability:","N","Output!N66",{"$f":"INDIRECT(AD41)","v":0}]
[null,"required_capital","99_99",{"$f":"D41","v":"liability_risk"},"non_life","premium","property",null,"required_capital:99_99:liability_risk:non_life:premium:property:","Output",null,1,67,"H","Output!H67",{"$f":"INDIRECT(O42)","v":0},"99_95","required_capital:99_95:liability_risk:non_life:premium:property:","J","Output!J67",{"$f":"INDIRECT(T42)","v":0},"99_80","required_capital:99_80:liability_risk:non_life:premium:property:","L","Output!L67",{"$f":"INDIRECT(Y42)","v":0},"99_50","required_capital:99_50:liability_risk:non_life:premium:property:","N","Output!N67",{"$f":"INDIRECT(AD42)","v":0}]
[null,"required_capital","99_99","liability_risk","non_life","premium","motor",null,"required_capital:99_99:liability_risk:non_life:premium:motor:","Output",null,1,68,"H","Output!H68",{"$f":"INDIRECT(O43)","v":0},"99_95","required_capital:99_95:liability_risk:non_life:premium:motor:","J","Output!J68",{"$f":"INDIRECT(T43)","v":0},"99_80","required_capital:99_80:liability_risk:non_life:premium:motor:","L","Output!L68",{"$f":"INDIRECT(Y43)","v":0},"99_50","required_capital:99_50:liability_risk:non_life:premium:motor:","N","Output!N68",{"$f":"INDIRECT(AD43)","v":0}]
[null,"required_capital","99_99","liability_risk","non_life","premium","financial",null,"required_capital:99_99:liability_risk:non_life:premium:financial:","Output",null,1,69,"H","Output!H69",{"$f":"INDIRECT(O44)","v":0},"99_95","required_capital:99_95:liability_risk:non_life:premium:financial:","J","Output!J69",{"$f":"INDIRECT(T44)","v":0},"99_80","required_capital:99_80:liability_risk:non_life:premium:financial:","L","Output!L69",{"$f":"INDIRECT(Y44)","v":0},"99_50","required_capital:99_50:liability_risk:non_life:premium:financial:","N","Output!N69",{"$f":"INDIRECT(AD44)","v":0}]
[null,"required_capital","99_99","liability_risk","non_life","premium","health",null,"required_capital:99_99:liability_risk:non_life:premium:health:","Output",null,1,70,"H","Output!H70",{"$f":"INDIRECT(O45)","v":0},"99_95","required_capital:99_95:liability_risk:non_life:premium:health:","J","Output!J70",{"$f":"INDIRECT(T45)","v":0},"99_80","required_capital:99_80:liability_risk:non_life:premium:health:","L","Output!L70",{"$f":"INDIRECT(Y45)","v":0},"99_50","required_capital:99_50:liability_risk:non_life:premium:health:","N","Output!N70",{"$f":"INDIRECT(AD45)","v":0}]
[null,"required_capital","99_99","liability_risk","non_life","premium","marine_aviation_transport",null,"required_capital:99_99:liability_risk:non_life:premium:marine_aviation_transport:","Output",null,1,71,"H","Output!H71",{"$f":"INDIRECT(O46)","v":0},"99_95","required_capital:99_95:liability_risk:non_life:premium:marine_aviation_transport:","J","Output!J71",{"$f":"INDIRECT(T46)","v":0},"99_80","required_capital:99_80:liability_risk:non_life:premium:marine_aviation_transport:","L","Output!L71",{"$f":"INDIRECT(Y46)","v":0},"99_50","required_capital:99_50:liability_risk:non_life:premium:marine_aviation_transport:","N","Output!N71",{"$f":"INDIRECT(AD46)","v":0}]
[null,"required_capital","99_99","liability_risk","non_life","premium","other",null,"required_capital:99_99:liability_risk:non_life:premium:other:","Output",null,1,72,"H","Output!H72",{"$f":"INDIRECT(O47)","v":0},"99_95","required_capital:99_95:liability_risk:non_life:premium:other:","J","Output!J72",{"$f":"INDIRECT(T47)","v":0},"99_80","required_capital:99_80:liability_risk:non_life:premium:other:","L","Output!L72",{"$f":"INDIRECT(Y47)","v":0},"99_50","required_capital:99_50:liability_risk:non_life:premium:other:","N","Output!N72",{"$f":"INDIRECT(AD47)","v":0}]
[null,"required_capital","99_99","liability_risk","non_life","premium","mortgage_insurance",null,"required_capital:99_99:liability_risk:non_life:premium:mortgage_insurance:","Output",null,1,73,"H","Output!H73",{"$f":"INDIRECT(O48)","v":0},"99_95","required_capital:99_95:liability_risk:non_life:premium:mortgage_insurance:","J","Output!J73",{"$f":"INDIRECT(T48)","v":0},"99_80","required_capital:99_80:liability_risk:non_life:premium:mortgage_insurance:","L","Output!L73",{"$f":"INDIRECT(Y48)","v":0},"99_50","required_capital:99_50:liability_risk:non_life:premium:mortgage_insurance:","N","Output!N73",{"$f":"INDIRECT(AD48)","v":0}]
[null,"required_capital","99_99","liability_risk","non_life","reserve","total",null,"required_capital:99_99:liability_risk:non_life:reserve:total:","Output",null,1,74,"H","Output!H74",{"$f":"INDIRECT(O49)","v":0},"99_95","required_capital:99_95:liability_risk:non_life:reserve:total:","J","Output!J74",{"$f":"INDIRECT(T49)","v":0},"99_80","required_capital:99_80:liability_risk:non_life:reserve:total:","L","Output!L74",{"$f":"INDIRECT(Y49)","v":0},"99_50","required_capital:99_50:liability_risk:non_life:reserve:total:","N","Output!N74",{"$f":"INDIRECT(AD49)","v":0}]
[null,"required_capital","99_99","liability_risk","non_life","reserve","liability",null,"required_capital:99_99:liability_risk:non_life:reserve:liability:","Output",null,1,75,"H","Output!H75",{"$f":"INDIRECT(O50)","v":0},"99_95","required_capital:99_95:liability_risk:non_life:reserve:liability:","J","Output!J75",{"$f":"INDIRECT(T50)","v":0},"99_80","required_capital:99_80:liability_risk:non_life:reserve:liability:","L","Output!L75",{"$f":"INDIRECT(Y50)","v":0},"99_50","required_capital:99_50:liability_risk:non_life:reserve:liability:","N","Output!N75",{"$f":"INDIRECT(AD50)","v":0}]
[null,"required_capital","99_99","liability_risk","non_life","reserve","property",null,"required_capital:99_99:liability_risk:non_life:reserve:property:","Output",null,1,76,"H","Output!H76",{"$f":"INDIRECT(O51)","v":0},"99_95","required_capital:99_95:liability_risk:non_life:reserve:property:","J","Output!J76",{"$f":"INDIRECT(T51)","v":0},"99_80","required_capital:99_80:liability_risk:non_life:reserve:property:","L","Output!L76",{"$f":"INDIRECT(Y51)","v":0},"99_50","required_capital:99_50:liability_risk:non_life:reserve:property:","N","Output!N76",{"$f":"INDIRECT(AD51)","v":0}]
[null,"required_capital","99_99","liability_risk","non_life","reserve","motor",null,"required_capital:99_99:liability_risk:non_life:reserve:motor:","Output",null,1,77,"H","Output!H77",{"$f":"INDIRECT(O52)","v":0},"99_95","required_capital:99_95:liability_risk:non_life:reserve:motor:","J","Output!J77",{"$f":"INDIRECT(T52)","v":0},"99_80","required_capital:99_80:liability_risk:non_life:reserve:motor:","L","Output!L77",{"$f":"INDIRECT(Y52)","v":0},"99_50","required_capital:99_50:liability_risk:non_life:reserve:motor:","N","Output!N77",{"$f":"INDIRECT(AD52)","v":0}]
[null,"required_capital","99_99","liability_risk","non_life","reserve","financial",null,"required_capital:99_99:liability_risk:non_life:reserve:financial:","Output",null,1,78,"H","Output!H78",{"$f":"INDIRECT(O53)","v":0},"99_95","required_capital:99_95:liability_risk:non_life:reserve:financial:","J","Output!J78",{"$f":"INDIRECT(T53)","v":0},"99_80","required_capital:99_80:liability_risk:non_life:reserve:financial:","L","Output!L78",{"$f":"INDIRECT(Y53)","v":0},"99_50","required_capital:99_50:liability_risk:non_life:reserve:financial:","N","Output!N78",{"$f":"INDIRECT(AD53)","v":0}]
[null,"required_capital","99_99","liability_risk","non_life","reserve","health",null,"required_capital:99_99:liability_risk:non_life:reserve:health:","Output",null,1,79,"H","Output!H79",{"$f":"INDIRECT(O54)","v":0},"99_95","required_capital:99_95:liability_risk:non_life:reserve:health:","J","Output!J79",{"$f":"INDIRECT(T54)","v":0},"99_80","required_capital:99_80:liability_risk:non_life:reserve:health:","L","Output!L79",{"$f":"INDIRECT(Y54)","v":0},"99_50","required_capital:99_50:liability_risk:non_life:reserve:health:","N","Output!N79",{"$f":"INDIRECT(AD54)","v":0}]
[null,"required_capital","99_99","liability_risk","non_life","reserve","marine_aviation_transport",null,"required_capital:99_99:liability_risk:non_life:reserve:marine_aviation_transport:","Output",null,1,80,"H","Output!H80",{"$f":"INDIRECT(O55)","v":0},"99_95","required_capital:99_95:liability_risk:non_life:reserve:marine_aviation_transport:","J","Output!J80",{"$f":"INDIRECT(T55)","v":0},"99_80","required_capital:99_80:liability_risk:non_life:reserve:marine_aviation_transport:","L","Output!L80",{"$f":"INDIRECT(Y55)","v":0},"99_50","required_capital:99_50:liability_risk:non_life:reserve:marine_aviation_transport:","N","Output!N80",{"$f":"INDIRECT(AD55)","v":0}]
[null,"required_capital","99_99","liability_risk","non_life","reserve","other",null,"required_capital:99_99:liability_risk:non_life:reserve:other:","Output",null,1,81,"H","Output!H81",{"$f":"INDIRECT(O56)","v":0},"99_95","required_capital:99_95:liability_risk:non_life:reserve:other:","J","Output!J81",{"$f":"INDIRECT(T56)","v":0},"99_80","required_capital:99_80:liability_risk:non_life:reserve:other:","L","Output!L81",{"$f":"INDIRECT(Y56)","v":0},"99_50","required_capital:99_50:liability_risk:non_life:reserve:other:","N","Output!N81",{"$f":"INDIRECT(AD56)","v":0}]
[null,"required_capital","99_99","liability_risk","non_life","reserve","mortgage_insurance",null,"required_capital:99_99:liability_risk:non_life:reserve:mortgage_insurance:","Output",null,1,82,"H","Output!H82",{"$f":"INDIRECT(O57)","v":0},"99_95","required_capital:99_95:liability_risk:non_life:reserve:mortgage_insurance:","J","Output!J82",{"$f":"INDIRECT(T57)","v":0},"99_80","required_capital:99_80:liability_risk:non_life:reserve:mortgage_insurance:","L","Output!L82",{"$f":"INDIRECT(Y57)","v":0},"99_50","required_capital:99_50:liability_risk:non_life:reserve:mortgage_insurance:","N","Output!N82",{"$f":"INDIRECT(AD57)","v":0}]
[null,"required_capital","99_99","liability_risk","non_life","nat_cat","total",null,"required_capital:99_99:liability_risk:non_life:nat_cat:total:","Output",null,1,83,"H","Output!H83",{"$f":"INDIRECT(O58)","v":0},"99_95","required_capital:99_95:liability_risk:non_life:nat_cat:total:","J","Output!J83",{"$f":"INDIRECT(T58)","v":0},"99_80","required_capital:99_80:liability_risk:non_life:nat_cat:total:","L","Output!L83",{"$f":"INDIRECT(Y58)","v":0},"99_50","required_capital:99_50:liability_risk:non_life:nat_cat:total:","N","Output!N83",{"$f":"INDIRECT(AD58)","v":0}]
[null,"required_capital","99_99","liability_risk","non_life","nat_cat","value",null,{"$f":"CONCATENATE($B59, \":\",C59,\":\",$D59,\":\",$E59,\":\",$F59,\":\",$G59,\":\",$H59)","v":"required_capital:99_99:liability_risk:non_life:nat_cat:value:"},"Output",null,1,{"$f":"M58+L59","v":84},"H",{"$f":"CONCATENATE($J59,\"!\",N59,$M59)","v":"Output!H84"},{"$f":"INDIRECT(O59)","v":0},"99_95",{"$f":"IF(Q59=\"\",\"\",CONCATENATE($B59,\":\",Q59,\":\",$D59,\":\",$E59,\":\",$F59,\":\",$G59,\":\",$H59))","v":"required_capital:99_95:liability_risk:non_life:nat_cat:value:"},"J",{"$f":"CONCATENATE($J59,\"!\",S59,$M59)","v":"Output!J84"},{"$f":"INDIRECT(T59)","v":0},"99_80",{"$f":"IF(V59=\"\",\"\",CONCATENATE($B59,\":\",V59,\":\",$D59,\":\",$E59,\":\",$F59,\":\",$G59,\":\",$H59))","v":"required_capital:99_80:liability_risk:non_life:nat_cat:value:"},"L",{"$f":"CONCATENATE($J59,\"!\",X59,$M59)","v":"Output!L84"},{"$f":"INDIRECT(Y59)","v":0},"99_50",{"$f":"IF(AA59=\"\",\"\",CONCATENATE($B59,\":\",AA59,\":\",$D59,\":\",$E59,\":\",$F59,\":\",$G59,\":\",$H59))","v":"required_capital:99_50:liability_risk:non_life:nat_cat:value:"},"N",{"$f":"CONCATENATE($J59,\"!\",AC59,$M59)","v":"Output!N84"},{"$f":"INDIRECT(AD59)","v":0}]
[null,"required_capital","99_99","liability_risk","non_life","nat_cat","reinsurance_recoveries",null,{"$f":"CONCATENATE($B60, \":\",C60,\":\",$D60,\":\",$E60,\":\",$F60,\":\",$G60,\":\",$H60)","v":"required_capital:99_99:liability_risk:non_life:nat_cat:reinsurance_recoveries:"},"Output",null,1,{"$f":"M59+L60","v":85},"H",{"$f":"CONCATENATE($J60,\"!\",N60,$M60)","v":"Output!H85"},{"$f":"INDIRECT(O60)","v":0},"99_95",{"$f":"IF(Q60=\"\",\"\",CONCATENATE($B60,\":\",Q60,\":\",$D60,\":\",$E60,\":\",$F60,\":\",$G60,\":\",$H60))","v":"required_capital:99_95:liability_risk:non_life:nat_cat:reinsurance_recoveries:"},"J",{"$f":"CONCATENATE($J60,\"!\",S60,$M60)","v":"Output!J85"},{"$f":"INDIRECT(T60)","v":0},"99_80",{"$f":"IF(V60=\"\",\"\",CONCATENATE($B60,\":\",V60,\":\",$D60,\":\",$E60,\":\",$F60,\":\",$G60,\":\",$H60))","v":"required_capital:99_80:liability_risk:non_life:nat_cat:reinsurance_recoveries:"},"L",{"$f":"CONCATENATE($J60,\"!\",X60,$M60)","v":"Output!L85"},{"$f":"INDIRECT(Y60)","v":0},"99_50",{"$f":"IF(AA60=\"\",\"\",CONCATENATE($B60,\":\",AA60,\":\",$D60,\":\",$E60,\":\",$F60,\":\",$G60,\":\",$H60))","v":"required_capital:99_50:liability_risk:non_life:nat_cat:reinsurance_recoveries:"},"N",{"$f":"CONCATENATE($J60,\"!\",AC60,$M60)","v":"Output!N85"},{"$f":"INDIRECT(AD60)","v":0}]
[null,"required_capital","99_99","liability_risk","life","total",null,null,"required_capital:99_99:liability_risk:life:total::","Output",null,1,86,"H","Output!H86",{"$f":"INDIRECT(O61)","v":0},"99_95","required_capital:99_95:liability_risk:life:total::","J","Output!J86",{"$f":"INDIRECT(T61)","v":0},"99_80","required_capital:99_80:liability_risk:life:total::","L","Output!L86",{"$f":"INDIRECT(Y61)","v":0},"99_50","required_capital:99_50:liability_risk:life:total::","N","Output!N86",{"$f":"INDIRECT(AD61)","v":0}]
[null,"required_capital","99_99","liability_risk","life","mortality",null,null,"required_capital:99_99:liability_risk:life:mortality::","Output",null,1,{"$f":"M61+L62","v":87},"H","Output!H87",{"$f":"INDIRECT(O62)","v":0},"99_95","required_capital:99_95:liability_risk:life:mortality::","J","Output!J87",{"$f":"INDIRECT(T62)","v":0},"99_80","required_capital:99_80:liability_risk:life:mortality::","L","Output!L87",{"$f":"INDIRECT(Y62)","v":0},"99_50","required_capital:99_50:liability_risk:life:mortality::","N","Output!N87",{"$f":"INDIRECT(AD62)","v":0}]
[null,"required_capital","99_99","liability_risk","life","pandemic","total",null,"required_capital:99_99:liability_risk:life:pandemic:total:","Output",null,1,{"$f":"M62+L63","v":88},"H","Output!H88",{"$f":"INDIRECT(O63)","v":0},"99_95","required_capital:99_95:liability_risk:life:pandemic:total:","J","Output!J88",{"$f":"INDIRECT(T63)","v":0},"99_80","required_capital:99_80:liability_risk:life:pandemic:total:","L","Output!L88",{"$f":"INDIRECT(Y63)","v":0},"99_50","required_capital:99_50:liability_risk:life:pandemic:total:","N","Output!N88",{"$f":"INDIRECT(AD63)","v":0}]
[null,"required_capital","99_99","liability_risk","life","pandemic","value",null,{"$f":"CONCATENATE($B64, \":\",C64,\":\",$D64,\":\",$E64,\":\",$F64,\":\",$G64,\":\",$H64)","v":"required_capital:99_99:liability_risk:life:pandemic:value:"},"Output",null,1,{"$f":"M63+L64","v":89},"H",{"$f":"CONCATENATE($J64,\"!\",N64,$M64)","v":"Output!H89"},{"$f":"INDIRECT(O64)","v":0},"99_95",{"$f":"IF(Q64=\"\",\"\",CONCATENATE($B64,\":\",Q64,\":\",$D64,\":\",$E64,\":\",$F64,\":\",$G64,\":\",$H64))","v":"required_capital:99_95:liability_risk:life:pandemic:value:"},"J",{"$f":"CONCATENATE($J64,\"!\",S64,$M64)","v":"Output!J89"},{"$f":"INDIRECT(T64)","v":0},"99_80",{"$f":"IF(V64=\"\",\"\",CONCATENATE($B64,\":\",V64,\":\",$D64,\":\",$E64,\":\",$F64,\":\",$G64,\":\",$H64))","v":"required_capital:99_80:liability_risk:life:pandemic:value:"},"L",{"$f":"CONCATENATE($J64,\"!\",X64,$M64)","v":"Output!L89"},{"$f":"INDIRECT(Y64)","v":0},"99_50",{"$f":"IF(AA64=\"\",\"\",CONCATENATE($B64,\":\",AA64,\":\",$D64,\":\",$E64,\":\",$F64,\":\",$G64,\":\",$H64))","v":"required_capital:99_50:liability_risk:life:pandemic:value:"},"N",{"$f":"CONCATENATE($J64,\"!\",AC64,$M64)","v":"Output!N89"},{"$f":"INDIRECT(AD64)","v":0}]
[null,"required_capital","99_99","liability_risk","life","pandemic","reinsurance_recoveries",null,{"$f":"CONCATENATE($B65, \":\",C65,\":\",$D65,\":\",$E65,\":\",$F65,\":\",$G65,\":\",$H65)","v":"required_capital:99_99:liability_risk:life:pandemic:reinsurance_recoveries:"},"Output",null,1,{"$f":"M64+L65","v":90},"H",{"$f":"CONCATENATE($J65,\"!\",N65,$M65)","v":"Output!H90"},{"$f":"INDIRECT(O65)","v":0},"99_95",{"$f":"IF(Q65=\"\",\"\",CONCATENATE($B65,\":\",Q65,\":\",$D65,\":\",$E65,\":\",$F65,\":\",$G65,\":\",$H65))","v":"required_capital:99_95:liability_risk:life:pandemic:reinsurance_recoveries:"},"J",{"$f":"CONCATENATE($J65,\"!\",S65,$M65)","v":"Output!J90"},{"$f":"INDIRECT(T65)","v":0},"99_80",{"$f":"IF(V65=\"\",\"\",CONCATENATE($B65,\":\",V65,\":\",$D65,\":\",$E65,\":\",$F65,\":\",$G65,\":\",$H65))","v":"required_capital:99_80:liability_risk:life:pandemic:reinsurance_recoveries:"},"L",{"$f":"CONCATENATE($J65,\"!\",X65,$M65)","v":"Output!L90"},{"$f":"INDIRECT(Y65)","v":0},"99_50",{"$f":"IF(AA65=\"\",\"\",CONCATENATE($B65,\":\",AA65,\":\",$D65,\":\",$E65,\":\",$F65,\":\",$G65,\":\",$H65))","v":"required_capital:99_50:liability_risk:life:pandemic:reinsurance_recoveries:"},"N",{"$f":"CONCATENATE($J65,\"!\",AC65,$M65)","v":"Output!N90"},{"$f":"INDIRECT(AD65)","v":0}]
[null,"required_capital","99_99",{"$f":"D63","v":"liability_risk"},"life","morbidity","total",null,"required_capital:99_99:liability_risk:life:morbidity:total:","Output",null,1,{"$f":"M65+L66","v":91},"H","Output!H91",{"$f":"INDIRECT(O66)","v":0},"99_95","required_capital:99_95:liability_risk:life:morbidity:total:","J","Output!J91",{"$f":"INDIRECT(T66)","v":0},"99_80","required_capital:99_80:liability_risk:life:morbidity:total:",{"$f":"X63","v":"L"},"Output!L91",{"$f":"INDIRECT(Y66)","v":0},"99_50","required_capital:99_50:liability_risk:life:morbidity:total:","N","Output!N91",{"$f":"INDIRECT(AD66)","v":0}]
[null,"required_capital","99_99","liability_risk","life","morbidity","critical_illness",null,"required_capital:99_99:liability_risk:life:morbidity:critical_illness:","Output",null,1,92,"H","Output!H92",{"$f":"INDIRECT(O67)","v":0},"99_95","required_capital:99_95:liability_risk:life:morbidity:critical_illness:","J","Output!J92",{"$f":"INDIRECT(T67)","v":0},"99_80","required_capital:99_80:liability_risk:life:morbidity:critical_illness:","L","Output!L92",{"$f":"INDIRECT(Y67)","v":0},"99_50","required_capital:99_50:liability_risk:life:morbidity:critical_illness:","N","Output!N92",{"$f":"INDIRECT(AD67)","v":0}]
[null,"required_capital","99_99","liability_risk","life","morbidity","disability",null,"required_capital:99_99:liability_risk:life:morbidity:disability:","Output",null,1,93,"H","Output!H93",{"$f":"INDIRECT(O68)","v":0},"99_95","required_capital:99_95:liability_risk:life:morbidity:disability:","J","Output!J93",{"$f":"INDIRECT(T68)","v":0},"99_80","required_capital:99_80:liability_risk:life:morbidity:disability:","L","Output!L93",{"$f":"INDIRECT(Y68)","v":0},"99_50","required_capital:99_50:liability_risk:life:morbidity:disability:","N","Output!N93",{"$f":"INDIRECT(AD68)","v":0}]
[null,"required_capital","99_99","liability_risk","life","morbidity","long_term_care",null,"required_capital:99_99:liability_risk:life:morbidity:long_term_care:","Output",null,1,94,"H","Output!H94",{"$f":"INDIRECT(O69)","v":0},"99_95","required_capital:99_95:liability_risk:life:morbidity:long_term_care:","J","Output!J94",{"$f":"INDIRECT(T69)","v":0},"99_80","required_capital:99_80:liability_risk:life:morbidity:long_term_care:","L","Output!L94",{"$f":"INDIRECT(Y69)","v":0},"99_50","required_capital:99_50:liability_risk:life:morbidity:long_term_care:","N","Output!N94",{"$f":"INDIRECT(AD69)","v":0}]
[null,"required_capital","99_99","liability_risk","life","longevity",null,null,"required_capital:99_99:liability_risk:life:longevity::","Output",null,1,95,"H","Output!H95",{"$f":"INDIRECT(O70)","v":0},"99_95","required_capital:99_95:liability_risk:life:longevity::","J","Output!J95",{"$f":"INDIRECT(T70)","v":0},"99_80","required_capital:99_80:liability_risk:life:longevity::","L","Output!L95",{"$f":"INDIRECT(Y70)","v":0},"99_50","required_capital:99_50:liability_risk:life:longevity::","N","Output!N95",{"$f":"INDIRECT(AD70)","v":0}]
[null,"required_capital","99_99","liability_risk","life","other_life",null,null,{"$f":"CONCATENATE($B71, \":\",C71,\":\",$D71,\":\",$E71,\":\",$F71,\":\",$G71,\":\",$H71)","v":"required_capital:99_99:liability_risk:life:other_life::"},"Output",null,1,96,"H",{"$f":"CONCATENATE($J71,\"!\",N71,$M71)","v":"Output!H96"},{"$f":"INDIRECT(O71)","v":0},"99_95",{"$f":"IF(Q71=\"\",\"\",CONCATENATE($B71,\":\",Q71,\":\",$D71,\":\",$E71,\":\",$F71,\":\",$G71,\":\",$H71))","v":"required_capital:99_95:liability_risk:life:other_life::"},"J",{"$f":"CONCATENATE($J71,\"!\",S71,$M71)","v":"Output!J96"},{"$f":"INDIRECT(T71)","v":0},"99_80",{"$f":"IF(V71=\"\",\"\",CONCATENATE($B71,\":\",V71,\":\",$D71,\":\",$E71,\":\",$F71,\":\",$G71,\":\",$H71))","v":"required_capital:99_80:liability_risk:life:other_life::"},"L",{"$f":"CONCATENATE($J71,\"!\",X71,$M71)","v":"Output!L96"},{"$f":"INDIRECT(Y71)","v":0},"99_50",{"$f":"IF(AA71=\"\",\"\",CONCATENATE($B71,\":\",AA71,\":\",$D71,\":\",$E71,\":\",$F71,\":\",$G71,\":\",$H71))","v":"required_capital:99_50:liability_risk:life:other_life::"},"N",{"$f":"CONCATENATE($J71,\"!\",AC71,$M71)","v":"Output!N96"},{"$f":"INDIRECT(AD71)","v":0}]
[null,"required_capital","99_99","liability_risk","life","lt_health_with_aging_reserves",null,null,"required_capital:99_99:liability_risk:life:lt_health_with_aging_reserves::","Output",null,1,97,{"$f":"N71","v":"H"},"Output!H97",{"$f":"INDIRECT(O72)","v":0},"99_95","required_capital:99_95:liability_risk:life:lt_health_with_aging_reserves::",{"$f":"S71","v":"J"},"Output!J97",{"$f":"INDIRECT(T72)","v":0},"99_80","required_capital:99_80:liability_risk:life:lt_health_with_aging_reserves::",{"$f":"X71","v":"L"},"Output!L97",{"$f":"INDIRECT(Y72)","v":0},"99_50","required_capital:99_50:liability_risk:life:lt_health_with_aging_reserves::",{"$f":"AC71","v":"N"},"Output!N97",{"$f":"INDIRECT(AD72)","v":0}]
[null,"required_capital","99_99","liability_risk","life","variable_annuities",null,null,"required_capital:99_99:liability_risk:life:variable_annuities::","Output",null,1,98,"H","Output!H98",{"$f":"INDIRECT(O73)","v":0},"99_95","required_capital:99_95:liability_risk:life:variable_annuities::","J","Output!J98",{"$f":"INDIRECT(T73)","v":0},"99_80","required_capital:99_80:liability_risk:life:variable_annuities::","L","Output!L98",{"$f":"INDIRECT(Y73)","v":0},"99_50","required_capital:99_50:liability_risk:life:variable_annuities::","N","Output!N98",{"$f":"INDIRECT(AD73)","v":0}]
[null,"required_capital","99_99","liability_risk","adjustments","total",null,null,"required_capital:99_99:liability_risk:adjustments:total::","Output",null,2,100,"H","Output!H100",{"$f":"INDIRECT(O74)","v":0},"99_95","required_capital:99_95:liability_risk:adjustments:total::","J","Output!J100",{"$f":"INDIRECT(T74)","v":0},"99_80","required_capital:99_80:liability_risk:adjustments:total::","L","Output!L100",{"$f":"INDIRECT(Y74)","v":0},"99_50","required_capital:99_50:liability_risk:adjustments:total::","N","Output!N100",{"$f":"INDIRECT(AD74)","v":0}]
[null,"required_capital","99_99","liability_risk","adjustments","value",null,null,"required_capital:99_99:liability_risk:adjustments:value::","Output",null,1,101,"H","Output!H101",{"$f":"INDIRECT(O75)","v":0},"99_95","required_capital:99_95:liability_risk:adjustments:value::","J","Output!J101",{"$f":"INDIRECT(T75)","v":0},"99_80","required_capital:99_80:liability_risk:adjustments:value::","L","Output!L101",{"$f":"INDIRECT(Y75)","v":0},"99_50","required_capital:99_50:liability_risk:adjustments:value::","N","Output!N101",{"$f":"INDIRECT(AD75)","v":0}]
[null,"required_capital","99_99","liability_risk","adjustments","non_life","value",null,"required_capital:99_99:liability_risk:adjustments:non_life:value:","Output",null,1,102,"H","Output!H102",{"$f":"INDIRECT(O76)","v":0},"99_95","required_capital:99_95:liability_risk:adjustments:non_life:value:","J","Output!J102",{"$f":"INDIRECT(T76)","v":0},"99_80","required_capital:99_80:liability_risk:adjustments:non_life:value:","L","Output!L102",{"$f":"INDIRECT(Y76)","v":0},"99_50","required_capital:99_50:liability_risk:adjustments:non_life:value:","N","Output!N102",{"$f":"INDIRECT(AD76)","v":0}]
[null,"required_capital","99_99","liability_risk","adjustments","non_life","premium","total","required_capital:99_99:liability_risk:adjustments:non_life:premium:total","Output",null,1,103,"H","Output!H103",{"$f":"INDIRECT(O77)","v":0},"99_95","required_capital:99_95:liability_risk:adjustments:non_life:premium:total","J","Output!J103",{"$f":"INDIRECT(T77)","v":0},"99_80","required_capital:99_80:liability_risk:adjustments:non_life:premium:total","L","Output!L103",{"$f":"INDIRECT(Y77)","v":0},"99_50","required_capital:99_50:liability_risk:adjustments:non_life:premium:total","N","Output!N103",{"$f":"INDIRECT(AD77)","v":0}]
[null,"required_capital","99_99","liability_risk","adjustments","non_life","premium","liability","required_capital:99_99:liability_risk:adjustments:non_life:premium:liability","Output",null,1,104,"H","Output!H104",{"$f":"INDIRECT(O78)","v":0},"99_95","required_capital:99_95:liability_risk:adjustments:non_life:premium:liability","J","Output!J104",{"$f":"INDIRECT(T78)","v":0},"99_80","required_capital:99_80:liability_risk:adjustments:non_life:premium:liability","L","Output!L104",{"$f":"INDIRECT(Y78)","v":0},"99_50","required_capital:99_50:liability_risk:adjustments:non_life:premium:liability","N","Output!N104",{"$f":"INDIRECT(AD78)","v":0}]
[null,"required_capital","99_99","liability_risk","adjustments","non_life","premium","property","required_capital:99_99:liability_risk:adjustments:non_life:premium:property","Output",null,1,105,"H","Output!H105",{"$f":"INDIRECT(O79)","v":0},"99_95","required_capital:99_95:liability_risk:adjustments:non_life:premium:property","J","Output!J105",{"$f":"INDIRECT(T79)","v":0},"99_80","required_capital:99_80:liability_risk:adjustments:non_life:premium:property","L","Output!L105",{"$f":"INDIRECT(Y79)","v":0},"99_50","required_capital:99_50:liability_risk:adjustments:non_life:premium:property","N","Output!N105",{"$f":"INDIRECT(AD79)","v":0}]
[null,"required_capital","99_99","liability_risk","adjustments","non_life","premium","motor","required_capital:99_99:liability_risk:adjustments:non_life:premium:motor","Output",null,1,106,"H","Output!H106",{"$f":"INDIRECT(O80)","v":0},"99_95","required_capital:99_95:liability_risk:adjustments:non_life:premium:motor","J","Output!J106",{"$f":"INDIRECT(T80)","v":0},"99_80","required_capital:99_80:liability_risk:adjustments:non_life:premium:motor","L","Output!L106",{"$f":"INDIRECT(Y80)","v":0},"99_50","required_capital:99_50:liability_risk:adjustments:non_life:premium:motor","N","Output!N106",{"$f":"INDIRECT(AD80)","v":0}]
[null,"required_capital","99_99","liability_risk","adjustments","non_life","premium","financial","required_capital:99_99:liability_risk:adjustments:non_life:premium:financial","Output",null,1,107,"H","Output!H107",{"$f":"INDIRECT(O81)","v":0},"99_95","required_capital:99_95:liability_risk:adjustments:non_life:premium:financial","J","Output!J107",{"$f":"INDIRECT(T81)","v":0},"99_80","required_capital:99_80:liability_risk:adjustments:non_life:premium:financial","L","Output!L107",{"$f":"INDIRECT(Y81)","v":0},"99_50","required_capital:99_50:liability_risk:adjustments:non_life:premium:financial","N","Output!N107",{"$f":"INDIRECT(AD81)","v":0}]
[null,"required_capital","99_99","liability_risk","adjustments","non_life","premium","health","required_capital:99_99:liability_risk:adjustments:non_life:premium:health","Output",null,1,108,"H","Output!H108",{"$f":"INDIRECT(O82)","v":0},"99_95","required_capital:99_95:liability_risk:adjustments:non_life:premium:health","J","Output!J108",{"$f":"INDIRECT(T82)","v":0},"99_80","required_capital:99_80:liability_risk:adjustments:non_life:premium:health","L","Output!L108",{"$f":"INDIRECT(Y82)","v":0},"99_50","required_capital:99_50:liability_risk:adjustments:non_life:premium:health","N","Output!N108",{"$f":"INDIRECT(AD82)","v":0}]
[null,"required_capital","99_99","liability_risk","adjustments","non_life","premium","marine_aviation_transport","required_capital:99_99:liability_risk:adjustments:non_life:premium:marine_aviation_transport","Output",null,1,109,"H","Output!H109",{"$f":"INDIRECT(O83)","v":0},"99_95","required_capital:99_95:liability_risk:adjustments:non_life:premium:marine_aviation_transport","J","Output!J109",{"$f":"INDIRECT(T83)","v":0},"99_80","required_capital:99_80:liability_risk:adjustments:non_life:premium:marine_aviation_transport","L","Output!L109",{"$f":"INDIRECT(Y83)","v":0},"99_50","required_capital:99_50:liability_risk:adjustments:non_life:premium:marine_aviation_transport","N","Output!N109",{"$f":"INDIRECT(AD83)","v":0}]
[null,"required_capital","99_99","liability_risk","adjustments","non_life","premium","other","required_capital:99_99:liability_risk:adjustments:non_life:premium:other","Output",null,1,110,"H","Output!H110",{"$f":"INDIRECT(O84)","v":0},"99_95","required_capital:99_95:liability_risk:adjustments:non_life:premium:other","J","Output!J110",{"$f":"INDIRECT(T84)","v":0},"99_80","required_capital:99_80:liability_risk:adjustments:non_life:premium:other","L","Output!L110",{"$f":"INDIRECT(Y84)","v":0},"99_50","required_capital:99_50:liability_risk:adjustments:non_life:premium:other","N","Output!N110",{"$f":"INDIRECT(AD84)","v":0}]
[null,"required_capital","99_99","liability_risk","adjustments","non_life","reserve","total","required_capital:99_99:liability_risk:adjustments:non_life:reserve:total","Output",null,1,111,"H","Output!H111",{"$f":"INDIRECT(O85)","v":0},"99_95","required_capital:99_95:liability_risk:adjustments:non_life:reserve:total","J","Output!J111",{"$f":"INDIRECT(T85)","v":0},"99_80","required_capital:99_80:liability_risk:adjustments:non_life:reserve:total","L","Output!L111",{"$f":"INDIRECT(Y85)","v":0},"99_50","required_capital:99_50:liability_risk:adjustments:non_life:reserve:total","N","Output!N111",{"$f":"INDIRECT(AD85)","v":0}]
[null,{"$f":"B85","v":"required_capital"},{"$f":"C85","v":"99_99"},"liability_risk","adjustments","non_life","reserve","liability","required_capital:99_99:liability_risk:adjustments:non_life:reserve:liability","Output",null,1,112,"H","Output!H112",{"$f":"INDIRECT(O86)","v":0},"99_95","required_capital:99_95:liability_risk:adjustments:non_life:reserve:liability","J","Output!J112",{"$f":"INDIRECT(T86)","v":0},"99_80","required_capital:99_80:liability_risk:adjustments:non_life:reserve:liability","L","Output!L112",{"$f":"INDIRECT(Y86)","v":0},"99_50","required_capital:99_50:liability_risk:adjustments:non_life:reserve:liability","N","Output!N112",{"$f":"INDIRECT(AD86)","v":0}]
[null,"required_capital","99_99","liability_risk","adjustments","non_life","reserve","property","required_capital:99_99:liability_risk:adjustments:non_life:reserve:property","Output",null,1,113,"H","Output!H113",{"$f":"INDIRECT(O87)","v":0},"99_95","required_capital:99_95:liability_risk:adjustments:non_life:reserve:property","J","Output!J113",{"$f":"INDIRECT(T87)","v":0},"99_80","required_capital:99_80:liability_risk:adjustments:non_life:reserve:property","L","Output!L113",{"$f":"INDIRECT(Y87)","v":0},"99_50","required_capital:99_50:liability_risk:adjustments:non_life:reserve:property","N","Output!N113",{"$f":"INDIRECT(AD87)","v":0}]
[null,"required_capital","99_99","liability_risk","adjustments","non_life","reserve","motor","required_capital:99_99:liability_risk:adjustments:non_life:reserve:motor","Output",null,1,114,"H","Output!H114",{"$f":"INDIRECT(O88)","v":0},"99_95","required_capital:99_95:liability_risk:adjustments:non_life:reserve:motor","J","Output!J114",{"$f":"INDIRECT(T88)","v":0},"99_80","required_capital:99_80:liability_risk:adjustments:non_life:reserve:motor","L","Output!L114",{"$f":"INDIRECT(Y88)","v":0},"99_50","required_capital:99_50:liability_risk:adjustments:non_life:reserve:motor","N","Output!N114",{"$f":"INDIRECT(AD88)","v":0}]
[null,"required_capital","99_99","liability_risk","adjustments","non_life","reserve","financial","required_capital:99_99:liability_risk:adjustments:non_life:reserve:financial","Output",null,1,115,"H","Output!H115",{"$f":"INDIRECT(O89)","v":0},"99_95","required_capital:99_95:liability_risk:adjustments:non_life:reserve:financial","J","Output!J115",{"$f":"INDIRECT(T89)","v":0},"99_80","required_capital:99_80:liability_risk:adjustments:non_life:reserve:financial","L","Output!L115",{"$f":"INDIRECT(Y89)","v":0},"99_50","required_capital:99_50:liability_risk:adjustments:non_life:reserve:financial","N","Output!N115",{"$f":"INDIRECT(AD89)","v":0}]
[null,"required_capital","99_99","liability_risk","adjustments","non_life","reserve","health","required_capital:99_99:liability_risk:adjustments:non_life:reserve:health","Output",null,1,116,"H","Output!H116",{"$f":"INDIRECT(O90)","v":0},"99_95","required_capital:99_95:liability_risk:adjustments:non_life:reserve:health","J","Output!J116",{"$f":"INDIRECT(T90)","v":0},"99_80","required_capital:99_80:liability_risk:adjustments:non_life:reserve:health","L","Output!L116",{"$f":"INDIRECT(Y90)","v":0},"99_50","required_capital:99_50:liability_risk:adjustments:non_life:reserve:health","N","Output!N116",{"$f":"INDIRECT(AD90)","v":0}]
[null,"required_capital","99_99","liability_risk","adjustments","non_life","reserve","marine_aviation_transport","required_capital:99_99:liability_risk:adjustments:non_life:reserve:marine_aviation_transport","Output",null,1,117,"H","Output!H117",{"$f":"INDIRECT(O91)","v":0},"99_95","required_capital:99_95:liability_risk:adjustments:non_life:reserve:marine_aviation_transport","J","Output!J117",{"$f":"INDIRECT(T91)","v":0},"99_80","required_capital:99_80:liability_risk:adjustments:non_life:reserve:marine_aviation_transport","L","Output!L117",{"$f":"INDIRECT(Y91)","v":0},"99_50","required_capital:99_50:liability_risk:adjustments:non_life:reserve:marine_aviation_transport","N","Output!N117",{"$f":"INDIRECT(AD91)","v":0}]
[null,"required_capital","99_99","liability_risk","adjustments","non_life","reserve","other","required_capital:99_99:liability_risk:adjustments:non_life:reserve:other","Output",null,1,118,"H","Output!H118",{"$f":"INDIRECT(O92)","v":0},"99_95","required_capital:99_95:liability_risk:adjustments:non_life:reserve:other","J","Output!J118",{"$f":"INDIRECT(T92)","v":0},"99_80","required_capital:99_80:liability_risk:adjustments:non_life:reserve:other","L","Output!L118",{"$f":"INDIRECT(Y92)","v":0},"99_50","required_capital:99_50:liability_risk:adjustments:non_life:reserve:other","N","Output!N118",{"$f":"INDIRECT(AD92)","v":0}]
[null,"required_capital","99_99","liability_risk","adjustments","non_life","nat_cat","total","required_capital:99_99:liability_risk:adjustments:non_life:nat_cat:total","Output",null,1,119,"H","Output!H119",{"$f":"INDIRECT(O93)","v":0},"99_95","required_capital:99_95:liability_risk:adjustments:non_life:nat_cat:total","J","Output!J119",{"$f":"INDIRECT(T93)","v":0},"99_80","required_capital:99_80:liability_risk:adjustments:non_life:nat_cat:total","L","Output!L119",{"$f":"INDIRECT(Y93)","v":0},"99_50","required_capital:99_50:liability_risk:adjustments:non_life:nat_cat:total","N","Output!N119",{"$f":"INDIRECT(AD93)","v":0}]
[null,"required_capital","99_99","liability_risk","adjustments","non_life","nat_cat","value",{"$f":"CONCATENATE($B94, \":\",C94,\":\",$D94,\":\",$E94,\":\",$F94,\":\",$G94,\":\",$H94)","v":"required_capital:99_99:liability_risk:adjustments:non_life:nat_cat:value"},"Output",null,1,{"$f":"M93+L94","v":120},"H",{"$f":"CONCATENATE($J94,\"!\",N94,$M94)","v":"Output!H120"},{"$f":"INDIRECT(O94)","v":0},"99_95",{"$f":"IF(Q94=\"\",\"\",CONCATENATE($B94,\":\",Q94,\":\",$D94,\":\",$E94,\":\",$F94,\":\",$G94,\":\",$H94))","v":"required_capital:99_95:liability_risk:adjustments:non_life:nat_cat:value"},"J",{"$f":"CONCATENATE($J94,\"!\",S94,$M94)","v":"Output!J120"},{"$f":"INDIRECT(T94)","v":0},"99_80",{"$f":"IF(V94=\"\",\"\",CONCATENATE($B94,\":\",V94,\":\",$D94,\":\",$E94,\":\",$F94,\":\",$G94,\":\",$H94))","v":"required_capital:99_80:liability_risk:adjustments:non_life:nat_cat:value"},"L",{"$f":"CONCATENATE($J94,\"!\",X94,$M94)","v":"Output!L120"},{"$f":"INDIRECT(Y94)","v":0},"99_50",{"$f":"IF(AA94=\"\",\"\",CONCATENATE($B94,\":\",AA94,\":\",$D94,\":\",$E94,\":\",$F94,\":\",$G94,\":\",$H94))","v":"required_capital:99_50:liability_risk:adjustments:non_life:nat_cat:value"},"N",{"$f":"CONCATENATE($J94,\"!\",AC94,$M94)","v":"Output!N120"},{"$f":"INDIRECT(AD94)","v":0}]
[null,"required_capital","99_99","liability_risk","adjustments","non_life","nat_cat","reinsurance_recoveries",{"$f":"CONCATENATE($B95, \":\",C95,\":\",$D95,\":\",$E95,\":\",$F95,\":\",$G95,\":\",$H95)","v":"required_capital:99_99:liability_risk:adjustments:non_life:nat_cat:reinsurance_recoveries"},"Output",null,1,{"$f":"M94+L95","v":121},"H",{"$f":"CONCATENATE($J95,\"!\",N95,$M95)","v":"Output!H121"},{"$f":"INDIRECT(O95)","v":0},"99_95",{"$f":"IF(Q95=\"\",\"\",CONCATENATE($B95,\":\",Q95,\":\",$D95,\":\",$E95,\":\",$F95,\":\",$G95,\":\",$H95))","v":"required_capital:99_95:liability_risk:adjustments:non_life:nat_cat:reinsurance_recoveries"},"J",{"$f":"CONCATENATE($J95,\"!\",S95,$M95)","v":"Output!J121"},{"$f":"INDIRECT(T95)","v":0},"99_80",{"$f":"IF(V95=\"\",\"\",CONCATENATE($B95,\":\",V95,\":\",$D95,\":\",$E95,\":\",$F95,\":\",$G95,\":\",$H95))","v":"required_capital:99_80:liability_risk:adjustments:non_life:nat_cat:reinsurance_recoveries"},"L",{"$f":"CONCATENATE($J95,\"!\",X95,$M95)","v":"Output!L121"},{"$f":"INDIRECT(Y95)","v":0},"99_50",{"$f":"IF(AA95=\"\",\"\",CONCATENATE($B95,\":\",AA95,\":\",$D95,\":\",$E95,\":\",$F95,\":\",$G95,\":\",$H95))","v":"required_capital:99_50:liability_risk:adjustments:non_life:nat_cat:reinsurance_recoveries"},"N",{"$f":"CONCATENATE($J95,\"!\",AC95,$M95)","v":"Output!N121"},{"$f":"INDIRECT(AD95)","v":0}]
[null,"required_capital","99_99","liability_risk","adjustments","life","value",null,"required_capital:99_99:liability_risk:adjustments:life:value:","Output",null,1,{"$f":"M95+L96","v":122},"H","Output!H122",{"$f":"INDIRECT(O96)","v":0},"99_95","required_capital:99_95:liability_risk:adjustments:life:value:","J","Output!J122",{"$f":"INDIRECT(T96)","v":0},"99_80","required_capital:99_80:liability_risk:adjustments:life:value:","L","Output!L122",{"$f":"INDIRECT(Y96)","v":0},"99_50","required_capital:99_50:liability_risk:adjustments:life:value:","N","Output!N122",{"$f":"INDIRECT(AD96)","v":0}]
[null,"required_capital","99_99","liability_risk","adjustments","life","mortality",null,"required_capital:99_99:liability_risk:adjustments:life:mortality:","Output",null,1,123,"H","Output!H123",{"$f":"INDIRECT(O97)","v":0},"99_95","required_capital:99_95:liability_risk:adjustments:life:mortality:","J","Output!J123",{"$f":"INDIRECT(T97)","v":0},"99_80","required_capital:99_80:liability_risk:adjustments:life:mortality:","L","Output!L123",{"$f":"INDIRECT(Y97)","v":0},"99_50","required_capital:99_50:liability_risk:adjustments:life:mortality:","N","Output!N123",{"$f":"INDIRECT(AD97)","v":0}]
[null,"required_capital","99_99","liability_risk","adjustments","life","morbidity",null,"required_capital:99_99:liability_risk:adjustments:life:morbidity:","Output",null,1,124,"H","Output!H124",{"$f":"INDIRECT(O98)","v":0},"99_95","required_capital:99_95:liability_risk:adjustments:life:morbidity:","J","Output!J124",{"$f":"INDIRECT(T98)","v":0},"99_80","required_capital:99_80:liability_risk:adjustments:life:morbidity:","L","Output!L124",{"$f":"INDIRECT(Y98)","v":0},"99_50","required_capital:99_50:liability_risk:adjustments:life:morbidity:","N","Output!N124",{"$f":"INDIRECT(AD98)","v":0}]
[null,"required_capital","99_99","liability_risk","adjustments","life","longevity",null,"required_capital:99_99:liability_risk:adjustments:life:longevity:","Output",null,1,125,"H","Output!H125",{"$f":"INDIRECT(O99)","v":0},"99_95","required_capital:99_95:liability_risk:adjustments:life:longevity:","J","Output!J125",{"$f":"INDIRECT(T99)","v":0},"99_80","required_capital:99_80:liability_risk:adjustments:life:longevity:","L","Output!L125",{"$f":"INDIRECT(Y99)","v":0},"99_50","required_capital:99_50:liability_risk:adjustments:life:longevity:","N","Output!N125",{"$f":"INDIRECT(AD99)","v":0}]
[null,"required_capital","99_99","liability_risk","adjustments","life","other life",null,"required_capital:99_99:liability_risk:adjustments:life:other life:","Output",null,1,126,"H","Output!H126",{"$f":"INDIRECT(O100)","v":0},"99_95","required_capital:99_95:liability_risk:adjustments:life:other life:","J","Output!J126",{"$f":"INDIRECT(T100)","v":0},"99_80","required_capital:99_80:liability_risk:adjustments:life:other life:","L","Output!L126",{"$f":"INDIRECT(Y100)","v":0},"99_50","required_capital:99_50:liability_risk:adjustments:life:other life:","N","Output!N126",{"$f":"INDIRECT(AD100)","v":0}]
[null,"required_capital","99_99","liability_risk","adjustments","life","pandemic","total","required_capital:99_99:liability_risk:adjustments:life:pandemic:total","Output",null,1,127,"H","Output!H127",{"$f":"INDIRECT(O101)","v":0},"99_95","required_capital:99_95:liability_risk:adjustments:life:pandemic:total","J","Output!J127",{"$f":"INDIRECT(T101)","v":0},"99_80","required_capital:99_80:liability_risk:adjustments:life:pandemic:total","L","Output!L127",{"$f":"INDIRECT(Y101)","v":0},"99_50","required_capital:99_50:liability_risk:adjustments:life:pandemic:total","N","Output!N127",{"$f":"INDIRECT(AD101)","v":0}]
[null,"required_capital","99_99","liability_risk","adjustments","life","pandemic","value",{"$f":"CONCATENATE($B102, \":\",C102,\":\",$D102,\":\",$E102,\":\",$F102,\":\",$G102,\":\",$H102)","v":"required_capital:99_99:liability_risk:adjustments:life:pandemic:value"},"Output",null,1,{"$f":"M101+L102","v":128},"H",{"$f":"CONCATENATE($J102,\"!\",N102,$M102)","v":"Output!H128"},{"$f":"INDIRECT(O102)","v":0},"99_95",{"$f":"IF(Q102=\"\",\"\",CONCATENATE($B102,\":\",Q102,\":\",$D102,\":\",$E102,\":\",$F102,\":\",$G102,\":\",$H102))","v":"required_capital:99_95:liability_risk:adjustments:life:pandemic:value"},"J",{"$f":"CONCATENATE($J102,\"!\",S102,$M102)","v":"Output!J128"},{"$f":"INDIRECT(T102)","v":0},"99_80",{"$f":"IF(V102=\"\",\"\",CONCATENATE($B102,\":\",V102,\":\",$D102,\":\",$E102,\":\",$F102,\":\",$G102,\":\",$H102))","v":"required_capital:99_80:liability_risk:adjustments:life:pandemic:value"},"L",{"$f":"CONCATENATE($J102,\"!\",X102,$M102)","v":"Output!L128"},{"$f":"INDIRECT(Y102)","v":0},"99_50",{"$f":"IF(AA102=\"\",\"\",CONCATENATE($B102,\":\",AA102,\":\",$D102,\":\",$E102,\":\",$F102,\":\",$G102,\":\",$H102))","v":"required_capital:99_50:liability_risk:adjustments:life:pandemic:value"},"N",{"$f":"CONCATENATE($J102,\"!\",AC102,$M102)","v":"Output!N128"},{"$f":"INDIRECT(AD102)","v":0}]
[null,"required_capital","99_99","liability_risk","adjustments","life","pandemic","reinsurance_recoveries",{"$f":"CONCATENATE($B103, \":\",C103,\":\",$D103,\":\",$E103,\":\",$F103,\":\",$G103,\":\",$H103)","v":"required_capital:99_99:liability_risk:adjustments:life:pandemic:reinsurance_recoveries"},"Output",null,1,{"$f":"M102+L103","v":129},"H",{"$f":"CONCATENATE($J103,\"!\",N103,$M103)","v":"Output!H129"},{"$f":"INDIRECT(O103)","v":0},"99_95",{"$f":"IF(Q103=\"\",\"\",CONCATENATE($B103,\":\",Q103,\":\",$D103,\":\",$E103,\":\",$F103,\":\",$G103,\":\",$H103))","v":"required_capital:99_95:liability_risk:adjustments:life:pandemic:reinsurance_recoveries"},"J",{"$f":"CONCATENATE($J103,\"!\",S103,$M103)","v":"Output!J129"},{"$f":"INDIRECT(T103)","v":0},"99_80",{"$f":"IF(V103=\"\",\"\",CONCATENATE($B103,\":\",V103,\":\",$D103,\":\",$E103,\":\",$F103,\":\",$G103,\":\",$H103))","v":"required_capital:99_80:liability_risk:adjustments:life:pandemic:reinsurance_recoveries"},"L",{"$f":"CONCATENATE($J103,\"!\",X103,$M103)","v":"Output!L129"},{"$f":"INDIRECT(Y103)","v":0},"99_50",{"$f":"IF(AA103=\"\",\"\",CONCATENATE($B103,\":\",AA103,\":\",$D103,\":\",$E103,\":\",$F103,\":\",$G103,\":\",$H103))","v":"required_capital:99_50:liability_risk:adjustments:life:pandemic:reinsurance_recoveries"},"N",{"$f":"CONCATENATE($J103,\"!\",AC103,$M103)","v":"Output!N129"},{"$f":"INDIRECT(AD103)","v":0}]
[null,"required_capital","99_99","liability_risk","total",null,null,null,"required_capital:99_99:liability_risk:total:::","Output",null,2,{"$f":"M103+L104","v":131},"H","Output!H131",{"$f":"INDIRECT(O104)","v":0},"99_95","required_capital:99_95:liability_risk:total:::","J","Output!J131",{"$f":"INDIRECT(T104)","v":0},"99_80","required_capital:99_80:liability_risk:total:::","L","Output!L131",{"$f":"INDIRECT(Y104)","v":0},"99_50","required_capital:99_50:liability_risk:total:::","N","Output!N131",{"$f":"INDIRECT(AD104)","v":0}]
[null,"required_capital","99_99","diversification","market_risk",null,null,null,"required_capital:99_99:diversification:market_risk:::","Output",{"$f":"ROW(out_section_diversification)","v":134},2,{"$f":"K105+L105","v":136},"H","Output!H136",{"$f":"INDIRECT(O105)","v":0},"99_95","required_capital:99_95:diversification:market_risk:::","J","Output!J136",{"$f":"INDIRECT(T105)","v":0},"99_80","required_capital:99_80:diversification:market_risk:::","L","Output!L136",{"$f":"INDIRECT(Y105)","v":0},"99_50","required_capital:99_50:diversification:market_risk:::","N","Output!N136",{"$f":"INDIRECT(AD105)","v":0}]
[null,"required_capital","99_99",{"$f":"D105","v":"diversification"},"non_life","total",null,null,"required_capital:99_99:diversification:non_life:total::","Output",null,1,137,"H","Output!H137",{"$f":"INDIRECT(O106)","v":0},"99_95","required_capital:99_95:diversification:non_life:total::","J","Output!J137",{"$f":"INDIRECT(T106)","v":0},"99_80","required_capital:99_80:diversification:non_life:total::","L","Output!L137",{"$f":"INDIRECT(Y106)","v":0},"99_50","required_capital:99_50:diversification:non_life:total::","N","Output!N137",{"$f":"INDIRECT(AD106)","v":0}]
[null,"required_capital","99_99",{"$f":"D106","v":"diversification"},"non_life","premium_reserve",null,null,"required_capital:99_99:diversification:non_life:premium_reserve::","Output",null,1,138,"H","Output!H138",{"$f":"INDIRECT(O107)","v":0},"99_95","required_capital:99_95:diversification:non_life:premium_reserve::","J","Output!J138",{"$f":"INDIRECT(T107)","v":0},"99_80","required_capital:99_80:diversification:non_life:premium_reserve::","L","Output!L138",{"$f":"INDIRECT(Y107)","v":0},"99_50","required_capital:99_50:diversification:non_life:premium_reserve::","N","Output!N138",{"$f":"INDIRECT(AD107)","v":0}]
[null,"required_capital","99_99","diversification","non_life","lines_of_business",null,null,"required_capital:99_99:diversification:non_life:lines_of_business::","Output",null,1,139,"H","Output!H139",{"$f":"INDIRECT(O108)","v":0},"99_95","required_capital:99_95:diversification:non_life:lines_of_business::","J","Output!J139",{"$f":"INDIRECT(T108)","v":0},"99_80","required_capital:99_80:diversification:non_life:lines_of_business::","L","Output!L139",{"$f":"INDIRECT(Y108)","v":0},"99_50","required_capital:99_50:diversification:non_life:lines_of_business::","N","Output!N139",{"$f":"INDIRECT(AD108)","v":0}]
[null,"required_capital","99_99","diversification","life","total",null,null,"required_capital:99_99:diversification:life:total::","Output",null,1,140,"H","Output!H140",{"$f":"INDIRECT(O109)","v":0},"99_95","required_capital:99_95:diversification:life:total::","J","Output!J140",{"$f":"INDIRECT(T109)","v":0},"99_80","required_capital:99_80:diversification:life:total::","L","Output!L140",{"$f":"INDIRECT(Y109)","v":0},"99_50","required_capital:99_50:diversification:life:total::","N","Output!N140",{"$f":"INDIRECT(AD109)","v":0}]
[null,"required_capital","99_99","diversification","across_risks",null,null,null,"required_capital:99_99:diversification:across_risks:::","Output",null,1,141,"H","Output!H141",{"$f":"INDIRECT(O110)","v":0},"99_95","required_capital:99_95:diversification:across_risks:::","J","Output!J141",{"$f":"INDIRECT(T110)","v":0},"99_80","required_capital:99_80:diversification:across_risks:::","L","Output!L141",{"$f":"INDIRECT(Y110)","v":0},"99_50","required_capital:99_50:diversification:across_risks:::","N","Output!N141",{"$f":"INDIRECT(AD110)","v":0}]
[null,"required_capital","99_99","diversification","pre_haircut","total",null,null,"required_capital:99_99:diversification:pre_haircut:total::","Output",null,2,{"$f":"M110+L111","v":143},"H","Output!H143",{"$f":"INDIRECT(O111)","v":0},"99_95","required_capital:99_95:diversification:pre_haircut:total::","J","Output!J143",{"$f":"INDIRECT(T111)","v":0},"99_80","required_capital:99_80:diversification:pre_haircut:total::","L","Output!L143",{"$f":"INDIRECT(Y111)","v":0},"99_50","required_capital:99_50:diversification:pre_haircut:total::","N","Output!N143",{"$f":"INDIRECT(AD111)","v":0}]
[null,"required_capital","99_99","diversification","haircut",null,null,null,"required_capital:99_99:diversification:haircut:::","Output",null,1,144,"H","Output!H144",{"$f":"INDIRECT(O112)","v":0},"99_95","required_capital:99_95:diversification:haircut:::","J","Output!J144",{"$f":"INDIRECT(T112)","v":0},"99_80","required_capital:99_80:diversification:haircut:::","L","Output!L144",{"$f":"INDIRECT(Y112)","v":0},"99_50","required_capital:99_50:diversification:haircut:::","N","Output!N144",{"$f":"INDIRECT(AD112)","v":0}]
[null,"required_capital","99_99","diversification","total",null,null,null,"required_capital:99_99:diversification:total:::","Output",null,1,145,"H","Output!H145",{"$f":"INDIRECT(O113)","v":0},"99_95","required_capital:99_95:diversification:total:::","J","Output!J145",{"$f":"INDIRECT(T113)","v":0},"99_80","required_capital:99_80:diversification:total:::","L","Output!L145",{"$f":"INDIRECT(Y113)","v":0},"99_50","required_capital:99_50:diversification:total:::","N","Output!N145",{"$f":"INDIRECT(AD113)","v":0}]
[null,"required_capital","99_99","diversified","undiversified","total",null,null,{"$f":"CONCATENATE($B114, \":\",C114,\":\",$D114,\":\",$E114,\":\",$F114,\":\",$G114,\":\",$H114)","v":"required_capital:99_99:diversified:undiversified:total::"},"Output",{"$f":"ROW(out_section_diversified)","v":148},1,{"$f":"K114+L114","v":149},"H","Output!H149",{"$f":"INDIRECT(O114)","v":0},"99_95",{"$f":"IF(Q114=\"\",\"\",CONCATENATE($B114,\":\",Q114,\":\",$D114,\":\",$E114,\":\",$F114,\":\",$G114,\":\",$H114))","v":"required_capital:99_95:diversified:undiversified:total::"},"J","Output!J149",{"$f":"INDIRECT(T114)","v":0},"99_80",{"$f":"IF(V114=\"\",\"\",CONCATENATE($B114,\":\",V114,\":\",$D114,\":\",$E114,\":\",$F114,\":\",$G114,\":\",$H114))","v":"required_capital:99_80:diversified:undiversified:total::"},"L","Output!L149",{"$f":"INDIRECT(Y114)","v":0},"99_50",{"$f":"IF(AA114=\"\",\"\",CONCATENATE($B114,\":\",AA114,\":\",$D114,\":\",$E114,\":\",$F114,\":\",$G114,\":\",$H114))","v":"required_capital:99_50:diversified:undiversified:total::"},"N","Output!N149",{"$f":"INDIRECT(AD114)","v":0}]
[null,"required_capital","99_99",{"$f":"D114","v":"diversified"},"value_in_force",null,null,null,{"$f":"CONCATENATE($B115, \":\",C115,\":\",$D115,\":\",$E115,\":\",$F115,\":\",$G115,\":\",$H115)","v":"required_capital:99_99:diversified:value_in_force:::"},"Output",null,4,153,"H","Output!H153",{"$f":"INDIRECT(O115)","v":0},"99_95",{"$f":"IF(Q115=\"\",\"\",CONCATENATE($B115,\":\",Q115,\":\",$D115,\":\",$E115,\":\",$F115,\":\",$G115,\":\",$H115))","v":"required_capital:99_95:diversified:value_in_force:::"},"J","Output!J153",{"$f":"INDIRECT(T115)","v":0},"99_80",{"$f":"IF(V115=\"\",\"\",CONCATENATE($B115,\":\",V115,\":\",$D115,\":\",$E115,\":\",$F115,\":\",$G115,\":\",$H115))","v":"required_capital:99_80:diversified:value_in_force:::"},"L","Output!L153",{"$f":"INDIRECT(Y115)","v":0},"99_50",{"$f":"IF(AA115=\"\",\"\",CONCATENATE($B115,\":\",AA115,\":\",$D115,\":\",$E115,\":\",$F115,\":\",$G115,\":\",$H115))","v":"required_capital:99_50:diversified:value_in_force:::"},"N","Output!N153",{"$f":"INDIRECT(AD115)","v":0}]
[null,"required_capital","99_99",{"$f":"D115","v":"diversified"},"ring_fenced_funds",null,null,null,{"$f":"CONCATENATE($B116, \":\",C116,\":\",$D116,\":\",$E116,\":\",$F116,\":\",$G116,\":\",$H116)","v":"required_capital:99_99:diversified:ring_fenced_funds:::"},"Output",null,1,154,"H","Output!H154",{"$f":"INDIRECT(O116)","v":0},"99_95",{"$f":"IF(Q116=\"\",\"\",CONCATENATE($B116,\":\",Q116,\":\",$D116,\":\",$E116,\":\",$F116,\":\",$G116,\":\",$H116))","v":"required_capital:99_95:diversified:ring_fenced_funds:::"},"J","Output!J154",{"$f":"INDIRECT(T116)","v":0},"99_80",{"$f":"IF(V116=\"\",\"\",CONCATENATE($B116,\":\",V116,\":\",$D116,\":\",$E116,\":\",$F116,\":\",$G116,\":\",$H116))","v":"required_capital:99_80:diversified:ring_fenced_funds:::"},"L","Output!L154",{"$f":"INDIRECT(Y116)","v":0},"99_50",{"$f":"IF(AA116=\"\",\"\",CONCATENATE($B116,\":\",AA116,\":\",$D116,\":\",$E116,\":\",$F116,\":\",$G116,\":\",$H116))","v":"required_capital:99_50:diversified:ring_fenced_funds:::"},"N","Output!N154",{"$f":"INDIRECT(AD116)","v":0}]
[null,"required_capital","99_99","diversified","adjustments",null,null,null,{"$f":"CONCATENATE($B117, \":\",C117,\":\",$D117,\":\",$E117,\":\",$F117,\":\",$G117,\":\",$H117)","v":"required_capital:99_99:diversified:adjustments:::"},"Output",null,1,155,"H","Output!H155",{"$f":"INDIRECT(O117)","v":0},"99_95",{"$f":"IF(Q117=\"\",\"\",CONCATENATE($B117,\":\",Q117,\":\",$D117,\":\",$E117,\":\",$F117,\":\",$G117,\":\",$H117))","v":"required_capital:99_95:diversified:adjustments:::"},"J","Output!J155",{"$f":"INDIRECT(T117)","v":0},"99_80",{"$f":"IF(V117=\"\",\"\",CONCATENATE($B117,\":\",V117,\":\",$D117,\":\",$E117,\":\",$F117,\":\",$G117,\":\",$H117))","v":"required_capital:99_80:diversified:adjustments:::"},"L","Output!L155",{"$f":"INDIRECT(Y117)","v":0},"99_50",{"$f":"IF(AA117=\"\",\"\",CONCATENATE($B117,\":\",AA117,\":\",$D117,\":\",$E117,\":\",$F117,\":\",$G117,\":\",$H117))","v":"required_capital:99_50:diversified:adjustments:::"},"N","Output!N155",{"$f":"INDIRECT(AD117)","v":0}]
[null,"required_capital","99_99",{"$f":"D117","v":"diversified"},"total",null,null,null,"required_capital:99_99:diversified:total:::","Output",null,1,156,"H","Output!H156",{"$f":"INDIRECT(O118)","v":0},"99_95","required_capital:99_95:diversified:total:::","J","Output!J156",{"$f":"INDIRECT(T118)","v":0},"99_80","required_capital:99_80:diversified:total:::","L","Output!L156",{"$f":"INDIRECT(Y118)","v":0},"99_50","required_capital:99_50:diversified:total:::","N","Output!N156",{"$f":"INDIRECT(AD118)","v":0}]
[null,"required_capital","99_99",{"$f":"D118","v":"diversified"},"redundancy","amount",null,null,"required_capital:99_99:diversified:redundancy:amount::","Output",{"$f":"ROW(out_section_summary)","v":7},4,{"$f":"K119+L119","v":11},"H","Output!H11",{"$f":"INDIRECT(O119)","v":0},"99_95","required_capital:99_95:diversified:redundancy:amount::","J","Output!J11",{"$f":"INDIRECT(T119)","v":0},"99_80","required_capital:99_80:diversified:redundancy:amount::","L","Output!L11",{"$f":"INDIRECT(Y119)","v":0},"99_50","required_capital:99_50:diversified:redundancy:amount::","N","Output!N11",{"$f":"INDIRECT(AD119)","v":0}]
[null,"required_capital","99_99","diversified","redundancy","percentage",null,null,"required_capital:99_99:diversified:redundancy:percentage::","Output",null,1,12,"H","Output!H12",{"$f":"INDIRECT(O120)","v":"-"},"99_95","required_capital:99_95:diversified:redundancy:percentage::","J","Output!J12",{"$f":"INDIRECT(T120)","v":"-"},"99_80","required_capital:99_80:diversified:redundancy:percentage::","L","Output!L12",{"$f":"INDIRECT(Y120)","v":"-"},"99_50","required_capital:99_50:diversified:redundancy:percentage::","N","Output!N12",{"$f":"INDIRECT(AD120)","v":"-"}]

{"sheet":"Default Values","index":21,"n_rows":22,"n_cols":9,"rows_kept":22,"cut":false,"hidden":true,"merged":[]}
[]
["Section","Label","Sheet","Row","Column","Cell address","Range name","Destination cell address or range name","Value"]
["Company Info","Review Type","Input",null,null,{"$f":"CONCATENATE(C3,\"!\",E3,D3)","v":"Input!"},"inp_summary_review_type",{"$f":"IF(G3<>\"\",G3,F3)","v":"inp_summary_review_type"},{"$f":"Lists!J3","v":"Actual"}]
["Company Info","Currency","Input",null,null,"Input!","inp_summary_currency",{"$f":"IF(G4<>\"\",G4,F4)","v":"inp_summary_currency"},"USD"]
["Company Info","USD Exchange Rate","Input",null,null,"Input!","inp_summary_usd_fx","inp_summary_usd_fx",1]
["Company Info","Units","Input",null,null,"Input!","inp_summary_units","inp_summary_units",{"$f":"Lists!K4","v":"Millions"}]
["TAC","Is debt funded capital eligible in TAC?","Input",null,null,"Input!","inp_tac_is_debt_eligible","inp_tac_is_debt_eligible","No"]
[" Adjustment to Economic Risk Group mapping","Adjustment","Input",null,null,"Input!","inp_erg_adj_corp","inp_erg_adj_corp",0]
[" Adjustment to Economic Risk Group mapping","Adjustment","Input",null,null,"Input!","inp_erg_adj_fin","inp_erg_adj_fin",0]
[" Adjustment to Economic Risk Group mapping","Adjustment","Input",null,null,"Input!","inp_erg_adj_sov","inp_erg_adj_sov",0]
[" Adjustment to Economic Risk Group mapping","Adjustment","Input",null,null,"Input!","inp_erg_adj_sf_senior","inp_erg_adj_sf_senior",0]
[" Adjustment to Economic Risk Group mapping","Adjustment","Input",null,null,{"$f":"CONCATENATE(C12,\"!\",E12,D12)","v":"Input!"},"inp_erg_adj_sf_mezz",{"$f":"IF(G12<>\"\",G12,F12)","v":"inp_erg_adj_sf_mezz"},0]
[" Adjustment to Economic Risk Group mapping","Adjustment","Input",null,null,{"$f":"CONCATENATE(C13,\"!\",E13,D13)","v":"Input!"},"inp_erg_adj_sf_junior",{"$f":"IF(G13<>\"\",G13,F13)","v":"inp_erg_adj_sf_junior"},0]
["Premium Risk","Has Nat Cat premium been removed from premium risk exposure?","Input",null,null,"Input!","inp_is_nat_cat_prem_removed","inp_is_nat_cat_prem_removed","No"]
["Natural Catastrophe Risk","Is AEP/OEP Curve Available?","Input",null,null,"Input!","inp_nat_cat_is_aep_curve_available","inp_nat_cat_is_aep_curve_available",{"$f":"Lists!Y3","v":"Yes, AEP"}]
["Interest Rate Risk","Can we determine a company-specific duration mismatch?","Input",null,null,"Input!","duration_mismatch_bespoke","duration_mismatch_bespoke","No"]
["Interest Rate Risk","Do you know the most onerous duration mismatch direction for life and non-life business?","Input",null,null,{"$f":"CONCATENATE(C17,\"!\",E17,D17)","v":"Input!"},"inp_ir_mismatch_directiion_bespoke","inp_ir_mismatch_directiion_bespoke","No"]
["Interest Rate Risk","Most onerous mismatch direction - Life","Input",null,null,{"$f":"CONCATENATE(C18,\"!\",E18,D18)","v":"Input!"},"inp_ir_mismatch_directiion_life","inp_ir_mismatch_directiion_life",{"$f":"Lists!T5","v":"Unknown"}]
["Interest Rate Risk","Most onerous mismatch direction - Non-life","Input",null,null,"Input!","inp_ir_mismatch_directiion_non_life","inp_ir_mismatch_directiion_non_life",{"$f":"Lists!T5","v":"Unknown"}]
["Interest Rate Risk","Is there exposure to foreign currency products?","Input",null,null,{"$f":"CONCATENATE(C20,\"!\",E20,D20)","v":"Input!"},"inp_ir_exposure_to_fx",{"$f":"IF(G20<>\"\",G20,F20)","v":"inp_ir_exposure_to_fx"},"No"]
["Longevity Risk","Level of Conservatism","Input",null,null,"Input!","inp_long_reserve_cl","inp_long_reserve_cl",{"$f":"Lists!Z3","v":"Default"}]
["Mortgage Insurance","UPR/LRC Earnings Pattern (%)","Input",null,null,"Input!","inp_mi_upr_earn_pattern","inp_mi_upr_earn_pattern",0.2]